{"text_format":"1","workbook":"xlsx","n_sheets":112,"sheets":["ACS_Notes","StartInstruction","ACS_Table_B08303","PopulationCharacteristics","SchoolEnrolEduAttain","HousingCharacteristics","CntyDataLink","CntyQuery","BuildingPermitsSince2000","EmploymentAndWages","EmpVsHUxCounty","HHIncome-10YearComparison","HHIncomeByAge","HHIncomeByTenure","Updates","CntyDataLinkPrior5YearEstimates","CntyDataLinkPrior10YearEstimate","StatisticallySignificantCalcs","OwnerHousingCost","OwnerHousingCostPrior5Year","ACS_Source_Table_List","SData_B01001Populuation","SData_B01002MedianAgePop","SData_B03002HispanLationRace","SData_B05002_PlaceofBirthCitzSt","SData_B07003_ResidenceMobility","SData_B08303Commuting","SData_B11001HouseholdByFamType","SData_B11002PopByHHType","SData_B14001_and_B15002School","SData_B17001PopPovtyStat","SDataB17010FamilyPovertyStatus","SData_B17017_HH PovStat","ACS_Table_B01001","ACS_Table_B01002","ACS_Tbl_B11001_B11002_B25010","ACS_Table_B19001","ACS_Table_B19037","DisabilityByAge","DisabilityByAgePrior5YearEst","SData_B18101_DisabilityAge","ACS_Table_B18101","SData_B18102_HearingDisability","ACS_Table_B18102","SData_B18103_VisualDisability","ACS_Table_B18103","SData_B18104_CognitiveDisabil","ACS_Table_B18104","SData_B18105_AmbulatoryDisabil","ACS_Table_B18105","SData_B18106_SelfCareDisability","ACS_Table_B18106","SData_B18107_IndependantLivDis","ACS_Table_B18107","SData_B18108_MultipleDisability","ACS_Table_C18108","SData_B19001HseHldInc","SData_B19037IncomeByAgeofHH","SData_B19049MedianIncomeByAge","SData_Tables_B19101_B19113","SData_Tables_B19201_B19202","ACS_Table_B19049","ACS_Table_B25118","ACS_TableB19101_ACS_Tbl_B19113","ACS_TableB19201_ACS_Tbl_B19202","ACS_Table_B25119","ACS_Table_B25001","ACS_Table_B25003","ACS_Table_B25004","ACS_Table_B25008","ACS_Table_B25024","ACS_Table_B25032","ACS_Table_B25034","ACS_Table_B25041","PovertyCharacteristics","ACS_Table_ B17001","ACS_Table_B17010","ACS_Table_B17017","ACS_Table_B03002","RentalHousingCost","RentalHousingCost-Prior5Yr","ACS_Table_B25063_&_B25064","ACS_Table_B25070","ACS_Table_B25074","SData_B25001_B25003_B25004","SData_B25008","SData_B25010AvgHHSizeByTenure","SData_B25024","SData_B25032","SData_B25034_B25041_HuAgeTyp","SData_B25063_B25064_OccRentGR","SData_B25070_&_B25074GRAsPerInc","SData_B25075&_B25077_OOccHsgVal","PlaceOfBirthAndPriorRes","ACS_Table_B05002","ACS_Table_B07003","ACS_Table_B14001","ACS_Table_B15002","ACS_Table_B25075_&_B25077","ACS_Table_B25088","ACS_Table_B25091","SData_B25088MednMthlyOwnerCost","SData_B25091OwnOccHsgCostPerInc","ACS_Table_B25106","SData_B25106HsingCostAsPctOfInc","SData_B25118_B25119HHIncByTen","PopComparison","HousingComparison","Housing_EmploymentComparison","DropDownList","CntyQryCensus","SmallTownEmploymentandWages"],"not_rendered":{"charts":79,"images":200,"macros":1,"external_links":1,"defined_names":95,"comments":0,"pivot_tables":0},"unopened":[],"bounds":{"document_bytes":16777216,"sheet_cells":100000,"rows_first":2000,"rows_last":500,"rows_between":2000,"halvings":0,"cell_chars":16384,"cell_head_chars":4096},"cells_cut":0,"cells_raw":0,"read":"row_number_cap","date_system":"1900"}

{"sheet":"ACS_Notes","index":0,"n_rows":28,"n_cols":1,"rows_kept":28,"cut":false,"hidden":true,"merged":[[3,0,5,14],[7,0,8,14],[25,0,25,14],[20,0,21,14],[22,0,22,14],[23,0,23,14],[24,0,24,14],[29,0,29,14],[31,15,31,29],[31,30,31,44],[31,45,31,59],[10,0,12,14],[14,0,14,14],[18,0,19,14],[31,120,31,134],[31,135,31,149],[31,150,31,164],[31,165,31,179],[31,60,31,74],[31,75,31,89],[31,90,31,104],[31,105,31,119],[31,240,31,254],[31,180,31,194],[31,195,31,209],[31,210,31,224],[31,225,31,239]]}
["NOTES:"]
[]
[]
["Data are based on a sample and are subject to sampling variability. The degree of uncertainty for an estimate arising from sampling variability is represented through the use of a margin of error. The value shown here is the 90 percent margin of error. The margin of error can be interpreted roughly as providing a 90 percent probability that the interval defined by the estimate minus the margin of error and the estimate plus the margin of error (the lower and upper confidence bounds) contains the true value. In addition to sampling variability, the ACS estimates are subject to non-sampling error (for a discussion of nonsampling variability, see Accuracy of the Data). The effect of nonsampling error is not represented in these tables."]
[]
[]
[]
["In addition to sampling variability, the ACS estimates are subject to nonsampling error (for a discussion of nonsampling variability, see Accuracy of the Data. The link is located at the end of this worksheet.).  The effect of nonsampling error is not represented in these tables."]
[]
[]
["While the 2005-2009 American Community Survey (ACS) data generally reflect the November 2008 Office of Management and Budget (OMB) definitions of metropolitan and micropolitan statistical areas; in certain instances the names, codes, and boundaries of the principal cities shown in ACS tables may differ from the OMB definitions due to differences in the effective dates of the geographic entities."]
[]
[]
[]
["Estimates of urban and rural population, housing units, and characteristics reflect boundaries of urban areas defined based on Census 2000 data.  Boundaries for urban areas have not been updated since Census 2000.  As a result, data for urban and rural areas from the ACS do not necessarily reflect the results of ongoing urbanization."]
[]
["Explanation of Symbols:"]
[]
["1. An '**' entry in the margin of error column indicates that either no sample observations or too few sample observations were available to compute a standard error and thus the margin of error. A statistical test is not appropriate."]
[]
["2. An '-' entry in the estimate column indicates that either no sample observations or too few sample observations were available to compute an estimate, or a ratio of medians cannot be calculated because one or both of the median estimates falls in the lowest interval or upper interval of an open-ended distribution."]
[]
["3. An '-' following a median estimate means the median falls in the lowest interval of an open-ended distribution."]
["4. An '+' following a median estimate means the median falls in the upper interval of an open-ended distribution."]
["5. An '***' entry in the margin of error column indicates that the median falls in the lowest interval or upper interval of an open-ended distribution. A statistical test is not appropriate."]
["6. An '*****' entry in the margin of error column indicates that the estimate is controlled. A statistical test for sampling variability is not appropriate."]
[]
["Accuracy of Data "]

{"sheet":"StartInstruction","index":1,"n_rows":31,"n_cols":17,"rows_kept":31,"cut":false,"hidden":false,"merged":[[26,1,29,3],[30,16,32,19]]}
["Demographic Profiles for Municipalities in Sullivan County"]
[]
["To view or print a Demographic Profile follow the steps below"]
[]
[]
["Step 1. ",null,"Select the municipality you wish to"]
[null,null,"Profile from the drop down box below. "]
[]
[]
[]
[]
["Step 2. ",null,"Click one of the profile topic buttons below to review or print"]
[null,null,"the information for the selected geography."]
[null,null,"Don't forget to adjust the axis on charts as necessary. "]
[]
[]
[]
[]
[]
[]
[]
[]
[]
[]
[]
[]
[]
[]
[null,null,null,null,null,null,null,null,null,null,null,null,null,null,"Updated:",null,"2021-03-23"]
[]
[null,null,null,null,null,null,null,null,null,null,null,null,null,null,"Next Update:",null,"Fall 2021 - Annual Employment and Wage Data"]

{"sheet":"ACS_Table_B08303","index":2,"n_rows":19,"n_cols":32,"rows_kept":19,"cut":false,"hidden":true,"merged":[]}
[null,"B08303: TRAVEL TIME TO WORK"]
[null,"Universe: Workers 16 years and over who did not work at home"]
[null,"Data Set: 2006-2010 American Community Survey 3-Year Estimates"]
[]
[null,null,"Acworth",null,"Charlestown",null,"Claremont",null,"Cornish",null,"Croydon",null,"Goshen",null,"Grantham",null,"Langdon",null,"Lempster",null,"Newport",null,"Plainfield",null,"Springfield",null,"Sunapee",null,"Unity",null,"Washington"]
[null,null,"Estimate","Margin of Error","Estimate","Margin of Error","Estimate","Margin of Error","Estimate","Margin of Error","Estimate","Margin of Error","Estimate","Margin of Error","Estimate","Margin of Error","Estimate","Margin of Error","Estimate","Margin of Error","Estimate","Margin of Error","Estimate","Margin of Error","Estimate","Margin of Error","Estimate","Margin of Error","Estimate","Margin of Error","Estimate","Margin of Error"]
[null,"Population Older than 16 not working at home",421,82,1956,313,5718,354,784,105,470,165,287,62,1624,181,344,85,330,69,2875,340,1107,151,479,113,1687,193,736,110,614,119]
[null,"Less than 5 minutes",23,19,92,77,370,155,34,33,12,14,2,6,40,40,11,8,4,7,160,89,61,30,62,57,76,58,26,37,10,8]
[null,"5 to 9 minutes",19,17,349,148,1060,215,23,14,58,36,11,10,73,51,28,20,2,5,481,188,53,35,3,5,207,98,40,26,30,20]
[null,"10 to 14 minutes",13,11,139,75,999,219,63,35,54,50,40,25,31,34,16,15,29,16,160,87,88,50,40,26,183,74,39,20,52,33]
[null,"15 to 19 minutes",35,22,393,145,565,185,90,33,70,71,60,24,309,249,69,29,39,26,445,196,150,50,36,30,269,105,190,66,72,64]
[null,"20 to 24 minutes",48,29,334,169,596,139,106,51,76,51,31,15,498,198,24,13,66,25,378,141,193,76,49,27,115,60,143,48,28,20]
[null,"25 to 29 minutes",23,15,98,66,211,102,71,27,60,24,49,29,181,115,20,11,24,20,112,85,204,50,100,52,157,82,32,15,43,20]
[null,"30 to 34 minutes",98,37,128,71,668,189,187,44,68,39,22,13,208,113,47,26,35,20,438,176,184,66,71,40,221,85,97,47,109,51]
[null,"35 to 39 minutes",18,15,64,66,341,121,75,26,25,24,3,4,46,62,27,20,28,23,151,93,69,34,32,24,134,64,16,12,21,30]
[null,"40 to 44 minutes",23,14,115,125,279,109,44,31,3,4,10,8,75,72,29,24,41,25,130,88,33,32,11,10,71,59,28,19,39,38]
[null,"45 to 59 minutes",59,32,171,119,426,167,62,25,23,16,32,23,148,138,32,19,27,12,308,125,23,26,60,32,190,92,83,27,117,55]
[null,"60 to 89 minutes",36,20,18,29,125,59,4,6,16,13,18,13,15,22,22,16,29,15,41,37,12,14,15,16,64,44,28,14,62,29]
[null,"90 or more minutes",26,16,55,58,78,62,25,17,5,7,9,7,0,11,19,15,6,9,71,78,37,30,0,11,0,11,14,11,31,25]

{"sheet":"PopulationCharacteristics","index":3,"n_rows":64,"n_cols":23,"rows_kept":64,"cut":false,"hidden":true,"merged":[[48,3,48,4],[48,6,48,7],[48,9,48,10],[62,1,62,8],[63,1,63,3],[45,1,45,8],[3,1,3,3],[19,15,19,17],[2,8,2,12],[18,2,18,12],[18,15,18,21],[19,11,19,13],[19,18,19,20],[33,11,33,12]]}
[]
[null,{"$f":"CntyDataLink!A35","v":"Acworth"}]
[null,null,null,null,null,null,"Land Area:",null,{"$f":"((CntyDataLink!F35*10.764)/43560)/640","v":38.889904504132225},null,null,null,null,"Water Area:",{"$f":"((CntyDataLink!G35*10.764)/43560)/640","v":0.24498849173553716}]
[null,"POPULATION CHARACTERISTICS"]
[]
[]
[]
[]
[]
[]
[]
[]
[]
[]
[]
[]
[]
[]
[null,"Population ",{"$f":"\"Source:  US Census; New Hampshire Office of Strategic Initiatives; \"& L20&\", \"&P20&\", and \"&S20&\" American Community Survey Table B01001\"","v":"Source:  US Census; New Hampshire Office of Strategic Initiatives; 2005-2009, 2010-2014, and 2015-2019 American Community Survey Table B01001"},null,null,null,null,null,null,null,null,null,null,"Population by Age ",null,{"$f":"\"Source: \"& L20&\", \"&P20&\", and \"&S20&\"  American Community Survey Tables B01001 and B01002\"","v":"Source: 2005-2009, 2010-2014, and 2015-2019  American Community Survey Tables B01001 and B01002"}]
[null,null,null,null,null,null,null,null,null,null,null,"2005-2009",null,null,null,"2010-2014",null,null,"2015-2019"]
[null,null,1980,1990,2000,"2015-2019",2025,2030,null,null,null,"Estimate",null,"Margin of Error","Percent Change","Estimate","Margin of Error","Percent Change","Estimate","Margin of Error",null,"Percent Change","Statistically Significant Change"]
[null,null,{"$f":"CntyDataLink!$E$20","v":590},{"$f":"CntyDataLink!$F$20","v":776},{"$f":"CntyDataLink!$G$20","v":836},{"$f":"CntyDataLink!$B$132","v":906},{"$f":"CntyDataLink!$I$20","v":937},{"$f":"CntyDataLink!$K$20","v":989},null,null,"Under 15 yrs.",{"$f":"CntyDataLinkPrior10YearEstimate!$D$132","v":63},null,{"$f":"CntyDataLinkPrior10YearEstimate!$E$132","v":117.26892171415238},{"$f":"L22/SUM($L$22:$L$29)","v":7.6642335766423361E-2},{"$f":"CntyDataLinkPrior5YearEstimates!$D$132","v":170},{"$f":"CntyDataLinkPrior5YearEstimates!$E$132","v":56.488936969994398},{"$f":"P22/SUM($P$22:$P$29)","v":0.18418201516793067},{"$f":"CntyDataLink!$D$132","v":84},{"$f":"CntyDataLink!$E$132","v":27.892651361962706},{"$f":"S22/SUM($S$22:$S$29)","v":9.2715231788079472E-2},{"$f":"(S22-P22)/P22","v":-0.50588235294117645},{"$f":"StatisticallySignificantCalcs!$A3","v":"Y"}]
[null,null,null,null,null,null,null,null,null,null,"15 to 24 yrs.",{"$f":"CntyDataLinkPrior10YearEstimate!$F$132","v":80},null,{"$f":"CntyDataLinkPrior10YearEstimate!$G$132","v":201.31567251458591},{"$f":"L23/SUM($L$22:$L$29)","v":9.7323600973236016E-2},{"$f":"CntyDataLinkPrior5YearEstimates!$F$132","v":107},{"$f":"CntyDataLinkPrior5YearEstimates!$G$132","v":38.118237105091836},0.11592632719393282,{"$f":"CntyDataLink!$F$132","v":42},{"$f":"CntyDataLink!$G$132","v":30.659419433511783},4.6357615894039736E-2,-0.60747663551401865,{"$f":"StatisticallySignificantCalcs!$A4","v":"N"}]
[null,"Percent Change",null,null,null,null,null,null,null,null,"25 to 34 yrs.",{"$f":"CntyDataLinkPrior10YearEstimate!$H$132","v":81},null,{"$f":"CntyDataLinkPrior10YearEstimate!$I$132","v":60.456596000767362},{"$f":"L24/SUM($L$22:$L$29)","v":9.8540145985401464E-2},{"$f":"CntyDataLinkPrior5YearEstimates!$H$132","v":114},{"$f":"CntyDataLinkPrior5YearEstimates!$I$132","v":40.914545090957567},0.12351029252437704,{"$f":"CntyDataLink!$H$132","v":95},{"$f":"CntyDataLink!$I$132","v":34.899856733230294},0.10485651214128035,-0.16666666666666666,{"$f":"StatisticallySignificantCalcs!$A5","v":"Y"}]
[null,null,null,{"$f":"C21&\"-\"&(D21-1900)","v":"1980-90"},"1990-2000",{"$f":"E21&\"-19\"","v":"2000-19"},{"$f":"2019&\"-\"&(G21)","v":"2019-2025"},{"$f":"G21&\"-\"&(H21)","v":"2025-2030"},null,null,"35 to 44 yrs.",{"$f":"CntyDataLinkPrior10YearEstimate!$J$132","v":97},null,{"$f":"CntyDataLinkPrior10YearEstimate!$K$132","v":38.548670534792763},0.11800486618004866,{"$f":"CntyDataLinkPrior5YearEstimates!$J$132","v":99},{"$f":"CntyDataLinkPrior5YearEstimates!$K$132","v":30.951575081084322},0.10725893824485373,{"$f":"CntyDataLink!$J$132","v":76},{"$f":"CntyDataLink!$K$132","v":30.364452901377952},8.3885209713024281E-2,-0.23232323232323232,{"$f":"StatisticallySignificantCalcs!$A6","v":"Y"}]
[null,null,null,{"$f":"(D22-C22)/C22","v":0.31525423728813562},{"$f":"(E22-D22)/D22","v":7.7319587628865982E-2},{"$f":"(F22-E22)/E22","v":8.3732057416267949E-2},{"$f":"(G22-F22)/F22","v":3.4216335540838853E-2},{"$f":"(H22-G22)/G22","v":5.5496264674493062E-2},null,null,"45 to 54 yrs.",{"$f":"CntyDataLinkPrior10YearEstimate!$L$132","v":172},null,{"$f":"CntyDataLinkPrior10YearEstimate!$M$132","v":51.117511676528231},0.20924574209245742,{"$f":"CntyDataLinkPrior5YearEstimates!$L$132","v":139},{"$f":"CntyDataLinkPrior5YearEstimates!$M$132","v":36.304269721342692},0.15059588299024917,{"$f":"CntyDataLink!$L$132","v":118},{"$f":"CntyDataLink!$M$132","v":41.71330722922842},0.13024282560706402,-0.15107913669064749,{"$f":"StatisticallySignificantCalcs!$A7","v":"Y"}]
[null,null,null,null,null,null,null,null,null,null,"55 to 64 yrs.",{"$f":"CntyDataLinkPrior10YearEstimate!$N$132","v":116},null,{"$f":"CntyDataLinkPrior10YearEstimate!$O$132","v":119.90412836929345},0.14111922141119221,{"$f":"CntyDataLinkPrior5YearEstimates!$N$132","v":142},{"$f":"CntyDataLinkPrior5YearEstimates!$O$132","v":34.727510708370673},0.15384615384615385,{"$f":"CntyDataLink!$N$132","v":209},{"$f":"CntyDataLink!$O$132","v":48.559242168715933},0.23068432671081679,0.47183098591549294,{"$f":"StatisticallySignificantCalcs!$A8","v":"Y"}]
[null,null,null,null,null,null,null,null,null,null,"65 to 74 yrs.",{"$f":"CntyDataLinkPrior10YearEstimate!$P$132","v":153},null,{"$f":"CntyDataLinkPrior10YearEstimate!$Q$132","v":65.238025721200358},0.18613138686131386,{"$f":"CntyDataLinkPrior5YearEstimates!$P$132","v":105},{"$f":"CntyDataLinkPrior5YearEstimates!$Q$132","v":33.361654635224554},0.11375947995666305,{"$f":"CntyDataLink!$P$132","v":205},{"$f":"CntyDataLink!$Q$132","v":47.47630988187688},0.22626931567328917,0.95238095238095233,{"$f":"StatisticallySignificantCalcs!$A9","v":"Y"}]
[null,null,null,null,null,null,null,null,null,null,"Over 74 yrs. ",{"$f":"CntyDataLinkPrior10YearEstimate!$R$132","v":60},null,{"$f":"CntyDataLinkPrior10YearEstimate!$S$132","v":123.25988804148737},7.2992700729927001E-2,{"$f":"CntyDataLinkPrior5YearEstimates!$R$132","v":47},{"$f":"CntyDataLinkPrior5YearEstimates!$S$132","v":19.949937343260004},5.0920910075839654E-2,{"$f":"CntyDataLink!$R$132","v":77},{"$f":"CntyDataLink!$S$132","v":26.19160170741759},8.4988962472406185E-2,0.63829787234042556,{"$f":"StatisticallySignificantCalcs!$A10","v":"Y"}]
[null,null,null,null,null,null,null,null,null,null,"Median Age (years)",{"$f":"CntyDataLinkPrior10YearEstimate!$AX132","v":51},null,{"$f":"CntyDataLinkPrior10YearEstimate!$AY$132","v":4.5999999999999996},null,{"$f":"CntyDataLinkPrior5YearEstimates!$AX132","v":42.9},{"$f":"CntyDataLinkPrior5YearEstimates!$AY$132","v":9.3000000000000007},null,{"$f":"CntyDataLink!$AX$132","v":57.1},{"$f":"CntyDataLink!$AY$132","v":2.8}]
[]
[null,"Population By Race",null,null,null,null,null,null,null,null,null,null,"Statistically Significant Change"]
[null,null,null,null,null,null,null,null,null,null,null,null,{"$f":"IF(L36=\"\",\"-\",StatisticallySignificantCalcs!A20)","v":"N"}]
[null,null,"2005-2009",null,null,"2010-2014",null,null,"2015-2019",null,null,"Statistically Significant Change"]
[null,null,"Estimate","Margin of Error",null,"Estimate","Margin of Error",null,"Estimate","Margin of Error",null,"2009-2019","2014-2019"]
[null,"White",{"$f":"CntyDataLinkPrior10YearEstimate!$AL$132","v":814},{"$f":"CntyDataLinkPrior10YearEstimate!$AM$132","v":165},{"$f":"IF(C$36=\"-\",\"-\",VALUE(C36/$C$41))","v":0.99026763990267641},{"$f":"CntyDataLinkPrior5YearEstimates!$AL$132","v":897},{"$f":"CntyDataLinkPrior5YearEstimates!$AM$132","v":166},{"$f":"IF(F$36=\"-\",\"-\",VALUE(F36/$F$41))","v":0.971830985915493},{"$f":"CntyDataLink!$AL$132","v":861},{"$f":"CntyDataLink!$AM$132","v":131},{"$f":"IF(I$36=\"-\",\"-\",VALUE(I36/$I$41))","v":0.95033112582781454},{"$f":"StatisticallySignificantCalcs!A20","v":"N"},{"$f":"StatisticallySignificantCalcs!J20","v":"N"}]
[null,"Black",{"$f":"CntyDataLinkPrior10YearEstimate!$AN132","v":0},{"$f":"CntyDataLinkPrior10YearEstimate!$AO$132","v":114},{"$f":"IF(C$37=\"-\",\"-\",VALUE(C37/$C$41))","v":0},{"$f":"CntyDataLinkPrior5YearEstimates!$AN132","v":0},{"$f":"CntyDataLinkPrior5YearEstimates!$AO$132","v":11},{"$f":"IF(F$37=\"-\",\"-\",VALUE(F37/$F$41))","v":0},{"$f":"CntyDataLink!$AN$132","v":0},{"$f":"CntyDataLink!$AO$132","v":11},{"$f":"IF(I$37=\"-\",\"-\",VALUE(I37/$I$41))","v":0},{"$f":"StatisticallySignificantCalcs!A21","v":"N"},{"$f":"StatisticallySignificantCalcs!J21","v":"N"}]
[null,"American Indian",{"$f":"CntyDataLinkPrior10YearEstimate!$AP$132","v":0},{"$f":"CntyDataLinkPrior10YearEstimate!$AQ$132","v":114},{"$f":"IF(C$38=\"-\",\"-\",VALUE(C38/$C$41))","v":0},{"$f":"CntyDataLinkPrior5YearEstimates!$AP$132","v":0},{"$f":"CntyDataLinkPrior5YearEstimates!$AQ$132","v":11},{"$f":"IF(F$38=\"-\",\"-\",VALUE(F38/$F$41))","v":0},{"$f":"CntyDataLink!$AP$132","v":0},{"$f":"CntyDataLink!$AQ$132","v":11},{"$f":"IF(I$38=\"-\",\"-\",VALUE(I38/$I$41))","v":0},{"$f":"StatisticallySignificantCalcs!A22","v":"N"},{"$f":"StatisticallySignificantCalcs!J22","v":"N"}]
[null,"Asian &Pacific Is.",{"$f":"CntyDataLinkPrior10YearEstimate!$AR$132","v":0},{"$f":"CntyDataLinkPrior10YearEstimate!$AS$132","v":161.22034611053283},{"$f":"IF(C$39=\"-\",\"-\",VALUE(C39/$C$41))","v":0},{"$f":"CntyDataLinkPrior5YearEstimates!$AR$132","v":16},{"$f":"CntyDataLinkPrior5YearEstimates!$AS$132","v":21.95449840010015},{"$f":"IF(F$39=\"-\",\"-\",VALUE(F39/$F$41))","v":1.7334777898158179E-2},{"$f":"CntyDataLink!$AR$132","v":8},{"$f":"CntyDataLink!$AS$132","v":16.278820596099706},{"$f":"IF(I$39=\"-\",\"-\",VALUE(I39/$I$41))","v":8.8300220750551876E-3},{"$f":"StatisticallySignificantCalcs!A23","v":"N"},{"$f":"StatisticallySignificantCalcs!J23","v":"N"}]
[null,"Other*",{"$f":"CntyDataLinkPrior10YearEstimate!$AT$132","v":8},{"$f":"CntyDataLinkPrior10YearEstimate!$AU$132","v":114.52947218947619},{"$f":"IF(C$40=\"-\",\"-\",VALUE(C40/$C$41))","v":9.7323600973236012E-3},{"$f":"CntyDataLinkPrior5YearEstimates!$AT$132","v":10},{"$f":"CntyDataLinkPrior5YearEstimates!$AU$132","v":14.212670403551895},{"$f":"IF(F$40=\"-\",\"-\",VALUE(F40/$F$41))","v":1.0834236186348862E-2},{"$f":"CntyDataLink!$AT$132","v":23},{"$f":"CntyDataLink!$AU$132","v":27.313000567495326},{"$f":"IF(I$40=\"-\",\"-\",VALUE(I40/$I$41))","v":2.5386313465783666E-2},{"$f":"StatisticallySignificantCalcs!A24","v":"N"},{"$f":"StatisticallySignificantCalcs!J24","v":"N"}]
[null,"Total Population",{"$f":"CntyDataLinkPrior10YearEstimate!$B$132","v":822},{"$f":"CntyDataLinkPrior10YearEstimate!$C$132","v":164},null,{"$f":"CntyDataLinkPrior5YearEstimates!$B$132","v":923},{"$f":"CntyDataLinkPrior5YearEstimates!$C$132","v":163},null,{"$f":"CntyDataLink!$B$132","v":906},{"$f":"CntyDataLink!$C$132","v":134}]
[null,"Hispanic",{"$f":"CntyDataLinkPrior10YearEstimate!$AV$132","v":0},{"$f":"CntyDataLinkPrior10YearEstimate!$AW$132","v":114},{"$f":"IF(C$42=\"-\",\"-\",VALUE(C42/$C$41))","v":0},{"$f":"CntyDataLinkPrior5YearEstimates!$AV132","v":0},{"$f":"CntyDataLinkPrior5YearEstimates!$AW$132","v":11},{"$f":"IF(F$42=\"-\",\"-\",VALUE(F42/$F$41))","v":0},{"$f":"CntyDataLink!$AV$132","v":14},{"$f":"CntyDataLink!$AW$132","v":14},{"$f":"IF(I$42=\"-\",\"-\",VALUE(I42/$I$41))","v":1.5452538631346579E-2},{"$f":"StatisticallySignificantCalcs!A26","v":"Y"},{"$f":"StatisticallySignificantCalcs!J26","v":"Y"}]
[]
[null,"*","Other includes population of 2 or more races"]
[]
[null,{"$f":"\"Source: \"& L20&\", \"&P20&\", and \"&S20&\" American Community Survey Table B03002\"","v":"Source: 2005-2009, 2010-2014, and 2015-2019 American Community Survey Table B03002"}]
[]
[null,null,"Households and Families"]
[null,null,null,"2005-2009",null,null,"2010-2014",null,null,"2015-2019",null,null,null,"Percent Change 2009-2019",null,"Percent Change 2010-2019"]
[null,null,null,"Estimate","Margin of Error",null,"Estimate","Margin of Error",null,"Estimate","Margin of Error"]
[null,null,"Total Households",{"$f":"CntyDataLinkPrior10YearEstimate!$T$132","v":343},{"$f":"CntyDataLinkPrior10YearEstimate!$U$132","v":60},null,{"$f":"CntyDataLinkPrior5YearEstimates!$T$132","v":347},{"$f":"CntyDataLinkPrior5YearEstimates!$U$132","v":44},null,{"$f":"CntyDataLink!$T$132","v":370},{"$f":"CntyDataLink!$U$132","v":51},null,null,{"$f":"(J51-D51)/D51","v":7.8717201166180764E-2},null,{"$f":"(J51-G51)/G51","v":6.6282420749279536E-2}]
[null,null,"Persons per Household",{"$f":"CntyDataLinkPrior10YearEstimate!$BD$132","v":9.7725947521865884},{"$f":"CntyDataLinkPrior10YearEstimate!$BE$132","v":0.28000000000000003},null,{"$f":"CntyDataLinkPrior5YearEstimates!$BD$132","v":0},{"$f":"CntyDataLinkPrior5YearEstimates!$BE$132","v":0},null,{"$f":"CntyDataLink!$BD$132","v":2.4486486486486485},{"$f":"CntyDataLink!$BE$132","v":0.21},null,null,{"$f":"(J52-D52)/D52","v":-0.74943720570212224},null,{"$f":"(J52-G52)/G52","v":{"$error":"#DIV/0!"}}]
[null,null,"Family Households",{"$f":"CntyDataLinkPrior10YearEstimate!$V$132","v":249},{"$f":"CntyDataLinkPrior10YearEstimate!$U$132","v":60},null,{"$f":"CntyDataLinkPrior5YearEstimates!$V$132","v":254},{"$f":"CntyDataLinkPrior5YearEstimates!$U$132","v":44},null,{"$f":"CntyDataLink!$V$132","v":255},{"$f":"CntyDataLink!$U$132","v":51},null,null,2.4096385542168676E-2,null,3.937007874015748E-3]
[null,null,"Persons per Family Household",{"$f":"CntyDataLinkPrior10YearEstimate!$BF$132","v":11.08433734939759},{"$f":"CntyDataLinkPrior10YearEstimate!$BG$132","v":0.68703938953598875},null,{"$f":"CntyDataLinkPrior5YearEstimates!$BF$132","v":2.6599423631123917},{"$f":"CntyDataLinkPrior5YearEstimates!$BG$132","v":0.34},null,{"$f":"CntyDataLink!$BF$132","v":2.9137254901960783},{"$f":"CntyDataLink!$BG$132","v":0.69682239429197579},null,null,-0.73713128729752764,null,9.5409257961039259E-2]
[null,null,"Married-Couple Family Hh",{"$f":"CntyDataLinkPrior10YearEstimate!$X$132","v":236},{"$f":"CntyDataLinkPrior10YearEstimate!$Y$132","v":56},null,{"$f":"CntyDataLinkPrior5YearEstimates!$X$132","v":197},{"$f":"CntyDataLinkPrior5YearEstimates!$Y$132","v":37},null,{"$f":"CntyDataLink!$X$132","v":218},{"$f":"CntyDataLink!$Y$132","v":40},null,null,-7.6271186440677971E-2,null,0.1065989847715736]
[null,null,"Single-Parent Family Hh",{"$f":"CntyDataLinkPrior10YearEstimate!$Z$132","v":13},{"$f":"CntyDataLinkPrior10YearEstimate!$AA$132","v":13},null,{"$f":"CntyDataLinkPrior5YearEstimates!$Z$132","v":57},{"$f":"CntyDataLinkPrior5YearEstimates!$AA$132","v":25},null,{"$f":"CntyDataLink!$Z$132","v":37},{"$f":"CntyDataLink!$AA$132","v":19},null,null,1.8461538461538463,null,-0.35087719298245612]
[null,null,"Non-Family Households",{"$f":"CntyDataLinkPrior10YearEstimate!$AF$132","v":94},{"$f":"CntyDataLinkPrior10YearEstimate!$AG$132","v":42},null,{"$f":"CntyDataLinkPrior5YearEstimates!$AF$132","v":93},{"$f":"CntyDataLinkPrior5YearEstimates!$AG$132","v":35},null,{"$f":"CntyDataLink!$AF$132","v":115},{"$f":"CntyDataLink!$AG$132","v":28},null,null,0.22340425531914893,null,0.23655913978494625]
[null,null,"Persons per Non-Family Hh",{"$f":"CntyDataLinkPrior10YearEstimate!$BH$132","v":6.2978723404255321},{"$f":"CntyDataLinkPrior10YearEstimate!$BI$132","v":0.64262739858531381},null,{"$f":"CntyDataLinkPrior5YearEstimates!$BH$132","v":3.2244094488188977},{"$f":"CntyDataLinkPrior5YearEstimates!$BI$132","v":0.87477122368577853},null,{"$f":"CntyDataLink!$BH$132","v":1.4173913043478261},{"$f":"CntyDataLink!$BI$132","v":0.58977131949376993},null,null,-0.77494124559341948,null,-0.56041832563571692]
[]
[]
[null,"As a result of changes in the American Community Survey, direct comparisons between the data should be made with caution."]
[]
[null,"Source: 2005-2009, 2010-2014, and 2015-2019 American Community Survey Table B11001"]
[null,"POPULATION CHARACTERISTICS"]

{"sheet":"SchoolEnrolEduAttain","index":4,"n_rows":67,"n_cols":17,"rows_kept":67,"cut":false,"hidden":true,"merged":[[20,15,20,16],[49,15,49,16],[20,5,20,7],[49,5,49,7],[20,8,20,10],[20,11,20,13],[49,8,49,10]]}
[]
[null,null,{"$f":"CntyDataLink!A50","v":"Acworth"}]
[null,null,"SOCIAL CHARACTERISTICS"]
[]
[]
[]
[]
[]
[]
[]
[]
[]
[]
[]
[]
[]
[]
[]
[]
[]
[null,null,"School Enrollment",null,null,"2005-2009",null,null,"2010-2014",null,null,"2015-2019",null,null,null,"Statistically Significant Change"]
[null,null,null,null,null,"Estimate"," Margin of Error","Percent of Population","Estimate"," Margin of Error","Percent of Population","Estimate"," Margin of Error","Percent of Population",null,"2009-2019","2014-2019"]
[null,null,"Population 3 years and over",null,null,{"$f":"CntyDataLinkPrior10YearEstimate!$B$140","v":12550},{"$f":"CntyDataLinkPrior10YearEstimate!$C$140","v":133},null,{"$f":"CntyDataLinkPrior5YearEstimates!$B$140","v":12660},{"$f":"CntyDataLinkPrior5YearEstimates!$C$140","v":130},null,{"$f":"CntyDataLink!$B$140","v":4916},{"$f":"CntyDataLink!$C$140","v":91},null,null,{"$f":"StatisticallySignificantCalcs!$A$45","v":"Y"},{"$f":"StatisticallySignificantCalcs!$J$45","v":"Y"}]
[null,null,"Population 3 years & over enrolled in school",null,null,{"$f":"CntyDataLinkPrior10YearEstimate!$D$140","v":2637},{"$f":"CntyDataLinkPrior10YearEstimate!$E$140","v":285},{"$f":"F24/$F$23","v":0.21011952191235059},{"$f":"CntyDataLinkPrior5YearEstimates!$D$140","v":2620},{"$f":"CntyDataLinkPrior5YearEstimates!$E$140","v":267},{"$f":"I24/$I$23","v":0.20695102685624012},{"$f":"CntyDataLink!$D$140","v":742},{"$f":"CntyDataLink!$E$140","v":212},{"$f":"L24/$L$23","v":0.15093572009764036},null,{"$f":"StatisticallySignificantCalcs!$A$46","v":"Y"},{"$f":"StatisticallySignificantCalcs!$J$46","v":"Y"}]
[null,null,"Preprimary (Nursery, Preschool, Kindergarten)",null,null,{"$f":"CntyDataLinkPrior10YearEstimate!$F$140","v":275},{"$f":"CntyDataLinkPrior10YearEstimate!$G$140","v":118.25819210524064},2.1912350597609563E-2,{"$f":"CntyDataLinkPrior5YearEstimates!$F$140","v":325},{"$f":"CntyDataLinkPrior5YearEstimates!$G$140","v":119.47384651043926},{"$f":"I25/$I$23","v":2.5671406003159557E-2},{"$f":"CntyDataLink!$F$140","v":113},{"$f":"CntyDataLink!$G$140","v":99.126182212370111},2.2986167615947926E-2,null,{"$f":"StatisticallySignificantCalcs!$A$47","v":"Y"},{"$f":"StatisticallySignificantCalcs!$J$47","v":"Y"}]
[null,null,"        Nursery school and Preschool",null,null,{"$f":"CntyDataLinkPrior10YearEstimate!$H$140","v":137},{"$f":"CntyDataLinkPrior10YearEstimate!$I$140","v":79},1.0916334661354582E-2,{"$f":"CntyDataLinkPrior5YearEstimates!$H$140","v":141},{"$f":"CntyDataLinkPrior5YearEstimates!$I$140","v":75},1.1137440758293839E-2,{"$f":"CntyDataLink!$H$140","v":33},{"$f":"CntyDataLink!$I$140","v":51},6.7127746135069166E-3,null,{"$f":"StatisticallySignificantCalcs!$A$48","v":"Y"},{"$f":"StatisticallySignificantCalcs!$J$48","v":"Y"}]
[null,null,"        Kindergarten",null,null,{"$f":"CntyDataLinkPrior10YearEstimate!$J$140","v":138},{"$f":"CntyDataLinkPrior10YearEstimate!$K$140","v":88},1.0996015936254979E-2,{"$f":"CntyDataLinkPrior5YearEstimates!$J$140","v":184},{"$f":"CntyDataLinkPrior5YearEstimates!$K$140","v":93},1.4533965244865719E-2,{"$f":"CntyDataLink!$J$140","v":80},{"$f":"CntyDataLink!$K$140","v":85},1.627339300244101E-2,null,{"$f":"StatisticallySignificantCalcs!$A$49","v":"N"},{"$f":"StatisticallySignificantCalcs!$J$49","v":"N"}]
[null,null,"Elementary through High school",null,null,{"$f":"CntyDataLinkPrior10YearEstimate!$P$140","v":1883},{"$f":"CntyDataLinkPrior10YearEstimate!$Q$140","v":297.85231239659697},0.15003984063745021,{"$f":"CntyDataLinkPrior5YearEstimates!$P$140","v":1927},{"$f":"CntyDataLinkPrior5YearEstimates!$Q$140","v":309.03236076501764},0.15221169036334914,{"$f":"CntyDataLink!$P$140","v":604},{"$f":"CntyDataLink!$Q$140","v":176.37743619862491},0.12286411716842961,null,{"$f":"StatisticallySignificantCalcs!$A$50","v":"Y"},{"$f":"StatisticallySignificantCalcs!$J$50","v":"Y"}]
[null,null,"        Elementary school (grades 1-8)",null,null,{"$f":"CntyDataLinkPrior10YearEstimate!$L$140","v":1371},{"$f":"CntyDataLinkPrior10YearEstimate!$M$140","v":254.95097567963924},0.10924302788844621,{"$f":"CntyDataLinkPrior5YearEstimates!$L$140","v":1191},{"$f":"CntyDataLinkPrior5YearEstimates!$M$140","v":246.78938388836744},9.4075829383886256E-2,{"$f":"CntyDataLink!$L$140","v":443},{"$f":"CntyDataLink!$M$140","v":143.17821063276352},9.0113913751017086E-2,null,{"$f":"StatisticallySignificantCalcs!$A$51","v":"Y"},{"$f":"StatisticallySignificantCalcs!$J$51","v":"Y"}]
[null,null,"        High school (grades 9-12)",null,null,{"$f":"CntyDataLinkPrior10YearEstimate!$N$140","v":512},{"$f":"CntyDataLinkPrior10YearEstimate!$O$140","v":154},4.0796812749003986E-2,{"$f":"CntyDataLinkPrior5YearEstimates!$N$140","v":736},{"$f":"CntyDataLinkPrior5YearEstimates!$O$140","v":186},5.8135860979462876E-2,{"$f":"CntyDataLink!$N$140","v":161},{"$f":"CntyDataLink!$O$140","v":103},3.2750203417412534E-2,null,{"$f":"StatisticallySignificantCalcs!$A$52","v":"Y"},{"$f":"StatisticallySignificantCalcs!$J$52","v":"Y"}]
[null,null,"College or Graduate School",null,null,{"$f":"CntyDataLinkPrior10YearEstimate!$R$140","v":479},{"$f":"CntyDataLinkPrior10YearEstimate!$S$140","v":179.42407865166817},3.8167330677290834E-2,{"$f":"CntyDataLinkPrior5YearEstimates!$R$140","v":368},{"$f":"CntyDataLinkPrior5YearEstimates!$S$140","v":132.43866504914644},2.9067930489731438E-2,{"$f":"CntyDataLink!$R$140","v":25},{"$f":"CntyDataLink!$S$140","v":28.844410203711913},5.0854353132628151E-3,null,{"$f":"StatisticallySignificantCalcs!$A$53","v":"Y"},{"$f":"StatisticallySignificantCalcs!$J$53","v":"Y"}]
[]
[null,null,{"$f":"\"Source: \"&F21&\", \"& I21&\" and \"&L21&\" American Community Survey Table B14001\"","v":"Source: 2005-2009, 2010-2014 and 2015-2019 American Community Survey Table B14001"}]
[]
[]
[]
[]
[]
[]
[]
[]
[]
[]
[]
[]
[]
[]
[]
[]
[null,null,"Educational Attainment",null,null,"2005-2009",null,null,"2010-2014",null,null,"2015.-2019",null,null,null,"Statistically Significant Change"]
[null,null,null,null,null,"Estimate"," Margin of Error","Percent of Population","Estimate"," Margin of Error","Percent of Population","Estimate"," Margin of Error","Percent of Population",null,"2009-2019","2014-2019"]
[null,null,"Population 25 years and over",null,null,{"$f":"CntyDataLinkPrior10YearEstimate!$V$140","v":9356},{"$f":"CntyDataLinkPrior10YearEstimate!$W$140","v":246},null,{"$f":"CntyDataLinkPrior5YearEstimates!$V$140","v":9019},{"$f":"CntyDataLinkPrior5YearEstimates!$W$140","v":251},null,{"$f":"CntyDataLink!$V$140","v":3856},{"$f":"CntyDataLink!$W$140","v":202},null,null,{"$f":"StatisticallySignificantCalcs!A54","v":"Y"},{"$f":"StatisticallySignificantCalcs!$J$54","v":"Y"}]
[null,null,"Less than 9th Grade",null,null,{"$f":"CntyDataLinkPrior10YearEstimate!$X$140","v":532},{"$f":"CntyDataLinkPrior10YearEstimate!$Y$140","v":134.96666255042391},{"$f":"F53/$F$52","v":5.6861906797776827E-2},{"$f":"CntyDataLinkPrior5YearEstimates!$X$140","v":259},{"$f":"CntyDataLinkPrior5YearEstimates!$Y$140","v":88.447724673956429},{"$f":"I53/$I$52","v":2.8717152677680453E-2},{"$f":"CntyDataLink!$X$140","v":0},{"$f":"CntyDataLink!$Y$140","v":39.191835884530846},{"$f":"L53/$L$52","v":0},null,{"$f":"StatisticallySignificantCalcs!A55","v":"Y"},{"$f":"StatisticallySignificantCalcs!$J$55","v":"Y"}]
[null,null,"9th to 12th Grade, no Diploma",null,null,{"$f":"CntyDataLinkPrior10YearEstimate!$Z$140","v":579},{"$f":"CntyDataLinkPrior10YearEstimate!$AA$140","v":164.872678148928},{"$f":"F54/$F$52","v":6.1885421120136813E-2},{"$f":"CntyDataLinkPrior5YearEstimates!$Z$140","v":860},{"$f":"CntyDataLinkPrior5YearEstimates!$AA$140","v":182.57053431482311},{"$f":"I54/$I$52","v":9.5354252134382964E-2},{"$f":"CntyDataLink!$Z$140","v":332},{"$f":"CntyDataLink!$AA$140","v":168.38942959699102},{"$f":"L54/$L$52","v":8.6099585062240663E-2},null,{"$f":"StatisticallySignificantCalcs!A56","v":"Y"},{"$f":"StatisticallySignificantCalcs!$J$56","v":"Y"}]
[null,null,"High School Graduate ",null,null,{"$f":"CntyDataLinkPrior10YearEstimate!$AB$140","v":4478},{"$f":"CntyDataLinkPrior10YearEstimate!$AC$140","v":341.01319622560061},0.47862334330910644,{"$f":"CntyDataLinkPrior5YearEstimates!$AB$140","v":3960},{"$f":"CntyDataLinkPrior5YearEstimates!$AC$140","v":336.63036107873575},0.43907306796762391,{"$f":"CntyDataLink!$AB$140","v":1885},{"$f":"CntyDataLink!$AC$140","v":308.05843601498725},0.48884854771784231,null,{"$f":"StatisticallySignificantCalcs!A57","v":"Y"},{"$f":"StatisticallySignificantCalcs!$J$57","v":"Y"}]
[null,null,"Some College, No Degree",null,null,{"$f":"CntyDataLinkPrior10YearEstimate!$AD$140","v":1543},{"$f":"CntyDataLinkPrior10YearEstimate!$AE$140","v":252.9565180026006},0.1649209063702437,{"$f":"CntyDataLinkPrior5YearEstimates!$AD$140","v":1675},{"$f":"CntyDataLinkPrior5YearEstimates!$AE$140","v":248.51156914719283},0.18571903758731567,{"$f":"CntyDataLink!$AD$140","v":610},{"$f":"CntyDataLink!$AE$140","v":183.76343488300387},0.15819502074688796,null,{"$f":"StatisticallySignificantCalcs!A58","v":"Y"},{"$f":"StatisticallySignificantCalcs!$J$58","v":"Y"}]
[null,null,"Associate Degree",null,null,{"$f":"CntyDataLinkPrior10YearEstimate!$AF$140","v":739},{"$f":"CntyDataLinkPrior10YearEstimate!$AG$140","v":214.66252583997982},7.8986746472851643E-2,{"$f":"CntyDataLinkPrior5YearEstimates!$AF$140","v":550},{"$f":"CntyDataLinkPrior5YearEstimates!$AG$140","v":157.20050890502867},6.0982370551058873E-2,{"$f":"CntyDataLink!$AF$140","v":392},{"$f":"CntyDataLink!$AG$140","v":132.13629327327143},0.1016597510373444,null,{"$f":"StatisticallySignificantCalcs!A59","v":"N"},{"$f":"StatisticallySignificantCalcs!$J$59","v":"N"}]
[null,null,"Bachelor's Degree",null,null,{"$f":"CntyDataLinkPrior10YearEstimate!$AH$140","v":1055},{"$f":"CntyDataLinkPrior10YearEstimate!$AI$140","v":240.56599926007831},0.11276186404446345,{"$f":"CntyDataLinkPrior5YearEstimates!$AH$140","v":1293},{"$f":"CntyDataLinkPrior5YearEstimates!$AI$140","v":234.08759044426085},0.14336400931367113,{"$f":"CntyDataLink!$AH$140","v":447},{"$f":"CntyDataLink!$AI$140","v":143.12232530251876},0.11592323651452283,null,{"$f":"StatisticallySignificantCalcs!A60","v":"Y"},{"$f":"StatisticallySignificantCalcs!$J$60","v":"Y"}]
[null,null,"Graduate or Professional Degree",null,null,{"$f":"CntyDataLinkPrior10YearEstimate!$AJ$140","v":205},{"$f":"CntyDataLinkPrior10YearEstimate!$AK$140","v":145.21019247972919},2.1911073108165882E-2,{"$f":"CntyDataLinkPrior5YearEstimates!$AJ$140","v":387},{"$f":"CntyDataLinkPrior5YearEstimates!$AK$140","v":112.31651704001509},4.2909413460472334E-2,{"$f":"CntyDataLink!$AJ$140","v":190},{"$f":"CntyDataLink!$AK$140","v":118.04660096758398},4.9273858921161824E-2,null,{"$f":"StatisticallySignificantCalcs!A61","v":"Y"},{"$f":"StatisticallySignificantCalcs!$J$61","v":"Y"}]
[]
[null,null,"Percent of High School Graduate or Higher",null,null,null,null,{"$f":"SUM(F55:F59)/F52","v":0.85720393330483113},null,null,{"$f":"SUM(I55:I59)/I52","v":0.87204789888014189},null,null,{"$f":"SUM(L55:L59)/L52","v":0.91390041493775931}]
[null,null,"Percent of Bachelor's Degree or Higher",null,null,null,null,{"$f":"SUM(F58:F59)/F52","v":0.13467293715262932},null,null,{"$f":"SUM(I58:I59)/I52","v":0.18627342277414347},null,null,{"$f":"SUM(L58:L59)/L52","v":0.16519709543568464}]
[]
[null,null,{"$f":"\"Source: \"&F21&\", \"&I21&\" and \"&L21&\" American Community Survey Table B15002\"","v":"Source: 2005-2009, 2010-2014 and 2015-2019 American Community Survey Table B15002"},null,null,null,null,"Data from the American Community Survey are estimates"]
[]
[null,null,"As a result of changes in the American Community Survey, direct comparisons between the data should be made with caution."]
[null,null,"be made with caution."]

{"sheet":"HousingCharacteristics","index":5,"n_rows":112,"n_cols":16,"rows_kept":112,"cut":false,"hidden":true,"merged":[[68,14,68,15],[85,14,85,15],[27,2,27,4],[27,5,27,7],[27,8,27,10],[27,11,27,12],[27,14,27,15],[85,2,85,4],[85,6,85,8],[85,10,85,12],[68,3,68,5],[68,6,68,8],[68,9,68,11],[68,12,68,13]]}
[]
[null,{"$f":"CntyDataLink!$A35","v":"Acworth"}]
[]
[null,"HOUSING CHARACTERISTICS"]
[]
[]
[]
[]
[]
[]
[]
[]
[]
[]
[]
[]
[]
[]
[]
[]
[]
[]
[]
[]
[]
[]
[null,null,null,{"$f":"\"Source:  \"& \" \"&D69&\", \"&G69&\" and \"&J69& \" American Community Survey Table B25024; B25032\"","v":"Source:   2005-2009, 2010-2014 and 2015-2019 American Community Survey Table B25024; B25032"}]
[null,null,"2005-2009",null,null,"2010-2014",null,null,"2015-2019",null,null,"Percent Change",null,null,"Statistically Significant Change"]
[null,null,"Estimate","Margin of Error","%","Estimate","Margin of Error","%","Estimate","Margin of Error","%","2009-2019","2014-2019",null,"2009-2019","2014-2019"]
[null,"Total Units",{"$f":"CntyDataLinkPrior10YearEstimate!$B$108","v":511},{"$f":"CntyDataLinkPrior5YearEstimates!$C$108","v":51},null,{"$f":"CntyDataLinkPrior5YearEstimates!$B$108","v":556},{"$f":"CntyDataLinkPrior5YearEstimates!$C$108","v":51},null,{"$f":"CntyDataLink!$B$108","v":587},{"$f":"CntyDataLink!$C$108","v":53},null,{"$f":"IF(I30=\"-\",\"-\",(I30-C30)/C30)","v":0.14872798434442269},{"$f":"IF(I30=\"-\",\"-\",(I30-F30)/F30)","v":5.5755395683453238E-2},null,{"$f":"StatisticallySignificantCalcs!$A60","v":"Y"},{"$f":"StatisticallySignificantCalcs!$J60","v":"Y"}]
[null,"Occupied Units",{"$f":"CntyDataLinkPrior10YearEstimate!$D$108","v":343},{"$f":"CntyDataLinkPrior5YearEstimates!$E$108","v":44},{"$f":"ROUND(C31/C30,2)*100&\"% of Total\"","v":"67% of Total"},{"$f":"CntyDataLinkPrior5YearEstimates!$D$108","v":347},{"$f":"CntyDataLinkPrior5YearEstimates!$E$108","v":44},{"$f":"ROUND(F31/F30,2)*100&\"% of Total\"","v":"62% of Total"},{"$f":"CntyDataLink!$D$108","v":370},{"$f":"CntyDataLink!$E$108","v":51},{"$f":"ROUND(I31/I30,2)*100&\"% of Total\"","v":"63% of Total"},{"$f":"IF(I31=\"-\",\"-\",(I31-C31)/C31)","v":7.8717201166180764E-2},6.6282420749279536E-2,null,{"$f":"StatisticallySignificantCalcs!$A61","v":"Y"},{"$f":"StatisticallySignificantCalcs!$J61","v":"Y"}]
[null,"Owner Occupied",{"$f":"CntyDataLinkPrior10YearEstimate!$F$108","v":300},{"$f":"CntyDataLinkPrior5YearEstimates!$G$108","v":40},{"$f":"ROUND(C32/C31,2)*100&\"% of Occ.\"","v":"87% of Occ."},{"$f":"CntyDataLinkPrior5YearEstimates!$F$108","v":274},{"$f":"CntyDataLinkPrior5YearEstimates!$G$108","v":40},{"$f":"ROUND(F32/F31,2)*100&\"% of Occ.\"","v":"79% of Occ."},{"$f":"CntyDataLink!$F$108","v":340},{"$f":"CntyDataLink!$G$108","v":50},{"$f":"ROUND(I32/I31,2)*100&\"% of Occ.\"","v":"92% of Occ."},{"$f":"IF(I32=\"-\",\"-\",(I32-C32)/C32)","v":0.13333333333333333},0.24087591240875914,null,{"$f":"StatisticallySignificantCalcs!$A62","v":"N"},{"$f":"StatisticallySignificantCalcs!$J62","v":"Y"}]
[null,"Renter Occupied",{"$f":"CntyDataLinkPrior10YearEstimate!$H$108","v":43},{"$f":"CntyDataLinkPrior5YearEstimates!$I$108","v":32},{"$f":"ROUND(C33/C31,2)*100&\"% of Occ.\"","v":"13% of Occ."},{"$f":"CntyDataLinkPrior5YearEstimates!$H$108","v":73},{"$f":"CntyDataLinkPrior5YearEstimates!$I$108","v":32},{"$f":"ROUND(F33/F31,2)*100&\"% of Occ.\"","v":"21% of Occ."},{"$f":"CntyDataLink!$H$108","v":30},{"$f":"CntyDataLink!$I$108","v":16},{"$f":"ROUND(I33/I31,2)*100&\"% of Occ.\"","v":"8% of Occ."},{"$f":"IF(I33=\"-\",\"-\",(I33-C33)/C33)","v":-0.30232558139534882},-0.58904109589041098,null,{"$f":"StatisticallySignificantCalcs!$A63","v":"N"},{"$f":"StatisticallySignificantCalcs!$J63","v":"Y"}]
[null,"Vacant Units",{"$f":"CntyDataLinkPrior10YearEstimate!$J$108","v":168},{"$f":"CntyDataLinkPrior5YearEstimates!$K$108","v":47},{"$f":"ROUND(C34/C30,2)*100&\"% of Total\"","v":"33% of Total"},{"$f":"CntyDataLinkPrior5YearEstimates!$J$108","v":209},{"$f":"CntyDataLinkPrior5YearEstimates!$K$108","v":47},{"$f":"ROUND(F34/F30,2)*100&\"% of Total\"","v":"38% of Total"},{"$f":"CntyDataLink!$J$108","v":217},{"$f":"CntyDataLink!$K$108","v":39},{"$f":"ROUND(I34/I30,2)*100&\"% of Total\"","v":"37% of Total"},{"$f":"IF(I34=\"-\",I34,VALUE((I34-C34)/C34))","v":0.29166666666666669},3.8277511961722487E-2,null,{"$f":"StatisticallySignificantCalcs!$A64","v":"N"},{"$f":"StatisticallySignificantCalcs!$J64","v":"N"}]
[null,"Vacant For Sale",{"$f":"CntyDataLinkPrior10YearEstimate!$P$108","v":5},{"$f":"CntyDataLinkPrior5YearEstimates!$Q$108","v":14},{"$f":"ROUND(C35/(C32+C35),3)*100&\"% Vac.\"","v":"1.6% Vac."},{"$f":"CntyDataLinkPrior5YearEstimates!$P$108","v":17},{"$f":"CntyDataLinkPrior5YearEstimates!$Q$108","v":14},{"$f":"ROUND(F35/(F32+F35),3)*100&\"% Vac.\"","v":"5.8% Vac."},{"$f":"CntyDataLink!$P$108","v":0},{"$f":"CntyDataLink!$Q$108","v":11},{"$f":"ROUND(I35/(I32+I35),3)*100&\"% Vac.\"","v":"0% Vac."},{"$f":"IF(I35=\"-\",I35,VALUE((I35-C35)/C35))","v":-1},-1,null,{"$f":"StatisticallySignificantCalcs!$A65","v":"N"},{"$f":"StatisticallySignificantCalcs!$J65","v":"N"}]
[null,"Vacant For Rent",{"$f":"CntyDataLinkPrior10YearEstimate!$L$108","v":10},{"$f":"CntyDataLinkPrior5YearEstimates!$M$108","v":11},{"$f":"ROUND(C36/(C33+C36),3)*100&\"% Vac.\"","v":"18.9% Vac."},{"$f":"CntyDataLinkPrior5YearEstimates!$L$108","v":0},{"$f":"CntyDataLinkPrior5YearEstimates!$M$108","v":11},{"$f":"ROUND(F36/(F33+F36),3)*100&\"% Vac.\"","v":"0% Vac."},{"$f":"CntyDataLink!$L$108","v":4},{"$f":"CntyDataLink!$M$108","v":6},{"$f":"ROUND(I36/(I33+I36),3)*100&\"% Vac.\"","v":"11.8% Vac."},{"$f":"IF(I36=\"-\",I36,VALUE((I36-C36)/C36))","v":-0.6},{"$error":"#DIV/0!"},null,{"$f":"StatisticallySignificantCalcs!$A66","v":"N"},{"$f":"StatisticallySignificantCalcs!$J66","v":"N"}]
[null,"Vacant Seasonal",{"$f":"CntyDataLinkPrior10YearEstimate!$T$108","v":142},{"$f":"CntyDataLinkPrior5YearEstimates!$U$108","v":41},{"$f":"ROUND(C37/C30,2)*100&\"% of Total\"","v":"28% of Total"},{"$f":"CntyDataLinkPrior5YearEstimates!$T$108","v":179},{"$f":"CntyDataLinkPrior5YearEstimates!$U$108","v":41},{"$f":"ROUND(F37/F30,2)*100&\"% of Total\"","v":"32% of Total"},{"$f":"CntyDataLink!$T$108","v":192},{"$f":"CntyDataLink!$U$108","v":36},{"$f":"ROUND(I37/I30,2)*100&\"% of Total\"","v":"33% of Total"},{"$f":"IF(I37=\"-\",I37,VALUE((I37-C37)/C37))","v":0.352112676056338},7.2625698324022353E-2,null,{"$f":"StatisticallySignificantCalcs!$A67","v":"N"},{"$f":"StatisticallySignificantCalcs!$J67","v":"N"}]
[]
[null,"Data from the American Community Survey are estimates"]
[]
[null,"Data from the American Community Survey are estimates"]
[]
[]
[null,"HOUSING CHARACTERISTICS"]
[]
[]
[]
[]
[]
[]
[]
[]
[]
[]
[]
[]
[]
[]
[]
[]
[]
[]
[]
[]
[null,null,null,{"$f":"\"Source: \"& \" \"&D69&\", \"&G69&\" and \"&J69& \"  American Community Survey Table B25024; B25032\"","v":"Source:  2005-2009, 2010-2014 and 2015-2019  American Community Survey Table B25024; B25032"}]
[]
[null,null,"Units by Type"]
[]
[null,null,null,"2005-2009",null,null,"2010-2014",null,null,"2015-2019",null,null,"Percent Change",null,"Statistically Significant Change"]
[null,null,null,"Estimate","Margin of Error","% of Total","Estimate","Margin of Error","% of Total","Estimate","Margin of Error","% of Total","2009-2019","2014-2019","2009-2019","2014-2019"]
[null,null,"Total Units",{"$f":"CntyDataLinkPrior10YearEstimate!$B$108","v":511},{"$f":"CntyDataLinkPrior10YearEstimate!$C$108","v":73},null,{"$f":"CntyDataLinkPrior5YearEstimates!$B$108","v":556},{"$f":"CntyDataLinkPrior5YearEstimates!$C$108","v":51},null,{"$f":"CntyDataLink!$B$108","v":587},{"$f":"CntyDataLink!$C$108","v":53},null,null,null,{"$f":"StatisticallySignificantCalcs!$A70","v":"N"},{"$f":"StatisticallySignificantCalcs!$J70","v":"N"}]
[null,null,"Single Family Units",{"$f":"CntyDataLinkPrior10YearEstimate!$AT$108","v":439},{"$f":"CntyDataLinkPrior10YearEstimate!$AU$108","v":73},{"$f":"IF(D72=\"-\",\"-\",($D$72/$D$71))","v":0.85909980430528377},{"$f":"CntyDataLinkPrior5YearEstimates!$AT$108","v":507},{"$f":"CntyDataLinkPrior5YearEstimates!$AU$108","v":51},{"$f":"IF(G72=\"-\",\"-\",($G$72/$G$71))","v":0.91187050359712229},{"$f":"CntyDataLink!$AT$108","v":560},{"$f":"CntyDataLink!$AU$108","v":51},{"$f":"IF(J72=\"-\",\"-\",($J$72/$J$71))","v":0.95400340715502552},{"$f":"IF(J72=\"-\",\"-\",($J72-$D72)/$D72)","v":0.27562642369020501},{"$f":"IF(J72=\"-\",\"-\",($J72-$G72)/$G72)","v":0.10453648915187377},{"$f":"StatisticallySignificantCalcs!$A71","v":"Y"},{"$f":"StatisticallySignificantCalcs!$J71","v":"N"}]
[null,null,"SF Owner Occ.",{"$f":"CntyDataLinkPrior10YearEstimate!$AF$108","v":261},{"$f":"CntyDataLinkPrior10YearEstimate!$AG$108","v":58},null,{"$f":"CntyDataLinkPrior5YearEstimates!$AF$108","v":245},{"$f":"CntyDataLinkPrior5YearEstimates!$AG$108","v":37},null,{"$f":"CntyDataLink!$AF$108","v":324},{"$f":"CntyDataLink!$AG$108","v":48},null,null,null,{"$f":"StatisticallySignificantCalcs!$A72","v":"N"},{"$f":"StatisticallySignificantCalcs!$J72","v":"Y"}]
[null,null,"SF Renter Occ.",{"$f":"CntyDataLinkPrior10YearEstimate!$AN$108","v":26},{"$f":"CntyDataLinkPrior10YearEstimate!$AO$108","v":25},null,{"$f":"CntyDataLinkPrior5YearEstimates!$AN$108","v":68},{"$f":"CntyDataLinkPrior5YearEstimates!$AO$108","v":32},null,{"$f":"CntyDataLink!$AN$108","v":28},{"$f":"CntyDataLink!$AO$108","v":16},null,null,null,{"$f":"StatisticallySignificantCalcs!$A73","v":"N"},{"$f":"StatisticallySignificantCalcs!$J73","v":"Y"}]
[null,null,"Multi-family Units",{"$f":"CntyDataLinkPrior10YearEstimate!$AV$108","v":15},{"$f":"CntyDataLinkPrior10YearEstimate!$AW$108","v":255.59538336988797},{"$f":"IF(D75=\"-\",\"-\",$D$75/$D$71)","v":2.9354207436399216E-2},{"$f":"CntyDataLinkPrior5YearEstimates!$AV$108","v":8},{"$f":"CntyDataLinkPrior5YearEstimates!$AW$108","v":25.632011235952593},{"$f":"IF(G75=\"-\",\"-\",$G$75/$G$71)","v":1.4388489208633094E-2},{"$f":"CntyDataLink!$AV$108","v":4},{"$f":"CntyDataLink!$AW$108","v":25.099800796022265},{"$f":"IF(J75=\"-\",\"-\",$J$75/$J$71)","v":6.8143100511073255E-3},{"$f":"IF(J75=\"-\",\"-\",($J75-$D75)/$D75)","v":-0.73333333333333328},{"$f":"IF(J75=\"-\",\"-\",($J75-$G75)/$G75)","v":-0.5},{"$f":"StatisticallySignificantCalcs!$A74","v":"N"},{"$f":"StatisticallySignificantCalcs!$J74","v":"N"}]
[null,null,"MF Owner Occ.",{"$f":"CntyDataLinkPrior10YearEstimate!$AH$108","v":3},{"$f":"CntyDataLinkPrior10YearEstimate!$AI$108","v":279.28659115682586},null,{"$f":"CntyDataLinkPrior5YearEstimates!$AH$108","v":3},{"$f":"CntyDataLinkPrior5YearEstimates!$AI$108","v":27.239676943752471},null,{"$f":"CntyDataLink!$AH$108","v":2},{"$f":"CntyDataLink!$AI$108","v":27.239676943752471},null,null,null,{"$f":"StatisticallySignificantCalcs!$A75","v":"N"},{"$f":"StatisticallySignificantCalcs!$J75","v":"N"}]
[null,null,"MF Renter Occ.",{"$f":"CntyDataLinkPrior10YearEstimate!$AP$108","v":12},{"$f":"CntyDataLinkPrior10YearEstimate!$AQ$108","v":279.82137159266443},null,{"$f":"CntyDataLinkPrior5YearEstimates!$AP$108","v":5},{"$f":"CntyDataLinkPrior5YearEstimates!$AQ$108","v":27.604347483684521},null,{"$f":"CntyDataLink!$AP$108","v":2},{"$f":"CntyDataLink!$AQ$108","v":27.110883423451916},null,null,null,{"$f":"StatisticallySignificantCalcs!$A76","v":"N"},{"$f":"StatisticallySignificantCalcs!$J76","v":"N"}]
[null,null,"Mobile Home & Other",{"$f":"CntyDataLinkPrior10YearEstimate!$AX$108","v":57},{"$f":"CntyDataLinkPrior10YearEstimate!$AY$108","v":117.38824472663352},{"$f":"IF(D78=\"-\",\"-\",($D$78/$D$71))","v":0.11154598825831702},{"$f":"CntyDataLinkPrior5YearEstimates!$AX$108","v":41},{"$f":"CntyDataLinkPrior5YearEstimates!$AY$108","v":20.396078054371138},{"$f":"IF(G78=\"-\",\"-\",($G$78/$G$71))","v":7.3741007194244604E-2},{"$f":"CntyDataLink!$AX$108","v":23},{"$f":"CntyDataLink!$AY$108","v":19.416487838947599},{"$f":"IF(J78=\"-\",\"-\",($J$78/$J$71))","v":3.9182282793867124E-2},{"$f":"IF(J78=\"-\",\"-\",($J78-$D78)/$D78)","v":-0.59649122807017541},{"$f":"IF(J78=\"-\",\"-\",($J78-$G78)/$G78)","v":-0.43902439024390244},{"$f":"StatisticallySignificantCalcs!$A77","v":"N"},{"$f":"StatisticallySignificantCalcs!$J77","v":"N"}]
[]
[null,"Data from the American Community Survey are estimates"]
[]
[]
[null,"Units by Number of Bedrooms "]
[null,null,null,{"$f":"\"Source: \"& \" \"&D69&\", \"&G69&\" and \"&J69& \" American Community Survey Table B25041\"","v":"Source:  2005-2009, 2010-2014 and 2015-2019 American Community Survey Table B25041"}]
[]
[null,null,"2005-2009",null,null,null,"2010-2014",null,null,null,"2015-2019",null,null,null,"Statistically Significant Change"]
[null,"Bedrooms","Estimate","Margin of Error","% of Total",null,"Estimate","Margin of Error","% of Total",null,"Estimate","Margin of Error","% of Total",null,"2009-2019","2014-2019"]
[null,"No Bedrooms",{"$f":"CntyDataLinkPrior10YearEstimate!$BR$108","v":14},{"$f":"CntyDataLinkPrior10YearEstimate!$BS$108","v":11},{"$f":"C88/SUM($C$88:$C$92)","v":2.7397260273972601E-2},null,{"$f":"CntyDataLinkPrior5YearEstimates!$BR$108","v":21},{"$f":"CntyDataLinkPrior5YearEstimates!$BS$108","v":18},{"$f":"G88/SUM($G$88:$G$92)","v":3.7769784172661872E-2},null,{"$f":"CntyDataLink!$BT$108","v":24},{"$f":"CntyDataLink!$BU$108","v":16},{"$f":"K88/SUM($K$88:$K$92)","v":4.0885860306643949E-2},null,{"$f":"StatisticallySignificantCalcs!$A78","v":"N"},{"$f":"StatisticallySignificantCalcs!$J78","v":"N"}]
[null,"1 Bedroom",{"$f":"CntyDataLinkPrior10YearEstimate!$BT$108","v":50},{"$f":"CntyDataLinkPrior10YearEstimate!$BU$108","v":27},{"$f":"C89/SUM($C$88:$C$92)","v":9.7847358121330719E-2},null,{"$f":"CntyDataLinkPrior5YearEstimates!$BT$108","v":48},{"$f":"CntyDataLinkPrior5YearEstimates!$BU$108","v":24},{"$f":"G89/SUM($G$88:$G$92)","v":8.6330935251798566E-2},null,{"$f":"CntyDataLink!$BV$108","v":64},{"$f":"CntyDataLink!$BW$108","v":23},{"$f":"K89/SUM($K$88:$K$92)","v":0.10902896081771721},null,{"$f":"StatisticallySignificantCalcs!$A79","v":"Y"},{"$f":"StatisticallySignificantCalcs!$J79","v":"N"}]
[null,"2 Bedrooms",{"$f":"CntyDataLinkPrior10YearEstimate!$BV$108","v":179},{"$f":"CntyDataLinkPrior10YearEstimate!$BW$108","v":57},{"$f":"C90/SUM($C$88:$C$92)","v":0.35029354207436397},null,{"$f":"CntyDataLinkPrior5YearEstimates!$BV$108","v":180},{"$f":"CntyDataLinkPrior5YearEstimates!$BW$108","v":37},{"$f":"G90/SUM($G$88:$G$92)","v":0.32374100719424459},null,{"$f":"CntyDataLink!$BX$108","v":160},{"$f":"CntyDataLink!$BY$108","v":37},{"$f":"K90/SUM($K$88:$K$92)","v":0.27257240204429301},null,{"$f":"StatisticallySignificantCalcs!$A80","v":"Y"},{"$f":"StatisticallySignificantCalcs!$J80","v":"N"}]
[null,"3 Bedrooms",{"$f":"CntyDataLinkPrior10YearEstimate!$BX$108","v":179},{"$f":"CntyDataLinkPrior10YearEstimate!$BY$108","v":48},{"$f":"C91/SUM($C$88:$C$92)","v":0.35029354207436397},null,{"$f":"CntyDataLinkPrior5YearEstimates!$BX$108","v":216},{"$f":"CntyDataLinkPrior5YearEstimates!$BY$108","v":46},{"$f":"G91/SUM($G$88:$G$92)","v":0.38848920863309355},null,{"$f":"CntyDataLink!$BZ$108","v":235},{"$f":"CntyDataLink!$CA$108","v":46},{"$f":"K91/SUM($K$88:$K$92)","v":0.40034071550255534},null,{"$f":"StatisticallySignificantCalcs!$A81","v":"Y"},{"$f":"StatisticallySignificantCalcs!$J81","v":"N"}]
[null,"4+ Bedrooms",{"$f":"CntyDataLinkPrior10YearEstimate!$BZ$108","v":89},{"$f":"CntyDataLinkPrior10YearEstimate!$CA$108","v":50.119856344566671},{"$f":"C92/SUM($C$88:$C$92)","v":0.17416829745596868},null,{"$f":"CntyDataLinkPrior5YearEstimates!$BZ$108","v":91},{"$f":"CntyDataLinkPrior5YearEstimates!$CA$108","v":30.413812651491099},{"$f":"G92/SUM($G$88:$G$92)","v":0.16366906474820145},null,{"$f":"CntyDataLink!$CB$108","v":104},{"$f":"CntyDataLink!$CC$108","v":30.413812651491099},{"$f":"K92/SUM($K$88:$K$92)","v":0.17717206132879046},null,{"$f":"StatisticallySignificantCalcs!$A82","v":"N"},{"$f":"StatisticallySignificantCalcs!$J82","v":"N"}]
[]
[null,"As a result of changes in the American Community Survey, direct comparisons between the 2009-2013 and 2015-2019 data should be made with caution."]
[null,"Data from the American Community Survey are estimates"]
[]
[null,"Units by Year Built   "]
[null,{"$f":"\"Source: \"&K86& \" American Community Survey Table B25034\"","v":"Source: 2015-2019 American Community Survey Table B25034"}]
[]
[null,null,null,"Year Built",null,null,"Units  ",null,"% of Total",null,"Margin of Error"]
[null,null,null,null,null,"2014 or later",{"$f":"CntyDataLink!$AZ$108","v":17},null,{"$f":"G101/SUM($G$101:$G$110)","v":2.8960817717206135E-2},null,{"$f":"CntyDataLink!$BA$108","v":12}]
[null,null,null,null,null,"2010 through 2013",{"$f":"CntyDataLink!$BB$108","v":21},null,3.5775127768313458E-2,null,{"$f":"CntyDataLink!$BC$108","v":16}]
[null,null,null,null,null,"2000 through 2009",{"$f":"CntyDataLink!$BD$108","v":51},null,8.6882453151618397E-2,null,{"$f":"CntyDataLink!$BE$108","v":23}]
[null,null,null,null,null,"1990 through 1999",{"$f":"CntyDataLink!$BF$108","v":54},null,9.1993185689948895E-2,null,{"$f":"CntyDataLink!$BG$108","v":19}]
[null,null,null,null,null,"1980 through 1989",{"$f":"CntyDataLink!$BH$108","v":86},null,0.1465076660988075,null,{"$f":"CntyDataLink!$BI$108","v":30}]
[null,null,null,null,null,"1970 through 1979",{"$f":"CntyDataLink!$BJ$108","v":75},null,0.12776831345826234,null,{"$f":"CntyDataLink!$BK$108","v":29}]
[null,null,null,null,null,"1960 through 1969",{"$f":"CntyDataLink!$BL$108","v":35},null,5.9625212947189095E-2,null,{"$f":"CntyDataLink!$BM$108","v":18}]
[null,null,null,null,null,"1950 through 1959",{"$f":"CntyDataLink!$BN$108","v":64},null,0.10902896081771721,null,{"$f":"CntyDataLink!$BO$108","v":25}]
[null,null,null,null,null,"1940 through 1949",{"$f":"CntyDataLink!$BP$108","v":14},null,2.385008517887564E-2,null,{"$f":"CntyDataLink!$BQ$108","v":15}]
[null,null,null,null,null,"1939 and earlier",{"$f":"CntyDataLink!$BR$108","v":170},null,0.28960817717206133,null,{"$f":"CntyDataLink!$BS$108","v":35}]
[]
[null,"Data from the American Community Survey are estimates"]

{"sheet":"CntyDataLink","index":6,"n_rows":167,"n_cols":449,"rows_kept":167,"cut":false,"hidden":true,"merged":[]}
[1,{"$f":"A1+1","v":2},{"$f":"B1+1","v":3},4,5,6,7,8,9,10,11,12,13,14,15,{"$f":"O1+1","v":16},17,18,19,20,21,22,23,24,25,26,27,28,29,30,31,32,33,34,35,36,37,38,39,40,41,42,43,44,45,46,47,48,49,50,51,52,53,54,55,56,57,58,59,60,61,62,63,64,65,66,{"$f":"BN1+1","v":67},68,69,70,71,72,73,74,75,76,77,78,79,80,81,82,83,84,85,86,87,88,89,90,91,92,93,94,95,96,97,98,99,100,101,102,103,104,105,106,107,108,109,110,111,112,113,114,115,116,117,118,119,120,121,122,123,124,125,126,127,128,129,130,{"$f":"DZ1+1","v":131},132,133,134,135,136,137,138,139,140,141,142,143,144,145,146,147,148,149,150,151,152,153,154,155,156,157,158,159,160,161,162,163,164,165,166,167,168,169,170,171,172,173,174,175,176,177,178,179,180,181,182,183,184,185,186,187,188,189,190,191,192,193,194,{"$f":"GL1+1","v":195},196,197,198,199,200,201,202,203,204,205,206,207,208,209,210,211,212,213,214,215,216,217,218,219,220,221,222,223,224,225,226,227,228,229,230,231,232,233,234,235,236,237,238,239,240,241,242,243,244,245,246,247,248,249,250,251,252,253,254,255]
[]
["Census 1990 Data -           Query Name:  DPCnty90Census"]
["TownName","Cnty_Code","Census_Cnty_Code","LandAcres","WaterAcres","HousingUnits90Cen","Persons90Cen","Families90Cen","Households90cen","MalePop90cen","FemalePop90cen","WhitePop","BlackPop","AmerIndianPop","AsianPIPop","OtherRacePop","HispanicOrPop","AgeUnder15_90cen","Age15to24_90cen","Age25to34_90cen","Age35to44_90cen","Age45to54_90cen","Age55to64_90cen","Age65to74_90cen","Age75andOver_90cen","PersonsInHH90cen","PersonsInFamHH90cen","PersonsInGC","PersonsPerHH90cen","PersonsPerFam90Cen","SinglePersonHH90cen","MarriedCoupleHH90cen","SingleParentHH90cen","NonFamilyHH90cen","TotalHousingUnits","OccupiedHousingUnits","VacantHousingUnits","OwnerOccHU","RenterOccHU","VacantForRent90","VacantForSale90","VacantSeasonalRec","SingFamHU90cen","MultiFamHU90cen","MobileHom90cen","SingFamOwnHU90cen","MultiFamOwnHU90cen","MobileHomOwnHU90cen","SingFamRntrHU90cen","MultiFamRntrHU90cen","MobileHomRntrHU90cen","HU<5yrs90cen","HU5to20yrs90cen","HU20to50yrs90cen","HU>50yrs90cen","Units0Bedroom90cen","Units1Bedroom90cen","Units2Bedroom90cen","Units3Bedroom90cen","Units4+Bedroom90cen","HI<5K","HI5Kto10K","HI10Kto15K","HI15Kto25K","HI25Kto35K","HI35Kto50K","HI50Kto75K","HI75Kto100K","HI>100K","MedHI","HH<25HI<5K","HH<25HI5Kto10K","HH<25HI10Kto15K","HH<25HI15Kto25K","HH<25HI25Kto35K","HH<25HI35Kto50K","HH<25HI50Kto75K","HH<25HI75Kto100K","HH<25HI>100K","HH25to34HI<5K","HH25to34HI5Kto10K","HH25to34HI10Kto15K","HH25to34HI15Kto25K","HH25to34HI25Kto35K","HH25to34HI35Kto50K","HH25to34HI50Kto75K","HH25to34HI75Kto100K","HH25to34HI>100K","HH35to44HI<5K","HH35to44HI5Kto10K","HH35to44HI10Kto15K","HH35to44HI15Kto25K","HH35to44HI25Kto35K","HH35to44HI35Kto50K","HH35to44HI50Kto75K","HH35to44HI75Kto100K","HH35to44HI>100K","HH45to54HI<5K","HH45to54HI5Kto10K","HH45to54HI10Kto15K","HH45to54HI15Kto25K","HH45to54HI25Kto35K","HH45to54HI35Kto50K","HH45to54HI50Kto75K","HH45to54HI75Kto100K","HH45to54HI>100K","HH55to64HI<5K","HH55to64HI5Kto10K","HH55to64HI10Kto15K","HH55to64HI15Kto25K","HH55to64HI25Kto35K","HH55to64HI35Kto50K","HH55to64HI50Kto75K","HH55to64HI75Kto100K","HH55to64HI>100K","HH65to74HI<5K","HH65to74HI5Kto10K","HH65to74HI10Kto15K","HH65to74HI15Kto25K","HH65to74HI25Kto35K","HH65to74HI35Kto50K","HH65to74HI50Kto75K","HH65to74HI75Kto100K","HH65to74HI>100K","HH>75HI<5K","HH>75HI5Kto10K","HH>75HI10Kto15K","HH>75HI15Kto25K","HH>75HI25Kto35K","HH>75HI35Kto50K","HH>75HI50Kto75K","HH>75HI75Kto100K","HH>75HI>100K","SchoolEnrollment1thru12","Pop25andOver","HSGradorHigher","CollGradorHigher","NativePop","ForeignBornPop","BornStateOfRes","NativePop2","ForeignBornPop2","DroveAlone","CarPooled","PublicTranspt","Walked","OtherMeans","WorkedAtHome","HHInc<10K","HHInc10to15K","HHInc15to25K","HHInc25to35K","HHInc35to50K","HHInc50to75K","HHInc75to100K","HHInc100to150K","HHInc>150K"]
[{"$f":"VLOOKUP(DropDownList!$A$47,CntyQuery!$A$4:$FI$46,A1)","v":"Acworth"},{"$f":"VLOOKUP(DropDownList!$A$47,CntyQuery!$A$4:$FA$46,B1)","v":19005},{"$f":"VLOOKUP(DropDownList!$A$47,CntyQuery!$A$4:$FA$46,C1)","v":"00260"},{"$f":"VLOOKUP(DropDownList!$A$47,CntyQuery!$A$4:$FA$46,D1)","v":24916.99},{"$f":"VLOOKUP(DropDownList!$A$47,CntyQuery!$A$4:$FA$46,E1)","v":81.95},{"$f":"VLOOKUP(DropDownList!$A$47,CntyQuery!$A$4:$FA$46,F1)","v":507},{"$f":"VLOOKUP(DropDownList!$A$47,CntyQuery!$A$4:$FA$46,G1)","v":776},{"$f":"VLOOKUP(DropDownList!$A$47,CntyQuery!$A$4:$FA$46,H1)","v":219},{"$f":"VLOOKUP(DropDownList!$A$47,CntyQuery!$A$4:$FA$46,I1)","v":285},{"$f":"VLOOKUP(DropDownList!$A$47,CntyQuery!$A$4:$FA$46,J1)","v":394},{"$f":"VLOOKUP(DropDownList!$A$47,CntyQuery!$A$4:$FA$46,K1)","v":382},{"$f":"VLOOKUP(DropDownList!$A$47,CntyQuery!$A$4:$FA$46,L1)","v":773},{"$f":"VLOOKUP(DropDownList!$A$47,CntyQuery!$A$4:$FA$46,M1)","v":0},{"$f":"VLOOKUP(DropDownList!$A$47,CntyQuery!$A$4:$FA$46,N1)","v":0},{"$f":"VLOOKUP(DropDownList!$A$47,CntyQuery!$A$4:$FA$46,O1)","v":3},{"$f":"VLOOKUP(DropDownList!$A$47,CntyQuery!$A$4:$FA$46,P1)","v":0},{"$f":"VLOOKUP(DropDownList!$A$47,CntyQuery!$A$4:$FA$46,Q1)","v":1},{"$f":"VLOOKUP(DropDownList!$A$47,CntyQuery!$A$4:$FA$46,R1)","v":189},{"$f":"VLOOKUP(DropDownList!$A$47,CntyQuery!$A$4:$FA$46,S1)","v":72},{"$f":"VLOOKUP(DropDownList!$A$47,CntyQuery!$A$4:$FA$46,T1)","v":124},{"$f":"VLOOKUP(DropDownList!$A$47,CntyQuery!$A$4:$FA$46,U1)","v":149},{"$f":"VLOOKUP(DropDownList!$A$47,CntyQuery!$A$4:$FA$46,V1)","v":74},{"$f":"VLOOKUP(DropDownList!$A$47,CntyQuery!$A$4:$FA$46,W1)","v":80},{"$f":"VLOOKUP(DropDownList!$A$47,CntyQuery!$A$4:$FA$46,X1)","v":57},{"$f":"VLOOKUP(DropDownList!$A$47,CntyQuery!$A$4:$FA$46,Y1)","v":31},{"$f":"VLOOKUP(DropDownList!$A$47,CntyQuery!$A$4:$FA$46,Z1)","v":776},{"$f":"VLOOKUP(DropDownList!$A$47,CntyQuery!$A$4:$FA$46,AA1)","v":693},{"$f":"VLOOKUP(DropDownList!$A$47,CntyQuery!$A$4:$FA$46,AB1)","v":0},{"$f":"VLOOKUP(DropDownList!$A$47,CntyQuery!$A$4:$FA$46,AC1)","v":2.7228070175438597},{"$f":"VLOOKUP(DropDownList!$A$47,CntyQuery!$A$4:$FA$46,AD1)","v":3.1643835616438358},{"$f":"VLOOKUP(DropDownList!$A$47,CntyQuery!$A$4:$FA$46,AE1)","v":53},{"$f":"VLOOKUP(DropDownList!$A$47,CntyQuery!$A$4:$FA$46,AF1)","v":189},{"$f":"VLOOKUP(DropDownList!$A$47,CntyQuery!$A$4:$FA$46,AG1)","v":30},{"$f":"VLOOKUP(DropDownList!$A$47,CntyQuery!$A$4:$FA$46,AH1)","v":13},{"$f":"VLOOKUP(DropDownList!$A$47,CntyQuery!$A$4:$FA$46,AI1)","v":507},{"$f":"VLOOKUP(DropDownList!$A$47,CntyQuery!$A$4:$FA$46,AJ1)","v":285},{"$f":"VLOOKUP(DropDownList!$A$47,CntyQuery!$A$4:$FA$46,AK1)","v":222},{"$f":"VLOOKUP(DropDownList!$A$47,CntyQuery!$A$4:$FA$46,AL1)","v":246},{"$f":"VLOOKUP(DropDownList!$A$47,CntyQuery!$A$4:$FA$46,AM1)","v":39},{"$f":"VLOOKUP(DropDownList!$A$47,CntyQuery!$A$4:$FA$46,AN1)","v":1},{"$f":"VLOOKUP(DropDownList!$A$47,CntyQuery!$A$4:$FA$46,AO1)","v":3},{"$f":"VLOOKUP(DropDownList!$A$47,CntyQuery!$A$4:$FA$46,AP1)","v":194},{"$f":"VLOOKUP(DropDownList!$A$47,CntyQuery!$A$4:$FA$46,AQ1)","v":448},{"$f":"VLOOKUP(DropDownList!$A$47,CntyQuery!$A$4:$FA$46,AR1)","v":10},{"$f":"VLOOKUP(DropDownList!$A$47,CntyQuery!$A$4:$FA$46,AS1)","v":49},{"$f":"VLOOKUP(DropDownList!$A$47,CntyQuery!$A$4:$FA$46,AT1)","v":222},{"$f":"VLOOKUP(DropDownList!$A$47,CntyQuery!$A$4:$FA$46,AU1)","v":5},{"$f":"VLOOKUP(DropDownList!$A$47,CntyQuery!$A$4:$FA$46,AV1)","v":49},{"$f":"VLOOKUP(DropDownList!$A$47,CntyQuery!$A$4:$FA$46,AW1)","v":30},{"$f":"VLOOKUP(DropDownList!$A$47,CntyQuery!$A$4:$FA$46,AX1)","v":5},{"$f":"VLOOKUP(DropDownList!$A$47,CntyQuery!$A$4:$FA$46,AY1)","v":4},{"$f":"VLOOKUP(DropDownList!$A$47,CntyQuery!$A$4:$FA$46,AZ1)","v":56},{"$f":"VLOOKUP(DropDownList!$A$47,CntyQuery!$A$4:$FA$46,BA1)","v":180},{"$f":"VLOOKUP(DropDownList!$A$47,CntyQuery!$A$4:$FA$46,BB1)","v":88},{"$f":"VLOOKUP(DropDownList!$A$47,CntyQuery!$A$4:$FA$46,BC1)","v":179},{"$f":"VLOOKUP(DropDownList!$A$47,CntyQuery!$A$4:$FA$46,BD1)","v":8},{"$f":"VLOOKUP(DropDownList!$A$47,CntyQuery!$A$4:$FA$46,BE1)","v":42},{"$f":"VLOOKUP(DropDownList!$A$47,CntyQuery!$A$4:$FA$46,BF1)","v":189},{"$f":"VLOOKUP(DropDownList!$A$47,CntyQuery!$A$4:$FA$46,BG1)","v":140},{"$f":"VLOOKUP(DropDownList!$A$47,CntyQuery!$A$4:$FA$46,BH1)","v":124},{"$f":"VLOOKUP(DropDownList!$A$47,CntyQuery!$A$4:$FA$46,BI1)","v":19},{"$f":"VLOOKUP(DropDownList!$A$47,CntyQuery!$A$4:$FA$46,BJ1)","v":18},{"$f":"VLOOKUP(DropDownList!$A$47,CntyQuery!$A$4:$FA$46,BK1)","v":22},{"$f":"VLOOKUP(DropDownList!$A$47,CntyQuery!$A$4:$FA$46,BL1)","v":52},{"$f":"VLOOKUP(DropDownList!$A$47,CntyQuery!$A$4:$FA$46,BM1)","v":40},{"$f":"VLOOKUP(DropDownList!$A$47,CntyQuery!$A$4:$FA$46,BN1)","v":105},{"$f":"VLOOKUP(DropDownList!$A$47,CntyQuery!$A$4:$FA$46,BO1)","v":24},{"$f":"VLOOKUP(DropDownList!$A$47,CntyQuery!$A$4:$FA$46,BP1)","v":2},{"$f":"VLOOKUP(DropDownList!$A$47,CntyQuery!$A$4:$FA$46,BQ1)","v":5},{"$f":"VLOOKUP(DropDownList!$A$47,CntyQuery!$A$4:$FA$46,BR1)","v":33661},{"$f":"VLOOKUP(DropDownList!$A$47,CntyQuery!$A$4:$FA$46,BS1)","v":0},{"$f":"VLOOKUP(DropDownList!$A$47,CntyQuery!$A$4:$FA$46,BT1)","v":0},{"$f":"VLOOKUP(DropDownList!$A$47,CntyQuery!$A$4:$FA$46,BU1)","v":2},{"$f":"VLOOKUP(DropDownList!$A$47,CntyQuery!$A$4:$FA$46,BV1)","v":0},{"$f":"VLOOKUP(DropDownList!$A$47,CntyQuery!$A$4:$FA$46,BW1)","v":0},{"$f":"VLOOKUP(DropDownList!$A$47,CntyQuery!$A$4:$FA$46,BX1)","v":6},{"$f":"VLOOKUP(DropDownList!$A$47,CntyQuery!$A$4:$FA$46,BY1)","v":0},{"$f":"VLOOKUP(DropDownList!$A$47,CntyQuery!$A$4:$FA$46,BZ1)","v":0},{"$f":"VLOOKUP(DropDownList!$A$47,CntyQuery!$A$4:$FA$46,CA1)","v":0},{"$f":"VLOOKUP(DropDownList!$A$47,CntyQuery!$A$4:$FA$46,CB1)","v":0},{"$f":"VLOOKUP(DropDownList!$A$47,CntyQuery!$A$4:$FA$46,CC1)","v":0},{"$f":"VLOOKUP(DropDownList!$A$47,CntyQuery!$A$4:$FA$46,CD1)","v":6},{"$f":"VLOOKUP(DropDownList!$A$47,CntyQuery!$A$4:$FA$46,CE1)","v":8},{"$f":"VLOOKUP(DropDownList!$A$47,CntyQuery!$A$4:$FA$46,CF1)","v":9},{"$f":"VLOOKUP(DropDownList!$A$47,CntyQuery!$A$4:$FA$46,CG1)","v":29},{"$f":"VLOOKUP(DropDownList!$A$47,CntyQuery!$A$4:$FA$46,CH1)","v":3},{"$f":"VLOOKUP(DropDownList!$A$47,CntyQuery!$A$4:$FA$46,CI1)","v":0},{"$f":"VLOOKUP(DropDownList!$A$47,CntyQuery!$A$4:$FA$46,CJ1)","v":0},{"$f":"VLOOKUP(DropDownList!$A$47,CntyQuery!$A$4:$FA$46,CK1)","v":6},{"$f":"VLOOKUP(DropDownList!$A$47,CntyQuery!$A$4:$FA$46,CL1)","v":5},{"$f":"VLOOKUP(DropDownList!$A$47,CntyQuery!$A$4:$FA$46,CM1)","v":2},{"$f":"VLOOKUP(DropDownList!$A$47,CntyQuery!$A$4:$FA$46,CN1)","v":17},{"$f":"VLOOKUP(DropDownList!$A$47,CntyQuery!$A$4:$FA$46,CO1)","v":14},{"$f":"VLOOKUP(DropDownList!$A$47,CntyQuery!$A$4:$FA$46,CP1)","v":27},{"$f":"VLOOKUP(DropDownList!$A$47,CntyQuery!$A$4:$FA$46,CQ1)","v":5},{"$f":"VLOOKUP(DropDownList!$A$47,CntyQuery!$A$4:$FA$46,CR1)","v":0},{"$f":"VLOOKUP(DropDownList!$A$47,CntyQuery!$A$4:$FA$46,CS1)","v":0},{"$f":"VLOOKUP(DropDownList!$A$47,CntyQuery!$A$4:$FA$46,CT1)","v":2},{"$f":"VLOOKUP(DropDownList!$A$47,CntyQuery!$A$4:$FA$46,CU1)","v":4},{"$f":"VLOOKUP(DropDownList!$A$47,CntyQuery!$A$4:$FA$46,CV1)","v":2},{"$f":"VLOOKUP(DropDownList!$A$47,CntyQuery!$A$4:$FA$46,CW1)","v":2},{"$f":"VLOOKUP(DropDownList!$A$47,CntyQuery!$A$4:$FA$46,CX1)","v":8},{"$f":"VLOOKUP(DropDownList!$A$47,CntyQuery!$A$4:$FA$46,CY1)","v":25},{"$f":"VLOOKUP(DropDownList!$A$47,CntyQuery!$A$4:$FA$46,CZ1)","v":0},{"$f":"VLOOKUP(DropDownList!$A$47,CntyQuery!$A$4:$FA$46,DA1)","v":2},{"$f":"VLOOKUP(DropDownList!$A$47,CntyQuery!$A$4:$FA$46,DB1)","v":5},{"$f":"VLOOKUP(DropDownList!$A$47,CntyQuery!$A$4:$FA$46,DC1)","v":3},{"$f":"VLOOKUP(DropDownList!$A$47,CntyQuery!$A$4:$FA$46,DD1)","v":7},{"$f":"VLOOKUP(DropDownList!$A$47,CntyQuery!$A$4:$FA$46,DE1)","v":2},{"$f":"VLOOKUP(DropDownList!$A$47,CntyQuery!$A$4:$FA$46,DF1)","v":6},{"$f":"VLOOKUP(DropDownList!$A$47,CntyQuery!$A$4:$FA$46,DG1)","v":5},{"$f":"VLOOKUP(DropDownList!$A$47,CntyQuery!$A$4:$FA$46,DH1)","v":5},{"$f":"VLOOKUP(DropDownList!$A$47,CntyQuery!$A$4:$FA$46,DI1)","v":14},{"$f":"VLOOKUP(DropDownList!$A$47,CntyQuery!$A$4:$FA$46,DJ1)","v":0},{"$f":"VLOOKUP(DropDownList!$A$47,CntyQuery!$A$4:$FA$46,DK1)","v":0},{"$f":"VLOOKUP(DropDownList!$A$47,CntyQuery!$A$4:$FA$46,DL1)","v":0},{"$f":"VLOOKUP(DropDownList!$A$47,CntyQuery!$A$4:$FA$46,DM1)","v":0},{"$f":"VLOOKUP(DropDownList!$A$47,CntyQuery!$A$4:$FA$46,DN1)","v":3},{"$f":"VLOOKUP(DropDownList!$A$47,CntyQuery!$A$4:$FA$46,DO1)","v":15},{"$f":"VLOOKUP(DropDownList!$A$47,CntyQuery!$A$4:$FA$46,DP1)","v":4},{"$f":"VLOOKUP(DropDownList!$A$47,CntyQuery!$A$4:$FA$46,DQ1)","v":9},{"$f":"VLOOKUP(DropDownList!$A$47,CntyQuery!$A$4:$FA$46,DR1)","v":2},{"$f":"VLOOKUP(DropDownList!$A$47,CntyQuery!$A$4:$FA$46,DS1)","v":0},{"$f":"VLOOKUP(DropDownList!$A$47,CntyQuery!$A$4:$FA$46,DT1)","v":0},{"$f":"VLOOKUP(DropDownList!$A$47,CntyQuery!$A$4:$FA$46,DU1)","v":8},{"$f":"VLOOKUP(DropDownList!$A$47,CntyQuery!$A$4:$FA$46,DV1)","v":2},{"$f":"VLOOKUP(DropDownList!$A$47,CntyQuery!$A$4:$FA$46,DW1)","v":5},{"$f":"VLOOKUP(DropDownList!$A$47,CntyQuery!$A$4:$FA$46,DX1)","v":4},{"$f":"VLOOKUP(DropDownList!$A$47,CntyQuery!$A$4:$FA$46,DY1)","v":0},{"$f":"VLOOKUP(DropDownList!$A$47,CntyQuery!$A$4:$FA$46,DZ1)","v":4},{"$f":"VLOOKUP(DropDownList!$A$47,CntyQuery!$A$4:$FA$46,EA1)","v":0},{"$f":"VLOOKUP(DropDownList!$A$47,CntyQuery!$A$4:$FA$46,EB1)","v":0},{"$f":"VLOOKUP(DropDownList!$A$47,CntyQuery!$A$4:$FA$46,EC1)","v":0},{"$f":"VLOOKUP(DropDownList!$A$47,CntyQuery!$A$4:$FA$46,ED1)","v":147},{"$f":"VLOOKUP(DropDownList!$A$47,CntyQuery!$A$4:$FA$46,EE1)","v":499},{"$f":"VLOOKUP(DropDownList!$A$47,CntyQuery!$A$4:$FA$46,EF1)","v":409},{"$f":"VLOOKUP(DropDownList!$A$47,CntyQuery!$A$4:$FA$46,EG1)","v":134},{"$f":"VLOOKUP(DropDownList!$A$47,CntyQuery!$A$4:$FA$46,EH1)","v":758},{"$f":"VLOOKUP(DropDownList!$A$47,CntyQuery!$A$4:$FA$46,EI1)","v":18},{"$f":"VLOOKUP(DropDownList!$A$47,CntyQuery!$A$4:$FA$46,EJ1)","v":272},{"$f":"VLOOKUP(DropDownList!$A$47,CntyQuery!$A$4:$FA$46,EK1)","v":758},{"$f":"VLOOKUP(DropDownList!$A$47,CntyQuery!$A$4:$FA$46,EL1)","v":18},{"$f":"VLOOKUP(DropDownList!$A$47,CntyQuery!$A$4:$FA$46,EM1)","v":272},{"$f":"VLOOKUP(DropDownList!$A$47,CntyQuery!$A$4:$FA$46,EN1)","v":34},{"$f":"VLOOKUP(DropDownList!$A$47,CntyQuery!$A$4:$FA$46,EO1)","v":0},{"$f":"VLOOKUP(DropDownList!$A$47,CntyQuery!$A$4:$FA$46,EP1)","v":17},{"$f":"VLOOKUP(DropDownList!$A$47,CntyQuery!$A$4:$FA$46,EQ1)","v":10},{"$f":"VLOOKUP(DropDownList!$A$47,CntyQuery!$A$4:$FA$46,ER1)","v":25},{"$f":"VLOOKUP(DropDownList!$A$47,CntyQuery!$A$4:$FA$46,ES1)","v":37},{"$f":"VLOOKUP(DropDownList!$A$47,CntyQuery!$A$4:$FA$46,ET1)","v":22},{"$f":"VLOOKUP(DropDownList!$A$47,CntyQuery!$A$4:$FA$46,EU1)","v":52},{"$f":"VLOOKUP(DropDownList!$A$47,CntyQuery!$A$4:$FA$46,EV1)","v":40},{"$f":"VLOOKUP(DropDownList!$A$47,CntyQuery!$A$4:$FA$46,EW1)","v":105},{"$f":"VLOOKUP(DropDownList!$A$47,CntyQuery!$A$4:$FA$46,EX1)","v":24},{"$f":"VLOOKUP(DropDownList!$A$47,CntyQuery!$A$4:$FA$46,EY1)","v":2},{"$f":"VLOOKUP(DropDownList!$A$47,CntyQuery!$A$4:$FA$46,EZ1)","v":5},{"$f":"VLOOKUP(DropDownList!$A$47,CntyQuery!$A$4:$FA$46,FA1)","v":0}]
[]
[]
["Census 1990 Data -    Query Name:  TownSTF1Qry1"]
["NAME","COUSUBFP","Census_Cnty_Code","FIPS","LandAcres","WaterAcres","HousingUnits90Cen","P01Persons90Cen","P02Families90Cen","P03Households90cen","P05MalePop90cen","P05FemalePop90cen","P06WhitePop","P06BlackPop","P06AmerIndianPop","P06AsianPIPop","P06OtherRacePop","P08HispanicOrPop","P11AgeUnder15_90cen","P11Age15to24_90cen","P11Age25to34_90cen","P11Age35to44_90cen","P11Age45to54_90cen","P11Age55to64_90cen","P11Age65to74_90cen","P11Age75andOver_90cen","P15PersonsInHH90cen","P15PersonsInFamHH90cen","P15PersonsInGC","PersonsPerHH90cen","PersonsPerFam90Cen","P16SinglePersonHH90cen","P16MarriedCoupleHH90cen","P16SingleParentHH90cen","P16NonFamilyHH90cen","H01TotalHousingUnits","H02OccupiedHousingUnits","H02VacantHousingUnits","H03OwnerOccHU","H03RenterOccHU","H05VacantForRent90","H05VacantForSale90","H05VacantSeasonalRec","H23OOHUVal<15k","H23OOHUVal15to19k","H23OOHUVal20to24k","H23OOHUVal25to29k","H23OOHUVal30to34k","H23OOHUVal35to39k","H23OOHUVal40to44k","H23OOHUVal45to49k","H23OOHUVal50to59k","H23OOHUVal60to74k","H23OOHUVal75to99k","H23OOHUVal100to124k","H23OOHUVal125to149k","H23OOHUVal150to174k","H23OOHUVal175to199k","H23OOHUVal200to249k","H23OOHUVal250to299k","H23OOHUVal300to399k","H23OOHUVal400to499k","H23OOHUVal500kOrMore","H23BOOHUMedVal","H41SingFamHU90cen","H41MultiFamHU90cen","H41MobileHom90cen","H43SingFamOwnHU90cen","H43MultiFamOwnHU90cen","H43MobileHomOwnHU90cen","H43SingFamRntrHU90cen","H43MultiFamRntrHU90cen","H43MobileHomRntrHU90cen","H41HU1UnitDet","H41HU1UnitAtt","H41HU2Unit","H41HU3to4Unit","H41HU5to9Unit","H41HU10to19Unit","H41HU20to49Unit","H41HU50PlusUnit","H41HUMobilH","H41HUOther"]
[{"$f":"VLOOKUP(DropDownList!$B$47,CntyQuery!$A$51:$CE$93,A$1)","v":"Acworth"},{"$f":"VLOOKUP(DropDownList!$B$47,CntyQuery!$A$51:$CE$93,B$1)","v":1001},{"$f":"VLOOKUP(DropDownList!$B$47,CntyQuery!$A$51:$CE$93,C$1)","v":19005},{"$f":"VLOOKUP(DropDownList!$B$47,CntyQuery!$A$51:$CE$93,D$1)","v":"00260"},{"$f":"VLOOKUP(DropDownList!$B$47,CntyQuery!$A$51:$CE$93,E$1)","v":24916.99},{"$f":"VLOOKUP(DropDownList!$B$47,CntyQuery!$A$51:$CE$93,F$1)","v":81.95},{"$f":"VLOOKUP(DropDownList!$B$47,CntyQuery!$A$51:$CE$93,G$1)","v":507},{"$f":"VLOOKUP(DropDownList!$B$47,CntyQuery!$A$51:$CE$93,H$1)","v":776},{"$f":"VLOOKUP(DropDownList!$B$47,CntyQuery!$A$51:$CE$93,I$1)","v":219},{"$f":"VLOOKUP(DropDownList!$B$47,CntyQuery!$A$51:$CE$93,J$1)","v":285},{"$f":"VLOOKUP(DropDownList!$B$47,CntyQuery!$A$51:$CE$93,K$1)","v":394},{"$f":"VLOOKUP(DropDownList!$B$47,CntyQuery!$A$51:$CE$93,L$1)","v":382},{"$f":"VLOOKUP(DropDownList!$B$47,CntyQuery!$A$51:$CE$93,M$1)","v":773},{"$f":"VLOOKUP(DropDownList!$B$47,CntyQuery!$A$51:$CE$93,N$1)","v":0},{"$f":"VLOOKUP(DropDownList!$B$47,CntyQuery!$A$51:$CE$93,O$1)","v":0},{"$f":"VLOOKUP(DropDownList!$B$47,CntyQuery!$A$51:$CE$93,P$1)","v":3},{"$f":"VLOOKUP(DropDownList!$B$47,CntyQuery!$A$51:$CE$93,Q$1)","v":0},{"$f":"VLOOKUP(DropDownList!$B$47,CntyQuery!$A$51:$CE$93,R$1)","v":1},{"$f":"VLOOKUP(DropDownList!$B$47,CntyQuery!$A$51:$CE$93,S$1)","v":189},{"$f":"VLOOKUP(DropDownList!$B$47,CntyQuery!$A$51:$CE$93,T$1)","v":72},{"$f":"VLOOKUP(DropDownList!$B$47,CntyQuery!$A$51:$CE$93,U$1)","v":124},{"$f":"VLOOKUP(DropDownList!$B$47,CntyQuery!$A$51:$CE$93,V$1)","v":149},{"$f":"VLOOKUP(DropDownList!$B$47,CntyQuery!$A$51:$CE$93,W$1)","v":74},{"$f":"VLOOKUP(DropDownList!$B$47,CntyQuery!$A$51:$CE$93,X$1)","v":80},{"$f":"VLOOKUP(DropDownList!$B$47,CntyQuery!$A$51:$CE$93,Y$1)","v":57},{"$f":"VLOOKUP(DropDownList!$B$47,CntyQuery!$A$51:$CE$93,Z$1)","v":31},{"$f":"VLOOKUP(DropDownList!$B$47,CntyQuery!$A$51:$CE$93,AA$1)","v":776},{"$f":"VLOOKUP(DropDownList!$B$47,CntyQuery!$A$51:$CE$93,AB$1)","v":693},{"$f":"VLOOKUP(DropDownList!$B$47,CntyQuery!$A$51:$CE$93,AC$1)","v":0},{"$f":"VLOOKUP(DropDownList!$B$47,CntyQuery!$A$51:$CE$93,AD$1)","v":2.7228070175438597},{"$f":"VLOOKUP(DropDownList!$B$47,CntyQuery!$A$51:$CE$93,AE$1)","v":3.1643835616438358},{"$f":"VLOOKUP(DropDownList!$B$47,CntyQuery!$A$51:$CE$93,AF$1)","v":53},{"$f":"VLOOKUP(DropDownList!$B$47,CntyQuery!$A$51:$CE$93,AG$1)","v":189},{"$f":"VLOOKUP(DropDownList!$B$47,CntyQuery!$A$51:$CE$93,AH$1)","v":30},{"$f":"VLOOKUP(DropDownList!$B$47,CntyQuery!$A$51:$CE$93,AI$1)","v":13},{"$f":"VLOOKUP(DropDownList!$B$47,CntyQuery!$A$51:$CE$93,AJ$1)","v":507},{"$f":"VLOOKUP(DropDownList!$B$47,CntyQuery!$A$51:$CE$93,AK$1)","v":285},{"$f":"VLOOKUP(DropDownList!$B$47,CntyQuery!$A$51:$CE$93,AL$1)","v":222},{"$f":"VLOOKUP(DropDownList!$B$47,CntyQuery!$A$51:$CE$93,AM$1)","v":246},{"$f":"VLOOKUP(DropDownList!$B$47,CntyQuery!$A$51:$CE$93,AN$1)","v":39},{"$f":"VLOOKUP(DropDownList!$B$47,CntyQuery!$A$51:$CE$93,AO$1)","v":1},{"$f":"VLOOKUP(DropDownList!$B$47,CntyQuery!$A$51:$CE$93,AP$1)","v":3},{"$f":"VLOOKUP(DropDownList!$B$47,CntyQuery!$A$51:$CE$93,AQ$1)","v":194},{"$f":"VLOOKUP(DropDownList!$B$47,CntyQuery!$A$51:$CE$93,AR$1)","v":4},{"$f":"VLOOKUP(DropDownList!$B$47,CntyQuery!$A$51:$CE$93,AS$1)","v":2},{"$f":"VLOOKUP(DropDownList!$B$47,CntyQuery!$A$51:$CE$93,AT$1)","v":2},{"$f":"VLOOKUP(DropDownList!$B$47,CntyQuery!$A$51:$CE$93,AU$1)","v":1},{"$f":"VLOOKUP(DropDownList!$B$47,CntyQuery!$A$51:$CE$93,AV$1)","v":1},{"$f":"VLOOKUP(DropDownList!$B$47,CntyQuery!$A$51:$CE$93,AW$1)","v":1},{"$f":"VLOOKUP(DropDownList!$B$47,CntyQuery!$A$51:$CE$93,AX$1)","v":6},{"$f":"VLOOKUP(DropDownList!$B$47,CntyQuery!$A$51:$CE$93,AY$1)","v":0},{"$f":"VLOOKUP(DropDownList!$B$47,CntyQuery!$A$51:$CE$93,AZ$1)","v":7},{"$f":"VLOOKUP(DropDownList!$B$47,CntyQuery!$A$51:$CE$93,BA$1)","v":20},{"$f":"VLOOKUP(DropDownList!$B$47,CntyQuery!$A$51:$CE$93,BB$1)","v":36},{"$f":"VLOOKUP(DropDownList!$B$47,CntyQuery!$A$51:$CE$93,BC$1)","v":19},{"$f":"VLOOKUP(DropDownList!$B$47,CntyQuery!$A$51:$CE$93,BD$1)","v":7},{"$f":"VLOOKUP(DropDownList!$B$47,CntyQuery!$A$51:$CE$93,BE$1)","v":6},{"$f":"VLOOKUP(DropDownList!$B$47,CntyQuery!$A$51:$CE$93,BF$1)","v":1},{"$f":"VLOOKUP(DropDownList!$B$47,CntyQuery!$A$51:$CE$93,BG$1)","v":1},{"$f":"VLOOKUP(DropDownList!$B$47,CntyQuery!$A$51:$CE$93,BH$1)","v":1},{"$f":"VLOOKUP(DropDownList!$B$47,CntyQuery!$A$51:$CE$93,BI$1)","v":0},{"$f":"VLOOKUP(DropDownList!$B$47,CntyQuery!$A$51:$CE$93,BJ$1)","v":0},{"$f":"VLOOKUP(DropDownList!$B$47,CntyQuery!$A$51:$CE$93,BK$1)","v":1},{"$f":"VLOOKUP(DropDownList!$B$47,CntyQuery!$A$51:$CE$93,BL$1)","v":84700},{"$f":"VLOOKUP(DropDownList!$B$47,CntyQuery!$A$51:$CE$93,BM$1)","v":448},{"$f":"VLOOKUP(DropDownList!$B$47,CntyQuery!$A$51:$CE$93,BN$1)","v":10},{"$f":"VLOOKUP(DropDownList!$B$47,CntyQuery!$A$51:$CE$93,BO$1)","v":49},{"$f":"VLOOKUP(DropDownList!$B$47,CntyQuery!$A$51:$CE$93,BP$1)","v":222},{"$f":"VLOOKUP(DropDownList!$B$47,CntyQuery!$A$51:$CE$93,BQ$1)","v":5},{"$f":"VLOOKUP(DropDownList!$B$47,CntyQuery!$A$51:$CE$93,BR$1)","v":19},{"$f":"VLOOKUP(DropDownList!$B$47,CntyQuery!$A$51:$CE$93,BS$1)","v":30},{"$f":"VLOOKUP(DropDownList!$B$47,CntyQuery!$A$51:$CE$93,BT$1)","v":5},{"$f":"VLOOKUP(DropDownList!$B$47,CntyQuery!$A$51:$CE$93,BU$1)","v":4},{"$f":"VLOOKUP(DropDownList!$B$47,CntyQuery!$A$51:$CE$93,BV$1)","v":448},{"$f":"VLOOKUP(DropDownList!$B$47,CntyQuery!$A$51:$CE$93,BW$1)","v":3},{"$f":"VLOOKUP(DropDownList!$B$47,CntyQuery!$A$51:$CE$93,BX$1)","v":7},{"$f":"VLOOKUP(DropDownList!$B$47,CntyQuery!$A$51:$CE$93,BY$1)","v":0},{"$f":"VLOOKUP(DropDownList!$B$47,CntyQuery!$A$51:$CE$93,BZ$1)","v":0},{"$f":"VLOOKUP(DropDownList!$B$47,CntyQuery!$A$51:$CE$93,CA$1)","v":0},{"$f":"VLOOKUP(DropDownList!$B$47,CntyQuery!$A$51:$CE$93,CB$1)","v":0},{"$f":"VLOOKUP(DropDownList!$B$47,CntyQuery!$A$51:$CE$93,CC$1)","v":0},{"$f":"VLOOKUP(DropDownList!$B$47,CntyQuery!$A$51:$CE$93,CD$1)","v":38},{"$f":"VLOOKUP(DropDownList!$B$47,CntyQuery!$A$51:$CE$93,CE$1)","v":11}]
[]
[]
["Census 1990 Data -          Query Name: TownSTF3Qry1"]
["NAME","FIPS","COUSUBFP","LandAcres","WaterAcres","HousingUnits90Cen","P01Persons90Cen","P02Families90Cen","P03Households90cen","H25HU<5yrs90cen","H25HU5to20yrs90cen","H25HU20to50yrs90cen","H25HU>50yrs90cen","H31Units0Bedroom90cen","H31Units1Bedroom90cen","H31Units2Bedroom90cen","H31Units3Bedroom90cen","H31Units4Bedroom90cen","H31Units5+Bedroom90cen","P80HI<5K","P80HI5Kto10K","P80HI10Kto15K","P80HI15Kto25K","P80HI25Kto35K","P80HI35Kto50K","P80HI50Kto75K","P80HI75Kto100K","P80HI>100K","P80AMedHI","P86HH<25HI<5K","P86HH<25HI5Kto10K","P86HH<25HI10Kto15K","P86HH<25HI15Kto25K","P86HH<25HI25Kto35K","P86HH<25HI35Kto50K","P86HH<25HI50Kto75K","P86HH<25HI75Kto100K","P86HH<25HI>100K","P86HH25to34HI<5K","P86HH25to34HI5Kto10K","P86HH25to34HI10Kto15K","P86HH25to34HI15Kto25K","P86HH25to34HI25Kto35K","P86HH25to34HI35Kto50K","P86HH25to34HI50Kto75K","P86HH25to34HI75Kto100K","P86HH25to34HI>100K","P86HH35to44HI<5K","P86HH35to44HI5Kto10K","P86HH35to44HI10Kto15K","P86HH35to44HI15Kto25K","P86HH35to44HI25Kto35K","P86HH35to44HI35Kto50K","P86HH35to44HI50Kto75K","P86HH35to44HI75Kto100K","P86HH35to44HI>100K","P86HH45to54HI<5K","P86HH45to54HI5Kto10K","P86HH45to54HI10Kto15K","P86HH45to54HI15Kto25K","P86HH45to54HI25Kto35K","P86HH45to54HI35Kto50K","P86HH45to54HI50Kto75K","P86HH45to54HI75Kto100K","P86HH45to54HI>100K","P86HH55to64HI<5K","P86HH55to64HI5Kto10K","P86HH55to64HI10Kto15K","P86HH55to64HI15Kto25K","P86HH55to64HI25Kto35K","P86HH55to64HI35Kto50K","P86HH55to64HI50Kto75K","P86HH55to64HI75Kto100K","P86HH55to64HI>100K","P86HH65to74HI<5K","P86HH65to74HI5Kto10K","P86HH65to74HI10Kto15K","P86HH65to74HI15Kto25K","P86HH65to74HI25Kto35K","P86HH65to74HI35Kto50K","P86HH65to74HI50Kto75K","P86HH65to74HI75Kto100K","P86HH65to74HI>100K","P86HH>75HI<5K","P86HH>75HI5Kto10K","P86HH>75HI10Kto15K","P86HH>75HI15Kto25K","P86HH>75HI25Kto35K","P86HH>75HI35Kto50K","P86HH>75HI50Kto75K","P86HH>75HI75Kto100K","P86HH>75HI>100K","P54SchlEnrlPrePrim","P54SchlEnrlElemThrHS","P54SchlEnrlCollege","P54NotEnrlInSch","P57Pop25andOver","P57LessThan9thGrade","P579thto12thNoDip","P57HSGrad","P57SomeCollege","P57AssocDeg","P57BachelDeg","P57GradorProfDeg","P57HSGradorHigher","P57CollGradorHigher","P42NativePop","P42ForeignBornPop","P42BornStateOfRes","P37NativePop2","P37ForeignBornPop2","P49DroveAlone","P49CarPooled","P49PublicTranspt","P49Walked","P49OtherMeans","P49WorkedAtHome","P80HHInc<10K","P80HHInc10to15K","P80HHInc15to25K","P80HHInc25to35K","P80HHInc35to50K","P80HHInc50to75K","P80HHInc75to100K","P80HHInc100to150K","P80HHInc>150K","H25YearStBlt89to90","H25YearStBlt85to88","H25YearStBlt80to84","H25YearStBlt70to79","H25YearStBlt60to69","H25YearStBlt50to59","H25YearStBlt40to49","H25YearStBlt39earlier","P107FamInc<10K","P107FamInc10to15K","P107FamInc15to25K","P107FamInc25to35K","P107FamInc35to50K","P107FamInc50to75K","P107FamInc75to100K","P107FamInc100to150K","P107FamInc>150K","P107AMedFamInc","P110NonFamInc<10K","P110NonFamInc10to15K","P110NonFamInc15to25K","P110NonFamInc25to35K","P110NonFamInc35to50K","P110NonFamInc50to75K","P110NonFamInc75to100K","P110NonFamInc100to150K","P110NonFamInc>150K","P110AMedNonFamInc","H16HU1Room","H16HU2Room","H16HU3Room","H16HU4Room","H16HU5Room","H16HU6Room","H16HU7Room","H16HU8Room","H16HU9+Room","H43GrossRnt<100","H43GrossRnt100to149","H43GrossRnt150to199","H43GrossRnt200to249","H43GrossRnt250to299","H43GrossRnt300to349","H43GrossRnt350to399","H43GrossRnt400to449","H43GrossRnt450to499","H43GrossRnt500to549","H43GrossRnt550to599","H43GrossRnt600to649","H43GrossRnt650to699","H43GrossRnt700to749","H43GrossRnt750to999","H43GrossRnt1000Plus","H43NoCashRent","H43MedGrossRent","H51GrossRnt<20PctHHInc","H51GrossRnt20to24PctHHInc","H51GrossRnt25to29PctHHInc","H51GrossRnt30to34PctHHInc","H51GrossRnt35PctOrMoreHHInc","H51GrossRntAsPctHHIncNotComp","H52HUwMtgMoOwnCst<200","H52HUwMtgMoOwnCst200to299","H52HUwMtgMoOwnCst300to399","H52HUwMtgMoOwnCst400to499","H52HUwMtgMoOwnCst500to599","H52HUwMtgMoOwnCst600to699","H52HUwMtgMoOwnCst700to799","H52HUwMtgMoOwnCst800to899","H52HUwMtgMoOwnCst900to999","H52HUwMtgMoOwnCst1000to1249","H52HUwMtgMoOwnCst1250to1499","H52HUwMtgMoOwnCst1500to1999","H52HUwMtgMoOwnCst2000More","H52HUwNoMtgMoOwnCst<100","H52HUwNoMtgMoOwnCst100to149","H52HUwNoMtgMoOwnCst150to199","H52HUwNoMtgMoOwnCst200to249","H52HUwNoMtgMoOwnCst250to299","H52HUwNoMtgMoOwnCst300to349","H52HUwNoMtgMoOwnCst350to399","H52HUwNoMtgMoOwnCst400More","H52AMedMoOwnCstWMortg","H52AMedMoOwnCstWNoMortg","H58HUwMtgMOC<20pHHInc","H58HUwMtgMOC20to24pHHInc","H58HUwMtgMOC25to29pHHInc","H58HUwMtgMOC30to34pHHInc","H58wMtgMOC>35pHHInc","H58HUwMtgMOCNotComp","H58HUwNoMtgMOC<20pHHInc","H58HUwNoMtgMOC20to24pHHInc","H58HUwNoMtgMOC25to29pHHInc","H58HUwNoMtgMOC30to34pHHInc","H58wNoMtgMOC>35pHHInc","H58HUwNoMtgMOCNotComp","H61OOHUVal<15k","H61OOHUVal15to19k","H61OOHUVal20to24k","H61OOHUVal25to29k","H61OOHUVal30to34k","H61OOHUVal35to39k","H61OOHUVal40to44k","H61OOHUVal45to49k","H61OOHUVal50to59k","H61OOHUVal60to74k","H61OOHUVal75to99k","H61OOHUVal100to124k","H61OOHUVal125to149k","H61OOHUVal150to174k","H61OOHUVal175to199k","H61OOHUVal200to249k","H61OOHUVal250to299k","H61OOHUVal300to399k","H61OOHUVal400to499k","H61OOHUVal500kOrMore","H61aOOHUMedVal"]
[]
[]
[]
["Other Demo Data -             Query Name: QryAllTowns-ACSDemographicSheet"]
["TOWN_NAME","FIPS","TOWNCNTY","COUSUB","POP80","POP90CDCEN","POP2000CEN","POP2010CEN","POP2020-Proj","POP2025-Proj","POP2030-Proj","SF80","MF80","MH80","SF81","MF81","MH81","SF82","MF82","MH82","SF83","MF83","MH83","SF84_OSP","MF84_OSP","MH84_OSP","SF85_OSP","MF85_OSP","MH85_OSP","SF86_OSP","MF86_OSP","MH86_OSP","SF87_OSP","MF87_OSP","MH87_OSP","SF88_OSP","MF88_OSP","MH88_OSP","SF89_OSP","MF89_OSP","MH89_OSP","SF90_OSP","MF90_OSP","MH90_OSP","SF91_OSP","MF91_OSP","MH91_OSP","SF92_OSP","MF92_OSP","MH92_OSP","SF93_OSP","MF93_OSP","MH93_OSP","SF94_OSP","MF94_OSP","MH94_OSP","SF95_OSP","MF95_OSP","MH95_OSP","SF96_OSP","MF96_OSP","MH96_OSP","SF97_OSP","MF97_OSP","MH97_OSP","SF98_OSP","MF98_OSP","MH98_OSP","SF99_OSP","MF99_OSP","MH99_OSP","SF00_OSP","MF00_OSP","MH00_OSP","SF01_OSP","MF01_OSP","MH01_OSP","SF02_OSP","MF02_OSP","MH02_OSP","SF03_OSP","MF03_OSP","MH03_OSP","SF04_OSP","MF04_OSP","MH04_OSP","SF05_OSP","MF05_OSP","MH05_OSP","SF06_OSP","MF06_OSP","MH06_OSP","SF07_OSP","MF07_OSP","MH07_OSP","SF08_OSP","MF08_OSP","MH08_OSP","SF09_OSP","MF09_OSP","MH09_OSP","SF10_OSP","MF10_OSP","MH10_OSP","SF11_OSP","MF11_OSP","MH11_OSP","SF12_OSP","MF12_OSP","MH12_OSP","SF13_OSP","MF13_OSP","MH13_OSP","SF14_OSP","MF14_OSP","MH14_OSP","SF15_OSP","MF15_OSP","MH15_OSP","SF16_OSP","MF16_OSP","MH16_OSP","SF17_OSP","MF17_OSP","MH17_OSP","SF18_OSP","MF18_OSP","MH18_OSP","SF19_OSP","MF19_OSP","MH19_OSP","COMMENTS"]
[{"$f":"VLOOKUP(DropDownList!$B$47,CntyQuery!$A$117:$FZ$160,A$1)","v":"Acworth"},{"$f":"VLOOKUP(DropDownList!$B$47,CntyQuery!$A$117:$FZ$160,B$1)","v":19005},{"$f":"VLOOKUP(DropDownList!$B$47,CntyQuery!$A$117:$FZ$160,C$1)","v":1001},{"$f":"VLOOKUP(DropDownList!$B$47,CntyQuery!$A$117:$FZ$160,D$1)","v":"00260"},{"$f":"VLOOKUP(DropDownList!$B$47,CntyQuery!$A$117:$FZ$160,E$1)","v":590},{"$f":"VLOOKUP(DropDownList!$B$47,CntyQuery!$A$117:$FZ$160,F$1)","v":776},{"$f":"VLOOKUP(DropDownList!$B$47,CntyQuery!$A$117:$FZ$160,G$1)","v":836},{"$f":"VLOOKUP(DropDownList!$B$47,CntyQuery!$A$117:$FZ$160,H$1)","v":891},{"$f":"VLOOKUP(DropDownList!$B$47,CntyQuery!$A$117:$FZ$160,I$1)","v":937},{"$f":"VLOOKUP(DropDownList!$B$47,CntyQuery!$A$117:$FZ$160,J$1)","v":960},{"$f":"VLOOKUP(DropDownList!$B$47,CntyQuery!$A$117:$FZ$160,K$1)","v":989},{"$f":"VLOOKUP(DropDownList!$B$47,CntyQuery!$A$117:$FZ$160,L$1)","v":6},{"$f":"VLOOKUP(DropDownList!$B$47,CntyQuery!$A$117:$FZ$160,M$1)","v":0},{"$f":"VLOOKUP(DropDownList!$B$47,CntyQuery!$A$117:$FZ$160,N$1)","v":0},{"$f":"VLOOKUP(DropDownList!$B$47,CntyQuery!$A$117:$FZ$160,O$1)","v":4},{"$f":"VLOOKUP(DropDownList!$B$47,CntyQuery!$A$117:$FZ$160,P$1)","v":0},{"$f":"VLOOKUP(DropDownList!$B$47,CntyQuery!$A$117:$FZ$160,Q$1)","v":0},{"$f":"VLOOKUP(DropDownList!$B$47,CntyQuery!$A$117:$FZ$160,R$1)","v":3},{"$f":"VLOOKUP(DropDownList!$B$47,CntyQuery!$A$117:$FZ$160,S$1)","v":0},{"$f":"VLOOKUP(DropDownList!$B$47,CntyQuery!$A$117:$FZ$160,T$1)","v":0},{"$f":"VLOOKUP(DropDownList!$B$47,CntyQuery!$A$117:$FZ$160,U$1)","v":6},{"$f":"VLOOKUP(DropDownList!$B$47,CntyQuery!$A$117:$FZ$160,V$1)","v":0},{"$f":"VLOOKUP(DropDownList!$B$47,CntyQuery!$A$117:$FZ$160,W$1)","v":1},{"$f":"VLOOKUP(DropDownList!$B$47,CntyQuery!$A$117:$FZ$160,X$1)","v":3},{"$f":"VLOOKUP(DropDownList!$B$47,CntyQuery!$A$117:$FZ$160,Y$1)","v":0},{"$f":"VLOOKUP(DropDownList!$B$47,CntyQuery!$A$117:$FZ$160,Z$1)","v":0},{"$f":"VLOOKUP(DropDownList!$B$47,CntyQuery!$A$117:$FZ$160,AA$1)","v":3},{"$f":"VLOOKUP(DropDownList!$B$47,CntyQuery!$A$117:$FZ$160,AB$1)","v":0},{"$f":"VLOOKUP(DropDownList!$B$47,CntyQuery!$A$117:$FZ$160,AC$1)","v":1},{"$f":"VLOOKUP(DropDownList!$B$47,CntyQuery!$A$117:$FZ$160,AD$1)","v":2},{"$f":"VLOOKUP(DropDownList!$B$47,CntyQuery!$A$117:$FZ$160,AE$1)","v":0},{"$f":"VLOOKUP(DropDownList!$B$47,CntyQuery!$A$117:$FZ$160,AF$1)","v":1},{"$f":"VLOOKUP(DropDownList!$B$47,CntyQuery!$A$117:$FZ$160,AG$1)","v":4},{"$f":"VLOOKUP(DropDownList!$B$47,CntyQuery!$A$117:$FZ$160,AH$1)","v":0},{"$f":"VLOOKUP(DropDownList!$B$47,CntyQuery!$A$117:$FZ$160,AI$1)","v":1},{"$f":"VLOOKUP(DropDownList!$B$47,CntyQuery!$A$117:$FZ$160,AJ$1)","v":1},{"$f":"VLOOKUP(DropDownList!$B$47,CntyQuery!$A$117:$FZ$160,AK$1)","v":0},{"$f":"VLOOKUP(DropDownList!$B$47,CntyQuery!$A$117:$FZ$160,AL$1)","v":1},{"$f":"VLOOKUP(DropDownList!$B$47,CntyQuery!$A$117:$FZ$160,AM$1)","v":3},{"$f":"VLOOKUP(DropDownList!$B$47,CntyQuery!$A$117:$FZ$160,AN$1)","v":0},{"$f":"VLOOKUP(DropDownList!$B$47,CntyQuery!$A$117:$FZ$160,AO$1)","v":5},{"$f":"VLOOKUP(DropDownList!$B$47,CntyQuery!$A$117:$FZ$160,AP$1)","v":0},{"$f":"VLOOKUP(DropDownList!$B$47,CntyQuery!$A$117:$FZ$160,AQ$1)","v":0},{"$f":"VLOOKUP(DropDownList!$B$47,CntyQuery!$A$117:$FZ$160,AR$1)","v":1},{"$f":"VLOOKUP(DropDownList!$B$47,CntyQuery!$A$117:$FZ$160,AS$1)","v":1},{"$f":"VLOOKUP(DropDownList!$B$47,CntyQuery!$A$117:$FZ$160,AT$1)","v":0},{"$f":"VLOOKUP(DropDownList!$B$47,CntyQuery!$A$117:$FZ$160,AU$1)","v":1},{"$f":"VLOOKUP(DropDownList!$B$47,CntyQuery!$A$117:$FZ$160,AV$1)","v":0},{"$f":"VLOOKUP(DropDownList!$B$47,CntyQuery!$A$117:$FZ$160,AW$1)","v":0},{"$f":"VLOOKUP(DropDownList!$B$47,CntyQuery!$A$117:$FZ$160,AX$1)","v":1},{"$f":"VLOOKUP(DropDownList!$B$47,CntyQuery!$A$117:$FZ$160,AY$1)","v":1},{"$f":"VLOOKUP(DropDownList!$B$47,CntyQuery!$A$117:$FZ$160,AZ$1)","v":0},{"$f":"VLOOKUP(DropDownList!$B$47,CntyQuery!$A$117:$FZ$160,BA$1)","v":0},{"$f":"VLOOKUP(DropDownList!$B$47,CntyQuery!$A$117:$FZ$160,BB$1)","v":2},{"$f":"VLOOKUP(DropDownList!$B$47,CntyQuery!$A$117:$FZ$160,BC$1)","v":1},{"$f":"VLOOKUP(DropDownList!$B$47,CntyQuery!$A$117:$FZ$160,BD$1)","v":1},{"$f":"VLOOKUP(DropDownList!$B$47,CntyQuery!$A$117:$FZ$160,BE$1)","v":2},{"$f":"VLOOKUP(DropDownList!$B$47,CntyQuery!$A$117:$FZ$160,BF$1)","v":0},{"$f":"VLOOKUP(DropDownList!$B$47,CntyQuery!$A$117:$FZ$160,BG$1)","v":0},{"$f":"VLOOKUP(DropDownList!$B$47,CntyQuery!$A$117:$FZ$160,BH$1)","v":2},{"$f":"VLOOKUP(DropDownList!$B$47,CntyQuery!$A$117:$FZ$160,BI$1)","v":0},{"$f":"VLOOKUP(DropDownList!$B$47,CntyQuery!$A$117:$FZ$160,BJ$1)","v":2},{"$f":"VLOOKUP(DropDownList!$B$47,CntyQuery!$A$117:$FZ$160,BK$1)","v":3},{"$f":"VLOOKUP(DropDownList!$B$47,CntyQuery!$A$117:$FZ$160,BL$1)","v":0},{"$f":"VLOOKUP(DropDownList!$B$47,CntyQuery!$A$117:$FZ$160,BM$1)","v":0},{"$f":"VLOOKUP(DropDownList!$B$47,CntyQuery!$A$117:$FZ$160,BN$1)","v":4},{"$f":"VLOOKUP(DropDownList!$B$47,CntyQuery!$A$117:$FZ$160,BO$1)","v":0},{"$f":"VLOOKUP(DropDownList!$B$47,CntyQuery!$A$117:$FZ$160,BP$1)","v":2},{"$f":"VLOOKUP(DropDownList!$B$47,CntyQuery!$A$117:$FZ$160,BQ$1)","v":0},{"$f":"VLOOKUP(DropDownList!$B$47,CntyQuery!$A$117:$FZ$160,BR$1)","v":0},{"$f":"VLOOKUP(DropDownList!$B$47,CntyQuery!$A$117:$FZ$160,BS$1)","v":1},{"$f":"VLOOKUP(DropDownList!$B$47,CntyQuery!$A$117:$FZ$160,BT$1)","v":0},{"$f":"VLOOKUP(DropDownList!$B$47,CntyQuery!$A$117:$FZ$160,BU$1)","v":0},{"$f":"VLOOKUP(DropDownList!$B$47,CntyQuery!$A$117:$FZ$160,BV$1)","v":1},{"$f":"VLOOKUP(DropDownList!$B$47,CntyQuery!$A$117:$FZ$160,BW$1)","v":2},{"$f":"VLOOKUP(DropDownList!$B$47,CntyQuery!$A$117:$FZ$160,BX$1)","v":0},{"$f":"VLOOKUP(DropDownList!$B$47,CntyQuery!$A$117:$FZ$160,BY$1)","v":2},{"$f":"VLOOKUP(DropDownList!$B$47,CntyQuery!$A$117:$FZ$160,BZ$1)","v":6},{"$f":"VLOOKUP(DropDownList!$B$47,CntyQuery!$A$117:$FZ$160,CA$1)","v":0},{"$f":"VLOOKUP(DropDownList!$B$47,CntyQuery!$A$117:$FZ$160,CB$1)","v":0},{"$f":"VLOOKUP(DropDownList!$B$47,CntyQuery!$A$117:$FZ$160,CC$1)","v":11},{"$f":"VLOOKUP(DropDownList!$B$47,CntyQuery!$A$117:$FZ$160,CD$1)","v":0},{"$f":"VLOOKUP(DropDownList!$B$47,CntyQuery!$A$117:$FZ$160,CE$1)","v":2},{"$f":"VLOOKUP(DropDownList!$B$47,CntyQuery!$A$117:$FZ$160,CF$1)","v":11},{"$f":"VLOOKUP(DropDownList!$B$47,CntyQuery!$A$117:$FZ$160,CG$1)","v":0},{"$f":"VLOOKUP(DropDownList!$B$47,CntyQuery!$A$117:$FZ$160,CH$1)","v":1},{"$f":"VLOOKUP(DropDownList!$B$47,CntyQuery!$A$117:$FZ$160,CI$1)","v":10},{"$f":"VLOOKUP(DropDownList!$B$47,CntyQuery!$A$117:$FZ$160,CJ$1)","v":0},{"$f":"VLOOKUP(DropDownList!$B$47,CntyQuery!$A$117:$FZ$160,CK$1)","v":0},{"$f":"VLOOKUP(DropDownList!$B$47,CntyQuery!$A$117:$FZ$160,CL$1)","v":10},{"$f":"VLOOKUP(DropDownList!$B$47,CntyQuery!$A$117:$FZ$160,CM$1)","v":0},{"$f":"VLOOKUP(DropDownList!$B$47,CntyQuery!$A$117:$FZ$160,CN$1)","v":0},{"$f":"VLOOKUP(DropDownList!$B$47,CntyQuery!$A$117:$FZ$160,CO$1)","v":9},{"$f":"VLOOKUP(DropDownList!$B$47,CntyQuery!$A$117:$FZ$160,CP$1)","v":0},{"$f":"VLOOKUP(DropDownList!$B$47,CntyQuery!$A$117:$FZ$160,CQ$1)","v":0},{"$f":"VLOOKUP(DropDownList!$B$47,CntyQuery!$A$117:$FZ$160,CR$1)","v":3},{"$f":"VLOOKUP(DropDownList!$B$47,CntyQuery!$A$117:$FZ$160,CS$1)","v":0},{"$f":"VLOOKUP(DropDownList!$B$47,CntyQuery!$A$117:$FZ$160,CT$1)","v":2},{"$f":"VLOOKUP(DropDownList!$B$47,CntyQuery!$A$117:$FZ$160,CU$1)","v":4},{"$f":"VLOOKUP(DropDownList!$B$47,CntyQuery!$A$117:$FZ$160,CV$1)","v":0},{"$f":"VLOOKUP(DropDownList!$B$47,CntyQuery!$A$117:$FZ$160,CW$1)","v":0},{"$f":"VLOOKUP(DropDownList!$B$47,CntyQuery!$A$117:$FZ$160,CX$1)","v":5},{"$f":"VLOOKUP(DropDownList!$B$47,CntyQuery!$A$117:$FZ$160,CY$1)","v":0},{"$f":"VLOOKUP(DropDownList!$B$47,CntyQuery!$A$117:$FZ$160,CZ$1)","v":0},{"$f":"VLOOKUP(DropDownList!$B$47,CntyQuery!$A$117:$FZ$160,DA$1)","v":4},{"$f":"VLOOKUP(DropDownList!$B$47,CntyQuery!$A$117:$FZ$160,DB$1)","v":0},{"$f":"VLOOKUP(DropDownList!$B$47,CntyQuery!$A$117:$FZ$160,DC$1)","v":0},{"$f":"VLOOKUP(DropDownList!$B$47,CntyQuery!$A$117:$FZ$160,DD$1)","v":0},{"$f":"VLOOKUP(DropDownList!$B$47,CntyQuery!$A$117:$FZ$160,DE$1)","v":0},{"$f":"VLOOKUP(DropDownList!$B$47,CntyQuery!$A$117:$FZ$160,DF$1)","v":0},{"$f":"VLOOKUP(DropDownList!$B$47,CntyQuery!$A$117:$FZ$160,DG$1)","v":1},{"$f":"VLOOKUP(DropDownList!$B$47,CntyQuery!$A$117:$FZ$160,DH$1)","v":0},{"$f":"VLOOKUP(DropDownList!$B$47,CntyQuery!$A$117:$FZ$160,DI$1)","v":2},{"$f":"VLOOKUP(DropDownList!$B$47,CntyQuery!$A$117:$FZ$160,DJ$1)","v":0},{"$f":"VLOOKUP(DropDownList!$B$47,CntyQuery!$A$117:$FZ$160,DK$1)","v":0},{"$f":"VLOOKUP(DropDownList!$B$47,CntyQuery!$A$117:$FZ$160,DL$1)","v":0},{"$f":"VLOOKUP(DropDownList!$B$47,CntyQuery!$A$117:$FZ$160,DM$1)","v":1},{"$f":"VLOOKUP(DropDownList!$B$47,CntyQuery!$A$117:$FZ$160,DN$1)","v":0},{"$f":"VLOOKUP(DropDownList!$B$47,CntyQuery!$A$117:$FZ$160,DO$1)","v":0},{"$f":"VLOOKUP(DropDownList!$B$47,CntyQuery!$A$117:$FZ$160,DP$1)","v":0},{"$f":"VLOOKUP(DropDownList!$B$47,CntyQuery!$A$117:$FZ$160,DQ$1)","v":0},{"$f":"VLOOKUP(DropDownList!$B$47,CntyQuery!$A$117:$FZ$160,DR$1)","v":0},{"$f":"VLOOKUP(DropDownList!$B$47,CntyQuery!$A$117:$FZ$160,DS$1)","v":0},{"$f":"VLOOKUP(DropDownList!$B$47,CntyQuery!$A$117:$FZ$160,DT$1)","v":0},{"$f":"VLOOKUP(DropDownList!$B$47,CntyQuery!$A$117:$FZ$160,DU$1)","v":0},{"$f":"VLOOKUP(DropDownList!$B$47,CntyQuery!$A$117:$FZ$160,DV$1)","v":3},{"$f":"VLOOKUP(DropDownList!$B$47,CntyQuery!$A$117:$FZ$160,DW$1)","v":0},{"$f":"VLOOKUP(DropDownList!$B$47,CntyQuery!$A$117:$FZ$160,DX$1)","v":2},{"$f":"VLOOKUP(DropDownList!$B$47,CntyQuery!$A$117:$FZ$160,DY$1)","v":1},{"$f":"VLOOKUP(DropDownList!$B$47,CntyQuery!$A$117:$FZ$160,DZ$1)","v":0},{"$f":"VLOOKUP(DropDownList!$B$47,CntyQuery!$A$117:$FZ$160,EA$1)","v":0},{"$f":"VLOOKUP(DropDownList!$B$47,CntyQuery!$A$117:$FZ$160,EB$1)","v":""}]
[]
[]
["NH Employment Data","Query Name: DPQryEmploymentByCnty"]
["AreaName","COUNTYCODE","TOTP & G2001","TOT2001","GOODPRO2001","SERVICEPROMAN2001","WAGEP & G2001","WAGETOT2001","WAGEGOODPRO2001","WAGESERVICEPRO2001","TOTP & G2002","TOT2002","GOODPRO2002","SERVICEPROMAN2002","WAGEP & G2002","WAGETOT2002","WAGEGOODPRO2002","WAGESERVICEPRO2002","TOTP & G2003","TOT2003","GOODPRO2003","SERVICEPROMAN2003","WAGEP & G2003","WAGETOT2003","WAGEGOODPRO2003","WAGESERVICEPRO2003","TOTP & G2004","TOT2004","GOODPRO2004","SERVICEPROMAN2004","WAGEP & G2004","WAGETOT2004","WAGEGOODPRO2004","WAGESERVICEPRO2004","TOTP & G2005","TOT2005","GOODPRO2005","SERVICEPROMAN2005","WAGEP & G2005","WAGETOT2005","WAGEGOODPRO2005","WAGESERVICEPRO2005","TOTP & G2006","TOT2006","GOODPRO2006","SERVICEPROMAN2006","WAGEP & G2006","WAGETOT2006","WAGEGOODPRO2006","WAGESERVICEPRO2006","TOTP & G2007","TOT2007","GOODPRO2007","SERVICEPROMAN2007","WAGEP & G2007","WAGETOT2007","WAGEGOODPRO2007","WAGESERVICEPRO2007","TOTP & G2008","TOT2008","GOODPRO2008","SERVICEPROMAN2008","WAGEP & G2008","WAGETOT2008","WAGEGOODPRO2008","WAGESERVICEPRO2008","TOTP & G2009","TOT2009","GOODPRO2009","SERVICEPROMAN2009","WAGEP & G2009","WAGETOT2009","WAGEGOODPRO2009","WAGESERVICEPRO2009","TOTP & G2010","TOT2010","GOODPRO2010","SERVICEPROMAN2010","WAGEP & G2010","WAGETOT2010","WAGEGOODPRO2010","WAGESERVICEPRO2010","TOTP & G2011","TOT2011","GOODPRO2011","SERVICEPROMAN2011","WAGEP & G2011","WAGETOT2011","WAGEGOODPRO2011","WAGESERVICEPRO2011","TOTP & G2012","TOT2012","GOODPRO2012","SERVICEPROMAN2012","WAGEP & G2012","WAGETOT2012","WAGEGOODPRO2012","WAGESERVICEPRO2012","TOTP & G2013","TOT2013","GOODPRO2013","SERVICEPROMAN2013","WAGEP & G2013","WAGETOT2013","WAGEGOODPRO2013","WAGESERVICEPRO2013","TOTP & G2014","TOT2014","GOODPRO2014","SERVICEPROMAN2014","WAGEP & G2014","WAGETOT2014","WAGEGOODPRO2014","WAGESERVICEPRO2014","TOTP & G2015","TOT2015","GOODPRO2015","SERVICEPROMAN2015","WAGEP & G2015","WAGETOT2015","WAGEGOODPRO2015","WAGESERVICEPRO2015","TOTP & G2016","TOT2016","GOODPRO2016","SERVICEPROMAN2016","WAGEP & G2016","WAGETOT2016","WAGEGOODPRO2016","WAGESERVICEPRO2016","TOTP & G2017","TOT2017","GOODPRO2017","SERVICEPROMAN2017","WAGEP & G2017","WAGETOT2017","WAGEGOODPRO2017","WAGESERVICEPRO2017","TOTP & G2018","TOT2018","GOODPRO2018","SERVICEPROMAN2018","WAGEP & G2018","WAGETOT2018","WAGEGOODPRO2018","WAGESERVICEPRO2018","TOTP & G2019","TOT2019","TOTGov2019","GOODPRO2019","SERVICEPROMAN2019","WAGEP & G2019","WAGETOT2019","WAGEGov2019","WAGEGOODPRO2019","WAGESERVICEPRO2019","SummaryLevel"]
[{"$f":"VLOOKUP(DropDownList!$B$47,CntyQuery!$A$171:$FZ$185,A$1)","v":"Acworth"},{"$f":"VLOOKUP(DropDownList!$B$47,CntyQuery!$A$171:$FZ$185,B$1)","v":10},{"$f":"VLOOKUP(DropDownList!$B$47,CntyQuery!$A$171:$FZ$185,C$1)","v":89},{"$f":"VLOOKUP(DropDownList!$B$47,CntyQuery!$A$171:$FZ$185,D$1)","v":72},{"$f":"VLOOKUP(DropDownList!$B$47,CntyQuery!$A$171:$FZ$185,E$1)","v":64},{"$f":"VLOOKUP(DropDownList!$B$47,CntyQuery!$A$171:$FZ$185,F$1)","v":7},{"$f":"VLOOKUP(DropDownList!$B$47,CntyQuery!$A$171:$FZ$185,G$1)","v":578.72},{"$f":"VLOOKUP(DropDownList!$B$47,CntyQuery!$A$171:$FZ$185,H$1)","v":624},{"$f":"VLOOKUP(DropDownList!$B$47,CntyQuery!$A$171:$FZ$185,I$1)","v":551.35},{"$f":"VLOOKUP(DropDownList!$B$47,CntyQuery!$A$171:$FZ$185,J$1)","v":1269.44},{"$f":"VLOOKUP(DropDownList!$B$47,CntyQuery!$A$171:$FZ$185,K$1)","v":94},{"$f":"VLOOKUP(DropDownList!$B$47,CntyQuery!$A$171:$FZ$185,L$1)","v":77},{"$f":"VLOOKUP(DropDownList!$B$47,CntyQuery!$A$171:$FZ$185,M$1)","v":70},{"$f":"VLOOKUP(DropDownList!$B$47,CntyQuery!$A$171:$FZ$185,N$1)","v":7},{"$f":"VLOOKUP(DropDownList!$B$47,CntyQuery!$A$171:$FZ$185,O$1)","v":504.34},{"$f":"VLOOKUP(DropDownList!$B$47,CntyQuery!$A$171:$FZ$185,P$1)","v":528.30999999999995},{"$f":"VLOOKUP(DropDownList!$B$47,CntyQuery!$A$171:$FZ$185,Q$1)","v":530.91999999999996},{"$f":"VLOOKUP(DropDownList!$B$47,CntyQuery!$A$171:$FZ$185,R$1)","v":500.18},{"$f":"VLOOKUP(DropDownList!$B$47,CntyQuery!$A$171:$FZ$185,S$1)","v":97},{"$f":"VLOOKUP(DropDownList!$B$47,CntyQuery!$A$171:$FZ$185,T$1)","v":78},{"$f":"VLOOKUP(DropDownList!$B$47,CntyQuery!$A$171:$FZ$185,U$1)","v":74},{"$f":"VLOOKUP(DropDownList!$B$47,CntyQuery!$A$171:$FZ$185,V$1)","v":5},{"$f":"VLOOKUP(DropDownList!$B$47,CntyQuery!$A$171:$FZ$185,W$1)","v":538.22},{"$f":"VLOOKUP(DropDownList!$B$47,CntyQuery!$A$171:$FZ$185,X$1)","v":566.1},{"$f":"VLOOKUP(DropDownList!$B$47,CntyQuery!$A$171:$FZ$185,Y$1)","v":581.54999999999995},{"$f":"VLOOKUP(DropDownList!$B$47,CntyQuery!$A$171:$FZ$185,Z$1)","v":322.35000000000002},{"$f":"VLOOKUP(DropDownList!$B$47,CntyQuery!$A$171:$FZ$185,AA$1)","v":98},{"$f":"VLOOKUP(DropDownList!$B$47,CntyQuery!$A$171:$FZ$185,AB$1)","v":75},{"$f":"VLOOKUP(DropDownList!$B$47,CntyQuery!$A$171:$FZ$185,AC$1)","v":"n"},{"$f":"VLOOKUP(DropDownList!$B$47,CntyQuery!$A$171:$FZ$185,AD$1)","v":"n"},{"$f":"VLOOKUP(DropDownList!$B$47,CntyQuery!$A$171:$FZ$185,AE$1)","v":548.75},{"$f":"VLOOKUP(DropDownList!$B$47,CntyQuery!$A$171:$FZ$185,AF$1)","v":614.73},{"$f":"VLOOKUP(DropDownList!$B$47,CntyQuery!$A$171:$FZ$185,AG$1)","v":"n"},{"$f":"VLOOKUP(DropDownList!$B$47,CntyQuery!$A$171:$FZ$185,AH$1)","v":"n"},{"$f":"VLOOKUP(DropDownList!$B$47,CntyQuery!$A$171:$FZ$185,AI$1)","v":102},{"$f":"VLOOKUP(DropDownList!$B$47,CntyQuery!$A$171:$FZ$185,AJ$1)","v":81},{"$f":"VLOOKUP(DropDownList!$B$47,CntyQuery!$A$171:$FZ$185,AK$1)","v":76},{"$f":"VLOOKUP(DropDownList!$B$47,CntyQuery!$A$171:$FZ$185,AL$1)","v":6},{"$f":"VLOOKUP(DropDownList!$B$47,CntyQuery!$A$171:$FZ$185,AM$1)","v":582.30999999999995},{"$f":"VLOOKUP(DropDownList!$B$47,CntyQuery!$A$171:$FZ$185,AN$1)","v":632.73},{"$f":"VLOOKUP(DropDownList!$B$47,CntyQuery!$A$171:$FZ$185,AO$1)","v":606.52},{"$f":"VLOOKUP(DropDownList!$B$47,CntyQuery!$A$171:$FZ$185,AP$1)","v":993.67},{"$f":"VLOOKUP(DropDownList!$B$47,CntyQuery!$A$171:$FZ$185,AQ$1)","v":99},{"$f":"VLOOKUP(DropDownList!$B$47,CntyQuery!$A$171:$FZ$185,AR$1)","v":78},{"$f":"VLOOKUP(DropDownList!$B$47,CntyQuery!$A$171:$FZ$185,AS$1)","v":72},{"$f":"VLOOKUP(DropDownList!$B$47,CntyQuery!$A$171:$FZ$185,AT$1)","v":6},{"$f":"VLOOKUP(DropDownList!$B$47,CntyQuery!$A$171:$FZ$185,AU$1)","v":663.38},{"$f":"VLOOKUP(DropDownList!$B$47,CntyQuery!$A$171:$FZ$185,AV$1)","v":744.67},{"$f":"VLOOKUP(DropDownList!$B$47,CntyQuery!$A$171:$FZ$185,AW$1)","v":654.92999999999995},{"$f":"VLOOKUP(DropDownList!$B$47,CntyQuery!$A$171:$FZ$185,AX$1)","v":1788.76},{"$f":"VLOOKUP(DropDownList!$B$47,CntyQuery!$A$171:$FZ$185,AY$1)","v":97},{"$f":"VLOOKUP(DropDownList!$B$47,CntyQuery!$A$171:$FZ$185,AZ$1)","v":74},{"$f":"VLOOKUP(DropDownList!$B$47,CntyQuery!$A$171:$FZ$185,BA$1)","v":68},{"$f":"VLOOKUP(DropDownList!$B$47,CntyQuery!$A$171:$FZ$185,BB$1)","v":7},{"$f":"VLOOKUP(DropDownList!$B$47,CntyQuery!$A$171:$FZ$185,BC$1)","v":653},{"$f":"VLOOKUP(DropDownList!$B$47,CntyQuery!$A$171:$FZ$185,BD$1)","v":733.26},{"$f":"VLOOKUP(DropDownList!$B$47,CntyQuery!$A$171:$FZ$185,BE$1)","v":658.76},{"$f":"VLOOKUP(DropDownList!$B$47,CntyQuery!$A$171:$FZ$185,BF$1)","v":1508.89},{"$f":"VLOOKUP(DropDownList!$B$47,CntyQuery!$A$171:$FZ$185,BG$1)","v":88},{"$f":"VLOOKUP(DropDownList!$B$47,CntyQuery!$A$171:$FZ$185,BH$1)","v":70},{"$f":"VLOOKUP(DropDownList!$B$47,CntyQuery!$A$171:$FZ$185,BI$1)","v":65},{"$f":"VLOOKUP(DropDownList!$B$47,CntyQuery!$A$171:$FZ$185,BJ$1)","v":5},{"$f":"VLOOKUP(DropDownList!$B$47,CntyQuery!$A$171:$FZ$185,BK$1)","v":694.94},{"$f":"VLOOKUP(DropDownList!$B$47,CntyQuery!$A$171:$FZ$185,BL$1)","v":770.13},{"$f":"VLOOKUP(DropDownList!$B$47,CntyQuery!$A$171:$FZ$185,BM$1)","v":770.11},{"$f":"VLOOKUP(DropDownList!$B$47,CntyQuery!$A$171:$FZ$185,BN$1)","v":770.35},{"$f":"VLOOKUP(DropDownList!$B$47,CntyQuery!$A$171:$FZ$185,BO$1)","v":107},{"$f":"VLOOKUP(DropDownList!$B$47,CntyQuery!$A$171:$FZ$185,BP$1)","v":92},{"$f":"VLOOKUP(DropDownList!$B$47,CntyQuery!$A$171:$FZ$185,BQ$1)","v":"n"},{"$f":"VLOOKUP(DropDownList!$B$47,CntyQuery!$A$171:$FZ$185,BR$1)","v":"n"},{"$f":"VLOOKUP(DropDownList!$B$47,CntyQuery!$A$171:$FZ$185,BS$1)","v":718.2},{"$f":"VLOOKUP(DropDownList!$B$47,CntyQuery!$A$171:$FZ$185,BT$1)","v":782.26},{"$f":"VLOOKUP(DropDownList!$B$47,CntyQuery!$A$171:$FZ$185,BU$1)","v":"n"},{"$f":"VLOOKUP(DropDownList!$B$47,CntyQuery!$A$171:$FZ$185,BV$1)","v":"n"},{"$f":"VLOOKUP(DropDownList!$B$47,CntyQuery!$A$171:$FZ$185,BW$1)","v":83},{"$f":"VLOOKUP(DropDownList!$B$47,CntyQuery!$A$171:$FZ$185,BX$1)","v":69},{"$f":"VLOOKUP(DropDownList!$B$47,CntyQuery!$A$171:$FZ$185,BY$1)","v":64},{"$f":"VLOOKUP(DropDownList!$B$47,CntyQuery!$A$171:$FZ$185,BZ$1)","v":5},{"$f":"VLOOKUP(DropDownList!$B$47,CntyQuery!$A$171:$FZ$185,CA$1)","v":974.89},{"$f":"VLOOKUP(DropDownList!$B$47,CntyQuery!$A$171:$FZ$185,CB$1)","v":1111.9100000000001},{"$f":"VLOOKUP(DropDownList!$B$47,CntyQuery!$A$171:$FZ$185,CC$1)","v":1138.97},{"$f":"VLOOKUP(DropDownList!$B$47,CntyQuery!$A$171:$FZ$185,CD$1)","v":746.85},{"$f":"VLOOKUP(DropDownList!$B$47,CntyQuery!$A$171:$FZ$185,CE$1)","v":91},{"$f":"VLOOKUP(DropDownList!$B$47,CntyQuery!$A$171:$FZ$185,CF$1)","v":77},{"$f":"VLOOKUP(DropDownList!$B$47,CntyQuery!$A$171:$FZ$185,CG$1)","v":69},{"$f":"VLOOKUP(DropDownList!$B$47,CntyQuery!$A$171:$FZ$185,CH$1)","v":7},{"$f":"VLOOKUP(DropDownList!$B$47,CntyQuery!$A$171:$FZ$185,CI$1)","v":637.09},{"$f":"VLOOKUP(DropDownList!$B$47,CntyQuery!$A$171:$FZ$185,CJ$1)","v":698.52},{"$f":"VLOOKUP(DropDownList!$B$47,CntyQuery!$A$171:$FZ$185,CK$1)","v":723.71},{"$f":"VLOOKUP(DropDownList!$B$47,CntyQuery!$A$171:$FZ$185,CL$1)","v":463.81},{"$f":"VLOOKUP(DropDownList!$B$47,CntyQuery!$A$171:$FZ$185,CM$1)","v":95},{"$f":"VLOOKUP(DropDownList!$B$47,CntyQuery!$A$171:$FZ$185,CN$1)","v":81},{"$f":"VLOOKUP(DropDownList!$B$47,CntyQuery!$A$171:$FZ$185,CO$1)","v":73},{"$f":"VLOOKUP(DropDownList!$B$47,CntyQuery!$A$171:$FZ$185,CP$1)","v":8},{"$f":"VLOOKUP(DropDownList!$B$47,CntyQuery!$A$171:$FZ$185,CQ$1)","v":870.72},{"$f":"VLOOKUP(DropDownList!$B$47,CntyQuery!$A$171:$FZ$185,CR$1)","v":957.56},{"$f":"VLOOKUP(DropDownList!$B$47,CntyQuery!$A$171:$FZ$185,CS$1)","v":1035.69},{"$f":"VLOOKUP(DropDownList!$B$47,CntyQuery!$A$171:$FZ$185,CT$1)","v":253.57},{"$f":"VLOOKUP(DropDownList!$B$47,CntyQuery!$A$171:$FZ$185,CU$1)","v":103},{"$f":"VLOOKUP(DropDownList!$B$47,CntyQuery!$A$171:$FZ$185,CV$1)","v":84},{"$f":"VLOOKUP(DropDownList!$B$47,CntyQuery!$A$171:$FZ$185,CW$1)","v":"n"},{"$f":"VLOOKUP(DropDownList!$B$47,CntyQuery!$A$171:$FZ$185,CX$1)","v":"n"},{"$f":"VLOOKUP(DropDownList!$B$47,CntyQuery!$A$171:$FZ$185,CY$1)","v":836.51},{"$f":"VLOOKUP(DropDownList!$B$47,CntyQuery!$A$171:$FZ$185,CZ$1)","v":923.65},{"$f":"VLOOKUP(DropDownList!$B$47,CntyQuery!$A$171:$FZ$185,DA$1)","v":"n"},{"$f":"VLOOKUP(DropDownList!$B$47,CntyQuery!$A$171:$FZ$185,DB$1)","v":"n"},{"$f":"VLOOKUP(DropDownList!$B$47,CntyQuery!$A$171:$FZ$185,DC$1)","v":104},{"$f":"VLOOKUP(DropDownList!$B$47,CntyQuery!$A$171:$FZ$185,DD$1)","v":86},{"$f":"VLOOKUP(DropDownList!$B$47,CntyQuery!$A$171:$FZ$185,DE$1)","v":73},{"$f":"VLOOKUP(DropDownList!$B$47,CntyQuery!$A$171:$FZ$185,DF$1)","v":13},{"$f":"VLOOKUP(DropDownList!$B$47,CntyQuery!$A$171:$FZ$185,DG$1)","v":935.72},{"$f":"VLOOKUP(DropDownList!$B$47,CntyQuery!$A$171:$FZ$185,DH$1)","v":1034.3499999999999},{"$f":"VLOOKUP(DropDownList!$B$47,CntyQuery!$A$171:$FZ$185,DI$1)","v":1150.56},{"$f":"VLOOKUP(DropDownList!$B$47,CntyQuery!$A$171:$FZ$185,DJ$1)","v":369.51},{"$f":"VLOOKUP(DropDownList!$B$47,CntyQuery!$A$171:$FZ$185,DK$1)","v":"106"},{"$f":"VLOOKUP(DropDownList!$B$47,CntyQuery!$A$171:$FZ$185,DL$1)","v":"89"},{"$f":"VLOOKUP(DropDownList!$B$47,CntyQuery!$A$171:$FZ$185,DM$1)","v":"73"},{"$f":"VLOOKUP(DropDownList!$B$47,CntyQuery!$A$171:$FZ$185,DN$1)","v":"16"},{"$f":"VLOOKUP(DropDownList!$B$47,CntyQuery!$A$171:$FZ$185,DO$1)","v":"916.47"},{"$f":"VLOOKUP(DropDownList!$B$47,CntyQuery!$A$171:$FZ$185,DP$1)","v":"992.96"},{"$f":"VLOOKUP(DropDownList!$B$47,CntyQuery!$A$171:$FZ$185,DQ$1)","v":"1116.08"},{"$f":"VLOOKUP(DropDownList!$B$47,CntyQuery!$A$171:$FZ$185,DR$1)","v":"422.03"},{"$f":"VLOOKUP(DropDownList!$B$47,CntyQuery!$A$171:$FZ$185,DS$1)","v":124},{"$f":"VLOOKUP(DropDownList!$B$47,CntyQuery!$A$171:$FZ$185,DT$1)","v":107},{"$f":"VLOOKUP(DropDownList!$B$47,CntyQuery!$A$171:$FZ$185,DU$1)","v":82},{"$f":"VLOOKUP(DropDownList!$B$47,CntyQuery!$A$171:$FZ$185,DV$1)","v":25},{"$f":"VLOOKUP(DropDownList!$B$47,CntyQuery!$A$171:$FZ$185,DW$1)","v":673.64},{"$f":"VLOOKUP(DropDownList!$B$47,CntyQuery!$A$171:$FZ$185,DX$1)","v":698.45},{"$f":"VLOOKUP(DropDownList!$B$47,CntyQuery!$A$171:$FZ$185,DY$1)","v":783.75},{"$f":"VLOOKUP(DropDownList!$B$47,CntyQuery!$A$171:$FZ$185,DZ$1)","v":422.29},{"$f":"VLOOKUP(DropDownList!$B$47,CntyQuery!$A$171:$FZ$185,EA$1)","v":119},{"$f":"VLOOKUP(DropDownList!$B$47,CntyQuery!$A$171:$FZ$185,EB$1)","v":100},{"$f":"VLOOKUP(DropDownList!$B$47,CntyQuery!$A$171:$FZ$185,EC$1)","v":80},{"$f":"VLOOKUP(DropDownList!$B$47,CntyQuery!$A$171:$FZ$185,ED$1)","v":20},{"$f":"VLOOKUP(DropDownList!$B$47,CntyQuery!$A$171:$FZ$185,EE$1)","v":727.47},{"$f":"VLOOKUP(DropDownList!$B$47,CntyQuery!$A$171:$FZ$185,EF$1)","v":767.13},{"$f":"VLOOKUP(DropDownList!$B$47,CntyQuery!$A$171:$FZ$185,EG$1)","v":855.47},{"$f":"VLOOKUP(DropDownList!$B$47,CntyQuery!$A$171:$FZ$185,EH$1)","v":416.7},{"$f":"VLOOKUP(DropDownList!$B$47,CntyQuery!$A$171:$FZ$185,EI$1)","v":117},{"$f":"VLOOKUP(DropDownList!$B$47,CntyQuery!$A$171:$FZ$185,EJ$1)","v":98},{"$f":"VLOOKUP(DropDownList!$B$47,CntyQuery!$A$171:$FZ$185,EK$1)","v":86},{"$f":"VLOOKUP(DropDownList!$B$47,CntyQuery!$A$171:$FZ$185,EL$1)","v":12},{"$f":"VLOOKUP(DropDownList!$B$47,CntyQuery!$A$171:$FZ$185,EM$1)","v":727.25},{"$f":"VLOOKUP(DropDownList!$B$47,CntyQuery!$A$171:$FZ$185,EN$1)","v":760.55},{"$f":"VLOOKUP(DropDownList!$B$47,CntyQuery!$A$171:$FZ$185,EO$1)","v":821},{"$f":"VLOOKUP(DropDownList!$B$47,CntyQuery!$A$171:$FZ$185,EP$1)","v":329.08},{"$f":"VLOOKUP(DropDownList!$B$47,CntyQuery!$A$171:$FZ$185,EQ$1)","v":112},{"$f":"VLOOKUP(DropDownList!$B$47,CntyQuery!$A$171:$FZ$185,ER$1)","v":95},{"$f":"VLOOKUP(DropDownList!$B$47,CntyQuery!$A$171:$FZ$185,ES$1)","v":17},{"$f":"VLOOKUP(DropDownList!$B$47,CntyQuery!$A$171:$FZ$185,ET$1)","v":83},{"$f":"VLOOKUP(DropDownList!$B$47,CntyQuery!$A$171:$FZ$185,EU$1)","v":12},{"$f":"VLOOKUP(DropDownList!$B$47,CntyQuery!$A$171:$FZ$185,EV$1)","v":979.14},{"$f":"VLOOKUP(DropDownList!$B$47,CntyQuery!$A$171:$FZ$185,EW$1)","v":829.52},{"$f":"VLOOKUP(DropDownList!$B$47,CntyQuery!$A$171:$FZ$185,EX$1)","v":1814.8},{"$f":"VLOOKUP(DropDownList!$B$47,CntyQuery!$A$171:$FZ$185,EY$1)","v":896.99},{"$f":"VLOOKUP(DropDownList!$B$47,CntyQuery!$A$171:$FZ$185,EZ$1)","v":367.87}]
[]
[]
["Labor Force and Unemployment Rate","Query Name: DPQryUnempByCnty"]
["PlaceName","LaborForce1990","LaborForce1991","LaborForce1992","LaborForce1993","LaborForce1994","LaborForce1995","LaborForce1996","LaborForce1997","LaborForce1998","LaborForce1999","LaborForce2000","LaborForce2001","LaborForce2002","LaborForce2003","NumberEmployed1990","NumberEmployed1991","NumberEmployed1992","NumberEmployed1993","NumberEmployed1994","NumberEmployed1995","NumberEmployed1996","NumberEmployed1997","NumberEmployed1998","NumberEmployed1999","NumberEmployed2000","NumberEmployed2001","NumberEmployed2002","NumberEmployed2003","UnempRate1990","UnempRate1991","UnempRate1992","UnempRate1993","UnempRate1994","UnempRate1995","UnempRate1996","UnempRate1997","UnempRate1998","UnempRate1999","UnempRate2000","UnempRate2001","UnempRate2002","UnempRate2003","NumbUnEmployed1990","NumbUnEmployed1991","NumbUnEmployed1992","NumbUnEmployed1993","NumbUnEmployed1994","NumbUnEmployed1995","NumbUnEmployed1996","NumbUnEmployed1997","NumbUnEmployed1998","NumbUnEmployed1999","NumbUnEmployed2000","NumbUnEmployed2001","NumbUnEmployed2002","NumbUnEmployed2003","LaborForce2004","NumberEmployed2004","UnempRate2004","NumbUnEmployed2004","LaborForce2005","NumberEmployed2005","NumbUnEmp2005","UnempRate2005","LaborForce2006","NumberEmployed2006","NumbUnEmp2006","UnempRate2006","LaborForce2007","NumberEmployed2007","NumbUnEmp2007","UnempRate2007","LaborForce2008","NumberEmployed2008","NumbUnEmp2008","UnempRate2008","LaborForce2009","NumberEmployed2009","NumbUnEmp2009","UnempRate2009"]
[{"$f":"VLOOKUP(DropDownList!$B$47,CntyQuery!$A$220:$CC$229,A$1)","v":{"$error":"#N/A"}},{"$f":"VLOOKUP(DropDownList!$B$47,CntyQuery!$A$220:$CC$229,B$1)","v":{"$error":"#N/A"}},{"$f":"VLOOKUP(DropDownList!$B$47,CntyQuery!$A$220:$CC$229,C$1)","v":{"$error":"#N/A"}},{"$f":"VLOOKUP(DropDownList!$B$47,CntyQuery!$A$220:$CC$229,D$1)","v":{"$error":"#N/A"}},{"$f":"VLOOKUP(DropDownList!$B$47,CntyQuery!$A$220:$CC$229,E$1)","v":{"$error":"#N/A"}},{"$f":"VLOOKUP(DropDownList!$B$47,CntyQuery!$A$220:$CC$229,F$1)","v":{"$error":"#N/A"}},{"$f":"VLOOKUP(DropDownList!$B$47,CntyQuery!$A$220:$CC$229,G$1)","v":{"$error":"#N/A"}},{"$f":"VLOOKUP(DropDownList!$B$47,CntyQuery!$A$220:$CC$229,H$1)","v":{"$error":"#N/A"}},{"$f":"VLOOKUP(DropDownList!$B$47,CntyQuery!$A$220:$CC$229,I$1)","v":{"$error":"#N/A"}},{"$f":"VLOOKUP(DropDownList!$B$47,CntyQuery!$A$220:$CC$229,J$1)","v":{"$error":"#N/A"}},{"$f":"VLOOKUP(DropDownList!$B$47,CntyQuery!$A$220:$CC$229,K$1)","v":{"$error":"#N/A"}},{"$f":"VLOOKUP(DropDownList!$B$47,CntyQuery!$A$220:$CC$229,L$1)","v":{"$error":"#N/A"}},{"$f":"VLOOKUP(DropDownList!$B$47,CntyQuery!$A$220:$CC$229,M$1)","v":{"$error":"#N/A"}},{"$f":"VLOOKUP(DropDownList!$B$47,CntyQuery!$A$220:$CC$229,N$1)","v":{"$error":"#N/A"}},{"$f":"VLOOKUP(DropDownList!$B$47,CntyQuery!$A$220:$CC$229,O$1)","v":{"$error":"#N/A"}},{"$f":"VLOOKUP(DropDownList!$B$47,CntyQuery!$A$220:$CC$229,P$1)","v":{"$error":"#N/A"}},{"$f":"VLOOKUP(DropDownList!$B$47,CntyQuery!$A$220:$CC$229,Q$1)","v":{"$error":"#N/A"}},{"$f":"VLOOKUP(DropDownList!$B$47,CntyQuery!$A$220:$CC$229,R$1)","v":{"$error":"#N/A"}},{"$f":"VLOOKUP(DropDownList!$B$47,CntyQuery!$A$220:$CC$229,S$1)","v":{"$error":"#N/A"}},{"$f":"VLOOKUP(DropDownList!$B$47,CntyQuery!$A$220:$CC$229,T$1)","v":{"$error":"#N/A"}},{"$f":"VLOOKUP(DropDownList!$B$47,CntyQuery!$A$220:$CC$229,U$1)","v":{"$error":"#N/A"}},{"$f":"VLOOKUP(DropDownList!$B$47,CntyQuery!$A$220:$CC$229,V$1)","v":{"$error":"#N/A"}},{"$f":"VLOOKUP(DropDownList!$B$47,CntyQuery!$A$220:$CC$229,W$1)","v":{"$error":"#N/A"}},{"$f":"VLOOKUP(DropDownList!$B$47,CntyQuery!$A$220:$CC$229,X$1)","v":{"$error":"#N/A"}},{"$f":"VLOOKUP(DropDownList!$B$47,CntyQuery!$A$220:$CC$229,Y$1)","v":{"$error":"#N/A"}},{"$f":"VLOOKUP(DropDownList!$B$47,CntyQuery!$A$220:$CC$229,Z$1)","v":{"$error":"#N/A"}},{"$f":"VLOOKUP(DropDownList!$B$47,CntyQuery!$A$220:$CC$229,AA$1)","v":{"$error":"#N/A"}},{"$f":"VLOOKUP(DropDownList!$B$47,CntyQuery!$A$220:$CC$229,AB$1)","v":{"$error":"#N/A"}},{"$f":"VLOOKUP(DropDownList!$B$47,CntyQuery!$A$220:$CC$229,AC$1)","v":{"$error":"#N/A"}},{"$f":"VLOOKUP(DropDownList!$B$47,CntyQuery!$A$220:$CC$229,AD$1)","v":{"$error":"#N/A"}},{"$f":"VLOOKUP(DropDownList!$B$47,CntyQuery!$A$220:$CC$229,AE$1)","v":{"$error":"#N/A"}},{"$f":"VLOOKUP(DropDownList!$B$47,CntyQuery!$A$220:$CC$229,AF$1)","v":{"$error":"#N/A"}},{"$f":"VLOOKUP(DropDownList!$B$47,CntyQuery!$A$220:$CC$229,AG$1)","v":{"$error":"#N/A"}},{"$f":"VLOOKUP(DropDownList!$B$47,CntyQuery!$A$220:$CC$229,AH$1)","v":{"$error":"#N/A"}},{"$f":"VLOOKUP(DropDownList!$B$47,CntyQuery!$A$220:$CC$229,AI$1)","v":{"$error":"#N/A"}},{"$f":"VLOOKUP(DropDownList!$B$47,CntyQuery!$A$220:$CC$229,AJ$1)","v":{"$error":"#N/A"}},{"$f":"VLOOKUP(DropDownList!$B$47,CntyQuery!$A$220:$CC$229,AK$1)","v":{"$error":"#N/A"}},{"$f":"VLOOKUP(DropDownList!$B$47,CntyQuery!$A$220:$CC$229,AL$1)","v":{"$error":"#N/A"}},{"$f":"VLOOKUP(DropDownList!$B$47,CntyQuery!$A$220:$CC$229,AM$1)","v":{"$error":"#N/A"}},{"$f":"VLOOKUP(DropDownList!$B$47,CntyQuery!$A$220:$CC$229,AN$1)","v":{"$error":"#N/A"}},{"$f":"VLOOKUP(DropDownList!$B$47,CntyQuery!$A$220:$CC$229,AO$1)","v":{"$error":"#N/A"}},{"$f":"VLOOKUP(DropDownList!$B$47,CntyQuery!$A$220:$CC$229,AP$1)","v":{"$error":"#N/A"}},{"$f":"VLOOKUP(DropDownList!$B$47,CntyQuery!$A$220:$CC$229,AQ$1)","v":{"$error":"#N/A"}},{"$f":"VLOOKUP(DropDownList!$B$47,CntyQuery!$A$220:$CC$229,AR$1)","v":{"$error":"#N/A"}},{"$f":"VLOOKUP(DropDownList!$B$47,CntyQuery!$A$220:$CC$229,AS$1)","v":{"$error":"#N/A"}},{"$f":"VLOOKUP(DropDownList!$B$47,CntyQuery!$A$220:$CC$229,AT$1)","v":{"$error":"#N/A"}},{"$f":"VLOOKUP(DropDownList!$B$47,CntyQuery!$A$220:$CC$229,AU$1)","v":{"$error":"#N/A"}},{"$f":"VLOOKUP(DropDownList!$B$47,CntyQuery!$A$220:$CC$229,AV$1)","v":{"$error":"#N/A"}},{"$f":"VLOOKUP(DropDownList!$B$47,CntyQuery!$A$220:$CC$229,AW$1)","v":{"$error":"#N/A"}},{"$f":"VLOOKUP(DropDownList!$B$47,CntyQuery!$A$220:$CC$229,AX$1)","v":{"$error":"#N/A"}},{"$f":"VLOOKUP(DropDownList!$B$47,CntyQuery!$A$220:$CC$229,AY$1)","v":{"$error":"#N/A"}},{"$f":"VLOOKUP(DropDownList!$B$47,CntyQuery!$A$220:$CC$229,AZ$1)","v":{"$error":"#N/A"}},{"$f":"VLOOKUP(DropDownList!$B$47,CntyQuery!$A$220:$CC$229,BA$1)","v":{"$error":"#N/A"}},{"$f":"VLOOKUP(DropDownList!$B$47,CntyQuery!$A$220:$CC$229,BB$1)","v":{"$error":"#N/A"}},{"$f":"VLOOKUP(DropDownList!$B$47,CntyQuery!$A$220:$CC$229,BC$1)","v":{"$error":"#N/A"}},{"$f":"VLOOKUP(DropDownList!$B$47,CntyQuery!$A$220:$CC$229,BD$1)","v":{"$error":"#N/A"}},{"$f":"VLOOKUP(DropDownList!$B$47,CntyQuery!$A$220:$CC$229,BE$1)","v":{"$error":"#N/A"}},{"$f":"VLOOKUP(DropDownList!$B$47,CntyQuery!$A$220:$CC$229,BF$1)","v":{"$error":"#N/A"}},{"$f":"VLOOKUP(DropDownList!$B$47,CntyQuery!$A$220:$CC$229,BG$1)","v":{"$error":"#N/A"}},{"$f":"VLOOKUP(DropDownList!$B$47,CntyQuery!$A$220:$CC$229,BH$1)","v":{"$error":"#N/A"}},{"$f":"VLOOKUP(DropDownList!$B$47,CntyQuery!$A$220:$CC$229,BI$1)","v":{"$error":"#N/A"}},{"$f":"VLOOKUP(DropDownList!$B$47,CntyQuery!$A$220:$CC$229,BJ$1)","v":{"$error":"#N/A"}},{"$f":"VLOOKUP(DropDownList!$B$47,CntyQuery!$A$220:$CC$229,BK$1)","v":{"$error":"#N/A"}},{"$f":"VLOOKUP(DropDownList!$B$47,CntyQuery!$A$220:$CC$229,BL$1)","v":{"$error":"#N/A"}},{"$f":"VLOOKUP(DropDownList!$B$47,CntyQuery!$A$220:$CC$229,BM$1)","v":{"$error":"#N/A"}},{"$f":"VLOOKUP(DropDownList!$B$47,CntyQuery!$A$220:$CC$229,BN$1)","v":{"$error":"#N/A"}},{"$f":"VLOOKUP(DropDownList!$B$47,CntyQuery!$A$220:$CC$229,BO$1)","v":{"$error":"#N/A"}},{"$f":"VLOOKUP(DropDownList!$B$47,CntyQuery!$A$220:$CC$229,BP$1)","v":{"$error":"#N/A"}},{"$f":"VLOOKUP(DropDownList!$B$47,CntyQuery!$A$220:$CC$229,BQ$1)","v":{"$error":"#N/A"}},{"$f":"VLOOKUP(DropDownList!$B$47,CntyQuery!$A$220:$CC$229,BR$1)","v":{"$error":"#N/A"}},{"$f":"VLOOKUP(DropDownList!$B$47,CntyQuery!$A$220:$CC$229,BS$1)","v":{"$error":"#N/A"}},{"$f":"VLOOKUP(DropDownList!$B$47,CntyQuery!$A$220:$CC$229,BT$1)","v":{"$error":"#N/A"}},{"$f":"VLOOKUP(DropDownList!$B$47,CntyQuery!$A$220:$CC$229,BU$1)","v":{"$error":"#N/A"}},{"$f":"VLOOKUP(DropDownList!$B$47,CntyQuery!$A$220:$CC$229,BV$1)","v":{"$error":"#N/A"}},{"$f":"VLOOKUP(DropDownList!$B$47,CntyQuery!$A$220:$CC$229,BW$1)","v":{"$error":"#N/A"}},{"$f":"VLOOKUP(DropDownList!$B$47,CntyQuery!$A$220:$CC$229,BX$1)","v":{"$error":"#N/A"}},{"$f":"VLOOKUP(DropDownList!$B$47,CntyQuery!$A$220:$CC$229,BY$1)","v":{"$error":"#N/A"}},{"$f":"VLOOKUP(DropDownList!$B$47,CntyQuery!$A$220:$CC$229,BZ$1)","v":{"$error":"#N/A"}},{"$f":"VLOOKUP(DropDownList!$B$47,CntyQuery!$A$220:$CC$229,CA$1)","v":{"$error":"#N/A"}},{"$f":"VLOOKUP(DropDownList!$B$47,CntyQuery!$A$220:$CC$229,CB$1)","v":{"$error":"#N/A"}},{"$f":"VLOOKUP(DropDownList!$B$47,CntyQuery!$A$220:$CC$229,CC$1)","v":{"$error":"#N/A"}}]
[]
[null,null,null,null,null,null,null,null,null,null,null,null,{"$f":"IF((CntyDataLink!$BL$25)=\"n\",NA(),IF(VALUE(CntyDataLink!$BL$25)=\"\",NA(),VALUE(CntyDataLink!$BL$25)))","v":770.13}]
["Census 2000   -           Query Name:  TownAllQuery3",2,{"$f":"B33+1","v":3},{"$f":"C33+1","v":4},5,6,7,8,9,10,11,12,13,14,15,16,17,18,19,20,21,22,23,24,25,26,27,28,29,30,31,32,33,34,35,36,37,38,39,40,41,42,43,44,45,46,47,48,49,50,51,52,53,54,55,56,57,58,59,60,61,62,63,64,65,66,67,{"$f":"BO33+1","v":68},69,70,71,72,73,74,75,76,77,78,79,80,81,82,83,84,85,86,87,88,89,90,91,92,93,94,95,96,97,98,99,100,101,102]
["NAME","COUNTY","LOGRECNO","COUSUB","TRACT","AREALAND","AREAWATR","POP100","HU100","2000Population","PopOfOneRace","PopWhite","PopBlack","PopAmIndian","PopAsian","PopHawaiian","PopOtherRace","Pop2orMoreRaces","PopHispanicLatino","PopNotHispanicLatino","PopMale","PopMale<15","PopMale15to24","PopMale25to34","PopMale35to44","PopMale45to54","PopMale55to64","PopMale65to74","PopMale75to84","PopMale85andOver","PopFemale","PopFemale<15","PopFemale15to24","PopFemale25to34","PopFemale35t44","PopFemale45to54","PopFemale55to64","PopFemale65to74","PopFemale75to84","PopFemale85andOver","Households2000","PopInHH","AvgHHSize","HHs1Person","HHs2orMorePerson","HHsFamily","HHMarriedCoupleFam","HHSingleParentFam","HHsNonFamily","Families","PopInFam","AvgFamSize","TotHsUnits","OccHsUnits","OwnerOccHU","RenterOccHU","VctHsUnits","VctHUForRent","VctHUForSale","VctHUSeasonal","PopInOccHU","PopInOwnOccHU","PopInRntOccHU","AvgHHSize2","AvgHHSizOwnOcc","AvgHHSizRntOcc","OwnOccWhtHsHldr","OwnOccBlkHsHldr","OwnOccAmIHsHldr","OwnOccAsnHsHldr","OwnOccPIsHsHldr","OwnOccORHsHldr","OwnOcc2RcHsHldr","RntOccWhtHsHldr","RntOccBlkHsHldr","RntOccAmIHsHldr","RntOccAsnHsHldr","RntOccPIsHsHldr","RntOccORHsHldr","RntOcc2RcHsHldr","OwnOccHH15to24","OwnOccHH25to34","OwnOccHH35to44","OwnOccHH45to54","OwnOccHH55to64","OwnOccHH65to74","OwnOccHH75to84","OwnOccHH85Over","RntOccHH15to24","RntOccHH25to34","RntOccHH35to44","RntOccHH45to54","RntOccHH55to64","RntOccHH65to74","RntOccHH75to84","RntOccHH85Over","P27TotalPop","P27PopInHseHlds","P27PopInGrpQtrs","Median Age Total","Median Age (Male)","Median Age (Female)"]
[{"$f":"VLOOKUP(DropDownList!$B$47,CntyQryCensus!$A$4:$CW$46,A$1)","v":"Acworth"},{"$f":"VLOOKUP(DropDownList!$B$47,CntyQryCensus!$A$4:$CW$46,B$1)","v":"019"},{"$f":"VLOOKUP(DropDownList!$B$47,CntyQryCensus!$A$4:$CW$46,C$1)","v":"0035914"},{"$f":"VLOOKUP(DropDownList!$B$47,CntyQryCensus!$A$4:$CW$46,D$1)","v":"00260"},{"$f":"VLOOKUP(DropDownList!$B$47,CntyQryCensus!$A$4:$CW$46,E$1)","v":""},{"$f":"VLOOKUP(DropDownList!$B$47,CntyQryCensus!$A$4:$CW$46,F$1)","v":"     100723552"},{"$f":"VLOOKUP(DropDownList!$B$47,CntyQryCensus!$A$4:$CW$46,G$1)","v":"        634512"},{"$f":"VLOOKUP(DropDownList!$B$47,CntyQryCensus!$A$4:$CW$46,H$1)","v":836},{"$f":"VLOOKUP(DropDownList!$B$47,CntyQryCensus!$A$4:$CW$46,I$1)","v":"      512"},{"$f":"VLOOKUP(DropDownList!$B$47,CntyQryCensus!$A$4:$CW$46,J$1)","v":836},{"$f":"VLOOKUP(DropDownList!$B$47,CntyQryCensus!$A$4:$CW$46,K$1)","v":825},{"$f":"VLOOKUP(DropDownList!$B$47,CntyQryCensus!$A$4:$CW$46,L$1)","v":809},{"$f":"VLOOKUP(DropDownList!$B$47,CntyQryCensus!$A$4:$CW$46,M$1)","v":7},{"$f":"VLOOKUP(DropDownList!$B$47,CntyQryCensus!$A$4:$CW$46,N$1)","v":7},{"$f":"VLOOKUP(DropDownList!$B$47,CntyQryCensus!$A$4:$CW$46,O$1)","v":2},{"$f":"VLOOKUP(DropDownList!$B$47,CntyQryCensus!$A$4:$CW$46,P$1)","v":0},{"$f":"VLOOKUP(DropDownList!$B$47,CntyQryCensus!$A$4:$CW$46,Q$1)","v":0},{"$f":"VLOOKUP(DropDownList!$B$47,CntyQryCensus!$A$4:$CW$46,R$1)","v":11},{"$f":"VLOOKUP(DropDownList!$B$47,CntyQryCensus!$A$4:$CW$46,S$1)","v":9},{"$f":"VLOOKUP(DropDownList!$B$47,CntyQryCensus!$A$4:$CW$46,T$1)","v":827},{"$f":"VLOOKUP(DropDownList!$B$47,CntyQryCensus!$A$4:$CW$46,U$1)","v":421},{"$f":"VLOOKUP(DropDownList!$B$47,CntyQryCensus!$A$4:$CW$46,V$1)","v":89},{"$f":"VLOOKUP(DropDownList!$B$47,CntyQryCensus!$A$4:$CW$46,W$1)","v":42},{"$f":"VLOOKUP(DropDownList!$B$47,CntyQryCensus!$A$4:$CW$46,X$1)","v":32},{"$f":"VLOOKUP(DropDownList!$B$47,CntyQryCensus!$A$4:$CW$46,Y$1)","v":67},{"$f":"VLOOKUP(DropDownList!$B$47,CntyQryCensus!$A$4:$CW$46,Z$1)","v":83},{"$f":"VLOOKUP(DropDownList!$B$47,CntyQryCensus!$A$4:$CW$46,AA$1)","v":50},{"$f":"VLOOKUP(DropDownList!$B$47,CntyQryCensus!$A$4:$CW$46,AB$1)","v":40},{"$f":"VLOOKUP(DropDownList!$B$47,CntyQryCensus!$A$4:$CW$46,AC$1)","v":13},{"$f":"VLOOKUP(DropDownList!$B$47,CntyQryCensus!$A$4:$CW$46,AD$1)","v":5},{"$f":"VLOOKUP(DropDownList!$B$47,CntyQryCensus!$A$4:$CW$46,AE$1)","v":415},{"$f":"VLOOKUP(DropDownList!$B$47,CntyQryCensus!$A$4:$CW$46,AF$1)","v":86},{"$f":"VLOOKUP(DropDownList!$B$47,CntyQryCensus!$A$4:$CW$46,AG$1)","v":37},{"$f":"VLOOKUP(DropDownList!$B$47,CntyQryCensus!$A$4:$CW$46,AH$1)","v":30},{"$f":"VLOOKUP(DropDownList!$B$47,CntyQryCensus!$A$4:$CW$46,AI$1)","v":72},{"$f":"VLOOKUP(DropDownList!$B$47,CntyQryCensus!$A$4:$CW$46,AJ$1)","v":73},{"$f":"VLOOKUP(DropDownList!$B$47,CntyQryCensus!$A$4:$CW$46,AK$1)","v":48},{"$f":"VLOOKUP(DropDownList!$B$47,CntyQryCensus!$A$4:$CW$46,AL$1)","v":44},{"$f":"VLOOKUP(DropDownList!$B$47,CntyQryCensus!$A$4:$CW$46,AM$1)","v":19},{"$f":"VLOOKUP(DropDownList!$B$47,CntyQryCensus!$A$4:$CW$46,AN$1)","v":6},{"$f":"VLOOKUP(DropDownList!$B$47,CntyQryCensus!$A$4:$CW$46,AO$1)","v":318},{"$f":"VLOOKUP(DropDownList!$B$47,CntyQryCensus!$A$4:$CW$46,AP$1)","v":836},{"$f":"VLOOKUP(DropDownList!$B$47,CntyQryCensus!$A$4:$CW$46,AQ$1)","v":2.63},{"$f":"VLOOKUP(DropDownList!$B$47,CntyQryCensus!$A$4:$CW$46,AR$1)","v":63},{"$f":"VLOOKUP(DropDownList!$B$47,CntyQryCensus!$A$4:$CW$46,AS$1)","v":255},{"$f":"VLOOKUP(DropDownList!$B$47,CntyQryCensus!$A$4:$CW$46,AT$1)","v":234},{"$f":"VLOOKUP(DropDownList!$B$47,CntyQryCensus!$A$4:$CW$46,AU$1)","v":193},{"$f":"VLOOKUP(DropDownList!$B$47,CntyQryCensus!$A$4:$CW$46,AV$1)","v":41},{"$f":"VLOOKUP(DropDownList!$B$47,CntyQryCensus!$A$4:$CW$46,AW$1)","v":21},{"$f":"VLOOKUP(DropDownList!$B$47,CntyQryCensus!$A$4:$CW$46,AX$1)","v":234},{"$f":"VLOOKUP(DropDownList!$B$47,CntyQryCensus!$A$4:$CW$46,AY$1)","v":716},{"$f":"VLOOKUP(DropDownList!$B$47,CntyQryCensus!$A$4:$CW$46,AZ$1)","v":3.06},{"$f":"VLOOKUP(DropDownList!$B$47,CntyQryCensus!$A$4:$CW$46,BA$1)","v":512},{"$f":"VLOOKUP(DropDownList!$B$47,CntyQryCensus!$A$4:$CW$46,BB$1)","v":318},{"$f":"VLOOKUP(DropDownList!$B$47,CntyQryCensus!$A$4:$CW$46,BC$1)","v":267},{"$f":"VLOOKUP(DropDownList!$B$47,CntyQryCensus!$A$4:$CW$46,BD$1)","v":51},{"$f":"VLOOKUP(DropDownList!$B$47,CntyQryCensus!$A$4:$CW$46,BE$1)","v":194},{"$f":"VLOOKUP(DropDownList!$B$47,CntyQryCensus!$A$4:$CW$46,BF$1)","v":6},{"$f":"VLOOKUP(DropDownList!$B$47,CntyQryCensus!$A$4:$CW$46,BG$1)","v":1},{"$f":"VLOOKUP(DropDownList!$B$47,CntyQryCensus!$A$4:$CW$46,BH$1)","v":172},{"$f":"VLOOKUP(DropDownList!$B$47,CntyQryCensus!$A$4:$CW$46,BI$1)","v":836},{"$f":"VLOOKUP(DropDownList!$B$47,CntyQryCensus!$A$4:$CW$46,BJ$1)","v":682},{"$f":"VLOOKUP(DropDownList!$B$47,CntyQryCensus!$A$4:$CW$46,BK$1)","v":154},{"$f":"VLOOKUP(DropDownList!$B$47,CntyQryCensus!$A$4:$CW$46,BL$1)","v":2.63},{"$f":"VLOOKUP(DropDownList!$B$47,CntyQryCensus!$A$4:$CW$46,BM$1)","v":2.5499999999999998},{"$f":"VLOOKUP(DropDownList!$B$47,CntyQryCensus!$A$4:$CW$46,BN$1)","v":3.02},{"$f":"VLOOKUP(DropDownList!$B$47,CntyQryCensus!$A$4:$CW$46,BO$1)","v":263},{"$f":"VLOOKUP(DropDownList!$B$47,CntyQryCensus!$A$4:$CW$46,BP$1)","v":0},{"$f":"VLOOKUP(DropDownList!$B$47,CntyQryCensus!$A$4:$CW$46,BQ$1)","v":2},{"$f":"VLOOKUP(DropDownList!$B$47,CntyQryCensus!$A$4:$CW$46,BR$1)","v":2},{"$f":"VLOOKUP(DropDownList!$B$47,CntyQryCensus!$A$4:$CW$46,BS$1)","v":0},{"$f":"VLOOKUP(DropDownList!$B$47,CntyQryCensus!$A$4:$CW$46,BT$1)","v":0},{"$f":"VLOOKUP(DropDownList!$B$47,CntyQryCensus!$A$4:$CW$46,BU$1)","v":0},{"$f":"VLOOKUP(DropDownList!$B$47,CntyQryCensus!$A$4:$CW$46,BV$1)","v":45},{"$f":"VLOOKUP(DropDownList!$B$47,CntyQryCensus!$A$4:$CW$46,BW$1)","v":1},{"$f":"VLOOKUP(DropDownList!$B$47,CntyQryCensus!$A$4:$CW$46,BX$1)","v":0},{"$f":"VLOOKUP(DropDownList!$B$47,CntyQryCensus!$A$4:$CW$46,BY$1)","v":0},{"$f":"VLOOKUP(DropDownList!$B$47,CntyQryCensus!$A$4:$CW$46,BZ$1)","v":0},{"$f":"VLOOKUP(DropDownList!$B$47,CntyQryCensus!$A$4:$CW$46,CA$1)","v":0},{"$f":"VLOOKUP(DropDownList!$B$47,CntyQryCensus!$A$4:$CW$46,CB$1)","v":5},{"$f":"VLOOKUP(DropDownList!$B$47,CntyQryCensus!$A$4:$CW$46,CC$1)","v":2},{"$f":"VLOOKUP(DropDownList!$B$47,CntyQryCensus!$A$4:$CW$46,CD$1)","v":16},{"$f":"VLOOKUP(DropDownList!$B$47,CntyQryCensus!$A$4:$CW$46,CE$1)","v":53},{"$f":"VLOOKUP(DropDownList!$B$47,CntyQryCensus!$A$4:$CW$46,CF$1)","v":80},{"$f":"VLOOKUP(DropDownList!$B$47,CntyQryCensus!$A$4:$CW$46,CG$1)","v":45},{"$f":"VLOOKUP(DropDownList!$B$47,CntyQryCensus!$A$4:$CW$46,CH$1)","v":51},{"$f":"VLOOKUP(DropDownList!$B$47,CntyQryCensus!$A$4:$CW$46,CI$1)","v":14},{"$f":"VLOOKUP(DropDownList!$B$47,CntyQryCensus!$A$4:$CW$46,CJ$1)","v":6},{"$f":"VLOOKUP(DropDownList!$B$47,CntyQryCensus!$A$4:$CW$46,CK$1)","v":1},{"$f":"VLOOKUP(DropDownList!$B$47,CntyQryCensus!$A$4:$CW$46,CL$1)","v":10},{"$f":"VLOOKUP(DropDownList!$B$47,CntyQryCensus!$A$4:$CW$46,CM$1)","v":15},{"$f":"VLOOKUP(DropDownList!$B$47,CntyQryCensus!$A$4:$CW$46,CN$1)","v":6},{"$f":"VLOOKUP(DropDownList!$B$47,CntyQryCensus!$A$4:$CW$46,CO$1)","v":8},{"$f":"VLOOKUP(DropDownList!$B$47,CntyQryCensus!$A$4:$CW$46,CP$1)","v":6},{"$f":"VLOOKUP(DropDownList!$B$47,CntyQryCensus!$A$4:$CW$46,CQ$1)","v":2},{"$f":"VLOOKUP(DropDownList!$B$47,CntyQryCensus!$A$4:$CW$46,CR$1)","v":3},{"$f":"VLOOKUP(DropDownList!$B$47,CntyQryCensus!$A$4:$CW$46,CS$1)","v":836},{"$f":"VLOOKUP(DropDownList!$B$47,CntyQryCensus!$A$4:$CW$46,CT$1)","v":836},{"$f":"VLOOKUP(DropDownList!$B$47,CntyQryCensus!$A$4:$CW$46,CU$1)","v":0},{"$f":"VLOOKUP(DropDownList!$B$47,CntyQryCensus!$A$4:$CW$46,CV$1)","v":"Sullivan"},{"$f":"VLOOKUP(DropDownList!$B$47,CntyQryCensus!$A$4:$CW$46,CW$1)","v":36.6},{"$f":"VLOOKUP(DropDownList!$B$47,CntyQryCensus!$A$4:$CW$46,CX$1)","v":{"$error":"#REF!"}}]
[]
[]
["Census 2000 DemoProfile Sample Data Tables 2&3   -  DPTab23TownQry"]
["NAME","COUSUB","AREANAME","PopInSchool","Preschool","Kindergarten","Elementary","HighSchool","College","Pop25andOver","HighSchoolGrad","SomeCollege","AssocDegree","BachelDegree","GradDegree","HSGradorHigher","CollegeGradorHigher","Pop5to20yrs","Pop5to20wDis","Pop21to64","Pop21to64wDis","Pop65over","Pop65overwDis","Pop5yrsOver","SameHUin95","DiffHUinUSin95","HUinSameCountyin95","HUinSameStatein95","TotalPop","NativePop","NatPopBornUS","NatPopBornInStatRes","NatPopBornDiffState","NatPopBornOutUS","FornBornPop","FornPopEnt90to00","FornPopNatCit","FornPopNotCit","Households","HHIncLessThn10k","HHInc10to15K","HHInc15to25K","HHInc25to35K","HHInc35to50K","HHInc50to75K","HHInc75to100K","HHInc100to150K","HHInc150to200K","HHIncOver200K","MedianHHInc","HHwithPubAssistInc","MeanPubAssist","FamilyHH","FHHIncLessThn10k","FHHInc10to15K","FHHInc15to25K","FHHInc25to35K","FHHInc35to50K","FHHInc50to75K","FHHInc75to100K","FHHInc100to150K","FHHInc150to200K","FHHIncOver200K","MedianFHHInc","PerCapitaInc","PovStatFamilies","PovStatFHHwChilUnd18","PovStatFHHwChilUnd5","PovStFmalHH","DP3088","DP3089","PovStatIndiv","PovStatIndiv18yrOver","PovStatIndiv65yrOver","DP3093","DP3094","DP3095"]
[{"$f":"VLOOKUP(DropDownList!$B$47,CntyQryCensus!$A$53:$BY$96,A$1)","v":"Acworth"},{"$f":"VLOOKUP(DropDownList!$B$47,CntyQryCensus!$A$53:$BY$96,B$1)","v":"00260"},{"$f":"VLOOKUP(DropDownList!$B$47,CntyQryCensus!$A$53:$BY$96,C$1)","v":"Acworth town, Sullivan County, New Hampshire"},{"$f":"VLOOKUP(DropDownList!$B$47,CntyQryCensus!$A$53:$BY$96,D$1)","v":214},{"$f":"VLOOKUP(DropDownList!$B$47,CntyQryCensus!$A$53:$BY$96,E$1)","v":13},{"$f":"VLOOKUP(DropDownList!$B$47,CntyQryCensus!$A$53:$BY$96,F$1)","v":5},{"$f":"VLOOKUP(DropDownList!$B$47,CntyQryCensus!$A$53:$BY$96,G$1)","v":115},{"$f":"VLOOKUP(DropDownList!$B$47,CntyQryCensus!$A$53:$BY$96,H$1)","v":58},{"$f":"VLOOKUP(DropDownList!$B$47,CntyQryCensus!$A$53:$BY$96,I$1)","v":23},{"$f":"VLOOKUP(DropDownList!$B$47,CntyQryCensus!$A$53:$BY$96,J$1)","v":580},{"$f":"VLOOKUP(DropDownList!$B$47,CntyQryCensus!$A$53:$BY$96,K$1)","v":205},{"$f":"VLOOKUP(DropDownList!$B$47,CntyQryCensus!$A$53:$BY$96,L$1)","v":100},{"$f":"VLOOKUP(DropDownList!$B$47,CntyQryCensus!$A$53:$BY$96,M$1)","v":27},{"$f":"VLOOKUP(DropDownList!$B$47,CntyQryCensus!$A$53:$BY$96,N$1)","v":110},{"$f":"VLOOKUP(DropDownList!$B$47,CntyQryCensus!$A$53:$BY$96,O$1)","v":56},{"$f":"VLOOKUP(DropDownList!$B$47,CntyQryCensus!$A$53:$BY$96,P$1)","v":498},{"$f":"VLOOKUP(DropDownList!$B$47,CntyQryCensus!$A$53:$BY$96,Q$1)","v":166},{"$f":"VLOOKUP(DropDownList!$B$47,CntyQryCensus!$A$53:$BY$96,R$1)","v":197},{"$f":"VLOOKUP(DropDownList!$B$47,CntyQryCensus!$A$53:$BY$96,S$1)","v":2},{"$f":"VLOOKUP(DropDownList!$B$47,CntyQryCensus!$A$53:$BY$96,T$1)","v":472},{"$f":"VLOOKUP(DropDownList!$B$47,CntyQryCensus!$A$53:$BY$96,U$1)","v":84},{"$f":"VLOOKUP(DropDownList!$B$47,CntyQryCensus!$A$53:$BY$96,V$1)","v":130},{"$f":"VLOOKUP(DropDownList!$B$47,CntyQryCensus!$A$53:$BY$96,W$1)","v":29},{"$f":"VLOOKUP(DropDownList!$B$47,CntyQryCensus!$A$53:$BY$96,X$1)","v":799},{"$f":"VLOOKUP(DropDownList!$B$47,CntyQryCensus!$A$53:$BY$96,Y$1)","v":588},{"$f":"VLOOKUP(DropDownList!$B$47,CntyQryCensus!$A$53:$BY$96,Z$1)","v":203},{"$f":"VLOOKUP(DropDownList!$B$47,CntyQryCensus!$A$53:$BY$96,AA$1)","v":84},{"$f":"VLOOKUP(DropDownList!$B$47,CntyQryCensus!$A$53:$BY$96,AB$1)","v":119},{"$f":"VLOOKUP(DropDownList!$B$47,CntyQryCensus!$A$53:$BY$96,AC$1)","v":840},{"$f":"VLOOKUP(DropDownList!$B$47,CntyQryCensus!$A$53:$BY$96,AD$1)","v":812},{"$f":"VLOOKUP(DropDownList!$B$47,CntyQryCensus!$A$53:$BY$96,AE$1)","v":807},{"$f":"VLOOKUP(DropDownList!$B$47,CntyQryCensus!$A$53:$BY$96,AF$1)","v":283},{"$f":"VLOOKUP(DropDownList!$B$47,CntyQryCensus!$A$53:$BY$96,AG$1)","v":524},{"$f":"VLOOKUP(DropDownList!$B$47,CntyQryCensus!$A$53:$BY$96,AH$1)","v":5},{"$f":"VLOOKUP(DropDownList!$B$47,CntyQryCensus!$A$53:$BY$96,AI$1)","v":28},{"$f":"VLOOKUP(DropDownList!$B$47,CntyQryCensus!$A$53:$BY$96,AJ$1)","v":8},{"$f":"VLOOKUP(DropDownList!$B$47,CntyQryCensus!$A$53:$BY$96,AK$1)","v":12},{"$f":"VLOOKUP(DropDownList!$B$47,CntyQryCensus!$A$53:$BY$96,AL$1)","v":16},{"$f":"VLOOKUP(DropDownList!$B$47,CntyQryCensus!$A$53:$BY$96,AM$1)","v":325},{"$f":"VLOOKUP(DropDownList!$B$47,CntyQryCensus!$A$53:$BY$96,AN$1)","v":25},{"$f":"VLOOKUP(DropDownList!$B$47,CntyQryCensus!$A$53:$BY$96,AO$1)","v":12},{"$f":"VLOOKUP(DropDownList!$B$47,CntyQryCensus!$A$53:$BY$96,AP$1)","v":55},{"$f":"VLOOKUP(DropDownList!$B$47,CntyQryCensus!$A$53:$BY$96,AQ$1)","v":60},{"$f":"VLOOKUP(DropDownList!$B$47,CntyQryCensus!$A$53:$BY$96,AR$1)","v":70},{"$f":"VLOOKUP(DropDownList!$B$47,CntyQryCensus!$A$53:$BY$96,AS$1)","v":60},{"$f":"VLOOKUP(DropDownList!$B$47,CntyQryCensus!$A$53:$BY$96,AT$1)","v":26},{"$f":"VLOOKUP(DropDownList!$B$47,CntyQryCensus!$A$53:$BY$96,AU$1)","v":11},{"$f":"VLOOKUP(DropDownList!$B$47,CntyQryCensus!$A$53:$BY$96,AV$1)","v":2},{"$f":"VLOOKUP(DropDownList!$B$47,CntyQryCensus!$A$53:$BY$96,AW$1)","v":4},{"$f":"VLOOKUP(DropDownList!$B$47,CntyQryCensus!$A$53:$BY$96,AX$1)","v":37386},{"$f":"VLOOKUP(DropDownList!$B$47,CntyQryCensus!$A$53:$BY$96,AY$1)","v":5},{"$f":"VLOOKUP(DropDownList!$B$47,CntyQryCensus!$A$53:$BY$96,AZ$1)","v":2220},{"$f":"VLOOKUP(DropDownList!$B$47,CntyQryCensus!$A$53:$BY$96,BA$1)","v":237},{"$f":"VLOOKUP(DropDownList!$B$47,CntyQryCensus!$A$53:$BY$96,BB$1)","v":12},{"$f":"VLOOKUP(DropDownList!$B$47,CntyQryCensus!$A$53:$BY$96,BC$1)","v":6},{"$f":"VLOOKUP(DropDownList!$B$47,CntyQryCensus!$A$53:$BY$96,BD$1)","v":39},{"$f":"VLOOKUP(DropDownList!$B$47,CntyQryCensus!$A$53:$BY$96,BE$1)","v":35},{"$f":"VLOOKUP(DropDownList!$B$47,CntyQryCensus!$A$53:$BY$96,BF$1)","v":58},{"$f":"VLOOKUP(DropDownList!$B$47,CntyQryCensus!$A$53:$BY$96,BG$1)","v":46},{"$f":"VLOOKUP(DropDownList!$B$47,CntyQryCensus!$A$53:$BY$96,BH$1)","v":26},{"$f":"VLOOKUP(DropDownList!$B$47,CntyQryCensus!$A$53:$BY$96,BI$1)","v":11},{"$f":"VLOOKUP(DropDownList!$B$47,CntyQryCensus!$A$53:$BY$96,BJ$1)","v":0},{"$f":"VLOOKUP(DropDownList!$B$47,CntyQryCensus!$A$53:$BY$96,BK$1)","v":4},{"$f":"VLOOKUP(DropDownList!$B$47,CntyQryCensus!$A$53:$BY$96,BL$1)","v":41397},{"$f":"VLOOKUP(DropDownList!$B$47,CntyQryCensus!$A$53:$BY$96,BM$1)","v":18132},{"$f":"VLOOKUP(DropDownList!$B$47,CntyQryCensus!$A$53:$BY$96,BN$1)","v":24},{"$f":"VLOOKUP(DropDownList!$B$47,CntyQryCensus!$A$53:$BY$96,BO$1)","v":18},{"$f":"VLOOKUP(DropDownList!$B$47,CntyQryCensus!$A$53:$BY$96,BP$1)","v":8},{"$f":"VLOOKUP(DropDownList!$B$47,CntyQryCensus!$A$53:$BY$96,BQ$1)","v":7},{"$f":"VLOOKUP(DropDownList!$B$47,CntyQryCensus!$A$53:$BY$96,BR$1)","v":7},{"$f":"VLOOKUP(DropDownList!$B$47,CntyQryCensus!$A$53:$BY$96,BS$1)","v":2},{"$f":"VLOOKUP(DropDownList!$B$47,CntyQryCensus!$A$53:$BY$96,BT$1)","v":131},{"$f":"VLOOKUP(DropDownList!$B$47,CntyQryCensus!$A$53:$BY$96,BU$1)","v":75},{"$f":"VLOOKUP(DropDownList!$B$47,CntyQryCensus!$A$53:$BY$96,BV$1)","v":7},{"$f":"VLOOKUP(DropDownList!$B$47,CntyQryCensus!$A$53:$BY$96,BW$1)","v":55},{"$f":"VLOOKUP(DropDownList!$B$47,CntyQryCensus!$A$53:$BY$96,BX$1)","v":45},{"$f":"VLOOKUP(DropDownList!$B$47,CntyQryCensus!$A$53:$BY$96,BY$1)","v":28}]
[]
[]
["Census 2000 DemoProfile Sample Data Table 4   -  DPTab4TownQry"]
["NAME","COUSUB","TotHousingUnits","1UnitDet","1UnitAtt","2Units","3to4Units","5to9Units","10to19Units","20orMoreUnits","MobileHomes","BoatRvVan","SingleFamilyUnits","MultiFamUnits","MobileHomeUnits","YearBuilt99to00","YearBuilt95to98","YearBUilt90to94","YearBuilt80to89","YearBuilt70to79","YearBuilt60to69","YearBuilt40to59","YearBuilt39orEarlier","Rooms1","Rooms2","Rooms3","Rooms4","Rooms5","Rooms6","Rooms7","Rooms8","Rooms9orMore","MedianRooms","OccHU1","YrHHMvdIn99to00","YrHHMvdIn95to98","YrHHMvdIn90to94","YrHHMvdIn80to89","YrHHMvdIn70to79","YrHHMvdIn69orBefore","HeatFuelNatGas","HeatFuelBotGas","HeatFuelElectric","HeatFuelOil","HeatFuelCoal","HeatFuelWood","HeatFuelSolar","HeatFuelOther","HeatFuelNone","LackCompPlumb","LackCompKit","NoTelephone","OccHU","OccPerRm1orLess","OccPerRm1to1_5","OccPerRm1_5orMore","SpecOwnOccUnits","Value<50K","Value50to100K","Value100to150K","Value150to200K","Value200to300K","Value300to500K","Value500Kto1mil","Value1MilorMore","MedianValue","WithMortg","MnthOwnCst<300","MnthOwnCst300to500","MnthOwnCst500to700","MnthOwnCst700to1000","MnthOwnCst1000to1500","MnthOwnCst1500to2000","MnthOwnCst2000orMore","MediMnthOwnCst","NotMrtg","NotMrtgMediMnthOwnCst","OwnCst%HHInc<15","OwnCst%HHInc15to20","OwnCst%HHInc20to25","OwnCst%HHInc25to30","OwnCst%HHInc30to35","OwnCst%HHInc35orMor","NotComputed","SpecRntOccUnits","Rnt<200","Rnt200to300","Rnt300to500","Rnt500to750","Rnt750to1000","Rnt1000to1500","Rnt1500orMore","NoRent","MedianRent","Rnt%HHInc<15","Rnt%HHInc15to20","Rnt%HHInc20to25","Rnt%HHInc25to30","Rnt%HHInc30to35","Rnt%HHInc35orMore","Rnt%NotCompute"]
[{"$f":"VLOOKUP(DropDownList!$B$47,CntyQryCensus!$A$103:$CX$146,A$1)","v":"Acworth"},{"$f":"VLOOKUP(DropDownList!$B$47,CntyQryCensus!$A$103:$CX$146,B$1)","v":"00260"},{"$f":"VLOOKUP(DropDownList!$B$47,CntyQryCensus!$A$103:$CX$146,C$1)","v":515},{"$f":"VLOOKUP(DropDownList!$B$47,CntyQryCensus!$A$103:$CX$146,D$1)","v":458},{"$f":"VLOOKUP(DropDownList!$B$47,CntyQryCensus!$A$103:$CX$146,E$1)","v":4},{"$f":"VLOOKUP(DropDownList!$B$47,CntyQryCensus!$A$103:$CX$146,F$1)","v":9},{"$f":"VLOOKUP(DropDownList!$B$47,CntyQryCensus!$A$103:$CX$146,G$1)","v":0},{"$f":"VLOOKUP(DropDownList!$B$47,CntyQryCensus!$A$103:$CX$146,H$1)","v":0},{"$f":"VLOOKUP(DropDownList!$B$47,CntyQryCensus!$A$103:$CX$146,I$1)","v":0},{"$f":"VLOOKUP(DropDownList!$B$47,CntyQryCensus!$A$103:$CX$146,J$1)","v":0},{"$f":"VLOOKUP(DropDownList!$B$47,CntyQryCensus!$A$103:$CX$146,K$1)","v":40},{"$f":"VLOOKUP(DropDownList!$B$47,CntyQryCensus!$A$103:$CX$146,L$1)","v":4},{"$f":"VLOOKUP(DropDownList!$B$47,CntyQryCensus!$A$103:$CX$146,M$1)","v":458},{"$f":"VLOOKUP(DropDownList!$B$47,CntyQryCensus!$A$103:$CX$146,N$1)","v":13},{"$f":"VLOOKUP(DropDownList!$B$47,CntyQryCensus!$A$103:$CX$146,O$1)","v":44},{"$f":"VLOOKUP(DropDownList!$B$47,CntyQryCensus!$A$103:$CX$146,P$1)","v":5},{"$f":"VLOOKUP(DropDownList!$B$47,CntyQryCensus!$A$103:$CX$146,Q$1)","v":17},{"$f":"VLOOKUP(DropDownList!$B$47,CntyQryCensus!$A$103:$CX$146,R$1)","v":32},{"$f":"VLOOKUP(DropDownList!$B$47,CntyQryCensus!$A$103:$CX$146,S$1)","v":68},{"$f":"VLOOKUP(DropDownList!$B$47,CntyQryCensus!$A$103:$CX$146,T$1)","v":59},{"$f":"VLOOKUP(DropDownList!$B$47,CntyQryCensus!$A$103:$CX$146,U$1)","v":41},{"$f":"VLOOKUP(DropDownList!$B$47,CntyQryCensus!$A$103:$CX$146,V$1)","v":74},{"$f":"VLOOKUP(DropDownList!$B$47,CntyQryCensus!$A$103:$CX$146,W$1)","v":219},{"$f":"VLOOKUP(DropDownList!$B$47,CntyQryCensus!$A$103:$CX$146,X$1)","v":16},{"$f":"VLOOKUP(DropDownList!$B$47,CntyQryCensus!$A$103:$CX$146,Y$1)","v":30},{"$f":"VLOOKUP(DropDownList!$B$47,CntyQryCensus!$A$103:$CX$146,Z$1)","v":63},{"$f":"VLOOKUP(DropDownList!$B$47,CntyQryCensus!$A$103:$CX$146,AA$1)","v":95},{"$f":"VLOOKUP(DropDownList!$B$47,CntyQryCensus!$A$103:$CX$146,AB$1)","v":85},{"$f":"VLOOKUP(DropDownList!$B$47,CntyQryCensus!$A$103:$CX$146,AC$1)","v":59},{"$f":"VLOOKUP(DropDownList!$B$47,CntyQryCensus!$A$103:$CX$146,AD$1)","v":71},{"$f":"VLOOKUP(DropDownList!$B$47,CntyQryCensus!$A$103:$CX$146,AE$1)","v":54},{"$f":"VLOOKUP(DropDownList!$B$47,CntyQryCensus!$A$103:$CX$146,AF$1)","v":42},{"$f":"VLOOKUP(DropDownList!$B$47,CntyQryCensus!$A$103:$CX$146,AG$1)","v":5.0999999999999996},{"$f":"VLOOKUP(DropDownList!$B$47,CntyQryCensus!$A$103:$CX$146,AH$1)","v":319},{"$f":"VLOOKUP(DropDownList!$B$47,CntyQryCensus!$A$103:$CX$146,AI$1)","v":34},{"$f":"VLOOKUP(DropDownList!$B$47,CntyQryCensus!$A$103:$CX$146,AJ$1)","v":53},{"$f":"VLOOKUP(DropDownList!$B$47,CntyQryCensus!$A$103:$CX$146,AK$1)","v":57},{"$f":"VLOOKUP(DropDownList!$B$47,CntyQryCensus!$A$103:$CX$146,AL$1)","v":94},{"$f":"VLOOKUP(DropDownList!$B$47,CntyQryCensus!$A$103:$CX$146,AM$1)","v":43},{"$f":"VLOOKUP(DropDownList!$B$47,CntyQryCensus!$A$103:$CX$146,AN$1)","v":38},{"$f":"VLOOKUP(DropDownList!$B$47,CntyQryCensus!$A$103:$CX$146,AO$1)","v":3},{"$f":"VLOOKUP(DropDownList!$B$47,CntyQryCensus!$A$103:$CX$146,AP$1)","v":35},{"$f":"VLOOKUP(DropDownList!$B$47,CntyQryCensus!$A$103:$CX$146,AQ$1)","v":0},{"$f":"VLOOKUP(DropDownList!$B$47,CntyQryCensus!$A$103:$CX$146,AR$1)","v":149},{"$f":"VLOOKUP(DropDownList!$B$47,CntyQryCensus!$A$103:$CX$146,AS$1)","v":0},{"$f":"VLOOKUP(DropDownList!$B$47,CntyQryCensus!$A$103:$CX$146,AT$1)","v":132},{"$f":"VLOOKUP(DropDownList!$B$47,CntyQryCensus!$A$103:$CX$146,AU$1)","v":0},{"$f":"VLOOKUP(DropDownList!$B$47,CntyQryCensus!$A$103:$CX$146,AV$1)","v":0},{"$f":"VLOOKUP(DropDownList!$B$47,CntyQryCensus!$A$103:$CX$146,AW$1)","v":0},{"$f":"VLOOKUP(DropDownList!$B$47,CntyQryCensus!$A$103:$CX$146,AX$1)","v":11},{"$f":"VLOOKUP(DropDownList!$B$47,CntyQryCensus!$A$103:$CX$146,AY$1)","v":18},{"$f":"VLOOKUP(DropDownList!$B$47,CntyQryCensus!$A$103:$CX$146,AZ$1)","v":5},{"$f":"VLOOKUP(DropDownList!$B$47,CntyQryCensus!$A$103:$CX$146,BA$1)","v":319},{"$f":"VLOOKUP(DropDownList!$B$47,CntyQryCensus!$A$103:$CX$146,BB$1)","v":307},{"$f":"VLOOKUP(DropDownList!$B$47,CntyQryCensus!$A$103:$CX$146,BC$1)","v":5},{"$f":"VLOOKUP(DropDownList!$B$47,CntyQryCensus!$A$103:$CX$146,BD$1)","v":7},{"$f":"VLOOKUP(DropDownList!$B$47,CntyQryCensus!$A$103:$CX$146,BE$1)","v":124},{"$f":"VLOOKUP(DropDownList!$B$47,CntyQryCensus!$A$103:$CX$146,BF$1)","v":12},{"$f":"VLOOKUP(DropDownList!$B$47,CntyQryCensus!$A$103:$CX$146,BG$1)","v":61},{"$f":"VLOOKUP(DropDownList!$B$47,CntyQryCensus!$A$103:$CX$146,BH$1)","v":34},{"$f":"VLOOKUP(DropDownList!$B$47,CntyQryCensus!$A$103:$CX$146,BI$1)","v":9},{"$f":"VLOOKUP(DropDownList!$B$47,CntyQryCensus!$A$103:$CX$146,BJ$1)","v":6},{"$f":"VLOOKUP(DropDownList!$B$47,CntyQryCensus!$A$103:$CX$146,BK$1)","v":0},{"$f":"VLOOKUP(DropDownList!$B$47,CntyQryCensus!$A$103:$CX$146,BL$1)","v":2},{"$f":"VLOOKUP(DropDownList!$B$47,CntyQryCensus!$A$103:$CX$146,BM$1)","v":0},{"$f":"VLOOKUP(DropDownList!$B$47,CntyQryCensus!$A$103:$CX$146,BN$1)","v":92700},{"$f":"VLOOKUP(DropDownList!$B$47,CntyQryCensus!$A$103:$CX$146,BO$1)","v":68},{"$f":"VLOOKUP(DropDownList!$B$47,CntyQryCensus!$A$103:$CX$146,BP$1)","v":0},{"$f":"VLOOKUP(DropDownList!$B$47,CntyQryCensus!$A$103:$CX$146,BQ$1)","v":2},{"$f":"VLOOKUP(DropDownList!$B$47,CntyQryCensus!$A$103:$CX$146,BR$1)","v":13},{"$f":"VLOOKUP(DropDownList!$B$47,CntyQryCensus!$A$103:$CX$146,BS$1)","v":27},{"$f":"VLOOKUP(DropDownList!$B$47,CntyQryCensus!$A$103:$CX$146,BT$1)","v":22},{"$f":"VLOOKUP(DropDownList!$B$47,CntyQryCensus!$A$103:$CX$146,BU$1)","v":2},{"$f":"VLOOKUP(DropDownList!$B$47,CntyQryCensus!$A$103:$CX$146,BV$1)","v":2},{"$f":"VLOOKUP(DropDownList!$B$47,CntyQryCensus!$A$103:$CX$146,BW$1)","v":870},{"$f":"VLOOKUP(DropDownList!$B$47,CntyQryCensus!$A$103:$CX$146,BX$1)","v":56},{"$f":"VLOOKUP(DropDownList!$B$47,CntyQryCensus!$A$103:$CX$146,BY$1)","v":407},{"$f":"VLOOKUP(DropDownList!$B$47,CntyQryCensus!$A$103:$CX$146,BZ$1)","v":43},{"$f":"VLOOKUP(DropDownList!$B$47,CntyQryCensus!$A$103:$CX$146,CA$1)","v":22},{"$f":"VLOOKUP(DropDownList!$B$47,CntyQryCensus!$A$103:$CX$146,CB$1)","v":17},{"$f":"VLOOKUP(DropDownList!$B$47,CntyQryCensus!$A$103:$CX$146,CC$1)","v":23},{"$f":"VLOOKUP(DropDownList!$B$47,CntyQryCensus!$A$103:$CX$146,CD$1)","v":8},{"$f":"VLOOKUP(DropDownList!$B$47,CntyQryCensus!$A$103:$CX$146,CE$1)","v":10},{"$f":"VLOOKUP(DropDownList!$B$47,CntyQryCensus!$A$103:$CX$146,CF$1)","v":1},{"$f":"VLOOKUP(DropDownList!$B$47,CntyQryCensus!$A$103:$CX$146,CG$1)","v":33},{"$f":"VLOOKUP(DropDownList!$B$47,CntyQryCensus!$A$103:$CX$146,CH$1)","v":0},{"$f":"VLOOKUP(DropDownList!$B$47,CntyQryCensus!$A$103:$CX$146,CI$1)","v":2},{"$f":"VLOOKUP(DropDownList!$B$47,CntyQryCensus!$A$103:$CX$146,CJ$1)","v":6},{"$f":"VLOOKUP(DropDownList!$B$47,CntyQryCensus!$A$103:$CX$146,CK$1)","v":15},{"$f":"VLOOKUP(DropDownList!$B$47,CntyQryCensus!$A$103:$CX$146,CL$1)","v":2},{"$f":"VLOOKUP(DropDownList!$B$47,CntyQryCensus!$A$103:$CX$146,CM$1)","v":0},{"$f":"VLOOKUP(DropDownList!$B$47,CntyQryCensus!$A$103:$CX$146,CN$1)","v":0},{"$f":"VLOOKUP(DropDownList!$B$47,CntyQryCensus!$A$103:$CX$146,CO$1)","v":8},{"$f":"VLOOKUP(DropDownList!$B$47,CntyQryCensus!$A$103:$CX$146,CP$1)","v":613},{"$f":"VLOOKUP(DropDownList!$B$47,CntyQryCensus!$A$103:$CX$146,CQ$1)","v":7},{"$f":"VLOOKUP(DropDownList!$B$47,CntyQryCensus!$A$103:$CX$146,CR$1)","v":2},{"$f":"VLOOKUP(DropDownList!$B$47,CntyQryCensus!$A$103:$CX$146,CS$1)","v":3},{"$f":"VLOOKUP(DropDownList!$B$47,CntyQryCensus!$A$103:$CX$146,CT$1)","v":4},{"$f":"VLOOKUP(DropDownList!$B$47,CntyQryCensus!$A$103:$CX$146,CU$1)","v":2},{"$f":"VLOOKUP(DropDownList!$B$47,CntyQryCensus!$A$103:$CX$146,CV$1)","v":4},{"$f":"VLOOKUP(DropDownList!$B$47,CntyQryCensus!$A$103:$CX$146,CW$1)","v":11}]
[]
[]
["Census 2000 SummaryFile3 Sample Data  -  SF3TownQry1SocialChar"]
["TOWN_NAME","LOGRECNO","COUSUB","P01TotalPopulation","P02SampleCountOfPop","P03Pop100pctCount","P05UrbanPopulation","P05RuralPopulation","P06WhiteAlone","P06BlackOrAfAm","P06AmIndAlone","P06AsianAlone","P06HawaiianOrPI","P06OtherRace","P06TwoPlusRaces","P07NotHispanicOrLatino","P07HispanicOrLatino","P08MalePop","P08FemalePop","P09PopInHouseholds","P09PopInFamHH","P09PopInNonFamHH","P09PopInGroupQtr","P13TotalHH","P13FamilyHH","P13FamHHolder15to24yrs","P13FamHHolder25to34yrs","P13FamHHolder35to44yrs","P13FamHHolder45to54yrs","P13FamHHolder55to64yrs","P13FamHHolder65to74yrs","P13FamHHolder75to84yrs","P13FamHHolder85yrsOver","P13NonFamilyHH","P13NonFamHHolder15to24yrs","P13NonFamHHolder25to34yrs","P13NonFamHHolder35to44yrs","P13NonFamHHolder45to54yrs","P13NonFamHHolder55to64yrs","P13NonFamHHolder65to74yrs","P13NonFamHHolder75to84yrs","P13NonFamHHolder85yrsOver","P18Pop15yrsOver","P18MaritalStatNeverMarried","P18MaritalStatNowMarried","P18MaritalStatSeparated","P18MaritalStatWidowed","P18MaritalStatWidowFemale","P18MaritalStatDivorced","P18MaritalStatDivorcedFemale","P21NativeBornPop","P21NatPopBornInState","P21NatPopBornOtherState","P021005","P021006","P021007","P021008","P21NatPopBornOutUS","P21ForeignBornPop","P021014","P021015","P24Pop5YrsPlus","P24ResSameHouseIn95","P24ResDiffHouseIn95","P24ResDiffHouseInUSIn95","P24ResDiffHouseSameCountyIn95","P24ResDiffHouseDiffCountyIn95","P24ResDiffHouseDiffCntySamStIn95","P24ResDiffHouseDiffCntyDifStIn95","P24ResDiffHouseDiffCntyNEStIn95","P24ResDiffHouseDiffCntyMWStIn95","P24ResDiffHouseDiffCntySoStIn95","P24ResDiffHouseDiffCntyWstStIn95","P24ResDiffInPR","P24ResDiffElsewhereIn95","P26Workers16yrsOver","P26WorkedInState","P26WorkedInCnty","P26WorkedOutsideCnty","P26WorkedOutsideState","P30Workers16Over","P30TranspToWrkCar","P30TranspToWrkPublic","P30TranspToWrkOther","P30WrkdAtHome","P31WrkrsNotWrkAtHom","P31TravTim<5min","P31TravTim5to9Min","P31TravTim10to14Min","P31TravTim15to19Min","P31TravTim20to24Min","P31TravTim25to29Min","P31TravTim30to34Min","P31TravTim35to39Min","P31TravTim40to44Min","P31TravTim45to59Min","P31TravTim60to89Min","P31TravTim90MinMore","P31WorkAtHome","P36SchEnrlPop3yrOver","P36NurserSchEnrl","P36KinderSchEnrl","P36ElemSchEnrl","P36HighSchEnrl","P36CollGradSchEnrl","P37Pop25yrsOver","P37EduAtain<9grd","P37EduAtainHSnoDip","P37EduAtainHSgrad","P37EduAtainCollNoDeg","P37EduAtainAssocDeg","P37EduAtainBachDeg","P37EduAtainGradProfDeg","P42NIPop5to15","P42NIPop5to15wDisabl","P42NIPop16to20","P42NIPop16to20wDisab","P42NIPop16to20wDisEmp","P42NIPop16to21NoDis","P42NIPop16to21NoDisEmpl","P42NIPop21to64","P42NIPop21to64wDis","P42NIPop21to64wDisEmp","P42NIPop21to64NoDis","P42NIPop21to64NoDisEmp","P42NIPop65to74","P42NIPop65to74wDis","P42NIPop75Over","P42NIPop75OverwDis","P43Pop16YrsOver","P43Pop16OvrInLaborForce","P43Pop16OvrCivlLabFrc","P43Pop16OvrCivlLbrFrcEmp","P48Families","P48MarriedFam","P48MarrFamNoWorkers","P48MarrFam1Worker","P48MarrFam2Worker","P48MarrFamHusbWifeWorked","P48MarrFamOther","P48MarrFam3PlusWorker","P48MarrFam3WorkHsbWif","P48MarrFam3PlsWrkOther","P48OtherFam","P48MaleHHNoWif","P48MaleHHNoWifNoWorker","P48MaleHHNoWif1Worker","P48MaleHHNoWif2Worker","P48MaleHHNoWif3PlusWorker","P48FemaleHHNoHsb","P48FemaleHHNoHsbNoWorker","P48FemaleHHNoHsb1Worker","P48FemaleHHNoHsb2Worker","P48FemaleHHNoHsb3Worker","P49EmpCivPop16YrOver","P49IndustAgricult","P49IndustConst","P49IndustMnftg","P49IndustWhlslTrd","P49IndustRtlTrd","P49IndustTrspWrhsUtlt","P49IndustInfrm","P49IndustFinInsRE","P49IndustPrfsScntfMngmt","P49IndustEduHlthSocSrv","P49IndustArtsEntRec","P49IndustOthrSrvc","P49IndustPubAdm","P50OccupMngmtProfs","P50OccupService","P50OccupSalesOff","P50OccupFarmFishForest","P50OccupConstExtrctMaint","P50OccupPrdctTrnspMatMv"]
[{"$f":"VLOOKUP(DropDownList!$B$47,CntyQryCensus!$A$103:$CX$146,A$1)","v":"Acworth"},{"$f":"VLOOKUP(DropDownList!$B$47,CntyQryCensus!$A$156:$FR$198,B$1)","v":"0004141"},{"$f":"VLOOKUP(DropDownList!$B$47,CntyQryCensus!$A$156:$FR$198,C$1)","v":"00260"},{"$f":"VLOOKUP(DropDownList!$B$47,CntyQryCensus!$A$156:$FR$198,D$1)","v":840},{"$f":"VLOOKUP(DropDownList!$B$47,CntyQryCensus!$A$156:$FR$198,E$1)","v":376},{"$f":"VLOOKUP(DropDownList!$B$47,CntyQryCensus!$A$156:$FR$198,F$1)","v":836},{"$f":"VLOOKUP(DropDownList!$B$47,CntyQryCensus!$A$156:$FR$198,G$1)","v":0},{"$f":"VLOOKUP(DropDownList!$B$47,CntyQryCensus!$A$156:$FR$198,H$1)","v":840},{"$f":"VLOOKUP(DropDownList!$B$47,CntyQryCensus!$A$156:$FR$198,I$1)","v":825},{"$f":"VLOOKUP(DropDownList!$B$47,CntyQryCensus!$A$156:$FR$198,J$1)","v":0},{"$f":"VLOOKUP(DropDownList!$B$47,CntyQryCensus!$A$156:$FR$198,K$1)","v":0},{"$f":"VLOOKUP(DropDownList!$B$47,CntyQryCensus!$A$156:$FR$198,L$1)","v":0},{"$f":"VLOOKUP(DropDownList!$B$47,CntyQryCensus!$A$156:$FR$198,M$1)","v":0},{"$f":"VLOOKUP(DropDownList!$B$47,CntyQryCensus!$A$156:$FR$198,N$1)","v":0},{"$f":"VLOOKUP(DropDownList!$B$47,CntyQryCensus!$A$156:$FR$198,O$1)","v":15},{"$f":"VLOOKUP(DropDownList!$B$47,CntyQryCensus!$A$156:$FR$198,P$1)","v":837},{"$f":"VLOOKUP(DropDownList!$B$47,CntyQryCensus!$A$156:$FR$198,Q$1)","v":3},{"$f":"VLOOKUP(DropDownList!$B$47,CntyQryCensus!$A$156:$FR$198,R$1)","v":436},{"$f":"VLOOKUP(DropDownList!$B$47,CntyQryCensus!$A$156:$FR$198,S$1)","v":404},{"$f":"VLOOKUP(DropDownList!$B$47,CntyQryCensus!$A$156:$FR$198,T$1)","v":840},{"$f":"VLOOKUP(DropDownList!$B$47,CntyQryCensus!$A$156:$FR$198,U$1)","v":736},{"$f":"VLOOKUP(DropDownList!$B$47,CntyQryCensus!$A$156:$FR$198,V$1)","v":104},{"$f":"VLOOKUP(DropDownList!$B$47,CntyQryCensus!$A$156:$FR$198,W$1)","v":0},{"$f":"VLOOKUP(DropDownList!$B$47,CntyQryCensus!$A$156:$FR$198,X$1)","v":325},{"$f":"VLOOKUP(DropDownList!$B$47,CntyQryCensus!$A$156:$FR$198,Y$1)","v":237},{"$f":"VLOOKUP(DropDownList!$B$47,CntyQryCensus!$A$156:$FR$198,Z$1)","v":0},{"$f":"VLOOKUP(DropDownList!$B$47,CntyQryCensus!$A$156:$FR$198,AA$1)","v":16},{"$f":"VLOOKUP(DropDownList!$B$47,CntyQryCensus!$A$156:$FR$198,AB$1)","v":55},{"$f":"VLOOKUP(DropDownList!$B$47,CntyQryCensus!$A$156:$FR$198,AC$1)","v":72},{"$f":"VLOOKUP(DropDownList!$B$47,CntyQryCensus!$A$156:$FR$198,AD$1)","v":40},{"$f":"VLOOKUP(DropDownList!$B$47,CntyQryCensus!$A$156:$FR$198,AE$1)","v":32},{"$f":"VLOOKUP(DropDownList!$B$47,CntyQryCensus!$A$156:$FR$198,AF$1)","v":17},{"$f":"VLOOKUP(DropDownList!$B$47,CntyQryCensus!$A$156:$FR$198,AG$1)","v":5},{"$f":"VLOOKUP(DropDownList!$B$47,CntyQryCensus!$A$156:$FR$198,AH$1)","v":88},{"$f":"VLOOKUP(DropDownList!$B$47,CntyQryCensus!$A$156:$FR$198,AI$1)","v":2},{"$f":"VLOOKUP(DropDownList!$B$47,CntyQryCensus!$A$156:$FR$198,AJ$1)","v":10},{"$f":"VLOOKUP(DropDownList!$B$47,CntyQryCensus!$A$156:$FR$198,AK$1)","v":7},{"$f":"VLOOKUP(DropDownList!$B$47,CntyQryCensus!$A$156:$FR$198,AL$1)","v":9},{"$f":"VLOOKUP(DropDownList!$B$47,CntyQryCensus!$A$156:$FR$198,AM$1)","v":32},{"$f":"VLOOKUP(DropDownList!$B$47,CntyQryCensus!$A$156:$FR$198,AN$1)","v":21},{"$f":"VLOOKUP(DropDownList!$B$47,CntyQryCensus!$A$156:$FR$198,AO$1)","v":3},{"$f":"VLOOKUP(DropDownList!$B$47,CntyQryCensus!$A$156:$FR$198,AP$1)","v":4},{"$f":"VLOOKUP(DropDownList!$B$47,CntyQryCensus!$A$156:$FR$198,AQ$1)","v":667},{"$f":"VLOOKUP(DropDownList!$B$47,CntyQryCensus!$A$156:$FR$198,AR$1)","v":137},{"$f":"VLOOKUP(DropDownList!$B$47,CntyQryCensus!$A$156:$FR$198,AS$1)","v":410},{"$f":"VLOOKUP(DropDownList!$B$47,CntyQryCensus!$A$156:$FR$198,AT$1)","v":5},{"$f":"VLOOKUP(DropDownList!$B$47,CntyQryCensus!$A$156:$FR$198,AU$1)","v":30},{"$f":"VLOOKUP(DropDownList!$B$47,CntyQryCensus!$A$156:$FR$198,AV$1)","v":28},{"$f":"VLOOKUP(DropDownList!$B$47,CntyQryCensus!$A$156:$FR$198,AW$1)","v":85},{"$f":"VLOOKUP(DropDownList!$B$47,CntyQryCensus!$A$156:$FR$198,AX$1)","v":33},{"$f":"VLOOKUP(DropDownList!$B$47,CntyQryCensus!$A$156:$FR$198,AY$1)","v":812},{"$f":"VLOOKUP(DropDownList!$B$47,CntyQryCensus!$A$156:$FR$198,AZ$1)","v":283},{"$f":"VLOOKUP(DropDownList!$B$47,CntyQryCensus!$A$156:$FR$198,BA$1)","v":524},{"$f":"VLOOKUP(DropDownList!$B$47,CntyQryCensus!$A$156:$FR$198,BB$1)","v":423},{"$f":"VLOOKUP(DropDownList!$B$47,CntyQryCensus!$A$156:$FR$198,BC$1)","v":36},{"$f":"VLOOKUP(DropDownList!$B$47,CntyQryCensus!$A$156:$FR$198,BD$1)","v":39},{"$f":"VLOOKUP(DropDownList!$B$47,CntyQryCensus!$A$156:$FR$198,BE$1)","v":26},{"$f":"VLOOKUP(DropDownList!$B$47,CntyQryCensus!$A$156:$FR$198,BF$1)","v":5},{"$f":"VLOOKUP(DropDownList!$B$47,CntyQryCensus!$A$156:$FR$198,BG$1)","v":28},{"$f":"VLOOKUP(DropDownList!$B$47,CntyQryCensus!$A$156:$FR$198,BH$1)","v":12},{"$f":"VLOOKUP(DropDownList!$B$47,CntyQryCensus!$A$156:$FR$198,BI$1)","v":16},{"$f":"VLOOKUP(DropDownList!$B$47,CntyQryCensus!$A$156:$FR$198,BJ$1)","v":799},{"$f":"VLOOKUP(DropDownList!$B$47,CntyQryCensus!$A$156:$FR$198,BK$1)","v":588},{"$f":"VLOOKUP(DropDownList!$B$47,CntyQryCensus!$A$156:$FR$198,BL$1)","v":211},{"$f":"VLOOKUP(DropDownList!$B$47,CntyQryCensus!$A$156:$FR$198,BM$1)","v":203},{"$f":"VLOOKUP(DropDownList!$B$47,CntyQryCensus!$A$156:$FR$198,BN$1)","v":84},{"$f":"VLOOKUP(DropDownList!$B$47,CntyQryCensus!$A$156:$FR$198,BO$1)","v":119},{"$f":"VLOOKUP(DropDownList!$B$47,CntyQryCensus!$A$156:$FR$198,BP$1)","v":41},{"$f":"VLOOKUP(DropDownList!$B$47,CntyQryCensus!$A$156:$FR$198,BQ$1)","v":78},{"$f":"VLOOKUP(DropDownList!$B$47,CntyQryCensus!$A$156:$FR$198,BR$1)","v":68},{"$f":"VLOOKUP(DropDownList!$B$47,CntyQryCensus!$A$156:$FR$198,BS$1)","v":2},{"$f":"VLOOKUP(DropDownList!$B$47,CntyQryCensus!$A$156:$FR$198,BT$1)","v":5},{"$f":"VLOOKUP(DropDownList!$B$47,CntyQryCensus!$A$156:$FR$198,BU$1)","v":3},{"$f":"VLOOKUP(DropDownList!$B$47,CntyQryCensus!$A$156:$FR$198,BV$1)","v":0},{"$f":"VLOOKUP(DropDownList!$B$47,CntyQryCensus!$A$156:$FR$198,BW$1)","v":8},{"$f":"VLOOKUP(DropDownList!$B$47,CntyQryCensus!$A$156:$FR$198,BX$1)","v":403},{"$f":"VLOOKUP(DropDownList!$B$47,CntyQryCensus!$A$156:$FR$198,BY$1)","v":349},{"$f":"VLOOKUP(DropDownList!$B$47,CntyQryCensus!$A$156:$FR$198,BZ$1)","v":222},{"$f":"VLOOKUP(DropDownList!$B$47,CntyQryCensus!$A$156:$FR$198,CA$1)","v":127},{"$f":"VLOOKUP(DropDownList!$B$47,CntyQryCensus!$A$156:$FR$198,CB$1)","v":54},{"$f":"VLOOKUP(DropDownList!$B$47,CntyQryCensus!$A$156:$FR$198,CC$1)","v":403},{"$f":"VLOOKUP(DropDownList!$B$47,CntyQryCensus!$A$156:$FR$198,CD$1)","v":335},{"$f":"VLOOKUP(DropDownList!$B$47,CntyQryCensus!$A$156:$FR$198,CE$1)","v":4},{"$f":"VLOOKUP(DropDownList!$B$47,CntyQryCensus!$A$156:$FR$198,CF$1)","v":2},{"$f":"VLOOKUP(DropDownList!$B$47,CntyQryCensus!$A$156:$FR$198,CG$1)","v":54},{"$f":"VLOOKUP(DropDownList!$B$47,CntyQryCensus!$A$156:$FR$198,CH$1)","v":349},{"$f":"VLOOKUP(DropDownList!$B$47,CntyQryCensus!$A$156:$FR$198,CI$1)","v":10},{"$f":"VLOOKUP(DropDownList!$B$47,CntyQryCensus!$A$156:$FR$198,CJ$1)","v":17},{"$f":"VLOOKUP(DropDownList!$B$47,CntyQryCensus!$A$156:$FR$198,CK$1)","v":13},{"$f":"VLOOKUP(DropDownList!$B$47,CntyQryCensus!$A$156:$FR$198,CL$1)","v":37},{"$f":"VLOOKUP(DropDownList!$B$47,CntyQryCensus!$A$156:$FR$198,CM$1)","v":52},{"$f":"VLOOKUP(DropDownList!$B$47,CntyQryCensus!$A$156:$FR$198,CN$1)","v":29},{"$f":"VLOOKUP(DropDownList!$B$47,CntyQryCensus!$A$156:$FR$198,CO$1)","v":67},{"$f":"VLOOKUP(DropDownList!$B$47,CntyQryCensus!$A$156:$FR$198,CP$1)","v":20},{"$f":"VLOOKUP(DropDownList!$B$47,CntyQryCensus!$A$156:$FR$198,CQ$1)","v":17},{"$f":"VLOOKUP(DropDownList!$B$47,CntyQryCensus!$A$156:$FR$198,CR$1)","v":46},{"$f":"VLOOKUP(DropDownList!$B$47,CntyQryCensus!$A$156:$FR$198,CS$1)","v":30},{"$f":"VLOOKUP(DropDownList!$B$47,CntyQryCensus!$A$156:$FR$198,CT$1)","v":11},{"$f":"VLOOKUP(DropDownList!$B$47,CntyQryCensus!$A$156:$FR$198,CU$1)","v":54},{"$f":"VLOOKUP(DropDownList!$B$47,CntyQryCensus!$A$156:$FR$198,CV$1)","v":814},{"$f":"VLOOKUP(DropDownList!$B$47,CntyQryCensus!$A$156:$FR$198,CW$1)","v":13},{"$f":"VLOOKUP(DropDownList!$B$47,CntyQryCensus!$A$156:$FR$198,CX$1)","v":5},{"$f":"VLOOKUP(DropDownList!$B$47,CntyQryCensus!$A$156:$FR$198,CY$1)","v":115},{"$f":"VLOOKUP(DropDownList!$B$47,CntyQryCensus!$A$156:$FR$198,CZ$1)","v":58},{"$f":"VLOOKUP(DropDownList!$B$47,CntyQryCensus!$A$156:$FR$198,DA$1)","v":23},{"$f":"VLOOKUP(DropDownList!$B$47,CntyQryCensus!$A$156:$FR$198,DB$1)","v":580},{"$f":"VLOOKUP(DropDownList!$B$47,CntyQryCensus!$A$156:$FR$198,DC$1)","v":19},{"$f":"VLOOKUP(DropDownList!$B$47,CntyQryCensus!$A$156:$FR$198,DD$1)","v":63},{"$f":"VLOOKUP(DropDownList!$B$47,CntyQryCensus!$A$156:$FR$198,DE$1)","v":205},{"$f":"VLOOKUP(DropDownList!$B$47,CntyQryCensus!$A$156:$FR$198,DF$1)","v":100},{"$f":"VLOOKUP(DropDownList!$B$47,CntyQryCensus!$A$156:$FR$198,DG$1)","v":27},{"$f":"VLOOKUP(DropDownList!$B$47,CntyQryCensus!$A$156:$FR$198,DH$1)","v":110},{"$f":"VLOOKUP(DropDownList!$B$47,CntyQryCensus!$A$156:$FR$198,DI$1)","v":56},{"$f":"VLOOKUP(DropDownList!$B$47,CntyQryCensus!$A$156:$FR$198,DJ$1)","v":142},{"$f":"VLOOKUP(DropDownList!$B$47,CntyQryCensus!$A$156:$FR$198,DK$1)","v":0},{"$f":"VLOOKUP(DropDownList!$B$47,CntyQryCensus!$A$156:$FR$198,DL$1)","v":55},{"$f":"VLOOKUP(DropDownList!$B$47,CntyQryCensus!$A$156:$FR$198,DM$1)","v":2},{"$f":"VLOOKUP(DropDownList!$B$47,CntyQryCensus!$A$156:$FR$198,DN$1)","v":0},{"$f":"VLOOKUP(DropDownList!$B$47,CntyQryCensus!$A$156:$FR$198,DO$1)","v":53},{"$f":"VLOOKUP(DropDownList!$B$47,CntyQryCensus!$A$156:$FR$198,DP$1)","v":30},{"$f":"VLOOKUP(DropDownList!$B$47,CntyQryCensus!$A$156:$FR$198,DQ$1)","v":472},{"$f":"VLOOKUP(DropDownList!$B$47,CntyQryCensus!$A$156:$FR$198,DR$1)","v":84},{"$f":"VLOOKUP(DropDownList!$B$47,CntyQryCensus!$A$156:$FR$198,DS$1)","v":48},{"$f":"VLOOKUP(DropDownList!$B$47,CntyQryCensus!$A$156:$FR$198,DT$1)","v":388},{"$f":"VLOOKUP(DropDownList!$B$47,CntyQryCensus!$A$156:$FR$198,DU$1)","v":311},{"$f":"VLOOKUP(DropDownList!$B$47,CntyQryCensus!$A$156:$FR$198,DV$1)","v":83},{"$f":"VLOOKUP(DropDownList!$B$47,CntyQryCensus!$A$156:$FR$198,DW$1)","v":12},{"$f":"VLOOKUP(DropDownList!$B$47,CntyQryCensus!$A$156:$FR$198,DX$1)","v":47},{"$f":"VLOOKUP(DropDownList!$B$47,CntyQryCensus!$A$156:$FR$198,DY$1)","v":17},{"$f":"VLOOKUP(DropDownList!$B$47,CntyQryCensus!$A$156:$FR$198,DZ$1)","v":657},{"$f":"VLOOKUP(DropDownList!$B$47,CntyQryCensus!$A$156:$FR$198,EA$1)","v":421},{"$f":"VLOOKUP(DropDownList!$B$47,CntyQryCensus!$A$156:$FR$198,EB$1)","v":421},{"$f":"VLOOKUP(DropDownList!$B$47,CntyQryCensus!$A$156:$FR$198,EC$1)","v":416},{"$f":"VLOOKUP(DropDownList!$B$47,CntyQryCensus!$A$156:$FR$198,ED$1)","v":237},{"$f":"VLOOKUP(DropDownList!$B$47,CntyQryCensus!$A$156:$FR$198,EE$1)","v":197},{"$f":"VLOOKUP(DropDownList!$B$47,CntyQryCensus!$A$156:$FR$198,EF$1)","v":34},{"$f":"VLOOKUP(DropDownList!$B$47,CntyQryCensus!$A$156:$FR$198,EG$1)","v":23},{"$f":"VLOOKUP(DropDownList!$B$47,CntyQryCensus!$A$156:$FR$198,EH$1)","v":115},{"$f":"VLOOKUP(DropDownList!$B$47,CntyQryCensus!$A$156:$FR$198,EI$1)","v":98},{"$f":"VLOOKUP(DropDownList!$B$47,CntyQryCensus!$A$156:$FR$198,EJ$1)","v":17},{"$f":"VLOOKUP(DropDownList!$B$47,CntyQryCensus!$A$156:$FR$198,EK$1)","v":25},{"$f":"VLOOKUP(DropDownList!$B$47,CntyQryCensus!$A$156:$FR$198,EL$1)","v":20},{"$f":"VLOOKUP(DropDownList!$B$47,CntyQryCensus!$A$156:$FR$198,EM$1)","v":5},{"$f":"VLOOKUP(DropDownList!$B$47,CntyQryCensus!$A$156:$FR$198,EN$1)","v":40},{"$f":"VLOOKUP(DropDownList!$B$47,CntyQryCensus!$A$156:$FR$198,EO$1)","v":16},{"$f":"VLOOKUP(DropDownList!$B$47,CntyQryCensus!$A$156:$FR$198,EP$1)","v":3},{"$f":"VLOOKUP(DropDownList!$B$47,CntyQryCensus!$A$156:$FR$198,EQ$1)","v":8},{"$f":"VLOOKUP(DropDownList!$B$47,CntyQryCensus!$A$156:$FR$198,ER$1)","v":5},{"$f":"VLOOKUP(DropDownList!$B$47,CntyQryCensus!$A$156:$FR$198,ES$1)","v":0},{"$f":"VLOOKUP(DropDownList!$B$47,CntyQryCensus!$A$156:$FR$198,ET$1)","v":24},{"$f":"VLOOKUP(DropDownList!$B$47,CntyQryCensus!$A$156:$FR$198,EU$1)","v":11},{"$f":"VLOOKUP(DropDownList!$B$47,CntyQryCensus!$A$156:$FR$198,EV$1)","v":4},{"$f":"VLOOKUP(DropDownList!$B$47,CntyQryCensus!$A$156:$FR$198,EW$1)","v":7},{"$f":"VLOOKUP(DropDownList!$B$47,CntyQryCensus!$A$156:$FR$198,EX$1)","v":2},{"$f":"VLOOKUP(DropDownList!$B$47,CntyQryCensus!$A$156:$FR$198,EY$1)","v":416},{"$f":"VLOOKUP(DropDownList!$B$47,CntyQryCensus!$A$156:$FR$198,EZ$1)","v":27},{"$f":"VLOOKUP(DropDownList!$B$47,CntyQryCensus!$A$156:$FR$198,FA$1)","v":63},{"$f":"VLOOKUP(DropDownList!$B$47,CntyQryCensus!$A$156:$FR$198,FB$1)","v":83},{"$f":"VLOOKUP(DropDownList!$B$47,CntyQryCensus!$A$156:$FR$198,FC$1)","v":9},{"$f":"VLOOKUP(DropDownList!$B$47,CntyQryCensus!$A$156:$FR$198,FD$1)","v":45},{"$f":"VLOOKUP(DropDownList!$B$47,CntyQryCensus!$A$156:$FR$198,FE$1)","v":35},{"$f":"VLOOKUP(DropDownList!$B$47,CntyQryCensus!$A$156:$FR$198,FF$1)","v":8},{"$f":"VLOOKUP(DropDownList!$B$47,CntyQryCensus!$A$156:$FR$198,FG$1)","v":15},{"$f":"VLOOKUP(DropDownList!$B$47,CntyQryCensus!$A$156:$FR$198,FH$1)","v":14},{"$f":"VLOOKUP(DropDownList!$B$47,CntyQryCensus!$A$156:$FR$198,FI$1)","v":69},{"$f":"VLOOKUP(DropDownList!$B$47,CntyQryCensus!$A$156:$FR$198,FJ$1)","v":14},{"$f":"VLOOKUP(DropDownList!$B$47,CntyQryCensus!$A$156:$FR$198,FK$1)","v":22},{"$f":"VLOOKUP(DropDownList!$B$47,CntyQryCensus!$A$156:$FR$198,FL$1)","v":12},{"$f":"VLOOKUP(DropDownList!$B$47,CntyQryCensus!$A$156:$FR$198,FM$1)","v":118},{"$f":"VLOOKUP(DropDownList!$B$47,CntyQryCensus!$A$156:$FR$198,FN$1)","v":25},{"$f":"VLOOKUP(DropDownList!$B$47,CntyQryCensus!$A$156:$FR$198,FO$1)","v":103},{"$f":"VLOOKUP(DropDownList!$B$47,CntyQryCensus!$A$156:$FR$198,FP$1)","v":8},{"$f":"VLOOKUP(DropDownList!$B$47,CntyQryCensus!$A$156:$FR$198,FQ$1)","v":74},{"$f":"VLOOKUP(DropDownList!$B$47,CntyQryCensus!$A$156:$FR$198,FR$1)","v":88}]
[]
[]
["Census 2000 SummaryFile3 Sample Data  -  SF3TownQry2aIncomeChar"]
["NAME","LOGRECNO","COUNTY","TotalPop","P52Households1","P52HHInc<10K","P52HHInc10to15K","P52HHInc15to20K","P52HHInc20to25K","P52HHInc25to30K","P52HHInc30to35K","P52HHInc35to40K","P52HHInc40to45K","P52HHInc45to50K","P52HHInc50to60K","P52HHInc60to75K","P52HHInc75to100K","P52HHInc100to125K","P52HHInc125to150K","P52HHInc150to200K","P52HHInc>200K","P53MedianHHInc","P54AggregHHInc","P55Households2","P55HHUnder25yrs","P55HH<25HHInc<10K","P55HH<25HHInc10to15K","P55HH<25HHInc15to20K","P55HH<25HHInc20to25K","P55HH<25HHInc25to30K","P55HH<25HHInc30to35K","P55HH<25HHInc35to40K","P55HH<25HHInc40to45K","P55HH<25HHInc45to50K","P55HH<25HHInc50to60K","P55HH<25HHInc60to75K","P55HH<25HHInc75to100K","P55HH<25HHInc100to125K","P55HH<25HHInc125to150K","P55HH<25HHInc150to200K","P55HH<25HHInc>200K","P55HH25to34yrs","P55HH25to34HHInc<10K","P55HH25to34HHInc10to15K","P55HH25to34HHInc15to20K","P55HH25to34HHInc20to25K","P55HH25to34HHInc25to30K","P55HH25to34HHInc30to35K","P55HH25to34HHInc35to40K","P55HH25to34HHInc40to45K","P55HH25to34HHInc45to50K","P55HH25to34HHInc50to60K","P55HH25to34HHInc60to75K","P55HH25to34HHInc75to100K","P55HH25to34HHInc100to125K","P55HH25to34HHInc125to150K","P55HH25to34HHInc150to200K","P55HH25to34HHInc>200K","P55HH35to44yrs","P55HH35to44HHInc<10K","P55HH35to44HHInc10to15K","P55HH35to44HHInc15to20K","P55HH35to44HHInc20to25K","P55HH35to44HHInc25to30K","P55HH35to44HHInc30to35K","P55HH35to44HHInc35to40K","P55HH35to44HHInc40to45K","P55HH35to44HHInc45to50K","P55HH35to44HHInc50to60K","P55HH35to44HHInc60to75K","P55HH35to44HHInc75to100K","P55HH35to44HHInc100to125K","P55HH35to44HHInc125to150K","P55HH35to44HHInc150to200K","P55HH35to44HHInc>200K","P55HH45to54yrs","P55HH45to55HHInc<10K","P55HH45to55HHInc10to15K","P55HH45to55HHInc15to20K","P55HH45to55HHInc20to25K","P55HH45to55HHInc25to30K","P55HH45to55HHInc30to35K","P55HH45to55HHInc35to40K","P55HH45to55HHInc40to45K","P55HH45to55HHInc45to50K","P55HH45to55HHInc50to60K","P55HH45to55HHInc60to75K","P55HH45to55HHInc75to100K","P55HH45to55HHInc100to125K","P55HH45to55HHInc125to150K","P55HH45to55HHInc150to200K","P55HH45to55HHInc>200K","P55HH55to64yrs","P55HH55to64HHInc<10K","P55HH55to64HHInc10to15K","P55HH55to64HHInc15to20K","P55HH55to64HHInc20to25K","P55HH55to64HHInc25to30K","P55HH55to64HHInc30to35K","P55HH55to64HHInc35to40K","P55HH55to64HHInc40to45K","P55HH55to64HHInc45to50K","P55HH55to64HHInc50to60K","P55HH55to64HHInc60to75K","P55HH55to64HHInc75to100K","P55HH55to64HHInc100to125K","P55HH55to64HHInc125to150K","P55HH55to64HHInc150to200K","P55HH55to64HHInc>200K","P55HH65to74yrs","P55HH65to74HHInc<10K","P55HH65to74HHInc10to15K","P55HH65to74HHInc15to20K","P55HH65to74HHInc20to25K","P55HH65to74HHInc25to30K","P55HH65to74HHInc30to35K","P55HH65to74HHInc35to40K","P55HH65to74HHInc40to45K","P55HH65to74HHInc45to50K","P55HH65to74HHInc50to60K","P55HH65to74HHInc60to75K","P55HH65to74HHInc75to100K","P55HH65to74HHInc100to125K","P55HH65to74HHInc125to150K","P55HH65to74HHInc150to200K","P55HH65to74HHInc>200K","P55HH>75yrs","P55HH>75HHInc<10K","P55HH>75HHInc10to15K","P55HH>75HHInc15to20K","P55HH>75HHInc20to25K","P55HH>75HHInc25to30K","P55HH>75HHInc30to35K","P55HH>75HHInc35to40K","P55HH>75HHInc40to45K","P55HH>75HHInc45to50K","P55HH>75HHInc50to60K","P55HH>75HHInc60to75K","P55HH>75HHInc75to100K","P55HH>75HHInc100to125K","P55HH>75HHInc125to150K","P55HH>75HHInc150to200K","P55HH>75HHInc>200K","P56MedHHInc","P56MedHHIncHH<25y","P56MedHHIncHH25to34y","P56MedHHIncHH35to44y","P56MedHHIncHH45to54y","P56MedHHIncHH55to64y","P56MedHHIncHH65to74y","P56MedHHIncHH>75y","P58Households3","P58HHwithEarnings","P58HHNoEarnings","P59HHwWageSalInc","P59HHNoWageSalInc","P60HHwSelfEmpInc","P60HHNoSelfEmpInc","P61HHwIndDivInc","P61HHNoIndDivInc","P62HHwSocSecInc","P62HHNoSocSecInc","P63HHwSSI","P63HHNoSSI","P64HHwPubAssInc","P64HHNoPubAssInc","P65HHwRetInc","P65HHNoRetInc","P66HHwOtherTypInc","P66HHNoOtherTypInc","P67AggregEarnings","P68AggregWageSalInc","P69AggregSelfEmpInc","P70AggregIntDivInc","P71AggregSocSecInc","P72AggregSSIInc","P73AggregPublicAssInc","P74AggregRetireInc","P76Families1","P76FamInc<10K","P76FamInc10to15K","P76FamInc15to20K","P76FamInc20to25K","P76FamInc25to30K","P76FamInc30to35K","P76FamInc35to40K","P76FamInc40to45K","P76FamInc45to50K","P76FamInc50to60K","P76FamInc60to75K","P76FamInc75to100K","P76FamInc100to125K","P76FamInc125to150K","P76FamInc150to200K","P76FamInc>200K","P77MedFamInc","P78AggregFamInc","P79NonFamHH","P79NonFamHHwInc<10K","P79NonFamHHwInc10to15K","P79NonFamHHwInc15to20K","P79NonFamHHwInc20to25K","P79NonFamHHwInc25to30K","P79NonFamHHwInc30to35K","P79NonFamHHwInc35to40K","P79NonFamHHwInc40to45K","P79NonFamHHwInc45to50K","P79NonFamHHwInc50to60K","P79NonFamHHwInc60to75K","P79NonFamHHwInc75to100K","P79NonFamHHwInc100to125K","P79NonFamHHwInc125to150K","P79NonFamHHwInc150to200K","P79NonFamHHwInc200KorMore","P80MedNonFamInc","P82PerCapitaInc"]
[{"$f":"VLOOKUP(DropDownList!$B$47,CntyQryCensus!$A$206:$HH$248,A$1)","v":"Acworth"},{"$f":"VLOOKUP(DropDownList!$B$47,CntyQryCensus!$A$206:$HH$248,B$1)","v":"0004141"},{"$f":"VLOOKUP(DropDownList!$B$47,CntyQryCensus!$A$206:$HH$248,C$1)","v":"00260"},{"$f":"VLOOKUP(DropDownList!$B$47,CntyQryCensus!$A$206:$HH$248,D$1)","v":836},{"$f":"VLOOKUP(DropDownList!$B$47,CntyQryCensus!$A$206:$HH$248,E$1)","v":325},{"$f":"VLOOKUP(DropDownList!$B$47,CntyQryCensus!$A$206:$HH$248,F$1)","v":25},{"$f":"VLOOKUP(DropDownList!$B$47,CntyQryCensus!$A$206:$HH$248,G$1)","v":12},{"$f":"VLOOKUP(DropDownList!$B$47,CntyQryCensus!$A$206:$HH$248,H$1)","v":38},{"$f":"VLOOKUP(DropDownList!$B$47,CntyQryCensus!$A$206:$HH$248,I$1)","v":17},{"$f":"VLOOKUP(DropDownList!$B$47,CntyQryCensus!$A$206:$HH$248,J$1)","v":36},{"$f":"VLOOKUP(DropDownList!$B$47,CntyQryCensus!$A$206:$HH$248,K$1)","v":24},{"$f":"VLOOKUP(DropDownList!$B$47,CntyQryCensus!$A$206:$HH$248,L$1)","v":19},{"$f":"VLOOKUP(DropDownList!$B$47,CntyQryCensus!$A$206:$HH$248,M$1)","v":29},{"$f":"VLOOKUP(DropDownList!$B$47,CntyQryCensus!$A$206:$HH$248,N$1)","v":22},{"$f":"VLOOKUP(DropDownList!$B$47,CntyQryCensus!$A$206:$HH$248,O$1)","v":30},{"$f":"VLOOKUP(DropDownList!$B$47,CntyQryCensus!$A$206:$HH$248,P$1)","v":30},{"$f":"VLOOKUP(DropDownList!$B$47,CntyQryCensus!$A$206:$HH$248,Q$1)","v":26},{"$f":"VLOOKUP(DropDownList!$B$47,CntyQryCensus!$A$206:$HH$248,R$1)","v":4},{"$f":"VLOOKUP(DropDownList!$B$47,CntyQryCensus!$A$206:$HH$248,S$1)","v":7},{"$f":"VLOOKUP(DropDownList!$B$47,CntyQryCensus!$A$206:$HH$248,T$1)","v":2},{"$f":"VLOOKUP(DropDownList!$B$47,CntyQryCensus!$A$206:$HH$248,U$1)","v":4},{"$f":"VLOOKUP(DropDownList!$B$47,CntyQryCensus!$A$206:$HH$248,V$1)","v":37386},{"$f":"VLOOKUP(DropDownList!$B$47,CntyQryCensus!$A$206:$HH$248,W$1)","v":14932900},{"$f":"VLOOKUP(DropDownList!$B$47,CntyQryCensus!$A$206:$HH$248,X$1)","v":325},{"$f":"VLOOKUP(DropDownList!$B$47,CntyQryCensus!$A$206:$HH$248,Y$1)","v":2},{"$f":"VLOOKUP(DropDownList!$B$47,CntyQryCensus!$A$206:$HH$248,Z$1)","v":0},{"$f":"VLOOKUP(DropDownList!$B$47,CntyQryCensus!$A$206:$HH$248,AA$1)","v":0},{"$f":"VLOOKUP(DropDownList!$B$47,CntyQryCensus!$A$206:$HH$248,AB$1)","v":0},{"$f":"VLOOKUP(DropDownList!$B$47,CntyQryCensus!$A$206:$HH$248,AC$1)","v":0},{"$f":"VLOOKUP(DropDownList!$B$47,CntyQryCensus!$A$206:$HH$248,AD$1)","v":2},{"$f":"VLOOKUP(DropDownList!$B$47,CntyQryCensus!$A$206:$HH$248,AE$1)","v":0},{"$f":"VLOOKUP(DropDownList!$B$47,CntyQryCensus!$A$206:$HH$248,AF$1)","v":0},{"$f":"VLOOKUP(DropDownList!$B$47,CntyQryCensus!$A$206:$HH$248,AG$1)","v":0},{"$f":"VLOOKUP(DropDownList!$B$47,CntyQryCensus!$A$206:$HH$248,AH$1)","v":0},{"$f":"VLOOKUP(DropDownList!$B$47,CntyQryCensus!$A$206:$HH$248,AI$1)","v":0},{"$f":"VLOOKUP(DropDownList!$B$47,CntyQryCensus!$A$206:$HH$248,AJ$1)","v":0},{"$f":"VLOOKUP(DropDownList!$B$47,CntyQryCensus!$A$206:$HH$248,AK$1)","v":0},{"$f":"VLOOKUP(DropDownList!$B$47,CntyQryCensus!$A$206:$HH$248,AL$1)","v":0},{"$f":"VLOOKUP(DropDownList!$B$47,CntyQryCensus!$A$206:$HH$248,AM$1)","v":0},{"$f":"VLOOKUP(DropDownList!$B$47,CntyQryCensus!$A$206:$HH$248,AN$1)","v":0},{"$f":"VLOOKUP(DropDownList!$B$47,CntyQryCensus!$A$206:$HH$248,AO$1)","v":0},{"$f":"VLOOKUP(DropDownList!$B$47,CntyQryCensus!$A$206:$HH$248,AP$1)","v":26},{"$f":"VLOOKUP(DropDownList!$B$47,CntyQryCensus!$A$206:$HH$248,AQ$1)","v":0},{"$f":"VLOOKUP(DropDownList!$B$47,CntyQryCensus!$A$206:$HH$248,AR$1)","v":0},{"$f":"VLOOKUP(DropDownList!$B$47,CntyQryCensus!$A$206:$HH$248,AS$1)","v":0},{"$f":"VLOOKUP(DropDownList!$B$47,CntyQryCensus!$A$206:$HH$248,AT$1)","v":0},{"$f":"VLOOKUP(DropDownList!$B$47,CntyQryCensus!$A$206:$HH$248,AU$1)","v":5},{"$f":"VLOOKUP(DropDownList!$B$47,CntyQryCensus!$A$206:$HH$248,AV$1)","v":3},{"$f":"VLOOKUP(DropDownList!$B$47,CntyQryCensus!$A$206:$HH$248,AW$1)","v":3},{"$f":"VLOOKUP(DropDownList!$B$47,CntyQryCensus!$A$206:$HH$248,AX$1)","v":4},{"$f":"VLOOKUP(DropDownList!$B$47,CntyQryCensus!$A$206:$HH$248,AY$1)","v":2},{"$f":"VLOOKUP(DropDownList!$B$47,CntyQryCensus!$A$206:$HH$248,AZ$1)","v":4},{"$f":"VLOOKUP(DropDownList!$B$47,CntyQryCensus!$A$206:$HH$248,BA$1)","v":5},{"$f":"VLOOKUP(DropDownList!$B$47,CntyQryCensus!$A$206:$HH$248,BB$1)","v":0},{"$f":"VLOOKUP(DropDownList!$B$47,CntyQryCensus!$A$206:$HH$248,BC$1)","v":0},{"$f":"VLOOKUP(DropDownList!$B$47,CntyQryCensus!$A$206:$HH$248,BD$1)","v":0},{"$f":"VLOOKUP(DropDownList!$B$47,CntyQryCensus!$A$206:$HH$248,BE$1)","v":0},{"$f":"VLOOKUP(DropDownList!$B$47,CntyQryCensus!$A$206:$HH$248,BF$1)","v":0},{"$f":"VLOOKUP(DropDownList!$B$47,CntyQryCensus!$A$206:$HH$248,BG$1)","v":62},{"$f":"VLOOKUP(DropDownList!$B$47,CntyQryCensus!$A$206:$HH$248,BH$1)","v":9},{"$f":"VLOOKUP(DropDownList!$B$47,CntyQryCensus!$A$206:$HH$248,BI$1)","v":0},{"$f":"VLOOKUP(DropDownList!$B$47,CntyQryCensus!$A$206:$HH$248,BJ$1)","v":5},{"$f":"VLOOKUP(DropDownList!$B$47,CntyQryCensus!$A$206:$HH$248,BK$1)","v":4},{"$f":"VLOOKUP(DropDownList!$B$47,CntyQryCensus!$A$206:$HH$248,BL$1)","v":3},{"$f":"VLOOKUP(DropDownList!$B$47,CntyQryCensus!$A$206:$HH$248,BM$1)","v":2},{"$f":"VLOOKUP(DropDownList!$B$47,CntyQryCensus!$A$206:$HH$248,BN$1)","v":4},{"$f":"VLOOKUP(DropDownList!$B$47,CntyQryCensus!$A$206:$HH$248,BO$1)","v":2},{"$f":"VLOOKUP(DropDownList!$B$47,CntyQryCensus!$A$206:$HH$248,BP$1)","v":3},{"$f":"VLOOKUP(DropDownList!$B$47,CntyQryCensus!$A$206:$HH$248,BQ$1)","v":8},{"$f":"VLOOKUP(DropDownList!$B$47,CntyQryCensus!$A$206:$HH$248,BR$1)","v":9},{"$f":"VLOOKUP(DropDownList!$B$47,CntyQryCensus!$A$206:$HH$248,BS$1)","v":9},{"$f":"VLOOKUP(DropDownList!$B$47,CntyQryCensus!$A$206:$HH$248,BT$1)","v":0},{"$f":"VLOOKUP(DropDownList!$B$47,CntyQryCensus!$A$206:$HH$248,BU$1)","v":2},{"$f":"VLOOKUP(DropDownList!$B$47,CntyQryCensus!$A$206:$HH$248,BV$1)","v":0},{"$f":"VLOOKUP(DropDownList!$B$47,CntyQryCensus!$A$206:$HH$248,BW$1)","v":2},{"$f":"VLOOKUP(DropDownList!$B$47,CntyQryCensus!$A$206:$HH$248,BX$1)","v":81},{"$f":"VLOOKUP(DropDownList!$B$47,CntyQryCensus!$A$206:$HH$248,BY$1)","v":3},{"$f":"VLOOKUP(DropDownList!$B$47,CntyQryCensus!$A$206:$HH$248,BZ$1)","v":3},{"$f":"VLOOKUP(DropDownList!$B$47,CntyQryCensus!$A$206:$HH$248,CA$1)","v":2},{"$f":"VLOOKUP(DropDownList!$B$47,CntyQryCensus!$A$206:$HH$248,CB$1)","v":4},{"$f":"VLOOKUP(DropDownList!$B$47,CntyQryCensus!$A$206:$HH$248,CC$1)","v":10},{"$f":"VLOOKUP(DropDownList!$B$47,CntyQryCensus!$A$206:$HH$248,CD$1)","v":9},{"$f":"VLOOKUP(DropDownList!$B$47,CntyQryCensus!$A$206:$HH$248,CE$1)","v":4},{"$f":"VLOOKUP(DropDownList!$B$47,CntyQryCensus!$A$206:$HH$248,CF$1)","v":11},{"$f":"VLOOKUP(DropDownList!$B$47,CntyQryCensus!$A$206:$HH$248,CG$1)","v":8},{"$f":"VLOOKUP(DropDownList!$B$47,CntyQryCensus!$A$206:$HH$248,CH$1)","v":9},{"$f":"VLOOKUP(DropDownList!$B$47,CntyQryCensus!$A$206:$HH$248,CI$1)","v":6},{"$f":"VLOOKUP(DropDownList!$B$47,CntyQryCensus!$A$206:$HH$248,CJ$1)","v":8},{"$f":"VLOOKUP(DropDownList!$B$47,CntyQryCensus!$A$206:$HH$248,CK$1)","v":2},{"$f":"VLOOKUP(DropDownList!$B$47,CntyQryCensus!$A$206:$HH$248,CL$1)","v":0},{"$f":"VLOOKUP(DropDownList!$B$47,CntyQryCensus!$A$206:$HH$248,CM$1)","v":0},{"$f":"VLOOKUP(DropDownList!$B$47,CntyQryCensus!$A$206:$HH$248,CN$1)","v":2},{"$f":"VLOOKUP(DropDownList!$B$47,CntyQryCensus!$A$206:$HH$248,CO$1)","v":72},{"$f":"VLOOKUP(DropDownList!$B$47,CntyQryCensus!$A$206:$HH$248,CP$1)","v":6},{"$f":"VLOOKUP(DropDownList!$B$47,CntyQryCensus!$A$206:$HH$248,CQ$1)","v":4},{"$f":"VLOOKUP(DropDownList!$B$47,CntyQryCensus!$A$206:$HH$248,CR$1)","v":12},{"$f":"VLOOKUP(DropDownList!$B$47,CntyQryCensus!$A$206:$HH$248,CS$1)","v":2},{"$f":"VLOOKUP(DropDownList!$B$47,CntyQryCensus!$A$206:$HH$248,CT$1)","v":4},{"$f":"VLOOKUP(DropDownList!$B$47,CntyQryCensus!$A$206:$HH$248,CU$1)","v":6},{"$f":"VLOOKUP(DropDownList!$B$47,CntyQryCensus!$A$206:$HH$248,CV$1)","v":2},{"$f":"VLOOKUP(DropDownList!$B$47,CntyQryCensus!$A$206:$HH$248,CW$1)","v":10},{"$f":"VLOOKUP(DropDownList!$B$47,CntyQryCensus!$A$206:$HH$248,CX$1)","v":4},{"$f":"VLOOKUP(DropDownList!$B$47,CntyQryCensus!$A$206:$HH$248,CY$1)","v":2},{"$f":"VLOOKUP(DropDownList!$B$47,CntyQryCensus!$A$206:$HH$248,CZ$1)","v":9},{"$f":"VLOOKUP(DropDownList!$B$47,CntyQryCensus!$A$206:$HH$248,DA$1)","v":5},{"$f":"VLOOKUP(DropDownList!$B$47,CntyQryCensus!$A$206:$HH$248,DB$1)","v":2},{"$f":"VLOOKUP(DropDownList!$B$47,CntyQryCensus!$A$206:$HH$248,DC$1)","v":4},{"$f":"VLOOKUP(DropDownList!$B$47,CntyQryCensus!$A$206:$HH$248,DD$1)","v":0},{"$f":"VLOOKUP(DropDownList!$B$47,CntyQryCensus!$A$206:$HH$248,DE$1)","v":0},{"$f":"VLOOKUP(DropDownList!$B$47,CntyQryCensus!$A$206:$HH$248,DF$1)","v":53},{"$f":"VLOOKUP(DropDownList!$B$47,CntyQryCensus!$A$206:$HH$248,DG$1)","v":4},{"$f":"VLOOKUP(DropDownList!$B$47,CntyQryCensus!$A$206:$HH$248,DH$1)","v":5},{"$f":"VLOOKUP(DropDownList!$B$47,CntyQryCensus!$A$206:$HH$248,DI$1)","v":8},{"$f":"VLOOKUP(DropDownList!$B$47,CntyQryCensus!$A$206:$HH$248,DJ$1)","v":6},{"$f":"VLOOKUP(DropDownList!$B$47,CntyQryCensus!$A$206:$HH$248,DK$1)","v":9},{"$f":"VLOOKUP(DropDownList!$B$47,CntyQryCensus!$A$206:$HH$248,DL$1)","v":0},{"$f":"VLOOKUP(DropDownList!$B$47,CntyQryCensus!$A$206:$HH$248,DM$1)","v":6},{"$f":"VLOOKUP(DropDownList!$B$47,CntyQryCensus!$A$206:$HH$248,DN$1)","v":2},{"$f":"VLOOKUP(DropDownList!$B$47,CntyQryCensus!$A$206:$HH$248,DO$1)","v":2},{"$f":"VLOOKUP(DropDownList!$B$47,CntyQryCensus!$A$206:$HH$248,DP$1)","v":6},{"$f":"VLOOKUP(DropDownList!$B$47,CntyQryCensus!$A$206:$HH$248,DQ$1)","v":0},{"$f":"VLOOKUP(DropDownList!$B$47,CntyQryCensus!$A$206:$HH$248,DR$1)","v":2},{"$f":"VLOOKUP(DropDownList!$B$47,CntyQryCensus!$A$206:$HH$248,DS$1)","v":0},{"$f":"VLOOKUP(DropDownList!$B$47,CntyQryCensus!$A$206:$HH$248,DT$1)","v":1},{"$f":"VLOOKUP(DropDownList!$B$47,CntyQryCensus!$A$206:$HH$248,DU$1)","v":2},{"$f":"VLOOKUP(DropDownList!$B$47,CntyQryCensus!$A$206:$HH$248,DV$1)","v":0},{"$f":"VLOOKUP(DropDownList!$B$47,CntyQryCensus!$A$206:$HH$248,DW$1)","v":29},{"$f":"VLOOKUP(DropDownList!$B$47,CntyQryCensus!$A$206:$HH$248,DX$1)","v":3},{"$f":"VLOOKUP(DropDownList!$B$47,CntyQryCensus!$A$206:$HH$248,DY$1)","v":0},{"$f":"VLOOKUP(DropDownList!$B$47,CntyQryCensus!$A$206:$HH$248,DZ$1)","v":11},{"$f":"VLOOKUP(DropDownList!$B$47,CntyQryCensus!$A$206:$HH$248,EA$1)","v":1},{"$f":"VLOOKUP(DropDownList!$B$47,CntyQryCensus!$A$206:$HH$248,EB$1)","v":3},{"$f":"VLOOKUP(DropDownList!$B$47,CntyQryCensus!$A$206:$HH$248,EC$1)","v":4},{"$f":"VLOOKUP(DropDownList!$B$47,CntyQryCensus!$A$206:$HH$248,ED$1)","v":0},{"$f":"VLOOKUP(DropDownList!$B$47,CntyQryCensus!$A$206:$HH$248,EE$1)","v":0},{"$f":"VLOOKUP(DropDownList!$B$47,CntyQryCensus!$A$206:$HH$248,EF$1)","v":3},{"$f":"VLOOKUP(DropDownList!$B$47,CntyQryCensus!$A$206:$HH$248,EG$1)","v":1},{"$f":"VLOOKUP(DropDownList!$B$47,CntyQryCensus!$A$206:$HH$248,EH$1)","v":1},{"$f":"VLOOKUP(DropDownList!$B$47,CntyQryCensus!$A$206:$HH$248,EI$1)","v":2},{"$f":"VLOOKUP(DropDownList!$B$47,CntyQryCensus!$A$206:$HH$248,EJ$1)","v":0},{"$f":"VLOOKUP(DropDownList!$B$47,CntyQryCensus!$A$206:$HH$248,EK$1)","v":0},{"$f":"VLOOKUP(DropDownList!$B$47,CntyQryCensus!$A$206:$HH$248,EL$1)","v":0},{"$f":"VLOOKUP(DropDownList!$B$47,CntyQryCensus!$A$206:$HH$248,EM$1)","v":0},{"$f":"VLOOKUP(DropDownList!$B$47,CntyQryCensus!$A$206:$HH$248,EN$1)","v":37386},{"$f":"VLOOKUP(DropDownList!$B$47,CntyQryCensus!$A$206:$HH$248,EO$1)","v":26250},{"$f":"VLOOKUP(DropDownList!$B$47,CntyQryCensus!$A$206:$HH$248,EP$1)","v":42500},{"$f":"VLOOKUP(DropDownList!$B$47,CntyQryCensus!$A$206:$HH$248,EQ$1)","v":46667},{"$f":"VLOOKUP(DropDownList!$B$47,CntyQryCensus!$A$206:$HH$248,ER$1)","v":41528},{"$f":"VLOOKUP(DropDownList!$B$47,CntyQryCensus!$A$206:$HH$248,ES$1)","v":38750},{"$f":"VLOOKUP(DropDownList!$B$47,CntyQryCensus!$A$206:$HH$248,ET$1)","v":27188},{"$f":"VLOOKUP(DropDownList!$B$47,CntyQryCensus!$A$206:$HH$248,EU$1)","v":23750},{"$f":"VLOOKUP(DropDownList!$B$47,CntyQryCensus!$A$206:$HH$248,EV$1)","v":325},{"$f":"VLOOKUP(DropDownList!$B$47,CntyQryCensus!$A$206:$HH$248,EW$1)","v":262},{"$f":"VLOOKUP(DropDownList!$B$47,CntyQryCensus!$A$206:$HH$248,EX$1)","v":63},{"$f":"VLOOKUP(DropDownList!$B$47,CntyQryCensus!$A$206:$HH$248,EY$1)","v":229},{"$f":"VLOOKUP(DropDownList!$B$47,CntyQryCensus!$A$206:$HH$248,EZ$1)","v":96},{"$f":"VLOOKUP(DropDownList!$B$47,CntyQryCensus!$A$206:$HH$248,FA$1)","v":94},{"$f":"VLOOKUP(DropDownList!$B$47,CntyQryCensus!$A$206:$HH$248,FB$1)","v":231},{"$f":"VLOOKUP(DropDownList!$B$47,CntyQryCensus!$A$206:$HH$248,FC$1)","v":154},{"$f":"VLOOKUP(DropDownList!$B$47,CntyQryCensus!$A$206:$HH$248,FD$1)","v":171},{"$f":"VLOOKUP(DropDownList!$B$47,CntyQryCensus!$A$206:$HH$248,FE$1)","v":101},{"$f":"VLOOKUP(DropDownList!$B$47,CntyQryCensus!$A$206:$HH$248,FF$1)","v":224},{"$f":"VLOOKUP(DropDownList!$B$47,CntyQryCensus!$A$206:$HH$248,FG$1)","v":10},{"$f":"VLOOKUP(DropDownList!$B$47,CntyQryCensus!$A$206:$HH$248,FH$1)","v":315},{"$f":"VLOOKUP(DropDownList!$B$47,CntyQryCensus!$A$206:$HH$248,FI$1)","v":5},{"$f":"VLOOKUP(DropDownList!$B$47,CntyQryCensus!$A$206:$HH$248,FJ$1)","v":320},{"$f":"VLOOKUP(DropDownList!$B$47,CntyQryCensus!$A$206:$HH$248,FK$1)","v":63},{"$f":"VLOOKUP(DropDownList!$B$47,CntyQryCensus!$A$206:$HH$248,FL$1)","v":262},{"$f":"VLOOKUP(DropDownList!$B$47,CntyQryCensus!$A$206:$HH$248,FM$1)","v":36},{"$f":"VLOOKUP(DropDownList!$B$47,CntyQryCensus!$A$206:$HH$248,FN$1)","v":289},{"$f":"VLOOKUP(DropDownList!$B$47,CntyQryCensus!$A$206:$HH$248,FO$1)","v":10630300},{"$f":"VLOOKUP(DropDownList!$B$47,CntyQryCensus!$A$206:$HH$248,FP$1)","v":8885300},{"$f":"VLOOKUP(DropDownList!$B$47,CntyQryCensus!$A$206:$HH$248,FQ$1)","v":1745100},{"$f":"VLOOKUP(DropDownList!$B$47,CntyQryCensus!$A$206:$HH$248,FR$1)","v":1892700},{"$f":"VLOOKUP(DropDownList!$B$47,CntyQryCensus!$A$206:$HH$248,FS$1)","v":1170100},{"$f":"VLOOKUP(DropDownList!$B$47,CntyQryCensus!$A$206:$HH$248,FT$1)","v":47000},{"$f":"VLOOKUP(DropDownList!$B$47,CntyQryCensus!$A$206:$HH$248,FU$1)","v":11100},{"$f":"VLOOKUP(DropDownList!$B$47,CntyQryCensus!$A$206:$HH$248,FV$1)","v":965300},{"$f":"VLOOKUP(DropDownList!$B$47,CntyQryCensus!$A$206:$HH$248,FW$1)","v":237},{"$f":"VLOOKUP(DropDownList!$B$47,CntyQryCensus!$A$206:$HH$248,FX$1)","v":12},{"$f":"VLOOKUP(DropDownList!$B$47,CntyQryCensus!$A$206:$HH$248,FY$1)","v":6},{"$f":"VLOOKUP(DropDownList!$B$47,CntyQryCensus!$A$206:$HH$248,FZ$1)","v":30},{"$f":"VLOOKUP(DropDownList!$B$47,CntyQryCensus!$A$206:$HH$248,GA$1)","v":9},{"$f":"VLOOKUP(DropDownList!$B$47,CntyQryCensus!$A$206:$HH$248,GB$1)","v":21},{"$f":"VLOOKUP(DropDownList!$B$47,CntyQryCensus!$A$206:$HH$248,GC$1)","v":14},{"$f":"VLOOKUP(DropDownList!$B$47,CntyQryCensus!$A$206:$HH$248,GD$1)","v":17},{"$f":"VLOOKUP(DropDownList!$B$47,CntyQryCensus!$A$206:$HH$248,GE$1)","v":30},{"$f":"VLOOKUP(DropDownList!$B$47,CntyQryCensus!$A$206:$HH$248,GF$1)","v":11},{"$f":"VLOOKUP(DropDownList!$B$47,CntyQryCensus!$A$206:$HH$248,GG$1)","v":24},{"$f":"VLOOKUP(DropDownList!$B$47,CntyQryCensus!$A$206:$HH$248,GH$1)","v":22},{"$f":"VLOOKUP(DropDownList!$B$47,CntyQryCensus!$A$206:$HH$248,GI$1)","v":26},{"$f":"VLOOKUP(DropDownList!$B$47,CntyQryCensus!$A$206:$HH$248,GJ$1)","v":4},{"$f":"VLOOKUP(DropDownList!$B$47,CntyQryCensus!$A$206:$HH$248,GK$1)","v":7},{"$f":"VLOOKUP(DropDownList!$B$47,CntyQryCensus!$A$206:$HH$248,GL$1)","v":0},{"$f":"VLOOKUP(DropDownList!$B$47,CntyQryCensus!$A$206:$HH$248,GM$1)","v":4},{"$f":"VLOOKUP(DropDownList!$B$47,CntyQryCensus!$A$206:$HH$248,GN$1)","v":41397},{"$f":"VLOOKUP(DropDownList!$B$47,CntyQryCensus!$A$206:$HH$248,GO$1)","v":11973900},{"$f":"VLOOKUP(DropDownList!$B$47,CntyQryCensus!$A$206:$HH$248,GP$1)","v":88},{"$f":"VLOOKUP(DropDownList!$B$47,CntyQryCensus!$A$206:$HH$248,GQ$1)","v":15},{"$f":"VLOOKUP(DropDownList!$B$47,CntyQryCensus!$A$206:$HH$248,GR$1)","v":6},{"$f":"VLOOKUP(DropDownList!$B$47,CntyQryCensus!$A$206:$HH$248,GS$1)","v":10},{"$f":"VLOOKUP(DropDownList!$B$47,CntyQryCensus!$A$206:$HH$248,GT$1)","v":8},{"$f":"VLOOKUP(DropDownList!$B$47,CntyQryCensus!$A$206:$HH$248,GU$1)","v":13},{"$f":"VLOOKUP(DropDownList!$B$47,CntyQryCensus!$A$206:$HH$248,GV$1)","v":10},{"$f":"VLOOKUP(DropDownList!$B$47,CntyQryCensus!$A$206:$HH$248,GW$1)","v":5},{"$f":"VLOOKUP(DropDownList!$B$47,CntyQryCensus!$A$206:$HH$248,GX$1)","v":2},{"$f":"VLOOKUP(DropDownList!$B$47,CntyQryCensus!$A$206:$HH$248,GY$1)","v":11},{"$f":"VLOOKUP(DropDownList!$B$47,CntyQryCensus!$A$206:$HH$248,GZ$1)","v":6},{"$f":"VLOOKUP(DropDownList!$B$47,CntyQryCensus!$A$206:$HH$248,HA$1)","v":0},{"$f":"VLOOKUP(DropDownList!$B$47,CntyQryCensus!$A$206:$HH$248,HB$1)","v":0},{"$f":"VLOOKUP(DropDownList!$B$47,CntyQryCensus!$A$206:$HH$248,HC$1)","v":0},{"$f":"VLOOKUP(DropDownList!$B$47,CntyQryCensus!$A$206:$HH$248,HD$1)","v":0},{"$f":"VLOOKUP(DropDownList!$B$47,CntyQryCensus!$A$206:$HH$248,HE$1)","v":2},{"$f":"VLOOKUP(DropDownList!$B$47,CntyQryCensus!$A$206:$HH$248,HF$1)","v":0},{"$f":"VLOOKUP(DropDownList!$B$47,CntyQryCensus!$A$206:$HH$248,HG$1)","v":27083},{"$f":"VLOOKUP(DropDownList!$B$47,CntyQryCensus!$A$206:$HH$248,HH$1)","v":18132}]
[]
[]
["Census 2000 SummaryFile3 Sample Data  -  SF3TownQry2bPovertyChar"]
["NAME","LOGRECNO","COUNTY","TotalPop","P52Households1","P82PerCapitaInc","P87PopForPovStatus","P87PopWIncBelowPovStatus","P87PopUnder5yrBelowPoverty","P87Pop5yrBelowPoverty","P87Pop5to11yrBelowPoverty","P87Pop12to17yrBelowPoverty","P87Pop18to64yrBelowPoverty","P87Pop65to74yrBelowPoverty","P87PopOver75yrBelowPoverty","P87PopWIncAbovePovStatus","P87PopUnder5yrAbovePoverty","P87Pop5yrAbovePoverty","P87Pop5to11yrAbovePoverty","P87Pop12to17yrAbovePoverty","P87Pop18to64yrAbovePoverty","P87Pop65to74yrAbovePoverty","P87PopOver75yrAbovePoverty","P90Families","P90FamWIncBelowPov","P90MarCupFamWIncBelowPov","P90MCFamWRltdChld<18WIncBelowPov","P90MCFamWRltdChld<5WIncBelowPov","P90MaleHhlrWIncBelowPov","P90MaleHhlrWRltdChld<18yrWIncBelowPov","P90MaleHhlrWRltdChld<5yrWIncBelowPov","P90FemaleHhlrWIncBelowPov","P90FemaleHhlrWRltdChld<18yWIncBelowPov","P90FemaleHhlrWRltdChld<5yWIncBelowPov","P90FamWIncAbovePov","P90MarCupFamWIncAbovePov","P90MCFamWRltdChld<18WIncAbovePov","P90MCFamWRltdChld<5WIncAbovePov","P90MaleHhlrWIncAbovePov","P90MaleHhlrWRltdChld<18yrWIncAbovePov","P90MaleHhlrWRltdChld<5yrWIncAbovePov","P90FemaleHhlrWIncAbovePov","P90FemaleHhlrWRltdChld<18yWIncAbovePov","P90FemaleHhlrWRltdChld<5yWIncAbovePov","P92Households","P92HHwIncBelowPov","P92FamHHwIncBelowPov","P92MCFamHHwIncBelowPov","P92MaleFamHHwIncBelowPov","P92FemaleFamHHwIncBelowPov","P92NonFamHHwIncBelowPov","P92NonFamMaleHHwIncBelowPov","P92NonFamFemaleHHwIncBelowPov","P92HHwIncAbovePov","P92FamHHwIncAbovePov","P92MCFamHHwIncAbovePov","P92MaleFamHHwIncAbovePov","P92FemaleFamHHwIncAbovePov","P92NonFamHHwIncAbovePov","P92NonFamMaleHHwIncAbovePov","P92NonFamFemaleHHwIncAbovePov"]
[{"$f":"VLOOKUP(DropDownList!$B$47,CntyQryCensus!$A$256:$BI$298,A$1)","v":"Acworth"},{"$f":"VLOOKUP(DropDownList!$B$47,CntyQryCensus!$A$256:$BI$298,B$1)","v":"0004141"},{"$f":"VLOOKUP(DropDownList!$B$47,CntyQryCensus!$A$256:$BI$298,C$1)","v":"00260"},{"$f":"VLOOKUP(DropDownList!$B$47,CntyQryCensus!$A$256:$BI$298,D$1)","v":836},{"$f":"VLOOKUP(DropDownList!$B$47,CntyQryCensus!$A$256:$BI$298,E$1)","v":325},{"$f":"VLOOKUP(DropDownList!$B$47,CntyQryCensus!$A$256:$BI$298,F$1)","v":18132},{"$f":"VLOOKUP(DropDownList!$B$47,CntyQryCensus!$A$256:$BI$298,G$1)","v":838},{"$f":"VLOOKUP(DropDownList!$B$47,CntyQryCensus!$A$256:$BI$298,H$1)","v":131},{"$f":"VLOOKUP(DropDownList!$B$47,CntyQryCensus!$A$256:$BI$298,I$1)","v":10},{"$f":"VLOOKUP(DropDownList!$B$47,CntyQryCensus!$A$256:$BI$298,J$1)","v":0},{"$f":"VLOOKUP(DropDownList!$B$47,CntyQryCensus!$A$256:$BI$298,K$1)","v":20},{"$f":"VLOOKUP(DropDownList!$B$47,CntyQryCensus!$A$256:$BI$298,L$1)","v":26},{"$f":"VLOOKUP(DropDownList!$B$47,CntyQryCensus!$A$256:$BI$298,M$1)","v":68},{"$f":"VLOOKUP(DropDownList!$B$47,CntyQryCensus!$A$256:$BI$298,N$1)","v":7},{"$f":"VLOOKUP(DropDownList!$B$47,CntyQryCensus!$A$256:$BI$298,O$1)","v":0},{"$f":"VLOOKUP(DropDownList!$B$47,CntyQryCensus!$A$256:$BI$298,P$1)","v":707},{"$f":"VLOOKUP(DropDownList!$B$47,CntyQryCensus!$A$256:$BI$298,Q$1)","v":29},{"$f":"VLOOKUP(DropDownList!$B$47,CntyQryCensus!$A$256:$BI$298,R$1)","v":9},{"$f":"VLOOKUP(DropDownList!$B$47,CntyQryCensus!$A$256:$BI$298,S$1)","v":53},{"$f":"VLOOKUP(DropDownList!$B$47,CntyQryCensus!$A$256:$BI$298,T$1)","v":61},{"$f":"VLOOKUP(DropDownList!$B$47,CntyQryCensus!$A$256:$BI$298,U$1)","v":432},{"$f":"VLOOKUP(DropDownList!$B$47,CntyQryCensus!$A$256:$BI$298,V$1)","v":76},{"$f":"VLOOKUP(DropDownList!$B$47,CntyQryCensus!$A$256:$BI$298,W$1)","v":47},{"$f":"VLOOKUP(DropDownList!$B$47,CntyQryCensus!$A$256:$BI$298,X$1)","v":237},{"$f":"VLOOKUP(DropDownList!$B$47,CntyQryCensus!$A$256:$BI$298,Y$1)","v":24},{"$f":"VLOOKUP(DropDownList!$B$47,CntyQryCensus!$A$256:$BI$298,Z$1)","v":15},{"$f":"VLOOKUP(DropDownList!$B$47,CntyQryCensus!$A$256:$BI$298,AA$1)","v":9},{"$f":"VLOOKUP(DropDownList!$B$47,CntyQryCensus!$A$256:$BI$298,AB$1)","v":0},{"$f":"VLOOKUP(DropDownList!$B$47,CntyQryCensus!$A$256:$BI$298,AC$1)","v":2},{"$f":"VLOOKUP(DropDownList!$B$47,CntyQryCensus!$A$256:$BI$298,AD$1)","v":2},{"$f":"VLOOKUP(DropDownList!$B$47,CntyQryCensus!$A$256:$BI$298,AE$1)","v":0},{"$f":"VLOOKUP(DropDownList!$B$47,CntyQryCensus!$A$256:$BI$298,AF$1)","v":7},{"$f":"VLOOKUP(DropDownList!$B$47,CntyQryCensus!$A$256:$BI$298,AG$1)","v":7},{"$f":"VLOOKUP(DropDownList!$B$47,CntyQryCensus!$A$256:$BI$298,AH$1)","v":2},{"$f":"VLOOKUP(DropDownList!$B$47,CntyQryCensus!$A$256:$BI$298,AI$1)","v":213},{"$f":"VLOOKUP(DropDownList!$B$47,CntyQryCensus!$A$256:$BI$298,AJ$1)","v":182},{"$f":"VLOOKUP(DropDownList!$B$47,CntyQryCensus!$A$256:$BI$298,AK$1)","v":76},{"$f":"VLOOKUP(DropDownList!$B$47,CntyQryCensus!$A$256:$BI$298,AL$1)","v":10},{"$f":"VLOOKUP(DropDownList!$B$47,CntyQryCensus!$A$256:$BI$298,AM$1)","v":14},{"$f":"VLOOKUP(DropDownList!$B$47,CntyQryCensus!$A$256:$BI$298,AN$1)","v":6},{"$f":"VLOOKUP(DropDownList!$B$47,CntyQryCensus!$A$256:$BI$298,AO$1)","v":2},{"$f":"VLOOKUP(DropDownList!$B$47,CntyQryCensus!$A$256:$BI$298,AP$1)","v":17},{"$f":"VLOOKUP(DropDownList!$B$47,CntyQryCensus!$A$256:$BI$298,AQ$1)","v":6},{"$f":"VLOOKUP(DropDownList!$B$47,CntyQryCensus!$A$256:$BI$298,AR$1)","v":0},{"$f":"VLOOKUP(DropDownList!$B$47,CntyQryCensus!$A$256:$BI$298,AS$1)","v":325},{"$f":"VLOOKUP(DropDownList!$B$47,CntyQryCensus!$A$256:$BI$298,AT$1)","v":34},{"$f":"VLOOKUP(DropDownList!$B$47,CntyQryCensus!$A$256:$BI$298,AU$1)","v":24},{"$f":"VLOOKUP(DropDownList!$B$47,CntyQryCensus!$A$256:$BI$298,AV$1)","v":15},{"$f":"VLOOKUP(DropDownList!$B$47,CntyQryCensus!$A$256:$BI$298,AW$1)","v":2},{"$f":"VLOOKUP(DropDownList!$B$47,CntyQryCensus!$A$256:$BI$298,AX$1)","v":7},{"$f":"VLOOKUP(DropDownList!$B$47,CntyQryCensus!$A$256:$BI$298,AY$1)","v":10},{"$f":"VLOOKUP(DropDownList!$B$47,CntyQryCensus!$A$256:$BI$298,AZ$1)","v":4},{"$f":"VLOOKUP(DropDownList!$B$47,CntyQryCensus!$A$256:$BI$298,BA$1)","v":6},{"$f":"VLOOKUP(DropDownList!$B$47,CntyQryCensus!$A$256:$BI$298,BB$1)","v":291},{"$f":"VLOOKUP(DropDownList!$B$47,CntyQryCensus!$A$256:$BI$298,BC$1)","v":213},{"$f":"VLOOKUP(DropDownList!$B$47,CntyQryCensus!$A$256:$BI$298,BD$1)","v":182},{"$f":"VLOOKUP(DropDownList!$B$47,CntyQryCensus!$A$256:$BI$298,BE$1)","v":14},{"$f":"VLOOKUP(DropDownList!$B$47,CntyQryCensus!$A$256:$BI$298,BF$1)","v":17},{"$f":"VLOOKUP(DropDownList!$B$47,CntyQryCensus!$A$256:$BI$298,BG$1)","v":78},{"$f":"VLOOKUP(DropDownList!$B$47,CntyQryCensus!$A$256:$BI$298,BH$1)","v":47},{"$f":"VLOOKUP(DropDownList!$B$47,CntyQryCensus!$A$256:$BI$298,BI$1)","v":31}]
[null,null,null,null,null,null,null,null,null,null,null,null,null,null,null,null,null,null,{"$f":"SUM(R60:T60)","v":123}]
[]
["Census 2000 SummaryFile3 Sample Data  -  SF3TownQry7HousingA"]
["NAME","LOGRECNO","COUNTY","TotalPop","H1HousingUnitsTotal","H2SampleHU","H2SampleOccHU","H2SampleVacHU","H3HU100pctCount","H5HUTotal","H5HUUrban","H5HUUrbanInUrbanAreas","H5HUUrbanInUrbanClusters","H5HURural","H5HURuralFarm","H5HURuralNonFarm","H7HUOcc","H7HUOwnrOcc","H7HURentrOcc","H8HUVacant","H8HUVacantForRent","H8HUVacantForSale","H8HUVacRentedorSold","H8HUVacSeasonal","H8HUVacForMigrantWrkrs","H8HUOtherVacant","H14OccHUa","H14OwnerOccHU","H14OwnOccHuHh15to24","H14OwnOccHuHh25to34","H14OwnOccHuHh35to44","H14OwnOccHuHh45to54","H14OwnOccHuHh55to59","H14OwnOccHuHh60to64","H14OwnOccHuHh65to74","H14OwnOccHuHh75to84","H14OwnOccHuHh85Over","H14RenterOccHU1","H14RntrOccHuHh15to24","H14RntrOccHuHh25to34","H14RntrOccHuHh35to44","H14RntrOccHuHh45to54","H14RntrOccHuHh55to59","H14RntrOccHuHh60to64","H14RntrOccHuHh65to74","H14RntrOccHuHh75to84","H14RntrOccHuHh85Over","H15PopInOccHU","H15PopInOwnOccHU1","H15PopInRentOccHU1","H17OccupHUb","H17OwnOccHU2","H17OwnOccHU1PersonHH","H17OwnOccHU2PersonHH","H17OwnOccHU3PersonHH","H17OwnOccHU4PersonHH","H17OwnOccHU5PersonHH","H17OwnOccHU6PersonHH","H17OwnOccHU7PlusPersonHH","H17RentOccHU2","H17RntOccHU1PersonHH","H17RntOccHU2PersonHH","H17RntOccHU3PersonHH","H17RntOccHU4PersonHH","H17RntOccHU5PersonHH","H17RntOccHU6PersonHH","H17RntOccHU7PlusPersonHH","H18AvgHHSize","H18AvgHHSizeOwnOcc","H18AvgHHSizeRentOcc","H23TotHU","H23HU1Room","H23HU2Room","H23HU3Room","H23HU4Room","H23HU5Room","H23HU6Room","H23HU7Room","H23HU8Room","H23HU9orMoreRoom","H24MedianNumRooms","H25AggregNumRooms","H30TotalHU","H30Det1HU","H30Att1HU","H30Units2","H30Units3or4","H30Units5to9","H30Units10to19","H30Units20to49","H30Units50orMore","H30UnitsMobileHome","H30UnitsBoatRv","H32OccHUcTotal","H32OwnerOccHU3","H32OwnOccHU1Det","H32OwnOccHU1Att","H32OwnOccHU2Unit","H32OwnOccHU3to4Unit","H32OwnOccHU5to9Unit","H32OwnOccHU10to19Unit","H32OwnOccHU20to49Unit","H32OwnOccHU50plusUnit","H32OwnOccHUMobHom","H32OwnOccHUBoatRVOth","H32RentrOccHU3","H32RntrOccHU1Det","H32RntrOccHU1Att","H32RntrOccHU2Unit","H32RntrOccHU3to4Unit","H32RntrOccHU5to9Unit","H32RntrOccHU10to19Unit","H32RntrOccHU20to49Unit","H32RntrOccHU50PlusUnit","H32RntrOccHUMobHom","H32RntrOccHUBoatRVOth","H33TotPopInOccHU","H33PopInOwnOccHU2","H33PopInOOHU1Det","H33PopInOOHU1Att","H33PopInOOHU2unit","H33PopInOOHU3to4Unit","H33PopInOOHU5to9Unit","H33PopInOOHU10to19Unit","H33PopInOOHU20to49Unit","H33PopInOOHU50PlusUnit","H33PopInOOHUMobilHome","H33PopInOOHUOtherUnit","H33PopInRentOccHU2","H33PopInROHU1Det","H33PopInROHU1Att","H33PopInROHU2Unit","H33PopInROHU3to4Unit","H33PopInROHU5to9Unit","H33PopInROHU10to19Unit","H33PopInROHU20to49Unit","H33PopInROHU50PlusUnit","H33PopInROHUMobilHome","H33PopInROHUOtherUnit","H36OccHousingUnitsdTotal","H36OwnerOccHU4","H36OOHUBuilt99to0300","H36OOHUBuilt95to98","H36OOHUBuilt90to94","H36OOHUBuilt80to89","H36OOHUBuilt70to79","H36OOHUBuilt60to69","H36OOHUBuilt50to59","H36OOHUBuilt40to49","H36OOHUBuilt39Earlier","H36RentOccHU4","H36ROHUBuilt99to0300","H36ROHUBuilt95to98","H36ROHUBuilt90to94","H36ROHUBuilt80to89","H36ROHUBuilt70to79","H36ROHUBuilt60to69","H36ROHUBuilt50to59","H36ROHUBuilt40to49","H36ROHUBuilt39Earlier","H40OccupHousUnitse","H40HeatFuelUtilGas","H40HeatFuelBotGas","H40HeatFuelElect","H40HeatFuelOilKero","H40HeatFuelCoal","H40HeatFuelWood","H40HeatFuelSolar","H40HeatFuelOther","H40HeatFuelNone","H41TotalHU","H41HUNoBdrm","H41HU1Bdrm","H41HU2Bdrm","H41HU3Bdrm","H41HU4Bdrm","H41HU5MoreBdrm","H42OccuHousUnitf","H42OwnerOccHU5","H42OOHUNoBdrm","H42OOHU1Bdrm","H42OOHU2Bdrm","H42OOHU3Bdrm","H42OOHU4Bdrm","H42OOHU5PlusBdrm","H42RentOccHU5","H42ROHUNoBdrm","H42ROHU1Bdrm","H42ROHU2Bdrm","H42ROHU3Bdrm","H42ROHU4Bdrm","H42ROHU5PlusBdrm","H48OccupHousUnitsg","H48OwnerOccHU6","H48OOHUwCompltPlumFacil","H48OOHULackCompltPlumFacil","H48RentOccHU6","H48ROHUwCompltPlumFacil","H48ROHULackCompltPlumFacil","H51OccupHousUnitf","H51OwnerOccHU7","H51OOHUwCompleteKitFacil","H51OOHULackCompleteKitFacil","H51RenterOccHU7","H51ROHUwCompleteKitFacil","H51ROHULackCompleteKitFacil"]
[{"$f":"VLOOKUP(DropDownList!$B47,CntyQryCensus!$A$306:$GX$348,A$1)","v":"Acworth"},{"$f":"VLOOKUP(DropDownList!$B47,CntyQryCensus!$A$306:$GX$348,B$1)","v":"0004141"},{"$f":"VLOOKUP(DropDownList!$B47,CntyQryCensus!$A$306:$GX$348,C$1)","v":"00260"},{"$f":"VLOOKUP(DropDownList!$B47,CntyQryCensus!$A$306:$GX$348,D$1)","v":836},{"$f":"VLOOKUP(DropDownList!$B47,CntyQryCensus!$A$306:$GX$348,E$1)","v":515},{"$f":"VLOOKUP(DropDownList!$B47,CntyQryCensus!$A$306:$GX$348,F$1)","v":241},{"$f":"VLOOKUP(DropDownList!$B47,CntyQryCensus!$A$306:$GX$348,G$1)","v":152},{"$f":"VLOOKUP(DropDownList!$B47,CntyQryCensus!$A$306:$GX$348,H$1)","v":89},{"$f":"VLOOKUP(DropDownList!$B47,CntyQryCensus!$A$306:$GX$348,I$1)","v":512},{"$f":"VLOOKUP(DropDownList!$B47,CntyQryCensus!$A$306:$GX$348,J$1)","v":515},{"$f":"VLOOKUP(DropDownList!$B47,CntyQryCensus!$A$306:$GX$348,K$1)","v":0},{"$f":"VLOOKUP(DropDownList!$B47,CntyQryCensus!$A$306:$GX$348,L$1)","v":0},{"$f":"VLOOKUP(DropDownList!$B47,CntyQryCensus!$A$306:$GX$348,M$1)","v":0},{"$f":"VLOOKUP(DropDownList!$B47,CntyQryCensus!$A$306:$GX$348,N$1)","v":515},{"$f":"VLOOKUP(DropDownList!$B47,CntyQryCensus!$A$306:$GX$348,O$1)","v":18},{"$f":"VLOOKUP(DropDownList!$B47,CntyQryCensus!$A$306:$GX$348,P$1)","v":497},{"$f":"VLOOKUP(DropDownList!$B47,CntyQryCensus!$A$306:$GX$348,Q$1)","v":319},{"$f":"VLOOKUP(DropDownList!$B47,CntyQryCensus!$A$306:$GX$348,R$1)","v":263},{"$f":"VLOOKUP(DropDownList!$B47,CntyQryCensus!$A$306:$GX$348,S$1)","v":56},{"$f":"VLOOKUP(DropDownList!$B47,CntyQryCensus!$A$306:$GX$348,T$1)","v":196},{"$f":"VLOOKUP(DropDownList!$B47,CntyQryCensus!$A$306:$GX$348,U$1)","v":5},{"$f":"VLOOKUP(DropDownList!$B47,CntyQryCensus!$A$306:$GX$348,V$1)","v":2},{"$f":"VLOOKUP(DropDownList!$B47,CntyQryCensus!$A$306:$GX$348,W$1)","v":4},{"$f":"VLOOKUP(DropDownList!$B47,CntyQryCensus!$A$306:$GX$348,X$1)","v":170},{"$f":"VLOOKUP(DropDownList!$B47,CntyQryCensus!$A$306:$GX$348,Y$1)","v":0},{"$f":"VLOOKUP(DropDownList!$B47,CntyQryCensus!$A$306:$GX$348,Z$1)","v":15},{"$f":"VLOOKUP(DropDownList!$B47,CntyQryCensus!$A$306:$GX$348,AA$1)","v":319},{"$f":"VLOOKUP(DropDownList!$B47,CntyQryCensus!$A$306:$GX$348,AB$1)","v":263},{"$f":"VLOOKUP(DropDownList!$B47,CntyQryCensus!$A$306:$GX$348,AC$1)","v":0},{"$f":"VLOOKUP(DropDownList!$B47,CntyQryCensus!$A$306:$GX$348,AD$1)","v":16},{"$f":"VLOOKUP(DropDownList!$B47,CntyQryCensus!$A$306:$GX$348,AE$1)","v":48},{"$f":"VLOOKUP(DropDownList!$B47,CntyQryCensus!$A$306:$GX$348,AF$1)","v":61},{"$f":"VLOOKUP(DropDownList!$B47,CntyQryCensus!$A$306:$GX$348,AG$1)","v":38},{"$f":"VLOOKUP(DropDownList!$B47,CntyQryCensus!$A$306:$GX$348,AH$1)","v":22},{"$f":"VLOOKUP(DropDownList!$B47,CntyQryCensus!$A$306:$GX$348,AI$1)","v":46},{"$f":"VLOOKUP(DropDownList!$B47,CntyQryCensus!$A$306:$GX$348,AJ$1)","v":22},{"$f":"VLOOKUP(DropDownList!$B47,CntyQryCensus!$A$306:$GX$348,AK$1)","v":10},{"$f":"VLOOKUP(DropDownList!$B47,CntyQryCensus!$A$306:$GX$348,AL$1)","v":56},{"$f":"VLOOKUP(DropDownList!$B47,CntyQryCensus!$A$306:$GX$348,AM$1)","v":2},{"$f":"VLOOKUP(DropDownList!$B47,CntyQryCensus!$A$306:$GX$348,AN$1)","v":8},{"$f":"VLOOKUP(DropDownList!$B47,CntyQryCensus!$A$306:$GX$348,AO$1)","v":13},{"$f":"VLOOKUP(DropDownList!$B47,CntyQryCensus!$A$306:$GX$348,AP$1)","v":8},{"$f":"VLOOKUP(DropDownList!$B47,CntyQryCensus!$A$306:$GX$348,AQ$1)","v":4},{"$f":"VLOOKUP(DropDownList!$B47,CntyQryCensus!$A$306:$GX$348,AR$1)","v":6},{"$f":"VLOOKUP(DropDownList!$B47,CntyQryCensus!$A$306:$GX$348,AS$1)","v":9},{"$f":"VLOOKUP(DropDownList!$B47,CntyQryCensus!$A$306:$GX$348,AT$1)","v":4},{"$f":"VLOOKUP(DropDownList!$B47,CntyQryCensus!$A$306:$GX$348,AU$1)","v":2},{"$f":"VLOOKUP(DropDownList!$B47,CntyQryCensus!$A$306:$GX$348,AV$1)","v":840},{"$f":"VLOOKUP(DropDownList!$B47,CntyQryCensus!$A$306:$GX$348,AW$1)","v":700},{"$f":"VLOOKUP(DropDownList!$B47,CntyQryCensus!$A$306:$GX$348,AX$1)","v":140},{"$f":"VLOOKUP(DropDownList!$B47,CntyQryCensus!$A$306:$GX$348,AY$1)","v":319},{"$f":"VLOOKUP(DropDownList!$B47,CntyQryCensus!$A$306:$GX$348,AZ$1)","v":263},{"$f":"VLOOKUP(DropDownList!$B47,CntyQryCensus!$A$306:$GX$348,BA$1)","v":52},{"$f":"VLOOKUP(DropDownList!$B47,CntyQryCensus!$A$306:$GX$348,BB$1)","v":107},{"$f":"VLOOKUP(DropDownList!$B47,CntyQryCensus!$A$306:$GX$348,BC$1)","v":44},{"$f":"VLOOKUP(DropDownList!$B47,CntyQryCensus!$A$306:$GX$348,BD$1)","v":34},{"$f":"VLOOKUP(DropDownList!$B47,CntyQryCensus!$A$306:$GX$348,BE$1)","v":20},{"$f":"VLOOKUP(DropDownList!$B47,CntyQryCensus!$A$306:$GX$348,BF$1)","v":3},{"$f":"VLOOKUP(DropDownList!$B47,CntyQryCensus!$A$306:$GX$348,BG$1)","v":3},{"$f":"VLOOKUP(DropDownList!$B47,CntyQryCensus!$A$306:$GX$348,BH$1)","v":56},{"$f":"VLOOKUP(DropDownList!$B47,CntyQryCensus!$A$306:$GX$348,BI$1)","v":18},{"$f":"VLOOKUP(DropDownList!$B47,CntyQryCensus!$A$306:$GX$348,BJ$1)","v":20},{"$f":"VLOOKUP(DropDownList!$B47,CntyQryCensus!$A$306:$GX$348,BK$1)","v":3},{"$f":"VLOOKUP(DropDownList!$B47,CntyQryCensus!$A$306:$GX$348,BL$1)","v":10},{"$f":"VLOOKUP(DropDownList!$B47,CntyQryCensus!$A$306:$GX$348,BM$1)","v":3},{"$f":"VLOOKUP(DropDownList!$B47,CntyQryCensus!$A$306:$GX$348,BN$1)","v":0},{"$f":"VLOOKUP(DropDownList!$B47,CntyQryCensus!$A$306:$GX$348,BO$1)","v":2},{"$f":"VLOOKUP(DropDownList!$B47,CntyQryCensus!$A$306:$GX$348,BP$1)","v":3},{"$f":"VLOOKUP(DropDownList!$B47,CntyQryCensus!$A$306:$GX$348,BQ$1)","v":3},{"$f":"VLOOKUP(DropDownList!$B47,CntyQryCensus!$A$306:$GX$348,BR$1)","v":2},{"$f":"VLOOKUP(DropDownList!$B47,CntyQryCensus!$A$306:$GX$348,BS$1)","v":515},{"$f":"VLOOKUP(DropDownList!$B47,CntyQryCensus!$A$306:$GX$348,BT$1)","v":16},{"$f":"VLOOKUP(DropDownList!$B47,CntyQryCensus!$A$306:$GX$348,BU$1)","v":30},{"$f":"VLOOKUP(DropDownList!$B47,CntyQryCensus!$A$306:$GX$348,BV$1)","v":63},{"$f":"VLOOKUP(DropDownList!$B47,CntyQryCensus!$A$306:$GX$348,BW$1)","v":95},{"$f":"VLOOKUP(DropDownList!$B47,CntyQryCensus!$A$306:$GX$348,BX$1)","v":85},{"$f":"VLOOKUP(DropDownList!$B47,CntyQryCensus!$A$306:$GX$348,BY$1)","v":59},{"$f":"VLOOKUP(DropDownList!$B47,CntyQryCensus!$A$306:$GX$348,BZ$1)","v":71},{"$f":"VLOOKUP(DropDownList!$B47,CntyQryCensus!$A$306:$GX$348,CA$1)","v":54},{"$f":"VLOOKUP(DropDownList!$B47,CntyQryCensus!$A$306:$GX$348,CB$1)","v":42},{"$f":"VLOOKUP(DropDownList!$B47,CntyQryCensus!$A$306:$GX$348,CC$1)","v":5},{"$f":"VLOOKUP(DropDownList!$B47,CntyQryCensus!$A$306:$GX$348,CD$1)","v":2773},{"$f":"VLOOKUP(DropDownList!$B47,CntyQryCensus!$A$306:$GX$348,CE$1)","v":515},{"$f":"VLOOKUP(DropDownList!$B47,CntyQryCensus!$A$306:$GX$348,CF$1)","v":458},{"$f":"VLOOKUP(DropDownList!$B47,CntyQryCensus!$A$306:$GX$348,CG$1)","v":4},{"$f":"VLOOKUP(DropDownList!$B47,CntyQryCensus!$A$306:$GX$348,CH$1)","v":9},{"$f":"VLOOKUP(DropDownList!$B47,CntyQryCensus!$A$306:$GX$348,CI$1)","v":0},{"$f":"VLOOKUP(DropDownList!$B47,CntyQryCensus!$A$306:$GX$348,CJ$1)","v":0},{"$f":"VLOOKUP(DropDownList!$B47,CntyQryCensus!$A$306:$GX$348,CK$1)","v":0},{"$f":"VLOOKUP(DropDownList!$B47,CntyQryCensus!$A$306:$GX$348,CL$1)","v":0},{"$f":"VLOOKUP(DropDownList!$B47,CntyQryCensus!$A$306:$GX$348,CM$1)","v":0},{"$f":"VLOOKUP(DropDownList!$B47,CntyQryCensus!$A$306:$GX$348,CN$1)","v":40},{"$f":"VLOOKUP(DropDownList!$B47,CntyQryCensus!$A$306:$GX$348,CO$1)","v":4},{"$f":"VLOOKUP(DropDownList!$B47,CntyQryCensus!$A$306:$GX$348,CP$1)","v":319},{"$f":"VLOOKUP(DropDownList!$B47,CntyQryCensus!$A$306:$GX$348,CQ$1)","v":263},{"$f":"VLOOKUP(DropDownList!$B47,CntyQryCensus!$A$306:$GX$348,CR$1)","v":240},{"$f":"VLOOKUP(DropDownList!$B47,CntyQryCensus!$A$306:$GX$348,CS$1)","v":0},{"$f":"VLOOKUP(DropDownList!$B47,CntyQryCensus!$A$306:$GX$348,CT$1)","v":2},{"$f":"VLOOKUP(DropDownList!$B47,CntyQryCensus!$A$306:$GX$348,CU$1)","v":0},{"$f":"VLOOKUP(DropDownList!$B47,CntyQryCensus!$A$306:$GX$348,CV$1)","v":0},{"$f":"VLOOKUP(DropDownList!$B47,CntyQryCensus!$A$306:$GX$348,CW$1)","v":0},{"$f":"VLOOKUP(DropDownList!$B47,CntyQryCensus!$A$306:$GX$348,CX$1)","v":0},{"$f":"VLOOKUP(DropDownList!$B47,CntyQryCensus!$A$306:$GX$348,CY$1)","v":0},{"$f":"VLOOKUP(DropDownList!$B47,CntyQryCensus!$A$306:$GX$348,CZ$1)","v":21},{"$f":"VLOOKUP(DropDownList!$B47,CntyQryCensus!$A$306:$GX$348,DA$1)","v":0},{"$f":"VLOOKUP(DropDownList!$B47,CntyQryCensus!$A$306:$GX$348,DB$1)","v":56},{"$f":"VLOOKUP(DropDownList!$B47,CntyQryCensus!$A$306:$GX$348,DC$1)","v":44},{"$f":"VLOOKUP(DropDownList!$B47,CntyQryCensus!$A$306:$GX$348,DD$1)","v":2},{"$f":"VLOOKUP(DropDownList!$B47,CntyQryCensus!$A$306:$GX$348,DE$1)","v":4},{"$f":"VLOOKUP(DropDownList!$B47,CntyQryCensus!$A$306:$GX$348,DF$1)","v":0},{"$f":"VLOOKUP(DropDownList!$B47,CntyQryCensus!$A$306:$GX$348,DG$1)","v":0},{"$f":"VLOOKUP(DropDownList!$B47,CntyQryCensus!$A$306:$GX$348,DH$1)","v":0},{"$f":"VLOOKUP(DropDownList!$B47,CntyQryCensus!$A$306:$GX$348,DI$1)","v":0},{"$f":"VLOOKUP(DropDownList!$B47,CntyQryCensus!$A$306:$GX$348,DJ$1)","v":0},{"$f":"VLOOKUP(DropDownList!$B47,CntyQryCensus!$A$306:$GX$348,DK$1)","v":6},{"$f":"VLOOKUP(DropDownList!$B47,CntyQryCensus!$A$306:$GX$348,DL$1)","v":0},{"$f":"VLOOKUP(DropDownList!$B47,CntyQryCensus!$A$306:$GX$348,DM$1)","v":840},{"$f":"VLOOKUP(DropDownList!$B47,CntyQryCensus!$A$306:$GX$348,DN$1)","v":700},{"$f":"VLOOKUP(DropDownList!$B47,CntyQryCensus!$A$306:$GX$348,DO$1)","v":638},{"$f":"VLOOKUP(DropDownList!$B47,CntyQryCensus!$A$306:$GX$348,DP$1)","v":0},{"$f":"VLOOKUP(DropDownList!$B47,CntyQryCensus!$A$306:$GX$348,DQ$1)","v":5},{"$f":"VLOOKUP(DropDownList!$B47,CntyQryCensus!$A$306:$GX$348,DR$1)","v":0},{"$f":"VLOOKUP(DropDownList!$B47,CntyQryCensus!$A$306:$GX$348,DS$1)","v":0},{"$f":"VLOOKUP(DropDownList!$B47,CntyQryCensus!$A$306:$GX$348,DT$1)","v":0},{"$f":"VLOOKUP(DropDownList!$B47,CntyQryCensus!$A$306:$GX$348,DU$1)","v":0},{"$f":"VLOOKUP(DropDownList!$B47,CntyQryCensus!$A$306:$GX$348,DV$1)","v":0},{"$f":"VLOOKUP(DropDownList!$B47,CntyQryCensus!$A$306:$GX$348,DW$1)","v":57},{"$f":"VLOOKUP(DropDownList!$B47,CntyQryCensus!$A$306:$GX$348,DX$1)","v":0},{"$f":"VLOOKUP(DropDownList!$B47,CntyQryCensus!$A$306:$GX$348,DY$1)","v":140},{"$f":"VLOOKUP(DropDownList!$B47,CntyQryCensus!$A$306:$GX$348,DZ$1)","v":121},{"$f":"VLOOKUP(DropDownList!$B47,CntyQryCensus!$A$306:$GX$348,EA$1)","v":2},{"$f":"VLOOKUP(DropDownList!$B47,CntyQryCensus!$A$306:$GX$348,EB$1)","v":8},{"$f":"VLOOKUP(DropDownList!$B47,CntyQryCensus!$A$306:$GX$348,EC$1)","v":0},{"$f":"VLOOKUP(DropDownList!$B47,CntyQryCensus!$A$306:$GX$348,ED$1)","v":0},{"$f":"VLOOKUP(DropDownList!$B47,CntyQryCensus!$A$306:$GX$348,EE$1)","v":0},{"$f":"VLOOKUP(DropDownList!$B47,CntyQryCensus!$A$306:$GX$348,EF$1)","v":0},{"$f":"VLOOKUP(DropDownList!$B47,CntyQryCensus!$A$306:$GX$348,EG$1)","v":0},{"$f":"VLOOKUP(DropDownList!$B47,CntyQryCensus!$A$306:$GX$348,EH$1)","v":9},{"$f":"VLOOKUP(DropDownList!$B47,CntyQryCensus!$A$306:$GX$348,EI$1)","v":0},{"$f":"VLOOKUP(DropDownList!$B47,CntyQryCensus!$A$306:$GX$348,EJ$1)","v":319},{"$f":"VLOOKUP(DropDownList!$B47,CntyQryCensus!$A$306:$GX$348,EK$1)","v":263},{"$f":"VLOOKUP(DropDownList!$B47,CntyQryCensus!$A$306:$GX$348,EL$1)","v":0},{"$f":"VLOOKUP(DropDownList!$B47,CntyQryCensus!$A$306:$GX$348,EM$1)","v":8},{"$f":"VLOOKUP(DropDownList!$B47,CntyQryCensus!$A$306:$GX$348,EN$1)","v":11},{"$f":"VLOOKUP(DropDownList!$B47,CntyQryCensus!$A$306:$GX$348,EO$1)","v":54},{"$f":"VLOOKUP(DropDownList!$B47,CntyQryCensus!$A$306:$GX$348,EP$1)","v":44},{"$f":"VLOOKUP(DropDownList!$B47,CntyQryCensus!$A$306:$GX$348,EQ$1)","v":18},{"$f":"VLOOKUP(DropDownList!$B47,CntyQryCensus!$A$306:$GX$348,ER$1)","v":9},{"$f":"VLOOKUP(DropDownList!$B47,CntyQryCensus!$A$306:$GX$348,ES$1)","v":14},{"$f":"VLOOKUP(DropDownList!$B47,CntyQryCensus!$A$306:$GX$348,ET$1)","v":105},{"$f":"VLOOKUP(DropDownList!$B47,CntyQryCensus!$A$306:$GX$348,EU$1)","v":56},{"$f":"VLOOKUP(DropDownList!$B47,CntyQryCensus!$A$306:$GX$348,EV$1)","v":0},{"$f":"VLOOKUP(DropDownList!$B47,CntyQryCensus!$A$306:$GX$348,EW$1)","v":0},{"$f":"VLOOKUP(DropDownList!$B47,CntyQryCensus!$A$306:$GX$348,EX$1)","v":2},{"$f":"VLOOKUP(DropDownList!$B47,CntyQryCensus!$A$306:$GX$348,EY$1)","v":2},{"$f":"VLOOKUP(DropDownList!$B47,CntyQryCensus!$A$306:$GX$348,EZ$1)","v":4},{"$f":"VLOOKUP(DropDownList!$B47,CntyQryCensus!$A$306:$GX$348,FA$1)","v":4},{"$f":"VLOOKUP(DropDownList!$B47,CntyQryCensus!$A$306:$GX$348,FB$1)","v":7},{"$f":"VLOOKUP(DropDownList!$B47,CntyQryCensus!$A$306:$GX$348,FC$1)","v":2},{"$f":"VLOOKUP(DropDownList!$B47,CntyQryCensus!$A$306:$GX$348,FD$1)","v":35},{"$f":"VLOOKUP(DropDownList!$B47,CntyQryCensus!$A$306:$GX$348,FE$1)","v":319},{"$f":"VLOOKUP(DropDownList!$B47,CntyQryCensus!$A$306:$GX$348,FF$1)","v":3},{"$f":"VLOOKUP(DropDownList!$B47,CntyQryCensus!$A$306:$GX$348,FG$1)","v":35},{"$f":"VLOOKUP(DropDownList!$B47,CntyQryCensus!$A$306:$GX$348,FH$1)","v":0},{"$f":"VLOOKUP(DropDownList!$B47,CntyQryCensus!$A$306:$GX$348,FI$1)","v":149},{"$f":"VLOOKUP(DropDownList!$B47,CntyQryCensus!$A$306:$GX$348,FJ$1)","v":0},{"$f":"VLOOKUP(DropDownList!$B47,CntyQryCensus!$A$306:$GX$348,FK$1)","v":132},{"$f":"VLOOKUP(DropDownList!$B47,CntyQryCensus!$A$306:$GX$348,FL$1)","v":0},{"$f":"VLOOKUP(DropDownList!$B47,CntyQryCensus!$A$306:$GX$348,FM$1)","v":0},{"$f":"VLOOKUP(DropDownList!$B47,CntyQryCensus!$A$306:$GX$348,FN$1)","v":0},{"$f":"VLOOKUP(DropDownList!$B47,CntyQryCensus!$A$306:$GX$348,FO$1)","v":515},{"$f":"VLOOKUP(DropDownList!$B47,CntyQryCensus!$A$306:$GX$348,FP$1)","v":16},{"$f":"VLOOKUP(DropDownList!$B47,CntyQryCensus!$A$306:$GX$348,FQ$1)","v":95},{"$f":"VLOOKUP(DropDownList!$B47,CntyQryCensus!$A$306:$GX$348,FR$1)","v":170},{"$f":"VLOOKUP(DropDownList!$B47,CntyQryCensus!$A$306:$GX$348,FS$1)","v":148},{"$f":"VLOOKUP(DropDownList!$B47,CntyQryCensus!$A$306:$GX$348,FT$1)","v":62},{"$f":"VLOOKUP(DropDownList!$B47,CntyQryCensus!$A$306:$GX$348,FU$1)","v":24},{"$f":"VLOOKUP(DropDownList!$B47,CntyQryCensus!$A$306:$GX$348,FV$1)","v":319},{"$f":"VLOOKUP(DropDownList!$B47,CntyQryCensus!$A$306:$GX$348,FW$1)","v":263},{"$f":"VLOOKUP(DropDownList!$B47,CntyQryCensus!$A$306:$GX$348,FX$1)","v":1},{"$f":"VLOOKUP(DropDownList!$B47,CntyQryCensus!$A$306:$GX$348,FY$1)","v":19},{"$f":"VLOOKUP(DropDownList!$B47,CntyQryCensus!$A$306:$GX$348,FZ$1)","v":82},{"$f":"VLOOKUP(DropDownList!$B47,CntyQryCensus!$A$306:$GX$348,GA$1)","v":108},{"$f":"VLOOKUP(DropDownList!$B47,CntyQryCensus!$A$306:$GX$348,GB$1)","v":34},{"$f":"VLOOKUP(DropDownList!$B47,CntyQryCensus!$A$306:$GX$348,GC$1)","v":19},{"$f":"VLOOKUP(DropDownList!$B47,CntyQryCensus!$A$306:$GX$348,GD$1)","v":56},{"$f":"VLOOKUP(DropDownList!$B47,CntyQryCensus!$A$306:$GX$348,GE$1)","v":0},{"$f":"VLOOKUP(DropDownList!$B47,CntyQryCensus!$A$306:$GX$348,GF$1)","v":10},{"$f":"VLOOKUP(DropDownList!$B47,CntyQryCensus!$A$306:$GX$348,GG$1)","v":22},{"$f":"VLOOKUP(DropDownList!$B47,CntyQryCensus!$A$306:$GX$348,GH$1)","v":16},{"$f":"VLOOKUP(DropDownList!$B47,CntyQryCensus!$A$306:$GX$348,GI$1)","v":5},{"$f":"VLOOKUP(DropDownList!$B47,CntyQryCensus!$A$306:$GX$348,GJ$1)","v":3},{"$f":"VLOOKUP(DropDownList!$B47,CntyQryCensus!$A$306:$GX$348,GK$1)","v":319},{"$f":"VLOOKUP(DropDownList!$B47,CntyQryCensus!$A$306:$GX$348,GL$1)","v":263},{"$f":"VLOOKUP(DropDownList!$B47,CntyQryCensus!$A$306:$GX$348,GM$1)","v":256},{"$f":"VLOOKUP(DropDownList!$B47,CntyQryCensus!$A$306:$GX$348,GN$1)","v":7},{"$f":"VLOOKUP(DropDownList!$B47,CntyQryCensus!$A$306:$GX$348,GO$1)","v":56},{"$f":"VLOOKUP(DropDownList!$B47,CntyQryCensus!$A$306:$GX$348,GP$1)","v":52},{"$f":"VLOOKUP(DropDownList!$B47,CntyQryCensus!$A$306:$GX$348,GQ$1)","v":4},{"$f":"VLOOKUP(DropDownList!$B47,CntyQryCensus!$A$306:$GX$348,GR$1)","v":319},{"$f":"VLOOKUP(DropDownList!$B47,CntyQryCensus!$A$306:$GX$348,GS$1)","v":263},{"$f":"VLOOKUP(DropDownList!$B47,CntyQryCensus!$A$306:$GX$348,GT$1)","v":254},{"$f":"VLOOKUP(DropDownList!$B47,CntyQryCensus!$A$306:$GX$348,GU$1)","v":9},{"$f":"VLOOKUP(DropDownList!$B47,CntyQryCensus!$A$306:$GX$348,GV$1)","v":56},{"$f":"VLOOKUP(DropDownList!$B47,CntyQryCensus!$A$306:$GX$348,GW$1)","v":47},{"$f":"VLOOKUP(DropDownList!$B47,CntyQryCensus!$A$306:$GX$348,GX$1)","v":9}]
[]
[]
["Census 2000 SummaryFile3 Sample Data  -  SF3TownQry8HousingCostA"]
["NAME","LOGRECNO","COUNTY","TotalPop","H62RntrOccHU","H62RntrOccHUwRent","H62ROHUGRent<100","H62ROHUGRent100to149","H62ROHUGRent150to199","H62ROHUGRent200to249","H62ROHUGRent250to299","H62ROHUGRent300to349","H62ROHUGRent350to399","H62ROHUGRent400to449","H62ROHUGRent450to499","H62ROHUGRent500to549","H62ROHUGRent550to599","H62ROHUGRent600to649","H62ROHUGRent650to699","H62ROHUGRent700to749","H62ROHUGRent750to799","H62ROHUGRent800to899","H62ROHUGRent900to999","H62ROHUGRent1000to1249","H62ROHUGRent1250to1499","H62ROHUGRent1500to1999","H62ROHUGRent2000>","H62ROHUNoGRent","H63MedianGrossRnt","H69RenterOccHsU","H69GRnt<10PctHHInc","H69GRnt10to15PctHHInc","H69GRnt15to20PctHHInc","H69GRnt20to25PctHHInc","H69GRnt25to30PctHHInc","H69GRnt30to35PctHHInc","H69GRnt35to40PctHHInc","H69GRnt40to50PctHHInc","H69GRnt>50PctHHInc","H69GRntPctNotcomputed","H73RenterOccHU","H73ROHUHhInc<10k","H73ROHUHhInc<10kRnt<20pct","H73ROHUHhInc<10kRnt20to25pct","H73ROHUHhInc<10kRnt25to30pct","H73ROHUHhInc<10kRnt30to35pct","H73ROHUHhInc<10kRnt>35pct","H73ROHUHhInc<10kPctNotComput","H73ROHUHhInc10to20k","H73ROHUHhInc10to20kRnt<20pct","H73ROHUHhInc10to20kRnt20to25pct","H73ROHUHhInc10to20kRnt25to30pct","H73ROHUHhInc10to20kRnt30to35pct","H73ROHUHhInc10to20kRnt>35pct","H73ROHUHhInc10to20kRntPctNC","H73ROHUHhInc20to35k","H73ROHUHhInc20to35kRnt<20pct","H73ROHUHhInc20to35kRnt20to25pct","H73ROHUHhInc20to35kRnt25to30pct","H73ROHUHhInc20to35kRnt30to35pct","H73ROHUHhInc20to35kRnt>35pct","H73ROHUHhInc20to35kRntPctNC","H73ROHUHhInc35to40k","H73ROHUHhInc35to40kRnt<20pct","H73ROHUHhInc35to40kRnt20to25pct","H73ROHUHhInc35to40kRnt25to30pct","H73ROHUHhInc35to40kRnt30to35pct","H73ROHUHhInc35to40kRnt>35pct","H73ROHUHhInc35to40kRntPctNC","H73ROHUHhInc50to75k","H73ROHUHhInc50to75kRnt<20pct","H73ROHUHhInc50to75kRnt20to25pct","H73ROHUHhInc50to75kRnt25to30pct","H73ROHUHhInc50to75kRnt30to35pct","H73ROHUHhInc50to75kRnt>35pct","H73ROHUHhInc50to75kRntPctNC","H73ROHUHhInc75to100k","H73ROHUHhInc75to100kRnt<20pct","H73ROHUHhInc75to100kRnt20to25pct","H73ROHUHhInc75to100kRnt25to30pct","H73ROHUHhInc75to100kRnt30to35pct","H73ROHUHhInc75to100kRnt>35pct","H73ROHUHhInc75to100kRntPctNC","H73ROHUHhInc>100k","H73ROHUHhInc>100kRnt<20pct","H73ROHUHhInc>100kRnt20to25pct","H73ROHUHhInc>100kRnt25to30pct","H73ROHUHhInc>100kRnt30to35pct","H73ROHUHhInc>100kRnt>35pct","H73ROHUHhInc>100kRntPctNC","H73ROHUHhInc>100kRntPctNC"]
[{"$f":"VLOOKUP(DropDownList!$B$47,CntyQryCensus!$A$357:$CM$399,A$1)","v":"Acworth"},{"$f":"VLOOKUP(DropDownList!$B$47,CntyQryCensus!$A$357:$CM$399,B$1)","v":"0004141"},{"$f":"VLOOKUP(DropDownList!$B$47,CntyQryCensus!$A$357:$CM$399,C$1)","v":"00260"},{"$f":"VLOOKUP(DropDownList!$B$47,CntyQryCensus!$A$357:$CM$399,D$1)","v":836},{"$f":"VLOOKUP(DropDownList!$B$47,CntyQryCensus!$A$357:$CM$399,E$1)","v":33},{"$f":"VLOOKUP(DropDownList!$B$47,CntyQryCensus!$A$357:$CM$399,F$1)","v":25},{"$f":"VLOOKUP(DropDownList!$B$47,CntyQryCensus!$A$357:$CM$399,G$1)","v":0},{"$f":"VLOOKUP(DropDownList!$B$47,CntyQryCensus!$A$357:$CM$399,H$1)","v":0},{"$f":"VLOOKUP(DropDownList!$B$47,CntyQryCensus!$A$357:$CM$399,I$1)","v":0},{"$f":"VLOOKUP(DropDownList!$B$47,CntyQryCensus!$A$357:$CM$399,J$1)","v":0},{"$f":"VLOOKUP(DropDownList!$B$47,CntyQryCensus!$A$357:$CM$399,K$1)","v":2},{"$f":"VLOOKUP(DropDownList!$B$47,CntyQryCensus!$A$357:$CM$399,L$1)","v":0},{"$f":"VLOOKUP(DropDownList!$B$47,CntyQryCensus!$A$357:$CM$399,M$1)","v":0},{"$f":"VLOOKUP(DropDownList!$B$47,CntyQryCensus!$A$357:$CM$399,N$1)","v":6},{"$f":"VLOOKUP(DropDownList!$B$47,CntyQryCensus!$A$357:$CM$399,O$1)","v":0},{"$f":"VLOOKUP(DropDownList!$B$47,CntyQryCensus!$A$357:$CM$399,P$1)","v":0},{"$f":"VLOOKUP(DropDownList!$B$47,CntyQryCensus!$A$357:$CM$399,Q$1)","v":4},{"$f":"VLOOKUP(DropDownList!$B$47,CntyQryCensus!$A$357:$CM$399,R$1)","v":2},{"$f":"VLOOKUP(DropDownList!$B$47,CntyQryCensus!$A$357:$CM$399,S$1)","v":0},{"$f":"VLOOKUP(DropDownList!$B$47,CntyQryCensus!$A$357:$CM$399,T$1)","v":9},{"$f":"VLOOKUP(DropDownList!$B$47,CntyQryCensus!$A$357:$CM$399,U$1)","v":2},{"$f":"VLOOKUP(DropDownList!$B$47,CntyQryCensus!$A$357:$CM$399,V$1)","v":0},{"$f":"VLOOKUP(DropDownList!$B$47,CntyQryCensus!$A$357:$CM$399,W$1)","v":0},{"$f":"VLOOKUP(DropDownList!$B$47,CntyQryCensus!$A$357:$CM$399,X$1)","v":0},{"$f":"VLOOKUP(DropDownList!$B$47,CntyQryCensus!$A$357:$CM$399,Y$1)","v":0},{"$f":"VLOOKUP(DropDownList!$B$47,CntyQryCensus!$A$357:$CM$399,Z$1)","v":0},{"$f":"VLOOKUP(DropDownList!$B$47,CntyQryCensus!$A$357:$CM$399,AA$1)","v":0},{"$f":"VLOOKUP(DropDownList!$B$47,CntyQryCensus!$A$357:$CM$399,AB$1)","v":8},{"$f":"VLOOKUP(DropDownList!$B$47,CntyQryCensus!$A$357:$CM$399,AC$1)","v":613},{"$f":"VLOOKUP(DropDownList!$B$47,CntyQryCensus!$A$357:$CM$399,AD$1)","v":33},{"$f":"VLOOKUP(DropDownList!$B$47,CntyQryCensus!$A$357:$CM$399,AE$1)","v":7},{"$f":"VLOOKUP(DropDownList!$B$47,CntyQryCensus!$A$357:$CM$399,AF$1)","v":0},{"$f":"VLOOKUP(DropDownList!$B$47,CntyQryCensus!$A$357:$CM$399,AG$1)","v":2},{"$f":"VLOOKUP(DropDownList!$B$47,CntyQryCensus!$A$357:$CM$399,AH$1)","v":3},{"$f":"VLOOKUP(DropDownList!$B$47,CntyQryCensus!$A$357:$CM$399,AI$1)","v":4},{"$f":"VLOOKUP(DropDownList!$B$47,CntyQryCensus!$A$357:$CM$399,AJ$1)","v":2},{"$f":"VLOOKUP(DropDownList!$B$47,CntyQryCensus!$A$357:$CM$399,AK$1)","v":0},{"$f":"VLOOKUP(DropDownList!$B$47,CntyQryCensus!$A$357:$CM$399,AL$1)","v":0},{"$f":"VLOOKUP(DropDownList!$B$47,CntyQryCensus!$A$357:$CM$399,AM$1)","v":4},{"$f":"VLOOKUP(DropDownList!$B$47,CntyQryCensus!$A$357:$CM$399,AN$1)","v":11},{"$f":"VLOOKUP(DropDownList!$B$47,CntyQryCensus!$A$357:$CM$399,AO$1)","v":33},{"$f":"VLOOKUP(DropDownList!$B$47,CntyQryCensus!$A$357:$CM$399,AP$1)","v":9},{"$f":"VLOOKUP(DropDownList!$B$47,CntyQryCensus!$A$357:$CM$399,AQ$1)","v":0},{"$f":"VLOOKUP(DropDownList!$B$47,CntyQryCensus!$A$357:$CM$399,AR$1)","v":0},{"$f":"VLOOKUP(DropDownList!$B$47,CntyQryCensus!$A$357:$CM$399,AS$1)","v":0},{"$f":"VLOOKUP(DropDownList!$B$47,CntyQryCensus!$A$357:$CM$399,AT$1)","v":0},{"$f":"VLOOKUP(DropDownList!$B$47,CntyQryCensus!$A$357:$CM$399,AU$1)","v":4},{"$f":"VLOOKUP(DropDownList!$B$47,CntyQryCensus!$A$357:$CM$399,AV$1)","v":5},{"$f":"VLOOKUP(DropDownList!$B$47,CntyQryCensus!$A$357:$CM$399,AW$1)","v":2},{"$f":"VLOOKUP(DropDownList!$B$47,CntyQryCensus!$A$357:$CM$399,AX$1)","v":0},{"$f":"VLOOKUP(DropDownList!$B$47,CntyQryCensus!$A$357:$CM$399,AY$1)","v":0},{"$f":"VLOOKUP(DropDownList!$B$47,CntyQryCensus!$A$357:$CM$399,AZ$1)","v":0},{"$f":"VLOOKUP(DropDownList!$B$47,CntyQryCensus!$A$357:$CM$399,BA$1)","v":2},{"$f":"VLOOKUP(DropDownList!$B$47,CntyQryCensus!$A$357:$CM$399,BB$1)","v":0},{"$f":"VLOOKUP(DropDownList!$B$47,CntyQryCensus!$A$357:$CM$399,BC$1)","v":0},{"$f":"VLOOKUP(DropDownList!$B$47,CntyQryCensus!$A$357:$CM$399,BD$1)","v":10},{"$f":"VLOOKUP(DropDownList!$B$47,CntyQryCensus!$A$357:$CM$399,BE$1)","v":0},{"$f":"VLOOKUP(DropDownList!$B$47,CntyQryCensus!$A$357:$CM$399,BF$1)","v":0},{"$f":"VLOOKUP(DropDownList!$B$47,CntyQryCensus!$A$357:$CM$399,BG$1)","v":4},{"$f":"VLOOKUP(DropDownList!$B$47,CntyQryCensus!$A$357:$CM$399,BH$1)","v":0},{"$f":"VLOOKUP(DropDownList!$B$47,CntyQryCensus!$A$357:$CM$399,BI$1)","v":0},{"$f":"VLOOKUP(DropDownList!$B$47,CntyQryCensus!$A$357:$CM$399,BJ$1)","v":6},{"$f":"VLOOKUP(DropDownList!$B$47,CntyQryCensus!$A$357:$CM$399,BK$1)","v":3},{"$f":"VLOOKUP(DropDownList!$B$47,CntyQryCensus!$A$357:$CM$399,BL$1)","v":0},{"$f":"VLOOKUP(DropDownList!$B$47,CntyQryCensus!$A$357:$CM$399,BM$1)","v":3},{"$f":"VLOOKUP(DropDownList!$B$47,CntyQryCensus!$A$357:$CM$399,BN$1)","v":0},{"$f":"VLOOKUP(DropDownList!$B$47,CntyQryCensus!$A$357:$CM$399,BO$1)","v":0},{"$f":"VLOOKUP(DropDownList!$B$47,CntyQryCensus!$A$357:$CM$399,BP$1)","v":0},{"$f":"VLOOKUP(DropDownList!$B$47,CntyQryCensus!$A$357:$CM$399,BQ$1)","v":0},{"$f":"VLOOKUP(DropDownList!$B$47,CntyQryCensus!$A$357:$CM$399,BR$1)","v":6},{"$f":"VLOOKUP(DropDownList!$B$47,CntyQryCensus!$A$357:$CM$399,BS$1)","v":6},{"$f":"VLOOKUP(DropDownList!$B$47,CntyQryCensus!$A$357:$CM$399,BT$1)","v":0},{"$f":"VLOOKUP(DropDownList!$B$47,CntyQryCensus!$A$357:$CM$399,BU$1)","v":0},{"$f":"VLOOKUP(DropDownList!$B$47,CntyQryCensus!$A$357:$CM$399,BV$1)","v":0},{"$f":"VLOOKUP(DropDownList!$B$47,CntyQryCensus!$A$357:$CM$399,BW$1)","v":0},{"$f":"VLOOKUP(DropDownList!$B$47,CntyQryCensus!$A$357:$CM$399,BX$1)","v":0},{"$f":"VLOOKUP(DropDownList!$B$47,CntyQryCensus!$A$357:$CM$399,BY$1)","v":3},{"$f":"VLOOKUP(DropDownList!$B$47,CntyQryCensus!$A$357:$CM$399,BZ$1)","v":3},{"$f":"VLOOKUP(DropDownList!$B$47,CntyQryCensus!$A$357:$CM$399,CA$1)","v":0},{"$f":"VLOOKUP(DropDownList!$B$47,CntyQryCensus!$A$357:$CM$399,CB$1)","v":0},{"$f":"VLOOKUP(DropDownList!$B$47,CntyQryCensus!$A$357:$CM$399,CC$1)","v":0},{"$f":"VLOOKUP(DropDownList!$B$47,CntyQryCensus!$A$357:$CM$399,CD$1)","v":0},{"$f":"VLOOKUP(DropDownList!$B$47,CntyQryCensus!$A$357:$CM$399,CE$1)","v":0},{"$f":"VLOOKUP(DropDownList!$B$47,CntyQryCensus!$A$357:$CM$399,CF$1)","v":0},{"$f":"VLOOKUP(DropDownList!$B$47,CntyQryCensus!$A$357:$CM$399,CG$1)","v":0},{"$f":"VLOOKUP(DropDownList!$B$47,CntyQryCensus!$A$357:$CM$399,CH$1)","v":0},{"$f":"VLOOKUP(DropDownList!$B$47,CntyQryCensus!$A$357:$CM$399,CI$1)","v":0},{"$f":"VLOOKUP(DropDownList!$B$47,CntyQryCensus!$A$357:$CM$399,CJ$1)","v":0},{"$f":"VLOOKUP(DropDownList!$B$47,CntyQryCensus!$A$357:$CM$399,CK$1)","v":0},{"$f":"VLOOKUP(DropDownList!$B$47,CntyQryCensus!$A$357:$CM$399,CL$1)","v":0},{"$f":"VLOOKUP(DropDownList!$B$47,CntyQryCensus!$A$357:$CM$399,CM$1)","v":0}]
[]
[]
["Census 2000 SummaryFile3 Sample Data  -  SF3TownQry8HousingCostB"]
["NAME","LOGRECNO","COUNTY","TotalPop","H74SpecOwnerOccHU","H74OOHU<10k","H74OOHU10to15k","H74OOHU15to20k","H74OOHU20to25k","H74OOHU25to30k","H74OOHU30to35k","H74OOHU35to40k","H74OOHU40to50k","H74OOHU50to60k","H74OOHU60to70k","H74OOHU70to80k","H74OOHU80to90k","H74OOHU90to100k","H74OOHU100to125k","H74OOHU125to150k","H74OOHU150to175k","H74OOHU175to200k","H74OOHU200to250k","H74OOHU250to300k","H74OOHU300to400k","H74OOHU400to500k","H74OOHU500to750k","H74OOHU750to1000k","H74OOHU1000kmore","H76OOHUMedianVal","H84OwnerOccHU","H84AllOOHU<10k","H84AllOOHU10to15k","H84AllOOHU15to20k","H84AllOOHU20to25k","H84AllOOHU25to30k","H84AllOOHU30to35k","H84AllOOHU35to40k","H84AllOOHU40to50k","H84AllOOHU50to60k","H84AllOOHU60to70k","H84AllOOHU70to80k","H84AllOOHU80to90k","H84AllOOHU90to100k","H84AllOOHU100to125k","H84AllOOHU125to150k","H84AllOOHU150to175k","H84AllOOHU175to200k","H84AllOOHU200to250k","H84AllOOHU250to300k","H84AllOOHU300to400k","H84AllOOHU400to500k","H84AllOOHU500to750k","H84AllOOHU750to1000k","H84AllOOHU1000kmore","H85OOHUMedVal","H90SOOHU","H90HUwMorgt","H90HUwMtgHC<200","H90HUwMtgHC200to300","H90HUwMtgHC300to400","H90HUwMtgHC400to500","H90HUwMtgHC500to600","H90HUwMtgHC600to700","H90HUwMtgHC700to800","H90HUwMtgHC800to900","H90HUwMtgHC900to1000","H90HUwMtgHC1000to1250","H90HUwMtgHC1250to1500","H90HUwMtgHC1500to2000","H90HUwMtgHC2000to2500","H90HUwMtgHC2500to3000","H90HUwMtgHC3000orMore","H90HUwOutMorgt","H90HUwOutMtgHC<100","H90HUwOutMtgHC100to150","H90HUwOutMtgHC150to200","H90HUwOutMtgHC200to250","H90HUwOutMtgHC250to300","H90HUwOutMtgHC300to350","H90HUwOutMtgHC350to400","H90HUwOutMtgHC400to500","H90HUwOutMtgHC500to600","H90HUwOutMtgHC600to700","H90HUwOutMtgHC700to800","H90HUwOutMtgHC800to900","H90HUwOutMtgHC900to1000","H90HUwOutMtgHC1000orMore","H91MedianOCHUwMtg","H91MedianOCHUwOutMtg","H94SpecOOHU","H94HUwMortg","H94HUwMtgHC<10pct","H94HUwMtgHC10to15pct","H94HUwMtgHC15to20pct","H94HUwMtgHC20to25pct","H94HUwMtgHC25to30pct","H94HUwMtgHC30to35pct","H94HUwMtgHC35to40pct","H94HUwMtgHC40to50pct","H94HUwMtgHC50pctOrMore","H94HUwMtgHCpctNotComp","H94HUWOutMortg","H94HUWOutMortgHC<10pct","H94HUWOutMortgHC10to15pct","H94HUWOutMortgHC15to20pct","H94HUWOutMortgHC20to25pct","H94HUWOutMortgHC25to30pct","H94HUWOutMortgHC30to35pct","H94HUWOutMortgHC35to40pct","H94HUWOutMortgHC40to50pct","H94HUWOutMortgHC50pctOrMore","H94HUWOutMortgHCpctNotComp","H97SpecifOwnOccHU","H97SOOHUInc<10k","H97SOOHUInc<10kHC<20pct","H97SOOHUInc<10kHC20to25pct","H97SOOHUInc<10kHC25to30pct","H97SOOHUInc<10kHC30to35pct","H97SOOHUInc<10kHC>35pct","H97SOOHUInc<10kHCpctNotComput","H97SOOHUInc10to20k","H97SOOHUInc10to20kHC<20pct","H97SOOHUInc10to20kHC20to25pct","H97SOOHUInc10to20kHC25to30pct","H97SOOHUInc10to20kHC30to35pct","H97SOOHUInc10to20kHC>35pct","H97SOOHUInc10to20kHCpctNotComput","H97SOOHUInc20to35k","H97SOOHUInc20to35kRC<20pct","H97SOOHUInc20to35kRC20to25pct","H97SOOHUInc20to35kRC25to30pct","H97SOOHUInc20to35kRC30to35pct","H97SOOHUInc20to35kRC>35pct","H97SOOHUInc20to35kRCpctNotComput","H97SOOHUInc35to50k","H97SOOHUInc35to50kRC<20pct","H97SOOHUInc35to50kRC20to25pct","H97SOOHUInc35to50kRC25to30pct","H97SOOHUInc35to50kRC30to35pct","H97SOOHUInc35to50kRC>35pct","H97SOOHUInc35to50kRCpctNotCompute","H97SOOHUInc50to75k","H97SOOHUInc50to75kRC<20pct","H97SOOHUInc50to75kRC20to25pct","H97SOOHUInc50to75kRC25to30pct","H97SOOHUInc50to75kRC30to35pct","H97SOOHUInc50to75kRC>35pct","H97SOOHUInc50to75kRCpctNotComput","H97SOOHUInc75to100k","H97SOOHUInc75to100kRC<20pct","H97SOOHUInc75to100kRC20to25pct","H97SOOHUInc75to100kRC25to30pct","H97SOOHUInc75to100kRC30to35pct","H97SOOHUInc75to100kRC>35pct","H97SOOHUInc75to100kRCpctNotCompute","H97SOOHUInc100to150k","H97SOOHUInc100to150kRC<20pct","H97SOOHUInc100to150kRC20to25pct","H97SOOHUInc100to150kRC25to30pct","H97SOOHUInc100to150kRC30to35pct","H97SOOHUInc100to150kRC>35pct","H97SOOHUInc100to150kRCpctNotCompute","H97SOOHUInc>150k","H97SOOHUInc>150kRC<20pct","H97SOOHUInc>150kRC20to25pct","H97SOOHUInc>150kRC25to30pct","H97SOOHUInc>150kRC30to35pct","H97SOOHUInc>150kRC>35pct","H97SOOHUInc>150kRCpctNotCompute"]
[{"$f":"VLOOKUP(DropDownList!$B$47,CntyQryCensus!$A$408:$FN$450,A$1)","v":"Acworth"},{"$f":"VLOOKUP(DropDownList!$B$47,CntyQryCensus!$A$408:$FN$450,B$1)","v":"0004141"},{"$f":"VLOOKUP(DropDownList!$B$47,CntyQryCensus!$A$408:$FN$450,C$1)","v":"00260"},{"$f":"VLOOKUP(DropDownList!$B$47,CntyQryCensus!$A$408:$FN$450,D$1)","v":836},{"$f":"VLOOKUP(DropDownList!$B$47,CntyQryCensus!$A$408:$FN$450,E$1)","v":124},{"$f":"VLOOKUP(DropDownList!$B$47,CntyQryCensus!$A$408:$FN$450,F$1)","v":0},{"$f":"VLOOKUP(DropDownList!$B$47,CntyQryCensus!$A$408:$FN$450,G$1)","v":0},{"$f":"VLOOKUP(DropDownList!$B$47,CntyQryCensus!$A$408:$FN$450,H$1)","v":0},{"$f":"VLOOKUP(DropDownList!$B$47,CntyQryCensus!$A$408:$FN$450,I$1)","v":5},{"$f":"VLOOKUP(DropDownList!$B$47,CntyQryCensus!$A$408:$FN$450,J$1)","v":0},{"$f":"VLOOKUP(DropDownList!$B$47,CntyQryCensus!$A$408:$FN$450,K$1)","v":1},{"$f":"VLOOKUP(DropDownList!$B$47,CntyQryCensus!$A$408:$FN$450,L$1)","v":2},{"$f":"VLOOKUP(DropDownList!$B$47,CntyQryCensus!$A$408:$FN$450,M$1)","v":4},{"$f":"VLOOKUP(DropDownList!$B$47,CntyQryCensus!$A$408:$FN$450,N$1)","v":4},{"$f":"VLOOKUP(DropDownList!$B$47,CntyQryCensus!$A$408:$FN$450,O$1)","v":7},{"$f":"VLOOKUP(DropDownList!$B$47,CntyQryCensus!$A$408:$FN$450,P$1)","v":18},{"$f":"VLOOKUP(DropDownList!$B$47,CntyQryCensus!$A$408:$FN$450,Q$1)","v":17},{"$f":"VLOOKUP(DropDownList!$B$47,CntyQryCensus!$A$408:$FN$450,R$1)","v":15},{"$f":"VLOOKUP(DropDownList!$B$47,CntyQryCensus!$A$408:$FN$450,S$1)","v":25},{"$f":"VLOOKUP(DropDownList!$B$47,CntyQryCensus!$A$408:$FN$450,T$1)","v":9},{"$f":"VLOOKUP(DropDownList!$B$47,CntyQryCensus!$A$408:$FN$450,U$1)","v":2},{"$f":"VLOOKUP(DropDownList!$B$47,CntyQryCensus!$A$408:$FN$450,V$1)","v":7},{"$f":"VLOOKUP(DropDownList!$B$47,CntyQryCensus!$A$408:$FN$450,W$1)","v":2},{"$f":"VLOOKUP(DropDownList!$B$47,CntyQryCensus!$A$408:$FN$450,X$1)","v":4},{"$f":"VLOOKUP(DropDownList!$B$47,CntyQryCensus!$A$408:$FN$450,Y$1)","v":0},{"$f":"VLOOKUP(DropDownList!$B$47,CntyQryCensus!$A$408:$FN$450,Z$1)","v":0},{"$f":"VLOOKUP(DropDownList!$B$47,CntyQryCensus!$A$408:$FN$450,AA$1)","v":2},{"$f":"VLOOKUP(DropDownList!$B$47,CntyQryCensus!$A$408:$FN$450,AB$1)","v":0},{"$f":"VLOOKUP(DropDownList!$B$47,CntyQryCensus!$A$408:$FN$450,AC$1)","v":0},{"$f":"VLOOKUP(DropDownList!$B$47,CntyQryCensus!$A$408:$FN$450,AD$1)","v":92700},{"$f":"VLOOKUP(DropDownList!$B$47,CntyQryCensus!$A$408:$FN$450,AE$1)","v":263},{"$f":"VLOOKUP(DropDownList!$B$47,CntyQryCensus!$A$408:$FN$450,AF$1)","v":0},{"$f":"VLOOKUP(DropDownList!$B$47,CntyQryCensus!$A$408:$FN$450,AG$1)","v":0},{"$f":"VLOOKUP(DropDownList!$B$47,CntyQryCensus!$A$408:$FN$450,AH$1)","v":3},{"$f":"VLOOKUP(DropDownList!$B$47,CntyQryCensus!$A$408:$FN$450,AI$1)","v":7},{"$f":"VLOOKUP(DropDownList!$B$47,CntyQryCensus!$A$408:$FN$450,AJ$1)","v":6},{"$f":"VLOOKUP(DropDownList!$B$47,CntyQryCensus!$A$408:$FN$450,AK$1)","v":1},{"$f":"VLOOKUP(DropDownList!$B$47,CntyQryCensus!$A$408:$FN$450,AL$1)","v":8},{"$f":"VLOOKUP(DropDownList!$B$47,CntyQryCensus!$A$408:$FN$450,AM$1)","v":9},{"$f":"VLOOKUP(DropDownList!$B$47,CntyQryCensus!$A$408:$FN$450,AN$1)","v":8},{"$f":"VLOOKUP(DropDownList!$B$47,CntyQryCensus!$A$408:$FN$450,AO$1)","v":18},{"$f":"VLOOKUP(DropDownList!$B$47,CntyQryCensus!$A$408:$FN$450,AP$1)","v":27},{"$f":"VLOOKUP(DropDownList!$B$47,CntyQryCensus!$A$408:$FN$450,AQ$1)","v":33},{"$f":"VLOOKUP(DropDownList!$B$47,CntyQryCensus!$A$408:$FN$450,AR$1)","v":27},{"$f":"VLOOKUP(DropDownList!$B$47,CntyQryCensus!$A$408:$FN$450,AS$1)","v":48},{"$f":"VLOOKUP(DropDownList!$B$47,CntyQryCensus!$A$408:$FN$450,AT$1)","v":19},{"$f":"VLOOKUP(DropDownList!$B$47,CntyQryCensus!$A$408:$FN$450,AU$1)","v":9},{"$f":"VLOOKUP(DropDownList!$B$47,CntyQryCensus!$A$408:$FN$450,AV$1)","v":13},{"$f":"VLOOKUP(DropDownList!$B$47,CntyQryCensus!$A$408:$FN$450,AW$1)","v":17},{"$f":"VLOOKUP(DropDownList!$B$47,CntyQryCensus!$A$408:$FN$450,AX$1)","v":8},{"$f":"VLOOKUP(DropDownList!$B$47,CntyQryCensus!$A$408:$FN$450,AY$1)","v":0},{"$f":"VLOOKUP(DropDownList!$B$47,CntyQryCensus!$A$408:$FN$450,AZ$1)","v":0},{"$f":"VLOOKUP(DropDownList!$B$47,CntyQryCensus!$A$408:$FN$450,BA$1)","v":2},{"$f":"VLOOKUP(DropDownList!$B$47,CntyQryCensus!$A$408:$FN$450,BB$1)","v":0},{"$f":"VLOOKUP(DropDownList!$B$47,CntyQryCensus!$A$408:$FN$450,BC$1)","v":0},{"$f":"VLOOKUP(DropDownList!$B$47,CntyQryCensus!$A$408:$FN$450,BD$1)","v":94300},{"$f":"VLOOKUP(DropDownList!$B$47,CntyQryCensus!$A$408:$FN$450,BE$1)","v":124},{"$f":"VLOOKUP(DropDownList!$B$47,CntyQryCensus!$A$408:$FN$450,BF$1)","v":68},{"$f":"VLOOKUP(DropDownList!$B$47,CntyQryCensus!$A$408:$FN$450,BG$1)","v":0},{"$f":"VLOOKUP(DropDownList!$B$47,CntyQryCensus!$A$408:$FN$450,BH$1)","v":0},{"$f":"VLOOKUP(DropDownList!$B$47,CntyQryCensus!$A$408:$FN$450,BI$1)","v":0},{"$f":"VLOOKUP(DropDownList!$B$47,CntyQryCensus!$A$408:$FN$450,BJ$1)","v":2},{"$f":"VLOOKUP(DropDownList!$B$47,CntyQryCensus!$A$408:$FN$450,BK$1)","v":9},{"$f":"VLOOKUP(DropDownList!$B$47,CntyQryCensus!$A$408:$FN$450,BL$1)","v":4},{"$f":"VLOOKUP(DropDownList!$B$47,CntyQryCensus!$A$408:$FN$450,BM$1)","v":5},{"$f":"VLOOKUP(DropDownList!$B$47,CntyQryCensus!$A$408:$FN$450,BN$1)","v":20},{"$f":"VLOOKUP(DropDownList!$B$47,CntyQryCensus!$A$408:$FN$450,BO$1)","v":2},{"$f":"VLOOKUP(DropDownList!$B$47,CntyQryCensus!$A$408:$FN$450,BP$1)","v":18},{"$f":"VLOOKUP(DropDownList!$B$47,CntyQryCensus!$A$408:$FN$450,BQ$1)","v":4},{"$f":"VLOOKUP(DropDownList!$B$47,CntyQryCensus!$A$408:$FN$450,BR$1)","v":2},{"$f":"VLOOKUP(DropDownList!$B$47,CntyQryCensus!$A$408:$FN$450,BS$1)","v":2},{"$f":"VLOOKUP(DropDownList!$B$47,CntyQryCensus!$A$408:$FN$450,BT$1)","v":0},{"$f":"VLOOKUP(DropDownList!$B$47,CntyQryCensus!$A$408:$FN$450,BU$1)","v":0},{"$f":"VLOOKUP(DropDownList!$B$47,CntyQryCensus!$A$408:$FN$450,BV$1)","v":56},{"$f":"VLOOKUP(DropDownList!$B$47,CntyQryCensus!$A$408:$FN$450,BW$1)","v":0},{"$f":"VLOOKUP(DropDownList!$B$47,CntyQryCensus!$A$408:$FN$450,BX$1)","v":0},{"$f":"VLOOKUP(DropDownList!$B$47,CntyQryCensus!$A$408:$FN$450,BY$1)","v":4},{"$f":"VLOOKUP(DropDownList!$B$47,CntyQryCensus!$A$408:$FN$450,BZ$1)","v":7},{"$f":"VLOOKUP(DropDownList!$B$47,CntyQryCensus!$A$408:$FN$450,CA$1)","v":11},{"$f":"VLOOKUP(DropDownList!$B$47,CntyQryCensus!$A$408:$FN$450,CB$1)","v":3},{"$f":"VLOOKUP(DropDownList!$B$47,CntyQryCensus!$A$408:$FN$450,CC$1)","v":2},{"$f":"VLOOKUP(DropDownList!$B$47,CntyQryCensus!$A$408:$FN$450,CD$1)","v":14},{"$f":"VLOOKUP(DropDownList!$B$47,CntyQryCensus!$A$408:$FN$450,CE$1)","v":9},{"$f":"VLOOKUP(DropDownList!$B$47,CntyQryCensus!$A$408:$FN$450,CF$1)","v":6},{"$f":"VLOOKUP(DropDownList!$B$47,CntyQryCensus!$A$408:$FN$450,CG$1)","v":0},{"$f":"VLOOKUP(DropDownList!$B$47,CntyQryCensus!$A$408:$FN$450,CH$1)","v":0},{"$f":"VLOOKUP(DropDownList!$B$47,CntyQryCensus!$A$408:$FN$450,CI$1)","v":0},{"$f":"VLOOKUP(DropDownList!$B$47,CntyQryCensus!$A$408:$FN$450,CJ$1)","v":0},{"$f":"VLOOKUP(DropDownList!$B$47,CntyQryCensus!$A$408:$FN$450,CK$1)","v":870},{"$f":"VLOOKUP(DropDownList!$B$47,CntyQryCensus!$A$408:$FN$450,CL$1)","v":407},{"$f":"VLOOKUP(DropDownList!$B$47,CntyQryCensus!$A$408:$FN$450,CM$1)","v":124},{"$f":"VLOOKUP(DropDownList!$B$47,CntyQryCensus!$A$408:$FN$450,CN$1)","v":68},{"$f":"VLOOKUP(DropDownList!$B$47,CntyQryCensus!$A$408:$FN$450,CO$1)","v":2},{"$f":"VLOOKUP(DropDownList!$B$47,CntyQryCensus!$A$408:$FN$450,CP$1)","v":15},{"$f":"VLOOKUP(DropDownList!$B$47,CntyQryCensus!$A$408:$FN$450,CQ$1)","v":12},{"$f":"VLOOKUP(DropDownList!$B$47,CntyQryCensus!$A$408:$FN$450,CR$1)","v":12},{"$f":"VLOOKUP(DropDownList!$B$47,CntyQryCensus!$A$408:$FN$450,CS$1)","v":19},{"$f":"VLOOKUP(DropDownList!$B$47,CntyQryCensus!$A$408:$FN$450,CT$1)","v":6},{"$f":"VLOOKUP(DropDownList!$B$47,CntyQryCensus!$A$408:$FN$450,CU$1)","v":0},{"$f":"VLOOKUP(DropDownList!$B$47,CntyQryCensus!$A$408:$FN$450,CV$1)","v":0},{"$f":"VLOOKUP(DropDownList!$B$47,CntyQryCensus!$A$408:$FN$450,CW$1)","v":2},{"$f":"VLOOKUP(DropDownList!$B$47,CntyQryCensus!$A$408:$FN$450,CX$1)","v":0},{"$f":"VLOOKUP(DropDownList!$B$47,CntyQryCensus!$A$408:$FN$450,CY$1)","v":56},{"$f":"VLOOKUP(DropDownList!$B$47,CntyQryCensus!$A$408:$FN$450,CZ$1)","v":18},{"$f":"VLOOKUP(DropDownList!$B$47,CntyQryCensus!$A$408:$FN$450,DA$1)","v":8},{"$f":"VLOOKUP(DropDownList!$B$47,CntyQryCensus!$A$408:$FN$450,DB$1)","v":10},{"$f":"VLOOKUP(DropDownList!$B$47,CntyQryCensus!$A$408:$FN$450,DC$1)","v":5},{"$f":"VLOOKUP(DropDownList!$B$47,CntyQryCensus!$A$408:$FN$450,DD$1)","v":4},{"$f":"VLOOKUP(DropDownList!$B$47,CntyQryCensus!$A$408:$FN$450,DE$1)","v":2},{"$f":"VLOOKUP(DropDownList!$B$47,CntyQryCensus!$A$408:$FN$450,DF$1)","v":0},{"$f":"VLOOKUP(DropDownList!$B$47,CntyQryCensus!$A$408:$FN$450,DG$1)","v":2},{"$f":"VLOOKUP(DropDownList!$B$47,CntyQryCensus!$A$408:$FN$450,DH$1)","v":6},{"$f":"VLOOKUP(DropDownList!$B$47,CntyQryCensus!$A$408:$FN$450,DI$1)","v":1},{"$f":"VLOOKUP(DropDownList!$B$47,CntyQryCensus!$A$408:$FN$450,DJ$1)","v":124},{"$f":"VLOOKUP(DropDownList!$B$47,CntyQryCensus!$A$408:$FN$450,DK$1)","v":9},{"$f":"VLOOKUP(DropDownList!$B$47,CntyQryCensus!$A$408:$FN$450,DL$1)","v":0},{"$f":"VLOOKUP(DropDownList!$B$47,CntyQryCensus!$A$408:$FN$450,DM$1)","v":0},{"$f":"VLOOKUP(DropDownList!$B$47,CntyQryCensus!$A$408:$FN$450,DN$1)","v":0},{"$f":"VLOOKUP(DropDownList!$B$47,CntyQryCensus!$A$408:$FN$450,DO$1)","v":0},{"$f":"VLOOKUP(DropDownList!$B$47,CntyQryCensus!$A$408:$FN$450,DP$1)","v":8},{"$f":"VLOOKUP(DropDownList!$B$47,CntyQryCensus!$A$408:$FN$450,DQ$1)","v":1},{"$f":"VLOOKUP(DropDownList!$B$47,CntyQryCensus!$A$408:$FN$450,DR$1)","v":9},{"$f":"VLOOKUP(DropDownList!$B$47,CntyQryCensus!$A$408:$FN$450,DS$1)","v":4},{"$f":"VLOOKUP(DropDownList!$B$47,CntyQryCensus!$A$408:$FN$450,DT$1)","v":1},{"$f":"VLOOKUP(DropDownList!$B$47,CntyQryCensus!$A$408:$FN$450,DU$1)","v":2},{"$f":"VLOOKUP(DropDownList!$B$47,CntyQryCensus!$A$408:$FN$450,DV$1)","v":2},{"$f":"VLOOKUP(DropDownList!$B$47,CntyQryCensus!$A$408:$FN$450,DW$1)","v":0},{"$f":"VLOOKUP(DropDownList!$B$47,CntyQryCensus!$A$408:$FN$450,DX$1)","v":0},{"$f":"VLOOKUP(DropDownList!$B$47,CntyQryCensus!$A$408:$FN$450,DY$1)","v":23},{"$f":"VLOOKUP(DropDownList!$B$47,CntyQryCensus!$A$408:$FN$450,DZ$1)","v":10},{"$f":"VLOOKUP(DropDownList!$B$47,CntyQryCensus!$A$408:$FN$450,EA$1)","v":4},{"$f":"VLOOKUP(DropDownList!$B$47,CntyQryCensus!$A$408:$FN$450,EB$1)","v":7},{"$f":"VLOOKUP(DropDownList!$B$47,CntyQryCensus!$A$408:$FN$450,EC$1)","v":2},{"$f":"VLOOKUP(DropDownList!$B$47,CntyQryCensus!$A$408:$FN$450,ED$1)","v":0},{"$f":"VLOOKUP(DropDownList!$B$47,CntyQryCensus!$A$408:$FN$450,EE$1)","v":0},{"$f":"VLOOKUP(DropDownList!$B$47,CntyQryCensus!$A$408:$FN$450,EF$1)","v":29},{"$f":"VLOOKUP(DropDownList!$B$47,CntyQryCensus!$A$408:$FN$450,EG$1)","v":14},{"$f":"VLOOKUP(DropDownList!$B$47,CntyQryCensus!$A$408:$FN$450,EH$1)","v":4},{"$f":"VLOOKUP(DropDownList!$B$47,CntyQryCensus!$A$408:$FN$450,EI$1)","v":7},{"$f":"VLOOKUP(DropDownList!$B$47,CntyQryCensus!$A$408:$FN$450,EJ$1)","v":2},{"$f":"VLOOKUP(DropDownList!$B$47,CntyQryCensus!$A$408:$FN$450,EK$1)","v":2},{"$f":"VLOOKUP(DropDownList!$B$47,CntyQryCensus!$A$408:$FN$450,EL$1)","v":0},{"$f":"VLOOKUP(DropDownList!$B$47,CntyQryCensus!$A$408:$FN$450,EM$1)","v":35},{"$f":"VLOOKUP(DropDownList!$B$47,CntyQryCensus!$A$408:$FN$450,EN$1)","v":20},{"$f":"VLOOKUP(DropDownList!$B$47,CntyQryCensus!$A$408:$FN$450,EO$1)","v":8},{"$f":"VLOOKUP(DropDownList!$B$47,CntyQryCensus!$A$408:$FN$450,EP$1)","v":5},{"$f":"VLOOKUP(DropDownList!$B$47,CntyQryCensus!$A$408:$FN$450,EQ$1)","v":2},{"$f":"VLOOKUP(DropDownList!$B$47,CntyQryCensus!$A$408:$FN$450,ER$1)","v":0},{"$f":"VLOOKUP(DropDownList!$B$47,CntyQryCensus!$A$408:$FN$450,ES$1)","v":0},{"$f":"VLOOKUP(DropDownList!$B$47,CntyQryCensus!$A$408:$FN$450,ET$1)","v":15},{"$f":"VLOOKUP(DropDownList!$B$47,CntyQryCensus!$A$408:$FN$450,EU$1)","v":13},{"$f":"VLOOKUP(DropDownList!$B$47,CntyQryCensus!$A$408:$FN$450,EV$1)","v":0},{"$f":"VLOOKUP(DropDownList!$B$47,CntyQryCensus!$A$408:$FN$450,EW$1)","v":2},{"$f":"VLOOKUP(DropDownList!$B$47,CntyQryCensus!$A$408:$FN$450,EX$1)","v":0},{"$f":"VLOOKUP(DropDownList!$B$47,CntyQryCensus!$A$408:$FN$450,EY$1)","v":0},{"$f":"VLOOKUP(DropDownList!$B$47,CntyQryCensus!$A$408:$FN$450,EZ$1)","v":0},{"$f":"VLOOKUP(DropDownList!$B$47,CntyQryCensus!$A$408:$FN$450,FA$1)","v":4},{"$f":"VLOOKUP(DropDownList!$B$47,CntyQryCensus!$A$408:$FN$450,FB$1)","v":4},{"$f":"VLOOKUP(DropDownList!$B$47,CntyQryCensus!$A$408:$FN$450,FC$1)","v":0},{"$f":"VLOOKUP(DropDownList!$B$47,CntyQryCensus!$A$408:$FN$450,FD$1)","v":0},{"$f":"VLOOKUP(DropDownList!$B$47,CntyQryCensus!$A$408:$FN$450,FE$1)","v":0},{"$f":"VLOOKUP(DropDownList!$B$47,CntyQryCensus!$A$408:$FN$450,FF$1)","v":0},{"$f":"VLOOKUP(DropDownList!$B$47,CntyQryCensus!$A$408:$FN$450,FG$1)","v":0},{"$f":"VLOOKUP(DropDownList!$B$47,CntyQryCensus!$A$408:$FN$450,FH$1)","v":0},{"$f":"VLOOKUP(DropDownList!$B$47,CntyQryCensus!$A$408:$FN$450,FI$1)","v":0},{"$f":"VLOOKUP(DropDownList!$B$47,CntyQryCensus!$A$408:$FN$450,FJ$1)","v":0},{"$f":"VLOOKUP(DropDownList!$B$47,CntyQryCensus!$A$408:$FN$450,FK$1)","v":0},{"$f":"VLOOKUP(DropDownList!$B$47,CntyQryCensus!$A$408:$FN$450,FL$1)","v":0},{"$f":"VLOOKUP(DropDownList!$B$47,CntyQryCensus!$A$408:$FN$450,FM$1)","v":0},{"$f":"VLOOKUP(DropDownList!$B$47,CntyQryCensus!$A$408:$FN$450,FN$1)","v":0}]
[]
[]
["Census 2000 SummaryFile3 Sample Data  -  SF3TownQry9HHIncomeByTenure"]
["NAME","LOGRECNO","COUNTY","TotalPop","HCT11OccHU","HCT11OwnOccHU","HCT11OOHUInc<5K","HCT11OOHUInc5to10K","HCT11OOHUInc10to15K","HCT11OOHUInc15to20K","HCT11OOHUInc20to25K","HCT11OOHUInc25to35K","HCT11OOHUInc35to50K","HCT11OOHUInc50to75K","HCT11OOHUInc75to100K","HCT11OOHUInc100to150K","HCT11OOHUInc>150K","HCT11RentOccHU","HCT11ROHUInc<5K","HCT11ROHUInc5to10K","HCT11ROHUInc10to15K","HCT11ROHUInc15to20K","HCT11ROHUInc20to25K","HCT11ROHUInc25to35K","HCT11ROHUInc35to50K","HCT11ROHUInc50to75K","HCT11ROHUInc75to100K","HCT11ROHUInc100to150K","HCT11ROHUInc>150K","HCT12MedHHInc","HCT12MedOwnOccHHInc","HCT12MedRentOccHHInc","Summary Level"]
[{"$f":"VLOOKUP(DropDownList!$B$47,CntyQryCensus!$A$459:$AG$501,A$1)","v":"Acworth"},{"$f":"VLOOKUP(DropDownList!$B$47,CntyQryCensus!$A$459:$AG$501,B$1)","v":"0004141"},{"$f":"VLOOKUP(DropDownList!$B$47,CntyQryCensus!$A$459:$AG$501,C$1)","v":"00260"},{"$f":"VLOOKUP(DropDownList!$B$47,CntyQryCensus!$A$459:$AG$501,D$1)","v":"Acworth town"},{"$f":"VLOOKUP(DropDownList!$B$47,CntyQryCensus!$A$459:$AG$501,E$1)","v":"019"},{"$f":"VLOOKUP(DropDownList!$B$47,CntyQryCensus!$A$459:$AG$501,F$1)","v":836},{"$f":"VLOOKUP(DropDownList!$B$47,CntyQryCensus!$A$459:$AG$501,G$1)","v":319},{"$f":"VLOOKUP(DropDownList!$B$47,CntyQryCensus!$A$459:$AG$501,H$1)","v":263},{"$f":"VLOOKUP(DropDownList!$B$47,CntyQryCensus!$A$459:$AG$501,I$1)","v":5},{"$f":"VLOOKUP(DropDownList!$B$47,CntyQryCensus!$A$459:$AG$501,J$1)","v":8},{"$f":"VLOOKUP(DropDownList!$B$47,CntyQryCensus!$A$459:$AG$501,K$1)","v":7},{"$f":"VLOOKUP(DropDownList!$B$47,CntyQryCensus!$A$459:$AG$501,L$1)","v":36},{"$f":"VLOOKUP(DropDownList!$B$47,CntyQryCensus!$A$459:$AG$501,M$1)","v":15},{"$f":"VLOOKUP(DropDownList!$B$47,CntyQryCensus!$A$459:$AG$501,N$1)","v":43},{"$f":"VLOOKUP(DropDownList!$B$47,CntyQryCensus!$A$459:$AG$501,O$1)","v":59},{"$f":"VLOOKUP(DropDownList!$B$47,CntyQryCensus!$A$459:$AG$501,P$1)","v":53},{"$f":"VLOOKUP(DropDownList!$B$47,CntyQryCensus!$A$459:$AG$501,Q$1)","v":21},{"$f":"VLOOKUP(DropDownList!$B$47,CntyQryCensus!$A$459:$AG$501,R$1)","v":12},{"$f":"VLOOKUP(DropDownList!$B$47,CntyQryCensus!$A$459:$AG$501,S$1)","v":4},{"$f":"VLOOKUP(DropDownList!$B$47,CntyQryCensus!$A$459:$AG$501,T$1)","v":56},{"$f":"VLOOKUP(DropDownList!$B$47,CntyQryCensus!$A$459:$AG$501,U$1)","v":7},{"$f":"VLOOKUP(DropDownList!$B$47,CntyQryCensus!$A$459:$AG$501,V$1)","v":4},{"$f":"VLOOKUP(DropDownList!$B$47,CntyQryCensus!$A$459:$AG$501,W$1)","v":6},{"$f":"VLOOKUP(DropDownList!$B$47,CntyQryCensus!$A$459:$AG$501,X$1)","v":5},{"$f":"VLOOKUP(DropDownList!$B$47,CntyQryCensus!$A$459:$AG$501,Y$1)","v":2},{"$f":"VLOOKUP(DropDownList!$B$47,CntyQryCensus!$A$459:$AG$501,Z$1)","v":12},{"$f":"VLOOKUP(DropDownList!$B$47,CntyQryCensus!$A$459:$AG$501,AA$1)","v":9},{"$f":"VLOOKUP(DropDownList!$B$47,CntyQryCensus!$A$459:$AG$501,AB$1)","v":6},{"$f":"VLOOKUP(DropDownList!$B$47,CntyQryCensus!$A$459:$AG$501,AC$1)","v":3},{"$f":"VLOOKUP(DropDownList!$B$47,CntyQryCensus!$A$459:$AG$501,AD$1)","v":0},{"$f":"VLOOKUP(DropDownList!$B$47,CntyQryCensus!$A$459:$AG$501,AE$1)","v":2},{"$f":"VLOOKUP(DropDownList!$B$47,CntyQryCensus!$A$459:$AG$501,AF$1)","v":37375},{"$f":"VLOOKUP(DropDownList!$B$47,CntyQryCensus!$A$459:$AG$501,AG$1)","v":40078}]
[]
[]
[]
[]
[]
[{"$f":"VLOOKUP(DropDownList!$B$47,CntyQryCensus!$A$510:$DA$552,A$1)","v":"Acworth"}]
[]
[]
[]
[]
[]
[]
[]
["Census 2000 SummaryFile3 Sample Data - SF3TownQry10Disabil"]
["NAME","LOGRECNO","COUNTY","TotalPop","PCT026001-NonInstPop5yrs+","PCT026002-MaleNonInstPop5yrs+","PCT026003","PCT026004","PCT026005","PCT026006","PCT026007","PCT026008","PCT026009","PCT026010","PCT026011","PCT026012","PCT026013","PCT026014","PCT026015","PCT026016","PCT026017","PCT026018","PCT026019","PCT026020","PCT026021","PCT026022","PCT026023","PCT026024","PCT026025","PCT026026","PCT026027","PCT026028","PCT026029","PCT026030","PCT026031","PCT026032","PCT026033","PCT026034","PCT026035","PCT026036","PCT026037","PCT026038","PCT026039","PCT026040","PCT026041","PCT026042","PCT026043","PCT026044","PCT026045","PCT026046","PCT026047","PCT026048","PCT026049","PCT026050","PCT026051","PCT026052","PCT026053","PCT026054","PCT026055","PCT026056","PCT026057","PCT026058","PCT026059","PCT026060","PCT026061","PCT026062","PCT026063","PCT026064","PCT026065","PCT026066","PCT026067","PCT026068","PCT026069","PCT026070","PCT026071","PCT026072","PCT026073","PCT026074","PCT026075","PCT026076","PCT026077","PCT026078","PCT026079","PCT026080","PCT026081","PCT026082","PCT026083","PCT026084","PCT026085","PCT026086","PCT026087","PCT026088","PCT026089","PCT026090","PCT026091","PCT026092","PCT026093","PCT026094","PCT026095","PCT026096","PCT026097","PCT026098","PCT026099","PCT026100","PCT026101"]
[{"$f":"VLOOKUP(DropDownList!$B$47,CntyQryCensus!$A$510:$DA$552,A$1)","v":"Acworth"},{"$f":"VLOOKUP(DropDownList!$B$47,CntyQryCensus!$A$510:$DA$552,B$1)","v":"0004141"},{"$f":"VLOOKUP(DropDownList!$B$47,CntyQryCensus!$A$510:$DA$552,C$1)","v":"00260"},{"$f":"VLOOKUP(DropDownList!$B$47,CntyQryCensus!$A$510:$DA$552,D$1)","v":836},{"$f":"VLOOKUP(DropDownList!$B$47,CntyQryCensus!$A$510:$DA$552,E$1)","v":799},{"$f":"VLOOKUP(DropDownList!$B$47,CntyQryCensus!$A$510:$DA$552,F$1)","v":416},{"$f":"VLOOKUP(DropDownList!$B$47,CntyQryCensus!$A$510:$DA$552,G$1)","v":75},{"$f":"VLOOKUP(DropDownList!$B$47,CntyQryCensus!$A$510:$DA$552,H$1)","v":0},{"$f":"VLOOKUP(DropDownList!$B$47,CntyQryCensus!$A$510:$DA$552,I$1)","v":0},{"$f":"VLOOKUP(DropDownList!$B$47,CntyQryCensus!$A$510:$DA$552,J$1)","v":0},{"$f":"VLOOKUP(DropDownList!$B$47,CntyQryCensus!$A$510:$DA$552,K$1)","v":0},{"$f":"VLOOKUP(DropDownList!$B$47,CntyQryCensus!$A$510:$DA$552,L$1)","v":0},{"$f":"VLOOKUP(DropDownList!$B$47,CntyQryCensus!$A$510:$DA$552,M$1)","v":0},{"$f":"VLOOKUP(DropDownList!$B$47,CntyQryCensus!$A$510:$DA$552,N$1)","v":0},{"$f":"VLOOKUP(DropDownList!$B$47,CntyQryCensus!$A$510:$DA$552,O$1)","v":0},{"$f":"VLOOKUP(DropDownList!$B$47,CntyQryCensus!$A$510:$DA$552,P$1)","v":75},{"$f":"VLOOKUP(DropDownList!$B$47,CntyQryCensus!$A$510:$DA$552,Q$1)","v":31},{"$f":"VLOOKUP(DropDownList!$B$47,CntyQryCensus!$A$510:$DA$552,R$1)","v":2},{"$f":"VLOOKUP(DropDownList!$B$47,CntyQryCensus!$A$510:$DA$552,S$1)","v":0},{"$f":"VLOOKUP(DropDownList!$B$47,CntyQryCensus!$A$510:$DA$552,T$1)","v":0},{"$f":"VLOOKUP(DropDownList!$B$47,CntyQryCensus!$A$510:$DA$552,U$1)","v":2},{"$f":"VLOOKUP(DropDownList!$B$47,CntyQryCensus!$A$510:$DA$552,V$1)","v":0},{"$f":"VLOOKUP(DropDownList!$B$47,CntyQryCensus!$A$510:$DA$552,W$1)","v":0},{"$f":"VLOOKUP(DropDownList!$B$47,CntyQryCensus!$A$510:$DA$552,X$1)","v":0},{"$f":"VLOOKUP(DropDownList!$B$47,CntyQryCensus!$A$510:$DA$552,Y$1)","v":0},{"$f":"VLOOKUP(DropDownList!$B$47,CntyQryCensus!$A$510:$DA$552,Z$1)","v":0},{"$f":"VLOOKUP(DropDownList!$B$47,CntyQryCensus!$A$510:$DA$552,AA$1)","v":0},{"$f":"VLOOKUP(DropDownList!$B$47,CntyQryCensus!$A$510:$DA$552,AB$1)","v":0},{"$f":"VLOOKUP(DropDownList!$B$47,CntyQryCensus!$A$510:$DA$552,AC$1)","v":0},{"$f":"VLOOKUP(DropDownList!$B$47,CntyQryCensus!$A$510:$DA$552,AD$1)","v":29},{"$f":"VLOOKUP(DropDownList!$B$47,CntyQryCensus!$A$510:$DA$552,AE$1)","v":248},{"$f":"VLOOKUP(DropDownList!$B$47,CntyQryCensus!$A$510:$DA$552,AF$1)","v":32},{"$f":"VLOOKUP(DropDownList!$B$47,CntyQryCensus!$A$510:$DA$552,AG$1)","v":3},{"$f":"VLOOKUP(DropDownList!$B$47,CntyQryCensus!$A$510:$DA$552,AH$1)","v":12},{"$f":"VLOOKUP(DropDownList!$B$47,CntyQryCensus!$A$510:$DA$552,AI$1)","v":5},{"$f":"VLOOKUP(DropDownList!$B$47,CntyQryCensus!$A$510:$DA$552,AJ$1)","v":0},{"$f":"VLOOKUP(DropDownList!$B$47,CntyQryCensus!$A$510:$DA$552,AK$1)","v":0},{"$f":"VLOOKUP(DropDownList!$B$47,CntyQryCensus!$A$510:$DA$552,AL$1)","v":12},{"$f":"VLOOKUP(DropDownList!$B$47,CntyQryCensus!$A$510:$DA$552,AM$1)","v":25},{"$f":"VLOOKUP(DropDownList!$B$47,CntyQryCensus!$A$510:$DA$552,AN$1)","v":7},{"$f":"VLOOKUP(DropDownList!$B$47,CntyQryCensus!$A$510:$DA$552,AO$1)","v":18},{"$f":"VLOOKUP(DropDownList!$B$47,CntyQryCensus!$A$510:$DA$552,AP$1)","v":8},{"$f":"VLOOKUP(DropDownList!$B$47,CntyQryCensus!$A$510:$DA$552,AQ$1)","v":10},{"$f":"VLOOKUP(DropDownList!$B$47,CntyQryCensus!$A$510:$DA$552,AR$1)","v":191},{"$f":"VLOOKUP(DropDownList!$B$47,CntyQryCensus!$A$510:$DA$552,AS$1)","v":62},{"$f":"VLOOKUP(DropDownList!$B$47,CntyQryCensus!$A$510:$DA$552,AT$1)","v":13},{"$f":"VLOOKUP(DropDownList!$B$47,CntyQryCensus!$A$510:$DA$552,AU$1)","v":1},{"$f":"VLOOKUP(DropDownList!$B$47,CntyQryCensus!$A$510:$DA$552,AV$1)","v":10},{"$f":"VLOOKUP(DropDownList!$B$47,CntyQryCensus!$A$510:$DA$552,AW$1)","v":0},{"$f":"VLOOKUP(DropDownList!$B$47,CntyQryCensus!$A$510:$DA$552,AX$1)","v":0},{"$f":"VLOOKUP(DropDownList!$B$47,CntyQryCensus!$A$510:$DA$552,AY$1)","v":2},{"$f":"VLOOKUP(DropDownList!$B$47,CntyQryCensus!$A$510:$DA$552,AZ$1)","v":2},{"$f":"VLOOKUP(DropDownList!$B$47,CntyQryCensus!$A$510:$DA$552,BA$1)","v":2},{"$f":"VLOOKUP(DropDownList!$B$47,CntyQryCensus!$A$510:$DA$552,BB$1)","v":0},{"$f":"VLOOKUP(DropDownList!$B$47,CntyQryCensus!$A$510:$DA$552,BC$1)","v":47},{"$f":"VLOOKUP(DropDownList!$B$47,CntyQryCensus!$A$510:$DA$552,BD$1)","v":383},{"$f":"VLOOKUP(DropDownList!$B$47,CntyQryCensus!$A$510:$DA$552,BE$1)","v":67},{"$f":"VLOOKUP(DropDownList!$B$47,CntyQryCensus!$A$510:$DA$552,BF$1)","v":0},{"$f":"VLOOKUP(DropDownList!$B$47,CntyQryCensus!$A$510:$DA$552,BG$1)","v":0},{"$f":"VLOOKUP(DropDownList!$B$47,CntyQryCensus!$A$510:$DA$552,BH$1)","v":0},{"$f":"VLOOKUP(DropDownList!$B$47,CntyQryCensus!$A$510:$DA$552,BI$1)","v":0},{"$f":"VLOOKUP(DropDownList!$B$47,CntyQryCensus!$A$510:$DA$552,BJ$1)","v":0},{"$f":"VLOOKUP(DropDownList!$B$47,CntyQryCensus!$A$510:$DA$552,BK$1)","v":0},{"$f":"VLOOKUP(DropDownList!$B$47,CntyQryCensus!$A$510:$DA$552,BL$1)","v":0},{"$f":"VLOOKUP(DropDownList!$B$47,CntyQryCensus!$A$510:$DA$552,BM$1)","v":0},{"$f":"VLOOKUP(DropDownList!$B$47,CntyQryCensus!$A$510:$DA$552,BN$1)","v":67},{"$f":"VLOOKUP(DropDownList!$B$47,CntyQryCensus!$A$510:$DA$552,BO$1)","v":24},{"$f":"VLOOKUP(DropDownList!$B$47,CntyQryCensus!$A$510:$DA$552,BP$1)","v":0},{"$f":"VLOOKUP(DropDownList!$B$47,CntyQryCensus!$A$510:$DA$552,BQ$1)","v":0},{"$f":"VLOOKUP(DropDownList!$B$47,CntyQryCensus!$A$510:$DA$552,BR$1)","v":0},{"$f":"VLOOKUP(DropDownList!$B$47,CntyQryCensus!$A$510:$DA$552,BS$1)","v":0},{"$f":"VLOOKUP(DropDownList!$B$47,CntyQryCensus!$A$510:$DA$552,BT$1)","v":0},{"$f":"VLOOKUP(DropDownList!$B$47,CntyQryCensus!$A$510:$DA$552,BU$1)","v":0},{"$f":"VLOOKUP(DropDownList!$B$47,CntyQryCensus!$A$510:$DA$552,BV$1)","v":0},{"$f":"VLOOKUP(DropDownList!$B$47,CntyQryCensus!$A$510:$DA$552,BW$1)","v":0},{"$f":"VLOOKUP(DropDownList!$B$47,CntyQryCensus!$A$510:$DA$552,BX$1)","v":0},{"$f":"VLOOKUP(DropDownList!$B$47,CntyQryCensus!$A$510:$DA$552,BY$1)","v":0},{"$f":"VLOOKUP(DropDownList!$B$47,CntyQryCensus!$A$510:$DA$552,BZ$1)","v":0},{"$f":"VLOOKUP(DropDownList!$B$47,CntyQryCensus!$A$510:$DA$552,CA$1)","v":0},{"$f":"VLOOKUP(DropDownList!$B$47,CntyQryCensus!$A$510:$DA$552,CB$1)","v":24},{"$f":"VLOOKUP(DropDownList!$B$47,CntyQryCensus!$A$510:$DA$552,CC$1)","v":224},{"$f":"VLOOKUP(DropDownList!$B$47,CntyQryCensus!$A$510:$DA$552,CD$1)","v":15},{"$f":"VLOOKUP(DropDownList!$B$47,CntyQryCensus!$A$510:$DA$552,CE$1)","v":0},{"$f":"VLOOKUP(DropDownList!$B$47,CntyQryCensus!$A$510:$DA$552,CF$1)","v":3},{"$f":"VLOOKUP(DropDownList!$B$47,CntyQryCensus!$A$510:$DA$552,CG$1)","v":0},{"$f":"VLOOKUP(DropDownList!$B$47,CntyQryCensus!$A$510:$DA$552,CH$1)","v":0},{"$f":"VLOOKUP(DropDownList!$B$47,CntyQryCensus!$A$510:$DA$552,CI$1)","v":0},{"$f":"VLOOKUP(DropDownList!$B$47,CntyQryCensus!$A$510:$DA$552,CJ$1)","v":12},{"$f":"VLOOKUP(DropDownList!$B$47,CntyQryCensus!$A$510:$DA$552,CK$1)","v":12},{"$f":"VLOOKUP(DropDownList!$B$47,CntyQryCensus!$A$510:$DA$552,CL$1)","v":6},{"$f":"VLOOKUP(DropDownList!$B$47,CntyQryCensus!$A$510:$DA$552,CM$1)","v":6},{"$f":"VLOOKUP(DropDownList!$B$47,CntyQryCensus!$A$510:$DA$552,CN$1)","v":0},{"$f":"VLOOKUP(DropDownList!$B$47,CntyQryCensus!$A$510:$DA$552,CO$1)","v":6},{"$f":"VLOOKUP(DropDownList!$B$47,CntyQryCensus!$A$510:$DA$552,CP$1)","v":197},{"$f":"VLOOKUP(DropDownList!$B$47,CntyQryCensus!$A$510:$DA$552,CQ$1)","v":68},{"$f":"VLOOKUP(DropDownList!$B$47,CntyQryCensus!$A$510:$DA$552,CR$1)","v":4},{"$f":"VLOOKUP(DropDownList!$B$47,CntyQryCensus!$A$510:$DA$552,CS$1)","v":0},{"$f":"VLOOKUP(DropDownList!$B$47,CntyQryCensus!$A$510:$DA$552,CT$1)","v":4},{"$f":"VLOOKUP(DropDownList!$B$47,CntyQryCensus!$A$510:$DA$552,CU$1)","v":0},{"$f":"VLOOKUP(DropDownList!$B$47,CntyQryCensus!$A$510:$DA$552,CV$1)","v":0},{"$f":"VLOOKUP(DropDownList!$B$47,CntyQryCensus!$A$510:$DA$552,CW$1)","v":0},{"$f":"VLOOKUP(DropDownList!$B$47,CntyQryCensus!$A$510:$DA$552,CX$1)","v":10},{"$f":"VLOOKUP(DropDownList!$B$47,CntyQryCensus!$A$510:$DA$552,CY$1)","v":1},{"$f":"VLOOKUP(DropDownList!$B$47,CntyQryCensus!$A$510:$DA$552,CZ$1)","v":9},{"$f":"VLOOKUP(DropDownList!$B$47,CntyQryCensus!$A$510:$DA$552,DA$1)","v":54}]
[]
[]
[]
[]
[{"$f":"VLOOKUP(DropDownList!$B$47,CntyQryCensus!$A$510:$DA$552,A$1)","v":"Acworth"}]
[]
[]
[]
["ACS",2,{"$f":"B105+1","v":3},{"$f":"C105+1","v":4},5,6,7,8,9,10,11,{"$f":"K105+1","v":12},13,14,15,{"$f":"O105+1","v":16},17,18,19,20,21,22,23,24,25,26,27,28,29,30,31,32,33,34,35,36,37,38,39,40,41,42,43,44,45,46,47,48,49,50,51,52,53,54,55,56,57,58,59,60,61,62,63,64,65,66,67,{"$f":"BO105+1","v":68},69,70,71,72,73,74,75,76,77,78,79,80,81,82,83,84,85,86,87,88,89,90,91,92,93,94,95,96,97,98,99,100,101,102,103,104,105,106,107,108,109,110,111,112,113,114,115,116,117,118,119,120,121,122,123,124,125]
["Househould Data (Housing Unit Type)"]
["NAME","TotalHU",{"$f":"\"MOE \"&B107","v":"MOE TotalHU"},"TotalOccHU",{"$f":"\"MOE \"&D107","v":"MOE TotalOccHU"},"TotalOwnerOccUn",{"$f":"\"MOE \"&F107","v":"MOE TotalOwnerOccUn"},"TotalRenterOccn",{"$f":"\"MOE \"&H107","v":"MOE TotalRenterOccn"},"TotalVacantUntis",{"$f":"\"MOE \"&J107","v":"MOE TotalVacantUntis"},"VacantUnitsForRent",{"$f":"\"MOE \"&L107","v":"MOE VacantUnitsForRent"},"VacantUnitRentedNotOcc",{"$f":"\"MOE \"&N107","v":"MOE VacantUnitRentedNotOcc"},"VacantUnitForSale",{"$f":"\"MOE \"&P107","v":"MOE VacantUnitForSale"},"VacantUnitSoldNotOcc",{"$f":"\"MOE \"&R107","v":"MOE VacantUnitSoldNotOcc"},"VacantUnitSeasonalRec",{"$f":"\"MOE \"&T107","v":"MOE VacantUnitSeasonalRec"},"TotalPopInHousingUnits",{"$f":"\"MOE \"&V107","v":"MOE TotalPopInHousingUnits"},"OwnerOccPopHousingUnits",{"$f":"\"MOE \"&X107","v":"MOE OwnerOccPopHousingUnits"},"RenterOccPopHousingUnits",{"$f":"\"MOE \"&Z107","v":"MOE RenterOccPopHousingUnits"},"TotalUntis",{"$f":"\"MOE \"&AB107","v":"MOE TotalUntis"},"TotalOwnerOccUnits",{"$f":"\"MOE \"&AD107","v":"MOE TotalOwnerOccUnits"},"SigFamOwnerOcc",{"$f":"\"MOE \"&AF107","v":"MOE SigFamOwnerOcc"},"MultiFamOwnerOcc",{"$f":"\"MOE \"&AH107","v":"MOE MultiFamOwnerOcc"},"MobileOwnerOcc",{"$f":"\"MOE \"&AJ107","v":"MOE MobileOwnerOcc"},"TotalRenterOccUnits",{"$f":"\"MOE \"&AL107","v":"MOE TotalRenterOccUnits"},"SigFamRenterOcc",{"$f":"\"MOE \"&AN107","v":"MOE SigFamRenterOcc"},"MultiFamRenterOcc",{"$f":"\"MOE \"&AP107","v":"MOE MultiFamRenterOcc"},"MobileRenterOcc",{"$f":"\"MOE \"&AR107","v":"MOE MobileRenterOcc"},"TotalSigFamilyUnits",{"$f":"\"MOE \"&AT107","v":"MOE TotalSigFamilyUnits"},"TotalMultiFamilyUnits",{"$f":"\"MOE \"&AV107","v":"MOE TotalMultiFamilyUnits"},"TotalMobileUnits",{"$f":"\"MOE \"&AX107","v":"MOE TotalMobileUnits"},"YrHouseBuilt2014Later",{"$f":"\"MOE \"&AZ107","v":"MOE YrHouseBuilt2014Later"},"YrHouseBuilt2010-2013",{"$f":"\"MOE \"&BB107","v":"MOE YrHouseBuilt2010-2013"},"YrHouseBuilt2000-2009",{"$f":"\"MOE \"&BD107","v":"MOE YrHouseBuilt2000-2009"},"YrHouseBuilt1990-1999",{"$f":"\"MOE \"&BF107","v":"MOE YrHouseBuilt1990-1999"},"YrHouseBuilt1980-1989",{"$f":"\"MOE \"&BH107","v":"MOE YrHouseBuilt1980-1989"},"YrHouseBuilt1970-1979",{"$f":"\"MOE \"&BJ107","v":"MOE YrHouseBuilt1970-1979"},"YrHouseBuilt1960-1969",{"$f":"\"MOE \"&BL107","v":"MOE YrHouseBuilt1960-1969"},"YrHouseBuilt1950-1959",{"$f":"\"MOE \"&BN107","v":"MOE YrHouseBuilt1950-1959"},"YrHouseBuilt1940-1949",{"$f":"\"MOE \"&BP107","v":"MOE YrHouseBuilt1940-1949"},"YrHouseBuilt1939orEarlier",{"$f":"\"MOE \"&BR107","v":"MOE YrHouseBuilt1939orEarlier"},"NoBedrooms",{"$f":"\"MOE \"&BT107","v":"MOE NoBedrooms"},"1Bedroom",{"$f":"\"MOE \"&BV107","v":"MOE 1Bedroom"},"2Bedroom",{"$f":"\"MOE \"&BX107","v":"MOE 2Bedroom"},"3Bedroom",{"$f":"\"MOE \"&BZ107","v":"MOE 3Bedroom"},"4+Bedroom",{"$f":"\"MOE \"&CB107","v":"MOE 4+Bedroom"}]
[{"$f":"VLOOKUP(DropDownList!$B$47,CntyQryCensus!$A$530:$AY$544,A$1)","v":"Acworth"},587,53,370,51,340,50,30,16,217,39,4,6,0,11,0,11,6,9,192,36,906,134,830,141,76,51,370,51,340,50,324,48,2,27.239676943752471,14,16.278820596099706,30,16,28,16,2,27.110883423451916,0,15.556349186104045,560,51,4,25.099800796022265,23,19.416487838947599,17,12,21,16,51,23,54,19,86,30,75,29,35,18,64,25,14,15,170,35,24,16,64,23,160,37,235,46,104,30.413812651491099,81,79,36,74,28,76,114,30,114,142,91,44,40,134,119,76,105,14,132,142,84,108,151,154,137,30,701,207.10383868967759,300,141.01418368376991,207.27517941133232,197.81304304822774]
[]
["Disability Data"]
["NAME","TotalPop","PCT026001-NonInstPop5yrs+","PCT026002-MaleNonInstPop5yrs+","Male5To15NonInstitPop","Male5To15-NoDisability","Male5To15-1Disability","Male5To15-2orMoreDisabilities","Male16To20-NonInstitutionalPop","Male16To20-NoDisability","Male16To20-1Disability","Male16To20-2orMoreDisabilities","Male21To64-NonInstitutionalPop","Male21To64-NoDisability","Male21To64-1Disability","Male21To64-2orMoreDisabilities","Male65To74-NonInstitutionalPop","Male65To74-NoDisability","Male65To74-1Disability","Male65To74-2orMoreDisabilities","Male75Over-NonInstitutionalPop","Male75Over-NoDisability","Male75Over-1Disability","Male75Over-2orMoreDisabilities","PCT026002-FemaleNonInstPop5yrs+","FemaleNonInstPop5To15NonInstPop","Female5To15-NoDisability","Female5To15-1Disability","Female5To15-2orMoreDisabilities","FemaleNonInstPop16To20NonInstPop","Female16To20-NoDisability","Female16To20-1Disability","Female16To20-2orMoreDisabilities","FemaleNonInstPop21To64NonInstPop","Female21To64-NoDisability","Female21To64-1Disability","Female21To64-2orMoreDisabilities","FemaleNonInstPop65To74NonInstPop","Female65To74-NoDisability","Female65To74-1Disability","Female65To74-2orMoreDisabilities","FemaleNonInstPop75OverNonInstPop","Female75Over-NoDisability","Female75Over-1Disability","Female75Over-2orMoreDisabilities","Male5To15-SensoryDisability","Male16To20-SensoryDisability","Male21To64-SensoryDisability","Male65To74-SensoryDisability","Male75Over-SensoryDisability","Female5To15-SensoryDisability","Female16To20-SensoryDisability","Female21To64-SensoryDisability","Female65To74-SensoryDisability","Female75Over-SensoryDisability","Male5To15-PhysicalDisabil","Male16To20-PhysicalDisabil","Male21To64-PhysicalDisabil","Male65To74-PhysicalDisabil","Male75Over-PhysicalDisabil","Female5To15-PhysicalDisabil","Female16To20-PhysicalDisabil","Female21To64-PhysicalDisabil","Female65To74-PhysicalDisabil","Female75Over-PhysicalDisabil","Male5To15-MentalDisabil","Male16To20-MentalDisabil","Male21To64-MentalDisabil","Male65To74-MentalDisabil","Male75Over-MentalDisabil","Female5To15-MentalDisabil","Female16To20-MentalDisabil","Female21To64-MentalDisabil","Female65To74-MentalDisabil","Female75Over-MentalDisabil","Male5To15-SelfCareDisabil","Male16To20-SelfCareDisabil","Male21To64-SelfCareDisabil","Male65To74-SelfCareDisabil","Male75Over-SelfCareDisabil","Female5To15-SelfCareDisabil","Female16To20-SelfCareDisabil","Female21To64-SelfCareDisabil","Female65To74-SelfCareDisabil","Female75Over-SelfCareDisabil","Male16To20-GoOutsideHomeDisabil","Male21To64-GoOutsideHomeDisabil","Male65To74-GoOutsideHomeDisabil","Male75Over-GoOutsideHomeDisabil","Female16To20-GoOutsideHomeDisabil","Female21To64-GoOutsideHomeDisabil","Female65To74-GoOutsideHomeDisabil","Female75Over-GoOutsideHomeDisabil","Male16To20-EmploymentDisabil","Male21To64-EmploymentDisabil","Female16To20-EmploymentDisabil","Female21To64-EmploymentDisabil"]
[{"$f":"VLOOKUP(DropDownList!$B$47,CntyQryCensus!$A$530:$AY$544,A$1)","v":"Acworth"},906,134,37,19.104973174542799,0,15.556349186104045,37,19.104973174542799,58,29.206163733020468,0,15.556349186104045,58,29.206163733020468,126,45.486261662176638,26,24.596747752497688,100,34.655446902326915,403,66.483080554378645,15,12.529964086141668,388,66.483080554378645,205,49.929950931279713,47,23.345235059857504,158,43.046486500061768,77,26.92582403567252,23,15.524174696260024,54,22.803508501982758,0,15.556349186104045,0,15.556349186104045,9,17.804493814764857,5,12.529964086141668,13,11.704699910719626,13,16.278820596099706,0,15.556349186104045,0,15.556349186104045,9,17.804493814764857,0,15.556349186104045,7,14.866068747318506,0,15.556349186104045,0,15.556349186104045,18,21.95449840010015,8,14.866068747318506,19,15.524174696260024,6,14.866068747318506,0,15.556349186104045,0,15.556349186104045,4,12.083045973594572,32,19.849433241279208,12,10.770329614269007,0,15.556349186104045,9,17.804493814764857,0,15.556349186104045,4,5.6568542494923806,6,14.866068747318506,13,12.649110640673518,3,11.704699910719626,5,12.529964086141668,15,19.416487838947599,0,11,0,11,30,21,11,14,35,20,35,20]
[]
["Househould Income By Age"]
["NAME","TotalHouseholds",{"$f":"\"MOE \"&B115","v":"MOE TotalHouseholds"},"HHInc<10K",{"$f":"\"MOE \"&D115","v":"MOE HHInc<10K"},"HHInc10to15K",{"$f":"\"MOE \"&F115","v":"MOE HHInc10to15K"},"HHInc15to20K",{"$f":"\"MOE \"&H115","v":"MOE HHInc15to20K"},"HHInc20to25K",{"$f":"\"MOE \"&J115","v":"MOE HHInc20to25K"},"HHInc25to30K",{"$f":"\"MOE \"&L115","v":"MOE HHInc25to30K"},"HHInc30to35K",{"$f":"\"MOE \"&N115","v":"MOE HHInc30to35K"},"HHInc35to40K",{"$f":"\"MOE \"&P115","v":"MOE HHInc35to40K"},"HHInc40to45K",{"$f":"\"MOE \"&R115","v":"MOE HHInc40to45K"},"HHInc45to50K",{"$f":"\"MOE \"&T115","v":"MOE HHInc45to50K"},"HHInc50to60K",{"$f":"\"MOE \"&V115","v":"MOE HHInc50to60K"},"HHInc60to75K",{"$f":"\"MOE \"&X115","v":"MOE HHInc60to75K"},"HHInc75to100K",{"$f":"\"MOE \"&Z115","v":"MOE HHInc75to100K"},"HHInc100to125K",{"$f":"\"MOE \"&AB115","v":"MOE HHInc100to125K"},"HHInc125to150K",{"$f":"\"MOE \"&AD115","v":"MOE HHInc125to150K"},"HHInc150to200K",{"$f":"\"MOE \"&AF115","v":"MOE HHInc150to200K"},"HHInc>200K",{"$f":"\"MOE \"&AH115","v":"MOE HHInc>200K"},"TotalHH",{"$f":"\"MOE \"&AJ115","v":"MOE TotalHH"},"HHAgeHHUnder25yrs",{"$f":"\"MOE \"&AL115","v":"MOE HHAgeHHUnder25yrs"},"HHAgeHH<25HHInc<10K",{"$f":"\"MOE \"&AN115","v":"MOE HHAgeHH<25HHInc<10K"},"HHAgeHH<25HHInc10to15K",{"$f":"\"MOE \"&AP115","v":"MOE HHAgeHH<25HHInc10to15K"},"HHAgeHH<25HHInc15to20K",{"$f":"\"MOE \"&AR115","v":"MOE HHAgeHH<25HHInc15to20K"},"HHAgeHH<25HHInc20to25K",{"$f":"\"MOE \"&AT115","v":"MOE HHAgeHH<25HHInc20to25K"},"HHAgeHH<25HHInc25to30K",{"$f":"\"MOE \"&AV115","v":"MOE HHAgeHH<25HHInc25to30K"},"HHAgeHH<25HHInc30to35K",{"$f":"\"MOE \"&AX115","v":"MOE HHAgeHH<25HHInc30to35K"},"HHAgeHH<25HHInc35to40K",{"$f":"\"MOE \"&AZ115","v":"MOE HHAgeHH<25HHInc35to40K"},"HHAgeHH<25HHInc40to45K",{"$f":"\"MOE \"&BB115","v":"MOE HHAgeHH<25HHInc40to45K"},"HHAgeHH<25HHInc45to50K",{"$f":"\"MOE \"&BD115","v":"MOE HHAgeHH<25HHInc45to50K"},"HHAgeHH<25HHInc50to60K",{"$f":"\"MOE \"&BF115","v":"MOE HHAgeHH<25HHInc50to60K"},"HHAgeHH<25HHInc60to75K",{"$f":"\"MOE \"&BH115","v":"MOE HHAgeHH<25HHInc60to75K"},"HHAgeHH<25HHInc75to100K",{"$f":"\"MOE \"&BJ115","v":"MOE HHAgeHH<25HHInc75to100K"},"HHAgeHH<25HHInc100to125K",{"$f":"\"MOE \"&BL115","v":"MOE HHAgeHH<25HHInc100to125K"},"HHAgeHH<25HHInc125to150K",{"$f":"\"MOE \"&BN115","v":"MOE HHAgeHH<25HHInc125to150K"},"HHAgeHH<25HHInc150to200K",{"$f":"\"MOE \"&BP115","v":"MOE HHAgeHH<25HHInc150to200K"},"HHAge<25HHInc>200K",{"$f":"\"MOE \"&BR115","v":"MOE HHAge<25HHInc>200K"},"HHAgeHH25to44yrs",{"$f":"\"MOE \"&BT115","v":"MOE HHAgeHH25to44yrs"},"HHAgeHH25To44yrsHHInc<10K",{"$f":"\"MOE \"&BV115","v":"MOE HHAgeHH25To44yrsHHInc<10K"},"HHAgeHH25To44yrsHHInc10to15K",{"$f":"\"MOE \"&BX115","v":"MOE HHAgeHH25To44yrsHHInc10to15K"},"HHAgeHH25To44yrsHHInc15to20K",{"$f":"\"MOE \"&BZ115","v":"MOE HHAgeHH25To44yrsHHInc15to20K"},"HHAgeHH25To44yrsHHInc20to25K",{"$f":"\"MOE \"&CB115","v":"MOE HHAgeHH25To44yrsHHInc20to25K"},"HHAgeHH25To44yrsHHInc25to30K",{"$f":"\"MOE \"&CD115","v":"MOE HHAgeHH25To44yrsHHInc25to30K"},"HHAgeHH25To44yrsHHInc30to35K",{"$f":"\"MOE \"&CF115","v":"MOE HHAgeHH25To44yrsHHInc30to35K"},"HHAgeHH25To44yrsHHInc35to40K",{"$f":"\"MOE \"&CH115","v":"MOE HHAgeHH25To44yrsHHInc35to40K"},"HHAgeHH25To44yrsHHInc40to45K",{"$f":"\"MOE \"&CJ115","v":"MOE HHAgeHH25To44yrsHHInc40to45K"},"HHAgeHH25To44yrsHHInc45to50K",{"$f":"\"MOE \"&CL115","v":"MOE HHAgeHH25To44yrsHHInc45to50K"},"HHAgeHH25To44yrsHHInc50to60K",{"$f":"\"MOE \"&CN115","v":"MOE HHAgeHH25To44yrsHHInc50to60K"},"HHAgeHH25To44yrsHHInc60to75K",{"$f":"\"MOE \"&CP115","v":"MOE HHAgeHH25To44yrsHHInc60to75K"},"HHAgeHH25To44yrsHHInc75to100K",{"$f":"\"MOE \"&CR115","v":"MOE HHAgeHH25To44yrsHHInc75to100K"},"HHAgeHH25To44yrsHHInc100to125K",{"$f":"\"MOE \"&CT115","v":"MOE HHAgeHH25To44yrsHHInc100to125K"},"HHAgeHH25To44yrsHHInc125to150K",{"$f":"\"MOE \"&CV115","v":"MOE HHAgeHH25To44yrsHHInc125to150K"},"HHAgeHH25To44yrsHHInc150to200K",{"$f":"\"MOE \"&CX115","v":"MOE HHAgeHH25To44yrsHHInc150to200K"},"HHAge25To44yrsHHInc>200K",{"$f":"\"MOE \"&CZ115","v":"MOE HHAge25To44yrsHHInc>200K"},"HHAgeHH45To64yrs",{"$f":"\"MOE \"&DB115","v":"MOE HHAgeHH45To64yrs"},"HHAgeHH45To64yrsHHInc<10K",{"$f":"\"MOE \"&DD115","v":"MOE HHAgeHH45To64yrsHHInc<10K"},"HHAgeHH45To64yrsHHInc10to15K",{"$f":"\"MOE \"&DF115","v":"MOE HHAgeHH45To64yrsHHInc10to15K"},"HHAgeHH45To64yrsHHInc15to20K",{"$f":"\"MOE \"&DH115","v":"MOE HHAgeHH45To64yrsHHInc15to20K"},"HHAgeHH45To64yrsHHInc20to25K",{"$f":"\"MOE \"&DJ115","v":"MOE HHAgeHH45To64yrsHHInc20to25K"},"HHAgeHH45To64yrsHHInc25to30K",{"$f":"\"MOE \"&DL115","v":"MOE HHAgeHH45To64yrsHHInc25to30K"},"HHAgeHH45To64yrsHHInc30to35K",{"$f":"\"MOE \"&DN115","v":"MOE HHAgeHH45To64yrsHHInc30to35K"},"HHAgeHH45To64yrsHHInc35to40K",{"$f":"\"MOE \"&DP115","v":"MOE HHAgeHH45To64yrsHHInc35to40K"},"HHAgeHH45To64yrsHHInc40to45K",{"$f":"\"MOE \"&DR115","v":"MOE HHAgeHH45To64yrsHHInc40to45K"},"HHAgeHH45To64yrsHHInc45to50K",{"$f":"\"MOE \"&DT115","v":"MOE HHAgeHH45To64yrsHHInc45to50K"},"HHAgeHH45To64yrsHHInc50to60K",{"$f":"\"MOE \"&DV115","v":"MOE HHAgeHH45To64yrsHHInc50to60K"},"HHAgeHH45To64yrsHHInc60to75K",{"$f":"\"MOE \"&DX115","v":"MOE HHAgeHH45To64yrsHHInc60to75K"},"HHAgeHH45To64yrsHHInc75to100K",{"$f":"\"MOE \"&DZ115","v":"MOE HHAgeHH45To64yrsHHInc75to100K"},"HHAgeHH45To64yrsHHInc100to125K",{"$f":"\"MOE \"&EB115","v":"MOE HHAgeHH45To64yrsHHInc100to125K"},"HHAgeHH45To64yrsHHInc125to150K",{"$f":"\"MOE \"&ED115","v":"MOE HHAgeHH45To64yrsHHInc125to150K"},"HHAgeHH45To64yrsHHInc150to200K",{"$f":"\"MOE \"&EF115","v":"MOE HHAgeHH45To64yrsHHInc150to200K"},"HHAge45To64yrsHHInc>200K",{"$f":"\"MOE \"&EH115","v":"MOE HHAge45To64yrsHHInc>200K"},"HHAgeHH65yrsorOlder",{"$f":"\"MOE \"&EJ115","v":"MOE HHAgeHH65yrsorOlder"},"HHAgeHH65yrsorOlderHHInc<10K",{"$f":"\"MOE \"&EL115","v":"MOE HHAgeHH65yrsorOlderHHInc<10K"},"HHAgeHH65yrsorOlderHHInc10to15K",{"$f":"\"MOE \"&EN115","v":"MOE HHAgeHH65yrsorOlderHHInc10to15K"},"HHAgeHH65yrsorOlderHHInc15to20K",{"$f":"\"MOE \"&EP115","v":"MOE HHAgeHH65yrsorOlderHHInc15to20K"},"HHAgeHH65yrsorOlderHHInc20to25K",{"$f":"\"MOE \"&ER115","v":"MOE HHAgeHH65yrsorOlderHHInc20to25K"},"HHAgeHH65yrsorOlderHHInc25to30K",{"$f":"\"MOE \"&ET115","v":"MOE HHAgeHH65yrsorOlderHHInc25to30K"},"HHAgeHH65yrsorOlderHHInc30to35K",{"$f":"\"MOE \"&EV115","v":"MOE HHAgeHH65yrsorOlderHHInc30to35K"},"HHAgeHH65yrsorOlderHHInc35to40K",{"$f":"\"MOE \"&EX115","v":"MOE HHAgeHH65yrsorOlderHHInc35to40K"},"HHAgeHH65yrsorOlderHHInc40to45K",{"$f":"\"MOE \"&EZ115","v":"MOE HHAgeHH65yrsorOlderHHInc40to45K"},"HHAgeHH65yrsorOlderHHInc45to50K",{"$f":"\"MOE \"&FB115","v":"MOE HHAgeHH65yrsorOlderHHInc45to50K"},"HHAgeHH65yrsorOlderHHInc50to60K",{"$f":"\"MOE \"&FD115","v":"MOE HHAgeHH65yrsorOlderHHInc50to60K"},"HHAgeHH65yrsorOlderHHInc60to75K",{"$f":"\"MOE \"&FF115","v":"MOE HHAgeHH65yrsorOlderHHInc60to75K"},"HHAgeHH65yrsorOlderHHInc75to100K",{"$f":"\"MOE \"&FH115","v":"MOE HHAgeHH65yrsorOlderHHInc75to100K"},"HHAgeHH65yrsorOlderHHInc100to125K",{"$f":"\"MOE \"&FJ115","v":"MOE HHAgeHH65yrsorOlderHHInc100to125K"},"HHAgeHH65yrsorOlderHHInc125to150K",{"$f":"\"MOE \"&FL115","v":"MOE HHAgeHH65yrsorOlderHHInc125to150K"},"HHAgeHH65yrsorOlderHHInc150to200K",{"$f":"\"MOE \"&FN115","v":"MOE HHAgeHH65yrsorOlderHHInc150to200K"},"HHAge65yrsorOlderHHInc>200K",{"$f":"\"MOE \"&FP115","v":"MOE HHAge65yrsorOlderHHInc>200K"},"MedianHHInc",{"$f":"\"MOE \"&FR115","v":"MOE MedianHHInc"},"HH under 25 years",{"$f":"\"MOE \"&FT115","v":"MOE HH under 25 years"},"Householder 25 to 44 years",{"$f":"\"MOE \"&FV115","v":"MOE Householder 25 to 44 years"},"Householder 45 to 64 years",{"$f":"\"MOE \"&FX115","v":"MOE Householder 45 to 64 years"},"Householder 65 years and over",{"$f":"\"MOE \"&FZ115","v":"MOE Householder 65 years and over"}]
[{"$f":"VLOOKUP(DropDownList!$B$47,CntyQryCensus!$A$530:$AY$544,A$1)","v":"Acworth"},370,51,15,16,6,6,7,6,8,10,20,12,10,8,9,6,19,17,18,11,46,22,51,24,64,32,34,19,28,16,19,13,16,12,370,51,0,11,0,11,0,11,0,11,0,11,0,11,0,11,0,11,0,11,0,11,0,11,0,11,0,11,0,11,0,11,0,11,0,11,53,23,6,10,0,11,0,11,0,11,0,11,2,3,2,3,11,11,2,3,2,3,9,8,5,6,2,3,7,6,3,5,2,3,169,42,9,12,2,3,3,4,0,11,8,10,0,11,0,11,0,11,11,11,13,13,20,18,36,27,23,16,35,35,23,29,21,26,649,117,0,16,30,35,122,86,15,24,67,68,13,21,90,80,32,53,0,16,62,51,110,68,62,51,0,16,0,16,0,16,46,54,68438,8127,"-","**",63250,29245,94375,18057,55000,6509]
[]
["Number of Households by Income"]
["NAME","HHIncLessThn10k",{"$f":"\"MOE \"&B119","v":"MOE HHIncLessThn10k"},"HHInc10to15K",{"$f":"\"MOE \"&D119","v":"MOE HHInc10to15K"},"HHInc15to25K",{"$f":"\"MOE \"&F119","v":"MOE HHInc15to25K"},"HHInc25to35K",{"$f":"\"MOE \"&H119","v":"MOE HHInc25to35K"},"HHInc35to50K",{"$f":"\"MOE \"&J119","v":"MOE HHInc35to50K"},"HHInc50to75K",{"$f":"\"MOE \"&L119","v":"MOE HHInc50to75K"},"HHInc75to100K",{"$f":"\"MOE \"&N119","v":"MOE HHInc75to100K"},"HHInc100to150K",{"$f":"\"MOE \"&P119","v":"MOE HHInc100to150K"},"HHInc150to200K",{"$f":"\"MOE \"&R119","v":"MOE HHInc150to200K"},"HHIncOver200K",{"$f":"\"MOE \"&T119","v":"MOE HHIncOver200K"}]
[{"$f":"VLOOKUP(DropDownList!$B$47,CntyQryCensus!$A$530:$AY$544,A$1)","v":"Acworth"},15,16,6,6,15,11.661903789690601,30,14.422205101855956,46,21.118712081942874,97,32.557641192199412,64,32,62,24.839484696748443,19,13,16,12,null,null,null,null,null,null,null,null,null,null,null,null,null,null,null,null,null,null,null,null,null,null,null,null,null,null,null,null,null,null,null,null,null,null,null,null,null,null,null,null,null,null,null,null,null,null,null,null,null,null,null,null,null,71,144,93,171,118,131,100,66,49,292,122,333,132,307,97,186,97,22,28,12,20,0,16,null,null,null,null,null,null,null,null,null,null,null,null,null,null,"Charlestown",null,"Estimate","Margin Of Error",2310,107,null,null,133,93,71,53,340,130.81666560496029,246,117.00427342623003,368,162.24980739587951,625,179.74426277353055,307,97,208,100.96038827183659,12,20,0,16]
[]
["POVERTY DATA"]
["NAME","TotalPop",{"$f":"\"MOE \"&B123","v":"MOE TotalPop"},"Total Individuals living in Poverty",{"$f":"\"MOE \"&D123","v":"MOE Total Individuals living in Poverty"},"Under 5 yrs.",{"$f":"\"MOE \"&F123","v":"MOE Under 5 yrs."},"5 to 17 yrs.",{"$f":"\"MOE \"&H123","v":"MOE 5 to 17 yrs."},"18 to 64 yrs.",{"$f":"\"MOE \"&J123","v":"MOE 18 to 64 yrs."},"65 to 74 yrs.",{"$f":"\"MOE \"&L123","v":"MOE 65 to 74 yrs."},"75 yrs. & Over",{"$f":"\"MOE \"&N123","v":"MOE 75 yrs. & Over"},"Total Individuals  Not living Poverty",{"$f":"\"MOE \"&P123","v":"MOE Total Individuals  Not living Poverty"},"Under 5 yrs.",{"$f":"\"MOE \"&R123","v":"MOE Under 5 yrs."},"5 to 17 yrs.",{"$f":"\"MOE \"&T123","v":"MOE 5 to 17 yrs."},"18 to 64 yrs.",{"$f":"\"MOE \"&V123","v":"MOE 18 to 64 yrs."},"65 to 74 yrs.",{"$f":"\"MOE \"&X123","v":"MOE 65 to 74 yrs."},"75 yrs. & Over",{"$f":"\"MOE \"&Z123","v":"MOE 75 yrs. & Over"},"Total HH",{"$f":"\"MOE \"&AB123","v":"MOE Total HH"},"Total Households Below Poverty",{"$f":"\"MOE \"&AD123","v":"MOE Total Households Below Poverty"},"Family Households in Poverty",{"$f":"\"MOE \"&AF123","v":"MOE Family Households in Poverty"},"Married Couple Fam HH",{"$f":"\"MOE \"&AH123","v":"MOE Married Couple Fam HH"},"Other Family",{"$f":"\"MOE \"&AJ123","v":"MOE Other Family"},"Male Head of Family HH no wife",{"$f":"\"MOE \"&AL123","v":"MOE Male Head of Family HH no wife"},"Female Head of Family HH no husband",{"$f":"\"MOE \"&AN123","v":"MOE Female Head of Family HH no husband"},"Non-Family HH",{"$f":"\"MOE \"&AP123","v":"MOE Non-Family HH"},"Non-Family Male HH",{"$f":"\"MOE \"&AR123","v":"MOE Non-Family Male HH"},"Non-Family Female HH",{"$f":"\"MOE \"&AT123","v":"MOE Non-Family Female HH"},"Total Households at or Above Poverty",{"$f":"\"MOE \"&AV123","v":"MOE Total Households at or Above Poverty"},"Family Households above Poverty",{"$f":"\"MOE \"&AX123","v":"MOE Family Households above Poverty"},"Married Couple Fam HH",{"$f":"\"MOE \"&AZ123","v":"MOE Married Couple Fam HH"},"Other Family",{"$f":"\"MOE \"&BB123","v":"MOE Other Family"},"Male Head of Family HH no wife",{"$f":"\"MOE \"&BD123","v":"MOE Male Head of Family HH no wife"},"Female Head of Family HH no husband",{"$f":"\"MOE \"&BF123","v":"MOE Female Head of Family HH no husband"},"Non-Family HH",{"$f":"\"MOE \"&BH123","v":"MOE Non-Family HH"},"Non-Family Male HH",{"$f":"\"MOE \"&BJ123","v":"MOE Non-Family Male HH"},"Non-Family Female HH",{"$f":"\"MOE \"&BL123","v":"MOE Non-Family Female HH"},"Married Couple with Children Below Poverty",{"$f":"\"MOE \"&BN123","v":"MOE Married Couple with Children Below Poverty"},"Male HH with children below poverty",{"$f":"\"MOE \"&BP123","v":"MOE Male HH with children below poverty"},"Female HH with children below poverty",{"$f":"\"MOE \"&BR123","v":"MOE Female HH with children below poverty"},"Married Couple with Children At or Above Poverty",{"$f":"\"MOE \"&BT123","v":"MOE Married Couple with Children At or Above Poverty"},"Male HH with children at or above poverty",{"$f":"\"MOE \"&BV123","v":"MOE Male HH with children at or above poverty"},"Female HH with children at or above poverty",{"$f":"\"MOE \"&BX123","v":"MOE Female HH with children at or above poverty"}]
[{"$f":"VLOOKUP(DropDownList!$B$47,CntyQryCensus!$A$530:$AY$544,A$1)","v":"Acworth"},5007,25,753,318,67,86.608313688698502,86,73.525505778607197,506,204.57516955877122,0,22.627416997969522,94,93.776329636001435,4254,317,233,129.1394595001853,466,144.62019222777985,1765,249.47144125129833,433,103.36827366266692,310,91.760557975635692,691,184,342,138,116,70,12,12,226,124,24,32,202,122,349,127,141,77,208,97,4540,294,2823,244,2002,234,821,172,176,79,645,172,1717,247,59,27,31,18,95,60,24,32,154,98,647,155,133,79,420,137,null,null,null,null,null,11,0,11,0,11,0,11,5,5,6,9,2,3,0,11,2,3,876,135,460,79,25,16,0,11,24,16,7,11,9,10,0,11,19,16,56,25,24,12,77,32,93,24,82,27,44,21,416,77,9,9,13,15,14,13,5,6,0,11,9,15,15,11,29,17,57,27,54,24,71,26,112,29,28,14,null,null,null,null,null,null,null,null,null,null,null,null,null,null,"Acworth",null,"Estimate","Margin Of Error",928,135,52,26,0,11.401754250991379,2,31.432467291003423,43,31.511902513177461,3,11.704699910719626,4,4.2426406871192848,876,135,34,18.357559750685819,81,38.665229858362409,495,70.823724838503097,194,39.623225512317902,72,25.238858928247925]
[]
["Household Income By Tenure"]
["NAME","TotalOccHU",{"$f":"\"MOE \"&B127","v":"MOE TotalOccHU"},"OwnOccHU",{"$f":"\"MOE \"&D127","v":"MOE OwnOccHU"},"OOHUInc<5K",{"$f":"\"MOE \"&F127","v":"MOE OOHUInc<5K"},"OOHUInc5to10K",{"$f":"\"MOE \"&H127","v":"MOE OOHUInc5to10K"},"OOHUInc10to15K",{"$f":"\"MOE \"&J127","v":"MOE OOHUInc10to15K"},"OOHUInc15to20K",{"$f":"\"MOE \"&L127","v":"MOE OOHUInc15to20K"},"OOHUInc20to25K",{"$f":"\"MOE \"&N127","v":"MOE OOHUInc20to25K"},"OOHUInc25to35K",{"$f":"\"MOE \"&P127","v":"MOE OOHUInc25to35K"},"OOHUInc35to50K",{"$f":"\"MOE \"&R127","v":"MOE OOHUInc35to50K"},"OOHUInc50to75K",{"$f":"\"MOE \"&T127","v":"MOE OOHUInc50to75K"},"OOHUInc75to100K",{"$f":"\"MOE \"&V127","v":"MOE OOHUInc75to100K"},"OOHUInc100to150K",{"$f":"\"MOE \"&X127","v":"MOE OOHUInc100to150K"},"OOHUInc>150K",{"$f":"\"MOE \"&Z127","v":"MOE OOHUInc>150K"},"RentOccHU",{"$f":"\"MOE \"&AB127","v":"MOE RentOccHU"},"ROHUInc<5K",{"$f":"\"MOE \"&AD127","v":"MOE ROHUInc<5K"},"ROHUInc5to10K",{"$f":"\"MOE \"&AF127","v":"MOE ROHUInc5to10K"},"ROHUInc10to15K",{"$f":"\"MOE \"&AH127","v":"MOE ROHUInc10to15K"},"ROHUInc15to20K",{"$f":"\"MOE \"&AJ127","v":"MOE ROHUInc15to20K"},"ROHUInc20to25K",{"$f":"\"MOE \"&AL127","v":"MOE ROHUInc20to25K"},"ROHUInc25to35K",{"$f":"\"MOE \"&AN127","v":"MOE ROHUInc25to35K"},"ROHUInc35to50K",{"$f":"\"MOE \"&AP127","v":"MOE ROHUInc35to50K"},"ROHUInc50to75K",{"$f":"\"MOE \"&AR127","v":"MOE ROHUInc50to75K"},"ROHUInc75to100K",{"$f":"\"MOE \"&AT127","v":"MOE ROHUInc75to100K"},"ROHUInc100to150K",{"$f":"\"MOE \"&AV127","v":"MOE ROHUInc100to150K"},"ROHUInc>150K",{"$f":"\"MOE \"&AX127","v":"MOE ROHUInc>150K"},"Total OCC HUInc<5K",{"$f":"\"MOE \"&AZ127","v":"MOE Total OCC HUInc<5K"},"Total OCC HUInc5to10K",{"$f":"\"MOE \"&BB127","v":"MOE Total OCC HUInc5to10K"},"Total OCC HUInc10to15K",{"$f":"\"MOE \"&BD127","v":"MOE Total OCC HUInc10to15K"},"Total OCC HUInc15to20K",{"$f":"\"MOE \"&BF127","v":"MOE Total OCC HUInc15to20K"},"Total OCC HUInc20to25K",{"$f":"\"MOE \"&BH127","v":"MOE Total OCC HUInc20to25K"},"Total OCC HUInc25to35K",{"$f":"\"MOE \"&BJ127","v":"MOE Total OCC HUInc25to35K"},"Total OCC HUInc35to50K",{"$f":"\"MOE \"&BL127","v":"MOE Total OCC HUInc35to50K"},"Total OCC HUInc50to75K",{"$f":"\"MOE \"&BN127","v":"MOE Total OCC HUInc50to75K"},"Total OCC HUInc75to100K",{"$f":"\"MOE \"&BP127","v":"MOE Total OCC HUInc75to100K"},"Total OCC HUInc100to150K",{"$f":"\"MOE \"&BR127","v":"MOE Total OCC HUInc100to150K"},"Total OCC HUInc>150K",{"$f":"\"MOE \"&BT127","v":"MOE Total OCC HUInc>150K"},"MedHHInc",{"$f":"\"MOE \"&BV127","v":"MOE MedHHInc"},"MedOwnOccHHInc",{"$f":"\"MOE \"&BX127","v":"MOE MedOwnOccHHInc"},"MedRentOccHHInc",{"$f":"\"MOE \"&BZ127","v":"MOE MedRentOccHHInc"}]
[{"$f":"VLOOKUP(DropDownList!$B$47,CntyQryCensus!$A$530:$AY$544,A$1)","v":"Acworth"},370,51,340,50,9,12,0,11,6,6,7,6,8,10,28,14,40,19,89,29,59,34,62,21,32,17,30,16,6,10,0,11,0,11,0,11,0,11,2,3,6,5,8,10,5,6,0,11,3,5,15,15.620499351813308,0,15.556349186104045,6,12.529964086141668,7,12.529964086141668,8,14.866068747318506,30,14.317821063276353,46,19.646882704388499,97,30.675723300355934,64,34.525353003264136,62,23.706539182259394,35,17.720045146669349,68438,8127,70500,7922,51250,15306]
[]
["Population Data"]
["NAME","Total Population","MOE Total Population","Under 15 Years","MOE Under 15 yrs.","15 to 24 yrs.","MOE 15 to 24 yrs.","25 to 34 yrs.","MOE 25 to 34 yrs.","35 to 44 yrs.","MOE 35 to 44 yrs.","45 to 54 yrs.","MOE 45 to 54 yrs.","55 to 64 yrs.","MOE 55 to 64 yrs.","65 to 74 yrs.","MOE 65 to 74 yrs.","Over 74 yrs. ","MOE Over 74 yrs. ","TotalHH","MOE TotalHH","FamilyHH","MOE FamilyHH","MarriedFamilyHH","MOE MarriedFamilyHH","SingleFamilyHH","MOE SingleFamilyHH","Sfamily-MaleHH","MOE Sfamily-MaleHH","Sfamily-FemaleHH","MOE Sfamily-FemaleHH","NonFamilyHH","MOE NonFamilyHH","NonFamilyHH-LivingAlone","MOE NonFamilyHH-LivingAlone","NonFamilyHH-NotLivingAlone","MOE NonFamilyHH-NotLivingAlone","PopRaceWhite","MOE PopRaceWhite","PopRaceBlack","MOE PopRaceBlack","PopRaceAmerican Indian","MOE PopRaceAmerican Indian","PopRaceAsian &Pacific Is.","MOE PopRaceAsian &Pacific Is.","PopRaceOther*","MOE PopRaceOther*","PopRaceHispanic or Latino:","MOE PopRaceHispanic or Latino:","MedianAgeTotalPop","MOE MedianAgeTotalPop","MedianAgeMale","MOE MedianAgeMale","MedianAgeFemale","MOE MedianAgeFemale","AvgHHSizeTotal","MOE AvgHHSizeTotal","AvgHHSizeFamilyHH","MOE AvgHHSizeFamilyHH","AvgHHSizeNonFamilyHH","MOE AvgHHSizeNonFamilyHH"]
[{"$f":"VLOOKUP(DropDownList!$B$47,CntyQryCensus!$A$530:$AY$544,A$1)","v":"Acworth"},906,134,84,27.892651361962706,42,30.659419433511783,95,34.899856733230294,76,30.364452901377952,118,41.71330722922842,209,48.559242168715933,205,47.47630988187688,77,26.19160170741759,370,51,255,43,218,40,37,19,23,14,14,12,115,28,89,25,26,16,861,131,0,11,0,11,8,16.278820596099706,23,27.313000567495326,14,14,57.1,2.8,56.2,3.2,57.6,3.2,2.4486486486486485,0.21,2.9137254901960783,0.69682239429197579,1.4173913043478261,0.58977131949376993,null,null,null,null,null,null,null,null,null,null,null,null,null,null,null,null,null,null,null,33,160,112,164,81,200,109,64,70,127,82,116,79,190,121,116,81,181,91,117,75,55,49,139,96,91,59,73,63,84,72,null,null,null,null,null,null,null,null,null,null,null,null,null,null,null,null,null,null,null,null,null,null,null,null,null,null,null,null,null,null,null,null,null,null,"Charlestown",null,"Estimate","Margin Of Error",5019,17,1004,224.53062151964929,304,132.66876045248935,631,193.38303958723992,568,187.2378166931029,540,178.95809565370325,974,226.13933757752099,547,174.43623476789449,451,158.43295111813072]
[]
["Nativity and Prior Place of Residence"]
["NAME","TotalPop",{"$f":"\"MOE \"&B135","v":"MOE TotalPop"},"Native:",{"$f":"\"MOE \"&D135","v":"MOE Native:"},"NatBornInStateOfResidence",{"$f":"\"MOE \"&F135","v":"MOE NatBornInStateOfResidence"},"Born in other state in the United States:",{"$f":"\"MOE \"&H135","v":"MOE Born in other state in the United States:"},"Northeast",{"$f":"\"MOE \"&J135","v":"MOE Northeast"},"Midwest",{"$f":"\"MOE \"&L135","v":"MOE Midwest"},"South",{"$f":"\"MOE \"&N135","v":"MOE South"},"West",{"$f":"\"MOE \"&P135","v":"MOE West"},"Born outside the United States:",{"$f":"\"MOE \"&R135","v":"MOE Born outside the United States:"},"Puerto Rico",{"$f":"\"MOE \"&T135","v":"MOE Puerto Rico"},"U.S. Island Areas",{"$f":"\"MOE \"&V135","v":"MOE U.S. Island Areas"},"Born abroad of American parent(s)",{"$f":"\"MOE \"&X135","v":"MOE Born abroad of American parent(s)"},"Foreign born:",{"$f":"\"MOE \"&Z135","v":"MOE Foreign born:"},"Naturalized U.S. citizen",{"$f":"\"MOE \"&AB135","v":"MOE Naturalized U.S. citizen"},"Not a U.S. citizen",{"$f":"\"MOE \"&AD135","v":"MOE Not a U.S. citizen"},"CurrentResidenceTotal:",{"$f":"\"MOE \"&AF135","v":"MOE CurrentResidenceTotal:"},"SameHouse:",{"$f":"\"MOE \"&AH135","v":"MOE SameHouse:"},"DifferentHouse:",{"$f":"\"MOE \"&AJ135","v":"MOE DifferentHouse:"},"DiffHouseInNH",{"$f":"\"MOE \"&AL135","v":"MOE DiffHouseInNH"},"DiffHouseInNHSameCnty",{"$f":"\"MOE \"&AN135","v":"MOE DiffHouseInNHSameCnty"},"DiffHouseInNHDiffCnty",{"$f":"\"MOE \"&AP135","v":"MOE DiffHouseInNHDiffCnty"},"DiffHouseInDiffState",{"$f":"\"MOE \"&AR135","v":"MOE DiffHouseInDiffState"},"DiffHouseInElsewhere",{"$f":"\"MOE \"&AT135","v":"MOE DiffHouseInElsewhere"}]
[{"$f":"VLOOKUP(DropDownList!$B$47,CntyQryCensus!$A$530:$AY$544,A$1)","v":"Acworth"},12977,23,12478,177,7149,509,5181,523,4059,525,322,128,414,144,386,161,148,103,1,4,0,18,147,103,499,172,365,141,134,99,12884,63,11029,576,1855,573.8092017386964,1543,547.75268141744414,1452,537,91,108,312,170]
[]
["School Enrollment - Education"]
["NAME","Total Pop 3 Years and Older","MOE Total Pop 3 Years and Older","SchEnrlPop3yrOver",{"$f":"\"MOE \"&D139","v":"MOE SchEnrlPop3yrOver"},"TotalEnrollNursy&Kinder",{"$f":"\"MOE \"&F139","v":"MOE TotalEnrollNursy&Kinder"},"NurserSchEnrl",{"$f":"\"MOE \"&H139","v":"MOE NurserSchEnrl"},"KinderSchEnrl",{"$f":"\"MOE \"&J139","v":"MOE KinderSchEnrl"},"ElemSchEnrl (1-8)",{"$f":"\"MOE \"&L139","v":"MOE ElemSchEnrl (1-8)"},"HighSchEnrl(9-12)",{"$f":"\"MOE \"&N139","v":"MOE HighSchEnrl(9-12)"},"TotalElementry&HSEnroll",{"$f":"\"MOE \"&P139","v":"MOE TotalElementry&HSEnroll"},"CollGradSchEnrl",{"$f":"\"MOE \"&R139","v":"MOE CollGradSchEnrl"},"PopNotEnrolled","MOE PopNotEnrolled","Pop25yrsOver",{"$f":"\"MOE \"&V139","v":"MOE Pop25yrsOver"},"EduAtain<9grd",{"$f":"\"MOE \"&X139","v":"MOE EduAtain<9grd"},"EduAtainHSnoDip",{"$f":"\"MOE \"&Z139","v":"MOE EduAtainHSnoDip"},"EduAtainHSgrad",{"$f":"\"MOE \"&AB139","v":"MOE EduAtainHSgrad"},"EduAtainCollNoDeg",{"$f":"\"MOE \"&AD139","v":"MOE EduAtainCollNoDeg"},"EduAtainAssocDeg",{"$f":"\"MOE \"&AF139","v":"MOE EduAtainAssocDeg"},"EduAtainBachDeg",{"$f":"\"MOE \"&AH139","v":"MOE EduAtainBachDeg"},"EduAtainGradProfDeg",{"$f":"\"MOE \"&AJ139","v":"MOE EduAtainGradProfDeg"}]
[{"$f":"VLOOKUP(DropDownList!$B$47,CntyQryCensus!$A$530:$AY$544,A$1)","v":"Acworth"},4916,91,742,212,113,99.126182212370111,33,51,80,85,443,143.17821063276352,161,103,604,176.37743619862491,25,28.844410203711913,4174,221,3856,202,0,39.191835884530846,332,168.38942959699102,1885,308.05843601498725,610,183.76343488300387,392,132.13629327327143,447,143.12232530251876,190,118.04660096758398]
[]
["Occupied Owner Housing Value"]
["NAME","OwnerOccHU","MOE OwnerOccHU","AllOOHU<10k","MOE AllOOHU<10k","AllOOHU10to15k","MOE AllOOHU10to15k","AllOOHU15to20k","MOE AllOOHU15to20k","AllOOHU20to25k","MOE AllOOHU20to25k","AllOOHU25to30k","MOE AllOOHU25to30k","AllOOHU30to35k","MOE AllOOHU30to35k","AllOOHU35to40k","MOE AllOOHU35to40k","AllOOHU40to50k","MOE AllOOHU40to50k","AllOOHU50to60k","MOE AllOOHU50to60k","AllOOHU60to70k","MOE AllOOHU60to70k","AllOOHU70to80k","MOE AllOOHU70to80k","AllOOHU80to90k","MOE AllOOHU80to90k","AllOOHU90to100k","MOE AllOOHU90to100k","AllOOHU100to125k","MOE AllOOHU100to125k","AllOOHU125to150k","MOE AllOOHU125to150k","AllOOHU150to175k","MOE AllOOHU150to175k","AllOOHU175to200k","MOE AllOOHU175to200k","AllOOHU200to250k","MOE AllOOHU200to250k","AllOOHU250to300k","MOE AllOOHU250to300k","AllOOHU300to400k","MOE AllOOHU300to400k","AllOOHU400to500k","MOE AllOOHU400to500k","AllOOHU500to750k","MOE AllOOHU500to750k","AllOOHU750to1000k","MOE AllOOHU750to1000k","AllOOHU1000kmore","MOE AllOOHU1000kmore","MedianOwnOCCHomeValue","MOE MedianOwnOCCHomeValue","OnwerOccHsU","MOE OnwerOccHsU","OwnerCosts>20PctHHInc","MOE OwnerCosts>20PctHHInc","OwnerCosts20to29.9PctHHInc","MOE OwnerCosts20to29.9PctHHInc","OwnerCosts<30PctHHInc","MOE OwnerCosts<30PctHHInc","OwnerCosts>30PctHHInc","MOE OwnerCosts>30PctHHInc","OwnerCosts30to34.9PctHHInc","MOE OwnerCosts30to34.9PctHHInc","OwnerCosts<35PctHHInc","MOE OwnerCosts<35PctHHInc","OwnerCosts>35PctHHInc","MOE OwnerCosts>35PctHHInc","OwnerCosts>50PctHHInc","MOE OwnerCosts>50PctHHInc","OwnerCostsPctNotcomputed","MOE OwnerCostsPctNotcomputed","OwnerOHUHhInc<20k","MOE OwnerOHUHhInc<20k","OwnerOHUHhInc<20kHCosts<20pct","MOE OwnerOHUHhInc<20kHCosts<20pct","OwnerOHUHhInc<20kHCosts20to29pct","MOE OwnerOHUHhInc<20kHCosts20to29pct","OwnerOHUHhInc>20kHCosts30pct","MOE OwnerOHUHhInc>20kHCosts30pct","OwnerOHUHhInc20kTo34999","MOE OwnerOHUHhInc20kTo34999","OwnerOHUHhInc20kTo34999HCosts<20pct","MOE OwnerOHUHhInc20kTo34999HCosts<20pct","OwnerOHUHhInc20kTo34999HCosts20to29pct","MOE OwnerOHUHhInc20kTo34999HCosts20to29pct","OwnerOHUHhInc20kTo34999HCosts30pct","MOE OwnerOHUHhInc20kTo34999HCosts30pct","OwnerOHUHhInc35kTo49999","MOE OwnerOHUHhInc35kTo49999","OwnerOHUHhInc35kTo49999HCosts<20pct","MOE OwnerOHUHhInc35kTo49999HCosts<20pct","OwnerOHUHhInc35kTo49999HCosts20to29pct","MOE OwnerOHUHhInc35kTo49999HCosts20to29pct","OwnerOHUHhInc35kTo49999HCosts30pct","MOE OwnerOHUHhInc35kTo49999HCosts30pct","OwnerOHUHhInc50kTo74999","MOE OwnerOHUHhInc50kTo74999","OwnerOHUHhInc50kTo74999HCosts<20pct","MOE OwnerOHUHhInc50kTo74999HCosts<20pct","OwnerOHUHhInc50kTo74999HCosts20to29pct","MOE OwnerOHUHhInc50kTo74999HCosts20to29pct","OwnerOHUHhInc50kTo74999HCosts30pct","MOE OwnerOHUHhInc50kTo74999HCosts30pct","OwnerOHUHhInc>75000","MOE OwnerOHUHhInc>75000","OwnerOHUHhInc>75000HCosts<20pct","MOE OwnerOHUHhInc>75000HCosts<20pct","OwnerOHUHhInc>75000HCosts20to29pct","MOE OwnerOHUHhInc>75000HCosts20to29pct","OwnerOHUHhInc>75000HCosts30pct","MOE OwnerOHUHhInc>75000HCosts30pct","ZeroOrNegativeIncome","MOE ZeroOrNegativeIncome"]
[{"$f":"VLOOKUP(DropDownList!$B$47,CntyQryCensus!$A$530:$AY$544,A$1)","v":"Acworth"},340,50,0,11,3,4,2,3,0,11,0,11,0,11,0,11,7,11,0,11,6,5,8,10,5,5,5,5,47,24,25,14,58,23,25,17,44,23,47,21,21,16,26,19,7,6,2,3,2,3,0,11,0,11,179000,24139,340,50,187,45.912961132995989,70,25.709920264364882,257,52.621288467691478,76,26.172504656604801,19,13,276,54.203320931470607,57,22.715633383201094,13,9.4868329805051381,7,15.556349186104045,15,8,3,4,2,3,10,7,36,17,2,3,8,7,26,16,40,19,12,11,12,12,16,14,89,29,52,22,24,18,13,9,153,38,118,32,24,13,11,12,7,11]
[]
["Occupied Rental Housing Value"]
["NAME","Estimate; Total:","Margin of Error; Total:","Estimate; Total: - Less than $10,000","Margin of Error; Total: - Less than $10,000","Estimate; Total: - $10,000 to $14,999","Margin of Error; Total: - $10,000 to $14,999","Estimate; Total: - $15,000 to $19,999","Margin of Error; Total: - $15,000 to $19,999","Estimate; Total: - $20,000 to $24,999","Margin of Error; Total: - $20,000 to $24,999","Estimate; Total: - $25,000 to $29,999","Margin of Error; Total: - $25,000 to $29,999","Estimate; Total: - $30,000 to $34,999","Margin of Error; Total: - $30,000 to $34,999","Estimate; Total: - $35,000 to $39,999","Margin of Error; Total: - $35,000 to $39,999","Estimate; Total: - $40,000 to $49,999","Margin of Error; Total: - $40,000 to $49,999","Estimate; Total: - $50,000 to $59,999","Margin of Error; Total: - $50,000 to $59,999","Estimate; Total: - $60,000 to $69,999","Margin of Error; Total: - $60,000 to $69,999","Estimate; Total: - $70,000 to $79,999","Margin of Error; Total: - $70,000 to $79,999","Estimate; Total: - $80,000 to $89,999","Margin of Error; Total: - $80,000 to $89,999","Estimate; Total: - $90,000 to $99,999","Margin of Error; Total: - $90,000 to $99,999","Estimate; Total: - $100,000 to $124,999","Margin of Error; Total: - $100,000 to $124,999","Estimate; Total: - $125,000 to $149,999","Margin of Error; Total: - $125,000 to $149,999","Estimate; Total: - $150,000 to $174,999","Margin of Error; Total: - $150,000 to $174,999","Estimate; Total: - $175,000 to $199,999","Margin of Error; Total: - $175,000 to $199,999","Estimate; Total: - $200,000 to $249,999","Margin of Error; Total: - $200,000 to $249,999","Estimate; Total: - $250,000 to $299,999","Margin of Error; Total: - $250,000 to $299,999","Estimate; Total: - $300,000 to $399,999","Margin of Error; Total: - $300,000 to $399,999","Estimate; Total: - $400,000 to $499,999","Margin of Error; Total: - $400,000 to $499,999","Estimate; Total: - $500,000 to $749,999","Margin of Error; Total: - $500,000 to $749,999","Estimate; Total: - $750,000 to $999,999","Margin of Error; Total: - $750,000 to $999,999","Estimate; Total: - $1,000,000 to $1,499,999","Margin of Error; Total: - $1,000,000 to $1,499,999","Estimate; Total: - $1,500,000 to $1,999,999","Margin of Error; Total: - $1,500,000 to $1,999,999","Estimate; Total: - $2,000,000 or more","Margin of Error; Total: - $2,000,000 or more","MedianOwnOCCHomeValue","MOE MedianOwnOCCHomeValue","OnwerOccHsU","MOE OnwerOccHsU","OwnerCosts>20PctHHInc","MOE OwnerCosts>20PctHHInc","OwnerCosts20to29.9PctHHInc","MOE OwnerCosts20to29.9PctHHInc","OwnerCosts<30PctHHInc","MOE OwnerCosts<30PctHHInc","OwnerCosts>30PctHHInc","MOE OwnerCosts>30PctHHInc","OwnerCosts30to34.9PctHHInc","MOE OwnerCosts30to34.9PctHHInc","OwnerCosts<35PctHHInc","MOE OwnerCosts<35PctHHInc","OwnerCosts>35PctHHInc","MOE OwnerCosts>35PctHHInc","OwnerCosts>50PctHHInc","MOE OwnerCosts>50PctHHInc","OwnerCostsPctNotcomputed","MOE OwnerCostsPctNotcomputed","OwnerOHUHhInc<20k","MOE OwnerOHUHhInc<20k","OwnerOHUHhInc<20kHCosts<20pct","MOE OwnerOHUHhInc<20kHCosts<20pct","OwnerOHUHhInc<20kHCosts20to29pct","MOE OwnerOHUHhInc<20kHCosts20to29pct","OwnerOHUHhInc>20kHCosts30pct","MOE OwnerOHUHhInc>20kHCosts30pct","OwnerOHUHhInc20kTo34999","MOE OwnerOHUHhInc20kTo34999","OwnerOHUHhInc20kTo34999HCosts<20pct","MOE OwnerOHUHhInc20kTo34999HCosts<20pct","OwnerOHUHhInc20kTo34999HCosts20to29pct","MOE OwnerOHUHhInc20kTo34999HCosts20to29pct","OwnerOHUHhInc20kTo34999HCosts30pct","MOE OwnerOHUHhInc20kTo34999HCosts30pct","OwnerOHUHhInc35kTo49999","MOE OwnerOHUHhInc35kTo49999","OwnerOHUHhInc35kTo49999HCosts<20pct","MOE OwnerOHUHhInc35kTo49999HCosts<20pct","OwnerOHUHhInc35kTo49999HCosts20to29pct","MOE OwnerOHUHhInc35kTo49999HCosts20to29pct","OwnerOHUHhInc35kTo49999HCosts30pct","MOE OwnerOHUHhInc35kTo49999HCosts30pct","OwnerOHUHhInc50kTo74999","MOE OwnerOHUHhInc50kTo74999","OwnerOHUHhInc50kTo74999HCosts<20pct","MOE OwnerOHUHhInc50kTo74999HCosts<20pct","OwnerOHUHhInc50kTo74999HCosts20to29pct","MOE OwnerOHUHhInc50kTo74999HCosts20to29pct","OwnerOHUHhInc50kTo74999HCosts30pct","MOE OwnerOHUHhInc50kTo74999HCosts30pct","OwnerOHUHhInc>75000","MOE OwnerOHUHhInc>75000","OwnerOHUHhInc>75000HCosts<20pct","MOE OwnerOHUHhInc>75000HCosts<20pct","OwnerOHUHhInc>75000HCosts20to29pct","MOE OwnerOHUHhInc>75000HCosts20to29pct","OwnerOHUHhInc>75000HCosts30pct","MOE OwnerOHUHhInc>75000HCosts30pct","ZeroOrNegativeIncome","MOE ZeroOrNegativeIncome"]
[null,2310,288,2302,287,7,11,0,18,24,28,73,46,24,32,97,74,68,59,0,18,8,13,34,33,42,47,38,34,87,62,99,81,62,48,224,93,321,140,871,230,159,90,56,48,8,12,0,18,0,18,0,18,8,12,982,48,2310,288,216,116,7,11,0,18,15,24,27,32,0,18,0,18,71,53,96,86,373,101,19,22,24,29,52,64,50,38,12,18,38,45,178,93,0,18,627,199,38,40,20,24,34,33,57,63,63,56,189,94,218,133,8,12,435,157,25,29,123,76,117,68,86,87,84,71,0,18,0,18,0,18,311,115,6,9,0,11,9,12,0,11,0,11,0,11,0,11,0,11,2,4,0,11,0,11,0,11,0,11,0,11,0,11,0,11,2,4,6,10,6,10,0,11,0,11,0,11,0,11,0,11,0,11,0,11,0,11,0,11,0,11,0,11,0,11,0,11,2,3,9,11,10,13,6,10,6,9,7,10,0,11,2,4,null,null,null,null,null,null,null,null,null,null,null,null,null,null,null,null,null,null,null,null,"Croydon",null,"Estimate","Margin Of Error",980,297,null,null,null,null,null,null,null,null,null,null,null,null,null,null,null,null,null,null,null,null,null,null,null,null,null,null,null,null,null,null,null,null,null,null,null,null,null,null,null,null,null,null,null,null,null,null,null,null,null,null,null,null,null,null,null,null,null,null,null,null,null,null,null,null,null,null,null,null,null,null,null,null,null,null,null,null,null,null,null,null,null,null,null,null,null,null,null,null,null,null,null,null,null,null,null,null,null,null,null,null,null,null,null,null,null,null,null,null,null,null,null,null,null,null,null,null,null,null,null,null,null,null,null,null,null,null,null,null,null,null,null,null,"Croydon",null,"Estimate","Margin Of Error",54,36,41,29,0,114,0,114,0,114,0,114,0,114,0,114,0,114,0,114,0,114,0,114,3,5,0,114,0,114,10,17,0,114,4,6,7,12,10,15,7,12,0,114,0,114,13,16,null,null,null,null,null,null,null,null,null,null,null,null,null,null,null,null,null,null,null,null,"Croydon",null,"Estimate","Margin Of Error",950,278]
[]
[]
[]
[]
[]
["Occupied Rental Housing Cost Burdern All Incomes"]
["NAME","RntrOccHU","MOE RntrOccHU","RntrOccHUwRent","MOE RntrOccHUwRent","ROHUGRent<100","MOE ROHUGRent<100","ROHUGRent100to149","MOE ROHUGRent100to149","ROHUGRent150to199","MOE ROHUGRent150to199","ROHUGRent200to249","MOE ROHUGRent200to249","ROHUGRent250to299","MOE ROHUGRent250to299","ROHUGRent300to349","MOE ROHUGRent300to349","ROHUGRent350to399","MOE ROHUGRent350to399","ROHUGRent400to449","MOE ROHUGRent400to449","ROHUGRent450to499","MOE ROHUGRent450to499","ROHUGRent500to549","MOE ROHUGRent500to549","ROHUGRent550to599","MOE ROHUGRent550to599","ROHUGRent600to649","MOE ROHUGRent600to649","ROHUGRent650to699","MOE ROHUGRent650to699","ROHUGRent700to749","MOE ROHUGRent700to749","ROHUGRent750to799","MOE ROHUGRent750to799","ROHUGRent800to899","MOE ROHUGRent800to899","ROHUGRent900to999","MOE ROHUGRent900to999","ROHUGRent1000to1249","MOE ROHUGRent1000to1249","ROHUGRent1250to1499","MOE ROHUGRent1250to1499","ROHUGRent1500to1999","MOE ROHUGRent1500to1999","ROHUGRent2000-2499","MOE ROHUGRent2000-2499","ROHUGRent2500-2999","MOE ROHUGRent2500-2999","ROHUGRent3000-3499","MOE ROHUGRent3000-3499","ROHUGRent3500<","MOE ROHUGRent3500<","ROHUNoGRent","MOE ROHUNoGRent","MedianGrossRnt","MOE MedianGrossRnt","H73RenterOccHU","MOE H73RenterOccHU","H73ROHUHhInc<10k","MOE H73ROHUHhInc<10k","H73ROHUHhInc<10kRnt<20pct","MOE H73ROHUHhInc<10kRnt<20pct","H73ROHUHhInc<10kRnt20to25pct","MOE H73ROHUHhInc<10kRnt20to25pct","H73ROHUHhInc<10kRnt25to30pct","MOE H73ROHUHhInc<10kRnt25to30pct","H73ROHUHhInc<10kRnt30to35pct","MOE H73ROHUHhInc<10kRnt30to35pct","H73ROHUHhInc<10kRnt35to39.9","MOE H73ROHUHhInc<10kRnt35to39.9","H73ROHUHhInc<10kRnt40to49.9","MOE H73ROHUHhInc<10kRnt40to49.9","H73ROHUHhInc<10kRnt>50pct","MOE H73ROHUHhInc<10kRnt>50pct","H73ROHUHhInc<10kPctNotComput","MOE H73ROHUHhInc<10kPctNotComput","H73ROHUHhInc10to20k","MOE H73ROHUHhInc10to20k","H73ROHUHhInc10to20kRnt<20pct","MOE H73ROHUHhInc10to20kRnt<20pct","H73ROHUHhInc10to20kRnt20to25pct","MOE H73ROHUHhInc10to20kRnt20to25pct","H73ROHUHhInc10to20kRnt25to30pct","MOE H73ROHUHhInc10to20kRnt25to30pct","H73ROHUHhInc10to20kRnt30to35pct","MOE H73ROHUHhInc10to20kRnt30to35pct","H73ROHUHhInc10to20kRnt35to39.9","MOE H73ROHUHhInc10to20kRnt35to39.9","H73ROHUHhInc10to20kRnt40to49.9","MOE H73ROHUHhInc10to20kRnt40to49.9","H73ROHUHhInc10to20kRnt>50pct","MOE H73ROHUHhInc10to20kRnt>50pct","H73ROHUHhInc10to20kRntPctNC","MOE H73ROHUHhInc10to20kRntPctNC","H73ROHUHhInc20to34.9k","MOE H73ROHUHhInc20to34.9k","H73ROHUHhInc20to34.9kRnt<20pct","MOE H73ROHUHhInc20to34.9kRnt<20pct","H73ROHUHhInc20to34.9kRnt20to25pct","MOE H73ROHUHhInc20to34.9kRnt20to25pct","H73ROHUHhInc20to34.9kRnt25to30pct","MOE H73ROHUHhInc20to34.9kRnt25to30pct","H73ROHUHhInc20to34.9kRnt30to35pct","MOE H73ROHUHhInc20to34.9kRnt30to35pct","H73ROHUHhInc20to34.9kRnt35to39.9","MOE H73ROHUHhInc20to34.9kRnt35to39.9","H73ROHUHhInc20to34.9kRnt40to49.9","MOE H73ROHUHhInc20to34.9kRnt40to49.9","H73ROHUHhInc20to34.9kRnt>50pct","MOE H73ROHUHhInc20to34.9kRnt>50pct","H73ROHUHhInc20to34.9kRntPctNC","MOE H73ROHUHhInc20to34.9kRntPctNC","H73ROHUHhInc35to49.9k","MOE H73ROHUHhInc35to49.9k","H73ROHUHhInc35to49.9kRnt<20pct","MOE H73ROHUHhInc35to49.9kRnt<20pct","H73ROHUHhInc35to49.9kRnt20to25pct","MOE H73ROHUHhInc35to49.9kRnt20to25pct","H73ROHUHhInc35to49.9kRnt25to30pct","MOE H73ROHUHhInc35to49.9kRnt25to30pct","H73ROHUHhInc35to49.9kRnt30to35pct","MOE H73ROHUHhInc35to49.9kRnt30to35pct","H73ROHUHhInc35to49.9kRnt35to39.9","MOE H73ROHUHhInc35to49.9kRnt35to39.9","H73ROHUHhInc35to49.9kRnt40to49.9","MOE H73ROHUHhInc35to49.9kRnt40to49.9","H73ROHUHhInc35to49.9kRnt>50pct","MOE H73ROHUHhInc35to49.9kRnt>50pct","H73ROHUHhInc35to49.9kRntPctNC","MOE H73ROHUHhInc35to49.9kRntPctNC","H73ROHUHhInc50to74.9k","MOE H73ROHUHhInc50to74.9k","H73ROHUHhInc50to74.9kRnt<20pct","MOE H73ROHUHhInc50to74.9kRnt<20pct","H73ROHUHhInc50to74.9kRnt20to25pct","MOE H73ROHUHhInc50to74.9kRnt20to25pct","H73ROHUHhInc50to74.9kRnt25to30pct","MOE H73ROHUHhInc50to74.9kRnt25to30pct","H73ROHUHhInc50to74.9kRnt30to35pct","MOE H73ROHUHhInc50to74.9kRnt30to35pct","H73ROHUHhInc50to74.9kRnt35to39.9","MOE H73ROHUHhInc50to74.9kRnt35to39.9","H73ROHUHhInc50to74.9kRnt40to49.9","MOE H73ROHUHhInc50to74.9kRnt40to49.9","H73ROHUHhInc50to74.9kRnt>50pct","MOE H73ROHUHhInc50to74.9kRnt>50pct","H73ROHUHhInc50to74.9kRntPctNC","MOE H73ROHUHhInc50to74.9kRntPctNC","H73ROHUHhInc75to99.9k","MOE H73ROHUHhInc75to99.9k","H73ROHUHhInc75to99.9kRnt<20pct","MOE H73ROHUHhInc75to99.9kRnt<20pct","H73ROHUHhInc75to99.9kRnt20to25pct","MOE H73ROHUHhInc75to99.9kRnt20to25pct","H73ROHUHhInc75to99.9kRnt25to30pct","MOE H73ROHUHhInc75to99.9kRnt25to30pct","H73ROHUHhInc75to99.9kRnt30to35pct","MOE H73ROHUHhInc75to99.9kRnt30to35pct","H73ROHUHhInc75to99.9kRnt35to39.9","MOE H73ROHUHhInc75to99.9kRnt35to39.9","H73ROHUHhInc75to99.9kRnt40to49.9","MOE H73ROHUHhInc75to99.9kRnt40to49.9","H73ROHUHhInc75to99.9kRnt>50pct","MOE H73ROHUHhInc75to99.9kRnt>50pct","H73ROHUHhInc75to99.9kRntPctNC","MOE H73ROHUHhInc75to99.9kRntPctNC","H73ROHUHhInc>100k","MOE H73ROHUHhInc>100k","H73ROHUHhInc>100kRnt<20pct","MOE H73ROHUHhInc>100kRnt<20pct","H73ROHUHhInc>100kRnt20to25pct","MOE H73ROHUHhInc>100kRnt20to25pct","H73ROHUHhInc>100kRnt25to30pct","MOE H73ROHUHhInc>100kRnt25to30pct","H73ROHUHhInc>100kRnt30to35pct","MOE H73ROHUHhInc>100kRnt30to35pct","H73ROHUHhInc>100kRnt35to39.9","MOE H73ROHUHhInc>100kRnt35to39.9","H73ROHUHhInc>100kRnt40to49.9","MOE H73ROHUHhInc>100kRnt40to49.9","H73ROHUHhInc>100kRnt>50pct","MOE H73ROHUHhInc>100kRnt>50pct","H73ROHUHhInc>100kRntPctNC","MOE H73ROHUHhInc>100kRntPctNC"]
[{"$f":"VLOOKUP(DropDownList!$B$47,CntyQryCensus!$A$530:$AY$544,A$1)","v":"Acworth"},2310,288,494,157.81001235663092,322,125,293,114,1109,231.35470602518549,1097,247.39037976445243,244,113,1353,257.47621249350397,853,220.07498722026546,467,173,104,87]
[]
["Income By Household Type and Tenure"]
["NAME","TotalFamilyHouseholds",{"$f":"\"MOE \"&B159","v":"MOE TotalFamilyHouseholds"},"FamInc<10K",{"$f":"\"MOE \"&D159","v":"MOE FamInc<10K"},"FamInc10to15K",{"$f":"\"MOE \"&F159","v":"MOE FamInc10to15K"},"FamInc15to20K",{"$f":"\"MOE \"&H159","v":"MOE FamInc15to20K"},"FamInc20to25K",{"$f":"\"MOE \"&J159","v":"MOE FamInc20to25K"},"FamInc25to30K",{"$f":"\"MOE \"&L159","v":"MOE FamInc25to30K"},"FamInc30to35K",{"$f":"\"MOE \"&N159","v":"MOE FamInc30to35K"},"FamInc35to40K",{"$f":"\"MOE \"&P159","v":"MOE FamInc35to40K"},"FamInc40to45K",{"$f":"\"MOE \"&R159","v":"MOE FamInc40to45K"},"FamInc45to50K",{"$f":"\"MOE \"&T159","v":"MOE FamInc45to50K"},"FamInc50to60K",{"$f":"\"MOE \"&V159","v":"MOE FamInc50to60K"},"FamInc60to75K",{"$f":"\"MOE \"&X159","v":"MOE FamInc60to75K"},"FamInc75to100K",{"$f":"\"MOE \"&Z159","v":"MOE FamInc75to100K"},"FamInc100to125K",{"$f":"\"MOE \"&AB159","v":"MOE FamInc100to125K"},"FamInc125to150K",{"$f":"\"MOE \"&AD159","v":"MOE FamInc125to150K"},"FamInc150to200K",{"$f":"\"MOE \"&AF159","v":"MOE FamInc150to200K"},"FamInc>200K",{"$f":"\"MOE \"&AH159","v":"MOE FamInc>200K"},"MedFamInc",{"$f":"\"MOE \"&AJ159","v":"MOE MedFamInc"},"TotalNonNonFamilyHouseholds",{"$f":"\"MOE \"&AL159","v":"MOE TotalNonNonFamilyHouseholds"},"NonFamInc<10K",{"$f":"\"MOE \"&AN159","v":"MOE NonFamInc<10K"},"NonFamInc10to15K",{"$f":"\"MOE \"&AP159","v":"MOE NonFamInc10to15K"},"NonFamInc15to20K",{"$f":"\"MOE \"&AR159","v":"MOE NonFamInc15to20K"},"NonFamInc20to25K",{"$f":"\"MOE \"&AT159","v":"MOE NonFamInc20to25K"},"NonFamInc25to30K",{"$f":"\"MOE \"&AV159","v":"MOE NonFamInc25to30K"},"NonFamInc30to35K",{"$f":"\"MOE \"&AX159","v":"MOE NonFamInc30to35K"},"NonFamInc35to40K",{"$f":"\"MOE \"&AZ159","v":"MOE NonFamInc35to40K"},"NonFamInc40to45K",{"$f":"\"MOE \"&BB159","v":"MOE NonFamInc40to45K"},"NonFamInc45to50K",{"$f":"\"MOE \"&BD159","v":"MOE NonFamInc45to50K"},"NonFamInc50to60K",{"$f":"\"MOE \"&BF159","v":"MOE NonFamInc50to60K"},"NonFamInc60to75K",{"$f":"\"MOE \"&BH159","v":"MOE NonFamInc60to75K"},"NonFamInc75to100K",{"$f":"\"MOE \"&BJ159","v":"MOE NonFamInc75to100K"},"NonFamInc100to125K",{"$f":"\"MOE \"&BL159","v":"MOE NonFamInc100to125K"},"NonFamInc125to150K",{"$f":"\"MOE \"&BN159","v":"MOE NonFamInc125to150K"},"NonFamInc150to200K",{"$f":"\"MOE \"&BP159","v":"MOE NonFamInc150to200K"},"NonFamInc>200K",{"$f":"\"MOE \"&BR159","v":"MOE NonFamInc>200K"},"MedNonFamInc",{"$f":"\"MOE \"&BT159","v":"MOE MedNonFamInc"},"PerCapitaIncome","MOE PerCapitaIncome"]
[{"$f":"VLOOKUP(DropDownList!$B$47,CntyQryCensus!$A$530:$AY$544,A$1)","v":"Acworth"},255,43,9,12,0,11,2,3,2,3,5,5,8,8,2,3,19,17,14,12,12,11,37,22,57,29,30,18,28,15,16,13,14,11,82031,10238,115,28,6,10,6,6,5,5,6,9,15,11,2,3,7,6,2,3,6,6,34,20,12,9,8,10,4,5,2,3,0,11,0,11,50568,8284]
[]
[]
[]
["2010 Census"]
[]
["TownName","LOGRECNO","COUNTY","TotalPop","TotalPop1Race","TotalPopWhite","TotalPopAfricanAmerican","TotalPopAmericanIndAlaska","TotalPopAsian","TotalPopNativeHawaiianPIsland","TotalPopSomeOtherRace","TotalPopTwoOrMoreRaces","TotalPopHispanicLatino","TotalNonHispanicLatino","TotPopUnder15yrs","TotPop15to24yrs","TotPop25to34yrs","TotPop35to44yrs","TotPop45to54yrs","TotPop55to64yrs","TotPop65to74yrs","TotPopOver74yrs","MedianAge","MedianAgeMale","MedianAgeFemale","TotalHH","TotalPopInHouseholds","TotalPopInFamilyHH","TotalPopInNonFamilyHH","AvgHHSize","TotalFamilyHH","TotalFamilyHHSpouse","TotalSingleParentHH","TotalNonFamilyHH","AvgFamilyHHSize","AvgNonFamilyHHSize","AverageHHSizeOwnerOccupied","AverageHHSizeRentalOccupied","TotalHousingUnits","TotalOccupiedHU","TotalOwnerOccupiedHUs","TotalRentalOccupiedHU","TotalVacantHU","VacantHUForRent","VacantHURentNotOccupied","VacantHUForSale","VacantHUsSoldNotOccupied","VacantHUSeasonalRecreational","VacantHUsAllOtherVacants","HomeOwnerVacancyRate","HomeRentalVacancyRate","Total HH","Total Single Family HU","Total Multi-Family HU","Total Manufacture HU"]
[{"$f":"VLOOKUP(DropDownList!$B$47,CntyQryCensus!$A$530:$BC$544,A$1)","v":"Acworth"},{"$f":"VLOOKUP(DropDownList!$B$47,CntyQryCensus!$A$530:$BC$544,B$1)","v":"0000227"},{"$f":"VLOOKUP(DropDownList!$B$47,CntyQryCensus!$A$530:$BC$544,C$1)","v":"019"},{"$f":"VLOOKUP(DropDownList!$B$47,CntyQryCensus!$A$530:$BC$544,D$1)","v":891},{"$f":"VLOOKUP(DropDownList!$B$47,CntyQryCensus!$A$530:$BC$544,E$1)","v":880},{"$f":"VLOOKUP(DropDownList!$B$47,CntyQryCensus!$A$530:$BC$544,F$1)","v":859},{"$f":"VLOOKUP(DropDownList!$B$47,CntyQryCensus!$A$530:$BC$544,G$1)","v":1},{"$f":"VLOOKUP(DropDownList!$B$47,CntyQryCensus!$A$530:$BC$544,H$1)","v":6},{"$f":"VLOOKUP(DropDownList!$B$47,CntyQryCensus!$A$530:$BC$544,I$1)","v":13},{"$f":"VLOOKUP(DropDownList!$B$47,CntyQryCensus!$A$530:$BC$544,J$1)","v":0},{"$f":"VLOOKUP(DropDownList!$B$47,CntyQryCensus!$A$530:$BC$544,K$1)","v":1},{"$f":"VLOOKUP(DropDownList!$B$47,CntyQryCensus!$A$530:$BC$544,L$1)","v":11},{"$f":"VLOOKUP(DropDownList!$B$47,CntyQryCensus!$A$530:$BC$544,M$1)","v":7},{"$f":"VLOOKUP(DropDownList!$B$47,CntyQryCensus!$A$530:$BC$544,N$1)","v":884},{"$f":"VLOOKUP(DropDownList!$B$47,CntyQryCensus!$A$530:$BC$544,O$1)","v":112},{"$f":"VLOOKUP(DropDownList!$B$47,CntyQryCensus!$A$530:$BC$544,P$1)","v":95},{"$f":"VLOOKUP(DropDownList!$B$47,CntyQryCensus!$A$530:$BC$544,Q$1)","v":67},{"$f":"VLOOKUP(DropDownList!$B$47,CntyQryCensus!$A$530:$BC$544,R$1)","v":98},{"$f":"VLOOKUP(DropDownList!$B$47,CntyQryCensus!$A$530:$BC$544,S$1)","v":177},{"$f":"VLOOKUP(DropDownList!$B$47,CntyQryCensus!$A$530:$BC$544,T$1)","v":180},{"$f":"VLOOKUP(DropDownList!$B$47,CntyQryCensus!$A$530:$BC$544,U$1)","v":102},{"$f":"VLOOKUP(DropDownList!$B$47,CntyQryCensus!$A$530:$BC$544,V$1)","v":60},{"$f":"VLOOKUP(DropDownList!$B$47,CntyQryCensus!$A$530:$BC$544,W$1)","v":49.2},{"$f":"VLOOKUP(DropDownList!$B$47,CntyQryCensus!$A$530:$BC$544,X$1)","v":48.6},{"$f":"VLOOKUP(DropDownList!$B$47,CntyQryCensus!$A$530:$BC$544,Y$1)","v":50.4},{"$f":"VLOOKUP(DropDownList!$B$47,CntyQryCensus!$A$530:$BC$544,Z$1)","v":380},{"$f":"VLOOKUP(DropDownList!$B$47,CntyQryCensus!$A$530:$BC$544,AA$1)","v":891},{"$f":"VLOOKUP(DropDownList!$B$47,CntyQryCensus!$A$530:$BC$544,AB$1)","v":456},{"$f":"VLOOKUP(DropDownList!$B$47,CntyQryCensus!$A$530:$BC$544,AC$1)","v":435},{"$f":"VLOOKUP(DropDownList!$B$47,CntyQryCensus!$A$530:$BC$544,AD$1)","v":2.34},{"$f":"VLOOKUP(DropDownList!$B$47,CntyQryCensus!$A$530:$BC$544,AE$1)","v":265},{"$f":"VLOOKUP(DropDownList!$B$47,CntyQryCensus!$A$530:$BC$544,AF$1)","v":224},{"$f":"VLOOKUP(DropDownList!$B$47,CntyQryCensus!$A$530:$BC$544,AG$1)","v":41},{"$f":"VLOOKUP(DropDownList!$B$47,CntyQryCensus!$A$530:$BC$544,AH$1)","v":115},{"$f":"VLOOKUP(DropDownList!$B$47,CntyQryCensus!$A$530:$BC$544,AI$1)","v":2.72},{"$f":"VLOOKUP(DropDownList!$B$47,CntyQryCensus!$A$530:$BC$544,AJ$1)","v":3.7826086956521738},{"$f":"VLOOKUP(DropDownList!$B$47,CntyQryCensus!$A$530:$BC$544,AK$1)","v":2.29},{"$f":"VLOOKUP(DropDownList!$B$47,CntyQryCensus!$A$530:$BC$544,AL$1)","v":2.76},{"$f":"VLOOKUP(DropDownList!$B$47,CntyQryCensus!$A$530:$BC$544,AM$1)","v":556},{"$f":"VLOOKUP(DropDownList!$B$47,CntyQryCensus!$A$530:$BC$544,AN$1)","v":380},{"$f":"VLOOKUP(DropDownList!$B$47,CntyQryCensus!$A$530:$BC$544,AO$1)","v":339},{"$f":"VLOOKUP(DropDownList!$B$47,CntyQryCensus!$A$530:$BC$544,AP$1)","v":41},{"$f":"VLOOKUP(DropDownList!$B$47,CntyQryCensus!$A$530:$BC$544,AQ$1)","v":176},{"$f":"VLOOKUP(DropDownList!$B$47,CntyQryCensus!$A$530:$BC$544,AR$1)","v":3},{"$f":"VLOOKUP(DropDownList!$B$47,CntyQryCensus!$A$530:$BC$544,AS$1)","v":4},{"$f":"VLOOKUP(DropDownList!$B$47,CntyQryCensus!$A$530:$BC$544,AT$1)","v":6},{"$f":"VLOOKUP(DropDownList!$B$47,CntyQryCensus!$A$530:$BC$544,AU$1)","v":0},{"$f":"VLOOKUP(DropDownList!$B$47,CntyQryCensus!$A$530:$BC$544,AV$1)","v":146},{"$f":"VLOOKUP(DropDownList!$B$47,CntyQryCensus!$A$530:$BC$544,AW$1)","v":17},{"$f":"VLOOKUP(DropDownList!$B$47,CntyQryCensus!$A$530:$BC$544,AX$1)","v":1.7},{"$f":"VLOOKUP(DropDownList!$B$47,CntyQryCensus!$A$530:$BC$544,AY$1)","v":6.3},{"$f":"VLOOKUP(DropDownList!$B$47,CntyQryCensus!$A$530:$BC$544,AZ$1)","v":556},{"$f":"VLOOKUP(DropDownList!$B$47,CntyQryCensus!$A$530:$BC$544,BA$1)","v":479},{"$f":"VLOOKUP(DropDownList!$B$47,CntyQryCensus!$A$530:$BC$544,BB$1)","v":22},{"$f":"VLOOKUP(DropDownList!$B$47,CntyQryCensus!$A$530:$BC$544,BC$1)","v":55}]

{"sheet":"CntyQuery","index":7,"n_rows":229,"n_cols":243,"rows_kept":229,"cut":false,"hidden":true,"merged":[]}
["CountyName","Cnty_Code","Census_Cnty_Code","LandAcres","WaterAcres","HousingUnits90Cen","Persons90Cen","Families90Cen","Households90cen","MalePop90cen","FemalePop90cen","WhitePop","BlackPop","AmerIndianPop","AsianPIPop","OtherRacePop","HispanicOrPop","AgeUnder15_90cen","Age15to24_90cen","Age25to34_90cen","Age35to44_90cen","Age45to54_90cen","Age55to64_90cen","Age65to74_90cen","Age75andOver_90cen","PersonsInHH90cen","PersonsInFamHH90cen","PersonsInGC","PersonsPerHH90cen","PersonsPerFam90Cen","SinglePersonHH90cen","MarriedCoupleHH90cen","SingleParentHH90cen","NonFamilyHH90cen","TotalHousingUnits","OccupiedHousingUnits","VacantHousingUnits","OwnerOccHU","RenterOccHU","VacantForRent90","VacantForSale90","VacantSeasonalRec","SingFamHU90cen","MultiFamHU90cen","MobileHom90cen","SingFamOwnHU90cen","MultiFamOwnHU90cen","MobileHomOwnHU90cen","SingFamRntrHU90cen","MultiFamRntrHU90cen","MobileHomRntrHU90cen","HU<5yrs90cen","HU5to20yrs90cen","HU20to50yrs90cen","HU>50yrs90cen","Units0Bedroom90cen","Units1Bedroom90cen","Units2Bedroom90cen","Units3Bedroom90cen","Units4+Bedroom90cen","HI<5K","HI5Kto10K","HI10Kto15K","HI15Kto25K","HI25Kto35K","HI35Kto50K","HI50Kto75K","HI75Kto100K","HI>100K","MedHI","HH<25HI<5K","HH<25HI5Kto10K","HH<25HI10Kto15K","HH<25HI15Kto25K","HH<25HI25Kto35K","HH<25HI35Kto50K","HH<25HI50Kto75K","HH<25HI75Kto100K","HH<25HI>100K","HH25to34HI<5K","HH25to34HI5Kto10K","HH25to34HI10Kto15K","HH25to34HI15Kto25K","HH25to34HI25Kto35K","HH25to34HI35Kto50K","HH25to34HI50Kto75K","HH25to34HI75Kto100K","HH25to34HI>100K","HH35to44HI<5K","HH35to44HI5Kto10K","HH35to44HI10Kto15K","HH35to44HI15Kto25K","HH35to44HI25Kto35K","HH35to44HI35Kto50K","HH35to44HI50Kto75K","HH35to44HI75Kto100K","HH35to44HI>100K","HH45to54HI<5K","HH45to54HI5Kto10K","HH45to54HI10Kto15K","HH45to54HI15Kto25K","HH45to54HI25Kto35K","HH45to54HI35Kto50K","HH45to54HI50Kto75K","HH45to54HI75Kto100K","HH45to54HI>100K","HH55to64HI<5K","HH55to64HI5Kto10K","HH55to64HI10Kto15K","HH55to64HI15Kto25K","HH55to64HI25Kto35K","HH55to64HI35Kto50K","HH55to64HI50Kto75K","HH55to64HI75Kto100K","HH55to64HI>100K","HH65to74HI<5K","HH65to74HI5Kto10K","HH65to74HI10Kto15K","HH65to74HI15Kto25K","HH65to74HI25Kto35K","HH65to74HI35Kto50K","HH65to74HI50Kto75K","HH65to74HI75Kto100K","HH65to74HI>100K","HH>75HI<5K","HH>75HI5Kto10K","HH>75HI10Kto15K","HH>75HI15Kto25K","HH>75HI25Kto35K","HH>75HI35Kto50K","HH>75HI50Kto75K","HH>75HI75Kto100K","HH>75HI>100K","SchoolEnrollment1thru12","Pop25andOver","HSGradorHigher","CollGradorHigher","NativePop","ForeignBornPop","BornStateOfRes","NativePop2","ForeignBornPop2","DroveAlone","CarPooled","PublicTranspt","Walked","OtherMeans","WorkedAtHome","HHInc<10K","HHInc10to15K","HHInc15to25K","HHInc25to35K","HHInc35to50K","HHInc50to75K","HHInc75to100K","HHInc100to150K","HHInc>150K"]
["Census 1990 Data -           Query Name:  DPCnty90Census"]
["NAME","FIPS","COUSUBFP","LandAcres","WaterAcres","HousingUnits90Cen","Persons90Cen","Families90Cen","Households90cen","MalePop90cen","FemalePop90cen","WhitePop","BlackPop","AmerIndianPop","AsianPIPop","OtherRacePop","HispanicOrPop","AgeUnder15_90cen","Age15to24_90cen","Age25to34_90cen","Age35to44_90cen","Age45to54_90cen","Age55to64_90cen","Age65to74_90cen","Age75andOver_90cen","PersonsInHH90cen","PersonsInFamHH90cen","PersonsInGC","PersonsPerHH90cen","PersonsPerFam90Cen","SinglePersonHH90cen","MarriedCoupleHH90cen","SingleParentHH90cen","NonFamilyHH90cen","TotalHousingUnits","OccupiedHousingUnits","VacantHousingUnits","OwnerOccHU","RenterOccHU","VacantForRent90","VacantForSale90","VacantSeasonalRec","SingFamHU90cen","MultiFamHU90cen","MobileHom90cen","SingFamOwnHU90cen","MultiFamOwnHU90cen","MobileHomOwnHU90cen","SingFamRntrHU90cen","MultiFamRntrHU90cen","MobileHomRntrHU90cen","HU<5yrs90cen","HU5to20yrs90cen","HU20to50yrs90cen","HU>50yrs90cen","Units0Bedroom90cen","Units1Bedroom90cen","Units2Bedroom90cen","Units3Bedroom90cen","Units4+Bedroom90cen","HI<5K","HI5Kto10K","HI10Kto15K","HI15Kto25K","HI25Kto35K","HI35Kto50K","HI50Kto75K","HI75Kto100K","HI>100K","MedHI","HH<25HI<5K","HH<25HI5Kto10K","HH<25HI10Kto15K","HH<25HI15Kto25K","HH<25HI25Kto35K","HH<25HI35Kto50K","HH<25HI50Kto75K","HH<25HI75Kto100K","HH<25HI>100K","HH25to34HI<5K","HH25to34HI5Kto10K","HH25to34HI10Kto15K","HH25to34HI15Kto25K","HH25to34HI25Kto35K","HH25to34HI35Kto50K","HH25to34HI50Kto75K","HH25to34HI75Kto100K","HH25to34HI>100K","HH35to44HI<5K","HH35to44HI5Kto10K","HH35to44HI10Kto15K","HH35to44HI15Kto25K","HH35to44HI25Kto35K","HH35to44HI35Kto50K","HH35to44HI50Kto75K","HH35to44HI75Kto100K","HH35to44HI>100K","HH45to54HI<5K","HH45to54HI5Kto10K","HH45to54HI10Kto15K","HH45to54HI15Kto25K","HH45to54HI25Kto35K","HH45to54HI35Kto50K","HH45to54HI50Kto75K","HH45to54HI75Kto100K","HH45to54HI>100K","HH55to64HI<5K","HH55to64HI5Kto10K","HH55to64HI10Kto15K","HH55to64HI15Kto25K","HH55to64HI25Kto35K","HH55to64HI35Kto50K","HH55to64HI50Kto75K","HH55to64HI75Kto100K","HH55to64HI>100K","HH65to74HI<5K","HH65to74HI5Kto10K","HH65to74HI10Kto15K","HH65to74HI15Kto25K","HH65to74HI25Kto35K","HH65to74HI35Kto50K","HH65to74HI50Kto75K","HH65to74HI75Kto100K","HH65to74HI>100K","HH>75HI<5K","HH>75HI5Kto10K","HH>75HI10Kto15K","HH>75HI15Kto25K","HH>75HI25Kto35K","HH>75HI35Kto50K","HH>75HI50Kto75K","HH>75HI75Kto100K","HH>75HI>100K","SchoolEnrollment1thru12","Pop25andOver","HSGradorHigher","CollGradorHigher","NativePop","ForeignBornPop","BornStateOfRes","NativePop2","ForeignBornPop2","DroveAlone","CarPooled","PublicTranspt","Walked","OtherMeans","WorkedAtHome","HHInc<10K","HHInc10to15K","HHInc15to25K","HHInc25to35K","HHInc35to50K","HHInc50to75K","HHInc75to100K","HHInc100to150K","HHInc>150K","YearStBlt89to90","YearStBlt85to88","YearStBlt80to84","YearStBlt70to79","YearStBlt60to69","YearStBlt50to59","YearStBlt40to49","YearStBlt39earlier"]
["Acworth",19005,"00260",24916.99,81.95,507,776,219,285,394,382,773,0,0,3,0,1,189,72,124,149,74,80,57,31,776,693,0,2.7228070175438597,3.1643835616438358,53,189,30,13,507,285,222,246,39,1,3,194,448,10,49,222,5,49,30,5,4,56,180,88,179,8,42,189,140,124,19,18,22,52,40,105,24,2,5,33661,0,0,2,0,0,6,0,0,0,0,0,6,8,9,29,3,0,0,6,5,2,17,14,27,5,0,0,2,4,2,2,8,25,0,2,5,3,7,2,6,5,5,14,0,0,0,0,3,15,4,9,2,0,0,8,2,5,4,0,4,0,0,0,147,499,409,134,758,18,272,758,18,272,34,0,17,10,25,37,22,52,40,105,24,2,5,0,27,29,45,135,36,30,22,179]
["Charlestown",19010,"11380",22927.95,1417.51,2051,4630,1338,1837,2293,2337,4599,9,12,7,3,23,980,561,698,738,535,450,398,270,4620,4001,10,2.5149700598802394,2.9902840059790732,398,1128,210,101,2051,1837,214,1440,397,62,29,70,1052,379,620,883,45,620,77,270,50,369,557,486,639,4,275,714,847,211,59,176,147,477,328,371,218,39,34,26400,5,5,12,22,36,20,7,0,0,0,6,28,102,85,88,57,0,7,6,13,6,106,26,128,85,22,7,10,7,12,13,83,75,35,9,13,19,41,9,95,57,29,20,8,7,19,51,51,56,24,31,14,0,0,0,53,29,83,17,0,0,0,0,820,3089,2408,496,4532,98,1629,4532,98,1866,225,5,52,23,102,235,147,477,328,371,218,39,28,6,132,237,101,456,271,132,83,639]
["Claremont",19015,"12900",27615.9,577.09,6228,13902,3752,5610,6600,7302,13684,36,83,79,20,71,2891,1883,2200,1952,1370,1275,1343,988,13758,11522,144,2.4524064171122997,3.0708955223880596,1552,2985,767,306,6228,5610,618,3248,2362,333,54,40,2818,2899,511,2466,389,511,202,2072,88,448,1430,1803,2547,95,1087,2214,1956,876,357,678,597,1108,1103,1060,516,146,32,25532,61,37,65,48,65,51,0,0,0,36,112,81,280,349,220,90,16,0,64,44,64,173,260,433,129,63,10,46,19,40,96,94,121,122,48,22,9,60,77,205,166,150,82,11,0,59,142,157,218,147,77,80,0,0,82,264,113,88,22,8,13,8,0,2214,9128,6167,1069,13397,505,8280,13397,505,4468,1069,31,326,100,240,1035,597,1108,1103,1060,516,146,11,21,164,284,280,1150,570,729,504,2547]
["Cornish",19020,"15060",26855.13,414.56,689,1659,475,605,837,822,1644,null,8,2,2,5,383,169,242,378,184,142,97,64,1659,1489,0,2.7421487603305783,3.134736842105263,100,430,45,30,689,605,84,514,91,7,8,37,573,50,66,457,20,66,53,24,14,81,191,141,276,8,48,171,277,185,13,29,40,97,134,138,110,25,18,34018,0,0,3,3,0,3,0,0,0,0,5,4,18,30,31,11,4,0,0,0,2,33,52,47,71,2,7,0,4,0,11,19,28,17,7,8,0,0,14,13,18,13,9,7,0,6,5,15,10,14,11,1,3,3,7,15,2,9,1,5,1,2,0,307,1107,964,261,1630,29,838,1630,29,672,74,2,32,7,72,42,40,97,134,138,110,25,16,2,24,57,66,125,68,48,25,276]
["Croydon",19025,"16340",23554.03,474.73,309,627,175,229,311,316,626,0,0,1,0,0,137,79,100,113,62,57,52,27,627,552,0,2.7379912663755457,3.1542857142857144,41,149,26,13,309,229,80,194,35,0,6,62,267,7,35,164,4,35,26,3,6,71,80,58,87,0,29,85,115,67,4,30,8,38,35,57,29,11,8,33214,0,3,0,0,3,0,0,0,0,0,0,0,13,6,11,3,0,0,0,1,0,5,11,9,10,3,0,2,0,2,2,12,13,16,1,0,0,0,3,9,3,19,0,5,3,0,13,3,9,0,5,0,2,2,2,13,0,0,0,0,0,0,3,97,399,296,49,604,11,357,604,11,205,65,0,2,4,10,34,8,38,35,57,29,11,3,5,7,64,29,51,22,14,22,87]
["Goshen",19030,"30500",14364.03,55.97,394,742,210,263,360,382,741,0,1,0,0,4,169,78,121,128,78,81,56,31,735,672,7,2.79467680608365,3.2,44,184,26,9,394,263,131,236,27,1,12,112,338,13,43,216,5,43,12,5,10,47,134,88,118,3,0,154,150,80,8,30,27,30,54,70,44,5,2,32813,0,0,0,3,0,0,0,0,0,2,0,3,2,10,24,8,0,0,0,2,4,8,10,30,14,3,0,3,0,2,3,13,11,10,0,0,0,2,3,5,17,5,12,2,0,0,14,11,4,4,0,0,0,2,3,12,4,5,0,0,0,0,0,126,502,387,59,691,18,401,691,18,281,40,0,12,5,13,38,27,30,54,70,44,5,2,0,8,39,41,93,30,43,15,118]
["Grantham",19035,"31220",17402.240000000002,548.63,1289,1247,404,494,622,625,1236,2,1,6,2,5,210,112,142,208,145,191,179,60,1247,1131,0,2.5242914979757085,2.7995049504950495,67,377,27,23,1289,494,795,430,64,8,14,721,923,339,27,391,25,27,35,22,7,488,590,71,140,4,17,229,727,312,12,16,24,43,77,133,116,36,33,42738,0,1,2,2,0,0,0,3,0,0,0,2,4,15,21,16,3,2,0,0,0,9,15,27,29,10,0,0,3,6,7,7,31,17,3,8,6,6,3,8,10,22,27,6,14,4,2,8,6,27,22,23,6,7,2,4,3,7,3,10,4,5,2,170,925,817,398,1196,51,540,1196,51,407,78,0,13,3,38,28,24,43,77,133,116,36,29,4,111,377,187,403,21,32,18,140]
["Langdon",19040,"40900",10443.68,2.41,243,580,159,208,297,283,579,0,0,1,0,1,136,58,97,116,63,44,46,20,580,516,0,2.7884615384615383,3.2452830188679247,37,142,17,12,243,208,35,189,19,1,4,13,203,9,31,161,6,31,15,1,3,52,49,63,83,5,23,78,80,61,5,17,11,26,53,67,33,0,5,34205,0,0,0,0,0,4,0,0,0,0,0,2,6,9,7,4,0,3,2,1,3,5,23,21,8,0,0,0,2,0,4,6,10,11,0,2,2,0,0,5,8,15,7,0,0,1,11,0,6,4,7,3,0,0,0,3,6,0,3,3,0,0,0,96,402,323,52,555,25,185,555,25,251,34,0,2,7,9,22,11,26,53,67,33,0,5,0,23,29,9,40,43,10,10,83]
["Lempster",19045,"41700",20689.22,267.01,554,947,253,325,509,438,947,0,0,0,0,7,236,129,153,174,93,72,56,34,947,859,0,2.913846153846154,3.3952569169960474,60,227,26,12,554,325,229,270,55,0,5,200,430,14,110,222,7,110,37,7,11,122,227,91,122,20,39,192,187,124,16,22,41,66,67,74,37,13,3,28750,0,0,4,4,3,7,0,0,0,2,5,6,7,27,9,6,3,0,9,6,3,15,12,35,21,10,0,0,0,0,2,7,9,5,0,3,5,3,4,11,12,11,2,0,0,0,5,20,18,6,3,0,0,0,0,3,4,9,0,0,3,0,0,223,589,448,93,963,16,466,963,16,307,48,0,0,6,52,38,41,66,67,74,37,13,3,0,24,98,56,171,64,14,13,122]
["Newport",19050,"52580",27855.05,75.28,2675,6110,1645,2352,2974,3136,6066,5,10,25,4,15,1372,813,1039,866,587,567,481,385,6044,5151,66,2.5697278911564627,3.131306990881459,563,1286,359,144,2675,2352,323,1538,814,120,40,74,1445,906,324,1218,96,324,110,647,57,340,652,696,1017,22,345,843,1166,329,118,252,261,342,509,479,286,29,27,28036,5,11,5,54,44,0,5,0,0,0,47,39,116,126,118,42,5,0,14,8,50,31,151,117,97,7,0,0,14,8,25,54,83,47,17,5,17,15,21,42,86,66,79,0,15,35,69,86,32,28,82,7,0,7,47,88,52,42,20,13,9,0,0,1095,3879,2843,508,5872,190,3867,5872,190,2127,444,9,99,69,56,370,261,342,509,479,286,29,27,0,50,290,211,441,304,164,228,1017]
["Plainfield",19055,"62340",33417.72,496.57,784,2056,581,726,1045,1011,2034,4,6,11,1,6,478,233,336,425,248,158,119,59,2056,1869,0,2.831955922865014,3.2168674698795181,113,518,63,32,784,726,58,630,96,17,6,15,656,71,57,552,31,57,54,34,8,146,252,128,258,3,39,200,378,164,20,17,29,89,125,196,183,51,18,40066,0,0,3,3,5,4,0,0,0,0,2,3,23,25,43,36,4,4,2,0,0,20,35,71,79,18,2,5,2,4,17,22,42,40,17,9,3,0,4,5,20,25,22,8,3,6,6,6,9,12,11,6,4,0,4,7,9,12,6,0,0,0,0,402,1345,1215,418,2015,41,1018,2015,41,887,145,3,59,12,45,37,29,89,125,196,183,51,11,7,34,112,66,186,69,36,23,258]
["Springfield",19060,"72740",27914.6,564.19000000000005,481,788,226,302,415,373,783,2,2,1,0,4,157,111,101,152,86,72,64,45,788,685,0,2.6092715231788079,3.0309734513274336,52,200,26,24,481,302,179,258,44,17,6,143,413,10,58,217,2,58,32,5,7,89,204,71,130,2,46,174,178,94,8,28,37,46,58,78,46,6,8,32562,0,0,3,2,6,0,0,0,0,0,0,4,6,11,20,4,0,0,0,5,9,15,13,17,19,0,3,5,0,0,10,20,10,13,2,2,0,6,4,7,2,13,4,4,0,0,7,7,6,6,9,6,0,3,3,10,10,0,0,9,0,0,0,143,532,405,127,788,12,411,788,12,273,74,7,0,6,36,36,37,46,58,78,46,6,3,5,10,79,50,154,37,25,9,130]
["Sunapee",19065,"75060",13484.2,2614.92,1904,2559,719,991,1264,1295,2546,0,2,10,1,11,552,291,393,457,287,229,223,127,2558,2214,1,2.5812310797174569,3.0792767732962449,207,615,104,65,1904,991,913,735,256,28,28,823,1455,347,102,645,38,102,96,142,18,183,339,710,642,18,183,564,710,399,60,64,74,162,195,248,164,10,42,32679,0,0,0,16,15,0,0,0,0,23,7,29,0,38,72,27,0,0,7,6,0,53,23,56,84,0,10,20,7,0,15,17,68,19,10,17,0,12,12,26,47,39,18,0,0,10,10,15,52,30,3,16,0,15,0,22,18,0,25,10,0,0,0,485,1762,1462,371,2547,60,1271,2547,60,1101,66,0,85,43,50,124,74,162,195,248,164,10,25,17,12,171,71,268,158,382,170,642]
["Unity",19070,"77940",23657.16,149.15,558,1341,310,393,682,659,1335,3,3,0,0,3,234,179,198,255,124,91,80,180,1105,982,236,2.8117048346055982,3.1677419354838712,54,272,38,29,558,393,165,355,38,1,10,138,436,9,113,282,2,113,21,7,10,80,274,106,98,7,45,155,248,103,22,12,32,77,84,83,67,10,13,31458,0,0,2,4,4,2,0,3,0,5,2,0,14,16,35,21,0,0,2,0,9,22,26,30,28,0,7,5,2,6,16,14,9,12,5,4,4,1,5,8,11,6,6,2,2,6,2,9,13,13,1,0,0,0,0,5,1,0,0,0,0,0,0,196,928,662,78,1282,59,774,1282,59,426,79,0,9,3,53,34,32,77,84,83,67,10,9,4,26,54,65,209,49,35,22,98]
["Washington",19075,"78980",29121.19,1402.81,866,628,184,253,318,310,628,0,0,0,0,9,126,62,81,105,66,84,72,32,628,548,0,2.4822134387351777,2.9782608695652173,59,158,26,10,866,253,613,234,19,2,4,588,795,7,64,223,2,64,16,2,1,116,394,201,154,49,181,348,207,80,8,27,23,33,39,62,38,6,4,33333,0,0,3,0,0,3,0,0,0,6,0,2,8,10,12,3,0,0,2,0,5,3,7,17,18,4,4,0,0,5,4,2,14,9,0,0,0,4,0,11,12,6,2,2,0,0,17,8,5,2,7,4,0,0,0,6,0,2,6,3,2,0,0,93,426,322,90,601,28,287,601,28,189,62,0,7,2,27,35,23,33,39,62,38,6,4,0,18,98,159,235,96,76,29,154]
[]
[]
[]
[]
[]
[]
[]
[]
[]
[]
[]
[]
[]
[]
[]
[]
[]
[]
[]
[]
[]
[]
[]
[]
[]
[]
[]
[]
[]
[]
["Census 1990 Data -    Query Name:  CountySTF1Qry1"]
["NAME","COUSUBFP","Census_Cnty_Code","FIPS","LandAcres","WaterAcres","HousingUnits90Cen","P01Persons90Cen","P02Families90Cen","P03Households90cen","P05MalePop90cen","P05FemalePop90cen","P06WhitePop","P06BlackPop","P06AmerIndianPop","P06AsianPIPop","P06OtherRacePop","P08HispanicOrPop","P11AgeUnder15_90cen","P11Age15to24_90cen","P11Age25to34_90cen","P11Age35to44_90cen","P11Age45to54_90cen","P11Age55to64_90cen","P11Age65to74_90cen","P11Age75andOver_90cen","P15PersonsInHH90cen","P15PersonsInFamHH90cen","P15PersonsInGC","PersonsPerHH90cen","PersonsPerFam90Cen","P16SinglePersonHH90cen","P16MarriedCoupleHH90cen","P16SingleParentHH90cen","P16NonFamilyHH90cen","H01TotalHousingUnits","H02OccupiedHousingUnits","H02VacantHousingUnits","H03OwnerOccHU","H03RenterOccHU","H05VacantForRent90","H05VacantForSale90","H05VacantSeasonalRec","H23OOHUVal<15k","H23OOHUVal15to19k","H23OOHUVal20to24k","H23OOHUVal25to29k","H23OOHUVal30to34k","H23OOHUVal35to39k","H23OOHUVal40to44k","H23OOHUVal45to49k","H23OOHUVal50to59k","H23OOHUVal60to74k","H23OOHUVal75to99k","H23OOHUVal100to124k","H23OOHUVal125to149k","H23OOHUVal150to174k","H23OOHUVal175to199k","H23OOHUVal200to249k","H23OOHUVal250to299k","H23OOHUVal300to399k","H23OOHUVal400to499k","H23OOHUVal500kOrMore","H23BOOHUMedVal","H41SingFamHU90cen","H41MultiFamHU90cen","H41MobileHom90cen","H43SingFamOwnHU90cen","H43MultiFamOwnHU90cen","H43MobileHomOwnHU90cen","H43SingFamRntrHU90cen","H43MultiFamRntrHU90cen","H43MobileHomRntrHU90cen","H41HU1UnitDet","H41HU1UnitAtt","H41HU2Unit","H41HU3to4Unit","H41HU5to9Unit","H41HU10to19Unit","H41HU20to49Unit","H41HU50PlusUnit","H41HUMobilH","H41HUOther"]
["Acworth",1001,19005,"00260",24916.99,81.95,507,776,219,285,394,382,773,0,0,3,0,1,189,72,124,149,74,80,57,31,776,693,0,2.7228070175438597,3.1643835616438358,53,189,30,13,507,285,222,246,39,1,3,194,4,2,2,1,1,1,6,0,7,20,36,19,7,6,1,1,1,0,0,1,84700,448,10,49,222,5,19,30,5,4,448,3,7,0,0,0,0,0,38,11]
["Charlestown",1002,19010,"11380",22927.95,1417.51,2051,4630,1338,1837,2293,2337,4599,9,12,7,3,23,980,561,698,738,535,450,398,270,4620,4001,10,2.5149700598802394,2.9902840059790732,398,1128,210,101,2051,1837,214,1440,397,62,29,70,0,0,2,4,7,11,18,15,46,130,273,133,47,14,9,11,2,1,0,1,86800,1052,379,620,883,45,512,77,270,50,1052,13,72,118,123,0,53,0,605,15]
["Claremont",1003,19015,"12900",27615.9,577.09,6228,13902,3752,5610,6600,7302,13684,36,83,79,20,71,2891,1883,2200,1952,1370,1275,1343,988,13758,11522,144,2.4524064171122997,3.0708955223880596,1552,2985,767,306,6228,5610,618,3248,2362,333,54,40,16,11,18,17,29,20,57,45,168,450,850,294,141,49,40,17,8,2,0,0,83400,2818,2899,511,2466,389,393,202,2072,88,2818,80,742,808,492,181,319,277,421,90]
["Cornish",1004,19020,"15060",26855.13,414.56,689,1659,475,605,837,822,1644,3,8,2,2,5,383,169,242,378,184,142,97,64,1659,1489,0,2.7421487603305783,3.134736842105263,100,430,45,30,689,605,84,514,91,7,8,37,3,3,0,2,6,5,3,5,13,29,53,54,38,26,5,9,4,1,0,0,103500,573,50,66,457,20,37,53,24,14,573,15,24,11,0,0,0,0,53,13]
["Croydon",1005,19025,"16340",23554.03,474.73,309,627,175,229,311,316,626,0,0,1,0,0,137,79,100,113,62,57,52,27,627,552,0,2.7379912663755457,3.1542857142857144,41,149,26,13,309,229,80,194,35,0,6,62,1,2,1,2,2,3,7,1,11,12,33,16,12,5,1,4,1,0,0,3,87500,267,7,35,164,4,26,26,3,6,267,1,6,0,0,0,0,0,34,1]
["Goshen",1006,19030,"30500",14364.03,55.97,394,742,210,263,360,382,741,0,1,0,0,4,169,78,121,128,78,81,56,31,735,672,7,2.79467680608365,3.2,44,184,26,9,394,263,131,236,27,1,12,112,0,0,2,0,0,0,3,3,3,12,45,37,19,6,4,3,4,2,0,1,102700,338,13,43,216,5,15,12,5,10,338,4,7,2,0,0,0,0,41,2]
["Grantham",1007,19035,"31220",17402.240000000002,548.63,1289,1247,404,494,622,625,1236,2,1,6,2,5,210,112,142,208,145,191,179,60,1247,1131,0,2.5242914979757085,2.7995049504950495,67,377,27,23,1289,494,795,430,64,8,14,721,1,1,0,2,2,0,1,0,8,14,44,40,37,46,59,42,22,14,11,4,163000,923,339,27,391,25,14,35,22,7,923,322,9,5,1,2,0,0,21,6]
["Langdon",1008,19040,"40900",10443.68,2.41,243,580,159,208,297,283,579,0,0,1,0,1,136,58,97,116,63,44,46,20,580,516,0,2.7884615384615383,3.2452830188679247,37,142,17,12,243,208,35,189,19,1,4,13,1,0,0,0,1,2,3,1,6,23,31,16,9,5,1,3,1,0,0,0,86700,203,9,31,161,6,22,15,1,3,203,4,5,0,0,0,0,0,27,4]
["Lempster",1009,19045,"41700",20689.22,267.01,554,947,253,325,509,438,947,0,0,0,0,7,236,129,153,174,93,72,56,34,947,859,0,2.913846153846154,3.3952569169960474,60,227,26,12,554,325,229,270,55,0,5,200,2,1,0,3,7,1,2,4,11,22,29,22,11,8,4,2,2,0,0,0,85800,430,14,110,222,7,41,37,7,11,430,2,9,3,0,0,0,0,61,49]
["Newport",1010,19050,"52580",27855.05,75.28,2675,6110,1645,2352,2974,3136,6066,5,10,25,4,15,1372,813,1039,866,587,567,481,385,6044,5151,66,2.5697278911564627,3.131306990881459,563,1286,359,144,2675,2352,323,1538,814,120,40,74,3,2,3,6,10,17,17,32,90,199,387,134,81,36,14,17,4,0,3,1,84600,1445,906,324,1218,96,224,110,647,57,1445,58,235,278,192,115,28,0,283,41]
["Plainfield",1011,19055,"62340",33417.72,496.57,784,2056,581,726,1045,1011,2034,4,6,11,1,6,478,233,336,425,248,158,119,59,2056,1869,0,2.831955922865014,3.2168674698795181,113,518,63,32,784,726,58,630,96,17,6,15,2,1,0,0,1,1,2,3,9,30,72,58,62,37,15,15,3,1,1,0,115300,656,71,57,552,31,47,54,34,8,656,15,42,5,1,8,0,0,48,9]
["Springfield",1012,19060,"72740",27914.6,564.19000000000005,481,788,226,302,415,373,783,2,2,1,0,4,157,111,101,152,86,72,64,45,788,685,0,2.6092715231788079,3.0309734513274336,52,200,26,24,481,302,179,258,44,17,6,143,2,0,2,3,0,3,1,1,10,14,31,13,18,17,4,12,4,4,2,1,107700,413,10,58,217,2,39,32,5,7,413,4,2,4,0,0,0,0,53,5]
["Sunapee",1013,19065,"75060",13484.2,2614.92,1904,2559,719,991,1264,1295,2546,0,2,10,1,11,552,291,393,457,287,229,223,127,2558,2214,1,2.5812310797174569,3.0792767732962449,207,615,104,65,1904,991,913,735,256,28,28,823,0,1,1,0,1,0,3,2,12,18,96,105,67,70,49,40,17,17,20,25,137300,1455,347,102,645,38,52,96,142,18,1455,134,76,79,55,3,0,0,70,32]
["Unity",1014,19070,"77940",23657.16,149.15,558,1341,310,393,682,659,1335,3,3,0,0,3,234,179,198,255,124,91,80,180,1105,982,236,2.8117048346055982,3.1677419354838712,54,272,38,29,558,393,165,355,38,1,10,138,1,0,1,2,1,4,3,4,11,19,40,36,12,6,3,1,3,0,0,0,92200,436,9,113,282,2,71,21,7,10,436,3,6,0,0,0,0,0,110,3]
["Washington",1015,19075,"78980",29121.19,1402.81,866,628,184,253,318,310,628,0,0,0,0,9,126,62,81,105,66,84,72,32,628,548,0,2.4822134387351777,2.9782608695652173,59,158,26,10,866,253,613,234,19,2,4,588,0,0,2,0,4,4,3,6,10,20,40,30,20,17,5,4,1,0,0,0,96300,795,7,64,223,2,9,16,2,1,795,2,5,0,0,0,0,0,44,20]
[]
[]
[]
[]
[]
[]
[]
[]
[]
[]
[]
[]
[]
[]
[]
[]
[]
[]
[]
[]
[]
[]
[]
[]
[]
[]
[]
[]
[]
[]
[]
["Census 1990 Data -          Query Name: CountySTF3Qry1"]
[]
["NAME","FIPS","COUSUBFP","LandAcres","WaterAcres","HousingUnits90Cen","P01Persons90Cen","P02Families90Cen","P03Households90cen","H25HU<5yrs90cen","H25HU5to20yrs90cen","H25HU20to50yrs90cen","H25HU>50yrs90cen","H31Units0Bedroom90cen","H31Units1Bedroom90cen","H31Units2Bedroom90cen","H31Units3Bedroom90cen","H31Units4Bedroom90cen","H31Units5+Bedroom90cen","P80HI<5K","P80HI5Kto10K","P80HI10Kto15K","P80HI15Kto25K","P80HI25Kto35K","P80HI35Kto50K","P80HI50Kto75K","P80HI75Kto100K","P80HI>100K","P80AMedHI","P86HH<25HI<5K","P86HH<25HI5Kto10K","P86HH<25HI10Kto15K","P86HH<25HI15Kto25K","P86HH<25HI25Kto35K","P86HH<25HI35Kto50K","P86HH<25HI50Kto75K","P86HH<25HI75Kto100K","P86HH<25HI>100K","P86HH25to34HI<5K","P86HH25to34HI5Kto10K","P86HH25to34HI10Kto15K","P86HH25to34HI15Kto25K","P86HH25to34HI25Kto35K","P86HH25to34HI35Kto50K","P86HH25to34HI50Kto75K","P86HH25to34HI75Kto100K","P86HH25to34HI>100K","P86HH35to44HI<5K","P86HH35to44HI5Kto10K","P86HH35to44HI10Kto15K","P86HH35to44HI15Kto25K","P86HH35to44HI25Kto35K","P86HH35to44HI35Kto50K","P86HH35to44HI50Kto75K","P86HH35to44HI75Kto100K","P86HH35to44HI>100K","P86HH45to54HI<5K","P86HH45to54HI5Kto10K","P86HH45to54HI10Kto15K","P86HH45to54HI15Kto25K","P86HH45to54HI25Kto35K","P86HH45to54HI35Kto50K","P86HH45to54HI50Kto75K","P86HH45to54HI75Kto100K","P86HH45to54HI>100K","P86HH55to64HI<5K","P86HH55to64HI5Kto10K","P86HH55to64HI10Kto15K","P86HH55to64HI15Kto25K","P86HH55to64HI25Kto35K","P86HH55to64HI35Kto50K","P86HH55to64HI50Kto75K","P86HH55to64HI75Kto100K","P86HH55to64HI>100K","P86HH65to74HI<5K","P86HH65to74HI5Kto10K","P86HH65to74HI10Kto15K","P86HH65to74HI15Kto25K","P86HH65to74HI25Kto35K","P86HH65to74HI35Kto50K","P86HH65to74HI50Kto75K","P86HH65to74HI75Kto100K","P86HH65to74HI>100K","P86HH>75HI<5K","P86HH>75HI5Kto10K","P86HH>75HI10Kto15K","P86HH>75HI15Kto25K","P86HH>75HI25Kto35K","P86HH>75HI35Kto50K","P86HH>75HI50Kto75K","P86HH>75HI75Kto100K","P86HH>75HI>100K","P54SchlEnrlPrePrim","P54SchlEnrlElemThrHS","P54SchlEnrlCollege","P54NotEnrlInSch","P57Pop25andOver","P57LessThan9thGrade","P579thto12thNoDip","P57HSGrad","P57SomeCollege","P57AssocDeg","P57BachelDeg","P57GradorProfDeg","P57HSGradorHigher","P57CollGradorHigher","P42NativePop","P42ForeignBornPop","P42BornStateOfRes","P37NativePop2","P37ForeignBornPop2","P49DroveAlone","P49CarPooled","P49PublicTranspt","P49Walked","P49OtherMeans","P49WorkedAtHome","P80HHInc<10K","P80HHInc10to15K","P80HHInc15to25K","P80HHInc25to35K","P80HHInc35to50K","P80HHInc50to75K","P80HHInc75to100K","P80HHInc100to150K","P80HHInc>150K","H25YearStBlt89to90","H25YearStBlt85to88","H25YearStBlt80to84","H25YearStBlt70to79","H25YearStBlt60to69","H25YearStBlt50to59","H25YearStBlt40to49","H25YearStBlt39earlier","P107FamInc<10K","P107FamInc10to15K","P107FamInc15to25K","P107FamInc25to35K","P107FamInc35to50K","P107FamInc50to75K","P107FamInc75to100K","P107FamInc100to150K","P107FamInc>150K","P107AMedFamInc","P110NonFamInc<10K","P110NonFamInc10to15K","P110NonFamInc15to25K","P110NonFamInc25to35K","P110NonFamInc35to50K","P110NonFamInc50to75K","P110NonFamInc75to100K","P110NonFamInc100to150K","P110NonFamInc>150K","P110AMedNonFamInc","H16HU1Room","H16HU2Room","H16HU3Room","H16HU4Room","H16HU5Room","H16HU6Room","H16HU7Room","H16HU8Room","H16HU9+Room","H43GrossRnt<100","H43GrossRnt100to149","H43GrossRnt150to199","H43GrossRnt200to249","H43GrossRnt250to299","H43GrossRnt300to349","H43GrossRnt350to399","H43GrossRnt400to449","H43GrossRnt450to499","H43GrossRnt500to549","H43GrossRnt550to599","H43GrossRnt600to649","H43GrossRnt650to699","H43GrossRnt700to749","H43GrossRnt750to999","H43GrossRnt1000Plus","H43NoCashRent","H43MedGrossRent","H51GrossRnt<20PctHHInc","H51GrossRnt20to24PctHHInc","H51GrossRnt25to29PctHHInc","H51GrossRnt30to34PctHHInc","H51GrossRnt35PctOrMoreHHInc","H51GrossRntAsPctHHIncNotComp","H52HUwMtgMoOwnCst<200","H52HUwMtgMoOwnCst200to299","H52HUwMtgMoOwnCst300to399","H52HUwMtgMoOwnCst400to499","H52HUwMtgMoOwnCst500to599","H52HUwMtgMoOwnCst600to699","H52HUwMtgMoOwnCst700to799","H52HUwMtgMoOwnCst800to899","H52HUwMtgMoOwnCst900to999","H52HUwMtgMoOwnCst1000to1249","H52HUwMtgMoOwnCst1250to1499","H52HUwMtgMoOwnCst1500to1999","H52HUwMtgMoOwnCst2000More","H52HUwNoMtgMoOwnCst<100","H52HUwNoMtgMoOwnCst100to149","H52HUwNoMtgMoOwnCst150to199","H52HUwNoMtgMoOwnCst200to249","H52HUwNoMtgMoOwnCst250to299","H52HUwNoMtgMoOwnCst300to349","H52HUwNoMtgMoOwnCst350to399","H52HUwNoMtgMoOwnCst400More","H52AMedMoOwnCstWMortg","H52AMedMoOwnCstWNoMortg","H58HUwMtgMOC<20pHHInc","H58HUwMtgMOC20to24pHHInc","H58HUwMtgMOC25to29pHHInc","H58HUwMtgMOC30to34pHHInc","H58wMtgMOC>35pHHInc","H58HUwMtgMOCNotComp","H58HUwNoMtgMOC<20pHHInc","H58HUwNoMtgMOC20to24pHHInc","H58HUwNoMtgMOC25to29pHHInc","H58HUwNoMtgMOC30to34pHHInc","H58wNoMtgMOC>35pHHInc","H58HUwNoMtgMOCNotComp","H61OOHUVal<15k","H61OOHUVal15to19k","H61OOHUVal20to24k","H61OOHUVal25to29k","H61OOHUVal30to34k","H61OOHUVal35to39k","H61OOHUVal40to44k","H61OOHUVal45to49k","H61OOHUVal50to59k","H61OOHUVal60to74k","H61OOHUVal75to99k","H61OOHUVal100to124k","H61OOHUVal125to149k","H61OOHUVal150to174k","H61OOHUVal175to199k","H61OOHUVal200to249k","H61OOHUVal250to299k","H61OOHUVal300to399k","H61OOHUVal400to499k","H61OOHUVal500kOrMore","H61aOOHUMedVal"]
[]
[]
[]
[]
[]
[]
[]
[]
[]
[]
[]
[]
[]
[]
[]
["Other Demo Data -             Query Name: QryAllTowns-ACSDemographicSheet",null,null,null,"2020-12-18"]
[]
["TOWN_NAME","FIPS","TOWNCNTY","COUSUB","POP80","POP90CDCEN","POP2000CEN","POP2010CEN","POP2025-Proj","POP2030-Proj","POP2040-Proj","SF80","MF80","MH80","SF81","MF81","MH81","SF82","MF82","MH82","SF83","MF83","MH83","SF84_OSP","MF84_OSP","MH84_OSP","SF85_OSP","MF85_OSP","MH85_OSP","SF86_OSP","MF86_OSP","MH86_OSP","SF87_OSP","MF87_OSP","MH87_OSP","SF88_OSP","MF88_OSP","MH88_OSP","SF89_OSP","MF89_OSP","MH89_OSP","SF90_OSP","MF90_OSP","MH90_OSP","SF91_OSP","MF91_OSP","MH91_OSP","SF92_OSP","MF92_OSP","MH92_OSP","SF93_OSP","MF93_OSP","MH93_OSP","SF94_OSP","MF94_OSP","MH94_OSP","SF95_OSP","MF95_OSP","MH95_OSP","SF96_OSP","MF96_OSP","MH96_OSP","SF97_OSP","MF97_OSP","MH97_OSP","SF98_OSP","MF98_OSP","MH98_OSP","SF99_OSP","MF99_OSP","MH99_OSP","SF00_OSP","MF00_OSP","MH00_OSP","SF01_OSP","MF01_OSP","MH01_OSP","SF02_OSP","MF02_OSP","MH02_OSP","SF03_OSP","MF03_OSP","MH03_OSP","SF04_OSP","MF04_OSP","MH04_OSP","SF05_OSP","MF05_OSP","MH05_OSP","SF06_OSP","MF06_OSP","MH06_OSP","SF07_OSP","MF07_OSP","MH07_OSP","SF08_OSP","MF08_OSP","MH08_OSP","SF09_OSP","MF09_OSP","MH09_OSP","SF10_OSP","MF10_OSP","MH10_OSP","SF11_OSP","MF11_OSP","MH11_OSP","SF12_OSP","MF12_OSP","MH12_OSP","SF13_OSP","MF13_OSP","MH13_OSP","SF14_OSP","MF14_OSP","MH14_OSP","SF15_OSP","MF15_OSP","MH15_OSP","SF16_OSP","MF16_OSP","MH16_OSP","SF17_OSP","MF17_OSP","MH17_OSP","SF18_OSP","MF18_OSP","MH18_OSP","SF19_OSP","MF19_OSP","MH19_OSP","COMMENTS","CNTY_CODE"]
["Acworth",19005,1001,"00260",590,776,836,891,937,960,989,6,0,0,4,0,0,3,0,0,6,0,1,3,0,0,3,0,1,2,0,1,4,0,1,1,0,1,3,0,5,0,0,1,1,0,1,0,0,1,1,0,0,2,1,1,2,0,0,2,0,2,3,0,0,4,0,2,0,0,1,0,0,1,2,0,2,6,0,0,11,0,2,11,0,1,10,0,0,10,0,0,9,0,0,3,0,2,4,0,0,5,0,0,4,0,0,0,0,0,1,0,2,0,0,0,1,0,0,0,0,0,0,0,0,3,0,2,1,0,0,"",10]
["Charlestown",19010,1002,"11380",4417,4630,4749,5114,5432,5571,5735,9,2,18,13,0,19,5,12,16,8,0,21,9,0,15,7,2,16,5,0,27,20,0,35,37,17,36,9,35,25,9,0,11,9,0,12,2,0,13,5,0,21,4,0,9,2,0,29,0,4,0,0,-3,3,2,0,12,3,21,27,10,-11,22,5,0,18,6,0,7,11,0,14,14,0,7,6,0,10,5,0,-2,13,0,0,5,0,5,7,4,1,2,1,6,3,-4,0,5,-1,0,2,0,-1,5,0,3,0,0,2,2,2,1,1,0,11,-4,2,2,1,0,1,"",10]
["Claremont",19015,1003,"12900",14557,13902,13151,13355,13322,13662,14064,20,-1,20,14,-3,12,7,6,4,12,-18,7,6,-13,7,11,20,14,16,10,11,34,5,10,87,0,22,18,40,5,5,-2,0,3,4,4,5,0,3,5,-3,9,3,-61,16,3,-25,11,1,-50,12,6,-21,8,19,-2,3,10,0,3,7,-25,3,5,-2,5,19,-8,1,3,-3,11,15,0,7,5,1,6,18,0,0,10,0,1,2,0,-1,1,0,14,1,0,1,-2,3,3,2,0,4,-1,-5,5,0,0,-1,1,-2,2,3,0,-2,-2,-2,0,0,0,3,-1,0,1,"2006  Did not submit data to OEP. Used Census Data",10]
["Cornish",19020,1004,"15060",1390,1659,1661,1640,1583,1623,1671,9,0,0,4,0,1,9,0,2,10,0,3,10,0,2,7,0,1,10,0,3,10,0,3,14,0,0,6,0,0,2,0,0,2,0,0,2,0,0,3,0,0,1,0,0,3,0,0,2,0,3,4,0,3,2,0,1,4,0,0,6,0,0,-1,0,1,7,0,1,9,0,0,5,2,0,5,2,0,6,0,0,6,0,0,6,0,-1,2,0,0,1,0,1,1,0,0,3,0,0,3,0,0,1,0,0,0,0,0,3,0,0,1,0,1,0,0,0,1,2,0,"",10]
["Croydon",19025,1005,"16340",457,627,661,764,867,890,916,1,0,1,0,0,0,2,0,2,7,0,1,0,0,0,6,0,2,0,0,0,12,0,7,11,1,2,10,1,1,2,0,0,5,0,3,3,0,1,4,0,2,8,0,1,4,0,0,3,0,0,3,0,0,6,0,4,3,0,1,7,0,2,1,0,0,9,0,3,6,0,0,2,0,1,7,0,1,11,0,0,8,0,0,2,0,1,3,0,0,1,0,0,0,0,0,1,0,0,1,0,-1,0,0,0,0,0,0,3,0,1,3,0,0,2,0,1,1,0,2,"",10]
["Goshen",19030,1006,"30500",549,742,741,810,873,896,922,8,0,1,6,0,0,3,0,0,8,0,0,6,1,2,5,0,0,6,0,0,10,0,1,5,0,5,8,0,0,2,-1,4,3,0,2,3,0,2,3,0,2,4,0,3,3,0,0,2,0,0,3,0,0,4,0,0,4,0,0,5,0,0,6,0,0,5,0,0,7,0,2,9,0,0,8,0,0,7,0,0,3,0,0,0,-1,1,1,0,0,1,0,0,0,0,0,0,0,0,0,0,1,0,0,0,3,1,0,1,0,0,0,0,0,0,0,0,0,0,0,"2000, 2001, 2004, 2005, 2006 Did not submit data to OEP. Used Census Data",10]
["Grantham",19035,1007,"31220",704,1247,2167,2985,3868,3967,4084,78,10,0,81,0,0,6,0,0,0,0,0,9,0,0,7,0,0,52,0,0,61,0,0,63,0,3,58,0,5,27,0,2,27,0,1,17,0,0,22,0,1,27,0,2,22,0,1,24,0,2,25,0,0,21,0,2,21,0,3,34,0,1,28,2,0,45,2,0,59,0,0,42,0,0,31,0,0,23,0,0,23,0,0,15,0,0,6,0,0,5,0,0,6,0,0,3,0,0,5,2,0,7,0,0,17,0,0,3,0,0,3,1,0,6,0,0,4,0,0,"",10]
["Langdon",19040,1008,"40900",437,580,586,688,792,812,836,1,0,0,1,0,2,2,0,0,3,0,0,2,0,0,2,0,1,3,0,0,5,0,0,8,0,2,3,0,0,4,0,0,7,0,2,6,0,1,0,0,1,2,0,0,3,0,2,4,0,0,4,0,0,1,0,2,4,0,0,3,0,0,1,0,0,5,1,0,0,0,0,6,0,0,8,0,0,5,0,0,6,0,0,2,0,0,1,0,0,1,0,0,0,0,0,3,0,0,0,0,0,0,0,0,2,0,0,1,0,0,1,0,0,0,0,0,1,0,0,"2006  Did not submit data to OEP. Used Census Data",10]
["Lempster",19045,1009,"41700",637,947,971,1154,1342,1376,1417,6,0,0,2,0,2,3,0,3,8,0,2,5,0,3,7,0,4,15,4,0,15,0,6,12,0,4,11,0,5,3,0,3,2,0,3,4,0,2,2,0,0,4,0,3,4,0,0,7,0,3,8,0,0,4,0,0,5,0,5,9,0,4,11,0,0,12,0,2,11,0,0,23,0,0,13,0,3,14,0,0,10,0,2,7,0,0,6,0,0,1,0,1,3,0,2,3,0,0,4,0,0,1,0,1,1,0,2,2,0,0,0,0,-2,5,1,1,0,0,2,"",10]
["Newport",19050,1010,"52580",6229,6110,6269,6507,6651,6820,7021,11,51,9,8,48,7,13,0,12,7,6,6,5,-17,7,15,6,14,26,10,16,25,0,37,64,2,24,13,-5,6,5,-5,6,4,0,3,4,2,5,3,1,2,4,0,13,8,0,11,5,0,6,6,27,3,4,4,3,7,0,3,8,0,9,4,0,0,12,1,7,9,1,-1,24,7,7,20,0,0,11,0,9,45,26,34,3,0,4,0,6,2,3,4,3,-2,3,-3,3,2,0,3,0,0,0,-9,-2,4,0,4,-1,0,8,-6,0,2,3,2,1,4,2,1,"",10]
["Plainfield",19055,1011,"62340",1749,2056,2241,2364,2458,2521,2595,9,0,3,13,2,0,8,2,0,21,0,0,8,0,-1,10,0,0,24,0,1,20,3,3,26,2,3,28,0,4,11,6,5,9,0,2,5,0,1,11,0,1,4,0,2,7,0,1,4,0,4,6,0,1,12,0,2,13,0,7,18,0,2,12,0,0,15,0,0,15,0,0,19,0,0,12,0,0,6,0,0,9,0,0,3,0,0,3,3,0,5,0,0,3,0,0,3,0,0,5,0,0,7,2,0,4,2,0,4,0,0,8,2,0,5,0,0,5,5,0,"",10]
["Springfield",19060,1012,"72740",532,788,945,1311,1707,1750,1802,5,0,1,6,0,7,7,0,4,8,0,9,8,0,2,15,0,5,12,8,3,10,0,3,13,2,2,11,0,2,2,0,7,6,0,2,5,0,1,6,0,4,6,0,7,10,2,2,8,2,2,9,0,5,1,0,7,12,2,4,6,0,6,12,0,2,19,0,3,20,0,1,24,0,1,14,0,-2,15,0,0,2,0,0,5,0,0,4,0,1,2,0,0,6,0,1,2,0,0,5,0,0,1,0,0,3,0,1,2,1,0,4,0,-1,2,0,0,4,0,0,"",10]
["Sunapee",19065,1013,"75060",2312,2559,3055,3365,3655,3748,3858,20,0,0,12,0,0,0,0,0,19,0,-2,34,0,2,21,0,1,52,0,1,24,16,1,40,4,-1,9,3,2,11,1,0,10,6,1,9,0,0,7,1,2,13,0,0,23,0,0,21,2,0,19,6,0,17,5,0,15,0,3,29,8,0,20,2,0,20,0,0,29,2,0,24,14,1,35,2,2,25,9,0,16,4,0,11,5,1,3,2,1,9,0,1,8,0,1,4,5,0,8,4,0,7,8,0,11,0,0,10,3,2,3,0,0,6,-1,0,8,2,0,"2003 Did not submit data to OEP. Used Census Data",10]
["Unity",19070,1014,"77940",1092,1341,1530,1671,1800,1846,1900,0,0,0,12,0,5,10,0,3,9,0,4,13,0,0,6,0,6,13,0,8,16,0,5,18,0,9,7,0,7,3,0,4,9,0,5,4,1,7,4,0,8,10,0,0,2,0,5,4,0,10,4,0,6,4,0,3,6,0,-1,2,0,8,5,0,10,6,0,4,8,0,3,10,0,3,11,0,4,7,0,0,5,2,0,7,0,0,1,0,5,-2,0,0,-5,0,2,-1,0,1,-5,0,0,5,0,2,-2,0,0,0,0,0,-1,0,2,2,0,1,1,0,0,"",10]
["Washington",19075,1015,"78980",411,628,895,1123,1363,1398,1439,13,0,0,15,0,0,7,0,-1,0,0,0,20,0,1,11,0,1,19,0,3,23,0,0,18,0,0,11,0,4,4,0,1,9,0,0,3,0,1,3,0,0,7,0,1,1,0,2,4,0,1,1,0,-1,6,0,2,12,0,4,7,0,2,10,0,1,14,0,1,25,0,0,32,0,0,30,0,0,15,0,3,25,0,0,9,0,0,6,0,0,2,0,0,3,0,0,3,0,0,2,0,1,3,0,0,3,0,0,1,0,1,7,0,0,5,0,1,10,0,0,"",10]
[]
[]
[]
[]
[]
[]
[]
[]
[]
[]
[]
[]
[]
[]
[]
[]
[]
[]
[]
[]
[]
[]
[]
[]
[]
[]
[]
[]
[]
[]
[]
[]
[]
[]
[]
["NH Employment Data","Query Name: DPQryEmploymentByCnty-Good-Serv-Total","Updated:","2020-09-30"]
[]
["AreaName","COUNTYCODE","TOTP & G2001","TOT2001","GOODPRO2001","SERVICEPROMAN2001","WAGEP & G2001","WAGETOT2001","WAGEGOODPRO2001","WAGESERVICEPRO2001","TOTP & G2002","TOT2002","GOODPRO2002","SERVICEPROMAN2002","WAGEP & G2002","WAGETOT2002","WAGEGOODPRO2002","WAGESERVICEPRO2002","TOTP & G2003","TOT2003","GOODPRO2003","SERVICEPROMAN2003","WAGEP & G2003","WAGETOT2003","WAGEGOODPRO2003","WAGESERVICEPRO2003","TOTP & G2004","TOT2004","GOODPRO2004","SERVICEPROMAN2004","WAGEP & G2004","WAGETOT2004","WAGEGOODPRO2004","WAGESERVICEPRO2004","TOTP & G2005","TOT2005","GOODPRO2005","SERVICEPROMAN2005","WAGEP & G2005","WAGETOT2005","WAGEGOODPRO2005","WAGESERVICEPRO2005","TOTP & G2006","TOT2006","GOODPRO2006","SERVICEPROMAN2006","WAGEP & G2006","WAGETOT2006","WAGEGOODPRO2006","WAGESERVICEPRO2006","TOTP & G2007","TOT2007","GOODPRO2007","SERVICEPROMAN2007","WAGEP & G2007","WAGETOT2007","WAGEGOODPRO2007","WAGESERVICEPRO2007","TOTP & G2008","TOT2008","GOODPRO2008","SERVICEPROMAN2008","WAGEP & G2008","WAGETOT2008","WAGEGOODPRO2008","WAGESERVICEPRO2008","TOTP & G2009","TOT2009","GOODPRO2009","SERVICEPROMAN2009","WAGEP & G2009","WAGETOT2009","WAGEGOODPRO2009","WAGESERVICEPRO2009","TOTP & G2010","TOT2010","GOODPRO2010","SERVICEPROMAN2010","WAGEP & G2010","WAGETOT2010","WAGEGOODPRO2010","WAGESERVICEPRO2010","TOTP & G2011","TOT2011","GOODPRO2011","SERVICEPROMAN2011","WAGEP & G2011","WAGETOT2011","WAGEGOODPRO2011","WAGESERVICEPRO2011","TOTP & G2012","TOT2012","GOODPRO2012","SERVICEPROMAN2012","WAGEP & G2012","WAGETOT2012","WAGEGOODPRO2012","WAGESERVICEPRO2012","TOTP & G2013","TOT2013","GOODPRO2013","SERVICEPROMAN2013","WAGEP & G2013","WAGETOT2013","WAGEGOODPRO2013","WAGESERVICEPRO2013","TOTP & G2014","TOT2014","GOODPRO2014","SERVICEPROMAN2014","WAGEP & G2014","WAGETOT2014","WAGEGOODPRO2014","WAGESERVICEPRO2014","TOTP & G2015","TOT2015","GOODPRO2015","SERVICEPROMAN2015","WAGEP & G2015","WAGETOT2015","WAGEGOODPRO2015","WAGESERVICEPRO2015","TOTP & G2016","TOT2016","GOODPRO2016","SERVICEPROMAN2016","WAGEP & G2016","WAGETOT2016","WAGEGOODPRO2016","WAGESERVICEPRO2016","TOTP & G2017","TOT2017","GOODPRO2017","SERVICEPROMAN2017","WAGEP & G2017","WAGETOT2017","WAGEGOODPRO2017","WAGESERVICEPRO2017","TOTP & G2018","TOT2018","GOODPRO2018","SERVICEPROMAN2018","WAGEP & G2018","WAGETOT2018","WAGEGOODPRO2018","WAGESERVICEPRO2018","TOTP & G2019","TOT2019","TOTGov2019","GOODPRO2019","SERVICEPROMAN2019","WAGEP & G2019","WAGETOT2019","WAGEGov2019","WAGEGOODPRO2019","WAGESERVICEPRO2019","SummaryLevel"]
["Acworth",10,89,72,64,7,578.72,624,551.35,1269.44,94,77,70,7,504.34,528.30999999999995,530.91999999999996,500.18,97,78,74,5,538.22,566.1,581.54999999999995,322.35000000000002,98,75,"n","n",548.75,614.73,"n","n",102,81,76,6,582.30999999999995,632.73,606.52,993.67,99,78,72,6,663.38,744.67,654.92999999999995,1788.76,97,74,68,7,653,733.26,658.76,1508.89,88,70,65,5,694.94,770.13,770.11,770.35,107,92,"n","n",718.2,782.26,"n","n",83,69,64,5,974.89,1111.9100000000001,1138.97,746.85,91,77,69,7,637.09,698.52,723.71,463.81,95,81,73,8,870.72,957.56,1035.69,253.57,103,84,"n","n",836.51,923.65,"n","n",104,86,73,13,935.72,1034.3499999999999,1150.56,369.51,"106","89","73","16","916.47","992.96","1116.08","422.03",124,107,82,25,673.64,698.45,783.75,422.29,119,100,80,20,727.47,767.13,855.47,416.7,117,98,86,12,727.25,760.55,821,329.08,112,95,17,83,12,979.14,829.52,1814.8,896.99,367.87,60]
["Charlestown",10,1864,1400,897,503,542.15,559.34,557.57000000000005,562.49,1906,1465,898,567,580.07000000000005,578.64,574.96,584.46,1819,1365,801,565,608.9,616.79,625.41999999999996,604.57000000000005,1960,1507,792,715,608.95000000000005,611.57000000000005,667.02,550.20000000000005,2016,1546,805,740,629.04999999999995,639.38,711.71,560.69000000000005,1939,1475,787,688,645.22,659.3,744.67,561.62,1989,1517,843,674,699.13,720.6,767.99,661.32,2038,1545,938,606,717.26,744.45,808.35,645.54,1954,1466,886,580,728.4,748.26,796.97,673.83,1934,1454,888,566,748.13,767.31,816.45,690.23,1883,1433,874,560,784.1,794.26,869.44,676.87,2078,1627,939,688,789.25,799.25,907.74,651.33000000000004,1909,1688,1005,684,809.12,832.52,937.59,678.1,2063,1824,1067,757,806.75,833.66,955.9,661.24,"2259","2027","1144","883","853.81","876.91","1022.99","687.63",2205,1969,1192,777,871.39,895.49,1013.74,714.18,2122,1901,1239,662,935.33,973.32,1086.42,761.6,2161,1930,1290,640,952.73,996.54,1087.02,814.24,2080,1851,229,1272,579,971.62,1015.53,617.07000000000005,1089.21,853.69,60]
["Claremont",10,5923,5179,1458,3722,535.84,531.41,678.37,473.84,5614,4874,1203,3670,571.30999999999995,566,778.7,496.27,5358,4606,985,3621,581.1,572.86,743.82,526.34,5451,4668,1015,3653,604.91999999999996,600.32000000000005,790.78,547.4,5680,4870,1050,3820,609.48,605.49,803.92,550.94000000000005,5837,5033,986,4047,635.4,629.47,890.34,565.91999999999996,5869,5038,958,4079,665.45,661.28,957.2,591.75,5661,4820,843,3977,678.45,673.93,928.54,619.92999999999995,5474,4581,659,3922,669.32,656.74,892.8,617.07000000000005,5549,4624,626,3998,699.91,694.57,985.54,648.97,5817,4905,"n","n",691.88,687.13,"n","n",5899,5032,"n","n",702.47,699.84,"n","n",5988,5094,"n","n",725.24,728.15,"n","n",5667,4752,813,3939,760.44,768.97,1028.5999999999999,715.4,"5704","4788","817","3971","783.12","786.03","1088.51","723.79",5833,4874,889,3984,767.32,779.29,1090.74,709.78,"n","n","n","n","n","n","n","n",5773,4956,"n","n",804.85,799,"n","n",5671,4863,808,"n","n",811.94,803.1,865.13,"n","n",60]
["Cornish",10,163,82,29,54,501.97,538.21,430.48,595.76,163,81,25,56,532.45000000000005,544.67999999999995,566.59,534.83000000000004,151,72,21,51,517.14,487.17,455.52,500.49,139,64,"n","n",486.43,377.64,"n","n",135,59,22,37,455.4,376.31,385.25,371.14,141,66,22,44,505.73,452.04,406.22,475.26,138,62,21,41,566.5,527.63,461.81,560.47,147,67,19,49,512.61,450.33,479.17,439.33,140,61,"n","n",543.83000000000004,446.89,"n","n",141,64,"n","n",554.23,454.43,"n","n",138,63,21,43,586.1,502.45,520.22,493.86,"n","n","n","n","n","n","n","n","n","n","n","n","n","n","n","n",129,54,19,35,612.39,535.27,518.62,544.27,"123","53","20","33","615.32","528.49","567.51","505.4",114,48,18,29,610.96,538.16,544.35,534.28,117,52,"n","n",623.27,498.92,"n","n",112,43,16,27,654.52,566.24,699.35,488.48,118,46,73,19,26,651.91999999999996,575.95000000000005,699.41,572.30999999999995,578.62,60]
["Croydon",10,79,55,19,37,331.81,421.3,547.88,356,83,57,25,32,322.66000000000003,412.16,478.45,359.85,82,56,29,27,332.17,427.64,497.02,352.48,115,94,32,62,344.62,387.92,523.49,318.58999999999997,112,94,34,60,381.26,420.21,569.41,335.19,116,96,34,63,395.54,430.34,603.91999999999996,337.56,115,93,29,64,397.48,437.62,642.55999999999995,344.35,114,89,25,64,378.06,428.74,620.58000000000004,352.71,107,84,20,63,400.82,452.55,698.06,373.62,114,92,32,60,418.29,467.94,603.22,394.65,104,94,23,71,394.34,408.83,558.71,360.27,89,79,20,59,446.18,471.37,578.12,436.09,106,95,19,77,387.83,402,610.15,351.03,86,74,20,54,489.47,532.51,579.23,515.53,"108","96","13","83","381.22","394.85","670.22","350.16",125,111,"n","n",381.46,403.73,"n","n",134,123,22,101,513.44000000000005,535.49,787.59,481.18,163,152,"n","n",453.99,463.72,"n","n",142,132,0,14,118,545.67999999999995,557.69000000000005,0,877.21,518.34,60]
["Goshen",10,96,35,9,26,383.74,346.95,664.23,238.81,101,36,9,26,383.23,342.61,622.82000000000005,241.45,56,40,13,27,354.85,334.51,530.38,236.27,56,41,16,25,393.76,429.46,681.34,271.08999999999997,43,25,8,17,310.95,299.39999999999998,435.93,232.13,34,17,4,13,330.82,283.75,524.23,210.1,41,21,6,15,391.95,366.67,512.53,310.88,42,25,7,17,408.23,409.13,489.31,374.88,44,28,7,21,488.6,599.22,419.68,656.95,33,19,"n","n",450.91,541.13,"n","n",34,20,"n","n",436.3,508.25,"n","n",31,17,"n","n",423.41,480.81,"n","n",32,21,"n","n",428.53,467.25,"n","n","n","n","n","n","n","n","n","n","n","n","n","n","n","n","n","n","n","n","n","n","n","n","n","n",40,28,"n","n",467.77,470.6,"n","n",40,27,"n","n",483.45,518.13,"n","n",40,29,11,"n","n",502.3,535.57000000000005,411.96,"n","n",60]
["Grantham",10,300,276,92,183,514.5,503.81,592.91999999999996,458.92,307,279,99,180,512.86,508.88,622.42999999999995,446.7,347,321,110,211,547.54,540.41,673.42,471.28,391,363,144,219,546.82000000000005,539.5,621.96,485.19,393,361,139,221,587.76,585.82000000000005,619.88,564.37,366,335,123,212,641.34,638.70000000000005,643.65,635.84,338,305,105,200,710.04,709.77,744.2,691.7,351,310,103,208,635.95000000000005,636.19000000000005,675.32,616.84,318,279,82,197,636.91999999999996,634.61,694.39,609.57000000000005,287,249,67,182,640.54,648.77,871.25,567.49,270,228,38,190,592,602.09,777.31,567.35,268,222,25,197,674.11,707.19,713.75,706.36,293,245,36,209,694.66,726.57,885.64,698.82,303,258,43,215,688.99,712.76,770.97,701,"314","270","42","228","653.34","663.48","829.78","633.16",324,279,42,237,620.96,625.71,823.99,590.66999999999996,310,268,0,0,626.41999999999996,621.05999999999995,0,0,328,284,0,0,694.36,700.3,0,0,325,269,4,0,0,673.63,702.55,1459.47,0,0,60]
["Langdon",10,85,77,43,34,450.12,473.72,521.24,413.95,59,52,43,9,498.62,519.30999999999995,494.91,639.45000000000005,58,48,39,9,414.81,447.93,437.27,494.12,49,37,"n","n",390.52,446.72,"n","n",54,44,24,20,466.5,502.86,438.37,579.55999999999995,56,48,24,24,504.76,534.16,438.65,627.36,82,74,32,42,410.81,415.56,439.02,397.64,84,70,38,32,487.96,547.51,483.37,622.96,62,58,"n","n",522.80999999999995,512.98,"n","n",56,53,35,19,619.97,597.36,601.35,589.87,58,53,35,18,591.75,587.94000000000005,581.39,600.59,61,54,35,19,605.46,623.98,603.80999999999995,661.88,221,73,"n","n",765.46,778.83,"n","n",202,67,37,30,822.43,834.32,692.29,1008.04,"205","72","43","29","837.12","842.89","688.15","1073.44",198,62,33,30,879.47,888.97,697.58,1101.3900000000001,217,61,30,31,894.63,920.6,722.9,1115.5899999999999,217,56,30,26,887.15,883.2,736.78,1054.81,210,50,160,31,18,910.55,859.33,926.41,761.83,1025.54,60]
["Lempster",10,52,43,24,19,443.5,499.93,544.79999999999995,441.64,49,37,17,20,456.87,541.37,538.49,543.78,100,38,11,27,428.84,465.43,502.88,450.97,84,28,7,20,453.46,466.18,549.66999999999996,435.48,98,44,21,23,556.33000000000004,635.14,587.97,677.75,107,53,21,32,593.36,681.16,717.77,656.78,117,64,19,45,597.1,648.29999999999995,587.78,673.92,130,72,20,52,656.81,742.55,684.59,764.31,125,65,9,56,646.29,700.26,510.95,730.4,126,67,"n","n",648.98,688.71,"n","n",114,53,"n","n",693.51,815.29,"n","n",121,57,"n","n",764.24,950.86,"n","n",133,65,"n","n",852.33,1128.69,"n","n",119,52,"n","n",788.26,1032.5,"n","n","113","68","n","n","877.78","984.44","n","n",117,96,"n","n",893.97,936.51,"n","n",117,96,"n","n",805.04,825.86,"n","n",119,99,"n","n",810.37,831.97,"n","n",114,94,20,"n","n",816.41,852.53,648.07000000000005,"n","n",60]
["Newport",10,4059,3298,1800,1498,564.20000000000005,589.62,703.59,452.71,3973,3184,1657,1527,585.16,609.16999999999996,736.26,471.23,3795,3042,1563,1479,597.66999999999996,624.22,744.09,497.54,3686,3028,1518,1511,637.45000000000005,646.9,760,533.29999999999995,3797,3134,1559,1575,655.37,665.73,793.28,539.5,3787,3079,1518,1561,689.73,708.53,862.55,558.79999999999995,3768,3112,1550,1562,723.55,743.12,907.57,579.88,3759,3134,1556,1578,743.26,759.01,942.68,577.88,3355,2936,1433,1503,782.33,796.91,1014.77,589.22,3250,2843,1322,1521,775.99,788.36,1021.53,585.63,3198,2752,1215,1537,812.81,833.18,1133.55,595.70000000000005,3284,2829,1250,1578,870.46,899.4,1278.26,599.24,3480,3043,1460,1582,866.1,886.95,1168.5,627.12,3746,3312,1560,1752,873.01,892.93,1172.74,643.79,"3668","3238","1481","1756","829.04","841.03","1047.12","667.2",3628,3200,1471,1729,890.13,910.93,1192.23,671.6,3547,3106,1419,1687,883.43,903.64,1101.21,737.48,3370,2915,1271,1644,869.72,889.78,1144.82,692.53,3330,2871,459,1231,1640,890.05,910.68,760.99,1178.17,709.85,60]
["Plainfield",10,372,343,82,261,482.94,498.63,397.09,530.71,400,368,85,283,495.04,513.05999999999995,382.14,552.55999999999995,411,378,79,299,517.87,536.41999999999996,412.4,569.35,441,407,75,332,516.15,532.79999999999995,406.5,561.34,424,393,75,318,532.16999999999996,545.41999999999996,384.06,583.46,396,366,77,289,581.94000000000005,599.5,426.15,645.79999999999995,394,362,88,274,619.88,637.21,438.31,701.45,428,393,86,308,667.28,684.04,450.34,749.34,400,369,72,296,687.06,704.4,466.74,762.35,423,390,72,319,679.24,692.15,520.67999999999995,730.78,444,413,79,334,683.9,693.39,464.11,747.41,421,386,86,300,635.16999999999996,650.97,471.15,702.62,409,378,84,293,667.89,675.33,485.82,729.76,404,373,84,289,769.83,779.61,570.69000000000005,840.6,"423","392","87","305","761.8","769.6","620.78","812.29",470,436,97,339,750.94,759.99,665.01,787.21,480,444,111,333,793.94,804.62,700.33,839.33,504,467,116,351,830.89,842.02,739.86,875.86,521,488,34,112,376,870.77,881.51,716.02,745.09,922.16,60]
["Springfield",10,191,177,"n","n",712.09,742.82,"n","n",221,205,"n","n",586.61,615.16999999999996,"n","n",229,213,"n","n",760.38,796.92,"n","n",235,220,"n","n",841.49,876.16,"n","n",142,124,26,98,853.87,933.07,435.21,1064.51,133,116,26,90,806.41,875.03,488.61,984.22,126,108,20,89,838.43,899.9,486.71,992.5,119,98,13,85,739.99,809.24,547.20000000000005,848.07,109,91,11,79,863.95,947.28,541.51,1005.79,114,99,9,90,902.23,963.67,578.88,1003.37,"n","n","n","n","n","n","n","n",113,99,10,89,1317.12,1417.34,1141.68,1448.46,101,90,11,79,1096.1500000000001,1158.6400000000001,727.6,1218.4000000000001,118,106,12,94,1115.17,1184.02,660.88,1249.93,"126","113","20","94","1037.6","1081.42","1015.46","1095.3",118,107,16,91,1060.0899999999999,1093.8399999999999,1101.68,1092.43,131,115,20,95,913.24,974.26,939.78,981.46,133,116,18,98,921.83,984.08,938.18,992.73,134,116,18,26,90,979.26,985.9,937.27,915.34,1006.46,60]
["Sunapee",10,663,433,179,254,463.96,486.73,505.41,473.61,669,444,156,288,469.79,452.43,594.16999999999996,375.45,714,479,180,299,494.53,519.82000000000005,592.30999999999995,476.19,710,531,192,339,551.25,537.74,699.11,446.52,713,540,196,344,585.75,571.99,657.93,523.15,660,479,188,291,589.6,568.98,654.89,513.53,649,461,177,284,620.72,604.58000000000004,678.34,558.74,688,488,163,325,578.70000000000005,542.65,801.13,413.27,639,429,143,285,610.86,565.99,736.8,480.13,617,406,139,267,588.26,525.25,729.43,419.08,589,380,138,242,605.66,544.99,784.85,408.63,605,397,137,260,639.95000000000005,598.09,825.3,478.56,610,404,139,265,691.89,654.26,892.68,529.05999999999995,639,436,155,280,746.73,716.19,899.21,614.76,"658","459","164","295","817.84","811.46","882.76","771.69",640,444,144,300,836.01,826.95,861.97,810.14,631,434,126,307,800.37,766.64,857.45,729.28,658,458,125,333,815.96,781.59,947.76,719.27,660,455,206,117,338,860.83,813.01,966.65,1056.04,728.57,60]
["Unity",10,62,23,"n","n",312.2,328.34,"n","n",65,25,"n","n",300.49,348.46,"n","n",62,23,14,10,353.29,378.96,355.87,410.4,58,20,14,6,425.7,586.42999999999995,420.66,992.46,73,29,20,9,436.29,585.62,436.96,930.14,68,26,18,9,484.55,664.69,513.51,981.88,66,23,14,9,481.61,641.77,603.95000000000005,697.66,67,21,12,9,503.53,745.02,1073.42,279.52,263,19,5,14,577.77,380.17,602.91999999999996,298.8,266,19,4,15,599.5,300.93,345.88,287.47000000000003,250,16,"n","n",634.26,296.04000000000002,"n","n",241,19,"n","n",651.32000000000005,309.39999999999998,"n","n",211,13,"n","n",675.88,392.17,"n","n","n","n","n","n","n","n","n","n","n","n","0","n","n","n","0","n","n","n",0,"n","n","n",0,"n","n","n","n","n","n",{"$f":"EE184","v":"n"},"n","n",208,4,"n","n",757.5,414.18,"n","n",204,6,198,"n","n",777.23,827.22,775.76,"n","n",60]
["Washington",10,87,51,37,14,362.4,377.35,276.42,651.24,91,50,33,17,359.92,405.36,316.75,583.01,90,48,"n","n",375.85,431.4,"n","n",80,45,33,12,400.41,417.23,335.91,630.63,82,43,31,12,422.08,455.32,361.6,702.4,87,40,31,9,373.15,445.46,344.61,797.46,85,36,28,8,420.6,510.01,349.47,1101.54,83,27,21,5,437.58,605.67999999999995,433.02,1288.3699999999999,88,30,18,12,532.98,851.46,428.26,1478.95,82,32,16,15,647.61,1022.21,380.66,1705.59,"n","n","n","n","n","n","n","n","n","n","n","n","n","n","n","n","n","n","n","n","n","n","n","n","n","n","n","n","n","n","n","n","55","20","n","n","667.69","776.49","n","n",69,23,11,12,544.57000000000005,653.33000000000004,442.94,840.66,"n","n","n","n","n","n","n","n",65,23,"n","n",585.63,629.91999999999996,"n","n",72,26,46,"n","n",579.97,691.87,517.53,"n","n",60]
[]
[]
["NH Employment Data","Query Name: DPQryEmploymentByCnty-Good-Serv-Total","Updated:","2020-09-30"]
[]
["AreaName","COUNTYCODE","TOTP & G2001","TOT2001","GOODPRO2001","SERVICEPROMAN2001","WAGEP & G2001","WAGETOT2001","WAGEGOODPRO2001","WAGESERVICEPRO2001","TOTP & G2002","TOT2002","GOODPRO2002","SERVICEPROMAN2002","WAGEP & G2002","WAGETOT2002","WAGEGOODPRO2002","WAGESERVICEPRO2002","TOTP & G2003","TOT2003","GOODPRO2003","SERVICEPROMAN2003","WAGEP & G2003","WAGETOT2003","WAGEGOODPRO2003","WAGESERVICEPRO2003","TOTP & G2004","TOT2004","GOODPRO2004","SERVICEPROMAN2004","WAGEP & G2004","WAGETOT2004","WAGEGOODPRO2004","WAGESERVICEPRO2004","TOTP & G2005","TOT2005","GOODPRO2005","SERVICEPROMAN2005","WAGEP & G2005","WAGETOT2005","WAGEGOODPRO2005","WAGESERVICEPRO2005","TOTP & G2006","TOT2006","GOODPRO2006","SERVICEPROMAN2006","WAGEP & G2006","WAGETOT2006","WAGEGOODPRO2006","WAGESERVICEPRO2006","TOTP & G2007","TOT2007","GOODPRO2007","SERVICEPROMAN2007","WAGEP & G2007","WAGETOT2007","WAGEGOODPRO2007","WAGESERVICEPRO2007","TOTP & G2008","TOT2008","GOODPRO2008","SERVICEPROMAN2008","WAGEP & G2008","WAGETOT2008","WAGEGOODPRO2008","WAGESERVICEPRO2008","TOTP & G2009","TOT2009","GOODPRO2009","SERVICEPROMAN2009","WAGEP & G2009","WAGETOT2009","WAGEGOODPRO2009","WAGESERVICEPRO2009","TOTP & G2010","TOT2010","GOODPRO2010","SERVICEPROMAN2010","WAGEP & G2010","WAGETOT2010","WAGEGOODPRO2010","WAGESERVICEPRO2010","TOTP & G2011","TOT2011","GOODPRO2011","SERVICEPROMAN2011","WAGEP & G2011","WAGETOT2011","WAGEGOODPRO2011","WAGESERVICEPRO2011","TOTP & G2012","TOT2012","GOODPRO2012","SERVICEPROMAN2012","WAGEP & G2012","WAGETOT2012","WAGEGOODPRO2012","WAGESERVICEPRO2012","TOTP & G2013","TOT2013","GOODPRO2013","SERVICEPROMAN2013","WAGEP & G2013","WAGETOT2013","WAGEGOODPRO2013","WAGESERVICEPRO2013","TOTP & G2014","TOT2014","GOODPRO2014","SERVICEPROMAN2014","WAGEP & G2014","WAGETOT2014","WAGEGOODPRO2014","WAGESERVICEPRO2014","TOTP & G2015","TOT2015","GOODPRO2015","SERVICEPROMAN2015","WAGEP & G2015","WAGETOT2015","WAGEGOODPRO2015","WAGESERVICEPRO2015","TOTP & G2016","TOT2016","GOODPRO2016","SERVICEPROMAN2016","WAGEP & G2016","WAGETOT2016","WAGEGOODPRO2016","WAGESERVICEPRO2016","TOTP & G2017","TOT2017","GOODPRO2017","SERVICEPROMAN2017","WAGEP & G2017","WAGETOT2017","WAGEGOODPRO2017","WAGESERVICEPRO2017","TOTP & G2018","TOT2018","GOODPRO2018","SERVICEPROMAN2018","WAGEP & G2018","WAGETOT2018","WAGEGOODPRO2018","WAGESERVICEPRO2018","TOTP & G2019","TOT2019","TOTGov2019","GOODPRO2019","SERVICEPROMAN2019","WAGEP & G2019","WAGETOT2019","WAGEGov2019"]
["Belknap County",1,26173,22708,6138,16570,541.07000000000005,538.34,689.88,482.21,26052,22334,5408,16926,561.11,555.84,731.15,499.83,26286,22376,5281,17095,579.91,573.04,754.28,517.04999999999995,26931,23030,5431,17599,610.04,602.01,777.41,547.89,26940,22891,5467,17424,636.41999999999996,634.14,819.42,576,27237,23042,5133,17909,657.93,655.07000000000005,862.32,595.66999999999996,27266,23032,4820,18212,674.29,668.31,921.91,601.17999999999995,26793,22507,4572,17935,689.74,680.53,938.61,614.74,25570,21280,3944,17337,692.98,680.87,934.72,623.12,24943,20713,3480,17234,698.61,690.71,945.91,639.19000000000005,24953,20748,3411,17337,706.01,697.17,959.24,645.61,25196,20972,3400,17572,708.66,703.81,960.55,654.13,25517,21311,3517,17794,718.36,714.81,997.67,658.89,25490,21315,3554,17761,748.41,745.98,1036.05,687.93,25584,21457,3597,17859,776.57,774.35,1066.24,715.55,25708,21577,3626,17951,797.95,796.89,1088.81,737.93,25829,21725,3676,18049,823.13,823.31,1139.79,758.85,25898,21803,3774,18029,851.06,851.82,1167.98,785.64,26080,22008,4072,3799,18209,854.12,849.87,877.08]
["Carroll County",2,19495,16938,2563,14374,467.52,460.32,627.98,430.42,19756,17153,2497,14656,481.01,472.65,645.74,443.16,20167,17534,2567,14967,492.28,481.72,647.55999999999995,453.27,20405,17701,2526,15175,519.72,511.1,687.06,481.81,20205,17448,2541,14906,533.86,524.08000000000004,703.81,493.43,20294,17504,2588,14916,575.59,568.1,737.84,538.66,20402,17510,2544,14966,573.29999999999995,562.55999999999995,760.1,528.99,20584,17636,2552,15084,584.17999999999995,570.32000000000005,770.38,536.47,19942,16904,2265,14639,587.36,570.99,765.31,540.91999999999996,19810,16754,2124,14630,600.19000000000005,586.5,775.97,558.99,19997,17005,2189,14816,617.28,603.41999999999996,798.39,574.61,20082,17083,2162,14921,627.16999999999996,615.41,800.29,588.62,19971,16958,2084,14874,645.66999999999996,633.79,805.62,609.71,20015,16952,2024,14928,640.24,627.02,843.7,597.64,19806,16828,1996,14832,667.3,653.87,884.26,622.86,19997,17053,2030,15023,686.74,674.21,909.04,642.48,20005,17047,2057,14991,692.33,677.15,941.62,640.87,20015,17037,2078,14959,710.33,694.81,905.58,665.54,20228,17268,2960,2128,15140,735.27,721.26,816.99]
["Cheshire County",3,32349,27819,"n","n",571.92999999999995,577.30999999999995,"n","n",32369,27595,7795,19800,584.33000000000004,590.97,743.2,531.04,32548,27626,7754,19873,598.89,603.04,763.11,540.59,33075,28132,7648,20484,631.09,634.67999999999995,807.42,570.17999999999995,33995,28886,8110,20776,656.03,666.98,828.9,603.78,34194,29151,7889,21262,723.95,741.43,987.42,650.15,33638,28601,7473,21128,707.44,717.07,867.3,663.94,33220,28351,7351,21000,746.75,752.8,902.94,700.24,32207,27212,6761,20451,742.41,745.7,870.79,704.34,31527,26585,6300,20286,754.45,756.21,900.6,711.38,31690,26854,6240,20614,768.13,768.69,935.64,718.15,32021,27158,6245,20914,790.24,793.9,933.87,752.11,31923,27008,6032,20975,796.52,797.61,965.3,749.39,31904,26935,6025,20910,810.83,815.88,993.69,764.64,32067,27097,6073,21024,830.63,834.25,1010.79,783.25,32005,27109,6177,20932,838.96,843.47,1028.03,789.01,31743,26953,6194,20759,867.06,873.07,1043.75,822.14,31642,26825,6445,20380,895.81,907.01,1090.07,849.12,31737,26923,4814,6652,20272,913.17,927.09,835.36]
["Coos County",4,13872,11234,"n","n",489.02,487.7,"n","n",13737,11021,2332,8689,490.8,484.33,650.88,439.63,13946,11225,2578,8647,525.08000000000004,519.66,703.37,464.89,14103,11341,2590,8751,542.98,540.59,726.42,485.6,14026,11222,2533,8689,556.04,552.64,754.89,493.68,13898,10991,2334,8657,572.86,571.41999999999996,766.73,518.76,13876,11050,2184,8866,583.63,572.30999999999995,758.88,526.34,13566,10747,1988,8759,602.53,587.51,755.51,549.38,13002,10134,1720,8414,609.67999999999995,592.77,751.35,560.36,12832,9977,1593,8384,608.57000000000005,589.54,744.88,560.02,12555,9785,1473,8312,620.23,600.46,757.95,572.54,12371,9564,1568,7995,640.94000000000005,622.74,825.56,582.97,12515,9564,1649,7915,667.37,647.75,855.89,604.39,12064,9083,1293,7789,675.59,651.58000000000004,777.89,630.61,11974,9046,1222,7824,694.46,666.94,788.97,647.89,11990,9038,1167,7870,706.62,682.98,853.55,657.68,11999,9070,1223,7846,729.45,705.37,867.99,680.02,11970,9060,1296,7764,749.69,723.06,852.68,701.43,12083,9226,2857,1304,7921,766.79,735.31,868.44]
["Grafton County",5,49352,43256,8085,35171,617.73,624.04999999999995,672.45,612.92999999999995,49690,43362,7763,35599,658.93,668.77,701.81,661.56,50615,44009,7790,36220,704.15,717.01,753.77,709.11,51355,44704,7636,37069,728.96,740.6,770.78,734.38,51541,44954,7698,37256,768.82,783.94,809.26,778.7,52267,45531,7761,37770,803.4,820.96,855.22,813.92,52729,45992,7672,38320,843.04,860.73,901.98,852.47,52901,46166,7347,38819,867.61,884.82,928.14,876.62,51401,44646,6446,38200,879.4,895.26,899.95,894.47,51256,44376,6289,38086,905.77,925.54,949.83,921.53,51663,44867,6681,38186,926.58,946.3,981.6,940.12,52026,45246,6818,38428,950.95,973.52,996.15,969.5,52153,45454,6717,38736,965.05,986.68,1028.75,979.39,52226,45565,6778,38787,1004.06,1029.1500000000001,1069.54,1022.09,52654,46056,6882,39174,1037.55,1061.83,1078.8900000000001,1058.83,53361,46686,6801,39885,1058.5999999999999,1086.92,1082.4000000000001,1087.69,53790,47161,6781,40380,1079.6300000000001,1108.6099999999999,1125.3,1105.81,54119,47417,6926,40491,1105.33,1135.81,1167.74,1130.3399999999999,54388,47685,6703,6855,40830,1142.8,1174.8,915.17]
["Hillsborough County",6,192842,173003,47169,125834,756.14,762.49,941.37,695.43,188573,168164,42086,126078,768.52,773.3,968.23,708.23,190864,169969,41006,128962,801.91,806.79,1014.82,740.64,193543,172567,40910,131656,839.56,844.4,1064.01,776.16,196190,174854,40181,134673,866.71,873.18,1101.58,805.03,196502,175094,39123,135971,897.24,904,1171.1600000000001,827.13,197183,175821,38588,137233,946.54,951.14,1248.82,867.44,195976,174253,36628,137625,973.54,979.17,1267.17,902.52,187240,165260,33003,132257,959.3,962.96,1236.24,894.76,184628,162829,32117,130712,980.99,986.25,1287.9100000000001,912.12,186437,165030,32694,132336,1013.7,1018.86,1329.81,942.03,188425,167133,31642,135492,1029.82,1035.95,1325.69,968.28,190568,169383,30861,138522,1038.74,1045.24,1365.43,973.9,193565,172574,31422,141152,1092.9000000000001,1101.22,1393.55,1036.1500000000001,196842,175848,31842,144005,1099.51,1106.52,1401.46,1041.3,199729,178867,32654,146213,1118.6300000000001,1126.21,1436.51,1056.9100000000001,201740,180839,33513,147327,1147.78,1156.08,1490.14,1080.0899999999999,203961,182874,34296,148577,1182,1189.98,1525.57,1112.51,205989,184819,21170,35047,149772,1219.73,1229.8399999999999,1131.48]
["Merrimack County",7,71543,56168,12137,44031,631.86,633.92999999999995,772.48,595.74,71850,56025,11403,44622,653.27,655.12,799.93,618.12,72840,56631,11036,45595,667.06,666.91,826.68,628.24,72381,56515,10742,45773,690.51,689.4,845.49,652.77,72963,56979,11012,45967,710.07,710.67,861.87,674.44,74077,57818,10760,47058,739.28,739.89,906.79,701.73,74070,57629,10051,47579,774.05,772.96,972.47,730.82,73959,57295,9822,47472,795.3,789.49,978.78,750.33,72134,55582,8724,46857,810.16,788.36,966.04,755.28,71882,55306,8662,46645,821.15,806.64,998.67,770.98,72140,55913,9059,46854,835.3,821.63,1012.78,784.67,72901,56946,9282,47664,850.4,842.26,1036.72,804.39,73510,57805,9457,48348,866.04,857.51,1050.8699999999999,819.69,74884,58800,9698,49103,892.44,882.46,1086.78,842.11,75670,59563,9801,49762,929.04,918.53,1114.06,880.02,76413,60219,9936,50283,946.35,937.29,1126.3800000000001,899.92,76803,60570,10042,50528,980.03,971.23,1164.72,932.78,77469,61326,10142,51184,1012.33,1004.39,1186.1199999999999,968.39,77816,61536,16281,10313,51222,1038.6300000000001,1030.98,1067.56]
["New Hampshire",1026,610446,531225,127190,404035,682.38,691.51,842.11,644.1,603100,521320,115244,406076,695.8,703.84,868.13,657.22,604198,520362,111472,408890,717.94,724.91,888.81,680.22,613327,529515,111893,417622,753.7,760.58,928.63,715.56,620909,536173,112033,424140,779.84,788.93,958.48,744.15,627301,541435,110189,431246,816.3,827.48,1013.11,780.04,630171,543800,107673,436127,843.46,852.45,1054.1600000000001,802.65,628819,541768,104441,437326,863.66,870.64,1074.5999999999999,821.93,604915,517658,92952,424706,864.05,867.37,1066.42,823.81,600540,513386,89428,423957,883.88,890.13,1119.47,841.75,605864,520338,90996,429342,909.31,916.27,1140.95,868.65,612432,527263,90404,436858,928.33,938.02,1152.07,893.72,618756,534106,90890,443216,941.75,950.79,1173.1099999999999,905.2,626567,541441,92176,449265,983.96,996.35,1200.71,954.42,636798,552276,93968,458308,1010.64,1021.89,1224.55,980.34,647375,562836,96138,466699,1030.04,1042.6300000000001,1251.03,999.7,653496,569023,97995,471029,1060.3399999999999,1073.99,1294.46,1028.1199999999999,658816,574044,100089,473955,1091.97,1106.44,1317.59,1061.8499999999999,665374,580394,84980,101907,478487,1128.27,1145.04,1013.77]
["Rockingham County",8,130960,117604,24384,93220,704.6,714.62,913.02,662.73,130242,116589,22286,94302,712.56,720.57,945.47,667.42,130329,116466,21075,95392,725.68,731.51,920.38,689.79,133803,119786,21944,97841,774.11,781.14,964.22,740.08,136154,122028,22051,99976,796.86,803.2,996.54,760.55,138063,123549,22274,101275,842.13,851.8,1013.05,816.33,138382,123679,22407,101273,849.04,856.27,1052.77,812.8,137191,122378,22407,99970,839.01,841.86,1081.82,788.07,131375,116492,19644,96848,839.06,840.45,1104.3599999999999,786.93,131892,117079,18689,98391,862.17,865.32,1199.72,801.8,133444,119079,18941,100138,880.6,883.65,1146.49,833.93,135396,121125,18942,102183,907.06,912.95,1200.98,859.56,137505,123255,19558,103698,919.22,924.42,1204.8699999999999,871.53,139972,125705,20107,105598,967.99,976.63,1214.5999999999999,931.32,143650,129571,20954,108617,999.45,1007.52,1260.8800000000001,958.65,146926,132843,21711,111132,1008.63,1016.49,1289.1199999999999,963.24,149059,134948,22384,112564,1040.5999999999999,1049.82,1335.62,992.99,149817,135525,22957,112568,1068.69,1079.1600000000001,1345.67,1024.8,151694,137342,14352,23611,113731,1110.28,1122.81,990.42]
["Strafford County",9,43645,34821,9068,25753,655.37,655.92,770.85,615.45000000000005,42874,33684,7630,26054,655.35,652.99,800.21,609.88,43046,33530,7366,26164,668.52,656.47,806.84,614.13,43436,33873,7230,26643,693.72,673.65,820.17,633.9,43773,34267,7211,27056,709.03,692.76,828.02,656.71,44557,35064,7140,27925,723.22,705.71,858.22,666.71,45570,35960,6960,29000,746.96,729.16,880.17,692.91,46580,36991,6754,30237,803.35,784.14,900.05,758.25,44375,35115,5981,29133,822.2,798.7,916.04,774.61,44144,34793,5960,28833,843.68,824.98,964.85,796.07,44154,34870,6008,28863,879.87,868.02,1098.93,819.95,45017,35667,6036,29631,875.8,864.35,1039.17,828.73,45379,36187,6365,29822,896.63,880.93,1050.44,844.76,46249,36899,6431,30469,915.86,906.58,1082.2,869.52,46826,37517,6657,30860,954.37,941.53,1121.8,902.65,47632,38313,6879,31434,967.61,953.88,1119.03,917.74,48165,38780,6935,31845,990.95,980.7,1148.01,944.26,48371,39036,6997,32039,1004.47,991.1,1131.83,960.36,48714,39366,9348,7127,32239,1034.79,1028.5999999999999,1060.8599999999999]
["Sullivan County",10,14086,11544,"n","n",536.78,549.33000000000004,"n","n",13793,11231,4452,6779,561.15,569.74,685.65,493.64,13370,10809,4059,6750,577.41,588.45000000000005,688.92,528.03,13551,11127,4066,7061,602.70000000000005,607.34,721.67,541.5,13862,11386,4086,7300,615.79,621.85,741.34,554.98,13826,11306,3928,7377,642.61,650.96,800.27,571.45000000000005,13873,11351,3958,7393,676.8,687.32,843.22,603.85,13799,11227,3909,7318,687.34,698.53,866.24,608.95000000000005,13185,10586,3466,7121,698.02,705.82,887.35,617.47,13076,10479,3303,7176,714.38,723.66,917.55,634.42999999999995,13190,10617,3204,7413,723.57,732.12,955.94,635.39,13597,11070,3448,7622,757.15,771.77,1038.8399999999999,650.94000000000005,13793,11373,3704,7670,768.35,784.88,1012.65,674.88,13873,11439,3932,7507,795.94,816.28,1039.17,699.53,14090,11709,3948,7761,803.2,815.31,1021.57,710.37,14204,11783,4061,7722,810.76,830.28,1066.2,706.22,13997,11636,4031,7605,821.95,836.22,1048.48,723.72,13966,11628,3919,7708,836.09,849.04,1063.6199999999999,739.94,13735,11390,2344,3818,7573,854.16,864.16,805.53]
[]
[]
[]
[]
[]
[]
[]
[]
[]
[]
[]
[]
[]
[]
[]
["Labor Force and Unemployment Rate","Query Name: DPQryUnempByTown",null,"2011-01-19",null,null,null,null,null,null,null,null,null,null,null,null,"2011-01-06"]
[]
["PlaceName","LaborForce1990","LaborForce1991","LaborForce1992","LaborForce1993","LaborForce1994","LaborForce1995","LaborForce1996","LaborForce1997","LaborForce1998","LaborForce1999","LaborForce2000","LaborForce2001","LaborForce2002","LaborForce2003","NumbEmployed1990","NumbEmployed1991","NumbEmployed1992","NumbEmployed1993","NumbEmployed1994","NumbEmployed1995","NumbEmployed1996","NumbEmployed1997","NumbEmployed1998","NumbEmployed1999","NumbEmployed2000","NumbEmployed2001","NumbEmployed2002","NumbEmployed2003","UnempRate1990","UnempRate1991","UnempRate1992","UnempRate1993","UnempRate1994","UnempRate1995","UnempRate1996","UnempRate1997","UnempRate1998","UnempRate1999","UnempRate2000","UnempRate2001","UnempRate2002","UnempRate2003","NumbUnEmp1990","NumbUnEmp1991","NumbUnEmp1992","NumbUnEmp1993","NumbUnEmp1994","NumbUnEmp1995","NumbUnEmp1996","NumbUnEmp1997","NumbUnEmp1998","NumbUnEmp1999","NumbUnEmp2000","NumbUnEmp2001","NumbUnEmp2002","NumbUnEmp2003","LaborForce2004","NumbEmployed2004","UnempRate2004","NumbUnEmp2004","LaborForce2005","NumbEmployed2005","NumbUnEmp2005","UnempRate2005","LaborForce2006","NumbEmployed2006","NumbUnEmp2006","UnempRate2006","LaborForce2007","NumbEmployed2007","NumbUnEmp2007","UnempRate2007","LaborForce2008","NumbEmployed2008","NumbUnEmp2008","UnempRate2008","LaborForce2009","NumbEmployed2009","NumbUnEmp2009","UnempRate2009"]
["Concord",17158,19156,19345,19473,20493,20901,20846,21269,21945,22040,21640,21830,21940,21770,16236,17796,18081,18604,19817,20347,20327,20750,21448,21597,21122,21200,21220,20980,5.4,7.1,6.5,4.5,3.3,2.7,2.5,2.4,2.2999999999999998,2,2.4,2.9,3.3,3.6,922,1360,1264,869,676,554,519,519,497,443,518,630,720,790,21360,20660,3.3,700,21380,20680,700,3.3,21790,21090,700,3.2,21960,21200,760,3.4,22100,21290,810,3.7,22350,21090,1260,5.6]
["Derry",17958,17746,18152,18497,18838,18314,18802,19008,19268,21920,19842,20170,20140,20160,16803,16278,16445,16998,17576,17406,17960,18213,18522,21159,19219,19220,18840,18890,6.4,8.3000000000000007,9.4,8.1,6.7,5,4.5,4.2,3.9,3.5,3.1,4.7,6.4,6.3,1155,1468,1707,1499,1262,908,842,795,746,761,623,950,1300,1270,20020,19000,5.0999999999999996,1020,20160,19210,950,4.7,19990,19150,840,4.2,20080,19280,800,4,20250,19350,900,4.4000000000000004,20150,18730,1420,7.1]
["Dover",14442,14804,14525,14590,14159,14543,14597,14771,14778,14852,15963,16160,16430,16750,13728,13847,13574,13803,13638,14026,14138,14390,14439,14536,15558,15680,15810,16110,4.9000000000000004,6.5,6.5,5.4,3.7,3.6,3.1,2.6,2.2999999999999998,2.1,2.5,2.9,3.8,3.8,714,957,951,787,521,517,459,381,339,316,405,480,620,640,16960,16400,3.3,560,16910,16380,530,3.1,16930,16430,500,2.9,17260,16750,510,2.9,17420,16860,560,3.2,17310,16360,950,5.5]
["Hudson",12484,12026,12188,12214,12119,12078,12442,12876,13125,13345,13630,13810,13850,14090,11727,11098,11160,11343,11344,11442,11918,12438,12722,12888,13249,13260,13090,13350,6.1,7.7,8.4,7.1,6.4,5.3,4.2,3.4,3.1,3.4,2.8,4,5.5,5.2,757,928,1028,871,775,636,524,438,403,457,381,550,760,740,14410,13750,4.5999999999999996,660,14690,14080,610,4.2,14780,14210,570,3.9,14950,14380,570,3.8,14940,14320,620,4.2,14870,13860,1010,6.8]
["Londonderry",11797,11497,11671,11945,12109,11969,12248,12747,13057,13288,13499,13830,13930,13960,11223,10806,10886,11198,11492,11495,11820,12345,12706,12914,13150,13310,13190,13250,4.9000000000000004,6,6.7,6.3,5.0999999999999996,4,3.5,3.2,2.7,2.8,2.6,3.8,5.3,5.0999999999999996,574,691,785,747,617,474,428,402,351,374,349,520,740,710,14060,13470,4.2,590,14440,13900,540,3.8,14450,13950,500,3.5,14660,14150,510,3.5,14660,14110,550,3.7,14540,13670,870,6]
["Manchester",57227,54398,53484,53029,52584,54444,54748,56302,57027,57867,58978,59830,60190,60570,53493,49879,48873,49490,49803,52144,52888,54663,55481,56389,57452,57720,57370,57750,6.5,8.3000000000000007,8.6,6.7,5.3,4.2,3.4,2.9,2.7,2.6,2.6,3.5,4.7,4.7,3734,4519,4611,3539,2781,2300,1860,1639,1546,1478,1526,2110,2820,2820,60900,58400,4.0999999999999996,2500,60920,58540,2380,3.9,61200,58750,2450,4,61650,59240,2410,3.9,61920,59220,2700,4.4000000000000004,62280,57780,4500,7.2]
["Merrimack",13981,13473,13706,13893,13686,13315,13754,14250,14570,14810,15559,15920,16130,16120,13416,12714,12773,12999,12979,12783,13294,13866,14217,14403,15200,15430,15370,15420,4,5.6,6.8,6.4,5.2,4,3.3,2.7,2.4,2.7,2.2999999999999998,3.1,4.7,4.4000000000000004,565,759,933,894,707,532,460,384,353,407,359,490,760,700,14060,15680,3.4,550,14440,15940,510,3.1,14450,15960,510,3.1,14660,16090,500,3,14660,15960,540,3.3,16410,15450,960,5.9]
["Nashua",48381,45637,45669,45204,43405,44276,45430,46753,47362,48054,48589,49230,49040,48800,45749,42390,42064,41756,40901,42188,43654,45410,45982,46581,47242,47230,46220,46160,5.4,7.1,7.9,7.6,5.8,4.7,3.9,2.9,2.9,3.1,2.8,4.0999999999999996,5.8,5.4,2632,3247,3605,3448,2504,2088,1776,1343,1380,1473,1347,2000,2820,2640,48870,46680,4.5,2190,49280,47270,2010,4.0999999999999996,49270,47290,1980,4,49450,47590,1860,3.8,49270,47260,2010,4.0999999999999996,49250,45760,3490,7.1]
["Rochester",14242,14280,14153,14123,13917,14056,14172,14407,14297,14288,15414,15610,15890,15980,13158,12952,12771,13032,13177,13387,13529,13825,13799,13892,14947,15030,15070,15270,7.6,9.3000000000000007,9.8000000000000007,7.7,5.3,4.8,4.5,4,3.5,2.8,3,3.7,5.2,4.5,1084,1328,1382,1091,740,669,643,582,498,396,467,580,820,710,16130,15520,3.8,610,16300,15670,630,3.9,16360,15800,560,3.4,16740,16130,610,3.6,17110,16400,710,4.2,17170,15910,1260,7.3]
["Salem",15853,15251,15792,16067,15973,15983,16536,16695,17028,19224,16595,17000,17320,17150,14545,13832,14010,14242,14652,14897,15474,15785,16115,18409,15922,16100,16070,15930,8.3000000000000007,9.3000000000000007,11.3,11.4,8.3000000000000007,6.8,6.4,5.5,5.4,4.2,4.0999999999999996,5.3,7.2,7.1,1308,1419,1782,1825,1321,1086,1062,910,913,815,673,900,1250,1220,17300,16180,6.5,1120,17390,16420,970,5.6,17540,16690,850,4.9000000000000004,17880,17000,880,4.9000000000000004,17830,16870,960,5.4,17880,16430,1450,8.1]

{"sheet":"BuildingPermitsSince2000","index":8,"n_rows":41,"n_cols":23,"rows_kept":41,"cut":false,"hidden":true,"merged":[[3,1,3,3]]}
[]
[null,{"$f":"CntyDataLink!A35","v":"Acworth"}]
[]
[null,"HOUSING CHARACTERISTICS"]
[]
[]
[]
[]
[]
[]
[]
[]
[]
[]
[]
[]
[]
[]
[]
[]
[]
[]
[]
[]
[]
[]
[]
[]
[]
[]
[]
[]
[]
[]
[null,"Housing Units Authorized by Permit",null,null,null,"Source: New Hampshire Office of Strategic Initiatives"]
[]
[null,"Year",2000,{"$f":"C37+1","v":2001},{"$f":"D37+1","v":2002},2003,2004,2005,2006,2007,2008,2009,2010,2011,2012,2013,2014,2015,2016,2017,2018,2019,"Total"]
[null,"Single Family",{"$f":"CntyDataLink!$BT$20","v":0},{"$f":"CntyDataLink!$BW$20","v":2},{"$f":"CntyDataLink!$BZ$20","v":6},{"$f":"CntyDataLink!$CC$20","v":11},{"$f":"CntyDataLink!$CF$20","v":11},{"$f":"CntyDataLink!$CI$20","v":10},{"$f":"CntyDataLink!$CL$20","v":10},{"$f":"CntyDataLink!$CO$20","v":9},{"$f":"CntyDataLink!$CR$20","v":3},{"$f":"CntyDataLink!$CU$20","v":4},{"$f":"CntyDataLink!$CX$20","v":5},{"$f":"CntyDataLink!$DA$20","v":4},{"$f":"CntyDataLink!$DD$20","v":0},{"$f":"CntyDataLink!$DG$20","v":1},{"$f":"CntyDataLink!$DJ$20","v":0},{"$f":"CntyDataLink!$DM$20","v":1},{"$f":"CntyDataLink!$DP$20","v":0},{"$f":"CntyDataLink!$DS$20","v":0},{"$f":"CntyDataLink!$DV$20","v":3},{"$f":"CntyDataLink!$DY$20","v":1},{"$f":"SUM(C38:V38)","v":81}]
[null,"Multi-family",{"$f":"CntyDataLink!$BU$20","v":0},{"$f":"CntyDataLink!$BX$20","v":0},{"$f":"CntyDataLink!$CA$20","v":0},{"$f":"CntyDataLink!$CD$20","v":0},{"$f":"CntyDataLink!$CG$20","v":0},{"$f":"CntyDataLink!$CJ$20","v":0},{"$f":"CntyDataLink!$CM$20","v":0},{"$f":"CntyDataLink!$CP$20","v":0},{"$f":"CntyDataLink!$CS$20","v":0},{"$f":"CntyDataLink!$CV$20","v":0},{"$f":"CntyDataLink!$CY$20","v":0},{"$f":"CntyDataLink!$DB$20","v":0},{"$f":"CntyDataLink!$DE$20","v":0},{"$f":"CntyDataLink!$DH$20","v":0},{"$f":"CntyDataLink!$DK$20","v":0},{"$f":"CntyDataLink!$DN$20","v":0},{"$f":"CntyDataLink!$DQ$20","v":0},{"$f":"CntyDataLink!$DT$20","v":0},{"$f":"CntyDataLink!$DW$20","v":0},{"$f":"CntyDataLink!$DZ$20","v":0},{"$f":"SUM(C39:V39)","v":0}]
[null,"Mobile Home",{"$f":"CntyDataLink!$BV$20","v":1},{"$f":"CntyDataLink!$BY$20","v":2},{"$f":"CntyDataLink!$CB$20","v":0},{"$f":"CntyDataLink!$CE$20","v":2},{"$f":"CntyDataLink!$CH$20","v":1},{"$f":"CntyDataLink!$CK$20","v":0},{"$f":"CntyDataLink!$CN$20","v":0},{"$f":"CntyDataLink!$CQ$20","v":0},{"$f":"CntyDataLink!$CT$20","v":2},{"$f":"CntyDataLink!$CW$20","v":0},{"$f":"CntyDataLink!$CZ$20","v":0},{"$f":"CntyDataLink!$DC$20","v":0},{"$f":"CntyDataLink!$DF$20","v":0},{"$f":"CntyDataLink!$DI$20","v":2},{"$f":"CntyDataLink!$DL$20","v":0},{"$f":"CntyDataLink!$DO$20","v":0},{"$f":"CntyDataLink!$DR$20","v":0},{"$f":"CntyDataLink!$DU$20","v":0},{"$f":"CntyDataLink!$DX$20","v":2},{"$f":"CntyDataLink!$EA$20","v":0},{"$f":"SUM(C40:V40)","v":12}]
[null,"Total",{"$f":"SUM(C38:C40)","v":1},{"$f":"SUM(D38:D40)","v":4},6,13,12,10,10,9,5,4,5,4,0,3,{"$f":"SUM(Q38:Q40)","v":0},1,{"$f":"SUM(S38:S40)","v":0},0,{"$f":"SUM(U38:U40)","v":5},1,{"$f":"SUM(W38:W40)","v":93}]

{"sheet":"EmploymentAndWages","index":9,"n_rows":0,"n_cols":0,"rows_kept":0,"cut":false,"hidden":true,"merged":[[3,1,3,3],[35,1,35,2],[73,1,73,2],[41,1,41,3]]}

{"sheet":"EmpVsHUxCounty","index":10,"n_rows":124,"n_cols":15,"rows_kept":124,"cut":false,"hidden":true,"merged":[[79,0,80,9],[64,0,64,11]]}
[]
[{"$f":"CntyDataLink!A35","v":"Acworth"}]
[]
[]
[]
[]
[]
[]
[]
[]
[]
[]
[]
[]
[]
[]
[]
[]
[]
[]
[]
[]
[]
[]
[]
[]
[]
[]
[]
[]
[]
[]
[]
[]
[]
[]
[]
[]
[]
[]
[]
[]
[]
["Housing Units "]
[{"$f":"CntyDataLink!A20","v":"Acworth"}]
[null,null,null,"Source: New Hampshire Office of Strategic Initiatives"]
["Units Authorized By Permit",2008,{"$f":"B47+1","v":2009},{"$f":"C47+1","v":2010},2011,2012,2013,2014,2015,2016,2017,2018,2019]
["Single Family",{"$f":"CntyDataLink!$CR$20","v":3},{"$f":"CntyDataLink!$CU$20","v":4},{"$f":"CntyDataLink!$CX$20","v":5},{"$f":"CntyDataLink!$DA$20","v":4},{"$f":"CntyDataLink!$DD$20","v":0},{"$f":"CntyDataLink!$DG$20","v":1},{"$f":"CntyDataLink!$DJ$20","v":0},{"$f":"CntyDataLink!$DM$20","v":1},{"$f":"CntyDataLink!$DP$20","v":0},{"$f":"CntyDataLink!$DS$20","v":0},{"$f":"CntyDataLink!$DV$20","v":3},{"$f":"CntyDataLink!$DY$20","v":1}]
["Multi-family",{"$f":"CntyDataLink!$CS$20","v":0},{"$f":"CntyDataLink!$CV$20","v":0},{"$f":"CntyDataLink!$CY$20","v":0},{"$f":"CntyDataLink!$DB$20","v":0},{"$f":"CntyDataLink!$DE$20","v":0},{"$f":"CntyDataLink!$DH$20","v":0},{"$f":"CntyDataLink!$DK$20","v":0},{"$f":"CntyDataLink!$DN$20","v":0},{"$f":"CntyDataLink!$DQ$20","v":0},{"$f":"CntyDataLink!$DT$20","v":0},{"$f":"CntyDataLink!$DW$20","v":0},{"$f":"CntyDataLink!$DZ$20","v":0}]
["Mobile Home",{"$f":"CntyDataLink!$CT$20","v":2},{"$f":"CntyDataLink!$CW$20","v":0},{"$f":"CntyDataLink!$CZ$20","v":0},{"$f":"CntyDataLink!$DC$20","v":0},{"$f":"CntyDataLink!$DF$20","v":0},{"$f":"CntyDataLink!$DI$20","v":2},{"$f":"CntyDataLink!$DL$20","v":0},{"$f":"CntyDataLink!$DO$20","v":0},{"$f":"CntyDataLink!$DR$20","v":0},{"$f":"CntyDataLink!$DU$20","v":0},{"$f":"CntyDataLink!$DX$20","v":2},{"$f":"CntyDataLink!$EA$20","v":0}]
["Total",{"$f":"SUM(B48:B50)","v":5},4,5,4,0,3,0,1,0,0,{"$f":"SUM(L48:L50)","v":5},{"$f":"SUM(M48:M50)","v":1}]
[]
["Total Housing Units",2008,{"$f":"B53+1","v":2009},2010,"2010 Census",2011,{"$f":"F53+1","v":2012},2013,2014,2015,2016,2017,2018,2019,2020]
["Single Family",{"$f":"CntyDataLink!CF65+CntyDataLink!$BT$20+CntyDataLink!$BW$20+CntyDataLink!$BZ$20+CntyDataLink!$CC$20+CntyDataLink!$CF$20+CntyDataLink!$CI$20+CntyDataLink!$CO$20+CntyDataLink!$CR$20","v":510},{"$f":"B54+B48","v":513},{"$f":"C54+C48","v":517},{"$f":"CntyDataLink!$BA$167","v":479},{"$f":"D48+E54","v":484},{"$f":"F54+E48","v":488},488,489,489,490,490,490,493,494]
["Multi Family",{"$f":"SUM(CntyDataLink!CG65:CM65)+CntyDataLink!$BU$20+CntyDataLink!$BX$20+CntyDataLink!$CA$20+CntyDataLink!$CD$20+CntyDataLink!$CG$20+CntyDataLink!$CJ$20+CntyDataLink!$CP$20+CntyDataLink!$CS$20","v":13},{"$f":"B55+B49","v":13},{"$f":"C55+C49","v":13},{"$f":"CntyDataLink!$BB$167","v":22},{"$f":"D49+E55","v":22},{"$f":"F55+E49","v":22},22,22,22,22,22,22,22,22]
["Mobile Home",{"$f":"SUM(CntyDataLink!CN65:CO65)+CntyDataLink!$BV$20+CntyDataLink!$BY$20+CntyDataLink!$CB$20+CntyDataLink!$CE$20+CntyDataLink!$CH$20+CntyDataLink!$CK$20+CntyDataLink!$CQ$20+CntyDataLink!$CT$20","v":52},54,{"$f":"C56+C50","v":54},{"$f":"CntyDataLink!$BC$167","v":55},{"$f":"D50+E56","v":55},55,55,57,57,57,57,57,59,59]
["Total",{"$f":"SUM(B54:B56)","v":575},{"$f":"SUM(C54:C56)","v":580},{"$f":"C57+C51","v":584},{"$f":"SUM(E54:E56)","v":556},{"$f":"SUM(F54:F56)","v":561},565,565,568,568,569,569,569,574,575]
[]
["Percent Change",null,"08-09","09-10","2000-2010 Census"," 10-11"," 11-12","12-13","13-14","14-15","15-16","16-17","17-18","18-19","19-20"]
["Single Family",null,{"$f":"(C54-B54)/B54","v":5.8823529411764705E-3},{"$f":"(D54-C54)/C54","v":7.7972709551656916E-3},{"$f":"(E54-CntyDataLink!CF$65)/CntyDataLink!CF$65","v":4.5851528384279479E-2},{"$f":"(F54-E54)/E54","v":1.0438413361169102E-2},8.2644628099173556E-3,0,2.0491803278688526E-3,0,2.0449897750511249E-3,0,0,6.1224489795918364E-3,2.0283975659229209E-3]
["Multi Family",null,{"$f":"(C55-B55)/B55","v":0},0,{"$f":"(E55-SUM(CntyDataLink!CG65:CM65))/SUM(CntyDataLink!CG65:CM65)","v":0.69230769230769229},{"$f":"(F55-E55)/E55","v":0},0,0,0,0,0,0,0,0,0]
["Mobile Home",null,3.8461538461538464E-2,0,{"$f":"(E56-SUM(CntyDataLink!CM65:CN65))/SUM(CntyDataLink!CM65:CN65)","v":0.375},{"$f":"(F56-E56)/E56","v":0},0,0,3.6363636363636362E-2,0,0,0,0,3.5087719298245612E-2,0]
["Total",null,8.6956521739130436E-3,6.8965517241379309E-3,{"$f":"(E57-CntyDataLink!$CE65)/CntyDataLink!$CE65","v":7.9611650485436891E-2},{"$f":"(F57-E57)/E57","v":8.9928057553956831E-3},7.1301247771836003E-3,0,5.3097345132743362E-3,0,1.7605633802816902E-3,0,0,8.7873462214411256E-3,1.7421602787456446E-3]
[]
[]
[]
[]
["Private Employment"]
[{"$f":"CntyDataLink!A25","v":"Acworth"}]
[null,null,2008,{"$f":"C70+1","v":2009},2010,2011,2012,2013,2014,2015,2016,2017,2018,2019]
["Goods Producing",null,{"$f":"IF((CntyDataLink!$BI$25)=\"n\",NA(),IF(VALUE(CntyDataLink!$BI$25)=\"\",NA(),VALUE(CntyDataLink!$BI$25)))","v":65},{"$f":"IF((CntyDataLink!$BQ$25)=\"n\",NA(),IF(VALUE(CntyDataLink!$BQ$25)=\"\",NA(),VALUE(CntyDataLink!$BQ$25)))","v":{"$error":"#N/A"}},{"$f":"IF((CntyDataLink!$BY$25)=\"n\",NA(),IF(VALUE(CntyDataLink!$BY$25)=\"\",NA(),VALUE(CntyDataLink!$BY$25)))","v":64},{"$f":"IF((CntyDataLink!$CG$25)=\"n\",NA(),IF(VALUE(CntyDataLink!$CG$25)=\"\",NA(),VALUE(CntyDataLink!$CG$25)))","v":69},{"$f":"IF((CntyDataLink!$CO$25)=\"n\",NA(),IF(VALUE(CntyDataLink!$CO$25)=\"\",NA(),VALUE(CntyDataLink!$CO$25)))","v":73},{"$f":"IF((CntyDataLink!$CW$25)=\"n\",NA(),IF(VALUE(CntyDataLink!$CW$25)=\"\",NA(),VALUE(CntyDataLink!$CW$25)))","v":{"$error":"#N/A"}},{"$f":"IF((CntyDataLink!$DE$25)=\"n\",NA(),IF(VALUE(CntyDataLink!$DE$25)=\"\",NA(),VALUE(CntyDataLink!$DE$25)))","v":73},{"$f":"IF((CntyDataLink!$DM$25)=\"n\",NA(),IF(VALUE(CntyDataLink!$DM$25)=\"\",NA(),VALUE(CntyDataLink!$DM$25)))","v":73},{"$f":"IF((CntyDataLink!$DU$25)=\"n\",NA(),IF(VALUE(CntyDataLink!$DU$25)=\"\",NA(),VALUE(CntyDataLink!$DU$25)))","v":82},{"$f":"IF((CntyDataLink!$EC$25)=\"n\",NA(),IF(VALUE(CntyDataLink!$EC$25)=\"\",NA(),VALUE(CntyDataLink!$EC$25)))","v":80},{"$f":"IF((CntyDataLink!$EK$25)=\"n\",NA(),IF(VALUE(CntyDataLink!$EK$25)=\"\",NA(),VALUE(CntyDataLink!$EK$25)))","v":86},{"$f":"IF((CntyDataLink!$ET$25)=\"n\",NA(),IF(VALUE(CntyDataLink!$ET$25)=\"\",NA(),VALUE(CntyDataLink!$ET$25)))","v":83}]
["Service Providing",null,{"$f":"IF((CntyDataLink!$BJ$25)=\"n\",NA(),IF(VALUE(CntyDataLink!$BJ$25)=\"\",NA(),VALUE(CntyDataLink!$BJ$25)))","v":5},{"$f":"IF((CntyDataLink!$BR$25)=\"n\",NA(),IF(VALUE(CntyDataLink!$BR$25)=\"\",NA(),VALUE(CntyDataLink!$BR$25)))","v":{"$error":"#N/A"}},{"$f":"IF((CntyDataLink!$BZ$25)=\"n\",NA(),IF(VALUE(CntyDataLink!$BZ$25)=\"\",NA(),VALUE(CntyDataLink!$BZ$25)))","v":5},{"$f":"IF((CntyDataLink!$CH$25)=\"n\",NA(),IF(VALUE(CntyDataLink!$CH$25)=\"\",NA(),VALUE(CntyDataLink!$CH$25)))","v":7},{"$f":"IF((CntyDataLink!$CP$25)=\"n\",NA(),IF(VALUE(CntyDataLink!$CP$25)=\"\",NA(),VALUE(CntyDataLink!$CP$25)))","v":8},{"$f":"IF((CntyDataLink!$CX$25)=\"n\",NA(),IF(VALUE(CntyDataLink!$CX$25)=\"\",NA(),VALUE(CntyDataLink!$CX$25)))","v":{"$error":"#N/A"}},{"$f":"IF((CntyDataLink!$DF$25)=\"n\",NA(),IF(VALUE(CntyDataLink!$DF$25)=\"\",NA(),VALUE(CntyDataLink!$DF$25)))","v":13},{"$f":"IF((CntyDataLink!$DN$25)=\"n\",NA(),IF(VALUE(CntyDataLink!$DN$25)=\"\",NA(),VALUE(CntyDataLink!$DN$25)))","v":16},{"$f":"IF((CntyDataLink!$DV$25)=\"n\",NA(),IF(VALUE(CntyDataLink!$DV$25)=\"\",NA(),VALUE(CntyDataLink!$DV$25)))","v":25},{"$f":"IF((CntyDataLink!$ED$25)=\"n\",NA(),IF(VALUE(CntyDataLink!$ED$25)=\"\",NA(),VALUE(CntyDataLink!$ED$25)))","v":20},{"$f":"IF((CntyDataLink!$EL$25)=\"n\",NA(),IF(VALUE(CntyDataLink!$EL$25)=\"\",NA(),VALUE(CntyDataLink!$EL$25)))","v":12},{"$f":"IF((CntyDataLink!$EU$25)=\"n\",NA(),IF(VALUE(CntyDataLink!$EU$25)=\"\",NA(),VALUE(CntyDataLink!$EU$25)))","v":12}]
["Total Private Emp",null,{"$f":"IF((CntyDataLink!$BH$25)=\"n\",NA(),IF(VALUE(CntyDataLink!$BH$25)=\"\",NA(),VALUE(CntyDataLink!$BH$25)))","v":70},{"$f":"IF((CntyDataLink!$BP$25)=\"n\",NA(),IF(VALUE(CntyDataLink!$BP$25)=\"\",NA(),VALUE(CntyDataLink!$BP$25)))","v":92},{"$f":"IF((CntyDataLink!$BX$25)=\"n\",NA(),IF(VALUE(CntyDataLink!$BX$25)=\"\",NA(),VALUE(CntyDataLink!$BX$25)))","v":69},{"$f":"IF((CntyDataLink!$CF$25)=\"n\",NA(),IF(VALUE(CntyDataLink!$CF$25)=\"\",NA(),VALUE(CntyDataLink!$CF$25)))","v":77},{"$f":"IF((CntyDataLink!$CN$25)=\"n\",NA(),IF(VALUE(CntyDataLink!$CN$25)=\"\",NA(),VALUE(CntyDataLink!$CN$25)))","v":81},{"$f":"IF((CntyDataLink!$CV$25)=\"n\",NA(),IF(VALUE(CntyDataLink!$CV$25)=\"\",NA(),VALUE(CntyDataLink!$CV$25)))","v":84},{"$f":"IF((CntyDataLink!$DD$25)=\"n\",NA(),IF(VALUE(CntyDataLink!$DD$25)=\"\",NA(),VALUE(CntyDataLink!$DD$25)))","v":86},{"$f":"IF((CntyDataLink!$DL$25)=\"n\",NA(),IF(VALUE(CntyDataLink!$DL$25)=\"\",NA(),VALUE(CntyDataLink!$DL$25)))","v":89},{"$f":"IF((CntyDataLink!$DT$25)=\"n\",NA(),IF(VALUE(CntyDataLink!$DT$25)=\"\",NA(),VALUE(CntyDataLink!$DT$25)))","v":107},{"$f":"IF((CntyDataLink!$EB$25)=\"n\",NA(),IF(VALUE(CntyDataLink!$EB$25)=\"\",NA(),VALUE(CntyDataLink!$EB$25)))","v":100},{"$f":"IF((CntyDataLink!$EJ$25)=\"n\",NA(),IF(VALUE(CntyDataLink!$EJ$25)=\"\",NA(),VALUE(CntyDataLink!$EJ$25)))","v":98},{"$f":"IF((CntyDataLink!$ER$25)=\"n\",NA(),IF(VALUE(CntyDataLink!$ER$25)=\"\",NA(),VALUE(CntyDataLink!$ER$25)))","v":95}]
[]
["Percent Change",null,null,"08-09","09-10","10-11","11-12","12-13","13-14","14-15","15-16","16-17","17-18","18-19"]
["Goods Producing",null,null,{"$f":"(D71-C71)/C71","v":{"$error":"#N/A"}},{"$error":"#N/A"},7.8125E-2,5.7971014492753624E-2,{"$error":"#N/A"},{"$error":"#N/A"},0,0.12328767123287671,-2.4390243902439025E-2,7.4999999999999997E-2,{"$f":"(N71-M71)/M71","v":-3.4883720930232558E-2}]
["Service Providing",null,null,{"$error":"#N/A"},{"$error":"#N/A"},0.4,0.14285714285714285,{"$error":"#N/A"},{"$error":"#N/A"},0.23076923076923078,0.5625,-0.2,-0.4,0]
["Total Private Emp",null,null,0.31428571428571428,{"$f":"(E73-D73)/D73","v":-0.25},0.11594202898550725,5.1948051948051951E-2,3.7037037037037035E-2,2.3809523809523808E-2,3.4883720930232558E-2,0.20224719101123595,-6.5420560747663545E-2,-0.02,{"$f":"(N73-M73)/M73","v":-3.0612244897959183E-2}]
[]
["Source: New Hampshire Department of Employment Security"]
[]
[]
[]
[{"$f":"A2","v":"Acworth"}]
[]
[]
[]
[]
[]
[]
[]
[]
[]
[]
[]
[]
[]
[]
[]
[]
[]
[]
[]
[]
[]
[]
[]
[]
[]
[]
[]
[]
[]
[]
[]
[]
[]
[]
[]
[null,null,2008,{"$f":"C120+1","v":2009},2010,2011,2012,2013,2014,2015,2016,2017,2018,2019]
["Total Housing Units",null,{"$f":"B$57","v":575},580,{"$f":"$E$57","v":556},{"$f":"F57","v":561},565,565,568,568,569,569,569,574]
["Private & Government Emp.",null,{"$f":"VALUE(CntyDataLink!$BG$25)","v":88},{"$f":"VALUE(CntyDataLink!$BO$25)","v":107},{"$f":"VALUE(CntyDataLink!$BW$25)","v":83},{"$f":"VALUE(CntyDataLink!$CE$25)","v":91},{"$f":"VALUE(CntyDataLink!$CM$25)","v":95},{"$f":"VALUE(CntyDataLink!$CU$25)","v":103},{"$f":"VALUE(CntyDataLink!$DC$25)","v":104},{"$f":"VALUE(CntyDataLink!$DK$25)","v":106},{"$f":"VALUE(CntyDataLink!$DS$25)","v":124},{"$f":"VALUE(CntyDataLink!$EA$25)","v":119},{"$f":"VALUE(CntyDataLink!$EI$25)","v":117},{"$f":"VALUE(CntyDataLink!$EQ$25)","v":112}]
[]
["Source: New Hampshire Department of Employment Security and New Hampshire Office Strategic Initiatives"]

{"sheet":"HHIncome-10YearComparison","index":11,"n_rows":50,"n_cols":17,"rows_kept":50,"cut":false,"hidden":true,"merged":[[28,1,28,2],[26,1,26,4],[27,15,27,16],[3,1,3,3],[27,4,27,7],[27,8,27,10],[27,11,27,13]],"read":"row_number_cap"}
[]
[null,{"$f":"CntyDataLink!A35","v":"Acworth"}]
[]
[null,"INCOME CHARACTERISTICS"]
[]
[]
[]
[]
[]
[]
[]
[]
[]
[]
[]
[]
[]
[]
[]
[]
[]
[]
[]
[]
[]
[]
[null,"Households By Household Income"]
[null,null,null,null,"2005-2009",null,null,null,"2010-2014",null,null,"2015-2019",null,null,null,"Statistically Significant Change"]
[null,"Household Income",null,null,"Estimate","Margin of Error",null,null,"Estimate"," Margin of Error",null,"Estimate"," Margin of Error",null,null,"2009-2019","2014-2019"]
[null,"Less than $10,000",null,null,{"$f":"CntyDataLinkPrior10YearEstimate!$B$120","v":9},{"$f":"CntyDataLinkPrior10YearEstimate!$C$120","v":10},{"$f":"E30/SUM($E$30:$E$39)","v":3.8135593220338986E-2},null,{"$f":"CntyDataLinkPrior5YearEstimates!$B$120","v":16},{"$f":"CntyDataLinkPrior5YearEstimates!$C$120","v":13},{"$f":"I30/SUM($I$30:$I$39)","v":4.6109510086455328E-2},{"$f":"CntyDataLink!$B$120","v":15},{"$f":"CntyDataLink!$C$120","v":16},{"$f":"L30/SUM($L$30:$L$39)","v":4.0540540540540543E-2},null,{"$f":"StatisticallySignificantCalcs!$A$83","v":"N"},{"$f":"StatisticallySignificantCalcs!$J$83","v":"N"}]
[null,"$10,000 to $14,999",null,null,{"$f":"CntyDataLinkPrior10YearEstimate!$D$120","v":31},{"$f":"CntyDataLinkPrior10YearEstimate!$E$120","v":22},{"$f":"E31/SUM($E$30:$E$39)","v":0.13135593220338984},null,{"$f":"CntyDataLinkPrior5YearEstimates!$D$120","v":12},{"$f":"CntyDataLinkPrior5YearEstimates!$E$120","v":8},3.4582132564841501E-2,{"$f":"CntyDataLink!$D$120","v":6},{"$f":"CntyDataLink!$E$120","v":6},1.6216216216216217E-2,null,{"$f":"StatisticallySignificantCalcs!$A$84","v":"Y"},{"$f":"StatisticallySignificantCalcs!$J$84","v":"N"}]
[null,"$15,000 to $24,999",null,null,{"$f":"CntyDataLinkPrior10YearEstimate!$F$120","v":5},{"$f":"CntyDataLinkPrior10YearEstimate!$G$120","v":8},2.1186440677966101E-2,null,{"$f":"CntyDataLinkPrior5YearEstimates!$F$120","v":37},{"$f":"CntyDataLinkPrior5YearEstimates!$G$120","v":23.345235059857504},0.10662824207492795,{"$f":"CntyDataLink!$F$120","v":15},{"$f":"CntyDataLink!$G$120","v":11.661903789690601},4.0540540540540543E-2,null,{"$f":"StatisticallySignificantCalcs!$A$85","v":"N"},{"$f":"StatisticallySignificantCalcs!$J$85","v":"Y"}]
[null,"$25,000 to $34,999",null,null,{"$f":"CntyDataLinkPrior10YearEstimate!$H$120","v":38},{"$f":"CntyDataLinkPrior10YearEstimate!$I$120","v":25},0.16101694915254236,null,{"$f":"CntyDataLinkPrior5YearEstimates!$H$120","v":42},{"$f":"CntyDataLinkPrior5YearEstimates!$I$120","v":21.95449840010015},0.12103746397694524,{"$f":"CntyDataLink!$H$120","v":30},{"$f":"CntyDataLink!$I$120","v":14.422205101855956},8.1081081081081086E-2,null,{"$f":"StatisticallySignificantCalcs!$A$86","v":"N"},{"$f":"StatisticallySignificantCalcs!$J$86","v":"N"}]
[null,"$35,000 to $49,999",null,null,{"$f":"CntyDataLinkPrior10YearEstimate!$J$120","v":0},{"$f":"CntyDataLinkPrior10YearEstimate!$K$120","v":114},0,null,{"$f":"CntyDataLinkPrior5YearEstimates!$J$120","v":51},{"$f":"CntyDataLinkPrior5YearEstimates!$K$120","v":21.794494717703369},0.14697406340057637,{"$f":"CntyDataLink!$J$120","v":46},{"$f":"CntyDataLink!$K$120","v":21.118712081942874},0.12432432432432433,null,{"$f":"StatisticallySignificantCalcs!$A$87","v":"N"},{"$f":"StatisticallySignificantCalcs!$J$87","v":"N"}]
[null,"$50,000 to $74,999",null,null,{"$f":"CntyDataLinkPrior10YearEstimate!$L$120","v":17},{"$f":"CntyDataLinkPrior10YearEstimate!$M$120","v":18},7.2033898305084748E-2,null,{"$f":"CntyDataLinkPrior5YearEstimates!$L$120","v":74},{"$f":"CntyDataLinkPrior5YearEstimates!$M$120","v":28.844410203711913},0.2132564841498559,{"$f":"CntyDataLink!$L$120","v":97},{"$f":"CntyDataLink!$M$120","v":32.557641192199412},0.26216216216216215,null,{"$f":"StatisticallySignificantCalcs!$A$88","v":"Y"},{"$f":"StatisticallySignificantCalcs!$J$88","v":"Y"}]
[null,"$75,000 to $99,999",null,null,{"$f":"CntyDataLinkPrior10YearEstimate!$N$120","v":3},{"$f":"CntyDataLinkPrior10YearEstimate!$O$120","v":4},1.2711864406779662E-2,null,{"$f":"CntyDataLinkPrior5YearEstimates!$N$120","v":64},{"$f":"CntyDataLinkPrior5YearEstimates!$O$120","v":23},0.18443804034582131,{"$f":"CntyDataLink!$N$120","v":64},{"$f":"CntyDataLink!$O$120","v":32},0.17297297297297298,null,{"$f":"StatisticallySignificantCalcs!$A$89","v":"Y"},{"$f":"StatisticallySignificantCalcs!$J$89","v":"Y"}]
[null,"$100,000 to $149,999",null,null,{"$f":"CntyDataLinkPrior10YearEstimate!$P$120","v":62},{"$f":"CntyDataLinkPrior10YearEstimate!$Q$120","v":46},0.26271186440677968,null,{"$f":"CntyDataLinkPrior5YearEstimates!$P$120","v":30},{"$f":"CntyDataLinkPrior5YearEstimates!$Q$120","v":19.235384061671343},8.645533141210375E-2,{"$f":"CntyDataLink!$P$120","v":62},{"$f":"CntyDataLink!$Q$120","v":24.839484696748443},0.16756756756756758,null,{"$f":"StatisticallySignificantCalcs!$A$90","v":"N"},{"$f":"StatisticallySignificantCalcs!$J$90","v":"N"}]
[null,"$150,000 to $199,999",null,null,{"$f":"CntyDataLinkPrior10YearEstimate!$R$120","v":40},{"$f":"CntyDataLinkPrior10YearEstimate!$S$120","v":24},0.16949152542372881,null,{"$f":"CntyDataLinkPrior5YearEstimates!$R$120","v":8},{"$f":"CntyDataLinkPrior5YearEstimates!$S$120","v":11},2.3054755043227664E-2,{"$f":"CntyDataLink!$R$120","v":19},{"$f":"CntyDataLink!$S$120","v":13},5.1351351351351354E-2,null,{"$f":"StatisticallySignificantCalcs!$A$91","v":"N"},{"$f":"StatisticallySignificantCalcs!$J$91","v":"Y"}]
[null,"Greater than $200,000",null,null,{"$f":"CntyDataLinkPrior10YearEstimate!$T$120","v":31},{"$f":"CntyDataLinkPrior10YearEstimate!$U$120","v":20},0.13135593220338984,null,{"$f":"CntyDataLinkPrior5YearEstimates!$T$120","v":13},{"$f":"CntyDataLinkPrior5YearEstimates!$U$120","v":8},3.7463976945244955E-2,{"$f":"CntyDataLink!$T$120","v":16},{"$f":"CntyDataLink!$U$120","v":12},4.3243243243243246E-2,null,{"$f":"StatisticallySignificantCalcs!$A$92","v":"N"},{"$f":"StatisticallySignificantCalcs!$J$92","v":"N"}]
[null,null,null,null,491895,null,null,null,491895]
[null,null,"Median HH Income",null,{"$f":"CntyDataLinkPrior10YearEstimate!$BV$128","v":46477},{"$f":"CntyDataLinkPrior10YearEstimate!$BW$128","v":5651},null,null,{"$f":"CntyDataLinkPrior5YearEstimates!$BV$128","v":52589},{"$f":"CntyDataLinkPrior5YearEstimates!$BW$128","v":5357},null,{"$f":"CntyDataLink!$BV$128","v":68438},{"$f":"CntyDataLink!$BW$128","v":8127}]
[null,null,"HH Income in 2019 Dollars",null,{"$f":"($E$50)*E41","v":54842.86},null,null,null,{"$f":"($E$49)*I41","v":56270.23}]
[]
[null,{"$f":"\"Source:  \"& \" \"&E28&\", \"&I28&\" and \"&L28& \"  American Community Survey; Tables B25119; B19001\"","v":"Source:   2005-2009, 2010-2014 and 2015-2019  American Community Survey; Tables B25119; B19001"}]
[]
[null,"Data from the American Community Survey are estimates."]
[]
[null,"CPI Adjustment Factor"]
[null,"2010-2014",null,null,1.07]
[null,"2005-2009",null,null,1.18]

{"sheet":"HHIncomeByAge","index":12,"n_rows":80,"n_cols":22,"rows_kept":80,"cut":false,"hidden":true,"merged":[[21,6,21,15]]}
[]
[null,null,{"$f":"CntyDataLink!A55","v":"Acworth"}]
[null,null,"INCOME CHARACTERISTICS"]
[]
[]
[]
[]
[]
[]
[]
[]
[]
[]
[]
[]
[]
[]
[]
[]
[]
[null,null,{"$f":"HHIncomeByAge!C2","v":"Acworth"},"Household Income in 2019"]
[null,null,null,null,null,null,"Households by Age of Householder "]
[null,null,null,"Households","MOE Households",null,"Under 25","MOE Under 25",null,"25 to 44","MOE 25 to 44",null,"45 to 64","MOE 45 to 64",null,"65 & Over","MOE 65 & Over",null,"Family Households","Margin of Error Family HH","Non-Family HH","Margin of Error Non-Family HH"]
[null,null,"Less Than $10,000",{"$f":"CntyDataLink!$D$116","v":15},{"$f":"CntyDataLink!$E$116","v":16},null,{"$f":"CntyDataLink!$AN$116","v":0},{"$f":"CntyDataLink!$AO$116","v":11},null,{"$f":"CntyDataLink!$BV$116","v":6},{"$f":"CntyDataLink!$BW$116","v":10},null,{"$f":"CntyDataLink!$DD$116","v":9},{"$f":"CntyDataLink!$DE$116","v":12},null,{"$f":"CntyDataLink!$EL$116","v":0},{"$f":"CntyDataLink!$EM$116","v":16},null,{"$f":"CntyDataLink!$D$160","v":9},{"$f":"CntyDataLink!$E$160","v":12},{"$f":"CntyDataLink!$AN$160","v":6},{"$f":"CntyDataLink!$AO$160","v":10}]
[null,null,"$10,000 to $14,999",{"$f":"CntyDataLink!$F$116","v":6},{"$f":"CntyDataLink!$G$116","v":6},null,{"$f":"CntyDataLink!$AP$116","v":0},{"$f":"CntyDataLink!$AQ$116","v":11},null,{"$f":"CntyDataLink!$BX$116","v":0},{"$f":"CntyDataLink!$BY$116","v":11},null,{"$f":"CntyDataLink!$DF$116","v":2},{"$f":"CntyDataLink!$DG$116","v":3},null,{"$f":"CntyDataLink!$EN$116","v":30},{"$f":"CntyDataLink!$EO$116","v":35},null,{"$f":"CntyDataLink!$F$160","v":0},{"$f":"CntyDataLink!$G$160","v":11},{"$f":"CntyDataLink!$AP$160","v":6},{"$f":"CntyDataLink!$AQ$160","v":6}]
[null,null,"$15,000 to $19,999",{"$f":"CntyDataLink!$H$116","v":7},{"$f":"CntyDataLink!$I$116","v":6},null,{"$f":"CntyDataLink!$AR$116","v":0},{"$f":"CntyDataLink!$AS$116","v":11},null,{"$f":"CntyDataLink!$BZ$116","v":0},{"$f":"CntyDataLink!$CA$116","v":11},null,{"$f":"CntyDataLink!$DH$116","v":3},{"$f":"CntyDataLink!$DI$116","v":4},null,{"$f":"CntyDataLink!$EP$116","v":122},{"$f":"CntyDataLink!$EQ$116","v":86},null,{"$f":"CntyDataLink!$H$160","v":2},{"$f":"CntyDataLink!$I$160","v":3},{"$f":"CntyDataLink!$AR$160","v":5},{"$f":"CntyDataLink!$AS$160","v":5}]
[null,null,"$20,000 to $24,999",{"$f":"CntyDataLink!$J$116","v":8},{"$f":"CntyDataLink!$K$116","v":10},null,{"$f":"CntyDataLink!$AT$116","v":0},{"$f":"CntyDataLink!$AU$116","v":11},null,{"$f":"CntyDataLink!$CB$116","v":0},{"$f":"CntyDataLink!$CC$116","v":11},null,{"$f":"CntyDataLink!$DJ$116","v":0},{"$f":"CntyDataLink!$DK$116","v":11},null,{"$f":"CntyDataLink!$ER$116","v":15},{"$f":"CntyDataLink!$ES$116","v":24},null,{"$f":"CntyDataLink!$J$160","v":2},{"$f":"CntyDataLink!$K$160","v":3},{"$f":"CntyDataLink!$AT$160","v":6},{"$f":"CntyDataLink!$AU$160","v":9}]
[null,null,"$25,000 to $29,999",{"$f":"CntyDataLink!$L$116","v":20},{"$f":"CntyDataLink!$M$116","v":12},null,{"$f":"CntyDataLink!$AV$116","v":0},{"$f":"CntyDataLink!$AW$116","v":11},null,{"$f":"CntyDataLink!$CD$116","v":0},{"$f":"CntyDataLink!$CE$116","v":11},null,{"$f":"CntyDataLink!$DL$116","v":8},{"$f":"CntyDataLink!$DM$116","v":10},null,{"$f":"CntyDataLink!$ET$116","v":67},{"$f":"CntyDataLink!$EU$116","v":68},null,{"$f":"CntyDataLink!$L$160","v":5},{"$f":"CntyDataLink!$M$160","v":5},{"$f":"CntyDataLink!$AV$160","v":15},{"$f":"CntyDataLink!$AW$160","v":11}]
[null,null,"$30,000 to $34,999",{"$f":"CntyDataLink!$N$116","v":10},{"$f":"CntyDataLink!$O$116","v":8},null,{"$f":"CntyDataLink!$AX$116","v":0},{"$f":"CntyDataLink!$AY$116","v":11},null,{"$f":"CntyDataLink!$CF$116","v":2},{"$f":"CntyDataLink!$CG$116","v":3},null,{"$f":"CntyDataLink!$DN$116","v":0},{"$f":"CntyDataLink!$DO$116","v":11},null,{"$f":"CntyDataLink!$EV$116","v":13},{"$f":"CntyDataLink!$EW$116","v":21},null,{"$f":"CntyDataLink!$N$160","v":8},{"$f":"CntyDataLink!$O$160","v":8},{"$f":"CntyDataLink!$AX$160","v":2},{"$f":"CntyDataLink!$AY$160","v":3}]
[null,null,"$35,000 to $39,999",{"$f":"CntyDataLink!$P$116","v":9},{"$f":"CntyDataLink!$Q$116","v":6},null,{"$f":"CntyDataLink!$AZ$116","v":0},{"$f":"CntyDataLink!$BA$116","v":11},null,{"$f":"CntyDataLink!$CH$116","v":2},{"$f":"CntyDataLink!$CI$116","v":3},null,{"$f":"CntyDataLink!$DP$116","v":0},{"$f":"CntyDataLink!$DQ$116","v":11},null,{"$f":"CntyDataLink!$EX$116","v":90},{"$f":"CntyDataLink!$EY$116","v":80},null,{"$f":"CntyDataLink!$P$160","v":2},{"$f":"CntyDataLink!$Q$160","v":3},{"$f":"CntyDataLink!$AZ$160","v":7},{"$f":"CntyDataLink!$BA$160","v":6}]
[null,null,"$40,000 to $44,999",{"$f":"CntyDataLink!$R$116","v":19},{"$f":"CntyDataLink!$S$116","v":17},null,{"$f":"CntyDataLink!$BB$116","v":0},{"$f":"CntyDataLink!$BC$116","v":11},null,{"$f":"CntyDataLink!$CJ$116","v":11},{"$f":"CntyDataLink!$CK$116","v":11},null,{"$f":"CntyDataLink!$DR$116","v":0},{"$f":"CntyDataLink!$DS$116","v":11},null,{"$f":"CntyDataLink!$EZ$116","v":32},{"$f":"CntyDataLink!$FA$116","v":53},null,{"$f":"CntyDataLink!$R$160","v":19},{"$f":"CntyDataLink!$S$160","v":17},{"$f":"CntyDataLink!$BB$160","v":2},{"$f":"CntyDataLink!$BC$160","v":3}]
[null,null,"$45,000 to $49,999",{"$f":"CntyDataLink!$T$116","v":18},{"$f":"CntyDataLink!$U$116","v":11},null,{"$f":"CntyDataLink!$BD$116","v":0},{"$f":"CntyDataLink!$BE$116","v":11},null,{"$f":"CntyDataLink!$CL$116","v":2},{"$f":"CntyDataLink!$CM$116","v":3},null,{"$f":"CntyDataLink!$DT$116","v":11},{"$f":"CntyDataLink!$DU$116","v":11},null,{"$f":"CntyDataLink!$FB$116","v":0},{"$f":"CntyDataLink!$FC$116","v":16},null,{"$f":"CntyDataLink!$T$160","v":14},{"$f":"CntyDataLink!$U$160","v":12},{"$f":"CntyDataLink!$BD$160","v":6},{"$f":"CntyDataLink!$BE$160","v":6}]
[null,null,"$50,000 to $59,999",{"$f":"CntyDataLink!$V$116","v":46},{"$f":"CntyDataLink!$W$116","v":22},null,{"$f":"CntyDataLink!$BF$116","v":0},{"$f":"CntyDataLink!$BG$116","v":11},null,{"$f":"CntyDataLink!$CN$116","v":2},{"$f":"CntyDataLink!$CO$116","v":3},null,{"$f":"CntyDataLink!$DV$116","v":13},{"$f":"CntyDataLink!$DW$116","v":13},null,{"$f":"CntyDataLink!$FD$116","v":62},{"$f":"CntyDataLink!$FE$116","v":51},null,{"$f":"CntyDataLink!$V$160","v":12},{"$f":"CntyDataLink!$W$160","v":11},{"$f":"CntyDataLink!$BF$160","v":34},{"$f":"CntyDataLink!$BG$160","v":20}]
[null,null,"$60,000 to $74,999",{"$f":"CntyDataLink!$X$116","v":51},{"$f":"CntyDataLink!$Y$116","v":24},null,{"$f":"CntyDataLink!$BH$116","v":0},{"$f":"CntyDataLink!$BI$116","v":11},null,{"$f":"CntyDataLink!$CP$116","v":9},{"$f":"CntyDataLink!$CQ$116","v":8},null,{"$f":"CntyDataLink!$DX$116","v":20},{"$f":"CntyDataLink!$DY$116","v":18},null,{"$f":"CntyDataLink!$FF$116","v":110},{"$f":"CntyDataLink!$FG$116","v":68},null,{"$f":"CntyDataLink!$X$160","v":37},{"$f":"CntyDataLink!$Y$160","v":22},{"$f":"CntyDataLink!$BH$160","v":12},{"$f":"CntyDataLink!$BI$160","v":9}]
[null,null,"$75,000 to $99,999",{"$f":"CntyDataLink!$Z$116","v":64},{"$f":"CntyDataLink!$AA$116","v":32},null,{"$f":"CntyDataLink!$BJ$116","v":0},{"$f":"CntyDataLink!$BK$116","v":11},null,{"$f":"CntyDataLink!$CR$116","v":5},{"$f":"CntyDataLink!$CS$116","v":6},null,{"$f":"CntyDataLink!$DZ$116","v":36},{"$f":"CntyDataLink!$EA$116","v":27},null,{"$f":"CntyDataLink!$FH$116","v":62},{"$f":"CntyDataLink!$FI$116","v":51},null,{"$f":"CntyDataLink!$Z$160","v":57},{"$f":"CntyDataLink!$AA$160","v":29},{"$f":"CntyDataLink!$BJ$160","v":8},{"$f":"CntyDataLink!$BK$160","v":10}]
[null,null,"$100,000 to $124,999",{"$f":"CntyDataLink!$AB$116","v":34},{"$f":"CntyDataLink!$AC$116","v":19},null,{"$f":"CntyDataLink!$BL$116","v":0},{"$f":"CntyDataLink!$BM$116","v":11},null,{"$f":"CntyDataLink!$CT$116","v":2},{"$f":"CntyDataLink!$CU$116","v":3},null,{"$f":"CntyDataLink!$EB$116","v":23},{"$f":"CntyDataLink!$EC$116","v":16},null,{"$f":"CntyDataLink!$FJ$116","v":0},{"$f":"CntyDataLink!$FK$116","v":16},null,{"$f":"CntyDataLink!$AB$160","v":30},{"$f":"CntyDataLink!$AC$160","v":18},{"$f":"CntyDataLink!$BL$160","v":4},{"$f":"CntyDataLink!$BM$160","v":5}]
[null,null,"$125,000 to $149,999",{"$f":"CntyDataLink!$AD$116","v":28},{"$f":"CntyDataLink!$AE$116","v":16},null,{"$f":"CntyDataLink!$BN$116","v":0},{"$f":"CntyDataLink!$BO$116","v":11},null,{"$f":"CntyDataLink!$CV$116","v":7},{"$f":"CntyDataLink!$CW$116","v":6},null,{"$f":"CntyDataLink!$ED$116","v":35},{"$f":"CntyDataLink!$EE$116","v":35},null,{"$f":"CntyDataLink!$FL$116","v":0},{"$f":"CntyDataLink!$FM$116","v":16},null,{"$f":"CntyDataLink!$AD$160","v":28},{"$f":"CntyDataLink!$AE$160","v":15},{"$f":"CntyDataLink!$BN$160","v":2},{"$f":"CntyDataLink!$BO$160","v":3}]
[null,null,"$150,000 to $199,999",{"$f":"CntyDataLink!$AF$116","v":19},{"$f":"CntyDataLink!$AG$116","v":13},null,{"$f":"CntyDataLink!$BP$116","v":0},{"$f":"CntyDataLink!$BQ$116","v":11},null,{"$f":"CntyDataLink!$CX$116","v":3},{"$f":"CntyDataLink!$CY$116","v":5},null,{"$f":"CntyDataLink!$EF$116","v":23},{"$f":"CntyDataLink!$EG$116","v":29},null,{"$f":"CntyDataLink!$FN$116","v":0},{"$f":"CntyDataLink!$FO$116","v":16},null,{"$f":"CntyDataLink!$AF$160","v":16},{"$f":"CntyDataLink!$AG$160","v":13},{"$f":"CntyDataLink!$BP$160","v":0},{"$f":"CntyDataLink!$BQ$160","v":11}]
[null,null,"$200,000 or More",{"$f":"CntyDataLink!$AH$116","v":16},{"$f":"CntyDataLink!$AI$116","v":12},null,{"$f":"CntyDataLink!$BR$116","v":0},{"$f":"CntyDataLink!$BS$116","v":11},null,{"$f":"CntyDataLink!$CZ$116","v":2},{"$f":"CntyDataLink!$DA$116","v":3},null,{"$f":"CntyDataLink!$EH$116","v":21},{"$f":"CntyDataLink!$EI$116","v":26},null,{"$f":"CntyDataLink!$FP$116","v":46},{"$f":"CntyDataLink!$FQ$116","v":54},null,{"$f":"CntyDataLink!$AH$160","v":14},{"$f":"CntyDataLink!$AI$160","v":11},{"$f":"CntyDataLink!$BR$160","v":0},{"$f":"CntyDataLink!$BS$160","v":11}]
[]
[null,null,"Total Households",{"$f":"CntyDataLink!$B$116","v":370},{"$f":"CntyDataLink!$C$116","v":51},null,{"$f":"CntyDataLink!$AL$116","v":0},{"$f":"CntyDataLink!$AM$116","v":11},null,{"$f":"CntyDataLink!$BT$116","v":53},{"$f":"CntyDataLink!$BU$116","v":23},null,{"$f":"CntyDataLink!$DB$116","v":169},{"$f":"CntyDataLink!$DC$116","v":42},null,{"$f":"CntyDataLink!$EJ$116","v":649},{"$f":"CntyDataLink!$EK$116","v":117},null,{"$f":"CntyDataLink!$B$160","v":255},{"$f":"CntyDataLink!$C$160","v":43},{"$f":"CntyDataLink!$AL$160","v":115},{"$f":"CntyDataLink!$AM$160","v":28}]
[null,null,"Median Household Inc ",{"$f":"CntyDataLink!$FR$116","v":68438},{"$f":"CntyDataLink!$FS$116","v":8127},null,{"$f":"CntyDataLink!$FT$116","v":"-"},{"$f":"CntyDataLink!$FU$116","v":"**"},null,{"$f":"CntyDataLink!$FV$116","v":63250},{"$f":"CntyDataLink!$FW$116","v":29245},null,{"$f":"CntyDataLink!$FX$116","v":94375},{"$f":"CntyDataLink!$FY$116","v":18057},null,{"$f":"CntyDataLink!$FZ$116","v":55000},{"$f":"CntyDataLink!$GA$116","v":6509},null,{"$f":"CntyDataLink!$AJ$160","v":82031},{"$f":"CntyDataLink!$AK$160","v":10238},{"$f":"CntyDataLink!BT$160","v":50568},{"$f":"CntyDataLink!$BU$160","v":8284}]
[]
[null,null,"Source: 2015-2019 American Community Survey Table B19001; B19037; 19101; B19102; B19112; B19113; B19049"]
[null,null,"Data from the American Community Survey are estimates"]
[]
[null,null,{"$f":"C2","v":"Acworth"}]
[null,null,"INCOME CHARACTERISTICS"]
[]
[]
[]
[]
[]
[]
[]
[]
[]
[]
[]
[]
[]
[]
[]
[]
[]
[]
[]
[]
[]
[]
[]
[]
[]
[]
[]
[]
[]
[]
[]
[null,null,"Source: 2015-2019 American Community Survey Table B19001; B19102",null,null,null,null,null,null,null,null,null,null,null,null,"Data from the American Community Survey are estimates"]

{"sheet":"HHIncomeByTenure","index":13,"n_rows":64,"n_cols":17,"rows_kept":64,"cut":false,"hidden":true,"merged":[[63,3,63,4],[63,8,63,9],[63,13,63,14],[61,3,61,4],[61,8,61,9],[61,13,61,14],[62,3,62,4],[62,8,62,9],[62,13,62,14],[2,3,2,5],[58,3,58,6],[58,8,58,11],[58,13,58,16],[59,3,59,6],[59,8,59,11],[59,13,59,16]]}
[]
[null,null,null,{"$f":"CntyDataLink!A80","v":"Acworth"}]
[null,null,null,"INCOME CHARACTERISTICS"]
[]
[]
[]
[]
[]
[]
[]
[]
[]
[]
[]
[]
[]
[]
[]
[]
[]
[]
[]
[]
[]
[]
[]
[]
[null,null,null,null,{"$f":"D2","v":"Acworth"}]
[null,null,null,null,"Household Income By Tenure"]
[null,null,null,null,null,"2018 Household Income 1",null,"Occupied Housing Units","MOE Occupied Housing Units","Owner Occupied Housing Units","MOE Owner Occupied Housing Units","Renter Occupied Housing Units","MOE Renter Occupied Housing Units"]
[]
[null,null,null,null,null,"Total",null,{"$f":"CntyDataLink!$B$128","v":370},{"$f":"CntyDataLink!$C$128","v":51},{"$f":"CntyDataLink!$D$128","v":340},{"$f":"CntyDataLink!$E$128","v":50},{"$f":"CntyDataLink!$AB$128","v":30},{"$f":"CntyDataLink!$AC$128","v":16}]
[null,null,null,4999,{"$f":"VALUE(RIGHT(F33,7))","v":5000},"Less Than $5,000",null,{"$f":"CntyDataLink!$AZ$128","v":15},{"$f":"CntyDataLink!$BA$128","v":15.620499351813308},{"$f":"CntyDataLink!$F$128","v":9},{"$f":"CntyDataLink!$G$128","v":12},{"$f":"CntyDataLink!$AD$128","v":6},{"$f":"CntyDataLink!$AE$128","v":10}]
[null,null,{"$f":"VALUE(RIGHT($F33,7))","v":5000},4999,10000,"$5,000 to $10,000",null,{"$f":"CntyDataLink!$BB$128","v":0},{"$f":"CntyDataLink!$BC$128","v":15.556349186104045},{"$f":"CntyDataLink!$H$128","v":0},{"$f":"CntyDataLink!$I$128","v":11},{"$f":"CntyDataLink!$AF$128","v":0},{"$f":"CntyDataLink!$AG$128","v":11}]
[null,null,10000,4999,15000,"$10,000 to $15,000",null,{"$f":"CntyDataLink!$BD$128","v":6},{"$f":"CntyDataLink!$BE$128","v":12.529964086141668},{"$f":"CntyDataLink!$J$128","v":6},{"$f":"CntyDataLink!$K$128","v":6},{"$f":"CntyDataLink!$AH$128","v":0},{"$f":"CntyDataLink!$AI$128","v":11}]
[null,null,15000,4999,20000,"$15,000 to $20,000",null,{"$f":"CntyDataLink!$BF$128","v":7},{"$f":"CntyDataLink!$BG$128","v":12.529964086141668},{"$f":"CntyDataLink!$L$128","v":7},{"$f":"CntyDataLink!$M$128","v":6},{"$f":"CntyDataLink!$AJ$128","v":0},{"$f":"CntyDataLink!$AK$128","v":11}]
[null,null,20000,4999,25000,"$20,000 to $25,000",null,{"$f":"CntyDataLink!$BH$128","v":8},{"$f":"CntyDataLink!$BI$128","v":14.866068747318506},{"$f":"CntyDataLink!$N$128","v":8},{"$f":"CntyDataLink!$O$128","v":10},{"$f":"CntyDataLink!$AL$128","v":0},{"$f":"CntyDataLink!$AM$128","v":11}]
[null,null,25000,9999,35000,"$25,000 to $35,000",null,{"$f":"CntyDataLink!$BJ$128","v":30},{"$f":"CntyDataLink!$BK$128","v":14.317821063276353},{"$f":"CntyDataLink!$P$128","v":28},{"$f":"CntyDataLink!$Q$128","v":14},{"$f":"CntyDataLink!$AN$128","v":2},{"$f":"CntyDataLink!$AO$128","v":3}]
[null,null,35000,14999,50000,"$35,000 to $50,000",null,{"$f":"CntyDataLink!$BL$128","v":46},{"$f":"CntyDataLink!$BM$128","v":19.646882704388499},{"$f":"CntyDataLink!$R$128","v":40},{"$f":"CntyDataLink!$S$128","v":19},{"$f":"CntyDataLink!$AP$128","v":6},{"$f":"CntyDataLink!$AQ$128","v":5}]
[null,null,50000,24999,75000,"$50,000 to $75,000",null,{"$f":"CntyDataLink!$BN$128","v":97},{"$f":"CntyDataLink!$BO$128","v":30.675723300355934},{"$f":"CntyDataLink!$T$128","v":89},{"$f":"CntyDataLink!$U$128","v":29},{"$f":"CntyDataLink!$AR$128","v":8},{"$f":"CntyDataLink!$AS$128","v":10}]
[null,null,75000,24999,100000,"$75,000 to $100,000",null,{"$f":"CntyDataLink!$BP$128","v":64},{"$f":"CntyDataLink!$BQ$128","v":34.525353003264136},{"$f":"CntyDataLink!$V$128","v":59},{"$f":"CntyDataLink!$W$128","v":34},{"$f":"CntyDataLink!$AT$128","v":5},{"$f":"CntyDataLink!$AU$128","v":6}]
[null,null,100000,49999,150000,"$100,000 to $150,000",null,{"$f":"CntyDataLink!$BR$128","v":62},{"$f":"CntyDataLink!$BS$128","v":23.706539182259394},{"$f":"CntyDataLink!$X$128","v":62},{"$f":"CntyDataLink!$Y$128","v":21},{"$f":"CntyDataLink!$AV$128","v":0},{"$f":"CntyDataLink!$AW$128","v":11}]
[null,null,150000,null,null,"$150,000 and More",null,{"$f":"CntyDataLink!$BT$128","v":35},{"$f":"CntyDataLink!$BU$128","v":17.720045146669349},{"$f":"CntyDataLink!$Z$128","v":32},{"$f":"CntyDataLink!$AA$128","v":17},{"$f":"CntyDataLink!$AX$128","v":3},{"$f":"CntyDataLink!$AY$128","v":5}]
[]
[]
[null,null,null,null,null,"Median Household Income 2",null,{"$f":"CntyDataLink!$BV$128","v":68438},{"$f":"CntyDataLink!$BW$128","v":8127},{"$f":"CntyDataLink!$BX$128","v":70500},{"$f":"CntyDataLink!$BY$128","v":7922},{"$f":"CntyDataLink!$BZ$128","v":51250},{"$f":"CntyDataLink!$CA$128","v":15306}]
[]
[]
[null,null,null,null,null,"Data from the American Community Survey are estimates"]
[]
[null,null,null,"Source:",1,"2015-2019 American Community Survey Table B25118;  2019 Inflation Adjusted dollars"]
[null,null,null,null,2,"2015-2019 American Community Survey Table B25119;  2019 Inflation Adjusted dollars"]
[]
[]
[]
[null,null,null,"HOUSEHOLD INCOME IN THE PAST 12 MONTHS BY PERCENT OF MEDIAN THRESHOLD"]
[]
[]
[null,null,null,"All Occupied Housing Units",null,null,null,null,"Owner Occupied Households",null,null,null,null,"Renter Occupied Households"]
[]
[null,null,null,"HOUSEHOLD INCOME",null,"Estimate","Margin Of Error",null,"HOUSEHOLD INCOME",null,"Estimate","Margin Of Error",null,"HOUSEHOLD INCOME",null,"Estimate","Margin Of Error"]
[null,null,{"$f":"$H$46*0.3","v":20531.399999999998},"30% of Median Household Income",null,{"$f":"IF($C$62<$C$36,((($C$62-$C$35)/$D$35)*$H$35)+SUM($H$33:$H$34),IF($C$62<$C$37,((($C$62-$C$36)/$D$36)*$H$36)+SUM($H$33:$H$35),IF($C$62<$C$38,((($C$62-$C$37)/$D$37)*$H$37)+SUM($H$33:$H$36),IF($C$62<$C$39,((($C$62-$C$38)/$D$38)*$H$38)+SUM($H$33:$H$37),IF($C$62<$C$40,((($C$62-$C$39)/$D$39)*$H$39)+SUM($H$33:$H$38),IF($C$62<$C$41,((($C$62-$C$40)/$D$40)*$H$40)+SUM($H$33:$H$39),IF($C$62<$C$42,((($C$62-$C$41)/$D$41)*$H$41)+SUM($H$33:$H$40),\"False\")))))))","v":28.850410082016399},{"$f":"IF($C$62<$C$36,((($C$62-$C$35)/$D$35)*$I$35)+SQRT(SUM(($I$33^2),($I$34^2))),IF($C$62<$C$37,((($C$62-$C$36)/$D$36)*$I$36)+SQRT(SUM(($I$33^2),($I$34^2),($I$35^2))),IF($C$62<$C$38,((($C$62-$C$37)/$D$37)*$I$37)+SQRT(SUM(($I$33^2),($I$34^2),($I$35^2),($I$36^2))),IF($C$62<$C$39,((($C$62-$C$38)/$D$38)*$I$38)+SQRT(SUM(($I$33^2),($I$34^2),($I$35^2),($I$36^2),($I$37^2))),IF($C$62<$C$40,((($C$62-$C$39)/$D$39)*$I$39)+SQRT(SUM(($I$33^2),($I$34^2),($I$35^2),($I$36^2),($I$37^2),($I$38^2))),IF($C$62<$C$41,((($C$62-$C$40)/$D$40)*$I$40)+SQRT(SUM(($I$33^2),($I$34^2),($I$35^2),($I$36^2),($I$37^2),($I$38^2),($I$39^2))),IF($C$62<$C$42,((($C$62-$C$41)/$D$41)*$I$41)+SQRT((($I$33^2)+($I$34^2)+($I$35^2)+($I$36^2)+($I$37^2)+($I$38^2)+($I$39^2)+($I$40^2))),\"False\")))))))","v":29.864553090295473},{"$f":"$J$46*0.3","v":21150},"30% of Median Household Income",null,{"$f":"IF($H$62<$C$36,((($H$62-$C$35)/$D$35)*$J$35)+SUM($J$33:$J$34),IF($H$62<$C$37,((($H$62-$C$36)/$D$36)*$J$36)+SUM($J$33:$J$35),IF($H$62<$C$38,((($H$62-$C$37)/$D$37)*$J$37)+SUM($J$33:$J$36),IF($H$62<$C$39,((($H$62-$C$38)/$D$38)*$J$38)+SUM($J$33:$J$37),IF($H$62<$C$40,((($H$62-$C$39)/$D$39)*$J$39)+SUM($J$33:$J$38),IF($H$62<$C$41,((($H$62-$C$40)/$D$40)*$J$40)+SUM($J$33:$J$39),IF($H$62<$C$42,((($H$62-$C$41)/$D$41)*$J$41)+SUM($J$33:$J$40),\"False\")))))))","v":23.840368073614723},{"$f":"IF($H$62<$C$36,((($H$62-$C$35)/$D$35)*$K$35)+SQRT(SUM(($K$33^2),($K$34^2))),IF($H$62<$C$37,((($H$62-$C$36)/$D$36)*$K$36)+SQRT(SUM(($K$33^2),($K$34^2),($K$35^2))),IF($H$62<$C$38,((($H$62-$C$37)/$D$37)*$K$37)+SQRT(SUM(($K$33^2),($K$34^2),($K$35^2),($K$36^2))),IF($H$62<$C$39,((($H$62-$C$38)/$D$38)*$K$38)+SQRT(SUM(($K$33^2),($K$34^2),($K$35^2),($K$36^2),($K$37^2))),IF($H$62<$C$40,((($H$62-$C$39)/$D$39)*$K$39)+SQRT(SUM(($K$33^2),($K$34^2),($K$35^2),($K$36^2),($K$37^2),($K$38^2))),IF($H$62<$C$41,((($H$62-$C$40)/$D$40)*$K$40)+SQRT(SUM(($K$33^2),($K$34^2),($K$35^2),($K$36^2),($K$37^2),($K$38^2),($K$39^2))),IF($H$62<$C$42,((($H$62-$C$41)/$D$41)*$K$41)+SQRT((($K$33^2)+($K$34^2)+($K$35^2)+($K$36^2)+($K$37^2)+($K$38^2)+($K$39^2)+($K$40^2))),\"False\")))))))","v":20.658019842704224},{"$f":"$L$46*0.3","v":15375},"30% of Median Household Income",null,{"$f":"IF($M$62<$C$36,((($M$62-$C$35)/$D$35)*$L$35)+SUM($L$33:$L$34),IF($M$62<$C$37,((($M$62-$C$36)/$D$36)*$L$36)+SUM($L$33:$L$35),IF($M$62<$C$38,((($M$62-$C$37)/$D$37)*$L$37)+SUM($L$33:$L$36),IF($M$62<$C$39,((($M$62-$C$38)/$D$38)*$L$38)+SUM($L$33:$L$37),IF($M$62<$C$40,((($M$62-$C$39)/$D$39)*$L$39)+SUM($L$33:$L$38),IF($M$62<$C$41,((($M$62-$C$40)/$D$40)*$L$40)+SUM($L$33:$L$39),IF($M$62<$C$42,((($M$62-$C$41)/$D$41)*$L$41)+SUM($L$33:$L$40),\"False\")))))))","v":6},{"$f":"IF($M$62<$C$36,((($M$62-$C$35)/$D$35)*$M$35)+SQRT(SUM(($M$33^2),($M$34^2))),IF($M$62<$C$37,((($M$62-$C$36)/$D$36)*$M$36)+SQRT(SUM(($M$33^2),($M$34^2),($M$35^2))),IF($M$62<$C$38,((($M$62-$C$37)/$D$37)*$M$37)+SQRT(SUM(($M$33^2),($M$34^2),($M$35^2),($M$36^2))),IF($M$62<$C$39,((($M$62-$C$38)/$D$38)*$M$38)+SQRT(SUM(($M$33^2),($M$34^2),($M$35^2),($M$36^2),($M$37^2))),IF($M$62<$C$40,((($M$62-$C$39)/$D$39)*$M$39)+SQRT(SUM(($M$33^2),($M$34^2),($M$35^2),($M$36^2),($M$37^2),($M$38^2))),IF($M$62<$C$41,((($M$62-$C$40)/$D$40)*$M$40)+SQRT(SUM(($M$33^2),($M$34^2),($M$35^2),($M$36^2),($M$37^2),($M$38^2),($M$39^2))),IF($M$62<$C$42,((($M$62-$C$41)/$D$41)*$M$41)+SQRT((($M$33^2)+($M$34^2)+($M$35^2)+($M$36^2)+($M$37^2)+($M$38^2)+($M$39^2)+($M$40^2))),\"False\")))))))","v":19.318407041913531}]
[490,null,{"$f":"$H$46*0.5","v":34219},"50% of Median Household Income",null,{"$f":"IF($C$63<$C$36,((($C$63-$C$35)/$D$35)*$H$35)+SUM($H$33:$H$34),IF($C$63<$C$37,((($C$63-$C$36)/$D$36)*$H$36)+SUM($H$33:$H$35),IF($C$63<$C$38,((($C$63-$C$37)/$D$37)*$H$37)+SUM($H$33:$H$36),IF($C$63<$C$39,((($C$63-$C$38)/$D$38)*$H$38)+SUM($H$33:$H$37),IF($C$63<$C$40,((($C$63-$C$39)/$D$39)*$H$39)+SUM($H$33:$H$38),IF($C$63<$C$41,((($C$63-$C$40)/$D$40)*$H$40)+SUM($H$33:$H$39),IF($C$63<$C$42,((($C$63-$C$41)/$D$41)*$H$41)+SUM($H$33:$H$40),\"False\")))))))","v":63.659765976597662},{"$f":"IF($C$63<$C$36,((($C$63-$C$35)/$D$35)*$I$35)+SQRT(SUM(($I$33^2),($I$34^2))),IF($C$63<$C$37,((($C$63-$C$36)/$D$36)*$I$36)+SQRT(SUM(($I$33^2),($I$34^2),($I$35^2))),IF($C$63<$C$38,((($C$63-$C$37)/$D$37)*$I$37)+SQRT(SUM(($I$33^2),($I$34^2),($I$35^2),($I$36^2))),IF($C$63<$C$39,((($C$63-$C$38)/$D$38)*$I$38)+SQRT(SUM(($I$33^2),($I$34^2),($I$35^2),($I$36^2),($I$37^2))),IF($C$63<$C$40,((($C$63-$C$39)/$D$39)*$I$39)+SQRT(SUM(($I$33^2),($I$34^2),($I$35^2),($I$36^2),($I$37^2),($I$38^2))),IF($C$63<$C$41,((($C$63-$C$40)/$D$40)*$I$40)+SQRT(SUM(($I$33^2),($I$34^2),($I$35^2),($I$36^2),($I$37^2),($I$38^2),($I$39^2))),IF($C$63<$C$42,((($C$63-$C$41)/$D$41)*$I$41)+SQRT((($I$33^2)+($I$34^2)+($I$35^2)+($I$36^2)+($I$37^2)+($I$38^2)+($I$39^2)+($I$40^2))),\"False\")))))))","v":45.154009947508399},{"$f":"$J$46*0.5","v":35250},"50% of Median Household Income",null,{"$f":"IF($H$63<$C$36,((($H$63-$C$35)/$D$35)*$J$35)+SUM($J$33:$J$34),IF($H$63<$C$37,((($H$63-$C$36)/$D$36)*$J$36)+SUM($J$33:$J$35),IF($H$63<$C$38,((($H$63-$C$37)/$D$37)*$J$37)+SUM($J$33:$J$36),IF($H$63<$C$39,((($H$63-$C$38)/$D$38)*$J$38)+SUM($J$33:$J$37),IF($H$63<$C$40,((($H$63-$C$39)/$D$39)*$J$39)+SUM($J$33:$J$38),IF($H$63<$C$41,((($H$63-$C$40)/$D$40)*$J$40)+SUM($J$33:$J$39),IF($H$63<$C$42,((($H$63-$C$41)/$D$41)*$J$41)+SUM($J$33:$J$40),\"False\")))))))","v":58.666711114074275},{"$f":"IF($H$63<$C$36,((($H$63-$C$35)/$D$35)*$K$35)+SQRT(SUM(($K$33^2),($K$34^2))),IF($H$63<$C$37,((($H$63-$C$36)/$D$36)*$K$36)+SQRT(SUM(($K$33^2),($K$34^2),($K$35^2))),IF($H$63<$C$38,((($H$63-$C$37)/$D$37)*$K$37)+SQRT(SUM(($K$33^2),($K$34^2),($K$35^2),($K$36^2))),IF($H$63<$C$39,((($H$63-$C$38)/$D$38)*$K$38)+SQRT(SUM(($K$33^2),($K$34^2),($K$35^2),($K$36^2),($K$37^2))),IF($H$63<$C$40,((($H$63-$C$39)/$D$39)*$K$39)+SQRT(SUM(($K$33^2),($K$34^2),($K$35^2),($K$36^2),($K$37^2),($K$38^2))),IF($H$63<$C$41,((($H$63-$C$40)/$D$40)*$K$40)+SQRT(SUM(($K$33^2),($K$34^2),($K$35^2),($K$36^2),($K$37^2),($K$38^2),($K$39^2))),IF($H$63<$C$42,((($H$63-$C$41)/$D$41)*$K$41)+SQRT((($K$33^2)+($K$34^2)+($K$35^2)+($K$36^2)+($K$37^2)+($K$38^2)+($K$39^2)+($K$40^2))),\"False\")))))))","v":25.476179030003529},{"$f":"$L$46*0.5","v":25625},"50% of Median Household Income",null,{"$f":"IF($M$63<$C$36,((($M$63-$C$35)/$D$35)*$L$35)+SUM($L$33:$L$34),IF($M$63<$C$37,((($M$63-$C$36)/$D$36)*$L$36)+SUM($L$33:$L$35),IF($M$63<$C$38,((($M$63-$C$37)/$D$37)*$L$37)+SUM($L$33:$L$36),IF($M$63<$C$39,((($M$63-$C$38)/$D$38)*$L$38)+SUM($L$33:$L$37),IF($M$63<$C$40,((($M$63-$C$39)/$D$39)*$L$39)+SUM($L$33:$L$38),IF($M$63<$C$41,((($M$63-$C$40)/$D$40)*$L$40)+SUM($L$33:$L$39),IF($M$63<$C$42,((($M$63-$C$41)/$D$41)*$L$41)+SUM($L$33:$L$40),\"False\")))))))","v":6.1250125012501249},{"$f":"IF($M$63<$C$36,((($M$63-$C$35)/$D$35)*$M$35)+SQRT(SUM(($M$33^2),($M$34^2))),IF($M$63<$C$37,((($M$63-$C$36)/$D$36)*$M$36)+SQRT(SUM(($M$33^2),($M$34^2),($M$35^2))),IF($M$63<$C$38,((($M$63-$C$37)/$D$37)*$M$37)+SQRT(SUM(($M$33^2),($M$34^2),($M$35^2),($M$36^2))),IF($M$63<$C$39,((($M$63-$C$38)/$D$38)*$M$38)+SQRT(SUM(($M$33^2),($M$34^2),($M$35^2),($M$36^2),($M$37^2))),IF($M$63<$C$40,((($M$63-$C$39)/$D$39)*$M$39)+SQRT(SUM(($M$33^2),($M$34^2),($M$35^2),($M$36^2),($M$37^2),($M$38^2))),IF($M$63<$C$41,((($M$63-$C$40)/$D$40)*$M$40)+SQRT(SUM(($M$33^2),($M$34^2),($M$35^2),($M$36^2),($M$37^2),($M$38^2),($M$39^2))),IF($M$63<$C$42,((($M$63-$C$41)/$D$41)*$M$41)+SQRT((($M$33^2)+($M$34^2)+($M$35^2)+($M$36^2)+($M$37^2)+($M$38^2)+($M$39^2)+($M$40^2))),\"False\")))))))","v":24.353610699064333}]
[null,null,{"$f":"$H$46*0.8","v":54750.400000000001},"80% of Median Household Income",null,{"$f":"IF($C$64<$C$36,((($C$64-$C$35)/$D$35)*$H$35)+SUM($H$33:$H$34),IF($C$64<$C$37,((($C$64-$C$36)/$D$36)*$H$36)+SUM($H$33:$H$35),IF($C$64<$C$38,((($C$64-$C$37)/$D$37)*$H$37)+SUM($H$33:$H$36),IF($C$64<$C$39,((($C$64-$C$38)/$D$38)*$H$38)+SUM($H$33:$H$37),IF($C$64<$C$40,((($C$64-$C$39)/$D$39)*$H$39)+SUM($H$33:$H$38),IF($C$64<$C$41,((($C$64-$C$40)/$D$40)*$H$40)+SUM($H$33:$H$39),IF($C$64<$C$42,((($C$64-$C$41)/$D$41)*$H$41)+SUM($H$33:$H$40),\"False\")))))))","v":130.43228929157166},{"$f":"IF($C$64<$C$36,((($C$64-$C$35)/$D$35)*$I$35)+SQRT(SUM(($I$33^2),($I$34^2))),IF($C$64<$C$37,((($C$64-$C$36)/$D$36)*$I$36)+SQRT(SUM(($I$33^2),($I$34^2),($I$35^2))),IF($C$64<$C$38,((($C$64-$C$37)/$D$37)*$I$37)+SQRT(SUM(($I$33^2),($I$34^2),($I$35^2),($I$36^2))),IF($C$64<$C$39,((($C$64-$C$38)/$D$38)*$I$38)+SQRT(SUM(($I$33^2),($I$34^2),($I$35^2),($I$36^2),($I$37^2))),IF($C$64<$C$40,((($C$64-$C$39)/$D$39)*$I$39)+SQRT(SUM(($I$33^2),($I$34^2),($I$35^2),($I$36^2),($I$37^2),($I$38^2))),IF($C$64<$C$41,((($C$64-$C$40)/$D$40)*$I$40)+SQRT(SUM(($I$33^2),($I$34^2),($I$35^2),($I$36^2),($I$37^2),($I$38^2),($I$39^2))),IF($C$64<$C$42,((($C$64-$C$41)/$D$41)*$I$41)+SQRT((($I$33^2)+($I$34^2)+($I$35^2)+($I$36^2)+($I$37^2)+($I$38^2)+($I$39^2)+($I$40^2))),\"False\")))))))","v":45.978831202866019},{"$f":"$J$46*0.8","v":56400},"80% of Median Household Income",null,{"$f":"IF($H$64<$C$36,((($H$64-$C$35)/$D$35)*$J$35)+SUM($J$33:$J$34),IF($H$64<$C$37,((($H$64-$C$36)/$D$36)*$J$36)+SUM($J$33:$J$35),IF($H$64<$C$38,((($H$64-$C$37)/$D$37)*$J$37)+SUM($J$33:$J$36),IF($H$64<$C$39,((($H$64-$C$38)/$D$38)*$J$38)+SUM($J$33:$J$37),IF($H$64<$C$40,((($H$64-$C$39)/$D$39)*$J$39)+SUM($J$33:$J$38),IF($H$64<$C$41,((($H$64-$C$40)/$D$40)*$J$40)+SUM($J$33:$J$39),IF($H$64<$C$42,((($H$64-$C$41)/$D$41)*$J$41)+SUM($J$33:$J$40),\"False\")))))))","v":120.78491139645585},{"$f":"IF($H$64<$C$36,((($H$64-$C$35)/$D$35)*$K$35)+SQRT(SUM(($K$33^2),($K$34^2))),IF($H$64<$C$37,((($H$64-$C$36)/$D$36)*$K$36)+SQRT(SUM(($K$33^2),($K$34^2),($K$35^2))),IF($H$64<$C$38,((($H$64-$C$37)/$D$37)*$K$37)+SQRT(SUM(($K$33^2),($K$34^2),($K$35^2),($K$36^2))),IF($H$64<$C$39,((($H$64-$C$38)/$D$38)*$K$38)+SQRT(SUM(($K$33^2),($K$34^2),($K$35^2),($K$36^2),($K$37^2))),IF($H$64<$C$40,((($H$64-$C$39)/$D$39)*$K$39)+SQRT(SUM(($K$33^2),($K$34^2),($K$35^2),($K$36^2),($K$37^2),($K$38^2))),IF($H$64<$C$41,((($H$64-$C$40)/$D$40)*$K$40)+SQRT(SUM(($K$33^2),($K$34^2),($K$35^2),($K$36^2),($K$37^2),($K$38^2),($K$39^2))),IF($H$64<$C$42,((($H$64-$C$41)/$D$41)*$K$41)+SQRT((($K$33^2)+($K$34^2)+($K$35^2)+($K$36^2)+($K$37^2)+($K$38^2)+($K$39^2)+($K$40^2))),\"False\")))))))","v":38.952062512747766},{"$f":"$L$46*0.8","v":41000},"80% of Median Household Income",null,{"$f":"IF($M$64<$C$36,((($M$64-$C$35)/$D$35)*$L$35)+SUM($L$33:$L$34),IF($M$64<$C$37,((($M$64-$C$36)/$D$36)*$L$36)+SUM($L$33:$L$35),IF($M$64<$C$38,((($M$64-$C$37)/$D$37)*$L$37)+SUM($L$33:$L$36),IF($M$64<$C$39,((($M$64-$C$38)/$D$38)*$L$38)+SUM($L$33:$L$37),IF($M$64<$C$40,((($M$64-$C$39)/$D$39)*$L$39)+SUM($L$33:$L$38),IF($M$64<$C$41,((($M$64-$C$40)/$D$40)*$L$40)+SUM($L$33:$L$39),IF($M$64<$C$42,((($M$64-$C$41)/$D$41)*$L$41)+SUM($L$33:$L$40),\"False\")))))))","v":10.400160010667378},{"$f":"IF($M$64<$C$36,((($M$64-$C$35)/$D$35)*$M$35)+SQRT(SUM(($M$33^2),($M$34^2))),IF($M$64<$C$37,((($M$64-$C$36)/$D$36)*$M$36)+SQRT(SUM(($M$33^2),($M$34^2),($M$35^2))),IF($M$64<$C$38,((($M$64-$C$37)/$D$37)*$M$37)+SQRT(SUM(($M$33^2),($M$34^2),($M$35^2),($M$36^2))),IF($M$64<$C$39,((($M$64-$C$38)/$D$38)*$M$38)+SQRT(SUM(($M$33^2),($M$34^2),($M$35^2),($M$36^2),($M$37^2))),IF($M$64<$C$40,((($M$64-$C$39)/$D$39)*$M$39)+SQRT(SUM(($M$33^2),($M$34^2),($M$35^2),($M$36^2),($M$37^2),($M$38^2))),IF($M$64<$C$41,((($M$64-$C$40)/$D$40)*$M$40)+SQRT(SUM(($M$33^2),($M$34^2),($M$35^2),($M$36^2),($M$37^2),($M$38^2),($M$39^2))),IF($M$64<$C$42,((($M$64-$C$41)/$D$41)*$M$41)+SQRT((($M$33^2)+($M$34^2)+($M$35^2)+($M$36^2)+($M$37^2)+($M$38^2)+($M$39^2)+($M$40^2))),\"False\")))))))","v":26.351724665994656}]

{"sheet":"Updates","index":14,"n_rows":47,"n_cols":3,"rows_kept":47,"cut":false,"hidden":false,"merged":[[3,2,3,11],[0,2,0,11],[12,2,12,11],[34,2,34,11],[29,2,29,11],[28,2,28,11],[27,2,27,11],[26,2,26,11],[25,2,25,11],[24,2,24,11],[23,2,23,11],[20,2,20,11],[21,2,21,11],[22,2,22,11],[30,2,30,11],[31,2,31,11],[15,2,15,11],[45,2,45,11],[32,2,32,11],[46,2,46,11],[35,2,35,11],[36,2,36,11],[41,2,41,11],[37,2,37,11],[38,2,38,11],[39,2,39,11],[40,2,40,11],[42,2,42,11],[43,2,43,11],[44,2,44,11],[13,2,13,11],[14,2,14,11],[1,2,1,11],[17,2,17,11],[33,2,33,11],[18,2,18,11],[19,2,19,11],[16,2,16,11],[11,2,11,11],[10,2,10,11],[9,2,9,11],[8,2,8,11],[7,2,7,11],[6,2,6,11],[5,2,5,11],[4,2,4,11]]}
["Important Notes"]
["Date",null,"Task"]
[]
["2021-03-23",null,"Fixed and error in the Owner Housing Cost worksheet. There was an error in ACS-B25019  calculation"]
["2020-12-17",null,"Updated 2015-2019 Amreican Community Survey Data and added 2019 NH Permit data."]
["2020-10-01",null,"Updated 2019 Employment and Wage data by industry sector"]
["2020-09-11",null,"Updated historical data 2005-2009 and 2010-2014 ACS Data"]
["2019-12-31",null,"Updated Visual Basic Code changing the footer font from Gotham Medium to Verdana."]
["2019-12-30",null,"Updated with 2014-2018 ACS Data. Updated 2018 Permit data. Updated CPI Adjustment Factor (1.02437673) to the 2009-2013 and 2014-2018 Income Comparison Table. This factor was provided by Census"]
["2019-11-27",null,"Updated the 2009-2013 ACS data for comparison purposes."]
["2018-12-18",null,"Updated 2017 Annual Employment and Wage data; updated Housing and Employment worksheet. Updated 2017 Permit data"]
["2018-12-13",null,"Updated the 2008-2012 ACS data for comparison purposes. Updated CPI Adjustment Factor (1.0676) to the 2008-2012 and 2013-2017  Income Comparison Table. This factor was provided by Census."]
["2018-12-06",null,"Updated 2013-2017 ACS data"]
["2018-12-05",null,"Updated labels in workbook to reflect 2013-2017 data set and 2008-2012 comparison data set. Updated footer text. "]
["2018-08-20",null,"Updated Chart with new formatting."]
["2018-05-09",null,"Reviewed that unemployment rate data does not need to updated. There are no cities or towns that needed this update. Only a select number of locations are updated with this data."]
["2017-12-18",null,"Updated 2016 NH Permit Data"]
["2017-12-12",null,"Updated Charts with 2012-2016 data; updated code to reflect additional data points in various tables. Updated CPI Adjustment Factor (1.06686838) to the 2007-2011 and 2012-2016 Income Comparison Table. This factor was provided by Census."]
["2017-11-16",null,"Updated 2007-2012 ACS data in preparation for the 2016 ACS Data"]
["2017-10-13",null,"Updated 2016 Annual Employment and Wage data; updated Housing and Employment worksheet"]
["2017-05-15",null,"Reviewed that unemployment rate data does not need to updated. There are no cities or towns that needed this update. Only a select number of locations are updated with this data."]
["2017-01-05",null,"Verified Charts; Added 2015 Permit Data; Updated Housing and Permit data"]
["2016-12-29",null,"Updated the 2006-2010 ACS data for comparison purposes."]
["2016-12-23",null,"Updated Charts with 2011-2015 data; updated code to reflect additional data points in various tables. Updated CPI Adjustment Factor (1.08710584) to the 2006-2010 and 2011-2015 Income Comparison Table. This factor was provided by Census."]
["2016-12-19",null,"Updated 2011-2015 ACS Data. Updated Charts to reflect changes."]
["2016-10-31",null,"Updated 2015 Annual Employment and Wage data"]
["2016-01-14",null,"Fixed error in School Attainment worksheet - Graduate or Professional Degree data."]
["2016-01-07",null,"Fixed formula in Poverty worksheet; fixed Non-Family Persons per Household data; fixed legend of Rental Cost Charts."]
["2015-12-23",null,"Fixed Table ACS_B25074"]
["2015-12-16",null,"Updated Code to correct an error on the OwnerHousingCost worksheet; updated column names on CntyDataLink."]
["2015-12-11",null,"Updated Code to correct an error on the RentalHousingCost worksheet; updated column names on CntyDataLink."]
["2015-12-10",null,"Updated 2010-2014 ACS Data. Updated Charts to reflect changes."]
["2015-12-07",null,"Updated Permit Data and all appropriate charts."]
["2015-12-03",null,"Updated the CPI Adjustment Factor (1.1034264) to the 2005-2009 and 2010-2014 Income Comparison Table. This factor was provided by Census. Updated RentalHousingCost and OwnerCost worksheet to eliminate a printed page. Charts were moved and reduced in size."]
["2015-11-24",null,"Updated charts with correctly sized logo; updated color schemes on charts."]
["2015-10-06",null,"Added County Comparison Employment and Housing data. Added Visual basic code to automatically update footer. Visual basic code will run when Ctrl-j is selected. "]
["2015-09-29",null,"Updated Employment Information"]
["2015-09-18",null,"Updated Charts and code to allow for prior 5 year estimates to be update. Updated RentalHousingCost worksheet to accommodate changes to Table B25074"]
["2015-09-01",null,"Updated Code to include Prior 5 year estimates."]
["2015-08-19",null,"Updated Owner Cost Chart and data. Added Table B25106. Housing Cost burden by Income. Updated 2005-2009 ACS Estimate data"]
["2015-08-06",null,"Corrected the Employment vs. Housing worksheet."]
["2015-03-17",null,"Added Labor Force Data"]
["2014-12-30",null,"Corrected Rental Cost formula."]
["2014-12-17",null,"Corrected and verified household pie charts. All Permit data and employment data has been updated through 2013."]
["2011-10-14",null,"Reformatted the code in the worksheet and corrected an error in the Income Comparison Sheet"]
["2010-12-21",null,"Added Margin of Error information on all applicable ACS Sheets"]
["2010-12-07",null,"Created a calculated Table B19001 in anticipation for the 5 year data.  Table C19001 will not be provided"]

{"sheet":"CntyDataLinkPrior5YearEstimates","index":15,"n_rows":160,"n_cols":255,"rows_kept":160,"cut":false,"hidden":true,"merged":[]}
[1,{"$f":"A1+1","v":2},{"$f":"B1+1","v":3},4,5,6,7,8,9,10,11,12,13,14,15,{"$f":"O1+1","v":16},17,18,19,20,21,22,23,24,25,26,27,28,29,30,31,32,33,34,35,36,37,38,39,40,41,42,43,44,45,46,47,48,49,50,51,52,53,54,55,56,57,58,59,60,61,62,63,64,65,66,{"$f":"BN1+1","v":67},68,69,70,71,72,73,74,75,76,77,78,79,80,81,82,83,84,85,86,87,88,89,90,91,92,93,94,95,96,97,98,99,100,101,102,103,104,105,106,107,108,109,110,111,112,113,114,115,116,117,118,119,120,121,122,123,124,125,126,127,128,129,130,{"$f":"DZ1+1","v":131},132,133,134,135,136,137,138,139,140,141,142,143,144,145,146,147,148,149,150,151,152,153,154,155,156,157,158,159,160,161,162,163,164,165,166,167,168,169,170,171,172,173,174,175,176,177,178,179,180,181,182,183,184,185,186,187,188,189,190,191,192,193,194,{"$f":"GL1+1","v":195},196,197,198,199,200,201,202,203,204,205,206,207,208,209,210,211,212,213,214,215,216,217,218,219,220,221,222,223,224,225,226,227,228,229,230,231,232,233,234,235,236,237,238,239,240,241,242,243,244,245,246,247,248,249,250,251,252,253,254,255]
[]
["Census 1990 Data -           Query Name:  DPCnty90Census"]
["TownName","Cnty_Code","Census_Cnty_Code","LandAcres","WaterAcres","HousingUnits90Cen","Persons90Cen","Families90Cen","Households90cen","MalePop90cen","FemalePop90cen","WhitePop","BlackPop","AmerIndianPop","AsianPIPop","OtherRacePop","HispanicOrPop","AgeUnder15_90cen","Age15to24_90cen","Age25to34_90cen","Age35to44_90cen","Age45to54_90cen","Age55to64_90cen","Age65to74_90cen","Age75andOver_90cen","PersonsInHH90cen","PersonsInFamHH90cen","PersonsInGC","PersonsPerHH90cen","PersonsPerFam90Cen","SinglePersonHH90cen","MarriedCoupleHH90cen","SingleParentHH90cen","NonFamilyHH90cen","TotalHousingUnits","OccupiedHousingUnits","VacantHousingUnits","OwnerOccHU","RenterOccHU","VacantForRent90","VacantForSale90","VacantSeasonalRec","SingFamHU90cen","MultiFamHU90cen","MobileHom90cen","SingFamOwnHU90cen","MultiFamOwnHU90cen","MobileHomOwnHU90cen","SingFamRntrHU90cen","MultiFamRntrHU90cen","MobileHomRntrHU90cen","HU<5yrs90cen","HU5to20yrs90cen","HU20to50yrs90cen","HU>50yrs90cen","Units0Bedroom90cen","Units1Bedroom90cen","Units2Bedroom90cen","Units3Bedroom90cen","Units4+Bedroom90cen","HI<5K","HI5Kto10K","HI10Kto15K","HI15Kto25K","HI25Kto35K","HI35Kto50K","HI50Kto75K","HI75Kto100K","HI>100K","MedHI","HH<25HI<5K","HH<25HI5Kto10K","HH<25HI10Kto15K","HH<25HI15Kto25K","HH<25HI25Kto35K","HH<25HI35Kto50K","HH<25HI50Kto75K","HH<25HI75Kto100K","HH<25HI>100K","HH25to34HI<5K","HH25to34HI5Kto10K","HH25to34HI10Kto15K","HH25to34HI15Kto25K","HH25to34HI25Kto35K","HH25to34HI35Kto50K","HH25to34HI50Kto75K","HH25to34HI75Kto100K","HH25to34HI>100K","HH35to44HI<5K","HH35to44HI5Kto10K","HH35to44HI10Kto15K","HH35to44HI15Kto25K","HH35to44HI25Kto35K","HH35to44HI35Kto50K","HH35to44HI50Kto75K","HH35to44HI75Kto100K","HH35to44HI>100K","HH45to54HI<5K","HH45to54HI5Kto10K","HH45to54HI10Kto15K","HH45to54HI15Kto25K","HH45to54HI25Kto35K","HH45to54HI35Kto50K","HH45to54HI50Kto75K","HH45to54HI75Kto100K","HH45to54HI>100K","HH55to64HI<5K","HH55to64HI5Kto10K","HH55to64HI10Kto15K","HH55to64HI15Kto25K","HH55to64HI25Kto35K","HH55to64HI35Kto50K","HH55to64HI50Kto75K","HH55to64HI75Kto100K","HH55to64HI>100K","HH65to74HI<5K","HH65to74HI5Kto10K","HH65to74HI10Kto15K","HH65to74HI15Kto25K","HH65to74HI25Kto35K","HH65to74HI35Kto50K","HH65to74HI50Kto75K","HH65to74HI75Kto100K","HH65to74HI>100K","HH>75HI<5K","HH>75HI5Kto10K","HH>75HI10Kto15K","HH>75HI15Kto25K","HH>75HI25Kto35K","HH>75HI35Kto50K","HH>75HI50Kto75K","HH>75HI75Kto100K","HH>75HI>100K","SchoolEnrollment1thru12","Pop25andOver","HSGradorHigher","CollGradorHigher","NativePop","ForeignBornPop","BornStateOfRes","NativePop2","ForeignBornPop2","DroveAlone","CarPooled","PublicTranspt","Walked","OtherMeans","WorkedAtHome","HHInc<10K","HHInc10to15K","HHInc15to25K","HHInc25to35K","HHInc35to50K","HHInc50to75K","HHInc75to100K","HHInc100to150K","HHInc>150K"]
[{"$f":"VLOOKUP(DropDownList!$A$47,CntyQuery!$A$4:$FI$46,A1)","v":"Acworth"},{"$f":"VLOOKUP(DropDownList!$A$47,CntyQuery!$A$4:$FA$46,B1)","v":19005},{"$f":"VLOOKUP(DropDownList!$A$47,CntyQuery!$A$4:$FA$46,C1)","v":"00260"},{"$f":"VLOOKUP(DropDownList!$A$47,CntyQuery!$A$4:$FA$46,D1)","v":24916.99},{"$f":"VLOOKUP(DropDownList!$A$47,CntyQuery!$A$4:$FA$46,E1)","v":81.95},{"$f":"VLOOKUP(DropDownList!$A$47,CntyQuery!$A$4:$FA$46,F1)","v":507},{"$f":"VLOOKUP(DropDownList!$A$47,CntyQuery!$A$4:$FA$46,G1)","v":776},{"$f":"VLOOKUP(DropDownList!$A$47,CntyQuery!$A$4:$FA$46,H1)","v":219},{"$f":"VLOOKUP(DropDownList!$A$47,CntyQuery!$A$4:$FA$46,I1)","v":285},{"$f":"VLOOKUP(DropDownList!$A$47,CntyQuery!$A$4:$FA$46,J1)","v":394},{"$f":"VLOOKUP(DropDownList!$A$47,CntyQuery!$A$4:$FA$46,K1)","v":382},{"$f":"VLOOKUP(DropDownList!$A$47,CntyQuery!$A$4:$FA$46,L1)","v":773},{"$f":"VLOOKUP(DropDownList!$A$47,CntyQuery!$A$4:$FA$46,M1)","v":0},{"$f":"VLOOKUP(DropDownList!$A$47,CntyQuery!$A$4:$FA$46,N1)","v":0},{"$f":"VLOOKUP(DropDownList!$A$47,CntyQuery!$A$4:$FA$46,O1)","v":3},{"$f":"VLOOKUP(DropDownList!$A$47,CntyQuery!$A$4:$FA$46,P1)","v":0},{"$f":"VLOOKUP(DropDownList!$A$47,CntyQuery!$A$4:$FA$46,Q1)","v":1},{"$f":"VLOOKUP(DropDownList!$A$47,CntyQuery!$A$4:$FA$46,R1)","v":189},{"$f":"VLOOKUP(DropDownList!$A$47,CntyQuery!$A$4:$FA$46,S1)","v":72},{"$f":"VLOOKUP(DropDownList!$A$47,CntyQuery!$A$4:$FA$46,T1)","v":124},{"$f":"VLOOKUP(DropDownList!$A$47,CntyQuery!$A$4:$FA$46,U1)","v":149},{"$f":"VLOOKUP(DropDownList!$A$47,CntyQuery!$A$4:$FA$46,V1)","v":74},{"$f":"VLOOKUP(DropDownList!$A$47,CntyQuery!$A$4:$FA$46,W1)","v":80},{"$f":"VLOOKUP(DropDownList!$A$47,CntyQuery!$A$4:$FA$46,X1)","v":57},{"$f":"VLOOKUP(DropDownList!$A$47,CntyQuery!$A$4:$FA$46,Y1)","v":31},{"$f":"VLOOKUP(DropDownList!$A$47,CntyQuery!$A$4:$FA$46,Z1)","v":776},{"$f":"VLOOKUP(DropDownList!$A$47,CntyQuery!$A$4:$FA$46,AA1)","v":693},{"$f":"VLOOKUP(DropDownList!$A$47,CntyQuery!$A$4:$FA$46,AB1)","v":0},{"$f":"VLOOKUP(DropDownList!$A$47,CntyQuery!$A$4:$FA$46,AC1)","v":2.7228070175438597},{"$f":"VLOOKUP(DropDownList!$A$47,CntyQuery!$A$4:$FA$46,AD1)","v":3.1643835616438358},{"$f":"VLOOKUP(DropDownList!$A$47,CntyQuery!$A$4:$FA$46,AE1)","v":53},{"$f":"VLOOKUP(DropDownList!$A$47,CntyQuery!$A$4:$FA$46,AF1)","v":189},{"$f":"VLOOKUP(DropDownList!$A$47,CntyQuery!$A$4:$FA$46,AG1)","v":30},{"$f":"VLOOKUP(DropDownList!$A$47,CntyQuery!$A$4:$FA$46,AH1)","v":13},{"$f":"VLOOKUP(DropDownList!$A$47,CntyQuery!$A$4:$FA$46,AI1)","v":507},{"$f":"VLOOKUP(DropDownList!$A$47,CntyQuery!$A$4:$FA$46,AJ1)","v":285},{"$f":"VLOOKUP(DropDownList!$A$47,CntyQuery!$A$4:$FA$46,AK1)","v":222},{"$f":"VLOOKUP(DropDownList!$A$47,CntyQuery!$A$4:$FA$46,AL1)","v":246},{"$f":"VLOOKUP(DropDownList!$A$47,CntyQuery!$A$4:$FA$46,AM1)","v":39},{"$f":"VLOOKUP(DropDownList!$A$47,CntyQuery!$A$4:$FA$46,AN1)","v":1},{"$f":"VLOOKUP(DropDownList!$A$47,CntyQuery!$A$4:$FA$46,AO1)","v":3},{"$f":"VLOOKUP(DropDownList!$A$47,CntyQuery!$A$4:$FA$46,AP1)","v":194},{"$f":"VLOOKUP(DropDownList!$A$47,CntyQuery!$A$4:$FA$46,AQ1)","v":448},{"$f":"VLOOKUP(DropDownList!$A$47,CntyQuery!$A$4:$FA$46,AR1)","v":10},{"$f":"VLOOKUP(DropDownList!$A$47,CntyQuery!$A$4:$FA$46,AS1)","v":49},{"$f":"VLOOKUP(DropDownList!$A$47,CntyQuery!$A$4:$FA$46,AT1)","v":222},{"$f":"VLOOKUP(DropDownList!$A$47,CntyQuery!$A$4:$FA$46,AU1)","v":5},{"$f":"VLOOKUP(DropDownList!$A$47,CntyQuery!$A$4:$FA$46,AV1)","v":49},{"$f":"VLOOKUP(DropDownList!$A$47,CntyQuery!$A$4:$FA$46,AW1)","v":30},{"$f":"VLOOKUP(DropDownList!$A$47,CntyQuery!$A$4:$FA$46,AX1)","v":5},{"$f":"VLOOKUP(DropDownList!$A$47,CntyQuery!$A$4:$FA$46,AY1)","v":4},{"$f":"VLOOKUP(DropDownList!$A$47,CntyQuery!$A$4:$FA$46,AZ1)","v":56},{"$f":"VLOOKUP(DropDownList!$A$47,CntyQuery!$A$4:$FA$46,BA1)","v":180},{"$f":"VLOOKUP(DropDownList!$A$47,CntyQuery!$A$4:$FA$46,BB1)","v":88},{"$f":"VLOOKUP(DropDownList!$A$47,CntyQuery!$A$4:$FA$46,BC1)","v":179},{"$f":"VLOOKUP(DropDownList!$A$47,CntyQuery!$A$4:$FA$46,BD1)","v":8},{"$f":"VLOOKUP(DropDownList!$A$47,CntyQuery!$A$4:$FA$46,BE1)","v":42},{"$f":"VLOOKUP(DropDownList!$A$47,CntyQuery!$A$4:$FA$46,BF1)","v":189},{"$f":"VLOOKUP(DropDownList!$A$47,CntyQuery!$A$4:$FA$46,BG1)","v":140},{"$f":"VLOOKUP(DropDownList!$A$47,CntyQuery!$A$4:$FA$46,BH1)","v":124},{"$f":"VLOOKUP(DropDownList!$A$47,CntyQuery!$A$4:$FA$46,BI1)","v":19},{"$f":"VLOOKUP(DropDownList!$A$47,CntyQuery!$A$4:$FA$46,BJ1)","v":18},{"$f":"VLOOKUP(DropDownList!$A$47,CntyQuery!$A$4:$FA$46,BK1)","v":22},{"$f":"VLOOKUP(DropDownList!$A$47,CntyQuery!$A$4:$FA$46,BL1)","v":52},{"$f":"VLOOKUP(DropDownList!$A$47,CntyQuery!$A$4:$FA$46,BM1)","v":40},{"$f":"VLOOKUP(DropDownList!$A$47,CntyQuery!$A$4:$FA$46,BN1)","v":105},{"$f":"VLOOKUP(DropDownList!$A$47,CntyQuery!$A$4:$FA$46,BO1)","v":24},{"$f":"VLOOKUP(DropDownList!$A$47,CntyQuery!$A$4:$FA$46,BP1)","v":2},{"$f":"VLOOKUP(DropDownList!$A$47,CntyQuery!$A$4:$FA$46,BQ1)","v":5},{"$f":"VLOOKUP(DropDownList!$A$47,CntyQuery!$A$4:$FA$46,BR1)","v":33661},{"$f":"VLOOKUP(DropDownList!$A$47,CntyQuery!$A$4:$FA$46,BS1)","v":0},{"$f":"VLOOKUP(DropDownList!$A$47,CntyQuery!$A$4:$FA$46,BT1)","v":0},{"$f":"VLOOKUP(DropDownList!$A$47,CntyQuery!$A$4:$FA$46,BU1)","v":2},{"$f":"VLOOKUP(DropDownList!$A$47,CntyQuery!$A$4:$FA$46,BV1)","v":0},{"$f":"VLOOKUP(DropDownList!$A$47,CntyQuery!$A$4:$FA$46,BW1)","v":0},{"$f":"VLOOKUP(DropDownList!$A$47,CntyQuery!$A$4:$FA$46,BX1)","v":6},{"$f":"VLOOKUP(DropDownList!$A$47,CntyQuery!$A$4:$FA$46,BY1)","v":0},{"$f":"VLOOKUP(DropDownList!$A$47,CntyQuery!$A$4:$FA$46,BZ1)","v":0},{"$f":"VLOOKUP(DropDownList!$A$47,CntyQuery!$A$4:$FA$46,CA1)","v":0},{"$f":"VLOOKUP(DropDownList!$A$47,CntyQuery!$A$4:$FA$46,CB1)","v":0},{"$f":"VLOOKUP(DropDownList!$A$47,CntyQuery!$A$4:$FA$46,CC1)","v":0},{"$f":"VLOOKUP(DropDownList!$A$47,CntyQuery!$A$4:$FA$46,CD1)","v":6},{"$f":"VLOOKUP(DropDownList!$A$47,CntyQuery!$A$4:$FA$46,CE1)","v":8},{"$f":"VLOOKUP(DropDownList!$A$47,CntyQuery!$A$4:$FA$46,CF1)","v":9},{"$f":"VLOOKUP(DropDownList!$A$47,CntyQuery!$A$4:$FA$46,CG1)","v":29},{"$f":"VLOOKUP(DropDownList!$A$47,CntyQuery!$A$4:$FA$46,CH1)","v":3},{"$f":"VLOOKUP(DropDownList!$A$47,CntyQuery!$A$4:$FA$46,CI1)","v":0},{"$f":"VLOOKUP(DropDownList!$A$47,CntyQuery!$A$4:$FA$46,CJ1)","v":0},{"$f":"VLOOKUP(DropDownList!$A$47,CntyQuery!$A$4:$FA$46,CK1)","v":6},{"$f":"VLOOKUP(DropDownList!$A$47,CntyQuery!$A$4:$FA$46,CL1)","v":5},{"$f":"VLOOKUP(DropDownList!$A$47,CntyQuery!$A$4:$FA$46,CM1)","v":2},{"$f":"VLOOKUP(DropDownList!$A$47,CntyQuery!$A$4:$FA$46,CN1)","v":17},{"$f":"VLOOKUP(DropDownList!$A$47,CntyQuery!$A$4:$FA$46,CO1)","v":14},{"$f":"VLOOKUP(DropDownList!$A$47,CntyQuery!$A$4:$FA$46,CP1)","v":27},{"$f":"VLOOKUP(DropDownList!$A$47,CntyQuery!$A$4:$FA$46,CQ1)","v":5},{"$f":"VLOOKUP(DropDownList!$A$47,CntyQuery!$A$4:$FA$46,CR1)","v":0},{"$f":"VLOOKUP(DropDownList!$A$47,CntyQuery!$A$4:$FA$46,CS1)","v":0},{"$f":"VLOOKUP(DropDownList!$A$47,CntyQuery!$A$4:$FA$46,CT1)","v":2},{"$f":"VLOOKUP(DropDownList!$A$47,CntyQuery!$A$4:$FA$46,CU1)","v":4},{"$f":"VLOOKUP(DropDownList!$A$47,CntyQuery!$A$4:$FA$46,CV1)","v":2},{"$f":"VLOOKUP(DropDownList!$A$47,CntyQuery!$A$4:$FA$46,CW1)","v":2},{"$f":"VLOOKUP(DropDownList!$A$47,CntyQuery!$A$4:$FA$46,CX1)","v":8},{"$f":"VLOOKUP(DropDownList!$A$47,CntyQuery!$A$4:$FA$46,CY1)","v":25},{"$f":"VLOOKUP(DropDownList!$A$47,CntyQuery!$A$4:$FA$46,CZ1)","v":0},{"$f":"VLOOKUP(DropDownList!$A$47,CntyQuery!$A$4:$FA$46,DA1)","v":2},{"$f":"VLOOKUP(DropDownList!$A$47,CntyQuery!$A$4:$FA$46,DB1)","v":5},{"$f":"VLOOKUP(DropDownList!$A$47,CntyQuery!$A$4:$FA$46,DC1)","v":3},{"$f":"VLOOKUP(DropDownList!$A$47,CntyQuery!$A$4:$FA$46,DD1)","v":7},{"$f":"VLOOKUP(DropDownList!$A$47,CntyQuery!$A$4:$FA$46,DE1)","v":2},{"$f":"VLOOKUP(DropDownList!$A$47,CntyQuery!$A$4:$FA$46,DF1)","v":6},{"$f":"VLOOKUP(DropDownList!$A$47,CntyQuery!$A$4:$FA$46,DG1)","v":5},{"$f":"VLOOKUP(DropDownList!$A$47,CntyQuery!$A$4:$FA$46,DH1)","v":5},{"$f":"VLOOKUP(DropDownList!$A$47,CntyQuery!$A$4:$FA$46,DI1)","v":14},{"$f":"VLOOKUP(DropDownList!$A$47,CntyQuery!$A$4:$FA$46,DJ1)","v":0},{"$f":"VLOOKUP(DropDownList!$A$47,CntyQuery!$A$4:$FA$46,DK1)","v":0},{"$f":"VLOOKUP(DropDownList!$A$47,CntyQuery!$A$4:$FA$46,DL1)","v":0},{"$f":"VLOOKUP(DropDownList!$A$47,CntyQuery!$A$4:$FA$46,DM1)","v":0},{"$f":"VLOOKUP(DropDownList!$A$47,CntyQuery!$A$4:$FA$46,DN1)","v":3},{"$f":"VLOOKUP(DropDownList!$A$47,CntyQuery!$A$4:$FA$46,DO1)","v":15},{"$f":"VLOOKUP(DropDownList!$A$47,CntyQuery!$A$4:$FA$46,DP1)","v":4},{"$f":"VLOOKUP(DropDownList!$A$47,CntyQuery!$A$4:$FA$46,DQ1)","v":9},{"$f":"VLOOKUP(DropDownList!$A$47,CntyQuery!$A$4:$FA$46,DR1)","v":2},{"$f":"VLOOKUP(DropDownList!$A$47,CntyQuery!$A$4:$FA$46,DS1)","v":0},{"$f":"VLOOKUP(DropDownList!$A$47,CntyQuery!$A$4:$FA$46,DT1)","v":0},{"$f":"VLOOKUP(DropDownList!$A$47,CntyQuery!$A$4:$FA$46,DU1)","v":8},{"$f":"VLOOKUP(DropDownList!$A$47,CntyQuery!$A$4:$FA$46,DV1)","v":2},{"$f":"VLOOKUP(DropDownList!$A$47,CntyQuery!$A$4:$FA$46,DW1)","v":5},{"$f":"VLOOKUP(DropDownList!$A$47,CntyQuery!$A$4:$FA$46,DX1)","v":4},{"$f":"VLOOKUP(DropDownList!$A$47,CntyQuery!$A$4:$FA$46,DY1)","v":0},{"$f":"VLOOKUP(DropDownList!$A$47,CntyQuery!$A$4:$FA$46,DZ1)","v":4},{"$f":"VLOOKUP(DropDownList!$A$47,CntyQuery!$A$4:$FA$46,EA1)","v":0},{"$f":"VLOOKUP(DropDownList!$A$47,CntyQuery!$A$4:$FA$46,EB1)","v":0},{"$f":"VLOOKUP(DropDownList!$A$47,CntyQuery!$A$4:$FA$46,EC1)","v":0},{"$f":"VLOOKUP(DropDownList!$A$47,CntyQuery!$A$4:$FA$46,ED1)","v":147},{"$f":"VLOOKUP(DropDownList!$A$47,CntyQuery!$A$4:$FA$46,EE1)","v":499},{"$f":"VLOOKUP(DropDownList!$A$47,CntyQuery!$A$4:$FA$46,EF1)","v":409},{"$f":"VLOOKUP(DropDownList!$A$47,CntyQuery!$A$4:$FA$46,EG1)","v":134},{"$f":"VLOOKUP(DropDownList!$A$47,CntyQuery!$A$4:$FA$46,EH1)","v":758},{"$f":"VLOOKUP(DropDownList!$A$47,CntyQuery!$A$4:$FA$46,EI1)","v":18},{"$f":"VLOOKUP(DropDownList!$A$47,CntyQuery!$A$4:$FA$46,EJ1)","v":272},{"$f":"VLOOKUP(DropDownList!$A$47,CntyQuery!$A$4:$FA$46,EK1)","v":758},{"$f":"VLOOKUP(DropDownList!$A$47,CntyQuery!$A$4:$FA$46,EL1)","v":18},{"$f":"VLOOKUP(DropDownList!$A$47,CntyQuery!$A$4:$FA$46,EM1)","v":272},{"$f":"VLOOKUP(DropDownList!$A$47,CntyQuery!$A$4:$FA$46,EN1)","v":34},{"$f":"VLOOKUP(DropDownList!$A$47,CntyQuery!$A$4:$FA$46,EO1)","v":0},{"$f":"VLOOKUP(DropDownList!$A$47,CntyQuery!$A$4:$FA$46,EP1)","v":17},{"$f":"VLOOKUP(DropDownList!$A$47,CntyQuery!$A$4:$FA$46,EQ1)","v":10},{"$f":"VLOOKUP(DropDownList!$A$47,CntyQuery!$A$4:$FA$46,ER1)","v":25},{"$f":"VLOOKUP(DropDownList!$A$47,CntyQuery!$A$4:$FA$46,ES1)","v":37},{"$f":"VLOOKUP(DropDownList!$A$47,CntyQuery!$A$4:$FA$46,ET1)","v":22},{"$f":"VLOOKUP(DropDownList!$A$47,CntyQuery!$A$4:$FA$46,EU1)","v":52},{"$f":"VLOOKUP(DropDownList!$A$47,CntyQuery!$A$4:$FA$46,EV1)","v":40},{"$f":"VLOOKUP(DropDownList!$A$47,CntyQuery!$A$4:$FA$46,EW1)","v":105},{"$f":"VLOOKUP(DropDownList!$A$47,CntyQuery!$A$4:$FA$46,EX1)","v":24},{"$f":"VLOOKUP(DropDownList!$A$47,CntyQuery!$A$4:$FA$46,EY1)","v":2},{"$f":"VLOOKUP(DropDownList!$A$47,CntyQuery!$A$4:$FA$46,EZ1)","v":5},{"$f":"VLOOKUP(DropDownList!$A$47,CntyQuery!$A$4:$FA$46,FA1)","v":0}]
[]
[]
["Census 1990 Data -    Query Name:  TownSTF1Qry1"]
["NAME","COUSUBFP","Census_Cnty_Code","FIPS","LandAcres","WaterAcres","HousingUnits90Cen","P01Persons90Cen","P02Families90Cen","P03Households90cen","P05MalePop90cen","P05FemalePop90cen","P06WhitePop","P06BlackPop","P06AmerIndianPop","P06AsianPIPop","P06OtherRacePop","P08HispanicOrPop","P11AgeUnder15_90cen","P11Age15to24_90cen","P11Age25to34_90cen","P11Age35to44_90cen","P11Age45to54_90cen","P11Age55to64_90cen","P11Age65to74_90cen","P11Age75andOver_90cen","P15PersonsInHH90cen","P15PersonsInFamHH90cen","P15PersonsInGC","PersonsPerHH90cen","PersonsPerFam90Cen","P16SinglePersonHH90cen","P16MarriedCoupleHH90cen","P16SingleParentHH90cen","P16NonFamilyHH90cen","H01TotalHousingUnits","H02OccupiedHousingUnits","H02VacantHousingUnits","H03OwnerOccHU","H03RenterOccHU","H05VacantForRent90","H05VacantForSale90","H05VacantSeasonalRec","H23OOHUVal<15k","H23OOHUVal15to19k","H23OOHUVal20to24k","H23OOHUVal25to29k","H23OOHUVal30to34k","H23OOHUVal35to39k","H23OOHUVal40to44k","H23OOHUVal45to49k","H23OOHUVal50to59k","H23OOHUVal60to74k","H23OOHUVal75to99k","H23OOHUVal100to124k","H23OOHUVal125to149k","H23OOHUVal150to174k","H23OOHUVal175to199k","H23OOHUVal200to249k","H23OOHUVal250to299k","H23OOHUVal300to399k","H23OOHUVal400to499k","H23OOHUVal500kOrMore","H23BOOHUMedVal","H41SingFamHU90cen","H41MultiFamHU90cen","H41MobileHom90cen","H43SingFamOwnHU90cen","H43MultiFamOwnHU90cen","H43MobileHomOwnHU90cen","H43SingFamRntrHU90cen","H43MultiFamRntrHU90cen","H43MobileHomRntrHU90cen","H41HU1UnitDet","H41HU1UnitAtt","H41HU2Unit","H41HU3to4Unit","H41HU5to9Unit","H41HU10to19Unit","H41HU20to49Unit","H41HU50PlusUnit","H41HUMobilH","H41HUOther"]
[{"$f":"VLOOKUP(DropDownList!$B$47,CntyQuery!$A$51:$CE$93,A$1)","v":"Acworth"},{"$f":"VLOOKUP(DropDownList!$B$47,CntyQuery!$A$51:$CE$93,B$1)","v":1001},{"$f":"VLOOKUP(DropDownList!$B$47,CntyQuery!$A$51:$CE$93,C$1)","v":19005},{"$f":"VLOOKUP(DropDownList!$B$47,CntyQuery!$A$51:$CE$93,D$1)","v":"00260"},{"$f":"VLOOKUP(DropDownList!$B$47,CntyQuery!$A$51:$CE$93,E$1)","v":24916.99},{"$f":"VLOOKUP(DropDownList!$B$47,CntyQuery!$A$51:$CE$93,F$1)","v":81.95},{"$f":"VLOOKUP(DropDownList!$B$47,CntyQuery!$A$51:$CE$93,G$1)","v":507},{"$f":"VLOOKUP(DropDownList!$B$47,CntyQuery!$A$51:$CE$93,H$1)","v":776},{"$f":"VLOOKUP(DropDownList!$B$47,CntyQuery!$A$51:$CE$93,I$1)","v":219},{"$f":"VLOOKUP(DropDownList!$B$47,CntyQuery!$A$51:$CE$93,J$1)","v":285},{"$f":"VLOOKUP(DropDownList!$B$47,CntyQuery!$A$51:$CE$93,K$1)","v":394},{"$f":"VLOOKUP(DropDownList!$B$47,CntyQuery!$A$51:$CE$93,L$1)","v":382},{"$f":"VLOOKUP(DropDownList!$B$47,CntyQuery!$A$51:$CE$93,M$1)","v":773},{"$f":"VLOOKUP(DropDownList!$B$47,CntyQuery!$A$51:$CE$93,N$1)","v":0},{"$f":"VLOOKUP(DropDownList!$B$47,CntyQuery!$A$51:$CE$93,O$1)","v":0},{"$f":"VLOOKUP(DropDownList!$B$47,CntyQuery!$A$51:$CE$93,P$1)","v":3},{"$f":"VLOOKUP(DropDownList!$B$47,CntyQuery!$A$51:$CE$93,Q$1)","v":0},{"$f":"VLOOKUP(DropDownList!$B$47,CntyQuery!$A$51:$CE$93,R$1)","v":1},{"$f":"VLOOKUP(DropDownList!$B$47,CntyQuery!$A$51:$CE$93,S$1)","v":189},{"$f":"VLOOKUP(DropDownList!$B$47,CntyQuery!$A$51:$CE$93,T$1)","v":72},{"$f":"VLOOKUP(DropDownList!$B$47,CntyQuery!$A$51:$CE$93,U$1)","v":124},{"$f":"VLOOKUP(DropDownList!$B$47,CntyQuery!$A$51:$CE$93,V$1)","v":149},{"$f":"VLOOKUP(DropDownList!$B$47,CntyQuery!$A$51:$CE$93,W$1)","v":74},{"$f":"VLOOKUP(DropDownList!$B$47,CntyQuery!$A$51:$CE$93,X$1)","v":80},{"$f":"VLOOKUP(DropDownList!$B$47,CntyQuery!$A$51:$CE$93,Y$1)","v":57},{"$f":"VLOOKUP(DropDownList!$B$47,CntyQuery!$A$51:$CE$93,Z$1)","v":31},{"$f":"VLOOKUP(DropDownList!$B$47,CntyQuery!$A$51:$CE$93,AA$1)","v":776},{"$f":"VLOOKUP(DropDownList!$B$47,CntyQuery!$A$51:$CE$93,AB$1)","v":693},{"$f":"VLOOKUP(DropDownList!$B$47,CntyQuery!$A$51:$CE$93,AC$1)","v":0},{"$f":"VLOOKUP(DropDownList!$B$47,CntyQuery!$A$51:$CE$93,AD$1)","v":2.7228070175438597},{"$f":"VLOOKUP(DropDownList!$B$47,CntyQuery!$A$51:$CE$93,AE$1)","v":3.1643835616438358},{"$f":"VLOOKUP(DropDownList!$B$47,CntyQuery!$A$51:$CE$93,AF$1)","v":53},{"$f":"VLOOKUP(DropDownList!$B$47,CntyQuery!$A$51:$CE$93,AG$1)","v":189},{"$f":"VLOOKUP(DropDownList!$B$47,CntyQuery!$A$51:$CE$93,AH$1)","v":30},{"$f":"VLOOKUP(DropDownList!$B$47,CntyQuery!$A$51:$CE$93,AI$1)","v":13},{"$f":"VLOOKUP(DropDownList!$B$47,CntyQuery!$A$51:$CE$93,AJ$1)","v":507},{"$f":"VLOOKUP(DropDownList!$B$47,CntyQuery!$A$51:$CE$93,AK$1)","v":285},{"$f":"VLOOKUP(DropDownList!$B$47,CntyQuery!$A$51:$CE$93,AL$1)","v":222},{"$f":"VLOOKUP(DropDownList!$B$47,CntyQuery!$A$51:$CE$93,AM$1)","v":246},{"$f":"VLOOKUP(DropDownList!$B$47,CntyQuery!$A$51:$CE$93,AN$1)","v":39},{"$f":"VLOOKUP(DropDownList!$B$47,CntyQuery!$A$51:$CE$93,AO$1)","v":1},{"$f":"VLOOKUP(DropDownList!$B$47,CntyQuery!$A$51:$CE$93,AP$1)","v":3},{"$f":"VLOOKUP(DropDownList!$B$47,CntyQuery!$A$51:$CE$93,AQ$1)","v":194},{"$f":"VLOOKUP(DropDownList!$B$47,CntyQuery!$A$51:$CE$93,AR$1)","v":4},{"$f":"VLOOKUP(DropDownList!$B$47,CntyQuery!$A$51:$CE$93,AS$1)","v":2},{"$f":"VLOOKUP(DropDownList!$B$47,CntyQuery!$A$51:$CE$93,AT$1)","v":2},{"$f":"VLOOKUP(DropDownList!$B$47,CntyQuery!$A$51:$CE$93,AU$1)","v":1},{"$f":"VLOOKUP(DropDownList!$B$47,CntyQuery!$A$51:$CE$93,AV$1)","v":1},{"$f":"VLOOKUP(DropDownList!$B$47,CntyQuery!$A$51:$CE$93,AW$1)","v":1},{"$f":"VLOOKUP(DropDownList!$B$47,CntyQuery!$A$51:$CE$93,AX$1)","v":6},{"$f":"VLOOKUP(DropDownList!$B$47,CntyQuery!$A$51:$CE$93,AY$1)","v":0},{"$f":"VLOOKUP(DropDownList!$B$47,CntyQuery!$A$51:$CE$93,AZ$1)","v":7},{"$f":"VLOOKUP(DropDownList!$B$47,CntyQuery!$A$51:$CE$93,BA$1)","v":20},{"$f":"VLOOKUP(DropDownList!$B$47,CntyQuery!$A$51:$CE$93,BB$1)","v":36},{"$f":"VLOOKUP(DropDownList!$B$47,CntyQuery!$A$51:$CE$93,BC$1)","v":19},{"$f":"VLOOKUP(DropDownList!$B$47,CntyQuery!$A$51:$CE$93,BD$1)","v":7},{"$f":"VLOOKUP(DropDownList!$B$47,CntyQuery!$A$51:$CE$93,BE$1)","v":6},{"$f":"VLOOKUP(DropDownList!$B$47,CntyQuery!$A$51:$CE$93,BF$1)","v":1},{"$f":"VLOOKUP(DropDownList!$B$47,CntyQuery!$A$51:$CE$93,BG$1)","v":1},{"$f":"VLOOKUP(DropDownList!$B$47,CntyQuery!$A$51:$CE$93,BH$1)","v":1},{"$f":"VLOOKUP(DropDownList!$B$47,CntyQuery!$A$51:$CE$93,BI$1)","v":0},{"$f":"VLOOKUP(DropDownList!$B$47,CntyQuery!$A$51:$CE$93,BJ$1)","v":0},{"$f":"VLOOKUP(DropDownList!$B$47,CntyQuery!$A$51:$CE$93,BK$1)","v":1},{"$f":"VLOOKUP(DropDownList!$B$47,CntyQuery!$A$51:$CE$93,BL$1)","v":84700},{"$f":"VLOOKUP(DropDownList!$B$47,CntyQuery!$A$51:$CE$93,BM$1)","v":448},{"$f":"VLOOKUP(DropDownList!$B$47,CntyQuery!$A$51:$CE$93,BN$1)","v":10},{"$f":"VLOOKUP(DropDownList!$B$47,CntyQuery!$A$51:$CE$93,BO$1)","v":49},{"$f":"VLOOKUP(DropDownList!$B$47,CntyQuery!$A$51:$CE$93,BP$1)","v":222},{"$f":"VLOOKUP(DropDownList!$B$47,CntyQuery!$A$51:$CE$93,BQ$1)","v":5},{"$f":"VLOOKUP(DropDownList!$B$47,CntyQuery!$A$51:$CE$93,BR$1)","v":19},{"$f":"VLOOKUP(DropDownList!$B$47,CntyQuery!$A$51:$CE$93,BS$1)","v":30},{"$f":"VLOOKUP(DropDownList!$B$47,CntyQuery!$A$51:$CE$93,BT$1)","v":5},{"$f":"VLOOKUP(DropDownList!$B$47,CntyQuery!$A$51:$CE$93,BU$1)","v":4},{"$f":"VLOOKUP(DropDownList!$B$47,CntyQuery!$A$51:$CE$93,BV$1)","v":448},{"$f":"VLOOKUP(DropDownList!$B$47,CntyQuery!$A$51:$CE$93,BW$1)","v":3},{"$f":"VLOOKUP(DropDownList!$B$47,CntyQuery!$A$51:$CE$93,BX$1)","v":7},{"$f":"VLOOKUP(DropDownList!$B$47,CntyQuery!$A$51:$CE$93,BY$1)","v":0},{"$f":"VLOOKUP(DropDownList!$B$47,CntyQuery!$A$51:$CE$93,BZ$1)","v":0},{"$f":"VLOOKUP(DropDownList!$B$47,CntyQuery!$A$51:$CE$93,CA$1)","v":0},{"$f":"VLOOKUP(DropDownList!$B$47,CntyQuery!$A$51:$CE$93,CB$1)","v":0},{"$f":"VLOOKUP(DropDownList!$B$47,CntyQuery!$A$51:$CE$93,CC$1)","v":0},{"$f":"VLOOKUP(DropDownList!$B$47,CntyQuery!$A$51:$CE$93,CD$1)","v":38},{"$f":"VLOOKUP(DropDownList!$B$47,CntyQuery!$A$51:$CE$93,CE$1)","v":11}]
[]
[]
["Census 1990 Data -          Query Name: TownSTF3Qry1"]
["NAME","FIPS","COUSUBFP","LandAcres","WaterAcres","HousingUnits90Cen","P01Persons90Cen","P02Families90Cen","P03Households90cen","H25HU<5yrs90cen","H25HU5to20yrs90cen","H25HU20to50yrs90cen","H25HU>50yrs90cen","H31Units0Bedroom90cen","H31Units1Bedroom90cen","H31Units2Bedroom90cen","H31Units3Bedroom90cen","H31Units4Bedroom90cen","H31Units5+Bedroom90cen","P80HI<5K","P80HI5Kto10K","P80HI10Kto15K","P80HI15Kto25K","P80HI25Kto35K","P80HI35Kto50K","P80HI50Kto75K","P80HI75Kto100K","P80HI>100K","P80AMedHI","P86HH<25HI<5K","P86HH<25HI5Kto10K","P86HH<25HI10Kto15K","P86HH<25HI15Kto25K","P86HH<25HI25Kto35K","P86HH<25HI35Kto50K","P86HH<25HI50Kto75K","P86HH<25HI75Kto100K","P86HH<25HI>100K","P86HH25to34HI<5K","P86HH25to34HI5Kto10K","P86HH25to34HI10Kto15K","P86HH25to34HI15Kto25K","P86HH25to34HI25Kto35K","P86HH25to34HI35Kto50K","P86HH25to34HI50Kto75K","P86HH25to34HI75Kto100K","P86HH25to34HI>100K","P86HH35to44HI<5K","P86HH35to44HI5Kto10K","P86HH35to44HI10Kto15K","P86HH35to44HI15Kto25K","P86HH35to44HI25Kto35K","P86HH35to44HI35Kto50K","P86HH35to44HI50Kto75K","P86HH35to44HI75Kto100K","P86HH35to44HI>100K","P86HH45to54HI<5K","P86HH45to54HI5Kto10K","P86HH45to54HI10Kto15K","P86HH45to54HI15Kto25K","P86HH45to54HI25Kto35K","P86HH45to54HI35Kto50K","P86HH45to54HI50Kto75K","P86HH45to54HI75Kto100K","P86HH45to54HI>100K","P86HH55to64HI<5K","P86HH55to64HI5Kto10K","P86HH55to64HI10Kto15K","P86HH55to64HI15Kto25K","P86HH55to64HI25Kto35K","P86HH55to64HI35Kto50K","P86HH55to64HI50Kto75K","P86HH55to64HI75Kto100K","P86HH55to64HI>100K","P86HH65to74HI<5K","P86HH65to74HI5Kto10K","P86HH65to74HI10Kto15K","P86HH65to74HI15Kto25K","P86HH65to74HI25Kto35K","P86HH65to74HI35Kto50K","P86HH65to74HI50Kto75K","P86HH65to74HI75Kto100K","P86HH65to74HI>100K","P86HH>75HI<5K","P86HH>75HI5Kto10K","P86HH>75HI10Kto15K","P86HH>75HI15Kto25K","P86HH>75HI25Kto35K","P86HH>75HI35Kto50K","P86HH>75HI50Kto75K","P86HH>75HI75Kto100K","P86HH>75HI>100K","P54SchlEnrlPrePrim","P54SchlEnrlElemThrHS","P54SchlEnrlCollege","P54NotEnrlInSch","P57Pop25andOver","P57LessThan9thGrade","P579thto12thNoDip","P57HSGrad","P57SomeCollege","P57AssocDeg","P57BachelDeg","P57GradorProfDeg","P57HSGradorHigher","P57CollGradorHigher","P42NativePop","P42ForeignBornPop","P42BornStateOfRes","P37NativePop2","P37ForeignBornPop2","P49DroveAlone","P49CarPooled","P49PublicTranspt","P49Walked","P49OtherMeans","P49WorkedAtHome","P80HHInc<10K","P80HHInc10to15K","P80HHInc15to25K","P80HHInc25to35K","P80HHInc35to50K","P80HHInc50to75K","P80HHInc75to100K","P80HHInc100to150K","P80HHInc>150K","H25YearStBlt89to90","H25YearStBlt85to88","H25YearStBlt80to84","H25YearStBlt70to79","H25YearStBlt60to69","H25YearStBlt50to59","H25YearStBlt40to49","H25YearStBlt39earlier","P107FamInc<10K","P107FamInc10to15K","P107FamInc15to25K","P107FamInc25to35K","P107FamInc35to50K","P107FamInc50to75K","P107FamInc75to100K","P107FamInc100to150K","P107FamInc>150K","P107AMedFamInc","P110NonFamInc<10K","P110NonFamInc10to15K","P110NonFamInc15to25K","P110NonFamInc25to35K","P110NonFamInc35to50K","P110NonFamInc50to75K","P110NonFamInc75to100K","P110NonFamInc100to150K","P110NonFamInc>150K","P110AMedNonFamInc","H16HU1Room","H16HU2Room","H16HU3Room","H16HU4Room","H16HU5Room","H16HU6Room","H16HU7Room","H16HU8Room","H16HU9+Room","H43GrossRnt<100","H43GrossRnt100to149","H43GrossRnt150to199","H43GrossRnt200to249","H43GrossRnt250to299","H43GrossRnt300to349","H43GrossRnt350to399","H43GrossRnt400to449","H43GrossRnt450to499","H43GrossRnt500to549","H43GrossRnt550to599","H43GrossRnt600to649","H43GrossRnt650to699","H43GrossRnt700to749","H43GrossRnt750to999","H43GrossRnt1000Plus","H43NoCashRent","H43MedGrossRent","H51GrossRnt<20PctHHInc","H51GrossRnt20to24PctHHInc","H51GrossRnt25to29PctHHInc","H51GrossRnt30to34PctHHInc","H51GrossRnt35PctOrMoreHHInc","H51GrossRntAsPctHHIncNotComp","H52HUwMtgMoOwnCst<200","H52HUwMtgMoOwnCst200to299","H52HUwMtgMoOwnCst300to399","H52HUwMtgMoOwnCst400to499","H52HUwMtgMoOwnCst500to599","H52HUwMtgMoOwnCst600to699","H52HUwMtgMoOwnCst700to799","H52HUwMtgMoOwnCst800to899","H52HUwMtgMoOwnCst900to999","H52HUwMtgMoOwnCst1000to1249","H52HUwMtgMoOwnCst1250to1499","H52HUwMtgMoOwnCst1500to1999","H52HUwMtgMoOwnCst2000More","H52HUwNoMtgMoOwnCst<100","H52HUwNoMtgMoOwnCst100to149","H52HUwNoMtgMoOwnCst150to199","H52HUwNoMtgMoOwnCst200to249","H52HUwNoMtgMoOwnCst250to299","H52HUwNoMtgMoOwnCst300to349","H52HUwNoMtgMoOwnCst350to399","H52HUwNoMtgMoOwnCst400More","H52AMedMoOwnCstWMortg","H52AMedMoOwnCstWNoMortg","H58HUwMtgMOC<20pHHInc","H58HUwMtgMOC20to24pHHInc","H58HUwMtgMOC25to29pHHInc","H58HUwMtgMOC30to34pHHInc","H58wMtgMOC>35pHHInc","H58HUwMtgMOCNotComp","H58HUwNoMtgMOC<20pHHInc","H58HUwNoMtgMOC20to24pHHInc","H58HUwNoMtgMOC25to29pHHInc","H58HUwNoMtgMOC30to34pHHInc","H58wNoMtgMOC>35pHHInc","H58HUwNoMtgMOCNotComp","H61OOHUVal<15k","H61OOHUVal15to19k","H61OOHUVal20to24k","H61OOHUVal25to29k","H61OOHUVal30to34k","H61OOHUVal35to39k","H61OOHUVal40to44k","H61OOHUVal45to49k","H61OOHUVal50to59k","H61OOHUVal60to74k","H61OOHUVal75to99k","H61OOHUVal100to124k","H61OOHUVal125to149k","H61OOHUVal150to174k","H61OOHUVal175to199k","H61OOHUVal200to249k","H61OOHUVal250to299k","H61OOHUVal300to399k","H61OOHUVal400to499k","H61OOHUVal500kOrMore","H61aOOHUMedVal"]
[]
[]
[]
["Other Demo Data -             Query Name: QryAllTowns-ACSDemographicSheet"]
["TOWN_NAME","FIPS","TOWNCNTY","COUSUB","POP80","POP90CDCEN","POP2000CEN","POP2010CEN","POP2020-Proj","POP2025-Proj","POP2030-Proj","SF80","MF80","MH80","SF81","MF81","MH81","SF82","MF82","MH82","SF83","MF83","MH83","SF84_OSP","MF84_OSP","MH84_OSP","SF85_OSP","MF85_OSP","MH85_OSP","SF86_OSP","MF86_OSP","MH86_OSP","SF87_OSP","MF87_OSP","MH87_OSP","SF88_OSP","MF88_OSP","MH88_OSP","SF89_OSP","MF89_OSP","MH89_OSP","SF90_OSP","MF90_OSP","MH90_OSP","SF91_OSP","MF91_OSP","MH91_OSP","SF92_OSP","MF92_OSP","MH92_OSP","SF93_OSP","MF93_OSP","MH93_OSP","SF94_OSP","MF94_OSP","MH94_OSP","SF95_OSP","MF95_OSP","MH95_OSP","SF96_OSP","MF96_OSP","MH96_OSP","SF97_OSP","MF97_OSP","MH97_OSP","SF98_OSP","MF98_OSP","MH98_OSP","SF99_OSP","MF99_OSP","MH99_OSP","SF00_OSP","MF00_OSP","MH00_OSP","SF01_OSP","MF01_OSP","MH01_OSP","SF02_OSP","MF02_OSP","MH02_OSP","SF03_OSP","MF03_OSP","MH03_OSP","SF04_OSP","MF04_OSP","MH04_OSP","SF05_OSP","MF05_OSP","MH05_OSP","SF06_OSP","MF06_OSP","MH06_OSP","SF07_OSP","MF07_OSP","MH07_OSP","SF08_OSP","MF08_OSP","MH08_OSP","SF09_OSP","MF09_OSP","MH09_OSP","SF10_OSP","MF10_OSP","MH10_OSP","SF11_OSP","MF11_OSP","MH11_OSP","SF12_OSP","MF12_OSP","MH12_OSP","SF13_OSP","MF13_OSP","MH13_OSP","SF14_OSP","MF14_OSP","MH14_OSP","SF15_OSP","MF15_OSP","MH15_OSP","SF16_OSP","MF16_OSP","MH16_OSP","SF17_OSP","MF17_OSP","MH17_OSP","SF18_OSP","MF18_OSP","MH18_OSP","COMMENTS","CNTY_CODE"]
[{"$f":"VLOOKUP(DropDownList!$B$47,CntyQuery!$A$117:$DZ$160,A$1)","v":"Acworth"},{"$f":"VLOOKUP(DropDownList!$B$47,CntyQuery!$A$117:$DZ$160,B$1)","v":19005},{"$f":"VLOOKUP(DropDownList!$B$47,CntyQuery!$A$117:$DZ$160,C$1)","v":1001},{"$f":"VLOOKUP(DropDownList!$B$47,CntyQuery!$A$117:$DZ$160,D$1)","v":"00260"},{"$f":"VLOOKUP(DropDownList!$B$47,CntyQuery!$A$117:$DZ$160,E$1)","v":590},{"$f":"VLOOKUP(DropDownList!$B$47,CntyQuery!$A$117:$DZ$160,F$1)","v":776},{"$f":"VLOOKUP(DropDownList!$B$47,CntyQuery!$A$117:$DZ$160,G$1)","v":836},{"$f":"VLOOKUP(DropDownList!$B$47,CntyQuery!$A$117:$DZ$160,H$1)","v":891},{"$f":"VLOOKUP(DropDownList!$B$47,CntyQuery!$A$117:$DZ$160,I$1)","v":937},{"$f":"VLOOKUP(DropDownList!$B$47,CntyQuery!$A$117:$DZ$160,J$1)","v":960},{"$f":"VLOOKUP(DropDownList!$B$47,CntyQuery!$A$117:$DZ$160,K$1)","v":989},{"$f":"VLOOKUP(DropDownList!$B$47,CntyQuery!$A$117:$DZ$160,L$1)","v":6},{"$f":"VLOOKUP(DropDownList!$B$47,CntyQuery!$A$117:$DZ$160,M$1)","v":0},{"$f":"VLOOKUP(DropDownList!$B$47,CntyQuery!$A$117:$DZ$160,N$1)","v":0},{"$f":"VLOOKUP(DropDownList!$B$47,CntyQuery!$A$117:$DZ$160,O$1)","v":4},{"$f":"VLOOKUP(DropDownList!$B$47,CntyQuery!$A$117:$DZ$160,P$1)","v":0},{"$f":"VLOOKUP(DropDownList!$B$47,CntyQuery!$A$117:$DZ$160,Q$1)","v":0},{"$f":"VLOOKUP(DropDownList!$B$47,CntyQuery!$A$117:$DZ$160,R$1)","v":3},{"$f":"VLOOKUP(DropDownList!$B$47,CntyQuery!$A$117:$DZ$160,S$1)","v":0},{"$f":"VLOOKUP(DropDownList!$B$47,CntyQuery!$A$117:$DZ$160,T$1)","v":0},{"$f":"VLOOKUP(DropDownList!$B$47,CntyQuery!$A$117:$DZ$160,U$1)","v":6},{"$f":"VLOOKUP(DropDownList!$B$47,CntyQuery!$A$117:$DZ$160,V$1)","v":0},{"$f":"VLOOKUP(DropDownList!$B$47,CntyQuery!$A$117:$DZ$160,W$1)","v":1},{"$f":"VLOOKUP(DropDownList!$B$47,CntyQuery!$A$117:$DZ$160,X$1)","v":3},{"$f":"VLOOKUP(DropDownList!$B$47,CntyQuery!$A$117:$DZ$160,Y$1)","v":0},{"$f":"VLOOKUP(DropDownList!$B$47,CntyQuery!$A$117:$DZ$160,Z$1)","v":0},{"$f":"VLOOKUP(DropDownList!$B$47,CntyQuery!$A$117:$DZ$160,AA$1)","v":3},{"$f":"VLOOKUP(DropDownList!$B$47,CntyQuery!$A$117:$DZ$160,AB$1)","v":0},{"$f":"VLOOKUP(DropDownList!$B$47,CntyQuery!$A$117:$DZ$160,AC$1)","v":1},{"$f":"VLOOKUP(DropDownList!$B$47,CntyQuery!$A$117:$DZ$160,AD$1)","v":2},{"$f":"VLOOKUP(DropDownList!$B$47,CntyQuery!$A$117:$DZ$160,AE$1)","v":0},{"$f":"VLOOKUP(DropDownList!$B$47,CntyQuery!$A$117:$DZ$160,AF$1)","v":1},{"$f":"VLOOKUP(DropDownList!$B$47,CntyQuery!$A$117:$DZ$160,AG$1)","v":4},{"$f":"VLOOKUP(DropDownList!$B$47,CntyQuery!$A$117:$DZ$160,AH$1)","v":0},{"$f":"VLOOKUP(DropDownList!$B$47,CntyQuery!$A$117:$DZ$160,AI$1)","v":1},{"$f":"VLOOKUP(DropDownList!$B$47,CntyQuery!$A$117:$DZ$160,AJ$1)","v":1},{"$f":"VLOOKUP(DropDownList!$B$47,CntyQuery!$A$117:$DZ$160,AK$1)","v":0},{"$f":"VLOOKUP(DropDownList!$B$47,CntyQuery!$A$117:$DZ$160,AL$1)","v":1},{"$f":"VLOOKUP(DropDownList!$B$47,CntyQuery!$A$117:$DZ$160,AM$1)","v":3},{"$f":"VLOOKUP(DropDownList!$B$47,CntyQuery!$A$117:$DZ$160,AN$1)","v":0},{"$f":"VLOOKUP(DropDownList!$B$47,CntyQuery!$A$117:$DZ$160,AO$1)","v":5},{"$f":"VLOOKUP(DropDownList!$B$47,CntyQuery!$A$117:$DZ$160,AP$1)","v":0},{"$f":"VLOOKUP(DropDownList!$B$47,CntyQuery!$A$117:$DZ$160,AQ$1)","v":0},{"$f":"VLOOKUP(DropDownList!$B$47,CntyQuery!$A$117:$DZ$160,AR$1)","v":1},{"$f":"VLOOKUP(DropDownList!$B$47,CntyQuery!$A$117:$DZ$160,AS$1)","v":1},{"$f":"VLOOKUP(DropDownList!$B$47,CntyQuery!$A$117:$DZ$160,AT$1)","v":0},{"$f":"VLOOKUP(DropDownList!$B$47,CntyQuery!$A$117:$DZ$160,AU$1)","v":1},{"$f":"VLOOKUP(DropDownList!$B$47,CntyQuery!$A$117:$DZ$160,AV$1)","v":0},{"$f":"VLOOKUP(DropDownList!$B$47,CntyQuery!$A$117:$DZ$160,AW$1)","v":0},{"$f":"VLOOKUP(DropDownList!$B$47,CntyQuery!$A$117:$DZ$160,AX$1)","v":1},{"$f":"VLOOKUP(DropDownList!$B$47,CntyQuery!$A$117:$DZ$160,AY$1)","v":1},{"$f":"VLOOKUP(DropDownList!$B$47,CntyQuery!$A$117:$DZ$160,AZ$1)","v":0},{"$f":"VLOOKUP(DropDownList!$B$47,CntyQuery!$A$117:$DZ$160,BA$1)","v":0},{"$f":"VLOOKUP(DropDownList!$B$47,CntyQuery!$A$117:$DZ$160,BB$1)","v":2},{"$f":"VLOOKUP(DropDownList!$B$47,CntyQuery!$A$117:$DZ$160,BC$1)","v":1},{"$f":"VLOOKUP(DropDownList!$B$47,CntyQuery!$A$117:$DZ$160,BD$1)","v":1},{"$f":"VLOOKUP(DropDownList!$B$47,CntyQuery!$A$117:$DZ$160,BE$1)","v":2},{"$f":"VLOOKUP(DropDownList!$B$47,CntyQuery!$A$117:$DZ$160,BF$1)","v":0},{"$f":"VLOOKUP(DropDownList!$B$47,CntyQuery!$A$117:$DZ$160,BG$1)","v":0},{"$f":"VLOOKUP(DropDownList!$B$47,CntyQuery!$A$117:$DZ$160,BH$1)","v":2},{"$f":"VLOOKUP(DropDownList!$B$47,CntyQuery!$A$117:$DZ$160,BI$1)","v":0},{"$f":"VLOOKUP(DropDownList!$B$47,CntyQuery!$A$117:$DZ$160,BJ$1)","v":2},{"$f":"VLOOKUP(DropDownList!$B$47,CntyQuery!$A$117:$DZ$160,BK$1)","v":3},{"$f":"VLOOKUP(DropDownList!$B$47,CntyQuery!$A$117:$DZ$160,BL$1)","v":0},{"$f":"VLOOKUP(DropDownList!$B$47,CntyQuery!$A$117:$DZ$160,BM$1)","v":0},{"$f":"VLOOKUP(DropDownList!$B$47,CntyQuery!$A$117:$DZ$160,BN$1)","v":4},{"$f":"VLOOKUP(DropDownList!$B$47,CntyQuery!$A$117:$DZ$160,BO$1)","v":0},{"$f":"VLOOKUP(DropDownList!$B$47,CntyQuery!$A$117:$DZ$160,BP$1)","v":2},{"$f":"VLOOKUP(DropDownList!$B$47,CntyQuery!$A$117:$DZ$160,BQ$1)","v":0},{"$f":"VLOOKUP(DropDownList!$B$47,CntyQuery!$A$117:$DZ$160,BR$1)","v":0},{"$f":"VLOOKUP(DropDownList!$B$47,CntyQuery!$A$117:$DZ$160,BS$1)","v":1},{"$f":"VLOOKUP(DropDownList!$B$47,CntyQuery!$A$117:$DZ$160,BT$1)","v":0},{"$f":"VLOOKUP(DropDownList!$B$47,CntyQuery!$A$117:$DZ$160,BU$1)","v":0},{"$f":"VLOOKUP(DropDownList!$B$47,CntyQuery!$A$117:$DZ$160,BV$1)","v":1},{"$f":"VLOOKUP(DropDownList!$B$47,CntyQuery!$A$117:$DZ$160,BW$1)","v":2},{"$f":"VLOOKUP(DropDownList!$B$47,CntyQuery!$A$117:$DZ$160,BX$1)","v":0},{"$f":"VLOOKUP(DropDownList!$B$47,CntyQuery!$A$117:$DZ$160,BY$1)","v":2},{"$f":"VLOOKUP(DropDownList!$B$47,CntyQuery!$A$117:$DZ$160,BZ$1)","v":6},{"$f":"VLOOKUP(DropDownList!$B$47,CntyQuery!$A$117:$DZ$160,CA$1)","v":0},{"$f":"VLOOKUP(DropDownList!$B$47,CntyQuery!$A$117:$DZ$160,CB$1)","v":0},{"$f":"VLOOKUP(DropDownList!$B$47,CntyQuery!$A$117:$DZ$160,CC$1)","v":11},{"$f":"VLOOKUP(DropDownList!$B$47,CntyQuery!$A$117:$DZ$160,CD$1)","v":0},{"$f":"VLOOKUP(DropDownList!$B$47,CntyQuery!$A$117:$DZ$160,CE$1)","v":2},{"$f":"VLOOKUP(DropDownList!$B$47,CntyQuery!$A$117:$DZ$160,CF$1)","v":11},{"$f":"VLOOKUP(DropDownList!$B$47,CntyQuery!$A$117:$DZ$160,CG$1)","v":0},{"$f":"VLOOKUP(DropDownList!$B$47,CntyQuery!$A$117:$DZ$160,CH$1)","v":1},{"$f":"VLOOKUP(DropDownList!$B$47,CntyQuery!$A$117:$DZ$160,CI$1)","v":10},{"$f":"VLOOKUP(DropDownList!$B$47,CntyQuery!$A$117:$DZ$160,CJ$1)","v":0},{"$f":"VLOOKUP(DropDownList!$B$47,CntyQuery!$A$117:$DZ$160,CK$1)","v":0},{"$f":"VLOOKUP(DropDownList!$B$47,CntyQuery!$A$117:$DZ$160,CL$1)","v":10},{"$f":"VLOOKUP(DropDownList!$B$47,CntyQuery!$A$117:$DZ$160,CM$1)","v":0},{"$f":"VLOOKUP(DropDownList!$B$47,CntyQuery!$A$117:$DZ$160,CN$1)","v":0},{"$f":"VLOOKUP(DropDownList!$B$47,CntyQuery!$A$117:$DZ$160,CO$1)","v":9},{"$f":"VLOOKUP(DropDownList!$B$47,CntyQuery!$A$117:$DZ$160,CP$1)","v":0},{"$f":"VLOOKUP(DropDownList!$B$47,CntyQuery!$A$117:$DZ$160,CQ$1)","v":0},{"$f":"VLOOKUP(DropDownList!$B$47,CntyQuery!$A$117:$DZ$160,CR$1)","v":3},{"$f":"VLOOKUP(DropDownList!$B$47,CntyQuery!$A$117:$DZ$160,CS$1)","v":0},{"$f":"VLOOKUP(DropDownList!$B$47,CntyQuery!$A$117:$DZ$160,CT$1)","v":2},{"$f":"VLOOKUP(DropDownList!$B$47,CntyQuery!$A$117:$DZ$160,CU$1)","v":4},{"$f":"VLOOKUP(DropDownList!$B$47,CntyQuery!$A$117:$DZ$160,CV$1)","v":0},{"$f":"VLOOKUP(DropDownList!$B$47,CntyQuery!$A$117:$DZ$160,CW$1)","v":0},{"$f":"VLOOKUP(DropDownList!$B$47,CntyQuery!$A$117:$DZ$160,CX$1)","v":5},{"$f":"VLOOKUP(DropDownList!$B$47,CntyQuery!$A$117:$DZ$160,CY$1)","v":0},{"$f":"VLOOKUP(DropDownList!$B$47,CntyQuery!$A$117:$DZ$160,CZ$1)","v":0},{"$f":"VLOOKUP(DropDownList!$B$47,CntyQuery!$A$117:$DZ$160,DA$1)","v":4},{"$f":"VLOOKUP(DropDownList!$B$47,CntyQuery!$A$117:$DZ$160,DB$1)","v":0},{"$f":"VLOOKUP(DropDownList!$B$47,CntyQuery!$A$117:$DZ$160,DC$1)","v":0},{"$f":"VLOOKUP(DropDownList!$B$47,CntyQuery!$A$117:$DZ$160,DD$1)","v":0},{"$f":"VLOOKUP(DropDownList!$B$47,CntyQuery!$A$117:$DZ$160,DE$1)","v":0},{"$f":"VLOOKUP(DropDownList!$B$47,CntyQuery!$A$117:$DZ$160,DF$1)","v":0},{"$f":"VLOOKUP(DropDownList!$B$47,CntyQuery!$A$117:$DZ$160,DG$1)","v":1},{"$f":"VLOOKUP(DropDownList!$B$47,CntyQuery!$A$117:$DZ$160,DH$1)","v":0},{"$f":"VLOOKUP(DropDownList!$B$47,CntyQuery!$A$117:$DZ$160,DI$1)","v":2},{"$f":"VLOOKUP(DropDownList!$B$47,CntyQuery!$A$117:$DZ$160,DJ$1)","v":0},{"$f":"VLOOKUP(DropDownList!$B$47,CntyQuery!$A$117:$DZ$160,DK$1)","v":0},{"$f":"VLOOKUP(DropDownList!$B$47,CntyQuery!$A$117:$DZ$160,DL$1)","v":0},{"$f":"VLOOKUP(DropDownList!$B$47,CntyQuery!$A$117:$DZ$160,DM$1)","v":1},{"$f":"VLOOKUP(DropDownList!$B$47,CntyQuery!$A$117:$DZ$160,DN$1)","v":0},{"$f":"VLOOKUP(DropDownList!$B$47,CntyQuery!$A$117:$DZ$160,DO$1)","v":0},{"$f":"VLOOKUP(DropDownList!$B$47,CntyQuery!$A$117:$DZ$160,DP$1)","v":0},{"$f":"VLOOKUP(DropDownList!$B$47,CntyQuery!$A$117:$DZ$160,DQ$1)","v":0},{"$f":"VLOOKUP(DropDownList!$B$47,CntyQuery!$A$117:$DZ$160,DR$1)","v":0},{"$f":"VLOOKUP(DropDownList!$B$47,CntyQuery!$A$117:$DZ$160,DS$1)","v":0},{"$f":"VLOOKUP(DropDownList!$B$47,CntyQuery!$A$117:$DZ$160,DT$1)","v":0},{"$f":"VLOOKUP(DropDownList!$B$47,CntyQuery!$A$117:$DZ$160,DU$1)","v":0},{"$f":"VLOOKUP(DropDownList!$B$47,CntyQuery!$A$117:$DZ$160,DV$1)","v":3},{"$f":"VLOOKUP(DropDownList!$B$47,CntyQuery!$A$117:$DZ$160,DW$1)","v":0},{"$f":"VLOOKUP(DropDownList!$B$47,CntyQuery!$A$117:$DZ$160,DX$1)","v":2},{"$f":"VLOOKUP(DropDownList!$B$47,CntyQuery!$A$117:$DZ$160,DY$1)","v":1}]
[]
[]
["NH Employment Data","Query Name: DPQryEmploymentByCnty"]
["AreaName","COUNTYCODE","TOTP & G2001","TOT2001","GOODPRO2001","SERVICEPROMAN2001","WAGEP & G2001","WAGETOT2001","WAGEGOODPRO2001","WAGESERVICEPRO2001","TOTP & G2002","TOT2002","GOODPRO2002","SERVICEPROMAN2002","WAGEP & G2002","WAGETOT2002","WAGEGOODPRO2002","WAGESERVICEPRO2002","TOTP & G2003","TOT2003","GOODPRO2003","SERVICEPROMAN2003","WAGEP & G2003","WAGETOT2003","WAGEGOODPRO2003","WAGESERVICEPRO2003","TOTP & G2004","TOT2004","GOODPRO2004","SERVICEPROMAN2004","WAGEP & G2004","WAGETOT2004","WAGEGOODPRO2004","WAGESERVICEPRO2004","TOTP & G2005","TOT2005","GOODPRO2005","SERVICEPROMAN2005","WAGEP & G2005","WAGETOT2005","WAGEGOODPRO2005","WAGESERVICEPRO2005","TOTP & G2006","TOT2006","GOODPRO2006","SERVICEPROMAN2006","WAGEP & G2006","WAGETOT2006","WAGEGOODPRO2006","WAGESERVICEPRO2006","TOTP & G2007","TOT2007","GOODPRO2007","SERVICEPROMAN2007","WAGEP & G2007","WAGETOT2007","WAGEGOODPRO2007","WAGESERVICEPRO2007","TOTP & G2008","TOT2008","GOODPRO2008","SERVICEPROMAN2008","WAGEP & G2008","WAGETOT2008","WAGEGOODPRO2008","WAGESERVICEPRO2008","TOTP & G2009","TOT2009","GOODPRO2009","SERVICEPROMAN2009","WAGEP & G2009","WAGETOT2009","WAGEGOODPRO2009","WAGESERVICEPRO2009","TOTP & G2010","TOT2010","GOODPRO2010","SERVICEPROMAN2010","WAGEP & G2010","WAGETOT2010","WAGEGOODPRO2010","WAGESERVICEPRO2010","TOTP & G2011","TOT2011","GOODPRO2011","SERVICEPROMAN2011","WAGEP & G2011","WAGETOT2011","WAGEGOODPRO2011","WAGESERVICEPRO2011","TOTP & G2012","TOT2012","GOODPRO2012","SERVICEPROMAN2012","WAGEP & G2012","WAGETOT2012","WAGEGOODPRO2012","WAGESERVICEPRO2012","TOTP & G2013","TOT2013","GOODPRO2013","SERVICEPROMAN2013","WAGEP & G2013","WAGETOT2013","WAGEGOODPRO2013","WAGESERVICEPRO2013","TOTP & G2014","TOT2014","GOODPRO2014","SERVICEPROMAN2014","WAGEP & G2014","WAGETOT2014","WAGEGOODPRO2014","WAGESERVICEPRO2014","TOTP & G2015","TOT2015","GOODPRO2015","SERVICEPROMAN2015","WAGEP & G2015","WAGETOT2015","WAGEGOODPRO2015","WAGESERVICEPRO2015","TOTP & G2016","TOT2016","GOODPRO2016","SERVICEPROMAN2016","WAGEP & G2016","WAGETOT2016","WAGEGOODPRO2016","WAGESERVICEPRO2016","TOTP & G2017","TOT2017","GOODPRO2017","SERVICEPROMAN2017","WAGEP & G2017","WAGETOT2017","WAGEGOODPRO2017","WAGESERVICEPRO2017","TOTP & G2018","TOT2018","GOODPRO2018","SERVICEPROMAN2018","WAGEP & G2018","WAGETOT2018","WAGEGOODPRO2018","WAGESERVICEPRO2018","TOTP & G2019","TOT2019","TOTGov2019","GOODPRO2019","SERVICEPROMAN2019","WAGEP & G2019","WAGETOT2019","WAGEGov2019","WAGEGOODPRO2019","WAGESERVICEPRO2019","SummaryLevel"]
[{"$f":"VLOOKUP(DropDownList!$B$47,CntyQuery!$A$171:$FZ$185,A$1)","v":"Acworth"},{"$f":"VLOOKUP(DropDownList!$B$47,CntyQuery!$A$171:$FZ$185,B$1)","v":10},{"$f":"VLOOKUP(DropDownList!$B$47,CntyQuery!$A$171:$FZ$185,C$1)","v":89},{"$f":"VLOOKUP(DropDownList!$B$47,CntyQuery!$A$171:$FZ$185,D$1)","v":72},{"$f":"VLOOKUP(DropDownList!$B$47,CntyQuery!$A$171:$FZ$185,E$1)","v":64},{"$f":"VLOOKUP(DropDownList!$B$47,CntyQuery!$A$171:$FZ$185,F$1)","v":7},{"$f":"VLOOKUP(DropDownList!$B$47,CntyQuery!$A$171:$FZ$185,G$1)","v":578.72},{"$f":"VLOOKUP(DropDownList!$B$47,CntyQuery!$A$171:$FZ$185,H$1)","v":624},{"$f":"VLOOKUP(DropDownList!$B$47,CntyQuery!$A$171:$FZ$185,I$1)","v":551.35},{"$f":"VLOOKUP(DropDownList!$B$47,CntyQuery!$A$171:$FZ$185,J$1)","v":1269.44},{"$f":"VLOOKUP(DropDownList!$B$47,CntyQuery!$A$171:$FZ$185,K$1)","v":94},{"$f":"VLOOKUP(DropDownList!$B$47,CntyQuery!$A$171:$FZ$185,L$1)","v":77},{"$f":"VLOOKUP(DropDownList!$B$47,CntyQuery!$A$171:$FZ$185,M$1)","v":70},{"$f":"VLOOKUP(DropDownList!$B$47,CntyQuery!$A$171:$FZ$185,N$1)","v":7},{"$f":"VLOOKUP(DropDownList!$B$47,CntyQuery!$A$171:$FZ$185,O$1)","v":504.34},{"$f":"VLOOKUP(DropDownList!$B$47,CntyQuery!$A$171:$FZ$185,P$1)","v":528.30999999999995},{"$f":"VLOOKUP(DropDownList!$B$47,CntyQuery!$A$171:$FZ$185,Q$1)","v":530.91999999999996},{"$f":"VLOOKUP(DropDownList!$B$47,CntyQuery!$A$171:$FZ$185,R$1)","v":500.18},{"$f":"VLOOKUP(DropDownList!$B$47,CntyQuery!$A$171:$FZ$185,S$1)","v":97},{"$f":"VLOOKUP(DropDownList!$B$47,CntyQuery!$A$171:$FZ$185,T$1)","v":78},{"$f":"VLOOKUP(DropDownList!$B$47,CntyQuery!$A$171:$FZ$185,U$1)","v":74},{"$f":"VLOOKUP(DropDownList!$B$47,CntyQuery!$A$171:$FZ$185,V$1)","v":5},{"$f":"VLOOKUP(DropDownList!$B$47,CntyQuery!$A$171:$FZ$185,W$1)","v":538.22},{"$f":"VLOOKUP(DropDownList!$B$47,CntyQuery!$A$171:$FZ$185,X$1)","v":566.1},{"$f":"VLOOKUP(DropDownList!$B$47,CntyQuery!$A$171:$FZ$185,Y$1)","v":581.54999999999995},{"$f":"VLOOKUP(DropDownList!$B$47,CntyQuery!$A$171:$FZ$185,Z$1)","v":322.35000000000002},{"$f":"VLOOKUP(DropDownList!$B$47,CntyQuery!$A$171:$FZ$185,AA$1)","v":98},{"$f":"VLOOKUP(DropDownList!$B$47,CntyQuery!$A$171:$FZ$185,AB$1)","v":75},{"$f":"VLOOKUP(DropDownList!$B$47,CntyQuery!$A$171:$FZ$185,AC$1)","v":"n"},{"$f":"VLOOKUP(DropDownList!$B$47,CntyQuery!$A$171:$FZ$185,AD$1)","v":"n"},{"$f":"VLOOKUP(DropDownList!$B$47,CntyQuery!$A$171:$FZ$185,AE$1)","v":548.75},{"$f":"VLOOKUP(DropDownList!$B$47,CntyQuery!$A$171:$FZ$185,AF$1)","v":614.73},{"$f":"VLOOKUP(DropDownList!$B$47,CntyQuery!$A$171:$FZ$185,AG$1)","v":"n"},{"$f":"VLOOKUP(DropDownList!$B$47,CntyQuery!$A$171:$FZ$185,AH$1)","v":"n"},{"$f":"VLOOKUP(DropDownList!$B$47,CntyQuery!$A$171:$FZ$185,AI$1)","v":102},{"$f":"VLOOKUP(DropDownList!$B$47,CntyQuery!$A$171:$FZ$185,AJ$1)","v":81},{"$f":"VLOOKUP(DropDownList!$B$47,CntyQuery!$A$171:$FZ$185,AK$1)","v":76},{"$f":"VLOOKUP(DropDownList!$B$47,CntyQuery!$A$171:$FZ$185,AL$1)","v":6},{"$f":"VLOOKUP(DropDownList!$B$47,CntyQuery!$A$171:$FZ$185,AM$1)","v":582.30999999999995},{"$f":"VLOOKUP(DropDownList!$B$47,CntyQuery!$A$171:$FZ$185,AN$1)","v":632.73},{"$f":"VLOOKUP(DropDownList!$B$47,CntyQuery!$A$171:$FZ$185,AO$1)","v":606.52},{"$f":"VLOOKUP(DropDownList!$B$47,CntyQuery!$A$171:$FZ$185,AP$1)","v":993.67},{"$f":"VLOOKUP(DropDownList!$B$47,CntyQuery!$A$171:$FZ$185,AQ$1)","v":99},{"$f":"VLOOKUP(DropDownList!$B$47,CntyQuery!$A$171:$FZ$185,AR$1)","v":78},{"$f":"VLOOKUP(DropDownList!$B$47,CntyQuery!$A$171:$FZ$185,AS$1)","v":72},{"$f":"VLOOKUP(DropDownList!$B$47,CntyQuery!$A$171:$FZ$185,AT$1)","v":6},{"$f":"VLOOKUP(DropDownList!$B$47,CntyQuery!$A$171:$FZ$185,AU$1)","v":663.38},{"$f":"VLOOKUP(DropDownList!$B$47,CntyQuery!$A$171:$FZ$185,AV$1)","v":744.67},{"$f":"VLOOKUP(DropDownList!$B$47,CntyQuery!$A$171:$FZ$185,AW$1)","v":654.92999999999995},{"$f":"VLOOKUP(DropDownList!$B$47,CntyQuery!$A$171:$FZ$185,AX$1)","v":1788.76},{"$f":"VLOOKUP(DropDownList!$B$47,CntyQuery!$A$171:$FZ$185,AY$1)","v":97},{"$f":"VLOOKUP(DropDownList!$B$47,CntyQuery!$A$171:$FZ$185,AZ$1)","v":74},{"$f":"VLOOKUP(DropDownList!$B$47,CntyQuery!$A$171:$FZ$185,BA$1)","v":68},{"$f":"VLOOKUP(DropDownList!$B$47,CntyQuery!$A$171:$FZ$185,BB$1)","v":7},{"$f":"VLOOKUP(DropDownList!$B$47,CntyQuery!$A$171:$FZ$185,BC$1)","v":653},{"$f":"VLOOKUP(DropDownList!$B$47,CntyQuery!$A$171:$FZ$185,BD$1)","v":733.26},{"$f":"VLOOKUP(DropDownList!$B$47,CntyQuery!$A$171:$FZ$185,BE$1)","v":658.76},{"$f":"VLOOKUP(DropDownList!$B$47,CntyQuery!$A$171:$FZ$185,BF$1)","v":1508.89},{"$f":"VLOOKUP(DropDownList!$B$47,CntyQuery!$A$171:$FZ$185,BG$1)","v":88},{"$f":"VLOOKUP(DropDownList!$B$47,CntyQuery!$A$171:$FZ$185,BH$1)","v":70},{"$f":"VLOOKUP(DropDownList!$B$47,CntyQuery!$A$171:$FZ$185,BI$1)","v":65},{"$f":"VLOOKUP(DropDownList!$B$47,CntyQuery!$A$171:$FZ$185,BJ$1)","v":5},{"$f":"VLOOKUP(DropDownList!$B$47,CntyQuery!$A$171:$FZ$185,BK$1)","v":694.94},{"$f":"VLOOKUP(DropDownList!$B$47,CntyQuery!$A$171:$FZ$185,BL$1)","v":770.13},{"$f":"VLOOKUP(DropDownList!$B$47,CntyQuery!$A$171:$FZ$185,BM$1)","v":770.11},{"$f":"VLOOKUP(DropDownList!$B$47,CntyQuery!$A$171:$FZ$185,BN$1)","v":770.35},{"$f":"VLOOKUP(DropDownList!$B$47,CntyQuery!$A$171:$FZ$185,BO$1)","v":107},{"$f":"VLOOKUP(DropDownList!$B$47,CntyQuery!$A$171:$FZ$185,BP$1)","v":92},{"$f":"VLOOKUP(DropDownList!$B$47,CntyQuery!$A$171:$FZ$185,BQ$1)","v":"n"},{"$f":"VLOOKUP(DropDownList!$B$47,CntyQuery!$A$171:$FZ$185,BR$1)","v":"n"},{"$f":"VLOOKUP(DropDownList!$B$47,CntyQuery!$A$171:$FZ$185,BS$1)","v":718.2},{"$f":"VLOOKUP(DropDownList!$B$47,CntyQuery!$A$171:$FZ$185,BT$1)","v":782.26},{"$f":"VLOOKUP(DropDownList!$B$47,CntyQuery!$A$171:$FZ$185,BU$1)","v":"n"},{"$f":"VLOOKUP(DropDownList!$B$47,CntyQuery!$A$171:$FZ$185,BV$1)","v":"n"},{"$f":"VLOOKUP(DropDownList!$B$47,CntyQuery!$A$171:$FZ$185,BW$1)","v":83},{"$f":"VLOOKUP(DropDownList!$B$47,CntyQuery!$A$171:$FZ$185,BX$1)","v":69},{"$f":"VLOOKUP(DropDownList!$B$47,CntyQuery!$A$171:$FZ$185,BY$1)","v":64},{"$f":"VLOOKUP(DropDownList!$B$47,CntyQuery!$A$171:$FZ$185,BZ$1)","v":5},{"$f":"VLOOKUP(DropDownList!$B$47,CntyQuery!$A$171:$FZ$185,CA$1)","v":974.89},{"$f":"VLOOKUP(DropDownList!$B$47,CntyQuery!$A$171:$FZ$185,CB$1)","v":1111.9100000000001},{"$f":"VLOOKUP(DropDownList!$B$47,CntyQuery!$A$171:$FZ$185,CC$1)","v":1138.97},{"$f":"VLOOKUP(DropDownList!$B$47,CntyQuery!$A$171:$FZ$185,CD$1)","v":746.85},{"$f":"VLOOKUP(DropDownList!$B$47,CntyQuery!$A$171:$FZ$185,CE$1)","v":91},{"$f":"VLOOKUP(DropDownList!$B$47,CntyQuery!$A$171:$FZ$185,CF$1)","v":77},{"$f":"VLOOKUP(DropDownList!$B$47,CntyQuery!$A$171:$FZ$185,CG$1)","v":69},{"$f":"VLOOKUP(DropDownList!$B$47,CntyQuery!$A$171:$FZ$185,CH$1)","v":7},{"$f":"VLOOKUP(DropDownList!$B$47,CntyQuery!$A$171:$FZ$185,CI$1)","v":637.09},{"$f":"VLOOKUP(DropDownList!$B$47,CntyQuery!$A$171:$FZ$185,CJ$1)","v":698.52},{"$f":"VLOOKUP(DropDownList!$B$47,CntyQuery!$A$171:$FZ$185,CK$1)","v":723.71},{"$f":"VLOOKUP(DropDownList!$B$47,CntyQuery!$A$171:$FZ$185,CL$1)","v":463.81},{"$f":"VLOOKUP(DropDownList!$B$47,CntyQuery!$A$171:$FZ$185,CM$1)","v":95},{"$f":"VLOOKUP(DropDownList!$B$47,CntyQuery!$A$171:$FZ$185,CN$1)","v":81},{"$f":"VLOOKUP(DropDownList!$B$47,CntyQuery!$A$171:$FZ$185,CO$1)","v":73},{"$f":"VLOOKUP(DropDownList!$B$47,CntyQuery!$A$171:$FZ$185,CP$1)","v":8},{"$f":"VLOOKUP(DropDownList!$B$47,CntyQuery!$A$171:$FZ$185,CQ$1)","v":870.72},{"$f":"VLOOKUP(DropDownList!$B$47,CntyQuery!$A$171:$FZ$185,CR$1)","v":957.56},{"$f":"VLOOKUP(DropDownList!$B$47,CntyQuery!$A$171:$FZ$185,CS$1)","v":1035.69},{"$f":"VLOOKUP(DropDownList!$B$47,CntyQuery!$A$171:$FZ$185,CT$1)","v":253.57},{"$f":"VLOOKUP(DropDownList!$B$47,CntyQuery!$A$171:$FZ$185,CU$1)","v":103},{"$f":"VLOOKUP(DropDownList!$B$47,CntyQuery!$A$171:$FZ$185,CV$1)","v":84},{"$f":"VLOOKUP(DropDownList!$B$47,CntyQuery!$A$171:$FZ$185,CW$1)","v":"n"},{"$f":"VLOOKUP(DropDownList!$B$47,CntyQuery!$A$171:$FZ$185,CX$1)","v":"n"},{"$f":"VLOOKUP(DropDownList!$B$47,CntyQuery!$A$171:$FZ$185,CY$1)","v":836.51},{"$f":"VLOOKUP(DropDownList!$B$47,CntyQuery!$A$171:$FZ$185,CZ$1)","v":923.65},{"$f":"VLOOKUP(DropDownList!$B$47,CntyQuery!$A$171:$FZ$185,DA$1)","v":"n"},{"$f":"VLOOKUP(DropDownList!$B$47,CntyQuery!$A$171:$FZ$185,DB$1)","v":"n"},{"$f":"VLOOKUP(DropDownList!$B$47,CntyQuery!$A$171:$FZ$185,DC$1)","v":104},{"$f":"VLOOKUP(DropDownList!$B$47,CntyQuery!$A$171:$FZ$185,DD$1)","v":86},{"$f":"VLOOKUP(DropDownList!$B$47,CntyQuery!$A$171:$FZ$185,DE$1)","v":73},{"$f":"VLOOKUP(DropDownList!$B$47,CntyQuery!$A$171:$FZ$185,DF$1)","v":13},{"$f":"VLOOKUP(DropDownList!$B$47,CntyQuery!$A$171:$FZ$185,DG$1)","v":935.72},{"$f":"VLOOKUP(DropDownList!$B$47,CntyQuery!$A$171:$FZ$185,DH$1)","v":1034.3499999999999},{"$f":"VLOOKUP(DropDownList!$B$47,CntyQuery!$A$171:$FZ$185,DI$1)","v":1150.56},{"$f":"VLOOKUP(DropDownList!$B$47,CntyQuery!$A$171:$FZ$185,DJ$1)","v":369.51},{"$f":"VLOOKUP(DropDownList!$B$47,CntyQuery!$A$171:$FZ$185,DK$1)","v":"106"},{"$f":"VLOOKUP(DropDownList!$B$47,CntyQuery!$A$171:$FZ$185,DL$1)","v":"89"},{"$f":"VLOOKUP(DropDownList!$B$47,CntyQuery!$A$171:$FZ$185,DM$1)","v":"73"},{"$f":"VLOOKUP(DropDownList!$B$47,CntyQuery!$A$171:$FZ$185,DN$1)","v":"16"},{"$f":"VLOOKUP(DropDownList!$B$47,CntyQuery!$A$171:$FZ$185,DO$1)","v":"916.47"},{"$f":"VLOOKUP(DropDownList!$B$47,CntyQuery!$A$171:$FZ$185,DP$1)","v":"992.96"},{"$f":"VLOOKUP(DropDownList!$B$47,CntyQuery!$A$171:$FZ$185,DQ$1)","v":"1116.08"},{"$f":"VLOOKUP(DropDownList!$B$47,CntyQuery!$A$171:$FZ$185,DR$1)","v":"422.03"},{"$f":"VLOOKUP(DropDownList!$B$47,CntyQuery!$A$171:$FZ$185,DS$1)","v":124},{"$f":"VLOOKUP(DropDownList!$B$47,CntyQuery!$A$171:$FZ$185,DT$1)","v":107},{"$f":"VLOOKUP(DropDownList!$B$47,CntyQuery!$A$171:$FZ$185,DU$1)","v":82},{"$f":"VLOOKUP(DropDownList!$B$47,CntyQuery!$A$171:$FZ$185,DV$1)","v":25},{"$f":"VLOOKUP(DropDownList!$B$47,CntyQuery!$A$171:$FZ$185,DW$1)","v":673.64},{"$f":"VLOOKUP(DropDownList!$B$47,CntyQuery!$A$171:$FZ$185,DX$1)","v":698.45},{"$f":"VLOOKUP(DropDownList!$B$47,CntyQuery!$A$171:$FZ$185,DY$1)","v":783.75},{"$f":"VLOOKUP(DropDownList!$B$47,CntyQuery!$A$171:$FZ$185,DZ$1)","v":422.29},{"$f":"VLOOKUP(DropDownList!$B$47,CntyQuery!$A$171:$FZ$185,EA$1)","v":119},{"$f":"VLOOKUP(DropDownList!$B$47,CntyQuery!$A$171:$FZ$185,EB$1)","v":100},{"$f":"VLOOKUP(DropDownList!$B$47,CntyQuery!$A$171:$FZ$185,EC$1)","v":80},{"$f":"VLOOKUP(DropDownList!$B$47,CntyQuery!$A$171:$FZ$185,ED$1)","v":20},{"$f":"VLOOKUP(DropDownList!$B$47,CntyQuery!$A$171:$FZ$185,EE$1)","v":727.47},{"$f":"VLOOKUP(DropDownList!$B$47,CntyQuery!$A$171:$FZ$185,EF$1)","v":767.13},{"$f":"VLOOKUP(DropDownList!$B$47,CntyQuery!$A$171:$FZ$185,EG$1)","v":855.47},{"$f":"VLOOKUP(DropDownList!$B$47,CntyQuery!$A$171:$FZ$185,EH$1)","v":416.7},{"$f":"VLOOKUP(DropDownList!$B$47,CntyQuery!$A$171:$FZ$185,EI$1)","v":117},{"$f":"VLOOKUP(DropDownList!$B$47,CntyQuery!$A$171:$FZ$185,EJ$1)","v":98},{"$f":"VLOOKUP(DropDownList!$B$47,CntyQuery!$A$171:$FZ$185,EK$1)","v":86},{"$f":"VLOOKUP(DropDownList!$B$47,CntyQuery!$A$171:$FZ$185,EL$1)","v":12},{"$f":"VLOOKUP(DropDownList!$B$47,CntyQuery!$A$171:$FZ$185,EM$1)","v":727.25},{"$f":"VLOOKUP(DropDownList!$B$47,CntyQuery!$A$171:$FZ$185,EN$1)","v":760.55},{"$f":"VLOOKUP(DropDownList!$B$47,CntyQuery!$A$171:$FZ$185,EO$1)","v":821},{"$f":"VLOOKUP(DropDownList!$B$47,CntyQuery!$A$171:$FZ$185,EP$1)","v":329.08},{"$f":"VLOOKUP(DropDownList!$B$47,CntyQuery!$A$171:$FZ$185,EQ$1)","v":112},{"$f":"VLOOKUP(DropDownList!$B$47,CntyQuery!$A$171:$FZ$185,ER$1)","v":95},{"$f":"VLOOKUP(DropDownList!$B$47,CntyQuery!$A$171:$FZ$185,ES$1)","v":17},{"$f":"VLOOKUP(DropDownList!$B$47,CntyQuery!$A$171:$FZ$185,ET$1)","v":83},{"$f":"VLOOKUP(DropDownList!$B$47,CntyQuery!$A$171:$FZ$185,EU$1)","v":12},{"$f":"VLOOKUP(DropDownList!$B$47,CntyQuery!$A$171:$FZ$185,EV$1)","v":979.14},{"$f":"VLOOKUP(DropDownList!$B$47,CntyQuery!$A$171:$FZ$185,EW$1)","v":829.52},{"$f":"VLOOKUP(DropDownList!$B$47,CntyQuery!$A$171:$FZ$185,EX$1)","v":1814.8},{"$f":"VLOOKUP(DropDownList!$B$47,CntyQuery!$A$171:$FZ$185,EY$1)","v":896.99},{"$f":"VLOOKUP(DropDownList!$B$47,CntyQuery!$A$171:$FZ$185,EZ$1)","v":367.87}]
[]
[]
["Labor Force and Unemployment Rate","Query Name: DPQryUnempByCnty"]
["PlaceName","LaborForce1990","LaborForce1991","LaborForce1992","LaborForce1993","LaborForce1994","LaborForce1995","LaborForce1996","LaborForce1997","LaborForce1998","LaborForce1999","LaborForce2000","LaborForce2001","LaborForce2002","LaborForce2003","NumberEmployed1990","NumberEmployed1991","NumberEmployed1992","NumberEmployed1993","NumberEmployed1994","NumberEmployed1995","NumberEmployed1996","NumberEmployed1997","NumberEmployed1998","NumberEmployed1999","NumberEmployed2000","NumberEmployed2001","NumberEmployed2002","NumberEmployed2003","UnempRate1990","UnempRate1991","UnempRate1992","UnempRate1993","UnempRate1994","UnempRate1995","UnempRate1996","UnempRate1997","UnempRate1998","UnempRate1999","UnempRate2000","UnempRate2001","UnempRate2002","UnempRate2003","NumbUnEmployed1990","NumbUnEmployed1991","NumbUnEmployed1992","NumbUnEmployed1993","NumbUnEmployed1994","NumbUnEmployed1995","NumbUnEmployed1996","NumbUnEmployed1997","NumbUnEmployed1998","NumbUnEmployed1999","NumbUnEmployed2000","NumbUnEmployed2001","NumbUnEmployed2002","NumbUnEmployed2003","LaborForce2004","NumberEmployed2004","UnempRate2004","NumbUnEmployed2004","LaborForce2005","NumberEmployed2005","NumbUnEmp2005","UnempRate2005","LaborForce2006","NumberEmployed2006","NumbUnEmp2006","UnempRate2006","LaborForce2007","NumberEmployed2007","NumbUnEmp2007","UnempRate2007","LaborForce2008","NumberEmployed2008","NumbUnEmp2008","UnempRate2008","LaborForce2009","NumberEmployed2009","NumbUnEmp2009","UnempRate2009"]
[{"$f":"VLOOKUP(DropDownList!$B$47,CntyQuery!$A$220:$CC$229,A$1)","v":{"$error":"#N/A"}},{"$f":"VLOOKUP(DropDownList!$B$47,CntyQuery!$A$220:$CC$229,B$1)","v":{"$error":"#N/A"}},{"$f":"VLOOKUP(DropDownList!$B$47,CntyQuery!$A$220:$CC$229,C$1)","v":{"$error":"#N/A"}},{"$f":"VLOOKUP(DropDownList!$B$47,CntyQuery!$A$220:$CC$229,D$1)","v":{"$error":"#N/A"}},{"$f":"VLOOKUP(DropDownList!$B$47,CntyQuery!$A$220:$CC$229,E$1)","v":{"$error":"#N/A"}},{"$f":"VLOOKUP(DropDownList!$B$47,CntyQuery!$A$220:$CC$229,F$1)","v":{"$error":"#N/A"}},{"$f":"VLOOKUP(DropDownList!$B$47,CntyQuery!$A$220:$CC$229,G$1)","v":{"$error":"#N/A"}},{"$f":"VLOOKUP(DropDownList!$B$47,CntyQuery!$A$220:$CC$229,H$1)","v":{"$error":"#N/A"}},{"$f":"VLOOKUP(DropDownList!$B$47,CntyQuery!$A$220:$CC$229,I$1)","v":{"$error":"#N/A"}},{"$f":"VLOOKUP(DropDownList!$B$47,CntyQuery!$A$220:$CC$229,J$1)","v":{"$error":"#N/A"}},{"$f":"VLOOKUP(DropDownList!$B$47,CntyQuery!$A$220:$CC$229,K$1)","v":{"$error":"#N/A"}},{"$f":"VLOOKUP(DropDownList!$B$47,CntyQuery!$A$220:$CC$229,L$1)","v":{"$error":"#N/A"}},{"$f":"VLOOKUP(DropDownList!$B$47,CntyQuery!$A$220:$CC$229,M$1)","v":{"$error":"#N/A"}},{"$f":"VLOOKUP(DropDownList!$B$47,CntyQuery!$A$220:$CC$229,N$1)","v":{"$error":"#N/A"}},{"$f":"VLOOKUP(DropDownList!$B$47,CntyQuery!$A$220:$CC$229,O$1)","v":{"$error":"#N/A"}},{"$f":"VLOOKUP(DropDownList!$B$47,CntyQuery!$A$220:$CC$229,P$1)","v":{"$error":"#N/A"}},{"$f":"VLOOKUP(DropDownList!$B$47,CntyQuery!$A$220:$CC$229,Q$1)","v":{"$error":"#N/A"}},{"$f":"VLOOKUP(DropDownList!$B$47,CntyQuery!$A$220:$CC$229,R$1)","v":{"$error":"#N/A"}},{"$f":"VLOOKUP(DropDownList!$B$47,CntyQuery!$A$220:$CC$229,S$1)","v":{"$error":"#N/A"}},{"$f":"VLOOKUP(DropDownList!$B$47,CntyQuery!$A$220:$CC$229,T$1)","v":{"$error":"#N/A"}},{"$f":"VLOOKUP(DropDownList!$B$47,CntyQuery!$A$220:$CC$229,U$1)","v":{"$error":"#N/A"}},{"$f":"VLOOKUP(DropDownList!$B$47,CntyQuery!$A$220:$CC$229,V$1)","v":{"$error":"#N/A"}},{"$f":"VLOOKUP(DropDownList!$B$47,CntyQuery!$A$220:$CC$229,W$1)","v":{"$error":"#N/A"}},{"$f":"VLOOKUP(DropDownList!$B$47,CntyQuery!$A$220:$CC$229,X$1)","v":{"$error":"#N/A"}},{"$f":"VLOOKUP(DropDownList!$B$47,CntyQuery!$A$220:$CC$229,Y$1)","v":{"$error":"#N/A"}},{"$f":"VLOOKUP(DropDownList!$B$47,CntyQuery!$A$220:$CC$229,Z$1)","v":{"$error":"#N/A"}},{"$f":"VLOOKUP(DropDownList!$B$47,CntyQuery!$A$220:$CC$229,AA$1)","v":{"$error":"#N/A"}},{"$f":"VLOOKUP(DropDownList!$B$47,CntyQuery!$A$220:$CC$229,AB$1)","v":{"$error":"#N/A"}},{"$f":"VLOOKUP(DropDownList!$B$47,CntyQuery!$A$220:$CC$229,AC$1)","v":{"$error":"#N/A"}},{"$f":"VLOOKUP(DropDownList!$B$47,CntyQuery!$A$220:$CC$229,AD$1)","v":{"$error":"#N/A"}},{"$f":"VLOOKUP(DropDownList!$B$47,CntyQuery!$A$220:$CC$229,AE$1)","v":{"$error":"#N/A"}},{"$f":"VLOOKUP(DropDownList!$B$47,CntyQuery!$A$220:$CC$229,AF$1)","v":{"$error":"#N/A"}},{"$f":"VLOOKUP(DropDownList!$B$47,CntyQuery!$A$220:$CC$229,AG$1)","v":{"$error":"#N/A"}},{"$f":"VLOOKUP(DropDownList!$B$47,CntyQuery!$A$220:$CC$229,AH$1)","v":{"$error":"#N/A"}},{"$f":"VLOOKUP(DropDownList!$B$47,CntyQuery!$A$220:$CC$229,AI$1)","v":{"$error":"#N/A"}},{"$f":"VLOOKUP(DropDownList!$B$47,CntyQuery!$A$220:$CC$229,AJ$1)","v":{"$error":"#N/A"}},{"$f":"VLOOKUP(DropDownList!$B$47,CntyQuery!$A$220:$CC$229,AK$1)","v":{"$error":"#N/A"}},{"$f":"VLOOKUP(DropDownList!$B$47,CntyQuery!$A$220:$CC$229,AL$1)","v":{"$error":"#N/A"}},{"$f":"VLOOKUP(DropDownList!$B$47,CntyQuery!$A$220:$CC$229,AM$1)","v":{"$error":"#N/A"}},{"$f":"VLOOKUP(DropDownList!$B$47,CntyQuery!$A$220:$CC$229,AN$1)","v":{"$error":"#N/A"}},{"$f":"VLOOKUP(DropDownList!$B$47,CntyQuery!$A$220:$CC$229,AO$1)","v":{"$error":"#N/A"}},{"$f":"VLOOKUP(DropDownList!$B$47,CntyQuery!$A$220:$CC$229,AP$1)","v":{"$error":"#N/A"}},{"$f":"VLOOKUP(DropDownList!$B$47,CntyQuery!$A$220:$CC$229,AQ$1)","v":{"$error":"#N/A"}},{"$f":"VLOOKUP(DropDownList!$B$47,CntyQuery!$A$220:$CC$229,AR$1)","v":{"$error":"#N/A"}},{"$f":"VLOOKUP(DropDownList!$B$47,CntyQuery!$A$220:$CC$229,AS$1)","v":{"$error":"#N/A"}},{"$f":"VLOOKUP(DropDownList!$B$47,CntyQuery!$A$220:$CC$229,AT$1)","v":{"$error":"#N/A"}},{"$f":"VLOOKUP(DropDownList!$B$47,CntyQuery!$A$220:$CC$229,AU$1)","v":{"$error":"#N/A"}},{"$f":"VLOOKUP(DropDownList!$B$47,CntyQuery!$A$220:$CC$229,AV$1)","v":{"$error":"#N/A"}},{"$f":"VLOOKUP(DropDownList!$B$47,CntyQuery!$A$220:$CC$229,AW$1)","v":{"$error":"#N/A"}},{"$f":"VLOOKUP(DropDownList!$B$47,CntyQuery!$A$220:$CC$229,AX$1)","v":{"$error":"#N/A"}},{"$f":"VLOOKUP(DropDownList!$B$47,CntyQuery!$A$220:$CC$229,AY$1)","v":{"$error":"#N/A"}},{"$f":"VLOOKUP(DropDownList!$B$47,CntyQuery!$A$220:$CC$229,AZ$1)","v":{"$error":"#N/A"}},{"$f":"VLOOKUP(DropDownList!$B$47,CntyQuery!$A$220:$CC$229,BA$1)","v":{"$error":"#N/A"}},{"$f":"VLOOKUP(DropDownList!$B$47,CntyQuery!$A$220:$CC$229,BB$1)","v":{"$error":"#N/A"}},{"$f":"VLOOKUP(DropDownList!$B$47,CntyQuery!$A$220:$CC$229,BC$1)","v":{"$error":"#N/A"}},{"$f":"VLOOKUP(DropDownList!$B$47,CntyQuery!$A$220:$CC$229,BD$1)","v":{"$error":"#N/A"}},{"$f":"VLOOKUP(DropDownList!$B$47,CntyQuery!$A$220:$CC$229,BE$1)","v":{"$error":"#N/A"}},{"$f":"VLOOKUP(DropDownList!$B$47,CntyQuery!$A$220:$CC$229,BF$1)","v":{"$error":"#N/A"}},{"$f":"VLOOKUP(DropDownList!$B$47,CntyQuery!$A$220:$CC$229,BG$1)","v":{"$error":"#N/A"}},{"$f":"VLOOKUP(DropDownList!$B$47,CntyQuery!$A$220:$CC$229,BH$1)","v":{"$error":"#N/A"}},{"$f":"VLOOKUP(DropDownList!$B$47,CntyQuery!$A$220:$CC$229,BI$1)","v":{"$error":"#N/A"}},{"$f":"VLOOKUP(DropDownList!$B$47,CntyQuery!$A$220:$CC$229,BJ$1)","v":{"$error":"#N/A"}},{"$f":"VLOOKUP(DropDownList!$B$47,CntyQuery!$A$220:$CC$229,BK$1)","v":{"$error":"#N/A"}},{"$f":"VLOOKUP(DropDownList!$B$47,CntyQuery!$A$220:$CC$229,BL$1)","v":{"$error":"#N/A"}},{"$f":"VLOOKUP(DropDownList!$B$47,CntyQuery!$A$220:$CC$229,BM$1)","v":{"$error":"#N/A"}},{"$f":"VLOOKUP(DropDownList!$B$47,CntyQuery!$A$220:$CC$229,BN$1)","v":{"$error":"#N/A"}},{"$f":"VLOOKUP(DropDownList!$B$47,CntyQuery!$A$220:$CC$229,BO$1)","v":{"$error":"#N/A"}},{"$f":"VLOOKUP(DropDownList!$B$47,CntyQuery!$A$220:$CC$229,BP$1)","v":{"$error":"#N/A"}},{"$f":"VLOOKUP(DropDownList!$B$47,CntyQuery!$A$220:$CC$229,BQ$1)","v":{"$error":"#N/A"}},{"$f":"VLOOKUP(DropDownList!$B$47,CntyQuery!$A$220:$CC$229,BR$1)","v":{"$error":"#N/A"}},{"$f":"VLOOKUP(DropDownList!$B$47,CntyQuery!$A$220:$CC$229,BS$1)","v":{"$error":"#N/A"}},{"$f":"VLOOKUP(DropDownList!$B$47,CntyQuery!$A$220:$CC$229,BT$1)","v":{"$error":"#N/A"}},{"$f":"VLOOKUP(DropDownList!$B$47,CntyQuery!$A$220:$CC$229,BU$1)","v":{"$error":"#N/A"}},{"$f":"VLOOKUP(DropDownList!$B$47,CntyQuery!$A$220:$CC$229,BV$1)","v":{"$error":"#N/A"}},{"$f":"VLOOKUP(DropDownList!$B$47,CntyQuery!$A$220:$CC$229,BW$1)","v":{"$error":"#N/A"}},{"$f":"VLOOKUP(DropDownList!$B$47,CntyQuery!$A$220:$CC$229,BX$1)","v":{"$error":"#N/A"}},{"$f":"VLOOKUP(DropDownList!$B$47,CntyQuery!$A$220:$CC$229,BY$1)","v":{"$error":"#N/A"}},{"$f":"VLOOKUP(DropDownList!$B$47,CntyQuery!$A$220:$CC$229,BZ$1)","v":{"$error":"#N/A"}},{"$f":"VLOOKUP(DropDownList!$B$47,CntyQuery!$A$220:$CC$229,CA$1)","v":{"$error":"#N/A"}},{"$f":"VLOOKUP(DropDownList!$B$47,CntyQuery!$A$220:$CC$229,CB$1)","v":{"$error":"#N/A"}},{"$f":"VLOOKUP(DropDownList!$B$47,CntyQuery!$A$220:$CC$229,CC$1)","v":{"$error":"#N/A"}}]
[]
[null,null,null,null,null,null,null,null,null,null,null,null,{"$f":"IF((CntyDataLink!$BL$25)=\"n\",NA(),IF(VALUE(CntyDataLink!$BL$25)=\"\",NA(),VALUE(CntyDataLink!$BL$25)))","v":770.13}]
["Census 2000   -           Query Name:  TownAllQuery3",2,{"$f":"B33+1","v":3},{"$f":"C33+1","v":4},5,6,7,8,9,10,11,12,13,14,15,16,17,18,19,20,21,22,23,24,25,26,27,28,29,30,31,32,33,34,35,36,37,38,39,40,41,42,43,44,45,46,47,48,49,50,51,52,53,54,55,56,57,58,59,60,61,62,63,64,65,66,67,{"$f":"BO33+1","v":68},69,70,71,72,73,74,75,76,77,78,79,80,81,82,83,84,85,86,87,88,89,90,91,92,93,94,95,96,97,98,99,100,101,102]
["NAME","COUNTY","LOGRECNO","COUSUB","TRACT","AREALAND","AREAWATR","POP100","HU100","2000Population","PopOfOneRace","PopWhite","PopBlack","PopAmIndian","PopAsian","PopHawaiian","PopOtherRace","Pop2orMoreRaces","PopHispanicLatino","PopNotHispanicLatino","PopMale","PopMale<15","PopMale15to24","PopMale25to34","PopMale35to44","PopMale45to54","PopMale55to64","PopMale65to74","PopMale75to84","PopMale85andOver","PopFemale","PopFemale<15","PopFemale15to24","PopFemale25to34","PopFemale35t44","PopFemale45to54","PopFemale55to64","PopFemale65to74","PopFemale75to84","PopFemale85andOver","Households2000","PopInHH","AvgHHSize","HHs1Person","HHs2orMorePerson","HHsFamily","HHMarriedCoupleFam","HHSingleParentFam","HHsNonFamily","Families","PopInFam","AvgFamSize","TotHsUnits","OccHsUnits","OwnerOccHU","RenterOccHU","VctHsUnits","VctHUForRent","VctHUForSale","VctHUSeasonal","PopInOccHU","PopInOwnOccHU","PopInRntOccHU","AvgHHSize2","AvgHHSizOwnOcc","AvgHHSizRntOcc","OwnOccWhtHsHldr","OwnOccBlkHsHldr","OwnOccAmIHsHldr","OwnOccAsnHsHldr","OwnOccPIsHsHldr","OwnOccORHsHldr","OwnOcc2RcHsHldr","RntOccWhtHsHldr","RntOccBlkHsHldr","RntOccAmIHsHldr","RntOccAsnHsHldr","RntOccPIsHsHldr","RntOccORHsHldr","RntOcc2RcHsHldr","OwnOccHH15to24","OwnOccHH25to34","OwnOccHH35to44","OwnOccHH45to54","OwnOccHH55to64","OwnOccHH65to74","OwnOccHH75to84","OwnOccHH85Over","RntOccHH15to24","RntOccHH25to34","RntOccHH35to44","RntOccHH45to54","RntOccHH55to64","RntOccHH65to74","RntOccHH75to84","RntOccHH85Over","P27TotalPop","P27PopInHseHlds","P27PopInGrpQtrs","Median Age Total","Median Age (Male)","Median Age (Female)"]
[{"$f":"VLOOKUP(DropDownList!$B$47,CntyQryCensus!$A$4:$CW$46,A$1)","v":"Acworth"},{"$f":"VLOOKUP(DropDownList!$B$47,CntyQryCensus!$A$4:$CW$46,B$1)","v":"019"},{"$f":"VLOOKUP(DropDownList!$B$47,CntyQryCensus!$A$4:$CW$46,C$1)","v":"0035914"},{"$f":"VLOOKUP(DropDownList!$B$47,CntyQryCensus!$A$4:$CW$46,D$1)","v":"00260"},{"$f":"VLOOKUP(DropDownList!$B$47,CntyQryCensus!$A$4:$CW$46,E$1)","v":""},{"$f":"VLOOKUP(DropDownList!$B$47,CntyQryCensus!$A$4:$CW$46,F$1)","v":"     100723552"},{"$f":"VLOOKUP(DropDownList!$B$47,CntyQryCensus!$A$4:$CW$46,G$1)","v":"        634512"},{"$f":"VLOOKUP(DropDownList!$B$47,CntyQryCensus!$A$4:$CW$46,H$1)","v":836},{"$f":"VLOOKUP(DropDownList!$B$47,CntyQryCensus!$A$4:$CW$46,I$1)","v":"      512"},{"$f":"VLOOKUP(DropDownList!$B$47,CntyQryCensus!$A$4:$CW$46,J$1)","v":836},{"$f":"VLOOKUP(DropDownList!$B$47,CntyQryCensus!$A$4:$CW$46,K$1)","v":825},{"$f":"VLOOKUP(DropDownList!$B$47,CntyQryCensus!$A$4:$CW$46,L$1)","v":809},{"$f":"VLOOKUP(DropDownList!$B$47,CntyQryCensus!$A$4:$CW$46,M$1)","v":7},{"$f":"VLOOKUP(DropDownList!$B$47,CntyQryCensus!$A$4:$CW$46,N$1)","v":7},{"$f":"VLOOKUP(DropDownList!$B$47,CntyQryCensus!$A$4:$CW$46,O$1)","v":2},{"$f":"VLOOKUP(DropDownList!$B$47,CntyQryCensus!$A$4:$CW$46,P$1)","v":0},{"$f":"VLOOKUP(DropDownList!$B$47,CntyQryCensus!$A$4:$CW$46,Q$1)","v":0},{"$f":"VLOOKUP(DropDownList!$B$47,CntyQryCensus!$A$4:$CW$46,R$1)","v":11},{"$f":"VLOOKUP(DropDownList!$B$47,CntyQryCensus!$A$4:$CW$46,S$1)","v":9},{"$f":"VLOOKUP(DropDownList!$B$47,CntyQryCensus!$A$4:$CW$46,T$1)","v":827},{"$f":"VLOOKUP(DropDownList!$B$47,CntyQryCensus!$A$4:$CW$46,U$1)","v":421},{"$f":"VLOOKUP(DropDownList!$B$47,CntyQryCensus!$A$4:$CW$46,V$1)","v":89},{"$f":"VLOOKUP(DropDownList!$B$47,CntyQryCensus!$A$4:$CW$46,W$1)","v":42},{"$f":"VLOOKUP(DropDownList!$B$47,CntyQryCensus!$A$4:$CW$46,X$1)","v":32},{"$f":"VLOOKUP(DropDownList!$B$47,CntyQryCensus!$A$4:$CW$46,Y$1)","v":67},{"$f":"VLOOKUP(DropDownList!$B$47,CntyQryCensus!$A$4:$CW$46,Z$1)","v":83},{"$f":"VLOOKUP(DropDownList!$B$47,CntyQryCensus!$A$4:$CW$46,AA$1)","v":50},{"$f":"VLOOKUP(DropDownList!$B$47,CntyQryCensus!$A$4:$CW$46,AB$1)","v":40},{"$f":"VLOOKUP(DropDownList!$B$47,CntyQryCensus!$A$4:$CW$46,AC$1)","v":13},{"$f":"VLOOKUP(DropDownList!$B$47,CntyQryCensus!$A$4:$CW$46,AD$1)","v":5},{"$f":"VLOOKUP(DropDownList!$B$47,CntyQryCensus!$A$4:$CW$46,AE$1)","v":415},{"$f":"VLOOKUP(DropDownList!$B$47,CntyQryCensus!$A$4:$CW$46,AF$1)","v":86},{"$f":"VLOOKUP(DropDownList!$B$47,CntyQryCensus!$A$4:$CW$46,AG$1)","v":37},{"$f":"VLOOKUP(DropDownList!$B$47,CntyQryCensus!$A$4:$CW$46,AH$1)","v":30},{"$f":"VLOOKUP(DropDownList!$B$47,CntyQryCensus!$A$4:$CW$46,AI$1)","v":72},{"$f":"VLOOKUP(DropDownList!$B$47,CntyQryCensus!$A$4:$CW$46,AJ$1)","v":73},{"$f":"VLOOKUP(DropDownList!$B$47,CntyQryCensus!$A$4:$CW$46,AK$1)","v":48},{"$f":"VLOOKUP(DropDownList!$B$47,CntyQryCensus!$A$4:$CW$46,AL$1)","v":44},{"$f":"VLOOKUP(DropDownList!$B$47,CntyQryCensus!$A$4:$CW$46,AM$1)","v":19},{"$f":"VLOOKUP(DropDownList!$B$47,CntyQryCensus!$A$4:$CW$46,AN$1)","v":6},{"$f":"VLOOKUP(DropDownList!$B$47,CntyQryCensus!$A$4:$CW$46,AO$1)","v":318},{"$f":"VLOOKUP(DropDownList!$B$47,CntyQryCensus!$A$4:$CW$46,AP$1)","v":836},{"$f":"VLOOKUP(DropDownList!$B$47,CntyQryCensus!$A$4:$CW$46,AQ$1)","v":2.63},{"$f":"VLOOKUP(DropDownList!$B$47,CntyQryCensus!$A$4:$CW$46,AR$1)","v":63},{"$f":"VLOOKUP(DropDownList!$B$47,CntyQryCensus!$A$4:$CW$46,AS$1)","v":255},{"$f":"VLOOKUP(DropDownList!$B$47,CntyQryCensus!$A$4:$CW$46,AT$1)","v":234},{"$f":"VLOOKUP(DropDownList!$B$47,CntyQryCensus!$A$4:$CW$46,AU$1)","v":193},{"$f":"VLOOKUP(DropDownList!$B$47,CntyQryCensus!$A$4:$CW$46,AV$1)","v":41},{"$f":"VLOOKUP(DropDownList!$B$47,CntyQryCensus!$A$4:$CW$46,AW$1)","v":21},{"$f":"VLOOKUP(DropDownList!$B$47,CntyQryCensus!$A$4:$CW$46,AX$1)","v":234},{"$f":"VLOOKUP(DropDownList!$B$47,CntyQryCensus!$A$4:$CW$46,AY$1)","v":716},{"$f":"VLOOKUP(DropDownList!$B$47,CntyQryCensus!$A$4:$CW$46,AZ$1)","v":3.06},{"$f":"VLOOKUP(DropDownList!$B$47,CntyQryCensus!$A$4:$CW$46,BA$1)","v":512},{"$f":"VLOOKUP(DropDownList!$B$47,CntyQryCensus!$A$4:$CW$46,BB$1)","v":318},{"$f":"VLOOKUP(DropDownList!$B$47,CntyQryCensus!$A$4:$CW$46,BC$1)","v":267},{"$f":"VLOOKUP(DropDownList!$B$47,CntyQryCensus!$A$4:$CW$46,BD$1)","v":51},{"$f":"VLOOKUP(DropDownList!$B$47,CntyQryCensus!$A$4:$CW$46,BE$1)","v":194},{"$f":"VLOOKUP(DropDownList!$B$47,CntyQryCensus!$A$4:$CW$46,BF$1)","v":6},{"$f":"VLOOKUP(DropDownList!$B$47,CntyQryCensus!$A$4:$CW$46,BG$1)","v":1},{"$f":"VLOOKUP(DropDownList!$B$47,CntyQryCensus!$A$4:$CW$46,BH$1)","v":172},{"$f":"VLOOKUP(DropDownList!$B$47,CntyQryCensus!$A$4:$CW$46,BI$1)","v":836},{"$f":"VLOOKUP(DropDownList!$B$47,CntyQryCensus!$A$4:$CW$46,BJ$1)","v":682},{"$f":"VLOOKUP(DropDownList!$B$47,CntyQryCensus!$A$4:$CW$46,BK$1)","v":154},{"$f":"VLOOKUP(DropDownList!$B$47,CntyQryCensus!$A$4:$CW$46,BL$1)","v":2.63},{"$f":"VLOOKUP(DropDownList!$B$47,CntyQryCensus!$A$4:$CW$46,BM$1)","v":2.5499999999999998},{"$f":"VLOOKUP(DropDownList!$B$47,CntyQryCensus!$A$4:$CW$46,BN$1)","v":3.02},{"$f":"VLOOKUP(DropDownList!$B$47,CntyQryCensus!$A$4:$CW$46,BO$1)","v":263},{"$f":"VLOOKUP(DropDownList!$B$47,CntyQryCensus!$A$4:$CW$46,BP$1)","v":0},{"$f":"VLOOKUP(DropDownList!$B$47,CntyQryCensus!$A$4:$CW$46,BQ$1)","v":2},{"$f":"VLOOKUP(DropDownList!$B$47,CntyQryCensus!$A$4:$CW$46,BR$1)","v":2},{"$f":"VLOOKUP(DropDownList!$B$47,CntyQryCensus!$A$4:$CW$46,BS$1)","v":0},{"$f":"VLOOKUP(DropDownList!$B$47,CntyQryCensus!$A$4:$CW$46,BT$1)","v":0},{"$f":"VLOOKUP(DropDownList!$B$47,CntyQryCensus!$A$4:$CW$46,BU$1)","v":0},{"$f":"VLOOKUP(DropDownList!$B$47,CntyQryCensus!$A$4:$CW$46,BV$1)","v":45},{"$f":"VLOOKUP(DropDownList!$B$47,CntyQryCensus!$A$4:$CW$46,BW$1)","v":1},{"$f":"VLOOKUP(DropDownList!$B$47,CntyQryCensus!$A$4:$CW$46,BX$1)","v":0},{"$f":"VLOOKUP(DropDownList!$B$47,CntyQryCensus!$A$4:$CW$46,BY$1)","v":0},{"$f":"VLOOKUP(DropDownList!$B$47,CntyQryCensus!$A$4:$CW$46,BZ$1)","v":0},{"$f":"VLOOKUP(DropDownList!$B$47,CntyQryCensus!$A$4:$CW$46,CA$1)","v":0},{"$f":"VLOOKUP(DropDownList!$B$47,CntyQryCensus!$A$4:$CW$46,CB$1)","v":5},{"$f":"VLOOKUP(DropDownList!$B$47,CntyQryCensus!$A$4:$CW$46,CC$1)","v":2},{"$f":"VLOOKUP(DropDownList!$B$47,CntyQryCensus!$A$4:$CW$46,CD$1)","v":16},{"$f":"VLOOKUP(DropDownList!$B$47,CntyQryCensus!$A$4:$CW$46,CE$1)","v":53},{"$f":"VLOOKUP(DropDownList!$B$47,CntyQryCensus!$A$4:$CW$46,CF$1)","v":80},{"$f":"VLOOKUP(DropDownList!$B$47,CntyQryCensus!$A$4:$CW$46,CG$1)","v":45},{"$f":"VLOOKUP(DropDownList!$B$47,CntyQryCensus!$A$4:$CW$46,CH$1)","v":51},{"$f":"VLOOKUP(DropDownList!$B$47,CntyQryCensus!$A$4:$CW$46,CI$1)","v":14},{"$f":"VLOOKUP(DropDownList!$B$47,CntyQryCensus!$A$4:$CW$46,CJ$1)","v":6},{"$f":"VLOOKUP(DropDownList!$B$47,CntyQryCensus!$A$4:$CW$46,CK$1)","v":1},{"$f":"VLOOKUP(DropDownList!$B$47,CntyQryCensus!$A$4:$CW$46,CL$1)","v":10},{"$f":"VLOOKUP(DropDownList!$B$47,CntyQryCensus!$A$4:$CW$46,CM$1)","v":15},{"$f":"VLOOKUP(DropDownList!$B$47,CntyQryCensus!$A$4:$CW$46,CN$1)","v":6},{"$f":"VLOOKUP(DropDownList!$B$47,CntyQryCensus!$A$4:$CW$46,CO$1)","v":8},{"$f":"VLOOKUP(DropDownList!$B$47,CntyQryCensus!$A$4:$CW$46,CP$1)","v":6},{"$f":"VLOOKUP(DropDownList!$B$47,CntyQryCensus!$A$4:$CW$46,CQ$1)","v":2},{"$f":"VLOOKUP(DropDownList!$B$47,CntyQryCensus!$A$4:$CW$46,CR$1)","v":3},{"$f":"VLOOKUP(DropDownList!$B$47,CntyQryCensus!$A$4:$CW$46,CS$1)","v":836},{"$f":"VLOOKUP(DropDownList!$B$47,CntyQryCensus!$A$4:$CW$46,CT$1)","v":836},{"$f":"VLOOKUP(DropDownList!$B$47,CntyQryCensus!$A$4:$CW$46,CU$1)","v":0},{"$f":"VLOOKUP(DropDownList!$B$47,CntyQryCensus!$A$4:$CW$46,CV$1)","v":"Sullivan"},{"$f":"VLOOKUP(DropDownList!$B$47,CntyQryCensus!$A$4:$CW$46,CW$1)","v":36.6},{"$f":"VLOOKUP(DropDownList!$B$47,CntyQryCensus!$A$4:$CW$46,CX$1)","v":{"$error":"#REF!"}}]
[]
[]
["Census 2000 DemoProfile Sample Data Tables 2&3   -  DPTab23TownQry"]
["NAME","COUSUB","AREANAME","PopInSchool","Preschool","Kindergarten","Elementary","HighSchool","College","Pop25andOver","HighSchoolGrad","SomeCollege","AssocDegree","BachelDegree","GradDegree","HSGradorHigher","CollegeGradorHigher","Pop5to20yrs","Pop5to20wDis","Pop21to64","Pop21to64wDis","Pop65over","Pop65overwDis","Pop5yrsOver","SameHUin95","DiffHUinUSin95","HUinSameCountyin95","HUinSameStatein95","TotalPop","NativePop","NatPopBornUS","NatPopBornInStatRes","NatPopBornDiffState","NatPopBornOutUS","FornBornPop","FornPopEnt90to00","FornPopNatCit","FornPopNotCit","Households","HHIncLessThn10k","HHInc10to15K","HHInc15to25K","HHInc25to35K","HHInc35to50K","HHInc50to75K","HHInc75to100K","HHInc100to150K","HHInc150to200K","HHIncOver200K","MedianHHInc","HHwithPubAssistInc","MeanPubAssist","FamilyHH","FHHIncLessThn10k","FHHInc10to15K","FHHInc15to25K","FHHInc25to35K","FHHInc35to50K","FHHInc50to75K","FHHInc75to100K","FHHInc100to150K","FHHInc150to200K","FHHIncOver200K","MedianFHHInc","PerCapitaInc","PovStatFamilies","PovStatFHHwChilUnd18","PovStatFHHwChilUnd5","PovStFmalHH","DP3088","DP3089","PovStatIndiv","PovStatIndiv18yrOver","PovStatIndiv65yrOver","DP3093","DP3094","DP3095"]
[{"$f":"VLOOKUP(DropDownList!$B$47,CntyQryCensus!$A$53:$BY$96,A$1)","v":"Acworth"},{"$f":"VLOOKUP(DropDownList!$B$47,CntyQryCensus!$A$53:$BY$96,B$1)","v":"00260"},{"$f":"VLOOKUP(DropDownList!$B$47,CntyQryCensus!$A$53:$BY$96,C$1)","v":"Acworth town, Sullivan County, New Hampshire"},{"$f":"VLOOKUP(DropDownList!$B$47,CntyQryCensus!$A$53:$BY$96,D$1)","v":214},{"$f":"VLOOKUP(DropDownList!$B$47,CntyQryCensus!$A$53:$BY$96,E$1)","v":13},{"$f":"VLOOKUP(DropDownList!$B$47,CntyQryCensus!$A$53:$BY$96,F$1)","v":5},{"$f":"VLOOKUP(DropDownList!$B$47,CntyQryCensus!$A$53:$BY$96,G$1)","v":115},{"$f":"VLOOKUP(DropDownList!$B$47,CntyQryCensus!$A$53:$BY$96,H$1)","v":58},{"$f":"VLOOKUP(DropDownList!$B$47,CntyQryCensus!$A$53:$BY$96,I$1)","v":23},{"$f":"VLOOKUP(DropDownList!$B$47,CntyQryCensus!$A$53:$BY$96,J$1)","v":580},{"$f":"VLOOKUP(DropDownList!$B$47,CntyQryCensus!$A$53:$BY$96,K$1)","v":205},{"$f":"VLOOKUP(DropDownList!$B$47,CntyQryCensus!$A$53:$BY$96,L$1)","v":100},{"$f":"VLOOKUP(DropDownList!$B$47,CntyQryCensus!$A$53:$BY$96,M$1)","v":27},{"$f":"VLOOKUP(DropDownList!$B$47,CntyQryCensus!$A$53:$BY$96,N$1)","v":110},{"$f":"VLOOKUP(DropDownList!$B$47,CntyQryCensus!$A$53:$BY$96,O$1)","v":56},{"$f":"VLOOKUP(DropDownList!$B$47,CntyQryCensus!$A$53:$BY$96,P$1)","v":498},{"$f":"VLOOKUP(DropDownList!$B$47,CntyQryCensus!$A$53:$BY$96,Q$1)","v":166},{"$f":"VLOOKUP(DropDownList!$B$47,CntyQryCensus!$A$53:$BY$96,R$1)","v":197},{"$f":"VLOOKUP(DropDownList!$B$47,CntyQryCensus!$A$53:$BY$96,S$1)","v":2},{"$f":"VLOOKUP(DropDownList!$B$47,CntyQryCensus!$A$53:$BY$96,T$1)","v":472},{"$f":"VLOOKUP(DropDownList!$B$47,CntyQryCensus!$A$53:$BY$96,U$1)","v":84},{"$f":"VLOOKUP(DropDownList!$B$47,CntyQryCensus!$A$53:$BY$96,V$1)","v":130},{"$f":"VLOOKUP(DropDownList!$B$47,CntyQryCensus!$A$53:$BY$96,W$1)","v":29},{"$f":"VLOOKUP(DropDownList!$B$47,CntyQryCensus!$A$53:$BY$96,X$1)","v":799},{"$f":"VLOOKUP(DropDownList!$B$47,CntyQryCensus!$A$53:$BY$96,Y$1)","v":588},{"$f":"VLOOKUP(DropDownList!$B$47,CntyQryCensus!$A$53:$BY$96,Z$1)","v":203},{"$f":"VLOOKUP(DropDownList!$B$47,CntyQryCensus!$A$53:$BY$96,AA$1)","v":84},{"$f":"VLOOKUP(DropDownList!$B$47,CntyQryCensus!$A$53:$BY$96,AB$1)","v":119},{"$f":"VLOOKUP(DropDownList!$B$47,CntyQryCensus!$A$53:$BY$96,AC$1)","v":840},{"$f":"VLOOKUP(DropDownList!$B$47,CntyQryCensus!$A$53:$BY$96,AD$1)","v":812},{"$f":"VLOOKUP(DropDownList!$B$47,CntyQryCensus!$A$53:$BY$96,AE$1)","v":807},{"$f":"VLOOKUP(DropDownList!$B$47,CntyQryCensus!$A$53:$BY$96,AF$1)","v":283},{"$f":"VLOOKUP(DropDownList!$B$47,CntyQryCensus!$A$53:$BY$96,AG$1)","v":524},{"$f":"VLOOKUP(DropDownList!$B$47,CntyQryCensus!$A$53:$BY$96,AH$1)","v":5},{"$f":"VLOOKUP(DropDownList!$B$47,CntyQryCensus!$A$53:$BY$96,AI$1)","v":28},{"$f":"VLOOKUP(DropDownList!$B$47,CntyQryCensus!$A$53:$BY$96,AJ$1)","v":8},{"$f":"VLOOKUP(DropDownList!$B$47,CntyQryCensus!$A$53:$BY$96,AK$1)","v":12},{"$f":"VLOOKUP(DropDownList!$B$47,CntyQryCensus!$A$53:$BY$96,AL$1)","v":16},{"$f":"VLOOKUP(DropDownList!$B$47,CntyQryCensus!$A$53:$BY$96,AM$1)","v":325},{"$f":"VLOOKUP(DropDownList!$B$47,CntyQryCensus!$A$53:$BY$96,AN$1)","v":25},{"$f":"VLOOKUP(DropDownList!$B$47,CntyQryCensus!$A$53:$BY$96,AO$1)","v":12},{"$f":"VLOOKUP(DropDownList!$B$47,CntyQryCensus!$A$53:$BY$96,AP$1)","v":55},{"$f":"VLOOKUP(DropDownList!$B$47,CntyQryCensus!$A$53:$BY$96,AQ$1)","v":60},{"$f":"VLOOKUP(DropDownList!$B$47,CntyQryCensus!$A$53:$BY$96,AR$1)","v":70},{"$f":"VLOOKUP(DropDownList!$B$47,CntyQryCensus!$A$53:$BY$96,AS$1)","v":60},{"$f":"VLOOKUP(DropDownList!$B$47,CntyQryCensus!$A$53:$BY$96,AT$1)","v":26},{"$f":"VLOOKUP(DropDownList!$B$47,CntyQryCensus!$A$53:$BY$96,AU$1)","v":11},{"$f":"VLOOKUP(DropDownList!$B$47,CntyQryCensus!$A$53:$BY$96,AV$1)","v":2},{"$f":"VLOOKUP(DropDownList!$B$47,CntyQryCensus!$A$53:$BY$96,AW$1)","v":4},{"$f":"VLOOKUP(DropDownList!$B$47,CntyQryCensus!$A$53:$BY$96,AX$1)","v":37386},{"$f":"VLOOKUP(DropDownList!$B$47,CntyQryCensus!$A$53:$BY$96,AY$1)","v":5},{"$f":"VLOOKUP(DropDownList!$B$47,CntyQryCensus!$A$53:$BY$96,AZ$1)","v":2220},{"$f":"VLOOKUP(DropDownList!$B$47,CntyQryCensus!$A$53:$BY$96,BA$1)","v":237},{"$f":"VLOOKUP(DropDownList!$B$47,CntyQryCensus!$A$53:$BY$96,BB$1)","v":12},{"$f":"VLOOKUP(DropDownList!$B$47,CntyQryCensus!$A$53:$BY$96,BC$1)","v":6},{"$f":"VLOOKUP(DropDownList!$B$47,CntyQryCensus!$A$53:$BY$96,BD$1)","v":39},{"$f":"VLOOKUP(DropDownList!$B$47,CntyQryCensus!$A$53:$BY$96,BE$1)","v":35},{"$f":"VLOOKUP(DropDownList!$B$47,CntyQryCensus!$A$53:$BY$96,BF$1)","v":58},{"$f":"VLOOKUP(DropDownList!$B$47,CntyQryCensus!$A$53:$BY$96,BG$1)","v":46},{"$f":"VLOOKUP(DropDownList!$B$47,CntyQryCensus!$A$53:$BY$96,BH$1)","v":26},{"$f":"VLOOKUP(DropDownList!$B$47,CntyQryCensus!$A$53:$BY$96,BI$1)","v":11},{"$f":"VLOOKUP(DropDownList!$B$47,CntyQryCensus!$A$53:$BY$96,BJ$1)","v":0},{"$f":"VLOOKUP(DropDownList!$B$47,CntyQryCensus!$A$53:$BY$96,BK$1)","v":4},{"$f":"VLOOKUP(DropDownList!$B$47,CntyQryCensus!$A$53:$BY$96,BL$1)","v":41397},{"$f":"VLOOKUP(DropDownList!$B$47,CntyQryCensus!$A$53:$BY$96,BM$1)","v":18132},{"$f":"VLOOKUP(DropDownList!$B$47,CntyQryCensus!$A$53:$BY$96,BN$1)","v":24},{"$f":"VLOOKUP(DropDownList!$B$47,CntyQryCensus!$A$53:$BY$96,BO$1)","v":18},{"$f":"VLOOKUP(DropDownList!$B$47,CntyQryCensus!$A$53:$BY$96,BP$1)","v":8},{"$f":"VLOOKUP(DropDownList!$B$47,CntyQryCensus!$A$53:$BY$96,BQ$1)","v":7},{"$f":"VLOOKUP(DropDownList!$B$47,CntyQryCensus!$A$53:$BY$96,BR$1)","v":7},{"$f":"VLOOKUP(DropDownList!$B$47,CntyQryCensus!$A$53:$BY$96,BS$1)","v":2},{"$f":"VLOOKUP(DropDownList!$B$47,CntyQryCensus!$A$53:$BY$96,BT$1)","v":131},{"$f":"VLOOKUP(DropDownList!$B$47,CntyQryCensus!$A$53:$BY$96,BU$1)","v":75},{"$f":"VLOOKUP(DropDownList!$B$47,CntyQryCensus!$A$53:$BY$96,BV$1)","v":7},{"$f":"VLOOKUP(DropDownList!$B$47,CntyQryCensus!$A$53:$BY$96,BW$1)","v":55},{"$f":"VLOOKUP(DropDownList!$B$47,CntyQryCensus!$A$53:$BY$96,BX$1)","v":45},{"$f":"VLOOKUP(DropDownList!$B$47,CntyQryCensus!$A$53:$BY$96,BY$1)","v":28}]
[]
[]
["Census 2000 DemoProfile Sample Data Table 4   -  DPTab4TownQry"]
["NAME","COUSUB","TotHousingUnits","1UnitDet","1UnitAtt","2Units","3to4Units","5to9Units","10to19Units","20orMoreUnits","MobileHomes","BoatRvVan","SingleFamilyUnits","MultiFamUnits","MobileHomeUnits","YearBuilt99to00","YearBuilt95to98","YearBUilt90to94","YearBuilt80to89","YearBuilt70to79","YearBuilt60to69","YearBuilt40to59","YearBuilt39orEarlier","Rooms1","Rooms2","Rooms3","Rooms4","Rooms5","Rooms6","Rooms7","Rooms8","Rooms9orMore","MedianRooms","OccHU1","YrHHMvdIn99to00","YrHHMvdIn95to98","YrHHMvdIn90to94","YrHHMvdIn80to89","YrHHMvdIn70to79","YrHHMvdIn69orBefore","HeatFuelNatGas","HeatFuelBotGas","HeatFuelElectric","HeatFuelOil","HeatFuelCoal","HeatFuelWood","HeatFuelSolar","HeatFuelOther","HeatFuelNone","LackCompPlumb","LackCompKit","NoTelephone","OccHU","OccPerRm1orLess","OccPerRm1to1_5","OccPerRm1_5orMore","SpecOwnOccUnits","Value<50K","Value50to100K","Value100to150K","Value150to200K","Value200to300K","Value300to500K","Value500Kto1mil","Value1MilorMore","MedianValue","WithMortg","MnthOwnCst<300","MnthOwnCst300to500","MnthOwnCst500to700","MnthOwnCst700to1000","MnthOwnCst1000to1500","MnthOwnCst1500to2000","MnthOwnCst2000orMore","MediMnthOwnCst","NotMrtg","NotMrtgMediMnthOwnCst","OwnCst%HHInc<15","OwnCst%HHInc15to20","OwnCst%HHInc20to25","OwnCst%HHInc25to30","OwnCst%HHInc30to35","OwnCst%HHInc35orMor","NotComputed","SpecRntOccUnits","Rnt<200","Rnt200to300","Rnt300to500","Rnt500to750","Rnt750to1000","Rnt1000to1500","Rnt1500orMore","NoRent","MedianRent","Rnt%HHInc<15","Rnt%HHInc15to20","Rnt%HHInc20to25","Rnt%HHInc25to30","Rnt%HHInc30to35","Rnt%HHInc35orMore","Rnt%NotCompute"]
[{"$f":"VLOOKUP(DropDownList!$B$47,CntyQryCensus!$A$103:$CX$146,A$1)","v":"Acworth"},{"$f":"VLOOKUP(DropDownList!$B$47,CntyQryCensus!$A$103:$CX$146,B$1)","v":"00260"},{"$f":"VLOOKUP(DropDownList!$B$47,CntyQryCensus!$A$103:$CX$146,C$1)","v":515},{"$f":"VLOOKUP(DropDownList!$B$47,CntyQryCensus!$A$103:$CX$146,D$1)","v":458},{"$f":"VLOOKUP(DropDownList!$B$47,CntyQryCensus!$A$103:$CX$146,E$1)","v":4},{"$f":"VLOOKUP(DropDownList!$B$47,CntyQryCensus!$A$103:$CX$146,F$1)","v":9},{"$f":"VLOOKUP(DropDownList!$B$47,CntyQryCensus!$A$103:$CX$146,G$1)","v":0},{"$f":"VLOOKUP(DropDownList!$B$47,CntyQryCensus!$A$103:$CX$146,H$1)","v":0},{"$f":"VLOOKUP(DropDownList!$B$47,CntyQryCensus!$A$103:$CX$146,I$1)","v":0},{"$f":"VLOOKUP(DropDownList!$B$47,CntyQryCensus!$A$103:$CX$146,J$1)","v":0},{"$f":"VLOOKUP(DropDownList!$B$47,CntyQryCensus!$A$103:$CX$146,K$1)","v":40},{"$f":"VLOOKUP(DropDownList!$B$47,CntyQryCensus!$A$103:$CX$146,L$1)","v":4},{"$f":"VLOOKUP(DropDownList!$B$47,CntyQryCensus!$A$103:$CX$146,M$1)","v":458},{"$f":"VLOOKUP(DropDownList!$B$47,CntyQryCensus!$A$103:$CX$146,N$1)","v":13},{"$f":"VLOOKUP(DropDownList!$B$47,CntyQryCensus!$A$103:$CX$146,O$1)","v":44},{"$f":"VLOOKUP(DropDownList!$B$47,CntyQryCensus!$A$103:$CX$146,P$1)","v":5},{"$f":"VLOOKUP(DropDownList!$B$47,CntyQryCensus!$A$103:$CX$146,Q$1)","v":17},{"$f":"VLOOKUP(DropDownList!$B$47,CntyQryCensus!$A$103:$CX$146,R$1)","v":32},{"$f":"VLOOKUP(DropDownList!$B$47,CntyQryCensus!$A$103:$CX$146,S$1)","v":68},{"$f":"VLOOKUP(DropDownList!$B$47,CntyQryCensus!$A$103:$CX$146,T$1)","v":59},{"$f":"VLOOKUP(DropDownList!$B$47,CntyQryCensus!$A$103:$CX$146,U$1)","v":41},{"$f":"VLOOKUP(DropDownList!$B$47,CntyQryCensus!$A$103:$CX$146,V$1)","v":74},{"$f":"VLOOKUP(DropDownList!$B$47,CntyQryCensus!$A$103:$CX$146,W$1)","v":219},{"$f":"VLOOKUP(DropDownList!$B$47,CntyQryCensus!$A$103:$CX$146,X$1)","v":16},{"$f":"VLOOKUP(DropDownList!$B$47,CntyQryCensus!$A$103:$CX$146,Y$1)","v":30},{"$f":"VLOOKUP(DropDownList!$B$47,CntyQryCensus!$A$103:$CX$146,Z$1)","v":63},{"$f":"VLOOKUP(DropDownList!$B$47,CntyQryCensus!$A$103:$CX$146,AA$1)","v":95},{"$f":"VLOOKUP(DropDownList!$B$47,CntyQryCensus!$A$103:$CX$146,AB$1)","v":85},{"$f":"VLOOKUP(DropDownList!$B$47,CntyQryCensus!$A$103:$CX$146,AC$1)","v":59},{"$f":"VLOOKUP(DropDownList!$B$47,CntyQryCensus!$A$103:$CX$146,AD$1)","v":71},{"$f":"VLOOKUP(DropDownList!$B$47,CntyQryCensus!$A$103:$CX$146,AE$1)","v":54},{"$f":"VLOOKUP(DropDownList!$B$47,CntyQryCensus!$A$103:$CX$146,AF$1)","v":42},{"$f":"VLOOKUP(DropDownList!$B$47,CntyQryCensus!$A$103:$CX$146,AG$1)","v":5.0999999999999996},{"$f":"VLOOKUP(DropDownList!$B$47,CntyQryCensus!$A$103:$CX$146,AH$1)","v":319},{"$f":"VLOOKUP(DropDownList!$B$47,CntyQryCensus!$A$103:$CX$146,AI$1)","v":34},{"$f":"VLOOKUP(DropDownList!$B$47,CntyQryCensus!$A$103:$CX$146,AJ$1)","v":53},{"$f":"VLOOKUP(DropDownList!$B$47,CntyQryCensus!$A$103:$CX$146,AK$1)","v":57},{"$f":"VLOOKUP(DropDownList!$B$47,CntyQryCensus!$A$103:$CX$146,AL$1)","v":94},{"$f":"VLOOKUP(DropDownList!$B$47,CntyQryCensus!$A$103:$CX$146,AM$1)","v":43},{"$f":"VLOOKUP(DropDownList!$B$47,CntyQryCensus!$A$103:$CX$146,AN$1)","v":38},{"$f":"VLOOKUP(DropDownList!$B$47,CntyQryCensus!$A$103:$CX$146,AO$1)","v":3},{"$f":"VLOOKUP(DropDownList!$B$47,CntyQryCensus!$A$103:$CX$146,AP$1)","v":35},{"$f":"VLOOKUP(DropDownList!$B$47,CntyQryCensus!$A$103:$CX$146,AQ$1)","v":0},{"$f":"VLOOKUP(DropDownList!$B$47,CntyQryCensus!$A$103:$CX$146,AR$1)","v":149},{"$f":"VLOOKUP(DropDownList!$B$47,CntyQryCensus!$A$103:$CX$146,AS$1)","v":0},{"$f":"VLOOKUP(DropDownList!$B$47,CntyQryCensus!$A$103:$CX$146,AT$1)","v":132},{"$f":"VLOOKUP(DropDownList!$B$47,CntyQryCensus!$A$103:$CX$146,AU$1)","v":0},{"$f":"VLOOKUP(DropDownList!$B$47,CntyQryCensus!$A$103:$CX$146,AV$1)","v":0},{"$f":"VLOOKUP(DropDownList!$B$47,CntyQryCensus!$A$103:$CX$146,AW$1)","v":0},{"$f":"VLOOKUP(DropDownList!$B$47,CntyQryCensus!$A$103:$CX$146,AX$1)","v":11},{"$f":"VLOOKUP(DropDownList!$B$47,CntyQryCensus!$A$103:$CX$146,AY$1)","v":18},{"$f":"VLOOKUP(DropDownList!$B$47,CntyQryCensus!$A$103:$CX$146,AZ$1)","v":5},{"$f":"VLOOKUP(DropDownList!$B$47,CntyQryCensus!$A$103:$CX$146,BA$1)","v":319},{"$f":"VLOOKUP(DropDownList!$B$47,CntyQryCensus!$A$103:$CX$146,BB$1)","v":307},{"$f":"VLOOKUP(DropDownList!$B$47,CntyQryCensus!$A$103:$CX$146,BC$1)","v":5},{"$f":"VLOOKUP(DropDownList!$B$47,CntyQryCensus!$A$103:$CX$146,BD$1)","v":7},{"$f":"VLOOKUP(DropDownList!$B$47,CntyQryCensus!$A$103:$CX$146,BE$1)","v":124},{"$f":"VLOOKUP(DropDownList!$B$47,CntyQryCensus!$A$103:$CX$146,BF$1)","v":12},{"$f":"VLOOKUP(DropDownList!$B$47,CntyQryCensus!$A$103:$CX$146,BG$1)","v":61},{"$f":"VLOOKUP(DropDownList!$B$47,CntyQryCensus!$A$103:$CX$146,BH$1)","v":34},{"$f":"VLOOKUP(DropDownList!$B$47,CntyQryCensus!$A$103:$CX$146,BI$1)","v":9},{"$f":"VLOOKUP(DropDownList!$B$47,CntyQryCensus!$A$103:$CX$146,BJ$1)","v":6},{"$f":"VLOOKUP(DropDownList!$B$47,CntyQryCensus!$A$103:$CX$146,BK$1)","v":0},{"$f":"VLOOKUP(DropDownList!$B$47,CntyQryCensus!$A$103:$CX$146,BL$1)","v":2},{"$f":"VLOOKUP(DropDownList!$B$47,CntyQryCensus!$A$103:$CX$146,BM$1)","v":0},{"$f":"VLOOKUP(DropDownList!$B$47,CntyQryCensus!$A$103:$CX$146,BN$1)","v":92700},{"$f":"VLOOKUP(DropDownList!$B$47,CntyQryCensus!$A$103:$CX$146,BO$1)","v":68},{"$f":"VLOOKUP(DropDownList!$B$47,CntyQryCensus!$A$103:$CX$146,BP$1)","v":0},{"$f":"VLOOKUP(DropDownList!$B$47,CntyQryCensus!$A$103:$CX$146,BQ$1)","v":2},{"$f":"VLOOKUP(DropDownList!$B$47,CntyQryCensus!$A$103:$CX$146,BR$1)","v":13},{"$f":"VLOOKUP(DropDownList!$B$47,CntyQryCensus!$A$103:$CX$146,BS$1)","v":27},{"$f":"VLOOKUP(DropDownList!$B$47,CntyQryCensus!$A$103:$CX$146,BT$1)","v":22},{"$f":"VLOOKUP(DropDownList!$B$47,CntyQryCensus!$A$103:$CX$146,BU$1)","v":2},{"$f":"VLOOKUP(DropDownList!$B$47,CntyQryCensus!$A$103:$CX$146,BV$1)","v":2},{"$f":"VLOOKUP(DropDownList!$B$47,CntyQryCensus!$A$103:$CX$146,BW$1)","v":870},{"$f":"VLOOKUP(DropDownList!$B$47,CntyQryCensus!$A$103:$CX$146,BX$1)","v":56},{"$f":"VLOOKUP(DropDownList!$B$47,CntyQryCensus!$A$103:$CX$146,BY$1)","v":407},{"$f":"VLOOKUP(DropDownList!$B$47,CntyQryCensus!$A$103:$CX$146,BZ$1)","v":43},{"$f":"VLOOKUP(DropDownList!$B$47,CntyQryCensus!$A$103:$CX$146,CA$1)","v":22},{"$f":"VLOOKUP(DropDownList!$B$47,CntyQryCensus!$A$103:$CX$146,CB$1)","v":17},{"$f":"VLOOKUP(DropDownList!$B$47,CntyQryCensus!$A$103:$CX$146,CC$1)","v":23},{"$f":"VLOOKUP(DropDownList!$B$47,CntyQryCensus!$A$103:$CX$146,CD$1)","v":8},{"$f":"VLOOKUP(DropDownList!$B$47,CntyQryCensus!$A$103:$CX$146,CE$1)","v":10},{"$f":"VLOOKUP(DropDownList!$B$47,CntyQryCensus!$A$103:$CX$146,CF$1)","v":1},{"$f":"VLOOKUP(DropDownList!$B$47,CntyQryCensus!$A$103:$CX$146,CG$1)","v":33},{"$f":"VLOOKUP(DropDownList!$B$47,CntyQryCensus!$A$103:$CX$146,CH$1)","v":0},{"$f":"VLOOKUP(DropDownList!$B$47,CntyQryCensus!$A$103:$CX$146,CI$1)","v":2},{"$f":"VLOOKUP(DropDownList!$B$47,CntyQryCensus!$A$103:$CX$146,CJ$1)","v":6},{"$f":"VLOOKUP(DropDownList!$B$47,CntyQryCensus!$A$103:$CX$146,CK$1)","v":15},{"$f":"VLOOKUP(DropDownList!$B$47,CntyQryCensus!$A$103:$CX$146,CL$1)","v":2},{"$f":"VLOOKUP(DropDownList!$B$47,CntyQryCensus!$A$103:$CX$146,CM$1)","v":0},{"$f":"VLOOKUP(DropDownList!$B$47,CntyQryCensus!$A$103:$CX$146,CN$1)","v":0},{"$f":"VLOOKUP(DropDownList!$B$47,CntyQryCensus!$A$103:$CX$146,CO$1)","v":8},{"$f":"VLOOKUP(DropDownList!$B$47,CntyQryCensus!$A$103:$CX$146,CP$1)","v":613},{"$f":"VLOOKUP(DropDownList!$B$47,CntyQryCensus!$A$103:$CX$146,CQ$1)","v":7},{"$f":"VLOOKUP(DropDownList!$B$47,CntyQryCensus!$A$103:$CX$146,CR$1)","v":2},{"$f":"VLOOKUP(DropDownList!$B$47,CntyQryCensus!$A$103:$CX$146,CS$1)","v":3},{"$f":"VLOOKUP(DropDownList!$B$47,CntyQryCensus!$A$103:$CX$146,CT$1)","v":4},{"$f":"VLOOKUP(DropDownList!$B$47,CntyQryCensus!$A$103:$CX$146,CU$1)","v":2},{"$f":"VLOOKUP(DropDownList!$B$47,CntyQryCensus!$A$103:$CX$146,CV$1)","v":4},{"$f":"VLOOKUP(DropDownList!$B$47,CntyQryCensus!$A$103:$CX$146,CW$1)","v":11}]
[]
[]
["Census 2000 SummaryFile3 Sample Data  -  SF3TownQry1SocialChar"]
["TOWN_NAME","LOGRECNO","COUSUB","P01TotalPopulation","P02SampleCountOfPop","P03Pop100pctCount","P05UrbanPopulation","P05RuralPopulation","P06WhiteAlone","P06BlackOrAfAm","P06AmIndAlone","P06AsianAlone","P06HawaiianOrPI","P06OtherRace","P06TwoPlusRaces","P07NotHispanicOrLatino","P07HispanicOrLatino","P08MalePop","P08FemalePop","P09PopInHouseholds","P09PopInFamHH","P09PopInNonFamHH","P09PopInGroupQtr","P13TotalHH","P13FamilyHH","P13FamHHolder15to24yrs","P13FamHHolder25to34yrs","P13FamHHolder35to44yrs","P13FamHHolder45to54yrs","P13FamHHolder55to64yrs","P13FamHHolder65to74yrs","P13FamHHolder75to84yrs","P13FamHHolder85yrsOver","P13NonFamilyHH","P13NonFamHHolder15to24yrs","P13NonFamHHolder25to34yrs","P13NonFamHHolder35to44yrs","P13NonFamHHolder45to54yrs","P13NonFamHHolder55to64yrs","P13NonFamHHolder65to74yrs","P13NonFamHHolder75to84yrs","P13NonFamHHolder85yrsOver","P18Pop15yrsOver","P18MaritalStatNeverMarried","P18MaritalStatNowMarried","P18MaritalStatSeparated","P18MaritalStatWidowed","P18MaritalStatWidowFemale","P18MaritalStatDivorced","P18MaritalStatDivorcedFemale","P21NativeBornPop","P21NatPopBornInState","P21NatPopBornOtherState","P021005","P021006","P021007","P021008","P21NatPopBornOutUS","P21ForeignBornPop","P021014","P021015","P24Pop5YrsPlus","P24ResSameHouseIn95","P24ResDiffHouseIn95","P24ResDiffHouseInUSIn95","P24ResDiffHouseSameCountyIn95","P24ResDiffHouseDiffCountyIn95","P24ResDiffHouseDiffCntySamStIn95","P24ResDiffHouseDiffCntyDifStIn95","P24ResDiffHouseDiffCntyNEStIn95","P24ResDiffHouseDiffCntyMWStIn95","P24ResDiffHouseDiffCntySoStIn95","P24ResDiffHouseDiffCntyWstStIn95","P24ResDiffInPR","P24ResDiffElsewhereIn95","P26Workers16yrsOver","P26WorkedInState","P26WorkedInCnty","P26WorkedOutsideCnty","P26WorkedOutsideState","P30Workers16Over","P30TranspToWrkCar","P30TranspToWrkPublic","P30TranspToWrkOther","P30WrkdAtHome","P31WrkrsNotWrkAtHom","P31TravTim<5min","P31TravTim5to9Min","P31TravTim10to14Min","P31TravTim15to19Min","P31TravTim20to24Min","P31TravTim25to29Min","P31TravTim30to34Min","P31TravTim35to39Min","P31TravTim40to44Min","P31TravTim45to59Min","P31TravTim60to89Min","P31TravTim90MinMore","P31WorkAtHome","P36SchEnrlPop3yrOver","P36NurserSchEnrl","P36KinderSchEnrl","P36ElemSchEnrl","P36HighSchEnrl","P36CollGradSchEnrl","P37Pop25yrsOver","P37EduAtain<9grd","P37EduAtainHSnoDip","P37EduAtainHSgrad","P37EduAtainCollNoDeg","P37EduAtainAssocDeg","P37EduAtainBachDeg","P37EduAtainGradProfDeg","P42NIPop5to15","P42NIPop5to15wDisabl","P42NIPop16to20","P42NIPop16to20wDisab","P42NIPop16to20wDisEmp","P42NIPop16to21NoDis","P42NIPop16to21NoDisEmpl","P42NIPop21to64","P42NIPop21to64wDis","P42NIPop21to64wDisEmp","P42NIPop21to64NoDis","P42NIPop21to64NoDisEmp","P42NIPop65to74","P42NIPop65to74wDis","P42NIPop75Over","P42NIPop75OverwDis","P43Pop16YrsOver","P43Pop16OvrInLaborForce","P43Pop16OvrCivlLabFrc","P43Pop16OvrCivlLbrFrcEmp","P48Families","P48MarriedFam","P48MarrFamNoWorkers","P48MarrFam1Worker","P48MarrFam2Worker","P48MarrFamHusbWifeWorked","P48MarrFamOther","P48MarrFam3PlusWorker","P48MarrFam3WorkHsbWif","P48MarrFam3PlsWrkOther","P48OtherFam","P48MaleHHNoWif","P48MaleHHNoWifNoWorker","P48MaleHHNoWif1Worker","P48MaleHHNoWif2Worker","P48MaleHHNoWif3PlusWorker","P48FemaleHHNoHsb","P48FemaleHHNoHsbNoWorker","P48FemaleHHNoHsb1Worker","P48FemaleHHNoHsb2Worker","P48FemaleHHNoHsb3Worker","P49EmpCivPop16YrOver","P49IndustAgricult","P49IndustConst","P49IndustMnftg","P49IndustWhlslTrd","P49IndustRtlTrd","P49IndustTrspWrhsUtlt","P49IndustInfrm","P49IndustFinInsRE","P49IndustPrfsScntfMngmt","P49IndustEduHlthSocSrv","P49IndustArtsEntRec","P49IndustOthrSrvc","P49IndustPubAdm","P50OccupMngmtProfs","P50OccupService","P50OccupSalesOff","P50OccupFarmFishForest","P50OccupConstExtrctMaint","P50OccupPrdctTrnspMatMv"]
[{"$f":"VLOOKUP(DropDownList!$B$47,CntyQryCensus!$A$103:$CX$146,A$1)","v":"Acworth"},{"$f":"VLOOKUP(DropDownList!$B$47,CntyQryCensus!$A$156:$FR$198,B$1)","v":"0004141"},{"$f":"VLOOKUP(DropDownList!$B$47,CntyQryCensus!$A$156:$FR$198,C$1)","v":"00260"},{"$f":"VLOOKUP(DropDownList!$B$47,CntyQryCensus!$A$156:$FR$198,D$1)","v":840},{"$f":"VLOOKUP(DropDownList!$B$47,CntyQryCensus!$A$156:$FR$198,E$1)","v":376},{"$f":"VLOOKUP(DropDownList!$B$47,CntyQryCensus!$A$156:$FR$198,F$1)","v":836},{"$f":"VLOOKUP(DropDownList!$B$47,CntyQryCensus!$A$156:$FR$198,G$1)","v":0},{"$f":"VLOOKUP(DropDownList!$B$47,CntyQryCensus!$A$156:$FR$198,H$1)","v":840},{"$f":"VLOOKUP(DropDownList!$B$47,CntyQryCensus!$A$156:$FR$198,I$1)","v":825},{"$f":"VLOOKUP(DropDownList!$B$47,CntyQryCensus!$A$156:$FR$198,J$1)","v":0},{"$f":"VLOOKUP(DropDownList!$B$47,CntyQryCensus!$A$156:$FR$198,K$1)","v":0},{"$f":"VLOOKUP(DropDownList!$B$47,CntyQryCensus!$A$156:$FR$198,L$1)","v":0},{"$f":"VLOOKUP(DropDownList!$B$47,CntyQryCensus!$A$156:$FR$198,M$1)","v":0},{"$f":"VLOOKUP(DropDownList!$B$47,CntyQryCensus!$A$156:$FR$198,N$1)","v":0},{"$f":"VLOOKUP(DropDownList!$B$47,CntyQryCensus!$A$156:$FR$198,O$1)","v":15},{"$f":"VLOOKUP(DropDownList!$B$47,CntyQryCensus!$A$156:$FR$198,P$1)","v":837},{"$f":"VLOOKUP(DropDownList!$B$47,CntyQryCensus!$A$156:$FR$198,Q$1)","v":3},{"$f":"VLOOKUP(DropDownList!$B$47,CntyQryCensus!$A$156:$FR$198,R$1)","v":436},{"$f":"VLOOKUP(DropDownList!$B$47,CntyQryCensus!$A$156:$FR$198,S$1)","v":404},{"$f":"VLOOKUP(DropDownList!$B$47,CntyQryCensus!$A$156:$FR$198,T$1)","v":840},{"$f":"VLOOKUP(DropDownList!$B$47,CntyQryCensus!$A$156:$FR$198,U$1)","v":736},{"$f":"VLOOKUP(DropDownList!$B$47,CntyQryCensus!$A$156:$FR$198,V$1)","v":104},{"$f":"VLOOKUP(DropDownList!$B$47,CntyQryCensus!$A$156:$FR$198,W$1)","v":0},{"$f":"VLOOKUP(DropDownList!$B$47,CntyQryCensus!$A$156:$FR$198,X$1)","v":325},{"$f":"VLOOKUP(DropDownList!$B$47,CntyQryCensus!$A$156:$FR$198,Y$1)","v":237},{"$f":"VLOOKUP(DropDownList!$B$47,CntyQryCensus!$A$156:$FR$198,Z$1)","v":0},{"$f":"VLOOKUP(DropDownList!$B$47,CntyQryCensus!$A$156:$FR$198,AA$1)","v":16},{"$f":"VLOOKUP(DropDownList!$B$47,CntyQryCensus!$A$156:$FR$198,AB$1)","v":55},{"$f":"VLOOKUP(DropDownList!$B$47,CntyQryCensus!$A$156:$FR$198,AC$1)","v":72},{"$f":"VLOOKUP(DropDownList!$B$47,CntyQryCensus!$A$156:$FR$198,AD$1)","v":40},{"$f":"VLOOKUP(DropDownList!$B$47,CntyQryCensus!$A$156:$FR$198,AE$1)","v":32},{"$f":"VLOOKUP(DropDownList!$B$47,CntyQryCensus!$A$156:$FR$198,AF$1)","v":17},{"$f":"VLOOKUP(DropDownList!$B$47,CntyQryCensus!$A$156:$FR$198,AG$1)","v":5},{"$f":"VLOOKUP(DropDownList!$B$47,CntyQryCensus!$A$156:$FR$198,AH$1)","v":88},{"$f":"VLOOKUP(DropDownList!$B$47,CntyQryCensus!$A$156:$FR$198,AI$1)","v":2},{"$f":"VLOOKUP(DropDownList!$B$47,CntyQryCensus!$A$156:$FR$198,AJ$1)","v":10},{"$f":"VLOOKUP(DropDownList!$B$47,CntyQryCensus!$A$156:$FR$198,AK$1)","v":7},{"$f":"VLOOKUP(DropDownList!$B$47,CntyQryCensus!$A$156:$FR$198,AL$1)","v":9},{"$f":"VLOOKUP(DropDownList!$B$47,CntyQryCensus!$A$156:$FR$198,AM$1)","v":32},{"$f":"VLOOKUP(DropDownList!$B$47,CntyQryCensus!$A$156:$FR$198,AN$1)","v":21},{"$f":"VLOOKUP(DropDownList!$B$47,CntyQryCensus!$A$156:$FR$198,AO$1)","v":3},{"$f":"VLOOKUP(DropDownList!$B$47,CntyQryCensus!$A$156:$FR$198,AP$1)","v":4},{"$f":"VLOOKUP(DropDownList!$B$47,CntyQryCensus!$A$156:$FR$198,AQ$1)","v":667},{"$f":"VLOOKUP(DropDownList!$B$47,CntyQryCensus!$A$156:$FR$198,AR$1)","v":137},{"$f":"VLOOKUP(DropDownList!$B$47,CntyQryCensus!$A$156:$FR$198,AS$1)","v":410},{"$f":"VLOOKUP(DropDownList!$B$47,CntyQryCensus!$A$156:$FR$198,AT$1)","v":5},{"$f":"VLOOKUP(DropDownList!$B$47,CntyQryCensus!$A$156:$FR$198,AU$1)","v":30},{"$f":"VLOOKUP(DropDownList!$B$47,CntyQryCensus!$A$156:$FR$198,AV$1)","v":28},{"$f":"VLOOKUP(DropDownList!$B$47,CntyQryCensus!$A$156:$FR$198,AW$1)","v":85},{"$f":"VLOOKUP(DropDownList!$B$47,CntyQryCensus!$A$156:$FR$198,AX$1)","v":33},{"$f":"VLOOKUP(DropDownList!$B$47,CntyQryCensus!$A$156:$FR$198,AY$1)","v":812},{"$f":"VLOOKUP(DropDownList!$B$47,CntyQryCensus!$A$156:$FR$198,AZ$1)","v":283},{"$f":"VLOOKUP(DropDownList!$B$47,CntyQryCensus!$A$156:$FR$198,BA$1)","v":524},{"$f":"VLOOKUP(DropDownList!$B$47,CntyQryCensus!$A$156:$FR$198,BB$1)","v":423},{"$f":"VLOOKUP(DropDownList!$B$47,CntyQryCensus!$A$156:$FR$198,BC$1)","v":36},{"$f":"VLOOKUP(DropDownList!$B$47,CntyQryCensus!$A$156:$FR$198,BD$1)","v":39},{"$f":"VLOOKUP(DropDownList!$B$47,CntyQryCensus!$A$156:$FR$198,BE$1)","v":26},{"$f":"VLOOKUP(DropDownList!$B$47,CntyQryCensus!$A$156:$FR$198,BF$1)","v":5},{"$f":"VLOOKUP(DropDownList!$B$47,CntyQryCensus!$A$156:$FR$198,BG$1)","v":28},{"$f":"VLOOKUP(DropDownList!$B$47,CntyQryCensus!$A$156:$FR$198,BH$1)","v":12},{"$f":"VLOOKUP(DropDownList!$B$47,CntyQryCensus!$A$156:$FR$198,BI$1)","v":16},{"$f":"VLOOKUP(DropDownList!$B$47,CntyQryCensus!$A$156:$FR$198,BJ$1)","v":799},{"$f":"VLOOKUP(DropDownList!$B$47,CntyQryCensus!$A$156:$FR$198,BK$1)","v":588},{"$f":"VLOOKUP(DropDownList!$B$47,CntyQryCensus!$A$156:$FR$198,BL$1)","v":211},{"$f":"VLOOKUP(DropDownList!$B$47,CntyQryCensus!$A$156:$FR$198,BM$1)","v":203},{"$f":"VLOOKUP(DropDownList!$B$47,CntyQryCensus!$A$156:$FR$198,BN$1)","v":84},{"$f":"VLOOKUP(DropDownList!$B$47,CntyQryCensus!$A$156:$FR$198,BO$1)","v":119},{"$f":"VLOOKUP(DropDownList!$B$47,CntyQryCensus!$A$156:$FR$198,BP$1)","v":41},{"$f":"VLOOKUP(DropDownList!$B$47,CntyQryCensus!$A$156:$FR$198,BQ$1)","v":78},{"$f":"VLOOKUP(DropDownList!$B$47,CntyQryCensus!$A$156:$FR$198,BR$1)","v":68},{"$f":"VLOOKUP(DropDownList!$B$47,CntyQryCensus!$A$156:$FR$198,BS$1)","v":2},{"$f":"VLOOKUP(DropDownList!$B$47,CntyQryCensus!$A$156:$FR$198,BT$1)","v":5},{"$f":"VLOOKUP(DropDownList!$B$47,CntyQryCensus!$A$156:$FR$198,BU$1)","v":3},{"$f":"VLOOKUP(DropDownList!$B$47,CntyQryCensus!$A$156:$FR$198,BV$1)","v":0},{"$f":"VLOOKUP(DropDownList!$B$47,CntyQryCensus!$A$156:$FR$198,BW$1)","v":8},{"$f":"VLOOKUP(DropDownList!$B$47,CntyQryCensus!$A$156:$FR$198,BX$1)","v":403},{"$f":"VLOOKUP(DropDownList!$B$47,CntyQryCensus!$A$156:$FR$198,BY$1)","v":349},{"$f":"VLOOKUP(DropDownList!$B$47,CntyQryCensus!$A$156:$FR$198,BZ$1)","v":222},{"$f":"VLOOKUP(DropDownList!$B$47,CntyQryCensus!$A$156:$FR$198,CA$1)","v":127},{"$f":"VLOOKUP(DropDownList!$B$47,CntyQryCensus!$A$156:$FR$198,CB$1)","v":54},{"$f":"VLOOKUP(DropDownList!$B$47,CntyQryCensus!$A$156:$FR$198,CC$1)","v":403},{"$f":"VLOOKUP(DropDownList!$B$47,CntyQryCensus!$A$156:$FR$198,CD$1)","v":335},{"$f":"VLOOKUP(DropDownList!$B$47,CntyQryCensus!$A$156:$FR$198,CE$1)","v":4},{"$f":"VLOOKUP(DropDownList!$B$47,CntyQryCensus!$A$156:$FR$198,CF$1)","v":2},{"$f":"VLOOKUP(DropDownList!$B$47,CntyQryCensus!$A$156:$FR$198,CG$1)","v":54},{"$f":"VLOOKUP(DropDownList!$B$47,CntyQryCensus!$A$156:$FR$198,CH$1)","v":349},{"$f":"VLOOKUP(DropDownList!$B$47,CntyQryCensus!$A$156:$FR$198,CI$1)","v":10},{"$f":"VLOOKUP(DropDownList!$B$47,CntyQryCensus!$A$156:$FR$198,CJ$1)","v":17},{"$f":"VLOOKUP(DropDownList!$B$47,CntyQryCensus!$A$156:$FR$198,CK$1)","v":13},{"$f":"VLOOKUP(DropDownList!$B$47,CntyQryCensus!$A$156:$FR$198,CL$1)","v":37},{"$f":"VLOOKUP(DropDownList!$B$47,CntyQryCensus!$A$156:$FR$198,CM$1)","v":52},{"$f":"VLOOKUP(DropDownList!$B$47,CntyQryCensus!$A$156:$FR$198,CN$1)","v":29},{"$f":"VLOOKUP(DropDownList!$B$47,CntyQryCensus!$A$156:$FR$198,CO$1)","v":67},{"$f":"VLOOKUP(DropDownList!$B$47,CntyQryCensus!$A$156:$FR$198,CP$1)","v":20},{"$f":"VLOOKUP(DropDownList!$B$47,CntyQryCensus!$A$156:$FR$198,CQ$1)","v":17},{"$f":"VLOOKUP(DropDownList!$B$47,CntyQryCensus!$A$156:$FR$198,CR$1)","v":46},{"$f":"VLOOKUP(DropDownList!$B$47,CntyQryCensus!$A$156:$FR$198,CS$1)","v":30},{"$f":"VLOOKUP(DropDownList!$B$47,CntyQryCensus!$A$156:$FR$198,CT$1)","v":11},{"$f":"VLOOKUP(DropDownList!$B$47,CntyQryCensus!$A$156:$FR$198,CU$1)","v":54},{"$f":"VLOOKUP(DropDownList!$B$47,CntyQryCensus!$A$156:$FR$198,CV$1)","v":814},{"$f":"VLOOKUP(DropDownList!$B$47,CntyQryCensus!$A$156:$FR$198,CW$1)","v":13},{"$f":"VLOOKUP(DropDownList!$B$47,CntyQryCensus!$A$156:$FR$198,CX$1)","v":5},{"$f":"VLOOKUP(DropDownList!$B$47,CntyQryCensus!$A$156:$FR$198,CY$1)","v":115},{"$f":"VLOOKUP(DropDownList!$B$47,CntyQryCensus!$A$156:$FR$198,CZ$1)","v":58},{"$f":"VLOOKUP(DropDownList!$B$47,CntyQryCensus!$A$156:$FR$198,DA$1)","v":23},{"$f":"VLOOKUP(DropDownList!$B$47,CntyQryCensus!$A$156:$FR$198,DB$1)","v":580},{"$f":"VLOOKUP(DropDownList!$B$47,CntyQryCensus!$A$156:$FR$198,DC$1)","v":19},{"$f":"VLOOKUP(DropDownList!$B$47,CntyQryCensus!$A$156:$FR$198,DD$1)","v":63},{"$f":"VLOOKUP(DropDownList!$B$47,CntyQryCensus!$A$156:$FR$198,DE$1)","v":205},{"$f":"VLOOKUP(DropDownList!$B$47,CntyQryCensus!$A$156:$FR$198,DF$1)","v":100},{"$f":"VLOOKUP(DropDownList!$B$47,CntyQryCensus!$A$156:$FR$198,DG$1)","v":27},{"$f":"VLOOKUP(DropDownList!$B$47,CntyQryCensus!$A$156:$FR$198,DH$1)","v":110},{"$f":"VLOOKUP(DropDownList!$B$47,CntyQryCensus!$A$156:$FR$198,DI$1)","v":56},{"$f":"VLOOKUP(DropDownList!$B$47,CntyQryCensus!$A$156:$FR$198,DJ$1)","v":142},{"$f":"VLOOKUP(DropDownList!$B$47,CntyQryCensus!$A$156:$FR$198,DK$1)","v":0},{"$f":"VLOOKUP(DropDownList!$B$47,CntyQryCensus!$A$156:$FR$198,DL$1)","v":55},{"$f":"VLOOKUP(DropDownList!$B$47,CntyQryCensus!$A$156:$FR$198,DM$1)","v":2},{"$f":"VLOOKUP(DropDownList!$B$47,CntyQryCensus!$A$156:$FR$198,DN$1)","v":0},{"$f":"VLOOKUP(DropDownList!$B$47,CntyQryCensus!$A$156:$FR$198,DO$1)","v":53},{"$f":"VLOOKUP(DropDownList!$B$47,CntyQryCensus!$A$156:$FR$198,DP$1)","v":30},{"$f":"VLOOKUP(DropDownList!$B$47,CntyQryCensus!$A$156:$FR$198,DQ$1)","v":472},{"$f":"VLOOKUP(DropDownList!$B$47,CntyQryCensus!$A$156:$FR$198,DR$1)","v":84},{"$f":"VLOOKUP(DropDownList!$B$47,CntyQryCensus!$A$156:$FR$198,DS$1)","v":48},{"$f":"VLOOKUP(DropDownList!$B$47,CntyQryCensus!$A$156:$FR$198,DT$1)","v":388},{"$f":"VLOOKUP(DropDownList!$B$47,CntyQryCensus!$A$156:$FR$198,DU$1)","v":311},{"$f":"VLOOKUP(DropDownList!$B$47,CntyQryCensus!$A$156:$FR$198,DV$1)","v":83},{"$f":"VLOOKUP(DropDownList!$B$47,CntyQryCensus!$A$156:$FR$198,DW$1)","v":12},{"$f":"VLOOKUP(DropDownList!$B$47,CntyQryCensus!$A$156:$FR$198,DX$1)","v":47},{"$f":"VLOOKUP(DropDownList!$B$47,CntyQryCensus!$A$156:$FR$198,DY$1)","v":17},{"$f":"VLOOKUP(DropDownList!$B$47,CntyQryCensus!$A$156:$FR$198,DZ$1)","v":657},{"$f":"VLOOKUP(DropDownList!$B$47,CntyQryCensus!$A$156:$FR$198,EA$1)","v":421},{"$f":"VLOOKUP(DropDownList!$B$47,CntyQryCensus!$A$156:$FR$198,EB$1)","v":421},{"$f":"VLOOKUP(DropDownList!$B$47,CntyQryCensus!$A$156:$FR$198,EC$1)","v":416},{"$f":"VLOOKUP(DropDownList!$B$47,CntyQryCensus!$A$156:$FR$198,ED$1)","v":237},{"$f":"VLOOKUP(DropDownList!$B$47,CntyQryCensus!$A$156:$FR$198,EE$1)","v":197},{"$f":"VLOOKUP(DropDownList!$B$47,CntyQryCensus!$A$156:$FR$198,EF$1)","v":34},{"$f":"VLOOKUP(DropDownList!$B$47,CntyQryCensus!$A$156:$FR$198,EG$1)","v":23},{"$f":"VLOOKUP(DropDownList!$B$47,CntyQryCensus!$A$156:$FR$198,EH$1)","v":115},{"$f":"VLOOKUP(DropDownList!$B$47,CntyQryCensus!$A$156:$FR$198,EI$1)","v":98},{"$f":"VLOOKUP(DropDownList!$B$47,CntyQryCensus!$A$156:$FR$198,EJ$1)","v":17},{"$f":"VLOOKUP(DropDownList!$B$47,CntyQryCensus!$A$156:$FR$198,EK$1)","v":25},{"$f":"VLOOKUP(DropDownList!$B$47,CntyQryCensus!$A$156:$FR$198,EL$1)","v":20},{"$f":"VLOOKUP(DropDownList!$B$47,CntyQryCensus!$A$156:$FR$198,EM$1)","v":5},{"$f":"VLOOKUP(DropDownList!$B$47,CntyQryCensus!$A$156:$FR$198,EN$1)","v":40},{"$f":"VLOOKUP(DropDownList!$B$47,CntyQryCensus!$A$156:$FR$198,EO$1)","v":16},{"$f":"VLOOKUP(DropDownList!$B$47,CntyQryCensus!$A$156:$FR$198,EP$1)","v":3},{"$f":"VLOOKUP(DropDownList!$B$47,CntyQryCensus!$A$156:$FR$198,EQ$1)","v":8},{"$f":"VLOOKUP(DropDownList!$B$47,CntyQryCensus!$A$156:$FR$198,ER$1)","v":5},{"$f":"VLOOKUP(DropDownList!$B$47,CntyQryCensus!$A$156:$FR$198,ES$1)","v":0},{"$f":"VLOOKUP(DropDownList!$B$47,CntyQryCensus!$A$156:$FR$198,ET$1)","v":24},{"$f":"VLOOKUP(DropDownList!$B$47,CntyQryCensus!$A$156:$FR$198,EU$1)","v":11},{"$f":"VLOOKUP(DropDownList!$B$47,CntyQryCensus!$A$156:$FR$198,EV$1)","v":4},{"$f":"VLOOKUP(DropDownList!$B$47,CntyQryCensus!$A$156:$FR$198,EW$1)","v":7},{"$f":"VLOOKUP(DropDownList!$B$47,CntyQryCensus!$A$156:$FR$198,EX$1)","v":2},{"$f":"VLOOKUP(DropDownList!$B$47,CntyQryCensus!$A$156:$FR$198,EY$1)","v":416},{"$f":"VLOOKUP(DropDownList!$B$47,CntyQryCensus!$A$156:$FR$198,EZ$1)","v":27},{"$f":"VLOOKUP(DropDownList!$B$47,CntyQryCensus!$A$156:$FR$198,FA$1)","v":63},{"$f":"VLOOKUP(DropDownList!$B$47,CntyQryCensus!$A$156:$FR$198,FB$1)","v":83},{"$f":"VLOOKUP(DropDownList!$B$47,CntyQryCensus!$A$156:$FR$198,FC$1)","v":9},{"$f":"VLOOKUP(DropDownList!$B$47,CntyQryCensus!$A$156:$FR$198,FD$1)","v":45},{"$f":"VLOOKUP(DropDownList!$B$47,CntyQryCensus!$A$156:$FR$198,FE$1)","v":35},{"$f":"VLOOKUP(DropDownList!$B$47,CntyQryCensus!$A$156:$FR$198,FF$1)","v":8},{"$f":"VLOOKUP(DropDownList!$B$47,CntyQryCensus!$A$156:$FR$198,FG$1)","v":15},{"$f":"VLOOKUP(DropDownList!$B$47,CntyQryCensus!$A$156:$FR$198,FH$1)","v":14},{"$f":"VLOOKUP(DropDownList!$B$47,CntyQryCensus!$A$156:$FR$198,FI$1)","v":69},{"$f":"VLOOKUP(DropDownList!$B$47,CntyQryCensus!$A$156:$FR$198,FJ$1)","v":14},{"$f":"VLOOKUP(DropDownList!$B$47,CntyQryCensus!$A$156:$FR$198,FK$1)","v":22},{"$f":"VLOOKUP(DropDownList!$B$47,CntyQryCensus!$A$156:$FR$198,FL$1)","v":12},{"$f":"VLOOKUP(DropDownList!$B$47,CntyQryCensus!$A$156:$FR$198,FM$1)","v":118},{"$f":"VLOOKUP(DropDownList!$B$47,CntyQryCensus!$A$156:$FR$198,FN$1)","v":25},{"$f":"VLOOKUP(DropDownList!$B$47,CntyQryCensus!$A$156:$FR$198,FO$1)","v":103},{"$f":"VLOOKUP(DropDownList!$B$47,CntyQryCensus!$A$156:$FR$198,FP$1)","v":8},{"$f":"VLOOKUP(DropDownList!$B$47,CntyQryCensus!$A$156:$FR$198,FQ$1)","v":74},{"$f":"VLOOKUP(DropDownList!$B$47,CntyQryCensus!$A$156:$FR$198,FR$1)","v":88}]
[]
[]
["Census 2000 SummaryFile3 Sample Data  -  SF3TownQry2aIncomeChar"]
["NAME","LOGRECNO","COUNTY","TotalPop","P52Households1","P52HHInc<10K","P52HHInc10to15K","P52HHInc15to20K","P52HHInc20to25K","P52HHInc25to30K","P52HHInc30to35K","P52HHInc35to40K","P52HHInc40to45K","P52HHInc45to50K","P52HHInc50to60K","P52HHInc60to75K","P52HHInc75to100K","P52HHInc100to125K","P52HHInc125to150K","P52HHInc150to200K","P52HHInc>200K","P53MedianHHInc","P54AggregHHInc","P55Households2","P55HHUnder25yrs","P55HH<25HHInc<10K","P55HH<25HHInc10to15K","P55HH<25HHInc15to20K","P55HH<25HHInc20to25K","P55HH<25HHInc25to30K","P55HH<25HHInc30to35K","P55HH<25HHInc35to40K","P55HH<25HHInc40to45K","P55HH<25HHInc45to50K","P55HH<25HHInc50to60K","P55HH<25HHInc60to75K","P55HH<25HHInc75to100K","P55HH<25HHInc100to125K","P55HH<25HHInc125to150K","P55HH<25HHInc150to200K","P55HH<25HHInc>200K","P55HH25to34yrs","P55HH25to34HHInc<10K","P55HH25to34HHInc10to15K","P55HH25to34HHInc15to20K","P55HH25to34HHInc20to25K","P55HH25to34HHInc25to30K","P55HH25to34HHInc30to35K","P55HH25to34HHInc35to40K","P55HH25to34HHInc40to45K","P55HH25to34HHInc45to50K","P55HH25to34HHInc50to60K","P55HH25to34HHInc60to75K","P55HH25to34HHInc75to100K","P55HH25to34HHInc100to125K","P55HH25to34HHInc125to150K","P55HH25to34HHInc150to200K","P55HH25to34HHInc>200K","P55HH35to44yrs","P55HH35to44HHInc<10K","P55HH35to44HHInc10to15K","P55HH35to44HHInc15to20K","P55HH35to44HHInc20to25K","P55HH35to44HHInc25to30K","P55HH35to44HHInc30to35K","P55HH35to44HHInc35to40K","P55HH35to44HHInc40to45K","P55HH35to44HHInc45to50K","P55HH35to44HHInc50to60K","P55HH35to44HHInc60to75K","P55HH35to44HHInc75to100K","P55HH35to44HHInc100to125K","P55HH35to44HHInc125to150K","P55HH35to44HHInc150to200K","P55HH35to44HHInc>200K","P55HH45to54yrs","P55HH45to55HHInc<10K","P55HH45to55HHInc10to15K","P55HH45to55HHInc15to20K","P55HH45to55HHInc20to25K","P55HH45to55HHInc25to30K","P55HH45to55HHInc30to35K","P55HH45to55HHInc35to40K","P55HH45to55HHInc40to45K","P55HH45to55HHInc45to50K","P55HH45to55HHInc50to60K","P55HH45to55HHInc60to75K","P55HH45to55HHInc75to100K","P55HH45to55HHInc100to125K","P55HH45to55HHInc125to150K","P55HH45to55HHInc150to200K","P55HH45to55HHInc>200K","P55HH55to64yrs","P55HH55to64HHInc<10K","P55HH55to64HHInc10to15K","P55HH55to64HHInc15to20K","P55HH55to64HHInc20to25K","P55HH55to64HHInc25to30K","P55HH55to64HHInc30to35K","P55HH55to64HHInc35to40K","P55HH55to64HHInc40to45K","P55HH55to64HHInc45to50K","P55HH55to64HHInc50to60K","P55HH55to64HHInc60to75K","P55HH55to64HHInc75to100K","P55HH55to64HHInc100to125K","P55HH55to64HHInc125to150K","P55HH55to64HHInc150to200K","P55HH55to64HHInc>200K","P55HH65to74yrs","P55HH65to74HHInc<10K","P55HH65to74HHInc10to15K","P55HH65to74HHInc15to20K","P55HH65to74HHInc20to25K","P55HH65to74HHInc25to30K","P55HH65to74HHInc30to35K","P55HH65to74HHInc35to40K","P55HH65to74HHInc40to45K","P55HH65to74HHInc45to50K","P55HH65to74HHInc50to60K","P55HH65to74HHInc60to75K","P55HH65to74HHInc75to100K","P55HH65to74HHInc100to125K","P55HH65to74HHInc125to150K","P55HH65to74HHInc150to200K","P55HH65to74HHInc>200K","P55HH>75yrs","P55HH>75HHInc<10K","P55HH>75HHInc10to15K","P55HH>75HHInc15to20K","P55HH>75HHInc20to25K","P55HH>75HHInc25to30K","P55HH>75HHInc30to35K","P55HH>75HHInc35to40K","P55HH>75HHInc40to45K","P55HH>75HHInc45to50K","P55HH>75HHInc50to60K","P55HH>75HHInc60to75K","P55HH>75HHInc75to100K","P55HH>75HHInc100to125K","P55HH>75HHInc125to150K","P55HH>75HHInc150to200K","P55HH>75HHInc>200K","P56MedHHInc","P56MedHHIncHH<25y","P56MedHHIncHH25to34y","P56MedHHIncHH35to44y","P56MedHHIncHH45to54y","P56MedHHIncHH55to64y","P56MedHHIncHH65to74y","P56MedHHIncHH>75y","P58Households3","P58HHwithEarnings","P58HHNoEarnings","P59HHwWageSalInc","P59HHNoWageSalInc","P60HHwSelfEmpInc","P60HHNoSelfEmpInc","P61HHwIndDivInc","P61HHNoIndDivInc","P62HHwSocSecInc","P62HHNoSocSecInc","P63HHwSSI","P63HHNoSSI","P64HHwPubAssInc","P64HHNoPubAssInc","P65HHwRetInc","P65HHNoRetInc","P66HHwOtherTypInc","P66HHNoOtherTypInc","P67AggregEarnings","P68AggregWageSalInc","P69AggregSelfEmpInc","P70AggregIntDivInc","P71AggregSocSecInc","P72AggregSSIInc","P73AggregPublicAssInc","P74AggregRetireInc","P76Families1","P76FamInc<10K","P76FamInc10to15K","P76FamInc15to20K","P76FamInc20to25K","P76FamInc25to30K","P76FamInc30to35K","P76FamInc35to40K","P76FamInc40to45K","P76FamInc45to50K","P76FamInc50to60K","P76FamInc60to75K","P76FamInc75to100K","P76FamInc100to125K","P76FamInc125to150K","P76FamInc150to200K","P76FamInc>200K","P77MedFamInc","P78AggregFamInc","P79NonFamHH","P79NonFamHHwInc<10K","P79NonFamHHwInc10to15K","P79NonFamHHwInc15to20K","P79NonFamHHwInc20to25K","P79NonFamHHwInc25to30K","P79NonFamHHwInc30to35K","P79NonFamHHwInc35to40K","P79NonFamHHwInc40to45K","P79NonFamHHwInc45to50K","P79NonFamHHwInc50to60K","P79NonFamHHwInc60to75K","P79NonFamHHwInc75to100K","P79NonFamHHwInc100to125K","P79NonFamHHwInc125to150K","P79NonFamHHwInc150to200K","P79NonFamHHwInc200KorMore","P80MedNonFamInc","P82PerCapitaInc"]
[{"$f":"VLOOKUP(DropDownList!$B$47,CntyQryCensus!$A$206:$HH$248,A$1)","v":"Acworth"},{"$f":"VLOOKUP(DropDownList!$B$47,CntyQryCensus!$A$206:$HH$248,B$1)","v":"0004141"},{"$f":"VLOOKUP(DropDownList!$B$47,CntyQryCensus!$A$206:$HH$248,C$1)","v":"00260"},{"$f":"VLOOKUP(DropDownList!$B$47,CntyQryCensus!$A$206:$HH$248,D$1)","v":836},{"$f":"VLOOKUP(DropDownList!$B$47,CntyQryCensus!$A$206:$HH$248,E$1)","v":325},{"$f":"VLOOKUP(DropDownList!$B$47,CntyQryCensus!$A$206:$HH$248,F$1)","v":25},{"$f":"VLOOKUP(DropDownList!$B$47,CntyQryCensus!$A$206:$HH$248,G$1)","v":12},{"$f":"VLOOKUP(DropDownList!$B$47,CntyQryCensus!$A$206:$HH$248,H$1)","v":38},{"$f":"VLOOKUP(DropDownList!$B$47,CntyQryCensus!$A$206:$HH$248,I$1)","v":17},{"$f":"VLOOKUP(DropDownList!$B$47,CntyQryCensus!$A$206:$HH$248,J$1)","v":36},{"$f":"VLOOKUP(DropDownList!$B$47,CntyQryCensus!$A$206:$HH$248,K$1)","v":24},{"$f":"VLOOKUP(DropDownList!$B$47,CntyQryCensus!$A$206:$HH$248,L$1)","v":19},{"$f":"VLOOKUP(DropDownList!$B$47,CntyQryCensus!$A$206:$HH$248,M$1)","v":29},{"$f":"VLOOKUP(DropDownList!$B$47,CntyQryCensus!$A$206:$HH$248,N$1)","v":22},{"$f":"VLOOKUP(DropDownList!$B$47,CntyQryCensus!$A$206:$HH$248,O$1)","v":30},{"$f":"VLOOKUP(DropDownList!$B$47,CntyQryCensus!$A$206:$HH$248,P$1)","v":30},{"$f":"VLOOKUP(DropDownList!$B$47,CntyQryCensus!$A$206:$HH$248,Q$1)","v":26},{"$f":"VLOOKUP(DropDownList!$B$47,CntyQryCensus!$A$206:$HH$248,R$1)","v":4},{"$f":"VLOOKUP(DropDownList!$B$47,CntyQryCensus!$A$206:$HH$248,S$1)","v":7},{"$f":"VLOOKUP(DropDownList!$B$47,CntyQryCensus!$A$206:$HH$248,T$1)","v":2},{"$f":"VLOOKUP(DropDownList!$B$47,CntyQryCensus!$A$206:$HH$248,U$1)","v":4},{"$f":"VLOOKUP(DropDownList!$B$47,CntyQryCensus!$A$206:$HH$248,V$1)","v":37386},{"$f":"VLOOKUP(DropDownList!$B$47,CntyQryCensus!$A$206:$HH$248,W$1)","v":14932900},{"$f":"VLOOKUP(DropDownList!$B$47,CntyQryCensus!$A$206:$HH$248,X$1)","v":325},{"$f":"VLOOKUP(DropDownList!$B$47,CntyQryCensus!$A$206:$HH$248,Y$1)","v":2},{"$f":"VLOOKUP(DropDownList!$B$47,CntyQryCensus!$A$206:$HH$248,Z$1)","v":0},{"$f":"VLOOKUP(DropDownList!$B$47,CntyQryCensus!$A$206:$HH$248,AA$1)","v":0},{"$f":"VLOOKUP(DropDownList!$B$47,CntyQryCensus!$A$206:$HH$248,AB$1)","v":0},{"$f":"VLOOKUP(DropDownList!$B$47,CntyQryCensus!$A$206:$HH$248,AC$1)","v":0},{"$f":"VLOOKUP(DropDownList!$B$47,CntyQryCensus!$A$206:$HH$248,AD$1)","v":2},{"$f":"VLOOKUP(DropDownList!$B$47,CntyQryCensus!$A$206:$HH$248,AE$1)","v":0},{"$f":"VLOOKUP(DropDownList!$B$47,CntyQryCensus!$A$206:$HH$248,AF$1)","v":0},{"$f":"VLOOKUP(DropDownList!$B$47,CntyQryCensus!$A$206:$HH$248,AG$1)","v":0},{"$f":"VLOOKUP(DropDownList!$B$47,CntyQryCensus!$A$206:$HH$248,AH$1)","v":0},{"$f":"VLOOKUP(DropDownList!$B$47,CntyQryCensus!$A$206:$HH$248,AI$1)","v":0},{"$f":"VLOOKUP(DropDownList!$B$47,CntyQryCensus!$A$206:$HH$248,AJ$1)","v":0},{"$f":"VLOOKUP(DropDownList!$B$47,CntyQryCensus!$A$206:$HH$248,AK$1)","v":0},{"$f":"VLOOKUP(DropDownList!$B$47,CntyQryCensus!$A$206:$HH$248,AL$1)","v":0},{"$f":"VLOOKUP(DropDownList!$B$47,CntyQryCensus!$A$206:$HH$248,AM$1)","v":0},{"$f":"VLOOKUP(DropDownList!$B$47,CntyQryCensus!$A$206:$HH$248,AN$1)","v":0},{"$f":"VLOOKUP(DropDownList!$B$47,CntyQryCensus!$A$206:$HH$248,AO$1)","v":0},{"$f":"VLOOKUP(DropDownList!$B$47,CntyQryCensus!$A$206:$HH$248,AP$1)","v":26},{"$f":"VLOOKUP(DropDownList!$B$47,CntyQryCensus!$A$206:$HH$248,AQ$1)","v":0},{"$f":"VLOOKUP(DropDownList!$B$47,CntyQryCensus!$A$206:$HH$248,AR$1)","v":0},{"$f":"VLOOKUP(DropDownList!$B$47,CntyQryCensus!$A$206:$HH$248,AS$1)","v":0},{"$f":"VLOOKUP(DropDownList!$B$47,CntyQryCensus!$A$206:$HH$248,AT$1)","v":0},{"$f":"VLOOKUP(DropDownList!$B$47,CntyQryCensus!$A$206:$HH$248,AU$1)","v":5},{"$f":"VLOOKUP(DropDownList!$B$47,CntyQryCensus!$A$206:$HH$248,AV$1)","v":3},{"$f":"VLOOKUP(DropDownList!$B$47,CntyQryCensus!$A$206:$HH$248,AW$1)","v":3},{"$f":"VLOOKUP(DropDownList!$B$47,CntyQryCensus!$A$206:$HH$248,AX$1)","v":4},{"$f":"VLOOKUP(DropDownList!$B$47,CntyQryCensus!$A$206:$HH$248,AY$1)","v":2},{"$f":"VLOOKUP(DropDownList!$B$47,CntyQryCensus!$A$206:$HH$248,AZ$1)","v":4},{"$f":"VLOOKUP(DropDownList!$B$47,CntyQryCensus!$A$206:$HH$248,BA$1)","v":5},{"$f":"VLOOKUP(DropDownList!$B$47,CntyQryCensus!$A$206:$HH$248,BB$1)","v":0},{"$f":"VLOOKUP(DropDownList!$B$47,CntyQryCensus!$A$206:$HH$248,BC$1)","v":0},{"$f":"VLOOKUP(DropDownList!$B$47,CntyQryCensus!$A$206:$HH$248,BD$1)","v":0},{"$f":"VLOOKUP(DropDownList!$B$47,CntyQryCensus!$A$206:$HH$248,BE$1)","v":0},{"$f":"VLOOKUP(DropDownList!$B$47,CntyQryCensus!$A$206:$HH$248,BF$1)","v":0},{"$f":"VLOOKUP(DropDownList!$B$47,CntyQryCensus!$A$206:$HH$248,BG$1)","v":62},{"$f":"VLOOKUP(DropDownList!$B$47,CntyQryCensus!$A$206:$HH$248,BH$1)","v":9},{"$f":"VLOOKUP(DropDownList!$B$47,CntyQryCensus!$A$206:$HH$248,BI$1)","v":0},{"$f":"VLOOKUP(DropDownList!$B$47,CntyQryCensus!$A$206:$HH$248,BJ$1)","v":5},{"$f":"VLOOKUP(DropDownList!$B$47,CntyQryCensus!$A$206:$HH$248,BK$1)","v":4},{"$f":"VLOOKUP(DropDownList!$B$47,CntyQryCensus!$A$206:$HH$248,BL$1)","v":3},{"$f":"VLOOKUP(DropDownList!$B$47,CntyQryCensus!$A$206:$HH$248,BM$1)","v":2},{"$f":"VLOOKUP(DropDownList!$B$47,CntyQryCensus!$A$206:$HH$248,BN$1)","v":4},{"$f":"VLOOKUP(DropDownList!$B$47,CntyQryCensus!$A$206:$HH$248,BO$1)","v":2},{"$f":"VLOOKUP(DropDownList!$B$47,CntyQryCensus!$A$206:$HH$248,BP$1)","v":3},{"$f":"VLOOKUP(DropDownList!$B$47,CntyQryCensus!$A$206:$HH$248,BQ$1)","v":8},{"$f":"VLOOKUP(DropDownList!$B$47,CntyQryCensus!$A$206:$HH$248,BR$1)","v":9},{"$f":"VLOOKUP(DropDownList!$B$47,CntyQryCensus!$A$206:$HH$248,BS$1)","v":9},{"$f":"VLOOKUP(DropDownList!$B$47,CntyQryCensus!$A$206:$HH$248,BT$1)","v":0},{"$f":"VLOOKUP(DropDownList!$B$47,CntyQryCensus!$A$206:$HH$248,BU$1)","v":2},{"$f":"VLOOKUP(DropDownList!$B$47,CntyQryCensus!$A$206:$HH$248,BV$1)","v":0},{"$f":"VLOOKUP(DropDownList!$B$47,CntyQryCensus!$A$206:$HH$248,BW$1)","v":2},{"$f":"VLOOKUP(DropDownList!$B$47,CntyQryCensus!$A$206:$HH$248,BX$1)","v":81},{"$f":"VLOOKUP(DropDownList!$B$47,CntyQryCensus!$A$206:$HH$248,BY$1)","v":3},{"$f":"VLOOKUP(DropDownList!$B$47,CntyQryCensus!$A$206:$HH$248,BZ$1)","v":3},{"$f":"VLOOKUP(DropDownList!$B$47,CntyQryCensus!$A$206:$HH$248,CA$1)","v":2},{"$f":"VLOOKUP(DropDownList!$B$47,CntyQryCensus!$A$206:$HH$248,CB$1)","v":4},{"$f":"VLOOKUP(DropDownList!$B$47,CntyQryCensus!$A$206:$HH$248,CC$1)","v":10},{"$f":"VLOOKUP(DropDownList!$B$47,CntyQryCensus!$A$206:$HH$248,CD$1)","v":9},{"$f":"VLOOKUP(DropDownList!$B$47,CntyQryCensus!$A$206:$HH$248,CE$1)","v":4},{"$f":"VLOOKUP(DropDownList!$B$47,CntyQryCensus!$A$206:$HH$248,CF$1)","v":11},{"$f":"VLOOKUP(DropDownList!$B$47,CntyQryCensus!$A$206:$HH$248,CG$1)","v":8},{"$f":"VLOOKUP(DropDownList!$B$47,CntyQryCensus!$A$206:$HH$248,CH$1)","v":9},{"$f":"VLOOKUP(DropDownList!$B$47,CntyQryCensus!$A$206:$HH$248,CI$1)","v":6},{"$f":"VLOOKUP(DropDownList!$B$47,CntyQryCensus!$A$206:$HH$248,CJ$1)","v":8},{"$f":"VLOOKUP(DropDownList!$B$47,CntyQryCensus!$A$206:$HH$248,CK$1)","v":2},{"$f":"VLOOKUP(DropDownList!$B$47,CntyQryCensus!$A$206:$HH$248,CL$1)","v":0},{"$f":"VLOOKUP(DropDownList!$B$47,CntyQryCensus!$A$206:$HH$248,CM$1)","v":0},{"$f":"VLOOKUP(DropDownList!$B$47,CntyQryCensus!$A$206:$HH$248,CN$1)","v":2},{"$f":"VLOOKUP(DropDownList!$B$47,CntyQryCensus!$A$206:$HH$248,CO$1)","v":72},{"$f":"VLOOKUP(DropDownList!$B$47,CntyQryCensus!$A$206:$HH$248,CP$1)","v":6},{"$f":"VLOOKUP(DropDownList!$B$47,CntyQryCensus!$A$206:$HH$248,CQ$1)","v":4},{"$f":"VLOOKUP(DropDownList!$B$47,CntyQryCensus!$A$206:$HH$248,CR$1)","v":12},{"$f":"VLOOKUP(DropDownList!$B$47,CntyQryCensus!$A$206:$HH$248,CS$1)","v":2},{"$f":"VLOOKUP(DropDownList!$B$47,CntyQryCensus!$A$206:$HH$248,CT$1)","v":4},{"$f":"VLOOKUP(DropDownList!$B$47,CntyQryCensus!$A$206:$HH$248,CU$1)","v":6},{"$f":"VLOOKUP(DropDownList!$B$47,CntyQryCensus!$A$206:$HH$248,CV$1)","v":2},{"$f":"VLOOKUP(DropDownList!$B$47,CntyQryCensus!$A$206:$HH$248,CW$1)","v":10},{"$f":"VLOOKUP(DropDownList!$B$47,CntyQryCensus!$A$206:$HH$248,CX$1)","v":4},{"$f":"VLOOKUP(DropDownList!$B$47,CntyQryCensus!$A$206:$HH$248,CY$1)","v":2},{"$f":"VLOOKUP(DropDownList!$B$47,CntyQryCensus!$A$206:$HH$248,CZ$1)","v":9},{"$f":"VLOOKUP(DropDownList!$B$47,CntyQryCensus!$A$206:$HH$248,DA$1)","v":5},{"$f":"VLOOKUP(DropDownList!$B$47,CntyQryCensus!$A$206:$HH$248,DB$1)","v":2},{"$f":"VLOOKUP(DropDownList!$B$47,CntyQryCensus!$A$206:$HH$248,DC$1)","v":4},{"$f":"VLOOKUP(DropDownList!$B$47,CntyQryCensus!$A$206:$HH$248,DD$1)","v":0},{"$f":"VLOOKUP(DropDownList!$B$47,CntyQryCensus!$A$206:$HH$248,DE$1)","v":0},{"$f":"VLOOKUP(DropDownList!$B$47,CntyQryCensus!$A$206:$HH$248,DF$1)","v":53},{"$f":"VLOOKUP(DropDownList!$B$47,CntyQryCensus!$A$206:$HH$248,DG$1)","v":4},{"$f":"VLOOKUP(DropDownList!$B$47,CntyQryCensus!$A$206:$HH$248,DH$1)","v":5},{"$f":"VLOOKUP(DropDownList!$B$47,CntyQryCensus!$A$206:$HH$248,DI$1)","v":8},{"$f":"VLOOKUP(DropDownList!$B$47,CntyQryCensus!$A$206:$HH$248,DJ$1)","v":6},{"$f":"VLOOKUP(DropDownList!$B$47,CntyQryCensus!$A$206:$HH$248,DK$1)","v":9},{"$f":"VLOOKUP(DropDownList!$B$47,CntyQryCensus!$A$206:$HH$248,DL$1)","v":0},{"$f":"VLOOKUP(DropDownList!$B$47,CntyQryCensus!$A$206:$HH$248,DM$1)","v":6},{"$f":"VLOOKUP(DropDownList!$B$47,CntyQryCensus!$A$206:$HH$248,DN$1)","v":2},{"$f":"VLOOKUP(DropDownList!$B$47,CntyQryCensus!$A$206:$HH$248,DO$1)","v":2},{"$f":"VLOOKUP(DropDownList!$B$47,CntyQryCensus!$A$206:$HH$248,DP$1)","v":6},{"$f":"VLOOKUP(DropDownList!$B$47,CntyQryCensus!$A$206:$HH$248,DQ$1)","v":0},{"$f":"VLOOKUP(DropDownList!$B$47,CntyQryCensus!$A$206:$HH$248,DR$1)","v":2},{"$f":"VLOOKUP(DropDownList!$B$47,CntyQryCensus!$A$206:$HH$248,DS$1)","v":0},{"$f":"VLOOKUP(DropDownList!$B$47,CntyQryCensus!$A$206:$HH$248,DT$1)","v":1},{"$f":"VLOOKUP(DropDownList!$B$47,CntyQryCensus!$A$206:$HH$248,DU$1)","v":2},{"$f":"VLOOKUP(DropDownList!$B$47,CntyQryCensus!$A$206:$HH$248,DV$1)","v":0},{"$f":"VLOOKUP(DropDownList!$B$47,CntyQryCensus!$A$206:$HH$248,DW$1)","v":29},{"$f":"VLOOKUP(DropDownList!$B$47,CntyQryCensus!$A$206:$HH$248,DX$1)","v":3},{"$f":"VLOOKUP(DropDownList!$B$47,CntyQryCensus!$A$206:$HH$248,DY$1)","v":0},{"$f":"VLOOKUP(DropDownList!$B$47,CntyQryCensus!$A$206:$HH$248,DZ$1)","v":11},{"$f":"VLOOKUP(DropDownList!$B$47,CntyQryCensus!$A$206:$HH$248,EA$1)","v":1},{"$f":"VLOOKUP(DropDownList!$B$47,CntyQryCensus!$A$206:$HH$248,EB$1)","v":3},{"$f":"VLOOKUP(DropDownList!$B$47,CntyQryCensus!$A$206:$HH$248,EC$1)","v":4},{"$f":"VLOOKUP(DropDownList!$B$47,CntyQryCensus!$A$206:$HH$248,ED$1)","v":0},{"$f":"VLOOKUP(DropDownList!$B$47,CntyQryCensus!$A$206:$HH$248,EE$1)","v":0},{"$f":"VLOOKUP(DropDownList!$B$47,CntyQryCensus!$A$206:$HH$248,EF$1)","v":3},{"$f":"VLOOKUP(DropDownList!$B$47,CntyQryCensus!$A$206:$HH$248,EG$1)","v":1},{"$f":"VLOOKUP(DropDownList!$B$47,CntyQryCensus!$A$206:$HH$248,EH$1)","v":1},{"$f":"VLOOKUP(DropDownList!$B$47,CntyQryCensus!$A$206:$HH$248,EI$1)","v":2},{"$f":"VLOOKUP(DropDownList!$B$47,CntyQryCensus!$A$206:$HH$248,EJ$1)","v":0},{"$f":"VLOOKUP(DropDownList!$B$47,CntyQryCensus!$A$206:$HH$248,EK$1)","v":0},{"$f":"VLOOKUP(DropDownList!$B$47,CntyQryCensus!$A$206:$HH$248,EL$1)","v":0},{"$f":"VLOOKUP(DropDownList!$B$47,CntyQryCensus!$A$206:$HH$248,EM$1)","v":0},{"$f":"VLOOKUP(DropDownList!$B$47,CntyQryCensus!$A$206:$HH$248,EN$1)","v":37386},{"$f":"VLOOKUP(DropDownList!$B$47,CntyQryCensus!$A$206:$HH$248,EO$1)","v":26250},{"$f":"VLOOKUP(DropDownList!$B$47,CntyQryCensus!$A$206:$HH$248,EP$1)","v":42500},{"$f":"VLOOKUP(DropDownList!$B$47,CntyQryCensus!$A$206:$HH$248,EQ$1)","v":46667},{"$f":"VLOOKUP(DropDownList!$B$47,CntyQryCensus!$A$206:$HH$248,ER$1)","v":41528},{"$f":"VLOOKUP(DropDownList!$B$47,CntyQryCensus!$A$206:$HH$248,ES$1)","v":38750},{"$f":"VLOOKUP(DropDownList!$B$47,CntyQryCensus!$A$206:$HH$248,ET$1)","v":27188},{"$f":"VLOOKUP(DropDownList!$B$47,CntyQryCensus!$A$206:$HH$248,EU$1)","v":23750},{"$f":"VLOOKUP(DropDownList!$B$47,CntyQryCensus!$A$206:$HH$248,EV$1)","v":325},{"$f":"VLOOKUP(DropDownList!$B$47,CntyQryCensus!$A$206:$HH$248,EW$1)","v":262},{"$f":"VLOOKUP(DropDownList!$B$47,CntyQryCensus!$A$206:$HH$248,EX$1)","v":63},{"$f":"VLOOKUP(DropDownList!$B$47,CntyQryCensus!$A$206:$HH$248,EY$1)","v":229},{"$f":"VLOOKUP(DropDownList!$B$47,CntyQryCensus!$A$206:$HH$248,EZ$1)","v":96},{"$f":"VLOOKUP(DropDownList!$B$47,CntyQryCensus!$A$206:$HH$248,FA$1)","v":94},{"$f":"VLOOKUP(DropDownList!$B$47,CntyQryCensus!$A$206:$HH$248,FB$1)","v":231},{"$f":"VLOOKUP(DropDownList!$B$47,CntyQryCensus!$A$206:$HH$248,FC$1)","v":154},{"$f":"VLOOKUP(DropDownList!$B$47,CntyQryCensus!$A$206:$HH$248,FD$1)","v":171},{"$f":"VLOOKUP(DropDownList!$B$47,CntyQryCensus!$A$206:$HH$248,FE$1)","v":101},{"$f":"VLOOKUP(DropDownList!$B$47,CntyQryCensus!$A$206:$HH$248,FF$1)","v":224},{"$f":"VLOOKUP(DropDownList!$B$47,CntyQryCensus!$A$206:$HH$248,FG$1)","v":10},{"$f":"VLOOKUP(DropDownList!$B$47,CntyQryCensus!$A$206:$HH$248,FH$1)","v":315},{"$f":"VLOOKUP(DropDownList!$B$47,CntyQryCensus!$A$206:$HH$248,FI$1)","v":5},{"$f":"VLOOKUP(DropDownList!$B$47,CntyQryCensus!$A$206:$HH$248,FJ$1)","v":320},{"$f":"VLOOKUP(DropDownList!$B$47,CntyQryCensus!$A$206:$HH$248,FK$1)","v":63},{"$f":"VLOOKUP(DropDownList!$B$47,CntyQryCensus!$A$206:$HH$248,FL$1)","v":262},{"$f":"VLOOKUP(DropDownList!$B$47,CntyQryCensus!$A$206:$HH$248,FM$1)","v":36},{"$f":"VLOOKUP(DropDownList!$B$47,CntyQryCensus!$A$206:$HH$248,FN$1)","v":289},{"$f":"VLOOKUP(DropDownList!$B$47,CntyQryCensus!$A$206:$HH$248,FO$1)","v":10630300},{"$f":"VLOOKUP(DropDownList!$B$47,CntyQryCensus!$A$206:$HH$248,FP$1)","v":8885300},{"$f":"VLOOKUP(DropDownList!$B$47,CntyQryCensus!$A$206:$HH$248,FQ$1)","v":1745100},{"$f":"VLOOKUP(DropDownList!$B$47,CntyQryCensus!$A$206:$HH$248,FR$1)","v":1892700},{"$f":"VLOOKUP(DropDownList!$B$47,CntyQryCensus!$A$206:$HH$248,FS$1)","v":1170100},{"$f":"VLOOKUP(DropDownList!$B$47,CntyQryCensus!$A$206:$HH$248,FT$1)","v":47000},{"$f":"VLOOKUP(DropDownList!$B$47,CntyQryCensus!$A$206:$HH$248,FU$1)","v":11100},{"$f":"VLOOKUP(DropDownList!$B$47,CntyQryCensus!$A$206:$HH$248,FV$1)","v":965300},{"$f":"VLOOKUP(DropDownList!$B$47,CntyQryCensus!$A$206:$HH$248,FW$1)","v":237},{"$f":"VLOOKUP(DropDownList!$B$47,CntyQryCensus!$A$206:$HH$248,FX$1)","v":12},{"$f":"VLOOKUP(DropDownList!$B$47,CntyQryCensus!$A$206:$HH$248,FY$1)","v":6},{"$f":"VLOOKUP(DropDownList!$B$47,CntyQryCensus!$A$206:$HH$248,FZ$1)","v":30},{"$f":"VLOOKUP(DropDownList!$B$47,CntyQryCensus!$A$206:$HH$248,GA$1)","v":9},{"$f":"VLOOKUP(DropDownList!$B$47,CntyQryCensus!$A$206:$HH$248,GB$1)","v":21},{"$f":"VLOOKUP(DropDownList!$B$47,CntyQryCensus!$A$206:$HH$248,GC$1)","v":14},{"$f":"VLOOKUP(DropDownList!$B$47,CntyQryCensus!$A$206:$HH$248,GD$1)","v":17},{"$f":"VLOOKUP(DropDownList!$B$47,CntyQryCensus!$A$206:$HH$248,GE$1)","v":30},{"$f":"VLOOKUP(DropDownList!$B$47,CntyQryCensus!$A$206:$HH$248,GF$1)","v":11},{"$f":"VLOOKUP(DropDownList!$B$47,CntyQryCensus!$A$206:$HH$248,GG$1)","v":24},{"$f":"VLOOKUP(DropDownList!$B$47,CntyQryCensus!$A$206:$HH$248,GH$1)","v":22},{"$f":"VLOOKUP(DropDownList!$B$47,CntyQryCensus!$A$206:$HH$248,GI$1)","v":26},{"$f":"VLOOKUP(DropDownList!$B$47,CntyQryCensus!$A$206:$HH$248,GJ$1)","v":4},{"$f":"VLOOKUP(DropDownList!$B$47,CntyQryCensus!$A$206:$HH$248,GK$1)","v":7},{"$f":"VLOOKUP(DropDownList!$B$47,CntyQryCensus!$A$206:$HH$248,GL$1)","v":0},{"$f":"VLOOKUP(DropDownList!$B$47,CntyQryCensus!$A$206:$HH$248,GM$1)","v":4},{"$f":"VLOOKUP(DropDownList!$B$47,CntyQryCensus!$A$206:$HH$248,GN$1)","v":41397},{"$f":"VLOOKUP(DropDownList!$B$47,CntyQryCensus!$A$206:$HH$248,GO$1)","v":11973900},{"$f":"VLOOKUP(DropDownList!$B$47,CntyQryCensus!$A$206:$HH$248,GP$1)","v":88},{"$f":"VLOOKUP(DropDownList!$B$47,CntyQryCensus!$A$206:$HH$248,GQ$1)","v":15},{"$f":"VLOOKUP(DropDownList!$B$47,CntyQryCensus!$A$206:$HH$248,GR$1)","v":6},{"$f":"VLOOKUP(DropDownList!$B$47,CntyQryCensus!$A$206:$HH$248,GS$1)","v":10},{"$f":"VLOOKUP(DropDownList!$B$47,CntyQryCensus!$A$206:$HH$248,GT$1)","v":8},{"$f":"VLOOKUP(DropDownList!$B$47,CntyQryCensus!$A$206:$HH$248,GU$1)","v":13},{"$f":"VLOOKUP(DropDownList!$B$47,CntyQryCensus!$A$206:$HH$248,GV$1)","v":10},{"$f":"VLOOKUP(DropDownList!$B$47,CntyQryCensus!$A$206:$HH$248,GW$1)","v":5},{"$f":"VLOOKUP(DropDownList!$B$47,CntyQryCensus!$A$206:$HH$248,GX$1)","v":2},{"$f":"VLOOKUP(DropDownList!$B$47,CntyQryCensus!$A$206:$HH$248,GY$1)","v":11},{"$f":"VLOOKUP(DropDownList!$B$47,CntyQryCensus!$A$206:$HH$248,GZ$1)","v":6},{"$f":"VLOOKUP(DropDownList!$B$47,CntyQryCensus!$A$206:$HH$248,HA$1)","v":0},{"$f":"VLOOKUP(DropDownList!$B$47,CntyQryCensus!$A$206:$HH$248,HB$1)","v":0},{"$f":"VLOOKUP(DropDownList!$B$47,CntyQryCensus!$A$206:$HH$248,HC$1)","v":0},{"$f":"VLOOKUP(DropDownList!$B$47,CntyQryCensus!$A$206:$HH$248,HD$1)","v":0},{"$f":"VLOOKUP(DropDownList!$B$47,CntyQryCensus!$A$206:$HH$248,HE$1)","v":2},{"$f":"VLOOKUP(DropDownList!$B$47,CntyQryCensus!$A$206:$HH$248,HF$1)","v":0},{"$f":"VLOOKUP(DropDownList!$B$47,CntyQryCensus!$A$206:$HH$248,HG$1)","v":27083},{"$f":"VLOOKUP(DropDownList!$B$47,CntyQryCensus!$A$206:$HH$248,HH$1)","v":18132}]
[]
[]
["Census 2000 SummaryFile3 Sample Data  -  SF3TownQry2bPovertyChar"]
["NAME","LOGRECNO","COUNTY","TotalPop","P52Households1","P82PerCapitaInc","P87PopForPovStatus","P87PopWIncBelowPovStatus","P87PopUnder5yrBelowPoverty","P87Pop5yrBelowPoverty","P87Pop5to11yrBelowPoverty","P87Pop12to17yrBelowPoverty","P87Pop18to64yrBelowPoverty","P87Pop65to74yrBelowPoverty","P87PopOver75yrBelowPoverty","P87PopWIncAbovePovStatus","P87PopUnder5yrAbovePoverty","P87Pop5yrAbovePoverty","P87Pop5to11yrAbovePoverty","P87Pop12to17yrAbovePoverty","P87Pop18to64yrAbovePoverty","P87Pop65to74yrAbovePoverty","P87PopOver75yrAbovePoverty","P90Families","P90FamWIncBelowPov","P90MarCupFamWIncBelowPov","P90MCFamWRltdChld<18WIncBelowPov","P90MCFamWRltdChld<5WIncBelowPov","P90MaleHhlrWIncBelowPov","P90MaleHhlrWRltdChld<18yrWIncBelowPov","P90MaleHhlrWRltdChld<5yrWIncBelowPov","P90FemaleHhlrWIncBelowPov","P90FemaleHhlrWRltdChld<18yWIncBelowPov","P90FemaleHhlrWRltdChld<5yWIncBelowPov","P90FamWIncAbovePov","P90MarCupFamWIncAbovePov","P90MCFamWRltdChld<18WIncAbovePov","P90MCFamWRltdChld<5WIncAbovePov","P90MaleHhlrWIncAbovePov","P90MaleHhlrWRltdChld<18yrWIncAbovePov","P90MaleHhlrWRltdChld<5yrWIncAbovePov","P90FemaleHhlrWIncAbovePov","P90FemaleHhlrWRltdChld<18yWIncAbovePov","P90FemaleHhlrWRltdChld<5yWIncAbovePov","P92Households","P92HHwIncBelowPov","P92FamHHwIncBelowPov","P92MCFamHHwIncBelowPov","P92MaleFamHHwIncBelowPov","P92FemaleFamHHwIncBelowPov","P92NonFamHHwIncBelowPov","P92NonFamMaleHHwIncBelowPov","P92NonFamFemaleHHwIncBelowPov","P92HHwIncAbovePov","P92FamHHwIncAbovePov","P92MCFamHHwIncAbovePov","P92MaleFamHHwIncAbovePov","P92FemaleFamHHwIncAbovePov","P92NonFamHHwIncAbovePov","P92NonFamMaleHHwIncAbovePov","P92NonFamFemaleHHwIncAbovePov"]
[{"$f":"VLOOKUP(DropDownList!$B$47,CntyQryCensus!$A$256:$BI$298,A$1)","v":"Acworth"},{"$f":"VLOOKUP(DropDownList!$B$47,CntyQryCensus!$A$256:$BI$298,B$1)","v":"0004141"},{"$f":"VLOOKUP(DropDownList!$B$47,CntyQryCensus!$A$256:$BI$298,C$1)","v":"00260"},{"$f":"VLOOKUP(DropDownList!$B$47,CntyQryCensus!$A$256:$BI$298,D$1)","v":836},{"$f":"VLOOKUP(DropDownList!$B$47,CntyQryCensus!$A$256:$BI$298,E$1)","v":325},{"$f":"VLOOKUP(DropDownList!$B$47,CntyQryCensus!$A$256:$BI$298,F$1)","v":18132},{"$f":"VLOOKUP(DropDownList!$B$47,CntyQryCensus!$A$256:$BI$298,G$1)","v":838},{"$f":"VLOOKUP(DropDownList!$B$47,CntyQryCensus!$A$256:$BI$298,H$1)","v":131},{"$f":"VLOOKUP(DropDownList!$B$47,CntyQryCensus!$A$256:$BI$298,I$1)","v":10},{"$f":"VLOOKUP(DropDownList!$B$47,CntyQryCensus!$A$256:$BI$298,J$1)","v":0},{"$f":"VLOOKUP(DropDownList!$B$47,CntyQryCensus!$A$256:$BI$298,K$1)","v":20},{"$f":"VLOOKUP(DropDownList!$B$47,CntyQryCensus!$A$256:$BI$298,L$1)","v":26},{"$f":"VLOOKUP(DropDownList!$B$47,CntyQryCensus!$A$256:$BI$298,M$1)","v":68},{"$f":"VLOOKUP(DropDownList!$B$47,CntyQryCensus!$A$256:$BI$298,N$1)","v":7},{"$f":"VLOOKUP(DropDownList!$B$47,CntyQryCensus!$A$256:$BI$298,O$1)","v":0},{"$f":"VLOOKUP(DropDownList!$B$47,CntyQryCensus!$A$256:$BI$298,P$1)","v":707},{"$f":"VLOOKUP(DropDownList!$B$47,CntyQryCensus!$A$256:$BI$298,Q$1)","v":29},{"$f":"VLOOKUP(DropDownList!$B$47,CntyQryCensus!$A$256:$BI$298,R$1)","v":9},{"$f":"VLOOKUP(DropDownList!$B$47,CntyQryCensus!$A$256:$BI$298,S$1)","v":53},{"$f":"VLOOKUP(DropDownList!$B$47,CntyQryCensus!$A$256:$BI$298,T$1)","v":61},{"$f":"VLOOKUP(DropDownList!$B$47,CntyQryCensus!$A$256:$BI$298,U$1)","v":432},{"$f":"VLOOKUP(DropDownList!$B$47,CntyQryCensus!$A$256:$BI$298,V$1)","v":76},{"$f":"VLOOKUP(DropDownList!$B$47,CntyQryCensus!$A$256:$BI$298,W$1)","v":47},{"$f":"VLOOKUP(DropDownList!$B$47,CntyQryCensus!$A$256:$BI$298,X$1)","v":237},{"$f":"VLOOKUP(DropDownList!$B$47,CntyQryCensus!$A$256:$BI$298,Y$1)","v":24},{"$f":"VLOOKUP(DropDownList!$B$47,CntyQryCensus!$A$256:$BI$298,Z$1)","v":15},{"$f":"VLOOKUP(DropDownList!$B$47,CntyQryCensus!$A$256:$BI$298,AA$1)","v":9},{"$f":"VLOOKUP(DropDownList!$B$47,CntyQryCensus!$A$256:$BI$298,AB$1)","v":0},{"$f":"VLOOKUP(DropDownList!$B$47,CntyQryCensus!$A$256:$BI$298,AC$1)","v":2},{"$f":"VLOOKUP(DropDownList!$B$47,CntyQryCensus!$A$256:$BI$298,AD$1)","v":2},{"$f":"VLOOKUP(DropDownList!$B$47,CntyQryCensus!$A$256:$BI$298,AE$1)","v":0},{"$f":"VLOOKUP(DropDownList!$B$47,CntyQryCensus!$A$256:$BI$298,AF$1)","v":7},{"$f":"VLOOKUP(DropDownList!$B$47,CntyQryCensus!$A$256:$BI$298,AG$1)","v":7},{"$f":"VLOOKUP(DropDownList!$B$47,CntyQryCensus!$A$256:$BI$298,AH$1)","v":2},{"$f":"VLOOKUP(DropDownList!$B$47,CntyQryCensus!$A$256:$BI$298,AI$1)","v":213},{"$f":"VLOOKUP(DropDownList!$B$47,CntyQryCensus!$A$256:$BI$298,AJ$1)","v":182},{"$f":"VLOOKUP(DropDownList!$B$47,CntyQryCensus!$A$256:$BI$298,AK$1)","v":76},{"$f":"VLOOKUP(DropDownList!$B$47,CntyQryCensus!$A$256:$BI$298,AL$1)","v":10},{"$f":"VLOOKUP(DropDownList!$B$47,CntyQryCensus!$A$256:$BI$298,AM$1)","v":14},{"$f":"VLOOKUP(DropDownList!$B$47,CntyQryCensus!$A$256:$BI$298,AN$1)","v":6},{"$f":"VLOOKUP(DropDownList!$B$47,CntyQryCensus!$A$256:$BI$298,AO$1)","v":2},{"$f":"VLOOKUP(DropDownList!$B$47,CntyQryCensus!$A$256:$BI$298,AP$1)","v":17},{"$f":"VLOOKUP(DropDownList!$B$47,CntyQryCensus!$A$256:$BI$298,AQ$1)","v":6},{"$f":"VLOOKUP(DropDownList!$B$47,CntyQryCensus!$A$256:$BI$298,AR$1)","v":0},{"$f":"VLOOKUP(DropDownList!$B$47,CntyQryCensus!$A$256:$BI$298,AS$1)","v":325},{"$f":"VLOOKUP(DropDownList!$B$47,CntyQryCensus!$A$256:$BI$298,AT$1)","v":34},{"$f":"VLOOKUP(DropDownList!$B$47,CntyQryCensus!$A$256:$BI$298,AU$1)","v":24},{"$f":"VLOOKUP(DropDownList!$B$47,CntyQryCensus!$A$256:$BI$298,AV$1)","v":15},{"$f":"VLOOKUP(DropDownList!$B$47,CntyQryCensus!$A$256:$BI$298,AW$1)","v":2},{"$f":"VLOOKUP(DropDownList!$B$47,CntyQryCensus!$A$256:$BI$298,AX$1)","v":7},{"$f":"VLOOKUP(DropDownList!$B$47,CntyQryCensus!$A$256:$BI$298,AY$1)","v":10},{"$f":"VLOOKUP(DropDownList!$B$47,CntyQryCensus!$A$256:$BI$298,AZ$1)","v":4},{"$f":"VLOOKUP(DropDownList!$B$47,CntyQryCensus!$A$256:$BI$298,BA$1)","v":6},{"$f":"VLOOKUP(DropDownList!$B$47,CntyQryCensus!$A$256:$BI$298,BB$1)","v":291},{"$f":"VLOOKUP(DropDownList!$B$47,CntyQryCensus!$A$256:$BI$298,BC$1)","v":213},{"$f":"VLOOKUP(DropDownList!$B$47,CntyQryCensus!$A$256:$BI$298,BD$1)","v":182},{"$f":"VLOOKUP(DropDownList!$B$47,CntyQryCensus!$A$256:$BI$298,BE$1)","v":14},{"$f":"VLOOKUP(DropDownList!$B$47,CntyQryCensus!$A$256:$BI$298,BF$1)","v":17},{"$f":"VLOOKUP(DropDownList!$B$47,CntyQryCensus!$A$256:$BI$298,BG$1)","v":78},{"$f":"VLOOKUP(DropDownList!$B$47,CntyQryCensus!$A$256:$BI$298,BH$1)","v":47},{"$f":"VLOOKUP(DropDownList!$B$47,CntyQryCensus!$A$256:$BI$298,BI$1)","v":31}]
[null,null,null,null,null,null,null,null,null,null,null,null,null,null,null,null,null,null,{"$f":"SUM(R60:T60)","v":123}]
[]
["Census 2000 SummaryFile3 Sample Data  -  SF3TownQry7HousingA"]
["NAME","LOGRECNO","COUNTY","TotalPop","H1HousingUnitsTotal","H2SampleHU","H2SampleOccHU","H2SampleVacHU","H3HU100pctCount","H5HUTotal","H5HUUrban","H5HUUrbanInUrbanAreas","H5HUUrbanInUrbanClusters","H5HURural","H5HURuralFarm","H5HURuralNonFarm","H7HUOcc","H7HUOwnrOcc","H7HURentrOcc","H8HUVacant","H8HUVacantForRent","H8HUVacantForSale","H8HUVacRentedorSold","H8HUVacSeasonal","H8HUVacForMigrantWrkrs","H8HUOtherVacant","H14OccHUa","H14OwnerOccHU","H14OwnOccHuHh15to24","H14OwnOccHuHh25to34","H14OwnOccHuHh35to44","H14OwnOccHuHh45to54","H14OwnOccHuHh55to59","H14OwnOccHuHh60to64","H14OwnOccHuHh65to74","H14OwnOccHuHh75to84","H14OwnOccHuHh85Over","H14RenterOccHU1","H14RntrOccHuHh15to24","H14RntrOccHuHh25to34","H14RntrOccHuHh35to44","H14RntrOccHuHh45to54","H14RntrOccHuHh55to59","H14RntrOccHuHh60to64","H14RntrOccHuHh65to74","H14RntrOccHuHh75to84","H14RntrOccHuHh85Over","H15PopInOccHU","H15PopInOwnOccHU1","H15PopInRentOccHU1","H17OccupHUb","H17OwnOccHU2","H17OwnOccHU1PersonHH","H17OwnOccHU2PersonHH","H17OwnOccHU3PersonHH","H17OwnOccHU4PersonHH","H17OwnOccHU5PersonHH","H17OwnOccHU6PersonHH","H17OwnOccHU7PlusPersonHH","H17RentOccHU2","H17RntOccHU1PersonHH","H17RntOccHU2PersonHH","H17RntOccHU3PersonHH","H17RntOccHU4PersonHH","H17RntOccHU5PersonHH","H17RntOccHU6PersonHH","H17RntOccHU7PlusPersonHH","H18AvgHHSize","H18AvgHHSizeOwnOcc","H18AvgHHSizeRentOcc","H23TotHU","H23HU1Room","H23HU2Room","H23HU3Room","H23HU4Room","H23HU5Room","H23HU6Room","H23HU7Room","H23HU8Room","H23HU9orMoreRoom","H24MedianNumRooms","H25AggregNumRooms","H30TotalHU","H30Det1HU","H30Att1HU","H30Units2","H30Units3or4","H30Units5to9","H30Units10to19","H30Units20to49","H30Units50orMore","H30UnitsMobileHome","H30UnitsBoatRv","H32OccHUcTotal","H32OwnerOccHU3","H32OwnOccHU1Det","H32OwnOccHU1Att","H32OwnOccHU2Unit","H32OwnOccHU3to4Unit","H32OwnOccHU5to9Unit","H32OwnOccHU10to19Unit","H32OwnOccHU20to49Unit","H32OwnOccHU50plusUnit","H32OwnOccHUMobHom","H32OwnOccHUBoatRVOth","H32RentrOccHU3","H32RntrOccHU1Det","H32RntrOccHU1Att","H32RntrOccHU2Unit","H32RntrOccHU3to4Unit","H32RntrOccHU5to9Unit","H32RntrOccHU10to19Unit","H32RntrOccHU20to49Unit","H32RntrOccHU50PlusUnit","H32RntrOccHUMobHom","H32RntrOccHUBoatRVOth","H33TotPopInOccHU","H33PopInOwnOccHU2","H33PopInOOHU1Det","H33PopInOOHU1Att","H33PopInOOHU2unit","H33PopInOOHU3to4Unit","H33PopInOOHU5to9Unit","H33PopInOOHU10to19Unit","H33PopInOOHU20to49Unit","H33PopInOOHU50PlusUnit","H33PopInOOHUMobilHome","H33PopInOOHUOtherUnit","H33PopInRentOccHU2","H33PopInROHU1Det","H33PopInROHU1Att","H33PopInROHU2Unit","H33PopInROHU3to4Unit","H33PopInROHU5to9Unit","H33PopInROHU10to19Unit","H33PopInROHU20to49Unit","H33PopInROHU50PlusUnit","H33PopInROHUMobilHome","H33PopInROHUOtherUnit","H36OccHousingUnitsdTotal","H36OwnerOccHU4","H36OOHUBuilt99to0300","H36OOHUBuilt95to98","H36OOHUBuilt90to94","H36OOHUBuilt80to89","H36OOHUBuilt70to79","H36OOHUBuilt60to69","H36OOHUBuilt50to59","H36OOHUBuilt40to49","H36OOHUBuilt39Earlier","H36RentOccHU4","H36ROHUBuilt99to0300","H36ROHUBuilt95to98","H36ROHUBuilt90to94","H36ROHUBuilt80to89","H36ROHUBuilt70to79","H36ROHUBuilt60to69","H36ROHUBuilt50to59","H36ROHUBuilt40to49","H36ROHUBuilt39Earlier","H40OccupHousUnitse","H40HeatFuelUtilGas","H40HeatFuelBotGas","H40HeatFuelElect","H40HeatFuelOilKero","H40HeatFuelCoal","H40HeatFuelWood","H40HeatFuelSolar","H40HeatFuelOther","H40HeatFuelNone","H41TotalHU","H41HUNoBdrm","H41HU1Bdrm","H41HU2Bdrm","H41HU3Bdrm","H41HU4Bdrm","H41HU5MoreBdrm","H42OccuHousUnitf","H42OwnerOccHU5","H42OOHUNoBdrm","H42OOHU1Bdrm","H42OOHU2Bdrm","H42OOHU3Bdrm","H42OOHU4Bdrm","H42OOHU5PlusBdrm","H42RentOccHU5","H42ROHUNoBdrm","H42ROHU1Bdrm","H42ROHU2Bdrm","H42ROHU3Bdrm","H42ROHU4Bdrm","H42ROHU5PlusBdrm","H48OccupHousUnitsg","H48OwnerOccHU6","H48OOHUwCompltPlumFacil","H48OOHULackCompltPlumFacil","H48RentOccHU6","H48ROHUwCompltPlumFacil","H48ROHULackCompltPlumFacil","H51OccupHousUnitf","H51OwnerOccHU7","H51OOHUwCompleteKitFacil","H51OOHULackCompleteKitFacil","H51RenterOccHU7","H51ROHUwCompleteKitFacil","H51ROHULackCompleteKitFacil"]
[{"$f":"VLOOKUP(DropDownList!$B47,CntyQryCensus!$A$306:$GX$348,A$1)","v":"Acworth"},{"$f":"VLOOKUP(DropDownList!$B47,CntyQryCensus!$A$306:$GX$348,B$1)","v":"0004141"},{"$f":"VLOOKUP(DropDownList!$B47,CntyQryCensus!$A$306:$GX$348,C$1)","v":"00260"},{"$f":"VLOOKUP(DropDownList!$B47,CntyQryCensus!$A$306:$GX$348,D$1)","v":836},{"$f":"VLOOKUP(DropDownList!$B47,CntyQryCensus!$A$306:$GX$348,E$1)","v":515},{"$f":"VLOOKUP(DropDownList!$B47,CntyQryCensus!$A$306:$GX$348,F$1)","v":241},{"$f":"VLOOKUP(DropDownList!$B47,CntyQryCensus!$A$306:$GX$348,G$1)","v":152},{"$f":"VLOOKUP(DropDownList!$B47,CntyQryCensus!$A$306:$GX$348,H$1)","v":89},{"$f":"VLOOKUP(DropDownList!$B47,CntyQryCensus!$A$306:$GX$348,I$1)","v":512},{"$f":"VLOOKUP(DropDownList!$B47,CntyQryCensus!$A$306:$GX$348,J$1)","v":515},{"$f":"VLOOKUP(DropDownList!$B47,CntyQryCensus!$A$306:$GX$348,K$1)","v":0},{"$f":"VLOOKUP(DropDownList!$B47,CntyQryCensus!$A$306:$GX$348,L$1)","v":0},{"$f":"VLOOKUP(DropDownList!$B47,CntyQryCensus!$A$306:$GX$348,M$1)","v":0},{"$f":"VLOOKUP(DropDownList!$B47,CntyQryCensus!$A$306:$GX$348,N$1)","v":515},{"$f":"VLOOKUP(DropDownList!$B47,CntyQryCensus!$A$306:$GX$348,O$1)","v":18},{"$f":"VLOOKUP(DropDownList!$B47,CntyQryCensus!$A$306:$GX$348,P$1)","v":497},{"$f":"VLOOKUP(DropDownList!$B47,CntyQryCensus!$A$306:$GX$348,Q$1)","v":319},{"$f":"VLOOKUP(DropDownList!$B47,CntyQryCensus!$A$306:$GX$348,R$1)","v":263},{"$f":"VLOOKUP(DropDownList!$B47,CntyQryCensus!$A$306:$GX$348,S$1)","v":56},{"$f":"VLOOKUP(DropDownList!$B47,CntyQryCensus!$A$306:$GX$348,T$1)","v":196},{"$f":"VLOOKUP(DropDownList!$B47,CntyQryCensus!$A$306:$GX$348,U$1)","v":5},{"$f":"VLOOKUP(DropDownList!$B47,CntyQryCensus!$A$306:$GX$348,V$1)","v":2},{"$f":"VLOOKUP(DropDownList!$B47,CntyQryCensus!$A$306:$GX$348,W$1)","v":4},{"$f":"VLOOKUP(DropDownList!$B47,CntyQryCensus!$A$306:$GX$348,X$1)","v":170},{"$f":"VLOOKUP(DropDownList!$B47,CntyQryCensus!$A$306:$GX$348,Y$1)","v":0},{"$f":"VLOOKUP(DropDownList!$B47,CntyQryCensus!$A$306:$GX$348,Z$1)","v":15},{"$f":"VLOOKUP(DropDownList!$B47,CntyQryCensus!$A$306:$GX$348,AA$1)","v":319},{"$f":"VLOOKUP(DropDownList!$B47,CntyQryCensus!$A$306:$GX$348,AB$1)","v":263},{"$f":"VLOOKUP(DropDownList!$B47,CntyQryCensus!$A$306:$GX$348,AC$1)","v":0},{"$f":"VLOOKUP(DropDownList!$B47,CntyQryCensus!$A$306:$GX$348,AD$1)","v":16},{"$f":"VLOOKUP(DropDownList!$B47,CntyQryCensus!$A$306:$GX$348,AE$1)","v":48},{"$f":"VLOOKUP(DropDownList!$B47,CntyQryCensus!$A$306:$GX$348,AF$1)","v":61},{"$f":"VLOOKUP(DropDownList!$B47,CntyQryCensus!$A$306:$GX$348,AG$1)","v":38},{"$f":"VLOOKUP(DropDownList!$B47,CntyQryCensus!$A$306:$GX$348,AH$1)","v":22},{"$f":"VLOOKUP(DropDownList!$B47,CntyQryCensus!$A$306:$GX$348,AI$1)","v":46},{"$f":"VLOOKUP(DropDownList!$B47,CntyQryCensus!$A$306:$GX$348,AJ$1)","v":22},{"$f":"VLOOKUP(DropDownList!$B47,CntyQryCensus!$A$306:$GX$348,AK$1)","v":10},{"$f":"VLOOKUP(DropDownList!$B47,CntyQryCensus!$A$306:$GX$348,AL$1)","v":56},{"$f":"VLOOKUP(DropDownList!$B47,CntyQryCensus!$A$306:$GX$348,AM$1)","v":2},{"$f":"VLOOKUP(DropDownList!$B47,CntyQryCensus!$A$306:$GX$348,AN$1)","v":8},{"$f":"VLOOKUP(DropDownList!$B47,CntyQryCensus!$A$306:$GX$348,AO$1)","v":13},{"$f":"VLOOKUP(DropDownList!$B47,CntyQryCensus!$A$306:$GX$348,AP$1)","v":8},{"$f":"VLOOKUP(DropDownList!$B47,CntyQryCensus!$A$306:$GX$348,AQ$1)","v":4},{"$f":"VLOOKUP(DropDownList!$B47,CntyQryCensus!$A$306:$GX$348,AR$1)","v":6},{"$f":"VLOOKUP(DropDownList!$B47,CntyQryCensus!$A$306:$GX$348,AS$1)","v":9},{"$f":"VLOOKUP(DropDownList!$B47,CntyQryCensus!$A$306:$GX$348,AT$1)","v":4},{"$f":"VLOOKUP(DropDownList!$B47,CntyQryCensus!$A$306:$GX$348,AU$1)","v":2},{"$f":"VLOOKUP(DropDownList!$B47,CntyQryCensus!$A$306:$GX$348,AV$1)","v":840},{"$f":"VLOOKUP(DropDownList!$B47,CntyQryCensus!$A$306:$GX$348,AW$1)","v":700},{"$f":"VLOOKUP(DropDownList!$B47,CntyQryCensus!$A$306:$GX$348,AX$1)","v":140},{"$f":"VLOOKUP(DropDownList!$B47,CntyQryCensus!$A$306:$GX$348,AY$1)","v":319},{"$f":"VLOOKUP(DropDownList!$B47,CntyQryCensus!$A$306:$GX$348,AZ$1)","v":263},{"$f":"VLOOKUP(DropDownList!$B47,CntyQryCensus!$A$306:$GX$348,BA$1)","v":52},{"$f":"VLOOKUP(DropDownList!$B47,CntyQryCensus!$A$306:$GX$348,BB$1)","v":107},{"$f":"VLOOKUP(DropDownList!$B47,CntyQryCensus!$A$306:$GX$348,BC$1)","v":44},{"$f":"VLOOKUP(DropDownList!$B47,CntyQryCensus!$A$306:$GX$348,BD$1)","v":34},{"$f":"VLOOKUP(DropDownList!$B47,CntyQryCensus!$A$306:$GX$348,BE$1)","v":20},{"$f":"VLOOKUP(DropDownList!$B47,CntyQryCensus!$A$306:$GX$348,BF$1)","v":3},{"$f":"VLOOKUP(DropDownList!$B47,CntyQryCensus!$A$306:$GX$348,BG$1)","v":3},{"$f":"VLOOKUP(DropDownList!$B47,CntyQryCensus!$A$306:$GX$348,BH$1)","v":56},{"$f":"VLOOKUP(DropDownList!$B47,CntyQryCensus!$A$306:$GX$348,BI$1)","v":18},{"$f":"VLOOKUP(DropDownList!$B47,CntyQryCensus!$A$306:$GX$348,BJ$1)","v":20},{"$f":"VLOOKUP(DropDownList!$B47,CntyQryCensus!$A$306:$GX$348,BK$1)","v":3},{"$f":"VLOOKUP(DropDownList!$B47,CntyQryCensus!$A$306:$GX$348,BL$1)","v":10},{"$f":"VLOOKUP(DropDownList!$B47,CntyQryCensus!$A$306:$GX$348,BM$1)","v":3},{"$f":"VLOOKUP(DropDownList!$B47,CntyQryCensus!$A$306:$GX$348,BN$1)","v":0},{"$f":"VLOOKUP(DropDownList!$B47,CntyQryCensus!$A$306:$GX$348,BO$1)","v":2},{"$f":"VLOOKUP(DropDownList!$B47,CntyQryCensus!$A$306:$GX$348,BP$1)","v":3},{"$f":"VLOOKUP(DropDownList!$B47,CntyQryCensus!$A$306:$GX$348,BQ$1)","v":3},{"$f":"VLOOKUP(DropDownList!$B47,CntyQryCensus!$A$306:$GX$348,BR$1)","v":2},{"$f":"VLOOKUP(DropDownList!$B47,CntyQryCensus!$A$306:$GX$348,BS$1)","v":515},{"$f":"VLOOKUP(DropDownList!$B47,CntyQryCensus!$A$306:$GX$348,BT$1)","v":16},{"$f":"VLOOKUP(DropDownList!$B47,CntyQryCensus!$A$306:$GX$348,BU$1)","v":30},{"$f":"VLOOKUP(DropDownList!$B47,CntyQryCensus!$A$306:$GX$348,BV$1)","v":63},{"$f":"VLOOKUP(DropDownList!$B47,CntyQryCensus!$A$306:$GX$348,BW$1)","v":95},{"$f":"VLOOKUP(DropDownList!$B47,CntyQryCensus!$A$306:$GX$348,BX$1)","v":85},{"$f":"VLOOKUP(DropDownList!$B47,CntyQryCensus!$A$306:$GX$348,BY$1)","v":59},{"$f":"VLOOKUP(DropDownList!$B47,CntyQryCensus!$A$306:$GX$348,BZ$1)","v":71},{"$f":"VLOOKUP(DropDownList!$B47,CntyQryCensus!$A$306:$GX$348,CA$1)","v":54},{"$f":"VLOOKUP(DropDownList!$B47,CntyQryCensus!$A$306:$GX$348,CB$1)","v":42},{"$f":"VLOOKUP(DropDownList!$B47,CntyQryCensus!$A$306:$GX$348,CC$1)","v":5},{"$f":"VLOOKUP(DropDownList!$B47,CntyQryCensus!$A$306:$GX$348,CD$1)","v":2773},{"$f":"VLOOKUP(DropDownList!$B47,CntyQryCensus!$A$306:$GX$348,CE$1)","v":515},{"$f":"VLOOKUP(DropDownList!$B47,CntyQryCensus!$A$306:$GX$348,CF$1)","v":458},{"$f":"VLOOKUP(DropDownList!$B47,CntyQryCensus!$A$306:$GX$348,CG$1)","v":4},{"$f":"VLOOKUP(DropDownList!$B47,CntyQryCensus!$A$306:$GX$348,CH$1)","v":9},{"$f":"VLOOKUP(DropDownList!$B47,CntyQryCensus!$A$306:$GX$348,CI$1)","v":0},{"$f":"VLOOKUP(DropDownList!$B47,CntyQryCensus!$A$306:$GX$348,CJ$1)","v":0},{"$f":"VLOOKUP(DropDownList!$B47,CntyQryCensus!$A$306:$GX$348,CK$1)","v":0},{"$f":"VLOOKUP(DropDownList!$B47,CntyQryCensus!$A$306:$GX$348,CL$1)","v":0},{"$f":"VLOOKUP(DropDownList!$B47,CntyQryCensus!$A$306:$GX$348,CM$1)","v":0},{"$f":"VLOOKUP(DropDownList!$B47,CntyQryCensus!$A$306:$GX$348,CN$1)","v":40},{"$f":"VLOOKUP(DropDownList!$B47,CntyQryCensus!$A$306:$GX$348,CO$1)","v":4},{"$f":"VLOOKUP(DropDownList!$B47,CntyQryCensus!$A$306:$GX$348,CP$1)","v":319},{"$f":"VLOOKUP(DropDownList!$B47,CntyQryCensus!$A$306:$GX$348,CQ$1)","v":263},{"$f":"VLOOKUP(DropDownList!$B47,CntyQryCensus!$A$306:$GX$348,CR$1)","v":240},{"$f":"VLOOKUP(DropDownList!$B47,CntyQryCensus!$A$306:$GX$348,CS$1)","v":0},{"$f":"VLOOKUP(DropDownList!$B47,CntyQryCensus!$A$306:$GX$348,CT$1)","v":2},{"$f":"VLOOKUP(DropDownList!$B47,CntyQryCensus!$A$306:$GX$348,CU$1)","v":0},{"$f":"VLOOKUP(DropDownList!$B47,CntyQryCensus!$A$306:$GX$348,CV$1)","v":0},{"$f":"VLOOKUP(DropDownList!$B47,CntyQryCensus!$A$306:$GX$348,CW$1)","v":0},{"$f":"VLOOKUP(DropDownList!$B47,CntyQryCensus!$A$306:$GX$348,CX$1)","v":0},{"$f":"VLOOKUP(DropDownList!$B47,CntyQryCensus!$A$306:$GX$348,CY$1)","v":0},{"$f":"VLOOKUP(DropDownList!$B47,CntyQryCensus!$A$306:$GX$348,CZ$1)","v":21},{"$f":"VLOOKUP(DropDownList!$B47,CntyQryCensus!$A$306:$GX$348,DA$1)","v":0},{"$f":"VLOOKUP(DropDownList!$B47,CntyQryCensus!$A$306:$GX$348,DB$1)","v":56},{"$f":"VLOOKUP(DropDownList!$B47,CntyQryCensus!$A$306:$GX$348,DC$1)","v":44},{"$f":"VLOOKUP(DropDownList!$B47,CntyQryCensus!$A$306:$GX$348,DD$1)","v":2},{"$f":"VLOOKUP(DropDownList!$B47,CntyQryCensus!$A$306:$GX$348,DE$1)","v":4},{"$f":"VLOOKUP(DropDownList!$B47,CntyQryCensus!$A$306:$GX$348,DF$1)","v":0},{"$f":"VLOOKUP(DropDownList!$B47,CntyQryCensus!$A$306:$GX$348,DG$1)","v":0},{"$f":"VLOOKUP(DropDownList!$B47,CntyQryCensus!$A$306:$GX$348,DH$1)","v":0},{"$f":"VLOOKUP(DropDownList!$B47,CntyQryCensus!$A$306:$GX$348,DI$1)","v":0},{"$f":"VLOOKUP(DropDownList!$B47,CntyQryCensus!$A$306:$GX$348,DJ$1)","v":0},{"$f":"VLOOKUP(DropDownList!$B47,CntyQryCensus!$A$306:$GX$348,DK$1)","v":6},{"$f":"VLOOKUP(DropDownList!$B47,CntyQryCensus!$A$306:$GX$348,DL$1)","v":0},{"$f":"VLOOKUP(DropDownList!$B47,CntyQryCensus!$A$306:$GX$348,DM$1)","v":840},{"$f":"VLOOKUP(DropDownList!$B47,CntyQryCensus!$A$306:$GX$348,DN$1)","v":700},{"$f":"VLOOKUP(DropDownList!$B47,CntyQryCensus!$A$306:$GX$348,DO$1)","v":638},{"$f":"VLOOKUP(DropDownList!$B47,CntyQryCensus!$A$306:$GX$348,DP$1)","v":0},{"$f":"VLOOKUP(DropDownList!$B47,CntyQryCensus!$A$306:$GX$348,DQ$1)","v":5},{"$f":"VLOOKUP(DropDownList!$B47,CntyQryCensus!$A$306:$GX$348,DR$1)","v":0},{"$f":"VLOOKUP(DropDownList!$B47,CntyQryCensus!$A$306:$GX$348,DS$1)","v":0},{"$f":"VLOOKUP(DropDownList!$B47,CntyQryCensus!$A$306:$GX$348,DT$1)","v":0},{"$f":"VLOOKUP(DropDownList!$B47,CntyQryCensus!$A$306:$GX$348,DU$1)","v":0},{"$f":"VLOOKUP(DropDownList!$B47,CntyQryCensus!$A$306:$GX$348,DV$1)","v":0},{"$f":"VLOOKUP(DropDownList!$B47,CntyQryCensus!$A$306:$GX$348,DW$1)","v":57},{"$f":"VLOOKUP(DropDownList!$B47,CntyQryCensus!$A$306:$GX$348,DX$1)","v":0},{"$f":"VLOOKUP(DropDownList!$B47,CntyQryCensus!$A$306:$GX$348,DY$1)","v":140},{"$f":"VLOOKUP(DropDownList!$B47,CntyQryCensus!$A$306:$GX$348,DZ$1)","v":121},{"$f":"VLOOKUP(DropDownList!$B47,CntyQryCensus!$A$306:$GX$348,EA$1)","v":2},{"$f":"VLOOKUP(DropDownList!$B47,CntyQryCensus!$A$306:$GX$348,EB$1)","v":8},{"$f":"VLOOKUP(DropDownList!$B47,CntyQryCensus!$A$306:$GX$348,EC$1)","v":0},{"$f":"VLOOKUP(DropDownList!$B47,CntyQryCensus!$A$306:$GX$348,ED$1)","v":0},{"$f":"VLOOKUP(DropDownList!$B47,CntyQryCensus!$A$306:$GX$348,EE$1)","v":0},{"$f":"VLOOKUP(DropDownList!$B47,CntyQryCensus!$A$306:$GX$348,EF$1)","v":0},{"$f":"VLOOKUP(DropDownList!$B47,CntyQryCensus!$A$306:$GX$348,EG$1)","v":0},{"$f":"VLOOKUP(DropDownList!$B47,CntyQryCensus!$A$306:$GX$348,EH$1)","v":9},{"$f":"VLOOKUP(DropDownList!$B47,CntyQryCensus!$A$306:$GX$348,EI$1)","v":0},{"$f":"VLOOKUP(DropDownList!$B47,CntyQryCensus!$A$306:$GX$348,EJ$1)","v":319},{"$f":"VLOOKUP(DropDownList!$B47,CntyQryCensus!$A$306:$GX$348,EK$1)","v":263},{"$f":"VLOOKUP(DropDownList!$B47,CntyQryCensus!$A$306:$GX$348,EL$1)","v":0},{"$f":"VLOOKUP(DropDownList!$B47,CntyQryCensus!$A$306:$GX$348,EM$1)","v":8},{"$f":"VLOOKUP(DropDownList!$B47,CntyQryCensus!$A$306:$GX$348,EN$1)","v":11},{"$f":"VLOOKUP(DropDownList!$B47,CntyQryCensus!$A$306:$GX$348,EO$1)","v":54},{"$f":"VLOOKUP(DropDownList!$B47,CntyQryCensus!$A$306:$GX$348,EP$1)","v":44},{"$f":"VLOOKUP(DropDownList!$B47,CntyQryCensus!$A$306:$GX$348,EQ$1)","v":18},{"$f":"VLOOKUP(DropDownList!$B47,CntyQryCensus!$A$306:$GX$348,ER$1)","v":9},{"$f":"VLOOKUP(DropDownList!$B47,CntyQryCensus!$A$306:$GX$348,ES$1)","v":14},{"$f":"VLOOKUP(DropDownList!$B47,CntyQryCensus!$A$306:$GX$348,ET$1)","v":105},{"$f":"VLOOKUP(DropDownList!$B47,CntyQryCensus!$A$306:$GX$348,EU$1)","v":56},{"$f":"VLOOKUP(DropDownList!$B47,CntyQryCensus!$A$306:$GX$348,EV$1)","v":0},{"$f":"VLOOKUP(DropDownList!$B47,CntyQryCensus!$A$306:$GX$348,EW$1)","v":0},{"$f":"VLOOKUP(DropDownList!$B47,CntyQryCensus!$A$306:$GX$348,EX$1)","v":2},{"$f":"VLOOKUP(DropDownList!$B47,CntyQryCensus!$A$306:$GX$348,EY$1)","v":2},{"$f":"VLOOKUP(DropDownList!$B47,CntyQryCensus!$A$306:$GX$348,EZ$1)","v":4},{"$f":"VLOOKUP(DropDownList!$B47,CntyQryCensus!$A$306:$GX$348,FA$1)","v":4},{"$f":"VLOOKUP(DropDownList!$B47,CntyQryCensus!$A$306:$GX$348,FB$1)","v":7},{"$f":"VLOOKUP(DropDownList!$B47,CntyQryCensus!$A$306:$GX$348,FC$1)","v":2},{"$f":"VLOOKUP(DropDownList!$B47,CntyQryCensus!$A$306:$GX$348,FD$1)","v":35},{"$f":"VLOOKUP(DropDownList!$B47,CntyQryCensus!$A$306:$GX$348,FE$1)","v":319},{"$f":"VLOOKUP(DropDownList!$B47,CntyQryCensus!$A$306:$GX$348,FF$1)","v":3},{"$f":"VLOOKUP(DropDownList!$B47,CntyQryCensus!$A$306:$GX$348,FG$1)","v":35},{"$f":"VLOOKUP(DropDownList!$B47,CntyQryCensus!$A$306:$GX$348,FH$1)","v":0},{"$f":"VLOOKUP(DropDownList!$B47,CntyQryCensus!$A$306:$GX$348,FI$1)","v":149},{"$f":"VLOOKUP(DropDownList!$B47,CntyQryCensus!$A$306:$GX$348,FJ$1)","v":0},{"$f":"VLOOKUP(DropDownList!$B47,CntyQryCensus!$A$306:$GX$348,FK$1)","v":132},{"$f":"VLOOKUP(DropDownList!$B47,CntyQryCensus!$A$306:$GX$348,FL$1)","v":0},{"$f":"VLOOKUP(DropDownList!$B47,CntyQryCensus!$A$306:$GX$348,FM$1)","v":0},{"$f":"VLOOKUP(DropDownList!$B47,CntyQryCensus!$A$306:$GX$348,FN$1)","v":0},{"$f":"VLOOKUP(DropDownList!$B47,CntyQryCensus!$A$306:$GX$348,FO$1)","v":515},{"$f":"VLOOKUP(DropDownList!$B47,CntyQryCensus!$A$306:$GX$348,FP$1)","v":16},{"$f":"VLOOKUP(DropDownList!$B47,CntyQryCensus!$A$306:$GX$348,FQ$1)","v":95},{"$f":"VLOOKUP(DropDownList!$B47,CntyQryCensus!$A$306:$GX$348,FR$1)","v":170},{"$f":"VLOOKUP(DropDownList!$B47,CntyQryCensus!$A$306:$GX$348,FS$1)","v":148},{"$f":"VLOOKUP(DropDownList!$B47,CntyQryCensus!$A$306:$GX$348,FT$1)","v":62},{"$f":"VLOOKUP(DropDownList!$B47,CntyQryCensus!$A$306:$GX$348,FU$1)","v":24},{"$f":"VLOOKUP(DropDownList!$B47,CntyQryCensus!$A$306:$GX$348,FV$1)","v":319},{"$f":"VLOOKUP(DropDownList!$B47,CntyQryCensus!$A$306:$GX$348,FW$1)","v":263},{"$f":"VLOOKUP(DropDownList!$B47,CntyQryCensus!$A$306:$GX$348,FX$1)","v":1},{"$f":"VLOOKUP(DropDownList!$B47,CntyQryCensus!$A$306:$GX$348,FY$1)","v":19},{"$f":"VLOOKUP(DropDownList!$B47,CntyQryCensus!$A$306:$GX$348,FZ$1)","v":82},{"$f":"VLOOKUP(DropDownList!$B47,CntyQryCensus!$A$306:$GX$348,GA$1)","v":108},{"$f":"VLOOKUP(DropDownList!$B47,CntyQryCensus!$A$306:$GX$348,GB$1)","v":34},{"$f":"VLOOKUP(DropDownList!$B47,CntyQryCensus!$A$306:$GX$348,GC$1)","v":19},{"$f":"VLOOKUP(DropDownList!$B47,CntyQryCensus!$A$306:$GX$348,GD$1)","v":56},{"$f":"VLOOKUP(DropDownList!$B47,CntyQryCensus!$A$306:$GX$348,GE$1)","v":0},{"$f":"VLOOKUP(DropDownList!$B47,CntyQryCensus!$A$306:$GX$348,GF$1)","v":10},{"$f":"VLOOKUP(DropDownList!$B47,CntyQryCensus!$A$306:$GX$348,GG$1)","v":22},{"$f":"VLOOKUP(DropDownList!$B47,CntyQryCensus!$A$306:$GX$348,GH$1)","v":16},{"$f":"VLOOKUP(DropDownList!$B47,CntyQryCensus!$A$306:$GX$348,GI$1)","v":5},{"$f":"VLOOKUP(DropDownList!$B47,CntyQryCensus!$A$306:$GX$348,GJ$1)","v":3},{"$f":"VLOOKUP(DropDownList!$B47,CntyQryCensus!$A$306:$GX$348,GK$1)","v":319},{"$f":"VLOOKUP(DropDownList!$B47,CntyQryCensus!$A$306:$GX$348,GL$1)","v":263},{"$f":"VLOOKUP(DropDownList!$B47,CntyQryCensus!$A$306:$GX$348,GM$1)","v":256},{"$f":"VLOOKUP(DropDownList!$B47,CntyQryCensus!$A$306:$GX$348,GN$1)","v":7},{"$f":"VLOOKUP(DropDownList!$B47,CntyQryCensus!$A$306:$GX$348,GO$1)","v":56},{"$f":"VLOOKUP(DropDownList!$B47,CntyQryCensus!$A$306:$GX$348,GP$1)","v":52},{"$f":"VLOOKUP(DropDownList!$B47,CntyQryCensus!$A$306:$GX$348,GQ$1)","v":4},{"$f":"VLOOKUP(DropDownList!$B47,CntyQryCensus!$A$306:$GX$348,GR$1)","v":319},{"$f":"VLOOKUP(DropDownList!$B47,CntyQryCensus!$A$306:$GX$348,GS$1)","v":263},{"$f":"VLOOKUP(DropDownList!$B47,CntyQryCensus!$A$306:$GX$348,GT$1)","v":254},{"$f":"VLOOKUP(DropDownList!$B47,CntyQryCensus!$A$306:$GX$348,GU$1)","v":9},{"$f":"VLOOKUP(DropDownList!$B47,CntyQryCensus!$A$306:$GX$348,GV$1)","v":56},{"$f":"VLOOKUP(DropDownList!$B47,CntyQryCensus!$A$306:$GX$348,GW$1)","v":47},{"$f":"VLOOKUP(DropDownList!$B47,CntyQryCensus!$A$306:$GX$348,GX$1)","v":9}]
[]
[]
["Census 2000 SummaryFile3 Sample Data  -  SF3TownQry8HousingCostA"]
["NAME","LOGRECNO","COUNTY","TotalPop","H62RntrOccHU","H62RntrOccHUwRent","H62ROHUGRent<100","H62ROHUGRent100to149","H62ROHUGRent150to199","H62ROHUGRent200to249","H62ROHUGRent250to299","H62ROHUGRent300to349","H62ROHUGRent350to399","H62ROHUGRent400to449","H62ROHUGRent450to499","H62ROHUGRent500to549","H62ROHUGRent550to599","H62ROHUGRent600to649","H62ROHUGRent650to699","H62ROHUGRent700to749","H62ROHUGRent750to799","H62ROHUGRent800to899","H62ROHUGRent900to999","H62ROHUGRent1000to1249","H62ROHUGRent1250to1499","H62ROHUGRent1500to1999","H62ROHUGRent2000>","H62ROHUNoGRent","H63MedianGrossRnt","H69RenterOccHsU","H69GRnt<10PctHHInc","H69GRnt10to15PctHHInc","H69GRnt15to20PctHHInc","H69GRnt20to25PctHHInc","H69GRnt25to30PctHHInc","H69GRnt30to35PctHHInc","H69GRnt35to40PctHHInc","H69GRnt40to50PctHHInc","H69GRnt>50PctHHInc","H69GRntPctNotcomputed","H73RenterOccHU","H73ROHUHhInc<10k","H73ROHUHhInc<10kRnt<20pct","H73ROHUHhInc<10kRnt20to25pct","H73ROHUHhInc<10kRnt25to30pct","H73ROHUHhInc<10kRnt30to35pct","H73ROHUHhInc<10kRnt>35pct","H73ROHUHhInc<10kPctNotComput","H73ROHUHhInc10to20k","H73ROHUHhInc10to20kRnt<20pct","H73ROHUHhInc10to20kRnt20to25pct","H73ROHUHhInc10to20kRnt25to30pct","H73ROHUHhInc10to20kRnt30to35pct","H73ROHUHhInc10to20kRnt>35pct","H73ROHUHhInc10to20kRntPctNC","H73ROHUHhInc20to35k","H73ROHUHhInc20to35kRnt<20pct","H73ROHUHhInc20to35kRnt20to25pct","H73ROHUHhInc20to35kRnt25to30pct","H73ROHUHhInc20to35kRnt30to35pct","H73ROHUHhInc20to35kRnt>35pct","H73ROHUHhInc20to35kRntPctNC","H73ROHUHhInc35to40k","H73ROHUHhInc35to40kRnt<20pct","H73ROHUHhInc35to40kRnt20to25pct","H73ROHUHhInc35to40kRnt25to30pct","H73ROHUHhInc35to40kRnt30to35pct","H73ROHUHhInc35to40kRnt>35pct","H73ROHUHhInc35to40kRntPctNC","H73ROHUHhInc50to75k","H73ROHUHhInc50to75kRnt<20pct","H73ROHUHhInc50to75kRnt20to25pct","H73ROHUHhInc50to75kRnt25to30pct","H73ROHUHhInc50to75kRnt30to35pct","H73ROHUHhInc50to75kRnt>35pct","H73ROHUHhInc50to75kRntPctNC","H73ROHUHhInc75to100k","H73ROHUHhInc75to100kRnt<20pct","H73ROHUHhInc75to100kRnt20to25pct","H73ROHUHhInc75to100kRnt25to30pct","H73ROHUHhInc75to100kRnt30to35pct","H73ROHUHhInc75to100kRnt>35pct","H73ROHUHhInc75to100kRntPctNC","H73ROHUHhInc>100k","H73ROHUHhInc>100kRnt<20pct","H73ROHUHhInc>100kRnt20to25pct","H73ROHUHhInc>100kRnt25to30pct","H73ROHUHhInc>100kRnt30to35pct","H73ROHUHhInc>100kRnt>35pct","H73ROHUHhInc>100kRntPctNC","H73ROHUHhInc>100kRntPctNC"]
[{"$f":"VLOOKUP(DropDownList!$B$47,CntyQryCensus!$A$357:$CM$399,A$1)","v":"Acworth"},{"$f":"VLOOKUP(DropDownList!$B$47,CntyQryCensus!$A$357:$CM$399,B$1)","v":"0004141"},{"$f":"VLOOKUP(DropDownList!$B$47,CntyQryCensus!$A$357:$CM$399,C$1)","v":"00260"},{"$f":"VLOOKUP(DropDownList!$B$47,CntyQryCensus!$A$357:$CM$399,D$1)","v":836},{"$f":"VLOOKUP(DropDownList!$B$47,CntyQryCensus!$A$357:$CM$399,E$1)","v":33},{"$f":"VLOOKUP(DropDownList!$B$47,CntyQryCensus!$A$357:$CM$399,F$1)","v":25},{"$f":"VLOOKUP(DropDownList!$B$47,CntyQryCensus!$A$357:$CM$399,G$1)","v":0},{"$f":"VLOOKUP(DropDownList!$B$47,CntyQryCensus!$A$357:$CM$399,H$1)","v":0},{"$f":"VLOOKUP(DropDownList!$B$47,CntyQryCensus!$A$357:$CM$399,I$1)","v":0},{"$f":"VLOOKUP(DropDownList!$B$47,CntyQryCensus!$A$357:$CM$399,J$1)","v":0},{"$f":"VLOOKUP(DropDownList!$B$47,CntyQryCensus!$A$357:$CM$399,K$1)","v":2},{"$f":"VLOOKUP(DropDownList!$B$47,CntyQryCensus!$A$357:$CM$399,L$1)","v":0},{"$f":"VLOOKUP(DropDownList!$B$47,CntyQryCensus!$A$357:$CM$399,M$1)","v":0},{"$f":"VLOOKUP(DropDownList!$B$47,CntyQryCensus!$A$357:$CM$399,N$1)","v":6},{"$f":"VLOOKUP(DropDownList!$B$47,CntyQryCensus!$A$357:$CM$399,O$1)","v":0},{"$f":"VLOOKUP(DropDownList!$B$47,CntyQryCensus!$A$357:$CM$399,P$1)","v":0},{"$f":"VLOOKUP(DropDownList!$B$47,CntyQryCensus!$A$357:$CM$399,Q$1)","v":4},{"$f":"VLOOKUP(DropDownList!$B$47,CntyQryCensus!$A$357:$CM$399,R$1)","v":2},{"$f":"VLOOKUP(DropDownList!$B$47,CntyQryCensus!$A$357:$CM$399,S$1)","v":0},{"$f":"VLOOKUP(DropDownList!$B$47,CntyQryCensus!$A$357:$CM$399,T$1)","v":9},{"$f":"VLOOKUP(DropDownList!$B$47,CntyQryCensus!$A$357:$CM$399,U$1)","v":2},{"$f":"VLOOKUP(DropDownList!$B$47,CntyQryCensus!$A$357:$CM$399,V$1)","v":0},{"$f":"VLOOKUP(DropDownList!$B$47,CntyQryCensus!$A$357:$CM$399,W$1)","v":0},{"$f":"VLOOKUP(DropDownList!$B$47,CntyQryCensus!$A$357:$CM$399,X$1)","v":0},{"$f":"VLOOKUP(DropDownList!$B$47,CntyQryCensus!$A$357:$CM$399,Y$1)","v":0},{"$f":"VLOOKUP(DropDownList!$B$47,CntyQryCensus!$A$357:$CM$399,Z$1)","v":0},{"$f":"VLOOKUP(DropDownList!$B$47,CntyQryCensus!$A$357:$CM$399,AA$1)","v":0},{"$f":"VLOOKUP(DropDownList!$B$47,CntyQryCensus!$A$357:$CM$399,AB$1)","v":8},{"$f":"VLOOKUP(DropDownList!$B$47,CntyQryCensus!$A$357:$CM$399,AC$1)","v":613},{"$f":"VLOOKUP(DropDownList!$B$47,CntyQryCensus!$A$357:$CM$399,AD$1)","v":33},{"$f":"VLOOKUP(DropDownList!$B$47,CntyQryCensus!$A$357:$CM$399,AE$1)","v":7},{"$f":"VLOOKUP(DropDownList!$B$47,CntyQryCensus!$A$357:$CM$399,AF$1)","v":0},{"$f":"VLOOKUP(DropDownList!$B$47,CntyQryCensus!$A$357:$CM$399,AG$1)","v":2},{"$f":"VLOOKUP(DropDownList!$B$47,CntyQryCensus!$A$357:$CM$399,AH$1)","v":3},{"$f":"VLOOKUP(DropDownList!$B$47,CntyQryCensus!$A$357:$CM$399,AI$1)","v":4},{"$f":"VLOOKUP(DropDownList!$B$47,CntyQryCensus!$A$357:$CM$399,AJ$1)","v":2},{"$f":"VLOOKUP(DropDownList!$B$47,CntyQryCensus!$A$357:$CM$399,AK$1)","v":0},{"$f":"VLOOKUP(DropDownList!$B$47,CntyQryCensus!$A$357:$CM$399,AL$1)","v":0},{"$f":"VLOOKUP(DropDownList!$B$47,CntyQryCensus!$A$357:$CM$399,AM$1)","v":4},{"$f":"VLOOKUP(DropDownList!$B$47,CntyQryCensus!$A$357:$CM$399,AN$1)","v":11},{"$f":"VLOOKUP(DropDownList!$B$47,CntyQryCensus!$A$357:$CM$399,AO$1)","v":33},{"$f":"VLOOKUP(DropDownList!$B$47,CntyQryCensus!$A$357:$CM$399,AP$1)","v":9},{"$f":"VLOOKUP(DropDownList!$B$47,CntyQryCensus!$A$357:$CM$399,AQ$1)","v":0},{"$f":"VLOOKUP(DropDownList!$B$47,CntyQryCensus!$A$357:$CM$399,AR$1)","v":0},{"$f":"VLOOKUP(DropDownList!$B$47,CntyQryCensus!$A$357:$CM$399,AS$1)","v":0},{"$f":"VLOOKUP(DropDownList!$B$47,CntyQryCensus!$A$357:$CM$399,AT$1)","v":0},{"$f":"VLOOKUP(DropDownList!$B$47,CntyQryCensus!$A$357:$CM$399,AU$1)","v":4},{"$f":"VLOOKUP(DropDownList!$B$47,CntyQryCensus!$A$357:$CM$399,AV$1)","v":5},{"$f":"VLOOKUP(DropDownList!$B$47,CntyQryCensus!$A$357:$CM$399,AW$1)","v":2},{"$f":"VLOOKUP(DropDownList!$B$47,CntyQryCensus!$A$357:$CM$399,AX$1)","v":0},{"$f":"VLOOKUP(DropDownList!$B$47,CntyQryCensus!$A$357:$CM$399,AY$1)","v":0},{"$f":"VLOOKUP(DropDownList!$B$47,CntyQryCensus!$A$357:$CM$399,AZ$1)","v":0},{"$f":"VLOOKUP(DropDownList!$B$47,CntyQryCensus!$A$357:$CM$399,BA$1)","v":2},{"$f":"VLOOKUP(DropDownList!$B$47,CntyQryCensus!$A$357:$CM$399,BB$1)","v":0},{"$f":"VLOOKUP(DropDownList!$B$47,CntyQryCensus!$A$357:$CM$399,BC$1)","v":0},{"$f":"VLOOKUP(DropDownList!$B$47,CntyQryCensus!$A$357:$CM$399,BD$1)","v":10},{"$f":"VLOOKUP(DropDownList!$B$47,CntyQryCensus!$A$357:$CM$399,BE$1)","v":0},{"$f":"VLOOKUP(DropDownList!$B$47,CntyQryCensus!$A$357:$CM$399,BF$1)","v":0},{"$f":"VLOOKUP(DropDownList!$B$47,CntyQryCensus!$A$357:$CM$399,BG$1)","v":4},{"$f":"VLOOKUP(DropDownList!$B$47,CntyQryCensus!$A$357:$CM$399,BH$1)","v":0},{"$f":"VLOOKUP(DropDownList!$B$47,CntyQryCensus!$A$357:$CM$399,BI$1)","v":0},{"$f":"VLOOKUP(DropDownList!$B$47,CntyQryCensus!$A$357:$CM$399,BJ$1)","v":6},{"$f":"VLOOKUP(DropDownList!$B$47,CntyQryCensus!$A$357:$CM$399,BK$1)","v":3},{"$f":"VLOOKUP(DropDownList!$B$47,CntyQryCensus!$A$357:$CM$399,BL$1)","v":0},{"$f":"VLOOKUP(DropDownList!$B$47,CntyQryCensus!$A$357:$CM$399,BM$1)","v":3},{"$f":"VLOOKUP(DropDownList!$B$47,CntyQryCensus!$A$357:$CM$399,BN$1)","v":0},{"$f":"VLOOKUP(DropDownList!$B$47,CntyQryCensus!$A$357:$CM$399,BO$1)","v":0},{"$f":"VLOOKUP(DropDownList!$B$47,CntyQryCensus!$A$357:$CM$399,BP$1)","v":0},{"$f":"VLOOKUP(DropDownList!$B$47,CntyQryCensus!$A$357:$CM$399,BQ$1)","v":0},{"$f":"VLOOKUP(DropDownList!$B$47,CntyQryCensus!$A$357:$CM$399,BR$1)","v":6},{"$f":"VLOOKUP(DropDownList!$B$47,CntyQryCensus!$A$357:$CM$399,BS$1)","v":6},{"$f":"VLOOKUP(DropDownList!$B$47,CntyQryCensus!$A$357:$CM$399,BT$1)","v":0},{"$f":"VLOOKUP(DropDownList!$B$47,CntyQryCensus!$A$357:$CM$399,BU$1)","v":0},{"$f":"VLOOKUP(DropDownList!$B$47,CntyQryCensus!$A$357:$CM$399,BV$1)","v":0},{"$f":"VLOOKUP(DropDownList!$B$47,CntyQryCensus!$A$357:$CM$399,BW$1)","v":0},{"$f":"VLOOKUP(DropDownList!$B$47,CntyQryCensus!$A$357:$CM$399,BX$1)","v":0},{"$f":"VLOOKUP(DropDownList!$B$47,CntyQryCensus!$A$357:$CM$399,BY$1)","v":3},{"$f":"VLOOKUP(DropDownList!$B$47,CntyQryCensus!$A$357:$CM$399,BZ$1)","v":3},{"$f":"VLOOKUP(DropDownList!$B$47,CntyQryCensus!$A$357:$CM$399,CA$1)","v":0},{"$f":"VLOOKUP(DropDownList!$B$47,CntyQryCensus!$A$357:$CM$399,CB$1)","v":0},{"$f":"VLOOKUP(DropDownList!$B$47,CntyQryCensus!$A$357:$CM$399,CC$1)","v":0},{"$f":"VLOOKUP(DropDownList!$B$47,CntyQryCensus!$A$357:$CM$399,CD$1)","v":0},{"$f":"VLOOKUP(DropDownList!$B$47,CntyQryCensus!$A$357:$CM$399,CE$1)","v":0},{"$f":"VLOOKUP(DropDownList!$B$47,CntyQryCensus!$A$357:$CM$399,CF$1)","v":0},{"$f":"VLOOKUP(DropDownList!$B$47,CntyQryCensus!$A$357:$CM$399,CG$1)","v":0},{"$f":"VLOOKUP(DropDownList!$B$47,CntyQryCensus!$A$357:$CM$399,CH$1)","v":0},{"$f":"VLOOKUP(DropDownList!$B$47,CntyQryCensus!$A$357:$CM$399,CI$1)","v":0},{"$f":"VLOOKUP(DropDownList!$B$47,CntyQryCensus!$A$357:$CM$399,CJ$1)","v":0},{"$f":"VLOOKUP(DropDownList!$B$47,CntyQryCensus!$A$357:$CM$399,CK$1)","v":0},{"$f":"VLOOKUP(DropDownList!$B$47,CntyQryCensus!$A$357:$CM$399,CL$1)","v":0},{"$f":"VLOOKUP(DropDownList!$B$47,CntyQryCensus!$A$357:$CM$399,CM$1)","v":0}]
[]
[]
["Census 2000 SummaryFile3 Sample Data  -  SF3TownQry8HousingCostB"]
["NAME","LOGRECNO","COUNTY","TotalPop","H74SpecOwnerOccHU","H74OOHU<10k","H74OOHU10to15k","H74OOHU15to20k","H74OOHU20to25k","H74OOHU25to30k","H74OOHU30to35k","H74OOHU35to40k","H74OOHU40to50k","H74OOHU50to60k","H74OOHU60to70k","H74OOHU70to80k","H74OOHU80to90k","H74OOHU90to100k","H74OOHU100to125k","H74OOHU125to150k","H74OOHU150to175k","H74OOHU175to200k","H74OOHU200to250k","H74OOHU250to300k","H74OOHU300to400k","H74OOHU400to500k","H74OOHU500to750k","H74OOHU750to1000k","H74OOHU1000kmore","H76OOHUMedianVal","H84OwnerOccHU","H84AllOOHU<10k","H84AllOOHU10to15k","H84AllOOHU15to20k","H84AllOOHU20to25k","H84AllOOHU25to30k","H84AllOOHU30to35k","H84AllOOHU35to40k","H84AllOOHU40to50k","H84AllOOHU50to60k","H84AllOOHU60to70k","H84AllOOHU70to80k","H84AllOOHU80to90k","H84AllOOHU90to100k","H84AllOOHU100to125k","H84AllOOHU125to150k","H84AllOOHU150to175k","H84AllOOHU175to200k","H84AllOOHU200to250k","H84AllOOHU250to300k","H84AllOOHU300to400k","H84AllOOHU400to500k","H84AllOOHU500to750k","H84AllOOHU750to1000k","H84AllOOHU1000kmore","H85OOHUMedVal","H90SOOHU","H90HUwMorgt","H90HUwMtgHC<200","H90HUwMtgHC200to300","H90HUwMtgHC300to400","H90HUwMtgHC400to500","H90HUwMtgHC500to600","H90HUwMtgHC600to700","H90HUwMtgHC700to800","H90HUwMtgHC800to900","H90HUwMtgHC900to1000","H90HUwMtgHC1000to1250","H90HUwMtgHC1250to1500","H90HUwMtgHC1500to2000","H90HUwMtgHC2000to2500","H90HUwMtgHC2500to3000","H90HUwMtgHC3000orMore","H90HUwOutMorgt","H90HUwOutMtgHC<100","H90HUwOutMtgHC100to150","H90HUwOutMtgHC150to200","H90HUwOutMtgHC200to250","H90HUwOutMtgHC250to300","H90HUwOutMtgHC300to350","H90HUwOutMtgHC350to400","H90HUwOutMtgHC400to500","H90HUwOutMtgHC500to600","H90HUwOutMtgHC600to700","H90HUwOutMtgHC700to800","H90HUwOutMtgHC800to900","H90HUwOutMtgHC900to1000","H90HUwOutMtgHC1000orMore","H91MedianOCHUwMtg","H91MedianOCHUwOutMtg","H94SpecOOHU","H94HUwMortg","H94HUwMtgHC<10pct","H94HUwMtgHC10to15pct","H94HUwMtgHC15to20pct","H94HUwMtgHC20to25pct","H94HUwMtgHC25to30pct","H94HUwMtgHC30to35pct","H94HUwMtgHC35to40pct","H94HUwMtgHC40to50pct","H94HUwMtgHC50pctOrMore","H94HUwMtgHCpctNotComp","H94HUWOutMortg","H94HUWOutMortgHC<10pct","H94HUWOutMortgHC10to15pct","H94HUWOutMortgHC15to20pct","H94HUWOutMortgHC20to25pct","H94HUWOutMortgHC25to30pct","H94HUWOutMortgHC30to35pct","H94HUWOutMortgHC35to40pct","H94HUWOutMortgHC40to50pct","H94HUWOutMortgHC50pctOrMore","H94HUWOutMortgHCpctNotComp","H97SpecifOwnOccHU","H97SOOHUInc<10k","H97SOOHUInc<10kHC<20pct","H97SOOHUInc<10kHC20to25pct","H97SOOHUInc<10kHC25to30pct","H97SOOHUInc<10kHC30to35pct","H97SOOHUInc<10kHC>35pct","H97SOOHUInc<10kHCpctNotComput","H97SOOHUInc10to20k","H97SOOHUInc10to20kHC<20pct","H97SOOHUInc10to20kHC20to25pct","H97SOOHUInc10to20kHC25to30pct","H97SOOHUInc10to20kHC30to35pct","H97SOOHUInc10to20kHC>35pct","H97SOOHUInc10to20kHCpctNotComput","H97SOOHUInc20to35k","H97SOOHUInc20to35kRC<20pct","H97SOOHUInc20to35kRC20to25pct","H97SOOHUInc20to35kRC25to30pct","H97SOOHUInc20to35kRC30to35pct","H97SOOHUInc20to35kRC>35pct","H97SOOHUInc20to35kRCpctNotComput","H97SOOHUInc35to50k","H97SOOHUInc35to50kRC<20pct","H97SOOHUInc35to50kRC20to25pct","H97SOOHUInc35to50kRC25to30pct","H97SOOHUInc35to50kRC30to35pct","H97SOOHUInc35to50kRC>35pct","H97SOOHUInc35to50kRCpctNotCompute","H97SOOHUInc50to75k","H97SOOHUInc50to75kRC<20pct","H97SOOHUInc50to75kRC20to25pct","H97SOOHUInc50to75kRC25to30pct","H97SOOHUInc50to75kRC30to35pct","H97SOOHUInc50to75kRC>35pct","H97SOOHUInc50to75kRCpctNotComput","H97SOOHUInc75to100k","H97SOOHUInc75to100kRC<20pct","H97SOOHUInc75to100kRC20to25pct","H97SOOHUInc75to100kRC25to30pct","H97SOOHUInc75to100kRC30to35pct","H97SOOHUInc75to100kRC>35pct","H97SOOHUInc75to100kRCpctNotCompute","H97SOOHUInc100to150k","H97SOOHUInc100to150kRC<20pct","H97SOOHUInc100to150kRC20to25pct","H97SOOHUInc100to150kRC25to30pct","H97SOOHUInc100to150kRC30to35pct","H97SOOHUInc100to150kRC>35pct","H97SOOHUInc100to150kRCpctNotCompute","H97SOOHUInc>150k","H97SOOHUInc>150kRC<20pct","H97SOOHUInc>150kRC20to25pct","H97SOOHUInc>150kRC25to30pct","H97SOOHUInc>150kRC30to35pct","H97SOOHUInc>150kRC>35pct","H97SOOHUInc>150kRCpctNotCompute"]
[{"$f":"VLOOKUP(DropDownList!$B$47,CntyQryCensus!$A$408:$FN$450,A$1)","v":"Acworth"},{"$f":"VLOOKUP(DropDownList!$B$47,CntyQryCensus!$A$408:$FN$450,B$1)","v":"0004141"},{"$f":"VLOOKUP(DropDownList!$B$47,CntyQryCensus!$A$408:$FN$450,C$1)","v":"00260"},{"$f":"VLOOKUP(DropDownList!$B$47,CntyQryCensus!$A$408:$FN$450,D$1)","v":836},{"$f":"VLOOKUP(DropDownList!$B$47,CntyQryCensus!$A$408:$FN$450,E$1)","v":124},{"$f":"VLOOKUP(DropDownList!$B$47,CntyQryCensus!$A$408:$FN$450,F$1)","v":0},{"$f":"VLOOKUP(DropDownList!$B$47,CntyQryCensus!$A$408:$FN$450,G$1)","v":0},{"$f":"VLOOKUP(DropDownList!$B$47,CntyQryCensus!$A$408:$FN$450,H$1)","v":0},{"$f":"VLOOKUP(DropDownList!$B$47,CntyQryCensus!$A$408:$FN$450,I$1)","v":5},{"$f":"VLOOKUP(DropDownList!$B$47,CntyQryCensus!$A$408:$FN$450,J$1)","v":0},{"$f":"VLOOKUP(DropDownList!$B$47,CntyQryCensus!$A$408:$FN$450,K$1)","v":1},{"$f":"VLOOKUP(DropDownList!$B$47,CntyQryCensus!$A$408:$FN$450,L$1)","v":2},{"$f":"VLOOKUP(DropDownList!$B$47,CntyQryCensus!$A$408:$FN$450,M$1)","v":4},{"$f":"VLOOKUP(DropDownList!$B$47,CntyQryCensus!$A$408:$FN$450,N$1)","v":4},{"$f":"VLOOKUP(DropDownList!$B$47,CntyQryCensus!$A$408:$FN$450,O$1)","v":7},{"$f":"VLOOKUP(DropDownList!$B$47,CntyQryCensus!$A$408:$FN$450,P$1)","v":18},{"$f":"VLOOKUP(DropDownList!$B$47,CntyQryCensus!$A$408:$FN$450,Q$1)","v":17},{"$f":"VLOOKUP(DropDownList!$B$47,CntyQryCensus!$A$408:$FN$450,R$1)","v":15},{"$f":"VLOOKUP(DropDownList!$B$47,CntyQryCensus!$A$408:$FN$450,S$1)","v":25},{"$f":"VLOOKUP(DropDownList!$B$47,CntyQryCensus!$A$408:$FN$450,T$1)","v":9},{"$f":"VLOOKUP(DropDownList!$B$47,CntyQryCensus!$A$408:$FN$450,U$1)","v":2},{"$f":"VLOOKUP(DropDownList!$B$47,CntyQryCensus!$A$408:$FN$450,V$1)","v":7},{"$f":"VLOOKUP(DropDownList!$B$47,CntyQryCensus!$A$408:$FN$450,W$1)","v":2},{"$f":"VLOOKUP(DropDownList!$B$47,CntyQryCensus!$A$408:$FN$450,X$1)","v":4},{"$f":"VLOOKUP(DropDownList!$B$47,CntyQryCensus!$A$408:$FN$450,Y$1)","v":0},{"$f":"VLOOKUP(DropDownList!$B$47,CntyQryCensus!$A$408:$FN$450,Z$1)","v":0},{"$f":"VLOOKUP(DropDownList!$B$47,CntyQryCensus!$A$408:$FN$450,AA$1)","v":2},{"$f":"VLOOKUP(DropDownList!$B$47,CntyQryCensus!$A$408:$FN$450,AB$1)","v":0},{"$f":"VLOOKUP(DropDownList!$B$47,CntyQryCensus!$A$408:$FN$450,AC$1)","v":0},{"$f":"VLOOKUP(DropDownList!$B$47,CntyQryCensus!$A$408:$FN$450,AD$1)","v":92700},{"$f":"VLOOKUP(DropDownList!$B$47,CntyQryCensus!$A$408:$FN$450,AE$1)","v":263},{"$f":"VLOOKUP(DropDownList!$B$47,CntyQryCensus!$A$408:$FN$450,AF$1)","v":0},{"$f":"VLOOKUP(DropDownList!$B$47,CntyQryCensus!$A$408:$FN$450,AG$1)","v":0},{"$f":"VLOOKUP(DropDownList!$B$47,CntyQryCensus!$A$408:$FN$450,AH$1)","v":3},{"$f":"VLOOKUP(DropDownList!$B$47,CntyQryCensus!$A$408:$FN$450,AI$1)","v":7},{"$f":"VLOOKUP(DropDownList!$B$47,CntyQryCensus!$A$408:$FN$450,AJ$1)","v":6},{"$f":"VLOOKUP(DropDownList!$B$47,CntyQryCensus!$A$408:$FN$450,AK$1)","v":1},{"$f":"VLOOKUP(DropDownList!$B$47,CntyQryCensus!$A$408:$FN$450,AL$1)","v":8},{"$f":"VLOOKUP(DropDownList!$B$47,CntyQryCensus!$A$408:$FN$450,AM$1)","v":9},{"$f":"VLOOKUP(DropDownList!$B$47,CntyQryCensus!$A$408:$FN$450,AN$1)","v":8},{"$f":"VLOOKUP(DropDownList!$B$47,CntyQryCensus!$A$408:$FN$450,AO$1)","v":18},{"$f":"VLOOKUP(DropDownList!$B$47,CntyQryCensus!$A$408:$FN$450,AP$1)","v":27},{"$f":"VLOOKUP(DropDownList!$B$47,CntyQryCensus!$A$408:$FN$450,AQ$1)","v":33},{"$f":"VLOOKUP(DropDownList!$B$47,CntyQryCensus!$A$408:$FN$450,AR$1)","v":27},{"$f":"VLOOKUP(DropDownList!$B$47,CntyQryCensus!$A$408:$FN$450,AS$1)","v":48},{"$f":"VLOOKUP(DropDownList!$B$47,CntyQryCensus!$A$408:$FN$450,AT$1)","v":19},{"$f":"VLOOKUP(DropDownList!$B$47,CntyQryCensus!$A$408:$FN$450,AU$1)","v":9},{"$f":"VLOOKUP(DropDownList!$B$47,CntyQryCensus!$A$408:$FN$450,AV$1)","v":13},{"$f":"VLOOKUP(DropDownList!$B$47,CntyQryCensus!$A$408:$FN$450,AW$1)","v":17},{"$f":"VLOOKUP(DropDownList!$B$47,CntyQryCensus!$A$408:$FN$450,AX$1)","v":8},{"$f":"VLOOKUP(DropDownList!$B$47,CntyQryCensus!$A$408:$FN$450,AY$1)","v":0},{"$f":"VLOOKUP(DropDownList!$B$47,CntyQryCensus!$A$408:$FN$450,AZ$1)","v":0},{"$f":"VLOOKUP(DropDownList!$B$47,CntyQryCensus!$A$408:$FN$450,BA$1)","v":2},{"$f":"VLOOKUP(DropDownList!$B$47,CntyQryCensus!$A$408:$FN$450,BB$1)","v":0},{"$f":"VLOOKUP(DropDownList!$B$47,CntyQryCensus!$A$408:$FN$450,BC$1)","v":0},{"$f":"VLOOKUP(DropDownList!$B$47,CntyQryCensus!$A$408:$FN$450,BD$1)","v":94300},{"$f":"VLOOKUP(DropDownList!$B$47,CntyQryCensus!$A$408:$FN$450,BE$1)","v":124},{"$f":"VLOOKUP(DropDownList!$B$47,CntyQryCensus!$A$408:$FN$450,BF$1)","v":68},{"$f":"VLOOKUP(DropDownList!$B$47,CntyQryCensus!$A$408:$FN$450,BG$1)","v":0},{"$f":"VLOOKUP(DropDownList!$B$47,CntyQryCensus!$A$408:$FN$450,BH$1)","v":0},{"$f":"VLOOKUP(DropDownList!$B$47,CntyQryCensus!$A$408:$FN$450,BI$1)","v":0},{"$f":"VLOOKUP(DropDownList!$B$47,CntyQryCensus!$A$408:$FN$450,BJ$1)","v":2},{"$f":"VLOOKUP(DropDownList!$B$47,CntyQryCensus!$A$408:$FN$450,BK$1)","v":9},{"$f":"VLOOKUP(DropDownList!$B$47,CntyQryCensus!$A$408:$FN$450,BL$1)","v":4},{"$f":"VLOOKUP(DropDownList!$B$47,CntyQryCensus!$A$408:$FN$450,BM$1)","v":5},{"$f":"VLOOKUP(DropDownList!$B$47,CntyQryCensus!$A$408:$FN$450,BN$1)","v":20},{"$f":"VLOOKUP(DropDownList!$B$47,CntyQryCensus!$A$408:$FN$450,BO$1)","v":2},{"$f":"VLOOKUP(DropDownList!$B$47,CntyQryCensus!$A$408:$FN$450,BP$1)","v":18},{"$f":"VLOOKUP(DropDownList!$B$47,CntyQryCensus!$A$408:$FN$450,BQ$1)","v":4},{"$f":"VLOOKUP(DropDownList!$B$47,CntyQryCensus!$A$408:$FN$450,BR$1)","v":2},{"$f":"VLOOKUP(DropDownList!$B$47,CntyQryCensus!$A$408:$FN$450,BS$1)","v":2},{"$f":"VLOOKUP(DropDownList!$B$47,CntyQryCensus!$A$408:$FN$450,BT$1)","v":0},{"$f":"VLOOKUP(DropDownList!$B$47,CntyQryCensus!$A$408:$FN$450,BU$1)","v":0},{"$f":"VLOOKUP(DropDownList!$B$47,CntyQryCensus!$A$408:$FN$450,BV$1)","v":56},{"$f":"VLOOKUP(DropDownList!$B$47,CntyQryCensus!$A$408:$FN$450,BW$1)","v":0},{"$f":"VLOOKUP(DropDownList!$B$47,CntyQryCensus!$A$408:$FN$450,BX$1)","v":0},{"$f":"VLOOKUP(DropDownList!$B$47,CntyQryCensus!$A$408:$FN$450,BY$1)","v":4},{"$f":"VLOOKUP(DropDownList!$B$47,CntyQryCensus!$A$408:$FN$450,BZ$1)","v":7},{"$f":"VLOOKUP(DropDownList!$B$47,CntyQryCensus!$A$408:$FN$450,CA$1)","v":11},{"$f":"VLOOKUP(DropDownList!$B$47,CntyQryCensus!$A$408:$FN$450,CB$1)","v":3},{"$f":"VLOOKUP(DropDownList!$B$47,CntyQryCensus!$A$408:$FN$450,CC$1)","v":2},{"$f":"VLOOKUP(DropDownList!$B$47,CntyQryCensus!$A$408:$FN$450,CD$1)","v":14},{"$f":"VLOOKUP(DropDownList!$B$47,CntyQryCensus!$A$408:$FN$450,CE$1)","v":9},{"$f":"VLOOKUP(DropDownList!$B$47,CntyQryCensus!$A$408:$FN$450,CF$1)","v":6},{"$f":"VLOOKUP(DropDownList!$B$47,CntyQryCensus!$A$408:$FN$450,CG$1)","v":0},{"$f":"VLOOKUP(DropDownList!$B$47,CntyQryCensus!$A$408:$FN$450,CH$1)","v":0},{"$f":"VLOOKUP(DropDownList!$B$47,CntyQryCensus!$A$408:$FN$450,CI$1)","v":0},{"$f":"VLOOKUP(DropDownList!$B$47,CntyQryCensus!$A$408:$FN$450,CJ$1)","v":0},{"$f":"VLOOKUP(DropDownList!$B$47,CntyQryCensus!$A$408:$FN$450,CK$1)","v":870},{"$f":"VLOOKUP(DropDownList!$B$47,CntyQryCensus!$A$408:$FN$450,CL$1)","v":407},{"$f":"VLOOKUP(DropDownList!$B$47,CntyQryCensus!$A$408:$FN$450,CM$1)","v":124},{"$f":"VLOOKUP(DropDownList!$B$47,CntyQryCensus!$A$408:$FN$450,CN$1)","v":68},{"$f":"VLOOKUP(DropDownList!$B$47,CntyQryCensus!$A$408:$FN$450,CO$1)","v":2},{"$f":"VLOOKUP(DropDownList!$B$47,CntyQryCensus!$A$408:$FN$450,CP$1)","v":15},{"$f":"VLOOKUP(DropDownList!$B$47,CntyQryCensus!$A$408:$FN$450,CQ$1)","v":12},{"$f":"VLOOKUP(DropDownList!$B$47,CntyQryCensus!$A$408:$FN$450,CR$1)","v":12},{"$f":"VLOOKUP(DropDownList!$B$47,CntyQryCensus!$A$408:$FN$450,CS$1)","v":19},{"$f":"VLOOKUP(DropDownList!$B$47,CntyQryCensus!$A$408:$FN$450,CT$1)","v":6},{"$f":"VLOOKUP(DropDownList!$B$47,CntyQryCensus!$A$408:$FN$450,CU$1)","v":0},{"$f":"VLOOKUP(DropDownList!$B$47,CntyQryCensus!$A$408:$FN$450,CV$1)","v":0},{"$f":"VLOOKUP(DropDownList!$B$47,CntyQryCensus!$A$408:$FN$450,CW$1)","v":2},{"$f":"VLOOKUP(DropDownList!$B$47,CntyQryCensus!$A$408:$FN$450,CX$1)","v":0},{"$f":"VLOOKUP(DropDownList!$B$47,CntyQryCensus!$A$408:$FN$450,CY$1)","v":56},{"$f":"VLOOKUP(DropDownList!$B$47,CntyQryCensus!$A$408:$FN$450,CZ$1)","v":18},{"$f":"VLOOKUP(DropDownList!$B$47,CntyQryCensus!$A$408:$FN$450,DA$1)","v":8},{"$f":"VLOOKUP(DropDownList!$B$47,CntyQryCensus!$A$408:$FN$450,DB$1)","v":10},{"$f":"VLOOKUP(DropDownList!$B$47,CntyQryCensus!$A$408:$FN$450,DC$1)","v":5},{"$f":"VLOOKUP(DropDownList!$B$47,CntyQryCensus!$A$408:$FN$450,DD$1)","v":4},{"$f":"VLOOKUP(DropDownList!$B$47,CntyQryCensus!$A$408:$FN$450,DE$1)","v":2},{"$f":"VLOOKUP(DropDownList!$B$47,CntyQryCensus!$A$408:$FN$450,DF$1)","v":0},{"$f":"VLOOKUP(DropDownList!$B$47,CntyQryCensus!$A$408:$FN$450,DG$1)","v":2},{"$f":"VLOOKUP(DropDownList!$B$47,CntyQryCensus!$A$408:$FN$450,DH$1)","v":6},{"$f":"VLOOKUP(DropDownList!$B$47,CntyQryCensus!$A$408:$FN$450,DI$1)","v":1},{"$f":"VLOOKUP(DropDownList!$B$47,CntyQryCensus!$A$408:$FN$450,DJ$1)","v":124},{"$f":"VLOOKUP(DropDownList!$B$47,CntyQryCensus!$A$408:$FN$450,DK$1)","v":9},{"$f":"VLOOKUP(DropDownList!$B$47,CntyQryCensus!$A$408:$FN$450,DL$1)","v":0},{"$f":"VLOOKUP(DropDownList!$B$47,CntyQryCensus!$A$408:$FN$450,DM$1)","v":0},{"$f":"VLOOKUP(DropDownList!$B$47,CntyQryCensus!$A$408:$FN$450,DN$1)","v":0},{"$f":"VLOOKUP(DropDownList!$B$47,CntyQryCensus!$A$408:$FN$450,DO$1)","v":0},{"$f":"VLOOKUP(DropDownList!$B$47,CntyQryCensus!$A$408:$FN$450,DP$1)","v":8},{"$f":"VLOOKUP(DropDownList!$B$47,CntyQryCensus!$A$408:$FN$450,DQ$1)","v":1},{"$f":"VLOOKUP(DropDownList!$B$47,CntyQryCensus!$A$408:$FN$450,DR$1)","v":9},{"$f":"VLOOKUP(DropDownList!$B$47,CntyQryCensus!$A$408:$FN$450,DS$1)","v":4},{"$f":"VLOOKUP(DropDownList!$B$47,CntyQryCensus!$A$408:$FN$450,DT$1)","v":1},{"$f":"VLOOKUP(DropDownList!$B$47,CntyQryCensus!$A$408:$FN$450,DU$1)","v":2},{"$f":"VLOOKUP(DropDownList!$B$47,CntyQryCensus!$A$408:$FN$450,DV$1)","v":2},{"$f":"VLOOKUP(DropDownList!$B$47,CntyQryCensus!$A$408:$FN$450,DW$1)","v":0},{"$f":"VLOOKUP(DropDownList!$B$47,CntyQryCensus!$A$408:$FN$450,DX$1)","v":0},{"$f":"VLOOKUP(DropDownList!$B$47,CntyQryCensus!$A$408:$FN$450,DY$1)","v":23},{"$f":"VLOOKUP(DropDownList!$B$47,CntyQryCensus!$A$408:$FN$450,DZ$1)","v":10},{"$f":"VLOOKUP(DropDownList!$B$47,CntyQryCensus!$A$408:$FN$450,EA$1)","v":4},{"$f":"VLOOKUP(DropDownList!$B$47,CntyQryCensus!$A$408:$FN$450,EB$1)","v":7},{"$f":"VLOOKUP(DropDownList!$B$47,CntyQryCensus!$A$408:$FN$450,EC$1)","v":2},{"$f":"VLOOKUP(DropDownList!$B$47,CntyQryCensus!$A$408:$FN$450,ED$1)","v":0},{"$f":"VLOOKUP(DropDownList!$B$47,CntyQryCensus!$A$408:$FN$450,EE$1)","v":0},{"$f":"VLOOKUP(DropDownList!$B$47,CntyQryCensus!$A$408:$FN$450,EF$1)","v":29},{"$f":"VLOOKUP(DropDownList!$B$47,CntyQryCensus!$A$408:$FN$450,EG$1)","v":14},{"$f":"VLOOKUP(DropDownList!$B$47,CntyQryCensus!$A$408:$FN$450,EH$1)","v":4},{"$f":"VLOOKUP(DropDownList!$B$47,CntyQryCensus!$A$408:$FN$450,EI$1)","v":7},{"$f":"VLOOKUP(DropDownList!$B$47,CntyQryCensus!$A$408:$FN$450,EJ$1)","v":2},{"$f":"VLOOKUP(DropDownList!$B$47,CntyQryCensus!$A$408:$FN$450,EK$1)","v":2},{"$f":"VLOOKUP(DropDownList!$B$47,CntyQryCensus!$A$408:$FN$450,EL$1)","v":0},{"$f":"VLOOKUP(DropDownList!$B$47,CntyQryCensus!$A$408:$FN$450,EM$1)","v":35},{"$f":"VLOOKUP(DropDownList!$B$47,CntyQryCensus!$A$408:$FN$450,EN$1)","v":20},{"$f":"VLOOKUP(DropDownList!$B$47,CntyQryCensus!$A$408:$FN$450,EO$1)","v":8},{"$f":"VLOOKUP(DropDownList!$B$47,CntyQryCensus!$A$408:$FN$450,EP$1)","v":5},{"$f":"VLOOKUP(DropDownList!$B$47,CntyQryCensus!$A$408:$FN$450,EQ$1)","v":2},{"$f":"VLOOKUP(DropDownList!$B$47,CntyQryCensus!$A$408:$FN$450,ER$1)","v":0},{"$f":"VLOOKUP(DropDownList!$B$47,CntyQryCensus!$A$408:$FN$450,ES$1)","v":0},{"$f":"VLOOKUP(DropDownList!$B$47,CntyQryCensus!$A$408:$FN$450,ET$1)","v":15},{"$f":"VLOOKUP(DropDownList!$B$47,CntyQryCensus!$A$408:$FN$450,EU$1)","v":13},{"$f":"VLOOKUP(DropDownList!$B$47,CntyQryCensus!$A$408:$FN$450,EV$1)","v":0},{"$f":"VLOOKUP(DropDownList!$B$47,CntyQryCensus!$A$408:$FN$450,EW$1)","v":2},{"$f":"VLOOKUP(DropDownList!$B$47,CntyQryCensus!$A$408:$FN$450,EX$1)","v":0},{"$f":"VLOOKUP(DropDownList!$B$47,CntyQryCensus!$A$408:$FN$450,EY$1)","v":0},{"$f":"VLOOKUP(DropDownList!$B$47,CntyQryCensus!$A$408:$FN$450,EZ$1)","v":0},{"$f":"VLOOKUP(DropDownList!$B$47,CntyQryCensus!$A$408:$FN$450,FA$1)","v":4},{"$f":"VLOOKUP(DropDownList!$B$47,CntyQryCensus!$A$408:$FN$450,FB$1)","v":4},{"$f":"VLOOKUP(DropDownList!$B$47,CntyQryCensus!$A$408:$FN$450,FC$1)","v":0},{"$f":"VLOOKUP(DropDownList!$B$47,CntyQryCensus!$A$408:$FN$450,FD$1)","v":0},{"$f":"VLOOKUP(DropDownList!$B$47,CntyQryCensus!$A$408:$FN$450,FE$1)","v":0},{"$f":"VLOOKUP(DropDownList!$B$47,CntyQryCensus!$A$408:$FN$450,FF$1)","v":0},{"$f":"VLOOKUP(DropDownList!$B$47,CntyQryCensus!$A$408:$FN$450,FG$1)","v":0},{"$f":"VLOOKUP(DropDownList!$B$47,CntyQryCensus!$A$408:$FN$450,FH$1)","v":0},{"$f":"VLOOKUP(DropDownList!$B$47,CntyQryCensus!$A$408:$FN$450,FI$1)","v":0},{"$f":"VLOOKUP(DropDownList!$B$47,CntyQryCensus!$A$408:$FN$450,FJ$1)","v":0},{"$f":"VLOOKUP(DropDownList!$B$47,CntyQryCensus!$A$408:$FN$450,FK$1)","v":0},{"$f":"VLOOKUP(DropDownList!$B$47,CntyQryCensus!$A$408:$FN$450,FL$1)","v":0},{"$f":"VLOOKUP(DropDownList!$B$47,CntyQryCensus!$A$408:$FN$450,FM$1)","v":0},{"$f":"VLOOKUP(DropDownList!$B$47,CntyQryCensus!$A$408:$FN$450,FN$1)","v":0}]
[]
[]
["Census 2000 SummaryFile3 Sample Data  -  SF3TownQry9HHIncomeByTenure"]
["NAME","LOGRECNO","COUNTY","TotalPop","HCT11OccHU","HCT11OwnOccHU","HCT11OOHUInc<5K","HCT11OOHUInc5to10K","HCT11OOHUInc10to15K","HCT11OOHUInc15to20K","HCT11OOHUInc20to25K","HCT11OOHUInc25to35K","HCT11OOHUInc35to50K","HCT11OOHUInc50to75K","HCT11OOHUInc75to100K","HCT11OOHUInc100to150K","HCT11OOHUInc>150K","HCT11RentOccHU","HCT11ROHUInc<5K","HCT11ROHUInc5to10K","HCT11ROHUInc10to15K","HCT11ROHUInc15to20K","HCT11ROHUInc20to25K","HCT11ROHUInc25to35K","HCT11ROHUInc35to50K","HCT11ROHUInc50to75K","HCT11ROHUInc75to100K","HCT11ROHUInc100to150K","HCT11ROHUInc>150K","HCT12MedHHInc","HCT12MedOwnOccHHInc","HCT12MedRentOccHHInc","Summary Level"]
[{"$f":"VLOOKUP(DropDownList!$B$47,CntyQryCensus!$A$459:$AG$501,A$1)","v":"Acworth"},{"$f":"VLOOKUP(DropDownList!$B$47,CntyQryCensus!$A$459:$AG$501,B$1)","v":"0004141"},{"$f":"VLOOKUP(DropDownList!$B$47,CntyQryCensus!$A$459:$AG$501,C$1)","v":"00260"},{"$f":"VLOOKUP(DropDownList!$B$47,CntyQryCensus!$A$459:$AG$501,D$1)","v":"Acworth town"},{"$f":"VLOOKUP(DropDownList!$B$47,CntyQryCensus!$A$459:$AG$501,E$1)","v":"019"},{"$f":"VLOOKUP(DropDownList!$B$47,CntyQryCensus!$A$459:$AG$501,F$1)","v":836},{"$f":"VLOOKUP(DropDownList!$B$47,CntyQryCensus!$A$459:$AG$501,G$1)","v":319},{"$f":"VLOOKUP(DropDownList!$B$47,CntyQryCensus!$A$459:$AG$501,H$1)","v":263},{"$f":"VLOOKUP(DropDownList!$B$47,CntyQryCensus!$A$459:$AG$501,I$1)","v":5},{"$f":"VLOOKUP(DropDownList!$B$47,CntyQryCensus!$A$459:$AG$501,J$1)","v":8},{"$f":"VLOOKUP(DropDownList!$B$47,CntyQryCensus!$A$459:$AG$501,K$1)","v":7},{"$f":"VLOOKUP(DropDownList!$B$47,CntyQryCensus!$A$459:$AG$501,L$1)","v":36},{"$f":"VLOOKUP(DropDownList!$B$47,CntyQryCensus!$A$459:$AG$501,M$1)","v":15},{"$f":"VLOOKUP(DropDownList!$B$47,CntyQryCensus!$A$459:$AG$501,N$1)","v":43},{"$f":"VLOOKUP(DropDownList!$B$47,CntyQryCensus!$A$459:$AG$501,O$1)","v":59},{"$f":"VLOOKUP(DropDownList!$B$47,CntyQryCensus!$A$459:$AG$501,P$1)","v":53},{"$f":"VLOOKUP(DropDownList!$B$47,CntyQryCensus!$A$459:$AG$501,Q$1)","v":21},{"$f":"VLOOKUP(DropDownList!$B$47,CntyQryCensus!$A$459:$AG$501,R$1)","v":12},{"$f":"VLOOKUP(DropDownList!$B$47,CntyQryCensus!$A$459:$AG$501,S$1)","v":4},{"$f":"VLOOKUP(DropDownList!$B$47,CntyQryCensus!$A$459:$AG$501,T$1)","v":56},{"$f":"VLOOKUP(DropDownList!$B$47,CntyQryCensus!$A$459:$AG$501,U$1)","v":7},{"$f":"VLOOKUP(DropDownList!$B$47,CntyQryCensus!$A$459:$AG$501,V$1)","v":4},{"$f":"VLOOKUP(DropDownList!$B$47,CntyQryCensus!$A$459:$AG$501,W$1)","v":6},{"$f":"VLOOKUP(DropDownList!$B$47,CntyQryCensus!$A$459:$AG$501,X$1)","v":5},{"$f":"VLOOKUP(DropDownList!$B$47,CntyQryCensus!$A$459:$AG$501,Y$1)","v":2},{"$f":"VLOOKUP(DropDownList!$B$47,CntyQryCensus!$A$459:$AG$501,Z$1)","v":12},{"$f":"VLOOKUP(DropDownList!$B$47,CntyQryCensus!$A$459:$AG$501,AA$1)","v":9},{"$f":"VLOOKUP(DropDownList!$B$47,CntyQryCensus!$A$459:$AG$501,AB$1)","v":6},{"$f":"VLOOKUP(DropDownList!$B$47,CntyQryCensus!$A$459:$AG$501,AC$1)","v":3},{"$f":"VLOOKUP(DropDownList!$B$47,CntyQryCensus!$A$459:$AG$501,AD$1)","v":0},{"$f":"VLOOKUP(DropDownList!$B$47,CntyQryCensus!$A$459:$AG$501,AE$1)","v":2},{"$f":"VLOOKUP(DropDownList!$B$47,CntyQryCensus!$A$459:$AG$501,AF$1)","v":37375},{"$f":"VLOOKUP(DropDownList!$B$47,CntyQryCensus!$A$459:$AG$501,AG$1)","v":40078}]
[]
[]
[]
[]
[]
[{"$f":"VLOOKUP(DropDownList!$B$47,CntyQryCensus!$A$510:$DA$552,A$1)","v":"Acworth"}]
[]
[]
[]
[]
[]
[]
[]
["Census 2000 SummaryFile3 Sample Data - SF3TownQry10Disabil"]
["NAME","LOGRECNO","COUNTY","TotalPop","PCT026001-NonInstPop5yrs+","PCT026002-MaleNonInstPop5yrs+","PCT026003","PCT026004","PCT026005","PCT026006","PCT026007","PCT026008","PCT026009","PCT026010","PCT026011","PCT026012","PCT026013","PCT026014","PCT026015","PCT026016","PCT026017","PCT026018","PCT026019","PCT026020","PCT026021","PCT026022","PCT026023","PCT026024","PCT026025","PCT026026","PCT026027","PCT026028","PCT026029","PCT026030","PCT026031","PCT026032","PCT026033","PCT026034","PCT026035","PCT026036","PCT026037","PCT026038","PCT026039","PCT026040","PCT026041","PCT026042","PCT026043","PCT026044","PCT026045","PCT026046","PCT026047","PCT026048","PCT026049","PCT026050","PCT026051","PCT026052","PCT026053","PCT026054","PCT026055","PCT026056","PCT026057","PCT026058","PCT026059","PCT026060","PCT026061","PCT026062","PCT026063","PCT026064","PCT026065","PCT026066","PCT026067","PCT026068","PCT026069","PCT026070","PCT026071","PCT026072","PCT026073","PCT026074","PCT026075","PCT026076","PCT026077","PCT026078","PCT026079","PCT026080","PCT026081","PCT026082","PCT026083","PCT026084","PCT026085","PCT026086","PCT026087","PCT026088","PCT026089","PCT026090","PCT026091","PCT026092","PCT026093","PCT026094","PCT026095","PCT026096","PCT026097","PCT026098","PCT026099","PCT026100","PCT026101"]
[{"$f":"VLOOKUP(DropDownList!$B$47,CntyQryCensus!$A$510:$DA$552,A$1)","v":"Acworth"},{"$f":"VLOOKUP(DropDownList!$B$47,CntyQryCensus!$A$510:$DA$552,B$1)","v":"0004141"},{"$f":"VLOOKUP(DropDownList!$B$47,CntyQryCensus!$A$510:$DA$552,C$1)","v":"00260"},{"$f":"VLOOKUP(DropDownList!$B$47,CntyQryCensus!$A$510:$DA$552,D$1)","v":836},{"$f":"VLOOKUP(DropDownList!$B$47,CntyQryCensus!$A$510:$DA$552,E$1)","v":799},{"$f":"VLOOKUP(DropDownList!$B$47,CntyQryCensus!$A$510:$DA$552,F$1)","v":416},{"$f":"VLOOKUP(DropDownList!$B$47,CntyQryCensus!$A$510:$DA$552,G$1)","v":75},{"$f":"VLOOKUP(DropDownList!$B$47,CntyQryCensus!$A$510:$DA$552,H$1)","v":0},{"$f":"VLOOKUP(DropDownList!$B$47,CntyQryCensus!$A$510:$DA$552,I$1)","v":0},{"$f":"VLOOKUP(DropDownList!$B$47,CntyQryCensus!$A$510:$DA$552,J$1)","v":0},{"$f":"VLOOKUP(DropDownList!$B$47,CntyQryCensus!$A$510:$DA$552,K$1)","v":0},{"$f":"VLOOKUP(DropDownList!$B$47,CntyQryCensus!$A$510:$DA$552,L$1)","v":0},{"$f":"VLOOKUP(DropDownList!$B$47,CntyQryCensus!$A$510:$DA$552,M$1)","v":0},{"$f":"VLOOKUP(DropDownList!$B$47,CntyQryCensus!$A$510:$DA$552,N$1)","v":0},{"$f":"VLOOKUP(DropDownList!$B$47,CntyQryCensus!$A$510:$DA$552,O$1)","v":0},{"$f":"VLOOKUP(DropDownList!$B$47,CntyQryCensus!$A$510:$DA$552,P$1)","v":75},{"$f":"VLOOKUP(DropDownList!$B$47,CntyQryCensus!$A$510:$DA$552,Q$1)","v":31},{"$f":"VLOOKUP(DropDownList!$B$47,CntyQryCensus!$A$510:$DA$552,R$1)","v":2},{"$f":"VLOOKUP(DropDownList!$B$47,CntyQryCensus!$A$510:$DA$552,S$1)","v":0},{"$f":"VLOOKUP(DropDownList!$B$47,CntyQryCensus!$A$510:$DA$552,T$1)","v":0},{"$f":"VLOOKUP(DropDownList!$B$47,CntyQryCensus!$A$510:$DA$552,U$1)","v":2},{"$f":"VLOOKUP(DropDownList!$B$47,CntyQryCensus!$A$510:$DA$552,V$1)","v":0},{"$f":"VLOOKUP(DropDownList!$B$47,CntyQryCensus!$A$510:$DA$552,W$1)","v":0},{"$f":"VLOOKUP(DropDownList!$B$47,CntyQryCensus!$A$510:$DA$552,X$1)","v":0},{"$f":"VLOOKUP(DropDownList!$B$47,CntyQryCensus!$A$510:$DA$552,Y$1)","v":0},{"$f":"VLOOKUP(DropDownList!$B$47,CntyQryCensus!$A$510:$DA$552,Z$1)","v":0},{"$f":"VLOOKUP(DropDownList!$B$47,CntyQryCensus!$A$510:$DA$552,AA$1)","v":0},{"$f":"VLOOKUP(DropDownList!$B$47,CntyQryCensus!$A$510:$DA$552,AB$1)","v":0},{"$f":"VLOOKUP(DropDownList!$B$47,CntyQryCensus!$A$510:$DA$552,AC$1)","v":0},{"$f":"VLOOKUP(DropDownList!$B$47,CntyQryCensus!$A$510:$DA$552,AD$1)","v":29},{"$f":"VLOOKUP(DropDownList!$B$47,CntyQryCensus!$A$510:$DA$552,AE$1)","v":248},{"$f":"VLOOKUP(DropDownList!$B$47,CntyQryCensus!$A$510:$DA$552,AF$1)","v":32},{"$f":"VLOOKUP(DropDownList!$B$47,CntyQryCensus!$A$510:$DA$552,AG$1)","v":3},{"$f":"VLOOKUP(DropDownList!$B$47,CntyQryCensus!$A$510:$DA$552,AH$1)","v":12},{"$f":"VLOOKUP(DropDownList!$B$47,CntyQryCensus!$A$510:$DA$552,AI$1)","v":5},{"$f":"VLOOKUP(DropDownList!$B$47,CntyQryCensus!$A$510:$DA$552,AJ$1)","v":0},{"$f":"VLOOKUP(DropDownList!$B$47,CntyQryCensus!$A$510:$DA$552,AK$1)","v":0},{"$f":"VLOOKUP(DropDownList!$B$47,CntyQryCensus!$A$510:$DA$552,AL$1)","v":12},{"$f":"VLOOKUP(DropDownList!$B$47,CntyQryCensus!$A$510:$DA$552,AM$1)","v":25},{"$f":"VLOOKUP(DropDownList!$B$47,CntyQryCensus!$A$510:$DA$552,AN$1)","v":7},{"$f":"VLOOKUP(DropDownList!$B$47,CntyQryCensus!$A$510:$DA$552,AO$1)","v":18},{"$f":"VLOOKUP(DropDownList!$B$47,CntyQryCensus!$A$510:$DA$552,AP$1)","v":8},{"$f":"VLOOKUP(DropDownList!$B$47,CntyQryCensus!$A$510:$DA$552,AQ$1)","v":10},{"$f":"VLOOKUP(DropDownList!$B$47,CntyQryCensus!$A$510:$DA$552,AR$1)","v":191},{"$f":"VLOOKUP(DropDownList!$B$47,CntyQryCensus!$A$510:$DA$552,AS$1)","v":62},{"$f":"VLOOKUP(DropDownList!$B$47,CntyQryCensus!$A$510:$DA$552,AT$1)","v":13},{"$f":"VLOOKUP(DropDownList!$B$47,CntyQryCensus!$A$510:$DA$552,AU$1)","v":1},{"$f":"VLOOKUP(DropDownList!$B$47,CntyQryCensus!$A$510:$DA$552,AV$1)","v":10},{"$f":"VLOOKUP(DropDownList!$B$47,CntyQryCensus!$A$510:$DA$552,AW$1)","v":0},{"$f":"VLOOKUP(DropDownList!$B$47,CntyQryCensus!$A$510:$DA$552,AX$1)","v":0},{"$f":"VLOOKUP(DropDownList!$B$47,CntyQryCensus!$A$510:$DA$552,AY$1)","v":2},{"$f":"VLOOKUP(DropDownList!$B$47,CntyQryCensus!$A$510:$DA$552,AZ$1)","v":2},{"$f":"VLOOKUP(DropDownList!$B$47,CntyQryCensus!$A$510:$DA$552,BA$1)","v":2},{"$f":"VLOOKUP(DropDownList!$B$47,CntyQryCensus!$A$510:$DA$552,BB$1)","v":0},{"$f":"VLOOKUP(DropDownList!$B$47,CntyQryCensus!$A$510:$DA$552,BC$1)","v":47},{"$f":"VLOOKUP(DropDownList!$B$47,CntyQryCensus!$A$510:$DA$552,BD$1)","v":383},{"$f":"VLOOKUP(DropDownList!$B$47,CntyQryCensus!$A$510:$DA$552,BE$1)","v":67},{"$f":"VLOOKUP(DropDownList!$B$47,CntyQryCensus!$A$510:$DA$552,BF$1)","v":0},{"$f":"VLOOKUP(DropDownList!$B$47,CntyQryCensus!$A$510:$DA$552,BG$1)","v":0},{"$f":"VLOOKUP(DropDownList!$B$47,CntyQryCensus!$A$510:$DA$552,BH$1)","v":0},{"$f":"VLOOKUP(DropDownList!$B$47,CntyQryCensus!$A$510:$DA$552,BI$1)","v":0},{"$f":"VLOOKUP(DropDownList!$B$47,CntyQryCensus!$A$510:$DA$552,BJ$1)","v":0},{"$f":"VLOOKUP(DropDownList!$B$47,CntyQryCensus!$A$510:$DA$552,BK$1)","v":0},{"$f":"VLOOKUP(DropDownList!$B$47,CntyQryCensus!$A$510:$DA$552,BL$1)","v":0},{"$f":"VLOOKUP(DropDownList!$B$47,CntyQryCensus!$A$510:$DA$552,BM$1)","v":0},{"$f":"VLOOKUP(DropDownList!$B$47,CntyQryCensus!$A$510:$DA$552,BN$1)","v":67},{"$f":"VLOOKUP(DropDownList!$B$47,CntyQryCensus!$A$510:$DA$552,BO$1)","v":24},{"$f":"VLOOKUP(DropDownList!$B$47,CntyQryCensus!$A$510:$DA$552,BP$1)","v":0},{"$f":"VLOOKUP(DropDownList!$B$47,CntyQryCensus!$A$510:$DA$552,BQ$1)","v":0},{"$f":"VLOOKUP(DropDownList!$B$47,CntyQryCensus!$A$510:$DA$552,BR$1)","v":0},{"$f":"VLOOKUP(DropDownList!$B$47,CntyQryCensus!$A$510:$DA$552,BS$1)","v":0},{"$f":"VLOOKUP(DropDownList!$B$47,CntyQryCensus!$A$510:$DA$552,BT$1)","v":0},{"$f":"VLOOKUP(DropDownList!$B$47,CntyQryCensus!$A$510:$DA$552,BU$1)","v":0},{"$f":"VLOOKUP(DropDownList!$B$47,CntyQryCensus!$A$510:$DA$552,BV$1)","v":0},{"$f":"VLOOKUP(DropDownList!$B$47,CntyQryCensus!$A$510:$DA$552,BW$1)","v":0},{"$f":"VLOOKUP(DropDownList!$B$47,CntyQryCensus!$A$510:$DA$552,BX$1)","v":0},{"$f":"VLOOKUP(DropDownList!$B$47,CntyQryCensus!$A$510:$DA$552,BY$1)","v":0},{"$f":"VLOOKUP(DropDownList!$B$47,CntyQryCensus!$A$510:$DA$552,BZ$1)","v":0},{"$f":"VLOOKUP(DropDownList!$B$47,CntyQryCensus!$A$510:$DA$552,CA$1)","v":0},{"$f":"VLOOKUP(DropDownList!$B$47,CntyQryCensus!$A$510:$DA$552,CB$1)","v":24},{"$f":"VLOOKUP(DropDownList!$B$47,CntyQryCensus!$A$510:$DA$552,CC$1)","v":224},{"$f":"VLOOKUP(DropDownList!$B$47,CntyQryCensus!$A$510:$DA$552,CD$1)","v":15},{"$f":"VLOOKUP(DropDownList!$B$47,CntyQryCensus!$A$510:$DA$552,CE$1)","v":0},{"$f":"VLOOKUP(DropDownList!$B$47,CntyQryCensus!$A$510:$DA$552,CF$1)","v":3},{"$f":"VLOOKUP(DropDownList!$B$47,CntyQryCensus!$A$510:$DA$552,CG$1)","v":0},{"$f":"VLOOKUP(DropDownList!$B$47,CntyQryCensus!$A$510:$DA$552,CH$1)","v":0},{"$f":"VLOOKUP(DropDownList!$B$47,CntyQryCensus!$A$510:$DA$552,CI$1)","v":0},{"$f":"VLOOKUP(DropDownList!$B$47,CntyQryCensus!$A$510:$DA$552,CJ$1)","v":12},{"$f":"VLOOKUP(DropDownList!$B$47,CntyQryCensus!$A$510:$DA$552,CK$1)","v":12},{"$f":"VLOOKUP(DropDownList!$B$47,CntyQryCensus!$A$510:$DA$552,CL$1)","v":6},{"$f":"VLOOKUP(DropDownList!$B$47,CntyQryCensus!$A$510:$DA$552,CM$1)","v":6},{"$f":"VLOOKUP(DropDownList!$B$47,CntyQryCensus!$A$510:$DA$552,CN$1)","v":0},{"$f":"VLOOKUP(DropDownList!$B$47,CntyQryCensus!$A$510:$DA$552,CO$1)","v":6},{"$f":"VLOOKUP(DropDownList!$B$47,CntyQryCensus!$A$510:$DA$552,CP$1)","v":197},{"$f":"VLOOKUP(DropDownList!$B$47,CntyQryCensus!$A$510:$DA$552,CQ$1)","v":68},{"$f":"VLOOKUP(DropDownList!$B$47,CntyQryCensus!$A$510:$DA$552,CR$1)","v":4},{"$f":"VLOOKUP(DropDownList!$B$47,CntyQryCensus!$A$510:$DA$552,CS$1)","v":0},{"$f":"VLOOKUP(DropDownList!$B$47,CntyQryCensus!$A$510:$DA$552,CT$1)","v":4},{"$f":"VLOOKUP(DropDownList!$B$47,CntyQryCensus!$A$510:$DA$552,CU$1)","v":0},{"$f":"VLOOKUP(DropDownList!$B$47,CntyQryCensus!$A$510:$DA$552,CV$1)","v":0},{"$f":"VLOOKUP(DropDownList!$B$47,CntyQryCensus!$A$510:$DA$552,CW$1)","v":0},{"$f":"VLOOKUP(DropDownList!$B$47,CntyQryCensus!$A$510:$DA$552,CX$1)","v":10},{"$f":"VLOOKUP(DropDownList!$B$47,CntyQryCensus!$A$510:$DA$552,CY$1)","v":1},{"$f":"VLOOKUP(DropDownList!$B$47,CntyQryCensus!$A$510:$DA$552,CZ$1)","v":9},{"$f":"VLOOKUP(DropDownList!$B$47,CntyQryCensus!$A$510:$DA$552,DA$1)","v":54}]
[]
[]
[]
[]
[{"$f":"VLOOKUP(DropDownList!$B$47,CntyQryCensus!$A$510:$DA$552,A$1)","v":"Acworth"}]
[]
[]
[]
["ACS",2,{"$f":"B105+1","v":3},{"$f":"C105+1","v":4},5,6,7,8,9,10,11,{"$f":"K105+1","v":12},13,14,15,{"$f":"O105+1","v":16},17,18,19,20,21,22,23,24,25,26,27,28,29,30,31,32,33,34,35,36,37,38,39,40,41,42,43,44,45,46,47,48,49,50,51,52,53,54,55,56,57,58,59,60,61,62,63,64,65,66,67,{"$f":"BO105+1","v":68},69,70,71,72,73,74,75,76,77,78,79,80,81,82,83,84,85,86,87,88,89,90,91,92,93,94,95,96,97,98,99,100,101,102,103,104,105,106,107,108,109,110,111,112,113,114,115,116,117,118,119,120,121,122,123,124,125]
["Househould Data (Housing Unit Type)"]
["NAME","TotalHU",{"$f":"\"MOE \"&B107","v":"MOE TotalHU"},"TotalOccHU",{"$f":"\"MOE \"&D107","v":"MOE TotalOccHU"},"TotalOwnerOccUn",{"$f":"\"MOE \"&F107","v":"MOE TotalOwnerOccUn"},"TotalRenterOccn",{"$f":"\"MOE \"&H107","v":"MOE TotalRenterOccn"},"TotalVacantUntis",{"$f":"\"MOE \"&J107","v":"MOE TotalVacantUntis"},"VacantUnitsForRent",{"$f":"\"MOE \"&L107","v":"MOE VacantUnitsForRent"},"VacantUnitRentedNotOcc",{"$f":"\"MOE \"&N107","v":"MOE VacantUnitRentedNotOcc"},"VacantUnitForSale",{"$f":"\"MOE \"&P107","v":"MOE VacantUnitForSale"},"VacantUnitSoldNotOcc",{"$f":"\"MOE \"&R107","v":"MOE VacantUnitSoldNotOcc"},"VacantUnitSeasonalRec",{"$f":"\"MOE \"&T107","v":"MOE VacantUnitSeasonalRec"},"TotalPopInHousingUnits",{"$f":"\"MOE \"&V107","v":"MOE TotalPopInHousingUnits"},"OwnerOccPopHousingUnits",{"$f":"\"MOE \"&X107","v":"MOE OwnerOccPopHousingUnits"},"RenterOccPopHousingUnits",{"$f":"\"MOE \"&Z107","v":"MOE RenterOccPopHousingUnits"},"TotalUntis",{"$f":"\"MOE \"&AB107","v":"MOE TotalUntis"},"TotalOwnerOccUnits",{"$f":"\"MOE \"&AD107","v":"MOE TotalOwnerOccUnits"},"SigFamOwnerOcc",{"$f":"\"MOE \"&AF107","v":"MOE SigFamOwnerOcc"},"MultiFamOwnerOcc",{"$f":"\"MOE \"&AH107","v":"MOE MultiFamOwnerOcc"},"MobileOwnerOcc",{"$f":"\"MOE \"&AJ107","v":"MOE MobileOwnerOcc"},"TotalRenterOccUnits",{"$f":"\"MOE \"&AL107","v":"MOE TotalRenterOccUnits"},"SigFamRenterOcc",{"$f":"\"MOE \"&AN107","v":"MOE SigFamRenterOcc"},"MultiFamRenterOcc",{"$f":"\"MOE \"&AP107","v":"MOE MultiFamRenterOcc"},"MobileRenterOcc",{"$f":"\"MOE \"&AR107","v":"MOE MobileRenterOcc"},"TotalSigFamilyUnits",{"$f":"\"MOE \"&AT107","v":"MOE TotalSigFamilyUnits"},"TotalMultiFamilyUnits",{"$f":"\"MOE \"&AV107","v":"MOE TotalMultiFamilyUnits"},"TotalMobileUnits",{"$f":"\"MOE \"&AX107","v":"MOE TotalMobileUnits"},"YrHouseBuilt2014Later",{"$f":"\"MOE \"&AZ107","v":"MOE YrHouseBuilt2014Later"},"YrHouseBuilt2010-2013",{"$f":"\"MOE \"&BB107","v":"MOE YrHouseBuilt2010-2013"},"YrHouseBuilt2000-2009",{"$f":"\"MOE \"&BD107","v":"MOE YrHouseBuilt2000-2009"},"YrHouseBuilt1990-1999",{"$f":"\"MOE \"&BF107","v":"MOE YrHouseBuilt1990-1999"},"YrHouseBuilt1980-1989",{"$f":"\"MOE \"&BH107","v":"MOE YrHouseBuilt1980-1989"},"YrHouseBuilt1970-1979",{"$f":"\"MOE \"&BJ107","v":"MOE YrHouseBuilt1970-1979"},"YrHouseBuilt1960-1969",{"$f":"\"MOE \"&BL107","v":"MOE YrHouseBuilt1960-1969"},"YrHouseBuilt1950-1959",{"$f":"\"MOE \"&BN107","v":"MOE YrHouseBuilt1950-1959"},"YrHouseBuilt1940-1949",{"$f":"\"MOE \"&BP107","v":"MOE YrHouseBuilt1940-1949"},"YrHouseBuilt1939orEarlier",{"$f":"\"MOE \"&BR107","v":"MOE YrHouseBuilt1939orEarlier"},"NoBedrooms",{"$f":"\"MOE \"&BT107","v":"MOE NoBedrooms"},"1Bedroom",{"$f":"\"MOE \"&BV107","v":"MOE 1Bedroom"},"2Bedroom",{"$f":"\"MOE \"&BX107","v":"MOE 2Bedroom"},"3Bedroom",{"$f":"\"MOE \"&BZ107","v":"MOE 3Bedroom"},"4+Bedroom",{"$f":"\"MOE \"&CB107","v":"MOE 4+Bedroom"}]
[{"$f":"VLOOKUP(DropDownList!$B$47,CntyQryCensus!$A$530:$AY$544,A$1)","v":"Acworth"},556,51,347,44,274,40,73,32,209,47,0,11,0,11,17,14,0,11,179,41,923,163,685,109,238,137,347,44,274,40,245,37,3,27.239676943752471,26,15.524174696260024,73,32,68,32,5,27.604347483684521,0,15.556349186104045,507,51,8,25.632011235952593,41,20.396078054371138,8,9,97,35,18,9,54,23,106,32,41,24,58,25,44,25,130,33,21,18,48,24,180,37,216,46,91,30.413812651491099,171,50.089919145472777,81,79,36,74,28,76,114,30,114,142,91,44,40,134,119,76,105,14,132,142,84,108,151,154,137,30,701,207.10383868967759,300,141.01418368376991,207.27517941133232,197.81304304822774]
[]
["Disability Data"]
["NAME","TotalPop","PCT026001-NonInstPop5yrs+","PCT026002-MaleNonInstPop5yrs+","Male5To15NonInstitPop","Male5To15-NoDisability","Male5To15-1Disability","Male5To15-2orMoreDisabilities","Male16To20-NonInstitutionalPop","Male16To20-NoDisability","Male16To20-1Disability","Male16To20-2orMoreDisabilities","Male21To64-NonInstitutionalPop","Male21To64-NoDisability","Male21To64-1Disability","Male21To64-2orMoreDisabilities","Male65To74-NonInstitutionalPop","Male65To74-NoDisability","Male65To74-1Disability","Male65To74-2orMoreDisabilities","Male75Over-NonInstitutionalPop","Male75Over-NoDisability","Male75Over-1Disability","Male75Over-2orMoreDisabilities","PCT026002-FemaleNonInstPop5yrs+","FemaleNonInstPop5To15NonInstPop","Female5To15-NoDisability","Female5To15-1Disability","Female5To15-2orMoreDisabilities","FemaleNonInstPop16To20NonInstPop","Female16To20-NoDisability","Female16To20-1Disability","Female16To20-2orMoreDisabilities","FemaleNonInstPop21To64NonInstPop","Female21To64-NoDisability","Female21To64-1Disability","Female21To64-2orMoreDisabilities","FemaleNonInstPop65To74NonInstPop","Female65To74-NoDisability","Female65To74-1Disability","Female65To74-2orMoreDisabilities","FemaleNonInstPop75OverNonInstPop","Female75Over-NoDisability","Female75Over-1Disability","Female75Over-2orMoreDisabilities","Male5To15-SensoryDisability","Male16To20-SensoryDisability","Male21To64-SensoryDisability","Male65To74-SensoryDisability","Male75Over-SensoryDisability","Female5To15-SensoryDisability","Female16To20-SensoryDisability","Female21To64-SensoryDisability","Female65To74-SensoryDisability","Female75Over-SensoryDisability","Male5To15-PhysicalDisabil","Male16To20-PhysicalDisabil","Male21To64-PhysicalDisabil","Male65To74-PhysicalDisabil","Male75Over-PhysicalDisabil","Female5To15-PhysicalDisabil","Female16To20-PhysicalDisabil","Female21To64-PhysicalDisabil","Female65To74-PhysicalDisabil","Female75Over-PhysicalDisabil","Male5To15-MentalDisabil","Male16To20-MentalDisabil","Male21To64-MentalDisabil","Male65To74-MentalDisabil","Male75Over-MentalDisabil","Female5To15-MentalDisabil","Female16To20-MentalDisabil","Female21To64-MentalDisabil","Female65To74-MentalDisabil","Female75Over-MentalDisabil","Male5To15-SelfCareDisabil","Male16To20-SelfCareDisabil","Male21To64-SelfCareDisabil","Male65To74-SelfCareDisabil","Male75Over-SelfCareDisabil","Female5To15-SelfCareDisabil","Female16To20-SelfCareDisabil","Female21To64-SelfCareDisabil","Female65To74-SelfCareDisabil","Female75Over-SelfCareDisabil","Male16To20-GoOutsideHomeDisabil","Male21To64-GoOutsideHomeDisabil","Male65To74-GoOutsideHomeDisabil","Male75Over-GoOutsideHomeDisabil","Female16To20-GoOutsideHomeDisabil","Female21To64-GoOutsideHomeDisabil","Female65To74-GoOutsideHomeDisabil","Female75Over-GoOutsideHomeDisabil","Male16To20-EmploymentDisabil","Male21To64-EmploymentDisabil","Female16To20-EmploymentDisabil","Female21To64-EmploymentDisabil"]
[{"$f":"VLOOKUP(DropDownList!$B$47,CntyQryCensus!$A$530:$AY$544,A$1)","v":"Acworth"},923,163,55,36.235341863986875,0,15.556349186104045,55,36.235341863986875,152,54.203320931470607,2,11.401754250991379,150,54.203320931470607,184,54.378304497290095,15,13.416407864998739,169,51.623637996561229,380,55.865910893853687,33,14.212670403551895,347,52.32590180780452,105,33.421549934136806,38,20.248456731316587,67,27.658633371878661,47,18.788294228055936,19,15.524174696260024,28,11.401754250991379,0,15.556349186104045,0,15.556349186104045,0,15.556349186104045,13,11.401754250991379,13,7.810249675906654,10,5.6568542494923806,0,15.556349186104045,0,15.556349186104045,0,15.556349186104045,2,11.401754250991379,4,13.601470508735444,0,15.556349186104045,2,11.401754250991379,12,12.649110640673518,8,7.2111025509279782,4,13.601470508735444,4,11.704699910719626,0,15.556349186104045,11,13,17,10.63014581273465,20,15.297058540778355,6,5,0,15.556349186104045,0,15.556349186104045,8,7.6157731058639087,0,15.556349186104045,4,11.704699910719626,13,13.416407864998739,11,8.6023252670426267,6,13.038404810405298,13,18.601075237738275,0,15,11,18,56,46,89,65,88,53,77,56,751,211]
[]
["Househould Income By Age"]
["NAME","TotalHouseholds",{"$f":"\"MOE \"&B115","v":"MOE TotalHouseholds"},"HHInc<10K",{"$f":"\"MOE \"&D115","v":"MOE HHInc<10K"},"HHInc10to15K",{"$f":"\"MOE \"&F115","v":"MOE HHInc10to15K"},"HHInc15to20K",{"$f":"\"MOE \"&H115","v":"MOE HHInc15to20K"},"HHInc20to25K",{"$f":"\"MOE \"&J115","v":"MOE HHInc20to25K"},"HHInc25to30K",{"$f":"\"MOE \"&L115","v":"MOE HHInc25to30K"},"HHInc30to35K",{"$f":"\"MOE \"&N115","v":"MOE HHInc30to35K"},"HHInc35to40K",{"$f":"\"MOE \"&P115","v":"MOE HHInc35to40K"},"HHInc40to45K",{"$f":"\"MOE \"&R115","v":"MOE HHInc40to45K"},"HHInc45to50K",{"$f":"\"MOE \"&T115","v":"MOE HHInc45to50K"},"HHInc50to60K",{"$f":"\"MOE \"&V115","v":"MOE HHInc50to60K"},"HHInc60to75K",{"$f":"\"MOE \"&X115","v":"MOE HHInc60to75K"},"HHInc75to100K",{"$f":"\"MOE \"&Z115","v":"MOE HHInc75to100K"},"HHInc100to125K",{"$f":"\"MOE \"&AB115","v":"MOE HHInc100to125K"},"HHInc125to150K",{"$f":"\"MOE \"&AD115","v":"MOE HHInc125to150K"},"HHInc150to200K",{"$f":"\"MOE \"&AF115","v":"MOE HHInc150to200K"},"HHInc>200K",{"$f":"\"MOE \"&AH115","v":"MOE HHInc>200K"},"TotalHH",{"$f":"\"MOE \"&AJ115","v":"MOE TotalHH"},"HHAgeHHUnder25yrs",{"$f":"\"MOE \"&AL115","v":"MOE HHAgeHHUnder25yrs"},"HHAgeHH<25HHInc<10K",{"$f":"\"MOE \"&AN115","v":"MOE HHAgeHH<25HHInc<10K"},"HHAgeHH<25HHInc10to15K",{"$f":"\"MOE \"&AP115","v":"MOE HHAgeHH<25HHInc10to15K"},"HHAgeHH<25HHInc15to20K",{"$f":"\"MOE \"&AR115","v":"MOE HHAgeHH<25HHInc15to20K"},"HHAgeHH<25HHInc20to25K",{"$f":"\"MOE \"&AT115","v":"MOE HHAgeHH<25HHInc20to25K"},"HHAgeHH<25HHInc25to30K",{"$f":"\"MOE \"&AV115","v":"MOE HHAgeHH<25HHInc25to30K"},"HHAgeHH<25HHInc30to35K",{"$f":"\"MOE \"&AX115","v":"MOE HHAgeHH<25HHInc30to35K"},"HHAgeHH<25HHInc35to40K",{"$f":"\"MOE \"&AZ115","v":"MOE HHAgeHH<25HHInc35to40K"},"HHAgeHH<25HHInc40to45K",{"$f":"\"MOE \"&BB115","v":"MOE HHAgeHH<25HHInc40to45K"},"HHAgeHH<25HHInc45to50K",{"$f":"\"MOE \"&BD115","v":"MOE HHAgeHH<25HHInc45to50K"},"HHAgeHH<25HHInc50to60K",{"$f":"\"MOE \"&BF115","v":"MOE HHAgeHH<25HHInc50to60K"},"HHAgeHH<25HHInc60to75K",{"$f":"\"MOE \"&BH115","v":"MOE HHAgeHH<25HHInc60to75K"},"HHAgeHH<25HHInc75to100K",{"$f":"\"MOE \"&BJ115","v":"MOE HHAgeHH<25HHInc75to100K"},"HHAgeHH<25HHInc100to125K",{"$f":"\"MOE \"&BL115","v":"MOE HHAgeHH<25HHInc100to125K"},"HHAgeHH<25HHInc125to150K",{"$f":"\"MOE \"&BN115","v":"MOE HHAgeHH<25HHInc125to150K"},"HHAgeHH<25HHInc150to200K",{"$f":"\"MOE \"&BP115","v":"MOE HHAgeHH<25HHInc150to200K"},"HHAge<25HHInc>200K",{"$f":"\"MOE \"&BR115","v":"MOE HHAge<25HHInc>200K"},"HHAgeHH25to44yrs",{"$f":"\"MOE \"&BT115","v":"MOE HHAgeHH25to44yrs"},"HHAgeHH25To44yrsHHInc<10K",{"$f":"\"MOE \"&BV115","v":"MOE HHAgeHH25To44yrsHHInc<10K"},"HHAgeHH25To44yrsHHInc10to15K",{"$f":"\"MOE \"&BX115","v":"MOE HHAgeHH25To44yrsHHInc10to15K"},"HHAgeHH25To44yrsHHInc15to20K",{"$f":"\"MOE \"&BZ115","v":"MOE HHAgeHH25To44yrsHHInc15to20K"},"HHAgeHH25To44yrsHHInc20to25K",{"$f":"\"MOE \"&CB115","v":"MOE HHAgeHH25To44yrsHHInc20to25K"},"HHAgeHH25To44yrsHHInc25to30K",{"$f":"\"MOE \"&CD115","v":"MOE HHAgeHH25To44yrsHHInc25to30K"},"HHAgeHH25To44yrsHHInc30to35K",{"$f":"\"MOE \"&CF115","v":"MOE HHAgeHH25To44yrsHHInc30to35K"},"HHAgeHH25To44yrsHHInc35to40K",{"$f":"\"MOE \"&CH115","v":"MOE HHAgeHH25To44yrsHHInc35to40K"},"HHAgeHH25To44yrsHHInc40to45K",{"$f":"\"MOE \"&CJ115","v":"MOE HHAgeHH25To44yrsHHInc40to45K"},"HHAgeHH25To44yrsHHInc45to50K",{"$f":"\"MOE \"&CL115","v":"MOE HHAgeHH25To44yrsHHInc45to50K"},"HHAgeHH25To44yrsHHInc50to60K",{"$f":"\"MOE \"&CN115","v":"MOE HHAgeHH25To44yrsHHInc50to60K"},"HHAgeHH25To44yrsHHInc60to75K",{"$f":"\"MOE \"&CP115","v":"MOE HHAgeHH25To44yrsHHInc60to75K"},"HHAgeHH25To44yrsHHInc75to100K",{"$f":"\"MOE \"&CR115","v":"MOE HHAgeHH25To44yrsHHInc75to100K"},"HHAgeHH25To44yrsHHInc100to125K",{"$f":"\"MOE \"&CT115","v":"MOE HHAgeHH25To44yrsHHInc100to125K"},"HHAgeHH25To44yrsHHInc125to150K",{"$f":"\"MOE \"&CV115","v":"MOE HHAgeHH25To44yrsHHInc125to150K"},"HHAgeHH25To44yrsHHInc150to200K",{"$f":"\"MOE \"&CX115","v":"MOE HHAgeHH25To44yrsHHInc150to200K"},"HHAge25To44yrsHHInc>200K",{"$f":"\"MOE \"&CZ115","v":"MOE HHAge25To44yrsHHInc>200K"},"HHAgeHH45To64yrs",{"$f":"\"MOE \"&DB115","v":"MOE HHAgeHH45To64yrs"},"HHAgeHH45To64yrsHHInc<10K",{"$f":"\"MOE \"&DD115","v":"MOE HHAgeHH45To64yrsHHInc<10K"},"HHAgeHH45To64yrsHHInc10to15K",{"$f":"\"MOE \"&DF115","v":"MOE HHAgeHH45To64yrsHHInc10to15K"},"HHAgeHH45To64yrsHHInc15to20K",{"$f":"\"MOE \"&DH115","v":"MOE HHAgeHH45To64yrsHHInc15to20K"},"HHAgeHH45To64yrsHHInc20to25K",{"$f":"\"MOE \"&DJ115","v":"MOE HHAgeHH45To64yrsHHInc20to25K"},"HHAgeHH45To64yrsHHInc25to30K",{"$f":"\"MOE \"&DL115","v":"MOE HHAgeHH45To64yrsHHInc25to30K"},"HHAgeHH45To64yrsHHInc30to35K",{"$f":"\"MOE \"&DN115","v":"MOE HHAgeHH45To64yrsHHInc30to35K"},"HHAgeHH45To64yrsHHInc35to40K",{"$f":"\"MOE \"&DP115","v":"MOE HHAgeHH45To64yrsHHInc35to40K"},"HHAgeHH45To64yrsHHInc40to45K",{"$f":"\"MOE \"&DR115","v":"MOE HHAgeHH45To64yrsHHInc40to45K"},"HHAgeHH45To64yrsHHInc45to50K",{"$f":"\"MOE \"&DT115","v":"MOE HHAgeHH45To64yrsHHInc45to50K"},"HHAgeHH45To64yrsHHInc50to60K",{"$f":"\"MOE \"&DV115","v":"MOE HHAgeHH45To64yrsHHInc50to60K"},"HHAgeHH45To64yrsHHInc60to75K",{"$f":"\"MOE \"&DX115","v":"MOE HHAgeHH45To64yrsHHInc60to75K"},"HHAgeHH45To64yrsHHInc75to100K",{"$f":"\"MOE \"&DZ115","v":"MOE HHAgeHH45To64yrsHHInc75to100K"},"HHAgeHH45To64yrsHHInc100to125K",{"$f":"\"MOE \"&EB115","v":"MOE HHAgeHH45To64yrsHHInc100to125K"},"HHAgeHH45To64yrsHHInc125to150K",{"$f":"\"MOE \"&ED115","v":"MOE HHAgeHH45To64yrsHHInc125to150K"},"HHAgeHH45To64yrsHHInc150to200K",{"$f":"\"MOE \"&EF115","v":"MOE HHAgeHH45To64yrsHHInc150to200K"},"HHAge45To64yrsHHInc>200K",{"$f":"\"MOE \"&EH115","v":"MOE HHAge45To64yrsHHInc>200K"},"HHAgeHH65yrsorOlder",{"$f":"\"MOE \"&EJ115","v":"MOE HHAgeHH65yrsorOlder"},"HHAgeHH65yrsorOlderHHInc<10K",{"$f":"\"MOE \"&EL115","v":"MOE HHAgeHH65yrsorOlderHHInc<10K"},"HHAgeHH65yrsorOlderHHInc10to15K",{"$f":"\"MOE \"&EN115","v":"MOE HHAgeHH65yrsorOlderHHInc10to15K"},"HHAgeHH65yrsorOlderHHInc15to20K",{"$f":"\"MOE \"&EP115","v":"MOE HHAgeHH65yrsorOlderHHInc15to20K"},"HHAgeHH65yrsorOlderHHInc20to25K",{"$f":"\"MOE \"&ER115","v":"MOE HHAgeHH65yrsorOlderHHInc20to25K"},"HHAgeHH65yrsorOlderHHInc25to30K",{"$f":"\"MOE \"&ET115","v":"MOE HHAgeHH65yrsorOlderHHInc25to30K"},"HHAgeHH65yrsorOlderHHInc30to35K",{"$f":"\"MOE \"&EV115","v":"MOE HHAgeHH65yrsorOlderHHInc30to35K"},"HHAgeHH65yrsorOlderHHInc35to40K",{"$f":"\"MOE \"&EX115","v":"MOE HHAgeHH65yrsorOlderHHInc35to40K"},"HHAgeHH65yrsorOlderHHInc40to45K",{"$f":"\"MOE \"&EZ115","v":"MOE HHAgeHH65yrsorOlderHHInc40to45K"},"HHAgeHH65yrsorOlderHHInc45to50K",{"$f":"\"MOE \"&FB115","v":"MOE HHAgeHH65yrsorOlderHHInc45to50K"},"HHAgeHH65yrsorOlderHHInc50to60K",{"$f":"\"MOE \"&FD115","v":"MOE HHAgeHH65yrsorOlderHHInc50to60K"},"HHAgeHH65yrsorOlderHHInc60to75K",{"$f":"\"MOE \"&FF115","v":"MOE HHAgeHH65yrsorOlderHHInc60to75K"},"HHAgeHH65yrsorOlderHHInc75to100K",{"$f":"\"MOE \"&FH115","v":"MOE HHAgeHH65yrsorOlderHHInc75to100K"},"HHAgeHH65yrsorOlderHHInc100to125K",{"$f":"\"MOE \"&FJ115","v":"MOE HHAgeHH65yrsorOlderHHInc100to125K"},"HHAgeHH65yrsorOlderHHInc125to150K",{"$f":"\"MOE \"&FL115","v":"MOE HHAgeHH65yrsorOlderHHInc125to150K"},"HHAgeHH65yrsorOlderHHInc150to200K",{"$f":"\"MOE \"&FN115","v":"MOE HHAgeHH65yrsorOlderHHInc150to200K"},"HHAge65yrsorOlderHHInc>200K",{"$f":"\"MOE \"&FP115","v":"MOE HHAge65yrsorOlderHHInc>200K"},"MedianHHInc",{"$f":"\"MOE \"&FR115","v":"MOE MedianHHInc"},"HH under 25 years",{"$f":"\"MOE \"&FT115","v":"MOE HH under 25 years"},"Householder 25 to 44 years",{"$f":"\"MOE \"&FV115","v":"MOE Householder 25 to 44 years"},"Householder 45 to 64 years",{"$f":"\"MOE \"&FX115","v":"MOE Householder 45 to 64 years"},"Householder 65 years and over",{"$f":"\"MOE \"&FZ115","v":"MOE Householder 65 years and over"}]
[{"$f":"VLOOKUP(DropDownList!$B$47,CntyQryCensus!$A$530:$AY$544,A$1)","v":"Acworth"},347,44,16,13,12,8,17,16,20,17,14,11,28,19,24,15,19,13,8,9,50,24,24,16,64,23,17,9,13,17,8,11,13,8,347,44,9,11,0,11,0,11,0,11,0,11,0,11,2,3,7,11,0,11,0,11,0,11,0,11,0,11,0,11,0,11,0,11,0,11,85,30,0,11,3,4,0,11,0,11,0,11,0,11,3,4,9,10,0,11,14,13,6,7,33,17,0,11,11,17,0,11,6,5,164,34,14,12,9,7,8,9,8,13,2,3,26,19,10,7,4,5,2,3,16,11,16,11,19,15,17,9,2,4,6,10,5,6,89,31,2,3,0,11,9,15,12,12,12,10,0,11,4,4,6,6,6,8,20,18,2,3,12,9,0,11,0,11,2,3,2,3,52589,5357,"-","**",76563,7360,46250,19737,44583,12565]
[]
["Number of Households by Income"]
["NAME","HHIncLessThn10k",{"$f":"\"MOE \"&B119","v":"MOE HHIncLessThn10k"},"HHInc10to15K",{"$f":"\"MOE \"&D119","v":"MOE HHInc10to15K"},"HHInc15to25K",{"$f":"\"MOE \"&F119","v":"MOE HHInc15to25K"},"HHInc25to35K",{"$f":"\"MOE \"&H119","v":"MOE HHInc25to35K"},"HHInc35to50K",{"$f":"\"MOE \"&J119","v":"MOE HHInc35to50K"},"HHInc50to75K",{"$f":"\"MOE \"&L119","v":"MOE HHInc50to75K"},"HHInc75to100K",{"$f":"\"MOE \"&N119","v":"MOE HHInc75to100K"},"HHInc100to150K",{"$f":"\"MOE \"&P119","v":"MOE HHInc100to150K"},"HHInc150to200K",{"$f":"\"MOE \"&R119","v":"MOE HHInc150to200K"},"HHIncOver200K",{"$f":"\"MOE \"&T119","v":"MOE HHIncOver200K"}]
[{"$f":"VLOOKUP(DropDownList!$B$47,CntyQryCensus!$A$530:$AY$544,A$1)","v":"Acworth"},16,13,12,8,37,23.345235059857504,42,21.95449840010015,51,21.794494717703369,74,28.844410203711913,64,23,30,19.235384061671343,8,11,13,8,null,null,null,null,null,null,null,null,null,null,null,null,null,null,null,null,null,null,null,null,null,null,null,null,null,null,null,null,null,null,null,null,null,null,null,null,null,null,null,null,null,null,null,null,null,null,null,null,null,null,null,null,null,71,144,93,171,118,131,100,66,49,292,122,333,132,307,97,186,97,22,28,12,20,0,16,null,null,null,null,null,null,null,null,null,null,null,null,null,null,"Charlestown",null,"Estimate","Margin Of Error",2310,107,null,null,133,93,71,53,340,130.81666560496029,246,117.00427342623003,368,162.24980739587951,625,179.74426277353055,307,97,208,100.96038827183659,12,20,0,16]
[]
["POVERTY DATA"]
["NAME","TotalPop",{"$f":"\"MOE \"&B123","v":"MOE TotalPop"},"Total Individuals living in Poverty",{"$f":"\"MOE \"&D123","v":"MOE Total Individuals living in Poverty"},"Under 5 yrs.",{"$f":"\"MOE \"&F123","v":"MOE Under 5 yrs."},"5 to 17 yrs.",{"$f":"\"MOE \"&H123","v":"MOE 5 to 17 yrs."},"18 to 64 yrs.",{"$f":"\"MOE \"&J123","v":"MOE 18 to 64 yrs."},"65 to 74 yrs.",{"$f":"\"MOE \"&L123","v":"MOE 65 to 74 yrs."},"75 yrs. & Over",{"$f":"\"MOE \"&N123","v":"MOE 75 yrs. & Over"},"Total Individuals  Not living Poverty",{"$f":"\"MOE \"&P123","v":"MOE Total Individuals  Not living Poverty"},"Under 5 yrs.",{"$f":"\"MOE \"&R123","v":"MOE Under 5 yrs."},"5 to 17 yrs.",{"$f":"\"MOE \"&T123","v":"MOE 5 to 17 yrs."},"18 to 64 yrs.",{"$f":"\"MOE \"&V123","v":"MOE 18 to 64 yrs."},"65 to 74 yrs.",{"$f":"\"MOE \"&X123","v":"MOE 65 to 74 yrs."},"75 yrs. & Over",{"$f":"\"MOE \"&Z123","v":"MOE 75 yrs. & Over"},"Total HH",{"$f":"\"MOE \"&AB123","v":"MOE Total HH"},"Total Households Below Poverty",{"$f":"\"MOE \"&AD123","v":"MOE Total Households Below Poverty"},"Family Households in Poverty",{"$f":"\"MOE \"&AF123","v":"MOE Family Households in Poverty"},"Married Couple Fam HH",{"$f":"\"MOE \"&AH123","v":"MOE Married Couple Fam HH"},"Other Family",{"$f":"\"MOE \"&AJ123","v":"MOE Other Family"},"Male Head of Family HH no wife",{"$f":"\"MOE \"&AL123","v":"MOE Male Head of Family HH no wife"},"Female Head of Family HH no husband",{"$f":"\"MOE \"&AN123","v":"MOE Female Head of Family HH no husband"},"Non-Family HH",{"$f":"\"MOE \"&AP123","v":"MOE Non-Family HH"},"Non-Family Male HH",{"$f":"\"MOE \"&AR123","v":"MOE Non-Family Male HH"},"Non-Family Female HH",{"$f":"\"MOE \"&AT123","v":"MOE Non-Family Female HH"},"Total Households at or Above Poverty",{"$f":"\"MOE \"&AV123","v":"MOE Total Households at or Above Poverty"},"Family Households above Poverty",{"$f":"\"MOE \"&AX123","v":"MOE Family Households above Poverty"},"Married Couple Fam HH",{"$f":"\"MOE \"&AZ123","v":"MOE Married Couple Fam HH"},"Other Family",{"$f":"\"MOE \"&BB123","v":"MOE Other Family"},"Male Head of Family HH no wife",{"$f":"\"MOE \"&BD123","v":"MOE Male Head of Family HH no wife"},"Female Head of Family HH no husband",{"$f":"\"MOE \"&BF123","v":"MOE Female Head of Family HH no husband"},"Non-Family HH",{"$f":"\"MOE \"&BH123","v":"MOE Non-Family HH"},"Non-Family Male HH",{"$f":"\"MOE \"&BJ123","v":"MOE Non-Family Male HH"},"Non-Family Female HH",{"$f":"\"MOE \"&BL123","v":"MOE Non-Family Female HH"},"Married Couple with Children Below Poverty",{"$f":"\"MOE \"&BN123","v":"MOE Married Couple with Children Below Poverty"},"Male HH with children below poverty",{"$f":"\"MOE \"&BP123","v":"MOE Male HH with children below poverty"},"Female HH with children below poverty",{"$f":"\"MOE \"&BR123","v":"MOE Female HH with children below poverty"},"Married Couple with Children At or Above Poverty",{"$f":"\"MOE \"&BT123","v":"MOE Married Couple with Children At or Above Poverty"},"Male HH with children at or above poverty",{"$f":"\"MOE \"&BV123","v":"MOE Male HH with children at or above poverty"},"Female HH with children at or above poverty",{"$f":"\"MOE \"&BX123","v":"MOE Female HH with children at or above poverty"}]
[{"$f":"VLOOKUP(DropDownList!$B$47,CntyQryCensus!$A$530:$AY$544,A$1)","v":"Acworth"},13028,83,1745,406,81,81.344944526380985,412,184.68351307033339,1109,225.46840133375673,45,38.275318418009277,98,63.63961030678928,11283,414,778,155.43809056984713,1670,283.4607556611673,6952,450.16774651234175,1064,156.48642113614844,1064,156.48642113614844,771,187,283,127,48,41,0,17,235,118,29,34,206,123,488,140,220,111,268,106,4647,227,3035,222,2179,216,856,196,243,115,613,149,1612,237,1612,237,865,166,32,36,17,29,195,119,753,177,182,109,401,125]
[]
["Household Income By Tenure"]
["NAME","TotalOccHU",{"$f":"\"MOE \"&B127","v":"MOE TotalOccHU"},"OwnOccHU",{"$f":"\"MOE \"&D127","v":"MOE OwnOccHU"},"OOHUInc<5K",{"$f":"\"MOE \"&F127","v":"MOE OOHUInc<5K"},"OOHUInc5to10K",{"$f":"\"MOE \"&H127","v":"MOE OOHUInc5to10K"},"OOHUInc10to15K",{"$f":"\"MOE \"&J127","v":"MOE OOHUInc10to15K"},"OOHUInc15to20K",{"$f":"\"MOE \"&L127","v":"MOE OOHUInc15to20K"},"OOHUInc20to25K",{"$f":"\"MOE \"&N127","v":"MOE OOHUInc20to25K"},"OOHUInc25to35K",{"$f":"\"MOE \"&P127","v":"MOE OOHUInc25to35K"},"OOHUInc35to50K",{"$f":"\"MOE \"&R127","v":"MOE OOHUInc35to50K"},"OOHUInc50to75K",{"$f":"\"MOE \"&T127","v":"MOE OOHUInc50to75K"},"OOHUInc75to100K",{"$f":"\"MOE \"&V127","v":"MOE OOHUInc75to100K"},"OOHUInc100to150K",{"$f":"\"MOE \"&X127","v":"MOE OOHUInc100to150K"},"OOHUInc>150K",{"$f":"\"MOE \"&Z127","v":"MOE OOHUInc>150K"},"RentOccHU",{"$f":"\"MOE \"&AB127","v":"MOE RentOccHU"},"ROHUInc<5K",{"$f":"\"MOE \"&AD127","v":"MOE ROHUInc<5K"},"ROHUInc5to10K",{"$f":"\"MOE \"&AF127","v":"MOE ROHUInc5to10K"},"ROHUInc10to15K",{"$f":"\"MOE \"&AH127","v":"MOE ROHUInc10to15K"},"ROHUInc15to20K",{"$f":"\"MOE \"&AJ127","v":"MOE ROHUInc15to20K"},"ROHUInc20to25K",{"$f":"\"MOE \"&AL127","v":"MOE ROHUInc20to25K"},"ROHUInc25to35K",{"$f":"\"MOE \"&AN127","v":"MOE ROHUInc25to35K"},"ROHUInc35to50K",{"$f":"\"MOE \"&AP127","v":"MOE ROHUInc35to50K"},"ROHUInc50to75K",{"$f":"\"MOE \"&AR127","v":"MOE ROHUInc50to75K"},"ROHUInc75to100K",{"$f":"\"MOE \"&AT127","v":"MOE ROHUInc75to100K"},"ROHUInc100to150K",{"$f":"\"MOE \"&AV127","v":"MOE ROHUInc100to150K"},"ROHUInc>150K",{"$f":"\"MOE \"&AX127","v":"MOE ROHUInc>150K"},"Total OCC HUInc<5K",{"$f":"\"MOE \"&AZ127","v":"MOE Total OCC HUInc<5K"},"Total OCC HUInc5to10K",{"$f":"\"MOE \"&BB127","v":"MOE Total OCC HUInc5to10K"},"Total OCC HUInc10to15K",{"$f":"\"MOE \"&BD127","v":"MOE Total OCC HUInc10to15K"},"Total OCC HUInc15to20K",{"$f":"\"MOE \"&BF127","v":"MOE Total OCC HUInc15to20K"},"Total OCC HUInc20to25K",{"$f":"\"MOE \"&BH127","v":"MOE Total OCC HUInc20to25K"},"Total OCC HUInc25to35K",{"$f":"\"MOE \"&BJ127","v":"MOE Total OCC HUInc25to35K"},"Total OCC HUInc35to50K",{"$f":"\"MOE \"&BL127","v":"MOE Total OCC HUInc35to50K"},"Total OCC HUInc50to75K",{"$f":"\"MOE \"&BN127","v":"MOE Total OCC HUInc50to75K"},"Total OCC HUInc75to100K",{"$f":"\"MOE \"&BP127","v":"MOE Total OCC HUInc75to100K"},"Total OCC HUInc100to150K",{"$f":"\"MOE \"&BR127","v":"MOE Total OCC HUInc100to150K"},"Total OCC HUInc>150K",{"$f":"\"MOE \"&BT127","v":"MOE Total OCC HUInc>150K"},"MedHHInc",{"$f":"\"MOE \"&BV127","v":"MOE MedHHInc"},"MedOwnOccHHInc",{"$f":"\"MOE \"&BX127","v":"MOE MedOwnOccHHInc"},"MedRentOccHHInc",{"$f":"\"MOE \"&BZ127","v":"MOE MedRentOccHHInc"}]
[{"$f":"VLOOKUP(DropDownList!$B$47,CntyQryCensus!$A$530:$AY$544,A$1)","v":"Acworth"},347,44,274,40,2,3,9,11,12,8,17,16,13,14,34,20,42,18,63,23,42,19,19,9,21,12,73,32,2,3,3,4,0,11,0,11,7,11,8,8,9,11,11,12,22,14,11,17,0,11,4,4.2426406871192848,12,11.704699910719626,12,13.601470508735444,17,19.416487838947599,20,17.804493814764857,42,21.540659228538015,51,21.095023109728988,74,25.942243542145693,64,23.600847442411894,30,19.235384061671343,21,16.278820596099706,52589,5357,52679,6944,52344,45538]
[]
["Population Data"]
["NAME","Total Population","MOE Total Population","Under 15 Years","MOE Under 15 yrs.","15 to 24 yrs.","MOE 15 to 24 yrs.","25 to 34 yrs.","MOE 25 to 34 yrs.","35 to 44 yrs.","MOE 35 to 44 yrs.","45 to 54 yrs.","MOE 45 to 54 yrs.","55 to 64 yrs.","MOE 55 to 64 yrs.","65 to 74 yrs.","MOE 65 to 74 yrs.","Over 74 yrs. ","MOE Over 74 yrs. ","TotalHH","MOE TotalHH","FamilyHH","MOE FamilyHH","MarriedFamilyHH","MOE MarriedFamilyHH","SingleFamilyHH","MOE SingleFamilyHH","Sfamily-MaleHH","MOE Sfamily-MaleHH","Sfamily-FemaleHH","MOE Sfamily-FemaleHH","NonFamilyHH","MOE NonFamilyHH","NonFamilyHH-LivingAlone","MOE NonFamilyHH-LivingAlone","NonFamilyHH-NotLivingAlone","MOE NonFamilyHH-NotLivingAlone","PopRaceWhite","MOE PopRaceWhite","PopRaceBlack","MOE PopRaceBlack","PopRaceAmerican Indian","MOE PopRaceAmerican Indian","PopRaceAsian &Pacific Is.","MOE PopRaceAsian &Pacific Is.","PopRaceOther*","MOE PopRaceOther*","PopRaceHispanic or Latino:","MOE PopRaceHispanic or Latino:","MedianAgeTotalPop","MOE MedianAgeTotalPop","MedianAgeMale","MOE MedianAgeMale","MedianAgeFemale","MOE MedianAgeFemale","AvgHHSizeTotal","MOE AvgHHSizeTotal","AvgHHSizeFamilyHH","MOE AvgHHSizeFamilyHH","AvgHHSizeNonFamilyHH","MOE AvgHHSizeNonFamilyHH"]
[{"$f":"VLOOKUP(DropDownList!$B$47,CntyQryCensus!$A$530:$AY$544,A$1)","v":"Acworth"},923,163,170,56.488936969994398,107,38.118237105091836,114,40.914545090957567,99,30.951575081084322,139,36.304269721342692,142,34.727510708370673,105,33.361654635224554,47,19.949937343260004,347,44,254,44,197,37,57,25,26,20,31,15,93,35,83,32,10,8,897,166,0,11,0,11,16,21.95449840010015,10,14.212670403551895,0,11,42.9,9.3000000000000007,40.200000000000003,13.2,44.3,5.7,null,null,2.6599423631123917,0.34,3.2244094488188977,0.87477122368577853,null,null,null,null,null,null,null,null,null,null,null,null,null,null,null,null,null,null,null,33,160,112,164,81,200,109,64,70,127,82,116,79,190,121,116,81,181,91,117,75,55,49,139,96,91,59,73,63,84,72,null,null,null,null,null,null,null,null,null,null,null,null,null,null,null,null,null,null,null,null,null,null,null,null,null,null,null,null,null,null,null,null,null,null,"Charlestown",null,"Estimate","Margin Of Error",5019,17,1004,224.53062151964929,304,132.66876045248935,631,193.38303958723992,568,187.2378166931029,540,178.95809565370325,974,226.13933757752099,547,174.43623476789449,451,158.43295111813072]
[]
["Nativity and Prior Place of Residence"]
["NAME","TotalPop",{"$f":"\"MOE \"&B135","v":"MOE TotalPop"},"Native:",{"$f":"\"MOE \"&D135","v":"MOE Native:"},"NatBornInStateOfResidence",{"$f":"\"MOE \"&F135","v":"MOE NatBornInStateOfResidence"},"Born in other state in the United States:",{"$f":"\"MOE \"&H135","v":"MOE Born in other state in the United States:"},"Northeast",{"$f":"\"MOE \"&J135","v":"MOE Northeast"},"Midwest",{"$f":"\"MOE \"&L135","v":"MOE Midwest"},"South",{"$f":"\"MOE \"&N135","v":"MOE South"},"West",{"$f":"\"MOE \"&P135","v":"MOE West"},"Born outside the United States:",{"$f":"\"MOE \"&R135","v":"MOE Born outside the United States:"},"Puerto Rico",{"$f":"\"MOE \"&T135","v":"MOE Puerto Rico"},"U.S. Island Areas",{"$f":"\"MOE \"&V135","v":"MOE U.S. Island Areas"},"Born abroad of American parent(s)",{"$f":"\"MOE \"&X135","v":"MOE Born abroad of American parent(s)"},"Foreign born:",{"$f":"\"MOE \"&Z135","v":"MOE Foreign born:"},"Naturalized U.S. citizen",{"$f":"\"MOE \"&AB135","v":"MOE Naturalized U.S. citizen"},"Not a U.S. citizen",{"$f":"\"MOE \"&AD135","v":"MOE Not a U.S. citizen"},"CurrentResidenceTotal:",{"$f":"\"MOE \"&AF135","v":"MOE CurrentResidenceTotal:"},"SameHouse:",{"$f":"\"MOE \"&AH135","v":"MOE SameHouse:"},"DifferentHouse:",{"$f":"\"MOE \"&AJ135","v":"MOE DifferentHouse:"},"DiffHouseInNH",{"$f":"\"MOE \"&AL135","v":"MOE DiffHouseInNH"},"DiffHouseInNHSameCnty",{"$f":"\"MOE \"&AN135","v":"MOE DiffHouseInNHSameCnty"},"DiffHouseInNHDiffCnty",{"$f":"\"MOE \"&AP135","v":"MOE DiffHouseInNHDiffCnty"},"DiffHouseInDiffState",{"$f":"\"MOE \"&AR135","v":"MOE DiffHouseInDiffState"},"DiffHouseInElsewhere",{"$f":"\"MOE \"&AT135","v":"MOE DiffHouseInElsewhere"}]
[{"$f":"VLOOKUP(DropDownList!$B$47,CntyQryCensus!$A$530:$AY$544,A$1)","v":"Acworth"},13169,21,12943,109,7788,400,5117,404,3996,370,363,157,457,150,301,119,38,37,0,17,0,17,38,37,226,104,161,97,65,45,10761,519,2354,530.62792990946116,2177,522.7245928785062,1373,360,804,379,164,90,13,15]
[]
["School Enrollment - Education"]
["NAME","Total Pop 3 Years and Older","MOE Total Pop 3 Years and Older","SchEnrlPop3yrOver",{"$f":"\"MOE \"&D139","v":"MOE SchEnrlPop3yrOver"},"TotalEnrollNursy&Kinder",{"$f":"\"MOE \"&F139","v":"MOE TotalEnrollNursy&Kinder"},"NurserSchEnrl",{"$f":"\"MOE \"&H139","v":"MOE NurserSchEnrl"},"KinderSchEnrl",{"$f":"\"MOE \"&J139","v":"MOE KinderSchEnrl"},"ElemSchEnrl (1-8)",{"$f":"\"MOE \"&L139","v":"MOE ElemSchEnrl (1-8)"},"HighSchEnrl(9-12)",{"$f":"\"MOE \"&N139","v":"MOE HighSchEnrl(9-12)"},"TotalElementry&HSEnroll",{"$f":"\"MOE \"&P139","v":"MOE TotalElementry&HSEnroll"},"CollGradSchEnrl",{"$f":"\"MOE \"&R139","v":"MOE CollGradSchEnrl"},"PopNotEnrolled","MOE PopNotEnrolled","Pop25yrsOver",{"$f":"\"MOE \"&V139","v":"MOE Pop25yrsOver"},"EduAtain<9grd",{"$f":"\"MOE \"&X139","v":"MOE EduAtain<9grd"},"EduAtainHSnoDip",{"$f":"\"MOE \"&Z139","v":"MOE EduAtainHSnoDip"},"EduAtainHSgrad",{"$f":"\"MOE \"&AB139","v":"MOE EduAtainHSgrad"},"EduAtainCollNoDeg",{"$f":"\"MOE \"&AD139","v":"MOE EduAtainCollNoDeg"},"EduAtainAssocDeg",{"$f":"\"MOE \"&AF139","v":"MOE EduAtainAssocDeg"},"EduAtainBachDeg",{"$f":"\"MOE \"&AH139","v":"MOE EduAtainBachDeg"},"EduAtainGradProfDeg",{"$f":"\"MOE \"&AJ139","v":"MOE EduAtainGradProfDeg"}]
[{"$f":"VLOOKUP(DropDownList!$B$47,CntyQryCensus!$A$530:$AY$544,A$1)","v":"Acworth"},12660,130,2620,267,325,119.47384651043926,141,75,184,93,1191,246.78938388836744,736,186,1927,309.03236076501764,368,132.43866504914644,10040,241,9019,251,259,88.447724673956429,860,182.57053431482311,3960,336.63036107873575,1675,248.51156914719283,550,157.20050890502867,1293,234.08759044426085,387,112.31651704001509]
[]
["Occupied Owner Housing Value"]
["NAME","OwnerOccHU","MOE OwnerOccHU","AllOOHU<10k","MOE AllOOHU<10k","AllOOHU10to15k","MOE AllOOHU10to15k","AllOOHU15to20k","MOE AllOOHU15to20k","AllOOHU20to25k","MOE AllOOHU20to25k","AllOOHU25to30k","MOE AllOOHU25to30k","AllOOHU30to35k","MOE AllOOHU30to35k","AllOOHU35to40k","MOE AllOOHU35to40k","AllOOHU40to50k","MOE AllOOHU40to50k","AllOOHU50to60k","MOE AllOOHU50to60k","AllOOHU60to70k","MOE AllOOHU60to70k","AllOOHU70to80k","MOE AllOOHU70to80k","AllOOHU80to90k","MOE AllOOHU80to90k","AllOOHU90to100k","MOE AllOOHU90to100k","AllOOHU100to125k","MOE AllOOHU100to125k","AllOOHU125to150k","MOE AllOOHU125to150k","AllOOHU150to175k","MOE AllOOHU150to175k","AllOOHU175to200k","MOE AllOOHU175to200k","AllOOHU200to250k","MOE AllOOHU200to250k","AllOOHU250to300k","MOE AllOOHU250to300k","AllOOHU300to400k","MOE AllOOHU300to400k","AllOOHU400to500k","MOE AllOOHU400to500k","AllOOHU500to750k","MOE AllOOHU500to750k","AllOOHU750to1000k","MOE AllOOHU750to1000k","AllOOHU1000kmore","MOE AllOOHU1000kmore","MedianOwnOCCHomeValue","MOE MedianOwnOCCHomeValue","OnwerOccHsU","MOE OnwerOccHsU","OwnerCosts>20PctHHInc","MOE OwnerCosts>20PctHHInc","OwnerCosts20to29.9PctHHInc","MOE OwnerCosts20to29.9PctHHInc","OwnerCosts<30PctHHInc","MOE OwnerCosts<30PctHHInc","OwnerCosts>30PctHHInc","MOE OwnerCosts>30PctHHInc","OwnerCosts30to34.9PctHHInc","MOE OwnerCosts30to34.9PctHHInc","OwnerCosts<35PctHHInc","MOE OwnerCosts<35PctHHInc","OwnerCosts>35PctHHInc","MOE OwnerCosts>35PctHHInc","OwnerCosts>50PctHHInc","MOE OwnerCosts>50PctHHInc","OwnerCostsPctNotcomputed","MOE OwnerCostsPctNotcomputed","OwnerOHUHhInc<20k","MOE OwnerOHUHhInc<20k","OwnerOHUHhInc<20kHCosts<20pct","MOE OwnerOHUHhInc<20kHCosts<20pct","OwnerOHUHhInc<20kHCosts20to29pct","MOE OwnerOHUHhInc<20kHCosts20to29pct","OwnerOHUHhInc>20kHCosts30pct","MOE OwnerOHUHhInc>20kHCosts30pct","OwnerOHUHhInc20kTo34999","MOE OwnerOHUHhInc20kTo34999","OwnerOHUHhInc20kTo34999HCosts<20pct","MOE OwnerOHUHhInc20kTo34999HCosts<20pct","OwnerOHUHhInc20kTo34999HCosts20to29pct","MOE OwnerOHUHhInc20kTo34999HCosts20to29pct","OwnerOHUHhInc20kTo34999HCosts30pct","MOE OwnerOHUHhInc20kTo34999HCosts30pct","OwnerOHUHhInc35kTo49999","MOE OwnerOHUHhInc35kTo49999","OwnerOHUHhInc35kTo49999HCosts<20pct","MOE OwnerOHUHhInc35kTo49999HCosts<20pct","OwnerOHUHhInc35kTo49999HCosts20to29pct","MOE OwnerOHUHhInc35kTo49999HCosts20to29pct","OwnerOHUHhInc35kTo49999HCosts30pct","MOE OwnerOHUHhInc35kTo49999HCosts30pct","OwnerOHUHhInc50kTo74999","MOE OwnerOHUHhInc50kTo74999","OwnerOHUHhInc50kTo74999HCosts<20pct","MOE OwnerOHUHhInc50kTo74999HCosts<20pct","OwnerOHUHhInc50kTo74999HCosts20to29pct","MOE OwnerOHUHhInc50kTo74999HCosts20to29pct","OwnerOHUHhInc50kTo74999HCosts30pct","MOE OwnerOHUHhInc50kTo74999HCosts30pct","OwnerOHUHhInc>75000","MOE OwnerOHUHhInc>75000","OwnerOHUHhInc>75000HCosts<20pct","MOE OwnerOHUHhInc>75000HCosts<20pct","OwnerOHUHhInc>75000HCosts20to29pct","MOE OwnerOHUHhInc>75000HCosts20to29pct","OwnerOHUHhInc>75000HCosts30pct","MOE OwnerOHUHhInc>75000HCosts30pct","ZeroOrNegativeIncome","MOE ZeroOrNegativeIncome"]
[{"$f":"VLOOKUP(DropDownList!$B$47,CntyQryCensus!$A$530:$AY$544,A$1)","v":"Acworth"},274,40,0,11,4,6,0,11,0,11,0,11,0,11,0,11,0,11,3,4,0,11,4,4,6,6,14,12,31,19,27,19,56,20,28,13,26,19,36,22,24,12,2,4,2,3,9,8,2,3,null,null,null,null,171400,14295,274,40,128,34.741905532080416,55,22.045407685048605,183,41.146081222881968,91,30.133038346638727,22,13.892443989449804,205,43.428101501216929,69,26.739483914241873,29,15.556349186104045,0,15.556349186104045,40,22,0,11,0,11,40,22,47,24,12,13,17,16,18,13,42,18,26,14,4,5,12,10,63,23,37,19,16,10,10,8,82,23,53,20,18,9,11,10,0,11]
[]
["Occupied Rental Housing Value"]
["NAME","Estimate; Total:","Margin of Error; Total:","Estimate; Total: - Less than $10,000","Margin of Error; Total: - Less than $10,000","Estimate; Total: - $10,000 to $14,999","Margin of Error; Total: - $10,000 to $14,999","Estimate; Total: - $15,000 to $19,999","Margin of Error; Total: - $15,000 to $19,999","Estimate; Total: - $20,000 to $24,999","Margin of Error; Total: - $20,000 to $24,999","Estimate; Total: - $25,000 to $29,999","Margin of Error; Total: - $25,000 to $29,999","Estimate; Total: - $30,000 to $34,999","Margin of Error; Total: - $30,000 to $34,999","Estimate; Total: - $35,000 to $39,999","Margin of Error; Total: - $35,000 to $39,999","Estimate; Total: - $40,000 to $49,999","Margin of Error; Total: - $40,000 to $49,999","Estimate; Total: - $50,000 to $59,999","Margin of Error; Total: - $50,000 to $59,999","Estimate; Total: - $60,000 to $69,999","Margin of Error; Total: - $60,000 to $69,999","Estimate; Total: - $70,000 to $79,999","Margin of Error; Total: - $70,000 to $79,999","Estimate; Total: - $80,000 to $89,999","Margin of Error; Total: - $80,000 to $89,999","Estimate; Total: - $90,000 to $99,999","Margin of Error; Total: - $90,000 to $99,999","Estimate; Total: - $100,000 to $124,999","Margin of Error; Total: - $100,000 to $124,999","Estimate; Total: - $125,000 to $149,999","Margin of Error; Total: - $125,000 to $149,999","Estimate; Total: - $150,000 to $174,999","Margin of Error; Total: - $150,000 to $174,999","Estimate; Total: - $175,000 to $199,999","Margin of Error; Total: - $175,000 to $199,999","Estimate; Total: - $200,000 to $249,999","Margin of Error; Total: - $200,000 to $249,999","Estimate; Total: - $250,000 to $299,999","Margin of Error; Total: - $250,000 to $299,999","Estimate; Total: - $300,000 to $399,999","Margin of Error; Total: - $300,000 to $399,999","Estimate; Total: - $400,000 to $499,999","Margin of Error; Total: - $400,000 to $499,999","Estimate; Total: - $500,000 to $749,999","Margin of Error; Total: - $500,000 to $749,999","Estimate; Total: - $750,000 to $999,999","Margin of Error; Total: - $750,000 to $999,999","Estimate; Total: - $1,000,000 to $1,499,999","Margin of Error; Total: - $1,000,000 to $1,499,999","Estimate; Total: - $1,500,000 to $1,999,999","Margin of Error; Total: - $1,500,000 to $1,999,999","Estimate; Total: - $2,000,000 or more","Margin of Error; Total: - $2,000,000 or more","MedianOwnOCCHomeValue","MOE MedianOwnOCCHomeValue","OnwerOccHsU","MOE OnwerOccHsU","OwnerCosts>20PctHHInc","MOE OwnerCosts>20PctHHInc","OwnerCosts20to29.9PctHHInc","MOE OwnerCosts20to29.9PctHHInc","OwnerCosts<30PctHHInc","MOE OwnerCosts<30PctHHInc","OwnerCosts>30PctHHInc","MOE OwnerCosts>30PctHHInc","OwnerCosts30to34.9PctHHInc","MOE OwnerCosts30to34.9PctHHInc","OwnerCosts<35PctHHInc","MOE OwnerCosts<35PctHHInc","OwnerCosts>35PctHHInc","MOE OwnerCosts>35PctHHInc","OwnerCosts>50PctHHInc","MOE OwnerCosts>50PctHHInc","OwnerCostsPctNotcomputed","MOE OwnerCostsPctNotcomputed","OwnerOHUHhInc<20k","MOE OwnerOHUHhInc<20k","OwnerOHUHhInc<20kHCosts<20pct","MOE OwnerOHUHhInc<20kHCosts<20pct","OwnerOHUHhInc<20kHCosts20to29pct","MOE OwnerOHUHhInc<20kHCosts20to29pct","OwnerOHUHhInc>20kHCosts30pct","MOE OwnerOHUHhInc>20kHCosts30pct","OwnerOHUHhInc20kTo34999","MOE OwnerOHUHhInc20kTo34999","OwnerOHUHhInc20kTo34999HCosts<20pct","MOE OwnerOHUHhInc20kTo34999HCosts<20pct","OwnerOHUHhInc20kTo34999HCosts20to29pct","MOE OwnerOHUHhInc20kTo34999HCosts20to29pct","OwnerOHUHhInc20kTo34999HCosts30pct","MOE OwnerOHUHhInc20kTo34999HCosts30pct","OwnerOHUHhInc35kTo49999","MOE OwnerOHUHhInc35kTo49999","OwnerOHUHhInc35kTo49999HCosts<20pct","MOE OwnerOHUHhInc35kTo49999HCosts<20pct","OwnerOHUHhInc35kTo49999HCosts20to29pct","MOE OwnerOHUHhInc35kTo49999HCosts20to29pct","OwnerOHUHhInc35kTo49999HCosts30pct","MOE OwnerOHUHhInc35kTo49999HCosts30pct","OwnerOHUHhInc50kTo74999","MOE OwnerOHUHhInc50kTo74999","OwnerOHUHhInc50kTo74999HCosts<20pct","MOE OwnerOHUHhInc50kTo74999HCosts<20pct","OwnerOHUHhInc50kTo74999HCosts20to29pct","MOE OwnerOHUHhInc50kTo74999HCosts20to29pct","OwnerOHUHhInc50kTo74999HCosts30pct","MOE OwnerOHUHhInc50kTo74999HCosts30pct","OwnerOHUHhInc>75000","MOE OwnerOHUHhInc>75000","OwnerOHUHhInc>75000HCosts<20pct","MOE OwnerOHUHhInc>75000HCosts<20pct","OwnerOHUHhInc>75000HCosts20to29pct","MOE OwnerOHUHhInc>75000HCosts20to29pct","OwnerOHUHhInc>75000HCosts30pct","MOE OwnerOHUHhInc>75000HCosts30pct","ZeroOrNegativeIncome","MOE ZeroOrNegativeIncome"]
[null,null,null,null,null,null,null,null,null,null,null,null,null,null,null,null,null,null,null,null,null,null,null,null,null,null,null,null,null,null,null,null,null,null,null,null,null,null,null,null,null,null,null,null,null,null,null,null,null,781,76,1932,223,314,113,8,15,0,17,0,17,81,66,11,19,45,49,112,66,57,56,401,111,7,12,23,25,100,66,18,21,31,37,18,20,197,81,7,12,580,153,0,17,43,37,109,87,102,60,43,33,132,82,108,90,43,29,270,89,69,49,32,32,84,58,52,45,23,28,0,17,0,17,10,15,262,124,175,116,87,61,0,17,0,17,0,17,0,17,0,17,0,17,60,55,37,41,13,21,0,17,0,17,0,17,0,17,0,17,10,16,45,42,45,42,0,17,0,17,0,17,0,17,0,17,0,17,0,17,0,0,0,0,0,0]
[]
[]
[]
[]
[]
["Occupied Rental Housing Cost Burdern All Incomes"]
["NAME","RntrOccHU","MOE RntrOccHU","RntrOccHUwRent","MOE RntrOccHUwRent","ROHUGRent<100","MOE ROHUGRent<100","ROHUGRent100to149","MOE ROHUGRent100to149","ROHUGRent150to199","MOE ROHUGRent150to199","ROHUGRent200to249","MOE ROHUGRent200to249","ROHUGRent250to299","MOE ROHUGRent250to299","ROHUGRent300to349","MOE ROHUGRent300to349","ROHUGRent350to399","MOE ROHUGRent350to399","ROHUGRent400to449","MOE ROHUGRent400to449","ROHUGRent450to499","MOE ROHUGRent450to499","ROHUGRent500to549","MOE ROHUGRent500to549","ROHUGRent550to599","MOE ROHUGRent550to599","ROHUGRent600to649","MOE ROHUGRent600to649","ROHUGRent650to699","MOE ROHUGRent650to699","ROHUGRent700to749","MOE ROHUGRent700to749","ROHUGRent750to799","MOE ROHUGRent750to799","ROHUGRent800to899","MOE ROHUGRent800to899","ROHUGRent900to999","MOE ROHUGRent900to999","ROHUGRent1000to1249","MOE ROHUGRent1000to1249","ROHUGRent1250to1499","MOE ROHUGRent1250to1499","ROHUGRent1500to1999","MOE ROHUGRent1500to1999","ROHUGRent2000-2499","MOE ROHUGRent2000-2499","ROHUGRent2500-2999","MOE ROHUGRent2500-2999","ROHUGRent3000-3499","MOE ROHUGRent3000-3499","ROHUGRent3500<","MOE ROHUGRent3500<","ROHUNoGRent","MOE ROHUNoGRent","MedianGrossRnt","MOE MedianGrossRnt","H73RenterOccHU","MOE H73RenterOccHU","H73ROHUHhInc<10k","MOE H73ROHUHhInc<10k","H73ROHUHhInc<10kRnt<20pct","MOE H73ROHUHhInc<10kRnt<20pct","H73ROHUHhInc<10kRnt20to25pct","MOE H73ROHUHhInc<10kRnt20to25pct","H73ROHUHhInc<10kRnt25to30pct","MOE H73ROHUHhInc<10kRnt25to30pct","H73ROHUHhInc<10kRnt30to35pct","MOE H73ROHUHhInc<10kRnt30to35pct","H73ROHUHhInc<10kRnt35to39.9","MOE H73ROHUHhInc<10kRnt35to39.9","H73ROHUHhInc<10kRnt40to49.9","MOE H73ROHUHhInc<10kRnt40to49.9","H73ROHUHhInc<10kRnt>50pct","MOE H73ROHUHhInc<10kRnt>50pct","H73ROHUHhInc<10kPctNotComput","MOE H73ROHUHhInc<10kPctNotComput","H73ROHUHhInc10to20k","MOE H73ROHUHhInc10to20k","H73ROHUHhInc10to20kRnt<20pct","MOE H73ROHUHhInc10to20kRnt<20pct","H73ROHUHhInc10to20kRnt20to25pct","MOE H73ROHUHhInc10to20kRnt20to25pct","H73ROHUHhInc10to20kRnt25to30pct","MOE H73ROHUHhInc10to20kRnt25to30pct","H73ROHUHhInc10to20kRnt30to35pct","MOE H73ROHUHhInc10to20kRnt30to35pct","H73ROHUHhInc10to20kRnt35to39.9","MOE H73ROHUHhInc10to20kRnt35to39.9","H73ROHUHhInc10to20kRnt40to49.9","MOE H73ROHUHhInc10to20kRnt40to49.9","H73ROHUHhInc10to20kRnt>50pct","MOE H73ROHUHhInc10to20kRnt>50pct","H73ROHUHhInc10to20kRntPctNC","MOE H73ROHUHhInc10to20kRntPctNC","H73ROHUHhInc20to34.9k","MOE H73ROHUHhInc20to34.9k","H73ROHUHhInc20to34.9kRnt<20pct","MOE H73ROHUHhInc20to34.9kRnt<20pct","H73ROHUHhInc20to34.9kRnt20to25pct","MOE H73ROHUHhInc20to34.9kRnt20to25pct","H73ROHUHhInc20to34.9kRnt25to30pct","MOE H73ROHUHhInc20to34.9kRnt25to30pct","H73ROHUHhInc20to34.9kRnt30to35pct","MOE H73ROHUHhInc20to34.9kRnt30to35pct","H73ROHUHhInc20to34.9kRnt35to39.9","MOE H73ROHUHhInc20to34.9kRnt35to39.9","H73ROHUHhInc20to34.9kRnt40to49.9","MOE H73ROHUHhInc20to34.9kRnt40to49.9","H73ROHUHhInc20to34.9kRnt>50pct","MOE H73ROHUHhInc20to34.9kRnt>50pct","H73ROHUHhInc20to34.9kRntPctNC","MOE H73ROHUHhInc20to34.9kRntPctNC","H73ROHUHhInc35to49.9k","MOE H73ROHUHhInc35to49.9k","H73ROHUHhInc35to49.9kRnt<20pct","MOE H73ROHUHhInc35to49.9kRnt<20pct","H73ROHUHhInc35to49.9kRnt20to25pct","MOE H73ROHUHhInc35to49.9kRnt20to25pct","H73ROHUHhInc35to49.9kRnt25to30pct","MOE H73ROHUHhInc35to49.9kRnt25to30pct","H73ROHUHhInc35to49.9kRnt30to35pct","MOE H73ROHUHhInc35to49.9kRnt30to35pct","H73ROHUHhInc35to49.9kRnt35to39.9","MOE H73ROHUHhInc35to49.9kRnt35to39.9","H73ROHUHhInc35to49.9kRnt40to49.9","MOE H73ROHUHhInc35to49.9kRnt40to49.9","H73ROHUHhInc35to49.9kRnt>50pct","MOE H73ROHUHhInc35to49.9kRnt>50pct","H73ROHUHhInc35to49.9kRntPctNC","MOE H73ROHUHhInc35to49.9kRntPctNC","H73ROHUHhInc50to74.9k","MOE H73ROHUHhInc50to74.9k","H73ROHUHhInc50to74.9kRnt<20pct","MOE H73ROHUHhInc50to74.9kRnt<20pct","H73ROHUHhInc50to74.9kRnt20to25pct","MOE H73ROHUHhInc50to74.9kRnt20to25pct","H73ROHUHhInc50to74.9kRnt25to30pct","MOE H73ROHUHhInc50to74.9kRnt25to30pct","H73ROHUHhInc50to74.9kRnt30to35pct","MOE H73ROHUHhInc50to74.9kRnt30to35pct","H73ROHUHhInc50to74.9kRnt35to39.9","MOE H73ROHUHhInc50to74.9kRnt35to39.9","H73ROHUHhInc50to74.9kRnt40to49.9","MOE H73ROHUHhInc50to74.9kRnt40to49.9","H73ROHUHhInc50to74.9kRnt>50pct","MOE H73ROHUHhInc50to74.9kRnt>50pct","H73ROHUHhInc50to74.9kRntPctNC","MOE H73ROHUHhInc50to74.9kRntPctNC","H73ROHUHhInc75to99.9k","MOE H73ROHUHhInc75to99.9k","H73ROHUHhInc75to99.9kRnt<20pct","MOE H73ROHUHhInc75to99.9kRnt<20pct","H73ROHUHhInc75to99.9kRnt20to25pct","MOE H73ROHUHhInc75to99.9kRnt20to25pct","H73ROHUHhInc75to99.9kRnt25to30pct","MOE H73ROHUHhInc75to99.9kRnt25to30pct","H73ROHUHhInc75to99.9kRnt30to35pct","MOE H73ROHUHhInc75to99.9kRnt30to35pct","H73ROHUHhInc75to99.9kRnt35to39.9","MOE H73ROHUHhInc75to99.9kRnt35to39.9","H73ROHUHhInc75to99.9kRnt40to49.9","MOE H73ROHUHhInc75to99.9kRnt40to49.9","H73ROHUHhInc75to99.9kRnt>50pct","MOE H73ROHUHhInc75to99.9kRnt>50pct","H73ROHUHhInc75to99.9kRntPctNC","MOE H73ROHUHhInc75to99.9kRntPctNC","H73ROHUHhInc>100k","MOE H73ROHUHhInc>100k","H73ROHUHhInc>100kRnt<20pct","MOE H73ROHUHhInc>100kRnt<20pct","H73ROHUHhInc>100kRnt20to25pct","MOE H73ROHUHhInc>100kRnt20to25pct","H73ROHUHhInc>100kRnt25to30pct","MOE H73ROHUHhInc>100kRnt25to30pct","H73ROHUHhInc>100kRnt30to35pct","MOE H73ROHUHhInc>100kRnt30to35pct","H73ROHUHhInc>100kRnt35to39.9","MOE H73ROHUHhInc>100kRnt35to39.9","H73ROHUHhInc>100kRnt40to49.9","MOE H73ROHUHhInc>100kRnt40to49.9","H73ROHUHhInc>100kRnt>50pct","MOE H73ROHUHhInc>100kRnt>50pct","H73ROHUHhInc>100kRntPctNC","MOE H73ROHUHhInc>100kRntPctNC"]
[{"$f":"VLOOKUP(DropDownList!$B$47,CntyQryCensus!$A$530:$AY$544,A$1)","v":"Acworth"},1932,223,341,143.62799170078233,198,84,293,122,832,206.32256299299891,973,198.06564568344507,253,109,1085,233.34523779156069,720,165.37533068750005,417,122,127,69]
[]
["Income By Household Type and Tenure"]
["NAME","TotalFamilyHouseholds",{"$f":"\"MOE \"&B159","v":"MOE TotalFamilyHouseholds"},"FamInc<10K",{"$f":"\"MOE \"&D159","v":"MOE FamInc<10K"},"FamInc10to15K",{"$f":"\"MOE \"&F159","v":"MOE FamInc10to15K"},"FamInc15to20K",{"$f":"\"MOE \"&H159","v":"MOE FamInc15to20K"},"FamInc20to25K",{"$f":"\"MOE \"&J159","v":"MOE FamInc20to25K"},"FamInc25to30K",{"$f":"\"MOE \"&L159","v":"MOE FamInc25to30K"},"FamInc30to35K",{"$f":"\"MOE \"&N159","v":"MOE FamInc30to35K"},"FamInc35to40K",{"$f":"\"MOE \"&P159","v":"MOE FamInc35to40K"},"FamInc40to45K",{"$f":"\"MOE \"&R159","v":"MOE FamInc40to45K"},"FamInc45to50K",{"$f":"\"MOE \"&T159","v":"MOE FamInc45to50K"},"FamInc50to60K",{"$f":"\"MOE \"&V159","v":"MOE FamInc50to60K"},"FamInc60to75K",{"$f":"\"MOE \"&X159","v":"MOE FamInc60to75K"},"FamInc75to100K",{"$f":"\"MOE \"&Z159","v":"MOE FamInc75to100K"},"FamInc100to125K",{"$f":"\"MOE \"&AB159","v":"MOE FamInc100to125K"},"FamInc125to150K",{"$f":"\"MOE \"&AD159","v":"MOE FamInc125to150K"},"FamInc150to200K",{"$f":"\"MOE \"&AF159","v":"MOE FamInc150to200K"},"FamInc>200K",{"$f":"\"MOE \"&AH159","v":"MOE FamInc>200K"},"MedFamInc",{"$f":"\"MOE \"&AJ159","v":"MOE MedFamInc"},"TotalNonNonFamilyHouseholds",{"$f":"\"MOE \"&AL159","v":"MOE TotalNonNonFamilyHouseholds"},"NonFamInc<10K",{"$f":"\"MOE \"&AN159","v":"MOE NonFamInc<10K"},"NonFamInc10to15K",{"$f":"\"MOE \"&AP159","v":"MOE NonFamInc10to15K"},"NonFamInc15to20K",{"$f":"\"MOE \"&AR159","v":"MOE NonFamInc15to20K"},"NonFamInc20to25K",{"$f":"\"MOE \"&AT159","v":"MOE NonFamInc20to25K"},"NonFamInc25to30K",{"$f":"\"MOE \"&AV159","v":"MOE NonFamInc25to30K"},"NonFamInc30to35K",{"$f":"\"MOE \"&AX159","v":"MOE NonFamInc30to35K"},"NonFamInc35to40K",{"$f":"\"MOE \"&AZ159","v":"MOE NonFamInc35to40K"},"NonFamInc40to45K",{"$f":"\"MOE \"&BB159","v":"MOE NonFamInc40to45K"},"NonFamInc45to50K",{"$f":"\"MOE \"&BD159","v":"MOE NonFamInc45to50K"},"NonFamInc50to60K",{"$f":"\"MOE \"&BF159","v":"MOE NonFamInc50to60K"},"NonFamInc60to75K",{"$f":"\"MOE \"&BH159","v":"MOE NonFamInc60to75K"},"NonFamInc75to100K",{"$f":"\"MOE \"&BJ159","v":"MOE NonFamInc75to100K"},"NonFamInc100to125K",{"$f":"\"MOE \"&BL159","v":"MOE NonFamInc100to125K"},"NonFamInc125to150K",{"$f":"\"MOE \"&BN159","v":"MOE NonFamInc125to150K"},"NonFamInc150to200K",{"$f":"\"MOE \"&BP159","v":"MOE NonFamInc150to200K"},"NonFamInc>200K",{"$f":"\"MOE \"&BR159","v":"MOE NonFamInc>200K"},"MedNonFamInc",{"$f":"\"MOE \"&BT159","v":"MOE MedNonFamInc"},"PerCapitaIncome","MOE PerCapitaIncome"]
[{"$f":"VLOOKUP(DropDownList!$B$47,CntyQryCensus!$A$530:$AY$544,A$1)","v":"Acworth"},254,44,14,12,4,6,3,4,10,12,8,10,19,17,18,15,10,8,6,8,39,21,32,19,54,22,14,9,2,4,8,11,13,8,58889,10777,93,35,8,8,5,5,14,16,10,13,12,10,9,7,9,8,0,11,2,3,11,12,2,3,8,7,3,4,0,11,0,11,0,11,null,null,28958,5459]

{"sheet":"CntyDataLinkPrior10YearEstimate","index":16,"n_rows":160,"n_cols":255,"rows_kept":160,"cut":false,"hidden":true,"merged":[]}
[1,{"$f":"A1+1","v":2},{"$f":"B1+1","v":3},4,5,6,7,8,9,10,11,12,13,14,15,{"$f":"O1+1","v":16},17,18,19,20,21,22,23,24,25,26,27,28,29,30,31,32,33,34,35,36,37,38,39,40,41,42,43,44,45,46,47,48,49,50,51,52,53,54,55,56,57,58,59,60,61,62,63,64,65,66,{"$f":"BN1+1","v":67},68,69,70,71,72,73,74,75,76,77,78,79,80,81,82,83,84,85,86,87,88,89,90,91,92,93,94,95,96,97,98,99,100,101,102,103,104,105,106,107,108,109,110,111,112,113,114,115,116,117,118,119,120,121,122,123,124,125,126,127,128,129,130,{"$f":"DZ1+1","v":131},132,133,134,135,136,137,138,139,140,141,142,143,144,145,146,147,148,149,150,151,152,153,154,155,156,157,158,159,160,161,162,163,164,165,166,167,168,169,170,171,172,173,174,175,176,177,178,179,180,181,182,183,184,185,186,187,188,189,190,191,192,193,194,{"$f":"GL1+1","v":195},196,197,198,199,200,201,202,203,204,205,206,207,208,209,210,211,212,213,214,215,216,217,218,219,220,221,222,223,224,225,226,227,228,229,230,231,232,233,234,235,236,237,238,239,240,241,242,243,244,245,246,247,248,249,250,251,252,253,254,255]
[]
["Census 1990 Data -           Query Name:  DPCnty90Census"]
["TownName","Cnty_Code","Census_Cnty_Code","LandAcres","WaterAcres","HousingUnits90Cen","Persons90Cen","Families90Cen","Households90cen","MalePop90cen","FemalePop90cen","WhitePop","BlackPop","AmerIndianPop","AsianPIPop","OtherRacePop","HispanicOrPop","AgeUnder15_90cen","Age15to24_90cen","Age25to34_90cen","Age35to44_90cen","Age45to54_90cen","Age55to64_90cen","Age65to74_90cen","Age75andOver_90cen","PersonsInHH90cen","PersonsInFamHH90cen","PersonsInGC","PersonsPerHH90cen","PersonsPerFam90Cen","SinglePersonHH90cen","MarriedCoupleHH90cen","SingleParentHH90cen","NonFamilyHH90cen","TotalHousingUnits","OccupiedHousingUnits","VacantHousingUnits","OwnerOccHU","RenterOccHU","VacantForRent90","VacantForSale90","VacantSeasonalRec","SingFamHU90cen","MultiFamHU90cen","MobileHom90cen","SingFamOwnHU90cen","MultiFamOwnHU90cen","MobileHomOwnHU90cen","SingFamRntrHU90cen","MultiFamRntrHU90cen","MobileHomRntrHU90cen","HU<5yrs90cen","HU5to20yrs90cen","HU20to50yrs90cen","HU>50yrs90cen","Units0Bedroom90cen","Units1Bedroom90cen","Units2Bedroom90cen","Units3Bedroom90cen","Units4+Bedroom90cen","HI<5K","HI5Kto10K","HI10Kto15K","HI15Kto25K","HI25Kto35K","HI35Kto50K","HI50Kto75K","HI75Kto100K","HI>100K","MedHI","HH<25HI<5K","HH<25HI5Kto10K","HH<25HI10Kto15K","HH<25HI15Kto25K","HH<25HI25Kto35K","HH<25HI35Kto50K","HH<25HI50Kto75K","HH<25HI75Kto100K","HH<25HI>100K","HH25to34HI<5K","HH25to34HI5Kto10K","HH25to34HI10Kto15K","HH25to34HI15Kto25K","HH25to34HI25Kto35K","HH25to34HI35Kto50K","HH25to34HI50Kto75K","HH25to34HI75Kto100K","HH25to34HI>100K","HH35to44HI<5K","HH35to44HI5Kto10K","HH35to44HI10Kto15K","HH35to44HI15Kto25K","HH35to44HI25Kto35K","HH35to44HI35Kto50K","HH35to44HI50Kto75K","HH35to44HI75Kto100K","HH35to44HI>100K","HH45to54HI<5K","HH45to54HI5Kto10K","HH45to54HI10Kto15K","HH45to54HI15Kto25K","HH45to54HI25Kto35K","HH45to54HI35Kto50K","HH45to54HI50Kto75K","HH45to54HI75Kto100K","HH45to54HI>100K","HH55to64HI<5K","HH55to64HI5Kto10K","HH55to64HI10Kto15K","HH55to64HI15Kto25K","HH55to64HI25Kto35K","HH55to64HI35Kto50K","HH55to64HI50Kto75K","HH55to64HI75Kto100K","HH55to64HI>100K","HH65to74HI<5K","HH65to74HI5Kto10K","HH65to74HI10Kto15K","HH65to74HI15Kto25K","HH65to74HI25Kto35K","HH65to74HI35Kto50K","HH65to74HI50Kto75K","HH65to74HI75Kto100K","HH65to74HI>100K","HH>75HI<5K","HH>75HI5Kto10K","HH>75HI10Kto15K","HH>75HI15Kto25K","HH>75HI25Kto35K","HH>75HI35Kto50K","HH>75HI50Kto75K","HH>75HI75Kto100K","HH>75HI>100K","SchoolEnrollment1thru12","Pop25andOver","HSGradorHigher","CollGradorHigher","NativePop","ForeignBornPop","BornStateOfRes","NativePop2","ForeignBornPop2","DroveAlone","CarPooled","PublicTranspt","Walked","OtherMeans","WorkedAtHome","HHInc<10K","HHInc10to15K","HHInc15to25K","HHInc25to35K","HHInc35to50K","HHInc50to75K","HHInc75to100K","HHInc100to150K","HHInc>150K"]
[{"$f":"VLOOKUP(DropDownList!$A$47,CntyQuery!$A$4:$FI$46,A1)","v":"Acworth"},{"$f":"VLOOKUP(DropDownList!$A$47,CntyQuery!$A$4:$FA$46,B1)","v":19005},{"$f":"VLOOKUP(DropDownList!$A$47,CntyQuery!$A$4:$FA$46,C1)","v":"00260"},{"$f":"VLOOKUP(DropDownList!$A$47,CntyQuery!$A$4:$FA$46,D1)","v":24916.99},{"$f":"VLOOKUP(DropDownList!$A$47,CntyQuery!$A$4:$FA$46,E1)","v":81.95},{"$f":"VLOOKUP(DropDownList!$A$47,CntyQuery!$A$4:$FA$46,F1)","v":507},{"$f":"VLOOKUP(DropDownList!$A$47,CntyQuery!$A$4:$FA$46,G1)","v":776},{"$f":"VLOOKUP(DropDownList!$A$47,CntyQuery!$A$4:$FA$46,H1)","v":219},{"$f":"VLOOKUP(DropDownList!$A$47,CntyQuery!$A$4:$FA$46,I1)","v":285},{"$f":"VLOOKUP(DropDownList!$A$47,CntyQuery!$A$4:$FA$46,J1)","v":394},{"$f":"VLOOKUP(DropDownList!$A$47,CntyQuery!$A$4:$FA$46,K1)","v":382},{"$f":"VLOOKUP(DropDownList!$A$47,CntyQuery!$A$4:$FA$46,L1)","v":773},{"$f":"VLOOKUP(DropDownList!$A$47,CntyQuery!$A$4:$FA$46,M1)","v":0},{"$f":"VLOOKUP(DropDownList!$A$47,CntyQuery!$A$4:$FA$46,N1)","v":0},{"$f":"VLOOKUP(DropDownList!$A$47,CntyQuery!$A$4:$FA$46,O1)","v":3},{"$f":"VLOOKUP(DropDownList!$A$47,CntyQuery!$A$4:$FA$46,P1)","v":0},{"$f":"VLOOKUP(DropDownList!$A$47,CntyQuery!$A$4:$FA$46,Q1)","v":1},{"$f":"VLOOKUP(DropDownList!$A$47,CntyQuery!$A$4:$FA$46,R1)","v":189},{"$f":"VLOOKUP(DropDownList!$A$47,CntyQuery!$A$4:$FA$46,S1)","v":72},{"$f":"VLOOKUP(DropDownList!$A$47,CntyQuery!$A$4:$FA$46,T1)","v":124},{"$f":"VLOOKUP(DropDownList!$A$47,CntyQuery!$A$4:$FA$46,U1)","v":149},{"$f":"VLOOKUP(DropDownList!$A$47,CntyQuery!$A$4:$FA$46,V1)","v":74},{"$f":"VLOOKUP(DropDownList!$A$47,CntyQuery!$A$4:$FA$46,W1)","v":80},{"$f":"VLOOKUP(DropDownList!$A$47,CntyQuery!$A$4:$FA$46,X1)","v":57},{"$f":"VLOOKUP(DropDownList!$A$47,CntyQuery!$A$4:$FA$46,Y1)","v":31},{"$f":"VLOOKUP(DropDownList!$A$47,CntyQuery!$A$4:$FA$46,Z1)","v":776},{"$f":"VLOOKUP(DropDownList!$A$47,CntyQuery!$A$4:$FA$46,AA1)","v":693},{"$f":"VLOOKUP(DropDownList!$A$47,CntyQuery!$A$4:$FA$46,AB1)","v":0},{"$f":"VLOOKUP(DropDownList!$A$47,CntyQuery!$A$4:$FA$46,AC1)","v":2.7228070175438597},{"$f":"VLOOKUP(DropDownList!$A$47,CntyQuery!$A$4:$FA$46,AD1)","v":3.1643835616438358},{"$f":"VLOOKUP(DropDownList!$A$47,CntyQuery!$A$4:$FA$46,AE1)","v":53},{"$f":"VLOOKUP(DropDownList!$A$47,CntyQuery!$A$4:$FA$46,AF1)","v":189},{"$f":"VLOOKUP(DropDownList!$A$47,CntyQuery!$A$4:$FA$46,AG1)","v":30},{"$f":"VLOOKUP(DropDownList!$A$47,CntyQuery!$A$4:$FA$46,AH1)","v":13},{"$f":"VLOOKUP(DropDownList!$A$47,CntyQuery!$A$4:$FA$46,AI1)","v":507},{"$f":"VLOOKUP(DropDownList!$A$47,CntyQuery!$A$4:$FA$46,AJ1)","v":285},{"$f":"VLOOKUP(DropDownList!$A$47,CntyQuery!$A$4:$FA$46,AK1)","v":222},{"$f":"VLOOKUP(DropDownList!$A$47,CntyQuery!$A$4:$FA$46,AL1)","v":246},{"$f":"VLOOKUP(DropDownList!$A$47,CntyQuery!$A$4:$FA$46,AM1)","v":39},{"$f":"VLOOKUP(DropDownList!$A$47,CntyQuery!$A$4:$FA$46,AN1)","v":1},{"$f":"VLOOKUP(DropDownList!$A$47,CntyQuery!$A$4:$FA$46,AO1)","v":3},{"$f":"VLOOKUP(DropDownList!$A$47,CntyQuery!$A$4:$FA$46,AP1)","v":194},{"$f":"VLOOKUP(DropDownList!$A$47,CntyQuery!$A$4:$FA$46,AQ1)","v":448},{"$f":"VLOOKUP(DropDownList!$A$47,CntyQuery!$A$4:$FA$46,AR1)","v":10},{"$f":"VLOOKUP(DropDownList!$A$47,CntyQuery!$A$4:$FA$46,AS1)","v":49},{"$f":"VLOOKUP(DropDownList!$A$47,CntyQuery!$A$4:$FA$46,AT1)","v":222},{"$f":"VLOOKUP(DropDownList!$A$47,CntyQuery!$A$4:$FA$46,AU1)","v":5},{"$f":"VLOOKUP(DropDownList!$A$47,CntyQuery!$A$4:$FA$46,AV1)","v":49},{"$f":"VLOOKUP(DropDownList!$A$47,CntyQuery!$A$4:$FA$46,AW1)","v":30},{"$f":"VLOOKUP(DropDownList!$A$47,CntyQuery!$A$4:$FA$46,AX1)","v":5},{"$f":"VLOOKUP(DropDownList!$A$47,CntyQuery!$A$4:$FA$46,AY1)","v":4},{"$f":"VLOOKUP(DropDownList!$A$47,CntyQuery!$A$4:$FA$46,AZ1)","v":56},{"$f":"VLOOKUP(DropDownList!$A$47,CntyQuery!$A$4:$FA$46,BA1)","v":180},{"$f":"VLOOKUP(DropDownList!$A$47,CntyQuery!$A$4:$FA$46,BB1)","v":88},{"$f":"VLOOKUP(DropDownList!$A$47,CntyQuery!$A$4:$FA$46,BC1)","v":179},{"$f":"VLOOKUP(DropDownList!$A$47,CntyQuery!$A$4:$FA$46,BD1)","v":8},{"$f":"VLOOKUP(DropDownList!$A$47,CntyQuery!$A$4:$FA$46,BE1)","v":42},{"$f":"VLOOKUP(DropDownList!$A$47,CntyQuery!$A$4:$FA$46,BF1)","v":189},{"$f":"VLOOKUP(DropDownList!$A$47,CntyQuery!$A$4:$FA$46,BG1)","v":140},{"$f":"VLOOKUP(DropDownList!$A$47,CntyQuery!$A$4:$FA$46,BH1)","v":124},{"$f":"VLOOKUP(DropDownList!$A$47,CntyQuery!$A$4:$FA$46,BI1)","v":19},{"$f":"VLOOKUP(DropDownList!$A$47,CntyQuery!$A$4:$FA$46,BJ1)","v":18},{"$f":"VLOOKUP(DropDownList!$A$47,CntyQuery!$A$4:$FA$46,BK1)","v":22},{"$f":"VLOOKUP(DropDownList!$A$47,CntyQuery!$A$4:$FA$46,BL1)","v":52},{"$f":"VLOOKUP(DropDownList!$A$47,CntyQuery!$A$4:$FA$46,BM1)","v":40},{"$f":"VLOOKUP(DropDownList!$A$47,CntyQuery!$A$4:$FA$46,BN1)","v":105},{"$f":"VLOOKUP(DropDownList!$A$47,CntyQuery!$A$4:$FA$46,BO1)","v":24},{"$f":"VLOOKUP(DropDownList!$A$47,CntyQuery!$A$4:$FA$46,BP1)","v":2},{"$f":"VLOOKUP(DropDownList!$A$47,CntyQuery!$A$4:$FA$46,BQ1)","v":5},{"$f":"VLOOKUP(DropDownList!$A$47,CntyQuery!$A$4:$FA$46,BR1)","v":33661},{"$f":"VLOOKUP(DropDownList!$A$47,CntyQuery!$A$4:$FA$46,BS1)","v":0},{"$f":"VLOOKUP(DropDownList!$A$47,CntyQuery!$A$4:$FA$46,BT1)","v":0},{"$f":"VLOOKUP(DropDownList!$A$47,CntyQuery!$A$4:$FA$46,BU1)","v":2},{"$f":"VLOOKUP(DropDownList!$A$47,CntyQuery!$A$4:$FA$46,BV1)","v":0},{"$f":"VLOOKUP(DropDownList!$A$47,CntyQuery!$A$4:$FA$46,BW1)","v":0},{"$f":"VLOOKUP(DropDownList!$A$47,CntyQuery!$A$4:$FA$46,BX1)","v":6},{"$f":"VLOOKUP(DropDownList!$A$47,CntyQuery!$A$4:$FA$46,BY1)","v":0},{"$f":"VLOOKUP(DropDownList!$A$47,CntyQuery!$A$4:$FA$46,BZ1)","v":0},{"$f":"VLOOKUP(DropDownList!$A$47,CntyQuery!$A$4:$FA$46,CA1)","v":0},{"$f":"VLOOKUP(DropDownList!$A$47,CntyQuery!$A$4:$FA$46,CB1)","v":0},{"$f":"VLOOKUP(DropDownList!$A$47,CntyQuery!$A$4:$FA$46,CC1)","v":0},{"$f":"VLOOKUP(DropDownList!$A$47,CntyQuery!$A$4:$FA$46,CD1)","v":6},{"$f":"VLOOKUP(DropDownList!$A$47,CntyQuery!$A$4:$FA$46,CE1)","v":8},{"$f":"VLOOKUP(DropDownList!$A$47,CntyQuery!$A$4:$FA$46,CF1)","v":9},{"$f":"VLOOKUP(DropDownList!$A$47,CntyQuery!$A$4:$FA$46,CG1)","v":29},{"$f":"VLOOKUP(DropDownList!$A$47,CntyQuery!$A$4:$FA$46,CH1)","v":3},{"$f":"VLOOKUP(DropDownList!$A$47,CntyQuery!$A$4:$FA$46,CI1)","v":0},{"$f":"VLOOKUP(DropDownList!$A$47,CntyQuery!$A$4:$FA$46,CJ1)","v":0},{"$f":"VLOOKUP(DropDownList!$A$47,CntyQuery!$A$4:$FA$46,CK1)","v":6},{"$f":"VLOOKUP(DropDownList!$A$47,CntyQuery!$A$4:$FA$46,CL1)","v":5},{"$f":"VLOOKUP(DropDownList!$A$47,CntyQuery!$A$4:$FA$46,CM1)","v":2},{"$f":"VLOOKUP(DropDownList!$A$47,CntyQuery!$A$4:$FA$46,CN1)","v":17},{"$f":"VLOOKUP(DropDownList!$A$47,CntyQuery!$A$4:$FA$46,CO1)","v":14},{"$f":"VLOOKUP(DropDownList!$A$47,CntyQuery!$A$4:$FA$46,CP1)","v":27},{"$f":"VLOOKUP(DropDownList!$A$47,CntyQuery!$A$4:$FA$46,CQ1)","v":5},{"$f":"VLOOKUP(DropDownList!$A$47,CntyQuery!$A$4:$FA$46,CR1)","v":0},{"$f":"VLOOKUP(DropDownList!$A$47,CntyQuery!$A$4:$FA$46,CS1)","v":0},{"$f":"VLOOKUP(DropDownList!$A$47,CntyQuery!$A$4:$FA$46,CT1)","v":2},{"$f":"VLOOKUP(DropDownList!$A$47,CntyQuery!$A$4:$FA$46,CU1)","v":4},{"$f":"VLOOKUP(DropDownList!$A$47,CntyQuery!$A$4:$FA$46,CV1)","v":2},{"$f":"VLOOKUP(DropDownList!$A$47,CntyQuery!$A$4:$FA$46,CW1)","v":2},{"$f":"VLOOKUP(DropDownList!$A$47,CntyQuery!$A$4:$FA$46,CX1)","v":8},{"$f":"VLOOKUP(DropDownList!$A$47,CntyQuery!$A$4:$FA$46,CY1)","v":25},{"$f":"VLOOKUP(DropDownList!$A$47,CntyQuery!$A$4:$FA$46,CZ1)","v":0},{"$f":"VLOOKUP(DropDownList!$A$47,CntyQuery!$A$4:$FA$46,DA1)","v":2},{"$f":"VLOOKUP(DropDownList!$A$47,CntyQuery!$A$4:$FA$46,DB1)","v":5},{"$f":"VLOOKUP(DropDownList!$A$47,CntyQuery!$A$4:$FA$46,DC1)","v":3},{"$f":"VLOOKUP(DropDownList!$A$47,CntyQuery!$A$4:$FA$46,DD1)","v":7},{"$f":"VLOOKUP(DropDownList!$A$47,CntyQuery!$A$4:$FA$46,DE1)","v":2},{"$f":"VLOOKUP(DropDownList!$A$47,CntyQuery!$A$4:$FA$46,DF1)","v":6},{"$f":"VLOOKUP(DropDownList!$A$47,CntyQuery!$A$4:$FA$46,DG1)","v":5},{"$f":"VLOOKUP(DropDownList!$A$47,CntyQuery!$A$4:$FA$46,DH1)","v":5},{"$f":"VLOOKUP(DropDownList!$A$47,CntyQuery!$A$4:$FA$46,DI1)","v":14},{"$f":"VLOOKUP(DropDownList!$A$47,CntyQuery!$A$4:$FA$46,DJ1)","v":0},{"$f":"VLOOKUP(DropDownList!$A$47,CntyQuery!$A$4:$FA$46,DK1)","v":0},{"$f":"VLOOKUP(DropDownList!$A$47,CntyQuery!$A$4:$FA$46,DL1)","v":0},{"$f":"VLOOKUP(DropDownList!$A$47,CntyQuery!$A$4:$FA$46,DM1)","v":0},{"$f":"VLOOKUP(DropDownList!$A$47,CntyQuery!$A$4:$FA$46,DN1)","v":3},{"$f":"VLOOKUP(DropDownList!$A$47,CntyQuery!$A$4:$FA$46,DO1)","v":15},{"$f":"VLOOKUP(DropDownList!$A$47,CntyQuery!$A$4:$FA$46,DP1)","v":4},{"$f":"VLOOKUP(DropDownList!$A$47,CntyQuery!$A$4:$FA$46,DQ1)","v":9},{"$f":"VLOOKUP(DropDownList!$A$47,CntyQuery!$A$4:$FA$46,DR1)","v":2},{"$f":"VLOOKUP(DropDownList!$A$47,CntyQuery!$A$4:$FA$46,DS1)","v":0},{"$f":"VLOOKUP(DropDownList!$A$47,CntyQuery!$A$4:$FA$46,DT1)","v":0},{"$f":"VLOOKUP(DropDownList!$A$47,CntyQuery!$A$4:$FA$46,DU1)","v":8},{"$f":"VLOOKUP(DropDownList!$A$47,CntyQuery!$A$4:$FA$46,DV1)","v":2},{"$f":"VLOOKUP(DropDownList!$A$47,CntyQuery!$A$4:$FA$46,DW1)","v":5},{"$f":"VLOOKUP(DropDownList!$A$47,CntyQuery!$A$4:$FA$46,DX1)","v":4},{"$f":"VLOOKUP(DropDownList!$A$47,CntyQuery!$A$4:$FA$46,DY1)","v":0},{"$f":"VLOOKUP(DropDownList!$A$47,CntyQuery!$A$4:$FA$46,DZ1)","v":4},{"$f":"VLOOKUP(DropDownList!$A$47,CntyQuery!$A$4:$FA$46,EA1)","v":0},{"$f":"VLOOKUP(DropDownList!$A$47,CntyQuery!$A$4:$FA$46,EB1)","v":0},{"$f":"VLOOKUP(DropDownList!$A$47,CntyQuery!$A$4:$FA$46,EC1)","v":0},{"$f":"VLOOKUP(DropDownList!$A$47,CntyQuery!$A$4:$FA$46,ED1)","v":147},{"$f":"VLOOKUP(DropDownList!$A$47,CntyQuery!$A$4:$FA$46,EE1)","v":499},{"$f":"VLOOKUP(DropDownList!$A$47,CntyQuery!$A$4:$FA$46,EF1)","v":409},{"$f":"VLOOKUP(DropDownList!$A$47,CntyQuery!$A$4:$FA$46,EG1)","v":134},{"$f":"VLOOKUP(DropDownList!$A$47,CntyQuery!$A$4:$FA$46,EH1)","v":758},{"$f":"VLOOKUP(DropDownList!$A$47,CntyQuery!$A$4:$FA$46,EI1)","v":18},{"$f":"VLOOKUP(DropDownList!$A$47,CntyQuery!$A$4:$FA$46,EJ1)","v":272},{"$f":"VLOOKUP(DropDownList!$A$47,CntyQuery!$A$4:$FA$46,EK1)","v":758},{"$f":"VLOOKUP(DropDownList!$A$47,CntyQuery!$A$4:$FA$46,EL1)","v":18},{"$f":"VLOOKUP(DropDownList!$A$47,CntyQuery!$A$4:$FA$46,EM1)","v":272},{"$f":"VLOOKUP(DropDownList!$A$47,CntyQuery!$A$4:$FA$46,EN1)","v":34},{"$f":"VLOOKUP(DropDownList!$A$47,CntyQuery!$A$4:$FA$46,EO1)","v":0},{"$f":"VLOOKUP(DropDownList!$A$47,CntyQuery!$A$4:$FA$46,EP1)","v":17},{"$f":"VLOOKUP(DropDownList!$A$47,CntyQuery!$A$4:$FA$46,EQ1)","v":10},{"$f":"VLOOKUP(DropDownList!$A$47,CntyQuery!$A$4:$FA$46,ER1)","v":25},{"$f":"VLOOKUP(DropDownList!$A$47,CntyQuery!$A$4:$FA$46,ES1)","v":37},{"$f":"VLOOKUP(DropDownList!$A$47,CntyQuery!$A$4:$FA$46,ET1)","v":22},{"$f":"VLOOKUP(DropDownList!$A$47,CntyQuery!$A$4:$FA$46,EU1)","v":52},{"$f":"VLOOKUP(DropDownList!$A$47,CntyQuery!$A$4:$FA$46,EV1)","v":40},{"$f":"VLOOKUP(DropDownList!$A$47,CntyQuery!$A$4:$FA$46,EW1)","v":105},{"$f":"VLOOKUP(DropDownList!$A$47,CntyQuery!$A$4:$FA$46,EX1)","v":24},{"$f":"VLOOKUP(DropDownList!$A$47,CntyQuery!$A$4:$FA$46,EY1)","v":2},{"$f":"VLOOKUP(DropDownList!$A$47,CntyQuery!$A$4:$FA$46,EZ1)","v":5},{"$f":"VLOOKUP(DropDownList!$A$47,CntyQuery!$A$4:$FA$46,FA1)","v":0}]
[]
[]
["Census 1990 Data -    Query Name:  TownSTF1Qry1"]
["NAME","COUSUBFP","Census_Cnty_Code","FIPS","LandAcres","WaterAcres","HousingUnits90Cen","P01Persons90Cen","P02Families90Cen","P03Households90cen","P05MalePop90cen","P05FemalePop90cen","P06WhitePop","P06BlackPop","P06AmerIndianPop","P06AsianPIPop","P06OtherRacePop","P08HispanicOrPop","P11AgeUnder15_90cen","P11Age15to24_90cen","P11Age25to34_90cen","P11Age35to44_90cen","P11Age45to54_90cen","P11Age55to64_90cen","P11Age65to74_90cen","P11Age75andOver_90cen","P15PersonsInHH90cen","P15PersonsInFamHH90cen","P15PersonsInGC","PersonsPerHH90cen","PersonsPerFam90Cen","P16SinglePersonHH90cen","P16MarriedCoupleHH90cen","P16SingleParentHH90cen","P16NonFamilyHH90cen","H01TotalHousingUnits","H02OccupiedHousingUnits","H02VacantHousingUnits","H03OwnerOccHU","H03RenterOccHU","H05VacantForRent90","H05VacantForSale90","H05VacantSeasonalRec","H23OOHUVal<15k","H23OOHUVal15to19k","H23OOHUVal20to24k","H23OOHUVal25to29k","H23OOHUVal30to34k","H23OOHUVal35to39k","H23OOHUVal40to44k","H23OOHUVal45to49k","H23OOHUVal50to59k","H23OOHUVal60to74k","H23OOHUVal75to99k","H23OOHUVal100to124k","H23OOHUVal125to149k","H23OOHUVal150to174k","H23OOHUVal175to199k","H23OOHUVal200to249k","H23OOHUVal250to299k","H23OOHUVal300to399k","H23OOHUVal400to499k","H23OOHUVal500kOrMore","H23BOOHUMedVal","H41SingFamHU90cen","H41MultiFamHU90cen","H41MobileHom90cen","H43SingFamOwnHU90cen","H43MultiFamOwnHU90cen","H43MobileHomOwnHU90cen","H43SingFamRntrHU90cen","H43MultiFamRntrHU90cen","H43MobileHomRntrHU90cen","H41HU1UnitDet","H41HU1UnitAtt","H41HU2Unit","H41HU3to4Unit","H41HU5to9Unit","H41HU10to19Unit","H41HU20to49Unit","H41HU50PlusUnit","H41HUMobilH","H41HUOther"]
[{"$f":"VLOOKUP(DropDownList!$B$47,CntyQuery!$A$51:$CE$93,A$1)","v":"Acworth"},{"$f":"VLOOKUP(DropDownList!$B$47,CntyQuery!$A$51:$CE$93,B$1)","v":1001},{"$f":"VLOOKUP(DropDownList!$B$47,CntyQuery!$A$51:$CE$93,C$1)","v":19005},{"$f":"VLOOKUP(DropDownList!$B$47,CntyQuery!$A$51:$CE$93,D$1)","v":"00260"},{"$f":"VLOOKUP(DropDownList!$B$47,CntyQuery!$A$51:$CE$93,E$1)","v":24916.99},{"$f":"VLOOKUP(DropDownList!$B$47,CntyQuery!$A$51:$CE$93,F$1)","v":81.95},{"$f":"VLOOKUP(DropDownList!$B$47,CntyQuery!$A$51:$CE$93,G$1)","v":507},{"$f":"VLOOKUP(DropDownList!$B$47,CntyQuery!$A$51:$CE$93,H$1)","v":776},{"$f":"VLOOKUP(DropDownList!$B$47,CntyQuery!$A$51:$CE$93,I$1)","v":219},{"$f":"VLOOKUP(DropDownList!$B$47,CntyQuery!$A$51:$CE$93,J$1)","v":285},{"$f":"VLOOKUP(DropDownList!$B$47,CntyQuery!$A$51:$CE$93,K$1)","v":394},{"$f":"VLOOKUP(DropDownList!$B$47,CntyQuery!$A$51:$CE$93,L$1)","v":382},{"$f":"VLOOKUP(DropDownList!$B$47,CntyQuery!$A$51:$CE$93,M$1)","v":773},{"$f":"VLOOKUP(DropDownList!$B$47,CntyQuery!$A$51:$CE$93,N$1)","v":0},{"$f":"VLOOKUP(DropDownList!$B$47,CntyQuery!$A$51:$CE$93,O$1)","v":0},{"$f":"VLOOKUP(DropDownList!$B$47,CntyQuery!$A$51:$CE$93,P$1)","v":3},{"$f":"VLOOKUP(DropDownList!$B$47,CntyQuery!$A$51:$CE$93,Q$1)","v":0},{"$f":"VLOOKUP(DropDownList!$B$47,CntyQuery!$A$51:$CE$93,R$1)","v":1},{"$f":"VLOOKUP(DropDownList!$B$47,CntyQuery!$A$51:$CE$93,S$1)","v":189},{"$f":"VLOOKUP(DropDownList!$B$47,CntyQuery!$A$51:$CE$93,T$1)","v":72},{"$f":"VLOOKUP(DropDownList!$B$47,CntyQuery!$A$51:$CE$93,U$1)","v":124},{"$f":"VLOOKUP(DropDownList!$B$47,CntyQuery!$A$51:$CE$93,V$1)","v":149},{"$f":"VLOOKUP(DropDownList!$B$47,CntyQuery!$A$51:$CE$93,W$1)","v":74},{"$f":"VLOOKUP(DropDownList!$B$47,CntyQuery!$A$51:$CE$93,X$1)","v":80},{"$f":"VLOOKUP(DropDownList!$B$47,CntyQuery!$A$51:$CE$93,Y$1)","v":57},{"$f":"VLOOKUP(DropDownList!$B$47,CntyQuery!$A$51:$CE$93,Z$1)","v":31},{"$f":"VLOOKUP(DropDownList!$B$47,CntyQuery!$A$51:$CE$93,AA$1)","v":776},{"$f":"VLOOKUP(DropDownList!$B$47,CntyQuery!$A$51:$CE$93,AB$1)","v":693},{"$f":"VLOOKUP(DropDownList!$B$47,CntyQuery!$A$51:$CE$93,AC$1)","v":0},{"$f":"VLOOKUP(DropDownList!$B$47,CntyQuery!$A$51:$CE$93,AD$1)","v":2.7228070175438597},{"$f":"VLOOKUP(DropDownList!$B$47,CntyQuery!$A$51:$CE$93,AE$1)","v":3.1643835616438358},{"$f":"VLOOKUP(DropDownList!$B$47,CntyQuery!$A$51:$CE$93,AF$1)","v":53},{"$f":"VLOOKUP(DropDownList!$B$47,CntyQuery!$A$51:$CE$93,AG$1)","v":189},{"$f":"VLOOKUP(DropDownList!$B$47,CntyQuery!$A$51:$CE$93,AH$1)","v":30},{"$f":"VLOOKUP(DropDownList!$B$47,CntyQuery!$A$51:$CE$93,AI$1)","v":13},{"$f":"VLOOKUP(DropDownList!$B$47,CntyQuery!$A$51:$CE$93,AJ$1)","v":507},{"$f":"VLOOKUP(DropDownList!$B$47,CntyQuery!$A$51:$CE$93,AK$1)","v":285},{"$f":"VLOOKUP(DropDownList!$B$47,CntyQuery!$A$51:$CE$93,AL$1)","v":222},{"$f":"VLOOKUP(DropDownList!$B$47,CntyQuery!$A$51:$CE$93,AM$1)","v":246},{"$f":"VLOOKUP(DropDownList!$B$47,CntyQuery!$A$51:$CE$93,AN$1)","v":39},{"$f":"VLOOKUP(DropDownList!$B$47,CntyQuery!$A$51:$CE$93,AO$1)","v":1},{"$f":"VLOOKUP(DropDownList!$B$47,CntyQuery!$A$51:$CE$93,AP$1)","v":3},{"$f":"VLOOKUP(DropDownList!$B$47,CntyQuery!$A$51:$CE$93,AQ$1)","v":194},{"$f":"VLOOKUP(DropDownList!$B$47,CntyQuery!$A$51:$CE$93,AR$1)","v":4},{"$f":"VLOOKUP(DropDownList!$B$47,CntyQuery!$A$51:$CE$93,AS$1)","v":2},{"$f":"VLOOKUP(DropDownList!$B$47,CntyQuery!$A$51:$CE$93,AT$1)","v":2},{"$f":"VLOOKUP(DropDownList!$B$47,CntyQuery!$A$51:$CE$93,AU$1)","v":1},{"$f":"VLOOKUP(DropDownList!$B$47,CntyQuery!$A$51:$CE$93,AV$1)","v":1},{"$f":"VLOOKUP(DropDownList!$B$47,CntyQuery!$A$51:$CE$93,AW$1)","v":1},{"$f":"VLOOKUP(DropDownList!$B$47,CntyQuery!$A$51:$CE$93,AX$1)","v":6},{"$f":"VLOOKUP(DropDownList!$B$47,CntyQuery!$A$51:$CE$93,AY$1)","v":0},{"$f":"VLOOKUP(DropDownList!$B$47,CntyQuery!$A$51:$CE$93,AZ$1)","v":7},{"$f":"VLOOKUP(DropDownList!$B$47,CntyQuery!$A$51:$CE$93,BA$1)","v":20},{"$f":"VLOOKUP(DropDownList!$B$47,CntyQuery!$A$51:$CE$93,BB$1)","v":36},{"$f":"VLOOKUP(DropDownList!$B$47,CntyQuery!$A$51:$CE$93,BC$1)","v":19},{"$f":"VLOOKUP(DropDownList!$B$47,CntyQuery!$A$51:$CE$93,BD$1)","v":7},{"$f":"VLOOKUP(DropDownList!$B$47,CntyQuery!$A$51:$CE$93,BE$1)","v":6},{"$f":"VLOOKUP(DropDownList!$B$47,CntyQuery!$A$51:$CE$93,BF$1)","v":1},{"$f":"VLOOKUP(DropDownList!$B$47,CntyQuery!$A$51:$CE$93,BG$1)","v":1},{"$f":"VLOOKUP(DropDownList!$B$47,CntyQuery!$A$51:$CE$93,BH$1)","v":1},{"$f":"VLOOKUP(DropDownList!$B$47,CntyQuery!$A$51:$CE$93,BI$1)","v":0},{"$f":"VLOOKUP(DropDownList!$B$47,CntyQuery!$A$51:$CE$93,BJ$1)","v":0},{"$f":"VLOOKUP(DropDownList!$B$47,CntyQuery!$A$51:$CE$93,BK$1)","v":1},{"$f":"VLOOKUP(DropDownList!$B$47,CntyQuery!$A$51:$CE$93,BL$1)","v":84700},{"$f":"VLOOKUP(DropDownList!$B$47,CntyQuery!$A$51:$CE$93,BM$1)","v":448},{"$f":"VLOOKUP(DropDownList!$B$47,CntyQuery!$A$51:$CE$93,BN$1)","v":10},{"$f":"VLOOKUP(DropDownList!$B$47,CntyQuery!$A$51:$CE$93,BO$1)","v":49},{"$f":"VLOOKUP(DropDownList!$B$47,CntyQuery!$A$51:$CE$93,BP$1)","v":222},{"$f":"VLOOKUP(DropDownList!$B$47,CntyQuery!$A$51:$CE$93,BQ$1)","v":5},{"$f":"VLOOKUP(DropDownList!$B$47,CntyQuery!$A$51:$CE$93,BR$1)","v":19},{"$f":"VLOOKUP(DropDownList!$B$47,CntyQuery!$A$51:$CE$93,BS$1)","v":30},{"$f":"VLOOKUP(DropDownList!$B$47,CntyQuery!$A$51:$CE$93,BT$1)","v":5},{"$f":"VLOOKUP(DropDownList!$B$47,CntyQuery!$A$51:$CE$93,BU$1)","v":4},{"$f":"VLOOKUP(DropDownList!$B$47,CntyQuery!$A$51:$CE$93,BV$1)","v":448},{"$f":"VLOOKUP(DropDownList!$B$47,CntyQuery!$A$51:$CE$93,BW$1)","v":3},{"$f":"VLOOKUP(DropDownList!$B$47,CntyQuery!$A$51:$CE$93,BX$1)","v":7},{"$f":"VLOOKUP(DropDownList!$B$47,CntyQuery!$A$51:$CE$93,BY$1)","v":0},{"$f":"VLOOKUP(DropDownList!$B$47,CntyQuery!$A$51:$CE$93,BZ$1)","v":0},{"$f":"VLOOKUP(DropDownList!$B$47,CntyQuery!$A$51:$CE$93,CA$1)","v":0},{"$f":"VLOOKUP(DropDownList!$B$47,CntyQuery!$A$51:$CE$93,CB$1)","v":0},{"$f":"VLOOKUP(DropDownList!$B$47,CntyQuery!$A$51:$CE$93,CC$1)","v":0},{"$f":"VLOOKUP(DropDownList!$B$47,CntyQuery!$A$51:$CE$93,CD$1)","v":38},{"$f":"VLOOKUP(DropDownList!$B$47,CntyQuery!$A$51:$CE$93,CE$1)","v":11}]
[]
[]
["Census 1990 Data -          Query Name: TownSTF3Qry1"]
["NAME","FIPS","COUSUBFP","LandAcres","WaterAcres","HousingUnits90Cen","P01Persons90Cen","P02Families90Cen","P03Households90cen","H25HU<5yrs90cen","H25HU5to20yrs90cen","H25HU20to50yrs90cen","H25HU>50yrs90cen","H31Units0Bedroom90cen","H31Units1Bedroom90cen","H31Units2Bedroom90cen","H31Units3Bedroom90cen","H31Units4Bedroom90cen","H31Units5+Bedroom90cen","P80HI<5K","P80HI5Kto10K","P80HI10Kto15K","P80HI15Kto25K","P80HI25Kto35K","P80HI35Kto50K","P80HI50Kto75K","P80HI75Kto100K","P80HI>100K","P80AMedHI","P86HH<25HI<5K","P86HH<25HI5Kto10K","P86HH<25HI10Kto15K","P86HH<25HI15Kto25K","P86HH<25HI25Kto35K","P86HH<25HI35Kto50K","P86HH<25HI50Kto75K","P86HH<25HI75Kto100K","P86HH<25HI>100K","P86HH25to34HI<5K","P86HH25to34HI5Kto10K","P86HH25to34HI10Kto15K","P86HH25to34HI15Kto25K","P86HH25to34HI25Kto35K","P86HH25to34HI35Kto50K","P86HH25to34HI50Kto75K","P86HH25to34HI75Kto100K","P86HH25to34HI>100K","P86HH35to44HI<5K","P86HH35to44HI5Kto10K","P86HH35to44HI10Kto15K","P86HH35to44HI15Kto25K","P86HH35to44HI25Kto35K","P86HH35to44HI35Kto50K","P86HH35to44HI50Kto75K","P86HH35to44HI75Kto100K","P86HH35to44HI>100K","P86HH45to54HI<5K","P86HH45to54HI5Kto10K","P86HH45to54HI10Kto15K","P86HH45to54HI15Kto25K","P86HH45to54HI25Kto35K","P86HH45to54HI35Kto50K","P86HH45to54HI50Kto75K","P86HH45to54HI75Kto100K","P86HH45to54HI>100K","P86HH55to64HI<5K","P86HH55to64HI5Kto10K","P86HH55to64HI10Kto15K","P86HH55to64HI15Kto25K","P86HH55to64HI25Kto35K","P86HH55to64HI35Kto50K","P86HH55to64HI50Kto75K","P86HH55to64HI75Kto100K","P86HH55to64HI>100K","P86HH65to74HI<5K","P86HH65to74HI5Kto10K","P86HH65to74HI10Kto15K","P86HH65to74HI15Kto25K","P86HH65to74HI25Kto35K","P86HH65to74HI35Kto50K","P86HH65to74HI50Kto75K","P86HH65to74HI75Kto100K","P86HH65to74HI>100K","P86HH>75HI<5K","P86HH>75HI5Kto10K","P86HH>75HI10Kto15K","P86HH>75HI15Kto25K","P86HH>75HI25Kto35K","P86HH>75HI35Kto50K","P86HH>75HI50Kto75K","P86HH>75HI75Kto100K","P86HH>75HI>100K","P54SchlEnrlPrePrim","P54SchlEnrlElemThrHS","P54SchlEnrlCollege","P54NotEnrlInSch","P57Pop25andOver","P57LessThan9thGrade","P579thto12thNoDip","P57HSGrad","P57SomeCollege","P57AssocDeg","P57BachelDeg","P57GradorProfDeg","P57HSGradorHigher","P57CollGradorHigher","P42NativePop","P42ForeignBornPop","P42BornStateOfRes","P37NativePop2","P37ForeignBornPop2","P49DroveAlone","P49CarPooled","P49PublicTranspt","P49Walked","P49OtherMeans","P49WorkedAtHome","P80HHInc<10K","P80HHInc10to15K","P80HHInc15to25K","P80HHInc25to35K","P80HHInc35to50K","P80HHInc50to75K","P80HHInc75to100K","P80HHInc100to150K","P80HHInc>150K","H25YearStBlt89to90","H25YearStBlt85to88","H25YearStBlt80to84","H25YearStBlt70to79","H25YearStBlt60to69","H25YearStBlt50to59","H25YearStBlt40to49","H25YearStBlt39earlier","P107FamInc<10K","P107FamInc10to15K","P107FamInc15to25K","P107FamInc25to35K","P107FamInc35to50K","P107FamInc50to75K","P107FamInc75to100K","P107FamInc100to150K","P107FamInc>150K","P107AMedFamInc","P110NonFamInc<10K","P110NonFamInc10to15K","P110NonFamInc15to25K","P110NonFamInc25to35K","P110NonFamInc35to50K","P110NonFamInc50to75K","P110NonFamInc75to100K","P110NonFamInc100to150K","P110NonFamInc>150K","P110AMedNonFamInc","H16HU1Room","H16HU2Room","H16HU3Room","H16HU4Room","H16HU5Room","H16HU6Room","H16HU7Room","H16HU8Room","H16HU9+Room","H43GrossRnt<100","H43GrossRnt100to149","H43GrossRnt150to199","H43GrossRnt200to249","H43GrossRnt250to299","H43GrossRnt300to349","H43GrossRnt350to399","H43GrossRnt400to449","H43GrossRnt450to499","H43GrossRnt500to549","H43GrossRnt550to599","H43GrossRnt600to649","H43GrossRnt650to699","H43GrossRnt700to749","H43GrossRnt750to999","H43GrossRnt1000Plus","H43NoCashRent","H43MedGrossRent","H51GrossRnt<20PctHHInc","H51GrossRnt20to24PctHHInc","H51GrossRnt25to29PctHHInc","H51GrossRnt30to34PctHHInc","H51GrossRnt35PctOrMoreHHInc","H51GrossRntAsPctHHIncNotComp","H52HUwMtgMoOwnCst<200","H52HUwMtgMoOwnCst200to299","H52HUwMtgMoOwnCst300to399","H52HUwMtgMoOwnCst400to499","H52HUwMtgMoOwnCst500to599","H52HUwMtgMoOwnCst600to699","H52HUwMtgMoOwnCst700to799","H52HUwMtgMoOwnCst800to899","H52HUwMtgMoOwnCst900to999","H52HUwMtgMoOwnCst1000to1249","H52HUwMtgMoOwnCst1250to1499","H52HUwMtgMoOwnCst1500to1999","H52HUwMtgMoOwnCst2000More","H52HUwNoMtgMoOwnCst<100","H52HUwNoMtgMoOwnCst100to149","H52HUwNoMtgMoOwnCst150to199","H52HUwNoMtgMoOwnCst200to249","H52HUwNoMtgMoOwnCst250to299","H52HUwNoMtgMoOwnCst300to349","H52HUwNoMtgMoOwnCst350to399","H52HUwNoMtgMoOwnCst400More","H52AMedMoOwnCstWMortg","H52AMedMoOwnCstWNoMortg","H58HUwMtgMOC<20pHHInc","H58HUwMtgMOC20to24pHHInc","H58HUwMtgMOC25to29pHHInc","H58HUwMtgMOC30to34pHHInc","H58wMtgMOC>35pHHInc","H58HUwMtgMOCNotComp","H58HUwNoMtgMOC<20pHHInc","H58HUwNoMtgMOC20to24pHHInc","H58HUwNoMtgMOC25to29pHHInc","H58HUwNoMtgMOC30to34pHHInc","H58wNoMtgMOC>35pHHInc","H58HUwNoMtgMOCNotComp","H61OOHUVal<15k","H61OOHUVal15to19k","H61OOHUVal20to24k","H61OOHUVal25to29k","H61OOHUVal30to34k","H61OOHUVal35to39k","H61OOHUVal40to44k","H61OOHUVal45to49k","H61OOHUVal50to59k","H61OOHUVal60to74k","H61OOHUVal75to99k","H61OOHUVal100to124k","H61OOHUVal125to149k","H61OOHUVal150to174k","H61OOHUVal175to199k","H61OOHUVal200to249k","H61OOHUVal250to299k","H61OOHUVal300to399k","H61OOHUVal400to499k","H61OOHUVal500kOrMore","H61aOOHUMedVal"]
[]
[]
[]
["Other Demo Data -             Query Name: QryAllTowns-ACSDemographicSheet"]
["TOWN_NAME","FIPS","TOWNCNTY","COUSUB","POP80","POP90CDCEN","POP2000CEN","POP2010CEN","POP2020-Proj","POP2025-Proj","POP2030-Proj","SF80","MF80","MH80","SF81","MF81","MH81","SF82","MF82","MH82","SF83","MF83","MH83","SF84_OSP","MF84_OSP","MH84_OSP","SF85_OSP","MF85_OSP","MH85_OSP","SF86_OSP","MF86_OSP","MH86_OSP","SF87_OSP","MF87_OSP","MH87_OSP","SF88_OSP","MF88_OSP","MH88_OSP","SF89_OSP","MF89_OSP","MH89_OSP","SF90_OSP","MF90_OSP","MH90_OSP","SF91_OSP","MF91_OSP","MH91_OSP","SF92_OSP","MF92_OSP","MH92_OSP","SF93_OSP","MF93_OSP","MH93_OSP","SF94_OSP","MF94_OSP","MH94_OSP","SF95_OSP","MF95_OSP","MH95_OSP","SF96_OSP","MF96_OSP","MH96_OSP","SF97_OSP","MF97_OSP","MH97_OSP","SF98_OSP","MF98_OSP","MH98_OSP","SF99_OSP","MF99_OSP","MH99_OSP","SF00_OSP","MF00_OSP","MH00_OSP","SF01_OSP","MF01_OSP","MH01_OSP","SF02_OSP","MF02_OSP","MH02_OSP","SF03_OSP","MF03_OSP","MH03_OSP","SF04_OSP","MF04_OSP","MH04_OSP","SF05_OSP","MF05_OSP","MH05_OSP","SF06_OSP","MF06_OSP","MH06_OSP","SF07_OSP","MF07_OSP","MH07_OSP","SF08_OSP","MF08_OSP","MH08_OSP","SF09_OSP","MF09_OSP","MH09_OSP","SF10_OSP","MF10_OSP","MH10_OSP","SF11_OSP","MF11_OSP","MH11_OSP","SF12_OSP","MF12_OSP","MH12_OSP","SF13_OSP","MF13_OSP","MH13_OSP","SF14_OSP","MF14_OSP","MH14_OSP","SF15_OSP","MF15_OSP","MH15_OSP","SF16_OSP","MF16_OSP","MH16_OSP","SF17_OSP","MF17_OSP","MH17_OSP","SF18_OSP","MF18_OSP","MH18_OSP","COMMENTS","CNTY_CODE"]
[{"$f":"VLOOKUP(DropDownList!$B$47,CntyQuery!$A$117:$DZ$160,A$1)","v":"Acworth"},{"$f":"VLOOKUP(DropDownList!$B$47,CntyQuery!$A$117:$DZ$160,B$1)","v":19005},{"$f":"VLOOKUP(DropDownList!$B$47,CntyQuery!$A$117:$DZ$160,C$1)","v":1001},{"$f":"VLOOKUP(DropDownList!$B$47,CntyQuery!$A$117:$DZ$160,D$1)","v":"00260"},{"$f":"VLOOKUP(DropDownList!$B$47,CntyQuery!$A$117:$DZ$160,E$1)","v":590},{"$f":"VLOOKUP(DropDownList!$B$47,CntyQuery!$A$117:$DZ$160,F$1)","v":776},{"$f":"VLOOKUP(DropDownList!$B$47,CntyQuery!$A$117:$DZ$160,G$1)","v":836},{"$f":"VLOOKUP(DropDownList!$B$47,CntyQuery!$A$117:$DZ$160,H$1)","v":891},{"$f":"VLOOKUP(DropDownList!$B$47,CntyQuery!$A$117:$DZ$160,I$1)","v":937},{"$f":"VLOOKUP(DropDownList!$B$47,CntyQuery!$A$117:$DZ$160,J$1)","v":960},{"$f":"VLOOKUP(DropDownList!$B$47,CntyQuery!$A$117:$DZ$160,K$1)","v":989},{"$f":"VLOOKUP(DropDownList!$B$47,CntyQuery!$A$117:$DZ$160,L$1)","v":6},{"$f":"VLOOKUP(DropDownList!$B$47,CntyQuery!$A$117:$DZ$160,M$1)","v":0},{"$f":"VLOOKUP(DropDownList!$B$47,CntyQuery!$A$117:$DZ$160,N$1)","v":0},{"$f":"VLOOKUP(DropDownList!$B$47,CntyQuery!$A$117:$DZ$160,O$1)","v":4},{"$f":"VLOOKUP(DropDownList!$B$47,CntyQuery!$A$117:$DZ$160,P$1)","v":0},{"$f":"VLOOKUP(DropDownList!$B$47,CntyQuery!$A$117:$DZ$160,Q$1)","v":0},{"$f":"VLOOKUP(DropDownList!$B$47,CntyQuery!$A$117:$DZ$160,R$1)","v":3},{"$f":"VLOOKUP(DropDownList!$B$47,CntyQuery!$A$117:$DZ$160,S$1)","v":0},{"$f":"VLOOKUP(DropDownList!$B$47,CntyQuery!$A$117:$DZ$160,T$1)","v":0},{"$f":"VLOOKUP(DropDownList!$B$47,CntyQuery!$A$117:$DZ$160,U$1)","v":6},{"$f":"VLOOKUP(DropDownList!$B$47,CntyQuery!$A$117:$DZ$160,V$1)","v":0},{"$f":"VLOOKUP(DropDownList!$B$47,CntyQuery!$A$117:$DZ$160,W$1)","v":1},{"$f":"VLOOKUP(DropDownList!$B$47,CntyQuery!$A$117:$DZ$160,X$1)","v":3},{"$f":"VLOOKUP(DropDownList!$B$47,CntyQuery!$A$117:$DZ$160,Y$1)","v":0},{"$f":"VLOOKUP(DropDownList!$B$47,CntyQuery!$A$117:$DZ$160,Z$1)","v":0},{"$f":"VLOOKUP(DropDownList!$B$47,CntyQuery!$A$117:$DZ$160,AA$1)","v":3},{"$f":"VLOOKUP(DropDownList!$B$47,CntyQuery!$A$117:$DZ$160,AB$1)","v":0},{"$f":"VLOOKUP(DropDownList!$B$47,CntyQuery!$A$117:$DZ$160,AC$1)","v":1},{"$f":"VLOOKUP(DropDownList!$B$47,CntyQuery!$A$117:$DZ$160,AD$1)","v":2},{"$f":"VLOOKUP(DropDownList!$B$47,CntyQuery!$A$117:$DZ$160,AE$1)","v":0},{"$f":"VLOOKUP(DropDownList!$B$47,CntyQuery!$A$117:$DZ$160,AF$1)","v":1},{"$f":"VLOOKUP(DropDownList!$B$47,CntyQuery!$A$117:$DZ$160,AG$1)","v":4},{"$f":"VLOOKUP(DropDownList!$B$47,CntyQuery!$A$117:$DZ$160,AH$1)","v":0},{"$f":"VLOOKUP(DropDownList!$B$47,CntyQuery!$A$117:$DZ$160,AI$1)","v":1},{"$f":"VLOOKUP(DropDownList!$B$47,CntyQuery!$A$117:$DZ$160,AJ$1)","v":1},{"$f":"VLOOKUP(DropDownList!$B$47,CntyQuery!$A$117:$DZ$160,AK$1)","v":0},{"$f":"VLOOKUP(DropDownList!$B$47,CntyQuery!$A$117:$DZ$160,AL$1)","v":1},{"$f":"VLOOKUP(DropDownList!$B$47,CntyQuery!$A$117:$DZ$160,AM$1)","v":3},{"$f":"VLOOKUP(DropDownList!$B$47,CntyQuery!$A$117:$DZ$160,AN$1)","v":0},{"$f":"VLOOKUP(DropDownList!$B$47,CntyQuery!$A$117:$DZ$160,AO$1)","v":5},{"$f":"VLOOKUP(DropDownList!$B$47,CntyQuery!$A$117:$DZ$160,AP$1)","v":0},{"$f":"VLOOKUP(DropDownList!$B$47,CntyQuery!$A$117:$DZ$160,AQ$1)","v":0},{"$f":"VLOOKUP(DropDownList!$B$47,CntyQuery!$A$117:$DZ$160,AR$1)","v":1},{"$f":"VLOOKUP(DropDownList!$B$47,CntyQuery!$A$117:$DZ$160,AS$1)","v":1},{"$f":"VLOOKUP(DropDownList!$B$47,CntyQuery!$A$117:$DZ$160,AT$1)","v":0},{"$f":"VLOOKUP(DropDownList!$B$47,CntyQuery!$A$117:$DZ$160,AU$1)","v":1},{"$f":"VLOOKUP(DropDownList!$B$47,CntyQuery!$A$117:$DZ$160,AV$1)","v":0},{"$f":"VLOOKUP(DropDownList!$B$47,CntyQuery!$A$117:$DZ$160,AW$1)","v":0},{"$f":"VLOOKUP(DropDownList!$B$47,CntyQuery!$A$117:$DZ$160,AX$1)","v":1},{"$f":"VLOOKUP(DropDownList!$B$47,CntyQuery!$A$117:$DZ$160,AY$1)","v":1},{"$f":"VLOOKUP(DropDownList!$B$47,CntyQuery!$A$117:$DZ$160,AZ$1)","v":0},{"$f":"VLOOKUP(DropDownList!$B$47,CntyQuery!$A$117:$DZ$160,BA$1)","v":0},{"$f":"VLOOKUP(DropDownList!$B$47,CntyQuery!$A$117:$DZ$160,BB$1)","v":2},{"$f":"VLOOKUP(DropDownList!$B$47,CntyQuery!$A$117:$DZ$160,BC$1)","v":1},{"$f":"VLOOKUP(DropDownList!$B$47,CntyQuery!$A$117:$DZ$160,BD$1)","v":1},{"$f":"VLOOKUP(DropDownList!$B$47,CntyQuery!$A$117:$DZ$160,BE$1)","v":2},{"$f":"VLOOKUP(DropDownList!$B$47,CntyQuery!$A$117:$DZ$160,BF$1)","v":0},{"$f":"VLOOKUP(DropDownList!$B$47,CntyQuery!$A$117:$DZ$160,BG$1)","v":0},{"$f":"VLOOKUP(DropDownList!$B$47,CntyQuery!$A$117:$DZ$160,BH$1)","v":2},{"$f":"VLOOKUP(DropDownList!$B$47,CntyQuery!$A$117:$DZ$160,BI$1)","v":0},{"$f":"VLOOKUP(DropDownList!$B$47,CntyQuery!$A$117:$DZ$160,BJ$1)","v":2},{"$f":"VLOOKUP(DropDownList!$B$47,CntyQuery!$A$117:$DZ$160,BK$1)","v":3},{"$f":"VLOOKUP(DropDownList!$B$47,CntyQuery!$A$117:$DZ$160,BL$1)","v":0},{"$f":"VLOOKUP(DropDownList!$B$47,CntyQuery!$A$117:$DZ$160,BM$1)","v":0},{"$f":"VLOOKUP(DropDownList!$B$47,CntyQuery!$A$117:$DZ$160,BN$1)","v":4},{"$f":"VLOOKUP(DropDownList!$B$47,CntyQuery!$A$117:$DZ$160,BO$1)","v":0},{"$f":"VLOOKUP(DropDownList!$B$47,CntyQuery!$A$117:$DZ$160,BP$1)","v":2},{"$f":"VLOOKUP(DropDownList!$B$47,CntyQuery!$A$117:$DZ$160,BQ$1)","v":0},{"$f":"VLOOKUP(DropDownList!$B$47,CntyQuery!$A$117:$DZ$160,BR$1)","v":0},{"$f":"VLOOKUP(DropDownList!$B$47,CntyQuery!$A$117:$DZ$160,BS$1)","v":1},{"$f":"VLOOKUP(DropDownList!$B$47,CntyQuery!$A$117:$DZ$160,BT$1)","v":0},{"$f":"VLOOKUP(DropDownList!$B$47,CntyQuery!$A$117:$DZ$160,BU$1)","v":0},{"$f":"VLOOKUP(DropDownList!$B$47,CntyQuery!$A$117:$DZ$160,BV$1)","v":1},{"$f":"VLOOKUP(DropDownList!$B$47,CntyQuery!$A$117:$DZ$160,BW$1)","v":2},{"$f":"VLOOKUP(DropDownList!$B$47,CntyQuery!$A$117:$DZ$160,BX$1)","v":0},{"$f":"VLOOKUP(DropDownList!$B$47,CntyQuery!$A$117:$DZ$160,BY$1)","v":2},{"$f":"VLOOKUP(DropDownList!$B$47,CntyQuery!$A$117:$DZ$160,BZ$1)","v":6},{"$f":"VLOOKUP(DropDownList!$B$47,CntyQuery!$A$117:$DZ$160,CA$1)","v":0},{"$f":"VLOOKUP(DropDownList!$B$47,CntyQuery!$A$117:$DZ$160,CB$1)","v":0},{"$f":"VLOOKUP(DropDownList!$B$47,CntyQuery!$A$117:$DZ$160,CC$1)","v":11},{"$f":"VLOOKUP(DropDownList!$B$47,CntyQuery!$A$117:$DZ$160,CD$1)","v":0},{"$f":"VLOOKUP(DropDownList!$B$47,CntyQuery!$A$117:$DZ$160,CE$1)","v":2},{"$f":"VLOOKUP(DropDownList!$B$47,CntyQuery!$A$117:$DZ$160,CF$1)","v":11},{"$f":"VLOOKUP(DropDownList!$B$47,CntyQuery!$A$117:$DZ$160,CG$1)","v":0},{"$f":"VLOOKUP(DropDownList!$B$47,CntyQuery!$A$117:$DZ$160,CH$1)","v":1},{"$f":"VLOOKUP(DropDownList!$B$47,CntyQuery!$A$117:$DZ$160,CI$1)","v":10},{"$f":"VLOOKUP(DropDownList!$B$47,CntyQuery!$A$117:$DZ$160,CJ$1)","v":0},{"$f":"VLOOKUP(DropDownList!$B$47,CntyQuery!$A$117:$DZ$160,CK$1)","v":0},{"$f":"VLOOKUP(DropDownList!$B$47,CntyQuery!$A$117:$DZ$160,CL$1)","v":10},{"$f":"VLOOKUP(DropDownList!$B$47,CntyQuery!$A$117:$DZ$160,CM$1)","v":0},{"$f":"VLOOKUP(DropDownList!$B$47,CntyQuery!$A$117:$DZ$160,CN$1)","v":0},{"$f":"VLOOKUP(DropDownList!$B$47,CntyQuery!$A$117:$DZ$160,CO$1)","v":9},{"$f":"VLOOKUP(DropDownList!$B$47,CntyQuery!$A$117:$DZ$160,CP$1)","v":0},{"$f":"VLOOKUP(DropDownList!$B$47,CntyQuery!$A$117:$DZ$160,CQ$1)","v":0},{"$f":"VLOOKUP(DropDownList!$B$47,CntyQuery!$A$117:$DZ$160,CR$1)","v":3},{"$f":"VLOOKUP(DropDownList!$B$47,CntyQuery!$A$117:$DZ$160,CS$1)","v":0},{"$f":"VLOOKUP(DropDownList!$B$47,CntyQuery!$A$117:$DZ$160,CT$1)","v":2},{"$f":"VLOOKUP(DropDownList!$B$47,CntyQuery!$A$117:$DZ$160,CU$1)","v":4},{"$f":"VLOOKUP(DropDownList!$B$47,CntyQuery!$A$117:$DZ$160,CV$1)","v":0},{"$f":"VLOOKUP(DropDownList!$B$47,CntyQuery!$A$117:$DZ$160,CW$1)","v":0},{"$f":"VLOOKUP(DropDownList!$B$47,CntyQuery!$A$117:$DZ$160,CX$1)","v":5},{"$f":"VLOOKUP(DropDownList!$B$47,CntyQuery!$A$117:$DZ$160,CY$1)","v":0},{"$f":"VLOOKUP(DropDownList!$B$47,CntyQuery!$A$117:$DZ$160,CZ$1)","v":0},{"$f":"VLOOKUP(DropDownList!$B$47,CntyQuery!$A$117:$DZ$160,DA$1)","v":4},{"$f":"VLOOKUP(DropDownList!$B$47,CntyQuery!$A$117:$DZ$160,DB$1)","v":0},{"$f":"VLOOKUP(DropDownList!$B$47,CntyQuery!$A$117:$DZ$160,DC$1)","v":0},{"$f":"VLOOKUP(DropDownList!$B$47,CntyQuery!$A$117:$DZ$160,DD$1)","v":0},{"$f":"VLOOKUP(DropDownList!$B$47,CntyQuery!$A$117:$DZ$160,DE$1)","v":0},{"$f":"VLOOKUP(DropDownList!$B$47,CntyQuery!$A$117:$DZ$160,DF$1)","v":0},{"$f":"VLOOKUP(DropDownList!$B$47,CntyQuery!$A$117:$DZ$160,DG$1)","v":1},{"$f":"VLOOKUP(DropDownList!$B$47,CntyQuery!$A$117:$DZ$160,DH$1)","v":0},{"$f":"VLOOKUP(DropDownList!$B$47,CntyQuery!$A$117:$DZ$160,DI$1)","v":2},{"$f":"VLOOKUP(DropDownList!$B$47,CntyQuery!$A$117:$DZ$160,DJ$1)","v":0},{"$f":"VLOOKUP(DropDownList!$B$47,CntyQuery!$A$117:$DZ$160,DK$1)","v":0},{"$f":"VLOOKUP(DropDownList!$B$47,CntyQuery!$A$117:$DZ$160,DL$1)","v":0},{"$f":"VLOOKUP(DropDownList!$B$47,CntyQuery!$A$117:$DZ$160,DM$1)","v":1},{"$f":"VLOOKUP(DropDownList!$B$47,CntyQuery!$A$117:$DZ$160,DN$1)","v":0},{"$f":"VLOOKUP(DropDownList!$B$47,CntyQuery!$A$117:$DZ$160,DO$1)","v":0},{"$f":"VLOOKUP(DropDownList!$B$47,CntyQuery!$A$117:$DZ$160,DP$1)","v":0},{"$f":"VLOOKUP(DropDownList!$B$47,CntyQuery!$A$117:$DZ$160,DQ$1)","v":0},{"$f":"VLOOKUP(DropDownList!$B$47,CntyQuery!$A$117:$DZ$160,DR$1)","v":0},{"$f":"VLOOKUP(DropDownList!$B$47,CntyQuery!$A$117:$DZ$160,DS$1)","v":0},{"$f":"VLOOKUP(DropDownList!$B$47,CntyQuery!$A$117:$DZ$160,DT$1)","v":0},{"$f":"VLOOKUP(DropDownList!$B$47,CntyQuery!$A$117:$DZ$160,DU$1)","v":0},{"$f":"VLOOKUP(DropDownList!$B$47,CntyQuery!$A$117:$DZ$160,DV$1)","v":3},{"$f":"VLOOKUP(DropDownList!$B$47,CntyQuery!$A$117:$DZ$160,DW$1)","v":0},{"$f":"VLOOKUP(DropDownList!$B$47,CntyQuery!$A$117:$DZ$160,DX$1)","v":2},{"$f":"VLOOKUP(DropDownList!$B$47,CntyQuery!$A$117:$DZ$160,DY$1)","v":1}]
[]
[]
["NH Employment Data","Query Name: DPQryEmploymentByCnty"]
["AreaName","COUNTYCODE","TOTP & G2001","TOT2001","GOODPRO2001","SERVICEPROMAN2001","WAGEP & G2001","WAGETOT2001","WAGEGOODPRO2001","WAGESERVICEPRO2001","TOTP & G2002","TOT2002","GOODPRO2002","SERVICEPROMAN2002","WAGEP & G2002","WAGETOT2002","WAGEGOODPRO2002","WAGESERVICEPRO2002","TOTP & G2003","TOT2003","GOODPRO2003","SERVICEPROMAN2003","WAGEP & G2003","WAGETOT2003","WAGEGOODPRO2003","WAGESERVICEPRO2003","TOTP & G2004","TOT2004","GOODPRO2004","SERVICEPROMAN2004","WAGEP & G2004","WAGETOT2004","WAGEGOODPRO2004","WAGESERVICEPRO2004","TOTP & G2005","TOT2005","GOODPRO2005","SERVICEPROMAN2005","WAGEP & G2005","WAGETOT2005","WAGEGOODPRO2005","WAGESERVICEPRO2005","TOTP & G2006","TOT2006","GOODPRO2006","SERVICEPROMAN2006","WAGEP & G2006","WAGETOT2006","WAGEGOODPRO2006","WAGESERVICEPRO2006","TOTP & G2007","TOT2007","GOODPRO2007","SERVICEPROMAN2007","WAGEP & G2007","WAGETOT2007","WAGEGOODPRO2007","WAGESERVICEPRO2007","TOTP & G2008","TOT2008","GOODPRO2008","SERVICEPROMAN2008","WAGEP & G2008","WAGETOT2008","WAGEGOODPRO2008","WAGESERVICEPRO2008","TOTP & G2009","TOT2009","GOODPRO2009","SERVICEPROMAN2009","WAGEP & G2009","WAGETOT2009","WAGEGOODPRO2009","WAGESERVICEPRO2009","TOTP & G2010","TOT2010","GOODPRO2010","SERVICEPROMAN2010","WAGEP & G2010","WAGETOT2010","WAGEGOODPRO2010","WAGESERVICEPRO2010","TOTP & G2011","TOT2011","GOODPRO2011","SERVICEPROMAN2011","WAGEP & G2011","WAGETOT2011","WAGEGOODPRO2011","WAGESERVICEPRO2011","TOTP & G2012","TOT2012","GOODPRO2012","SERVICEPROMAN2012","WAGEP & G2012","WAGETOT2012","WAGEGOODPRO2012","WAGESERVICEPRO2012","TOTP & G2013","TOT2013","GOODPRO2013","SERVICEPROMAN2013","WAGEP & G2013","WAGETOT2013","WAGEGOODPRO2013","WAGESERVICEPRO2013","TOTP & G2014","TOT2014","GOODPRO2014","SERVICEPROMAN2014","WAGEP & G2014","WAGETOT2014","WAGEGOODPRO2014","WAGESERVICEPRO2014","TOTP & G2015","TOT2015","GOODPRO2015","SERVICEPROMAN2015","WAGEP & G2015","WAGETOT2015","WAGEGOODPRO2015","WAGESERVICEPRO2015","TOTP & G2016","TOT2016","GOODPRO2016","SERVICEPROMAN2016","WAGEP & G2016","WAGETOT2016","WAGEGOODPRO2016","WAGESERVICEPRO2016","TOTP & G2017","TOT2017","GOODPRO2017","SERVICEPROMAN2017","WAGEP & G2017","WAGETOT2017","WAGEGOODPRO2017","WAGESERVICEPRO2017","TOTP & G2018","TOT2018","GOODPRO2018","SERVICEPROMAN2018","WAGEP & G2018","WAGETOT2018","WAGEGOODPRO2018","WAGESERVICEPRO2018","TOTP & G2019","TOT2019","TOTGov2019","GOODPRO2019","SERVICEPROMAN2019","WAGEP & G2019","WAGETOT2019","WAGEGov2019","WAGEGOODPRO2019","WAGESERVICEPRO2019","SummaryLevel"]
[{"$f":"VLOOKUP(DropDownList!$B$47,CntyQuery!$A$171:$FZ$185,A$1)","v":"Acworth"},{"$f":"VLOOKUP(DropDownList!$B$47,CntyQuery!$A$171:$FZ$185,B$1)","v":10},{"$f":"VLOOKUP(DropDownList!$B$47,CntyQuery!$A$171:$FZ$185,C$1)","v":89},{"$f":"VLOOKUP(DropDownList!$B$47,CntyQuery!$A$171:$FZ$185,D$1)","v":72},{"$f":"VLOOKUP(DropDownList!$B$47,CntyQuery!$A$171:$FZ$185,E$1)","v":64},{"$f":"VLOOKUP(DropDownList!$B$47,CntyQuery!$A$171:$FZ$185,F$1)","v":7},{"$f":"VLOOKUP(DropDownList!$B$47,CntyQuery!$A$171:$FZ$185,G$1)","v":578.72},{"$f":"VLOOKUP(DropDownList!$B$47,CntyQuery!$A$171:$FZ$185,H$1)","v":624},{"$f":"VLOOKUP(DropDownList!$B$47,CntyQuery!$A$171:$FZ$185,I$1)","v":551.35},{"$f":"VLOOKUP(DropDownList!$B$47,CntyQuery!$A$171:$FZ$185,J$1)","v":1269.44},{"$f":"VLOOKUP(DropDownList!$B$47,CntyQuery!$A$171:$FZ$185,K$1)","v":94},{"$f":"VLOOKUP(DropDownList!$B$47,CntyQuery!$A$171:$FZ$185,L$1)","v":77},{"$f":"VLOOKUP(DropDownList!$B$47,CntyQuery!$A$171:$FZ$185,M$1)","v":70},{"$f":"VLOOKUP(DropDownList!$B$47,CntyQuery!$A$171:$FZ$185,N$1)","v":7},{"$f":"VLOOKUP(DropDownList!$B$47,CntyQuery!$A$171:$FZ$185,O$1)","v":504.34},{"$f":"VLOOKUP(DropDownList!$B$47,CntyQuery!$A$171:$FZ$185,P$1)","v":528.30999999999995},{"$f":"VLOOKUP(DropDownList!$B$47,CntyQuery!$A$171:$FZ$185,Q$1)","v":530.91999999999996},{"$f":"VLOOKUP(DropDownList!$B$47,CntyQuery!$A$171:$FZ$185,R$1)","v":500.18},{"$f":"VLOOKUP(DropDownList!$B$47,CntyQuery!$A$171:$FZ$185,S$1)","v":97},{"$f":"VLOOKUP(DropDownList!$B$47,CntyQuery!$A$171:$FZ$185,T$1)","v":78},{"$f":"VLOOKUP(DropDownList!$B$47,CntyQuery!$A$171:$FZ$185,U$1)","v":74},{"$f":"VLOOKUP(DropDownList!$B$47,CntyQuery!$A$171:$FZ$185,V$1)","v":5},{"$f":"VLOOKUP(DropDownList!$B$47,CntyQuery!$A$171:$FZ$185,W$1)","v":538.22},{"$f":"VLOOKUP(DropDownList!$B$47,CntyQuery!$A$171:$FZ$185,X$1)","v":566.1},{"$f":"VLOOKUP(DropDownList!$B$47,CntyQuery!$A$171:$FZ$185,Y$1)","v":581.54999999999995},{"$f":"VLOOKUP(DropDownList!$B$47,CntyQuery!$A$171:$FZ$185,Z$1)","v":322.35000000000002},{"$f":"VLOOKUP(DropDownList!$B$47,CntyQuery!$A$171:$FZ$185,AA$1)","v":98},{"$f":"VLOOKUP(DropDownList!$B$47,CntyQuery!$A$171:$FZ$185,AB$1)","v":75},{"$f":"VLOOKUP(DropDownList!$B$47,CntyQuery!$A$171:$FZ$185,AC$1)","v":"n"},{"$f":"VLOOKUP(DropDownList!$B$47,CntyQuery!$A$171:$FZ$185,AD$1)","v":"n"},{"$f":"VLOOKUP(DropDownList!$B$47,CntyQuery!$A$171:$FZ$185,AE$1)","v":548.75},{"$f":"VLOOKUP(DropDownList!$B$47,CntyQuery!$A$171:$FZ$185,AF$1)","v":614.73},{"$f":"VLOOKUP(DropDownList!$B$47,CntyQuery!$A$171:$FZ$185,AG$1)","v":"n"},{"$f":"VLOOKUP(DropDownList!$B$47,CntyQuery!$A$171:$FZ$185,AH$1)","v":"n"},{"$f":"VLOOKUP(DropDownList!$B$47,CntyQuery!$A$171:$FZ$185,AI$1)","v":102},{"$f":"VLOOKUP(DropDownList!$B$47,CntyQuery!$A$171:$FZ$185,AJ$1)","v":81},{"$f":"VLOOKUP(DropDownList!$B$47,CntyQuery!$A$171:$FZ$185,AK$1)","v":76},{"$f":"VLOOKUP(DropDownList!$B$47,CntyQuery!$A$171:$FZ$185,AL$1)","v":6},{"$f":"VLOOKUP(DropDownList!$B$47,CntyQuery!$A$171:$FZ$185,AM$1)","v":582.30999999999995},{"$f":"VLOOKUP(DropDownList!$B$47,CntyQuery!$A$171:$FZ$185,AN$1)","v":632.73},{"$f":"VLOOKUP(DropDownList!$B$47,CntyQuery!$A$171:$FZ$185,AO$1)","v":606.52},{"$f":"VLOOKUP(DropDownList!$B$47,CntyQuery!$A$171:$FZ$185,AP$1)","v":993.67},{"$f":"VLOOKUP(DropDownList!$B$47,CntyQuery!$A$171:$FZ$185,AQ$1)","v":99},{"$f":"VLOOKUP(DropDownList!$B$47,CntyQuery!$A$171:$FZ$185,AR$1)","v":78},{"$f":"VLOOKUP(DropDownList!$B$47,CntyQuery!$A$171:$FZ$185,AS$1)","v":72},{"$f":"VLOOKUP(DropDownList!$B$47,CntyQuery!$A$171:$FZ$185,AT$1)","v":6},{"$f":"VLOOKUP(DropDownList!$B$47,CntyQuery!$A$171:$FZ$185,AU$1)","v":663.38},{"$f":"VLOOKUP(DropDownList!$B$47,CntyQuery!$A$171:$FZ$185,AV$1)","v":744.67},{"$f":"VLOOKUP(DropDownList!$B$47,CntyQuery!$A$171:$FZ$185,AW$1)","v":654.92999999999995},{"$f":"VLOOKUP(DropDownList!$B$47,CntyQuery!$A$171:$FZ$185,AX$1)","v":1788.76},{"$f":"VLOOKUP(DropDownList!$B$47,CntyQuery!$A$171:$FZ$185,AY$1)","v":97},{"$f":"VLOOKUP(DropDownList!$B$47,CntyQuery!$A$171:$FZ$185,AZ$1)","v":74},{"$f":"VLOOKUP(DropDownList!$B$47,CntyQuery!$A$171:$FZ$185,BA$1)","v":68},{"$f":"VLOOKUP(DropDownList!$B$47,CntyQuery!$A$171:$FZ$185,BB$1)","v":7},{"$f":"VLOOKUP(DropDownList!$B$47,CntyQuery!$A$171:$FZ$185,BC$1)","v":653},{"$f":"VLOOKUP(DropDownList!$B$47,CntyQuery!$A$171:$FZ$185,BD$1)","v":733.26},{"$f":"VLOOKUP(DropDownList!$B$47,CntyQuery!$A$171:$FZ$185,BE$1)","v":658.76},{"$f":"VLOOKUP(DropDownList!$B$47,CntyQuery!$A$171:$FZ$185,BF$1)","v":1508.89},{"$f":"VLOOKUP(DropDownList!$B$47,CntyQuery!$A$171:$FZ$185,BG$1)","v":88},{"$f":"VLOOKUP(DropDownList!$B$47,CntyQuery!$A$171:$FZ$185,BH$1)","v":70},{"$f":"VLOOKUP(DropDownList!$B$47,CntyQuery!$A$171:$FZ$185,BI$1)","v":65},{"$f":"VLOOKUP(DropDownList!$B$47,CntyQuery!$A$171:$FZ$185,BJ$1)","v":5},{"$f":"VLOOKUP(DropDownList!$B$47,CntyQuery!$A$171:$FZ$185,BK$1)","v":694.94},{"$f":"VLOOKUP(DropDownList!$B$47,CntyQuery!$A$171:$FZ$185,BL$1)","v":770.13},{"$f":"VLOOKUP(DropDownList!$B$47,CntyQuery!$A$171:$FZ$185,BM$1)","v":770.11},{"$f":"VLOOKUP(DropDownList!$B$47,CntyQuery!$A$171:$FZ$185,BN$1)","v":770.35},{"$f":"VLOOKUP(DropDownList!$B$47,CntyQuery!$A$171:$FZ$185,BO$1)","v":107},{"$f":"VLOOKUP(DropDownList!$B$47,CntyQuery!$A$171:$FZ$185,BP$1)","v":92},{"$f":"VLOOKUP(DropDownList!$B$47,CntyQuery!$A$171:$FZ$185,BQ$1)","v":"n"},{"$f":"VLOOKUP(DropDownList!$B$47,CntyQuery!$A$171:$FZ$185,BR$1)","v":"n"},{"$f":"VLOOKUP(DropDownList!$B$47,CntyQuery!$A$171:$FZ$185,BS$1)","v":718.2},{"$f":"VLOOKUP(DropDownList!$B$47,CntyQuery!$A$171:$FZ$185,BT$1)","v":782.26},{"$f":"VLOOKUP(DropDownList!$B$47,CntyQuery!$A$171:$FZ$185,BU$1)","v":"n"},{"$f":"VLOOKUP(DropDownList!$B$47,CntyQuery!$A$171:$FZ$185,BV$1)","v":"n"},{"$f":"VLOOKUP(DropDownList!$B$47,CntyQuery!$A$171:$FZ$185,BW$1)","v":83},{"$f":"VLOOKUP(DropDownList!$B$47,CntyQuery!$A$171:$FZ$185,BX$1)","v":69},{"$f":"VLOOKUP(DropDownList!$B$47,CntyQuery!$A$171:$FZ$185,BY$1)","v":64},{"$f":"VLOOKUP(DropDownList!$B$47,CntyQuery!$A$171:$FZ$185,BZ$1)","v":5},{"$f":"VLOOKUP(DropDownList!$B$47,CntyQuery!$A$171:$FZ$185,CA$1)","v":974.89},{"$f":"VLOOKUP(DropDownList!$B$47,CntyQuery!$A$171:$FZ$185,CB$1)","v":1111.9100000000001},{"$f":"VLOOKUP(DropDownList!$B$47,CntyQuery!$A$171:$FZ$185,CC$1)","v":1138.97},{"$f":"VLOOKUP(DropDownList!$B$47,CntyQuery!$A$171:$FZ$185,CD$1)","v":746.85},{"$f":"VLOOKUP(DropDownList!$B$47,CntyQuery!$A$171:$FZ$185,CE$1)","v":91},{"$f":"VLOOKUP(DropDownList!$B$47,CntyQuery!$A$171:$FZ$185,CF$1)","v":77},{"$f":"VLOOKUP(DropDownList!$B$47,CntyQuery!$A$171:$FZ$185,CG$1)","v":69},{"$f":"VLOOKUP(DropDownList!$B$47,CntyQuery!$A$171:$FZ$185,CH$1)","v":7},{"$f":"VLOOKUP(DropDownList!$B$47,CntyQuery!$A$171:$FZ$185,CI$1)","v":637.09},{"$f":"VLOOKUP(DropDownList!$B$47,CntyQuery!$A$171:$FZ$185,CJ$1)","v":698.52},{"$f":"VLOOKUP(DropDownList!$B$47,CntyQuery!$A$171:$FZ$185,CK$1)","v":723.71},{"$f":"VLOOKUP(DropDownList!$B$47,CntyQuery!$A$171:$FZ$185,CL$1)","v":463.81},{"$f":"VLOOKUP(DropDownList!$B$47,CntyQuery!$A$171:$FZ$185,CM$1)","v":95},{"$f":"VLOOKUP(DropDownList!$B$47,CntyQuery!$A$171:$FZ$185,CN$1)","v":81},{"$f":"VLOOKUP(DropDownList!$B$47,CntyQuery!$A$171:$FZ$185,CO$1)","v":73},{"$f":"VLOOKUP(DropDownList!$B$47,CntyQuery!$A$171:$FZ$185,CP$1)","v":8},{"$f":"VLOOKUP(DropDownList!$B$47,CntyQuery!$A$171:$FZ$185,CQ$1)","v":870.72},{"$f":"VLOOKUP(DropDownList!$B$47,CntyQuery!$A$171:$FZ$185,CR$1)","v":957.56},{"$f":"VLOOKUP(DropDownList!$B$47,CntyQuery!$A$171:$FZ$185,CS$1)","v":1035.69},{"$f":"VLOOKUP(DropDownList!$B$47,CntyQuery!$A$171:$FZ$185,CT$1)","v":253.57},{"$f":"VLOOKUP(DropDownList!$B$47,CntyQuery!$A$171:$FZ$185,CU$1)","v":103},{"$f":"VLOOKUP(DropDownList!$B$47,CntyQuery!$A$171:$FZ$185,CV$1)","v":84},{"$f":"VLOOKUP(DropDownList!$B$47,CntyQuery!$A$171:$FZ$185,CW$1)","v":"n"},{"$f":"VLOOKUP(DropDownList!$B$47,CntyQuery!$A$171:$FZ$185,CX$1)","v":"n"},{"$f":"VLOOKUP(DropDownList!$B$47,CntyQuery!$A$171:$FZ$185,CY$1)","v":836.51},{"$f":"VLOOKUP(DropDownList!$B$47,CntyQuery!$A$171:$FZ$185,CZ$1)","v":923.65},{"$f":"VLOOKUP(DropDownList!$B$47,CntyQuery!$A$171:$FZ$185,DA$1)","v":"n"},{"$f":"VLOOKUP(DropDownList!$B$47,CntyQuery!$A$171:$FZ$185,DB$1)","v":"n"},{"$f":"VLOOKUP(DropDownList!$B$47,CntyQuery!$A$171:$FZ$185,DC$1)","v":104},{"$f":"VLOOKUP(DropDownList!$B$47,CntyQuery!$A$171:$FZ$185,DD$1)","v":86},{"$f":"VLOOKUP(DropDownList!$B$47,CntyQuery!$A$171:$FZ$185,DE$1)","v":73},{"$f":"VLOOKUP(DropDownList!$B$47,CntyQuery!$A$171:$FZ$185,DF$1)","v":13},{"$f":"VLOOKUP(DropDownList!$B$47,CntyQuery!$A$171:$FZ$185,DG$1)","v":935.72},{"$f":"VLOOKUP(DropDownList!$B$47,CntyQuery!$A$171:$FZ$185,DH$1)","v":1034.3499999999999},{"$f":"VLOOKUP(DropDownList!$B$47,CntyQuery!$A$171:$FZ$185,DI$1)","v":1150.56},{"$f":"VLOOKUP(DropDownList!$B$47,CntyQuery!$A$171:$FZ$185,DJ$1)","v":369.51},{"$f":"VLOOKUP(DropDownList!$B$47,CntyQuery!$A$171:$FZ$185,DK$1)","v":"106"},{"$f":"VLOOKUP(DropDownList!$B$47,CntyQuery!$A$171:$FZ$185,DL$1)","v":"89"},{"$f":"VLOOKUP(DropDownList!$B$47,CntyQuery!$A$171:$FZ$185,DM$1)","v":"73"},{"$f":"VLOOKUP(DropDownList!$B$47,CntyQuery!$A$171:$FZ$185,DN$1)","v":"16"},{"$f":"VLOOKUP(DropDownList!$B$47,CntyQuery!$A$171:$FZ$185,DO$1)","v":"916.47"},{"$f":"VLOOKUP(DropDownList!$B$47,CntyQuery!$A$171:$FZ$185,DP$1)","v":"992.96"},{"$f":"VLOOKUP(DropDownList!$B$47,CntyQuery!$A$171:$FZ$185,DQ$1)","v":"1116.08"},{"$f":"VLOOKUP(DropDownList!$B$47,CntyQuery!$A$171:$FZ$185,DR$1)","v":"422.03"},{"$f":"VLOOKUP(DropDownList!$B$47,CntyQuery!$A$171:$FZ$185,DS$1)","v":124},{"$f":"VLOOKUP(DropDownList!$B$47,CntyQuery!$A$171:$FZ$185,DT$1)","v":107},{"$f":"VLOOKUP(DropDownList!$B$47,CntyQuery!$A$171:$FZ$185,DU$1)","v":82},{"$f":"VLOOKUP(DropDownList!$B$47,CntyQuery!$A$171:$FZ$185,DV$1)","v":25},{"$f":"VLOOKUP(DropDownList!$B$47,CntyQuery!$A$171:$FZ$185,DW$1)","v":673.64},{"$f":"VLOOKUP(DropDownList!$B$47,CntyQuery!$A$171:$FZ$185,DX$1)","v":698.45},{"$f":"VLOOKUP(DropDownList!$B$47,CntyQuery!$A$171:$FZ$185,DY$1)","v":783.75},{"$f":"VLOOKUP(DropDownList!$B$47,CntyQuery!$A$171:$FZ$185,DZ$1)","v":422.29},{"$f":"VLOOKUP(DropDownList!$B$47,CntyQuery!$A$171:$FZ$185,EA$1)","v":119},{"$f":"VLOOKUP(DropDownList!$B$47,CntyQuery!$A$171:$FZ$185,EB$1)","v":100},{"$f":"VLOOKUP(DropDownList!$B$47,CntyQuery!$A$171:$FZ$185,EC$1)","v":80},{"$f":"VLOOKUP(DropDownList!$B$47,CntyQuery!$A$171:$FZ$185,ED$1)","v":20},{"$f":"VLOOKUP(DropDownList!$B$47,CntyQuery!$A$171:$FZ$185,EE$1)","v":727.47},{"$f":"VLOOKUP(DropDownList!$B$47,CntyQuery!$A$171:$FZ$185,EF$1)","v":767.13},{"$f":"VLOOKUP(DropDownList!$B$47,CntyQuery!$A$171:$FZ$185,EG$1)","v":855.47},{"$f":"VLOOKUP(DropDownList!$B$47,CntyQuery!$A$171:$FZ$185,EH$1)","v":416.7},{"$f":"VLOOKUP(DropDownList!$B$47,CntyQuery!$A$171:$FZ$185,EI$1)","v":117},{"$f":"VLOOKUP(DropDownList!$B$47,CntyQuery!$A$171:$FZ$185,EJ$1)","v":98},{"$f":"VLOOKUP(DropDownList!$B$47,CntyQuery!$A$171:$FZ$185,EK$1)","v":86},{"$f":"VLOOKUP(DropDownList!$B$47,CntyQuery!$A$171:$FZ$185,EL$1)","v":12},{"$f":"VLOOKUP(DropDownList!$B$47,CntyQuery!$A$171:$FZ$185,EM$1)","v":727.25},{"$f":"VLOOKUP(DropDownList!$B$47,CntyQuery!$A$171:$FZ$185,EN$1)","v":760.55},{"$f":"VLOOKUP(DropDownList!$B$47,CntyQuery!$A$171:$FZ$185,EO$1)","v":821},{"$f":"VLOOKUP(DropDownList!$B$47,CntyQuery!$A$171:$FZ$185,EP$1)","v":329.08},{"$f":"VLOOKUP(DropDownList!$B$47,CntyQuery!$A$171:$FZ$185,EQ$1)","v":112},{"$f":"VLOOKUP(DropDownList!$B$47,CntyQuery!$A$171:$FZ$185,ER$1)","v":95},{"$f":"VLOOKUP(DropDownList!$B$47,CntyQuery!$A$171:$FZ$185,ES$1)","v":17},{"$f":"VLOOKUP(DropDownList!$B$47,CntyQuery!$A$171:$FZ$185,ET$1)","v":83},{"$f":"VLOOKUP(DropDownList!$B$47,CntyQuery!$A$171:$FZ$185,EU$1)","v":12},{"$f":"VLOOKUP(DropDownList!$B$47,CntyQuery!$A$171:$FZ$185,EV$1)","v":979.14},{"$f":"VLOOKUP(DropDownList!$B$47,CntyQuery!$A$171:$FZ$185,EW$1)","v":829.52},{"$f":"VLOOKUP(DropDownList!$B$47,CntyQuery!$A$171:$FZ$185,EX$1)","v":1814.8},{"$f":"VLOOKUP(DropDownList!$B$47,CntyQuery!$A$171:$FZ$185,EY$1)","v":896.99},{"$f":"VLOOKUP(DropDownList!$B$47,CntyQuery!$A$171:$FZ$185,EZ$1)","v":367.87}]
[]
[]
["Labor Force and Unemployment Rate","Query Name: DPQryUnempByCnty"]
["PlaceName","LaborForce1990","LaborForce1991","LaborForce1992","LaborForce1993","LaborForce1994","LaborForce1995","LaborForce1996","LaborForce1997","LaborForce1998","LaborForce1999","LaborForce2000","LaborForce2001","LaborForce2002","LaborForce2003","NumberEmployed1990","NumberEmployed1991","NumberEmployed1992","NumberEmployed1993","NumberEmployed1994","NumberEmployed1995","NumberEmployed1996","NumberEmployed1997","NumberEmployed1998","NumberEmployed1999","NumberEmployed2000","NumberEmployed2001","NumberEmployed2002","NumberEmployed2003","UnempRate1990","UnempRate1991","UnempRate1992","UnempRate1993","UnempRate1994","UnempRate1995","UnempRate1996","UnempRate1997","UnempRate1998","UnempRate1999","UnempRate2000","UnempRate2001","UnempRate2002","UnempRate2003","NumbUnEmployed1990","NumbUnEmployed1991","NumbUnEmployed1992","NumbUnEmployed1993","NumbUnEmployed1994","NumbUnEmployed1995","NumbUnEmployed1996","NumbUnEmployed1997","NumbUnEmployed1998","NumbUnEmployed1999","NumbUnEmployed2000","NumbUnEmployed2001","NumbUnEmployed2002","NumbUnEmployed2003","LaborForce2004","NumberEmployed2004","UnempRate2004","NumbUnEmployed2004","LaborForce2005","NumberEmployed2005","NumbUnEmp2005","UnempRate2005","LaborForce2006","NumberEmployed2006","NumbUnEmp2006","UnempRate2006","LaborForce2007","NumberEmployed2007","NumbUnEmp2007","UnempRate2007","LaborForce2008","NumberEmployed2008","NumbUnEmp2008","UnempRate2008","LaborForce2009","NumberEmployed2009","NumbUnEmp2009","UnempRate2009"]
[{"$f":"VLOOKUP(DropDownList!$B$47,CntyQuery!$A$220:$CC$229,A$1)","v":{"$error":"#N/A"}},{"$f":"VLOOKUP(DropDownList!$B$47,CntyQuery!$A$220:$CC$229,B$1)","v":{"$error":"#N/A"}},{"$f":"VLOOKUP(DropDownList!$B$47,CntyQuery!$A$220:$CC$229,C$1)","v":{"$error":"#N/A"}},{"$f":"VLOOKUP(DropDownList!$B$47,CntyQuery!$A$220:$CC$229,D$1)","v":{"$error":"#N/A"}},{"$f":"VLOOKUP(DropDownList!$B$47,CntyQuery!$A$220:$CC$229,E$1)","v":{"$error":"#N/A"}},{"$f":"VLOOKUP(DropDownList!$B$47,CntyQuery!$A$220:$CC$229,F$1)","v":{"$error":"#N/A"}},{"$f":"VLOOKUP(DropDownList!$B$47,CntyQuery!$A$220:$CC$229,G$1)","v":{"$error":"#N/A"}},{"$f":"VLOOKUP(DropDownList!$B$47,CntyQuery!$A$220:$CC$229,H$1)","v":{"$error":"#N/A"}},{"$f":"VLOOKUP(DropDownList!$B$47,CntyQuery!$A$220:$CC$229,I$1)","v":{"$error":"#N/A"}},{"$f":"VLOOKUP(DropDownList!$B$47,CntyQuery!$A$220:$CC$229,J$1)","v":{"$error":"#N/A"}},{"$f":"VLOOKUP(DropDownList!$B$47,CntyQuery!$A$220:$CC$229,K$1)","v":{"$error":"#N/A"}},{"$f":"VLOOKUP(DropDownList!$B$47,CntyQuery!$A$220:$CC$229,L$1)","v":{"$error":"#N/A"}},{"$f":"VLOOKUP(DropDownList!$B$47,CntyQuery!$A$220:$CC$229,M$1)","v":{"$error":"#N/A"}},{"$f":"VLOOKUP(DropDownList!$B$47,CntyQuery!$A$220:$CC$229,N$1)","v":{"$error":"#N/A"}},{"$f":"VLOOKUP(DropDownList!$B$47,CntyQuery!$A$220:$CC$229,O$1)","v":{"$error":"#N/A"}},{"$f":"VLOOKUP(DropDownList!$B$47,CntyQuery!$A$220:$CC$229,P$1)","v":{"$error":"#N/A"}},{"$f":"VLOOKUP(DropDownList!$B$47,CntyQuery!$A$220:$CC$229,Q$1)","v":{"$error":"#N/A"}},{"$f":"VLOOKUP(DropDownList!$B$47,CntyQuery!$A$220:$CC$229,R$1)","v":{"$error":"#N/A"}},{"$f":"VLOOKUP(DropDownList!$B$47,CntyQuery!$A$220:$CC$229,S$1)","v":{"$error":"#N/A"}},{"$f":"VLOOKUP(DropDownList!$B$47,CntyQuery!$A$220:$CC$229,T$1)","v":{"$error":"#N/A"}},{"$f":"VLOOKUP(DropDownList!$B$47,CntyQuery!$A$220:$CC$229,U$1)","v":{"$error":"#N/A"}},{"$f":"VLOOKUP(DropDownList!$B$47,CntyQuery!$A$220:$CC$229,V$1)","v":{"$error":"#N/A"}},{"$f":"VLOOKUP(DropDownList!$B$47,CntyQuery!$A$220:$CC$229,W$1)","v":{"$error":"#N/A"}},{"$f":"VLOOKUP(DropDownList!$B$47,CntyQuery!$A$220:$CC$229,X$1)","v":{"$error":"#N/A"}},{"$f":"VLOOKUP(DropDownList!$B$47,CntyQuery!$A$220:$CC$229,Y$1)","v":{"$error":"#N/A"}},{"$f":"VLOOKUP(DropDownList!$B$47,CntyQuery!$A$220:$CC$229,Z$1)","v":{"$error":"#N/A"}},{"$f":"VLOOKUP(DropDownList!$B$47,CntyQuery!$A$220:$CC$229,AA$1)","v":{"$error":"#N/A"}},{"$f":"VLOOKUP(DropDownList!$B$47,CntyQuery!$A$220:$CC$229,AB$1)","v":{"$error":"#N/A"}},{"$f":"VLOOKUP(DropDownList!$B$47,CntyQuery!$A$220:$CC$229,AC$1)","v":{"$error":"#N/A"}},{"$f":"VLOOKUP(DropDownList!$B$47,CntyQuery!$A$220:$CC$229,AD$1)","v":{"$error":"#N/A"}},{"$f":"VLOOKUP(DropDownList!$B$47,CntyQuery!$A$220:$CC$229,AE$1)","v":{"$error":"#N/A"}},{"$f":"VLOOKUP(DropDownList!$B$47,CntyQuery!$A$220:$CC$229,AF$1)","v":{"$error":"#N/A"}},{"$f":"VLOOKUP(DropDownList!$B$47,CntyQuery!$A$220:$CC$229,AG$1)","v":{"$error":"#N/A"}},{"$f":"VLOOKUP(DropDownList!$B$47,CntyQuery!$A$220:$CC$229,AH$1)","v":{"$error":"#N/A"}},{"$f":"VLOOKUP(DropDownList!$B$47,CntyQuery!$A$220:$CC$229,AI$1)","v":{"$error":"#N/A"}},{"$f":"VLOOKUP(DropDownList!$B$47,CntyQuery!$A$220:$CC$229,AJ$1)","v":{"$error":"#N/A"}},{"$f":"VLOOKUP(DropDownList!$B$47,CntyQuery!$A$220:$CC$229,AK$1)","v":{"$error":"#N/A"}},{"$f":"VLOOKUP(DropDownList!$B$47,CntyQuery!$A$220:$CC$229,AL$1)","v":{"$error":"#N/A"}},{"$f":"VLOOKUP(DropDownList!$B$47,CntyQuery!$A$220:$CC$229,AM$1)","v":{"$error":"#N/A"}},{"$f":"VLOOKUP(DropDownList!$B$47,CntyQuery!$A$220:$CC$229,AN$1)","v":{"$error":"#N/A"}},{"$f":"VLOOKUP(DropDownList!$B$47,CntyQuery!$A$220:$CC$229,AO$1)","v":{"$error":"#N/A"}},{"$f":"VLOOKUP(DropDownList!$B$47,CntyQuery!$A$220:$CC$229,AP$1)","v":{"$error":"#N/A"}},{"$f":"VLOOKUP(DropDownList!$B$47,CntyQuery!$A$220:$CC$229,AQ$1)","v":{"$error":"#N/A"}},{"$f":"VLOOKUP(DropDownList!$B$47,CntyQuery!$A$220:$CC$229,AR$1)","v":{"$error":"#N/A"}},{"$f":"VLOOKUP(DropDownList!$B$47,CntyQuery!$A$220:$CC$229,AS$1)","v":{"$error":"#N/A"}},{"$f":"VLOOKUP(DropDownList!$B$47,CntyQuery!$A$220:$CC$229,AT$1)","v":{"$error":"#N/A"}},{"$f":"VLOOKUP(DropDownList!$B$47,CntyQuery!$A$220:$CC$229,AU$1)","v":{"$error":"#N/A"}},{"$f":"VLOOKUP(DropDownList!$B$47,CntyQuery!$A$220:$CC$229,AV$1)","v":{"$error":"#N/A"}},{"$f":"VLOOKUP(DropDownList!$B$47,CntyQuery!$A$220:$CC$229,AW$1)","v":{"$error":"#N/A"}},{"$f":"VLOOKUP(DropDownList!$B$47,CntyQuery!$A$220:$CC$229,AX$1)","v":{"$error":"#N/A"}},{"$f":"VLOOKUP(DropDownList!$B$47,CntyQuery!$A$220:$CC$229,AY$1)","v":{"$error":"#N/A"}},{"$f":"VLOOKUP(DropDownList!$B$47,CntyQuery!$A$220:$CC$229,AZ$1)","v":{"$error":"#N/A"}},{"$f":"VLOOKUP(DropDownList!$B$47,CntyQuery!$A$220:$CC$229,BA$1)","v":{"$error":"#N/A"}},{"$f":"VLOOKUP(DropDownList!$B$47,CntyQuery!$A$220:$CC$229,BB$1)","v":{"$error":"#N/A"}},{"$f":"VLOOKUP(DropDownList!$B$47,CntyQuery!$A$220:$CC$229,BC$1)","v":{"$error":"#N/A"}},{"$f":"VLOOKUP(DropDownList!$B$47,CntyQuery!$A$220:$CC$229,BD$1)","v":{"$error":"#N/A"}},{"$f":"VLOOKUP(DropDownList!$B$47,CntyQuery!$A$220:$CC$229,BE$1)","v":{"$error":"#N/A"}},{"$f":"VLOOKUP(DropDownList!$B$47,CntyQuery!$A$220:$CC$229,BF$1)","v":{"$error":"#N/A"}},{"$f":"VLOOKUP(DropDownList!$B$47,CntyQuery!$A$220:$CC$229,BG$1)","v":{"$error":"#N/A"}},{"$f":"VLOOKUP(DropDownList!$B$47,CntyQuery!$A$220:$CC$229,BH$1)","v":{"$error":"#N/A"}},{"$f":"VLOOKUP(DropDownList!$B$47,CntyQuery!$A$220:$CC$229,BI$1)","v":{"$error":"#N/A"}},{"$f":"VLOOKUP(DropDownList!$B$47,CntyQuery!$A$220:$CC$229,BJ$1)","v":{"$error":"#N/A"}},{"$f":"VLOOKUP(DropDownList!$B$47,CntyQuery!$A$220:$CC$229,BK$1)","v":{"$error":"#N/A"}},{"$f":"VLOOKUP(DropDownList!$B$47,CntyQuery!$A$220:$CC$229,BL$1)","v":{"$error":"#N/A"}},{"$f":"VLOOKUP(DropDownList!$B$47,CntyQuery!$A$220:$CC$229,BM$1)","v":{"$error":"#N/A"}},{"$f":"VLOOKUP(DropDownList!$B$47,CntyQuery!$A$220:$CC$229,BN$1)","v":{"$error":"#N/A"}},{"$f":"VLOOKUP(DropDownList!$B$47,CntyQuery!$A$220:$CC$229,BO$1)","v":{"$error":"#N/A"}},{"$f":"VLOOKUP(DropDownList!$B$47,CntyQuery!$A$220:$CC$229,BP$1)","v":{"$error":"#N/A"}},{"$f":"VLOOKUP(DropDownList!$B$47,CntyQuery!$A$220:$CC$229,BQ$1)","v":{"$error":"#N/A"}},{"$f":"VLOOKUP(DropDownList!$B$47,CntyQuery!$A$220:$CC$229,BR$1)","v":{"$error":"#N/A"}},{"$f":"VLOOKUP(DropDownList!$B$47,CntyQuery!$A$220:$CC$229,BS$1)","v":{"$error":"#N/A"}},{"$f":"VLOOKUP(DropDownList!$B$47,CntyQuery!$A$220:$CC$229,BT$1)","v":{"$error":"#N/A"}},{"$f":"VLOOKUP(DropDownList!$B$47,CntyQuery!$A$220:$CC$229,BU$1)","v":{"$error":"#N/A"}},{"$f":"VLOOKUP(DropDownList!$B$47,CntyQuery!$A$220:$CC$229,BV$1)","v":{"$error":"#N/A"}},{"$f":"VLOOKUP(DropDownList!$B$47,CntyQuery!$A$220:$CC$229,BW$1)","v":{"$error":"#N/A"}},{"$f":"VLOOKUP(DropDownList!$B$47,CntyQuery!$A$220:$CC$229,BX$1)","v":{"$error":"#N/A"}},{"$f":"VLOOKUP(DropDownList!$B$47,CntyQuery!$A$220:$CC$229,BY$1)","v":{"$error":"#N/A"}},{"$f":"VLOOKUP(DropDownList!$B$47,CntyQuery!$A$220:$CC$229,BZ$1)","v":{"$error":"#N/A"}},{"$f":"VLOOKUP(DropDownList!$B$47,CntyQuery!$A$220:$CC$229,CA$1)","v":{"$error":"#N/A"}},{"$f":"VLOOKUP(DropDownList!$B$47,CntyQuery!$A$220:$CC$229,CB$1)","v":{"$error":"#N/A"}},{"$f":"VLOOKUP(DropDownList!$B$47,CntyQuery!$A$220:$CC$229,CC$1)","v":{"$error":"#N/A"}}]
[]
[null,null,null,null,null,null,null,null,null,null,null,null,{"$f":"IF((CntyDataLink!$BL$25)=\"n\",NA(),IF(VALUE(CntyDataLink!$BL$25)=\"\",NA(),VALUE(CntyDataLink!$BL$25)))","v":770.13}]
["Census 2000   -           Query Name:  TownAllQuery3",2,{"$f":"B33+1","v":3},{"$f":"C33+1","v":4},5,6,7,8,9,10,11,12,13,14,15,16,17,18,19,20,21,22,23,24,25,26,27,28,29,30,31,32,33,34,35,36,37,38,39,40,41,42,43,44,45,46,47,48,49,50,51,52,53,54,55,56,57,58,59,60,61,62,63,64,65,66,67,{"$f":"BO33+1","v":68},69,70,71,72,73,74,75,76,77,78,79,80,81,82,83,84,85,86,87,88,89,90,91,92,93,94,95,96,97,98,99,100,101,102]
["NAME","COUNTY","LOGRECNO","COUSUB","TRACT","AREALAND","AREAWATR","POP100","HU100","2000Population","PopOfOneRace","PopWhite","PopBlack","PopAmIndian","PopAsian","PopHawaiian","PopOtherRace","Pop2orMoreRaces","PopHispanicLatino","PopNotHispanicLatino","PopMale","PopMale<15","PopMale15to24","PopMale25to34","PopMale35to44","PopMale45to54","PopMale55to64","PopMale65to74","PopMale75to84","PopMale85andOver","PopFemale","PopFemale<15","PopFemale15to24","PopFemale25to34","PopFemale35t44","PopFemale45to54","PopFemale55to64","PopFemale65to74","PopFemale75to84","PopFemale85andOver","Households2000","PopInHH","AvgHHSize","HHs1Person","HHs2orMorePerson","HHsFamily","HHMarriedCoupleFam","HHSingleParentFam","HHsNonFamily","Families","PopInFam","AvgFamSize","TotHsUnits","OccHsUnits","OwnerOccHU","RenterOccHU","VctHsUnits","VctHUForRent","VctHUForSale","VctHUSeasonal","PopInOccHU","PopInOwnOccHU","PopInRntOccHU","AvgHHSize2","AvgHHSizOwnOcc","AvgHHSizRntOcc","OwnOccWhtHsHldr","OwnOccBlkHsHldr","OwnOccAmIHsHldr","OwnOccAsnHsHldr","OwnOccPIsHsHldr","OwnOccORHsHldr","OwnOcc2RcHsHldr","RntOccWhtHsHldr","RntOccBlkHsHldr","RntOccAmIHsHldr","RntOccAsnHsHldr","RntOccPIsHsHldr","RntOccORHsHldr","RntOcc2RcHsHldr","OwnOccHH15to24","OwnOccHH25to34","OwnOccHH35to44","OwnOccHH45to54","OwnOccHH55to64","OwnOccHH65to74","OwnOccHH75to84","OwnOccHH85Over","RntOccHH15to24","RntOccHH25to34","RntOccHH35to44","RntOccHH45to54","RntOccHH55to64","RntOccHH65to74","RntOccHH75to84","RntOccHH85Over","P27TotalPop","P27PopInHseHlds","P27PopInGrpQtrs","Median Age Total","Median Age (Male)","Median Age (Female)"]
[{"$f":"VLOOKUP(DropDownList!$B$47,CntyQryCensus!$A$4:$CW$46,A$1)","v":"Acworth"},{"$f":"VLOOKUP(DropDownList!$B$47,CntyQryCensus!$A$4:$CW$46,B$1)","v":"019"},{"$f":"VLOOKUP(DropDownList!$B$47,CntyQryCensus!$A$4:$CW$46,C$1)","v":"0035914"},{"$f":"VLOOKUP(DropDownList!$B$47,CntyQryCensus!$A$4:$CW$46,D$1)","v":"00260"},{"$f":"VLOOKUP(DropDownList!$B$47,CntyQryCensus!$A$4:$CW$46,E$1)","v":""},{"$f":"VLOOKUP(DropDownList!$B$47,CntyQryCensus!$A$4:$CW$46,F$1)","v":"     100723552"},{"$f":"VLOOKUP(DropDownList!$B$47,CntyQryCensus!$A$4:$CW$46,G$1)","v":"        634512"},{"$f":"VLOOKUP(DropDownList!$B$47,CntyQryCensus!$A$4:$CW$46,H$1)","v":836},{"$f":"VLOOKUP(DropDownList!$B$47,CntyQryCensus!$A$4:$CW$46,I$1)","v":"      512"},{"$f":"VLOOKUP(DropDownList!$B$47,CntyQryCensus!$A$4:$CW$46,J$1)","v":836},{"$f":"VLOOKUP(DropDownList!$B$47,CntyQryCensus!$A$4:$CW$46,K$1)","v":825},{"$f":"VLOOKUP(DropDownList!$B$47,CntyQryCensus!$A$4:$CW$46,L$1)","v":809},{"$f":"VLOOKUP(DropDownList!$B$47,CntyQryCensus!$A$4:$CW$46,M$1)","v":7},{"$f":"VLOOKUP(DropDownList!$B$47,CntyQryCensus!$A$4:$CW$46,N$1)","v":7},{"$f":"VLOOKUP(DropDownList!$B$47,CntyQryCensus!$A$4:$CW$46,O$1)","v":2},{"$f":"VLOOKUP(DropDownList!$B$47,CntyQryCensus!$A$4:$CW$46,P$1)","v":0},{"$f":"VLOOKUP(DropDownList!$B$47,CntyQryCensus!$A$4:$CW$46,Q$1)","v":0},{"$f":"VLOOKUP(DropDownList!$B$47,CntyQryCensus!$A$4:$CW$46,R$1)","v":11},{"$f":"VLOOKUP(DropDownList!$B$47,CntyQryCensus!$A$4:$CW$46,S$1)","v":9},{"$f":"VLOOKUP(DropDownList!$B$47,CntyQryCensus!$A$4:$CW$46,T$1)","v":827},{"$f":"VLOOKUP(DropDownList!$B$47,CntyQryCensus!$A$4:$CW$46,U$1)","v":421},{"$f":"VLOOKUP(DropDownList!$B$47,CntyQryCensus!$A$4:$CW$46,V$1)","v":89},{"$f":"VLOOKUP(DropDownList!$B$47,CntyQryCensus!$A$4:$CW$46,W$1)","v":42},{"$f":"VLOOKUP(DropDownList!$B$47,CntyQryCensus!$A$4:$CW$46,X$1)","v":32},{"$f":"VLOOKUP(DropDownList!$B$47,CntyQryCensus!$A$4:$CW$46,Y$1)","v":67},{"$f":"VLOOKUP(DropDownList!$B$47,CntyQryCensus!$A$4:$CW$46,Z$1)","v":83},{"$f":"VLOOKUP(DropDownList!$B$47,CntyQryCensus!$A$4:$CW$46,AA$1)","v":50},{"$f":"VLOOKUP(DropDownList!$B$47,CntyQryCensus!$A$4:$CW$46,AB$1)","v":40},{"$f":"VLOOKUP(DropDownList!$B$47,CntyQryCensus!$A$4:$CW$46,AC$1)","v":13},{"$f":"VLOOKUP(DropDownList!$B$47,CntyQryCensus!$A$4:$CW$46,AD$1)","v":5},{"$f":"VLOOKUP(DropDownList!$B$47,CntyQryCensus!$A$4:$CW$46,AE$1)","v":415},{"$f":"VLOOKUP(DropDownList!$B$47,CntyQryCensus!$A$4:$CW$46,AF$1)","v":86},{"$f":"VLOOKUP(DropDownList!$B$47,CntyQryCensus!$A$4:$CW$46,AG$1)","v":37},{"$f":"VLOOKUP(DropDownList!$B$47,CntyQryCensus!$A$4:$CW$46,AH$1)","v":30},{"$f":"VLOOKUP(DropDownList!$B$47,CntyQryCensus!$A$4:$CW$46,AI$1)","v":72},{"$f":"VLOOKUP(DropDownList!$B$47,CntyQryCensus!$A$4:$CW$46,AJ$1)","v":73},{"$f":"VLOOKUP(DropDownList!$B$47,CntyQryCensus!$A$4:$CW$46,AK$1)","v":48},{"$f":"VLOOKUP(DropDownList!$B$47,CntyQryCensus!$A$4:$CW$46,AL$1)","v":44},{"$f":"VLOOKUP(DropDownList!$B$47,CntyQryCensus!$A$4:$CW$46,AM$1)","v":19},{"$f":"VLOOKUP(DropDownList!$B$47,CntyQryCensus!$A$4:$CW$46,AN$1)","v":6},{"$f":"VLOOKUP(DropDownList!$B$47,CntyQryCensus!$A$4:$CW$46,AO$1)","v":318},{"$f":"VLOOKUP(DropDownList!$B$47,CntyQryCensus!$A$4:$CW$46,AP$1)","v":836},{"$f":"VLOOKUP(DropDownList!$B$47,CntyQryCensus!$A$4:$CW$46,AQ$1)","v":2.63},{"$f":"VLOOKUP(DropDownList!$B$47,CntyQryCensus!$A$4:$CW$46,AR$1)","v":63},{"$f":"VLOOKUP(DropDownList!$B$47,CntyQryCensus!$A$4:$CW$46,AS$1)","v":255},{"$f":"VLOOKUP(DropDownList!$B$47,CntyQryCensus!$A$4:$CW$46,AT$1)","v":234},{"$f":"VLOOKUP(DropDownList!$B$47,CntyQryCensus!$A$4:$CW$46,AU$1)","v":193},{"$f":"VLOOKUP(DropDownList!$B$47,CntyQryCensus!$A$4:$CW$46,AV$1)","v":41},{"$f":"VLOOKUP(DropDownList!$B$47,CntyQryCensus!$A$4:$CW$46,AW$1)","v":21},{"$f":"VLOOKUP(DropDownList!$B$47,CntyQryCensus!$A$4:$CW$46,AX$1)","v":234},{"$f":"VLOOKUP(DropDownList!$B$47,CntyQryCensus!$A$4:$CW$46,AY$1)","v":716},{"$f":"VLOOKUP(DropDownList!$B$47,CntyQryCensus!$A$4:$CW$46,AZ$1)","v":3.06},{"$f":"VLOOKUP(DropDownList!$B$47,CntyQryCensus!$A$4:$CW$46,BA$1)","v":512},{"$f":"VLOOKUP(DropDownList!$B$47,CntyQryCensus!$A$4:$CW$46,BB$1)","v":318},{"$f":"VLOOKUP(DropDownList!$B$47,CntyQryCensus!$A$4:$CW$46,BC$1)","v":267},{"$f":"VLOOKUP(DropDownList!$B$47,CntyQryCensus!$A$4:$CW$46,BD$1)","v":51},{"$f":"VLOOKUP(DropDownList!$B$47,CntyQryCensus!$A$4:$CW$46,BE$1)","v":194},{"$f":"VLOOKUP(DropDownList!$B$47,CntyQryCensus!$A$4:$CW$46,BF$1)","v":6},{"$f":"VLOOKUP(DropDownList!$B$47,CntyQryCensus!$A$4:$CW$46,BG$1)","v":1},{"$f":"VLOOKUP(DropDownList!$B$47,CntyQryCensus!$A$4:$CW$46,BH$1)","v":172},{"$f":"VLOOKUP(DropDownList!$B$47,CntyQryCensus!$A$4:$CW$46,BI$1)","v":836},{"$f":"VLOOKUP(DropDownList!$B$47,CntyQryCensus!$A$4:$CW$46,BJ$1)","v":682},{"$f":"VLOOKUP(DropDownList!$B$47,CntyQryCensus!$A$4:$CW$46,BK$1)","v":154},{"$f":"VLOOKUP(DropDownList!$B$47,CntyQryCensus!$A$4:$CW$46,BL$1)","v":2.63},{"$f":"VLOOKUP(DropDownList!$B$47,CntyQryCensus!$A$4:$CW$46,BM$1)","v":2.5499999999999998},{"$f":"VLOOKUP(DropDownList!$B$47,CntyQryCensus!$A$4:$CW$46,BN$1)","v":3.02},{"$f":"VLOOKUP(DropDownList!$B$47,CntyQryCensus!$A$4:$CW$46,BO$1)","v":263},{"$f":"VLOOKUP(DropDownList!$B$47,CntyQryCensus!$A$4:$CW$46,BP$1)","v":0},{"$f":"VLOOKUP(DropDownList!$B$47,CntyQryCensus!$A$4:$CW$46,BQ$1)","v":2},{"$f":"VLOOKUP(DropDownList!$B$47,CntyQryCensus!$A$4:$CW$46,BR$1)","v":2},{"$f":"VLOOKUP(DropDownList!$B$47,CntyQryCensus!$A$4:$CW$46,BS$1)","v":0},{"$f":"VLOOKUP(DropDownList!$B$47,CntyQryCensus!$A$4:$CW$46,BT$1)","v":0},{"$f":"VLOOKUP(DropDownList!$B$47,CntyQryCensus!$A$4:$CW$46,BU$1)","v":0},{"$f":"VLOOKUP(DropDownList!$B$47,CntyQryCensus!$A$4:$CW$46,BV$1)","v":45},{"$f":"VLOOKUP(DropDownList!$B$47,CntyQryCensus!$A$4:$CW$46,BW$1)","v":1},{"$f":"VLOOKUP(DropDownList!$B$47,CntyQryCensus!$A$4:$CW$46,BX$1)","v":0},{"$f":"VLOOKUP(DropDownList!$B$47,CntyQryCensus!$A$4:$CW$46,BY$1)","v":0},{"$f":"VLOOKUP(DropDownList!$B$47,CntyQryCensus!$A$4:$CW$46,BZ$1)","v":0},{"$f":"VLOOKUP(DropDownList!$B$47,CntyQryCensus!$A$4:$CW$46,CA$1)","v":0},{"$f":"VLOOKUP(DropDownList!$B$47,CntyQryCensus!$A$4:$CW$46,CB$1)","v":5},{"$f":"VLOOKUP(DropDownList!$B$47,CntyQryCensus!$A$4:$CW$46,CC$1)","v":2},{"$f":"VLOOKUP(DropDownList!$B$47,CntyQryCensus!$A$4:$CW$46,CD$1)","v":16},{"$f":"VLOOKUP(DropDownList!$B$47,CntyQryCensus!$A$4:$CW$46,CE$1)","v":53},{"$f":"VLOOKUP(DropDownList!$B$47,CntyQryCensus!$A$4:$CW$46,CF$1)","v":80},{"$f":"VLOOKUP(DropDownList!$B$47,CntyQryCensus!$A$4:$CW$46,CG$1)","v":45},{"$f":"VLOOKUP(DropDownList!$B$47,CntyQryCensus!$A$4:$CW$46,CH$1)","v":51},{"$f":"VLOOKUP(DropDownList!$B$47,CntyQryCensus!$A$4:$CW$46,CI$1)","v":14},{"$f":"VLOOKUP(DropDownList!$B$47,CntyQryCensus!$A$4:$CW$46,CJ$1)","v":6},{"$f":"VLOOKUP(DropDownList!$B$47,CntyQryCensus!$A$4:$CW$46,CK$1)","v":1},{"$f":"VLOOKUP(DropDownList!$B$47,CntyQryCensus!$A$4:$CW$46,CL$1)","v":10},{"$f":"VLOOKUP(DropDownList!$B$47,CntyQryCensus!$A$4:$CW$46,CM$1)","v":15},{"$f":"VLOOKUP(DropDownList!$B$47,CntyQryCensus!$A$4:$CW$46,CN$1)","v":6},{"$f":"VLOOKUP(DropDownList!$B$47,CntyQryCensus!$A$4:$CW$46,CO$1)","v":8},{"$f":"VLOOKUP(DropDownList!$B$47,CntyQryCensus!$A$4:$CW$46,CP$1)","v":6},{"$f":"VLOOKUP(DropDownList!$B$47,CntyQryCensus!$A$4:$CW$46,CQ$1)","v":2},{"$f":"VLOOKUP(DropDownList!$B$47,CntyQryCensus!$A$4:$CW$46,CR$1)","v":3},{"$f":"VLOOKUP(DropDownList!$B$47,CntyQryCensus!$A$4:$CW$46,CS$1)","v":836},{"$f":"VLOOKUP(DropDownList!$B$47,CntyQryCensus!$A$4:$CW$46,CT$1)","v":836},{"$f":"VLOOKUP(DropDownList!$B$47,CntyQryCensus!$A$4:$CW$46,CU$1)","v":0},{"$f":"VLOOKUP(DropDownList!$B$47,CntyQryCensus!$A$4:$CW$46,CV$1)","v":"Sullivan"},{"$f":"VLOOKUP(DropDownList!$B$47,CntyQryCensus!$A$4:$CW$46,CW$1)","v":36.6},{"$f":"VLOOKUP(DropDownList!$B$47,CntyQryCensus!$A$4:$CW$46,CX$1)","v":{"$error":"#REF!"}}]
[]
[]
["Census 2000 DemoProfile Sample Data Tables 2&3   -  DPTab23TownQry"]
["NAME","COUSUB","AREANAME","PopInSchool","Preschool","Kindergarten","Elementary","HighSchool","College","Pop25andOver","HighSchoolGrad","SomeCollege","AssocDegree","BachelDegree","GradDegree","HSGradorHigher","CollegeGradorHigher","Pop5to20yrs","Pop5to20wDis","Pop21to64","Pop21to64wDis","Pop65over","Pop65overwDis","Pop5yrsOver","SameHUin95","DiffHUinUSin95","HUinSameCountyin95","HUinSameStatein95","TotalPop","NativePop","NatPopBornUS","NatPopBornInStatRes","NatPopBornDiffState","NatPopBornOutUS","FornBornPop","FornPopEnt90to00","FornPopNatCit","FornPopNotCit","Households","HHIncLessThn10k","HHInc10to15K","HHInc15to25K","HHInc25to35K","HHInc35to50K","HHInc50to75K","HHInc75to100K","HHInc100to150K","HHInc150to200K","HHIncOver200K","MedianHHInc","HHwithPubAssistInc","MeanPubAssist","FamilyHH","FHHIncLessThn10k","FHHInc10to15K","FHHInc15to25K","FHHInc25to35K","FHHInc35to50K","FHHInc50to75K","FHHInc75to100K","FHHInc100to150K","FHHInc150to200K","FHHIncOver200K","MedianFHHInc","PerCapitaInc","PovStatFamilies","PovStatFHHwChilUnd18","PovStatFHHwChilUnd5","PovStFmalHH","DP3088","DP3089","PovStatIndiv","PovStatIndiv18yrOver","PovStatIndiv65yrOver","DP3093","DP3094","DP3095"]
[{"$f":"VLOOKUP(DropDownList!$B$47,CntyQryCensus!$A$53:$BY$96,A$1)","v":"Acworth"},{"$f":"VLOOKUP(DropDownList!$B$47,CntyQryCensus!$A$53:$BY$96,B$1)","v":"00260"},{"$f":"VLOOKUP(DropDownList!$B$47,CntyQryCensus!$A$53:$BY$96,C$1)","v":"Acworth town, Sullivan County, New Hampshire"},{"$f":"VLOOKUP(DropDownList!$B$47,CntyQryCensus!$A$53:$BY$96,D$1)","v":214},{"$f":"VLOOKUP(DropDownList!$B$47,CntyQryCensus!$A$53:$BY$96,E$1)","v":13},{"$f":"VLOOKUP(DropDownList!$B$47,CntyQryCensus!$A$53:$BY$96,F$1)","v":5},{"$f":"VLOOKUP(DropDownList!$B$47,CntyQryCensus!$A$53:$BY$96,G$1)","v":115},{"$f":"VLOOKUP(DropDownList!$B$47,CntyQryCensus!$A$53:$BY$96,H$1)","v":58},{"$f":"VLOOKUP(DropDownList!$B$47,CntyQryCensus!$A$53:$BY$96,I$1)","v":23},{"$f":"VLOOKUP(DropDownList!$B$47,CntyQryCensus!$A$53:$BY$96,J$1)","v":580},{"$f":"VLOOKUP(DropDownList!$B$47,CntyQryCensus!$A$53:$BY$96,K$1)","v":205},{"$f":"VLOOKUP(DropDownList!$B$47,CntyQryCensus!$A$53:$BY$96,L$1)","v":100},{"$f":"VLOOKUP(DropDownList!$B$47,CntyQryCensus!$A$53:$BY$96,M$1)","v":27},{"$f":"VLOOKUP(DropDownList!$B$47,CntyQryCensus!$A$53:$BY$96,N$1)","v":110},{"$f":"VLOOKUP(DropDownList!$B$47,CntyQryCensus!$A$53:$BY$96,O$1)","v":56},{"$f":"VLOOKUP(DropDownList!$B$47,CntyQryCensus!$A$53:$BY$96,P$1)","v":498},{"$f":"VLOOKUP(DropDownList!$B$47,CntyQryCensus!$A$53:$BY$96,Q$1)","v":166},{"$f":"VLOOKUP(DropDownList!$B$47,CntyQryCensus!$A$53:$BY$96,R$1)","v":197},{"$f":"VLOOKUP(DropDownList!$B$47,CntyQryCensus!$A$53:$BY$96,S$1)","v":2},{"$f":"VLOOKUP(DropDownList!$B$47,CntyQryCensus!$A$53:$BY$96,T$1)","v":472},{"$f":"VLOOKUP(DropDownList!$B$47,CntyQryCensus!$A$53:$BY$96,U$1)","v":84},{"$f":"VLOOKUP(DropDownList!$B$47,CntyQryCensus!$A$53:$BY$96,V$1)","v":130},{"$f":"VLOOKUP(DropDownList!$B$47,CntyQryCensus!$A$53:$BY$96,W$1)","v":29},{"$f":"VLOOKUP(DropDownList!$B$47,CntyQryCensus!$A$53:$BY$96,X$1)","v":799},{"$f":"VLOOKUP(DropDownList!$B$47,CntyQryCensus!$A$53:$BY$96,Y$1)","v":588},{"$f":"VLOOKUP(DropDownList!$B$47,CntyQryCensus!$A$53:$BY$96,Z$1)","v":203},{"$f":"VLOOKUP(DropDownList!$B$47,CntyQryCensus!$A$53:$BY$96,AA$1)","v":84},{"$f":"VLOOKUP(DropDownList!$B$47,CntyQryCensus!$A$53:$BY$96,AB$1)","v":119},{"$f":"VLOOKUP(DropDownList!$B$47,CntyQryCensus!$A$53:$BY$96,AC$1)","v":840},{"$f":"VLOOKUP(DropDownList!$B$47,CntyQryCensus!$A$53:$BY$96,AD$1)","v":812},{"$f":"VLOOKUP(DropDownList!$B$47,CntyQryCensus!$A$53:$BY$96,AE$1)","v":807},{"$f":"VLOOKUP(DropDownList!$B$47,CntyQryCensus!$A$53:$BY$96,AF$1)","v":283},{"$f":"VLOOKUP(DropDownList!$B$47,CntyQryCensus!$A$53:$BY$96,AG$1)","v":524},{"$f":"VLOOKUP(DropDownList!$B$47,CntyQryCensus!$A$53:$BY$96,AH$1)","v":5},{"$f":"VLOOKUP(DropDownList!$B$47,CntyQryCensus!$A$53:$BY$96,AI$1)","v":28},{"$f":"VLOOKUP(DropDownList!$B$47,CntyQryCensus!$A$53:$BY$96,AJ$1)","v":8},{"$f":"VLOOKUP(DropDownList!$B$47,CntyQryCensus!$A$53:$BY$96,AK$1)","v":12},{"$f":"VLOOKUP(DropDownList!$B$47,CntyQryCensus!$A$53:$BY$96,AL$1)","v":16},{"$f":"VLOOKUP(DropDownList!$B$47,CntyQryCensus!$A$53:$BY$96,AM$1)","v":325},{"$f":"VLOOKUP(DropDownList!$B$47,CntyQryCensus!$A$53:$BY$96,AN$1)","v":25},{"$f":"VLOOKUP(DropDownList!$B$47,CntyQryCensus!$A$53:$BY$96,AO$1)","v":12},{"$f":"VLOOKUP(DropDownList!$B$47,CntyQryCensus!$A$53:$BY$96,AP$1)","v":55},{"$f":"VLOOKUP(DropDownList!$B$47,CntyQryCensus!$A$53:$BY$96,AQ$1)","v":60},{"$f":"VLOOKUP(DropDownList!$B$47,CntyQryCensus!$A$53:$BY$96,AR$1)","v":70},{"$f":"VLOOKUP(DropDownList!$B$47,CntyQryCensus!$A$53:$BY$96,AS$1)","v":60},{"$f":"VLOOKUP(DropDownList!$B$47,CntyQryCensus!$A$53:$BY$96,AT$1)","v":26},{"$f":"VLOOKUP(DropDownList!$B$47,CntyQryCensus!$A$53:$BY$96,AU$1)","v":11},{"$f":"VLOOKUP(DropDownList!$B$47,CntyQryCensus!$A$53:$BY$96,AV$1)","v":2},{"$f":"VLOOKUP(DropDownList!$B$47,CntyQryCensus!$A$53:$BY$96,AW$1)","v":4},{"$f":"VLOOKUP(DropDownList!$B$47,CntyQryCensus!$A$53:$BY$96,AX$1)","v":37386},{"$f":"VLOOKUP(DropDownList!$B$47,CntyQryCensus!$A$53:$BY$96,AY$1)","v":5},{"$f":"VLOOKUP(DropDownList!$B$47,CntyQryCensus!$A$53:$BY$96,AZ$1)","v":2220},{"$f":"VLOOKUP(DropDownList!$B$47,CntyQryCensus!$A$53:$BY$96,BA$1)","v":237},{"$f":"VLOOKUP(DropDownList!$B$47,CntyQryCensus!$A$53:$BY$96,BB$1)","v":12},{"$f":"VLOOKUP(DropDownList!$B$47,CntyQryCensus!$A$53:$BY$96,BC$1)","v":6},{"$f":"VLOOKUP(DropDownList!$B$47,CntyQryCensus!$A$53:$BY$96,BD$1)","v":39},{"$f":"VLOOKUP(DropDownList!$B$47,CntyQryCensus!$A$53:$BY$96,BE$1)","v":35},{"$f":"VLOOKUP(DropDownList!$B$47,CntyQryCensus!$A$53:$BY$96,BF$1)","v":58},{"$f":"VLOOKUP(DropDownList!$B$47,CntyQryCensus!$A$53:$BY$96,BG$1)","v":46},{"$f":"VLOOKUP(DropDownList!$B$47,CntyQryCensus!$A$53:$BY$96,BH$1)","v":26},{"$f":"VLOOKUP(DropDownList!$B$47,CntyQryCensus!$A$53:$BY$96,BI$1)","v":11},{"$f":"VLOOKUP(DropDownList!$B$47,CntyQryCensus!$A$53:$BY$96,BJ$1)","v":0},{"$f":"VLOOKUP(DropDownList!$B$47,CntyQryCensus!$A$53:$BY$96,BK$1)","v":4},{"$f":"VLOOKUP(DropDownList!$B$47,CntyQryCensus!$A$53:$BY$96,BL$1)","v":41397},{"$f":"VLOOKUP(DropDownList!$B$47,CntyQryCensus!$A$53:$BY$96,BM$1)","v":18132},{"$f":"VLOOKUP(DropDownList!$B$47,CntyQryCensus!$A$53:$BY$96,BN$1)","v":24},{"$f":"VLOOKUP(DropDownList!$B$47,CntyQryCensus!$A$53:$BY$96,BO$1)","v":18},{"$f":"VLOOKUP(DropDownList!$B$47,CntyQryCensus!$A$53:$BY$96,BP$1)","v":8},{"$f":"VLOOKUP(DropDownList!$B$47,CntyQryCensus!$A$53:$BY$96,BQ$1)","v":7},{"$f":"VLOOKUP(DropDownList!$B$47,CntyQryCensus!$A$53:$BY$96,BR$1)","v":7},{"$f":"VLOOKUP(DropDownList!$B$47,CntyQryCensus!$A$53:$BY$96,BS$1)","v":2},{"$f":"VLOOKUP(DropDownList!$B$47,CntyQryCensus!$A$53:$BY$96,BT$1)","v":131},{"$f":"VLOOKUP(DropDownList!$B$47,CntyQryCensus!$A$53:$BY$96,BU$1)","v":75},{"$f":"VLOOKUP(DropDownList!$B$47,CntyQryCensus!$A$53:$BY$96,BV$1)","v":7},{"$f":"VLOOKUP(DropDownList!$B$47,CntyQryCensus!$A$53:$BY$96,BW$1)","v":55},{"$f":"VLOOKUP(DropDownList!$B$47,CntyQryCensus!$A$53:$BY$96,BX$1)","v":45},{"$f":"VLOOKUP(DropDownList!$B$47,CntyQryCensus!$A$53:$BY$96,BY$1)","v":28}]
[]
[]
["Census 2000 DemoProfile Sample Data Table 4   -  DPTab4TownQry"]
["NAME","COUSUB","TotHousingUnits","1UnitDet","1UnitAtt","2Units","3to4Units","5to9Units","10to19Units","20orMoreUnits","MobileHomes","BoatRvVan","SingleFamilyUnits","MultiFamUnits","MobileHomeUnits","YearBuilt99to00","YearBuilt95to98","YearBUilt90to94","YearBuilt80to89","YearBuilt70to79","YearBuilt60to69","YearBuilt40to59","YearBuilt39orEarlier","Rooms1","Rooms2","Rooms3","Rooms4","Rooms5","Rooms6","Rooms7","Rooms8","Rooms9orMore","MedianRooms","OccHU1","YrHHMvdIn99to00","YrHHMvdIn95to98","YrHHMvdIn90to94","YrHHMvdIn80to89","YrHHMvdIn70to79","YrHHMvdIn69orBefore","HeatFuelNatGas","HeatFuelBotGas","HeatFuelElectric","HeatFuelOil","HeatFuelCoal","HeatFuelWood","HeatFuelSolar","HeatFuelOther","HeatFuelNone","LackCompPlumb","LackCompKit","NoTelephone","OccHU","OccPerRm1orLess","OccPerRm1to1_5","OccPerRm1_5orMore","SpecOwnOccUnits","Value<50K","Value50to100K","Value100to150K","Value150to200K","Value200to300K","Value300to500K","Value500Kto1mil","Value1MilorMore","MedianValue","WithMortg","MnthOwnCst<300","MnthOwnCst300to500","MnthOwnCst500to700","MnthOwnCst700to1000","MnthOwnCst1000to1500","MnthOwnCst1500to2000","MnthOwnCst2000orMore","MediMnthOwnCst","NotMrtg","NotMrtgMediMnthOwnCst","OwnCst%HHInc<15","OwnCst%HHInc15to20","OwnCst%HHInc20to25","OwnCst%HHInc25to30","OwnCst%HHInc30to35","OwnCst%HHInc35orMor","NotComputed","SpecRntOccUnits","Rnt<200","Rnt200to300","Rnt300to500","Rnt500to750","Rnt750to1000","Rnt1000to1500","Rnt1500orMore","NoRent","MedianRent","Rnt%HHInc<15","Rnt%HHInc15to20","Rnt%HHInc20to25","Rnt%HHInc25to30","Rnt%HHInc30to35","Rnt%HHInc35orMore","Rnt%NotCompute"]
[{"$f":"VLOOKUP(DropDownList!$B$47,CntyQryCensus!$A$103:$CX$146,A$1)","v":"Acworth"},{"$f":"VLOOKUP(DropDownList!$B$47,CntyQryCensus!$A$103:$CX$146,B$1)","v":"00260"},{"$f":"VLOOKUP(DropDownList!$B$47,CntyQryCensus!$A$103:$CX$146,C$1)","v":515},{"$f":"VLOOKUP(DropDownList!$B$47,CntyQryCensus!$A$103:$CX$146,D$1)","v":458},{"$f":"VLOOKUP(DropDownList!$B$47,CntyQryCensus!$A$103:$CX$146,E$1)","v":4},{"$f":"VLOOKUP(DropDownList!$B$47,CntyQryCensus!$A$103:$CX$146,F$1)","v":9},{"$f":"VLOOKUP(DropDownList!$B$47,CntyQryCensus!$A$103:$CX$146,G$1)","v":0},{"$f":"VLOOKUP(DropDownList!$B$47,CntyQryCensus!$A$103:$CX$146,H$1)","v":0},{"$f":"VLOOKUP(DropDownList!$B$47,CntyQryCensus!$A$103:$CX$146,I$1)","v":0},{"$f":"VLOOKUP(DropDownList!$B$47,CntyQryCensus!$A$103:$CX$146,J$1)","v":0},{"$f":"VLOOKUP(DropDownList!$B$47,CntyQryCensus!$A$103:$CX$146,K$1)","v":40},{"$f":"VLOOKUP(DropDownList!$B$47,CntyQryCensus!$A$103:$CX$146,L$1)","v":4},{"$f":"VLOOKUP(DropDownList!$B$47,CntyQryCensus!$A$103:$CX$146,M$1)","v":458},{"$f":"VLOOKUP(DropDownList!$B$47,CntyQryCensus!$A$103:$CX$146,N$1)","v":13},{"$f":"VLOOKUP(DropDownList!$B$47,CntyQryCensus!$A$103:$CX$146,O$1)","v":44},{"$f":"VLOOKUP(DropDownList!$B$47,CntyQryCensus!$A$103:$CX$146,P$1)","v":5},{"$f":"VLOOKUP(DropDownList!$B$47,CntyQryCensus!$A$103:$CX$146,Q$1)","v":17},{"$f":"VLOOKUP(DropDownList!$B$47,CntyQryCensus!$A$103:$CX$146,R$1)","v":32},{"$f":"VLOOKUP(DropDownList!$B$47,CntyQryCensus!$A$103:$CX$146,S$1)","v":68},{"$f":"VLOOKUP(DropDownList!$B$47,CntyQryCensus!$A$103:$CX$146,T$1)","v":59},{"$f":"VLOOKUP(DropDownList!$B$47,CntyQryCensus!$A$103:$CX$146,U$1)","v":41},{"$f":"VLOOKUP(DropDownList!$B$47,CntyQryCensus!$A$103:$CX$146,V$1)","v":74},{"$f":"VLOOKUP(DropDownList!$B$47,CntyQryCensus!$A$103:$CX$146,W$1)","v":219},{"$f":"VLOOKUP(DropDownList!$B$47,CntyQryCensus!$A$103:$CX$146,X$1)","v":16},{"$f":"VLOOKUP(DropDownList!$B$47,CntyQryCensus!$A$103:$CX$146,Y$1)","v":30},{"$f":"VLOOKUP(DropDownList!$B$47,CntyQryCensus!$A$103:$CX$146,Z$1)","v":63},{"$f":"VLOOKUP(DropDownList!$B$47,CntyQryCensus!$A$103:$CX$146,AA$1)","v":95},{"$f":"VLOOKUP(DropDownList!$B$47,CntyQryCensus!$A$103:$CX$146,AB$1)","v":85},{"$f":"VLOOKUP(DropDownList!$B$47,CntyQryCensus!$A$103:$CX$146,AC$1)","v":59},{"$f":"VLOOKUP(DropDownList!$B$47,CntyQryCensus!$A$103:$CX$146,AD$1)","v":71},{"$f":"VLOOKUP(DropDownList!$B$47,CntyQryCensus!$A$103:$CX$146,AE$1)","v":54},{"$f":"VLOOKUP(DropDownList!$B$47,CntyQryCensus!$A$103:$CX$146,AF$1)","v":42},{"$f":"VLOOKUP(DropDownList!$B$47,CntyQryCensus!$A$103:$CX$146,AG$1)","v":5.0999999999999996},{"$f":"VLOOKUP(DropDownList!$B$47,CntyQryCensus!$A$103:$CX$146,AH$1)","v":319},{"$f":"VLOOKUP(DropDownList!$B$47,CntyQryCensus!$A$103:$CX$146,AI$1)","v":34},{"$f":"VLOOKUP(DropDownList!$B$47,CntyQryCensus!$A$103:$CX$146,AJ$1)","v":53},{"$f":"VLOOKUP(DropDownList!$B$47,CntyQryCensus!$A$103:$CX$146,AK$1)","v":57},{"$f":"VLOOKUP(DropDownList!$B$47,CntyQryCensus!$A$103:$CX$146,AL$1)","v":94},{"$f":"VLOOKUP(DropDownList!$B$47,CntyQryCensus!$A$103:$CX$146,AM$1)","v":43},{"$f":"VLOOKUP(DropDownList!$B$47,CntyQryCensus!$A$103:$CX$146,AN$1)","v":38},{"$f":"VLOOKUP(DropDownList!$B$47,CntyQryCensus!$A$103:$CX$146,AO$1)","v":3},{"$f":"VLOOKUP(DropDownList!$B$47,CntyQryCensus!$A$103:$CX$146,AP$1)","v":35},{"$f":"VLOOKUP(DropDownList!$B$47,CntyQryCensus!$A$103:$CX$146,AQ$1)","v":0},{"$f":"VLOOKUP(DropDownList!$B$47,CntyQryCensus!$A$103:$CX$146,AR$1)","v":149},{"$f":"VLOOKUP(DropDownList!$B$47,CntyQryCensus!$A$103:$CX$146,AS$1)","v":0},{"$f":"VLOOKUP(DropDownList!$B$47,CntyQryCensus!$A$103:$CX$146,AT$1)","v":132},{"$f":"VLOOKUP(DropDownList!$B$47,CntyQryCensus!$A$103:$CX$146,AU$1)","v":0},{"$f":"VLOOKUP(DropDownList!$B$47,CntyQryCensus!$A$103:$CX$146,AV$1)","v":0},{"$f":"VLOOKUP(DropDownList!$B$47,CntyQryCensus!$A$103:$CX$146,AW$1)","v":0},{"$f":"VLOOKUP(DropDownList!$B$47,CntyQryCensus!$A$103:$CX$146,AX$1)","v":11},{"$f":"VLOOKUP(DropDownList!$B$47,CntyQryCensus!$A$103:$CX$146,AY$1)","v":18},{"$f":"VLOOKUP(DropDownList!$B$47,CntyQryCensus!$A$103:$CX$146,AZ$1)","v":5},{"$f":"VLOOKUP(DropDownList!$B$47,CntyQryCensus!$A$103:$CX$146,BA$1)","v":319},{"$f":"VLOOKUP(DropDownList!$B$47,CntyQryCensus!$A$103:$CX$146,BB$1)","v":307},{"$f":"VLOOKUP(DropDownList!$B$47,CntyQryCensus!$A$103:$CX$146,BC$1)","v":5},{"$f":"VLOOKUP(DropDownList!$B$47,CntyQryCensus!$A$103:$CX$146,BD$1)","v":7},{"$f":"VLOOKUP(DropDownList!$B$47,CntyQryCensus!$A$103:$CX$146,BE$1)","v":124},{"$f":"VLOOKUP(DropDownList!$B$47,CntyQryCensus!$A$103:$CX$146,BF$1)","v":12},{"$f":"VLOOKUP(DropDownList!$B$47,CntyQryCensus!$A$103:$CX$146,BG$1)","v":61},{"$f":"VLOOKUP(DropDownList!$B$47,CntyQryCensus!$A$103:$CX$146,BH$1)","v":34},{"$f":"VLOOKUP(DropDownList!$B$47,CntyQryCensus!$A$103:$CX$146,BI$1)","v":9},{"$f":"VLOOKUP(DropDownList!$B$47,CntyQryCensus!$A$103:$CX$146,BJ$1)","v":6},{"$f":"VLOOKUP(DropDownList!$B$47,CntyQryCensus!$A$103:$CX$146,BK$1)","v":0},{"$f":"VLOOKUP(DropDownList!$B$47,CntyQryCensus!$A$103:$CX$146,BL$1)","v":2},{"$f":"VLOOKUP(DropDownList!$B$47,CntyQryCensus!$A$103:$CX$146,BM$1)","v":0},{"$f":"VLOOKUP(DropDownList!$B$47,CntyQryCensus!$A$103:$CX$146,BN$1)","v":92700},{"$f":"VLOOKUP(DropDownList!$B$47,CntyQryCensus!$A$103:$CX$146,BO$1)","v":68},{"$f":"VLOOKUP(DropDownList!$B$47,CntyQryCensus!$A$103:$CX$146,BP$1)","v":0},{"$f":"VLOOKUP(DropDownList!$B$47,CntyQryCensus!$A$103:$CX$146,BQ$1)","v":2},{"$f":"VLOOKUP(DropDownList!$B$47,CntyQryCensus!$A$103:$CX$146,BR$1)","v":13},{"$f":"VLOOKUP(DropDownList!$B$47,CntyQryCensus!$A$103:$CX$146,BS$1)","v":27},{"$f":"VLOOKUP(DropDownList!$B$47,CntyQryCensus!$A$103:$CX$146,BT$1)","v":22},{"$f":"VLOOKUP(DropDownList!$B$47,CntyQryCensus!$A$103:$CX$146,BU$1)","v":2},{"$f":"VLOOKUP(DropDownList!$B$47,CntyQryCensus!$A$103:$CX$146,BV$1)","v":2},{"$f":"VLOOKUP(DropDownList!$B$47,CntyQryCensus!$A$103:$CX$146,BW$1)","v":870},{"$f":"VLOOKUP(DropDownList!$B$47,CntyQryCensus!$A$103:$CX$146,BX$1)","v":56},{"$f":"VLOOKUP(DropDownList!$B$47,CntyQryCensus!$A$103:$CX$146,BY$1)","v":407},{"$f":"VLOOKUP(DropDownList!$B$47,CntyQryCensus!$A$103:$CX$146,BZ$1)","v":43},{"$f":"VLOOKUP(DropDownList!$B$47,CntyQryCensus!$A$103:$CX$146,CA$1)","v":22},{"$f":"VLOOKUP(DropDownList!$B$47,CntyQryCensus!$A$103:$CX$146,CB$1)","v":17},{"$f":"VLOOKUP(DropDownList!$B$47,CntyQryCensus!$A$103:$CX$146,CC$1)","v":23},{"$f":"VLOOKUP(DropDownList!$B$47,CntyQryCensus!$A$103:$CX$146,CD$1)","v":8},{"$f":"VLOOKUP(DropDownList!$B$47,CntyQryCensus!$A$103:$CX$146,CE$1)","v":10},{"$f":"VLOOKUP(DropDownList!$B$47,CntyQryCensus!$A$103:$CX$146,CF$1)","v":1},{"$f":"VLOOKUP(DropDownList!$B$47,CntyQryCensus!$A$103:$CX$146,CG$1)","v":33},{"$f":"VLOOKUP(DropDownList!$B$47,CntyQryCensus!$A$103:$CX$146,CH$1)","v":0},{"$f":"VLOOKUP(DropDownList!$B$47,CntyQryCensus!$A$103:$CX$146,CI$1)","v":2},{"$f":"VLOOKUP(DropDownList!$B$47,CntyQryCensus!$A$103:$CX$146,CJ$1)","v":6},{"$f":"VLOOKUP(DropDownList!$B$47,CntyQryCensus!$A$103:$CX$146,CK$1)","v":15},{"$f":"VLOOKUP(DropDownList!$B$47,CntyQryCensus!$A$103:$CX$146,CL$1)","v":2},{"$f":"VLOOKUP(DropDownList!$B$47,CntyQryCensus!$A$103:$CX$146,CM$1)","v":0},{"$f":"VLOOKUP(DropDownList!$B$47,CntyQryCensus!$A$103:$CX$146,CN$1)","v":0},{"$f":"VLOOKUP(DropDownList!$B$47,CntyQryCensus!$A$103:$CX$146,CO$1)","v":8},{"$f":"VLOOKUP(DropDownList!$B$47,CntyQryCensus!$A$103:$CX$146,CP$1)","v":613},{"$f":"VLOOKUP(DropDownList!$B$47,CntyQryCensus!$A$103:$CX$146,CQ$1)","v":7},{"$f":"VLOOKUP(DropDownList!$B$47,CntyQryCensus!$A$103:$CX$146,CR$1)","v":2},{"$f":"VLOOKUP(DropDownList!$B$47,CntyQryCensus!$A$103:$CX$146,CS$1)","v":3},{"$f":"VLOOKUP(DropDownList!$B$47,CntyQryCensus!$A$103:$CX$146,CT$1)","v":4},{"$f":"VLOOKUP(DropDownList!$B$47,CntyQryCensus!$A$103:$CX$146,CU$1)","v":2},{"$f":"VLOOKUP(DropDownList!$B$47,CntyQryCensus!$A$103:$CX$146,CV$1)","v":4},{"$f":"VLOOKUP(DropDownList!$B$47,CntyQryCensus!$A$103:$CX$146,CW$1)","v":11}]
[]
[]
["Census 2000 SummaryFile3 Sample Data  -  SF3TownQry1SocialChar"]
["TOWN_NAME","LOGRECNO","COUSUB","P01TotalPopulation","P02SampleCountOfPop","P03Pop100pctCount","P05UrbanPopulation","P05RuralPopulation","P06WhiteAlone","P06BlackOrAfAm","P06AmIndAlone","P06AsianAlone","P06HawaiianOrPI","P06OtherRace","P06TwoPlusRaces","P07NotHispanicOrLatino","P07HispanicOrLatino","P08MalePop","P08FemalePop","P09PopInHouseholds","P09PopInFamHH","P09PopInNonFamHH","P09PopInGroupQtr","P13TotalHH","P13FamilyHH","P13FamHHolder15to24yrs","P13FamHHolder25to34yrs","P13FamHHolder35to44yrs","P13FamHHolder45to54yrs","P13FamHHolder55to64yrs","P13FamHHolder65to74yrs","P13FamHHolder75to84yrs","P13FamHHolder85yrsOver","P13NonFamilyHH","P13NonFamHHolder15to24yrs","P13NonFamHHolder25to34yrs","P13NonFamHHolder35to44yrs","P13NonFamHHolder45to54yrs","P13NonFamHHolder55to64yrs","P13NonFamHHolder65to74yrs","P13NonFamHHolder75to84yrs","P13NonFamHHolder85yrsOver","P18Pop15yrsOver","P18MaritalStatNeverMarried","P18MaritalStatNowMarried","P18MaritalStatSeparated","P18MaritalStatWidowed","P18MaritalStatWidowFemale","P18MaritalStatDivorced","P18MaritalStatDivorcedFemale","P21NativeBornPop","P21NatPopBornInState","P21NatPopBornOtherState","P021005","P021006","P021007","P021008","P21NatPopBornOutUS","P21ForeignBornPop","P021014","P021015","P24Pop5YrsPlus","P24ResSameHouseIn95","P24ResDiffHouseIn95","P24ResDiffHouseInUSIn95","P24ResDiffHouseSameCountyIn95","P24ResDiffHouseDiffCountyIn95","P24ResDiffHouseDiffCntySamStIn95","P24ResDiffHouseDiffCntyDifStIn95","P24ResDiffHouseDiffCntyNEStIn95","P24ResDiffHouseDiffCntyMWStIn95","P24ResDiffHouseDiffCntySoStIn95","P24ResDiffHouseDiffCntyWstStIn95","P24ResDiffInPR","P24ResDiffElsewhereIn95","P26Workers16yrsOver","P26WorkedInState","P26WorkedInCnty","P26WorkedOutsideCnty","P26WorkedOutsideState","P30Workers16Over","P30TranspToWrkCar","P30TranspToWrkPublic","P30TranspToWrkOther","P30WrkdAtHome","P31WrkrsNotWrkAtHom","P31TravTim<5min","P31TravTim5to9Min","P31TravTim10to14Min","P31TravTim15to19Min","P31TravTim20to24Min","P31TravTim25to29Min","P31TravTim30to34Min","P31TravTim35to39Min","P31TravTim40to44Min","P31TravTim45to59Min","P31TravTim60to89Min","P31TravTim90MinMore","P31WorkAtHome","P36SchEnrlPop3yrOver","P36NurserSchEnrl","P36KinderSchEnrl","P36ElemSchEnrl","P36HighSchEnrl","P36CollGradSchEnrl","P37Pop25yrsOver","P37EduAtain<9grd","P37EduAtainHSnoDip","P37EduAtainHSgrad","P37EduAtainCollNoDeg","P37EduAtainAssocDeg","P37EduAtainBachDeg","P37EduAtainGradProfDeg","P42NIPop5to15","P42NIPop5to15wDisabl","P42NIPop16to20","P42NIPop16to20wDisab","P42NIPop16to20wDisEmp","P42NIPop16to21NoDis","P42NIPop16to21NoDisEmpl","P42NIPop21to64","P42NIPop21to64wDis","P42NIPop21to64wDisEmp","P42NIPop21to64NoDis","P42NIPop21to64NoDisEmp","P42NIPop65to74","P42NIPop65to74wDis","P42NIPop75Over","P42NIPop75OverwDis","P43Pop16YrsOver","P43Pop16OvrInLaborForce","P43Pop16OvrCivlLabFrc","P43Pop16OvrCivlLbrFrcEmp","P48Families","P48MarriedFam","P48MarrFamNoWorkers","P48MarrFam1Worker","P48MarrFam2Worker","P48MarrFamHusbWifeWorked","P48MarrFamOther","P48MarrFam3PlusWorker","P48MarrFam3WorkHsbWif","P48MarrFam3PlsWrkOther","P48OtherFam","P48MaleHHNoWif","P48MaleHHNoWifNoWorker","P48MaleHHNoWif1Worker","P48MaleHHNoWif2Worker","P48MaleHHNoWif3PlusWorker","P48FemaleHHNoHsb","P48FemaleHHNoHsbNoWorker","P48FemaleHHNoHsb1Worker","P48FemaleHHNoHsb2Worker","P48FemaleHHNoHsb3Worker","P49EmpCivPop16YrOver","P49IndustAgricult","P49IndustConst","P49IndustMnftg","P49IndustWhlslTrd","P49IndustRtlTrd","P49IndustTrspWrhsUtlt","P49IndustInfrm","P49IndustFinInsRE","P49IndustPrfsScntfMngmt","P49IndustEduHlthSocSrv","P49IndustArtsEntRec","P49IndustOthrSrvc","P49IndustPubAdm","P50OccupMngmtProfs","P50OccupService","P50OccupSalesOff","P50OccupFarmFishForest","P50OccupConstExtrctMaint","P50OccupPrdctTrnspMatMv"]
[{"$f":"VLOOKUP(DropDownList!$B$47,CntyQryCensus!$A$103:$CX$146,A$1)","v":"Acworth"},{"$f":"VLOOKUP(DropDownList!$B$47,CntyQryCensus!$A$156:$FR$198,B$1)","v":"0004141"},{"$f":"VLOOKUP(DropDownList!$B$47,CntyQryCensus!$A$156:$FR$198,C$1)","v":"00260"},{"$f":"VLOOKUP(DropDownList!$B$47,CntyQryCensus!$A$156:$FR$198,D$1)","v":840},{"$f":"VLOOKUP(DropDownList!$B$47,CntyQryCensus!$A$156:$FR$198,E$1)","v":376},{"$f":"VLOOKUP(DropDownList!$B$47,CntyQryCensus!$A$156:$FR$198,F$1)","v":836},{"$f":"VLOOKUP(DropDownList!$B$47,CntyQryCensus!$A$156:$FR$198,G$1)","v":0},{"$f":"VLOOKUP(DropDownList!$B$47,CntyQryCensus!$A$156:$FR$198,H$1)","v":840},{"$f":"VLOOKUP(DropDownList!$B$47,CntyQryCensus!$A$156:$FR$198,I$1)","v":825},{"$f":"VLOOKUP(DropDownList!$B$47,CntyQryCensus!$A$156:$FR$198,J$1)","v":0},{"$f":"VLOOKUP(DropDownList!$B$47,CntyQryCensus!$A$156:$FR$198,K$1)","v":0},{"$f":"VLOOKUP(DropDownList!$B$47,CntyQryCensus!$A$156:$FR$198,L$1)","v":0},{"$f":"VLOOKUP(DropDownList!$B$47,CntyQryCensus!$A$156:$FR$198,M$1)","v":0},{"$f":"VLOOKUP(DropDownList!$B$47,CntyQryCensus!$A$156:$FR$198,N$1)","v":0},{"$f":"VLOOKUP(DropDownList!$B$47,CntyQryCensus!$A$156:$FR$198,O$1)","v":15},{"$f":"VLOOKUP(DropDownList!$B$47,CntyQryCensus!$A$156:$FR$198,P$1)","v":837},{"$f":"VLOOKUP(DropDownList!$B$47,CntyQryCensus!$A$156:$FR$198,Q$1)","v":3},{"$f":"VLOOKUP(DropDownList!$B$47,CntyQryCensus!$A$156:$FR$198,R$1)","v":436},{"$f":"VLOOKUP(DropDownList!$B$47,CntyQryCensus!$A$156:$FR$198,S$1)","v":404},{"$f":"VLOOKUP(DropDownList!$B$47,CntyQryCensus!$A$156:$FR$198,T$1)","v":840},{"$f":"VLOOKUP(DropDownList!$B$47,CntyQryCensus!$A$156:$FR$198,U$1)","v":736},{"$f":"VLOOKUP(DropDownList!$B$47,CntyQryCensus!$A$156:$FR$198,V$1)","v":104},{"$f":"VLOOKUP(DropDownList!$B$47,CntyQryCensus!$A$156:$FR$198,W$1)","v":0},{"$f":"VLOOKUP(DropDownList!$B$47,CntyQryCensus!$A$156:$FR$198,X$1)","v":325},{"$f":"VLOOKUP(DropDownList!$B$47,CntyQryCensus!$A$156:$FR$198,Y$1)","v":237},{"$f":"VLOOKUP(DropDownList!$B$47,CntyQryCensus!$A$156:$FR$198,Z$1)","v":0},{"$f":"VLOOKUP(DropDownList!$B$47,CntyQryCensus!$A$156:$FR$198,AA$1)","v":16},{"$f":"VLOOKUP(DropDownList!$B$47,CntyQryCensus!$A$156:$FR$198,AB$1)","v":55},{"$f":"VLOOKUP(DropDownList!$B$47,CntyQryCensus!$A$156:$FR$198,AC$1)","v":72},{"$f":"VLOOKUP(DropDownList!$B$47,CntyQryCensus!$A$156:$FR$198,AD$1)","v":40},{"$f":"VLOOKUP(DropDownList!$B$47,CntyQryCensus!$A$156:$FR$198,AE$1)","v":32},{"$f":"VLOOKUP(DropDownList!$B$47,CntyQryCensus!$A$156:$FR$198,AF$1)","v":17},{"$f":"VLOOKUP(DropDownList!$B$47,CntyQryCensus!$A$156:$FR$198,AG$1)","v":5},{"$f":"VLOOKUP(DropDownList!$B$47,CntyQryCensus!$A$156:$FR$198,AH$1)","v":88},{"$f":"VLOOKUP(DropDownList!$B$47,CntyQryCensus!$A$156:$FR$198,AI$1)","v":2},{"$f":"VLOOKUP(DropDownList!$B$47,CntyQryCensus!$A$156:$FR$198,AJ$1)","v":10},{"$f":"VLOOKUP(DropDownList!$B$47,CntyQryCensus!$A$156:$FR$198,AK$1)","v":7},{"$f":"VLOOKUP(DropDownList!$B$47,CntyQryCensus!$A$156:$FR$198,AL$1)","v":9},{"$f":"VLOOKUP(DropDownList!$B$47,CntyQryCensus!$A$156:$FR$198,AM$1)","v":32},{"$f":"VLOOKUP(DropDownList!$B$47,CntyQryCensus!$A$156:$FR$198,AN$1)","v":21},{"$f":"VLOOKUP(DropDownList!$B$47,CntyQryCensus!$A$156:$FR$198,AO$1)","v":3},{"$f":"VLOOKUP(DropDownList!$B$47,CntyQryCensus!$A$156:$FR$198,AP$1)","v":4},{"$f":"VLOOKUP(DropDownList!$B$47,CntyQryCensus!$A$156:$FR$198,AQ$1)","v":667},{"$f":"VLOOKUP(DropDownList!$B$47,CntyQryCensus!$A$156:$FR$198,AR$1)","v":137},{"$f":"VLOOKUP(DropDownList!$B$47,CntyQryCensus!$A$156:$FR$198,AS$1)","v":410},{"$f":"VLOOKUP(DropDownList!$B$47,CntyQryCensus!$A$156:$FR$198,AT$1)","v":5},{"$f":"VLOOKUP(DropDownList!$B$47,CntyQryCensus!$A$156:$FR$198,AU$1)","v":30},{"$f":"VLOOKUP(DropDownList!$B$47,CntyQryCensus!$A$156:$FR$198,AV$1)","v":28},{"$f":"VLOOKUP(DropDownList!$B$47,CntyQryCensus!$A$156:$FR$198,AW$1)","v":85},{"$f":"VLOOKUP(DropDownList!$B$47,CntyQryCensus!$A$156:$FR$198,AX$1)","v":33},{"$f":"VLOOKUP(DropDownList!$B$47,CntyQryCensus!$A$156:$FR$198,AY$1)","v":812},{"$f":"VLOOKUP(DropDownList!$B$47,CntyQryCensus!$A$156:$FR$198,AZ$1)","v":283},{"$f":"VLOOKUP(DropDownList!$B$47,CntyQryCensus!$A$156:$FR$198,BA$1)","v":524},{"$f":"VLOOKUP(DropDownList!$B$47,CntyQryCensus!$A$156:$FR$198,BB$1)","v":423},{"$f":"VLOOKUP(DropDownList!$B$47,CntyQryCensus!$A$156:$FR$198,BC$1)","v":36},{"$f":"VLOOKUP(DropDownList!$B$47,CntyQryCensus!$A$156:$FR$198,BD$1)","v":39},{"$f":"VLOOKUP(DropDownList!$B$47,CntyQryCensus!$A$156:$FR$198,BE$1)","v":26},{"$f":"VLOOKUP(DropDownList!$B$47,CntyQryCensus!$A$156:$FR$198,BF$1)","v":5},{"$f":"VLOOKUP(DropDownList!$B$47,CntyQryCensus!$A$156:$FR$198,BG$1)","v":28},{"$f":"VLOOKUP(DropDownList!$B$47,CntyQryCensus!$A$156:$FR$198,BH$1)","v":12},{"$f":"VLOOKUP(DropDownList!$B$47,CntyQryCensus!$A$156:$FR$198,BI$1)","v":16},{"$f":"VLOOKUP(DropDownList!$B$47,CntyQryCensus!$A$156:$FR$198,BJ$1)","v":799},{"$f":"VLOOKUP(DropDownList!$B$47,CntyQryCensus!$A$156:$FR$198,BK$1)","v":588},{"$f":"VLOOKUP(DropDownList!$B$47,CntyQryCensus!$A$156:$FR$198,BL$1)","v":211},{"$f":"VLOOKUP(DropDownList!$B$47,CntyQryCensus!$A$156:$FR$198,BM$1)","v":203},{"$f":"VLOOKUP(DropDownList!$B$47,CntyQryCensus!$A$156:$FR$198,BN$1)","v":84},{"$f":"VLOOKUP(DropDownList!$B$47,CntyQryCensus!$A$156:$FR$198,BO$1)","v":119},{"$f":"VLOOKUP(DropDownList!$B$47,CntyQryCensus!$A$156:$FR$198,BP$1)","v":41},{"$f":"VLOOKUP(DropDownList!$B$47,CntyQryCensus!$A$156:$FR$198,BQ$1)","v":78},{"$f":"VLOOKUP(DropDownList!$B$47,CntyQryCensus!$A$156:$FR$198,BR$1)","v":68},{"$f":"VLOOKUP(DropDownList!$B$47,CntyQryCensus!$A$156:$FR$198,BS$1)","v":2},{"$f":"VLOOKUP(DropDownList!$B$47,CntyQryCensus!$A$156:$FR$198,BT$1)","v":5},{"$f":"VLOOKUP(DropDownList!$B$47,CntyQryCensus!$A$156:$FR$198,BU$1)","v":3},{"$f":"VLOOKUP(DropDownList!$B$47,CntyQryCensus!$A$156:$FR$198,BV$1)","v":0},{"$f":"VLOOKUP(DropDownList!$B$47,CntyQryCensus!$A$156:$FR$198,BW$1)","v":8},{"$f":"VLOOKUP(DropDownList!$B$47,CntyQryCensus!$A$156:$FR$198,BX$1)","v":403},{"$f":"VLOOKUP(DropDownList!$B$47,CntyQryCensus!$A$156:$FR$198,BY$1)","v":349},{"$f":"VLOOKUP(DropDownList!$B$47,CntyQryCensus!$A$156:$FR$198,BZ$1)","v":222},{"$f":"VLOOKUP(DropDownList!$B$47,CntyQryCensus!$A$156:$FR$198,CA$1)","v":127},{"$f":"VLOOKUP(DropDownList!$B$47,CntyQryCensus!$A$156:$FR$198,CB$1)","v":54},{"$f":"VLOOKUP(DropDownList!$B$47,CntyQryCensus!$A$156:$FR$198,CC$1)","v":403},{"$f":"VLOOKUP(DropDownList!$B$47,CntyQryCensus!$A$156:$FR$198,CD$1)","v":335},{"$f":"VLOOKUP(DropDownList!$B$47,CntyQryCensus!$A$156:$FR$198,CE$1)","v":4},{"$f":"VLOOKUP(DropDownList!$B$47,CntyQryCensus!$A$156:$FR$198,CF$1)","v":2},{"$f":"VLOOKUP(DropDownList!$B$47,CntyQryCensus!$A$156:$FR$198,CG$1)","v":54},{"$f":"VLOOKUP(DropDownList!$B$47,CntyQryCensus!$A$156:$FR$198,CH$1)","v":349},{"$f":"VLOOKUP(DropDownList!$B$47,CntyQryCensus!$A$156:$FR$198,CI$1)","v":10},{"$f":"VLOOKUP(DropDownList!$B$47,CntyQryCensus!$A$156:$FR$198,CJ$1)","v":17},{"$f":"VLOOKUP(DropDownList!$B$47,CntyQryCensus!$A$156:$FR$198,CK$1)","v":13},{"$f":"VLOOKUP(DropDownList!$B$47,CntyQryCensus!$A$156:$FR$198,CL$1)","v":37},{"$f":"VLOOKUP(DropDownList!$B$47,CntyQryCensus!$A$156:$FR$198,CM$1)","v":52},{"$f":"VLOOKUP(DropDownList!$B$47,CntyQryCensus!$A$156:$FR$198,CN$1)","v":29},{"$f":"VLOOKUP(DropDownList!$B$47,CntyQryCensus!$A$156:$FR$198,CO$1)","v":67},{"$f":"VLOOKUP(DropDownList!$B$47,CntyQryCensus!$A$156:$FR$198,CP$1)","v":20},{"$f":"VLOOKUP(DropDownList!$B$47,CntyQryCensus!$A$156:$FR$198,CQ$1)","v":17},{"$f":"VLOOKUP(DropDownList!$B$47,CntyQryCensus!$A$156:$FR$198,CR$1)","v":46},{"$f":"VLOOKUP(DropDownList!$B$47,CntyQryCensus!$A$156:$FR$198,CS$1)","v":30},{"$f":"VLOOKUP(DropDownList!$B$47,CntyQryCensus!$A$156:$FR$198,CT$1)","v":11},{"$f":"VLOOKUP(DropDownList!$B$47,CntyQryCensus!$A$156:$FR$198,CU$1)","v":54},{"$f":"VLOOKUP(DropDownList!$B$47,CntyQryCensus!$A$156:$FR$198,CV$1)","v":814},{"$f":"VLOOKUP(DropDownList!$B$47,CntyQryCensus!$A$156:$FR$198,CW$1)","v":13},{"$f":"VLOOKUP(DropDownList!$B$47,CntyQryCensus!$A$156:$FR$198,CX$1)","v":5},{"$f":"VLOOKUP(DropDownList!$B$47,CntyQryCensus!$A$156:$FR$198,CY$1)","v":115},{"$f":"VLOOKUP(DropDownList!$B$47,CntyQryCensus!$A$156:$FR$198,CZ$1)","v":58},{"$f":"VLOOKUP(DropDownList!$B$47,CntyQryCensus!$A$156:$FR$198,DA$1)","v":23},{"$f":"VLOOKUP(DropDownList!$B$47,CntyQryCensus!$A$156:$FR$198,DB$1)","v":580},{"$f":"VLOOKUP(DropDownList!$B$47,CntyQryCensus!$A$156:$FR$198,DC$1)","v":19},{"$f":"VLOOKUP(DropDownList!$B$47,CntyQryCensus!$A$156:$FR$198,DD$1)","v":63},{"$f":"VLOOKUP(DropDownList!$B$47,CntyQryCensus!$A$156:$FR$198,DE$1)","v":205},{"$f":"VLOOKUP(DropDownList!$B$47,CntyQryCensus!$A$156:$FR$198,DF$1)","v":100},{"$f":"VLOOKUP(DropDownList!$B$47,CntyQryCensus!$A$156:$FR$198,DG$1)","v":27},{"$f":"VLOOKUP(DropDownList!$B$47,CntyQryCensus!$A$156:$FR$198,DH$1)","v":110},{"$f":"VLOOKUP(DropDownList!$B$47,CntyQryCensus!$A$156:$FR$198,DI$1)","v":56},{"$f":"VLOOKUP(DropDownList!$B$47,CntyQryCensus!$A$156:$FR$198,DJ$1)","v":142},{"$f":"VLOOKUP(DropDownList!$B$47,CntyQryCensus!$A$156:$FR$198,DK$1)","v":0},{"$f":"VLOOKUP(DropDownList!$B$47,CntyQryCensus!$A$156:$FR$198,DL$1)","v":55},{"$f":"VLOOKUP(DropDownList!$B$47,CntyQryCensus!$A$156:$FR$198,DM$1)","v":2},{"$f":"VLOOKUP(DropDownList!$B$47,CntyQryCensus!$A$156:$FR$198,DN$1)","v":0},{"$f":"VLOOKUP(DropDownList!$B$47,CntyQryCensus!$A$156:$FR$198,DO$1)","v":53},{"$f":"VLOOKUP(DropDownList!$B$47,CntyQryCensus!$A$156:$FR$198,DP$1)","v":30},{"$f":"VLOOKUP(DropDownList!$B$47,CntyQryCensus!$A$156:$FR$198,DQ$1)","v":472},{"$f":"VLOOKUP(DropDownList!$B$47,CntyQryCensus!$A$156:$FR$198,DR$1)","v":84},{"$f":"VLOOKUP(DropDownList!$B$47,CntyQryCensus!$A$156:$FR$198,DS$1)","v":48},{"$f":"VLOOKUP(DropDownList!$B$47,CntyQryCensus!$A$156:$FR$198,DT$1)","v":388},{"$f":"VLOOKUP(DropDownList!$B$47,CntyQryCensus!$A$156:$FR$198,DU$1)","v":311},{"$f":"VLOOKUP(DropDownList!$B$47,CntyQryCensus!$A$156:$FR$198,DV$1)","v":83},{"$f":"VLOOKUP(DropDownList!$B$47,CntyQryCensus!$A$156:$FR$198,DW$1)","v":12},{"$f":"VLOOKUP(DropDownList!$B$47,CntyQryCensus!$A$156:$FR$198,DX$1)","v":47},{"$f":"VLOOKUP(DropDownList!$B$47,CntyQryCensus!$A$156:$FR$198,DY$1)","v":17},{"$f":"VLOOKUP(DropDownList!$B$47,CntyQryCensus!$A$156:$FR$198,DZ$1)","v":657},{"$f":"VLOOKUP(DropDownList!$B$47,CntyQryCensus!$A$156:$FR$198,EA$1)","v":421},{"$f":"VLOOKUP(DropDownList!$B$47,CntyQryCensus!$A$156:$FR$198,EB$1)","v":421},{"$f":"VLOOKUP(DropDownList!$B$47,CntyQryCensus!$A$156:$FR$198,EC$1)","v":416},{"$f":"VLOOKUP(DropDownList!$B$47,CntyQryCensus!$A$156:$FR$198,ED$1)","v":237},{"$f":"VLOOKUP(DropDownList!$B$47,CntyQryCensus!$A$156:$FR$198,EE$1)","v":197},{"$f":"VLOOKUP(DropDownList!$B$47,CntyQryCensus!$A$156:$FR$198,EF$1)","v":34},{"$f":"VLOOKUP(DropDownList!$B$47,CntyQryCensus!$A$156:$FR$198,EG$1)","v":23},{"$f":"VLOOKUP(DropDownList!$B$47,CntyQryCensus!$A$156:$FR$198,EH$1)","v":115},{"$f":"VLOOKUP(DropDownList!$B$47,CntyQryCensus!$A$156:$FR$198,EI$1)","v":98},{"$f":"VLOOKUP(DropDownList!$B$47,CntyQryCensus!$A$156:$FR$198,EJ$1)","v":17},{"$f":"VLOOKUP(DropDownList!$B$47,CntyQryCensus!$A$156:$FR$198,EK$1)","v":25},{"$f":"VLOOKUP(DropDownList!$B$47,CntyQryCensus!$A$156:$FR$198,EL$1)","v":20},{"$f":"VLOOKUP(DropDownList!$B$47,CntyQryCensus!$A$156:$FR$198,EM$1)","v":5},{"$f":"VLOOKUP(DropDownList!$B$47,CntyQryCensus!$A$156:$FR$198,EN$1)","v":40},{"$f":"VLOOKUP(DropDownList!$B$47,CntyQryCensus!$A$156:$FR$198,EO$1)","v":16},{"$f":"VLOOKUP(DropDownList!$B$47,CntyQryCensus!$A$156:$FR$198,EP$1)","v":3},{"$f":"VLOOKUP(DropDownList!$B$47,CntyQryCensus!$A$156:$FR$198,EQ$1)","v":8},{"$f":"VLOOKUP(DropDownList!$B$47,CntyQryCensus!$A$156:$FR$198,ER$1)","v":5},{"$f":"VLOOKUP(DropDownList!$B$47,CntyQryCensus!$A$156:$FR$198,ES$1)","v":0},{"$f":"VLOOKUP(DropDownList!$B$47,CntyQryCensus!$A$156:$FR$198,ET$1)","v":24},{"$f":"VLOOKUP(DropDownList!$B$47,CntyQryCensus!$A$156:$FR$198,EU$1)","v":11},{"$f":"VLOOKUP(DropDownList!$B$47,CntyQryCensus!$A$156:$FR$198,EV$1)","v":4},{"$f":"VLOOKUP(DropDownList!$B$47,CntyQryCensus!$A$156:$FR$198,EW$1)","v":7},{"$f":"VLOOKUP(DropDownList!$B$47,CntyQryCensus!$A$156:$FR$198,EX$1)","v":2},{"$f":"VLOOKUP(DropDownList!$B$47,CntyQryCensus!$A$156:$FR$198,EY$1)","v":416},{"$f":"VLOOKUP(DropDownList!$B$47,CntyQryCensus!$A$156:$FR$198,EZ$1)","v":27},{"$f":"VLOOKUP(DropDownList!$B$47,CntyQryCensus!$A$156:$FR$198,FA$1)","v":63},{"$f":"VLOOKUP(DropDownList!$B$47,CntyQryCensus!$A$156:$FR$198,FB$1)","v":83},{"$f":"VLOOKUP(DropDownList!$B$47,CntyQryCensus!$A$156:$FR$198,FC$1)","v":9},{"$f":"VLOOKUP(DropDownList!$B$47,CntyQryCensus!$A$156:$FR$198,FD$1)","v":45},{"$f":"VLOOKUP(DropDownList!$B$47,CntyQryCensus!$A$156:$FR$198,FE$1)","v":35},{"$f":"VLOOKUP(DropDownList!$B$47,CntyQryCensus!$A$156:$FR$198,FF$1)","v":8},{"$f":"VLOOKUP(DropDownList!$B$47,CntyQryCensus!$A$156:$FR$198,FG$1)","v":15},{"$f":"VLOOKUP(DropDownList!$B$47,CntyQryCensus!$A$156:$FR$198,FH$1)","v":14},{"$f":"VLOOKUP(DropDownList!$B$47,CntyQryCensus!$A$156:$FR$198,FI$1)","v":69},{"$f":"VLOOKUP(DropDownList!$B$47,CntyQryCensus!$A$156:$FR$198,FJ$1)","v":14},{"$f":"VLOOKUP(DropDownList!$B$47,CntyQryCensus!$A$156:$FR$198,FK$1)","v":22},{"$f":"VLOOKUP(DropDownList!$B$47,CntyQryCensus!$A$156:$FR$198,FL$1)","v":12},{"$f":"VLOOKUP(DropDownList!$B$47,CntyQryCensus!$A$156:$FR$198,FM$1)","v":118},{"$f":"VLOOKUP(DropDownList!$B$47,CntyQryCensus!$A$156:$FR$198,FN$1)","v":25},{"$f":"VLOOKUP(DropDownList!$B$47,CntyQryCensus!$A$156:$FR$198,FO$1)","v":103},{"$f":"VLOOKUP(DropDownList!$B$47,CntyQryCensus!$A$156:$FR$198,FP$1)","v":8},{"$f":"VLOOKUP(DropDownList!$B$47,CntyQryCensus!$A$156:$FR$198,FQ$1)","v":74},{"$f":"VLOOKUP(DropDownList!$B$47,CntyQryCensus!$A$156:$FR$198,FR$1)","v":88}]
[]
[]
["Census 2000 SummaryFile3 Sample Data  -  SF3TownQry2aIncomeChar"]
["NAME","LOGRECNO","COUNTY","TotalPop","P52Households1","P52HHInc<10K","P52HHInc10to15K","P52HHInc15to20K","P52HHInc20to25K","P52HHInc25to30K","P52HHInc30to35K","P52HHInc35to40K","P52HHInc40to45K","P52HHInc45to50K","P52HHInc50to60K","P52HHInc60to75K","P52HHInc75to100K","P52HHInc100to125K","P52HHInc125to150K","P52HHInc150to200K","P52HHInc>200K","P53MedianHHInc","P54AggregHHInc","P55Households2","P55HHUnder25yrs","P55HH<25HHInc<10K","P55HH<25HHInc10to15K","P55HH<25HHInc15to20K","P55HH<25HHInc20to25K","P55HH<25HHInc25to30K","P55HH<25HHInc30to35K","P55HH<25HHInc35to40K","P55HH<25HHInc40to45K","P55HH<25HHInc45to50K","P55HH<25HHInc50to60K","P55HH<25HHInc60to75K","P55HH<25HHInc75to100K","P55HH<25HHInc100to125K","P55HH<25HHInc125to150K","P55HH<25HHInc150to200K","P55HH<25HHInc>200K","P55HH25to34yrs","P55HH25to34HHInc<10K","P55HH25to34HHInc10to15K","P55HH25to34HHInc15to20K","P55HH25to34HHInc20to25K","P55HH25to34HHInc25to30K","P55HH25to34HHInc30to35K","P55HH25to34HHInc35to40K","P55HH25to34HHInc40to45K","P55HH25to34HHInc45to50K","P55HH25to34HHInc50to60K","P55HH25to34HHInc60to75K","P55HH25to34HHInc75to100K","P55HH25to34HHInc100to125K","P55HH25to34HHInc125to150K","P55HH25to34HHInc150to200K","P55HH25to34HHInc>200K","P55HH35to44yrs","P55HH35to44HHInc<10K","P55HH35to44HHInc10to15K","P55HH35to44HHInc15to20K","P55HH35to44HHInc20to25K","P55HH35to44HHInc25to30K","P55HH35to44HHInc30to35K","P55HH35to44HHInc35to40K","P55HH35to44HHInc40to45K","P55HH35to44HHInc45to50K","P55HH35to44HHInc50to60K","P55HH35to44HHInc60to75K","P55HH35to44HHInc75to100K","P55HH35to44HHInc100to125K","P55HH35to44HHInc125to150K","P55HH35to44HHInc150to200K","P55HH35to44HHInc>200K","P55HH45to54yrs","P55HH45to55HHInc<10K","P55HH45to55HHInc10to15K","P55HH45to55HHInc15to20K","P55HH45to55HHInc20to25K","P55HH45to55HHInc25to30K","P55HH45to55HHInc30to35K","P55HH45to55HHInc35to40K","P55HH45to55HHInc40to45K","P55HH45to55HHInc45to50K","P55HH45to55HHInc50to60K","P55HH45to55HHInc60to75K","P55HH45to55HHInc75to100K","P55HH45to55HHInc100to125K","P55HH45to55HHInc125to150K","P55HH45to55HHInc150to200K","P55HH45to55HHInc>200K","P55HH55to64yrs","P55HH55to64HHInc<10K","P55HH55to64HHInc10to15K","P55HH55to64HHInc15to20K","P55HH55to64HHInc20to25K","P55HH55to64HHInc25to30K","P55HH55to64HHInc30to35K","P55HH55to64HHInc35to40K","P55HH55to64HHInc40to45K","P55HH55to64HHInc45to50K","P55HH55to64HHInc50to60K","P55HH55to64HHInc60to75K","P55HH55to64HHInc75to100K","P55HH55to64HHInc100to125K","P55HH55to64HHInc125to150K","P55HH55to64HHInc150to200K","P55HH55to64HHInc>200K","P55HH65to74yrs","P55HH65to74HHInc<10K","P55HH65to74HHInc10to15K","P55HH65to74HHInc15to20K","P55HH65to74HHInc20to25K","P55HH65to74HHInc25to30K","P55HH65to74HHInc30to35K","P55HH65to74HHInc35to40K","P55HH65to74HHInc40to45K","P55HH65to74HHInc45to50K","P55HH65to74HHInc50to60K","P55HH65to74HHInc60to75K","P55HH65to74HHInc75to100K","P55HH65to74HHInc100to125K","P55HH65to74HHInc125to150K","P55HH65to74HHInc150to200K","P55HH65to74HHInc>200K","P55HH>75yrs","P55HH>75HHInc<10K","P55HH>75HHInc10to15K","P55HH>75HHInc15to20K","P55HH>75HHInc20to25K","P55HH>75HHInc25to30K","P55HH>75HHInc30to35K","P55HH>75HHInc35to40K","P55HH>75HHInc40to45K","P55HH>75HHInc45to50K","P55HH>75HHInc50to60K","P55HH>75HHInc60to75K","P55HH>75HHInc75to100K","P55HH>75HHInc100to125K","P55HH>75HHInc125to150K","P55HH>75HHInc150to200K","P55HH>75HHInc>200K","P56MedHHInc","P56MedHHIncHH<25y","P56MedHHIncHH25to34y","P56MedHHIncHH35to44y","P56MedHHIncHH45to54y","P56MedHHIncHH55to64y","P56MedHHIncHH65to74y","P56MedHHIncHH>75y","P58Households3","P58HHwithEarnings","P58HHNoEarnings","P59HHwWageSalInc","P59HHNoWageSalInc","P60HHwSelfEmpInc","P60HHNoSelfEmpInc","P61HHwIndDivInc","P61HHNoIndDivInc","P62HHwSocSecInc","P62HHNoSocSecInc","P63HHwSSI","P63HHNoSSI","P64HHwPubAssInc","P64HHNoPubAssInc","P65HHwRetInc","P65HHNoRetInc","P66HHwOtherTypInc","P66HHNoOtherTypInc","P67AggregEarnings","P68AggregWageSalInc","P69AggregSelfEmpInc","P70AggregIntDivInc","P71AggregSocSecInc","P72AggregSSIInc","P73AggregPublicAssInc","P74AggregRetireInc","P76Families1","P76FamInc<10K","P76FamInc10to15K","P76FamInc15to20K","P76FamInc20to25K","P76FamInc25to30K","P76FamInc30to35K","P76FamInc35to40K","P76FamInc40to45K","P76FamInc45to50K","P76FamInc50to60K","P76FamInc60to75K","P76FamInc75to100K","P76FamInc100to125K","P76FamInc125to150K","P76FamInc150to200K","P76FamInc>200K","P77MedFamInc","P78AggregFamInc","P79NonFamHH","P79NonFamHHwInc<10K","P79NonFamHHwInc10to15K","P79NonFamHHwInc15to20K","P79NonFamHHwInc20to25K","P79NonFamHHwInc25to30K","P79NonFamHHwInc30to35K","P79NonFamHHwInc35to40K","P79NonFamHHwInc40to45K","P79NonFamHHwInc45to50K","P79NonFamHHwInc50to60K","P79NonFamHHwInc60to75K","P79NonFamHHwInc75to100K","P79NonFamHHwInc100to125K","P79NonFamHHwInc125to150K","P79NonFamHHwInc150to200K","P79NonFamHHwInc200KorMore","P80MedNonFamInc","P82PerCapitaInc"]
[{"$f":"VLOOKUP(DropDownList!$B$47,CntyQryCensus!$A$206:$HH$248,A$1)","v":"Acworth"},{"$f":"VLOOKUP(DropDownList!$B$47,CntyQryCensus!$A$206:$HH$248,B$1)","v":"0004141"},{"$f":"VLOOKUP(DropDownList!$B$47,CntyQryCensus!$A$206:$HH$248,C$1)","v":"00260"},{"$f":"VLOOKUP(DropDownList!$B$47,CntyQryCensus!$A$206:$HH$248,D$1)","v":836},{"$f":"VLOOKUP(DropDownList!$B$47,CntyQryCensus!$A$206:$HH$248,E$1)","v":325},{"$f":"VLOOKUP(DropDownList!$B$47,CntyQryCensus!$A$206:$HH$248,F$1)","v":25},{"$f":"VLOOKUP(DropDownList!$B$47,CntyQryCensus!$A$206:$HH$248,G$1)","v":12},{"$f":"VLOOKUP(DropDownList!$B$47,CntyQryCensus!$A$206:$HH$248,H$1)","v":38},{"$f":"VLOOKUP(DropDownList!$B$47,CntyQryCensus!$A$206:$HH$248,I$1)","v":17},{"$f":"VLOOKUP(DropDownList!$B$47,CntyQryCensus!$A$206:$HH$248,J$1)","v":36},{"$f":"VLOOKUP(DropDownList!$B$47,CntyQryCensus!$A$206:$HH$248,K$1)","v":24},{"$f":"VLOOKUP(DropDownList!$B$47,CntyQryCensus!$A$206:$HH$248,L$1)","v":19},{"$f":"VLOOKUP(DropDownList!$B$47,CntyQryCensus!$A$206:$HH$248,M$1)","v":29},{"$f":"VLOOKUP(DropDownList!$B$47,CntyQryCensus!$A$206:$HH$248,N$1)","v":22},{"$f":"VLOOKUP(DropDownList!$B$47,CntyQryCensus!$A$206:$HH$248,O$1)","v":30},{"$f":"VLOOKUP(DropDownList!$B$47,CntyQryCensus!$A$206:$HH$248,P$1)","v":30},{"$f":"VLOOKUP(DropDownList!$B$47,CntyQryCensus!$A$206:$HH$248,Q$1)","v":26},{"$f":"VLOOKUP(DropDownList!$B$47,CntyQryCensus!$A$206:$HH$248,R$1)","v":4},{"$f":"VLOOKUP(DropDownList!$B$47,CntyQryCensus!$A$206:$HH$248,S$1)","v":7},{"$f":"VLOOKUP(DropDownList!$B$47,CntyQryCensus!$A$206:$HH$248,T$1)","v":2},{"$f":"VLOOKUP(DropDownList!$B$47,CntyQryCensus!$A$206:$HH$248,U$1)","v":4},{"$f":"VLOOKUP(DropDownList!$B$47,CntyQryCensus!$A$206:$HH$248,V$1)","v":37386},{"$f":"VLOOKUP(DropDownList!$B$47,CntyQryCensus!$A$206:$HH$248,W$1)","v":14932900},{"$f":"VLOOKUP(DropDownList!$B$47,CntyQryCensus!$A$206:$HH$248,X$1)","v":325},{"$f":"VLOOKUP(DropDownList!$B$47,CntyQryCensus!$A$206:$HH$248,Y$1)","v":2},{"$f":"VLOOKUP(DropDownList!$B$47,CntyQryCensus!$A$206:$HH$248,Z$1)","v":0},{"$f":"VLOOKUP(DropDownList!$B$47,CntyQryCensus!$A$206:$HH$248,AA$1)","v":0},{"$f":"VLOOKUP(DropDownList!$B$47,CntyQryCensus!$A$206:$HH$248,AB$1)","v":0},{"$f":"VLOOKUP(DropDownList!$B$47,CntyQryCensus!$A$206:$HH$248,AC$1)","v":0},{"$f":"VLOOKUP(DropDownList!$B$47,CntyQryCensus!$A$206:$HH$248,AD$1)","v":2},{"$f":"VLOOKUP(DropDownList!$B$47,CntyQryCensus!$A$206:$HH$248,AE$1)","v":0},{"$f":"VLOOKUP(DropDownList!$B$47,CntyQryCensus!$A$206:$HH$248,AF$1)","v":0},{"$f":"VLOOKUP(DropDownList!$B$47,CntyQryCensus!$A$206:$HH$248,AG$1)","v":0},{"$f":"VLOOKUP(DropDownList!$B$47,CntyQryCensus!$A$206:$HH$248,AH$1)","v":0},{"$f":"VLOOKUP(DropDownList!$B$47,CntyQryCensus!$A$206:$HH$248,AI$1)","v":0},{"$f":"VLOOKUP(DropDownList!$B$47,CntyQryCensus!$A$206:$HH$248,AJ$1)","v":0},{"$f":"VLOOKUP(DropDownList!$B$47,CntyQryCensus!$A$206:$HH$248,AK$1)","v":0},{"$f":"VLOOKUP(DropDownList!$B$47,CntyQryCensus!$A$206:$HH$248,AL$1)","v":0},{"$f":"VLOOKUP(DropDownList!$B$47,CntyQryCensus!$A$206:$HH$248,AM$1)","v":0},{"$f":"VLOOKUP(DropDownList!$B$47,CntyQryCensus!$A$206:$HH$248,AN$1)","v":0},{"$f":"VLOOKUP(DropDownList!$B$47,CntyQryCensus!$A$206:$HH$248,AO$1)","v":0},{"$f":"VLOOKUP(DropDownList!$B$47,CntyQryCensus!$A$206:$HH$248,AP$1)","v":26},{"$f":"VLOOKUP(DropDownList!$B$47,CntyQryCensus!$A$206:$HH$248,AQ$1)","v":0},{"$f":"VLOOKUP(DropDownList!$B$47,CntyQryCensus!$A$206:$HH$248,AR$1)","v":0},{"$f":"VLOOKUP(DropDownList!$B$47,CntyQryCensus!$A$206:$HH$248,AS$1)","v":0},{"$f":"VLOOKUP(DropDownList!$B$47,CntyQryCensus!$A$206:$HH$248,AT$1)","v":0},{"$f":"VLOOKUP(DropDownList!$B$47,CntyQryCensus!$A$206:$HH$248,AU$1)","v":5},{"$f":"VLOOKUP(DropDownList!$B$47,CntyQryCensus!$A$206:$HH$248,AV$1)","v":3},{"$f":"VLOOKUP(DropDownList!$B$47,CntyQryCensus!$A$206:$HH$248,AW$1)","v":3},{"$f":"VLOOKUP(DropDownList!$B$47,CntyQryCensus!$A$206:$HH$248,AX$1)","v":4},{"$f":"VLOOKUP(DropDownList!$B$47,CntyQryCensus!$A$206:$HH$248,AY$1)","v":2},{"$f":"VLOOKUP(DropDownList!$B$47,CntyQryCensus!$A$206:$HH$248,AZ$1)","v":4},{"$f":"VLOOKUP(DropDownList!$B$47,CntyQryCensus!$A$206:$HH$248,BA$1)","v":5},{"$f":"VLOOKUP(DropDownList!$B$47,CntyQryCensus!$A$206:$HH$248,BB$1)","v":0},{"$f":"VLOOKUP(DropDownList!$B$47,CntyQryCensus!$A$206:$HH$248,BC$1)","v":0},{"$f":"VLOOKUP(DropDownList!$B$47,CntyQryCensus!$A$206:$HH$248,BD$1)","v":0},{"$f":"VLOOKUP(DropDownList!$B$47,CntyQryCensus!$A$206:$HH$248,BE$1)","v":0},{"$f":"VLOOKUP(DropDownList!$B$47,CntyQryCensus!$A$206:$HH$248,BF$1)","v":0},{"$f":"VLOOKUP(DropDownList!$B$47,CntyQryCensus!$A$206:$HH$248,BG$1)","v":62},{"$f":"VLOOKUP(DropDownList!$B$47,CntyQryCensus!$A$206:$HH$248,BH$1)","v":9},{"$f":"VLOOKUP(DropDownList!$B$47,CntyQryCensus!$A$206:$HH$248,BI$1)","v":0},{"$f":"VLOOKUP(DropDownList!$B$47,CntyQryCensus!$A$206:$HH$248,BJ$1)","v":5},{"$f":"VLOOKUP(DropDownList!$B$47,CntyQryCensus!$A$206:$HH$248,BK$1)","v":4},{"$f":"VLOOKUP(DropDownList!$B$47,CntyQryCensus!$A$206:$HH$248,BL$1)","v":3},{"$f":"VLOOKUP(DropDownList!$B$47,CntyQryCensus!$A$206:$HH$248,BM$1)","v":2},{"$f":"VLOOKUP(DropDownList!$B$47,CntyQryCensus!$A$206:$HH$248,BN$1)","v":4},{"$f":"VLOOKUP(DropDownList!$B$47,CntyQryCensus!$A$206:$HH$248,BO$1)","v":2},{"$f":"VLOOKUP(DropDownList!$B$47,CntyQryCensus!$A$206:$HH$248,BP$1)","v":3},{"$f":"VLOOKUP(DropDownList!$B$47,CntyQryCensus!$A$206:$HH$248,BQ$1)","v":8},{"$f":"VLOOKUP(DropDownList!$B$47,CntyQryCensus!$A$206:$HH$248,BR$1)","v":9},{"$f":"VLOOKUP(DropDownList!$B$47,CntyQryCensus!$A$206:$HH$248,BS$1)","v":9},{"$f":"VLOOKUP(DropDownList!$B$47,CntyQryCensus!$A$206:$HH$248,BT$1)","v":0},{"$f":"VLOOKUP(DropDownList!$B$47,CntyQryCensus!$A$206:$HH$248,BU$1)","v":2},{"$f":"VLOOKUP(DropDownList!$B$47,CntyQryCensus!$A$206:$HH$248,BV$1)","v":0},{"$f":"VLOOKUP(DropDownList!$B$47,CntyQryCensus!$A$206:$HH$248,BW$1)","v":2},{"$f":"VLOOKUP(DropDownList!$B$47,CntyQryCensus!$A$206:$HH$248,BX$1)","v":81},{"$f":"VLOOKUP(DropDownList!$B$47,CntyQryCensus!$A$206:$HH$248,BY$1)","v":3},{"$f":"VLOOKUP(DropDownList!$B$47,CntyQryCensus!$A$206:$HH$248,BZ$1)","v":3},{"$f":"VLOOKUP(DropDownList!$B$47,CntyQryCensus!$A$206:$HH$248,CA$1)","v":2},{"$f":"VLOOKUP(DropDownList!$B$47,CntyQryCensus!$A$206:$HH$248,CB$1)","v":4},{"$f":"VLOOKUP(DropDownList!$B$47,CntyQryCensus!$A$206:$HH$248,CC$1)","v":10},{"$f":"VLOOKUP(DropDownList!$B$47,CntyQryCensus!$A$206:$HH$248,CD$1)","v":9},{"$f":"VLOOKUP(DropDownList!$B$47,CntyQryCensus!$A$206:$HH$248,CE$1)","v":4},{"$f":"VLOOKUP(DropDownList!$B$47,CntyQryCensus!$A$206:$HH$248,CF$1)","v":11},{"$f":"VLOOKUP(DropDownList!$B$47,CntyQryCensus!$A$206:$HH$248,CG$1)","v":8},{"$f":"VLOOKUP(DropDownList!$B$47,CntyQryCensus!$A$206:$HH$248,CH$1)","v":9},{"$f":"VLOOKUP(DropDownList!$B$47,CntyQryCensus!$A$206:$HH$248,CI$1)","v":6},{"$f":"VLOOKUP(DropDownList!$B$47,CntyQryCensus!$A$206:$HH$248,CJ$1)","v":8},{"$f":"VLOOKUP(DropDownList!$B$47,CntyQryCensus!$A$206:$HH$248,CK$1)","v":2},{"$f":"VLOOKUP(DropDownList!$B$47,CntyQryCensus!$A$206:$HH$248,CL$1)","v":0},{"$f":"VLOOKUP(DropDownList!$B$47,CntyQryCensus!$A$206:$HH$248,CM$1)","v":0},{"$f":"VLOOKUP(DropDownList!$B$47,CntyQryCensus!$A$206:$HH$248,CN$1)","v":2},{"$f":"VLOOKUP(DropDownList!$B$47,CntyQryCensus!$A$206:$HH$248,CO$1)","v":72},{"$f":"VLOOKUP(DropDownList!$B$47,CntyQryCensus!$A$206:$HH$248,CP$1)","v":6},{"$f":"VLOOKUP(DropDownList!$B$47,CntyQryCensus!$A$206:$HH$248,CQ$1)","v":4},{"$f":"VLOOKUP(DropDownList!$B$47,CntyQryCensus!$A$206:$HH$248,CR$1)","v":12},{"$f":"VLOOKUP(DropDownList!$B$47,CntyQryCensus!$A$206:$HH$248,CS$1)","v":2},{"$f":"VLOOKUP(DropDownList!$B$47,CntyQryCensus!$A$206:$HH$248,CT$1)","v":4},{"$f":"VLOOKUP(DropDownList!$B$47,CntyQryCensus!$A$206:$HH$248,CU$1)","v":6},{"$f":"VLOOKUP(DropDownList!$B$47,CntyQryCensus!$A$206:$HH$248,CV$1)","v":2},{"$f":"VLOOKUP(DropDownList!$B$47,CntyQryCensus!$A$206:$HH$248,CW$1)","v":10},{"$f":"VLOOKUP(DropDownList!$B$47,CntyQryCensus!$A$206:$HH$248,CX$1)","v":4},{"$f":"VLOOKUP(DropDownList!$B$47,CntyQryCensus!$A$206:$HH$248,CY$1)","v":2},{"$f":"VLOOKUP(DropDownList!$B$47,CntyQryCensus!$A$206:$HH$248,CZ$1)","v":9},{"$f":"VLOOKUP(DropDownList!$B$47,CntyQryCensus!$A$206:$HH$248,DA$1)","v":5},{"$f":"VLOOKUP(DropDownList!$B$47,CntyQryCensus!$A$206:$HH$248,DB$1)","v":2},{"$f":"VLOOKUP(DropDownList!$B$47,CntyQryCensus!$A$206:$HH$248,DC$1)","v":4},{"$f":"VLOOKUP(DropDownList!$B$47,CntyQryCensus!$A$206:$HH$248,DD$1)","v":0},{"$f":"VLOOKUP(DropDownList!$B$47,CntyQryCensus!$A$206:$HH$248,DE$1)","v":0},{"$f":"VLOOKUP(DropDownList!$B$47,CntyQryCensus!$A$206:$HH$248,DF$1)","v":53},{"$f":"VLOOKUP(DropDownList!$B$47,CntyQryCensus!$A$206:$HH$248,DG$1)","v":4},{"$f":"VLOOKUP(DropDownList!$B$47,CntyQryCensus!$A$206:$HH$248,DH$1)","v":5},{"$f":"VLOOKUP(DropDownList!$B$47,CntyQryCensus!$A$206:$HH$248,DI$1)","v":8},{"$f":"VLOOKUP(DropDownList!$B$47,CntyQryCensus!$A$206:$HH$248,DJ$1)","v":6},{"$f":"VLOOKUP(DropDownList!$B$47,CntyQryCensus!$A$206:$HH$248,DK$1)","v":9},{"$f":"VLOOKUP(DropDownList!$B$47,CntyQryCensus!$A$206:$HH$248,DL$1)","v":0},{"$f":"VLOOKUP(DropDownList!$B$47,CntyQryCensus!$A$206:$HH$248,DM$1)","v":6},{"$f":"VLOOKUP(DropDownList!$B$47,CntyQryCensus!$A$206:$HH$248,DN$1)","v":2},{"$f":"VLOOKUP(DropDownList!$B$47,CntyQryCensus!$A$206:$HH$248,DO$1)","v":2},{"$f":"VLOOKUP(DropDownList!$B$47,CntyQryCensus!$A$206:$HH$248,DP$1)","v":6},{"$f":"VLOOKUP(DropDownList!$B$47,CntyQryCensus!$A$206:$HH$248,DQ$1)","v":0},{"$f":"VLOOKUP(DropDownList!$B$47,CntyQryCensus!$A$206:$HH$248,DR$1)","v":2},{"$f":"VLOOKUP(DropDownList!$B$47,CntyQryCensus!$A$206:$HH$248,DS$1)","v":0},{"$f":"VLOOKUP(DropDownList!$B$47,CntyQryCensus!$A$206:$HH$248,DT$1)","v":1},{"$f":"VLOOKUP(DropDownList!$B$47,CntyQryCensus!$A$206:$HH$248,DU$1)","v":2},{"$f":"VLOOKUP(DropDownList!$B$47,CntyQryCensus!$A$206:$HH$248,DV$1)","v":0},{"$f":"VLOOKUP(DropDownList!$B$47,CntyQryCensus!$A$206:$HH$248,DW$1)","v":29},{"$f":"VLOOKUP(DropDownList!$B$47,CntyQryCensus!$A$206:$HH$248,DX$1)","v":3},{"$f":"VLOOKUP(DropDownList!$B$47,CntyQryCensus!$A$206:$HH$248,DY$1)","v":0},{"$f":"VLOOKUP(DropDownList!$B$47,CntyQryCensus!$A$206:$HH$248,DZ$1)","v":11},{"$f":"VLOOKUP(DropDownList!$B$47,CntyQryCensus!$A$206:$HH$248,EA$1)","v":1},{"$f":"VLOOKUP(DropDownList!$B$47,CntyQryCensus!$A$206:$HH$248,EB$1)","v":3},{"$f":"VLOOKUP(DropDownList!$B$47,CntyQryCensus!$A$206:$HH$248,EC$1)","v":4},{"$f":"VLOOKUP(DropDownList!$B$47,CntyQryCensus!$A$206:$HH$248,ED$1)","v":0},{"$f":"VLOOKUP(DropDownList!$B$47,CntyQryCensus!$A$206:$HH$248,EE$1)","v":0},{"$f":"VLOOKUP(DropDownList!$B$47,CntyQryCensus!$A$206:$HH$248,EF$1)","v":3},{"$f":"VLOOKUP(DropDownList!$B$47,CntyQryCensus!$A$206:$HH$248,EG$1)","v":1},{"$f":"VLOOKUP(DropDownList!$B$47,CntyQryCensus!$A$206:$HH$248,EH$1)","v":1},{"$f":"VLOOKUP(DropDownList!$B$47,CntyQryCensus!$A$206:$HH$248,EI$1)","v":2},{"$f":"VLOOKUP(DropDownList!$B$47,CntyQryCensus!$A$206:$HH$248,EJ$1)","v":0},{"$f":"VLOOKUP(DropDownList!$B$47,CntyQryCensus!$A$206:$HH$248,EK$1)","v":0},{"$f":"VLOOKUP(DropDownList!$B$47,CntyQryCensus!$A$206:$HH$248,EL$1)","v":0},{"$f":"VLOOKUP(DropDownList!$B$47,CntyQryCensus!$A$206:$HH$248,EM$1)","v":0},{"$f":"VLOOKUP(DropDownList!$B$47,CntyQryCensus!$A$206:$HH$248,EN$1)","v":37386},{"$f":"VLOOKUP(DropDownList!$B$47,CntyQryCensus!$A$206:$HH$248,EO$1)","v":26250},{"$f":"VLOOKUP(DropDownList!$B$47,CntyQryCensus!$A$206:$HH$248,EP$1)","v":42500},{"$f":"VLOOKUP(DropDownList!$B$47,CntyQryCensus!$A$206:$HH$248,EQ$1)","v":46667},{"$f":"VLOOKUP(DropDownList!$B$47,CntyQryCensus!$A$206:$HH$248,ER$1)","v":41528},{"$f":"VLOOKUP(DropDownList!$B$47,CntyQryCensus!$A$206:$HH$248,ES$1)","v":38750},{"$f":"VLOOKUP(DropDownList!$B$47,CntyQryCensus!$A$206:$HH$248,ET$1)","v":27188},{"$f":"VLOOKUP(DropDownList!$B$47,CntyQryCensus!$A$206:$HH$248,EU$1)","v":23750},{"$f":"VLOOKUP(DropDownList!$B$47,CntyQryCensus!$A$206:$HH$248,EV$1)","v":325},{"$f":"VLOOKUP(DropDownList!$B$47,CntyQryCensus!$A$206:$HH$248,EW$1)","v":262},{"$f":"VLOOKUP(DropDownList!$B$47,CntyQryCensus!$A$206:$HH$248,EX$1)","v":63},{"$f":"VLOOKUP(DropDownList!$B$47,CntyQryCensus!$A$206:$HH$248,EY$1)","v":229},{"$f":"VLOOKUP(DropDownList!$B$47,CntyQryCensus!$A$206:$HH$248,EZ$1)","v":96},{"$f":"VLOOKUP(DropDownList!$B$47,CntyQryCensus!$A$206:$HH$248,FA$1)","v":94},{"$f":"VLOOKUP(DropDownList!$B$47,CntyQryCensus!$A$206:$HH$248,FB$1)","v":231},{"$f":"VLOOKUP(DropDownList!$B$47,CntyQryCensus!$A$206:$HH$248,FC$1)","v":154},{"$f":"VLOOKUP(DropDownList!$B$47,CntyQryCensus!$A$206:$HH$248,FD$1)","v":171},{"$f":"VLOOKUP(DropDownList!$B$47,CntyQryCensus!$A$206:$HH$248,FE$1)","v":101},{"$f":"VLOOKUP(DropDownList!$B$47,CntyQryCensus!$A$206:$HH$248,FF$1)","v":224},{"$f":"VLOOKUP(DropDownList!$B$47,CntyQryCensus!$A$206:$HH$248,FG$1)","v":10},{"$f":"VLOOKUP(DropDownList!$B$47,CntyQryCensus!$A$206:$HH$248,FH$1)","v":315},{"$f":"VLOOKUP(DropDownList!$B$47,CntyQryCensus!$A$206:$HH$248,FI$1)","v":5},{"$f":"VLOOKUP(DropDownList!$B$47,CntyQryCensus!$A$206:$HH$248,FJ$1)","v":320},{"$f":"VLOOKUP(DropDownList!$B$47,CntyQryCensus!$A$206:$HH$248,FK$1)","v":63},{"$f":"VLOOKUP(DropDownList!$B$47,CntyQryCensus!$A$206:$HH$248,FL$1)","v":262},{"$f":"VLOOKUP(DropDownList!$B$47,CntyQryCensus!$A$206:$HH$248,FM$1)","v":36},{"$f":"VLOOKUP(DropDownList!$B$47,CntyQryCensus!$A$206:$HH$248,FN$1)","v":289},{"$f":"VLOOKUP(DropDownList!$B$47,CntyQryCensus!$A$206:$HH$248,FO$1)","v":10630300},{"$f":"VLOOKUP(DropDownList!$B$47,CntyQryCensus!$A$206:$HH$248,FP$1)","v":8885300},{"$f":"VLOOKUP(DropDownList!$B$47,CntyQryCensus!$A$206:$HH$248,FQ$1)","v":1745100},{"$f":"VLOOKUP(DropDownList!$B$47,CntyQryCensus!$A$206:$HH$248,FR$1)","v":1892700},{"$f":"VLOOKUP(DropDownList!$B$47,CntyQryCensus!$A$206:$HH$248,FS$1)","v":1170100},{"$f":"VLOOKUP(DropDownList!$B$47,CntyQryCensus!$A$206:$HH$248,FT$1)","v":47000},{"$f":"VLOOKUP(DropDownList!$B$47,CntyQryCensus!$A$206:$HH$248,FU$1)","v":11100},{"$f":"VLOOKUP(DropDownList!$B$47,CntyQryCensus!$A$206:$HH$248,FV$1)","v":965300},{"$f":"VLOOKUP(DropDownList!$B$47,CntyQryCensus!$A$206:$HH$248,FW$1)","v":237},{"$f":"VLOOKUP(DropDownList!$B$47,CntyQryCensus!$A$206:$HH$248,FX$1)","v":12},{"$f":"VLOOKUP(DropDownList!$B$47,CntyQryCensus!$A$206:$HH$248,FY$1)","v":6},{"$f":"VLOOKUP(DropDownList!$B$47,CntyQryCensus!$A$206:$HH$248,FZ$1)","v":30},{"$f":"VLOOKUP(DropDownList!$B$47,CntyQryCensus!$A$206:$HH$248,GA$1)","v":9},{"$f":"VLOOKUP(DropDownList!$B$47,CntyQryCensus!$A$206:$HH$248,GB$1)","v":21},{"$f":"VLOOKUP(DropDownList!$B$47,CntyQryCensus!$A$206:$HH$248,GC$1)","v":14},{"$f":"VLOOKUP(DropDownList!$B$47,CntyQryCensus!$A$206:$HH$248,GD$1)","v":17},{"$f":"VLOOKUP(DropDownList!$B$47,CntyQryCensus!$A$206:$HH$248,GE$1)","v":30},{"$f":"VLOOKUP(DropDownList!$B$47,CntyQryCensus!$A$206:$HH$248,GF$1)","v":11},{"$f":"VLOOKUP(DropDownList!$B$47,CntyQryCensus!$A$206:$HH$248,GG$1)","v":24},{"$f":"VLOOKUP(DropDownList!$B$47,CntyQryCensus!$A$206:$HH$248,GH$1)","v":22},{"$f":"VLOOKUP(DropDownList!$B$47,CntyQryCensus!$A$206:$HH$248,GI$1)","v":26},{"$f":"VLOOKUP(DropDownList!$B$47,CntyQryCensus!$A$206:$HH$248,GJ$1)","v":4},{"$f":"VLOOKUP(DropDownList!$B$47,CntyQryCensus!$A$206:$HH$248,GK$1)","v":7},{"$f":"VLOOKUP(DropDownList!$B$47,CntyQryCensus!$A$206:$HH$248,GL$1)","v":0},{"$f":"VLOOKUP(DropDownList!$B$47,CntyQryCensus!$A$206:$HH$248,GM$1)","v":4},{"$f":"VLOOKUP(DropDownList!$B$47,CntyQryCensus!$A$206:$HH$248,GN$1)","v":41397},{"$f":"VLOOKUP(DropDownList!$B$47,CntyQryCensus!$A$206:$HH$248,GO$1)","v":11973900},{"$f":"VLOOKUP(DropDownList!$B$47,CntyQryCensus!$A$206:$HH$248,GP$1)","v":88},{"$f":"VLOOKUP(DropDownList!$B$47,CntyQryCensus!$A$206:$HH$248,GQ$1)","v":15},{"$f":"VLOOKUP(DropDownList!$B$47,CntyQryCensus!$A$206:$HH$248,GR$1)","v":6},{"$f":"VLOOKUP(DropDownList!$B$47,CntyQryCensus!$A$206:$HH$248,GS$1)","v":10},{"$f":"VLOOKUP(DropDownList!$B$47,CntyQryCensus!$A$206:$HH$248,GT$1)","v":8},{"$f":"VLOOKUP(DropDownList!$B$47,CntyQryCensus!$A$206:$HH$248,GU$1)","v":13},{"$f":"VLOOKUP(DropDownList!$B$47,CntyQryCensus!$A$206:$HH$248,GV$1)","v":10},{"$f":"VLOOKUP(DropDownList!$B$47,CntyQryCensus!$A$206:$HH$248,GW$1)","v":5},{"$f":"VLOOKUP(DropDownList!$B$47,CntyQryCensus!$A$206:$HH$248,GX$1)","v":2},{"$f":"VLOOKUP(DropDownList!$B$47,CntyQryCensus!$A$206:$HH$248,GY$1)","v":11},{"$f":"VLOOKUP(DropDownList!$B$47,CntyQryCensus!$A$206:$HH$248,GZ$1)","v":6},{"$f":"VLOOKUP(DropDownList!$B$47,CntyQryCensus!$A$206:$HH$248,HA$1)","v":0},{"$f":"VLOOKUP(DropDownList!$B$47,CntyQryCensus!$A$206:$HH$248,HB$1)","v":0},{"$f":"VLOOKUP(DropDownList!$B$47,CntyQryCensus!$A$206:$HH$248,HC$1)","v":0},{"$f":"VLOOKUP(DropDownList!$B$47,CntyQryCensus!$A$206:$HH$248,HD$1)","v":0},{"$f":"VLOOKUP(DropDownList!$B$47,CntyQryCensus!$A$206:$HH$248,HE$1)","v":2},{"$f":"VLOOKUP(DropDownList!$B$47,CntyQryCensus!$A$206:$HH$248,HF$1)","v":0},{"$f":"VLOOKUP(DropDownList!$B$47,CntyQryCensus!$A$206:$HH$248,HG$1)","v":27083},{"$f":"VLOOKUP(DropDownList!$B$47,CntyQryCensus!$A$206:$HH$248,HH$1)","v":18132}]
[]
[]
["Census 2000 SummaryFile3 Sample Data  -  SF3TownQry2bPovertyChar"]
["NAME","LOGRECNO","COUNTY","TotalPop","P52Households1","P82PerCapitaInc","P87PopForPovStatus","P87PopWIncBelowPovStatus","P87PopUnder5yrBelowPoverty","P87Pop5yrBelowPoverty","P87Pop5to11yrBelowPoverty","P87Pop12to17yrBelowPoverty","P87Pop18to64yrBelowPoverty","P87Pop65to74yrBelowPoverty","P87PopOver75yrBelowPoverty","P87PopWIncAbovePovStatus","P87PopUnder5yrAbovePoverty","P87Pop5yrAbovePoverty","P87Pop5to11yrAbovePoverty","P87Pop12to17yrAbovePoverty","P87Pop18to64yrAbovePoverty","P87Pop65to74yrAbovePoverty","P87PopOver75yrAbovePoverty","P90Families","P90FamWIncBelowPov","P90MarCupFamWIncBelowPov","P90MCFamWRltdChld<18WIncBelowPov","P90MCFamWRltdChld<5WIncBelowPov","P90MaleHhlrWIncBelowPov","P90MaleHhlrWRltdChld<18yrWIncBelowPov","P90MaleHhlrWRltdChld<5yrWIncBelowPov","P90FemaleHhlrWIncBelowPov","P90FemaleHhlrWRltdChld<18yWIncBelowPov","P90FemaleHhlrWRltdChld<5yWIncBelowPov","P90FamWIncAbovePov","P90MarCupFamWIncAbovePov","P90MCFamWRltdChld<18WIncAbovePov","P90MCFamWRltdChld<5WIncAbovePov","P90MaleHhlrWIncAbovePov","P90MaleHhlrWRltdChld<18yrWIncAbovePov","P90MaleHhlrWRltdChld<5yrWIncAbovePov","P90FemaleHhlrWIncAbovePov","P90FemaleHhlrWRltdChld<18yWIncAbovePov","P90FemaleHhlrWRltdChld<5yWIncAbovePov","P92Households","P92HHwIncBelowPov","P92FamHHwIncBelowPov","P92MCFamHHwIncBelowPov","P92MaleFamHHwIncBelowPov","P92FemaleFamHHwIncBelowPov","P92NonFamHHwIncBelowPov","P92NonFamMaleHHwIncBelowPov","P92NonFamFemaleHHwIncBelowPov","P92HHwIncAbovePov","P92FamHHwIncAbovePov","P92MCFamHHwIncAbovePov","P92MaleFamHHwIncAbovePov","P92FemaleFamHHwIncAbovePov","P92NonFamHHwIncAbovePov","P92NonFamMaleHHwIncAbovePov","P92NonFamFemaleHHwIncAbovePov"]
[{"$f":"VLOOKUP(DropDownList!$B$47,CntyQryCensus!$A$256:$BI$298,A$1)","v":"Acworth"},{"$f":"VLOOKUP(DropDownList!$B$47,CntyQryCensus!$A$256:$BI$298,B$1)","v":"0004141"},{"$f":"VLOOKUP(DropDownList!$B$47,CntyQryCensus!$A$256:$BI$298,C$1)","v":"00260"},{"$f":"VLOOKUP(DropDownList!$B$47,CntyQryCensus!$A$256:$BI$298,D$1)","v":836},{"$f":"VLOOKUP(DropDownList!$B$47,CntyQryCensus!$A$256:$BI$298,E$1)","v":325},{"$f":"VLOOKUP(DropDownList!$B$47,CntyQryCensus!$A$256:$BI$298,F$1)","v":18132},{"$f":"VLOOKUP(DropDownList!$B$47,CntyQryCensus!$A$256:$BI$298,G$1)","v":838},{"$f":"VLOOKUP(DropDownList!$B$47,CntyQryCensus!$A$256:$BI$298,H$1)","v":131},{"$f":"VLOOKUP(DropDownList!$B$47,CntyQryCensus!$A$256:$BI$298,I$1)","v":10},{"$f":"VLOOKUP(DropDownList!$B$47,CntyQryCensus!$A$256:$BI$298,J$1)","v":0},{"$f":"VLOOKUP(DropDownList!$B$47,CntyQryCensus!$A$256:$BI$298,K$1)","v":20},{"$f":"VLOOKUP(DropDownList!$B$47,CntyQryCensus!$A$256:$BI$298,L$1)","v":26},{"$f":"VLOOKUP(DropDownList!$B$47,CntyQryCensus!$A$256:$BI$298,M$1)","v":68},{"$f":"VLOOKUP(DropDownList!$B$47,CntyQryCensus!$A$256:$BI$298,N$1)","v":7},{"$f":"VLOOKUP(DropDownList!$B$47,CntyQryCensus!$A$256:$BI$298,O$1)","v":0},{"$f":"VLOOKUP(DropDownList!$B$47,CntyQryCensus!$A$256:$BI$298,P$1)","v":707},{"$f":"VLOOKUP(DropDownList!$B$47,CntyQryCensus!$A$256:$BI$298,Q$1)","v":29},{"$f":"VLOOKUP(DropDownList!$B$47,CntyQryCensus!$A$256:$BI$298,R$1)","v":9},{"$f":"VLOOKUP(DropDownList!$B$47,CntyQryCensus!$A$256:$BI$298,S$1)","v":53},{"$f":"VLOOKUP(DropDownList!$B$47,CntyQryCensus!$A$256:$BI$298,T$1)","v":61},{"$f":"VLOOKUP(DropDownList!$B$47,CntyQryCensus!$A$256:$BI$298,U$1)","v":432},{"$f":"VLOOKUP(DropDownList!$B$47,CntyQryCensus!$A$256:$BI$298,V$1)","v":76},{"$f":"VLOOKUP(DropDownList!$B$47,CntyQryCensus!$A$256:$BI$298,W$1)","v":47},{"$f":"VLOOKUP(DropDownList!$B$47,CntyQryCensus!$A$256:$BI$298,X$1)","v":237},{"$f":"VLOOKUP(DropDownList!$B$47,CntyQryCensus!$A$256:$BI$298,Y$1)","v":24},{"$f":"VLOOKUP(DropDownList!$B$47,CntyQryCensus!$A$256:$BI$298,Z$1)","v":15},{"$f":"VLOOKUP(DropDownList!$B$47,CntyQryCensus!$A$256:$BI$298,AA$1)","v":9},{"$f":"VLOOKUP(DropDownList!$B$47,CntyQryCensus!$A$256:$BI$298,AB$1)","v":0},{"$f":"VLOOKUP(DropDownList!$B$47,CntyQryCensus!$A$256:$BI$298,AC$1)","v":2},{"$f":"VLOOKUP(DropDownList!$B$47,CntyQryCensus!$A$256:$BI$298,AD$1)","v":2},{"$f":"VLOOKUP(DropDownList!$B$47,CntyQryCensus!$A$256:$BI$298,AE$1)","v":0},{"$f":"VLOOKUP(DropDownList!$B$47,CntyQryCensus!$A$256:$BI$298,AF$1)","v":7},{"$f":"VLOOKUP(DropDownList!$B$47,CntyQryCensus!$A$256:$BI$298,AG$1)","v":7},{"$f":"VLOOKUP(DropDownList!$B$47,CntyQryCensus!$A$256:$BI$298,AH$1)","v":2},{"$f":"VLOOKUP(DropDownList!$B$47,CntyQryCensus!$A$256:$BI$298,AI$1)","v":213},{"$f":"VLOOKUP(DropDownList!$B$47,CntyQryCensus!$A$256:$BI$298,AJ$1)","v":182},{"$f":"VLOOKUP(DropDownList!$B$47,CntyQryCensus!$A$256:$BI$298,AK$1)","v":76},{"$f":"VLOOKUP(DropDownList!$B$47,CntyQryCensus!$A$256:$BI$298,AL$1)","v":10},{"$f":"VLOOKUP(DropDownList!$B$47,CntyQryCensus!$A$256:$BI$298,AM$1)","v":14},{"$f":"VLOOKUP(DropDownList!$B$47,CntyQryCensus!$A$256:$BI$298,AN$1)","v":6},{"$f":"VLOOKUP(DropDownList!$B$47,CntyQryCensus!$A$256:$BI$298,AO$1)","v":2},{"$f":"VLOOKUP(DropDownList!$B$47,CntyQryCensus!$A$256:$BI$298,AP$1)","v":17},{"$f":"VLOOKUP(DropDownList!$B$47,CntyQryCensus!$A$256:$BI$298,AQ$1)","v":6},{"$f":"VLOOKUP(DropDownList!$B$47,CntyQryCensus!$A$256:$BI$298,AR$1)","v":0},{"$f":"VLOOKUP(DropDownList!$B$47,CntyQryCensus!$A$256:$BI$298,AS$1)","v":325},{"$f":"VLOOKUP(DropDownList!$B$47,CntyQryCensus!$A$256:$BI$298,AT$1)","v":34},{"$f":"VLOOKUP(DropDownList!$B$47,CntyQryCensus!$A$256:$BI$298,AU$1)","v":24},{"$f":"VLOOKUP(DropDownList!$B$47,CntyQryCensus!$A$256:$BI$298,AV$1)","v":15},{"$f":"VLOOKUP(DropDownList!$B$47,CntyQryCensus!$A$256:$BI$298,AW$1)","v":2},{"$f":"VLOOKUP(DropDownList!$B$47,CntyQryCensus!$A$256:$BI$298,AX$1)","v":7},{"$f":"VLOOKUP(DropDownList!$B$47,CntyQryCensus!$A$256:$BI$298,AY$1)","v":10},{"$f":"VLOOKUP(DropDownList!$B$47,CntyQryCensus!$A$256:$BI$298,AZ$1)","v":4},{"$f":"VLOOKUP(DropDownList!$B$47,CntyQryCensus!$A$256:$BI$298,BA$1)","v":6},{"$f":"VLOOKUP(DropDownList!$B$47,CntyQryCensus!$A$256:$BI$298,BB$1)","v":291},{"$f":"VLOOKUP(DropDownList!$B$47,CntyQryCensus!$A$256:$BI$298,BC$1)","v":213},{"$f":"VLOOKUP(DropDownList!$B$47,CntyQryCensus!$A$256:$BI$298,BD$1)","v":182},{"$f":"VLOOKUP(DropDownList!$B$47,CntyQryCensus!$A$256:$BI$298,BE$1)","v":14},{"$f":"VLOOKUP(DropDownList!$B$47,CntyQryCensus!$A$256:$BI$298,BF$1)","v":17},{"$f":"VLOOKUP(DropDownList!$B$47,CntyQryCensus!$A$256:$BI$298,BG$1)","v":78},{"$f":"VLOOKUP(DropDownList!$B$47,CntyQryCensus!$A$256:$BI$298,BH$1)","v":47},{"$f":"VLOOKUP(DropDownList!$B$47,CntyQryCensus!$A$256:$BI$298,BI$1)","v":31}]
[null,null,null,null,null,null,null,null,null,null,null,null,null,null,null,null,null,null,{"$f":"SUM(R60:T60)","v":123}]
[]
["Census 2000 SummaryFile3 Sample Data  -  SF3TownQry7HousingA"]
["NAME","LOGRECNO","COUNTY","TotalPop","H1HousingUnitsTotal","H2SampleHU","H2SampleOccHU","H2SampleVacHU","H3HU100pctCount","H5HUTotal","H5HUUrban","H5HUUrbanInUrbanAreas","H5HUUrbanInUrbanClusters","H5HURural","H5HURuralFarm","H5HURuralNonFarm","H7HUOcc","H7HUOwnrOcc","H7HURentrOcc","H8HUVacant","H8HUVacantForRent","H8HUVacantForSale","H8HUVacRentedorSold","H8HUVacSeasonal","H8HUVacForMigrantWrkrs","H8HUOtherVacant","H14OccHUa","H14OwnerOccHU","H14OwnOccHuHh15to24","H14OwnOccHuHh25to34","H14OwnOccHuHh35to44","H14OwnOccHuHh45to54","H14OwnOccHuHh55to59","H14OwnOccHuHh60to64","H14OwnOccHuHh65to74","H14OwnOccHuHh75to84","H14OwnOccHuHh85Over","H14RenterOccHU1","H14RntrOccHuHh15to24","H14RntrOccHuHh25to34","H14RntrOccHuHh35to44","H14RntrOccHuHh45to54","H14RntrOccHuHh55to59","H14RntrOccHuHh60to64","H14RntrOccHuHh65to74","H14RntrOccHuHh75to84","H14RntrOccHuHh85Over","H15PopInOccHU","H15PopInOwnOccHU1","H15PopInRentOccHU1","H17OccupHUb","H17OwnOccHU2","H17OwnOccHU1PersonHH","H17OwnOccHU2PersonHH","H17OwnOccHU3PersonHH","H17OwnOccHU4PersonHH","H17OwnOccHU5PersonHH","H17OwnOccHU6PersonHH","H17OwnOccHU7PlusPersonHH","H17RentOccHU2","H17RntOccHU1PersonHH","H17RntOccHU2PersonHH","H17RntOccHU3PersonHH","H17RntOccHU4PersonHH","H17RntOccHU5PersonHH","H17RntOccHU6PersonHH","H17RntOccHU7PlusPersonHH","H18AvgHHSize","H18AvgHHSizeOwnOcc","H18AvgHHSizeRentOcc","H23TotHU","H23HU1Room","H23HU2Room","H23HU3Room","H23HU4Room","H23HU5Room","H23HU6Room","H23HU7Room","H23HU8Room","H23HU9orMoreRoom","H24MedianNumRooms","H25AggregNumRooms","H30TotalHU","H30Det1HU","H30Att1HU","H30Units2","H30Units3or4","H30Units5to9","H30Units10to19","H30Units20to49","H30Units50orMore","H30UnitsMobileHome","H30UnitsBoatRv","H32OccHUcTotal","H32OwnerOccHU3","H32OwnOccHU1Det","H32OwnOccHU1Att","H32OwnOccHU2Unit","H32OwnOccHU3to4Unit","H32OwnOccHU5to9Unit","H32OwnOccHU10to19Unit","H32OwnOccHU20to49Unit","H32OwnOccHU50plusUnit","H32OwnOccHUMobHom","H32OwnOccHUBoatRVOth","H32RentrOccHU3","H32RntrOccHU1Det","H32RntrOccHU1Att","H32RntrOccHU2Unit","H32RntrOccHU3to4Unit","H32RntrOccHU5to9Unit","H32RntrOccHU10to19Unit","H32RntrOccHU20to49Unit","H32RntrOccHU50PlusUnit","H32RntrOccHUMobHom","H32RntrOccHUBoatRVOth","H33TotPopInOccHU","H33PopInOwnOccHU2","H33PopInOOHU1Det","H33PopInOOHU1Att","H33PopInOOHU2unit","H33PopInOOHU3to4Unit","H33PopInOOHU5to9Unit","H33PopInOOHU10to19Unit","H33PopInOOHU20to49Unit","H33PopInOOHU50PlusUnit","H33PopInOOHUMobilHome","H33PopInOOHUOtherUnit","H33PopInRentOccHU2","H33PopInROHU1Det","H33PopInROHU1Att","H33PopInROHU2Unit","H33PopInROHU3to4Unit","H33PopInROHU5to9Unit","H33PopInROHU10to19Unit","H33PopInROHU20to49Unit","H33PopInROHU50PlusUnit","H33PopInROHUMobilHome","H33PopInROHUOtherUnit","H36OccHousingUnitsdTotal","H36OwnerOccHU4","H36OOHUBuilt99to0300","H36OOHUBuilt95to98","H36OOHUBuilt90to94","H36OOHUBuilt80to89","H36OOHUBuilt70to79","H36OOHUBuilt60to69","H36OOHUBuilt50to59","H36OOHUBuilt40to49","H36OOHUBuilt39Earlier","H36RentOccHU4","H36ROHUBuilt99to0300","H36ROHUBuilt95to98","H36ROHUBuilt90to94","H36ROHUBuilt80to89","H36ROHUBuilt70to79","H36ROHUBuilt60to69","H36ROHUBuilt50to59","H36ROHUBuilt40to49","H36ROHUBuilt39Earlier","H40OccupHousUnitse","H40HeatFuelUtilGas","H40HeatFuelBotGas","H40HeatFuelElect","H40HeatFuelOilKero","H40HeatFuelCoal","H40HeatFuelWood","H40HeatFuelSolar","H40HeatFuelOther","H40HeatFuelNone","H41TotalHU","H41HUNoBdrm","H41HU1Bdrm","H41HU2Bdrm","H41HU3Bdrm","H41HU4Bdrm","H41HU5MoreBdrm","H42OccuHousUnitf","H42OwnerOccHU5","H42OOHUNoBdrm","H42OOHU1Bdrm","H42OOHU2Bdrm","H42OOHU3Bdrm","H42OOHU4Bdrm","H42OOHU5PlusBdrm","H42RentOccHU5","H42ROHUNoBdrm","H42ROHU1Bdrm","H42ROHU2Bdrm","H42ROHU3Bdrm","H42ROHU4Bdrm","H42ROHU5PlusBdrm","H48OccupHousUnitsg","H48OwnerOccHU6","H48OOHUwCompltPlumFacil","H48OOHULackCompltPlumFacil","H48RentOccHU6","H48ROHUwCompltPlumFacil","H48ROHULackCompltPlumFacil","H51OccupHousUnitf","H51OwnerOccHU7","H51OOHUwCompleteKitFacil","H51OOHULackCompleteKitFacil","H51RenterOccHU7","H51ROHUwCompleteKitFacil","H51ROHULackCompleteKitFacil"]
[{"$f":"VLOOKUP(DropDownList!$B47,CntyQryCensus!$A$306:$GX$348,A$1)","v":"Acworth"},{"$f":"VLOOKUP(DropDownList!$B47,CntyQryCensus!$A$306:$GX$348,B$1)","v":"0004141"},{"$f":"VLOOKUP(DropDownList!$B47,CntyQryCensus!$A$306:$GX$348,C$1)","v":"00260"},{"$f":"VLOOKUP(DropDownList!$B47,CntyQryCensus!$A$306:$GX$348,D$1)","v":836},{"$f":"VLOOKUP(DropDownList!$B47,CntyQryCensus!$A$306:$GX$348,E$1)","v":515},{"$f":"VLOOKUP(DropDownList!$B47,CntyQryCensus!$A$306:$GX$348,F$1)","v":241},{"$f":"VLOOKUP(DropDownList!$B47,CntyQryCensus!$A$306:$GX$348,G$1)","v":152},{"$f":"VLOOKUP(DropDownList!$B47,CntyQryCensus!$A$306:$GX$348,H$1)","v":89},{"$f":"VLOOKUP(DropDownList!$B47,CntyQryCensus!$A$306:$GX$348,I$1)","v":512},{"$f":"VLOOKUP(DropDownList!$B47,CntyQryCensus!$A$306:$GX$348,J$1)","v":515},{"$f":"VLOOKUP(DropDownList!$B47,CntyQryCensus!$A$306:$GX$348,K$1)","v":0},{"$f":"VLOOKUP(DropDownList!$B47,CntyQryCensus!$A$306:$GX$348,L$1)","v":0},{"$f":"VLOOKUP(DropDownList!$B47,CntyQryCensus!$A$306:$GX$348,M$1)","v":0},{"$f":"VLOOKUP(DropDownList!$B47,CntyQryCensus!$A$306:$GX$348,N$1)","v":515},{"$f":"VLOOKUP(DropDownList!$B47,CntyQryCensus!$A$306:$GX$348,O$1)","v":18},{"$f":"VLOOKUP(DropDownList!$B47,CntyQryCensus!$A$306:$GX$348,P$1)","v":497},{"$f":"VLOOKUP(DropDownList!$B47,CntyQryCensus!$A$306:$GX$348,Q$1)","v":319},{"$f":"VLOOKUP(DropDownList!$B47,CntyQryCensus!$A$306:$GX$348,R$1)","v":263},{"$f":"VLOOKUP(DropDownList!$B47,CntyQryCensus!$A$306:$GX$348,S$1)","v":56},{"$f":"VLOOKUP(DropDownList!$B47,CntyQryCensus!$A$306:$GX$348,T$1)","v":196},{"$f":"VLOOKUP(DropDownList!$B47,CntyQryCensus!$A$306:$GX$348,U$1)","v":5},{"$f":"VLOOKUP(DropDownList!$B47,CntyQryCensus!$A$306:$GX$348,V$1)","v":2},{"$f":"VLOOKUP(DropDownList!$B47,CntyQryCensus!$A$306:$GX$348,W$1)","v":4},{"$f":"VLOOKUP(DropDownList!$B47,CntyQryCensus!$A$306:$GX$348,X$1)","v":170},{"$f":"VLOOKUP(DropDownList!$B47,CntyQryCensus!$A$306:$GX$348,Y$1)","v":0},{"$f":"VLOOKUP(DropDownList!$B47,CntyQryCensus!$A$306:$GX$348,Z$1)","v":15},{"$f":"VLOOKUP(DropDownList!$B47,CntyQryCensus!$A$306:$GX$348,AA$1)","v":319},{"$f":"VLOOKUP(DropDownList!$B47,CntyQryCensus!$A$306:$GX$348,AB$1)","v":263},{"$f":"VLOOKUP(DropDownList!$B47,CntyQryCensus!$A$306:$GX$348,AC$1)","v":0},{"$f":"VLOOKUP(DropDownList!$B47,CntyQryCensus!$A$306:$GX$348,AD$1)","v":16},{"$f":"VLOOKUP(DropDownList!$B47,CntyQryCensus!$A$306:$GX$348,AE$1)","v":48},{"$f":"VLOOKUP(DropDownList!$B47,CntyQryCensus!$A$306:$GX$348,AF$1)","v":61},{"$f":"VLOOKUP(DropDownList!$B47,CntyQryCensus!$A$306:$GX$348,AG$1)","v":38},{"$f":"VLOOKUP(DropDownList!$B47,CntyQryCensus!$A$306:$GX$348,AH$1)","v":22},{"$f":"VLOOKUP(DropDownList!$B47,CntyQryCensus!$A$306:$GX$348,AI$1)","v":46},{"$f":"VLOOKUP(DropDownList!$B47,CntyQryCensus!$A$306:$GX$348,AJ$1)","v":22},{"$f":"VLOOKUP(DropDownList!$B47,CntyQryCensus!$A$306:$GX$348,AK$1)","v":10},{"$f":"VLOOKUP(DropDownList!$B47,CntyQryCensus!$A$306:$GX$348,AL$1)","v":56},{"$f":"VLOOKUP(DropDownList!$B47,CntyQryCensus!$A$306:$GX$348,AM$1)","v":2},{"$f":"VLOOKUP(DropDownList!$B47,CntyQryCensus!$A$306:$GX$348,AN$1)","v":8},{"$f":"VLOOKUP(DropDownList!$B47,CntyQryCensus!$A$306:$GX$348,AO$1)","v":13},{"$f":"VLOOKUP(DropDownList!$B47,CntyQryCensus!$A$306:$GX$348,AP$1)","v":8},{"$f":"VLOOKUP(DropDownList!$B47,CntyQryCensus!$A$306:$GX$348,AQ$1)","v":4},{"$f":"VLOOKUP(DropDownList!$B47,CntyQryCensus!$A$306:$GX$348,AR$1)","v":6},{"$f":"VLOOKUP(DropDownList!$B47,CntyQryCensus!$A$306:$GX$348,AS$1)","v":9},{"$f":"VLOOKUP(DropDownList!$B47,CntyQryCensus!$A$306:$GX$348,AT$1)","v":4},{"$f":"VLOOKUP(DropDownList!$B47,CntyQryCensus!$A$306:$GX$348,AU$1)","v":2},{"$f":"VLOOKUP(DropDownList!$B47,CntyQryCensus!$A$306:$GX$348,AV$1)","v":840},{"$f":"VLOOKUP(DropDownList!$B47,CntyQryCensus!$A$306:$GX$348,AW$1)","v":700},{"$f":"VLOOKUP(DropDownList!$B47,CntyQryCensus!$A$306:$GX$348,AX$1)","v":140},{"$f":"VLOOKUP(DropDownList!$B47,CntyQryCensus!$A$306:$GX$348,AY$1)","v":319},{"$f":"VLOOKUP(DropDownList!$B47,CntyQryCensus!$A$306:$GX$348,AZ$1)","v":263},{"$f":"VLOOKUP(DropDownList!$B47,CntyQryCensus!$A$306:$GX$348,BA$1)","v":52},{"$f":"VLOOKUP(DropDownList!$B47,CntyQryCensus!$A$306:$GX$348,BB$1)","v":107},{"$f":"VLOOKUP(DropDownList!$B47,CntyQryCensus!$A$306:$GX$348,BC$1)","v":44},{"$f":"VLOOKUP(DropDownList!$B47,CntyQryCensus!$A$306:$GX$348,BD$1)","v":34},{"$f":"VLOOKUP(DropDownList!$B47,CntyQryCensus!$A$306:$GX$348,BE$1)","v":20},{"$f":"VLOOKUP(DropDownList!$B47,CntyQryCensus!$A$306:$GX$348,BF$1)","v":3},{"$f":"VLOOKUP(DropDownList!$B47,CntyQryCensus!$A$306:$GX$348,BG$1)","v":3},{"$f":"VLOOKUP(DropDownList!$B47,CntyQryCensus!$A$306:$GX$348,BH$1)","v":56},{"$f":"VLOOKUP(DropDownList!$B47,CntyQryCensus!$A$306:$GX$348,BI$1)","v":18},{"$f":"VLOOKUP(DropDownList!$B47,CntyQryCensus!$A$306:$GX$348,BJ$1)","v":20},{"$f":"VLOOKUP(DropDownList!$B47,CntyQryCensus!$A$306:$GX$348,BK$1)","v":3},{"$f":"VLOOKUP(DropDownList!$B47,CntyQryCensus!$A$306:$GX$348,BL$1)","v":10},{"$f":"VLOOKUP(DropDownList!$B47,CntyQryCensus!$A$306:$GX$348,BM$1)","v":3},{"$f":"VLOOKUP(DropDownList!$B47,CntyQryCensus!$A$306:$GX$348,BN$1)","v":0},{"$f":"VLOOKUP(DropDownList!$B47,CntyQryCensus!$A$306:$GX$348,BO$1)","v":2},{"$f":"VLOOKUP(DropDownList!$B47,CntyQryCensus!$A$306:$GX$348,BP$1)","v":3},{"$f":"VLOOKUP(DropDownList!$B47,CntyQryCensus!$A$306:$GX$348,BQ$1)","v":3},{"$f":"VLOOKUP(DropDownList!$B47,CntyQryCensus!$A$306:$GX$348,BR$1)","v":2},{"$f":"VLOOKUP(DropDownList!$B47,CntyQryCensus!$A$306:$GX$348,BS$1)","v":515},{"$f":"VLOOKUP(DropDownList!$B47,CntyQryCensus!$A$306:$GX$348,BT$1)","v":16},{"$f":"VLOOKUP(DropDownList!$B47,CntyQryCensus!$A$306:$GX$348,BU$1)","v":30},{"$f":"VLOOKUP(DropDownList!$B47,CntyQryCensus!$A$306:$GX$348,BV$1)","v":63},{"$f":"VLOOKUP(DropDownList!$B47,CntyQryCensus!$A$306:$GX$348,BW$1)","v":95},{"$f":"VLOOKUP(DropDownList!$B47,CntyQryCensus!$A$306:$GX$348,BX$1)","v":85},{"$f":"VLOOKUP(DropDownList!$B47,CntyQryCensus!$A$306:$GX$348,BY$1)","v":59},{"$f":"VLOOKUP(DropDownList!$B47,CntyQryCensus!$A$306:$GX$348,BZ$1)","v":71},{"$f":"VLOOKUP(DropDownList!$B47,CntyQryCensus!$A$306:$GX$348,CA$1)","v":54},{"$f":"VLOOKUP(DropDownList!$B47,CntyQryCensus!$A$306:$GX$348,CB$1)","v":42},{"$f":"VLOOKUP(DropDownList!$B47,CntyQryCensus!$A$306:$GX$348,CC$1)","v":5},{"$f":"VLOOKUP(DropDownList!$B47,CntyQryCensus!$A$306:$GX$348,CD$1)","v":2773},{"$f":"VLOOKUP(DropDownList!$B47,CntyQryCensus!$A$306:$GX$348,CE$1)","v":515},{"$f":"VLOOKUP(DropDownList!$B47,CntyQryCensus!$A$306:$GX$348,CF$1)","v":458},{"$f":"VLOOKUP(DropDownList!$B47,CntyQryCensus!$A$306:$GX$348,CG$1)","v":4},{"$f":"VLOOKUP(DropDownList!$B47,CntyQryCensus!$A$306:$GX$348,CH$1)","v":9},{"$f":"VLOOKUP(DropDownList!$B47,CntyQryCensus!$A$306:$GX$348,CI$1)","v":0},{"$f":"VLOOKUP(DropDownList!$B47,CntyQryCensus!$A$306:$GX$348,CJ$1)","v":0},{"$f":"VLOOKUP(DropDownList!$B47,CntyQryCensus!$A$306:$GX$348,CK$1)","v":0},{"$f":"VLOOKUP(DropDownList!$B47,CntyQryCensus!$A$306:$GX$348,CL$1)","v":0},{"$f":"VLOOKUP(DropDownList!$B47,CntyQryCensus!$A$306:$GX$348,CM$1)","v":0},{"$f":"VLOOKUP(DropDownList!$B47,CntyQryCensus!$A$306:$GX$348,CN$1)","v":40},{"$f":"VLOOKUP(DropDownList!$B47,CntyQryCensus!$A$306:$GX$348,CO$1)","v":4},{"$f":"VLOOKUP(DropDownList!$B47,CntyQryCensus!$A$306:$GX$348,CP$1)","v":319},{"$f":"VLOOKUP(DropDownList!$B47,CntyQryCensus!$A$306:$GX$348,CQ$1)","v":263},{"$f":"VLOOKUP(DropDownList!$B47,CntyQryCensus!$A$306:$GX$348,CR$1)","v":240},{"$f":"VLOOKUP(DropDownList!$B47,CntyQryCensus!$A$306:$GX$348,CS$1)","v":0},{"$f":"VLOOKUP(DropDownList!$B47,CntyQryCensus!$A$306:$GX$348,CT$1)","v":2},{"$f":"VLOOKUP(DropDownList!$B47,CntyQryCensus!$A$306:$GX$348,CU$1)","v":0},{"$f":"VLOOKUP(DropDownList!$B47,CntyQryCensus!$A$306:$GX$348,CV$1)","v":0},{"$f":"VLOOKUP(DropDownList!$B47,CntyQryCensus!$A$306:$GX$348,CW$1)","v":0},{"$f":"VLOOKUP(DropDownList!$B47,CntyQryCensus!$A$306:$GX$348,CX$1)","v":0},{"$f":"VLOOKUP(DropDownList!$B47,CntyQryCensus!$A$306:$GX$348,CY$1)","v":0},{"$f":"VLOOKUP(DropDownList!$B47,CntyQryCensus!$A$306:$GX$348,CZ$1)","v":21},{"$f":"VLOOKUP(DropDownList!$B47,CntyQryCensus!$A$306:$GX$348,DA$1)","v":0},{"$f":"VLOOKUP(DropDownList!$B47,CntyQryCensus!$A$306:$GX$348,DB$1)","v":56},{"$f":"VLOOKUP(DropDownList!$B47,CntyQryCensus!$A$306:$GX$348,DC$1)","v":44},{"$f":"VLOOKUP(DropDownList!$B47,CntyQryCensus!$A$306:$GX$348,DD$1)","v":2},{"$f":"VLOOKUP(DropDownList!$B47,CntyQryCensus!$A$306:$GX$348,DE$1)","v":4},{"$f":"VLOOKUP(DropDownList!$B47,CntyQryCensus!$A$306:$GX$348,DF$1)","v":0},{"$f":"VLOOKUP(DropDownList!$B47,CntyQryCensus!$A$306:$GX$348,DG$1)","v":0},{"$f":"VLOOKUP(DropDownList!$B47,CntyQryCensus!$A$306:$GX$348,DH$1)","v":0},{"$f":"VLOOKUP(DropDownList!$B47,CntyQryCensus!$A$306:$GX$348,DI$1)","v":0},{"$f":"VLOOKUP(DropDownList!$B47,CntyQryCensus!$A$306:$GX$348,DJ$1)","v":0},{"$f":"VLOOKUP(DropDownList!$B47,CntyQryCensus!$A$306:$GX$348,DK$1)","v":6},{"$f":"VLOOKUP(DropDownList!$B47,CntyQryCensus!$A$306:$GX$348,DL$1)","v":0},{"$f":"VLOOKUP(DropDownList!$B47,CntyQryCensus!$A$306:$GX$348,DM$1)","v":840},{"$f":"VLOOKUP(DropDownList!$B47,CntyQryCensus!$A$306:$GX$348,DN$1)","v":700},{"$f":"VLOOKUP(DropDownList!$B47,CntyQryCensus!$A$306:$GX$348,DO$1)","v":638},{"$f":"VLOOKUP(DropDownList!$B47,CntyQryCensus!$A$306:$GX$348,DP$1)","v":0},{"$f":"VLOOKUP(DropDownList!$B47,CntyQryCensus!$A$306:$GX$348,DQ$1)","v":5},{"$f":"VLOOKUP(DropDownList!$B47,CntyQryCensus!$A$306:$GX$348,DR$1)","v":0},{"$f":"VLOOKUP(DropDownList!$B47,CntyQryCensus!$A$306:$GX$348,DS$1)","v":0},{"$f":"VLOOKUP(DropDownList!$B47,CntyQryCensus!$A$306:$GX$348,DT$1)","v":0},{"$f":"VLOOKUP(DropDownList!$B47,CntyQryCensus!$A$306:$GX$348,DU$1)","v":0},{"$f":"VLOOKUP(DropDownList!$B47,CntyQryCensus!$A$306:$GX$348,DV$1)","v":0},{"$f":"VLOOKUP(DropDownList!$B47,CntyQryCensus!$A$306:$GX$348,DW$1)","v":57},{"$f":"VLOOKUP(DropDownList!$B47,CntyQryCensus!$A$306:$GX$348,DX$1)","v":0},{"$f":"VLOOKUP(DropDownList!$B47,CntyQryCensus!$A$306:$GX$348,DY$1)","v":140},{"$f":"VLOOKUP(DropDownList!$B47,CntyQryCensus!$A$306:$GX$348,DZ$1)","v":121},{"$f":"VLOOKUP(DropDownList!$B47,CntyQryCensus!$A$306:$GX$348,EA$1)","v":2},{"$f":"VLOOKUP(DropDownList!$B47,CntyQryCensus!$A$306:$GX$348,EB$1)","v":8},{"$f":"VLOOKUP(DropDownList!$B47,CntyQryCensus!$A$306:$GX$348,EC$1)","v":0},{"$f":"VLOOKUP(DropDownList!$B47,CntyQryCensus!$A$306:$GX$348,ED$1)","v":0},{"$f":"VLOOKUP(DropDownList!$B47,CntyQryCensus!$A$306:$GX$348,EE$1)","v":0},{"$f":"VLOOKUP(DropDownList!$B47,CntyQryCensus!$A$306:$GX$348,EF$1)","v":0},{"$f":"VLOOKUP(DropDownList!$B47,CntyQryCensus!$A$306:$GX$348,EG$1)","v":0},{"$f":"VLOOKUP(DropDownList!$B47,CntyQryCensus!$A$306:$GX$348,EH$1)","v":9},{"$f":"VLOOKUP(DropDownList!$B47,CntyQryCensus!$A$306:$GX$348,EI$1)","v":0},{"$f":"VLOOKUP(DropDownList!$B47,CntyQryCensus!$A$306:$GX$348,EJ$1)","v":319},{"$f":"VLOOKUP(DropDownList!$B47,CntyQryCensus!$A$306:$GX$348,EK$1)","v":263},{"$f":"VLOOKUP(DropDownList!$B47,CntyQryCensus!$A$306:$GX$348,EL$1)","v":0},{"$f":"VLOOKUP(DropDownList!$B47,CntyQryCensus!$A$306:$GX$348,EM$1)","v":8},{"$f":"VLOOKUP(DropDownList!$B47,CntyQryCensus!$A$306:$GX$348,EN$1)","v":11},{"$f":"VLOOKUP(DropDownList!$B47,CntyQryCensus!$A$306:$GX$348,EO$1)","v":54},{"$f":"VLOOKUP(DropDownList!$B47,CntyQryCensus!$A$306:$GX$348,EP$1)","v":44},{"$f":"VLOOKUP(DropDownList!$B47,CntyQryCensus!$A$306:$GX$348,EQ$1)","v":18},{"$f":"VLOOKUP(DropDownList!$B47,CntyQryCensus!$A$306:$GX$348,ER$1)","v":9},{"$f":"VLOOKUP(DropDownList!$B47,CntyQryCensus!$A$306:$GX$348,ES$1)","v":14},{"$f":"VLOOKUP(DropDownList!$B47,CntyQryCensus!$A$306:$GX$348,ET$1)","v":105},{"$f":"VLOOKUP(DropDownList!$B47,CntyQryCensus!$A$306:$GX$348,EU$1)","v":56},{"$f":"VLOOKUP(DropDownList!$B47,CntyQryCensus!$A$306:$GX$348,EV$1)","v":0},{"$f":"VLOOKUP(DropDownList!$B47,CntyQryCensus!$A$306:$GX$348,EW$1)","v":0},{"$f":"VLOOKUP(DropDownList!$B47,CntyQryCensus!$A$306:$GX$348,EX$1)","v":2},{"$f":"VLOOKUP(DropDownList!$B47,CntyQryCensus!$A$306:$GX$348,EY$1)","v":2},{"$f":"VLOOKUP(DropDownList!$B47,CntyQryCensus!$A$306:$GX$348,EZ$1)","v":4},{"$f":"VLOOKUP(DropDownList!$B47,CntyQryCensus!$A$306:$GX$348,FA$1)","v":4},{"$f":"VLOOKUP(DropDownList!$B47,CntyQryCensus!$A$306:$GX$348,FB$1)","v":7},{"$f":"VLOOKUP(DropDownList!$B47,CntyQryCensus!$A$306:$GX$348,FC$1)","v":2},{"$f":"VLOOKUP(DropDownList!$B47,CntyQryCensus!$A$306:$GX$348,FD$1)","v":35},{"$f":"VLOOKUP(DropDownList!$B47,CntyQryCensus!$A$306:$GX$348,FE$1)","v":319},{"$f":"VLOOKUP(DropDownList!$B47,CntyQryCensus!$A$306:$GX$348,FF$1)","v":3},{"$f":"VLOOKUP(DropDownList!$B47,CntyQryCensus!$A$306:$GX$348,FG$1)","v":35},{"$f":"VLOOKUP(DropDownList!$B47,CntyQryCensus!$A$306:$GX$348,FH$1)","v":0},{"$f":"VLOOKUP(DropDownList!$B47,CntyQryCensus!$A$306:$GX$348,FI$1)","v":149},{"$f":"VLOOKUP(DropDownList!$B47,CntyQryCensus!$A$306:$GX$348,FJ$1)","v":0},{"$f":"VLOOKUP(DropDownList!$B47,CntyQryCensus!$A$306:$GX$348,FK$1)","v":132},{"$f":"VLOOKUP(DropDownList!$B47,CntyQryCensus!$A$306:$GX$348,FL$1)","v":0},{"$f":"VLOOKUP(DropDownList!$B47,CntyQryCensus!$A$306:$GX$348,FM$1)","v":0},{"$f":"VLOOKUP(DropDownList!$B47,CntyQryCensus!$A$306:$GX$348,FN$1)","v":0},{"$f":"VLOOKUP(DropDownList!$B47,CntyQryCensus!$A$306:$GX$348,FO$1)","v":515},{"$f":"VLOOKUP(DropDownList!$B47,CntyQryCensus!$A$306:$GX$348,FP$1)","v":16},{"$f":"VLOOKUP(DropDownList!$B47,CntyQryCensus!$A$306:$GX$348,FQ$1)","v":95},{"$f":"VLOOKUP(DropDownList!$B47,CntyQryCensus!$A$306:$GX$348,FR$1)","v":170},{"$f":"VLOOKUP(DropDownList!$B47,CntyQryCensus!$A$306:$GX$348,FS$1)","v":148},{"$f":"VLOOKUP(DropDownList!$B47,CntyQryCensus!$A$306:$GX$348,FT$1)","v":62},{"$f":"VLOOKUP(DropDownList!$B47,CntyQryCensus!$A$306:$GX$348,FU$1)","v":24},{"$f":"VLOOKUP(DropDownList!$B47,CntyQryCensus!$A$306:$GX$348,FV$1)","v":319},{"$f":"VLOOKUP(DropDownList!$B47,CntyQryCensus!$A$306:$GX$348,FW$1)","v":263},{"$f":"VLOOKUP(DropDownList!$B47,CntyQryCensus!$A$306:$GX$348,FX$1)","v":1},{"$f":"VLOOKUP(DropDownList!$B47,CntyQryCensus!$A$306:$GX$348,FY$1)","v":19},{"$f":"VLOOKUP(DropDownList!$B47,CntyQryCensus!$A$306:$GX$348,FZ$1)","v":82},{"$f":"VLOOKUP(DropDownList!$B47,CntyQryCensus!$A$306:$GX$348,GA$1)","v":108},{"$f":"VLOOKUP(DropDownList!$B47,CntyQryCensus!$A$306:$GX$348,GB$1)","v":34},{"$f":"VLOOKUP(DropDownList!$B47,CntyQryCensus!$A$306:$GX$348,GC$1)","v":19},{"$f":"VLOOKUP(DropDownList!$B47,CntyQryCensus!$A$306:$GX$348,GD$1)","v":56},{"$f":"VLOOKUP(DropDownList!$B47,CntyQryCensus!$A$306:$GX$348,GE$1)","v":0},{"$f":"VLOOKUP(DropDownList!$B47,CntyQryCensus!$A$306:$GX$348,GF$1)","v":10},{"$f":"VLOOKUP(DropDownList!$B47,CntyQryCensus!$A$306:$GX$348,GG$1)","v":22},{"$f":"VLOOKUP(DropDownList!$B47,CntyQryCensus!$A$306:$GX$348,GH$1)","v":16},{"$f":"VLOOKUP(DropDownList!$B47,CntyQryCensus!$A$306:$GX$348,GI$1)","v":5},{"$f":"VLOOKUP(DropDownList!$B47,CntyQryCensus!$A$306:$GX$348,GJ$1)","v":3},{"$f":"VLOOKUP(DropDownList!$B47,CntyQryCensus!$A$306:$GX$348,GK$1)","v":319},{"$f":"VLOOKUP(DropDownList!$B47,CntyQryCensus!$A$306:$GX$348,GL$1)","v":263},{"$f":"VLOOKUP(DropDownList!$B47,CntyQryCensus!$A$306:$GX$348,GM$1)","v":256},{"$f":"VLOOKUP(DropDownList!$B47,CntyQryCensus!$A$306:$GX$348,GN$1)","v":7},{"$f":"VLOOKUP(DropDownList!$B47,CntyQryCensus!$A$306:$GX$348,GO$1)","v":56},{"$f":"VLOOKUP(DropDownList!$B47,CntyQryCensus!$A$306:$GX$348,GP$1)","v":52},{"$f":"VLOOKUP(DropDownList!$B47,CntyQryCensus!$A$306:$GX$348,GQ$1)","v":4},{"$f":"VLOOKUP(DropDownList!$B47,CntyQryCensus!$A$306:$GX$348,GR$1)","v":319},{"$f":"VLOOKUP(DropDownList!$B47,CntyQryCensus!$A$306:$GX$348,GS$1)","v":263},{"$f":"VLOOKUP(DropDownList!$B47,CntyQryCensus!$A$306:$GX$348,GT$1)","v":254},{"$f":"VLOOKUP(DropDownList!$B47,CntyQryCensus!$A$306:$GX$348,GU$1)","v":9},{"$f":"VLOOKUP(DropDownList!$B47,CntyQryCensus!$A$306:$GX$348,GV$1)","v":56},{"$f":"VLOOKUP(DropDownList!$B47,CntyQryCensus!$A$306:$GX$348,GW$1)","v":47},{"$f":"VLOOKUP(DropDownList!$B47,CntyQryCensus!$A$306:$GX$348,GX$1)","v":9}]
[]
[]
["Census 2000 SummaryFile3 Sample Data  -  SF3TownQry8HousingCostA"]
["NAME","LOGRECNO","COUNTY","TotalPop","H62RntrOccHU","H62RntrOccHUwRent","H62ROHUGRent<100","H62ROHUGRent100to149","H62ROHUGRent150to199","H62ROHUGRent200to249","H62ROHUGRent250to299","H62ROHUGRent300to349","H62ROHUGRent350to399","H62ROHUGRent400to449","H62ROHUGRent450to499","H62ROHUGRent500to549","H62ROHUGRent550to599","H62ROHUGRent600to649","H62ROHUGRent650to699","H62ROHUGRent700to749","H62ROHUGRent750to799","H62ROHUGRent800to899","H62ROHUGRent900to999","H62ROHUGRent1000to1249","H62ROHUGRent1250to1499","H62ROHUGRent1500to1999","H62ROHUGRent2000>","H62ROHUNoGRent","H63MedianGrossRnt","H69RenterOccHsU","H69GRnt<10PctHHInc","H69GRnt10to15PctHHInc","H69GRnt15to20PctHHInc","H69GRnt20to25PctHHInc","H69GRnt25to30PctHHInc","H69GRnt30to35PctHHInc","H69GRnt35to40PctHHInc","H69GRnt40to50PctHHInc","H69GRnt>50PctHHInc","H69GRntPctNotcomputed","H73RenterOccHU","H73ROHUHhInc<10k","H73ROHUHhInc<10kRnt<20pct","H73ROHUHhInc<10kRnt20to25pct","H73ROHUHhInc<10kRnt25to30pct","H73ROHUHhInc<10kRnt30to35pct","H73ROHUHhInc<10kRnt>35pct","H73ROHUHhInc<10kPctNotComput","H73ROHUHhInc10to20k","H73ROHUHhInc10to20kRnt<20pct","H73ROHUHhInc10to20kRnt20to25pct","H73ROHUHhInc10to20kRnt25to30pct","H73ROHUHhInc10to20kRnt30to35pct","H73ROHUHhInc10to20kRnt>35pct","H73ROHUHhInc10to20kRntPctNC","H73ROHUHhInc20to35k","H73ROHUHhInc20to35kRnt<20pct","H73ROHUHhInc20to35kRnt20to25pct","H73ROHUHhInc20to35kRnt25to30pct","H73ROHUHhInc20to35kRnt30to35pct","H73ROHUHhInc20to35kRnt>35pct","H73ROHUHhInc20to35kRntPctNC","H73ROHUHhInc35to40k","H73ROHUHhInc35to40kRnt<20pct","H73ROHUHhInc35to40kRnt20to25pct","H73ROHUHhInc35to40kRnt25to30pct","H73ROHUHhInc35to40kRnt30to35pct","H73ROHUHhInc35to40kRnt>35pct","H73ROHUHhInc35to40kRntPctNC","H73ROHUHhInc50to75k","H73ROHUHhInc50to75kRnt<20pct","H73ROHUHhInc50to75kRnt20to25pct","H73ROHUHhInc50to75kRnt25to30pct","H73ROHUHhInc50to75kRnt30to35pct","H73ROHUHhInc50to75kRnt>35pct","H73ROHUHhInc50to75kRntPctNC","H73ROHUHhInc75to100k","H73ROHUHhInc75to100kRnt<20pct","H73ROHUHhInc75to100kRnt20to25pct","H73ROHUHhInc75to100kRnt25to30pct","H73ROHUHhInc75to100kRnt30to35pct","H73ROHUHhInc75to100kRnt>35pct","H73ROHUHhInc75to100kRntPctNC","H73ROHUHhInc>100k","H73ROHUHhInc>100kRnt<20pct","H73ROHUHhInc>100kRnt20to25pct","H73ROHUHhInc>100kRnt25to30pct","H73ROHUHhInc>100kRnt30to35pct","H73ROHUHhInc>100kRnt>35pct","H73ROHUHhInc>100kRntPctNC","H73ROHUHhInc>100kRntPctNC"]
[{"$f":"VLOOKUP(DropDownList!$B$47,CntyQryCensus!$A$357:$CM$399,A$1)","v":"Acworth"},{"$f":"VLOOKUP(DropDownList!$B$47,CntyQryCensus!$A$357:$CM$399,B$1)","v":"0004141"},{"$f":"VLOOKUP(DropDownList!$B$47,CntyQryCensus!$A$357:$CM$399,C$1)","v":"00260"},{"$f":"VLOOKUP(DropDownList!$B$47,CntyQryCensus!$A$357:$CM$399,D$1)","v":836},{"$f":"VLOOKUP(DropDownList!$B$47,CntyQryCensus!$A$357:$CM$399,E$1)","v":33},{"$f":"VLOOKUP(DropDownList!$B$47,CntyQryCensus!$A$357:$CM$399,F$1)","v":25},{"$f":"VLOOKUP(DropDownList!$B$47,CntyQryCensus!$A$357:$CM$399,G$1)","v":0},{"$f":"VLOOKUP(DropDownList!$B$47,CntyQryCensus!$A$357:$CM$399,H$1)","v":0},{"$f":"VLOOKUP(DropDownList!$B$47,CntyQryCensus!$A$357:$CM$399,I$1)","v":0},{"$f":"VLOOKUP(DropDownList!$B$47,CntyQryCensus!$A$357:$CM$399,J$1)","v":0},{"$f":"VLOOKUP(DropDownList!$B$47,CntyQryCensus!$A$357:$CM$399,K$1)","v":2},{"$f":"VLOOKUP(DropDownList!$B$47,CntyQryCensus!$A$357:$CM$399,L$1)","v":0},{"$f":"VLOOKUP(DropDownList!$B$47,CntyQryCensus!$A$357:$CM$399,M$1)","v":0},{"$f":"VLOOKUP(DropDownList!$B$47,CntyQryCensus!$A$357:$CM$399,N$1)","v":6},{"$f":"VLOOKUP(DropDownList!$B$47,CntyQryCensus!$A$357:$CM$399,O$1)","v":0},{"$f":"VLOOKUP(DropDownList!$B$47,CntyQryCensus!$A$357:$CM$399,P$1)","v":0},{"$f":"VLOOKUP(DropDownList!$B$47,CntyQryCensus!$A$357:$CM$399,Q$1)","v":4},{"$f":"VLOOKUP(DropDownList!$B$47,CntyQryCensus!$A$357:$CM$399,R$1)","v":2},{"$f":"VLOOKUP(DropDownList!$B$47,CntyQryCensus!$A$357:$CM$399,S$1)","v":0},{"$f":"VLOOKUP(DropDownList!$B$47,CntyQryCensus!$A$357:$CM$399,T$1)","v":9},{"$f":"VLOOKUP(DropDownList!$B$47,CntyQryCensus!$A$357:$CM$399,U$1)","v":2},{"$f":"VLOOKUP(DropDownList!$B$47,CntyQryCensus!$A$357:$CM$399,V$1)","v":0},{"$f":"VLOOKUP(DropDownList!$B$47,CntyQryCensus!$A$357:$CM$399,W$1)","v":0},{"$f":"VLOOKUP(DropDownList!$B$47,CntyQryCensus!$A$357:$CM$399,X$1)","v":0},{"$f":"VLOOKUP(DropDownList!$B$47,CntyQryCensus!$A$357:$CM$399,Y$1)","v":0},{"$f":"VLOOKUP(DropDownList!$B$47,CntyQryCensus!$A$357:$CM$399,Z$1)","v":0},{"$f":"VLOOKUP(DropDownList!$B$47,CntyQryCensus!$A$357:$CM$399,AA$1)","v":0},{"$f":"VLOOKUP(DropDownList!$B$47,CntyQryCensus!$A$357:$CM$399,AB$1)","v":8},{"$f":"VLOOKUP(DropDownList!$B$47,CntyQryCensus!$A$357:$CM$399,AC$1)","v":613},{"$f":"VLOOKUP(DropDownList!$B$47,CntyQryCensus!$A$357:$CM$399,AD$1)","v":33},{"$f":"VLOOKUP(DropDownList!$B$47,CntyQryCensus!$A$357:$CM$399,AE$1)","v":7},{"$f":"VLOOKUP(DropDownList!$B$47,CntyQryCensus!$A$357:$CM$399,AF$1)","v":0},{"$f":"VLOOKUP(DropDownList!$B$47,CntyQryCensus!$A$357:$CM$399,AG$1)","v":2},{"$f":"VLOOKUP(DropDownList!$B$47,CntyQryCensus!$A$357:$CM$399,AH$1)","v":3},{"$f":"VLOOKUP(DropDownList!$B$47,CntyQryCensus!$A$357:$CM$399,AI$1)","v":4},{"$f":"VLOOKUP(DropDownList!$B$47,CntyQryCensus!$A$357:$CM$399,AJ$1)","v":2},{"$f":"VLOOKUP(DropDownList!$B$47,CntyQryCensus!$A$357:$CM$399,AK$1)","v":0},{"$f":"VLOOKUP(DropDownList!$B$47,CntyQryCensus!$A$357:$CM$399,AL$1)","v":0},{"$f":"VLOOKUP(DropDownList!$B$47,CntyQryCensus!$A$357:$CM$399,AM$1)","v":4},{"$f":"VLOOKUP(DropDownList!$B$47,CntyQryCensus!$A$357:$CM$399,AN$1)","v":11},{"$f":"VLOOKUP(DropDownList!$B$47,CntyQryCensus!$A$357:$CM$399,AO$1)","v":33},{"$f":"VLOOKUP(DropDownList!$B$47,CntyQryCensus!$A$357:$CM$399,AP$1)","v":9},{"$f":"VLOOKUP(DropDownList!$B$47,CntyQryCensus!$A$357:$CM$399,AQ$1)","v":0},{"$f":"VLOOKUP(DropDownList!$B$47,CntyQryCensus!$A$357:$CM$399,AR$1)","v":0},{"$f":"VLOOKUP(DropDownList!$B$47,CntyQryCensus!$A$357:$CM$399,AS$1)","v":0},{"$f":"VLOOKUP(DropDownList!$B$47,CntyQryCensus!$A$357:$CM$399,AT$1)","v":0},{"$f":"VLOOKUP(DropDownList!$B$47,CntyQryCensus!$A$357:$CM$399,AU$1)","v":4},{"$f":"VLOOKUP(DropDownList!$B$47,CntyQryCensus!$A$357:$CM$399,AV$1)","v":5},{"$f":"VLOOKUP(DropDownList!$B$47,CntyQryCensus!$A$357:$CM$399,AW$1)","v":2},{"$f":"VLOOKUP(DropDownList!$B$47,CntyQryCensus!$A$357:$CM$399,AX$1)","v":0},{"$f":"VLOOKUP(DropDownList!$B$47,CntyQryCensus!$A$357:$CM$399,AY$1)","v":0},{"$f":"VLOOKUP(DropDownList!$B$47,CntyQryCensus!$A$357:$CM$399,AZ$1)","v":0},{"$f":"VLOOKUP(DropDownList!$B$47,CntyQryCensus!$A$357:$CM$399,BA$1)","v":2},{"$f":"VLOOKUP(DropDownList!$B$47,CntyQryCensus!$A$357:$CM$399,BB$1)","v":0},{"$f":"VLOOKUP(DropDownList!$B$47,CntyQryCensus!$A$357:$CM$399,BC$1)","v":0},{"$f":"VLOOKUP(DropDownList!$B$47,CntyQryCensus!$A$357:$CM$399,BD$1)","v":10},{"$f":"VLOOKUP(DropDownList!$B$47,CntyQryCensus!$A$357:$CM$399,BE$1)","v":0},{"$f":"VLOOKUP(DropDownList!$B$47,CntyQryCensus!$A$357:$CM$399,BF$1)","v":0},{"$f":"VLOOKUP(DropDownList!$B$47,CntyQryCensus!$A$357:$CM$399,BG$1)","v":4},{"$f":"VLOOKUP(DropDownList!$B$47,CntyQryCensus!$A$357:$CM$399,BH$1)","v":0},{"$f":"VLOOKUP(DropDownList!$B$47,CntyQryCensus!$A$357:$CM$399,BI$1)","v":0},{"$f":"VLOOKUP(DropDownList!$B$47,CntyQryCensus!$A$357:$CM$399,BJ$1)","v":6},{"$f":"VLOOKUP(DropDownList!$B$47,CntyQryCensus!$A$357:$CM$399,BK$1)","v":3},{"$f":"VLOOKUP(DropDownList!$B$47,CntyQryCensus!$A$357:$CM$399,BL$1)","v":0},{"$f":"VLOOKUP(DropDownList!$B$47,CntyQryCensus!$A$357:$CM$399,BM$1)","v":3},{"$f":"VLOOKUP(DropDownList!$B$47,CntyQryCensus!$A$357:$CM$399,BN$1)","v":0},{"$f":"VLOOKUP(DropDownList!$B$47,CntyQryCensus!$A$357:$CM$399,BO$1)","v":0},{"$f":"VLOOKUP(DropDownList!$B$47,CntyQryCensus!$A$357:$CM$399,BP$1)","v":0},{"$f":"VLOOKUP(DropDownList!$B$47,CntyQryCensus!$A$357:$CM$399,BQ$1)","v":0},{"$f":"VLOOKUP(DropDownList!$B$47,CntyQryCensus!$A$357:$CM$399,BR$1)","v":6},{"$f":"VLOOKUP(DropDownList!$B$47,CntyQryCensus!$A$357:$CM$399,BS$1)","v":6},{"$f":"VLOOKUP(DropDownList!$B$47,CntyQryCensus!$A$357:$CM$399,BT$1)","v":0},{"$f":"VLOOKUP(DropDownList!$B$47,CntyQryCensus!$A$357:$CM$399,BU$1)","v":0},{"$f":"VLOOKUP(DropDownList!$B$47,CntyQryCensus!$A$357:$CM$399,BV$1)","v":0},{"$f":"VLOOKUP(DropDownList!$B$47,CntyQryCensus!$A$357:$CM$399,BW$1)","v":0},{"$f":"VLOOKUP(DropDownList!$B$47,CntyQryCensus!$A$357:$CM$399,BX$1)","v":0},{"$f":"VLOOKUP(DropDownList!$B$47,CntyQryCensus!$A$357:$CM$399,BY$1)","v":3},{"$f":"VLOOKUP(DropDownList!$B$47,CntyQryCensus!$A$357:$CM$399,BZ$1)","v":3},{"$f":"VLOOKUP(DropDownList!$B$47,CntyQryCensus!$A$357:$CM$399,CA$1)","v":0},{"$f":"VLOOKUP(DropDownList!$B$47,CntyQryCensus!$A$357:$CM$399,CB$1)","v":0},{"$f":"VLOOKUP(DropDownList!$B$47,CntyQryCensus!$A$357:$CM$399,CC$1)","v":0},{"$f":"VLOOKUP(DropDownList!$B$47,CntyQryCensus!$A$357:$CM$399,CD$1)","v":0},{"$f":"VLOOKUP(DropDownList!$B$47,CntyQryCensus!$A$357:$CM$399,CE$1)","v":0},{"$f":"VLOOKUP(DropDownList!$B$47,CntyQryCensus!$A$357:$CM$399,CF$1)","v":0},{"$f":"VLOOKUP(DropDownList!$B$47,CntyQryCensus!$A$357:$CM$399,CG$1)","v":0},{"$f":"VLOOKUP(DropDownList!$B$47,CntyQryCensus!$A$357:$CM$399,CH$1)","v":0},{"$f":"VLOOKUP(DropDownList!$B$47,CntyQryCensus!$A$357:$CM$399,CI$1)","v":0},{"$f":"VLOOKUP(DropDownList!$B$47,CntyQryCensus!$A$357:$CM$399,CJ$1)","v":0},{"$f":"VLOOKUP(DropDownList!$B$47,CntyQryCensus!$A$357:$CM$399,CK$1)","v":0},{"$f":"VLOOKUP(DropDownList!$B$47,CntyQryCensus!$A$357:$CM$399,CL$1)","v":0},{"$f":"VLOOKUP(DropDownList!$B$47,CntyQryCensus!$A$357:$CM$399,CM$1)","v":0}]
[]
[]
["Census 2000 SummaryFile3 Sample Data  -  SF3TownQry8HousingCostB"]
["NAME","LOGRECNO","COUNTY","TotalPop","H74SpecOwnerOccHU","H74OOHU<10k","H74OOHU10to15k","H74OOHU15to20k","H74OOHU20to25k","H74OOHU25to30k","H74OOHU30to35k","H74OOHU35to40k","H74OOHU40to50k","H74OOHU50to60k","H74OOHU60to70k","H74OOHU70to80k","H74OOHU80to90k","H74OOHU90to100k","H74OOHU100to125k","H74OOHU125to150k","H74OOHU150to175k","H74OOHU175to200k","H74OOHU200to250k","H74OOHU250to300k","H74OOHU300to400k","H74OOHU400to500k","H74OOHU500to750k","H74OOHU750to1000k","H74OOHU1000kmore","H76OOHUMedianVal","H84OwnerOccHU","H84AllOOHU<10k","H84AllOOHU10to15k","H84AllOOHU15to20k","H84AllOOHU20to25k","H84AllOOHU25to30k","H84AllOOHU30to35k","H84AllOOHU35to40k","H84AllOOHU40to50k","H84AllOOHU50to60k","H84AllOOHU60to70k","H84AllOOHU70to80k","H84AllOOHU80to90k","H84AllOOHU90to100k","H84AllOOHU100to125k","H84AllOOHU125to150k","H84AllOOHU150to175k","H84AllOOHU175to200k","H84AllOOHU200to250k","H84AllOOHU250to300k","H84AllOOHU300to400k","H84AllOOHU400to500k","H84AllOOHU500to750k","H84AllOOHU750to1000k","H84AllOOHU1000kmore","H85OOHUMedVal","H90SOOHU","H90HUwMorgt","H90HUwMtgHC<200","H90HUwMtgHC200to300","H90HUwMtgHC300to400","H90HUwMtgHC400to500","H90HUwMtgHC500to600","H90HUwMtgHC600to700","H90HUwMtgHC700to800","H90HUwMtgHC800to900","H90HUwMtgHC900to1000","H90HUwMtgHC1000to1250","H90HUwMtgHC1250to1500","H90HUwMtgHC1500to2000","H90HUwMtgHC2000to2500","H90HUwMtgHC2500to3000","H90HUwMtgHC3000orMore","H90HUwOutMorgt","H90HUwOutMtgHC<100","H90HUwOutMtgHC100to150","H90HUwOutMtgHC150to200","H90HUwOutMtgHC200to250","H90HUwOutMtgHC250to300","H90HUwOutMtgHC300to350","H90HUwOutMtgHC350to400","H90HUwOutMtgHC400to500","H90HUwOutMtgHC500to600","H90HUwOutMtgHC600to700","H90HUwOutMtgHC700to800","H90HUwOutMtgHC800to900","H90HUwOutMtgHC900to1000","H90HUwOutMtgHC1000orMore","H91MedianOCHUwMtg","H91MedianOCHUwOutMtg","H94SpecOOHU","H94HUwMortg","H94HUwMtgHC<10pct","H94HUwMtgHC10to15pct","H94HUwMtgHC15to20pct","H94HUwMtgHC20to25pct","H94HUwMtgHC25to30pct","H94HUwMtgHC30to35pct","H94HUwMtgHC35to40pct","H94HUwMtgHC40to50pct","H94HUwMtgHC50pctOrMore","H94HUwMtgHCpctNotComp","H94HUWOutMortg","H94HUWOutMortgHC<10pct","H94HUWOutMortgHC10to15pct","H94HUWOutMortgHC15to20pct","H94HUWOutMortgHC20to25pct","H94HUWOutMortgHC25to30pct","H94HUWOutMortgHC30to35pct","H94HUWOutMortgHC35to40pct","H94HUWOutMortgHC40to50pct","H94HUWOutMortgHC50pctOrMore","H94HUWOutMortgHCpctNotComp","H97SpecifOwnOccHU","H97SOOHUInc<10k","H97SOOHUInc<10kHC<20pct","H97SOOHUInc<10kHC20to25pct","H97SOOHUInc<10kHC25to30pct","H97SOOHUInc<10kHC30to35pct","H97SOOHUInc<10kHC>35pct","H97SOOHUInc<10kHCpctNotComput","H97SOOHUInc10to20k","H97SOOHUInc10to20kHC<20pct","H97SOOHUInc10to20kHC20to25pct","H97SOOHUInc10to20kHC25to30pct","H97SOOHUInc10to20kHC30to35pct","H97SOOHUInc10to20kHC>35pct","H97SOOHUInc10to20kHCpctNotComput","H97SOOHUInc20to35k","H97SOOHUInc20to35kRC<20pct","H97SOOHUInc20to35kRC20to25pct","H97SOOHUInc20to35kRC25to30pct","H97SOOHUInc20to35kRC30to35pct","H97SOOHUInc20to35kRC>35pct","H97SOOHUInc20to35kRCpctNotComput","H97SOOHUInc35to50k","H97SOOHUInc35to50kRC<20pct","H97SOOHUInc35to50kRC20to25pct","H97SOOHUInc35to50kRC25to30pct","H97SOOHUInc35to50kRC30to35pct","H97SOOHUInc35to50kRC>35pct","H97SOOHUInc35to50kRCpctNotCompute","H97SOOHUInc50to75k","H97SOOHUInc50to75kRC<20pct","H97SOOHUInc50to75kRC20to25pct","H97SOOHUInc50to75kRC25to30pct","H97SOOHUInc50to75kRC30to35pct","H97SOOHUInc50to75kRC>35pct","H97SOOHUInc50to75kRCpctNotComput","H97SOOHUInc75to100k","H97SOOHUInc75to100kRC<20pct","H97SOOHUInc75to100kRC20to25pct","H97SOOHUInc75to100kRC25to30pct","H97SOOHUInc75to100kRC30to35pct","H97SOOHUInc75to100kRC>35pct","H97SOOHUInc75to100kRCpctNotCompute","H97SOOHUInc100to150k","H97SOOHUInc100to150kRC<20pct","H97SOOHUInc100to150kRC20to25pct","H97SOOHUInc100to150kRC25to30pct","H97SOOHUInc100to150kRC30to35pct","H97SOOHUInc100to150kRC>35pct","H97SOOHUInc100to150kRCpctNotCompute","H97SOOHUInc>150k","H97SOOHUInc>150kRC<20pct","H97SOOHUInc>150kRC20to25pct","H97SOOHUInc>150kRC25to30pct","H97SOOHUInc>150kRC30to35pct","H97SOOHUInc>150kRC>35pct","H97SOOHUInc>150kRCpctNotCompute"]
[{"$f":"VLOOKUP(DropDownList!$B$47,CntyQryCensus!$A$408:$FN$450,A$1)","v":"Acworth"},{"$f":"VLOOKUP(DropDownList!$B$47,CntyQryCensus!$A$408:$FN$450,B$1)","v":"0004141"},{"$f":"VLOOKUP(DropDownList!$B$47,CntyQryCensus!$A$408:$FN$450,C$1)","v":"00260"},{"$f":"VLOOKUP(DropDownList!$B$47,CntyQryCensus!$A$408:$FN$450,D$1)","v":836},{"$f":"VLOOKUP(DropDownList!$B$47,CntyQryCensus!$A$408:$FN$450,E$1)","v":124},{"$f":"VLOOKUP(DropDownList!$B$47,CntyQryCensus!$A$408:$FN$450,F$1)","v":0},{"$f":"VLOOKUP(DropDownList!$B$47,CntyQryCensus!$A$408:$FN$450,G$1)","v":0},{"$f":"VLOOKUP(DropDownList!$B$47,CntyQryCensus!$A$408:$FN$450,H$1)","v":0},{"$f":"VLOOKUP(DropDownList!$B$47,CntyQryCensus!$A$408:$FN$450,I$1)","v":5},{"$f":"VLOOKUP(DropDownList!$B$47,CntyQryCensus!$A$408:$FN$450,J$1)","v":0},{"$f":"VLOOKUP(DropDownList!$B$47,CntyQryCensus!$A$408:$FN$450,K$1)","v":1},{"$f":"VLOOKUP(DropDownList!$B$47,CntyQryCensus!$A$408:$FN$450,L$1)","v":2},{"$f":"VLOOKUP(DropDownList!$B$47,CntyQryCensus!$A$408:$FN$450,M$1)","v":4},{"$f":"VLOOKUP(DropDownList!$B$47,CntyQryCensus!$A$408:$FN$450,N$1)","v":4},{"$f":"VLOOKUP(DropDownList!$B$47,CntyQryCensus!$A$408:$FN$450,O$1)","v":7},{"$f":"VLOOKUP(DropDownList!$B$47,CntyQryCensus!$A$408:$FN$450,P$1)","v":18},{"$f":"VLOOKUP(DropDownList!$B$47,CntyQryCensus!$A$408:$FN$450,Q$1)","v":17},{"$f":"VLOOKUP(DropDownList!$B$47,CntyQryCensus!$A$408:$FN$450,R$1)","v":15},{"$f":"VLOOKUP(DropDownList!$B$47,CntyQryCensus!$A$408:$FN$450,S$1)","v":25},{"$f":"VLOOKUP(DropDownList!$B$47,CntyQryCensus!$A$408:$FN$450,T$1)","v":9},{"$f":"VLOOKUP(DropDownList!$B$47,CntyQryCensus!$A$408:$FN$450,U$1)","v":2},{"$f":"VLOOKUP(DropDownList!$B$47,CntyQryCensus!$A$408:$FN$450,V$1)","v":7},{"$f":"VLOOKUP(DropDownList!$B$47,CntyQryCensus!$A$408:$FN$450,W$1)","v":2},{"$f":"VLOOKUP(DropDownList!$B$47,CntyQryCensus!$A$408:$FN$450,X$1)","v":4},{"$f":"VLOOKUP(DropDownList!$B$47,CntyQryCensus!$A$408:$FN$450,Y$1)","v":0},{"$f":"VLOOKUP(DropDownList!$B$47,CntyQryCensus!$A$408:$FN$450,Z$1)","v":0},{"$f":"VLOOKUP(DropDownList!$B$47,CntyQryCensus!$A$408:$FN$450,AA$1)","v":2},{"$f":"VLOOKUP(DropDownList!$B$47,CntyQryCensus!$A$408:$FN$450,AB$1)","v":0},{"$f":"VLOOKUP(DropDownList!$B$47,CntyQryCensus!$A$408:$FN$450,AC$1)","v":0},{"$f":"VLOOKUP(DropDownList!$B$47,CntyQryCensus!$A$408:$FN$450,AD$1)","v":92700},{"$f":"VLOOKUP(DropDownList!$B$47,CntyQryCensus!$A$408:$FN$450,AE$1)","v":263},{"$f":"VLOOKUP(DropDownList!$B$47,CntyQryCensus!$A$408:$FN$450,AF$1)","v":0},{"$f":"VLOOKUP(DropDownList!$B$47,CntyQryCensus!$A$408:$FN$450,AG$1)","v":0},{"$f":"VLOOKUP(DropDownList!$B$47,CntyQryCensus!$A$408:$FN$450,AH$1)","v":3},{"$f":"VLOOKUP(DropDownList!$B$47,CntyQryCensus!$A$408:$FN$450,AI$1)","v":7},{"$f":"VLOOKUP(DropDownList!$B$47,CntyQryCensus!$A$408:$FN$450,AJ$1)","v":6},{"$f":"VLOOKUP(DropDownList!$B$47,CntyQryCensus!$A$408:$FN$450,AK$1)","v":1},{"$f":"VLOOKUP(DropDownList!$B$47,CntyQryCensus!$A$408:$FN$450,AL$1)","v":8},{"$f":"VLOOKUP(DropDownList!$B$47,CntyQryCensus!$A$408:$FN$450,AM$1)","v":9},{"$f":"VLOOKUP(DropDownList!$B$47,CntyQryCensus!$A$408:$FN$450,AN$1)","v":8},{"$f":"VLOOKUP(DropDownList!$B$47,CntyQryCensus!$A$408:$FN$450,AO$1)","v":18},{"$f":"VLOOKUP(DropDownList!$B$47,CntyQryCensus!$A$408:$FN$450,AP$1)","v":27},{"$f":"VLOOKUP(DropDownList!$B$47,CntyQryCensus!$A$408:$FN$450,AQ$1)","v":33},{"$f":"VLOOKUP(DropDownList!$B$47,CntyQryCensus!$A$408:$FN$450,AR$1)","v":27},{"$f":"VLOOKUP(DropDownList!$B$47,CntyQryCensus!$A$408:$FN$450,AS$1)","v":48},{"$f":"VLOOKUP(DropDownList!$B$47,CntyQryCensus!$A$408:$FN$450,AT$1)","v":19},{"$f":"VLOOKUP(DropDownList!$B$47,CntyQryCensus!$A$408:$FN$450,AU$1)","v":9},{"$f":"VLOOKUP(DropDownList!$B$47,CntyQryCensus!$A$408:$FN$450,AV$1)","v":13},{"$f":"VLOOKUP(DropDownList!$B$47,CntyQryCensus!$A$408:$FN$450,AW$1)","v":17},{"$f":"VLOOKUP(DropDownList!$B$47,CntyQryCensus!$A$408:$FN$450,AX$1)","v":8},{"$f":"VLOOKUP(DropDownList!$B$47,CntyQryCensus!$A$408:$FN$450,AY$1)","v":0},{"$f":"VLOOKUP(DropDownList!$B$47,CntyQryCensus!$A$408:$FN$450,AZ$1)","v":0},{"$f":"VLOOKUP(DropDownList!$B$47,CntyQryCensus!$A$408:$FN$450,BA$1)","v":2},{"$f":"VLOOKUP(DropDownList!$B$47,CntyQryCensus!$A$408:$FN$450,BB$1)","v":0},{"$f":"VLOOKUP(DropDownList!$B$47,CntyQryCensus!$A$408:$FN$450,BC$1)","v":0},{"$f":"VLOOKUP(DropDownList!$B$47,CntyQryCensus!$A$408:$FN$450,BD$1)","v":94300},{"$f":"VLOOKUP(DropDownList!$B$47,CntyQryCensus!$A$408:$FN$450,BE$1)","v":124},{"$f":"VLOOKUP(DropDownList!$B$47,CntyQryCensus!$A$408:$FN$450,BF$1)","v":68},{"$f":"VLOOKUP(DropDownList!$B$47,CntyQryCensus!$A$408:$FN$450,BG$1)","v":0},{"$f":"VLOOKUP(DropDownList!$B$47,CntyQryCensus!$A$408:$FN$450,BH$1)","v":0},{"$f":"VLOOKUP(DropDownList!$B$47,CntyQryCensus!$A$408:$FN$450,BI$1)","v":0},{"$f":"VLOOKUP(DropDownList!$B$47,CntyQryCensus!$A$408:$FN$450,BJ$1)","v":2},{"$f":"VLOOKUP(DropDownList!$B$47,CntyQryCensus!$A$408:$FN$450,BK$1)","v":9},{"$f":"VLOOKUP(DropDownList!$B$47,CntyQryCensus!$A$408:$FN$450,BL$1)","v":4},{"$f":"VLOOKUP(DropDownList!$B$47,CntyQryCensus!$A$408:$FN$450,BM$1)","v":5},{"$f":"VLOOKUP(DropDownList!$B$47,CntyQryCensus!$A$408:$FN$450,BN$1)","v":20},{"$f":"VLOOKUP(DropDownList!$B$47,CntyQryCensus!$A$408:$FN$450,BO$1)","v":2},{"$f":"VLOOKUP(DropDownList!$B$47,CntyQryCensus!$A$408:$FN$450,BP$1)","v":18},{"$f":"VLOOKUP(DropDownList!$B$47,CntyQryCensus!$A$408:$FN$450,BQ$1)","v":4},{"$f":"VLOOKUP(DropDownList!$B$47,CntyQryCensus!$A$408:$FN$450,BR$1)","v":2},{"$f":"VLOOKUP(DropDownList!$B$47,CntyQryCensus!$A$408:$FN$450,BS$1)","v":2},{"$f":"VLOOKUP(DropDownList!$B$47,CntyQryCensus!$A$408:$FN$450,BT$1)","v":0},{"$f":"VLOOKUP(DropDownList!$B$47,CntyQryCensus!$A$408:$FN$450,BU$1)","v":0},{"$f":"VLOOKUP(DropDownList!$B$47,CntyQryCensus!$A$408:$FN$450,BV$1)","v":56},{"$f":"VLOOKUP(DropDownList!$B$47,CntyQryCensus!$A$408:$FN$450,BW$1)","v":0},{"$f":"VLOOKUP(DropDownList!$B$47,CntyQryCensus!$A$408:$FN$450,BX$1)","v":0},{"$f":"VLOOKUP(DropDownList!$B$47,CntyQryCensus!$A$408:$FN$450,BY$1)","v":4},{"$f":"VLOOKUP(DropDownList!$B$47,CntyQryCensus!$A$408:$FN$450,BZ$1)","v":7},{"$f":"VLOOKUP(DropDownList!$B$47,CntyQryCensus!$A$408:$FN$450,CA$1)","v":11},{"$f":"VLOOKUP(DropDownList!$B$47,CntyQryCensus!$A$408:$FN$450,CB$1)","v":3},{"$f":"VLOOKUP(DropDownList!$B$47,CntyQryCensus!$A$408:$FN$450,CC$1)","v":2},{"$f":"VLOOKUP(DropDownList!$B$47,CntyQryCensus!$A$408:$FN$450,CD$1)","v":14},{"$f":"VLOOKUP(DropDownList!$B$47,CntyQryCensus!$A$408:$FN$450,CE$1)","v":9},{"$f":"VLOOKUP(DropDownList!$B$47,CntyQryCensus!$A$408:$FN$450,CF$1)","v":6},{"$f":"VLOOKUP(DropDownList!$B$47,CntyQryCensus!$A$408:$FN$450,CG$1)","v":0},{"$f":"VLOOKUP(DropDownList!$B$47,CntyQryCensus!$A$408:$FN$450,CH$1)","v":0},{"$f":"VLOOKUP(DropDownList!$B$47,CntyQryCensus!$A$408:$FN$450,CI$1)","v":0},{"$f":"VLOOKUP(DropDownList!$B$47,CntyQryCensus!$A$408:$FN$450,CJ$1)","v":0},{"$f":"VLOOKUP(DropDownList!$B$47,CntyQryCensus!$A$408:$FN$450,CK$1)","v":870},{"$f":"VLOOKUP(DropDownList!$B$47,CntyQryCensus!$A$408:$FN$450,CL$1)","v":407},{"$f":"VLOOKUP(DropDownList!$B$47,CntyQryCensus!$A$408:$FN$450,CM$1)","v":124},{"$f":"VLOOKUP(DropDownList!$B$47,CntyQryCensus!$A$408:$FN$450,CN$1)","v":68},{"$f":"VLOOKUP(DropDownList!$B$47,CntyQryCensus!$A$408:$FN$450,CO$1)","v":2},{"$f":"VLOOKUP(DropDownList!$B$47,CntyQryCensus!$A$408:$FN$450,CP$1)","v":15},{"$f":"VLOOKUP(DropDownList!$B$47,CntyQryCensus!$A$408:$FN$450,CQ$1)","v":12},{"$f":"VLOOKUP(DropDownList!$B$47,CntyQryCensus!$A$408:$FN$450,CR$1)","v":12},{"$f":"VLOOKUP(DropDownList!$B$47,CntyQryCensus!$A$408:$FN$450,CS$1)","v":19},{"$f":"VLOOKUP(DropDownList!$B$47,CntyQryCensus!$A$408:$FN$450,CT$1)","v":6},{"$f":"VLOOKUP(DropDownList!$B$47,CntyQryCensus!$A$408:$FN$450,CU$1)","v":0},{"$f":"VLOOKUP(DropDownList!$B$47,CntyQryCensus!$A$408:$FN$450,CV$1)","v":0},{"$f":"VLOOKUP(DropDownList!$B$47,CntyQryCensus!$A$408:$FN$450,CW$1)","v":2},{"$f":"VLOOKUP(DropDownList!$B$47,CntyQryCensus!$A$408:$FN$450,CX$1)","v":0},{"$f":"VLOOKUP(DropDownList!$B$47,CntyQryCensus!$A$408:$FN$450,CY$1)","v":56},{"$f":"VLOOKUP(DropDownList!$B$47,CntyQryCensus!$A$408:$FN$450,CZ$1)","v":18},{"$f":"VLOOKUP(DropDownList!$B$47,CntyQryCensus!$A$408:$FN$450,DA$1)","v":8},{"$f":"VLOOKUP(DropDownList!$B$47,CntyQryCensus!$A$408:$FN$450,DB$1)","v":10},{"$f":"VLOOKUP(DropDownList!$B$47,CntyQryCensus!$A$408:$FN$450,DC$1)","v":5},{"$f":"VLOOKUP(DropDownList!$B$47,CntyQryCensus!$A$408:$FN$450,DD$1)","v":4},{"$f":"VLOOKUP(DropDownList!$B$47,CntyQryCensus!$A$408:$FN$450,DE$1)","v":2},{"$f":"VLOOKUP(DropDownList!$B$47,CntyQryCensus!$A$408:$FN$450,DF$1)","v":0},{"$f":"VLOOKUP(DropDownList!$B$47,CntyQryCensus!$A$408:$FN$450,DG$1)","v":2},{"$f":"VLOOKUP(DropDownList!$B$47,CntyQryCensus!$A$408:$FN$450,DH$1)","v":6},{"$f":"VLOOKUP(DropDownList!$B$47,CntyQryCensus!$A$408:$FN$450,DI$1)","v":1},{"$f":"VLOOKUP(DropDownList!$B$47,CntyQryCensus!$A$408:$FN$450,DJ$1)","v":124},{"$f":"VLOOKUP(DropDownList!$B$47,CntyQryCensus!$A$408:$FN$450,DK$1)","v":9},{"$f":"VLOOKUP(DropDownList!$B$47,CntyQryCensus!$A$408:$FN$450,DL$1)","v":0},{"$f":"VLOOKUP(DropDownList!$B$47,CntyQryCensus!$A$408:$FN$450,DM$1)","v":0},{"$f":"VLOOKUP(DropDownList!$B$47,CntyQryCensus!$A$408:$FN$450,DN$1)","v":0},{"$f":"VLOOKUP(DropDownList!$B$47,CntyQryCensus!$A$408:$FN$450,DO$1)","v":0},{"$f":"VLOOKUP(DropDownList!$B$47,CntyQryCensus!$A$408:$FN$450,DP$1)","v":8},{"$f":"VLOOKUP(DropDownList!$B$47,CntyQryCensus!$A$408:$FN$450,DQ$1)","v":1},{"$f":"VLOOKUP(DropDownList!$B$47,CntyQryCensus!$A$408:$FN$450,DR$1)","v":9},{"$f":"VLOOKUP(DropDownList!$B$47,CntyQryCensus!$A$408:$FN$450,DS$1)","v":4},{"$f":"VLOOKUP(DropDownList!$B$47,CntyQryCensus!$A$408:$FN$450,DT$1)","v":1},{"$f":"VLOOKUP(DropDownList!$B$47,CntyQryCensus!$A$408:$FN$450,DU$1)","v":2},{"$f":"VLOOKUP(DropDownList!$B$47,CntyQryCensus!$A$408:$FN$450,DV$1)","v":2},{"$f":"VLOOKUP(DropDownList!$B$47,CntyQryCensus!$A$408:$FN$450,DW$1)","v":0},{"$f":"VLOOKUP(DropDownList!$B$47,CntyQryCensus!$A$408:$FN$450,DX$1)","v":0},{"$f":"VLOOKUP(DropDownList!$B$47,CntyQryCensus!$A$408:$FN$450,DY$1)","v":23},{"$f":"VLOOKUP(DropDownList!$B$47,CntyQryCensus!$A$408:$FN$450,DZ$1)","v":10},{"$f":"VLOOKUP(DropDownList!$B$47,CntyQryCensus!$A$408:$FN$450,EA$1)","v":4},{"$f":"VLOOKUP(DropDownList!$B$47,CntyQryCensus!$A$408:$FN$450,EB$1)","v":7},{"$f":"VLOOKUP(DropDownList!$B$47,CntyQryCensus!$A$408:$FN$450,EC$1)","v":2},{"$f":"VLOOKUP(DropDownList!$B$47,CntyQryCensus!$A$408:$FN$450,ED$1)","v":0},{"$f":"VLOOKUP(DropDownList!$B$47,CntyQryCensus!$A$408:$FN$450,EE$1)","v":0},{"$f":"VLOOKUP(DropDownList!$B$47,CntyQryCensus!$A$408:$FN$450,EF$1)","v":29},{"$f":"VLOOKUP(DropDownList!$B$47,CntyQryCensus!$A$408:$FN$450,EG$1)","v":14},{"$f":"VLOOKUP(DropDownList!$B$47,CntyQryCensus!$A$408:$FN$450,EH$1)","v":4},{"$f":"VLOOKUP(DropDownList!$B$47,CntyQryCensus!$A$408:$FN$450,EI$1)","v":7},{"$f":"VLOOKUP(DropDownList!$B$47,CntyQryCensus!$A$408:$FN$450,EJ$1)","v":2},{"$f":"VLOOKUP(DropDownList!$B$47,CntyQryCensus!$A$408:$FN$450,EK$1)","v":2},{"$f":"VLOOKUP(DropDownList!$B$47,CntyQryCensus!$A$408:$FN$450,EL$1)","v":0},{"$f":"VLOOKUP(DropDownList!$B$47,CntyQryCensus!$A$408:$FN$450,EM$1)","v":35},{"$f":"VLOOKUP(DropDownList!$B$47,CntyQryCensus!$A$408:$FN$450,EN$1)","v":20},{"$f":"VLOOKUP(DropDownList!$B$47,CntyQryCensus!$A$408:$FN$450,EO$1)","v":8},{"$f":"VLOOKUP(DropDownList!$B$47,CntyQryCensus!$A$408:$FN$450,EP$1)","v":5},{"$f":"VLOOKUP(DropDownList!$B$47,CntyQryCensus!$A$408:$FN$450,EQ$1)","v":2},{"$f":"VLOOKUP(DropDownList!$B$47,CntyQryCensus!$A$408:$FN$450,ER$1)","v":0},{"$f":"VLOOKUP(DropDownList!$B$47,CntyQryCensus!$A$408:$FN$450,ES$1)","v":0},{"$f":"VLOOKUP(DropDownList!$B$47,CntyQryCensus!$A$408:$FN$450,ET$1)","v":15},{"$f":"VLOOKUP(DropDownList!$B$47,CntyQryCensus!$A$408:$FN$450,EU$1)","v":13},{"$f":"VLOOKUP(DropDownList!$B$47,CntyQryCensus!$A$408:$FN$450,EV$1)","v":0},{"$f":"VLOOKUP(DropDownList!$B$47,CntyQryCensus!$A$408:$FN$450,EW$1)","v":2},{"$f":"VLOOKUP(DropDownList!$B$47,CntyQryCensus!$A$408:$FN$450,EX$1)","v":0},{"$f":"VLOOKUP(DropDownList!$B$47,CntyQryCensus!$A$408:$FN$450,EY$1)","v":0},{"$f":"VLOOKUP(DropDownList!$B$47,CntyQryCensus!$A$408:$FN$450,EZ$1)","v":0},{"$f":"VLOOKUP(DropDownList!$B$47,CntyQryCensus!$A$408:$FN$450,FA$1)","v":4},{"$f":"VLOOKUP(DropDownList!$B$47,CntyQryCensus!$A$408:$FN$450,FB$1)","v":4},{"$f":"VLOOKUP(DropDownList!$B$47,CntyQryCensus!$A$408:$FN$450,FC$1)","v":0},{"$f":"VLOOKUP(DropDownList!$B$47,CntyQryCensus!$A$408:$FN$450,FD$1)","v":0},{"$f":"VLOOKUP(DropDownList!$B$47,CntyQryCensus!$A$408:$FN$450,FE$1)","v":0},{"$f":"VLOOKUP(DropDownList!$B$47,CntyQryCensus!$A$408:$FN$450,FF$1)","v":0},{"$f":"VLOOKUP(DropDownList!$B$47,CntyQryCensus!$A$408:$FN$450,FG$1)","v":0},{"$f":"VLOOKUP(DropDownList!$B$47,CntyQryCensus!$A$408:$FN$450,FH$1)","v":0},{"$f":"VLOOKUP(DropDownList!$B$47,CntyQryCensus!$A$408:$FN$450,FI$1)","v":0},{"$f":"VLOOKUP(DropDownList!$B$47,CntyQryCensus!$A$408:$FN$450,FJ$1)","v":0},{"$f":"VLOOKUP(DropDownList!$B$47,CntyQryCensus!$A$408:$FN$450,FK$1)","v":0},{"$f":"VLOOKUP(DropDownList!$B$47,CntyQryCensus!$A$408:$FN$450,FL$1)","v":0},{"$f":"VLOOKUP(DropDownList!$B$47,CntyQryCensus!$A$408:$FN$450,FM$1)","v":0},{"$f":"VLOOKUP(DropDownList!$B$47,CntyQryCensus!$A$408:$FN$450,FN$1)","v":0}]
[]
[]
["Census 2000 SummaryFile3 Sample Data  -  SF3TownQry9HHIncomeByTenure"]
["NAME","LOGRECNO","COUNTY","TotalPop","HCT11OccHU","HCT11OwnOccHU","HCT11OOHUInc<5K","HCT11OOHUInc5to10K","HCT11OOHUInc10to15K","HCT11OOHUInc15to20K","HCT11OOHUInc20to25K","HCT11OOHUInc25to35K","HCT11OOHUInc35to50K","HCT11OOHUInc50to75K","HCT11OOHUInc75to100K","HCT11OOHUInc100to150K","HCT11OOHUInc>150K","HCT11RentOccHU","HCT11ROHUInc<5K","HCT11ROHUInc5to10K","HCT11ROHUInc10to15K","HCT11ROHUInc15to20K","HCT11ROHUInc20to25K","HCT11ROHUInc25to35K","HCT11ROHUInc35to50K","HCT11ROHUInc50to75K","HCT11ROHUInc75to100K","HCT11ROHUInc100to150K","HCT11ROHUInc>150K","HCT12MedHHInc","HCT12MedOwnOccHHInc","HCT12MedRentOccHHInc","Summary Level"]
[{"$f":"VLOOKUP(DropDownList!$B$47,CntyQryCensus!$A$459:$AG$501,A$1)","v":"Acworth"},{"$f":"VLOOKUP(DropDownList!$B$47,CntyQryCensus!$A$459:$AG$501,B$1)","v":"0004141"},{"$f":"VLOOKUP(DropDownList!$B$47,CntyQryCensus!$A$459:$AG$501,C$1)","v":"00260"},{"$f":"VLOOKUP(DropDownList!$B$47,CntyQryCensus!$A$459:$AG$501,D$1)","v":"Acworth town"},{"$f":"VLOOKUP(DropDownList!$B$47,CntyQryCensus!$A$459:$AG$501,E$1)","v":"019"},{"$f":"VLOOKUP(DropDownList!$B$47,CntyQryCensus!$A$459:$AG$501,F$1)","v":836},{"$f":"VLOOKUP(DropDownList!$B$47,CntyQryCensus!$A$459:$AG$501,G$1)","v":319},{"$f":"VLOOKUP(DropDownList!$B$47,CntyQryCensus!$A$459:$AG$501,H$1)","v":263},{"$f":"VLOOKUP(DropDownList!$B$47,CntyQryCensus!$A$459:$AG$501,I$1)","v":5},{"$f":"VLOOKUP(DropDownList!$B$47,CntyQryCensus!$A$459:$AG$501,J$1)","v":8},{"$f":"VLOOKUP(DropDownList!$B$47,CntyQryCensus!$A$459:$AG$501,K$1)","v":7},{"$f":"VLOOKUP(DropDownList!$B$47,CntyQryCensus!$A$459:$AG$501,L$1)","v":36},{"$f":"VLOOKUP(DropDownList!$B$47,CntyQryCensus!$A$459:$AG$501,M$1)","v":15},{"$f":"VLOOKUP(DropDownList!$B$47,CntyQryCensus!$A$459:$AG$501,N$1)","v":43},{"$f":"VLOOKUP(DropDownList!$B$47,CntyQryCensus!$A$459:$AG$501,O$1)","v":59},{"$f":"VLOOKUP(DropDownList!$B$47,CntyQryCensus!$A$459:$AG$501,P$1)","v":53},{"$f":"VLOOKUP(DropDownList!$B$47,CntyQryCensus!$A$459:$AG$501,Q$1)","v":21},{"$f":"VLOOKUP(DropDownList!$B$47,CntyQryCensus!$A$459:$AG$501,R$1)","v":12},{"$f":"VLOOKUP(DropDownList!$B$47,CntyQryCensus!$A$459:$AG$501,S$1)","v":4},{"$f":"VLOOKUP(DropDownList!$B$47,CntyQryCensus!$A$459:$AG$501,T$1)","v":56},{"$f":"VLOOKUP(DropDownList!$B$47,CntyQryCensus!$A$459:$AG$501,U$1)","v":7},{"$f":"VLOOKUP(DropDownList!$B$47,CntyQryCensus!$A$459:$AG$501,V$1)","v":4},{"$f":"VLOOKUP(DropDownList!$B$47,CntyQryCensus!$A$459:$AG$501,W$1)","v":6},{"$f":"VLOOKUP(DropDownList!$B$47,CntyQryCensus!$A$459:$AG$501,X$1)","v":5},{"$f":"VLOOKUP(DropDownList!$B$47,CntyQryCensus!$A$459:$AG$501,Y$1)","v":2},{"$f":"VLOOKUP(DropDownList!$B$47,CntyQryCensus!$A$459:$AG$501,Z$1)","v":12},{"$f":"VLOOKUP(DropDownList!$B$47,CntyQryCensus!$A$459:$AG$501,AA$1)","v":9},{"$f":"VLOOKUP(DropDownList!$B$47,CntyQryCensus!$A$459:$AG$501,AB$1)","v":6},{"$f":"VLOOKUP(DropDownList!$B$47,CntyQryCensus!$A$459:$AG$501,AC$1)","v":3},{"$f":"VLOOKUP(DropDownList!$B$47,CntyQryCensus!$A$459:$AG$501,AD$1)","v":0},{"$f":"VLOOKUP(DropDownList!$B$47,CntyQryCensus!$A$459:$AG$501,AE$1)","v":2},{"$f":"VLOOKUP(DropDownList!$B$47,CntyQryCensus!$A$459:$AG$501,AF$1)","v":37375},{"$f":"VLOOKUP(DropDownList!$B$47,CntyQryCensus!$A$459:$AG$501,AG$1)","v":40078}]
[]
[]
[]
[]
[]
[{"$f":"VLOOKUP(DropDownList!$B$47,CntyQryCensus!$A$510:$DA$552,A$1)","v":"Acworth"}]
[]
[]
[]
[]
[]
[]
[]
["Census 2000 SummaryFile3 Sample Data - SF3TownQry10Disabil"]
["NAME","LOGRECNO","COUNTY","TotalPop","PCT026001-NonInstPop5yrs+","PCT026002-MaleNonInstPop5yrs+","PCT026003","PCT026004","PCT026005","PCT026006","PCT026007","PCT026008","PCT026009","PCT026010","PCT026011","PCT026012","PCT026013","PCT026014","PCT026015","PCT026016","PCT026017","PCT026018","PCT026019","PCT026020","PCT026021","PCT026022","PCT026023","PCT026024","PCT026025","PCT026026","PCT026027","PCT026028","PCT026029","PCT026030","PCT026031","PCT026032","PCT026033","PCT026034","PCT026035","PCT026036","PCT026037","PCT026038","PCT026039","PCT026040","PCT026041","PCT026042","PCT026043","PCT026044","PCT026045","PCT026046","PCT026047","PCT026048","PCT026049","PCT026050","PCT026051","PCT026052","PCT026053","PCT026054","PCT026055","PCT026056","PCT026057","PCT026058","PCT026059","PCT026060","PCT026061","PCT026062","PCT026063","PCT026064","PCT026065","PCT026066","PCT026067","PCT026068","PCT026069","PCT026070","PCT026071","PCT026072","PCT026073","PCT026074","PCT026075","PCT026076","PCT026077","PCT026078","PCT026079","PCT026080","PCT026081","PCT026082","PCT026083","PCT026084","PCT026085","PCT026086","PCT026087","PCT026088","PCT026089","PCT026090","PCT026091","PCT026092","PCT026093","PCT026094","PCT026095","PCT026096","PCT026097","PCT026098","PCT026099","PCT026100","PCT026101"]
[{"$f":"VLOOKUP(DropDownList!$B$47,CntyQryCensus!$A$510:$DA$552,A$1)","v":"Acworth"},{"$f":"VLOOKUP(DropDownList!$B$47,CntyQryCensus!$A$510:$DA$552,B$1)","v":"0004141"},{"$f":"VLOOKUP(DropDownList!$B$47,CntyQryCensus!$A$510:$DA$552,C$1)","v":"00260"},{"$f":"VLOOKUP(DropDownList!$B$47,CntyQryCensus!$A$510:$DA$552,D$1)","v":836},{"$f":"VLOOKUP(DropDownList!$B$47,CntyQryCensus!$A$510:$DA$552,E$1)","v":799},{"$f":"VLOOKUP(DropDownList!$B$47,CntyQryCensus!$A$510:$DA$552,F$1)","v":416},{"$f":"VLOOKUP(DropDownList!$B$47,CntyQryCensus!$A$510:$DA$552,G$1)","v":75},{"$f":"VLOOKUP(DropDownList!$B$47,CntyQryCensus!$A$510:$DA$552,H$1)","v":0},{"$f":"VLOOKUP(DropDownList!$B$47,CntyQryCensus!$A$510:$DA$552,I$1)","v":0},{"$f":"VLOOKUP(DropDownList!$B$47,CntyQryCensus!$A$510:$DA$552,J$1)","v":0},{"$f":"VLOOKUP(DropDownList!$B$47,CntyQryCensus!$A$510:$DA$552,K$1)","v":0},{"$f":"VLOOKUP(DropDownList!$B$47,CntyQryCensus!$A$510:$DA$552,L$1)","v":0},{"$f":"VLOOKUP(DropDownList!$B$47,CntyQryCensus!$A$510:$DA$552,M$1)","v":0},{"$f":"VLOOKUP(DropDownList!$B$47,CntyQryCensus!$A$510:$DA$552,N$1)","v":0},{"$f":"VLOOKUP(DropDownList!$B$47,CntyQryCensus!$A$510:$DA$552,O$1)","v":0},{"$f":"VLOOKUP(DropDownList!$B$47,CntyQryCensus!$A$510:$DA$552,P$1)","v":75},{"$f":"VLOOKUP(DropDownList!$B$47,CntyQryCensus!$A$510:$DA$552,Q$1)","v":31},{"$f":"VLOOKUP(DropDownList!$B$47,CntyQryCensus!$A$510:$DA$552,R$1)","v":2},{"$f":"VLOOKUP(DropDownList!$B$47,CntyQryCensus!$A$510:$DA$552,S$1)","v":0},{"$f":"VLOOKUP(DropDownList!$B$47,CntyQryCensus!$A$510:$DA$552,T$1)","v":0},{"$f":"VLOOKUP(DropDownList!$B$47,CntyQryCensus!$A$510:$DA$552,U$1)","v":2},{"$f":"VLOOKUP(DropDownList!$B$47,CntyQryCensus!$A$510:$DA$552,V$1)","v":0},{"$f":"VLOOKUP(DropDownList!$B$47,CntyQryCensus!$A$510:$DA$552,W$1)","v":0},{"$f":"VLOOKUP(DropDownList!$B$47,CntyQryCensus!$A$510:$DA$552,X$1)","v":0},{"$f":"VLOOKUP(DropDownList!$B$47,CntyQryCensus!$A$510:$DA$552,Y$1)","v":0},{"$f":"VLOOKUP(DropDownList!$B$47,CntyQryCensus!$A$510:$DA$552,Z$1)","v":0},{"$f":"VLOOKUP(DropDownList!$B$47,CntyQryCensus!$A$510:$DA$552,AA$1)","v":0},{"$f":"VLOOKUP(DropDownList!$B$47,CntyQryCensus!$A$510:$DA$552,AB$1)","v":0},{"$f":"VLOOKUP(DropDownList!$B$47,CntyQryCensus!$A$510:$DA$552,AC$1)","v":0},{"$f":"VLOOKUP(DropDownList!$B$47,CntyQryCensus!$A$510:$DA$552,AD$1)","v":29},{"$f":"VLOOKUP(DropDownList!$B$47,CntyQryCensus!$A$510:$DA$552,AE$1)","v":248},{"$f":"VLOOKUP(DropDownList!$B$47,CntyQryCensus!$A$510:$DA$552,AF$1)","v":32},{"$f":"VLOOKUP(DropDownList!$B$47,CntyQryCensus!$A$510:$DA$552,AG$1)","v":3},{"$f":"VLOOKUP(DropDownList!$B$47,CntyQryCensus!$A$510:$DA$552,AH$1)","v":12},{"$f":"VLOOKUP(DropDownList!$B$47,CntyQryCensus!$A$510:$DA$552,AI$1)","v":5},{"$f":"VLOOKUP(DropDownList!$B$47,CntyQryCensus!$A$510:$DA$552,AJ$1)","v":0},{"$f":"VLOOKUP(DropDownList!$B$47,CntyQryCensus!$A$510:$DA$552,AK$1)","v":0},{"$f":"VLOOKUP(DropDownList!$B$47,CntyQryCensus!$A$510:$DA$552,AL$1)","v":12},{"$f":"VLOOKUP(DropDownList!$B$47,CntyQryCensus!$A$510:$DA$552,AM$1)","v":25},{"$f":"VLOOKUP(DropDownList!$B$47,CntyQryCensus!$A$510:$DA$552,AN$1)","v":7},{"$f":"VLOOKUP(DropDownList!$B$47,CntyQryCensus!$A$510:$DA$552,AO$1)","v":18},{"$f":"VLOOKUP(DropDownList!$B$47,CntyQryCensus!$A$510:$DA$552,AP$1)","v":8},{"$f":"VLOOKUP(DropDownList!$B$47,CntyQryCensus!$A$510:$DA$552,AQ$1)","v":10},{"$f":"VLOOKUP(DropDownList!$B$47,CntyQryCensus!$A$510:$DA$552,AR$1)","v":191},{"$f":"VLOOKUP(DropDownList!$B$47,CntyQryCensus!$A$510:$DA$552,AS$1)","v":62},{"$f":"VLOOKUP(DropDownList!$B$47,CntyQryCensus!$A$510:$DA$552,AT$1)","v":13},{"$f":"VLOOKUP(DropDownList!$B$47,CntyQryCensus!$A$510:$DA$552,AU$1)","v":1},{"$f":"VLOOKUP(DropDownList!$B$47,CntyQryCensus!$A$510:$DA$552,AV$1)","v":10},{"$f":"VLOOKUP(DropDownList!$B$47,CntyQryCensus!$A$510:$DA$552,AW$1)","v":0},{"$f":"VLOOKUP(DropDownList!$B$47,CntyQryCensus!$A$510:$DA$552,AX$1)","v":0},{"$f":"VLOOKUP(DropDownList!$B$47,CntyQryCensus!$A$510:$DA$552,AY$1)","v":2},{"$f":"VLOOKUP(DropDownList!$B$47,CntyQryCensus!$A$510:$DA$552,AZ$1)","v":2},{"$f":"VLOOKUP(DropDownList!$B$47,CntyQryCensus!$A$510:$DA$552,BA$1)","v":2},{"$f":"VLOOKUP(DropDownList!$B$47,CntyQryCensus!$A$510:$DA$552,BB$1)","v":0},{"$f":"VLOOKUP(DropDownList!$B$47,CntyQryCensus!$A$510:$DA$552,BC$1)","v":47},{"$f":"VLOOKUP(DropDownList!$B$47,CntyQryCensus!$A$510:$DA$552,BD$1)","v":383},{"$f":"VLOOKUP(DropDownList!$B$47,CntyQryCensus!$A$510:$DA$552,BE$1)","v":67},{"$f":"VLOOKUP(DropDownList!$B$47,CntyQryCensus!$A$510:$DA$552,BF$1)","v":0},{"$f":"VLOOKUP(DropDownList!$B$47,CntyQryCensus!$A$510:$DA$552,BG$1)","v":0},{"$f":"VLOOKUP(DropDownList!$B$47,CntyQryCensus!$A$510:$DA$552,BH$1)","v":0},{"$f":"VLOOKUP(DropDownList!$B$47,CntyQryCensus!$A$510:$DA$552,BI$1)","v":0},{"$f":"VLOOKUP(DropDownList!$B$47,CntyQryCensus!$A$510:$DA$552,BJ$1)","v":0},{"$f":"VLOOKUP(DropDownList!$B$47,CntyQryCensus!$A$510:$DA$552,BK$1)","v":0},{"$f":"VLOOKUP(DropDownList!$B$47,CntyQryCensus!$A$510:$DA$552,BL$1)","v":0},{"$f":"VLOOKUP(DropDownList!$B$47,CntyQryCensus!$A$510:$DA$552,BM$1)","v":0},{"$f":"VLOOKUP(DropDownList!$B$47,CntyQryCensus!$A$510:$DA$552,BN$1)","v":67},{"$f":"VLOOKUP(DropDownList!$B$47,CntyQryCensus!$A$510:$DA$552,BO$1)","v":24},{"$f":"VLOOKUP(DropDownList!$B$47,CntyQryCensus!$A$510:$DA$552,BP$1)","v":0},{"$f":"VLOOKUP(DropDownList!$B$47,CntyQryCensus!$A$510:$DA$552,BQ$1)","v":0},{"$f":"VLOOKUP(DropDownList!$B$47,CntyQryCensus!$A$510:$DA$552,BR$1)","v":0},{"$f":"VLOOKUP(DropDownList!$B$47,CntyQryCensus!$A$510:$DA$552,BS$1)","v":0},{"$f":"VLOOKUP(DropDownList!$B$47,CntyQryCensus!$A$510:$DA$552,BT$1)","v":0},{"$f":"VLOOKUP(DropDownList!$B$47,CntyQryCensus!$A$510:$DA$552,BU$1)","v":0},{"$f":"VLOOKUP(DropDownList!$B$47,CntyQryCensus!$A$510:$DA$552,BV$1)","v":0},{"$f":"VLOOKUP(DropDownList!$B$47,CntyQryCensus!$A$510:$DA$552,BW$1)","v":0},{"$f":"VLOOKUP(DropDownList!$B$47,CntyQryCensus!$A$510:$DA$552,BX$1)","v":0},{"$f":"VLOOKUP(DropDownList!$B$47,CntyQryCensus!$A$510:$DA$552,BY$1)","v":0},{"$f":"VLOOKUP(DropDownList!$B$47,CntyQryCensus!$A$510:$DA$552,BZ$1)","v":0},{"$f":"VLOOKUP(DropDownList!$B$47,CntyQryCensus!$A$510:$DA$552,CA$1)","v":0},{"$f":"VLOOKUP(DropDownList!$B$47,CntyQryCensus!$A$510:$DA$552,CB$1)","v":24},{"$f":"VLOOKUP(DropDownList!$B$47,CntyQryCensus!$A$510:$DA$552,CC$1)","v":224},{"$f":"VLOOKUP(DropDownList!$B$47,CntyQryCensus!$A$510:$DA$552,CD$1)","v":15},{"$f":"VLOOKUP(DropDownList!$B$47,CntyQryCensus!$A$510:$DA$552,CE$1)","v":0},{"$f":"VLOOKUP(DropDownList!$B$47,CntyQryCensus!$A$510:$DA$552,CF$1)","v":3},{"$f":"VLOOKUP(DropDownList!$B$47,CntyQryCensus!$A$510:$DA$552,CG$1)","v":0},{"$f":"VLOOKUP(DropDownList!$B$47,CntyQryCensus!$A$510:$DA$552,CH$1)","v":0},{"$f":"VLOOKUP(DropDownList!$B$47,CntyQryCensus!$A$510:$DA$552,CI$1)","v":0},{"$f":"VLOOKUP(DropDownList!$B$47,CntyQryCensus!$A$510:$DA$552,CJ$1)","v":12},{"$f":"VLOOKUP(DropDownList!$B$47,CntyQryCensus!$A$510:$DA$552,CK$1)","v":12},{"$f":"VLOOKUP(DropDownList!$B$47,CntyQryCensus!$A$510:$DA$552,CL$1)","v":6},{"$f":"VLOOKUP(DropDownList!$B$47,CntyQryCensus!$A$510:$DA$552,CM$1)","v":6},{"$f":"VLOOKUP(DropDownList!$B$47,CntyQryCensus!$A$510:$DA$552,CN$1)","v":0},{"$f":"VLOOKUP(DropDownList!$B$47,CntyQryCensus!$A$510:$DA$552,CO$1)","v":6},{"$f":"VLOOKUP(DropDownList!$B$47,CntyQryCensus!$A$510:$DA$552,CP$1)","v":197},{"$f":"VLOOKUP(DropDownList!$B$47,CntyQryCensus!$A$510:$DA$552,CQ$1)","v":68},{"$f":"VLOOKUP(DropDownList!$B$47,CntyQryCensus!$A$510:$DA$552,CR$1)","v":4},{"$f":"VLOOKUP(DropDownList!$B$47,CntyQryCensus!$A$510:$DA$552,CS$1)","v":0},{"$f":"VLOOKUP(DropDownList!$B$47,CntyQryCensus!$A$510:$DA$552,CT$1)","v":4},{"$f":"VLOOKUP(DropDownList!$B$47,CntyQryCensus!$A$510:$DA$552,CU$1)","v":0},{"$f":"VLOOKUP(DropDownList!$B$47,CntyQryCensus!$A$510:$DA$552,CV$1)","v":0},{"$f":"VLOOKUP(DropDownList!$B$47,CntyQryCensus!$A$510:$DA$552,CW$1)","v":0},{"$f":"VLOOKUP(DropDownList!$B$47,CntyQryCensus!$A$510:$DA$552,CX$1)","v":10},{"$f":"VLOOKUP(DropDownList!$B$47,CntyQryCensus!$A$510:$DA$552,CY$1)","v":1},{"$f":"VLOOKUP(DropDownList!$B$47,CntyQryCensus!$A$510:$DA$552,CZ$1)","v":9},{"$f":"VLOOKUP(DropDownList!$B$47,CntyQryCensus!$A$510:$DA$552,DA$1)","v":54}]
[]
[]
[]
[]
[{"$f":"VLOOKUP(DropDownList!$B$47,CntyQryCensus!$A$510:$DA$552,A$1)","v":"Acworth"}]
[]
[]
[]
["ACS",2,{"$f":"B105+1","v":3},{"$f":"C105+1","v":4},5,6,7,8,9,10,11,{"$f":"K105+1","v":12},13,14,15,{"$f":"O105+1","v":16},17,18,19,20,21,22,23,24,25,26,27,28,29,30,31,32,33,34,35,36,37,38,39,40,41,42,43,44,45,46,47,48,49,50,51,52,53,54,55,56,57,58,59,60,61,62,63,64,65,66,67,{"$f":"BO105+1","v":68},69,70,71,72,73,74,75,76,77,78,79,80,81,82,83,84,85,86,87,88,89,90,91,92,93,94,95,96,97,98,99,100,101,102,103,104,105,106,107,108,109,110,111,112,113,114,115,116,117,118,119,120,121,122,123,124,125]
["Househould Data (Housing Unit Type)"]
["NAME","TotalHU",{"$f":"\"MOE \"&B107","v":"MOE TotalHU"},"TotalOccHU",{"$f":"\"MOE \"&D107","v":"MOE TotalOccHU"},"TotalOwnerOccUn",{"$f":"\"MOE \"&F107","v":"MOE TotalOwnerOccUn"},"TotalRenterOccn",{"$f":"\"MOE \"&H107","v":"MOE TotalRenterOccn"},"TotalVacantUntis",{"$f":"\"MOE \"&J107","v":"MOE TotalVacantUntis"},"VacantUnitsForRent",{"$f":"\"MOE \"&L107","v":"MOE VacantUnitsForRent"},"VacantUnitRentedNotOcc",{"$f":"\"MOE \"&N107","v":"MOE VacantUnitRentedNotOcc"},"VacantUnitForSale",{"$f":"\"MOE \"&P107","v":"MOE VacantUnitForSale"},"VacantUnitSoldNotOcc",{"$f":"\"MOE \"&R107","v":"MOE VacantUnitSoldNotOcc"},"VacantUnitSeasonalRec",{"$f":"\"MOE \"&T107","v":"MOE VacantUnitSeasonalRec"},"TotalPopInHousingUnits",{"$f":"\"MOE \"&V107","v":"MOE TotalPopInHousingUnits"},"OwnerOccPopHousingUnits",{"$f":"\"MOE \"&X107","v":"MOE OwnerOccPopHousingUnits"},"RenterOccPopHousingUnits",{"$f":"\"MOE \"&Z107","v":"MOE RenterOccPopHousingUnits"},"TotalUntis",{"$f":"\"MOE \"&AB107","v":"MOE TotalUntis"},"TotalOwnerOccUnits",{"$f":"\"MOE \"&AD107","v":"MOE TotalOwnerOccUnits"},"SigFamOwnerOcc",{"$f":"\"MOE \"&AF107","v":"MOE SigFamOwnerOcc"},"MultiFamOwnerOcc",{"$f":"\"MOE \"&AH107","v":"MOE MultiFamOwnerOcc"},"MobileOwnerOcc",{"$f":"\"MOE \"&AJ107","v":"MOE MobileOwnerOcc"},"TotalRenterOccUnits",{"$f":"\"MOE \"&AL107","v":"MOE TotalRenterOccUnits"},"SigFamRenterOcc",{"$f":"\"MOE \"&AN107","v":"MOE SigFamRenterOcc"},"MultiFamRenterOcc",{"$f":"\"MOE \"&AP107","v":"MOE MultiFamRenterOcc"},"MobileRenterOcc",{"$f":"\"MOE \"&AR107","v":"MOE MobileRenterOcc"},"TotalSigFamilyUnits",{"$f":"\"MOE \"&AT107","v":"MOE TotalSigFamilyUnits"},"TotalMultiFamilyUnits",{"$f":"\"MOE \"&AV107","v":"MOE TotalMultiFamilyUnits"},"TotalMobileUnits",{"$f":"\"MOE \"&AX107","v":"MOE TotalMobileUnits"},"YrHouseBuilt2014Later",{"$f":"\"MOE \"&AZ107","v":"MOE YrHouseBuilt2014Later"},"YrHouseBuilt2010-2013",{"$f":"\"MOE \"&BB107","v":"MOE YrHouseBuilt2010-2013"},"YrHouseBuilt2000-2009",{"$f":"\"MOE \"&BD107","v":"MOE YrHouseBuilt2000-2009"},"YrHouseBuilt1990-1999",{"$f":"\"MOE \"&BF107","v":"MOE YrHouseBuilt1990-1999"},"YrHouseBuilt1980-1989",{"$f":"\"MOE \"&BH107","v":"MOE YrHouseBuilt1980-1989"},"YrHouseBuilt1970-1979",{"$f":"\"MOE \"&BJ107","v":"MOE YrHouseBuilt1970-1979"},"YrHouseBuilt1960-1969",{"$f":"\"MOE \"&BL107","v":"MOE YrHouseBuilt1960-1969"},"YrHouseBuilt1950-1959",{"$f":"\"MOE \"&BN107","v":"MOE YrHouseBuilt1950-1959"},"YrHouseBuilt1940-1949",{"$f":"\"MOE \"&BP107","v":"MOE YrHouseBuilt1940-1949"},"YrHouseBuilt1939orEarlier",{"$f":"\"MOE \"&BR107","v":"MOE YrHouseBuilt1939orEarlier"},"NoBedrooms",{"$f":"\"MOE \"&BT107","v":"MOE NoBedrooms"},"1Bedroom",{"$f":"\"MOE \"&BV107","v":"MOE 1Bedroom"},"2Bedroom",{"$f":"\"MOE \"&BX107","v":"MOE 2Bedroom"},"3Bedroom",{"$f":"\"MOE \"&BZ107","v":"MOE 3Bedroom"},"4+Bedroom",{"$f":"\"MOE \"&CB107","v":"MOE 4+Bedroom"}]
[{"$f":"VLOOKUP(DropDownList!$B$47,CntyQryCensus!$A$530:$AY$544,A$1)","v":"Acworth"},511,73,343,60,300,54,43,31,168,52,10,16,0,114,5,8,0,114,142,52,822,164,703,142,119,89,343,60,300,54,261,58,3,279.28659115682586,36,116.10340218959993,43,31,26,25,12,279.82137159266443,5,114.28035701729323,439,73,15,255.59538336988797,57,117.38824472663352,0,114,14,12,54,24,66,28,49,26,67,46,92,41,15,15,154,55,14,11,50,27,179,57,179,48,89,50.119856344566671,171,50.089919145472777,81,79,36,74,28,76,114,30,114,142,91,44,40,134,119,76,105,14,132,142,84,108,151,154,137,30,701,207.10383868967759,300,141.01418368376991,207.27517941133232,197.81304304822774]
[]
["Disability Data"]
["NAME","TotalPop","PCT026001-NonInstPop5yrs+","PCT026002-MaleNonInstPop5yrs+","Male5To15NonInstitPop","Male5To15-NoDisability","Male5To15-1Disability","Male5To15-2orMoreDisabilities","Male16To20-NonInstitutionalPop","Male16To20-NoDisability","Male16To20-1Disability","Male16To20-2orMoreDisabilities","Male21To64-NonInstitutionalPop","Male21To64-NoDisability","Male21To64-1Disability","Male21To64-2orMoreDisabilities","Male65To74-NonInstitutionalPop","Male65To74-NoDisability","Male65To74-1Disability","Male65To74-2orMoreDisabilities","Male75Over-NonInstitutionalPop","Male75Over-NoDisability","Male75Over-1Disability","Male75Over-2orMoreDisabilities","PCT026002-FemaleNonInstPop5yrs+","FemaleNonInstPop5To15NonInstPop","Female5To15-NoDisability","Female5To15-1Disability","Female5To15-2orMoreDisabilities","FemaleNonInstPop16To20NonInstPop","Female16To20-NoDisability","Female16To20-1Disability","Female16To20-2orMoreDisabilities","FemaleNonInstPop21To64NonInstPop","Female21To64-NoDisability","Female21To64-1Disability","Female21To64-2orMoreDisabilities","FemaleNonInstPop65To74NonInstPop","Female65To74-NoDisability","Female65To74-1Disability","Female65To74-2orMoreDisabilities","FemaleNonInstPop75OverNonInstPop","Female75Over-NoDisability","Female75Over-1Disability","Female75Over-2orMoreDisabilities","Male5To15-SensoryDisability","Male16To20-SensoryDisability","Male21To64-SensoryDisability","Male65To74-SensoryDisability","Male75Over-SensoryDisability","Female5To15-SensoryDisability","Female16To20-SensoryDisability","Female21To64-SensoryDisability","Female65To74-SensoryDisability","Female75Over-SensoryDisability","Male5To15-PhysicalDisabil","Male16To20-PhysicalDisabil","Male21To64-PhysicalDisabil","Male65To74-PhysicalDisabil","Male75Over-PhysicalDisabil","Female5To15-PhysicalDisabil","Female16To20-PhysicalDisabil","Female21To64-PhysicalDisabil","Female65To74-PhysicalDisabil","Female75Over-PhysicalDisabil","Male5To15-MentalDisabil","Male16To20-MentalDisabil","Male21To64-MentalDisabil","Male65To74-MentalDisabil","Male75Over-MentalDisabil","Female5To15-MentalDisabil","Female16To20-MentalDisabil","Female21To64-MentalDisabil","Female65To74-MentalDisabil","Female75Over-MentalDisabil","Male5To15-SelfCareDisabil","Male16To20-SelfCareDisabil","Male21To64-SelfCareDisabil","Male65To74-SelfCareDisabil","Male75Over-SelfCareDisabil","Female5To15-SelfCareDisabil","Female16To20-SelfCareDisabil","Female21To64-SelfCareDisabil","Female65To74-SelfCareDisabil","Female75Over-SelfCareDisabil","Male16To20-GoOutsideHomeDisabil","Male21To64-GoOutsideHomeDisabil","Male65To74-GoOutsideHomeDisabil","Male75Over-GoOutsideHomeDisabil","Female16To20-GoOutsideHomeDisabil","Female21To64-GoOutsideHomeDisabil","Female65To74-GoOutsideHomeDisabil","Female75Over-GoOutsideHomeDisabil","Male16To20-EmploymentDisabil","Male21To64-EmploymentDisabil","Female16To20-EmploymentDisabil","Female21To64-EmploymentDisabil"]
[{"$f":"VLOOKUP(DropDownList!$B$47,CntyQryCensus!$A$530:$AY$544,A$1)","v":"Acworth"},930,136,34,18.357559750685819,0,15.556349186104045,34,18.357559750685819,85,39.204591567825318,0,15.556349186104045,85,39.204591567825318,119,38.587562763149478,16,18.601075237738275,103,32.015621187164243,419,61.522353661088097,25,13.038404810405298,394,60.827625302982199,197,39.623225512317902,56,23.600847442411894,141,34.205262752974143,76,26.627053911388696,24,16.492422502470642,52,19.104973174542799,0,15.556349186104045,0,15.556349186104045,6,14.866068747318506,5,12.529964086141668,14,11.401754250991379,16,17.029386365926403,0,15.556349186104045,0,15.556349186104045,6,14.866068747318506,2,11.401754250991379,6,14.212670403551895,0,15.556349186104045,0,15.556349186104045,12,17.029386365926403,12,10.440306508910551,18,14.560219778561036,5,14.212670403551895,0,15.556349186104045,0,15.556349186104045,12,7.2111025509279782,40,21.400934559032695,8,9.8488578017961039,0,15.556349186104045,6,14.866068747318506,4,11.704699910719626,5,5.6568542494923806,5,14.212670403551895,13,12.649110640673518,3,11.704699910719626,5,12.529964086141668,15,19.416487838947599,0,11,0,11,25,15,16,13,45,22,35,17]
[]
["Househould Income By Age"]
["NAME","TotalHouseholds",{"$f":"\"MOE \"&B115","v":"MOE TotalHouseholds"},"HHInc<10K",{"$f":"\"MOE \"&D115","v":"MOE HHInc<10K"},"HHInc10to15K",{"$f":"\"MOE \"&F115","v":"MOE HHInc10to15K"},"HHInc15to20K",{"$f":"\"MOE \"&H115","v":"MOE HHInc15to20K"},"HHInc20to25K",{"$f":"\"MOE \"&J115","v":"MOE HHInc20to25K"},"HHInc25to30K",{"$f":"\"MOE \"&L115","v":"MOE HHInc25to30K"},"HHInc30to35K",{"$f":"\"MOE \"&N115","v":"MOE HHInc30to35K"},"HHInc35to40K",{"$f":"\"MOE \"&P115","v":"MOE HHInc35to40K"},"HHInc40to45K",{"$f":"\"MOE \"&R115","v":"MOE HHInc40to45K"},"HHInc45to50K",{"$f":"\"MOE \"&T115","v":"MOE HHInc45to50K"},"HHInc50to60K",{"$f":"\"MOE \"&V115","v":"MOE HHInc50to60K"},"HHInc60to75K",{"$f":"\"MOE \"&X115","v":"MOE HHInc60to75K"},"HHInc75to100K",{"$f":"\"MOE \"&Z115","v":"MOE HHInc75to100K"},"HHInc100to125K",{"$f":"\"MOE \"&AB115","v":"MOE HHInc100to125K"},"HHInc125to150K",{"$f":"\"MOE \"&AD115","v":"MOE HHInc125to150K"},"HHInc150to200K",{"$f":"\"MOE \"&AF115","v":"MOE HHInc150to200K"},"HHInc>200K",{"$f":"\"MOE \"&AH115","v":"MOE HHInc>200K"},"TotalHH",{"$f":"\"MOE \"&AJ115","v":"MOE TotalHH"},"HHAgeHHUnder25yrs",{"$f":"\"MOE \"&AL115","v":"MOE HHAgeHHUnder25yrs"},"HHAgeHH<25HHInc<10K",{"$f":"\"MOE \"&AN115","v":"MOE HHAgeHH<25HHInc<10K"},"HHAgeHH<25HHInc10to15K",{"$f":"\"MOE \"&AP115","v":"MOE HHAgeHH<25HHInc10to15K"},"HHAgeHH<25HHInc15to20K",{"$f":"\"MOE \"&AR115","v":"MOE HHAgeHH<25HHInc15to20K"},"HHAgeHH<25HHInc20to25K",{"$f":"\"MOE \"&AT115","v":"MOE HHAgeHH<25HHInc20to25K"},"HHAgeHH<25HHInc25to30K",{"$f":"\"MOE \"&AV115","v":"MOE HHAgeHH<25HHInc25to30K"},"HHAgeHH<25HHInc30to35K",{"$f":"\"MOE \"&AX115","v":"MOE HHAgeHH<25HHInc30to35K"},"HHAgeHH<25HHInc35to40K",{"$f":"\"MOE \"&AZ115","v":"MOE HHAgeHH<25HHInc35to40K"},"HHAgeHH<25HHInc40to45K",{"$f":"\"MOE \"&BB115","v":"MOE HHAgeHH<25HHInc40to45K"},"HHAgeHH<25HHInc45to50K",{"$f":"\"MOE \"&BD115","v":"MOE HHAgeHH<25HHInc45to50K"},"HHAgeHH<25HHInc50to60K",{"$f":"\"MOE \"&BF115","v":"MOE HHAgeHH<25HHInc50to60K"},"HHAgeHH<25HHInc60to75K",{"$f":"\"MOE \"&BH115","v":"MOE HHAgeHH<25HHInc60to75K"},"HHAgeHH<25HHInc75to100K",{"$f":"\"MOE \"&BJ115","v":"MOE HHAgeHH<25HHInc75to100K"},"HHAgeHH<25HHInc100to125K",{"$f":"\"MOE \"&BL115","v":"MOE HHAgeHH<25HHInc100to125K"},"HHAgeHH<25HHInc125to150K",{"$f":"\"MOE \"&BN115","v":"MOE HHAgeHH<25HHInc125to150K"},"HHAgeHH<25HHInc150to200K",{"$f":"\"MOE \"&BP115","v":"MOE HHAgeHH<25HHInc150to200K"},"HHAge<25HHInc>200K",{"$f":"\"MOE \"&BR115","v":"MOE HHAge<25HHInc>200K"},"HHAgeHH25to44yrs",{"$f":"\"MOE \"&BT115","v":"MOE HHAgeHH25to44yrs"},"HHAgeHH25To44yrsHHInc<10K",{"$f":"\"MOE \"&BV115","v":"MOE HHAgeHH25To44yrsHHInc<10K"},"HHAgeHH25To44yrsHHInc10to15K",{"$f":"\"MOE \"&BX115","v":"MOE HHAgeHH25To44yrsHHInc10to15K"},"HHAgeHH25To44yrsHHInc15to20K",{"$f":"\"MOE \"&BZ115","v":"MOE HHAgeHH25To44yrsHHInc15to20K"},"HHAgeHH25To44yrsHHInc20to25K",{"$f":"\"MOE \"&CB115","v":"MOE HHAgeHH25To44yrsHHInc20to25K"},"HHAgeHH25To44yrsHHInc25to30K",{"$f":"\"MOE \"&CD115","v":"MOE HHAgeHH25To44yrsHHInc25to30K"},"HHAgeHH25To44yrsHHInc30to35K",{"$f":"\"MOE \"&CF115","v":"MOE HHAgeHH25To44yrsHHInc30to35K"},"HHAgeHH25To44yrsHHInc35to40K",{"$f":"\"MOE \"&CH115","v":"MOE HHAgeHH25To44yrsHHInc35to40K"},"HHAgeHH25To44yrsHHInc40to45K",{"$f":"\"MOE \"&CJ115","v":"MOE HHAgeHH25To44yrsHHInc40to45K"},"HHAgeHH25To44yrsHHInc45to50K",{"$f":"\"MOE \"&CL115","v":"MOE HHAgeHH25To44yrsHHInc45to50K"},"HHAgeHH25To44yrsHHInc50to60K",{"$f":"\"MOE \"&CN115","v":"MOE HHAgeHH25To44yrsHHInc50to60K"},"HHAgeHH25To44yrsHHInc60to75K",{"$f":"\"MOE \"&CP115","v":"MOE HHAgeHH25To44yrsHHInc60to75K"},"HHAgeHH25To44yrsHHInc75to100K",{"$f":"\"MOE \"&CR115","v":"MOE HHAgeHH25To44yrsHHInc75to100K"},"HHAgeHH25To44yrsHHInc100to125K",{"$f":"\"MOE \"&CT115","v":"MOE HHAgeHH25To44yrsHHInc100to125K"},"HHAgeHH25To44yrsHHInc125to150K",{"$f":"\"MOE \"&CV115","v":"MOE HHAgeHH25To44yrsHHInc125to150K"},"HHAgeHH25To44yrsHHInc150to200K",{"$f":"\"MOE \"&CX115","v":"MOE HHAgeHH25To44yrsHHInc150to200K"},"HHAge25To44yrsHHInc>200K",{"$f":"\"MOE \"&CZ115","v":"MOE HHAge25To44yrsHHInc>200K"},"HHAgeHH45To64yrs",{"$f":"\"MOE \"&DB115","v":"MOE HHAgeHH45To64yrs"},"HHAgeHH45To64yrsHHInc<10K",{"$f":"\"MOE \"&DD115","v":"MOE HHAgeHH45To64yrsHHInc<10K"},"HHAgeHH45To64yrsHHInc10to15K",{"$f":"\"MOE \"&DF115","v":"MOE HHAgeHH45To64yrsHHInc10to15K"},"HHAgeHH45To64yrsHHInc15to20K",{"$f":"\"MOE \"&DH115","v":"MOE HHAgeHH45To64yrsHHInc15to20K"},"HHAgeHH45To64yrsHHInc20to25K",{"$f":"\"MOE \"&DJ115","v":"MOE HHAgeHH45To64yrsHHInc20to25K"},"HHAgeHH45To64yrsHHInc25to30K",{"$f":"\"MOE \"&DL115","v":"MOE HHAgeHH45To64yrsHHInc25to30K"},"HHAgeHH45To64yrsHHInc30to35K",{"$f":"\"MOE \"&DN115","v":"MOE HHAgeHH45To64yrsHHInc30to35K"},"HHAgeHH45To64yrsHHInc35to40K",{"$f":"\"MOE \"&DP115","v":"MOE HHAgeHH45To64yrsHHInc35to40K"},"HHAgeHH45To64yrsHHInc40to45K",{"$f":"\"MOE \"&DR115","v":"MOE HHAgeHH45To64yrsHHInc40to45K"},"HHAgeHH45To64yrsHHInc45to50K",{"$f":"\"MOE \"&DT115","v":"MOE HHAgeHH45To64yrsHHInc45to50K"},"HHAgeHH45To64yrsHHInc50to60K",{"$f":"\"MOE \"&DV115","v":"MOE HHAgeHH45To64yrsHHInc50to60K"},"HHAgeHH45To64yrsHHInc60to75K",{"$f":"\"MOE \"&DX115","v":"MOE HHAgeHH45To64yrsHHInc60to75K"},"HHAgeHH45To64yrsHHInc75to100K",{"$f":"\"MOE \"&DZ115","v":"MOE HHAgeHH45To64yrsHHInc75to100K"},"HHAgeHH45To64yrsHHInc100to125K",{"$f":"\"MOE \"&EB115","v":"MOE HHAgeHH45To64yrsHHInc100to125K"},"HHAgeHH45To64yrsHHInc125to150K",{"$f":"\"MOE \"&ED115","v":"MOE HHAgeHH45To64yrsHHInc125to150K"},"HHAgeHH45To64yrsHHInc150to200K",{"$f":"\"MOE \"&EF115","v":"MOE HHAgeHH45To64yrsHHInc150to200K"},"HHAge45To64yrsHHInc>200K",{"$f":"\"MOE \"&EH115","v":"MOE HHAge45To64yrsHHInc>200K"},"HHAgeHH65yrsorOlder",{"$f":"\"MOE \"&EJ115","v":"MOE HHAgeHH65yrsorOlder"},"HHAgeHH65yrsorOlderHHInc<10K",{"$f":"\"MOE \"&EL115","v":"MOE HHAgeHH65yrsorOlderHHInc<10K"},"HHAgeHH65yrsorOlderHHInc10to15K",{"$f":"\"MOE \"&EN115","v":"MOE HHAgeHH65yrsorOlderHHInc10to15K"},"HHAgeHH65yrsorOlderHHInc15to20K",{"$f":"\"MOE \"&EP115","v":"MOE HHAgeHH65yrsorOlderHHInc15to20K"},"HHAgeHH65yrsorOlderHHInc20to25K",{"$f":"\"MOE \"&ER115","v":"MOE HHAgeHH65yrsorOlderHHInc20to25K"},"HHAgeHH65yrsorOlderHHInc25to30K",{"$f":"\"MOE \"&ET115","v":"MOE HHAgeHH65yrsorOlderHHInc25to30K"},"HHAgeHH65yrsorOlderHHInc30to35K",{"$f":"\"MOE \"&EV115","v":"MOE HHAgeHH65yrsorOlderHHInc30to35K"},"HHAgeHH65yrsorOlderHHInc35to40K",{"$f":"\"MOE \"&EX115","v":"MOE HHAgeHH65yrsorOlderHHInc35to40K"},"HHAgeHH65yrsorOlderHHInc40to45K",{"$f":"\"MOE \"&EZ115","v":"MOE HHAgeHH65yrsorOlderHHInc40to45K"},"HHAgeHH65yrsorOlderHHInc45to50K",{"$f":"\"MOE \"&FB115","v":"MOE HHAgeHH65yrsorOlderHHInc45to50K"},"HHAgeHH65yrsorOlderHHInc50to60K",{"$f":"\"MOE \"&FD115","v":"MOE HHAgeHH65yrsorOlderHHInc50to60K"},"HHAgeHH65yrsorOlderHHInc60to75K",{"$f":"\"MOE \"&FF115","v":"MOE HHAgeHH65yrsorOlderHHInc60to75K"},"HHAgeHH65yrsorOlderHHInc75to100K",{"$f":"\"MOE \"&FH115","v":"MOE HHAgeHH65yrsorOlderHHInc75to100K"},"HHAgeHH65yrsorOlderHHInc100to125K",{"$f":"\"MOE \"&FJ115","v":"MOE HHAgeHH65yrsorOlderHHInc100to125K"},"HHAgeHH65yrsorOlderHHInc125to150K",{"$f":"\"MOE \"&FL115","v":"MOE HHAgeHH65yrsorOlderHHInc125to150K"},"HHAgeHH65yrsorOlderHHInc150to200K",{"$f":"\"MOE \"&FN115","v":"MOE HHAgeHH65yrsorOlderHHInc150to200K"},"HHAge65yrsorOlderHHInc>200K",{"$f":"\"MOE \"&FP115","v":"MOE HHAge65yrsorOlderHHInc>200K"},"MedianHHInc",{"$f":"\"MOE \"&FR115","v":"MOE MedianHHInc"},"HH under 25 years",{"$f":"\"MOE \"&FT115","v":"MOE HH under 25 years"},"Householder 25 to 44 years",{"$f":"\"MOE \"&FV115","v":"MOE Householder 25 to 44 years"},"Householder 45 to 64 years",{"$f":"\"MOE \"&FX115","v":"MOE Householder 45 to 64 years"},"Householder 65 years and over",{"$f":"\"MOE \"&FZ115","v":"MOE Householder 65 years and over"}]
[{"$f":"VLOOKUP(DropDownList!$B$47,CntyQryCensus!$A$530:$AY$544,A$1)","v":"Acworth"},343,60,9,10,31,22,5,8,38,25,0,114,17,18,3,4,62,46,40,24,31,20,48,31,26,15,8,9,14,16,11,11,0,114,343,60,23,21,0,114,0,114,0,114,9,14,0,114,9,15,0,114,0,114,5,8,0,114,0,114,0,114,0,114,0,114,0,114,0,114,61,24,6,9,0,114,0,114,5,10,0,114,0,114,0,114,8,9,10,12,10,15,17,16,5,8,0,114,0,114,0,114,0,114,151,48,0,114,26,20,5,8,12,15,0,114,4,7,3,4,20,15,9,11,14,12,12,18,21,14,0,114,14,16,11,11,0,114,108,48,3,4,5,7,0,114,12,12,0,114,4,6,0,114,34,44,16,18,7,9,19,19,0,114,8,9,0,114,0,114,0,114,46477,5651,33194,12424,50375,12057,49028,11155,43000,8714]
[]
["Number of Households by Income"]
["NAME","HHIncLessThn10k",{"$f":"\"MOE \"&B119","v":"MOE HHIncLessThn10k"},"HHInc10to15K",{"$f":"\"MOE \"&D119","v":"MOE HHInc10to15K"},"HHInc15to25K",{"$f":"\"MOE \"&F119","v":"MOE HHInc15to25K"},"HHInc25to35K",{"$f":"\"MOE \"&H119","v":"MOE HHInc25to35K"},"HHInc35to50K",{"$f":"\"MOE \"&J119","v":"MOE HHInc35to50K"},"HHInc50to75K",{"$f":"\"MOE \"&L119","v":"MOE HHInc50to75K"},"HHInc75to100K",{"$f":"\"MOE \"&N119","v":"MOE HHInc75to100K"},"HHInc100to150K",{"$f":"\"MOE \"&P119","v":"MOE HHInc100to150K"},"HHInc150to200K",{"$f":"\"MOE \"&R119","v":"MOE HHInc150to200K"},"HHIncOver200K",{"$f":"\"MOE \"&T119","v":"MOE HHIncOver200K"}]
[{"$f":"VLOOKUP(DropDownList!$B$47,CntyQryCensus!$A$530:$AY$544,A$1)","v":"Acworth"},9,10,31,22,5,8,38,25,0,114,17,18,3,4,62,46,40,24,31,20,48,31,26,15,8,9,14,16,11,11,0,114,null,null,null,null,null,null,null,null,null,null,null,null,null,null,null,null,null,null,null,null,null,null,null,null,null,null,null,null,null,null,null,null,null,null,null,null,null,null,null,null,null,71,144,93,171,118,131,100,66,49,292,122,333,132,307,97,186,97,22,28,12,20,0,16,null,null,null,null,null,null,null,null,null,null,null,null,null,null,"Charlestown",null,"Estimate","Margin Of Error",2310,107,null,null,133,93,71,53,340,130.81666560496029,246,117.00427342623003,368,162.24980739587951,625,179.74426277353055,307,97,208,100.96038827183659,12,20,0,16]
[]
["POVERTY DATA"]
["NAME","TotalPop",{"$f":"\"MOE \"&B123","v":"MOE TotalPop"},"Total Individuals living in Poverty",{"$f":"\"MOE \"&D123","v":"MOE Total Individuals living in Poverty"},"Under 5 yrs.",{"$f":"\"MOE \"&F123","v":"MOE Under 5 yrs."},"5 to 17 yrs.",{"$f":"\"MOE \"&H123","v":"MOE 5 to 17 yrs."},"18 to 64 yrs.",{"$f":"\"MOE \"&J123","v":"MOE 18 to 64 yrs."},"65 to 74 yrs.",{"$f":"\"MOE \"&L123","v":"MOE 65 to 74 yrs."},"75 yrs. & Over",{"$f":"\"MOE \"&N123","v":"MOE 75 yrs. & Over"},"Total Individuals  Not living Poverty",{"$f":"\"MOE \"&P123","v":"MOE Total Individuals  Not living Poverty"},"Under 5 yrs.",{"$f":"\"MOE \"&R123","v":"MOE Under 5 yrs."},"5 to 17 yrs.",{"$f":"\"MOE \"&T123","v":"MOE 5 to 17 yrs."},"18 to 64 yrs.",{"$f":"\"MOE \"&V123","v":"MOE 18 to 64 yrs."},"65 to 74 yrs.",{"$f":"\"MOE \"&X123","v":"MOE 65 to 74 yrs."},"75 yrs. & Over",{"$f":"\"MOE \"&Z123","v":"MOE 75 yrs. & Over"},"Total HH",{"$f":"\"MOE \"&AB123","v":"MOE Total HH"},"Total Households Below Poverty",{"$f":"\"MOE \"&AD123","v":"MOE Total Households Below Poverty"},"Family Households in Poverty",{"$f":"\"MOE \"&AF123","v":"MOE Family Households in Poverty"},"Married Couple Fam HH",{"$f":"\"MOE \"&AH123","v":"MOE Married Couple Fam HH"},"Other Family",{"$f":"\"MOE \"&AJ123","v":"MOE Other Family"},"Male Head of Family HH no wife",{"$f":"\"MOE \"&AL123","v":"MOE Male Head of Family HH no wife"},"Female Head of Family HH no husband",{"$f":"\"MOE \"&AN123","v":"MOE Female Head of Family HH no husband"},"Non-Family HH",{"$f":"\"MOE \"&AP123","v":"MOE Non-Family HH"},"Non-Family Male HH",{"$f":"\"MOE \"&AR123","v":"MOE Non-Family Male HH"},"Non-Family Female HH",{"$f":"\"MOE \"&AT123","v":"MOE Non-Family Female HH"},"Total Households at or Above Poverty",{"$f":"\"MOE \"&AV123","v":"MOE Total Households at or Above Poverty"},"Family Households above Poverty",{"$f":"\"MOE \"&AX123","v":"MOE Family Households above Poverty"},"Married Couple Fam HH",{"$f":"\"MOE \"&AZ123","v":"MOE Married Couple Fam HH"},"Other Family",{"$f":"\"MOE \"&BB123","v":"MOE Other Family"},"Male Head of Family HH no wife",{"$f":"\"MOE \"&BD123","v":"MOE Male Head of Family HH no wife"},"Female Head of Family HH no husband",{"$f":"\"MOE \"&BF123","v":"MOE Female Head of Family HH no husband"},"Non-Family HH",{"$f":"\"MOE \"&BH123","v":"MOE Non-Family HH"},"Non-Family Male HH",{"$f":"\"MOE \"&BJ123","v":"MOE Non-Family Male HH"},"Non-Family Female HH",{"$f":"\"MOE \"&BL123","v":"MOE Non-Family Female HH"},"Married Couple with Children Below Poverty",{"$f":"\"MOE \"&BN123","v":"MOE Married Couple with Children Below Poverty"},"Male HH with children below poverty",{"$f":"\"MOE \"&BP123","v":"MOE Male HH with children below poverty"},"Female HH with children below poverty",{"$f":"\"MOE \"&BR123","v":"MOE Female HH with children below poverty"},"Married Couple with Children At or Above Poverty",{"$f":"\"MOE \"&BT123","v":"MOE Married Couple with Children At or Above Poverty"},"Male HH with children at or above poverty",{"$f":"\"MOE \"&BV123","v":"MOE Male HH with children at or above poverty"},"Female HH with children at or above poverty",{"$f":"\"MOE \"&BX123","v":"MOE Female HH with children at or above poverty"}]
[{"$f":"VLOOKUP(DropDownList!$B$47,CntyQryCensus!$A$530:$AY$544,A$1)","v":"Acworth"},12783,263,1746,398,215,101.41498903022176,254,101.04949282406122,1011,231.43465600467013,103,52.697248505021591,163,87.692645073575008,11037,459,545,175.06855799943062,1739,261.25849268492692,6974,471.79232719492165,904,155,904,155,870,193,348,130,119,75,6,6,229,104,65,61,164,89,522,162,163,81,359,129,4929,237,3144,284,2527,248,617,178,146,76,471,156,1785,284,743,182,1042,193,69,61,65,61,164,89,1008,171,93,69,270,137]
[]
["Household Income By Tenure"]
["NAME","TotalOccHU",{"$f":"\"MOE \"&B127","v":"MOE TotalOccHU"},"OwnOccHU",{"$f":"\"MOE \"&D127","v":"MOE OwnOccHU"},"OOHUInc<5K",{"$f":"\"MOE \"&F127","v":"MOE OOHUInc<5K"},"OOHUInc5to10K",{"$f":"\"MOE \"&H127","v":"MOE OOHUInc5to10K"},"OOHUInc10to15K",{"$f":"\"MOE \"&J127","v":"MOE OOHUInc10to15K"},"OOHUInc15to20K",{"$f":"\"MOE \"&L127","v":"MOE OOHUInc15to20K"},"OOHUInc20to25K",{"$f":"\"MOE \"&N127","v":"MOE OOHUInc20to25K"},"OOHUInc25to35K",{"$f":"\"MOE \"&P127","v":"MOE OOHUInc25to35K"},"OOHUInc35to50K",{"$f":"\"MOE \"&R127","v":"MOE OOHUInc35to50K"},"OOHUInc50to75K",{"$f":"\"MOE \"&T127","v":"MOE OOHUInc50to75K"},"OOHUInc75to100K",{"$f":"\"MOE \"&V127","v":"MOE OOHUInc75to100K"},"OOHUInc100to150K",{"$f":"\"MOE \"&X127","v":"MOE OOHUInc100to150K"},"OOHUInc>150K",{"$f":"\"MOE \"&Z127","v":"MOE OOHUInc>150K"},"RentOccHU",{"$f":"\"MOE \"&AB127","v":"MOE RentOccHU"},"ROHUInc<5K",{"$f":"\"MOE \"&AD127","v":"MOE ROHUInc<5K"},"ROHUInc5to10K",{"$f":"\"MOE \"&AF127","v":"MOE ROHUInc5to10K"},"ROHUInc10to15K",{"$f":"\"MOE \"&AH127","v":"MOE ROHUInc10to15K"},"ROHUInc15to20K",{"$f":"\"MOE \"&AJ127","v":"MOE ROHUInc15to20K"},"ROHUInc20to25K",{"$f":"\"MOE \"&AL127","v":"MOE ROHUInc20to25K"},"ROHUInc25to35K",{"$f":"\"MOE \"&AN127","v":"MOE ROHUInc25to35K"},"ROHUInc35to50K",{"$f":"\"MOE \"&AP127","v":"MOE ROHUInc35to50K"},"ROHUInc50to75K",{"$f":"\"MOE \"&AR127","v":"MOE ROHUInc50to75K"},"ROHUInc75to100K",{"$f":"\"MOE \"&AT127","v":"MOE ROHUInc75to100K"},"ROHUInc100to150K",{"$f":"\"MOE \"&AV127","v":"MOE ROHUInc100to150K"},"ROHUInc>150K",{"$f":"\"MOE \"&AX127","v":"MOE ROHUInc>150K"},"Total OCC HUInc<5K",{"$f":"\"MOE \"&AZ127","v":"MOE Total OCC HUInc<5K"},"Total OCC HUInc5to10K",{"$f":"\"MOE \"&BB127","v":"MOE Total OCC HUInc5to10K"},"Total OCC HUInc10to15K",{"$f":"\"MOE \"&BD127","v":"MOE Total OCC HUInc10to15K"},"Total OCC HUInc15to20K",{"$f":"\"MOE \"&BF127","v":"MOE Total OCC HUInc15to20K"},"Total OCC HUInc20to25K",{"$f":"\"MOE \"&BH127","v":"MOE Total OCC HUInc20to25K"},"Total OCC HUInc25to35K",{"$f":"\"MOE \"&BJ127","v":"MOE Total OCC HUInc25to35K"},"Total OCC HUInc35to50K",{"$f":"\"MOE \"&BL127","v":"MOE Total OCC HUInc35to50K"},"Total OCC HUInc50to75K",{"$f":"\"MOE \"&BN127","v":"MOE Total OCC HUInc50to75K"},"Total OCC HUInc75to100K",{"$f":"\"MOE \"&BP127","v":"MOE Total OCC HUInc75to100K"},"Total OCC HUInc100to150K",{"$f":"\"MOE \"&BR127","v":"MOE Total OCC HUInc100to150K"},"Total OCC HUInc>150K",{"$f":"\"MOE \"&BT127","v":"MOE Total OCC HUInc>150K"},"MedHHInc",{"$f":"\"MOE \"&BV127","v":"MOE MedHHInc"},"MedOwnOccHHInc",{"$f":"\"MOE \"&BX127","v":"MOE MedOwnOccHHInc"},"MedRentOccHHInc",{"$f":"\"MOE \"&BZ127","v":"MOE MedRentOccHHInc"}]
[{"$f":"VLOOKUP(DropDownList!$B$47,CntyQryCensus!$A$530:$AY$544,A$1)","v":"Acworth"},343,60,300,54,3,4,6,9,31,22,5,8,26,19,8,9,95,48,67,30,26,15,22,18,11,11,43,31,0,114,0,114,0,114,0,114,12,15,9,15,10,12,12,18,0,114,0,114,0,114,3,114.0701538527936,6,114.35471131527551,31,116.10340218959993,5,114.28035701729323,38,24.207436873820409,17,17.4928556845359,105,49.477267507411923,79,34.985711369071801,26,114.9826073804208,22,115.41230437002807,11,114.52947218947619,46477,5651,47500,6452,45250,27199]
[]
["Population Data"]
["NAME","Total Population","MOE Total Population","Under 15 Years","MOE Under 15 yrs.","15 to 24 yrs.","MOE 15 to 24 yrs.","25 to 34 yrs.","MOE 25 to 34 yrs.","35 to 44 yrs.","MOE 35 to 44 yrs.","45 to 54 yrs.","MOE 45 to 54 yrs.","55 to 64 yrs.","MOE 55 to 64 yrs.","65 to 74 yrs.","MOE 65 to 74 yrs.","Over 74 yrs. ","MOE Over 74 yrs. ","TotalHH","MOE TotalHH","FamilyHH","MOE FamilyHH","MarriedFamilyHH","MOE MarriedFamilyHH","SingleFamilyHH","MOE SingleFamilyHH","Sfamily-MaleHH","MOE Sfamily-MaleHH","Sfamily-FemaleHH","MOE Sfamily-FemaleHH","NonFamilyHH","MOE NonFamilyHH","NonFamilyHH-LivingAlone","MOE NonFamilyHH-LivingAlone","NonFamilyHH-NotLivingAlone","MOE NonFamilyHH-NotLivingAlone","PopRaceWhite","MOE PopRaceWhite","PopRaceBlack","MOE PopRaceBlack","PopRaceAmerican Indian","MOE PopRaceAmerican Indian","PopRaceAsian &Pacific Is.","MOE PopRaceAsian &Pacific Is.","PopRaceOther*","MOE PopRaceOther*","PopRaceHispanic or Latino:","MOE PopRaceHispanic or Latino:","MedianAgeTotalPop","MOE MedianAgeTotalPop","MedianAgeMale","MOE MedianAgeMale","MedianAgeFemale","MOE MedianAgeFemale","AvgHHSizeTotal","MOE AvgHHSizeTotal","AvgHHSizeFamilyHH","MOE AvgHHSizeFamilyHH","AvgHHSizeNonFamilyHH","MOE AvgHHSizeNonFamilyHH"]
[{"$f":"VLOOKUP(DropDownList!$B$47,CntyQryCensus!$A$530:$AY$544,A$1)","v":"Acworth"},822,164,63,117.26892171415238,80,201.31567251458591,81,60.456596000767362,97,38.548670534792763,172,51.117511676528231,116,119.90412836929345,153,65.238025721200358,60,123.25988804148737,343,60,249,55,236,56,13,13,13,13,0,114,94,42,65,33,29,22,814,165,0,114,0,114,0,161.22034611053283,8,114.52947218947619,0,114,51,4.5999999999999996,51.6,5.5,50.7,4.5999999999999996,9.7725947521865884,0.28000000000000003,11.08433734939759,0.68703938953598875,6.2978723404255321,0.64262739858531381,null,null,null,null,null,null,null,null,null,null,null,null,null,null,null,null,null,null,null,33,160,112,164,81,200,109,64,70,127,82,116,79,190,121,116,81,181,91,117,75,55,49,139,96,91,59,73,63,84,72,null,null,null,null,null,null,null,null,null,null,null,null,null,null,null,null,null,null,null,null,null,null,null,null,null,null,null,null,null,null,null,null,null,null,"Charlestown",null,"Estimate","Margin Of Error",5019,17,1004,224.53062151964929,304,132.66876045248935,631,193.38303958723992,568,187.2378166931029,540,178.95809565370325,974,226.13933757752099,547,174.43623476789449,451,158.43295111813072]
[]
["Nativity and Prior Place of Residence"]
["NAME","TotalPop",{"$f":"\"MOE \"&B135","v":"MOE TotalPop"},"Native:",{"$f":"\"MOE \"&D135","v":"MOE Native:"},"NatBornInStateOfResidence",{"$f":"\"MOE \"&F135","v":"MOE NatBornInStateOfResidence"},"Born in other state in the United States:",{"$f":"\"MOE \"&H135","v":"MOE Born in other state in the United States:"},"Northeast",{"$f":"\"MOE \"&J135","v":"MOE Northeast"},"Midwest",{"$f":"\"MOE \"&L135","v":"MOE Midwest"},"South",{"$f":"\"MOE \"&N135","v":"MOE South"},"West",{"$f":"\"MOE \"&P135","v":"MOE West"},"Born outside the United States:",{"$f":"\"MOE \"&R135","v":"MOE Born outside the United States:"},"Puerto Rico",{"$f":"\"MOE \"&T135","v":"MOE Puerto Rico"},"U.S. Island Areas",{"$f":"\"MOE \"&V135","v":"MOE U.S. Island Areas"},"Born abroad of American parent(s)",{"$f":"\"MOE \"&X135","v":"MOE Born abroad of American parent(s)"},"Foreign born:",{"$f":"\"MOE \"&Z135","v":"MOE Foreign born:"},"Naturalized U.S. citizen",{"$f":"\"MOE \"&AB135","v":"MOE Naturalized U.S. citizen"},"Not a U.S. citizen",{"$f":"\"MOE \"&AD135","v":"MOE Not a U.S. citizen"},"CurrentResidenceTotal:",{"$f":"\"MOE \"&AF135","v":"MOE CurrentResidenceTotal:"},"SameHouse:",{"$f":"\"MOE \"&AH135","v":"MOE SameHouse:"},"DifferentHouse:",{"$f":"\"MOE \"&AJ135","v":"MOE DifferentHouse:"},"DiffHouseInNH",{"$f":"\"MOE \"&AL135","v":"MOE DiffHouseInNH"},"DiffHouseInNHSameCnty",{"$f":"\"MOE \"&AN135","v":"MOE DiffHouseInNHSameCnty"},"DiffHouseInNHDiffCnty",{"$f":"\"MOE \"&AP135","v":"MOE DiffHouseInNHDiffCnty"},"DiffHouseInDiffState",{"$f":"\"MOE \"&AR135","v":"MOE DiffHouseInDiffState"},"DiffHouseInElsewhere",{"$f":"\"MOE \"&AT135","v":"MOE DiffHouseInElsewhere"}]
[{"$f":"VLOOKUP(DropDownList!$B$47,CntyQryCensus!$A$530:$AY$544,A$1)","v":"Acworth"},13086,27,12732,121,6762,526,5904,507,4844,491,221,100,505,173,334,135,66,58,0,114,0,114,66,58,354,123,202,86,152,87,12864,87,10469,597,2395,609.18716335786326,1459,408.83248403227452,1134,362,325,190,936,437,0,114]
[]
["School Enrollment - Education"]
["NAME","Total Pop 3 Years and Older","MOE Total Pop 3 Years and Older","SchEnrlPop3yrOver",{"$f":"\"MOE \"&D139","v":"MOE SchEnrlPop3yrOver"},"TotalEnrollNursy&Kinder",{"$f":"\"MOE \"&F139","v":"MOE TotalEnrollNursy&Kinder"},"NurserSchEnrl",{"$f":"\"MOE \"&H139","v":"MOE NurserSchEnrl"},"KinderSchEnrl",{"$f":"\"MOE \"&J139","v":"MOE KinderSchEnrl"},"ElemSchEnrl (1-8)",{"$f":"\"MOE \"&L139","v":"MOE ElemSchEnrl (1-8)"},"HighSchEnrl(9-12)",{"$f":"\"MOE \"&N139","v":"MOE HighSchEnrl(9-12)"},"TotalElementry&HSEnroll",{"$f":"\"MOE \"&P139","v":"MOE TotalElementry&HSEnroll"},"CollGradSchEnrl",{"$f":"\"MOE \"&R139","v":"MOE CollGradSchEnrl"},"PopNotEnrolled","MOE PopNotEnrolled","Pop25yrsOver",{"$f":"\"MOE \"&V139","v":"MOE Pop25yrsOver"},"EduAtain<9grd",{"$f":"\"MOE \"&X139","v":"MOE EduAtain<9grd"},"EduAtainHSnoDip",{"$f":"\"MOE \"&Z139","v":"MOE EduAtainHSnoDip"},"EduAtainHSgrad",{"$f":"\"MOE \"&AB139","v":"MOE EduAtainHSgrad"},"EduAtainCollNoDeg",{"$f":"\"MOE \"&AD139","v":"MOE EduAtainCollNoDeg"},"EduAtainAssocDeg",{"$f":"\"MOE \"&AF139","v":"MOE EduAtainAssocDeg"},"EduAtainBachDeg",{"$f":"\"MOE \"&AH139","v":"MOE EduAtainBachDeg"},"EduAtainGradProfDeg",{"$f":"\"MOE \"&AJ139","v":"MOE EduAtainGradProfDeg"}]
[{"$f":"VLOOKUP(DropDownList!$B$47,CntyQryCensus!$A$530:$AY$544,A$1)","v":"Acworth"},12550,133,2637,285,275,118.25819210524064,137,79,138,88,1371,254.95097567963924,512,154,1883,297.85231239659697,479,179.42407865166817,9913,267,9356,246,532,134.96666255042391,579,164.872678148928,4478,341.01319622560061,1543,252.9565180026006,739,214.66252583997982,1055,240.56599926007831,205,145.21019247972919]
[]
["Occupied Owner Housing Value"]
["NAME","OwnerOccHU","MOE OwnerOccHU","AllOOHU<10k","MOE AllOOHU<10k","AllOOHU10to15k","MOE AllOOHU10to15k","AllOOHU15to20k","MOE AllOOHU15to20k","AllOOHU20to25k","MOE AllOOHU20to25k","AllOOHU25to30k","MOE AllOOHU25to30k","AllOOHU30to35k","MOE AllOOHU30to35k","AllOOHU35to40k","MOE AllOOHU35to40k","AllOOHU40to50k","MOE AllOOHU40to50k","AllOOHU50to60k","MOE AllOOHU50to60k","AllOOHU60to70k","MOE AllOOHU60to70k","AllOOHU70to80k","MOE AllOOHU70to80k","AllOOHU80to90k","MOE AllOOHU80to90k","AllOOHU90to100k","MOE AllOOHU90to100k","AllOOHU100to125k","MOE AllOOHU100to125k","AllOOHU125to150k","MOE AllOOHU125to150k","AllOOHU150to175k","MOE AllOOHU150to175k","AllOOHU175to200k","MOE AllOOHU175to200k","AllOOHU200to250k","MOE AllOOHU200to250k","AllOOHU250to300k","MOE AllOOHU250to300k","AllOOHU300to400k","MOE AllOOHU300to400k","AllOOHU400to500k","MOE AllOOHU400to500k","AllOOHU500to750k","MOE AllOOHU500to750k","AllOOHU750to1000k","MOE AllOOHU750to1000k","AllOOHU1000kmore","MOE AllOOHU1000kmore","MedianOwnOCCHomeValue","MOE MedianOwnOCCHomeValue","OnwerOccHsU","MOE OnwerOccHsU","OwnerCosts>20PctHHInc","MOE OwnerCosts>20PctHHInc","OwnerCosts20to29.9PctHHInc","MOE OwnerCosts20to29.9PctHHInc","OwnerCosts<30PctHHInc","MOE OwnerCosts<30PctHHInc","OwnerCosts>30PctHHInc","MOE OwnerCosts>30PctHHInc","OwnerCosts30to34.9PctHHInc","MOE OwnerCosts30to34.9PctHHInc","OwnerCosts<35PctHHInc","MOE OwnerCosts<35PctHHInc","OwnerCosts>35PctHHInc","MOE OwnerCosts>35PctHHInc","OwnerCosts>50PctHHInc","MOE OwnerCosts>50PctHHInc","OwnerCostsPctNotcomputed","MOE OwnerCostsPctNotcomputed","OwnerOHUHhInc<20k","MOE OwnerOHUHhInc<20k","OwnerOHUHhInc<20kHCosts<20pct","MOE OwnerOHUHhInc<20kHCosts<20pct","OwnerOHUHhInc<20kHCosts20to29pct","MOE OwnerOHUHhInc<20kHCosts20to29pct","OwnerOHUHhInc>20kHCosts30pct","MOE OwnerOHUHhInc>20kHCosts30pct","OwnerOHUHhInc20kTo34999","MOE OwnerOHUHhInc20kTo34999","OwnerOHUHhInc20kTo34999HCosts<20pct","MOE OwnerOHUHhInc20kTo34999HCosts<20pct","OwnerOHUHhInc20kTo34999HCosts20to29pct","MOE OwnerOHUHhInc20kTo34999HCosts20to29pct","OwnerOHUHhInc20kTo34999HCosts30pct","MOE OwnerOHUHhInc20kTo34999HCosts30pct","OwnerOHUHhInc35kTo49999","MOE OwnerOHUHhInc35kTo49999","OwnerOHUHhInc35kTo49999HCosts<20pct","MOE OwnerOHUHhInc35kTo49999HCosts<20pct","OwnerOHUHhInc35kTo49999HCosts20to29pct","MOE OwnerOHUHhInc35kTo49999HCosts20to29pct","OwnerOHUHhInc35kTo49999HCosts30pct","MOE OwnerOHUHhInc35kTo49999HCosts30pct","OwnerOHUHhInc50kTo74999","MOE OwnerOHUHhInc50kTo74999","OwnerOHUHhInc50kTo74999HCosts<20pct","MOE OwnerOHUHhInc50kTo74999HCosts<20pct","OwnerOHUHhInc50kTo74999HCosts20to29pct","MOE OwnerOHUHhInc50kTo74999HCosts20to29pct","OwnerOHUHhInc50kTo74999HCosts30pct","MOE OwnerOHUHhInc50kTo74999HCosts30pct","OwnerOHUHhInc>75000","MOE OwnerOHUHhInc>75000","OwnerOHUHhInc>75000HCosts<20pct","MOE OwnerOHUHhInc>75000HCosts<20pct","OwnerOHUHhInc>75000HCosts20to29pct","MOE OwnerOHUHhInc>75000HCosts20to29pct","OwnerOHUHhInc>75000HCosts30pct","MOE OwnerOHUHhInc>75000HCosts30pct","ZeroOrNegativeIncome","MOE ZeroOrNegativeIncome"]
[{"$f":"VLOOKUP(DropDownList!$B$47,CntyQryCensus!$A$530:$AY$544,A$1)","v":"Acworth"},300,54,10,14,0,114,0,114,0,114,0,114,0,114,4,7,0,114,0,114,11,11,3,5,5,10,5,7,29,21,16,14,67,33,18,14,42,27,10,11,28,17,39,44,9,11,0,114,4,6,null,null,null,null,175000,33755,0,0,0,0,0,0,0,0,0,0,0,0,0,0,0,0,0,0,0,0]
[]
["Occupied Rental Housing Value"]
["NAME","Estimate; Total:","Margin of Error; Total:","Estimate; Total: - Less than $10,000","Margin of Error; Total: - Less than $10,000","Estimate; Total: - $10,000 to $14,999","Margin of Error; Total: - $10,000 to $14,999","Estimate; Total: - $15,000 to $19,999","Margin of Error; Total: - $15,000 to $19,999","Estimate; Total: - $20,000 to $24,999","Margin of Error; Total: - $20,000 to $24,999","Estimate; Total: - $25,000 to $29,999","Margin of Error; Total: - $25,000 to $29,999","Estimate; Total: - $30,000 to $34,999","Margin of Error; Total: - $30,000 to $34,999","Estimate; Total: - $35,000 to $39,999","Margin of Error; Total: - $35,000 to $39,999","Estimate; Total: - $40,000 to $49,999","Margin of Error; Total: - $40,000 to $49,999","Estimate; Total: - $50,000 to $59,999","Margin of Error; Total: - $50,000 to $59,999","Estimate; Total: - $60,000 to $69,999","Margin of Error; Total: - $60,000 to $69,999","Estimate; Total: - $70,000 to $79,999","Margin of Error; Total: - $70,000 to $79,999","Estimate; Total: - $80,000 to $89,999","Margin of Error; Total: - $80,000 to $89,999","Estimate; Total: - $90,000 to $99,999","Margin of Error; Total: - $90,000 to $99,999","Estimate; Total: - $100,000 to $124,999","Margin of Error; Total: - $100,000 to $124,999","Estimate; Total: - $125,000 to $149,999","Margin of Error; Total: - $125,000 to $149,999","Estimate; Total: - $150,000 to $174,999","Margin of Error; Total: - $150,000 to $174,999","Estimate; Total: - $175,000 to $199,999","Margin of Error; Total: - $175,000 to $199,999","Estimate; Total: - $200,000 to $249,999","Margin of Error; Total: - $200,000 to $249,999","Estimate; Total: - $250,000 to $299,999","Margin of Error; Total: - $250,000 to $299,999","Estimate; Total: - $300,000 to $399,999","Margin of Error; Total: - $300,000 to $399,999","Estimate; Total: - $400,000 to $499,999","Margin of Error; Total: - $400,000 to $499,999","Estimate; Total: - $500,000 to $749,999","Margin of Error; Total: - $500,000 to $749,999","Estimate; Total: - $750,000 to $999,999","Margin of Error; Total: - $750,000 to $999,999","Estimate; Total: - $1,000,000 to $1,499,999","Margin of Error; Total: - $1,000,000 to $1,499,999","Estimate; Total: - $1,500,000 to $1,999,999","Margin of Error; Total: - $1,500,000 to $1,999,999","Estimate; Total: - $2,000,000 or more","Margin of Error; Total: - $2,000,000 or more","MedianOwnOCCHomeValue","MOE MedianOwnOCCHomeValue","OnwerOccHsU","MOE OnwerOccHsU","OwnerCosts>20PctHHInc","MOE OwnerCosts>20PctHHInc","OwnerCosts20to29.9PctHHInc","MOE OwnerCosts20to29.9PctHHInc","OwnerCosts<30PctHHInc","MOE OwnerCosts<30PctHHInc","OwnerCosts>30PctHHInc","MOE OwnerCosts>30PctHHInc","OwnerCosts30to34.9PctHHInc","MOE OwnerCosts30to34.9PctHHInc","OwnerCosts<35PctHHInc","MOE OwnerCosts<35PctHHInc","OwnerCosts>35PctHHInc","MOE OwnerCosts>35PctHHInc","OwnerCosts>50PctHHInc","MOE OwnerCosts>50PctHHInc","OwnerCostsPctNotcomputed","MOE OwnerCostsPctNotcomputed","OwnerOHUHhInc<20k","MOE OwnerOHUHhInc<20k","OwnerOHUHhInc<20kHCosts<20pct","MOE OwnerOHUHhInc<20kHCosts<20pct","OwnerOHUHhInc<20kHCosts20to29pct","MOE OwnerOHUHhInc<20kHCosts20to29pct","OwnerOHUHhInc>20kHCosts30pct","MOE OwnerOHUHhInc>20kHCosts30pct","OwnerOHUHhInc20kTo34999","MOE OwnerOHUHhInc20kTo34999","OwnerOHUHhInc20kTo34999HCosts<20pct","MOE OwnerOHUHhInc20kTo34999HCosts<20pct","OwnerOHUHhInc20kTo34999HCosts20to29pct","MOE OwnerOHUHhInc20kTo34999HCosts20to29pct","OwnerOHUHhInc20kTo34999HCosts30pct","MOE OwnerOHUHhInc20kTo34999HCosts30pct","OwnerOHUHhInc35kTo49999","MOE OwnerOHUHhInc35kTo49999","OwnerOHUHhInc35kTo49999HCosts<20pct","MOE OwnerOHUHhInc35kTo49999HCosts<20pct","OwnerOHUHhInc35kTo49999HCosts20to29pct","MOE OwnerOHUHhInc35kTo49999HCosts20to29pct","OwnerOHUHhInc35kTo49999HCosts30pct","MOE OwnerOHUHhInc35kTo49999HCosts30pct","OwnerOHUHhInc50kTo74999","MOE OwnerOHUHhInc50kTo74999","OwnerOHUHhInc50kTo74999HCosts<20pct","MOE OwnerOHUHhInc50kTo74999HCosts<20pct","OwnerOHUHhInc50kTo74999HCosts20to29pct","MOE OwnerOHUHhInc50kTo74999HCosts20to29pct","OwnerOHUHhInc50kTo74999HCosts30pct","MOE OwnerOHUHhInc50kTo74999HCosts30pct","OwnerOHUHhInc>75000","MOE OwnerOHUHhInc>75000","OwnerOHUHhInc>75000HCosts<20pct","MOE OwnerOHUHhInc>75000HCosts<20pct","OwnerOHUHhInc>75000HCosts20to29pct","MOE OwnerOHUHhInc>75000HCosts20to29pct","OwnerOHUHhInc>75000HCosts30pct","MOE OwnerOHUHhInc>75000HCosts30pct","ZeroOrNegativeIncome","MOE ZeroOrNegativeIncome"]
[null,27,20,18,19,0,11,0,11,0,11,0,11,0,11,0,11,0,11,0,11,0,11,0,11,0,11,0,11,0,11,6,15,0,11,0,11,0,11,3,4,9,13,0,11,0,11,0,11,722,60,2635,251,496,158,22,26,61,65,27,28,29,46,337,146,20,23,567,163,54,43,12,20,63,43,100,85,304,121,34,38,694,221,34,32,36,55,153,83,145,99,326,154,0,114,425,163,134,99,108,74,98,78,14,23,56,71,15,19,310,136,252,122,58,55,0,114,0,114,0,114,0,114,93,66,30,36,63,57,0,114,0,114,0,114,0,114,50,40,50,40,0,114,0,114,0,114,0,114,0,114,0,0,0,0,0,0,0,0,0,0,0,0,0,0,0,0,0,0,0,0,0,0,0,0,0,0,0,0,0,0,0,0,0,0]
[]
[]
[]
[]
[]
["Occupied Rental Housing Cost Burdern All Incomes"]
["NAME","RntrOccHU","MOE RntrOccHU","RntrOccHUwRent","MOE RntrOccHUwRent","ROHUGRent<100","MOE ROHUGRent<100","ROHUGRent100to149","MOE ROHUGRent100to149","ROHUGRent150to199","MOE ROHUGRent150to199","ROHUGRent200to249","MOE ROHUGRent200to249","ROHUGRent250to299","MOE ROHUGRent250to299","ROHUGRent300to349","MOE ROHUGRent300to349","ROHUGRent350to399","MOE ROHUGRent350to399","ROHUGRent400to449","MOE ROHUGRent400to449","ROHUGRent450to499","MOE ROHUGRent450to499","ROHUGRent500to549","MOE ROHUGRent500to549","ROHUGRent550to599","MOE ROHUGRent550to599","ROHUGRent600to649","MOE ROHUGRent600to649","ROHUGRent650to699","MOE ROHUGRent650to699","ROHUGRent700to749","MOE ROHUGRent700to749","ROHUGRent750to799","MOE ROHUGRent750to799","ROHUGRent800to899","MOE ROHUGRent800to899","ROHUGRent900to999","MOE ROHUGRent900to999","ROHUGRent1000to1249","MOE ROHUGRent1000to1249","ROHUGRent1250to1499","MOE ROHUGRent1250to1499","ROHUGRent1500to1999","MOE ROHUGRent1500to1999","ROHUGRent2000-2499","MOE ROHUGRent2000-2499","ROHUGRent2500-2999","MOE ROHUGRent2500-2999","ROHUGRent3000-3499","MOE ROHUGRent3000-3499","ROHUGRent3500<","MOE ROHUGRent3500<","ROHUNoGRent","MOE ROHUNoGRent","MedianGrossRnt","MOE MedianGrossRnt","H73RenterOccHU","MOE H73RenterOccHU","H73ROHUHhInc<10k","MOE H73ROHUHhInc<10k","H73ROHUHhInc<10kRnt<20pct","MOE H73ROHUHhInc<10kRnt<20pct","H73ROHUHhInc<10kRnt20to25pct","MOE H73ROHUHhInc<10kRnt20to25pct","H73ROHUHhInc<10kRnt25to30pct","MOE H73ROHUHhInc<10kRnt25to30pct","H73ROHUHhInc<10kRnt30to35pct","MOE H73ROHUHhInc<10kRnt30to35pct","H73ROHUHhInc<10kRnt35to39.9","MOE H73ROHUHhInc<10kRnt35to39.9","H73ROHUHhInc<10kRnt40to49.9","MOE H73ROHUHhInc<10kRnt40to49.9","H73ROHUHhInc<10kRnt>50pct","MOE H73ROHUHhInc<10kRnt>50pct","H73ROHUHhInc<10kPctNotComput","MOE H73ROHUHhInc<10kPctNotComput","H73ROHUHhInc10to20k","MOE H73ROHUHhInc10to20k","H73ROHUHhInc10to20kRnt<20pct","MOE H73ROHUHhInc10to20kRnt<20pct","H73ROHUHhInc10to20kRnt20to25pct","MOE H73ROHUHhInc10to20kRnt20to25pct","H73ROHUHhInc10to20kRnt25to30pct","MOE H73ROHUHhInc10to20kRnt25to30pct","H73ROHUHhInc10to20kRnt30to35pct","MOE H73ROHUHhInc10to20kRnt30to35pct","H73ROHUHhInc10to20kRnt35to39.9","MOE H73ROHUHhInc10to20kRnt35to39.9","H73ROHUHhInc10to20kRnt40to49.9","MOE H73ROHUHhInc10to20kRnt40to49.9","H73ROHUHhInc10to20kRnt>50pct","MOE H73ROHUHhInc10to20kRnt>50pct","H73ROHUHhInc10to20kRntPctNC","MOE H73ROHUHhInc10to20kRntPctNC","H73ROHUHhInc20to34.9k","MOE H73ROHUHhInc20to34.9k","H73ROHUHhInc20to34.9kRnt<20pct","MOE H73ROHUHhInc20to34.9kRnt<20pct","H73ROHUHhInc20to34.9kRnt20to25pct","MOE H73ROHUHhInc20to34.9kRnt20to25pct","H73ROHUHhInc20to34.9kRnt25to30pct","MOE H73ROHUHhInc20to34.9kRnt25to30pct","H73ROHUHhInc20to34.9kRnt30to35pct","MOE H73ROHUHhInc20to34.9kRnt30to35pct","H73ROHUHhInc20to34.9kRnt35to39.9","MOE H73ROHUHhInc20to34.9kRnt35to39.9","H73ROHUHhInc20to34.9kRnt40to49.9","MOE H73ROHUHhInc20to34.9kRnt40to49.9","H73ROHUHhInc20to34.9kRnt>50pct","MOE H73ROHUHhInc20to34.9kRnt>50pct","H73ROHUHhInc20to34.9kRntPctNC","MOE H73ROHUHhInc20to34.9kRntPctNC","H73ROHUHhInc35to49.9k","MOE H73ROHUHhInc35to49.9k","H73ROHUHhInc35to49.9kRnt<20pct","MOE H73ROHUHhInc35to49.9kRnt<20pct","H73ROHUHhInc35to49.9kRnt20to25pct","MOE H73ROHUHhInc35to49.9kRnt20to25pct","H73ROHUHhInc35to49.9kRnt25to30pct","MOE H73ROHUHhInc35to49.9kRnt25to30pct","H73ROHUHhInc35to49.9kRnt30to35pct","MOE H73ROHUHhInc35to49.9kRnt30to35pct","H73ROHUHhInc35to49.9kRnt35to39.9","MOE H73ROHUHhInc35to49.9kRnt35to39.9","H73ROHUHhInc35to49.9kRnt40to49.9","MOE H73ROHUHhInc35to49.9kRnt40to49.9","H73ROHUHhInc35to49.9kRnt>50pct","MOE H73ROHUHhInc35to49.9kRnt>50pct","H73ROHUHhInc35to49.9kRntPctNC","MOE H73ROHUHhInc35to49.9kRntPctNC","H73ROHUHhInc50to74.9k","MOE H73ROHUHhInc50to74.9k","H73ROHUHhInc50to74.9kRnt<20pct","MOE H73ROHUHhInc50to74.9kRnt<20pct","H73ROHUHhInc50to74.9kRnt20to25pct","MOE H73ROHUHhInc50to74.9kRnt20to25pct","H73ROHUHhInc50to74.9kRnt25to30pct","MOE H73ROHUHhInc50to74.9kRnt25to30pct","H73ROHUHhInc50to74.9kRnt30to35pct","MOE H73ROHUHhInc50to74.9kRnt30to35pct","H73ROHUHhInc50to74.9kRnt35to39.9","MOE H73ROHUHhInc50to74.9kRnt35to39.9","H73ROHUHhInc50to74.9kRnt40to49.9","MOE H73ROHUHhInc50to74.9kRnt40to49.9","H73ROHUHhInc50to74.9kRnt>50pct","MOE H73ROHUHhInc50to74.9kRnt>50pct","H73ROHUHhInc50to74.9kRntPctNC","MOE H73ROHUHhInc50to74.9kRntPctNC","H73ROHUHhInc75to99.9k","MOE H73ROHUHhInc75to99.9k","H73ROHUHhInc75to99.9kRnt<20pct","MOE H73ROHUHhInc75to99.9kRnt<20pct","H73ROHUHhInc75to99.9kRnt20to25pct","MOE H73ROHUHhInc75to99.9kRnt20to25pct","H73ROHUHhInc75to99.9kRnt25to30pct","MOE H73ROHUHhInc75to99.9kRnt25to30pct","H73ROHUHhInc75to99.9kRnt30to35pct","MOE H73ROHUHhInc75to99.9kRnt30to35pct","H73ROHUHhInc75to99.9kRnt35to39.9","MOE H73ROHUHhInc75to99.9kRnt35to39.9","H73ROHUHhInc75to99.9kRnt40to49.9","MOE H73ROHUHhInc75to99.9kRnt40to49.9","H73ROHUHhInc75to99.9kRnt>50pct","MOE H73ROHUHhInc75to99.9kRnt>50pct","H73ROHUHhInc75to99.9kRntPctNC","MOE H73ROHUHhInc75to99.9kRntPctNC","H73ROHUHhInc>100k","MOE H73ROHUHhInc>100k","H73ROHUHhInc>100kRnt<20pct","MOE H73ROHUHhInc>100kRnt<20pct","H73ROHUHhInc>100kRnt20to25pct","MOE H73ROHUHhInc>100kRnt20to25pct","H73ROHUHhInc>100kRnt25to30pct","MOE H73ROHUHhInc>100kRnt25to30pct","H73ROHUHhInc>100kRnt30to35pct","MOE H73ROHUHhInc>100kRnt30to35pct","H73ROHUHhInc>100kRnt35to39.9","MOE H73ROHUHhInc>100kRnt35to39.9","H73ROHUHhInc>100kRnt40to49.9","MOE H73ROHUHhInc>100kRnt40to49.9","H73ROHUHhInc>100kRnt>50pct","MOE H73ROHUHhInc>100kRnt>50pct","H73ROHUHhInc>100kRntPctNC","MOE H73ROHUHhInc>100kRntPctNC"]
[{"$f":"VLOOKUP(DropDownList!$B$47,CntyQryCensus!$A$530:$AY$544,A$1)","v":"Acworth"},2635,251,576,171.98546450209099,338,128,341,110,1255,240.96265270784184,1311,264.98679212368302,288,140,1543,278.68082101213929,1023,224.98444390668436,557,147,69,50]
[]
["Income By Household Type and Tenure"]
["NAME","TotalFamilyHouseholds",{"$f":"\"MOE \"&B159","v":"MOE TotalFamilyHouseholds"},"FamInc<10K",{"$f":"\"MOE \"&D159","v":"MOE FamInc<10K"},"FamInc10to15K",{"$f":"\"MOE \"&F159","v":"MOE FamInc10to15K"},"FamInc15to20K",{"$f":"\"MOE \"&H159","v":"MOE FamInc15to20K"},"FamInc20to25K",{"$f":"\"MOE \"&J159","v":"MOE FamInc20to25K"},"FamInc25to30K",{"$f":"\"MOE \"&L159","v":"MOE FamInc25to30K"},"FamInc30to35K",{"$f":"\"MOE \"&N159","v":"MOE FamInc30to35K"},"FamInc35to40K",{"$f":"\"MOE \"&P159","v":"MOE FamInc35to40K"},"FamInc40to45K",{"$f":"\"MOE \"&R159","v":"MOE FamInc40to45K"},"FamInc45to50K",{"$f":"\"MOE \"&T159","v":"MOE FamInc45to50K"},"FamInc50to60K",{"$f":"\"MOE \"&V159","v":"MOE FamInc50to60K"},"FamInc60to75K",{"$f":"\"MOE \"&X159","v":"MOE FamInc60to75K"},"FamInc75to100K",{"$f":"\"MOE \"&Z159","v":"MOE FamInc75to100K"},"FamInc100to125K",{"$f":"\"MOE \"&AB159","v":"MOE FamInc100to125K"},"FamInc125to150K",{"$f":"\"MOE \"&AD159","v":"MOE FamInc125to150K"},"FamInc150to200K",{"$f":"\"MOE \"&AF159","v":"MOE FamInc150to200K"},"FamInc>200K",{"$f":"\"MOE \"&AH159","v":"MOE FamInc>200K"},"MedFamInc",{"$f":"\"MOE \"&AJ159","v":"MOE MedFamInc"},"TotalNonNonFamilyHouseholds",{"$f":"\"MOE \"&AL159","v":"MOE TotalNonNonFamilyHouseholds"},"NonFamInc<10K",{"$f":"\"MOE \"&AN159","v":"MOE NonFamInc<10K"},"NonFamInc10to15K",{"$f":"\"MOE \"&AP159","v":"MOE NonFamInc10to15K"},"NonFamInc15to20K",{"$f":"\"MOE \"&AR159","v":"MOE NonFamInc15to20K"},"NonFamInc20to25K",{"$f":"\"MOE \"&AT159","v":"MOE NonFamInc20to25K"},"NonFamInc25to30K",{"$f":"\"MOE \"&AV159","v":"MOE NonFamInc25to30K"},"NonFamInc30to35K",{"$f":"\"MOE \"&AX159","v":"MOE NonFamInc30to35K"},"NonFamInc35to40K",{"$f":"\"MOE \"&AZ159","v":"MOE NonFamInc35to40K"},"NonFamInc40to45K",{"$f":"\"MOE \"&BB159","v":"MOE NonFamInc40to45K"},"NonFamInc45to50K",{"$f":"\"MOE \"&BD159","v":"MOE NonFamInc45to50K"},"NonFamInc50to60K",{"$f":"\"MOE \"&BF159","v":"MOE NonFamInc50to60K"},"NonFamInc60to75K",{"$f":"\"MOE \"&BH159","v":"MOE NonFamInc60to75K"},"NonFamInc75to100K",{"$f":"\"MOE \"&BJ159","v":"MOE NonFamInc75to100K"},"NonFamInc100to125K",{"$f":"\"MOE \"&BL159","v":"MOE NonFamInc100to125K"},"NonFamInc125to150K",{"$f":"\"MOE \"&BN159","v":"MOE NonFamInc125to150K"},"NonFamInc150to200K",{"$f":"\"MOE \"&BP159","v":"MOE NonFamInc150to200K"},"NonFamInc>200K",{"$f":"\"MOE \"&BR159","v":"MOE NonFamInc>200K"},"MedNonFamInc",{"$f":"\"MOE \"&BT159","v":"MOE MedNonFamInc"},"PerCapitaIncome","MOE PerCapitaIncome"]
[{"$f":"VLOOKUP(DropDownList!$B$47,CntyQryCensus!$A$530:$AY$544,A$1)","v":"Acworth"},249,55,0,114,19,17,5,8,9,10,0,114,8,9,3,4,55,46,35,23,31,20,35,27,21,13,8,9,14,16,6,8,0,114,49010,4776,null,null,null,null,null,null,null,null,null,null,null,null,null,null,null,null,null,null,null,null,null,null,null,null,null,null,"Acworth",null,"Estimate","Margin Of Error",94,42,9,10,0,114]

{"sheet":"StatisticallySignificantCalcs","index":17,"n_rows":271,"n_cols":16,"rows_kept":271,"cut":false,"hidden":true,"merged":[]}
[]
["Statistically Significant Change  10 Year","Standard Error Estimate  1","Standard Error Estimate  2","Square Root of Sum of Squared SE","Difference between the estimates","Value","Test Statistic (90%) Confidence Interval",null,null,"Statistically Significant Change  5Year","Standard Error Estimate  1","Standard Error Estimate  2","Square Root of Sum of Squared SE","Difference between the estimates","Value","Test Statistic (90%) Confidence Interval"]
[{"$f":"IF(F3>G3,\"Y\",\"N\")","v":"Y"},{"$f":"PopulationCharacteristics!Q22/1.645","v":34.339779313066501},{"$f":"PopulationCharacteristics!T22/1.645","v":16.956019065022922},{"$f":"SQRT((B3^2)+(C3^2))","v":38.297872340425535},{"$f":"(PopulationCharacteristics!M22-PopulationCharacteristics!S22)","v":-84},{"$f":"ABS((E3/D3))","v":2.1933333333333334},1.645,"Population By Age Under 15 yrs.",null,{"$f":"IF(O3>P3,\"Y\",\"N\")","v":"N"},{"$f":"PopulationCharacteristics!P22/1.645","v":103.34346504559271},{"$f":"PopulationCharacteristics!T22/1.645","v":16.956019065022922},{"$f":"SQRT((K3^2)+(L3^2))","v":104.72525173119931},{"$f":"(PopulationCharacteristics!P22-PopulationCharacteristics!S22)","v":86},{"$f":"ABS((N3/M3))","v":0.82119640276194472},1.645]
["N",{"$f":"PopulationCharacteristics!Q23/1.645","v":23.172180610998076},{"$f":"PopulationCharacteristics!T23/1.645","v":18.637944944384063},29.737567923732545,{"$f":"(PopulationCharacteristics!M23-PopulationCharacteristics!S23)","v":-42},1.4123549076950985,1.645,"Population By Age 15 to 24 yrs.",null,{"$f":"IF(O4>P4,\"Y\",\"N\")","v":"N"},{"$f":"PopulationCharacteristics!P23/1.645","v":65.045592705167167},{"$f":"PopulationCharacteristics!T23/1.645","v":18.637944944384063},67.663151878377548,{"$f":"(PopulationCharacteristics!P23-PopulationCharacteristics!S23)","v":65},0.96064103127852396,1.645]
["Y",{"$f":"PopulationCharacteristics!Q24/1.645","v":24.872063885080589},{"$f":"PopulationCharacteristics!T24/1.645","v":21.2157183788634},32.69137911185107,{"$f":"(PopulationCharacteristics!M24-PopulationCharacteristics!S24)","v":-95},2.9059648929145729,1.645,"Population By Age 25 to 34 yrs.",null,"N",{"$f":"PopulationCharacteristics!P24/1.645","v":69.300911854103347},{"$f":"PopulationCharacteristics!T24/1.645","v":21.2157183788634},72.475672402133981,{"$f":"(PopulationCharacteristics!P24-PopulationCharacteristics!S24)","v":19},0.26215693308201116,1.645]
["Y",{"$f":"PopulationCharacteristics!Q25/1.645","v":18.815547161753386},{"$f":"PopulationCharacteristics!T25/1.645","v":18.458633982600578},26.358034515111001,{"$f":"(PopulationCharacteristics!M25-PopulationCharacteristics!S25)","v":-76},2.8833712906942806,1.645,"Population By Age 35 to 44 yrs.",null,"N",{"$f":"PopulationCharacteristics!P25/1.645","v":60.182370820668694},{"$f":"PopulationCharacteristics!T25/1.645","v":18.458633982600578},62.949495042455197,{"$f":"(PopulationCharacteristics!P25-PopulationCharacteristics!S25)","v":23},0.36537227160421298,1.645]
["Y",{"$f":"PopulationCharacteristics!Q26/1.645","v":22.069464876196164},{"$f":"PopulationCharacteristics!T26/1.645","v":25.357633573999038},33.616526596227331,{"$f":"(PopulationCharacteristics!M26-PopulationCharacteristics!S26)","v":-118},3.5101782351673041,1.645,"Population By Age 45 to 54 yrs.",null,"N",{"$f":"PopulationCharacteristics!P26/1.645","v":84.498480243161097},{"$f":"PopulationCharacteristics!T26/1.645","v":25.357633573999038},88.221328168856601,{"$f":"(PopulationCharacteristics!P26-PopulationCharacteristics!S26)","v":21},0.23803767678271368,1.645]
["Y",{"$f":"PopulationCharacteristics!Q27/1.645","v":21.110948758887947},{"$f":"PopulationCharacteristics!T27/1.645","v":29.519296151195096},36.291335092034764,{"$f":"(PopulationCharacteristics!M27-PopulationCharacteristics!S27)","v":-209},5.7589504345865574,1.645,"Population By Age 55 to 64 yrs.",null,"N",{"$f":"PopulationCharacteristics!P27/1.645","v":86.322188449848028},{"$f":"PopulationCharacteristics!T27/1.645","v":29.519296151195096},91.229978976392616,{"$f":"(PopulationCharacteristics!P27-PopulationCharacteristics!S27)","v":-67},0.734407710620403,1.645]
["Y",{"$f":"PopulationCharacteristics!Q28/1.645","v":20.280641115638026},{"$f":"PopulationCharacteristics!T28/1.645","v":28.860978651596888},35.274076781529502,{"$f":"(PopulationCharacteristics!M28-PopulationCharacteristics!S28)","v":-205},5.8116333212537477,1.645,"Population By Age 65 to 74 yrs.",null,"N",{"$f":"PopulationCharacteristics!P28/1.645","v":63.829787234042556},{"$f":"PopulationCharacteristics!T28/1.645","v":28.860978651596888},70.051394183635438,{"$f":"(PopulationCharacteristics!P28-PopulationCharacteristics!S28)","v":-100},1.4275233371923495,1.645]
["Y",{"$f":"PopulationCharacteristics!Q29/1.645","v":12.12762148526444},{"$f":"PopulationCharacteristics!T29/1.645","v":15.921946326697622},20.014684052467267,{"$f":"(PopulationCharacteristics!M29-PopulationCharacteristics!S29)","v":-77},3.8471753937333819,1.645,"Population By Age Over 74 yrs. ",null,"N",{"$f":"PopulationCharacteristics!P29/1.645","v":28.571428571428569},{"$f":"PopulationCharacteristics!T29/1.645","v":15.921946326697622},32.708330826296908,{"$f":"(PopulationCharacteristics!P29-PopulationCharacteristics!S29)","v":-30},0.91719752253088194,1.645]
["Y",{"$f":"PopulationCharacteristics!Q$30/1.645","v":5.6534954407294835},{"$f":"PopulationCharacteristics!T$30/1.645","v":1.7021276595744679},5.9041721915809262,{"$f":"(PopulationCharacteristics!P30-PopulationCharacteristics!S30)","v":-14.200000000000003},2.4050789067853642,1.645,"Population By Age Median Age        ",null,"N",{"$f":"PopulationCharacteristics!P30/1.645","v":26.079027355623101},{"$f":"PopulationCharacteristics!T30/1.645","v":1.7021276595744679},{"$f":"SQRT((K11^2)+(L11^2))","v":26.134515614122762},{"$f":"(PopulationCharacteristics!P30-PopulationCharacteristics!S30)","v":-14.200000000000003},0.54334276592930242,1.645]
["N",{"$f":"PopulationCharacteristics!E51/1.645","v":36.474164133738604},{"$f":"PopulationCharacteristics!K51/1.645","v":31.003039513677813},47.870169295100382,{"$f":"PopulationCharacteristics!D51-PopulationCharacteristics!J51","v":-27},0.56402557997143976,1.645,"Total Households",null,"N",{"$f":"PopulationCharacteristics!H51/1.645","v":26.747720364741642},{"$f":"PopulationCharacteristics!K51/1.645","v":31.003039513677813},40.946660471851459,{"$f":"PopulationCharacteristics!G51-PopulationCharacteristics!J51","v":-23},0.56170636957832532,1.645]
["Y",{"$f":"PopulationCharacteristics!E52/1.645","v":0.17021276595744683},{"$f":"PopulationCharacteristics!K52/1.645","v":0.1276595744680851},0.21276595744680851,{"$f":"PopulationCharacteristics!D52-PopulationCharacteristics!J52","v":7.3239461035379403},34.422546686628316,1.645,"Persons per Household",null,"Y",{"$f":"PopulationCharacteristics!H52/1.645","v":0},{"$f":"PopulationCharacteristics!K52/1.645","v":0.1276595744680851},0.1276595744680851,{"$f":"PopulationCharacteristics!G52-PopulationCharacteristics!J52","v":-2.4486486486486485},19.181081081081082,1.645]
["N",{"$f":"PopulationCharacteristics!E53/1.645","v":36.474164133738604},{"$f":"PopulationCharacteristics!K53/1.645","v":31.003039513677813},47.870169295100382,{"$f":"PopulationCharacteristics!D53-PopulationCharacteristics!J53","v":-6},0.12533901777143105,1.645,"Family Households",null,"N",{"$f":"PopulationCharacteristics!H53/1.645","v":26.747720364741642},{"$f":"PopulationCharacteristics!K53/1.645","v":31.003039513677813},40.946660471851459,{"$f":"PopulationCharacteristics!G53-PopulationCharacteristics!J53","v":-1},2.4422016068622841E-2,1.645]
["Y",{"$f":"PopulationCharacteristics!E54/1.645","v":0.41765312433798707},{"$f":"PopulationCharacteristics!K54/1.645","v":0.42360023969117067},0.59487082239398781,{"$f":"PopulationCharacteristics!D54-PopulationCharacteristics!J54","v":8.1706118592015109},13.735102734270681,1.645,"Persons per Family Household",null,"N",{"$f":"PopulationCharacteristics!H54/1.645","v":0.20668693009118541},{"$f":"PopulationCharacteristics!K54/1.645","v":0.42360023969117067},0.47133496596044711,{"$f":"PopulationCharacteristics!G54-PopulationCharacteristics!J54","v":-0.25378312708368655},0.53843475534760821,1.645]
["N",{"$f":"PopulationCharacteristics!E55/1.645","v":34.042553191489361},{"$f":"PopulationCharacteristics!K55/1.645","v":24.316109422492399},41.835016496255932,{"$f":"PopulationCharacteristics!D55-PopulationCharacteristics!J55","v":18},0.43026157290056116,1.645,"Married-Couple Family Hh",null,"N",{"$f":"PopulationCharacteristics!H55/1.645","v":22.492401215805472},{"$f":"PopulationCharacteristics!K55/1.645","v":24.316109422492399},33.123726992888216,{"$f":"PopulationCharacteristics!G55-PopulationCharacteristics!J55","v":-21},0.63398662851281129,1.645]
["Y",{"$f":"PopulationCharacteristics!E56/1.645","v":7.9027355623100304},{"$f":"PopulationCharacteristics!K56/1.645","v":11.550151975683891},13.994971955284301,{"$f":"PopulationCharacteristics!D56-PopulationCharacteristics!J56","v":-24},1.714901614428598,1.645,"Single-Parent Family Hh",null,"N",{"$f":"PopulationCharacteristics!H56/1.645","v":15.19756838905775},{"$f":"PopulationCharacteristics!K56/1.645","v":11.550151975683891},19.088533091924113,{"$f":"PopulationCharacteristics!G56-PopulationCharacteristics!J56","v":20},1.0477494474660027,1.645]
["N",{"$f":"PopulationCharacteristics!E57/1.645","v":25.531914893617021},{"$f":"PopulationCharacteristics!K57/1.645","v":17.021276595744681},30.685542769906291,{"$f":"PopulationCharacteristics!D57-PopulationCharacteristics!J57","v":-21},0.68436136709287643,1.645,"Non-Family Households*",null,"N",{"$f":"PopulationCharacteristics!H57/1.645","v":21.276595744680851},{"$f":"PopulationCharacteristics!K57/1.645","v":17.021276595744681},27.247337180565314,{"$f":"PopulationCharacteristics!G57-PopulationCharacteristics!J57","v":-22},0.80741834896409337,1.645]
["Y",{"$f":"PopulationCharacteristics!E58/1.645","v":0.39065495354730323},{"$f":"PopulationCharacteristics!K58/1.645","v":0.35852359847645587},0.5302362335747649,{"$f":"PopulationCharacteristics!D58-PopulationCharacteristics!J58","v":4.8804810360777058},9.2043521869003762,1.645,"Persons per Non-Family Hh",null,"Y",{"$f":"PopulationCharacteristics!H58/1.645","v":0.53177581986977418},{"$f":"PopulationCharacteristics!K58/1.645","v":0.35852359847645587},0.64134600120580587,{"$f":"PopulationCharacteristics!G58-PopulationCharacteristics!J58","v":1.8070181444710716},2.817540206181476,1.645]
["N",{"$f":"PopulationCharacteristics!D36/1.645","v":100.30395136778115},{"$f":"PopulationCharacteristics!J36/1.645","v":79.635258358662611},128.07285830276899,{"$f":"PopulationCharacteristics!C36-PopulationCharacteristics!I36","v":-47},0.36697861375819579,1.645,"Ethnicity -White",null,"N",{"$f":"PopulationCharacteristics!G36/1.645","v":100.91185410334346},{"$f":"PopulationCharacteristics!J36/1.645","v":79.635258358662611},128.54951058804315,{"$f":"PopulationCharacteristics!F36-PopulationCharacteristics!I36","v":36},{"$f":"ABS((N20/M20))","v":0.28004774063564958},1.645]
["N",{"$f":"PopulationCharacteristics!D37/1.645","v":69.300911854103347},{"$f":"PopulationCharacteristics!J37/1.645","v":6.6869300911854106},69.6227794464901,{"$f":"PopulationCharacteristics!C37-PopulationCharacteristics!I37","v":0},0,1.645,"Ethnicity -Black",null,"N",{"$f":"PopulationCharacteristics!G37/1.645","v":6.6869300911854106},{"$f":"PopulationCharacteristics!J37/1.645","v":6.6869300911854106},9.4567472255951639,{"$f":"PopulationCharacteristics!F37-PopulationCharacteristics!I37","v":0},{"$f":"ABS((N21/M21))","v":0},1.645]
["N",{"$f":"PopulationCharacteristics!D38/1.645","v":69.300911854103347},{"$f":"PopulationCharacteristics!J38/1.645","v":6.6869300911854106},69.6227794464901,{"$f":"PopulationCharacteristics!C38-PopulationCharacteristics!I38","v":0},0,1.645,"Ethnicity -American Indian",null,"N",{"$f":"PopulationCharacteristics!G38/1.645","v":6.6869300911854106},{"$f":"PopulationCharacteristics!J38/1.645","v":6.6869300911854106},9.4567472255951639,{"$f":"PopulationCharacteristics!F38-PopulationCharacteristics!I38","v":0},0,1.645]
["N",{"$f":"PopulationCharacteristics!D39/1.645","v":98.006289428895343},{"$f":"PopulationCharacteristics!J39/1.645","v":9.8959395720970864},98.504631300436827,{"$f":"PopulationCharacteristics!C39-PopulationCharacteristics!I39","v":-8},8.1214455547782186E-2,1.645,"Ethnicity -Asian &Pacific Is",null,"N",{"$f":"PopulationCharacteristics!G39/1.645","v":13.346199635319239},{"$f":"PopulationCharacteristics!J39/1.645","v":9.8959395720970864},16.614772484761637,{"$f":"PopulationCharacteristics!F39-PopulationCharacteristics!I39","v":8},0.48149922048810839,1.645]
["N",{"$f":"PopulationCharacteristics!D40/1.645","v":69.622779446490085},{"$f":"PopulationCharacteristics!J40/1.645","v":16.603647761395333},71.575222925528436,{"$f":"PopulationCharacteristics!C40-PopulationCharacteristics!I40","v":-15},0.20956972799940821,1.645,"Ethnicity -Other*",null,"N",{"$f":"PopulationCharacteristics!G40/1.645","v":8.6399212179646785},{"$f":"PopulationCharacteristics!J40/1.645","v":16.603647761395333},18.71708731713149,{"$f":"PopulationCharacteristics!F40-PopulationCharacteristics!I40","v":-13},0.69455251128209894,1.645]
["N",{"$f":"PopulationCharacteristics!D42/1.645","v":69.300911854103347},{"$f":"PopulationCharacteristics!J42/1.645","v":8.5106382978723403},69.821539284431523,{"$f":"PopulationCharacteristics!C42-PopulationCharacteristics!I42","v":-14},0.20051119100895637,1.645,"Ethnicity -Hispanic",null,"Y",{"$f":"PopulationCharacteristics!G42/1.645","v":6.6869300911854106},{"$f":"PopulationCharacteristics!J42/1.645","v":8.5106382978723403},10.823400495297784,{"$f":"PopulationCharacteristics!F42-PopulationCharacteristics!I41","v":-906},83.707518759340999,1.645]
["Y",{"$f":"PlaceOfBirthAndPriorRes!E8/1.645","v":73.556231003039514},{"$f":"PlaceOfBirthAndPriorRes!M8/1.645","v":107.59878419452887},130.33808913557581,{"$f":"PlaceOfBirthAndPriorRes!D8-PlaceOfBirthAndPriorRes!L8","v":254},1.9487779948637489,1.645,"Place of Birth - United States Native",null,"Y",{"$f":"PlaceOfBirthAndPriorRes!I8/1.645","v":66.261398176291792},{"$f":"PlaceOfBirthAndPriorRes!M8/1.645","v":107.59878419452887},126.36483390729353,{"$f":"PlaceOfBirthAndPriorRes!H8-PlaceOfBirthAndPriorRes!L8","v":465},3.679821241573769,1.645]
["N",{"$f":"PlaceOfBirthAndPriorRes!E9/1.645","v":319.75683890577506},{"$f":"PlaceOfBirthAndPriorRes!M9/1.645","v":309.42249240121578},444.95698087657217,{"$f":"PlaceOfBirthAndPriorRes!D9-PlaceOfBirthAndPriorRes!L9","v":-387},0.86974700169352093,1.645,"Place of Birth - New Hampshire Native",null,"N",{"$f":"PlaceOfBirthAndPriorRes!I9/1.645","v":243.161094224924},{"$f":"PlaceOfBirthAndPriorRes!M9/1.645","v":309.42249240121578},393.53474630385921,{"$f":"PlaceOfBirthAndPriorRes!H9-PlaceOfBirthAndPriorRes!L9","v":639},1.6237448052594832,1.645]
["N",{"$f":"PlaceOfBirthAndPriorRes!E10/1.645","v":308.20668693009117},{"$f":"PlaceOfBirthAndPriorRes!M10/1.645","v":317.93313069908817},442.80112631354802,{"$f":"PlaceOfBirthAndPriorRes!D10-PlaceOfBirthAndPriorRes!L10","v":723},1.6327871747282838,1.645,"Place of Birth - Born in Different State",null,"N",{"$f":"PlaceOfBirthAndPriorRes!I10/1.645","v":245.59270516717325},{"$f":"PlaceOfBirthAndPriorRes!M10/1.645","v":317.93313069908817},401.74276897967133,{"$f":"PlaceOfBirthAndPriorRes!H10-PlaceOfBirthAndPriorRes!L10","v":-64},0.15930591647621783,1.645]
["Y",{"$f":"PlaceOfBirthAndPriorRes!E11/1.645","v":298.48024316109422},{"$f":"PlaceOfBirthAndPriorRes!M11/1.645","v":319.14893617021278},436.97425440875173,{"$f":"PlaceOfBirthAndPriorRes!D11-PlaceOfBirthAndPriorRes!L11","v":785},1.7964445092128933,1.645,"Place of Birth - Northeast",null,"N",{"$f":"PlaceOfBirthAndPriorRes!I11/1.645","v":224.92401215805472},{"$f":"PlaceOfBirthAndPriorRes!M11/1.645","v":319.14893617021278},390.44443228692006,{"$f":"PlaceOfBirthAndPriorRes!H11-PlaceOfBirthAndPriorRes!L11","v":-63},0.16135458669751021,1.645]
["N",{"$f":"PlaceOfBirthAndPriorRes!E12/1.645","v":60.790273556231},{"$f":"PlaceOfBirthAndPriorRes!M12/1.645","v":77.81155015197568},98.742567801808875,{"$f":"PlaceOfBirthAndPriorRes!D12-PlaceOfBirthAndPriorRes!L12","v":-101},1.0228617935349031,1.645,"Place of Birth - Midwest",null,"N",{"$f":"PlaceOfBirthAndPriorRes!I12/1.645","v":95.440729483282681},{"$f":"PlaceOfBirthAndPriorRes!M12/1.645","v":77.81155015197568},123.14044900581844,{"$f":"PlaceOfBirthAndPriorRes!H12-PlaceOfBirthAndPriorRes!L12","v":41},0.33295314684180444,1.645]
["N",{"$f":"PlaceOfBirthAndPriorRes!E13/1.645","v":105.16717325227964},{"$f":"PlaceOfBirthAndPriorRes!M13/1.645","v":87.537993920972639},136.8321406307131,{"$f":"PlaceOfBirthAndPriorRes!D13-PlaceOfBirthAndPriorRes!L13","v":91},0.66504842780756956,1.645,"Place of Birth - South",null,"N",{"$f":"PlaceOfBirthAndPriorRes!I13/1.645","v":91.1854103343465},{"$f":"PlaceOfBirthAndPriorRes!M13/1.645","v":87.537993920972639},126.40284584435346,{"$f":"PlaceOfBirthAndPriorRes!H13-PlaceOfBirthAndPriorRes!L13","v":43},0.3401822143541624,1.645]
["N",{"$f":"PlaceOfBirthAndPriorRes!E14/1.645","v":82.066869300911847},{"$f":"PlaceOfBirthAndPriorRes!M14/1.645","v":97.872340425531917},127.72613693846752,{"$f":"PlaceOfBirthAndPriorRes!D14-PlaceOfBirthAndPriorRes!L14","v":-52},0.40712105796365838,1.645,"Place of Birth - West",null,"N",{"$f":"PlaceOfBirthAndPriorRes!I14/1.645","v":72.340425531914889},{"$f":"PlaceOfBirthAndPriorRes!M14/1.645","v":97.872340425531917},121.70510337085184,{"$f":"PlaceOfBirthAndPriorRes!H14-PlaceOfBirthAndPriorRes!L14","v":-85},0.69840949677347175,1.645]
["N",{"$f":"PlaceOfBirthAndPriorRes!E15/1.645","v":35.258358662613979},{"$f":"PlaceOfBirthAndPriorRes!M15/1.645","v":62.61398176291793},71.858629041949754,{"$f":"PlaceOfBirthAndPriorRes!D15-PlaceOfBirthAndPriorRes!L15","v":-82},1.1411294801092002,1.645,"Place of Birth - Native Born Outside US",null,"Y",{"$f":"PlaceOfBirthAndPriorRes!I15/1.645","v":22.492401215805472},{"$f":"PlaceOfBirthAndPriorRes!M15/1.645","v":62.61398176291793},66.531337162721954,{"$f":"PlaceOfBirthAndPriorRes!H15-PlaceOfBirthAndPriorRes!L15","v":-110},1.6533562181526977,1.645]
["N",{"$f":"PlaceOfBirthAndPriorRes!E16/1.645","v":74.772036474164139},{"$f":"PlaceOfBirthAndPriorRes!M16/1.645","v":104.55927051671732},128.54376099010719,{"$f":"PlaceOfBirthAndPriorRes!D16-PlaceOfBirthAndPriorRes!L16","v":-145},1.1280205191067911,1.645,"Place of Birth - Foreign Born",null,"Y",{"$f":"PlaceOfBirthAndPriorRes!I16/1.645","v":63.221884498480243},{"$f":"PlaceOfBirthAndPriorRes!M16/1.645","v":104.55927051671732},122.18693764280717,{"$f":"PlaceOfBirthAndPriorRes!H16-PlaceOfBirthAndPriorRes!L16","v":-273},2.2342813828272652,1.645]
["N",{"$f":"PlaceOfBirthAndPriorRes!E17/1.645","v":52.27963525835866},{"$f":"PlaceOfBirthAndPriorRes!M17/1.645","v":85.714285714285708},100.39969640520444,{"$f":"PlaceOfBirthAndPriorRes!D17-PlaceOfBirthAndPriorRes!L17","v":-163},1.6235108853531408,1.645,"Place of Birth - Naturalized Citizen",null,"Y",{"$f":"PlaceOfBirthAndPriorRes!I17/1.645","v":58.966565349544069},{"$f":"PlaceOfBirthAndPriorRes!M17/1.645","v":85.714285714285708},104.03842849943599,{"$f":"PlaceOfBirthAndPriorRes!H17-PlaceOfBirthAndPriorRes!L17","v":-204},1.9608139313744624,1.645]
["N",{"$f":"PlaceOfBirthAndPriorRes!E18/1.645","v":52.887537993920972},{"$f":"PlaceOfBirthAndPriorRes!M18/1.645","v":60.182370820668694},80.118720862573113,{"$f":"PlaceOfBirthAndPriorRes!D18-PlaceOfBirthAndPriorRes!L18","v":18},0.22466659235455383,1.645,"Place of Birth - Not a Citizen",null,"N",{"$f":"PlaceOfBirthAndPriorRes!I18/1.645","v":27.355623100303951},{"$f":"PlaceOfBirthAndPriorRes!M18/1.645","v":60.182370820668694},66.107850311459671,{"$f":"PlaceOfBirthAndPriorRes!H18-PlaceOfBirthAndPriorRes!L18","v":-69},1.0437489598423531,1.645]
["Y",{"$f":"PlaceOfBirthAndPriorRes!E43/1.645","v":52.887537993920972},{"$f":"PlaceOfBirthAndPriorRes!I43/1.645","v":315.50151975683889},319.90358022993962,{"$f":"PlaceOfBirthAndPriorRes!D43-PlaceOfBirthAndPriorRes!H43","v":2103},6.5738557801960518,1.645,"Place of Residence for Population Total:",null,"Y",{"$f":"PlaceOfBirthAndPriorRes!I43/1.645","v":315.50151975683889},{"$f":"PlaceOfBirthAndPriorRes!M43/1.645","v":38.297872340425535},{"$f":"SQRT((K37^2)+(L37^2))","v":317.81745703261572},{"$f":"PlaceOfBirthAndPriorRes!H43-PlaceOfBirthAndPriorRes!L43","v":-2123},6.6799351420841839,1.645]
["Y",{"$f":"PlaceOfBirthAndPriorRes!E44/1.645","v":362.91793313069911},{"$f":"PlaceOfBirthAndPriorRes!I44/1.645","v":322.57017015772715},485.55220199628758,{"$f":"PlaceOfBirthAndPriorRes!D44-PlaceOfBirthAndPriorRes!H44","v":8115},16.712930075563833,1.645,"Place of Residence for Population  Same house ",null,"Y",{"$f":"PlaceOfBirthAndPriorRes!I8/1.645","v":66.261398176291792},{"$f":"PlaceOfBirthAndPriorRes!M8/1.645","v":107.59878419452887},{"$f":"SQRT((K38^2)+(L38^2))","v":126.36483390729353},{"$f":"PlaceOfBirthAndPriorRes!H8-PlaceOfBirthAndPriorRes!L8","v":465},3.679821241573769,1.645]
["N",{"$f":"PlaceOfBirthAndPriorRes!E45/1.645","v":370.32654307468891},{"$f":"PlaceOfBirthAndPriorRes!I45/1.645","v":317.76570995653873},487.97212515658362,{"$f":"PlaceOfBirthAndPriorRes!D45-PlaceOfBirthAndPriorRes!H45","v":218},0.44674682991379222,1.645,"Place of Residence for Population  Different house",null,"N",{"$f":"PlaceOfBirthAndPriorRes!I9/1.645","v":243.161094224924},{"$f":"PlaceOfBirthAndPriorRes!M9/1.645","v":309.42249240121578},393.53474630385921,{"$f":"PlaceOfBirthAndPriorRes!H9-PlaceOfBirthAndPriorRes!L9","v":639},1.6237448052594832,1.645]
["N",{"$f":"PlaceOfBirthAndPriorRes!E46/1.645","v":248.53038542995412},{"$f":"PlaceOfBirthAndPriorRes!I46/1.645","v":218.84498480243161},331.15023758882927,{"$f":"PlaceOfBirthAndPriorRes!D46-PlaceOfBirthAndPriorRes!H46","v":86},0.2597008554974416,1.645,"Place of Residence for Population in New Hampshire",null,"N",{"$f":"PlaceOfBirthAndPriorRes!I10/1.645","v":245.59270516717325},{"$f":"PlaceOfBirthAndPriorRes!M10/1.645","v":317.93313069908817},401.74276897967133,{"$f":"PlaceOfBirthAndPriorRes!H10-PlaceOfBirthAndPriorRes!L10","v":-64},0.15930591647621783,1.645]
["N",{"$f":"PlaceOfBirthAndPriorRes!E47/1.645","v":220.06079027355622},{"$f":"PlaceOfBirthAndPriorRes!I47/1.645","v":230.3951367781155},318.60425368602449,{"$f":"PlaceOfBirthAndPriorRes!D47-PlaceOfBirthAndPriorRes!H47","v":330},1.0357677155346636,1.645,"Place of Residence for Population Same county",null,"N",{"$f":"PlaceOfBirthAndPriorRes!I11/1.645","v":224.92401215805472},{"$f":"PlaceOfBirthAndPriorRes!M11/1.645","v":319.14893617021278},390.44443228692006,{"$f":"PlaceOfBirthAndPriorRes!H11-PlaceOfBirthAndPriorRes!L11","v":-63},0.16135458669751021,1.645]
["N",{"$f":"PlaceOfBirthAndPriorRes!E48/1.645","v":115.5015197568389},{"$f":"PlaceOfBirthAndPriorRes!I48/1.645","v":54.711246200607903},127.80423125610113,{"$f":"PlaceOfBirthAndPriorRes!D48-PlaceOfBirthAndPriorRes!H48","v":161},1.2597391996934699,1.645,"Place of Residence for Population Different county",null,"N",{"$f":"PlaceOfBirthAndPriorRes!I12/1.645","v":95.440729483282681},{"$f":"PlaceOfBirthAndPriorRes!M12/1.645","v":77.81155015197568},123.14044900581844,{"$f":"PlaceOfBirthAndPriorRes!H12-PlaceOfBirthAndPriorRes!L12","v":41},0.33295314684180444,1.645]
["Y",{"$f":"PlaceOfBirthAndPriorRes!E49/1.645","v":265.6534954407295},{"$f":"PlaceOfBirthAndPriorRes!I49/1.645","v":9.1185410334346511},265.80994607135398,{"$f":"PlaceOfBirthAndPriorRes!D49-PlaceOfBirthAndPriorRes!H49","v":923},3.472405805884442,1.645,"Place of Residence for Population in Different state",null,"N",{"$f":"PlaceOfBirthAndPriorRes!I13/1.645","v":91.1854103343465},{"$f":"PlaceOfBirthAndPriorRes!M13/1.645","v":87.537993920972639},126.40284584435346,{"$f":"PlaceOfBirthAndPriorRes!H13-PlaceOfBirthAndPriorRes!L13","v":43},0.3401822143541624,1.645]
["N",{"$f":"PlaceOfBirthAndPriorRes!E50/1.645","v":69.300911854103347},{"$f":"PlaceOfBirthAndPriorRes!I50/1.645","v":0},69.300911854103347,{"$f":"PlaceOfBirthAndPriorRes!D50-PlaceOfBirthAndPriorRes!H50","v":0},0,1.645,"Place of Residence for Population Elsewhere",null,"N",{"$f":"PlaceOfBirthAndPriorRes!I14/1.645","v":72.340425531914889},{"$f":"PlaceOfBirthAndPriorRes!M14/1.645","v":97.872340425531917},121.70510337085184,{"$f":"PlaceOfBirthAndPriorRes!H14-PlaceOfBirthAndPriorRes!L14","v":-85},0.69840949677347175,1.645]
["Y",{"$f":"SchoolEnrolEduAttain!G23/1.645","v":80.851063829787236},{"$f":"SchoolEnrolEduAttain!M23/1.645","v":55.319148936170215},{"$f":"SQRT((B45^2)+(C45^2))","v":97.964803686990123},{"$f":"SchoolEnrolEduAttain!F23-SchoolEnrolEduAttain!L23","v":7634},77.925945979451868,1.645,"Total Population 3 years & over",null,"Y",{"$f":"SchoolEnrolEduAttain!J23/1.645","v":79.027355623100306},{"$f":"SchoolEnrolEduAttain!M23/1.645","v":55.319148936170215},{"$f":"SQRT((K45^2)+(L45^2))","v":96.465181157773941},{"$f":"SchoolEnrolEduAttain!I23-SchoolEnrolEduAttain!L23","v":7744},80.277670212781501,1.645]
["Y",{"$f":"SchoolEnrolEduAttain!G24/1.645","v":173.25227963525836},{"$f":"SchoolEnrolEduAttain!M24/1.645","v":128.87537993920972},{"$f":"SQRT((B46^2)+(C46^2))","v":215.92872887434274},{"$f":"SchoolEnrolEduAttain!F24-SchoolEnrolEduAttain!L24","v":1895},8.776043882066169,1.645,"Population 3 years & over enrolled in school",null,"Y",{"$f":"SchoolEnrolEduAttain!J24/1.645","v":162.31003039513678},{"$f":"SchoolEnrolEduAttain!M24/1.645","v":128.87537993920972},{"$f":"SQRT((K46^2)+(L46^2))","v":207.25204346723794},{"$f":"SchoolEnrolEduAttain!I24-SchoolEnrolEduAttain!L24","v":1878},9.0614305585694801,1.645]
["Y",{"$f":"SchoolEnrolEduAttain!G25/1.645","v":71.88947848342896},{"$f":"SchoolEnrolEduAttain!M25/1.645","v":60.259077332747786},93.804336347598948,{"$f":"SchoolEnrolEduAttain!F25-SchoolEnrolEduAttain!L25","v":162},1.7269990525778782,1.645,"Preprimary (Nursery, Preschool, Kindergarten)",null,"Y",{"$f":"SchoolEnrolEduAttain!J25/1.645","v":72.628478121847579},{"$f":"SchoolEnrolEduAttain!M25/1.645","v":60.259077332747786},94.371882652036618,{"$f":"SchoolEnrolEduAttain!I25-SchoolEnrolEduAttain!L25","v":212},2.2464318189102577,1.645]
["Y",{"$f":"SchoolEnrolEduAttain!G26/1.645","v":48.024316109422493},{"$f":"SchoolEnrolEduAttain!M26/1.645","v":31.003039513677813},57.162255001569036,{"$f":"SchoolEnrolEduAttain!F26-SchoolEnrolEduAttain!L26","v":104},1.8193823878562054,1.645,"Nursery school and Preschool",null,"Y",{"$f":"SchoolEnrolEduAttain!J26/1.645","v":45.59270516717325},{"$f":"SchoolEnrolEduAttain!M26/1.645","v":31.003039513677813},55.135136016404765,{"$f":"SchoolEnrolEduAttain!I26-SchoolEnrolEduAttain!L26","v":108},1.9588234981022983,1.645]
["N",{"$f":"SchoolEnrolEduAttain!G27/1.645","v":53.495440729483285},{"$f":"SchoolEnrolEduAttain!M27/1.645","v":51.671732522796354},74.375601649661093,{"$f":"SchoolEnrolEduAttain!F27-SchoolEnrolEduAttain!L27","v":58},0.77982562444608194,1.645,"Kindergarten",null,"N",{"$f":"SchoolEnrolEduAttain!J27/1.645","v":56.534954407294833},{"$f":"SchoolEnrolEduAttain!M27/1.645","v":51.671732522796354},76.590919904008956,{"$f":"SchoolEnrolEduAttain!I27-SchoolEnrolEduAttain!L27","v":104},1.3578633097806205,1.645]
["Y",{"$f":"SchoolEnrolEduAttain!G28/1.645","v":181.06523549945103},{"$f":"SchoolEnrolEduAttain!M28/1.645","v":107.22032595661088},210.43007818444954,{"$f":"SchoolEnrolEduAttain!F28-SchoolEnrolEduAttain!L28","v":1279},6.0780284407769427,1.645,"Elementary through High school",null,"Y",{"$f":"SchoolEnrolEduAttain!J28/1.645","v":187.8616174863329},{"$f":"SchoolEnrolEduAttain!M28/1.645","v":107.22032595661088},216.30576881540435,{"$f":"SchoolEnrolEduAttain!I28-SchoolEnrolEduAttain!L28","v":1323},6.1163417288655397,1.645]
["Y",{"$f":"SchoolEnrolEduAttain!G29/1.645","v":154.98539554993266},{"$f":"SchoolEnrolEduAttain!M29/1.645","v":87.038425916573573},177.75308835517868,{"$f":"SchoolEnrolEduAttain!F29-SchoolEnrolEduAttain!L29","v":928},5.2207250438637089,1.645,"Elementary school (grades 1-8)",null,"Y",{"$f":"SchoolEnrolEduAttain!J29/1.645","v":150.02394157347564},{"$f":"SchoolEnrolEduAttain!M29/1.645","v":87.038425916573573},173.44414268367927,{"$f":"SchoolEnrolEduAttain!I29-SchoolEnrolEduAttain!L29","v":748},4.3126276184729599,1.645]
["Y",{"$f":"SchoolEnrolEduAttain!G30/1.645","v":93.61702127659575},{"$f":"SchoolEnrolEduAttain!M30/1.645","v":62.61398176291793},112.62618427750094,{"$f":"SchoolEnrolEduAttain!F30-SchoolEnrolEduAttain!L30","v":351},3.1165044101571184,1.645,"High school (grades 9-12)",null,"Y",{"$f":"SchoolEnrolEduAttain!J30/1.645","v":113.06990881458967},{"$f":"SchoolEnrolEduAttain!M30/1.645","v":62.61398176291793},129.2490425169434,{"$f":"SchoolEnrolEduAttain!I30-SchoolEnrolEduAttain!L30","v":575},4.4487757031130242,1.645]
["Y",{"$f":"SchoolEnrolEduAttain!G31/1.645","v":109.07238823809615},{"$f":"SchoolEnrolEduAttain!M31/1.645","v":17.534595868517879},110.47283796587385,{"$f":"SchoolEnrolEduAttain!F31-SchoolEnrolEduAttain!L31","v":454},4.1096074687630013,1.645,"College or Graduate School",null,"Y",{"$f":"SchoolEnrolEduAttain!J31/1.645","v":80.509826777596615},{"$f":"SchoolEnrolEduAttain!M31/1.645","v":17.534595868517879},82.397173859489001,{"$f":"SchoolEnrolEduAttain!I31-SchoolEnrolEduAttain!L31","v":343},4.1627641329654601,1.645]
["Y",{"$f":"SchoolEnrolEduAttain!G52/1.645","v":149.54407294832828},{"$f":"SchoolEnrolEduAttain!M52/1.645","v":122.79635258358662},{"$f":"SQRT((B54^2)+(C54^2))","v":193.50032031448279},{"$f":"SchoolEnrolEduAttain!I52-SchoolEnrolEduAttain!L52","v":5163},26.682126373790648,1.645,"Population 25 years and over",null,"Y",{"$f":"SchoolEnrolEduAttain!J52/1.645","v":152.58358662613981},{"$f":"SchoolEnrolEduAttain!M52/1.645","v":122.79635258358662},{"$f":"SQRT((K54^2)+(L54^2))","v":195.85886529725744},{"$f":"SchoolEnrolEduAttain!I52-SchoolEnrolEduAttain!L52","v":5163},26.360818501445163,1.645]
["Y",{"$f":"SchoolEnrolEduAttain!G53/1.645","v":82.046603374117879},{"$f":"SchoolEnrolEduAttain!M53/1.645","v":23.824824245915408},{"$f":"SQRT((B55^2)+(C55^2))","v":85.435749985463175},{"$f":"SchoolEnrolEduAttain!I53-SchoolEnrolEduAttain!L53","v":259},3.0315178370186793,1.645,"Less than 9th Grade",null,"Y",{"$f":"SchoolEnrolEduAttain!J53/1.645","v":53.767613783560137},{"$f":"SchoolEnrolEduAttain!M53/1.645","v":23.824824245915408},{"$f":"SQRT((K55^2)+(L55^2))","v":58.809680685469161},{"$f":"SchoolEnrolEduAttain!I53-SchoolEnrolEduAttain!L53","v":259},4.4040368351123247,1.645]
["Y",{"$f":"SchoolEnrolEduAttain!G54/1.645","v":100.22655206621764},{"$f":"SchoolEnrolEduAttain!M54/1.645","v":102.36439489178785},143.261408204178,{"$f":"SchoolEnrolEduAttain!I54-SchoolEnrolEduAttain!L54","v":528},3.6855703613319761,1.645,"9th to 12th Grade, no Diploma",null,"Y",{"$f":"SchoolEnrolEduAttain!J54/1.645","v":110.98512724305355},{"$f":"SchoolEnrolEduAttain!M54/1.645","v":102.36439489178785},150.98399852540226,{"$f":"SchoolEnrolEduAttain!I54-SchoolEnrolEduAttain!L54","v":528},3.497059325205027,1.645]
["Y",{"$f":"SchoolEnrolEduAttain!G55/1.645","v":207.30285484838942},{"$f":"SchoolEnrolEduAttain!M55/1.645","v":187.26956596655759},279.36421382416768,{"$f":"SchoolEnrolEduAttain!I55-SchoolEnrolEduAttain!L55","v":2075},7.4275798306293037,1.645,"High School Graduate ",null,"Y",{"$f":"SchoolEnrolEduAttain!J55/1.645","v":204.63851737309164},{"$f":"SchoolEnrolEduAttain!M55/1.645","v":187.26956596655759},277.39288586760836,{"$f":"SchoolEnrolEduAttain!I55-SchoolEnrolEduAttain!L55","v":2075},7.4803648749317162,1.645]
["Y",{"$f":"SchoolEnrolEduAttain!G56/1.645","v":153.77295927209764},{"$f":"SchoolEnrolEduAttain!M56/1.645","v":111.71029476170447},190.06660137710963,{"$f":"SchoolEnrolEduAttain!I56-SchoolEnrolEduAttain!L56","v":1065},5.6032990135228546,1.645,"Some College, No Degree",null,"Y",{"$f":"SchoolEnrolEduAttain!J56/1.645","v":151.07086270346068},{"$f":"SchoolEnrolEduAttain!M56/1.645","v":111.71029476170447},187.88718826390149,{"$f":"SchoolEnrolEduAttain!I56-SchoolEnrolEduAttain!L56","v":1065},5.6682949478392777,1.645]
["N",{"$f":"SchoolEnrolEduAttain!G57/1.645","v":130.4939366808388},{"$f":"SchoolEnrolEduAttain!M57/1.645","v":80.326014147885374},153.23490483355627,{"$f":"SchoolEnrolEduAttain!I57-SchoolEnrolEduAttain!L57","v":158},1.0310966693366603,1.645,"Associate Degree",null,"N",{"$f":"SchoolEnrolEduAttain!J57/1.645","v":95.562619395154201},{"$f":"SchoolEnrolEduAttain!M57/1.645","v":80.326014147885374},124.83782589643806,{"$f":"SchoolEnrolEduAttain!I57-SchoolEnrolEduAttain!L57","v":158},1.265642034899521,1.645]
["Y",{"$f":"SchoolEnrolEduAttain!G58/1.645","v":146.24072903348227},{"$f":"SchoolEnrolEduAttain!M58/1.645","v":87.004453071439968},170.16499546764834,{"$f":"SchoolEnrolEduAttain!I58-SchoolEnrolEduAttain!L58","v":846},4.971645300345223,1.645,"Bachelor's Degree",null,"Y",{"$f":"SchoolEnrolEduAttain!J58/1.645","v":142.30248659225583},{"$f":"SchoolEnrolEduAttain!M58/1.645","v":87.004453071439968},166.79260338695943,{"$f":"SchoolEnrolEduAttain!I58-SchoolEnrolEduAttain!L58","v":846},5.0721673672619465,1.645]
["Y",{"$f":"SchoolEnrolEduAttain!G59/1.645","v":88.273673239956949},{"$f":"SchoolEnrolEduAttain!M59/1.645","v":71.760851652026744},113.76230138802082,{"$f":"SchoolEnrolEduAttain!I59-SchoolEnrolEduAttain!L59","v":197},1.7316808608510106,1.645,"Graduate or Professional Degree",null,"Y",{"$f":"SchoolEnrolEduAttain!J59/1.645","v":68.277517957455984},{"$f":"SchoolEnrolEduAttain!M59/1.645","v":71.760851652026744},99.052709646202587,{"$f":"SchoolEnrolEduAttain!I59-SchoolEnrolEduAttain!L59","v":197},1.9888400903281342,1.645]
["N",{"$f":"HousingCharacteristics!D32/1.645","v":24.316109422492399},{"$f":"HousingCharacteristics!J32/1.645","v":30.3951367781155},38.924767400807589,{"$f":"HousingCharacteristics!C32-HousingCharacteristics!I32","v":-40},1.027623353227028,1.645,"Total Housing Units",null,"Y",{"$f":"HousingCharacteristics!G32/1.645","v":24.316109422492399},{"$f":"HousingCharacteristics!J32/1.645","v":30.3951367781155},{"$f":"SQRT((K62^2)+(L62^2))","v":38.924767400807589},{"$f":"HousingCharacteristics!F32-HousingCharacteristics!I32","v":-66},{"$f":"ABS((N62/M62))","v":1.695578532824596},1.645]
["N",{"$f":"HousingCharacteristics!D33/1.645","v":19.45288753799392},{"$f":"HousingCharacteristics!J33/1.645","v":9.7264437689969601},21.748989446806466,{"$f":"HousingCharacteristics!C33-HousingCharacteristics!I33","v":13},0.59772892123541255,1.645,"Occupied Units",null,"Y",{"$f":"HousingCharacteristics!G33/1.645","v":19.45288753799392},{"$f":"HousingCharacteristics!J33/1.645","v":9.7264437689969601},{"$f":"SQRT((K63^2)+(L63^2))","v":21.748989446806466},{"$f":"HousingCharacteristics!F33-HousingCharacteristics!I33","v":43},{"$f":"ABS((N63/M63))","v":1.9771033548555952},1.645]
["N",{"$f":"HousingCharacteristics!D34/1.645","v":28.571428571428569},{"$f":"HousingCharacteristics!J34/1.645","v":23.70820668693009},37.126885068942173,{"$f":"HousingCharacteristics!C34-HousingCharacteristics!I34","v":-49},1.3197983054331177,1.645,"Owner Occupied",null,"N",{"$f":"HousingCharacteristics!G34/1.645","v":28.571428571428569},{"$f":"HousingCharacteristics!J34/1.645","v":23.70820668693009},37.126885068942173,{"$f":"HousingCharacteristics!F34-HousingCharacteristics!I34","v":-8},0.21547727435642738,1.645]
["N",{"$f":"HousingCharacteristics!D35/1.645","v":8.5106382978723403},{"$f":"HousingCharacteristics!J35/1.645","v":6.6869300911854106},10.823400495297784,{"$f":"HousingCharacteristics!C35-HousingCharacteristics!I35","v":5},0.46196202405817333,1.645,"Renter Occupied",null,"N",{"$f":"HousingCharacteristics!G35/1.645","v":8.5106382978723403},{"$f":"HousingCharacteristics!J35/1.645","v":6.6869300911854106},10.823400495297784,{"$f":"HousingCharacteristics!F35-HousingCharacteristics!I35","v":17},1.5706708817977892,1.645]
["N",{"$f":"HousingCharacteristics!D36/1.645","v":6.6869300911854106},{"$f":"HousingCharacteristics!J36/1.645","v":3.6474164133738602},7.61699944446302,{"$f":"HousingCharacteristics!C36-HousingCharacteristics!I36","v":6},0.78771175496954304,1.645,"Vacant Units",null,"N",{"$f":"HousingCharacteristics!G36/1.645","v":6.6869300911854106},{"$f":"HousingCharacteristics!J36/1.645","v":3.6474164133738602},7.61699944446302,{"$f":"HousingCharacteristics!F36-HousingCharacteristics!I36","v":-4},0.5251411699796954,1.645]
["N",{"$f":"HousingCharacteristics!D37/1.645","v":24.924012158054712},{"$f":"HousingCharacteristics!J37/1.645","v":21.88449848024316},33.168323077699064,{"$f":"HousingCharacteristics!C37-HousingCharacteristics!I37","v":-50},1.5074624026928218,1.645,"Vacant For Sale",null,"N",{"$f":"HousingCharacteristics!G37/1.645","v":24.924012158054712},{"$f":"HousingCharacteristics!J37/1.645","v":21.88449848024316},33.168323077699064,{"$f":"HousingCharacteristics!F37-HousingCharacteristics!I37","v":-13},0.39194022470013368,1.645]
[{"$f":"IF(F68>G68,\"Y\",\"N\")","v":{"$error":"#DIV/0!"}},{"$f":"HousingCharacteristics!D38/1.645","v":0},{"$f":"HousingCharacteristics!J38/1.645","v":0},0,{"$f":"HousingCharacteristics!C38-HousingCharacteristics!I38","v":0},{"$f":"ABS((E68/D68))","v":{"$error":"#DIV/0!"}},1.645,"Vacant For Rent",null,{"$error":"#DIV/0!"},{"$f":"HousingCharacteristics!G38/1.645","v":0},{"$f":"HousingCharacteristics!J38/1.645","v":0},0,{"$f":"HousingCharacteristics!F38-HousingCharacteristics!I38","v":0},{"$error":"#DIV/0!"},1.645]
[{"$error":"#DIV/0!"},{"$f":"HousingCharacteristics!D39/1.645","v":0},{"$f":"HousingCharacteristics!J39/1.645","v":0},0,{"$f":"HousingCharacteristics!C39-HousingCharacteristics!I39","v":0},{"$error":"#DIV/0!"},1.645,"Vacant Seasonal",null,{"$f":"IF(O69>P69,\"Y\",\"N\")","v":{"$error":"#DIV/0!"}},{"$f":"HousingCharacteristics!G39/1.645","v":0},{"$f":"HousingCharacteristics!J39/1.645","v":0},0,{"$f":"HousingCharacteristics!F39-HousingCharacteristics!I39","v":0},{"$error":"#DIV/0!"},1.645]
["N",{"$f":"HousingCharacteristics!E71/1.645","v":44.376899696048632},{"$f":"HousingCharacteristics!K71/1.645","v":32.218844984802431},54.839431058207467,{"$f":"HousingCharacteristics!D71-HousingCharacteristics!J71","v":-76},1.3858641224656827,1.645,"Total Housing Units",null,"N",{"$f":"HousingCharacteristics!H71/1.645","v":31.003039513677813},{"$f":"HousingCharacteristics!K71/1.645","v":32.218844984802431},44.712888871570314,{"$f":"HousingCharacteristics!G71-HousingCharacteristics!J71","v":-31},0.69331239341394135,1.645]
["Y",{"$f":"HousingCharacteristics!E72/1.645","v":44.376899696048632},{"$f":"HousingCharacteristics!K72/1.645","v":31.003039513677813},54.134071394269142,{"$f":"HousingCharacteristics!D72-HousingCharacteristics!J72","v":-121},2.2351911999881384,1.645,"Single Family Units",null,"N",{"$f":"HousingCharacteristics!H72/1.645","v":31.003039513677813},{"$f":"HousingCharacteristics!K72/1.645","v":31.003039513677813},43.844918955032128,{"$f":"HousingCharacteristics!G72-HousingCharacteristics!J72","v":-53},1.2088059748578264,1.645]
["N",{"$f":"HousingCharacteristics!E73/1.645","v":35.258358662613979},{"$f":"HousingCharacteristics!K73/1.645","v":29.179331306990882},45.766638844300822,{"$f":"HousingCharacteristics!D73-HousingCharacteristics!J73","v":-63},1.376548542582021,1.645,"SF Owner Occ.",null,"Y",{"$f":"HousingCharacteristics!H73/1.645","v":22.492401215805472},{"$f":"HousingCharacteristics!K73/1.645","v":29.179331306990882},36.842115682679051,{"$f":"HousingCharacteristics!G73-HousingCharacteristics!J73","v":-79},2.1442851078484901,1.645]
["N",{"$f":"HousingCharacteristics!E74/1.645","v":15.19756838905775},{"$f":"HousingCharacteristics!K74/1.645","v":9.7264437689969601},18.043552680432619,{"$f":"HousingCharacteristics!D74-HousingCharacteristics!J74","v":-2},0.11084291632705491,1.645,"SF Renter Occ.",null,"Y",{"$f":"HousingCharacteristics!H74/1.645","v":19.45288753799392},{"$f":"HousingCharacteristics!K74/1.645","v":9.7264437689969601},21.748989446806466,{"$f":"HousingCharacteristics!G74-HousingCharacteristics!J74","v":40},1.839165911493577,1.645]
["N",{"$f":"HousingCharacteristics!E75/1.645","v":155.37713274765227},{"$f":"HousingCharacteristics!K75/1.645","v":15.258237565970981},156.12452464139375,{"$f":"HousingCharacteristics!D75-HousingCharacteristics!J75","v":11},7.0456579613396228E-2,1.645,"Multi-family Units",null,"N",{"$f":"HousingCharacteristics!H75/1.645","v":15.581769748299449},{"$f":"HousingCharacteristics!K75/1.645","v":15.258237565970981},21.808378254896166,{"$f":"HousingCharacteristics!G75-HousingCharacteristics!J75","v":4},0.18341574752822193,1.645]
["N",{"$f":"HousingCharacteristics!E76/1.645","v":169.7790827701069},{"$f":"HousingCharacteristics!K76/1.645","v":16.559074129940711},170.58470002406335,{"$f":"HousingCharacteristics!D76-HousingCharacteristics!J76","v":1},5.8621904535338517E-3,1.645,"MF Owner Occ.",null,"N",{"$f":"HousingCharacteristics!H76/1.645","v":16.559074129940711},{"$f":"HousingCharacteristics!K76/1.645","v":16.559074129940711},23.418067214903612,{"$f":"HousingCharacteristics!G76-HousingCharacteristics!J76","v":1},4.2702072328308326E-2,1.645]
["N",{"$f":"HousingCharacteristics!E77/1.645","v":170.10417725997837},{"$f":"HousingCharacteristics!K77/1.645","v":16.480780196627304},170.90069408046207,{"$f":"HousingCharacteristics!D77-HousingCharacteristics!J77","v":10},5.8513513089021633E-2,1.645,"MF Renter Occ.",null,"N",{"$f":"HousingCharacteristics!H77/1.645","v":16.780758348744389},{"$f":"HousingCharacteristics!K77/1.645","v":16.480780196627304},23.52041595398553,{"$f":"HousingCharacteristics!G77-HousingCharacteristics!J77","v":3},0.12754876469315377,1.645]
["N",{"$f":"HousingCharacteristics!E78/1.645","v":71.360635092178427},{"$f":"HousingCharacteristics!K78/1.645","v":11.803336072308571},72.330207957636262,{"$f":"HousingCharacteristics!D78-HousingCharacteristics!J78","v":34},0.47006639355874341,1.645,"Mobile Home & Other",null,"N",{"$f":"HousingCharacteristics!H78/1.645","v":12.398831643994612},{"$f":"HousingCharacteristics!K78/1.645","v":11.803336072308571},17.118696462405744,{"$f":"HousingCharacteristics!G78-HousingCharacteristics!J78","v":18},1.0514819302701979,1.645]
["N",{"$f":"HousingCharacteristics!$D88/1.645","v":6.6869300911854106},{"$f":"HousingCharacteristics!L88/1.645","v":9.7264437689969601},11.803336072308571,{"$f":"HousingCharacteristics!$D88-HousingCharacteristics!$K88","v":-13},1.1013835343127172,1.645,"No Bedrooms",null,"N",{"$f":"HousingCharacteristics!H88/1.645","v":10.94224924012158},{"$f":"HousingCharacteristics!L88/1.645","v":9.7264437689969601},14.640236569960237,{"$f":"HousingCharacteristics!G88-HousingCharacteristics!K88","v":-3},0.20491472153910339,1.645]
["Y",{"$f":"HousingCharacteristics!$D89/1.645","v":16.413373860182372},{"$f":"HousingCharacteristics!L89/1.645","v":13.98176291793313},21.561273982940062,{"$f":"HousingCharacteristics!$D89-HousingCharacteristics!$K89","v":-37},1.7160396008730991,1.645,"1 Bedroom",null,"N",{"$f":"HousingCharacteristics!H89/1.645","v":14.589665653495441},{"$f":"HousingCharacteristics!L89/1.645","v":13.98176291793313},20.207623268808099,{"$f":"HousingCharacteristics!G89-HousingCharacteristics!K89","v":-16},0.79178039827658186,1.645]
["Y",{"$f":"HousingCharacteristics!$D90/1.645","v":34.650455927051674},{"$f":"HousingCharacteristics!L90/1.645","v":22.492401215805472},41.310558074241968,{"$f":"HousingCharacteristics!$D90-HousingCharacteristics!$K90","v":-103},2.4933093330497207,1.645,"2 Bedrooms",null,"N",{"$f":"HousingCharacteristics!H90/1.645","v":22.492401215805472},{"$f":"HousingCharacteristics!L90/1.645","v":22.492401215805472},31.80905884972919,{"$f":"HousingCharacteristics!G90-HousingCharacteristics!K90","v":20},0.62875170543344361,1.645]
["Y",{"$f":"HousingCharacteristics!$D91/1.645","v":29.179331306990882},{"$f":"HousingCharacteristics!L91/1.645","v":27.96352583586626},40.415246537616198,{"$f":"HousingCharacteristics!$D91-HousingCharacteristics!$K91","v":-187},4.6269667024287751,1.645,"3 Bedrooms",null,"N",{"$f":"HousingCharacteristics!H91/1.645","v":27.96352583586626},{"$f":"HousingCharacteristics!L91/1.645","v":27.96352583586626},39.546397488852506,{"$f":"HousingCharacteristics!G91-HousingCharacteristics!K91","v":-19},0.48044831404316396,1.645]
["N",{"$f":"HousingCharacteristics!$D92/1.645","v":30.46799777785208},{"$f":"HousingCharacteristics!L92/1.645","v":18.488639909721034},35.638864941276239,{"$f":"HousingCharacteristics!$D92-HousingCharacteristics!$K92","v":-53.880143655433329},1.5118366913260022,1.645,"4+ Bedrooms",null,"N",{"$f":"HousingCharacteristics!H92/1.645","v":18.488639909721034},{"$f":"HousingCharacteristics!L92/1.645","v":18.488639909721034},26.146885310159963,{"$f":"HousingCharacteristics!G92-HousingCharacteristics!K92","v":-13},0.49719115090731503,1.645]
["N",{"$f":"'HHIncome-10YearComparison'!$F$30/1.645","v":6.0790273556230998},{"$f":"'HHIncome-10YearComparison'!$M$30/1.645","v":9.7264437689969601},{"$f":"SQRT((B83^2)+(C83^2))","v":11.469885874840855},{"$f":"'HHIncome-10YearComparison'!$E$30-'HHIncome-10YearComparison'!$L$30","v":-6},0.52310895378313871,1.645,"Household Income Less than $10,000",null,"N",{"$f":"'HHIncome-10YearComparison'!$F$30/1.645","v":6.0790273556230998},{"$f":"'HHIncome-10YearComparison'!$J$30/1.645","v":7.9027355623100304},{"$f":"SQRT((K83^2)+(L83^2))","v":9.9703461804600142},{"$f":"'HHIncome-10YearComparison'!$E$30-'HHIncome-10YearComparison'!$I$30","v":-7},0.70208194111842082,1.645]
["Y",{"$f":"'HHIncome-10YearComparison'!$F$31/1.645","v":13.373860182370821},{"$f":"'HHIncome-10YearComparison'!$M$31/1.645","v":3.6474164133738602},{"$f":"SQRT((B84^2)+(C84^2))","v":13.862315198773715},{"$f":"'HHIncome-10YearComparison'!$E$31-'HHIncome-10YearComparison'!$L$31","v":25},1.8034505522000788,1.645,"Household Income $10,000 to $14,999",null,"N",{"$f":"'HHIncome-10YearComparison'!$F$31/1.645","v":13.373860182370821},{"$f":"'HHIncome-10YearComparison'!$J$31/1.645","v":4.86322188449848},{"$f":"SQRT((K84^2)+(L84^2))","v":14.230638189324772},{"$f":"'HHIncome-10YearComparison'!$E$31-'HHIncome-10YearComparison'!$I$31","v":19},1.3351474295968682,1.645]
["N",{"$f":"'HHIncome-10YearComparison'!$F$32/1.645","v":4.86322188449848},{"$f":"'HHIncome-10YearComparison'!$M$32/1.645","v":7.0893032156173872},8.5970429323592406,{"$f":"'HHIncome-10YearComparison'!$E$32-'HHIncome-10YearComparison'!$L$32","v":-10},1.1631906550518707,1.645,"Household Income $15,000 to $24,999",null,"Y",{"$f":"'HHIncome-10YearComparison'!$F$32/1.645","v":4.86322188449848},{"$f":"'HHIncome-10YearComparison'!$J$32/1.645","v":14.191632255232525},15.001778333438379,{"$f":"'HHIncome-10YearComparison'!$E$32-'HHIncome-10YearComparison'!$I$32","v":-32},2.1330804447812195,1.645]
["N",{"$f":"'HHIncome-10YearComparison'!$F$33/1.645","v":15.19756838905775},{"$f":"'HHIncome-10YearComparison'!$M$33/1.645","v":8.7672979342589397},17.545130321777279,{"$f":"'HHIncome-10YearComparison'!$E$33-'HHIncome-10YearComparison'!$L$33","v":8},0.45596697506830597,1.645,"Household Income $25,000 to $34,999",null,"N",{"$f":"'HHIncome-10YearComparison'!$F$33/1.645","v":15.19756838905775},{"$f":"'HHIncome-10YearComparison'!$J$33/1.645","v":13.346199635319239},20.225902443299848,{"$f":"'HHIncome-10YearComparison'!$E$33-'HHIncome-10YearComparison'!$I$33","v":-4},0.19776620653705682,1.645]
["N",{"$f":"'HHIncome-10YearComparison'!$F$34/1.645","v":69.300911854103347},{"$f":"'HHIncome-10YearComparison'!$M$34/1.645","v":12.838122846165881},70.480023992784282,{"$f":"'HHIncome-10YearComparison'!$E$34-'HHIncome-10YearComparison'!$L$34","v":-46},0.65266720120171162,1.645,"Household Income $35,000 to $49,999",null,"N",{"$f":"'HHIncome-10YearComparison'!$F$34/1.645","v":69.300911854103347},{"$f":"'HHIncome-10YearComparison'!$J$34/1.645","v":13.248932959090194},70.556010434013828,{"$f":"'HHIncome-10YearComparison'!$E$34-'HHIncome-10YearComparison'!$I$34","v":-51},0.72282998551479583,1.645]
["Y",{"$f":"'HHIncome-10YearComparison'!$F$35/1.645","v":10.94224924012158},{"$f":"'HHIncome-10YearComparison'!$M$35/1.645","v":19.791879144194173},22.615289042842889,{"$f":"'HHIncome-10YearComparison'!$E$35-'HHIncome-10YearComparison'!$L$35","v":-80},3.5374299151536945,1.645,"Household Income $50,000 to $74,999",null,"Y",{"$f":"'HHIncome-10YearComparison'!$F$35/1.645","v":10.94224924012158},{"$f":"'HHIncome-10YearComparison'!$J$35/1.645","v":17.534595868517879},20.668693009118542,{"$f":"'HHIncome-10YearComparison'!$E$35-'HHIncome-10YearComparison'!$I$35","v":-57},2.7577941176470588,1.645]
["Y",{"$f":"'HHIncome-10YearComparison'!$F$36/1.645","v":2.43161094224924},{"$f":"'HHIncome-10YearComparison'!$M$36/1.645","v":19.45288753799392},19.604274159996471,{"$f":"'HHIncome-10YearComparison'!$E$36-'HHIncome-10YearComparison'!$L$36","v":-61},3.1115663605885309,1.645,"Household Income $75,000 to $99,999",null,"Y",{"$f":"'HHIncome-10YearComparison'!$F$36/1.645","v":2.43161094224924},{"$f":"'HHIncome-10YearComparison'!$J$36/1.645","v":13.98176291793313},14.191632255232525,{"$f":"'HHIncome-10YearComparison'!$E$36-'HHIncome-10YearComparison'!$I$36","v":-61},4.2983075451034889,1.645]
["N",{"$f":"'HHIncome-10YearComparison'!$F$37/1.645","v":27.96352583586626},{"$f":"'HHIncome-10YearComparison'!$M$37/1.645","v":15.099990697111515},31.780001513939773,{"$f":"'HHIncome-10YearComparison'!$E$37-'HHIncome-10YearComparison'!$L$37","v":0},0,1.645,"Household Income $100,000 to $149,999",null,"N",{"$f":"'HHIncome-10YearComparison'!$F$37/1.645","v":27.96352583586626},{"$f":"'HHIncome-10YearComparison'!$J$37/1.645","v":11.693242590681667},30.309910911411329,{"$f":"'HHIncome-10YearComparison'!$E$37-'HHIncome-10YearComparison'!$I$37","v":32},1.0557602789902087,1.645]
["N",{"$f":"'HHIncome-10YearComparison'!$F$38/1.645","v":14.589665653495441},{"$f":"'HHIncome-10YearComparison'!$M$38/1.645","v":7.9027355623100304},16.592515579278032,{"$f":"'HHIncome-10YearComparison'!$E$38-'HHIncome-10YearComparison'!$L$38","v":21},1.2656308743338691,1.645,"Household Income $150,000 to $199,999",null,"Y",{"$f":"'HHIncome-10YearComparison'!$F$38/1.645","v":14.589665653495441},{"$f":"'HHIncome-10YearComparison'!$J$38/1.645","v":6.6869300911854106},16.049092744612871,{"$f":"'HHIncome-10YearComparison'!$E$38-'HHIncome-10YearComparison'!$I$38","v":32},1.9938821782147966,1.645]
["N",{"$f":"'HHIncome-10YearComparison'!$F$39/1.645","v":12.1580547112462},{"$f":"'HHIncome-10YearComparison'!$M$39/1.645","v":7.2948328267477205},14.178606431234773,{"$f":"'HHIncome-10YearComparison'!$E$39-'HHIncome-10YearComparison'!$L$39","v":15},1.0579318970978515,1.645,"Household Income Greater than $200,000",null,"N",{"$f":"'HHIncome-10YearComparison'!$F$39/1.645","v":12.1580547112462},{"$f":"'HHIncome-10YearComparison'!$J$39/1.645","v":4.86322188449848},13.094625670843778,{"$f":"'HHIncome-10YearComparison'!$E$39-'HHIncome-10YearComparison'!$I$39","v":18},1.3746097408556266,1.645]
["N",{"$f":"'HHIncome-10YearComparison'!$F$41/1.645","v":3435.2583586626138},{"$f":"'HHIncome-10YearComparison'!$M$41/1.645","v":4940.4255319148933},6017.3752107673918,{"$f":"'HHIncome-10YearComparison'!$E$41-'HHIncome-10YearComparison'!$I$41","v":-6112},1.0157252599211843,1.645,"Median Household Income",null,"N",{"$f":"'HHIncome-10YearComparison'!$F$41/1.645","v":3435.2583586626138},{"$f":"'HHIncome-10YearComparison'!$J$41/1.645","v":3256.5349544072947},4733.4997517732982,{"$f":"'HHIncome-10YearComparison'!$E$41-'HHIncome-10YearComparison'!$I$41","v":-6112},1.2912222077777185,1.645]
["N",{"$f":"PovertyCharacteristics!$E$54/1.645","v":79.027355623100306},{"$f":"PovertyCharacteristics!$M54/1.645","v":83.890577507598778},115.25168949450763,{"$f":"PovertyCharacteristics!$D54-PovertyCharacteristics!$L54","v":6},5.2059974359733203E-2,1.645,"Total Households Below Poverty Level",null,"N",{"$f":"PovertyCharacteristics!$I$54/1.645","v":77.203647416413375},{"$f":"PovertyCharacteristics!$M54/1.645","v":83.890577507598778},114.0089126733358,{"$f":"PovertyCharacteristics!$H54-PovertyCharacteristics!$L54","v":-59},0.51750340053720045,1.645]
["N",{"$f":"PovertyCharacteristics!$E$55/1.645","v":45.59270516717325},{"$f":"PovertyCharacteristics!$M55/1.645","v":42.553191489361701},62.365606470161673,{"$f":"PovertyCharacteristics!$D55-PovertyCharacteristics!$L55","v":3},4.8103436650380783E-2,1.645,"Family Households Below Poverty Level",null,"N",{"$f":"PovertyCharacteristics!$I$55/1.645","v":24.924012158054712},{"$f":"PovertyCharacteristics!$M55/1.645","v":42.553191489361701},49.315114194181319,{"$f":"PovertyCharacteristics!$H55-PovertyCharacteristics!$L55","v":-68},1.378887611052583,1.645]
["N",{"$f":"PovertyCharacteristics!$E$56/1.645","v":3.6474164133738602},{"$f":"PovertyCharacteristics!$M56/1.645","v":7.2948328267477205},8.155871042552425,{"$f":"PovertyCharacteristics!$D56-PovertyCharacteristics!$L56","v":-6},0.73566636459743073,1.645,"Married Couple Fam HH Below Poverty Level",null,"N",{"$f":"PovertyCharacteristics!$I$56/1.645","v":10.334346504559271},{"$f":"PovertyCharacteristics!$M56/1.645","v":7.2948328267477205},12.649636502543958,{"$f":"PovertyCharacteristics!$H56-PovertyCharacteristics!$L56","v":-12},0.94864386004978796,1.645]
["N",{"$f":"PovertyCharacteristics!$E$57/1.645","v":37.08206686930091},{"$f":"PovertyCharacteristics!$M57/1.645","v":36.474164133738604},52.013885958984147,{"$f":"PovertyCharacteristics!$D57-PovertyCharacteristics!$L57","v":-26},0.49986651680865474,1.645,"M C Fam HH w/Children Below Poverty Level",null,"N",{"$f":"PovertyCharacteristics!$I$57/1.645","v":21.88449848024316},{"$f":"PovertyCharacteristics!$M57/1.645","v":36.474164133738604},42.535819293704321,{"$f":"PovertyCharacteristics!$H57-PovertyCharacteristics!$L57","v":-63},1.4811046559369918,1.645]
["N",{"$f":"PovertyCharacteristics!$E$58/1.645","v":37.08206686930091},{"$f":"PovertyCharacteristics!$M58/1.645","v":19.45288753799392},41.874747961810392,{"$f":"PovertyCharacteristics!$D58-PovertyCharacteristics!$L58","v":41},0.97911037070340912,1.645,"Male Head of Family HH  Below Poverty Level",null,"N",{"$f":"PovertyCharacteristics!$I$58/1.645","v":20.668693009118542},{"$f":"PovertyCharacteristics!$M58/1.645","v":19.45288753799392},28.38326451046505,{"$f":"PovertyCharacteristics!$H58-PovertyCharacteristics!$L58","v":5},0.17616014529112659,1.645]
["N",{"$f":"PovertyCharacteristics!$E$59/1.645","v":37.08206686930091},{"$f":"PovertyCharacteristics!$M59/1.645","v":19.45288753799392},41.874747961810392,{"$f":"PovertyCharacteristics!$D59-PovertyCharacteristics!$L59","v":41},0.97911037070340912,1.645,"Male Head of HH w/Children Below Poverty Level",null,"N",{"$f":"PovertyCharacteristics!$I$59/1.645","v":17.62917933130699},{"$f":"PovertyCharacteristics!$M59/1.645","v":19.45288753799392},26.252672196582594,{"$f":"PovertyCharacteristics!$H59-PovertyCharacteristics!$L59","v":-7},0.26663952330579194,1.645]
["N",{"$f":"PovertyCharacteristics!$E$60/1.645","v":54.10334346504559},{"$f":"PovertyCharacteristics!$M60/1.645","v":74.164133738601819},91.80136440867264,{"$f":"PovertyCharacteristics!$D60-PovertyCharacteristics!$L60","v":-38},0.41393720283758734,1.645,"Female Head of Family HH  Below Poverty Level",null,"N",{"$f":"PovertyCharacteristics!$I$60/1.645","v":74.772036474164139},{"$f":"PovertyCharacteristics!$M60/1.645","v":74.164133738601819},105.31465316702585,{"$f":"PovertyCharacteristics!$H60-PovertyCharacteristics!$L60","v":4},3.7981419296478344E-2,1.645]
["N",{"$f":"PovertyCharacteristics!$E$61/1.645","v":54.10334346504559},{"$f":"PovertyCharacteristics!$M61/1.645","v":59.574468085106382},80.47539388980988,{"$f":"PovertyCharacteristics!$D61-PovertyCharacteristics!$L61","v":10},0.12426158502178193,1.645,"Female Head of HH w/Children Below Poverty Level",null,"N",{"$f":"PovertyCharacteristics!$I$61/1.645","v":72.340425531914889},{"$f":"PovertyCharacteristics!$M61/1.645","v":59.574468085106382},93.713683172532939,{"$f":"PovertyCharacteristics!$H61-PovertyCharacteristics!$L61","v":41},0.43750281295119253,1.645]
["N",{"$f":"PovertyCharacteristics!$E$62/1.645","v":98.480243161094222},{"$f":"PovertyCharacteristics!$M62/1.645","v":77.203647416413375},125.13497299902261,{"$f":"PovertyCharacteristics!$D62-PovertyCharacteristics!$L62","v":173},1.3825071908662276,1.645,"Non-Family HH  Below Poverty Level",null,"N",{"$f":"PovertyCharacteristics!$I$62/1.645","v":85.106382978723403},{"$f":"PovertyCharacteristics!$M62/1.645","v":77.203647416413375},114.90648196737646,{"$f":"PovertyCharacteristics!$H62-PovertyCharacteristics!$L62","v":139},1.2096793637757008,1.645]
["Y",{"$f":"PovertyCharacteristics!$E$68/1.645","v":144.07294832826747},{"$f":"PovertyCharacteristics!$M68/1.645","v":178.72340425531914},229.56277936244337,{"$f":"PovertyCharacteristics!$D68-PovertyCharacteristics!$L68","v":389},1.6945255719605592,1.645,"Total Households At or Above Poverty Level",null,"N",{"$f":"PovertyCharacteristics!$I$68/1.645","v":137.99392097264439},{"$f":"PovertyCharacteristics!$M68/1.645","v":178.72340425531914},225.79720426527572,{"$f":"PovertyCharacteristics!$H68-PovertyCharacteristics!$L68","v":107},0.4738765493052432,1.645]
["N",{"$f":"PovertyCharacteristics!$E$69/1.645","v":172.64437689969606},{"$f":"PovertyCharacteristics!$M69/1.645","v":148.32826747720364},227.61229274332521,{"$f":"PovertyCharacteristics!$D69-PovertyCharacteristics!$L69","v":321},1.4102928982046967,1.645,"Family Households At or Above Poverty Level",null,"N",{"$f":"PovertyCharacteristics!$I$69/1.645","v":134.95440729483283},{"$f":"PovertyCharacteristics!$M69/1.645","v":148.32826747720364},200.53420401788941,{"$f":"PovertyCharacteristics!$H69-PovertyCharacteristics!$L69","v":212},1.0571762609688657,1.645]
["Y",{"$f":"PovertyCharacteristics!$E$70/1.645","v":150.75987841945289},{"$f":"PovertyCharacteristics!$M70/1.645","v":142.24924012158056},207.2761135688705,{"$f":"PovertyCharacteristics!$D70-PovertyCharacteristics!$L70","v":525},2.5328533566197011,1.645,"Married Couple Fam HH At or Above Poverty Level",null,"N",{"$f":"PovertyCharacteristics!$I$70/1.645","v":131.30699088145897},{"$f":"PovertyCharacteristics!$M70/1.645","v":142.24924012158056},193.5881509016258,{"$f":"PovertyCharacteristics!$H70-PovertyCharacteristics!$L70","v":177},0.91431215792719012,1.645]
["Y",{"$f":"PovertyCharacteristics!$E$71/1.645","v":103.95136778115501},{"$f":"PovertyCharacteristics!$M71/1.645","v":94.224924012158056},140.3004745846211,{"$f":"PovertyCharacteristics!$D71-PovertyCharacteristics!$L71","v":361},2.5730490297255963,1.645,"M C Fam HH w/Children At or Above Poverty Level",null,"N",{"$f":"PovertyCharacteristics!$I$71/1.645","v":107.59878419452887},{"$f":"PovertyCharacteristics!$M71/1.645","v":94.224924012158056},143.02389543442646,{"$f":"PovertyCharacteristics!$H71-PovertyCharacteristics!$L71","v":106},0.74113489692076551,1.645]
["N",{"$f":"PovertyCharacteristics!$E$72/1.645","v":46.200607902735563},{"$f":"PovertyCharacteristics!$M72/1.645","v":48.024316109422493},66.639561135710139,{"$f":"PovertyCharacteristics!$D72-PovertyCharacteristics!$L72","v":-30},0.4501830367535824,1.645,"Male Head of Family HH  At or Above Poverty Level",null,"N",{"$f":"PovertyCharacteristics!$I$72/1.645","v":69.908814589665653},{"$f":"PovertyCharacteristics!$M72/1.645","v":48.024316109422493},84.814959147015955,{"$f":"PovertyCharacteristics!$H72-PovertyCharacteristics!$L72","v":67},0.78995498758496141,1.645]
["N",{"$f":"PovertyCharacteristics!$E$73/1.645","v":41.945288753799389},{"$f":"PovertyCharacteristics!$M73/1.645","v":48.024316109422493},63.763172650185361,{"$f":"PovertyCharacteristics!$D73-PovertyCharacteristics!$L73","v":-40},0.6273213571013192,1.645,"Male Head of HH w/Children At or Above Poverty Level",null,"N",{"$f":"PovertyCharacteristics!$I$73/1.645","v":66.261398176291792},{"$f":"PovertyCharacteristics!$M73/1.645","v":48.024316109422493},81.834637080241407,{"$f":"PovertyCharacteristics!$H73-PovertyCharacteristics!$L73","v":49},0.59876846465334688,1.645]
["N",{"$f":"PovertyCharacteristics!$E$74/1.645","v":94.832826747720361},{"$f":"PovertyCharacteristics!$M74/1.645","v":104.55927051671732},141.15915159829777,{"$f":"PovertyCharacteristics!$D74-PovertyCharacteristics!$L74","v":-174},1.232651216940994,1.645,"Female Head of Family HH  At or Above Poverty Level",null,"N",{"$f":"PovertyCharacteristics!$I$74/1.645","v":90.577507598784194},{"$f":"PovertyCharacteristics!$M74/1.645","v":104.55927051671732},138.33627844421679,{"$f":"PovertyCharacteristics!$H74-PovertyCharacteristics!$L74","v":-32},0.23132037640367631,1.645]
["N",{"$f":"PovertyCharacteristics!$E$75/1.645","v":83.282674772036472},{"$f":"PovertyCharacteristics!$M75/1.645","v":83.282674772036472},117.7794881733216,{"$f":"PovertyCharacteristics!$D75-PovertyCharacteristics!$L75","v":-150},1.2735664106407343,1.645,"Female Head of HH w/Children At or Above Poverty Level",null,"N",{"$f":"PovertyCharacteristics!$I$75/1.645","v":75.98784194528875},{"$f":"PovertyCharacteristics!$M75/1.645","v":83.282674772036472},112.73932783499724,{"$f":"PovertyCharacteristics!$H75-PovertyCharacteristics!$L75","v":-19},0.16853036438010324,1.645]
["N",{"$f":"PovertyCharacteristics!$E$76/1.645","v":172.64437689969606},{"$f":"PovertyCharacteristics!$M76/1.645","v":150.15197568389058},228.80493149593602,{"$f":"PovertyCharacteristics!$D76-PovertyCharacteristics!$L76","v":68},0.29719639150875471,1.645,"Non-Family HH  At or Above Poverty Level",null,"N",{"$f":"PovertyCharacteristics!$I$76/1.645","v":144.07294832826747},{"$f":"PovertyCharacteristics!$M76/1.645","v":150.15197568389058},208.09284043852949,{"$f":"PovertyCharacteristics!$H76-PovertyCharacteristics!$L76","v":-105},0.50458247279784207,1.645]
["Y",{"$f":"PovertyCharacteristics!$E24/1.645","v":241.94528875379939},{"$f":"PovertyCharacteristics!M24/1.645","v":193.31306990881458},309.68930518784401,{"$f":"PovertyCharacteristics!H24-PovertyCharacteristics!L24","v":992},3.2032103898398949,1.645,"Total Individuals Living in Poverty",null,{"$f":"IF(O112>P112,\"Y\",\"N\")","v":"Y"},{"$f":"PovertyCharacteristics!$I24/1.645","v":246.80851063829786},{"$f":"PovertyCharacteristics!$M24/1.645","v":193.31306990881458},313.5034033644053,{"$f":"PovertyCharacteristics!$H24-PovertyCharacteristics!$L24","v":992},3.1642399710950957,1.645]
["N",{"$f":"PovertyCharacteristics!$E25/1.645","v":61.650449258493474},{"$f":"PovertyCharacteristics!M25/1.645","v":52.649430813798482},81.072439575918963,{"$f":"PovertyCharacteristics!H25-PovertyCharacteristics!L25","v":14},0.17268507119352106,1.645,"Individuals Under 5 yrs. Living in Poverty",null,"N",{"$f":"PovertyCharacteristics!$I25/1.645","v":49.44981430175136},{"$f":"PovertyCharacteristics!$M25/1.645","v":52.649430813798482},72.230510862755537,{"$f":"PovertyCharacteristics!$H25-PovertyCharacteristics!$L25","v":14},0.19382390949167255,1.645]
["Y",{"$f":"PovertyCharacteristics!$E26/1.645","v":61.428263114930829},{"$f":"PovertyCharacteristics!M26/1.645","v":44.696356096417752},75.968386567143511,{"$f":"PovertyCharacteristics!H26-PovertyCharacteristics!L26","v":326},4.2912587028799116,1.645,"Individuals 5 to 17 yrs. Living in Poverty",null,"Y",{"$f":"PovertyCharacteristics!$I26/1.645","v":112.2696128087133},{"$f":"PovertyCharacteristics!$M26/1.645","v":44.696356096417752},120.83968805204763,{"$f":"PovertyCharacteristics!$H26-PovertyCharacteristics!$L26","v":326},2.6977891556587474,1.645]
["Y",{"$f":"PovertyCharacteristics!$E27/1.645","v":140.68976048916116},{"$f":"PovertyCharacteristics!M27/1.645","v":124.36180520290044},187.77504440106435,{"$f":"PovertyCharacteristics!H27-PovertyCharacteristics!L27","v":603},3.2112893485039806,1.645,"Individuals 18 to 64 yrs. Living in Poverty",null,"Y",{"$f":"PovertyCharacteristics!$I27/1.645","v":137.0628579536515},{"$f":"PovertyCharacteristics!$M27/1.645","v":124.36180520290044},185.07318991076747,{"$f":"PovertyCharacteristics!$H27-PovertyCharacteristics!$L27","v":603},3.2581704583507465,1.645]
["N",{"$f":"PovertyCharacteristics!$E28/1.645","v":32.034801522809481},{"$f":"PovertyCharacteristics!M28/1.645","v":13.755268691774786},34.863102635719564,{"$f":"PovertyCharacteristics!H28-PovertyCharacteristics!L28","v":45},1.2907629154582045,1.645,"Individuals 65 to 74 yrs. Living in Poverty",null,"Y",{"$f":"PovertyCharacteristics!$I28/1.645","v":23.267670770826307},{"$f":"PovertyCharacteristics!$M28/1.645","v":13.755268691774786},27.029463921478069,{"$f":"PovertyCharacteristics!$H28-PovertyCharacteristics!$L28","v":45},1.6648498886521474,1.645]
["N",{"$f":"PovertyCharacteristics!$E29/1.645","v":53.308598828920978},{"$f":"PovertyCharacteristics!M29/1.645","v":57.006887316718199},78.048650921357009,{"$f":"PovertyCharacteristics!H29-PovertyCharacteristics!L29","v":4},5.1250085078734547E-2,1.645,"Individuals 75 yrs. & Over Living in Poverty",null,"N",{"$f":"PovertyCharacteristics!$I29/1.645","v":38.686693195616584},{"$f":"PovertyCharacteristics!$M29/1.645","v":57.006887316718199},68.894451387269015,{"$f":"PovertyCharacteristics!$H29-PovertyCharacteristics!$L29","v":4},5.8059828033396009E-2,1.645]
[null,null,null,null,null,null,null,"Under 5",null,"N",{"$f":"DisabilityByAgePrior5YearEst!$E$31/1.645","v":22.027563443153117},{"$f":"DisabilityByAge!$E$31/1.645","v":11.613965455649117},{"$f":"SQRT((K118^2)+(L118^2))","v":24.901761882387891},{"$f":"DisabilityByAge!$D$31-DisabilityByAgePrior5YearEst!$D$31","v":-18},0.72284041928498011,1.645]
[null,null,null,null,null,null,null,"5 to 17",null,"N",{"$f":"DisabilityByAgePrior5YearEst!$F$31/1.645","v":92.401215805471125},{"$f":"DisabilityByAge!$F$31/1.645","v":35.258358662613979},{"$f":"SQRT((K119^2)+(L119^2))","v":98.89962860350272},{"$f":"DisabilityByAge!$D$31-DisabilityByAgePrior5YearEst!$D$31","v":-18},0.18200270571453386,1.645]
[null,null,null,null,null,null,null,"18 to 34",null,"N",{"$f":"DisabilityByAgePrior5YearEst!$I$31/1.645","v":33.056720059142911},{"$f":"DisabilityByAge!$I$31/1.645","v":27.651222894940204},43.096831306422132,{"$f":"DisabilityByAge!$D$31-DisabilityByAgePrior5YearEst!$D$31","v":-18},0.41766411716022628,1.645]
[null,null,null,null,null,null,null,"35 to 64",null,"N",{"$f":"DisabilityByAgePrior5YearEst!$K$31/1.645","v":33.961040057053914},{"$f":"DisabilityByAge!$K$31/1.645","v":40.415246537616198},52.789623927937946,{"$f":"DisabilityByAge!$D$31-DisabilityByAgePrior5YearEst!$D$31","v":-18},0.34097609834408821,1.645]
[null,null,null,null,null,null,null,"65 to 74",null,"N",{"$f":"DisabilityByAgePrior5YearEst!$M$31/1.645","v":20.317051631694106},{"$f":"DisabilityByAge!$M$31/1.645","v":30.352553757616846},36.524787564254837,{"$f":"DisabilityByAge!$D$31-DisabilityByAgePrior5YearEst!$D$31","v":-18},0.49281600798729325,1.645]
[null,null,null,null,null,null,null,"75 and Over",null,"N",{"$f":"DisabilityByAgePrior5YearEst!$O$31/1.645","v":11.421455457784763},{"$f":"DisabilityByAge!$O$31/1.645","v":16.368282088554722},19.959215999248634,{"$f":"DisabilityByAge!$D$31-DisabilityByAgePrior5YearEst!$D$31","v":-18},0.90183903018423217,1.645]
[null,null,null,null,null,null,null,"With a Disability -Under 5",null,"N",{"$f":"DisabilityByAgePrior5YearEst!$E$33/1.645","v":9.4567472255951639},{"$f":"DisabilityByAge!$E$33/1.645","v":9.4567472255951639},13.373860182370819,{"$f":"DisabilityByAge!$D$31-DisabilityByAgePrior5YearEst!$D$31","v":-18},1.3459090909090909,1.645]
[null,null,null,null,null,null,null,"With a Disability -5 to 17",null,"Y",{"$f":"DisabilityByAgePrior5YearEst!$F$33/1.645","v":1.21580547112462},{"$f":"DisabilityByAge!$F$33/1.645","v":0},1.21580547112462,{"$f":"DisabilityByAge!$D$31-DisabilityByAgePrior5YearEst!$D$31","v":-18},14.805000000000001,1.645]
[null,null,null,null,null,null,null,"With a Disability -18 to 34",null,"N",{"$f":"DisabilityByAgePrior5YearEst!$I$33/1.645","v":8.155871042552425},{"$f":"DisabilityByAge!$I$33/1.645","v":14.952430244679446},17.032128542397448,{"$f":"DisabilityByAge!$D$31-DisabilityByAgePrior5YearEst!$D$31","v":-18},1.0568262184725337,1.645]
[null,null,null,null,null,null,null,"With a Disability -35 to 64",null,"N",{"$f":"DisabilityByAgePrior5YearEst!$K$33/1.645","v":8.6399212179646785},{"$f":"DisabilityByAge!$K$33/1.645","v":7.61699944446302},11.518112657444631,{"$f":"DisabilityByAge!$D$31-DisabilityByAgePrior5YearEst!$D$31","v":-18},{"$f":"ABS((N127/M127))","v":1.5627560291629774},1.645]
[null,null,null,null,null,null,null,"With a Disability -65 to 74",null,"N",{"$f":"DisabilityByAgePrior5YearEst!$M$33/1.645","v":12.309092237882423},{"$f":"DisabilityByAge!$M$33/1.645","v":14.191632255232525},18.786063392537926,{"$f":"DisabilityByAge!$D$31-DisabilityByAgePrior5YearEst!$D$31","v":-18},0.95815709890289413,1.645]
[null,null,null,null,null,null,null,"With a Disability -75 and Over",null,"N",{"$f":"DisabilityByAgePrior5YearEst!$O$33/1.645","v":9.4371882652036625},{"$f":"DisabilityByAge!$O$33/1.645","v":9.4371882652036625},13.346199635319239,{"$f":"DisabilityByAge!$D$31-DisabilityByAgePrior5YearEst!$D$31","v":-18},1.3486985427945342,1.645]
[null,null,null,null,null,null,null,"Hearing Disability - Under 5",null,"N",{"$f":"DisabilityByAgePrior5YearEst!$E$38/1.645","v":9.4567472255951639},{"$f":"DisabilityByAge!$E$38/1.645","v":9.4567472255951639},13.373860182370819,{"$f":"DisabilityByAge!$D$31-DisabilityByAgePrior5YearEst!$D$31","v":-18},1.3459090909090909,1.645]
[null,null,null,null,null,null,null,"Hearing Disability - 5 to 17",null,{"$error":"#DIV/0!"},{"$f":"DisabilityByAgePrior5YearEst!$F$38/1.645","v":0},{"$f":"DisabilityByAge!$F$38/1.645","v":0},0,{"$f":"DisabilityByAge!$D$31-DisabilityByAgePrior5YearEst!$D$31","v":-18},{"$error":"#DIV/0!"},1.645]
[null,null,null,null,null,null,null,"Hearing Disability - 18 to 34",null,"N",{"$f":"DisabilityByAgePrior5YearEst!$I$38/1.645","v":9.4567472255951639},{"$f":"DisabilityByAge!$I$38/1.645","v":10.823400495297786},14.372754307035732,{"$f":"DisabilityByAge!$D$31-DisabilityByAgePrior5YearEst!$D$31","v":-18},1.2523695608703658,1.645]
[null,null,null,null,null,null,null,"Hearing Disability - 35 to 64",null,"Y",{"$f":"DisabilityByAgePrior5YearEst!$K$38/1.645","v":6.9311575993868564},{"$f":"DisabilityByAge!$K$38/1.645","v":7.61699944446302},10.298525438357091,{"$f":"DisabilityByAge!$D$31-DisabilityByAgePrior5YearEst!$D$31","v":-18},1.7478230361949287,1.645]
[null,null,null,null,null,null,null,"Hearing Disability - 65 to 74",null,"Y",{"$f":"DisabilityByAgePrior5YearEst!$M$38/1.645","v":4.7478721434083004},{"$f":"DisabilityByAge!$M$38/1.645","v":7.1153190946623868},8.5539497139637017,{"$f":"DisabilityByAge!$D$31-DisabilityByAgePrior5YearEst!$D$31","v":-18},2.1042910704298747,1.645]
[null,null,null,null,null,null,null,"Hearing Disability - 75 and Over",null,"Y",{"$f":"DisabilityByAgePrior5YearEst!$O$38/1.645","v":3.4388171729436965},{"$f":"DisabilityByAge!$O$38/1.645","v":9.8959395720970864},10.476406042318594,{"$f":"DisabilityByAge!$D$31-DisabilityByAgePrior5YearEst!$D$31","v":-18},1.7181464642827375,1.645]
[null,null,null,null,null,null,null,"Visual Disability - Under 5",null,"N",{"$f":"DisabilityByAgePrior5YearEst!$E$39/1.645","v":9.4567472255951639},{"$f":"DisabilityByAge!$E$39/1.645","v":9.4567472255951639},13.373860182370819,{"$f":"DisabilityByAge!$D$31-DisabilityByAgePrior5YearEst!$D$31","v":-18},1.3459090909090909,1.645]
[null,null,null,null,null,null,null,"Visual Disability - 5 to 17",null,{"$error":"#DIV/0!"},{"$f":"DisabilityByAgePrior5YearEst!$F$39/1.645","v":0},{"$f":"DisabilityByAge!$F$39/1.645","v":0},0,{"$f":"DisabilityByAge!$D$31-DisabilityByAgePrior5YearEst!$D$31","v":-18},{"$error":"#DIV/0!"},1.645]
[null,null,null,null,null,null,null,"Visual Disability - 18 to 34",null,"N",{"$f":"DisabilityByAgePrior5YearEst!$I$39/1.645","v":9.4567472255951639},{"$f":"DisabilityByAge!$I$39/1.645","v":10.823400495297786},14.372754307035732,{"$f":"DisabilityByAge!$D$31-DisabilityByAgePrior5YearEst!$D$31","v":-18},1.2523695608703658,1.645]
[null,null,null,null,null,null,null,"Visual Disability - 35 to 64",null,"N",{"$f":"DisabilityByAgePrior5YearEst!$K$39/1.645","v":6.9311575993868564},{"$f":"DisabilityByAge!$K$39/1.645","v":9.4567472255951639},{"$f":"SQRT((K140^2)+(L140^2))","v":12.248900717088077},{"$f":"DisabilityByAge!$D$31-DisabilityByAgePrior5YearEst!$D$31","v":-18},{"$f":"ABS((N140/M140))","v":1.469519625943962},1.645]
[null,null,null,null,null,null,null,"Visual Disability - 65 to 74",null,"N",{"$f":"DisabilityByAgePrior5YearEst!$M$39/1.645","v":8.2683711299303617},{"$f":"DisabilityByAge!$M$39/1.645","v":9.0371238585522828},12.248900717088077,{"$f":"DisabilityByAge!$D$31-DisabilityByAgePrior5YearEst!$D$31","v":-18},1.469519625943962,1.645]
[null,null,null,null,null,null,null,"Visual Disability - 75 and Over",null,"N",{"$f":"DisabilityByAgePrior5YearEst!$O$39/1.645","v":9.4567472255951639},{"$f":"DisabilityByAge!$O$39/1.645","v":9.4567472255951639},13.373860182370819,{"$f":"DisabilityByAge!$D$31-DisabilityByAgePrior5YearEst!$D$31","v":-18},1.3459090909090909,1.645]
[null,null,null,null,null,null,null,"Cognative Disability - 5 to 17",null,"Y",{"$f":"DisabilityByAgePrior5YearEst!$F$40/1.645","v":1.21580547112462},{"$f":"DisabilityByAge!$F$40/1.645","v":0},1.21580547112462,{"$f":"DisabilityByAge!$D$31-DisabilityByAgePrior5YearEst!$D$31","v":-18},14.805000000000001,1.645]
[null,null,null,null,null,null,null,"Cognative Disability - 18 to 34",null,"N",{"$f":"DisabilityByAgePrior5YearEst!$I$40/1.645","v":7.6894289608957553},{"$f":"DisabilityByAge!$I$40/1.645","v":13.346199635319239},15.402868643550063,{"$f":"DisabilityByAge!$D$31-DisabilityByAgePrior5YearEst!$D$31","v":-18},1.1686134847054923,1.645]
[null,null,null,null,null,null,null,"Cognative Disability - 35 to 64",null,{"$f":"IF(O144>P144,\"Y\",\"N\")","v":"N"},{"$f":"DisabilityByAgePrior5YearEst!$K$40/1.645","v":4.3836489671294698},{"$f":"DisabilityByAge!$K$40/1.645","v":9.0371238585522828},{"$f":"SQRT((K145^2)+(L145^2))","v":12.546971088480422},{"$f":"DisabilityByAge!$D$31-DisabilityByAgePrior5YearEst!$D$31","v":-18},{"$f":"ABS((N145/M145))","v":1.4346091875931788},1.645]
[null,null,null,null,null,null,null,"Cognative Disability - 65 to 74",null,"N",{"$f":"DisabilityByAgePrior5YearEst!$M$40/1.645","v":8.2683711299303617},{"$f":"DisabilityByAge!$M$40/1.645","v":9.4371882652036625},{"$f":"SQRT((K145^2)+(L145^2))","v":12.546971088480422},{"$f":"DisabilityByAge!$D$31-DisabilityByAgePrior5YearEst!$D$31","v":-18},{"$f":"ABS((N145/M145))","v":1.4346091875931788},1.645]
[null,null,null,null,null,null,null,"Cognative Disability - 75 and Over",null,"N",{"$f":"DisabilityByAgePrior5YearEst!$O$40/1.645","v":7.1153190946623868},{"$f":"DisabilityByAge!$O$40/1.645","v":9.0371238585522828},{"$f":"SQRT((K146^2)+(L146^2))","v":11.502059530957144},{"$f":"DisabilityByAge!$D$31-DisabilityByAgePrior5YearEst!$D$31","v":-18},{"$f":"ABS((N146/M146))","v":1.5649371272643839},1.645]
[null,null,null,null,null,null,null,"Amblatory Disability - 5 to 17",null,{"$error":"#DIV/0!"},{"$f":"DisabilityByAgePrior5YearEst!$F$41/1.645","v":0},{"$f":"DisabilityByAge!$F$41/1.645","v":0},{"$f":"SQRT((K147^2)+(L147^2))","v":0},{"$f":"DisabilityByAge!$D$31-DisabilityByAgePrior5YearEst!$D$31","v":-18},{"$f":"ABS((N147/M147))","v":{"$error":"#DIV/0!"}},1.645]
[null,null,null,null,null,null,null,"Amblatory Disability - 18 to 34",null,"N",{"$f":"DisabilityByAgePrior5YearEst!$I$41/1.645","v":7.9027355623100304},{"$f":"DisabilityByAge!$I$41/1.645","v":9.4567472255951639},{"$f":"SQRT((K148^2)+(L148^2))","v":12.324094184020238},{"$f":"DisabilityByAge!$D$31-DisabilityByAgePrior5YearEst!$D$31","v":-18},{"$f":"ABS((N148/M148))","v":1.4605535896779578},1.645]
[null,null,null,null,null,null,null,"Amblatory Disability - 35 to 64",null,"N",{"$f":"DisabilityByAgePrior5YearEst!$K$41/1.645","v":6.462094718987629},{"$f":"DisabilityByAge!$K$41/1.645","v":7.3453167012732958},{"$f":"SQRT((K150^2)+(L150^2))","v":15.23399888892604},{"$f":"DisabilityByAge!$D$31-DisabilityByAgePrior5YearEst!$D$31","v":-18},{"$f":"ABS((N150/M150))","v":1.1815676324543145},1.645]
[null,null,null,null,null,null,null,"Amblatory Disability - 65 to 74",null,"N",{"$f":"DisabilityByAgePrior5YearEst!$M$41/1.645","v":9.2991237329959606},{"$f":"DisabilityByAge!$M$41/1.645","v":12.06652476673508},{"$f":"SQRT((K150^2)+(L150^2))","v":15.23399888892604},{"$f":"DisabilityByAge!$D$31-DisabilityByAgePrior5YearEst!$D$31","v":-18},{"$f":"ABS((N150/M150))","v":1.1815676324543145},1.645]
[null,null,null,null,null,null,null,"Amblatory Disability - 75 and Over",null,"Y",{"$f":"DisabilityByAgePrior5YearEst!$O$41/1.645","v":3.0395136778115499},{"$f":"DisabilityByAge!$O$41/1.645","v":6.5473128354218888},{"$f":"SQRT((K151^2)+(L151^2))","v":7.2184450377130185},{"$f":"DisabilityByAge!$D$31-DisabilityByAgePrior5YearEst!$D$31","v":-18},{"$f":"ABS((N151/M151))","v":2.4936118382779631},1.645]
[null,null,null,null,null,null,null,"Self Care Disability - 5 to 17",null,{"$error":"#DIV/0!"},{"$f":"DisabilityByAgePrior5YearEst!$F$42/1.645","v":0},{"$f":"DisabilityByAge!$F$42/1.645","v":0},{"$f":"SQRT((K152^2)+(L152^2))","v":0},{"$f":"DisabilityByAge!$D$31-DisabilityByAgePrior5YearEst!$D$31","v":-18},{"$f":"ABS((N152/M152))","v":{"$error":"#DIV/0!"}},1.645]
[null,null,null,null,null,null,null,"Self Care Disability - 18 to 34",null,"N",{"$f":"DisabilityByAgePrior5YearEst!$I$42/1.645","v":9.4567472255951639},{"$f":"DisabilityByAge!$I$42/1.645","v":10.823400495297786},{"$f":"SQRT((K153^2)+(L153^2))","v":14.372754307035732},{"$f":"DisabilityByAge!$D$31-DisabilityByAgePrior5YearEst!$D$31","v":-18},{"$f":"ABS((N153/M153))","v":1.2523695608703658},1.645]
[null,null,null,null,null,null,null,"Self Care Disability - 35 to 64",null,"Y",{"$f":"DisabilityByAgePrior5YearEst!$K$42/1.645","v":4.6296493044765406},{"$f":"DisabilityByAge!$K$42/1.645","v":9.4567472255951639},{"$f":"SQRT((K155^2)+(L155^2))","v":10.062580764283798},{"$f":"DisabilityByAge!$D$31-DisabilityByAgePrior5YearEst!$D$31","v":-18},{"$f":"ABS((N155/M155))","v":1.7888055183506542},1.645]
[null,null,null,null,null,null,null,"Self Care Disability - 65 to 74",null,"Y",{"$f":"DisabilityByAgePrior5YearEst!$M$42/1.645","v":9.4567472255951639},{"$f":"DisabilityByAge!$M$42/1.645","v":3.4388171729436965},{"$f":"SQRT((K155^2)+(L155^2))","v":10.062580764283798},{"$f":"DisabilityByAge!$D$31-DisabilityByAgePrior5YearEst!$D$31","v":-18},{"$f":"ABS((N155/M155))","v":1.7888055183506542},1.645]
[null,null,null,null,null,null,null,"Self Care Disability - 75 and Over",null,"N",{"$f":"DisabilityByAgePrior5YearEst!$O$42/1.645","v":7.1153190946623868},{"$f":"DisabilityByAge!$O$42/1.645","v":9.0371238585522828},{"$f":"SQRT((K156^2)+(L156^2))","v":11.502059530957144},{"$f":"DisabilityByAge!$D$31-DisabilityByAgePrior5YearEst!$D$31","v":-18},{"$f":"ABS((N156/M156))","v":1.5649371272643839},1.645]
[null,null,null,null,null,null,null,"Independant Living Disability - 18 to 34",null,"N",{"$f":"DisabilityByAgePrior5YearEst!$I$43/1.645","v":8.155871042552425},{"$f":"DisabilityByAge!$I$43/1.645","v":7.6894289608957553},{"$f":"SQRT((K157^2)+(L157^2))","v":11.209172592453358},{"$f":"DisabilityByAge!$D$31-DisabilityByAgePrior5YearEst!$D$31","v":-18},{"$f":"ABS((N157/M157))","v":1.6058277140026023},1.645]
[null,null,null,null,null,null,null,"Independant Living Disability - 35 to 64",null,"N",{"$f":"DisabilityByAgePrior5YearEst!$K$43/1.645","v":5.2293770620319915},{"$f":"DisabilityByAge!$K$43/1.645","v":7.1153190946623868},{"$f":"SQRT((K159^2)+(L159^2))","v":10.992791076003115},{"$f":"DisabilityByAge!$D$31-DisabilityByAgePrior5YearEst!$D$31","v":-18},{"$f":"ABS((N159/M159))","v":1.6374367415472291},1.645]
[null,null,null,null,null,null,null,"Independant Living Disability - 65 to 74",null,"N",{"$f":"DisabilityByAgePrior5YearEst!$M$43/1.645","v":7.9260819516141634},{"$f":"DisabilityByAge!$M$43/1.645","v":7.61699944446302},{"$f":"SQRT((K159^2)+(L159^2))","v":10.992791076003115},{"$f":"DisabilityByAge!$D$31-DisabilityByAgePrior5YearEst!$D$31","v":-18},{"$f":"ABS((N159/M159))","v":1.6374367415472291},1.645]
[null,null,null,null,null,null,null,"Independant Living Disability - 75 and Over",null,"N",{"$f":"DisabilityByAgePrior5YearEst!$O$43/1.645","v":11.307644521421444},{"$f":"DisabilityByAge!$O$43/1.645","v":11.803336072308571},{"$f":"SQRT((K160^2)+(L160^2))","v":16.345689555925535},{"$f":"DisabilityByAge!$D$31-DisabilityByAgePrior5YearEst!$D$31","v":-18},1.1012077488939434,1.645]
[null,null,null,null,null,null,null,"No Disability - Under 5",null,"N",{"$f":"DisabilityByAgePrior5YearEst!$E$47/1.645","v":22.027563443153117},{"$f":"DisabilityByAge!$E$47/1.645","v":11.613965455649117},{"$f":"SQRT((K161^2)+(L161^2))","v":24.901761882387891},{"$f":"DisabilityByAge!$D$47-DisabilityByAgePrior5YearEst!$D$47","v":-18},0.72284041928498011,1.645]
[null,null,null,null,null,null,null,"No Disability - 5 to 17",null,"N",{"$f":"DisabilityByAgePrior5YearEst!$F$47/1.645","v":91.1854103343465},{"$f":"DisabilityByAge!$F$47/1.645","v":35.258358662613979},{"$f":"SQRT((K162^2)+(L162^2))","v":97.764671090454101},{"$f":"DisabilityByAge!$D$47-DisabilityByAgePrior5YearEst!$D$47","v":-18},0.18411558898762101,1.645]
[null,null,null,null,null,null,null,"No Disability - 18 to 34",null,"N",{"$f":"DisabilityByAgePrior5YearEst!$I$47/1.645","v":31.382150757787979},{"$f":"DisabilityByAge!$I$47/1.645","v":21.067140974058916},37.797669438808057,{"$f":"DisabilityByAge!$D$47-DisabilityByAgePrior5YearEst!$D$47","v":-18},0.47621983755217545,1.645]
[null,null,null,null,null,null,null,"No Disability - 35 to 64",null,"N",{"$f":"DisabilityByAgePrior5YearEst!$K$47/1.645","v":31.80905884972919},{"$f":"DisabilityByAge!$K$47/1.645","v":40.415246537616198},51.431589296869227,{"$f":"DisabilityByAge!$D$47-DisabilityByAgePrior5YearEst!$D$47","v":-18},0.34997946293477084,1.645]
[null,null,null,null,null,null,null,"No Disability - 65 to 74",null,{"$f":"IF(O165>P165,\"Y\",\"N\")","v":"N"},{"$f":"DisabilityByAgePrior5YearEst!$M$47/1.645","v":16.813758888680038},{"$f":"DisabilityByAge!$M$47/1.645","v":26.168076899733599},31.104191624233515,{"$f":"DisabilityByAge!$D$47-DisabilityByAgePrior5YearEst!$D$47","v":-18},0.57870013847188562,1.645]
[null,null,null,null,null,null,null,"No Disability - 75 and Over",null,"N",{"$f":"DisabilityByAgePrior5YearEst!$O$47/1.645","v":6.9311575993868564},{"$f":"DisabilityByAge!$O$47/1.645","v":13.862315198773713},15.498539554993265,{"$f":"DisabilityByAge!$D$47-DisabilityByAgePrior5YearEst!$D$47","v":-18},{"$f":"ABS((N166/M166))","v":1.1613997522883259},1.645]
[{"$f":"IF(F167>G167,\"Y\",\"N\")","v":"N"},null,null,null,null,null,null,"Renter Total:",null,"Y",{"$f":"'RentalHousingCost-Prior5Yr'!$F$52/1.645","v":135.56231003039514},{"$f":"RentalHousingCost!$F$52/1.645","v":175.07598784194528},221.42434694407464,{"$f":"'RentalHousingCost-Prior5Yr'!$E$52-RentalHousingCost!$E$52","v":-378},{"$f":"ABS((N167/M167))","v":1.7071293433484611},1.645]
["N",null,null,null,null,null,null,"Renter Less than 20.0 percent",null,"N",{"$f":"'RentalHousingCost-Prior5Yr'!$F$53/1.645","v":87.311849058226343},{"$f":"RentalHousingCost!$F$53/1.645","v":95.933138210717885},129.71709984779648,{"$f":"'RentalHousingCost-Prior5Yr'!$E$53-RentalHousingCost!$E$53","v":-153},1.1794898296332752,1.645]
["N",null,null,null,null,null,null,"Renter 20.0 to 24.9 percent",null,"N",{"$f":"'RentalHousingCost-Prior5Yr'!$F$54/1.645","v":51.063829787234042},{"$f":"RentalHousingCost!$F$54/1.645","v":75.98784194528875},91.551443658971294,{"$f":"'RentalHousingCost-Prior5Yr'!$E$54-RentalHousingCost!$E$54","v":-124},1.3544297614999872,1.645]
["N",null,null,null,null,null,null,"Renter 25.0 to 29.9 percent",null,"N",{"$f":"'RentalHousingCost-Prior5Yr'!$F$55/1.645","v":74.164133738601819},{"$f":"RentalHousingCost!$F$55/1.645","v":69.300911854103347},101.5033749045194,{"$f":"'RentalHousingCost-Prior5Yr'!$E$55-RentalHousingCost!$E$55","v":0},0,1.645]
["N",null,null,null,null,null,null,"Renter 30.0 to 34.9 percent",null,"N",{"$f":"'RentalHousingCost-Prior5Yr'!$F$56/1.645","v":125.42405045167106},{"$f":"RentalHousingCost!$F$56/1.645","v":140.64115867792432},188.44396500278913,{"$f":"'RentalHousingCost-Prior5Yr'!$E$56-RentalHousingCost!$E$56","v":-277},1.469932985096658,1.645]
["N",null,null,null,null,null,null,"Renter 35.0 to 39.9 percent",null,"N",{"$f":"'RentalHousingCost-Prior5Yr'!$F$57/1.645","v":120.4046478318815},{"$f":"RentalHousingCost!$F$57/1.645","v":150.38928861060938},192.65050570482438,{"$f":"'RentalHousingCost-Prior5Yr'!$E$57-RentalHousingCost!$E$57","v":-124},0.6436526057709423,1.645]
["N",null,null,null,null,null,null,"Renter 40.0 to 49.9 percent",null,"N",{"$f":"'RentalHousingCost-Prior5Yr'!$F$58/1.645","v":66.261398176291792},{"$f":"RentalHousingCost!$F$58/1.645","v":68.693009118541028},95.442665459620557,{"$f":"'RentalHousingCost-Prior5Yr'!$E$58-RentalHousingCost!$E$58","v":9},9.4297450271940267E-2,1.645]
["N",null,null,null,null,null,null,"Renter 50.0 percent or more",null,"N",{"$f":"'RentalHousingCost-Prior5Yr'!$F$59/1.645","v":141.85120838392746},{"$f":"RentalHousingCost!$F$59/1.645","v":156.52049391702369},211.23548550376063,{"$f":"'RentalHousingCost-Prior5Yr'!$E$59-RentalHousingCost!$E$59","v":-268},1.2687262244829067,1.645]
["N",null,null,null,null,null,null,"Renter Not computed",null,"N",{"$f":"'RentalHousingCost-Prior5Yr'!$F$60/1.645","v":100.53211591945292},{"$f":"RentalHousingCost!$F$60/1.645","v":133.7841867600398},{"$f":"SQRT((K175^2)+(L175^2))","v":167.34669090928429},{"$f":"'RentalHousingCost-Prior5Yr'!$E$60-RentalHousingCost!$E$60","v":-133},0.79475727471717361,1.645]
["N",null,null,null,null,null,null,"Renter Less than $10,000:",null,"N",{"$f":"'RentalHousingCost-Prior5Yr'!$I$52/1.645","v":68.693009118541028},{"$f":"RentalHousingCost!$I$52/1.645","v":70.516717325227958},{"$f":"SQRT((K176^2)+(L176^2))","v":98.444588089371706},{"$f":"'RentalHousingCost-Prior5Yr'!$H$52-RentalHousingCost!$H$52","v":98},0.99548387475634426,1.645]
["N",null,null,null,null,null,null,"Renter Less than 20.0 percent",null,"N",{"$f":"'RentalHousingCost-Prior5Yr'!$I$53/1.645","v":9.1185410334346511},{"$f":"RentalHousingCost!$I$53/1.645","v":6.6869300911854106},11.307644521421444,{"$f":"'RentalHousingCost-Prior5Yr'!$H$53-RentalHousingCost!$H$53","v":1},8.8435747878842369E-2,1.645]
["N",null,null,null,null,null,null,"Renter 20.0 to 24.9 percent",null,"N",{"$f":"'RentalHousingCost-Prior5Yr'!$I$54/1.645","v":10.334346504559271},{"$f":"RentalHousingCost!$I$54/1.645","v":10.94224924012158},15.050964623878356,{"$f":"'RentalHousingCost-Prior5Yr'!$H$54-RentalHousingCost!$H$54","v":0},0,1.645]
["N",null,null,null,null,null,null,"Renter 25.0 to 29.9 percent",null,"N",{"$f":"'RentalHousingCost-Prior5Yr'!$I$55/1.645","v":10.334346504559271},{"$f":"RentalHousingCost!$I$55/1.645","v":14.589665653495441},17.878955829608199,{"$f":"'RentalHousingCost-Prior5Yr'!$H$55-RentalHousingCost!$H$55","v":-15},0.83897516963263907,1.645]
["N",null,null,null,null,null,null,"Renter 30.0 to 34.9 percent",null,"N",{"$f":"'RentalHousingCost-Prior5Yr'!$I$56/1.645","v":17.226294608273257},{"$f":"RentalHousingCost!$I$56/1.645","v":19.424371195951924},25.962500308890728,{"$f":"'RentalHousingCost-Prior5Yr'!$H$56-RentalHousingCost!$H$56","v":-14},0.53923928101816021,1.645]
["N",null,null,null,null,null,null,"Renter 35.0 to 39.9 percent",null,"Y",{"$f":"'RentalHousingCost-Prior5Yr'!$I$57/1.645","v":65.116570654205219},{"$f":"RentalHousingCost!$I$57/1.645","v":40.693174398005013},76.78608087635773,{"$f":"'RentalHousingCost-Prior5Yr'!$H$57-RentalHousingCost!$H$57","v":151},1.966502239424653,1.645]
["N",null,null,null,null,null,null,"Renter 40.0 to 49.9 percent",null,"N",{"$f":"'RentalHousingCost-Prior5Yr'!$I$58/1.645","v":40.121580547112458},{"$f":"RentalHousingCost!$I$58/1.645","v":19.45288753799392},44.588743637427953,{"$f":"'RentalHousingCost-Prior5Yr'!$H$58-RentalHousingCost!$H$58","v":54},1.2110679870036123,1.645]
["N",null,null,null,null,null,null,"Renter 50.0 percent or more",null,"N",{"$f":"'RentalHousingCost-Prior5Yr'!$I$59/1.645","v":43.663330742505863},{"$f":"RentalHousingCost!$I$59/1.645","v":27.490380679866295},51.596584009539079,{"$f":"'RentalHousingCost-Prior5Yr'!$H$59-RentalHousingCost!$H$59","v":40},0.77524512073521912,1.645]
["N",null,null,null,null,null,null,"Renter Not computed",null,"N",{"$f":"'RentalHousingCost-Prior5Yr'!$I$60/1.645","v":51.287684176278304},{"$f":"RentalHousingCost!$I$60/1.645","v":35.742406312678661},{"$f":"SQRT((K184^2)+(L184^2))","v":62.513567784811954},{"$f":"'RentalHousingCost-Prior5Yr'!$H$60-RentalHousingCost!$H$60","v":97},1.5516631578907696,1.645]
["N",null,null,null,null,null,null,"Renter $10,000 to $19,999:",null,"N",{"$f":"'RentalHousingCost-Prior5Yr'!$K$52/1.645","v":67.477203647416417},{"$f":"RentalHousingCost!$K$52/1.645","v":61.398176291793312},{"$f":"SQRT((K185^2)+(L185^2))","v":91.229978976392616},{"$f":"'RentalHousingCost-Prior5Yr'!$J$52-RentalHousingCost!$J$52","v":28},0.30691665518464606,1.645]
["N",null,null,null,null,null,null,"Renter Less than 20.0 percent",null,"N",{"$f":"'RentalHousingCost-Prior5Yr'!$K$53/1.645","v":7.2948328267477205},{"$f":"RentalHousingCost!$K$53/1.645","v":13.373860182370821},15.23399888892604,{"$f":"'RentalHousingCost-Prior5Yr'!$J$53-RentalHousingCost!$J$53","v":-12},0.78771175496954304,1.645]
["N",null,null,null,null,null,null,"Renter 20.0 to 24.9 percent",null,"N",{"$f":"'RentalHousingCost-Prior5Yr'!$K$54/1.645","v":15.19756838905775},{"$f":"RentalHousingCost!$K$54/1.645","v":17.62917933130699},23.275610600701089,{"$f":"'RentalHousingCost-Prior5Yr'!$J$54-RentalHousingCost!$J$54","v":-1},4.2963427132170648E-2,1.645]
["N",null,null,null,null,null,null,"Renter 25.0 to 29.9 percent",null,"N",{"$f":"'RentalHousingCost-Prior5Yr'!$K$55/1.645","v":40.121580547112458},{"$f":"RentalHousingCost!$K$55/1.645","v":38.90577507598784},55.887391779021051,{"$f":"'RentalHousingCost-Prior5Yr'!$J$55-RentalHousingCost!$J$55","v":48},0.85886992525598926,1.645]
["N",null,null,null,null,null,null,"Renter 30.0 to 34.9 percent",null,"N",{"$f":"'RentalHousingCost-Prior5Yr'!$K$56/1.645","v":43.519212958286786},{"$f":"RentalHousingCost!$K$56/1.645","v":44.758322514771955},62.427792935879602,{"$f":"'RentalHousingCost-Prior5Yr'!$J$56-RentalHousingCost!$J$56","v":35},0.56064772361805193,1.645]
["N",null,null,null,null,null,null,"Renter 35.0 to 39.9 percent",null,"N",{"$f":"'RentalHousingCost-Prior5Yr'!$K$57/1.645","v":56.932290043658092},{"$f":"RentalHousingCost!$K$57/1.645","v":67.80772851319611},88.539108284048794,{"$f":"'RentalHousingCost-Prior5Yr'!$J$57-RentalHousingCost!$J$57","v":-14},0.15812221594874862,1.645]
["N",null,null,null,null,null,null,"Renter 40.0 to 49.9 percent",null,"N",{"$f":"'RentalHousingCost-Prior5Yr'!$K$58/1.645","v":12.76595744680851},{"$f":"RentalHousingCost!$K$58/1.645","v":23.100303951367781},26.393061818957335,{"$f":"'RentalHousingCost-Prior5Yr'!$J$58-RentalHousingCost!$J$58","v":-32},1.212439853303241,1.645]
["N",null,null,null,null,null,null,"Renter 50.0 percent or more",null,"N",{"$f":"'RentalHousingCost-Prior5Yr'!$K$59/1.645","v":45.352966452509392},{"$f":"RentalHousingCost!$K$59/1.645","v":50.367960818182034},67.777747402996241,{"$f":"'RentalHousingCost-Prior5Yr'!$J$59-RentalHousingCost!$J$59","v":3},4.4262314918234943E-2,1.645]
["N",null,null,null,null,null,null,"Renter Not computed",null,"N",{"$f":"'RentalHousingCost-Prior5Yr'!$K$60/1.645","v":55.482573661299135},{"$f":"RentalHousingCost!$K$60/1.645","v":63.751580399812283},{"$f":"SQRT((K193^2)+(L193^2))","v":84.513785760402513},{"$f":"'RentalHousingCost-Prior5Yr'!$J$60-RentalHousingCost!$J$60","v":18},0.21298300434712739,1.645]
["N",null,null,null,null,null,null,"Renter $20,000 to $34,999:",null,"N",{"$f":"'RentalHousingCost-Prior5Yr'!$M$52/1.645","v":93.00911854103343},{"$f":"RentalHousingCost!$M$52/1.645","v":120.97264437689969},{"$f":"SQRT((K194^2)+(L194^2))","v":152.59448489155776},{"$f":"'RentalHousingCost-Prior5Yr'!$L$52-RentalHousingCost!$L$52","v":-47},0.3080058891604166,1.645]
["N",null,null,null,null,null,null,"Renter Less than 20.0 percent",null,"N",{"$f":"'RentalHousingCost-Prior5Yr'!$M$53/1.645","v":10.334346504559271},{"$f":"RentalHousingCost!$M$53/1.645","v":24.316109422492399},26.421050227478091,{"$f":"'RentalHousingCost-Prior5Yr'!$L$53-RentalHousingCost!$L$53","v":-38},1.4382471428209813,1.645]
["N",null,null,null,null,null,null,"Renter 20.0 to 24.9 percent",null,"N",{"$f":"'RentalHousingCost-Prior5Yr'!$M$54/1.645","v":22.492401215805472},{"$f":"RentalHousingCost!$M$54/1.645","v":14.589665653495441},26.809820147355559,{"$f":"'RentalHousingCost-Prior5Yr'!$L$54-RentalHousingCost!$L$54","v":23},0.85789460255922867,1.645]
["N",null,null,null,null,null,null,"Renter 25.0 to 29.9 percent",null,"N",{"$f":"'RentalHousingCost-Prior5Yr'!$M$55/1.645","v":52.887537993920972},{"$f":"RentalHousingCost!$M$55/1.645","v":20.060790273556229},56.564361407674731,{"$f":"'RentalHousingCost-Prior5Yr'!$L$55-RentalHousingCost!$L$55","v":75},1.3259232162006498,1.645]
["N",null,null,null,null,null,null,"Renter 30.0 to 34.9 percent",null,"N",{"$f":"'RentalHousingCost-Prior5Yr'!$M$56/1.645","v":58.393479988672524},{"$f":"RentalHousingCost!$M$56/1.645","v":34.735670825924991},67.94383955087109,{"$f":"'RentalHousingCost-Prior5Yr'!$L$56-RentalHousingCost!$L$56","v":60},0.88308226907130616,1.645]
["N",null,null,null,null,null,null,"Renter 35.0 to 39.9 percent",null,"N",{"$f":"'RentalHousingCost-Prior5Yr'!$M$57/1.645","v":84.917288844483721},{"$f":"RentalHousingCost!$M$57/1.645","v":111.48014665605811},140.13839246671023,{"$f":"'RentalHousingCost-Prior5Yr'!$L$57-RentalHousingCost!$L$57","v":-142},1.0132840651339139,1.645]
["N",null,null,null,null,null,null,"Renter 40.0 to 49.9 percent",null,"N",{"$f":"'RentalHousingCost-Prior5Yr'!$M$58/1.645","v":36.474164133738604},{"$f":"RentalHousingCost!$M$58/1.645","v":38.297872340425535},52.887537993920972,{"$f":"'RentalHousingCost-Prior5Yr'!$L$58-RentalHousingCost!$L$58","v":45},0.85086206896551719,1.645]
["N",null,null,null,null,null,null,"Renter 50.0 percent or more",null,"N",{"$f":"'RentalHousingCost-Prior5Yr'!$M$59/1.645","v":68.848842796683243},{"$f":"RentalHousingCost!$M$59/1.645","v":51.703905592619861},86.101434412981462,{"$f":"'RentalHousingCost-Prior5Yr'!$L$59-RentalHousingCost!$L$59","v":105},1.2194918785716444,1.645]
["N",null,null,null,null,null,null,"Renter Not computed",null,"N",{"$f":"'RentalHousingCost-Prior5Yr'!$M$60/1.645","v":76.684948297841188},{"$f":"RentalHousingCost!$M$60/1.645","v":104.69525334346677},129.77548831769144,{"$f":"'RentalHousingCost-Prior5Yr'!$L$60-RentalHousingCost!$L$60","v":-187},1.4409500778931572,1.645]
["N",null,null,null,null,null,null,"Renter $35,000 to $49,999:",null,"N",{"$f":"'RentalHousingCost-Prior5Yr'!$O$52/1.645","v":54.10334346504559},{"$f":"RentalHousingCost!$O$52/1.645","v":95.440729483282681},109.70918201498831,{"$f":"'RentalHousingCost-Prior5Yr'!$N$52-RentalHousingCost!$N$52","v":-165},1.5039762121046343,1.645]
["N",null,null,null,null,null,null,"Renter Less than 20.0 percent",null,"N",{"$f":"'RentalHousingCost-Prior5Yr'!$O$53/1.645","v":29.787234042553191},{"$f":"RentalHousingCost!$O$53/1.645","v":17.62917933130699},34.613108438873574,{"$f":"'RentalHousingCost-Prior5Yr'!$N$53-RentalHousingCost!$N$53","v":44},1.2711947000571644,1.645]
["N",null,null,null,null,null,null,"Renter 20.0 to 24.9 percent",null,"Y",{"$f":"'RentalHousingCost-Prior5Yr'!$O$54/1.645","v":19.45288753799392},{"$f":"RentalHousingCost!$O$54/1.645","v":46.200607902735563},50.12894377650651,{"$f":"'RentalHousingCost-Prior5Yr'!$N$54-RentalHousingCost!$N$54","v":-91},1.8153185194906933,1.645]
["N",null,null,null,null,null,null,"Renter 25.0 to 29.9 percent",null,"N",{"$f":"'RentalHousingCost-Prior5Yr'!$O$55/1.645","v":35.258358662613979},{"$f":"RentalHousingCost!$O$55/1.645","v":41.337386018237083},54.33167895806524,{"$f":"'RentalHousingCost-Prior5Yr'!$N$55-RentalHousingCost!$N$55","v":-33},0.6073804570896908,1.645]
["N",null,null,null,null,null,null,"Renter 30.0 to 34.9 percent",null,"N",{"$f":"'RentalHousingCost-Prior5Yr'!$O$56/1.645","v":50.088381896934997},{"$f":"RentalHousingCost!$O$56/1.645","v":64.452025703607148},81.626647722123465,{"$f":"'RentalHousingCost-Prior5Yr'!$N$56-RentalHousingCost!$N$56","v":-80},0.98007209939992923,1.645]
["N",null,null,null,null,null,null,"Renter 35.0 to 39.9 percent",null,{"$f":"IF(O208>P208,\"Y\",\"N\")","v":"N"},{"$f":"'RentalHousingCost-Prior5Yr'!$O$57/1.645","v":35.378685779821183},{"$f":"RentalHousingCost!$O$57/1.645","v":69.995981074752322},78.428877169856307,{"$f":"'RentalHousingCost-Prior5Yr'!$N$57-RentalHousingCost!$N$57","v":-95},1.2112885384582901,1.645]
["N",null,null,null,null,null,null,"Renter 40.0 to 49.9 percent",null,"N",{"$f":"'RentalHousingCost-Prior5Yr'!$O$58/1.645","v":27.355623100303951},{"$f":"RentalHousingCost!$O$58/1.645","v":52.887537993920972},59.543444561633464,{"$f":"'RentalHousingCost-Prior5Yr'!$N$58-RentalHousingCost!$N$58","v":-34},0.57101164116910597,1.645]
["N",null,null,null,null,null,null,"Renter 50.0 percent or more",null,"N",{"$f":"'RentalHousingCost-Prior5Yr'!$O$59/1.645","v":77.444004997238949},{"$f":"RentalHousingCost!$O$59/1.645","v":117.33956369752812},140.59213035848995,{"$f":"'RentalHousingCost-Prior5Yr'!$N$59-RentalHousingCost!$N$59","v":-114},0.81085619592872094,1.645]
["N",null,null,null,null,null,null,"Renter Not computed",null,"N",{"$f":"'RentalHousingCost-Prior5Yr'!$O$60/1.645","v":22.434823206378034},{"$f":"RentalHousingCost!$O$60/1.645","v":45.851343399715688},51.04573423764311,{"$f":"'RentalHousingCost-Prior5Yr'!$N$60-RentalHousingCost!$N$60","v":-61},1.1950068093058446,1.645]
["N",null,null,null,null,null,null,"Renter $50,000 to $74,999:",null,"N",{"$f":"'RentalHousingCost-Prior5Yr'!$Q$52/1.645","v":75.379939209726444},{"$f":"RentalHousingCost!$Q$52/1.645","v":69.908814589665653},102.8074782911939,{"$f":"'RentalHousingCost-Prior5Yr'!$P$52-RentalHousingCost!$P$52","v":-49},0.47661902435940939,1.645]
["N",null,null,null,null,null,null,"Renter Less than 20.0 percent",null,"Y",{"$f":"'RentalHousingCost-Prior5Yr'!$Q$53/1.645","v":70.516717325227958},{"$f":"RentalHousingCost!$Q$53/1.645","v":5.4711246200607899},70.728640782460545,{"$f":"'RentalHousingCost-Prior5Yr'!$P$53-RentalHousingCost!$P$53","v":169},2.3894139365662603,1.645]
["N",null,null,null,null,null,null,"Renter 20.0 to 24.9 percent",null,"Y",{"$f":"'RentalHousingCost-Prior5Yr'!$Q$54/1.645","v":37.08206686930091},{"$f":"RentalHousingCost!$Q$54/1.645","v":6.6869300911854106},37.680163446350718,{"$f":"'RentalHousingCost-Prior5Yr'!$P$54-RentalHousingCost!$P$54","v":87},2.3089071819943459,1.645]
["N",null,null,null,null,null,null,"Renter 25.0 to 29.9 percent",null,"N",{"$f":"'RentalHousingCost-Prior5Yr'!$Q$55/1.645","v":10.334346504559271},{"$f":"RentalHousingCost!$Q$55/1.645","v":7.2948328267477205},12.649636502543958,{"$f":"'RentalHousingCost-Prior5Yr'!$P$55-RentalHousingCost!$P$55","v":-9},0.71148289503734097,1.645]
["N",null,null,null,null,null,null,"Renter 30.0 to 34.9 percent",null,"Y",{"$f":"'RentalHousingCost-Prior5Yr'!$Q$56/1.645","v":80.339814683018204},{"$f":"RentalHousingCost!$Q$56/1.645","v":11.307644521421444},81.131674751138604,{"$f":"'RentalHousingCost-Prior5Yr'!$P$56-RentalHousingCost!$P$56","v":247},3.0444336414555968,1.645]
["N",null,null,null,null,null,null,"Renter 35.0 to 39.9 percent",null,"N",{"$f":"'RentalHousingCost-Prior5Yr'!$Q$57/1.645","v":20.668693009118542},{"$f":"RentalHousingCost!$Q$57/1.645","v":13.373860182370821},24.618184475764849,{"$f":"'RentalHousingCost-Prior5Yr'!$P$57-RentalHousingCost!$P$57","v":0},0,1.645]
["N",null,null,null,null,null,null,"Renter 40.0 to 49.9 percent",null,"N",{"$f":"'RentalHousingCost-Prior5Yr'!$Q$58/1.645","v":10.334346504559271},{"$f":"RentalHousingCost!$Q$58/1.645","v":6.6869300911854106},12.309092237882425,{"$f":"'RentalHousingCost-Prior5Yr'!$P$58-RentalHousingCost!$P$58","v":0},0,1.645]
["N",null,null,null,null,null,null,"Renter 50.0 percent or more",null,"Y",{"$f":"'RentalHousingCost-Prior5Yr'!$Q$59/1.645","v":81.001756406747162},{"$f":"RentalHousingCost!$Q$59/1.645","v":13.136889230987421},82.060114548087483,{"$f":"'RentalHousingCost-Prior5Yr'!$P$59-RentalHousingCost!$P$59","v":247},3.0099884866143736,1.645]
["N",null,null,null,null,null,null,"Renter Not computed",null,"N",{"$f":"'RentalHousingCost-Prior5Yr'!$Q$60/1.645","v":17.899613208918488},{"$f":"RentalHousingCost!$Q$60/1.645","v":11.582102664594316},21.319973151064051,{"$f":"'RentalHousingCost-Prior5Yr'!$P$60-RentalHousingCost!$P$60","v":0},0,1.645]
["N",null,null,null,null,null,null,"Renter $75,000 to $99,999:",null,"Y",{"$f":"'RentalHousingCost-Prior5Yr'!$S$52/1.645","v":33.434650455927049},{"$f":"RentalHousingCost!$S$52/1.645","v":2.43161094224924},33.522956058266836,{"$f":"'RentalHousingCost-Prior5Yr'!$R$52-RentalHousingCost!$R$52","v":58},1.7301576835643369,1.645]
["N",null,null,null,null,null,null,"Renter Less than 20.0 percent",null,"N",{"$f":"'RentalHousingCost-Prior5Yr'!$S$53/1.645","v":24.924012158054712},{"$f":"RentalHousingCost!$S$53/1.645","v":6.6869300911854106},25.805453224062159,{"$f":"'RentalHousingCost-Prior5Yr'!$R$53-RentalHousingCost!$R$53","v":37},1.4338054704460508,1.645]
["N",null,null,null,null,null,null,"Renter 20.0 to 24.9 percent",null,"N",{"$f":"'RentalHousingCost-Prior5Yr'!$S$54/1.645","v":12.76595744680851},{"$f":"RentalHousingCost!$S$54/1.645","v":6.6869300911854106},14.411270019610575,{"$f":"'RentalHousingCost-Prior5Yr'!$R$54-RentalHousingCost!$R$54","v":13},0.90207178009362488,1.645]
["N",null,null,null,null,null,null,"Renter 25.0 to 29.9 percent",null,"N",{"$f":"'RentalHousingCost-Prior5Yr'!$S$55/1.645","v":10.334346504559271},{"$f":"RentalHousingCost!$S$55/1.645","v":6.6869300911854106},12.309092237882425,{"$f":"'RentalHousingCost-Prior5Yr'!$R$55-RentalHousingCost!$R$55","v":0},0,1.645]
["N",null,null,null,null,null,null,"Renter 30.0 to 34.9 percent",null,"N",{"$f":"'RentalHousingCost-Prior5Yr'!$S$56/1.645","v":29.849200479491593},{"$f":"RentalHousingCost!$S$56/1.645","v":11.582102664594316},32.017493209151837,{"$f":"'RentalHousingCost-Prior5Yr'!$R$56-RentalHousingCost!$R$56","v":50},1.5616463060795798,1.645]
["N",null,null,null,null,null,null,"Renter 35.0 to 39.9 percent",null,"N",{"$f":"'RentalHousingCost-Prior5Yr'!$S$57/1.645","v":20.668693009118542},{"$f":"RentalHousingCost!$S$57/1.645","v":13.373860182370821},24.618184475764849,{"$f":"'RentalHousingCost-Prior5Yr'!$R$57-RentalHousingCost!$R$57","v":0},0,1.645]
["N",null,null,null,null,null,null,"Renter 40.0 to 49.9 percent",null,"N",{"$f":"'RentalHousingCost-Prior5Yr'!$S$58/1.645","v":10.334346504559271},{"$f":"RentalHousingCost!$S$58/1.645","v":6.6869300911854106},12.309092237882425,{"$f":"'RentalHousingCost-Prior5Yr'!$R$58-RentalHousingCost!$R$58","v":0},0,1.645]
["N",null,null,null,null,null,null,"Renter 50.0 percent or more",null,"N",{"$f":"'RentalHousingCost-Prior5Yr'!$S$59/1.645","v":31.587552721620863},{"$f":"RentalHousingCost!$S$59/1.645","v":13.373860182370821},34.30209356757662,{"$f":"'RentalHousingCost-Prior5Yr'!$R$59-RentalHousingCost!$R$59","v":50},1.4576369777983906,1.645]
["N",null,null,null,null,null,null,"Renter Not computed",null,"N",{"$f":"'RentalHousingCost-Prior5Yr'!$S$60/1.645","v":17.899613208918488},{"$f":"RentalHousingCost!$S$60/1.645","v":11.582102664594316},21.319973151064051,{"$f":"'RentalHousingCost-Prior5Yr'!$R$60-RentalHousingCost!$R$60","v":0},0,1.645]
["N",null,null,null,null,null,null,"Renter $100,000 or more:",null,"N",{"$f":"'RentalHousingCost-Prior5Yr'!$U$52/1.645","v":25.531914893617021},{"$f":"RentalHousingCost!$U$52/1.645","v":6.0790273556230998},26.245633002945777,{"$f":"'RentalHousingCost-Prior5Yr'!$T$52-RentalHousingCost!$T$52","v":39},1.4859614929318981,1.645]
[{"$f":"IF(F231>G231,\"Y\",\"N\")","v":"N"},null,null,null,null,null,null,"Renter Less than 20.0 percent",null,"N",{"$f":"'RentalHousingCost-Prior5Yr'!$U$53/1.645","v":25.531914893617021},{"$f":"RentalHousingCost!$U$53/1.645","v":6.0790273556230998},26.245633002945777,{"$f":"'RentalHousingCost-Prior5Yr'!$T$53-RentalHousingCost!$T$53","v":39},{"$f":"ABS((N231/M231))","v":1.4859614929318981},1.645]
["N",null,null,null,null,null,null,"Renter 20.0 to 24.9 percent",null,"N",{"$f":"'RentalHousingCost-Prior5Yr'!$U$54/1.645","v":10.334346504559271},{"$f":"RentalHousingCost!$U$54/1.645","v":6.6869300911854106},12.309092237882425,{"$f":"'RentalHousingCost-Prior5Yr'!$T$54-RentalHousingCost!$T$54","v":0},0,1.645]
["N",null,null,null,null,null,null,"Renter 25.0 to 29.9 percent",null,"N",{"$f":"'RentalHousingCost-Prior5Yr'!$U$55/1.645","v":10.334346504559271},{"$f":"RentalHousingCost!$U$55/1.645","v":6.6869300911854106},12.309092237882425,{"$f":"'RentalHousingCost-Prior5Yr'!$T$55-RentalHousingCost!$T$55","v":0},0,1.645]
["N",null,null,null,null,null,null,"Renter 30.0 to 34.9 percent",null,"N",{"$f":"'RentalHousingCost-Prior5Yr'!$U$56/1.645","v":29.418975398329145},{"$f":"RentalHousingCost!$U$56/1.645","v":11.242092406630352},31.493820904531596,{"$f":"'RentalHousingCost-Prior5Yr'!$T$56-RentalHousingCost!$T$56","v":39},1.2383381526878612,1.645]
["N",null,null,null,null,null,null,"Renter 35.0 to 39.9 percent",null,"N",{"$f":"'RentalHousingCost-Prior5Yr'!$U$57/1.645","v":20.668693009118542},{"$f":"RentalHousingCost!$U$57/1.645","v":13.373860182370821},24.618184475764849,{"$f":"'RentalHousingCost-Prior5Yr'!$T$57-RentalHousingCost!$T$57","v":0},0,1.645]
["N",null,null,null,null,null,null,"Renter 40.0 to 49.9 percent",null,"N",{"$f":"'RentalHousingCost-Prior5Yr'!$U$58/1.645","v":10.334346504559271},{"$f":"RentalHousingCost!$U$58/1.645","v":6.6869300911854106},12.309092237882425,{"$f":"'RentalHousingCost-Prior5Yr'!$T$58-RentalHousingCost!$T$58","v":0},0,1.645]
["N",null,null,null,null,null,null,"Renter 50.0 percent or more",null,"N",{"$f":"'RentalHousingCost-Prior5Yr'!$U$59/1.645","v":31.181321831567562},{"$f":"RentalHousingCost!$U$59/1.645","v":13.080507471945296},33.81382124054317,{"$f":"'RentalHousingCost-Prior5Yr'!$T$59-RentalHousingCost!$T$59","v":39},1.1533745246526157,1.645]
["N",null,null,null,null,null,null,"Renter Not computed",null,"N",{"$f":"'RentalHousingCost-Prior5Yr'!$U$60/1.645","v":17.899613208918488},{"$f":"RentalHousingCost!$U$60/1.645","v":11.582102664594316},21.319973151064051,{"$f":"'RentalHousingCost-Prior5Yr'!$T$60-RentalHousingCost!$T$60","v":0},0,1.645]
[null,null,null,null,null,null,null,"Total Owner Housing",null,"Y",{"$f":"OwnerHousingCostPrior5Year!$F$50/1.645","v":24.316109422492399},{"$f":"OwnerHousingCost!$F$50/1.645","v":30.3951367781155},38.924767400807589,{"$f":"OwnerHousingCostPrior5Year!$E$50-OwnerHousingCost!$E$50","v":-66},1.695578532824596,1.645]
[null,null,null,null,null,null,null,"Monthly Costs Less than 20% of HH Income",null,"Y",{"$f":"OwnerHousingCostPrior5Year!$F$51/1.645","v":21.119699411599036},{"$f":"OwnerHousingCost!$F$51/1.645","v":27.910614670514278},35.000630201786706,{"$f":"OwnerHousingCostPrior5Year!$E$51-OwnerHousingCost!$E$51","v":-59},1.6856839336849478,1.645]
[null,null,null,null,null,null,null,"Monthly Costs 20% to 29.9% of HH Income",null,"N",{"$f":"OwnerHousingCostPrior5Year!$F$52/1.645","v":13.401463638327419},{"$f":"OwnerHousingCost!$F$52/1.645","v":15.62913085979628},20.588078081308328,{"$f":"OwnerHousingCostPrior5Year!$E$52-OwnerHousingCost!$E$52","v":-15},0.72857699202230641,1.645]
[null,null,null,null,null,null,null,"Monthly Costs Less Than 30% of HH Income",null,"Y",{"$f":"OwnerHousingCostPrior5Year!$F$53/1.645","v":25.012815333058946},{"$f":"OwnerHousingCost!$F$53/1.645","v":31.988625208323086},40.606810680035828,{"$f":"OwnerHousingCostPrior5Year!$E$53-OwnerHousingCost!$E$53","v":-74},1.8223543972238578,1.645]
[null,null,null,null,null,null,null,"Monthly Costs 30% or More of HH Income",null,"N",{"$f":"OwnerHousingCostPrior5Year!$F$54/1.645","v":18.31795644172567},{"$f":"OwnerHousingCost!$F$54/1.645","v":15.910337177267357},24.262859627325359,{"$f":"OwnerHousingCostPrior5Year!$E$54-OwnerHousingCost!$E$54","v":15},0.61822885803232674,1.645]
[null,null,null,null,null,null,null,"Monthly Costs 35% or More of HH Income",null,"N",{"$f":"OwnerHousingCostPrior5Year!$F$56/1.645","v":16.25500541899202},{"$f":"OwnerHousingCost!$F$56/1.645","v":13.808895673678476},21.328638046016817,{"$f":"OwnerHousingCostPrior5Year!$E$56-OwnerHousingCost!$E$56","v":12},0.56262382877471329,1.645]
[null,null,null,null,null,null,null,"Monthly Costs 50% or More of HH Income",null,"N",{"$f":"OwnerHousingCostPrior5Year!$F$57/1.645","v":9.4567472255951639},{"$f":"OwnerHousingCost!$F$57/1.645","v":5.7670717206718161},11.076514989841092,{"$f":"OwnerHousingCostPrior5Year!$E$57-OwnerHousingCost!$E$57","v":16},1.444497661464325,1.645]
[null,null,null,null,null,null,null,"Percent not computed",null,"N",{"$f":"OwnerHousingCostPrior5Year!$F$58/1.645","v":9.4567472255951639},{"$f":"OwnerHousingCost!$F$58/1.645","v":9.4567472255951639},13.373860182370819,{"$f":"OwnerHousingCostPrior5Year!$E$58-OwnerHousingCost!$E$58","v":-7},0.52340909090909093,1.645]
[null,null,null,null,null,null,null,"Owner Less than $20,000:",null,"Y",{"$f":"OwnerHousingCostPrior5Year!$I$50/1.645","v":13.373860182370821},{"$f":"OwnerHousingCost!$I$50/1.645","v":4.86322188449848},14.230638189324772,{"$f":"OwnerHousingCostPrior5Year!$H$50-OwnerHousingCost!$H$50","v":25},1.7567729336800897,1.645]
[null,null,null,null,null,null,null,"Owner Less than 20.0 percent",null,"N",{"$f":"OwnerHousingCostPrior5Year!$I$51/1.645","v":6.6869300911854106},{"$f":"OwnerHousingCost!$I$51/1.645","v":2.43161094224924},7.1153190946623859,{"$f":"OwnerHousingCostPrior5Year!$H$51-OwnerHousingCost!$H$51","v":-3},0.42162550408322153,1.645]
[null,null,null,null,null,null,null,"Owner 20.0 to 24.9 percent",null,"N",{"$f":"OwnerHousingCostPrior5Year!$I$52/1.645","v":6.6869300911854106},{"$f":"OwnerHousingCost!$I$52/1.645","v":1.8237082066869301},6.9311575993868573,{"$f":"OwnerHousingCostPrior5Year!$H$52-OwnerHousingCost!$H$52","v":-2},0.28855208835201263,1.645]
[null,null,null,null,null,null,null,"Owner 25.0 to 29.9 percent",null,"N",{"$f":"OwnerHousingCostPrior5Year!$I$53/1.645","v":9.4567472255951639},{"$f":"OwnerHousingCost!$I$53/1.645","v":3.0395136778115499},9.9332125461204814,{"$f":"OwnerHousingCostPrior5Year!$H$53-OwnerHousingCost!$H$53","v":-5},0.50336182547033104,1.645]
[null,null,null,null,null,null,null,"Owner 30.0 or more",null,"Y",{"$f":"OwnerHousingCostPrior5Year!$I$54/1.645","v":13.373860182370821},{"$f":"OwnerHousingCost!$I$54/1.645","v":4.2553191489361701},14.034524474912091,{"$f":"OwnerHousingCostPrior5Year!$H$54-OwnerHousingCost!$H$54","v":30},2.1375857838024763,1.645]
[null,null,null,null,null,null,null,"Owner $20,000 to $34,999:",null,"N",{"$f":"OwnerHousingCostPrior5Year!$J$50/1.645","v":28.571428571428569},{"$f":"OwnerHousingCost!$J$50/1.645","v":21.88449848024316},35.989690250737219,{"$f":"OwnerHousingCostPrior5Year!$K$50-OwnerHousingCost!$K$50","v":7},0.19450014577040187,1.645]
[null,null,null,null,null,null,null,"Owner Less than 20.0 percent",null,"N",{"$f":"OwnerHousingCostPrior5Year!$J$51/1.645","v":7.2948328267477205},{"$f":"OwnerHousingCost!$J$51/1.645","v":1.21580547112462},7.3954559638884136,{"$f":"OwnerHousingCostPrior5Year!$K$51-OwnerHousingCost!$K$51","v":10},1.3521816705865637,1.645]
[null,null,null,null,null,null,null,"Owner 20.0 to 24.9 percent",null,"N",{"$f":"OwnerHousingCostPrior5Year!$J$52/1.645","v":10.334346504559271},{"$f":"OwnerHousingCost!$J$52/1.645","v":4.86322188449848},11.421455457784763,{"$f":"OwnerHousingCostPrior5Year!$K$52-OwnerHousingCost!$K$52","v":9},0.78799064035798339,1.645]
[null,null,null,null,null,null,null,"Owner 25.0 to 29.9 percent",null,"N",{"$f":"OwnerHousingCostPrior5Year!$J$53/1.645","v":17.62917933130699},{"$f":"OwnerHousingCost!$J$53/1.645","v":6.0790273556230998},18.647856109638866,{"$f":"OwnerHousingCostPrior5Year!$K$53-OwnerHousingCost!$K$53","v":12.999755022224395},0.69711793923082499,1.645]
[null,null,null,null,null,null,null,"Owner 30.0 or more",null,"N",{"$f":"OwnerHousingCostPrior5Year!$J$54/1.645","v":10.94224924012158},{"$f":"OwnerHousingCost!$J$54/1.645","v":15.805471124620061},19.223572402239387,{"$f":"OwnerHousingCostPrior5Year!$K$54-OwnerHousingCost!$K$54","v":-3},0.15605840252930953,1.645]
[null,null,null,null,null,null,null,"Owner $35,000 to $49,999:",null,"N",{"$f":"OwnerHousingCostPrior5Year!$M$50/1.645","v":10.94224924012158},{"$f":"OwnerHousingCost!$M$50/1.645","v":11.550151975683891},15.910337177267355,{"$f":"OwnerHousingCostPrior5Year!$L$50-OwnerHousingCost!$L$50","v":2},0.12570443842369314,1.645]
[null,null,null,null,null,null,null,"Owner Less than 20.0 percent",null,"N",{"$f":"OwnerHousingCostPrior5Year!$M$51/1.645","v":8.5106382978723403},{"$f":"OwnerHousingCost!$M$51/1.645","v":6.6869300911854106},{"$f":"SQRT((K258^2)+(L258^2))","v":10.823400495297784},{"$f":"OwnerHousingCostPrior5Year!$L$51-OwnerHousingCost!$L$51","v":14},1.2934936673628852,1.645]
[null,null,null,null,null,null,null,"Owner 20.0 to 24.9 percent",null,"N",{"$f":"OwnerHousingCostPrior5Year!$M$52/1.645","v":3.0395136778115499},{"$f":"OwnerHousingCost!$M$52/1.645","v":7.2948328267477205},7.9027355623100304,{"$f":"OwnerHousingCostPrior5Year!$L$52-OwnerHousingCost!$L$52","v":-8},1.0123076923076924,1.645]
[null,null,null,null,null,null,null,"Owner 25.0 to 29.9 percent",null,"N",{"$f":"OwnerHousingCostPrior5Year!$M$53/1.645","v":9.0371238585522828},{"$f":"OwnerHousingCost!$M$53/1.645","v":9.8959395720970864},13.401463638327417,{"$f":"OwnerHousingCostPrior5Year!$L$53-OwnerHousingCost!$L$53","v":6},0.44771229187536982,1.645]
[null,null,null,null,null,null,null,"Owner 30.0 or more",null,"N",{"$f":"OwnerHousingCostPrior5Year!$M$54/1.645","v":6.0790273556230998},{"$f":"OwnerHousingCost!$M$54/1.645","v":8.5106382978723403},10.458754124063983,{"$f":"OwnerHousingCostPrior5Year!$L$54-OwnerHousingCost!$L$54","v":-4},0.38245473146716547,1.645]
[null,null,null,null,null,null,null,"Owner $50,000 to $74,999:",null,"N",{"$f":"OwnerHousingCostPrior5Year!$O$50/1.645","v":13.98176291793313},{"$f":"OwnerHousingCost!$O$50/1.645","v":17.62917933130699},22.500614618020361,{"$f":"OwnerHousingCostPrior5Year!$N$50-OwnerHousingCost!$N$50","v":-26},1.1555239908503228,1.645]
[null,null,null,null,null,null,null,"Owner Less than 20.0 percent",null,"N",{"$f":"OwnerHousingCostPrior5Year!$O$51/1.645","v":11.550151975683891},{"$f":"OwnerHousingCost!$O$51/1.645","v":13.373860182370821},17.671053925530252,{"$f":"OwnerHousingCostPrior5Year!$N$51-OwnerHousingCost!$N$51","v":-15},0.84884580530472786,1.645]
[null,null,null,null,null,null,null,"Owner 20.0 to 24.9 percent",null,"N",{"$f":"OwnerHousingCostPrior5Year!$O$52/1.645","v":6.0790273556230998},{"$f":"OwnerHousingCost!$O$52/1.645","v":10.94224924012158},12.517483454087538,{"$f":"OwnerHousingCostPrior5Year!$N$52-OwnerHousingCost!$N$52","v":-8},0.63910609743107982,1.645]
[null,null,null,null,null,null,null,"Owner 25.0 to 29.9 percent",null,"N",{"$f":"OwnerHousingCostPrior5Year!$O$53/1.645","v":13.052225260537318},{"$f":"OwnerHousingCost!$O$53/1.645","v":17.279842435929357},21.65533511313906,{"$f":"OwnerHousingCostPrior5Year!$N$53-OwnerHousingCost!$N$53","v":-23},1.0620939311183915,1.645]
[null,null,null,null,null,null,null,"Owner 30.0 or more",null,"N",{"$f":"OwnerHousingCostPrior5Year!$O$54/1.645","v":4.86322188449848},{"$f":"OwnerHousingCost!$O$54/1.645","v":5.4711246200607899},7.3201182849801185,{"$f":"OwnerHousingCostPrior5Year!$N$54-OwnerHousingCost!$N$54","v":-3},0.40982944307820679,1.645]
[null,null,null,null,null,null,null,"Owner $75,000 or more",null,"Y",{"$f":"OwnerHousingCostPrior5Year!$Q$50/1.645","v":13.98176291793313},{"$f":"OwnerHousingCost!$Q$50/1.645","v":23.100303951367781},27.002106157462382,{"$f":"OwnerHousingCostPrior5Year!$P$50-OwnerHousingCost!$P$50","v":-71},2.629424519182487,1.645]
[null,null,null,null,null,null,null,"Owner Less than 20.0 percent",null,"Y",{"$f":"OwnerHousingCostPrior5Year!$Q$51/1.645","v":12.1580547112462},{"$f":"OwnerHousingCost!$Q$51/1.645","v":19.45288753799392},22.939771749681711,{"$f":"OwnerHousingCostPrior5Year!$P$51-OwnerHousingCost!$P$51","v":-65},2.833506832992001,1.645]
[null,null,null,null,null,null,null,"Owner 20.0 to 24.9 percent",null,"N",{"$f":"OwnerHousingCostPrior5Year!$Q$52/1.645","v":5.4711246200607899},{"$f":"OwnerHousingCost!$Q$52/1.645","v":7.9027355623100304},9.6117862011196937,{"$f":"OwnerHousingCostPrior5Year!$P$52-OwnerHousingCost!$P$52","v":-6},0.6242336101172381,1.645]
[null,null,null,null,null,null,null,"Owner 25.0 to 29.9 percent",null,"Y",{"$f":"OwnerHousingCostPrior5Year!$Q$53/1.645","v":13.332347841617818},{"$f":"OwnerHousingCost!$Q$53/1.645","v":20.996858406286375},24.872063885080589,{"$f":"OwnerHousingCostPrior5Year!$P$53-OwnerHousingCost!$P$53","v":-71},2.8546082998198261,1.645]
[null,null,null,null,null,null,null,"Owner 30.0 or more",null,"N",{"$f":"OwnerHousingCostPrior5Year!$Q$54/1.645","v":6.0790273556230998},{"$f":"OwnerHousingCost!$Q$54/1.645","v":7.2948328267477205},9.4957442868166009,{"$f":"OwnerHousingCostPrior5Year!$P$54-OwnerHousingCost!$P$54","v":0},0,1.645]

{"sheet":"OwnerHousingCost","index":18,"n_rows":112,"n_cols":17,"rows_kept":112,"cut":false,"hidden":true,"merged":[]}
[]
[null,null,"HIDE THIS COLUMN",{"$f":"CntyDataLink!$A35","v":"Acworth"}]
[null,null,null,"OWNER HOUSING COST CHARACTERISTICS"]
[]
[]
[]
[]
[]
[]
[]
[]
[]
[]
[]
[]
[]
[]
[]
[]
[]
[]
[]
[]
[]
[]
[]
[]
[]
[]
[]
[]
[]
[]
[]
[]
[]
[null,null,null,"Income in 2019 Inflation Adjusted Dollars"]
[null,null,null,"Source: 2015-2019 American Community Survey Table B25106"]
[null,null,null,"Data from the American Community Survey are estimates."]
[]
[]
[null,null,null,{"$f":"CntyDataLink!A$35","v":"Acworth"}]
[]
[null,null,null,{"$f":"D3","v":"OWNER HOUSING COST CHARACTERISTICS"}]
[]
[null,null,null,"Owner Households by "]
[null,null,null,"Selected Monthly Housing Costs as a Percent of 2019 Household Income",null,null,null,"By Household Income"]
[null,null,"H73RenterOccHU",null,"Specified Owner Occ Housing Units","Margin of Error Owner Occ Housing Units",null,"Less than $20,000",{"$f":"\"Margin of Error \"&H48","v":"Margin of Error Less than $20,000"},"$20,000 to $34,999",{"$f":"\"Margin of Error \"&J48","v":"Margin of Error $20,000 to $34,999"},"$35,000 to $49,999",{"$f":"\"Margin of Error \"&L48","v":"Margin of Error $35,000 to $49,999"},"$50,000 to $74,999",{"$f":"\"Margin of Error \"&N48","v":"Margin of Error $50,000 to $74,999"},"$75,000 or More",{"$f":"\"Margin of Error \"&P48","v":"Margin of Error $75,000 or More"}]
[]
[null,null,null,"Total Households",{"$f":"CntyDataLink!$BF144","v":340},{"$f":"CntyDataLink!$BG$144","v":50},null,{"$f":"CntyDataLink!$BZ$144","v":15},{"$f":"CntyDataLink!$CA$144","v":8},{"$f":"CntyDataLink!$CH$144","v":36},{"$f":"CntyDataLink!$CI$144","v":17},{"$f":"CntyDataLink!$CP$144","v":40},{"$f":"CntyDataLink!$CQ$144","v":19},{"$f":"CntyDataLink!$CX$144","v":89},{"$f":"CntyDataLink!$CY$144","v":29},{"$f":"CntyDataLink!$DF$144","v":153},{"$f":"CntyDataLink!$DG$144","v":38}]
[null,null,null,"Monthly Costs Less than 20% of HH Income",{"$f":"CntyDataLink!$BH$144","v":187},{"$f":"CntyDataLink!$BI$144","v":45.912961132995989},null,{"$f":"CntyDataLink!$CB$144","v":3},{"$f":"CntyDataLink!$CC$144","v":4},{"$f":"CntyDataLink!CJ$144","v":2},{"$f":"CntyDataLink!CK$144","v":3},{"$f":"CntyDataLink!CR$144","v":12},{"$f":"CntyDataLink!CS$144","v":11},{"$f":"CntyDataLink!CZ$144","v":52},{"$f":"CntyDataLink!DA$144","v":22},{"$f":"CntyDataLink!DH$144","v":118},{"$f":"CntyDataLink!DI$144","v":32}]
[null,null,null,"Monthly Costs 20% to 29.9% of HH Income",{"$f":"CntyDataLink!$BJ$144","v":70},{"$f":"CntyDataLink!$BK$144","v":25.709920264364882},null,{"$f":"CntyDataLink!$CD$144","v":2},{"$f":"CntyDataLink!$CE$144","v":3},{"$f":"CntyDataLink!CL$144","v":8},{"$f":"CntyDataLink!CM$144","v":7},{"$f":"CntyDataLink!CT$144","v":12},{"$f":"CntyDataLink!CU$144","v":12},{"$f":"CntyDataLink!DB$144","v":24},{"$f":"CntyDataLink!DC$144","v":18},{"$f":"CntyDataLink!DJ$144","v":24},{"$f":"CntyDataLink!DK$144","v":13}]
[null,null,null,"Monthly Costs Less Than 30% of HH Income",{"$f":"CntyDataLink!$BL$144","v":257},{"$f":"CntyDataLink!$BM$144","v":52.621288467691478},null,{"$f":"H52+H51","v":5},{"$f":"SQRT((I52^2)+(I51^2))","v":5},{"$f":"J52+J51","v":10},{"$f":"SQRT((K52^2)+(K51^2))","v":7.6157731058639087},{"$f":"L52+L51","v":24},{"$f":"SQRT((M52^2)+(M51^2))","v":16.278820596099706},{"$f":"N52+N51","v":76},{"$f":"SQRT((O52^2)+(O51^2))","v":28.42534080710379},{"$f":"P52+P51","v":142},{"$f":"SQRT((Q52^2)+(Q51^2))","v":34.539832078341085}]
[null,null,null,"Monthly Costs 30% or More of HH Income",{"$f":"CntyDataLink!$BN$144","v":76},{"$f":"CntyDataLink!$BO$144","v":26.172504656604801},null,{"$f":"CntyDataLink!$CF$144","v":10},{"$f":"CntyDataLink!$CG$144","v":7},{"$f":"CntyDataLink!CN$144","v":26},{"$f":"CntyDataLink!CO$144","v":16},{"$f":"CntyDataLink!CV$144","v":16},{"$f":"CntyDataLink!CW$144","v":14},{"$f":"CntyDataLink!DD$144","v":13},{"$f":"CntyDataLink!DE$144","v":9},{"$f":"CntyDataLink!$DL$144","v":11},{"$f":"CntyDataLink!$DM$144","v":12}]
[]
[null,null,null,"Monthly Costs 35% or More of HH Income",{"$f":"CntyDataLink!$BT$144","v":57},{"$f":"CntyDataLink!$BU$144","v":22.715633383201094},null,"NA","NA","NA","NA","NA","NA","NA","NA","NA","NA"]
[null,null,null,"Monthly Costs 50% or More of HH Income",{"$f":"CntyDataLink!$BV$144","v":13},{"$f":"CntyDataLink!$BW$144","v":9.4868329805051381},null,"NA","NA","NA","NA","NA","NA","NA","NA","NA","NA"]
[null,null,null,"Percent not computed",{"$f":"CntyDataLink!$BX$144","v":7},{"$f":"CntyDataLink!$BY$144","v":15.556349186104045},null,"NA","NA","NA","NA","NA","NA","NA","NA","NA","NA"]
[]
[null,null,null,"Percent of Owner Households Paying ",null,null,null,"By Household Income"]
[null,null,null,{"$f":"D53","v":"Monthly Costs Less Than 30% of HH Income"},{"$f":"E53/E$50","v":0.75588235294117645},null,null,{"$f":"H53/H$50","v":0.33333333333333331},null,{"$f":"J53/J$50","v":0.27777777777777779},null,{"$f":"L53/L$50","v":0.6},null,{"$f":"N53/N$50","v":0.8539325842696629},null,{"$f":"P53/P$50","v":0.92810457516339873}]
[null,null,null,{"$f":"D54","v":"Monthly Costs 30% or More of HH Income"},{"$f":"E54/E$50","v":0.22352941176470589},null,null,{"$f":"H54/H50","v":0.66666666666666663},null,{"$f":"J54/J50","v":0.72222222222222221},null,{"$f":"L54/L50","v":0.4},null,{"$f":"N54/N50","v":0.14606741573033707},null,{"$f":"P54/P50","v":7.1895424836601302E-2}]
[]
[null,null,null,"Monthly Costs 35% or More of HH Income",{"$f":"E56/E$50","v":0.1676470588235294},null,null,"NA","NA","NA","NA","NA","NA","NA","NA","NA","NA"]
[null,null,null,"Monthly Costs 50% or More of HH Income",{"$f":"E57/E$50","v":3.8235294117647062E-2},null,null,"NA","NA","NA","NA","NA","NA","NA","NA","NA","NA"]
[null,null,null,"Percent not computed",{"$f":"E58/$E$50","v":2.0588235294117647E-2},null,null,"NA","NA","NA","NA","NA","NA","NA","NA","NA","NA"]
[]
[null,null,null,{"$f":"D37","v":"Income in 2019 Inflation Adjusted Dollars"}]
[null,null,null,"Source: Source: 2015-2019 American Community Survey Table B25091; B25106",null,null,null,null,"NA indicates that the American Community Survey does not provide that data."]
[null,null,null,"Data from the American Community Survey are estimates."]
[]
[]
[null,null,"H62ROHUGRent250to299",{"$f":"D3","v":"OWNER HOUSING COST CHARACTERISTICS"}]
[null,null,"H62ROHUGRent300to349"]
[null,null,"H62ROHUGRent350to399","Value of Owner Occupied Housing Units"]
[null,null,"H62ROHUGRent400to449"]
[null,null,"H62ROHUGRent450to499","Owner Occupied Housing Units",{"$f":"CntyDataLink!$B$144","v":340},{"$f":"CntyDataLink!$C$144","v":50}]
[null,null,"H62ROHUGRent500to549"]
[null,null,"H62ROHUGRent550to599","Value","Housing Units","Margin of Error"]
[null,null,"H62ROHUGRent600to649","Less than $10,000",{"$f":"CntyDataLink!$D$144","v":0},{"$f":"CntyDataLink!$E$144","v":11}]
[null,null,"H62ROHUGRent650to699","$10,000 to $14,999",{"$f":"CntyDataLink!$F$144","v":3},{"$f":"CntyDataLink!$G$144","v":4}]
[null,null,"H62ROHUGRent700to749","$15,000 to $19,999",{"$f":"CntyDataLink!$H$144","v":2},{"$f":"CntyDataLink!$I$144","v":3}]
[null,null,"H62ROHUGRent750to799","$20,000 to $24,999",{"$f":"CntyDataLink!$J$144","v":0},{"$f":"CntyDataLink!$K$144","v":11}]
[null,null,"H62ROHUGRent800to899","$25,000 to $29,999",{"$f":"CntyDataLink!$L$144","v":0},{"$f":"CntyDataLink!$M$144","v":11}]
[null,null,"H62ROHUGRent900to999","$30,000 to $34,999",{"$f":"CntyDataLink!$N$144","v":0},{"$f":"CntyDataLink!$O$144","v":11}]
[null,null,"H62ROHUGRent1000to1249","$35,000 to $39,999",{"$f":"CntyDataLink!$P$144","v":0},{"$f":"CntyDataLink!$Q$144","v":11}]
[null,null,"H62ROHUGRent1250to1499","$40,000 to $49,999",{"$f":"CntyDataLink!$R$144","v":7},{"$f":"CntyDataLink!$S$144","v":11}]
[null,null,"H62ROHUGRent1500to1999","$50,000 to $59,999",{"$f":"CntyDataLink!$T$144","v":0},{"$f":"CntyDataLink!$U$144","v":11}]
[null,null,"H62ROHUGRent2000>","$60,000 to $69,999",{"$f":"CntyDataLink!$V$144","v":6},{"$f":"CntyDataLink!$W$144","v":5}]
[null,null,"H62ROHUNoGRent","$70,000 to $79,999",{"$f":"CntyDataLink!$X$144","v":8},{"$f":"CntyDataLink!$Y$144","v":10}]
[null,null,"H63MedianGrossRnt","$80,000 to $89,999",{"$f":"CntyDataLink!$Z$144","v":5},{"$f":"CntyDataLink!$AA$144","v":5}]
[null,null,null,"$90,000 to $99,999",{"$f":"CntyDataLink!$AB$144","v":5},{"$f":"CntyDataLink!$AC$144","v":5}]
[null,null,null,"$100,000 to $124,999",{"$f":"CntyDataLink!$AD$144","v":47},{"$f":"CntyDataLink!$AE$144","v":24}]
[null,null,null,"$125,000 to $149,999",{"$f":"CntyDataLink!$AF$144","v":25},{"$f":"CntyDataLink!$AG$144","v":14}]
[null,null,null,"$150,000 to $174,999",{"$f":"CntyDataLink!$AH$144","v":58},{"$f":"CntyDataLink!$AI$144","v":23}]
[null,null,null,"$175,000 to $199,999",{"$f":"CntyDataLink!$AJ$144","v":25},{"$f":"CntyDataLink!$AK$144","v":17}]
[null,null,null,"$200,000 to $249,999",{"$f":"CntyDataLink!$AL$144","v":44},{"$f":"CntyDataLink!$AM$144","v":23}]
[null,null,null,"$250,000 to $299,999",{"$f":"CntyDataLink!$AN$144","v":47},{"$f":"CntyDataLink!$AO$144","v":21}]
[null,null,null,"$300,000 to $399,999",{"$f":"CntyDataLink!$AP$144","v":21},{"$f":"CntyDataLink!$AQ$144","v":16}]
[null,null,null,"$400,000 to $499,999",{"$f":"CntyDataLink!$AR$144","v":26},{"$f":"CntyDataLink!$AS$144","v":19}]
[null,null,null,"$500,000 to $749,999",{"$f":"CntyDataLink!$AT$144","v":7},{"$f":"CntyDataLink!$AU$144","v":6}]
[null,null,null,"$750,000 to $999,999",{"$f":"CntyDataLink!$AV$144","v":2},{"$f":"CntyDataLink!$AW$144","v":3}]
[null,null,null,"$1,000,000 to $1,499,999",{"$f":"CntyDataLink!$AX$144","v":2},{"$f":"CntyDataLink!$AY$144","v":3}]
[null,null,null,"$1,500,000 to $1,999,999",{"$f":"CntyDataLink!$AZ$144","v":0},{"$f":"CntyDataLink!$BA$144","v":11}]
[null,null,null,"$2,000,000 or more",{"$f":"CntyDataLink!$BB$144","v":0},{"$f":"CntyDataLink!$BC$144","v":11}]
[]
[null,null,null,"Median Value",{"$f":"CntyDataLink!$BD$144","v":179000},{"$f":"CntyDataLink!$BE$144","v":24139}]
[]
[]
[]
[null,null,null,"Source: 2015-2019 American Community Survey Tables B25075 and B25077"]
[null,null,null,"Data from the American Community Survey are estimates."]

{"sheet":"OwnerHousingCostPrior5Year","index":19,"n_rows":70,"n_cols":17,"rows_kept":70,"cut":false,"hidden":true,"merged":[]}
[]
[null,null,"HIDE THIS COLUMN",{"$f":"CntyDataLink!$A35","v":"Acworth"}]
[null,null,null,"OWNER HOUSING COST CHARACTERISTICS"]
[]
[]
[]
[]
[]
[]
[]
[]
[]
[]
[]
[]
[]
[]
[]
[]
[]
[]
[]
[]
[]
[]
[]
[]
[]
[]
[]
[]
[]
[]
[]
[]
[]
[null,null,null,"Income in 2014 Inflation Adjusted Dollars"]
[null,null,null,"Source: 2010-2014 American Community Survey Table B25106"]
[null,null,null,"Data from the American Community Survey are estimates."]
[]
[]
[null,null,null,{"$f":"CntyDataLinkPrior5YearEstimates!$A$108","v":"Acworth"}]
[]
[null,null,null,{"$f":"D3","v":"OWNER HOUSING COST CHARACTERISTICS"}]
[]
[null,null,null,"Owner Households by "]
[null,null,null,"Selected Monthly Housing Costs as a Percent of 2014 Household Income",null,null,null,"By Household Income"]
[null,null,"H73RenterOccHU",null,"Specified Owner Occ Housing Units","Margin of Error Owner Occ Housing Units",null,"Less than $20,000",{"$f":"\"Margin of Error \"&H48","v":"Margin of Error Less than $20,000"},"$20,000 to $34,999",{"$f":"\"Margin of Error \"&J48","v":"Margin of Error $20,000 to $34,999"},"$35,000 to $49,999",{"$f":"\"Margin of Error \"&L48","v":"Margin of Error $35,000 to $49,999"},"$50,000 to $74,999",{"$f":"\"Margin of Error \"&N48","v":"Margin of Error $50,000 to $74,999"},"$75,000 or More",{"$f":"\"Margin of Error \"&P48","v":"Margin of Error $75,000 or More"}]
[]
[null,null,null,"Total Households",{"$f":"CntyDataLinkPrior5YearEstimates!$BF144","v":274},{"$f":"CntyDataLinkPrior5YearEstimates!$BG$144","v":40},null,{"$f":"CntyDataLinkPrior5YearEstimates!$BZ$144","v":40},{"$f":"CntyDataLinkPrior5YearEstimates!$CA$144","v":22},{"$f":"CntyDataLinkPrior5YearEstimates!$CH$144","v":47},{"$f":"CntyDataLinkPrior5YearEstimates!$CI$144","v":24},{"$f":"CntyDataLinkPrior5YearEstimates!$CP$144","v":42},{"$f":"CntyDataLinkPrior5YearEstimates!$CQ$144","v":18},{"$f":"CntyDataLinkPrior5YearEstimates!$CX$144","v":63},{"$f":"CntyDataLinkPrior5YearEstimates!$CY$144","v":23},{"$f":"CntyDataLinkPrior5YearEstimates!$DF$144","v":82},{"$f":"CntyDataLinkPrior5YearEstimates!$DG$144","v":23}]
[null,null,null,"Monthly Costs Less than 20% of HH Income",{"$f":"CntyDataLinkPrior5YearEstimates!$BH$144","v":128},{"$f":"CntyDataLinkPrior5YearEstimates!$BI$144","v":34.741905532080416},null,{"$f":"CntyDataLinkPrior5YearEstimates!$CB$144","v":0},{"$f":"CntyDataLinkPrior5YearEstimates!$CC$144","v":11},{"$f":"CntyDataLinkPrior5YearEstimates!CJ$144","v":12},{"$f":"CntyDataLinkPrior5YearEstimates!CK$144","v":13},{"$f":"CntyDataLinkPrior5YearEstimates!CR$144","v":26},{"$f":"CntyDataLinkPrior5YearEstimates!CS$144","v":14},{"$f":"CntyDataLinkPrior5YearEstimates!CZ$144","v":37},{"$f":"CntyDataLinkPrior5YearEstimates!DA$144","v":19},{"$f":"CntyDataLinkPrior5YearEstimates!DH$144","v":53},{"$f":"CntyDataLinkPrior5YearEstimates!DI$144","v":20}]
[null,null,null,"Monthly Costs 20% to 29.9% of HH Income",{"$f":"CntyDataLinkPrior5YearEstimates!$BJ$144","v":55},{"$f":"CntyDataLinkPrior5YearEstimates!$BK$144","v":22.045407685048605},null,{"$f":"CntyDataLinkPrior5YearEstimates!$CD$144","v":0},{"$f":"CntyDataLinkPrior5YearEstimates!$CE$144","v":11},{"$f":"CntyDataLinkPrior5YearEstimates!CL$144","v":17},{"$f":"CntyDataLinkPrior5YearEstimates!CM$144","v":16},{"$f":"CntyDataLinkPrior5YearEstimates!CT$144","v":4},{"$f":"CntyDataLinkPrior5YearEstimates!CU$144","v":5},{"$f":"CntyDataLinkPrior5YearEstimates!DB$144","v":16},{"$f":"CntyDataLinkPrior5YearEstimates!DC$144","v":10},{"$f":"CntyDataLinkPrior5YearEstimates!DJ$144","v":18},{"$f":"CntyDataLinkPrior5YearEstimates!DK$144","v":9}]
[null,null,null,"Monthly Costs Less Than 30% of HH Income",{"$f":"CntyDataLinkPrior5YearEstimates!$BL$144","v":183},{"$f":"CntyDataLinkPrior5YearEstimates!$BM$144","v":41.146081222881968},null,{"$f":"H52+H51","v":0},{"$f":"SQRT((I52^2)+(I51^2))","v":15.556349186104045},{"$f":"J52+J51","v":29},{"$f":"SQRT((K52^2)+(K51^2))","v":20.615528128088304},{"$f":"L52+L51","v":30},{"$f":"SQRT((M52^2)+(M51^2))","v":14.866068747318506},{"$f":"N52+N51","v":53},{"$f":"SQRT((O52^2)+(O51^2))","v":21.470910553583888},{"$f":"P52+P51","v":71},{"$f":"SQRT((Q52^2)+(Q51^2))","v":21.931712199461309}]
[null,null,null,"Monthly Costs 30% or More of HH Income",{"$f":"CntyDataLinkPrior5YearEstimates!$BN$144","v":91},{"$f":"CntyDataLinkPrior5YearEstimates!$BO$144","v":30.133038346638727},null,{"$f":"CntyDataLinkPrior5YearEstimates!$CF$144","v":40},{"$f":"CntyDataLinkPrior5YearEstimates!$CG$144","v":22},{"$f":"CntyDataLinkPrior5YearEstimates!CN$144","v":18},{"$f":"CntyDataLinkPrior5YearEstimates!CO$144","v":13},{"$f":"CntyDataLinkPrior5YearEstimates!CV$144","v":12},{"$f":"CntyDataLinkPrior5YearEstimates!CW$144","v":10},{"$f":"CntyDataLinkPrior5YearEstimates!DD$144","v":10},{"$f":"CntyDataLinkPrior5YearEstimates!DE$144","v":8},{"$f":"CntyDataLinkPrior5YearEstimates!$DL$144","v":11},{"$f":"CntyDataLinkPrior5YearEstimates!$DM$144","v":10}]
[]
[null,null,null,"Monthly Costs 35% or More of HH Income",{"$f":"CntyDataLinkPrior5YearEstimates!$BT$144","v":69},{"$f":"CntyDataLinkPrior5YearEstimates!$BU$144","v":26.739483914241873},null,"NA","NA","NA","NA","NA","NA","NA","NA","NA","NA"]
[null,null,null,"Monthly Costs 50% or More of HH Income",{"$f":"CntyDataLinkPrior5YearEstimates!$BV$144","v":29},{"$f":"CntyDataLinkPrior5YearEstimates!$BW$144","v":15.556349186104045},null,"NA","NA","NA","NA","NA","NA","NA","NA","NA","NA"]
[null,null,null,"Percent not computed",{"$f":"CntyDataLinkPrior5YearEstimates!$BX$144","v":0},{"$f":"CntyDataLinkPrior5YearEstimates!$BY$144","v":15.556349186104045},null,"NA","NA","NA","NA","NA","NA","NA","NA","NA","NA"]
[]
[null,null,null,"Percent of Owner Households Paying ",null,null,null,"By Household Income"]
[null,null,null,{"$f":"D53","v":"Monthly Costs Less Than 30% of HH Income"},{"$f":"E53/E$50","v":0.66788321167883213},null,null,{"$f":"H53/H$50","v":0},null,{"$f":"J53/J$50","v":0.61702127659574468},null,{"$f":"L53/L$50","v":0.7142857142857143},null,{"$f":"N53/N$50","v":0.84126984126984128},null,{"$f":"P53/P$50","v":0.86585365853658536}]
[null,null,null,{"$f":"D54","v":"Monthly Costs 30% or More of HH Income"},{"$f":"E54/E$50","v":0.33211678832116787},null,null,{"$f":"H54/H50","v":1},null,{"$f":"J54/J50","v":0.38297872340425532},null,{"$f":"L54/L50","v":0.2857142857142857},null,{"$f":"N54/N50","v":0.15873015873015872},null,{"$f":"P54/P50","v":0.13414634146341464}]
[]
[null,null,null,"Monthly Costs 35% or More of HH Income",{"$f":"E56/E$50","v":0.2518248175182482},null,null,"NA","NA","NA","NA","NA","NA","NA","NA","NA","NA"]
[null,null,null,"Monthly Costs 50% or More of HH Income",{"$f":"E57/E$50","v":0.10583941605839416},null,null,"NA","NA","NA","NA","NA","NA","NA","NA","NA","NA"]
[null,null,null,"Percent not computed",{"$f":"E58/$E$50","v":0},null,null,"NA","NA","NA","NA","NA","NA","NA","NA","NA","NA"]
[]
[null,null,"H62ROHUGRent200to249",{"$f":"D37","v":"Income in 2014 Inflation Adjusted Dollars"}]
[null,null,null,"Source: 2010-2014 American Community Survey Table B25091; B25106",null,null,null,null,"NA indicates that the American Community Survey does not provide that data."]
[null,null,null,"Data from the American Community Survey are estimates."]

{"sheet":"ACS_Source_Table_List","index":20,"n_rows":45,"n_cols":4,"rows_kept":45,"cut":false,"hidden":true,"merged":[]}
[]
["ACS Table B01001","x"]
["ACS Table B01002","x"]
["ACS Table B03002","x"]
["ACS Table B05002 ","x"]
["ACS Table B07003","x","Replaces C07001"]
["ACS Table B11001","x"]
["ACS Table B11002","x"]
["ACS Table B14001 & B15002","x","Replaces C15002"]
["ACS Table B17001 ","x"]
["ACS Table B17010 ","x","Replaces C17010","Poverty Status by family type"]
["ACS Table B17017","x","Replaces C17017","Poverty Status by HH type"]
["ACS Table B18001 ",null,"Removed Disability Tables"]
["ACS Table C18001 ",null,"Removed Disability Tables"]
["ACS Table B18003",null,"Removed Disability Tables"]
["ACS Table B18004",null,"Removed Disability Tables"]
["ACS Table B18005",null,"Removed Disability Tables"]
["ACS Table B18006",null,"Removed Disability Tables"]
["ACS Table B18007",null,"Removed Disability Tables"]
["ACS Table B18008",null,"Removed Disability Tables"]
["ACS Table B19001","x"]
["ACS Table B19037 ","x"]
["ACS Table B19049 ","x"]
["ACS Table B19101& B19113 ","s"]
["ACS Table B19201 & B19202","s"]
["ACS Table B25001, B25003 & B25004 ","x"]
["ACS Table B25008","x"]
["ACS Table B25010","x"]
["ACS Table B25024","x"]
["ACS Table B25075 & B25077","x"]
["ACS Table B25088","x"]
["ACS Table B25091","x"]
["ACS Table B25118 & B25119","x"]
[]
[]
[]
[]
[]
[]
["Tables Removed from 5 Year Estimates"]
["ACS Table C19001 ","x","May have to consolidate this table from Table B19001. This has already been done. For 5 year estimates remove worksheet."]
["ACS Table B25094","x","No Comparison Table for B25094 Removed"]
["ACS Table B25101",null,"No Comparison Table for B25101 Removed"]
["ACS Table B25104 & B25105",null,"No Comparison Table for B25104 & B25105 Removed"]
["ACS Table B25106","x","No Comparison Table for  B25106 Removed"]

{"sheet":"SData_B01001Populuation","index":21,"n_rows":69,"n_cols":102,"rows_kept":69,"cut":false,"hidden":true,"merged":[]}
["GEO_ID","GEO_ID2","SUMLEVEL","GEO_NAME","B01001_1_EST","B01001_1_MOE","B01001_2_EST","B01001_2_MOE","B01001_3_EST","B01001_3_MOE","B01001_4_EST","B01001_4_MOE","B01001_5_EST","B01001_5_MOE","B01001_6_EST","B01001_6_MOE","B01001_7_EST","B01001_7_MOE","B01001_8_EST","B01001_8_MOE","B01001_9_EST","B01001_9_MOE","B01001_10_EST","B01001_10_MOE","B01001_11_EST","B01001_11_MOE","B01001_12_EST","B01001_12_MOE","B01001_13_EST","B01001_13_MOE","B01001_14_EST","B01001_14_MOE","B01001_15_EST","B01001_15_MOE","B01001_16_EST","B01001_16_MOE","B01001_17_EST","B01001_17_MOE","B01001_18_EST","B01001_18_MOE","B01001_19_EST","B01001_19_MOE","B01001_20_EST","B01001_20_MOE","B01001_21_EST","B01001_21_MOE","B01001_22_EST","B01001_22_MOE","B01001_23_EST","B01001_23_MOE","B01001_24_EST","B01001_24_MOE","B01001_25_EST","B01001_25_MOE","B01001_26_EST","B01001_26_MOE","B01001_27_EST","B01001_27_MOE","B01001_28_EST","B01001_28_MOE","B01001_29_EST","B01001_29_MOE","B01001_30_EST","B01001_30_MOE","B01001_31_EST","B01001_31_MOE","B01001_32_EST","B01001_32_MOE","B01001_33_EST","B01001_33_MOE","B01001_34_EST","B01001_34_MOE","B01001_35_EST","B01001_35_MOE","B01001_36_EST","B01001_36_MOE","B01001_37_EST","B01001_37_MOE","B01001_38_EST","B01001_38_MOE","B01001_39_EST","B01001_39_MOE","B01001_40_EST","B01001_40_MOE","B01001_41_EST","B01001_41_MOE","B01001_42_EST","B01001_42_MOE","B01001_43_EST","B01001_43_MOE","B01001_44_EST","B01001_44_MOE","B01001_45_EST","B01001_45_MOE","B01001_46_EST","B01001_46_MOE","B01001_47_EST","B01001_47_MOE","B01001_48_EST","B01001_48_MOE","B01001_49_EST","B01001_49_MOE"]
["Geography Identifier","Geography Identifier","Geographic Summary Level","Geography",{"$f":"[1]ACS_16_5YR_B01001_with_ann!D$2","v":"Estimate Total:"},{"$f":"[1]ACS_16_5YR_B01001_with_ann!E$2","v":"Margin of Error Total:"},{"$f":"[1]ACS_16_5YR_B01001_with_ann!F$2","v":"Estimate Total: Male:"},{"$f":"[1]ACS_16_5YR_B01001_with_ann!G$2","v":"Margin of Error Total: Male:"},{"$f":"[1]ACS_16_5YR_B01001_with_ann!H$2","v":"Estimate Total: Male: Under 5 years"},{"$f":"[1]ACS_16_5YR_B01001_with_ann!I$2","v":"Margin of Error Total: Male: Under 5 years"},{"$f":"[1]ACS_16_5YR_B01001_with_ann!J$2","v":"Estimate Total: Male: 5 to 9 years"},{"$f":"[1]ACS_16_5YR_B01001_with_ann!K$2","v":"Margin of Error Total: Male: 5 to 9 years"},{"$f":"[1]ACS_16_5YR_B01001_with_ann!L$2","v":"Estimate Total: Male: 10 to 14 years"},{"$f":"[1]ACS_16_5YR_B01001_with_ann!M$2","v":"Margin of Error Total: Male: 10 to 14 years"},{"$f":"[1]ACS_16_5YR_B01001_with_ann!N$2","v":"Estimate Total: Male: 15 to 17 years"},{"$f":"[1]ACS_16_5YR_B01001_with_ann!O$2","v":"Margin of Error Total: Male: 15 to 17 years"},{"$f":"[1]ACS_16_5YR_B01001_with_ann!P$2","v":"Estimate Total: Male: 18 and 19 years"},{"$f":"[1]ACS_16_5YR_B01001_with_ann!Q$2","v":"Margin of Error Total: Male: 18 and 19 years"},{"$f":"[1]ACS_16_5YR_B01001_with_ann!R$2","v":"Estimate Total: Male: 20 years"},{"$f":"[1]ACS_16_5YR_B01001_with_ann!S$2","v":"Margin of Error Total: Male: 20 years"},{"$f":"[1]ACS_16_5YR_B01001_with_ann!T$2","v":"Estimate Total: Male: 21 years"},{"$f":"[1]ACS_16_5YR_B01001_with_ann!U$2","v":"Margin of Error Total: Male: 21 years"},{"$f":"[1]ACS_16_5YR_B01001_with_ann!V$2","v":"Estimate Total: Male: 22 to 24 years"},{"$f":"[1]ACS_16_5YR_B01001_with_ann!W$2","v":"Margin of Error Total: Male: 22 to 24 years"},{"$f":"[1]ACS_16_5YR_B01001_with_ann!X$2","v":"Estimate Total: Male: 25 to 29 years"},{"$f":"[1]ACS_16_5YR_B01001_with_ann!Y$2","v":"Margin of Error Total: Male: 25 to 29 years"},{"$f":"[1]ACS_16_5YR_B01001_with_ann!Z$2","v":"Estimate Total: Male: 30 to 34 years"},{"$f":"[1]ACS_16_5YR_B01001_with_ann!AA$2","v":"Margin of Error Total: Male: 30 to 34 years"},{"$f":"[1]ACS_16_5YR_B01001_with_ann!AB$2","v":"Estimate Total: Male: 35 to 39 years"},{"$f":"[1]ACS_16_5YR_B01001_with_ann!AC$2","v":"Margin of Error Total: Male: 35 to 39 years"},{"$f":"[1]ACS_16_5YR_B01001_with_ann!AD$2","v":"Estimate Total: Male: 40 to 44 years"},{"$f":"[1]ACS_16_5YR_B01001_with_ann!AE$2","v":"Margin of Error Total: Male: 40 to 44 years"},{"$f":"[1]ACS_16_5YR_B01001_with_ann!AF$2","v":"Estimate Total: Male: 45 to 49 years"},{"$f":"[1]ACS_16_5YR_B01001_with_ann!AG$2","v":"Margin of Error Total: Male: 45 to 49 years"},{"$f":"[1]ACS_16_5YR_B01001_with_ann!AH$2","v":"Estimate Total: Male: 50 to 54 years"},{"$f":"[1]ACS_16_5YR_B01001_with_ann!AI$2","v":"Margin of Error Total: Male: 50 to 54 years"},{"$f":"[1]ACS_16_5YR_B01001_with_ann!AJ$2","v":"Estimate Total: Male: 55 to 59 years"},{"$f":"[1]ACS_16_5YR_B01001_with_ann!AK$2","v":"Margin of Error Total: Male: 55 to 59 years"},{"$f":"[1]ACS_16_5YR_B01001_with_ann!AL$2","v":"Estimate Total: Male: 60 and 61 years"},{"$f":"[1]ACS_16_5YR_B01001_with_ann!AM$2","v":"Margin of Error Total: Male: 60 and 61 years"},{"$f":"[1]ACS_16_5YR_B01001_with_ann!AN$2","v":"Estimate Total: Male: 62 to 64 years"},{"$f":"[1]ACS_16_5YR_B01001_with_ann!AO$2","v":"Margin of Error Total: Male: 62 to 64 years"},{"$f":"[1]ACS_16_5YR_B01001_with_ann!AP$2","v":"Estimate Total: Male: 65 and 66 years"},{"$f":"[1]ACS_16_5YR_B01001_with_ann!AQ$2","v":"Margin of Error Total: Male: 65 and 66 years"},{"$f":"[1]ACS_16_5YR_B01001_with_ann!AR$2","v":"Estimate Total: Male: 67 to 69 years"},{"$f":"[1]ACS_16_5YR_B01001_with_ann!AS$2","v":"Margin of Error Total: Male: 67 to 69 years"},{"$f":"[1]ACS_16_5YR_B01001_with_ann!AT$2","v":"Estimate Total: Male: 70 to 74 years"},{"$f":"[1]ACS_16_5YR_B01001_with_ann!AU$2","v":"Margin of Error Total: Male: 70 to 74 years"},{"$f":"[1]ACS_16_5YR_B01001_with_ann!AV$2","v":"Estimate Total: Male: 75 to 79 years"},{"$f":"[1]ACS_16_5YR_B01001_with_ann!AW$2","v":"Margin of Error Total: Male: 75 to 79 years"},{"$f":"[1]ACS_16_5YR_B01001_with_ann!AX$2","v":"Estimate Total: Male: 80 to 84 years"},{"$f":"[1]ACS_16_5YR_B01001_with_ann!AY$2","v":"Margin of Error Total: Male: 80 to 84 years"},{"$f":"[1]ACS_16_5YR_B01001_with_ann!AZ$2","v":"Estimate Total: Male: 85 years and over"},{"$f":"[1]ACS_16_5YR_B01001_with_ann!BA$2","v":"Margin of Error Total: Male: 85 years and over"},{"$f":"[1]ACS_16_5YR_B01001_with_ann!BB$2","v":"Estimate Total: Female:"},{"$f":"[1]ACS_16_5YR_B01001_with_ann!BC$2","v":"Margin of Error Total: Female:"},{"$f":"[1]ACS_16_5YR_B01001_with_ann!BD$2","v":"Estimate Total: Female: Under 5 years"},{"$f":"[1]ACS_16_5YR_B01001_with_ann!BE$2","v":"Margin of Error Total: Female: Under 5 years"},{"$f":"[1]ACS_16_5YR_B01001_with_ann!BF$2","v":"Estimate Total: Female: 5 to 9 years"},{"$f":"[1]ACS_16_5YR_B01001_with_ann!BG$2","v":"Margin of Error Total: Female: 5 to 9 years"},{"$f":"[1]ACS_16_5YR_B01001_with_ann!BH$2","v":"Estimate Total: Female: 10 to 14 years"},{"$f":"[1]ACS_16_5YR_B01001_with_ann!BI$2","v":"Margin of Error Total: Female: 10 to 14 years"},{"$f":"[1]ACS_16_5YR_B01001_with_ann!BJ$2","v":"Estimate Total: Female: 15 to 17 years"},{"$f":"[1]ACS_16_5YR_B01001_with_ann!BK$2","v":"Margin of Error Total: Female: 15 to 17 years"},{"$f":"[1]ACS_16_5YR_B01001_with_ann!BL$2","v":"Estimate Total: Female: 18 and 19 years"},{"$f":"[1]ACS_16_5YR_B01001_with_ann!BM$2","v":"Margin of Error Total: Female: 18 and 19 years"},{"$f":"[1]ACS_16_5YR_B01001_with_ann!BN$2","v":"Estimate Total: Female: 20 years"},{"$f":"[1]ACS_16_5YR_B01001_with_ann!BO$2","v":"Margin of Error Total: Female: 20 years"},{"$f":"[1]ACS_16_5YR_B01001_with_ann!BP$2","v":"Estimate Total: Female: 21 years"},{"$f":"[1]ACS_16_5YR_B01001_with_ann!BQ$2","v":"Margin of Error Total: Female: 21 years"},{"$f":"[1]ACS_16_5YR_B01001_with_ann!BR$2","v":"Estimate Total: Female: 22 to 24 years"},{"$f":"[1]ACS_16_5YR_B01001_with_ann!BS$2","v":"Margin of Error Total: Female: 22 to 24 years"},{"$f":"[1]ACS_16_5YR_B01001_with_ann!BT$2","v":"Estimate Total: Female: 25 to 29 years"},{"$f":"[1]ACS_16_5YR_B01001_with_ann!BU$2","v":"Margin of Error Total: Female: 25 to 29 years"},{"$f":"[1]ACS_16_5YR_B01001_with_ann!BV$2","v":"Estimate Total: Female: 30 to 34 years"},{"$f":"[1]ACS_16_5YR_B01001_with_ann!BW$2","v":"Margin of Error Total: Female: 30 to 34 years"},{"$f":"[1]ACS_16_5YR_B01001_with_ann!BX$2","v":"Estimate Total: Female: 35 to 39 years"},{"$f":"[1]ACS_16_5YR_B01001_with_ann!BY$2","v":"Margin of Error Total: Female: 35 to 39 years"},{"$f":"[1]ACS_16_5YR_B01001_with_ann!BZ$2","v":"Estimate Total: Female: 40 to 44 years"},{"$f":"[1]ACS_16_5YR_B01001_with_ann!CA$2","v":"Margin of Error Total: Female: 40 to 44 years"},{"$f":"[1]ACS_16_5YR_B01001_with_ann!CB$2","v":"Estimate Total: Female: 45 to 49 years"},{"$f":"[1]ACS_16_5YR_B01001_with_ann!CC$2","v":"Margin of Error Total: Female: 45 to 49 years"},{"$f":"[1]ACS_16_5YR_B01001_with_ann!CD$2","v":"Estimate Total: Female: 50 to 54 years"},{"$f":"[1]ACS_16_5YR_B01001_with_ann!CE$2","v":"Margin of Error Total: Female: 50 to 54 years"},{"$f":"[1]ACS_16_5YR_B01001_with_ann!CF$2","v":"Estimate Total: Female: 55 to 59 years"},{"$f":"[1]ACS_16_5YR_B01001_with_ann!CG$2","v":"Margin of Error Total: Female: 55 to 59 years"},{"$f":"[1]ACS_16_5YR_B01001_with_ann!CH$2","v":"Estimate Total: Female: 60 and 61 years"},{"$f":"[1]ACS_16_5YR_B01001_with_ann!CI$2","v":"Margin of Error Total: Female: 60 and 61 years"},{"$f":"[1]ACS_16_5YR_B01001_with_ann!CJ$2","v":"Estimate Total: Female: 62 to 64 years"},{"$f":"[1]ACS_16_5YR_B01001_with_ann!CK$2","v":"Margin of Error Total: Female: 62 to 64 years"},{"$f":"[1]ACS_16_5YR_B01001_with_ann!CL$2","v":"Estimate Total: Female: 65 and 66 years"},{"$f":"[1]ACS_16_5YR_B01001_with_ann!CM$2","v":"Margin of Error Total: Female: 65 and 66 years"},{"$f":"[1]ACS_16_5YR_B01001_with_ann!CN$2","v":"Estimate Total: Female: 67 to 69 years"},{"$f":"[1]ACS_16_5YR_B01001_with_ann!CO$2","v":"Margin of Error Total: Female: 67 to 69 years"},{"$f":"[1]ACS_16_5YR_B01001_with_ann!CP$2","v":"Estimate Total: Female: 70 to 74 years"},{"$f":"[1]ACS_16_5YR_B01001_with_ann!CQ$2","v":"Margin of Error Total: Female: 70 to 74 years"},{"$f":"[1]ACS_16_5YR_B01001_with_ann!CR$2","v":"Estimate Total: Female: 75 to 79 years"},{"$f":"[1]ACS_16_5YR_B01001_with_ann!CS$2","v":"Margin of Error Total: Female: 75 to 79 years"},{"$f":"[1]ACS_16_5YR_B01001_with_ann!CT$2","v":"Estimate Total: Female: 80 to 84 years"},{"$f":"[1]ACS_16_5YR_B01001_with_ann!CU$2","v":"Margin of Error Total: Female: 80 to 84 years"},{"$f":"[1]ACS_16_5YR_B01001_with_ann!CV$2","v":"Estimate Total: Female: 85 years and over"},{"$f":"[1]ACS_16_5YR_B01001_with_ann!CW$2","v":"Margin of Error Total: Female: 85 years and over"}]
["0600000US3301900259",3301900259,"060","Acworth",{"$f":"[1]ACS_16_5YR_B01001_with_ann!D258","v":906},{"$f":"[1]ACS_16_5YR_B01001_with_ann!E258","v":134},{"$f":"[1]ACS_16_5YR_B01001_with_ann!F258","v":487},{"$f":"[1]ACS_16_5YR_B01001_with_ann!G258","v":83},{"$f":"[1]ACS_16_5YR_B01001_with_ann!H258","v":21},{"$f":"[1]ACS_16_5YR_B01001_with_ann!I258","v":14},{"$f":"[1]ACS_16_5YR_B01001_with_ann!J258","v":19},{"$f":"[1]ACS_16_5YR_B01001_with_ann!K258","v":13},{"$f":"[1]ACS_16_5YR_B01001_with_ann!L258","v":13},{"$f":"[1]ACS_16_5YR_B01001_with_ann!M258","v":12},{"$f":"[1]ACS_16_5YR_B01001_with_ann!N258","v":2},{"$f":"[1]ACS_16_5YR_B01001_with_ann!O258","v":3},{"$f":"[1]ACS_16_5YR_B01001_with_ann!P258","v":3},{"$f":"[1]ACS_16_5YR_B01001_with_ann!Q258","v":5},{"$f":"[1]ACS_16_5YR_B01001_with_ann!R258","v":7},{"$f":"[1]ACS_16_5YR_B01001_with_ann!S258","v":12},{"$f":"[1]ACS_16_5YR_B01001_with_ann!T258","v":0},{"$f":"[1]ACS_16_5YR_B01001_with_ann!U258","v":11},{"$f":"[1]ACS_16_5YR_B01001_with_ann!V258","v":8},{"$f":"[1]ACS_16_5YR_B01001_with_ann!W258","v":13},{"$f":"[1]ACS_16_5YR_B01001_with_ann!X258","v":42},{"$f":"[1]ACS_16_5YR_B01001_with_ann!Y258","v":26},{"$f":"[1]ACS_16_5YR_B01001_with_ann!Z258","v":19},{"$f":"[1]ACS_16_5YR_B01001_with_ann!AA258","v":14},{"$f":"[1]ACS_16_5YR_B01001_with_ann!AB258","v":15},{"$f":"[1]ACS_16_5YR_B01001_with_ann!AC258","v":12},{"$f":"[1]ACS_16_5YR_B01001_with_ann!AD258","v":16},{"$f":"[1]ACS_16_5YR_B01001_with_ann!AE258","v":11},{"$f":"[1]ACS_16_5YR_B01001_with_ann!AF258","v":24},{"$f":"[1]ACS_16_5YR_B01001_with_ann!AG258","v":24},{"$f":"[1]ACS_16_5YR_B01001_with_ann!AH258","v":39},{"$f":"[1]ACS_16_5YR_B01001_with_ann!AI258","v":22},{"$f":"[1]ACS_16_5YR_B01001_with_ann!AJ258","v":75},{"$f":"[1]ACS_16_5YR_B01001_with_ann!AK258","v":30},{"$f":"[1]ACS_16_5YR_B01001_with_ann!AL258","v":29},{"$f":"[1]ACS_16_5YR_B01001_with_ann!AM258","v":18},{"$f":"[1]ACS_16_5YR_B01001_with_ann!AN258","v":15},{"$f":"[1]ACS_16_5YR_B01001_with_ann!AO258","v":12},{"$f":"[1]ACS_16_5YR_B01001_with_ann!AP258","v":17},{"$f":"[1]ACS_16_5YR_B01001_with_ann!AQ258","v":9},{"$f":"[1]ACS_16_5YR_B01001_with_ann!AR258","v":28},{"$f":"[1]ACS_16_5YR_B01001_with_ann!AS258","v":18},{"$f":"[1]ACS_16_5YR_B01001_with_ann!AT258","v":43},{"$f":"[1]ACS_16_5YR_B01001_with_ann!AU258","v":20},{"$f":"[1]ACS_16_5YR_B01001_with_ann!AV258","v":18},{"$f":"[1]ACS_16_5YR_B01001_with_ann!AW258","v":12},{"$f":"[1]ACS_16_5YR_B01001_with_ann!AX258","v":18},{"$f":"[1]ACS_16_5YR_B01001_with_ann!AY258","v":15},{"$f":"[1]ACS_16_5YR_B01001_with_ann!AZ258","v":16},{"$f":"[1]ACS_16_5YR_B01001_with_ann!BA258","v":12},{"$f":"[1]ACS_16_5YR_B01001_with_ann!BB258","v":419},{"$f":"[1]ACS_16_5YR_B01001_with_ann!BC258","v":72},{"$f":"[1]ACS_16_5YR_B01001_with_ann!BD258","v":16},{"$f":"[1]ACS_16_5YR_B01001_with_ann!BE258","v":13},{"$f":"[1]ACS_16_5YR_B01001_with_ann!BF258","v":6},{"$f":"[1]ACS_16_5YR_B01001_with_ann!BG258","v":6},{"$f":"[1]ACS_16_5YR_B01001_with_ann!BH258","v":9},{"$f":"[1]ACS_16_5YR_B01001_with_ann!BI258","v":8},{"$f":"[1]ACS_16_5YR_B01001_with_ann!BJ258","v":9},{"$f":"[1]ACS_16_5YR_B01001_with_ann!BK258","v":14},{"$f":"[1]ACS_16_5YR_B01001_with_ann!BL258","v":5},{"$f":"[1]ACS_16_5YR_B01001_with_ann!BM258","v":7},{"$f":"[1]ACS_16_5YR_B01001_with_ann!BN258","v":5},{"$f":"[1]ACS_16_5YR_B01001_with_ann!BO258","v":9},{"$f":"[1]ACS_16_5YR_B01001_with_ann!BP258","v":0},{"$f":"[1]ACS_16_5YR_B01001_with_ann!BQ258","v":11},{"$f":"[1]ACS_16_5YR_B01001_with_ann!BR258","v":3},{"$f":"[1]ACS_16_5YR_B01001_with_ann!BS258","v":5},{"$f":"[1]ACS_16_5YR_B01001_with_ann!BT258","v":21},{"$f":"[1]ACS_16_5YR_B01001_with_ann!BU258","v":15},{"$f":"[1]ACS_16_5YR_B01001_with_ann!BV258","v":13},{"$f":"[1]ACS_16_5YR_B01001_with_ann!BW258","v":11},{"$f":"[1]ACS_16_5YR_B01001_with_ann!BX258","v":14},{"$f":"[1]ACS_16_5YR_B01001_with_ann!BY258","v":9},{"$f":"[1]ACS_16_5YR_B01001_with_ann!BZ258","v":31},{"$f":"[1]ACS_16_5YR_B01001_with_ann!CA258","v":24},{"$f":"[1]ACS_16_5YR_B01001_with_ann!CB258","v":16},{"$f":"[1]ACS_16_5YR_B01001_with_ann!CC258","v":14},{"$f":"[1]ACS_16_5YR_B01001_with_ann!CD258","v":39},{"$f":"[1]ACS_16_5YR_B01001_with_ann!CE258","v":22},{"$f":"[1]ACS_16_5YR_B01001_with_ann!CF258","v":55},{"$f":"[1]ACS_16_5YR_B01001_with_ann!CG258","v":25},{"$f":"[1]ACS_16_5YR_B01001_with_ann!CH258","v":16},{"$f":"[1]ACS_16_5YR_B01001_with_ann!CI258","v":14},{"$f":"[1]ACS_16_5YR_B01001_with_ann!CJ258","v":19},{"$f":"[1]ACS_16_5YR_B01001_with_ann!CK258","v":13},{"$f":"[1]ACS_16_5YR_B01001_with_ann!CL258","v":23},{"$f":"[1]ACS_16_5YR_B01001_with_ann!CM258","v":17},{"$f":"[1]ACS_16_5YR_B01001_with_ann!CN258","v":46},{"$f":"[1]ACS_16_5YR_B01001_with_ann!CO258","v":26},{"$f":"[1]ACS_16_5YR_B01001_with_ann!CP258","v":48},{"$f":"[1]ACS_16_5YR_B01001_with_ann!CQ258","v":22},{"$f":"[1]ACS_16_5YR_B01001_with_ann!CR258","v":8},{"$f":"[1]ACS_16_5YR_B01001_with_ann!CS258","v":6},{"$f":"[1]ACS_16_5YR_B01001_with_ann!CT258","v":4},{"$f":"[1]ACS_16_5YR_B01001_with_ann!CU258","v":4},{"$f":"[1]ACS_16_5YR_B01001_with_ann!CV258","v":13},{"$f":"[1]ACS_16_5YR_B01001_with_ann!CW258","v":11}]
["0600000US3301911380",3301911380,"060","Charlestown",{"$f":"[1]ACS_16_5YR_B01001_with_ann!D259","v":5019},{"$f":"[1]ACS_16_5YR_B01001_with_ann!E259","v":19},{"$f":"[1]ACS_16_5YR_B01001_with_ann!F259","v":2515},{"$f":"[1]ACS_16_5YR_B01001_with_ann!G259","v":222},{"$f":"[1]ACS_16_5YR_B01001_with_ann!H259","v":189},{"$f":"[1]ACS_16_5YR_B01001_with_ann!I259","v":101},{"$f":"[1]ACS_16_5YR_B01001_with_ann!J259","v":164},{"$f":"[1]ACS_16_5YR_B01001_with_ann!K259","v":79},{"$f":"[1]ACS_16_5YR_B01001_with_ann!L259","v":28},{"$f":"[1]ACS_16_5YR_B01001_with_ann!M259","v":24},{"$f":"[1]ACS_16_5YR_B01001_with_ann!N259","v":58},{"$f":"[1]ACS_16_5YR_B01001_with_ann!O259","v":53},{"$f":"[1]ACS_16_5YR_B01001_with_ann!P259","v":32},{"$f":"[1]ACS_16_5YR_B01001_with_ann!Q259","v":32},{"$f":"[1]ACS_16_5YR_B01001_with_ann!R259","v":5},{"$f":"[1]ACS_16_5YR_B01001_with_ann!S259","v":13},{"$f":"[1]ACS_16_5YR_B01001_with_ann!T259","v":0},{"$f":"[1]ACS_16_5YR_B01001_with_ann!U259","v":16},{"$f":"[1]ACS_16_5YR_B01001_with_ann!V259","v":118},{"$f":"[1]ACS_16_5YR_B01001_with_ann!W259","v":89},{"$f":"[1]ACS_16_5YR_B01001_with_ann!X259","v":166},{"$f":"[1]ACS_16_5YR_B01001_with_ann!Y259","v":100},{"$f":"[1]ACS_16_5YR_B01001_with_ann!Z259","v":169},{"$f":"[1]ACS_16_5YR_B01001_with_ann!AA259","v":97},{"$f":"[1]ACS_16_5YR_B01001_with_ann!AB259","v":264},{"$f":"[1]ACS_16_5YR_B01001_with_ann!AC259","v":115},{"$f":"[1]ACS_16_5YR_B01001_with_ann!AD259","v":59},{"$f":"[1]ACS_16_5YR_B01001_with_ann!AE259","v":55},{"$f":"[1]ACS_16_5YR_B01001_with_ann!AF259","v":138},{"$f":"[1]ACS_16_5YR_B01001_with_ann!AG259","v":101},{"$f":"[1]ACS_16_5YR_B01001_with_ann!AH259","v":123},{"$f":"[1]ACS_16_5YR_B01001_with_ann!AI259","v":70},{"$f":"[1]ACS_16_5YR_B01001_with_ann!AJ259","v":323},{"$f":"[1]ACS_16_5YR_B01001_with_ann!AK259","v":119},{"$f":"[1]ACS_16_5YR_B01001_with_ann!AL259","v":71},{"$f":"[1]ACS_16_5YR_B01001_with_ann!AM259","v":48},{"$f":"[1]ACS_16_5YR_B01001_with_ann!AN259","v":56},{"$f":"[1]ACS_16_5YR_B01001_with_ann!AO259","v":41},{"$f":"[1]ACS_16_5YR_B01001_with_ann!AP259","v":146},{"$f":"[1]ACS_16_5YR_B01001_with_ann!AQ259","v":99},{"$f":"[1]ACS_16_5YR_B01001_with_ann!AR259","v":65},{"$f":"[1]ACS_16_5YR_B01001_with_ann!AS259","v":62},{"$f":"[1]ACS_16_5YR_B01001_with_ann!AT259","v":50},{"$f":"[1]ACS_16_5YR_B01001_with_ann!AU259","v":48},{"$f":"[1]ACS_16_5YR_B01001_with_ann!AV259","v":210},{"$f":"[1]ACS_16_5YR_B01001_with_ann!AW259","v":146},{"$f":"[1]ACS_16_5YR_B01001_with_ann!AX259","v":48},{"$f":"[1]ACS_16_5YR_B01001_with_ann!AY259","v":57},{"$f":"[1]ACS_16_5YR_B01001_with_ann!AZ259","v":33},{"$f":"[1]ACS_16_5YR_B01001_with_ann!BA259","v":36},{"$f":"[1]ACS_16_5YR_B01001_with_ann!BB259","v":2504},{"$f":"[1]ACS_16_5YR_B01001_with_ann!BC259","v":221},{"$f":"[1]ACS_16_5YR_B01001_with_ann!BD259","v":121},{"$f":"[1]ACS_16_5YR_B01001_with_ann!BE259","v":78},{"$f":"[1]ACS_16_5YR_B01001_with_ann!BF259","v":64},{"$f":"[1]ACS_16_5YR_B01001_with_ann!BG259","v":80},{"$f":"[1]ACS_16_5YR_B01001_with_ann!BH259","v":299},{"$f":"[1]ACS_16_5YR_B01001_with_ann!BI259","v":115},{"$f":"[1]ACS_16_5YR_B01001_with_ann!BJ259","v":57},{"$f":"[1]ACS_16_5YR_B01001_with_ann!BK259","v":54},{"$f":"[1]ACS_16_5YR_B01001_with_ann!BL259","v":8},{"$f":"[1]ACS_16_5YR_B01001_with_ann!BM259","v":12},{"$f":"[1]ACS_16_5YR_B01001_with_ann!BN259","v":0},{"$f":"[1]ACS_16_5YR_B01001_with_ann!BO259","v":16},{"$f":"[1]ACS_16_5YR_B01001_with_ann!BP259","v":0},{"$f":"[1]ACS_16_5YR_B01001_with_ann!BQ259","v":16},{"$f":"[1]ACS_16_5YR_B01001_with_ann!BR259","v":20},{"$f":"[1]ACS_16_5YR_B01001_with_ann!BS259","v":27},{"$f":"[1]ACS_16_5YR_B01001_with_ann!BT259","v":206},{"$f":"[1]ACS_16_5YR_B01001_with_ann!BU259","v":117},{"$f":"[1]ACS_16_5YR_B01001_with_ann!BV259","v":123},{"$f":"[1]ACS_16_5YR_B01001_with_ann!BW259","v":75},{"$f":"[1]ACS_16_5YR_B01001_with_ann!BX259","v":192},{"$f":"[1]ACS_16_5YR_B01001_with_ann!BY259","v":112},{"$f":"[1]ACS_16_5YR_B01001_with_ann!BZ259","v":66},{"$f":"[1]ACS_16_5YR_B01001_with_ann!CA259","v":67},{"$f":"[1]ACS_16_5YR_B01001_with_ann!CB259","v":105},{"$f":"[1]ACS_16_5YR_B01001_with_ann!CC259","v":71},{"$f":"[1]ACS_16_5YR_B01001_with_ann!CD259","v":152},{"$f":"[1]ACS_16_5YR_B01001_with_ann!CE259","v":86},{"$f":"[1]ACS_16_5YR_B01001_with_ann!CF259","v":255},{"$f":"[1]ACS_16_5YR_B01001_with_ann!CG259","v":121},{"$f":"[1]ACS_16_5YR_B01001_with_ann!CH259","v":154},{"$f":"[1]ACS_16_5YR_B01001_with_ann!CI259","v":99},{"$f":"[1]ACS_16_5YR_B01001_with_ann!CJ259","v":157},{"$f":"[1]ACS_16_5YR_B01001_with_ann!CK259","v":109},{"$f":"[1]ACS_16_5YR_B01001_with_ann!CL259","v":108},{"$f":"[1]ACS_16_5YR_B01001_with_ann!CM259","v":76},{"$f":"[1]ACS_16_5YR_B01001_with_ann!CN259","v":49},{"$f":"[1]ACS_16_5YR_B01001_with_ann!CO259","v":45},{"$f":"[1]ACS_16_5YR_B01001_with_ann!CP259","v":139},{"$f":"[1]ACS_16_5YR_B01001_with_ann!CQ259","v":92},{"$f":"[1]ACS_16_5YR_B01001_with_ann!CR259","v":73},{"$f":"[1]ACS_16_5YR_B01001_with_ann!CS259","v":59},{"$f":"[1]ACS_16_5YR_B01001_with_ann!CT259","v":74},{"$f":"[1]ACS_16_5YR_B01001_with_ann!CU259","v":66},{"$f":"[1]ACS_16_5YR_B01001_with_ann!CV259","v":82},{"$f":"[1]ACS_16_5YR_B01001_with_ann!CW259","v":70}]
["0600000US3301912900",3301912900,"060","Claremont",{"$f":"[1]ACS_16_5YR_B01001_with_ann!D260","v":12977},{"$f":"[1]ACS_16_5YR_B01001_with_ann!E260","v":23},{"$f":"[1]ACS_16_5YR_B01001_with_ann!F260","v":6291},{"$f":"[1]ACS_16_5YR_B01001_with_ann!G260","v":280},{"$f":"[1]ACS_16_5YR_B01001_with_ann!H260","v":393},{"$f":"[1]ACS_16_5YR_B01001_with_ann!I260","v":117},{"$f":"[1]ACS_16_5YR_B01001_with_ann!J260","v":362},{"$f":"[1]ACS_16_5YR_B01001_with_ann!K260","v":121},{"$f":"[1]ACS_16_5YR_B01001_with_ann!L260","v":335},{"$f":"[1]ACS_16_5YR_B01001_with_ann!M260","v":116},{"$f":"[1]ACS_16_5YR_B01001_with_ann!N260","v":205},{"$f":"[1]ACS_16_5YR_B01001_with_ann!O260","v":86},{"$f":"[1]ACS_16_5YR_B01001_with_ann!P260","v":75},{"$f":"[1]ACS_16_5YR_B01001_with_ann!Q260","v":56},{"$f":"[1]ACS_16_5YR_B01001_with_ann!R260","v":149},{"$f":"[1]ACS_16_5YR_B01001_with_ann!S260","v":96},{"$f":"[1]ACS_16_5YR_B01001_with_ann!T260","v":26},{"$f":"[1]ACS_16_5YR_B01001_with_ann!U260","v":36},{"$f":"[1]ACS_16_5YR_B01001_with_ann!V260","v":185},{"$f":"[1]ACS_16_5YR_B01001_with_ann!W260","v":83},{"$f":"[1]ACS_16_5YR_B01001_with_ann!X260","v":538},{"$f":"[1]ACS_16_5YR_B01001_with_ann!Y260","v":143},{"$f":"[1]ACS_16_5YR_B01001_with_ann!Z260","v":649},{"$f":"[1]ACS_16_5YR_B01001_with_ann!AA260","v":150},{"$f":"[1]ACS_16_5YR_B01001_with_ann!AB260","v":268},{"$f":"[1]ACS_16_5YR_B01001_with_ann!AC260","v":106},{"$f":"[1]ACS_16_5YR_B01001_with_ann!AD260","v":364},{"$f":"[1]ACS_16_5YR_B01001_with_ann!AE260","v":132},{"$f":"[1]ACS_16_5YR_B01001_with_ann!AF260","v":436},{"$f":"[1]ACS_16_5YR_B01001_with_ann!AG260","v":162},{"$f":"[1]ACS_16_5YR_B01001_with_ann!AH260","v":464},{"$f":"[1]ACS_16_5YR_B01001_with_ann!AI260","v":104},{"$f":"[1]ACS_16_5YR_B01001_with_ann!AJ260","v":523},{"$f":"[1]ACS_16_5YR_B01001_with_ann!AK260","v":144},{"$f":"[1]ACS_16_5YR_B01001_with_ann!AL260","v":178},{"$f":"[1]ACS_16_5YR_B01001_with_ann!AM260","v":89},{"$f":"[1]ACS_16_5YR_B01001_with_ann!AN260","v":194},{"$f":"[1]ACS_16_5YR_B01001_with_ann!AO260","v":73},{"$f":"[1]ACS_16_5YR_B01001_with_ann!AP260","v":195},{"$f":"[1]ACS_16_5YR_B01001_with_ann!AQ260","v":75},{"$f":"[1]ACS_16_5YR_B01001_with_ann!AR260","v":265},{"$f":"[1]ACS_16_5YR_B01001_with_ann!AS260","v":97},{"$f":"[1]ACS_16_5YR_B01001_with_ann!AT260","v":191},{"$f":"[1]ACS_16_5YR_B01001_with_ann!AU260","v":84},{"$f":"[1]ACS_16_5YR_B01001_with_ann!AV260","v":134},{"$f":"[1]ACS_16_5YR_B01001_with_ann!AW260","v":64},{"$f":"[1]ACS_16_5YR_B01001_with_ann!AX260","v":85},{"$f":"[1]ACS_16_5YR_B01001_with_ann!AY260","v":46},{"$f":"[1]ACS_16_5YR_B01001_with_ann!AZ260","v":77},{"$f":"[1]ACS_16_5YR_B01001_with_ann!BA260","v":46},{"$f":"[1]ACS_16_5YR_B01001_with_ann!BB260","v":6686},{"$f":"[1]ACS_16_5YR_B01001_with_ann!BC260","v":279},{"$f":"[1]ACS_16_5YR_B01001_with_ann!BD260","v":475},{"$f":"[1]ACS_16_5YR_B01001_with_ann!BE260","v":107},{"$f":"[1]ACS_16_5YR_B01001_with_ann!BF260","v":347},{"$f":"[1]ACS_16_5YR_B01001_with_ann!BG260","v":114},{"$f":"[1]ACS_16_5YR_B01001_with_ann!BH260","v":316},{"$f":"[1]ACS_16_5YR_B01001_with_ann!BI260","v":132},{"$f":"[1]ACS_16_5YR_B01001_with_ann!BJ260","v":259},{"$f":"[1]ACS_16_5YR_B01001_with_ann!BK260","v":92},{"$f":"[1]ACS_16_5YR_B01001_with_ann!BL260","v":107},{"$f":"[1]ACS_16_5YR_B01001_with_ann!BM260","v":50},{"$f":"[1]ACS_16_5YR_B01001_with_ann!BN260","v":42},{"$f":"[1]ACS_16_5YR_B01001_with_ann!BO260","v":48},{"$f":"[1]ACS_16_5YR_B01001_with_ann!BP260","v":112},{"$f":"[1]ACS_16_5YR_B01001_with_ann!BQ260","v":68},{"$f":"[1]ACS_16_5YR_B01001_with_ann!BR260","v":214},{"$f":"[1]ACS_16_5YR_B01001_with_ann!BS260","v":99},{"$f":"[1]ACS_16_5YR_B01001_with_ann!BT260","v":373},{"$f":"[1]ACS_16_5YR_B01001_with_ann!BU260","v":110},{"$f":"[1]ACS_16_5YR_B01001_with_ann!BV260","v":567},{"$f":"[1]ACS_16_5YR_B01001_with_ann!BW260","v":110},{"$f":"[1]ACS_16_5YR_B01001_with_ann!BX260","v":269},{"$f":"[1]ACS_16_5YR_B01001_with_ann!BY260","v":104},{"$f":"[1]ACS_16_5YR_B01001_with_ann!BZ260","v":363},{"$f":"[1]ACS_16_5YR_B01001_with_ann!CA260","v":106},{"$f":"[1]ACS_16_5YR_B01001_with_ann!CB260","v":373},{"$f":"[1]ACS_16_5YR_B01001_with_ann!CC260","v":105},{"$f":"[1]ACS_16_5YR_B01001_with_ann!CD260","v":541},{"$f":"[1]ACS_16_5YR_B01001_with_ann!CE260","v":131},{"$f":"[1]ACS_16_5YR_B01001_with_ann!CF260","v":452},{"$f":"[1]ACS_16_5YR_B01001_with_ann!CG260","v":126},{"$f":"[1]ACS_16_5YR_B01001_with_ann!CH260","v":193},{"$f":"[1]ACS_16_5YR_B01001_with_ann!CI260","v":114},{"$f":"[1]ACS_16_5YR_B01001_with_ann!CJ260","v":269},{"$f":"[1]ACS_16_5YR_B01001_with_ann!CK260","v":95},{"$f":"[1]ACS_16_5YR_B01001_with_ann!CL260","v":183},{"$f":"[1]ACS_16_5YR_B01001_with_ann!CM260","v":86},{"$f":"[1]ACS_16_5YR_B01001_with_ann!CN260","v":287},{"$f":"[1]ACS_16_5YR_B01001_with_ann!CO260","v":127},{"$f":"[1]ACS_16_5YR_B01001_with_ann!CP260","v":286},{"$f":"[1]ACS_16_5YR_B01001_with_ann!CQ260","v":129},{"$f":"[1]ACS_16_5YR_B01001_with_ann!CR260","v":228},{"$f":"[1]ACS_16_5YR_B01001_with_ann!CS260","v":98},{"$f":"[1]ACS_16_5YR_B01001_with_ann!CT260","v":199},{"$f":"[1]ACS_16_5YR_B01001_with_ann!CU260","v":83},{"$f":"[1]ACS_16_5YR_B01001_with_ann!CV260","v":231},{"$f":"[1]ACS_16_5YR_B01001_with_ann!CW260","v":91}]
["0600000US3301915060",3301915060,"060","Cornish",{"$f":"[1]ACS_16_5YR_B01001_with_ann!D261","v":1783},{"$f":"[1]ACS_16_5YR_B01001_with_ann!E261","v":217},{"$f":"[1]ACS_16_5YR_B01001_with_ann!F261","v":922},{"$f":"[1]ACS_16_5YR_B01001_with_ann!G261","v":150},{"$f":"[1]ACS_16_5YR_B01001_with_ann!H261","v":35},{"$f":"[1]ACS_16_5YR_B01001_with_ann!I261","v":19},{"$f":"[1]ACS_16_5YR_B01001_with_ann!J261","v":38},{"$f":"[1]ACS_16_5YR_B01001_with_ann!K261","v":23},{"$f":"[1]ACS_16_5YR_B01001_with_ann!L261","v":89},{"$f":"[1]ACS_16_5YR_B01001_with_ann!M261","v":54},{"$f":"[1]ACS_16_5YR_B01001_with_ann!N261","v":42},{"$f":"[1]ACS_16_5YR_B01001_with_ann!O261","v":38},{"$f":"[1]ACS_16_5YR_B01001_with_ann!P261","v":17},{"$f":"[1]ACS_16_5YR_B01001_with_ann!Q261","v":12},{"$f":"[1]ACS_16_5YR_B01001_with_ann!R261","v":4},{"$f":"[1]ACS_16_5YR_B01001_with_ann!S261","v":6},{"$f":"[1]ACS_16_5YR_B01001_with_ann!T261","v":8},{"$f":"[1]ACS_16_5YR_B01001_with_ann!U261","v":9},{"$f":"[1]ACS_16_5YR_B01001_with_ann!V261","v":18},{"$f":"[1]ACS_16_5YR_B01001_with_ann!W261","v":13},{"$f":"[1]ACS_16_5YR_B01001_with_ann!X261","v":25},{"$f":"[1]ACS_16_5YR_B01001_with_ann!Y261","v":16},{"$f":"[1]ACS_16_5YR_B01001_with_ann!Z261","v":23},{"$f":"[1]ACS_16_5YR_B01001_with_ann!AA261","v":14},{"$f":"[1]ACS_16_5YR_B01001_with_ann!AB261","v":44},{"$f":"[1]ACS_16_5YR_B01001_with_ann!AC261","v":21},{"$f":"[1]ACS_16_5YR_B01001_with_ann!AD261","v":38},{"$f":"[1]ACS_16_5YR_B01001_with_ann!AE261","v":21},{"$f":"[1]ACS_16_5YR_B01001_with_ann!AF261","v":77},{"$f":"[1]ACS_16_5YR_B01001_with_ann!AG261","v":36},{"$f":"[1]ACS_16_5YR_B01001_with_ann!AH261","v":33},{"$f":"[1]ACS_16_5YR_B01001_with_ann!AI261","v":17},{"$f":"[1]ACS_16_5YR_B01001_with_ann!AJ261","v":72},{"$f":"[1]ACS_16_5YR_B01001_with_ann!AK261","v":31},{"$f":"[1]ACS_16_5YR_B01001_with_ann!AL261","v":39},{"$f":"[1]ACS_16_5YR_B01001_with_ann!AM261","v":17},{"$f":"[1]ACS_16_5YR_B01001_with_ann!AN261","v":64},{"$f":"[1]ACS_16_5YR_B01001_with_ann!AO261","v":27},{"$f":"[1]ACS_16_5YR_B01001_with_ann!AP261","v":37},{"$f":"[1]ACS_16_5YR_B01001_with_ann!AQ261","v":24},{"$f":"[1]ACS_16_5YR_B01001_with_ann!AR261","v":69},{"$f":"[1]ACS_16_5YR_B01001_with_ann!AS261","v":29},{"$f":"[1]ACS_16_5YR_B01001_with_ann!AT261","v":84},{"$f":"[1]ACS_16_5YR_B01001_with_ann!AU261","v":39},{"$f":"[1]ACS_16_5YR_B01001_with_ann!AV261","v":19},{"$f":"[1]ACS_16_5YR_B01001_with_ann!AW261","v":11},{"$f":"[1]ACS_16_5YR_B01001_with_ann!AX261","v":25},{"$f":"[1]ACS_16_5YR_B01001_with_ann!AY261","v":22},{"$f":"[1]ACS_16_5YR_B01001_with_ann!AZ261","v":22},{"$f":"[1]ACS_16_5YR_B01001_with_ann!BA261","v":18},{"$f":"[1]ACS_16_5YR_B01001_with_ann!BB261","v":861},{"$f":"[1]ACS_16_5YR_B01001_with_ann!BC261","v":100},{"$f":"[1]ACS_16_5YR_B01001_with_ann!BD261","v":26},{"$f":"[1]ACS_16_5YR_B01001_with_ann!BE261","v":14},{"$f":"[1]ACS_16_5YR_B01001_with_ann!BF262","v":17},{"$f":"[1]ACS_16_5YR_B01001_with_ann!BG262","v":14},{"$f":"[1]ACS_16_5YR_B01001_with_ann!BH262","v":29},{"$f":"[1]ACS_16_5YR_B01001_with_ann!BI262","v":17},{"$f":"[1]ACS_16_5YR_B01001_with_ann!BJ262","v":19},{"$f":"[1]ACS_16_5YR_B01001_with_ann!BK262","v":23},{"$f":"[1]ACS_16_5YR_B01001_with_ann!BL262","v":14},{"$f":"[1]ACS_16_5YR_B01001_with_ann!BM262","v":16},{"$f":"[1]ACS_16_5YR_B01001_with_ann!BN262","v":23},{"$f":"[1]ACS_16_5YR_B01001_with_ann!BO262","v":28},{"$f":"[1]ACS_16_5YR_B01001_with_ann!BP262","v":0},{"$f":"[1]ACS_16_5YR_B01001_with_ann!BQ262","v":11},{"$f":"[1]ACS_16_5YR_B01001_with_ann!BR262","v":40},{"$f":"[1]ACS_16_5YR_B01001_with_ann!BS262","v":51},{"$f":"[1]ACS_16_5YR_B01001_with_ann!BT262","v":35},{"$f":"[1]ACS_16_5YR_B01001_with_ann!BU262","v":23},{"$f":"[1]ACS_16_5YR_B01001_with_ann!BV262","v":12},{"$f":"[1]ACS_16_5YR_B01001_with_ann!BW262","v":13},{"$f":"[1]ACS_16_5YR_B01001_with_ann!BX262","v":21},{"$f":"[1]ACS_16_5YR_B01001_with_ann!BY262","v":18},{"$f":"[1]ACS_16_5YR_B01001_with_ann!BZ262","v":7},{"$f":"[1]ACS_16_5YR_B01001_with_ann!CA262","v":9},{"$f":"[1]ACS_16_5YR_B01001_with_ann!CB262","v":25},{"$f":"[1]ACS_16_5YR_B01001_with_ann!CC262","v":18},{"$f":"[1]ACS_16_5YR_B01001_with_ann!CD262","v":29},{"$f":"[1]ACS_16_5YR_B01001_with_ann!CE262","v":23},{"$f":"[1]ACS_16_5YR_B01001_with_ann!CF262","v":57},{"$f":"[1]ACS_16_5YR_B01001_with_ann!CG262","v":30},{"$f":"[1]ACS_16_5YR_B01001_with_ann!CH262","v":8},{"$f":"[1]ACS_16_5YR_B01001_with_ann!CI262","v":11},{"$f":"[1]ACS_16_5YR_B01001_with_ann!CJ262","v":22},{"$f":"[1]ACS_16_5YR_B01001_with_ann!CK262","v":12},{"$f":"[1]ACS_16_5YR_B01001_with_ann!CL262","v":11},{"$f":"[1]ACS_16_5YR_B01001_with_ann!CM262","v":12},{"$f":"[1]ACS_16_5YR_B01001_with_ann!CN262","v":21},{"$f":"[1]ACS_16_5YR_B01001_with_ann!CO262","v":11},{"$f":"[1]ACS_16_5YR_B01001_with_ann!CP262","v":17},{"$f":"[1]ACS_16_5YR_B01001_with_ann!CQ262","v":14},{"$f":"[1]ACS_16_5YR_B01001_with_ann!CR262","v":9},{"$f":"[1]ACS_16_5YR_B01001_with_ann!CS262","v":7},{"$f":"[1]ACS_16_5YR_B01001_with_ann!CT262","v":5},{"$f":"[1]ACS_16_5YR_B01001_with_ann!CU262","v":6},{"$f":"[1]ACS_16_5YR_B01001_with_ann!CV262","v":7},{"$f":"[1]ACS_16_5YR_B01001_with_ann!CW262","v":9}]
["0600000US3301916340",3301916340,"060","Croydon",{"$f":"[1]ACS_16_5YR_B01001_with_ann!D262","v":863},{"$f":"[1]ACS_16_5YR_B01001_with_ann!E262","v":244},{"$f":"[1]ACS_16_5YR_B01001_with_ann!F262","v":423},{"$f":"[1]ACS_16_5YR_B01001_with_ann!G262","v":111},{"$f":"[1]ACS_16_5YR_B01001_with_ann!H262","v":11},{"$f":"[1]ACS_16_5YR_B01001_with_ann!I262","v":12},{"$f":"[1]ACS_16_5YR_B01001_with_ann!J262","v":23},{"$f":"[1]ACS_16_5YR_B01001_with_ann!K262","v":17},{"$f":"[1]ACS_16_5YR_B01001_with_ann!L262","v":29},{"$f":"[1]ACS_16_5YR_B01001_with_ann!M262","v":29},{"$f":"[1]ACS_16_5YR_B01001_with_ann!N262","v":4},{"$f":"[1]ACS_16_5YR_B01001_with_ann!O262","v":6},{"$f":"[1]ACS_16_5YR_B01001_with_ann!P262","v":17},{"$f":"[1]ACS_16_5YR_B01001_with_ann!Q262","v":20},{"$f":"[1]ACS_16_5YR_B01001_with_ann!R262","v":9},{"$f":"[1]ACS_16_5YR_B01001_with_ann!S262","v":17},{"$f":"[1]ACS_16_5YR_B01001_with_ann!T262","v":0},{"$f":"[1]ACS_16_5YR_B01001_with_ann!U262","v":11},{"$f":"[1]ACS_16_5YR_B01001_with_ann!V262","v":13},{"$f":"[1]ACS_16_5YR_B01001_with_ann!W262","v":13},{"$f":"[1]ACS_16_5YR_B01001_with_ann!X262","v":19},{"$f":"[1]ACS_16_5YR_B01001_with_ann!Y262","v":14},{"$f":"[1]ACS_16_5YR_B01001_with_ann!Z262","v":29},{"$f":"[1]ACS_16_5YR_B01001_with_ann!AA262","v":27},{"$f":"[1]ACS_16_5YR_B01001_with_ann!AB262","v":18},{"$f":"[1]ACS_16_5YR_B01001_with_ann!AC262","v":14},{"$f":"[1]ACS_16_5YR_B01001_with_ann!AD262","v":20},{"$f":"[1]ACS_16_5YR_B01001_with_ann!AE262","v":15},{"$f":"[1]ACS_16_5YR_B01001_with_ann!AF262","v":20},{"$f":"[1]ACS_16_5YR_B01001_with_ann!AG262","v":18},{"$f":"[1]ACS_16_5YR_B01001_with_ann!AH262","v":35},{"$f":"[1]ACS_16_5YR_B01001_with_ann!AI262","v":27},{"$f":"[1]ACS_16_5YR_B01001_with_ann!AJ262","v":30},{"$f":"[1]ACS_16_5YR_B01001_with_ann!AK262","v":21},{"$f":"[1]ACS_16_5YR_B01001_with_ann!AL262","v":25},{"$f":"[1]ACS_16_5YR_B01001_with_ann!AM262","v":21},{"$f":"[1]ACS_16_5YR_B01001_with_ann!AN262","v":50},{"$f":"[1]ACS_16_5YR_B01001_with_ann!AO262","v":35},{"$f":"[1]ACS_16_5YR_B01001_with_ann!AP262","v":9},{"$f":"[1]ACS_16_5YR_B01001_with_ann!AQ262","v":8},{"$f":"[1]ACS_16_5YR_B01001_with_ann!AR262","v":24},{"$f":"[1]ACS_16_5YR_B01001_with_ann!AS262","v":17},{"$f":"[1]ACS_16_5YR_B01001_with_ann!AT262","v":5},{"$f":"[1]ACS_16_5YR_B01001_with_ann!AU262","v":5},{"$f":"[1]ACS_16_5YR_B01001_with_ann!AV262","v":13},{"$f":"[1]ACS_16_5YR_B01001_with_ann!AW262","v":9},{"$f":"[1]ACS_16_5YR_B01001_with_ann!AX262","v":8},{"$f":"[1]ACS_16_5YR_B01001_with_ann!AY262","v":8},{"$f":"[1]ACS_16_5YR_B01001_with_ann!AZ262","v":12},{"$f":"[1]ACS_16_5YR_B01001_with_ann!BA262","v":9},{"$f":"[1]ACS_16_5YR_B01001_with_ann!BB262","v":440},{"$f":"[1]ACS_16_5YR_B01001_with_ann!BC262","v":156},{"$f":"[1]ACS_16_5YR_B01001_with_ann!BD262","v":12},{"$f":"[1]ACS_16_5YR_B01001_with_ann!BE262","v":11},{"$f":"[1]ACS_16_5YR_B01001_with_ann!BF263","v":27},{"$f":"[1]ACS_16_5YR_B01001_with_ann!BG263","v":20},{"$f":"[1]ACS_16_5YR_B01001_with_ann!BH263","v":7},{"$f":"[1]ACS_16_5YR_B01001_with_ann!BI263","v":8},{"$f":"[1]ACS_16_5YR_B01001_with_ann!BJ263","v":15},{"$f":"[1]ACS_16_5YR_B01001_with_ann!BK263","v":13},{"$f":"[1]ACS_16_5YR_B01001_with_ann!BL263","v":17},{"$f":"[1]ACS_16_5YR_B01001_with_ann!BM263","v":22},{"$f":"[1]ACS_16_5YR_B01001_with_ann!BN263","v":0},{"$f":"[1]ACS_16_5YR_B01001_with_ann!BO263","v":11},{"$f":"[1]ACS_16_5YR_B01001_with_ann!BP263","v":0},{"$f":"[1]ACS_16_5YR_B01001_with_ann!BQ263","v":11},{"$f":"[1]ACS_16_5YR_B01001_with_ann!BR263","v":0},{"$f":"[1]ACS_16_5YR_B01001_with_ann!BS263","v":11},{"$f":"[1]ACS_16_5YR_B01001_with_ann!BT263","v":28},{"$f":"[1]ACS_16_5YR_B01001_with_ann!BU263","v":20},{"$f":"[1]ACS_16_5YR_B01001_with_ann!BV263","v":24},{"$f":"[1]ACS_16_5YR_B01001_with_ann!BW263","v":18},{"$f":"[1]ACS_16_5YR_B01001_with_ann!BX263","v":8},{"$f":"[1]ACS_16_5YR_B01001_with_ann!BY263","v":7},{"$f":"[1]ACS_16_5YR_B01001_with_ann!BZ263","v":19},{"$f":"[1]ACS_16_5YR_B01001_with_ann!CA263","v":15},{"$f":"[1]ACS_16_5YR_B01001_with_ann!CB263","v":19},{"$f":"[1]ACS_16_5YR_B01001_with_ann!CC263","v":13},{"$f":"[1]ACS_16_5YR_B01001_with_ann!CD263","v":21},{"$f":"[1]ACS_16_5YR_B01001_with_ann!CE263","v":17},{"$f":"[1]ACS_16_5YR_B01001_with_ann!CF263","v":32},{"$f":"[1]ACS_16_5YR_B01001_with_ann!CG263","v":17},{"$f":"[1]ACS_16_5YR_B01001_with_ann!CH263","v":14},{"$f":"[1]ACS_16_5YR_B01001_with_ann!CI263","v":8},{"$f":"[1]ACS_16_5YR_B01001_with_ann!CJ263","v":10},{"$f":"[1]ACS_16_5YR_B01001_with_ann!CK263","v":9},{"$f":"[1]ACS_16_5YR_B01001_with_ann!CL263","v":14},{"$f":"[1]ACS_16_5YR_B01001_with_ann!CM263","v":9},{"$f":"[1]ACS_16_5YR_B01001_with_ann!CN263","v":3},{"$f":"[1]ACS_16_5YR_B01001_with_ann!CO263","v":4},{"$f":"[1]ACS_16_5YR_B01001_with_ann!CP263","v":32},{"$f":"[1]ACS_16_5YR_B01001_with_ann!CQ263","v":19},{"$f":"[1]ACS_16_5YR_B01001_with_ann!CR263","v":14},{"$f":"[1]ACS_16_5YR_B01001_with_ann!CS263","v":7},{"$f":"[1]ACS_16_5YR_B01001_with_ann!CT263","v":9},{"$f":"[1]ACS_16_5YR_B01001_with_ann!CU263","v":10},{"$f":"[1]ACS_16_5YR_B01001_with_ann!CV263","v":17},{"$f":"[1]ACS_16_5YR_B01001_with_ann!CW263","v":13}]
["0600000US3301930500",3301930500,"060","Goshen",{"$f":"[1]ACS_16_5YR_B01001_with_ann!D263","v":702},{"$f":"[1]ACS_16_5YR_B01001_with_ann!E263","v":108},{"$f":"[1]ACS_16_5YR_B01001_with_ann!F263","v":351},{"$f":"[1]ACS_16_5YR_B01001_with_ann!G263","v":69},{"$f":"[1]ACS_16_5YR_B01001_with_ann!H263","v":18},{"$f":"[1]ACS_16_5YR_B01001_with_ann!I263","v":14},{"$f":"[1]ACS_16_5YR_B01001_with_ann!J263","v":22},{"$f":"[1]ACS_16_5YR_B01001_with_ann!K263","v":16},{"$f":"[1]ACS_16_5YR_B01001_with_ann!L263","v":16},{"$f":"[1]ACS_16_5YR_B01001_with_ann!M263","v":13},{"$f":"[1]ACS_16_5YR_B01001_with_ann!N263","v":11},{"$f":"[1]ACS_16_5YR_B01001_with_ann!O263","v":11},{"$f":"[1]ACS_16_5YR_B01001_with_ann!P263","v":4},{"$f":"[1]ACS_16_5YR_B01001_with_ann!Q263","v":5},{"$f":"[1]ACS_16_5YR_B01001_with_ann!R263","v":0},{"$f":"[1]ACS_16_5YR_B01001_with_ann!S263","v":11},{"$f":"[1]ACS_16_5YR_B01001_with_ann!T263","v":0},{"$f":"[1]ACS_16_5YR_B01001_with_ann!U263","v":11},{"$f":"[1]ACS_16_5YR_B01001_with_ann!V263","v":13},{"$f":"[1]ACS_16_5YR_B01001_with_ann!W263","v":13},{"$f":"[1]ACS_16_5YR_B01001_with_ann!X263","v":9},{"$f":"[1]ACS_16_5YR_B01001_with_ann!Y263","v":8},{"$f":"[1]ACS_16_5YR_B01001_with_ann!Z263","v":17},{"$f":"[1]ACS_16_5YR_B01001_with_ann!AA263","v":14},{"$f":"[1]ACS_16_5YR_B01001_with_ann!AB263","v":18},{"$f":"[1]ACS_16_5YR_B01001_with_ann!AC263","v":14},{"$f":"[1]ACS_16_5YR_B01001_with_ann!AD263","v":32},{"$f":"[1]ACS_16_5YR_B01001_with_ann!AE263","v":18},{"$f":"[1]ACS_16_5YR_B01001_with_ann!AF263","v":29},{"$f":"[1]ACS_16_5YR_B01001_with_ann!AG263","v":20},{"$f":"[1]ACS_16_5YR_B01001_with_ann!AH263","v":44},{"$f":"[1]ACS_16_5YR_B01001_with_ann!AI263","v":28},{"$f":"[1]ACS_16_5YR_B01001_with_ann!AJ263","v":21},{"$f":"[1]ACS_16_5YR_B01001_with_ann!AK263","v":19},{"$f":"[1]ACS_16_5YR_B01001_with_ann!AL263","v":4},{"$f":"[1]ACS_16_5YR_B01001_with_ann!AM263","v":5},{"$f":"[1]ACS_16_5YR_B01001_with_ann!AN263","v":14},{"$f":"[1]ACS_16_5YR_B01001_with_ann!AO263","v":8},{"$f":"[1]ACS_16_5YR_B01001_with_ann!AP263","v":5},{"$f":"[1]ACS_16_5YR_B01001_with_ann!AQ263","v":4},{"$f":"[1]ACS_16_5YR_B01001_with_ann!AR263","v":24},{"$f":"[1]ACS_16_5YR_B01001_with_ann!AS263","v":19},{"$f":"[1]ACS_16_5YR_B01001_with_ann!AT263","v":30},{"$f":"[1]ACS_16_5YR_B01001_with_ann!AU263","v":20},{"$f":"[1]ACS_16_5YR_B01001_with_ann!AV263","v":8},{"$f":"[1]ACS_16_5YR_B01001_with_ann!AW263","v":7},{"$f":"[1]ACS_16_5YR_B01001_with_ann!AX263","v":10},{"$f":"[1]ACS_16_5YR_B01001_with_ann!AY263","v":11},{"$f":"[1]ACS_16_5YR_B01001_with_ann!AZ263","v":2},{"$f":"[1]ACS_16_5YR_B01001_with_ann!BA263","v":3},{"$f":"[1]ACS_16_5YR_B01001_with_ann!BB263","v":351},{"$f":"[1]ACS_16_5YR_B01001_with_ann!BC263","v":60},{"$f":"[1]ACS_16_5YR_B01001_with_ann!BD263","v":21},{"$f":"[1]ACS_16_5YR_B01001_with_ann!BE263","v":14},{"$f":"[1]ACS_16_5YR_B01001_with_ann!BF264","v":50},{"$f":"[1]ACS_16_5YR_B01001_with_ann!BG264","v":41},{"$f":"[1]ACS_16_5YR_B01001_with_ann!BH264","v":146},{"$f":"[1]ACS_16_5YR_B01001_with_ann!BI264","v":115},{"$f":"[1]ACS_16_5YR_B01001_with_ann!BJ264","v":54},{"$f":"[1]ACS_16_5YR_B01001_with_ann!BK264","v":48},{"$f":"[1]ACS_16_5YR_B01001_with_ann!BL264","v":23},{"$f":"[1]ACS_16_5YR_B01001_with_ann!BM264","v":27},{"$f":"[1]ACS_16_5YR_B01001_with_ann!BN264","v":25},{"$f":"[1]ACS_16_5YR_B01001_with_ann!BO264","v":39},{"$f":"[1]ACS_16_5YR_B01001_with_ann!BP264","v":0},{"$f":"[1]ACS_16_5YR_B01001_with_ann!BQ264","v":11},{"$f":"[1]ACS_16_5YR_B01001_with_ann!BR264","v":42},{"$f":"[1]ACS_16_5YR_B01001_with_ann!BS264","v":44},{"$f":"[1]ACS_16_5YR_B01001_with_ann!BT264","v":24},{"$f":"[1]ACS_16_5YR_B01001_with_ann!BU264","v":36},{"$f":"[1]ACS_16_5YR_B01001_with_ann!BV264","v":0},{"$f":"[1]ACS_16_5YR_B01001_with_ann!BW264","v":11},{"$f":"[1]ACS_16_5YR_B01001_with_ann!BX264","v":62},{"$f":"[1]ACS_16_5YR_B01001_with_ann!BY264","v":54},{"$f":"[1]ACS_16_5YR_B01001_with_ann!BZ264","v":165},{"$f":"[1]ACS_16_5YR_B01001_with_ann!CA264","v":93},{"$f":"[1]ACS_16_5YR_B01001_with_ann!CB264","v":112},{"$f":"[1]ACS_16_5YR_B01001_with_ann!CC264","v":68},{"$f":"[1]ACS_16_5YR_B01001_with_ann!CD264","v":213},{"$f":"[1]ACS_16_5YR_B01001_with_ann!CE264","v":111},{"$f":"[1]ACS_16_5YR_B01001_with_ann!CF264","v":219},{"$f":"[1]ACS_16_5YR_B01001_with_ann!CG264","v":114},{"$f":"[1]ACS_16_5YR_B01001_with_ann!CH264","v":65},{"$f":"[1]ACS_16_5YR_B01001_with_ann!CI264","v":74},{"$f":"[1]ACS_16_5YR_B01001_with_ann!CJ264","v":60},{"$f":"[1]ACS_16_5YR_B01001_with_ann!CK264","v":65},{"$f":"[1]ACS_16_5YR_B01001_with_ann!CL264","v":14},{"$f":"[1]ACS_16_5YR_B01001_with_ann!CM264","v":21},{"$f":"[1]ACS_16_5YR_B01001_with_ann!CN264","v":64},{"$f":"[1]ACS_16_5YR_B01001_with_ann!CO264","v":41},{"$f":"[1]ACS_16_5YR_B01001_with_ann!CP264","v":61},{"$f":"[1]ACS_16_5YR_B01001_with_ann!CQ264","v":41},{"$f":"[1]ACS_16_5YR_B01001_with_ann!CR264","v":54},{"$f":"[1]ACS_16_5YR_B01001_with_ann!CS264","v":39},{"$f":"[1]ACS_16_5YR_B01001_with_ann!CT264","v":110},{"$f":"[1]ACS_16_5YR_B01001_with_ann!CU264","v":69},{"$f":"[1]ACS_16_5YR_B01001_with_ann!CV264","v":0},{"$f":"[1]ACS_16_5YR_B01001_with_ann!CW264","v":11}]
["0600000US3301931220",3301931220,"060","Grantham",{"$f":"[1]ACS_16_5YR_B01001_with_ann!D264","v":2945},{"$f":"[1]ACS_16_5YR_B01001_with_ann!E264","v":14},{"$f":"[1]ACS_16_5YR_B01001_with_ann!F264","v":1382},{"$f":"[1]ACS_16_5YR_B01001_with_ann!G264","v":143},{"$f":"[1]ACS_16_5YR_B01001_with_ann!H264","v":0},{"$f":"[1]ACS_16_5YR_B01001_with_ann!I264","v":11},{"$f":"[1]ACS_16_5YR_B01001_with_ann!J264","v":103},{"$f":"[1]ACS_16_5YR_B01001_with_ann!K264","v":71},{"$f":"[1]ACS_16_5YR_B01001_with_ann!L264","v":103},{"$f":"[1]ACS_16_5YR_B01001_with_ann!M264","v":48},{"$f":"[1]ACS_16_5YR_B01001_with_ann!N264","v":65},{"$f":"[1]ACS_16_5YR_B01001_with_ann!O264","v":53},{"$f":"[1]ACS_16_5YR_B01001_with_ann!P264","v":23},{"$f":"[1]ACS_16_5YR_B01001_with_ann!Q264","v":33},{"$f":"[1]ACS_16_5YR_B01001_with_ann!R264","v":0},{"$f":"[1]ACS_16_5YR_B01001_with_ann!S264","v":11},{"$f":"[1]ACS_16_5YR_B01001_with_ann!T264","v":22},{"$f":"[1]ACS_16_5YR_B01001_with_ann!U264","v":32},{"$f":"[1]ACS_16_5YR_B01001_with_ann!V264","v":15},{"$f":"[1]ACS_16_5YR_B01001_with_ann!W264","v":22},{"$f":"[1]ACS_16_5YR_B01001_with_ann!X264","v":23},{"$f":"[1]ACS_16_5YR_B01001_with_ann!Y264","v":37},{"$f":"[1]ACS_16_5YR_B01001_with_ann!Z264","v":65},{"$f":"[1]ACS_16_5YR_B01001_with_ann!AA264","v":50},{"$f":"[1]ACS_16_5YR_B01001_with_ann!AB264","v":84},{"$f":"[1]ACS_16_5YR_B01001_with_ann!AC264","v":59},{"$f":"[1]ACS_16_5YR_B01001_with_ann!AD264","v":28},{"$f":"[1]ACS_16_5YR_B01001_with_ann!AE264","v":28},{"$f":"[1]ACS_16_5YR_B01001_with_ann!AF264","v":192},{"$f":"[1]ACS_16_5YR_B01001_with_ann!AG264","v":119},{"$f":"[1]ACS_16_5YR_B01001_with_ann!AH264","v":163},{"$f":"[1]ACS_16_5YR_B01001_with_ann!AI264","v":103},{"$f":"[1]ACS_16_5YR_B01001_with_ann!AJ264","v":114},{"$f":"[1]ACS_16_5YR_B01001_with_ann!AK264","v":79},{"$f":"[1]ACS_16_5YR_B01001_with_ann!AL264","v":0},{"$f":"[1]ACS_16_5YR_B01001_with_ann!AM264","v":11},{"$f":"[1]ACS_16_5YR_B01001_with_ann!AN264","v":32},{"$f":"[1]ACS_16_5YR_B01001_with_ann!AO264","v":46},{"$f":"[1]ACS_16_5YR_B01001_with_ann!AP264","v":27},{"$f":"[1]ACS_16_5YR_B01001_with_ann!AQ264","v":32},{"$f":"[1]ACS_16_5YR_B01001_with_ann!AR264","v":84},{"$f":"[1]ACS_16_5YR_B01001_with_ann!AS264","v":47},{"$f":"[1]ACS_16_5YR_B01001_with_ann!AT264","v":45},{"$f":"[1]ACS_16_5YR_B01001_with_ann!AU264","v":41},{"$f":"[1]ACS_16_5YR_B01001_with_ann!AV264","v":123},{"$f":"[1]ACS_16_5YR_B01001_with_ann!AW264","v":81},{"$f":"[1]ACS_16_5YR_B01001_with_ann!AX264","v":58},{"$f":"[1]ACS_16_5YR_B01001_with_ann!AY264","v":52},{"$f":"[1]ACS_16_5YR_B01001_with_ann!AZ264","v":13},{"$f":"[1]ACS_16_5YR_B01001_with_ann!BA264","v":20},{"$f":"[1]ACS_16_5YR_B01001_with_ann!BB264","v":1563},{"$f":"[1]ACS_16_5YR_B01001_with_ann!BC264","v":142},{"$f":"[1]ACS_16_5YR_B01001_with_ann!BD264","v":0},{"$f":"[1]ACS_16_5YR_B01001_with_ann!BE264","v":11},{"$f":"[1]ACS_16_5YR_B01001_with_ann!BF265","v":37},{"$f":"[1]ACS_16_5YR_B01001_with_ann!BG265","v":24},{"$f":"[1]ACS_16_5YR_B01001_with_ann!BH265","v":22},{"$f":"[1]ACS_16_5YR_B01001_with_ann!BI265","v":24},{"$f":"[1]ACS_16_5YR_B01001_with_ann!BJ265","v":2},{"$f":"[1]ACS_16_5YR_B01001_with_ann!BK265","v":5},{"$f":"[1]ACS_16_5YR_B01001_with_ann!BL265","v":8},{"$f":"[1]ACS_16_5YR_B01001_with_ann!BM265","v":10},{"$f":"[1]ACS_16_5YR_B01001_with_ann!BN265","v":0},{"$f":"[1]ACS_16_5YR_B01001_with_ann!BO265","v":11},{"$f":"[1]ACS_16_5YR_B01001_with_ann!BP265","v":0},{"$f":"[1]ACS_16_5YR_B01001_with_ann!BQ265","v":11},{"$f":"[1]ACS_16_5YR_B01001_with_ann!BR265","v":17},{"$f":"[1]ACS_16_5YR_B01001_with_ann!BS265","v":19},{"$f":"[1]ACS_16_5YR_B01001_with_ann!BT265","v":15},{"$f":"[1]ACS_16_5YR_B01001_with_ann!BU265","v":15},{"$f":"[1]ACS_16_5YR_B01001_with_ann!BV265","v":29},{"$f":"[1]ACS_16_5YR_B01001_with_ann!BW265","v":19},{"$f":"[1]ACS_16_5YR_B01001_with_ann!BX265","v":19},{"$f":"[1]ACS_16_5YR_B01001_with_ann!BY265","v":13},{"$f":"[1]ACS_16_5YR_B01001_with_ann!BZ265","v":11},{"$f":"[1]ACS_16_5YR_B01001_with_ann!CA265","v":9},{"$f":"[1]ACS_16_5YR_B01001_with_ann!CB265","v":20},{"$f":"[1]ACS_16_5YR_B01001_with_ann!CC265","v":13},{"$f":"[1]ACS_16_5YR_B01001_with_ann!CD265","v":39},{"$f":"[1]ACS_16_5YR_B01001_with_ann!CE265","v":20},{"$f":"[1]ACS_16_5YR_B01001_with_ann!CF265","v":55},{"$f":"[1]ACS_16_5YR_B01001_with_ann!CG265","v":30},{"$f":"[1]ACS_16_5YR_B01001_with_ann!CH265","v":12},{"$f":"[1]ACS_16_5YR_B01001_with_ann!CI265","v":12},{"$f":"[1]ACS_16_5YR_B01001_with_ann!CJ265","v":18},{"$f":"[1]ACS_16_5YR_B01001_with_ann!CK265","v":10},{"$f":"[1]ACS_16_5YR_B01001_with_ann!CL265","v":13},{"$f":"[1]ACS_16_5YR_B01001_with_ann!CM265","v":6},{"$f":"[1]ACS_16_5YR_B01001_with_ann!CN265","v":10},{"$f":"[1]ACS_16_5YR_B01001_with_ann!CO265","v":8},{"$f":"[1]ACS_16_5YR_B01001_with_ann!CP265","v":12},{"$f":"[1]ACS_16_5YR_B01001_with_ann!CQ265","v":7},{"$f":"[1]ACS_16_5YR_B01001_with_ann!CR265","v":7},{"$f":"[1]ACS_16_5YR_B01001_with_ann!CS265","v":6},{"$f":"[1]ACS_16_5YR_B01001_with_ann!CT265","v":6},{"$f":"[1]ACS_16_5YR_B01001_with_ann!CU265","v":5},{"$f":"[1]ACS_16_5YR_B01001_with_ann!CV265","v":2},{"$f":"[1]ACS_16_5YR_B01001_with_ann!CW265","v":3}]
["0600000US3301940900",3301940900,"060","Langdon",{"$f":"[1]ACS_16_5YR_B01001_with_ann!D265","v":712},{"$f":"[1]ACS_16_5YR_B01001_with_ann!E265","v":145},{"$f":"[1]ACS_16_5YR_B01001_with_ann!F265","v":342},{"$f":"[1]ACS_16_5YR_B01001_with_ann!G265","v":85},{"$f":"[1]ACS_16_5YR_B01001_with_ann!H265","v":16},{"$f":"[1]ACS_16_5YR_B01001_with_ann!I265","v":14},{"$f":"[1]ACS_16_5YR_B01001_with_ann!J265","v":29},{"$f":"[1]ACS_16_5YR_B01001_with_ann!K265","v":19},{"$f":"[1]ACS_16_5YR_B01001_with_ann!L265","v":38},{"$f":"[1]ACS_16_5YR_B01001_with_ann!M265","v":34},{"$f":"[1]ACS_16_5YR_B01001_with_ann!N265","v":9},{"$f":"[1]ACS_16_5YR_B01001_with_ann!O265","v":9},{"$f":"[1]ACS_16_5YR_B01001_with_ann!P265","v":8},{"$f":"[1]ACS_16_5YR_B01001_with_ann!Q265","v":8},{"$f":"[1]ACS_16_5YR_B01001_with_ann!R265","v":0},{"$f":"[1]ACS_16_5YR_B01001_with_ann!S265","v":11},{"$f":"[1]ACS_16_5YR_B01001_with_ann!T265","v":0},{"$f":"[1]ACS_16_5YR_B01001_with_ann!U265","v":11},{"$f":"[1]ACS_16_5YR_B01001_with_ann!V265","v":0},{"$f":"[1]ACS_16_5YR_B01001_with_ann!W265","v":11},{"$f":"[1]ACS_16_5YR_B01001_with_ann!X265","v":22},{"$f":"[1]ACS_16_5YR_B01001_with_ann!Y265","v":20},{"$f":"[1]ACS_16_5YR_B01001_with_ann!Z265","v":23},{"$f":"[1]ACS_16_5YR_B01001_with_ann!AA265","v":14},{"$f":"[1]ACS_16_5YR_B01001_with_ann!AB265","v":25},{"$f":"[1]ACS_16_5YR_B01001_with_ann!AC265","v":16},{"$f":"[1]ACS_16_5YR_B01001_with_ann!AD265","v":15},{"$f":"[1]ACS_16_5YR_B01001_with_ann!AE265","v":12},{"$f":"[1]ACS_16_5YR_B01001_with_ann!AF265","v":21},{"$f":"[1]ACS_16_5YR_B01001_with_ann!AG265","v":16},{"$f":"[1]ACS_16_5YR_B01001_with_ann!AH265","v":24},{"$f":"[1]ACS_16_5YR_B01001_with_ann!AI265","v":15},{"$f":"[1]ACS_16_5YR_B01001_with_ann!AJ265","v":34},{"$f":"[1]ACS_16_5YR_B01001_with_ann!AK265","v":22},{"$f":"[1]ACS_16_5YR_B01001_with_ann!AL265","v":6},{"$f":"[1]ACS_16_5YR_B01001_with_ann!AM265","v":5},{"$f":"[1]ACS_16_5YR_B01001_with_ann!AN265","v":18},{"$f":"[1]ACS_16_5YR_B01001_with_ann!AO265","v":15},{"$f":"[1]ACS_16_5YR_B01001_with_ann!AP265","v":10},{"$f":"[1]ACS_16_5YR_B01001_with_ann!AQ265","v":7},{"$f":"[1]ACS_16_5YR_B01001_with_ann!AR265","v":17},{"$f":"[1]ACS_16_5YR_B01001_with_ann!AS265","v":10},{"$f":"[1]ACS_16_5YR_B01001_with_ann!AT265","v":12},{"$f":"[1]ACS_16_5YR_B01001_with_ann!AU265","v":7},{"$f":"[1]ACS_16_5YR_B01001_with_ann!AV265","v":5},{"$f":"[1]ACS_16_5YR_B01001_with_ann!AW265","v":6},{"$f":"[1]ACS_16_5YR_B01001_with_ann!AX265","v":2},{"$f":"[1]ACS_16_5YR_B01001_with_ann!AY265","v":4},{"$f":"[1]ACS_16_5YR_B01001_with_ann!AZ265","v":8},{"$f":"[1]ACS_16_5YR_B01001_with_ann!BA265","v":6},{"$f":"[1]ACS_16_5YR_B01001_with_ann!BB265","v":370},{"$f":"[1]ACS_16_5YR_B01001_with_ann!BC265","v":73},{"$f":"[1]ACS_16_5YR_B01001_with_ann!BD265","v":16},{"$f":"[1]ACS_16_5YR_B01001_with_ann!BE265","v":13},{"$f":"[1]ACS_16_5YR_B01001_with_ann!BF266","v":30},{"$f":"[1]ACS_16_5YR_B01001_with_ann!BG266","v":20},{"$f":"[1]ACS_16_5YR_B01001_with_ann!BH266","v":29},{"$f":"[1]ACS_16_5YR_B01001_with_ann!BI266","v":35},{"$f":"[1]ACS_16_5YR_B01001_with_ann!BJ266","v":62},{"$f":"[1]ACS_16_5YR_B01001_with_ann!BK266","v":56},{"$f":"[1]ACS_16_5YR_B01001_with_ann!BL266","v":0},{"$f":"[1]ACS_16_5YR_B01001_with_ann!BM266","v":11},{"$f":"[1]ACS_16_5YR_B01001_with_ann!BN266","v":7},{"$f":"[1]ACS_16_5YR_B01001_with_ann!BO266","v":10},{"$f":"[1]ACS_16_5YR_B01001_with_ann!BP266","v":0},{"$f":"[1]ACS_16_5YR_B01001_with_ann!BQ266","v":11},{"$f":"[1]ACS_16_5YR_B01001_with_ann!BR266","v":0},{"$f":"[1]ACS_16_5YR_B01001_with_ann!BS266","v":11},{"$f":"[1]ACS_16_5YR_B01001_with_ann!BT266","v":21},{"$f":"[1]ACS_16_5YR_B01001_with_ann!BU266","v":11},{"$f":"[1]ACS_16_5YR_B01001_with_ann!BV266","v":26},{"$f":"[1]ACS_16_5YR_B01001_with_ann!BW266","v":21},{"$f":"[1]ACS_16_5YR_B01001_with_ann!BX266","v":21},{"$f":"[1]ACS_16_5YR_B01001_with_ann!BY266","v":19},{"$f":"[1]ACS_16_5YR_B01001_with_ann!BZ266","v":15},{"$f":"[1]ACS_16_5YR_B01001_with_ann!CA266","v":15},{"$f":"[1]ACS_16_5YR_B01001_with_ann!CB266","v":45},{"$f":"[1]ACS_16_5YR_B01001_with_ann!CC266","v":32},{"$f":"[1]ACS_16_5YR_B01001_with_ann!CD266","v":11},{"$f":"[1]ACS_16_5YR_B01001_with_ann!CE266","v":13},{"$f":"[1]ACS_16_5YR_B01001_with_ann!CF266","v":47},{"$f":"[1]ACS_16_5YR_B01001_with_ann!CG266","v":24},{"$f":"[1]ACS_16_5YR_B01001_with_ann!CH266","v":18},{"$f":"[1]ACS_16_5YR_B01001_with_ann!CI266","v":9},{"$f":"[1]ACS_16_5YR_B01001_with_ann!CJ266","v":34},{"$f":"[1]ACS_16_5YR_B01001_with_ann!CK266","v":19},{"$f":"[1]ACS_16_5YR_B01001_with_ann!CL266","v":13},{"$f":"[1]ACS_16_5YR_B01001_with_ann!CM266","v":13},{"$f":"[1]ACS_16_5YR_B01001_with_ann!CN266","v":17},{"$f":"[1]ACS_16_5YR_B01001_with_ann!CO266","v":12},{"$f":"[1]ACS_16_5YR_B01001_with_ann!CP266","v":21},{"$f":"[1]ACS_16_5YR_B01001_with_ann!CQ266","v":15},{"$f":"[1]ACS_16_5YR_B01001_with_ann!CR266","v":11},{"$f":"[1]ACS_16_5YR_B01001_with_ann!CS266","v":9},{"$f":"[1]ACS_16_5YR_B01001_with_ann!CT266","v":23},{"$f":"[1]ACS_16_5YR_B01001_with_ann!CU266","v":26},{"$f":"[1]ACS_16_5YR_B01001_with_ann!CV266","v":5},{"$f":"[1]ACS_16_5YR_B01001_with_ann!CW266","v":5}]
["0600000US3301941700",3301941700,"060","Lempster",{"$f":"[1]ACS_16_5YR_B01001_with_ann!D266","v":923},{"$f":"[1]ACS_16_5YR_B01001_with_ann!E266","v":176},{"$f":"[1]ACS_16_5YR_B01001_with_ann!F266","v":432},{"$f":"[1]ACS_16_5YR_B01001_with_ann!G266","v":77},{"$f":"[1]ACS_16_5YR_B01001_with_ann!H266","v":31},{"$f":"[1]ACS_16_5YR_B01001_with_ann!I266","v":21},{"$f":"[1]ACS_16_5YR_B01001_with_ann!J266","v":15},{"$f":"[1]ACS_16_5YR_B01001_with_ann!K266","v":12},{"$f":"[1]ACS_16_5YR_B01001_with_ann!L266","v":13},{"$f":"[1]ACS_16_5YR_B01001_with_ann!M266","v":15},{"$f":"[1]ACS_16_5YR_B01001_with_ann!N266","v":8},{"$f":"[1]ACS_16_5YR_B01001_with_ann!O266","v":7},{"$f":"[1]ACS_16_5YR_B01001_with_ann!P266","v":0},{"$f":"[1]ACS_16_5YR_B01001_with_ann!Q266","v":11},{"$f":"[1]ACS_16_5YR_B01001_with_ann!R266","v":0},{"$f":"[1]ACS_16_5YR_B01001_with_ann!S266","v":11},{"$f":"[1]ACS_16_5YR_B01001_with_ann!T266","v":0},{"$f":"[1]ACS_16_5YR_B01001_with_ann!U266","v":11},{"$f":"[1]ACS_16_5YR_B01001_with_ann!V266","v":12},{"$f":"[1]ACS_16_5YR_B01001_with_ann!W266","v":11},{"$f":"[1]ACS_16_5YR_B01001_with_ann!X266","v":6},{"$f":"[1]ACS_16_5YR_B01001_with_ann!Y266","v":6},{"$f":"[1]ACS_16_5YR_B01001_with_ann!Z266","v":16},{"$f":"[1]ACS_16_5YR_B01001_with_ann!AA266","v":11},{"$f":"[1]ACS_16_5YR_B01001_with_ann!AB266","v":43},{"$f":"[1]ACS_16_5YR_B01001_with_ann!AC266","v":23},{"$f":"[1]ACS_16_5YR_B01001_with_ann!AD266","v":31},{"$f":"[1]ACS_16_5YR_B01001_with_ann!AE266","v":23},{"$f":"[1]ACS_16_5YR_B01001_with_ann!AF266","v":78},{"$f":"[1]ACS_16_5YR_B01001_with_ann!AG266","v":41},{"$f":"[1]ACS_16_5YR_B01001_with_ann!AH266","v":17},{"$f":"[1]ACS_16_5YR_B01001_with_ann!AI266","v":18},{"$f":"[1]ACS_16_5YR_B01001_with_ann!AJ266","v":48},{"$f":"[1]ACS_16_5YR_B01001_with_ann!AK266","v":23},{"$f":"[1]ACS_16_5YR_B01001_with_ann!AL266","v":12},{"$f":"[1]ACS_16_5YR_B01001_with_ann!AM266","v":9},{"$f":"[1]ACS_16_5YR_B01001_with_ann!AN266","v":20},{"$f":"[1]ACS_16_5YR_B01001_with_ann!AO266","v":10},{"$f":"[1]ACS_16_5YR_B01001_with_ann!AP266","v":30},{"$f":"[1]ACS_16_5YR_B01001_with_ann!AQ266","v":23},{"$f":"[1]ACS_16_5YR_B01001_with_ann!AR266","v":8},{"$f":"[1]ACS_16_5YR_B01001_with_ann!AS266","v":6},{"$f":"[1]ACS_16_5YR_B01001_with_ann!AT266","v":30},{"$f":"[1]ACS_16_5YR_B01001_with_ann!AU266","v":18},{"$f":"[1]ACS_16_5YR_B01001_with_ann!AV266","v":4},{"$f":"[1]ACS_16_5YR_B01001_with_ann!AW266","v":4},{"$f":"[1]ACS_16_5YR_B01001_with_ann!AX266","v":8},{"$f":"[1]ACS_16_5YR_B01001_with_ann!AY266","v":8},{"$f":"[1]ACS_16_5YR_B01001_with_ann!AZ266","v":2},{"$f":"[1]ACS_16_5YR_B01001_with_ann!BA266","v":4},{"$f":"[1]ACS_16_5YR_B01001_with_ann!BB266","v":491},{"$f":"[1]ACS_16_5YR_B01001_with_ann!BC266","v":123},{"$f":"[1]ACS_16_5YR_B01001_with_ann!BD266","v":35},{"$f":"[1]ACS_16_5YR_B01001_with_ann!BE266","v":23},{"$f":"[1]ACS_16_5YR_B01001_with_ann!BF267","v":160},{"$f":"[1]ACS_16_5YR_B01001_with_ann!BG267","v":115},{"$f":"[1]ACS_16_5YR_B01001_with_ann!BH267","v":155},{"$f":"[1]ACS_16_5YR_B01001_with_ann!BI267","v":107},{"$f":"[1]ACS_16_5YR_B01001_with_ann!BJ267","v":91},{"$f":"[1]ACS_16_5YR_B01001_with_ann!BK267","v":82},{"$f":"[1]ACS_16_5YR_B01001_with_ann!BL267","v":62},{"$f":"[1]ACS_16_5YR_B01001_with_ann!BM267","v":49},{"$f":"[1]ACS_16_5YR_B01001_with_ann!BN267","v":35},{"$f":"[1]ACS_16_5YR_B01001_with_ann!BO267","v":55},{"$f":"[1]ACS_16_5YR_B01001_with_ann!BP267","v":31},{"$f":"[1]ACS_16_5YR_B01001_with_ann!BQ267","v":39},{"$f":"[1]ACS_16_5YR_B01001_with_ann!BR267","v":95},{"$f":"[1]ACS_16_5YR_B01001_with_ann!BS267","v":66},{"$f":"[1]ACS_16_5YR_B01001_with_ann!BT267","v":183},{"$f":"[1]ACS_16_5YR_B01001_with_ann!BU267","v":66},{"$f":"[1]ACS_16_5YR_B01001_with_ann!BV267","v":114},{"$f":"[1]ACS_16_5YR_B01001_with_ann!BW267","v":85},{"$f":"[1]ACS_16_5YR_B01001_with_ann!BX267","v":269},{"$f":"[1]ACS_16_5YR_B01001_with_ann!BY267","v":133},{"$f":"[1]ACS_16_5YR_B01001_with_ann!BZ267","v":217},{"$f":"[1]ACS_16_5YR_B01001_with_ann!CA267","v":129},{"$f":"[1]ACS_16_5YR_B01001_with_ann!CB267","v":360},{"$f":"[1]ACS_16_5YR_B01001_with_ann!CC267","v":131},{"$f":"[1]ACS_16_5YR_B01001_with_ann!CD267","v":226},{"$f":"[1]ACS_16_5YR_B01001_with_ann!CE267","v":93},{"$f":"[1]ACS_16_5YR_B01001_with_ann!CF267","v":182},{"$f":"[1]ACS_16_5YR_B01001_with_ann!CG267","v":97},{"$f":"[1]ACS_16_5YR_B01001_with_ann!CH267","v":97},{"$f":"[1]ACS_16_5YR_B01001_with_ann!CI267","v":80},{"$f":"[1]ACS_16_5YR_B01001_with_ann!CJ267","v":68},{"$f":"[1]ACS_16_5YR_B01001_with_ann!CK267","v":47},{"$f":"[1]ACS_16_5YR_B01001_with_ann!CL267","v":51},{"$f":"[1]ACS_16_5YR_B01001_with_ann!CM267","v":40},{"$f":"[1]ACS_16_5YR_B01001_with_ann!CN267","v":110},{"$f":"[1]ACS_16_5YR_B01001_with_ann!CO267","v":85},{"$f":"[1]ACS_16_5YR_B01001_with_ann!CP267","v":155},{"$f":"[1]ACS_16_5YR_B01001_with_ann!CQ267","v":92},{"$f":"[1]ACS_16_5YR_B01001_with_ann!CR267","v":70},{"$f":"[1]ACS_16_5YR_B01001_with_ann!CS267","v":55},{"$f":"[1]ACS_16_5YR_B01001_with_ann!CT267","v":105},{"$f":"[1]ACS_16_5YR_B01001_with_ann!CU267","v":59},{"$f":"[1]ACS_16_5YR_B01001_with_ann!CV267","v":151},{"$f":"[1]ACS_16_5YR_B01001_with_ann!CW267","v":96}]
["0600000US3301952580",3301952580,"060","Newport",{"$f":"[1]ACS_16_5YR_B01001_with_ann!D267","v":6374},{"$f":"[1]ACS_16_5YR_B01001_with_ann!E267","v":19},{"$f":"[1]ACS_16_5YR_B01001_with_ann!F267","v":3287},{"$f":"[1]ACS_16_5YR_B01001_with_ann!G267","v":221},{"$f":"[1]ACS_16_5YR_B01001_with_ann!H267","v":185},{"$f":"[1]ACS_16_5YR_B01001_with_ann!I267","v":95},{"$f":"[1]ACS_16_5YR_B01001_with_ann!J267","v":105},{"$f":"[1]ACS_16_5YR_B01001_with_ann!K267","v":67},{"$f":"[1]ACS_16_5YR_B01001_with_ann!L267","v":230},{"$f":"[1]ACS_16_5YR_B01001_with_ann!M267","v":162},{"$f":"[1]ACS_16_5YR_B01001_with_ann!N267","v":192},{"$f":"[1]ACS_16_5YR_B01001_with_ann!O267","v":109},{"$f":"[1]ACS_16_5YR_B01001_with_ann!P267","v":123},{"$f":"[1]ACS_16_5YR_B01001_with_ann!Q267","v":89},{"$f":"[1]ACS_16_5YR_B01001_with_ann!R267","v":72},{"$f":"[1]ACS_16_5YR_B01001_with_ann!S267","v":81},{"$f":"[1]ACS_16_5YR_B01001_with_ann!T267","v":83},{"$f":"[1]ACS_16_5YR_B01001_with_ann!U267","v":68},{"$f":"[1]ACS_16_5YR_B01001_with_ann!V267","v":106},{"$f":"[1]ACS_16_5YR_B01001_with_ann!W267","v":62},{"$f":"[1]ACS_16_5YR_B01001_with_ann!X267","v":211},{"$f":"[1]ACS_16_5YR_B01001_with_ann!Y267","v":113},{"$f":"[1]ACS_16_5YR_B01001_with_ann!Z267","v":165},{"$f":"[1]ACS_16_5YR_B01001_with_ann!AA267","v":85},{"$f":"[1]ACS_16_5YR_B01001_with_ann!AB267","v":105},{"$f":"[1]ACS_16_5YR_B01001_with_ann!AC267","v":101},{"$f":"[1]ACS_16_5YR_B01001_with_ann!AD267","v":212},{"$f":"[1]ACS_16_5YR_B01001_with_ann!AE267","v":113},{"$f":"[1]ACS_16_5YR_B01001_with_ann!AF267","v":132},{"$f":"[1]ACS_16_5YR_B01001_with_ann!AG267","v":96},{"$f":"[1]ACS_16_5YR_B01001_with_ann!AH267","v":244},{"$f":"[1]ACS_16_5YR_B01001_with_ann!AI267","v":101},{"$f":"[1]ACS_16_5YR_B01001_with_ann!AJ267","v":340},{"$f":"[1]ACS_16_5YR_B01001_with_ann!AK267","v":135},{"$f":"[1]ACS_16_5YR_B01001_with_ann!AL267","v":83},{"$f":"[1]ACS_16_5YR_B01001_with_ann!AM267","v":59},{"$f":"[1]ACS_16_5YR_B01001_with_ann!AN267","v":160},{"$f":"[1]ACS_16_5YR_B01001_with_ann!AO267","v":127},{"$f":"[1]ACS_16_5YR_B01001_with_ann!AP267","v":69},{"$f":"[1]ACS_16_5YR_B01001_with_ann!AQ267","v":74},{"$f":"[1]ACS_16_5YR_B01001_with_ann!AR267","v":134},{"$f":"[1]ACS_16_5YR_B01001_with_ann!AS267","v":119},{"$f":"[1]ACS_16_5YR_B01001_with_ann!AT267","v":215},{"$f":"[1]ACS_16_5YR_B01001_with_ann!AU267","v":102},{"$f":"[1]ACS_16_5YR_B01001_with_ann!AV267","v":66},{"$f":"[1]ACS_16_5YR_B01001_with_ann!AW267","v":70},{"$f":"[1]ACS_16_5YR_B01001_with_ann!AX267","v":30},{"$f":"[1]ACS_16_5YR_B01001_with_ann!AY267","v":34},{"$f":"[1]ACS_16_5YR_B01001_with_ann!AZ267","v":25},{"$f":"[1]ACS_16_5YR_B01001_with_ann!BA267","v":27},{"$f":"[1]ACS_16_5YR_B01001_with_ann!BB267","v":3087},{"$f":"[1]ACS_16_5YR_B01001_with_ann!BC267","v":220},{"$f":"[1]ACS_16_5YR_B01001_with_ann!BD267","v":100},{"$f":"[1]ACS_16_5YR_B01001_with_ann!BE267","v":62},{"$f":"[1]ACS_16_5YR_B01001_with_ann!BF268","v":61},{"$f":"[1]ACS_16_5YR_B01001_with_ann!BG268","v":37},{"$f":"[1]ACS_16_5YR_B01001_with_ann!BH268","v":83},{"$f":"[1]ACS_16_5YR_B01001_with_ann!BI268","v":39},{"$f":"[1]ACS_16_5YR_B01001_with_ann!BJ268","v":41},{"$f":"[1]ACS_16_5YR_B01001_with_ann!BK268","v":44},{"$f":"[1]ACS_16_5YR_B01001_with_ann!BL268","v":63},{"$f":"[1]ACS_16_5YR_B01001_with_ann!BM268","v":39},{"$f":"[1]ACS_16_5YR_B01001_with_ann!BN268","v":37},{"$f":"[1]ACS_16_5YR_B01001_with_ann!BO268","v":37},{"$f":"[1]ACS_16_5YR_B01001_with_ann!BP268","v":18},{"$f":"[1]ACS_16_5YR_B01001_with_ann!BQ268","v":26},{"$f":"[1]ACS_16_5YR_B01001_with_ann!BR268","v":38},{"$f":"[1]ACS_16_5YR_B01001_with_ann!BS268","v":25},{"$f":"[1]ACS_16_5YR_B01001_with_ann!BT268","v":43},{"$f":"[1]ACS_16_5YR_B01001_with_ann!BU268","v":27},{"$f":"[1]ACS_16_5YR_B01001_with_ann!BV268","v":81},{"$f":"[1]ACS_16_5YR_B01001_with_ann!BW268","v":39},{"$f":"[1]ACS_16_5YR_B01001_with_ann!BX268","v":62},{"$f":"[1]ACS_16_5YR_B01001_with_ann!BY268","v":39},{"$f":"[1]ACS_16_5YR_B01001_with_ann!BZ268","v":64},{"$f":"[1]ACS_16_5YR_B01001_with_ann!CA268","v":38},{"$f":"[1]ACS_16_5YR_B01001_with_ann!CB268","v":79},{"$f":"[1]ACS_16_5YR_B01001_with_ann!CC268","v":40},{"$f":"[1]ACS_16_5YR_B01001_with_ann!CD268","v":100},{"$f":"[1]ACS_16_5YR_B01001_with_ann!CE268","v":50},{"$f":"[1]ACS_16_5YR_B01001_with_ann!CF268","v":104},{"$f":"[1]ACS_16_5YR_B01001_with_ann!CG268","v":38},{"$f":"[1]ACS_16_5YR_B01001_with_ann!CH268","v":56},{"$f":"[1]ACS_16_5YR_B01001_with_ann!CI268","v":23},{"$f":"[1]ACS_16_5YR_B01001_with_ann!CJ268","v":56},{"$f":"[1]ACS_16_5YR_B01001_with_ann!CK268","v":24},{"$f":"[1]ACS_16_5YR_B01001_with_ann!CL268","v":48},{"$f":"[1]ACS_16_5YR_B01001_with_ann!CM268","v":25},{"$f":"[1]ACS_16_5YR_B01001_with_ann!CN268","v":56},{"$f":"[1]ACS_16_5YR_B01001_with_ann!CO268","v":42},{"$f":"[1]ACS_16_5YR_B01001_with_ann!CP268","v":77},{"$f":"[1]ACS_16_5YR_B01001_with_ann!CQ268","v":40},{"$f":"[1]ACS_16_5YR_B01001_with_ann!CR268","v":37},{"$f":"[1]ACS_16_5YR_B01001_with_ann!CS268","v":27},{"$f":"[1]ACS_16_5YR_B01001_with_ann!CT268","v":23},{"$f":"[1]ACS_16_5YR_B01001_with_ann!CU268","v":20},{"$f":"[1]ACS_16_5YR_B01001_with_ann!CV268","v":0},{"$f":"[1]ACS_16_5YR_B01001_with_ann!CW268","v":11}]
["0600000US3301962340",3301962340,"060","Plainfield",{"$f":"[1]ACS_16_5YR_B01001_with_ann!D268","v":2555},{"$f":"[1]ACS_16_5YR_B01001_with_ann!E268","v":293},{"$f":"[1]ACS_16_5YR_B01001_with_ann!F268","v":1278},{"$f":"[1]ACS_16_5YR_B01001_with_ann!G268","v":174},{"$f":"[1]ACS_16_5YR_B01001_with_ann!H268","v":32},{"$f":"[1]ACS_16_5YR_B01001_with_ann!I268","v":34},{"$f":"[1]ACS_16_5YR_B01001_with_ann!J268","v":41},{"$f":"[1]ACS_16_5YR_B01001_with_ann!K268","v":22},{"$f":"[1]ACS_16_5YR_B01001_with_ann!L268","v":108},{"$f":"[1]ACS_16_5YR_B01001_with_ann!M268","v":56},{"$f":"[1]ACS_16_5YR_B01001_with_ann!N268","v":81},{"$f":"[1]ACS_16_5YR_B01001_with_ann!O268","v":49},{"$f":"[1]ACS_16_5YR_B01001_with_ann!P268","v":92},{"$f":"[1]ACS_16_5YR_B01001_with_ann!Q268","v":65},{"$f":"[1]ACS_16_5YR_B01001_with_ann!R268","v":43},{"$f":"[1]ACS_16_5YR_B01001_with_ann!S268","v":44},{"$f":"[1]ACS_16_5YR_B01001_with_ann!T268","v":15},{"$f":"[1]ACS_16_5YR_B01001_with_ann!U268","v":15},{"$f":"[1]ACS_16_5YR_B01001_with_ann!V268","v":12},{"$f":"[1]ACS_16_5YR_B01001_with_ann!W268","v":16},{"$f":"[1]ACS_16_5YR_B01001_with_ann!X268","v":44},{"$f":"[1]ACS_16_5YR_B01001_with_ann!Y268","v":28},{"$f":"[1]ACS_16_5YR_B01001_with_ann!Z268","v":55},{"$f":"[1]ACS_16_5YR_B01001_with_ann!AA268","v":33},{"$f":"[1]ACS_16_5YR_B01001_with_ann!AB268","v":66},{"$f":"[1]ACS_16_5YR_B01001_with_ann!AC268","v":37},{"$f":"[1]ACS_16_5YR_B01001_with_ann!AD268","v":38},{"$f":"[1]ACS_16_5YR_B01001_with_ann!AE268","v":20},{"$f":"[1]ACS_16_5YR_B01001_with_ann!AF268","v":106},{"$f":"[1]ACS_16_5YR_B01001_with_ann!AG268","v":55},{"$f":"[1]ACS_16_5YR_B01001_with_ann!AH268","v":114},{"$f":"[1]ACS_16_5YR_B01001_with_ann!AI268","v":52},{"$f":"[1]ACS_16_5YR_B01001_with_ann!AJ268","v":63},{"$f":"[1]ACS_16_5YR_B01001_with_ann!AK268","v":30},{"$f":"[1]ACS_16_5YR_B01001_with_ann!AL268","v":54},{"$f":"[1]ACS_16_5YR_B01001_with_ann!AM268","v":26},{"$f":"[1]ACS_16_5YR_B01001_with_ann!AN268","v":80},{"$f":"[1]ACS_16_5YR_B01001_with_ann!AO268","v":29},{"$f":"[1]ACS_16_5YR_B01001_with_ann!AP268","v":36},{"$f":"[1]ACS_16_5YR_B01001_with_ann!AQ268","v":20},{"$f":"[1]ACS_16_5YR_B01001_with_ann!AR268","v":33},{"$f":"[1]ACS_16_5YR_B01001_with_ann!AS268","v":21},{"$f":"[1]ACS_16_5YR_B01001_with_ann!AT268","v":109},{"$f":"[1]ACS_16_5YR_B01001_with_ann!AU268","v":52},{"$f":"[1]ACS_16_5YR_B01001_with_ann!AV268","v":41},{"$f":"[1]ACS_16_5YR_B01001_with_ann!AW268","v":27},{"$f":"[1]ACS_16_5YR_B01001_with_ann!AX268","v":0},{"$f":"[1]ACS_16_5YR_B01001_with_ann!AY268","v":11},{"$f":"[1]ACS_16_5YR_B01001_with_ann!AZ268","v":15},{"$f":"[1]ACS_16_5YR_B01001_with_ann!BA268","v":23},{"$f":"[1]ACS_16_5YR_B01001_with_ann!BB268","v":1277},{"$f":"[1]ACS_16_5YR_B01001_with_ann!BC268","v":157},{"$f":"[1]ACS_16_5YR_B01001_with_ann!BD268","v":50},{"$f":"[1]ACS_16_5YR_B01001_with_ann!BE268","v":55},{"$f":"[1]ACS_16_5YR_B01001_with_ann!BF269","v":28},{"$f":"[1]ACS_16_5YR_B01001_with_ann!BG269","v":37},{"$f":"[1]ACS_16_5YR_B01001_with_ann!BH269","v":19},{"$f":"[1]ACS_16_5YR_B01001_with_ann!BI269","v":15},{"$f":"[1]ACS_16_5YR_B01001_with_ann!BJ269","v":23},{"$f":"[1]ACS_16_5YR_B01001_with_ann!BK269","v":16},{"$f":"[1]ACS_16_5YR_B01001_with_ann!BL269","v":11},{"$f":"[1]ACS_16_5YR_B01001_with_ann!BM269","v":18},{"$f":"[1]ACS_16_5YR_B01001_with_ann!BN269","v":0},{"$f":"[1]ACS_16_5YR_B01001_with_ann!BO269","v":11},{"$f":"[1]ACS_16_5YR_B01001_with_ann!BP269","v":0},{"$f":"[1]ACS_16_5YR_B01001_with_ann!BQ269","v":11},{"$f":"[1]ACS_16_5YR_B01001_with_ann!BR269","v":0},{"$f":"[1]ACS_16_5YR_B01001_with_ann!BS269","v":11},{"$f":"[1]ACS_16_5YR_B01001_with_ann!BT269","v":14},{"$f":"[1]ACS_16_5YR_B01001_with_ann!BU269","v":15},{"$f":"[1]ACS_16_5YR_B01001_with_ann!BV269","v":12},{"$f":"[1]ACS_16_5YR_B01001_with_ann!BW269","v":10},{"$f":"[1]ACS_16_5YR_B01001_with_ann!BX269","v":0},{"$f":"[1]ACS_16_5YR_B01001_with_ann!BY269","v":11},{"$f":"[1]ACS_16_5YR_B01001_with_ann!BZ269","v":37},{"$f":"[1]ACS_16_5YR_B01001_with_ann!CA269","v":34},{"$f":"[1]ACS_16_5YR_B01001_with_ann!CB269","v":69},{"$f":"[1]ACS_16_5YR_B01001_with_ann!CC269","v":33},{"$f":"[1]ACS_16_5YR_B01001_with_ann!CD269","v":33},{"$f":"[1]ACS_16_5YR_B01001_with_ann!CE269","v":23},{"$f":"[1]ACS_16_5YR_B01001_with_ann!CF269","v":39},{"$f":"[1]ACS_16_5YR_B01001_with_ann!CG269","v":23},{"$f":"[1]ACS_16_5YR_B01001_with_ann!CH269","v":20},{"$f":"[1]ACS_16_5YR_B01001_with_ann!CI269","v":19},{"$f":"[1]ACS_16_5YR_B01001_with_ann!CJ269","v":43},{"$f":"[1]ACS_16_5YR_B01001_with_ann!CK269","v":30},{"$f":"[1]ACS_16_5YR_B01001_with_ann!CL269","v":17},{"$f":"[1]ACS_16_5YR_B01001_with_ann!CM269","v":16},{"$f":"[1]ACS_16_5YR_B01001_with_ann!CN269","v":26},{"$f":"[1]ACS_16_5YR_B01001_with_ann!CO269","v":23},{"$f":"[1]ACS_16_5YR_B01001_with_ann!CP269","v":69},{"$f":"[1]ACS_16_5YR_B01001_with_ann!CQ269","v":39},{"$f":"[1]ACS_16_5YR_B01001_with_ann!CR269","v":19},{"$f":"[1]ACS_16_5YR_B01001_with_ann!CS269","v":16},{"$f":"[1]ACS_16_5YR_B01001_with_ann!CT269","v":9},{"$f":"[1]ACS_16_5YR_B01001_with_ann!CU269","v":11},{"$f":"[1]ACS_16_5YR_B01001_with_ann!CV269","v":10},{"$f":"[1]ACS_16_5YR_B01001_with_ann!CW269","v":16}]
["0600000US3301972740",3301972740,"060","Springfield",{"$f":"[1]ACS_16_5YR_B01001_with_ann!D269","v":1084},{"$f":"[1]ACS_16_5YR_B01001_with_ann!E269","v":198},{"$f":"[1]ACS_16_5YR_B01001_with_ann!F269","v":575},{"$f":"[1]ACS_16_5YR_B01001_with_ann!G269","v":112},{"$f":"[1]ACS_16_5YR_B01001_with_ann!H269","v":3},{"$f":"[1]ACS_16_5YR_B01001_with_ann!I269","v":5},{"$f":"[1]ACS_16_5YR_B01001_with_ann!J269","v":5},{"$f":"[1]ACS_16_5YR_B01001_with_ann!K269","v":6},{"$f":"[1]ACS_16_5YR_B01001_with_ann!L269","v":30},{"$f":"[1]ACS_16_5YR_B01001_with_ann!M269","v":17},{"$f":"[1]ACS_16_5YR_B01001_with_ann!N269","v":37},{"$f":"[1]ACS_16_5YR_B01001_with_ann!O269","v":28},{"$f":"[1]ACS_16_5YR_B01001_with_ann!P269","v":10},{"$f":"[1]ACS_16_5YR_B01001_with_ann!Q269","v":12},{"$f":"[1]ACS_16_5YR_B01001_with_ann!R269","v":0},{"$f":"[1]ACS_16_5YR_B01001_with_ann!S269","v":11},{"$f":"[1]ACS_16_5YR_B01001_with_ann!T269","v":12},{"$f":"[1]ACS_16_5YR_B01001_with_ann!U269","v":14},{"$f":"[1]ACS_16_5YR_B01001_with_ann!V269","v":6},{"$f":"[1]ACS_16_5YR_B01001_with_ann!W269","v":10},{"$f":"[1]ACS_16_5YR_B01001_with_ann!X269","v":61},{"$f":"[1]ACS_16_5YR_B01001_with_ann!Y269","v":49},{"$f":"[1]ACS_16_5YR_B01001_with_ann!Z269","v":14},{"$f":"[1]ACS_16_5YR_B01001_with_ann!AA269","v":19},{"$f":"[1]ACS_16_5YR_B01001_with_ann!AB269","v":33},{"$f":"[1]ACS_16_5YR_B01001_with_ann!AC269","v":31},{"$f":"[1]ACS_16_5YR_B01001_with_ann!AD269","v":36},{"$f":"[1]ACS_16_5YR_B01001_with_ann!AE269","v":23},{"$f":"[1]ACS_16_5YR_B01001_with_ann!AF269","v":64},{"$f":"[1]ACS_16_5YR_B01001_with_ann!AG269","v":39},{"$f":"[1]ACS_16_5YR_B01001_with_ann!AH269","v":28},{"$f":"[1]ACS_16_5YR_B01001_with_ann!AI269","v":21},{"$f":"[1]ACS_16_5YR_B01001_with_ann!AJ269","v":35},{"$f":"[1]ACS_16_5YR_B01001_with_ann!AK269","v":23},{"$f":"[1]ACS_16_5YR_B01001_with_ann!AL269","v":17},{"$f":"[1]ACS_16_5YR_B01001_with_ann!AM269","v":13},{"$f":"[1]ACS_16_5YR_B01001_with_ann!AN269","v":12},{"$f":"[1]ACS_16_5YR_B01001_with_ann!AO269","v":10},{"$f":"[1]ACS_16_5YR_B01001_with_ann!AP269","v":52},{"$f":"[1]ACS_16_5YR_B01001_with_ann!AQ269","v":33},{"$f":"[1]ACS_16_5YR_B01001_with_ann!AR269","v":22},{"$f":"[1]ACS_16_5YR_B01001_with_ann!AS269","v":22},{"$f":"[1]ACS_16_5YR_B01001_with_ann!AT269","v":37},{"$f":"[1]ACS_16_5YR_B01001_with_ann!AU269","v":25},{"$f":"[1]ACS_16_5YR_B01001_with_ann!AV269","v":29},{"$f":"[1]ACS_16_5YR_B01001_with_ann!AW269","v":23},{"$f":"[1]ACS_16_5YR_B01001_with_ann!AX269","v":32},{"$f":"[1]ACS_16_5YR_B01001_with_ann!AY269","v":25},{"$f":"[1]ACS_16_5YR_B01001_with_ann!AZ269","v":0},{"$f":"[1]ACS_16_5YR_B01001_with_ann!BA269","v":11},{"$f":"[1]ACS_16_5YR_B01001_with_ann!BB269","v":509},{"$f":"[1]ACS_16_5YR_B01001_with_ann!BC269","v":111},{"$f":"[1]ACS_16_5YR_B01001_with_ann!BD269","v":11},{"$f":"[1]ACS_16_5YR_B01001_with_ann!BE269","v":17},{"$f":"[1]ACS_16_5YR_B01001_with_ann!BF270","v":56},{"$f":"[1]ACS_16_5YR_B01001_with_ann!BG270","v":45},{"$f":"[1]ACS_16_5YR_B01001_with_ann!BH270","v":56},{"$f":"[1]ACS_16_5YR_B01001_with_ann!BI270","v":57},{"$f":"[1]ACS_16_5YR_B01001_with_ann!BJ270","v":85},{"$f":"[1]ACS_16_5YR_B01001_with_ann!BK270","v":62},{"$f":"[1]ACS_16_5YR_B01001_with_ann!BL270","v":8},{"$f":"[1]ACS_16_5YR_B01001_with_ann!BM270","v":12},{"$f":"[1]ACS_16_5YR_B01001_with_ann!BN270","v":0},{"$f":"[1]ACS_16_5YR_B01001_with_ann!BO270","v":11},{"$f":"[1]ACS_16_5YR_B01001_with_ann!BP270","v":0},{"$f":"[1]ACS_16_5YR_B01001_with_ann!BQ270","v":11},{"$f":"[1]ACS_16_5YR_B01001_with_ann!BR270","v":90},{"$f":"[1]ACS_16_5YR_B01001_with_ann!BS270","v":45},{"$f":"[1]ACS_16_5YR_B01001_with_ann!BT270","v":64},{"$f":"[1]ACS_16_5YR_B01001_with_ann!BU270","v":51},{"$f":"[1]ACS_16_5YR_B01001_with_ann!BV270","v":88},{"$f":"[1]ACS_16_5YR_B01001_with_ann!BW270","v":46},{"$f":"[1]ACS_16_5YR_B01001_with_ann!BX270","v":164},{"$f":"[1]ACS_16_5YR_B01001_with_ann!BY270","v":78},{"$f":"[1]ACS_16_5YR_B01001_with_ann!BZ270","v":97},{"$f":"[1]ACS_16_5YR_B01001_with_ann!CA270","v":49},{"$f":"[1]ACS_16_5YR_B01001_with_ann!CB270","v":74},{"$f":"[1]ACS_16_5YR_B01001_with_ann!CC270","v":42},{"$f":"[1]ACS_16_5YR_B01001_with_ann!CD270","v":90},{"$f":"[1]ACS_16_5YR_B01001_with_ann!CE270","v":45},{"$f":"[1]ACS_16_5YR_B01001_with_ann!CF270","v":124},{"$f":"[1]ACS_16_5YR_B01001_with_ann!CG270","v":78},{"$f":"[1]ACS_16_5YR_B01001_with_ann!CH270","v":84},{"$f":"[1]ACS_16_5YR_B01001_with_ann!CI270","v":59},{"$f":"[1]ACS_16_5YR_B01001_with_ann!CJ270","v":101},{"$f":"[1]ACS_16_5YR_B01001_with_ann!CK270","v":54},{"$f":"[1]ACS_16_5YR_B01001_with_ann!CL270","v":32},{"$f":"[1]ACS_16_5YR_B01001_with_ann!CM270","v":45},{"$f":"[1]ACS_16_5YR_B01001_with_ann!CN270","v":88},{"$f":"[1]ACS_16_5YR_B01001_with_ann!CO270","v":47},{"$f":"[1]ACS_16_5YR_B01001_with_ann!CP270","v":113},{"$f":"[1]ACS_16_5YR_B01001_with_ann!CQ270","v":47},{"$f":"[1]ACS_16_5YR_B01001_with_ann!CR270","v":58},{"$f":"[1]ACS_16_5YR_B01001_with_ann!CS270","v":37},{"$f":"[1]ACS_16_5YR_B01001_with_ann!CT270","v":64},{"$f":"[1]ACS_16_5YR_B01001_with_ann!CU270","v":50},{"$f":"[1]ACS_16_5YR_B01001_with_ann!CV270","v":60},{"$f":"[1]ACS_16_5YR_B01001_with_ann!CW270","v":58}]
["0600000US3301975060",3301975060,"060","Sunapee",{"$f":"[1]ACS_16_5YR_B01001_with_ann!D270","v":3449},{"$f":"[1]ACS_16_5YR_B01001_with_ann!E270","v":19},{"$f":"[1]ACS_16_5YR_B01001_with_ann!F270","v":1792},{"$f":"[1]ACS_16_5YR_B01001_with_ann!G270","v":129},{"$f":"[1]ACS_16_5YR_B01001_with_ann!H270","v":97},{"$f":"[1]ACS_16_5YR_B01001_with_ann!I270","v":57},{"$f":"[1]ACS_16_5YR_B01001_with_ann!J270","v":132},{"$f":"[1]ACS_16_5YR_B01001_with_ann!K270","v":90},{"$f":"[1]ACS_16_5YR_B01001_with_ann!L270","v":120},{"$f":"[1]ACS_16_5YR_B01001_with_ann!M270","v":69},{"$f":"[1]ACS_16_5YR_B01001_with_ann!N270","v":85},{"$f":"[1]ACS_16_5YR_B01001_with_ann!O270","v":54},{"$f":"[1]ACS_16_5YR_B01001_with_ann!P270","v":35},{"$f":"[1]ACS_16_5YR_B01001_with_ann!Q270","v":27},{"$f":"[1]ACS_16_5YR_B01001_with_ann!R270","v":13},{"$f":"[1]ACS_16_5YR_B01001_with_ann!S270","v":20},{"$f":"[1]ACS_16_5YR_B01001_with_ann!T270","v":23},{"$f":"[1]ACS_16_5YR_B01001_with_ann!U270","v":22},{"$f":"[1]ACS_16_5YR_B01001_with_ann!V270","v":71},{"$f":"[1]ACS_16_5YR_B01001_with_ann!W270","v":52},{"$f":"[1]ACS_16_5YR_B01001_with_ann!X270","v":93},{"$f":"[1]ACS_16_5YR_B01001_with_ann!Y270","v":59},{"$f":"[1]ACS_16_5YR_B01001_with_ann!Z270","v":55},{"$f":"[1]ACS_16_5YR_B01001_with_ann!AA270","v":36},{"$f":"[1]ACS_16_5YR_B01001_with_ann!AB270","v":149},{"$f":"[1]ACS_16_5YR_B01001_with_ann!AC270","v":85},{"$f":"[1]ACS_16_5YR_B01001_with_ann!AD270","v":105},{"$f":"[1]ACS_16_5YR_B01001_with_ann!AE270","v":63},{"$f":"[1]ACS_16_5YR_B01001_with_ann!AF270","v":52},{"$f":"[1]ACS_16_5YR_B01001_with_ann!AG270","v":42},{"$f":"[1]ACS_16_5YR_B01001_with_ann!AH270","v":191},{"$f":"[1]ACS_16_5YR_B01001_with_ann!AI270","v":76},{"$f":"[1]ACS_16_5YR_B01001_with_ann!AJ270","v":74},{"$f":"[1]ACS_16_5YR_B01001_with_ann!AK270","v":38},{"$f":"[1]ACS_16_5YR_B01001_with_ann!AL270","v":88},{"$f":"[1]ACS_16_5YR_B01001_with_ann!AM270","v":64},{"$f":"[1]ACS_16_5YR_B01001_with_ann!AN270","v":118},{"$f":"[1]ACS_16_5YR_B01001_with_ann!AO270","v":85},{"$f":"[1]ACS_16_5YR_B01001_with_ann!AP270","v":40},{"$f":"[1]ACS_16_5YR_B01001_with_ann!AQ270","v":32},{"$f":"[1]ACS_16_5YR_B01001_with_ann!AR270","v":36},{"$f":"[1]ACS_16_5YR_B01001_with_ann!AS270","v":31},{"$f":"[1]ACS_16_5YR_B01001_with_ann!AT270","v":100},{"$f":"[1]ACS_16_5YR_B01001_with_ann!AU270","v":41},{"$f":"[1]ACS_16_5YR_B01001_with_ann!AV270","v":51},{"$f":"[1]ACS_16_5YR_B01001_with_ann!AW270","v":44},{"$f":"[1]ACS_16_5YR_B01001_with_ann!AX270","v":10},{"$f":"[1]ACS_16_5YR_B01001_with_ann!AY270","v":12},{"$f":"[1]ACS_16_5YR_B01001_with_ann!AZ270","v":54},{"$f":"[1]ACS_16_5YR_B01001_with_ann!BA270","v":43},{"$f":"[1]ACS_16_5YR_B01001_with_ann!BB270","v":1657},{"$f":"[1]ACS_16_5YR_B01001_with_ann!BC270","v":127},{"$f":"[1]ACS_16_5YR_B01001_with_ann!BD270","v":61},{"$f":"[1]ACS_16_5YR_B01001_with_ann!BE270","v":39},{"$f":"[1]ACS_16_5YR_B01001_with_ann!BF271","v":20},{"$f":"[1]ACS_16_5YR_B01001_with_ann!BG271","v":16},{"$f":"[1]ACS_16_5YR_B01001_with_ann!BH271","v":64},{"$f":"[1]ACS_16_5YR_B01001_with_ann!BI271","v":33},{"$f":"[1]ACS_16_5YR_B01001_with_ann!BJ271","v":5},{"$f":"[1]ACS_16_5YR_B01001_with_ann!BK271","v":7},{"$f":"[1]ACS_16_5YR_B01001_with_ann!BL271","v":8},{"$f":"[1]ACS_16_5YR_B01001_with_ann!BM271","v":6},{"$f":"[1]ACS_16_5YR_B01001_with_ann!BN271","v":31},{"$f":"[1]ACS_16_5YR_B01001_with_ann!BO271","v":29},{"$f":"[1]ACS_16_5YR_B01001_with_ann!BP271","v":0},{"$f":"[1]ACS_16_5YR_B01001_with_ann!BQ271","v":11},{"$f":"[1]ACS_16_5YR_B01001_with_ann!BR271","v":26},{"$f":"[1]ACS_16_5YR_B01001_with_ann!BS271","v":26},{"$f":"[1]ACS_16_5YR_B01001_with_ann!BT271","v":55},{"$f":"[1]ACS_16_5YR_B01001_with_ann!BU271","v":31},{"$f":"[1]ACS_16_5YR_B01001_with_ann!BV271","v":23},{"$f":"[1]ACS_16_5YR_B01001_with_ann!BW271","v":17},{"$f":"[1]ACS_16_5YR_B01001_with_ann!BX271","v":46},{"$f":"[1]ACS_16_5YR_B01001_with_ann!BY271","v":24},{"$f":"[1]ACS_16_5YR_B01001_with_ann!BZ271","v":48},{"$f":"[1]ACS_16_5YR_B01001_with_ann!CA271","v":26},{"$f":"[1]ACS_16_5YR_B01001_with_ann!CB271","v":30},{"$f":"[1]ACS_16_5YR_B01001_with_ann!CC271","v":20},{"$f":"[1]ACS_16_5YR_B01001_with_ann!CD271","v":41},{"$f":"[1]ACS_16_5YR_B01001_with_ann!CE271","v":20},{"$f":"[1]ACS_16_5YR_B01001_with_ann!CF271","v":121},{"$f":"[1]ACS_16_5YR_B01001_with_ann!CG271","v":34},{"$f":"[1]ACS_16_5YR_B01001_with_ann!CH271","v":33},{"$f":"[1]ACS_16_5YR_B01001_with_ann!CI271","v":26},{"$f":"[1]ACS_16_5YR_B01001_with_ann!CJ271","v":29},{"$f":"[1]ACS_16_5YR_B01001_with_ann!CK271","v":12},{"$f":"[1]ACS_16_5YR_B01001_with_ann!CL271","v":29},{"$f":"[1]ACS_16_5YR_B01001_with_ann!CM271","v":16},{"$f":"[1]ACS_16_5YR_B01001_with_ann!CN271","v":55},{"$f":"[1]ACS_16_5YR_B01001_with_ann!CO271","v":24},{"$f":"[1]ACS_16_5YR_B01001_with_ann!CP271","v":39},{"$f":"[1]ACS_16_5YR_B01001_with_ann!CQ271","v":14},{"$f":"[1]ACS_16_5YR_B01001_with_ann!CR271","v":50},{"$f":"[1]ACS_16_5YR_B01001_with_ann!CS271","v":34},{"$f":"[1]ACS_16_5YR_B01001_with_ann!CT271","v":30},{"$f":"[1]ACS_16_5YR_B01001_with_ann!CU271","v":23},{"$f":"[1]ACS_16_5YR_B01001_with_ann!CV271","v":73},{"$f":"[1]ACS_16_5YR_B01001_with_ann!CW271","v":60}]
["0600000US3301977940",3301977940,"060","Unity",{"$f":"[1]ACS_16_5YR_B01001_with_ann!D271","v":1613},{"$f":"[1]ACS_16_5YR_B01001_with_ann!E271","v":156},{"$f":"[1]ACS_16_5YR_B01001_with_ann!F271","v":743},{"$f":"[1]ACS_16_5YR_B01001_with_ann!G271","v":80},{"$f":"[1]ACS_16_5YR_B01001_with_ann!H271","v":3},{"$f":"[1]ACS_16_5YR_B01001_with_ann!I271","v":6},{"$f":"[1]ACS_16_5YR_B01001_with_ann!J271","v":24},{"$f":"[1]ACS_16_5YR_B01001_with_ann!K271","v":15},{"$f":"[1]ACS_16_5YR_B01001_with_ann!L271","v":16},{"$f":"[1]ACS_16_5YR_B01001_with_ann!M271","v":15},{"$f":"[1]ACS_16_5YR_B01001_with_ann!N271","v":6},{"$f":"[1]ACS_16_5YR_B01001_with_ann!O271","v":6},{"$f":"[1]ACS_16_5YR_B01001_with_ann!P271","v":19},{"$f":"[1]ACS_16_5YR_B01001_with_ann!Q271","v":23},{"$f":"[1]ACS_16_5YR_B01001_with_ann!R271","v":25},{"$f":"[1]ACS_16_5YR_B01001_with_ann!S271","v":14},{"$f":"[1]ACS_16_5YR_B01001_with_ann!T271","v":14},{"$f":"[1]ACS_16_5YR_B01001_with_ann!U271","v":20},{"$f":"[1]ACS_16_5YR_B01001_with_ann!V271","v":14},{"$f":"[1]ACS_16_5YR_B01001_with_ann!W271","v":17},{"$f":"[1]ACS_16_5YR_B01001_with_ann!X271","v":44},{"$f":"[1]ACS_16_5YR_B01001_with_ann!Y271","v":28},{"$f":"[1]ACS_16_5YR_B01001_with_ann!Z271","v":22},{"$f":"[1]ACS_16_5YR_B01001_with_ann!AA271","v":18},{"$f":"[1]ACS_16_5YR_B01001_with_ann!AB271","v":37},{"$f":"[1]ACS_16_5YR_B01001_with_ann!AC271","v":20},{"$f":"[1]ACS_16_5YR_B01001_with_ann!AD271","v":23},{"$f":"[1]ACS_16_5YR_B01001_with_ann!AE271","v":13},{"$f":"[1]ACS_16_5YR_B01001_with_ann!AF271","v":44},{"$f":"[1]ACS_16_5YR_B01001_with_ann!AG271","v":26},{"$f":"[1]ACS_16_5YR_B01001_with_ann!AH271","v":67},{"$f":"[1]ACS_16_5YR_B01001_with_ann!AI271","v":30},{"$f":"[1]ACS_16_5YR_B01001_with_ann!AJ271","v":112},{"$f":"[1]ACS_16_5YR_B01001_with_ann!AK271","v":41},{"$f":"[1]ACS_16_5YR_B01001_with_ann!AL271","v":31},{"$f":"[1]ACS_16_5YR_B01001_with_ann!AM271","v":18},{"$f":"[1]ACS_16_5YR_B01001_with_ann!AN271","v":41},{"$f":"[1]ACS_16_5YR_B01001_with_ann!AO271","v":22},{"$f":"[1]ACS_16_5YR_B01001_with_ann!AP271","v":28},{"$f":"[1]ACS_16_5YR_B01001_with_ann!AQ271","v":21},{"$f":"[1]ACS_16_5YR_B01001_with_ann!AR271","v":54},{"$f":"[1]ACS_16_5YR_B01001_with_ann!AS271","v":23},{"$f":"[1]ACS_16_5YR_B01001_with_ann!AT271","v":54},{"$f":"[1]ACS_16_5YR_B01001_with_ann!AU271","v":24},{"$f":"[1]ACS_16_5YR_B01001_with_ann!AV271","v":30},{"$f":"[1]ACS_16_5YR_B01001_with_ann!AW271","v":15},{"$f":"[1]ACS_16_5YR_B01001_with_ann!AX271","v":21},{"$f":"[1]ACS_16_5YR_B01001_with_ann!AY271","v":12},{"$f":"[1]ACS_16_5YR_B01001_with_ann!AZ271","v":14},{"$f":"[1]ACS_16_5YR_B01001_with_ann!BA271","v":15},{"$f":"[1]ACS_16_5YR_B01001_with_ann!BB271","v":870},{"$f":"[1]ACS_16_5YR_B01001_with_ann!BC271","v":119},{"$f":"[1]ACS_16_5YR_B01001_with_ann!BD271","v":14},{"$f":"[1]ACS_16_5YR_B01001_with_ann!BE271","v":15},{"$f":"[1]ACS_16_5YR_B01001_with_ann!BF272","v":7},{"$f":"[1]ACS_16_5YR_B01001_with_ann!BG272","v":8},{"$f":"[1]ACS_16_5YR_B01001_with_ann!BH272","v":33},{"$f":"[1]ACS_16_5YR_B01001_with_ann!BI272","v":17},{"$f":"[1]ACS_16_5YR_B01001_with_ann!BJ272","v":32},{"$f":"[1]ACS_16_5YR_B01001_with_ann!BK272","v":23},{"$f":"[1]ACS_16_5YR_B01001_with_ann!BL272","v":4},{"$f":"[1]ACS_16_5YR_B01001_with_ann!BM272","v":5},{"$f":"[1]ACS_16_5YR_B01001_with_ann!BN272","v":0},{"$f":"[1]ACS_16_5YR_B01001_with_ann!BO272","v":11},{"$f":"[1]ACS_16_5YR_B01001_with_ann!BP272","v":0},{"$f":"[1]ACS_16_5YR_B01001_with_ann!BQ272","v":11},{"$f":"[1]ACS_16_5YR_B01001_with_ann!BR272","v":20},{"$f":"[1]ACS_16_5YR_B01001_with_ann!BS272","v":24},{"$f":"[1]ACS_16_5YR_B01001_with_ann!BT272","v":22},{"$f":"[1]ACS_16_5YR_B01001_with_ann!BU272","v":14},{"$f":"[1]ACS_16_5YR_B01001_with_ann!BV272","v":17},{"$f":"[1]ACS_16_5YR_B01001_with_ann!BW272","v":15},{"$f":"[1]ACS_16_5YR_B01001_with_ann!BX272","v":16},{"$f":"[1]ACS_16_5YR_B01001_with_ann!BY272","v":18},{"$f":"[1]ACS_16_5YR_B01001_with_ann!BZ272","v":60},{"$f":"[1]ACS_16_5YR_B01001_with_ann!CA272","v":64},{"$f":"[1]ACS_16_5YR_B01001_with_ann!CB272","v":62},{"$f":"[1]ACS_16_5YR_B01001_with_ann!CC272","v":34},{"$f":"[1]ACS_16_5YR_B01001_with_ann!CD272","v":57},{"$f":"[1]ACS_16_5YR_B01001_with_ann!CE272","v":30},{"$f":"[1]ACS_16_5YR_B01001_with_ann!CF272","v":64},{"$f":"[1]ACS_16_5YR_B01001_with_ann!CG272","v":33},{"$f":"[1]ACS_16_5YR_B01001_with_ann!CH272","v":24},{"$f":"[1]ACS_16_5YR_B01001_with_ann!CI272","v":12},{"$f":"[1]ACS_16_5YR_B01001_with_ann!CJ272","v":18},{"$f":"[1]ACS_16_5YR_B01001_with_ann!CK272","v":12},{"$f":"[1]ACS_16_5YR_B01001_with_ann!CL272","v":40},{"$f":"[1]ACS_16_5YR_B01001_with_ann!CM272","v":22},{"$f":"[1]ACS_16_5YR_B01001_with_ann!CN272","v":27},{"$f":"[1]ACS_16_5YR_B01001_with_ann!CO272","v":15},{"$f":"[1]ACS_16_5YR_B01001_with_ann!CP272","v":49},{"$f":"[1]ACS_16_5YR_B01001_with_ann!CQ272","v":19},{"$f":"[1]ACS_16_5YR_B01001_with_ann!CR272","v":15},{"$f":"[1]ACS_16_5YR_B01001_with_ann!CS272","v":9},{"$f":"[1]ACS_16_5YR_B01001_with_ann!CT272","v":11},{"$f":"[1]ACS_16_5YR_B01001_with_ann!CU272","v":8},{"$f":"[1]ACS_16_5YR_B01001_with_ann!CV272","v":3},{"$f":"[1]ACS_16_5YR_B01001_with_ann!CW272","v":6}]
["0600000US3301978980",3301978980,"060","Washington",{"$f":"[1]ACS_16_5YR_B01001_with_ann!D272","v":1199},{"$f":"[1]ACS_16_5YR_B01001_with_ann!E272","v":188},{"$f":"[1]ACS_16_5YR_B01001_with_ann!F272","v":612},{"$f":"[1]ACS_16_5YR_B01001_with_ann!G272","v":109},{"$f":"[1]ACS_16_5YR_B01001_with_ann!H272","v":0},{"$f":"[1]ACS_16_5YR_B01001_with_ann!I272","v":11},{"$f":"[1]ACS_16_5YR_B01001_with_ann!J272","v":22},{"$f":"[1]ACS_16_5YR_B01001_with_ann!K272","v":17},{"$f":"[1]ACS_16_5YR_B01001_with_ann!L272","v":36},{"$f":"[1]ACS_16_5YR_B01001_with_ann!M272","v":32},{"$f":"[1]ACS_16_5YR_B01001_with_ann!N272","v":3},{"$f":"[1]ACS_16_5YR_B01001_with_ann!O272","v":5},{"$f":"[1]ACS_16_5YR_B01001_with_ann!P272","v":10},{"$f":"[1]ACS_16_5YR_B01001_with_ann!Q272","v":24},{"$f":"[1]ACS_16_5YR_B01001_with_ann!R272","v":0},{"$f":"[1]ACS_16_5YR_B01001_with_ann!S272","v":11},{"$f":"[1]ACS_16_5YR_B01001_with_ann!T272","v":10},{"$f":"[1]ACS_16_5YR_B01001_with_ann!U272","v":9},{"$f":"[1]ACS_16_5YR_B01001_with_ann!V272","v":9},{"$f":"[1]ACS_16_5YR_B01001_with_ann!W272","v":8},{"$f":"[1]ACS_16_5YR_B01001_with_ann!X272","v":22},{"$f":"[1]ACS_16_5YR_B01001_with_ann!Y272","v":18},{"$f":"[1]ACS_16_5YR_B01001_with_ann!Z272","v":21},{"$f":"[1]ACS_16_5YR_B01001_with_ann!AA272","v":16},{"$f":"[1]ACS_16_5YR_B01001_with_ann!AB272","v":7},{"$f":"[1]ACS_16_5YR_B01001_with_ann!AC272","v":10},{"$f":"[1]ACS_16_5YR_B01001_with_ann!AD272","v":59},{"$f":"[1]ACS_16_5YR_B01001_with_ann!AE272","v":60},{"$f":"[1]ACS_16_5YR_B01001_with_ann!AF272","v":75},{"$f":"[1]ACS_16_5YR_B01001_with_ann!AG272","v":41},{"$f":"[1]ACS_16_5YR_B01001_with_ann!AH272","v":32},{"$f":"[1]ACS_16_5YR_B01001_with_ann!AI272","v":21},{"$f":"[1]ACS_16_5YR_B01001_with_ann!AJ272","v":91},{"$f":"[1]ACS_16_5YR_B01001_with_ann!AK272","v":41},{"$f":"[1]ACS_16_5YR_B01001_with_ann!AL272","v":16},{"$f":"[1]ACS_16_5YR_B01001_with_ann!AM272","v":9},{"$f":"[1]ACS_16_5YR_B01001_with_ann!AN272","v":29},{"$f":"[1]ACS_16_5YR_B01001_with_ann!AO272","v":19},{"$f":"[1]ACS_16_5YR_B01001_with_ann!AP272","v":32},{"$f":"[1]ACS_16_5YR_B01001_with_ann!AQ272","v":22},{"$f":"[1]ACS_16_5YR_B01001_with_ann!AR272","v":33},{"$f":"[1]ACS_16_5YR_B01001_with_ann!AS272","v":15},{"$f":"[1]ACS_16_5YR_B01001_with_ann!AT272","v":56},{"$f":"[1]ACS_16_5YR_B01001_with_ann!AU272","v":23},{"$f":"[1]ACS_16_5YR_B01001_with_ann!AV272","v":34},{"$f":"[1]ACS_16_5YR_B01001_with_ann!AW272","v":17},{"$f":"[1]ACS_16_5YR_B01001_with_ann!AX272","v":8},{"$f":"[1]ACS_16_5YR_B01001_with_ann!AY272","v":6},{"$f":"[1]ACS_16_5YR_B01001_with_ann!AZ272","v":7},{"$f":"[1]ACS_16_5YR_B01001_with_ann!BA272","v":7},{"$f":"[1]ACS_16_5YR_B01001_with_ann!BB272","v":587},{"$f":"[1]ACS_16_5YR_B01001_with_ann!BC272","v":104},{"$f":"[1]ACS_16_5YR_B01001_with_ann!BD272","v":6},{"$f":"[1]ACS_16_5YR_B01001_with_ann!BE272","v":8},{"$f":"[1]ACS_16_5YR_B01001_with_ann!BF273","v":0},{"$f":"[1]ACS_16_5YR_B01001_with_ann!BG273","v":0},{"$f":"[1]ACS_16_5YR_B01001_with_ann!BH273","v":0},{"$f":"[1]ACS_16_5YR_B01001_with_ann!BI273","v":0},{"$f":"[1]ACS_16_5YR_B01001_with_ann!BJ273","v":0},{"$f":"[1]ACS_16_5YR_B01001_with_ann!BK273","v":0},{"$f":"[1]ACS_16_5YR_B01001_with_ann!BL273","v":0},{"$f":"[1]ACS_16_5YR_B01001_with_ann!BM273","v":0},{"$f":"[1]ACS_16_5YR_B01001_with_ann!BN273","v":0},{"$f":"[1]ACS_16_5YR_B01001_with_ann!BO273","v":0},{"$f":"[1]ACS_16_5YR_B01001_with_ann!BP273","v":0},{"$f":"[1]ACS_16_5YR_B01001_with_ann!BQ273","v":0},{"$f":"[1]ACS_16_5YR_B01001_with_ann!BR273","v":0},{"$f":"[1]ACS_16_5YR_B01001_with_ann!BS273","v":0},{"$f":"[1]ACS_16_5YR_B01001_with_ann!BT273","v":0},{"$f":"[1]ACS_16_5YR_B01001_with_ann!BU273","v":0},{"$f":"[1]ACS_16_5YR_B01001_with_ann!BV273","v":0},{"$f":"[1]ACS_16_5YR_B01001_with_ann!BW273","v":0},{"$f":"[1]ACS_16_5YR_B01001_with_ann!BX273","v":0},{"$f":"[1]ACS_16_5YR_B01001_with_ann!BY273","v":0},{"$f":"[1]ACS_16_5YR_B01001_with_ann!BZ273","v":0},{"$f":"[1]ACS_16_5YR_B01001_with_ann!CA273","v":0},{"$f":"[1]ACS_16_5YR_B01001_with_ann!CB273","v":0},{"$f":"[1]ACS_16_5YR_B01001_with_ann!CC273","v":0},{"$f":"[1]ACS_16_5YR_B01001_with_ann!CD273","v":0},{"$f":"[1]ACS_16_5YR_B01001_with_ann!CE273","v":0},{"$f":"[1]ACS_16_5YR_B01001_with_ann!CF273","v":0},{"$f":"[1]ACS_16_5YR_B01001_with_ann!CG273","v":0},{"$f":"[1]ACS_16_5YR_B01001_with_ann!CH273","v":0},{"$f":"[1]ACS_16_5YR_B01001_with_ann!CI273","v":0},{"$f":"[1]ACS_16_5YR_B01001_with_ann!CJ273","v":0},{"$f":"[1]ACS_16_5YR_B01001_with_ann!CK273","v":0},{"$f":"[1]ACS_16_5YR_B01001_with_ann!CL273","v":0},{"$f":"[1]ACS_16_5YR_B01001_with_ann!CM273","v":0},{"$f":"[1]ACS_16_5YR_B01001_with_ann!CN273","v":0},{"$f":"[1]ACS_16_5YR_B01001_with_ann!CO273","v":0},{"$f":"[1]ACS_16_5YR_B01001_with_ann!CP273","v":0},{"$f":"[1]ACS_16_5YR_B01001_with_ann!CQ273","v":0},{"$f":"[1]ACS_16_5YR_B01001_with_ann!CR273","v":0},{"$f":"[1]ACS_16_5YR_B01001_with_ann!CS273","v":0},{"$f":"[1]ACS_16_5YR_B01001_with_ann!CT273","v":0},{"$f":"[1]ACS_16_5YR_B01001_with_ann!CU273","v":0},{"$f":"[1]ACS_16_5YR_B01001_with_ann!CV273","v":0},{"$f":"[1]ACS_16_5YR_B01001_with_ann!CW273","v":0}]
[]
[null,null,null,null,{"$f":"$D$3","v":"Acworth"},null,{"$f":"$D$4","v":"Charlestown"},null,{"$f":"$D$5","v":"Claremont"},null,{"$f":"$D$6","v":"Cornish"},null,{"$f":"$D$7","v":"Croydon"},null,{"$f":"$D$8","v":"Goshen"},null,{"$f":"$D$9","v":"Grantham"},null,{"$f":"$D$10","v":"Langdon"},null,{"$f":"$D$11","v":"Lempster"},null,{"$f":"$D$12","v":"Newport"},null,{"$f":"$D$13","v":"Plainfield"},null,{"$f":"$D$14","v":"Springfield"},null,{"$f":"$D$15","v":"Sunapee"},null,{"$f":"$D$16","v":"Unity"},null,{"$f":"$D$17","v":"Washington"}]
[null,null,null,null,"Estimate","Margin Of Error","Estimate","Margin Of Error","Estimate","Margin Of Error","Estimate","Margin Of Error","Estimate","Margin Of Error","Estimate","Margin Of Error","Estimate","Margin Of Error","Estimate","Margin Of Error","Estimate","Margin Of Error","Estimate","Margin Of Error","Estimate","Margin Of Error","Estimate","Margin Of Error","Estimate","Margin Of Error",null,"Estimate","Margin Of Error"]
[null,null,null,"Estimate Total:",906,134,5019,19,12977,23,1783,217,863,244,702,108,2945,14,712,145,923,176,6374,19,2555,293,1084,198,3449,19,1613,156,1199,188]
[null,null,null,"Estimate Total: Male:",487,83,2515,222,6291,280,922,150,423,111,351,69,1382,143,342,85,432,77,3287,221,1278,174,575,112,1792,129,743,80,612,109]
[null,null,null,"Estimate Total: Male: Under 5 years",21,14,189,101,393,117,35,19,11,12,18,14,0,11,16,14,31,21,185,95,32,34,3,5,97,57,3,6,0,11]
[null,null,null,"Estimate Total: Male: 5 to 9 years",19,13,164,79,362,121,38,23,23,17,22,16,103,71,29,19,15,12,105,67,41,22,5,6,132,90,24,15,22,17]
[null,null,null,"Estimate Total: Male: 10 to 14 years",13,12,28,24,335,116,89,54,29,29,16,13,103,48,38,34,13,15,230,162,108,56,30,17,120,69,16,15,36,32]
[null,null,null,"Estimate Total: Male: 15 to 17 years",2,3,58,53,205,86,42,38,4,6,11,11,65,53,9,9,8,7,192,109,81,49,37,28,85,54,6,6,3,5]
[null,null,null,"Estimate Total: Male: 18 and 19 years",3,5,32,32,75,56,17,12,17,20,4,5,23,33,8,8,0,11,123,89,92,65,10,12,35,27,19,23,10,24]
[null,null,null,"Estimate Total: Male: 20 years",7,12,5,13,149,96,4,6,9,17,0,11,0,11,0,11,0,11,72,81,43,44,0,11,13,20,25,14,0,11]
[null,null,null,"Estimate Total: Male: 21 years",0,11,0,16,26,36,8,9,0,11,0,11,22,32,0,11,0,11,83,68,15,15,12,14,23,22,14,20,10,9]
[null,null,null,"Estimate Total: Male: 22 to 24 years",8,13,118,89,185,83,18,13,13,13,13,13,15,22,0,11,12,11,106,62,12,16,6,10,71,52,14,17,9,8]
[null,null,null,"Estimate Total: Male: 25 to 29 years",42,26,166,100,538,143,25,16,19,14,9,8,23,37,22,20,6,6,211,113,44,28,61,49,93,59,44,28,22,18]
[null,null,null,"Estimate Total: Male: 30 to 34 years",19,14,169,97,649,150,23,14,29,27,17,14,65,50,23,14,16,11,165,85,55,33,14,19,55,36,22,18,21,16]
[null,null,null,"Estimate Total: Male: 35 to 39 years",15,12,264,115,268,106,44,21,18,14,18,14,84,59,25,16,43,23,105,101,66,37,33,31,149,85,37,20,7,10]
[null,null,null,"Estimate Total: Male: 40 to 44 years",16,11,59,55,364,132,38,21,20,15,32,18,28,28,15,12,31,23,212,113,38,20,36,23,105,63,23,13,59,60]
[null,null,null,"Estimate Total: Male: 45 to 49 years",24,24,138,101,436,162,77,36,20,18,29,20,192,119,21,16,78,41,132,96,106,55,64,39,52,42,44,26,75,41]
[null,null,null,"Estimate Total: Male: 50 to 54 years",39,22,123,70,464,104,33,17,35,27,44,28,163,103,24,15,17,18,244,101,114,52,28,21,191,76,67,30,32,21]
[null,null,null,"Estimate Total: Male: 55 to 59 years",75,30,323,119,523,144,72,31,30,21,21,19,114,79,34,22,48,23,340,135,63,30,35,23,74,38,112,41,91,41]
[null,null,null,"Estimate Total: Male: 60 and 61 years",29,18,71,48,178,89,39,17,25,21,4,5,0,11,6,5,12,9,83,59,54,26,17,13,88,64,31,18,16,9]
[null,null,null,"Estimate Total: Male: 62 to 64 years",15,12,56,41,194,73,64,27,50,35,14,8,32,46,18,15,20,10,160,127,80,29,12,10,118,85,41,22,29,19]
[null,null,null,"Estimate Total: Male: 65 and 66 years",17,9,146,99,195,75,37,24,9,8,5,4,27,32,10,7,30,23,69,74,36,20,52,33,40,32,28,21,32,22]
[null,null,null,"Estimate Total: Male: 67 to 69 years",28,18,65,62,265,97,69,29,24,17,24,19,84,47,17,10,8,6,134,119,33,21,22,22,36,31,54,23,33,15]
[null,null,null,"Estimate Total: Male: 70 to 74 years",43,20,50,48,191,84,84,39,5,5,30,20,45,41,12,7,30,18,215,102,109,52,37,25,100,41,54,24,56,23]
[null,null,null,"Estimate Total: Male: 75 to 79 years",18,12,210,146,134,64,19,11,13,9,8,7,123,81,5,6,4,4,66,70,41,27,29,23,51,44,30,15,34,17]
[null,null,null,"Estimate Total: Male: 80 to 84 years",18,15,48,57,85,46,25,22,8,8,10,11,58,52,2,4,8,8,30,34,0,11,32,25,10,12,21,12,8,6]
[null,null,null,"Estimate Total: Male: 85 years and over",16,12,33,36,77,46,22,18,12,9,2,3,13,20,8,6,2,4,25,27,15,23,0,11,54,43,14,15,7,7]
[null,null,null,"Estimate Total: Female:",419,72,2504,221,6686,279,861,100,440,156,351,60,1563,142,370,73,491,123,3087,220,1277,157,509,111,1657,127,870,119,587,104]
[null,null,null,"Estimate Total: Female: Under 5 years",16,13,121,78,475,107,26,14,12,11,21,14,0,11,16,13,35,23,100,62,50,55,11,17,61,39,14,15,6,8]
[null,null,null,"Estimate Total: Female: 5 to 9 years",6,6,64,80,347,114,17,14,27,20,50,41,37,24,30,20,160,115,61,37,28,37,56,45,20,16,7,8,0,0]
[null,null,null,"Estimate Total: Female: 10 to 14 years",9,8,299,115,316,132,29,17,7,8,146,115,22,24,29,35,155,107,83,39,19,15,56,57,64,33,33,17,0,0]
[null,null,null,"Estimate Total: Female: 15 to 17 years",9,14,57,54,259,92,19,23,15,13,54,48,2,5,62,56,91,82,41,44,23,16,85,62,5,7,32,23,0,0]
[null,null,null,"Estimate Total: Female: 18 and 19 years",5,7,8,12,107,50,14,16,17,22,23,27,8,10,0,11,62,49,63,39,11,18,8,12,8,6,4,5,0,0]
[null,null,null,"Estimate Total: Female: 20 years",5,9,0,16,42,48,23,28,0,11,25,39,0,11,7,10,35,55,37,37,0,11,0,11,31,29,0,11,0,0]
[null,null,null,"Estimate Total: Female: 21 years",0,11,0,16,112,68,0,11,0,11,0,11,0,11,0,11,31,39,18,26,0,11,0,11,0,11,0,11,0,0]
[null,null,null,"Estimate Total: Female: 22 to 24 years",3,5,20,27,214,99,40,51,0,11,42,44,17,19,0,11,95,66,38,25,0,11,90,45,26,26,20,24,0,0]
[null,null,null,"Estimate Total: Female: 25 to 29 years",21,15,206,117,373,110,35,23,28,20,24,36,15,15,21,11,183,66,43,27,14,15,64,51,55,31,22,14,0,0]
[null,null,null,"Estimate Total: Female: 30 to 34 years",13,11,123,75,567,110,12,13,24,18,0,11,29,19,26,21,114,85,81,39,12,10,88,46,23,17,17,15,0,0]
[null,null,null,"Estimate Total: Female: 35 to 39 years",14,9,192,112,269,104,21,18,8,7,62,54,19,13,21,19,269,133,62,39,0,11,164,78,46,24,16,18,0,0]
[null,null,null,"Estimate Total: Female: 40 to 44 years",31,24,66,67,363,106,7,9,19,15,165,93,11,9,15,15,217,129,64,38,37,34,97,49,48,26,60,64,0,0]
[null,null,null,"Estimate Total: Female: 45 to 49 years",16,14,105,71,373,105,25,18,19,13,112,68,20,13,45,32,360,131,79,40,69,33,74,42,30,20,62,34,0,0]
[null,null,null,"Estimate Total: Female: 50 to 54 years",39,22,152,86,541,131,29,23,21,17,213,111,39,20,11,13,226,93,100,50,33,23,90,45,41,20,57,30,0,0]
[null,null,null,"Estimate Total: Female: 55 to 59 years",55,25,255,121,452,126,57,30,32,17,219,114,55,30,47,24,182,97,104,38,39,23,124,78,121,34,64,33,0,0]
[null,null,null,"Estimate Total: Female: 60 and 61 years",16,14,154,99,193,114,8,11,14,8,65,74,12,12,18,9,97,80,56,23,20,19,84,59,33,26,24,12,0,0]
[null,null,null,"Estimate Total: Female: 62 to 64 years",19,13,157,109,269,95,22,12,10,9,60,65,18,10,34,19,68,47,56,24,43,30,101,54,29,12,18,12,0,0]
[null,null,null,"Estimate Total: Female: 65 and 66 years",23,17,108,76,183,86,11,12,14,9,14,21,13,6,13,13,51,40,48,25,17,16,32,45,29,16,40,22,0,0]
[null,null,null,"Estimate Total: Female: 67 to 69 years",46,26,49,45,287,127,21,11,3,4,64,41,10,8,17,12,110,85,56,42,26,23,88,47,55,24,27,15,0,0]
[null,null,null,"Estimate Total: Female: 70 to 74 years",48,22,139,92,286,129,17,14,32,19,61,41,12,7,21,15,155,92,77,40,69,39,113,47,39,14,49,19,0,0]
[null,null,null,"Estimate Total: Female: 75 to 79 years",8,6,73,59,228,98,9,7,14,7,54,39,7,6,11,9,70,55,37,27,19,16,58,37,50,34,15,9,0,0]
[null,null,null,"Estimate Total: Female: 80 to 84 years",4,4,74,66,199,83,5,6,9,10,110,69,6,5,23,26,105,59,23,20,9,11,64,50,30,23,11,8,0,0]
[null,null,null,"Estimate Total: Female: 85 years and over",13,11,82,70,231,91,7,9,17,13,0,11,2,3,5,5,151,96,0,11,10,16,60,58,73,60,3,6,0,0]

{"sheet":"SData_B01002MedianAgePop","index":22,"n_rows":23,"n_cols":34,"rows_kept":23,"cut":false,"hidden":true,"merged":[]}
["GEO_ID","GEO_ID2","SUMLEVEL","GEO_NAME","B01002_1_EST","B01002_1_MOE","B01002_2_EST","B01002_2_MOE","B01002_3_EST","B01002_3_MOE"]
["Geography Identifier","Geography Identifier","Geographic Summary Level","Geography",{"$f":"[1]ACS_16_5YR_B01002_with_ann!D$2","v":"Estimate Median age -- Total:"},{"$f":"[1]ACS_16_5YR_B01002_with_ann!E$2","v":"Margin of Error Median age -- Total:"},{"$f":"[1]ACS_16_5YR_B01002_with_ann!F$2","v":"Estimate Median age -- Male"},{"$f":"[1]ACS_16_5YR_B01002_with_ann!G$2","v":"Margin of Error Median age -- Male"},{"$f":"[1]ACS_16_5YR_B01002_with_ann!H$2","v":"Estimate Median age -- Female"},{"$f":"[1]ACS_16_5YR_B01002_with_ann!I$2","v":"Margin of Error Median age -- Female"}]
["0600000US3301900259",3301900259,"060","Acworth",{"$f":"[1]ACS_16_5YR_B01002_with_ann!D258","v":57.1},{"$f":"[1]ACS_16_5YR_B01002_with_ann!E258","v":2.8},{"$f":"[1]ACS_16_5YR_B01002_with_ann!F258","v":56.2},{"$f":"[1]ACS_16_5YR_B01002_with_ann!G258","v":3.2},{"$f":"[1]ACS_16_5YR_B01002_with_ann!H258","v":57.6},{"$f":"[1]ACS_16_5YR_B01002_with_ann!I258","v":3.2}]
["0600000US3301911380",3301911380,"060","Charlestown",{"$f":"[1]ACS_16_5YR_B01002_with_ann!D259","v":47.9},{"$f":"[1]ACS_16_5YR_B01002_with_ann!E259","v":6.7},{"$f":"[1]ACS_16_5YR_B01002_with_ann!F259","v":45.4},{"$f":"[1]ACS_16_5YR_B01002_with_ann!G259","v":12.1},{"$f":"[1]ACS_16_5YR_B01002_with_ann!H259","v":49.6},{"$f":"[1]ACS_16_5YR_B01002_with_ann!I259","v":8.6}]
["0600000US3301912900",3301912900,"060","Claremont",{"$f":"[1]ACS_16_5YR_B01002_with_ann!D260","v":41.7},{"$f":"[1]ACS_16_5YR_B01002_with_ann!E260","v":3.1},{"$f":"[1]ACS_16_5YR_B01002_with_ann!F260","v":38.700000000000003},{"$f":"[1]ACS_16_5YR_B01002_with_ann!G260","v":4.5999999999999996},{"$f":"[1]ACS_16_5YR_B01002_with_ann!H260","v":44},{"$f":"[1]ACS_16_5YR_B01002_with_ann!I260","v":2.8}]
["0600000US3301915060",3301915060,"060","Cornish",{"$f":"[1]ACS_16_5YR_B01002_with_ann!D261","v":54.1},{"$f":"[1]ACS_16_5YR_B01002_with_ann!E261","v":5.4},{"$f":"[1]ACS_16_5YR_B01002_with_ann!F261","v":50.4},{"$f":"[1]ACS_16_5YR_B01002_with_ann!G261","v":9.6999999999999993},{"$f":"[1]ACS_16_5YR_B01002_with_ann!H261","v":55.9},{"$f":"[1]ACS_16_5YR_B01002_with_ann!I261","v":3.6}]
["0600000US3301916340",3301916340,"060","Croydon",{"$f":"[1]ACS_16_5YR_B01002_with_ann!D262","v":45.8},{"$f":"[1]ACS_16_5YR_B01002_with_ann!E262","v":10.199999999999999},{"$f":"[1]ACS_16_5YR_B01002_with_ann!F262","v":49.9},{"$f":"[1]ACS_16_5YR_B01002_with_ann!G262","v":8.8000000000000007},{"$f":"[1]ACS_16_5YR_B01002_with_ann!H262","v":39.5},{"$f":"[1]ACS_16_5YR_B01002_with_ann!I262","v":18.2}]
["0600000US3301930500",3301930500,"060","Goshen",{"$f":"[1]ACS_16_5YR_B01002_with_ann!D263","v":46.5},{"$f":"[1]ACS_16_5YR_B01002_with_ann!E263","v":6.1},{"$f":"[1]ACS_16_5YR_B01002_with_ann!F263","v":46.6},{"$f":"[1]ACS_16_5YR_B01002_with_ann!G263","v":6},{"$f":"[1]ACS_16_5YR_B01002_with_ann!H263","v":46.5},{"$f":"[1]ACS_16_5YR_B01002_with_ann!I263","v":8.9}]
["0600000US3301931220",3301931220,"060","Grantham",{"$f":"[1]ACS_16_5YR_B01002_with_ann!D264","v":50.5},{"$f":"[1]ACS_16_5YR_B01002_with_ann!E264","v":2.2000000000000002},{"$f":"[1]ACS_16_5YR_B01002_with_ann!F264","v":49.7},{"$f":"[1]ACS_16_5YR_B01002_with_ann!G264","v":2.1},{"$f":"[1]ACS_16_5YR_B01002_with_ann!H264","v":51.3},{"$f":"[1]ACS_16_5YR_B01002_with_ann!I264","v":3.6}]
["0600000US3301940900",3301940900,"060","Langdon",{"$f":"[1]ACS_16_5YR_B01002_with_ann!D265","v":44.4},{"$f":"[1]ACS_16_5YR_B01002_with_ann!E265","v":12.3},{"$f":"[1]ACS_16_5YR_B01002_with_ann!F265","v":42.1},{"$f":"[1]ACS_16_5YR_B01002_with_ann!G265","v":13.6},{"$f":"[1]ACS_16_5YR_B01002_with_ann!H265","v":45.9},{"$f":"[1]ACS_16_5YR_B01002_with_ann!I265","v":11.7}]
["0600000US3301941700",3301941700,"060","Lempster",{"$f":"[1]ACS_16_5YR_B01002_with_ann!D266","v":47.5},{"$f":"[1]ACS_16_5YR_B01002_with_ann!E266","v":5.5},{"$f":"[1]ACS_16_5YR_B01002_with_ann!F266","v":47.7},{"$f":"[1]ACS_16_5YR_B01002_with_ann!G266","v":2.2999999999999998},{"$f":"[1]ACS_16_5YR_B01002_with_ann!H266","v":44.8},{"$f":"[1]ACS_16_5YR_B01002_with_ann!I266","v":16.100000000000001}]
["0600000US3301952580",3301952580,"060","Newport",{"$f":"[1]ACS_16_5YR_B01002_with_ann!D267","v":44.1},{"$f":"[1]ACS_16_5YR_B01002_with_ann!E267","v":4.5},{"$f":"[1]ACS_16_5YR_B01002_with_ann!F267","v":41.4},{"$f":"[1]ACS_16_5YR_B01002_with_ann!G267","v":10},{"$f":"[1]ACS_16_5YR_B01002_with_ann!H267","v":45.5},{"$f":"[1]ACS_16_5YR_B01002_with_ann!I267","v":3.8}]
["0600000US3301962340",3301962340,"060","Plainfield",{"$f":"[1]ACS_16_5YR_B01002_with_ann!D268","v":45.2},{"$f":"[1]ACS_16_5YR_B01002_with_ann!E268","v":7.3},{"$f":"[1]ACS_16_5YR_B01002_with_ann!F268","v":45.8},{"$f":"[1]ACS_16_5YR_B01002_with_ann!G268","v":9.8000000000000007},{"$f":"[1]ACS_16_5YR_B01002_with_ann!H268","v":43.8},{"$f":"[1]ACS_16_5YR_B01002_with_ann!I268","v":7.7}]
["0600000US3301972740",3301972740,"060","Springfield",{"$f":"[1]ACS_16_5YR_B01002_with_ann!D269","v":50.6},{"$f":"[1]ACS_16_5YR_B01002_with_ann!E269","v":6.7},{"$f":"[1]ACS_16_5YR_B01002_with_ann!F269","v":47.7},{"$f":"[1]ACS_16_5YR_B01002_with_ann!G269","v":4.3},{"$f":"[1]ACS_16_5YR_B01002_with_ann!H269","v":54.6},{"$f":"[1]ACS_16_5YR_B01002_with_ann!I269","v":7.7}]
["0600000US3301975060",3301975060,"060","Sunapee",{"$f":"[1]ACS_16_5YR_B01002_with_ann!D270","v":44.6},{"$f":"[1]ACS_16_5YR_B01002_with_ann!E270","v":8},{"$f":"[1]ACS_16_5YR_B01002_with_ann!F270","v":41.4},{"$f":"[1]ACS_16_5YR_B01002_with_ann!G270","v":5},{"$f":"[1]ACS_16_5YR_B01002_with_ann!H270","v":49.3},{"$f":"[1]ACS_16_5YR_B01002_with_ann!I270","v":6}]
["0600000US3301977940",3301977940,"060","Unity",{"$f":"[1]ACS_16_5YR_B01002_with_ann!D271","v":56.1},{"$f":"[1]ACS_16_5YR_B01002_with_ann!E271","v":3.2},{"$f":"[1]ACS_16_5YR_B01002_with_ann!F271","v":55.6},{"$f":"[1]ACS_16_5YR_B01002_with_ann!G271","v":3.4},{"$f":"[1]ACS_16_5YR_B01002_with_ann!H271","v":56.3},{"$f":"[1]ACS_16_5YR_B01002_with_ann!I271","v":4.0999999999999996}]
["0600000US3301978980",3301978980,"060","Washington",{"$f":"[1]ACS_16_5YR_B01002_with_ann!D272","v":52.2},{"$f":"[1]ACS_16_5YR_B01002_with_ann!E272","v":6},{"$f":"[1]ACS_16_5YR_B01002_with_ann!F272","v":54.5},{"$f":"[1]ACS_16_5YR_B01002_with_ann!G272","v":8.1999999999999993},{"$f":"[1]ACS_16_5YR_B01002_with_ann!H272","v":50.9},{"$f":"[1]ACS_16_5YR_B01002_with_ann!I272","v":4.9000000000000004}]
[]
[null,null,null,null,{"$f":"$D$3","v":"Acworth"},null,{"$f":"$D$4","v":"Charlestown"},null,{"$f":"$D$5","v":"Claremont"},null,{"$f":"$D$6","v":"Cornish"},null,{"$f":"$D$7","v":"Croydon"},null,{"$f":"$D$8","v":"Goshen"},null,{"$f":"$D$9","v":"Grantham"},null,{"$f":"$D$10","v":"Langdon"},null,{"$f":"$D$11","v":"Lempster"},null,{"$f":"$D$12","v":"Newport"},null,{"$f":"$D$13","v":"Plainfield"},null,{"$f":"$D$14","v":"Springfield"},null,{"$f":"$D$15","v":"Sunapee"},null,{"$f":"$D$16","v":"Unity"},null,{"$f":"$D$17","v":"Washington"}]
[null,null,null,null,"Estimate","Margin Of Error","Estimate","Margin Of Error","Estimate","Margin Of Error","Estimate","Margin Of Error","Estimate","Margin Of Error","Estimate","Margin Of Error","Estimate","Margin Of Error","Estimate","Margin Of Error","Estimate","Margin Of Error","Estimate","Margin Of Error","Estimate","Margin Of Error","Estimate","Margin Of Error","Estimate","Margin Of Error",null,"Estimate","Margin Of Error"]
[null,null,null,"Estimate Median age -- Total:",57.1,2.8,47.9,6.7,41.7,3.1,54.1,5.4,45.8,10.199999999999999,46.5,6.1,50.5,2.2000000000000002,44.4,12.3,47.5,5.5,44.1,4.5,45.2,7.3,50.6,6.7,44.6,8,56.1,3.2,52.2,6]
[null,null,null,"Estimate Median age -- Male",56.2,3.2,45.4,12.1,38.700000000000003,4.5999999999999996,50.4,9.6999999999999993,49.9,8.8000000000000007,46.6,6,49.7,2.1,42.1,13.6,47.7,2.2999999999999998,41.4,10,45.8,9.8000000000000007,47.7,4.3,41.4,5,55.6,3.4,54.5,8.1999999999999993]
[null,null,null,"Estimate Median age -- Female",57.6,3.2,49.6,8.6,44,2.8,55.9,3.6,39.5,18.2,46.5,8.9,51.3,3.6,45.9,11.7,44.8,16.100000000000001,45.5,3.8,43.8,7.7,54.6,7.7,49.3,6,56.3,4.0999999999999996,50.9,4.9000000000000004]

{"sheet":"SData_B03002HispanLationRace","index":23,"n_rows":41,"n_cols":46,"rows_kept":41,"cut":false,"hidden":true,"merged":[]}
["GEO_ID","GEO_ID2","SUMLEVEL","GEO_NAME","B03002_1_EST","B03002_1_MOE","B03002_2_EST","B03002_2_MOE","B03002_3_EST","B03002_3_MOE","B03002_4_EST","B03002_4_MOE","B03002_5_EST","B03002_5_MOE","B03002_6_EST","B03002_6_MOE","B03002_7_EST","B03002_7_MOE","B03002_8_EST","B03002_8_MOE","B03002_9_EST","B03002_9_MOE","B03002_10_EST","B03002_10_MOE","B03002_11_EST","B03002_11_MOE","B03002_12_EST","B03002_12_MOE","B03002_13_EST","B03002_13_MOE","B03002_14_EST","B03002_14_MOE","B03002_15_EST","B03002_15_MOE","B03002_16_EST","B03002_16_MOE","B03002_17_EST","B03002_17_MOE","B03002_18_EST","B03002_18_MOE","B03002_19_EST","B03002_19_MOE","B03002_20_EST","B03002_20_MOE","B03002_21_EST","B03002_21_MOE"]
["Geography Identifier","Geography Identifier","Geographic Summary Level","Geography",{"$f":"[1]ACS_16_5YR_B03002_with_ann!D$2","v":"Estimate Total:"},{"$f":"[1]ACS_16_5YR_B03002_with_ann!E$2","v":"Margin of Error Total:"},{"$f":"[1]ACS_16_5YR_B03002_with_ann!F$2","v":"Estimate Total: Not Hispanic or Latino:"},{"$f":"[1]ACS_16_5YR_B03002_with_ann!G$2","v":"Margin of Error Total: Not Hispanic or Latino:"},{"$f":"[1]ACS_16_5YR_B03002_with_ann!H$2","v":"Estimate Total: Not Hispanic or Latino: White alone"},{"$f":"[1]ACS_16_5YR_B03002_with_ann!I$2","v":"Margin of Error Total: Not Hispanic or Latino: White alone"},{"$f":"[1]ACS_16_5YR_B03002_with_ann!J$2","v":"Estimate Total: Not Hispanic or Latino: Black or African American alone"},{"$f":"[1]ACS_16_5YR_B03002_with_ann!K$2","v":"Margin of Error Total: Not Hispanic or Latino: Black or African American alone"},{"$f":"[1]ACS_16_5YR_B03002_with_ann!L$2","v":"Estimate Total: Not Hispanic or Latino: American Indian and Alaska Native alone"},{"$f":"[1]ACS_16_5YR_B03002_with_ann!M$2","v":"Margin of Error Total: Not Hispanic or Latino: American Indian and Alaska Native alone"},{"$f":"[1]ACS_16_5YR_B03002_with_ann!N$2","v":"Estimate Total: Not Hispanic or Latino: Asian alone"},{"$f":"[1]ACS_16_5YR_B03002_with_ann!O$2","v":"Margin of Error Total: Not Hispanic or Latino: Asian alone"},{"$f":"[1]ACS_16_5YR_B03002_with_ann!P$2","v":"Estimate Total: Not Hispanic or Latino: Native Hawaiian and Other Pacific Islander alone"},{"$f":"[1]ACS_16_5YR_B03002_with_ann!Q$2","v":"Margin of Error Total: Not Hispanic or Latino: Native Hawaiian and Other Pacific Islander alone"},{"$f":"[1]ACS_16_5YR_B03002_with_ann!R$2","v":"Estimate Total: Not Hispanic or Latino: Some other race alone"},{"$f":"[1]ACS_16_5YR_B03002_with_ann!S$2","v":"Margin of Error Total: Not Hispanic or Latino: Some other race alone"},{"$f":"[1]ACS_16_5YR_B03002_with_ann!T$2","v":"Estimate Total: Not Hispanic or Latino: Two or more races:"},{"$f":"[1]ACS_16_5YR_B03002_with_ann!U$2","v":"Margin of Error Total: Not Hispanic or Latino: Two or more races:"},{"$f":"[1]ACS_16_5YR_B03002_with_ann!V$2","v":"Estimate Total: Not Hispanic or Latino: Two or more races: Two races including Some other race"},{"$f":"[1]ACS_16_5YR_B03002_with_ann!W$2","v":"Margin of Error Total: Not Hispanic or Latino: Two or more races: Two races including Some other race"},{"$f":"[1]ACS_16_5YR_B03002_with_ann!X$2","v":"Estimate Total: Not Hispanic or Latino: Two or more races: Two races excluding Some other race"},{"$f":"[1]ACS_16_5YR_B03002_with_ann!Y$2","v":"Margin of Error Total: Not Hispanic or Latino: Two or more races: Two races excluding Some other race"},{"$f":"[1]ACS_16_5YR_B03002_with_ann!Z$2","v":"Estimate Total: Hispanic or Latino:"},{"$f":"[1]ACS_16_5YR_B03002_with_ann!AA$2","v":"Margin of Error Total: Hispanic or Latino:"},{"$f":"[1]ACS_16_5YR_B03002_with_ann!AB$2","v":"Estimate Total: Hispanic or Latino: White alone"},{"$f":"[1]ACS_16_5YR_B03002_with_ann!AC$2","v":"Margin of Error Total: Hispanic or Latino: White alone"},{"$f":"[1]ACS_16_5YR_B03002_with_ann!AD$2","v":"Estimate Total: Hispanic or Latino: Black or African American alone"},{"$f":"[1]ACS_16_5YR_B03002_with_ann!AE$2","v":"Margin of Error Total: Hispanic or Latino: Black or African American alone"},{"$f":"[1]ACS_16_5YR_B03002_with_ann!AF$2","v":"Estimate Total: Hispanic or Latino: American Indian and Alaska Native alone"},{"$f":"[1]ACS_16_5YR_B03002_with_ann!AG$2","v":"Margin of Error Total: Hispanic or Latino: American Indian and Alaska Native alone"},{"$f":"[1]ACS_16_5YR_B03002_with_ann!AH$2","v":"Estimate Total: Hispanic or Latino: Asian alone"},{"$f":"[1]ACS_16_5YR_B03002_with_ann!AI$2","v":"Margin of Error Total: Hispanic or Latino: Asian alone"},{"$f":"[1]ACS_16_5YR_B03002_with_ann!AJ$2","v":"Estimate Total: Hispanic or Latino: Native Hawaiian and Other Pacific Islander alone"},{"$f":"[1]ACS_16_5YR_B03002_with_ann!AK$2","v":"Margin of Error Total: Hispanic or Latino: Native Hawaiian and Other Pacific Islander alone"},{"$f":"[1]ACS_16_5YR_B03002_with_ann!AL$2","v":"Estimate Total: Hispanic or Latino: Some other race alone"},{"$f":"[1]ACS_16_5YR_B03002_with_ann!AM$2","v":"Margin of Error Total: Hispanic or Latino: Some other race alone"},{"$f":"[1]ACS_16_5YR_B03002_with_ann!AN$2","v":"Estimate Total: Hispanic or Latino: Two or more races:"},{"$f":"[1]ACS_16_5YR_B03002_with_ann!AO$2","v":"Margin of Error Total: Hispanic or Latino: Two or more races:"},{"$f":"[1]ACS_16_5YR_B03002_with_ann!AP$2","v":"Estimate Total: Hispanic or Latino: Two or more races: Two races including Some other race"},{"$f":"[1]ACS_16_5YR_B03002_with_ann!AQ$2","v":"Margin of Error Total: Hispanic or Latino: Two or more races: Two races including Some other race"},{"$f":"[1]ACS_16_5YR_B03002_with_ann!AR$2","v":"Estimate Total: Hispanic or Latino: Two or more races: Two races excluding Some other race"},{"$f":"[1]ACS_16_5YR_B03002_with_ann!AS$2","v":"Margin of Error Total: Hispanic or Latino: Two or more races: Two races excluding Some other race"}]
["0600000US3301900259",3301900259,"060","Acworth",{"$f":"[1]ACS_16_5YR_B03002_with_ann!D258","v":906},{"$f":"[1]ACS_16_5YR_B03002_with_ann!E258","v":134},{"$f":"[1]ACS_16_5YR_B03002_with_ann!F258","v":892},{"$f":"[1]ACS_16_5YR_B03002_with_ann!G258","v":134},{"$f":"[1]ACS_16_5YR_B03002_with_ann!H258","v":861},{"$f":"[1]ACS_16_5YR_B03002_with_ann!I258","v":131},{"$f":"[1]ACS_16_5YR_B03002_with_ann!J258","v":0},{"$f":"[1]ACS_16_5YR_B03002_with_ann!K258","v":11},{"$f":"[1]ACS_16_5YR_B03002_with_ann!L258","v":0},{"$f":"[1]ACS_16_5YR_B03002_with_ann!M258","v":11},{"$f":"[1]ACS_16_5YR_B03002_with_ann!N258","v":8},{"$f":"[1]ACS_16_5YR_B03002_with_ann!O258","v":12},{"$f":"[1]ACS_16_5YR_B03002_with_ann!P258","v":0},{"$f":"[1]ACS_16_5YR_B03002_with_ann!Q258","v":11},{"$f":"[1]ACS_16_5YR_B03002_with_ann!R258","v":0},{"$f":"[1]ACS_16_5YR_B03002_with_ann!S258","v":11},{"$f":"[1]ACS_16_5YR_B03002_with_ann!T258","v":23},{"$f":"[1]ACS_16_5YR_B03002_with_ann!U258","v":25},{"$f":"[1]ACS_16_5YR_B03002_with_ann!V258","v":0},{"$f":"[1]ACS_16_5YR_B03002_with_ann!W258","v":11},{"$f":"[1]ACS_16_5YR_B03002_with_ann!X258","v":23},{"$f":"[1]ACS_16_5YR_B03002_with_ann!Y258","v":25},{"$f":"[1]ACS_16_5YR_B03002_with_ann!Z258","v":14},{"$f":"[1]ACS_16_5YR_B03002_with_ann!AA258","v":14},{"$f":"[1]ACS_16_5YR_B03002_with_ann!AB258","v":8},{"$f":"[1]ACS_16_5YR_B03002_with_ann!AC258","v":12},{"$f":"[1]ACS_16_5YR_B03002_with_ann!AD258","v":0},{"$f":"[1]ACS_16_5YR_B03002_with_ann!AE258","v":11},{"$f":"[1]ACS_16_5YR_B03002_with_ann!AF258","v":0},{"$f":"[1]ACS_16_5YR_B03002_with_ann!AG258","v":11},{"$f":"[1]ACS_16_5YR_B03002_with_ann!AH258","v":0},{"$f":"[1]ACS_16_5YR_B03002_with_ann!AI258","v":11},{"$f":"[1]ACS_16_5YR_B03002_with_ann!AJ258","v":0},{"$f":"[1]ACS_16_5YR_B03002_with_ann!AK258","v":11},{"$f":"[1]ACS_16_5YR_B03002_with_ann!AL258","v":6},{"$f":"[1]ACS_16_5YR_B03002_with_ann!AM258","v":7},{"$f":"[1]ACS_16_5YR_B03002_with_ann!AN258","v":0},{"$f":"[1]ACS_16_5YR_B03002_with_ann!AO258","v":11},{"$f":"[1]ACS_16_5YR_B03002_with_ann!AP258","v":0},{"$f":"[1]ACS_16_5YR_B03002_with_ann!AQ258","v":11},{"$f":"[1]ACS_16_5YR_B03002_with_ann!AR258","v":0},{"$f":"[1]ACS_16_5YR_B03002_with_ann!AS258","v":11}]
["0600000US3301911380",3301911380,"060","Charlestown",{"$f":"[1]ACS_16_5YR_B03002_with_ann!D259","v":5019},{"$f":"[1]ACS_16_5YR_B03002_with_ann!E259","v":19},{"$f":"[1]ACS_16_5YR_B03002_with_ann!F259","v":4950},{"$f":"[1]ACS_16_5YR_B03002_with_ann!G259","v":76},{"$f":"[1]ACS_16_5YR_B03002_with_ann!H259","v":4730},{"$f":"[1]ACS_16_5YR_B03002_with_ann!I259","v":164},{"$f":"[1]ACS_16_5YR_B03002_with_ann!J259","v":0},{"$f":"[1]ACS_16_5YR_B03002_with_ann!K259","v":16},{"$f":"[1]ACS_16_5YR_B03002_with_ann!L259","v":8},{"$f":"[1]ACS_16_5YR_B03002_with_ann!M259","v":13},{"$f":"[1]ACS_16_5YR_B03002_with_ann!N259","v":91},{"$f":"[1]ACS_16_5YR_B03002_with_ann!O259","v":107},{"$f":"[1]ACS_16_5YR_B03002_with_ann!P259","v":0},{"$f":"[1]ACS_16_5YR_B03002_with_ann!Q259","v":16},{"$f":"[1]ACS_16_5YR_B03002_with_ann!R259","v":0},{"$f":"[1]ACS_16_5YR_B03002_with_ann!S259","v":16},{"$f":"[1]ACS_16_5YR_B03002_with_ann!T259","v":121},{"$f":"[1]ACS_16_5YR_B03002_with_ann!U259","v":118},{"$f":"[1]ACS_16_5YR_B03002_with_ann!V259","v":0},{"$f":"[1]ACS_16_5YR_B03002_with_ann!W259","v":16},{"$f":"[1]ACS_16_5YR_B03002_with_ann!X259","v":121},{"$f":"[1]ACS_16_5YR_B03002_with_ann!Y259","v":118},{"$f":"[1]ACS_16_5YR_B03002_with_ann!Z259","v":69},{"$f":"[1]ACS_16_5YR_B03002_with_ann!AA259","v":74},{"$f":"[1]ACS_16_5YR_B03002_with_ann!AB259","v":69},{"$f":"[1]ACS_16_5YR_B03002_with_ann!AC259","v":74},{"$f":"[1]ACS_16_5YR_B03002_with_ann!AD259","v":0},{"$f":"[1]ACS_16_5YR_B03002_with_ann!AE259","v":16},{"$f":"[1]ACS_16_5YR_B03002_with_ann!AF259","v":0},{"$f":"[1]ACS_16_5YR_B03002_with_ann!AG259","v":16},{"$f":"[1]ACS_16_5YR_B03002_with_ann!AH259","v":0},{"$f":"[1]ACS_16_5YR_B03002_with_ann!AI259","v":16},{"$f":"[1]ACS_16_5YR_B03002_with_ann!AJ259","v":0},{"$f":"[1]ACS_16_5YR_B03002_with_ann!AK259","v":16},{"$f":"[1]ACS_16_5YR_B03002_with_ann!AL259","v":0},{"$f":"[1]ACS_16_5YR_B03002_with_ann!AM259","v":16},{"$f":"[1]ACS_16_5YR_B03002_with_ann!AN259","v":0},{"$f":"[1]ACS_16_5YR_B03002_with_ann!AO259","v":16},{"$f":"[1]ACS_16_5YR_B03002_with_ann!AP259","v":0},{"$f":"[1]ACS_16_5YR_B03002_with_ann!AQ259","v":16},{"$f":"[1]ACS_16_5YR_B03002_with_ann!AR259","v":0},{"$f":"[1]ACS_16_5YR_B03002_with_ann!AS259","v":16}]
["0600000US3301912900",3301912900,"060","Claremont",{"$f":"[1]ACS_16_5YR_B03002_with_ann!D260","v":12977},{"$f":"[1]ACS_16_5YR_B03002_with_ann!E260","v":23},{"$f":"[1]ACS_16_5YR_B03002_with_ann!F260","v":12685},{"$f":"[1]ACS_16_5YR_B03002_with_ann!G260","v":96},{"$f":"[1]ACS_16_5YR_B03002_with_ann!H260","v":12243},{"$f":"[1]ACS_16_5YR_B03002_with_ann!I260","v":167},{"$f":"[1]ACS_16_5YR_B03002_with_ann!J260","v":202},{"$f":"[1]ACS_16_5YR_B03002_with_ann!K260","v":128},{"$f":"[1]ACS_16_5YR_B03002_with_ann!L260","v":0},{"$f":"[1]ACS_16_5YR_B03002_with_ann!M260","v":18},{"$f":"[1]ACS_16_5YR_B03002_with_ann!N260","v":57},{"$f":"[1]ACS_16_5YR_B03002_with_ann!O260","v":74},{"$f":"[1]ACS_16_5YR_B03002_with_ann!P260","v":0},{"$f":"[1]ACS_16_5YR_B03002_with_ann!Q260","v":18},{"$f":"[1]ACS_16_5YR_B03002_with_ann!R260","v":0},{"$f":"[1]ACS_16_5YR_B03002_with_ann!S260","v":18},{"$f":"[1]ACS_16_5YR_B03002_with_ann!T260","v":183},{"$f":"[1]ACS_16_5YR_B03002_with_ann!U260","v":117},{"$f":"[1]ACS_16_5YR_B03002_with_ann!V260","v":0},{"$f":"[1]ACS_16_5YR_B03002_with_ann!W260","v":18},{"$f":"[1]ACS_16_5YR_B03002_with_ann!X260","v":183},{"$f":"[1]ACS_16_5YR_B03002_with_ann!Y260","v":117},{"$f":"[1]ACS_16_5YR_B03002_with_ann!Z260","v":292},{"$f":"[1]ACS_16_5YR_B03002_with_ann!AA260","v":97},{"$f":"[1]ACS_16_5YR_B03002_with_ann!AB260","v":233},{"$f":"[1]ACS_16_5YR_B03002_with_ann!AC260","v":121},{"$f":"[1]ACS_16_5YR_B03002_with_ann!AD260","v":59},{"$f":"[1]ACS_16_5YR_B03002_with_ann!AE260","v":71},{"$f":"[1]ACS_16_5YR_B03002_with_ann!AF260","v":0},{"$f":"[1]ACS_16_5YR_B03002_with_ann!AG260","v":18},{"$f":"[1]ACS_16_5YR_B03002_with_ann!AH260","v":0},{"$f":"[1]ACS_16_5YR_B03002_with_ann!AI260","v":18},{"$f":"[1]ACS_16_5YR_B03002_with_ann!AJ260","v":0},{"$f":"[1]ACS_16_5YR_B03002_with_ann!AK260","v":18},{"$f":"[1]ACS_16_5YR_B03002_with_ann!AL260","v":0},{"$f":"[1]ACS_16_5YR_B03002_with_ann!AM260","v":18},{"$f":"[1]ACS_16_5YR_B03002_with_ann!AN260","v":0},{"$f":"[1]ACS_16_5YR_B03002_with_ann!AO260","v":18},{"$f":"[1]ACS_16_5YR_B03002_with_ann!AP260","v":0},{"$f":"[1]ACS_16_5YR_B03002_with_ann!AQ260","v":18},{"$f":"[1]ACS_16_5YR_B03002_with_ann!AR260","v":0},{"$f":"[1]ACS_16_5YR_B03002_with_ann!AS260","v":18}]
["0600000US3301915060",3301915060,"060","Cornish",{"$f":"[1]ACS_16_5YR_B03002_with_ann!D261","v":1783},{"$f":"[1]ACS_16_5YR_B03002_with_ann!E261","v":217},{"$f":"[1]ACS_16_5YR_B03002_with_ann!F261","v":1778},{"$f":"[1]ACS_16_5YR_B03002_with_ann!G261","v":216},{"$f":"[1]ACS_16_5YR_B03002_with_ann!H261","v":1721},{"$f":"[1]ACS_16_5YR_B03002_with_ann!I261","v":207},{"$f":"[1]ACS_16_5YR_B03002_with_ann!J261","v":15},{"$f":"[1]ACS_16_5YR_B03002_with_ann!K261","v":24},{"$f":"[1]ACS_16_5YR_B03002_with_ann!L261","v":9},{"$f":"[1]ACS_16_5YR_B03002_with_ann!M261","v":10},{"$f":"[1]ACS_16_5YR_B03002_with_ann!N261","v":8},{"$f":"[1]ACS_16_5YR_B03002_with_ann!O261","v":11},{"$f":"[1]ACS_16_5YR_B03002_with_ann!P261","v":0},{"$f":"[1]ACS_16_5YR_B03002_with_ann!Q261","v":11},{"$f":"[1]ACS_16_5YR_B03002_with_ann!R261","v":0},{"$f":"[1]ACS_16_5YR_B03002_with_ann!S261","v":11},{"$f":"[1]ACS_16_5YR_B03002_with_ann!T261","v":25},{"$f":"[1]ACS_16_5YR_B03002_with_ann!U261","v":29},{"$f":"[1]ACS_16_5YR_B03002_with_ann!V261","v":0},{"$f":"[1]ACS_16_5YR_B03002_with_ann!W261","v":11},{"$f":"[1]ACS_16_5YR_B03002_with_ann!X261","v":25},{"$f":"[1]ACS_16_5YR_B03002_with_ann!Y261","v":29},{"$f":"[1]ACS_16_5YR_B03002_with_ann!Z261","v":5},{"$f":"[1]ACS_16_5YR_B03002_with_ann!AA261","v":7},{"$f":"[1]ACS_16_5YR_B03002_with_ann!AB261","v":0},{"$f":"[1]ACS_16_5YR_B03002_with_ann!AC261","v":11},{"$f":"[1]ACS_16_5YR_B03002_with_ann!AD261","v":0},{"$f":"[1]ACS_16_5YR_B03002_with_ann!AE261","v":11},{"$f":"[1]ACS_16_5YR_B03002_with_ann!AF261","v":5},{"$f":"[1]ACS_16_5YR_B03002_with_ann!AG261","v":7},{"$f":"[1]ACS_16_5YR_B03002_with_ann!AH261","v":0},{"$f":"[1]ACS_16_5YR_B03002_with_ann!AI261","v":11},{"$f":"[1]ACS_16_5YR_B03002_with_ann!AJ261","v":0},{"$f":"[1]ACS_16_5YR_B03002_with_ann!AK261","v":11},{"$f":"[1]ACS_16_5YR_B03002_with_ann!AL261","v":0},{"$f":"[1]ACS_16_5YR_B03002_with_ann!AM261","v":11},{"$f":"[1]ACS_16_5YR_B03002_with_ann!AN261","v":0},{"$f":"[1]ACS_16_5YR_B03002_with_ann!AO261","v":11},{"$f":"[1]ACS_16_5YR_B03002_with_ann!AP261","v":0},{"$f":"[1]ACS_16_5YR_B03002_with_ann!AQ261","v":11},{"$f":"[1]ACS_16_5YR_B03002_with_ann!AR261","v":0},{"$f":"[1]ACS_16_5YR_B03002_with_ann!AS261","v":11}]
["0600000US3301916340",3301916340,"060","Croydon",{"$f":"[1]ACS_16_5YR_B03002_with_ann!D262","v":863},{"$f":"[1]ACS_16_5YR_B03002_with_ann!E262","v":244},{"$f":"[1]ACS_16_5YR_B03002_with_ann!F262","v":861},{"$f":"[1]ACS_16_5YR_B03002_with_ann!G262","v":243},{"$f":"[1]ACS_16_5YR_B03002_with_ann!H262","v":848},{"$f":"[1]ACS_16_5YR_B03002_with_ann!I262","v":242},{"$f":"[1]ACS_16_5YR_B03002_with_ann!J262","v":10},{"$f":"[1]ACS_16_5YR_B03002_with_ann!K262","v":22},{"$f":"[1]ACS_16_5YR_B03002_with_ann!L262","v":0},{"$f":"[1]ACS_16_5YR_B03002_with_ann!M262","v":11},{"$f":"[1]ACS_16_5YR_B03002_with_ann!N262","v":0},{"$f":"[1]ACS_16_5YR_B03002_with_ann!O262","v":11},{"$f":"[1]ACS_16_5YR_B03002_with_ann!P262","v":0},{"$f":"[1]ACS_16_5YR_B03002_with_ann!Q262","v":11},{"$f":"[1]ACS_16_5YR_B03002_with_ann!R262","v":0},{"$f":"[1]ACS_16_5YR_B03002_with_ann!S262","v":11},{"$f":"[1]ACS_16_5YR_B03002_with_ann!T262","v":3},{"$f":"[1]ACS_16_5YR_B03002_with_ann!U262","v":5},{"$f":"[1]ACS_16_5YR_B03002_with_ann!V262","v":0},{"$f":"[1]ACS_16_5YR_B03002_with_ann!W262","v":11},{"$f":"[1]ACS_16_5YR_B03002_with_ann!X262","v":3},{"$f":"[1]ACS_16_5YR_B03002_with_ann!Y262","v":5},{"$f":"[1]ACS_16_5YR_B03002_with_ann!Z262","v":2},{"$f":"[1]ACS_16_5YR_B03002_with_ann!AA262","v":5},{"$f":"[1]ACS_16_5YR_B03002_with_ann!AB262","v":1},{"$f":"[1]ACS_16_5YR_B03002_with_ann!AC262","v":3},{"$f":"[1]ACS_16_5YR_B03002_with_ann!AD262","v":0},{"$f":"[1]ACS_16_5YR_B03002_with_ann!AE262","v":11},{"$f":"[1]ACS_16_5YR_B03002_with_ann!AF262","v":0},{"$f":"[1]ACS_16_5YR_B03002_with_ann!AG262","v":11},{"$f":"[1]ACS_16_5YR_B03002_with_ann!AH262","v":1},{"$f":"[1]ACS_16_5YR_B03002_with_ann!AI262","v":3},{"$f":"[1]ACS_16_5YR_B03002_with_ann!AJ262","v":0},{"$f":"[1]ACS_16_5YR_B03002_with_ann!AK262","v":11},{"$f":"[1]ACS_16_5YR_B03002_with_ann!AL262","v":0},{"$f":"[1]ACS_16_5YR_B03002_with_ann!AM262","v":11},{"$f":"[1]ACS_16_5YR_B03002_with_ann!AN262","v":0},{"$f":"[1]ACS_16_5YR_B03002_with_ann!AO262","v":11},{"$f":"[1]ACS_16_5YR_B03002_with_ann!AP262","v":0},{"$f":"[1]ACS_16_5YR_B03002_with_ann!AQ262","v":11},{"$f":"[1]ACS_16_5YR_B03002_with_ann!AR262","v":0},{"$f":"[1]ACS_16_5YR_B03002_with_ann!AS262","v":11}]
["0600000US3301930500",3301930500,"060","Goshen",{"$f":"[1]ACS_16_5YR_B03002_with_ann!D263","v":702},{"$f":"[1]ACS_16_5YR_B03002_with_ann!E263","v":108},{"$f":"[1]ACS_16_5YR_B03002_with_ann!F263","v":659},{"$f":"[1]ACS_16_5YR_B03002_with_ann!G263","v":101},{"$f":"[1]ACS_16_5YR_B03002_with_ann!H263","v":644},{"$f":"[1]ACS_16_5YR_B03002_with_ann!I263","v":98},{"$f":"[1]ACS_16_5YR_B03002_with_ann!J263","v":0},{"$f":"[1]ACS_16_5YR_B03002_with_ann!K263","v":11},{"$f":"[1]ACS_16_5YR_B03002_with_ann!L263","v":0},{"$f":"[1]ACS_16_5YR_B03002_with_ann!M263","v":11},{"$f":"[1]ACS_16_5YR_B03002_with_ann!N263","v":0},{"$f":"[1]ACS_16_5YR_B03002_with_ann!O263","v":11},{"$f":"[1]ACS_16_5YR_B03002_with_ann!P263","v":0},{"$f":"[1]ACS_16_5YR_B03002_with_ann!Q263","v":11},{"$f":"[1]ACS_16_5YR_B03002_with_ann!R263","v":0},{"$f":"[1]ACS_16_5YR_B03002_with_ann!S263","v":11},{"$f":"[1]ACS_16_5YR_B03002_with_ann!T263","v":15},{"$f":"[1]ACS_16_5YR_B03002_with_ann!U263","v":26},{"$f":"[1]ACS_16_5YR_B03002_with_ann!V263","v":0},{"$f":"[1]ACS_16_5YR_B03002_with_ann!W263","v":11},{"$f":"[1]ACS_16_5YR_B03002_with_ann!X263","v":15},{"$f":"[1]ACS_16_5YR_B03002_with_ann!Y263","v":26},{"$f":"[1]ACS_16_5YR_B03002_with_ann!Z263","v":43},{"$f":"[1]ACS_16_5YR_B03002_with_ann!AA263","v":49},{"$f":"[1]ACS_16_5YR_B03002_with_ann!AB263","v":21},{"$f":"[1]ACS_16_5YR_B03002_with_ann!AC263","v":29},{"$f":"[1]ACS_16_5YR_B03002_with_ann!AD263","v":0},{"$f":"[1]ACS_16_5YR_B03002_with_ann!AE263","v":11},{"$f":"[1]ACS_16_5YR_B03002_with_ann!AF263","v":0},{"$f":"[1]ACS_16_5YR_B03002_with_ann!AG263","v":11},{"$f":"[1]ACS_16_5YR_B03002_with_ann!AH263","v":0},{"$f":"[1]ACS_16_5YR_B03002_with_ann!AI263","v":11},{"$f":"[1]ACS_16_5YR_B03002_with_ann!AJ263","v":0},{"$f":"[1]ACS_16_5YR_B03002_with_ann!AK263","v":11},{"$f":"[1]ACS_16_5YR_B03002_with_ann!AL263","v":8},{"$f":"[1]ACS_16_5YR_B03002_with_ann!AM263","v":15},{"$f":"[1]ACS_16_5YR_B03002_with_ann!AN263","v":14},{"$f":"[1]ACS_16_5YR_B03002_with_ann!AO263","v":25},{"$f":"[1]ACS_16_5YR_B03002_with_ann!AP263","v":14},{"$f":"[1]ACS_16_5YR_B03002_with_ann!AQ263","v":25},{"$f":"[1]ACS_16_5YR_B03002_with_ann!AR263","v":0},{"$f":"[1]ACS_16_5YR_B03002_with_ann!AS263","v":11}]
["0600000US3301931220",3301931220,"060","Grantham",{"$f":"[1]ACS_16_5YR_B03002_with_ann!D264","v":2945},{"$f":"[1]ACS_16_5YR_B03002_with_ann!E264","v":14},{"$f":"[1]ACS_16_5YR_B03002_with_ann!F264","v":2921},{"$f":"[1]ACS_16_5YR_B03002_with_ann!G264","v":34},{"$f":"[1]ACS_16_5YR_B03002_with_ann!H264","v":2879},{"$f":"[1]ACS_16_5YR_B03002_with_ann!I264","v":58},{"$f":"[1]ACS_16_5YR_B03002_with_ann!J264","v":0},{"$f":"[1]ACS_16_5YR_B03002_with_ann!K264","v":11},{"$f":"[1]ACS_16_5YR_B03002_with_ann!L264","v":24},{"$f":"[1]ACS_16_5YR_B03002_with_ann!M264","v":34},{"$f":"[1]ACS_16_5YR_B03002_with_ann!N264","v":0},{"$f":"[1]ACS_16_5YR_B03002_with_ann!O264","v":11},{"$f":"[1]ACS_16_5YR_B03002_with_ann!P264","v":0},{"$f":"[1]ACS_16_5YR_B03002_with_ann!Q264","v":11},{"$f":"[1]ACS_16_5YR_B03002_with_ann!R264","v":0},{"$f":"[1]ACS_16_5YR_B03002_with_ann!S264","v":11},{"$f":"[1]ACS_16_5YR_B03002_with_ann!T264","v":18},{"$f":"[1]ACS_16_5YR_B03002_with_ann!U264","v":25},{"$f":"[1]ACS_16_5YR_B03002_with_ann!V264","v":0},{"$f":"[1]ACS_16_5YR_B03002_with_ann!W264","v":11},{"$f":"[1]ACS_16_5YR_B03002_with_ann!X264","v":18},{"$f":"[1]ACS_16_5YR_B03002_with_ann!Y264","v":25},{"$f":"[1]ACS_16_5YR_B03002_with_ann!Z264","v":24},{"$f":"[1]ACS_16_5YR_B03002_with_ann!AA264","v":29},{"$f":"[1]ACS_16_5YR_B03002_with_ann!AB264","v":24},{"$f":"[1]ACS_16_5YR_B03002_with_ann!AC264","v":29},{"$f":"[1]ACS_16_5YR_B03002_with_ann!AD264","v":0},{"$f":"[1]ACS_16_5YR_B03002_with_ann!AE264","v":11},{"$f":"[1]ACS_16_5YR_B03002_with_ann!AF264","v":0},{"$f":"[1]ACS_16_5YR_B03002_with_ann!AG264","v":11},{"$f":"[1]ACS_16_5YR_B03002_with_ann!AH264","v":0},{"$f":"[1]ACS_16_5YR_B03002_with_ann!AI264","v":11},{"$f":"[1]ACS_16_5YR_B03002_with_ann!AJ264","v":0},{"$f":"[1]ACS_16_5YR_B03002_with_ann!AK264","v":11},{"$f":"[1]ACS_16_5YR_B03002_with_ann!AL264","v":0},{"$f":"[1]ACS_16_5YR_B03002_with_ann!AM264","v":11},{"$f":"[1]ACS_16_5YR_B03002_with_ann!AN264","v":0},{"$f":"[1]ACS_16_5YR_B03002_with_ann!AO264","v":11},{"$f":"[1]ACS_16_5YR_B03002_with_ann!AP264","v":0},{"$f":"[1]ACS_16_5YR_B03002_with_ann!AQ264","v":11},{"$f":"[1]ACS_16_5YR_B03002_with_ann!AR264","v":0},{"$f":"[1]ACS_16_5YR_B03002_with_ann!AS264","v":11}]
["0600000US3301940900",3301940900,"060","Langdon",{"$f":"[1]ACS_16_5YR_B03002_with_ann!D265","v":712},{"$f":"[1]ACS_16_5YR_B03002_with_ann!E265","v":145},{"$f":"[1]ACS_16_5YR_B03002_with_ann!F265","v":703},{"$f":"[1]ACS_16_5YR_B03002_with_ann!G265","v":143},{"$f":"[1]ACS_16_5YR_B03002_with_ann!H265","v":662},{"$f":"[1]ACS_16_5YR_B03002_with_ann!I265","v":129},{"$f":"[1]ACS_16_5YR_B03002_with_ann!J265","v":6},{"$f":"[1]ACS_16_5YR_B03002_with_ann!K265","v":9},{"$f":"[1]ACS_16_5YR_B03002_with_ann!L265","v":0},{"$f":"[1]ACS_16_5YR_B03002_with_ann!M265","v":11},{"$f":"[1]ACS_16_5YR_B03002_with_ann!N265","v":9},{"$f":"[1]ACS_16_5YR_B03002_with_ann!O265","v":13},{"$f":"[1]ACS_16_5YR_B03002_with_ann!P265","v":0},{"$f":"[1]ACS_16_5YR_B03002_with_ann!Q265","v":11},{"$f":"[1]ACS_16_5YR_B03002_with_ann!R265","v":0},{"$f":"[1]ACS_16_5YR_B03002_with_ann!S265","v":11},{"$f":"[1]ACS_16_5YR_B03002_with_ann!T265","v":26},{"$f":"[1]ACS_16_5YR_B03002_with_ann!U265","v":27},{"$f":"[1]ACS_16_5YR_B03002_with_ann!V265","v":0},{"$f":"[1]ACS_16_5YR_B03002_with_ann!W265","v":11},{"$f":"[1]ACS_16_5YR_B03002_with_ann!X265","v":26},{"$f":"[1]ACS_16_5YR_B03002_with_ann!Y265","v":27},{"$f":"[1]ACS_16_5YR_B03002_with_ann!Z265","v":9},{"$f":"[1]ACS_16_5YR_B03002_with_ann!AA265","v":11},{"$f":"[1]ACS_16_5YR_B03002_with_ann!AB265","v":5},{"$f":"[1]ACS_16_5YR_B03002_with_ann!AC265","v":7},{"$f":"[1]ACS_16_5YR_B03002_with_ann!AD265","v":0},{"$f":"[1]ACS_16_5YR_B03002_with_ann!AE265","v":11},{"$f":"[1]ACS_16_5YR_B03002_with_ann!AF265","v":0},{"$f":"[1]ACS_16_5YR_B03002_with_ann!AG265","v":11},{"$f":"[1]ACS_16_5YR_B03002_with_ann!AH265","v":0},{"$f":"[1]ACS_16_5YR_B03002_with_ann!AI265","v":11},{"$f":"[1]ACS_16_5YR_B03002_with_ann!AJ265","v":0},{"$f":"[1]ACS_16_5YR_B03002_with_ann!AK265","v":11},{"$f":"[1]ACS_16_5YR_B03002_with_ann!AL265","v":4},{"$f":"[1]ACS_16_5YR_B03002_with_ann!AM265","v":7},{"$f":"[1]ACS_16_5YR_B03002_with_ann!AN265","v":0},{"$f":"[1]ACS_16_5YR_B03002_with_ann!AO265","v":11},{"$f":"[1]ACS_16_5YR_B03002_with_ann!AP265","v":0},{"$f":"[1]ACS_16_5YR_B03002_with_ann!AQ265","v":11},{"$f":"[1]ACS_16_5YR_B03002_with_ann!AR265","v":0},{"$f":"[1]ACS_16_5YR_B03002_with_ann!AS265","v":11}]
["0600000US3301941700",3301941700,"060","Lempster",{"$f":"[1]ACS_16_5YR_B03002_with_ann!D266","v":923},{"$f":"[1]ACS_16_5YR_B03002_with_ann!E266","v":176},{"$f":"[1]ACS_16_5YR_B03002_with_ann!F266","v":923},{"$f":"[1]ACS_16_5YR_B03002_with_ann!G266","v":176},{"$f":"[1]ACS_16_5YR_B03002_with_ann!H266","v":876},{"$f":"[1]ACS_16_5YR_B03002_with_ann!I266","v":169},{"$f":"[1]ACS_16_5YR_B03002_with_ann!J266","v":0},{"$f":"[1]ACS_16_5YR_B03002_with_ann!K266","v":11},{"$f":"[1]ACS_16_5YR_B03002_with_ann!L266","v":0},{"$f":"[1]ACS_16_5YR_B03002_with_ann!M266","v":11},{"$f":"[1]ACS_16_5YR_B03002_with_ann!N266","v":32},{"$f":"[1]ACS_16_5YR_B03002_with_ann!O266","v":51},{"$f":"[1]ACS_16_5YR_B03002_with_ann!P266","v":0},{"$f":"[1]ACS_16_5YR_B03002_with_ann!Q266","v":11},{"$f":"[1]ACS_16_5YR_B03002_with_ann!R266","v":0},{"$f":"[1]ACS_16_5YR_B03002_with_ann!S266","v":11},{"$f":"[1]ACS_16_5YR_B03002_with_ann!T266","v":15},{"$f":"[1]ACS_16_5YR_B03002_with_ann!U266","v":15},{"$f":"[1]ACS_16_5YR_B03002_with_ann!V266","v":0},{"$f":"[1]ACS_16_5YR_B03002_with_ann!W266","v":11},{"$f":"[1]ACS_16_5YR_B03002_with_ann!X266","v":15},{"$f":"[1]ACS_16_5YR_B03002_with_ann!Y266","v":15},{"$f":"[1]ACS_16_5YR_B03002_with_ann!Z266","v":0},{"$f":"[1]ACS_16_5YR_B03002_with_ann!AA266","v":11},{"$f":"[1]ACS_16_5YR_B03002_with_ann!AB266","v":0},{"$f":"[1]ACS_16_5YR_B03002_with_ann!AC266","v":11},{"$f":"[1]ACS_16_5YR_B03002_with_ann!AD266","v":0},{"$f":"[1]ACS_16_5YR_B03002_with_ann!AE266","v":11},{"$f":"[1]ACS_16_5YR_B03002_with_ann!AF266","v":0},{"$f":"[1]ACS_16_5YR_B03002_with_ann!AG266","v":11},{"$f":"[1]ACS_16_5YR_B03002_with_ann!AH266","v":0},{"$f":"[1]ACS_16_5YR_B03002_with_ann!AI266","v":11},{"$f":"[1]ACS_16_5YR_B03002_with_ann!AJ266","v":0},{"$f":"[1]ACS_16_5YR_B03002_with_ann!AK266","v":11},{"$f":"[1]ACS_16_5YR_B03002_with_ann!AL266","v":0},{"$f":"[1]ACS_16_5YR_B03002_with_ann!AM266","v":11},{"$f":"[1]ACS_16_5YR_B03002_with_ann!AN266","v":0},{"$f":"[1]ACS_16_5YR_B03002_with_ann!AO266","v":11},{"$f":"[1]ACS_16_5YR_B03002_with_ann!AP266","v":0},{"$f":"[1]ACS_16_5YR_B03002_with_ann!AQ266","v":11},{"$f":"[1]ACS_16_5YR_B03002_with_ann!AR266","v":0},{"$f":"[1]ACS_16_5YR_B03002_with_ann!AS266","v":11}]
["0600000US3301952580",3301952580,"060","Newport",{"$f":"[1]ACS_16_5YR_B03002_with_ann!D267","v":6374},{"$f":"[1]ACS_16_5YR_B03002_with_ann!E267","v":19},{"$f":"[1]ACS_16_5YR_B03002_with_ann!F267","v":6246},{"$f":"[1]ACS_16_5YR_B03002_with_ann!G267","v":150},{"$f":"[1]ACS_16_5YR_B03002_with_ann!H267","v":5904},{"$f":"[1]ACS_16_5YR_B03002_with_ann!I267","v":246},{"$f":"[1]ACS_16_5YR_B03002_with_ann!J267","v":15},{"$f":"[1]ACS_16_5YR_B03002_with_ann!K267","v":29},{"$f":"[1]ACS_16_5YR_B03002_with_ann!L267","v":98},{"$f":"[1]ACS_16_5YR_B03002_with_ann!M267","v":131},{"$f":"[1]ACS_16_5YR_B03002_with_ann!N267","v":26},{"$f":"[1]ACS_16_5YR_B03002_with_ann!O267","v":30},{"$f":"[1]ACS_16_5YR_B03002_with_ann!P267","v":0},{"$f":"[1]ACS_16_5YR_B03002_with_ann!Q267","v":16},{"$f":"[1]ACS_16_5YR_B03002_with_ann!R267","v":0},{"$f":"[1]ACS_16_5YR_B03002_with_ann!S267","v":16},{"$f":"[1]ACS_16_5YR_B03002_with_ann!T267","v":203},{"$f":"[1]ACS_16_5YR_B03002_with_ann!U267","v":137},{"$f":"[1]ACS_16_5YR_B03002_with_ann!V267","v":0},{"$f":"[1]ACS_16_5YR_B03002_with_ann!W267","v":16},{"$f":"[1]ACS_16_5YR_B03002_with_ann!X267","v":203},{"$f":"[1]ACS_16_5YR_B03002_with_ann!Y267","v":137},{"$f":"[1]ACS_16_5YR_B03002_with_ann!Z267","v":128},{"$f":"[1]ACS_16_5YR_B03002_with_ann!AA267","v":148},{"$f":"[1]ACS_16_5YR_B03002_with_ann!AB267","v":127},{"$f":"[1]ACS_16_5YR_B03002_with_ann!AC267","v":148},{"$f":"[1]ACS_16_5YR_B03002_with_ann!AD267","v":0},{"$f":"[1]ACS_16_5YR_B03002_with_ann!AE267","v":16},{"$f":"[1]ACS_16_5YR_B03002_with_ann!AF267","v":0},{"$f":"[1]ACS_16_5YR_B03002_with_ann!AG267","v":16},{"$f":"[1]ACS_16_5YR_B03002_with_ann!AH267","v":0},{"$f":"[1]ACS_16_5YR_B03002_with_ann!AI267","v":16},{"$f":"[1]ACS_16_5YR_B03002_with_ann!AJ267","v":0},{"$f":"[1]ACS_16_5YR_B03002_with_ann!AK267","v":16},{"$f":"[1]ACS_16_5YR_B03002_with_ann!AL267","v":0},{"$f":"[1]ACS_16_5YR_B03002_with_ann!AM267","v":16},{"$f":"[1]ACS_16_5YR_B03002_with_ann!AN267","v":1},{"$f":"[1]ACS_16_5YR_B03002_with_ann!AO267","v":2},{"$f":"[1]ACS_16_5YR_B03002_with_ann!AP267","v":1},{"$f":"[1]ACS_16_5YR_B03002_with_ann!AQ267","v":2},{"$f":"[1]ACS_16_5YR_B03002_with_ann!AR267","v":0},{"$f":"[1]ACS_16_5YR_B03002_with_ann!AS267","v":16}]
["0600000US3301962340",3301962340,"060","Plainfield",{"$f":"[1]ACS_16_5YR_B03002_with_ann!D268","v":2555},{"$f":"[1]ACS_16_5YR_B03002_with_ann!E268","v":293},{"$f":"[1]ACS_16_5YR_B03002_with_ann!F268","v":2542},{"$f":"[1]ACS_16_5YR_B03002_with_ann!G268","v":297},{"$f":"[1]ACS_16_5YR_B03002_with_ann!H268","v":2424},{"$f":"[1]ACS_16_5YR_B03002_with_ann!I268","v":289},{"$f":"[1]ACS_16_5YR_B03002_with_ann!J268","v":16},{"$f":"[1]ACS_16_5YR_B03002_with_ann!K268","v":24},{"$f":"[1]ACS_16_5YR_B03002_with_ann!L268","v":0},{"$f":"[1]ACS_16_5YR_B03002_with_ann!M268","v":11},{"$f":"[1]ACS_16_5YR_B03002_with_ann!N268","v":83},{"$f":"[1]ACS_16_5YR_B03002_with_ann!O268","v":73},{"$f":"[1]ACS_16_5YR_B03002_with_ann!P268","v":0},{"$f":"[1]ACS_16_5YR_B03002_with_ann!Q268","v":11},{"$f":"[1]ACS_16_5YR_B03002_with_ann!R268","v":0},{"$f":"[1]ACS_16_5YR_B03002_with_ann!S268","v":11},{"$f":"[1]ACS_16_5YR_B03002_with_ann!T268","v":19},{"$f":"[1]ACS_16_5YR_B03002_with_ann!U268","v":31},{"$f":"[1]ACS_16_5YR_B03002_with_ann!V268","v":0},{"$f":"[1]ACS_16_5YR_B03002_with_ann!W268","v":11},{"$f":"[1]ACS_16_5YR_B03002_with_ann!X268","v":19},{"$f":"[1]ACS_16_5YR_B03002_with_ann!Y268","v":31},{"$f":"[1]ACS_16_5YR_B03002_with_ann!Z268","v":13},{"$f":"[1]ACS_16_5YR_B03002_with_ann!AA268","v":22},{"$f":"[1]ACS_16_5YR_B03002_with_ann!AB268","v":10},{"$f":"[1]ACS_16_5YR_B03002_with_ann!AC268","v":22},{"$f":"[1]ACS_16_5YR_B03002_with_ann!AD268","v":0},{"$f":"[1]ACS_16_5YR_B03002_with_ann!AE268","v":11},{"$f":"[1]ACS_16_5YR_B03002_with_ann!AF268","v":0},{"$f":"[1]ACS_16_5YR_B03002_with_ann!AG268","v":11},{"$f":"[1]ACS_16_5YR_B03002_with_ann!AH268","v":0},{"$f":"[1]ACS_16_5YR_B03002_with_ann!AI268","v":11},{"$f":"[1]ACS_16_5YR_B03002_with_ann!AJ268","v":0},{"$f":"[1]ACS_16_5YR_B03002_with_ann!AK268","v":11},{"$f":"[1]ACS_16_5YR_B03002_with_ann!AL268","v":3},{"$f":"[1]ACS_16_5YR_B03002_with_ann!AM268","v":6},{"$f":"[1]ACS_16_5YR_B03002_with_ann!AN268","v":0},{"$f":"[1]ACS_16_5YR_B03002_with_ann!AO268","v":11},{"$f":"[1]ACS_16_5YR_B03002_with_ann!AP268","v":0},{"$f":"[1]ACS_16_5YR_B03002_with_ann!AQ268","v":11},{"$f":"[1]ACS_16_5YR_B03002_with_ann!AR268","v":0},{"$f":"[1]ACS_16_5YR_B03002_with_ann!AS268","v":11}]
["0600000US3301972740",3301972740,"060","Springfield",{"$f":"[1]ACS_16_5YR_B03002_with_ann!D269","v":1084},{"$f":"[1]ACS_16_5YR_B03002_with_ann!E269","v":198},{"$f":"[1]ACS_16_5YR_B03002_with_ann!F269","v":1084},{"$f":"[1]ACS_16_5YR_B03002_with_ann!G269","v":198},{"$f":"[1]ACS_16_5YR_B03002_with_ann!H269","v":1075},{"$f":"[1]ACS_16_5YR_B03002_with_ann!I269","v":200},{"$f":"[1]ACS_16_5YR_B03002_with_ann!J269","v":0},{"$f":"[1]ACS_16_5YR_B03002_with_ann!K269","v":11},{"$f":"[1]ACS_16_5YR_B03002_with_ann!L269","v":0},{"$f":"[1]ACS_16_5YR_B03002_with_ann!M269","v":11},{"$f":"[1]ACS_16_5YR_B03002_with_ann!N269","v":0},{"$f":"[1]ACS_16_5YR_B03002_with_ann!O269","v":11},{"$f":"[1]ACS_16_5YR_B03002_with_ann!P269","v":0},{"$f":"[1]ACS_16_5YR_B03002_with_ann!Q269","v":11},{"$f":"[1]ACS_16_5YR_B03002_with_ann!R269","v":0},{"$f":"[1]ACS_16_5YR_B03002_with_ann!S269","v":11},{"$f":"[1]ACS_16_5YR_B03002_with_ann!T269","v":9},{"$f":"[1]ACS_16_5YR_B03002_with_ann!U269","v":13},{"$f":"[1]ACS_16_5YR_B03002_with_ann!V269","v":0},{"$f":"[1]ACS_16_5YR_B03002_with_ann!W269","v":11},{"$f":"[1]ACS_16_5YR_B03002_with_ann!X269","v":9},{"$f":"[1]ACS_16_5YR_B03002_with_ann!Y269","v":13},{"$f":"[1]ACS_16_5YR_B03002_with_ann!Z269","v":0},{"$f":"[1]ACS_16_5YR_B03002_with_ann!AA269","v":11},{"$f":"[1]ACS_16_5YR_B03002_with_ann!AB269","v":0},{"$f":"[1]ACS_16_5YR_B03002_with_ann!AC269","v":11},{"$f":"[1]ACS_16_5YR_B03002_with_ann!AD269","v":0},{"$f":"[1]ACS_16_5YR_B03002_with_ann!AE269","v":11},{"$f":"[1]ACS_16_5YR_B03002_with_ann!AF269","v":0},{"$f":"[1]ACS_16_5YR_B03002_with_ann!AG269","v":11},{"$f":"[1]ACS_16_5YR_B03002_with_ann!AH269","v":0},{"$f":"[1]ACS_16_5YR_B03002_with_ann!AI269","v":11},{"$f":"[1]ACS_16_5YR_B03002_with_ann!AJ269","v":0},{"$f":"[1]ACS_16_5YR_B03002_with_ann!AK269","v":11},{"$f":"[1]ACS_16_5YR_B03002_with_ann!AL269","v":0},{"$f":"[1]ACS_16_5YR_B03002_with_ann!AM269","v":11},{"$f":"[1]ACS_16_5YR_B03002_with_ann!AN269","v":0},{"$f":"[1]ACS_16_5YR_B03002_with_ann!AO269","v":11},{"$f":"[1]ACS_16_5YR_B03002_with_ann!AP269","v":0},{"$f":"[1]ACS_16_5YR_B03002_with_ann!AQ269","v":11},{"$f":"[1]ACS_16_5YR_B03002_with_ann!AR269","v":0},{"$f":"[1]ACS_16_5YR_B03002_with_ann!AS269","v":11}]
["0600000US3301975060",3301975060,"060","Sunapee",{"$f":"[1]ACS_16_5YR_B03002_with_ann!D270","v":3449},{"$f":"[1]ACS_16_5YR_B03002_with_ann!E270","v":19},{"$f":"[1]ACS_16_5YR_B03002_with_ann!F270","v":3444},{"$f":"[1]ACS_16_5YR_B03002_with_ann!G270","v":23},{"$f":"[1]ACS_16_5YR_B03002_with_ann!H270","v":3407},{"$f":"[1]ACS_16_5YR_B03002_with_ann!I270","v":50},{"$f":"[1]ACS_16_5YR_B03002_with_ann!J270","v":7},{"$f":"[1]ACS_16_5YR_B03002_with_ann!K270","v":16},{"$f":"[1]ACS_16_5YR_B03002_with_ann!L270","v":0},{"$f":"[1]ACS_16_5YR_B03002_with_ann!M270","v":11},{"$f":"[1]ACS_16_5YR_B03002_with_ann!N270","v":30},{"$f":"[1]ACS_16_5YR_B03002_with_ann!O270","v":45},{"$f":"[1]ACS_16_5YR_B03002_with_ann!P270","v":0},{"$f":"[1]ACS_16_5YR_B03002_with_ann!Q270","v":11},{"$f":"[1]ACS_16_5YR_B03002_with_ann!R270","v":0},{"$f":"[1]ACS_16_5YR_B03002_with_ann!S270","v":11},{"$f":"[1]ACS_16_5YR_B03002_with_ann!T270","v":0},{"$f":"[1]ACS_16_5YR_B03002_with_ann!U270","v":11},{"$f":"[1]ACS_16_5YR_B03002_with_ann!V270","v":0},{"$f":"[1]ACS_16_5YR_B03002_with_ann!W270","v":11},{"$f":"[1]ACS_16_5YR_B03002_with_ann!X270","v":0},{"$f":"[1]ACS_16_5YR_B03002_with_ann!Y270","v":11},{"$f":"[1]ACS_16_5YR_B03002_with_ann!Z270","v":5},{"$f":"[1]ACS_16_5YR_B03002_with_ann!AA270","v":12},{"$f":"[1]ACS_16_5YR_B03002_with_ann!AB270","v":5},{"$f":"[1]ACS_16_5YR_B03002_with_ann!AC270","v":12},{"$f":"[1]ACS_16_5YR_B03002_with_ann!AD270","v":0},{"$f":"[1]ACS_16_5YR_B03002_with_ann!AE270","v":11},{"$f":"[1]ACS_16_5YR_B03002_with_ann!AF270","v":0},{"$f":"[1]ACS_16_5YR_B03002_with_ann!AG270","v":11},{"$f":"[1]ACS_16_5YR_B03002_with_ann!AH270","v":0},{"$f":"[1]ACS_16_5YR_B03002_with_ann!AI270","v":11},{"$f":"[1]ACS_16_5YR_B03002_with_ann!AJ270","v":0},{"$f":"[1]ACS_16_5YR_B03002_with_ann!AK270","v":11},{"$f":"[1]ACS_16_5YR_B03002_with_ann!AL270","v":0},{"$f":"[1]ACS_16_5YR_B03002_with_ann!AM270","v":11},{"$f":"[1]ACS_16_5YR_B03002_with_ann!AN270","v":0},{"$f":"[1]ACS_16_5YR_B03002_with_ann!AO270","v":11},{"$f":"[1]ACS_16_5YR_B03002_with_ann!AP270","v":0},{"$f":"[1]ACS_16_5YR_B03002_with_ann!AQ270","v":11},{"$f":"[1]ACS_16_5YR_B03002_with_ann!AR270","v":0},{"$f":"[1]ACS_16_5YR_B03002_with_ann!AS270","v":11}]
["0600000US3301977940",3301977940,"060","Unity",{"$f":"[1]ACS_16_5YR_B03002_with_ann!D271","v":1613},{"$f":"[1]ACS_16_5YR_B03002_with_ann!E271","v":156},{"$f":"[1]ACS_16_5YR_B03002_with_ann!F271","v":1574},{"$f":"[1]ACS_16_5YR_B03002_with_ann!G271","v":154},{"$f":"[1]ACS_16_5YR_B03002_with_ann!H271","v":1549},{"$f":"[1]ACS_16_5YR_B03002_with_ann!I271","v":159},{"$f":"[1]ACS_16_5YR_B03002_with_ann!J271","v":11},{"$f":"[1]ACS_16_5YR_B03002_with_ann!K271","v":16},{"$f":"[1]ACS_16_5YR_B03002_with_ann!L271","v":0},{"$f":"[1]ACS_16_5YR_B03002_with_ann!M271","v":11},{"$f":"[1]ACS_16_5YR_B03002_with_ann!N271","v":0},{"$f":"[1]ACS_16_5YR_B03002_with_ann!O271","v":11},{"$f":"[1]ACS_16_5YR_B03002_with_ann!P271","v":0},{"$f":"[1]ACS_16_5YR_B03002_with_ann!Q271","v":11},{"$f":"[1]ACS_16_5YR_B03002_with_ann!R271","v":0},{"$f":"[1]ACS_16_5YR_B03002_with_ann!S271","v":11},{"$f":"[1]ACS_16_5YR_B03002_with_ann!T271","v":14},{"$f":"[1]ACS_16_5YR_B03002_with_ann!U271","v":30},{"$f":"[1]ACS_16_5YR_B03002_with_ann!V271","v":0},{"$f":"[1]ACS_16_5YR_B03002_with_ann!W271","v":11},{"$f":"[1]ACS_16_5YR_B03002_with_ann!X271","v":14},{"$f":"[1]ACS_16_5YR_B03002_with_ann!Y271","v":30},{"$f":"[1]ACS_16_5YR_B03002_with_ann!Z271","v":39},{"$f":"[1]ACS_16_5YR_B03002_with_ann!AA271","v":25},{"$f":"[1]ACS_16_5YR_B03002_with_ann!AB271","v":28},{"$f":"[1]ACS_16_5YR_B03002_with_ann!AC271","v":21},{"$f":"[1]ACS_16_5YR_B03002_with_ann!AD271","v":0},{"$f":"[1]ACS_16_5YR_B03002_with_ann!AE271","v":11},{"$f":"[1]ACS_16_5YR_B03002_with_ann!AF271","v":0},{"$f":"[1]ACS_16_5YR_B03002_with_ann!AG271","v":11},{"$f":"[1]ACS_16_5YR_B03002_with_ann!AH271","v":0},{"$f":"[1]ACS_16_5YR_B03002_with_ann!AI271","v":11},{"$f":"[1]ACS_16_5YR_B03002_with_ann!AJ271","v":0},{"$f":"[1]ACS_16_5YR_B03002_with_ann!AK271","v":11},{"$f":"[1]ACS_16_5YR_B03002_with_ann!AL271","v":11},{"$f":"[1]ACS_16_5YR_B03002_with_ann!AM271","v":14},{"$f":"[1]ACS_16_5YR_B03002_with_ann!AN271","v":0},{"$f":"[1]ACS_16_5YR_B03002_with_ann!AO271","v":11},{"$f":"[1]ACS_16_5YR_B03002_with_ann!AP271","v":0},{"$f":"[1]ACS_16_5YR_B03002_with_ann!AQ271","v":11},{"$f":"[1]ACS_16_5YR_B03002_with_ann!AR271","v":0},{"$f":"[1]ACS_16_5YR_B03002_with_ann!AS271","v":11}]
["0600000US3301978980",3301978980,"060","Washington",{"$f":"[1]ACS_16_5YR_B03002_with_ann!D272","v":1199},{"$f":"[1]ACS_16_5YR_B03002_with_ann!E272","v":188},{"$f":"[1]ACS_16_5YR_B03002_with_ann!F272","v":1168},{"$f":"[1]ACS_16_5YR_B03002_with_ann!G272","v":187},{"$f":"[1]ACS_16_5YR_B03002_with_ann!H272","v":1129},{"$f":"[1]ACS_16_5YR_B03002_with_ann!I272","v":191},{"$f":"[1]ACS_16_5YR_B03002_with_ann!J272","v":0},{"$f":"[1]ACS_16_5YR_B03002_with_ann!K272","v":11},{"$f":"[1]ACS_16_5YR_B03002_with_ann!L272","v":0},{"$f":"[1]ACS_16_5YR_B03002_with_ann!M272","v":11},{"$f":"[1]ACS_16_5YR_B03002_with_ann!N272","v":0},{"$f":"[1]ACS_16_5YR_B03002_with_ann!O272","v":11},{"$f":"[1]ACS_16_5YR_B03002_with_ann!P272","v":0},{"$f":"[1]ACS_16_5YR_B03002_with_ann!Q272","v":11},{"$f":"[1]ACS_16_5YR_B03002_with_ann!R272","v":2},{"$f":"[1]ACS_16_5YR_B03002_with_ann!S272","v":4},{"$f":"[1]ACS_16_5YR_B03002_with_ann!T272","v":37},{"$f":"[1]ACS_16_5YR_B03002_with_ann!U272","v":52},{"$f":"[1]ACS_16_5YR_B03002_with_ann!V272","v":0},{"$f":"[1]ACS_16_5YR_B03002_with_ann!W272","v":11},{"$f":"[1]ACS_16_5YR_B03002_with_ann!X272","v":37},{"$f":"[1]ACS_16_5YR_B03002_with_ann!Y272","v":52},{"$f":"[1]ACS_16_5YR_B03002_with_ann!Z272","v":31},{"$f":"[1]ACS_16_5YR_B03002_with_ann!AA272","v":24},{"$f":"[1]ACS_16_5YR_B03002_with_ann!AB272","v":28},{"$f":"[1]ACS_16_5YR_B03002_with_ann!AC272","v":23},{"$f":"[1]ACS_16_5YR_B03002_with_ann!AD272","v":0},{"$f":"[1]ACS_16_5YR_B03002_with_ann!AE272","v":11},{"$f":"[1]ACS_16_5YR_B03002_with_ann!AF272","v":0},{"$f":"[1]ACS_16_5YR_B03002_with_ann!AG272","v":11},{"$f":"[1]ACS_16_5YR_B03002_with_ann!AH272","v":0},{"$f":"[1]ACS_16_5YR_B03002_with_ann!AI272","v":11},{"$f":"[1]ACS_16_5YR_B03002_with_ann!AJ272","v":0},{"$f":"[1]ACS_16_5YR_B03002_with_ann!AK272","v":11},{"$f":"[1]ACS_16_5YR_B03002_with_ann!AL272","v":3},{"$f":"[1]ACS_16_5YR_B03002_with_ann!AM272","v":6},{"$f":"[1]ACS_16_5YR_B03002_with_ann!AN272","v":0},{"$f":"[1]ACS_16_5YR_B03002_with_ann!AO272","v":11},{"$f":"[1]ACS_16_5YR_B03002_with_ann!AP272","v":0},{"$f":"[1]ACS_16_5YR_B03002_with_ann!AQ272","v":11},{"$f":"[1]ACS_16_5YR_B03002_with_ann!AR272","v":0},{"$f":"[1]ACS_16_5YR_B03002_with_ann!AS272","v":11}]
[]
[null,null,null,null,{"$f":"$D$3","v":"Acworth"},null,{"$f":"$D$4","v":"Charlestown"},null,{"$f":"$D$5","v":"Claremont"},null,{"$f":"$D$6","v":"Cornish"},null,{"$f":"$D$7","v":"Croydon"},null,{"$f":"$D$8","v":"Goshen"},null,{"$f":"$D$9","v":"Grantham"},null,{"$f":"$D$10","v":"Langdon"},null,{"$f":"$D$11","v":"Lempster"},null,{"$f":"$D$12","v":"Newport"},null,{"$f":"$D$13","v":"Plainfield"},null,{"$f":"$D$14","v":"Springfield"},null,{"$f":"$D$15","v":"Sunapee"},null,{"$f":"$D$16","v":"Unity"},null,{"$f":"$D$17","v":"Washington"}]
[null,null,null,null,"Estimate","Margin Of Error","Estimate","Margin Of Error","Estimate","Margin Of Error","Estimate","Margin Of Error","Estimate","Margin Of Error","Estimate","Margin Of Error","Estimate","Margin Of Error","Estimate","Margin Of Error","Estimate","Margin Of Error","Estimate","Margin Of Error","Estimate","Margin Of Error","Estimate","Margin Of Error","Estimate","Margin Of Error",null,"Estimate","Margin Of Error"]
[null,null,null,"Estimate Total:",906,134,5019,19,12977,23,1783,217,863,244,702,108,2945,14,712,145,923,176,6374,19,2555,293,1084,198,3449,19,1613,156,1199,188]
[null,null,null,"Estimate Total: Not Hispanic or Latino:",892,134,4950,76,12685,96,1778,216,861,243,659,101,2921,34,703,143,923,176,6246,150,2542,297,1084,198,3444,23,1574,154,1168,187]
[null,null,null,"Estimate Total: Not Hispanic or Latino: White alone",861,131,4730,164,12243,167,1721,207,848,242,644,98,2879,58,662,129,876,169,5904,246,2424,289,1075,200,3407,50,1549,159,1129,191]
[null,null,null,"Estimate Total: Not Hispanic or Latino: Black or African American alone",0,11,0,16,202,128,15,24,10,22,0,11,0,11,6,9,0,11,15,29,16,24,0,11,7,16,11,16,0,11]
[null,null,null,"Estimate Total: Not Hispanic or Latino: American Indian and Alaska Native alone",0,11,8,13,0,18,9,10,0,11,0,11,24,34,0,11,0,11,98,131,0,11,0,11,0,11,0,11,0,11]
[null,null,null,"Estimate Total: Not Hispanic or Latino: Asian alone",8,12,91,107,57,74,8,11,0,11,0,11,0,11,9,13,32,51,26,30,83,73,0,11,30,45,0,11,0,11]
[null,null,null,"Estimate Total: Not Hispanic or Latino: Native Hawaiian and Other Pacific Islander alone",0,11,0,16,0,18,0,11,0,11,0,11,0,11,0,11,0,11,0,16,0,11,0,11,0,11,0,11,0,11]
[null,null,null,"Estimate Total: Not Hispanic or Latino: Some other race alone",0,11,0,16,0,18,0,11,0,11,0,11,0,11,0,11,0,11,0,16,0,11,0,11,0,11,0,11,2,4]
[null,null,null,"Estimate Total: Not Hispanic or Latino: Two or more races:",23,25,121,118,183,117,25,29,3,5,15,26,18,25,26,27,15,15,203,137,19,31,9,13,0,11,14,30,37,52]
[null,null,null,"Estimate Total: Not Hispanic or Latino: Two or more races: Two races including Some other race",0,11,0,16,0,18,0,11,0,11,0,11,0,11,0,11,0,11,0,16,0,11,0,11,0,11,0,11,0,11]
[null,null,null,"Estimate Total: Not Hispanic or Latino: Two or more races: Two races excluding Some other race",23,25,121,118,183,117,25,29,3,5,15,26,18,25,26,27,15,15,203,137,19,31,9,13,0,11,14,30,37,52]
[null,null,null,"Estimate Total: Hispanic or Latino:",14,14,69,74,292,97,5,7,2,5,43,49,24,29,9,11,0,11,128,148,13,22,0,11,5,12,39,25,31,24]
[null,null,null,"Estimate Total: Hispanic or Latino: White alone",8,12,69,74,233,121,0,11,1,3,21,29,24,29,5,7,0,11,127,148,10,22,0,11,5,12,28,21,28,23]
[null,null,null,"Estimate Total: Hispanic or Latino: Black or African American alone",0,11,0,16,59,71,0,11,0,11,0,11,0,11,0,11,0,11,0,16,0,11,0,11,0,11,0,11,0,11]
[null,null,null,"Estimate Total: Hispanic or Latino: American Indian and Alaska Native alone",0,11,0,16,0,18,5,7,0,11,0,11,0,11,0,11,0,11,0,16,0,11,0,11,0,11,0,11,0,11]
[null,null,null,"Estimate Total: Hispanic or Latino: Asian alone",0,11,0,16,0,18,0,11,1,3,0,11,0,11,0,11,0,11,0,16,0,11,0,11,0,11,0,11,0,11]
[null,null,null,"Estimate Total: Hispanic or Latino: Native Hawaiian and Other Pacific Islander alone",0,11,0,16,0,18,0,11,0,11,0,11,0,11,0,11,0,11,0,16,0,11,0,11,0,11,0,11,0,11]
[null,null,null,"Estimate Total: Hispanic or Latino: Some other race alone",6,7,0,16,0,18,0,11,0,11,8,15,0,11,4,7,0,11,0,16,3,6,0,11,0,11,11,14,3,6]
[null,null,null,"Estimate Total: Hispanic or Latino: Two or more races:",0,11,0,16,0,18,0,11,0,11,14,25,0,11,0,11,0,11,1,2,0,11,0,11,0,11,0,11,0,11]
[null,null,null,"Estimate Total: Hispanic or Latino: Two or more races: Two races including Some other race",0,11,0,16,0,18,0,11,0,11,14,25,0,11,0,11,0,11,1,2,0,11,0,11,0,11,0,11,0,11]
[null,null,null,"Estimate Total: Hispanic or Latino: Two or more races: Two races excluding Some other race",0,11,0,16,0,18,0,11,0,11,0,11,0,11,0,11,0,11,0,16,0,11,0,11,0,11,0,11,0,11]

{"sheet":"SData_B05002_PlaceofBirthCitzSt","index":24,"n_rows":47,"n_cols":58,"rows_kept":47,"cut":false,"hidden":true,"merged":[]}
["GEO_ID","GEO_ID2","SUMLEVEL","GEO_NAME","HD01_VD01","HD02_VD01","HD01_VD02","HD02_VD02","HD01_VD03","HD02_VD03","HD01_VD04","HD02_VD04","HD01_VD05","HD02_VD05","HD01_VD06","HD02_VD06","HD01_VD07","HD02_VD07","HD01_VD08","HD02_VD08","HD01_VD09","HD02_VD09","HD01_VD10","HD02_VD10","HD01_VD11","HD02_VD11","HD01_VD12","HD02_VD12","HD01_VD13","HD02_VD13","HD01_VD14","HD02_VD14","HD01_VD15","HD02_VD15","HD01_VD16","HD02_VD16","HD01_VD17","HD02_VD17","HD01_VD18","HD02_VD18","HD01_VD19","HD02_VD19","HD01_VD20","HD02_VD20","HD01_VD21","HD02_VD21","HD01_VD22","HD02_VD22","HD01_VD23","HD02_VD23","HD01_VD24","HD02_VD24","HD01_VD25","HD02_VD25","HD01_VD26","HD02_VD26","HD01_VD27","HD02_VD27"]
["Geography Identifier","Geography Identifier","Geographic Summary Level","Geography",{"$f":"[1]ACS_16_5YR_B05002_with_ann!D$2","v":"Estimate Total:"},{"$f":"[1]ACS_16_5YR_B05002_with_ann!E$2","v":"Margin of Error Total:"},{"$f":"[1]ACS_16_5YR_B05002_with_ann!F$2","v":"Estimate Total: Native:"},{"$f":"[1]ACS_16_5YR_B05002_with_ann!G$2","v":"Margin of Error Total: Native:"},{"$f":"[1]ACS_16_5YR_B05002_with_ann!H$2","v":"Estimate Total: Native: Born in state of residence"},{"$f":"[1]ACS_16_5YR_B05002_with_ann!I$2","v":"Margin of Error Total: Native: Born in state of residence"},{"$f":"[1]ACS_16_5YR_B05002_with_ann!J$2","v":"Estimate Total: Native: Born in other state in the United States:"},{"$f":"[1]ACS_16_5YR_B05002_with_ann!K$2","v":"Margin of Error Total: Native: Born in other state in the United States:"},{"$f":"[1]ACS_16_5YR_B05002_with_ann!L$2","v":"Estimate Total: Native: Born in other state in the United States: Northeast"},{"$f":"[1]ACS_16_5YR_B05002_with_ann!M$2","v":"Margin of Error Total: Native: Born in other state in the United States: Northeast"},{"$f":"[1]ACS_16_5YR_B05002_with_ann!N$2","v":"Estimate Total: Native: Born in other state in the United States: Midwest"},{"$f":"[1]ACS_16_5YR_B05002_with_ann!O$2","v":"Margin of Error Total: Native: Born in other state in the United States: Midwest"},{"$f":"[1]ACS_16_5YR_B05002_with_ann!P$2","v":"Estimate Total: Native: Born in other state in the United States: South"},{"$f":"[1]ACS_16_5YR_B05002_with_ann!Q$2","v":"Margin of Error Total: Native: Born in other state in the United States: South"},{"$f":"[1]ACS_16_5YR_B05002_with_ann!R$2","v":"Estimate Total: Native: Born in other state in the United States: West"},{"$f":"[1]ACS_16_5YR_B05002_with_ann!S$2","v":"Margin of Error Total: Native: Born in other state in the United States: West"},{"$f":"[1]ACS_16_5YR_B05002_with_ann!T$2","v":"Estimate Total: Native: Born outside the United States:"},{"$f":"[1]ACS_16_5YR_B05002_with_ann!U$2","v":"Margin of Error Total: Native: Born outside the United States:"},{"$f":"[1]ACS_16_5YR_B05002_with_ann!V$2","v":"Estimate Total: Native: Born outside the United States: Puerto Rico"},{"$f":"[1]ACS_16_5YR_B05002_with_ann!W$2","v":"Margin of Error Total: Native: Born outside the United States: Puerto Rico"},{"$f":"[1]ACS_16_5YR_B05002_with_ann!X$2","v":"Estimate Total: Native: Born outside the United States: U.S. Island Areas"},{"$f":"[1]ACS_16_5YR_B05002_with_ann!Y$2","v":"Margin of Error Total: Native: Born outside the United States: U.S. Island Areas"},{"$f":"[1]ACS_16_5YR_B05002_with_ann!Z$2","v":"Estimate Total: Native: Born outside the United States: Born abroad of American parent(s)"},{"$f":"[1]ACS_16_5YR_B05002_with_ann!AA$2","v":"Margin of Error Total: Native: Born outside the United States: Born abroad of American parent(s)"},{"$f":"[1]ACS_16_5YR_B05002_with_ann!AB$2","v":"Estimate Total: Foreign born:"},{"$f":"[1]ACS_16_5YR_B05002_with_ann!AC$2","v":"Margin of Error Total: Foreign born:"},{"$f":"[1]ACS_16_5YR_B05002_with_ann!AD$2","v":"Estimate Total: Foreign born: Naturalized U.S. citizen"},{"$f":"[1]ACS_16_5YR_B05002_with_ann!AE$2","v":"Margin of Error Total: Foreign born: Naturalized U.S. citizen"},{"$f":"[1]ACS_16_5YR_B05002_with_ann!AF$2","v":"Estimate Total: Foreign born: Naturalized U.S. citizen Europe"},{"$f":"[1]ACS_16_5YR_B05002_with_ann!AG$2","v":"Margin of Error Total: Foreign born: Naturalized U.S. citizen Europe"},{"$f":"[1]ACS_16_5YR_B05002_with_ann!AH$2","v":"Estimate Total: Foreign born: Naturalized U.S. citizen Asia"},{"$f":"[1]ACS_16_5YR_B05002_with_ann!AI$2","v":"Margin of Error Total: Foreign born: Naturalized U.S. citizen Asia"},{"$f":"[1]ACS_16_5YR_B05002_with_ann!AJ$2","v":"Estimate Total: Foreign born: Naturalized U.S. citizen Africa"},{"$f":"[1]ACS_16_5YR_B05002_with_ann!AK$2","v":"Margin of Error Total: Foreign born: Naturalized U.S. citizen Africa"},{"$f":"[1]ACS_16_5YR_B05002_with_ann!AL$2","v":"Estimate Total: Foreign born: Naturalized U.S. citizen Oceania"},{"$f":"[1]ACS_16_5YR_B05002_with_ann!AM$2","v":"Margin of Error Total: Foreign born: Naturalized U.S. citizen Oceania"},{"$f":"[1]ACS_16_5YR_B05002_with_ann!AN$2","v":"Estimate Total: Foreign born: Naturalized U.S. citizen Latin America"},{"$f":"[1]ACS_16_5YR_B05002_with_ann!AO$2","v":"Margin of Error Total: Foreign born: Naturalized U.S. citizen Latin America"},{"$f":"[1]ACS_16_5YR_B05002_with_ann!AP$2","v":"Estimate Total: Foreign born: Naturalized U.S. citizen Northern America"},{"$f":"[1]ACS_16_5YR_B05002_with_ann!AQ$2","v":"Margin of Error Total: Foreign born: Naturalized U.S. citizen Northern America"},{"$f":"[1]ACS_16_5YR_B05002_with_ann!AR$2","v":"Estimate Total: Foreign born: Not a U.S. citizen"},{"$f":"[1]ACS_16_5YR_B05002_with_ann!AS$2","v":"Margin of Error Total: Foreign born: Not a U.S. citizen"},{"$f":"[1]ACS_16_5YR_B05002_with_ann!AT$2","v":"Estimate Total: Foreign born: Not a U.S. citizen Europe"},{"$f":"[1]ACS_16_5YR_B05002_with_ann!AU$2","v":"Margin of Error Total: Foreign born: Not a U.S. citizen Europe"},{"$f":"[1]ACS_16_5YR_B05002_with_ann!AV$2","v":"Estimate Total: Foreign born: Not a U.S. citizen Asia"},{"$f":"[1]ACS_16_5YR_B05002_with_ann!AW$2","v":"Margin of Error Total: Foreign born: Not a U.S. citizen Asia"},{"$f":"[1]ACS_16_5YR_B05002_with_ann!AX$2","v":"Estimate Total: Foreign born: Not a U.S. citizen Africa"},{"$f":"[1]ACS_16_5YR_B05002_with_ann!AY$2","v":"Margin of Error Total: Foreign born: Not a U.S. citizen Africa"},{"$f":"[1]ACS_16_5YR_B05002_with_ann!AZ$2","v":"Estimate Total: Foreign born: Not a U.S. citizen Oceania"},{"$f":"[1]ACS_16_5YR_B05002_with_ann!BA$2","v":"Margin of Error Total: Foreign born: Not a U.S. citizen Oceania"},{"$f":"[1]ACS_16_5YR_B05002_with_ann!BB$2","v":"Estimate Total: Foreign born: Not a U.S. citizen Latin America"},{"$f":"[1]ACS_16_5YR_B05002_with_ann!BC$2","v":"Margin of Error Total: Foreign born: Not a U.S. citizen Latin America"},{"$f":"[1]ACS_16_5YR_B05002_with_ann!BD$2","v":"Estimate Total: Foreign born: Not a U.S. citizen Northern America"},{"$f":"[1]ACS_16_5YR_B05002_with_ann!BE$2","v":"Margin of Error Total: Foreign born: Not a U.S. citizen Northern America"}]
["0600000US3301900259",3301900259,"060","Acworth",{"$f":"[1]ACS_16_5YR_B05002_with_ann!D258","v":906},{"$f":"[1]ACS_16_5YR_B05002_with_ann!E258","v":134},{"$f":"[1]ACS_16_5YR_B05002_with_ann!F258","v":869},{"$f":"[1]ACS_16_5YR_B05002_with_ann!G258","v":133},{"$f":"[1]ACS_16_5YR_B05002_with_ann!H258","v":378},{"$f":"[1]ACS_16_5YR_B05002_with_ann!I258","v":85},{"$f":"[1]ACS_16_5YR_B05002_with_ann!J258","v":491},{"$f":"[1]ACS_16_5YR_B05002_with_ann!K258","v":86},{"$f":"[1]ACS_16_5YR_B05002_with_ann!L258","v":413},{"$f":"[1]ACS_16_5YR_B05002_with_ann!M258","v":80},{"$f":"[1]ACS_16_5YR_B05002_with_ann!N258","v":30},{"$f":"[1]ACS_16_5YR_B05002_with_ann!O258","v":16},{"$f":"[1]ACS_16_5YR_B05002_with_ann!P258","v":30},{"$f":"[1]ACS_16_5YR_B05002_with_ann!Q258","v":18},{"$f":"[1]ACS_16_5YR_B05002_with_ann!R258","v":18},{"$f":"[1]ACS_16_5YR_B05002_with_ann!S258","v":17},{"$f":"[1]ACS_16_5YR_B05002_with_ann!T258","v":0},{"$f":"[1]ACS_16_5YR_B05002_with_ann!U258","v":11},{"$f":"[1]ACS_16_5YR_B05002_with_ann!V258","v":0},{"$f":"[1]ACS_16_5YR_B05002_with_ann!W258","v":11},{"$f":"[1]ACS_16_5YR_B05002_with_ann!X258","v":0},{"$f":"[1]ACS_16_5YR_B05002_with_ann!Y258","v":11},{"$f":"[1]ACS_16_5YR_B05002_with_ann!Z258","v":0},{"$f":"[1]ACS_16_5YR_B05002_with_ann!AA258","v":11},{"$f":"[1]ACS_16_5YR_B05002_with_ann!AB258","v":37},{"$f":"[1]ACS_16_5YR_B05002_with_ann!AC258","v":22},{"$f":"[1]ACS_16_5YR_B05002_with_ann!AD258","v":21},{"$f":"[1]ACS_16_5YR_B05002_with_ann!AE258","v":13},{"$f":"[1]ACS_16_5YR_B05002_with_ann!AF258","v":5},{"$f":"[1]ACS_16_5YR_B05002_with_ann!AG258","v":6},{"$f":"[1]ACS_16_5YR_B05002_with_ann!AH258","v":8},{"$f":"[1]ACS_16_5YR_B05002_with_ann!AI258","v":12},{"$f":"[1]ACS_16_5YR_B05002_with_ann!AJ258","v":0},{"$f":"[1]ACS_16_5YR_B05002_with_ann!AK258","v":11},{"$f":"[1]ACS_16_5YR_B05002_with_ann!AL258","v":0},{"$f":"[1]ACS_16_5YR_B05002_with_ann!AM258","v":11},{"$f":"[1]ACS_16_5YR_B05002_with_ann!AN258","v":5},{"$f":"[1]ACS_16_5YR_B05002_with_ann!AO258","v":5},{"$f":"[1]ACS_16_5YR_B05002_with_ann!AP258","v":3},{"$f":"[1]ACS_16_5YR_B05002_with_ann!AQ258","v":4},{"$f":"[1]ACS_16_5YR_B05002_with_ann!AR258","v":16},{"$f":"[1]ACS_16_5YR_B05002_with_ann!AS258","v":17},{"$f":"[1]ACS_16_5YR_B05002_with_ann!AT258","v":14},{"$f":"[1]ACS_16_5YR_B05002_with_ann!AU258","v":17},{"$f":"[1]ACS_16_5YR_B05002_with_ann!AV258","v":0},{"$f":"[1]ACS_16_5YR_B05002_with_ann!AW258","v":11},{"$f":"[1]ACS_16_5YR_B05002_with_ann!AX258","v":0},{"$f":"[1]ACS_16_5YR_B05002_with_ann!AY258","v":11},{"$f":"[1]ACS_16_5YR_B05002_with_ann!AZ258","v":0},{"$f":"[1]ACS_16_5YR_B05002_with_ann!BA258","v":11},{"$f":"[1]ACS_16_5YR_B05002_with_ann!BB258","v":0},{"$f":"[1]ACS_16_5YR_B05002_with_ann!BC258","v":11},{"$f":"[1]ACS_16_5YR_B05002_with_ann!BD258","v":2},{"$f":"[1]ACS_16_5YR_B05002_with_ann!BE258","v":4}]
["0600000US3301911380",3301911380,"060","Charlestown",{"$f":"[1]ACS_16_5YR_B05002_with_ann!D259","v":5019},{"$f":"[1]ACS_16_5YR_B05002_with_ann!E259","v":19},{"$f":"[1]ACS_16_5YR_B05002_with_ann!F259","v":4862},{"$f":"[1]ACS_16_5YR_B05002_with_ann!G259","v":135},{"$f":"[1]ACS_16_5YR_B05002_with_ann!H259","v":2122},{"$f":"[1]ACS_16_5YR_B05002_with_ann!I259","v":307},{"$f":"[1]ACS_16_5YR_B05002_with_ann!J259","v":2725},{"$f":"[1]ACS_16_5YR_B05002_with_ann!K259","v":322},{"$f":"[1]ACS_16_5YR_B05002_with_ann!L259","v":2204},{"$f":"[1]ACS_16_5YR_B05002_with_ann!M259","v":325},{"$f":"[1]ACS_16_5YR_B05002_with_ann!N259","v":111},{"$f":"[1]ACS_16_5YR_B05002_with_ann!O259","v":112},{"$f":"[1]ACS_16_5YR_B05002_with_ann!P259","v":218},{"$f":"[1]ACS_16_5YR_B05002_with_ann!Q259","v":113},{"$f":"[1]ACS_16_5YR_B05002_with_ann!R259","v":192},{"$f":"[1]ACS_16_5YR_B05002_with_ann!S259","v":132},{"$f":"[1]ACS_16_5YR_B05002_with_ann!T259","v":15},{"$f":"[1]ACS_16_5YR_B05002_with_ann!U259","v":25},{"$f":"[1]ACS_16_5YR_B05002_with_ann!V259","v":0},{"$f":"[1]ACS_16_5YR_B05002_with_ann!W259","v":16},{"$f":"[1]ACS_16_5YR_B05002_with_ann!X259","v":0},{"$f":"[1]ACS_16_5YR_B05002_with_ann!Y259","v":16},{"$f":"[1]ACS_16_5YR_B05002_with_ann!Z259","v":15},{"$f":"[1]ACS_16_5YR_B05002_with_ann!AA259","v":25},{"$f":"[1]ACS_16_5YR_B05002_with_ann!AB259","v":157},{"$f":"[1]ACS_16_5YR_B05002_with_ann!AC259","v":131},{"$f":"[1]ACS_16_5YR_B05002_with_ann!AD259","v":157},{"$f":"[1]ACS_16_5YR_B05002_with_ann!AE259","v":131},{"$f":"[1]ACS_16_5YR_B05002_with_ann!AF259","v":0},{"$f":"[1]ACS_16_5YR_B05002_with_ann!AG259","v":16},{"$f":"[1]ACS_16_5YR_B05002_with_ann!AH259","v":114},{"$f":"[1]ACS_16_5YR_B05002_with_ann!AI259","v":113},{"$f":"[1]ACS_16_5YR_B05002_with_ann!AJ259","v":0},{"$f":"[1]ACS_16_5YR_B05002_with_ann!AK259","v":16},{"$f":"[1]ACS_16_5YR_B05002_with_ann!AL259","v":0},{"$f":"[1]ACS_16_5YR_B05002_with_ann!AM259","v":16},{"$f":"[1]ACS_16_5YR_B05002_with_ann!AN259","v":0},{"$f":"[1]ACS_16_5YR_B05002_with_ann!AO259","v":16},{"$f":"[1]ACS_16_5YR_B05002_with_ann!AP259","v":43},{"$f":"[1]ACS_16_5YR_B05002_with_ann!AQ259","v":64},{"$f":"[1]ACS_16_5YR_B05002_with_ann!AR259","v":0},{"$f":"[1]ACS_16_5YR_B05002_with_ann!AS259","v":16},{"$f":"[1]ACS_16_5YR_B05002_with_ann!AT259","v":0},{"$f":"[1]ACS_16_5YR_B05002_with_ann!AU259","v":16},{"$f":"[1]ACS_16_5YR_B05002_with_ann!AV259","v":0},{"$f":"[1]ACS_16_5YR_B05002_with_ann!AW259","v":16},{"$f":"[1]ACS_16_5YR_B05002_with_ann!AX259","v":0},{"$f":"[1]ACS_16_5YR_B05002_with_ann!AY259","v":16},{"$f":"[1]ACS_16_5YR_B05002_with_ann!AZ259","v":0},{"$f":"[1]ACS_16_5YR_B05002_with_ann!BA259","v":16},{"$f":"[1]ACS_16_5YR_B05002_with_ann!BB259","v":0},{"$f":"[1]ACS_16_5YR_B05002_with_ann!BC259","v":16},{"$f":"[1]ACS_16_5YR_B05002_with_ann!BD259","v":0},{"$f":"[1]ACS_16_5YR_B05002_with_ann!BE259","v":16}]
["0600000US3301912900",3301912900,"060","Claremont",{"$f":"[1]ACS_16_5YR_B05002_with_ann!D260","v":12977},{"$f":"[1]ACS_16_5YR_B05002_with_ann!E260","v":23},{"$f":"[1]ACS_16_5YR_B05002_with_ann!F260","v":12478},{"$f":"[1]ACS_16_5YR_B05002_with_ann!G260","v":177},{"$f":"[1]ACS_16_5YR_B05002_with_ann!H260","v":7149},{"$f":"[1]ACS_16_5YR_B05002_with_ann!I260","v":509},{"$f":"[1]ACS_16_5YR_B05002_with_ann!J260","v":5181},{"$f":"[1]ACS_16_5YR_B05002_with_ann!K260","v":523},{"$f":"[1]ACS_16_5YR_B05002_with_ann!L260","v":4059},{"$f":"[1]ACS_16_5YR_B05002_with_ann!M260","v":525},{"$f":"[1]ACS_16_5YR_B05002_with_ann!N260","v":322},{"$f":"[1]ACS_16_5YR_B05002_with_ann!O260","v":128},{"$f":"[1]ACS_16_5YR_B05002_with_ann!P260","v":414},{"$f":"[1]ACS_16_5YR_B05002_with_ann!Q260","v":144},{"$f":"[1]ACS_16_5YR_B05002_with_ann!R260","v":386},{"$f":"[1]ACS_16_5YR_B05002_with_ann!S260","v":161},{"$f":"[1]ACS_16_5YR_B05002_with_ann!T260","v":148},{"$f":"[1]ACS_16_5YR_B05002_with_ann!U260","v":103},{"$f":"[1]ACS_16_5YR_B05002_with_ann!V260","v":1},{"$f":"[1]ACS_16_5YR_B05002_with_ann!W260","v":4},{"$f":"[1]ACS_16_5YR_B05002_with_ann!X260","v":0},{"$f":"[1]ACS_16_5YR_B05002_with_ann!Y260","v":18},{"$f":"[1]ACS_16_5YR_B05002_with_ann!Z260","v":147},{"$f":"[1]ACS_16_5YR_B05002_with_ann!AA260","v":103},{"$f":"[1]ACS_16_5YR_B05002_with_ann!AB260","v":499},{"$f":"[1]ACS_16_5YR_B05002_with_ann!AC260","v":172},{"$f":"[1]ACS_16_5YR_B05002_with_ann!AD260","v":365},{"$f":"[1]ACS_16_5YR_B05002_with_ann!AE260","v":141},{"$f":"[1]ACS_16_5YR_B05002_with_ann!AF260","v":34},{"$f":"[1]ACS_16_5YR_B05002_with_ann!AG260","v":34},{"$f":"[1]ACS_16_5YR_B05002_with_ann!AH260","v":87},{"$f":"[1]ACS_16_5YR_B05002_with_ann!AI260","v":83},{"$f":"[1]ACS_16_5YR_B05002_with_ann!AJ260","v":171},{"$f":"[1]ACS_16_5YR_B05002_with_ann!AK260","v":130},{"$f":"[1]ACS_16_5YR_B05002_with_ann!AL260","v":0},{"$f":"[1]ACS_16_5YR_B05002_with_ann!AM260","v":18},{"$f":"[1]ACS_16_5YR_B05002_with_ann!AN260","v":30},{"$f":"[1]ACS_16_5YR_B05002_with_ann!AO260","v":64},{"$f":"[1]ACS_16_5YR_B05002_with_ann!AP260","v":43},{"$f":"[1]ACS_16_5YR_B05002_with_ann!AQ260","v":31},{"$f":"[1]ACS_16_5YR_B05002_with_ann!AR260","v":134},{"$f":"[1]ACS_16_5YR_B05002_with_ann!AS260","v":99},{"$f":"[1]ACS_16_5YR_B05002_with_ann!AT260","v":41},{"$f":"[1]ACS_16_5YR_B05002_with_ann!AU260","v":55},{"$f":"[1]ACS_16_5YR_B05002_with_ann!AV260","v":51},{"$f":"[1]ACS_16_5YR_B05002_with_ann!AW260","v":62},{"$f":"[1]ACS_16_5YR_B05002_with_ann!AX260","v":0},{"$f":"[1]ACS_16_5YR_B05002_with_ann!AY260","v":18},{"$f":"[1]ACS_16_5YR_B05002_with_ann!AZ260","v":0},{"$f":"[1]ACS_16_5YR_B05002_with_ann!BA260","v":18},{"$f":"[1]ACS_16_5YR_B05002_with_ann!BB260","v":34},{"$f":"[1]ACS_16_5YR_B05002_with_ann!BC260","v":51},{"$f":"[1]ACS_16_5YR_B05002_with_ann!BD260","v":8},{"$f":"[1]ACS_16_5YR_B05002_with_ann!BE260","v":13}]
["0600000US3301915060",3301915060,"060","Cornish",{"$f":"[1]ACS_16_5YR_B05002_with_ann!D261","v":1783},{"$f":"[1]ACS_16_5YR_B05002_with_ann!E261","v":217},{"$f":"[1]ACS_16_5YR_B05002_with_ann!F261","v":1746},{"$f":"[1]ACS_16_5YR_B05002_with_ann!G261","v":213},{"$f":"[1]ACS_16_5YR_B05002_with_ann!H261","v":828},{"$f":"[1]ACS_16_5YR_B05002_with_ann!I261","v":156},{"$f":"[1]ACS_16_5YR_B05002_with_ann!J261","v":880},{"$f":"[1]ACS_16_5YR_B05002_with_ann!K261","v":115},{"$f":"[1]ACS_16_5YR_B05002_with_ann!L261","v":597},{"$f":"[1]ACS_16_5YR_B05002_with_ann!M261","v":86},{"$f":"[1]ACS_16_5YR_B05002_with_ann!N261","v":119},{"$f":"[1]ACS_16_5YR_B05002_with_ann!O261","v":41},{"$f":"[1]ACS_16_5YR_B05002_with_ann!P261","v":122},{"$f":"[1]ACS_16_5YR_B05002_with_ann!Q261","v":46},{"$f":"[1]ACS_16_5YR_B05002_with_ann!R261","v":42},{"$f":"[1]ACS_16_5YR_B05002_with_ann!S261","v":23},{"$f":"[1]ACS_16_5YR_B05002_with_ann!T261","v":38},{"$f":"[1]ACS_16_5YR_B05002_with_ann!U261","v":26},{"$f":"[1]ACS_16_5YR_B05002_with_ann!V261","v":0},{"$f":"[1]ACS_16_5YR_B05002_with_ann!W261","v":11},{"$f":"[1]ACS_16_5YR_B05002_with_ann!X261","v":0},{"$f":"[1]ACS_16_5YR_B05002_with_ann!Y261","v":11},{"$f":"[1]ACS_16_5YR_B05002_with_ann!Z261","v":38},{"$f":"[1]ACS_16_5YR_B05002_with_ann!AA261","v":26},{"$f":"[1]ACS_16_5YR_B05002_with_ann!AB261","v":37},{"$f":"[1]ACS_16_5YR_B05002_with_ann!AC261","v":24},{"$f":"[1]ACS_16_5YR_B05002_with_ann!AD261","v":27},{"$f":"[1]ACS_16_5YR_B05002_with_ann!AE261","v":21},{"$f":"[1]ACS_16_5YR_B05002_with_ann!AF261","v":13},{"$f":"[1]ACS_16_5YR_B05002_with_ann!AG261","v":9},{"$f":"[1]ACS_16_5YR_B05002_with_ann!AH261","v":9},{"$f":"[1]ACS_16_5YR_B05002_with_ann!AI261","v":17},{"$f":"[1]ACS_16_5YR_B05002_with_ann!AJ261","v":0},{"$f":"[1]ACS_16_5YR_B05002_with_ann!AK261","v":11},{"$f":"[1]ACS_16_5YR_B05002_with_ann!AL261","v":0},{"$f":"[1]ACS_16_5YR_B05002_with_ann!AM261","v":11},{"$f":"[1]ACS_16_5YR_B05002_with_ann!AN261","v":5},{"$f":"[1]ACS_16_5YR_B05002_with_ann!AO261","v":7},{"$f":"[1]ACS_16_5YR_B05002_with_ann!AP261","v":0},{"$f":"[1]ACS_16_5YR_B05002_with_ann!AQ261","v":11},{"$f":"[1]ACS_16_5YR_B05002_with_ann!AR261","v":10},{"$f":"[1]ACS_16_5YR_B05002_with_ann!AS261","v":9},{"$f":"[1]ACS_16_5YR_B05002_with_ann!AT261","v":10},{"$f":"[1]ACS_16_5YR_B05002_with_ann!AU261","v":9},{"$f":"[1]ACS_16_5YR_B05002_with_ann!AV261","v":0},{"$f":"[1]ACS_16_5YR_B05002_with_ann!AW261","v":11},{"$f":"[1]ACS_16_5YR_B05002_with_ann!AX261","v":0},{"$f":"[1]ACS_16_5YR_B05002_with_ann!AY261","v":11},{"$f":"[1]ACS_16_5YR_B05002_with_ann!AZ261","v":0},{"$f":"[1]ACS_16_5YR_B05002_with_ann!BA261","v":11},{"$f":"[1]ACS_16_5YR_B05002_with_ann!BB261","v":0},{"$f":"[1]ACS_16_5YR_B05002_with_ann!BC261","v":11},{"$f":"[1]ACS_16_5YR_B05002_with_ann!BD261","v":0},{"$f":"[1]ACS_16_5YR_B05002_with_ann!BE261","v":11}]
["0600000US3301916340",3301916340,"060","Croydon",{"$f":"[1]ACS_16_5YR_B05002_with_ann!D262","v":863},{"$f":"[1]ACS_16_5YR_B05002_with_ann!E262","v":244},{"$f":"[1]ACS_16_5YR_B05002_with_ann!F262","v":849},{"$f":"[1]ACS_16_5YR_B05002_with_ann!G262","v":243},{"$f":"[1]ACS_16_5YR_B05002_with_ann!H262","v":603},{"$f":"[1]ACS_16_5YR_B05002_with_ann!I262","v":190},{"$f":"[1]ACS_16_5YR_B05002_with_ann!J262","v":246},{"$f":"[1]ACS_16_5YR_B05002_with_ann!K262","v":79},{"$f":"[1]ACS_16_5YR_B05002_with_ann!L262","v":205},{"$f":"[1]ACS_16_5YR_B05002_with_ann!M262","v":73},{"$f":"[1]ACS_16_5YR_B05002_with_ann!N262","v":13},{"$f":"[1]ACS_16_5YR_B05002_with_ann!O262","v":16},{"$f":"[1]ACS_16_5YR_B05002_with_ann!P262","v":7},{"$f":"[1]ACS_16_5YR_B05002_with_ann!Q262","v":6},{"$f":"[1]ACS_16_5YR_B05002_with_ann!R262","v":21},{"$f":"[1]ACS_16_5YR_B05002_with_ann!S262","v":17},{"$f":"[1]ACS_16_5YR_B05002_with_ann!T262","v":0},{"$f":"[1]ACS_16_5YR_B05002_with_ann!U262","v":11},{"$f":"[1]ACS_16_5YR_B05002_with_ann!V262","v":0},{"$f":"[1]ACS_16_5YR_B05002_with_ann!W262","v":11},{"$f":"[1]ACS_16_5YR_B05002_with_ann!X262","v":0},{"$f":"[1]ACS_16_5YR_B05002_with_ann!Y262","v":11},{"$f":"[1]ACS_16_5YR_B05002_with_ann!Z262","v":0},{"$f":"[1]ACS_16_5YR_B05002_with_ann!AA262","v":11},{"$f":"[1]ACS_16_5YR_B05002_with_ann!AB262","v":14},{"$f":"[1]ACS_16_5YR_B05002_with_ann!AC262","v":12},{"$f":"[1]ACS_16_5YR_B05002_with_ann!AD262","v":7},{"$f":"[1]ACS_16_5YR_B05002_with_ann!AE262","v":9},{"$f":"[1]ACS_16_5YR_B05002_with_ann!AF262","v":2},{"$f":"[1]ACS_16_5YR_B05002_with_ann!AG262","v":4},{"$f":"[1]ACS_16_5YR_B05002_with_ann!AH262","v":0},{"$f":"[1]ACS_16_5YR_B05002_with_ann!AI262","v":11},{"$f":"[1]ACS_16_5YR_B05002_with_ann!AJ262","v":0},{"$f":"[1]ACS_16_5YR_B05002_with_ann!AK262","v":11},{"$f":"[1]ACS_16_5YR_B05002_with_ann!AL262","v":0},{"$f":"[1]ACS_16_5YR_B05002_with_ann!AM262","v":11},{"$f":"[1]ACS_16_5YR_B05002_with_ann!AN262","v":0},{"$f":"[1]ACS_16_5YR_B05002_with_ann!AO262","v":11},{"$f":"[1]ACS_16_5YR_B05002_with_ann!AP262","v":5},{"$f":"[1]ACS_16_5YR_B05002_with_ann!AQ262","v":7},{"$f":"[1]ACS_16_5YR_B05002_with_ann!AR262","v":7},{"$f":"[1]ACS_16_5YR_B05002_with_ann!AS262","v":7},{"$f":"[1]ACS_16_5YR_B05002_with_ann!AT262","v":5},{"$f":"[1]ACS_16_5YR_B05002_with_ann!AU262","v":6},{"$f":"[1]ACS_16_5YR_B05002_with_ann!AV262","v":0},{"$f":"[1]ACS_16_5YR_B05002_with_ann!AW262","v":11},{"$f":"[1]ACS_16_5YR_B05002_with_ann!AX262","v":0},{"$f":"[1]ACS_16_5YR_B05002_with_ann!AY262","v":11},{"$f":"[1]ACS_16_5YR_B05002_with_ann!AZ262","v":0},{"$f":"[1]ACS_16_5YR_B05002_with_ann!BA262","v":11},{"$f":"[1]ACS_16_5YR_B05002_with_ann!BB262","v":0},{"$f":"[1]ACS_16_5YR_B05002_with_ann!BC262","v":11},{"$f":"[1]ACS_16_5YR_B05002_with_ann!BD262","v":2},{"$f":"[1]ACS_16_5YR_B05002_with_ann!BE262","v":3}]
["0600000US3301930500",3301930500,"060","Goshen",{"$f":"[1]ACS_16_5YR_B05002_with_ann!D263","v":702},{"$f":"[1]ACS_16_5YR_B05002_with_ann!E263","v":108},{"$f":"[1]ACS_16_5YR_B05002_with_ann!F263","v":680},{"$f":"[1]ACS_16_5YR_B05002_with_ann!G263","v":106},{"$f":"[1]ACS_16_5YR_B05002_with_ann!H263","v":374},{"$f":"[1]ACS_16_5YR_B05002_with_ann!I263","v":93},{"$f":"[1]ACS_16_5YR_B05002_with_ann!J263","v":304},{"$f":"[1]ACS_16_5YR_B05002_with_ann!K263","v":75},{"$f":"[1]ACS_16_5YR_B05002_with_ann!L263","v":235},{"$f":"[1]ACS_16_5YR_B05002_with_ann!M263","v":62},{"$f":"[1]ACS_16_5YR_B05002_with_ann!N263","v":39},{"$f":"[1]ACS_16_5YR_B05002_with_ann!O263","v":39},{"$f":"[1]ACS_16_5YR_B05002_with_ann!P263","v":27},{"$f":"[1]ACS_16_5YR_B05002_with_ann!Q263","v":18},{"$f":"[1]ACS_16_5YR_B05002_with_ann!R263","v":3},{"$f":"[1]ACS_16_5YR_B05002_with_ann!S263","v":4},{"$f":"[1]ACS_16_5YR_B05002_with_ann!T263","v":2},{"$f":"[1]ACS_16_5YR_B05002_with_ann!U263","v":3},{"$f":"[1]ACS_16_5YR_B05002_with_ann!V263","v":0},{"$f":"[1]ACS_16_5YR_B05002_with_ann!W263","v":11},{"$f":"[1]ACS_16_5YR_B05002_with_ann!X263","v":0},{"$f":"[1]ACS_16_5YR_B05002_with_ann!Y263","v":11},{"$f":"[1]ACS_16_5YR_B05002_with_ann!Z263","v":2},{"$f":"[1]ACS_16_5YR_B05002_with_ann!AA263","v":3},{"$f":"[1]ACS_16_5YR_B05002_with_ann!AB263","v":22},{"$f":"[1]ACS_16_5YR_B05002_with_ann!AC263","v":23},{"$f":"[1]ACS_16_5YR_B05002_with_ann!AD263","v":22},{"$f":"[1]ACS_16_5YR_B05002_with_ann!AE263","v":23},{"$f":"[1]ACS_16_5YR_B05002_with_ann!AF263","v":7},{"$f":"[1]ACS_16_5YR_B05002_with_ann!AG263","v":9},{"$f":"[1]ACS_16_5YR_B05002_with_ann!AH263","v":0},{"$f":"[1]ACS_16_5YR_B05002_with_ann!AI263","v":11},{"$f":"[1]ACS_16_5YR_B05002_with_ann!AJ263","v":0},{"$f":"[1]ACS_16_5YR_B05002_with_ann!AK263","v":11},{"$f":"[1]ACS_16_5YR_B05002_with_ann!AL263","v":0},{"$f":"[1]ACS_16_5YR_B05002_with_ann!AM263","v":11},{"$f":"[1]ACS_16_5YR_B05002_with_ann!AN263","v":8},{"$f":"[1]ACS_16_5YR_B05002_with_ann!AO263","v":15},{"$f":"[1]ACS_16_5YR_B05002_with_ann!AP263","v":7},{"$f":"[1]ACS_16_5YR_B05002_with_ann!AQ263","v":13},{"$f":"[1]ACS_16_5YR_B05002_with_ann!AR263","v":0},{"$f":"[1]ACS_16_5YR_B05002_with_ann!AS263","v":11},{"$f":"[1]ACS_16_5YR_B05002_with_ann!AT263","v":0},{"$f":"[1]ACS_16_5YR_B05002_with_ann!AU263","v":11},{"$f":"[1]ACS_16_5YR_B05002_with_ann!AV263","v":0},{"$f":"[1]ACS_16_5YR_B05002_with_ann!AW263","v":11},{"$f":"[1]ACS_16_5YR_B05002_with_ann!AX263","v":0},{"$f":"[1]ACS_16_5YR_B05002_with_ann!AY263","v":11},{"$f":"[1]ACS_16_5YR_B05002_with_ann!AZ263","v":0},{"$f":"[1]ACS_16_5YR_B05002_with_ann!BA263","v":11},{"$f":"[1]ACS_16_5YR_B05002_with_ann!BB263","v":0},{"$f":"[1]ACS_16_5YR_B05002_with_ann!BC263","v":11},{"$f":"[1]ACS_16_5YR_B05002_with_ann!BD263","v":0},{"$f":"[1]ACS_16_5YR_B05002_with_ann!BE263","v":11}]
["0600000US3301931220",3301931220,"060","Grantham",{"$f":"[1]ACS_16_5YR_B05002_with_ann!D264","v":2945},{"$f":"[1]ACS_16_5YR_B05002_with_ann!E264","v":14},{"$f":"[1]ACS_16_5YR_B05002_with_ann!F264","v":2899},{"$f":"[1]ACS_16_5YR_B05002_with_ann!G264","v":54},{"$f":"[1]ACS_16_5YR_B05002_with_ann!H264","v":1085},{"$f":"[1]ACS_16_5YR_B05002_with_ann!I264","v":219},{"$f":"[1]ACS_16_5YR_B05002_with_ann!J264","v":1773},{"$f":"[1]ACS_16_5YR_B05002_with_ann!K264","v":208},{"$f":"[1]ACS_16_5YR_B05002_with_ann!L264","v":1223},{"$f":"[1]ACS_16_5YR_B05002_with_ann!M264","v":269},{"$f":"[1]ACS_16_5YR_B05002_with_ann!N264","v":126},{"$f":"[1]ACS_16_5YR_B05002_with_ann!O264","v":88},{"$f":"[1]ACS_16_5YR_B05002_with_ann!P264","v":207},{"$f":"[1]ACS_16_5YR_B05002_with_ann!Q264","v":92},{"$f":"[1]ACS_16_5YR_B05002_with_ann!R264","v":217},{"$f":"[1]ACS_16_5YR_B05002_with_ann!S264","v":118},{"$f":"[1]ACS_16_5YR_B05002_with_ann!T264","v":41},{"$f":"[1]ACS_16_5YR_B05002_with_ann!U264","v":61},{"$f":"[1]ACS_16_5YR_B05002_with_ann!V264","v":0},{"$f":"[1]ACS_16_5YR_B05002_with_ann!W264","v":11},{"$f":"[1]ACS_16_5YR_B05002_with_ann!X264","v":0},{"$f":"[1]ACS_16_5YR_B05002_with_ann!Y264","v":11},{"$f":"[1]ACS_16_5YR_B05002_with_ann!Z264","v":41},{"$f":"[1]ACS_16_5YR_B05002_with_ann!AA264","v":61},{"$f":"[1]ACS_16_5YR_B05002_with_ann!AB264","v":46},{"$f":"[1]ACS_16_5YR_B05002_with_ann!AC264","v":53},{"$f":"[1]ACS_16_5YR_B05002_with_ann!AD264","v":46},{"$f":"[1]ACS_16_5YR_B05002_with_ann!AE264","v":53},{"$f":"[1]ACS_16_5YR_B05002_with_ann!AF264","v":46},{"$f":"[1]ACS_16_5YR_B05002_with_ann!AG264","v":53},{"$f":"[1]ACS_16_5YR_B05002_with_ann!AH264","v":0},{"$f":"[1]ACS_16_5YR_B05002_with_ann!AI264","v":11},{"$f":"[1]ACS_16_5YR_B05002_with_ann!AJ264","v":0},{"$f":"[1]ACS_16_5YR_B05002_with_ann!AK264","v":11},{"$f":"[1]ACS_16_5YR_B05002_with_ann!AL264","v":0},{"$f":"[1]ACS_16_5YR_B05002_with_ann!AM264","v":11},{"$f":"[1]ACS_16_5YR_B05002_with_ann!AN264","v":0},{"$f":"[1]ACS_16_5YR_B05002_with_ann!AO264","v":11},{"$f":"[1]ACS_16_5YR_B05002_with_ann!AP264","v":0},{"$f":"[1]ACS_16_5YR_B05002_with_ann!AQ264","v":11},{"$f":"[1]ACS_16_5YR_B05002_with_ann!AR264","v":0},{"$f":"[1]ACS_16_5YR_B05002_with_ann!AS264","v":11},{"$f":"[1]ACS_16_5YR_B05002_with_ann!AT264","v":0},{"$f":"[1]ACS_16_5YR_B05002_with_ann!AU264","v":11},{"$f":"[1]ACS_16_5YR_B05002_with_ann!AV264","v":0},{"$f":"[1]ACS_16_5YR_B05002_with_ann!AW264","v":11},{"$f":"[1]ACS_16_5YR_B05002_with_ann!AX264","v":0},{"$f":"[1]ACS_16_5YR_B05002_with_ann!AY264","v":11},{"$f":"[1]ACS_16_5YR_B05002_with_ann!AZ264","v":0},{"$f":"[1]ACS_16_5YR_B05002_with_ann!BA264","v":11},{"$f":"[1]ACS_16_5YR_B05002_with_ann!BB264","v":0},{"$f":"[1]ACS_16_5YR_B05002_with_ann!BC264","v":11},{"$f":"[1]ACS_16_5YR_B05002_with_ann!BD264","v":0},{"$f":"[1]ACS_16_5YR_B05002_with_ann!BE264","v":11}]
["0600000US3301940900",3301940900,"060","Langdon",{"$f":"[1]ACS_16_5YR_B05002_with_ann!D265","v":712},{"$f":"[1]ACS_16_5YR_B05002_with_ann!E265","v":145},{"$f":"[1]ACS_16_5YR_B05002_with_ann!F265","v":678},{"$f":"[1]ACS_16_5YR_B05002_with_ann!G265","v":136},{"$f":"[1]ACS_16_5YR_B05002_with_ann!H265","v":261},{"$f":"[1]ACS_16_5YR_B05002_with_ann!I265","v":98},{"$f":"[1]ACS_16_5YR_B05002_with_ann!J265","v":415},{"$f":"[1]ACS_16_5YR_B05002_with_ann!K265","v":84},{"$f":"[1]ACS_16_5YR_B05002_with_ann!L265","v":338},{"$f":"[1]ACS_16_5YR_B05002_with_ann!M265","v":71},{"$f":"[1]ACS_16_5YR_B05002_with_ann!N265","v":19},{"$f":"[1]ACS_16_5YR_B05002_with_ann!O265","v":11},{"$f":"[1]ACS_16_5YR_B05002_with_ann!P265","v":46},{"$f":"[1]ACS_16_5YR_B05002_with_ann!Q265","v":31},{"$f":"[1]ACS_16_5YR_B05002_with_ann!R265","v":12},{"$f":"[1]ACS_16_5YR_B05002_with_ann!S265","v":14},{"$f":"[1]ACS_16_5YR_B05002_with_ann!T265","v":2},{"$f":"[1]ACS_16_5YR_B05002_with_ann!U265","v":3},{"$f":"[1]ACS_16_5YR_B05002_with_ann!V265","v":0},{"$f":"[1]ACS_16_5YR_B05002_with_ann!W265","v":11},{"$f":"[1]ACS_16_5YR_B05002_with_ann!X265","v":0},{"$f":"[1]ACS_16_5YR_B05002_with_ann!Y265","v":11},{"$f":"[1]ACS_16_5YR_B05002_with_ann!Z265","v":2},{"$f":"[1]ACS_16_5YR_B05002_with_ann!AA265","v":3},{"$f":"[1]ACS_16_5YR_B05002_with_ann!AB265","v":34},{"$f":"[1]ACS_16_5YR_B05002_with_ann!AC265","v":22},{"$f":"[1]ACS_16_5YR_B05002_with_ann!AD265","v":16},{"$f":"[1]ACS_16_5YR_B05002_with_ann!AE265","v":12},{"$f":"[1]ACS_16_5YR_B05002_with_ann!AF265","v":8},{"$f":"[1]ACS_16_5YR_B05002_with_ann!AG265","v":7},{"$f":"[1]ACS_16_5YR_B05002_with_ann!AH265","v":0},{"$f":"[1]ACS_16_5YR_B05002_with_ann!AI265","v":11},{"$f":"[1]ACS_16_5YR_B05002_with_ann!AJ265","v":1},{"$f":"[1]ACS_16_5YR_B05002_with_ann!AK265","v":4},{"$f":"[1]ACS_16_5YR_B05002_with_ann!AL265","v":0},{"$f":"[1]ACS_16_5YR_B05002_with_ann!AM265","v":11},{"$f":"[1]ACS_16_5YR_B05002_with_ann!AN265","v":7},{"$f":"[1]ACS_16_5YR_B05002_with_ann!AO265","v":9},{"$f":"[1]ACS_16_5YR_B05002_with_ann!AP265","v":0},{"$f":"[1]ACS_16_5YR_B05002_with_ann!AQ265","v":11},{"$f":"[1]ACS_16_5YR_B05002_with_ann!AR265","v":18},{"$f":"[1]ACS_16_5YR_B05002_with_ann!AS265","v":17},{"$f":"[1]ACS_16_5YR_B05002_with_ann!AT265","v":7},{"$f":"[1]ACS_16_5YR_B05002_with_ann!AU265","v":12},{"$f":"[1]ACS_16_5YR_B05002_with_ann!AV265","v":9},{"$f":"[1]ACS_16_5YR_B05002_with_ann!AW265","v":13},{"$f":"[1]ACS_16_5YR_B05002_with_ann!AX265","v":0},{"$f":"[1]ACS_16_5YR_B05002_with_ann!AY265","v":11},{"$f":"[1]ACS_16_5YR_B05002_with_ann!AZ265","v":0},{"$f":"[1]ACS_16_5YR_B05002_with_ann!BA265","v":11},{"$f":"[1]ACS_16_5YR_B05002_with_ann!BB265","v":0},{"$f":"[1]ACS_16_5YR_B05002_with_ann!BC265","v":11},{"$f":"[1]ACS_16_5YR_B05002_with_ann!BD265","v":2},{"$f":"[1]ACS_16_5YR_B05002_with_ann!BE265","v":3}]
["0600000US3301941700",3301941700,"060","Lempster",{"$f":"[1]ACS_16_5YR_B05002_with_ann!D266","v":923},{"$f":"[1]ACS_16_5YR_B05002_with_ann!E266","v":176},{"$f":"[1]ACS_16_5YR_B05002_with_ann!F266","v":880},{"$f":"[1]ACS_16_5YR_B05002_with_ann!G266","v":167},{"$f":"[1]ACS_16_5YR_B05002_with_ann!H266","v":461},{"$f":"[1]ACS_16_5YR_B05002_with_ann!I266","v":134},{"$f":"[1]ACS_16_5YR_B05002_with_ann!J266","v":419},{"$f":"[1]ACS_16_5YR_B05002_with_ann!K266","v":81},{"$f":"[1]ACS_16_5YR_B05002_with_ann!L266","v":316},{"$f":"[1]ACS_16_5YR_B05002_with_ann!M266","v":75},{"$f":"[1]ACS_16_5YR_B05002_with_ann!N266","v":34},{"$f":"[1]ACS_16_5YR_B05002_with_ann!O266","v":33},{"$f":"[1]ACS_16_5YR_B05002_with_ann!P266","v":37},{"$f":"[1]ACS_16_5YR_B05002_with_ann!Q266","v":25},{"$f":"[1]ACS_16_5YR_B05002_with_ann!R266","v":32},{"$f":"[1]ACS_16_5YR_B05002_with_ann!S266","v":26},{"$f":"[1]ACS_16_5YR_B05002_with_ann!T266","v":0},{"$f":"[1]ACS_16_5YR_B05002_with_ann!U266","v":11},{"$f":"[1]ACS_16_5YR_B05002_with_ann!V266","v":0},{"$f":"[1]ACS_16_5YR_B05002_with_ann!W266","v":11},{"$f":"[1]ACS_16_5YR_B05002_with_ann!X266","v":0},{"$f":"[1]ACS_16_5YR_B05002_with_ann!Y266","v":11},{"$f":"[1]ACS_16_5YR_B05002_with_ann!Z266","v":0},{"$f":"[1]ACS_16_5YR_B05002_with_ann!AA266","v":11},{"$f":"[1]ACS_16_5YR_B05002_with_ann!AB266","v":43},{"$f":"[1]ACS_16_5YR_B05002_with_ann!AC266","v":51},{"$f":"[1]ACS_16_5YR_B05002_with_ann!AD266","v":38},{"$f":"[1]ACS_16_5YR_B05002_with_ann!AE266","v":50},{"$f":"[1]ACS_16_5YR_B05002_with_ann!AF266","v":6},{"$f":"[1]ACS_16_5YR_B05002_with_ann!AG266","v":6},{"$f":"[1]ACS_16_5YR_B05002_with_ann!AH266","v":32},{"$f":"[1]ACS_16_5YR_B05002_with_ann!AI266","v":51},{"$f":"[1]ACS_16_5YR_B05002_with_ann!AJ266","v":0},{"$f":"[1]ACS_16_5YR_B05002_with_ann!AK266","v":11},{"$f":"[1]ACS_16_5YR_B05002_with_ann!AL266","v":0},{"$f":"[1]ACS_16_5YR_B05002_with_ann!AM266","v":11},{"$f":"[1]ACS_16_5YR_B05002_with_ann!AN266","v":0},{"$f":"[1]ACS_16_5YR_B05002_with_ann!AO266","v":11},{"$f":"[1]ACS_16_5YR_B05002_with_ann!AP266","v":0},{"$f":"[1]ACS_16_5YR_B05002_with_ann!AQ266","v":11},{"$f":"[1]ACS_16_5YR_B05002_with_ann!AR266","v":5},{"$f":"[1]ACS_16_5YR_B05002_with_ann!AS266","v":5},{"$f":"[1]ACS_16_5YR_B05002_with_ann!AT266","v":5},{"$f":"[1]ACS_16_5YR_B05002_with_ann!AU266","v":5},{"$f":"[1]ACS_16_5YR_B05002_with_ann!AV266","v":0},{"$f":"[1]ACS_16_5YR_B05002_with_ann!AW266","v":11},{"$f":"[1]ACS_16_5YR_B05002_with_ann!AX266","v":0},{"$f":"[1]ACS_16_5YR_B05002_with_ann!AY266","v":11},{"$f":"[1]ACS_16_5YR_B05002_with_ann!AZ266","v":0},{"$f":"[1]ACS_16_5YR_B05002_with_ann!BA266","v":11},{"$f":"[1]ACS_16_5YR_B05002_with_ann!BB266","v":0},{"$f":"[1]ACS_16_5YR_B05002_with_ann!BC266","v":11},{"$f":"[1]ACS_16_5YR_B05002_with_ann!BD266","v":0},{"$f":"[1]ACS_16_5YR_B05002_with_ann!BE266","v":11}]
["0600000US3301952580",3301952580,"060","Newport",{"$f":"[1]ACS_16_5YR_B05002_with_ann!D267","v":6374},{"$f":"[1]ACS_16_5YR_B05002_with_ann!E267","v":19},{"$f":"[1]ACS_16_5YR_B05002_with_ann!F267","v":6285},{"$f":"[1]ACS_16_5YR_B05002_with_ann!G267","v":73},{"$f":"[1]ACS_16_5YR_B05002_with_ann!H267","v":4251},{"$f":"[1]ACS_16_5YR_B05002_with_ann!I267","v":423},{"$f":"[1]ACS_16_5YR_B05002_with_ann!J267","v":2006},{"$f":"[1]ACS_16_5YR_B05002_with_ann!K267","v":414},{"$f":"[1]ACS_16_5YR_B05002_with_ann!L267","v":1334},{"$f":"[1]ACS_16_5YR_B05002_with_ann!M267","v":323},{"$f":"[1]ACS_16_5YR_B05002_with_ann!N267","v":206},{"$f":"[1]ACS_16_5YR_B05002_with_ann!O267","v":98},{"$f":"[1]ACS_16_5YR_B05002_with_ann!P267","v":309},{"$f":"[1]ACS_16_5YR_B05002_with_ann!Q267","v":183},{"$f":"[1]ACS_16_5YR_B05002_with_ann!R267","v":157},{"$f":"[1]ACS_16_5YR_B05002_with_ann!S267","v":136},{"$f":"[1]ACS_16_5YR_B05002_with_ann!T267","v":28},{"$f":"[1]ACS_16_5YR_B05002_with_ann!U267","v":39},{"$f":"[1]ACS_16_5YR_B05002_with_ann!V267","v":0},{"$f":"[1]ACS_16_5YR_B05002_with_ann!W267","v":16},{"$f":"[1]ACS_16_5YR_B05002_with_ann!X267","v":0},{"$f":"[1]ACS_16_5YR_B05002_with_ann!Y267","v":16},{"$f":"[1]ACS_16_5YR_B05002_with_ann!Z267","v":28},{"$f":"[1]ACS_16_5YR_B05002_with_ann!AA267","v":39},{"$f":"[1]ACS_16_5YR_B05002_with_ann!AB267","v":89},{"$f":"[1]ACS_16_5YR_B05002_with_ann!AC267","v":75},{"$f":"[1]ACS_16_5YR_B05002_with_ann!AD267","v":53},{"$f":"[1]ACS_16_5YR_B05002_with_ann!AE267","v":67},{"$f":"[1]ACS_16_5YR_B05002_with_ann!AF267","v":53},{"$f":"[1]ACS_16_5YR_B05002_with_ann!AG267","v":67},{"$f":"[1]ACS_16_5YR_B05002_with_ann!AH267","v":0},{"$f":"[1]ACS_16_5YR_B05002_with_ann!AI267","v":16},{"$f":"[1]ACS_16_5YR_B05002_with_ann!AJ267","v":0},{"$f":"[1]ACS_16_5YR_B05002_with_ann!AK267","v":16},{"$f":"[1]ACS_16_5YR_B05002_with_ann!AL267","v":0},{"$f":"[1]ACS_16_5YR_B05002_with_ann!AM267","v":16},{"$f":"[1]ACS_16_5YR_B05002_with_ann!AN267","v":0},{"$f":"[1]ACS_16_5YR_B05002_with_ann!AO267","v":16},{"$f":"[1]ACS_16_5YR_B05002_with_ann!AP267","v":0},{"$f":"[1]ACS_16_5YR_B05002_with_ann!AQ267","v":16},{"$f":"[1]ACS_16_5YR_B05002_with_ann!AR267","v":36},{"$f":"[1]ACS_16_5YR_B05002_with_ann!AS267","v":37},{"$f":"[1]ACS_16_5YR_B05002_with_ann!AT267","v":11},{"$f":"[1]ACS_16_5YR_B05002_with_ann!AU267","v":17},{"$f":"[1]ACS_16_5YR_B05002_with_ann!AV267","v":0},{"$f":"[1]ACS_16_5YR_B05002_with_ann!AW267","v":16},{"$f":"[1]ACS_16_5YR_B05002_with_ann!AX267","v":13},{"$f":"[1]ACS_16_5YR_B05002_with_ann!AY267","v":29},{"$f":"[1]ACS_16_5YR_B05002_with_ann!AZ267","v":0},{"$f":"[1]ACS_16_5YR_B05002_with_ann!BA267","v":16},{"$f":"[1]ACS_16_5YR_B05002_with_ann!BB267","v":0},{"$f":"[1]ACS_16_5YR_B05002_with_ann!BC267","v":16},{"$f":"[1]ACS_16_5YR_B05002_with_ann!BD267","v":12},{"$f":"[1]ACS_16_5YR_B05002_with_ann!BE267","v":19}]
["0600000US3301962340",3301962340,"060","Plainfield",{"$f":"[1]ACS_16_5YR_B05002_with_ann!D268","v":2555},{"$f":"[1]ACS_16_5YR_B05002_with_ann!E268","v":293},{"$f":"[1]ACS_16_5YR_B05002_with_ann!F268","v":2445},{"$f":"[1]ACS_16_5YR_B05002_with_ann!G268","v":289},{"$f":"[1]ACS_16_5YR_B05002_with_ann!H268","v":1194},{"$f":"[1]ACS_16_5YR_B05002_with_ann!I268","v":297},{"$f":"[1]ACS_16_5YR_B05002_with_ann!J268","v":1219},{"$f":"[1]ACS_16_5YR_B05002_with_ann!K268","v":157},{"$f":"[1]ACS_16_5YR_B05002_with_ann!L268","v":902},{"$f":"[1]ACS_16_5YR_B05002_with_ann!M268","v":141},{"$f":"[1]ACS_16_5YR_B05002_with_ann!N268","v":107},{"$f":"[1]ACS_16_5YR_B05002_with_ann!O268","v":41},{"$f":"[1]ACS_16_5YR_B05002_with_ann!P268","v":158},{"$f":"[1]ACS_16_5YR_B05002_with_ann!Q268","v":65},{"$f":"[1]ACS_16_5YR_B05002_with_ann!R268","v":52},{"$f":"[1]ACS_16_5YR_B05002_with_ann!S268","v":47},{"$f":"[1]ACS_16_5YR_B05002_with_ann!T268","v":32},{"$f":"[1]ACS_16_5YR_B05002_with_ann!U268","v":35},{"$f":"[1]ACS_16_5YR_B05002_with_ann!V268","v":0},{"$f":"[1]ACS_16_5YR_B05002_with_ann!W268","v":11},{"$f":"[1]ACS_16_5YR_B05002_with_ann!X268","v":0},{"$f":"[1]ACS_16_5YR_B05002_with_ann!Y268","v":11},{"$f":"[1]ACS_16_5YR_B05002_with_ann!Z268","v":32},{"$f":"[1]ACS_16_5YR_B05002_with_ann!AA268","v":35},{"$f":"[1]ACS_16_5YR_B05002_with_ann!AB268","v":110},{"$f":"[1]ACS_16_5YR_B05002_with_ann!AC268","v":72},{"$f":"[1]ACS_16_5YR_B05002_with_ann!AD268","v":93},{"$f":"[1]ACS_16_5YR_B05002_with_ann!AE268","v":69},{"$f":"[1]ACS_16_5YR_B05002_with_ann!AF268","v":28},{"$f":"[1]ACS_16_5YR_B05002_with_ann!AG268","v":28},{"$f":"[1]ACS_16_5YR_B05002_with_ann!AH268","v":51},{"$f":"[1]ACS_16_5YR_B05002_with_ann!AI268","v":59},{"$f":"[1]ACS_16_5YR_B05002_with_ann!AJ268","v":5},{"$f":"[1]ACS_16_5YR_B05002_with_ann!AK268","v":7},{"$f":"[1]ACS_16_5YR_B05002_with_ann!AL268","v":0},{"$f":"[1]ACS_16_5YR_B05002_with_ann!AM268","v":11},{"$f":"[1]ACS_16_5YR_B05002_with_ann!AN268","v":0},{"$f":"[1]ACS_16_5YR_B05002_with_ann!AO268","v":11},{"$f":"[1]ACS_16_5YR_B05002_with_ann!AP268","v":9},{"$f":"[1]ACS_16_5YR_B05002_with_ann!AQ268","v":10},{"$f":"[1]ACS_16_5YR_B05002_with_ann!AR268","v":17},{"$f":"[1]ACS_16_5YR_B05002_with_ann!AS268","v":15},{"$f":"[1]ACS_16_5YR_B05002_with_ann!AT268","v":6},{"$f":"[1]ACS_16_5YR_B05002_with_ann!AU268","v":9},{"$f":"[1]ACS_16_5YR_B05002_with_ann!AV268","v":0},{"$f":"[1]ACS_16_5YR_B05002_with_ann!AW268","v":11},{"$f":"[1]ACS_16_5YR_B05002_with_ann!AX268","v":0},{"$f":"[1]ACS_16_5YR_B05002_with_ann!AY268","v":11},{"$f":"[1]ACS_16_5YR_B05002_with_ann!AZ268","v":0},{"$f":"[1]ACS_16_5YR_B05002_with_ann!BA268","v":11},{"$f":"[1]ACS_16_5YR_B05002_with_ann!BB268","v":0},{"$f":"[1]ACS_16_5YR_B05002_with_ann!BC268","v":11},{"$f":"[1]ACS_16_5YR_B05002_with_ann!BD268","v":11},{"$f":"[1]ACS_16_5YR_B05002_with_ann!BE268","v":12}]
["0600000US3301972740",3301972740,"060","Springfield",{"$f":"[1]ACS_16_5YR_B05002_with_ann!D269","v":1084},{"$f":"[1]ACS_16_5YR_B05002_with_ann!E269","v":198},{"$f":"[1]ACS_16_5YR_B05002_with_ann!F269","v":1060},{"$f":"[1]ACS_16_5YR_B05002_with_ann!G269","v":201},{"$f":"[1]ACS_16_5YR_B05002_with_ann!H269","v":521},{"$f":"[1]ACS_16_5YR_B05002_with_ann!I269","v":147},{"$f":"[1]ACS_16_5YR_B05002_with_ann!J269","v":515},{"$f":"[1]ACS_16_5YR_B05002_with_ann!K269","v":109},{"$f":"[1]ACS_16_5YR_B05002_with_ann!L269","v":396},{"$f":"[1]ACS_16_5YR_B05002_with_ann!M269","v":99},{"$f":"[1]ACS_16_5YR_B05002_with_ann!N269","v":72},{"$f":"[1]ACS_16_5YR_B05002_with_ann!O269","v":45},{"$f":"[1]ACS_16_5YR_B05002_with_ann!P269","v":38},{"$f":"[1]ACS_16_5YR_B05002_with_ann!Q269","v":31},{"$f":"[1]ACS_16_5YR_B05002_with_ann!R269","v":9},{"$f":"[1]ACS_16_5YR_B05002_with_ann!S269","v":14},{"$f":"[1]ACS_16_5YR_B05002_with_ann!T269","v":24},{"$f":"[1]ACS_16_5YR_B05002_with_ann!U269","v":28},{"$f":"[1]ACS_16_5YR_B05002_with_ann!V269","v":0},{"$f":"[1]ACS_16_5YR_B05002_with_ann!W269","v":11},{"$f":"[1]ACS_16_5YR_B05002_with_ann!X269","v":0},{"$f":"[1]ACS_16_5YR_B05002_with_ann!Y269","v":11},{"$f":"[1]ACS_16_5YR_B05002_with_ann!Z269","v":24},{"$f":"[1]ACS_16_5YR_B05002_with_ann!AA269","v":28},{"$f":"[1]ACS_16_5YR_B05002_with_ann!AB269","v":24},{"$f":"[1]ACS_16_5YR_B05002_with_ann!AC269","v":28},{"$f":"[1]ACS_16_5YR_B05002_with_ann!AD269","v":3},{"$f":"[1]ACS_16_5YR_B05002_with_ann!AE269","v":5},{"$f":"[1]ACS_16_5YR_B05002_with_ann!AF269","v":0},{"$f":"[1]ACS_16_5YR_B05002_with_ann!AG269","v":11},{"$f":"[1]ACS_16_5YR_B05002_with_ann!AH269","v":0},{"$f":"[1]ACS_16_5YR_B05002_with_ann!AI269","v":11},{"$f":"[1]ACS_16_5YR_B05002_with_ann!AJ269","v":0},{"$f":"[1]ACS_16_5YR_B05002_with_ann!AK269","v":11},{"$f":"[1]ACS_16_5YR_B05002_with_ann!AL269","v":0},{"$f":"[1]ACS_16_5YR_B05002_with_ann!AM269","v":11},{"$f":"[1]ACS_16_5YR_B05002_with_ann!AN269","v":0},{"$f":"[1]ACS_16_5YR_B05002_with_ann!AO269","v":11},{"$f":"[1]ACS_16_5YR_B05002_with_ann!AP269","v":3},{"$f":"[1]ACS_16_5YR_B05002_with_ann!AQ269","v":5},{"$f":"[1]ACS_16_5YR_B05002_with_ann!AR269","v":21},{"$f":"[1]ACS_16_5YR_B05002_with_ann!AS269","v":30},{"$f":"[1]ACS_16_5YR_B05002_with_ann!AT269","v":21},{"$f":"[1]ACS_16_5YR_B05002_with_ann!AU269","v":30},{"$f":"[1]ACS_16_5YR_B05002_with_ann!AV269","v":0},{"$f":"[1]ACS_16_5YR_B05002_with_ann!AW269","v":11},{"$f":"[1]ACS_16_5YR_B05002_with_ann!AX269","v":0},{"$f":"[1]ACS_16_5YR_B05002_with_ann!AY269","v":11},{"$f":"[1]ACS_16_5YR_B05002_with_ann!AZ269","v":0},{"$f":"[1]ACS_16_5YR_B05002_with_ann!BA269","v":11},{"$f":"[1]ACS_16_5YR_B05002_with_ann!BB269","v":0},{"$f":"[1]ACS_16_5YR_B05002_with_ann!BC269","v":11},{"$f":"[1]ACS_16_5YR_B05002_with_ann!BD269","v":0},{"$f":"[1]ACS_16_5YR_B05002_with_ann!BE269","v":11}]
["0600000US3301975060",3301975060,"060","Sunapee",{"$f":"[1]ACS_16_5YR_B05002_with_ann!D270","v":3449},{"$f":"[1]ACS_16_5YR_B05002_with_ann!E270","v":19},{"$f":"[1]ACS_16_5YR_B05002_with_ann!F270","v":3359},{"$f":"[1]ACS_16_5YR_B05002_with_ann!G270","v":80},{"$f":"[1]ACS_16_5YR_B05002_with_ann!H270","v":1654},{"$f":"[1]ACS_16_5YR_B05002_with_ann!I270","v":213},{"$f":"[1]ACS_16_5YR_B05002_with_ann!J270","v":1673},{"$f":"[1]ACS_16_5YR_B05002_with_ann!K270","v":195},{"$f":"[1]ACS_16_5YR_B05002_with_ann!L270","v":1355},{"$f":"[1]ACS_16_5YR_B05002_with_ann!M270","v":185},{"$f":"[1]ACS_16_5YR_B05002_with_ann!N270","v":163},{"$f":"[1]ACS_16_5YR_B05002_with_ann!O270","v":90},{"$f":"[1]ACS_16_5YR_B05002_with_ann!P270","v":93},{"$f":"[1]ACS_16_5YR_B05002_with_ann!Q270","v":62},{"$f":"[1]ACS_16_5YR_B05002_with_ann!R270","v":62},{"$f":"[1]ACS_16_5YR_B05002_with_ann!S270","v":43},{"$f":"[1]ACS_16_5YR_B05002_with_ann!T270","v":32},{"$f":"[1]ACS_16_5YR_B05002_with_ann!U270","v":27},{"$f":"[1]ACS_16_5YR_B05002_with_ann!V270","v":0},{"$f":"[1]ACS_16_5YR_B05002_with_ann!W270","v":11},{"$f":"[1]ACS_16_5YR_B05002_with_ann!X270","v":0},{"$f":"[1]ACS_16_5YR_B05002_with_ann!Y270","v":11},{"$f":"[1]ACS_16_5YR_B05002_with_ann!Z270","v":32},{"$f":"[1]ACS_16_5YR_B05002_with_ann!AA270","v":27},{"$f":"[1]ACS_16_5YR_B05002_with_ann!AB270","v":90},{"$f":"[1]ACS_16_5YR_B05002_with_ann!AC270","v":79},{"$f":"[1]ACS_16_5YR_B05002_with_ann!AD270","v":61},{"$f":"[1]ACS_16_5YR_B05002_with_ann!AE270","v":60},{"$f":"[1]ACS_16_5YR_B05002_with_ann!AF270","v":31},{"$f":"[1]ACS_16_5YR_B05002_with_ann!AG270","v":37},{"$f":"[1]ACS_16_5YR_B05002_with_ann!AH270","v":30},{"$f":"[1]ACS_16_5YR_B05002_with_ann!AI270","v":45},{"$f":"[1]ACS_16_5YR_B05002_with_ann!AJ270","v":0},{"$f":"[1]ACS_16_5YR_B05002_with_ann!AK270","v":11},{"$f":"[1]ACS_16_5YR_B05002_with_ann!AL270","v":0},{"$f":"[1]ACS_16_5YR_B05002_with_ann!AM270","v":11},{"$f":"[1]ACS_16_5YR_B05002_with_ann!AN270","v":0},{"$f":"[1]ACS_16_5YR_B05002_with_ann!AO270","v":11},{"$f":"[1]ACS_16_5YR_B05002_with_ann!AP270","v":0},{"$f":"[1]ACS_16_5YR_B05002_with_ann!AQ270","v":11},{"$f":"[1]ACS_16_5YR_B05002_with_ann!AR270","v":29},{"$f":"[1]ACS_16_5YR_B05002_with_ann!AS270","v":36},{"$f":"[1]ACS_16_5YR_B05002_with_ann!AT270","v":22},{"$f":"[1]ACS_16_5YR_B05002_with_ann!AU270","v":24},{"$f":"[1]ACS_16_5YR_B05002_with_ann!AV270","v":0},{"$f":"[1]ACS_16_5YR_B05002_with_ann!AW270","v":11},{"$f":"[1]ACS_16_5YR_B05002_with_ann!AX270","v":7},{"$f":"[1]ACS_16_5YR_B05002_with_ann!AY270","v":16},{"$f":"[1]ACS_16_5YR_B05002_with_ann!AZ270","v":0},{"$f":"[1]ACS_16_5YR_B05002_with_ann!BA270","v":11},{"$f":"[1]ACS_16_5YR_B05002_with_ann!BB270","v":0},{"$f":"[1]ACS_16_5YR_B05002_with_ann!BC270","v":11},{"$f":"[1]ACS_16_5YR_B05002_with_ann!BD270","v":0},{"$f":"[1]ACS_16_5YR_B05002_with_ann!BE270","v":11}]
["0600000US3301977940",3301977940,"060","Unity",{"$f":"[1]ACS_16_5YR_B05002_with_ann!D271","v":1613},{"$f":"[1]ACS_16_5YR_B05002_with_ann!E271","v":156},{"$f":"[1]ACS_16_5YR_B05002_with_ann!F271","v":1597},{"$f":"[1]ACS_16_5YR_B05002_with_ann!G271","v":152},{"$f":"[1]ACS_16_5YR_B05002_with_ann!H271","v":831},{"$f":"[1]ACS_16_5YR_B05002_with_ann!I271","v":125},{"$f":"[1]ACS_16_5YR_B05002_with_ann!J271","v":763},{"$f":"[1]ACS_16_5YR_B05002_with_ann!K271","v":105},{"$f":"[1]ACS_16_5YR_B05002_with_ann!L271","v":629},{"$f":"[1]ACS_16_5YR_B05002_with_ann!M271","v":91},{"$f":"[1]ACS_16_5YR_B05002_with_ann!N271","v":53},{"$f":"[1]ACS_16_5YR_B05002_with_ann!O271","v":29},{"$f":"[1]ACS_16_5YR_B05002_with_ann!P271","v":52},{"$f":"[1]ACS_16_5YR_B05002_with_ann!Q271","v":31},{"$f":"[1]ACS_16_5YR_B05002_with_ann!R271","v":29},{"$f":"[1]ACS_16_5YR_B05002_with_ann!S271","v":21},{"$f":"[1]ACS_16_5YR_B05002_with_ann!T271","v":3},{"$f":"[1]ACS_16_5YR_B05002_with_ann!U271","v":5},{"$f":"[1]ACS_16_5YR_B05002_with_ann!V271","v":3},{"$f":"[1]ACS_16_5YR_B05002_with_ann!W271","v":5},{"$f":"[1]ACS_16_5YR_B05002_with_ann!X271","v":0},{"$f":"[1]ACS_16_5YR_B05002_with_ann!Y271","v":11},{"$f":"[1]ACS_16_5YR_B05002_with_ann!Z271","v":0},{"$f":"[1]ACS_16_5YR_B05002_with_ann!AA271","v":11},{"$f":"[1]ACS_16_5YR_B05002_with_ann!AB271","v":16},{"$f":"[1]ACS_16_5YR_B05002_with_ann!AC271","v":14},{"$f":"[1]ACS_16_5YR_B05002_with_ann!AD271","v":11},{"$f":"[1]ACS_16_5YR_B05002_with_ann!AE271","v":12},{"$f":"[1]ACS_16_5YR_B05002_with_ann!AF271","v":11},{"$f":"[1]ACS_16_5YR_B05002_with_ann!AG271","v":12},{"$f":"[1]ACS_16_5YR_B05002_with_ann!AH271","v":0},{"$f":"[1]ACS_16_5YR_B05002_with_ann!AI271","v":11},{"$f":"[1]ACS_16_5YR_B05002_with_ann!AJ271","v":0},{"$f":"[1]ACS_16_5YR_B05002_with_ann!AK271","v":11},{"$f":"[1]ACS_16_5YR_B05002_with_ann!AL271","v":0},{"$f":"[1]ACS_16_5YR_B05002_with_ann!AM271","v":11},{"$f":"[1]ACS_16_5YR_B05002_with_ann!AN271","v":0},{"$f":"[1]ACS_16_5YR_B05002_with_ann!AO271","v":11},{"$f":"[1]ACS_16_5YR_B05002_with_ann!AP271","v":0},{"$f":"[1]ACS_16_5YR_B05002_with_ann!AQ271","v":11},{"$f":"[1]ACS_16_5YR_B05002_with_ann!AR271","v":5},{"$f":"[1]ACS_16_5YR_B05002_with_ann!AS271","v":11},{"$f":"[1]ACS_16_5YR_B05002_with_ann!AT271","v":0},{"$f":"[1]ACS_16_5YR_B05002_with_ann!AU271","v":11},{"$f":"[1]ACS_16_5YR_B05002_with_ann!AV271","v":0},{"$f":"[1]ACS_16_5YR_B05002_with_ann!AW271","v":11},{"$f":"[1]ACS_16_5YR_B05002_with_ann!AX271","v":0},{"$f":"[1]ACS_16_5YR_B05002_with_ann!AY271","v":11},{"$f":"[1]ACS_16_5YR_B05002_with_ann!AZ271","v":0},{"$f":"[1]ACS_16_5YR_B05002_with_ann!BA271","v":11},{"$f":"[1]ACS_16_5YR_B05002_with_ann!BB271","v":5},{"$f":"[1]ACS_16_5YR_B05002_with_ann!BC271","v":11},{"$f":"[1]ACS_16_5YR_B05002_with_ann!BD271","v":0},{"$f":"[1]ACS_16_5YR_B05002_with_ann!BE271","v":11}]
["0600000US3301978980",3301978980,"060","Washington",{"$f":"[1]ACS_16_5YR_B05002_with_ann!D272","v":1199},{"$f":"[1]ACS_16_5YR_B05002_with_ann!E272","v":188},{"$f":"[1]ACS_16_5YR_B05002_with_ann!F272","v":1148},{"$f":"[1]ACS_16_5YR_B05002_with_ann!G272","v":187},{"$f":"[1]ACS_16_5YR_B05002_with_ann!H272","v":553},{"$f":"[1]ACS_16_5YR_B05002_with_ann!I272","v":166},{"$f":"[1]ACS_16_5YR_B05002_with_ann!J272","v":589},{"$f":"[1]ACS_16_5YR_B05002_with_ann!K272","v":112},{"$f":"[1]ACS_16_5YR_B05002_with_ann!L272","v":506},{"$f":"[1]ACS_16_5YR_B05002_with_ann!M272","v":95},{"$f":"[1]ACS_16_5YR_B05002_with_ann!N272","v":35},{"$f":"[1]ACS_16_5YR_B05002_with_ann!O272","v":23},{"$f":"[1]ACS_16_5YR_B05002_with_ann!P272","v":42},{"$f":"[1]ACS_16_5YR_B05002_with_ann!Q272","v":35},{"$f":"[1]ACS_16_5YR_B05002_with_ann!R272","v":6},{"$f":"[1]ACS_16_5YR_B05002_with_ann!S272","v":5},{"$f":"[1]ACS_16_5YR_B05002_with_ann!T272","v":6},{"$f":"[1]ACS_16_5YR_B05002_with_ann!U272","v":6},{"$f":"[1]ACS_16_5YR_B05002_with_ann!V272","v":0},{"$f":"[1]ACS_16_5YR_B05002_with_ann!W272","v":11},{"$f":"[1]ACS_16_5YR_B05002_with_ann!X272","v":0},{"$f":"[1]ACS_16_5YR_B05002_with_ann!Y272","v":11},{"$f":"[1]ACS_16_5YR_B05002_with_ann!Z272","v":6},{"$f":"[1]ACS_16_5YR_B05002_with_ann!AA272","v":6},{"$f":"[1]ACS_16_5YR_B05002_with_ann!AB272","v":51},{"$f":"[1]ACS_16_5YR_B05002_with_ann!AC272","v":28},{"$f":"[1]ACS_16_5YR_B05002_with_ann!AD272","v":49},{"$f":"[1]ACS_16_5YR_B05002_with_ann!AE272","v":27},{"$f":"[1]ACS_16_5YR_B05002_with_ann!AF272","v":28},{"$f":"[1]ACS_16_5YR_B05002_with_ann!AG272","v":21},{"$f":"[1]ACS_16_5YR_B05002_with_ann!AH272","v":0},{"$f":"[1]ACS_16_5YR_B05002_with_ann!AI272","v":11},{"$f":"[1]ACS_16_5YR_B05002_with_ann!AJ272","v":0},{"$f":"[1]ACS_16_5YR_B05002_with_ann!AK272","v":11},{"$f":"[1]ACS_16_5YR_B05002_with_ann!AL272","v":0},{"$f":"[1]ACS_16_5YR_B05002_with_ann!AM272","v":11},{"$f":"[1]ACS_16_5YR_B05002_with_ann!AN272","v":11},{"$f":"[1]ACS_16_5YR_B05002_with_ann!AO272","v":13},{"$f":"[1]ACS_16_5YR_B05002_with_ann!AP272","v":10},{"$f":"[1]ACS_16_5YR_B05002_with_ann!AQ272","v":10},{"$f":"[1]ACS_16_5YR_B05002_with_ann!AR272","v":2},{"$f":"[1]ACS_16_5YR_B05002_with_ann!AS272","v":4},{"$f":"[1]ACS_16_5YR_B05002_with_ann!AT272","v":2},{"$f":"[1]ACS_16_5YR_B05002_with_ann!AU272","v":4},{"$f":"[1]ACS_16_5YR_B05002_with_ann!AV272","v":0},{"$f":"[1]ACS_16_5YR_B05002_with_ann!AW272","v":11},{"$f":"[1]ACS_16_5YR_B05002_with_ann!AX272","v":0},{"$f":"[1]ACS_16_5YR_B05002_with_ann!AY272","v":11},{"$f":"[1]ACS_16_5YR_B05002_with_ann!AZ272","v":0},{"$f":"[1]ACS_16_5YR_B05002_with_ann!BA272","v":11},{"$f":"[1]ACS_16_5YR_B05002_with_ann!BB272","v":0},{"$f":"[1]ACS_16_5YR_B05002_with_ann!BC272","v":11},{"$f":"[1]ACS_16_5YR_B05002_with_ann!BD272","v":0},{"$f":"[1]ACS_16_5YR_B05002_with_ann!BE272","v":11}]
[]
[null,null,null,null,{"$f":"$D$3","v":"Acworth"},null,{"$f":"$D$4","v":"Charlestown"},null,{"$f":"$D$5","v":"Claremont"},null,{"$f":"$D$6","v":"Cornish"},null,{"$f":"$D$7","v":"Croydon"},null,{"$f":"$D$8","v":"Goshen"},null,{"$f":"$D$9","v":"Grantham"},null,{"$f":"$D$10","v":"Langdon"},null,{"$f":"$D$11","v":"Lempster"},null,{"$f":"$D$12","v":"Newport"},null,{"$f":"$D$13","v":"Plainfield"},null,{"$f":"$D$14","v":"Springfield"},null,{"$f":"$D$15","v":"Sunapee"},null,{"$f":"$D$16","v":"Unity"},null,{"$f":"$D$17","v":"Washington"}]
[null,null,null,null,"Estimate","Margin Of Error","Estimate","Margin Of Error","Estimate","Margin Of Error","Estimate","Margin Of Error","Estimate","Margin Of Error","Estimate","Margin Of Error","Estimate","Margin Of Error","Estimate","Margin Of Error","Estimate","Margin Of Error","Estimate","Margin Of Error","Estimate","Margin Of Error","Estimate","Margin Of Error","Estimate","Margin Of Error",null,"Estimate","Margin Of Error"]
[null,null,null,"Estimate Total:",906,134,5019,19,12977,23,1783,217,863,244,702,108,2945,14,712,145,923,176,6374,19,2555,293,1084,198,3449,19,1613,156,1199,188]
[null,null,null,"Estimate Total: Native:",869,133,4862,135,12478,177,1746,213,849,243,680,106,2899,54,678,136,880,167,6285,73,2445,289,1060,201,3359,80,1597,152,1148,187]
[null,null,null,"Estimate Total: Native: Born in state of residence",378,85,2122,307,7149,509,828,156,603,190,374,93,1085,219,261,98,461,134,4251,423,1194,297,521,147,1654,213,831,125,553,166]
[null,null,null,"Estimate Total: Native: Born in other state in the United States:",491,86,2725,322,5181,523,880,115,246,79,304,75,1773,208,415,84,419,81,2006,414,1219,157,515,109,1673,195,763,105,589,112]
[null,null,null,"Estimate Total: Native: Born in other state in the United States: Northeast",413,80,2204,325,4059,525,597,86,205,73,235,62,1223,269,338,71,316,75,1334,323,902,141,396,99,1355,185,629,91,506,95]
[null,null,null,"Estimate Total: Native: Born in other state in the United States: Midwest",30,16,111,112,322,128,119,41,13,16,39,39,126,88,19,11,34,33,206,98,107,41,72,45,163,90,53,29,35,23]
[null,null,null,"Estimate Total: Native: Born in other state in the United States: South",30,18,218,113,414,144,122,46,7,6,27,18,207,92,46,31,37,25,309,183,158,65,38,31,93,62,52,31,42,35]
[null,null,null,"Estimate Total: Native: Born in other state in the United States: West",18,17,192,132,386,161,42,23,21,17,3,4,217,118,12,14,32,26,157,136,52,47,9,14,62,43,29,21,6,5]
[null,null,null,"Estimate Total: Native: Born outside the United States:",0,11,15,25,148,103,38,26,0,11,2,3,41,61,2,3,0,11,28,39,32,35,24,28,32,27,3,5,6,6]
[null,null,null,"Estimate Total: Native: Born outside the United States: Puerto Rico",0,11,0,16,1,4,0,11,0,11,0,11,0,11,0,11,0,11,0,16,0,11,0,11,0,11,3,5,0,11]
[null,null,null,"Estimate Total: Native: Born outside the United States: U.S. Island Areas",0,11,0,16,0,18,0,11,0,11,0,11,0,11,0,11,0,11,0,16,0,11,0,11,0,11,0,11,0,11]
[null,null,null,"Estimate Total: Native: Born outside the United States: Born abroad of American parent(s)",0,11,15,25,147,103,38,26,0,11,2,3,41,61,2,3,0,11,28,39,32,35,24,28,32,27,0,11,6,6]
[null,null,null,"Estimate Total: Foreign born:",37,22,157,131,499,172,37,24,14,12,22,23,46,53,34,22,43,51,89,75,110,72,24,28,90,79,16,14,51,28]
[null,null,null,"Estimate Total: Foreign born: Naturalized U.S. citizen",21,13,157,131,365,141,27,21,7,9,22,23,46,53,16,12,38,50,53,67,93,69,3,5,61,60,11,12,49,27]
[null,null,null,"Estimate Total: Foreign born: Naturalized U.S. citizen Europe",5,6,0,16,34,34,13,9,2,4,7,9,46,53,8,7,6,6,53,67,28,28,0,11,31,37,11,12,28,21]
[null,null,null,"Estimate Total: Foreign born: Naturalized U.S. citizen Asia",8,12,114,113,87,83,9,17,0,11,0,11,0,11,0,11,32,51,0,16,51,59,0,11,30,45,0,11,0,11]
[null,null,null,"Estimate Total: Foreign born: Naturalized U.S. citizen Africa",0,11,0,16,171,130,0,11,0,11,0,11,0,11,1,4,0,11,0,16,5,7,0,11,0,11,0,11,0,11]
[null,null,null,"Estimate Total: Foreign born: Naturalized U.S. citizen Oceania",0,11,0,16,0,18,0,11,0,11,0,11,0,11,0,11,0,11,0,16,0,11,0,11,0,11,0,11,0,11]
[null,null,null,"Estimate Total: Foreign born: Naturalized U.S. citizen Latin America",5,5,0,16,30,64,5,7,0,11,8,15,0,11,7,9,0,11,0,16,0,11,0,11,0,11,0,11,11,13]
[null,null,null,"Estimate Total: Foreign born: Naturalized U.S. citizen Northern America",3,4,43,64,43,31,0,11,5,7,7,13,0,11,0,11,0,11,0,16,9,10,3,5,0,11,0,11,10,10]
[null,null,null,"Estimate Total: Foreign born: Not a U.S. citizen",16,17,0,16,134,99,10,9,7,7,0,11,0,11,18,17,5,5,36,37,17,15,21,30,29,36,5,11,2,4]
[null,null,null,"Estimate Total: Foreign born: Not a U.S. citizen Europe",14,17,0,16,41,55,10,9,5,6,0,11,0,11,7,12,5,5,11,17,6,9,21,30,22,24,0,11,2,4]
[null,null,null,"Estimate Total: Foreign born: Not a U.S. citizen Asia",0,11,0,16,51,62,0,11,0,11,0,11,0,11,9,13,0,11,0,16,0,11,0,11,0,11,0,11,0,11]
[null,null,null,"Estimate Total: Foreign born: Not a U.S. citizen Africa",0,11,0,16,0,18,0,11,0,11,0,11,0,11,0,11,0,11,13,29,0,11,0,11,7,16,0,11,0,11]
[null,null,null,"Estimate Total: Foreign born: Not a U.S. citizen Oceania",0,11,0,16,0,18,0,11,0,11,0,11,0,11,0,11,0,11,0,16,0,11,0,11,0,11,0,11,0,11]
[null,null,null,"Estimate Total: Foreign born: Not a U.S. citizen Latin America",0,11,0,16,34,51,0,11,0,11,0,11,0,11,0,11,0,11,0,16,0,11,0,11,0,11,5,11,0,11]
[null,null,null,"Estimate Total: Foreign born: Not a U.S. citizen Northern America",2,4,0,16,8,13,0,11,2,3,0,11,0,11,2,3,0,11,12,19,11,12,0,11,0,11,0,11,0,11]

{"sheet":"SData_B07003_ResidenceMobility","index":25,"n_rows":38,"n_cols":40,"rows_kept":38,"cut":false,"hidden":true,"merged":[]}
["GEO_ID","GEO_ID2","SUMLEVEL","GEO_NAME","B07003_1_EST","B07003_1_MOE","B07003_2_EST","B07003_2_MOE","B07003_3_EST","B07003_3_MOE","B07003_4_EST","B07003_4_MOE","B07003_5_EST","B07003_5_MOE","B07003_6_EST","B07003_6_MOE","B07003_7_EST","B07003_7_MOE","B07003_8_EST","B07003_8_MOE","B07003_9_EST","B07003_9_MOE","B07003_10_EST","B07003_10_MOE","B07003_11_EST","B07003_11_MOE","B07003_12_EST","B07003_12_MOE","B07003_13_EST","B07003_13_MOE","B07003_14_EST","B07003_14_MOE","B07003_15_EST","B07003_15_MOE","B07003_16_EST","B07003_16_MOE","B07003_17_EST","B07003_17_MOE","B07003_18_EST","B07003_18_MOE"]
["Geography Identifier","Geography Identifier","Geographic Summary Level","Geography",{"$f":"[1]ACS_16_5YR_B07003_with_ann!D$2","v":"Estimate Total:"},{"$f":"[1]ACS_16_5YR_B07003_with_ann!E$2","v":"Margin of Error Total:"},{"$f":"[1]ACS_16_5YR_B07003_with_ann!F$2","v":"Estimate Total: Male"},{"$f":"[1]ACS_16_5YR_B07003_with_ann!G$2","v":"Margin of Error Total: Male"},{"$f":"[1]ACS_16_5YR_B07003_with_ann!H$2","v":"Estimate Total: Female"},{"$f":"[1]ACS_16_5YR_B07003_with_ann!I$2","v":"Margin of Error Total: Female"},{"$f":"[1]ACS_16_5YR_B07003_with_ann!J$2","v":"Estimate Total: Same house 1 year ago:"},{"$f":"[1]ACS_16_5YR_B07003_with_ann!K$2","v":"Margin of Error Total: Same house 1 year ago:"},{"$f":"[1]ACS_16_5YR_B07003_with_ann!L$2","v":"Estimate Total: Same house 1 year ago: Male"},{"$f":"[1]ACS_16_5YR_B07003_with_ann!M$2","v":"Margin of Error Total: Same house 1 year ago: Male"},{"$f":"[1]ACS_16_5YR_B07003_with_ann!N$2","v":"Estimate Total: Same house 1 year ago: Female"},{"$f":"[1]ACS_16_5YR_B07003_with_ann!O$2","v":"Margin of Error Total: Same house 1 year ago: Female"},{"$f":"[1]ACS_16_5YR_B07003_with_ann!P$2","v":"Estimate Total: Moved within same County"},{"$f":"[1]ACS_16_5YR_B07003_with_ann!Q$2","v":"Margin of Error Total: Moved within same County"},{"$f":"[1]ACS_16_5YR_B07003_with_ann!R$2","v":"Estimate Total: Moved within same County"},{"$f":"[1]ACS_16_5YR_B07003_with_ann!S$2","v":"Margin of Error Total: Moved within same County"},{"$f":"[1]ACS_16_5YR_B07003_with_ann!T$2","v":"Estimate Total: Moved within same County"},{"$f":"[1]ACS_16_5YR_B07003_with_ann!U$2","v":"Margin of Error Total: Moved within same County"},{"$f":"[1]ACS_16_5YR_B07003_with_ann!V$2","v":"Estimate Total: Moved from different County"},{"$f":"[1]ACS_16_5YR_B07003_with_ann!W$2","v":"Margin of Error Total: Moved from different County"},{"$f":"[1]ACS_16_5YR_B07003_with_ann!X$2","v":"Estimate Total: Moved from different County"},{"$f":"[1]ACS_16_5YR_B07003_with_ann!Y$2","v":"Margin of Error Total: Moved from different County"},{"$f":"[1]ACS_16_5YR_B07003_with_ann!Z$2","v":"Estimate Total: Moved from different County"},{"$f":"[1]ACS_16_5YR_B07003_with_ann!AA$2","v":"Margin of Error Total: Moved from different County"},{"$f":"[1]ACS_16_5YR_B07003_with_ann!AB$2","v":"Estimate Total: Moved from different state:"},{"$f":"[1]ACS_16_5YR_B07003_with_ann!AC$2","v":"Margin of Error Total: Moved from different state:"},{"$f":"[1]ACS_16_5YR_B07003_with_ann!AD$2","v":"Estimate Total: Moved from different state: Male"},{"$f":"[1]ACS_16_5YR_B07003_with_ann!AE$2","v":"Margin of Error Total: Moved from different state: Male"},{"$f":"[1]ACS_16_5YR_B07003_with_ann!AF$2","v":"Estimate Total: Moved from different state: Female"},{"$f":"[1]ACS_16_5YR_B07003_with_ann!AG$2","v":"Margin of Error Total: Moved from different state: Female"},{"$f":"[1]ACS_16_5YR_B07003_with_ann!AH$2","v":"Estimate Total: Moved from abroad:"},{"$f":"[1]ACS_16_5YR_B07003_with_ann!AI$2","v":"Margin of Error Total: Moved from abroad:"},{"$f":"[1]ACS_16_5YR_B07003_with_ann!AJ$2","v":"Estimate Total: Moved from abroad: Male"},{"$f":"[1]ACS_16_5YR_B07003_with_ann!AK$2","v":"Margin of Error Total: Moved from abroad: Male"},{"$f":"[1]ACS_16_5YR_B07003_with_ann!AL$2","v":"Estimate Total: Moved from abroad: Female"},{"$f":"[1]ACS_16_5YR_B07003_with_ann!AM$2","v":"Margin of Error Total: Moved from abroad: Female"}]
["0600000US3301900259",3301900259,"060","Acworth",{"$f":"[1]ACS_16_5YR_B07003_with_ann!D258","v":896},{"$f":"[1]ACS_16_5YR_B07003_with_ann!E258","v":134},{"$f":"[1]ACS_16_5YR_B07003_with_ann!F258","v":481},{"$f":"[1]ACS_16_5YR_B07003_with_ann!G258","v":82},{"$f":"[1]ACS_16_5YR_B07003_with_ann!H258","v":415},{"$f":"[1]ACS_16_5YR_B07003_with_ann!I258","v":71},{"$f":"[1]ACS_16_5YR_B07003_with_ann!J258","v":863},{"$f":"[1]ACS_16_5YR_B07003_with_ann!K258","v":137},{"$f":"[1]ACS_16_5YR_B07003_with_ann!L258","v":466},{"$f":"[1]ACS_16_5YR_B07003_with_ann!M258","v":85},{"$f":"[1]ACS_16_5YR_B07003_with_ann!N258","v":397},{"$f":"[1]ACS_16_5YR_B07003_with_ann!O258","v":70},{"$f":"[1]ACS_16_5YR_B07003_with_ann!P258","v":26},{"$f":"[1]ACS_16_5YR_B07003_with_ann!Q258","v":39},{"$f":"[1]ACS_16_5YR_B07003_with_ann!R258","v":10},{"$f":"[1]ACS_16_5YR_B07003_with_ann!S258","v":15},{"$f":"[1]ACS_16_5YR_B07003_with_ann!T258","v":16},{"$f":"[1]ACS_16_5YR_B07003_with_ann!U258","v":25},{"$f":"[1]ACS_16_5YR_B07003_with_ann!V258","v":0},{"$f":"[1]ACS_16_5YR_B07003_with_ann!W258","v":11},{"$f":"[1]ACS_16_5YR_B07003_with_ann!X258","v":0},{"$f":"[1]ACS_16_5YR_B07003_with_ann!Y258","v":11},{"$f":"[1]ACS_16_5YR_B07003_with_ann!Z258","v":0},{"$f":"[1]ACS_16_5YR_B07003_with_ann!AA258","v":11},{"$f":"[1]ACS_16_5YR_B07003_with_ann!AB258","v":7},{"$f":"[1]ACS_16_5YR_B07003_with_ann!AC258","v":7},{"$f":"[1]ACS_16_5YR_B07003_with_ann!AD258","v":5},{"$f":"[1]ACS_16_5YR_B07003_with_ann!AE258","v":5},{"$f":"[1]ACS_16_5YR_B07003_with_ann!AF258","v":2},{"$f":"[1]ACS_16_5YR_B07003_with_ann!AG258","v":4},{"$f":"[1]ACS_16_5YR_B07003_with_ann!AH258","v":0},{"$f":"[1]ACS_16_5YR_B07003_with_ann!AI258","v":11},{"$f":"[1]ACS_16_5YR_B07003_with_ann!AJ258","v":0},{"$f":"[1]ACS_16_5YR_B07003_with_ann!AK258","v":11},{"$f":"[1]ACS_16_5YR_B07003_with_ann!AL258","v":0},{"$f":"[1]ACS_16_5YR_B07003_with_ann!AM258","v":11}]
["0600000US3301911380",3301911380,"060","Charlestown",{"$f":"[1]ACS_16_5YR_B07003_with_ann!D259","v":4984},{"$f":"[1]ACS_16_5YR_B07003_with_ann!E259","v":42},{"$f":"[1]ACS_16_5YR_B07003_with_ann!F259","v":2490},{"$f":"[1]ACS_16_5YR_B07003_with_ann!G259","v":232},{"$f":"[1]ACS_16_5YR_B07003_with_ann!H259","v":2494},{"$f":"[1]ACS_16_5YR_B07003_with_ann!I259","v":220},{"$f":"[1]ACS_16_5YR_B07003_with_ann!J259","v":3985},{"$f":"[1]ACS_16_5YR_B07003_with_ann!K259","v":428},{"$f":"[1]ACS_16_5YR_B07003_with_ann!L259","v":2070},{"$f":"[1]ACS_16_5YR_B07003_with_ann!M259","v":306},{"$f":"[1]ACS_16_5YR_B07003_with_ann!N259","v":1915},{"$f":"[1]ACS_16_5YR_B07003_with_ann!O259","v":281},{"$f":"[1]ACS_16_5YR_B07003_with_ann!P259","v":859},{"$f":"[1]ACS_16_5YR_B07003_with_ann!Q259","v":416},{"$f":"[1]ACS_16_5YR_B07003_with_ann!R259","v":386},{"$f":"[1]ACS_16_5YR_B07003_with_ann!S259","v":241},{"$f":"[1]ACS_16_5YR_B07003_with_ann!T259","v":473},{"$f":"[1]ACS_16_5YR_B07003_with_ann!U259","v":248},{"$f":"[1]ACS_16_5YR_B07003_with_ann!V259","v":115},{"$f":"[1]ACS_16_5YR_B07003_with_ann!W259","v":127},{"$f":"[1]ACS_16_5YR_B07003_with_ann!X259","v":34},{"$f":"[1]ACS_16_5YR_B07003_with_ann!Y259","v":52},{"$f":"[1]ACS_16_5YR_B07003_with_ann!Z259","v":81},{"$f":"[1]ACS_16_5YR_B07003_with_ann!AA259","v":82},{"$f":"[1]ACS_16_5YR_B07003_with_ann!AB259","v":25},{"$f":"[1]ACS_16_5YR_B07003_with_ann!AC259","v":31},{"$f":"[1]ACS_16_5YR_B07003_with_ann!AD259","v":0},{"$f":"[1]ACS_16_5YR_B07003_with_ann!AE259","v":16},{"$f":"[1]ACS_16_5YR_B07003_with_ann!AF259","v":25},{"$f":"[1]ACS_16_5YR_B07003_with_ann!AG259","v":31},{"$f":"[1]ACS_16_5YR_B07003_with_ann!AH259","v":0},{"$f":"[1]ACS_16_5YR_B07003_with_ann!AI259","v":16},{"$f":"[1]ACS_16_5YR_B07003_with_ann!AJ259","v":0},{"$f":"[1]ACS_16_5YR_B07003_with_ann!AK259","v":16},{"$f":"[1]ACS_16_5YR_B07003_with_ann!AL259","v":0},{"$f":"[1]ACS_16_5YR_B07003_with_ann!AM259","v":16}]
["0600000US3301912900",3301912900,"060","Claremont",{"$f":"[1]ACS_16_5YR_B07003_with_ann!D260","v":12884},{"$f":"[1]ACS_16_5YR_B07003_with_ann!E260","v":63},{"$f":"[1]ACS_16_5YR_B07003_with_ann!F260","v":6278},{"$f":"[1]ACS_16_5YR_B07003_with_ann!G260","v":280},{"$f":"[1]ACS_16_5YR_B07003_with_ann!H260","v":6606},{"$f":"[1]ACS_16_5YR_B07003_with_ann!I260","v":282},{"$f":"[1]ACS_16_5YR_B07003_with_ann!J260","v":11029},{"$f":"[1]ACS_16_5YR_B07003_with_ann!K260","v":576},{"$f":"[1]ACS_16_5YR_B07003_with_ann!L260","v":5422},{"$f":"[1]ACS_16_5YR_B07003_with_ann!M260","v":354},{"$f":"[1]ACS_16_5YR_B07003_with_ann!N260","v":5607},{"$f":"[1]ACS_16_5YR_B07003_with_ann!O260","v":388},{"$f":"[1]ACS_16_5YR_B07003_with_ann!P260","v":1452},{"$f":"[1]ACS_16_5YR_B07003_with_ann!Q260","v":537},{"$f":"[1]ACS_16_5YR_B07003_with_ann!R260","v":708},{"$f":"[1]ACS_16_5YR_B07003_with_ann!S260","v":309},{"$f":"[1]ACS_16_5YR_B07003_with_ann!T260","v":744},{"$f":"[1]ACS_16_5YR_B07003_with_ann!U260","v":309},{"$f":"[1]ACS_16_5YR_B07003_with_ann!V260","v":91},{"$f":"[1]ACS_16_5YR_B07003_with_ann!W260","v":108},{"$f":"[1]ACS_16_5YR_B07003_with_ann!X260","v":50},{"$f":"[1]ACS_16_5YR_B07003_with_ann!Y260","v":54},{"$f":"[1]ACS_16_5YR_B07003_with_ann!Z260","v":41},{"$f":"[1]ACS_16_5YR_B07003_with_ann!AA260","v":64},{"$f":"[1]ACS_16_5YR_B07003_with_ann!AB260","v":312},{"$f":"[1]ACS_16_5YR_B07003_with_ann!AC260","v":170},{"$f":"[1]ACS_16_5YR_B07003_with_ann!AD260","v":98},{"$f":"[1]ACS_16_5YR_B07003_with_ann!AE260","v":57},{"$f":"[1]ACS_16_5YR_B07003_with_ann!AF260","v":214},{"$f":"[1]ACS_16_5YR_B07003_with_ann!AG260","v":136},{"$f":"[1]ACS_16_5YR_B07003_with_ann!AH260","v":0},{"$f":"[1]ACS_16_5YR_B07003_with_ann!AI260","v":18},{"$f":"[1]ACS_16_5YR_B07003_with_ann!AJ260","v":0},{"$f":"[1]ACS_16_5YR_B07003_with_ann!AK260","v":18},{"$f":"[1]ACS_16_5YR_B07003_with_ann!AL260","v":0},{"$f":"[1]ACS_16_5YR_B07003_with_ann!AM260","v":18}]
["0600000US3301915060",3301915060,"060","Cornish",{"$f":"[1]ACS_16_5YR_B07003_with_ann!D261","v":1772},{"$f":"[1]ACS_16_5YR_B07003_with_ann!E261","v":215},{"$f":"[1]ACS_16_5YR_B07003_with_ann!F261","v":918},{"$f":"[1]ACS_16_5YR_B07003_with_ann!G261","v":150},{"$f":"[1]ACS_16_5YR_B07003_with_ann!H261","v":854},{"$f":"[1]ACS_16_5YR_B07003_with_ann!I261","v":100},{"$f":"[1]ACS_16_5YR_B07003_with_ann!J261","v":1693},{"$f":"[1]ACS_16_5YR_B07003_with_ann!K261","v":208},{"$f":"[1]ACS_16_5YR_B07003_with_ann!L261","v":871},{"$f":"[1]ACS_16_5YR_B07003_with_ann!M261","v":142},{"$f":"[1]ACS_16_5YR_B07003_with_ann!N261","v":822},{"$f":"[1]ACS_16_5YR_B07003_with_ann!O261","v":97},{"$f":"[1]ACS_16_5YR_B07003_with_ann!P261","v":39},{"$f":"[1]ACS_16_5YR_B07003_with_ann!Q261","v":29},{"$f":"[1]ACS_16_5YR_B07003_with_ann!R261","v":20},{"$f":"[1]ACS_16_5YR_B07003_with_ann!S261","v":17},{"$f":"[1]ACS_16_5YR_B07003_with_ann!T261","v":19},{"$f":"[1]ACS_16_5YR_B07003_with_ann!U261","v":15},{"$f":"[1]ACS_16_5YR_B07003_with_ann!V261","v":20},{"$f":"[1]ACS_16_5YR_B07003_with_ann!W261","v":20},{"$f":"[1]ACS_16_5YR_B07003_with_ann!X261","v":20},{"$f":"[1]ACS_16_5YR_B07003_with_ann!Y261","v":20},{"$f":"[1]ACS_16_5YR_B07003_with_ann!Z261","v":0},{"$f":"[1]ACS_16_5YR_B07003_with_ann!AA261","v":11},{"$f":"[1]ACS_16_5YR_B07003_with_ann!AB261","v":20},{"$f":"[1]ACS_16_5YR_B07003_with_ann!AC261","v":24},{"$f":"[1]ACS_16_5YR_B07003_with_ann!AD261","v":7},{"$f":"[1]ACS_16_5YR_B07003_with_ann!AE261","v":11},{"$f":"[1]ACS_16_5YR_B07003_with_ann!AF261","v":13},{"$f":"[1]ACS_16_5YR_B07003_with_ann!AG261","v":14},{"$f":"[1]ACS_16_5YR_B07003_with_ann!AH261","v":0},{"$f":"[1]ACS_16_5YR_B07003_with_ann!AI261","v":11},{"$f":"[1]ACS_16_5YR_B07003_with_ann!AJ261","v":0},{"$f":"[1]ACS_16_5YR_B07003_with_ann!AK261","v":11},{"$f":"[1]ACS_16_5YR_B07003_with_ann!AL261","v":0},{"$f":"[1]ACS_16_5YR_B07003_with_ann!AM261","v":11}]
["0600000US3301916340",3301916340,"060","Croydon",{"$f":"[1]ACS_16_5YR_B07003_with_ann!D262","v":859},{"$f":"[1]ACS_16_5YR_B07003_with_ann!E262","v":243},{"$f":"[1]ACS_16_5YR_B07003_with_ann!F262","v":423},{"$f":"[1]ACS_16_5YR_B07003_with_ann!G262","v":111},{"$f":"[1]ACS_16_5YR_B07003_with_ann!H262","v":436},{"$f":"[1]ACS_16_5YR_B07003_with_ann!I262","v":155},{"$f":"[1]ACS_16_5YR_B07003_with_ann!J262","v":820},{"$f":"[1]ACS_16_5YR_B07003_with_ann!K262","v":243},{"$f":"[1]ACS_16_5YR_B07003_with_ann!L262","v":404},{"$f":"[1]ACS_16_5YR_B07003_with_ann!M262","v":109},{"$f":"[1]ACS_16_5YR_B07003_with_ann!N262","v":416},{"$f":"[1]ACS_16_5YR_B07003_with_ann!O262","v":155},{"$f":"[1]ACS_16_5YR_B07003_with_ann!P262","v":26},{"$f":"[1]ACS_16_5YR_B07003_with_ann!Q262","v":18},{"$f":"[1]ACS_16_5YR_B07003_with_ann!R262","v":15},{"$f":"[1]ACS_16_5YR_B07003_with_ann!S262","v":14},{"$f":"[1]ACS_16_5YR_B07003_with_ann!T262","v":11},{"$f":"[1]ACS_16_5YR_B07003_with_ann!U262","v":13},{"$f":"[1]ACS_16_5YR_B07003_with_ann!V262","v":5},{"$f":"[1]ACS_16_5YR_B07003_with_ann!W262","v":7},{"$f":"[1]ACS_16_5YR_B07003_with_ann!X262","v":2},{"$f":"[1]ACS_16_5YR_B07003_with_ann!Y262","v":4},{"$f":"[1]ACS_16_5YR_B07003_with_ann!Z262","v":3},{"$f":"[1]ACS_16_5YR_B07003_with_ann!AA262","v":4},{"$f":"[1]ACS_16_5YR_B07003_with_ann!AB262","v":8},{"$f":"[1]ACS_16_5YR_B07003_with_ann!AC262","v":13},{"$f":"[1]ACS_16_5YR_B07003_with_ann!AD262","v":2},{"$f":"[1]ACS_16_5YR_B07003_with_ann!AE262","v":4},{"$f":"[1]ACS_16_5YR_B07003_with_ann!AF262","v":6},{"$f":"[1]ACS_16_5YR_B07003_with_ann!AG262","v":9},{"$f":"[1]ACS_16_5YR_B07003_with_ann!AH262","v":0},{"$f":"[1]ACS_16_5YR_B07003_with_ann!AI262","v":11},{"$f":"[1]ACS_16_5YR_B07003_with_ann!AJ262","v":0},{"$f":"[1]ACS_16_5YR_B07003_with_ann!AK262","v":11},{"$f":"[1]ACS_16_5YR_B07003_with_ann!AL262","v":0},{"$f":"[1]ACS_16_5YR_B07003_with_ann!AM262","v":11}]
["0600000US3301930500",3301930500,"060","Goshen",{"$f":"[1]ACS_16_5YR_B07003_with_ann!D263","v":697},{"$f":"[1]ACS_16_5YR_B07003_with_ann!E263","v":106},{"$f":"[1]ACS_16_5YR_B07003_with_ann!F263","v":351},{"$f":"[1]ACS_16_5YR_B07003_with_ann!G263","v":69},{"$f":"[1]ACS_16_5YR_B07003_with_ann!H263","v":346},{"$f":"[1]ACS_16_5YR_B07003_with_ann!I263","v":57},{"$f":"[1]ACS_16_5YR_B07003_with_ann!J263","v":614},{"$f":"[1]ACS_16_5YR_B07003_with_ann!K263","v":104},{"$f":"[1]ACS_16_5YR_B07003_with_ann!L263","v":308},{"$f":"[1]ACS_16_5YR_B07003_with_ann!M263","v":67},{"$f":"[1]ACS_16_5YR_B07003_with_ann!N263","v":306},{"$f":"[1]ACS_16_5YR_B07003_with_ann!O263","v":57},{"$f":"[1]ACS_16_5YR_B07003_with_ann!P263","v":69},{"$f":"[1]ACS_16_5YR_B07003_with_ann!Q263","v":56},{"$f":"[1]ACS_16_5YR_B07003_with_ann!R263","v":35},{"$f":"[1]ACS_16_5YR_B07003_with_ann!S263","v":29},{"$f":"[1]ACS_16_5YR_B07003_with_ann!T263","v":34},{"$f":"[1]ACS_16_5YR_B07003_with_ann!U263","v":30},{"$f":"[1]ACS_16_5YR_B07003_with_ann!V263","v":5},{"$f":"[1]ACS_16_5YR_B07003_with_ann!W263","v":7},{"$f":"[1]ACS_16_5YR_B07003_with_ann!X263","v":3},{"$f":"[1]ACS_16_5YR_B07003_with_ann!Y263","v":4},{"$f":"[1]ACS_16_5YR_B07003_with_ann!Z263","v":2},{"$f":"[1]ACS_16_5YR_B07003_with_ann!AA263","v":4},{"$f":"[1]ACS_16_5YR_B07003_with_ann!AB263","v":9},{"$f":"[1]ACS_16_5YR_B07003_with_ann!AC263","v":7},{"$f":"[1]ACS_16_5YR_B07003_with_ann!AD263","v":5},{"$f":"[1]ACS_16_5YR_B07003_with_ann!AE263","v":5},{"$f":"[1]ACS_16_5YR_B07003_with_ann!AF263","v":4},{"$f":"[1]ACS_16_5YR_B07003_with_ann!AG263","v":4},{"$f":"[1]ACS_16_5YR_B07003_with_ann!AH263","v":0},{"$f":"[1]ACS_16_5YR_B07003_with_ann!AI263","v":11},{"$f":"[1]ACS_16_5YR_B07003_with_ann!AJ263","v":0},{"$f":"[1]ACS_16_5YR_B07003_with_ann!AK263","v":11},{"$f":"[1]ACS_16_5YR_B07003_with_ann!AL263","v":0},{"$f":"[1]ACS_16_5YR_B07003_with_ann!AM263","v":11}]
["0600000US3301931220",3301931220,"060","Grantham",{"$f":"[1]ACS_16_5YR_B07003_with_ann!D264","v":2945},{"$f":"[1]ACS_16_5YR_B07003_with_ann!E264","v":14},{"$f":"[1]ACS_16_5YR_B07003_with_ann!F264","v":1382},{"$f":"[1]ACS_16_5YR_B07003_with_ann!G264","v":143},{"$f":"[1]ACS_16_5YR_B07003_with_ann!H264","v":1563},{"$f":"[1]ACS_16_5YR_B07003_with_ann!I264","v":142},{"$f":"[1]ACS_16_5YR_B07003_with_ann!J264","v":2630},{"$f":"[1]ACS_16_5YR_B07003_with_ann!K264","v":227},{"$f":"[1]ACS_16_5YR_B07003_with_ann!L264","v":1211},{"$f":"[1]ACS_16_5YR_B07003_with_ann!M264","v":196},{"$f":"[1]ACS_16_5YR_B07003_with_ann!N264","v":1419},{"$f":"[1]ACS_16_5YR_B07003_with_ann!O264","v":161},{"$f":"[1]ACS_16_5YR_B07003_with_ann!P264","v":77},{"$f":"[1]ACS_16_5YR_B07003_with_ann!Q264","v":87},{"$f":"[1]ACS_16_5YR_B07003_with_ann!R264","v":45},{"$f":"[1]ACS_16_5YR_B07003_with_ann!S264","v":57},{"$f":"[1]ACS_16_5YR_B07003_with_ann!T264","v":32},{"$f":"[1]ACS_16_5YR_B07003_with_ann!U264","v":35},{"$f":"[1]ACS_16_5YR_B07003_with_ann!V264","v":206},{"$f":"[1]ACS_16_5YR_B07003_with_ann!W264","v":205},{"$f":"[1]ACS_16_5YR_B07003_with_ann!X264","v":111},{"$f":"[1]ACS_16_5YR_B07003_with_ann!Y264","v":127},{"$f":"[1]ACS_16_5YR_B07003_with_ann!Z264","v":95},{"$f":"[1]ACS_16_5YR_B07003_with_ann!AA264","v":89},{"$f":"[1]ACS_16_5YR_B07003_with_ann!AB264","v":32},{"$f":"[1]ACS_16_5YR_B07003_with_ann!AC264","v":46},{"$f":"[1]ACS_16_5YR_B07003_with_ann!AD264","v":15},{"$f":"[1]ACS_16_5YR_B07003_with_ann!AE264","v":22},{"$f":"[1]ACS_16_5YR_B07003_with_ann!AF264","v":17},{"$f":"[1]ACS_16_5YR_B07003_with_ann!AG264","v":24},{"$f":"[1]ACS_16_5YR_B07003_with_ann!AH264","v":0},{"$f":"[1]ACS_16_5YR_B07003_with_ann!AI264","v":11},{"$f":"[1]ACS_16_5YR_B07003_with_ann!AJ264","v":0},{"$f":"[1]ACS_16_5YR_B07003_with_ann!AK264","v":11},{"$f":"[1]ACS_16_5YR_B07003_with_ann!AL264","v":0},{"$f":"[1]ACS_16_5YR_B07003_with_ann!AM264","v":11}]
["0600000US3301940900",3301940900,"060","Langdon",{"$f":"[1]ACS_16_5YR_B07003_with_ann!D265","v":712},{"$f":"[1]ACS_16_5YR_B07003_with_ann!E265","v":145},{"$f":"[1]ACS_16_5YR_B07003_with_ann!F265","v":342},{"$f":"[1]ACS_16_5YR_B07003_with_ann!G265","v":85},{"$f":"[1]ACS_16_5YR_B07003_with_ann!H265","v":370},{"$f":"[1]ACS_16_5YR_B07003_with_ann!I265","v":73},{"$f":"[1]ACS_16_5YR_B07003_with_ann!J265","v":679},{"$f":"[1]ACS_16_5YR_B07003_with_ann!K265","v":142},{"$f":"[1]ACS_16_5YR_B07003_with_ann!L265","v":332},{"$f":"[1]ACS_16_5YR_B07003_with_ann!M265","v":84},{"$f":"[1]ACS_16_5YR_B07003_with_ann!N265","v":347},{"$f":"[1]ACS_16_5YR_B07003_with_ann!O265","v":71},{"$f":"[1]ACS_16_5YR_B07003_with_ann!P265","v":16},{"$f":"[1]ACS_16_5YR_B07003_with_ann!Q265","v":14},{"$f":"[1]ACS_16_5YR_B07003_with_ann!R265","v":5},{"$f":"[1]ACS_16_5YR_B07003_with_ann!S265","v":6},{"$f":"[1]ACS_16_5YR_B07003_with_ann!T265","v":11},{"$f":"[1]ACS_16_5YR_B07003_with_ann!U265","v":11},{"$f":"[1]ACS_16_5YR_B07003_with_ann!V265","v":7},{"$f":"[1]ACS_16_5YR_B07003_with_ann!W265","v":9},{"$f":"[1]ACS_16_5YR_B07003_with_ann!X265","v":5},{"$f":"[1]ACS_16_5YR_B07003_with_ann!Y265","v":5},{"$f":"[1]ACS_16_5YR_B07003_with_ann!Z265","v":2},{"$f":"[1]ACS_16_5YR_B07003_with_ann!AA265","v":4},{"$f":"[1]ACS_16_5YR_B07003_with_ann!AB265","v":4},{"$f":"[1]ACS_16_5YR_B07003_with_ann!AC265","v":6},{"$f":"[1]ACS_16_5YR_B07003_with_ann!AD265","v":0},{"$f":"[1]ACS_16_5YR_B07003_with_ann!AE265","v":11},{"$f":"[1]ACS_16_5YR_B07003_with_ann!AF265","v":4},{"$f":"[1]ACS_16_5YR_B07003_with_ann!AG265","v":6},{"$f":"[1]ACS_16_5YR_B07003_with_ann!AH265","v":6},{"$f":"[1]ACS_16_5YR_B07003_with_ann!AI265","v":10},{"$f":"[1]ACS_16_5YR_B07003_with_ann!AJ265","v":0},{"$f":"[1]ACS_16_5YR_B07003_with_ann!AK265","v":11},{"$f":"[1]ACS_16_5YR_B07003_with_ann!AL265","v":6},{"$f":"[1]ACS_16_5YR_B07003_with_ann!AM265","v":10}]
["0600000US3301941700",3301941700,"060","Lempster",{"$f":"[1]ACS_16_5YR_B07003_with_ann!D266","v":908},{"$f":"[1]ACS_16_5YR_B07003_with_ann!E266","v":166},{"$f":"[1]ACS_16_5YR_B07003_with_ann!F266","v":423},{"$f":"[1]ACS_16_5YR_B07003_with_ann!G266","v":71},{"$f":"[1]ACS_16_5YR_B07003_with_ann!H266","v":485},{"$f":"[1]ACS_16_5YR_B07003_with_ann!I266","v":123},{"$f":"[1]ACS_16_5YR_B07003_with_ann!J266","v":873},{"$f":"[1]ACS_16_5YR_B07003_with_ann!K266","v":169},{"$f":"[1]ACS_16_5YR_B07003_with_ann!L266","v":402},{"$f":"[1]ACS_16_5YR_B07003_with_ann!M266","v":74},{"$f":"[1]ACS_16_5YR_B07003_with_ann!N266","v":471},{"$f":"[1]ACS_16_5YR_B07003_with_ann!O266","v":123},{"$f":"[1]ACS_16_5YR_B07003_with_ann!P266","v":23},{"$f":"[1]ACS_16_5YR_B07003_with_ann!Q266","v":18},{"$f":"[1]ACS_16_5YR_B07003_with_ann!R266","v":15},{"$f":"[1]ACS_16_5YR_B07003_with_ann!S266","v":15},{"$f":"[1]ACS_16_5YR_B07003_with_ann!T266","v":8},{"$f":"[1]ACS_16_5YR_B07003_with_ann!U266","v":6},{"$f":"[1]ACS_16_5YR_B07003_with_ann!V266","v":0},{"$f":"[1]ACS_16_5YR_B07003_with_ann!W266","v":11},{"$f":"[1]ACS_16_5YR_B07003_with_ann!X266","v":0},{"$f":"[1]ACS_16_5YR_B07003_with_ann!Y266","v":11},{"$f":"[1]ACS_16_5YR_B07003_with_ann!Z266","v":0},{"$f":"[1]ACS_16_5YR_B07003_with_ann!AA266","v":11},{"$f":"[1]ACS_16_5YR_B07003_with_ann!AB266","v":9},{"$f":"[1]ACS_16_5YR_B07003_with_ann!AC266","v":8},{"$f":"[1]ACS_16_5YR_B07003_with_ann!AD266","v":3},{"$f":"[1]ACS_16_5YR_B07003_with_ann!AE266","v":4},{"$f":"[1]ACS_16_5YR_B07003_with_ann!AF266","v":6},{"$f":"[1]ACS_16_5YR_B07003_with_ann!AG266","v":7},{"$f":"[1]ACS_16_5YR_B07003_with_ann!AH266","v":3},{"$f":"[1]ACS_16_5YR_B07003_with_ann!AI266","v":4},{"$f":"[1]ACS_16_5YR_B07003_with_ann!AJ266","v":3},{"$f":"[1]ACS_16_5YR_B07003_with_ann!AK266","v":4},{"$f":"[1]ACS_16_5YR_B07003_with_ann!AL266","v":0},{"$f":"[1]ACS_16_5YR_B07003_with_ann!AM266","v":11}]
["0600000US3301952580",3301952580,"060","Newport",{"$f":"[1]ACS_16_5YR_B07003_with_ann!D267","v":6362},{"$f":"[1]ACS_16_5YR_B07003_with_ann!E267","v":28},{"$f":"[1]ACS_16_5YR_B07003_with_ann!F267","v":3287},{"$f":"[1]ACS_16_5YR_B07003_with_ann!G267","v":221},{"$f":"[1]ACS_16_5YR_B07003_with_ann!H267","v":3075},{"$f":"[1]ACS_16_5YR_B07003_with_ann!I267","v":220},{"$f":"[1]ACS_16_5YR_B07003_with_ann!J267","v":5832},{"$f":"[1]ACS_16_5YR_B07003_with_ann!K267","v":221},{"$f":"[1]ACS_16_5YR_B07003_with_ann!L267","v":3001},{"$f":"[1]ACS_16_5YR_B07003_with_ann!M267","v":254},{"$f":"[1]ACS_16_5YR_B07003_with_ann!N267","v":2831},{"$f":"[1]ACS_16_5YR_B07003_with_ann!O267","v":209},{"$f":"[1]ACS_16_5YR_B07003_with_ann!P267","v":342},{"$f":"[1]ACS_16_5YR_B07003_with_ann!Q267","v":128},{"$f":"[1]ACS_16_5YR_B07003_with_ann!R267","v":136},{"$f":"[1]ACS_16_5YR_B07003_with_ann!S267","v":85},{"$f":"[1]ACS_16_5YR_B07003_with_ann!T267","v":206},{"$f":"[1]ACS_16_5YR_B07003_with_ann!U267","v":104},{"$f":"[1]ACS_16_5YR_B07003_with_ann!V267","v":72},{"$f":"[1]ACS_16_5YR_B07003_with_ann!W267","v":69},{"$f":"[1]ACS_16_5YR_B07003_with_ann!X267","v":72},{"$f":"[1]ACS_16_5YR_B07003_with_ann!Y267","v":69},{"$f":"[1]ACS_16_5YR_B07003_with_ann!Z267","v":0},{"$f":"[1]ACS_16_5YR_B07003_with_ann!AA267","v":16},{"$f":"[1]ACS_16_5YR_B07003_with_ann!AB267","v":104},{"$f":"[1]ACS_16_5YR_B07003_with_ann!AC267","v":78},{"$f":"[1]ACS_16_5YR_B07003_with_ann!AD267","v":78},{"$f":"[1]ACS_16_5YR_B07003_with_ann!AE267","v":72},{"$f":"[1]ACS_16_5YR_B07003_with_ann!AF267","v":26},{"$f":"[1]ACS_16_5YR_B07003_with_ann!AG267","v":22},{"$f":"[1]ACS_16_5YR_B07003_with_ann!AH267","v":12},{"$f":"[1]ACS_16_5YR_B07003_with_ann!AI267","v":18},{"$f":"[1]ACS_16_5YR_B07003_with_ann!AJ267","v":0},{"$f":"[1]ACS_16_5YR_B07003_with_ann!AK267","v":16},{"$f":"[1]ACS_16_5YR_B07003_with_ann!AL267","v":12},{"$f":"[1]ACS_16_5YR_B07003_with_ann!AM267","v":18}]
["0600000US3301962340",3301962340,"060","Plainfield",{"$f":"[1]ACS_16_5YR_B07003_with_ann!D268","v":2551},{"$f":"[1]ACS_16_5YR_B07003_with_ann!E268","v":293},{"$f":"[1]ACS_16_5YR_B07003_with_ann!F268","v":1274},{"$f":"[1]ACS_16_5YR_B07003_with_ann!G268","v":173},{"$f":"[1]ACS_16_5YR_B07003_with_ann!H268","v":1277},{"$f":"[1]ACS_16_5YR_B07003_with_ann!I268","v":157},{"$f":"[1]ACS_16_5YR_B07003_with_ann!J268","v":2325},{"$f":"[1]ACS_16_5YR_B07003_with_ann!K268","v":281},{"$f":"[1]ACS_16_5YR_B07003_with_ann!L268","v":1167},{"$f":"[1]ACS_16_5YR_B07003_with_ann!M268","v":169},{"$f":"[1]ACS_16_5YR_B07003_with_ann!N268","v":1158},{"$f":"[1]ACS_16_5YR_B07003_with_ann!O268","v":152},{"$f":"[1]ACS_16_5YR_B07003_with_ann!P268","v":79},{"$f":"[1]ACS_16_5YR_B07003_with_ann!Q268","v":69},{"$f":"[1]ACS_16_5YR_B07003_with_ann!R268","v":30},{"$f":"[1]ACS_16_5YR_B07003_with_ann!S268","v":32},{"$f":"[1]ACS_16_5YR_B07003_with_ann!T268","v":49},{"$f":"[1]ACS_16_5YR_B07003_with_ann!U268","v":40},{"$f":"[1]ACS_16_5YR_B07003_with_ann!V268","v":70},{"$f":"[1]ACS_16_5YR_B07003_with_ann!W268","v":58},{"$f":"[1]ACS_16_5YR_B07003_with_ann!X268","v":29},{"$f":"[1]ACS_16_5YR_B07003_with_ann!Y268","v":32},{"$f":"[1]ACS_16_5YR_B07003_with_ann!Z268","v":41},{"$f":"[1]ACS_16_5YR_B07003_with_ann!AA268","v":38},{"$f":"[1]ACS_16_5YR_B07003_with_ann!AB268","v":77},{"$f":"[1]ACS_16_5YR_B07003_with_ann!AC268","v":65},{"$f":"[1]ACS_16_5YR_B07003_with_ann!AD268","v":48},{"$f":"[1]ACS_16_5YR_B07003_with_ann!AE268","v":56},{"$f":"[1]ACS_16_5YR_B07003_with_ann!AF268","v":29},{"$f":"[1]ACS_16_5YR_B07003_with_ann!AG268","v":30},{"$f":"[1]ACS_16_5YR_B07003_with_ann!AH268","v":0},{"$f":"[1]ACS_16_5YR_B07003_with_ann!AI268","v":11},{"$f":"[1]ACS_16_5YR_B07003_with_ann!AJ268","v":0},{"$f":"[1]ACS_16_5YR_B07003_with_ann!AK268","v":11},{"$f":"[1]ACS_16_5YR_B07003_with_ann!AL268","v":0},{"$f":"[1]ACS_16_5YR_B07003_with_ann!AM268","v":11}]
["0600000US3301972740",3301972740,"060","Springfield",{"$f":"[1]ACS_16_5YR_B07003_with_ann!D269","v":1082},{"$f":"[1]ACS_16_5YR_B07003_with_ann!E269","v":198},{"$f":"[1]ACS_16_5YR_B07003_with_ann!F269","v":575},{"$f":"[1]ACS_16_5YR_B07003_with_ann!G269","v":112},{"$f":"[1]ACS_16_5YR_B07003_with_ann!H269","v":507},{"$f":"[1]ACS_16_5YR_B07003_with_ann!I269","v":111},{"$f":"[1]ACS_16_5YR_B07003_with_ann!J269","v":1041},{"$f":"[1]ACS_16_5YR_B07003_with_ann!K269","v":197},{"$f":"[1]ACS_16_5YR_B07003_with_ann!L269","v":556},{"$f":"[1]ACS_16_5YR_B07003_with_ann!M269","v":113},{"$f":"[1]ACS_16_5YR_B07003_with_ann!N269","v":485},{"$f":"[1]ACS_16_5YR_B07003_with_ann!O269","v":111},{"$f":"[1]ACS_16_5YR_B07003_with_ann!P269","v":27},{"$f":"[1]ACS_16_5YR_B07003_with_ann!Q269","v":31},{"$f":"[1]ACS_16_5YR_B07003_with_ann!R269","v":19},{"$f":"[1]ACS_16_5YR_B07003_with_ann!S269","v":22},{"$f":"[1]ACS_16_5YR_B07003_with_ann!T269","v":8},{"$f":"[1]ACS_16_5YR_B07003_with_ann!U269","v":12},{"$f":"[1]ACS_16_5YR_B07003_with_ann!V269","v":5},{"$f":"[1]ACS_16_5YR_B07003_with_ann!W269","v":9},{"$f":"[1]ACS_16_5YR_B07003_with_ann!X269","v":0},{"$f":"[1]ACS_16_5YR_B07003_with_ann!Y269","v":11},{"$f":"[1]ACS_16_5YR_B07003_with_ann!Z269","v":5},{"$f":"[1]ACS_16_5YR_B07003_with_ann!AA269","v":9},{"$f":"[1]ACS_16_5YR_B07003_with_ann!AB269","v":9},{"$f":"[1]ACS_16_5YR_B07003_with_ann!AC269","v":16},{"$f":"[1]ACS_16_5YR_B07003_with_ann!AD269","v":0},{"$f":"[1]ACS_16_5YR_B07003_with_ann!AE269","v":11},{"$f":"[1]ACS_16_5YR_B07003_with_ann!AF269","v":9},{"$f":"[1]ACS_16_5YR_B07003_with_ann!AG269","v":16},{"$f":"[1]ACS_16_5YR_B07003_with_ann!AH269","v":0},{"$f":"[1]ACS_16_5YR_B07003_with_ann!AI269","v":11},{"$f":"[1]ACS_16_5YR_B07003_with_ann!AJ269","v":0},{"$f":"[1]ACS_16_5YR_B07003_with_ann!AK269","v":11},{"$f":"[1]ACS_16_5YR_B07003_with_ann!AL269","v":0},{"$f":"[1]ACS_16_5YR_B07003_with_ann!AM269","v":11}]
["0600000US3301975060",3301975060,"060","Sunapee",{"$f":"[1]ACS_16_5YR_B07003_with_ann!D270","v":3408},{"$f":"[1]ACS_16_5YR_B07003_with_ann!E270","v":45},{"$f":"[1]ACS_16_5YR_B07003_with_ann!F270","v":1772},{"$f":"[1]ACS_16_5YR_B07003_with_ann!G270","v":133},{"$f":"[1]ACS_16_5YR_B07003_with_ann!H270","v":1636},{"$f":"[1]ACS_16_5YR_B07003_with_ann!I270","v":125},{"$f":"[1]ACS_16_5YR_B07003_with_ann!J270","v":3075},{"$f":"[1]ACS_16_5YR_B07003_with_ann!K270","v":151},{"$f":"[1]ACS_16_5YR_B07003_with_ann!L270","v":1599},{"$f":"[1]ACS_16_5YR_B07003_with_ann!M270","v":161},{"$f":"[1]ACS_16_5YR_B07003_with_ann!N270","v":1476},{"$f":"[1]ACS_16_5YR_B07003_with_ann!O270","v":132},{"$f":"[1]ACS_16_5YR_B07003_with_ann!P270","v":145},{"$f":"[1]ACS_16_5YR_B07003_with_ann!Q270","v":81},{"$f":"[1]ACS_16_5YR_B07003_with_ann!R270","v":74},{"$f":"[1]ACS_16_5YR_B07003_with_ann!S270","v":66},{"$f":"[1]ACS_16_5YR_B07003_with_ann!T270","v":71},{"$f":"[1]ACS_16_5YR_B07003_with_ann!U270","v":40},{"$f":"[1]ACS_16_5YR_B07003_with_ann!V270","v":89},{"$f":"[1]ACS_16_5YR_B07003_with_ann!W270","v":67},{"$f":"[1]ACS_16_5YR_B07003_with_ann!X270","v":26},{"$f":"[1]ACS_16_5YR_B07003_with_ann!Y270","v":32},{"$f":"[1]ACS_16_5YR_B07003_with_ann!Z270","v":63},{"$f":"[1]ACS_16_5YR_B07003_with_ann!AA270","v":48},{"$f":"[1]ACS_16_5YR_B07003_with_ann!AB270","v":99},{"$f":"[1]ACS_16_5YR_B07003_with_ann!AC270","v":76},{"$f":"[1]ACS_16_5YR_B07003_with_ann!AD270","v":73},{"$f":"[1]ACS_16_5YR_B07003_with_ann!AE270","v":57},{"$f":"[1]ACS_16_5YR_B07003_with_ann!AF270","v":26},{"$f":"[1]ACS_16_5YR_B07003_with_ann!AG270","v":26},{"$f":"[1]ACS_16_5YR_B07003_with_ann!AH270","v":0},{"$f":"[1]ACS_16_5YR_B07003_with_ann!AI270","v":11},{"$f":"[1]ACS_16_5YR_B07003_with_ann!AJ270","v":0},{"$f":"[1]ACS_16_5YR_B07003_with_ann!AK270","v":11},{"$f":"[1]ACS_16_5YR_B07003_with_ann!AL270","v":0},{"$f":"[1]ACS_16_5YR_B07003_with_ann!AM270","v":11}]
["0600000US3301977940",3301977940,"060","Unity",{"$f":"[1]ACS_16_5YR_B07003_with_ann!D271","v":1603},{"$f":"[1]ACS_16_5YR_B07003_with_ann!E271","v":155},{"$f":"[1]ACS_16_5YR_B07003_with_ann!F271","v":743},{"$f":"[1]ACS_16_5YR_B07003_with_ann!G271","v":80},{"$f":"[1]ACS_16_5YR_B07003_with_ann!H271","v":860},{"$f":"[1]ACS_16_5YR_B07003_with_ann!I271","v":119},{"$f":"[1]ACS_16_5YR_B07003_with_ann!J271","v":1420},{"$f":"[1]ACS_16_5YR_B07003_with_ann!K271","v":146},{"$f":"[1]ACS_16_5YR_B07003_with_ann!L271","v":650},{"$f":"[1]ACS_16_5YR_B07003_with_ann!M271","v":64},{"$f":"[1]ACS_16_5YR_B07003_with_ann!N271","v":770},{"$f":"[1]ACS_16_5YR_B07003_with_ann!O271","v":118},{"$f":"[1]ACS_16_5YR_B07003_with_ann!P271","v":114},{"$f":"[1]ACS_16_5YR_B07003_with_ann!Q271","v":70},{"$f":"[1]ACS_16_5YR_B07003_with_ann!R271","v":68},{"$f":"[1]ACS_16_5YR_B07003_with_ann!S271","v":44},{"$f":"[1]ACS_16_5YR_B07003_with_ann!T271","v":46},{"$f":"[1]ACS_16_5YR_B07003_with_ann!U271","v":35},{"$f":"[1]ACS_16_5YR_B07003_with_ann!V271","v":46},{"$f":"[1]ACS_16_5YR_B07003_with_ann!W271","v":25},{"$f":"[1]ACS_16_5YR_B07003_with_ann!X271","v":14},{"$f":"[1]ACS_16_5YR_B07003_with_ann!Y271","v":16},{"$f":"[1]ACS_16_5YR_B07003_with_ann!Z271","v":32},{"$f":"[1]ACS_16_5YR_B07003_with_ann!AA271","v":20},{"$f":"[1]ACS_16_5YR_B07003_with_ann!AB271","v":13},{"$f":"[1]ACS_16_5YR_B07003_with_ann!AC271","v":12},{"$f":"[1]ACS_16_5YR_B07003_with_ann!AD271","v":6},{"$f":"[1]ACS_16_5YR_B07003_with_ann!AE271","v":6},{"$f":"[1]ACS_16_5YR_B07003_with_ann!AF271","v":7},{"$f":"[1]ACS_16_5YR_B07003_with_ann!AG271","v":6},{"$f":"[1]ACS_16_5YR_B07003_with_ann!AH271","v":10},{"$f":"[1]ACS_16_5YR_B07003_with_ann!AI271","v":13},{"$f":"[1]ACS_16_5YR_B07003_with_ann!AJ271","v":5},{"$f":"[1]ACS_16_5YR_B07003_with_ann!AK271","v":11},{"$f":"[1]ACS_16_5YR_B07003_with_ann!AL271","v":5},{"$f":"[1]ACS_16_5YR_B07003_with_ann!AM271","v":6}]
["0600000US3301978980",3301978980,"060","Washington",{"$f":"[1]ACS_16_5YR_B07003_with_ann!D272","v":1199},{"$f":"[1]ACS_16_5YR_B07003_with_ann!E272","v":188},{"$f":"[1]ACS_16_5YR_B07003_with_ann!F272","v":612},{"$f":"[1]ACS_16_5YR_B07003_with_ann!G272","v":109},{"$f":"[1]ACS_16_5YR_B07003_with_ann!H272","v":587},{"$f":"[1]ACS_16_5YR_B07003_with_ann!I272","v":104},{"$f":"[1]ACS_16_5YR_B07003_with_ann!J272","v":1066},{"$f":"[1]ACS_16_5YR_B07003_with_ann!K272","v":183},{"$f":"[1]ACS_16_5YR_B07003_with_ann!L272","v":521},{"$f":"[1]ACS_16_5YR_B07003_with_ann!M272","v":104},{"$f":"[1]ACS_16_5YR_B07003_with_ann!N272","v":545},{"$f":"[1]ACS_16_5YR_B07003_with_ann!O272","v":102},{"$f":"[1]ACS_16_5YR_B07003_with_ann!P272","v":22},{"$f":"[1]ACS_16_5YR_B07003_with_ann!Q272","v":14},{"$f":"[1]ACS_16_5YR_B07003_with_ann!R272","v":15},{"$f":"[1]ACS_16_5YR_B07003_with_ann!S272","v":10},{"$f":"[1]ACS_16_5YR_B07003_with_ann!T272","v":7},{"$f":"[1]ACS_16_5YR_B07003_with_ann!U272","v":7},{"$f":"[1]ACS_16_5YR_B07003_with_ann!V272","v":72},{"$f":"[1]ACS_16_5YR_B07003_with_ann!W272","v":58},{"$f":"[1]ACS_16_5YR_B07003_with_ann!X272","v":50},{"$f":"[1]ACS_16_5YR_B07003_with_ann!Y272","v":43},{"$f":"[1]ACS_16_5YR_B07003_with_ann!Z272","v":22},{"$f":"[1]ACS_16_5YR_B07003_with_ann!AA272","v":22},{"$f":"[1]ACS_16_5YR_B07003_with_ann!AB272","v":33},{"$f":"[1]ACS_16_5YR_B07003_with_ann!AC272","v":21},{"$f":"[1]ACS_16_5YR_B07003_with_ann!AD272","v":20},{"$f":"[1]ACS_16_5YR_B07003_with_ann!AE272","v":18},{"$f":"[1]ACS_16_5YR_B07003_with_ann!AF272","v":13},{"$f":"[1]ACS_16_5YR_B07003_with_ann!AG272","v":9},{"$f":"[1]ACS_16_5YR_B07003_with_ann!AH272","v":6},{"$f":"[1]ACS_16_5YR_B07003_with_ann!AI272","v":8},{"$f":"[1]ACS_16_5YR_B07003_with_ann!AJ272","v":6},{"$f":"[1]ACS_16_5YR_B07003_with_ann!AK272","v":8},{"$f":"[1]ACS_16_5YR_B07003_with_ann!AL272","v":0},{"$f":"[1]ACS_16_5YR_B07003_with_ann!AM272","v":11}]
[]
[null,null,null,null,{"$f":"$D$3","v":"Acworth"},null,{"$f":"$D$4","v":"Charlestown"},null,{"$f":"$D$5","v":"Claremont"},null,{"$f":"$D$6","v":"Cornish"},null,{"$f":"$D$7","v":"Croydon"},null,{"$f":"$D$8","v":"Goshen"},null,{"$f":"$D$9","v":"Grantham"},null,{"$f":"$D$10","v":"Langdon"},null,{"$f":"$D$11","v":"Lempster"},null,{"$f":"$D$12","v":"Newport"},null,{"$f":"$D$13","v":"Plainfield"},null,{"$f":"$D$14","v":"Springfield"},null,{"$f":"$D$15","v":"Sunapee"},null,{"$f":"$D$16","v":"Unity"},null,{"$f":"$D$17","v":"Washington"}]
[null,null,null,null,"Estimate","Margin Of Error","Estimate","Margin Of Error","Estimate","Margin Of Error","Estimate","Margin Of Error","Estimate","Margin Of Error","Estimate","Margin Of Error","Estimate","Margin Of Error","Estimate","Margin Of Error","Estimate","Margin Of Error","Estimate","Margin Of Error","Estimate","Margin Of Error","Estimate","Margin Of Error","Estimate","Margin Of Error",null,"Estimate","Margin Of Error"]
[null,null,null,"Estimate Total:",896,134,4984,42,12884,63,1772,215,859,243,697,106,2945,14,712,145,908,166,6362,28,2551,293,1082,198,3408,45,1603,155,1199,188]
[null,null,null,"Estimate Total: Male",481,82,2490,232,6278,280,918,150,423,111,351,69,1382,143,342,85,423,71,3287,221,1274,173,575,112,1772,133,743,80,612,109]
[null,null,null,"Estimate Total: Female",415,71,2494,220,6606,282,854,100,436,155,346,57,1563,142,370,73,485,123,3075,220,1277,157,507,111,1636,125,860,119,587,104]
[null,null,null,"Estimate Total: Same house 1 year ago:",863,137,3985,428,11029,576,1693,208,820,243,614,104,2630,227,679,142,873,169,5832,221,2325,281,1041,197,3075,151,1420,146,1066,183]
[null,null,null,"Estimate Total: Same house 1 year ago: Male",466,85,2070,306,5422,354,871,142,404,109,308,67,1211,196,332,84,402,74,3001,254,1167,169,556,113,1599,161,650,64,521,104]
[null,null,null,"Estimate Total: Same house 1 year ago: Female",397,70,1915,281,5607,388,822,97,416,155,306,57,1419,161,347,71,471,123,2831,209,1158,152,485,111,1476,132,770,118,545,102]
[null,null,null,"Estimate Total: Moved within same County",26,39,859,416,1452,537,39,29,26,18,69,56,77,87,16,14,23,18,342,128,79,69,27,31,145,81,114,70,22,14]
[null,null,null,"Estimate Total: Moved within same County",10,15,386,241,708,309,20,17,15,14,35,29,45,57,5,6,15,15,136,85,30,32,19,22,74,66,68,44,15,10]
[null,null,null,"Estimate Total: Moved within same County",16,25,473,248,744,309,19,15,11,13,34,30,32,35,11,11,8,6,206,104,49,40,8,12,71,40,46,35,7,7]
[null,null,null,"Estimate Total: Moved from different County",0,11,115,127,91,108,20,20,5,7,5,7,206,205,7,9,0,11,72,69,70,58,5,9,89,67,46,25,72,58]
[null,null,null,"Estimate Total: Moved from different County",0,11,34,52,50,54,20,20,2,4,3,4,111,127,5,5,0,11,72,69,29,32,0,11,26,32,14,16,50,43]
[null,null,null,"Estimate Total: Moved from different County",0,11,81,82,41,64,0,11,3,4,2,4,95,89,2,4,0,11,0,16,41,38,5,9,63,48,32,20,22,22]
[null,null,null,"Estimate Total: Moved from different state:",7,7,25,31,312,170,20,24,8,13,9,7,32,46,4,6,9,8,104,78,77,65,9,16,99,76,13,12,33,21]
[null,null,null,"Estimate Total: Moved from different state: Male",5,5,0,16,98,57,7,11,2,4,5,5,15,22,0,11,3,4,78,72,48,56,0,11,73,57,6,6,20,18]
[null,null,null,"Estimate Total: Moved from different state: Female",2,4,25,31,214,136,13,14,6,9,4,4,17,24,4,6,6,7,26,22,29,30,9,16,26,26,7,6,13,9]
[null,null,null,"Estimate Total: Moved from abroad:",0,11,0,16,0,18,0,11,0,11,0,11,0,11,6,10,3,4,12,18,0,11,0,11,0,11,10,13,6,8]
[null,null,null,"Estimate Total: Moved from abroad: Male",0,11,0,16,0,18,0,11,0,11,0,11,0,11,0,11,3,4,0,16,0,11,0,11,0,11,5,11,6,8]
[null,null,null,"Estimate Total: Moved from abroad: Female",0,11,0,16,0,18,0,11,0,11,0,11,0,11,6,10,0,11,12,18,0,11,0,11,0,11,5,6,0,11]

{"sheet":"SData_B08303Commuting","index":26,"n_rows":33,"n_cols":34,"rows_kept":33,"cut":false,"hidden":true,"merged":[]}
["GEO_ID","GEO_ID2","SUMLEVEL",null,"VD01","VD01","VD02","VD02","VD03","VD03","VD04","VD04","VD05","VD05","VD06","VD06","VD07","VD07","VD08","VD08","VD09","VD09","VD10","VD10","VD11","VD11","VD12","VD12","VD13","VD13"]
["Geography Identifier","Geography Identifier","Geographic Summary Level","Geography",{"$f":"[1]ACS_16_5YR_B08303_with_ann!D$2","v":"Estimate Total:"},{"$f":"[1]ACS_16_5YR_B08303_with_ann!E$2","v":"Margin of Error Total:"},{"$f":"[1]ACS_16_5YR_B08303_with_ann!F$2","v":"Estimate Total: Less than 5 minutes"},{"$f":"[1]ACS_16_5YR_B08303_with_ann!G$2","v":"Margin of Error Total: Less than 5 minutes"},{"$f":"[1]ACS_16_5YR_B08303_with_ann!H$2","v":"Estimate Total: 5 to 9 minutes"},{"$f":"[1]ACS_16_5YR_B08303_with_ann!I$2","v":"Margin of Error Total: 5 to 9 minutes"},{"$f":"[1]ACS_16_5YR_B08303_with_ann!J$2","v":"Estimate Total: 10 to 14 minutes"},{"$f":"[1]ACS_16_5YR_B08303_with_ann!K$2","v":"Margin of Error Total: 10 to 14 minutes"},{"$f":"[1]ACS_16_5YR_B08303_with_ann!L$2","v":"Estimate Total: 15 to 19 minutes"},{"$f":"[1]ACS_16_5YR_B08303_with_ann!M$2","v":"Margin of Error Total: 15 to 19 minutes"},{"$f":"[1]ACS_16_5YR_B08303_with_ann!N$2","v":"Estimate Total: 20 to 24 minutes"},{"$f":"[1]ACS_16_5YR_B08303_with_ann!O$2","v":"Margin of Error Total: 20 to 24 minutes"},{"$f":"[1]ACS_16_5YR_B08303_with_ann!P$2","v":"Estimate Total: 25 to 29 minutes"},{"$f":"[1]ACS_16_5YR_B08303_with_ann!Q$2","v":"Margin of Error Total: 25 to 29 minutes"},{"$f":"[1]ACS_16_5YR_B08303_with_ann!R$2","v":"Estimate Total: 30 to 34 minutes"},{"$f":"[1]ACS_16_5YR_B08303_with_ann!S$2","v":"Margin of Error Total: 30 to 34 minutes"},{"$f":"[1]ACS_16_5YR_B08303_with_ann!T$2","v":"Estimate Total: 35 to 39 minutes"},{"$f":"[1]ACS_16_5YR_B08303_with_ann!U$2","v":"Margin of Error Total: 35 to 39 minutes"},{"$f":"[1]ACS_16_5YR_B08303_with_ann!V$2","v":"Estimate Total: 40 to 44 minutes"},{"$f":"[1]ACS_16_5YR_B08303_with_ann!W$2","v":"Margin of Error Total: 40 to 44 minutes"},{"$f":"[1]ACS_16_5YR_B08303_with_ann!X$2","v":"Estimate Total: 45 to 59 minutes"},{"$f":"[1]ACS_16_5YR_B08303_with_ann!Y$2","v":"Margin of Error Total: 45 to 59 minutes"},{"$f":"[1]ACS_16_5YR_B08303_with_ann!Z$2","v":"Estimate Total: 60 to 89 minutes"},{"$f":"[1]ACS_16_5YR_B08303_with_ann!AA$2","v":"Margin of Error Total: 60 to 89 minutes"},{"$f":"[1]ACS_16_5YR_B08303_with_ann!AB$2","v":"Estimate Total: 90 or more minutes"},{"$f":"[1]ACS_16_5YR_B08303_with_ann!AC$2","v":"Margin of Error Total: 90 or more minutes"}]
["0600000US3301900259",3301900259,"060","Acworth",{"$f":"[1]ACS_16_5YR_B08303_with_ann!D258","v":421},{"$f":"[1]ACS_16_5YR_B08303_with_ann!E258","v":82},{"$f":"[1]ACS_16_5YR_B08303_with_ann!F258","v":23},{"$f":"[1]ACS_16_5YR_B08303_with_ann!G258","v":19},{"$f":"[1]ACS_16_5YR_B08303_with_ann!H258","v":19},{"$f":"[1]ACS_16_5YR_B08303_with_ann!I258","v":17},{"$f":"[1]ACS_16_5YR_B08303_with_ann!J258","v":13},{"$f":"[1]ACS_16_5YR_B08303_with_ann!K258","v":11},{"$f":"[1]ACS_16_5YR_B08303_with_ann!L258","v":35},{"$f":"[1]ACS_16_5YR_B08303_with_ann!M258","v":22},{"$f":"[1]ACS_16_5YR_B08303_with_ann!N258","v":48},{"$f":"[1]ACS_16_5YR_B08303_with_ann!O258","v":29},{"$f":"[1]ACS_16_5YR_B08303_with_ann!P258","v":23},{"$f":"[1]ACS_16_5YR_B08303_with_ann!Q258","v":15},{"$f":"[1]ACS_16_5YR_B08303_with_ann!R258","v":98},{"$f":"[1]ACS_16_5YR_B08303_with_ann!S258","v":37},{"$f":"[1]ACS_16_5YR_B08303_with_ann!T258","v":18},{"$f":"[1]ACS_16_5YR_B08303_with_ann!U258","v":15},{"$f":"[1]ACS_16_5YR_B08303_with_ann!V258","v":23},{"$f":"[1]ACS_16_5YR_B08303_with_ann!W258","v":14},{"$f":"[1]ACS_16_5YR_B08303_with_ann!X258","v":59},{"$f":"[1]ACS_16_5YR_B08303_with_ann!Y258","v":32},{"$f":"[1]ACS_16_5YR_B08303_with_ann!Z258","v":36},{"$f":"[1]ACS_16_5YR_B08303_with_ann!AA258","v":20},{"$f":"[1]ACS_16_5YR_B08303_with_ann!AB258","v":26},{"$f":"[1]ACS_16_5YR_B08303_with_ann!AC258","v":16}]
["0600000US3301911380",3301911380,"060","Charlestown",{"$f":"[1]ACS_16_5YR_B08303_with_ann!D259","v":1956},{"$f":"[1]ACS_16_5YR_B08303_with_ann!E259","v":313},{"$f":"[1]ACS_16_5YR_B08303_with_ann!F259","v":92},{"$f":"[1]ACS_16_5YR_B08303_with_ann!G259","v":77},{"$f":"[1]ACS_16_5YR_B08303_with_ann!H259","v":349},{"$f":"[1]ACS_16_5YR_B08303_with_ann!I259","v":148},{"$f":"[1]ACS_16_5YR_B08303_with_ann!J259","v":139},{"$f":"[1]ACS_16_5YR_B08303_with_ann!K259","v":75},{"$f":"[1]ACS_16_5YR_B08303_with_ann!L259","v":393},{"$f":"[1]ACS_16_5YR_B08303_with_ann!M259","v":145},{"$f":"[1]ACS_16_5YR_B08303_with_ann!N259","v":334},{"$f":"[1]ACS_16_5YR_B08303_with_ann!O259","v":169},{"$f":"[1]ACS_16_5YR_B08303_with_ann!P259","v":98},{"$f":"[1]ACS_16_5YR_B08303_with_ann!Q259","v":66},{"$f":"[1]ACS_16_5YR_B08303_with_ann!R259","v":128},{"$f":"[1]ACS_16_5YR_B08303_with_ann!S259","v":71},{"$f":"[1]ACS_16_5YR_B08303_with_ann!T259","v":64},{"$f":"[1]ACS_16_5YR_B08303_with_ann!U259","v":66},{"$f":"[1]ACS_16_5YR_B08303_with_ann!V259","v":115},{"$f":"[1]ACS_16_5YR_B08303_with_ann!W259","v":125},{"$f":"[1]ACS_16_5YR_B08303_with_ann!X259","v":171},{"$f":"[1]ACS_16_5YR_B08303_with_ann!Y259","v":119},{"$f":"[1]ACS_16_5YR_B08303_with_ann!Z259","v":18},{"$f":"[1]ACS_16_5YR_B08303_with_ann!AA259","v":29},{"$f":"[1]ACS_16_5YR_B08303_with_ann!AB259","v":55},{"$f":"[1]ACS_16_5YR_B08303_with_ann!AC259","v":58}]
["0600000US3301912900",3301912900,"060","Claremont",{"$f":"[1]ACS_16_5YR_B08303_with_ann!D260","v":5718},{"$f":"[1]ACS_16_5YR_B08303_with_ann!E260","v":354},{"$f":"[1]ACS_16_5YR_B08303_with_ann!F260","v":370},{"$f":"[1]ACS_16_5YR_B08303_with_ann!G260","v":155},{"$f":"[1]ACS_16_5YR_B08303_with_ann!H260","v":1060},{"$f":"[1]ACS_16_5YR_B08303_with_ann!I260","v":215},{"$f":"[1]ACS_16_5YR_B08303_with_ann!J260","v":999},{"$f":"[1]ACS_16_5YR_B08303_with_ann!K260","v":219},{"$f":"[1]ACS_16_5YR_B08303_with_ann!L260","v":565},{"$f":"[1]ACS_16_5YR_B08303_with_ann!M260","v":185},{"$f":"[1]ACS_16_5YR_B08303_with_ann!N260","v":596},{"$f":"[1]ACS_16_5YR_B08303_with_ann!O260","v":139},{"$f":"[1]ACS_16_5YR_B08303_with_ann!P260","v":211},{"$f":"[1]ACS_16_5YR_B08303_with_ann!Q260","v":102},{"$f":"[1]ACS_16_5YR_B08303_with_ann!R260","v":668},{"$f":"[1]ACS_16_5YR_B08303_with_ann!S260","v":189},{"$f":"[1]ACS_16_5YR_B08303_with_ann!T260","v":341},{"$f":"[1]ACS_16_5YR_B08303_with_ann!U260","v":121},{"$f":"[1]ACS_16_5YR_B08303_with_ann!V260","v":279},{"$f":"[1]ACS_16_5YR_B08303_with_ann!W260","v":109},{"$f":"[1]ACS_16_5YR_B08303_with_ann!X260","v":426},{"$f":"[1]ACS_16_5YR_B08303_with_ann!Y260","v":167},{"$f":"[1]ACS_16_5YR_B08303_with_ann!Z260","v":125},{"$f":"[1]ACS_16_5YR_B08303_with_ann!AA260","v":59},{"$f":"[1]ACS_16_5YR_B08303_with_ann!AB260","v":78},{"$f":"[1]ACS_16_5YR_B08303_with_ann!AC260","v":62}]
["0600000US3301915060",3301915060,"060","Cornish",{"$f":"[1]ACS_16_5YR_B08303_with_ann!D261","v":784},{"$f":"[1]ACS_16_5YR_B08303_with_ann!E261","v":105},{"$f":"[1]ACS_16_5YR_B08303_with_ann!F261","v":34},{"$f":"[1]ACS_16_5YR_B08303_with_ann!G261","v":33},{"$f":"[1]ACS_16_5YR_B08303_with_ann!H261","v":23},{"$f":"[1]ACS_16_5YR_B08303_with_ann!I261","v":14},{"$f":"[1]ACS_16_5YR_B08303_with_ann!J261","v":63},{"$f":"[1]ACS_16_5YR_B08303_with_ann!K261","v":35},{"$f":"[1]ACS_16_5YR_B08303_with_ann!L261","v":90},{"$f":"[1]ACS_16_5YR_B08303_with_ann!M261","v":33},{"$f":"[1]ACS_16_5YR_B08303_with_ann!N261","v":106},{"$f":"[1]ACS_16_5YR_B08303_with_ann!O261","v":51},{"$f":"[1]ACS_16_5YR_B08303_with_ann!P261","v":71},{"$f":"[1]ACS_16_5YR_B08303_with_ann!Q261","v":27},{"$f":"[1]ACS_16_5YR_B08303_with_ann!R261","v":187},{"$f":"[1]ACS_16_5YR_B08303_with_ann!S261","v":44},{"$f":"[1]ACS_16_5YR_B08303_with_ann!T261","v":75},{"$f":"[1]ACS_16_5YR_B08303_with_ann!U261","v":26},{"$f":"[1]ACS_16_5YR_B08303_with_ann!V261","v":44},{"$f":"[1]ACS_16_5YR_B08303_with_ann!W261","v":31},{"$f":"[1]ACS_16_5YR_B08303_with_ann!X261","v":62},{"$f":"[1]ACS_16_5YR_B08303_with_ann!Y261","v":25},{"$f":"[1]ACS_16_5YR_B08303_with_ann!Z261","v":4},{"$f":"[1]ACS_16_5YR_B08303_with_ann!AA261","v":6},{"$f":"[1]ACS_16_5YR_B08303_with_ann!AB261","v":25},{"$f":"[1]ACS_16_5YR_B08303_with_ann!AC261","v":17}]
["0600000US3301916340",3301916340,"060","Croydon",{"$f":"[1]ACS_16_5YR_B08303_with_ann!D262","v":470},{"$f":"[1]ACS_16_5YR_B08303_with_ann!E262","v":165},{"$f":"[1]ACS_16_5YR_B08303_with_ann!F262","v":12},{"$f":"[1]ACS_16_5YR_B08303_with_ann!G262","v":14},{"$f":"[1]ACS_16_5YR_B08303_with_ann!H262","v":58},{"$f":"[1]ACS_16_5YR_B08303_with_ann!I262","v":36},{"$f":"[1]ACS_16_5YR_B08303_with_ann!J262","v":54},{"$f":"[1]ACS_16_5YR_B08303_with_ann!K262","v":50},{"$f":"[1]ACS_16_5YR_B08303_with_ann!L262","v":70},{"$f":"[1]ACS_16_5YR_B08303_with_ann!M262","v":71},{"$f":"[1]ACS_16_5YR_B08303_with_ann!N262","v":76},{"$f":"[1]ACS_16_5YR_B08303_with_ann!O262","v":51},{"$f":"[1]ACS_16_5YR_B08303_with_ann!P262","v":60},{"$f":"[1]ACS_16_5YR_B08303_with_ann!Q262","v":24},{"$f":"[1]ACS_16_5YR_B08303_with_ann!R262","v":68},{"$f":"[1]ACS_16_5YR_B08303_with_ann!S262","v":39},{"$f":"[1]ACS_16_5YR_B08303_with_ann!T262","v":25},{"$f":"[1]ACS_16_5YR_B08303_with_ann!U262","v":24},{"$f":"[1]ACS_16_5YR_B08303_with_ann!V262","v":3},{"$f":"[1]ACS_16_5YR_B08303_with_ann!W262","v":4},{"$f":"[1]ACS_16_5YR_B08303_with_ann!X262","v":23},{"$f":"[1]ACS_16_5YR_B08303_with_ann!Y262","v":16},{"$f":"[1]ACS_16_5YR_B08303_with_ann!Z262","v":16},{"$f":"[1]ACS_16_5YR_B08303_with_ann!AA262","v":13},{"$f":"[1]ACS_16_5YR_B08303_with_ann!AB262","v":5},{"$f":"[1]ACS_16_5YR_B08303_with_ann!AC262","v":7}]
["0600000US3301930500",3301930500,"060","Goshen",{"$f":"[1]ACS_16_5YR_B08303_with_ann!D263","v":287},{"$f":"[1]ACS_16_5YR_B08303_with_ann!E263","v":62},{"$f":"[1]ACS_16_5YR_B08303_with_ann!F263","v":2},{"$f":"[1]ACS_16_5YR_B08303_with_ann!G263","v":6},{"$f":"[1]ACS_16_5YR_B08303_with_ann!H263","v":11},{"$f":"[1]ACS_16_5YR_B08303_with_ann!I263","v":10},{"$f":"[1]ACS_16_5YR_B08303_with_ann!J263","v":40},{"$f":"[1]ACS_16_5YR_B08303_with_ann!K263","v":25},{"$f":"[1]ACS_16_5YR_B08303_with_ann!L263","v":60},{"$f":"[1]ACS_16_5YR_B08303_with_ann!M263","v":24},{"$f":"[1]ACS_16_5YR_B08303_with_ann!N263","v":31},{"$f":"[1]ACS_16_5YR_B08303_with_ann!O263","v":15},{"$f":"[1]ACS_16_5YR_B08303_with_ann!P263","v":49},{"$f":"[1]ACS_16_5YR_B08303_with_ann!Q263","v":29},{"$f":"[1]ACS_16_5YR_B08303_with_ann!R263","v":22},{"$f":"[1]ACS_16_5YR_B08303_with_ann!S263","v":13},{"$f":"[1]ACS_16_5YR_B08303_with_ann!T263","v":3},{"$f":"[1]ACS_16_5YR_B08303_with_ann!U263","v":4},{"$f":"[1]ACS_16_5YR_B08303_with_ann!V263","v":10},{"$f":"[1]ACS_16_5YR_B08303_with_ann!W263","v":8},{"$f":"[1]ACS_16_5YR_B08303_with_ann!X263","v":32},{"$f":"[1]ACS_16_5YR_B08303_with_ann!Y263","v":23},{"$f":"[1]ACS_16_5YR_B08303_with_ann!Z263","v":18},{"$f":"[1]ACS_16_5YR_B08303_with_ann!AA263","v":13},{"$f":"[1]ACS_16_5YR_B08303_with_ann!AB263","v":9},{"$f":"[1]ACS_16_5YR_B08303_with_ann!AC263","v":7}]
["0600000US3301931220",3301931220,"060","Grantham",{"$f":"[1]ACS_16_5YR_B08303_with_ann!D264","v":1624},{"$f":"[1]ACS_16_5YR_B08303_with_ann!E264","v":181},{"$f":"[1]ACS_16_5YR_B08303_with_ann!F264","v":40},{"$f":"[1]ACS_16_5YR_B08303_with_ann!G264","v":40},{"$f":"[1]ACS_16_5YR_B08303_with_ann!H264","v":73},{"$f":"[1]ACS_16_5YR_B08303_with_ann!I264","v":51},{"$f":"[1]ACS_16_5YR_B08303_with_ann!J264","v":31},{"$f":"[1]ACS_16_5YR_B08303_with_ann!K264","v":34},{"$f":"[1]ACS_16_5YR_B08303_with_ann!L264","v":309},{"$f":"[1]ACS_16_5YR_B08303_with_ann!M264","v":249},{"$f":"[1]ACS_16_5YR_B08303_with_ann!N264","v":498},{"$f":"[1]ACS_16_5YR_B08303_with_ann!O264","v":198},{"$f":"[1]ACS_16_5YR_B08303_with_ann!P264","v":181},{"$f":"[1]ACS_16_5YR_B08303_with_ann!Q264","v":115},{"$f":"[1]ACS_16_5YR_B08303_with_ann!R264","v":208},{"$f":"[1]ACS_16_5YR_B08303_with_ann!S264","v":113},{"$f":"[1]ACS_16_5YR_B08303_with_ann!T264","v":46},{"$f":"[1]ACS_16_5YR_B08303_with_ann!U264","v":62},{"$f":"[1]ACS_16_5YR_B08303_with_ann!V264","v":75},{"$f":"[1]ACS_16_5YR_B08303_with_ann!W264","v":72},{"$f":"[1]ACS_16_5YR_B08303_with_ann!X264","v":148},{"$f":"[1]ACS_16_5YR_B08303_with_ann!Y264","v":138},{"$f":"[1]ACS_16_5YR_B08303_with_ann!Z264","v":15},{"$f":"[1]ACS_16_5YR_B08303_with_ann!AA264","v":22},{"$f":"[1]ACS_16_5YR_B08303_with_ann!AB264","v":0},{"$f":"[1]ACS_16_5YR_B08303_with_ann!AC264","v":11}]
["0600000US3301940900",3301940900,"060","Langdon",{"$f":"[1]ACS_16_5YR_B08303_with_ann!D265","v":344},{"$f":"[1]ACS_16_5YR_B08303_with_ann!E265","v":85},{"$f":"[1]ACS_16_5YR_B08303_with_ann!F265","v":11},{"$f":"[1]ACS_16_5YR_B08303_with_ann!G265","v":8},{"$f":"[1]ACS_16_5YR_B08303_with_ann!H265","v":28},{"$f":"[1]ACS_16_5YR_B08303_with_ann!I265","v":20},{"$f":"[1]ACS_16_5YR_B08303_with_ann!J265","v":16},{"$f":"[1]ACS_16_5YR_B08303_with_ann!K265","v":15},{"$f":"[1]ACS_16_5YR_B08303_with_ann!L265","v":69},{"$f":"[1]ACS_16_5YR_B08303_with_ann!M265","v":29},{"$f":"[1]ACS_16_5YR_B08303_with_ann!N265","v":24},{"$f":"[1]ACS_16_5YR_B08303_with_ann!O265","v":13},{"$f":"[1]ACS_16_5YR_B08303_with_ann!P265","v":20},{"$f":"[1]ACS_16_5YR_B08303_with_ann!Q265","v":11},{"$f":"[1]ACS_16_5YR_B08303_with_ann!R265","v":47},{"$f":"[1]ACS_16_5YR_B08303_with_ann!S265","v":26},{"$f":"[1]ACS_16_5YR_B08303_with_ann!T265","v":27},{"$f":"[1]ACS_16_5YR_B08303_with_ann!U265","v":20},{"$f":"[1]ACS_16_5YR_B08303_with_ann!V265","v":29},{"$f":"[1]ACS_16_5YR_B08303_with_ann!W265","v":24},{"$f":"[1]ACS_16_5YR_B08303_with_ann!X265","v":32},{"$f":"[1]ACS_16_5YR_B08303_with_ann!Y265","v":19},{"$f":"[1]ACS_16_5YR_B08303_with_ann!Z265","v":22},{"$f":"[1]ACS_16_5YR_B08303_with_ann!AA265","v":16},{"$f":"[1]ACS_16_5YR_B08303_with_ann!AB265","v":19},{"$f":"[1]ACS_16_5YR_B08303_with_ann!AC265","v":15}]
["0600000US3301941700",3301941700,"060","Lempster",{"$f":"[1]ACS_16_5YR_B08303_with_ann!D266","v":330},{"$f":"[1]ACS_16_5YR_B08303_with_ann!E266","v":69},{"$f":"[1]ACS_16_5YR_B08303_with_ann!F266","v":4},{"$f":"[1]ACS_16_5YR_B08303_with_ann!G266","v":7},{"$f":"[1]ACS_16_5YR_B08303_with_ann!H266","v":2},{"$f":"[1]ACS_16_5YR_B08303_with_ann!I266","v":5},{"$f":"[1]ACS_16_5YR_B08303_with_ann!J266","v":29},{"$f":"[1]ACS_16_5YR_B08303_with_ann!K266","v":16},{"$f":"[1]ACS_16_5YR_B08303_with_ann!L266","v":39},{"$f":"[1]ACS_16_5YR_B08303_with_ann!M266","v":26},{"$f":"[1]ACS_16_5YR_B08303_with_ann!N266","v":66},{"$f":"[1]ACS_16_5YR_B08303_with_ann!O266","v":25},{"$f":"[1]ACS_16_5YR_B08303_with_ann!P266","v":24},{"$f":"[1]ACS_16_5YR_B08303_with_ann!Q266","v":20},{"$f":"[1]ACS_16_5YR_B08303_with_ann!R266","v":35},{"$f":"[1]ACS_16_5YR_B08303_with_ann!S266","v":20},{"$f":"[1]ACS_16_5YR_B08303_with_ann!T266","v":28},{"$f":"[1]ACS_16_5YR_B08303_with_ann!U266","v":23},{"$f":"[1]ACS_16_5YR_B08303_with_ann!V266","v":41},{"$f":"[1]ACS_16_5YR_B08303_with_ann!W266","v":25},{"$f":"[1]ACS_16_5YR_B08303_with_ann!X266","v":27},{"$f":"[1]ACS_16_5YR_B08303_with_ann!Y266","v":12},{"$f":"[1]ACS_16_5YR_B08303_with_ann!Z266","v":29},{"$f":"[1]ACS_16_5YR_B08303_with_ann!AA266","v":15},{"$f":"[1]ACS_16_5YR_B08303_with_ann!AB266","v":6},{"$f":"[1]ACS_16_5YR_B08303_with_ann!AC266","v":9}]
["0600000US3301952580",3301952580,"060","Newport",{"$f":"[1]ACS_16_5YR_B08303_with_ann!D267","v":2875},{"$f":"[1]ACS_16_5YR_B08303_with_ann!E267","v":340},{"$f":"[1]ACS_16_5YR_B08303_with_ann!F267","v":160},{"$f":"[1]ACS_16_5YR_B08303_with_ann!G267","v":89},{"$f":"[1]ACS_16_5YR_B08303_with_ann!H267","v":481},{"$f":"[1]ACS_16_5YR_B08303_with_ann!I267","v":188},{"$f":"[1]ACS_16_5YR_B08303_with_ann!J267","v":160},{"$f":"[1]ACS_16_5YR_B08303_with_ann!K267","v":87},{"$f":"[1]ACS_16_5YR_B08303_with_ann!L267","v":445},{"$f":"[1]ACS_16_5YR_B08303_with_ann!M267","v":196},{"$f":"[1]ACS_16_5YR_B08303_with_ann!N267","v":378},{"$f":"[1]ACS_16_5YR_B08303_with_ann!O267","v":141},{"$f":"[1]ACS_16_5YR_B08303_with_ann!P267","v":112},{"$f":"[1]ACS_16_5YR_B08303_with_ann!Q267","v":85},{"$f":"[1]ACS_16_5YR_B08303_with_ann!R267","v":438},{"$f":"[1]ACS_16_5YR_B08303_with_ann!S267","v":176},{"$f":"[1]ACS_16_5YR_B08303_with_ann!T267","v":151},{"$f":"[1]ACS_16_5YR_B08303_with_ann!U267","v":93},{"$f":"[1]ACS_16_5YR_B08303_with_ann!V267","v":130},{"$f":"[1]ACS_16_5YR_B08303_with_ann!W267","v":88},{"$f":"[1]ACS_16_5YR_B08303_with_ann!X267","v":308},{"$f":"[1]ACS_16_5YR_B08303_with_ann!Y267","v":125},{"$f":"[1]ACS_16_5YR_B08303_with_ann!Z267","v":41},{"$f":"[1]ACS_16_5YR_B08303_with_ann!AA267","v":37},{"$f":"[1]ACS_16_5YR_B08303_with_ann!AB267","v":71},{"$f":"[1]ACS_16_5YR_B08303_with_ann!AC267","v":78}]
["0600000US3301962340",3301962340,"060","Plainfield",{"$f":"[1]ACS_16_5YR_B08303_with_ann!D268","v":1107},{"$f":"[1]ACS_16_5YR_B08303_with_ann!E268","v":151},{"$f":"[1]ACS_16_5YR_B08303_with_ann!F268","v":61},{"$f":"[1]ACS_16_5YR_B08303_with_ann!G268","v":30},{"$f":"[1]ACS_16_5YR_B08303_with_ann!H268","v":53},{"$f":"[1]ACS_16_5YR_B08303_with_ann!I268","v":35},{"$f":"[1]ACS_16_5YR_B08303_with_ann!J268","v":88},{"$f":"[1]ACS_16_5YR_B08303_with_ann!K268","v":50},{"$f":"[1]ACS_16_5YR_B08303_with_ann!L268","v":150},{"$f":"[1]ACS_16_5YR_B08303_with_ann!M268","v":50},{"$f":"[1]ACS_16_5YR_B08303_with_ann!N268","v":193},{"$f":"[1]ACS_16_5YR_B08303_with_ann!O268","v":76},{"$f":"[1]ACS_16_5YR_B08303_with_ann!P268","v":204},{"$f":"[1]ACS_16_5YR_B08303_with_ann!Q268","v":50},{"$f":"[1]ACS_16_5YR_B08303_with_ann!R268","v":184},{"$f":"[1]ACS_16_5YR_B08303_with_ann!S268","v":66},{"$f":"[1]ACS_16_5YR_B08303_with_ann!T268","v":69},{"$f":"[1]ACS_16_5YR_B08303_with_ann!U268","v":34},{"$f":"[1]ACS_16_5YR_B08303_with_ann!V268","v":33},{"$f":"[1]ACS_16_5YR_B08303_with_ann!W268","v":32},{"$f":"[1]ACS_16_5YR_B08303_with_ann!X268","v":23},{"$f":"[1]ACS_16_5YR_B08303_with_ann!Y268","v":26},{"$f":"[1]ACS_16_5YR_B08303_with_ann!Z268","v":12},{"$f":"[1]ACS_16_5YR_B08303_with_ann!AA268","v":14},{"$f":"[1]ACS_16_5YR_B08303_with_ann!AB268","v":37},{"$f":"[1]ACS_16_5YR_B08303_with_ann!AC268","v":30}]
["0600000US3301972740",3301972740,"060","Springfield",{"$f":"[1]ACS_16_5YR_B08303_with_ann!D269","v":479},{"$f":"[1]ACS_16_5YR_B08303_with_ann!E269","v":113},{"$f":"[1]ACS_16_5YR_B08303_with_ann!F269","v":62},{"$f":"[1]ACS_16_5YR_B08303_with_ann!G269","v":57},{"$f":"[1]ACS_16_5YR_B08303_with_ann!H269","v":3},{"$f":"[1]ACS_16_5YR_B08303_with_ann!I269","v":5},{"$f":"[1]ACS_16_5YR_B08303_with_ann!J269","v":40},{"$f":"[1]ACS_16_5YR_B08303_with_ann!K269","v":26},{"$f":"[1]ACS_16_5YR_B08303_with_ann!L269","v":36},{"$f":"[1]ACS_16_5YR_B08303_with_ann!M269","v":30},{"$f":"[1]ACS_16_5YR_B08303_with_ann!N269","v":49},{"$f":"[1]ACS_16_5YR_B08303_with_ann!O269","v":27},{"$f":"[1]ACS_16_5YR_B08303_with_ann!P269","v":100},{"$f":"[1]ACS_16_5YR_B08303_with_ann!Q269","v":52},{"$f":"[1]ACS_16_5YR_B08303_with_ann!R269","v":71},{"$f":"[1]ACS_16_5YR_B08303_with_ann!S269","v":40},{"$f":"[1]ACS_16_5YR_B08303_with_ann!T269","v":32},{"$f":"[1]ACS_16_5YR_B08303_with_ann!U269","v":24},{"$f":"[1]ACS_16_5YR_B08303_with_ann!V269","v":11},{"$f":"[1]ACS_16_5YR_B08303_with_ann!W269","v":10},{"$f":"[1]ACS_16_5YR_B08303_with_ann!X269","v":60},{"$f":"[1]ACS_16_5YR_B08303_with_ann!Y269","v":32},{"$f":"[1]ACS_16_5YR_B08303_with_ann!Z269","v":15},{"$f":"[1]ACS_16_5YR_B08303_with_ann!AA269","v":16},{"$f":"[1]ACS_16_5YR_B08303_with_ann!AB269","v":0},{"$f":"[1]ACS_16_5YR_B08303_with_ann!AC269","v":11}]
["0600000US3301975060",3301975060,"060","Sunapee",{"$f":"[1]ACS_16_5YR_B08303_with_ann!D270","v":1687},{"$f":"[1]ACS_16_5YR_B08303_with_ann!E270","v":193},{"$f":"[1]ACS_16_5YR_B08303_with_ann!F270","v":76},{"$f":"[1]ACS_16_5YR_B08303_with_ann!G270","v":58},{"$f":"[1]ACS_16_5YR_B08303_with_ann!H270","v":207},{"$f":"[1]ACS_16_5YR_B08303_with_ann!I270","v":98},{"$f":"[1]ACS_16_5YR_B08303_with_ann!J270","v":183},{"$f":"[1]ACS_16_5YR_B08303_with_ann!K270","v":74},{"$f":"[1]ACS_16_5YR_B08303_with_ann!L270","v":269},{"$f":"[1]ACS_16_5YR_B08303_with_ann!M270","v":105},{"$f":"[1]ACS_16_5YR_B08303_with_ann!N270","v":115},{"$f":"[1]ACS_16_5YR_B08303_with_ann!O270","v":60},{"$f":"[1]ACS_16_5YR_B08303_with_ann!P270","v":157},{"$f":"[1]ACS_16_5YR_B08303_with_ann!Q270","v":82},{"$f":"[1]ACS_16_5YR_B08303_with_ann!R270","v":221},{"$f":"[1]ACS_16_5YR_B08303_with_ann!S270","v":85},{"$f":"[1]ACS_16_5YR_B08303_with_ann!T270","v":134},{"$f":"[1]ACS_16_5YR_B08303_with_ann!U270","v":64},{"$f":"[1]ACS_16_5YR_B08303_with_ann!V270","v":71},{"$f":"[1]ACS_16_5YR_B08303_with_ann!W270","v":59},{"$f":"[1]ACS_16_5YR_B08303_with_ann!X270","v":190},{"$f":"[1]ACS_16_5YR_B08303_with_ann!Y270","v":92},{"$f":"[1]ACS_16_5YR_B08303_with_ann!Z270","v":64},{"$f":"[1]ACS_16_5YR_B08303_with_ann!AA270","v":44},{"$f":"[1]ACS_16_5YR_B08303_with_ann!AB270","v":0},{"$f":"[1]ACS_16_5YR_B08303_with_ann!AC270","v":11}]
["0600000US3301977940",3301977940,"060","Unity",{"$f":"[1]ACS_16_5YR_B08303_with_ann!D271","v":736},{"$f":"[1]ACS_16_5YR_B08303_with_ann!E271","v":110},{"$f":"[1]ACS_16_5YR_B08303_with_ann!F271","v":26},{"$f":"[1]ACS_16_5YR_B08303_with_ann!G271","v":37},{"$f":"[1]ACS_16_5YR_B08303_with_ann!H271","v":40},{"$f":"[1]ACS_16_5YR_B08303_with_ann!I271","v":26},{"$f":"[1]ACS_16_5YR_B08303_with_ann!J271","v":39},{"$f":"[1]ACS_16_5YR_B08303_with_ann!K271","v":20},{"$f":"[1]ACS_16_5YR_B08303_with_ann!L271","v":190},{"$f":"[1]ACS_16_5YR_B08303_with_ann!M271","v":66},{"$f":"[1]ACS_16_5YR_B08303_with_ann!N271","v":143},{"$f":"[1]ACS_16_5YR_B08303_with_ann!O271","v":48},{"$f":"[1]ACS_16_5YR_B08303_with_ann!P271","v":32},{"$f":"[1]ACS_16_5YR_B08303_with_ann!Q271","v":15},{"$f":"[1]ACS_16_5YR_B08303_with_ann!R271","v":97},{"$f":"[1]ACS_16_5YR_B08303_with_ann!S271","v":47},{"$f":"[1]ACS_16_5YR_B08303_with_ann!T271","v":16},{"$f":"[1]ACS_16_5YR_B08303_with_ann!U271","v":12},{"$f":"[1]ACS_16_5YR_B08303_with_ann!V271","v":28},{"$f":"[1]ACS_16_5YR_B08303_with_ann!W271","v":19},{"$f":"[1]ACS_16_5YR_B08303_with_ann!X271","v":83},{"$f":"[1]ACS_16_5YR_B08303_with_ann!Y271","v":27},{"$f":"[1]ACS_16_5YR_B08303_with_ann!Z271","v":28},{"$f":"[1]ACS_16_5YR_B08303_with_ann!AA271","v":14},{"$f":"[1]ACS_16_5YR_B08303_with_ann!AB271","v":14},{"$f":"[1]ACS_16_5YR_B08303_with_ann!AC271","v":11}]
["0600000US3301978980",3301978980,"060","Washington",{"$f":"[1]ACS_16_5YR_B08303_with_ann!D272","v":614},{"$f":"[1]ACS_16_5YR_B08303_with_ann!E272","v":119},{"$f":"[1]ACS_16_5YR_B08303_with_ann!F272","v":10},{"$f":"[1]ACS_16_5YR_B08303_with_ann!G272","v":8},{"$f":"[1]ACS_16_5YR_B08303_with_ann!H272","v":30},{"$f":"[1]ACS_16_5YR_B08303_with_ann!I272","v":20},{"$f":"[1]ACS_16_5YR_B08303_with_ann!J272","v":52},{"$f":"[1]ACS_16_5YR_B08303_with_ann!K272","v":33},{"$f":"[1]ACS_16_5YR_B08303_with_ann!L272","v":72},{"$f":"[1]ACS_16_5YR_B08303_with_ann!M272","v":64},{"$f":"[1]ACS_16_5YR_B08303_with_ann!N272","v":28},{"$f":"[1]ACS_16_5YR_B08303_with_ann!O272","v":20},{"$f":"[1]ACS_16_5YR_B08303_with_ann!P272","v":43},{"$f":"[1]ACS_16_5YR_B08303_with_ann!Q272","v":20},{"$f":"[1]ACS_16_5YR_B08303_with_ann!R272","v":109},{"$f":"[1]ACS_16_5YR_B08303_with_ann!S272","v":51},{"$f":"[1]ACS_16_5YR_B08303_with_ann!T272","v":21},{"$f":"[1]ACS_16_5YR_B08303_with_ann!U272","v":30},{"$f":"[1]ACS_16_5YR_B08303_with_ann!V272","v":39},{"$f":"[1]ACS_16_5YR_B08303_with_ann!W272","v":38},{"$f":"[1]ACS_16_5YR_B08303_with_ann!X272","v":117},{"$f":"[1]ACS_16_5YR_B08303_with_ann!Y272","v":55},{"$f":"[1]ACS_16_5YR_B08303_with_ann!Z272","v":62},{"$f":"[1]ACS_16_5YR_B08303_with_ann!AA272","v":29},{"$f":"[1]ACS_16_5YR_B08303_with_ann!AB272","v":31},{"$f":"[1]ACS_16_5YR_B08303_with_ann!AC272","v":25}]
[]
[null,null,null,null,{"$f":"$D$3","v":"Acworth"},null,{"$f":"$D$4","v":"Charlestown"},null,{"$f":"$D$5","v":"Claremont"},null,{"$f":"$D$6","v":"Cornish"},null,{"$f":"$D$7","v":"Croydon"},null,{"$f":"$D$8","v":"Goshen"},null,{"$f":"$D$9","v":"Grantham"},null,{"$f":"$D$10","v":"Langdon"},null,{"$f":"$D$11","v":"Lempster"},null,{"$f":"$D$12","v":"Newport"},null,{"$f":"$D$13","v":"Plainfield"},null,{"$f":"$D$14","v":"Springfield"},null,{"$f":"$D$15","v":"Sunapee"},null,{"$f":"$D$16","v":"Unity"},null,{"$f":"$D$17","v":"Washington"}]
[null,null,null,null,"Estimate","Margin Of Error","Estimate","Margin Of Error","Estimate","Margin Of Error","Estimate","Margin Of Error","Estimate","Margin Of Error","Estimate","Margin Of Error","Estimate","Margin Of Error","Estimate","Margin Of Error","Estimate","Margin Of Error","Estimate","Margin Of Error","Estimate","Margin Of Error","Estimate","Margin Of Error","Estimate","Margin Of Error",null,"Estimate","Margin Of Error"]
[null,null,null,"Estimate Total:",421,82,1956,313,5718,354,784,105,470,165,287,62,1624,181,344,85,330,69,2875,340,1107,151,479,113,1687,193,736,110,614,119]
[null,null,null,"Estimate Total: Less than 5 minutes",23,19,92,77,370,155,34,33,12,14,2,6,40,40,11,8,4,7,160,89,61,30,62,57,76,58,26,37,10,8]
[null,null,null,"Estimate Total: 5 to 9 minutes",19,17,349,148,1060,215,23,14,58,36,11,10,73,51,28,20,2,5,481,188,53,35,3,5,207,98,40,26,30,20]
[null,null,null,"Estimate Total: 10 to 14 minutes",13,11,139,75,999,219,63,35,54,50,40,25,31,34,16,15,29,16,160,87,88,50,40,26,183,74,39,20,52,33]
[null,null,null,"Estimate Total: 15 to 19 minutes",35,22,393,145,565,185,90,33,70,71,60,24,309,249,69,29,39,26,445,196,150,50,36,30,269,105,190,66,72,64]
[null,null,null,"Estimate Total: 20 to 24 minutes",48,29,334,169,596,139,106,51,76,51,31,15,498,198,24,13,66,25,378,141,193,76,49,27,115,60,143,48,28,20]
[null,null,null,"Estimate Total: 25 to 29 minutes",23,15,98,66,211,102,71,27,60,24,49,29,181,115,20,11,24,20,112,85,204,50,100,52,157,82,32,15,43,20]
[null,null,null,"Estimate Total: 30 to 34 minutes",98,37,128,71,668,189,187,44,68,39,22,13,208,113,47,26,35,20,438,176,184,66,71,40,221,85,97,47,109,51]
[null,null,null,"Estimate Total: 35 to 39 minutes",18,15,64,66,341,121,75,26,25,24,3,4,46,62,27,20,28,23,151,93,69,34,32,24,134,64,16,12,21,30]
[null,null,null,"Estimate Total: 40 to 44 minutes",23,14,115,125,279,109,44,31,3,4,10,8,75,72,29,24,41,25,130,88,33,32,11,10,71,59,28,19,39,38]
[null,null,null,"Estimate Total: 45 to 59 minutes",59,32,171,119,426,167,62,25,23,16,32,23,148,138,32,19,27,12,308,125,23,26,60,32,190,92,83,27,117,55]
[null,null,null,"Estimate Total: 60 to 89 minutes",36,20,18,29,125,59,4,6,16,13,18,13,15,22,22,16,29,15,41,37,12,14,15,16,64,44,28,14,62,29]
[null,null,null,"Estimate Total: 90 or more minutes",26,16,55,58,78,62,25,17,5,7,9,7,0,11,19,15,6,9,71,78,37,30,0,11,0,11,14,11,31,25]

{"sheet":"SData_B11001HouseholdByFamType","index":27,"n_rows":29,"n_cols":34,"rows_kept":29,"cut":false,"hidden":true,"merged":[]}
["GEO_ID","GEO_ID2","SUMLEVEL","GEO_NAME","B11001_1_EST","B11001_1_MOE","B11001_2_EST","B11001_2_MOE","B11001_3_EST","B11001_3_MOE","B11001_4_EST","B11001_4_MOE","B11001_5_EST","B11001_5_MOE","B11001_6_EST","B11001_6_MOE","B11001_7_EST","B11001_7_MOE","B11001_8_EST","B11001_8_MOE","B11001_9_EST","B11001_9_MOE"]
["Geography Identifier","Geography Identifier","Geographic Summary Level","Geography",{"$f":"[1]ACS_16_5YR_B11001_with_ann!D$2","v":"Estimate Total:"},{"$f":"[1]ACS_16_5YR_B11001_with_ann!E$2","v":"Margin of Error Total:"},{"$f":"[1]ACS_16_5YR_B11001_with_ann!F$2","v":"Estimate Total: Family households:"},{"$f":"[1]ACS_16_5YR_B11001_with_ann!G$2","v":"Margin of Error Total: Family households:"},{"$f":"[1]ACS_16_5YR_B11001_with_ann!H$2","v":"Estimate Total: Family households: Married-couple family"},{"$f":"[1]ACS_16_5YR_B11001_with_ann!I$2","v":"Margin of Error Total: Family households: Married-couple family"},{"$f":"[1]ACS_16_5YR_B11001_with_ann!J$2","v":"Estimate Total: Family households: Other family:"},{"$f":"[1]ACS_16_5YR_B11001_with_ann!K$2","v":"Margin of Error Total: Family households: Other family:"},{"$f":"[1]ACS_16_5YR_B11001_with_ann!L$2","v":"Estimate Total: Family households: Other family: Male householder"},{"$f":"[1]ACS_16_5YR_B11001_with_ann!M$2","v":"Margin of Error Total: Family households: Other family: Male householder"},{"$f":"[1]ACS_16_5YR_B11001_with_ann!N$2","v":"Estimate Total: Family households: Other family: Female householder"},{"$f":"[1]ACS_16_5YR_B11001_with_ann!O$2","v":"Margin of Error Total: Family households: Other family: Female householder"},{"$f":"[1]ACS_16_5YR_B11001_with_ann!P$2","v":"Estimate Total: Nonfamily households:"},{"$f":"[1]ACS_16_5YR_B11001_with_ann!Q$2","v":"Margin of Error Total: Nonfamily households:"},{"$f":"[1]ACS_16_5YR_B11001_with_ann!R$2","v":"Estimate Total: Nonfamily households: Householder living alone"},{"$f":"[1]ACS_16_5YR_B11001_with_ann!S$2","v":"Margin of Error Total: Nonfamily households: Householder living alone"},{"$f":"[1]ACS_16_5YR_B11001_with_ann!T$2","v":"Estimate Total: Nonfamily households: Householder not living alone"},{"$f":"[1]ACS_16_5YR_B11001_with_ann!U$2","v":"Margin of Error Total: Nonfamily households: Householder not living alone"}]
["0600000US3301900259",3301900259,"060","Acworth",{"$f":"[1]ACS_16_5YR_B11001_with_ann!D258","v":370},{"$f":"[1]ACS_16_5YR_B11001_with_ann!E258","v":51},{"$f":"[1]ACS_16_5YR_B11001_with_ann!F258","v":255},{"$f":"[1]ACS_16_5YR_B11001_with_ann!G258","v":43},{"$f":"[1]ACS_16_5YR_B11001_with_ann!H258","v":218},{"$f":"[1]ACS_16_5YR_B11001_with_ann!I258","v":40},{"$f":"[1]ACS_16_5YR_B11001_with_ann!J258","v":37},{"$f":"[1]ACS_16_5YR_B11001_with_ann!K258","v":19},{"$f":"[1]ACS_16_5YR_B11001_with_ann!L258","v":23},{"$f":"[1]ACS_16_5YR_B11001_with_ann!M258","v":14},{"$f":"[1]ACS_16_5YR_B11001_with_ann!N258","v":14},{"$f":"[1]ACS_16_5YR_B11001_with_ann!O258","v":12},{"$f":"[1]ACS_16_5YR_B11001_with_ann!P258","v":115},{"$f":"[1]ACS_16_5YR_B11001_with_ann!Q258","v":28},{"$f":"[1]ACS_16_5YR_B11001_with_ann!R258","v":89},{"$f":"[1]ACS_16_5YR_B11001_with_ann!S258","v":25},{"$f":"[1]ACS_16_5YR_B11001_with_ann!T258","v":26},{"$f":"[1]ACS_16_5YR_B11001_with_ann!U258","v":16}]
["0600000US3301911380",3301911380,"060","Charlestown",{"$f":"[1]ACS_16_5YR_B11001_with_ann!D259","v":2086},{"$f":"[1]ACS_16_5YR_B11001_with_ann!E259","v":184},{"$f":"[1]ACS_16_5YR_B11001_with_ann!F259","v":1379},{"$f":"[1]ACS_16_5YR_B11001_with_ann!G259","v":163},{"$f":"[1]ACS_16_5YR_B11001_with_ann!H259","v":952},{"$f":"[1]ACS_16_5YR_B11001_with_ann!I259","v":189},{"$f":"[1]ACS_16_5YR_B11001_with_ann!J259","v":427},{"$f":"[1]ACS_16_5YR_B11001_with_ann!K259","v":150},{"$f":"[1]ACS_16_5YR_B11001_with_ann!L259","v":183},{"$f":"[1]ACS_16_5YR_B11001_with_ann!M259","v":107},{"$f":"[1]ACS_16_5YR_B11001_with_ann!N259","v":244},{"$f":"[1]ACS_16_5YR_B11001_with_ann!O259","v":116},{"$f":"[1]ACS_16_5YR_B11001_with_ann!P259","v":707},{"$f":"[1]ACS_16_5YR_B11001_with_ann!Q259","v":222},{"$f":"[1]ACS_16_5YR_B11001_with_ann!R259","v":656},{"$f":"[1]ACS_16_5YR_B11001_with_ann!S259","v":218},{"$f":"[1]ACS_16_5YR_B11001_with_ann!T259","v":51},{"$f":"[1]ACS_16_5YR_B11001_with_ann!U259","v":49}]
["0600000US3301912900",3301912900,"060","Claremont",{"$f":"[1]ACS_16_5YR_B11001_with_ann!D260","v":5231},{"$f":"[1]ACS_16_5YR_B11001_with_ann!E260","v":284},{"$f":"[1]ACS_16_5YR_B11001_with_ann!F260","v":3165},{"$f":"[1]ACS_16_5YR_B11001_with_ann!G260","v":231},{"$f":"[1]ACS_16_5YR_B11001_with_ann!H260","v":2118},{"$f":"[1]ACS_16_5YR_B11001_with_ann!I260","v":235},{"$f":"[1]ACS_16_5YR_B11001_with_ann!J260","v":1047},{"$f":"[1]ACS_16_5YR_B11001_with_ann!K260","v":202},{"$f":"[1]ACS_16_5YR_B11001_with_ann!L260","v":200},{"$f":"[1]ACS_16_5YR_B11001_with_ann!M260","v":83},{"$f":"[1]ACS_16_5YR_B11001_with_ann!N260","v":847},{"$f":"[1]ACS_16_5YR_B11001_with_ann!O260","v":201},{"$f":"[1]ACS_16_5YR_B11001_with_ann!P260","v":2066},{"$f":"[1]ACS_16_5YR_B11001_with_ann!Q260","v":273},{"$f":"[1]ACS_16_5YR_B11001_with_ann!R260","v":1676},{"$f":"[1]ACS_16_5YR_B11001_with_ann!S260","v":271},{"$f":"[1]ACS_16_5YR_B11001_with_ann!T260","v":390},{"$f":"[1]ACS_16_5YR_B11001_with_ann!U260","v":129}]
["0600000US3301915060",3301915060,"060","Cornish",{"$f":"[1]ACS_16_5YR_B11001_with_ann!D261","v":741},{"$f":"[1]ACS_16_5YR_B11001_with_ann!E261","v":81},{"$f":"[1]ACS_16_5YR_B11001_with_ann!F261","v":526},{"$f":"[1]ACS_16_5YR_B11001_with_ann!G261","v":72},{"$f":"[1]ACS_16_5YR_B11001_with_ann!H261","v":482},{"$f":"[1]ACS_16_5YR_B11001_with_ann!I261","v":69},{"$f":"[1]ACS_16_5YR_B11001_with_ann!J261","v":44},{"$f":"[1]ACS_16_5YR_B11001_with_ann!K261","v":19},{"$f":"[1]ACS_16_5YR_B11001_with_ann!L261","v":18},{"$f":"[1]ACS_16_5YR_B11001_with_ann!M261","v":13},{"$f":"[1]ACS_16_5YR_B11001_with_ann!N261","v":26},{"$f":"[1]ACS_16_5YR_B11001_with_ann!O261","v":14},{"$f":"[1]ACS_16_5YR_B11001_with_ann!P261","v":215},{"$f":"[1]ACS_16_5YR_B11001_with_ann!Q261","v":55},{"$f":"[1]ACS_16_5YR_B11001_with_ann!R261","v":181},{"$f":"[1]ACS_16_5YR_B11001_with_ann!S261","v":53},{"$f":"[1]ACS_16_5YR_B11001_with_ann!T261","v":34},{"$f":"[1]ACS_16_5YR_B11001_with_ann!U261","v":16}]
["0600000US3301916340",3301916340,"060","Croydon",{"$f":"[1]ACS_16_5YR_B11001_with_ann!D262","v":293},{"$f":"[1]ACS_16_5YR_B11001_with_ann!E262","v":56},{"$f":"[1]ACS_16_5YR_B11001_with_ann!F262","v":187},{"$f":"[1]ACS_16_5YR_B11001_with_ann!G262","v":46},{"$f":"[1]ACS_16_5YR_B11001_with_ann!H262","v":158},{"$f":"[1]ACS_16_5YR_B11001_with_ann!I262","v":46},{"$f":"[1]ACS_16_5YR_B11001_with_ann!J262","v":29},{"$f":"[1]ACS_16_5YR_B11001_with_ann!K262","v":17},{"$f":"[1]ACS_16_5YR_B11001_with_ann!L262","v":12},{"$f":"[1]ACS_16_5YR_B11001_with_ann!M262","v":9},{"$f":"[1]ACS_16_5YR_B11001_with_ann!N262","v":17},{"$f":"[1]ACS_16_5YR_B11001_with_ann!O262","v":15},{"$f":"[1]ACS_16_5YR_B11001_with_ann!P262","v":106},{"$f":"[1]ACS_16_5YR_B11001_with_ann!Q262","v":36},{"$f":"[1]ACS_16_5YR_B11001_with_ann!R262","v":75},{"$f":"[1]ACS_16_5YR_B11001_with_ann!S262","v":29},{"$f":"[1]ACS_16_5YR_B11001_with_ann!T262","v":31},{"$f":"[1]ACS_16_5YR_B11001_with_ann!U262","v":20}]
["0600000US3301930500",3301930500,"060","Goshen",{"$f":"[1]ACS_16_5YR_B11001_with_ann!D263","v":277},{"$f":"[1]ACS_16_5YR_B11001_with_ann!E263","v":39},{"$f":"[1]ACS_16_5YR_B11001_with_ann!F263","v":163},{"$f":"[1]ACS_16_5YR_B11001_with_ann!G263","v":36},{"$f":"[1]ACS_16_5YR_B11001_with_ann!H263","v":112},{"$f":"[1]ACS_16_5YR_B11001_with_ann!I263","v":31},{"$f":"[1]ACS_16_5YR_B11001_with_ann!J263","v":51},{"$f":"[1]ACS_16_5YR_B11001_with_ann!K263","v":22},{"$f":"[1]ACS_16_5YR_B11001_with_ann!L263","v":30},{"$f":"[1]ACS_16_5YR_B11001_with_ann!M263","v":19},{"$f":"[1]ACS_16_5YR_B11001_with_ann!N263","v":21},{"$f":"[1]ACS_16_5YR_B11001_with_ann!O263","v":14},{"$f":"[1]ACS_16_5YR_B11001_with_ann!P263","v":114},{"$f":"[1]ACS_16_5YR_B11001_with_ann!Q263","v":36},{"$f":"[1]ACS_16_5YR_B11001_with_ann!R263","v":73},{"$f":"[1]ACS_16_5YR_B11001_with_ann!S263","v":28},{"$f":"[1]ACS_16_5YR_B11001_with_ann!T263","v":41},{"$f":"[1]ACS_16_5YR_B11001_with_ann!U263","v":25}]
["0600000US3301931220",3301931220,"060","Grantham",{"$f":"[1]ACS_16_5YR_B11001_with_ann!D264","v":1222},{"$f":"[1]ACS_16_5YR_B11001_with_ann!E264","v":142},{"$f":"[1]ACS_16_5YR_B11001_with_ann!F264","v":902},{"$f":"[1]ACS_16_5YR_B11001_with_ann!G264","v":98},{"$f":"[1]ACS_16_5YR_B11001_with_ann!H264","v":750},{"$f":"[1]ACS_16_5YR_B11001_with_ann!I264","v":119},{"$f":"[1]ACS_16_5YR_B11001_with_ann!J264","v":152},{"$f":"[1]ACS_16_5YR_B11001_with_ann!K264","v":85},{"$f":"[1]ACS_16_5YR_B11001_with_ann!L264","v":89},{"$f":"[1]ACS_16_5YR_B11001_with_ann!M264","v":68},{"$f":"[1]ACS_16_5YR_B11001_with_ann!N264","v":63},{"$f":"[1]ACS_16_5YR_B11001_with_ann!O264","v":55},{"$f":"[1]ACS_16_5YR_B11001_with_ann!P264","v":320},{"$f":"[1]ACS_16_5YR_B11001_with_ann!Q264","v":149},{"$f":"[1]ACS_16_5YR_B11001_with_ann!R264","v":277},{"$f":"[1]ACS_16_5YR_B11001_with_ann!S264","v":135},{"$f":"[1]ACS_16_5YR_B11001_with_ann!T264","v":43},{"$f":"[1]ACS_16_5YR_B11001_with_ann!U264","v":41}]
["0600000US3301940900",3301940900,"060","Langdon",{"$f":"[1]ACS_16_5YR_B11001_with_ann!D265","v":257},{"$f":"[1]ACS_16_5YR_B11001_with_ann!E265","v":47},{"$f":"[1]ACS_16_5YR_B11001_with_ann!F265","v":190},{"$f":"[1]ACS_16_5YR_B11001_with_ann!G265","v":38},{"$f":"[1]ACS_16_5YR_B11001_with_ann!H265","v":174},{"$f":"[1]ACS_16_5YR_B11001_with_ann!I265","v":37},{"$f":"[1]ACS_16_5YR_B11001_with_ann!J265","v":16},{"$f":"[1]ACS_16_5YR_B11001_with_ann!K265","v":13},{"$f":"[1]ACS_16_5YR_B11001_with_ann!L265","v":0},{"$f":"[1]ACS_16_5YR_B11001_with_ann!M265","v":11},{"$f":"[1]ACS_16_5YR_B11001_with_ann!N265","v":16},{"$f":"[1]ACS_16_5YR_B11001_with_ann!O265","v":13},{"$f":"[1]ACS_16_5YR_B11001_with_ann!P265","v":67},{"$f":"[1]ACS_16_5YR_B11001_with_ann!Q265","v":27},{"$f":"[1]ACS_16_5YR_B11001_with_ann!R265","v":49},{"$f":"[1]ACS_16_5YR_B11001_with_ann!S265","v":22},{"$f":"[1]ACS_16_5YR_B11001_with_ann!T265","v":18},{"$f":"[1]ACS_16_5YR_B11001_with_ann!U265","v":18}]
["0600000US3301941700",3301941700,"060","Lempster",{"$f":"[1]ACS_16_5YR_B11001_with_ann!D266","v":393},{"$f":"[1]ACS_16_5YR_B11001_with_ann!E266","v":59},{"$f":"[1]ACS_16_5YR_B11001_with_ann!F266","v":240},{"$f":"[1]ACS_16_5YR_B11001_with_ann!G266","v":47},{"$f":"[1]ACS_16_5YR_B11001_with_ann!H266","v":194},{"$f":"[1]ACS_16_5YR_B11001_with_ann!I266","v":43},{"$f":"[1]ACS_16_5YR_B11001_with_ann!J266","v":46},{"$f":"[1]ACS_16_5YR_B11001_with_ann!K266","v":30},{"$f":"[1]ACS_16_5YR_B11001_with_ann!L266","v":22},{"$f":"[1]ACS_16_5YR_B11001_with_ann!M266","v":23},{"$f":"[1]ACS_16_5YR_B11001_with_ann!N266","v":24},{"$f":"[1]ACS_16_5YR_B11001_with_ann!O266","v":18},{"$f":"[1]ACS_16_5YR_B11001_with_ann!P266","v":153},{"$f":"[1]ACS_16_5YR_B11001_with_ann!Q266","v":49},{"$f":"[1]ACS_16_5YR_B11001_with_ann!R266","v":132},{"$f":"[1]ACS_16_5YR_B11001_with_ann!S266","v":47},{"$f":"[1]ACS_16_5YR_B11001_with_ann!T266","v":21},{"$f":"[1]ACS_16_5YR_B11001_with_ann!U266","v":13}]
["0600000US3301952580",3301952580,"060","Newport",{"$f":"[1]ACS_16_5YR_B11001_with_ann!D267","v":2600},{"$f":"[1]ACS_16_5YR_B11001_with_ann!E267","v":168},{"$f":"[1]ACS_16_5YR_B11001_with_ann!F267","v":1572},{"$f":"[1]ACS_16_5YR_B11001_with_ann!G267","v":151},{"$f":"[1]ACS_16_5YR_B11001_with_ann!H267","v":967},{"$f":"[1]ACS_16_5YR_B11001_with_ann!I267","v":149},{"$f":"[1]ACS_16_5YR_B11001_with_ann!J267","v":605},{"$f":"[1]ACS_16_5YR_B11001_with_ann!K267","v":160},{"$f":"[1]ACS_16_5YR_B11001_with_ann!L267","v":118},{"$f":"[1]ACS_16_5YR_B11001_with_ann!M267","v":76},{"$f":"[1]ACS_16_5YR_B11001_with_ann!N267","v":487},{"$f":"[1]ACS_16_5YR_B11001_with_ann!O267","v":138},{"$f":"[1]ACS_16_5YR_B11001_with_ann!P267","v":1028},{"$f":"[1]ACS_16_5YR_B11001_with_ann!Q267","v":213},{"$f":"[1]ACS_16_5YR_B11001_with_ann!R267","v":808},{"$f":"[1]ACS_16_5YR_B11001_with_ann!S267","v":186},{"$f":"[1]ACS_16_5YR_B11001_with_ann!T267","v":220},{"$f":"[1]ACS_16_5YR_B11001_with_ann!U267","v":104}]
["0600000US3301962340",3301962340,"060","Plainfield",{"$f":"[1]ACS_16_5YR_B11001_with_ann!D268","v":915},{"$f":"[1]ACS_16_5YR_B11001_with_ann!E268","v":86},{"$f":"[1]ACS_16_5YR_B11001_with_ann!F268","v":715},{"$f":"[1]ACS_16_5YR_B11001_with_ann!G268","v":79},{"$f":"[1]ACS_16_5YR_B11001_with_ann!H268","v":599},{"$f":"[1]ACS_16_5YR_B11001_with_ann!I268","v":82},{"$f":"[1]ACS_16_5YR_B11001_with_ann!J268","v":116},{"$f":"[1]ACS_16_5YR_B11001_with_ann!K268","v":54},{"$f":"[1]ACS_16_5YR_B11001_with_ann!L268","v":23},{"$f":"[1]ACS_16_5YR_B11001_with_ann!M268","v":17},{"$f":"[1]ACS_16_5YR_B11001_with_ann!N268","v":93},{"$f":"[1]ACS_16_5YR_B11001_with_ann!O268","v":51},{"$f":"[1]ACS_16_5YR_B11001_with_ann!P268","v":200},{"$f":"[1]ACS_16_5YR_B11001_with_ann!Q268","v":55},{"$f":"[1]ACS_16_5YR_B11001_with_ann!R268","v":150},{"$f":"[1]ACS_16_5YR_B11001_with_ann!S268","v":49},{"$f":"[1]ACS_16_5YR_B11001_with_ann!T268","v":50},{"$f":"[1]ACS_16_5YR_B11001_with_ann!U268","v":26}]
["0600000US3301972740",3301972740,"060","Springfield",{"$f":"[1]ACS_16_5YR_B11001_with_ann!D269","v":442},{"$f":"[1]ACS_16_5YR_B11001_with_ann!E269","v":75},{"$f":"[1]ACS_16_5YR_B11001_with_ann!F269","v":337},{"$f":"[1]ACS_16_5YR_B11001_with_ann!G269","v":66},{"$f":"[1]ACS_16_5YR_B11001_with_ann!H269","v":304},{"$f":"[1]ACS_16_5YR_B11001_with_ann!I269","v":61},{"$f":"[1]ACS_16_5YR_B11001_with_ann!J269","v":33},{"$f":"[1]ACS_16_5YR_B11001_with_ann!K269","v":26},{"$f":"[1]ACS_16_5YR_B11001_with_ann!L269","v":5},{"$f":"[1]ACS_16_5YR_B11001_with_ann!M269","v":8},{"$f":"[1]ACS_16_5YR_B11001_with_ann!N269","v":28},{"$f":"[1]ACS_16_5YR_B11001_with_ann!O269","v":24},{"$f":"[1]ACS_16_5YR_B11001_with_ann!P269","v":105},{"$f":"[1]ACS_16_5YR_B11001_with_ann!Q269","v":46},{"$f":"[1]ACS_16_5YR_B11001_with_ann!R269","v":80},{"$f":"[1]ACS_16_5YR_B11001_with_ann!S269","v":40},{"$f":"[1]ACS_16_5YR_B11001_with_ann!T269","v":25},{"$f":"[1]ACS_16_5YR_B11001_with_ann!U269","v":23}]
["0600000US3301975060",3301975060,"060","Sunapee",{"$f":"[1]ACS_16_5YR_B11001_with_ann!D270","v":1393},{"$f":"[1]ACS_16_5YR_B11001_with_ann!E270","v":139},{"$f":"[1]ACS_16_5YR_B11001_with_ann!F270","v":901},{"$f":"[1]ACS_16_5YR_B11001_with_ann!G270","v":90},{"$f":"[1]ACS_16_5YR_B11001_with_ann!H270","v":753},{"$f":"[1]ACS_16_5YR_B11001_with_ann!I270","v":105},{"$f":"[1]ACS_16_5YR_B11001_with_ann!J270","v":148},{"$f":"[1]ACS_16_5YR_B11001_with_ann!K270","v":64},{"$f":"[1]ACS_16_5YR_B11001_with_ann!L270","v":53},{"$f":"[1]ACS_16_5YR_B11001_with_ann!M270","v":39},{"$f":"[1]ACS_16_5YR_B11001_with_ann!N270","v":95},{"$f":"[1]ACS_16_5YR_B11001_with_ann!O270","v":49},{"$f":"[1]ACS_16_5YR_B11001_with_ann!P270","v":492},{"$f":"[1]ACS_16_5YR_B11001_with_ann!Q270","v":142},{"$f":"[1]ACS_16_5YR_B11001_with_ann!R270","v":416},{"$f":"[1]ACS_16_5YR_B11001_with_ann!S270","v":137},{"$f":"[1]ACS_16_5YR_B11001_with_ann!T270","v":76},{"$f":"[1]ACS_16_5YR_B11001_with_ann!U270","v":59}]
["0600000US3301977940",3301977940,"060","Unity",{"$f":"[1]ACS_16_5YR_B11001_with_ann!D271","v":571},{"$f":"[1]ACS_16_5YR_B11001_with_ann!E271","v":56},{"$f":"[1]ACS_16_5YR_B11001_with_ann!F271","v":406},{"$f":"[1]ACS_16_5YR_B11001_with_ann!G271","v":48},{"$f":"[1]ACS_16_5YR_B11001_with_ann!H271","v":359},{"$f":"[1]ACS_16_5YR_B11001_with_ann!I271","v":44},{"$f":"[1]ACS_16_5YR_B11001_with_ann!J271","v":47},{"$f":"[1]ACS_16_5YR_B11001_with_ann!K271","v":22},{"$f":"[1]ACS_16_5YR_B11001_with_ann!L271","v":21},{"$f":"[1]ACS_16_5YR_B11001_with_ann!M271","v":11},{"$f":"[1]ACS_16_5YR_B11001_with_ann!N271","v":26},{"$f":"[1]ACS_16_5YR_B11001_with_ann!O271","v":19},{"$f":"[1]ACS_16_5YR_B11001_with_ann!P271","v":165},{"$f":"[1]ACS_16_5YR_B11001_with_ann!Q271","v":39},{"$f":"[1]ACS_16_5YR_B11001_with_ann!R271","v":110},{"$f":"[1]ACS_16_5YR_B11001_with_ann!S271","v":34},{"$f":"[1]ACS_16_5YR_B11001_with_ann!T271","v":55},{"$f":"[1]ACS_16_5YR_B11001_with_ann!U271","v":27}]
["0600000US3301978980",3301978980,"060","Washington",{"$f":"[1]ACS_16_5YR_B11001_with_ann!D272","v":537},{"$f":"[1]ACS_16_5YR_B11001_with_ann!E272","v":81},{"$f":"[1]ACS_16_5YR_B11001_with_ann!F272","v":419},{"$f":"[1]ACS_16_5YR_B11001_with_ann!G272","v":78},{"$f":"[1]ACS_16_5YR_B11001_with_ann!H272","v":387},{"$f":"[1]ACS_16_5YR_B11001_with_ann!I272","v":79},{"$f":"[1]ACS_16_5YR_B11001_with_ann!J272","v":32},{"$f":"[1]ACS_16_5YR_B11001_with_ann!K272","v":22},{"$f":"[1]ACS_16_5YR_B11001_with_ann!L272","v":9},{"$f":"[1]ACS_16_5YR_B11001_with_ann!M272","v":13},{"$f":"[1]ACS_16_5YR_B11001_with_ann!N272","v":23},{"$f":"[1]ACS_16_5YR_B11001_with_ann!O272","v":17},{"$f":"[1]ACS_16_5YR_B11001_with_ann!P272","v":118},{"$f":"[1]ACS_16_5YR_B11001_with_ann!Q272","v":45},{"$f":"[1]ACS_16_5YR_B11001_with_ann!R272","v":111},{"$f":"[1]ACS_16_5YR_B11001_with_ann!S272","v":44},{"$f":"[1]ACS_16_5YR_B11001_with_ann!T272","v":7},{"$f":"[1]ACS_16_5YR_B11001_with_ann!U272","v":6}]
[]
[null,null,null,null,{"$f":"$D$3","v":"Acworth"},null,{"$f":"$D$4","v":"Charlestown"},null,{"$f":"$D$5","v":"Claremont"},null,{"$f":"$D$6","v":"Cornish"},null,{"$f":"$D$7","v":"Croydon"},null,{"$f":"$D$8","v":"Goshen"},null,{"$f":"$D$9","v":"Grantham"},null,{"$f":"$D$10","v":"Langdon"},null,{"$f":"$D$11","v":"Lempster"},null,{"$f":"$D$12","v":"Newport"},null,{"$f":"$D$13","v":"Plainfield"},null,{"$f":"$D$14","v":"Springfield"},null,{"$f":"$D$15","v":"Sunapee"},null,{"$f":"$D$16","v":"Unity"},null,{"$f":"$D$17","v":"Washington"}]
[null,null,null,null,"Estimate","Margin Of Error","Estimate","Margin Of Error","Estimate","Margin Of Error","Estimate","Margin Of Error","Estimate","Margin Of Error","Estimate","Margin Of Error","Estimate","Margin Of Error","Estimate","Margin Of Error","Estimate","Margin Of Error","Estimate","Margin Of Error","Estimate","Margin Of Error","Estimate","Margin Of Error","Estimate","Margin Of Error",null,"Estimate","Margin Of Error"]
[null,null,null,"Estimate Total:",370,51,2086,184,5231,284,741,81,293,56,277,39,1222,142,257,47,393,59,2600,168,915,86,442,75,1393,139,571,56,537,81]
[null,null,null,"Estimate Total: Family households:",255,43,1379,163,3165,231,526,72,187,46,163,36,902,98,190,38,240,47,1572,151,715,79,337,66,901,90,406,48,419,78]
[null,null,null,"Estimate Total: Family households: Married-couple family",218,40,952,189,2118,235,482,69,158,46,112,31,750,119,174,37,194,43,967,149,599,82,304,61,753,105,359,44,387,79]
[null,null,null,"Estimate Total: Family households: Other family:",37,19,427,150,1047,202,44,19,29,17,51,22,152,85,16,13,46,30,605,160,116,54,33,26,148,64,47,22,32,22]
[null,null,null,"Estimate Total: Family households: Other family: Male householder",23,14,183,107,200,83,18,13,12,9,30,19,89,68,0,11,22,23,118,76,23,17,5,8,53,39,21,11,9,13]
[null,null,null,"Estimate Total: Family households: Other family: Female householder",14,12,244,116,847,201,26,14,17,15,21,14,63,55,16,13,24,18,487,138,93,51,28,24,95,49,26,19,23,17]
[null,null,null,"Estimate Total: Nonfamily households:",115,28,707,222,2066,273,215,55,106,36,114,36,320,149,67,27,153,49,1028,213,200,55,105,46,492,142,165,39,118,45]
[null,null,null,"Estimate Total: Nonfamily households: Householder living alone",89,25,656,218,1676,271,181,53,75,29,73,28,277,135,49,22,132,47,808,186,150,49,80,40,416,137,110,34,111,44]
[null,null,null,"Estimate Total: Nonfamily households: Householder not living alone",26,16,51,49,390,129,34,16,31,20,41,25,43,41,18,18,21,13,220,104,50,26,25,23,76,59,55,27,7,6]

{"sheet":"SData_B11002PopByHHType","index":28,"n_rows":32,"n_cols":34,"rows_kept":32,"cut":false,"hidden":true,"merged":[]}
["GEO_ID","GEO_ID2","SUMLEVEL","GEO_NAME","B11002_1_EST","B11002_1_MOE","B11002_2_EST","B11002_2_MOE","B11002_3_EST","B11002_3_MOE","B11002_4_EST","B11002_4_MOE","B11002_5_EST","B11002_5_MOE","B11002_6_EST","B11002_6_MOE","B11002_7_EST","B11002_7_MOE","B11002_8_EST","B11002_8_MOE","B11002_9_EST","B11002_9_MOE","B11002_10_EST","B11002_10_MOE","B11002_11_EST","B11002_11_MOE","B11002_12_EST","B11002_12_MOE"]
["Geography Identifier","Geography Identifier","Geographic Summary Level","Geography",{"$f":"[1]ACS_16_5YR_B11002_with_ann!D$2","v":"Estimate Total:"},{"$f":"[1]ACS_16_5YR_B11002_with_ann!E$2","v":"Margin of Error Total:"},{"$f":"[1]ACS_16_5YR_B11002_with_ann!F$2","v":"Estimate Total: In family households:"},{"$f":"[1]ACS_16_5YR_B11002_with_ann!G$2","v":"Margin of Error Total: In family households:"},{"$f":"[1]ACS_16_5YR_B11002_with_ann!H$2","v":"Estimate Total: In family households: In married-couple family:"},{"$f":"[1]ACS_16_5YR_B11002_with_ann!I$2","v":"Margin of Error Total: In family households: In married-couple family:"},{"$f":"[1]ACS_16_5YR_B11002_with_ann!J$2","v":"Estimate Total: In family households: In married-couple family: Relatives"},{"$f":"[1]ACS_16_5YR_B11002_with_ann!K$2","v":"Margin of Error Total: In family households: In married-couple family: Relatives"},{"$f":"[1]ACS_16_5YR_B11002_with_ann!L$2","v":"Estimate Total: In family households: In married-couple family: Nonrelatives"},{"$f":"[1]ACS_16_5YR_B11002_with_ann!M$2","v":"Margin of Error Total: In family households: In married-couple family: Nonrelatives"},{"$f":"[1]ACS_16_5YR_B11002_with_ann!N$2","v":"Estimate Total: In family households: In male householder, no spouse present, family:"},{"$f":"[1]ACS_16_5YR_B11002_with_ann!O$2","v":"Margin of Error Total: In family households: In male householder, no spouse present, family:"},{"$f":"[1]ACS_16_5YR_B11002_with_ann!P$2","v":"Estimate Total: In family households: In male householder, no spouse present, family: Relatives"},{"$f":"[1]ACS_16_5YR_B11002_with_ann!Q$2","v":"Margin of Error Total: In family households: In male householder, no spouse present, family: Relatives"},{"$f":"[1]ACS_16_5YR_B11002_with_ann!R$2","v":"Estimate Total: In family households: In male householder, no spouse present, family: Nonrelatives"},{"$f":"[1]ACS_16_5YR_B11002_with_ann!S$2","v":"Margin of Error Total: In family households: In male householder, no spouse present, family: Nonrelatives"},{"$f":"[1]ACS_16_5YR_B11002_with_ann!T$2","v":"Estimate Total: In family households: In female householder, no spouse present, family:"},{"$f":"[1]ACS_16_5YR_B11002_with_ann!U$2","v":"Margin of Error Total: In family households: In female householder, no spouse present, family:"},{"$f":"[1]ACS_16_5YR_B11002_with_ann!V$2","v":"Estimate Total: In family households: In female householder, no spouse present, family: Relatives"},{"$f":"[1]ACS_16_5YR_B11002_with_ann!W$2","v":"Margin of Error Total: In family households: In female householder, no spouse present, family: Relatives"},{"$f":"[1]ACS_16_5YR_B11002_with_ann!X$2","v":"Estimate Total: In family households: In female householder, no spouse present, family: Nonrelatives"},{"$f":"[1]ACS_16_5YR_B11002_with_ann!Y$2","v":"Margin of Error Total: In family households: In female householder, no spouse present, family: Nonrelatives"},{"$f":"[1]ACS_16_5YR_B11002_with_ann!Z$2","v":"Estimate Total: In nonfamily households"},{"$f":"[1]ACS_16_5YR_B11002_with_ann!AA$2","v":"Margin of Error Total: In nonfamily households"}]
["0600000US3301900259",3301900259,"060","Acworth",{"$f":"[1]ACS_16_5YR_B11002_with_ann!D258","v":906},{"$f":"[1]ACS_16_5YR_B11002_with_ann!E258","v":134},{"$f":"[1]ACS_16_5YR_B11002_with_ann!F258","v":743},{"$f":"[1]ACS_16_5YR_B11002_with_ann!G258","v":126},{"$f":"[1]ACS_16_5YR_B11002_with_ann!H258","v":597},{"$f":"[1]ACS_16_5YR_B11002_with_ann!I258","v":112},{"$f":"[1]ACS_16_5YR_B11002_with_ann!J258","v":593},{"$f":"[1]ACS_16_5YR_B11002_with_ann!K258","v":111},{"$f":"[1]ACS_16_5YR_B11002_with_ann!L258","v":4},{"$f":"[1]ACS_16_5YR_B11002_with_ann!M258","v":5},{"$f":"[1]ACS_16_5YR_B11002_with_ann!N258","v":97},{"$f":"[1]ACS_16_5YR_B11002_with_ann!O258","v":59},{"$f":"[1]ACS_16_5YR_B11002_with_ann!P258","v":84},{"$f":"[1]ACS_16_5YR_B11002_with_ann!Q258","v":52},{"$f":"[1]ACS_16_5YR_B11002_with_ann!R258","v":13},{"$f":"[1]ACS_16_5YR_B11002_with_ann!S258","v":9},{"$f":"[1]ACS_16_5YR_B11002_with_ann!T258","v":49},{"$f":"[1]ACS_16_5YR_B11002_with_ann!U258","v":41},{"$f":"[1]ACS_16_5YR_B11002_with_ann!V258","v":49},{"$f":"[1]ACS_16_5YR_B11002_with_ann!W258","v":41},{"$f":"[1]ACS_16_5YR_B11002_with_ann!X258","v":0},{"$f":"[1]ACS_16_5YR_B11002_with_ann!Y258","v":11},{"$f":"[1]ACS_16_5YR_B11002_with_ann!Z258","v":163},{"$f":"[1]ACS_16_5YR_B11002_with_ann!AA258","v":55}]
["0600000US3301911380",3301911380,"060","Charlestown",{"$f":"[1]ACS_16_5YR_B11002_with_ann!D259","v":5003},{"$f":"[1]ACS_16_5YR_B11002_with_ann!E259","v":23},{"$f":"[1]ACS_16_5YR_B11002_with_ann!F259","v":4242},{"$f":"[1]ACS_16_5YR_B11002_with_ann!G259","v":235},{"$f":"[1]ACS_16_5YR_B11002_with_ann!H259","v":2660},{"$f":"[1]ACS_16_5YR_B11002_with_ann!I259","v":552},{"$f":"[1]ACS_16_5YR_B11002_with_ann!J259","v":2559},{"$f":"[1]ACS_16_5YR_B11002_with_ann!K259","v":515},{"$f":"[1]ACS_16_5YR_B11002_with_ann!L259","v":101},{"$f":"[1]ACS_16_5YR_B11002_with_ann!M259","v":103},{"$f":"[1]ACS_16_5YR_B11002_with_ann!N259","v":695},{"$f":"[1]ACS_16_5YR_B11002_with_ann!O259","v":394},{"$f":"[1]ACS_16_5YR_B11002_with_ann!P259","v":604},{"$f":"[1]ACS_16_5YR_B11002_with_ann!Q259","v":346},{"$f":"[1]ACS_16_5YR_B11002_with_ann!R259","v":91},{"$f":"[1]ACS_16_5YR_B11002_with_ann!S259","v":77},{"$f":"[1]ACS_16_5YR_B11002_with_ann!T259","v":887},{"$f":"[1]ACS_16_5YR_B11002_with_ann!U259","v":482},{"$f":"[1]ACS_16_5YR_B11002_with_ann!V259","v":773},{"$f":"[1]ACS_16_5YR_B11002_with_ann!W259","v":394},{"$f":"[1]ACS_16_5YR_B11002_with_ann!X259","v":114},{"$f":"[1]ACS_16_5YR_B11002_with_ann!Y259","v":103},{"$f":"[1]ACS_16_5YR_B11002_with_ann!Z259","v":761},{"$f":"[1]ACS_16_5YR_B11002_with_ann!AA259","v":237}]
["0600000US3301912900",3301912900,"060","Claremont",{"$f":"[1]ACS_16_5YR_B11002_with_ann!D260","v":12846},{"$f":"[1]ACS_16_5YR_B11002_with_ann!E260","v":112},{"$f":"[1]ACS_16_5YR_B11002_with_ann!F260","v":10117},{"$f":"[1]ACS_16_5YR_B11002_with_ann!G260","v":379},{"$f":"[1]ACS_16_5YR_B11002_with_ann!H260","v":6365},{"$f":"[1]ACS_16_5YR_B11002_with_ann!I260","v":714},{"$f":"[1]ACS_16_5YR_B11002_with_ann!J260","v":6318},{"$f":"[1]ACS_16_5YR_B11002_with_ann!K260","v":712},{"$f":"[1]ACS_16_5YR_B11002_with_ann!L260","v":47},{"$f":"[1]ACS_16_5YR_B11002_with_ann!M260","v":46},{"$f":"[1]ACS_16_5YR_B11002_with_ann!N260","v":671},{"$f":"[1]ACS_16_5YR_B11002_with_ann!O260","v":334},{"$f":"[1]ACS_16_5YR_B11002_with_ann!P260","v":572},{"$f":"[1]ACS_16_5YR_B11002_with_ann!Q260","v":270},{"$f":"[1]ACS_16_5YR_B11002_with_ann!R260","v":99},{"$f":"[1]ACS_16_5YR_B11002_with_ann!S260","v":80},{"$f":"[1]ACS_16_5YR_B11002_with_ann!T260","v":3081},{"$f":"[1]ACS_16_5YR_B11002_with_ann!U260","v":710},{"$f":"[1]ACS_16_5YR_B11002_with_ann!V260","v":2575},{"$f":"[1]ACS_16_5YR_B11002_with_ann!W260","v":570},{"$f":"[1]ACS_16_5YR_B11002_with_ann!X260","v":506},{"$f":"[1]ACS_16_5YR_B11002_with_ann!Y260","v":220},{"$f":"[1]ACS_16_5YR_B11002_with_ann!Z260","v":2729},{"$f":"[1]ACS_16_5YR_B11002_with_ann!AA260","v":353}]
["0600000US3301915060",3301915060,"060","Cornish",{"$f":"[1]ACS_16_5YR_B11002_with_ann!D261","v":1783},{"$f":"[1]ACS_16_5YR_B11002_with_ann!E261","v":217},{"$f":"[1]ACS_16_5YR_B11002_with_ann!F261","v":1508},{"$f":"[1]ACS_16_5YR_B11002_with_ann!G261","v":207},{"$f":"[1]ACS_16_5YR_B11002_with_ann!H261","v":1370},{"$f":"[1]ACS_16_5YR_B11002_with_ann!I261","v":201},{"$f":"[1]ACS_16_5YR_B11002_with_ann!J261","v":1364},{"$f":"[1]ACS_16_5YR_B11002_with_ann!K261","v":202},{"$f":"[1]ACS_16_5YR_B11002_with_ann!L261","v":6},{"$f":"[1]ACS_16_5YR_B11002_with_ann!M261","v":8},{"$f":"[1]ACS_16_5YR_B11002_with_ann!N261","v":69},{"$f":"[1]ACS_16_5YR_B11002_with_ann!O261","v":52},{"$f":"[1]ACS_16_5YR_B11002_with_ann!P261","v":62},{"$f":"[1]ACS_16_5YR_B11002_with_ann!Q261","v":45},{"$f":"[1]ACS_16_5YR_B11002_with_ann!R261","v":7},{"$f":"[1]ACS_16_5YR_B11002_with_ann!S261","v":8},{"$f":"[1]ACS_16_5YR_B11002_with_ann!T261","v":69},{"$f":"[1]ACS_16_5YR_B11002_with_ann!U261","v":37},{"$f":"[1]ACS_16_5YR_B11002_with_ann!V261","v":69},{"$f":"[1]ACS_16_5YR_B11002_with_ann!W261","v":37},{"$f":"[1]ACS_16_5YR_B11002_with_ann!X261","v":0},{"$f":"[1]ACS_16_5YR_B11002_with_ann!Y261","v":11},{"$f":"[1]ACS_16_5YR_B11002_with_ann!Z261","v":275},{"$f":"[1]ACS_16_5YR_B11002_with_ann!AA261","v":71}]
["0600000US3301916340",3301916340,"060","Croydon",{"$f":"[1]ACS_16_5YR_B11002_with_ann!D262","v":863},{"$f":"[1]ACS_16_5YR_B11002_with_ann!E262","v":244},{"$f":"[1]ACS_16_5YR_B11002_with_ann!F262","v":710},{"$f":"[1]ACS_16_5YR_B11002_with_ann!G262","v":242},{"$f":"[1]ACS_16_5YR_B11002_with_ann!H262","v":586},{"$f":"[1]ACS_16_5YR_B11002_with_ann!I262","v":238},{"$f":"[1]ACS_16_5YR_B11002_with_ann!J262","v":559},{"$f":"[1]ACS_16_5YR_B11002_with_ann!K262","v":229},{"$f":"[1]ACS_16_5YR_B11002_with_ann!L262","v":27},{"$f":"[1]ACS_16_5YR_B11002_with_ann!M262","v":31},{"$f":"[1]ACS_16_5YR_B11002_with_ann!N262","v":32},{"$f":"[1]ACS_16_5YR_B11002_with_ann!O262","v":22},{"$f":"[1]ACS_16_5YR_B11002_with_ann!P262","v":32},{"$f":"[1]ACS_16_5YR_B11002_with_ann!Q262","v":22},{"$f":"[1]ACS_16_5YR_B11002_with_ann!R262","v":0},{"$f":"[1]ACS_16_5YR_B11002_with_ann!S262","v":11},{"$f":"[1]ACS_16_5YR_B11002_with_ann!T262","v":92},{"$f":"[1]ACS_16_5YR_B11002_with_ann!U262","v":85},{"$f":"[1]ACS_16_5YR_B11002_with_ann!V262","v":76},{"$f":"[1]ACS_16_5YR_B11002_with_ann!W262","v":72},{"$f":"[1]ACS_16_5YR_B11002_with_ann!X262","v":16},{"$f":"[1]ACS_16_5YR_B11002_with_ann!Y262","v":14},{"$f":"[1]ACS_16_5YR_B11002_with_ann!Z262","v":153},{"$f":"[1]ACS_16_5YR_B11002_with_ann!AA262","v":56}]
["0600000US3301930500",3301930500,"060","Goshen",{"$f":"[1]ACS_16_5YR_B11002_with_ann!D263","v":680},{"$f":"[1]ACS_16_5YR_B11002_with_ann!E263","v":109},{"$f":"[1]ACS_16_5YR_B11002_with_ann!F263","v":518},{"$f":"[1]ACS_16_5YR_B11002_with_ann!G263","v":111},{"$f":"[1]ACS_16_5YR_B11002_with_ann!H263","v":314},{"$f":"[1]ACS_16_5YR_B11002_with_ann!I263","v":86},{"$f":"[1]ACS_16_5YR_B11002_with_ann!J263","v":314},{"$f":"[1]ACS_16_5YR_B11002_with_ann!K263","v":86},{"$f":"[1]ACS_16_5YR_B11002_with_ann!L263","v":0},{"$f":"[1]ACS_16_5YR_B11002_with_ann!M263","v":11},{"$f":"[1]ACS_16_5YR_B11002_with_ann!N263","v":126},{"$f":"[1]ACS_16_5YR_B11002_with_ann!O263","v":78},{"$f":"[1]ACS_16_5YR_B11002_with_ann!P263","v":96},{"$f":"[1]ACS_16_5YR_B11002_with_ann!Q263","v":62},{"$f":"[1]ACS_16_5YR_B11002_with_ann!R263","v":30},{"$f":"[1]ACS_16_5YR_B11002_with_ann!S263","v":24},{"$f":"[1]ACS_16_5YR_B11002_with_ann!T263","v":78},{"$f":"[1]ACS_16_5YR_B11002_with_ann!U263","v":54},{"$f":"[1]ACS_16_5YR_B11002_with_ann!V263","v":61},{"$f":"[1]ACS_16_5YR_B11002_with_ann!W263","v":41},{"$f":"[1]ACS_16_5YR_B11002_with_ann!X263","v":17},{"$f":"[1]ACS_16_5YR_B11002_with_ann!Y263","v":18},{"$f":"[1]ACS_16_5YR_B11002_with_ann!Z263","v":162},{"$f":"[1]ACS_16_5YR_B11002_with_ann!AA263","v":52}]
["0600000US3301931220",3301931220,"060","Grantham",{"$f":"[1]ACS_16_5YR_B11002_with_ann!D264","v":2945},{"$f":"[1]ACS_16_5YR_B11002_with_ann!E264","v":14},{"$f":"[1]ACS_16_5YR_B11002_with_ann!F264","v":2572},{"$f":"[1]ACS_16_5YR_B11002_with_ann!G264","v":180},{"$f":"[1]ACS_16_5YR_B11002_with_ann!H264","v":1998},{"$f":"[1]ACS_16_5YR_B11002_with_ann!I264","v":305},{"$f":"[1]ACS_16_5YR_B11002_with_ann!J264","v":1998},{"$f":"[1]ACS_16_5YR_B11002_with_ann!K264","v":305},{"$f":"[1]ACS_16_5YR_B11002_with_ann!L264","v":0},{"$f":"[1]ACS_16_5YR_B11002_with_ann!M264","v":11},{"$f":"[1]ACS_16_5YR_B11002_with_ann!N264","v":355},{"$f":"[1]ACS_16_5YR_B11002_with_ann!O264","v":313},{"$f":"[1]ACS_16_5YR_B11002_with_ann!P264","v":355},{"$f":"[1]ACS_16_5YR_B11002_with_ann!Q264","v":313},{"$f":"[1]ACS_16_5YR_B11002_with_ann!R264","v":0},{"$f":"[1]ACS_16_5YR_B11002_with_ann!S264","v":11},{"$f":"[1]ACS_16_5YR_B11002_with_ann!T264","v":219},{"$f":"[1]ACS_16_5YR_B11002_with_ann!U264","v":177},{"$f":"[1]ACS_16_5YR_B11002_with_ann!V264","v":170},{"$f":"[1]ACS_16_5YR_B11002_with_ann!W264","v":141},{"$f":"[1]ACS_16_5YR_B11002_with_ann!X264","v":49},{"$f":"[1]ACS_16_5YR_B11002_with_ann!Y264","v":71},{"$f":"[1]ACS_16_5YR_B11002_with_ann!Z264","v":373},{"$f":"[1]ACS_16_5YR_B11002_with_ann!AA264","v":178}]
["0600000US3301940900",3301940900,"060","Langdon",{"$f":"[1]ACS_16_5YR_B11002_with_ann!D265","v":712},{"$f":"[1]ACS_16_5YR_B11002_with_ann!E265","v":145},{"$f":"[1]ACS_16_5YR_B11002_with_ann!F265","v":615},{"$f":"[1]ACS_16_5YR_B11002_with_ann!G265","v":146},{"$f":"[1]ACS_16_5YR_B11002_with_ann!H265","v":544},{"$f":"[1]ACS_16_5YR_B11002_with_ann!I265","v":141},{"$f":"[1]ACS_16_5YR_B11002_with_ann!J265","v":541},{"$f":"[1]ACS_16_5YR_B11002_with_ann!K265","v":141},{"$f":"[1]ACS_16_5YR_B11002_with_ann!L265","v":3},{"$f":"[1]ACS_16_5YR_B11002_with_ann!M265","v":4},{"$f":"[1]ACS_16_5YR_B11002_with_ann!N265","v":0},{"$f":"[1]ACS_16_5YR_B11002_with_ann!O265","v":11},{"$f":"[1]ACS_16_5YR_B11002_with_ann!P265","v":0},{"$f":"[1]ACS_16_5YR_B11002_with_ann!Q265","v":11},{"$f":"[1]ACS_16_5YR_B11002_with_ann!R265","v":0},{"$f":"[1]ACS_16_5YR_B11002_with_ann!S265","v":11},{"$f":"[1]ACS_16_5YR_B11002_with_ann!T265","v":71},{"$f":"[1]ACS_16_5YR_B11002_with_ann!U265","v":56},{"$f":"[1]ACS_16_5YR_B11002_with_ann!V265","v":60},{"$f":"[1]ACS_16_5YR_B11002_with_ann!W265","v":46},{"$f":"[1]ACS_16_5YR_B11002_with_ann!X265","v":11},{"$f":"[1]ACS_16_5YR_B11002_with_ann!Y265","v":11},{"$f":"[1]ACS_16_5YR_B11002_with_ann!Z265","v":97},{"$f":"[1]ACS_16_5YR_B11002_with_ann!AA265","v":48}]
["0600000US3301941700",3301941700,"060","Lempster",{"$f":"[1]ACS_16_5YR_B11002_with_ann!D266","v":923},{"$f":"[1]ACS_16_5YR_B11002_with_ann!E266","v":176},{"$f":"[1]ACS_16_5YR_B11002_with_ann!F266","v":739},{"$f":"[1]ACS_16_5YR_B11002_with_ann!G266","v":178},{"$f":"[1]ACS_16_5YR_B11002_with_ann!H266","v":560},{"$f":"[1]ACS_16_5YR_B11002_with_ann!I266","v":154},{"$f":"[1]ACS_16_5YR_B11002_with_ann!J266","v":550},{"$f":"[1]ACS_16_5YR_B11002_with_ann!K266","v":152},{"$f":"[1]ACS_16_5YR_B11002_with_ann!L266","v":10},{"$f":"[1]ACS_16_5YR_B11002_with_ann!M266","v":11},{"$f":"[1]ACS_16_5YR_B11002_with_ann!N266","v":72},{"$f":"[1]ACS_16_5YR_B11002_with_ann!O266","v":74},{"$f":"[1]ACS_16_5YR_B11002_with_ann!P266","v":66},{"$f":"[1]ACS_16_5YR_B11002_with_ann!Q266","v":73},{"$f":"[1]ACS_16_5YR_B11002_with_ann!R266","v":6},{"$f":"[1]ACS_16_5YR_B11002_with_ann!S266","v":6},{"$f":"[1]ACS_16_5YR_B11002_with_ann!T266","v":107},{"$f":"[1]ACS_16_5YR_B11002_with_ann!U266","v":82},{"$f":"[1]ACS_16_5YR_B11002_with_ann!V266","v":91},{"$f":"[1]ACS_16_5YR_B11002_with_ann!W266","v":77},{"$f":"[1]ACS_16_5YR_B11002_with_ann!X266","v":16},{"$f":"[1]ACS_16_5YR_B11002_with_ann!Y266","v":10},{"$f":"[1]ACS_16_5YR_B11002_with_ann!Z266","v":184},{"$f":"[1]ACS_16_5YR_B11002_with_ann!AA266","v":56}]
["0600000US3301952580",3301952580,"060","Newport",{"$f":"[1]ACS_16_5YR_B11002_with_ann!D267","v":6236},{"$f":"[1]ACS_16_5YR_B11002_with_ann!E267","v":79},{"$f":"[1]ACS_16_5YR_B11002_with_ann!F267","v":4959},{"$f":"[1]ACS_16_5YR_B11002_with_ann!G267","v":295},{"$f":"[1]ACS_16_5YR_B11002_with_ann!H267","v":2838},{"$f":"[1]ACS_16_5YR_B11002_with_ann!I267","v":447},{"$f":"[1]ACS_16_5YR_B11002_with_ann!J267","v":2804},{"$f":"[1]ACS_16_5YR_B11002_with_ann!K267","v":438},{"$f":"[1]ACS_16_5YR_B11002_with_ann!L267","v":34},{"$f":"[1]ACS_16_5YR_B11002_with_ann!M267","v":39},{"$f":"[1]ACS_16_5YR_B11002_with_ann!N267","v":344},{"$f":"[1]ACS_16_5YR_B11002_with_ann!O267","v":197},{"$f":"[1]ACS_16_5YR_B11002_with_ann!P267","v":296},{"$f":"[1]ACS_16_5YR_B11002_with_ann!Q267","v":162},{"$f":"[1]ACS_16_5YR_B11002_with_ann!R267","v":48},{"$f":"[1]ACS_16_5YR_B11002_with_ann!S267","v":58},{"$f":"[1]ACS_16_5YR_B11002_with_ann!T267","v":1777},{"$f":"[1]ACS_16_5YR_B11002_with_ann!U267","v":458},{"$f":"[1]ACS_16_5YR_B11002_with_ann!V267","v":1439},{"$f":"[1]ACS_16_5YR_B11002_with_ann!W267","v":359},{"$f":"[1]ACS_16_5YR_B11002_with_ann!X267","v":338},{"$f":"[1]ACS_16_5YR_B11002_with_ann!Y267","v":143},{"$f":"[1]ACS_16_5YR_B11002_with_ann!Z267","v":1277},{"$f":"[1]ACS_16_5YR_B11002_with_ann!AA267","v":291}]
["0600000US3301962340",3301962340,"060","Plainfield",{"$f":"[1]ACS_16_5YR_B11002_with_ann!D268","v":2415},{"$f":"[1]ACS_16_5YR_B11002_with_ann!E268","v":293},{"$f":"[1]ACS_16_5YR_B11002_with_ann!F268","v":2158},{"$f":"[1]ACS_16_5YR_B11002_with_ann!G268","v":296},{"$f":"[1]ACS_16_5YR_B11002_with_ann!H268","v":1832},{"$f":"[1]ACS_16_5YR_B11002_with_ann!I268","v":312},{"$f":"[1]ACS_16_5YR_B11002_with_ann!J268","v":1832},{"$f":"[1]ACS_16_5YR_B11002_with_ann!K268","v":312},{"$f":"[1]ACS_16_5YR_B11002_with_ann!L268","v":0},{"$f":"[1]ACS_16_5YR_B11002_with_ann!M268","v":11},{"$f":"[1]ACS_16_5YR_B11002_with_ann!N268","v":69},{"$f":"[1]ACS_16_5YR_B11002_with_ann!O268","v":52},{"$f":"[1]ACS_16_5YR_B11002_with_ann!P268","v":69},{"$f":"[1]ACS_16_5YR_B11002_with_ann!Q268","v":52},{"$f":"[1]ACS_16_5YR_B11002_with_ann!R268","v":0},{"$f":"[1]ACS_16_5YR_B11002_with_ann!S268","v":11},{"$f":"[1]ACS_16_5YR_B11002_with_ann!T268","v":257},{"$f":"[1]ACS_16_5YR_B11002_with_ann!U268","v":141},{"$f":"[1]ACS_16_5YR_B11002_with_ann!V268","v":257},{"$f":"[1]ACS_16_5YR_B11002_with_ann!W268","v":141},{"$f":"[1]ACS_16_5YR_B11002_with_ann!X268","v":0},{"$f":"[1]ACS_16_5YR_B11002_with_ann!Y268","v":11},{"$f":"[1]ACS_16_5YR_B11002_with_ann!Z268","v":257},{"$f":"[1]ACS_16_5YR_B11002_with_ann!AA268","v":72}]
["0600000US3301972740",3301972740,"060","Springfield",{"$f":"[1]ACS_16_5YR_B11002_with_ann!D269","v":1084},{"$f":"[1]ACS_16_5YR_B11002_with_ann!E269","v":198},{"$f":"[1]ACS_16_5YR_B11002_with_ann!F269","v":945},{"$f":"[1]ACS_16_5YR_B11002_with_ann!G269","v":197},{"$f":"[1]ACS_16_5YR_B11002_with_ann!H269","v":840},{"$f":"[1]ACS_16_5YR_B11002_with_ann!I269","v":179},{"$f":"[1]ACS_16_5YR_B11002_with_ann!J269","v":827},{"$f":"[1]ACS_16_5YR_B11002_with_ann!K269","v":172},{"$f":"[1]ACS_16_5YR_B11002_with_ann!L269","v":13},{"$f":"[1]ACS_16_5YR_B11002_with_ann!M269","v":21},{"$f":"[1]ACS_16_5YR_B11002_with_ann!N269","v":11},{"$f":"[1]ACS_16_5YR_B11002_with_ann!O269","v":18},{"$f":"[1]ACS_16_5YR_B11002_with_ann!P269","v":11},{"$f":"[1]ACS_16_5YR_B11002_with_ann!Q269","v":18},{"$f":"[1]ACS_16_5YR_B11002_with_ann!R269","v":0},{"$f":"[1]ACS_16_5YR_B11002_with_ann!S269","v":11},{"$f":"[1]ACS_16_5YR_B11002_with_ann!T269","v":94},{"$f":"[1]ACS_16_5YR_B11002_with_ann!U269","v":87},{"$f":"[1]ACS_16_5YR_B11002_with_ann!V269","v":94},{"$f":"[1]ACS_16_5YR_B11002_with_ann!W269","v":87},{"$f":"[1]ACS_16_5YR_B11002_with_ann!X269","v":0},{"$f":"[1]ACS_16_5YR_B11002_with_ann!Y269","v":11},{"$f":"[1]ACS_16_5YR_B11002_with_ann!Z269","v":139},{"$f":"[1]ACS_16_5YR_B11002_with_ann!AA269","v":67}]
["0600000US3301975060",3301975060,"060","Sunapee",{"$f":"[1]ACS_16_5YR_B11002_with_ann!D270","v":3434},{"$f":"[1]ACS_16_5YR_B11002_with_ann!E270","v":21},{"$f":"[1]ACS_16_5YR_B11002_with_ann!F270","v":2836},{"$f":"[1]ACS_16_5YR_B11002_with_ann!G270","v":183},{"$f":"[1]ACS_16_5YR_B11002_with_ann!H270","v":2387},{"$f":"[1]ACS_16_5YR_B11002_with_ann!I270","v":279},{"$f":"[1]ACS_16_5YR_B11002_with_ann!J270","v":2370},{"$f":"[1]ACS_16_5YR_B11002_with_ann!K270","v":278},{"$f":"[1]ACS_16_5YR_B11002_with_ann!L270","v":17},{"$f":"[1]ACS_16_5YR_B11002_with_ann!M270","v":28},{"$f":"[1]ACS_16_5YR_B11002_with_ann!N270","v":172},{"$f":"[1]ACS_16_5YR_B11002_with_ann!O270","v":134},{"$f":"[1]ACS_16_5YR_B11002_with_ann!P270","v":143},{"$f":"[1]ACS_16_5YR_B11002_with_ann!Q270","v":107},{"$f":"[1]ACS_16_5YR_B11002_with_ann!R270","v":29},{"$f":"[1]ACS_16_5YR_B11002_with_ann!S270","v":31},{"$f":"[1]ACS_16_5YR_B11002_with_ann!T270","v":277},{"$f":"[1]ACS_16_5YR_B11002_with_ann!U270","v":141},{"$f":"[1]ACS_16_5YR_B11002_with_ann!V270","v":238},{"$f":"[1]ACS_16_5YR_B11002_with_ann!W270","v":124},{"$f":"[1]ACS_16_5YR_B11002_with_ann!X270","v":39},{"$f":"[1]ACS_16_5YR_B11002_with_ann!Y270","v":24},{"$f":"[1]ACS_16_5YR_B11002_with_ann!Z270","v":598},{"$f":"[1]ACS_16_5YR_B11002_with_ann!AA270","v":185}]
["0600000US3301977940",3301977940,"060","Unity",{"$f":"[1]ACS_16_5YR_B11002_with_ann!D271","v":1331},{"$f":"[1]ACS_16_5YR_B11002_with_ann!E271","v":148},{"$f":"[1]ACS_16_5YR_B11002_with_ann!F271","v":1086},{"$f":"[1]ACS_16_5YR_B11002_with_ann!G271","v":139},{"$f":"[1]ACS_16_5YR_B11002_with_ann!H271","v":923},{"$f":"[1]ACS_16_5YR_B11002_with_ann!I271","v":135},{"$f":"[1]ACS_16_5YR_B11002_with_ann!J271","v":909},{"$f":"[1]ACS_16_5YR_B11002_with_ann!K271","v":133},{"$f":"[1]ACS_16_5YR_B11002_with_ann!L271","v":14},{"$f":"[1]ACS_16_5YR_B11002_with_ann!M271","v":18},{"$f":"[1]ACS_16_5YR_B11002_with_ann!N271","v":76},{"$f":"[1]ACS_16_5YR_B11002_with_ann!O271","v":36},{"$f":"[1]ACS_16_5YR_B11002_with_ann!P271","v":58},{"$f":"[1]ACS_16_5YR_B11002_with_ann!Q271","v":28},{"$f":"[1]ACS_16_5YR_B11002_with_ann!R271","v":18},{"$f":"[1]ACS_16_5YR_B11002_with_ann!S271","v":12},{"$f":"[1]ACS_16_5YR_B11002_with_ann!T271","v":87},{"$f":"[1]ACS_16_5YR_B11002_with_ann!U271","v":62},{"$f":"[1]ACS_16_5YR_B11002_with_ann!V271","v":64},{"$f":"[1]ACS_16_5YR_B11002_with_ann!W271","v":43},{"$f":"[1]ACS_16_5YR_B11002_with_ann!X271","v":23},{"$f":"[1]ACS_16_5YR_B11002_with_ann!Y271","v":23},{"$f":"[1]ACS_16_5YR_B11002_with_ann!Z271","v":245},{"$f":"[1]ACS_16_5YR_B11002_with_ann!AA271","v":68}]
["0600000US3301978980",3301978980,"060","Washington",{"$f":"[1]ACS_16_5YR_B11002_with_ann!D272","v":1199},{"$f":"[1]ACS_16_5YR_B11002_with_ann!E272","v":188},{"$f":"[1]ACS_16_5YR_B11002_with_ann!F272","v":1072},{"$f":"[1]ACS_16_5YR_B11002_with_ann!G272","v":191},{"$f":"[1]ACS_16_5YR_B11002_with_ann!H272","v":962},{"$f":"[1]ACS_16_5YR_B11002_with_ann!I272","v":194},{"$f":"[1]ACS_16_5YR_B11002_with_ann!J272","v":959},{"$f":"[1]ACS_16_5YR_B11002_with_ann!K272","v":194},{"$f":"[1]ACS_16_5YR_B11002_with_ann!L272","v":3},{"$f":"[1]ACS_16_5YR_B11002_with_ann!M272","v":6},{"$f":"[1]ACS_16_5YR_B11002_with_ann!N272","v":41},{"$f":"[1]ACS_16_5YR_B11002_with_ann!O272","v":47},{"$f":"[1]ACS_16_5YR_B11002_with_ann!P272","v":26},{"$f":"[1]ACS_16_5YR_B11002_with_ann!Q272","v":35},{"$f":"[1]ACS_16_5YR_B11002_with_ann!R272","v":15},{"$f":"[1]ACS_16_5YR_B11002_with_ann!S272","v":18},{"$f":"[1]ACS_16_5YR_B11002_with_ann!T272","v":69},{"$f":"[1]ACS_16_5YR_B11002_with_ann!U272","v":46},{"$f":"[1]ACS_16_5YR_B11002_with_ann!V272","v":68},{"$f":"[1]ACS_16_5YR_B11002_with_ann!W272","v":46},{"$f":"[1]ACS_16_5YR_B11002_with_ann!X272","v":1},{"$f":"[1]ACS_16_5YR_B11002_with_ann!Y272","v":2},{"$f":"[1]ACS_16_5YR_B11002_with_ann!Z272","v":127},{"$f":"[1]ACS_16_5YR_B11002_with_ann!AA272","v":47}]
[]
[null,null,null,null,{"$f":"$D$3","v":"Acworth"},null,{"$f":"$D$4","v":"Charlestown"},null,{"$f":"$D$5","v":"Claremont"},null,{"$f":"$D$6","v":"Cornish"},null,{"$f":"$D$7","v":"Croydon"},null,{"$f":"$D$8","v":"Goshen"},null,{"$f":"$D$9","v":"Grantham"},null,{"$f":"$D$10","v":"Langdon"},null,{"$f":"$D$11","v":"Lempster"},null,{"$f":"$D$12","v":"Newport"},null,{"$f":"$D$13","v":"Plainfield"},null,{"$f":"$D$14","v":"Springfield"},null,{"$f":"$D$15","v":"Sunapee"},null,{"$f":"$D$16","v":"Unity"},null,{"$f":"$D$17","v":"Washington"}]
[null,null,null,null,"Estimate","Margin Of Error","Estimate","Margin Of Error","Estimate","Margin Of Error","Estimate","Margin Of Error","Estimate","Margin Of Error","Estimate","Margin Of Error","Estimate","Margin Of Error","Estimate","Margin Of Error","Estimate","Margin Of Error","Estimate","Margin Of Error","Estimate","Margin Of Error","Estimate","Margin Of Error","Estimate","Margin Of Error",null,"Estimate","Margin Of Error"]
[null,null,null,"Estimate Total:",906,134,5003,23,12846,112,1783,217,863,244,680,109,2945,14,712,145,923,176,6236,79,2415,293,1084,198,3434,21,1331,148,1199,188]
[null,null,null,"Estimate Total: In family households:",743,126,4242,235,10117,379,1508,207,710,242,518,111,2572,180,615,146,739,178,4959,295,2158,296,945,197,2836,183,1086,139,1072,191]
[null,null,null,"Estimate Total: In family households: In married-couple family:",597,112,2660,552,6365,714,1370,201,586,238,314,86,1998,305,544,141,560,154,2838,447,1832,312,840,179,2387,279,923,135,962,194]
[null,null,null,"Estimate Total: In family households: In married-couple family: Relatives",593,111,2559,515,6318,712,1364,202,559,229,314,86,1998,305,541,141,550,152,2804,438,1832,312,827,172,2370,278,909,133,959,194]
[null,null,null,"Estimate Total: In family households: In married-couple family: Nonrelatives",4,5,101,103,47,46,6,8,27,31,0,11,0,11,3,4,10,11,34,39,0,11,13,21,17,28,14,18,3,6]
[null,null,null,"Estimate Total: In family households: In male householder, no spouse present, family:",97,59,695,394,671,334,69,52,32,22,126,78,355,313,0,11,72,74,344,197,69,52,11,18,172,134,76,36,41,47]
[null,null,null,"Estimate Total: In family households: In male householder, no spouse present, family: Relatives",84,52,604,346,572,270,62,45,32,22,96,62,355,313,0,11,66,73,296,162,69,52,11,18,143,107,58,28,26,35]
[null,null,null,"Estimate Total: In family households: In male householder, no spouse present, family: Nonrelatives",13,9,91,77,99,80,7,8,0,11,30,24,0,11,0,11,6,6,48,58,0,11,0,11,29,31,18,12,15,18]
[null,null,null,"Estimate Total: In family households: In female householder, no spouse present, family:",49,41,887,482,3081,710,69,37,92,85,78,54,219,177,71,56,107,82,1777,458,257,141,94,87,277,141,87,62,69,46]
[null,null,null,"Estimate Total: In family households: In female householder, no spouse present, family: Relatives",49,41,773,394,2575,570,69,37,76,72,61,41,170,141,60,46,91,77,1439,359,257,141,94,87,238,124,64,43,68,46]
[null,null,null,"Estimate Total: In family households: In female householder, no spouse present, family: Nonrelatives",0,11,114,103,506,220,0,11,16,14,17,18,49,71,11,11,16,10,338,143,0,11,0,11,39,24,23,23,1,2]
[null,null,null,"Estimate Total: In nonfamily households",163,55,761,237,2729,353,275,71,153,56,162,52,373,178,97,48,184,56,1277,291,257,72,139,67,598,185,245,68,127,47]

{"sheet":"SData_B14001_and_B15002School","index":29,"n_rows":67,"n_cols":96,"rows_kept":67,"cut":false,"hidden":true,"merged":[]}
["GEO_ID","GEO_ID2","SUMLEVEL","GEO_NAME","B14001_1_EST","B14001_1_MOE","B14001_2_EST","B14001_2_MOE","B14001_3_EST","B14001_3_MOE","B14001_4_EST","B14001_4_MOE","B14001_5_EST","B14001_5_MOE","B14001_6_EST","B14001_6_MOE","B14001_7_EST","B14001_7_MOE","B14001_8_EST","B14001_8_MOE","B14001_9_EST","B14001_9_MOE","B14001_10_EST","B14001_10_MOE","B15002_1_EST","B15002_1_MOE","B15002_2_EST","B15002_2_MOE","B15002_3_EST","B15002_3_MOE","B15002_4_EST","B15002_4_MOE","B15002_5_EST","B15002_5_MOE","B15002_6_EST","B15002_6_MOE","B15002_7_EST","B15002_7_MOE","B15002_8_EST","B15002_8_MOE","B15002_9_EST","B15002_9_MOE","B15002_10_EST","B15002_10_MOE","B15002_11_EST","B15002_11_MOE","B15002_12_EST","B15002_12_MOE","B15002_13_EST","B15002_13_MOE","B15002_14_EST","B15002_14_MOE","B15002_15_EST","B15002_15_MOE","B15002_16_EST","B15002_16_MOE","B15002_17_EST","B15002_17_MOE","B15002_18_EST","B15002_18_MOE","B15002_19_EST","B15002_19_MOE","B15002_20_EST","B15002_20_MOE","B15002_21_EST","B15002_21_MOE","B15002_22_EST","B15002_22_MOE","B15002_23_EST","B15002_23_MOE","B15002_24_EST","B15002_24_MOE","B15002_25_EST","B15002_25_MOE","B15002_26_EST","B15002_26_MOE","B15002_27_EST","B15002_27_MOE","B15002_28_EST","B15002_28_MOE","B15002_29_EST","B15002_29_MOE","B15002_30_EST","B15002_30_MOE","B15002_31_EST","B15002_31_MOE","B15002_32_EST","B15002_32_MOE","B15002_33_EST","B15002_33_MOE","B15002_34_EST","B15002_34_MOE","B15002_35_EST","B15002_35_MOE"]
["Geography Identifier","Geography Identifier","Geographic Summary Level","Geography",{"$f":"[1]ACS_16_5YR_B14001_with_ann!D$2","v":"Estimate Total:"},{"$f":"[1]ACS_16_5YR_B14001_with_ann!E$2","v":"Margin of Error Total:"},{"$f":"[1]ACS_16_5YR_B14001_with_ann!F$2","v":"Estimate Total: Enrolled in school:"},{"$f":"[1]ACS_16_5YR_B14001_with_ann!G$2","v":"Margin of Error Total: Enrolled in school:"},{"$f":"[1]ACS_16_5YR_B14001_with_ann!H$2","v":"Estimate Total: Enrolled in school: Enrolled in nursery school"},{"$f":"[1]ACS_16_5YR_B14001_with_ann!I$2","v":"Margin of Error Total: Enrolled in school: Enrolled in nursery school"},{"$f":"[1]ACS_16_5YR_B14001_with_ann!J$2","v":"Estimate Total: Enrolled in school: Enrolled in kindergarten"},{"$f":"[1]ACS_16_5YR_B14001_with_ann!K$2","v":"Margin of Error Total: Enrolled in school: Enrolled in kindergarten"},{"$f":"[1]ACS_16_5YR_B14001_with_ann!L$2","v":"Estimate Total: Enrolled in school: Enrolled in grade 1 to grade 4"},{"$f":"[1]ACS_16_5YR_B14001_with_ann!M$2","v":"Margin of Error Total: Enrolled in school: Enrolled in grade 1 to grade 4"},{"$f":"[1]ACS_16_5YR_B14001_with_ann!N$2","v":"Estimate Total: Enrolled in school: Enrolled in grade 5 to grade 8"},{"$f":"[1]ACS_16_5YR_B14001_with_ann!O$2","v":"Margin of Error Total: Enrolled in school: Enrolled in grade 5 to grade 8"},{"$f":"[1]ACS_16_5YR_B14001_with_ann!P$2","v":"Estimate Total: Enrolled in school: Enrolled in grade 9 to grade 12"},{"$f":"[1]ACS_16_5YR_B14001_with_ann!Q$2","v":"Margin of Error Total: Enrolled in school: Enrolled in grade 9 to grade 12"},{"$f":"[1]ACS_16_5YR_B14001_with_ann!R$2","v":"Estimate Total: Enrolled in school: Enrolled in college"},{"$f":"[1]ACS_16_5YR_B14001_with_ann!S$2","v":"Margin of Error Total: Enrolled in school: Enrolled in college"},{"$f":"[1]ACS_16_5YR_B14001_with_ann!T$2","v":"Estimate Total: Enrolled in school: Graduate or professional school"},{"$f":"[1]ACS_16_5YR_B14001_with_ann!U$2","v":"Margin of Error Total: Enrolled in school: Graduate or professional school"},{"$f":"[1]ACS_16_5YR_B14001_with_ann!V$2","v":"Estimate Total: Not enrolled in school"},{"$f":"[1]ACS_16_5YR_B14001_with_ann!W$2","v":"Margin of Error Total: Not enrolled in school"},{"$f":"[1]ACS_16_5YR_B15002_with_ann!D$2","v":"Estimate Total:"},{"$f":"[1]ACS_16_5YR_B15002_with_ann!E$2","v":"Margin of Error Total:"},{"$f":"[1]ACS_16_5YR_B15002_with_ann!F$2","v":"Estimate Total: Male:"},{"$f":"[1]ACS_16_5YR_B15002_with_ann!G$2","v":"Margin of Error Total: Male:"},{"$f":"[1]ACS_16_5YR_B15002_with_ann!H$2","v":"Estimate Total: Male: No schooling completed"},{"$f":"[1]ACS_16_5YR_B15002_with_ann!I$2","v":"Margin of Error Total: Male: No schooling completed"},{"$f":"[1]ACS_16_5YR_B15002_with_ann!J$2","v":"Estimate Total: Male: Nursery to 4th grade"},{"$f":"[1]ACS_16_5YR_B15002_with_ann!K$2","v":"Margin of Error Total: Male: Nursery to 4th grade"},{"$f":"[1]ACS_16_5YR_B15002_with_ann!L$2","v":"Estimate Total: Male: 5th and 6th grade"},{"$f":"[1]ACS_16_5YR_B15002_with_ann!M$2","v":"Margin of Error Total: Male: 5th and 6th grade"},{"$f":"[1]ACS_16_5YR_B15002_with_ann!N$2","v":"Estimate Total: Male: 7th and 8th grade"},{"$f":"[1]ACS_16_5YR_B15002_with_ann!O$2","v":"Margin of Error Total: Male: 7th and 8th grade"},{"$f":"[1]ACS_16_5YR_B15002_with_ann!P$2","v":"Estimate Total: Male: 9th grade"},{"$f":"[1]ACS_16_5YR_B15002_with_ann!Q$2","v":"Margin of Error Total: Male: 9th grade"},{"$f":"[1]ACS_16_5YR_B15002_with_ann!R$2","v":"Estimate Total: Male: 10th grade"},{"$f":"[1]ACS_16_5YR_B15002_with_ann!S$2","v":"Margin of Error Total: Male: 10th grade"},{"$f":"[1]ACS_16_5YR_B15002_with_ann!T$2","v":"Estimate Total: Male: 11th grade"},{"$f":"[1]ACS_16_5YR_B15002_with_ann!U$2","v":"Margin of Error Total: Male: 11th grade"},{"$f":"[1]ACS_16_5YR_B15002_with_ann!V$2","v":"Estimate Total: Male: 12th grade"},{"$f":"[1]ACS_16_5YR_B15002_with_ann!W$2","v":"Margin of Error Total: Male: 12th grade"},{"$f":"[1]ACS_16_5YR_B15002_with_ann!X$2","v":"Estimate Total: Male: High school graduate (includes equivalency)"},{"$f":"[1]ACS_16_5YR_B15002_with_ann!Y$2","v":"Margin of Error Total: Male: High school graduate (includes equivalency)"},{"$f":"[1]ACS_16_5YR_B15002_with_ann!Z$2","v":"Estimate Total: Male: Some college"},{"$f":"[1]ACS_16_5YR_B15002_with_ann!AA$2","v":"Margin of Error Total: Male: Some college"},{"$f":"[1]ACS_16_5YR_B15002_with_ann!AB$2","v":"Estimate Total: Male: Some college"},{"$f":"[1]ACS_16_5YR_B15002_with_ann!AC$2","v":"Margin of Error Total: Male: Some college"},{"$f":"[1]ACS_16_5YR_B15002_with_ann!AD$2","v":"Estimate Total: Male: Associate's degree"},{"$f":"[1]ACS_16_5YR_B15002_with_ann!AE$2","v":"Margin of Error Total: Male: Associate's degree"},{"$f":"[1]ACS_16_5YR_B15002_with_ann!AF$2","v":"Estimate Total: Male: Bachelor's degree"},{"$f":"[1]ACS_16_5YR_B15002_with_ann!AG$2","v":"Margin of Error Total: Male: Bachelor's degree"},{"$f":"[1]ACS_16_5YR_B15002_with_ann!AH$2","v":"Estimate Total: Male: Master's degree"},{"$f":"[1]ACS_16_5YR_B15002_with_ann!AI$2","v":"Margin of Error Total: Male: Master's degree"},{"$f":"[1]ACS_16_5YR_B15002_with_ann!AJ$2","v":"Estimate Total: Male: Professional school degree"},{"$f":"[1]ACS_16_5YR_B15002_with_ann!AK$2","v":"Margin of Error Total: Male: Professional school degree"},{"$f":"[1]ACS_16_5YR_B15002_with_ann!AL$2","v":"Estimate Total: Male: Doctorate degree"},{"$f":"[1]ACS_16_5YR_B15002_with_ann!AM$2","v":"Margin of Error Total: Male: Doctorate degree"},{"$f":"[1]ACS_16_5YR_B15002_with_ann!AN$2","v":"Estimate Total: Female:"},{"$f":"[1]ACS_16_5YR_B15002_with_ann!AO$2","v":"Margin of Error Total: Female:"},{"$f":"[1]ACS_16_5YR_B15002_with_ann!AP$2","v":"Estimate Total: Female: No schooling completed"},{"$f":"[1]ACS_16_5YR_B15002_with_ann!AQ$2","v":"Margin of Error Total: Female: No schooling completed"},{"$f":"[1]ACS_16_5YR_B15002_with_ann!AR$2","v":"Estimate Total: Female: Nursery to 4th grade"},{"$f":"[1]ACS_16_5YR_B15002_with_ann!AS$2","v":"Margin of Error Total: Female: Nursery to 4th grade"},{"$f":"[1]ACS_16_5YR_B15002_with_ann!AT$2","v":"Estimate Total: Female: 5th and 6th grade"},{"$f":"[1]ACS_16_5YR_B15002_with_ann!AU$2","v":"Margin of Error Total: Female: 5th and 6th grade"},{"$f":"[1]ACS_16_5YR_B15002_with_ann!AV$2","v":"Estimate Total: Female: 7th and 8th grade"},{"$f":"[1]ACS_16_5YR_B15002_with_ann!AW$2","v":"Margin of Error Total: Female: 7th and 8th grade"},{"$f":"[1]ACS_16_5YR_B15002_with_ann!AX$2","v":"Estimate Total: Female: 9th grade"},{"$f":"[1]ACS_16_5YR_B15002_with_ann!AY$2","v":"Margin of Error Total: Female: 9th grade"},{"$f":"[1]ACS_16_5YR_B15002_with_ann!AZ$2","v":"Estimate Total: Female: 10th grade"},{"$f":"[1]ACS_16_5YR_B15002_with_ann!BA$2","v":"Margin of Error Total: Female: 10th grade"},{"$f":"[1]ACS_16_5YR_B15002_with_ann!BB$2","v":"Estimate Total: Female: 11th grade"},{"$f":"[1]ACS_16_5YR_B15002_with_ann!BC$2","v":"Margin of Error Total: Female: 11th grade"},{"$f":"[1]ACS_16_5YR_B15002_with_ann!BD$2","v":"Estimate Total: Female: 12th grade"},{"$f":"[1]ACS_16_5YR_B15002_with_ann!BE$2","v":"Margin of Error Total: Female: 12th grade"},{"$f":"[1]ACS_16_5YR_B15002_with_ann!BF$2","v":"Estimate Total: Female: High school graduate (includes equivalency)"},{"$f":"[1]ACS_16_5YR_B15002_with_ann!BG$2","v":"Margin of Error Total: Female: High school graduate (includes equivalency)"},{"$f":"[1]ACS_16_5YR_B15002_with_ann!BH$2","v":"Estimate Total: Female: Some college"},{"$f":"[1]ACS_16_5YR_B15002_with_ann!BI$2","v":"Margin of Error Total: Female: Some college"},{"$f":"[1]ACS_16_5YR_B15002_with_ann!BJ$2","v":"Estimate Total: Female: Some college"},{"$f":"[1]ACS_16_5YR_B15002_with_ann!BK$2","v":"Margin of Error Total: Female: Some college"},{"$f":"[1]ACS_16_5YR_B15002_with_ann!BL$2","v":"Estimate Total: Female: Associate's degree"},{"$f":"[1]ACS_16_5YR_B15002_with_ann!BM$2","v":"Margin of Error Total: Female: Associate's degree"},{"$f":"[1]ACS_16_5YR_B15002_with_ann!BN$2","v":"Estimate Total: Female: Bachelor's degree"},{"$f":"[1]ACS_16_5YR_B15002_with_ann!BO$2","v":"Margin of Error Total: Female: Bachelor's degree"},{"$f":"[1]ACS_16_5YR_B15002_with_ann!BP$2","v":"Estimate Total: Female: Master's degree"},{"$f":"[1]ACS_16_5YR_B15002_with_ann!BQ$2","v":"Margin of Error Total: Female: Master's degree"},{"$f":"[1]ACS_16_5YR_B15002_with_ann!BR$2","v":"Estimate Total: Female: Professional school degree"},{"$f":"[1]ACS_16_5YR_B15002_with_ann!BS$2","v":"Margin of Error Total: Female: Professional school degree"},{"$f":"[1]ACS_16_5YR_B15002_with_ann!BT$2","v":"Estimate Total: Female: Doctorate degree"},{"$f":"[1]ACS_16_5YR_B15002_with_ann!BU$2","v":"Margin of Error Total: Female: Doctorate degree"}]
["0600000US3301900259",3301900259,"060","Acworth",{"$f":"[1]ACS_16_5YR_B14001_with_ann!D257","v":3947},{"$f":"[1]ACS_16_5YR_B14001_with_ann!E257","v":84},{"$f":"[1]ACS_16_5YR_B14001_with_ann!F257","v":825},{"$f":"[1]ACS_16_5YR_B14001_with_ann!G257","v":167},{"$f":"[1]ACS_16_5YR_B14001_with_ann!H257","v":39},{"$f":"[1]ACS_16_5YR_B14001_with_ann!I257","v":35},{"$f":"[1]ACS_16_5YR_B14001_with_ann!J257","v":36},{"$f":"[1]ACS_16_5YR_B14001_with_ann!K257","v":32},{"$f":"[1]ACS_16_5YR_B14001_with_ann!L257","v":164},{"$f":"[1]ACS_16_5YR_B14001_with_ann!M257","v":75},{"$f":"[1]ACS_16_5YR_B14001_with_ann!N257","v":233},{"$f":"[1]ACS_16_5YR_B14001_with_ann!O257","v":112},{"$f":"[1]ACS_16_5YR_B14001_with_ann!P257","v":198},{"$f":"[1]ACS_16_5YR_B14001_with_ann!Q257","v":86},{"$f":"[1]ACS_16_5YR_B14001_with_ann!R257","v":138},{"$f":"[1]ACS_16_5YR_B14001_with_ann!S257","v":66},{"$f":"[1]ACS_16_5YR_B14001_with_ann!T257","v":17},{"$f":"[1]ACS_16_5YR_B14001_with_ann!U257","v":19},{"$f":"[1]ACS_16_5YR_B14001_with_ann!V257","v":3122},{"$f":"[1]ACS_16_5YR_B14001_with_ann!W257","v":165},{"$f":"[1]ACS_16_5YR_B15002_with_ann!D257","v":2924},{"$f":"[1]ACS_16_5YR_B15002_with_ann!E257","v":148},{"$f":"[1]ACS_16_5YR_B15002_with_ann!F257","v":1444},{"$f":"[1]ACS_16_5YR_B15002_with_ann!G257","v":91},{"$f":"[1]ACS_16_5YR_B15002_with_ann!H257","v":8},{"$f":"[1]ACS_16_5YR_B15002_with_ann!I257","v":12},{"$f":"[1]ACS_16_5YR_B15002_with_ann!J257","v":0},{"$f":"[1]ACS_16_5YR_B15002_with_ann!K257","v":11},{"$f":"[1]ACS_16_5YR_B15002_with_ann!L257","v":0},{"$f":"[1]ACS_16_5YR_B15002_with_ann!M257","v":11},{"$f":"[1]ACS_16_5YR_B15002_with_ann!N257","v":17},{"$f":"[1]ACS_16_5YR_B15002_with_ann!O257","v":18},{"$f":"[1]ACS_16_5YR_B15002_with_ann!P257","v":0},{"$f":"[1]ACS_16_5YR_B15002_with_ann!Q257","v":11},{"$f":"[1]ACS_16_5YR_B15002_with_ann!R257","v":8},{"$f":"[1]ACS_16_5YR_B15002_with_ann!S257","v":12},{"$f":"[1]ACS_16_5YR_B15002_with_ann!T257","v":6},{"$f":"[1]ACS_16_5YR_B15002_with_ann!U257","v":10},{"$f":"[1]ACS_16_5YR_B15002_with_ann!V257","v":0},{"$f":"[1]ACS_16_5YR_B15002_with_ann!W257","v":11},{"$f":"[1]ACS_16_5YR_B15002_with_ann!X257","v":384},{"$f":"[1]ACS_16_5YR_B15002_with_ann!Y257","v":91},{"$f":"[1]ACS_16_5YR_B15002_with_ann!Z257","v":122},{"$f":"[1]ACS_16_5YR_B15002_with_ann!AA257","v":69},{"$f":"[1]ACS_16_5YR_B15002_with_ann!AB257","v":139},{"$f":"[1]ACS_16_5YR_B15002_with_ann!AC257","v":64},{"$f":"[1]ACS_16_5YR_B15002_with_ann!AD257","v":146},{"$f":"[1]ACS_16_5YR_B15002_with_ann!AE257","v":64},{"$f":"[1]ACS_16_5YR_B15002_with_ann!AF257","v":431},{"$f":"[1]ACS_16_5YR_B15002_with_ann!AG257","v":101},{"$f":"[1]ACS_16_5YR_B15002_with_ann!AH257","v":140},{"$f":"[1]ACS_16_5YR_B15002_with_ann!AI257","v":73},{"$f":"[1]ACS_16_5YR_B15002_with_ann!AJ257","v":21},{"$f":"[1]ACS_16_5YR_B15002_with_ann!AK257","v":23},{"$f":"[1]ACS_16_5YR_B15002_with_ann!AL257","v":22},{"$f":"[1]ACS_16_5YR_B15002_with_ann!AM257","v":25},{"$f":"[1]ACS_16_5YR_B15002_with_ann!AN257","v":1480},{"$f":"[1]ACS_16_5YR_B15002_with_ann!AO257","v":108},{"$f":"[1]ACS_16_5YR_B15002_with_ann!AP257","v":9},{"$f":"[1]ACS_16_5YR_B15002_with_ann!AQ257","v":14},{"$f":"[1]ACS_16_5YR_B15002_with_ann!AR257","v":0},{"$f":"[1]ACS_16_5YR_B15002_with_ann!AS257","v":11},{"$f":"[1]ACS_16_5YR_B15002_with_ann!AT257","v":0},{"$f":"[1]ACS_16_5YR_B15002_with_ann!AU257","v":11},{"$f":"[1]ACS_16_5YR_B15002_with_ann!AV257","v":0},{"$f":"[1]ACS_16_5YR_B15002_with_ann!AW257","v":11},{"$f":"[1]ACS_16_5YR_B15002_with_ann!AX257","v":0},{"$f":"[1]ACS_16_5YR_B15002_with_ann!AY257","v":11},{"$f":"[1]ACS_16_5YR_B15002_with_ann!AZ257","v":33},{"$f":"[1]ACS_16_5YR_B15002_with_ann!BA257","v":29},{"$f":"[1]ACS_16_5YR_B15002_with_ann!BB257","v":15},{"$f":"[1]ACS_16_5YR_B15002_with_ann!BC257","v":18},{"$f":"[1]ACS_16_5YR_B15002_with_ann!BD257","v":23},{"$f":"[1]ACS_16_5YR_B15002_with_ann!BE257","v":26},{"$f":"[1]ACS_16_5YR_B15002_with_ann!BF257","v":247},{"$f":"[1]ACS_16_5YR_B15002_with_ann!BG257","v":88},{"$f":"[1]ACS_16_5YR_B15002_with_ann!BH257","v":87},{"$f":"[1]ACS_16_5YR_B15002_with_ann!BI257","v":47},{"$f":"[1]ACS_16_5YR_B15002_with_ann!BJ257","v":212},{"$f":"[1]ACS_16_5YR_B15002_with_ann!BK257","v":80},{"$f":"[1]ACS_16_5YR_B15002_with_ann!BL257","v":225},{"$f":"[1]ACS_16_5YR_B15002_with_ann!BM257","v":80},{"$f":"[1]ACS_16_5YR_B15002_with_ann!BN257","v":320},{"$f":"[1]ACS_16_5YR_B15002_with_ann!BO257","v":84},{"$f":"[1]ACS_16_5YR_B15002_with_ann!BP257","v":246},{"$f":"[1]ACS_16_5YR_B15002_with_ann!BQ257","v":78},{"$f":"[1]ACS_16_5YR_B15002_with_ann!BR257","v":9},{"$f":"[1]ACS_16_5YR_B15002_with_ann!BS257","v":14},{"$f":"[1]ACS_16_5YR_B15002_with_ann!BT257","v":54},{"$f":"[1]ACS_16_5YR_B15002_with_ann!BU257","v":68},null,"Acworth"]
["0600000US3301911380",3301911380,"060","Charlestown",{"$f":"[1]ACS_16_5YR_B14001_with_ann!D258","v":881},{"$f":"[1]ACS_16_5YR_B14001_with_ann!E258","v":134},{"$f":"[1]ACS_16_5YR_B14001_with_ann!F258","v":84},{"$f":"[1]ACS_16_5YR_B14001_with_ann!G258","v":33},{"$f":"[1]ACS_16_5YR_B14001_with_ann!H258","v":5},{"$f":"[1]ACS_16_5YR_B14001_with_ann!I258","v":5},{"$f":"[1]ACS_16_5YR_B14001_with_ann!J258","v":0},{"$f":"[1]ACS_16_5YR_B14001_with_ann!K258","v":11},{"$f":"[1]ACS_16_5YR_B14001_with_ann!L258","v":22},{"$f":"[1]ACS_16_5YR_B14001_with_ann!M258","v":14},{"$f":"[1]ACS_16_5YR_B14001_with_ann!N258","v":22},{"$f":"[1]ACS_16_5YR_B14001_with_ann!O258","v":15},{"$f":"[1]ACS_16_5YR_B14001_with_ann!P258","v":19},{"$f":"[1]ACS_16_5YR_B14001_with_ann!Q258","v":16},{"$f":"[1]ACS_16_5YR_B14001_with_ann!R258","v":16},{"$f":"[1]ACS_16_5YR_B14001_with_ann!S258","v":11},{"$f":"[1]ACS_16_5YR_B14001_with_ann!T258","v":0},{"$f":"[1]ACS_16_5YR_B14001_with_ann!U258","v":11},{"$f":"[1]ACS_16_5YR_B14001_with_ann!V258","v":797},{"$f":"[1]ACS_16_5YR_B14001_with_ann!W258","v":121},{"$f":"[1]ACS_16_5YR_B15002_with_ann!D258","v":780},{"$f":"[1]ACS_16_5YR_B15002_with_ann!E258","v":117},{"$f":"[1]ACS_16_5YR_B15002_with_ann!F258","v":414},{"$f":"[1]ACS_16_5YR_B15002_with_ann!G258","v":69},{"$f":"[1]ACS_16_5YR_B15002_with_ann!H258","v":0},{"$f":"[1]ACS_16_5YR_B15002_with_ann!I258","v":11},{"$f":"[1]ACS_16_5YR_B15002_with_ann!J258","v":2},{"$f":"[1]ACS_16_5YR_B15002_with_ann!K258","v":3},{"$f":"[1]ACS_16_5YR_B15002_with_ann!L258","v":0},{"$f":"[1]ACS_16_5YR_B15002_with_ann!M258","v":11},{"$f":"[1]ACS_16_5YR_B15002_with_ann!N258","v":7},{"$f":"[1]ACS_16_5YR_B15002_with_ann!O258","v":9},{"$f":"[1]ACS_16_5YR_B15002_with_ann!P258","v":3},{"$f":"[1]ACS_16_5YR_B15002_with_ann!Q258","v":5},{"$f":"[1]ACS_16_5YR_B15002_with_ann!R258","v":16},{"$f":"[1]ACS_16_5YR_B15002_with_ann!S258","v":17},{"$f":"[1]ACS_16_5YR_B15002_with_ann!T258","v":0},{"$f":"[1]ACS_16_5YR_B15002_with_ann!U258","v":11},{"$f":"[1]ACS_16_5YR_B15002_with_ann!V258","v":2},{"$f":"[1]ACS_16_5YR_B15002_with_ann!W258","v":4},{"$f":"[1]ACS_16_5YR_B15002_with_ann!X258","v":172},{"$f":"[1]ACS_16_5YR_B15002_with_ann!Y258","v":45},{"$f":"[1]ACS_16_5YR_B15002_with_ann!Z258","v":21},{"$f":"[1]ACS_16_5YR_B15002_with_ann!AA258","v":14},{"$f":"[1]ACS_16_5YR_B15002_with_ann!AB258","v":44},{"$f":"[1]ACS_16_5YR_B15002_with_ann!AC258","v":26},{"$f":"[1]ACS_16_5YR_B15002_with_ann!AD258","v":32},{"$f":"[1]ACS_16_5YR_B15002_with_ann!AE258","v":20},{"$f":"[1]ACS_16_5YR_B15002_with_ann!AF258","v":91},{"$f":"[1]ACS_16_5YR_B15002_with_ann!AG258","v":27},{"$f":"[1]ACS_16_5YR_B15002_with_ann!AH258","v":13},{"$f":"[1]ACS_16_5YR_B15002_with_ann!AI258","v":11},{"$f":"[1]ACS_16_5YR_B15002_with_ann!AJ258","v":6},{"$f":"[1]ACS_16_5YR_B15002_with_ann!AK258","v":5},{"$f":"[1]ACS_16_5YR_B15002_with_ann!AL258","v":5},{"$f":"[1]ACS_16_5YR_B15002_with_ann!AM258","v":5},{"$f":"[1]ACS_16_5YR_B15002_with_ann!AN258","v":366},{"$f":"[1]ACS_16_5YR_B15002_with_ann!AO258","v":63},{"$f":"[1]ACS_16_5YR_B15002_with_ann!AP258","v":0},{"$f":"[1]ACS_16_5YR_B15002_with_ann!AQ258","v":11},{"$f":"[1]ACS_16_5YR_B15002_with_ann!AR258","v":0},{"$f":"[1]ACS_16_5YR_B15002_with_ann!AS258","v":11},{"$f":"[1]ACS_16_5YR_B15002_with_ann!AT258","v":0},{"$f":"[1]ACS_16_5YR_B15002_with_ann!AU258","v":11},{"$f":"[1]ACS_16_5YR_B15002_with_ann!AV258","v":2},{"$f":"[1]ACS_16_5YR_B15002_with_ann!AW258","v":3},{"$f":"[1]ACS_16_5YR_B15002_with_ann!AX258","v":5},{"$f":"[1]ACS_16_5YR_B15002_with_ann!AY258","v":9},{"$f":"[1]ACS_16_5YR_B15002_with_ann!AZ258","v":6},{"$f":"[1]ACS_16_5YR_B15002_with_ann!BA258","v":9},{"$f":"[1]ACS_16_5YR_B15002_with_ann!BB258","v":8},{"$f":"[1]ACS_16_5YR_B15002_with_ann!BC258","v":9},{"$f":"[1]ACS_16_5YR_B15002_with_ann!BD258","v":0},{"$f":"[1]ACS_16_5YR_B15002_with_ann!BE258","v":11},{"$f":"[1]ACS_16_5YR_B15002_with_ann!BF258","v":102},{"$f":"[1]ACS_16_5YR_B15002_with_ann!BG258","v":35},{"$f":"[1]ACS_16_5YR_B15002_with_ann!BH258","v":7},{"$f":"[1]ACS_16_5YR_B15002_with_ann!BI258","v":5},{"$f":"[1]ACS_16_5YR_B15002_with_ann!BJ258","v":71},{"$f":"[1]ACS_16_5YR_B15002_with_ann!BK258","v":30},{"$f":"[1]ACS_16_5YR_B15002_with_ann!BL258","v":27},{"$f":"[1]ACS_16_5YR_B15002_with_ann!BM258","v":16},{"$f":"[1]ACS_16_5YR_B15002_with_ann!BN258","v":78},{"$f":"[1]ACS_16_5YR_B15002_with_ann!BO258","v":34},{"$f":"[1]ACS_16_5YR_B15002_with_ann!BP258","v":40},{"$f":"[1]ACS_16_5YR_B15002_with_ann!BQ258","v":19},{"$f":"[1]ACS_16_5YR_B15002_with_ann!BR258","v":17},{"$f":"[1]ACS_16_5YR_B15002_with_ann!BS258","v":12},{"$f":"[1]ACS_16_5YR_B15002_with_ann!BT258","v":3},{"$f":"[1]ACS_16_5YR_B15002_with_ann!BU258","v":4},null,"Acworth"]
["0600000US3301912900",3301912900,"060","Claremont",{"$f":"[1]ACS_16_5YR_B14001_with_ann!D259","v":4916},{"$f":"[1]ACS_16_5YR_B14001_with_ann!E259","v":91},{"$f":"[1]ACS_16_5YR_B14001_with_ann!F259","v":742},{"$f":"[1]ACS_16_5YR_B14001_with_ann!G259","v":212},{"$f":"[1]ACS_16_5YR_B14001_with_ann!H259","v":33},{"$f":"[1]ACS_16_5YR_B14001_with_ann!I259","v":51},{"$f":"[1]ACS_16_5YR_B14001_with_ann!J259","v":80},{"$f":"[1]ACS_16_5YR_B14001_with_ann!K259","v":85},{"$f":"[1]ACS_16_5YR_B14001_with_ann!L259","v":178},{"$f":"[1]ACS_16_5YR_B14001_with_ann!M259","v":94},{"$f":"[1]ACS_16_5YR_B14001_with_ann!N259","v":265},{"$f":"[1]ACS_16_5YR_B14001_with_ann!O259","v":108},{"$f":"[1]ACS_16_5YR_B14001_with_ann!P259","v":161},{"$f":"[1]ACS_16_5YR_B14001_with_ann!Q259","v":103},{"$f":"[1]ACS_16_5YR_B14001_with_ann!R259","v":25},{"$f":"[1]ACS_16_5YR_B14001_with_ann!S259","v":24},{"$f":"[1]ACS_16_5YR_B14001_with_ann!T259","v":0},{"$f":"[1]ACS_16_5YR_B14001_with_ann!U259","v":16},{"$f":"[1]ACS_16_5YR_B14001_with_ann!V259","v":4174},{"$f":"[1]ACS_16_5YR_B14001_with_ann!W259","v":221},{"$f":"[1]ACS_16_5YR_B15002_with_ann!D259","v":3856},{"$f":"[1]ACS_16_5YR_B15002_with_ann!E259","v":202},{"$f":"[1]ACS_16_5YR_B15002_with_ann!F259","v":1921},{"$f":"[1]ACS_16_5YR_B15002_with_ann!G259","v":165},{"$f":"[1]ACS_16_5YR_B15002_with_ann!H259","v":0},{"$f":"[1]ACS_16_5YR_B15002_with_ann!I259","v":16},{"$f":"[1]ACS_16_5YR_B15002_with_ann!J259","v":0},{"$f":"[1]ACS_16_5YR_B15002_with_ann!K259","v":16},{"$f":"[1]ACS_16_5YR_B15002_with_ann!L259","v":0},{"$f":"[1]ACS_16_5YR_B15002_with_ann!M259","v":16},{"$f":"[1]ACS_16_5YR_B15002_with_ann!N259","v":0},{"$f":"[1]ACS_16_5YR_B15002_with_ann!O259","v":16},{"$f":"[1]ACS_16_5YR_B15002_with_ann!P259","v":134},{"$f":"[1]ACS_16_5YR_B15002_with_ann!Q259","v":122},{"$f":"[1]ACS_16_5YR_B15002_with_ann!R259","v":15},{"$f":"[1]ACS_16_5YR_B15002_with_ann!S259","v":24},{"$f":"[1]ACS_16_5YR_B15002_with_ann!T259","v":53},{"$f":"[1]ACS_16_5YR_B15002_with_ann!U259","v":58},{"$f":"[1]ACS_16_5YR_B15002_with_ann!V259","v":17},{"$f":"[1]ACS_16_5YR_B15002_with_ann!W259","v":27},{"$f":"[1]ACS_16_5YR_B15002_with_ann!X259","v":1038},{"$f":"[1]ACS_16_5YR_B15002_with_ann!Y259","v":198},{"$f":"[1]ACS_16_5YR_B15002_with_ann!Z259","v":119},{"$f":"[1]ACS_16_5YR_B15002_with_ann!AA259","v":79},{"$f":"[1]ACS_16_5YR_B15002_with_ann!AB259","v":166},{"$f":"[1]ACS_16_5YR_B15002_with_ann!AC259","v":88},{"$f":"[1]ACS_16_5YR_B15002_with_ann!AD259","v":155},{"$f":"[1]ACS_16_5YR_B15002_with_ann!AE259","v":84},{"$f":"[1]ACS_16_5YR_B15002_with_ann!AF259","v":140},{"$f":"[1]ACS_16_5YR_B15002_with_ann!AG259","v":78},{"$f":"[1]ACS_16_5YR_B15002_with_ann!AH259","v":83},{"$f":"[1]ACS_16_5YR_B15002_with_ann!AI259","v":83},{"$f":"[1]ACS_16_5YR_B15002_with_ann!AJ259","v":1},{"$f":"[1]ACS_16_5YR_B15002_with_ann!AK259","v":2},{"$f":"[1]ACS_16_5YR_B15002_with_ann!AL259","v":0},{"$f":"[1]ACS_16_5YR_B15002_with_ann!AM259","v":16},{"$f":"[1]ACS_16_5YR_B15002_with_ann!AN259","v":1935},{"$f":"[1]ACS_16_5YR_B15002_with_ann!AO259","v":206},{"$f":"[1]ACS_16_5YR_B15002_with_ann!AP259","v":0},{"$f":"[1]ACS_16_5YR_B15002_with_ann!AQ259","v":16},{"$f":"[1]ACS_16_5YR_B15002_with_ann!AR259","v":0},{"$f":"[1]ACS_16_5YR_B15002_with_ann!AS259","v":16},{"$f":"[1]ACS_16_5YR_B15002_with_ann!AT259","v":0},{"$f":"[1]ACS_16_5YR_B15002_with_ann!AU259","v":16},{"$f":"[1]ACS_16_5YR_B15002_with_ann!AV259","v":0},{"$f":"[1]ACS_16_5YR_B15002_with_ann!AW259","v":16},{"$f":"[1]ACS_16_5YR_B15002_with_ann!AX259","v":0},{"$f":"[1]ACS_16_5YR_B15002_with_ann!AY259","v":16},{"$f":"[1]ACS_16_5YR_B15002_with_ann!AZ259","v":59},{"$f":"[1]ACS_16_5YR_B15002_with_ann!BA259","v":71},{"$f":"[1]ACS_16_5YR_B15002_with_ann!BB259","v":54},{"$f":"[1]ACS_16_5YR_B15002_with_ann!BC259","v":57},{"$f":"[1]ACS_16_5YR_B15002_with_ann!BD259","v":0},{"$f":"[1]ACS_16_5YR_B15002_with_ann!BE259","v":16},{"$f":"[1]ACS_16_5YR_B15002_with_ann!BF259","v":847},{"$f":"[1]ACS_16_5YR_B15002_with_ann!BG259","v":236},{"$f":"[1]ACS_16_5YR_B15002_with_ann!BH259","v":101},{"$f":"[1]ACS_16_5YR_B15002_with_ann!BI259","v":70},{"$f":"[1]ACS_16_5YR_B15002_with_ann!BJ259","v":224},{"$f":"[1]ACS_16_5YR_B15002_with_ann!BK259","v":122},{"$f":"[1]ACS_16_5YR_B15002_with_ann!BL259","v":237},{"$f":"[1]ACS_16_5YR_B15002_with_ann!BM259","v":102},{"$f":"[1]ACS_16_5YR_B15002_with_ann!BN259","v":307},{"$f":"[1]ACS_16_5YR_B15002_with_ann!BO259","v":120},{"$f":"[1]ACS_16_5YR_B15002_with_ann!BP259","v":61},{"$f":"[1]ACS_16_5YR_B15002_with_ann!BQ259","v":61},{"$f":"[1]ACS_16_5YR_B15002_with_ann!BR259","v":45},{"$f":"[1]ACS_16_5YR_B15002_with_ann!BS259","v":53},{"$f":"[1]ACS_16_5YR_B15002_with_ann!BT259","v":0},{"$f":"[1]ACS_16_5YR_B15002_with_ann!BU259","v":16},null,"Acworth"]
["0600000US3301915060",3301915060,"060","Cornish",{"$f":"[1]ACS_16_5YR_B14001_with_ann!D260","v":12505},{"$f":"[1]ACS_16_5YR_B14001_with_ann!E260","v":125},{"$f":"[1]ACS_16_5YR_B14001_with_ann!F260","v":2354},{"$f":"[1]ACS_16_5YR_B14001_with_ann!G260","v":253},{"$f":"[1]ACS_16_5YR_B14001_with_ann!H260","v":212},{"$f":"[1]ACS_16_5YR_B14001_with_ann!I260","v":118},{"$f":"[1]ACS_16_5YR_B14001_with_ann!J260","v":113},{"$f":"[1]ACS_16_5YR_B14001_with_ann!K260","v":73},{"$f":"[1]ACS_16_5YR_B14001_with_ann!L260","v":585},{"$f":"[1]ACS_16_5YR_B14001_with_ann!M260","v":164},{"$f":"[1]ACS_16_5YR_B14001_with_ann!N260","v":548},{"$f":"[1]ACS_16_5YR_B14001_with_ann!O260","v":159},{"$f":"[1]ACS_16_5YR_B14001_with_ann!P260","v":572},{"$f":"[1]ACS_16_5YR_B14001_with_ann!Q260","v":142},{"$f":"[1]ACS_16_5YR_B14001_with_ann!R260","v":236},{"$f":"[1]ACS_16_5YR_B14001_with_ann!S260","v":140},{"$f":"[1]ACS_16_5YR_B14001_with_ann!T260","v":88},{"$f":"[1]ACS_16_5YR_B14001_with_ann!U260","v":87},{"$f":"[1]ACS_16_5YR_B14001_with_ann!V260","v":10151},{"$f":"[1]ACS_16_5YR_B14001_with_ann!W260","v":265},{"$f":"[1]ACS_16_5YR_B15002_with_ann!D260","v":9375},{"$f":"[1]ACS_16_5YR_B15002_with_ann!E260","v":298},{"$f":"[1]ACS_16_5YR_B15002_with_ann!F260","v":4561},{"$f":"[1]ACS_16_5YR_B15002_with_ann!G260","v":216},{"$f":"[1]ACS_16_5YR_B15002_with_ann!H260","v":25},{"$f":"[1]ACS_16_5YR_B15002_with_ann!I260","v":24},{"$f":"[1]ACS_16_5YR_B15002_with_ann!J260","v":0},{"$f":"[1]ACS_16_5YR_B15002_with_ann!K260","v":18},{"$f":"[1]ACS_16_5YR_B15002_with_ann!L260","v":19},{"$f":"[1]ACS_16_5YR_B15002_with_ann!M260","v":28},{"$f":"[1]ACS_16_5YR_B15002_with_ann!N260","v":48},{"$f":"[1]ACS_16_5YR_B15002_with_ann!O260","v":39},{"$f":"[1]ACS_16_5YR_B15002_with_ann!P260","v":43},{"$f":"[1]ACS_16_5YR_B15002_with_ann!Q260","v":38},{"$f":"[1]ACS_16_5YR_B15002_with_ann!R260","v":227},{"$f":"[1]ACS_16_5YR_B15002_with_ann!S260","v":154},{"$f":"[1]ACS_16_5YR_B15002_with_ann!T260","v":82},{"$f":"[1]ACS_16_5YR_B15002_with_ann!U260","v":46},{"$f":"[1]ACS_16_5YR_B15002_with_ann!V260","v":86},{"$f":"[1]ACS_16_5YR_B15002_with_ann!W260","v":53},{"$f":"[1]ACS_16_5YR_B15002_with_ann!X260","v":1908},{"$f":"[1]ACS_16_5YR_B15002_with_ann!Y260","v":260},{"$f":"[1]ACS_16_5YR_B15002_with_ann!Z260","v":289},{"$f":"[1]ACS_16_5YR_B15002_with_ann!AA260","v":128},{"$f":"[1]ACS_16_5YR_B15002_with_ann!AB260","v":517},{"$f":"[1]ACS_16_5YR_B15002_with_ann!AC260","v":164},{"$f":"[1]ACS_16_5YR_B15002_with_ann!AD260","v":342},{"$f":"[1]ACS_16_5YR_B15002_with_ann!AE260","v":122},{"$f":"[1]ACS_16_5YR_B15002_with_ann!AF260","v":812},{"$f":"[1]ACS_16_5YR_B15002_with_ann!AG260","v":221},{"$f":"[1]ACS_16_5YR_B15002_with_ann!AH260","v":123},{"$f":"[1]ACS_16_5YR_B15002_with_ann!AI260","v":76},{"$f":"[1]ACS_16_5YR_B15002_with_ann!AJ260","v":2},{"$f":"[1]ACS_16_5YR_B15002_with_ann!AK260","v":5},{"$f":"[1]ACS_16_5YR_B15002_with_ann!AL261","v":15},{"$f":"[1]ACS_16_5YR_B15002_with_ann!AM261","v":12},{"$f":"[1]ACS_16_5YR_B15002_with_ann!AN261","v":694},{"$f":"[1]ACS_16_5YR_B15002_with_ann!AO261","v":80},{"$f":"[1]ACS_16_5YR_B15002_with_ann!AP261","v":0},{"$f":"[1]ACS_16_5YR_B15002_with_ann!AQ261","v":11},{"$f":"[1]ACS_16_5YR_B15002_with_ann!AR261","v":0},{"$f":"[1]ACS_16_5YR_B15002_with_ann!AS261","v":11},{"$f":"[1]ACS_16_5YR_B15002_with_ann!AT261","v":0},{"$f":"[1]ACS_16_5YR_B15002_with_ann!AU261","v":11},{"$f":"[1]ACS_16_5YR_B15002_with_ann!AV261","v":0},{"$f":"[1]ACS_16_5YR_B15002_with_ann!AW261","v":11},{"$f":"[1]ACS_16_5YR_B15002_with_ann!AX261","v":0},{"$f":"[1]ACS_16_5YR_B15002_with_ann!AY261","v":11},{"$f":"[1]ACS_16_5YR_B15002_with_ann!AZ261","v":2},{"$f":"[1]ACS_16_5YR_B15002_with_ann!BA261","v":4},{"$f":"[1]ACS_16_5YR_B15002_with_ann!BB261","v":4},{"$f":"[1]ACS_16_5YR_B15002_with_ann!BC261","v":6},{"$f":"[1]ACS_16_5YR_B15002_with_ann!BD261","v":4},{"$f":"[1]ACS_16_5YR_B15002_with_ann!BE261","v":8},{"$f":"[1]ACS_16_5YR_B15002_with_ann!BF261","v":195},{"$f":"[1]ACS_16_5YR_B15002_with_ann!BG261","v":49},{"$f":"[1]ACS_16_5YR_B15002_with_ann!BH261","v":26},{"$f":"[1]ACS_16_5YR_B15002_with_ann!BI261","v":13},{"$f":"[1]ACS_16_5YR_B15002_with_ann!BJ261","v":80},{"$f":"[1]ACS_16_5YR_B15002_with_ann!BK261","v":35},{"$f":"[1]ACS_16_5YR_B15002_with_ann!BL261","v":52},{"$f":"[1]ACS_16_5YR_B15002_with_ann!BM261","v":30},{"$f":"[1]ACS_16_5YR_B15002_with_ann!BN261","v":160},{"$f":"[1]ACS_16_5YR_B15002_with_ann!BO261","v":40},{"$f":"[1]ACS_16_5YR_B15002_with_ann!BP261","v":139},{"$f":"[1]ACS_16_5YR_B15002_with_ann!BQ261","v":41},{"$f":"[1]ACS_16_5YR_B15002_with_ann!BR261","v":27},{"$f":"[1]ACS_16_5YR_B15002_with_ann!BS261","v":20},{"$f":"[1]ACS_16_5YR_B15002_with_ann!BT261","v":5},{"$f":"[1]ACS_16_5YR_B15002_with_ann!BU261","v":7},null,"Acworth"]
["0600000US3301916340",3301916340,"060","Croydon",{"$f":"[1]ACS_16_5YR_B14001_with_ann!D261","v":1757},{"$f":"[1]ACS_16_5YR_B14001_with_ann!E261","v":213},{"$f":"[1]ACS_16_5YR_B14001_with_ann!F261","v":342},{"$f":"[1]ACS_16_5YR_B14001_with_ann!G261","v":131},{"$f":"[1]ACS_16_5YR_B14001_with_ann!H261","v":23},{"$f":"[1]ACS_16_5YR_B14001_with_ann!I261","v":15},{"$f":"[1]ACS_16_5YR_B14001_with_ann!J261","v":20},{"$f":"[1]ACS_16_5YR_B14001_with_ann!K261","v":13},{"$f":"[1]ACS_16_5YR_B14001_with_ann!L261","v":57},{"$f":"[1]ACS_16_5YR_B14001_with_ann!M261","v":29},{"$f":"[1]ACS_16_5YR_B14001_with_ann!N261","v":145},{"$f":"[1]ACS_16_5YR_B14001_with_ann!O261","v":78},{"$f":"[1]ACS_16_5YR_B14001_with_ann!P261","v":69},{"$f":"[1]ACS_16_5YR_B14001_with_ann!Q261","v":40},{"$f":"[1]ACS_16_5YR_B14001_with_ann!R261","v":25},{"$f":"[1]ACS_16_5YR_B14001_with_ann!S261","v":17},{"$f":"[1]ACS_16_5YR_B14001_with_ann!T261","v":3},{"$f":"[1]ACS_16_5YR_B14001_with_ann!U261","v":4},{"$f":"[1]ACS_16_5YR_B14001_with_ann!V261","v":1415},{"$f":"[1]ACS_16_5YR_B14001_with_ann!W261","v":133},{"$f":"[1]ACS_16_5YR_B15002_with_ann!D261","v":1365},{"$f":"[1]ACS_16_5YR_B15002_with_ann!E261","v":127},{"$f":"[1]ACS_16_5YR_B15002_with_ann!F261","v":671},{"$f":"[1]ACS_16_5YR_B15002_with_ann!G261","v":66},{"$f":"[1]ACS_16_5YR_B15002_with_ann!H261","v":0},{"$f":"[1]ACS_16_5YR_B15002_with_ann!I261","v":11},{"$f":"[1]ACS_16_5YR_B15002_with_ann!J261","v":0},{"$f":"[1]ACS_16_5YR_B15002_with_ann!K261","v":11},{"$f":"[1]ACS_16_5YR_B15002_with_ann!L261","v":0},{"$f":"[1]ACS_16_5YR_B15002_with_ann!M261","v":11},{"$f":"[1]ACS_16_5YR_B15002_with_ann!N261","v":0},{"$f":"[1]ACS_16_5YR_B15002_with_ann!O261","v":11},{"$f":"[1]ACS_16_5YR_B15002_with_ann!P261","v":0},{"$f":"[1]ACS_16_5YR_B15002_with_ann!Q261","v":11},{"$f":"[1]ACS_16_5YR_B15002_with_ann!R261","v":4},{"$f":"[1]ACS_16_5YR_B15002_with_ann!S261","v":6},{"$f":"[1]ACS_16_5YR_B15002_with_ann!T261","v":11},{"$f":"[1]ACS_16_5YR_B15002_with_ann!U261","v":11},{"$f":"[1]ACS_16_5YR_B15002_with_ann!V261","v":24},{"$f":"[1]ACS_16_5YR_B15002_with_ann!W261","v":20},{"$f":"[1]ACS_16_5YR_B15002_with_ann!X261","v":221},{"$f":"[1]ACS_16_5YR_B15002_with_ann!Y261","v":47},{"$f":"[1]ACS_16_5YR_B15002_with_ann!Z261","v":32},{"$f":"[1]ACS_16_5YR_B15002_with_ann!AA261","v":20},{"$f":"[1]ACS_16_5YR_B15002_with_ann!AB261","v":74},{"$f":"[1]ACS_16_5YR_B15002_with_ann!AC261","v":33},{"$f":"[1]ACS_16_5YR_B15002_with_ann!AD261","v":64},{"$f":"[1]ACS_16_5YR_B15002_with_ann!AE261","v":24},{"$f":"[1]ACS_16_5YR_B15002_with_ann!AF261","v":128},{"$f":"[1]ACS_16_5YR_B15002_with_ann!AG261","v":39},{"$f":"[1]ACS_16_5YR_B15002_with_ann!AH261","v":75},{"$f":"[1]ACS_16_5YR_B15002_with_ann!AI261","v":28},{"$f":"[1]ACS_16_5YR_B15002_with_ann!AJ261","v":23},{"$f":"[1]ACS_16_5YR_B15002_with_ann!AK261","v":14},{"$f":"[1]ACS_16_5YR_B15002_with_ann!AL262","v":0},{"$f":"[1]ACS_16_5YR_B15002_with_ann!AM262","v":11},{"$f":"[1]ACS_16_5YR_B15002_with_ann!AN262","v":286},{"$f":"[1]ACS_16_5YR_B15002_with_ann!AO262","v":71},{"$f":"[1]ACS_16_5YR_B15002_with_ann!AP262","v":0},{"$f":"[1]ACS_16_5YR_B15002_with_ann!AQ262","v":11},{"$f":"[1]ACS_16_5YR_B15002_with_ann!AR262","v":0},{"$f":"[1]ACS_16_5YR_B15002_with_ann!AS262","v":11},{"$f":"[1]ACS_16_5YR_B15002_with_ann!AT262","v":0},{"$f":"[1]ACS_16_5YR_B15002_with_ann!AU262","v":11},{"$f":"[1]ACS_16_5YR_B15002_with_ann!AV262","v":0},{"$f":"[1]ACS_16_5YR_B15002_with_ann!AW262","v":11},{"$f":"[1]ACS_16_5YR_B15002_with_ann!AX262","v":0},{"$f":"[1]ACS_16_5YR_B15002_with_ann!AY262","v":11},{"$f":"[1]ACS_16_5YR_B15002_with_ann!AZ262","v":10},{"$f":"[1]ACS_16_5YR_B15002_with_ann!BA262","v":10},{"$f":"[1]ACS_16_5YR_B15002_with_ann!BB262","v":5},{"$f":"[1]ACS_16_5YR_B15002_with_ann!BC262","v":5},{"$f":"[1]ACS_16_5YR_B15002_with_ann!BD262","v":3},{"$f":"[1]ACS_16_5YR_B15002_with_ann!BE262","v":5},{"$f":"[1]ACS_16_5YR_B15002_with_ann!BF262","v":120},{"$f":"[1]ACS_16_5YR_B15002_with_ann!BG262","v":47},{"$f":"[1]ACS_16_5YR_B15002_with_ann!BH262","v":23},{"$f":"[1]ACS_16_5YR_B15002_with_ann!BI262","v":17},{"$f":"[1]ACS_16_5YR_B15002_with_ann!BJ262","v":29},{"$f":"[1]ACS_16_5YR_B15002_with_ann!BK262","v":18},{"$f":"[1]ACS_16_5YR_B15002_with_ann!BL262","v":38},{"$f":"[1]ACS_16_5YR_B15002_with_ann!BM262","v":22},{"$f":"[1]ACS_16_5YR_B15002_with_ann!BN262","v":45},{"$f":"[1]ACS_16_5YR_B15002_with_ann!BO262","v":28},{"$f":"[1]ACS_16_5YR_B15002_with_ann!BP262","v":9},{"$f":"[1]ACS_16_5YR_B15002_with_ann!BQ262","v":8},{"$f":"[1]ACS_16_5YR_B15002_with_ann!BR262","v":2},{"$f":"[1]ACS_16_5YR_B15002_with_ann!BS262","v":3},{"$f":"[1]ACS_16_5YR_B15002_with_ann!BT262","v":2},{"$f":"[1]ACS_16_5YR_B15002_with_ann!BU262","v":4},null,"Acworth"]
["0600000US3301930500",3301930500,"060","Goshen",{"$f":"[1]ACS_16_5YR_B14001_with_ann!D262","v":848},{"$f":"[1]ACS_16_5YR_B14001_with_ann!E262","v":241},{"$f":"[1]ACS_16_5YR_B14001_with_ann!F262","v":189},{"$f":"[1]ACS_16_5YR_B14001_with_ann!G262","v":102},{"$f":"[1]ACS_16_5YR_B14001_with_ann!H262","v":4},{"$f":"[1]ACS_16_5YR_B14001_with_ann!I262","v":6},{"$f":"[1]ACS_16_5YR_B14001_with_ann!J262","v":6},{"$f":"[1]ACS_16_5YR_B14001_with_ann!K262","v":7},{"$f":"[1]ACS_16_5YR_B14001_with_ann!L262","v":37},{"$f":"[1]ACS_16_5YR_B14001_with_ann!M262","v":22},{"$f":"[1]ACS_16_5YR_B14001_with_ann!N262","v":69},{"$f":"[1]ACS_16_5YR_B14001_with_ann!O262","v":47},{"$f":"[1]ACS_16_5YR_B14001_with_ann!P262","v":18},{"$f":"[1]ACS_16_5YR_B14001_with_ann!Q262","v":18},{"$f":"[1]ACS_16_5YR_B14001_with_ann!R262","v":49},{"$f":"[1]ACS_16_5YR_B14001_with_ann!S262","v":54},{"$f":"[1]ACS_16_5YR_B14001_with_ann!T262","v":6},{"$f":"[1]ACS_16_5YR_B14001_with_ann!U262","v":10},{"$f":"[1]ACS_16_5YR_B14001_with_ann!V262","v":659},{"$f":"[1]ACS_16_5YR_B14001_with_ann!W262","v":166},{"$f":"[1]ACS_16_5YR_B15002_with_ann!D262","v":603},{"$f":"[1]ACS_16_5YR_B15002_with_ann!E262","v":139},{"$f":"[1]ACS_16_5YR_B15002_with_ann!F262","v":317},{"$f":"[1]ACS_16_5YR_B15002_with_ann!G262","v":77},{"$f":"[1]ACS_16_5YR_B15002_with_ann!H262","v":0},{"$f":"[1]ACS_16_5YR_B15002_with_ann!I262","v":11},{"$f":"[1]ACS_16_5YR_B15002_with_ann!J262","v":1},{"$f":"[1]ACS_16_5YR_B15002_with_ann!K262","v":3},{"$f":"[1]ACS_16_5YR_B15002_with_ann!L262","v":6},{"$f":"[1]ACS_16_5YR_B15002_with_ann!M262","v":9},{"$f":"[1]ACS_16_5YR_B15002_with_ann!N262","v":4},{"$f":"[1]ACS_16_5YR_B15002_with_ann!O262","v":5},{"$f":"[1]ACS_16_5YR_B15002_with_ann!P262","v":1},{"$f":"[1]ACS_16_5YR_B15002_with_ann!Q262","v":3},{"$f":"[1]ACS_16_5YR_B15002_with_ann!R262","v":7},{"$f":"[1]ACS_16_5YR_B15002_with_ann!S262","v":10},{"$f":"[1]ACS_16_5YR_B15002_with_ann!T262","v":5},{"$f":"[1]ACS_16_5YR_B15002_with_ann!U262","v":8},{"$f":"[1]ACS_16_5YR_B15002_with_ann!V262","v":11},{"$f":"[1]ACS_16_5YR_B15002_with_ann!W262","v":10},{"$f":"[1]ACS_16_5YR_B15002_with_ann!X262","v":138},{"$f":"[1]ACS_16_5YR_B15002_with_ann!Y262","v":52},{"$f":"[1]ACS_16_5YR_B15002_with_ann!Z262","v":18},{"$f":"[1]ACS_16_5YR_B15002_with_ann!AA262","v":15},{"$f":"[1]ACS_16_5YR_B15002_with_ann!AB262","v":27},{"$f":"[1]ACS_16_5YR_B15002_with_ann!AC262","v":14},{"$f":"[1]ACS_16_5YR_B15002_with_ann!AD262","v":37},{"$f":"[1]ACS_16_5YR_B15002_with_ann!AE262","v":34},{"$f":"[1]ACS_16_5YR_B15002_with_ann!AF262","v":49},{"$f":"[1]ACS_16_5YR_B15002_with_ann!AG262","v":22},{"$f":"[1]ACS_16_5YR_B15002_with_ann!AH262","v":9},{"$f":"[1]ACS_16_5YR_B15002_with_ann!AI262","v":7},{"$f":"[1]ACS_16_5YR_B15002_with_ann!AJ262","v":4},{"$f":"[1]ACS_16_5YR_B15002_with_ann!AK262","v":5},{"$f":"[1]ACS_16_5YR_B15002_with_ann!AL263","v":0},{"$f":"[1]ACS_16_5YR_B15002_with_ann!AM263","v":11},{"$f":"[1]ACS_16_5YR_B15002_with_ann!AN263","v":264},{"$f":"[1]ACS_16_5YR_B15002_with_ann!AO263","v":39},{"$f":"[1]ACS_16_5YR_B15002_with_ann!AP263","v":0},{"$f":"[1]ACS_16_5YR_B15002_with_ann!AQ263","v":11},{"$f":"[1]ACS_16_5YR_B15002_with_ann!AR263","v":0},{"$f":"[1]ACS_16_5YR_B15002_with_ann!AS263","v":11},{"$f":"[1]ACS_16_5YR_B15002_with_ann!AT263","v":2},{"$f":"[1]ACS_16_5YR_B15002_with_ann!AU263","v":3},{"$f":"[1]ACS_16_5YR_B15002_with_ann!AV263","v":6},{"$f":"[1]ACS_16_5YR_B15002_with_ann!AW263","v":13},{"$f":"[1]ACS_16_5YR_B15002_with_ann!AX263","v":10},{"$f":"[1]ACS_16_5YR_B15002_with_ann!AY263","v":10},{"$f":"[1]ACS_16_5YR_B15002_with_ann!AZ263","v":11},{"$f":"[1]ACS_16_5YR_B15002_with_ann!BA263","v":9},{"$f":"[1]ACS_16_5YR_B15002_with_ann!BB263","v":0},{"$f":"[1]ACS_16_5YR_B15002_with_ann!BC263","v":11},{"$f":"[1]ACS_16_5YR_B15002_with_ann!BD263","v":4},{"$f":"[1]ACS_16_5YR_B15002_with_ann!BE263","v":4},{"$f":"[1]ACS_16_5YR_B15002_with_ann!BF263","v":115},{"$f":"[1]ACS_16_5YR_B15002_with_ann!BG263","v":34},{"$f":"[1]ACS_16_5YR_B15002_with_ann!BH263","v":24},{"$f":"[1]ACS_16_5YR_B15002_with_ann!BI263","v":18},{"$f":"[1]ACS_16_5YR_B15002_with_ann!BJ263","v":36},{"$f":"[1]ACS_16_5YR_B15002_with_ann!BK263","v":17},{"$f":"[1]ACS_16_5YR_B15002_with_ann!BL263","v":10},{"$f":"[1]ACS_16_5YR_B15002_with_ann!BM263","v":7},{"$f":"[1]ACS_16_5YR_B15002_with_ann!BN263","v":28},{"$f":"[1]ACS_16_5YR_B15002_with_ann!BO263","v":14},{"$f":"[1]ACS_16_5YR_B15002_with_ann!BP263","v":14},{"$f":"[1]ACS_16_5YR_B15002_with_ann!BQ263","v":12},{"$f":"[1]ACS_16_5YR_B15002_with_ann!BR263","v":4},{"$f":"[1]ACS_16_5YR_B15002_with_ann!BS263","v":4},{"$f":"[1]ACS_16_5YR_B15002_with_ann!BT263","v":0},{"$f":"[1]ACS_16_5YR_B15002_with_ann!BU263","v":11},null,"Acworth"]
["0600000US3301931220",3301931220,"060","Grantham",{"$f":"[1]ACS_16_5YR_B14001_with_ann!D263","v":691},{"$f":"[1]ACS_16_5YR_B14001_with_ann!E263","v":105},{"$f":"[1]ACS_16_5YR_B14001_with_ann!F263","v":151},{"$f":"[1]ACS_16_5YR_B14001_with_ann!G263","v":57},{"$f":"[1]ACS_16_5YR_B14001_with_ann!H263","v":21},{"$f":"[1]ACS_16_5YR_B14001_with_ann!I263","v":14},{"$f":"[1]ACS_16_5YR_B14001_with_ann!J263","v":14},{"$f":"[1]ACS_16_5YR_B14001_with_ann!K263","v":16},{"$f":"[1]ACS_16_5YR_B14001_with_ann!L263","v":38},{"$f":"[1]ACS_16_5YR_B14001_with_ann!M263","v":20},{"$f":"[1]ACS_16_5YR_B14001_with_ann!N263","v":21},{"$f":"[1]ACS_16_5YR_B14001_with_ann!O263","v":16},{"$f":"[1]ACS_16_5YR_B14001_with_ann!P263","v":41},{"$f":"[1]ACS_16_5YR_B14001_with_ann!Q263","v":34},{"$f":"[1]ACS_16_5YR_B14001_with_ann!R263","v":12},{"$f":"[1]ACS_16_5YR_B14001_with_ann!S263","v":10},{"$f":"[1]ACS_16_5YR_B14001_with_ann!T263","v":4},{"$f":"[1]ACS_16_5YR_B14001_with_ann!U263","v":8},{"$f":"[1]ACS_16_5YR_B14001_with_ann!V263","v":540},{"$f":"[1]ACS_16_5YR_B14001_with_ann!W263","v":77},{"$f":"[1]ACS_16_5YR_B15002_with_ann!D263","v":531},{"$f":"[1]ACS_16_5YR_B15002_with_ann!E263","v":77},{"$f":"[1]ACS_16_5YR_B15002_with_ann!F263","v":267},{"$f":"[1]ACS_16_5YR_B15002_with_ann!G263","v":55},{"$f":"[1]ACS_16_5YR_B15002_with_ann!H263","v":0},{"$f":"[1]ACS_16_5YR_B15002_with_ann!I263","v":11},{"$f":"[1]ACS_16_5YR_B15002_with_ann!J263","v":0},{"$f":"[1]ACS_16_5YR_B15002_with_ann!K263","v":11},{"$f":"[1]ACS_16_5YR_B15002_with_ann!L263","v":0},{"$f":"[1]ACS_16_5YR_B15002_with_ann!M263","v":11},{"$f":"[1]ACS_16_5YR_B15002_with_ann!N263","v":1},{"$f":"[1]ACS_16_5YR_B15002_with_ann!O263","v":3},{"$f":"[1]ACS_16_5YR_B15002_with_ann!P263","v":0},{"$f":"[1]ACS_16_5YR_B15002_with_ann!Q263","v":11},{"$f":"[1]ACS_16_5YR_B15002_with_ann!R263","v":6},{"$f":"[1]ACS_16_5YR_B15002_with_ann!S263","v":5},{"$f":"[1]ACS_16_5YR_B15002_with_ann!T263","v":4},{"$f":"[1]ACS_16_5YR_B15002_with_ann!U263","v":4},{"$f":"[1]ACS_16_5YR_B15002_with_ann!V263","v":2},{"$f":"[1]ACS_16_5YR_B15002_with_ann!W263","v":3},{"$f":"[1]ACS_16_5YR_B15002_with_ann!X263","v":133},{"$f":"[1]ACS_16_5YR_B15002_with_ann!Y263","v":37},{"$f":"[1]ACS_16_5YR_B15002_with_ann!Z263","v":21},{"$f":"[1]ACS_16_5YR_B15002_with_ann!AA263","v":20},{"$f":"[1]ACS_16_5YR_B15002_with_ann!AB263","v":35},{"$f":"[1]ACS_16_5YR_B15002_with_ann!AC263","v":24},{"$f":"[1]ACS_16_5YR_B15002_with_ann!AD263","v":15},{"$f":"[1]ACS_16_5YR_B15002_with_ann!AE263","v":13},{"$f":"[1]ACS_16_5YR_B15002_with_ann!AF263","v":27},{"$f":"[1]ACS_16_5YR_B15002_with_ann!AG263","v":17},{"$f":"[1]ACS_16_5YR_B15002_with_ann!AH263","v":19},{"$f":"[1]ACS_16_5YR_B15002_with_ann!AI263","v":16},{"$f":"[1]ACS_16_5YR_B15002_with_ann!AJ263","v":4},{"$f":"[1]ACS_16_5YR_B15002_with_ann!AK263","v":5},{"$f":"[1]ACS_16_5YR_B15002_with_ann!AL264","v":62},{"$f":"[1]ACS_16_5YR_B15002_with_ann!AM264","v":50},{"$f":"[1]ACS_16_5YR_B15002_with_ann!AN264","v":1223},{"$f":"[1]ACS_16_5YR_B15002_with_ann!AO264","v":138},{"$f":"[1]ACS_16_5YR_B15002_with_ann!AP264","v":0},{"$f":"[1]ACS_16_5YR_B15002_with_ann!AQ264","v":11},{"$f":"[1]ACS_16_5YR_B15002_with_ann!AR264","v":0},{"$f":"[1]ACS_16_5YR_B15002_with_ann!AS264","v":11},{"$f":"[1]ACS_16_5YR_B15002_with_ann!AT264","v":0},{"$f":"[1]ACS_16_5YR_B15002_with_ann!AU264","v":11},{"$f":"[1]ACS_16_5YR_B15002_with_ann!AV264","v":0},{"$f":"[1]ACS_16_5YR_B15002_with_ann!AW264","v":11},{"$f":"[1]ACS_16_5YR_B15002_with_ann!AX264","v":14},{"$f":"[1]ACS_16_5YR_B15002_with_ann!AY264","v":21},{"$f":"[1]ACS_16_5YR_B15002_with_ann!AZ264","v":0},{"$f":"[1]ACS_16_5YR_B15002_with_ann!BA264","v":11},{"$f":"[1]ACS_16_5YR_B15002_with_ann!BB264","v":0},{"$f":"[1]ACS_16_5YR_B15002_with_ann!BC264","v":11},{"$f":"[1]ACS_16_5YR_B15002_with_ann!BD264","v":0},{"$f":"[1]ACS_16_5YR_B15002_with_ann!BE264","v":11},{"$f":"[1]ACS_16_5YR_B15002_with_ann!BF264","v":132},{"$f":"[1]ACS_16_5YR_B15002_with_ann!BG264","v":69},{"$f":"[1]ACS_16_5YR_B15002_with_ann!BH264","v":13},{"$f":"[1]ACS_16_5YR_B15002_with_ann!BI264","v":18},{"$f":"[1]ACS_16_5YR_B15002_with_ann!BJ264","v":132},{"$f":"[1]ACS_16_5YR_B15002_with_ann!BK264","v":109},{"$f":"[1]ACS_16_5YR_B15002_with_ann!BL264","v":153},{"$f":"[1]ACS_16_5YR_B15002_with_ann!BM264","v":78},{"$f":"[1]ACS_16_5YR_B15002_with_ann!BN264","v":475},{"$f":"[1]ACS_16_5YR_B15002_with_ann!BO264","v":154},{"$f":"[1]ACS_16_5YR_B15002_with_ann!BP264","v":232},{"$f":"[1]ACS_16_5YR_B15002_with_ann!BQ264","v":119},{"$f":"[1]ACS_16_5YR_B15002_with_ann!BR264","v":55},{"$f":"[1]ACS_16_5YR_B15002_with_ann!BS264","v":65},{"$f":"[1]ACS_16_5YR_B15002_with_ann!BT264","v":17},{"$f":"[1]ACS_16_5YR_B15002_with_ann!BU264","v":26},null,"Acworth"]
["0600000US3301940900",3301940900,"060","Langdon",{"$f":"[1]ACS_16_5YR_B14001_with_ann!D264","v":2945},{"$f":"[1]ACS_16_5YR_B14001_with_ann!E264","v":14},{"$f":"[1]ACS_16_5YR_B14001_with_ann!F264","v":647},{"$f":"[1]ACS_16_5YR_B14001_with_ann!G264","v":109},{"$f":"[1]ACS_16_5YR_B14001_with_ann!H264","v":24},{"$f":"[1]ACS_16_5YR_B14001_with_ann!I264","v":35},{"$f":"[1]ACS_16_5YR_B14001_with_ann!J264","v":63},{"$f":"[1]ACS_16_5YR_B14001_with_ann!K264","v":69},{"$f":"[1]ACS_16_5YR_B14001_with_ann!L264","v":78},{"$f":"[1]ACS_16_5YR_B14001_with_ann!M264","v":41},{"$f":"[1]ACS_16_5YR_B14001_with_ann!N264","v":162},{"$f":"[1]ACS_16_5YR_B14001_with_ann!O264","v":66},{"$f":"[1]ACS_16_5YR_B14001_with_ann!P264","v":203},{"$f":"[1]ACS_16_5YR_B14001_with_ann!Q264","v":97},{"$f":"[1]ACS_16_5YR_B14001_with_ann!R264","v":71},{"$f":"[1]ACS_16_5YR_B14001_with_ann!S264","v":58},{"$f":"[1]ACS_16_5YR_B14001_with_ann!T264","v":46},{"$f":"[1]ACS_16_5YR_B14001_with_ann!U264","v":62},{"$f":"[1]ACS_16_5YR_B14001_with_ann!V264","v":2298},{"$f":"[1]ACS_16_5YR_B14001_with_ann!W264","v":109},{"$f":"[1]ACS_16_5YR_B15002_with_ann!D264","v":2274},{"$f":"[1]ACS_16_5YR_B15002_with_ann!E264","v":126},{"$f":"[1]ACS_16_5YR_B15002_with_ann!F264","v":1051},{"$f":"[1]ACS_16_5YR_B15002_with_ann!G264","v":100},{"$f":"[1]ACS_16_5YR_B15002_with_ann!H264","v":0},{"$f":"[1]ACS_16_5YR_B15002_with_ann!I264","v":11},{"$f":"[1]ACS_16_5YR_B15002_with_ann!J264","v":0},{"$f":"[1]ACS_16_5YR_B15002_with_ann!K264","v":11},{"$f":"[1]ACS_16_5YR_B15002_with_ann!L264","v":0},{"$f":"[1]ACS_16_5YR_B15002_with_ann!M264","v":11},{"$f":"[1]ACS_16_5YR_B15002_with_ann!N264","v":0},{"$f":"[1]ACS_16_5YR_B15002_with_ann!O264","v":11},{"$f":"[1]ACS_16_5YR_B15002_with_ann!P264","v":0},{"$f":"[1]ACS_16_5YR_B15002_with_ann!Q264","v":11},{"$f":"[1]ACS_16_5YR_B15002_with_ann!R264","v":0},{"$f":"[1]ACS_16_5YR_B15002_with_ann!S264","v":11},{"$f":"[1]ACS_16_5YR_B15002_with_ann!T264","v":0},{"$f":"[1]ACS_16_5YR_B15002_with_ann!U264","v":11},{"$f":"[1]ACS_16_5YR_B15002_with_ann!V264","v":0},{"$f":"[1]ACS_16_5YR_B15002_with_ann!W264","v":11},{"$f":"[1]ACS_16_5YR_B15002_with_ann!X264","v":168},{"$f":"[1]ACS_16_5YR_B15002_with_ann!Y264","v":82},{"$f":"[1]ACS_16_5YR_B15002_with_ann!Z264","v":44},{"$f":"[1]ACS_16_5YR_B15002_with_ann!AA264","v":43},{"$f":"[1]ACS_16_5YR_B15002_with_ann!AB264","v":80},{"$f":"[1]ACS_16_5YR_B15002_with_ann!AC264","v":74},{"$f":"[1]ACS_16_5YR_B15002_with_ann!AD264","v":35},{"$f":"[1]ACS_16_5YR_B15002_with_ann!AE264","v":44},{"$f":"[1]ACS_16_5YR_B15002_with_ann!AF264","v":442},{"$f":"[1]ACS_16_5YR_B15002_with_ann!AG264","v":165},{"$f":"[1]ACS_16_5YR_B15002_with_ann!AH264","v":220},{"$f":"[1]ACS_16_5YR_B15002_with_ann!AI264","v":105},{"$f":"[1]ACS_16_5YR_B15002_with_ann!AJ264","v":0},{"$f":"[1]ACS_16_5YR_B15002_with_ann!AK264","v":11},{"$f":"[1]ACS_16_5YR_B15002_with_ann!AL265","v":0},{"$f":"[1]ACS_16_5YR_B15002_with_ann!AM265","v":11},{"$f":"[1]ACS_16_5YR_B15002_with_ann!AN265","v":268},{"$f":"[1]ACS_16_5YR_B15002_with_ann!AO265","v":46},{"$f":"[1]ACS_16_5YR_B15002_with_ann!AP265","v":0},{"$f":"[1]ACS_16_5YR_B15002_with_ann!AQ265","v":11},{"$f":"[1]ACS_16_5YR_B15002_with_ann!AR265","v":0},{"$f":"[1]ACS_16_5YR_B15002_with_ann!AS265","v":11},{"$f":"[1]ACS_16_5YR_B15002_with_ann!AT265","v":0},{"$f":"[1]ACS_16_5YR_B15002_with_ann!AU265","v":11},{"$f":"[1]ACS_16_5YR_B15002_with_ann!AV265","v":2},{"$f":"[1]ACS_16_5YR_B15002_with_ann!AW265","v":3},{"$f":"[1]ACS_16_5YR_B15002_with_ann!AX265","v":7},{"$f":"[1]ACS_16_5YR_B15002_with_ann!AY265","v":11},{"$f":"[1]ACS_16_5YR_B15002_with_ann!AZ265","v":7},{"$f":"[1]ACS_16_5YR_B15002_with_ann!BA265","v":11},{"$f":"[1]ACS_16_5YR_B15002_with_ann!BB265","v":6},{"$f":"[1]ACS_16_5YR_B15002_with_ann!BC265","v":5},{"$f":"[1]ACS_16_5YR_B15002_with_ann!BD265","v":6},{"$f":"[1]ACS_16_5YR_B15002_with_ann!BE265","v":6},{"$f":"[1]ACS_16_5YR_B15002_with_ann!BF265","v":54},{"$f":"[1]ACS_16_5YR_B15002_with_ann!BG265","v":26},{"$f":"[1]ACS_16_5YR_B15002_with_ann!BH265","v":13},{"$f":"[1]ACS_16_5YR_B15002_with_ann!BI265","v":11},{"$f":"[1]ACS_16_5YR_B15002_with_ann!BJ265","v":15},{"$f":"[1]ACS_16_5YR_B15002_with_ann!BK265","v":8},{"$f":"[1]ACS_16_5YR_B15002_with_ann!BL265","v":62},{"$f":"[1]ACS_16_5YR_B15002_with_ann!BM265","v":28},{"$f":"[1]ACS_16_5YR_B15002_with_ann!BN265","v":71},{"$f":"[1]ACS_16_5YR_B15002_with_ann!BO265","v":28},{"$f":"[1]ACS_16_5YR_B15002_with_ann!BP265","v":17},{"$f":"[1]ACS_16_5YR_B15002_with_ann!BQ265","v":8},{"$f":"[1]ACS_16_5YR_B15002_with_ann!BR265","v":5},{"$f":"[1]ACS_16_5YR_B15002_with_ann!BS265","v":8},{"$f":"[1]ACS_16_5YR_B15002_with_ann!BT265","v":3},{"$f":"[1]ACS_16_5YR_B15002_with_ann!BU265","v":5},null,"Acworth"]
["0600000US3301941700",3301941700,"060","Lempster",{"$f":"[1]ACS_16_5YR_B14001_with_ann!D265","v":704},{"$f":"[1]ACS_16_5YR_B14001_with_ann!E265","v":146},{"$f":"[1]ACS_16_5YR_B14001_with_ann!F265","v":185},{"$f":"[1]ACS_16_5YR_B14001_with_ann!G265","v":87},{"$f":"[1]ACS_16_5YR_B14001_with_ann!H265","v":32},{"$f":"[1]ACS_16_5YR_B14001_with_ann!I265","v":20},{"$f":"[1]ACS_16_5YR_B14001_with_ann!J265","v":6},{"$f":"[1]ACS_16_5YR_B14001_with_ann!K265","v":9},{"$f":"[1]ACS_16_5YR_B14001_with_ann!L265","v":49},{"$f":"[1]ACS_16_5YR_B14001_with_ann!M265","v":33},{"$f":"[1]ACS_16_5YR_B14001_with_ann!N265","v":44},{"$f":"[1]ACS_16_5YR_B14001_with_ann!O265","v":39},{"$f":"[1]ACS_16_5YR_B14001_with_ann!P265","v":33},{"$f":"[1]ACS_16_5YR_B14001_with_ann!Q265","v":21},{"$f":"[1]ACS_16_5YR_B14001_with_ann!R265","v":13},{"$f":"[1]ACS_16_5YR_B14001_with_ann!S265","v":13},{"$f":"[1]ACS_16_5YR_B14001_with_ann!T265","v":8},{"$f":"[1]ACS_16_5YR_B14001_with_ann!U265","v":10},{"$f":"[1]ACS_16_5YR_B14001_with_ann!V265","v":519},{"$f":"[1]ACS_16_5YR_B14001_with_ann!W265","v":93},{"$f":"[1]ACS_16_5YR_B15002_with_ann!D265","v":510},{"$f":"[1]ACS_16_5YR_B15002_with_ann!E265","v":89},{"$f":"[1]ACS_16_5YR_B15002_with_ann!F265","v":242},{"$f":"[1]ACS_16_5YR_B15002_with_ann!G265","v":53},{"$f":"[1]ACS_16_5YR_B15002_with_ann!H265","v":2},{"$f":"[1]ACS_16_5YR_B15002_with_ann!I265","v":4},{"$f":"[1]ACS_16_5YR_B15002_with_ann!J265","v":3},{"$f":"[1]ACS_16_5YR_B15002_with_ann!K265","v":4},{"$f":"[1]ACS_16_5YR_B15002_with_ann!L265","v":0},{"$f":"[1]ACS_16_5YR_B15002_with_ann!M265","v":11},{"$f":"[1]ACS_16_5YR_B15002_with_ann!N265","v":3},{"$f":"[1]ACS_16_5YR_B15002_with_ann!O265","v":4},{"$f":"[1]ACS_16_5YR_B15002_with_ann!P265","v":0},{"$f":"[1]ACS_16_5YR_B15002_with_ann!Q265","v":11},{"$f":"[1]ACS_16_5YR_B15002_with_ann!R265","v":10},{"$f":"[1]ACS_16_5YR_B15002_with_ann!S265","v":11},{"$f":"[1]ACS_16_5YR_B15002_with_ann!T265","v":0},{"$f":"[1]ACS_16_5YR_B15002_with_ann!U265","v":11},{"$f":"[1]ACS_16_5YR_B15002_with_ann!V265","v":2},{"$f":"[1]ACS_16_5YR_B15002_with_ann!W265","v":3},{"$f":"[1]ACS_16_5YR_B15002_with_ann!X265","v":87},{"$f":"[1]ACS_16_5YR_B15002_with_ann!Y265","v":27},{"$f":"[1]ACS_16_5YR_B15002_with_ann!Z265","v":15},{"$f":"[1]ACS_16_5YR_B15002_with_ann!AA265","v":17},{"$f":"[1]ACS_16_5YR_B15002_with_ann!AB265","v":33},{"$f":"[1]ACS_16_5YR_B15002_with_ann!AC265","v":21},{"$f":"[1]ACS_16_5YR_B15002_with_ann!AD265","v":27},{"$f":"[1]ACS_16_5YR_B15002_with_ann!AE265","v":18},{"$f":"[1]ACS_16_5YR_B15002_with_ann!AF265","v":42},{"$f":"[1]ACS_16_5YR_B15002_with_ann!AG265","v":19},{"$f":"[1]ACS_16_5YR_B15002_with_ann!AH265","v":11},{"$f":"[1]ACS_16_5YR_B15002_with_ann!AI265","v":7},{"$f":"[1]ACS_16_5YR_B15002_with_ann!AJ265","v":7},{"$f":"[1]ACS_16_5YR_B15002_with_ann!AK265","v":6},{"$f":"[1]ACS_16_5YR_B15002_with_ann!AL266","v":0},{"$f":"[1]ACS_16_5YR_B15002_with_ann!AM266","v":11},{"$f":"[1]ACS_16_5YR_B15002_with_ann!AN266","v":328},{"$f":"[1]ACS_16_5YR_B15002_with_ann!AO266","v":65},{"$f":"[1]ACS_16_5YR_B15002_with_ann!AP266","v":0},{"$f":"[1]ACS_16_5YR_B15002_with_ann!AQ266","v":11},{"$f":"[1]ACS_16_5YR_B15002_with_ann!AR266","v":4},{"$f":"[1]ACS_16_5YR_B15002_with_ann!AS266","v":6},{"$f":"[1]ACS_16_5YR_B15002_with_ann!AT266","v":0},{"$f":"[1]ACS_16_5YR_B15002_with_ann!AU266","v":11},{"$f":"[1]ACS_16_5YR_B15002_with_ann!AV266","v":3},{"$f":"[1]ACS_16_5YR_B15002_with_ann!AW266","v":4},{"$f":"[1]ACS_16_5YR_B15002_with_ann!AX266","v":2},{"$f":"[1]ACS_16_5YR_B15002_with_ann!AY266","v":3},{"$f":"[1]ACS_16_5YR_B15002_with_ann!AZ266","v":3},{"$f":"[1]ACS_16_5YR_B15002_with_ann!BA266","v":5},{"$f":"[1]ACS_16_5YR_B15002_with_ann!BB266","v":0},{"$f":"[1]ACS_16_5YR_B15002_with_ann!BC266","v":11},{"$f":"[1]ACS_16_5YR_B15002_with_ann!BD266","v":6},{"$f":"[1]ACS_16_5YR_B15002_with_ann!BE266","v":6},{"$f":"[1]ACS_16_5YR_B15002_with_ann!BF266","v":143},{"$f":"[1]ACS_16_5YR_B15002_with_ann!BG266","v":61},{"$f":"[1]ACS_16_5YR_B15002_with_ann!BH266","v":15},{"$f":"[1]ACS_16_5YR_B15002_with_ann!BI266","v":9},{"$f":"[1]ACS_16_5YR_B15002_with_ann!BJ266","v":62},{"$f":"[1]ACS_16_5YR_B15002_with_ann!BK266","v":33},{"$f":"[1]ACS_16_5YR_B15002_with_ann!BL266","v":8},{"$f":"[1]ACS_16_5YR_B15002_with_ann!BM266","v":7},{"$f":"[1]ACS_16_5YR_B15002_with_ann!BN266","v":52},{"$f":"[1]ACS_16_5YR_B15002_with_ann!BO266","v":21},{"$f":"[1]ACS_16_5YR_B15002_with_ann!BP266","v":21},{"$f":"[1]ACS_16_5YR_B15002_with_ann!BQ266","v":13},{"$f":"[1]ACS_16_5YR_B15002_with_ann!BR266","v":6},{"$f":"[1]ACS_16_5YR_B15002_with_ann!BS266","v":9},{"$f":"[1]ACS_16_5YR_B15002_with_ann!BT266","v":3},{"$f":"[1]ACS_16_5YR_B15002_with_ann!BU266","v":4},null,"Acworth"]
["0600000US3301952580",3301952580,"060","Newport",{"$f":"[1]ACS_16_5YR_B14001_with_ann!D266","v":894},{"$f":"[1]ACS_16_5YR_B14001_with_ann!E266","v":163},{"$f":"[1]ACS_16_5YR_B14001_with_ann!F266","v":203},{"$f":"[1]ACS_16_5YR_B14001_with_ann!G266","v":104},{"$f":"[1]ACS_16_5YR_B14001_with_ann!H266","v":27},{"$f":"[1]ACS_16_5YR_B14001_with_ann!I266","v":20},{"$f":"[1]ACS_16_5YR_B14001_with_ann!J266","v":15},{"$f":"[1]ACS_16_5YR_B14001_with_ann!K266","v":15},{"$f":"[1]ACS_16_5YR_B14001_with_ann!L266","v":29},{"$f":"[1]ACS_16_5YR_B14001_with_ann!M266","v":22},{"$f":"[1]ACS_16_5YR_B14001_with_ann!N266","v":31},{"$f":"[1]ACS_16_5YR_B14001_with_ann!O266","v":35},{"$f":"[1]ACS_16_5YR_B14001_with_ann!P266","v":72},{"$f":"[1]ACS_16_5YR_B14001_with_ann!Q266","v":58},{"$f":"[1]ACS_16_5YR_B14001_with_ann!R266","v":13},{"$f":"[1]ACS_16_5YR_B14001_with_ann!S266","v":11},{"$f":"[1]ACS_16_5YR_B14001_with_ann!T266","v":16},{"$f":"[1]ACS_16_5YR_B14001_with_ann!U266","v":15},{"$f":"[1]ACS_16_5YR_B14001_with_ann!V266","v":691},{"$f":"[1]ACS_16_5YR_B14001_with_ann!W266","v":109},{"$f":"[1]ACS_16_5YR_B15002_with_ann!D266","v":681},{"$f":"[1]ACS_16_5YR_B15002_with_ann!E266","v":108},{"$f":"[1]ACS_16_5YR_B15002_with_ann!F266","v":353},{"$f":"[1]ACS_16_5YR_B15002_with_ann!G266","v":62},{"$f":"[1]ACS_16_5YR_B15002_with_ann!H266","v":6},{"$f":"[1]ACS_16_5YR_B15002_with_ann!I266","v":4},{"$f":"[1]ACS_16_5YR_B15002_with_ann!J266","v":0},{"$f":"[1]ACS_16_5YR_B15002_with_ann!K266","v":11},{"$f":"[1]ACS_16_5YR_B15002_with_ann!L266","v":4},{"$f":"[1]ACS_16_5YR_B15002_with_ann!M266","v":5},{"$f":"[1]ACS_16_5YR_B15002_with_ann!N266","v":0},{"$f":"[1]ACS_16_5YR_B15002_with_ann!O266","v":11},{"$f":"[1]ACS_16_5YR_B15002_with_ann!P266","v":27},{"$f":"[1]ACS_16_5YR_B15002_with_ann!Q266","v":21},{"$f":"[1]ACS_16_5YR_B15002_with_ann!R266","v":9},{"$f":"[1]ACS_16_5YR_B15002_with_ann!S266","v":13},{"$f":"[1]ACS_16_5YR_B15002_with_ann!T266","v":4},{"$f":"[1]ACS_16_5YR_B15002_with_ann!U266","v":5},{"$f":"[1]ACS_16_5YR_B15002_with_ann!V266","v":11},{"$f":"[1]ACS_16_5YR_B15002_with_ann!W266","v":9},{"$f":"[1]ACS_16_5YR_B15002_with_ann!X266","v":121},{"$f":"[1]ACS_16_5YR_B15002_with_ann!Y266","v":35},{"$f":"[1]ACS_16_5YR_B15002_with_ann!Z266","v":24},{"$f":"[1]ACS_16_5YR_B15002_with_ann!AA266","v":14},{"$f":"[1]ACS_16_5YR_B15002_with_ann!AB266","v":36},{"$f":"[1]ACS_16_5YR_B15002_with_ann!AC266","v":21},{"$f":"[1]ACS_16_5YR_B15002_with_ann!AD266","v":42},{"$f":"[1]ACS_16_5YR_B15002_with_ann!AE266","v":31},{"$f":"[1]ACS_16_5YR_B15002_with_ann!AF266","v":53},{"$f":"[1]ACS_16_5YR_B15002_with_ann!AG266","v":32},{"$f":"[1]ACS_16_5YR_B15002_with_ann!AH266","v":16},{"$f":"[1]ACS_16_5YR_B15002_with_ann!AI266","v":12},{"$f":"[1]ACS_16_5YR_B15002_with_ann!AJ266","v":0},{"$f":"[1]ACS_16_5YR_B15002_with_ann!AK266","v":11},{"$f":"[1]ACS_16_5YR_B15002_with_ann!AL267","v":16},{"$f":"[1]ACS_16_5YR_B15002_with_ann!AM267","v":26},{"$f":"[1]ACS_16_5YR_B15002_with_ann!AN267","v":2358},{"$f":"[1]ACS_16_5YR_B15002_with_ann!AO267","v":202},{"$f":"[1]ACS_16_5YR_B15002_with_ann!AP267","v":40},{"$f":"[1]ACS_16_5YR_B15002_with_ann!AQ267","v":39},{"$f":"[1]ACS_16_5YR_B15002_with_ann!AR267","v":19},{"$f":"[1]ACS_16_5YR_B15002_with_ann!AS267","v":31},{"$f":"[1]ACS_16_5YR_B15002_with_ann!AT267","v":0},{"$f":"[1]ACS_16_5YR_B15002_with_ann!AU267","v":16},{"$f":"[1]ACS_16_5YR_B15002_with_ann!AV267","v":8},{"$f":"[1]ACS_16_5YR_B15002_with_ann!AW267","v":11},{"$f":"[1]ACS_16_5YR_B15002_with_ann!AX267","v":53},{"$f":"[1]ACS_16_5YR_B15002_with_ann!AY267","v":41},{"$f":"[1]ACS_16_5YR_B15002_with_ann!AZ267","v":24},{"$f":"[1]ACS_16_5YR_B15002_with_ann!BA267","v":28},{"$f":"[1]ACS_16_5YR_B15002_with_ann!BB267","v":33},{"$f":"[1]ACS_16_5YR_B15002_with_ann!BC267","v":52},{"$f":"[1]ACS_16_5YR_B15002_with_ann!BD267","v":39},{"$f":"[1]ACS_16_5YR_B15002_with_ann!BE267","v":59},{"$f":"[1]ACS_16_5YR_B15002_with_ann!BF267","v":909},{"$f":"[1]ACS_16_5YR_B15002_with_ann!BG267","v":195},{"$f":"[1]ACS_16_5YR_B15002_with_ann!BH267","v":110},{"$f":"[1]ACS_16_5YR_B15002_with_ann!BI267","v":65},{"$f":"[1]ACS_16_5YR_B15002_with_ann!BJ267","v":258},{"$f":"[1]ACS_16_5YR_B15002_with_ann!BK267","v":138},{"$f":"[1]ACS_16_5YR_B15002_with_ann!BL267","v":265},{"$f":"[1]ACS_16_5YR_B15002_with_ann!BM267","v":124},{"$f":"[1]ACS_16_5YR_B15002_with_ann!BN267","v":370},{"$f":"[1]ACS_16_5YR_B15002_with_ann!BO267","v":146},{"$f":"[1]ACS_16_5YR_B15002_with_ann!BP267","v":150},{"$f":"[1]ACS_16_5YR_B15002_with_ann!BQ267","v":81},{"$f":"[1]ACS_16_5YR_B15002_with_ann!BR267","v":55},{"$f":"[1]ACS_16_5YR_B15002_with_ann!BS267","v":66},{"$f":"[1]ACS_16_5YR_B15002_with_ann!BT267","v":25},{"$f":"[1]ACS_16_5YR_B15002_with_ann!BU267","v":29},null,"Acworth"]
["0600000US3301962340",3301962340,"060","Plainfield",{"$f":"[1]ACS_16_5YR_B14001_with_ann!D267","v":6306},{"$f":"[1]ACS_16_5YR_B14001_with_ann!E267","v":55},{"$f":"[1]ACS_16_5YR_B14001_with_ann!F267","v":1213},{"$f":"[1]ACS_16_5YR_B14001_with_ann!G267","v":290},{"$f":"[1]ACS_16_5YR_B14001_with_ann!H267","v":88},{"$f":"[1]ACS_16_5YR_B14001_with_ann!I267","v":62},{"$f":"[1]ACS_16_5YR_B14001_with_ann!J267","v":67},{"$f":"[1]ACS_16_5YR_B14001_with_ann!K267","v":46},{"$f":"[1]ACS_16_5YR_B14001_with_ann!L267","v":253},{"$f":"[1]ACS_16_5YR_B14001_with_ann!M267","v":133},{"$f":"[1]ACS_16_5YR_B14001_with_ann!N267","v":319},{"$f":"[1]ACS_16_5YR_B14001_with_ann!O267","v":169},{"$f":"[1]ACS_16_5YR_B14001_with_ann!P267","v":345},{"$f":"[1]ACS_16_5YR_B14001_with_ann!Q267","v":172},{"$f":"[1]ACS_16_5YR_B14001_with_ann!R267","v":82},{"$f":"[1]ACS_16_5YR_B14001_with_ann!S267","v":63},{"$f":"[1]ACS_16_5YR_B14001_with_ann!T267","v":59},{"$f":"[1]ACS_16_5YR_B14001_with_ann!U267","v":63},{"$f":"[1]ACS_16_5YR_B14001_with_ann!V267","v":5093},{"$f":"[1]ACS_16_5YR_B14001_with_ann!W267","v":294},{"$f":"[1]ACS_16_5YR_B15002_with_ann!D267","v":4549},{"$f":"[1]ACS_16_5YR_B15002_with_ann!E267","v":302},{"$f":"[1]ACS_16_5YR_B15002_with_ann!F267","v":2191},{"$f":"[1]ACS_16_5YR_B15002_with_ann!G267","v":248},{"$f":"[1]ACS_16_5YR_B15002_with_ann!H267","v":37},{"$f":"[1]ACS_16_5YR_B15002_with_ann!I267","v":52},{"$f":"[1]ACS_16_5YR_B15002_with_ann!J267","v":13},{"$f":"[1]ACS_16_5YR_B15002_with_ann!K267","v":28},{"$f":"[1]ACS_16_5YR_B15002_with_ann!L267","v":11},{"$f":"[1]ACS_16_5YR_B15002_with_ann!M267","v":18},{"$f":"[1]ACS_16_5YR_B15002_with_ann!N267","v":40},{"$f":"[1]ACS_16_5YR_B15002_with_ann!O267","v":41},{"$f":"[1]ACS_16_5YR_B15002_with_ann!P267","v":132},{"$f":"[1]ACS_16_5YR_B15002_with_ann!Q267","v":184},{"$f":"[1]ACS_16_5YR_B15002_with_ann!R267","v":11},{"$f":"[1]ACS_16_5YR_B15002_with_ann!S267","v":18},{"$f":"[1]ACS_16_5YR_B15002_with_ann!T267","v":93},{"$f":"[1]ACS_16_5YR_B15002_with_ann!U267","v":94},{"$f":"[1]ACS_16_5YR_B15002_with_ann!V267","v":11},{"$f":"[1]ACS_16_5YR_B15002_with_ann!W267","v":18},{"$f":"[1]ACS_16_5YR_B15002_with_ann!X267","v":781},{"$f":"[1]ACS_16_5YR_B15002_with_ann!Y267","v":197},{"$f":"[1]ACS_16_5YR_B15002_with_ann!Z267","v":119},{"$f":"[1]ACS_16_5YR_B15002_with_ann!AA267","v":72},{"$f":"[1]ACS_16_5YR_B15002_with_ann!AB267","v":401},{"$f":"[1]ACS_16_5YR_B15002_with_ann!AC267","v":182},{"$f":"[1]ACS_16_5YR_B15002_with_ann!AD267","v":178},{"$f":"[1]ACS_16_5YR_B15002_with_ann!AE267","v":99},{"$f":"[1]ACS_16_5YR_B15002_with_ann!AF267","v":307},{"$f":"[1]ACS_16_5YR_B15002_with_ann!AG267","v":130},{"$f":"[1]ACS_16_5YR_B15002_with_ann!AH267","v":41},{"$f":"[1]ACS_16_5YR_B15002_with_ann!AI267","v":51},{"$f":"[1]ACS_16_5YR_B15002_with_ann!AJ267","v":0},{"$f":"[1]ACS_16_5YR_B15002_with_ann!AK267","v":16},{"$f":"[1]ACS_16_5YR_B15002_with_ann!AL268","v":24},{"$f":"[1]ACS_16_5YR_B15002_with_ann!AM268","v":17},{"$f":"[1]ACS_16_5YR_B15002_with_ann!AN268","v":886},{"$f":"[1]ACS_16_5YR_B15002_with_ann!AO268","v":89},{"$f":"[1]ACS_16_5YR_B15002_with_ann!AP268","v":5},{"$f":"[1]ACS_16_5YR_B15002_with_ann!AQ268","v":8},{"$f":"[1]ACS_16_5YR_B15002_with_ann!AR268","v":0},{"$f":"[1]ACS_16_5YR_B15002_with_ann!AS268","v":11},{"$f":"[1]ACS_16_5YR_B15002_with_ann!AT268","v":5},{"$f":"[1]ACS_16_5YR_B15002_with_ann!AU268","v":7},{"$f":"[1]ACS_16_5YR_B15002_with_ann!AV268","v":0},{"$f":"[1]ACS_16_5YR_B15002_with_ann!AW268","v":11},{"$f":"[1]ACS_16_5YR_B15002_with_ann!AX268","v":0},{"$f":"[1]ACS_16_5YR_B15002_with_ann!AY268","v":11},{"$f":"[1]ACS_16_5YR_B15002_with_ann!AZ268","v":0},{"$f":"[1]ACS_16_5YR_B15002_with_ann!BA268","v":11},{"$f":"[1]ACS_16_5YR_B15002_with_ann!BB268","v":4},{"$f":"[1]ACS_16_5YR_B15002_with_ann!BC268","v":6},{"$f":"[1]ACS_16_5YR_B15002_with_ann!BD268","v":14},{"$f":"[1]ACS_16_5YR_B15002_with_ann!BE268","v":12},{"$f":"[1]ACS_16_5YR_B15002_with_ann!BF268","v":185},{"$f":"[1]ACS_16_5YR_B15002_with_ann!BG268","v":58},{"$f":"[1]ACS_16_5YR_B15002_with_ann!BH268","v":31},{"$f":"[1]ACS_16_5YR_B15002_with_ann!BI268","v":17},{"$f":"[1]ACS_16_5YR_B15002_with_ann!BJ268","v":62},{"$f":"[1]ACS_16_5YR_B15002_with_ann!BK268","v":26},{"$f":"[1]ACS_16_5YR_B15002_with_ann!BL268","v":112},{"$f":"[1]ACS_16_5YR_B15002_with_ann!BM268","v":57},{"$f":"[1]ACS_16_5YR_B15002_with_ann!BN268","v":235},{"$f":"[1]ACS_16_5YR_B15002_with_ann!BO268","v":58},{"$f":"[1]ACS_16_5YR_B15002_with_ann!BP268","v":185},{"$f":"[1]ACS_16_5YR_B15002_with_ann!BQ268","v":62},{"$f":"[1]ACS_16_5YR_B15002_with_ann!BR268","v":30},{"$f":"[1]ACS_16_5YR_B15002_with_ann!BS268","v":20},{"$f":"[1]ACS_16_5YR_B15002_with_ann!BT268","v":18},{"$f":"[1]ACS_16_5YR_B15002_with_ann!BU268","v":26},null,"Acworth"]
["0600000US3301972740",3301972740,"060","Springfield",{"$f":"[1]ACS_16_5YR_B14001_with_ann!D268","v":2521},{"$f":"[1]ACS_16_5YR_B14001_with_ann!E268","v":290},{"$f":"[1]ACS_16_5YR_B14001_with_ann!F268","v":746},{"$f":"[1]ACS_16_5YR_B14001_with_ann!G268","v":214},{"$f":"[1]ACS_16_5YR_B14001_with_ann!H268","v":0},{"$f":"[1]ACS_16_5YR_B14001_with_ann!I268","v":11},{"$f":"[1]ACS_16_5YR_B14001_with_ann!J268","v":18},{"$f":"[1]ACS_16_5YR_B14001_with_ann!K268","v":15},{"$f":"[1]ACS_16_5YR_B14001_with_ann!L268","v":115},{"$f":"[1]ACS_16_5YR_B14001_with_ann!M268","v":49},{"$f":"[1]ACS_16_5YR_B14001_with_ann!N268","v":144},{"$f":"[1]ACS_16_5YR_B14001_with_ann!O268","v":52},{"$f":"[1]ACS_16_5YR_B14001_with_ann!P268","v":186},{"$f":"[1]ACS_16_5YR_B14001_with_ann!Q268","v":116},{"$f":"[1]ACS_16_5YR_B14001_with_ann!R268","v":246},{"$f":"[1]ACS_16_5YR_B14001_with_ann!S268","v":63},{"$f":"[1]ACS_16_5YR_B14001_with_ann!T268","v":37},{"$f":"[1]ACS_16_5YR_B14001_with_ann!U268","v":26},{"$f":"[1]ACS_16_5YR_B14001_with_ann!V268","v":1775},{"$f":"[1]ACS_16_5YR_B14001_with_ann!W268","v":166},{"$f":"[1]ACS_16_5YR_B15002_with_ann!D268","v":1740},{"$f":"[1]ACS_16_5YR_B15002_with_ann!E268","v":152},{"$f":"[1]ACS_16_5YR_B15002_with_ann!F268","v":854},{"$f":"[1]ACS_16_5YR_B15002_with_ann!G268","v":92},{"$f":"[1]ACS_16_5YR_B15002_with_ann!H268","v":0},{"$f":"[1]ACS_16_5YR_B15002_with_ann!I268","v":11},{"$f":"[1]ACS_16_5YR_B15002_with_ann!J268","v":0},{"$f":"[1]ACS_16_5YR_B15002_with_ann!K268","v":11},{"$f":"[1]ACS_16_5YR_B15002_with_ann!L268","v":0},{"$f":"[1]ACS_16_5YR_B15002_with_ann!M268","v":11},{"$f":"[1]ACS_16_5YR_B15002_with_ann!N268","v":10},{"$f":"[1]ACS_16_5YR_B15002_with_ann!O268","v":10},{"$f":"[1]ACS_16_5YR_B15002_with_ann!P268","v":0},{"$f":"[1]ACS_16_5YR_B15002_with_ann!Q268","v":11},{"$f":"[1]ACS_16_5YR_B15002_with_ann!R268","v":0},{"$f":"[1]ACS_16_5YR_B15002_with_ann!S268","v":11},{"$f":"[1]ACS_16_5YR_B15002_with_ann!T268","v":20},{"$f":"[1]ACS_16_5YR_B15002_with_ann!U268","v":24},{"$f":"[1]ACS_16_5YR_B15002_with_ann!V268","v":5},{"$f":"[1]ACS_16_5YR_B15002_with_ann!W268","v":8},{"$f":"[1]ACS_16_5YR_B15002_with_ann!X268","v":292},{"$f":"[1]ACS_16_5YR_B15002_with_ann!Y268","v":73},{"$f":"[1]ACS_16_5YR_B15002_with_ann!Z268","v":43},{"$f":"[1]ACS_16_5YR_B15002_with_ann!AA268","v":23},{"$f":"[1]ACS_16_5YR_B15002_with_ann!AB268","v":79},{"$f":"[1]ACS_16_5YR_B15002_with_ann!AC268","v":44},{"$f":"[1]ACS_16_5YR_B15002_with_ann!AD268","v":79},{"$f":"[1]ACS_16_5YR_B15002_with_ann!AE268","v":35},{"$f":"[1]ACS_16_5YR_B15002_with_ann!AF268","v":178},{"$f":"[1]ACS_16_5YR_B15002_with_ann!AG268","v":52},{"$f":"[1]ACS_16_5YR_B15002_with_ann!AH268","v":98},{"$f":"[1]ACS_16_5YR_B15002_with_ann!AI268","v":48},{"$f":"[1]ACS_16_5YR_B15002_with_ann!AJ268","v":26},{"$f":"[1]ACS_16_5YR_B15002_with_ann!AK268","v":17},{"$f":"[1]ACS_16_5YR_B15002_with_ann!AL269","v":9},{"$f":"[1]ACS_16_5YR_B15002_with_ann!AM269","v":9},{"$f":"[1]ACS_16_5YR_B15002_with_ann!AN269","v":417},{"$f":"[1]ACS_16_5YR_B15002_with_ann!AO269","v":81},{"$f":"[1]ACS_16_5YR_B15002_with_ann!AP269","v":0},{"$f":"[1]ACS_16_5YR_B15002_with_ann!AQ269","v":11},{"$f":"[1]ACS_16_5YR_B15002_with_ann!AR269","v":0},{"$f":"[1]ACS_16_5YR_B15002_with_ann!AS269","v":11},{"$f":"[1]ACS_16_5YR_B15002_with_ann!AT269","v":0},{"$f":"[1]ACS_16_5YR_B15002_with_ann!AU269","v":11},{"$f":"[1]ACS_16_5YR_B15002_with_ann!AV269","v":0},{"$f":"[1]ACS_16_5YR_B15002_with_ann!AW269","v":11},{"$f":"[1]ACS_16_5YR_B15002_with_ann!AX269","v":0},{"$f":"[1]ACS_16_5YR_B15002_with_ann!AY269","v":11},{"$f":"[1]ACS_16_5YR_B15002_with_ann!AZ269","v":0},{"$f":"[1]ACS_16_5YR_B15002_with_ann!BA269","v":11},{"$f":"[1]ACS_16_5YR_B15002_with_ann!BB269","v":8},{"$f":"[1]ACS_16_5YR_B15002_with_ann!BC269","v":11},{"$f":"[1]ACS_16_5YR_B15002_with_ann!BD269","v":4},{"$f":"[1]ACS_16_5YR_B15002_with_ann!BE269","v":6},{"$f":"[1]ACS_16_5YR_B15002_with_ann!BF269","v":143},{"$f":"[1]ACS_16_5YR_B15002_with_ann!BG269","v":55},{"$f":"[1]ACS_16_5YR_B15002_with_ann!BH269","v":29},{"$f":"[1]ACS_16_5YR_B15002_with_ann!BI269","v":22},{"$f":"[1]ACS_16_5YR_B15002_with_ann!BJ269","v":41},{"$f":"[1]ACS_16_5YR_B15002_with_ann!BK269","v":24},{"$f":"[1]ACS_16_5YR_B15002_with_ann!BL269","v":34},{"$f":"[1]ACS_16_5YR_B15002_with_ann!BM269","v":24},{"$f":"[1]ACS_16_5YR_B15002_with_ann!BN269","v":105},{"$f":"[1]ACS_16_5YR_B15002_with_ann!BO269","v":49},{"$f":"[1]ACS_16_5YR_B15002_with_ann!BP269","v":48},{"$f":"[1]ACS_16_5YR_B15002_with_ann!BQ269","v":24},{"$f":"[1]ACS_16_5YR_B15002_with_ann!BR269","v":0},{"$f":"[1]ACS_16_5YR_B15002_with_ann!BS269","v":11},{"$f":"[1]ACS_16_5YR_B15002_with_ann!BT269","v":5},{"$f":"[1]ACS_16_5YR_B15002_with_ann!BU269","v":7},null,"Acworth"]
["0600000US3301975060",3301975060,"060","Sunapee",{"$f":"[1]ACS_16_5YR_B14001_with_ann!D269","v":1073},{"$f":"[1]ACS_16_5YR_B14001_with_ann!E269","v":193},{"$f":"[1]ACS_16_5YR_B14001_with_ann!F269","v":155},{"$f":"[1]ACS_16_5YR_B14001_with_ann!G269","v":62},{"$f":"[1]ACS_16_5YR_B14001_with_ann!H269","v":15},{"$f":"[1]ACS_16_5YR_B14001_with_ann!I269","v":19},{"$f":"[1]ACS_16_5YR_B14001_with_ann!J269","v":4},{"$f":"[1]ACS_16_5YR_B14001_with_ann!K269","v":8},{"$f":"[1]ACS_16_5YR_B14001_with_ann!L269","v":20},{"$f":"[1]ACS_16_5YR_B14001_with_ann!M269","v":20},{"$f":"[1]ACS_16_5YR_B14001_with_ann!N269","v":42},{"$f":"[1]ACS_16_5YR_B14001_with_ann!O269","v":22},{"$f":"[1]ACS_16_5YR_B14001_with_ann!P269","v":66},{"$f":"[1]ACS_16_5YR_B14001_with_ann!Q269","v":35},{"$f":"[1]ACS_16_5YR_B14001_with_ann!R269","v":8},{"$f":"[1]ACS_16_5YR_B14001_with_ann!S269","v":9},{"$f":"[1]ACS_16_5YR_B14001_with_ann!T269","v":0},{"$f":"[1]ACS_16_5YR_B14001_with_ann!U269","v":11},{"$f":"[1]ACS_16_5YR_B14001_with_ann!V269","v":918},{"$f":"[1]ACS_16_5YR_B14001_with_ann!W269","v":167},{"$f":"[1]ACS_16_5YR_B15002_with_ann!D269","v":889},{"$f":"[1]ACS_16_5YR_B15002_with_ann!E269","v":161},{"$f":"[1]ACS_16_5YR_B15002_with_ann!F269","v":472},{"$f":"[1]ACS_16_5YR_B15002_with_ann!G269","v":100},{"$f":"[1]ACS_16_5YR_B15002_with_ann!H269","v":0},{"$f":"[1]ACS_16_5YR_B15002_with_ann!I269","v":11},{"$f":"[1]ACS_16_5YR_B15002_with_ann!J269","v":0},{"$f":"[1]ACS_16_5YR_B15002_with_ann!K269","v":11},{"$f":"[1]ACS_16_5YR_B15002_with_ann!L269","v":8},{"$f":"[1]ACS_16_5YR_B15002_with_ann!M269","v":12},{"$f":"[1]ACS_16_5YR_B15002_with_ann!N269","v":9},{"$f":"[1]ACS_16_5YR_B15002_with_ann!O269","v":14},{"$f":"[1]ACS_16_5YR_B15002_with_ann!P269","v":6},{"$f":"[1]ACS_16_5YR_B15002_with_ann!Q269","v":8},{"$f":"[1]ACS_16_5YR_B15002_with_ann!R269","v":0},{"$f":"[1]ACS_16_5YR_B15002_with_ann!S269","v":11},{"$f":"[1]ACS_16_5YR_B15002_with_ann!T269","v":0},{"$f":"[1]ACS_16_5YR_B15002_with_ann!U269","v":11},{"$f":"[1]ACS_16_5YR_B15002_with_ann!V269","v":6},{"$f":"[1]ACS_16_5YR_B15002_with_ann!W269","v":9},{"$f":"[1]ACS_16_5YR_B15002_with_ann!X269","v":194},{"$f":"[1]ACS_16_5YR_B15002_with_ann!Y269","v":83},{"$f":"[1]ACS_16_5YR_B15002_with_ann!Z269","v":17},{"$f":"[1]ACS_16_5YR_B15002_with_ann!AA269","v":18},{"$f":"[1]ACS_16_5YR_B15002_with_ann!AB269","v":26},{"$f":"[1]ACS_16_5YR_B15002_with_ann!AC269","v":22},{"$f":"[1]ACS_16_5YR_B15002_with_ann!AD269","v":15},{"$f":"[1]ACS_16_5YR_B15002_with_ann!AE269","v":15},{"$f":"[1]ACS_16_5YR_B15002_with_ann!AF269","v":113},{"$f":"[1]ACS_16_5YR_B15002_with_ann!AG269","v":44},{"$f":"[1]ACS_16_5YR_B15002_with_ann!AH269","v":56},{"$f":"[1]ACS_16_5YR_B15002_with_ann!AI269","v":35},{"$f":"[1]ACS_16_5YR_B15002_with_ann!AJ269","v":13},{"$f":"[1]ACS_16_5YR_B15002_with_ann!AK269","v":15},{"$f":"[1]ACS_16_5YR_B15002_with_ann!AL270","v":9},{"$f":"[1]ACS_16_5YR_B15002_with_ann!AM270","v":16},{"$f":"[1]ACS_16_5YR_B15002_with_ann!AN270","v":1301},{"$f":"[1]ACS_16_5YR_B15002_with_ann!AO270","v":138},{"$f":"[1]ACS_16_5YR_B15002_with_ann!AP270","v":6},{"$f":"[1]ACS_16_5YR_B15002_with_ann!AQ270","v":10},{"$f":"[1]ACS_16_5YR_B15002_with_ann!AR270","v":0},{"$f":"[1]ACS_16_5YR_B15002_with_ann!AS270","v":11},{"$f":"[1]ACS_16_5YR_B15002_with_ann!AT270","v":0},{"$f":"[1]ACS_16_5YR_B15002_with_ann!AU270","v":11},{"$f":"[1]ACS_16_5YR_B15002_with_ann!AV270","v":21},{"$f":"[1]ACS_16_5YR_B15002_with_ann!AW270","v":19},{"$f":"[1]ACS_16_5YR_B15002_with_ann!AX270","v":0},{"$f":"[1]ACS_16_5YR_B15002_with_ann!AY270","v":11},{"$f":"[1]ACS_16_5YR_B15002_with_ann!AZ270","v":16},{"$f":"[1]ACS_16_5YR_B15002_with_ann!BA270","v":24},{"$f":"[1]ACS_16_5YR_B15002_with_ann!BB270","v":0},{"$f":"[1]ACS_16_5YR_B15002_with_ann!BC270","v":11},{"$f":"[1]ACS_16_5YR_B15002_with_ann!BD270","v":0},{"$f":"[1]ACS_16_5YR_B15002_with_ann!BE270","v":11},{"$f":"[1]ACS_16_5YR_B15002_with_ann!BF270","v":342},{"$f":"[1]ACS_16_5YR_B15002_with_ann!BG270","v":139},{"$f":"[1]ACS_16_5YR_B15002_with_ann!BH270","v":36},{"$f":"[1]ACS_16_5YR_B15002_with_ann!BI270","v":31},{"$f":"[1]ACS_16_5YR_B15002_with_ann!BJ270","v":158},{"$f":"[1]ACS_16_5YR_B15002_with_ann!BK270","v":76},{"$f":"[1]ACS_16_5YR_B15002_with_ann!BL270","v":105},{"$f":"[1]ACS_16_5YR_B15002_with_ann!BM270","v":62},{"$f":"[1]ACS_16_5YR_B15002_with_ann!BN270","v":356},{"$f":"[1]ACS_16_5YR_B15002_with_ann!BO270","v":108},{"$f":"[1]ACS_16_5YR_B15002_with_ann!BP270","v":194},{"$f":"[1]ACS_16_5YR_B15002_with_ann!BQ270","v":78},{"$f":"[1]ACS_16_5YR_B15002_with_ann!BR270","v":32},{"$f":"[1]ACS_16_5YR_B15002_with_ann!BS270","v":24},{"$f":"[1]ACS_16_5YR_B15002_with_ann!BT270","v":35},{"$f":"[1]ACS_16_5YR_B15002_with_ann!BU270","v":31},null,"Acworth"]
["0600000US3301977940",3301977940,"060","Unity",{"$f":"[1]ACS_16_5YR_B14001_with_ann!D270","v":3342},{"$f":"[1]ACS_16_5YR_B14001_with_ann!E270","v":66},{"$f":"[1]ACS_16_5YR_B14001_with_ann!F270","v":724},{"$f":"[1]ACS_16_5YR_B14001_with_ann!G270","v":122},{"$f":"[1]ACS_16_5YR_B14001_with_ann!H270","v":39},{"$f":"[1]ACS_16_5YR_B14001_with_ann!I270","v":36},{"$f":"[1]ACS_16_5YR_B14001_with_ann!J270","v":71},{"$f":"[1]ACS_16_5YR_B14001_with_ann!K270","v":58},{"$f":"[1]ACS_16_5YR_B14001_with_ann!L270","v":128},{"$f":"[1]ACS_16_5YR_B14001_with_ann!M270","v":67},{"$f":"[1]ACS_16_5YR_B14001_with_ann!N270","v":165},{"$f":"[1]ACS_16_5YR_B14001_with_ann!O270","v":83},{"$f":"[1]ACS_16_5YR_B14001_with_ann!P270","v":185},{"$f":"[1]ACS_16_5YR_B14001_with_ann!Q270","v":73},{"$f":"[1]ACS_16_5YR_B14001_with_ann!R270","v":100},{"$f":"[1]ACS_16_5YR_B14001_with_ann!S270","v":48},{"$f":"[1]ACS_16_5YR_B14001_with_ann!T270","v":36},{"$f":"[1]ACS_16_5YR_B14001_with_ann!U270","v":30},{"$f":"[1]ACS_16_5YR_B14001_with_ann!V270","v":2618},{"$f":"[1]ACS_16_5YR_B14001_with_ann!W270","v":129},{"$f":"[1]ACS_16_5YR_B15002_with_ann!D270","v":2517},{"$f":"[1]ACS_16_5YR_B15002_with_ann!E270","v":142},{"$f":"[1]ACS_16_5YR_B15002_with_ann!F270","v":1216},{"$f":"[1]ACS_16_5YR_B15002_with_ann!G270","v":123},{"$f":"[1]ACS_16_5YR_B15002_with_ann!H270","v":17},{"$f":"[1]ACS_16_5YR_B15002_with_ann!I270","v":28},{"$f":"[1]ACS_16_5YR_B15002_with_ann!J270","v":0},{"$f":"[1]ACS_16_5YR_B15002_with_ann!K270","v":11},{"$f":"[1]ACS_16_5YR_B15002_with_ann!L270","v":0},{"$f":"[1]ACS_16_5YR_B15002_with_ann!M270","v":11},{"$f":"[1]ACS_16_5YR_B15002_with_ann!N270","v":0},{"$f":"[1]ACS_16_5YR_B15002_with_ann!O270","v":11},{"$f":"[1]ACS_16_5YR_B15002_with_ann!P270","v":0},{"$f":"[1]ACS_16_5YR_B15002_with_ann!Q270","v":11},{"$f":"[1]ACS_16_5YR_B15002_with_ann!R270","v":0},{"$f":"[1]ACS_16_5YR_B15002_with_ann!S270","v":11},{"$f":"[1]ACS_16_5YR_B15002_with_ann!T270","v":0},{"$f":"[1]ACS_16_5YR_B15002_with_ann!U270","v":11},{"$f":"[1]ACS_16_5YR_B15002_with_ann!V270","v":0},{"$f":"[1]ACS_16_5YR_B15002_with_ann!W270","v":11},{"$f":"[1]ACS_16_5YR_B15002_with_ann!X270","v":411},{"$f":"[1]ACS_16_5YR_B15002_with_ann!Y270","v":121},{"$f":"[1]ACS_16_5YR_B15002_with_ann!Z270","v":44},{"$f":"[1]ACS_16_5YR_B15002_with_ann!AA270","v":33},{"$f":"[1]ACS_16_5YR_B15002_with_ann!AB270","v":176},{"$f":"[1]ACS_16_5YR_B15002_with_ann!AC270","v":90},{"$f":"[1]ACS_16_5YR_B15002_with_ann!AD270","v":133},{"$f":"[1]ACS_16_5YR_B15002_with_ann!AE270","v":65},{"$f":"[1]ACS_16_5YR_B15002_with_ann!AF270","v":216},{"$f":"[1]ACS_16_5YR_B15002_with_ann!AG270","v":95},{"$f":"[1]ACS_16_5YR_B15002_with_ann!AH270","v":205},{"$f":"[1]ACS_16_5YR_B15002_with_ann!AI270","v":80},{"$f":"[1]ACS_16_5YR_B15002_with_ann!AJ270","v":5},{"$f":"[1]ACS_16_5YR_B15002_with_ann!AK270","v":8},{"$f":"[1]ACS_16_5YR_B15002_with_ann!AL271","v":0},{"$f":"[1]ACS_16_5YR_B15002_with_ann!AM271","v":11},{"$f":"[1]ACS_16_5YR_B15002_with_ann!AN271","v":702},{"$f":"[1]ACS_16_5YR_B15002_with_ann!AO271","v":116},{"$f":"[1]ACS_16_5YR_B15002_with_ann!AP271","v":9},{"$f":"[1]ACS_16_5YR_B15002_with_ann!AQ271","v":12},{"$f":"[1]ACS_16_5YR_B15002_with_ann!AR271","v":0},{"$f":"[1]ACS_16_5YR_B15002_with_ann!AS271","v":11},{"$f":"[1]ACS_16_5YR_B15002_with_ann!AT271","v":5},{"$f":"[1]ACS_16_5YR_B15002_with_ann!AU271","v":10},{"$f":"[1]ACS_16_5YR_B15002_with_ann!AV271","v":64},{"$f":"[1]ACS_16_5YR_B15002_with_ann!AW271","v":49},{"$f":"[1]ACS_16_5YR_B15002_with_ann!AX271","v":31},{"$f":"[1]ACS_16_5YR_B15002_with_ann!AY271","v":21},{"$f":"[1]ACS_16_5YR_B15002_with_ann!AZ271","v":3},{"$f":"[1]ACS_16_5YR_B15002_with_ann!BA271","v":7},{"$f":"[1]ACS_16_5YR_B15002_with_ann!BB271","v":26},{"$f":"[1]ACS_16_5YR_B15002_with_ann!BC271","v":22},{"$f":"[1]ACS_16_5YR_B15002_with_ann!BD271","v":5},{"$f":"[1]ACS_16_5YR_B15002_with_ann!BE271","v":6},{"$f":"[1]ACS_16_5YR_B15002_with_ann!BF271","v":199},{"$f":"[1]ACS_16_5YR_B15002_with_ann!BG271","v":67},{"$f":"[1]ACS_16_5YR_B15002_with_ann!BH271","v":82},{"$f":"[1]ACS_16_5YR_B15002_with_ann!BI271","v":35},{"$f":"[1]ACS_16_5YR_B15002_with_ann!BJ271","v":77},{"$f":"[1]ACS_16_5YR_B15002_with_ann!BK271","v":38},{"$f":"[1]ACS_16_5YR_B15002_with_ann!BL271","v":70},{"$f":"[1]ACS_16_5YR_B15002_with_ann!BM271","v":30},{"$f":"[1]ACS_16_5YR_B15002_with_ann!BN271","v":101},{"$f":"[1]ACS_16_5YR_B15002_with_ann!BO271","v":37},{"$f":"[1]ACS_16_5YR_B15002_with_ann!BP271","v":20},{"$f":"[1]ACS_16_5YR_B15002_with_ann!BQ271","v":11},{"$f":"[1]ACS_16_5YR_B15002_with_ann!BR271","v":10},{"$f":"[1]ACS_16_5YR_B15002_with_ann!BS271","v":10},{"$f":"[1]ACS_16_5YR_B15002_with_ann!BT271","v":0},{"$f":"[1]ACS_16_5YR_B15002_with_ann!BU271","v":11},null,"Acworth"]
["0600000US3301978980",3301978980,"060","Washington",{"$f":"[1]ACS_16_5YR_B14001_with_ann!D271","v":1599},{"$f":"[1]ACS_16_5YR_B14001_with_ann!E271","v":154},{"$f":"[1]ACS_16_5YR_B14001_with_ann!F271","v":195},{"$f":"[1]ACS_16_5YR_B14001_with_ann!G271","v":55},{"$f":"[1]ACS_16_5YR_B14001_with_ann!H271","v":3},{"$f":"[1]ACS_16_5YR_B14001_with_ann!I271","v":4},{"$f":"[1]ACS_16_5YR_B14001_with_ann!J271","v":0},{"$f":"[1]ACS_16_5YR_B14001_with_ann!K271","v":11},{"$f":"[1]ACS_16_5YR_B14001_with_ann!L271","v":37},{"$f":"[1]ACS_16_5YR_B14001_with_ann!M271","v":17},{"$f":"[1]ACS_16_5YR_B14001_with_ann!N271","v":54},{"$f":"[1]ACS_16_5YR_B14001_with_ann!O271","v":24},{"$f":"[1]ACS_16_5YR_B14001_with_ann!P271","v":35},{"$f":"[1]ACS_16_5YR_B14001_with_ann!Q271","v":18},{"$f":"[1]ACS_16_5YR_B14001_with_ann!R271","v":59},{"$f":"[1]ACS_16_5YR_B14001_with_ann!S271","v":35},{"$f":"[1]ACS_16_5YR_B14001_with_ann!T271","v":7},{"$f":"[1]ACS_16_5YR_B14001_with_ann!U271","v":6},{"$f":"[1]ACS_16_5YR_B14001_with_ann!V271","v":1404},{"$f":"[1]ACS_16_5YR_B14001_with_ann!W271","v":158},{"$f":"[1]ACS_16_5YR_B15002_with_ann!D271","v":1324},{"$f":"[1]ACS_16_5YR_B15002_with_ann!E271","v":141},{"$f":"[1]ACS_16_5YR_B15002_with_ann!F271","v":622},{"$f":"[1]ACS_16_5YR_B15002_with_ann!G271","v":62},{"$f":"[1]ACS_16_5YR_B15002_with_ann!H271","v":10},{"$f":"[1]ACS_16_5YR_B15002_with_ann!I271","v":10},{"$f":"[1]ACS_16_5YR_B15002_with_ann!J271","v":4},{"$f":"[1]ACS_16_5YR_B15002_with_ann!K271","v":10},{"$f":"[1]ACS_16_5YR_B15002_with_ann!L271","v":3},{"$f":"[1]ACS_16_5YR_B15002_with_ann!M271","v":4},{"$f":"[1]ACS_16_5YR_B15002_with_ann!N271","v":18},{"$f":"[1]ACS_16_5YR_B15002_with_ann!O271","v":16},{"$f":"[1]ACS_16_5YR_B15002_with_ann!P271","v":19},{"$f":"[1]ACS_16_5YR_B15002_with_ann!Q271","v":21},{"$f":"[1]ACS_16_5YR_B15002_with_ann!R271","v":20},{"$f":"[1]ACS_16_5YR_B15002_with_ann!S271","v":19},{"$f":"[1]ACS_16_5YR_B15002_with_ann!T271","v":27},{"$f":"[1]ACS_16_5YR_B15002_with_ann!U271","v":20},{"$f":"[1]ACS_16_5YR_B15002_with_ann!V271","v":17},{"$f":"[1]ACS_16_5YR_B15002_with_ann!W271","v":11},{"$f":"[1]ACS_16_5YR_B15002_with_ann!X271","v":266},{"$f":"[1]ACS_16_5YR_B15002_with_ann!Y271","v":50},{"$f":"[1]ACS_16_5YR_B15002_with_ann!Z271","v":19},{"$f":"[1]ACS_16_5YR_B15002_with_ann!AA271","v":11},{"$f":"[1]ACS_16_5YR_B15002_with_ann!AB271","v":97},{"$f":"[1]ACS_16_5YR_B15002_with_ann!AC271","v":35},{"$f":"[1]ACS_16_5YR_B15002_with_ann!AD271","v":41},{"$f":"[1]ACS_16_5YR_B15002_with_ann!AE271","v":24},{"$f":"[1]ACS_16_5YR_B15002_with_ann!AF271","v":33},{"$f":"[1]ACS_16_5YR_B15002_with_ann!AG271","v":14},{"$f":"[1]ACS_16_5YR_B15002_with_ann!AH271","v":31},{"$f":"[1]ACS_16_5YR_B15002_with_ann!AI271","v":20},{"$f":"[1]ACS_16_5YR_B15002_with_ann!AJ271","v":17},{"$f":"[1]ACS_16_5YR_B15002_with_ann!AK271","v":13},{"$f":"[1]ACS_16_5YR_B15002_with_ann!AL272","v":5},{"$f":"[1]ACS_16_5YR_B15002_with_ann!AM272","v":6},{"$f":"[1]ACS_16_5YR_B15002_with_ann!AN272","v":485},{"$f":"[1]ACS_16_5YR_B15002_with_ann!AO272","v":88},{"$f":"[1]ACS_16_5YR_B15002_with_ann!AP272","v":4},{"$f":"[1]ACS_16_5YR_B15002_with_ann!AQ272","v":6},{"$f":"[1]ACS_16_5YR_B15002_with_ann!AR272","v":0},{"$f":"[1]ACS_16_5YR_B15002_with_ann!AS272","v":11},{"$f":"[1]ACS_16_5YR_B15002_with_ann!AT272","v":0},{"$f":"[1]ACS_16_5YR_B15002_with_ann!AU272","v":11},{"$f":"[1]ACS_16_5YR_B15002_with_ann!AV272","v":0},{"$f":"[1]ACS_16_5YR_B15002_with_ann!AW272","v":11},{"$f":"[1]ACS_16_5YR_B15002_with_ann!AX272","v":3},{"$f":"[1]ACS_16_5YR_B15002_with_ann!AY272","v":6},{"$f":"[1]ACS_16_5YR_B15002_with_ann!AZ272","v":0},{"$f":"[1]ACS_16_5YR_B15002_with_ann!BA272","v":11},{"$f":"[1]ACS_16_5YR_B15002_with_ann!BB272","v":4},{"$f":"[1]ACS_16_5YR_B15002_with_ann!BC272","v":5},{"$f":"[1]ACS_16_5YR_B15002_with_ann!BD272","v":0},{"$f":"[1]ACS_16_5YR_B15002_with_ann!BE272","v":11},{"$f":"[1]ACS_16_5YR_B15002_with_ann!BF272","v":162},{"$f":"[1]ACS_16_5YR_B15002_with_ann!BG272","v":40},{"$f":"[1]ACS_16_5YR_B15002_with_ann!BH272","v":41},{"$f":"[1]ACS_16_5YR_B15002_with_ann!BI272","v":18},{"$f":"[1]ACS_16_5YR_B15002_with_ann!BJ272","v":80},{"$f":"[1]ACS_16_5YR_B15002_with_ann!BK272","v":65},{"$f":"[1]ACS_16_5YR_B15002_with_ann!BL272","v":67},{"$f":"[1]ACS_16_5YR_B15002_with_ann!BM272","v":29},{"$f":"[1]ACS_16_5YR_B15002_with_ann!BN272","v":85},{"$f":"[1]ACS_16_5YR_B15002_with_ann!BO272","v":38},{"$f":"[1]ACS_16_5YR_B15002_with_ann!BP272","v":22},{"$f":"[1]ACS_16_5YR_B15002_with_ann!BQ272","v":11},{"$f":"[1]ACS_16_5YR_B15002_with_ann!BR272","v":11},{"$f":"[1]ACS_16_5YR_B15002_with_ann!BS272","v":11},{"$f":"[1]ACS_16_5YR_B15002_with_ann!BT272","v":6},{"$f":"[1]ACS_16_5YR_B15002_with_ann!BU272","v":6},null,"Acworth"]
[]
[null,null,null,null,{"$f":"$D$3","v":"Acworth"},null,{"$f":"$D$4","v":"Charlestown"},null,{"$f":"$D$5","v":"Claremont"},null,{"$f":"$D$6","v":"Cornish"},null,{"$f":"$D$7","v":"Croydon"},null,{"$f":"$D$8","v":"Goshen"},null,{"$f":"$D$9","v":"Grantham"},null,{"$f":"$D$10","v":"Langdon"},null,{"$f":"$D$11","v":"Lempster"},null,{"$f":"$D$12","v":"Newport"},null,{"$f":"$D$13","v":"Plainfield"},null,{"$f":"$D$14","v":"Springfield"},null,{"$f":"$D$15","v":"Sunapee"},null,{"$f":"$D$16","v":"Unity"},null,{"$f":"$D$17","v":"Washington"}]
[null,null,null,null,"Estimate","Margin Of Error","Estimate","Margin Of Error","Estimate","Margin Of Error","Estimate","Margin Of Error","Estimate","Margin Of Error","Estimate","Margin Of Error","Estimate","Margin Of Error","Estimate","Margin Of Error","Estimate","Margin Of Error","Estimate","Margin Of Error","Estimate","Margin Of Error","Estimate","Margin Of Error","Estimate","Margin Of Error",null,"Estimate","Margin Of Error"]
[null,null,null,"Estimate Total:",3947,84,881,134,4916,91,12505,125,1757,213,848,241,691,105,2945,14,704,146,894,163,6306,55,2521,290,1073,193,3342,66,1599,154]
[null,null,null,"Estimate Total: Enrolled in school:",825,167,84,33,742,212,2354,253,342,131,189,102,151,57,647,109,185,87,203,104,1213,290,746,214,155,62,724,122,195,55]
[null,null,null,"Estimate Total: Enrolled in school: Enrolled in nursery school",39,35,5,5,33,51,212,118,23,15,4,6,21,14,24,35,32,20,27,20,88,62,0,11,15,19,39,36,3,4]
[null,null,null,"Estimate Total: Enrolled in school: Enrolled in kindergarten",36,32,0,11,80,85,113,73,20,13,6,7,14,16,63,69,6,9,15,15,67,46,18,15,4,8,71,58,0,11]
[null,null,null,"Estimate Total: Enrolled in school: Enrolled in grade 1 to grade 4",164,75,22,14,178,94,585,164,57,29,37,22,38,20,78,41,49,33,29,22,253,133,115,49,20,20,128,67,37,17]
[null,null,null,"Estimate Total: Enrolled in school: Enrolled in grade 5 to grade 8",233,112,22,15,265,108,548,159,145,78,69,47,21,16,162,66,44,39,31,35,319,169,144,52,42,22,165,83,54,24]
[null,null,null,"Estimate Total: Enrolled in school: Enrolled in grade 9 to grade 12",198,86,19,16,161,103,572,142,69,40,18,18,41,34,203,97,33,21,72,58,345,172,186,116,66,35,185,73,35,18]
[null,null,null,"Estimate Total: Enrolled in school: Enrolled in college",138,66,16,11,25,24,236,140,25,17,49,54,12,10,71,58,13,13,13,11,82,63,246,63,8,9,100,48,59,35]
[null,null,null,"Estimate Total: Enrolled in school: Graduate or professional school",17,19,0,11,0,16,88,87,3,4,6,10,4,8,46,62,8,10,16,15,59,63,37,26,0,11,36,30,7,6]
[null,null,null,"Estimate Total: Not enrolled in school",3122,165,797,121,4174,221,10151,265,1415,133,659,166,540,77,2298,109,519,93,691,109,5093,294,1775,166,918,167,2618,129,1404,158]
[]
["Table  B15002"]
[null,null,null,"Estimate Total:",2924,148,780,117,3856,202,9375,298,1365,127,603,139,531,77,2274,126,510,89,681,108,4549,302,1740,152,889,161,2517,142,1324,141]
[null,null,null,"Estimate Total: Male:",1444,91,414,69,1921,165,4561,216,671,66,317,77,267,55,1051,100,242,53,353,62,2191,248,854,92,472,100,1216,123,622,62]
[null,null,null,"Estimate Total: Male: No schooling completed",8,12,0,11,0,16,25,24,0,11,0,11,0,11,0,11,2,4,6,4,37,52,0,11,0,11,17,28,10,10]
[null,null,null,"Estimate Total: Male: Nursery to 4th grade",0,11,2,3,0,16,0,18,0,11,1,3,0,11,0,11,3,4,0,11,13,28,0,11,0,11,0,11,4,10]
[null,null,null,"Estimate Total: Male: 5th and 6th grade",0,11,0,11,0,16,19,28,0,11,6,9,0,11,0,11,0,11,4,5,11,18,0,11,8,12,0,11,3,4]
[null,null,null,"Estimate Total: Male: 7th and 8th grade",17,18,7,9,0,16,48,39,0,11,4,5,1,3,0,11,3,4,0,11,40,41,10,10,9,14,0,11,18,16]
[null,null,null,"Estimate Total: Male: 9th grade",0,11,3,5,134,122,43,38,0,11,1,3,0,11,0,11,0,11,27,21,132,184,0,11,6,8,0,11,19,21]
[null,null,null,"Estimate Total: Male: 10th grade",8,12,16,17,15,24,227,154,4,6,7,10,6,5,0,11,10,11,9,13,11,18,0,11,0,11,0,11,20,19]
[null,null,null,"Estimate Total: Male: 11th grade",6,10,0,11,53,58,82,46,11,11,5,8,4,4,0,11,0,11,4,5,93,94,20,24,0,11,0,11,27,20]
[null,null,null,"Estimate Total: Male: 12th grade",0,11,2,4,17,27,86,53,24,20,11,10,2,3,0,11,2,3,11,9,11,18,5,8,6,9,0,11,17,11]
[null,null,null,"Estimate Total: Male: High school graduate (includes equivalency)",384,91,172,45,1038,198,1908,260,221,47,138,52,133,37,168,82,87,27,121,35,781,197,292,73,194,83,411,121,266,50]
[null,null,null,"Estimate Total: Male: Some college",122,69,21,14,119,79,289,128,32,20,18,15,21,20,44,43,15,17,24,14,119,72,43,23,17,18,44,33,19,11]
[null,null,null,"Estimate Total: Male: Some college",139,64,44,26,166,88,517,164,74,33,27,14,35,24,80,74,33,21,36,21,401,182,79,44,26,22,176,90,97,35]
[null,null,null,"Estimate Total: Male: Associate's degree",146,64,32,20,155,84,342,122,64,24,37,34,15,13,35,44,27,18,42,31,178,99,79,35,15,15,133,65,41,24]
[null,null,null,"Estimate Total: Male: Bachelor's degree",431,101,91,27,140,78,812,221,128,39,49,22,27,17,442,165,42,19,53,32,307,130,178,52,113,44,216,95,33,14]
[null,null,null,"Estimate Total: Male: Master's degree",140,73,13,11,83,83,123,76,75,28,9,7,19,16,220,105,11,7,16,12,41,51,98,48,56,35,205,80,31,20]
[null,null,null,"Estimate Total: Male: Professional school degree",21,23,6,5,1,2,2,5,23,14,4,5,4,5,0,11,7,6,0,11,0,16,26,17,13,15,5,8,17,13]
[null,null,null,"Estimate Total: Male: Doctorate degree",22,25,5,5,0,16,15,12,0,11,0,11,62,50,0,11,0,11,16,26,24,17,9,9,9,16,0,11,5,6]
[null,null,null,"Estimate Total: Female:",1480,108,366,63,1935,206,694,80,286,71,264,39,1223,138,268,46,328,65,2358,202,886,89,417,81,1301,138,702,116,485,88]
[null,null,null,"Estimate Total: Female: No schooling completed",9,14,0,11,0,16,0,11,0,11,0,11,0,11,0,11,0,11,40,39,5,8,0,11,6,10,9,12,4,6]
[null,null,null,"Estimate Total: Female: Nursery to 4th grade",0,11,0,11,0,16,0,11,0,11,0,11,0,11,0,11,4,6,19,31,0,11,0,11,0,11,0,11,0,11]
[null,null,null,"Estimate Total: Female: 5th and 6th grade",0,11,0,11,0,16,0,11,0,11,2,3,0,11,0,11,0,11,0,16,5,7,0,11,0,11,5,10,0,11]
[null,null,null,"Estimate Total: Female: 7th and 8th grade",0,11,2,3,0,16,0,11,0,11,6,13,0,11,2,3,3,4,8,11,0,11,0,11,21,19,64,49,0,11]
[null,null,null,"Estimate Total: Female: 9th grade",0,11,5,9,0,16,0,11,0,11,10,10,14,21,7,11,2,3,53,41,0,11,0,11,0,11,31,21,3,6]
[null,null,null,"Estimate Total: Female: 10th grade",33,29,6,9,59,71,2,4,10,10,11,9,0,11,7,11,3,5,24,28,0,11,0,11,16,24,3,7,0,11]
[null,null,null,"Estimate Total: Female: 11th grade",15,18,8,9,54,57,4,6,5,5,0,11,0,11,6,5,0,11,33,52,4,6,8,11,0,11,26,22,4,5]
[null,null,null,"Estimate Total: Female: 12th grade",23,26,0,11,0,16,4,8,3,5,4,4,0,11,6,6,6,6,39,59,14,12,4,6,0,11,5,6,0,11]
[null,null,null,"Estimate Total: Female: High school graduate (includes equivalency)",247,88,102,35,847,236,195,49,120,47,115,34,132,69,54,26,143,61,909,195,185,58,143,55,342,139,199,67,162,40]
[null,null,null,"Estimate Total: Female: Some college",87,47,7,5,101,70,26,13,23,17,24,18,13,18,13,11,15,9,110,65,31,17,29,22,36,31,82,35,41,18]
[null,null,null,"Estimate Total: Female: Some college",212,80,71,30,224,122,80,35,29,18,36,17,132,109,15,8,62,33,258,138,62,26,41,24,158,76,77,38,80,65]
[null,null,null,"Estimate Total: Female: Associate's degree",225,80,27,16,237,102,52,30,38,22,10,7,153,78,62,28,8,7,265,124,112,57,34,24,105,62,70,30,67,29]
[null,null,null,"Estimate Total: Female: Bachelor's degree",320,84,78,34,307,120,160,40,45,28,28,14,475,154,71,28,52,21,370,146,235,58,105,49,356,108,101,37,85,38]
[null,null,null,"Estimate Total: Female: Master's degree",246,78,40,19,61,61,139,41,9,8,14,12,232,119,17,8,21,13,150,81,185,62,48,24,194,78,20,11,22,11]
[null,null,null,"Estimate Total: Female: Professional school degree",9,14,17,12,45,53,27,20,2,3,4,4,55,65,5,8,6,9,55,66,30,20,0,11,32,24,10,10,11,11]
[null,null,null,"Estimate Total: Female: Doctorate degree",54,68,3,4,0,16,5,7,2,4,0,11,17,26,3,5,3,4,25,29,18,26,5,7,35,31,0,11,6,6]

{"sheet":"SData_B17001PopPovtyStat","index":30,"n_rows":112,"n_cols":122,"rows_kept":112,"cut":false,"hidden":true,"merged":[]}
["GEO_ID","GEO_ID2","SUMLEVEL","GEO_NAME","B17001_1_EST","B17001_1_MOE","B17001_2_EST","B17001_2_MOE","B17001_3_EST","B17001_3_MOE","B17001_4_EST","B17001_4_MOE","B17001_5_EST","B17001_5_MOE","B17001_6_EST","B17001_6_MOE","B17001_7_EST","B17001_7_MOE","B17001_8_EST","B17001_8_MOE","B17001_9_EST","B17001_9_MOE","B17001_10_EST","B17001_10_MOE","B17001_11_EST","B17001_11_MOE","B17001_12_EST","B17001_12_MOE","B17001_13_EST","B17001_13_MOE","B17001_14_EST","B17001_14_MOE","B17001_15_EST","B17001_15_MOE","B17001_16_EST","B17001_16_MOE","B17001_17_EST","B17001_17_MOE","B17001_18_EST","B17001_18_MOE","B17001_19_EST","B17001_19_MOE","B17001_20_EST","B17001_20_MOE","B17001_21_EST","B17001_21_MOE","B17001_22_EST","B17001_22_MOE","B17001_23_EST","B17001_23_MOE","B17001_24_EST","B17001_24_MOE","B17001_25_EST","B17001_25_MOE","B17001_26_EST","B17001_26_MOE","B17001_27_EST","B17001_27_MOE","B17001_28_EST","B17001_28_MOE","B17001_29_EST","B17001_29_MOE","B17001_30_EST","B17001_30_MOE","B17001_31_EST","B17001_31_MOE","B17001_32_EST","B17001_32_MOE","B17001_33_EST","B17001_33_MOE","B17001_34_EST","B17001_34_MOE","B17001_35_EST","B17001_35_MOE","B17001_36_EST","B17001_36_MOE","B17001_37_EST","B17001_37_MOE","B17001_38_EST","B17001_38_MOE","B17001_39_EST","B17001_39_MOE","B17001_40_EST","B17001_40_MOE","B17001_41_EST","B17001_41_MOE","B17001_42_EST","B17001_42_MOE","B17001_43_EST","B17001_43_MOE","B17001_44_EST","B17001_44_MOE","B17001_45_EST","B17001_45_MOE","B17001_46_EST","B17001_46_MOE","B17001_47_EST","B17001_47_MOE","B17001_48_EST","B17001_48_MOE","B17001_49_EST","B17001_49_MOE","B17001_50_EST","B17001_50_MOE","B17001_51_EST","B17001_51_MOE","B17001_52_EST","B17001_52_MOE","B17001_53_EST","B17001_53_MOE","B17001_54_EST","B17001_54_MOE","B17001_55_EST","B17001_55_MOE","B17001_56_EST","B17001_56_MOE","B17001_57_EST","B17001_57_MOE","B17001_58_EST","B17001_58_MOE","B17001_59_EST","B17001_59_MOE"]
["Geography Identifier","Geography Identifier","Geographic Summary Level","Geography",{"$f":"[1]ACS_16_5YR_B17001_with_ann!D$2","v":"Estimate Total:"},{"$f":"[1]ACS_16_5YR_B17001_with_ann!E$2","v":"Margin of Error Total:"},{"$f":"[1]ACS_16_5YR_B17001_with_ann!F$2","v":"Estimate Total: Income in the past 12 months below poverty level:"},{"$f":"[1]ACS_16_5YR_B17001_with_ann!G$2","v":"Margin of Error Total: Income in the past 12 months below poverty level:"},{"$f":"[1]ACS_16_5YR_B17001_with_ann!H$2","v":"Estimate Total: Income in the past 12 months below poverty level: Male:"},{"$f":"[1]ACS_16_5YR_B17001_with_ann!I$2","v":"Margin of Error Total: Income in the past 12 months below poverty level: Male:"},{"$f":"[1]ACS_16_5YR_B17001_with_ann!J$2","v":"Estimate Total: Income in the past 12 months below poverty level: Male: Under 5 years"},{"$f":"[1]ACS_16_5YR_B17001_with_ann!K$2","v":"Margin of Error Total: Income in the past 12 months below poverty level: Male: Under 5 years"},{"$f":"[1]ACS_16_5YR_B17001_with_ann!L$2","v":"Estimate Total: Income in the past 12 months below poverty level: Male: 5 years"},{"$f":"[1]ACS_16_5YR_B17001_with_ann!M$2","v":"Margin of Error Total: Income in the past 12 months below poverty level: Male: 5 years"},{"$f":"[1]ACS_16_5YR_B17001_with_ann!N$2","v":"Estimate Total: Income in the past 12 months below poverty level: Male: 6 to 11 years"},{"$f":"[1]ACS_16_5YR_B17001_with_ann!O$2","v":"Margin of Error Total: Income in the past 12 months below poverty level: Male: 6 to 11 years"},{"$f":"[1]ACS_16_5YR_B17001_with_ann!P$2","v":"Estimate Total: Income in the past 12 months below poverty level: Male: 12 to 14 years"},{"$f":"[1]ACS_16_5YR_B17001_with_ann!Q$2","v":"Margin of Error Total: Income in the past 12 months below poverty level: Male: 12 to 14 years"},{"$f":"[1]ACS_16_5YR_B17001_with_ann!R$2","v":"Estimate Total: Income in the past 12 months below poverty level: Male: 15 years"},{"$f":"[1]ACS_16_5YR_B17001_with_ann!S$2","v":"Margin of Error Total: Income in the past 12 months below poverty level: Male: 15 years"},{"$f":"[1]ACS_16_5YR_B17001_with_ann!T$2","v":"Estimate Total: Income in the past 12 months below poverty level: Male: 16 and 17 years"},{"$f":"[1]ACS_16_5YR_B17001_with_ann!U$2","v":"Margin of Error Total: Income in the past 12 months below poverty level: Male: 16 and 17 years"},{"$f":"[1]ACS_16_5YR_B17001_with_ann!V$2","v":"Estimate Total: Income in the past 12 months below poverty level: Male: 18 to 24 years"},{"$f":"[1]ACS_16_5YR_B17001_with_ann!W$2","v":"Margin of Error Total: Income in the past 12 months below poverty level: Male: 18 to 24 years"},{"$f":"[1]ACS_16_5YR_B17001_with_ann!X$2","v":"Estimate Total: Income in the past 12 months below poverty level: Male: 25 to 34 years"},{"$f":"[1]ACS_16_5YR_B17001_with_ann!Y$2","v":"Margin of Error Total: Income in the past 12 months below poverty level: Male: 25 to 34 years"},{"$f":"[1]ACS_16_5YR_B17001_with_ann!Z$2","v":"Estimate Total: Income in the past 12 months below poverty level: Male: 35 to 44 years"},{"$f":"[1]ACS_16_5YR_B17001_with_ann!AA$2","v":"Margin of Error Total: Income in the past 12 months below poverty level: Male: 35 to 44 years"},{"$f":"[1]ACS_16_5YR_B17001_with_ann!AB$2","v":"Estimate Total: Income in the past 12 months below poverty level: Male: 45 to 54 years"},{"$f":"[1]ACS_16_5YR_B17001_with_ann!AC$2","v":"Margin of Error Total: Income in the past 12 months below poverty level: Male: 45 to 54 years"},{"$f":"[1]ACS_16_5YR_B17001_with_ann!AD$2","v":"Estimate Total: Income in the past 12 months below poverty level: Male: 55 to 64 years"},{"$f":"[1]ACS_16_5YR_B17001_with_ann!AE$2","v":"Margin of Error Total: Income in the past 12 months below poverty level: Male: 55 to 64 years"},{"$f":"[1]ACS_16_5YR_B17001_with_ann!AF$2","v":"Estimate Total: Income in the past 12 months below poverty level: Male: 65 to 74 years"},{"$f":"[1]ACS_16_5YR_B17001_with_ann!AG$2","v":"Margin of Error Total: Income in the past 12 months below poverty level: Male: 65 to 74 years"},{"$f":"[1]ACS_16_5YR_B17001_with_ann!AH$2","v":"Estimate Total: Income in the past 12 months below poverty level: Male: 75 years and over"},{"$f":"[1]ACS_16_5YR_B17001_with_ann!AI$2","v":"Margin of Error Total: Income in the past 12 months below poverty level: Male: 75 years and over"},{"$f":"[1]ACS_16_5YR_B17001_with_ann!AJ$2","v":"Estimate Total: Income in the past 12 months below poverty level: Female:"},{"$f":"[1]ACS_16_5YR_B17001_with_ann!AK$2","v":"Margin of Error Total: Income in the past 12 months below poverty level: Female:"},{"$f":"[1]ACS_16_5YR_B17001_with_ann!AL$2","v":"Estimate Total: Income in the past 12 months below poverty level: Female: Under 5 years"},{"$f":"[1]ACS_16_5YR_B17001_with_ann!AM$2","v":"Margin of Error Total: Income in the past 12 months below poverty level: Female: Under 5 years"},{"$f":"[1]ACS_16_5YR_B17001_with_ann!AN$2","v":"Estimate Total: Income in the past 12 months below poverty level: Female: 5 years"},{"$f":"[1]ACS_16_5YR_B17001_with_ann!AO$2","v":"Margin of Error Total: Income in the past 12 months below poverty level: Female: 5 years"},{"$f":"[1]ACS_16_5YR_B17001_with_ann!AP$2","v":"Estimate Total: Income in the past 12 months below poverty level: Female: 6 to 11 years"},{"$f":"[1]ACS_16_5YR_B17001_with_ann!AQ$2","v":"Margin of Error Total: Income in the past 12 months below poverty level: Female: 6 to 11 years"},{"$f":"[1]ACS_16_5YR_B17001_with_ann!AR$2","v":"Estimate Total: Income in the past 12 months below poverty level: Female: 12 to 14 years"},{"$f":"[1]ACS_16_5YR_B17001_with_ann!AS$2","v":"Margin of Error Total: Income in the past 12 months below poverty level: Female: 12 to 14 years"},{"$f":"[1]ACS_16_5YR_B17001_with_ann!AT$2","v":"Estimate Total: Income in the past 12 months below poverty level: Female: 15 years"},{"$f":"[1]ACS_16_5YR_B17001_with_ann!AU$2","v":"Margin of Error Total: Income in the past 12 months below poverty level: Female: 15 years"},{"$f":"[1]ACS_16_5YR_B17001_with_ann!AV$2","v":"Estimate Total: Income in the past 12 months below poverty level: Female: 16 and 17 years"},{"$f":"[1]ACS_16_5YR_B17001_with_ann!AW$2","v":"Margin of Error Total: Income in the past 12 months below poverty level: Female: 16 and 17 years"},{"$f":"[1]ACS_16_5YR_B17001_with_ann!AX$2","v":"Estimate Total: Income in the past 12 months below poverty level: Female: 18 to 24 years"},{"$f":"[1]ACS_16_5YR_B17001_with_ann!AY$2","v":"Margin of Error Total: Income in the past 12 months below poverty level: Female: 18 to 24 years"},{"$f":"[1]ACS_16_5YR_B17001_with_ann!AZ$2","v":"Estimate Total: Income in the past 12 months below poverty level: Female: 25 to 34 years"},{"$f":"[1]ACS_16_5YR_B17001_with_ann!BA$2","v":"Margin of Error Total: Income in the past 12 months below poverty level: Female: 25 to 34 years"},{"$f":"[1]ACS_16_5YR_B17001_with_ann!BB$2","v":"Estimate Total: Income in the past 12 months below poverty level: Female: 35 to 44 years"},{"$f":"[1]ACS_16_5YR_B17001_with_ann!BC$2","v":"Margin of Error Total: Income in the past 12 months below poverty level: Female: 35 to 44 years"},{"$f":"[1]ACS_16_5YR_B17001_with_ann!BD$2","v":"Estimate Total: Income in the past 12 months below poverty level: Female: 45 to 54 years"},{"$f":"[1]ACS_16_5YR_B17001_with_ann!BE$2","v":"Margin of Error Total: Income in the past 12 months below poverty level: Female: 45 to 54 years"},{"$f":"[1]ACS_16_5YR_B17001_with_ann!BF$2","v":"Estimate Total: Income in the past 12 months below poverty level: Female: 55 to 64 years"},{"$f":"[1]ACS_16_5YR_B17001_with_ann!BG$2","v":"Margin of Error Total: Income in the past 12 months below poverty level: Female: 55 to 64 years"},{"$f":"[1]ACS_16_5YR_B17001_with_ann!BH$2","v":"Estimate Total: Income in the past 12 months below poverty level: Female: 65 to 74 years"},{"$f":"[1]ACS_16_5YR_B17001_with_ann!BI$2","v":"Margin of Error Total: Income in the past 12 months below poverty level: Female: 65 to 74 years"},{"$f":"[1]ACS_16_5YR_B17001_with_ann!BJ$2","v":"Estimate Total: Income in the past 12 months below poverty level: Female: 75 years and over"},{"$f":"[1]ACS_16_5YR_B17001_with_ann!BK$2","v":"Margin of Error Total: Income in the past 12 months below poverty level: Female: 75 years and over"},{"$f":"[1]ACS_16_5YR_B17001_with_ann!BL$2","v":"Estimate Total: Income in the past 12 months at or above poverty level:"},{"$f":"[1]ACS_16_5YR_B17001_with_ann!BM$2","v":"Margin of Error Total: Income in the past 12 months at or above poverty level:"},{"$f":"[1]ACS_16_5YR_B17001_with_ann!BN$2","v":"Estimate Total: Income in the past 12 months at or above poverty level: Male:"},{"$f":"[1]ACS_16_5YR_B17001_with_ann!BO$2","v":"Margin of Error Total: Income in the past 12 months at or above poverty level: Male:"},{"$f":"[1]ACS_16_5YR_B17001_with_ann!BP$2","v":"Estimate Total: Income in the past 12 months at or above poverty level: Male: Under 5 years"},{"$f":"[1]ACS_16_5YR_B17001_with_ann!BQ$2","v":"Margin of Error Total: Income in the past 12 months at or above poverty level: Male: Under 5 years"},{"$f":"[1]ACS_16_5YR_B17001_with_ann!BR$2","v":"Estimate Total: Income in the past 12 months at or above poverty level: Male: 5 years"},{"$f":"[1]ACS_16_5YR_B17001_with_ann!BS$2","v":"Margin of Error Total: Income in the past 12 months at or above poverty level: Male: 5 years"},{"$f":"[1]ACS_16_5YR_B17001_with_ann!BT$2","v":"Estimate Total: Income in the past 12 months at or above poverty level: Male: 6 to 11 years"},{"$f":"[1]ACS_16_5YR_B17001_with_ann!BU$2","v":"Margin of Error Total: Income in the past 12 months at or above poverty level: Male: 6 to 11 years"},{"$f":"[1]ACS_16_5YR_B17001_with_ann!BV$2","v":"Estimate Total: Income in the past 12 months at or above poverty level: Male: 12 to 14 years"},{"$f":"[1]ACS_16_5YR_B17001_with_ann!BW$2","v":"Margin of Error Total: Income in the past 12 months at or above poverty level: Male: 12 to 14 years"},{"$f":"[1]ACS_16_5YR_B17001_with_ann!BX$2","v":"Estimate Total: Income in the past 12 months at or above poverty level: Male: 15 years"},{"$f":"[1]ACS_16_5YR_B17001_with_ann!BY$2","v":"Margin of Error Total: Income in the past 12 months at or above poverty level: Male: 15 years"},{"$f":"[1]ACS_16_5YR_B17001_with_ann!BZ$2","v":"Estimate Total: Income in the past 12 months at or above poverty level: Male: 16 and 17 years"},{"$f":"[1]ACS_16_5YR_B17001_with_ann!CA$2","v":"Margin of Error Total: Income in the past 12 months at or above poverty level: Male: 16 and 17 years"},{"$f":"[1]ACS_16_5YR_B17001_with_ann!CB$2","v":"Estimate Total: Income in the past 12 months at or above poverty level: Male: 18 to 24 years"},{"$f":"[1]ACS_16_5YR_B17001_with_ann!CC$2","v":"Margin of Error Total: Income in the past 12 months at or above poverty level: Male: 18 to 24 years"},{"$f":"[1]ACS_16_5YR_B17001_with_ann!CD$2","v":"Estimate Total: Income in the past 12 months at or above poverty level: Male: 25 to 34 years"},{"$f":"[1]ACS_16_5YR_B17001_with_ann!CE$2","v":"Margin of Error Total: Income in the past 12 months at or above poverty level: Male: 25 to 34 years"},{"$f":"[1]ACS_16_5YR_B17001_with_ann!CF$2","v":"Estimate Total: Income in the past 12 months at or above poverty level: Male: 35 to 44 years"},{"$f":"[1]ACS_16_5YR_B17001_with_ann!CG$2","v":"Margin of Error Total: Income in the past 12 months at or above poverty level: Male: 35 to 44 years"},{"$f":"[1]ACS_16_5YR_B17001_with_ann!CH$2","v":"Estimate Total: Income in the past 12 months at or above poverty level: Male: 45 to 54 years"},{"$f":"[1]ACS_16_5YR_B17001_with_ann!CI$2","v":"Margin of Error Total: Income in the past 12 months at or above poverty level: Male: 45 to 54 years"},{"$f":"[1]ACS_16_5YR_B17001_with_ann!CJ$2","v":"Estimate Total: Income in the past 12 months at or above poverty level: Male: 55 to 64 years"},{"$f":"[1]ACS_16_5YR_B17001_with_ann!CK$2","v":"Margin of Error Total: Income in the past 12 months at or above poverty level: Male: 55 to 64 years"},{"$f":"[1]ACS_16_5YR_B17001_with_ann!CL$2","v":"Estimate Total: Income in the past 12 months at or above poverty level: Male: 65 to 74 years"},{"$f":"[1]ACS_16_5YR_B17001_with_ann!CM$2","v":"Margin of Error Total: Income in the past 12 months at or above poverty level: Male: 65 to 74 years"},{"$f":"[1]ACS_16_5YR_B17001_with_ann!CN$2","v":"Estimate Total: Income in the past 12 months at or above poverty level: Male: 75 years and over"},{"$f":"[1]ACS_16_5YR_B17001_with_ann!CO$2","v":"Margin of Error Total: Income in the past 12 months at or above poverty level: Male: 75 years and over"},{"$f":"[1]ACS_16_5YR_B17001_with_ann!CP$2","v":"Estimate Total: Income in the past 12 months at or above poverty level: Female:"},{"$f":"[1]ACS_16_5YR_B17001_with_ann!CQ$2","v":"Margin of Error Total: Income in the past 12 months at or above poverty level: Female:"},{"$f":"[1]ACS_16_5YR_B17001_with_ann!CR$2","v":"Estimate Total: Income in the past 12 months at or above poverty level: Female: Under 5 years"},{"$f":"[1]ACS_16_5YR_B17001_with_ann!CS$2","v":"Margin of Error Total: Income in the past 12 months at or above poverty level: Female: Under 5 years"},{"$f":"[1]ACS_16_5YR_B17001_with_ann!CT$2","v":"Estimate Total: Income in the past 12 months at or above poverty level: Female: 5 years"},{"$f":"[1]ACS_16_5YR_B17001_with_ann!CU$2","v":"Margin of Error Total: Income in the past 12 months at or above poverty level: Female: 5 years"},{"$f":"[1]ACS_16_5YR_B17001_with_ann!CV$2","v":"Estimate Total: Income in the past 12 months at or above poverty level: Female: 6 to 11 years"},{"$f":"[1]ACS_16_5YR_B17001_with_ann!CW$2","v":"Margin of Error Total: Income in the past 12 months at or above poverty level: Female: 6 to 11 years"},{"$f":"[1]ACS_16_5YR_B17001_with_ann!CX$2","v":"Estimate Total: Income in the past 12 months at or above poverty level: Female: 12 to 14 years"},{"$f":"[1]ACS_16_5YR_B17001_with_ann!CY$2","v":"Margin of Error Total: Income in the past 12 months at or above poverty level: Female: 12 to 14 years"},{"$f":"[1]ACS_16_5YR_B17001_with_ann!CZ$2","v":"Estimate Total: Income in the past 12 months at or above poverty level: Female: 15 years"},{"$f":"[1]ACS_16_5YR_B17001_with_ann!DA$2","v":"Margin of Error Total: Income in the past 12 months at or above poverty level: Female: 15 years"},{"$f":"[1]ACS_16_5YR_B17001_with_ann!DB$2","v":"Estimate Total: Income in the past 12 months at or above poverty level: Female: 16 and 17 years"},{"$f":"[1]ACS_16_5YR_B17001_with_ann!DC$2","v":"Margin of Error Total: Income in the past 12 months at or above poverty level: Female: 16 and 17 years"},{"$f":"[1]ACS_16_5YR_B17001_with_ann!DD$2","v":"Estimate Total: Income in the past 12 months at or above poverty level: Female: 18 to 24 years"},{"$f":"[1]ACS_16_5YR_B17001_with_ann!DE$2","v":"Margin of Error Total: Income in the past 12 months at or above poverty level: Female: 18 to 24 years"},{"$f":"[1]ACS_16_5YR_B17001_with_ann!DF$2","v":"Estimate Total: Income in the past 12 months at or above poverty level: Female: 25 to 34 years"},{"$f":"[1]ACS_16_5YR_B17001_with_ann!DG$2","v":"Margin of Error Total: Income in the past 12 months at or above poverty level: Female: 25 to 34 years"},{"$f":"[1]ACS_16_5YR_B17001_with_ann!DH$2","v":"Estimate Total: Income in the past 12 months at or above poverty level: Female: 35 to 44 years"},{"$f":"[1]ACS_16_5YR_B17001_with_ann!DI$2","v":"Margin of Error Total: Income in the past 12 months at or above poverty level: Female: 35 to 44 years"},{"$f":"[1]ACS_16_5YR_B17001_with_ann!DJ$2","v":"Estimate Total: Income in the past 12 months at or above poverty level: Female: 45 to 54 years"},{"$f":"[1]ACS_16_5YR_B17001_with_ann!DK$2","v":"Margin of Error Total: Income in the past 12 months at or above poverty level: Female: 45 to 54 years"},{"$f":"[1]ACS_16_5YR_B17001_with_ann!DL$2","v":"Estimate Total: Income in the past 12 months at or above poverty level: Female: 55 to 64 years"},{"$f":"[1]ACS_16_5YR_B17001_with_ann!DM$2","v":"Margin of Error Total: Income in the past 12 months at or above poverty level: Female: 55 to 64 years"},{"$f":"[1]ACS_16_5YR_B17001_with_ann!DN$2","v":"Estimate Total: Income in the past 12 months at or above poverty level: Female: 65 to 74 years"},{"$f":"[1]ACS_16_5YR_B17001_with_ann!DO$2","v":"Margin of Error Total: Income in the past 12 months at or above poverty level: Female: 65 to 74 years"},{"$f":"[1]ACS_16_5YR_B17001_with_ann!DP$2","v":"Estimate Total: Income in the past 12 months at or above poverty level: Female: 75 years and over"},{"$f":"[1]ACS_16_5YR_B17001_with_ann!DQ$2","v":"Margin of Error Total: Income in the past 12 months at or above poverty level: Female: 75 years and over"}]
["0600000US3301900259",3301900259,"060","Acworth",{"$f":"[1]ACS_16_5YR_B17001_with_ann!D257","v":4140},{"$f":"[1]ACS_16_5YR_B17001_with_ann!E257","v":18},{"$f":"[1]ACS_16_5YR_B17001_with_ann!F257","v":84},{"$f":"[1]ACS_16_5YR_B17001_with_ann!G257","v":70},{"$f":"[1]ACS_16_5YR_B17001_with_ann!H257","v":11},{"$f":"[1]ACS_16_5YR_B17001_with_ann!I257","v":16},{"$f":"[1]ACS_16_5YR_B17001_with_ann!J257","v":0},{"$f":"[1]ACS_16_5YR_B17001_with_ann!K257","v":11},{"$f":"[1]ACS_16_5YR_B17001_with_ann!L257","v":0},{"$f":"[1]ACS_16_5YR_B17001_with_ann!M257","v":11},{"$f":"[1]ACS_16_5YR_B17001_with_ann!N257","v":0},{"$f":"[1]ACS_16_5YR_B17001_with_ann!O257","v":11},{"$f":"[1]ACS_16_5YR_B17001_with_ann!P257","v":0},{"$f":"[1]ACS_16_5YR_B17001_with_ann!Q257","v":11},{"$f":"[1]ACS_16_5YR_B17001_with_ann!R257","v":0},{"$f":"[1]ACS_16_5YR_B17001_with_ann!S257","v":11},{"$f":"[1]ACS_16_5YR_B17001_with_ann!T257","v":0},{"$f":"[1]ACS_16_5YR_B17001_with_ann!U257","v":11},{"$f":"[1]ACS_16_5YR_B17001_with_ann!V257","v":0},{"$f":"[1]ACS_16_5YR_B17001_with_ann!W257","v":11},{"$f":"[1]ACS_16_5YR_B17001_with_ann!X257","v":1},{"$f":"[1]ACS_16_5YR_B17001_with_ann!Y257","v":5},{"$f":"[1]ACS_16_5YR_B17001_with_ann!Z257","v":0},{"$f":"[1]ACS_16_5YR_B17001_with_ann!AA257","v":11},{"$f":"[1]ACS_16_5YR_B17001_with_ann!AB257","v":0},{"$f":"[1]ACS_16_5YR_B17001_with_ann!AC257","v":11},{"$f":"[1]ACS_16_5YR_B17001_with_ann!AD257","v":9},{"$f":"[1]ACS_16_5YR_B17001_with_ann!AE257","v":15},{"$f":"[1]ACS_16_5YR_B17001_with_ann!AF257","v":0},{"$f":"[1]ACS_16_5YR_B17001_with_ann!AG257","v":11},{"$f":"[1]ACS_16_5YR_B17001_with_ann!AH257","v":1},{"$f":"[1]ACS_16_5YR_B17001_with_ann!AI257","v":3},{"$f":"[1]ACS_16_5YR_B17001_with_ann!AJ257","v":73},{"$f":"[1]ACS_16_5YR_B17001_with_ann!AK257","v":67},{"$f":"[1]ACS_16_5YR_B17001_with_ann!AL257","v":0},{"$f":"[1]ACS_16_5YR_B17001_with_ann!AM257","v":11},{"$f":"[1]ACS_16_5YR_B17001_with_ann!AN257","v":0},{"$f":"[1]ACS_16_5YR_B17001_with_ann!AO257","v":11},{"$f":"[1]ACS_16_5YR_B17001_with_ann!AP257","v":0},{"$f":"[1]ACS_16_5YR_B17001_with_ann!AQ257","v":11},{"$f":"[1]ACS_16_5YR_B17001_with_ann!AR257","v":0},{"$f":"[1]ACS_16_5YR_B17001_with_ann!AS257","v":11},{"$f":"[1]ACS_16_5YR_B17001_with_ann!AT257","v":0},{"$f":"[1]ACS_16_5YR_B17001_with_ann!AU257","v":11},{"$f":"[1]ACS_16_5YR_B17001_with_ann!AV257","v":0},{"$f":"[1]ACS_16_5YR_B17001_with_ann!AW257","v":11},{"$f":"[1]ACS_16_5YR_B17001_with_ann!AX257","v":11},{"$f":"[1]ACS_16_5YR_B17001_with_ann!AY257","v":19},{"$f":"[1]ACS_16_5YR_B17001_with_ann!AZ257","v":0},{"$f":"[1]ACS_16_5YR_B17001_with_ann!BA257","v":11},{"$f":"[1]ACS_16_5YR_B17001_with_ann!BB257","v":6},{"$f":"[1]ACS_16_5YR_B17001_with_ann!BC257","v":11},{"$f":"[1]ACS_16_5YR_B17001_with_ann!BD257","v":40},{"$f":"[1]ACS_16_5YR_B17001_with_ann!BE257","v":59},{"$f":"[1]ACS_16_5YR_B17001_with_ann!BF257","v":16},{"$f":"[1]ACS_16_5YR_B17001_with_ann!BG257","v":17},{"$f":"[1]ACS_16_5YR_B17001_with_ann!BH257","v":0},{"$f":"[1]ACS_16_5YR_B17001_with_ann!BI257","v":11},{"$f":"[1]ACS_16_5YR_B17001_with_ann!BJ257","v":0},{"$f":"[1]ACS_16_5YR_B17001_with_ann!BK257","v":11},{"$f":"[1]ACS_16_5YR_B17001_with_ann!BL257","v":4056},{"$f":"[1]ACS_16_5YR_B17001_with_ann!BM257","v":73},{"$f":"[1]ACS_16_5YR_B17001_with_ann!BN257","v":1994},{"$f":"[1]ACS_16_5YR_B17001_with_ann!BO257","v":141},{"$f":"[1]ACS_16_5YR_B17001_with_ann!BP257","v":211},{"$f":"[1]ACS_16_5YR_B17001_with_ann!BQ257","v":96},{"$f":"[1]ACS_16_5YR_B17001_with_ann!BR257","v":14},{"$f":"[1]ACS_16_5YR_B17001_with_ann!BS257","v":24},{"$f":"[1]ACS_16_5YR_B17001_with_ann!BT257","v":121},{"$f":"[1]ACS_16_5YR_B17001_with_ann!BU257","v":87},{"$f":"[1]ACS_16_5YR_B17001_with_ann!BV257","v":24},{"$f":"[1]ACS_16_5YR_B17001_with_ann!BW257","v":25},{"$f":"[1]ACS_16_5YR_B17001_with_ann!BX257","v":11},{"$f":"[1]ACS_16_5YR_B17001_with_ann!BY257","v":17},{"$f":"[1]ACS_16_5YR_B17001_with_ann!BZ257","v":8},{"$f":"[1]ACS_16_5YR_B17001_with_ann!CA257","v":11},{"$f":"[1]ACS_16_5YR_B17001_with_ann!CB257","v":172},{"$f":"[1]ACS_16_5YR_B17001_with_ann!CC257","v":109},{"$f":"[1]ACS_16_5YR_B17001_with_ann!CD257","v":233},{"$f":"[1]ACS_16_5YR_B17001_with_ann!CE257","v":102},{"$f":"[1]ACS_16_5YR_B17001_with_ann!CF257","v":249},{"$f":"[1]ACS_16_5YR_B17001_with_ann!CG257","v":71},{"$f":"[1]ACS_16_5YR_B17001_with_ann!CH257","v":304},{"$f":"[1]ACS_16_5YR_B17001_with_ann!CI257","v":75},{"$f":"[1]ACS_16_5YR_B17001_with_ann!CJ257","v":361},{"$f":"[1]ACS_16_5YR_B17001_with_ann!CK257","v":67},{"$f":"[1]ACS_16_5YR_B17001_with_ann!CL257","v":175},{"$f":"[1]ACS_16_5YR_B17001_with_ann!CM257","v":60},{"$f":"[1]ACS_16_5YR_B17001_with_ann!CN257","v":111},{"$f":"[1]ACS_16_5YR_B17001_with_ann!CO257","v":41},{"$f":"[1]ACS_16_5YR_B17001_with_ann!CP257","v":2062},{"$f":"[1]ACS_16_5YR_B17001_with_ann!CQ257","v":147},{"$f":"[1]ACS_16_5YR_B17001_with_ann!CR257","v":102},{"$f":"[1]ACS_16_5YR_B17001_with_ann!CS257","v":54},{"$f":"[1]ACS_16_5YR_B17001_with_ann!CT257","v":19},{"$f":"[1]ACS_16_5YR_B17001_with_ann!CU257","v":23},{"$f":"[1]ACS_16_5YR_B17001_with_ann!CV257","v":142},{"$f":"[1]ACS_16_5YR_B17001_with_ann!CW257","v":70},{"$f":"[1]ACS_16_5YR_B17001_with_ann!CX258","v":6},{"$f":"[1]ACS_16_5YR_B17001_with_ann!CY258","v":7},{"$f":"[1]ACS_16_5YR_B17001_with_ann!CZ258","v":0},{"$f":"[1]ACS_16_5YR_B17001_with_ann!DA258","v":11},{"$f":"[1]ACS_16_5YR_B17001_with_ann!DB258","v":9},{"$f":"[1]ACS_16_5YR_B17001_with_ann!DC258","v":14},{"$f":"[1]ACS_16_5YR_B17001_with_ann!DD258","v":13},{"$f":"[1]ACS_16_5YR_B17001_with_ann!DE258","v":11},{"$f":"[1]ACS_16_5YR_B17001_with_ann!DF258","v":34},{"$f":"[1]ACS_16_5YR_B17001_with_ann!DG258","v":21},{"$f":"[1]ACS_16_5YR_B17001_with_ann!DH258","v":42},{"$f":"[1]ACS_16_5YR_B17001_with_ann!DI258","v":26},{"$f":"[1]ACS_16_5YR_B17001_with_ann!DJ258","v":48},{"$f":"[1]ACS_16_5YR_B17001_with_ann!DK258","v":25},{"$f":"[1]ACS_16_5YR_B17001_with_ann!DL258","v":90},{"$f":"[1]ACS_16_5YR_B17001_with_ann!DM258","v":29},{"$f":"[1]ACS_16_5YR_B17001_with_ann!DN258","v":117},{"$f":"[1]ACS_16_5YR_B17001_with_ann!DO258","v":42},{"$f":"[1]ACS_16_5YR_B17001_with_ann!DP258","v":25},{"$f":"[1]ACS_16_5YR_B17001_with_ann!DQ258","v":14}]
["0600000US3301911380",3301911380,"060","Charlestown",{"$f":"[1]ACS_16_5YR_B17001_with_ann!D258","v":904},{"$f":"[1]ACS_16_5YR_B17001_with_ann!E258","v":134},{"$f":"[1]ACS_16_5YR_B17001_with_ann!F258","v":34},{"$f":"[1]ACS_16_5YR_B17001_with_ann!G258","v":26},{"$f":"[1]ACS_16_5YR_B17001_with_ann!H258","v":24},{"$f":"[1]ACS_16_5YR_B17001_with_ann!I258","v":17},{"$f":"[1]ACS_16_5YR_B17001_with_ann!J258","v":0},{"$f":"[1]ACS_16_5YR_B17001_with_ann!K258","v":11},{"$f":"[1]ACS_16_5YR_B17001_with_ann!L258","v":0},{"$f":"[1]ACS_16_5YR_B17001_with_ann!M258","v":11},{"$f":"[1]ACS_16_5YR_B17001_with_ann!N258","v":0},{"$f":"[1]ACS_16_5YR_B17001_with_ann!O258","v":11},{"$f":"[1]ACS_16_5YR_B17001_with_ann!P258","v":0},{"$f":"[1]ACS_16_5YR_B17001_with_ann!Q258","v":11},{"$f":"[1]ACS_16_5YR_B17001_with_ann!R258","v":0},{"$f":"[1]ACS_16_5YR_B17001_with_ann!S258","v":11},{"$f":"[1]ACS_16_5YR_B17001_with_ann!T258","v":0},{"$f":"[1]ACS_16_5YR_B17001_with_ann!U258","v":11},{"$f":"[1]ACS_16_5YR_B17001_with_ann!V258","v":0},{"$f":"[1]ACS_16_5YR_B17001_with_ann!W258","v":11},{"$f":"[1]ACS_16_5YR_B17001_with_ann!X258","v":0},{"$f":"[1]ACS_16_5YR_B17001_with_ann!Y258","v":11},{"$f":"[1]ACS_16_5YR_B17001_with_ann!Z258","v":6},{"$f":"[1]ACS_16_5YR_B17001_with_ann!AA258","v":10},{"$f":"[1]ACS_16_5YR_B17001_with_ann!AB258","v":0},{"$f":"[1]ACS_16_5YR_B17001_with_ann!AC258","v":11},{"$f":"[1]ACS_16_5YR_B17001_with_ann!AD258","v":13},{"$f":"[1]ACS_16_5YR_B17001_with_ann!AE258","v":13},{"$f":"[1]ACS_16_5YR_B17001_with_ann!AF258","v":3},{"$f":"[1]ACS_16_5YR_B17001_with_ann!AG258","v":4},{"$f":"[1]ACS_16_5YR_B17001_with_ann!AH258","v":2},{"$f":"[1]ACS_16_5YR_B17001_with_ann!AI258","v":3},{"$f":"[1]ACS_16_5YR_B17001_with_ann!AJ258","v":10},{"$f":"[1]ACS_16_5YR_B17001_with_ann!AK258","v":12},{"$f":"[1]ACS_16_5YR_B17001_with_ann!AL258","v":0},{"$f":"[1]ACS_16_5YR_B17001_with_ann!AM258","v":11},{"$f":"[1]ACS_16_5YR_B17001_with_ann!AN258","v":0},{"$f":"[1]ACS_16_5YR_B17001_with_ann!AO258","v":11},{"$f":"[1]ACS_16_5YR_B17001_with_ann!AP258","v":0},{"$f":"[1]ACS_16_5YR_B17001_with_ann!AQ258","v":11},{"$f":"[1]ACS_16_5YR_B17001_with_ann!AR258","v":0},{"$f":"[1]ACS_16_5YR_B17001_with_ann!AS258","v":11},{"$f":"[1]ACS_16_5YR_B17001_with_ann!AT258","v":0},{"$f":"[1]ACS_16_5YR_B17001_with_ann!AU258","v":11},{"$f":"[1]ACS_16_5YR_B17001_with_ann!AV258","v":0},{"$f":"[1]ACS_16_5YR_B17001_with_ann!AW258","v":11},{"$f":"[1]ACS_16_5YR_B17001_with_ann!AX258","v":0},{"$f":"[1]ACS_16_5YR_B17001_with_ann!AY258","v":11},{"$f":"[1]ACS_16_5YR_B17001_with_ann!AZ258","v":0},{"$f":"[1]ACS_16_5YR_B17001_with_ann!BA258","v":11},{"$f":"[1]ACS_16_5YR_B17001_with_ann!BB258","v":3},{"$f":"[1]ACS_16_5YR_B17001_with_ann!BC258","v":4},{"$f":"[1]ACS_16_5YR_B17001_with_ann!BD258","v":7},{"$f":"[1]ACS_16_5YR_B17001_with_ann!BE258","v":11},{"$f":"[1]ACS_16_5YR_B17001_with_ann!BF258","v":0},{"$f":"[1]ACS_16_5YR_B17001_with_ann!BG258","v":11},{"$f":"[1]ACS_16_5YR_B17001_with_ann!BH258","v":0},{"$f":"[1]ACS_16_5YR_B17001_with_ann!BI258","v":11},{"$f":"[1]ACS_16_5YR_B17001_with_ann!BJ258","v":0},{"$f":"[1]ACS_16_5YR_B17001_with_ann!BK258","v":11},{"$f":"[1]ACS_16_5YR_B17001_with_ann!BL258","v":870},{"$f":"[1]ACS_16_5YR_B17001_with_ann!BM258","v":136},{"$f":"[1]ACS_16_5YR_B17001_with_ann!BN258","v":461},{"$f":"[1]ACS_16_5YR_B17001_with_ann!BO258","v":83},{"$f":"[1]ACS_16_5YR_B17001_with_ann!BP258","v":21},{"$f":"[1]ACS_16_5YR_B17001_with_ann!BQ258","v":14},{"$f":"[1]ACS_16_5YR_B17001_with_ann!BR258","v":3},{"$f":"[1]ACS_16_5YR_B17001_with_ann!BS258","v":5},{"$f":"[1]ACS_16_5YR_B17001_with_ann!BT258","v":19},{"$f":"[1]ACS_16_5YR_B17001_with_ann!BU258","v":15},{"$f":"[1]ACS_16_5YR_B17001_with_ann!BV258","v":8},{"$f":"[1]ACS_16_5YR_B17001_with_ann!BW258","v":11},{"$f":"[1]ACS_16_5YR_B17001_with_ann!BX258","v":2},{"$f":"[1]ACS_16_5YR_B17001_with_ann!BY258","v":3},{"$f":"[1]ACS_16_5YR_B17001_with_ann!BZ258","v":0},{"$f":"[1]ACS_16_5YR_B17001_with_ann!CA258","v":11},{"$f":"[1]ACS_16_5YR_B17001_with_ann!CB258","v":18},{"$f":"[1]ACS_16_5YR_B17001_with_ann!CC258","v":16},{"$f":"[1]ACS_16_5YR_B17001_with_ann!CD258","v":61},{"$f":"[1]ACS_16_5YR_B17001_with_ann!CE258","v":30},{"$f":"[1]ACS_16_5YR_B17001_with_ann!CF258","v":25},{"$f":"[1]ACS_16_5YR_B17001_with_ann!CG258","v":14},{"$f":"[1]ACS_16_5YR_B17001_with_ann!CH258","v":63},{"$f":"[1]ACS_16_5YR_B17001_with_ann!CI258","v":32},{"$f":"[1]ACS_16_5YR_B17001_with_ann!CJ258","v":106},{"$f":"[1]ACS_16_5YR_B17001_with_ann!CK258","v":35},{"$f":"[1]ACS_16_5YR_B17001_with_ann!CL258","v":85},{"$f":"[1]ACS_16_5YR_B17001_with_ann!CM258","v":27},{"$f":"[1]ACS_16_5YR_B17001_with_ann!CN258","v":50},{"$f":"[1]ACS_16_5YR_B17001_with_ann!CO258","v":23},{"$f":"[1]ACS_16_5YR_B17001_with_ann!CP258","v":409},{"$f":"[1]ACS_16_5YR_B17001_with_ann!CQ258","v":73},{"$f":"[1]ACS_16_5YR_B17001_with_ann!CR258","v":16},{"$f":"[1]ACS_16_5YR_B17001_with_ann!CS258","v":13},{"$f":"[1]ACS_16_5YR_B17001_with_ann!CT258","v":0},{"$f":"[1]ACS_16_5YR_B17001_with_ann!CU258","v":11},{"$f":"[1]ACS_16_5YR_B17001_with_ann!CV258","v":9},{"$f":"[1]ACS_16_5YR_B17001_with_ann!CW258","v":7},{"$f":"[1]ACS_16_5YR_B17001_with_ann!CX259","v":120},{"$f":"[1]ACS_16_5YR_B17001_with_ann!CY259","v":66},{"$f":"[1]ACS_16_5YR_B17001_with_ann!CZ259","v":41},{"$f":"[1]ACS_16_5YR_B17001_with_ann!DA259","v":47},{"$f":"[1]ACS_16_5YR_B17001_with_ann!DB259","v":16},{"$f":"[1]ACS_16_5YR_B17001_with_ann!DC259","v":28},{"$f":"[1]ACS_16_5YR_B17001_with_ann!DD259","v":19},{"$f":"[1]ACS_16_5YR_B17001_with_ann!DE259","v":25},{"$f":"[1]ACS_16_5YR_B17001_with_ann!DF259","v":213},{"$f":"[1]ACS_16_5YR_B17001_with_ann!DG259","v":118},{"$f":"[1]ACS_16_5YR_B17001_with_ann!DH259","v":147},{"$f":"[1]ACS_16_5YR_B17001_with_ann!DI259","v":101},{"$f":"[1]ACS_16_5YR_B17001_with_ann!DJ259","v":232},{"$f":"[1]ACS_16_5YR_B17001_with_ann!DK259","v":99},{"$f":"[1]ACS_16_5YR_B17001_with_ann!DL259","v":501},{"$f":"[1]ACS_16_5YR_B17001_with_ann!DM259","v":162},{"$f":"[1]ACS_16_5YR_B17001_with_ann!DN259","v":296},{"$f":"[1]ACS_16_5YR_B17001_with_ann!DO259","v":120},{"$f":"[1]ACS_16_5YR_B17001_with_ann!DP259","v":198},{"$f":"[1]ACS_16_5YR_B17001_with_ann!DQ259","v":84}]
["0600000US3301912900",3301912900,"060","Claremont",{"$f":"[1]ACS_16_5YR_B17001_with_ann!D259","v":5007},{"$f":"[1]ACS_16_5YR_B17001_with_ann!E259","v":25},{"$f":"[1]ACS_16_5YR_B17001_with_ann!F259","v":753},{"$f":"[1]ACS_16_5YR_B17001_with_ann!G259","v":318},{"$f":"[1]ACS_16_5YR_B17001_with_ann!H259","v":352},{"$f":"[1]ACS_16_5YR_B17001_with_ann!I259","v":169},{"$f":"[1]ACS_16_5YR_B17001_with_ann!J259","v":42},{"$f":"[1]ACS_16_5YR_B17001_with_ann!K259","v":45},{"$f":"[1]ACS_16_5YR_B17001_with_ann!L259","v":36},{"$f":"[1]ACS_16_5YR_B17001_with_ann!M259","v":43},{"$f":"[1]ACS_16_5YR_B17001_with_ann!N259","v":24},{"$f":"[1]ACS_16_5YR_B17001_with_ann!O259","v":34},{"$f":"[1]ACS_16_5YR_B17001_with_ann!P259","v":0},{"$f":"[1]ACS_16_5YR_B17001_with_ann!Q259","v":16},{"$f":"[1]ACS_16_5YR_B17001_with_ann!R259","v":0},{"$f":"[1]ACS_16_5YR_B17001_with_ann!S259","v":16},{"$f":"[1]ACS_16_5YR_B17001_with_ann!T259","v":6},{"$f":"[1]ACS_16_5YR_B17001_with_ann!U259","v":9},{"$f":"[1]ACS_16_5YR_B17001_with_ann!V259","v":0},{"$f":"[1]ACS_16_5YR_B17001_with_ann!W259","v":16},{"$f":"[1]ACS_16_5YR_B17001_with_ann!X259","v":55},{"$f":"[1]ACS_16_5YR_B17001_with_ann!Y259","v":66},{"$f":"[1]ACS_16_5YR_B17001_with_ann!Z259","v":17},{"$f":"[1]ACS_16_5YR_B17001_with_ann!AA259","v":28},{"$f":"[1]ACS_16_5YR_B17001_with_ann!AB259","v":0},{"$f":"[1]ACS_16_5YR_B17001_with_ann!AC259","v":16},{"$f":"[1]ACS_16_5YR_B17001_with_ann!AD259","v":109},{"$f":"[1]ACS_16_5YR_B17001_with_ann!AE259","v":103},{"$f":"[1]ACS_16_5YR_B17001_with_ann!AF259","v":0},{"$f":"[1]ACS_16_5YR_B17001_with_ann!AG259","v":16},{"$f":"[1]ACS_16_5YR_B17001_with_ann!AH259","v":63},{"$f":"[1]ACS_16_5YR_B17001_with_ann!AI259","v":87},{"$f":"[1]ACS_16_5YR_B17001_with_ann!AJ259","v":401},{"$f":"[1]ACS_16_5YR_B17001_with_ann!AK259","v":199},{"$f":"[1]ACS_16_5YR_B17001_with_ann!AL259","v":25},{"$f":"[1]ACS_16_5YR_B17001_with_ann!AM259","v":35},{"$f":"[1]ACS_16_5YR_B17001_with_ann!AN259","v":0},{"$f":"[1]ACS_16_5YR_B17001_with_ann!AO259","v":16},{"$f":"[1]ACS_16_5YR_B17001_with_ann!AP259","v":20},{"$f":"[1]ACS_16_5YR_B17001_with_ann!AQ259","v":32},{"$f":"[1]ACS_16_5YR_B17001_with_ann!AR259","v":0},{"$f":"[1]ACS_16_5YR_B17001_with_ann!AS259","v":16},{"$f":"[1]ACS_16_5YR_B17001_with_ann!AT259","v":0},{"$f":"[1]ACS_16_5YR_B17001_with_ann!AU259","v":16},{"$f":"[1]ACS_16_5YR_B17001_with_ann!AV259","v":0},{"$f":"[1]ACS_16_5YR_B17001_with_ann!AW259","v":16},{"$f":"[1]ACS_16_5YR_B17001_with_ann!AX259","v":9},{"$f":"[1]ACS_16_5YR_B17001_with_ann!AY259","v":17},{"$f":"[1]ACS_16_5YR_B17001_with_ann!AZ259","v":116},{"$f":"[1]ACS_16_5YR_B17001_with_ann!BA259","v":108},{"$f":"[1]ACS_16_5YR_B17001_with_ann!BB259","v":111},{"$f":"[1]ACS_16_5YR_B17001_with_ann!BC259","v":81},{"$f":"[1]ACS_16_5YR_B17001_with_ann!BD259","v":24},{"$f":"[1]ACS_16_5YR_B17001_with_ann!BE259","v":40},{"$f":"[1]ACS_16_5YR_B17001_with_ann!BF259","v":65},{"$f":"[1]ACS_16_5YR_B17001_with_ann!BG259","v":74},{"$f":"[1]ACS_16_5YR_B17001_with_ann!BH259","v":0},{"$f":"[1]ACS_16_5YR_B17001_with_ann!BI259","v":16},{"$f":"[1]ACS_16_5YR_B17001_with_ann!BJ259","v":31},{"$f":"[1]ACS_16_5YR_B17001_with_ann!BK259","v":35},{"$f":"[1]ACS_16_5YR_B17001_with_ann!BL259","v":4254},{"$f":"[1]ACS_16_5YR_B17001_with_ann!BM259","v":317},{"$f":"[1]ACS_16_5YR_B17001_with_ann!BN259","v":2162},{"$f":"[1]ACS_16_5YR_B17001_with_ann!BO259","v":254},{"$f":"[1]ACS_16_5YR_B17001_with_ann!BP259","v":147},{"$f":"[1]ACS_16_5YR_B17001_with_ann!BQ259","v":111},{"$f":"[1]ACS_16_5YR_B17001_with_ann!BR259","v":0},{"$f":"[1]ACS_16_5YR_B17001_with_ann!BS259","v":16},{"$f":"[1]ACS_16_5YR_B17001_with_ann!BT259","v":104},{"$f":"[1]ACS_16_5YR_B17001_with_ann!BU259","v":74},{"$f":"[1]ACS_16_5YR_B17001_with_ann!BV259","v":28},{"$f":"[1]ACS_16_5YR_B17001_with_ann!BW259","v":24},{"$f":"[1]ACS_16_5YR_B17001_with_ann!BX259","v":15},{"$f":"[1]ACS_16_5YR_B17001_with_ann!BY259","v":26},{"$f":"[1]ACS_16_5YR_B17001_with_ann!BZ259","v":37},{"$f":"[1]ACS_16_5YR_B17001_with_ann!CA259","v":41},{"$f":"[1]ACS_16_5YR_B17001_with_ann!CB259","v":155},{"$f":"[1]ACS_16_5YR_B17001_with_ann!CC259","v":99},{"$f":"[1]ACS_16_5YR_B17001_with_ann!CD259","v":280},{"$f":"[1]ACS_16_5YR_B17001_with_ann!CE259","v":114},{"$f":"[1]ACS_16_5YR_B17001_with_ann!CF259","v":306},{"$f":"[1]ACS_16_5YR_B17001_with_ann!CG259","v":118},{"$f":"[1]ACS_16_5YR_B17001_with_ann!CH259","v":261},{"$f":"[1]ACS_16_5YR_B17001_with_ann!CI259","v":98},{"$f":"[1]ACS_16_5YR_B17001_with_ann!CJ259","v":341},{"$f":"[1]ACS_16_5YR_B17001_with_ann!CK259","v":105},{"$f":"[1]ACS_16_5YR_B17001_with_ann!CL259","v":261},{"$f":"[1]ACS_16_5YR_B17001_with_ann!CM259","v":94},{"$f":"[1]ACS_16_5YR_B17001_with_ann!CN259","v":227},{"$f":"[1]ACS_16_5YR_B17001_with_ann!CO259","v":86},{"$f":"[1]ACS_16_5YR_B17001_with_ann!CP259","v":2092},{"$f":"[1]ACS_16_5YR_B17001_with_ann!CQ259","v":250},{"$f":"[1]ACS_16_5YR_B17001_with_ann!CR259","v":86},{"$f":"[1]ACS_16_5YR_B17001_with_ann!CS259","v":66},{"$f":"[1]ACS_16_5YR_B17001_with_ann!CT259","v":44},{"$f":"[1]ACS_16_5YR_B17001_with_ann!CU259","v":74},{"$f":"[1]ACS_16_5YR_B17001_with_ann!CV259","v":179},{"$f":"[1]ACS_16_5YR_B17001_with_ann!CW259","v":76},{"$f":"[1]ACS_16_5YR_B17001_with_ann!CX261","v":55},{"$f":"[1]ACS_16_5YR_B17001_with_ann!CY261","v":29},{"$f":"[1]ACS_16_5YR_B17001_with_ann!CZ261","v":0},{"$f":"[1]ACS_16_5YR_B17001_with_ann!DA261","v":11},{"$f":"[1]ACS_16_5YR_B17001_with_ann!DB261","v":4},{"$f":"[1]ACS_16_5YR_B17001_with_ann!DC261","v":6},{"$f":"[1]ACS_16_5YR_B17001_with_ann!DD261","v":17},{"$f":"[1]ACS_16_5YR_B17001_with_ann!DE261","v":13},{"$f":"[1]ACS_16_5YR_B17001_with_ann!DF261","v":48},{"$f":"[1]ACS_16_5YR_B17001_with_ann!DG261","v":24},{"$f":"[1]ACS_16_5YR_B17001_with_ann!DH261","v":72},{"$f":"[1]ACS_16_5YR_B17001_with_ann!DI261","v":27},{"$f":"[1]ACS_16_5YR_B17001_with_ann!DJ261","v":108},{"$f":"[1]ACS_16_5YR_B17001_with_ann!DK261","v":36},{"$f":"[1]ACS_16_5YR_B17001_with_ann!DL261","v":177},{"$f":"[1]ACS_16_5YR_B17001_with_ann!DM261","v":46},{"$f":"[1]ACS_16_5YR_B17001_with_ann!DN261","v":172},{"$f":"[1]ACS_16_5YR_B17001_with_ann!DO261","v":43},{"$f":"[1]ACS_16_5YR_B17001_with_ann!DP261","v":83},{"$f":"[1]ACS_16_5YR_B17001_with_ann!DQ261","v":32}]
["0600000US3301915060",3301915060,"060","Cornish",{"$f":"[1]ACS_16_5YR_B17001_with_ann!D260","v":12881},{"$f":"[1]ACS_16_5YR_B17001_with_ann!E260","v":54},{"$f":"[1]ACS_16_5YR_B17001_with_ann!F260","v":2117},{"$f":"[1]ACS_16_5YR_B17001_with_ann!G260","v":519},{"$f":"[1]ACS_16_5YR_B17001_with_ann!H260","v":986},{"$f":"[1]ACS_16_5YR_B17001_with_ann!I260","v":329},{"$f":"[1]ACS_16_5YR_B17001_with_ann!J260","v":157},{"$f":"[1]ACS_16_5YR_B17001_with_ann!K260","v":100},{"$f":"[1]ACS_16_5YR_B17001_with_ann!L260","v":0},{"$f":"[1]ACS_16_5YR_B17001_with_ann!M260","v":18},{"$f":"[1]ACS_16_5YR_B17001_with_ann!N260","v":87},{"$f":"[1]ACS_16_5YR_B17001_with_ann!O260","v":79},{"$f":"[1]ACS_16_5YR_B17001_with_ann!P260","v":34},{"$f":"[1]ACS_16_5YR_B17001_with_ann!Q260","v":35},{"$f":"[1]ACS_16_5YR_B17001_with_ann!R260","v":15},{"$f":"[1]ACS_16_5YR_B17001_with_ann!S260","v":23},{"$f":"[1]ACS_16_5YR_B17001_with_ann!T260","v":0},{"$f":"[1]ACS_16_5YR_B17001_with_ann!U260","v":18},{"$f":"[1]ACS_16_5YR_B17001_with_ann!V260","v":95},{"$f":"[1]ACS_16_5YR_B17001_with_ann!W260","v":100},{"$f":"[1]ACS_16_5YR_B17001_with_ann!X260","v":111},{"$f":"[1]ACS_16_5YR_B17001_with_ann!Y260","v":69},{"$f":"[1]ACS_16_5YR_B17001_with_ann!Z260","v":88},{"$f":"[1]ACS_16_5YR_B17001_with_ann!AA260","v":59},{"$f":"[1]ACS_16_5YR_B17001_with_ann!AB260","v":219},{"$f":"[1]ACS_16_5YR_B17001_with_ann!AC260","v":148},{"$f":"[1]ACS_16_5YR_B17001_with_ann!AD260","v":151},{"$f":"[1]ACS_16_5YR_B17001_with_ann!AE260","v":69},{"$f":"[1]ACS_16_5YR_B17001_with_ann!AF260","v":17},{"$f":"[1]ACS_16_5YR_B17001_with_ann!AG260","v":17},{"$f":"[1]ACS_16_5YR_B17001_with_ann!AH260","v":12},{"$f":"[1]ACS_16_5YR_B17001_with_ann!AI260","v":20},{"$f":"[1]ACS_16_5YR_B17001_with_ann!AJ260","v":1131},{"$f":"[1]ACS_16_5YR_B17001_with_ann!AK260","v":279},{"$f":"[1]ACS_16_5YR_B17001_with_ann!AL260","v":137},{"$f":"[1]ACS_16_5YR_B17001_with_ann!AM260","v":84},{"$f":"[1]ACS_16_5YR_B17001_with_ann!AN260","v":0},{"$f":"[1]ACS_16_5YR_B17001_with_ann!AO260","v":18},{"$f":"[1]ACS_16_5YR_B17001_with_ann!AP260","v":184},{"$f":"[1]ACS_16_5YR_B17001_with_ann!AQ260","v":104},{"$f":"[1]ACS_16_5YR_B17001_with_ann!AR260","v":46},{"$f":"[1]ACS_16_5YR_B17001_with_ann!AS260","v":43},{"$f":"[1]ACS_16_5YR_B17001_with_ann!AT260","v":33},{"$f":"[1]ACS_16_5YR_B17001_with_ann!AU260","v":36},{"$f":"[1]ACS_16_5YR_B17001_with_ann!AV260","v":0},{"$f":"[1]ACS_16_5YR_B17001_with_ann!AW260","v":18},{"$f":"[1]ACS_16_5YR_B17001_with_ann!AX260","v":46},{"$f":"[1]ACS_16_5YR_B17001_with_ann!AY260","v":35},{"$f":"[1]ACS_16_5YR_B17001_with_ann!AZ260","v":228},{"$f":"[1]ACS_16_5YR_B17001_with_ann!BA260","v":118},{"$f":"[1]ACS_16_5YR_B17001_with_ann!BB260","v":124},{"$f":"[1]ACS_16_5YR_B17001_with_ann!BC260","v":64},{"$f":"[1]ACS_16_5YR_B17001_with_ann!BD260","v":202},{"$f":"[1]ACS_16_5YR_B17001_with_ann!BE260","v":111},{"$f":"[1]ACS_16_5YR_B17001_with_ann!BF261","v":3},{"$f":"[1]ACS_16_5YR_B17001_with_ann!BG261","v":4},{"$f":"[1]ACS_16_5YR_B17001_with_ann!BH261","v":0},{"$f":"[1]ACS_16_5YR_B17001_with_ann!BI261","v":11},{"$f":"[1]ACS_16_5YR_B17001_with_ann!BJ261","v":3},{"$f":"[1]ACS_16_5YR_B17001_with_ann!BK261","v":5},{"$f":"[1]ACS_16_5YR_B17001_with_ann!BL261","v":1608},{"$f":"[1]ACS_16_5YR_B17001_with_ann!BM261","v":156},{"$f":"[1]ACS_16_5YR_B17001_with_ann!BN261","v":814},{"$f":"[1]ACS_16_5YR_B17001_with_ann!BO261","v":92},{"$f":"[1]ACS_16_5YR_B17001_with_ann!BP261","v":35},{"$f":"[1]ACS_16_5YR_B17001_with_ann!BQ261","v":19},{"$f":"[1]ACS_16_5YR_B17001_with_ann!BR261","v":12},{"$f":"[1]ACS_16_5YR_B17001_with_ann!BS261","v":12},{"$f":"[1]ACS_16_5YR_B17001_with_ann!BT261","v":36},{"$f":"[1]ACS_16_5YR_B17001_with_ann!BU261","v":18},{"$f":"[1]ACS_16_5YR_B17001_with_ann!BV261","v":35},{"$f":"[1]ACS_16_5YR_B17001_with_ann!BW261","v":21},{"$f":"[1]ACS_16_5YR_B17001_with_ann!BX261","v":0},{"$f":"[1]ACS_16_5YR_B17001_with_ann!BY261","v":11},{"$f":"[1]ACS_16_5YR_B17001_with_ann!BZ261","v":19},{"$f":"[1]ACS_16_5YR_B17001_with_ann!CA261","v":17},{"$f":"[1]ACS_16_5YR_B17001_with_ann!CB261","v":37},{"$f":"[1]ACS_16_5YR_B17001_with_ann!CC261","v":19},{"$f":"[1]ACS_16_5YR_B17001_with_ann!CD261","v":45},{"$f":"[1]ACS_16_5YR_B17001_with_ann!CE261","v":20},{"$f":"[1]ACS_16_5YR_B17001_with_ann!CF261","v":78},{"$f":"[1]ACS_16_5YR_B17001_with_ann!CG261","v":31},{"$f":"[1]ACS_16_5YR_B17001_with_ann!CH261","v":95},{"$f":"[1]ACS_16_5YR_B17001_with_ann!CI261","v":33},{"$f":"[1]ACS_16_5YR_B17001_with_ann!CJ261","v":172},{"$f":"[1]ACS_16_5YR_B17001_with_ann!CK261","v":41},{"$f":"[1]ACS_16_5YR_B17001_with_ann!CL261","v":184},{"$f":"[1]ACS_16_5YR_B17001_with_ann!CM261","v":48},{"$f":"[1]ACS_16_5YR_B17001_with_ann!CN261","v":66},{"$f":"[1]ACS_16_5YR_B17001_with_ann!CO261","v":32},{"$f":"[1]ACS_16_5YR_B17001_with_ann!CP261","v":794},{"$f":"[1]ACS_16_5YR_B17001_with_ann!CQ261","v":92},{"$f":"[1]ACS_16_5YR_B17001_with_ann!CR261","v":22},{"$f":"[1]ACS_16_5YR_B17001_with_ann!CS261","v":15},{"$f":"[1]ACS_16_5YR_B17001_with_ann!CT261","v":4},{"$f":"[1]ACS_16_5YR_B17001_with_ann!CU261","v":6},{"$f":"[1]ACS_16_5YR_B17001_with_ann!CV261","v":32},{"$f":"[1]ACS_16_5YR_B17001_with_ann!CW261","v":22},{"$f":"[1]ACS_16_5YR_B17001_with_ann!CX262","v":11},{"$f":"[1]ACS_16_5YR_B17001_with_ann!CY262","v":9},{"$f":"[1]ACS_16_5YR_B17001_with_ann!CZ262","v":3},{"$f":"[1]ACS_16_5YR_B17001_with_ann!DA262","v":5},{"$f":"[1]ACS_16_5YR_B17001_with_ann!DB262","v":16},{"$f":"[1]ACS_16_5YR_B17001_with_ann!DC262","v":22},{"$f":"[1]ACS_16_5YR_B17001_with_ann!DD262","v":77},{"$f":"[1]ACS_16_5YR_B17001_with_ann!DE262","v":91},{"$f":"[1]ACS_16_5YR_B17001_with_ann!DF262","v":47},{"$f":"[1]ACS_16_5YR_B17001_with_ann!DG262","v":29},{"$f":"[1]ACS_16_5YR_B17001_with_ann!DH262","v":17},{"$f":"[1]ACS_16_5YR_B17001_with_ann!DI262","v":18},{"$f":"[1]ACS_16_5YR_B17001_with_ann!DJ262","v":51},{"$f":"[1]ACS_16_5YR_B17001_with_ann!DK262","v":28},{"$f":"[1]ACS_16_5YR_B17001_with_ann!DL262","v":72},{"$f":"[1]ACS_16_5YR_B17001_with_ann!DM262","v":32},{"$f":"[1]ACS_16_5YR_B17001_with_ann!DN262","v":47},{"$f":"[1]ACS_16_5YR_B17001_with_ann!DO262","v":24},{"$f":"[1]ACS_16_5YR_B17001_with_ann!DP262","v":21},{"$f":"[1]ACS_16_5YR_B17001_with_ann!DQ262","v":12}]
["0600000US3301916340",3301916340,"060","Croydon",{"$f":"[1]ACS_16_5YR_B17001_with_ann!D261","v":1783},{"$f":"[1]ACS_16_5YR_B17001_with_ann!E261","v":217},{"$f":"[1]ACS_16_5YR_B17001_with_ann!F261","v":175},{"$f":"[1]ACS_16_5YR_B17001_with_ann!G261","v":172},{"$f":"[1]ACS_16_5YR_B17001_with_ann!H261","v":108},{"$f":"[1]ACS_16_5YR_B17001_with_ann!I261","v":128},{"$f":"[1]ACS_16_5YR_B17001_with_ann!J261","v":0},{"$f":"[1]ACS_16_5YR_B17001_with_ann!K261","v":11},{"$f":"[1]ACS_16_5YR_B17001_with_ann!L261","v":0},{"$f":"[1]ACS_16_5YR_B17001_with_ann!M261","v":11},{"$f":"[1]ACS_16_5YR_B17001_with_ann!N261","v":11},{"$f":"[1]ACS_16_5YR_B17001_with_ann!O261","v":17},{"$f":"[1]ACS_16_5YR_B17001_with_ann!P261","v":33},{"$f":"[1]ACS_16_5YR_B17001_with_ann!Q261","v":50},{"$f":"[1]ACS_16_5YR_B17001_with_ann!R261","v":23},{"$f":"[1]ACS_16_5YR_B17001_with_ann!S261","v":35},{"$f":"[1]ACS_16_5YR_B17001_with_ann!T261","v":0},{"$f":"[1]ACS_16_5YR_B17001_with_ann!U261","v":11},{"$f":"[1]ACS_16_5YR_B17001_with_ann!V261","v":10},{"$f":"[1]ACS_16_5YR_B17001_with_ann!W261","v":11},{"$f":"[1]ACS_16_5YR_B17001_with_ann!X261","v":3},{"$f":"[1]ACS_16_5YR_B17001_with_ann!Y261","v":5},{"$f":"[1]ACS_16_5YR_B17001_with_ann!Z261","v":4},{"$f":"[1]ACS_16_5YR_B17001_with_ann!AA261","v":6},{"$f":"[1]ACS_16_5YR_B17001_with_ann!AB261","v":15},{"$f":"[1]ACS_16_5YR_B17001_with_ann!AC261","v":22},{"$f":"[1]ACS_16_5YR_B17001_with_ann!AD261","v":3},{"$f":"[1]ACS_16_5YR_B17001_with_ann!AE261","v":4},{"$f":"[1]ACS_16_5YR_B17001_with_ann!AF261","v":6},{"$f":"[1]ACS_16_5YR_B17001_with_ann!AG261","v":9},{"$f":"[1]ACS_16_5YR_B17001_with_ann!AH261","v":0},{"$f":"[1]ACS_16_5YR_B17001_with_ann!AI261","v":11},{"$f":"[1]ACS_16_5YR_B17001_with_ann!AJ261","v":67},{"$f":"[1]ACS_16_5YR_B17001_with_ann!AK261","v":48},{"$f":"[1]ACS_16_5YR_B17001_with_ann!AL261","v":4},{"$f":"[1]ACS_16_5YR_B17001_with_ann!AM261","v":6},{"$f":"[1]ACS_16_5YR_B17001_with_ann!AN261","v":0},{"$f":"[1]ACS_16_5YR_B17001_with_ann!AO261","v":11},{"$f":"[1]ACS_16_5YR_B17001_with_ann!AP261","v":19},{"$f":"[1]ACS_16_5YR_B17001_with_ann!AQ261","v":22},{"$f":"[1]ACS_16_5YR_B17001_with_ann!AR261","v":0},{"$f":"[1]ACS_16_5YR_B17001_with_ann!AS261","v":11},{"$f":"[1]ACS_16_5YR_B17001_with_ann!AT261","v":0},{"$f":"[1]ACS_16_5YR_B17001_with_ann!AU261","v":11},{"$f":"[1]ACS_16_5YR_B17001_with_ann!AV261","v":5},{"$f":"[1]ACS_16_5YR_B17001_with_ann!AW261","v":7},{"$f":"[1]ACS_16_5YR_B17001_with_ann!AX261","v":5},{"$f":"[1]ACS_16_5YR_B17001_with_ann!AY261","v":7},{"$f":"[1]ACS_16_5YR_B17001_with_ann!AZ261","v":8},{"$f":"[1]ACS_16_5YR_B17001_with_ann!BA261","v":9},{"$f":"[1]ACS_16_5YR_B17001_with_ann!BB261","v":16},{"$f":"[1]ACS_16_5YR_B17001_with_ann!BC261","v":19},{"$f":"[1]ACS_16_5YR_B17001_with_ann!BD261","v":4},{"$f":"[1]ACS_16_5YR_B17001_with_ann!BE261","v":6},{"$f":"[1]ACS_16_5YR_B17001_with_ann!BF262","v":15},{"$f":"[1]ACS_16_5YR_B17001_with_ann!BG262","v":16},{"$f":"[1]ACS_16_5YR_B17001_with_ann!BH262","v":2},{"$f":"[1]ACS_16_5YR_B17001_with_ann!BI262","v":4},{"$f":"[1]ACS_16_5YR_B17001_with_ann!BJ262","v":0},{"$f":"[1]ACS_16_5YR_B17001_with_ann!BK262","v":11},{"$f":"[1]ACS_16_5YR_B17001_with_ann!BL262","v":769},{"$f":"[1]ACS_16_5YR_B17001_with_ann!BM262","v":234},{"$f":"[1]ACS_16_5YR_B17001_with_ann!BN262","v":376},{"$f":"[1]ACS_16_5YR_B17001_with_ann!BO262","v":103},{"$f":"[1]ACS_16_5YR_B17001_with_ann!BP262","v":4},{"$f":"[1]ACS_16_5YR_B17001_with_ann!BQ262","v":6},{"$f":"[1]ACS_16_5YR_B17001_with_ann!BR262","v":6},{"$f":"[1]ACS_16_5YR_B17001_with_ann!BS262","v":7},{"$f":"[1]ACS_16_5YR_B17001_with_ann!BT262","v":23},{"$f":"[1]ACS_16_5YR_B17001_with_ann!BU262","v":17},{"$f":"[1]ACS_16_5YR_B17001_with_ann!BV262","v":5},{"$f":"[1]ACS_16_5YR_B17001_with_ann!BW262","v":6},{"$f":"[1]ACS_16_5YR_B17001_with_ann!BX262","v":3},{"$f":"[1]ACS_16_5YR_B17001_with_ann!BY262","v":4},{"$f":"[1]ACS_16_5YR_B17001_with_ann!BZ262","v":1},{"$f":"[1]ACS_16_5YR_B17001_with_ann!CA262","v":3},{"$f":"[1]ACS_16_5YR_B17001_with_ann!CB262","v":37},{"$f":"[1]ACS_16_5YR_B17001_with_ann!CC262","v":30},{"$f":"[1]ACS_16_5YR_B17001_with_ann!CD262","v":48},{"$f":"[1]ACS_16_5YR_B17001_with_ann!CE262","v":32},{"$f":"[1]ACS_16_5YR_B17001_with_ann!CF262","v":38},{"$f":"[1]ACS_16_5YR_B17001_with_ann!CG262","v":21},{"$f":"[1]ACS_16_5YR_B17001_with_ann!CH262","v":43},{"$f":"[1]ACS_16_5YR_B17001_with_ann!CI262","v":26},{"$f":"[1]ACS_16_5YR_B17001_with_ann!CJ262","v":99},{"$f":"[1]ACS_16_5YR_B17001_with_ann!CK262","v":50},{"$f":"[1]ACS_16_5YR_B17001_with_ann!CL262","v":38},{"$f":"[1]ACS_16_5YR_B17001_with_ann!CM262","v":22},{"$f":"[1]ACS_16_5YR_B17001_with_ann!CN262","v":31},{"$f":"[1]ACS_16_5YR_B17001_with_ann!CO262","v":16},{"$f":"[1]ACS_16_5YR_B17001_with_ann!CP262","v":393},{"$f":"[1]ACS_16_5YR_B17001_with_ann!CQ262","v":153},{"$f":"[1]ACS_16_5YR_B17001_with_ann!CR262","v":12},{"$f":"[1]ACS_16_5YR_B17001_with_ann!CS262","v":11},{"$f":"[1]ACS_16_5YR_B17001_with_ann!CT262","v":0},{"$f":"[1]ACS_16_5YR_B17001_with_ann!CU262","v":11},{"$f":"[1]ACS_16_5YR_B17001_with_ann!CV262","v":19},{"$f":"[1]ACS_16_5YR_B17001_with_ann!CW262","v":13},{"$f":"[1]ACS_16_5YR_B17001_with_ann!CX263","v":0},{"$f":"[1]ACS_16_5YR_B17001_with_ann!CY263","v":11},{"$f":"[1]ACS_16_5YR_B17001_with_ann!CZ263","v":10},{"$f":"[1]ACS_16_5YR_B17001_with_ann!DA263","v":10},{"$f":"[1]ACS_16_5YR_B17001_with_ann!DB263","v":0},{"$f":"[1]ACS_16_5YR_B17001_with_ann!DC263","v":11},{"$f":"[1]ACS_16_5YR_B17001_with_ann!DD263","v":17},{"$f":"[1]ACS_16_5YR_B17001_with_ann!DE263","v":22},{"$f":"[1]ACS_16_5YR_B17001_with_ann!DF263","v":50},{"$f":"[1]ACS_16_5YR_B17001_with_ann!DG263","v":27},{"$f":"[1]ACS_16_5YR_B17001_with_ann!DH263","v":27},{"$f":"[1]ACS_16_5YR_B17001_with_ann!DI263","v":15},{"$f":"[1]ACS_16_5YR_B17001_with_ann!DJ263","v":27},{"$f":"[1]ACS_16_5YR_B17001_with_ann!DK263","v":15},{"$f":"[1]ACS_16_5YR_B17001_with_ann!DL263","v":42},{"$f":"[1]ACS_16_5YR_B17001_with_ann!DM263","v":18},{"$f":"[1]ACS_16_5YR_B17001_with_ann!DN263","v":40},{"$f":"[1]ACS_16_5YR_B17001_with_ann!DO263","v":19},{"$f":"[1]ACS_16_5YR_B17001_with_ann!DP263","v":29},{"$f":"[1]ACS_16_5YR_B17001_with_ann!DQ263","v":13}]
["0600000US3301930500",3301930500,"060","Goshen",{"$f":"[1]ACS_16_5YR_B17001_with_ann!D262","v":854},{"$f":"[1]ACS_16_5YR_B17001_with_ann!E262","v":241},{"$f":"[1]ACS_16_5YR_B17001_with_ann!F262","v":85},{"$f":"[1]ACS_16_5YR_B17001_with_ann!G262","v":71},{"$f":"[1]ACS_16_5YR_B17001_with_ann!H262","v":47},{"$f":"[1]ACS_16_5YR_B17001_with_ann!I262","v":45},{"$f":"[1]ACS_16_5YR_B17001_with_ann!J262","v":7},{"$f":"[1]ACS_16_5YR_B17001_with_ann!K262","v":10},{"$f":"[1]ACS_16_5YR_B17001_with_ann!L262","v":0},{"$f":"[1]ACS_16_5YR_B17001_with_ann!M262","v":11},{"$f":"[1]ACS_16_5YR_B17001_with_ann!N262","v":0},{"$f":"[1]ACS_16_5YR_B17001_with_ann!O262","v":11},{"$f":"[1]ACS_16_5YR_B17001_with_ann!P262","v":18},{"$f":"[1]ACS_16_5YR_B17001_with_ann!Q262","v":29},{"$f":"[1]ACS_16_5YR_B17001_with_ann!R262","v":0},{"$f":"[1]ACS_16_5YR_B17001_with_ann!S262","v":11},{"$f":"[1]ACS_16_5YR_B17001_with_ann!T262","v":0},{"$f":"[1]ACS_16_5YR_B17001_with_ann!U262","v":11},{"$f":"[1]ACS_16_5YR_B17001_with_ann!V262","v":2},{"$f":"[1]ACS_16_5YR_B17001_with_ann!W262","v":4},{"$f":"[1]ACS_16_5YR_B17001_with_ann!X262","v":0},{"$f":"[1]ACS_16_5YR_B17001_with_ann!Y262","v":11},{"$f":"[1]ACS_16_5YR_B17001_with_ann!Z262","v":0},{"$f":"[1]ACS_16_5YR_B17001_with_ann!AA262","v":11},{"$f":"[1]ACS_16_5YR_B17001_with_ann!AB262","v":12},{"$f":"[1]ACS_16_5YR_B17001_with_ann!AC262","v":19},{"$f":"[1]ACS_16_5YR_B17001_with_ann!AD262","v":6},{"$f":"[1]ACS_16_5YR_B17001_with_ann!AE262","v":9},{"$f":"[1]ACS_16_5YR_B17001_with_ann!AF262","v":0},{"$f":"[1]ACS_16_5YR_B17001_with_ann!AG262","v":11},{"$f":"[1]ACS_16_5YR_B17001_with_ann!AH262","v":2},{"$f":"[1]ACS_16_5YR_B17001_with_ann!AI262","v":3},{"$f":"[1]ACS_16_5YR_B17001_with_ann!AJ262","v":38},{"$f":"[1]ACS_16_5YR_B17001_with_ann!AK262","v":32},{"$f":"[1]ACS_16_5YR_B17001_with_ann!AL262","v":0},{"$f":"[1]ACS_16_5YR_B17001_with_ann!AM262","v":11},{"$f":"[1]ACS_16_5YR_B17001_with_ann!AN262","v":0},{"$f":"[1]ACS_16_5YR_B17001_with_ann!AO262","v":11},{"$f":"[1]ACS_16_5YR_B17001_with_ann!AP262","v":0},{"$f":"[1]ACS_16_5YR_B17001_with_ann!AQ262","v":11},{"$f":"[1]ACS_16_5YR_B17001_with_ann!AR262","v":7},{"$f":"[1]ACS_16_5YR_B17001_with_ann!AS262","v":13},{"$f":"[1]ACS_16_5YR_B17001_with_ann!AT262","v":0},{"$f":"[1]ACS_16_5YR_B17001_with_ann!AU262","v":11},{"$f":"[1]ACS_16_5YR_B17001_with_ann!AV262","v":0},{"$f":"[1]ACS_16_5YR_B17001_with_ann!AW262","v":11},{"$f":"[1]ACS_16_5YR_B17001_with_ann!AX262","v":0},{"$f":"[1]ACS_16_5YR_B17001_with_ann!AY262","v":11},{"$f":"[1]ACS_16_5YR_B17001_with_ann!AZ262","v":0},{"$f":"[1]ACS_16_5YR_B17001_with_ann!BA262","v":11},{"$f":"[1]ACS_16_5YR_B17001_with_ann!BB262","v":11},{"$f":"[1]ACS_16_5YR_B17001_with_ann!BC262","v":13},{"$f":"[1]ACS_16_5YR_B17001_with_ann!BD262","v":3},{"$f":"[1]ACS_16_5YR_B17001_with_ann!BE262","v":6},{"$f":"[1]ACS_16_5YR_B17001_with_ann!BF263","v":14},{"$f":"[1]ACS_16_5YR_B17001_with_ann!BG263","v":13},{"$f":"[1]ACS_16_5YR_B17001_with_ann!BH263","v":9},{"$f":"[1]ACS_16_5YR_B17001_with_ann!BI263","v":11},{"$f":"[1]ACS_16_5YR_B17001_with_ann!BJ263","v":0},{"$f":"[1]ACS_16_5YR_B17001_with_ann!BK263","v":11},{"$f":"[1]ACS_16_5YR_B17001_with_ann!BL263","v":579},{"$f":"[1]ACS_16_5YR_B17001_with_ann!BM263","v":101},{"$f":"[1]ACS_16_5YR_B17001_with_ann!BN263","v":296},{"$f":"[1]ACS_16_5YR_B17001_with_ann!BO263","v":63},{"$f":"[1]ACS_16_5YR_B17001_with_ann!BP263","v":14},{"$f":"[1]ACS_16_5YR_B17001_with_ann!BQ263","v":13},{"$f":"[1]ACS_16_5YR_B17001_with_ann!BR263","v":2},{"$f":"[1]ACS_16_5YR_B17001_with_ann!BS263","v":3},{"$f":"[1]ACS_16_5YR_B17001_with_ann!BT263","v":33},{"$f":"[1]ACS_16_5YR_B17001_with_ann!BU263","v":19},{"$f":"[1]ACS_16_5YR_B17001_with_ann!BV263","v":0},{"$f":"[1]ACS_16_5YR_B17001_with_ann!BW263","v":11},{"$f":"[1]ACS_16_5YR_B17001_with_ann!BX263","v":0},{"$f":"[1]ACS_16_5YR_B17001_with_ann!BY263","v":11},{"$f":"[1]ACS_16_5YR_B17001_with_ann!BZ263","v":11},{"$f":"[1]ACS_16_5YR_B17001_with_ann!CA263","v":11},{"$f":"[1]ACS_16_5YR_B17001_with_ann!CB263","v":4},{"$f":"[1]ACS_16_5YR_B17001_with_ann!CC263","v":6},{"$f":"[1]ACS_16_5YR_B17001_with_ann!CD263","v":24},{"$f":"[1]ACS_16_5YR_B17001_with_ann!CE263","v":17},{"$f":"[1]ACS_16_5YR_B17001_with_ann!CF263","v":41},{"$f":"[1]ACS_16_5YR_B17001_with_ann!CG263","v":19},{"$f":"[1]ACS_16_5YR_B17001_with_ann!CH263","v":63},{"$f":"[1]ACS_16_5YR_B17001_with_ann!CI263","v":31},{"$f":"[1]ACS_16_5YR_B17001_with_ann!CJ263","v":39},{"$f":"[1]ACS_16_5YR_B17001_with_ann!CK263","v":21},{"$f":"[1]ACS_16_5YR_B17001_with_ann!CL263","v":45},{"$f":"[1]ACS_16_5YR_B17001_with_ann!CM263","v":21},{"$f":"[1]ACS_16_5YR_B17001_with_ann!CN263","v":20},{"$f":"[1]ACS_16_5YR_B17001_with_ann!CO263","v":14},{"$f":"[1]ACS_16_5YR_B17001_with_ann!CP263","v":283},{"$f":"[1]ACS_16_5YR_B17001_with_ann!CQ263","v":55},{"$f":"[1]ACS_16_5YR_B17001_with_ann!CR263","v":14},{"$f":"[1]ACS_16_5YR_B17001_with_ann!CS263","v":12},{"$f":"[1]ACS_16_5YR_B17001_with_ann!CT263","v":0},{"$f":"[1]ACS_16_5YR_B17001_with_ann!CU263","v":11},{"$f":"[1]ACS_16_5YR_B17001_with_ann!CV263","v":27},{"$f":"[1]ACS_16_5YR_B17001_with_ann!CW263","v":18},{"$f":"[1]ACS_16_5YR_B17001_with_ann!CX264","v":79},{"$f":"[1]ACS_16_5YR_B17001_with_ann!CY264","v":66},{"$f":"[1]ACS_16_5YR_B17001_with_ann!CZ264","v":0},{"$f":"[1]ACS_16_5YR_B17001_with_ann!DA264","v":11},{"$f":"[1]ACS_16_5YR_B17001_with_ann!DB264","v":36},{"$f":"[1]ACS_16_5YR_B17001_with_ann!DC264","v":40},{"$f":"[1]ACS_16_5YR_B17001_with_ann!DD264","v":90},{"$f":"[1]ACS_16_5YR_B17001_with_ann!DE264","v":72},{"$f":"[1]ACS_16_5YR_B17001_with_ann!DF264","v":24},{"$f":"[1]ACS_16_5YR_B17001_with_ann!DG264","v":36},{"$f":"[1]ACS_16_5YR_B17001_with_ann!DH264","v":227},{"$f":"[1]ACS_16_5YR_B17001_with_ann!DI264","v":90},{"$f":"[1]ACS_16_5YR_B17001_with_ann!DJ264","v":294},{"$f":"[1]ACS_16_5YR_B17001_with_ann!DK264","v":114},{"$f":"[1]ACS_16_5YR_B17001_with_ann!DL264","v":344},{"$f":"[1]ACS_16_5YR_B17001_with_ann!DM264","v":147},{"$f":"[1]ACS_16_5YR_B17001_with_ann!DN264","v":139},{"$f":"[1]ACS_16_5YR_B17001_with_ann!DO264","v":53},{"$f":"[1]ACS_16_5YR_B17001_with_ann!DP264","v":164},{"$f":"[1]ACS_16_5YR_B17001_with_ann!DQ264","v":75}]
["0600000US3301931220",3301931220,"060","Grantham",{"$f":"[1]ACS_16_5YR_B17001_with_ann!D263","v":675},{"$f":"[1]ACS_16_5YR_B17001_with_ann!E263","v":109},{"$f":"[1]ACS_16_5YR_B17001_with_ann!F263","v":96},{"$f":"[1]ACS_16_5YR_B17001_with_ann!G263","v":46},{"$f":"[1]ACS_16_5YR_B17001_with_ann!H263","v":47},{"$f":"[1]ACS_16_5YR_B17001_with_ann!I263","v":28},{"$f":"[1]ACS_16_5YR_B17001_with_ann!J263","v":4},{"$f":"[1]ACS_16_5YR_B17001_with_ann!K263","v":9},{"$f":"[1]ACS_16_5YR_B17001_with_ann!L263","v":0},{"$f":"[1]ACS_16_5YR_B17001_with_ann!M263","v":11},{"$f":"[1]ACS_16_5YR_B17001_with_ann!N263","v":0},{"$f":"[1]ACS_16_5YR_B17001_with_ann!O263","v":11},{"$f":"[1]ACS_16_5YR_B17001_with_ann!P263","v":0},{"$f":"[1]ACS_16_5YR_B17001_with_ann!Q263","v":11},{"$f":"[1]ACS_16_5YR_B17001_with_ann!R263","v":0},{"$f":"[1]ACS_16_5YR_B17001_with_ann!S263","v":11},{"$f":"[1]ACS_16_5YR_B17001_with_ann!T263","v":0},{"$f":"[1]ACS_16_5YR_B17001_with_ann!U263","v":11},{"$f":"[1]ACS_16_5YR_B17001_with_ann!V263","v":13},{"$f":"[1]ACS_16_5YR_B17001_with_ann!W263","v":11},{"$f":"[1]ACS_16_5YR_B17001_with_ann!X263","v":2},{"$f":"[1]ACS_16_5YR_B17001_with_ann!Y263","v":3},{"$f":"[1]ACS_16_5YR_B17001_with_ann!Z263","v":9},{"$f":"[1]ACS_16_5YR_B17001_with_ann!AA263","v":10},{"$f":"[1]ACS_16_5YR_B17001_with_ann!AB263","v":5},{"$f":"[1]ACS_16_5YR_B17001_with_ann!AC263","v":5},{"$f":"[1]ACS_16_5YR_B17001_with_ann!AD263","v":0},{"$f":"[1]ACS_16_5YR_B17001_with_ann!AE263","v":11},{"$f":"[1]ACS_16_5YR_B17001_with_ann!AF263","v":14},{"$f":"[1]ACS_16_5YR_B17001_with_ann!AG263","v":17},{"$f":"[1]ACS_16_5YR_B17001_with_ann!AH263","v":0},{"$f":"[1]ACS_16_5YR_B17001_with_ann!AI263","v":11},{"$f":"[1]ACS_16_5YR_B17001_with_ann!AJ263","v":49},{"$f":"[1]ACS_16_5YR_B17001_with_ann!AK263","v":27},{"$f":"[1]ACS_16_5YR_B17001_with_ann!AL263","v":7},{"$f":"[1]ACS_16_5YR_B17001_with_ann!AM263","v":9},{"$f":"[1]ACS_16_5YR_B17001_with_ann!AN263","v":0},{"$f":"[1]ACS_16_5YR_B17001_with_ann!AO263","v":11},{"$f":"[1]ACS_16_5YR_B17001_with_ann!AP263","v":5},{"$f":"[1]ACS_16_5YR_B17001_with_ann!AQ263","v":9},{"$f":"[1]ACS_16_5YR_B17001_with_ann!AR263","v":0},{"$f":"[1]ACS_16_5YR_B17001_with_ann!AS263","v":11},{"$f":"[1]ACS_16_5YR_B17001_with_ann!AT263","v":3},{"$f":"[1]ACS_16_5YR_B17001_with_ann!AU263","v":6},{"$f":"[1]ACS_16_5YR_B17001_with_ann!AV263","v":2},{"$f":"[1]ACS_16_5YR_B17001_with_ann!AW263","v":4},{"$f":"[1]ACS_16_5YR_B17001_with_ann!AX263","v":0},{"$f":"[1]ACS_16_5YR_B17001_with_ann!AY263","v":11},{"$f":"[1]ACS_16_5YR_B17001_with_ann!AZ263","v":2},{"$f":"[1]ACS_16_5YR_B17001_with_ann!BA263","v":3},{"$f":"[1]ACS_16_5YR_B17001_with_ann!BB263","v":0},{"$f":"[1]ACS_16_5YR_B17001_with_ann!BC263","v":11},{"$f":"[1]ACS_16_5YR_B17001_with_ann!BD263","v":7},{"$f":"[1]ACS_16_5YR_B17001_with_ann!BE263","v":13},{"$f":"[1]ACS_16_5YR_B17001_with_ann!BF264","v":0},{"$f":"[1]ACS_16_5YR_B17001_with_ann!BG264","v":11},{"$f":"[1]ACS_16_5YR_B17001_with_ann!BH264","v":0},{"$f":"[1]ACS_16_5YR_B17001_with_ann!BI264","v":11},{"$f":"[1]ACS_16_5YR_B17001_with_ann!BJ264","v":0},{"$f":"[1]ACS_16_5YR_B17001_with_ann!BK264","v":11},{"$f":"[1]ACS_16_5YR_B17001_with_ann!BL264","v":2896},{"$f":"[1]ACS_16_5YR_B17001_with_ann!BM264","v":69},{"$f":"[1]ACS_16_5YR_B17001_with_ann!BN264","v":1382},{"$f":"[1]ACS_16_5YR_B17001_with_ann!BO264","v":143},{"$f":"[1]ACS_16_5YR_B17001_with_ann!BP264","v":0},{"$f":"[1]ACS_16_5YR_B17001_with_ann!BQ264","v":11},{"$f":"[1]ACS_16_5YR_B17001_with_ann!BR264","v":41},{"$f":"[1]ACS_16_5YR_B17001_with_ann!BS264","v":61},{"$f":"[1]ACS_16_5YR_B17001_with_ann!BT264","v":76},{"$f":"[1]ACS_16_5YR_B17001_with_ann!BU264","v":53},{"$f":"[1]ACS_16_5YR_B17001_with_ann!BV264","v":89},{"$f":"[1]ACS_16_5YR_B17001_with_ann!BW264","v":49},{"$f":"[1]ACS_16_5YR_B17001_with_ann!BX264","v":0},{"$f":"[1]ACS_16_5YR_B17001_with_ann!BY264","v":11},{"$f":"[1]ACS_16_5YR_B17001_with_ann!BZ264","v":65},{"$f":"[1]ACS_16_5YR_B17001_with_ann!CA264","v":53},{"$f":"[1]ACS_16_5YR_B17001_with_ann!CB264","v":60},{"$f":"[1]ACS_16_5YR_B17001_with_ann!CC264","v":50},{"$f":"[1]ACS_16_5YR_B17001_with_ann!CD264","v":88},{"$f":"[1]ACS_16_5YR_B17001_with_ann!CE264","v":65},{"$f":"[1]ACS_16_5YR_B17001_with_ann!CF264","v":112},{"$f":"[1]ACS_16_5YR_B17001_with_ann!CG264","v":54},{"$f":"[1]ACS_16_5YR_B17001_with_ann!CH264","v":355},{"$f":"[1]ACS_16_5YR_B17001_with_ann!CI264","v":127},{"$f":"[1]ACS_16_5YR_B17001_with_ann!CJ264","v":146},{"$f":"[1]ACS_16_5YR_B17001_with_ann!CK264","v":85},{"$f":"[1]ACS_16_5YR_B17001_with_ann!CL264","v":156},{"$f":"[1]ACS_16_5YR_B17001_with_ann!CM264","v":69},{"$f":"[1]ACS_16_5YR_B17001_with_ann!CN264","v":194},{"$f":"[1]ACS_16_5YR_B17001_with_ann!CO264","v":86},{"$f":"[1]ACS_16_5YR_B17001_with_ann!CP264","v":1514},{"$f":"[1]ACS_16_5YR_B17001_with_ann!CQ264","v":137},{"$f":"[1]ACS_16_5YR_B17001_with_ann!CR264","v":0},{"$f":"[1]ACS_16_5YR_B17001_with_ann!CS264","v":11},{"$f":"[1]ACS_16_5YR_B17001_with_ann!CT264","v":24},{"$f":"[1]ACS_16_5YR_B17001_with_ann!CU264","v":35},{"$f":"[1]ACS_16_5YR_B17001_with_ann!CV264","v":93},{"$f":"[1]ACS_16_5YR_B17001_with_ann!CW264","v":66},{"$f":"[1]ACS_16_5YR_B17001_with_ann!CX265","v":5},{"$f":"[1]ACS_16_5YR_B17001_with_ann!CY265","v":6},{"$f":"[1]ACS_16_5YR_B17001_with_ann!CZ265","v":0},{"$f":"[1]ACS_16_5YR_B17001_with_ann!DA265","v":11},{"$f":"[1]ACS_16_5YR_B17001_with_ann!DB265","v":2},{"$f":"[1]ACS_16_5YR_B17001_with_ann!DC265","v":5},{"$f":"[1]ACS_16_5YR_B17001_with_ann!DD265","v":19},{"$f":"[1]ACS_16_5YR_B17001_with_ann!DE265","v":20},{"$f":"[1]ACS_16_5YR_B17001_with_ann!DF265","v":24},{"$f":"[1]ACS_16_5YR_B17001_with_ann!DG265","v":15},{"$f":"[1]ACS_16_5YR_B17001_with_ann!DH265","v":30},{"$f":"[1]ACS_16_5YR_B17001_with_ann!DI265","v":16},{"$f":"[1]ACS_16_5YR_B17001_with_ann!DJ265","v":54},{"$f":"[1]ACS_16_5YR_B17001_with_ann!DK265","v":23},{"$f":"[1]ACS_16_5YR_B17001_with_ann!DL265","v":77},{"$f":"[1]ACS_16_5YR_B17001_with_ann!DM265","v":30},{"$f":"[1]ACS_16_5YR_B17001_with_ann!DN265","v":33},{"$f":"[1]ACS_16_5YR_B17001_with_ann!DO265","v":11},{"$f":"[1]ACS_16_5YR_B17001_with_ann!DP265","v":15},{"$f":"[1]ACS_16_5YR_B17001_with_ann!DQ265","v":8}]
["0600000US3301940900",3301940900,"060","Langdon",{"$f":"[1]ACS_16_5YR_B17001_with_ann!D264","v":2945},{"$f":"[1]ACS_16_5YR_B17001_with_ann!E264","v":14},{"$f":"[1]ACS_16_5YR_B17001_with_ann!F264","v":49},{"$f":"[1]ACS_16_5YR_B17001_with_ann!G264","v":65},{"$f":"[1]ACS_16_5YR_B17001_with_ann!H264","v":0},{"$f":"[1]ACS_16_5YR_B17001_with_ann!I264","v":11},{"$f":"[1]ACS_16_5YR_B17001_with_ann!J264","v":0},{"$f":"[1]ACS_16_5YR_B17001_with_ann!K264","v":11},{"$f":"[1]ACS_16_5YR_B17001_with_ann!L264","v":0},{"$f":"[1]ACS_16_5YR_B17001_with_ann!M264","v":11},{"$f":"[1]ACS_16_5YR_B17001_with_ann!N264","v":0},{"$f":"[1]ACS_16_5YR_B17001_with_ann!O264","v":11},{"$f":"[1]ACS_16_5YR_B17001_with_ann!P264","v":0},{"$f":"[1]ACS_16_5YR_B17001_with_ann!Q264","v":11},{"$f":"[1]ACS_16_5YR_B17001_with_ann!R264","v":0},{"$f":"[1]ACS_16_5YR_B17001_with_ann!S264","v":11},{"$f":"[1]ACS_16_5YR_B17001_with_ann!T264","v":0},{"$f":"[1]ACS_16_5YR_B17001_with_ann!U264","v":11},{"$f":"[1]ACS_16_5YR_B17001_with_ann!V264","v":0},{"$f":"[1]ACS_16_5YR_B17001_with_ann!W264","v":11},{"$f":"[1]ACS_16_5YR_B17001_with_ann!X264","v":0},{"$f":"[1]ACS_16_5YR_B17001_with_ann!Y264","v":11},{"$f":"[1]ACS_16_5YR_B17001_with_ann!Z264","v":0},{"$f":"[1]ACS_16_5YR_B17001_with_ann!AA264","v":11},{"$f":"[1]ACS_16_5YR_B17001_with_ann!AB264","v":0},{"$f":"[1]ACS_16_5YR_B17001_with_ann!AC264","v":11},{"$f":"[1]ACS_16_5YR_B17001_with_ann!AD264","v":0},{"$f":"[1]ACS_16_5YR_B17001_with_ann!AE264","v":11},{"$f":"[1]ACS_16_5YR_B17001_with_ann!AF264","v":0},{"$f":"[1]ACS_16_5YR_B17001_with_ann!AG264","v":11},{"$f":"[1]ACS_16_5YR_B17001_with_ann!AH264","v":0},{"$f":"[1]ACS_16_5YR_B17001_with_ann!AI264","v":11},{"$f":"[1]ACS_16_5YR_B17001_with_ann!AJ264","v":49},{"$f":"[1]ACS_16_5YR_B17001_with_ann!AK264","v":65},{"$f":"[1]ACS_16_5YR_B17001_with_ann!AL264","v":0},{"$f":"[1]ACS_16_5YR_B17001_with_ann!AM264","v":11},{"$f":"[1]ACS_16_5YR_B17001_with_ann!AN264","v":0},{"$f":"[1]ACS_16_5YR_B17001_with_ann!AO264","v":11},{"$f":"[1]ACS_16_5YR_B17001_with_ann!AP264","v":0},{"$f":"[1]ACS_16_5YR_B17001_with_ann!AQ264","v":11},{"$f":"[1]ACS_16_5YR_B17001_with_ann!AR264","v":0},{"$f":"[1]ACS_16_5YR_B17001_with_ann!AS264","v":11},{"$f":"[1]ACS_16_5YR_B17001_with_ann!AT264","v":0},{"$f":"[1]ACS_16_5YR_B17001_with_ann!AU264","v":11},{"$f":"[1]ACS_16_5YR_B17001_with_ann!AV264","v":18},{"$f":"[1]ACS_16_5YR_B17001_with_ann!AW264","v":25},{"$f":"[1]ACS_16_5YR_B17001_with_ann!AX264","v":0},{"$f":"[1]ACS_16_5YR_B17001_with_ann!AY264","v":11},{"$f":"[1]ACS_16_5YR_B17001_with_ann!AZ264","v":0},{"$f":"[1]ACS_16_5YR_B17001_with_ann!BA264","v":11},{"$f":"[1]ACS_16_5YR_B17001_with_ann!BB264","v":0},{"$f":"[1]ACS_16_5YR_B17001_with_ann!BC264","v":11},{"$f":"[1]ACS_16_5YR_B17001_with_ann!BD264","v":31},{"$f":"[1]ACS_16_5YR_B17001_with_ann!BE264","v":43},{"$f":"[1]ACS_16_5YR_B17001_with_ann!BF265","v":8},{"$f":"[1]ACS_16_5YR_B17001_with_ann!BG265","v":12},{"$f":"[1]ACS_16_5YR_B17001_with_ann!BH265","v":2},{"$f":"[1]ACS_16_5YR_B17001_with_ann!BI265","v":3},{"$f":"[1]ACS_16_5YR_B17001_with_ann!BJ265","v":0},{"$f":"[1]ACS_16_5YR_B17001_with_ann!BK265","v":11},{"$f":"[1]ACS_16_5YR_B17001_with_ann!BL265","v":577},{"$f":"[1]ACS_16_5YR_B17001_with_ann!BM265","v":113},{"$f":"[1]ACS_16_5YR_B17001_with_ann!BN265","v":284},{"$f":"[1]ACS_16_5YR_B17001_with_ann!BO265","v":62},{"$f":"[1]ACS_16_5YR_B17001_with_ann!BP265","v":10},{"$f":"[1]ACS_16_5YR_B17001_with_ann!BQ265","v":8},{"$f":"[1]ACS_16_5YR_B17001_with_ann!BR265","v":4},{"$f":"[1]ACS_16_5YR_B17001_with_ann!BS265","v":8},{"$f":"[1]ACS_16_5YR_B17001_with_ann!BT265","v":21},{"$f":"[1]ACS_16_5YR_B17001_with_ann!BU265","v":15},{"$f":"[1]ACS_16_5YR_B17001_with_ann!BV265","v":8},{"$f":"[1]ACS_16_5YR_B17001_with_ann!BW265","v":9},{"$f":"[1]ACS_16_5YR_B17001_with_ann!BX265","v":2},{"$f":"[1]ACS_16_5YR_B17001_with_ann!BY265","v":4},{"$f":"[1]ACS_16_5YR_B17001_with_ann!BZ265","v":7},{"$f":"[1]ACS_16_5YR_B17001_with_ann!CA265","v":8},{"$f":"[1]ACS_16_5YR_B17001_with_ann!CB265","v":6},{"$f":"[1]ACS_16_5YR_B17001_with_ann!CC265","v":7},{"$f":"[1]ACS_16_5YR_B17001_with_ann!CD265","v":36},{"$f":"[1]ACS_16_5YR_B17001_with_ann!CE265","v":21},{"$f":"[1]ACS_16_5YR_B17001_with_ann!CF265","v":35},{"$f":"[1]ACS_16_5YR_B17001_with_ann!CG265","v":16},{"$f":"[1]ACS_16_5YR_B17001_with_ann!CH265","v":45},{"$f":"[1]ACS_16_5YR_B17001_with_ann!CI265","v":22},{"$f":"[1]ACS_16_5YR_B17001_with_ann!CJ265","v":58},{"$f":"[1]ACS_16_5YR_B17001_with_ann!CK265","v":27},{"$f":"[1]ACS_16_5YR_B17001_with_ann!CL265","v":37},{"$f":"[1]ACS_16_5YR_B17001_with_ann!CM265","v":14},{"$f":"[1]ACS_16_5YR_B17001_with_ann!CN265","v":15},{"$f":"[1]ACS_16_5YR_B17001_with_ann!CO265","v":9},{"$f":"[1]ACS_16_5YR_B17001_with_ann!CP265","v":293},{"$f":"[1]ACS_16_5YR_B17001_with_ann!CQ265","v":59},{"$f":"[1]ACS_16_5YR_B17001_with_ann!CR265","v":14},{"$f":"[1]ACS_16_5YR_B17001_with_ann!CS265","v":12},{"$f":"[1]ACS_16_5YR_B17001_with_ann!CT265","v":2},{"$f":"[1]ACS_16_5YR_B17001_with_ann!CU265","v":4},{"$f":"[1]ACS_16_5YR_B17001_with_ann!CV265","v":18},{"$f":"[1]ACS_16_5YR_B17001_with_ann!CW265","v":15},{"$f":"[1]ACS_16_5YR_B17001_with_ann!CX266","v":3},{"$f":"[1]ACS_16_5YR_B17001_with_ann!CY266","v":5},{"$f":"[1]ACS_16_5YR_B17001_with_ann!CZ266","v":0},{"$f":"[1]ACS_16_5YR_B17001_with_ann!DA266","v":11},{"$f":"[1]ACS_16_5YR_B17001_with_ann!DB266","v":62},{"$f":"[1]ACS_16_5YR_B17001_with_ann!DC266","v":56},{"$f":"[1]ACS_16_5YR_B17001_with_ann!DD266","v":7},{"$f":"[1]ACS_16_5YR_B17001_with_ann!DE266","v":10},{"$f":"[1]ACS_16_5YR_B17001_with_ann!DF266","v":34},{"$f":"[1]ACS_16_5YR_B17001_with_ann!DG266","v":15},{"$f":"[1]ACS_16_5YR_B17001_with_ann!DH266","v":36},{"$f":"[1]ACS_16_5YR_B17001_with_ann!DI266","v":26},{"$f":"[1]ACS_16_5YR_B17001_with_ann!DJ266","v":56},{"$f":"[1]ACS_16_5YR_B17001_with_ann!DK266","v":34},{"$f":"[1]ACS_16_5YR_B17001_with_ann!DL266","v":88},{"$f":"[1]ACS_16_5YR_B17001_with_ann!DM266","v":31},{"$f":"[1]ACS_16_5YR_B17001_with_ann!DN266","v":51},{"$f":"[1]ACS_16_5YR_B17001_with_ann!DO266","v":23},{"$f":"[1]ACS_16_5YR_B17001_with_ann!DP266","v":39},{"$f":"[1]ACS_16_5YR_B17001_with_ann!DQ266","v":26}]
["0600000US3301941700",3301941700,"060","Lempster",{"$f":"[1]ACS_16_5YR_B17001_with_ann!D265","v":704},{"$f":"[1]ACS_16_5YR_B17001_with_ann!E265","v":144},{"$f":"[1]ACS_16_5YR_B17001_with_ann!F265","v":127},{"$f":"[1]ACS_16_5YR_B17001_with_ann!G265","v":87},{"$f":"[1]ACS_16_5YR_B17001_with_ann!H265","v":58},{"$f":"[1]ACS_16_5YR_B17001_with_ann!I265","v":50},{"$f":"[1]ACS_16_5YR_B17001_with_ann!J265","v":6},{"$f":"[1]ACS_16_5YR_B17001_with_ann!K265","v":10},{"$f":"[1]ACS_16_5YR_B17001_with_ann!L265","v":0},{"$f":"[1]ACS_16_5YR_B17001_with_ann!M265","v":11},{"$f":"[1]ACS_16_5YR_B17001_with_ann!N265","v":22},{"$f":"[1]ACS_16_5YR_B17001_with_ann!O265","v":22},{"$f":"[1]ACS_16_5YR_B17001_with_ann!P265","v":12},{"$f":"[1]ACS_16_5YR_B17001_with_ann!Q265","v":19},{"$f":"[1]ACS_16_5YR_B17001_with_ann!R265","v":0},{"$f":"[1]ACS_16_5YR_B17001_with_ann!S265","v":11},{"$f":"[1]ACS_16_5YR_B17001_with_ann!T265","v":0},{"$f":"[1]ACS_16_5YR_B17001_with_ann!U265","v":11},{"$f":"[1]ACS_16_5YR_B17001_with_ann!V265","v":2},{"$f":"[1]ACS_16_5YR_B17001_with_ann!W265","v":3},{"$f":"[1]ACS_16_5YR_B17001_with_ann!X265","v":9},{"$f":"[1]ACS_16_5YR_B17001_with_ann!Y265","v":11},{"$f":"[1]ACS_16_5YR_B17001_with_ann!Z265","v":5},{"$f":"[1]ACS_16_5YR_B17001_with_ann!AA265","v":5},{"$f":"[1]ACS_16_5YR_B17001_with_ann!AB265","v":0},{"$f":"[1]ACS_16_5YR_B17001_with_ann!AC265","v":11},{"$f":"[1]ACS_16_5YR_B17001_with_ann!AD265","v":0},{"$f":"[1]ACS_16_5YR_B17001_with_ann!AE265","v":11},{"$f":"[1]ACS_16_5YR_B17001_with_ann!AF265","v":2},{"$f":"[1]ACS_16_5YR_B17001_with_ann!AG265","v":3},{"$f":"[1]ACS_16_5YR_B17001_with_ann!AH265","v":0},{"$f":"[1]ACS_16_5YR_B17001_with_ann!AI265","v":11},{"$f":"[1]ACS_16_5YR_B17001_with_ann!AJ265","v":69},{"$f":"[1]ACS_16_5YR_B17001_with_ann!AK265","v":44},{"$f":"[1]ACS_16_5YR_B17001_with_ann!AL265","v":2},{"$f":"[1]ACS_16_5YR_B17001_with_ann!AM265","v":3},{"$f":"[1]ACS_16_5YR_B17001_with_ann!AN265","v":0},{"$f":"[1]ACS_16_5YR_B17001_with_ann!AO265","v":11},{"$f":"[1]ACS_16_5YR_B17001_with_ann!AP265","v":19},{"$f":"[1]ACS_16_5YR_B17001_with_ann!AQ265","v":24},{"$f":"[1]ACS_16_5YR_B17001_with_ann!AR265","v":7},{"$f":"[1]ACS_16_5YR_B17001_with_ann!AS265","v":11},{"$f":"[1]ACS_16_5YR_B17001_with_ann!AT265","v":0},{"$f":"[1]ACS_16_5YR_B17001_with_ann!AU265","v":11},{"$f":"[1]ACS_16_5YR_B17001_with_ann!AV265","v":0},{"$f":"[1]ACS_16_5YR_B17001_with_ann!AW265","v":11},{"$f":"[1]ACS_16_5YR_B17001_with_ann!AX265","v":6},{"$f":"[1]ACS_16_5YR_B17001_with_ann!AY265","v":10},{"$f":"[1]ACS_16_5YR_B17001_with_ann!AZ265","v":20},{"$f":"[1]ACS_16_5YR_B17001_with_ann!BA265","v":16},{"$f":"[1]ACS_16_5YR_B17001_with_ann!BB265","v":0},{"$f":"[1]ACS_16_5YR_B17001_with_ann!BC265","v":11},{"$f":"[1]ACS_16_5YR_B17001_with_ann!BD265","v":5},{"$f":"[1]ACS_16_5YR_B17001_with_ann!BE265","v":4},{"$f":"[1]ACS_16_5YR_B17001_with_ann!BF266","v":11},{"$f":"[1]ACS_16_5YR_B17001_with_ann!BG266","v":9},{"$f":"[1]ACS_16_5YR_B17001_with_ann!BH266","v":0},{"$f":"[1]ACS_16_5YR_B17001_with_ann!BI266","v":11},{"$f":"[1]ACS_16_5YR_B17001_with_ann!BJ266","v":0},{"$f":"[1]ACS_16_5YR_B17001_with_ann!BK266","v":11},{"$f":"[1]ACS_16_5YR_B17001_with_ann!BL266","v":848},{"$f":"[1]ACS_16_5YR_B17001_with_ann!BM266","v":175},{"$f":"[1]ACS_16_5YR_B17001_with_ann!BN266","v":384},{"$f":"[1]ACS_16_5YR_B17001_with_ann!BO266","v":76},{"$f":"[1]ACS_16_5YR_B17001_with_ann!BP266","v":31},{"$f":"[1]ACS_16_5YR_B17001_with_ann!BQ266","v":21},{"$f":"[1]ACS_16_5YR_B17001_with_ann!BR266","v":3},{"$f":"[1]ACS_16_5YR_B17001_with_ann!BS266","v":4},{"$f":"[1]ACS_16_5YR_B17001_with_ann!BT266","v":23},{"$f":"[1]ACS_16_5YR_B17001_with_ann!BU266","v":19},{"$f":"[1]ACS_16_5YR_B17001_with_ann!BV266","v":2},{"$f":"[1]ACS_16_5YR_B17001_with_ann!BW266","v":4},{"$f":"[1]ACS_16_5YR_B17001_with_ann!BX266","v":3},{"$f":"[1]ACS_16_5YR_B17001_with_ann!BY266","v":4},{"$f":"[1]ACS_16_5YR_B17001_with_ann!BZ266","v":2},{"$f":"[1]ACS_16_5YR_B17001_with_ann!CA266","v":4},{"$f":"[1]ACS_16_5YR_B17001_with_ann!CB266","v":12},{"$f":"[1]ACS_16_5YR_B17001_with_ann!CC266","v":11},{"$f":"[1]ACS_16_5YR_B17001_with_ann!CD266","v":22},{"$f":"[1]ACS_16_5YR_B17001_with_ann!CE266","v":12},{"$f":"[1]ACS_16_5YR_B17001_with_ann!CF266","v":62},{"$f":"[1]ACS_16_5YR_B17001_with_ann!CG266","v":31},{"$f":"[1]ACS_16_5YR_B17001_with_ann!CH266","v":74},{"$f":"[1]ACS_16_5YR_B17001_with_ann!CI266","v":43},{"$f":"[1]ACS_16_5YR_B17001_with_ann!CJ266","v":76},{"$f":"[1]ACS_16_5YR_B17001_with_ann!CK266","v":26},{"$f":"[1]ACS_16_5YR_B17001_with_ann!CL266","v":60},{"$f":"[1]ACS_16_5YR_B17001_with_ann!CM266","v":26},{"$f":"[1]ACS_16_5YR_B17001_with_ann!CN266","v":14},{"$f":"[1]ACS_16_5YR_B17001_with_ann!CO266","v":11},{"$f":"[1]ACS_16_5YR_B17001_with_ann!CP266","v":464},{"$f":"[1]ACS_16_5YR_B17001_with_ann!CQ266","v":123},{"$f":"[1]ACS_16_5YR_B17001_with_ann!CR266","v":32},{"$f":"[1]ACS_16_5YR_B17001_with_ann!CS266","v":22},{"$f":"[1]ACS_16_5YR_B17001_with_ann!CT266","v":13},{"$f":"[1]ACS_16_5YR_B17001_with_ann!CU266","v":15},{"$f":"[1]ACS_16_5YR_B17001_with_ann!CV266","v":43},{"$f":"[1]ACS_16_5YR_B17001_with_ann!CW266","v":38},{"$f":"[1]ACS_16_5YR_B17001_with_ann!CX267","v":96},{"$f":"[1]ACS_16_5YR_B17001_with_ann!CY267","v":76},{"$f":"[1]ACS_16_5YR_B17001_with_ann!CZ267","v":53},{"$f":"[1]ACS_16_5YR_B17001_with_ann!DA267","v":78},{"$f":"[1]ACS_16_5YR_B17001_with_ann!DB267","v":23},{"$f":"[1]ACS_16_5YR_B17001_with_ann!DC267","v":30},{"$f":"[1]ACS_16_5YR_B17001_with_ann!DD267","v":112},{"$f":"[1]ACS_16_5YR_B17001_with_ann!DE267","v":71},{"$f":"[1]ACS_16_5YR_B17001_with_ann!DF267","v":249},{"$f":"[1]ACS_16_5YR_B17001_with_ann!DG267","v":105},{"$f":"[1]ACS_16_5YR_B17001_with_ann!DH267","v":438},{"$f":"[1]ACS_16_5YR_B17001_with_ann!DI267","v":139},{"$f":"[1]ACS_16_5YR_B17001_with_ann!DJ267","v":481},{"$f":"[1]ACS_16_5YR_B17001_with_ann!DK267","v":131},{"$f":"[1]ACS_16_5YR_B17001_with_ann!DL267","v":321},{"$f":"[1]ACS_16_5YR_B17001_with_ann!DM267","v":126},{"$f":"[1]ACS_16_5YR_B17001_with_ann!DN267","v":279},{"$f":"[1]ACS_16_5YR_B17001_with_ann!DO267","v":126},{"$f":"[1]ACS_16_5YR_B17001_with_ann!DP267","v":285},{"$f":"[1]ACS_16_5YR_B17001_with_ann!DQ267","v":103}]
["0600000US3301952580",3301952580,"060","Newport",{"$f":"[1]ACS_16_5YR_B17001_with_ann!D266","v":923},{"$f":"[1]ACS_16_5YR_B17001_with_ann!E266","v":176},{"$f":"[1]ACS_16_5YR_B17001_with_ann!F266","v":75},{"$f":"[1]ACS_16_5YR_B17001_with_ann!G266","v":34},{"$f":"[1]ACS_16_5YR_B17001_with_ann!H266","v":48},{"$f":"[1]ACS_16_5YR_B17001_with_ann!I266","v":24},{"$f":"[1]ACS_16_5YR_B17001_with_ann!J266","v":0},{"$f":"[1]ACS_16_5YR_B17001_with_ann!K266","v":11},{"$f":"[1]ACS_16_5YR_B17001_with_ann!L266","v":0},{"$f":"[1]ACS_16_5YR_B17001_with_ann!M266","v":11},{"$f":"[1]ACS_16_5YR_B17001_with_ann!N266","v":0},{"$f":"[1]ACS_16_5YR_B17001_with_ann!O266","v":11},{"$f":"[1]ACS_16_5YR_B17001_with_ann!P266","v":0},{"$f":"[1]ACS_16_5YR_B17001_with_ann!Q266","v":11},{"$f":"[1]ACS_16_5YR_B17001_with_ann!R266","v":0},{"$f":"[1]ACS_16_5YR_B17001_with_ann!S266","v":11},{"$f":"[1]ACS_16_5YR_B17001_with_ann!T266","v":3},{"$f":"[1]ACS_16_5YR_B17001_with_ann!U266","v":4},{"$f":"[1]ACS_16_5YR_B17001_with_ann!V266","v":0},{"$f":"[1]ACS_16_5YR_B17001_with_ann!W266","v":11},{"$f":"[1]ACS_16_5YR_B17001_with_ann!X266","v":0},{"$f":"[1]ACS_16_5YR_B17001_with_ann!Y266","v":11},{"$f":"[1]ACS_16_5YR_B17001_with_ann!Z266","v":12},{"$f":"[1]ACS_16_5YR_B17001_with_ann!AA266","v":14},{"$f":"[1]ACS_16_5YR_B17001_with_ann!AB266","v":21},{"$f":"[1]ACS_16_5YR_B17001_with_ann!AC266","v":17},{"$f":"[1]ACS_16_5YR_B17001_with_ann!AD266","v":4},{"$f":"[1]ACS_16_5YR_B17001_with_ann!AE266","v":5},{"$f":"[1]ACS_16_5YR_B17001_with_ann!AF266","v":8},{"$f":"[1]ACS_16_5YR_B17001_with_ann!AG266","v":12},{"$f":"[1]ACS_16_5YR_B17001_with_ann!AH266","v":0},{"$f":"[1]ACS_16_5YR_B17001_with_ann!AI266","v":11},{"$f":"[1]ACS_16_5YR_B17001_with_ann!AJ266","v":27},{"$f":"[1]ACS_16_5YR_B17001_with_ann!AK266","v":19},{"$f":"[1]ACS_16_5YR_B17001_with_ann!AL266","v":3},{"$f":"[1]ACS_16_5YR_B17001_with_ann!AM266","v":4},{"$f":"[1]ACS_16_5YR_B17001_with_ann!AN266","v":0},{"$f":"[1]ACS_16_5YR_B17001_with_ann!AO266","v":11},{"$f":"[1]ACS_16_5YR_B17001_with_ann!AP266","v":0},{"$f":"[1]ACS_16_5YR_B17001_with_ann!AQ266","v":11},{"$f":"[1]ACS_16_5YR_B17001_with_ann!AR266","v":0},{"$f":"[1]ACS_16_5YR_B17001_with_ann!AS266","v":11},{"$f":"[1]ACS_16_5YR_B17001_with_ann!AT266","v":0},{"$f":"[1]ACS_16_5YR_B17001_with_ann!AU266","v":11},{"$f":"[1]ACS_16_5YR_B17001_with_ann!AV266","v":0},{"$f":"[1]ACS_16_5YR_B17001_with_ann!AW266","v":11},{"$f":"[1]ACS_16_5YR_B17001_with_ann!AX266","v":0},{"$f":"[1]ACS_16_5YR_B17001_with_ann!AY266","v":11},{"$f":"[1]ACS_16_5YR_B17001_with_ann!AZ266","v":13},{"$f":"[1]ACS_16_5YR_B17001_with_ann!BA266","v":15},{"$f":"[1]ACS_16_5YR_B17001_with_ann!BB266","v":0},{"$f":"[1]ACS_16_5YR_B17001_with_ann!BC266","v":11},{"$f":"[1]ACS_16_5YR_B17001_with_ann!BD266","v":0},{"$f":"[1]ACS_16_5YR_B17001_with_ann!BE266","v":11},{"$f":"[1]ACS_16_5YR_B17001_with_ann!BF267","v":26},{"$f":"[1]ACS_16_5YR_B17001_with_ann!BG267","v":30},{"$f":"[1]ACS_16_5YR_B17001_with_ann!BH267","v":33},{"$f":"[1]ACS_16_5YR_B17001_with_ann!BI267","v":53},{"$f":"[1]ACS_16_5YR_B17001_with_ann!BJ267","v":0},{"$f":"[1]ACS_16_5YR_B17001_with_ann!BK267","v":16},{"$f":"[1]ACS_16_5YR_B17001_with_ann!BL267","v":5481},{"$f":"[1]ACS_16_5YR_B17001_with_ann!BM267","v":372},{"$f":"[1]ACS_16_5YR_B17001_with_ann!BN267","v":2914},{"$f":"[1]ACS_16_5YR_B17001_with_ann!BO267","v":251},{"$f":"[1]ACS_16_5YR_B17001_with_ann!BP267","v":148},{"$f":"[1]ACS_16_5YR_B17001_with_ann!BQ267","v":84},{"$f":"[1]ACS_16_5YR_B17001_with_ann!BR267","v":55},{"$f":"[1]ACS_16_5YR_B17001_with_ann!BS267","v":42},{"$f":"[1]ACS_16_5YR_B17001_with_ann!BT267","v":128},{"$f":"[1]ACS_16_5YR_B17001_with_ann!BU267","v":85},{"$f":"[1]ACS_16_5YR_B17001_with_ann!BV267","v":123},{"$f":"[1]ACS_16_5YR_B17001_with_ann!BW267","v":107},{"$f":"[1]ACS_16_5YR_B17001_with_ann!BX267","v":21},{"$f":"[1]ACS_16_5YR_B17001_with_ann!BY267","v":33},{"$f":"[1]ACS_16_5YR_B17001_with_ann!BZ267","v":136},{"$f":"[1]ACS_16_5YR_B17001_with_ann!CA267","v":108},{"$f":"[1]ACS_16_5YR_B17001_with_ann!CB267","v":284},{"$f":"[1]ACS_16_5YR_B17001_with_ann!CC267","v":141},{"$f":"[1]ACS_16_5YR_B17001_with_ann!CD267","v":317},{"$f":"[1]ACS_16_5YR_B17001_with_ann!CE267","v":126},{"$f":"[1]ACS_16_5YR_B17001_with_ann!CF267","v":317},{"$f":"[1]ACS_16_5YR_B17001_with_ann!CG267","v":138},{"$f":"[1]ACS_16_5YR_B17001_with_ann!CH267","v":349},{"$f":"[1]ACS_16_5YR_B17001_with_ann!CI267","v":135},{"$f":"[1]ACS_16_5YR_B17001_with_ann!CJ267","v":514},{"$f":"[1]ACS_16_5YR_B17001_with_ann!CK267","v":169},{"$f":"[1]ACS_16_5YR_B17001_with_ann!CL267","v":405},{"$f":"[1]ACS_16_5YR_B17001_with_ann!CM267","v":161},{"$f":"[1]ACS_16_5YR_B17001_with_ann!CN267","v":117},{"$f":"[1]ACS_16_5YR_B17001_with_ann!CO267","v":81},{"$f":"[1]ACS_16_5YR_B17001_with_ann!CP267","v":2567},{"$f":"[1]ACS_16_5YR_B17001_with_ann!CQ267","v":300},{"$f":"[1]ACS_16_5YR_B17001_with_ann!CR267","v":100},{"$f":"[1]ACS_16_5YR_B17001_with_ann!CS267","v":62},{"$f":"[1]ACS_16_5YR_B17001_with_ann!CT267","v":0},{"$f":"[1]ACS_16_5YR_B17001_with_ann!CU267","v":16},{"$f":"[1]ACS_16_5YR_B17001_with_ann!CV267","v":130},{"$f":"[1]ACS_16_5YR_B17001_with_ann!CW267","v":89},{"$f":"[1]ACS_16_5YR_B17001_with_ann!CX268","v":35},{"$f":"[1]ACS_16_5YR_B17001_with_ann!CY268","v":20},{"$f":"[1]ACS_16_5YR_B17001_with_ann!CZ268","v":27},{"$f":"[1]ACS_16_5YR_B17001_with_ann!DA268","v":41},{"$f":"[1]ACS_16_5YR_B17001_with_ann!DB268","v":14},{"$f":"[1]ACS_16_5YR_B17001_with_ann!DC268","v":15},{"$f":"[1]ACS_16_5YR_B17001_with_ann!DD268","v":55},{"$f":"[1]ACS_16_5YR_B17001_with_ann!DE268","v":35},{"$f":"[1]ACS_16_5YR_B17001_with_ann!DF268","v":118},{"$f":"[1]ACS_16_5YR_B17001_with_ann!DG268","v":43},{"$f":"[1]ACS_16_5YR_B17001_with_ann!DH268","v":122},{"$f":"[1]ACS_16_5YR_B17001_with_ann!DI268","v":46},{"$f":"[1]ACS_16_5YR_B17001_with_ann!DJ268","v":163},{"$f":"[1]ACS_16_5YR_B17001_with_ann!DK268","v":60},{"$f":"[1]ACS_16_5YR_B17001_with_ann!DL268","v":216},{"$f":"[1]ACS_16_5YR_B17001_with_ann!DM268","v":44},{"$f":"[1]ACS_16_5YR_B17001_with_ann!DN268","v":151},{"$f":"[1]ACS_16_5YR_B17001_with_ann!DO268","v":51},{"$f":"[1]ACS_16_5YR_B17001_with_ann!DP268","v":55},{"$f":"[1]ACS_16_5YR_B17001_with_ann!DQ268","v":34}]
["0600000US3301962340",3301962340,"060","Plainfield",{"$f":"[1]ACS_16_5YR_B17001_with_ann!D267","v":6246},{"$f":"[1]ACS_16_5YR_B17001_with_ann!E267","v":55},{"$f":"[1]ACS_16_5YR_B17001_with_ann!F267","v":765},{"$f":"[1]ACS_16_5YR_B17001_with_ann!G267","v":368},{"$f":"[1]ACS_16_5YR_B17001_with_ann!H267","v":303},{"$f":"[1]ACS_16_5YR_B17001_with_ann!I267","v":164},{"$f":"[1]ACS_16_5YR_B17001_with_ann!J267","v":37},{"$f":"[1]ACS_16_5YR_B17001_with_ann!K267","v":58},{"$f":"[1]ACS_16_5YR_B17001_with_ann!L267","v":0},{"$f":"[1]ACS_16_5YR_B17001_with_ann!M267","v":16},{"$f":"[1]ACS_16_5YR_B17001_with_ann!N267","v":0},{"$f":"[1]ACS_16_5YR_B17001_with_ann!O267","v":16},{"$f":"[1]ACS_16_5YR_B17001_with_ann!P267","v":11},{"$f":"[1]ACS_16_5YR_B17001_with_ann!Q267","v":18},{"$f":"[1]ACS_16_5YR_B17001_with_ann!R267","v":0},{"$f":"[1]ACS_16_5YR_B17001_with_ann!S267","v":16},{"$f":"[1]ACS_16_5YR_B17001_with_ann!T267","v":20},{"$f":"[1]ACS_16_5YR_B17001_with_ann!U267","v":26},{"$f":"[1]ACS_16_5YR_B17001_with_ann!V267","v":94},{"$f":"[1]ACS_16_5YR_B17001_with_ann!W267","v":87},{"$f":"[1]ACS_16_5YR_B17001_with_ann!X267","v":59},{"$f":"[1]ACS_16_5YR_B17001_with_ann!Y267","v":87},{"$f":"[1]ACS_16_5YR_B17001_with_ann!Z267","v":0},{"$f":"[1]ACS_16_5YR_B17001_with_ann!AA267","v":16},{"$f":"[1]ACS_16_5YR_B17001_with_ann!AB267","v":14},{"$f":"[1]ACS_16_5YR_B17001_with_ann!AC267","v":24},{"$f":"[1]ACS_16_5YR_B17001_with_ann!AD267","v":68},{"$f":"[1]ACS_16_5YR_B17001_with_ann!AE267","v":67},{"$f":"[1]ACS_16_5YR_B17001_with_ann!AF267","v":0},{"$f":"[1]ACS_16_5YR_B17001_with_ann!AG267","v":16},{"$f":"[1]ACS_16_5YR_B17001_with_ann!AH267","v":0},{"$f":"[1]ACS_16_5YR_B17001_with_ann!AI267","v":16},{"$f":"[1]ACS_16_5YR_B17001_with_ann!AJ267","v":462},{"$f":"[1]ACS_16_5YR_B17001_with_ann!AK267","v":233},{"$f":"[1]ACS_16_5YR_B17001_with_ann!AL267","v":0},{"$f":"[1]ACS_16_5YR_B17001_with_ann!AM267","v":16},{"$f":"[1]ACS_16_5YR_B17001_with_ann!AN267","v":0},{"$f":"[1]ACS_16_5YR_B17001_with_ann!AO267","v":16},{"$f":"[1]ACS_16_5YR_B17001_with_ann!AP267","v":89},{"$f":"[1]ACS_16_5YR_B17001_with_ann!AQ267","v":99},{"$f":"[1]ACS_16_5YR_B17001_with_ann!AR267","v":0},{"$f":"[1]ACS_16_5YR_B17001_with_ann!AS267","v":16},{"$f":"[1]ACS_16_5YR_B17001_with_ann!AT267","v":0},{"$f":"[1]ACS_16_5YR_B17001_with_ann!AU267","v":16},{"$f":"[1]ACS_16_5YR_B17001_with_ann!AV267","v":15},{"$f":"[1]ACS_16_5YR_B17001_with_ann!AW267","v":24},{"$f":"[1]ACS_16_5YR_B17001_with_ann!AX267","v":111},{"$f":"[1]ACS_16_5YR_B17001_with_ann!AY267","v":79},{"$f":"[1]ACS_16_5YR_B17001_with_ann!AZ267","v":48},{"$f":"[1]ACS_16_5YR_B17001_with_ann!BA267","v":56},{"$f":"[1]ACS_16_5YR_B17001_with_ann!BB267","v":48},{"$f":"[1]ACS_16_5YR_B17001_with_ann!BC267","v":77},{"$f":"[1]ACS_16_5YR_B17001_with_ann!BD267","v":92},{"$f":"[1]ACS_16_5YR_B17001_with_ann!BE267","v":83},{"$f":"[1]ACS_16_5YR_B17001_with_ann!BF268","v":0},{"$f":"[1]ACS_16_5YR_B17001_with_ann!BG268","v":11},{"$f":"[1]ACS_16_5YR_B17001_with_ann!BH268","v":30},{"$f":"[1]ACS_16_5YR_B17001_with_ann!BI268","v":28},{"$f":"[1]ACS_16_5YR_B17001_with_ann!BJ268","v":5},{"$f":"[1]ACS_16_5YR_B17001_with_ann!BK268","v":7},{"$f":"[1]ACS_16_5YR_B17001_with_ann!BL268","v":2278},{"$f":"[1]ACS_16_5YR_B17001_with_ann!BM268","v":305},{"$f":"[1]ACS_16_5YR_B17001_with_ann!BN268","v":1168},{"$f":"[1]ACS_16_5YR_B17001_with_ann!BO268","v":182},{"$f":"[1]ACS_16_5YR_B17001_with_ann!BP268","v":32},{"$f":"[1]ACS_16_5YR_B17001_with_ann!BQ268","v":34},{"$f":"[1]ACS_16_5YR_B17001_with_ann!BR268","v":0},{"$f":"[1]ACS_16_5YR_B17001_with_ann!BS268","v":11},{"$f":"[1]ACS_16_5YR_B17001_with_ann!BT268","v":89},{"$f":"[1]ACS_16_5YR_B17001_with_ann!BU268","v":47},{"$f":"[1]ACS_16_5YR_B17001_with_ann!BV268","v":60},{"$f":"[1]ACS_16_5YR_B17001_with_ann!BW268","v":40},{"$f":"[1]ACS_16_5YR_B17001_with_ann!BX268","v":5},{"$f":"[1]ACS_16_5YR_B17001_with_ann!BY268","v":8},{"$f":"[1]ACS_16_5YR_B17001_with_ann!BZ268","v":76},{"$f":"[1]ACS_16_5YR_B17001_with_ann!CA268","v":48},{"$f":"[1]ACS_16_5YR_B17001_with_ann!CB268","v":129},{"$f":"[1]ACS_16_5YR_B17001_with_ann!CC268","v":79},{"$f":"[1]ACS_16_5YR_B17001_with_ann!CD268","v":91},{"$f":"[1]ACS_16_5YR_B17001_with_ann!CE268","v":40},{"$f":"[1]ACS_16_5YR_B17001_with_ann!CF268","v":104},{"$f":"[1]ACS_16_5YR_B17001_with_ann!CG268","v":45},{"$f":"[1]ACS_16_5YR_B17001_with_ann!CH268","v":210},{"$f":"[1]ACS_16_5YR_B17001_with_ann!CI268","v":70},{"$f":"[1]ACS_16_5YR_B17001_with_ann!CJ268","v":162},{"$f":"[1]ACS_16_5YR_B17001_with_ann!CK268","v":38},{"$f":"[1]ACS_16_5YR_B17001_with_ann!CL268","v":154},{"$f":"[1]ACS_16_5YR_B17001_with_ann!CM268","v":52},{"$f":"[1]ACS_16_5YR_B17001_with_ann!CN268","v":56},{"$f":"[1]ACS_16_5YR_B17001_with_ann!CO268","v":35},{"$f":"[1]ACS_16_5YR_B17001_with_ann!CP268","v":1110},{"$f":"[1]ACS_16_5YR_B17001_with_ann!CQ268","v":153},{"$f":"[1]ACS_16_5YR_B17001_with_ann!CR268","v":50},{"$f":"[1]ACS_16_5YR_B17001_with_ann!CS268","v":55},{"$f":"[1]ACS_16_5YR_B17001_with_ann!CT268","v":11},{"$f":"[1]ACS_16_5YR_B17001_with_ann!CU268","v":17},{"$f":"[1]ACS_16_5YR_B17001_with_ann!CV268","v":93},{"$f":"[1]ACS_16_5YR_B17001_with_ann!CW268","v":53},{"$f":"[1]ACS_16_5YR_B17001_with_ann!CX269","v":13},{"$f":"[1]ACS_16_5YR_B17001_with_ann!CY269","v":13},{"$f":"[1]ACS_16_5YR_B17001_with_ann!CZ269","v":15},{"$f":"[1]ACS_16_5YR_B17001_with_ann!DA269","v":13},{"$f":"[1]ACS_16_5YR_B17001_with_ann!DB269","v":8},{"$f":"[1]ACS_16_5YR_B17001_with_ann!DC269","v":8},{"$f":"[1]ACS_16_5YR_B17001_with_ann!DD269","v":11},{"$f":"[1]ACS_16_5YR_B17001_with_ann!DE269","v":18},{"$f":"[1]ACS_16_5YR_B17001_with_ann!DF269","v":26},{"$f":"[1]ACS_16_5YR_B17001_with_ann!DG269","v":19},{"$f":"[1]ACS_16_5YR_B17001_with_ann!DH269","v":37},{"$f":"[1]ACS_16_5YR_B17001_with_ann!DI269","v":34},{"$f":"[1]ACS_16_5YR_B17001_with_ann!DJ269","v":94},{"$f":"[1]ACS_16_5YR_B17001_with_ann!DK269","v":40},{"$f":"[1]ACS_16_5YR_B17001_with_ann!DL269","v":102},{"$f":"[1]ACS_16_5YR_B17001_with_ann!DM269","v":41},{"$f":"[1]ACS_16_5YR_B17001_with_ann!DN269","v":112},{"$f":"[1]ACS_16_5YR_B17001_with_ann!DO269","v":42},{"$f":"[1]ACS_16_5YR_B17001_with_ann!DP269","v":38},{"$f":"[1]ACS_16_5YR_B17001_with_ann!DQ269","v":26}]
["0600000US3301972740",3301972740,"060","Springfield",{"$f":"[1]ACS_16_5YR_B17001_with_ann!D268","v":2410},{"$f":"[1]ACS_16_5YR_B17001_with_ann!E268","v":292},{"$f":"[1]ACS_16_5YR_B17001_with_ann!F268","v":132},{"$f":"[1]ACS_16_5YR_B17001_with_ann!G268","v":74},{"$f":"[1]ACS_16_5YR_B17001_with_ann!H268","v":77},{"$f":"[1]ACS_16_5YR_B17001_with_ann!I268","v":44},{"$f":"[1]ACS_16_5YR_B17001_with_ann!J268","v":0},{"$f":"[1]ACS_16_5YR_B17001_with_ann!K268","v":11},{"$f":"[1]ACS_16_5YR_B17001_with_ann!L268","v":0},{"$f":"[1]ACS_16_5YR_B17001_with_ann!M268","v":11},{"$f":"[1]ACS_16_5YR_B17001_with_ann!N268","v":0},{"$f":"[1]ACS_16_5YR_B17001_with_ann!O268","v":11},{"$f":"[1]ACS_16_5YR_B17001_with_ann!P268","v":0},{"$f":"[1]ACS_16_5YR_B17001_with_ann!Q268","v":11},{"$f":"[1]ACS_16_5YR_B17001_with_ann!R268","v":0},{"$f":"[1]ACS_16_5YR_B17001_with_ann!S268","v":11},{"$f":"[1]ACS_16_5YR_B17001_with_ann!T268","v":0},{"$f":"[1]ACS_16_5YR_B17001_with_ann!U268","v":11},{"$f":"[1]ACS_16_5YR_B17001_with_ann!V268","v":0},{"$f":"[1]ACS_16_5YR_B17001_with_ann!W268","v":11},{"$f":"[1]ACS_16_5YR_B17001_with_ann!X268","v":8},{"$f":"[1]ACS_16_5YR_B17001_with_ann!Y268","v":11},{"$f":"[1]ACS_16_5YR_B17001_with_ann!Z268","v":0},{"$f":"[1]ACS_16_5YR_B17001_with_ann!AA268","v":11},{"$f":"[1]ACS_16_5YR_B17001_with_ann!AB268","v":10},{"$f":"[1]ACS_16_5YR_B17001_with_ann!AC268","v":11},{"$f":"[1]ACS_16_5YR_B17001_with_ann!AD268","v":35},{"$f":"[1]ACS_16_5YR_B17001_with_ann!AE268","v":25},{"$f":"[1]ACS_16_5YR_B17001_with_ann!AF268","v":24},{"$f":"[1]ACS_16_5YR_B17001_with_ann!AG268","v":30},{"$f":"[1]ACS_16_5YR_B17001_with_ann!AH268","v":0},{"$f":"[1]ACS_16_5YR_B17001_with_ann!AI268","v":11},{"$f":"[1]ACS_16_5YR_B17001_with_ann!AJ268","v":55},{"$f":"[1]ACS_16_5YR_B17001_with_ann!AK268","v":35},{"$f":"[1]ACS_16_5YR_B17001_with_ann!AL268","v":0},{"$f":"[1]ACS_16_5YR_B17001_with_ann!AM268","v":11},{"$f":"[1]ACS_16_5YR_B17001_with_ann!AN268","v":0},{"$f":"[1]ACS_16_5YR_B17001_with_ann!AO268","v":11},{"$f":"[1]ACS_16_5YR_B17001_with_ann!AP268","v":0},{"$f":"[1]ACS_16_5YR_B17001_with_ann!AQ268","v":11},{"$f":"[1]ACS_16_5YR_B17001_with_ann!AR268","v":0},{"$f":"[1]ACS_16_5YR_B17001_with_ann!AS268","v":11},{"$f":"[1]ACS_16_5YR_B17001_with_ann!AT268","v":0},{"$f":"[1]ACS_16_5YR_B17001_with_ann!AU268","v":11},{"$f":"[1]ACS_16_5YR_B17001_with_ann!AV268","v":0},{"$f":"[1]ACS_16_5YR_B17001_with_ann!AW268","v":11},{"$f":"[1]ACS_16_5YR_B17001_with_ann!AX268","v":0},{"$f":"[1]ACS_16_5YR_B17001_with_ann!AY268","v":11},{"$f":"[1]ACS_16_5YR_B17001_with_ann!AZ268","v":0},{"$f":"[1]ACS_16_5YR_B17001_with_ann!BA268","v":11},{"$f":"[1]ACS_16_5YR_B17001_with_ann!BB268","v":4},{"$f":"[1]ACS_16_5YR_B17001_with_ann!BC268","v":7},{"$f":"[1]ACS_16_5YR_B17001_with_ann!BD268","v":16},{"$f":"[1]ACS_16_5YR_B17001_with_ann!BE268","v":18},{"$f":"[1]ACS_16_5YR_B17001_with_ann!BF269","v":0},{"$f":"[1]ACS_16_5YR_B17001_with_ann!BG269","v":11},{"$f":"[1]ACS_16_5YR_B17001_with_ann!BH269","v":0},{"$f":"[1]ACS_16_5YR_B17001_with_ann!BI269","v":11},{"$f":"[1]ACS_16_5YR_B17001_with_ann!BJ269","v":0},{"$f":"[1]ACS_16_5YR_B17001_with_ann!BK269","v":11},{"$f":"[1]ACS_16_5YR_B17001_with_ann!BL269","v":1011},{"$f":"[1]ACS_16_5YR_B17001_with_ann!BM269","v":205},{"$f":"[1]ACS_16_5YR_B17001_with_ann!BN269","v":516},{"$f":"[1]ACS_16_5YR_B17001_with_ann!BO269","v":112},{"$f":"[1]ACS_16_5YR_B17001_with_ann!BP269","v":3},{"$f":"[1]ACS_16_5YR_B17001_with_ann!BQ269","v":5},{"$f":"[1]ACS_16_5YR_B17001_with_ann!BR269","v":0},{"$f":"[1]ACS_16_5YR_B17001_with_ann!BS269","v":11},{"$f":"[1]ACS_16_5YR_B17001_with_ann!BT269","v":14},{"$f":"[1]ACS_16_5YR_B17001_with_ann!BU269","v":11},{"$f":"[1]ACS_16_5YR_B17001_with_ann!BV269","v":21},{"$f":"[1]ACS_16_5YR_B17001_with_ann!BW269","v":12},{"$f":"[1]ACS_16_5YR_B17001_with_ann!BX269","v":0},{"$f":"[1]ACS_16_5YR_B17001_with_ann!BY269","v":11},{"$f":"[1]ACS_16_5YR_B17001_with_ann!BZ269","v":34},{"$f":"[1]ACS_16_5YR_B17001_with_ann!CA269","v":27},{"$f":"[1]ACS_16_5YR_B17001_with_ann!CB269","v":19},{"$f":"[1]ACS_16_5YR_B17001_with_ann!CC269","v":17},{"$f":"[1]ACS_16_5YR_B17001_with_ann!CD269","v":55},{"$f":"[1]ACS_16_5YR_B17001_with_ann!CE269","v":43},{"$f":"[1]ACS_16_5YR_B17001_with_ann!CF269","v":69},{"$f":"[1]ACS_16_5YR_B17001_with_ann!CG269","v":39},{"$f":"[1]ACS_16_5YR_B17001_with_ann!CH269","v":82},{"$f":"[1]ACS_16_5YR_B17001_with_ann!CI269","v":41},{"$f":"[1]ACS_16_5YR_B17001_with_ann!CJ269","v":64},{"$f":"[1]ACS_16_5YR_B17001_with_ann!CK269","v":28},{"$f":"[1]ACS_16_5YR_B17001_with_ann!CL269","v":103},{"$f":"[1]ACS_16_5YR_B17001_with_ann!CM269","v":42},{"$f":"[1]ACS_16_5YR_B17001_with_ann!CN269","v":52},{"$f":"[1]ACS_16_5YR_B17001_with_ann!CO269","v":32},{"$f":"[1]ACS_16_5YR_B17001_with_ann!CP269","v":495},{"$f":"[1]ACS_16_5YR_B17001_with_ann!CQ269","v":115},{"$f":"[1]ACS_16_5YR_B17001_with_ann!CR269","v":11},{"$f":"[1]ACS_16_5YR_B17001_with_ann!CS269","v":17},{"$f":"[1]ACS_16_5YR_B17001_with_ann!CT269","v":16},{"$f":"[1]ACS_16_5YR_B17001_with_ann!CU269","v":20},{"$f":"[1]ACS_16_5YR_B17001_with_ann!CV269","v":12},{"$f":"[1]ACS_16_5YR_B17001_with_ann!CW269","v":18},{"$f":"[1]ACS_16_5YR_B17001_with_ann!CX270","v":10},{"$f":"[1]ACS_16_5YR_B17001_with_ann!CY270","v":16},{"$f":"[1]ACS_16_5YR_B17001_with_ann!CZ270","v":62},{"$f":"[1]ACS_16_5YR_B17001_with_ann!DA270","v":58},{"$f":"[1]ACS_16_5YR_B17001_with_ann!DB270","v":23},{"$f":"[1]ACS_16_5YR_B17001_with_ann!DC270","v":27},{"$f":"[1]ACS_16_5YR_B17001_with_ann!DD270","v":98},{"$f":"[1]ACS_16_5YR_B17001_with_ann!DE270","v":45},{"$f":"[1]ACS_16_5YR_B17001_with_ann!DF270","v":133},{"$f":"[1]ACS_16_5YR_B17001_with_ann!DG270","v":61},{"$f":"[1]ACS_16_5YR_B17001_with_ann!DH270","v":261},{"$f":"[1]ACS_16_5YR_B17001_with_ann!DI270","v":80},{"$f":"[1]ACS_16_5YR_B17001_with_ann!DJ270","v":164},{"$f":"[1]ACS_16_5YR_B17001_with_ann!DK270","v":52},{"$f":"[1]ACS_16_5YR_B17001_with_ann!DL270","v":267},{"$f":"[1]ACS_16_5YR_B17001_with_ann!DM270","v":97},{"$f":"[1]ACS_16_5YR_B17001_with_ann!DN270","v":229},{"$f":"[1]ACS_16_5YR_B17001_with_ann!DO270","v":66},{"$f":"[1]ACS_16_5YR_B17001_with_ann!DP270","v":149},{"$f":"[1]ACS_16_5YR_B17001_with_ann!DQ270","v":64}]
["0600000US3301975060",3301975060,"060","Sunapee",{"$f":"[1]ACS_16_5YR_B17001_with_ann!D269","v":1084},{"$f":"[1]ACS_16_5YR_B17001_with_ann!E269","v":198},{"$f":"[1]ACS_16_5YR_B17001_with_ann!F269","v":73},{"$f":"[1]ACS_16_5YR_B17001_with_ann!G269","v":52},{"$f":"[1]ACS_16_5YR_B17001_with_ann!H269","v":59},{"$f":"[1]ACS_16_5YR_B17001_with_ann!I269","v":43},{"$f":"[1]ACS_16_5YR_B17001_with_ann!J269","v":0},{"$f":"[1]ACS_16_5YR_B17001_with_ann!K269","v":11},{"$f":"[1]ACS_16_5YR_B17001_with_ann!L269","v":0},{"$f":"[1]ACS_16_5YR_B17001_with_ann!M269","v":11},{"$f":"[1]ACS_16_5YR_B17001_with_ann!N269","v":0},{"$f":"[1]ACS_16_5YR_B17001_with_ann!O269","v":11},{"$f":"[1]ACS_16_5YR_B17001_with_ann!P269","v":0},{"$f":"[1]ACS_16_5YR_B17001_with_ann!Q269","v":11},{"$f":"[1]ACS_16_5YR_B17001_with_ann!R269","v":3},{"$f":"[1]ACS_16_5YR_B17001_with_ann!S269","v":5},{"$f":"[1]ACS_16_5YR_B17001_with_ann!T269","v":0},{"$f":"[1]ACS_16_5YR_B17001_with_ann!U269","v":11},{"$f":"[1]ACS_16_5YR_B17001_with_ann!V269","v":9},{"$f":"[1]ACS_16_5YR_B17001_with_ann!W269","v":11},{"$f":"[1]ACS_16_5YR_B17001_with_ann!X269","v":20},{"$f":"[1]ACS_16_5YR_B17001_with_ann!Y269","v":33},{"$f":"[1]ACS_16_5YR_B17001_with_ann!Z269","v":0},{"$f":"[1]ACS_16_5YR_B17001_with_ann!AA269","v":11},{"$f":"[1]ACS_16_5YR_B17001_with_ann!AB269","v":10},{"$f":"[1]ACS_16_5YR_B17001_with_ann!AC269","v":11},{"$f":"[1]ACS_16_5YR_B17001_with_ann!AD269","v":0},{"$f":"[1]ACS_16_5YR_B17001_with_ann!AE269","v":11},{"$f":"[1]ACS_16_5YR_B17001_with_ann!AF269","v":8},{"$f":"[1]ACS_16_5YR_B17001_with_ann!AG269","v":8},{"$f":"[1]ACS_16_5YR_B17001_with_ann!AH269","v":9},{"$f":"[1]ACS_16_5YR_B17001_with_ann!AI269","v":15},{"$f":"[1]ACS_16_5YR_B17001_with_ann!AJ269","v":14},{"$f":"[1]ACS_16_5YR_B17001_with_ann!AK269","v":16},{"$f":"[1]ACS_16_5YR_B17001_with_ann!AL269","v":0},{"$f":"[1]ACS_16_5YR_B17001_with_ann!AM269","v":11},{"$f":"[1]ACS_16_5YR_B17001_with_ann!AN269","v":0},{"$f":"[1]ACS_16_5YR_B17001_with_ann!AO269","v":11},{"$f":"[1]ACS_16_5YR_B17001_with_ann!AP269","v":6},{"$f":"[1]ACS_16_5YR_B17001_with_ann!AQ269","v":8},{"$f":"[1]ACS_16_5YR_B17001_with_ann!AR269","v":0},{"$f":"[1]ACS_16_5YR_B17001_with_ann!AS269","v":11},{"$f":"[1]ACS_16_5YR_B17001_with_ann!AT269","v":0},{"$f":"[1]ACS_16_5YR_B17001_with_ann!AU269","v":11},{"$f":"[1]ACS_16_5YR_B17001_with_ann!AV269","v":0},{"$f":"[1]ACS_16_5YR_B17001_with_ann!AW269","v":11},{"$f":"[1]ACS_16_5YR_B17001_with_ann!AX269","v":0},{"$f":"[1]ACS_16_5YR_B17001_with_ann!AY269","v":11},{"$f":"[1]ACS_16_5YR_B17001_with_ann!AZ269","v":0},{"$f":"[1]ACS_16_5YR_B17001_with_ann!BA269","v":11},{"$f":"[1]ACS_16_5YR_B17001_with_ann!BB269","v":0},{"$f":"[1]ACS_16_5YR_B17001_with_ann!BC269","v":11},{"$f":"[1]ACS_16_5YR_B17001_with_ann!BD269","v":8},{"$f":"[1]ACS_16_5YR_B17001_with_ann!BE269","v":8},{"$f":"[1]ACS_16_5YR_B17001_with_ann!BF270","v":42},{"$f":"[1]ACS_16_5YR_B17001_with_ann!BG270","v":50},{"$f":"[1]ACS_16_5YR_B17001_with_ann!BH270","v":4},{"$f":"[1]ACS_16_5YR_B17001_with_ann!BI270","v":8},{"$f":"[1]ACS_16_5YR_B17001_with_ann!BJ270","v":33},{"$f":"[1]ACS_16_5YR_B17001_with_ann!BK270","v":52},{"$f":"[1]ACS_16_5YR_B17001_with_ann!BL270","v":3162},{"$f":"[1]ACS_16_5YR_B17001_with_ann!BM270","v":180},{"$f":"[1]ACS_16_5YR_B17001_with_ann!BN270","v":1649},{"$f":"[1]ACS_16_5YR_B17001_with_ann!BO270","v":150},{"$f":"[1]ACS_16_5YR_B17001_with_ann!BP270","v":88},{"$f":"[1]ACS_16_5YR_B17001_with_ann!BQ270","v":57},{"$f":"[1]ACS_16_5YR_B17001_with_ann!BR270","v":28},{"$f":"[1]ACS_16_5YR_B17001_with_ann!BS270","v":44},{"$f":"[1]ACS_16_5YR_B17001_with_ann!BT270","v":159},{"$f":"[1]ACS_16_5YR_B17001_with_ann!BU270","v":70},{"$f":"[1]ACS_16_5YR_B17001_with_ann!BV270","v":65},{"$f":"[1]ACS_16_5YR_B17001_with_ann!BW270","v":49},{"$f":"[1]ACS_16_5YR_B17001_with_ann!BX270","v":15},{"$f":"[1]ACS_16_5YR_B17001_with_ann!BY270","v":17},{"$f":"[1]ACS_16_5YR_B17001_with_ann!BZ270","v":60},{"$f":"[1]ACS_16_5YR_B17001_with_ann!CA270","v":42},{"$f":"[1]ACS_16_5YR_B17001_with_ann!CB270","v":131},{"$f":"[1]ACS_16_5YR_B17001_with_ann!CC270","v":63},{"$f":"[1]ACS_16_5YR_B17001_with_ann!CD270","v":137},{"$f":"[1]ACS_16_5YR_B17001_with_ann!CE270","v":68},{"$f":"[1]ACS_16_5YR_B17001_with_ann!CF270","v":254},{"$f":"[1]ACS_16_5YR_B17001_with_ann!CG270","v":97},{"$f":"[1]ACS_16_5YR_B17001_with_ann!CH270","v":221},{"$f":"[1]ACS_16_5YR_B17001_with_ann!CI270","v":75},{"$f":"[1]ACS_16_5YR_B17001_with_ann!CJ270","v":200},{"$f":"[1]ACS_16_5YR_B17001_with_ann!CK270","v":73},{"$f":"[1]ACS_16_5YR_B17001_with_ann!CL270","v":176},{"$f":"[1]ACS_16_5YR_B17001_with_ann!CM270","v":58},{"$f":"[1]ACS_16_5YR_B17001_with_ann!CN270","v":115},{"$f":"[1]ACS_16_5YR_B17001_with_ann!CO270","v":59},{"$f":"[1]ACS_16_5YR_B17001_with_ann!CP270","v":1513},{"$f":"[1]ACS_16_5YR_B17001_with_ann!CQ270","v":133},{"$f":"[1]ACS_16_5YR_B17001_with_ann!CR270","v":50},{"$f":"[1]ACS_16_5YR_B17001_with_ann!CS270","v":36},{"$f":"[1]ACS_16_5YR_B17001_with_ann!CT270","v":11},{"$f":"[1]ACS_16_5YR_B17001_with_ann!CU270","v":17},{"$f":"[1]ACS_16_5YR_B17001_with_ann!CV270","v":56},{"$f":"[1]ACS_16_5YR_B17001_with_ann!CW270","v":48},{"$f":"[1]ACS_16_5YR_B17001_with_ann!CX271","v":46},{"$f":"[1]ACS_16_5YR_B17001_with_ann!CY271","v":31},{"$f":"[1]ACS_16_5YR_B17001_with_ann!CZ271","v":0},{"$f":"[1]ACS_16_5YR_B17001_with_ann!DA271","v":11},{"$f":"[1]ACS_16_5YR_B17001_with_ann!DB271","v":5},{"$f":"[1]ACS_16_5YR_B17001_with_ann!DC271","v":7},{"$f":"[1]ACS_16_5YR_B17001_with_ann!DD271","v":38},{"$f":"[1]ACS_16_5YR_B17001_with_ann!DE271","v":28},{"$f":"[1]ACS_16_5YR_B17001_with_ann!DF271","v":40},{"$f":"[1]ACS_16_5YR_B17001_with_ann!DG271","v":23},{"$f":"[1]ACS_16_5YR_B17001_with_ann!DH271","v":65},{"$f":"[1]ACS_16_5YR_B17001_with_ann!DI271","v":25},{"$f":"[1]ACS_16_5YR_B17001_with_ann!DJ271","v":71},{"$f":"[1]ACS_16_5YR_B17001_with_ann!DK271","v":26},{"$f":"[1]ACS_16_5YR_B17001_with_ann!DL271","v":157},{"$f":"[1]ACS_16_5YR_B17001_with_ann!DM271","v":41},{"$f":"[1]ACS_16_5YR_B17001_with_ann!DN271","v":110},{"$f":"[1]ACS_16_5YR_B17001_with_ann!DO271","v":29},{"$f":"[1]ACS_16_5YR_B17001_with_ann!DP271","v":39},{"$f":"[1]ACS_16_5YR_B17001_with_ann!DQ271","v":15}]
["0600000US3301977940",3301977940,"060","Unity",{"$f":"[1]ACS_16_5YR_B17001_with_ann!D270","v":3449},{"$f":"[1]ACS_16_5YR_B17001_with_ann!E270","v":19},{"$f":"[1]ACS_16_5YR_B17001_with_ann!F270","v":287},{"$f":"[1]ACS_16_5YR_B17001_with_ann!G270","v":179},{"$f":"[1]ACS_16_5YR_B17001_with_ann!H270","v":143},{"$f":"[1]ACS_16_5YR_B17001_with_ann!I270","v":85},{"$f":"[1]ACS_16_5YR_B17001_with_ann!J270","v":9},{"$f":"[1]ACS_16_5YR_B17001_with_ann!K270","v":13},{"$f":"[1]ACS_16_5YR_B17001_with_ann!L270","v":0},{"$f":"[1]ACS_16_5YR_B17001_with_ann!M270","v":11},{"$f":"[1]ACS_16_5YR_B17001_with_ann!N270","v":0},{"$f":"[1]ACS_16_5YR_B17001_with_ann!O270","v":11},{"$f":"[1]ACS_16_5YR_B17001_with_ann!P270","v":0},{"$f":"[1]ACS_16_5YR_B17001_with_ann!Q270","v":11},{"$f":"[1]ACS_16_5YR_B17001_with_ann!R270","v":0},{"$f":"[1]ACS_16_5YR_B17001_with_ann!S270","v":11},{"$f":"[1]ACS_16_5YR_B17001_with_ann!T270","v":10},{"$f":"[1]ACS_16_5YR_B17001_with_ann!U270","v":16},{"$f":"[1]ACS_16_5YR_B17001_with_ann!V270","v":11},{"$f":"[1]ACS_16_5YR_B17001_with_ann!W270","v":15},{"$f":"[1]ACS_16_5YR_B17001_with_ann!X270","v":11},{"$f":"[1]ACS_16_5YR_B17001_with_ann!Y270","v":16},{"$f":"[1]ACS_16_5YR_B17001_with_ann!Z270","v":0},{"$f":"[1]ACS_16_5YR_B17001_with_ann!AA270","v":11},{"$f":"[1]ACS_16_5YR_B17001_with_ann!AB270","v":22},{"$f":"[1]ACS_16_5YR_B17001_with_ann!AC270","v":30},{"$f":"[1]ACS_16_5YR_B17001_with_ann!AD270","v":80},{"$f":"[1]ACS_16_5YR_B17001_with_ann!AE270","v":74},{"$f":"[1]ACS_16_5YR_B17001_with_ann!AF270","v":0},{"$f":"[1]ACS_16_5YR_B17001_with_ann!AG270","v":11},{"$f":"[1]ACS_16_5YR_B17001_with_ann!AH270","v":0},{"$f":"[1]ACS_16_5YR_B17001_with_ann!AI270","v":11},{"$f":"[1]ACS_16_5YR_B17001_with_ann!AJ270","v":144},{"$f":"[1]ACS_16_5YR_B17001_with_ann!AK270","v":122},{"$f":"[1]ACS_16_5YR_B17001_with_ann!AL270","v":11},{"$f":"[1]ACS_16_5YR_B17001_with_ann!AM270","v":19},{"$f":"[1]ACS_16_5YR_B17001_with_ann!AN270","v":0},{"$f":"[1]ACS_16_5YR_B17001_with_ann!AO270","v":11},{"$f":"[1]ACS_16_5YR_B17001_with_ann!AP270","v":0},{"$f":"[1]ACS_16_5YR_B17001_with_ann!AQ270","v":11},{"$f":"[1]ACS_16_5YR_B17001_with_ann!AR270","v":35},{"$f":"[1]ACS_16_5YR_B17001_with_ann!AS270","v":53},{"$f":"[1]ACS_16_5YR_B17001_with_ann!AT270","v":0},{"$f":"[1]ACS_16_5YR_B17001_with_ann!AU270","v":11},{"$f":"[1]ACS_16_5YR_B17001_with_ann!AV270","v":0},{"$f":"[1]ACS_16_5YR_B17001_with_ann!AW270","v":11},{"$f":"[1]ACS_16_5YR_B17001_with_ann!AX270","v":0},{"$f":"[1]ACS_16_5YR_B17001_with_ann!AY270","v":11},{"$f":"[1]ACS_16_5YR_B17001_with_ann!AZ270","v":19},{"$f":"[1]ACS_16_5YR_B17001_with_ann!BA270","v":16},{"$f":"[1]ACS_16_5YR_B17001_with_ann!BB270","v":0},{"$f":"[1]ACS_16_5YR_B17001_with_ann!BC270","v":11},{"$f":"[1]ACS_16_5YR_B17001_with_ann!BD270","v":0},{"$f":"[1]ACS_16_5YR_B17001_with_ann!BE270","v":11},{"$f":"[1]ACS_16_5YR_B17001_with_ann!BF271","v":21},{"$f":"[1]ACS_16_5YR_B17001_with_ann!BG271","v":20},{"$f":"[1]ACS_16_5YR_B17001_with_ann!BH271","v":3},{"$f":"[1]ACS_16_5YR_B17001_with_ann!BI271","v":4},{"$f":"[1]ACS_16_5YR_B17001_with_ann!BJ271","v":0},{"$f":"[1]ACS_16_5YR_B17001_with_ann!BK271","v":11},{"$f":"[1]ACS_16_5YR_B17001_with_ann!BL271","v":1187},{"$f":"[1]ACS_16_5YR_B17001_with_ann!BM271","v":147},{"$f":"[1]ACS_16_5YR_B17001_with_ann!BN271","v":574},{"$f":"[1]ACS_16_5YR_B17001_with_ann!BO271","v":65},{"$f":"[1]ACS_16_5YR_B17001_with_ann!BP271","v":3},{"$f":"[1]ACS_16_5YR_B17001_with_ann!BQ271","v":6},{"$f":"[1]ACS_16_5YR_B17001_with_ann!BR271","v":3},{"$f":"[1]ACS_16_5YR_B17001_with_ann!BS271","v":4},{"$f":"[1]ACS_16_5YR_B17001_with_ann!BT271","v":20},{"$f":"[1]ACS_16_5YR_B17001_with_ann!BU271","v":14},{"$f":"[1]ACS_16_5YR_B17001_with_ann!BV271","v":7},{"$f":"[1]ACS_16_5YR_B17001_with_ann!BW271","v":7},{"$f":"[1]ACS_16_5YR_B17001_with_ann!BX271","v":0},{"$f":"[1]ACS_16_5YR_B17001_with_ann!BY271","v":11},{"$f":"[1]ACS_16_5YR_B17001_with_ann!BZ271","v":6},{"$f":"[1]ACS_16_5YR_B17001_with_ann!CA271","v":6},{"$f":"[1]ACS_16_5YR_B17001_with_ann!CB271","v":42},{"$f":"[1]ACS_16_5YR_B17001_with_ann!CC271","v":25},{"$f":"[1]ACS_16_5YR_B17001_with_ann!CD271","v":37},{"$f":"[1]ACS_16_5YR_B17001_with_ann!CE271","v":23},{"$f":"[1]ACS_16_5YR_B17001_with_ann!CF271","v":33},{"$f":"[1]ACS_16_5YR_B17001_with_ann!CG271","v":19},{"$f":"[1]ACS_16_5YR_B17001_with_ann!CH271","v":92},{"$f":"[1]ACS_16_5YR_B17001_with_ann!CI271","v":37},{"$f":"[1]ACS_16_5YR_B17001_with_ann!CJ271","v":159},{"$f":"[1]ACS_16_5YR_B17001_with_ann!CK271","v":45},{"$f":"[1]ACS_16_5YR_B17001_with_ann!CL271","v":125},{"$f":"[1]ACS_16_5YR_B17001_with_ann!CM271","v":36},{"$f":"[1]ACS_16_5YR_B17001_with_ann!CN271","v":47},{"$f":"[1]ACS_16_5YR_B17001_with_ann!CO271","v":17},{"$f":"[1]ACS_16_5YR_B17001_with_ann!CP271","v":613},{"$f":"[1]ACS_16_5YR_B17001_with_ann!CQ271","v":96},{"$f":"[1]ACS_16_5YR_B17001_with_ann!CR271","v":14},{"$f":"[1]ACS_16_5YR_B17001_with_ann!CS271","v":15},{"$f":"[1]ACS_16_5YR_B17001_with_ann!CT271","v":0},{"$f":"[1]ACS_16_5YR_B17001_with_ann!CU271","v":11},{"$f":"[1]ACS_16_5YR_B17001_with_ann!CV271","v":28},{"$f":"[1]ACS_16_5YR_B17001_with_ann!CW271","v":18},{"$f":"[1]ACS_16_5YR_B17001_with_ann!CX272","v":27},{"$f":"[1]ACS_16_5YR_B17001_with_ann!CY272","v":16},{"$f":"[1]ACS_16_5YR_B17001_with_ann!CZ272","v":14},{"$f":"[1]ACS_16_5YR_B17001_with_ann!DA272","v":17},{"$f":"[1]ACS_16_5YR_B17001_with_ann!DB272","v":18},{"$f":"[1]ACS_16_5YR_B17001_with_ann!DC272","v":19},{"$f":"[1]ACS_16_5YR_B17001_with_ann!DD272","v":24},{"$f":"[1]ACS_16_5YR_B17001_with_ann!DE272","v":24},{"$f":"[1]ACS_16_5YR_B17001_with_ann!DF272","v":36},{"$f":"[1]ACS_16_5YR_B17001_with_ann!DG272","v":19},{"$f":"[1]ACS_16_5YR_B17001_with_ann!DH272","v":76},{"$f":"[1]ACS_16_5YR_B17001_with_ann!DI272","v":67},{"$f":"[1]ACS_16_5YR_B17001_with_ann!DJ272","v":119},{"$f":"[1]ACS_16_5YR_B17001_with_ann!DK272","v":42},{"$f":"[1]ACS_16_5YR_B17001_with_ann!DL272","v":106},{"$f":"[1]ACS_16_5YR_B17001_with_ann!DM272","v":36},{"$f":"[1]ACS_16_5YR_B17001_with_ann!DN272","v":107},{"$f":"[1]ACS_16_5YR_B17001_with_ann!DO272","v":30},{"$f":"[1]ACS_16_5YR_B17001_with_ann!DP272","v":26},{"$f":"[1]ACS_16_5YR_B17001_with_ann!DQ272","v":14}]
["0600000US3301978980",3301978980,"060","Washington",{"$f":"[1]ACS_16_5YR_B17001_with_ann!D271","v":1317},{"$f":"[1]ACS_16_5YR_B17001_with_ann!E271","v":146},{"$f":"[1]ACS_16_5YR_B17001_with_ann!F271","v":130},{"$f":"[1]ACS_16_5YR_B17001_with_ann!G271","v":74},{"$f":"[1]ACS_16_5YR_B17001_with_ann!H271","v":43},{"$f":"[1]ACS_16_5YR_B17001_with_ann!I271","v":26},{"$f":"[1]ACS_16_5YR_B17001_with_ann!J271","v":0},{"$f":"[1]ACS_16_5YR_B17001_with_ann!K271","v":11},{"$f":"[1]ACS_16_5YR_B17001_with_ann!L271","v":0},{"$f":"[1]ACS_16_5YR_B17001_with_ann!M271","v":11},{"$f":"[1]ACS_16_5YR_B17001_with_ann!N271","v":0},{"$f":"[1]ACS_16_5YR_B17001_with_ann!O271","v":11},{"$f":"[1]ACS_16_5YR_B17001_with_ann!P271","v":0},{"$f":"[1]ACS_16_5YR_B17001_with_ann!Q271","v":11},{"$f":"[1]ACS_16_5YR_B17001_with_ann!R271","v":0},{"$f":"[1]ACS_16_5YR_B17001_with_ann!S271","v":11},{"$f":"[1]ACS_16_5YR_B17001_with_ann!T271","v":0},{"$f":"[1]ACS_16_5YR_B17001_with_ann!U271","v":11},{"$f":"[1]ACS_16_5YR_B17001_with_ann!V271","v":0},{"$f":"[1]ACS_16_5YR_B17001_with_ann!W271","v":11},{"$f":"[1]ACS_16_5YR_B17001_with_ann!X271","v":0},{"$f":"[1]ACS_16_5YR_B17001_with_ann!Y271","v":11},{"$f":"[1]ACS_16_5YR_B17001_with_ann!Z271","v":9},{"$f":"[1]ACS_16_5YR_B17001_with_ann!AA271","v":7},{"$f":"[1]ACS_16_5YR_B17001_with_ann!AB271","v":10},{"$f":"[1]ACS_16_5YR_B17001_with_ann!AC271","v":10},{"$f":"[1]ACS_16_5YR_B17001_with_ann!AD271","v":21},{"$f":"[1]ACS_16_5YR_B17001_with_ann!AE271","v":22},{"$f":"[1]ACS_16_5YR_B17001_with_ann!AF271","v":3},{"$f":"[1]ACS_16_5YR_B17001_with_ann!AG271","v":5},{"$f":"[1]ACS_16_5YR_B17001_with_ann!AH271","v":0},{"$f":"[1]ACS_16_5YR_B17001_with_ann!AI271","v":11},{"$f":"[1]ACS_16_5YR_B17001_with_ann!AJ271","v":87},{"$f":"[1]ACS_16_5YR_B17001_with_ann!AK271","v":53},{"$f":"[1]ACS_16_5YR_B17001_with_ann!AL271","v":0},{"$f":"[1]ACS_16_5YR_B17001_with_ann!AM271","v":11},{"$f":"[1]ACS_16_5YR_B17001_with_ann!AN271","v":0},{"$f":"[1]ACS_16_5YR_B17001_with_ann!AO271","v":11},{"$f":"[1]ACS_16_5YR_B17001_with_ann!AP271","v":0},{"$f":"[1]ACS_16_5YR_B17001_with_ann!AQ271","v":11},{"$f":"[1]ACS_16_5YR_B17001_with_ann!AR271","v":6},{"$f":"[1]ACS_16_5YR_B17001_with_ann!AS271","v":8},{"$f":"[1]ACS_16_5YR_B17001_with_ann!AT271","v":0},{"$f":"[1]ACS_16_5YR_B17001_with_ann!AU271","v":11},{"$f":"[1]ACS_16_5YR_B17001_with_ann!AV271","v":0},{"$f":"[1]ACS_16_5YR_B17001_with_ann!AW271","v":11},{"$f":"[1]ACS_16_5YR_B17001_with_ann!AX271","v":21},{"$f":"[1]ACS_16_5YR_B17001_with_ann!AY271","v":27},{"$f":"[1]ACS_16_5YR_B17001_with_ann!AZ271","v":12},{"$f":"[1]ACS_16_5YR_B17001_with_ann!BA271","v":13},{"$f":"[1]ACS_16_5YR_B17001_with_ann!BB271","v":24},{"$f":"[1]ACS_16_5YR_B17001_with_ann!BC271","v":20},{"$f":"[1]ACS_16_5YR_B17001_with_ann!BD271","v":0},{"$f":"[1]ACS_16_5YR_B17001_with_ann!BE271","v":11},{"$f":"[1]ACS_16_5YR_B17001_with_ann!BF272","v":0},{"$f":"[1]ACS_16_5YR_B17001_with_ann!BG272","v":11},{"$f":"[1]ACS_16_5YR_B17001_with_ann!BH272","v":9},{"$f":"[1]ACS_16_5YR_B17001_with_ann!BI272","v":7},{"$f":"[1]ACS_16_5YR_B17001_with_ann!BJ272","v":3},{"$f":"[1]ACS_16_5YR_B17001_with_ann!BK272","v":4},{"$f":"[1]ACS_16_5YR_B17001_with_ann!BL272","v":1158},{"$f":"[1]ACS_16_5YR_B17001_with_ann!BM272","v":193},{"$f":"[1]ACS_16_5YR_B17001_with_ann!BN272","v":586},{"$f":"[1]ACS_16_5YR_B17001_with_ann!BO272","v":112},{"$f":"[1]ACS_16_5YR_B17001_with_ann!BP272","v":0},{"$f":"[1]ACS_16_5YR_B17001_with_ann!BQ272","v":11},{"$f":"[1]ACS_16_5YR_B17001_with_ann!BR272","v":0},{"$f":"[1]ACS_16_5YR_B17001_with_ann!BS272","v":11},{"$f":"[1]ACS_16_5YR_B17001_with_ann!BT272","v":28},{"$f":"[1]ACS_16_5YR_B17001_with_ann!BU272","v":19},{"$f":"[1]ACS_16_5YR_B17001_with_ann!BV272","v":30},{"$f":"[1]ACS_16_5YR_B17001_with_ann!BW272","v":32},{"$f":"[1]ACS_16_5YR_B17001_with_ann!BX272","v":0},{"$f":"[1]ACS_16_5YR_B17001_with_ann!BY272","v":11},{"$f":"[1]ACS_16_5YR_B17001_with_ann!BZ272","v":3},{"$f":"[1]ACS_16_5YR_B17001_with_ann!CA272","v":5},{"$f":"[1]ACS_16_5YR_B17001_with_ann!CB272","v":29},{"$f":"[1]ACS_16_5YR_B17001_with_ann!CC272","v":26},{"$f":"[1]ACS_16_5YR_B17001_with_ann!CD272","v":43},{"$f":"[1]ACS_16_5YR_B17001_with_ann!CE272","v":25},{"$f":"[1]ACS_16_5YR_B17001_with_ann!CF272","v":66},{"$f":"[1]ACS_16_5YR_B17001_with_ann!CG272","v":60},{"$f":"[1]ACS_16_5YR_B17001_with_ann!CH272","v":107},{"$f":"[1]ACS_16_5YR_B17001_with_ann!CI272","v":44},{"$f":"[1]ACS_16_5YR_B17001_with_ann!CJ272","v":125},{"$f":"[1]ACS_16_5YR_B17001_with_ann!CK272","v":43},{"$f":"[1]ACS_16_5YR_B17001_with_ann!CL272","v":109},{"$f":"[1]ACS_16_5YR_B17001_with_ann!CM272","v":33},{"$f":"[1]ACS_16_5YR_B17001_with_ann!CN272","v":46},{"$f":"[1]ACS_16_5YR_B17001_with_ann!CO272","v":20},{"$f":"[1]ACS_16_5YR_B17001_with_ann!CP272","v":572},{"$f":"[1]ACS_16_5YR_B17001_with_ann!CQ272","v":103},{"$f":"[1]ACS_16_5YR_B17001_with_ann!CR272","v":6},{"$f":"[1]ACS_16_5YR_B17001_with_ann!CS272","v":8},{"$f":"[1]ACS_16_5YR_B17001_with_ann!CT272","v":7},{"$f":"[1]ACS_16_5YR_B17001_with_ann!CU272","v":8},{"$f":"[1]ACS_16_5YR_B17001_with_ann!CV272","v":6},{"$f":"[1]ACS_16_5YR_B17001_with_ann!CW272","v":7},{"$f":"[1]ACS_16_5YR_B17001_with_ann!CX273","v":0},{"$f":"[1]ACS_16_5YR_B17001_with_ann!CY273","v":0},{"$f":"[1]ACS_16_5YR_B17001_with_ann!CZ273","v":0},{"$f":"[1]ACS_16_5YR_B17001_with_ann!DA273","v":0},{"$f":"[1]ACS_16_5YR_B17001_with_ann!DB273","v":0},{"$f":"[1]ACS_16_5YR_B17001_with_ann!DC273","v":0},{"$f":"[1]ACS_16_5YR_B17001_with_ann!DD273","v":0},{"$f":"[1]ACS_16_5YR_B17001_with_ann!DE273","v":0},{"$f":"[1]ACS_16_5YR_B17001_with_ann!DF273","v":0},{"$f":"[1]ACS_16_5YR_B17001_with_ann!DG273","v":0},{"$f":"[1]ACS_16_5YR_B17001_with_ann!DH273","v":0},{"$f":"[1]ACS_16_5YR_B17001_with_ann!DI273","v":0},{"$f":"[1]ACS_16_5YR_B17001_with_ann!DJ273","v":0},{"$f":"[1]ACS_16_5YR_B17001_with_ann!DK273","v":0},{"$f":"[1]ACS_16_5YR_B17001_with_ann!DL273","v":0},{"$f":"[1]ACS_16_5YR_B17001_with_ann!DM273","v":0},{"$f":"[1]ACS_16_5YR_B17001_with_ann!DN273","v":0},{"$f":"[1]ACS_16_5YR_B17001_with_ann!DO273","v":0},{"$f":"[1]ACS_16_5YR_B17001_with_ann!DP273","v":0},{"$f":"[1]ACS_16_5YR_B17001_with_ann!DQ273","v":0}]
[]
[null,null,null,null,{"$f":"$D$3","v":"Acworth"},null,{"$f":"$D$4","v":"Charlestown"},null,{"$f":"$D$5","v":"Claremont"},null,{"$f":"$D$6","v":"Cornish"},null,{"$f":"$D$7","v":"Croydon"},null,{"$f":"$D$8","v":"Goshen"},null,{"$f":"$D$9","v":"Grantham"},null,{"$f":"$D$10","v":"Langdon"},null,{"$f":"$D$11","v":"Lempster"},null,{"$f":"$D$12","v":"Newport"},null,{"$f":"$D$13","v":"Plainfield"},null,{"$f":"$D$14","v":"Springfield"},null,{"$f":"$D$15","v":"Sunapee"},null,{"$f":"$D$16","v":"Unity"},null,{"$f":"$D$17","v":"Washington"}]
[null,null,null,null,"Estimate","Margin Of Error","Estimate","Margin Of Error","Estimate","Margin Of Error","Estimate","Margin Of Error","Estimate","Margin Of Error","Estimate","Margin Of Error","Estimate","Margin Of Error","Estimate","Margin Of Error","Estimate","Margin Of Error","Estimate","Margin Of Error","Estimate","Margin Of Error","Estimate","Margin Of Error","Estimate","Margin Of Error",null,"Estimate","Margin Of Error"]
[null,null,null,"Estimate Total:",4140,18,904,134,5007,25,12881,54,1783,217,854,241,675,109,2945,14,704,144,923,176,6246,55,2410,292,1084,198,3449,19,1317,146]
[null,null,null,"Estimate Total: Income in the past 12 months below poverty level:",84,70,34,26,753,318,2117,519,175,172,85,71,96,46,49,65,127,87,75,34,765,368,132,74,73,52,287,179,130,74]
[null,null,null,"Estimate Total: Income in the past 12 months below poverty level: Male:",11,16,24,17,352,169,986,329,108,128,47,45,47,28,0,11,58,50,48,24,303,164,77,44,59,43,143,85,43,26]
[null,null,null,"Estimate Total: Income in the past 12 months below poverty level: Male: Under 5 years",0,11,0,11,42,45,157,100,0,11,7,10,4,9,0,11,6,10,0,11,37,58,0,11,0,11,9,13,0,11]
[null,null,null,"Estimate Total: Income in the past 12 months below poverty level: Male: 5 years",0,11,0,11,36,43,0,18,0,11,0,11,0,11,0,11,0,11,0,11,0,16,0,11,0,11,0,11,0,11]
[null,null,null,"Estimate Total: Income in the past 12 months below poverty level: Male: 6 to 11 years",0,11,0,11,24,34,87,79,11,17,0,11,0,11,0,11,22,22,0,11,0,16,0,11,0,11,0,11,0,11]
[null,null,null,"Estimate Total: Income in the past 12 months below poverty level: Male: 12 to 14 years",0,11,0,11,0,16,34,35,33,50,18,29,0,11,0,11,12,19,0,11,11,18,0,11,0,11,0,11,0,11]
[null,null,null,"Estimate Total: Income in the past 12 months below poverty level: Male: 15 years",0,11,0,11,0,16,15,23,23,35,0,11,0,11,0,11,0,11,0,11,0,16,0,11,3,5,0,11,0,11]
[null,null,null,"Estimate Total: Income in the past 12 months below poverty level: Male: 16 and 17 years",0,11,0,11,6,9,0,18,0,11,0,11,0,11,0,11,0,11,3,4,20,26,0,11,0,11,10,16,0,11]
[null,null,null,"Estimate Total: Income in the past 12 months below poverty level: Male: 18 to 24 years",0,11,0,11,0,16,95,100,10,11,2,4,13,11,0,11,2,3,0,11,94,87,0,11,9,11,11,15,0,11]
[null,null,null,"Estimate Total: Income in the past 12 months below poverty level: Male: 25 to 34 years",1,5,0,11,55,66,111,69,3,5,0,11,2,3,0,11,9,11,0,11,59,87,8,11,20,33,11,16,0,11]
[null,null,null,"Estimate Total: Income in the past 12 months below poverty level: Male: 35 to 44 years",0,11,6,10,17,28,88,59,4,6,0,11,9,10,0,11,5,5,12,14,0,16,0,11,0,11,0,11,9,7]
[null,null,null,"Estimate Total: Income in the past 12 months below poverty level: Male: 45 to 54 years",0,11,0,11,0,16,219,148,15,22,12,19,5,5,0,11,0,11,21,17,14,24,10,11,10,11,22,30,10,10]
[null,null,null,"Estimate Total: Income in the past 12 months below poverty level: Male: 55 to 64 years",9,15,13,13,109,103,151,69,3,4,6,9,0,11,0,11,0,11,4,5,68,67,35,25,0,11,80,74,21,22]
[null,null,null,"Estimate Total: Income in the past 12 months below poverty level: Male: 65 to 74 years",0,11,3,4,0,16,17,17,6,9,0,11,14,17,0,11,2,3,8,12,0,16,24,30,8,8,0,11,3,5]
[null,null,null,"Estimate Total: Income in the past 12 months below poverty level: Male: 75 years and over",1,3,2,3,63,87,12,20,0,11,2,3,0,11,0,11,0,11,0,11,0,16,0,11,9,15,0,11,0,11]
[null,null,null,"Estimate Total: Income in the past 12 months below poverty level: Female:",73,67,10,12,401,199,1131,279,67,48,38,32,49,27,49,65,69,44,27,19,462,233,55,35,14,16,144,122,87,53]
[null,null,null,"Estimate Total: Income in the past 12 months below poverty level: Female: Under 5 years",0,11,0,11,25,35,137,84,4,6,0,11,7,9,0,11,2,3,3,4,0,16,0,11,0,11,11,19,0,11]
[null,null,null,"Estimate Total: Income in the past 12 months below poverty level: Female: 5 years",0,11,0,11,0,16,0,18,0,11,0,11,0,11,0,11,0,11,0,11,0,16,0,11,0,11,0,11,0,11]
[null,null,null,"Estimate Total: Income in the past 12 months below poverty level: Female: 6 to 11 years",0,11,0,11,20,32,184,104,19,22,0,11,5,9,0,11,19,24,0,11,89,99,0,11,6,8,0,11,0,11]
[null,null,null,"Estimate Total: Income in the past 12 months below poverty level: Female: 12 to 14 years",0,11,0,11,0,16,46,43,0,11,7,13,0,11,0,11,7,11,0,11,0,16,0,11,0,11,35,53,6,8]
[null,null,null,"Estimate Total: Income in the past 12 months below poverty level: Female: 15 years",0,11,0,11,0,16,33,36,0,11,0,11,3,6,0,11,0,11,0,11,0,16,0,11,0,11,0,11,0,11]
[null,null,null,"Estimate Total: Income in the past 12 months below poverty level: Female: 16 and 17 years",0,11,0,11,0,16,0,18,5,7,0,11,2,4,18,25,0,11,0,11,15,24,0,11,0,11,0,11,0,11]
[null,null,null,"Estimate Total: Income in the past 12 months below poverty level: Female: 18 to 24 years",11,19,0,11,9,17,46,35,5,7,0,11,0,11,0,11,6,10,0,11,111,79,0,11,0,11,0,11,21,27]
[null,null,null,"Estimate Total: Income in the past 12 months below poverty level: Female: 25 to 34 years",0,11,0,11,116,108,228,118,8,9,0,11,2,3,0,11,20,16,13,15,48,56,0,11,0,11,19,16,12,13]
[null,null,null,"Estimate Total: Income in the past 12 months below poverty level: Female: 35 to 44 years",6,11,3,4,111,81,124,64,16,19,11,13,0,11,0,11,0,11,0,11,48,77,4,7,0,11,0,11,24,20]
[null,null,null,"Estimate Total: Income in the past 12 months below poverty level: Female: 45 to 54 years",40,59,7,11,24,40,202,111,4,6,3,6,7,13,31,43,5,4,0,11,92,83,16,18,8,8,0,11,0,11]
[null,null,null,"Estimate Total: Income in the past 12 months below poverty level: Female: 55 to 64 years",16,17,0,11,65,74,3,4,15,16,14,13,0,11,8,12,11,9,26,30,0,11,0,11,42,50,21,20,0,11]
[null,null,null,"Estimate Total: Income in the past 12 months below poverty level: Female: 65 to 74 years",0,11,0,11,0,16,0,11,2,4,9,11,0,11,2,3,0,11,33,53,30,28,0,11,4,8,3,4,9,7]
[null,null,null,"Estimate Total: Income in the past 12 months below poverty level: Female: 75 years and over",0,11,0,11,31,35,3,5,0,11,0,11,0,11,0,11,0,11,0,16,5,7,0,11,33,52,0,11,3,4]
[null,null,null,"Estimate Total: Income in the past 12 months at or above poverty level:",4056,73,870,136,4254,317,1608,156,769,234,579,101,2896,69,577,113,848,175,5481,372,2278,305,1011,205,3162,180,1187,147,1158,193]
[null,null,null,"Estimate Total: Income in the past 12 months at or above poverty level: Male:",1994,141,461,83,2162,254,814,92,376,103,296,63,1382,143,284,62,384,76,2914,251,1168,182,516,112,1649,150,574,65,586,112]
[null,null,null,"Estimate Total: Income in the past 12 months at or above poverty level: Male: Under 5 years",211,96,21,14,147,111,35,19,4,6,14,13,0,11,10,8,31,21,148,84,32,34,3,5,88,57,3,6,0,11]
[null,null,null,"Estimate Total: Income in the past 12 months at or above poverty level: Male: 5 years",14,24,3,5,0,16,12,12,6,7,2,3,41,61,4,8,3,4,55,42,0,11,0,11,28,44,3,4,0,11]
[null,null,null,"Estimate Total: Income in the past 12 months at or above poverty level: Male: 6 to 11 years",121,87,19,15,104,74,36,18,23,17,33,19,76,53,21,15,23,19,128,85,89,47,14,11,159,70,20,14,28,19]
[null,null,null,"Estimate Total: Income in the past 12 months at or above poverty level: Male: 12 to 14 years",24,25,8,11,28,24,35,21,5,6,0,11,89,49,8,9,2,4,123,107,60,40,21,12,65,49,7,7,30,32]
[null,null,null,"Estimate Total: Income in the past 12 months at or above poverty level: Male: 15 years",11,17,2,3,15,26,0,11,3,4,0,11,0,11,2,4,3,4,21,33,5,8,0,11,15,17,0,11,0,11]
[null,null,null,"Estimate Total: Income in the past 12 months at or above poverty level: Male: 16 and 17 years",8,11,0,11,37,41,19,17,1,3,11,11,65,53,7,8,2,4,136,108,76,48,34,27,60,42,6,6,3,5]
[null,null,null,"Estimate Total: Income in the past 12 months at or above poverty level: Male: 18 to 24 years",172,109,18,16,155,99,37,19,37,30,4,6,60,50,6,7,12,11,284,141,129,79,19,17,131,63,42,25,29,26]
[null,null,null,"Estimate Total: Income in the past 12 months at or above poverty level: Male: 25 to 34 years",233,102,61,30,280,114,45,20,48,32,24,17,88,65,36,21,22,12,317,126,91,40,55,43,137,68,37,23,43,25]
[null,null,null,"Estimate Total: Income in the past 12 months at or above poverty level: Male: 35 to 44 years",249,71,25,14,306,118,78,31,38,21,41,19,112,54,35,16,62,31,317,138,104,45,69,39,254,97,33,19,66,60]
[null,null,null,"Estimate Total: Income in the past 12 months at or above poverty level: Male: 45 to 54 years",304,75,63,32,261,98,95,33,43,26,63,31,355,127,45,22,74,43,349,135,210,70,82,41,221,75,92,37,107,44]
[null,null,null,"Estimate Total: Income in the past 12 months at or above poverty level: Male: 55 to 64 years",361,67,106,35,341,105,172,41,99,50,39,21,146,85,58,27,76,26,514,169,162,38,64,28,200,73,159,45,125,43]
[null,null,null,"Estimate Total: Income in the past 12 months at or above poverty level: Male: 65 to 74 years",175,60,85,27,261,94,184,48,38,22,45,21,156,69,37,14,60,26,405,161,154,52,103,42,176,58,125,36,109,33]
[null,null,null,"Estimate Total: Income in the past 12 months at or above poverty level: Male: 75 years and over",111,41,50,23,227,86,66,32,31,16,20,14,194,86,15,9,14,11,117,81,56,35,52,32,115,59,47,17,46,20]
[null,null,null,"Estimate Total: Income in the past 12 months at or above poverty level: Female:",2062,147,409,73,2092,250,794,92,393,153,283,55,1514,137,293,59,464,123,2567,300,1110,153,495,115,1513,133,613,96,572,103]
[null,null,null,"Estimate Total: Income in the past 12 months at or above poverty level: Female: Under 5 years",102,54,16,13,86,66,22,15,12,11,14,12,0,11,14,12,32,22,100,62,50,55,11,17,50,36,14,15,6,8]
[null,null,null,"Estimate Total: Income in the past 12 months at or above poverty level: Female: 5 years",19,23,0,11,44,74,4,6,0,11,0,11,24,35,2,4,13,15,0,16,11,17,16,20,11,17,0,11,7,8]
[null,null,null,"Estimate Total: Income in the past 12 months at or above poverty level: Female: 6 to 11 years",142,70,9,7,179,76,32,22,19,13,27,18,93,66,18,15,43,38,130,89,93,53,12,18,56,48,28,18,6,7]
[null,null,null,"Estimate Total: Income in the past 12 months at or above poverty level: Female: 12 to 14 years",6,7,120,66,55,29,11,9,0,11,79,66,5,6,3,5,96,76,35,20,13,13,10,16,46,31,27,16,0,0]
[null,null,null,"Estimate Total: Income in the past 12 months at or above poverty level: Female: 15 years",0,11,41,47,0,11,3,5,10,10,0,11,0,11,0,11,53,78,27,41,15,13,62,58,0,11,14,17,0,0]
[null,null,null,"Estimate Total: Income in the past 12 months at or above poverty level: Female: 16 and 17 years",9,14,16,28,4,6,16,22,0,11,36,40,2,5,62,56,23,30,14,15,8,8,23,27,5,7,18,19,0,0]
[null,null,null,"Estimate Total: Income in the past 12 months at or above poverty level: Female: 18 to 24 years",13,11,19,25,17,13,77,91,17,22,90,72,19,20,7,10,112,71,55,35,11,18,98,45,38,28,24,24,0,0]
[null,null,null,"Estimate Total: Income in the past 12 months at or above poverty level: Female: 25 to 34 years",34,21,213,118,48,24,47,29,50,27,24,36,24,15,34,15,249,105,118,43,26,19,133,61,40,23,36,19,0,0]
[null,null,null,"Estimate Total: Income in the past 12 months at or above poverty level: Female: 35 to 44 years",42,26,147,101,72,27,17,18,27,15,227,90,30,16,36,26,438,139,122,46,37,34,261,80,65,25,76,67,0,0]
[null,null,null,"Estimate Total: Income in the past 12 months at or above poverty level: Female: 45 to 54 years",48,25,232,99,108,36,51,28,27,15,294,114,54,23,56,34,481,131,163,60,94,40,164,52,71,26,119,42,0,0]
[null,null,null,"Estimate Total: Income in the past 12 months at or above poverty level: Female: 55 to 64 years",90,29,501,162,177,46,72,32,42,18,344,147,77,30,88,31,321,126,216,44,102,41,267,97,157,41,106,36,0,0]
[null,null,null,"Estimate Total: Income in the past 12 months at or above poverty level: Female: 65 to 74 years",117,42,296,120,172,43,47,24,40,19,139,53,33,11,51,23,279,126,151,51,112,42,229,66,110,29,107,30,0,0]
[null,null,null,"Estimate Total: Income in the past 12 months at or above poverty level: Female: 75 years and over",25,14,198,84,83,32,21,12,29,13,164,75,15,8,39,26,285,103,55,34,38,26,149,64,39,15,26,14,0,0]
[]
[]
[null,null,null,null,{"$f":"E20","v":"Estimate"},null,{"$f":"G20","v":"Estimate"},null,{"$f":"I20","v":"Estimate"},null,{"$f":"K20","v":"Estimate"},null,{"$f":"M20","v":"Estimate"},null,{"$f":"O20","v":"Estimate"},null,{"$f":"Q20","v":"Estimate"},null,{"$f":"S20","v":"Estimate"},null,{"$f":"U20","v":"Estimate"},null,{"$f":"W20","v":"Estimate"},null,{"$f":"Y20","v":"Estimate"},null,{"$f":"AA20","v":"Estimate"},null,{"$f":"AC20","v":"Estimate"}]
[null,null,null,null,{"$f":"#REF!","v":{"$error":"#REF!"}},{"$f":"#REF!","v":{"$error":"#REF!"}},{"$f":"#REF!","v":{"$error":"#REF!"}},{"$f":"#REF!","v":{"$error":"#REF!"}},{"$f":"#REF!","v":{"$error":"#REF!"}},{"$f":"#REF!","v":{"$error":"#REF!"}},{"$f":"#REF!","v":{"$error":"#REF!"}},{"$f":"#REF!","v":{"$error":"#REF!"}},{"$f":"#REF!","v":{"$error":"#REF!"}},{"$f":"#REF!","v":{"$error":"#REF!"}},{"$f":"#REF!","v":{"$error":"#REF!"}},{"$f":"#REF!","v":{"$error":"#REF!"}},{"$f":"#REF!","v":{"$error":"#REF!"}},{"$f":"#REF!","v":{"$error":"#REF!"}},{"$f":"#REF!","v":{"$error":"#REF!"}},{"$f":"#REF!","v":{"$error":"#REF!"}},{"$f":"#REF!","v":{"$error":"#REF!"}},{"$f":"#REF!","v":{"$error":"#REF!"}},{"$f":"#REF!","v":{"$error":"#REF!"}},{"$f":"#REF!","v":{"$error":"#REF!"}},{"$f":"#REF!","v":{"$error":"#REF!"}},{"$f":"#REF!","v":{"$error":"#REF!"}},{"$f":"#REF!","v":{"$error":"#REF!"}},{"$f":"#REF!","v":{"$error":"#REF!"}},{"$f":"#REF!","v":{"$error":"#REF!"}},{"$f":"#REF!","v":{"$error":"#REF!"}}]
[null,null,null,"POPULATION FOR WHOM POVERTY STATUS IS DETERMINED: Total ",{"$f":"E21","v":4140},18,904,134,5007,25,12881,54,1783,217,854,241,675,109,2945,14,704,144,923,176,6246,55,{"$f":"AA21","v":2410},292,1084,198]
[null,null,null," Income in the past 12 months below poverty level ",{"$f":"E22","v":84},70,34,26,753,318,2117,519,175,172,85,71,96,46,49,65,127,87,75,34,765,368,132,74,73,52]
[null,null,null," Income in the past 12 months below poverty level Under 5 years ",{"$f":"E24+E38","v":0},{"$f":"ROUND((SQRT(((F24/1.645)*(F24/1.645))+((F38/1.645)*(F38/1.645))))*1.645,0)","v":16},{"$f":"G24+G38","v":0},{"$f":"ROUND((SQRT(((H24/1.645)*(H24/1.645))+((H38/1.645)*(H38/1.645))))*1.645,0)","v":16},{"$f":"I24+I38","v":67},{"$f":"ROUND((SQRT(((J24/1.645)*(J24/1.645))+((J38/1.645)*(J38/1.645))))*1.645,0)","v":57},{"$f":"K24+K38","v":294},{"$f":"ROUND((SQRT(((L24/1.645)*(L24/1.645))+((L38/1.645)*(L38/1.645))))*1.645,0)","v":131},{"$f":"M24+M38","v":4},{"$f":"ROUND((SQRT(((N24/1.645)*(N24/1.645))+((N38/1.645)*(N38/1.645))))*1.645,0)","v":13},{"$f":"O24+O38","v":7},{"$f":"ROUND((SQRT(((P24/1.645)*(P24/1.645))+((P38/1.645)*(P38/1.645))))*1.645,0)","v":15},{"$f":"Q24+Q38","v":11},{"$f":"ROUND((SQRT(((R24/1.645)*(R24/1.645))+((R38/1.645)*(R38/1.645))))*1.645,0)","v":13},{"$f":"S24+S38","v":0},{"$f":"ROUND((SQRT(((T24/1.645)*(T24/1.645))+((T38/1.645)*(T38/1.645))))*1.645,0)","v":16},{"$f":"U24+U38","v":8},{"$f":"ROUND((SQRT(((V24/1.645)*(V24/1.645))+((V38/1.645)*(V38/1.645))))*1.645,0)","v":10},{"$f":"W24+W38","v":3},{"$f":"ROUND((SQRT(((X24/1.645)*(X24/1.645))+((X38/1.645)*(X38/1.645))))*1.645,0)","v":12},{"$f":"Y24+Y38","v":37},{"$f":"ROUND((SQRT(((Z24/1.645)*(Z24/1.645))+((Z38/1.645)*(Z38/1.645))))*1.645,0)","v":60},{"$f":"AA24+AA38","v":0},{"$f":"ROUND((SQRT(((AB24/1.645)*(AB24/1.645))+((AB38/1.645)*(AB38/1.645))))*1.645,0)","v":16},{"$f":"AC24+AC38","v":0},{"$f":"ROUND((SQRT(((AD24/1.645)*(AD24/1.645))+((AD38/1.645)*(AD38/1.645))))*1.645,0)","v":16}]
[null,null,null," Income in the past 12 months below poverty level 5 years ",{"$f":"E25+E39","v":0},{"$f":"ROUND((SQRT(((F25/1.645)*(F25/1.645))+((F39/1.645)*(F39/1.645))))*1.645,0)","v":16},{"$f":"G25+G39","v":0},16,36,46,0,25,0,16,0,16,0,16,0,16,0,16,0,16,0,23,0,16,0,16]
[null,null,null," Income in the past 12 months below poverty level 6 to 11 years ",{"$f":"E26+E40","v":0},16,0,16,44,47,271,131,30,28,0,16,5,14,0,16,41,33,0,16,89,100,0,16,6,14]
[null,null,null," Income in the past 12 months below poverty level 12 to 14 years ",0,16,0,16,0,23,80,55,33,51,25,32,0,16,0,16,19,22,0,16,11,24,0,16,0,16]
[null,null,null," Income in the past 12 months below poverty level 15 years ",0,16,0,16,0,23,48,43,23,37,0,16,3,13,0,16,0,16,0,16,0,23,0,16,3,12]
[null,null,null," Income in the past 12 months below poverty level 16 and 17 years ",0,16,0,16,6,18,0,25,5,13,0,16,2,12,18,27,0,16,3,12,35,35,0,16,0,16]
[null,null,null," Income in the past 12 months below poverty level 18 to 24 years ",11,22,0,16,9,23,141,106,15,13,2,12,13,16,0,16,8,10,0,16,205,118,0,16,9,16]
[null,null,null," Income in the past 12 months below poverty level 25 to 34 years ",1,12,0,16,171,127,339,137,11,10,0,16,4,4,0,16,29,19,13,19,107,103,8,16,20,35]
[null,null,null," Income in the past 12 months below poverty level 35 to 44 years ",6,16,9,11,128,86,212,87,20,20,11,17,9,15,0,16,5,12,12,18,48,79,4,13,0,16]
[null,null,null," Income in the past 12 months below poverty level 45 to 54 years ",40,60,7,16,24,43,421,185,19,23,15,20,12,14,31,44,5,12,21,20,106,86,26,21,18,14]
[null,null,null," Income in the past 12 months below poverty level 55 to 64 years ",25,23,13,17,174,127,154,69,18,16,20,16,0,16,8,16,11,14,30,30,68,68,35,27,42,51]
[null,null,null," Income in the past 12 months below poverty level 65 to 74 years ",0,16,3,12,0,23,17,20,8,10,9,16,14,20,2,11,2,11,41,54,30,32,24,32,12,11]
[null,null,null," Income in the past 12 months below poverty level 75 years and over ",1,11,2,11,94,94,15,21,0,16,2,11,0,16,0,16,0,16,0,19,5,17,0,16,42,54]
[null,null,null," Income in the past 12 months at or above poverty level ",{"$f":"E51","v":4056},73,870,136,4254,317,1608,156,769,234,579,101,2896,69,577,113,848,175,5481,372,2278,305,{"$f":"AA51","v":1011},{"$f":"AB51","v":205},{"$f":"AC51","v":3162},{"$f":"AD51","v":180}]
[null,null,null," Income in the past 12 months at or above poverty level Under 5 years ",{"$f":"E53+E67","v":313},{"$f":"ROUND((SQRT(((F38/1.645)*(F38/1.645))+((F52/1.645)*(F52/1.645))))*1.645,0)","v":141},{"$f":"G53+G67","v":37},84,{"$f":"I53+I67","v":233},{"$f":"ROUND((SQRT(((J38/1.645)*(J38/1.645))+((J52/1.645)*(J52/1.645))))*1.645,0)","v":256},{"$f":"K53+K67","v":57},{"$f":"ROUND((SQRT(((L38/1.645)*(L38/1.645))+((L52/1.645)*(L52/1.645))))*1.645,0)","v":125},{"$f":"M53+M67","v":16},{"$f":"ROUND((SQRT(((N38/1.645)*(N38/1.645))+((N52/1.645)*(N52/1.645))))*1.645,0)","v":103},{"$f":"O53+O67","v":28},{"$f":"ROUND((SQRT(((P38/1.645)*(P38/1.645))+((P52/1.645)*(P52/1.645))))*1.645,0)","v":64},{"$f":"Q53+Q67","v":0},{"$f":"ROUND((SQRT(((R38/1.645)*(R38/1.645))+((R52/1.645)*(R52/1.645))))*1.645,0)","v":143},{"$f":"S53+S67","v":24},{"$f":"ROUND((SQRT(((T38/1.645)*(T38/1.645))+((T52/1.645)*(T52/1.645))))*1.645,0)","v":63},{"$f":"U53+U67","v":63},{"$f":"ROUND((SQRT(((V38/1.645)*(V38/1.645))+((V52/1.645)*(V52/1.645))))*1.645,0)","v":76},{"$f":"W53+W67","v":248},{"$f":"ROUND((SQRT(((X38/1.645)*(X38/1.645))+((X52/1.645)*(X52/1.645))))*1.645,0)","v":251},{"$f":"Y53+Y67","v":82},{"$f":"ROUND((SQRT(((Z38/1.645)*(Z38/1.645))+((Z52/1.645)*(Z52/1.645))))*1.645,0)","v":183},{"$f":"AA53+AA67","v":14},{"$f":"ROUND((SQRT(((AB38/1.645)*(AB38/1.645))+((AB52/1.645)*(AB52/1.645))))*1.645,0)","v":113},{"$f":"AC53+AC67","v":138},{"$f":"ROUND((SQRT(((AD38/1.645)*(AD38/1.645))+((AD52/1.645)*(AD52/1.645))))*1.645,0)","v":150}]
[null,null,null," Income in the past 12 months at or above poverty level 5 years ",33,97,3,18,44,112,16,26,6,13,2,17,65,16,6,14,16,24,55,85,11,38,16,12,39,58]
[null,null,null," Income in the past 12 months at or above poverty level 6 to 11 years ",263,26,28,12,283,36,68,105,42,23,60,11,169,62,39,14,66,24,258,43,182,100,26,16,215,45]
[null,null,null," Income in the past 12 months at or above poverty level 12 to 14 years ",30,88,128,19,83,76,46,47,5,20,79,23,94,54,11,19,98,22,158,86,73,50,31,16,111,71]
[null,null,null," Income in the past 12 months at or above poverty level 15 years ",11,27,43,16,15,29,3,42,13,13,0,16,0,49,2,14,56,12,48,108,20,43,62,16,15,50]
[null,null,null," Income in the past 12 months at or above poverty level 16 and 17 years ",17,20,16,11,41,31,35,21,1,8,47,16,67,12,69,25,25,12,150,35,84,25,57,16,65,20]
[null,null,null," Income in the past 12 months at or above poverty level 18 to 24 years ",185,22,37,16,172,44,114,39,54,8,94,16,79,54,13,14,124,11,339,109,140,92,117,29,169,43]
[null,null,null," Income in the past 12 months at or above poverty level 25 to 34 years ",267,110,274,19,328,147,92,120,98,31,48,13,112,50,70,13,271,19,435,142,117,97,188,20,177,64]
[null,null,null," Income in the past 12 months at or above poverty level 35 to 44 years ",291,103,172,30,378,140,95,67,65,37,268,21,142,66,71,24,500,16,439,126,141,87,330,44,319,69]
[null,null,null," Income in the past 12 months at or above poverty level 45 to 54 years ",352,92,295,18,369,125,146,115,70,22,357,20,409,56,101,46,555,31,512,138,304,94,246,43,292,97]
[null,null,null," Income in the past 12 months at or above poverty level 55 to 64 years ",451,77,607,34,518,123,244,33,141,31,383,34,223,127,146,25,397,44,730,138,264,71,331,42,357,90]
[null,null,null," Income in the past 12 months at or above poverty level 65 to 74 years ",292,68,381,37,433,106,231,42,78,50,184,24,189,86,88,27,339,28,556,177,266,47,332,30,286,73]
[null,null,null," Income in the past 12 months at or above poverty level 75 years and over ",136,61,248,29,310,100,87,48,60,25,184,24,209,70,54,18,299,28,172,162,94,52,201,43,154,78]

{"sheet":"SDataB17010FamilyPovertyStatus","index":31,"n_rows":61,"n_cols":86,"rows_kept":61,"cut":false,"hidden":true,"merged":[]}
["GEO_ID","GEO_ID2","SUMLEVEL","GEO_NAME","B17010_1_EST","B17010_1_MOE","B17010_2_EST","B17010_2_MOE","B17010_3_EST","B17010_3_MOE","B17010_4_EST","B17010_4_MOE","B17010_5_EST","B17010_5_MOE","B17010_6_EST","B17010_6_MOE","B17010_7_EST","B17010_7_MOE","B17010_8_EST","B17010_8_MOE","B17010_9_EST","B17010_9_MOE","B17010_10_EST","B17010_10_MOE","B17010_11_EST","B17010_11_MOE","B17010_12_EST","B17010_12_MOE","B17010_13_EST","B17010_13_MOE","B17010_14_EST","B17010_14_MOE","B17010_15_EST","B17010_15_MOE","B17010_16_EST","B17010_16_MOE","B17010_17_EST","B17010_17_MOE","B17010_18_EST","B17010_18_MOE","B17010_19_EST","B17010_19_MOE","B17010_20_EST","B17010_20_MOE","B17010_21_EST","B17010_21_MOE","B17010_22_EST","B17010_22_MOE","B17010_23_EST","B17010_23_MOE","B17010_24_EST","B17010_24_MOE","B17010_25_EST","B17010_25_MOE","B17010_26_EST","B17010_26_MOE","B17010_27_EST","B17010_27_MOE","B17010_28_EST","B17010_28_MOE","B17010_29_EST","B17010_29_MOE","B17010_30_EST","B17010_30_MOE","B17010_31_EST","B17010_31_MOE","B17010_32_EST","B17010_32_MOE","B17010_33_EST","B17010_33_MOE","B17010_34_EST","B17010_34_MOE","B17010_35_EST","B17010_35_MOE","B17010_36_EST","B17010_36_MOE","B17010_37_EST","B17010_37_MOE","B17010_38_EST","B17010_38_MOE","B17010_39_EST","B17010_39_MOE","B17010_40_EST","B17010_40_MOE","B17010_41_EST","B17010_41_MOE"]
["Geography Identifier","Geography Identifier","Geographic Summary Level","Geography",{"$f":"[1]ACS_16_5YR_B17010_with_ann!D$2","v":"Estimate Total:"},{"$f":"[1]ACS_16_5YR_B17010_with_ann!E$2","v":"Margin of Error Total:"},{"$f":"[1]ACS_16_5YR_B17010_with_ann!F$2","v":"Estimate Total: Income in the past 12 months below poverty level:"},{"$f":"[1]ACS_16_5YR_B17010_with_ann!G$2","v":"Margin of Error Total: Income in the past 12 months below poverty level:"},{"$f":"[1]ACS_16_5YR_B17010_with_ann!H$2","v":"Estimate Total: Income in the past 12 months below poverty level: Married-couple family:"},{"$f":"[1]ACS_16_5YR_B17010_with_ann!I$2","v":"Margin of Error Total: Income in the past 12 months below poverty level: Married-couple family:"},{"$f":"[1]ACS_16_5YR_B17010_with_ann!J$2","v":"Estimate Total: Income in the past 12 months below poverty level: Married-couple family: With related children of the householder under 18 years:"},{"$f":"[1]ACS_16_5YR_B17010_with_ann!K$2","v":"Margin of Error Total: Income in the past 12 months below poverty level: Married-couple family: With related children of the householder under 18 years:"},{"$f":"[1]ACS_16_5YR_B17010_with_ann!L$2","v":"Estimate Total: Income in the past 12 months below poverty level: Married-couple family: With related children of the householder under 18 years: Under 5 years only"},{"$f":"[1]ACS_16_5YR_B17010_with_ann!M$2","v":"Margin of Error Total: Income in the past 12 months below poverty level: Married-couple family: With related children of the householder under 18 years: Under 5 years only"},{"$f":"[1]ACS_16_5YR_B17010_with_ann!N$2","v":"Estimate Total: Income in the past 12 months below poverty level: Married-couple family: With related children of the householder under 18 years: Under 5 years and 5 to 17 years"},{"$f":"[1]ACS_16_5YR_B17010_with_ann!O$2","v":"Margin of Error Total: Income in the past 12 months below poverty level: Married-couple family: With related children of the householder under 18 years: Under 5 years and 5 to 17 years"},{"$f":"[1]ACS_16_5YR_B17010_with_ann!P$2","v":"Estimate Total: Income in the past 12 months below poverty level: Married-couple family: With related children of the householder under 18 years: 5 to 17 years only"},{"$f":"[1]ACS_16_5YR_B17010_with_ann!Q$2","v":"Margin of Error Total: Income in the past 12 months below poverty level: Married-couple family: With related children of the householder under 18 years: 5 to 17 years only"},{"$f":"[1]ACS_16_5YR_B17010_with_ann!R$2","v":"Estimate Total: Income in the past 12 months below poverty level: Married-couple family: No related children of the householder under 18 years"},{"$f":"[1]ACS_16_5YR_B17010_with_ann!S$2","v":"Margin of Error Total: Income in the past 12 months below poverty level: Married-couple family: No related children of the householder under 18 years"},{"$f":"[1]ACS_16_5YR_B17010_with_ann!T$2","v":"Estimate Total: Income in the past 12 months below poverty level: Other family:"},{"$f":"[1]ACS_16_5YR_B17010_with_ann!U$2","v":"Margin of Error Total: Income in the past 12 months below poverty level: Other family:"},{"$f":"[1]ACS_16_5YR_B17010_with_ann!V$2","v":"Estimate Total: Income in the past 12 months below poverty level: Other family: Male householder"},{"$f":"[1]ACS_16_5YR_B17010_with_ann!W$2","v":"Margin of Error Total: Income in the past 12 months below poverty level: Other family: Male householder"},{"$f":"[1]ACS_16_5YR_B17010_with_ann!X$2","v":"Estimate Total: Income in the past 12 months below poverty level: Other family: Male householder"},{"$f":"[1]ACS_16_5YR_B17010_with_ann!Y$2","v":"Margin of Error Total: Income in the past 12 months below poverty level: Other family: Male householder"},{"$f":"[1]ACS_16_5YR_B17010_with_ann!Z$2","v":"Estimate Total: Income in the past 12 months below poverty level: Other family: Male householder"},{"$f":"[1]ACS_16_5YR_B17010_with_ann!AA$2","v":"Margin of Error Total: Income in the past 12 months below poverty level: Other family: Male householder"},{"$f":"[1]ACS_16_5YR_B17010_with_ann!AB$2","v":"Estimate Total: Income in the past 12 months below poverty level: Other family: Male householder"},{"$f":"[1]ACS_16_5YR_B17010_with_ann!AC$2","v":"Margin of Error Total: Income in the past 12 months below poverty level: Other family: Male householder"},{"$f":"[1]ACS_16_5YR_B17010_with_ann!AD$2","v":"Estimate Total: Income in the past 12 months below poverty level: Other family: Male householder"},{"$f":"[1]ACS_16_5YR_B17010_with_ann!AE$2","v":"Margin of Error Total: Income in the past 12 months below poverty level: Other family: Male householder"},{"$f":"[1]ACS_16_5YR_B17010_with_ann!AF$2","v":"Estimate Total: Income in the past 12 months below poverty level: Other family: Male householder"},{"$f":"[1]ACS_16_5YR_B17010_with_ann!AG$2","v":"Margin of Error Total: Income in the past 12 months below poverty level: Other family: Male householder"},{"$f":"[1]ACS_16_5YR_B17010_with_ann!AH$2","v":"Estimate Total: Income in the past 12 months below poverty level: Other family: Female householder"},{"$f":"[1]ACS_16_5YR_B17010_with_ann!AI$2","v":"Margin of Error Total: Income in the past 12 months below poverty level: Other family: Female householder"},{"$f":"[1]ACS_16_5YR_B17010_with_ann!AJ$2","v":"Estimate Total: Income in the past 12 months below poverty level: Other family: Female householder"},{"$f":"[1]ACS_16_5YR_B17010_with_ann!AK$2","v":"Margin of Error Total: Income in the past 12 months below poverty level: Other family: Female householder"},{"$f":"[1]ACS_16_5YR_B17010_with_ann!AL$2","v":"Estimate Total: Income in the past 12 months below poverty level: Other family: Female householder"},{"$f":"[1]ACS_16_5YR_B17010_with_ann!AM$2","v":"Margin of Error Total: Income in the past 12 months below poverty level: Other family: Female householder"},{"$f":"[1]ACS_16_5YR_B17010_with_ann!AN$2","v":"Estimate Total: Income in the past 12 months below poverty level: Other family: Female householder"},{"$f":"[1]ACS_16_5YR_B17010_with_ann!AO$2","v":"Margin of Error Total: Income in the past 12 months below poverty level: Other family: Female householder"},{"$f":"[1]ACS_16_5YR_B17010_with_ann!AP$2","v":"Estimate Total: Income in the past 12 months below poverty level: Other family: Female householder"},{"$f":"[1]ACS_16_5YR_B17010_with_ann!AQ$2","v":"Margin of Error Total: Income in the past 12 months below poverty level: Other family: Female householder"},{"$f":"[1]ACS_16_5YR_B17010_with_ann!AR$2","v":"Estimate Total: Income in the past 12 months below poverty level: Other family: Female householder"},{"$f":"[1]ACS_16_5YR_B17010_with_ann!AS$2","v":"Margin of Error Total: Income in the past 12 months below poverty level: Other family: Female householder"},{"$f":"[1]ACS_16_5YR_B17010_with_ann!AT$2","v":"Estimate Total: Income in the past 12 months at or above poverty level:"},{"$f":"[1]ACS_16_5YR_B17010_with_ann!AU$2","v":"Margin of Error Total: Income in the past 12 months at or above poverty level:"},{"$f":"[1]ACS_16_5YR_B17010_with_ann!AV$2","v":"Estimate Total: Income in the past 12 months at or above poverty level: Married-couple family:"},{"$f":"[1]ACS_16_5YR_B17010_with_ann!AW$2","v":"Margin of Error Total: Income in the past 12 months at or above poverty level: Married-couple family:"},{"$f":"[1]ACS_16_5YR_B17010_with_ann!AX$2","v":"Estimate Total: Income in the past 12 months at or above poverty level: Married-couple family: With related children of the householder under 18 years:"},{"$f":"[1]ACS_16_5YR_B17010_with_ann!AY$2","v":"Margin of Error Total: Income in the past 12 months at or above poverty level: Married-couple family: With related children of the householder under 18 years:"},{"$f":"[1]ACS_16_5YR_B17010_with_ann!AZ$2","v":"Estimate Total: Income in the past 12 months at or above poverty level: Married-couple family: With related children of the householder under 18 years: Under 5 years only"},{"$f":"[1]ACS_16_5YR_B17010_with_ann!BA$2","v":"Margin of Error Total: Income in the past 12 months at or above poverty level: Married-couple family: With related children of the householder under 18 years: Under 5 years only"},{"$f":"[1]ACS_16_5YR_B17010_with_ann!BB$2","v":"Estimate Total: Income in the past 12 months at or above poverty level: Married-couple family: With related children of the householder under 18 years: Under 5 years and 5 to 17 years"},{"$f":"[1]ACS_16_5YR_B17010_with_ann!BC$2","v":"Margin of Error Total: Income in the past 12 months at or above poverty level: Married-couple family: With related children of the householder under 18 years: Under 5 years and 5 to 17 years"},{"$f":"[1]ACS_16_5YR_B17010_with_ann!BD$2","v":"Estimate Total: Income in the past 12 months at or above poverty level: Married-couple family: With related children of the householder under 18 years: 5 to 17 years only"},{"$f":"[1]ACS_16_5YR_B17010_with_ann!BE$2","v":"Margin of Error Total: Income in the past 12 months at or above poverty level: Married-couple family: With related children of the householder under 18 years: 5 to 17 years only"},{"$f":"[1]ACS_16_5YR_B17010_with_ann!BF$2","v":"Estimate Total: Income in the past 12 months at or above poverty level: Married-couple family: No related children of the householder under 18 years"},{"$f":"[1]ACS_16_5YR_B17010_with_ann!BG$2","v":"Margin of Error Total: Income in the past 12 months at or above poverty level: Married-couple family: No related children of the householder under 18 years"},{"$f":"[1]ACS_16_5YR_B17010_with_ann!BH$2","v":"Estimate Total: Income in the past 12 months at or above poverty level: Other family:"},{"$f":"[1]ACS_16_5YR_B17010_with_ann!BI$2","v":"Margin of Error Total: Income in the past 12 months at or above poverty level: Other family:"},{"$f":"[1]ACS_16_5YR_B17010_with_ann!BJ$2","v":"Estimate Total: Income in the past 12 months at or above poverty level: Other family: Male householder"},{"$f":"[1]ACS_16_5YR_B17010_with_ann!BK$2","v":"Margin of Error Total: Income in the past 12 months at or above poverty level: Other family: Male householder"},{"$f":"[1]ACS_16_5YR_B17010_with_ann!BL$2","v":"Estimate Total: Income in the past 12 months at or above poverty level: Other family: Male householder"},{"$f":"[1]ACS_16_5YR_B17010_with_ann!BM$2","v":"Margin of Error Total: Income in the past 12 months at or above poverty level: Other family: Male householder"},{"$f":"[1]ACS_16_5YR_B17010_with_ann!BN$2","v":"Estimate Total: Income in the past 12 months at or above poverty level: Other family: Male householder"},{"$f":"[1]ACS_16_5YR_B17010_with_ann!BO$2","v":"Margin of Error Total: Income in the past 12 months at or above poverty level: Other family: Male householder"},{"$f":"[1]ACS_16_5YR_B17010_with_ann!BP$2","v":"Estimate Total: Income in the past 12 months at or above poverty level: Other family: Male householder"},{"$f":"[1]ACS_16_5YR_B17010_with_ann!BQ$2","v":"Margin of Error Total: Income in the past 12 months at or above poverty level: Other family: Male householder"},{"$f":"[1]ACS_16_5YR_B17010_with_ann!BR$2","v":"Estimate Total: Income in the past 12 months at or above poverty level: Other family: Male householder"},{"$f":"[1]ACS_16_5YR_B17010_with_ann!BS$2","v":"Margin of Error Total: Income in the past 12 months at or above poverty level: Other family: Male householder"},{"$f":"[1]ACS_16_5YR_B17010_with_ann!BT$2","v":"Estimate Total: Income in the past 12 months at or above poverty level: Other family: Male householder"},{"$f":"[1]ACS_16_5YR_B17010_with_ann!BU$2","v":"Margin of Error Total: Income in the past 12 months at or above poverty level: Other family: Male householder"},{"$f":"[1]ACS_16_5YR_B17010_with_ann!BV$2","v":"Estimate Total: Income in the past 12 months at or above poverty level: Other family: Female householder"},{"$f":"[1]ACS_16_5YR_B17010_with_ann!BW$2","v":"Margin of Error Total: Income in the past 12 months at or above poverty level: Other family: Female householder"},{"$f":"[1]ACS_16_5YR_B17010_with_ann!BX$2","v":"Estimate Total: Income in the past 12 months at or above poverty level: Other family: Female householder"},{"$f":"[1]ACS_16_5YR_B17010_with_ann!BY$2","v":"Margin of Error Total: Income in the past 12 months at or above poverty level: Other family: Female householder"},{"$f":"[1]ACS_16_5YR_B17010_with_ann!BZ$2","v":"Estimate Total: Income in the past 12 months at or above poverty level: Other family: Female householder"},{"$f":"[1]ACS_16_5YR_B17010_with_ann!CA$2","v":"Margin of Error Total: Income in the past 12 months at or above poverty level: Other family: Female householder"},{"$f":"[1]ACS_16_5YR_B17010_with_ann!CB$2","v":"Estimate Total: Income in the past 12 months at or above poverty level: Other family: Female householder"},{"$f":"[1]ACS_16_5YR_B17010_with_ann!CC$2","v":"Margin of Error Total: Income in the past 12 months at or above poverty level: Other family: Female householder"},{"$f":"[1]ACS_16_5YR_B17010_with_ann!CD$2","v":"Estimate Total: Income in the past 12 months at or above poverty level: Other family: Female householder"},{"$f":"[1]ACS_16_5YR_B17010_with_ann!CE$2","v":"Margin of Error Total: Income in the past 12 months at or above poverty level: Other family: Female householder"},{"$f":"[1]ACS_16_5YR_B17010_with_ann!CF$2","v":"Estimate Total: Income in the past 12 months at or above poverty level: Other family: Female householder"},{"$f":"[1]ACS_16_5YR_B17010_with_ann!CG$2","v":"Margin of Error Total: Income in the past 12 months at or above poverty level: Other family: Female householder"}]
["0600000US3301900259",3301900259,"060","Acworth",{"$f":"[1]ACS_16_5YR_B17010_with_ann!D258","v":255},{"$f":"[1]ACS_16_5YR_B17010_with_ann!E258","v":43},{"$f":"[1]ACS_16_5YR_B17010_with_ann!F258","v":9},{"$f":"[1]ACS_16_5YR_B17010_with_ann!G258","v":12},{"$f":"[1]ACS_16_5YR_B17010_with_ann!H258","v":9},{"$f":"[1]ACS_16_5YR_B17010_with_ann!I258","v":12},{"$f":"[1]ACS_16_5YR_B17010_with_ann!J258","v":0},{"$f":"[1]ACS_16_5YR_B17010_with_ann!K258","v":11},{"$f":"[1]ACS_16_5YR_B17010_with_ann!L258","v":0},{"$f":"[1]ACS_16_5YR_B17010_with_ann!M258","v":11},{"$f":"[1]ACS_16_5YR_B17010_with_ann!N258","v":0},{"$f":"[1]ACS_16_5YR_B17010_with_ann!O258","v":11},{"$f":"[1]ACS_16_5YR_B17010_with_ann!P258","v":0},{"$f":"[1]ACS_16_5YR_B17010_with_ann!Q258","v":11},{"$f":"[1]ACS_16_5YR_B17010_with_ann!R258","v":9},{"$f":"[1]ACS_16_5YR_B17010_with_ann!S258","v":12},{"$f":"[1]ACS_16_5YR_B17010_with_ann!T258","v":0},{"$f":"[1]ACS_16_5YR_B17010_with_ann!U258","v":11},{"$f":"[1]ACS_16_5YR_B17010_with_ann!V258","v":0},{"$f":"[1]ACS_16_5YR_B17010_with_ann!W258","v":11},{"$f":"[1]ACS_16_5YR_B17010_with_ann!X258","v":0},{"$f":"[1]ACS_16_5YR_B17010_with_ann!Y258","v":11},{"$f":"[1]ACS_16_5YR_B17010_with_ann!Z258","v":0},{"$f":"[1]ACS_16_5YR_B17010_with_ann!AA258","v":11},{"$f":"[1]ACS_16_5YR_B17010_with_ann!AB258","v":0},{"$f":"[1]ACS_16_5YR_B17010_with_ann!AC258","v":11},{"$f":"[1]ACS_16_5YR_B17010_with_ann!AD258","v":0},{"$f":"[1]ACS_16_5YR_B17010_with_ann!AE258","v":11},{"$f":"[1]ACS_16_5YR_B17010_with_ann!AF258","v":0},{"$f":"[1]ACS_16_5YR_B17010_with_ann!AG258","v":11},{"$f":"[1]ACS_16_5YR_B17010_with_ann!AH258","v":0},{"$f":"[1]ACS_16_5YR_B17010_with_ann!AI258","v":11},{"$f":"[1]ACS_16_5YR_B17010_with_ann!AJ258","v":0},{"$f":"[1]ACS_16_5YR_B17010_with_ann!AK258","v":11},{"$f":"[1]ACS_16_5YR_B17010_with_ann!AL258","v":0},{"$f":"[1]ACS_16_5YR_B17010_with_ann!AM258","v":11},{"$f":"[1]ACS_16_5YR_B17010_with_ann!AN258","v":0},{"$f":"[1]ACS_16_5YR_B17010_with_ann!AO258","v":11},{"$f":"[1]ACS_16_5YR_B17010_with_ann!AP258","v":0},{"$f":"[1]ACS_16_5YR_B17010_with_ann!AQ258","v":11},{"$f":"[1]ACS_16_5YR_B17010_with_ann!AR258","v":0},{"$f":"[1]ACS_16_5YR_B17010_with_ann!AS258","v":11},{"$f":"[1]ACS_16_5YR_B17010_with_ann!AT258","v":246},{"$f":"[1]ACS_16_5YR_B17010_with_ann!AU258","v":45},{"$f":"[1]ACS_16_5YR_B17010_with_ann!AV258","v":209},{"$f":"[1]ACS_16_5YR_B17010_with_ann!AW258","v":41},{"$f":"[1]ACS_16_5YR_B17010_with_ann!AX258","v":45},{"$f":"[1]ACS_16_5YR_B17010_with_ann!AY258","v":22},{"$f":"[1]ACS_16_5YR_B17010_with_ann!AZ258","v":11},{"$f":"[1]ACS_16_5YR_B17010_with_ann!BA258","v":11},{"$f":"[1]ACS_16_5YR_B17010_with_ann!BB258","v":7},{"$f":"[1]ACS_16_5YR_B17010_with_ann!BC258","v":6},{"$f":"[1]ACS_16_5YR_B17010_with_ann!BD258","v":27},{"$f":"[1]ACS_16_5YR_B17010_with_ann!BE258","v":18},{"$f":"[1]ACS_16_5YR_B17010_with_ann!BF258","v":164},{"$f":"[1]ACS_16_5YR_B17010_with_ann!BG258","v":40},{"$f":"[1]ACS_16_5YR_B17010_with_ann!BH258","v":37},{"$f":"[1]ACS_16_5YR_B17010_with_ann!BI258","v":19},{"$f":"[1]ACS_16_5YR_B17010_with_ann!BJ258","v":23},{"$f":"[1]ACS_16_5YR_B17010_with_ann!BK258","v":14},{"$f":"[1]ACS_16_5YR_B17010_with_ann!BL258","v":11},{"$f":"[1]ACS_16_5YR_B17010_with_ann!BM258","v":8},{"$f":"[1]ACS_16_5YR_B17010_with_ann!BN258","v":2},{"$f":"[1]ACS_16_5YR_B17010_with_ann!BO258","v":3},{"$f":"[1]ACS_16_5YR_B17010_with_ann!BP258","v":7},{"$f":"[1]ACS_16_5YR_B17010_with_ann!BQ258","v":7},{"$f":"[1]ACS_16_5YR_B17010_with_ann!BR258","v":2},{"$f":"[1]ACS_16_5YR_B17010_with_ann!BS258","v":3},{"$f":"[1]ACS_16_5YR_B17010_with_ann!BT258","v":12},{"$f":"[1]ACS_16_5YR_B17010_with_ann!BU258","v":11},{"$f":"[1]ACS_16_5YR_B17010_with_ann!BV258","v":14},{"$f":"[1]ACS_16_5YR_B17010_with_ann!BW258","v":12},{"$f":"[1]ACS_16_5YR_B17010_with_ann!BX258","v":0},{"$f":"[1]ACS_16_5YR_B17010_with_ann!BY258","v":11},{"$f":"[1]ACS_16_5YR_B17010_with_ann!BZ258","v":0},{"$f":"[1]ACS_16_5YR_B17010_with_ann!CA258","v":11},{"$f":"[1]ACS_16_5YR_B17010_with_ann!CB258","v":0},{"$f":"[1]ACS_16_5YR_B17010_with_ann!CC258","v":11},{"$f":"[1]ACS_16_5YR_B17010_with_ann!CD258","v":0},{"$f":"[1]ACS_16_5YR_B17010_with_ann!CE258","v":11},{"$f":"[1]ACS_16_5YR_B17010_with_ann!CF258","v":14},{"$f":"[1]ACS_16_5YR_B17010_with_ann!CG258","v":12}]
["0600000US3301911380",3301911380,"060","Charlestown",{"$f":"[1]ACS_16_5YR_B17010_with_ann!D259","v":1379},{"$f":"[1]ACS_16_5YR_B17010_with_ann!E259","v":163},{"$f":"[1]ACS_16_5YR_B17010_with_ann!F259","v":93},{"$f":"[1]ACS_16_5YR_B17010_with_ann!G259","v":61},{"$f":"[1]ACS_16_5YR_B17010_with_ann!H259","v":42},{"$f":"[1]ACS_16_5YR_B17010_with_ann!I259","v":44},{"$f":"[1]ACS_16_5YR_B17010_with_ann!J259","v":42},{"$f":"[1]ACS_16_5YR_B17010_with_ann!K259","v":44},{"$f":"[1]ACS_16_5YR_B17010_with_ann!L259","v":0},{"$f":"[1]ACS_16_5YR_B17010_with_ann!M259","v":16},{"$f":"[1]ACS_16_5YR_B17010_with_ann!N259","v":42},{"$f":"[1]ACS_16_5YR_B17010_with_ann!O259","v":44},{"$f":"[1]ACS_16_5YR_B17010_with_ann!P259","v":0},{"$f":"[1]ACS_16_5YR_B17010_with_ann!Q259","v":16},{"$f":"[1]ACS_16_5YR_B17010_with_ann!R259","v":0},{"$f":"[1]ACS_16_5YR_B17010_with_ann!S259","v":16},{"$f":"[1]ACS_16_5YR_B17010_with_ann!T259","v":51},{"$f":"[1]ACS_16_5YR_B17010_with_ann!U259","v":54},{"$f":"[1]ACS_16_5YR_B17010_with_ann!V259","v":6},{"$f":"[1]ACS_16_5YR_B17010_with_ann!W259","v":9},{"$f":"[1]ACS_16_5YR_B17010_with_ann!X259","v":6},{"$f":"[1]ACS_16_5YR_B17010_with_ann!Y259","v":9},{"$f":"[1]ACS_16_5YR_B17010_with_ann!Z259","v":0},{"$f":"[1]ACS_16_5YR_B17010_with_ann!AA259","v":16},{"$f":"[1]ACS_16_5YR_B17010_with_ann!AB259","v":0},{"$f":"[1]ACS_16_5YR_B17010_with_ann!AC259","v":16},{"$f":"[1]ACS_16_5YR_B17010_with_ann!AD259","v":6},{"$f":"[1]ACS_16_5YR_B17010_with_ann!AE259","v":9},{"$f":"[1]ACS_16_5YR_B17010_with_ann!AF259","v":0},{"$f":"[1]ACS_16_5YR_B17010_with_ann!AG259","v":16},{"$f":"[1]ACS_16_5YR_B17010_with_ann!AH259","v":45},{"$f":"[1]ACS_16_5YR_B17010_with_ann!AI259","v":53},{"$f":"[1]ACS_16_5YR_B17010_with_ann!AJ259","v":29},{"$f":"[1]ACS_16_5YR_B17010_with_ann!AK259","v":47},{"$f":"[1]ACS_16_5YR_B17010_with_ann!AL259","v":0},{"$f":"[1]ACS_16_5YR_B17010_with_ann!AM259","v":16},{"$f":"[1]ACS_16_5YR_B17010_with_ann!AN259","v":0},{"$f":"[1]ACS_16_5YR_B17010_with_ann!AO259","v":16},{"$f":"[1]ACS_16_5YR_B17010_with_ann!AP259","v":29},{"$f":"[1]ACS_16_5YR_B17010_with_ann!AQ259","v":47},{"$f":"[1]ACS_16_5YR_B17010_with_ann!AR259","v":16},{"$f":"[1]ACS_16_5YR_B17010_with_ann!AS259","v":26},{"$f":"[1]ACS_16_5YR_B17010_with_ann!AT259","v":1286},{"$f":"[1]ACS_16_5YR_B17010_with_ann!AU259","v":178},{"$f":"[1]ACS_16_5YR_B17010_with_ann!AV259","v":910},{"$f":"[1]ACS_16_5YR_B17010_with_ann!AW259","v":195},{"$f":"[1]ACS_16_5YR_B17010_with_ann!AX259","v":155},{"$f":"[1]ACS_16_5YR_B17010_with_ann!AY259","v":86},{"$f":"[1]ACS_16_5YR_B17010_with_ann!AZ259","v":59},{"$f":"[1]ACS_16_5YR_B17010_with_ann!BA259","v":60},{"$f":"[1]ACS_16_5YR_B17010_with_ann!BB259","v":0},{"$f":"[1]ACS_16_5YR_B17010_with_ann!BC259","v":16},{"$f":"[1]ACS_16_5YR_B17010_with_ann!BD259","v":96},{"$f":"[1]ACS_16_5YR_B17010_with_ann!BE259","v":68},{"$f":"[1]ACS_16_5YR_B17010_with_ann!BF259","v":755},{"$f":"[1]ACS_16_5YR_B17010_with_ann!BG259","v":170},{"$f":"[1]ACS_16_5YR_B17010_with_ann!BH259","v":376},{"$f":"[1]ACS_16_5YR_B17010_with_ann!BI259","v":138},{"$f":"[1]ACS_16_5YR_B17010_with_ann!BJ259","v":177},{"$f":"[1]ACS_16_5YR_B17010_with_ann!BK259","v":107},{"$f":"[1]ACS_16_5YR_B17010_with_ann!BL259","v":149},{"$f":"[1]ACS_16_5YR_B17010_with_ann!BM259","v":103},{"$f":"[1]ACS_16_5YR_B17010_with_ann!BN259","v":32},{"$f":"[1]ACS_16_5YR_B17010_with_ann!BO259","v":53},{"$f":"[1]ACS_16_5YR_B17010_with_ann!BP259","v":65},{"$f":"[1]ACS_16_5YR_B17010_with_ann!BQ259","v":69},{"$f":"[1]ACS_16_5YR_B17010_with_ann!BR259","v":52},{"$f":"[1]ACS_16_5YR_B17010_with_ann!BS259","v":65},{"$f":"[1]ACS_16_5YR_B17010_with_ann!BT259","v":28},{"$f":"[1]ACS_16_5YR_B17010_with_ann!BU259","v":30},{"$f":"[1]ACS_16_5YR_B17010_with_ann!BV259","v":199},{"$f":"[1]ACS_16_5YR_B17010_with_ann!BW259","v":96},{"$f":"[1]ACS_16_5YR_B17010_with_ann!BX259","v":103},{"$f":"[1]ACS_16_5YR_B17010_with_ann!BY259","v":84},{"$f":"[1]ACS_16_5YR_B17010_with_ann!BZ259","v":0},{"$f":"[1]ACS_16_5YR_B17010_with_ann!CA259","v":16},{"$f":"[1]ACS_16_5YR_B17010_with_ann!CB259","v":53},{"$f":"[1]ACS_16_5YR_B17010_with_ann!CC259","v":71},{"$f":"[1]ACS_16_5YR_B17010_with_ann!CD259","v":50},{"$f":"[1]ACS_16_5YR_B17010_with_ann!CE259","v":46},{"$f":"[1]ACS_16_5YR_B17010_with_ann!CF259","v":96},{"$f":"[1]ACS_16_5YR_B17010_with_ann!CG259","v":70}]
["0600000US3301912900",3301912900,"060","Claremont",{"$f":"[1]ACS_16_5YR_B17010_with_ann!D260","v":3165},{"$f":"[1]ACS_16_5YR_B17010_with_ann!E260","v":231},{"$f":"[1]ACS_16_5YR_B17010_with_ann!F260","v":342},{"$f":"[1]ACS_16_5YR_B17010_with_ann!G260","v":138},{"$f":"[1]ACS_16_5YR_B17010_with_ann!H260","v":116},{"$f":"[1]ACS_16_5YR_B17010_with_ann!I260","v":70},{"$f":"[1]ACS_16_5YR_B17010_with_ann!J260","v":95},{"$f":"[1]ACS_16_5YR_B17010_with_ann!K260","v":60},{"$f":"[1]ACS_16_5YR_B17010_with_ann!L260","v":0},{"$f":"[1]ACS_16_5YR_B17010_with_ann!M260","v":18},{"$f":"[1]ACS_16_5YR_B17010_with_ann!N260","v":38},{"$f":"[1]ACS_16_5YR_B17010_with_ann!O260","v":40},{"$f":"[1]ACS_16_5YR_B17010_with_ann!P260","v":57},{"$f":"[1]ACS_16_5YR_B17010_with_ann!Q260","v":48},{"$f":"[1]ACS_16_5YR_B17010_with_ann!R260","v":21},{"$f":"[1]ACS_16_5YR_B17010_with_ann!S260","v":25},{"$f":"[1]ACS_16_5YR_B17010_with_ann!T260","v":226},{"$f":"[1]ACS_16_5YR_B17010_with_ann!U260","v":124},{"$f":"[1]ACS_16_5YR_B17010_with_ann!V260","v":24},{"$f":"[1]ACS_16_5YR_B17010_with_ann!W260","v":32},{"$f":"[1]ACS_16_5YR_B17010_with_ann!X260","v":24},{"$f":"[1]ACS_16_5YR_B17010_with_ann!Y260","v":32},{"$f":"[1]ACS_16_5YR_B17010_with_ann!Z260","v":0},{"$f":"[1]ACS_16_5YR_B17010_with_ann!AA260","v":18},{"$f":"[1]ACS_16_5YR_B17010_with_ann!AB260","v":24},{"$f":"[1]ACS_16_5YR_B17010_with_ann!AC260","v":32},{"$f":"[1]ACS_16_5YR_B17010_with_ann!AD260","v":0},{"$f":"[1]ACS_16_5YR_B17010_with_ann!AE260","v":18},{"$f":"[1]ACS_16_5YR_B17010_with_ann!AF260","v":0},{"$f":"[1]ACS_16_5YR_B17010_with_ann!AG260","v":18},{"$f":"[1]ACS_16_5YR_B17010_with_ann!AH260","v":202},{"$f":"[1]ACS_16_5YR_B17010_with_ann!AI260","v":122},{"$f":"[1]ACS_16_5YR_B17010_with_ann!AJ260","v":154},{"$f":"[1]ACS_16_5YR_B17010_with_ann!AK260","v":98},{"$f":"[1]ACS_16_5YR_B17010_with_ann!AL260","v":122},{"$f":"[1]ACS_16_5YR_B17010_with_ann!AM260","v":90},{"$f":"[1]ACS_16_5YR_B17010_with_ann!AN260","v":21},{"$f":"[1]ACS_16_5YR_B17010_with_ann!AO260","v":33},{"$f":"[1]ACS_16_5YR_B17010_with_ann!AP260","v":11},{"$f":"[1]ACS_16_5YR_B17010_with_ann!AQ260","v":16},{"$f":"[1]ACS_16_5YR_B17010_with_ann!AR260","v":48},{"$f":"[1]ACS_16_5YR_B17010_with_ann!AS260","v":66},{"$f":"[1]ACS_16_5YR_B17010_with_ann!AT260","v":2823},{"$f":"[1]ACS_16_5YR_B17010_with_ann!AU260","v":244},{"$f":"[1]ACS_16_5YR_B17010_with_ann!AV260","v":2002},{"$f":"[1]ACS_16_5YR_B17010_with_ann!AW260","v":234},{"$f":"[1]ACS_16_5YR_B17010_with_ann!AX260","v":647},{"$f":"[1]ACS_16_5YR_B17010_with_ann!AY260","v":155},{"$f":"[1]ACS_16_5YR_B17010_with_ann!AZ260","v":114},{"$f":"[1]ACS_16_5YR_B17010_with_ann!BA260","v":74},{"$f":"[1]ACS_16_5YR_B17010_with_ann!BB260","v":125},{"$f":"[1]ACS_16_5YR_B17010_with_ann!BC260","v":108},{"$f":"[1]ACS_16_5YR_B17010_with_ann!BD260","v":408},{"$f":"[1]ACS_16_5YR_B17010_with_ann!BE260","v":119},{"$f":"[1]ACS_16_5YR_B17010_with_ann!BF260","v":1355},{"$f":"[1]ACS_16_5YR_B17010_with_ann!BG260","v":213},{"$f":"[1]ACS_16_5YR_B17010_with_ann!BH260","v":821},{"$f":"[1]ACS_16_5YR_B17010_with_ann!BI260","v":172},{"$f":"[1]ACS_16_5YR_B17010_with_ann!BJ260","v":176},{"$f":"[1]ACS_16_5YR_B17010_with_ann!BK260","v":79},{"$f":"[1]ACS_16_5YR_B17010_with_ann!BL260","v":133},{"$f":"[1]ACS_16_5YR_B17010_with_ann!BM260","v":79},{"$f":"[1]ACS_16_5YR_B17010_with_ann!BN260","v":0},{"$f":"[1]ACS_16_5YR_B17010_with_ann!BO260","v":18},{"$f":"[1]ACS_16_5YR_B17010_with_ann!BP260","v":0},{"$f":"[1]ACS_16_5YR_B17010_with_ann!BQ260","v":18},{"$f":"[1]ACS_16_5YR_B17010_with_ann!BR260","v":133},{"$f":"[1]ACS_16_5YR_B17010_with_ann!BS260","v":79},{"$f":"[1]ACS_16_5YR_B17010_with_ann!BT260","v":43},{"$f":"[1]ACS_16_5YR_B17010_with_ann!BU260","v":37},{"$f":"[1]ACS_16_5YR_B17010_with_ann!BV260","v":645},{"$f":"[1]ACS_16_5YR_B17010_with_ann!BW260","v":172},{"$f":"[1]ACS_16_5YR_B17010_with_ann!BX260","v":420},{"$f":"[1]ACS_16_5YR_B17010_with_ann!BY260","v":137},{"$f":"[1]ACS_16_5YR_B17010_with_ann!BZ260","v":132},{"$f":"[1]ACS_16_5YR_B17010_with_ann!CA260","v":86},{"$f":"[1]ACS_16_5YR_B17010_with_ann!CB260","v":68},{"$f":"[1]ACS_16_5YR_B17010_with_ann!CC260","v":51},{"$f":"[1]ACS_16_5YR_B17010_with_ann!CD260","v":220},{"$f":"[1]ACS_16_5YR_B17010_with_ann!CE260","v":111},{"$f":"[1]ACS_16_5YR_B17010_with_ann!CF260","v":225},{"$f":"[1]ACS_16_5YR_B17010_with_ann!CG260","v":92}]
["0600000US3301915060",3301915060,"060","Cornish",{"$f":"[1]ACS_16_5YR_B17010_with_ann!D261","v":526},{"$f":"[1]ACS_16_5YR_B17010_with_ann!E261","v":72},{"$f":"[1]ACS_16_5YR_B17010_with_ann!F261","v":23},{"$f":"[1]ACS_16_5YR_B17010_with_ann!G261","v":24},{"$f":"[1]ACS_16_5YR_B17010_with_ann!H261","v":19},{"$f":"[1]ACS_16_5YR_B17010_with_ann!I261","v":23},{"$f":"[1]ACS_16_5YR_B17010_with_ann!J261","v":19},{"$f":"[1]ACS_16_5YR_B17010_with_ann!K261","v":23},{"$f":"[1]ACS_16_5YR_B17010_with_ann!L261","v":0},{"$f":"[1]ACS_16_5YR_B17010_with_ann!M261","v":11},{"$f":"[1]ACS_16_5YR_B17010_with_ann!N261","v":4},{"$f":"[1]ACS_16_5YR_B17010_with_ann!O261","v":7},{"$f":"[1]ACS_16_5YR_B17010_with_ann!P261","v":15},{"$f":"[1]ACS_16_5YR_B17010_with_ann!Q261","v":22},{"$f":"[1]ACS_16_5YR_B17010_with_ann!R261","v":0},{"$f":"[1]ACS_16_5YR_B17010_with_ann!S261","v":11},{"$f":"[1]ACS_16_5YR_B17010_with_ann!T261","v":4},{"$f":"[1]ACS_16_5YR_B17010_with_ann!U261","v":6},{"$f":"[1]ACS_16_5YR_B17010_with_ann!V261","v":0},{"$f":"[1]ACS_16_5YR_B17010_with_ann!W261","v":11},{"$f":"[1]ACS_16_5YR_B17010_with_ann!X261","v":0},{"$f":"[1]ACS_16_5YR_B17010_with_ann!Y261","v":11},{"$f":"[1]ACS_16_5YR_B17010_with_ann!Z261","v":0},{"$f":"[1]ACS_16_5YR_B17010_with_ann!AA261","v":11},{"$f":"[1]ACS_16_5YR_B17010_with_ann!AB261","v":0},{"$f":"[1]ACS_16_5YR_B17010_with_ann!AC261","v":11},{"$f":"[1]ACS_16_5YR_B17010_with_ann!AD261","v":0},{"$f":"[1]ACS_16_5YR_B17010_with_ann!AE261","v":11},{"$f":"[1]ACS_16_5YR_B17010_with_ann!AF261","v":0},{"$f":"[1]ACS_16_5YR_B17010_with_ann!AG261","v":11},{"$f":"[1]ACS_16_5YR_B17010_with_ann!AH261","v":4},{"$f":"[1]ACS_16_5YR_B17010_with_ann!AI261","v":6},{"$f":"[1]ACS_16_5YR_B17010_with_ann!AJ261","v":4},{"$f":"[1]ACS_16_5YR_B17010_with_ann!AK261","v":6},{"$f":"[1]ACS_16_5YR_B17010_with_ann!AL261","v":0},{"$f":"[1]ACS_16_5YR_B17010_with_ann!AM261","v":11},{"$f":"[1]ACS_16_5YR_B17010_with_ann!AN261","v":0},{"$f":"[1]ACS_16_5YR_B17010_with_ann!AO261","v":11},{"$f":"[1]ACS_16_5YR_B17010_with_ann!AP261","v":4},{"$f":"[1]ACS_16_5YR_B17010_with_ann!AQ261","v":6},{"$f":"[1]ACS_16_5YR_B17010_with_ann!AR261","v":0},{"$f":"[1]ACS_16_5YR_B17010_with_ann!AS261","v":11},{"$f":"[1]ACS_16_5YR_B17010_with_ann!AT261","v":503},{"$f":"[1]ACS_16_5YR_B17010_with_ann!AU261","v":68},{"$f":"[1]ACS_16_5YR_B17010_with_ann!AV261","v":463},{"$f":"[1]ACS_16_5YR_B17010_with_ann!AW261","v":65},{"$f":"[1]ACS_16_5YR_B17010_with_ann!AX261","v":103},{"$f":"[1]ACS_16_5YR_B17010_with_ann!AY261","v":33},{"$f":"[1]ACS_16_5YR_B17010_with_ann!AZ261","v":20},{"$f":"[1]ACS_16_5YR_B17010_with_ann!BA261","v":12},{"$f":"[1]ACS_16_5YR_B17010_with_ann!BB261","v":16},{"$f":"[1]ACS_16_5YR_B17010_with_ann!BC261","v":11},{"$f":"[1]ACS_16_5YR_B17010_with_ann!BD261","v":67},{"$f":"[1]ACS_16_5YR_B17010_with_ann!BE261","v":27},{"$f":"[1]ACS_16_5YR_B17010_with_ann!BF262","v":109},{"$f":"[1]ACS_16_5YR_B17010_with_ann!BG262","v":36},{"$f":"[1]ACS_16_5YR_B17010_with_ann!BH262","v":22},{"$f":"[1]ACS_16_5YR_B17010_with_ann!BI262","v":12},{"$f":"[1]ACS_16_5YR_B17010_with_ann!BJ262","v":12},{"$f":"[1]ACS_16_5YR_B17010_with_ann!BK262","v":9},{"$f":"[1]ACS_16_5YR_B17010_with_ann!BL262","v":10},{"$f":"[1]ACS_16_5YR_B17010_with_ann!BM262","v":9},{"$f":"[1]ACS_16_5YR_B17010_with_ann!BN262","v":0},{"$f":"[1]ACS_16_5YR_B17010_with_ann!BO262","v":11},{"$f":"[1]ACS_16_5YR_B17010_with_ann!BP262","v":0},{"$f":"[1]ACS_16_5YR_B17010_with_ann!BQ262","v":11},{"$f":"[1]ACS_16_5YR_B17010_with_ann!BR262","v":10},{"$f":"[1]ACS_16_5YR_B17010_with_ann!BS262","v":9},{"$f":"[1]ACS_16_5YR_B17010_with_ann!BT262","v":2},{"$f":"[1]ACS_16_5YR_B17010_with_ann!BU262","v":3},{"$f":"[1]ACS_16_5YR_B17010_with_ann!BV262","v":10},{"$f":"[1]ACS_16_5YR_B17010_with_ann!BW262","v":9},{"$f":"[1]ACS_16_5YR_B17010_with_ann!BX262","v":5},{"$f":"[1]ACS_16_5YR_B17010_with_ann!BY262","v":6},{"$f":"[1]ACS_16_5YR_B17010_with_ann!BZ262","v":0},{"$f":"[1]ACS_16_5YR_B17010_with_ann!CA262","v":11},{"$f":"[1]ACS_16_5YR_B17010_with_ann!CB262","v":0},{"$f":"[1]ACS_16_5YR_B17010_with_ann!CC262","v":11},{"$f":"[1]ACS_16_5YR_B17010_with_ann!CD262","v":5},{"$f":"[1]ACS_16_5YR_B17010_with_ann!CE262","v":6},{"$f":"[1]ACS_16_5YR_B17010_with_ann!CF262","v":5},{"$f":"[1]ACS_16_5YR_B17010_with_ann!CG262","v":6}]
["0600000US3301916340",3301916340,"060","Croydon",{"$f":"[1]ACS_16_5YR_B17010_with_ann!D262","v":187},{"$f":"[1]ACS_16_5YR_B17010_with_ann!E262","v":46},{"$f":"[1]ACS_16_5YR_B17010_with_ann!F262","v":12},{"$f":"[1]ACS_16_5YR_B17010_with_ann!G262","v":15},{"$f":"[1]ACS_16_5YR_B17010_with_ann!H262","v":5},{"$f":"[1]ACS_16_5YR_B17010_with_ann!I262","v":10},{"$f":"[1]ACS_16_5YR_B17010_with_ann!J262","v":0},{"$f":"[1]ACS_16_5YR_B17010_with_ann!K262","v":11},{"$f":"[1]ACS_16_5YR_B17010_with_ann!L262","v":0},{"$f":"[1]ACS_16_5YR_B17010_with_ann!M262","v":11},{"$f":"[1]ACS_16_5YR_B17010_with_ann!N262","v":0},{"$f":"[1]ACS_16_5YR_B17010_with_ann!O262","v":11},{"$f":"[1]ACS_16_5YR_B17010_with_ann!P262","v":0},{"$f":"[1]ACS_16_5YR_B17010_with_ann!Q262","v":11},{"$f":"[1]ACS_16_5YR_B17010_with_ann!R262","v":5},{"$f":"[1]ACS_16_5YR_B17010_with_ann!S262","v":10},{"$f":"[1]ACS_16_5YR_B17010_with_ann!T262","v":7},{"$f":"[1]ACS_16_5YR_B17010_with_ann!U262","v":11},{"$f":"[1]ACS_16_5YR_B17010_with_ann!V262","v":0},{"$f":"[1]ACS_16_5YR_B17010_with_ann!W262","v":11},{"$f":"[1]ACS_16_5YR_B17010_with_ann!X262","v":0},{"$f":"[1]ACS_16_5YR_B17010_with_ann!Y262","v":11},{"$f":"[1]ACS_16_5YR_B17010_with_ann!Z262","v":0},{"$f":"[1]ACS_16_5YR_B17010_with_ann!AA262","v":11},{"$f":"[1]ACS_16_5YR_B17010_with_ann!AB262","v":0},{"$f":"[1]ACS_16_5YR_B17010_with_ann!AC262","v":11},{"$f":"[1]ACS_16_5YR_B17010_with_ann!AD262","v":0},{"$f":"[1]ACS_16_5YR_B17010_with_ann!AE262","v":11},{"$f":"[1]ACS_16_5YR_B17010_with_ann!AF262","v":0},{"$f":"[1]ACS_16_5YR_B17010_with_ann!AG262","v":11},{"$f":"[1]ACS_16_5YR_B17010_with_ann!AH262","v":7},{"$f":"[1]ACS_16_5YR_B17010_with_ann!AI262","v":11},{"$f":"[1]ACS_16_5YR_B17010_with_ann!AJ262","v":7},{"$f":"[1]ACS_16_5YR_B17010_with_ann!AK262","v":11},{"$f":"[1]ACS_16_5YR_B17010_with_ann!AL262","v":0},{"$f":"[1]ACS_16_5YR_B17010_with_ann!AM262","v":11},{"$f":"[1]ACS_16_5YR_B17010_with_ann!AN262","v":7},{"$f":"[1]ACS_16_5YR_B17010_with_ann!AO262","v":11},{"$f":"[1]ACS_16_5YR_B17010_with_ann!AP262","v":0},{"$f":"[1]ACS_16_5YR_B17010_with_ann!AQ262","v":11},{"$f":"[1]ACS_16_5YR_B17010_with_ann!AR262","v":0},{"$f":"[1]ACS_16_5YR_B17010_with_ann!AS262","v":11},{"$f":"[1]ACS_16_5YR_B17010_with_ann!AT262","v":175},{"$f":"[1]ACS_16_5YR_B17010_with_ann!AU262","v":45},{"$f":"[1]ACS_16_5YR_B17010_with_ann!AV262","v":153},{"$f":"[1]ACS_16_5YR_B17010_with_ann!AW262","v":46},{"$f":"[1]ACS_16_5YR_B17010_with_ann!AX262","v":44},{"$f":"[1]ACS_16_5YR_B17010_with_ann!AY262","v":26},{"$f":"[1]ACS_16_5YR_B17010_with_ann!AZ262","v":10},{"$f":"[1]ACS_16_5YR_B17010_with_ann!BA262","v":10},{"$f":"[1]ACS_16_5YR_B17010_with_ann!BB262","v":0},{"$f":"[1]ACS_16_5YR_B17010_with_ann!BC262","v":11},{"$f":"[1]ACS_16_5YR_B17010_with_ann!BD262","v":34},{"$f":"[1]ACS_16_5YR_B17010_with_ann!BE262","v":22},{"$f":"[1]ACS_16_5YR_B17010_with_ann!BF263","v":66},{"$f":"[1]ACS_16_5YR_B17010_with_ann!BG263","v":23},{"$f":"[1]ACS_16_5YR_B17010_with_ann!BH263","v":40},{"$f":"[1]ACS_16_5YR_B17010_with_ann!BI263","v":20},{"$f":"[1]ACS_16_5YR_B17010_with_ann!BJ263","v":21},{"$f":"[1]ACS_16_5YR_B17010_with_ann!BK263","v":16},{"$f":"[1]ACS_16_5YR_B17010_with_ann!BL263","v":19},{"$f":"[1]ACS_16_5YR_B17010_with_ann!BM263","v":16},{"$f":"[1]ACS_16_5YR_B17010_with_ann!BN263","v":2},{"$f":"[1]ACS_16_5YR_B17010_with_ann!BO263","v":3},{"$f":"[1]ACS_16_5YR_B17010_with_ann!BP263","v":7},{"$f":"[1]ACS_16_5YR_B17010_with_ann!BQ263","v":10},{"$f":"[1]ACS_16_5YR_B17010_with_ann!BR263","v":10},{"$f":"[1]ACS_16_5YR_B17010_with_ann!BS263","v":12},{"$f":"[1]ACS_16_5YR_B17010_with_ann!BT263","v":2},{"$f":"[1]ACS_16_5YR_B17010_with_ann!BU263","v":3},{"$f":"[1]ACS_16_5YR_B17010_with_ann!BV263","v":19},{"$f":"[1]ACS_16_5YR_B17010_with_ann!BW263","v":14},{"$f":"[1]ACS_16_5YR_B17010_with_ann!BX263","v":6},{"$f":"[1]ACS_16_5YR_B17010_with_ann!BY263","v":6},{"$f":"[1]ACS_16_5YR_B17010_with_ann!BZ263","v":0},{"$f":"[1]ACS_16_5YR_B17010_with_ann!CA263","v":11},{"$f":"[1]ACS_16_5YR_B17010_with_ann!CB263","v":0},{"$f":"[1]ACS_16_5YR_B17010_with_ann!CC263","v":11},{"$f":"[1]ACS_16_5YR_B17010_with_ann!CD263","v":6},{"$f":"[1]ACS_16_5YR_B17010_with_ann!CE263","v":6},{"$f":"[1]ACS_16_5YR_B17010_with_ann!CF263","v":13},{"$f":"[1]ACS_16_5YR_B17010_with_ann!CG263","v":12}]
["0600000US3301930500",3301930500,"060","Goshen",{"$f":"[1]ACS_16_5YR_B17010_with_ann!D263","v":163},{"$f":"[1]ACS_16_5YR_B17010_with_ann!E263","v":36},{"$f":"[1]ACS_16_5YR_B17010_with_ann!F263","v":16},{"$f":"[1]ACS_16_5YR_B17010_with_ann!G263","v":12},{"$f":"[1]ACS_16_5YR_B17010_with_ann!H263","v":5},{"$f":"[1]ACS_16_5YR_B17010_with_ann!I263","v":6},{"$f":"[1]ACS_16_5YR_B17010_with_ann!J263","v":0},{"$f":"[1]ACS_16_5YR_B17010_with_ann!K263","v":11},{"$f":"[1]ACS_16_5YR_B17010_with_ann!L263","v":0},{"$f":"[1]ACS_16_5YR_B17010_with_ann!M263","v":11},{"$f":"[1]ACS_16_5YR_B17010_with_ann!N263","v":0},{"$f":"[1]ACS_16_5YR_B17010_with_ann!O263","v":11},{"$f":"[1]ACS_16_5YR_B17010_with_ann!P263","v":0},{"$f":"[1]ACS_16_5YR_B17010_with_ann!Q263","v":11},{"$f":"[1]ACS_16_5YR_B17010_with_ann!R263","v":5},{"$f":"[1]ACS_16_5YR_B17010_with_ann!S263","v":6},{"$f":"[1]ACS_16_5YR_B17010_with_ann!T263","v":11},{"$f":"[1]ACS_16_5YR_B17010_with_ann!U263","v":10},{"$f":"[1]ACS_16_5YR_B17010_with_ann!V263","v":9},{"$f":"[1]ACS_16_5YR_B17010_with_ann!W263","v":10},{"$f":"[1]ACS_16_5YR_B17010_with_ann!X263","v":9},{"$f":"[1]ACS_16_5YR_B17010_with_ann!Y263","v":10},{"$f":"[1]ACS_16_5YR_B17010_with_ann!Z263","v":0},{"$f":"[1]ACS_16_5YR_B17010_with_ann!AA263","v":11},{"$f":"[1]ACS_16_5YR_B17010_with_ann!AB263","v":6},{"$f":"[1]ACS_16_5YR_B17010_with_ann!AC263","v":9},{"$f":"[1]ACS_16_5YR_B17010_with_ann!AD263","v":3},{"$f":"[1]ACS_16_5YR_B17010_with_ann!AE263","v":4},{"$f":"[1]ACS_16_5YR_B17010_with_ann!AF263","v":0},{"$f":"[1]ACS_16_5YR_B17010_with_ann!AG263","v":11},{"$f":"[1]ACS_16_5YR_B17010_with_ann!AH263","v":2},{"$f":"[1]ACS_16_5YR_B17010_with_ann!AI263","v":3},{"$f":"[1]ACS_16_5YR_B17010_with_ann!AJ263","v":2},{"$f":"[1]ACS_16_5YR_B17010_with_ann!AK263","v":3},{"$f":"[1]ACS_16_5YR_B17010_with_ann!AL263","v":2},{"$f":"[1]ACS_16_5YR_B17010_with_ann!AM263","v":3},{"$f":"[1]ACS_16_5YR_B17010_with_ann!AN263","v":0},{"$f":"[1]ACS_16_5YR_B17010_with_ann!AO263","v":11},{"$f":"[1]ACS_16_5YR_B17010_with_ann!AP263","v":0},{"$f":"[1]ACS_16_5YR_B17010_with_ann!AQ263","v":11},{"$f":"[1]ACS_16_5YR_B17010_with_ann!AR263","v":0},{"$f":"[1]ACS_16_5YR_B17010_with_ann!AS263","v":11},{"$f":"[1]ACS_16_5YR_B17010_with_ann!AT263","v":147},{"$f":"[1]ACS_16_5YR_B17010_with_ann!AU263","v":33},{"$f":"[1]ACS_16_5YR_B17010_with_ann!AV263","v":107},{"$f":"[1]ACS_16_5YR_B17010_with_ann!AW263","v":29},{"$f":"[1]ACS_16_5YR_B17010_with_ann!AX263","v":41},{"$f":"[1]ACS_16_5YR_B17010_with_ann!AY263","v":22},{"$f":"[1]ACS_16_5YR_B17010_with_ann!AZ263","v":4},{"$f":"[1]ACS_16_5YR_B17010_with_ann!BA263","v":4},{"$f":"[1]ACS_16_5YR_B17010_with_ann!BB263","v":12},{"$f":"[1]ACS_16_5YR_B17010_with_ann!BC263","v":11},{"$f":"[1]ACS_16_5YR_B17010_with_ann!BD263","v":25},{"$f":"[1]ACS_16_5YR_B17010_with_ann!BE263","v":19},{"$f":"[1]ACS_16_5YR_B17010_with_ann!BF264","v":515},{"$f":"[1]ACS_16_5YR_B17010_with_ann!BG264","v":120},{"$f":"[1]ACS_16_5YR_B17010_with_ann!BH264","v":121},{"$f":"[1]ACS_16_5YR_B17010_with_ann!BI264","v":69},{"$f":"[1]ACS_16_5YR_B17010_with_ann!BJ264","v":89},{"$f":"[1]ACS_16_5YR_B17010_with_ann!BK264","v":68},{"$f":"[1]ACS_16_5YR_B17010_with_ann!BL264","v":89},{"$f":"[1]ACS_16_5YR_B17010_with_ann!BM264","v":68},{"$f":"[1]ACS_16_5YR_B17010_with_ann!BN264","v":0},{"$f":"[1]ACS_16_5YR_B17010_with_ann!BO264","v":11},{"$f":"[1]ACS_16_5YR_B17010_with_ann!BP264","v":0},{"$f":"[1]ACS_16_5YR_B17010_with_ann!BQ264","v":11},{"$f":"[1]ACS_16_5YR_B17010_with_ann!BR264","v":89},{"$f":"[1]ACS_16_5YR_B17010_with_ann!BS264","v":68},{"$f":"[1]ACS_16_5YR_B17010_with_ann!BT264","v":0},{"$f":"[1]ACS_16_5YR_B17010_with_ann!BU264","v":11},{"$f":"[1]ACS_16_5YR_B17010_with_ann!BV264","v":32},{"$f":"[1]ACS_16_5YR_B17010_with_ann!BW264","v":31},{"$f":"[1]ACS_16_5YR_B17010_with_ann!BX264","v":14},{"$f":"[1]ACS_16_5YR_B17010_with_ann!BY264","v":21},{"$f":"[1]ACS_16_5YR_B17010_with_ann!BZ264","v":0},{"$f":"[1]ACS_16_5YR_B17010_with_ann!CA264","v":11},{"$f":"[1]ACS_16_5YR_B17010_with_ann!CB264","v":0},{"$f":"[1]ACS_16_5YR_B17010_with_ann!CC264","v":11},{"$f":"[1]ACS_16_5YR_B17010_with_ann!CD264","v":14},{"$f":"[1]ACS_16_5YR_B17010_with_ann!CE264","v":21},{"$f":"[1]ACS_16_5YR_B17010_with_ann!CF264","v":18},{"$f":"[1]ACS_16_5YR_B17010_with_ann!CG264","v":25}]
["0600000US3301931220",3301931220,"060","Grantham",{"$f":"[1]ACS_16_5YR_B17010_with_ann!D264","v":902},{"$f":"[1]ACS_16_5YR_B17010_with_ann!E264","v":98},{"$f":"[1]ACS_16_5YR_B17010_with_ann!F264","v":31},{"$f":"[1]ACS_16_5YR_B17010_with_ann!G264","v":43},{"$f":"[1]ACS_16_5YR_B17010_with_ann!H264","v":0},{"$f":"[1]ACS_16_5YR_B17010_with_ann!I264","v":11},{"$f":"[1]ACS_16_5YR_B17010_with_ann!J264","v":0},{"$f":"[1]ACS_16_5YR_B17010_with_ann!K264","v":11},{"$f":"[1]ACS_16_5YR_B17010_with_ann!L264","v":0},{"$f":"[1]ACS_16_5YR_B17010_with_ann!M264","v":11},{"$f":"[1]ACS_16_5YR_B17010_with_ann!N264","v":0},{"$f":"[1]ACS_16_5YR_B17010_with_ann!O264","v":11},{"$f":"[1]ACS_16_5YR_B17010_with_ann!P264","v":0},{"$f":"[1]ACS_16_5YR_B17010_with_ann!Q264","v":11},{"$f":"[1]ACS_16_5YR_B17010_with_ann!R264","v":0},{"$f":"[1]ACS_16_5YR_B17010_with_ann!S264","v":11},{"$f":"[1]ACS_16_5YR_B17010_with_ann!T264","v":31},{"$f":"[1]ACS_16_5YR_B17010_with_ann!U264","v":43},{"$f":"[1]ACS_16_5YR_B17010_with_ann!V264","v":0},{"$f":"[1]ACS_16_5YR_B17010_with_ann!W264","v":11},{"$f":"[1]ACS_16_5YR_B17010_with_ann!X264","v":0},{"$f":"[1]ACS_16_5YR_B17010_with_ann!Y264","v":11},{"$f":"[1]ACS_16_5YR_B17010_with_ann!Z264","v":0},{"$f":"[1]ACS_16_5YR_B17010_with_ann!AA264","v":11},{"$f":"[1]ACS_16_5YR_B17010_with_ann!AB264","v":0},{"$f":"[1]ACS_16_5YR_B17010_with_ann!AC264","v":11},{"$f":"[1]ACS_16_5YR_B17010_with_ann!AD264","v":0},{"$f":"[1]ACS_16_5YR_B17010_with_ann!AE264","v":11},{"$f":"[1]ACS_16_5YR_B17010_with_ann!AF264","v":0},{"$f":"[1]ACS_16_5YR_B17010_with_ann!AG264","v":11},{"$f":"[1]ACS_16_5YR_B17010_with_ann!AH264","v":31},{"$f":"[1]ACS_16_5YR_B17010_with_ann!AI264","v":43},{"$f":"[1]ACS_16_5YR_B17010_with_ann!AJ264","v":31},{"$f":"[1]ACS_16_5YR_B17010_with_ann!AK264","v":43},{"$f":"[1]ACS_16_5YR_B17010_with_ann!AL264","v":0},{"$f":"[1]ACS_16_5YR_B17010_with_ann!AM264","v":11},{"$f":"[1]ACS_16_5YR_B17010_with_ann!AN264","v":0},{"$f":"[1]ACS_16_5YR_B17010_with_ann!AO264","v":11},{"$f":"[1]ACS_16_5YR_B17010_with_ann!AP264","v":31},{"$f":"[1]ACS_16_5YR_B17010_with_ann!AQ264","v":43},{"$f":"[1]ACS_16_5YR_B17010_with_ann!AR264","v":0},{"$f":"[1]ACS_16_5YR_B17010_with_ann!AS264","v":11},{"$f":"[1]ACS_16_5YR_B17010_with_ann!AT264","v":871},{"$f":"[1]ACS_16_5YR_B17010_with_ann!AU264","v":91},{"$f":"[1]ACS_16_5YR_B17010_with_ann!AV264","v":750},{"$f":"[1]ACS_16_5YR_B17010_with_ann!AW264","v":119},{"$f":"[1]ACS_16_5YR_B17010_with_ann!AX264","v":235},{"$f":"[1]ACS_16_5YR_B17010_with_ann!AY264","v":97},{"$f":"[1]ACS_16_5YR_B17010_with_ann!AZ264","v":0},{"$f":"[1]ACS_16_5YR_B17010_with_ann!BA264","v":11},{"$f":"[1]ACS_16_5YR_B17010_with_ann!BB264","v":0},{"$f":"[1]ACS_16_5YR_B17010_with_ann!BC264","v":11},{"$f":"[1]ACS_16_5YR_B17010_with_ann!BD264","v":235},{"$f":"[1]ACS_16_5YR_B17010_with_ann!BE264","v":97},{"$f":"[1]ACS_16_5YR_B17010_with_ann!BF265","v":111},{"$f":"[1]ACS_16_5YR_B17010_with_ann!BG265","v":31},{"$f":"[1]ACS_16_5YR_B17010_with_ann!BH265","v":5},{"$f":"[1]ACS_16_5YR_B17010_with_ann!BI265","v":6},{"$f":"[1]ACS_16_5YR_B17010_with_ann!BJ265","v":0},{"$f":"[1]ACS_16_5YR_B17010_with_ann!BK265","v":11},{"$f":"[1]ACS_16_5YR_B17010_with_ann!BL265","v":0},{"$f":"[1]ACS_16_5YR_B17010_with_ann!BM265","v":11},{"$f":"[1]ACS_16_5YR_B17010_with_ann!BN265","v":0},{"$f":"[1]ACS_16_5YR_B17010_with_ann!BO265","v":11},{"$f":"[1]ACS_16_5YR_B17010_with_ann!BP265","v":0},{"$f":"[1]ACS_16_5YR_B17010_with_ann!BQ265","v":11},{"$f":"[1]ACS_16_5YR_B17010_with_ann!BR265","v":0},{"$f":"[1]ACS_16_5YR_B17010_with_ann!BS265","v":11},{"$f":"[1]ACS_16_5YR_B17010_with_ann!BT265","v":0},{"$f":"[1]ACS_16_5YR_B17010_with_ann!BU265","v":11},{"$f":"[1]ACS_16_5YR_B17010_with_ann!BV265","v":5},{"$f":"[1]ACS_16_5YR_B17010_with_ann!BW265","v":6},{"$f":"[1]ACS_16_5YR_B17010_with_ann!BX265","v":0},{"$f":"[1]ACS_16_5YR_B17010_with_ann!BY265","v":11},{"$f":"[1]ACS_16_5YR_B17010_with_ann!BZ265","v":0},{"$f":"[1]ACS_16_5YR_B17010_with_ann!CA265","v":11},{"$f":"[1]ACS_16_5YR_B17010_with_ann!CB265","v":0},{"$f":"[1]ACS_16_5YR_B17010_with_ann!CC265","v":11},{"$f":"[1]ACS_16_5YR_B17010_with_ann!CD265","v":0},{"$f":"[1]ACS_16_5YR_B17010_with_ann!CE265","v":11},{"$f":"[1]ACS_16_5YR_B17010_with_ann!CF265","v":5},{"$f":"[1]ACS_16_5YR_B17010_with_ann!CG265","v":6}]
["0600000US3301940900",3301940900,"060","Langdon",{"$f":"[1]ACS_16_5YR_B17010_with_ann!D265","v":190},{"$f":"[1]ACS_16_5YR_B17010_with_ann!E265","v":38},{"$f":"[1]ACS_16_5YR_B17010_with_ann!F265","v":22},{"$f":"[1]ACS_16_5YR_B17010_with_ann!G265","v":15},{"$f":"[1]ACS_16_5YR_B17010_with_ann!H265","v":11},{"$f":"[1]ACS_16_5YR_B17010_with_ann!I265","v":11},{"$f":"[1]ACS_16_5YR_B17010_with_ann!J265","v":8},{"$f":"[1]ACS_16_5YR_B17010_with_ann!K265","v":10},{"$f":"[1]ACS_16_5YR_B17010_with_ann!L265","v":0},{"$f":"[1]ACS_16_5YR_B17010_with_ann!M265","v":11},{"$f":"[1]ACS_16_5YR_B17010_with_ann!N265","v":6},{"$f":"[1]ACS_16_5YR_B17010_with_ann!O265","v":10},{"$f":"[1]ACS_16_5YR_B17010_with_ann!P265","v":2},{"$f":"[1]ACS_16_5YR_B17010_with_ann!Q265","v":3},{"$f":"[1]ACS_16_5YR_B17010_with_ann!R265","v":3},{"$f":"[1]ACS_16_5YR_B17010_with_ann!S265","v":4},{"$f":"[1]ACS_16_5YR_B17010_with_ann!T265","v":11},{"$f":"[1]ACS_16_5YR_B17010_with_ann!U265","v":12},{"$f":"[1]ACS_16_5YR_B17010_with_ann!V265","v":0},{"$f":"[1]ACS_16_5YR_B17010_with_ann!W265","v":11},{"$f":"[1]ACS_16_5YR_B17010_with_ann!X265","v":0},{"$f":"[1]ACS_16_5YR_B17010_with_ann!Y265","v":11},{"$f":"[1]ACS_16_5YR_B17010_with_ann!Z265","v":0},{"$f":"[1]ACS_16_5YR_B17010_with_ann!AA265","v":11},{"$f":"[1]ACS_16_5YR_B17010_with_ann!AB265","v":0},{"$f":"[1]ACS_16_5YR_B17010_with_ann!AC265","v":11},{"$f":"[1]ACS_16_5YR_B17010_with_ann!AD265","v":0},{"$f":"[1]ACS_16_5YR_B17010_with_ann!AE265","v":11},{"$f":"[1]ACS_16_5YR_B17010_with_ann!AF265","v":0},{"$f":"[1]ACS_16_5YR_B17010_with_ann!AG265","v":11},{"$f":"[1]ACS_16_5YR_B17010_with_ann!AH265","v":11},{"$f":"[1]ACS_16_5YR_B17010_with_ann!AI265","v":12},{"$f":"[1]ACS_16_5YR_B17010_with_ann!AJ265","v":11},{"$f":"[1]ACS_16_5YR_B17010_with_ann!AK265","v":12},{"$f":"[1]ACS_16_5YR_B17010_with_ann!AL265","v":0},{"$f":"[1]ACS_16_5YR_B17010_with_ann!AM265","v":11},{"$f":"[1]ACS_16_5YR_B17010_with_ann!AN265","v":2},{"$f":"[1]ACS_16_5YR_B17010_with_ann!AO265","v":3},{"$f":"[1]ACS_16_5YR_B17010_with_ann!AP265","v":9},{"$f":"[1]ACS_16_5YR_B17010_with_ann!AQ265","v":11},{"$f":"[1]ACS_16_5YR_B17010_with_ann!AR265","v":0},{"$f":"[1]ACS_16_5YR_B17010_with_ann!AS265","v":11},{"$f":"[1]ACS_16_5YR_B17010_with_ann!AT265","v":168},{"$f":"[1]ACS_16_5YR_B17010_with_ann!AU265","v":35},{"$f":"[1]ACS_16_5YR_B17010_with_ann!AV265","v":163},{"$f":"[1]ACS_16_5YR_B17010_with_ann!AW265","v":36},{"$f":"[1]ACS_16_5YR_B17010_with_ann!AX265","v":52},{"$f":"[1]ACS_16_5YR_B17010_with_ann!AY265","v":21},{"$f":"[1]ACS_16_5YR_B17010_with_ann!AZ265","v":8},{"$f":"[1]ACS_16_5YR_B17010_with_ann!BA265","v":6},{"$f":"[1]ACS_16_5YR_B17010_with_ann!BB265","v":13},{"$f":"[1]ACS_16_5YR_B17010_with_ann!BC265","v":13},{"$f":"[1]ACS_16_5YR_B17010_with_ann!BD265","v":31},{"$f":"[1]ACS_16_5YR_B17010_with_ann!BE265","v":15},{"$f":"[1]ACS_16_5YR_B17010_with_ann!BF266","v":127},{"$f":"[1]ACS_16_5YR_B17010_with_ann!BG266","v":41},{"$f":"[1]ACS_16_5YR_B17010_with_ann!BH266","v":43},{"$f":"[1]ACS_16_5YR_B17010_with_ann!BI266","v":30},{"$f":"[1]ACS_16_5YR_B17010_with_ann!BJ266","v":22},{"$f":"[1]ACS_16_5YR_B17010_with_ann!BK266","v":23},{"$f":"[1]ACS_16_5YR_B17010_with_ann!BL266","v":5},{"$f":"[1]ACS_16_5YR_B17010_with_ann!BM266","v":6},{"$f":"[1]ACS_16_5YR_B17010_with_ann!BN266","v":3},{"$f":"[1]ACS_16_5YR_B17010_with_ann!BO266","v":4},{"$f":"[1]ACS_16_5YR_B17010_with_ann!BP266","v":0},{"$f":"[1]ACS_16_5YR_B17010_with_ann!BQ266","v":11},{"$f":"[1]ACS_16_5YR_B17010_with_ann!BR266","v":2},{"$f":"[1]ACS_16_5YR_B17010_with_ann!BS266","v":5},{"$f":"[1]ACS_16_5YR_B17010_with_ann!BT266","v":17},{"$f":"[1]ACS_16_5YR_B17010_with_ann!BU266","v":22},{"$f":"[1]ACS_16_5YR_B17010_with_ann!BV266","v":21},{"$f":"[1]ACS_16_5YR_B17010_with_ann!BW266","v":18},{"$f":"[1]ACS_16_5YR_B17010_with_ann!BX266","v":19},{"$f":"[1]ACS_16_5YR_B17010_with_ann!BY266","v":17},{"$f":"[1]ACS_16_5YR_B17010_with_ann!BZ266","v":0},{"$f":"[1]ACS_16_5YR_B17010_with_ann!CA266","v":11},{"$f":"[1]ACS_16_5YR_B17010_with_ann!CB266","v":6},{"$f":"[1]ACS_16_5YR_B17010_with_ann!CC266","v":7},{"$f":"[1]ACS_16_5YR_B17010_with_ann!CD266","v":13},{"$f":"[1]ACS_16_5YR_B17010_with_ann!CE266","v":15},{"$f":"[1]ACS_16_5YR_B17010_with_ann!CF266","v":2},{"$f":"[1]ACS_16_5YR_B17010_with_ann!CG266","v":3}]
["0600000US3301941700",3301941700,"060","Lempster",{"$f":"[1]ACS_16_5YR_B17010_with_ann!D266","v":240},{"$f":"[1]ACS_16_5YR_B17010_with_ann!E266","v":47},{"$f":"[1]ACS_16_5YR_B17010_with_ann!F266","v":12},{"$f":"[1]ACS_16_5YR_B17010_with_ann!G266","v":14},{"$f":"[1]ACS_16_5YR_B17010_with_ann!H266","v":9},{"$f":"[1]ACS_16_5YR_B17010_with_ann!I266","v":14},{"$f":"[1]ACS_16_5YR_B17010_with_ann!J266","v":0},{"$f":"[1]ACS_16_5YR_B17010_with_ann!K266","v":11},{"$f":"[1]ACS_16_5YR_B17010_with_ann!L266","v":0},{"$f":"[1]ACS_16_5YR_B17010_with_ann!M266","v":11},{"$f":"[1]ACS_16_5YR_B17010_with_ann!N266","v":0},{"$f":"[1]ACS_16_5YR_B17010_with_ann!O266","v":11},{"$f":"[1]ACS_16_5YR_B17010_with_ann!P266","v":0},{"$f":"[1]ACS_16_5YR_B17010_with_ann!Q266","v":11},{"$f":"[1]ACS_16_5YR_B17010_with_ann!R266","v":9},{"$f":"[1]ACS_16_5YR_B17010_with_ann!S266","v":14},{"$f":"[1]ACS_16_5YR_B17010_with_ann!T266","v":3},{"$f":"[1]ACS_16_5YR_B17010_with_ann!U266","v":5},{"$f":"[1]ACS_16_5YR_B17010_with_ann!V266","v":0},{"$f":"[1]ACS_16_5YR_B17010_with_ann!W266","v":11},{"$f":"[1]ACS_16_5YR_B17010_with_ann!X266","v":0},{"$f":"[1]ACS_16_5YR_B17010_with_ann!Y266","v":11},{"$f":"[1]ACS_16_5YR_B17010_with_ann!Z266","v":0},{"$f":"[1]ACS_16_5YR_B17010_with_ann!AA266","v":11},{"$f":"[1]ACS_16_5YR_B17010_with_ann!AB266","v":0},{"$f":"[1]ACS_16_5YR_B17010_with_ann!AC266","v":11},{"$f":"[1]ACS_16_5YR_B17010_with_ann!AD266","v":0},{"$f":"[1]ACS_16_5YR_B17010_with_ann!AE266","v":11},{"$f":"[1]ACS_16_5YR_B17010_with_ann!AF266","v":0},{"$f":"[1]ACS_16_5YR_B17010_with_ann!AG266","v":11},{"$f":"[1]ACS_16_5YR_B17010_with_ann!AH266","v":3},{"$f":"[1]ACS_16_5YR_B17010_with_ann!AI266","v":5},{"$f":"[1]ACS_16_5YR_B17010_with_ann!AJ266","v":3},{"$f":"[1]ACS_16_5YR_B17010_with_ann!AK266","v":5},{"$f":"[1]ACS_16_5YR_B17010_with_ann!AL266","v":3},{"$f":"[1]ACS_16_5YR_B17010_with_ann!AM266","v":5},{"$f":"[1]ACS_16_5YR_B17010_with_ann!AN266","v":0},{"$f":"[1]ACS_16_5YR_B17010_with_ann!AO266","v":11},{"$f":"[1]ACS_16_5YR_B17010_with_ann!AP266","v":0},{"$f":"[1]ACS_16_5YR_B17010_with_ann!AQ266","v":11},{"$f":"[1]ACS_16_5YR_B17010_with_ann!AR266","v":0},{"$f":"[1]ACS_16_5YR_B17010_with_ann!AS266","v":11},{"$f":"[1]ACS_16_5YR_B17010_with_ann!AT266","v":228},{"$f":"[1]ACS_16_5YR_B17010_with_ann!AU266","v":48},{"$f":"[1]ACS_16_5YR_B17010_with_ann!AV266","v":185},{"$f":"[1]ACS_16_5YR_B17010_with_ann!AW266","v":43},{"$f":"[1]ACS_16_5YR_B17010_with_ann!AX266","v":58},{"$f":"[1]ACS_16_5YR_B17010_with_ann!AY266","v":27},{"$f":"[1]ACS_16_5YR_B17010_with_ann!AZ266","v":6},{"$f":"[1]ACS_16_5YR_B17010_with_ann!BA266","v":6},{"$f":"[1]ACS_16_5YR_B17010_with_ann!BB266","v":34},{"$f":"[1]ACS_16_5YR_B17010_with_ann!BC266","v":24},{"$f":"[1]ACS_16_5YR_B17010_with_ann!BD266","v":18},{"$f":"[1]ACS_16_5YR_B17010_with_ann!BE266","v":15},{"$f":"[1]ACS_16_5YR_B17010_with_ann!BF267","v":597},{"$f":"[1]ACS_16_5YR_B17010_with_ann!BG267","v":150},{"$f":"[1]ACS_16_5YR_B17010_with_ann!BH267","v":465},{"$f":"[1]ACS_16_5YR_B17010_with_ann!BI267","v":160},{"$f":"[1]ACS_16_5YR_B17010_with_ann!BJ267","v":106},{"$f":"[1]ACS_16_5YR_B17010_with_ann!BK267","v":81},{"$f":"[1]ACS_16_5YR_B17010_with_ann!BL267","v":24},{"$f":"[1]ACS_16_5YR_B17010_with_ann!BM267","v":25},{"$f":"[1]ACS_16_5YR_B17010_with_ann!BN267","v":24},{"$f":"[1]ACS_16_5YR_B17010_with_ann!BO267","v":25},{"$f":"[1]ACS_16_5YR_B17010_with_ann!BP267","v":0},{"$f":"[1]ACS_16_5YR_B17010_with_ann!BQ267","v":16},{"$f":"[1]ACS_16_5YR_B17010_with_ann!BR267","v":0},{"$f":"[1]ACS_16_5YR_B17010_with_ann!BS267","v":16},{"$f":"[1]ACS_16_5YR_B17010_with_ann!BT267","v":82},{"$f":"[1]ACS_16_5YR_B17010_with_ann!BU267","v":74},{"$f":"[1]ACS_16_5YR_B17010_with_ann!BV267","v":359},{"$f":"[1]ACS_16_5YR_B17010_with_ann!BW267","v":128},{"$f":"[1]ACS_16_5YR_B17010_with_ann!BX267","v":198},{"$f":"[1]ACS_16_5YR_B17010_with_ann!BY267","v":107},{"$f":"[1]ACS_16_5YR_B17010_with_ann!BZ267","v":66},{"$f":"[1]ACS_16_5YR_B17010_with_ann!CA267","v":73},{"$f":"[1]ACS_16_5YR_B17010_with_ann!CB267","v":0},{"$f":"[1]ACS_16_5YR_B17010_with_ann!CC267","v":16},{"$f":"[1]ACS_16_5YR_B17010_with_ann!CD267","v":132},{"$f":"[1]ACS_16_5YR_B17010_with_ann!CE267","v":87},{"$f":"[1]ACS_16_5YR_B17010_with_ann!CF267","v":161},{"$f":"[1]ACS_16_5YR_B17010_with_ann!CG267","v":106}]
["0600000US3301952580",3301952580,"060","Newport",{"$f":"[1]ACS_16_5YR_B17010_with_ann!D267","v":1572},{"$f":"[1]ACS_16_5YR_B17010_with_ann!E267","v":151},{"$f":"[1]ACS_16_5YR_B17010_with_ann!F267","v":153},{"$f":"[1]ACS_16_5YR_B17010_with_ann!G267","v":102},{"$f":"[1]ACS_16_5YR_B17010_with_ann!H267","v":13},{"$f":"[1]ACS_16_5YR_B17010_with_ann!I267","v":20},{"$f":"[1]ACS_16_5YR_B17010_with_ann!J267","v":0},{"$f":"[1]ACS_16_5YR_B17010_with_ann!K267","v":16},{"$f":"[1]ACS_16_5YR_B17010_with_ann!L267","v":0},{"$f":"[1]ACS_16_5YR_B17010_with_ann!M267","v":16},{"$f":"[1]ACS_16_5YR_B17010_with_ann!N267","v":0},{"$f":"[1]ACS_16_5YR_B17010_with_ann!O267","v":16},{"$f":"[1]ACS_16_5YR_B17010_with_ann!P267","v":0},{"$f":"[1]ACS_16_5YR_B17010_with_ann!Q267","v":16},{"$f":"[1]ACS_16_5YR_B17010_with_ann!R267","v":13},{"$f":"[1]ACS_16_5YR_B17010_with_ann!S267","v":20},{"$f":"[1]ACS_16_5YR_B17010_with_ann!T267","v":140},{"$f":"[1]ACS_16_5YR_B17010_with_ann!U267","v":100},{"$f":"[1]ACS_16_5YR_B17010_with_ann!V267","v":12},{"$f":"[1]ACS_16_5YR_B17010_with_ann!W267","v":21},{"$f":"[1]ACS_16_5YR_B17010_with_ann!X267","v":12},{"$f":"[1]ACS_16_5YR_B17010_with_ann!Y267","v":21},{"$f":"[1]ACS_16_5YR_B17010_with_ann!Z267","v":0},{"$f":"[1]ACS_16_5YR_B17010_with_ann!AA267","v":16},{"$f":"[1]ACS_16_5YR_B17010_with_ann!AB267","v":0},{"$f":"[1]ACS_16_5YR_B17010_with_ann!AC267","v":16},{"$f":"[1]ACS_16_5YR_B17010_with_ann!AD267","v":12},{"$f":"[1]ACS_16_5YR_B17010_with_ann!AE267","v":21},{"$f":"[1]ACS_16_5YR_B17010_with_ann!AF267","v":0},{"$f":"[1]ACS_16_5YR_B17010_with_ann!AG267","v":16},{"$f":"[1]ACS_16_5YR_B17010_with_ann!AH267","v":128},{"$f":"[1]ACS_16_5YR_B17010_with_ann!AI267","v":98},{"$f":"[1]ACS_16_5YR_B17010_with_ann!AJ267","v":75},{"$f":"[1]ACS_16_5YR_B17010_with_ann!AK267","v":78},{"$f":"[1]ACS_16_5YR_B17010_with_ann!AL267","v":0},{"$f":"[1]ACS_16_5YR_B17010_with_ann!AM267","v":16},{"$f":"[1]ACS_16_5YR_B17010_with_ann!AN267","v":36},{"$f":"[1]ACS_16_5YR_B17010_with_ann!AO267","v":53},{"$f":"[1]ACS_16_5YR_B17010_with_ann!AP267","v":39},{"$f":"[1]ACS_16_5YR_B17010_with_ann!AQ267","v":59},{"$f":"[1]ACS_16_5YR_B17010_with_ann!AR267","v":53},{"$f":"[1]ACS_16_5YR_B17010_with_ann!AS267","v":63},{"$f":"[1]ACS_16_5YR_B17010_with_ann!AT267","v":1419},{"$f":"[1]ACS_16_5YR_B17010_with_ann!AU267","v":180},{"$f":"[1]ACS_16_5YR_B17010_with_ann!AV267","v":954},{"$f":"[1]ACS_16_5YR_B17010_with_ann!AW267","v":147},{"$f":"[1]ACS_16_5YR_B17010_with_ann!AX267","v":357},{"$f":"[1]ACS_16_5YR_B17010_with_ann!AY267","v":110},{"$f":"[1]ACS_16_5YR_B17010_with_ann!AZ267","v":23},{"$f":"[1]ACS_16_5YR_B17010_with_ann!BA267","v":25},{"$f":"[1]ACS_16_5YR_B17010_with_ann!BB267","v":88},{"$f":"[1]ACS_16_5YR_B17010_with_ann!BC267","v":62},{"$f":"[1]ACS_16_5YR_B17010_with_ann!BD267","v":246},{"$f":"[1]ACS_16_5YR_B17010_with_ann!BE267","v":114},{"$f":"[1]ACS_16_5YR_B17010_with_ann!BF268","v":373},{"$f":"[1]ACS_16_5YR_B17010_with_ann!BG268","v":76},{"$f":"[1]ACS_16_5YR_B17010_with_ann!BH268","v":105},{"$f":"[1]ACS_16_5YR_B17010_with_ann!BI268","v":55},{"$f":"[1]ACS_16_5YR_B17010_with_ann!BJ268","v":17},{"$f":"[1]ACS_16_5YR_B17010_with_ann!BK268","v":15},{"$f":"[1]ACS_16_5YR_B17010_with_ann!BL268","v":5},{"$f":"[1]ACS_16_5YR_B17010_with_ann!BM268","v":7},{"$f":"[1]ACS_16_5YR_B17010_with_ann!BN268","v":0},{"$f":"[1]ACS_16_5YR_B17010_with_ann!BO268","v":11},{"$f":"[1]ACS_16_5YR_B17010_with_ann!BP268","v":0},{"$f":"[1]ACS_16_5YR_B17010_with_ann!BQ268","v":11},{"$f":"[1]ACS_16_5YR_B17010_with_ann!BR268","v":5},{"$f":"[1]ACS_16_5YR_B17010_with_ann!BS268","v":7},{"$f":"[1]ACS_16_5YR_B17010_with_ann!BT268","v":12},{"$f":"[1]ACS_16_5YR_B17010_with_ann!BU268","v":13},{"$f":"[1]ACS_16_5YR_B17010_with_ann!BV268","v":88},{"$f":"[1]ACS_16_5YR_B17010_with_ann!BW268","v":54},{"$f":"[1]ACS_16_5YR_B17010_with_ann!BX268","v":55},{"$f":"[1]ACS_16_5YR_B17010_with_ann!BY268","v":44},{"$f":"[1]ACS_16_5YR_B17010_with_ann!BZ268","v":0},{"$f":"[1]ACS_16_5YR_B17010_with_ann!CA268","v":11},{"$f":"[1]ACS_16_5YR_B17010_with_ann!CB268","v":0},{"$f":"[1]ACS_16_5YR_B17010_with_ann!CC268","v":11},{"$f":"[1]ACS_16_5YR_B17010_with_ann!CD268","v":55},{"$f":"[1]ACS_16_5YR_B17010_with_ann!CE268","v":44},{"$f":"[1]ACS_16_5YR_B17010_with_ann!CF268","v":33},{"$f":"[1]ACS_16_5YR_B17010_with_ann!CG268","v":24}]
["0600000US3301962340",3301962340,"060","Plainfield",{"$f":"[1]ACS_16_5YR_B17010_with_ann!D268","v":715},{"$f":"[1]ACS_16_5YR_B17010_with_ann!E268","v":79},{"$f":"[1]ACS_16_5YR_B17010_with_ann!F268","v":36},{"$f":"[1]ACS_16_5YR_B17010_with_ann!G268","v":29},{"$f":"[1]ACS_16_5YR_B17010_with_ann!H268","v":25},{"$f":"[1]ACS_16_5YR_B17010_with_ann!I268","v":28},{"$f":"[1]ACS_16_5YR_B17010_with_ann!J268","v":0},{"$f":"[1]ACS_16_5YR_B17010_with_ann!K268","v":11},{"$f":"[1]ACS_16_5YR_B17010_with_ann!L268","v":0},{"$f":"[1]ACS_16_5YR_B17010_with_ann!M268","v":11},{"$f":"[1]ACS_16_5YR_B17010_with_ann!N268","v":0},{"$f":"[1]ACS_16_5YR_B17010_with_ann!O268","v":11},{"$f":"[1]ACS_16_5YR_B17010_with_ann!P268","v":0},{"$f":"[1]ACS_16_5YR_B17010_with_ann!Q268","v":11},{"$f":"[1]ACS_16_5YR_B17010_with_ann!R268","v":25},{"$f":"[1]ACS_16_5YR_B17010_with_ann!S268","v":28},{"$f":"[1]ACS_16_5YR_B17010_with_ann!T268","v":11},{"$f":"[1]ACS_16_5YR_B17010_with_ann!U268","v":11},{"$f":"[1]ACS_16_5YR_B17010_with_ann!V268","v":6},{"$f":"[1]ACS_16_5YR_B17010_with_ann!W268","v":9},{"$f":"[1]ACS_16_5YR_B17010_with_ann!X268","v":0},{"$f":"[1]ACS_16_5YR_B17010_with_ann!Y268","v":11},{"$f":"[1]ACS_16_5YR_B17010_with_ann!Z268","v":0},{"$f":"[1]ACS_16_5YR_B17010_with_ann!AA268","v":11},{"$f":"[1]ACS_16_5YR_B17010_with_ann!AB268","v":0},{"$f":"[1]ACS_16_5YR_B17010_with_ann!AC268","v":11},{"$f":"[1]ACS_16_5YR_B17010_with_ann!AD268","v":0},{"$f":"[1]ACS_16_5YR_B17010_with_ann!AE268","v":11},{"$f":"[1]ACS_16_5YR_B17010_with_ann!AF268","v":6},{"$f":"[1]ACS_16_5YR_B17010_with_ann!AG268","v":9},{"$f":"[1]ACS_16_5YR_B17010_with_ann!AH268","v":5},{"$f":"[1]ACS_16_5YR_B17010_with_ann!AI268","v":7},{"$f":"[1]ACS_16_5YR_B17010_with_ann!AJ268","v":0},{"$f":"[1]ACS_16_5YR_B17010_with_ann!AK268","v":11},{"$f":"[1]ACS_16_5YR_B17010_with_ann!AL268","v":0},{"$f":"[1]ACS_16_5YR_B17010_with_ann!AM268","v":11},{"$f":"[1]ACS_16_5YR_B17010_with_ann!AN268","v":0},{"$f":"[1]ACS_16_5YR_B17010_with_ann!AO268","v":11},{"$f":"[1]ACS_16_5YR_B17010_with_ann!AP268","v":0},{"$f":"[1]ACS_16_5YR_B17010_with_ann!AQ268","v":11},{"$f":"[1]ACS_16_5YR_B17010_with_ann!AR268","v":5},{"$f":"[1]ACS_16_5YR_B17010_with_ann!AS268","v":7},{"$f":"[1]ACS_16_5YR_B17010_with_ann!AT268","v":679},{"$f":"[1]ACS_16_5YR_B17010_with_ann!AU268","v":84},{"$f":"[1]ACS_16_5YR_B17010_with_ann!AV268","v":574},{"$f":"[1]ACS_16_5YR_B17010_with_ann!AW268","v":87},{"$f":"[1]ACS_16_5YR_B17010_with_ann!AX268","v":201},{"$f":"[1]ACS_16_5YR_B17010_with_ann!AY268","v":61},{"$f":"[1]ACS_16_5YR_B17010_with_ann!AZ268","v":26},{"$f":"[1]ACS_16_5YR_B17010_with_ann!BA268","v":28},{"$f":"[1]ACS_16_5YR_B17010_with_ann!BB268","v":38},{"$f":"[1]ACS_16_5YR_B17010_with_ann!BC268","v":24},{"$f":"[1]ACS_16_5YR_B17010_with_ann!BD268","v":137},{"$f":"[1]ACS_16_5YR_B17010_with_ann!BE268","v":49},{"$f":"[1]ACS_16_5YR_B17010_with_ann!BF269","v":216},{"$f":"[1]ACS_16_5YR_B17010_with_ann!BG269","v":54},{"$f":"[1]ACS_16_5YR_B17010_with_ann!BH269","v":33},{"$f":"[1]ACS_16_5YR_B17010_with_ann!BI269","v":26},{"$f":"[1]ACS_16_5YR_B17010_with_ann!BJ269","v":5},{"$f":"[1]ACS_16_5YR_B17010_with_ann!BK269","v":8},{"$f":"[1]ACS_16_5YR_B17010_with_ann!BL269","v":0},{"$f":"[1]ACS_16_5YR_B17010_with_ann!BM269","v":11},{"$f":"[1]ACS_16_5YR_B17010_with_ann!BN269","v":0},{"$f":"[1]ACS_16_5YR_B17010_with_ann!BO269","v":11},{"$f":"[1]ACS_16_5YR_B17010_with_ann!BP269","v":0},{"$f":"[1]ACS_16_5YR_B17010_with_ann!BQ269","v":11},{"$f":"[1]ACS_16_5YR_B17010_with_ann!BR269","v":0},{"$f":"[1]ACS_16_5YR_B17010_with_ann!BS269","v":11},{"$f":"[1]ACS_16_5YR_B17010_with_ann!BT269","v":5},{"$f":"[1]ACS_16_5YR_B17010_with_ann!BU269","v":8},{"$f":"[1]ACS_16_5YR_B17010_with_ann!BV269","v":28},{"$f":"[1]ACS_16_5YR_B17010_with_ann!BW269","v":24},{"$f":"[1]ACS_16_5YR_B17010_with_ann!BX269","v":20},{"$f":"[1]ACS_16_5YR_B17010_with_ann!BY269","v":22},{"$f":"[1]ACS_16_5YR_B17010_with_ann!BZ269","v":10},{"$f":"[1]ACS_16_5YR_B17010_with_ann!CA269","v":16},{"$f":"[1]ACS_16_5YR_B17010_with_ann!CB269","v":0},{"$f":"[1]ACS_16_5YR_B17010_with_ann!CC269","v":11},{"$f":"[1]ACS_16_5YR_B17010_with_ann!CD269","v":10},{"$f":"[1]ACS_16_5YR_B17010_with_ann!CE269","v":16},{"$f":"[1]ACS_16_5YR_B17010_with_ann!CF269","v":8},{"$f":"[1]ACS_16_5YR_B17010_with_ann!CG269","v":10}]
["0600000US3301972740",3301972740,"060","Springfield",{"$f":"[1]ACS_16_5YR_B17010_with_ann!D269","v":337},{"$f":"[1]ACS_16_5YR_B17010_with_ann!E269","v":66},{"$f":"[1]ACS_16_5YR_B17010_with_ann!F269","v":9},{"$f":"[1]ACS_16_5YR_B17010_with_ann!G269","v":10},{"$f":"[1]ACS_16_5YR_B17010_with_ann!H269","v":9},{"$f":"[1]ACS_16_5YR_B17010_with_ann!I269","v":10},{"$f":"[1]ACS_16_5YR_B17010_with_ann!J269","v":9},{"$f":"[1]ACS_16_5YR_B17010_with_ann!K269","v":10},{"$f":"[1]ACS_16_5YR_B17010_with_ann!L269","v":0},{"$f":"[1]ACS_16_5YR_B17010_with_ann!M269","v":11},{"$f":"[1]ACS_16_5YR_B17010_with_ann!N269","v":0},{"$f":"[1]ACS_16_5YR_B17010_with_ann!O269","v":11},{"$f":"[1]ACS_16_5YR_B17010_with_ann!P269","v":9},{"$f":"[1]ACS_16_5YR_B17010_with_ann!Q269","v":10},{"$f":"[1]ACS_16_5YR_B17010_with_ann!R269","v":0},{"$f":"[1]ACS_16_5YR_B17010_with_ann!S269","v":11},{"$f":"[1]ACS_16_5YR_B17010_with_ann!T269","v":0},{"$f":"[1]ACS_16_5YR_B17010_with_ann!U269","v":11},{"$f":"[1]ACS_16_5YR_B17010_with_ann!V269","v":0},{"$f":"[1]ACS_16_5YR_B17010_with_ann!W269","v":11},{"$f":"[1]ACS_16_5YR_B17010_with_ann!X269","v":0},{"$f":"[1]ACS_16_5YR_B17010_with_ann!Y269","v":11},{"$f":"[1]ACS_16_5YR_B17010_with_ann!Z269","v":0},{"$f":"[1]ACS_16_5YR_B17010_with_ann!AA269","v":11},{"$f":"[1]ACS_16_5YR_B17010_with_ann!AB269","v":0},{"$f":"[1]ACS_16_5YR_B17010_with_ann!AC269","v":11},{"$f":"[1]ACS_16_5YR_B17010_with_ann!AD269","v":0},{"$f":"[1]ACS_16_5YR_B17010_with_ann!AE269","v":11},{"$f":"[1]ACS_16_5YR_B17010_with_ann!AF269","v":0},{"$f":"[1]ACS_16_5YR_B17010_with_ann!AG269","v":11},{"$f":"[1]ACS_16_5YR_B17010_with_ann!AH269","v":0},{"$f":"[1]ACS_16_5YR_B17010_with_ann!AI269","v":11},{"$f":"[1]ACS_16_5YR_B17010_with_ann!AJ269","v":0},{"$f":"[1]ACS_16_5YR_B17010_with_ann!AK269","v":11},{"$f":"[1]ACS_16_5YR_B17010_with_ann!AL269","v":0},{"$f":"[1]ACS_16_5YR_B17010_with_ann!AM269","v":11},{"$f":"[1]ACS_16_5YR_B17010_with_ann!AN269","v":0},{"$f":"[1]ACS_16_5YR_B17010_with_ann!AO269","v":11},{"$f":"[1]ACS_16_5YR_B17010_with_ann!AP269","v":0},{"$f":"[1]ACS_16_5YR_B17010_with_ann!AQ269","v":11},{"$f":"[1]ACS_16_5YR_B17010_with_ann!AR269","v":0},{"$f":"[1]ACS_16_5YR_B17010_with_ann!AS269","v":11},{"$f":"[1]ACS_16_5YR_B17010_with_ann!AT269","v":328},{"$f":"[1]ACS_16_5YR_B17010_with_ann!AU269","v":68},{"$f":"[1]ACS_16_5YR_B17010_with_ann!AV269","v":295},{"$f":"[1]ACS_16_5YR_B17010_with_ann!AW269","v":62},{"$f":"[1]ACS_16_5YR_B17010_with_ann!AX269","v":79},{"$f":"[1]ACS_16_5YR_B17010_with_ann!AY269","v":39},{"$f":"[1]ACS_16_5YR_B17010_with_ann!AZ269","v":3},{"$f":"[1]ACS_16_5YR_B17010_with_ann!BA269","v":5},{"$f":"[1]ACS_16_5YR_B17010_with_ann!BB269","v":3},{"$f":"[1]ACS_16_5YR_B17010_with_ann!BC269","v":5},{"$f":"[1]ACS_16_5YR_B17010_with_ann!BD269","v":73},{"$f":"[1]ACS_16_5YR_B17010_with_ann!BE269","v":39},{"$f":"[1]ACS_16_5YR_B17010_with_ann!BF270","v":438},{"$f":"[1]ACS_16_5YR_B17010_with_ann!BG270","v":105},{"$f":"[1]ACS_16_5YR_B17010_with_ann!BH270","v":123},{"$f":"[1]ACS_16_5YR_B17010_with_ann!BI270","v":56},{"$f":"[1]ACS_16_5YR_B17010_with_ann!BJ270","v":47},{"$f":"[1]ACS_16_5YR_B17010_with_ann!BK270","v":37},{"$f":"[1]ACS_16_5YR_B17010_with_ann!BL270","v":30},{"$f":"[1]ACS_16_5YR_B17010_with_ann!BM270","v":33},{"$f":"[1]ACS_16_5YR_B17010_with_ann!BN270","v":0},{"$f":"[1]ACS_16_5YR_B17010_with_ann!BO270","v":11},{"$f":"[1]ACS_16_5YR_B17010_with_ann!BP270","v":18},{"$f":"[1]ACS_16_5YR_B17010_with_ann!BQ270","v":27},{"$f":"[1]ACS_16_5YR_B17010_with_ann!BR270","v":12},{"$f":"[1]ACS_16_5YR_B17010_with_ann!BS270","v":19},{"$f":"[1]ACS_16_5YR_B17010_with_ann!BT270","v":17},{"$f":"[1]ACS_16_5YR_B17010_with_ann!BU270","v":21},{"$f":"[1]ACS_16_5YR_B17010_with_ann!BV270","v":76},{"$f":"[1]ACS_16_5YR_B17010_with_ann!BW270","v":42},{"$f":"[1]ACS_16_5YR_B17010_with_ann!BX270","v":48},{"$f":"[1]ACS_16_5YR_B17010_with_ann!BY270","v":34},{"$f":"[1]ACS_16_5YR_B17010_with_ann!BZ270","v":24},{"$f":"[1]ACS_16_5YR_B17010_with_ann!CA270","v":24},{"$f":"[1]ACS_16_5YR_B17010_with_ann!CB270","v":0},{"$f":"[1]ACS_16_5YR_B17010_with_ann!CC270","v":11},{"$f":"[1]ACS_16_5YR_B17010_with_ann!CD270","v":24},{"$f":"[1]ACS_16_5YR_B17010_with_ann!CE270","v":27},{"$f":"[1]ACS_16_5YR_B17010_with_ann!CF270","v":28},{"$f":"[1]ACS_16_5YR_B17010_with_ann!CG270","v":22}]
["0600000US3301975060",3301975060,"060","Sunapee",{"$f":"[1]ACS_16_5YR_B17010_with_ann!D270","v":901},{"$f":"[1]ACS_16_5YR_B17010_with_ann!E270","v":90},{"$f":"[1]ACS_16_5YR_B17010_with_ann!F270","v":67},{"$f":"[1]ACS_16_5YR_B17010_with_ann!G270","v":55},{"$f":"[1]ACS_16_5YR_B17010_with_ann!H270","v":42},{"$f":"[1]ACS_16_5YR_B17010_with_ann!I270","v":50},{"$f":"[1]ACS_16_5YR_B17010_with_ann!J270","v":31},{"$f":"[1]ACS_16_5YR_B17010_with_ann!K270","v":48},{"$f":"[1]ACS_16_5YR_B17010_with_ann!L270","v":0},{"$f":"[1]ACS_16_5YR_B17010_with_ann!M270","v":11},{"$f":"[1]ACS_16_5YR_B17010_with_ann!N270","v":0},{"$f":"[1]ACS_16_5YR_B17010_with_ann!O270","v":11},{"$f":"[1]ACS_16_5YR_B17010_with_ann!P270","v":31},{"$f":"[1]ACS_16_5YR_B17010_with_ann!Q270","v":48},{"$f":"[1]ACS_16_5YR_B17010_with_ann!R270","v":11},{"$f":"[1]ACS_16_5YR_B17010_with_ann!S270","v":17},{"$f":"[1]ACS_16_5YR_B17010_with_ann!T270","v":25},{"$f":"[1]ACS_16_5YR_B17010_with_ann!U270","v":20},{"$f":"[1]ACS_16_5YR_B17010_with_ann!V270","v":6},{"$f":"[1]ACS_16_5YR_B17010_with_ann!W270","v":10},{"$f":"[1]ACS_16_5YR_B17010_with_ann!X270","v":6},{"$f":"[1]ACS_16_5YR_B17010_with_ann!Y270","v":10},{"$f":"[1]ACS_16_5YR_B17010_with_ann!Z270","v":0},{"$f":"[1]ACS_16_5YR_B17010_with_ann!AA270","v":11},{"$f":"[1]ACS_16_5YR_B17010_with_ann!AB270","v":0},{"$f":"[1]ACS_16_5YR_B17010_with_ann!AC270","v":11},{"$f":"[1]ACS_16_5YR_B17010_with_ann!AD270","v":6},{"$f":"[1]ACS_16_5YR_B17010_with_ann!AE270","v":10},{"$f":"[1]ACS_16_5YR_B17010_with_ann!AF270","v":0},{"$f":"[1]ACS_16_5YR_B17010_with_ann!AG270","v":11},{"$f":"[1]ACS_16_5YR_B17010_with_ann!AH270","v":19},{"$f":"[1]ACS_16_5YR_B17010_with_ann!AI270","v":16},{"$f":"[1]ACS_16_5YR_B17010_with_ann!AJ270","v":19},{"$f":"[1]ACS_16_5YR_B17010_with_ann!AK270","v":16},{"$f":"[1]ACS_16_5YR_B17010_with_ann!AL270","v":19},{"$f":"[1]ACS_16_5YR_B17010_with_ann!AM270","v":16},{"$f":"[1]ACS_16_5YR_B17010_with_ann!AN270","v":0},{"$f":"[1]ACS_16_5YR_B17010_with_ann!AO270","v":11},{"$f":"[1]ACS_16_5YR_B17010_with_ann!AP270","v":0},{"$f":"[1]ACS_16_5YR_B17010_with_ann!AQ270","v":11},{"$f":"[1]ACS_16_5YR_B17010_with_ann!AR270","v":0},{"$f":"[1]ACS_16_5YR_B17010_with_ann!AS270","v":11},{"$f":"[1]ACS_16_5YR_B17010_with_ann!AT270","v":834},{"$f":"[1]ACS_16_5YR_B17010_with_ann!AU270","v":107},{"$f":"[1]ACS_16_5YR_B17010_with_ann!AV270","v":711},{"$f":"[1]ACS_16_5YR_B17010_with_ann!AW270","v":114},{"$f":"[1]ACS_16_5YR_B17010_with_ann!AX270","v":273},{"$f":"[1]ACS_16_5YR_B17010_with_ann!AY270","v":67},{"$f":"[1]ACS_16_5YR_B17010_with_ann!AZ270","v":8},{"$f":"[1]ACS_16_5YR_B17010_with_ann!BA270","v":12},{"$f":"[1]ACS_16_5YR_B17010_with_ann!BB270","v":81},{"$f":"[1]ACS_16_5YR_B17010_with_ann!BC270","v":59},{"$f":"[1]ACS_16_5YR_B17010_with_ann!BD270","v":184},{"$f":"[1]ACS_16_5YR_B17010_with_ann!BE270","v":66},{"$f":"[1]ACS_16_5YR_B17010_with_ann!BF271","v":311},{"$f":"[1]ACS_16_5YR_B17010_with_ann!BG271","v":44},{"$f":"[1]ACS_16_5YR_B17010_with_ann!BH271","v":44},{"$f":"[1]ACS_16_5YR_B17010_with_ann!BI271","v":22},{"$f":"[1]ACS_16_5YR_B17010_with_ann!BJ271","v":18},{"$f":"[1]ACS_16_5YR_B17010_with_ann!BK271","v":11},{"$f":"[1]ACS_16_5YR_B17010_with_ann!BL271","v":9},{"$f":"[1]ACS_16_5YR_B17010_with_ann!BM271","v":7},{"$f":"[1]ACS_16_5YR_B17010_with_ann!BN271","v":0},{"$f":"[1]ACS_16_5YR_B17010_with_ann!BO271","v":11},{"$f":"[1]ACS_16_5YR_B17010_with_ann!BP271","v":0},{"$f":"[1]ACS_16_5YR_B17010_with_ann!BQ271","v":11},{"$f":"[1]ACS_16_5YR_B17010_with_ann!BR271","v":9},{"$f":"[1]ACS_16_5YR_B17010_with_ann!BS271","v":7},{"$f":"[1]ACS_16_5YR_B17010_with_ann!BT271","v":9},{"$f":"[1]ACS_16_5YR_B17010_with_ann!BU271","v":7},{"$f":"[1]ACS_16_5YR_B17010_with_ann!BV271","v":26},{"$f":"[1]ACS_16_5YR_B17010_with_ann!BW271","v":19},{"$f":"[1]ACS_16_5YR_B17010_with_ann!BX271","v":20},{"$f":"[1]ACS_16_5YR_B17010_with_ann!BY271","v":18},{"$f":"[1]ACS_16_5YR_B17010_with_ann!BZ271","v":10},{"$f":"[1]ACS_16_5YR_B17010_with_ann!CA271","v":14},{"$f":"[1]ACS_16_5YR_B17010_with_ann!CB271","v":4},{"$f":"[1]ACS_16_5YR_B17010_with_ann!CC271","v":6},{"$f":"[1]ACS_16_5YR_B17010_with_ann!CD271","v":6},{"$f":"[1]ACS_16_5YR_B17010_with_ann!CE271","v":5},{"$f":"[1]ACS_16_5YR_B17010_with_ann!CF271","v":6},{"$f":"[1]ACS_16_5YR_B17010_with_ann!CG271","v":6}]
["0600000US3301977940",3301977940,"060","Unity",{"$f":"[1]ACS_16_5YR_B17010_with_ann!D271","v":406},{"$f":"[1]ACS_16_5YR_B17010_with_ann!E271","v":48},{"$f":"[1]ACS_16_5YR_B17010_with_ann!F271","v":22},{"$f":"[1]ACS_16_5YR_B17010_with_ann!G271","v":20},{"$f":"[1]ACS_16_5YR_B17010_with_ann!H271","v":19},{"$f":"[1]ACS_16_5YR_B17010_with_ann!I271","v":19},{"$f":"[1]ACS_16_5YR_B17010_with_ann!J271","v":0},{"$f":"[1]ACS_16_5YR_B17010_with_ann!K271","v":11},{"$f":"[1]ACS_16_5YR_B17010_with_ann!L271","v":0},{"$f":"[1]ACS_16_5YR_B17010_with_ann!M271","v":11},{"$f":"[1]ACS_16_5YR_B17010_with_ann!N271","v":0},{"$f":"[1]ACS_16_5YR_B17010_with_ann!O271","v":11},{"$f":"[1]ACS_16_5YR_B17010_with_ann!P271","v":0},{"$f":"[1]ACS_16_5YR_B17010_with_ann!Q271","v":11},{"$f":"[1]ACS_16_5YR_B17010_with_ann!R271","v":19},{"$f":"[1]ACS_16_5YR_B17010_with_ann!S271","v":19},{"$f":"[1]ACS_16_5YR_B17010_with_ann!T271","v":3},{"$f":"[1]ACS_16_5YR_B17010_with_ann!U271","v":4},{"$f":"[1]ACS_16_5YR_B17010_with_ann!V271","v":3},{"$f":"[1]ACS_16_5YR_B17010_with_ann!W271","v":4},{"$f":"[1]ACS_16_5YR_B17010_with_ann!X271","v":3},{"$f":"[1]ACS_16_5YR_B17010_with_ann!Y271","v":4},{"$f":"[1]ACS_16_5YR_B17010_with_ann!Z271","v":0},{"$f":"[1]ACS_16_5YR_B17010_with_ann!AA271","v":11},{"$f":"[1]ACS_16_5YR_B17010_with_ann!AB271","v":0},{"$f":"[1]ACS_16_5YR_B17010_with_ann!AC271","v":11},{"$f":"[1]ACS_16_5YR_B17010_with_ann!AD271","v":3},{"$f":"[1]ACS_16_5YR_B17010_with_ann!AE271","v":4},{"$f":"[1]ACS_16_5YR_B17010_with_ann!AF271","v":0},{"$f":"[1]ACS_16_5YR_B17010_with_ann!AG271","v":11},{"$f":"[1]ACS_16_5YR_B17010_with_ann!AH271","v":0},{"$f":"[1]ACS_16_5YR_B17010_with_ann!AI271","v":11},{"$f":"[1]ACS_16_5YR_B17010_with_ann!AJ271","v":0},{"$f":"[1]ACS_16_5YR_B17010_with_ann!AK271","v":11},{"$f":"[1]ACS_16_5YR_B17010_with_ann!AL271","v":0},{"$f":"[1]ACS_16_5YR_B17010_with_ann!AM271","v":11},{"$f":"[1]ACS_16_5YR_B17010_with_ann!AN271","v":0},{"$f":"[1]ACS_16_5YR_B17010_with_ann!AO271","v":11},{"$f":"[1]ACS_16_5YR_B17010_with_ann!AP271","v":0},{"$f":"[1]ACS_16_5YR_B17010_with_ann!AQ271","v":11},{"$f":"[1]ACS_16_5YR_B17010_with_ann!AR271","v":0},{"$f":"[1]ACS_16_5YR_B17010_with_ann!AS271","v":11},{"$f":"[1]ACS_16_5YR_B17010_with_ann!AT271","v":384},{"$f":"[1]ACS_16_5YR_B17010_with_ann!AU271","v":50},{"$f":"[1]ACS_16_5YR_B17010_with_ann!AV271","v":340},{"$f":"[1]ACS_16_5YR_B17010_with_ann!AW271","v":45},{"$f":"[1]ACS_16_5YR_B17010_with_ann!AX271","v":29},{"$f":"[1]ACS_16_5YR_B17010_with_ann!AY271","v":17},{"$f":"[1]ACS_16_5YR_B17010_with_ann!AZ271","v":0},{"$f":"[1]ACS_16_5YR_B17010_with_ann!BA271","v":11},{"$f":"[1]ACS_16_5YR_B17010_with_ann!BB271","v":3},{"$f":"[1]ACS_16_5YR_B17010_with_ann!BC271","v":6},{"$f":"[1]ACS_16_5YR_B17010_with_ann!BD271","v":26},{"$f":"[1]ACS_16_5YR_B17010_with_ann!BE271","v":17},{"$f":"[1]ACS_16_5YR_B17010_with_ann!BF272","v":320},{"$f":"[1]ACS_16_5YR_B17010_with_ann!BG272","v":74},{"$f":"[1]ACS_16_5YR_B17010_with_ann!BH272","v":32},{"$f":"[1]ACS_16_5YR_B17010_with_ann!BI272","v":22},{"$f":"[1]ACS_16_5YR_B17010_with_ann!BJ272","v":9},{"$f":"[1]ACS_16_5YR_B17010_with_ann!BK272","v":13},{"$f":"[1]ACS_16_5YR_B17010_with_ann!BL272","v":3},{"$f":"[1]ACS_16_5YR_B17010_with_ann!BM272","v":4},{"$f":"[1]ACS_16_5YR_B17010_with_ann!BN272","v":0},{"$f":"[1]ACS_16_5YR_B17010_with_ann!BO272","v":11},{"$f":"[1]ACS_16_5YR_B17010_with_ann!BP272","v":0},{"$f":"[1]ACS_16_5YR_B17010_with_ann!BQ272","v":11},{"$f":"[1]ACS_16_5YR_B17010_with_ann!BR272","v":3},{"$f":"[1]ACS_16_5YR_B17010_with_ann!BS272","v":4},{"$f":"[1]ACS_16_5YR_B17010_with_ann!BT272","v":6},{"$f":"[1]ACS_16_5YR_B17010_with_ann!BU272","v":14},{"$f":"[1]ACS_16_5YR_B17010_with_ann!BV272","v":23},{"$f":"[1]ACS_16_5YR_B17010_with_ann!BW272","v":17},{"$f":"[1]ACS_16_5YR_B17010_with_ann!BX272","v":7},{"$f":"[1]ACS_16_5YR_B17010_with_ann!BY272","v":8},{"$f":"[1]ACS_16_5YR_B17010_with_ann!BZ272","v":0},{"$f":"[1]ACS_16_5YR_B17010_with_ann!CA272","v":11},{"$f":"[1]ACS_16_5YR_B17010_with_ann!CB272","v":0},{"$f":"[1]ACS_16_5YR_B17010_with_ann!CC272","v":11},{"$f":"[1]ACS_16_5YR_B17010_with_ann!CD272","v":7},{"$f":"[1]ACS_16_5YR_B17010_with_ann!CE272","v":8},{"$f":"[1]ACS_16_5YR_B17010_with_ann!CF272","v":16},{"$f":"[1]ACS_16_5YR_B17010_with_ann!CG272","v":16}]
["0600000US3301978980",3301978980,"060","Washington",{"$f":"[1]ACS_16_5YR_B17010_with_ann!D272","v":419},{"$f":"[1]ACS_16_5YR_B17010_with_ann!E272","v":78},{"$f":"[1]ACS_16_5YR_B17010_with_ann!F272","v":6},{"$f":"[1]ACS_16_5YR_B17010_with_ann!G272","v":6},{"$f":"[1]ACS_16_5YR_B17010_with_ann!H272","v":6},{"$f":"[1]ACS_16_5YR_B17010_with_ann!I272","v":6},{"$f":"[1]ACS_16_5YR_B17010_with_ann!J272","v":0},{"$f":"[1]ACS_16_5YR_B17010_with_ann!K272","v":11},{"$f":"[1]ACS_16_5YR_B17010_with_ann!L272","v":0},{"$f":"[1]ACS_16_5YR_B17010_with_ann!M272","v":11},{"$f":"[1]ACS_16_5YR_B17010_with_ann!N272","v":0},{"$f":"[1]ACS_16_5YR_B17010_with_ann!O272","v":11},{"$f":"[1]ACS_16_5YR_B17010_with_ann!P272","v":0},{"$f":"[1]ACS_16_5YR_B17010_with_ann!Q272","v":11},{"$f":"[1]ACS_16_5YR_B17010_with_ann!R272","v":6},{"$f":"[1]ACS_16_5YR_B17010_with_ann!S272","v":6},{"$f":"[1]ACS_16_5YR_B17010_with_ann!T272","v":0},{"$f":"[1]ACS_16_5YR_B17010_with_ann!U272","v":11},{"$f":"[1]ACS_16_5YR_B17010_with_ann!V272","v":0},{"$f":"[1]ACS_16_5YR_B17010_with_ann!W272","v":11},{"$f":"[1]ACS_16_5YR_B17010_with_ann!X272","v":0},{"$f":"[1]ACS_16_5YR_B17010_with_ann!Y272","v":11},{"$f":"[1]ACS_16_5YR_B17010_with_ann!Z272","v":0},{"$f":"[1]ACS_16_5YR_B17010_with_ann!AA272","v":11},{"$f":"[1]ACS_16_5YR_B17010_with_ann!AB272","v":0},{"$f":"[1]ACS_16_5YR_B17010_with_ann!AC272","v":11},{"$f":"[1]ACS_16_5YR_B17010_with_ann!AD272","v":0},{"$f":"[1]ACS_16_5YR_B17010_with_ann!AE272","v":11},{"$f":"[1]ACS_16_5YR_B17010_with_ann!AF272","v":0},{"$f":"[1]ACS_16_5YR_B17010_with_ann!AG272","v":11},{"$f":"[1]ACS_16_5YR_B17010_with_ann!AH272","v":0},{"$f":"[1]ACS_16_5YR_B17010_with_ann!AI272","v":11},{"$f":"[1]ACS_16_5YR_B17010_with_ann!AJ272","v":0},{"$f":"[1]ACS_16_5YR_B17010_with_ann!AK272","v":11},{"$f":"[1]ACS_16_5YR_B17010_with_ann!AL272","v":0},{"$f":"[1]ACS_16_5YR_B17010_with_ann!AM272","v":11},{"$f":"[1]ACS_16_5YR_B17010_with_ann!AN272","v":0},{"$f":"[1]ACS_16_5YR_B17010_with_ann!AO272","v":11},{"$f":"[1]ACS_16_5YR_B17010_with_ann!AP272","v":0},{"$f":"[1]ACS_16_5YR_B17010_with_ann!AQ272","v":11},{"$f":"[1]ACS_16_5YR_B17010_with_ann!AR272","v":0},{"$f":"[1]ACS_16_5YR_B17010_with_ann!AS272","v":11},{"$f":"[1]ACS_16_5YR_B17010_with_ann!AT272","v":413},{"$f":"[1]ACS_16_5YR_B17010_with_ann!AU272","v":78},{"$f":"[1]ACS_16_5YR_B17010_with_ann!AV272","v":381},{"$f":"[1]ACS_16_5YR_B17010_with_ann!AW272","v":79},{"$f":"[1]ACS_16_5YR_B17010_with_ann!AX272","v":61},{"$f":"[1]ACS_16_5YR_B17010_with_ann!AY272","v":26},{"$f":"[1]ACS_16_5YR_B17010_with_ann!AZ272","v":0},{"$f":"[1]ACS_16_5YR_B17010_with_ann!BA272","v":11},{"$f":"[1]ACS_16_5YR_B17010_with_ann!BB272","v":3},{"$f":"[1]ACS_16_5YR_B17010_with_ann!BC272","v":4},{"$f":"[1]ACS_16_5YR_B17010_with_ann!BD272","v":58},{"$f":"[1]ACS_16_5YR_B17010_with_ann!BE272","v":26},{"$f":"[1]ACS_16_5YR_B17010_with_ann!BF273","v":0},{"$f":"[1]ACS_16_5YR_B17010_with_ann!BG273","v":0},{"$f":"[1]ACS_16_5YR_B17010_with_ann!BH273","v":0},{"$f":"[1]ACS_16_5YR_B17010_with_ann!BI273","v":0},{"$f":"[1]ACS_16_5YR_B17010_with_ann!BJ273","v":0},{"$f":"[1]ACS_16_5YR_B17010_with_ann!BK273","v":0},{"$f":"[1]ACS_16_5YR_B17010_with_ann!BL273","v":0},{"$f":"[1]ACS_16_5YR_B17010_with_ann!BM273","v":0},{"$f":"[1]ACS_16_5YR_B17010_with_ann!BN273","v":0},{"$f":"[1]ACS_16_5YR_B17010_with_ann!BO273","v":0},{"$f":"[1]ACS_16_5YR_B17010_with_ann!BP273","v":0},{"$f":"[1]ACS_16_5YR_B17010_with_ann!BQ273","v":0},{"$f":"[1]ACS_16_5YR_B17010_with_ann!BR273","v":0},{"$f":"[1]ACS_16_5YR_B17010_with_ann!BS273","v":0},{"$f":"[1]ACS_16_5YR_B17010_with_ann!BT273","v":0},{"$f":"[1]ACS_16_5YR_B17010_with_ann!BU273","v":0},{"$f":"[1]ACS_16_5YR_B17010_with_ann!BV273","v":0},{"$f":"[1]ACS_16_5YR_B17010_with_ann!BW273","v":0},{"$f":"[1]ACS_16_5YR_B17010_with_ann!BX273","v":0},{"$f":"[1]ACS_16_5YR_B17010_with_ann!BY273","v":0},{"$f":"[1]ACS_16_5YR_B17010_with_ann!BZ273","v":0},{"$f":"[1]ACS_16_5YR_B17010_with_ann!CA273","v":0},{"$f":"[1]ACS_16_5YR_B17010_with_ann!CB273","v":0},{"$f":"[1]ACS_16_5YR_B17010_with_ann!CC273","v":0},{"$f":"[1]ACS_16_5YR_B17010_with_ann!CD273","v":0},{"$f":"[1]ACS_16_5YR_B17010_with_ann!CE273","v":0},{"$f":"[1]ACS_16_5YR_B17010_with_ann!CF273","v":0},{"$f":"[1]ACS_16_5YR_B17010_with_ann!CG273","v":0}]
[]
[null,null,null,null,{"$f":"$D$3","v":"Acworth"},null,{"$f":"$D$4","v":"Charlestown"},null,{"$f":"$D$5","v":"Claremont"},null,{"$f":"$D$6","v":"Cornish"},null,{"$f":"$D$7","v":"Croydon"},null,{"$f":"$D$8","v":"Goshen"},null,{"$f":"$D$9","v":"Grantham"},null,{"$f":"$D$10","v":"Langdon"},null,{"$f":"$D$11","v":"Lempster"},null,{"$f":"$D$12","v":"Newport"},null,{"$f":"$D$13","v":"Plainfield"},null,{"$f":"$D$14","v":"Springfield"},null,{"$f":"$D$15","v":"Sunapee"},null,{"$f":"$D$16","v":"Unity"},null,{"$f":"$D$17","v":"Washington"}]
[null,null,null,null,"Estimate","Margin Of Error","Estimate","Margin Of Error","Estimate","Margin Of Error","Estimate","Margin Of Error","Estimate","Margin Of Error","Estimate","Margin Of Error","Estimate","Margin Of Error","Estimate","Margin Of Error","Estimate","Margin Of Error","Estimate","Margin Of Error","Estimate","Margin Of Error","Estimate","Margin Of Error","Estimate","Margin Of Error",null,"Estimate","Margin Of Error"]
[null,null,null,"Estimate Total:",255,43,1379,163,3165,231,526,72,187,46,163,36,902,98,190,38,240,47,1572,151,715,79,337,66,901,90,406,48,419,78]
[null,null,null,"Estimate Total: Income in the past 12 months below poverty level:",9,12,93,61,342,138,23,24,12,15,16,12,31,43,22,15,12,14,153,102,36,29,9,10,67,55,22,20,6,6]
[null,null,null,"Estimate Total: Income in the past 12 months below poverty level: Married-couple family:",9,12,42,44,116,70,19,23,5,10,5,6,0,11,11,11,9,14,13,20,25,28,9,10,42,50,19,19,6,6]
[null,null,null,"Estimate Total: Income in the past 12 months below poverty level: Married-couple family: With related children of the householder under 18 years:",0,11,42,44,95,60,19,23,0,11,0,11,0,11,8,10,0,11,0,16,0,11,9,10,31,48,0,11,0,11]
[null,null,null,"Estimate Total: Income in the past 12 months below poverty level: Married-couple family: With related children of the householder under 18 years: Under 5 years only",0,11,0,16,0,18,0,11,0,11,0,11,0,11,0,11,0,11,0,16,0,11,0,11,0,11,0,11,0,11]
[null,null,null,"Estimate Total: Income in the past 12 months below poverty level: Married-couple family: With related children of the householder under 18 years: Under 5 years and 5 to 17 years",0,11,42,44,38,40,4,7,0,11,0,11,0,11,6,10,0,11,0,16,0,11,0,11,0,11,0,11,0,11]
[null,null,null,"Estimate Total: Income in the past 12 months below poverty level: Married-couple family: With related children of the householder under 18 years: 5 to 17 years only",0,11,0,16,57,48,15,22,0,11,0,11,0,11,2,3,0,11,0,16,0,11,9,10,31,48,0,11,0,11]
[null,null,null,"Estimate Total: Income in the past 12 months below poverty level: Married-couple family: No related children of the householder under 18 years",9,12,0,16,21,25,0,11,5,10,5,6,0,11,3,4,9,14,13,20,25,28,0,11,11,17,19,19,6,6]
[null,null,null,"Estimate Total: Income in the past 12 months below poverty level: Other family:",0,11,51,54,226,124,4,6,7,11,11,10,31,43,11,12,3,5,140,100,11,11,0,11,25,20,3,4,0,11]
[null,null,null,"Estimate Total: Income in the past 12 months below poverty level: Other family: Male householder",0,11,6,9,24,32,0,11,0,11,9,10,0,11,0,11,0,11,12,21,6,9,0,11,6,10,3,4,0,11]
[null,null,null,"Estimate Total: Income in the past 12 months below poverty level: Other family: Male householder",0,11,6,9,24,32,0,11,0,11,9,10,0,11,0,11,0,11,12,21,0,11,0,11,6,10,3,4,0,11]
[null,null,null,"Estimate Total: Income in the past 12 months below poverty level: Other family: Male householder",0,11,0,16,0,18,0,11,0,11,0,11,0,11,0,11,0,11,0,16,0,11,0,11,0,11,0,11,0,11]
[null,null,null,"Estimate Total: Income in the past 12 months below poverty level: Other family: Male householder",0,11,0,16,24,32,0,11,0,11,6,9,0,11,0,11,0,11,0,16,0,11,0,11,0,11,0,11,0,11]
[null,null,null,"Estimate Total: Income in the past 12 months below poverty level: Other family: Male householder",0,11,6,9,0,18,0,11,0,11,3,4,0,11,0,11,0,11,12,21,0,11,0,11,6,10,3,4,0,11]
[null,null,null,"Estimate Total: Income in the past 12 months below poverty level: Other family: Male householder",0,11,0,16,0,18,0,11,0,11,0,11,0,11,0,11,0,11,0,16,6,9,0,11,0,11,0,11,0,11]
[null,null,null,"Estimate Total: Income in the past 12 months below poverty level: Other family: Female householder",0,11,45,53,202,122,4,6,7,11,2,3,31,43,11,12,3,5,128,98,5,7,0,11,19,16,0,11,0,11]
[null,null,null,"Estimate Total: Income in the past 12 months below poverty level: Other family: Female householder",0,11,29,47,154,98,4,6,7,11,2,3,31,43,11,12,3,5,75,78,0,11,0,11,19,16,0,11,0,11]
[null,null,null,"Estimate Total: Income in the past 12 months below poverty level: Other family: Female householder",0,11,0,16,122,90,0,11,0,11,2,3,0,11,0,11,3,5,0,16,0,11,0,11,19,16,0,11,0,11]
[null,null,null,"Estimate Total: Income in the past 12 months below poverty level: Other family: Female householder",0,11,0,16,21,33,0,11,7,11,0,11,0,11,2,3,0,11,36,53,0,11,0,11,0,11,0,11,0,11]
[null,null,null,"Estimate Total: Income in the past 12 months below poverty level: Other family: Female householder",0,11,29,47,11,16,4,6,0,11,0,11,31,43,9,11,0,11,39,59,0,11,0,11,0,11,0,11,0,11]
[null,null,null,"Estimate Total: Income in the past 12 months below poverty level: Other family: Female householder",0,11,16,26,48,66,0,11,0,11,0,11,0,11,0,11,0,11,53,63,5,7,0,11,0,11,0,11,0,11]
[null,null,null,"Estimate Total: Income in the past 12 months at or above poverty level:",246,45,1286,178,2823,244,503,68,175,45,147,33,871,91,168,35,228,48,1419,180,679,84,328,68,834,107,384,50,413,78]
[null,null,null,"Estimate Total: Income in the past 12 months at or above poverty level: Married-couple family:",209,41,910,195,2002,234,463,65,153,46,107,29,750,119,163,36,185,43,954,147,574,87,295,62,711,114,340,45,381,79]
[null,null,null,"Estimate Total: Income in the past 12 months at or above poverty level: Married-couple family: With related children of the householder under 18 years:",45,22,155,86,647,155,103,33,44,26,41,22,235,97,52,21,58,27,357,110,201,61,79,39,273,67,29,17,61,26]
[null,null,null,"Estimate Total: Income in the past 12 months at or above poverty level: Married-couple family: With related children of the householder under 18 years: Under 5 years only",11,11,59,60,114,74,20,12,10,10,4,4,0,11,8,6,6,6,23,25,26,28,3,5,8,12,0,11,0,11]
[null,null,null,"Estimate Total: Income in the past 12 months at or above poverty level: Married-couple family: With related children of the householder under 18 years: Under 5 years and 5 to 17 years",7,6,0,16,125,108,16,11,0,11,12,11,0,11,13,13,34,24,88,62,38,24,3,5,81,59,3,6,3,4]
[null,null,null,"Estimate Total: Income in the past 12 months at or above poverty level: Married-couple family: With related children of the householder under 18 years: 5 to 17 years only",27,18,96,68,408,119,67,27,34,22,25,19,235,97,31,15,18,15,246,114,137,49,73,39,184,66,26,17,58,26]
[null,null,null,"Estimate Total: Income in the past 12 months at or above poverty level: Married-couple family: No related children of the householder under 18 years",164,40,755,170,1355,213,109,36,66,23,515,120,111,31,127,41,597,150,373,76,216,54,438,105,311,44,320,74,0,0]
[null,null,null,"Estimate Total: Income in the past 12 months at or above poverty level: Other family:",37,19,376,138,821,172,22,12,40,20,121,69,5,6,43,30,465,160,105,55,33,26,123,56,44,22,32,22,0,0]
[null,null,null,"Estimate Total: Income in the past 12 months at or above poverty level: Other family: Male householder",23,14,177,107,176,79,12,9,21,16,89,68,0,11,22,23,106,81,17,15,5,8,47,37,18,11,9,13,0,0]
[null,null,null,"Estimate Total: Income in the past 12 months at or above poverty level: Other family: Male householder",11,8,149,103,133,79,10,9,19,16,89,68,0,11,5,6,24,25,5,7,0,11,30,33,9,7,3,4,0,0]
[null,null,null,"Estimate Total: Income in the past 12 months at or above poverty level: Other family: Male householder",2,3,32,53,0,18,0,11,2,3,0,11,0,11,3,4,24,25,0,11,0,11,0,11,0,11,0,11,0,0]
[null,null,null,"Estimate Total: Income in the past 12 months at or above poverty level: Other family: Male householder",7,7,65,69,0,18,0,11,7,10,0,11,0,11,0,11,0,16,0,11,0,11,18,27,0,11,0,11,0,0]
[null,null,null,"Estimate Total: Income in the past 12 months at or above poverty level: Other family: Male householder",2,3,52,65,133,79,10,9,10,12,89,68,0,11,2,5,0,16,5,7,0,11,12,19,9,7,3,4,0,0]
[null,null,null,"Estimate Total: Income in the past 12 months at or above poverty level: Other family: Male householder",12,11,28,30,43,37,2,3,2,3,0,11,0,11,17,22,82,74,12,13,5,8,17,21,9,7,6,14,0,0]
[null,null,null,"Estimate Total: Income in the past 12 months at or above poverty level: Other family: Female householder",14,12,199,96,645,172,10,9,19,14,32,31,5,6,21,18,359,128,88,54,28,24,76,42,26,19,23,17,0,0]
[null,null,null,"Estimate Total: Income in the past 12 months at or above poverty level: Other family: Female householder",0,11,103,84,420,137,5,6,6,6,14,21,0,11,19,17,198,107,55,44,20,22,48,34,20,18,7,8,0,0]
[null,null,null,"Estimate Total: Income in the past 12 months at or above poverty level: Other family: Female householder",0,11,0,16,132,86,0,11,0,11,0,11,0,11,0,11,66,73,0,11,10,16,24,24,10,14,0,11,0,0]
[null,null,null,"Estimate Total: Income in the past 12 months at or above poverty level: Other family: Female householder",0,11,53,71,68,51,0,11,0,11,0,11,0,11,6,7,0,16,0,11,0,11,0,11,4,6,0,11,0,0]
[null,null,null,"Estimate Total: Income in the past 12 months at or above poverty level: Other family: Female householder",0,11,50,46,220,111,5,6,6,6,14,21,0,11,13,15,132,87,55,44,10,16,24,27,6,5,7,8,0,0]
[null,null,null,"Estimate Total: Income in the past 12 months at or above poverty level: Other family: Female householder",14,12,96,70,225,92,5,6,13,12,18,25,5,6,2,3,161,106,33,24,8,10,28,22,6,6,16,16,0,0]

{"sheet":"SData_B17017_HH PovStat","index":32,"n_rows":79,"n_cols":122,"rows_kept":79,"cut":false,"hidden":true,"merged":[]}
["GEO_ID","GEO_ID2","SUMLEVEL","GEO_NAME","B17017_1_EST","B17017_1_MOE","B17017_2_EST","B17017_2_MOE","B17017_3_EST","B17017_3_MOE","B17017_4_EST","B17017_4_MOE","B17017_5_EST","B17017_5_MOE","B17017_6_EST","B17017_6_MOE","B17017_7_EST","B17017_7_MOE","B17017_8_EST","B17017_8_MOE","B17017_9_EST","B17017_9_MOE","B17017_10_EST","B17017_10_MOE","B17017_11_EST","B17017_11_MOE","B17017_12_EST","B17017_12_MOE","B17017_13_EST","B17017_13_MOE","B17017_14_EST","B17017_14_MOE","B17017_15_EST","B17017_15_MOE","B17017_16_EST","B17017_16_MOE","B17017_17_EST","B17017_17_MOE","B17017_18_EST","B17017_18_MOE","B17017_19_EST","B17017_19_MOE","B17017_20_EST","B17017_20_MOE","B17017_21_EST","B17017_21_MOE","B17017_22_EST","B17017_22_MOE","B17017_23_EST","B17017_23_MOE","B17017_24_EST","B17017_24_MOE","B17017_25_EST","B17017_25_MOE","B17017_26_EST","B17017_26_MOE","B17017_27_EST","B17017_27_MOE","B17017_28_EST","B17017_28_MOE","B17017_29_EST","B17017_29_MOE","B17017_30_EST","B17017_30_MOE","B17017_31_EST","B17017_31_MOE","B17017_32_EST","B17017_32_MOE","B17017_33_EST","B17017_33_MOE","B17017_34_EST","B17017_34_MOE","B17017_35_EST","B17017_35_MOE","B17017_36_EST","B17017_36_MOE","B17017_37_EST","B17017_37_MOE","B17017_38_EST","B17017_38_MOE","B17017_39_EST","B17017_39_MOE","B17017_40_EST","B17017_40_MOE","B17017_41_EST","B17017_41_MOE","B17017_42_EST","B17017_42_MOE","B17017_43_EST","B17017_43_MOE","B17017_44_EST","B17017_44_MOE","B17017_45_EST","B17017_45_MOE","B17017_46_EST","B17017_46_MOE","B17017_47_EST","B17017_47_MOE","B17017_48_EST","B17017_48_MOE","B17017_49_EST","B17017_49_MOE","B17017_50_EST","B17017_50_MOE","B17017_51_EST","B17017_51_MOE","B17017_52_EST","B17017_52_MOE","B17017_53_EST","B17017_53_MOE","B17017_54_EST","B17017_54_MOE","B17017_55_EST","B17017_55_MOE","B17017_56_EST","B17017_56_MOE","B17017_57_EST","B17017_57_MOE","B17017_58_EST","B17017_58_MOE","B17017_59_EST","B17017_59_MOE"]
["Geography Identifier","Geography Identifier","Geographic Summary Level","Geography",{"$f":"[1]ACS_16_5YR_B17017_with_ann!D$2","v":"Estimate Total:"},{"$f":"[1]ACS_16_5YR_B17017_with_ann!E$2","v":"Margin of Error Total:"},{"$f":"[1]ACS_16_5YR_B17017_with_ann!F$2","v":"Estimate Total: Income in the past 12 months below poverty level:"},{"$f":"[1]ACS_16_5YR_B17017_with_ann!G$2","v":"Margin of Error Total: Income in the past 12 months below poverty level:"},{"$f":"[1]ACS_16_5YR_B17017_with_ann!H$2","v":"Estimate Total: Income in the past 12 months below poverty level: Family households:"},{"$f":"[1]ACS_16_5YR_B17017_with_ann!I$2","v":"Margin of Error Total: Income in the past 12 months below poverty level: Family households:"},{"$f":"[1]ACS_16_5YR_B17017_with_ann!J$2","v":"Estimate Total: Income in the past 12 months below poverty level: Family households: Married-couple family:"},{"$f":"[1]ACS_16_5YR_B17017_with_ann!K$2","v":"Margin of Error Total: Income in the past 12 months below poverty level: Family households: Married-couple family:"},{"$f":"[1]ACS_16_5YR_B17017_with_ann!L$2","v":"Estimate Total: Income in the past 12 months below poverty level: Family households: Married-couple family: Householder under 25 years"},{"$f":"[1]ACS_16_5YR_B17017_with_ann!M$2","v":"Margin of Error Total: Income in the past 12 months below poverty level: Family households: Married-couple family: Householder under 25 years"},{"$f":"[1]ACS_16_5YR_B17017_with_ann!N$2","v":"Estimate Total: Income in the past 12 months below poverty level: Family households: Married-couple family: Householder 25 to 44 years"},{"$f":"[1]ACS_16_5YR_B17017_with_ann!O$2","v":"Margin of Error Total: Income in the past 12 months below poverty level: Family households: Married-couple family: Householder 25 to 44 years"},{"$f":"[1]ACS_16_5YR_B17017_with_ann!P$2","v":"Estimate Total: Income in the past 12 months below poverty level: Family households: Married-couple family: Householder 45 to 64 years"},{"$f":"[1]ACS_16_5YR_B17017_with_ann!Q$2","v":"Margin of Error Total: Income in the past 12 months below poverty level: Family households: Married-couple family: Householder 45 to 64 years"},{"$f":"[1]ACS_16_5YR_B17017_with_ann!R$2","v":"Estimate Total: Income in the past 12 months below poverty level: Family households: Married-couple family: Householder 65 years and over"},{"$f":"[1]ACS_16_5YR_B17017_with_ann!S$2","v":"Margin of Error Total: Income in the past 12 months below poverty level: Family households: Married-couple family: Householder 65 years and over"},{"$f":"[1]ACS_16_5YR_B17017_with_ann!T$2","v":"Estimate Total: Income in the past 12 months below poverty level: Family households: Other family:"},{"$f":"[1]ACS_16_5YR_B17017_with_ann!U$2","v":"Margin of Error Total: Income in the past 12 months below poverty level: Family households: Other family:"},{"$f":"[1]ACS_16_5YR_B17017_with_ann!V$2","v":"Estimate Total: Income in the past 12 months below poverty level: Family households: Other family: Male householder"},{"$f":"[1]ACS_16_5YR_B17017_with_ann!W$2","v":"Margin of Error Total: Income in the past 12 months below poverty level: Family households: Other family: Male householder"},{"$f":"[1]ACS_16_5YR_B17017_with_ann!X$2","v":"Estimate Total: Income in the past 12 months below poverty level: Family households: Other family: Male householder"},{"$f":"[1]ACS_16_5YR_B17017_with_ann!Y$2","v":"Margin of Error Total: Income in the past 12 months below poverty level: Family households: Other family: Male householder"},{"$f":"[1]ACS_16_5YR_B17017_with_ann!Z$2","v":"Estimate Total: Income in the past 12 months below poverty level: Family households: Other family: Male householder"},{"$f":"[1]ACS_16_5YR_B17017_with_ann!AA$2","v":"Margin of Error Total: Income in the past 12 months below poverty level: Family households: Other family: Male householder"},{"$f":"[1]ACS_16_5YR_B17017_with_ann!AB$2","v":"Estimate Total: Income in the past 12 months below poverty level: Family households: Other family: Male householder"},{"$f":"[1]ACS_16_5YR_B17017_with_ann!AC$2","v":"Margin of Error Total: Income in the past 12 months below poverty level: Family households: Other family: Male householder"},{"$f":"[1]ACS_16_5YR_B17017_with_ann!AD$2","v":"Estimate Total: Income in the past 12 months below poverty level: Family households: Other family: Male householder"},{"$f":"[1]ACS_16_5YR_B17017_with_ann!AE$2","v":"Margin of Error Total: Income in the past 12 months below poverty level: Family households: Other family: Male householder"},{"$f":"[1]ACS_16_5YR_B17017_with_ann!AF$2","v":"Estimate Total: Income in the past 12 months below poverty level: Family households: Other family: Female householder"},{"$f":"[1]ACS_16_5YR_B17017_with_ann!AG$2","v":"Margin of Error Total: Income in the past 12 months below poverty level: Family households: Other family: Female householder"},{"$f":"[1]ACS_16_5YR_B17017_with_ann!AH$2","v":"Estimate Total: Income in the past 12 months below poverty level: Family households: Other family: Female householder"},{"$f":"[1]ACS_16_5YR_B17017_with_ann!AI$2","v":"Margin of Error Total: Income in the past 12 months below poverty level: Family households: Other family: Female householder"},{"$f":"[1]ACS_16_5YR_B17017_with_ann!AJ$2","v":"Estimate Total: Income in the past 12 months below poverty level: Family households: Other family: Female householder"},{"$f":"[1]ACS_16_5YR_B17017_with_ann!AK$2","v":"Margin of Error Total: Income in the past 12 months below poverty level: Family households: Other family: Female householder"},{"$f":"[1]ACS_16_5YR_B17017_with_ann!AL$2","v":"Estimate Total: Income in the past 12 months below poverty level: Family households: Other family: Female householder"},{"$f":"[1]ACS_16_5YR_B17017_with_ann!AM$2","v":"Margin of Error Total: Income in the past 12 months below poverty level: Family households: Other family: Female householder"},{"$f":"[1]ACS_16_5YR_B17017_with_ann!AN$2","v":"Estimate Total: Income in the past 12 months below poverty level: Family households: Other family: Female householder"},{"$f":"[1]ACS_16_5YR_B17017_with_ann!AO$2","v":"Margin of Error Total: Income in the past 12 months below poverty level: Family households: Other family: Female householder"},{"$f":"[1]ACS_16_5YR_B17017_with_ann!AP$2","v":"Estimate Total: Income in the past 12 months below poverty level: Nonfamily households:"},{"$f":"[1]ACS_16_5YR_B17017_with_ann!AQ$2","v":"Margin of Error Total: Income in the past 12 months below poverty level: Nonfamily households:"},{"$f":"[1]ACS_16_5YR_B17017_with_ann!AR$2","v":"Estimate Total: Income in the past 12 months below poverty level: Nonfamily households: Male householder:"},{"$f":"[1]ACS_16_5YR_B17017_with_ann!AS$2","v":"Margin of Error Total: Income in the past 12 months below poverty level: Nonfamily households: Male householder:"},{"$f":"[1]ACS_16_5YR_B17017_with_ann!AT$2","v":"Estimate Total: Income in the past 12 months below poverty level: Nonfamily households: Male householder: Householder under 25 years"},{"$f":"[1]ACS_16_5YR_B17017_with_ann!AU$2","v":"Margin of Error Total: Income in the past 12 months below poverty level: Nonfamily households: Male householder: Householder under 25 years"},{"$f":"[1]ACS_16_5YR_B17017_with_ann!AV$2","v":"Estimate Total: Income in the past 12 months below poverty level: Nonfamily households: Male householder: Householder 25 to 44 years"},{"$f":"[1]ACS_16_5YR_B17017_with_ann!AW$2","v":"Margin of Error Total: Income in the past 12 months below poverty level: Nonfamily households: Male householder: Householder 25 to 44 years"},{"$f":"[1]ACS_16_5YR_B17017_with_ann!AX$2","v":"Estimate Total: Income in the past 12 months below poverty level: Nonfamily households: Male householder: Householder 45 to 64 years"},{"$f":"[1]ACS_16_5YR_B17017_with_ann!AY$2","v":"Margin of Error Total: Income in the past 12 months below poverty level: Nonfamily households: Male householder: Householder 45 to 64 years"},{"$f":"[1]ACS_16_5YR_B17017_with_ann!AZ$2","v":"Estimate Total: Income in the past 12 months below poverty level: Nonfamily households: Male householder: Householder 65 years and over"},{"$f":"[1]ACS_16_5YR_B17017_with_ann!BA$2","v":"Margin of Error Total: Income in the past 12 months below poverty level: Nonfamily households: Male householder: Householder 65 years and over"},{"$f":"[1]ACS_16_5YR_B17017_with_ann!BB$2","v":"Estimate Total: Income in the past 12 months below poverty level: Nonfamily households: Female householder:"},{"$f":"[1]ACS_16_5YR_B17017_with_ann!BC$2","v":"Margin of Error Total: Income in the past 12 months below poverty level: Nonfamily households: Female householder:"},{"$f":"[1]ACS_16_5YR_B17017_with_ann!BD$2","v":"Estimate Total: Income in the past 12 months below poverty level: Nonfamily households: Female householder: Householder under 25 years"},{"$f":"[1]ACS_16_5YR_B17017_with_ann!BE$2","v":"Margin of Error Total: Income in the past 12 months below poverty level: Nonfamily households: Female householder: Householder under 25 years"},{"$f":"[1]ACS_16_5YR_B17017_with_ann!BF$2","v":"Estimate Total: Income in the past 12 months below poverty level: Nonfamily households: Female householder: Householder 25 to 44 years"},{"$f":"[1]ACS_16_5YR_B17017_with_ann!BG$2","v":"Margin of Error Total: Income in the past 12 months below poverty level: Nonfamily households: Female householder: Householder 25 to 44 years"},{"$f":"[1]ACS_16_5YR_B17017_with_ann!BH$2","v":"Estimate Total: Income in the past 12 months below poverty level: Nonfamily households: Female householder: Householder 45 to 64 years"},{"$f":"[1]ACS_16_5YR_B17017_with_ann!BI$2","v":"Margin of Error Total: Income in the past 12 months below poverty level: Nonfamily households: Female householder: Householder 45 to 64 years"},{"$f":"[1]ACS_16_5YR_B17017_with_ann!BJ$2","v":"Estimate Total: Income in the past 12 months below poverty level: Nonfamily households: Female householder: Householder 65 years and over"},{"$f":"[1]ACS_16_5YR_B17017_with_ann!BK$2","v":"Margin of Error Total: Income in the past 12 months below poverty level: Nonfamily households: Female householder: Householder 65 years and over"},{"$f":"[1]ACS_16_5YR_B17017_with_ann!BL$2","v":"Estimate Total: Income in the past 12 months at or above poverty level:"},{"$f":"[1]ACS_16_5YR_B17017_with_ann!BM$2","v":"Margin of Error Total: Income in the past 12 months at or above poverty level:"},{"$f":"[1]ACS_16_5YR_B17017_with_ann!BN$2","v":"Estimate Total: Income in the past 12 months at or above poverty level: Family households:"},{"$f":"[1]ACS_16_5YR_B17017_with_ann!BO$2","v":"Margin of Error Total: Income in the past 12 months at or above poverty level: Family households:"},{"$f":"[1]ACS_16_5YR_B17017_with_ann!BP$2","v":"Estimate Total: Income in the past 12 months at or above poverty level: Family households: Married-couple family:"},{"$f":"[1]ACS_16_5YR_B17017_with_ann!BQ$2","v":"Margin of Error Total: Income in the past 12 months at or above poverty level: Family households: Married-couple family:"},{"$f":"[1]ACS_16_5YR_B17017_with_ann!BR$2","v":"Estimate Total: Income in the past 12 months at or above poverty level: Family households: Married-couple family: Householder under 25 years"},{"$f":"[1]ACS_16_5YR_B17017_with_ann!BS$2","v":"Margin of Error Total: Income in the past 12 months at or above poverty level: Family households: Married-couple family: Householder under 25 years"},{"$f":"[1]ACS_16_5YR_B17017_with_ann!BT$2","v":"Estimate Total: Income in the past 12 months at or above poverty level: Family households: Married-couple family: Householder 25 to 44 years"},{"$f":"[1]ACS_16_5YR_B17017_with_ann!BU$2","v":"Margin of Error Total: Income in the past 12 months at or above poverty level: Family households: Married-couple family: Householder 25 to 44 years"},{"$f":"[1]ACS_16_5YR_B17017_with_ann!BV$2","v":"Estimate Total: Income in the past 12 months at or above poverty level: Family households: Married-couple family: Householder 45 to 64 years"},{"$f":"[1]ACS_16_5YR_B17017_with_ann!BW$2","v":"Margin of Error Total: Income in the past 12 months at or above poverty level: Family households: Married-couple family: Householder 45 to 64 years"},{"$f":"[1]ACS_16_5YR_B17017_with_ann!BX$2","v":"Estimate Total: Income in the past 12 months at or above poverty level: Family households: Married-couple family: Householder 65 years and over"},{"$f":"[1]ACS_16_5YR_B17017_with_ann!BY$2","v":"Margin of Error Total: Income in the past 12 months at or above poverty level: Family households: Married-couple family: Householder 65 years and over"},{"$f":"[1]ACS_16_5YR_B17017_with_ann!BZ$2","v":"Estimate Total: Income in the past 12 months at or above poverty level: Family households: Other family:"},{"$f":"[1]ACS_16_5YR_B17017_with_ann!CA$2","v":"Margin of Error Total: Income in the past 12 months at or above poverty level: Family households: Other family:"},{"$f":"[1]ACS_16_5YR_B17017_with_ann!CB$2","v":"Estimate Total: Income in the past 12 months at or above poverty level: Family households: Other family: Male householder"},{"$f":"[1]ACS_16_5YR_B17017_with_ann!CC$2","v":"Margin of Error Total: Income in the past 12 months at or above poverty level: Family households: Other family: Male householder"},{"$f":"[1]ACS_16_5YR_B17017_with_ann!CD$2","v":"Estimate Total: Income in the past 12 months at or above poverty level: Family households: Other family: Male householder"},{"$f":"[1]ACS_16_5YR_B17017_with_ann!CE$2","v":"Margin of Error Total: Income in the past 12 months at or above poverty level: Family households: Other family: Male householder"},{"$f":"[1]ACS_16_5YR_B17017_with_ann!CF$2","v":"Estimate Total: Income in the past 12 months at or above poverty level: Family households: Other family: Male householder"},{"$f":"[1]ACS_16_5YR_B17017_with_ann!CG$2","v":"Margin of Error Total: Income in the past 12 months at or above poverty level: Family households: Other family: Male householder"},{"$f":"[1]ACS_16_5YR_B17017_with_ann!CH$2","v":"Estimate Total: Income in the past 12 months at or above poverty level: Family households: Other family: Male householder"},{"$f":"[1]ACS_16_5YR_B17017_with_ann!CI$2","v":"Margin of Error Total: Income in the past 12 months at or above poverty level: Family households: Other family: Male householder"},{"$f":"[1]ACS_16_5YR_B17017_with_ann!CJ$2","v":"Estimate Total: Income in the past 12 months at or above poverty level: Family households: Other family: Male householder"},{"$f":"[1]ACS_16_5YR_B17017_with_ann!CK$2","v":"Margin of Error Total: Income in the past 12 months at or above poverty level: Family households: Other family: Male householder"},{"$f":"[1]ACS_16_5YR_B17017_with_ann!CL$2","v":"Estimate Total: Income in the past 12 months at or above poverty level: Family households: Other family: Female householder"},{"$f":"[1]ACS_16_5YR_B17017_with_ann!CM$2","v":"Margin of Error Total: Income in the past 12 months at or above poverty level: Family households: Other family: Female householder"},{"$f":"[1]ACS_16_5YR_B17017_with_ann!CN$2","v":"Estimate Total: Income in the past 12 months at or above poverty level: Family households: Other family: Female householder"},{"$f":"[1]ACS_16_5YR_B17017_with_ann!CO$2","v":"Margin of Error Total: Income in the past 12 months at or above poverty level: Family households: Other family: Female householder"},{"$f":"[1]ACS_16_5YR_B17017_with_ann!CP$2","v":"Estimate Total: Income in the past 12 months at or above poverty level: Family households: Other family: Female householder"},{"$f":"[1]ACS_16_5YR_B17017_with_ann!CQ$2","v":"Margin of Error Total: Income in the past 12 months at or above poverty level: Family households: Other family: Female householder"},{"$f":"[1]ACS_16_5YR_B17017_with_ann!CR$2","v":"Estimate Total: Income in the past 12 months at or above poverty level: Family households: Other family: Female householder"},{"$f":"[1]ACS_16_5YR_B17017_with_ann!CS$2","v":"Margin of Error Total: Income in the past 12 months at or above poverty level: Family households: Other family: Female householder"},{"$f":"[1]ACS_16_5YR_B17017_with_ann!CT$2","v":"Estimate Total: Income in the past 12 months at or above poverty level: Family households: Other family: Female householder"},{"$f":"[1]ACS_16_5YR_B17017_with_ann!CU$2","v":"Margin of Error Total: Income in the past 12 months at or above poverty level: Family households: Other family: Female householder"},{"$f":"[1]ACS_16_5YR_B17017_with_ann!CV$2","v":"Estimate Total: Income in the past 12 months at or above poverty level: Nonfamily households:"},{"$f":"[1]ACS_16_5YR_B17017_with_ann!CW$2","v":"Margin of Error Total: Income in the past 12 months at or above poverty level: Nonfamily households:"},{"$f":"[1]ACS_16_5YR_B17017_with_ann!CX$2","v":"Estimate Total: Income in the past 12 months at or above poverty level: Nonfamily households: Male householder:"},{"$f":"[1]ACS_16_5YR_B17017_with_ann!CY$2","v":"Margin of Error Total: Income in the past 12 months at or above poverty level: Nonfamily households: Male householder:"},{"$f":"[1]ACS_16_5YR_B17017_with_ann!CZ$2","v":"Estimate Total: Income in the past 12 months at or above poverty level: Nonfamily households: Male householder: Householder under 25 years"},{"$f":"[1]ACS_16_5YR_B17017_with_ann!DA$2","v":"Margin of Error Total: Income in the past 12 months at or above poverty level: Nonfamily households: Male householder: Householder under 25 years"},{"$f":"[1]ACS_16_5YR_B17017_with_ann!DB$2","v":"Estimate Total: Income in the past 12 months at or above poverty level: Nonfamily households: Male householder: Householder 25 to 44 years"},{"$f":"[1]ACS_16_5YR_B17017_with_ann!DC$2","v":"Margin of Error Total: Income in the past 12 months at or above poverty level: Nonfamily households: Male householder: Householder 25 to 44 years"},{"$f":"[1]ACS_16_5YR_B17017_with_ann!DD$2","v":"Estimate Total: Income in the past 12 months at or above poverty level: Nonfamily households: Male householder: Householder 45 to 64 years"},{"$f":"[1]ACS_16_5YR_B17017_with_ann!DE$2","v":"Margin of Error Total: Income in the past 12 months at or above poverty level: Nonfamily households: Male householder: Householder 45 to 64 years"},{"$f":"[1]ACS_16_5YR_B17017_with_ann!DF$2","v":"Estimate Total: Income in the past 12 months at or above poverty level: Nonfamily households: Male householder: Householder 65 years and over"},{"$f":"[1]ACS_16_5YR_B17017_with_ann!DG$2","v":"Margin of Error Total: Income in the past 12 months at or above poverty level: Nonfamily households: Male householder: Householder 65 years and over"},{"$f":"[1]ACS_16_5YR_B17017_with_ann!DH$2","v":"Estimate Total: Income in the past 12 months at or above poverty level: Nonfamily households: Female householder:"},{"$f":"[1]ACS_16_5YR_B17017_with_ann!DI$2","v":"Margin of Error Total: Income in the past 12 months at or above poverty level: Nonfamily households: Female householder:"},{"$f":"[1]ACS_16_5YR_B17017_with_ann!DJ$2","v":"Estimate Total: Income in the past 12 months at or above poverty level: Nonfamily households: Female householder: Householder under 25 years"},{"$f":"[1]ACS_16_5YR_B17017_with_ann!DK$2","v":"Margin of Error Total: Income in the past 12 months at or above poverty level: Nonfamily households: Female householder: Householder under 25 years"},{"$f":"[1]ACS_16_5YR_B17017_with_ann!DL$2","v":"Estimate Total: Income in the past 12 months at or above poverty level: Nonfamily households: Female householder: Householder 25 to 44 years"},{"$f":"[1]ACS_16_5YR_B17017_with_ann!DM$2","v":"Margin of Error Total: Income in the past 12 months at or above poverty level: Nonfamily households: Female householder: Householder 25 to 44 years"},{"$f":"[1]ACS_16_5YR_B17017_with_ann!DN$2","v":"Estimate Total: Income in the past 12 months at or above poverty level: Nonfamily households: Female householder: Householder 45 to 64 years"},{"$f":"[1]ACS_16_5YR_B17017_with_ann!DO$2","v":"Margin of Error Total: Income in the past 12 months at or above poverty level: Nonfamily households: Female householder: Householder 45 to 64 years"},{"$f":"[1]ACS_16_5YR_B17017_with_ann!DP$2","v":"Estimate Total: Income in the past 12 months at or above poverty level: Nonfamily households: Female householder: Householder 65 years and over"},{"$f":"[1]ACS_16_5YR_B17017_with_ann!DQ$2","v":"Margin of Error Total: Income in the past 12 months at or above poverty level: Nonfamily households: Female householder: Householder 65 years and over"}]
["0600000US3301900259",3301900259,"060","Acworth",{"$f":"[1]ACS_16_5YR_B17017_with_ann!D258","v":370},{"$f":"[1]ACS_16_5YR_B17017_with_ann!E258","v":51},{"$f":"[1]ACS_16_5YR_B17017_with_ann!F258","v":19},{"$f":"[1]ACS_16_5YR_B17017_with_ann!G258","v":16},{"$f":"[1]ACS_16_5YR_B17017_with_ann!H258","v":9},{"$f":"[1]ACS_16_5YR_B17017_with_ann!I258","v":12},{"$f":"[1]ACS_16_5YR_B17017_with_ann!J258","v":9},{"$f":"[1]ACS_16_5YR_B17017_with_ann!K258","v":12},{"$f":"[1]ACS_16_5YR_B17017_with_ann!L258","v":0},{"$f":"[1]ACS_16_5YR_B17017_with_ann!M258","v":11},{"$f":"[1]ACS_16_5YR_B17017_with_ann!N258","v":0},{"$f":"[1]ACS_16_5YR_B17017_with_ann!O258","v":11},{"$f":"[1]ACS_16_5YR_B17017_with_ann!P258","v":9},{"$f":"[1]ACS_16_5YR_B17017_with_ann!Q258","v":12},{"$f":"[1]ACS_16_5YR_B17017_with_ann!R258","v":0},{"$f":"[1]ACS_16_5YR_B17017_with_ann!S258","v":11},{"$f":"[1]ACS_16_5YR_B17017_with_ann!T258","v":0},{"$f":"[1]ACS_16_5YR_B17017_with_ann!U258","v":11},{"$f":"[1]ACS_16_5YR_B17017_with_ann!V258","v":0},{"$f":"[1]ACS_16_5YR_B17017_with_ann!W258","v":11},{"$f":"[1]ACS_16_5YR_B17017_with_ann!X258","v":0},{"$f":"[1]ACS_16_5YR_B17017_with_ann!Y258","v":11},{"$f":"[1]ACS_16_5YR_B17017_with_ann!Z258","v":0},{"$f":"[1]ACS_16_5YR_B17017_with_ann!AA258","v":11},{"$f":"[1]ACS_16_5YR_B17017_with_ann!AB258","v":0},{"$f":"[1]ACS_16_5YR_B17017_with_ann!AC258","v":11},{"$f":"[1]ACS_16_5YR_B17017_with_ann!AD258","v":0},{"$f":"[1]ACS_16_5YR_B17017_with_ann!AE258","v":11},{"$f":"[1]ACS_16_5YR_B17017_with_ann!AF258","v":0},{"$f":"[1]ACS_16_5YR_B17017_with_ann!AG258","v":11},{"$f":"[1]ACS_16_5YR_B17017_with_ann!AH258","v":0},{"$f":"[1]ACS_16_5YR_B17017_with_ann!AI258","v":11},{"$f":"[1]ACS_16_5YR_B17017_with_ann!AJ258","v":0},{"$f":"[1]ACS_16_5YR_B17017_with_ann!AK258","v":11},{"$f":"[1]ACS_16_5YR_B17017_with_ann!AL258","v":0},{"$f":"[1]ACS_16_5YR_B17017_with_ann!AM258","v":11},{"$f":"[1]ACS_16_5YR_B17017_with_ann!AN258","v":0},{"$f":"[1]ACS_16_5YR_B17017_with_ann!AO258","v":11},{"$f":"[1]ACS_16_5YR_B17017_with_ann!AP258","v":10},{"$f":"[1]ACS_16_5YR_B17017_with_ann!AQ258","v":10},{"$f":"[1]ACS_16_5YR_B17017_with_ann!AR258","v":10},{"$f":"[1]ACS_16_5YR_B17017_with_ann!AS258","v":10},{"$f":"[1]ACS_16_5YR_B17017_with_ann!AT258","v":0},{"$f":"[1]ACS_16_5YR_B17017_with_ann!AU258","v":11},{"$f":"[1]ACS_16_5YR_B17017_with_ann!AV258","v":6},{"$f":"[1]ACS_16_5YR_B17017_with_ann!AW258","v":10},{"$f":"[1]ACS_16_5YR_B17017_with_ann!AX258","v":2},{"$f":"[1]ACS_16_5YR_B17017_with_ann!AY258","v":3},{"$f":"[1]ACS_16_5YR_B17017_with_ann!AZ258","v":2},{"$f":"[1]ACS_16_5YR_B17017_with_ann!BA258","v":3},{"$f":"[1]ACS_16_5YR_B17017_with_ann!BB258","v":0},{"$f":"[1]ACS_16_5YR_B17017_with_ann!BC258","v":11},{"$f":"[1]ACS_16_5YR_B17017_with_ann!BD258","v":0},{"$f":"[1]ACS_16_5YR_B17017_with_ann!BE258","v":11},{"$f":"[1]ACS_16_5YR_B17017_with_ann!BF258","v":0},{"$f":"[1]ACS_16_5YR_B17017_with_ann!BG258","v":11},{"$f":"[1]ACS_16_5YR_B17017_with_ann!BH258","v":0},{"$f":"[1]ACS_16_5YR_B17017_with_ann!BI258","v":11},{"$f":"[1]ACS_16_5YR_B17017_with_ann!BJ258","v":0},{"$f":"[1]ACS_16_5YR_B17017_with_ann!BK258","v":11},{"$f":"[1]ACS_16_5YR_B17017_with_ann!BL258","v":351},{"$f":"[1]ACS_16_5YR_B17017_with_ann!BM258","v":53},{"$f":"[1]ACS_16_5YR_B17017_with_ann!BN258","v":246},{"$f":"[1]ACS_16_5YR_B17017_with_ann!BO258","v":45},{"$f":"[1]ACS_16_5YR_B17017_with_ann!BP258","v":209},{"$f":"[1]ACS_16_5YR_B17017_with_ann!BQ258","v":41},{"$f":"[1]ACS_16_5YR_B17017_with_ann!BR258","v":0},{"$f":"[1]ACS_16_5YR_B17017_with_ann!BS258","v":11},{"$f":"[1]ACS_16_5YR_B17017_with_ann!BT258","v":25},{"$f":"[1]ACS_16_5YR_B17017_with_ann!BU258","v":15},{"$f":"[1]ACS_16_5YR_B17017_with_ann!BV258","v":107},{"$f":"[1]ACS_16_5YR_B17017_with_ann!BW258","v":33},{"$f":"[1]ACS_16_5YR_B17017_with_ann!BX258","v":77},{"$f":"[1]ACS_16_5YR_B17017_with_ann!BY258","v":30},{"$f":"[1]ACS_16_5YR_B17017_with_ann!BZ258","v":37},{"$f":"[1]ACS_16_5YR_B17017_with_ann!CA258","v":19},{"$f":"[1]ACS_16_5YR_B17017_with_ann!CB258","v":23},{"$f":"[1]ACS_16_5YR_B17017_with_ann!CC258","v":14},{"$f":"[1]ACS_16_5YR_B17017_with_ann!CD258","v":0},{"$f":"[1]ACS_16_5YR_B17017_with_ann!CE258","v":11},{"$f":"[1]ACS_16_5YR_B17017_with_ann!CF258","v":9},{"$f":"[1]ACS_16_5YR_B17017_with_ann!CG258","v":8},{"$f":"[1]ACS_16_5YR_B17017_with_ann!CH258","v":9},{"$f":"[1]ACS_16_5YR_B17017_with_ann!CI258","v":11},{"$f":"[1]ACS_16_5YR_B17017_with_ann!CJ258","v":5},{"$f":"[1]ACS_16_5YR_B17017_with_ann!CK258","v":5},{"$f":"[1]ACS_16_5YR_B17017_with_ann!CL258","v":14},{"$f":"[1]ACS_16_5YR_B17017_with_ann!CM258","v":12},{"$f":"[1]ACS_16_5YR_B17017_with_ann!CN258","v":0},{"$f":"[1]ACS_16_5YR_B17017_with_ann!CO258","v":11},{"$f":"[1]ACS_16_5YR_B17017_with_ann!CP258","v":0},{"$f":"[1]ACS_16_5YR_B17017_with_ann!CQ258","v":11},{"$f":"[1]ACS_16_5YR_B17017_with_ann!CR258","v":7},{"$f":"[1]ACS_16_5YR_B17017_with_ann!CS258","v":10},{"$f":"[1]ACS_16_5YR_B17017_with_ann!CT258","v":7},{"$f":"[1]ACS_16_5YR_B17017_with_ann!CU258","v":6},{"$f":"[1]ACS_16_5YR_B17017_with_ann!CV258","v":105},{"$f":"[1]ACS_16_5YR_B17017_with_ann!CW258","v":25},{"$f":"[1]ACS_16_5YR_B17017_with_ann!CX259","v":251},{"$f":"[1]ACS_16_5YR_B17017_with_ann!CY259","v":103},{"$f":"[1]ACS_16_5YR_B17017_with_ann!CZ259","v":8},{"$f":"[1]ACS_16_5YR_B17017_with_ann!DA259","v":15},{"$f":"[1]ACS_16_5YR_B17017_with_ann!DB259","v":85},{"$f":"[1]ACS_16_5YR_B17017_with_ann!DC259","v":69},{"$f":"[1]ACS_16_5YR_B17017_with_ann!DD259","v":43},{"$f":"[1]ACS_16_5YR_B17017_with_ann!DE259","v":44},{"$f":"[1]ACS_16_5YR_B17017_with_ann!DF259","v":115},{"$f":"[1]ACS_16_5YR_B17017_with_ann!DG259","v":73},{"$f":"[1]ACS_16_5YR_B17017_with_ann!DH259","v":294},{"$f":"[1]ACS_16_5YR_B17017_with_ann!DI259","v":139},{"$f":"[1]ACS_16_5YR_B17017_with_ann!DJ259","v":0},{"$f":"[1]ACS_16_5YR_B17017_with_ann!DK259","v":16},{"$f":"[1]ACS_16_5YR_B17017_with_ann!DL259","v":8},{"$f":"[1]ACS_16_5YR_B17017_with_ann!DM259","v":13},{"$f":"[1]ACS_16_5YR_B17017_with_ann!DN259","v":115},{"$f":"[1]ACS_16_5YR_B17017_with_ann!DO259","v":94},{"$f":"[1]ACS_16_5YR_B17017_with_ann!DP259","v":171},{"$f":"[1]ACS_16_5YR_B17017_with_ann!DQ259","v":95}]
["0600000US3301911380",3301911380,"060","Charlestown",{"$f":"[1]ACS_16_5YR_B17017_with_ann!D259","v":2086},{"$f":"[1]ACS_16_5YR_B17017_with_ann!E259","v":184},{"$f":"[1]ACS_16_5YR_B17017_with_ann!F259","v":255},{"$f":"[1]ACS_16_5YR_B17017_with_ann!G259","v":125},{"$f":"[1]ACS_16_5YR_B17017_with_ann!H259","v":93},{"$f":"[1]ACS_16_5YR_B17017_with_ann!I259","v":61},{"$f":"[1]ACS_16_5YR_B17017_with_ann!J259","v":42},{"$f":"[1]ACS_16_5YR_B17017_with_ann!K259","v":44},{"$f":"[1]ACS_16_5YR_B17017_with_ann!L259","v":0},{"$f":"[1]ACS_16_5YR_B17017_with_ann!M259","v":16},{"$f":"[1]ACS_16_5YR_B17017_with_ann!N259","v":16},{"$f":"[1]ACS_16_5YR_B17017_with_ann!O259","v":25},{"$f":"[1]ACS_16_5YR_B17017_with_ann!P259","v":26},{"$f":"[1]ACS_16_5YR_B17017_with_ann!Q259","v":37},{"$f":"[1]ACS_16_5YR_B17017_with_ann!R259","v":0},{"$f":"[1]ACS_16_5YR_B17017_with_ann!S259","v":16},{"$f":"[1]ACS_16_5YR_B17017_with_ann!T259","v":51},{"$f":"[1]ACS_16_5YR_B17017_with_ann!U259","v":54},{"$f":"[1]ACS_16_5YR_B17017_with_ann!V259","v":6},{"$f":"[1]ACS_16_5YR_B17017_with_ann!W259","v":9},{"$f":"[1]ACS_16_5YR_B17017_with_ann!X259","v":6},{"$f":"[1]ACS_16_5YR_B17017_with_ann!Y259","v":9},{"$f":"[1]ACS_16_5YR_B17017_with_ann!Z259","v":0},{"$f":"[1]ACS_16_5YR_B17017_with_ann!AA259","v":16},{"$f":"[1]ACS_16_5YR_B17017_with_ann!AB259","v":0},{"$f":"[1]ACS_16_5YR_B17017_with_ann!AC259","v":16},{"$f":"[1]ACS_16_5YR_B17017_with_ann!AD259","v":0},{"$f":"[1]ACS_16_5YR_B17017_with_ann!AE259","v":16},{"$f":"[1]ACS_16_5YR_B17017_with_ann!AF259","v":45},{"$f":"[1]ACS_16_5YR_B17017_with_ann!AG259","v":53},{"$f":"[1]ACS_16_5YR_B17017_with_ann!AH259","v":0},{"$f":"[1]ACS_16_5YR_B17017_with_ann!AI259","v":16},{"$f":"[1]ACS_16_5YR_B17017_with_ann!AJ259","v":29},{"$f":"[1]ACS_16_5YR_B17017_with_ann!AK259","v":47},{"$f":"[1]ACS_16_5YR_B17017_with_ann!AL259","v":0},{"$f":"[1]ACS_16_5YR_B17017_with_ann!AM259","v":16},{"$f":"[1]ACS_16_5YR_B17017_with_ann!AN259","v":16},{"$f":"[1]ACS_16_5YR_B17017_with_ann!AO259","v":26},{"$f":"[1]ACS_16_5YR_B17017_with_ann!AP259","v":162},{"$f":"[1]ACS_16_5YR_B17017_with_ann!AQ259","v":113},{"$f":"[1]ACS_16_5YR_B17017_with_ann!AR259","v":109},{"$f":"[1]ACS_16_5YR_B17017_with_ann!AS259","v":94},{"$f":"[1]ACS_16_5YR_B17017_with_ann!AT259","v":0},{"$f":"[1]ACS_16_5YR_B17017_with_ann!AU259","v":16},{"$f":"[1]ACS_16_5YR_B17017_with_ann!AV259","v":55},{"$f":"[1]ACS_16_5YR_B17017_with_ann!AW259","v":65},{"$f":"[1]ACS_16_5YR_B17017_with_ann!AX259","v":54},{"$f":"[1]ACS_16_5YR_B17017_with_ann!AY259","v":85},{"$f":"[1]ACS_16_5YR_B17017_with_ann!AZ259","v":0},{"$f":"[1]ACS_16_5YR_B17017_with_ann!BA259","v":16},{"$f":"[1]ACS_16_5YR_B17017_with_ann!BB259","v":53},{"$f":"[1]ACS_16_5YR_B17017_with_ann!BC259","v":67},{"$f":"[1]ACS_16_5YR_B17017_with_ann!BD259","v":0},{"$f":"[1]ACS_16_5YR_B17017_with_ann!BE259","v":16},{"$f":"[1]ACS_16_5YR_B17017_with_ann!BF259","v":0},{"$f":"[1]ACS_16_5YR_B17017_with_ann!BG259","v":16},{"$f":"[1]ACS_16_5YR_B17017_with_ann!BH259","v":39},{"$f":"[1]ACS_16_5YR_B17017_with_ann!BI259","v":62},{"$f":"[1]ACS_16_5YR_B17017_with_ann!BJ259","v":14},{"$f":"[1]ACS_16_5YR_B17017_with_ann!BK259","v":23},{"$f":"[1]ACS_16_5YR_B17017_with_ann!BL259","v":1831},{"$f":"[1]ACS_16_5YR_B17017_with_ann!BM259","v":178},{"$f":"[1]ACS_16_5YR_B17017_with_ann!BN259","v":1286},{"$f":"[1]ACS_16_5YR_B17017_with_ann!BO259","v":178},{"$f":"[1]ACS_16_5YR_B17017_with_ann!BP259","v":910},{"$f":"[1]ACS_16_5YR_B17017_with_ann!BQ259","v":195},{"$f":"[1]ACS_16_5YR_B17017_with_ann!BR259","v":0},{"$f":"[1]ACS_16_5YR_B17017_with_ann!BS259","v":16},{"$f":"[1]ACS_16_5YR_B17017_with_ann!BT259","v":149},{"$f":"[1]ACS_16_5YR_B17017_with_ann!BU259","v":98},{"$f":"[1]ACS_16_5YR_B17017_with_ann!BV259","v":487},{"$f":"[1]ACS_16_5YR_B17017_with_ann!BW259","v":135},{"$f":"[1]ACS_16_5YR_B17017_with_ann!BX259","v":274},{"$f":"[1]ACS_16_5YR_B17017_with_ann!BY259","v":110},{"$f":"[1]ACS_16_5YR_B17017_with_ann!BZ259","v":376},{"$f":"[1]ACS_16_5YR_B17017_with_ann!CA259","v":138},{"$f":"[1]ACS_16_5YR_B17017_with_ann!CB259","v":177},{"$f":"[1]ACS_16_5YR_B17017_with_ann!CC259","v":107},{"$f":"[1]ACS_16_5YR_B17017_with_ann!CD259","v":0},{"$f":"[1]ACS_16_5YR_B17017_with_ann!CE259","v":16},{"$f":"[1]ACS_16_5YR_B17017_with_ann!CF259","v":110},{"$f":"[1]ACS_16_5YR_B17017_with_ann!CG259","v":88},{"$f":"[1]ACS_16_5YR_B17017_with_ann!CH259","v":67},{"$f":"[1]ACS_16_5YR_B17017_with_ann!CI259","v":67},{"$f":"[1]ACS_16_5YR_B17017_with_ann!CJ259","v":0},{"$f":"[1]ACS_16_5YR_B17017_with_ann!CK259","v":16},{"$f":"[1]ACS_16_5YR_B17017_with_ann!CL259","v":199},{"$f":"[1]ACS_16_5YR_B17017_with_ann!CM259","v":96},{"$f":"[1]ACS_16_5YR_B17017_with_ann!CN259","v":0},{"$f":"[1]ACS_16_5YR_B17017_with_ann!CO259","v":16},{"$f":"[1]ACS_16_5YR_B17017_with_ann!CP259","v":74},{"$f":"[1]ACS_16_5YR_B17017_with_ann!CQ259","v":73},{"$f":"[1]ACS_16_5YR_B17017_with_ann!CR259","v":66},{"$f":"[1]ACS_16_5YR_B17017_with_ann!CS259","v":57},{"$f":"[1]ACS_16_5YR_B17017_with_ann!CT259","v":59},{"$f":"[1]ACS_16_5YR_B17017_with_ann!CU259","v":42},{"$f":"[1]ACS_16_5YR_B17017_with_ann!CV259","v":545},{"$f":"[1]ACS_16_5YR_B17017_with_ann!CW259","v":182},{"$f":"[1]ACS_16_5YR_B17017_with_ann!CX260","v":873},{"$f":"[1]ACS_16_5YR_B17017_with_ann!CY260","v":178},{"$f":"[1]ACS_16_5YR_B17017_with_ann!CZ260","v":56},{"$f":"[1]ACS_16_5YR_B17017_with_ann!DA260","v":48},{"$f":"[1]ACS_16_5YR_B17017_with_ann!DB260","v":256},{"$f":"[1]ACS_16_5YR_B17017_with_ann!DC260","v":110},{"$f":"[1]ACS_16_5YR_B17017_with_ann!DD260","v":282},{"$f":"[1]ACS_16_5YR_B17017_with_ann!DE260","v":129},{"$f":"[1]ACS_16_5YR_B17017_with_ann!DF260","v":279},{"$f":"[1]ACS_16_5YR_B17017_with_ann!DG260","v":94},{"$f":"[1]ACS_16_5YR_B17017_with_ann!DH260","v":844},{"$f":"[1]ACS_16_5YR_B17017_with_ann!DI260","v":176},{"$f":"[1]ACS_16_5YR_B17017_with_ann!DJ260","v":56},{"$f":"[1]ACS_16_5YR_B17017_with_ann!DK260","v":56},{"$f":"[1]ACS_16_5YR_B17017_with_ann!DL260","v":119},{"$f":"[1]ACS_16_5YR_B17017_with_ann!DM260","v":67},{"$f":"[1]ACS_16_5YR_B17017_with_ann!DN260","v":313},{"$f":"[1]ACS_16_5YR_B17017_with_ann!DO260","v":115},{"$f":"[1]ACS_16_5YR_B17017_with_ann!DP260","v":356},{"$f":"[1]ACS_16_5YR_B17017_with_ann!DQ260","v":105}]
["0600000US3301912900",3301912900,"060","Claremont",{"$f":"[1]ACS_16_5YR_B17017_with_ann!D260","v":5231},{"$f":"[1]ACS_16_5YR_B17017_with_ann!E260","v":284},{"$f":"[1]ACS_16_5YR_B17017_with_ann!F260","v":691},{"$f":"[1]ACS_16_5YR_B17017_with_ann!G260","v":184},{"$f":"[1]ACS_16_5YR_B17017_with_ann!H260","v":342},{"$f":"[1]ACS_16_5YR_B17017_with_ann!I260","v":138},{"$f":"[1]ACS_16_5YR_B17017_with_ann!J260","v":116},{"$f":"[1]ACS_16_5YR_B17017_with_ann!K260","v":70},{"$f":"[1]ACS_16_5YR_B17017_with_ann!L260","v":0},{"$f":"[1]ACS_16_5YR_B17017_with_ann!M260","v":18},{"$f":"[1]ACS_16_5YR_B17017_with_ann!N260","v":57},{"$f":"[1]ACS_16_5YR_B17017_with_ann!O260","v":48},{"$f":"[1]ACS_16_5YR_B17017_with_ann!P260","v":38},{"$f":"[1]ACS_16_5YR_B17017_with_ann!Q260","v":40},{"$f":"[1]ACS_16_5YR_B17017_with_ann!R260","v":21},{"$f":"[1]ACS_16_5YR_B17017_with_ann!S260","v":25},{"$f":"[1]ACS_16_5YR_B17017_with_ann!T260","v":226},{"$f":"[1]ACS_16_5YR_B17017_with_ann!U260","v":124},{"$f":"[1]ACS_16_5YR_B17017_with_ann!V260","v":24},{"$f":"[1]ACS_16_5YR_B17017_with_ann!W260","v":32},{"$f":"[1]ACS_16_5YR_B17017_with_ann!X260","v":0},{"$f":"[1]ACS_16_5YR_B17017_with_ann!Y260","v":18},{"$f":"[1]ACS_16_5YR_B17017_with_ann!Z260","v":24},{"$f":"[1]ACS_16_5YR_B17017_with_ann!AA260","v":32},{"$f":"[1]ACS_16_5YR_B17017_with_ann!AB260","v":0},{"$f":"[1]ACS_16_5YR_B17017_with_ann!AC260","v":18},{"$f":"[1]ACS_16_5YR_B17017_with_ann!AD260","v":0},{"$f":"[1]ACS_16_5YR_B17017_with_ann!AE260","v":18},{"$f":"[1]ACS_16_5YR_B17017_with_ann!AF260","v":202},{"$f":"[1]ACS_16_5YR_B17017_with_ann!AG260","v":122},{"$f":"[1]ACS_16_5YR_B17017_with_ann!AH260","v":21},{"$f":"[1]ACS_16_5YR_B17017_with_ann!AI260","v":34},{"$f":"[1]ACS_16_5YR_B17017_with_ann!AJ260","v":133},{"$f":"[1]ACS_16_5YR_B17017_with_ann!AK260","v":92},{"$f":"[1]ACS_16_5YR_B17017_with_ann!AL260","v":44},{"$f":"[1]ACS_16_5YR_B17017_with_ann!AM260","v":70},{"$f":"[1]ACS_16_5YR_B17017_with_ann!AN260","v":4},{"$f":"[1]ACS_16_5YR_B17017_with_ann!AO260","v":9},{"$f":"[1]ACS_16_5YR_B17017_with_ann!AP260","v":349},{"$f":"[1]ACS_16_5YR_B17017_with_ann!AQ260","v":127},{"$f":"[1]ACS_16_5YR_B17017_with_ann!AR260","v":141},{"$f":"[1]ACS_16_5YR_B17017_with_ann!AS260","v":77},{"$f":"[1]ACS_16_5YR_B17017_with_ann!AT260","v":14},{"$f":"[1]ACS_16_5YR_B17017_with_ann!AU260","v":16},{"$f":"[1]ACS_16_5YR_B17017_with_ann!AV260","v":9},{"$f":"[1]ACS_16_5YR_B17017_with_ann!AW260","v":13},{"$f":"[1]ACS_16_5YR_B17017_with_ann!AX260","v":118},{"$f":"[1]ACS_16_5YR_B17017_with_ann!AY260","v":72},{"$f":"[1]ACS_16_5YR_B17017_with_ann!AZ260","v":0},{"$f":"[1]ACS_16_5YR_B17017_with_ann!BA260","v":18},{"$f":"[1]ACS_16_5YR_B17017_with_ann!BB260","v":208},{"$f":"[1]ACS_16_5YR_B17017_with_ann!BC260","v":97},{"$f":"[1]ACS_16_5YR_B17017_with_ann!BD260","v":0},{"$f":"[1]ACS_16_5YR_B17017_with_ann!BE260","v":18},{"$f":"[1]ACS_16_5YR_B17017_with_ann!BF260","v":46},{"$f":"[1]ACS_16_5YR_B17017_with_ann!BG260","v":46},{"$f":"[1]ACS_16_5YR_B17017_with_ann!BH260","v":141},{"$f":"[1]ACS_16_5YR_B17017_with_ann!BI260","v":93},{"$f":"[1]ACS_16_5YR_B17017_with_ann!BJ260","v":21},{"$f":"[1]ACS_16_5YR_B17017_with_ann!BK260","v":28},{"$f":"[1]ACS_16_5YR_B17017_with_ann!BL260","v":4540},{"$f":"[1]ACS_16_5YR_B17017_with_ann!BM260","v":294},{"$f":"[1]ACS_16_5YR_B17017_with_ann!BN260","v":2823},{"$f":"[1]ACS_16_5YR_B17017_with_ann!BO260","v":244},{"$f":"[1]ACS_16_5YR_B17017_with_ann!BP260","v":2002},{"$f":"[1]ACS_16_5YR_B17017_with_ann!BQ260","v":234},{"$f":"[1]ACS_16_5YR_B17017_with_ann!BR260","v":68},{"$f":"[1]ACS_16_5YR_B17017_with_ann!BS260","v":73},{"$f":"[1]ACS_16_5YR_B17017_with_ann!BT260","v":498},{"$f":"[1]ACS_16_5YR_B17017_with_ann!BU260","v":116},{"$f":"[1]ACS_16_5YR_B17017_with_ann!BV260","v":913},{"$f":"[1]ACS_16_5YR_B17017_with_ann!BW260","v":133},{"$f":"[1]ACS_16_5YR_B17017_with_ann!BX260","v":523},{"$f":"[1]ACS_16_5YR_B17017_with_ann!BY260","v":124},{"$f":"[1]ACS_16_5YR_B17017_with_ann!BZ260","v":821},{"$f":"[1]ACS_16_5YR_B17017_with_ann!CA260","v":172},{"$f":"[1]ACS_16_5YR_B17017_with_ann!CB260","v":176},{"$f":"[1]ACS_16_5YR_B17017_with_ann!CC260","v":79},{"$f":"[1]ACS_16_5YR_B17017_with_ann!CD260","v":0},{"$f":"[1]ACS_16_5YR_B17017_with_ann!CE260","v":18},{"$f":"[1]ACS_16_5YR_B17017_with_ann!CF260","v":115},{"$f":"[1]ACS_16_5YR_B17017_with_ann!CG260","v":77},{"$f":"[1]ACS_16_5YR_B17017_with_ann!CH260","v":61},{"$f":"[1]ACS_16_5YR_B17017_with_ann!CI260","v":49},{"$f":"[1]ACS_16_5YR_B17017_with_ann!CJ260","v":0},{"$f":"[1]ACS_16_5YR_B17017_with_ann!CK260","v":18},{"$f":"[1]ACS_16_5YR_B17017_with_ann!CL260","v":645},{"$f":"[1]ACS_16_5YR_B17017_with_ann!CM260","v":172},{"$f":"[1]ACS_16_5YR_B17017_with_ann!CN260","v":12},{"$f":"[1]ACS_16_5YR_B17017_with_ann!CO260","v":20},{"$f":"[1]ACS_16_5YR_B17017_with_ann!CP260","v":328},{"$f":"[1]ACS_16_5YR_B17017_with_ann!CQ260","v":139},{"$f":"[1]ACS_16_5YR_B17017_with_ann!CR260","v":101},{"$f":"[1]ACS_16_5YR_B17017_with_ann!CS260","v":57},{"$f":"[1]ACS_16_5YR_B17017_with_ann!CT260","v":204},{"$f":"[1]ACS_16_5YR_B17017_with_ann!CU260","v":114},{"$f":"[1]ACS_16_5YR_B17017_with_ann!CV260","v":1717},{"$f":"[1]ACS_16_5YR_B17017_with_ann!CW260","v":247},{"$f":"[1]ACS_16_5YR_B17017_with_ann!CX262","v":59},{"$f":"[1]ACS_16_5YR_B17017_with_ann!CY262","v":27},{"$f":"[1]ACS_16_5YR_B17017_with_ann!CZ262","v":6},{"$f":"[1]ACS_16_5YR_B17017_with_ann!DA262","v":9},{"$f":"[1]ACS_16_5YR_B17017_with_ann!DB262","v":4},{"$f":"[1]ACS_16_5YR_B17017_with_ann!DC262","v":6},{"$f":"[1]ACS_16_5YR_B17017_with_ann!DD262","v":32},{"$f":"[1]ACS_16_5YR_B17017_with_ann!DE262","v":22},{"$f":"[1]ACS_16_5YR_B17017_with_ann!DF262","v":17},{"$f":"[1]ACS_16_5YR_B17017_with_ann!DG262","v":11},{"$f":"[1]ACS_16_5YR_B17017_with_ann!DH262","v":31},{"$f":"[1]ACS_16_5YR_B17017_with_ann!DI262","v":18},{"$f":"[1]ACS_16_5YR_B17017_with_ann!DJ262","v":0},{"$f":"[1]ACS_16_5YR_B17017_with_ann!DK262","v":11},{"$f":"[1]ACS_16_5YR_B17017_with_ann!DL262","v":2},{"$f":"[1]ACS_16_5YR_B17017_with_ann!DM262","v":5},{"$f":"[1]ACS_16_5YR_B17017_with_ann!DN262","v":13},{"$f":"[1]ACS_16_5YR_B17017_with_ann!DO262","v":16},{"$f":"[1]ACS_16_5YR_B17017_with_ann!DP262","v":16},{"$f":"[1]ACS_16_5YR_B17017_with_ann!DQ262","v":10}]
["0600000US3301915060",3301915060,"060","Cornish",{"$f":"[1]ACS_16_5YR_B17017_with_ann!D261","v":741},{"$f":"[1]ACS_16_5YR_B17017_with_ann!E261","v":81},{"$f":"[1]ACS_16_5YR_B17017_with_ann!F261","v":38},{"$f":"[1]ACS_16_5YR_B17017_with_ann!G261","v":25},{"$f":"[1]ACS_16_5YR_B17017_with_ann!H261","v":23},{"$f":"[1]ACS_16_5YR_B17017_with_ann!I261","v":24},{"$f":"[1]ACS_16_5YR_B17017_with_ann!J261","v":19},{"$f":"[1]ACS_16_5YR_B17017_with_ann!K261","v":23},{"$f":"[1]ACS_16_5YR_B17017_with_ann!L261","v":0},{"$f":"[1]ACS_16_5YR_B17017_with_ann!M261","v":11},{"$f":"[1]ACS_16_5YR_B17017_with_ann!N261","v":4},{"$f":"[1]ACS_16_5YR_B17017_with_ann!O261","v":7},{"$f":"[1]ACS_16_5YR_B17017_with_ann!P261","v":15},{"$f":"[1]ACS_16_5YR_B17017_with_ann!Q261","v":22},{"$f":"[1]ACS_16_5YR_B17017_with_ann!R261","v":0},{"$f":"[1]ACS_16_5YR_B17017_with_ann!S261","v":11},{"$f":"[1]ACS_16_5YR_B17017_with_ann!T261","v":4},{"$f":"[1]ACS_16_5YR_B17017_with_ann!U261","v":6},{"$f":"[1]ACS_16_5YR_B17017_with_ann!V261","v":0},{"$f":"[1]ACS_16_5YR_B17017_with_ann!W261","v":11},{"$f":"[1]ACS_16_5YR_B17017_with_ann!X261","v":0},{"$f":"[1]ACS_16_5YR_B17017_with_ann!Y261","v":11},{"$f":"[1]ACS_16_5YR_B17017_with_ann!Z261","v":0},{"$f":"[1]ACS_16_5YR_B17017_with_ann!AA261","v":11},{"$f":"[1]ACS_16_5YR_B17017_with_ann!AB261","v":0},{"$f":"[1]ACS_16_5YR_B17017_with_ann!AC261","v":11},{"$f":"[1]ACS_16_5YR_B17017_with_ann!AD261","v":0},{"$f":"[1]ACS_16_5YR_B17017_with_ann!AE261","v":11},{"$f":"[1]ACS_16_5YR_B17017_with_ann!AF261","v":4},{"$f":"[1]ACS_16_5YR_B17017_with_ann!AG261","v":6},{"$f":"[1]ACS_16_5YR_B17017_with_ann!AH261","v":0},{"$f":"[1]ACS_16_5YR_B17017_with_ann!AI261","v":11},{"$f":"[1]ACS_16_5YR_B17017_with_ann!AJ261","v":0},{"$f":"[1]ACS_16_5YR_B17017_with_ann!AK261","v":11},{"$f":"[1]ACS_16_5YR_B17017_with_ann!AL261","v":4},{"$f":"[1]ACS_16_5YR_B17017_with_ann!AM261","v":6},{"$f":"[1]ACS_16_5YR_B17017_with_ann!AN261","v":0},{"$f":"[1]ACS_16_5YR_B17017_with_ann!AO261","v":11},{"$f":"[1]ACS_16_5YR_B17017_with_ann!AP261","v":15},{"$f":"[1]ACS_16_5YR_B17017_with_ann!AQ261","v":12},{"$f":"[1]ACS_16_5YR_B17017_with_ann!AR261","v":9},{"$f":"[1]ACS_16_5YR_B17017_with_ann!AS261","v":11},{"$f":"[1]ACS_16_5YR_B17017_with_ann!AT261","v":0},{"$f":"[1]ACS_16_5YR_B17017_with_ann!AU261","v":11},{"$f":"[1]ACS_16_5YR_B17017_with_ann!AV261","v":3},{"$f":"[1]ACS_16_5YR_B17017_with_ann!AW261","v":5},{"$f":"[1]ACS_16_5YR_B17017_with_ann!AX261","v":0},{"$f":"[1]ACS_16_5YR_B17017_with_ann!AY261","v":11},{"$f":"[1]ACS_16_5YR_B17017_with_ann!AZ261","v":6},{"$f":"[1]ACS_16_5YR_B17017_with_ann!BA261","v":9},{"$f":"[1]ACS_16_5YR_B17017_with_ann!BB261","v":6},{"$f":"[1]ACS_16_5YR_B17017_with_ann!BC261","v":6},{"$f":"[1]ACS_16_5YR_B17017_with_ann!BD261","v":0},{"$f":"[1]ACS_16_5YR_B17017_with_ann!BE261","v":11},{"$f":"[1]ACS_16_5YR_B17017_with_ann!BF262","v":0},{"$f":"[1]ACS_16_5YR_B17017_with_ann!BG262","v":11},{"$f":"[1]ACS_16_5YR_B17017_with_ann!BH262","v":10},{"$f":"[1]ACS_16_5YR_B17017_with_ann!BI262","v":12},{"$f":"[1]ACS_16_5YR_B17017_with_ann!BJ262","v":2},{"$f":"[1]ACS_16_5YR_B17017_with_ann!BK262","v":4},{"$f":"[1]ACS_16_5YR_B17017_with_ann!BL262","v":265},{"$f":"[1]ACS_16_5YR_B17017_with_ann!BM262","v":55},{"$f":"[1]ACS_16_5YR_B17017_with_ann!BN262","v":175},{"$f":"[1]ACS_16_5YR_B17017_with_ann!BO262","v":45},{"$f":"[1]ACS_16_5YR_B17017_with_ann!BP262","v":153},{"$f":"[1]ACS_16_5YR_B17017_with_ann!BQ262","v":46},{"$f":"[1]ACS_16_5YR_B17017_with_ann!BR262","v":0},{"$f":"[1]ACS_16_5YR_B17017_with_ann!BS262","v":11},{"$f":"[1]ACS_16_5YR_B17017_with_ann!BT262","v":31},{"$f":"[1]ACS_16_5YR_B17017_with_ann!BU262","v":17},{"$f":"[1]ACS_16_5YR_B17017_with_ann!BV262","v":81},{"$f":"[1]ACS_16_5YR_B17017_with_ann!BW262","v":38},{"$f":"[1]ACS_16_5YR_B17017_with_ann!BX262","v":41},{"$f":"[1]ACS_16_5YR_B17017_with_ann!BY262","v":22},{"$f":"[1]ACS_16_5YR_B17017_with_ann!BZ262","v":22},{"$f":"[1]ACS_16_5YR_B17017_with_ann!CA262","v":12},{"$f":"[1]ACS_16_5YR_B17017_with_ann!CB262","v":12},{"$f":"[1]ACS_16_5YR_B17017_with_ann!CC262","v":9},{"$f":"[1]ACS_16_5YR_B17017_with_ann!CD262","v":0},{"$f":"[1]ACS_16_5YR_B17017_with_ann!CE262","v":11},{"$f":"[1]ACS_16_5YR_B17017_with_ann!CF262","v":6},{"$f":"[1]ACS_16_5YR_B17017_with_ann!CG262","v":7},{"$f":"[1]ACS_16_5YR_B17017_with_ann!CH262","v":4},{"$f":"[1]ACS_16_5YR_B17017_with_ann!CI262","v":6},{"$f":"[1]ACS_16_5YR_B17017_with_ann!CJ262","v":2},{"$f":"[1]ACS_16_5YR_B17017_with_ann!CK262","v":3},{"$f":"[1]ACS_16_5YR_B17017_with_ann!CL262","v":10},{"$f":"[1]ACS_16_5YR_B17017_with_ann!CM262","v":9},{"$f":"[1]ACS_16_5YR_B17017_with_ann!CN262","v":0},{"$f":"[1]ACS_16_5YR_B17017_with_ann!CO262","v":11},{"$f":"[1]ACS_16_5YR_B17017_with_ann!CP262","v":0},{"$f":"[1]ACS_16_5YR_B17017_with_ann!CQ262","v":11},{"$f":"[1]ACS_16_5YR_B17017_with_ann!CR262","v":8},{"$f":"[1]ACS_16_5YR_B17017_with_ann!CS262","v":8},{"$f":"[1]ACS_16_5YR_B17017_with_ann!CT262","v":2},{"$f":"[1]ACS_16_5YR_B17017_with_ann!CU262","v":4},{"$f":"[1]ACS_16_5YR_B17017_with_ann!CV262","v":90},{"$f":"[1]ACS_16_5YR_B17017_with_ann!CW262","v":34},{"$f":"[1]ACS_16_5YR_B17017_with_ann!CX263","v":52},{"$f":"[1]ACS_16_5YR_B17017_with_ann!CY263","v":31},{"$f":"[1]ACS_16_5YR_B17017_with_ann!CZ263","v":0},{"$f":"[1]ACS_16_5YR_B17017_with_ann!DA263","v":11},{"$f":"[1]ACS_16_5YR_B17017_with_ann!DB263","v":5},{"$f":"[1]ACS_16_5YR_B17017_with_ann!DC263","v":9},{"$f":"[1]ACS_16_5YR_B17017_with_ann!DD263","v":34},{"$f":"[1]ACS_16_5YR_B17017_with_ann!DE263","v":26},{"$f":"[1]ACS_16_5YR_B17017_with_ann!DF263","v":13},{"$f":"[1]ACS_16_5YR_B17017_with_ann!DG263","v":12},{"$f":"[1]ACS_16_5YR_B17017_with_ann!DH263","v":39},{"$f":"[1]ACS_16_5YR_B17017_with_ann!DI263","v":14},{"$f":"[1]ACS_16_5YR_B17017_with_ann!DJ263","v":0},{"$f":"[1]ACS_16_5YR_B17017_with_ann!DK263","v":11},{"$f":"[1]ACS_16_5YR_B17017_with_ann!DL263","v":4},{"$f":"[1]ACS_16_5YR_B17017_with_ann!DM263","v":4},{"$f":"[1]ACS_16_5YR_B17017_with_ann!DN263","v":11},{"$f":"[1]ACS_16_5YR_B17017_with_ann!DO263","v":10},{"$f":"[1]ACS_16_5YR_B17017_with_ann!DP263","v":24},{"$f":"[1]ACS_16_5YR_B17017_with_ann!DQ263","v":11}]
["0600000US3301916340",3301916340,"060","Croydon",{"$f":"[1]ACS_16_5YR_B17017_with_ann!D262","v":293},{"$f":"[1]ACS_16_5YR_B17017_with_ann!E262","v":56},{"$f":"[1]ACS_16_5YR_B17017_with_ann!F262","v":28},{"$f":"[1]ACS_16_5YR_B17017_with_ann!G262","v":21},{"$f":"[1]ACS_16_5YR_B17017_with_ann!H262","v":12},{"$f":"[1]ACS_16_5YR_B17017_with_ann!I262","v":15},{"$f":"[1]ACS_16_5YR_B17017_with_ann!J262","v":5},{"$f":"[1]ACS_16_5YR_B17017_with_ann!K262","v":10},{"$f":"[1]ACS_16_5YR_B17017_with_ann!L262","v":0},{"$f":"[1]ACS_16_5YR_B17017_with_ann!M262","v":11},{"$f":"[1]ACS_16_5YR_B17017_with_ann!N262","v":0},{"$f":"[1]ACS_16_5YR_B17017_with_ann!O262","v":11},{"$f":"[1]ACS_16_5YR_B17017_with_ann!P262","v":5},{"$f":"[1]ACS_16_5YR_B17017_with_ann!Q262","v":10},{"$f":"[1]ACS_16_5YR_B17017_with_ann!R262","v":0},{"$f":"[1]ACS_16_5YR_B17017_with_ann!S262","v":11},{"$f":"[1]ACS_16_5YR_B17017_with_ann!T262","v":7},{"$f":"[1]ACS_16_5YR_B17017_with_ann!U262","v":11},{"$f":"[1]ACS_16_5YR_B17017_with_ann!V262","v":0},{"$f":"[1]ACS_16_5YR_B17017_with_ann!W262","v":11},{"$f":"[1]ACS_16_5YR_B17017_with_ann!X262","v":0},{"$f":"[1]ACS_16_5YR_B17017_with_ann!Y262","v":11},{"$f":"[1]ACS_16_5YR_B17017_with_ann!Z262","v":0},{"$f":"[1]ACS_16_5YR_B17017_with_ann!AA262","v":11},{"$f":"[1]ACS_16_5YR_B17017_with_ann!AB262","v":0},{"$f":"[1]ACS_16_5YR_B17017_with_ann!AC262","v":11},{"$f":"[1]ACS_16_5YR_B17017_with_ann!AD262","v":0},{"$f":"[1]ACS_16_5YR_B17017_with_ann!AE262","v":11},{"$f":"[1]ACS_16_5YR_B17017_with_ann!AF262","v":7},{"$f":"[1]ACS_16_5YR_B17017_with_ann!AG262","v":11},{"$f":"[1]ACS_16_5YR_B17017_with_ann!AH262","v":0},{"$f":"[1]ACS_16_5YR_B17017_with_ann!AI262","v":11},{"$f":"[1]ACS_16_5YR_B17017_with_ann!AJ262","v":7},{"$f":"[1]ACS_16_5YR_B17017_with_ann!AK262","v":11},{"$f":"[1]ACS_16_5YR_B17017_with_ann!AL262","v":0},{"$f":"[1]ACS_16_5YR_B17017_with_ann!AM262","v":11},{"$f":"[1]ACS_16_5YR_B17017_with_ann!AN262","v":0},{"$f":"[1]ACS_16_5YR_B17017_with_ann!AO262","v":11},{"$f":"[1]ACS_16_5YR_B17017_with_ann!AP262","v":16},{"$f":"[1]ACS_16_5YR_B17017_with_ann!AQ262","v":14},{"$f":"[1]ACS_16_5YR_B17017_with_ann!AR262","v":4},{"$f":"[1]ACS_16_5YR_B17017_with_ann!AS262","v":5},{"$f":"[1]ACS_16_5YR_B17017_with_ann!AT262","v":2},{"$f":"[1]ACS_16_5YR_B17017_with_ann!AU262","v":4},{"$f":"[1]ACS_16_5YR_B17017_with_ann!AV262","v":0},{"$f":"[1]ACS_16_5YR_B17017_with_ann!AW262","v":11},{"$f":"[1]ACS_16_5YR_B17017_with_ann!AX262","v":0},{"$f":"[1]ACS_16_5YR_B17017_with_ann!AY262","v":11},{"$f":"[1]ACS_16_5YR_B17017_with_ann!AZ262","v":2},{"$f":"[1]ACS_16_5YR_B17017_with_ann!BA262","v":3},{"$f":"[1]ACS_16_5YR_B17017_with_ann!BB262","v":12},{"$f":"[1]ACS_16_5YR_B17017_with_ann!BC262","v":13},{"$f":"[1]ACS_16_5YR_B17017_with_ann!BD262","v":0},{"$f":"[1]ACS_16_5YR_B17017_with_ann!BE262","v":11},{"$f":"[1]ACS_16_5YR_B17017_with_ann!BF263","v":0},{"$f":"[1]ACS_16_5YR_B17017_with_ann!BG263","v":11},{"$f":"[1]ACS_16_5YR_B17017_with_ann!BH263","v":6},{"$f":"[1]ACS_16_5YR_B17017_with_ann!BI263","v":9},{"$f":"[1]ACS_16_5YR_B17017_with_ann!BJ263","v":9},{"$f":"[1]ACS_16_5YR_B17017_with_ann!BK263","v":11},{"$f":"[1]ACS_16_5YR_B17017_with_ann!BL263","v":238},{"$f":"[1]ACS_16_5YR_B17017_with_ann!BM263","v":39},{"$f":"[1]ACS_16_5YR_B17017_with_ann!BN263","v":147},{"$f":"[1]ACS_16_5YR_B17017_with_ann!BO263","v":33},{"$f":"[1]ACS_16_5YR_B17017_with_ann!BP263","v":107},{"$f":"[1]ACS_16_5YR_B17017_with_ann!BQ263","v":29},{"$f":"[1]ACS_16_5YR_B17017_with_ann!BR263","v":0},{"$f":"[1]ACS_16_5YR_B17017_with_ann!BS263","v":11},{"$f":"[1]ACS_16_5YR_B17017_with_ann!BT263","v":41},{"$f":"[1]ACS_16_5YR_B17017_with_ann!BU263","v":24},{"$f":"[1]ACS_16_5YR_B17017_with_ann!BV263","v":36},{"$f":"[1]ACS_16_5YR_B17017_with_ann!BW263","v":17},{"$f":"[1]ACS_16_5YR_B17017_with_ann!BX263","v":30},{"$f":"[1]ACS_16_5YR_B17017_with_ann!BY263","v":17},{"$f":"[1]ACS_16_5YR_B17017_with_ann!BZ263","v":40},{"$f":"[1]ACS_16_5YR_B17017_with_ann!CA263","v":20},{"$f":"[1]ACS_16_5YR_B17017_with_ann!CB263","v":21},{"$f":"[1]ACS_16_5YR_B17017_with_ann!CC263","v":16},{"$f":"[1]ACS_16_5YR_B17017_with_ann!CD263","v":0},{"$f":"[1]ACS_16_5YR_B17017_with_ann!CE263","v":11},{"$f":"[1]ACS_16_5YR_B17017_with_ann!CF263","v":19},{"$f":"[1]ACS_16_5YR_B17017_with_ann!CG263","v":16},{"$f":"[1]ACS_16_5YR_B17017_with_ann!CH263","v":2},{"$f":"[1]ACS_16_5YR_B17017_with_ann!CI263","v":3},{"$f":"[1]ACS_16_5YR_B17017_with_ann!CJ263","v":0},{"$f":"[1]ACS_16_5YR_B17017_with_ann!CK263","v":11},{"$f":"[1]ACS_16_5YR_B17017_with_ann!CL263","v":19},{"$f":"[1]ACS_16_5YR_B17017_with_ann!CM263","v":14},{"$f":"[1]ACS_16_5YR_B17017_with_ann!CN263","v":0},{"$f":"[1]ACS_16_5YR_B17017_with_ann!CO263","v":11},{"$f":"[1]ACS_16_5YR_B17017_with_ann!CP263","v":4},{"$f":"[1]ACS_16_5YR_B17017_with_ann!CQ263","v":5},{"$f":"[1]ACS_16_5YR_B17017_with_ann!CR263","v":5},{"$f":"[1]ACS_16_5YR_B17017_with_ann!CS263","v":6},{"$f":"[1]ACS_16_5YR_B17017_with_ann!CT263","v":10},{"$f":"[1]ACS_16_5YR_B17017_with_ann!CU263","v":11},{"$f":"[1]ACS_16_5YR_B17017_with_ann!CV263","v":91},{"$f":"[1]ACS_16_5YR_B17017_with_ann!CW263","v":34},{"$f":"[1]ACS_16_5YR_B17017_with_ann!CX264","v":100},{"$f":"[1]ACS_16_5YR_B17017_with_ann!CY264","v":69},{"$f":"[1]ACS_16_5YR_B17017_with_ann!CZ264","v":0},{"$f":"[1]ACS_16_5YR_B17017_with_ann!DA264","v":11},{"$f":"[1]ACS_16_5YR_B17017_with_ann!DB264","v":52},{"$f":"[1]ACS_16_5YR_B17017_with_ann!DC264","v":51},{"$f":"[1]ACS_16_5YR_B17017_with_ann!DD264","v":0},{"$f":"[1]ACS_16_5YR_B17017_with_ann!DE264","v":11},{"$f":"[1]ACS_16_5YR_B17017_with_ann!DF264","v":48},{"$f":"[1]ACS_16_5YR_B17017_with_ann!DG264","v":61},{"$f":"[1]ACS_16_5YR_B17017_with_ann!DH264","v":220},{"$f":"[1]ACS_16_5YR_B17017_with_ann!DI264","v":135},{"$f":"[1]ACS_16_5YR_B17017_with_ann!DJ264","v":17},{"$f":"[1]ACS_16_5YR_B17017_with_ann!DK264","v":24},{"$f":"[1]ACS_16_5YR_B17017_with_ann!DL264","v":33},{"$f":"[1]ACS_16_5YR_B17017_with_ann!DM264","v":47},{"$f":"[1]ACS_16_5YR_B17017_with_ann!DN264","v":91},{"$f":"[1]ACS_16_5YR_B17017_with_ann!DO264","v":102},{"$f":"[1]ACS_16_5YR_B17017_with_ann!DP264","v":79},{"$f":"[1]ACS_16_5YR_B17017_with_ann!DQ264","v":60}]
["0600000US3301930500",3301930500,"060","Goshen",{"$f":"[1]ACS_16_5YR_B17017_with_ann!D263","v":277},{"$f":"[1]ACS_16_5YR_B17017_with_ann!E263","v":39},{"$f":"[1]ACS_16_5YR_B17017_with_ann!F263","v":39},{"$f":"[1]ACS_16_5YR_B17017_with_ann!G263","v":21},{"$f":"[1]ACS_16_5YR_B17017_with_ann!H263","v":16},{"$f":"[1]ACS_16_5YR_B17017_with_ann!I263","v":12},{"$f":"[1]ACS_16_5YR_B17017_with_ann!J263","v":5},{"$f":"[1]ACS_16_5YR_B17017_with_ann!K263","v":6},{"$f":"[1]ACS_16_5YR_B17017_with_ann!L263","v":0},{"$f":"[1]ACS_16_5YR_B17017_with_ann!M263","v":11},{"$f":"[1]ACS_16_5YR_B17017_with_ann!N263","v":0},{"$f":"[1]ACS_16_5YR_B17017_with_ann!O263","v":11},{"$f":"[1]ACS_16_5YR_B17017_with_ann!P263","v":5},{"$f":"[1]ACS_16_5YR_B17017_with_ann!Q263","v":6},{"$f":"[1]ACS_16_5YR_B17017_with_ann!R263","v":0},{"$f":"[1]ACS_16_5YR_B17017_with_ann!S263","v":11},{"$f":"[1]ACS_16_5YR_B17017_with_ann!T263","v":11},{"$f":"[1]ACS_16_5YR_B17017_with_ann!U263","v":10},{"$f":"[1]ACS_16_5YR_B17017_with_ann!V263","v":9},{"$f":"[1]ACS_16_5YR_B17017_with_ann!W263","v":10},{"$f":"[1]ACS_16_5YR_B17017_with_ann!X263","v":6},{"$f":"[1]ACS_16_5YR_B17017_with_ann!Y263","v":9},{"$f":"[1]ACS_16_5YR_B17017_with_ann!Z263","v":3},{"$f":"[1]ACS_16_5YR_B17017_with_ann!AA263","v":4},{"$f":"[1]ACS_16_5YR_B17017_with_ann!AB263","v":0},{"$f":"[1]ACS_16_5YR_B17017_with_ann!AC263","v":11},{"$f":"[1]ACS_16_5YR_B17017_with_ann!AD263","v":0},{"$f":"[1]ACS_16_5YR_B17017_with_ann!AE263","v":11},{"$f":"[1]ACS_16_5YR_B17017_with_ann!AF263","v":2},{"$f":"[1]ACS_16_5YR_B17017_with_ann!AG263","v":3},{"$f":"[1]ACS_16_5YR_B17017_with_ann!AH263","v":0},{"$f":"[1]ACS_16_5YR_B17017_with_ann!AI263","v":11},{"$f":"[1]ACS_16_5YR_B17017_with_ann!AJ263","v":2},{"$f":"[1]ACS_16_5YR_B17017_with_ann!AK263","v":3},{"$f":"[1]ACS_16_5YR_B17017_with_ann!AL263","v":0},{"$f":"[1]ACS_16_5YR_B17017_with_ann!AM263","v":11},{"$f":"[1]ACS_16_5YR_B17017_with_ann!AN263","v":0},{"$f":"[1]ACS_16_5YR_B17017_with_ann!AO263","v":11},{"$f":"[1]ACS_16_5YR_B17017_with_ann!AP263","v":23},{"$f":"[1]ACS_16_5YR_B17017_with_ann!AQ263","v":17},{"$f":"[1]ACS_16_5YR_B17017_with_ann!AR263","v":8},{"$f":"[1]ACS_16_5YR_B17017_with_ann!AS263","v":10},{"$f":"[1]ACS_16_5YR_B17017_with_ann!AT263","v":0},{"$f":"[1]ACS_16_5YR_B17017_with_ann!AU263","v":11},{"$f":"[1]ACS_16_5YR_B17017_with_ann!AV263","v":6},{"$f":"[1]ACS_16_5YR_B17017_with_ann!AW263","v":9},{"$f":"[1]ACS_16_5YR_B17017_with_ann!AX263","v":0},{"$f":"[1]ACS_16_5YR_B17017_with_ann!AY263","v":11},{"$f":"[1]ACS_16_5YR_B17017_with_ann!AZ263","v":2},{"$f":"[1]ACS_16_5YR_B17017_with_ann!BA263","v":3},{"$f":"[1]ACS_16_5YR_B17017_with_ann!BB263","v":15},{"$f":"[1]ACS_16_5YR_B17017_with_ann!BC263","v":14},{"$f":"[1]ACS_16_5YR_B17017_with_ann!BD263","v":0},{"$f":"[1]ACS_16_5YR_B17017_with_ann!BE263","v":11},{"$f":"[1]ACS_16_5YR_B17017_with_ann!BF264","v":0},{"$f":"[1]ACS_16_5YR_B17017_with_ann!BG264","v":11},{"$f":"[1]ACS_16_5YR_B17017_with_ann!BH264","v":0},{"$f":"[1]ACS_16_5YR_B17017_with_ann!BI264","v":11},{"$f":"[1]ACS_16_5YR_B17017_with_ann!BJ264","v":0},{"$f":"[1]ACS_16_5YR_B17017_with_ann!BK264","v":11},{"$f":"[1]ACS_16_5YR_B17017_with_ann!BL264","v":1191},{"$f":"[1]ACS_16_5YR_B17017_with_ann!BM264","v":141},{"$f":"[1]ACS_16_5YR_B17017_with_ann!BN264","v":871},{"$f":"[1]ACS_16_5YR_B17017_with_ann!BO264","v":91},{"$f":"[1]ACS_16_5YR_B17017_with_ann!BP264","v":750},{"$f":"[1]ACS_16_5YR_B17017_with_ann!BQ264","v":119},{"$f":"[1]ACS_16_5YR_B17017_with_ann!BR264","v":0},{"$f":"[1]ACS_16_5YR_B17017_with_ann!BS264","v":11},{"$f":"[1]ACS_16_5YR_B17017_with_ann!BT264","v":109},{"$f":"[1]ACS_16_5YR_B17017_with_ann!BU264","v":53},{"$f":"[1]ACS_16_5YR_B17017_with_ann!BV264","v":373},{"$f":"[1]ACS_16_5YR_B17017_with_ann!BW264","v":114},{"$f":"[1]ACS_16_5YR_B17017_with_ann!BX264","v":268},{"$f":"[1]ACS_16_5YR_B17017_with_ann!BY264","v":78},{"$f":"[1]ACS_16_5YR_B17017_with_ann!BZ264","v":121},{"$f":"[1]ACS_16_5YR_B17017_with_ann!CA264","v":69},{"$f":"[1]ACS_16_5YR_B17017_with_ann!CB264","v":89},{"$f":"[1]ACS_16_5YR_B17017_with_ann!CC264","v":68},{"$f":"[1]ACS_16_5YR_B17017_with_ann!CD264","v":23},{"$f":"[1]ACS_16_5YR_B17017_with_ann!CE264","v":33},{"$f":"[1]ACS_16_5YR_B17017_with_ann!CF264","v":21},{"$f":"[1]ACS_16_5YR_B17017_with_ann!CG264","v":31},{"$f":"[1]ACS_16_5YR_B17017_with_ann!CH264","v":45},{"$f":"[1]ACS_16_5YR_B17017_with_ann!CI264","v":44},{"$f":"[1]ACS_16_5YR_B17017_with_ann!CJ264","v":0},{"$f":"[1]ACS_16_5YR_B17017_with_ann!CK264","v":11},{"$f":"[1]ACS_16_5YR_B17017_with_ann!CL264","v":32},{"$f":"[1]ACS_16_5YR_B17017_with_ann!CM264","v":31},{"$f":"[1]ACS_16_5YR_B17017_with_ann!CN264","v":0},{"$f":"[1]ACS_16_5YR_B17017_with_ann!CO264","v":11},{"$f":"[1]ACS_16_5YR_B17017_with_ann!CP264","v":0},{"$f":"[1]ACS_16_5YR_B17017_with_ann!CQ264","v":11},{"$f":"[1]ACS_16_5YR_B17017_with_ann!CR264","v":18},{"$f":"[1]ACS_16_5YR_B17017_with_ann!CS264","v":25},{"$f":"[1]ACS_16_5YR_B17017_with_ann!CT264","v":14},{"$f":"[1]ACS_16_5YR_B17017_with_ann!CU264","v":21},{"$f":"[1]ACS_16_5YR_B17017_with_ann!CV264","v":320},{"$f":"[1]ACS_16_5YR_B17017_with_ann!CW264","v":149},{"$f":"[1]ACS_16_5YR_B17017_with_ann!CX265","v":19},{"$f":"[1]ACS_16_5YR_B17017_with_ann!CY265","v":15},{"$f":"[1]ACS_16_5YR_B17017_with_ann!CZ265","v":0},{"$f":"[1]ACS_16_5YR_B17017_with_ann!DA265","v":11},{"$f":"[1]ACS_16_5YR_B17017_with_ann!DB265","v":11},{"$f":"[1]ACS_16_5YR_B17017_with_ann!DC265","v":12},{"$f":"[1]ACS_16_5YR_B17017_with_ann!DD265","v":5},{"$f":"[1]ACS_16_5YR_B17017_with_ann!DE265","v":5},{"$f":"[1]ACS_16_5YR_B17017_with_ann!DF265","v":3},{"$f":"[1]ACS_16_5YR_B17017_with_ann!DG265","v":4},{"$f":"[1]ACS_16_5YR_B17017_with_ann!DH265","v":34},{"$f":"[1]ACS_16_5YR_B17017_with_ann!DI265","v":16},{"$f":"[1]ACS_16_5YR_B17017_with_ann!DJ265","v":0},{"$f":"[1]ACS_16_5YR_B17017_with_ann!DK265","v":11},{"$f":"[1]ACS_16_5YR_B17017_with_ann!DL265","v":0},{"$f":"[1]ACS_16_5YR_B17017_with_ann!DM265","v":11},{"$f":"[1]ACS_16_5YR_B17017_with_ann!DN265","v":23},{"$f":"[1]ACS_16_5YR_B17017_with_ann!DO265","v":16},{"$f":"[1]ACS_16_5YR_B17017_with_ann!DP265","v":11},{"$f":"[1]ACS_16_5YR_B17017_with_ann!DQ265","v":7}]
["0600000US3301931220",3301931220,"060","Grantham",{"$f":"[1]ACS_16_5YR_B17017_with_ann!D264","v":1222},{"$f":"[1]ACS_16_5YR_B17017_with_ann!E264","v":142},{"$f":"[1]ACS_16_5YR_B17017_with_ann!F264","v":31},{"$f":"[1]ACS_16_5YR_B17017_with_ann!G264","v":43},{"$f":"[1]ACS_16_5YR_B17017_with_ann!H264","v":31},{"$f":"[1]ACS_16_5YR_B17017_with_ann!I264","v":43},{"$f":"[1]ACS_16_5YR_B17017_with_ann!J264","v":0},{"$f":"[1]ACS_16_5YR_B17017_with_ann!K264","v":11},{"$f":"[1]ACS_16_5YR_B17017_with_ann!L264","v":0},{"$f":"[1]ACS_16_5YR_B17017_with_ann!M264","v":11},{"$f":"[1]ACS_16_5YR_B17017_with_ann!N264","v":0},{"$f":"[1]ACS_16_5YR_B17017_with_ann!O264","v":11},{"$f":"[1]ACS_16_5YR_B17017_with_ann!P264","v":0},{"$f":"[1]ACS_16_5YR_B17017_with_ann!Q264","v":11},{"$f":"[1]ACS_16_5YR_B17017_with_ann!R264","v":0},{"$f":"[1]ACS_16_5YR_B17017_with_ann!S264","v":11},{"$f":"[1]ACS_16_5YR_B17017_with_ann!T264","v":31},{"$f":"[1]ACS_16_5YR_B17017_with_ann!U264","v":43},{"$f":"[1]ACS_16_5YR_B17017_with_ann!V264","v":0},{"$f":"[1]ACS_16_5YR_B17017_with_ann!W264","v":11},{"$f":"[1]ACS_16_5YR_B17017_with_ann!X264","v":0},{"$f":"[1]ACS_16_5YR_B17017_with_ann!Y264","v":11},{"$f":"[1]ACS_16_5YR_B17017_with_ann!Z264","v":0},{"$f":"[1]ACS_16_5YR_B17017_with_ann!AA264","v":11},{"$f":"[1]ACS_16_5YR_B17017_with_ann!AB264","v":0},{"$f":"[1]ACS_16_5YR_B17017_with_ann!AC264","v":11},{"$f":"[1]ACS_16_5YR_B17017_with_ann!AD264","v":0},{"$f":"[1]ACS_16_5YR_B17017_with_ann!AE264","v":11},{"$f":"[1]ACS_16_5YR_B17017_with_ann!AF264","v":31},{"$f":"[1]ACS_16_5YR_B17017_with_ann!AG264","v":43},{"$f":"[1]ACS_16_5YR_B17017_with_ann!AH264","v":0},{"$f":"[1]ACS_16_5YR_B17017_with_ann!AI264","v":11},{"$f":"[1]ACS_16_5YR_B17017_with_ann!AJ264","v":0},{"$f":"[1]ACS_16_5YR_B17017_with_ann!AK264","v":11},{"$f":"[1]ACS_16_5YR_B17017_with_ann!AL264","v":31},{"$f":"[1]ACS_16_5YR_B17017_with_ann!AM264","v":43},{"$f":"[1]ACS_16_5YR_B17017_with_ann!AN264","v":0},{"$f":"[1]ACS_16_5YR_B17017_with_ann!AO264","v":11},{"$f":"[1]ACS_16_5YR_B17017_with_ann!AP264","v":0},{"$f":"[1]ACS_16_5YR_B17017_with_ann!AQ264","v":11},{"$f":"[1]ACS_16_5YR_B17017_with_ann!AR264","v":0},{"$f":"[1]ACS_16_5YR_B17017_with_ann!AS264","v":11},{"$f":"[1]ACS_16_5YR_B17017_with_ann!AT264","v":0},{"$f":"[1]ACS_16_5YR_B17017_with_ann!AU264","v":11},{"$f":"[1]ACS_16_5YR_B17017_with_ann!AV264","v":0},{"$f":"[1]ACS_16_5YR_B17017_with_ann!AW264","v":11},{"$f":"[1]ACS_16_5YR_B17017_with_ann!AX264","v":0},{"$f":"[1]ACS_16_5YR_B17017_with_ann!AY264","v":11},{"$f":"[1]ACS_16_5YR_B17017_with_ann!AZ264","v":0},{"$f":"[1]ACS_16_5YR_B17017_with_ann!BA264","v":11},{"$f":"[1]ACS_16_5YR_B17017_with_ann!BB264","v":0},{"$f":"[1]ACS_16_5YR_B17017_with_ann!BC264","v":11},{"$f":"[1]ACS_16_5YR_B17017_with_ann!BD264","v":0},{"$f":"[1]ACS_16_5YR_B17017_with_ann!BE264","v":11},{"$f":"[1]ACS_16_5YR_B17017_with_ann!BF265","v":0},{"$f":"[1]ACS_16_5YR_B17017_with_ann!BG265","v":11},{"$f":"[1]ACS_16_5YR_B17017_with_ann!BH265","v":8},{"$f":"[1]ACS_16_5YR_B17017_with_ann!BI265","v":12},{"$f":"[1]ACS_16_5YR_B17017_with_ann!BJ265","v":0},{"$f":"[1]ACS_16_5YR_B17017_with_ann!BK265","v":11},{"$f":"[1]ACS_16_5YR_B17017_with_ann!BL265","v":221},{"$f":"[1]ACS_16_5YR_B17017_with_ann!BM265","v":40},{"$f":"[1]ACS_16_5YR_B17017_with_ann!BN265","v":168},{"$f":"[1]ACS_16_5YR_B17017_with_ann!BO265","v":35},{"$f":"[1]ACS_16_5YR_B17017_with_ann!BP265","v":163},{"$f":"[1]ACS_16_5YR_B17017_with_ann!BQ265","v":36},{"$f":"[1]ACS_16_5YR_B17017_with_ann!BR265","v":0},{"$f":"[1]ACS_16_5YR_B17017_with_ann!BS265","v":11},{"$f":"[1]ACS_16_5YR_B17017_with_ann!BT265","v":39},{"$f":"[1]ACS_16_5YR_B17017_with_ann!BU265","v":19},{"$f":"[1]ACS_16_5YR_B17017_with_ann!BV265","v":86},{"$f":"[1]ACS_16_5YR_B17017_with_ann!BW265","v":31},{"$f":"[1]ACS_16_5YR_B17017_with_ann!BX265","v":38},{"$f":"[1]ACS_16_5YR_B17017_with_ann!BY265","v":12},{"$f":"[1]ACS_16_5YR_B17017_with_ann!BZ265","v":5},{"$f":"[1]ACS_16_5YR_B17017_with_ann!CA265","v":6},{"$f":"[1]ACS_16_5YR_B17017_with_ann!CB265","v":0},{"$f":"[1]ACS_16_5YR_B17017_with_ann!CC265","v":11},{"$f":"[1]ACS_16_5YR_B17017_with_ann!CD265","v":0},{"$f":"[1]ACS_16_5YR_B17017_with_ann!CE265","v":11},{"$f":"[1]ACS_16_5YR_B17017_with_ann!CF265","v":0},{"$f":"[1]ACS_16_5YR_B17017_with_ann!CG265","v":11},{"$f":"[1]ACS_16_5YR_B17017_with_ann!CH265","v":0},{"$f":"[1]ACS_16_5YR_B17017_with_ann!CI265","v":11},{"$f":"[1]ACS_16_5YR_B17017_with_ann!CJ265","v":0},{"$f":"[1]ACS_16_5YR_B17017_with_ann!CK265","v":11},{"$f":"[1]ACS_16_5YR_B17017_with_ann!CL265","v":5},{"$f":"[1]ACS_16_5YR_B17017_with_ann!CM265","v":6},{"$f":"[1]ACS_16_5YR_B17017_with_ann!CN265","v":0},{"$f":"[1]ACS_16_5YR_B17017_with_ann!CO265","v":11},{"$f":"[1]ACS_16_5YR_B17017_with_ann!CP265","v":0},{"$f":"[1]ACS_16_5YR_B17017_with_ann!CQ265","v":11},{"$f":"[1]ACS_16_5YR_B17017_with_ann!CR265","v":3},{"$f":"[1]ACS_16_5YR_B17017_with_ann!CS265","v":5},{"$f":"[1]ACS_16_5YR_B17017_with_ann!CT265","v":2},{"$f":"[1]ACS_16_5YR_B17017_with_ann!CU265","v":3},{"$f":"[1]ACS_16_5YR_B17017_with_ann!CV265","v":53},{"$f":"[1]ACS_16_5YR_B17017_with_ann!CW265","v":22},{"$f":"[1]ACS_16_5YR_B17017_with_ann!CX266","v":84},{"$f":"[1]ACS_16_5YR_B17017_with_ann!CY266","v":43},{"$f":"[1]ACS_16_5YR_B17017_with_ann!CZ266","v":0},{"$f":"[1]ACS_16_5YR_B17017_with_ann!DA266","v":11},{"$f":"[1]ACS_16_5YR_B17017_with_ann!DB266","v":5},{"$f":"[1]ACS_16_5YR_B17017_with_ann!DC266","v":9},{"$f":"[1]ACS_16_5YR_B17017_with_ann!DD266","v":59},{"$f":"[1]ACS_16_5YR_B17017_with_ann!DE266","v":37},{"$f":"[1]ACS_16_5YR_B17017_with_ann!DF266","v":20},{"$f":"[1]ACS_16_5YR_B17017_with_ann!DG266","v":21},{"$f":"[1]ACS_16_5YR_B17017_with_ann!DH266","v":47},{"$f":"[1]ACS_16_5YR_B17017_with_ann!DI266","v":20},{"$f":"[1]ACS_16_5YR_B17017_with_ann!DJ266","v":0},{"$f":"[1]ACS_16_5YR_B17017_with_ann!DK266","v":11},{"$f":"[1]ACS_16_5YR_B17017_with_ann!DL266","v":0},{"$f":"[1]ACS_16_5YR_B17017_with_ann!DM266","v":11},{"$f":"[1]ACS_16_5YR_B17017_with_ann!DN266","v":18},{"$f":"[1]ACS_16_5YR_B17017_with_ann!DO266","v":14},{"$f":"[1]ACS_16_5YR_B17017_with_ann!DP266","v":29},{"$f":"[1]ACS_16_5YR_B17017_with_ann!DQ266","v":17}]
["0600000US3301940900",3301940900,"060","Langdon",{"$f":"[1]ACS_16_5YR_B17017_with_ann!D265","v":257},{"$f":"[1]ACS_16_5YR_B17017_with_ann!E265","v":47},{"$f":"[1]ACS_16_5YR_B17017_with_ann!F265","v":36},{"$f":"[1]ACS_16_5YR_B17017_with_ann!G265","v":19},{"$f":"[1]ACS_16_5YR_B17017_with_ann!H265","v":22},{"$f":"[1]ACS_16_5YR_B17017_with_ann!I265","v":15},{"$f":"[1]ACS_16_5YR_B17017_with_ann!J265","v":11},{"$f":"[1]ACS_16_5YR_B17017_with_ann!K265","v":11},{"$f":"[1]ACS_16_5YR_B17017_with_ann!L265","v":0},{"$f":"[1]ACS_16_5YR_B17017_with_ann!M265","v":11},{"$f":"[1]ACS_16_5YR_B17017_with_ann!N265","v":6},{"$f":"[1]ACS_16_5YR_B17017_with_ann!O265","v":10},{"$f":"[1]ACS_16_5YR_B17017_with_ann!P265","v":3},{"$f":"[1]ACS_16_5YR_B17017_with_ann!Q265","v":4},{"$f":"[1]ACS_16_5YR_B17017_with_ann!R265","v":2},{"$f":"[1]ACS_16_5YR_B17017_with_ann!S265","v":3},{"$f":"[1]ACS_16_5YR_B17017_with_ann!T265","v":11},{"$f":"[1]ACS_16_5YR_B17017_with_ann!U265","v":12},{"$f":"[1]ACS_16_5YR_B17017_with_ann!V265","v":0},{"$f":"[1]ACS_16_5YR_B17017_with_ann!W265","v":11},{"$f":"[1]ACS_16_5YR_B17017_with_ann!X265","v":0},{"$f":"[1]ACS_16_5YR_B17017_with_ann!Y265","v":11},{"$f":"[1]ACS_16_5YR_B17017_with_ann!Z265","v":0},{"$f":"[1]ACS_16_5YR_B17017_with_ann!AA265","v":11},{"$f":"[1]ACS_16_5YR_B17017_with_ann!AB265","v":0},{"$f":"[1]ACS_16_5YR_B17017_with_ann!AC265","v":11},{"$f":"[1]ACS_16_5YR_B17017_with_ann!AD265","v":0},{"$f":"[1]ACS_16_5YR_B17017_with_ann!AE265","v":11},{"$f":"[1]ACS_16_5YR_B17017_with_ann!AF265","v":11},{"$f":"[1]ACS_16_5YR_B17017_with_ann!AG265","v":12},{"$f":"[1]ACS_16_5YR_B17017_with_ann!AH265","v":0},{"$f":"[1]ACS_16_5YR_B17017_with_ann!AI265","v":11},{"$f":"[1]ACS_16_5YR_B17017_with_ann!AJ265","v":9},{"$f":"[1]ACS_16_5YR_B17017_with_ann!AK265","v":11},{"$f":"[1]ACS_16_5YR_B17017_with_ann!AL265","v":2},{"$f":"[1]ACS_16_5YR_B17017_with_ann!AM265","v":3},{"$f":"[1]ACS_16_5YR_B17017_with_ann!AN265","v":0},{"$f":"[1]ACS_16_5YR_B17017_with_ann!AO265","v":11},{"$f":"[1]ACS_16_5YR_B17017_with_ann!AP265","v":14},{"$f":"[1]ACS_16_5YR_B17017_with_ann!AQ265","v":15},{"$f":"[1]ACS_16_5YR_B17017_with_ann!AR265","v":0},{"$f":"[1]ACS_16_5YR_B17017_with_ann!AS265","v":11},{"$f":"[1]ACS_16_5YR_B17017_with_ann!AT265","v":0},{"$f":"[1]ACS_16_5YR_B17017_with_ann!AU265","v":11},{"$f":"[1]ACS_16_5YR_B17017_with_ann!AV265","v":0},{"$f":"[1]ACS_16_5YR_B17017_with_ann!AW265","v":11},{"$f":"[1]ACS_16_5YR_B17017_with_ann!AX265","v":0},{"$f":"[1]ACS_16_5YR_B17017_with_ann!AY265","v":11},{"$f":"[1]ACS_16_5YR_B17017_with_ann!AZ265","v":0},{"$f":"[1]ACS_16_5YR_B17017_with_ann!BA265","v":11},{"$f":"[1]ACS_16_5YR_B17017_with_ann!BB265","v":14},{"$f":"[1]ACS_16_5YR_B17017_with_ann!BC265","v":15},{"$f":"[1]ACS_16_5YR_B17017_with_ann!BD265","v":6},{"$f":"[1]ACS_16_5YR_B17017_with_ann!BE265","v":10},{"$f":"[1]ACS_16_5YR_B17017_with_ann!BF266","v":0},{"$f":"[1]ACS_16_5YR_B17017_with_ann!BG266","v":11},{"$f":"[1]ACS_16_5YR_B17017_with_ann!BH266","v":2},{"$f":"[1]ACS_16_5YR_B17017_with_ann!BI266","v":4},{"$f":"[1]ACS_16_5YR_B17017_with_ann!BJ266","v":0},{"$f":"[1]ACS_16_5YR_B17017_with_ann!BK266","v":11},{"$f":"[1]ACS_16_5YR_B17017_with_ann!BL266","v":359},{"$f":"[1]ACS_16_5YR_B17017_with_ann!BM266","v":57},{"$f":"[1]ACS_16_5YR_B17017_with_ann!BN266","v":228},{"$f":"[1]ACS_16_5YR_B17017_with_ann!BO266","v":48},{"$f":"[1]ACS_16_5YR_B17017_with_ann!BP266","v":185},{"$f":"[1]ACS_16_5YR_B17017_with_ann!BQ266","v":43},{"$f":"[1]ACS_16_5YR_B17017_with_ann!BR266","v":3},{"$f":"[1]ACS_16_5YR_B17017_with_ann!BS266","v":4},{"$f":"[1]ACS_16_5YR_B17017_with_ann!BT266","v":60},{"$f":"[1]ACS_16_5YR_B17017_with_ann!BU266","v":31},{"$f":"[1]ACS_16_5YR_B17017_with_ann!BV266","v":72},{"$f":"[1]ACS_16_5YR_B17017_with_ann!BW266","v":29},{"$f":"[1]ACS_16_5YR_B17017_with_ann!BX266","v":50},{"$f":"[1]ACS_16_5YR_B17017_with_ann!BY266","v":23},{"$f":"[1]ACS_16_5YR_B17017_with_ann!BZ266","v":43},{"$f":"[1]ACS_16_5YR_B17017_with_ann!CA266","v":30},{"$f":"[1]ACS_16_5YR_B17017_with_ann!CB266","v":22},{"$f":"[1]ACS_16_5YR_B17017_with_ann!CC266","v":23},{"$f":"[1]ACS_16_5YR_B17017_with_ann!CD266","v":0},{"$f":"[1]ACS_16_5YR_B17017_with_ann!CE266","v":11},{"$f":"[1]ACS_16_5YR_B17017_with_ann!CF266","v":5},{"$f":"[1]ACS_16_5YR_B17017_with_ann!CG266","v":6},{"$f":"[1]ACS_16_5YR_B17017_with_ann!CH266","v":14},{"$f":"[1]ACS_16_5YR_B17017_with_ann!CI266","v":22},{"$f":"[1]ACS_16_5YR_B17017_with_ann!CJ266","v":3},{"$f":"[1]ACS_16_5YR_B17017_with_ann!CK266","v":4},{"$f":"[1]ACS_16_5YR_B17017_with_ann!CL266","v":21},{"$f":"[1]ACS_16_5YR_B17017_with_ann!CM266","v":18},{"$f":"[1]ACS_16_5YR_B17017_with_ann!CN266","v":0},{"$f":"[1]ACS_16_5YR_B17017_with_ann!CO266","v":11},{"$f":"[1]ACS_16_5YR_B17017_with_ann!CP266","v":6},{"$f":"[1]ACS_16_5YR_B17017_with_ann!CQ266","v":7},{"$f":"[1]ACS_16_5YR_B17017_with_ann!CR266","v":15},{"$f":"[1]ACS_16_5YR_B17017_with_ann!CS266","v":15},{"$f":"[1]ACS_16_5YR_B17017_with_ann!CT266","v":0},{"$f":"[1]ACS_16_5YR_B17017_with_ann!CU266","v":11},{"$f":"[1]ACS_16_5YR_B17017_with_ann!CV266","v":131},{"$f":"[1]ACS_16_5YR_B17017_with_ann!CW266","v":46},{"$f":"[1]ACS_16_5YR_B17017_with_ann!CX267","v":366},{"$f":"[1]ACS_16_5YR_B17017_with_ann!CY267","v":129},{"$f":"[1]ACS_16_5YR_B17017_with_ann!CZ267","v":11},{"$f":"[1]ACS_16_5YR_B17017_with_ann!DA267","v":18},{"$f":"[1]ACS_16_5YR_B17017_with_ann!DB267","v":127},{"$f":"[1]ACS_16_5YR_B17017_with_ann!DC267","v":89},{"$f":"[1]ACS_16_5YR_B17017_with_ann!DD267","v":70},{"$f":"[1]ACS_16_5YR_B17017_with_ann!DE267","v":54},{"$f":"[1]ACS_16_5YR_B17017_with_ann!DF267","v":158},{"$f":"[1]ACS_16_5YR_B17017_with_ann!DG267","v":104},{"$f":"[1]ACS_16_5YR_B17017_with_ann!DH267","v":522},{"$f":"[1]ACS_16_5YR_B17017_with_ann!DI267","v":163},{"$f":"[1]ACS_16_5YR_B17017_with_ann!DJ267","v":11},{"$f":"[1]ACS_16_5YR_B17017_with_ann!DK267","v":18},{"$f":"[1]ACS_16_5YR_B17017_with_ann!DL267","v":134},{"$f":"[1]ACS_16_5YR_B17017_with_ann!DM267","v":84},{"$f":"[1]ACS_16_5YR_B17017_with_ann!DN267","v":225},{"$f":"[1]ACS_16_5YR_B17017_with_ann!DO267","v":110},{"$f":"[1]ACS_16_5YR_B17017_with_ann!DP267","v":152},{"$f":"[1]ACS_16_5YR_B17017_with_ann!DQ267","v":76}]
["0600000US3301941700",3301941700,"060","Lempster",{"$f":"[1]ACS_16_5YR_B17017_with_ann!D266","v":393},{"$f":"[1]ACS_16_5YR_B17017_with_ann!E266","v":59},{"$f":"[1]ACS_16_5YR_B17017_with_ann!F266","v":34},{"$f":"[1]ACS_16_5YR_B17017_with_ann!G266","v":24},{"$f":"[1]ACS_16_5YR_B17017_with_ann!H266","v":12},{"$f":"[1]ACS_16_5YR_B17017_with_ann!I266","v":14},{"$f":"[1]ACS_16_5YR_B17017_with_ann!J266","v":9},{"$f":"[1]ACS_16_5YR_B17017_with_ann!K266","v":14},{"$f":"[1]ACS_16_5YR_B17017_with_ann!L266","v":0},{"$f":"[1]ACS_16_5YR_B17017_with_ann!M266","v":11},{"$f":"[1]ACS_16_5YR_B17017_with_ann!N266","v":9},{"$f":"[1]ACS_16_5YR_B17017_with_ann!O266","v":14},{"$f":"[1]ACS_16_5YR_B17017_with_ann!P266","v":0},{"$f":"[1]ACS_16_5YR_B17017_with_ann!Q266","v":11},{"$f":"[1]ACS_16_5YR_B17017_with_ann!R266","v":0},{"$f":"[1]ACS_16_5YR_B17017_with_ann!S266","v":11},{"$f":"[1]ACS_16_5YR_B17017_with_ann!T266","v":3},{"$f":"[1]ACS_16_5YR_B17017_with_ann!U266","v":5},{"$f":"[1]ACS_16_5YR_B17017_with_ann!V266","v":0},{"$f":"[1]ACS_16_5YR_B17017_with_ann!W266","v":11},{"$f":"[1]ACS_16_5YR_B17017_with_ann!X266","v":0},{"$f":"[1]ACS_16_5YR_B17017_with_ann!Y266","v":11},{"$f":"[1]ACS_16_5YR_B17017_with_ann!Z266","v":0},{"$f":"[1]ACS_16_5YR_B17017_with_ann!AA266","v":11},{"$f":"[1]ACS_16_5YR_B17017_with_ann!AB266","v":0},{"$f":"[1]ACS_16_5YR_B17017_with_ann!AC266","v":11},{"$f":"[1]ACS_16_5YR_B17017_with_ann!AD266","v":0},{"$f":"[1]ACS_16_5YR_B17017_with_ann!AE266","v":11},{"$f":"[1]ACS_16_5YR_B17017_with_ann!AF266","v":3},{"$f":"[1]ACS_16_5YR_B17017_with_ann!AG266","v":5},{"$f":"[1]ACS_16_5YR_B17017_with_ann!AH266","v":0},{"$f":"[1]ACS_16_5YR_B17017_with_ann!AI266","v":11},{"$f":"[1]ACS_16_5YR_B17017_with_ann!AJ266","v":3},{"$f":"[1]ACS_16_5YR_B17017_with_ann!AK266","v":5},{"$f":"[1]ACS_16_5YR_B17017_with_ann!AL266","v":0},{"$f":"[1]ACS_16_5YR_B17017_with_ann!AM266","v":11},{"$f":"[1]ACS_16_5YR_B17017_with_ann!AN266","v":0},{"$f":"[1]ACS_16_5YR_B17017_with_ann!AO266","v":11},{"$f":"[1]ACS_16_5YR_B17017_with_ann!AP266","v":22},{"$f":"[1]ACS_16_5YR_B17017_with_ann!AQ266","v":18},{"$f":"[1]ACS_16_5YR_B17017_with_ann!AR266","v":20},{"$f":"[1]ACS_16_5YR_B17017_with_ann!AS266","v":17},{"$f":"[1]ACS_16_5YR_B17017_with_ann!AT266","v":0},{"$f":"[1]ACS_16_5YR_B17017_with_ann!AU266","v":11},{"$f":"[1]ACS_16_5YR_B17017_with_ann!AV266","v":3},{"$f":"[1]ACS_16_5YR_B17017_with_ann!AW266","v":5},{"$f":"[1]ACS_16_5YR_B17017_with_ann!AX266","v":17},{"$f":"[1]ACS_16_5YR_B17017_with_ann!AY266","v":17},{"$f":"[1]ACS_16_5YR_B17017_with_ann!AZ266","v":0},{"$f":"[1]ACS_16_5YR_B17017_with_ann!BA266","v":11},{"$f":"[1]ACS_16_5YR_B17017_with_ann!BB266","v":2},{"$f":"[1]ACS_16_5YR_B17017_with_ann!BC266","v":4},{"$f":"[1]ACS_16_5YR_B17017_with_ann!BD266","v":0},{"$f":"[1]ACS_16_5YR_B17017_with_ann!BE266","v":11},{"$f":"[1]ACS_16_5YR_B17017_with_ann!BF267","v":48},{"$f":"[1]ACS_16_5YR_B17017_with_ann!BG267","v":77},{"$f":"[1]ACS_16_5YR_B17017_with_ann!BH267","v":13},{"$f":"[1]ACS_16_5YR_B17017_with_ann!BI267","v":22},{"$f":"[1]ACS_16_5YR_B17017_with_ann!BJ267","v":33},{"$f":"[1]ACS_16_5YR_B17017_with_ann!BK267","v":53},{"$f":"[1]ACS_16_5YR_B17017_with_ann!BL267","v":2307},{"$f":"[1]ACS_16_5YR_B17017_with_ann!BM267","v":205},{"$f":"[1]ACS_16_5YR_B17017_with_ann!BN267","v":1419},{"$f":"[1]ACS_16_5YR_B17017_with_ann!BO267","v":180},{"$f":"[1]ACS_16_5YR_B17017_with_ann!BP267","v":954},{"$f":"[1]ACS_16_5YR_B17017_with_ann!BQ267","v":147},{"$f":"[1]ACS_16_5YR_B17017_with_ann!BR267","v":0},{"$f":"[1]ACS_16_5YR_B17017_with_ann!BS267","v":16},{"$f":"[1]ACS_16_5YR_B17017_with_ann!BT267","v":309},{"$f":"[1]ACS_16_5YR_B17017_with_ann!BU267","v":128},{"$f":"[1]ACS_16_5YR_B17017_with_ann!BV267","v":451},{"$f":"[1]ACS_16_5YR_B17017_with_ann!BW267","v":141},{"$f":"[1]ACS_16_5YR_B17017_with_ann!BX267","v":194},{"$f":"[1]ACS_16_5YR_B17017_with_ann!BY267","v":89},{"$f":"[1]ACS_16_5YR_B17017_with_ann!BZ267","v":465},{"$f":"[1]ACS_16_5YR_B17017_with_ann!CA267","v":160},{"$f":"[1]ACS_16_5YR_B17017_with_ann!CB267","v":106},{"$f":"[1]ACS_16_5YR_B17017_with_ann!CC267","v":81},{"$f":"[1]ACS_16_5YR_B17017_with_ann!CD267","v":11},{"$f":"[1]ACS_16_5YR_B17017_with_ann!CE267","v":16},{"$f":"[1]ACS_16_5YR_B17017_with_ann!CF267","v":0},{"$f":"[1]ACS_16_5YR_B17017_with_ann!CG267","v":16},{"$f":"[1]ACS_16_5YR_B17017_with_ann!CH267","v":81},{"$f":"[1]ACS_16_5YR_B17017_with_ann!CI267","v":73},{"$f":"[1]ACS_16_5YR_B17017_with_ann!CJ267","v":14},{"$f":"[1]ACS_16_5YR_B17017_with_ann!CK267","v":22},{"$f":"[1]ACS_16_5YR_B17017_with_ann!CL267","v":359},{"$f":"[1]ACS_16_5YR_B17017_with_ann!CM267","v":128},{"$f":"[1]ACS_16_5YR_B17017_with_ann!CN267","v":0},{"$f":"[1]ACS_16_5YR_B17017_with_ann!CO267","v":16},{"$f":"[1]ACS_16_5YR_B17017_with_ann!CP267","v":160},{"$f":"[1]ACS_16_5YR_B17017_with_ann!CQ267","v":110},{"$f":"[1]ACS_16_5YR_B17017_with_ann!CR267","v":66},{"$f":"[1]ACS_16_5YR_B17017_with_ann!CS267","v":46},{"$f":"[1]ACS_16_5YR_B17017_with_ann!CT267","v":133},{"$f":"[1]ACS_16_5YR_B17017_with_ann!CU267","v":98},{"$f":"[1]ACS_16_5YR_B17017_with_ann!CV267","v":888},{"$f":"[1]ACS_16_5YR_B17017_with_ann!CW267","v":205},{"$f":"[1]ACS_16_5YR_B17017_with_ann!CX268","v":84},{"$f":"[1]ACS_16_5YR_B17017_with_ann!CY268","v":38},{"$f":"[1]ACS_16_5YR_B17017_with_ann!CZ268","v":0},{"$f":"[1]ACS_16_5YR_B17017_with_ann!DA268","v":11},{"$f":"[1]ACS_16_5YR_B17017_with_ann!DB268","v":9},{"$f":"[1]ACS_16_5YR_B17017_with_ann!DC268","v":9},{"$f":"[1]ACS_16_5YR_B17017_with_ann!DD268","v":37},{"$f":"[1]ACS_16_5YR_B17017_with_ann!DE268","v":30},{"$f":"[1]ACS_16_5YR_B17017_with_ann!DF268","v":38},{"$f":"[1]ACS_16_5YR_B17017_with_ann!DG268","v":28},{"$f":"[1]ACS_16_5YR_B17017_with_ann!DH268","v":94},{"$f":"[1]ACS_16_5YR_B17017_with_ann!DI268","v":43},{"$f":"[1]ACS_16_5YR_B17017_with_ann!DJ268","v":0},{"$f":"[1]ACS_16_5YR_B17017_with_ann!DK268","v":11},{"$f":"[1]ACS_16_5YR_B17017_with_ann!DL268","v":12},{"$f":"[1]ACS_16_5YR_B17017_with_ann!DM268","v":13},{"$f":"[1]ACS_16_5YR_B17017_with_ann!DN268","v":41},{"$f":"[1]ACS_16_5YR_B17017_with_ann!DO268","v":22},{"$f":"[1]ACS_16_5YR_B17017_with_ann!DP268","v":41},{"$f":"[1]ACS_16_5YR_B17017_with_ann!DQ268","v":33}]
["0600000US3301952580",3301952580,"060","Newport",{"$f":"[1]ACS_16_5YR_B17017_with_ann!D267","v":2600},{"$f":"[1]ACS_16_5YR_B17017_with_ann!E267","v":168},{"$f":"[1]ACS_16_5YR_B17017_with_ann!F267","v":293},{"$f":"[1]ACS_16_5YR_B17017_with_ann!G267","v":132},{"$f":"[1]ACS_16_5YR_B17017_with_ann!H267","v":153},{"$f":"[1]ACS_16_5YR_B17017_with_ann!I267","v":102},{"$f":"[1]ACS_16_5YR_B17017_with_ann!J267","v":13},{"$f":"[1]ACS_16_5YR_B17017_with_ann!K267","v":20},{"$f":"[1]ACS_16_5YR_B17017_with_ann!L267","v":0},{"$f":"[1]ACS_16_5YR_B17017_with_ann!M267","v":16},{"$f":"[1]ACS_16_5YR_B17017_with_ann!N267","v":0},{"$f":"[1]ACS_16_5YR_B17017_with_ann!O267","v":16},{"$f":"[1]ACS_16_5YR_B17017_with_ann!P267","v":13},{"$f":"[1]ACS_16_5YR_B17017_with_ann!Q267","v":20},{"$f":"[1]ACS_16_5YR_B17017_with_ann!R267","v":0},{"$f":"[1]ACS_16_5YR_B17017_with_ann!S267","v":16},{"$f":"[1]ACS_16_5YR_B17017_with_ann!T267","v":140},{"$f":"[1]ACS_16_5YR_B17017_with_ann!U267","v":100},{"$f":"[1]ACS_16_5YR_B17017_with_ann!V267","v":12},{"$f":"[1]ACS_16_5YR_B17017_with_ann!W267","v":21},{"$f":"[1]ACS_16_5YR_B17017_with_ann!X267","v":0},{"$f":"[1]ACS_16_5YR_B17017_with_ann!Y267","v":16},{"$f":"[1]ACS_16_5YR_B17017_with_ann!Z267","v":0},{"$f":"[1]ACS_16_5YR_B17017_with_ann!AA267","v":16},{"$f":"[1]ACS_16_5YR_B17017_with_ann!AB267","v":12},{"$f":"[1]ACS_16_5YR_B17017_with_ann!AC267","v":21},{"$f":"[1]ACS_16_5YR_B17017_with_ann!AD267","v":0},{"$f":"[1]ACS_16_5YR_B17017_with_ann!AE267","v":16},{"$f":"[1]ACS_16_5YR_B17017_with_ann!AF267","v":128},{"$f":"[1]ACS_16_5YR_B17017_with_ann!AG267","v":98},{"$f":"[1]ACS_16_5YR_B17017_with_ann!AH267","v":0},{"$f":"[1]ACS_16_5YR_B17017_with_ann!AI267","v":16},{"$f":"[1]ACS_16_5YR_B17017_with_ann!AJ267","v":36},{"$f":"[1]ACS_16_5YR_B17017_with_ann!AK267","v":53},{"$f":"[1]ACS_16_5YR_B17017_with_ann!AL267","v":92},{"$f":"[1]ACS_16_5YR_B17017_with_ann!AM267","v":83},{"$f":"[1]ACS_16_5YR_B17017_with_ann!AN267","v":0},{"$f":"[1]ACS_16_5YR_B17017_with_ann!AO267","v":16},{"$f":"[1]ACS_16_5YR_B17017_with_ann!AP267","v":140},{"$f":"[1]ACS_16_5YR_B17017_with_ann!AQ267","v":97},{"$f":"[1]ACS_16_5YR_B17017_with_ann!AR267","v":14},{"$f":"[1]ACS_16_5YR_B17017_with_ann!AS267","v":24},{"$f":"[1]ACS_16_5YR_B17017_with_ann!AT267","v":0},{"$f":"[1]ACS_16_5YR_B17017_with_ann!AU267","v":16},{"$f":"[1]ACS_16_5YR_B17017_with_ann!AV267","v":0},{"$f":"[1]ACS_16_5YR_B17017_with_ann!AW267","v":16},{"$f":"[1]ACS_16_5YR_B17017_with_ann!AX267","v":14},{"$f":"[1]ACS_16_5YR_B17017_with_ann!AY267","v":24},{"$f":"[1]ACS_16_5YR_B17017_with_ann!AZ267","v":0},{"$f":"[1]ACS_16_5YR_B17017_with_ann!BA267","v":16},{"$f":"[1]ACS_16_5YR_B17017_with_ann!BB267","v":126},{"$f":"[1]ACS_16_5YR_B17017_with_ann!BC267","v":93},{"$f":"[1]ACS_16_5YR_B17017_with_ann!BD267","v":32},{"$f":"[1]ACS_16_5YR_B17017_with_ann!BE267","v":31},{"$f":"[1]ACS_16_5YR_B17017_with_ann!BF268","v":0},{"$f":"[1]ACS_16_5YR_B17017_with_ann!BG268","v":11},{"$f":"[1]ACS_16_5YR_B17017_with_ann!BH268","v":11},{"$f":"[1]ACS_16_5YR_B17017_with_ann!BI268","v":17},{"$f":"[1]ACS_16_5YR_B17017_with_ann!BJ268","v":5},{"$f":"[1]ACS_16_5YR_B17017_with_ann!BK268","v":7},{"$f":"[1]ACS_16_5YR_B17017_with_ann!BL268","v":857},{"$f":"[1]ACS_16_5YR_B17017_with_ann!BM268","v":91},{"$f":"[1]ACS_16_5YR_B17017_with_ann!BN268","v":679},{"$f":"[1]ACS_16_5YR_B17017_with_ann!BO268","v":84},{"$f":"[1]ACS_16_5YR_B17017_with_ann!BP268","v":574},{"$f":"[1]ACS_16_5YR_B17017_with_ann!BQ268","v":87},{"$f":"[1]ACS_16_5YR_B17017_with_ann!BR268","v":5},{"$f":"[1]ACS_16_5YR_B17017_with_ann!BS268","v":7},{"$f":"[1]ACS_16_5YR_B17017_with_ann!BT268","v":148},{"$f":"[1]ACS_16_5YR_B17017_with_ann!BU268","v":47},{"$f":"[1]ACS_16_5YR_B17017_with_ann!BV268","v":293},{"$f":"[1]ACS_16_5YR_B17017_with_ann!BW268","v":65},{"$f":"[1]ACS_16_5YR_B17017_with_ann!BX268","v":128},{"$f":"[1]ACS_16_5YR_B17017_with_ann!BY268","v":46},{"$f":"[1]ACS_16_5YR_B17017_with_ann!BZ268","v":105},{"$f":"[1]ACS_16_5YR_B17017_with_ann!CA268","v":55},{"$f":"[1]ACS_16_5YR_B17017_with_ann!CB268","v":17},{"$f":"[1]ACS_16_5YR_B17017_with_ann!CC268","v":15},{"$f":"[1]ACS_16_5YR_B17017_with_ann!CD268","v":0},{"$f":"[1]ACS_16_5YR_B17017_with_ann!CE268","v":11},{"$f":"[1]ACS_16_5YR_B17017_with_ann!CF268","v":5},{"$f":"[1]ACS_16_5YR_B17017_with_ann!CG268","v":7},{"$f":"[1]ACS_16_5YR_B17017_with_ann!CH268","v":6},{"$f":"[1]ACS_16_5YR_B17017_with_ann!CI268","v":9},{"$f":"[1]ACS_16_5YR_B17017_with_ann!CJ268","v":6},{"$f":"[1]ACS_16_5YR_B17017_with_ann!CK268","v":8},{"$f":"[1]ACS_16_5YR_B17017_with_ann!CL268","v":88},{"$f":"[1]ACS_16_5YR_B17017_with_ann!CM268","v":54},{"$f":"[1]ACS_16_5YR_B17017_with_ann!CN268","v":0},{"$f":"[1]ACS_16_5YR_B17017_with_ann!CO268","v":11},{"$f":"[1]ACS_16_5YR_B17017_with_ann!CP268","v":16},{"$f":"[1]ACS_16_5YR_B17017_with_ann!CQ268","v":14},{"$f":"[1]ACS_16_5YR_B17017_with_ann!CR268","v":45},{"$f":"[1]ACS_16_5YR_B17017_with_ann!CS268","v":42},{"$f":"[1]ACS_16_5YR_B17017_with_ann!CT268","v":27},{"$f":"[1]ACS_16_5YR_B17017_with_ann!CU268","v":21},{"$f":"[1]ACS_16_5YR_B17017_with_ann!CV268","v":178},{"$f":"[1]ACS_16_5YR_B17017_with_ann!CW268","v":52},{"$f":"[1]ACS_16_5YR_B17017_with_ann!CX269","v":45},{"$f":"[1]ACS_16_5YR_B17017_with_ann!CY269","v":32},{"$f":"[1]ACS_16_5YR_B17017_with_ann!CZ269","v":0},{"$f":"[1]ACS_16_5YR_B17017_with_ann!DA269","v":11},{"$f":"[1]ACS_16_5YR_B17017_with_ann!DB269","v":15},{"$f":"[1]ACS_16_5YR_B17017_with_ann!DC269","v":18},{"$f":"[1]ACS_16_5YR_B17017_with_ann!DD269","v":12},{"$f":"[1]ACS_16_5YR_B17017_with_ann!DE269","v":14},{"$f":"[1]ACS_16_5YR_B17017_with_ann!DF269","v":18},{"$f":"[1]ACS_16_5YR_B17017_with_ann!DG269","v":21},{"$f":"[1]ACS_16_5YR_B17017_with_ann!DH269","v":35},{"$f":"[1]ACS_16_5YR_B17017_with_ann!DI269","v":27},{"$f":"[1]ACS_16_5YR_B17017_with_ann!DJ269","v":0},{"$f":"[1]ACS_16_5YR_B17017_with_ann!DK269","v":11},{"$f":"[1]ACS_16_5YR_B17017_with_ann!DL269","v":0},{"$f":"[1]ACS_16_5YR_B17017_with_ann!DM269","v":11},{"$f":"[1]ACS_16_5YR_B17017_with_ann!DN269","v":20},{"$f":"[1]ACS_16_5YR_B17017_with_ann!DO269","v":19},{"$f":"[1]ACS_16_5YR_B17017_with_ann!DP269","v":15},{"$f":"[1]ACS_16_5YR_B17017_with_ann!DQ269","v":17}]
["0600000US3301962340",3301962340,"060","Plainfield",{"$f":"[1]ACS_16_5YR_B17017_with_ann!D268","v":915},{"$f":"[1]ACS_16_5YR_B17017_with_ann!E268","v":86},{"$f":"[1]ACS_16_5YR_B17017_with_ann!F268","v":58},{"$f":"[1]ACS_16_5YR_B17017_with_ann!G268","v":33},{"$f":"[1]ACS_16_5YR_B17017_with_ann!H268","v":36},{"$f":"[1]ACS_16_5YR_B17017_with_ann!I268","v":29},{"$f":"[1]ACS_16_5YR_B17017_with_ann!J268","v":25},{"$f":"[1]ACS_16_5YR_B17017_with_ann!K268","v":28},{"$f":"[1]ACS_16_5YR_B17017_with_ann!L268","v":0},{"$f":"[1]ACS_16_5YR_B17017_with_ann!M268","v":11},{"$f":"[1]ACS_16_5YR_B17017_with_ann!N268","v":0},{"$f":"[1]ACS_16_5YR_B17017_with_ann!O268","v":11},{"$f":"[1]ACS_16_5YR_B17017_with_ann!P268","v":4},{"$f":"[1]ACS_16_5YR_B17017_with_ann!Q268","v":8},{"$f":"[1]ACS_16_5YR_B17017_with_ann!R268","v":21},{"$f":"[1]ACS_16_5YR_B17017_with_ann!S268","v":27},{"$f":"[1]ACS_16_5YR_B17017_with_ann!T268","v":11},{"$f":"[1]ACS_16_5YR_B17017_with_ann!U268","v":11},{"$f":"[1]ACS_16_5YR_B17017_with_ann!V268","v":6},{"$f":"[1]ACS_16_5YR_B17017_with_ann!W268","v":9},{"$f":"[1]ACS_16_5YR_B17017_with_ann!X268","v":0},{"$f":"[1]ACS_16_5YR_B17017_with_ann!Y268","v":11},{"$f":"[1]ACS_16_5YR_B17017_with_ann!Z268","v":0},{"$f":"[1]ACS_16_5YR_B17017_with_ann!AA268","v":11},{"$f":"[1]ACS_16_5YR_B17017_with_ann!AB268","v":6},{"$f":"[1]ACS_16_5YR_B17017_with_ann!AC268","v":9},{"$f":"[1]ACS_16_5YR_B17017_with_ann!AD268","v":0},{"$f":"[1]ACS_16_5YR_B17017_with_ann!AE268","v":11},{"$f":"[1]ACS_16_5YR_B17017_with_ann!AF268","v":5},{"$f":"[1]ACS_16_5YR_B17017_with_ann!AG268","v":7},{"$f":"[1]ACS_16_5YR_B17017_with_ann!AH268","v":0},{"$f":"[1]ACS_16_5YR_B17017_with_ann!AI268","v":11},{"$f":"[1]ACS_16_5YR_B17017_with_ann!AJ268","v":0},{"$f":"[1]ACS_16_5YR_B17017_with_ann!AK268","v":11},{"$f":"[1]ACS_16_5YR_B17017_with_ann!AL268","v":0},{"$f":"[1]ACS_16_5YR_B17017_with_ann!AM268","v":11},{"$f":"[1]ACS_16_5YR_B17017_with_ann!AN268","v":5},{"$f":"[1]ACS_16_5YR_B17017_with_ann!AO268","v":7},{"$f":"[1]ACS_16_5YR_B17017_with_ann!AP268","v":22},{"$f":"[1]ACS_16_5YR_B17017_with_ann!AQ268","v":20},{"$f":"[1]ACS_16_5YR_B17017_with_ann!AR268","v":6},{"$f":"[1]ACS_16_5YR_B17017_with_ann!AS268","v":9},{"$f":"[1]ACS_16_5YR_B17017_with_ann!AT268","v":0},{"$f":"[1]ACS_16_5YR_B17017_with_ann!AU268","v":11},{"$f":"[1]ACS_16_5YR_B17017_with_ann!AV268","v":0},{"$f":"[1]ACS_16_5YR_B17017_with_ann!AW268","v":11},{"$f":"[1]ACS_16_5YR_B17017_with_ann!AX268","v":6},{"$f":"[1]ACS_16_5YR_B17017_with_ann!AY268","v":9},{"$f":"[1]ACS_16_5YR_B17017_with_ann!AZ268","v":0},{"$f":"[1]ACS_16_5YR_B17017_with_ann!BA268","v":11},{"$f":"[1]ACS_16_5YR_B17017_with_ann!BB268","v":16},{"$f":"[1]ACS_16_5YR_B17017_with_ann!BC268","v":18},{"$f":"[1]ACS_16_5YR_B17017_with_ann!BD268","v":0},{"$f":"[1]ACS_16_5YR_B17017_with_ann!BE268","v":11},{"$f":"[1]ACS_16_5YR_B17017_with_ann!BF269","v":0},{"$f":"[1]ACS_16_5YR_B17017_with_ann!BG269","v":11},{"$f":"[1]ACS_16_5YR_B17017_with_ann!BH269","v":0},{"$f":"[1]ACS_16_5YR_B17017_with_ann!BI269","v":11},{"$f":"[1]ACS_16_5YR_B17017_with_ann!BJ269","v":0},{"$f":"[1]ACS_16_5YR_B17017_with_ann!BK269","v":11},{"$f":"[1]ACS_16_5YR_B17017_with_ann!BL269","v":408},{"$f":"[1]ACS_16_5YR_B17017_with_ann!BM269","v":76},{"$f":"[1]ACS_16_5YR_B17017_with_ann!BN269","v":328},{"$f":"[1]ACS_16_5YR_B17017_with_ann!BO269","v":68},{"$f":"[1]ACS_16_5YR_B17017_with_ann!BP269","v":295},{"$f":"[1]ACS_16_5YR_B17017_with_ann!BQ269","v":62},{"$f":"[1]ACS_16_5YR_B17017_with_ann!BR269","v":0},{"$f":"[1]ACS_16_5YR_B17017_with_ann!BS269","v":11},{"$f":"[1]ACS_16_5YR_B17017_with_ann!BT269","v":28},{"$f":"[1]ACS_16_5YR_B17017_with_ann!BU269","v":16},{"$f":"[1]ACS_16_5YR_B17017_with_ann!BV269","v":145},{"$f":"[1]ACS_16_5YR_B17017_with_ann!BW269","v":51},{"$f":"[1]ACS_16_5YR_B17017_with_ann!BX269","v":122},{"$f":"[1]ACS_16_5YR_B17017_with_ann!BY269","v":42},{"$f":"[1]ACS_16_5YR_B17017_with_ann!BZ269","v":33},{"$f":"[1]ACS_16_5YR_B17017_with_ann!CA269","v":26},{"$f":"[1]ACS_16_5YR_B17017_with_ann!CB269","v":5},{"$f":"[1]ACS_16_5YR_B17017_with_ann!CC269","v":8},{"$f":"[1]ACS_16_5YR_B17017_with_ann!CD269","v":0},{"$f":"[1]ACS_16_5YR_B17017_with_ann!CE269","v":11},{"$f":"[1]ACS_16_5YR_B17017_with_ann!CF269","v":0},{"$f":"[1]ACS_16_5YR_B17017_with_ann!CG269","v":11},{"$f":"[1]ACS_16_5YR_B17017_with_ann!CH269","v":5},{"$f":"[1]ACS_16_5YR_B17017_with_ann!CI269","v":8},{"$f":"[1]ACS_16_5YR_B17017_with_ann!CJ269","v":0},{"$f":"[1]ACS_16_5YR_B17017_with_ann!CK269","v":11},{"$f":"[1]ACS_16_5YR_B17017_with_ann!CL269","v":28},{"$f":"[1]ACS_16_5YR_B17017_with_ann!CM269","v":24},{"$f":"[1]ACS_16_5YR_B17017_with_ann!CN269","v":0},{"$f":"[1]ACS_16_5YR_B17017_with_ann!CO269","v":11},{"$f":"[1]ACS_16_5YR_B17017_with_ann!CP269","v":0},{"$f":"[1]ACS_16_5YR_B17017_with_ann!CQ269","v":11},{"$f":"[1]ACS_16_5YR_B17017_with_ann!CR269","v":18},{"$f":"[1]ACS_16_5YR_B17017_with_ann!CS269","v":19},{"$f":"[1]ACS_16_5YR_B17017_with_ann!CT269","v":10},{"$f":"[1]ACS_16_5YR_B17017_with_ann!CU269","v":16},{"$f":"[1]ACS_16_5YR_B17017_with_ann!CV269","v":80},{"$f":"[1]ACS_16_5YR_B17017_with_ann!CW269","v":42},{"$f":"[1]ACS_16_5YR_B17017_with_ann!CX270","v":148},{"$f":"[1]ACS_16_5YR_B17017_with_ann!CY270","v":92},{"$f":"[1]ACS_16_5YR_B17017_with_ann!CZ270","v":28},{"$f":"[1]ACS_16_5YR_B17017_with_ann!DA270","v":47},{"$f":"[1]ACS_16_5YR_B17017_with_ann!DB270","v":60},{"$f":"[1]ACS_16_5YR_B17017_with_ann!DC270","v":69},{"$f":"[1]ACS_16_5YR_B17017_with_ann!DD270","v":28},{"$f":"[1]ACS_16_5YR_B17017_with_ann!DE270","v":27},{"$f":"[1]ACS_16_5YR_B17017_with_ann!DF270","v":32},{"$f":"[1]ACS_16_5YR_B17017_with_ann!DG270","v":38},{"$f":"[1]ACS_16_5YR_B17017_with_ann!DH270","v":270},{"$f":"[1]ACS_16_5YR_B17017_with_ann!DI270","v":87},{"$f":"[1]ACS_16_5YR_B17017_with_ann!DJ270","v":8},{"$f":"[1]ACS_16_5YR_B17017_with_ann!DK270","v":13},{"$f":"[1]ACS_16_5YR_B17017_with_ann!DL270","v":54},{"$f":"[1]ACS_16_5YR_B17017_with_ann!DM270","v":43},{"$f":"[1]ACS_16_5YR_B17017_with_ann!DN270","v":92},{"$f":"[1]ACS_16_5YR_B17017_with_ann!DO270","v":64},{"$f":"[1]ACS_16_5YR_B17017_with_ann!DP270","v":116},{"$f":"[1]ACS_16_5YR_B17017_with_ann!DQ270","v":66}]
["0600000US3301972740",3301972740,"060","Springfield",{"$f":"[1]ACS_16_5YR_B17017_with_ann!D269","v":442},{"$f":"[1]ACS_16_5YR_B17017_with_ann!E269","v":75},{"$f":"[1]ACS_16_5YR_B17017_with_ann!F269","v":34},{"$f":"[1]ACS_16_5YR_B17017_with_ann!G269","v":23},{"$f":"[1]ACS_16_5YR_B17017_with_ann!H269","v":9},{"$f":"[1]ACS_16_5YR_B17017_with_ann!I269","v":10},{"$f":"[1]ACS_16_5YR_B17017_with_ann!J269","v":9},{"$f":"[1]ACS_16_5YR_B17017_with_ann!K269","v":10},{"$f":"[1]ACS_16_5YR_B17017_with_ann!L269","v":0},{"$f":"[1]ACS_16_5YR_B17017_with_ann!M269","v":11},{"$f":"[1]ACS_16_5YR_B17017_with_ann!N269","v":0},{"$f":"[1]ACS_16_5YR_B17017_with_ann!O269","v":11},{"$f":"[1]ACS_16_5YR_B17017_with_ann!P269","v":9},{"$f":"[1]ACS_16_5YR_B17017_with_ann!Q269","v":10},{"$f":"[1]ACS_16_5YR_B17017_with_ann!R269","v":0},{"$f":"[1]ACS_16_5YR_B17017_with_ann!S269","v":11},{"$f":"[1]ACS_16_5YR_B17017_with_ann!T269","v":0},{"$f":"[1]ACS_16_5YR_B17017_with_ann!U269","v":11},{"$f":"[1]ACS_16_5YR_B17017_with_ann!V269","v":0},{"$f":"[1]ACS_16_5YR_B17017_with_ann!W269","v":11},{"$f":"[1]ACS_16_5YR_B17017_with_ann!X269","v":0},{"$f":"[1]ACS_16_5YR_B17017_with_ann!Y269","v":11},{"$f":"[1]ACS_16_5YR_B17017_with_ann!Z269","v":0},{"$f":"[1]ACS_16_5YR_B17017_with_ann!AA269","v":11},{"$f":"[1]ACS_16_5YR_B17017_with_ann!AB269","v":0},{"$f":"[1]ACS_16_5YR_B17017_with_ann!AC269","v":11},{"$f":"[1]ACS_16_5YR_B17017_with_ann!AD269","v":0},{"$f":"[1]ACS_16_5YR_B17017_with_ann!AE269","v":11},{"$f":"[1]ACS_16_5YR_B17017_with_ann!AF269","v":0},{"$f":"[1]ACS_16_5YR_B17017_with_ann!AG269","v":11},{"$f":"[1]ACS_16_5YR_B17017_with_ann!AH269","v":0},{"$f":"[1]ACS_16_5YR_B17017_with_ann!AI269","v":11},{"$f":"[1]ACS_16_5YR_B17017_with_ann!AJ269","v":0},{"$f":"[1]ACS_16_5YR_B17017_with_ann!AK269","v":11},{"$f":"[1]ACS_16_5YR_B17017_with_ann!AL269","v":0},{"$f":"[1]ACS_16_5YR_B17017_with_ann!AM269","v":11},{"$f":"[1]ACS_16_5YR_B17017_with_ann!AN269","v":0},{"$f":"[1]ACS_16_5YR_B17017_with_ann!AO269","v":11},{"$f":"[1]ACS_16_5YR_B17017_with_ann!AP269","v":25},{"$f":"[1]ACS_16_5YR_B17017_with_ann!AQ269","v":21},{"$f":"[1]ACS_16_5YR_B17017_with_ann!AR269","v":25},{"$f":"[1]ACS_16_5YR_B17017_with_ann!AS269","v":21},{"$f":"[1]ACS_16_5YR_B17017_with_ann!AT269","v":0},{"$f":"[1]ACS_16_5YR_B17017_with_ann!AU269","v":11},{"$f":"[1]ACS_16_5YR_B17017_with_ann!AV269","v":8},{"$f":"[1]ACS_16_5YR_B17017_with_ann!AW269","v":13},{"$f":"[1]ACS_16_5YR_B17017_with_ann!AX269","v":0},{"$f":"[1]ACS_16_5YR_B17017_with_ann!AY269","v":11},{"$f":"[1]ACS_16_5YR_B17017_with_ann!AZ269","v":17},{"$f":"[1]ACS_16_5YR_B17017_with_ann!BA269","v":16},{"$f":"[1]ACS_16_5YR_B17017_with_ann!BB269","v":0},{"$f":"[1]ACS_16_5YR_B17017_with_ann!BC269","v":11},{"$f":"[1]ACS_16_5YR_B17017_with_ann!BD269","v":0},{"$f":"[1]ACS_16_5YR_B17017_with_ann!BE269","v":11},{"$f":"[1]ACS_16_5YR_B17017_with_ann!BF270","v":0},{"$f":"[1]ACS_16_5YR_B17017_with_ann!BG270","v":11},{"$f":"[1]ACS_16_5YR_B17017_with_ann!BH270","v":0},{"$f":"[1]ACS_16_5YR_B17017_with_ann!BI270","v":11},{"$f":"[1]ACS_16_5YR_B17017_with_ann!BJ270","v":37},{"$f":"[1]ACS_16_5YR_B17017_with_ann!BK270","v":53},{"$f":"[1]ACS_16_5YR_B17017_with_ann!BL270","v":1252},{"$f":"[1]ACS_16_5YR_B17017_with_ann!BM270","v":149},{"$f":"[1]ACS_16_5YR_B17017_with_ann!BN270","v":834},{"$f":"[1]ACS_16_5YR_B17017_with_ann!BO270","v":107},{"$f":"[1]ACS_16_5YR_B17017_with_ann!BP270","v":711},{"$f":"[1]ACS_16_5YR_B17017_with_ann!BQ270","v":114},{"$f":"[1]ACS_16_5YR_B17017_with_ann!BR270","v":8},{"$f":"[1]ACS_16_5YR_B17017_with_ann!BS270","v":12},{"$f":"[1]ACS_16_5YR_B17017_with_ann!BT270","v":215},{"$f":"[1]ACS_16_5YR_B17017_with_ann!BU270","v":70},{"$f":"[1]ACS_16_5YR_B17017_with_ann!BV270","v":289},{"$f":"[1]ACS_16_5YR_B17017_with_ann!BW270","v":81},{"$f":"[1]ACS_16_5YR_B17017_with_ann!BX270","v":199},{"$f":"[1]ACS_16_5YR_B17017_with_ann!BY270","v":62},{"$f":"[1]ACS_16_5YR_B17017_with_ann!BZ270","v":123},{"$f":"[1]ACS_16_5YR_B17017_with_ann!CA270","v":56},{"$f":"[1]ACS_16_5YR_B17017_with_ann!CB270","v":47},{"$f":"[1]ACS_16_5YR_B17017_with_ann!CC270","v":37},{"$f":"[1]ACS_16_5YR_B17017_with_ann!CD270","v":0},{"$f":"[1]ACS_16_5YR_B17017_with_ann!CE270","v":11},{"$f":"[1]ACS_16_5YR_B17017_with_ann!CF270","v":18},{"$f":"[1]ACS_16_5YR_B17017_with_ann!CG270","v":27},{"$f":"[1]ACS_16_5YR_B17017_with_ann!CH270","v":22},{"$f":"[1]ACS_16_5YR_B17017_with_ann!CI270","v":24},{"$f":"[1]ACS_16_5YR_B17017_with_ann!CJ270","v":7},{"$f":"[1]ACS_16_5YR_B17017_with_ann!CK270","v":12},{"$f":"[1]ACS_16_5YR_B17017_with_ann!CL270","v":76},{"$f":"[1]ACS_16_5YR_B17017_with_ann!CM270","v":42},{"$f":"[1]ACS_16_5YR_B17017_with_ann!CN270","v":0},{"$f":"[1]ACS_16_5YR_B17017_with_ann!CO270","v":11},{"$f":"[1]ACS_16_5YR_B17017_with_ann!CP270","v":38},{"$f":"[1]ACS_16_5YR_B17017_with_ann!CQ270","v":32},{"$f":"[1]ACS_16_5YR_B17017_with_ann!CR270","v":10},{"$f":"[1]ACS_16_5YR_B17017_with_ann!CS270","v":15},{"$f":"[1]ACS_16_5YR_B17017_with_ann!CT270","v":28},{"$f":"[1]ACS_16_5YR_B17017_with_ann!CU270","v":22},{"$f":"[1]ACS_16_5YR_B17017_with_ann!CV270","v":418},{"$f":"[1]ACS_16_5YR_B17017_with_ann!CW270","v":126},{"$f":"[1]ACS_16_5YR_B17017_with_ann!CX271","v":59},{"$f":"[1]ACS_16_5YR_B17017_with_ann!CY271","v":22},{"$f":"[1]ACS_16_5YR_B17017_with_ann!CZ271","v":0},{"$f":"[1]ACS_16_5YR_B17017_with_ann!DA271","v":11},{"$f":"[1]ACS_16_5YR_B17017_with_ann!DB271","v":2},{"$f":"[1]ACS_16_5YR_B17017_with_ann!DC271","v":4},{"$f":"[1]ACS_16_5YR_B17017_with_ann!DD271","v":32},{"$f":"[1]ACS_16_5YR_B17017_with_ann!DE271","v":14},{"$f":"[1]ACS_16_5YR_B17017_with_ann!DF271","v":25},{"$f":"[1]ACS_16_5YR_B17017_with_ann!DG271","v":17},{"$f":"[1]ACS_16_5YR_B17017_with_ann!DH271","v":78},{"$f":"[1]ACS_16_5YR_B17017_with_ann!DI271","v":33},{"$f":"[1]ACS_16_5YR_B17017_with_ann!DJ271","v":0},{"$f":"[1]ACS_16_5YR_B17017_with_ann!DK271","v":11},{"$f":"[1]ACS_16_5YR_B17017_with_ann!DL271","v":18},{"$f":"[1]ACS_16_5YR_B17017_with_ann!DM271","v":16},{"$f":"[1]ACS_16_5YR_B17017_with_ann!DN271","v":40},{"$f":"[1]ACS_16_5YR_B17017_with_ann!DO271","v":26},{"$f":"[1]ACS_16_5YR_B17017_with_ann!DP271","v":20},{"$f":"[1]ACS_16_5YR_B17017_with_ann!DQ271","v":10}]
["0600000US3301975060",3301975060,"060","Sunapee",{"$f":"[1]ACS_16_5YR_B17017_with_ann!D270","v":1393},{"$f":"[1]ACS_16_5YR_B17017_with_ann!E270","v":139},{"$f":"[1]ACS_16_5YR_B17017_with_ann!F270","v":141},{"$f":"[1]ACS_16_5YR_B17017_with_ann!G270","v":94},{"$f":"[1]ACS_16_5YR_B17017_with_ann!H270","v":67},{"$f":"[1]ACS_16_5YR_B17017_with_ann!I270","v":55},{"$f":"[1]ACS_16_5YR_B17017_with_ann!J270","v":42},{"$f":"[1]ACS_16_5YR_B17017_with_ann!K270","v":50},{"$f":"[1]ACS_16_5YR_B17017_with_ann!L270","v":0},{"$f":"[1]ACS_16_5YR_B17017_with_ann!M270","v":11},{"$f":"[1]ACS_16_5YR_B17017_with_ann!N270","v":0},{"$f":"[1]ACS_16_5YR_B17017_with_ann!O270","v":11},{"$f":"[1]ACS_16_5YR_B17017_with_ann!P270","v":42},{"$f":"[1]ACS_16_5YR_B17017_with_ann!Q270","v":50},{"$f":"[1]ACS_16_5YR_B17017_with_ann!R270","v":0},{"$f":"[1]ACS_16_5YR_B17017_with_ann!S270","v":11},{"$f":"[1]ACS_16_5YR_B17017_with_ann!T270","v":25},{"$f":"[1]ACS_16_5YR_B17017_with_ann!U270","v":20},{"$f":"[1]ACS_16_5YR_B17017_with_ann!V270","v":6},{"$f":"[1]ACS_16_5YR_B17017_with_ann!W270","v":10},{"$f":"[1]ACS_16_5YR_B17017_with_ann!X270","v":6},{"$f":"[1]ACS_16_5YR_B17017_with_ann!Y270","v":10},{"$f":"[1]ACS_16_5YR_B17017_with_ann!Z270","v":0},{"$f":"[1]ACS_16_5YR_B17017_with_ann!AA270","v":11},{"$f":"[1]ACS_16_5YR_B17017_with_ann!AB270","v":0},{"$f":"[1]ACS_16_5YR_B17017_with_ann!AC270","v":11},{"$f":"[1]ACS_16_5YR_B17017_with_ann!AD270","v":0},{"$f":"[1]ACS_16_5YR_B17017_with_ann!AE270","v":11},{"$f":"[1]ACS_16_5YR_B17017_with_ann!AF270","v":19},{"$f":"[1]ACS_16_5YR_B17017_with_ann!AG270","v":16},{"$f":"[1]ACS_16_5YR_B17017_with_ann!AH270","v":0},{"$f":"[1]ACS_16_5YR_B17017_with_ann!AI270","v":11},{"$f":"[1]ACS_16_5YR_B17017_with_ann!AJ270","v":19},{"$f":"[1]ACS_16_5YR_B17017_with_ann!AK270","v":16},{"$f":"[1]ACS_16_5YR_B17017_with_ann!AL270","v":0},{"$f":"[1]ACS_16_5YR_B17017_with_ann!AM270","v":11},{"$f":"[1]ACS_16_5YR_B17017_with_ann!AN270","v":0},{"$f":"[1]ACS_16_5YR_B17017_with_ann!AO270","v":11},{"$f":"[1]ACS_16_5YR_B17017_with_ann!AP270","v":74},{"$f":"[1]ACS_16_5YR_B17017_with_ann!AQ270","v":78},{"$f":"[1]ACS_16_5YR_B17017_with_ann!AR270","v":37},{"$f":"[1]ACS_16_5YR_B17017_with_ann!AS270","v":58},{"$f":"[1]ACS_16_5YR_B17017_with_ann!AT270","v":0},{"$f":"[1]ACS_16_5YR_B17017_with_ann!AU270","v":11},{"$f":"[1]ACS_16_5YR_B17017_with_ann!AV270","v":0},{"$f":"[1]ACS_16_5YR_B17017_with_ann!AW270","v":11},{"$f":"[1]ACS_16_5YR_B17017_with_ann!AX270","v":37},{"$f":"[1]ACS_16_5YR_B17017_with_ann!AY270","v":58},{"$f":"[1]ACS_16_5YR_B17017_with_ann!AZ270","v":0},{"$f":"[1]ACS_16_5YR_B17017_with_ann!BA270","v":11},{"$f":"[1]ACS_16_5YR_B17017_with_ann!BB270","v":37},{"$f":"[1]ACS_16_5YR_B17017_with_ann!BC270","v":53},{"$f":"[1]ACS_16_5YR_B17017_with_ann!BD270","v":0},{"$f":"[1]ACS_16_5YR_B17017_with_ann!BE270","v":11},{"$f":"[1]ACS_16_5YR_B17017_with_ann!BF271","v":13},{"$f":"[1]ACS_16_5YR_B17017_with_ann!BG271","v":18},{"$f":"[1]ACS_16_5YR_B17017_with_ann!BH271","v":0},{"$f":"[1]ACS_16_5YR_B17017_with_ann!BI271","v":11},{"$f":"[1]ACS_16_5YR_B17017_with_ann!BJ271","v":3},{"$f":"[1]ACS_16_5YR_B17017_with_ann!BK271","v":4},{"$f":"[1]ACS_16_5YR_B17017_with_ann!BL271","v":521},{"$f":"[1]ACS_16_5YR_B17017_with_ann!BM271","v":59},{"$f":"[1]ACS_16_5YR_B17017_with_ann!BN271","v":384},{"$f":"[1]ACS_16_5YR_B17017_with_ann!BO271","v":50},{"$f":"[1]ACS_16_5YR_B17017_with_ann!BP271","v":340},{"$f":"[1]ACS_16_5YR_B17017_with_ann!BQ271","v":45},{"$f":"[1]ACS_16_5YR_B17017_with_ann!BR271","v":0},{"$f":"[1]ACS_16_5YR_B17017_with_ann!BS271","v":11},{"$f":"[1]ACS_16_5YR_B17017_with_ann!BT271","v":40},{"$f":"[1]ACS_16_5YR_B17017_with_ann!BU271","v":20},{"$f":"[1]ACS_16_5YR_B17017_with_ann!BV271","v":171},{"$f":"[1]ACS_16_5YR_B17017_with_ann!BW271","v":36},{"$f":"[1]ACS_16_5YR_B17017_with_ann!BX271","v":129},{"$f":"[1]ACS_16_5YR_B17017_with_ann!BY271","v":30},{"$f":"[1]ACS_16_5YR_B17017_with_ann!BZ271","v":44},{"$f":"[1]ACS_16_5YR_B17017_with_ann!CA271","v":22},{"$f":"[1]ACS_16_5YR_B17017_with_ann!CB271","v":18},{"$f":"[1]ACS_16_5YR_B17017_with_ann!CC271","v":11},{"$f":"[1]ACS_16_5YR_B17017_with_ann!CD271","v":0},{"$f":"[1]ACS_16_5YR_B17017_with_ann!CE271","v":11},{"$f":"[1]ACS_16_5YR_B17017_with_ann!CF271","v":6},{"$f":"[1]ACS_16_5YR_B17017_with_ann!CG271","v":5},{"$f":"[1]ACS_16_5YR_B17017_with_ann!CH271","v":9},{"$f":"[1]ACS_16_5YR_B17017_with_ann!CI271","v":8},{"$f":"[1]ACS_16_5YR_B17017_with_ann!CJ271","v":3},{"$f":"[1]ACS_16_5YR_B17017_with_ann!CK271","v":4},{"$f":"[1]ACS_16_5YR_B17017_with_ann!CL271","v":26},{"$f":"[1]ACS_16_5YR_B17017_with_ann!CM271","v":19},{"$f":"[1]ACS_16_5YR_B17017_with_ann!CN271","v":0},{"$f":"[1]ACS_16_5YR_B17017_with_ann!CO271","v":11},{"$f":"[1]ACS_16_5YR_B17017_with_ann!CP271","v":17},{"$f":"[1]ACS_16_5YR_B17017_with_ann!CQ271","v":17},{"$f":"[1]ACS_16_5YR_B17017_with_ann!CR271","v":3},{"$f":"[1]ACS_16_5YR_B17017_with_ann!CS271","v":5},{"$f":"[1]ACS_16_5YR_B17017_with_ann!CT271","v":6},{"$f":"[1]ACS_16_5YR_B17017_with_ann!CU271","v":6},{"$f":"[1]ACS_16_5YR_B17017_with_ann!CV271","v":137},{"$f":"[1]ACS_16_5YR_B17017_with_ann!CW271","v":34},{"$f":"[1]ACS_16_5YR_B17017_with_ann!CX272","v":64},{"$f":"[1]ACS_16_5YR_B17017_with_ann!CY272","v":32},{"$f":"[1]ACS_16_5YR_B17017_with_ann!CZ272","v":0},{"$f":"[1]ACS_16_5YR_B17017_with_ann!DA272","v":11},{"$f":"[1]ACS_16_5YR_B17017_with_ann!DB272","v":10},{"$f":"[1]ACS_16_5YR_B17017_with_ann!DC272","v":16},{"$f":"[1]ACS_16_5YR_B17017_with_ann!DD272","v":25},{"$f":"[1]ACS_16_5YR_B17017_with_ann!DE272","v":24},{"$f":"[1]ACS_16_5YR_B17017_with_ann!DF272","v":29},{"$f":"[1]ACS_16_5YR_B17017_with_ann!DG272","v":14},{"$f":"[1]ACS_16_5YR_B17017_with_ann!DH272","v":31},{"$f":"[1]ACS_16_5YR_B17017_with_ann!DI272","v":20},{"$f":"[1]ACS_16_5YR_B17017_with_ann!DJ272","v":0},{"$f":"[1]ACS_16_5YR_B17017_with_ann!DK272","v":11},{"$f":"[1]ACS_16_5YR_B17017_with_ann!DL272","v":0},{"$f":"[1]ACS_16_5YR_B17017_with_ann!DM272","v":11},{"$f":"[1]ACS_16_5YR_B17017_with_ann!DN272","v":15},{"$f":"[1]ACS_16_5YR_B17017_with_ann!DO272","v":17},{"$f":"[1]ACS_16_5YR_B17017_with_ann!DP272","v":16},{"$f":"[1]ACS_16_5YR_B17017_with_ann!DQ272","v":10}]
["0600000US3301977940",3301977940,"060","Unity",{"$f":"[1]ACS_16_5YR_B17017_with_ann!D271","v":571},{"$f":"[1]ACS_16_5YR_B17017_with_ann!E271","v":56},{"$f":"[1]ACS_16_5YR_B17017_with_ann!F271","v":50},{"$f":"[1]ACS_16_5YR_B17017_with_ann!G271","v":31},{"$f":"[1]ACS_16_5YR_B17017_with_ann!H271","v":22},{"$f":"[1]ACS_16_5YR_B17017_with_ann!I271","v":20},{"$f":"[1]ACS_16_5YR_B17017_with_ann!J271","v":19},{"$f":"[1]ACS_16_5YR_B17017_with_ann!K271","v":19},{"$f":"[1]ACS_16_5YR_B17017_with_ann!L271","v":0},{"$f":"[1]ACS_16_5YR_B17017_with_ann!M271","v":11},{"$f":"[1]ACS_16_5YR_B17017_with_ann!N271","v":3},{"$f":"[1]ACS_16_5YR_B17017_with_ann!O271","v":5},{"$f":"[1]ACS_16_5YR_B17017_with_ann!P271","v":16},{"$f":"[1]ACS_16_5YR_B17017_with_ann!Q271","v":18},{"$f":"[1]ACS_16_5YR_B17017_with_ann!R271","v":0},{"$f":"[1]ACS_16_5YR_B17017_with_ann!S271","v":11},{"$f":"[1]ACS_16_5YR_B17017_with_ann!T271","v":3},{"$f":"[1]ACS_16_5YR_B17017_with_ann!U271","v":4},{"$f":"[1]ACS_16_5YR_B17017_with_ann!V271","v":3},{"$f":"[1]ACS_16_5YR_B17017_with_ann!W271","v":4},{"$f":"[1]ACS_16_5YR_B17017_with_ann!X271","v":0},{"$f":"[1]ACS_16_5YR_B17017_with_ann!Y271","v":11},{"$f":"[1]ACS_16_5YR_B17017_with_ann!Z271","v":3},{"$f":"[1]ACS_16_5YR_B17017_with_ann!AA271","v":4},{"$f":"[1]ACS_16_5YR_B17017_with_ann!AB271","v":0},{"$f":"[1]ACS_16_5YR_B17017_with_ann!AC271","v":11},{"$f":"[1]ACS_16_5YR_B17017_with_ann!AD271","v":0},{"$f":"[1]ACS_16_5YR_B17017_with_ann!AE271","v":11},{"$f":"[1]ACS_16_5YR_B17017_with_ann!AF271","v":0},{"$f":"[1]ACS_16_5YR_B17017_with_ann!AG271","v":11},{"$f":"[1]ACS_16_5YR_B17017_with_ann!AH271","v":0},{"$f":"[1]ACS_16_5YR_B17017_with_ann!AI271","v":11},{"$f":"[1]ACS_16_5YR_B17017_with_ann!AJ271","v":0},{"$f":"[1]ACS_16_5YR_B17017_with_ann!AK271","v":11},{"$f":"[1]ACS_16_5YR_B17017_with_ann!AL271","v":0},{"$f":"[1]ACS_16_5YR_B17017_with_ann!AM271","v":11},{"$f":"[1]ACS_16_5YR_B17017_with_ann!AN271","v":0},{"$f":"[1]ACS_16_5YR_B17017_with_ann!AO271","v":11},{"$f":"[1]ACS_16_5YR_B17017_with_ann!AP271","v":28},{"$f":"[1]ACS_16_5YR_B17017_with_ann!AQ271","v":24},{"$f":"[1]ACS_16_5YR_B17017_with_ann!AR271","v":12},{"$f":"[1]ACS_16_5YR_B17017_with_ann!AS271","v":14},{"$f":"[1]ACS_16_5YR_B17017_with_ann!AT271","v":0},{"$f":"[1]ACS_16_5YR_B17017_with_ann!AU271","v":11},{"$f":"[1]ACS_16_5YR_B17017_with_ann!AV271","v":0},{"$f":"[1]ACS_16_5YR_B17017_with_ann!AW271","v":11},{"$f":"[1]ACS_16_5YR_B17017_with_ann!AX271","v":9},{"$f":"[1]ACS_16_5YR_B17017_with_ann!AY271","v":13},{"$f":"[1]ACS_16_5YR_B17017_with_ann!AZ271","v":3},{"$f":"[1]ACS_16_5YR_B17017_with_ann!BA271","v":5},{"$f":"[1]ACS_16_5YR_B17017_with_ann!BB271","v":16},{"$f":"[1]ACS_16_5YR_B17017_with_ann!BC271","v":18},{"$f":"[1]ACS_16_5YR_B17017_with_ann!BD271","v":0},{"$f":"[1]ACS_16_5YR_B17017_with_ann!BE271","v":11},{"$f":"[1]ACS_16_5YR_B17017_with_ann!BF272","v":0},{"$f":"[1]ACS_16_5YR_B17017_with_ann!BG272","v":11},{"$f":"[1]ACS_16_5YR_B17017_with_ann!BH272","v":0},{"$f":"[1]ACS_16_5YR_B17017_with_ann!BI272","v":11},{"$f":"[1]ACS_16_5YR_B17017_with_ann!BJ272","v":3},{"$f":"[1]ACS_16_5YR_B17017_with_ann!BK272","v":4},{"$f":"[1]ACS_16_5YR_B17017_with_ann!BL272","v":508},{"$f":"[1]ACS_16_5YR_B17017_with_ann!BM272","v":84},{"$f":"[1]ACS_16_5YR_B17017_with_ann!BN272","v":413},{"$f":"[1]ACS_16_5YR_B17017_with_ann!BO272","v":78},{"$f":"[1]ACS_16_5YR_B17017_with_ann!BP272","v":381},{"$f":"[1]ACS_16_5YR_B17017_with_ann!BQ272","v":79},{"$f":"[1]ACS_16_5YR_B17017_with_ann!BR272","v":3},{"$f":"[1]ACS_16_5YR_B17017_with_ann!BS272","v":5},{"$f":"[1]ACS_16_5YR_B17017_with_ann!BT272","v":79},{"$f":"[1]ACS_16_5YR_B17017_with_ann!BU272","v":62},{"$f":"[1]ACS_16_5YR_B17017_with_ann!BV272","v":187},{"$f":"[1]ACS_16_5YR_B17017_with_ann!BW272","v":47},{"$f":"[1]ACS_16_5YR_B17017_with_ann!BX272","v":112},{"$f":"[1]ACS_16_5YR_B17017_with_ann!BY272","v":28},{"$f":"[1]ACS_16_5YR_B17017_with_ann!BZ272","v":32},{"$f":"[1]ACS_16_5YR_B17017_with_ann!CA272","v":22},{"$f":"[1]ACS_16_5YR_B17017_with_ann!CB272","v":9},{"$f":"[1]ACS_16_5YR_B17017_with_ann!CC272","v":13},{"$f":"[1]ACS_16_5YR_B17017_with_ann!CD272","v":0},{"$f":"[1]ACS_16_5YR_B17017_with_ann!CE272","v":11},{"$f":"[1]ACS_16_5YR_B17017_with_ann!CF272","v":3},{"$f":"[1]ACS_16_5YR_B17017_with_ann!CG272","v":4},{"$f":"[1]ACS_16_5YR_B17017_with_ann!CH272","v":6},{"$f":"[1]ACS_16_5YR_B17017_with_ann!CI272","v":14},{"$f":"[1]ACS_16_5YR_B17017_with_ann!CJ272","v":0},{"$f":"[1]ACS_16_5YR_B17017_with_ann!CK272","v":11},{"$f":"[1]ACS_16_5YR_B17017_with_ann!CL272","v":23},{"$f":"[1]ACS_16_5YR_B17017_with_ann!CM272","v":17},{"$f":"[1]ACS_16_5YR_B17017_with_ann!CN272","v":0},{"$f":"[1]ACS_16_5YR_B17017_with_ann!CO272","v":11},{"$f":"[1]ACS_16_5YR_B17017_with_ann!CP272","v":4},{"$f":"[1]ACS_16_5YR_B17017_with_ann!CQ272","v":6},{"$f":"[1]ACS_16_5YR_B17017_with_ann!CR272","v":15},{"$f":"[1]ACS_16_5YR_B17017_with_ann!CS272","v":16},{"$f":"[1]ACS_16_5YR_B17017_with_ann!CT272","v":4},{"$f":"[1]ACS_16_5YR_B17017_with_ann!CU272","v":4},{"$f":"[1]ACS_16_5YR_B17017_with_ann!CV272","v":95},{"$f":"[1]ACS_16_5YR_B17017_with_ann!CW272","v":37},{"$f":"[1]ACS_16_5YR_B17017_with_ann!CX273","v":0},{"$f":"[1]ACS_16_5YR_B17017_with_ann!CY273","v":0},{"$f":"[1]ACS_16_5YR_B17017_with_ann!CZ273","v":0},{"$f":"[1]ACS_16_5YR_B17017_with_ann!DA273","v":0},{"$f":"[1]ACS_16_5YR_B17017_with_ann!DB273","v":0},{"$f":"[1]ACS_16_5YR_B17017_with_ann!DC273","v":0},{"$f":"[1]ACS_16_5YR_B17017_with_ann!DD273","v":0},{"$f":"[1]ACS_16_5YR_B17017_with_ann!DE273","v":0},{"$f":"[1]ACS_16_5YR_B17017_with_ann!DF273","v":0},{"$f":"[1]ACS_16_5YR_B17017_with_ann!DG273","v":0},{"$f":"[1]ACS_16_5YR_B17017_with_ann!DH273","v":0},{"$f":"[1]ACS_16_5YR_B17017_with_ann!DI273","v":0},{"$f":"[1]ACS_16_5YR_B17017_with_ann!DJ273","v":0},{"$f":"[1]ACS_16_5YR_B17017_with_ann!DK273","v":0},{"$f":"[1]ACS_16_5YR_B17017_with_ann!DL273","v":0},{"$f":"[1]ACS_16_5YR_B17017_with_ann!DM273","v":0},{"$f":"[1]ACS_16_5YR_B17017_with_ann!DN273","v":0},{"$f":"[1]ACS_16_5YR_B17017_with_ann!DO273","v":0},{"$f":"[1]ACS_16_5YR_B17017_with_ann!DP273","v":0},{"$f":"[1]ACS_16_5YR_B17017_with_ann!DQ273","v":0}]
["0600000US3301978980",3301978980,"060","Washington",{"$f":"[1]ACS_16_5YR_B17017_with_ann!D272","v":537},{"$f":"[1]ACS_16_5YR_B17017_with_ann!E272","v":81},{"$f":"[1]ACS_16_5YR_B17017_with_ann!F272","v":29},{"$f":"[1]ACS_16_5YR_B17017_with_ann!G272","v":23},{"$f":"[1]ACS_16_5YR_B17017_with_ann!H272","v":6},{"$f":"[1]ACS_16_5YR_B17017_with_ann!I272","v":6},{"$f":"[1]ACS_16_5YR_B17017_with_ann!J272","v":6},{"$f":"[1]ACS_16_5YR_B17017_with_ann!K272","v":6},{"$f":"[1]ACS_16_5YR_B17017_with_ann!L272","v":0},{"$f":"[1]ACS_16_5YR_B17017_with_ann!M272","v":11},{"$f":"[1]ACS_16_5YR_B17017_with_ann!N272","v":0},{"$f":"[1]ACS_16_5YR_B17017_with_ann!O272","v":11},{"$f":"[1]ACS_16_5YR_B17017_with_ann!P272","v":0},{"$f":"[1]ACS_16_5YR_B17017_with_ann!Q272","v":11},{"$f":"[1]ACS_16_5YR_B17017_with_ann!R272","v":6},{"$f":"[1]ACS_16_5YR_B17017_with_ann!S272","v":6},{"$f":"[1]ACS_16_5YR_B17017_with_ann!T272","v":0},{"$f":"[1]ACS_16_5YR_B17017_with_ann!U272","v":11},{"$f":"[1]ACS_16_5YR_B17017_with_ann!V272","v":0},{"$f":"[1]ACS_16_5YR_B17017_with_ann!W272","v":11},{"$f":"[1]ACS_16_5YR_B17017_with_ann!X272","v":0},{"$f":"[1]ACS_16_5YR_B17017_with_ann!Y272","v":11},{"$f":"[1]ACS_16_5YR_B17017_with_ann!Z272","v":0},{"$f":"[1]ACS_16_5YR_B17017_with_ann!AA272","v":11},{"$f":"[1]ACS_16_5YR_B17017_with_ann!AB272","v":0},{"$f":"[1]ACS_16_5YR_B17017_with_ann!AC272","v":11},{"$f":"[1]ACS_16_5YR_B17017_with_ann!AD272","v":0},{"$f":"[1]ACS_16_5YR_B17017_with_ann!AE272","v":11},{"$f":"[1]ACS_16_5YR_B17017_with_ann!AF272","v":0},{"$f":"[1]ACS_16_5YR_B17017_with_ann!AG272","v":11},{"$f":"[1]ACS_16_5YR_B17017_with_ann!AH272","v":0},{"$f":"[1]ACS_16_5YR_B17017_with_ann!AI272","v":11},{"$f":"[1]ACS_16_5YR_B17017_with_ann!AJ272","v":0},{"$f":"[1]ACS_16_5YR_B17017_with_ann!AK272","v":11},{"$f":"[1]ACS_16_5YR_B17017_with_ann!AL272","v":0},{"$f":"[1]ACS_16_5YR_B17017_with_ann!AM272","v":11},{"$f":"[1]ACS_16_5YR_B17017_with_ann!AN272","v":0},{"$f":"[1]ACS_16_5YR_B17017_with_ann!AO272","v":11},{"$f":"[1]ACS_16_5YR_B17017_with_ann!AP272","v":23},{"$f":"[1]ACS_16_5YR_B17017_with_ann!AQ272","v":21},{"$f":"[1]ACS_16_5YR_B17017_with_ann!AR272","v":20},{"$f":"[1]ACS_16_5YR_B17017_with_ann!AS272","v":21},{"$f":"[1]ACS_16_5YR_B17017_with_ann!AT272","v":0},{"$f":"[1]ACS_16_5YR_B17017_with_ann!AU272","v":11},{"$f":"[1]ACS_16_5YR_B17017_with_ann!AV272","v":0},{"$f":"[1]ACS_16_5YR_B17017_with_ann!AW272","v":11},{"$f":"[1]ACS_16_5YR_B17017_with_ann!AX272","v":11},{"$f":"[1]ACS_16_5YR_B17017_with_ann!AY272","v":16},{"$f":"[1]ACS_16_5YR_B17017_with_ann!AZ272","v":9},{"$f":"[1]ACS_16_5YR_B17017_with_ann!BA272","v":15},{"$f":"[1]ACS_16_5YR_B17017_with_ann!BB272","v":3},{"$f":"[1]ACS_16_5YR_B17017_with_ann!BC272","v":4},{"$f":"[1]ACS_16_5YR_B17017_with_ann!BD272","v":0},{"$f":"[1]ACS_16_5YR_B17017_with_ann!BE272","v":11},{"$f":"[1]ACS_16_5YR_B17017_with_ann!BF273","v":0},{"$f":"[1]ACS_16_5YR_B17017_with_ann!BG273","v":0},{"$f":"[1]ACS_16_5YR_B17017_with_ann!BH273","v":0},{"$f":"[1]ACS_16_5YR_B17017_with_ann!BI273","v":0},{"$f":"[1]ACS_16_5YR_B17017_with_ann!BJ273","v":0},{"$f":"[1]ACS_16_5YR_B17017_with_ann!BK273","v":0},{"$f":"[1]ACS_16_5YR_B17017_with_ann!BL273","v":0},{"$f":"[1]ACS_16_5YR_B17017_with_ann!BM273","v":0},{"$f":"[1]ACS_16_5YR_B17017_with_ann!BN273","v":0},{"$f":"[1]ACS_16_5YR_B17017_with_ann!BO273","v":0},{"$f":"[1]ACS_16_5YR_B17017_with_ann!BP273","v":0},{"$f":"[1]ACS_16_5YR_B17017_with_ann!BQ273","v":0},{"$f":"[1]ACS_16_5YR_B17017_with_ann!BR273","v":0},{"$f":"[1]ACS_16_5YR_B17017_with_ann!BS273","v":0},{"$f":"[1]ACS_16_5YR_B17017_with_ann!BT273","v":0},{"$f":"[1]ACS_16_5YR_B17017_with_ann!BU273","v":0},{"$f":"[1]ACS_16_5YR_B17017_with_ann!BV273","v":0},{"$f":"[1]ACS_16_5YR_B17017_with_ann!BW273","v":0},{"$f":"[1]ACS_16_5YR_B17017_with_ann!BX273","v":0},{"$f":"[1]ACS_16_5YR_B17017_with_ann!BY273","v":0},{"$f":"[1]ACS_16_5YR_B17017_with_ann!BZ273","v":0},{"$f":"[1]ACS_16_5YR_B17017_with_ann!CA273","v":0},{"$f":"[1]ACS_16_5YR_B17017_with_ann!CB273","v":0},{"$f":"[1]ACS_16_5YR_B17017_with_ann!CC273","v":0},{"$f":"[1]ACS_16_5YR_B17017_with_ann!CD273","v":0},{"$f":"[1]ACS_16_5YR_B17017_with_ann!CE273","v":0},{"$f":"[1]ACS_16_5YR_B17017_with_ann!CF273","v":0},{"$f":"[1]ACS_16_5YR_B17017_with_ann!CG273","v":0},{"$f":"[1]ACS_16_5YR_B17017_with_ann!CH273","v":0},{"$f":"[1]ACS_16_5YR_B17017_with_ann!CI273","v":0},{"$f":"[1]ACS_16_5YR_B17017_with_ann!CJ273","v":0},{"$f":"[1]ACS_16_5YR_B17017_with_ann!CK273","v":0},{"$f":"[1]ACS_16_5YR_B17017_with_ann!CL273","v":0},{"$f":"[1]ACS_16_5YR_B17017_with_ann!CM273","v":0},{"$f":"[1]ACS_16_5YR_B17017_with_ann!CN273","v":0},{"$f":"[1]ACS_16_5YR_B17017_with_ann!CO273","v":0},{"$f":"[1]ACS_16_5YR_B17017_with_ann!CP273","v":0},{"$f":"[1]ACS_16_5YR_B17017_with_ann!CQ273","v":0},{"$f":"[1]ACS_16_5YR_B17017_with_ann!CR273","v":0},{"$f":"[1]ACS_16_5YR_B17017_with_ann!CS273","v":0},{"$f":"[1]ACS_16_5YR_B17017_with_ann!CT273","v":0},{"$f":"[1]ACS_16_5YR_B17017_with_ann!CU273","v":0},{"$f":"[1]ACS_16_5YR_B17017_with_ann!CV273","v":0},{"$f":"[1]ACS_16_5YR_B17017_with_ann!CW273","v":0},{"$f":"[1]ACS_16_5YR_B17017_with_ann!CX274","v":0},{"$f":"[1]ACS_16_5YR_B17017_with_ann!CY274","v":0},{"$f":"[1]ACS_16_5YR_B17017_with_ann!CZ274","v":0},{"$f":"[1]ACS_16_5YR_B17017_with_ann!DA274","v":0},{"$f":"[1]ACS_16_5YR_B17017_with_ann!DB274","v":0},{"$f":"[1]ACS_16_5YR_B17017_with_ann!DC274","v":0},{"$f":"[1]ACS_16_5YR_B17017_with_ann!DD274","v":0},{"$f":"[1]ACS_16_5YR_B17017_with_ann!DE274","v":0},{"$f":"[1]ACS_16_5YR_B17017_with_ann!DF274","v":0},{"$f":"[1]ACS_16_5YR_B17017_with_ann!DG274","v":0},{"$f":"[1]ACS_16_5YR_B17017_with_ann!DH274","v":0},{"$f":"[1]ACS_16_5YR_B17017_with_ann!DI274","v":0},{"$f":"[1]ACS_16_5YR_B17017_with_ann!DJ274","v":0},{"$f":"[1]ACS_16_5YR_B17017_with_ann!DK274","v":0},{"$f":"[1]ACS_16_5YR_B17017_with_ann!DL274","v":0},{"$f":"[1]ACS_16_5YR_B17017_with_ann!DM274","v":0},{"$f":"[1]ACS_16_5YR_B17017_with_ann!DN274","v":0},{"$f":"[1]ACS_16_5YR_B17017_with_ann!DO274","v":0},{"$f":"[1]ACS_16_5YR_B17017_with_ann!DP274","v":0},{"$f":"[1]ACS_16_5YR_B17017_with_ann!DQ274","v":0}]
[]
[null,null,null,null,{"$f":"$D$3","v":"Acworth"},null,{"$f":"$D$4","v":"Charlestown"},null,{"$f":"$D$5","v":"Claremont"},null,{"$f":"$D$6","v":"Cornish"},null,{"$f":"$D$7","v":"Croydon"},null,{"$f":"$D$8","v":"Goshen"},null,{"$f":"$D$9","v":"Grantham"},null,{"$f":"$D$10","v":"Langdon"},null,{"$f":"$D$11","v":"Lempster"},null,{"$f":"$D$12","v":"Newport"},null,{"$f":"$D$13","v":"Plainfield"},null,{"$f":"$D$14","v":"Springfield"},null,{"$f":"$D$15","v":"Sunapee"},null,{"$f":"$D$16","v":"Unity"},null,{"$f":"$D$17","v":"Washington"}]
[null,null,null,null,"Estimate","Margin Of Error","Estimate","Margin Of Error","Estimate","Margin Of Error","Estimate","Margin Of Error","Estimate","Margin Of Error","Estimate","Margin Of Error","Estimate","Margin Of Error","Estimate","Margin Of Error","Estimate","Margin Of Error","Estimate","Margin Of Error","Estimate","Margin Of Error","Estimate","Margin Of Error","Estimate","Margin Of Error",null,"Estimate","Margin Of Error"]
[null,null,null,"Estimate Total:",370,51,2086,184,5231,284,741,81,293,56,277,39,1222,142,257,47,393,59,2600,168,915,86,442,75,1393,139,571,56,537,81]
[null,null,null,"Estimate Total: Income in the past 12 months below poverty level:",19,16,255,125,691,184,38,25,28,21,39,21,31,43,36,19,34,24,293,132,58,33,34,23,141,94,50,31,29,23]
[null,null,null,"Estimate Total: Income in the past 12 months below poverty level: Family households:",9,12,93,61,342,138,23,24,12,15,16,12,31,43,22,15,12,14,153,102,36,29,9,10,67,55,22,20,6,6]
[null,null,null,"Estimate Total: Income in the past 12 months below poverty level: Family households: Married-couple family:",9,12,42,44,116,70,19,23,5,10,5,6,0,11,11,11,9,14,13,20,25,28,9,10,42,50,19,19,6,6]
[null,null,null,"Estimate Total: Income in the past 12 months below poverty level: Family households: Married-couple family: Householder under 25 years",0,11,0,16,0,18,0,11,0,11,0,11,0,11,0,11,0,11,0,16,0,11,0,11,0,11,0,11,0,11]
[null,null,null,"Estimate Total: Income in the past 12 months below poverty level: Family households: Married-couple family: Householder 25 to 44 years",0,11,16,25,57,48,4,7,0,11,0,11,0,11,6,10,9,14,0,16,0,11,0,11,0,11,3,5,0,11]
[null,null,null,"Estimate Total: Income in the past 12 months below poverty level: Family households: Married-couple family: Householder 45 to 64 years",9,12,26,37,38,40,15,22,5,10,5,6,0,11,3,4,0,11,13,20,4,8,9,10,42,50,16,18,0,11]
[null,null,null,"Estimate Total: Income in the past 12 months below poverty level: Family households: Married-couple family: Householder 65 years and over",0,11,0,16,21,25,0,11,0,11,0,11,0,11,2,3,0,11,0,16,21,27,0,11,0,11,0,11,6,6]
[null,null,null,"Estimate Total: Income in the past 12 months below poverty level: Family households: Other family:",0,11,51,54,226,124,4,6,7,11,11,10,31,43,11,12,3,5,140,100,11,11,0,11,25,20,3,4,0,11]
[null,null,null,"Estimate Total: Income in the past 12 months below poverty level: Family households: Other family: Male householder",0,11,6,9,24,32,0,11,0,11,9,10,0,11,0,11,0,11,12,21,6,9,0,11,6,10,3,4,0,11]
[null,null,null,"Estimate Total: Income in the past 12 months below poverty level: Family households: Other family: Male householder",0,11,6,9,0,18,0,11,0,11,6,9,0,11,0,11,0,11,0,16,0,11,0,11,6,10,0,11,0,11]
[null,null,null,"Estimate Total: Income in the past 12 months below poverty level: Family households: Other family: Male householder",0,11,0,16,24,32,0,11,0,11,3,4,0,11,0,11,0,11,0,16,0,11,0,11,0,11,3,4,0,11]
[null,null,null,"Estimate Total: Income in the past 12 months below poverty level: Family households: Other family: Male householder",0,11,0,16,0,18,0,11,0,11,0,11,0,11,0,11,0,11,12,21,6,9,0,11,0,11,0,11,0,11]
[null,null,null,"Estimate Total: Income in the past 12 months below poverty level: Family households: Other family: Male householder",0,11,0,16,0,18,0,11,0,11,0,11,0,11,0,11,0,11,0,16,0,11,0,11,0,11,0,11,0,11]
[null,null,null,"Estimate Total: Income in the past 12 months below poverty level: Family households: Other family: Female householder",0,11,45,53,202,122,4,6,7,11,2,3,31,43,11,12,3,5,128,98,5,7,0,11,19,16,0,11,0,11]
[null,null,null,"Estimate Total: Income in the past 12 months below poverty level: Family households: Other family: Female householder",0,11,0,16,21,34,0,11,0,11,0,11,0,11,0,11,0,11,0,16,0,11,0,11,0,11,0,11,0,11]
[null,null,null,"Estimate Total: Income in the past 12 months below poverty level: Family households: Other family: Female householder",0,11,29,47,133,92,0,11,7,11,2,3,0,11,9,11,3,5,36,53,0,11,0,11,19,16,0,11,0,11]
[null,null,null,"Estimate Total: Income in the past 12 months below poverty level: Family households: Other family: Female householder",0,11,0,16,44,70,4,6,0,11,0,11,31,43,2,3,0,11,92,83,0,11,0,11,0,11,0,11,0,11]
[null,null,null,"Estimate Total: Income in the past 12 months below poverty level: Family households: Other family: Female householder",0,11,16,26,4,9,0,11,0,11,0,11,0,11,0,11,0,11,0,16,5,7,0,11,0,11,0,11,0,11]
[null,null,null,"Estimate Total: Income in the past 12 months below poverty level: Nonfamily households:",10,10,162,113,349,127,15,12,16,14,23,17,0,11,14,15,22,18,140,97,22,20,25,21,74,78,28,24,23,21]
[null,null,null,"Estimate Total: Income in the past 12 months below poverty level: Nonfamily households: Male householder:",10,10,109,94,141,77,9,11,4,5,8,10,0,11,0,11,20,17,14,24,6,9,25,21,37,58,12,14,20,21]
[null,null,null,"Estimate Total: Income in the past 12 months below poverty level: Nonfamily households: Male householder: Householder under 25 years",0,11,0,16,14,16,0,11,2,4,0,11,0,11,0,11,0,11,0,16,0,11,0,11,0,11,0,11,0,11]
[null,null,null,"Estimate Total: Income in the past 12 months below poverty level: Nonfamily households: Male householder: Householder 25 to 44 years",6,10,55,65,9,13,3,5,0,11,6,9,0,11,0,11,3,5,0,16,0,11,8,13,0,11,0,11,0,11]
[null,null,null,"Estimate Total: Income in the past 12 months below poverty level: Nonfamily households: Male householder: Householder 45 to 64 years",2,3,54,85,118,72,0,11,0,11,0,11,0,11,0,11,17,17,14,24,6,9,0,11,37,58,9,13,11,16]
[null,null,null,"Estimate Total: Income in the past 12 months below poverty level: Nonfamily households: Male householder: Householder 65 years and over",2,3,0,16,0,18,6,9,2,3,2,3,0,11,0,11,0,11,0,16,0,11,17,16,0,11,3,5,9,15]
[null,null,null,"Estimate Total: Income in the past 12 months below poverty level: Nonfamily households: Female householder:",0,11,53,67,208,97,6,6,12,13,15,14,0,11,14,15,2,4,126,93,16,18,0,11,37,53,16,18,3,4]
[null,null,null,"Estimate Total: Income in the past 12 months below poverty level: Nonfamily households: Female householder: Householder under 25 years",0,11,0,16,0,18,0,11,0,11,0,11,0,11,6,10,0,11,32,31,0,11,0,11,0,11,0,11,0,11]
[null,null,null,"Estimate Total: Income in the past 12 months below poverty level: Nonfamily households: Female householder: Householder 25 to 44 years",0,11,0,16,46,46,0,11,0,11,0,11,0,11,0,11,48,77,0,11,0,11,0,11,13,18,0,11,0,0]
[null,null,null,"Estimate Total: Income in the past 12 months below poverty level: Nonfamily households: Female householder: Householder 45 to 64 years",0,11,39,62,141,93,10,12,6,9,0,11,8,12,2,4,13,22,11,17,0,11,0,11,0,11,0,11,0,0]
[null,null,null,"Estimate Total: Income in the past 12 months below poverty level: Nonfamily households: Female householder: Householder 65 years and over",0,11,14,23,21,28,2,4,9,11,0,11,0,11,0,11,33,53,5,7,0,11,37,53,3,4,3,4,0,0]
[null,null,null,"Estimate Total: Income in the past 12 months at or above poverty level:",351,53,1831,178,4540,294,265,55,238,39,1191,141,221,40,359,57,2307,205,857,91,408,76,1252,149,521,59,508,84,0,0]
[null,null,null,"Estimate Total: Income in the past 12 months at or above poverty level: Family households:",246,45,1286,178,2823,244,175,45,147,33,871,91,168,35,228,48,1419,180,679,84,328,68,834,107,384,50,413,78,0,0]
[null,null,null,"Estimate Total: Income in the past 12 months at or above poverty level: Family households: Married-couple family:",209,41,910,195,2002,234,153,46,107,29,750,119,163,36,185,43,954,147,574,87,295,62,711,114,340,45,381,79,0,0]
[null,null,null,"Estimate Total: Income in the past 12 months at or above poverty level: Family households: Married-couple family: Householder under 25 years",0,11,0,16,68,73,0,11,0,11,0,11,0,11,3,4,0,16,5,7,0,11,8,12,0,11,3,5,0,0]
[null,null,null,"Estimate Total: Income in the past 12 months at or above poverty level: Family households: Married-couple family: Householder 25 to 44 years",25,15,149,98,498,116,31,17,41,24,109,53,39,19,60,31,309,128,148,47,28,16,215,70,40,20,79,62,0,0]
[null,null,null,"Estimate Total: Income in the past 12 months at or above poverty level: Family households: Married-couple family: Householder 45 to 64 years",107,33,487,135,913,133,81,38,36,17,373,114,86,31,72,29,451,141,293,65,145,51,289,81,171,36,187,47,0,0]
[null,null,null,"Estimate Total: Income in the past 12 months at or above poverty level: Family households: Married-couple family: Householder 65 years and over",77,30,274,110,523,124,41,22,30,17,268,78,38,12,50,23,194,89,128,46,122,42,199,62,129,30,112,28,0,0]
[null,null,null,"Estimate Total: Income in the past 12 months at or above poverty level: Family households: Other family:",37,19,376,138,821,172,22,12,40,20,121,69,5,6,43,30,465,160,105,55,33,26,123,56,44,22,32,22,0,0]
[null,null,null,"Estimate Total: Income in the past 12 months at or above poverty level: Family households: Other family: Male householder",23,14,177,107,176,79,12,9,21,16,89,68,0,11,22,23,106,81,17,15,5,8,47,37,18,11,9,13,0,0]
[null,null,null,"Estimate Total: Income in the past 12 months at or above poverty level: Family households: Other family: Male householder",0,11,0,16,0,18,0,11,0,11,23,33,0,11,0,11,11,16,0,11,0,11,0,11,0,11,0,11,0,0]
[null,null,null,"Estimate Total: Income in the past 12 months at or above poverty level: Family households: Other family: Male householder",9,8,110,88,115,77,6,7,19,16,21,31,0,11,5,6,0,16,5,7,0,11,18,27,6,5,3,4,0,0]
[null,null,null,"Estimate Total: Income in the past 12 months at or above poverty level: Family households: Other family: Male householder",9,11,67,67,61,49,4,6,2,3,45,44,0,11,14,22,81,73,6,9,5,8,22,24,9,8,6,14,0,0]
[null,null,null,"Estimate Total: Income in the past 12 months at or above poverty level: Family households: Other family: Male householder",5,5,0,16,0,18,2,3,0,11,0,11,0,11,3,4,14,22,6,8,0,11,7,12,3,4,0,11,0,0]
[null,null,null,"Estimate Total: Income in the past 12 months at or above poverty level: Family households: Other family: Female householder",14,12,199,96,645,172,10,9,19,14,32,31,5,6,21,18,359,128,88,54,28,24,76,42,26,19,23,17,0,0]
[null,null,null,"Estimate Total: Income in the past 12 months at or above poverty level: Family households: Other family: Female householder",0,11,0,16,12,20,0,11,0,11,0,11,0,11,0,11,0,16,0,11,0,11,0,11,0,11,0,11,0,0]
[null,null,null,"Estimate Total: Income in the past 12 months at or above poverty level: Family households: Other family: Female householder",0,11,74,73,328,139,0,11,4,5,0,11,0,11,6,7,160,110,16,14,0,11,38,32,17,17,4,6,0,0]
[null,null,null,"Estimate Total: Income in the past 12 months at or above poverty level: Family households: Other family: Female householder",7,10,66,57,101,57,8,8,5,6,18,25,3,5,15,15,66,46,45,42,18,19,10,15,3,5,15,16,0,0]
[null,null,null,"Estimate Total: Income in the past 12 months at or above poverty level: Family households: Other family: Female householder",7,6,59,42,204,114,2,4,10,11,14,21,2,3,0,11,133,98,27,21,10,16,28,22,6,6,4,4,0,0]
[null,null,null,"Estimate Total: Income in the past 12 months at or above poverty level: Nonfamily households:",105,25,545,182,1717,247,90,34,91,34,320,149,53,22,131,46,888,205,178,52,80,42,418,126,137,34,95,37,0,0]
[null,null,null,"Estimate Total: Income in the past 12 months at or above poverty level: Nonfamily households: Male householder:",251,103,873,178,59,27,52,31,100,69,19,15,84,43,366,129,84,38,45,32,148,92,59,22,64,32,0,0,0,0]
[null,null,null,"Estimate Total: Income in the past 12 months at or above poverty level: Nonfamily households: Male householder: Householder under 25 years",8,15,56,48,6,9,0,11,0,11,0,11,0,11,11,18,0,11,0,11,28,47,0,11,0,11,0,0,0,0]
[null,null,null,"Estimate Total: Income in the past 12 months at or above poverty level: Nonfamily households: Male householder: Householder 25 to 44 years",85,69,256,110,4,6,5,9,52,51,11,12,5,9,127,89,9,9,15,18,60,69,2,4,10,16,0,0,0,0]
[null,null,null,"Estimate Total: Income in the past 12 months at or above poverty level: Nonfamily households: Male householder: Householder 45 to 64 years",43,44,282,129,32,22,34,26,0,11,5,5,59,37,70,54,37,30,12,14,28,27,32,14,25,24,0,0,0,0]
[null,null,null,"Estimate Total: Income in the past 12 months at or above poverty level: Nonfamily households: Male householder: Householder 65 years and over",115,73,279,94,17,11,13,12,48,61,3,4,20,21,158,104,38,28,18,21,32,38,25,17,29,14,0,0,0,0]
[null,null,null,"Estimate Total: Income in the past 12 months at or above poverty level: Nonfamily households: Female householder:",294,139,844,176,31,18,39,14,220,135,34,16,47,20,522,163,94,43,35,27,270,87,78,33,31,20,0,0,0,0]
[null,null,null,"Estimate Total: Income in the past 12 months at or above poverty level: Nonfamily households: Female householder: Householder under 25 years",0,16,56,56,0,11,0,11,17,24,0,11,0,11,11,18,0,11,0,11,8,13,0,11,0,11,0,0,0,0]
[null,null,null,"Estimate Total: Income in the past 12 months at or above poverty level: Nonfamily households: Female householder: Householder 25 to 44 years",8,13,119,67,2,5,4,4,33,47,0,11,0,11,134,84,12,13,0,11,54,43,18,16,0,11,0,0,0,0]
[null,null,null,"Estimate Total: Income in the past 12 months at or above poverty level: Nonfamily households: Female householder: Householder 45 to 64 years",115,94,313,115,13,16,11,10,91,102,23,16,18,14,225,110,41,22,20,19,92,64,40,26,15,17,0,0,0,0]
[null,null,null,"Estimate Total: Income in the past 12 months at or above poverty level: Nonfamily households: Female householder: Householder 65 years and over",171,95,356,105,16,10,24,11,79,60,11,7,29,17,152,76,41,33,15,17,116,66,20,10,16,10,0,0,0,0]

{"sheet":"ACS_Table_B01001","index":33,"n_rows":265,"n_cols":76,"rows_kept":265,"cut":false,"hidden":true,"merged":[[177,2,177,3],[177,4,177,5],[177,6,177,7],[177,8,177,9],[177,10,177,11],[177,12,177,13],[177,14,177,15],[177,16,177,17],[177,18,177,19],[177,20,177,21],[177,22,177,23],[239,2,239,3],[239,4,239,5],[239,6,239,7],[239,8,239,9],[239,10,239,11],[239,12,239,13],[239,14,239,15],[239,16,239,17],[239,18,239,19],[239,20,239,21],[239,22,239,23],[65103,24,65103,25],[65103,26,65103,27],[65103,28,65103,29],[65103,30,65103,31],[65103,32,65103,33],[65103,34,65103,35],[65103,36,65103,37],[65103,38,65103,39],[65103,40,65103,41],[65103,42,65103,43],[65103,44,65103,45],[64857,24,64857,25],[64857,26,64857,27],[64857,28,64857,29],[64857,30,64857,31],[64857,32,64857,33],[64857,34,64857,35],[64857,36,64857,37],[64857,38,64857,39],[64857,40,64857,41],[64857,42,64857,43],[64857,44,64857,45],[64775,24,64775,25],[64775,26,64775,27],[64775,28,64775,29],[64775,30,64775,31],[64775,32,64775,33],[64775,34,64775,35],[64775,36,64775,37],[64775,38,64775,39],[64775,40,64775,41],[64775,42,64775,43],[64775,44,64775,45],[64693,24,64693,25],[64693,26,64693,27],[64693,28,64693,29],[64693,30,64693,31],[64693,32,64693,33],[64693,34,64693,35],[64693,36,64693,37],[64693,38,64693,39],[64693,40,64693,41],[65103,46,65103,47],[65103,48,65103,49],[65103,50,65103,51],[65103,52,65103,53],[65103,54,65103,55],[65103,56,65103,57],[65103,58,65103,59],[65103,60,65103,61],[65103,62,65103,63],[65103,72,65103,73],[65103,74,65103,75],[65103,64,65103,65],[65103,66,65103,67],[65103,68,65103,69],[65103,70,65103,71],[65021,24,65021,25],[65021,26,65021,27],[65021,28,65021,29],[65021,30,65021,31],[65021,32,65021,33],[65021,34,65021,35],[65021,36,65021,37],[65021,38,65021,39],[65021,40,65021,41],[65021,42,65021,43],[65021,44,65021,45],[65021,46,65021,47],[65021,48,65021,49],[65021,50,65021,51],[65021,52,65021,53],[65021,54,65021,55],[65021,56,65021,57],[65021,58,65021,59],[65021,60,65021,61],[65021,62,65021,63],[65021,64,65021,65],[65021,66,65021,67],[65021,68,65021,69],[65021,70,65021,71],[65021,72,65021,73],[65021,74,65021,75],[65083,24,65083,25],[65083,26,65083,27],[65083,28,65083,29],[65083,30,65083,31],[65083,32,65083,33],[65083,34,65083,35],[65083,36,65083,37],[65083,38,65083,39],[65083,40,65083,41],[65083,42,65083,43],[65083,44,65083,45],[65083,46,65083,47],[65083,48,65083,49],[65083,50,65083,51],[65083,52,65083,53],[65083,54,65083,55],[65083,56,65083,57],[65083,58,65083,59],[65083,60,65083,61],[65083,62,65083,63],[65083,64,65083,65],[65083,66,65083,67],[65083,68,65083,69],[65083,70,65083,71],[65083,72,65083,73],[65083,74,65083,75],[64939,24,64939,25],[64939,26,64939,27],[64939,28,64939,29],[64939,30,64939,31],[64939,32,64939,33],[64939,34,64939,35],[64939,36,64939,37],[64939,38,64939,39],[64939,40,64939,41],[64939,42,64939,43],[64939,44,64939,45],[64939,46,64939,47],[64939,48,64939,49],[64939,50,64939,51],[64939,52,64939,53],[64939,54,64939,55],[64939,56,64939,57],[64939,58,64939,59],[64939,60,64939,61],[64939,62,64939,63],[64939,64,64939,65],[64939,66,64939,67],[64939,68,64939,69],[64939,70,64939,71],[64939,72,64939,73],[64939,74,64939,75],[65001,24,65001,25],[65001,26,65001,27],[65001,28,65001,29],[65001,30,65001,31],[65001,32,65001,33],[65001,34,65001,35],[65001,36,65001,37],[65001,38,65001,39],[65001,40,65001,41],[65001,42,65001,43],[65001,44,65001,45],[65001,46,65001,47],[65001,48,65001,49],[65001,50,65001,51],[65001,52,65001,53],[65001,54,65001,55],[65001,56,65001,57],[65001,58,65001,59],[65001,60,65001,61],[65001,62,65001,63],[65001,64,65001,65],[65001,66,65001,67],[65001,68,65001,69],[65001,70,65001,71],[65001,72,65001,73],[65001,74,65001,75],[64857,46,64857,47],[64857,48,64857,49],[64857,50,64857,51],[64857,52,64857,53],[64857,54,64857,55],[64857,56,64857,57],[64857,58,64857,59],[64857,60,64857,61],[64857,62,64857,63],[64857,64,64857,65],[64857,66,64857,67],[64857,68,64857,69],[64857,70,64857,71],[64857,72,64857,73],[64857,74,64857,75],[64919,24,64919,25],[64919,26,64919,27],[64919,28,64919,29],[64919,30,64919,31],[64919,32,64919,33],[64919,34,64919,35],[64919,36,64919,37],[64919,38,64919,39],[64919,40,64919,41],[64919,42,64919,43],[64919,44,64919,45],[64919,46,64919,47],[64919,48,64919,49],[64919,50,64919,51],[64919,52,64919,53],[64919,54,64919,55],[64919,56,64919,57],[64919,58,64919,59],[64919,60,64919,61],[64919,62,64919,63],[64919,64,64919,65],[64919,66,64919,67],[64919,68,64919,69],[64919,70,64919,71],[64919,72,64919,73],[64919,74,64919,75],[64775,46,64775,47],[64775,48,64775,49],[64775,50,64775,51],[64775,52,64775,53],[64775,54,64775,55],[64775,56,64775,57],[64775,58,64775,59],[64775,60,64775,61],[64775,62,64775,63],[64775,64,64775,65],[64775,66,64775,67],[64775,68,64775,69],[64775,70,64775,71],[64775,72,64775,73],[64775,74,64775,75],[64837,24,64837,25],[64837,26,64837,27],[64837,28,64837,29],[64837,30,64837,31],[64837,32,64837,33],[64837,34,64837,35],[64837,36,64837,37],[64837,38,64837,39],[64837,40,64837,41],[64837,42,64837,43],[64837,44,64837,45],[64837,46,64837,47],[64837,48,64837,49],[64837,50,64837,51],[64837,52,64837,53],[64837,54,64837,55],[64837,56,64837,57],[64837,58,64837,59],[64837,60,64837,61],[64837,62,64837,63],[64837,64,64837,65],[64837,66,64837,67],[64837,68,64837,69],[64837,70,64837,71],[64837,72,64837,73],[64837,74,64837,75],[64693,42,64693,43],[64693,44,64693,45],[64693,46,64693,47],[64693,48,64693,49],[64693,50,64693,51],[64693,52,64693,53],[64693,54,64693,55],[64693,56,64693,57],[64693,58,64693,59],[64693,60,64693,61],[64693,62,64693,63],[64693,64,64693,65],[64693,66,64693,67],[64693,68,64693,69],[64693,70,64693,71],[64693,72,64693,73],[64693,74,64693,75],[64755,24,64755,25],[64755,26,64755,27],[64755,28,64755,29],[64755,30,64755,31],[64755,32,64755,33],[64755,34,64755,35],[64755,36,64755,37],[64755,38,64755,39],[64755,40,64755,41],[64755,42,64755,43],[64755,44,64755,45],[64755,46,64755,47],[64755,48,64755,49],[64755,50,64755,51],[64755,52,64755,53],[64755,54,64755,55],[64755,56,64755,57],[64755,58,64755,59],[64755,60,64755,61],[64755,62,64755,63],[64755,64,64755,65],[64755,66,64755,67],[64755,68,64755,69],[64755,70,64755,71],[64755,72,64755,73],[64755,74,64755,75],[64611,24,64611,25],[64611,26,64611,27],[64611,28,64611,29],[64611,30,64611,31],[64611,32,64611,33],[64611,34,64611,35],[64611,36,64611,37],[64611,38,64611,39],[64611,40,64611,41],[64611,42,64611,43],[64611,44,64611,45],[64611,46,64611,47],[64611,48,64611,49],[64611,50,64611,51],[64611,52,64611,53],[64611,54,64611,55],[64611,56,64611,57],[64611,58,64611,59],[64611,60,64611,61],[64611,62,64611,63],[64611,64,64611,65],[64611,66,64611,67],[64611,68,64611,69],[64611,70,64611,71],[64611,72,64611,73],[64611,74,64611,75],[64673,24,64673,25],[64673,26,64673,27],[64673,28,64673,29],[64673,30,64673,31],[64673,32,64673,33],[64673,34,64673,35],[64673,36,64673,37],[64673,38,64673,39],[64673,40,64673,41],[64673,42,64673,43],[64673,44,64673,45],[64673,46,64673,47],[64673,48,64673,49],[64673,50,64673,51],[64673,52,64673,53],[64673,54,64673,55],[64673,56,64673,57],[64673,58,64673,59],[64673,60,64673,61],[64673,62,64673,63],[64673,64,64673,65],[64673,66,64673,67],[64673,68,64673,69],[64673,70,64673,71],[64673,72,64673,73],[64673,74,64673,75],[64529,24,64529,25],[64529,26,64529,27],[64529,28,64529,29],[64529,30,64529,31],[64529,32,64529,33],[64529,34,64529,35],[64529,36,64529,37],[64529,38,64529,39],[64529,40,64529,41],[64529,42,64529,43],[64529,44,64529,45],[64529,46,64529,47],[64529,48,64529,49],[64529,50,64529,51],[64529,52,64529,53],[64529,54,64529,55],[64529,56,64529,57],[64529,58,64529,59],[64529,60,64529,61],[64529,62,64529,63],[64529,64,64529,65],[64529,66,64529,67],[64529,68,64529,69],[64529,70,64529,71],[64529,72,64529,73],[64529,74,64529,75],[64591,24,64591,25],[64591,26,64591,27],[64591,28,64591,29],[64591,30,64591,31],[64591,32,64591,33],[64591,34,64591,35],[64591,36,64591,37],[64591,38,64591,39],[64591,40,64591,41],[64591,42,64591,43],[64591,44,64591,45],[64591,46,64591,47],[64591,48,64591,49],[64591,50,64591,51],[64591,52,64591,53],[64591,54,64591,55],[64591,56,64591,57],[64591,58,64591,59],[64591,60,64591,61],[64591,62,64591,63],[64591,64,64591,65],[64591,66,64591,67],[64591,68,64591,69],[64591,70,64591,71],[64591,72,64591,73],[64591,74,64591,75],[64447,24,64447,25],[64447,26,64447,27],[64447,28,64447,29],[64447,30,64447,31],[64447,32,64447,33],[64447,34,64447,35],[64447,36,64447,37],[64447,38,64447,39],[64447,40,64447,41],[64447,42,64447,43],[64447,44,64447,45],[64447,46,64447,47],[64447,48,64447,49],[64447,50,64447,51],[64447,52,64447,53],[64447,54,64447,55],[64447,56,64447,57],[64447,58,64447,59],[64447,60,64447,61],[64447,62,64447,63],[64447,64,64447,65],[64447,66,64447,67],[64447,68,64447,69],[64447,70,64447,71],[64447,72,64447,73],[64447,74,64447,75],[64509,24,64509,25],[64509,26,64509,27],[64509,28,64509,29],[64509,30,64509,31],[64509,32,64509,33],[64509,34,64509,35],[64509,36,64509,37],[64509,38,64509,39],[64509,40,64509,41],[64509,42,64509,43],[64509,44,64509,45],[64509,46,64509,47],[64509,48,64509,49],[64509,50,64509,51],[64509,52,64509,53],[64509,54,64509,55],[64509,56,64509,57],[64509,58,64509,59],[64509,60,64509,61],[64509,62,64509,63],[64509,64,64509,65],[64509,66,64509,67],[64509,68,64509,69],[64509,70,64509,71],[64509,72,64509,73],[64509,74,64509,75],[64365,24,64365,25],[64365,26,64365,27],[64365,28,64365,29],[64365,30,64365,31],[64365,32,64365,33],[64365,34,64365,35],[64365,36,64365,37],[64365,38,64365,39],[64365,40,64365,41],[64365,42,64365,43],[64365,44,64365,45],[64365,46,64365,47],[64365,48,64365,49],[64365,50,64365,51],[64365,52,64365,53],[64365,54,64365,55],[64365,56,64365,57],[64365,58,64365,59],[64365,60,64365,61],[64365,62,64365,63],[64365,64,64365,65],[64365,66,64365,67],[64365,68,64365,69],[64365,70,64365,71],[64365,72,64365,73],[64365,74,64365,75],[64427,24,64427,25],[64427,26,64427,27],[64427,28,64427,29],[64427,30,64427,31],[64427,32,64427,33],[64427,34,64427,35],[64427,36,64427,37],[64427,38,64427,39],[64427,40,64427,41],[64427,42,64427,43],[64427,44,64427,45],[64427,46,64427,47],[64427,48,64427,49],[64427,50,64427,51],[64427,52,64427,53],[64427,54,64427,55],[64427,56,64427,57],[64427,58,64427,59],[64427,60,64427,61],[64427,62,64427,63],[64427,64,64427,65],[64427,66,64427,67],[64427,68,64427,69],[64427,70,64427,71],[64427,72,64427,73],[64427,74,64427,75],[64283,24,64283,25],[64283,26,64283,27],[64283,28,64283,29],[64283,30,64283,31],[64283,32,64283,33],[64283,34,64283,35],[64283,36,64283,37],[64283,38,64283,39],[64283,40,64283,41],[64283,42,64283,43],[64283,44,64283,45],[64283,46,64283,47],[64283,48,64283,49],[64283,50,64283,51],[64283,52,64283,53],[64283,54,64283,55],[64283,56,64283,57],[64283,58,64283,59],[64283,60,64283,61],[64283,62,64283,63],[64283,64,64283,65],[64283,66,64283,67],[64283,68,64283,69],[64283,70,64283,71],[64283,72,64283,73],[64283,74,64283,75],[64345,24,64345,25],[64345,26,64345,27],[64345,28,64345,29],[64345,30,64345,31],[64345,32,64345,33],[64345,34,64345,35],[64345,36,64345,37],[64345,38,64345,39],[64345,40,64345,41],[64345,42,64345,43],[64345,44,64345,45],[64345,46,64345,47],[64345,48,64345,49],[64345,50,64345,51],[64345,52,64345,53],[64345,54,64345,55],[64345,56,64345,57],[64345,58,64345,59],[64345,60,64345,61],[64345,62,64345,63],[64345,64,64345,65],[64345,66,64345,67],[64345,68,64345,69],[64345,70,64345,71],[64345,72,64345,73],[64345,74,64345,75],[64201,24,64201,25],[64201,26,64201,27],[64201,28,64201,29],[64201,30,64201,31],[64201,32,64201,33],[64201,34,64201,35],[64201,36,64201,37],[64201,38,64201,39],[64201,40,64201,41],[64201,42,64201,43],[64201,44,64201,45],[64201,46,64201,47],[64201,48,64201,49],[64201,50,64201,51],[64201,52,64201,53],[64201,54,64201,55],[64201,56,64201,57],[64201,58,64201,59],[64201,60,64201,61],[64201,62,64201,63],[64201,64,64201,65],[64201,66,64201,67],[64201,68,64201,69],[64201,70,64201,71],[64201,72,64201,73],[64201,74,64201,75],[64263,24,64263,25],[64263,26,64263,27],[64263,28,64263,29],[64263,30,64263,31],[64263,32,64263,33],[64263,34,64263,35],[64263,36,64263,37],[64263,38,64263,39],[64263,40,64263,41],[64263,42,64263,43],[64263,44,64263,45],[64263,46,64263,47],[64263,48,64263,49],[64263,50,64263,51],[64263,52,64263,53],[64263,54,64263,55],[64263,56,64263,57],[64263,58,64263,59],[64263,60,64263,61],[64263,62,64263,63],[64263,64,64263,65],[64263,66,64263,67],[64263,68,64263,69],[64263,70,64263,71],[64263,72,64263,73],[64263,74,64263,75],[64119,24,64119,25],[64119,26,64119,27],[64119,28,64119,29],[64119,30,64119,31],[64119,32,64119,33],[64119,34,64119,35],[64119,36,64119,37],[64119,38,64119,39],[64119,40,64119,41],[64119,42,64119,43],[64119,44,64119,45],[64119,46,64119,47],[64119,48,64119,49],[64119,50,64119,51],[64119,52,64119,53],[64119,54,64119,55],[64119,56,64119,57],[64119,58,64119,59],[64119,60,64119,61],[64119,62,64119,63],[64119,64,64119,65],[64119,66,64119,67],[64119,68,64119,69],[64119,70,64119,71],[64119,72,64119,73],[64119,74,64119,75],[64181,24,64181,25],[64181,26,64181,27],[64181,28,64181,29],[64181,30,64181,31],[64181,32,64181,33],[64181,34,64181,35],[64181,36,64181,37],[64181,38,64181,39],[64181,40,64181,41],[64181,42,64181,43],[64181,44,64181,45],[64181,46,64181,47],[64181,48,64181,49],[64181,50,64181,51],[64181,52,64181,53],[64181,54,64181,55],[64181,56,64181,57],[64181,58,64181,59],[64181,60,64181,61],[64181,62,64181,63],[64181,64,64181,65],[64181,66,64181,67],[64181,68,64181,69],[64181,70,64181,71],[64181,72,64181,73],[64181,74,64181,75],[64037,24,64037,25],[64037,26,64037,27],[64037,28,64037,29],[64037,30,64037,31],[64037,32,64037,33],[64037,34,64037,35],[64037,36,64037,37],[64037,38,64037,39],[64037,40,64037,41],[64037,42,64037,43],[64037,44,64037,45],[64037,46,64037,47],[64037,48,64037,49],[64037,50,64037,51],[64037,52,64037,53],[64037,54,64037,55],[64037,56,64037,57],[64037,58,64037,59],[64037,60,64037,61],[64037,62,64037,63],[64037,64,64037,65],[64037,66,64037,67],[64037,68,64037,69],[64037,70,64037,71],[64037,72,64037,73],[64037,74,64037,75],[64099,24,64099,25],[64099,26,64099,27],[64099,28,64099,29],[64099,30,64099,31],[64099,32,64099,33],[64099,34,64099,35],[64099,36,64099,37],[64099,38,64099,39],[64099,40,64099,41],[64099,42,64099,43],[64099,44,64099,45],[64099,46,64099,47],[64099,48,64099,49],[64099,50,64099,51],[64099,52,64099,53],[64099,54,64099,55],[64099,56,64099,57],[64099,58,64099,59],[64099,60,64099,61],[64099,62,64099,63],[64099,64,64099,65],[64099,66,64099,67],[64099,68,64099,69],[64099,70,64099,71],[64099,72,64099,73],[64099,74,64099,75],[63955,24,63955,25],[63955,26,63955,27],[63955,28,63955,29],[63955,30,63955,31],[63955,32,63955,33],[63955,34,63955,35],[63955,36,63955,37],[63955,38,63955,39],[63955,40,63955,41],[63955,42,63955,43],[63955,44,63955,45],[63955,46,63955,47],[63955,48,63955,49],[63955,50,63955,51],[63955,52,63955,53],[63955,54,63955,55],[63955,56,63955,57],[63955,58,63955,59],[63955,60,63955,61],[63955,62,63955,63],[63955,64,63955,65],[63955,66,63955,67],[63955,68,63955,69],[63955,70,63955,71],[63955,72,63955,73],[63955,74,63955,75],[64017,24,64017,25],[64017,26,64017,27],[64017,28,64017,29],[64017,30,64017,31],[64017,32,64017,33],[64017,34,64017,35],[64017,36,64017,37],[64017,38,64017,39],[64017,40,64017,41],[64017,42,64017,43],[64017,44,64017,45],[64017,46,64017,47],[64017,48,64017,49],[64017,50,64017,51],[64017,52,64017,53],[64017,54,64017,55],[64017,56,64017,57],[64017,58,64017,59],[64017,60,64017,61],[64017,62,64017,63],[64017,64,64017,65],[64017,66,64017,67],[64017,68,64017,69],[64017,70,64017,71],[64017,72,64017,73],[64017,74,64017,75],[63873,24,63873,25],[63873,26,63873,27],[63873,28,63873,29],[63873,30,63873,31],[63873,32,63873,33],[63873,34,63873,35],[63873,36,63873,37],[63873,38,63873,39],[63873,40,63873,41],[63873,42,63873,43],[63873,44,63873,45],[63873,46,63873,47],[63873,48,63873,49],[63873,50,63873,51],[63873,52,63873,53],[63873,54,63873,55],[63873,56,63873,57],[63873,58,63873,59],[63873,60,63873,61],[63873,62,63873,63],[63873,64,63873,65],[63873,66,63873,67],[63873,68,63873,69],[63873,70,63873,71],[63873,72,63873,73],[63873,74,63873,75],[63935,24,63935,25],[63935,26,63935,27],[63935,28,63935,29],[63935,30,63935,31],[63935,32,63935,33],[63935,34,63935,35],[63935,36,63935,37],[63935,38,63935,39],[63935,40,63935,41],[63935,42,63935,43],[63935,44,63935,45],[63935,46,63935,47],[63935,48,63935,49],[63935,50,63935,51],[63935,52,63935,53],[63935,54,63935,55],[63935,56,63935,57],[63935,58,63935,59],[63935,60,63935,61],[63935,62,63935,63],[63935,64,63935,65],[63935,66,63935,67],[63935,68,63935,69],[63935,70,63935,71],[63935,72,63935,73],[63935,74,63935,75],[63791,24,63791,25],[63791,26,63791,27],[63791,28,63791,29],[63791,30,63791,31],[63791,32,63791,33],[63791,34,63791,35],[63791,36,63791,37],[63791,38,63791,39],[63791,40,63791,41],[63791,42,63791,43],[63791,44,63791,45],[63791,46,63791,47],[63791,48,63791,49],[63791,50,63791,51],[63791,52,63791,53],[63791,54,63791,55],[63791,56,63791,57],[63791,58,63791,59],[63791,60,63791,61],[63791,62,63791,63],[63791,64,63791,65],[63791,66,63791,67],[63791,68,63791,69],[63791,70,63791,71],[63791,72,63791,73],[63791,74,63791,75],[63853,24,63853,25],[63853,26,63853,27],[63853,28,63853,29],[63853,30,63853,31],[63853,32,63853,33],[63853,34,63853,35],[63853,36,63853,37],[63853,38,63853,39],[63853,40,63853,41],[63853,42,63853,43],[63853,44,63853,45],[63853,46,63853,47],[63853,48,63853,49],[63853,50,63853,51],[63853,52,63853,53],[63853,54,63853,55],[63853,56,63853,57],[63853,58,63853,59],[63853,60,63853,61],[63853,62,63853,63],[63853,64,63853,65],[63853,66,63853,67],[63853,68,63853,69],[63853,70,63853,71],[63853,72,63853,73],[63853,74,63853,75],[63709,24,63709,25],[63709,26,63709,27],[63709,28,63709,29],[63709,30,63709,31],[63709,32,63709,33],[63709,34,63709,35],[63709,36,63709,37],[63709,38,63709,39],[63709,40,63709,41],[63709,42,63709,43],[63709,44,63709,45],[63709,46,63709,47],[63709,48,63709,49],[63709,50,63709,51],[63709,52,63709,53],[63709,54,63709,55],[63709,56,63709,57],[63709,58,63709,59],[63709,60,63709,61],[63709,62,63709,63],[63709,64,63709,65],[63709,66,63709,67],[63709,68,63709,69],[63709,70,63709,71],[63709,72,63709,73],[63709,74,63709,75],[63771,24,63771,25],[63771,26,63771,27],[63771,28,63771,29],[63771,30,63771,31],[63771,32,63771,33],[63771,34,63771,35],[63771,36,63771,37],[63771,38,63771,39],[63771,40,63771,41],[63771,42,63771,43],[63771,44,63771,45],[63771,46,63771,47],[63771,48,63771,49],[63771,50,63771,51],[63771,52,63771,53],[63771,54,63771,55],[63771,56,63771,57],[63771,58,63771,59],[63771,60,63771,61],[63771,62,63771,63],[63771,64,63771,65],[63771,66,63771,67],[63771,68,63771,69],[63771,70,63771,71],[63771,72,63771,73],[63771,74,63771,75],[63627,24,63627,25],[63627,26,63627,27],[63627,28,63627,29],[63627,30,63627,31],[63627,32,63627,33],[63627,34,63627,35],[63627,36,63627,37],[63627,38,63627,39],[63627,40,63627,41],[63627,42,63627,43],[63627,44,63627,45],[63627,46,63627,47],[63627,48,63627,49],[63627,50,63627,51],[63627,52,63627,53],[63627,54,63627,55],[63627,56,63627,57],[63627,58,63627,59],[63627,60,63627,61],[63627,62,63627,63],[63627,64,63627,65],[63627,66,63627,67],[63627,68,63627,69],[63627,70,63627,71],[63627,72,63627,73],[63627,74,63627,75],[63689,24,63689,25],[63689,26,63689,27],[63689,28,63689,29],[63689,30,63689,31],[63689,32,63689,33],[63689,34,63689,35],[63689,36,63689,37],[63689,38,63689,39],[63689,40,63689,41],[63689,42,63689,43],[63689,44,63689,45],[63689,46,63689,47],[63689,48,63689,49],[63689,50,63689,51],[63689,52,63689,53],[63689,54,63689,55],[63689,56,63689,57],[63689,58,63689,59],[63689,60,63689,61],[63689,62,63689,63],[63689,64,63689,65],[63689,66,63689,67],[63689,68,63689,69],[63689,70,63689,71],[63689,72,63689,73],[63689,74,63689,75],[63545,24,63545,25],[63545,26,63545,27],[63545,28,63545,29],[63545,30,63545,31],[63545,32,63545,33],[63545,34,63545,35],[63545,36,63545,37],[63545,38,63545,39],[63545,40,63545,41],[63545,42,63545,43],[63545,44,63545,45],[63545,46,63545,47],[63545,48,63545,49],[63545,50,63545,51],[63545,52,63545,53],[63545,54,63545,55]],"merged_total":58578,"flags":["merged_cut"]}
[null,"B01001. GENDER BY AGE"]
[null,"Universe:  TOTAL POPULATION"]
[null,"Data Set: 2015-2019 American Community Survey 5-Year Estimates"]
[]
[null,null,"Acworth",null,"Charlestown",null,"Claremont",null,"Cornish",null,"Croydon",null,"Goshen",null,"Grantham",null,"Langdon",null,"Lempster",null,"Newport",null,"Plainfield",null,"Springfield",null,"Sunapee",null,"Unity",null,"Washington"]
[null,null,"Estimate","Margin Of Error","Estimate","Margin Of Error","Estimate","Margin Of Error","Estimate","Margin Of Error","Estimate","Margin Of Error","Estimate","Margin Of Error","Estimate","Margin Of Error","Estimate","Margin Of Error","Estimate","Margin Of Error","Estimate","Margin Of Error","Estimate","Margin Of Error","Estimate","Margin Of Error","Estimate","Margin Of Error","Estimate","Margin Of Error","Estimate","Margin Of Error"]
[null,"Total:",906,134,5019,19,12977,23,1783,217,863,244,702,108,2945,14,712,145,923,176,6374,19,2555,293,1084,198,3449,19,1613,156,1199,188]
[null,"Male:",487,83,2515,222,6291,280,922,150,423,111,351,69,1382,143,342,85,432,77,3287,221,1278,174,575,112,1792,129,743,80,612,109]
[null,"Under 5 years",21,14,189,101,393,117,35,19,11,12,18,14,0,11,16,14,31,21,185,95,32,34,3,5,97,57,3,6,0,11]
[null,"5 to 9 years",19,13,164,79,362,121,38,23,23,17,22,16,103,71,29,19,15,12,105,67,41,22,5,6,132,90,24,15,22,17]
[null,"10 to 14 years",13,12,28,24,335,116,89,54,29,29,16,13,103,48,38,34,13,15,230,162,108,56,30,17,120,69,16,15,36,32]
[null,"15 to 17 years",2,3,58,53,205,86,42,38,4,6,11,11,65,53,9,9,8,7,192,109,81,49,37,28,85,54,6,6,3,5]
[null,"18 and 19 years",3,5,32,32,75,56,17,12,17,20,4,5,23,33,8,8,0,11,123,89,92,65,10,12,35,27,19,23,10,24]
[null,"20 years",7,12,5,13,149,96,4,6,9,17,0,11,0,11,0,11,0,11,72,81,43,44,0,11,13,20,25,14,0,11]
[null,"21 years",0,11,0,16,26,36,8,9,0,11,0,11,22,32,0,11,0,11,83,68,15,15,12,14,23,22,14,20,10,9]
[null,"22 to 24 years",8,13,118,89,185,83,18,13,13,13,13,13,15,22,0,11,12,11,106,62,12,16,6,10,71,52,14,17,9,8]
[null,"25 to 29 years",42,26,166,100,538,143,25,16,19,14,9,8,23,37,22,20,6,6,211,113,44,28,61,49,93,59,44,28,22,18]
[null,"30 to 34 years",19,14,169,97,649,150,23,14,29,27,17,14,65,50,23,14,16,11,165,85,55,33,14,19,55,36,22,18,21,16]
[null,"35 to 39 years",15,12,264,115,268,106,44,21,18,14,18,14,84,59,25,16,43,23,105,101,66,37,33,31,149,85,37,20,7,10]
[null,"40 to 44 years",16,11,59,55,364,132,38,21,20,15,32,18,28,28,15,12,31,23,212,113,38,20,36,23,105,63,23,13,59,60]
[null,"45 to 49 years",24,24,138,101,436,162,77,36,20,18,29,20,192,119,21,16,78,41,132,96,106,55,64,39,52,42,44,26,75,41]
[null,"50 to 54 years",39,22,123,70,464,104,33,17,35,27,44,28,163,103,24,15,17,18,244,101,114,52,28,21,191,76,67,30,32,21]
[null,"55 to 59 years",75,30,323,119,523,144,72,31,30,21,21,19,114,79,34,22,48,23,340,135,63,30,35,23,74,38,112,41,91,41]
[null,"60 and 61 years",29,18,71,48,178,89,39,17,25,21,4,5,0,11,6,5,12,9,83,59,54,26,17,13,88,64,31,18,16,9]
[null,"62 to 64 years",15,12,56,41,194,73,64,27,50,35,14,8,32,46,18,15,20,10,160,127,80,29,12,10,118,85,41,22,29,19]
[null,"65 and 66 years",17,9,146,99,195,75,37,24,9,8,5,4,27,32,10,7,30,23,69,74,36,20,52,33,40,32,28,21,32,22]
[null,"67 to 69 years",28,18,65,62,265,97,69,29,24,17,24,19,84,47,17,10,8,6,134,119,33,21,22,22,36,31,54,23,33,15]
[null,"70 to 74 years",43,20,50,48,191,84,84,39,5,5,30,20,45,41,12,7,30,18,215,102,109,52,37,25,100,41,54,24,56,23]
[null,"75 to 79 years",18,12,210,146,134,64,19,11,13,9,8,7,123,81,5,6,4,4,66,70,41,27,29,23,51,44,30,15,34,17]
[null,"80 to 84 years",18,15,48,57,85,46,25,22,8,8,10,11,58,52,2,4,8,8,30,34,0,11,32,25,10,12,21,12,8,6]
[null,"85 years and over",16,12,33,36,77,46,22,18,12,9,2,3,13,20,8,6,2,4,25,27,15,23,0,11,54,43,14,15,7,7]
[null,"Female:",419,72,2504,221,6686,279,861,100,440,156,351,60,1563,142,370,73,491,123,3087,220,1277,157,509,111,1657,127,870,119,587,104]
[null,"Under 5 years",16,13,121,78,475,107,26,14,12,11,21,14,0,11,16,13,35,23,100,62,50,55,11,17,61,39,14,15,6,8]
[null,"5 to 9 years",6,6,64,80,347,114,17,14,27,20,50,41,37,24,30,20,160,115,61,37,28,37,56,45,20,16,7,8,0,0]
[null,"10 to 14 years",9,8,299,115,316,132,29,17,7,8,146,115,22,24,29,35,155,107,83,39,19,15,56,57,64,33,33,17,0,0]
[null,"15 to 17 years",9,14,57,54,259,92,19,23,15,13,54,48,2,5,62,56,91,82,41,44,23,16,85,62,5,7,32,23,0,0]
[null,"18 and 19 years",5,7,8,12,107,50,14,16,17,22,23,27,8,10,0,11,62,49,63,39,11,18,8,12,8,6,4,5,0,0]
[null,"20 years",5,9,0,16,42,48,23,28,0,11,25,39,0,11,7,10,35,55,37,37,0,11,0,11,31,29,0,11,0,0]
[null,"21 years",0,11,0,16,112,68,0,11,0,11,0,11,0,11,0,11,31,39,18,26,0,11,0,11,0,11,0,11,0,0]
[null,"22 to 24 years",3,5,20,27,214,99,40,51,0,11,42,44,17,19,0,11,95,66,38,25,0,11,90,45,26,26,20,24,0,0]
[null,"25 to 29 years",21,15,206,117,373,110,35,23,28,20,24,36,15,15,21,11,183,66,43,27,14,15,64,51,55,31,22,14,0,0]
[null,"30 to 34 years",13,11,123,75,567,110,12,13,24,18,0,11,29,19,26,21,114,85,81,39,12,10,88,46,23,17,17,15,0,0]
[null,"35 to 39 years",14,9,192,112,269,104,21,18,8,7,62,54,19,13,21,19,269,133,62,39,0,11,164,78,46,24,16,18,0,0]
[null,"40 to 44 years",31,24,66,67,363,106,7,9,19,15,165,93,11,9,15,15,217,129,64,38,37,34,97,49,48,26,60,64,0,0]
[null,"45 to 49 years",16,14,105,71,373,105,25,18,19,13,112,68,20,13,45,32,360,131,79,40,69,33,74,42,30,20,62,34,0,0]
[null,"50 to 54 years",39,22,152,86,541,131,29,23,21,17,213,111,39,20,11,13,226,93,100,50,33,23,90,45,41,20,57,30,0,0]
[null,"55 to 59 years",55,25,255,121,452,126,57,30,32,17,219,114,55,30,47,24,182,97,104,38,39,23,124,78,121,34,64,33,0,0]
[null,"60 and 61 years",16,14,154,99,193,114,8,11,14,8,65,74,12,12,18,9,97,80,56,23,20,19,84,59,33,26,24,12,0,0]
[null,"62 to 64 years",19,13,157,109,269,95,22,12,10,9,60,65,18,10,34,19,68,47,56,24,43,30,101,54,29,12,18,12,0,0]
[null,"65 and 66 years",23,17,108,76,183,86,11,12,14,9,14,21,13,6,13,13,51,40,48,25,17,16,32,45,29,16,40,22,0,0]
[null,"67 to 69 years",46,26,49,45,287,127,21,11,3,4,64,41,10,8,17,12,110,85,56,42,26,23,88,47,55,24,27,15,0,0]
[null,"70 to 74 years",48,22,139,92,286,129,17,14,32,19,61,41,12,7,21,15,155,92,77,40,69,39,113,47,39,14,49,19,0,0]
[null,"75 to 79 years",8,6,73,59,228,98,9,7,14,7,54,39,7,6,11,9,70,55,37,27,19,16,58,37,50,34,15,9,0,0]
[null,"80 to 84 years",4,4,74,66,199,83,5,6,9,10,110,69,6,5,23,26,105,59,23,20,9,11,64,50,30,23,11,8,0,0]
[null,"85 years and over",13,11,82,70,231,91,7,9,17,13,0,11,2,3,5,5,151,96,0,11,10,16,60,58,73,60,3,6,0,0]
[]
[]
[]
[]
[]
[]
[]
[]
[]
[]
[]
[]
[]
[null,"Calculated B01001. GENDER BY AGE"]
[null,"Universe:  TOTAL POPULATION"]
[null,"Data Set: 2015-2019 American Community Survey 5-Year Estimates"]
[]
[null,null,"Acworth",null,"Charlestown",null,"Claremont",null,"Cornish",null,"Croydon",null,"Goshen",null,"Grantham",null,"Langdon",null,"Lempster",null,"Newport",null,"Plainfield",null,"Springfield",null,"Sunapee",null,"Unity",null,"Washington"]
[null,null,"Estimate","Margin Of Error","Estimate","Margin Of Error","Estimate","Margin Of Error","Estimate","Margin Of Error","Estimate","Margin Of Error","Estimate","Margin Of Error","Estimate","Margin Of Error","Estimate","Margin Of Error","Estimate","Margin Of Error","Estimate","Margin Of Error","Estimate","Margin Of Error","Estimate","Margin Of Error","Estimate","Margin Of Error","Estimate","Margin Of Error","Estimate","Margin Of Error"]
[null,"Total",{"$f":"C7","v":906},134,5019,19,12977,23,1783,217,863,244,702,108,2945,14,712,145,923,176,6374,19,2555,293,{"$f":"Y7","v":1084},198,3449,19,1613,156,1199,188]
[null,"Under 15 yrs.",{"$f":"C9+C10+C11+C33+C34+C35","v":84},{"$f":"SQRT((D9^2)+(D10^2)+(D11^2)+(D33^2)+(D34^2)+(D35^2))","v":27.892651361962706},{"$f":"E9+E10+E11+E33+E34+E35","v":865},{"$f":"SQRT((F9^2)+(F10^2)+(F11^2)+(F33^2)+(F34^2)+(F35^2))","v":206.70510395246654},{"$f":"G9+G10+G11+G33+G34+G35","v":2228},{"$f":"SQRT((H9^2)+(H10^2)+(H11^2)+(H33^2)+(H34^2)+(H35^2))","v":289.23174099673088},{"$f":"I9+I10+I11+I33+I34+I35","v":234},{"$f":"SQRT((J9^2)+(J10^2)+(J11^2)+(J33^2)+(J34^2)+(J35^2))","v":66.985072964056698},{"$f":"K9+K10+K11+K33+K34+K35","v":109},{"$f":"SQRT((L9^2)+(L10^2)+(L11^2)+(L33^2)+(L34^2)+(L35^2))","v":43.116122274620196},{"$f":"M9+M10+M11+M33+M34+M35","v":273},{"$f":"SQRT((N9^2)+(N10^2)+(N11^2)+(N33^2)+(N34^2)+(N35^2))","v":125.3913872640382},{"$f":"O9+O10+O11+O33+O34+O35","v":265},{"$f":"SQRT((P9^2)+(P10^2)+(P11^2)+(P33^2)+(P34^2)+(P35^2))","v":93.482618705297298},{"$f":"Q9+Q10+Q11+Q33+Q34+Q35","v":158},{"$f":"SQRT((R9^2)+(R10^2)+(R11^2)+(R33^2)+(R34^2)+(R35^2))","v":59.219929077971713},{"$f":"S9+S10+S11+S33+S34+S35","v":409},{"$f":"SQRT((T9^2)+(T10^2)+(T11^2)+(T33^2)+(T34^2)+(T35^2))","v":161.28546121706071},{"$f":"U9+U10+U11+U33+U34+U35","v":764},{"$f":"SQRT((V9^2)+(V10^2)+(V11^2)+(V33^2)+(V34^2)+(V35^2))","v":215.62003617474883},{"$f":"W9+W10+W11+W33+W34+W35","v":278},{"$f":"SQRT((X9^2)+(X10^2)+(X11^2)+(X33^2)+(X34^2)+(X35^2))","v":96.927808187330839},{"$f":"Y9+Y10+Y11+Y33+Y34+Y35","v":161},{"$f":"SQRT((Z9^2)+(Z10^2)+(Z11^2)+(Z33^2)+(Z34^2)+(Z35^2))","v":76.896033707857782},{"$f":"AA9+AA10+AA11+AA33+AA34+AA35","v":494},{"$f":"SQRT((AB9^2)+(AB10^2)+(AB11^2)+(AB33^2)+(AB34^2)+(AB35^2))","v":137.7534028617805},{"$f":"AC9+AC10+AC11+AC33+AC34+AC35","v":97},{"$f":"SQRT((AD9^2)+(AD10^2)+(AD11^2)+(AD33^2)+(AD34^2)+(AD35^2))","v":32.619012860600179},{"$f":"AE9+AE10+AE11+AE33+AE34+AE35","v":64},{"$f":"SQRT((AF9^2)+(AF10^2)+(AF11^2)+(AF33^2)+(AF34^2)+(AF35^2))","v":38.704004960727254}]
[null,"15 to 24 yrs.",{"$f":"C12+C13+C14+C15+C16+C36+C37+C38+C39+C40","v":42},{"$f":"SQRT((D12^2)+(D13^2)+(D14^2)+(D15^2)+(D16^2)+(D36^2)+(D37^2)+(D38^2)+(D39^2)+(D40^2))","v":30.659419433511783},{"$f":"E12+E13+E14+E15+E16+E36+E37+E38+E39+E40","v":298},{"$f":"SQRT((F12^2)+(F13^2)+(F14^2)+(F15^2)+(F16^2)+(F36^2)+(F37^2)+(F38^2)+(F39^2)+(F40^2))","v":128.37445228704971},{"$f":"G12+G13+G14+G15+G16+G36+G37+G38+G39+G40","v":1374},{"$f":"SQRT((H12^2)+(H13^2)+(H14^2)+(H15^2)+(H16^2)+(H36^2)+(H37^2)+(H38^2)+(H39^2)+(H40^2))","v":235.85164828764712},{"$f":"I12+I13+I14+I15+I16+I36+I37+I38+I39+I40","v":185},{"$f":"SQRT((J12^2)+(J13^2)+(J14^2)+(J15^2)+(J16^2)+(J36^2)+(J37^2)+(J38^2)+(J39^2)+(J40^2))","v":78.517513969814402},{"$f":"K12+K13+K14+K15+K16+K36+K37+K38+K39+K40","v":75},{"$f":"SQRT((L12^2)+(L13^2)+(L14^2)+(L15^2)+(L16^2)+(L36^2)+(L37^2)+(L38^2)+(L39^2)+(L40^2))","v":45.066617356974994},{"$f":"M12+M13+M14+M15+M16+M36+M37+M38+M39+M40","v":172},{"$f":"SQRT((N12^2)+(N13^2)+(N14^2)+(N15^2)+(N16^2)+(N36^2)+(N37^2)+(N38^2)+(N39^2)+(N40^2))","v":84.664041954066903},{"$f":"O12+O13+O14+O15+O16+O36+O37+O38+O39+O40","v":152},{"$f":"SQRT((P12^2)+(P13^2)+(P14^2)+(P15^2)+(P16^2)+(P36^2)+(P37^2)+(P38^2)+(P39^2)+(P40^2))","v":79.088557958784406},{"$f":"Q12+Q13+Q14+Q15+Q16+Q36+Q37+Q38+Q39+Q40","v":86},{"$f":"SQRT((R12^2)+(R13^2)+(R14^2)+(R15^2)+(R16^2)+(R36^2)+(R37^2)+(R38^2)+(R39^2)+(R40^2))","v":64.085879880048466},{"$f":"S12+S13+S14+S15+S16+S36+S37+S38+S39+S40","v":334},{"$f":"SQRT((T12^2)+(T13^2)+(T14^2)+(T15^2)+(T16^2)+(T36^2)+(T37^2)+(T38^2)+(T39^2)+(T40^2))","v":136.23509092741122},{"$f":"U12+U13+U14+U15+U16+U36+U37+U38+U39+U40","v":773},{"$f":"SQRT((V12^2)+(V13^2)+(V14^2)+(V15^2)+(V16^2)+(V36^2)+(V37^2)+(V38^2)+(V39^2)+(V40^2))","v":202.38082913161514},{"$f":"W12+W13+W14+W15+W16+W36+W37+W38+W39+W40","v":277},{"$f":"SQRT((X12^2)+(X13^2)+(X14^2)+(X15^2)+(X16^2)+(X36^2)+(X37^2)+(X38^2)+(X39^2)+(X40^2))","v":99.929975482834976},{"$f":"Y12+Y13+Y14+Y15+Y16+Y36+Y37+Y38+Y39+Y40","v":248},{"$f":"SQRT((Z12^2)+(Z13^2)+(Z14^2)+(Z15^2)+(Z16^2)+(Z36^2)+(Z37^2)+(Z38^2)+(Z39^2)+(Z40^2))","v":87.177978870813476},{"$f":"AA12+AA13+AA14+AA15+AA16+AA36+AA37+AA38+AA39+AA40","v":297},{"$f":"SQRT((AB12^2)+(AB13^2)+(AB14^2)+(AB15^2)+(AB16^2)+(AB36^2)+(AB37^2)+(AB38^2)+(AB39^2)+(AB40^2))","v":94.636145314567841},{"$f":"AC12+AC13+AC14+AC15+AC16+AC36+AC37+AC38+AC39+AC40","v":134},{"$f":"SQRT((AD12^2)+(AD13^2)+(AD14^2)+(AD15^2)+(AD16^2)+(AD36^2)+(AD37^2)+(AD38^2)+(AD39^2)+(AD40^2))","v":53.1224999411737},{"$f":"AE12+AE13+AE14+AE15+AE16+AE36+AE37+AE38+AE39+AE40","v":32},{"$f":"SQRT((AF12^2)+(AF13^2)+(AF14^2)+(AF15^2)+(AF16^2)+(AF36^2)+(AF37^2)+(AF38^2)+(AF39^2)+(AF40^2))","v":29.444863728670914}]
[null,"25 to 34 yrs.",{"$f":"C17+C18+C41+C42","v":95},{"$f":"SQRT((D17^2)+(D18^2)+(D41^2)+(D42^2))","v":34.899856733230294},{"$f":"E17+E18+E41+E42","v":664},{"$f":"SQRT((F17^2)+(F18^2)+(F41^2)+(F42^2))","v":196.78160483134596},{"$f":"G17+G18+G41+G42","v":2127},{"$f":"SQRT((H17^2)+(H18^2)+(H41^2)+(H42^2))","v":259.13124087998347},{"$f":"I17+I18+I41+I42","v":95},{"$f":"SQRT((J17^2)+(J18^2)+(J41^2)+(J42^2))","v":33.911649915626342},{"$f":"K17+K18+K41+K42","v":100},{"$f":"SQRT((L17^2)+(L18^2)+(L41^2)+(L42^2))","v":40.607881008493905},{"$f":"M17+M18+M41+M42","v":50},{"$f":"SQRT((N17^2)+(N18^2)+(N41^2)+(N42^2))","v":40.951190458886543},{"$f":"O17+O18+O41+O42","v":132},{"$f":"SQRT((P17^2)+(P18^2)+(P41^2)+(P42^2))","v":66.74578638386096},{"$f":"Q17+Q18+Q41+Q42","v":92},{"$f":"SQRT((R17^2)+(R18^2)+(R41^2)+(R42^2))","v":34.02939905434711},{"$f":"S17+S18+S41+S42","v":319},{"$f":"SQRT((T17^2)+(T18^2)+(T41^2)+(T42^2))","v":108.34205093129813},{"$f":"U17+U18+U41+U42","v":500},{"$f":"SQRT((V17^2)+(V18^2)+(V41^2)+(V42^2))","v":149.14422550001726},{"$f":"W17+W18+W41+W42","v":125},{"$f":"SQRT((X17^2)+(X18^2)+(X41^2)+(X42^2))","v":46.882832678924167},{"$f":"Y17+Y18+Y41+Y42","v":227},{"$f":"SQRT((Z17^2)+(Z18^2)+(Z41^2)+(Z42^2))","v":86.481211832397449},{"$f":"AA17+AA18+AA41+AA42","v":226},{"$f":"SQRT((AB17^2)+(AB18^2)+(AB41^2)+(AB42^2))","v":77.63375554486592},{"$f":"AC17+AC18+AC41+AC42","v":105},{"$f":"SQRT((AD17^2)+(AD18^2)+(AD41^2)+(AD42^2))","v":39.102429592034305},{"$f":"AE17+AE18+AE41+AE42","v":43},{"$f":"SQRT((AF17^2)+(AF18^2)+(AF41^2)+(AF42^2))","v":24.083189157584592}]
[null,"35 to 44 yrs.",{"$f":"C19+C20+C43+C44","v":76},{"$f":"SQRT((D19^2)+(D20^2)+(D43^2)+(D44^2))","v":30.364452901377952},{"$f":"E19+E20+E43+E44","v":581},{"$f":"SQRT((F19^2)+(F20^2)+(F43^2)+(F44^2))","v":182.43629024950053},{"$f":"G19+G20+G43+G44","v":1264},{"$f":"SQRT((H19^2)+(H20^2)+(H43^2)+(H44^2))","v":225.19325034289994},{"$f":"I19+I20+I43+I44","v":110},{"$f":"SQRT((J19^2)+(J20^2)+(J43^2)+(J44^2))","v":35.874782229304195},{"$f":"K19+K20+K43+K44","v":65},{"$f":"SQRT((L19^2)+(L20^2)+(L43^2)+(L44^2))","v":26.362852652928137},{"$f":"M19+M20+M43+M44","v":277},{"$f":"SQRT((N19^2)+(N20^2)+(N43^2)+(N44^2))","v":109.9317970379817},{"$f":"O19+O20+O43+O44","v":142},{"$f":"SQRT((P19^2)+(P20^2)+(P43^2)+(P44^2))","v":67.193749709329367},{"$f":"Q19+Q20+Q43+Q44","v":76},{"$f":"SQRT((R19^2)+(R20^2)+(R43^2)+(R44^2))","v":31.400636936215164},{"$f":"S19+S20+S43+S44","v":560},{"$f":"SQRT((T19^2)+(T20^2)+(T43^2)+(T44^2))","v":188.11698487909061},{"$f":"U19+U20+U43+U44","v":443},{"$f":"SQRT((V19^2)+(V20^2)+(V43^2)+(V44^2))","v":161.04347239177378},{"$f":"W19+W20+W43+W44","v":141},{"$f":"SQRT((X19^2)+(X20^2)+(X43^2)+(X44^2))","v":55.190578906186516},{"$f":"Y19+Y20+Y43+Y44","v":330},{"$f":"SQRT((Z19^2)+(Z20^2)+(Z43^2)+(Z44^2))","v":99.874921777190892},{"$f":"AA19+AA20+AA43+AA44","v":348},{"$f":"SQRT((AB19^2)+(AB20^2)+(AB43^2)+(AB44^2))","v":111.56164215356459},{"$f":"AC19+AC20+AC43+AC44","v":136},{"$f":"SQRT((AD19^2)+(AD20^2)+(AD43^2)+(AD44^2))","v":70.632853545641211},{"$f":"AE19+AE20+AE43+AE44","v":66},{"$f":"SQRT((AF19^2)+(AF20^2)+(AF43^2)+(AF44^2))","v":60.827625302982199}]
[null,"45 to 54 yrs.",{"$f":"C21+C22+C45+C46","v":118},{"$f":"SQRT((D21^2)+(D22^2)+(D45^2)+(D46^2))","v":41.71330722922842},{"$f":"E21+E22+E45+E46","v":518},{"$f":"SQRT((F21^2)+(F22^2)+(F45^2)+(F46^2))","v":165.94577427581578},{"$f":"G21+G22+G45+G46","v":1814},{"$f":"SQRT((H21^2)+(H22^2)+(H45^2)+(H46^2))","v":255.43296576597157},{"$f":"I21+I22+I45+I46","v":164},{"$f":"SQRT((J21^2)+(J22^2)+(J45^2)+(J46^2))","v":49.376107582514038},{"$f":"K21+K22+K45+K46","v":95},{"$f":"SQRT((L21^2)+(L22^2)+(L45^2)+(L46^2))","v":38.871583451153619},{"$f":"M21+M22+M45+M46","v":398},{"$f":"SQRT((N21^2)+(N22^2)+(N45^2)+(N46^2))","v":134.64397498588639},{"$f":"O21+O22+O45+O46","v":414},{"$f":"SQRT((P21^2)+(P22^2)+(P45^2)+(P46^2))","v":159.18228544659107},{"$f":"Q21+Q22+Q45+Q46","v":101},{"$f":"SQRT((R21^2)+(R22^2)+(R45^2)+(R46^2))","v":40.914545090957567},{"$f":"S21+S22+S45+S46","v":681},{"$f":"SQRT((T21^2)+(T22^2)+(T45^2)+(T46^2))","v":166.7782959500426},{"$f":"U21+U22+U45+U46","v":555},{"$f":"SQRT((V21^2)+(V22^2)+(V45^2)+(V46^2))","v":153.35253502958469},{"$f":"W21+W22+W45+W46","v":322},{"$f":"SQRT((X21^2)+(X22^2)+(X45^2)+(X46^2))","v":85.714642856398811},{"$f":"Y21+Y22+Y45+Y46","v":256},{"$f":"SQRT((Z21^2)+(Z22^2)+(Z45^2)+(Z46^2))","v":75.835347958587221},{"$f":"AA21+AA22+AA45+AA46","v":314},{"$f":"SQRT((AB21^2)+(AB22^2)+(AB45^2)+(AB46^2))","v":91.323600454646993},{"$f":"AC21+AC22+AC45+AC46","v":230},{"$f":"SQRT((AD21^2)+(AD22^2)+(AD45^2)+(AD46^2))","v":60.266076693277455},{"$f":"AE21+AE22+AE45+AE46","v":107},{"$f":"SQRT((AF21^2)+(AF22^2)+(AF45^2)+(AF46^2))","v":46.065171225124082}]
[null,"55 to 64 yrs.",{"$f":"C23+C24+C25+C47+C48+C49","v":209},{"$f":"SQRT((D23^2)+(D24^2)+(D25^2)+(D47^2)+(D48^2)+(D49^2))","v":48.559242168715933},{"$f":"E23+E24+E25+E47+E48+E49","v":1016},{"$f":"SQRT((F23^2)+(F24^2)+(F25^2)+(F47^2)+(F48^2)+(F49^2))","v":233.38594644922389},{"$f":"G23+G24+G25+G47+G48+G49","v":1809},{"$f":"SQRT((H23^2)+(H24^2)+(H25^2)+(H47^2)+(H48^2)+(H49^2))","v":268.1100520308778},{"$f":"I23+I24+I25+I47+I48+I49","v":262},{"$f":"SQRT((J23^2)+(J24^2)+(J25^2)+(J47^2)+(J48^2)+(J49^2))","v":56.071383075504748},{"$f":"K23+K24+K25+K47+K48+K49","v":161},{"$f":"SQRT((L23^2)+(L24^2)+(L25^2)+(L47^2)+(L48^2)+(L49^2))","v":50.408332644514239},{"$f":"M23+M24+M25+M47+M48+M49","v":383},{"$f":"SQRT((N23^2)+(N24^2)+(N25^2)+(N47^2)+(N48^2)+(N49^2))","v":152.14138161591671},{"$f":"O23+O24+O25+O47+O48+O49","v":231},{"$f":"SQRT((P23^2)+(P24^2)+(P25^2)+(P47^2)+(P48^2)+(P49^2))","v":98.091793744431044},{"$f":"Q23+Q24+Q25+Q47+Q48+Q49","v":157},{"$f":"SQRT((R23^2)+(R24^2)+(R25^2)+(R47^2)+(R48^2)+(R49^2))","v":41.856899072912697},{"$f":"S23+S24+S25+S47+S48+S49","v":427},{"$f":"SQRT((T23^2)+(T24^2)+(T25^2)+(T47^2)+(T48^2)+(T49^2))","v":136.85028315644803},{"$f":"U23+U24+U25+U47+U48+U49","v":799},{"$f":"SQRT((V23^2)+(V24^2)+(V25^2)+(V47^2)+(V48^2)+(V49^2))","v":200.95770699328753},{"$f":"W23+W24+W25+W47+W48+W49","v":299},{"$f":"SQRT((X23^2)+(X24^2)+(X25^2)+(X47^2)+(X48^2)+(X49^2))","v":64.861390672726102},{"$f":"Y23+Y24+Y25+Y47+Y48+Y49","v":373},{"$f":"SQRT((Z23^2)+(Z24^2)+(Z25^2)+(Z47^2)+(Z48^2)+(Z49^2))","v":115.2345434320803},{"$f":"AA23+AA24+AA25+AA47+AA48+AA49","v":463},{"$f":"SQRT((AB23^2)+(AB24^2)+(AB25^2)+(AB47^2)+(AB48^2)+(AB49^2))","v":121.41251994749142},{"$f":"AC23+AC24+AC25+AC47+AC48+AC49","v":290},{"$f":"SQRT((AD23^2)+(AD24^2)+(AD25^2)+(AD47^2)+(AD48^2)+(AD49^2))","v":62.177166226839255},{"$f":"AE23+AE24+AE25+AE47+AE48+AE49","v":136},{"$f":"SQRT((AF23^2)+(AF24^2)+(AF25^2)+(AF47^2)+(AF48^2)+(AF49^2))","v":46.076024134033091}]
[null,"65 to 74 yrs.",{"$f":"C26+C27+C28+C50+C51+C52","v":205},{"$f":"SQRT((D26^2)+(D27^2)+(D28^2)+(D50^2)+(D51^2)+(D52^2))","v":47.47630988187688},{"$f":"E26+E27+E28+E50+E51+E52","v":557},{"$f":"SQRT((F26^2)+(F27^2)+(F28^2)+(F50^2)+(F51^2)+(F52^2))","v":179.48258968490509},{"$f":"G26+G27+G28+G50+G51+G52","v":1407},{"$f":"SQRT((H26^2)+(H27^2)+(H28^2)+(H50^2)+(H51^2)+(H52^2))","v":249.51152278001109},{"$f":"I26+I27+I28+I50+I51+I52","v":239},{"$f":"SQRT((J26^2)+(J27^2)+(J28^2)+(J50^2)+(J51^2)+(J52^2))","v":58.300943388593637},{"$f":"K26+K27+K28+K50+K51+K52","v":87},{"$f":"SQRT((L26^2)+(L27^2)+(L28^2)+(L50^2)+(L51^2)+(L52^2))","v":28.913664589601922},{"$f":"M26+M27+M28+M50+M51+M52","v":198},{"$f":"SQRT((N26^2)+(N27^2)+(N28^2)+(N50^2)+(N51^2)+(N52^2))","v":67.675697262754525},{"$f":"O26+O27+O28+O50+O51+O52","v":191},{"$f":"SQRT((P26^2)+(P27^2)+(P28^2)+(P50^2)+(P51^2)+(P52^2))","v":71.15476090888086},{"$f":"Q26+Q27+Q28+Q50+Q51+Q52","v":90},{"$f":"SQRT((R26^2)+(R27^2)+(R28^2)+(R50^2)+(R51^2)+(R52^2))","v":27.129319932501073},{"$f":"S26+S27+S28+S50+S51+S52","v":384},{"$f":"SQRT((T26^2)+(T27^2)+(T28^2)+(T50^2)+(T51^2)+(T52^2))","v":134.82581355215328},{"$f":"U26+U27+U28+U50+U51+U52","v":599},{"$f":"SQRT((V26^2)+(V27^2)+(V28^2)+(V50^2)+(V51^2)+(V52^2))","v":184.47222013083703},{"$f":"W26+W27+W28+W50+W51+W52","v":290},{"$f":"SQRT((X26^2)+(X27^2)+(X28^2)+(X50^2)+(X51^2)+(X52^2))","v":76.491829629052546},{"$f":"Y26+Y27+Y28+Y50+Y51+Y52","v":344},{"$f":"SQRT((Z26^2)+(Z27^2)+(Z28^2)+(Z50^2)+(Z51^2)+(Z52^2))","v":92.956979296876895},{"$f":"AA26+AA27+AA28+AA50+AA51+AA52","v":299},{"$f":"SQRT((AB26^2)+(AB27^2)+(AB28^2)+(AB50^2)+(AB51^2)+(AB52^2))","v":68.512772531842558},{"$f":"AC26+AC27+AC28+AC50+AC51+AC52","v":252},{"$f":"SQRT((AD26^2)+(AD27^2)+(AD28^2)+(AD50^2)+(AD51^2)+(AD52^2))","v":51.146847410177685},{"$f":"AE26+AE27+AE28+AE50+AE51+AE52","v":121},{"$f":"SQRT((AF26^2)+(AF27^2)+(AF28^2)+(AF50^2)+(AF51^2)+(AF52^2))","v":35.185224171518364}]
[null,"Over 74 yrs. ",{"$f":"C29+C30+C31+C53+C54+C55","v":77},{"$f":"SQRT((D29^2)+(D30^2)+(D31^2)+(D53^2)+(D54^2)+(D55^2))","v":26.19160170741759},{"$f":"E29+E30+E31+E53+E54+E55","v":520},{"$f":"SQRT((F29^2)+(F30^2)+(F31^2)+(F53^2)+(F54^2)+(F55^2))","v":196.46373711196679},{"$f":"G29+G30+G31+G53+G54+G55","v":954},{"$f":"SQRT((H29^2)+(H30^2)+(H31^2)+(H53^2)+(H54^2)+(H55^2))","v":181.93955040067567},{"$f":"I29+I30+I31+I53+I54+I55","v":87},{"$f":"SQRT((J29^2)+(J30^2)+(J31^2)+(J53^2)+(J54^2)+(J55^2))","v":33.090784215548595},{"$f":"K29+K30+K31+K53+K54+K55","v":73},{"$f":"SQRT((L29^2)+(L30^2)+(L31^2)+(L53^2)+(L54^2)+(L55^2))","v":23.323807579381203},{"$f":"M29+M30+M31+M53+M54+M55","v":184},{"$f":"SQRT((N29^2)+(N30^2)+(N31^2)+(N53^2)+(N54^2)+(N55^2))","v":81.129526067887269},{"$f":"O29+O30+O31+O53+O54+O55","v":209},{"$f":"SQRT((P29^2)+(P30^2)+(P31^2)+(P53^2)+(P54^2)+(P55^2))","v":98.666103601996966},{"$f":"Q29+Q30+Q31+Q53+Q54+Q55","v":54},{"$f":"SQRT((R29^2)+(R30^2)+(R31^2)+(R53^2)+(R54^2)+(R55^2))","v":29.49576240750525},{"$f":"S29+S30+S31+S53+S54+S55","v":340},{"$f":"SQRT((T29^2)+(T30^2)+(T31^2)+(T53^2)+(T54^2)+(T55^2))","v":125.76963067449948},{"$f":"U29+U30+U31+U53+U54+U55","v":181},{"$f":"SQRT((V29^2)+(V30^2)+(V31^2)+(V53^2)+(V54^2)+(V55^2))","v":89.638161516175686},{"$f":"W29+W30+W31+W53+W54+W55","v":94},{"$f":"SQRT((X29^2)+(X30^2)+(X31^2)+(X53^2)+(X54^2)+(X55^2))","v":44.855322984011607},{"$f":"Y29+Y30+Y31+Y53+Y54+Y55","v":243},{"$f":"SQRT((Z29^2)+(Z30^2)+(Z31^2)+(Z53^2)+(Z54^2)+(Z55^2))","v":92.238820460801648},{"$f":"AA29+AA30+AA31+AA53+AA54+AA55","v":268},{"$f":"SQRT((AB29^2)+(AB30^2)+(AB31^2)+(AB53^2)+(AB54^2)+(AB55^2))","v":95.989582768131669},{"$f":"AC29+AC30+AC31+AC53+AC54+AC55","v":94},{"$f":"SQRT((AD29^2)+(AD30^2)+(AD31^2)+(AD53^2)+(AD54^2)+(AD55^2))","v":27.838821814150108},{"$f":"AE29+AE30+AE31+AE53+AE54+AE55","v":49},{"$f":"SQRT((AF29^2)+(AF30^2)+(AF31^2)+(AF53^2)+(AF54^2)+(AF55^2))","v":19.339079605813716}]
[]
[]
[]
[]
[]
[]
[]
[]
[]
[]
[]
[]
[]
[]
[]
[]
[]
[]
[]
[]
[]
[]
[]
[]
[]
[]
[]
[]
[]
[]
[]
[]
[]
[]
[]
[]
[]
[]
[]
[]
[]
[]
[]
[]
[]
[]
[]
[]
[]
[]
[]
[]
[]
[]
[]
[]
[]
[]
[]
[]
[]
[]
[]
[]
[]
[]
[]
[]
[]
[]
[]
[]
[]
[]
[]
[]
[null,"Calculated B01001. GENDER BY AGE"]
[null,"Universe:  TOTAL POPULATION"]
[null,"Data Set: 2010-2014 American Community Survey 5-Year Estimates"]
[]
[null,null,"Acworth",null,"Charlestown",null,"Claremont",null,"Cornish",null,"Croydon",null,"Goshen",null,"Grantham",null,"Langdon",null,"Lempster",null,"Newport",null,"Plainfield",null,"Springfield",null,"Sunapee",null,"Unity",null,"Washington"]
[null,null,"Estimate","Margin Of Error","Estimate","Margin Of Error","Estimate","Margin Of Error","Estimate","Margin Of Error","Estimate","Margin Of Error","Estimate","Margin Of Error","Estimate","Margin Of Error","Estimate","Margin Of Error","Estimate","Margin Of Error","Estimate","Margin Of Error","Estimate","Margin Of Error","Estimate","Margin Of Error","Estimate","Margin Of Error","Estimate","Margin Of Error","Estimate","Margin Of Error",null,null,null,null,null,null,null,null,null,null,"Estimate","Margin Of Error","Estimate","Margin Of Error","Estimate","Margin Of Error","Estimate","Margin Of Error","Estimate","Margin Of Error","Estimate","Margin Of Error","Estimate","Margin Of Error","Estimate","Margin Of Error","Estimate","Margin Of Error","Estimate","Margin Of Error","Estimate","Margin Of Error","Estimate","Margin Of Error","Estimate","Margin Of Error","Estimate","Margin Of Error","Estimate","Margin Of Error","Estimate","Margin Of Error","Estimate","Margin Of Error"]
[null,"Total",923,163,5047,16,13169,21,1601,179,651,140,821,127,2970,25,787,149,1089,147,6434,18,2518,166,1313,217,3363,30,1592,183,1013,140,null,null,null,null,null,null,null,null,null,null,1836,240,691,109,9401,30,4523,25,4542,22,4077,20,4471,16,7665,30,20557,24,10181,17,5177,23,29423,51,5822,18,8494,17,798,129,7214,17,13097,27]
[null,"Under 15 yrs.",170,56.488936969994398,785,187.14165757521761,2465,295.44373406792704,257,73.362115563824901,88,37.735924528226413,117,43.150898020782833,571,151.22830422906949,148,60.917977642072131,185,47.444704657105831,968,209.62347196819348,388,93.005376188691372,263,70.908391604943347,453,122.55610959882824,141,42.567593307585526,103,38.196858509568557,null,null,null,null,null,null,null,null,null,null,494,81.301906496711382,57,31.496031496047245,1693,285.04561038542585,828,148.2700239428051,806,181.48829163337231,872,182.65815065307106,1065,209.01913787976449,1654,321.3627234139019,3103,379.76045081077098,1825,268.4809117982133,843,191.59331929897763,5616,474.16558289272746,1367,216.84787294322257,1384,277.45089655648979,126,35.735136770411273,1616,233.79905902291395,2804,324.07097987940853]
[null,"15 to 24 yrs.",107,38.118237105091836,341,125.99206324209474,1685,247.49545450371406,203,53.329166503893532,64,33.97057550292606,83,34.799425282610628,227,99.674470151588963,107,42.555845661906424,103,46.75467891024384,669,189.19830866051632,375,89.788640706940214,143,55,303,110.37209792334292,214,59.958318855685071,101,46.086874487211652,null,null,null,null,null,null,null,null,null,null,223,172.78888853164142,69,199.83493188129046,1367,253.25678668102856,702,204.87313147409057,470,169.29264603047588,463,167.10176540060851,389,184.03260580668851,1007,235.0957251844448,2532,428.31530441953623,1325,247.69537742961614,554,266.4169664266899,3727,438.85874720688889,853,186.23372412106247,599,237.49526311065659,45,255.62472493872733,683,157.89870170460554,1542,275.31436577120343]
[null,"25 to 34 yrs.",114,40.914545090957567,668,177.06213598621247,1720,231.27905222911997,147,44.034077712607996,69,37.013511046643494,74,29,255,106.57391800998967,101,38.091993909481822,72,26.28687885618983,573,169.99117624159203,187,66.640828326184547,93,40.730823708832602,318,101.3064657363981,106,37.589892258425003,42,27.568097504180443,null,null,null,null,null,null,null,null,null,null,107,41.581245772583578,49,22.693611435820433,1640,258.80108191427638,466,115.90944741478151,541,149.70971912337555,470,143.90621946253748,590,148.32059870429327,576,188.09572031282372,3848,398.70415096911142,987,179.89163404672269,248,98.168222964460341,2750,379.13717834050516,569,136.58330791132568,793,226.31615055050756,90,121.64292005702592,520,148.81532179181013,1040,183.82328470571949]
[null,"35 to 44 yrs.",99,30.951575081084322,457,147.84789481084943,1507,209.16261616264032,121,37.027017163147235,108,38.897300677553446,70,29.698484809834994,408,115.75836902790225,124,40.323690307311907,183,51.96152422706632,968,255.46036874630866,235,59.143892330484981,271,68.949256703752795,458,135.4880068493149,208,57.01754116059373,168,39.408120990476064,null,null,null,null,null,null,null,null,null,null,330,63.482280992415511,78,33.136083051561783,1452,253.59613561724476,960,160.49299050114308,639,128.55349081219072,557,129.67266481413884,807,157.23867208800766,1034,181.09389829588406,2906,262.13355374694021,1864,257.27028588626399,685,144.33987668000827,4851,401.55946010522524,1013,169.94999264489539,1509,269.06504789734396,133,38.183766184073569,1389,228.34184898962346,2212,254.6644851564505]
[null,"45 to 54 yrs.",139,36.304269721342692,1104,229.68021246942453,2014,238.04831442377406,282,53.1883445878888,95,30.14962686336267,158,39.534794801541594,349,102.23991392797629,97,28.670542373662901,184,42.661458015403085,936,198.74858490062263,448,89.944427287075428,207,55.982140009113621,470,121.23530838827442,320,61.497967446087195,170,44.48595283907045,null,null,null,null,null,null,null,null,null,null,414,68.753181744556372,131,38.974350539810153,1322,190.84810714282708,764,154.463587942272,834,144.08677940741129,657,128.46400274006723,730,146.78555787270082,1500,232.25632391820895,3292,333.37816365203048,1820,247.78014448296699,1013,196.22945752358385,5289,423.48317558080157,1254,191.15961916681044,1256,257.17309346041628,142,28.0178514522438,1370,211.72859986312668,2167,238.62522917746983]
[null,"55 to 64 yrs.",142,34.727510708370673,759,171.81094260843807,1682,240.21448748982647,396,60.893349390553318,145,33.808283008753932,177,37.376463182061514,568,123.5677951571525,84,21.071307505705477,204,46.065171225124082,1127,206.3928293328041,489,84.911718861415125,170,46.086874487211652,550,145.78065715313537,291,57.749458871923643,182,45.694638635183452,null,null,null,null,null,null,null,null,null,null,157,41.340053217188775,159,44.50842616853577,1031,198.38094666575216,445,115.26057435220423,560,107.25670142233538,596,138.30039768561767,523,119.00420160649792,998,192.97668252926312,2056,252.91105155765732,1443,242.30971916124207,905,185.68791021496256,3277,323.2723310151984,407,93.300589494386372,1265,256.59111442136884,139,41.928510586473259,991,195.94386951369518,2009,263.51470547200967]
[null,"65 to 74 yrs.",105,33.361654635224554,573,177.2766200038798,1121,181.38081486199141,142,40.792156108742276,55,18.734993995195193,75,29.512709126747414,262,82.649863883735463,87,26.153393661244042,85,29.171904291629644,712,200.73365437813362,297,70.334913094422745,120,38.948684188300895,436,126.28143173087641,128,37.269290307168447,161,33.734255586865999,null,null,null,null,null,null,null,null,null,null,75,20.928449536456348,94,33.045423283716609,543,136.24243098242192,185,139.30900904105232,328,94.609724658726279,214,70.562029449272501,252,70.753091805234916,349,152.34500319997372,1277,209.12914670126688,601,143.80542409798039,405,129.38315191708693,2049,254.22234362856463,298,106,899,186.66011893278113,41,15.066519173319364,370,111.74972035759194,892,192.05467971387731]
[null,"Over 74 yrs. ",47,19.949937343260004,360,140.29611541307906,975,147.99662158306182,53,19.874606914351791,27,21.330729007701542,67,23.151673805580451,330,100.98514742277698,39,19.949937343260004,73,29.866369046136157,481,139.26593266122194,99,35.312887166019152,46,23.979157616563597,375,110.28145809699834,184,77.865268252283059,86,28.035691537752374,null,null,null,null,null,null,null,null,null,null,36,115.35163631262454,54,20.760539492026695,353,110.75197515168747,173,182.3567931281969,364,97.596106479715672,248,86.804377769787621,115,127.23993083933989,547,176.78518037437414,1543,223.98660674245681,316,98.427638394914254,524,137.08391590555036,1864,256.32791498391276,61,168.54079624826744,789,180.94197965093673,82,119.05040949110591,275,101.70054080485511,431,183.61917111238685]
[]
[]
[]
[]
[]
[]
[]
[]
[]
[]
[]
[]
[]
[]
[]
[]
[]
[]
[]
[]
[]
[]
[]
[]
[]
[]
[]
[]
[]
[]
[]
[]
[]
[]
[]
[]
[]
[]
[]
[]
[]
[]
[]
[]
[]
[]
[]
[]
[]
[]
[]
[]
[]
[]
[]
[]
[]
[]
[]
[]
[]
[]
[]
[]
[]
[]
[]
[]
[]
[]
[]
[]
[]
[]
[]
[]
[null,"Calculated B01001. GENDER BY AGE"]
[null,"Universe:  TOTAL POPULATION"]
[null,"Data Set: 2005-2009 American Community Survey 5-Year Estimates"]
[]
[null,null,"Acworth",null,"Charlestown",null,"Claremont",null,"Cornish",null,"Croydon",null,"Goshen",null,"Grantham",null,"Langdon",null,"Lempster",null,"Newport",null,"Plainfield",null,"Springfield",null,"Sunapee",null,"Unity",null,"Washington"]
[null,null,"Estimate","Margin Of Error","Estimate","Margin Of Error","Estimate","Margin Of Error","Estimate","Margin Of Error","Estimate","Margin Of Error","Estimate","Margin Of Error","Estimate","Margin Of Error","Estimate","Margin Of Error","Estimate","Margin Of Error","Estimate","Margin Of Error","Estimate","Margin Of Error","Estimate","Margin Of Error","Estimate","Margin Of Error","Estimate","Margin Of Error","Estimate","Margin Of Error"]
[null,"Total",822,164,4872,23,13086,27,1750,201,759,129,913,149,2516,18,586,170,1148,165,6500,17,2535,256,836,152,3352,40,1703,241,1263,169]
[null,"Under 15 yrs.",63,117.26892171415238,851,178.77080298527497,2468,318.17290896617834,283,72.145685941711022,130,123.3531515608742,171,53.469617541179403,378,91.689694077360727,112,47.042533945356304,199,57.965506984757752,1142,219.41285285962624,434,84.658136053187462,190,49.719211578624211,604,139.62449641807129,261,81.6333265278342,181,54.157178656204017]
[null,"15 to 24 yrs.",80,201.31567251458591,485,219.59963570097287,1262,229.61053982777011,270,174.9028301657809,69,231.41737186304749,86,200.93282459568422,197,207.65837329614234,59,256.92800548013446,116,203.97058611476314,1334,294.33824080469054,233,211.75221368382432,43,199.08289730662452,411,207.04588863341382,190,131.60927019021113,126,122.02868515230344]
[null,"25 to 34 yrs.",81,60.456596000767362,812,184.61310896033359,1752,213.53219897710977,101,41.773197148410844,64,33.196385345395662,132,47.528938553264581,156,56.524331044250317,69,36.207733980463345,105,37.215588131856791,538,147.03060905811415,180,63.647466563878254,53,116.93160394008115,346,127.12592182556632,115,121,74,32.480763537823428]
[null,"35 to 44 yrs.",97,38.548670534792763,557,168.41912005470164,2106,305.90521407782512,351,83.378654342703328,128,45.310043036836767,58,119.7956593537512,403,91.700599779936013,37,163.46865142895135,207,63,775,186.52345696989428,490,91.098847413125924,188,58.728187440104094,235,90.233031645844633,225,63.882705014737752,191,55.785302723925412]
[null,"45 to 54 yrs.",172,51.117511676528231,921,186.36254988596824,1697,233.33023807470818,271,60.282667492406141,150,42.2729227756965,228,54.981815175565096,380,88.079509535419191,107,47.201694884823787,291,58.932164392630277,1024,184.79448043705202,451,95.031573700533869,162,45.4972526643093,634,128.18346227185472,240,63.103090257133999,196,52.354560450833695]
[null,"55 to 64 yrs.",116,119.90412836929345,720,169.89997057092151,1627,231.30715509901546,271,59.312730505347666,105,37.749172176353746,105,33.451457367355459,407,96.622978633449307,121,50.547007824400445,104,29.983328701129899,623,144.14922823241199,474,99.070681838776096,100,36,436,130.67516979135706,356,84.498520697110436,214,48.877397639399746]
[null,"65 to 74 yrs.",153,65.238025721200358,239,147.05101155721439,1021,174.86852203870197,127,39.686269665968858,67,21.095023109728988,89,37.802116342871599,335,93.322023124233652,53,117.17934971657762,82,24.939927826679853,474,121.25592769015459,155,51.088159097779204,62,117.41805653305627,364,152.2136656151477,182,64.03905058634146,193,46.195237849804386]
[null,"Over 74 yrs. ",60,123.25988804148737,287,102.32301793829187,1153,203.15019074566482,76,31.859064644147981,46,162.54537827942079,44,162.47461340160191,260,77.562877718661269,28,198.82152800941853,44,22.06807649071391,590,149.79652866471906,118,170.23513150933329,38,20.024984394500787,322,105.1094667477673,134,134.80726983364065,88,31.843366656181317]

{"sheet":"ACS_Table_B01002","index":34,"n_rows":49,"n_cols":32,"rows_kept":49,"cut":false,"hidden":true,"merged":[[64918,24,64918,25],[64918,26,64918,27],[64918,28,64918,29],[64918,30,64918,31],[64918,32,64918,33],[64918,34,64918,35],[64918,36,64918,37],[64918,38,64918,39],[64918,40,64918,41],[64918,42,64918,43],[64918,44,64918,45],[64918,46,64918,47],[64918,48,64918,49],[64918,50,64918,51],[64918,52,64918,53],[64918,54,64918,55],[64918,56,64918,57],[64918,58,64918,59],[64918,60,64918,61],[64918,62,64918,63],[64918,64,64918,65],[64918,66,64918,67],[64918,68,64918,69],[64918,70,64918,71],[64918,72,64918,73],[64918,74,64918,75],[64938,24,64938,25],[64938,26,64938,27],[64938,28,64938,29],[64938,30,64938,31],[64938,32,64938,33],[64938,34,64938,35],[64938,36,64938,37],[64938,38,64938,39],[64938,40,64938,41],[64938,42,64938,43],[64938,44,64938,45],[64938,46,64938,47],[64938,48,64938,49],[64938,50,64938,51],[64938,52,64938,53],[64938,54,64938,55],[64938,56,64938,57],[64938,58,64938,59],[64938,60,64938,61],[64938,62,64938,63],[64938,72,64938,73],[64938,74,64938,75],[64938,64,64938,65],[64938,66,64938,67],[64938,68,64938,69],[64938,70,64938,71],[64836,24,64836,25],[64836,26,64836,27],[64836,28,64836,29],[64836,30,64836,31],[64836,32,64836,33],[64836,34,64836,35],[64836,36,64836,37],[64836,38,64836,39],[64836,40,64836,41],[64836,42,64836,43],[64836,44,64836,45],[64836,46,64836,47],[64836,48,64836,49],[64836,50,64836,51],[64836,52,64836,53],[64836,54,64836,55],[64836,56,64836,57],[64836,58,64836,59],[64836,60,64836,61],[64836,62,64836,63],[64836,64,64836,65],[64836,66,64836,67],[64836,68,64836,69],[64836,70,64836,71],[64836,72,64836,73],[64836,74,64836,75],[64856,24,64856,25],[64856,26,64856,27],[64856,28,64856,29],[64856,30,64856,31],[64856,32,64856,33],[64856,34,64856,35],[64856,36,64856,37],[64856,38,64856,39],[64856,40,64856,41],[64856,42,64856,43],[64856,44,64856,45],[64856,46,64856,47],[64856,48,64856,49],[64856,50,64856,51],[64856,52,64856,53],[64856,54,64856,55],[64856,56,64856,57],[64856,58,64856,59],[64856,60,64856,61],[64856,62,64856,63],[64856,64,64856,65],[64856,66,64856,67],[64856,68,64856,69],[64856,70,64856,71],[64856,72,64856,73],[64856,74,64856,75],[64754,24,64754,25],[64754,26,64754,27],[64754,28,64754,29],[64754,30,64754,31],[64754,32,64754,33],[64754,34,64754,35],[64754,36,64754,37],[64754,38,64754,39],[64754,40,64754,41],[64754,42,64754,43],[64754,44,64754,45],[64754,46,64754,47],[64754,48,64754,49],[64754,50,64754,51],[64754,52,64754,53],[64754,54,64754,55],[64754,56,64754,57],[64754,58,64754,59],[64754,60,64754,61],[64754,62,64754,63],[64754,64,64754,65],[64754,66,64754,67],[64754,68,64754,69],[64754,70,64754,71],[64754,72,64754,73],[64754,74,64754,75],[64774,24,64774,25],[64774,26,64774,27],[64774,28,64774,29],[64774,30,64774,31],[64774,32,64774,33],[64774,34,64774,35],[64774,36,64774,37],[64774,38,64774,39],[64774,40,64774,41],[64774,42,64774,43],[64774,44,64774,45],[64774,46,64774,47],[64774,48,64774,49],[64774,50,64774,51],[64774,52,64774,53],[64774,54,64774,55],[64774,56,64774,57],[64774,58,64774,59],[64774,60,64774,61],[64774,62,64774,63],[64774,64,64774,65],[64774,66,64774,67],[64774,68,64774,69],[64774,70,64774,71],[64774,72,64774,73],[64774,74,64774,75],[64672,24,64672,25],[64672,26,64672,27],[64672,28,64672,29],[64672,30,64672,31],[64672,32,64672,33],[64672,34,64672,35],[64672,36,64672,37],[64672,38,64672,39],[64672,40,64672,41],[64672,42,64672,43],[64672,44,64672,45],[64672,46,64672,47],[64672,48,64672,49],[64672,50,64672,51],[64672,52,64672,53],[64672,54,64672,55],[64672,56,64672,57],[64672,58,64672,59],[64672,60,64672,61],[64672,62,64672,63],[64672,64,64672,65],[64672,66,64672,67],[64672,68,64672,69],[64672,70,64672,71],[64672,72,64672,73],[64672,74,64672,75],[64692,24,64692,25],[64692,26,64692,27],[64692,28,64692,29],[64692,30,64692,31],[64692,32,64692,33],[64692,34,64692,35],[64692,36,64692,37],[64692,38,64692,39],[64692,40,64692,41],[64692,42,64692,43],[64692,44,64692,45],[64692,46,64692,47],[64692,48,64692,49],[64692,50,64692,51],[64692,52,64692,53],[64692,54,64692,55],[64692,56,64692,57],[64692,58,64692,59],[64692,60,64692,61],[64692,62,64692,63],[64692,64,64692,65],[64692,66,64692,67],[64692,68,64692,69],[64692,70,64692,71],[64692,72,64692,73],[64692,74,64692,75],[64590,24,64590,25],[64590,26,64590,27],[64590,28,64590,29],[64590,30,64590,31],[64590,32,64590,33],[64590,34,64590,35],[64590,36,64590,37],[64590,38,64590,39],[64590,40,64590,41],[64590,42,64590,43],[64590,44,64590,45],[64590,46,64590,47],[64590,48,64590,49],[64590,50,64590,51],[64590,52,64590,53],[64590,54,64590,55],[64590,56,64590,57],[64590,58,64590,59],[64590,60,64590,61],[64590,62,64590,63],[64590,64,64590,65],[64590,66,64590,67],[64590,68,64590,69],[64590,70,64590,71],[64590,72,64590,73],[64590,74,64590,75],[64610,24,64610,25],[64610,26,64610,27],[64610,28,64610,29],[64610,30,64610,31],[64610,32,64610,33],[64610,34,64610,35],[64610,36,64610,37],[64610,38,64610,39],[64610,40,64610,41],[64610,42,64610,43],[64610,44,64610,45],[64610,46,64610,47],[64610,48,64610,49],[64610,50,64610,51],[64610,52,64610,53],[64610,54,64610,55],[64610,56,64610,57],[64610,58,64610,59],[64610,60,64610,61],[64610,62,64610,63],[64610,64,64610,65],[64610,66,64610,67],[64610,68,64610,69],[64610,70,64610,71],[64610,72,64610,73],[64610,74,64610,75],[64508,24,64508,25],[64508,26,64508,27],[64508,28,64508,29],[64508,30,64508,31],[64508,32,64508,33],[64508,34,64508,35],[64508,36,64508,37],[64508,38,64508,39],[64508,40,64508,41],[64508,42,64508,43],[64508,44,64508,45],[64508,46,64508,47],[64508,48,64508,49],[64508,50,64508,51],[64508,52,64508,53],[64508,54,64508,55],[64508,56,64508,57],[64508,58,64508,59],[64508,60,64508,61],[64508,62,64508,63],[64508,64,64508,65],[64508,66,64508,67],[64508,68,64508,69],[64508,70,64508,71],[64508,72,64508,73],[64508,74,64508,75],[64528,24,64528,25],[64528,26,64528,27],[64528,28,64528,29],[64528,30,64528,31],[64528,32,64528,33],[64528,34,64528,35],[64528,36,64528,37],[64528,38,64528,39],[64528,40,64528,41],[64528,42,64528,43],[64528,44,64528,45],[64528,46,64528,47],[64528,48,64528,49],[64528,50,64528,51],[64528,52,64528,53],[64528,54,64528,55],[64528,56,64528,57],[64528,58,64528,59],[64528,60,64528,61],[64528,62,64528,63],[64528,64,64528,65],[64528,66,64528,67],[64528,68,64528,69],[64528,70,64528,71],[64528,72,64528,73],[64528,74,64528,75],[64426,24,64426,25],[64426,26,64426,27],[64426,28,64426,29],[64426,30,64426,31],[64426,32,64426,33],[64426,34,64426,35],[64426,36,64426,37],[64426,38,64426,39],[64426,40,64426,41],[64426,42,64426,43],[64426,44,64426,45],[64426,46,64426,47],[64426,48,64426,49],[64426,50,64426,51],[64426,52,64426,53],[64426,54,64426,55],[64426,56,64426,57],[64426,58,64426,59],[64426,60,64426,61],[64426,62,64426,63],[64426,64,64426,65],[64426,66,64426,67],[64426,68,64426,69],[64426,70,64426,71],[64426,72,64426,73],[64426,74,64426,75],[64446,24,64446,25],[64446,26,64446,27],[64446,28,64446,29],[64446,30,64446,31],[64446,32,64446,33],[64446,34,64446,35],[64446,36,64446,37],[64446,38,64446,39],[64446,40,64446,41],[64446,42,64446,43],[64446,44,64446,45],[64446,46,64446,47],[64446,48,64446,49],[64446,50,64446,51],[64446,52,64446,53],[64446,54,64446,55],[64446,56,64446,57],[64446,58,64446,59],[64446,60,64446,61],[64446,62,64446,63],[64446,64,64446,65],[64446,66,64446,67],[64446,68,64446,69],[64446,70,64446,71],[64446,72,64446,73],[64446,74,64446,75],[64344,24,64344,25],[64344,26,64344,27],[64344,28,64344,29],[64344,30,64344,31],[64344,32,64344,33],[64344,34,64344,35],[64344,36,64344,37],[64344,38,64344,39],[64344,40,64344,41],[64344,42,64344,43],[64344,44,64344,45],[64344,46,64344,47],[64344,48,64344,49],[64344,50,64344,51],[64344,52,64344,53],[64344,54,64344,55],[64344,56,64344,57],[64344,58,64344,59],[64344,60,64344,61],[64344,62,64344,63],[64344,64,64344,65],[64344,66,64344,67],[64344,68,64344,69],[64344,70,64344,71],[64344,72,64344,73],[64344,74,64344,75],[64364,24,64364,25],[64364,26,64364,27],[64364,28,64364,29],[64364,30,64364,31],[64364,32,64364,33],[64364,34,64364,35],[64364,36,64364,37],[64364,38,64364,39],[64364,40,64364,41],[64364,42,64364,43],[64364,44,64364,45],[64364,46,64364,47],[64364,48,64364,49],[64364,50,64364,51],[64364,52,64364,53],[64364,54,64364,55],[64364,56,64364,57],[64364,58,64364,59],[64364,60,64364,61],[64364,62,64364,63],[64364,64,64364,65],[64364,66,64364,67],[64364,68,64364,69],[64364,70,64364,71],[64364,72,64364,73],[64364,74,64364,75],[64262,24,64262,25],[64262,26,64262,27],[64262,28,64262,29],[64262,30,64262,31],[64262,32,64262,33],[64262,34,64262,35],[64262,36,64262,37],[64262,38,64262,39],[64262,40,64262,41],[64262,42,64262,43],[64262,44,64262,45],[64262,46,64262,47],[64262,48,64262,49],[64262,50,64262,51],[64262,52,64262,53],[64262,54,64262,55],[64262,56,64262,57],[64262,58,64262,59],[64262,60,64262,61],[64262,62,64262,63],[64262,64,64262,65],[64262,66,64262,67],[64262,68,64262,69],[64262,70,64262,71],[64262,72,64262,73],[64262,74,64262,75],[64282,24,64282,25],[64282,26,64282,27],[64282,28,64282,29],[64282,30,64282,31],[64282,32,64282,33],[64282,34,64282,35],[64282,36,64282,37],[64282,38,64282,39],[64282,40,64282,41],[64282,42,64282,43],[64282,44,64282,45],[64282,46,64282,47],[64282,48,64282,49],[64282,50,64282,51],[64282,52,64282,53],[64282,54,64282,55],[64282,56,64282,57],[64282,58,64282,59],[64282,60,64282,61],[64282,62,64282,63],[64282,64,64282,65],[64282,66,64282,67],[64282,68,64282,69],[64282,70,64282,71],[64282,72,64282,73],[64282,74,64282,75],[64180,24,64180,25],[64180,26,64180,27],[64180,28,64180,29],[64180,30,64180,31],[64180,32,64180,33],[64180,34,64180,35],[64180,36,64180,37],[64180,38,64180,39],[64180,40,64180,41],[64180,42,64180,43],[64180,44,64180,45],[64180,46,64180,47],[64180,48,64180,49],[64180,50,64180,51],[64180,52,64180,53],[64180,54,64180,55],[64180,56,64180,57],[64180,58,64180,59],[64180,60,64180,61],[64180,62,64180,63],[64180,64,64180,65],[64180,66,64180,67],[64180,68,64180,69],[64180,70,64180,71],[64180,72,64180,73],[64180,74,64180,75],[64200,24,64200,25],[64200,26,64200,27],[64200,28,64200,29],[64200,30,64200,31],[64200,32,64200,33],[64200,34,64200,35],[64200,36,64200,37],[64200,38,64200,39],[64200,40,64200,41],[64200,42,64200,43],[64200,44,64200,45],[64200,46,64200,47],[64200,48,64200,49],[64200,50,64200,51],[64200,52,64200,53],[64200,54,64200,55],[64200,56,64200,57],[64200,58,64200,59],[64200,60,64200,61],[64200,62,64200,63],[64200,64,64200,65],[64200,66,64200,67],[64200,68,64200,69],[64200,70,64200,71],[64200,72,64200,73],[64200,74,64200,75],[64098,24,64098,25],[64098,26,64098,27],[64098,28,64098,29],[64098,30,64098,31],[64098,32,64098,33],[64098,34,64098,35],[64098,36,64098,37],[64098,38,64098,39],[64098,40,64098,41],[64098,42,64098,43],[64098,44,64098,45],[64098,46,64098,47],[64098,48,64098,49],[64098,50,64098,51],[64098,52,64098,53],[64098,54,64098,55],[64098,56,64098,57],[64098,58,64098,59],[64098,60,64098,61],[64098,62,64098,63],[64098,64,64098,65],[64098,66,64098,67],[64098,68,64098,69],[64098,70,64098,71],[64098,72,64098,73],[64098,74,64098,75],[64118,24,64118,25],[64118,26,64118,27],[64118,28,64118,29],[64118,30,64118,31],[64118,32,64118,33],[64118,34,64118,35],[64118,36,64118,37],[64118,38,64118,39],[64118,40,64118,41],[64118,42,64118,43],[64118,44,64118,45],[64118,46,64118,47],[64118,48,64118,49],[64118,50,64118,51],[64118,52,64118,53],[64118,54,64118,55],[64118,56,64118,57],[64118,58,64118,59],[64118,60,64118,61],[64118,62,64118,63],[64118,64,64118,65],[64118,66,64118,67],[64118,68,64118,69],[64118,70,64118,71],[64118,72,64118,73],[64118,74,64118,75],[64016,24,64016,25],[64016,26,64016,27],[64016,28,64016,29],[64016,30,64016,31],[64016,32,64016,33],[64016,34,64016,35],[64016,36,64016,37],[64016,38,64016,39],[64016,40,64016,41],[64016,42,64016,43],[64016,44,64016,45],[64016,46,64016,47],[64016,48,64016,49],[64016,50,64016,51],[64016,52,64016,53],[64016,54,64016,55],[64016,56,64016,57],[64016,58,64016,59],[64016,60,64016,61],[64016,62,64016,63],[64016,64,64016,65],[64016,66,64016,67],[64016,68,64016,69],[64016,70,64016,71],[64016,72,64016,73],[64016,74,64016,75],[64036,24,64036,25],[64036,26,64036,27],[64036,28,64036,29],[64036,30,64036,31],[64036,32,64036,33],[64036,34,64036,35],[64036,36,64036,37],[64036,38,64036,39],[64036,40,64036,41],[64036,42,64036,43],[64036,44,64036,45],[64036,46,64036,47],[64036,48,64036,49],[64036,50,64036,51],[64036,52,64036,53],[64036,54,64036,55],[64036,56,64036,57],[64036,58,64036,59],[64036,60,64036,61],[64036,62,64036,63],[64036,64,64036,65],[64036,66,64036,67],[64036,68,64036,69],[64036,70,64036,71],[64036,72,64036,73],[64036,74,64036,75],[63934,24,63934,25],[63934,26,63934,27],[63934,28,63934,29],[63934,30,63934,31],[63934,32,63934,33],[63934,34,63934,35],[63934,36,63934,37],[63934,38,63934,39],[63934,40,63934,41],[63934,42,63934,43],[63934,44,63934,45],[63934,46,63934,47],[63934,48,63934,49],[63934,50,63934,51],[63934,52,63934,53],[63934,54,63934,55],[63934,56,63934,57],[63934,58,63934,59],[63934,60,63934,61],[63934,62,63934,63],[63934,64,63934,65],[63934,66,63934,67],[63934,68,63934,69],[63934,70,63934,71],[63934,72,63934,73],[63934,74,63934,75],[63954,24,63954,25],[63954,26,63954,27],[63954,28,63954,29],[63954,30,63954,31],[63954,32,63954,33],[63954,34,63954,35],[63954,36,63954,37],[63954,38,63954,39],[63954,40,63954,41],[63954,42,63954,43],[63954,44,63954,45],[63954,46,63954,47],[63954,48,63954,49],[63954,50,63954,51],[63954,52,63954,53],[63954,54,63954,55],[63954,56,63954,57],[63954,58,63954,59],[63954,60,63954,61],[63954,62,63954,63],[63954,64,63954,65],[63954,66,63954,67],[63954,68,63954,69],[63954,70,63954,71],[63954,72,63954,73],[63954,74,63954,75],[63852,24,63852,25],[63852,26,63852,27],[63852,28,63852,29],[63852,30,63852,31],[63852,32,63852,33],[63852,34,63852,35],[63852,36,63852,37],[63852,38,63852,39],[63852,40,63852,41],[63852,42,63852,43],[63852,44,63852,45],[63852,46,63852,47],[63852,48,63852,49],[63852,50,63852,51],[63852,52,63852,53],[63852,54,63852,55],[63852,56,63852,57],[63852,58,63852,59],[63852,60,63852,61],[63852,62,63852,63],[63852,64,63852,65],[63852,66,63852,67],[63852,68,63852,69],[63852,70,63852,71],[63852,72,63852,73],[63852,74,63852,75],[63872,24,63872,25],[63872,26,63872,27],[63872,28,63872,29],[63872,30,63872,31],[63872,32,63872,33],[63872,34,63872,35],[63872,36,63872,37],[63872,38,63872,39],[63872,40,63872,41],[63872,42,63872,43],[63872,44,63872,45],[63872,46,63872,47],[63872,48,63872,49],[63872,50,63872,51],[63872,52,63872,53],[63872,54,63872,55],[63872,56,63872,57],[63872,58,63872,59],[63872,60,63872,61],[63872,62,63872,63],[63872,64,63872,65],[63872,66,63872,67],[63872,68,63872,69],[63872,70,63872,71],[63872,72,63872,73],[63872,74,63872,75],[63770,24,63770,25],[63770,26,63770,27],[63770,28,63770,29],[63770,30,63770,31],[63770,32,63770,33],[63770,34,63770,35],[63770,36,63770,37],[63770,38,63770,39],[63770,40,63770,41],[63770,42,63770,43],[63770,44,63770,45],[63770,46,63770,47],[63770,48,63770,49],[63770,50,63770,51],[63770,52,63770,53],[63770,54,63770,55],[63770,56,63770,57],[63770,58,63770,59],[63770,60,63770,61],[63770,62,63770,63],[63770,64,63770,65],[63770,66,63770,67],[63770,68,63770,69],[63770,70,63770,71],[63770,72,63770,73],[63770,74,63770,75],[63790,24,63790,25],[63790,26,63790,27],[63790,28,63790,29],[63790,30,63790,31],[63790,32,63790,33],[63790,34,63790,35],[63790,36,63790,37],[63790,38,63790,39],[63790,40,63790,41],[63790,42,63790,43],[63790,44,63790,45],[63790,46,63790,47],[63790,48,63790,49],[63790,50,63790,51],[63790,52,63790,53],[63790,54,63790,55],[63790,56,63790,57],[63790,58,63790,59],[63790,60,63790,61],[63790,62,63790,63],[63790,64,63790,65],[63790,66,63790,67],[63790,68,63790,69],[63790,70,63790,71],[63790,72,63790,73],[63790,74,63790,75],[63688,24,63688,25],[63688,26,63688,27],[63688,28,63688,29],[63688,30,63688,31],[63688,32,63688,33],[63688,34,63688,35],[63688,36,63688,37],[63688,38,63688,39],[63688,40,63688,41],[63688,42,63688,43],[63688,44,63688,45],[63688,46,63688,47],[63688,48,63688,49],[63688,50,63688,51],[63688,52,63688,53],[63688,54,63688,55],[63688,56,63688,57],[63688,58,63688,59],[63688,60,63688,61],[63688,62,63688,63],[63688,64,63688,65],[63688,66,63688,67],[63688,68,63688,69],[63688,70,63688,71],[63688,72,63688,73],[63688,74,63688,75],[63708,24,63708,25],[63708,26,63708,27],[63708,28,63708,29],[63708,30,63708,31],[63708,32,63708,33],[63708,34,63708,35],[63708,36,63708,37],[63708,38,63708,39],[63708,40,63708,41],[63708,42,63708,43],[63708,44,63708,45],[63708,46,63708,47],[63708,48,63708,49],[63708,50,63708,51],[63708,52,63708,53],[63708,54,63708,55],[63708,56,63708,57],[63708,58,63708,59],[63708,60,63708,61],[63708,62,63708,63],[63708,64,63708,65],[63708,66,63708,67],[63708,68,63708,69],[63708,70,63708,71],[63708,72,63708,73],[63708,74,63708,75],[63606,24,63606,25],[63606,26,63606,27],[63606,28,63606,29],[63606,30,63606,31],[63606,32,63606,33],[63606,34,63606,35],[63606,36,63606,37],[63606,38,63606,39],[63606,40,63606,41],[63606,42,63606,43],[63606,44,63606,45],[63606,46,63606,47],[63606,48,63606,49],[63606,50,63606,51],[63606,52,63606,53],[63606,54,63606,55],[63606,56,63606,57],[63606,58,63606,59],[63606,60,63606,61],[63606,62,63606,63],[63606,64,63606,65],[63606,66,63606,67],[63606,68,63606,69],[63606,70,63606,71],[63606,72,63606,73],[63606,74,63606,75],[63626,24,63626,25],[63626,26,63626,27],[63626,28,63626,29],[63626,30,63626,31],[63626,32,63626,33],[63626,34,63626,35],[63626,36,63626,37],[63626,38,63626,39],[63626,40,63626,41],[63626,42,63626,43],[63626,44,63626,45],[63626,46,63626,47],[63626,48,63626,49],[63626,50,63626,51],[63626,52,63626,53],[63626,54,63626,55],[63626,56,63626,57],[63626,58,63626,59],[63626,60,63626,61],[63626,62,63626,63],[63626,64,63626,65],[63626,66,63626,67],[63626,68,63626,69],[63626,70,63626,71],[63626,72,63626,73],[63626,74,63626,75],[63524,24,63524,25],[63524,26,63524,27],[63524,28,63524,29],[63524,30,63524,31],[63524,32,63524,33],[63524,34,63524,35],[63524,36,63524,37],[63524,38,63524,39],[63524,40,63524,41],[63524,42,63524,43],[63524,44,63524,45],[63524,46,63524,47],[63524,48,63524,49],[63524,50,63524,51],[63524,52,63524,53],[63524,54,63524,55],[63524,56,63524,57],[63524,58,63524,59],[63524,60,63524,61],[63524,62,63524,63],[63524,64,63524,65],[63524,66,63524,67],[63524,68,63524,69],[63524,70,63524,71],[63524,72,63524,73],[63524,74,63524,75],[63544,24,63544,25],[63544,26,63544,27],[63544,28,63544,29],[63544,30,63544,31],[63544,32,63544,33],[63544,34,63544,35],[63544,36,63544,37],[63544,38,63544,39],[63544,40,63544,41],[63544,42,63544,43],[63544,44,63544,45],[63544,46,63544,47],[63544,48,63544,49],[63544,50,63544,51],[63544,52,63544,53],[63544,54,63544,55],[63544,56,63544,57],[63544,58,63544,59],[63544,60,63544,61],[63544,62,63544,63],[63544,64,63544,65],[63544,66,63544,67],[63544,68,63544,69],[63544,70,63544,71],[63544,72,63544,73],[63544,74,63544,75],[63442,24,63442,25],[63442,26,63442,27],[63442,28,63442,29],[63442,30,63442,31],[63442,32,63442,33],[63442,34,63442,35],[63442,36,63442,37],[63442,38,63442,39],[63442,40,63442,41],[63442,42,63442,43],[63442,44,63442,45],[63442,46,63442,47],[63442,48,63442,49],[63442,50,63442,51],[63442,52,63442,53],[63442,54,63442,55],[63442,56,63442,57],[63442,58,63442,59],[63442,60,63442,61],[63442,62,63442,63],[63442,64,63442,65],[63442,66,63442,67],[63442,68,63442,69],[63442,70,63442,71],[63442,72,63442,73],[63442,74,63442,75],[63462,24,63462,25],[63462,26,63462,27],[63462,28,63462,29],[63462,30,63462,31],[63462,32,63462,33],[63462,34,63462,35],[63462,36,63462,37],[63462,38,63462,39],[63462,40,63462,41],[63462,42,63462,43],[63462,44,63462,45],[63462,46,63462,47],[63462,48,63462,49],[63462,50,63462,51],[63462,52,63462,53],[63462,54,63462,55],[63462,56,63462,57],[63462,58,63462,59],[63462,60,63462,61],[63462,62,63462,63],[63462,64,63462,65],[63462,66,63462,67],[63462,68,63462,69],[63462,70,63462,71],[63462,72,63462,73],[63462,74,63462,75],[63360,24,63360,25],[63360,26,63360,27],[63360,28,63360,29],[63360,30,63360,31],[63360,32,63360,33],[63360,34,63360,35],[63360,36,63360,37],[63360,38,63360,39],[63360,40,63360,41],[63360,42,63360,43],[63360,44,63360,45],[63360,46,63360,47]],"merged_total":58608,"flags":["merged_cut"]}
[null,"B01001. GENDER BY AGE"]
[null,"Universe:  TOTAL POPULATION, Median Age"]
[null,"Data Set: 2015-2019 American Community Survey 5-Year Estimates"]
[]
[null,null,"Acworth",null,"Charlestown",null,"Claremont",null,"Cornish",null,"Croydon",null,"Goshen",null,"Grantham",null,"Langdon",null,"Lempster",null,"Newport",null,"Plainfield",null,"Springfield",null,"Sunapee",null,"Unity",null,"Washington"]
[null,null,"Estimate","Margin Of Error","Estimate","Margin Of Error","Estimate","Margin Of Error","Estimate","Margin Of Error","Estimate","Margin Of Error","Estimate","Margin Of Error","Estimate","Margin Of Error","Estimate","Margin Of Error","Estimate","Margin Of Error","Estimate","Margin Of Error","Estimate","Margin Of Error","Estimate","Margin Of Error","Estimate","Margin Of Error","Estimate","Margin Of Error","Estimate","Margin Of Error"]
[null,"Total:",57.1,2.8,47.9,6.7,41.7,3.1,54.1,5.4,45.8,10.199999999999999,46.5,6.1,50.5,2.2000000000000002,44.4,12.3,47.5,5.5,44.1,4.5,45.2,7.3,50.6,6.7,44.6,8,56.1,3.2,52.2,6]
[null,"Male:",56.2,3.2,45.4,12.1,38.700000000000003,4.5999999999999996,50.4,9.6999999999999993,49.9,8.8000000000000007,46.6,6,49.7,2.1,42.1,13.6,47.7,2.2999999999999998,41.4,10,45.8,9.8000000000000007,47.7,4.3,41.4,5,55.6,3.4,54.5,8.1999999999999993]
[null,"Female:",57.6,3.2,49.6,8.6,44,2.8,55.9,3.6,39.5,18.2,46.5,8.9,51.3,3.6,45.9,11.7,44.8,16.100000000000001,45.5,3.8,43.8,7.7,54.6,7.7,49.3,6,56.3,4.0999999999999996,50.9,4.9000000000000004]
[]
[]
[]
[]
[]
[]
[]
[]
[]
[]
[]
[null,"B01001. GENDER BY AGE"]
[null,"Universe:  TOTAL POPULATION, Median Age"]
[null,"Data Set: 2010-2014 American Community Survey 5-Year Estimates"]
[]
[null,null,"Acworth",null,"Charlestown",null,"Claremont",null,"Cornish",null,"Croydon",null,"Goshen",null,"Grantham",null,"Langdon",null,"Lempster",null,"Newport",null,"Plainfield",null,"Springfield",null,"Sunapee",null,"Unity",null,"Washington"]
[null,null,"Estimate","Margin Of Error","Estimate","Margin Of Error","Estimate","Margin Of Error","Estimate","Margin Of Error","Estimate","Margin Of Error","Estimate","Margin Of Error","Estimate","Margin Of Error","Estimate","Margin Of Error","Estimate","Margin Of Error","Estimate","Margin Of Error","Estimate","Margin Of Error","Estimate","Margin Of Error","Estimate","Margin Of Error","Estimate","Margin Of Error","Estimate","Margin Of Error"]
[null,"Total:",42.9,9.3000000000000007,47.7,2.1,40.9,1.9,48.6,4.2,44.6,7.7,49.7,4.3,46.2,4.8,39.4,4.9000000000000004,45.3,5.9,45.5,3.7,46.5,1.6,42,3.7,48.7,3.7,49.6,4.8,51.2,3.6]
[null,"Male:",40.200000000000003,13.2,48.8,3.1,39.200000000000003,3.6,48.9,4.3,44.3,6.7,53.2,3.9,44.5,4.3,38.799999999999997,6.9,43.9,7,43.1,5,47.3,1.5,41.2,3.4,47.6,5.3,48.4,5.5,48.7,5.2]
[null,"Female:",44.3,5.7,47.1,3.8,42.3,2.7,48.5,4.7,45.7,9.6,47.8,4.4000000000000004,47.4,5.3,39.799999999999997,6.6,46.3,6.9,46.8,2.5,45.7,2.2999999999999998,42.8,4.5,50.4,4.9000000000000004,49.9,5.0999999999999996,52.3,2.2000000000000002]
[]
[]
[]
[]
[]
[]
[]
[]
[]
[]
[]
[null,"B01001. GENDER BY AGE"]
[null,"Universe:  TOTAL POPULATION, Median Age"]
[null,"Data Set: 2005-2009 American Community Survey 5-Year Estimates"]
[]
[null,null,"Acworth",null,"Charlestown",null,"Claremont",null,"Cornish",null,"Croydon",null,"Goshen",null,"Grantham",null,"Langdon",null,"Lempster",null,"Newport",null,"Plainfield",null,"Springfield",null,"Sunapee",null,"Unity",null,"Washington"]
[null,null,"Estimate","Margin Of Error","Estimate","Margin Of Error","Estimate","Margin Of Error","Estimate","Margin Of Error","Estimate","Margin Of Error","Estimate","Margin Of Error","Estimate","Margin Of Error","Estimate","Margin Of Error","Estimate","Margin Of Error","Estimate","Margin Of Error","Estimate","Margin Of Error","Estimate","Margin Of Error","Estimate","Margin Of Error","Estimate","Margin Of Error","Estimate","Margin Of Error"]
[null,"Total:",51,4.5999999999999996,39.4,4.7,40.1,1.1000000000000001,41.5,3.2,44.6,4.2,45.3,4.3,49.3,4,48,13.6,41.5,6.7,38.5,3.9,44.1,1.7,42.1,4.4000000000000004,46.2,4.0999999999999996,47.6,5.9,48.4,5.2]
[null,"Male:",51.6,5.5,36.299999999999997,4.5999999999999996,39.200000000000003,1.2,42.1,4.7,44.8,4.4000000000000004,41.9,7.6,46,3.6,42.5,19.899999999999999,44.8,3.5,37.299999999999997,7.8,44.1,2.1,43.2,4.3,43.5,9.9,47.4,4.0999999999999996,49.7,4.5999999999999996]
[null,"Female:",50.7,4.5999999999999996,42,4.7,41.6,2.6,41,3.3,44.3,5.3,45.9,2.5,51.4,4.9000000000000004,49,8.4,38.700000000000003,3.2,43.1,2.6,44.1,1.9,40.799999999999997,5.5,49.1,3.8,49.1,9.8000000000000007,45.9,7.1]

{"sheet":"ACS_Tbl_B11001_B11002_B25010","index":35,"n_rows":202,"n_cols":32,"rows_kept":202,"cut":false,"hidden":true,"merged":[]}
[null,"B11001. HOUSEHOLD TYPE (INCLUDING LIVING ALONE)"]
[null,"Universe:  HOUSEHOLDS"]
[null,"Data Set: 2015-2019 American Community Survey 5-Year Estimates"]
[]
[null,null,"Acworth",null,"Charlestown",null,"Claremont",null,"Cornish",null,"Croydon",null,"Goshen",null,"Grantham",null,"Langdon",null,"Lempster",null,"Newport",null,"Plainfield",null,"Springfield",null,"Sunapee",null,"Unity",null,"Washington"]
[null,null,"Estimate","Margin Of Error","Estimate","Margin Of Error","Estimate","Margin Of Error","Estimate","Margin Of Error","Estimate","Margin Of Error","Estimate","Margin Of Error","Estimate","Margin Of Error","Estimate","Margin Of Error","Estimate","Margin Of Error","Estimate","Margin Of Error","Estimate","Margin Of Error","Estimate","Margin Of Error","Estimate","Margin Of Error","Estimate","Margin Of Error","Estimate","Margin Of Error"]
[null,"Total:",370,51,2086,184,5231,284,741,81,293,56,277,39,1222,142,257,47,393,59,2600,168,915,86,442,75,1393,139,571,56,537,81]
[null,"Family households:",255,43,1379,163,3165,231,526,72,187,46,163,36,902,98,190,38,240,47,1572,151,715,79,337,66,901,90,406,48,419,78]
[null,"Married-couple family",218,40,952,189,2118,235,482,69,158,46,112,31,750,119,174,37,194,43,967,149,599,82,304,61,753,105,359,44,387,79]
[null,"Other family:",37,19,427,150,1047,202,44,19,29,17,51,22,152,85,16,13,46,30,605,160,116,54,33,26,148,64,47,22,32,22]
[null,"Male householder, no spouse present",23,14,183,107,200,83,18,13,12,9,30,19,89,68,0,11,22,23,118,76,23,17,5,8,53,39,21,11,9,13]
[null,"Female householder, no spouse present",14,12,244,116,847,201,26,14,17,15,21,14,63,55,16,13,24,18,487,138,93,51,28,24,95,49,26,19,23,17]
[null,"Nonfamily households:",115,28,707,222,2066,273,215,55,106,36,114,36,320,149,67,27,153,49,1028,213,200,55,105,46,492,142,165,39,118,45]
[null,"Householder living alone",89,25,656,218,1676,271,181,53,75,29,73,28,277,135,49,22,132,47,808,186,150,49,80,40,416,137,110,34,111,44]
[null,"Householder not living alone",26,16,51,49,390,129,34,16,31,20,41,25,43,41,18,18,21,13,220,104,50,26,25,23,76,59,55,27,7,6]
[]
[]
[]
[]
[]
[]
[]
[]
[]
[]
[]
[]
[]
[]
[]
[]
[]
[null,"B11002. HOUSEHOLD TYPE BY RELATIVES AND NONRELATIVES FOR POPULATION IN HOUSEHOLDS "]
[null,"Universe:  POPULATION IN HOUSEHOLDS"]
[null,"Data Set: 2015-2019 American Community Survey 5-Year Estimates"]
[]
[null,null,"Acworth",null,"Charlestown",null,"Claremont",null,"Cornish",null,"Croydon",null,"Goshen",null,"Grantham",null,"Langdon",null,"Lempster",null,"Newport",null,"Plainfield",null,"Springfield",null,"Sunapee",null,"Unity",null,"Washington"]
[null,null,"Estimate","Margin Of Error","Estimate","Margin Of Error","Estimate","Margin Of Error","Estimate","Margin Of Error","Estimate","Margin Of Error","Estimate","Margin Of Error","Estimate","Margin Of Error","Estimate","Margin Of Error","Estimate","Margin Of Error","Estimate","Margin Of Error","Estimate","Margin Of Error","Estimate","Margin Of Error","Estimate","Margin Of Error","Estimate","Margin Of Error","Estimate","Margin Of Error"]
[null,"Total:",906,134,5003,23,12846,112,1783,217,863,244,680,109,2945,14,712,145,923,176,6236,79,2415,293,1084,198,3434,21,1331,148,1199,188]
[null,"In family households:",743,126,4242,235,10117,379,1508,207,710,242,518,111,2572,180,615,146,739,178,4959,295,2158,296,945,197,2836,183,1086,139,1072,191]
[null,"In married-couple family:",597,112,2660,552,6365,714,1370,201,586,238,314,86,1998,305,544,141,560,154,2838,447,1832,312,840,179,2387,279,923,135,962,194]
[null,"Relatives",593,111,2559,515,6318,712,1364,202,559,229,314,86,1998,305,541,141,550,152,2804,438,1832,312,827,172,2370,278,909,133,959,194]
[null,"Nonrelatives",4,5,101,103,47,46,6,8,27,31,0,11,0,11,3,4,10,11,34,39,0,11,13,21,17,28,14,18,3,6]
[null,"In male householder, no spouse present, family:",97,59,695,394,671,334,69,52,32,22,126,78,355,313,0,11,72,74,344,197,69,52,11,18,172,134,76,36,41,47]
[null,"Relatives",84,52,604,346,572,270,62,45,32,22,96,62,355,313,0,11,66,73,296,162,69,52,11,18,143,107,58,28,26,35]
[null,"Nonrelatives",13,9,91,77,99,80,7,8,0,11,30,24,0,11,0,11,6,6,48,58,0,11,0,11,29,31,18,12,15,18]
[null,"In female householder, no spouse present, family:",49,41,887,482,3081,710,69,37,92,85,78,54,219,177,71,56,107,82,1777,458,257,141,94,87,277,141,87,62,69,46]
[null,"Relatives",49,41,773,394,2575,570,69,37,76,72,61,41,170,141,60,46,91,77,1439,359,257,141,94,87,238,124,64,43,68,46]
[null,"Nonrelatives",0,11,114,103,506,220,0,11,16,14,17,18,49,71,11,11,16,10,338,143,0,11,0,11,39,24,23,23,1,2]
[null,"In nonfamily households",163,55,761,237,2729,353,275,71,153,56,162,52,373,178,97,48,184,56,1277,291,257,72,139,67,598,185,245,68,127,47]
[]
[]
[]
[null,"Calculated Average  Household Size by Household Type"]
[null,"Universe:  POPULATION IN HOUSEHOLDS"]
[null,"Data Set: 2015-2019 American Community Survey 5-Year Estimates"]
[]
[null,null,"Acworth",null,"Charlestown",null,"Claremont",null,"Cornish",null,"Croydon",null,"Goshen",null,"Grantham",null,"Langdon",null,"Lempster",null,"Newport",null,"Plainfield",null,"Springfield",null,"Sunapee",null,"Unity",null,"Washington"]
[null,null,"Estimate","Margin Of Error","Estimate","Margin Of Error","Estimate","Margin Of Error","Estimate","Margin Of Error","Estimate","Margin Of Error","Estimate","Margin Of Error","Estimate","Margin Of Error","Estimate","Margin Of Error","Estimate","Margin Of Error","Estimate","Margin Of Error","Estimate","Margin Of Error","Estimate","Margin Of Error","Estimate","Margin Of Error","Estimate","Margin Of Error","Estimate","Margin Of Error"]
[null,"Total:",{"$f":"C39/C7","v":2.4486486486486485},{"$f":"D73","v":0.21},{"$f":"E39/E7","v":2.3983700862895492},{"$f":"(SQRT((F$39^2)+((E$39^2)/(E$7^2))*(F$7^2)))/E$7","v":0.21184039059760493},{"$f":"G39/G7","v":2.455744599502963},{"$f":"(SQRT((H$39^2)+((G$39^2)/(G$7^2))*(H$7^2)))/G$7","v":0.13503483472590375},{"$f":"I39/I7","v":2.406207827260459},{"$f":"(SQRT((J$39^2)+((I$39^2)/(I$7^2))*(J$7^2)))/I$7","v":0.39362766690129408},{"$f":"K39/K7","v":2.9453924914675769},{"$f":"(SQRT((L$39^2)+((K$39^2)/(K$7^2))*(L$7^2)))/K$7","v":1.005186706342162},{"$f":"M39/M7","v":2.4548736462093861},{"$f":"(SQRT((N$39^2)+((M$39^2)/(M$7^2))*(N$7^2)))/M$7","v":0.52374151112327616},{"$f":"O39/O7","v":2.4099836333878888},{"$f":"(SQRT((P$39^2)+((O$39^2)/(O$7^2))*(P$7^2)))/O$7","v":0.28028144326175713},{"$f":"Q39/Q7","v":2.7704280155642023},{"$f":"(SQRT((R$39^2)+((Q$39^2)/(Q$7^2))*(R$7^2)))/Q$7","v":0.7583025140603542},{"$f":"S39/S7","v":2.3486005089058524},{"$f":"(SQRT((T$39^2)+((S$39^2)/(S$7^2))*(T$7^2)))/S$7","v":0.56997985198293044},{"$f":"U39/U7","v":2.3984615384615386},{"$f":"(SQRT((V$39^2)+((U$39^2)/(U$7^2))*(V$7^2)))/U$7","v":0.15792800557043188},{"$f":"W39/W7","v":2.639344262295082},{"$f":"(SQRT((X$39^2)+((W$39^2)/(W$7^2))*(X$7^2)))/W$7","v":0.40506594887724645},{"$f":"Y39/Y7","v":2.4524886877828056},{"$f":"(SQRT((Z$39^2)+((Y$39^2)/(Y$7^2))*(Z$7^2)))/Y$7","v":0.6114321592908385},{"$f":"AA39/AA7","v":2.4651830581478822},{"$f":"(SQRT((AB$39^2)+((AA$39^2)/(AA$7^2))*(AB$7^2)))/AA$7","v":0.24644891325781787},{"$f":"AC39/AC7","v":2.3309982486865151},{"$f":"(SQRT((AD$39^2)+((AC$39^2)/(AC$7^2))*(AD$7^2)))/AC$7","v":0.34560662631668443},{"$f":"AE39/AE7","v":2.2327746741154564},{"$f":"(SQRT((AF$39^2)+((AE$39^2)/(AE$7^2))*(AF$7^2)))/AE$7","v":0.48578887545140315}]
[null,"In family households:",{"$f":"C40/C8","v":2.9137254901960783},{"$f":"(SQRT((D$40^2)+((C$40^2)/(C$8^2))*(D$8^2)))/C$8","v":0.69682239429197579},{"$f":"E40/E8","v":3.0761421319796955},{"$f":"(SQRT((F$40^2)+((E$40^2)/(E$8^2))*(F$8^2)))/E$8","v":0.40155850914689289},{"$f":"G40/G8","v":3.1965244865718798},{"$f":"(SQRT((H$40^2)+((G$40^2)/(G$8^2))*(H$8^2)))/G$8","v":0.26223783480445872},{"$f":"I40/I8","v":2.8669201520912546},{"$f":"(SQRT((J$40^2)+((I$40^2)/(I$8^2))*(J$8^2)))/I$8","v":0.55576262003563237},{"$f":"K40/K8","v":3.7967914438502675},{"$f":"(SQRT((L$40^2)+((K$40^2)/(K$8^2))*(L$8^2)))/K$8","v":1.5959450520990202},{"$f":"M40/M8","v":3.1779141104294477},{"$f":"(SQRT((N$40^2)+((M$40^2)/(M$8^2))*(N$8^2)))/M$8","v":0.97793572054071354},{"$f":"O40/O8","v":2.8514412416851442},{"$f":"(SQRT((P$40^2)+((O$40^2)/(O$8^2))*(P$8^2)))/O$8","v":0.36851048936247682},{"$f":"Q40/Q8","v":3.236842105263158},{"$f":"(SQRT((R$40^2)+((Q$40^2)/(Q$8^2))*(R$8^2)))/Q$8","v":1.0047670310592407},{"$f":"S40/S8","v":3.0791666666666666},{"$f":"(SQRT((T$40^2)+((S$40^2)/(S$8^2))*(T$8^2)))/S$8","v":0.95586747614745249},{"$f":"U40/U8","v":3.1545801526717558},{"$f":"(SQRT((V$40^2)+((U$40^2)/(U$8^2))*(V$8^2)))/U$8","v":0.35641939178549481},{"$f":"W40/W8","v":3.0181818181818181},{"$f":"(SQRT((X$40^2)+((W$40^2)/(W$8^2))*(X$8^2)))/W$8","v":0.53159346986402856},{"$f":"Y40/Y8","v":2.8041543026706233},{"$f":"(SQRT((Z$40^2)+((Y$40^2)/(Y$8^2))*(Z$8^2)))/Y$8","v":0.80207365798136698},{"$f":"AA40/AA8","v":3.1476137624861265},{"$f":"(SQRT((AB$40^2)+((AA$40^2)/(AA$8^2))*(AB$8^2)))/AA$8","v":0.37430955788953385},{"$f":"AC40/AC8","v":2.6748768472906406},{"$f":"(SQRT((AD$40^2)+((AC$40^2)/(AC$8^2))*(AD$8^2)))/AC$8","v":0.46607104705909691},{"$f":"AE40/AE8","v":2.5584725536992838},{"$f":"(SQRT((AF$40^2)+((AE$40^2)/(AE$8^2))*(AF$8^2)))/AE$8","v":0.65927104518157298}]
[null,"In nonfamily households",{"$f":"C50/C13","v":1.4173913043478261},{"$f":"(SQRT((D$50^2)+((C$50^2)/(C$13^2))*(D$13^2)))/C$13","v":0.58977131949376993},{"$f":"E50/E13","v":1.0763790664780764},{"$f":"(SQRT((F$50^2)+((E$50^2)/(E$13^2))*(F$13^2)))/E$13","v":0.47603205884823957},{"$f":"G50/G13","v":1.3209099709583736},{"$f":"(SQRT((H$50^2)+((G$50^2)/(G$13^2))*(H$13^2)))/G$13","v":0.24425267854769628},{"$f":"I50/I13","v":1.2790697674418605},{"$f":"(SQRT((J$50^2)+((I$50^2)/(I$13^2))*(J$13^2)))/I$13","v":0.46488270639164553},{"$f":"K50/K13","v":1.4433962264150944},{"$f":"(SQRT((L$50^2)+((K$50^2)/(K$13^2))*(L$13^2)))/K$13","v":0.72070019153706399},{"$f":"M50/M13","v":1.4210526315789473},{"$f":"(SQRT((N$50^2)+((M$50^2)/(M$13^2))*(N$13^2)))/M$13","v":0.63987787107958272},{"$f":"O50/O13","v":1.1656249999999999},{"$f":"(SQRT((P$50^2)+((O$50^2)/(O$13^2))*(P$13^2)))/O$13","v":0.77716488899252889},{"$f":"Q50/Q13","v":1.4477611940298507},{"$f":"(SQRT((R$50^2)+((Q$50^2)/(Q$13^2))*(R$13^2)))/Q$13","v":0.92392678184061106},{"$f":"S50/S13","v":1.2026143790849673},{"$f":"(SQRT((T$50^2)+((S$50^2)/(S$13^2))*(T$13^2)))/S$13","v":0.53132557771081146},{"$f":"U50/U13","v":1.2422178988326849},{"$f":"(SQRT((V$50^2)+((U$50^2)/(U$13^2))*(V$13^2)))/U$13","v":0.3825940469327751},{"$f":"W50/W13","v":1.2849999999999999},{"$f":"(SQRT((X$50^2)+((W$50^2)/(W$13^2))*(X$13^2)))/W$13","v":0.50445405204537708},{"$f":"Y50/Y13","v":1.3238095238095238},{"$f":"(SQRT((Z$50^2)+((Y$50^2)/(Y$13^2))*(Z$13^2)))/Y$13","v":0.86227195665104639},{"$f":"AA50/AA13","v":1.2154471544715446},{"$f":"(SQRT((AB$50^2)+((AA$50^2)/(AA$13^2))*(AB$13^2)))/AA$13","v":0.5142457773363569},{"$f":"AC50/AC13","v":1.4848484848484849},{"$f":"(SQRT((AD$50^2)+((AC$50^2)/(AC$13^2))*(AD$13^2)))/AC$13","v":0.54131299103839803},{"$f":"AE50/AE13","v":1.076271186440678},{"$f":"(SQRT((AF$50^2)+((AE$50^2)/(AE$13^2))*(AF$13^2)))/AE$13","v":0.57193522847668143}]
[]
[]
[]
[null,"B25010. AVERAGE HOUSEHOLD SIZE OF OCCUPIED HOUSING UNITS BY TENURE"]
[null,"Universe:  OCCUPIED HOUSING UNITS"]
[null,"Data Set: 2015-2019 American Community Survey 5-Year Estimates"]
[]
[null,null,"Acworth",null,"Charlestown",null,"Claremont",null,"Cornish",null,"Croydon",null,"Goshen",null,"Grantham",null,"Langdon",null,"Lempster",null,"Newport",null,"Plainfield",null,"Springfield",null,"Sunapee",null,"Unity",null,"Washington"]
[null,null,"Estimate","Margin Of Error","Estimate","Margin Of Error","Estimate","Margin Of Error","Estimate","Margin Of Error","Estimate","Margin Of Error","Estimate","Margin Of Error","Estimate","Margin Of Error","Estimate","Margin Of Error","Estimate","Margin Of Error","Estimate","Margin Of Error","Estimate","Margin Of Error","Estimate","Margin Of Error","Estimate","Margin Of Error","Estimate","Margin Of Error","Estimate","Margin Of Error"]
[null,"Average household size --"]
[null,"Total:",2.4500000000000002,0.21,2.4,0.21,2.46,0.13,2.41,0.22,2.95,0.56999999999999995,2.4500000000000002,0.28000000000000003,2.41,0.28000000000000003,2.77,0.41,2.35,0.35,2.4,0.15,2.64,0.25,2.4500000000000002,0.26,2.4700000000000002,0.25,2.33,0.19,2.23,0.17]
[null,"Owner occupied",2.44,0.22,2.44,0.22,2.59,0.18,2.44,0.23,2.84,0.61,2.52,0.32,2.33,0.31,2.64,0.3,2.38,0.37,2.44,0.21,2.56,0.22,2.4500000000000002,0.28000000000000003,2.65,0.28999999999999998,2.3199999999999998,0.19,2.21,0.18]
[null,"Renter occupied",2.5299999999999998,1.47,2.2599999999999998,0.61,2.29,0.23,1.93,0.54,3.69,1.22,2.2000000000000002,0.79,3.04,1.04,3.51,1.67,1.85,0.65,2.31,0.31,3.24,1.6,2.5,0.69,1.9,0.39,2.5099999999999998,0.82,2.4700000000000002,0.95]
[]
[]
[]
[]
[]
[]
[null,"B11001. HOUSEHOLD TYPE (INCLUDING LIVING ALONE)"]
[null,"Universe:  HOUSEHOLDS"]
[null,"Data Set: 2010-2014 American Community Survey 5-Year Estimates"]
[]
[null,null,"Acworth",null,"Charlestown",null,"Claremont",null,"Cornish",null,"Croydon",null,"Goshen",null,"Grantham",null,"Langdon",null,"Lempster",null,"Newport",null,"Plainfield",null,"Springfield",null,"Sunapee",null,"Unity",null,"Washington"]
[null,null,"Estimate","Margin Of Error","Estimate","Margin Of Error","Estimate","Margin Of Error","Estimate","Margin Of Error","Estimate","Margin Of Error","Estimate","Margin Of Error","Estimate","Margin Of Error","Estimate","Margin Of Error","Estimate","Margin Of Error","Estimate","Margin Of Error","Estimate","Margin Of Error","Estimate","Margin Of Error","Estimate","Margin Of Error","Estimate","Margin Of Error","Estimate","Margin Of Error"]
[null,"Total:",347,44,2185,131,5418,242,644,62,257,42,320,42,1084,82,284,42,425,55,2806,190,933,81,482,69,1496,87,529,62,449,64]
[null,"Family households:",254,44,1459,112,3318,212,453,63,190,37,211,36,887,77,224,41,317,56,1785,164,676,68,379,57,962,108,375,49,338,53]
[null,"Married-couple family",197,37,1198,151,2227,214,377,54,144,32,157,30,804,77,201,40,283,55,1320,192,547,70,332,55,800,120,342,45,284,54]
[null,"Other family:",57,25,261,135,1091,193,76,33,46,23,54,27,83,72,23,14,34,21,465,151,129,48,47,25,162,80,33,18,54,30]
[null,"Male householder, no spouse present",26,20,90,104,272,119,33,22,26,18,16,16,75,71,2,3,20,19,93,78,57,34,18,18,94,69,27,16,24,20]
[null,"Female householder, no spouse present",31,15,171,113,819,172,43,26,20,15,38,21,8,9,21,14,14,9,372,148,72,37,29,18,68,38,6,8,30,22]
[null,"Nonfamily households:",93,35,726,177,2100,276,191,39,67,21,109,37,197,87,60,24,108,37,1021,238,257,73,103,43,534,141,154,43,111,35]
[null,"Householder living alone",83,32,635,172,1652,243,158,35,49,17,91,31,159,81,28,13,90,33,783,209,210,74,59,33,386,124,81,31,84,32]
[null,"Householder not living alone",10,8,91,60,448,133,33,17,18,15,18,16,38,30,32,20,18,12,238,132,47,28,44,31,148,87,73,33,27,13]
[]
[]
[]
[]
[]
[]
[]
[]
[]
[]
[]
[]
[]
[]
[]
[]
[]
[null,"B11002. HOUSEHOLD TYPE BY RELATIVES AND NONRELATIVES FOR POPULATION IN HOUSEHOLDS "]
[null,"Universe:  POPULATION IN HOUSEHOLDS"]
[null,"Data Set: 2010-2014 American Community Survey 5-Year Estimates"]
[]
[null,null,"Acworth",null,"Charlestown",null,"Claremont",null,"Cornish",null,"Croydon",null,"Goshen",null,"Grantham",null,"Langdon",null,"Lempster",null,"Newport",null,"Plainfield",null,"Springfield",null,"Sunapee",null,"Unity",null,"Washington"]
[null,null,"Estimate","Margin Of Error","Estimate","Margin Of Error","Estimate","Margin Of Error","Estimate","Margin Of Error","Estimate","Margin Of Error","Estimate","Margin Of Error","Estimate","Margin Of Error","Estimate","Margin Of Error","Estimate","Margin Of Error","Estimate","Margin Of Error","Estimate","Margin Of Error","Estimate","Margin Of Error","Estimate","Margin Of Error","Estimate","Margin Of Error","Estimate","Margin Of Error"]
[null,"Total:",923,163,5028,44,13040,78,1601,179,650,141,819,128,2970,25,787,149,1089,147,6311,112,2412,165,1313,217,3342,31,1352,149,1013,140]
[null,"In family households:",819,171,4207,201,10320,423,1371,194,565,140,683,130,2729,112,683,149,958,161,4994,349,2098,169,1164,209,2614,230,1119,142,879,141]
[null,"In married-couple family:",587,116,3508,391,6728,594,1143,181,357,86,508,122,2523,175,588,138,840,162,3553,544,1733,192,1024,198,2146,296,990,134,720,136]
[null,"Relatives",587,116,3428,403,6700,590,1129,181,357,86,461,102,2497,178,588,138,836,162,3553,544,1733,192,1014,196,2146,296,975,133,708,134]
[null,"Nonrelatives",0,11,80,106,28,31,14,17,0,11,47,50,26,40,0,11,4,5,0,15,0,11,10,14,0,11,15,15,12,18]
[null,"In male householder, no spouse present, family:",113,113,221,232,1019,490,109,75,89,72,54,54,186,173,5,7,60,58,230,182,157,79,41,38,257,189,95,59,59,44]
[null,"Relatives",59,45,175,200,820,390,96,67,82,66,48,46,156,147,5,7,44,40,230,182,122,68,41,38,257,189,79,50,59,44]
[null,"Nonrelatives",54,78,46,65,199,121,13,13,7,14,6,10,30,43,0,11,16,18,0,15,35,19,0,11,0,11,16,15,0,11]
[null,"In female householder, no spouse present, family:",119,64,478,300,2573,547,119,68,119,101,121,56,20,21,90,59,58,41,1211,488,208,102,99,81,211,126,34,27,100,75]
[null,"Relatives",90,47,441,277,2361,512,107,57,112,99,111,55,20,21,88,58,48,34,1043,403,188,85,99,81,201,118,31,25,88,69]
[null,"Nonrelatives",29,23,37,56,212,111,12,16,7,11,10,7,0,11,2,3,10,11,168,122,20,22,0,11,10,15,3,4,12,13]
[null,"In nonfamily households",104,37,821,201,2720,416,230,53,85,32,136,52,241,104,104,55,131,46,1317,345,314,85,149,67,728,231,233,73,134,35]
[]
[]
[]
[null,"Calculated Average  Household Size by Household Type"]
[null,"Universe:  POPULATION IN HOUSEHOLDS"]
[null,"Data Set: 2010-2014 American Community Survey 5-Year Estimates"]
[]
[null,null,"Acworth",null,"Charlestown",null,"Claremont",null,"Cornish",null,"Croydon",null,"Goshen",null,"Grantham",null,"Langdon",null,"Lempster",null,"Newport",null,"Plainfield",null,"Springfield",null,"Sunapee",null,"Unity",null,"Washington"]
[null,null,"Estimate","Margin Of Error","Estimate","Margin Of Error","Estimate","Margin Of Error","Estimate","Margin Of Error","Estimate","Margin Of Error","Estimate","Margin Of Error","Estimate","Margin Of Error","Estimate","Margin Of Error","Estimate","Margin Of Error","Estimate","Margin Of Error","Estimate","Margin Of Error","Estimate","Margin Of Error","Estimate","Margin Of Error","Estimate","Margin Of Error","Estimate","Margin Of Error"]
[]
[null,"Total:",2.6599423631123917,0.34,2.3011441647597253,0.13942522178815919,2.4067921742340346,0.10846129926413031,2.4860248447204967,0.36679552280143274,2.5291828793774318,0.68690980045281813,2.5593750000000002,0.52234172887978803,2.7398523985239853,0.20853741636480214,2.7711267605633805,0.66573519302891071,2.5623529411764707,0.47915784889132812,2.2491090520313612,0.15743554072975302,2.585209003215434,0.28574211071092287,2.7240663900414939,0.59561341621846986,2.2339572192513368,0.13155818171649503,2.555765595463138,0.41116841038985746,2.2561247216035634,0.44792756841396492]
[null,"In family households:",3.2244094488188977,0.87477122368577853,2.8834818368745716,0.26072068748062038,3.1103074141048825,0.23610651980501393,3.0264900662251657,0.60046836218521449,2.9736842105263159,0.93716419900994685,3.2369668246445498,0.82741036254439071,3.0766629086809472,0.29542727072657926,3.0491071428571428,0.86829322425039357,3.0220820189274447,0.73686168630722781,2.7977591036414564,0.32295752947345885,3.1035502958579881,0.39995437411994983,3.0712401055408969,0.71934098340768449,2.7172557172557172,0.38758322106932458,2.984,0.54352344260840202,2.6005917159763312,0.58336176513821569]
[null,"In nonfamily households",1.118279569892473,0.57914209735229505,1.1308539944903582,0.39072230665459112,1.2952380952380953,0.2611903832609842,1.2041884816753927,0.37075147653856411,1.2686567164179106,0.62147379609460396,1.2477064220183487,0.63794262116208145,1.2233502538071066,0.75536778481351441,1.7333333333333334,1.1493428073855463,1.212962962962963,0.59506005072213175,1.2899118511263468,0.45231667930874625,1.2217898832684826,0.47940481526137252,1.4466019417475728,0.88761034141676975,1.3632958801498127,0.56276864493281287,1.5129870129870129,0.63495739196496037,1.2072072072072073,0.49428622464752658]
[]
[]
[null,"B25010. AVERAGE HOUSEHOLD SIZE OF OCCUPIED HOUSING UNITS BY TENURE"]
[null,"Universe:  OCCUPIED HOUSING UNITS"]
[null,"Data Set: 2010-2014 American Community Survey 5-Year Estimates"]
[]
[null,null,"Acworth",null,"Charlestown",null,"Claremont",null,"Cornish",null,"Croydon",null,"Goshen",null,"Grantham",null,"Langdon",null,"Lempster",null,"Newport",null,"Plainfield",null,"Springfield",null,"Sunapee",null,"Unity",null,"Washington"]
[null,null,"Estimate","Margin Of Error","Estimate","Margin Of Error","Estimate","Margin Of Error","Estimate","Margin Of Error","Estimate","Margin Of Error","Estimate","Margin Of Error","Estimate","Margin Of Error","Estimate","Margin Of Error","Estimate","Margin Of Error","Estimate","Margin Of Error","Estimate","Margin Of Error","Estimate","Margin Of Error","Estimate","Margin Of Error","Estimate","Margin Of Error","Estimate","Margin Of Error"]
[null,"Average household size --"]
[null,"Total:",2.66,0.34,2.2999999999999998,0.13,2.41,0.11,2.4900000000000002,0.2,2.5299999999999998,0.36,2.56,0.31,2.74,0.21,2.77,0.33,2.56,0.23,2.25,0.15,2.59,0.18,2.72,0.28999999999999998,2.23,0.13,2.56,0.2,2.2599999999999998,0.21]
[null,"Owner occupied",2.5,0.31,2.46,0.14000000000000001,2.52,0.15,2.42,0.2,2.52,0.42,2.39,0.35,2.73,0.21,2.81,0.34,2.5299999999999998,0.23,2.42,0.19,2.63,0.19,2.83,0.33,2.29,0.18,2.54,0.2,2.19,0.19]
[null,"Renter occupied",3.26,1.1000000000000001,1.7,0.28999999999999998,2.2000000000000002,0.18,2.85,0.76,2.57,0.62,3.21,0.71,2.81,1.76,2.4500000000000002,0.68,2.78,0.84,1.91,0.24,2.31,0.68,2.11,0.52,2.1,0.43,3.13,0.71,3.16,0.92]
[]
[]
[]
[]
[]
[]
[null,"B11001. HOUSEHOLD TYPE (INCLUDING LIVING ALONE)"]
[null,"Universe:  HOUSEHOLDS"]
[null,"Data Set: 2005-2009 American Community Survey 5-Year Estimates"]
[]
[null,null,"Acworth",null,"Charlestown",null,"Claremont",null,"Cornish",null,"Croydon",null,"Goshen",null,"Grantham",null,"Langdon",null,"Lempster",null,"Newport",null,"Plainfield",null,"Springfield",null,"Sunapee",null,"Unity",null,"Washington"]
[null,null,"Estimate","Margin Of Error","Estimate","Margin Of Error","Estimate","Margin Of Error","Estimate","Margin Of Error","Estimate","Margin Of Error","Estimate","Margin Of Error","Estimate","Margin Of Error","Estimate","Margin Of Error","Estimate","Margin Of Error","Estimate","Margin Of Error","Estimate","Margin Of Error","Estimate","Margin Of Error","Estimate","Margin Of Error","Estimate","Margin Of Error","Estimate","Margin Of Error"]
[null,"Total:",343,60,2138,130,5799,248,676,72,335,54,402,60,1016,69,222,59,468,57,2562,192,946,97,335,56,1422,128,648,87,527,62]
[null,"Family households:",249,55,1469,131,3492,252,535,72,244,46,270,58,796,58,170,56,325,55,1699,141,796,89,250,48,935,85,455,77,404,58]
[null,"Married-couple family",236,56,1200,136,2646,241,450,70,204,41,213,48,773,61,156,56,274,51,1249,154,663,83,215,47,767,96,387,74,359,52]
[null,"Other family:",13,13,269,117,846,187,85,35,40,29,57,28,23,22,14,16,51,27,450,146,133,60,35,19,168,80,68,36,45,25]
[null,"Male householder, no spouse present",13,13,106,86,211,83,30,23,3,4,13,11,16,18,0,114,2,4,119,83,39,34,15,13,50,51,21,24,18,16]
[null,"Female householder, no spouse present",0,114,163,93,635,169,55,29,37,28,44,23,7,12,14,16,49,27,331,119,94,50,20,17,118,56,47,31,27,19]
[null,"Nonfamily households:",94,42,669,162,2307,312,141,51,91,42,132,48,220,85,52,27,143,45,863,215,150,58,85,35,487,151,193,60,123,32]
[null,"Householder living alone",65,33,549,138,1859,296,121,49,59,31,88,35,150,68,44,28,114,42,561,174,73,36,49,26,408,130,158,54,94,29]
[null,"Householder not living alone",29,22,120,75,448,183,20,19,32,27,44,33,70,40,8,9,29,20,302,166,77,45,36,22,79,70,35,24,29,18]
[]
[]
[]
[null,"Calculated Average  Household Size by Household Type"]
[null,"Universe:  POPULATION IN HOUSEHOLDS"]
[null,"Data Set: 2005-2009 American Community Survey 5-Year Estimates"]
[]
[null,null,"Acworth",null,"Charlestown",null,"Claremont",null,"Cornish",null,"Croydon",null,"Goshen",null,"Grantham",null,"Langdon",null,"Lempster",null,"Newport",null,"Plainfield",null,"Springfield",null,"Sunapee",null,"Unity",null,"Washington"]
[null,null,"Estimate","Margin Of Error","Estimate","Margin Of Error","Estimate","Margin Of Error","Estimate","Margin Of Error","Estimate","Margin Of Error","Estimate","Margin Of Error","Estimate","Margin Of Error","Estimate","Margin Of Error","Estimate","Margin Of Error","Estimate","Margin Of Error","Estimate","Margin Of Error","Estimate","Margin Of Error","Estimate","Margin Of Error","Estimate","Margin Of Error","Estimate","Margin Of Error"]
[null,"Total:",9.7725947521865884,0.28000000000000003,12.944808231992516,0.20220421002196756,1.51802034833592,0.11396137096407795,9.415680473372781,0.36795794021530542,13.271641791044775,0.83098051160566921,4.6194029850746272,0.57736182373624001,1.6043307086614174,0.28306906125902082,20.310810810810811,0.71516811230225952,5.3760683760683765,0.57440755068110005,11.816549570647931,0.18907059045559679,2.7790697674418605,0.35634002576024776,35.349253731343282,0.68007874741644436,2.8333333333333335,0.2358345443220031,6.2175925925925926,0.31466950166332136,7.645161290322581,0.45470646968169198]
[null,"In family households:",11.08433734939759,0.68703938953598875,14.012253233492171,0.38535562292463249,1.6927262313860252,0.26056675085468906,10.213084112149533,0.55471690204983681,14.090163934426229,1.3376735029556286,5.9148148148148145,0.92924905652179512,1.8253768844221105,0.36359314188401998,21.935294117647057,0.9608005525560005,6.9015384615384612,1.0417001949280125,14.753972925250148,0.30040297116770576,2.791457286432161,0.52397819336778184,37.164000000000001,0.84467561068399721,3.9540106951871659,0.38798803051108466,8.1252747252747248,0.51036999870765698,9.1509900990099009,0.63690851049215003]
[null,"In nonfamily households",6.2978723404255321,0.64262739858531381,10.600896860986547,0.47345211685905603,1.2535760728218466,0.27581915038337912,6.3900709219858154,0.37537916186697523,11.076923076923077,0.60951456904268198,1.9696969696969697,0.57526740501209805,0.80454545454545456,0.73690626928290037,15,0.86425807112258057,1.9090909090909092,0.57476969910220177,6.0336037079953648,0.41276798030339751,2.7133333333333334,0.47481826989124576,30.011764705882353,0.92096035994071535,0.68172484599589322,0.54766523612907103,1.7202072538860103,0.51117358152052439,2.6991869918699187,0.53311239057308601]
[]
[]
[]
[null,"B25010. AVERAGE HOUSEHOLD SIZE OF OCCUPIED HOUSING UNITS BY TENURE"]
[null,"Universe:  OCCUPIED HOUSING UNITS"]
[null,"Data Set: 2005-2009 American Community Survey 5-Year Estimates"]
[]
[null,null,"Acworth",null,"Charlestown",null,"Claremont",null,"Cornish",null,"Croydon",null,"Goshen",null,"Grantham",null,"Langdon",null,"Lempster",null,"Newport",null,"Plainfield",null,"Springfield",null,"Sunapee",null,"Unity",null,"Washington"]
[null,null,"Estimate","Margin Of Error","Estimate","Margin Of Error","Estimate","Margin Of Error","Estimate","Margin Of Error","Estimate","Margin Of Error","Estimate","Margin Of Error","Estimate","Margin Of Error","Estimate","Margin Of Error","Estimate","Margin Of Error","Estimate","Margin Of Error","Estimate","Margin Of Error","Estimate","Margin Of Error","Estimate","Margin Of Error","Estimate","Margin Of Error","Estimate","Margin Of Error"]
[null,"Average household size --"]
[null,"Total:",2.4,0.28000000000000003,2.2799999999999998,0.14000000000000001,2.2200000000000002,0.08,2.59,0.21,2.27,0.21,2.27,0.2,2.48,0.17,"-","-",2.4500000000000002,0.26,2.4300000000000002,0.16,2.68,0.14000000000000001,2.5,0.19,2.36,0.21,2.4700000000000002,0.24,2.4,0.2]
[null,"Owner occupied",2.34,0.28999999999999998,2.38,0.17,2.4700000000000002,0.13,2.61,0.21,2.34,0.22,2.35,0.24,2.5099999999999998,0.17,"-","-",2.46,0.27,2.58,0.22,2.71,0.14000000000000001,2.52,0.18,2.44,0.21,2.46,0.24,2.36,0.2]
[null,"Renter occupied",2.77,0.91,1.89,0.28000000000000003,1.92,0.15,2.44,0.7,1.89,0.71,1.93,0.54,2.13,0.46,"-","-",2.42,0.6,2.12,0.32,2.38,0.88,2.11,0.86,2.1800000000000002,0.53,2.5,1.02,3.35,1.24]

{"sheet":"ACS_Table_B19001","index":36,"n_rows":162,"n_cols":32,"rows_kept":162,"cut":false,"hidden":true,"merged":[]}
[null,"B19001. HOUSEHOLD INCOME IN THE PAST 12 MONTHS (IN 2019 INFLATION-ADJUSTED DOLLARS)"]
[null,"Universe:  HOUSEHOLDS"]
[null,"Data Set: 2015-2019 American Community Survey 5-Year Estimates"]
[]
[null,null,"Acworth",null,"Charlestown",null,"Claremont",null,"Cornish",null,"Croydon",null,"Goshen",null,"Grantham",null,"Langdon",null,"Lempster",null,"Newport",null,"Plainfield",null,"Springfield",null,"Sunapee",null,"Unity",null,"Washington"]
[null,null,"Estimate","Margin Of Error","Estimate","Margin Of Error","Estimate","Margin Of Error","Estimate","Margin Of Error","Estimate","Margin Of Error","Estimate","Margin Of Error","Estimate","Margin Of Error","Estimate","Margin Of Error","Estimate","Margin Of Error","Estimate","Margin Of Error","Estimate","Margin Of Error","Estimate","Margin Of Error","Estimate","Margin Of Error","Estimate","Margin Of Error","Estimate","Margin Of Error"]
[null,"Total Households",370,51,2086,184,5231,284,741,81,293,56,277,39,1222,142,257,47,393,59,2600,168,915,86,442,75,1393,139,571,56,537,81]
[null,"Households With"]
[null,"Income Less than $10,000 ",15,16,170,108,311,135,16,13,14,16,19,14,0,11,17,16,16,17,158,103,42,30,21,21,118,90,19,20,17,19]
[null,"Income $10,000 to $14,999 ",6,6,30,35,245,95,19,20,12,13,8,10,0,11,0,11,13,15,46,57,0,11,7,7,15,20,23,16,12,16]
[null,"Income $15,000 to $19,999 ",7,6,178,111,299,108,33,24,6,7,9,7,45,48,5,5,10,9,244,129,0,11,7,13,16,17,18,20,18,18]
[null,"Income $20,000 to $24,999 ",8,10,73,77,410,168,7,7,10,8,9,8,0,11,6,6,30,21,101,65,30,20,6,9,112,81,37,22,20,17]
[null,"Income $25,000 to $29,999 ",20,12,184,114,326,113,36,28,10,8,7,9,91,76,14,9,7,8,180,114,84,46,23,17,22,20,26,12,13,10]
[null,"Income $30,000 to $34,999 ",10,8,117,97,358,133,29,23,11,9,8,9,0,11,2,3,11,7,114,78,16,14,33,29,51,50,21,13,20,15]
[null,"Income $35,000 to $39,999 ",9,6,119,92,125,58,31,23,8,8,15,12,0,11,16,15,22,15,76,50,16,13,8,9,8,13,7,7,26,22]
[null,"Income $40,000 to $44,999 ",19,17,114,94,357,142,26,16,4,4,5,7,91,102,4,4,14,15,77,52,18,13,11,13,15,23,16,11,20,15]
[null,"Income $45,000 to $49,999 ",18,11,78,58,287,105,32,17,18,16,16,13,17,25,5,5,34,19,78,55,38,29,5,9,100,71,25,10,24,18]
[null,"Income $50,000 to $59,999 ",46,22,200,110,437,127,60,30,21,15,44,25,67,54,19,15,17,15,363,136,47,34,18,17,75,47,39,20,45,23]
[null,"Income $60,000 to $74,999 ",51,24,168,92,406,127,48,27,30,18,33,19,146,82,34,18,38,26,263,119,95,54,50,27,184,77,73,24,41,22]
[null,"Income $75,000 to $99,999 ",64,32,413,144,863,176,111,36,48,23,49,17,129,62,45,22,67,29,377,131,185,49,152,53,202,77,96,34,81,37]
[null,"Income $100,000 to $124,999 ",34,19,58,55,311,117,98,32,38,23,16,12,135,64,32,14,75,35,104,61,92,36,54,33,146,80,80,33,50,24]
[null,"Income $125,000 to $149,999 ",28,16,71,66,172,78,76,28,26,19,25,19,232,116,23,12,14,11,145,87,87,42,23,19,144,70,45,25,65,36]
[null,"Income $150,000 to $199,999 ",19,13,23,29,238,102,55,22,25,20,12,11,163,107,18,13,14,22,215,111,65,34,11,9,104,48,34,16,26,19]
[null,"Income $200,000 or more ",16,12,90,69,86,54,64,29,12,11,2,4,106,69,17,16,11,14,59,42,100,32,13,8,81,42,12,9,59,59]
[]
[]
[]
[]
[null,"Calculated B19001. HOUSEHOLD INCOME IN THE PAST 12 MONTHS (IN 2019 INFLATION-ADJUSTED DOLLARS)"]
[null,"Universe:  HOUSEHOLDS"]
[null,"Data Set: 2015-2019 American Community Survey 5-Year Estimates"]
[null,null,"Acworth",null,"Charlestown",null,"Claremont",null,"Cornish",null,"Croydon",null,"Goshen",null,"Grantham",null,"Langdon",null,"Lempster",null,"Newport",null,"Plainfield",null,"Springfield",null,"Sunapee",null,"Unity",null,"Washington"]
[null,null,"Estimate","Margin Of Error","Estimate","Margin Of Error","Estimate","Margin Of Error","Estimate","Margin Of Error","Estimate","Margin Of Error","Estimate","Margin Of Error","Estimate","Margin Of Error","Estimate","Margin Of Error","Estimate","Margin Of Error","Estimate","Margin Of Error","Estimate","Margin Of Error","Estimate","Margin Of Error","Estimate","Margin Of Error","Estimate","Margin Of Error","Estimate","Margin Of Error"]
[null,"Total Households",{"$f":"$C$7","v":370},{"$f":"$D$7","v":51},{"$f":"$E$7","v":2086},{"$f":"$F$7","v":184},{"$f":"$G$7","v":5231},{"$f":"$H$7","v":284},{"$f":"$I$7","v":741},{"$f":"$J$7","v":81},{"$f":"$K$7","v":293},{"$f":"$L$7","v":56},{"$f":"$M$7","v":277},{"$f":"$N$7","v":39},{"$f":"$O$7","v":1222},{"$f":"$P$7","v":142},{"$f":"$Q$7","v":257},{"$f":"R7","v":47},393,59,2600,168,915,86,{"$f":"Y7","v":442},75,1393,139,571,56,537,81]
[null,"Households With"]
[null,"Income Less than $10,000 ",{"$f":"$C$9","v":15},{"$f":"$D$9","v":16},{"$f":"$E$9","v":170},{"$f":"$F$9","v":108},{"$f":"$G$9","v":311},{"$f":"$H$9","v":135},{"$f":"$I$9","v":16},{"$f":"$J$9","v":13},{"$f":"$K$9","v":14},{"$f":"$L$9","v":16},{"$f":"$M$9","v":19},{"$f":"$N$9","v":14},{"$f":"$O$9","v":0},{"$f":"$P$9","v":11},{"$f":"$Q$9","v":17},{"$f":"R9","v":16},16,17,158,103,42,30,{"$f":"Y9","v":21},21,118,90,{"$f":"AC9","v":19},20,17,19]
[null,"Income $10,000 to $14,999 ",{"$f":"$C$10","v":6},{"$f":"$D$10","v":6},{"$f":"$E$10","v":30},{"$f":"$F$10","v":35},{"$f":"$G$10","v":245},{"$f":"$H$10","v":95},{"$f":"$I$10","v":19},{"$f":"$J$10","v":20},{"$f":"$K$10","v":12},{"$f":"$L$10","v":13},{"$f":"$M$10","v":8},{"$f":"$N$10","v":10},{"$f":"$O$10","v":0},{"$f":"$P$10","v":11},{"$f":"$Q$10","v":0},11,13,15,46,57,0,11,7,7,15,20,{"$f":"AC10","v":23},16,12,16]
[null,"Income $15,000 to $24,999 ",{"$f":"$C$11+$C$12","v":15},{"$f":"SQRT(($D$11^2)+($D$12^2))","v":11.661903789690601},{"$f":"$E$11+$E$12","v":251},{"$f":"SQRT(($F$11^2)+($F$12^2))","v":135.09256086106296},{"$f":"$G$11+$G$12","v":709},{"$f":"SQRT(($H$11^2)+($H$12^2))","v":199.71980372511885},{"$f":"$I$11+$I$12","v":40},{"$f":"SQRT(($J$11^2)+($J$12^2))","v":25},{"$f":"$K$11+$K$12","v":16},{"$f":"SQRT(($L$11^2)+($L$12^2))","v":10.63014581273465},{"$f":"$M$11+$M$12","v":18},{"$f":"SQRT(($N$11^2)+($N$12^2))","v":10.63014581273465},{"$f":"$O$11+$O$12","v":45},{"$f":"SQRT(($P$11^2)+($P$12^2))","v":49.244289008980523},{"$f":"Q11+Q12","v":11},{"$f":"SQRT((R11^2)+(R12^2))","v":7.810249675906654},{"$f":"S11+S12","v":40},{"$f":"SQRT((T11^2)+(T12^2))","v":22.847319317591726},{"$f":"U11+U12","v":345},{"$f":"SQRT((V11^2)+(V12^2))","v":144.45068362593511},{"$f":"W11+W12","v":30},{"$f":"SQRT((X11^2)+(X12^2))","v":22.825424421026653},{"$f":"Y11+Y12","v":13},{"$f":"SQRT((Z11^2)+(Z12^2))","v":15.811388300841896},{"$f":"AA11+AA12","v":128},{"$f":"SQRT((AB11^2)+(AB12^2))","v":82.764726786234249},{"$f":"AC11+AC12","v":55},{"$f":"SQRT((AD11^2)+(AD12^2))","v":29.732137494637012},{"$f":"AE11+AE12","v":38},{"$f":"SQRT((AF11^2)+(AF12^2))","v":24.758836806279895}]
[null,"Income $25,000 to $34,999 ",{"$f":"$C$13+$C$14","v":30},{"$f":"SQRT(($D$13^2)+($D$14^2))","v":14.422205101855956},{"$f":"$E$13+$E$14","v":301},{"$f":"SQRT(($F$13^2)+($F$14^2))","v":149.68299836654796},{"$f":"$G$13+$G$14","v":684},{"$f":"SQRT(($H$13^2)+($H$14^2))","v":174.52220489095365},{"$f":"$I$13+$I$14","v":65},{"$f":"SQRT(($J$13^2)+($J$14^2))","v":36.235341863986875},{"$f":"$K$13+$K$14","v":21},{"$f":"SQRT(($L$13^2)+($L$14^2))","v":12.041594578792296},{"$f":"$M$13+$M$14","v":15},{"$f":"SQRT(($N$13^2)+($N$14^2))","v":12.727922061357855},{"$f":"$O$13+$O$14","v":91},{"$f":"SQRT(($P$13^2)+($P$14^2))","v":76.791926658991954},{"$f":"Q13+Q14","v":16},{"$f":"SQRT((R13^2)+(R14^2))","v":9.4868329805051381},{"$f":"S13+S14","v":18},{"$f":"SQRT((T13^2)+(T14^2))","v":10.63014581273465},{"$f":"U13+U14","v":294},{"$f":"SQRT((V13^2)+(V14^2))","v":138.13037319865606},{"$f":"W13+W14","v":100},{"$f":"SQRT((X13^2)+(X14^2))","v":48.083261120685229},{"$f":"Y13+Y14","v":56},{"$f":"SQRT((Z13^2)+(Z14^2))","v":33.61547262794322},{"$f":"AA13+AA14","v":73},{"$f":"SQRT((AB13^2)+(AB14^2))","v":53.851648071345039},{"$f":"AC13+AC14","v":47},{"$f":"SQRT((AD13^2)+(AD14^2))","v":17.691806012954132},{"$f":"AE13+AE14","v":33},{"$f":"SQRT((AF13^2)+(AF14^2))","v":18.027756377319946}]
[null,"Income $35,000 to $49,999 ",{"$f":"$C$15+$C$16+$C$17","v":46},{"$f":"SQRT(($D$15^2)+($D$16^2)+($D$17^2))","v":21.118712081942874},{"$f":"$E$15+$E$16+$E$17","v":311},{"$f":"SQRT(($F$15^2)+($F$16^2)+($F$17^2))","v":143.74978260853126},{"$f":"$G$15+$G$16+$G$17","v":769},{"$f":"SQRT(($H$15^2)+($H$16^2)+($H$17^2))","v":185.88437266214714},{"$f":"$I$15+$I$16+$I$17","v":89},{"$f":"SQRT(($J$15^2)+($J$16^2)+($J$17^2))","v":32.771939216347882},{"$f":"$K$15+$K$16+$K$17","v":30},{"$f":"SQRT(($L$15^2)+($L$16^2)+($L$17^2))","v":18.330302779823359},{"$f":"$M$15+$M$16+$M$17","v":36},{"$f":"SQRT(($N$15^2)+($N$16^2)+($N$17^2))","v":19.026297590440446},{"$f":"$O$15+$O$16+$O$17","v":108},{"$f":"SQRT(($P$15^2)+($P$16^2)+($P$17^2))","v":105.59356040971439},{"$f":"Q15+Q16+Q17","v":25},{"$f":"SQRT((R15^2)+(R16^2)+(R17^2))","v":16.30950643030009},{"$f":"S15+S16+S17","v":70},{"$f":"SQRT((T15^2)+(T16^2)+(T17^2))","v":28.478061731796284},{"$f":"U15+U16+U17","v":231},{"$f":"SQRT((V15^2)+(V16^2)+(V17^2))","v":90.71383576941281},{"$f":"W15+W16+W17","v":72},{"$f":"SQRT((X15^2)+(X16^2)+(X17^2))","v":34.336569426778794},{"$f":"Y15+Y16+Y17","v":24},{"$f":"SQRT((Z15^2)+(Z16^2)+(Z17^2))","v":18.193405398660254},{"$f":"AA15+AA16+AA17","v":123},{"$f":"SQRT((AB15^2)+(AB16^2)+(AB17^2))","v":75.756187866074683},{"$f":"AC15+AC16+AC17","v":48},{"$f":"SQRT((AD15^2)+(AD16^2)+(AD17^2))","v":16.431676725154983},{"$f":"AE15+AE16+AE17","v":70},{"$f":"SQRT((AF15^2)+(AF16^2)+(AF17^2))","v":32.140317359976393}]
[null,"Income $50,000 to $74,999 ",{"$f":"$C$18+$C$19","v":97},{"$f":"SQRT(($D$18^2)+($D$19^2))","v":32.557641192199412},{"$f":"$E$18+$E$19","v":368},{"$f":"SQRT(($F$18^2)+($F$19^2))","v":143.40153416194681},{"$f":"$G$18+$G$19","v":843},{"$f":"SQRT(($H$18^2)+($H$19^2))","v":179.60512242138307},{"$f":"$I$18+$I$19","v":108},{"$f":"SQRT(($J$18^2)+($J$19^2))","v":40.36087214122113},{"$f":"$K$18+$K$19","v":51},{"$f":"SQRT(($L$18^2)+($L$19^2))","v":23.430749027719962},{"$f":"$M$18+$M$19","v":77},{"$f":"SQRT(($N$18^2)+($N$19^2))","v":31.400636936215164},{"$f":"$O$18+$O$19","v":213},{"$f":"SQRT(($P$18^2)+($P$19^2))","v":98.183501669068619},{"$f":"Q18+Q19","v":53},{"$f":"SQRT((R18^2)+(R19^2))","v":23.430749027719962},{"$f":"S18+S19","v":55},{"$f":"SQRT((T18^2)+(T19^2))","v":30.016662039607269},{"$f":"U18+U19","v":626},{"$f":"SQRT((V18^2)+(V19^2))","v":180.71247881648904},{"$f":"W18+W19","v":142},{"$f":"SQRT((X18^2)+(X19^2))","v":63.812224534175265},{"$f":"Y18+Y19","v":68},{"$f":"SQRT((Z18^2)+(Z19^2))","v":31.906112267087632},{"$f":"AA18+AA19","v":259},{"$f":"SQRT((AB18^2)+(AB19^2))","v":90.210864090751286},{"$f":"AC18+AC19","v":112},{"$f":"SQRT((AD18^2)+(AD19^2))","v":31.240998703626616},{"$f":"AE18+AE19","v":86},{"$f":"SQRT((AF18^2)+(AF19^2))","v":31.827660925679098}]
[null,"Income $75,000 to $99,999 ",{"$f":"$C$20","v":64},{"$f":"$D$20","v":32},{"$f":"$E$20","v":413},{"$f":"$F$20","v":144},{"$f":"$G$20","v":863},{"$f":"$H$20","v":176},{"$f":"$I$20","v":111},{"$f":"$J$20","v":36},{"$f":"$K$20","v":48},{"$f":"$L$20","v":23},{"$f":"$M$20","v":49},{"$f":"$N$20","v":17},{"$f":"$O$20","v":129},{"$f":"$P$20","v":62},{"$f":"Q20","v":45},22,67,29,377,131,185,49,{"$f":"Y20","v":152},53,202,77,96,34,81,37]
[null,"Income $100,000 to $149,999 ",{"$f":"$C$21+$C$22","v":62},{"$f":"SQRT(($D$21^2)+($D$22^2))","v":24.839484696748443},{"$f":"$E$21+$E$22","v":129},{"$f":"SQRT(($F$21^2)+($F$22^2))","v":85.912746434973201},{"$f":"$G$21+$G$22","v":483},{"$f":"SQRT(($H$21^2)+($H$22^2))","v":140.61649974309557},{"$f":"$I$21+$I$22","v":174},{"$f":"SQRT(($J$21^2)+($J$22^2))","v":42.5205832509386},{"$f":"$K$21+$K$22","v":64},{"$f":"SQRT(($L$21^2)+($L$22^2))","v":29.832867780352597},{"$f":"$M$21+$M$22","v":41},{"$f":"SQRT(($N$21^2)+($N$22^2))","v":22.472205054244231},{"$f":"$O$21+$O$22","v":367},{"$f":"SQRT(($P$21^2)+($P$22^2))","v":132.48396129343357},{"$f":"Q21+Q22","v":55},{"$f":"SQRT((R21^2)+(R22^2))","v":18.439088914585774},{"$f":"S21+S22","v":89},{"$f":"SQRT((T21^2)+(T22^2))","v":36.687872655688281},{"$f":"U21+U22","v":249},{"$f":"SQRT((V21^2)+(V22^2))","v":106.25441167311595},{"$f":"W21+W22","v":179},{"$f":"SQRT((X21^2)+(X22^2))","v":55.317266743757322},{"$f":"Y21+Y22","v":77},{"$f":"SQRT((Z21^2)+(Z22^2))","v":38.078865529319543},{"$f":"AA21+AA22","v":290},{"$f":"SQRT((AB21^2)+(AB22^2))","v":106.30145812734649},{"$f":"AC21+AC22","v":125},{"$f":"SQRT((AD21^2)+(AD22^2))","v":41.400483088968905},{"$f":"AE21+AE22","v":115},{"$f":"SQRT((AF21^2)+(AF22^2))","v":43.266615305567875}]
[null,"Income $150,000 to $199,999 ",{"$f":"$C$23","v":19},{"$f":"$D$23","v":13},{"$f":"$E$23","v":23},{"$f":"$F$23","v":29},{"$f":"$G$23","v":238},{"$f":"$H$23","v":102},{"$f":"$I$23","v":55},{"$f":"$J$23","v":22},{"$f":"$K$23","v":25},{"$f":"$L$23","v":20},{"$f":"$M$23","v":12},{"$f":"$N$23","v":11},{"$f":"$O$23","v":163},{"$f":"$P$23","v":107},{"$f":"Q23","v":18},13,14,22,215,111,65,34,{"$f":"Y23","v":11},9,104,48,{"$f":"AC23","v":34},16,26,19]
[null,"Income $200,000 or more ",{"$f":"$C$24","v":16},{"$f":"$D$24","v":12},{"$f":"$E$24","v":90},{"$f":"$F$24","v":69},{"$f":"$G$24","v":86},{"$f":"$H$24","v":54},{"$f":"$I$24","v":64},{"$f":"$J$24","v":29},{"$f":"$K$24","v":12},{"$f":"$L$24","v":11},{"$f":"$M$24","v":2},{"$f":"$N$24","v":4},{"$f":"$O$24","v":106},{"$f":"$P$24","v":69},17,16,11,14,59,42,100,32,13,8,81,42,{"$f":"AC24","v":12},9,59,59]
[]
[]
[]
[]
[]
[]
[]
[]
[]
[]
[]
[]
[]
[]
[]
[]
[]
[]
[]
[]
[]
[]
[]
[null,null,null,null,null,null,null,null,null,null,null,null,null,null,"B19001. HOUSEHOLD INCOME IN THE PAST 12 MONTHS (IN 2014 INFLATION-ADJUSTED DOLLARS)"]
[null,"B19001. HOUSEHOLD INCOME IN THE PAST 12 MONTHS (IN 2014 INFLATION-ADJUSTED DOLLARS)",null,null,null,null,null,null,null,null,null,null,null,null,"Universe:  HOUSEHOLDS"]
[null,"Universe:  HOUSEHOLDS",null,null,null,null,null,null,null,null,null,null,null,null,"Data Set: 2010-2014 American Community Survey 5-Year Estimates"]
[null,"Data Set: 2010-2014 American Community Survey 5-Year Estimates"]
[]
[null,null,"Acworth",null,"Charlestown",null,"Claremont",null,"Cornish",null,"Croydon",null,"Goshen",null,"Grantham",null,"Langdon",null,"Lempster",null,"Newport",null,"Plainfield",null,"Springfield",null,"Sunapee",null,"Unity",null,"Washington"]
[null,null,"Estimate","Margin Of Error","Estimate","Margin Of Error","Estimate","Margin Of Error","Estimate","Margin Of Error","Estimate","Margin Of Error","Estimate","Margin Of Error","Estimate","Margin Of Error","Estimate","Margin Of Error","Estimate","Margin Of Error","Estimate","Margin Of Error","Estimate","Margin Of Error","Estimate","Margin Of Error","Estimate","Margin Of Error","Estimate","Margin Of Error","Estimate","Margin Of Error"]
[null,"Total Households",347,44,2185,131,5418,242,644,62,257,42,320,42,1084,82,284,42,425,55,2806,190,933,81,482,69,1496,87,529,62,449,64]
[null,"Households With"]
[null,"Income Less than $10,000 ",16,13,145,105,435,132,28,17,2,6,12,12,0,11,8,9,13,14,273,135,6,9,6,7,44,56,7,7,10,13]
[null,"Income $10,000 to $14,999 ",12,8,137,83,405,137,16,11,3,4,8,6,0,11,12,7,7,12,199,99,0,11,9,8,65,51,30,16,18,11]
[null,"Income $15,000 to $19,999 ",17,16,184,99,349,124,17,10,8,7,10,10,10,13,6,6,3,5,81,58,10,10,11,9,45,48,9,7,22,14]
[null,"Income $20,000 to $24,999 ",20,17,117,80,336,95,16,15,17,13,30,23,0,11,15,12,49,27,77,48,22,16,12,9,75,56,19,16,28,18]
[null,"Income $25,000 to $29,999 ",14,11,90,55,291,119,18,12,8,7,27,14,47,45,8,7,21,15,58,40,42,27,8,13,55,53,47,29,30,21]
[null,"Income $30,000 to $34,999 ",28,19,149,101,338,119,16,10,21,15,24,18,11,16,20,15,15,10,105,67,55,31,3,4,65,56,28,18,9,7]
[null,"Income $35,000 to $39,999 ",24,15,216,136,231,85,16,14,14,10,19,12,45,41,15,13,8,6,135,78,69,35,20,20,93,64,19,12,46,21]
[null,"Income $40,000 to $44,999 ",19,13,156,99,292,103,42,24,9,10,18,12,35,31,9,6,25,17,230,138,15,14,13,15,14,17,35,20,8,7]
[null,"Income $45,000 to $49,999 ",8,9,71,46,239,97,10,7,5,6,14,12,38,29,12,9,21,13,158,112,6,9,21,19,31,28,37,22,13,11]
[null,"Income $50,000 to $59,999 ",50,24,163,85,523,167,39,22,13,11,36,22,36,24,9,6,44,24,261,114,18,14,45,25,138,74,41,24,44,26]
[null,"Income $60,000 to $74,999 ",24,16,274,119,571,152,103,43,33,20,23,13,168,66,43,22,36,16,345,134,114,39,79,30,176,94,86,29,55,19]
[null,"Income $75,000 to $99,999 ",64,23,275,116,674,191,113,29,55,22,41,17,183,70,71,30,81,28,455,173,111,44,100,34,234,92,59,24,74,30]
[null,"Income $100,000 to $124,999 ",17,9,92,52,308,121,88,32,40,23,19,10,251,105,26,13,57,26,152,77,200,70,55,27,170,68,75,28,33,20]
[null,"Income $125,000 to $149,999 ",13,17,99,79,201,85,61,23,22,14,16,11,92,53,9,7,12,16,165,94,99,42,70,33,152,80,27,19,30,20]
[null,"Income $150,000 to $199,999 ",8,11,17,27,136,85,51,25,0,11,15,15,49,35,6,7,13,9,55,41,76,29,16,14,48,51,7,6,13,10]
[null,"Income $200,000 or more ",13,8,0,11,89,49,10,8,7,7,8,10,119,53,15,13,20,22,57,47,90,35,14,10,91,45,3,4,16,14]
[]
[]
[]
[]
[null,"Calculated B19001. HOUSEHOLD INCOME IN THE PAST 12 MONTHS (IN 2014 INFLATION-ADJUSTED DOLLARS)"]
[null,"Universe:  HOUSEHOLDS"]
[null,"Data Set: 2010-2014 American Community Survey 5-Year Estimates"]
[null,null,"Acworth",null,"Charlestown",null,"Claremont",null,"Cornish",null,"Croydon",null,"Goshen",null,"Grantham",null,"Langdon",null,"Lempster",null,"Newport",null,"Plainfield",null,"Springfield",null,"Sunapee",null,"Unity",null,"Washington"]
[null,null,"Estimate","Margin Of Error","Estimate","Margin Of Error","Estimate","Margin Of Error","Estimate","Margin Of Error","Estimate","Margin Of Error","Estimate","Margin Of Error","Estimate","Margin Of Error","Estimate","Margin Of Error","Estimate","Margin Of Error","Estimate","Margin Of Error","Estimate","Margin Of Error","Estimate","Margin Of Error","Estimate","Margin Of Error","Estimate","Margin Of Error","Estimate","Margin Of Error"]
[null,"Total Households",347,44,2185,131,5418,242,644,62,257,42,320,42,1084,82,284,42,425,55,2806,190,933,81,482,69,1496,87,529,62,449,64]
[null,"Households With"]
[null,"Income Less than $10,000 ",16,13,145,105,435,132,28,17,2,6,12,12,0,11,8,9,13,14,273,135,6,9,6,7,44,56,7,7,10,13]
[null,"Income $10,000 to $14,999 ",12,8,137,83,405,137,16,11,3,4,8,6,0,11,12,7,7,12,199,99,0,11,9,8,65,51,30,16,18,11]
[null,"Income $15,000 to $24,999 ",37,23.345235059857504,301,127.28314892396401,685,156.20819440733575,33,18.027756377319946,25,14.7648230602334,40,25.079872407968907,10,17.029386365926403,21,13.416407864998739,52,27.459060435491963,158,75.286120898874842,32,18.867962264113206,23,12.727922061357855,120,73.756355658343097,28,17.464249196572979,50,22.803508501982758]
[null,"Income $25,000 to $34,999 ",42,21.95449840010015,239,115.00434774390054,629,168.29141392239831,34,15.620499351813308,29,16.552945357246848,51,22.803508501982758,58,47.75981574503821,28,16.552945357246848,36,18.027756377319946,163,78.03204469959762,97,41.109609582188931,11,13.601470508735444,120,77.103826104804938,75,34.132096331752024,39,22.135943621178654]
[null,"Income $35,000 to $49,999 ",51,21.794494717703369,443,174.39323381370048,762,165.05453644174705,68,28.653097563788805,28,15.362291495737216,51,20.784609690826528,118,59.016946718718003,36,16.911534525287763,54,22.22611077089287,523,194.09276132818556,90,38.7556447501522,54,31.400636936215164,138,71.895757872074768,91,32.062439083762797,67,24.718414188616549]
[null,"Income $50,000 to $74,999 ",74,28.844410203711913,437,146.23952953972466,1094,225.81629702038779,142,48.301138702933287,46,22.825424421026653,59,25.553864678361276,204,70.228199464317754,52,22.803508501982758,80,28.844410203711913,606,175.93180496999398,132,41.43669871020132,124,39.05124837953327,314,119.63277142990545,127,37.643060449437421,99,32.202484376209235]
[null,"Income $75,000 to $99,999 ",64,23,275,116,674,191,113,29,55,22,41,17,183,70,71,30,81,28,455,173,111,44,100,34,234,92,59,24,74,30]
[null,"Income $100,000 to $149,999 ",30,19.235384061671343,191,94.578010129204984,509,147.87156589419075,149,39.408120990476064,62,26.92582403567252,35,14.866068747318506,343,117.61802582937702,35,14.7648230602334,69,30.528675044947494,317,121.51131634543344,299,81.6333265278342,125,42.638011210655684,322,104.9952379872535,102,33.837848631377263,63,28.284271247461902]
[null,"Income $150,000 to $199,999 ",8,11,17,27,136,85,51,25,0,11,15,15,49,35,6,7,13,9,55,41,76,29,16,14,48,51,7,6,13,10]
[null,"Income $200,000 or more ",13,8,0,11,89,49,10,8,7,7,8,10,119,53,15,13,20,22,57,47,90,35,14,10,91,45,3,4,16,14]
[]
[]
[]
[null,"B19001. HOUSEHOLD INCOME IN THE PAST 12 MONTHS (IN 2009 INFLATION-ADJUSTED DOLLARS)",null,null,null,null,null,null,null,null,null,null,null,null,{"$f":"B118","v":"B19001. HOUSEHOLD INCOME IN THE PAST 12 MONTHS (IN 2009 INFLATION-ADJUSTED DOLLARS)"}]
[null,"Universe:  HOUSEHOLDS",null,null,null,null,null,null,null,null,null,null,null,null,{"$f":"B120","v":"Data Set: 2005-2009 American Community Survey 5-Year Estimates"}]
[null,"Data Set: 2005-2009 American Community Survey 5-Year Estimates"]
[]
[null,null,"Acworth",null,"Charlestown",null,"Claremont",null,"Cornish",null,"Croydon",null,"Goshen",null,"Grantham",null,"Langdon",null,"Lempster",null,"Newport",null,"Plainfield",null,"Springfield",null,"Sunapee",null,"Unity",null,"Washington"]
[null,null,"Estimate","Margin Of Error","Estimate","Margin Of Error","Estimate","Margin Of Error","Estimate","Margin Of Error","Estimate","Margin Of Error","Estimate","Margin Of Error","Estimate","Margin Of Error","Estimate","Margin Of Error","Estimate","Margin Of Error","Estimate","Margin Of Error","Estimate","Margin Of Error","Estimate","Margin Of Error","Estimate","Margin Of Error","Estimate","Margin Of Error","Estimate","Margin Of Error"]
[null,"Total Households",343,60,2138,130,5799,248,676,72,335,54,402,60,1016,69,222,59,468,57,2562,192,946,97,335,56,1422,128,648,87,527,62]
[null,"Households With"]
[null,"Income Less than $10,000 ",9,10,83,65,558,167,20,17,8,10,7,7,27,32,10,15,7,9,214,126,14,21,20,18,65,48,50,35,14,11]
[null,"Income $10,000 to $14,999 ",31,22,107,73,540,152,17,19,30,24,18,16,33,30,9,11,36,25,261,105,15,17,8,13,46,47,12,13,34,21]
[null,"Income $15,000 to $19,999 ",5,8,110,70,310,100,13,10,8,9,39,28,6,9,5,8,26,17,184,94,30,32,8,9,52,49,22,16,31,20]
[null,"Income $20,000 to $24,999 ",38,25,118,73,266,108,44,27,6,6,10,9,29,23,4,7,17,10,93,113,19,13,14,14,109,93,38,28,26,19]
[null,"Income $25,000 to $29,999 ",0,114,100,71,439,158,43,23,15,9,8,8,41,34,15,18,15,9,115,79,49,28,12,11,17,19,47,32,41,23]
[null,"Income $30,000 to $34,999 ",17,18,134,74,482,148,30,24,34,27,29,24,56,39,10,16,29,16,120,57,22,20,15,16,68,42,23,20,35,18]
[null,"Income $35,000 to $39,999 ",3,4,76,71,337,136,33,25,21,19,18,15,31,25,17,22,40,25,103,79,61,38,8,7,134,86,20,18,12,15]
[null,"Income $40,000 to $44,999 ",62,46,126,82,342,124,31,21,31,27,46,23,22,26,15,15,20,13,177,97,21,17,19,14,61,51,22,17,43,31]
[null,"Income $45,000 to $49,999 ",40,24,140,93,343,118,22,17,7,7,43,28,44,33,0,114,6,6,96,70,58,30,14,10,46,33,35,35,26,17]
[null,"Income $50,000 to $59,999 ",31,20,236,103,472,162,42,22,16,16,53,31,27,20,22,17,62,30,436,132,60,31,10,12,128,65,50,28,52,31]
[null,"Income $60,000 to $74,999 ",48,31,312,126,593,170,83,34,49,21,45,22,113,56,17,14,86,39,279,100,143,57,36,19,198,86,120,46,84,24]
[null,"Income $75,000 to $99,999 ",26,15,392,111,664,146,91,37,59,23,61,34,177,62,39,25,63,23,276,93,109,46,85,25,182,73,127,49,29,19]
[null,"Income $100,000 to $124,999 ",8,9,161,100,187,82,79,31,36,25,19,17,202,61,33,26,34,22,128,88,164,60,36,25,54,44,37,29,32,20]
[null,"Income $125,000 to $149,999 ",14,16,28,32,105,71,63,39,12,11,0,114,118,49,10,12,14,16,59,55,63,34,28,22,54,51,36,25,22,13]
[null,"Income $150,000 to $199,999 ",11,11,15,26,77,55,31,18,3,5,0,114,44,27,16,17,0,114,21,25,35,26,18,16,139,88,9,14,10,15]
[null,"Income $200,000 or more ",0,114,0,114,84,77,34,24,0,114,6,8,46,26,0,114,13,13,0,114,83,47,4,6,69,44,0,114,36,17]
[]
[]
[]
[]
[null,"Calculated B19001. HOUSEHOLD INCOME IN THE PAST 12 MONTHS (IN 2009 INFLATION-ADJUSTED DOLLARS)"]
[null,"Universe:  HOUSEHOLDS"]
[null,"Data Set: 2005-2009 American Community Survey 5-Year Estimates"]
[null,null,"Acworth",null,"Charlestown",null,"Claremont",null,"Cornish",null,"Croydon",null,"Goshen",null,"Grantham",null,"Langdon",null,"Lempster",null,"Newport",null,"Plainfield",null,"Springfield",null,"Sunapee",null,"Unity",null,"Washington"]
[null,null,"Estimate","Margin Of Error","Estimate","Margin Of Error","Estimate","Margin Of Error","Estimate","Margin Of Error","Estimate","Margin Of Error","Estimate","Margin Of Error","Estimate","Margin Of Error","Estimate","Margin Of Error","Estimate","Margin Of Error","Estimate","Margin Of Error","Estimate","Margin Of Error","Estimate","Margin Of Error","Estimate","Margin Of Error","Estimate","Margin Of Error","Estimate","Margin Of Error"]
[null,"Total Households",{"$f":"$C$76","v":347},{"$f":"$D$76","v":44},{"$f":"$E$76","v":2185},{"$f":"$F$76","v":131},{"$f":"$G$76","v":5418},{"$f":"$H$76","v":242},{"$f":"$I$76","v":644},{"$f":"$J$76","v":62},{"$f":"$K$76","v":257},{"$f":"$L$76","v":42},{"$f":"$M$76","v":320},{"$f":"$N$76","v":42},{"$f":"$O$76","v":1084},{"$f":"$P$76","v":82},{"$f":"$Q$76","v":284},{"$f":"$R$76","v":42},{"$f":"$S$76","v":425},{"$f":"T124","v":57},2562,192,946,97]
[null,"Households With"]
[null,"Income Less than $10,000 ",{"$f":"$C$78","v":16},{"$f":"$D$78","v":13},{"$f":"$E$78","v":145},{"$f":"$F$78","v":105},{"$f":"$G$78","v":435},{"$f":"$H$78","v":132},{"$f":"$I$78","v":28},{"$f":"$J$78","v":17},{"$f":"$K$78","v":2},{"$f":"$L$78","v":6},{"$f":"$M$78","v":12},{"$f":"$N$78","v":12},{"$f":"$O$78","v":0},{"$f":"$P$78","v":11},{"$f":"$Q$78","v":8},{"$f":"$R$78","v":9},{"$f":"$S$78","v":13},{"$f":"T126","v":9},214,126,14,21]
[null,"Income $10,000 to $14,999 ",{"$f":"$C$79","v":12},{"$f":"$D$79","v":8},{"$f":"$E$79","v":137},{"$f":"$F$79","v":83},{"$f":"$G$79","v":405},{"$f":"$H$79","v":137},{"$f":"$I$79","v":16},{"$f":"$J$79","v":11},{"$f":"$K$79","v":3},{"$f":"$L$79","v":4},{"$f":"$M$79","v":8},{"$f":"$N$79","v":6},{"$f":"$O$79","v":0},{"$f":"$P$79","v":11},{"$f":"$Q$79","v":12},{"$f":"$R$79","v":7},{"$f":"$S$79","v":7},25,261,105,15,17]
[null,"Income $15,000 to $24,999 ",{"$f":"$C$80+$C$81","v":37},{"$f":"SQRT(($D$80^2)+($D$81^2))","v":23.345235059857504},{"$f":"$E$80+$E$81","v":301},{"$f":"SQRT(($F$80^2)+($F$81^2))","v":127.28314892396401},{"$f":"$G$80+$G$81","v":685},{"$f":"SQRT(($H$80^2)+($H$81^2))","v":156.20819440733575},{"$f":"$I$80+$I$81","v":33},{"$f":"SQRT(($J$80^2)+($J$81^2))","v":18.027756377319946},{"$f":"$K$80+$K$81","v":25},{"$f":"SQRT(($L$80^2)+($L$81^2))","v":14.7648230602334},{"$f":"$M$80+$M$81","v":40},{"$f":"SQRT(($N$80^2)+($N$81^2))","v":25.079872407968907},{"$f":"$O$80+$O$81","v":10},{"$f":"SQRT(($P$80^2)+($P$81^2))","v":17.029386365926403},{"$f":"$Q$80+$Q$81","v":21},{"$f":"SQRT(($R$80^2)+($R$81^2))","v":13.416407864998739},{"$f":"S128+S129","v":43},{"$f":"SQRT((T128^2)+(T129^2))","v":19.723082923316021},{"$f":"U128+U129","v":277},{"$f":"SQRT((V128^2)+(V129^2))","v":146.98639392814562},{"$f":"W128+W129","v":49},{"$f":"SQRT((X128^2)+(X129^2))","v":34.539832078341085}]
[null,"Income $25,000 to $34,999 ",{"$f":"$C$82+$C$83","v":42},{"$f":"SQRT(($D$82^2)+($D$83^2))","v":21.95449840010015},{"$f":"$E$82+$E$83","v":239},{"$f":"SQRT(($F$82^2)+($F$83^2))","v":115.00434774390054},{"$f":"$G$82+$G$83","v":629},{"$f":"SQRT(($H$82^2)+($H$83^2))","v":168.29141392239831},{"$f":"$I$82+$I$83","v":34},{"$f":"SQRT(($J$82^2)+($J$83^2))","v":15.620499351813308},{"$f":"$K$82+$K$83","v":29},{"$f":"SQRT(($L$82^2)+($L$83^2))","v":16.552945357246848},{"$f":"$M$82+$M$83","v":51},{"$f":"SQRT(($N$82^2)+($N$83^2))","v":22.803508501982758},{"$f":"$O$82+$O$83","v":58},{"$f":"SQRT(($P$82^2)+($P$83^2))","v":47.75981574503821},{"$f":"$Q$82+$Q$83","v":28},{"$f":"SQRT(($R$82^2)+($R$83^2))","v":16.552945357246848},{"$f":"S130+S131","v":44},{"$f":"SQRT((T130^2)+(T131^2))","v":18.357559750685819},{"$f":"U130+U131","v":235},{"$f":"SQRT((V130^2)+(V131^2))","v":97.416631023660429},{"$f":"W130+W131","v":71},{"$f":"SQRT((X130^2)+(X131^2))","v":34.409301068170507}]
[null,"Income $35,000 to $49,999 ",{"$f":"$C$84+$C$85+$C$86","v":51},{"$f":"SQRT(($D$84^2)+($D$85^2)+($D$86^2))","v":21.794494717703369},{"$f":"$E$84+$E$85+$E$86","v":443},{"$f":"SQRT(($F$84^2)+($F$85^2)+($F$86^2))","v":174.39323381370048},{"$f":"$G$84+$G$85+$G$86","v":762},{"$f":"SQRT(($H$84^2)+($H$85^2)+($H$86^2))","v":165.05453644174705},{"$f":"$I$84+$I$85+$I$86","v":68},{"$f":"SQRT(($J$84^2)+($J$85^2)+($J$86^2))","v":28.653097563788805},{"$f":"$K$84+$K$85+$K$86","v":28},{"$f":"SQRT(($L$84^2)+($L$85^2)+($L$86^2))","v":15.362291495737216},{"$f":"$M$84+$M$85+$M$86","v":51},{"$f":"SQRT(($N$84^2)+($N$85^2)+($N$86^2))","v":20.784609690826528},{"$f":"$O$84+$O$85+$O$86","v":118},{"$f":"SQRT(($P$84^2)+($P$85^2)+($P$86^2))","v":59.016946718718003},{"$f":"$Q$84+$Q$85+$Q$86","v":36},{"$f":"SQRT(($R$84^2)+($R$85^2)+($R$86^2))","v":16.911534525287763},{"$f":"S132+S133+S134","v":66},{"$f":"SQRT((T132^2)+(T133^2)+(T134^2))","v":28.809720581775867},{"$f":"U132+U133+U134","v":376},{"$f":"SQRT((V132^2)+(V133^2)+(V134^2))","v":143.35271186831451},{"$f":"W132+W133+W134","v":140},{"$f":"SQRT((X132^2)+(X133^2)+(X134^2))","v":51.312766442669997}]
[null,"Income $50,000 to $74,999 ",{"$f":"$C$87+$C$88","v":74},{"$f":"SQRT(($D$87^2)+($D$88^2))","v":28.844410203711913},{"$f":"$E$87+$E$88","v":437},{"$f":"SQRT(($F$87^2)+($F$88^2))","v":146.23952953972466},{"$f":"$G$87+$G$88","v":1094},{"$f":"SQRT(($H$87^2)+($H$88^2))","v":225.81629702038779},{"$f":"$I$87+$I$88","v":142},{"$f":"SQRT(($J$87^2)+($J$88^2))","v":48.301138702933287},{"$f":"$K$87+$K$88","v":46},{"$f":"SQRT(($L$87^2)+($L$88^2))","v":22.825424421026653},{"$f":"$M$87+$M$88","v":59},{"$f":"SQRT(($N$87^2)+($N$88^2))","v":25.553864678361276},{"$f":"$O$87+$O$88","v":204},{"$f":"SQRT(($P$87^2)+($P$88^2))","v":70.228199464317754},{"$f":"$Q$87+$Q$88","v":52},{"$f":"SQRT(($R$87^2)+($R$88^2))","v":22.803508501982758},{"$f":"S135+S136","v":148},{"$f":"SQRT((T135^2)+(T136^2))","v":49.203658400570177},{"$f":"U135+U136","v":715},{"$f":"SQRT((V135^2)+(V136^2))","v":165.60193235587562},{"$f":"W135+W136","v":203},{"$f":"SQRT((X135^2)+(X136^2))","v":64.884512790033341}]
[null,"Income $75,000 to $99,999 ",{"$f":"$C$89","v":64},{"$f":"$D$89","v":23},{"$f":"$E$89","v":275},{"$f":"$F$89","v":116},{"$f":"$G$89","v":674},{"$f":"$H$89","v":191},{"$f":"$I$89","v":113},{"$f":"$J$89","v":29},{"$f":"$K$89","v":55},{"$f":"$L$89","v":22},{"$f":"$M$89","v":41},{"$f":"$N$89","v":17},{"$f":"$O$89","v":183},{"$f":"$P$89","v":70},{"$f":"$Q$89","v":71},{"$f":"$R$89","v":30},{"$f":"S137","v":63},23,276,93,109,46]
[null,"Income $100,000 to $149,999 ",{"$f":"$C$90+$C$91","v":30},{"$f":"SQRT(($D$90^2)+($D$91^2))","v":19.235384061671343},{"$f":"$E$90+$E$91","v":191},{"$f":"SQRT(($F$90^2)+($F$91^2))","v":94.578010129204984},{"$f":"$G$90+$G$91","v":509},{"$f":"SQRT(($H$90^2)+($H$91^2))","v":147.87156589419075},{"$f":"$I$90+$I$91","v":149},{"$f":"SQRT(($J$90^2)+($J$91^2))","v":39.408120990476064},{"$f":"$K$90+$K$91","v":62},{"$f":"SQRT(($L$90^2)+($L$91^2))","v":26.92582403567252},{"$f":"$M$90+$M$91","v":35},{"$f":"SQRT(($N$90^2)+($N$91^2))","v":14.866068747318506},{"$f":"$O$90+$O$91","v":343},{"$f":"SQRT(($P$90^2)+($P$91^2))","v":117.61802582937702},{"$f":"$Q$90+$Q$91","v":35},{"$f":"SQRT(($R$90^2)+($R$91^2))","v":14.7648230602334},{"$f":"S138+S139","v":48},{"$f":"SQRT((T138^2)+(T139^2))","v":27.202941017470888},{"$f":"U138+U139","v":187},{"$f":"SQRT((V138^2)+(V139^2))","v":103.77379245262264},{"$f":"W138+W139","v":227},{"$f":"SQRT((X138^2)+(X139^2))","v":68.963758598266665}]
[null,"Income $150,000 to $199,999 ",{"$f":"$C$92","v":8},{"$f":"$D$92","v":11},{"$f":"$E$92","v":17},{"$f":"$F$92","v":27},{"$f":"$G$92","v":136},{"$f":"$H$92","v":85},{"$f":"$I$92","v":51},{"$f":"$J$92","v":25},{"$f":"$K$92","v":0},{"$f":"$L$92","v":11},{"$f":"$M$92","v":15},{"$f":"$N$92","v":15},{"$f":"$O$92","v":49},{"$f":"$P$92","v":35},{"$f":"$Q$92","v":6},{"$f":"$R$92","v":7},{"$f":"$S$92","v":13},{"$f":"T140","v":114},21,25,35,26]
[null,"Income $200,000 or more ",{"$f":"$C$93","v":13},{"$f":"$D$93","v":8},{"$f":"$E$93","v":0},{"$f":"$F$93","v":11},{"$f":"$G$93","v":89},{"$f":"$H$93","v":49},{"$f":"$I$93","v":10},{"$f":"$J$93","v":8},{"$f":"$K$93","v":7},{"$f":"$L$93","v":7},{"$f":"$M$93","v":8},{"$f":"$N$93","v":10},{"$f":"$O$93","v":119},{"$f":"$P$93","v":53},{"$f":"$Q$93","v":15},{"$f":"$R$93","v":13},{"$f":"$S$93","v":20},13,0,114,83,47]

{"sheet":"ACS_Table_B19037","index":37,"n_rows":253,"n_cols":32,"rows_kept":253,"cut":false,"hidden":true,"merged":[]}
[null,"B19037. AGE OF HOUSEHOLDER BY HOUSEHOLD INCOME IN THE PAST 12 MONTHS (IN 2019 INFLATION-ADJUSTED DOLLARS)"]
[null,"Universe:  HOUSEHOLDS"]
[null,"Data Set: 2015-2019 American Community Survey 5-Year Estimates"]
[]
[null,null,"Acworth",null,"Charlestown",null,"Claremont",null,"Cornish",null,"Croydon",null,"Goshen",null,"Grantham",null,"Langdon",null,"Lempster",null,"Newport",null,"Plainfield",null,"Springfield",null,"Sunapee",null,"Unity",null,"Washington"]
[null,null,"Estimate","Margin Of Error","Estimate","Margin Of Error","Estimate","Margin Of Error","Estimate","Margin Of Error","Estimate","Margin Of Error","Estimate","Margin Of Error","Estimate","Margin Of Error","Estimate","Margin Of Error","Estimate","Margin Of Error","Estimate","Margin Of Error","Estimate","Margin Of Error","Estimate","Margin Of Error","Estimate","Margin Of Error","Estimate","Margin Of Error","Estimate","Margin Of Error"]
[null,"Total:",370,51,2086,184,5231,284,741,81,293,56,277,39,1222,142,257,47,393,59,2600,168,915,86,442,75,1393,139,571,56,537,81]
[null,"Householder under 25 years:",0,11,14,19,227,118,0,11,8,9,6,9,40,40,6,10,3,4,65,48,5,7,0,11,50,52,0,11,3,5]
[null,"Less than $10,000",0,11,6,9,21,34,0,11,0,11,0,11,0,11,6,10,0,11,32,31,0,11,0,11,6,10,0,11,0,11]
[null,"$10,000 to $14,999",0,11,0,16,0,18,0,11,0,11,0,11,0,11,0,11,0,11,0,16,0,11,0,11,0,11,0,11,0,11]
[null,"$15,000 to $19,999",0,11,0,16,5,8,0,11,0,11,0,11,0,11,0,11,0,11,0,16,0,11,0,11,0,11,0,11,0,11]
[null,"$20,000 to $24,999",0,11,0,16,46,50,0,11,0,11,0,11,0,11,0,11,0,11,0,16,0,11,0,11,8,13,0,11,0,11]
[null,"$25,000 to $29,999",0,11,0,16,9,14,0,11,0,11,0,11,0,11,0,11,0,11,0,16,0,11,0,11,0,11,0,11,0,11]
[null,"$30,000 to $34,999",0,11,8,15,0,18,0,11,2,4,0,11,0,11,0,11,0,11,11,16,0,11,0,11,28,47,0,11,0,11]
[null,"$35,000 to $39,999",0,11,0,16,0,18,0,11,0,11,0,11,0,11,0,11,0,11,0,16,0,11,0,11,0,11,0,11,0,11]
[null,"$40,000 to $44,999",0,11,0,16,22,27,0,11,0,11,0,11,0,11,0,11,0,11,0,16,0,11,0,11,0,11,0,11,0,11]
[null,"$45,000 to $49,999",0,11,0,16,18,30,0,11,0,11,0,11,0,11,0,11,0,11,0,16,0,11,0,11,0,11,0,11,0,11]
[null,"$50,000 to $59,999",0,11,0,16,12,20,0,11,0,11,0,11,0,11,0,11,0,11,0,16,0,11,0,11,0,11,0,11,3,5]
[null,"$60,000 to $74,999",0,11,0,16,9,14,0,11,6,9,6,9,17,24,0,11,3,4,0,16,5,7,0,11,0,11,0,11,0,11]
[null,"$75,000 to $99,999",0,11,0,16,85,74,0,11,0,11,0,11,0,11,0,11,0,11,22,26,0,11,0,11,0,11,0,11,0,11]
[null,"$100,000 to $124,999",0,11,0,16,0,18,0,11,0,11,0,11,23,33,0,11,0,11,0,16,0,11,0,11,8,12,0,11,0,11]
[null,"$125,000 to $149,999",0,11,0,16,0,18,0,11,0,11,0,11,0,11,0,11,0,11,0,16,0,11,0,11,0,11,0,11,0,11]
[null,"$150,000 to $199,999",0,11,0,16,0,18,0,11,0,11,0,11,0,11,0,11,0,11,0,16,0,11,0,11,0,11,0,11,0,11]
[null,"$200,000 or more",0,11,0,16,0,18,0,11,0,11,0,11,0,11,0,11,0,11,0,16,0,11,0,11,0,11,0,11,0,11]
[null,"Householder 25 to 44 years:",53,23,526,132,1585,199,96,34,50,21,84,31,215,83,65,22,91,32,814,162,190,49,51,25,404,99,102,32,96,65]
[null,"Less than $10,000",6,10,71,71,67,56,7,9,0,11,8,10,0,11,0,11,3,5,84,93,0,11,8,13,0,11,13,18,0,11]
[null,"$10,000 to $14,999",0,11,0,16,56,46,0,11,0,11,0,11,0,11,0,11,9,14,0,16,0,11,0,11,11,17,3,5,0,11]
[null,"$15,000 to $19,999",0,11,29,47,0,18,0,11,0,11,3,4,0,11,0,11,0,11,59,60,0,11,0,11,0,11,3,5,10,16]
[null,"$20,000 to $24,999",0,11,0,16,122,90,0,11,0,11,0,11,0,11,0,11,0,11,14,22,0,11,0,11,39,55,0,11,0,11]
[null,"$25,000 to $29,999",0,11,32,53,126,84,8,13,3,5,2,4,0,11,0,11,0,11,0,16,0,11,0,11,0,11,0,11,0,11]
[null,"$30,000 to $34,999",2,3,51,58,21,33,0,11,0,11,0,11,0,11,0,11,0,11,24,28,0,11,11,17,8,14,0,11,0,11]
[null,"$35,000 to $39,999",2,3,29,43,0,18,4,6,0,11,0,11,0,11,6,10,8,10,25,29,5,8,0,11,8,13,4,5,0,11]
[null,"$40,000 to $44,999",11,11,22,39,178,108,0,11,0,11,0,11,0,11,2,3,0,11,13,20,14,14,0,11,15,23,0,11,0,11]
[null,"$45,000 to $49,999",2,3,26,34,51,43,2,4,8,12,0,11,0,11,7,7,0,16,7,10,0,11,28,47,9,7,3,4,0,0]
[null,"$50,000 to $59,999",2,3,16,25,109,71,2,5,26,19,23,37,0,11,0,11,231,123,5,7,0,11,10,16,10,14,7,8,0,0]
[null,"$60,000 to $74,999",9,8,0,16,185,105,7,11,5,5,54,58,19,16,0,11,79,78,32,33,3,5,101,57,27,20,14,17,0,0]
[null,"$75,000 to $99,999",5,6,153,99,375,113,12,10,19,13,0,11,16,14,11,10,182,102,35,21,22,15,52,47,3,6,3,5,0,0]
[null,"$100,000 to $124,999",2,3,38,47,112,67,10,8,4,5,41,43,10,9,42,28,64,64,40,28,0,11,65,51,15,15,0,11,0,0]
[null,"$125,000 to $149,999",7,6,36,59,104,64,10,12,3,4,39,52,4,5,11,10,26,30,15,13,3,5,35,31,4,5,13,14,0,0]
[null,"$150,000 to $199,999",3,5,0,16,33,50,4,6,6,7,29,31,8,8,0,11,0,16,16,26,0,11,22,24,8,7,0,11,0,0]
[null,"$200,000 or more",2,3,23,36,46,35,0,11,0,11,29,32,0,11,0,11,13,21,21,13,4,6,10,16,3,4,46,58,0,0]
[null,"Householder 45 to 64 years:",169,42,897,203,2011,231,153,52,99,33,558,124,130,41,197,56,1037,185,449,86,209,60,520,104,280,48,259,56,0,0]
[null,"Less than $10,000",9,12,93,107,212,118,12,15,0,11,0,11,11,13,13,16,42,40,16,14,0,11,79,74,0,11,11,16,0,0]
[null,"$10,000 to $14,999",2,3,0,16,72,64,8,12,8,10,0,11,0,11,4,5,13,22,0,11,3,5,0,11,13,14,0,11,0,0]
[null,"$15,000 to $19,999",3,4,27,35,173,97,3,4,3,4,31,43,3,4,3,4,12,21,0,11,0,11,0,11,12,17,3,5,0,0]
[null,"$20,000 to $24,999",0,11,58,72,123,101,0,11,3,7,0,11,6,6,15,14,14,23,16,19,6,9,0,11,17,13,6,6,0,0]
[null,"$25,000 to $29,999",8,10,85,65,44,40,2,4,0,11,13,22,3,5,2,4,106,91,28,26,7,8,10,15,6,6,3,5,0,0]
[null,"$30,000 to $34,999",0,11,45,67,176,82,3,4,3,4,0,11,0,11,4,5,66,63,10,11,8,14,0,11,8,10,4,5,0,0]
[null,"$35,000 to $39,999",0,11,0,16,58,43,0,11,4,5,0,11,10,11,8,7,38,37,5,7,3,5,0,11,0,11,23,21,0,0]
[null,"$40,000 to $44,999",0,11,60,66,89,59,0,11,2,3,91,102,0,11,12,15,53,43,4,6,8,13,0,11,0,11,4,5,0,0]
[null,"$45,000 to $49,999",11,11,52,49,40,37,14,14,0,11,0,11,3,4,3,4,42,40,11,12,5,9,41,51,3,5,3,4,0,0]
[null,"$50,000 to $59,999",13,13,122,100,190,86,15,13,14,16,0,11,11,14,15,15,94,63,33,31,7,8,46,38,18,11,22,19,0,0]
[null,"$60,000 to $74,999",20,18,58,58,127,61,8,8,13,14,55,50,6,6,15,17,91,64,14,13,4,6,22,24,30,14,13,12,0,0]
[null,"$75,000 to $99,999",36,27,198,110,338,130,25,18,17,11,42,34,25,17,50,29,118,79,117,46,76,41,96,56,72,32,58,35,0,0]
[null,"$100,000 to $124,999",23,16,20,28,122,78,22,18,10,10,16,24,10,8,25,19,27,24,38,19,44,30,69,47,42,23,41,25,0,0]
[null,"$125,000 to $149,999",35,35,68,46,9,11,16,15,131,94,15,9,3,4,83,57,62,44,20,19,70,57,33,24,44,33,0,0,0,0]
[null,"$150,000 to $199,999",23,29,164,81,21,20,6,9,120,98,10,12,14,22,215,111,34,21,11,9,63,35,20,16,17,14,0,0,0,0]
[null,"$200,000 or more",21,26,15,23,11,10,0,11,59,47,17,16,11,14,23,27,61,26,7,8,24,26,6,6,7,7,0,0,0,0]
[null,"Householder 65 years and over:",649,117,1408,194,82,30,88,25,409,112,56,15,102,30,684,162,271,65,182,51,419,96,189,35,179,36,0,0,0,0]
[null,"Less than $10,000",0,16,11,18,2,4,11,10,0,11,0,11,0,11,0,16,26,28,13,16,33,52,6,6,6,6,0,0,0,0]
[null,"$10,000 to $14,999",30,35,117,59,4,4,0,11,0,11,0,11,0,11,33,53,0,11,4,6,4,8,7,6,12,16,0,0,0,0]
[null,"$15,000 to $19,999",122,86,121,60,3,5,3,4,14,22,2,3,7,7,173,110,0,11,7,13,16,17,3,4,5,5,0,0,0,0]
[null,"$20,000 to $24,999",15,24,119,80,10,8,6,5,0,11,0,11,15,16,73,51,14,12,0,11,65,58,20,19,14,16,0,0,0,0]
[null,"$25,000 to $29,999",67,68,147,88,5,5,5,8,78,71,11,7,5,7,74,70,56,40,16,16,12,14,20,11,10,9,0,0,0,0]
[null,"$30,000 to $34,999",13,21,161,92,6,7,5,8,0,11,2,3,7,7,13,21,6,8,14,17,15,17,13,8,16,14,0,0,0,0]
[null,"$35,000 to $39,999",90,80,67,45,8,8,11,11,0,11,0,11,6,9,13,22,6,9,5,7,0,11,3,4,3,4,0,0,0,0]
[null,"$40,000 to $44,999",32,53,68,45,4,4,3,6,0,11,2,3,2,5,11,18,0,11,3,5,0,11,16,11,16,15,0,0,0,0]
[null,"$45,000 to $49,999",0,16,178,90,2,3,8,6,17,25,2,3,24,19,36,28,20,24,0,11,31,27,13,8,18,15,0,0,0,0]
[null,"$50,000 to $59,999",62,51,126,62,4,5,4,4,44,40,8,7,2,3,38,37,9,10,11,15,19,22,11,8,13,8,0,0,0,0]
[null,"$60,000 to $74,999",110,68,85,50,9,7,9,7,20,30,9,5,20,18,93,73,44,34,43,26,61,45,16,10,14,9,0,0,0,0]
[null,"$75,000 to $99,999",62,51,65,46,11,12,13,11,87,54,4,5,6,6,55,36,33,18,54,34,54,35,21,10,20,10,0,0,0,0]
[null,"$100,000 to $124,999",0,16,77,47,6,6,2,3,55,41,12,11,8,8,13,21,14,12,10,14,4,8,23,19,9,7,0,0,0,0]
[null,"$125,000 to $149,999",0,16,0,18,7,12,6,10,62,63,4,5,0,11,36,59,10,10,0,11,39,31,8,8,8,7,0,0,0,0]
[null,"$150,000 to $199,999",0,16,41,43,0,11,0,11,14,20,0,11,0,11,0,16,15,12,0,11,19,20,6,6,9,10,0,0,0,0]
[null,"$200,000 or more",46,54,25,30,1,3,2,4,18,27,0,11,0,11,23,27,18,15,2,4,47,36,3,5,6,6,0,0,0,0]
[]
[]
[]
[]
[]
[]
[]
[]
[]
[]
[]
[]
[]
[]
[null,"B19037. AGE OF HOUSEHOLDER BY HOUSEHOLD INCOME IN THE PAST 12 MONTHS (IN 2014 INFLATION-ADJUSTED DOLLARS)"]
[null,"Universe:  HOUSEHOLDS"]
[null,"Data Set: 2010-2014 American Community Survey 5-Year Estimates"]
[]
[null,null,"Acworth",null,"Charlestown",null,"Claremont",null,"Cornish",null,"Croydon",null,"Goshen",null,"Grantham",null,"Langdon",null,"Lempster",null,"Newport",null,"Plainfield",null,"Springfield",null,"Sunapee",null,"Unity",null,"Washington"]
[null,null,"Estimate","Margin Of Error","Estimate","Margin Of Error","Estimate","Margin Of Error","Estimate","Margin Of Error","Estimate","Margin Of Error","Estimate","Margin Of Error","Estimate","Margin Of Error","Estimate","Margin Of Error","Estimate","Margin Of Error","Estimate","Margin Of Error","Estimate","Margin Of Error","Estimate","Margin Of Error","Estimate","Margin Of Error","Estimate","Margin Of Error","Estimate","Margin Of Error"]
[null,"Total:",347,44,2185,131,5418,242,644,62,257,42,320,42,1084,82,284,42,425,55,2806,190,933,81,482,69,1496,87,529,62,449,64]
[null,"Householder under 25 years:",9,11,14,22,327,100,6,7,0,11,6,9,0,11,0,11,2,3,141,77,2,4,10,15,7,11,8,8,0,11]
[null,"Less than $10,000",0,11,0,11,110,83,0,11,0,11,6,9,0,11,0,11,0,11,57,62,0,11,0,11,0,11,0,11,0,11]
[null,"$10,000 to $14,999",0,11,14,22,27,29,0,11,0,11,0,11,0,11,0,11,0,11,27,32,0,11,0,11,0,11,0,11,0,11]
[null,"$15,000 to $19,999",0,11,0,11,22,27,0,11,0,11,0,11,0,11,0,11,0,11,0,15,0,11,0,11,0,11,0,11,0,11]
[null,"$20,000 to $24,999",0,11,0,11,70,56,0,11,0,11,0,11,0,11,0,11,0,11,0,15,0,11,0,11,0,11,0,11,0,11]
[null,"$25,000 to $29,999",0,11,0,11,22,24,2,3,0,11,0,11,0,11,0,11,0,11,0,15,0,11,0,11,0,11,0,11,0,11]
[null,"$30,000 to $34,999",2,3,0,11,6,11,0,11,0,11,0,11,0,11,0,11,0,11,0,15,2,4,0,11,0,11,0,11,0,11]
[null,"$35,000 to $39,999",7,11,0,11,25,29,0,11,0,11,0,11,0,11,0,11,2,3,0,15,0,11,0,11,0,11,0,11,0,11]
[null,"$40,000 to $44,999",0,11,0,11,14,18,0,11,0,11,0,11,0,11,0,11,0,11,0,15,0,11,0,11,0,11,0,11,0,11]
[null,"$45,000 to $49,999",0,11,0,11,0,17,0,11,0,11,0,11,0,11,0,11,0,11,15,22,0,11,0,11,0,11,6,7,0,11]
[null,"$50,000 to $59,999",0,11,0,11,0,17,0,11,0,11,0,11,0,11,0,11,0,11,42,46,0,11,0,11,0,11,2,4,0,11]
[null,"$60,000 to $74,999",0,11,0,11,20,22,4,6,0,11,0,11,0,11,0,11,0,11,0,15,0,11,0,11,0,11,0,11,0,11]
[null,"$75,000 to $99,999",0,11,0,11,0,17,0,11,0,11,0,11,0,11,0,11,0,11,0,15,0,11,10,15,7,11,0,11,0,11]
[null,"$100,000 to $124,999",0,11,0,11,11,19,0,11,0,11,0,11,0,11,0,11,0,11,0,15,0,11,0,11,0,11,0,11,0,11]
[null,"$125,000 to $149,999",0,11,0,11,0,17,0,11,0,11,0,11,0,11,0,11,0,11,0,15,0,11,0,11,0,11,0,11,0,11]
[null,"$150,000 to $199,999",0,11,0,11,0,17,0,11,0,11,0,11,0,11,0,11,0,11,0,15,0,11,0,11,0,11,0,11,0,11]
[null,"$200,000 or more",0,11,0,11,0,17,0,11,0,11,0,11,0,11,0,11,0,11,0,15,0,11,0,11,0,11,0,11,0,11]
[null,"Householder 25 to 44 years:",85,30,454,133,1701,177,125,46,72,32,57,24,284,98,122,38,123,41,785,165,157,42,176,49,326,80,105,35,100,30]
[null,"Less than $10,000",0,11,55,85,101,65,0,11,0,11,2,3,0,11,0,11,0,11,51,64,0,11,0,11,10,16,0,11,0,11]
[null,"$10,000 to $14,999",3,4,0,11,119,92,6,6,0,11,0,11,0,11,2,3,0,11,18,29,0,11,3,5,0,11,4,5,0,11]
[null,"$15,000 to $19,999",0,11,29,33,35,34,0,11,2,3,0,11,0,11,0,11,0,11,0,15,0,11,0,11,0,11,0,11,3,4]
[null,"$20,000 to $24,999",0,11,0,11,60,53,0,11,0,11,10,16,0,11,8,9,3,4,38,45,6,8,0,11,9,13,0,11,6,6]
[null,"$25,000 to $29,999",0,11,0,11,92,74,3,5,3,4,4,4,0,11,0,11,7,9,0,15,13,20,0,11,0,11,4,8,0,11]
[null,"$30,000 to $34,999",0,11,12,22,141,68,4,5,0,11,2,3,0,11,9,11,3,4,37,45,0,11,0,11,0,11,6,6,0,11]
[null,"$35,000 to $39,999",3,4,106,87,44,51,0,11,8,9,12,11,0,11,0,11,0,11,15,25,0,11,9,16,8,13,0,11,12,15]
[null,"$40,000 to $44,999",9,10,0,11,64,71,4,6,4,5,0,11,10,17,2,3,3,4,121,88,0,11,0,11,7,12,6,9,0,11]
[null,"$45,000 to $49,999",0,11,19,28,60,49,0,11,0,11,4,5,5,7,10,9,2,4,71,90,0,11,9,15,0,11,7,7,0,11]
[null,"$50,000 to $59,999",14,13,19,31,265,116,8,10,3,4,2,3,0,11,0,11,0,11,31,35,0,11,23,21,50,47,4,7,14,17]
[null,"$60,000 to $74,999",6,7,66,62,176,90,32,26,15,15,1,4,42,46,17,16,15,14,71,74,9,10,51,27,72,69,29,17,13,13]
[null,"$75,000 to $99,999",33,17,131,83,307,114,16,13,25,17,14,11,71,52,41,28,44,24,276,148,31,16,38,24,113,60,11,10,23,19]
[null,"$100,000 to $124,999",0,11,0,11,103,89,23,18,12,13,2,3,104,90,13,11,22,18,15,25,28,32,9,9,20,23,23,20,17,17]
[null,"$125,000 to $149,999",11,17,0,11,37,33,20,12,0,11,2,4,38,32,3,5,0,11,41,61,23,19,25,19,18,20,8,9,7,8]
[null,"$150,000 to $199,999",0,11,17,27,67,62,9,15,0,11,0,11,10,16,6,7,4,5,0,15,24,20,9,9,9,14,3,4,3,4]
[null,"$200,000 or more",6,5,0,11,30,33,0,11,0,11,2,3,4,7,11,12,20,22,0,15,23,18,0,11,10,16,0,11,2,4]
[null,"Householder 45 to 64 years:",164,34,1149,177,2053,221,389,58,134,30,180,36,487,80,90,21,216,45,1098,158,524,72,204,53,676,138,310,40,208,48]
[null,"Less than $10,000",14,12,50,45,158,72,22,15,0,11,4,6,0,11,6,9,13,14,96,66,6,9,3,5,34,54,4,6,10,13]
[null,"$10,000 to $14,999",9,7,46,57,89,57,10,9,3,4,3,4,0,11,8,6,0,11,44,43,0,11,0,11,41,45,14,13,10,8]
[null,"$15,000 to $19,999",8,9,14,22,155,73,4,6,4,5,8,9,0,11,5,5,0,11,26,40,10,10,2,5,18,23,6,6,8,12]
[null,"$20,000 to $24,999",8,13,59,54,53,42,12,14,8,10,3,4,0,11,0,11,26,21,17,26,8,10,7,8,8,13,0,11,19,15]
[null,"$25,000 to $29,999",2,3,56,45,101,74,10,9,5,6,16,12,4,7,2,3,5,8,0,15,7,10,0,11,0,11,25,23,23,19]
[null,"$30,000 to $34,999",26,19,85,78,82,77,2,4,7,7,18,16,0,11,10,11,8,7,29,33,35,30,0,11,33,38,19,16,6,6]
[null,"$35,000 to $39,999",10,7,81,95,47,38,13,13,3,5,7,6,36,40,0,11,3,4,73,67,37,30,9,12,85,62,11,9,5,5]
[null,"$40,000 to $44,999",4,5,116,78,117,56,10,9,4,6,13,12,14,20,2,3,19,15,0,15,11,11,9,14,0,11,26,17,5,6]
[null,"$45,000 to $49,999",2,3,31,30,101,57,10,7,3,6,4,4,16,24,0,11,12,9,31,34,6,9,8,11,9,14,21,17,0,11]
[null,"$50,000 to $59,999",16,11,120,72,185,93,26,18,6,6,32,22,5,8,5,5,34,20,138,88,14,12,17,17,57,48,14,13,17,16]
[null,"$60,000 to $74,999",16,11,208,102,247,84,46,23,14,11,16,9,88,39,10,8,17,11,151,67,65,35,18,14,66,42,50,21,22,12]
[null,"$75,000 to $99,999",19,15,92,66,318,133,86,26,23,14,21,12,66,39,22,10,33,15,168,94,35,27,32,21,65,55,48,23,38,20]
[null,"$100,000 to $124,999",17,9,92,52,138,71,51,23,25,17,14,8,107,58,13,7,25,17,137,73,119,47,43,25,79,42,46,23,16,14]
[null,"$125,000 to $149,999",2,4,99,79,155,76,38,19,22,14,11,8,26,23,3,5,12,16,112,67,76,36,41,25,106,69,19,15,5,6]
[null,"$150,000 to $199,999",6,10,0,11,61,45,42,21,0,11,4,7,35,32,0,11,9,6,45,38,47,23,7,11,39,48,4,5,10,8]
[null,"$200,000 or more",5,6,0,11,46,37,7,7,7,7,6,9,90,47,4,5,0,11,31,36,48,22,8,10,36,26,3,4,14,14]
[null,"Householder 65 years and over:",89,31,568,138,1337,139,124,43,51,21,77,27,313,82,72,23,84,30,782,165,250,53,92,29,487,100,106,29,141,32]
[null,"Less than $10,000",2,3,40,38,66,45,6,7,2,6,0,11,0,11,2,3,0,11,69,71,0,11,3,4,0,11,3,4,0,11]
[null,"$10,000 to $14,999",0,11,77,56,170,61,0,11,0,11,5,5,0,11,2,3,7,12,110,75,0,11,6,6,24,20,12,8,8,7]
[null,"$15,000 to $19,999",9,15,141,92,137,70,13,9,2,3,2,3,10,13,1,3,3,5,55,42,0,11,9,8,27,43,3,4,11,7]
[null,"$20,000 to $24,999",12,12,58,57,153,58,4,6,9,9,17,17,0,11,7,6,20,19,22,25,8,9,5,5,58,48,19,16,3,5]
[null,"$25,000 to $29,999",12,10,34,34,76,37,3,4,0,11,7,8,43,45,6,6,9,9,58,40,22,15,8,13,55,53,18,16,7,7]
[null,"$30,000 to $34,999",0,11,52,62,109,67,10,10,14,13,4,4,11,16,1,2,4,5,39,37,18,12,3,4,32,38,3,4,3,4]
[null,"$35,000 to $39,999",4,4,29,33,115,51,3,4,3,4,0,11,9,9,15,13,3,4,47,35,32,17,2,3,0,11,8,7,29,16]
[null,"$40,000 to $44,999",6,6,40,58,97,38,28,21,1,3,5,7,11,16,5,5,3,4,109,103,4,7,4,5,7,12,3,5,3,4]
[null,"$45,000 to $49,999",6,8,21,27,78,48,0,11,2,3,6,9,17,15,2,3,7,7,41,39,0,11,4,5,22,23,3,4,13,11]
[null,"$50,000 to $59,999",20,18,24,28,73,39,5,7,4,5,2,2,31,23,4,5,10,12,50,45,4,7,5,7,31,25,21,16,13,11]
[null,"$60,000 to $74,999",2,3,0,11,128,61,21,20,4,9,6,5,38,24,16,15,4,5,123,91,40,21,10,13,38,50,7,8,20,11]
[null,"$75,000 to $99,999",12,9,52,42,49,35,11,8,7,6,6,8,46,38,8,7,4,5,11,18,45,29,20,16,49,29,0,11,13,10]
[null,"$100,000 to $124,999",0,11,0,11,56,45,14,15,3,5,3,4,40,34,0,11,10,12,0,15,53,30,3,4,71,52,6,5,0,11]
[null,"$125,000 to $149,999",0,11,0,11,9,15,3,4,0,11,3,5,28,39,3,4,0,11,12,17,0,11,4,6,28,35,0,11,18,16]
[null,"$150,000 to $199,999",2,3,0,11,8,12,0,11,0,11,11,13,4,6,0,11,0,11,10,16,5,7,0,11,0,11,0,11,0,11]
[null,"$200,000 or more",2,3,0,11,13,21,3,4,0,11,0,11,25,22,0,11,0,11,26,30,19,23,6,6,45,34,0,11,0,11]
[]
[]
[]
[]
[]
[]
[]
[]
[]
[]
[]
[]
[]
[]
[null,"B19037. AGE OF HOUSEHOLDER BY HOUSEHOLD INCOME IN THE PAST 12 MONTHS (IN 2009 INFLATION-ADJUSTED DOLLARS)"]
[null,"Universe:  HOUSEHOLDS"]
[null,"Data Set: 2005-2009 American Community Survey 5-Year Estimates"]
[]
[null,null,"Acworth",null,"Charlestown",null,"Claremont",null,"Cornish",null,"Croydon",null,"Goshen",null,"Grantham",null,"Langdon",null,"Lempster",null,"Newport",null,"Plainfield",null,"Springfield",null,"Sunapee",null,"Unity",null,"Washington"]
[null,null,"Estimate","Margin Of Error","Estimate","Margin Of Error","Estimate","Margin Of Error","Estimate","Margin Of Error","Estimate","Margin Of Error","Estimate","Margin Of Error","Estimate","Margin Of Error","Estimate","Margin Of Error","Estimate","Margin Of Error","Estimate","Margin Of Error","Estimate","Margin Of Error","Estimate","Margin Of Error","Estimate","Margin Of Error","Estimate","Margin Of Error","Estimate","Margin Of Error"]
[null,"Total:",343,60,2138,130,5799,248,676,72,335,54,402,60,1016,69,222,59,468,57,2562,192,946,97,335,56,1422,128,648,87,527,62]
[null,"Householder under 25 years:",23,21,46,51,332,109,10,14,31,28,4,6,20,29,4,7,6,11,280,136,0,114,0,114,95,66,17,20,4,6]
[null,"Less than $10,000",0,114,29,47,72,60,5,8,0,114,0,114,0,114,0,114,0,114,46,71,0,114,0,114,31,48,0,114,0,114]
[null,"$10,000 to $14,999",0,114,0,114,15,25,0,114,10,17,0,114,0,114,0,114,0,114,0,114,0,114,0,114,0,114,0,114,0,114]
[null,"$15,000 to $19,999",0,114,0,114,18,26,0,114,0,114,0,114,0,114,0,114,0,114,0,114,0,114,0,114,8,14,0,114,0,114]
[null,"$20,000 to $24,999",9,14,0,114,23,27,0,114,0,114,0,114,0,114,4,7,0,114,79,111,0,114,0,114,38,58,12,19,0,114]
[null,"$25,000 to $29,999",0,114,0,114,53,56,0,114,0,114,0,114,20,29,0,114,0,114,0,114,0,114,0,114,0,114,0,114,0,114]
[null,"$30,000 to $34,999",9,15,17,28,0,114,0,114,0,114,0,114,0,114,0,114,0,114,0,114,0,114,0,114,18,21,5,7,0,114]
[null,"$35,000 to $39,999",0,114,0,114,40,63,0,114,0,114,0,114,0,114,0,114,6,11,0,114,0,114,0,114,0,114,0,114,0,114]
[null,"$40,000 to $44,999",0,114,0,114,0,114,0,114,13,21,0,114,0,114,0,114,0,114,20,34,0,114,0,114,0,114,0,114,0,114]
[null,"$45,000 to $49,999",5,8,0,114,20,26,0,114,4,6,4,6,0,114,0,114,0,114,36,56,0,114,0,114,0,114,0,114,0,114]
[null,"$50,000 to $59,999",0,114,0,114,43,59,0,114,0,114,0,114,0,114,0,114,0,114,88,75,0,114,0,114,0,114,0,114,0,114]
[null,"$60,000 to $74,999",0,114,0,114,0,114,5,10,4,7,0,114,0,114,0,114,0,114,11,19,0,114,0,114,0,114,0,114,4,6]
[null,"$75,000 to $99,999",0,114,0,114,48,59,0,114,0,114,0,114,0,114,0,114,0,114,0,114,0,114,0,114,0,114,0,114,0,114]
[null,"$100,000 to $124,999",0,114,0,114,0,114,0,114,0,114,0,114,0,114,0,114,0,114,0,114,0,114,0,114,0,114,0,114,0,114]
[null,"$125,000 to $149,999",0,114,0,114,0,114,0,114,0,114,0,114,0,114,0,114,0,114,0,114,0,114,0,114,0,114,0,114,0,114]
[null,"$150,000 to $199,999",0,114,0,114,0,114,0,114,0,114,0,114,0,114,0,114,0,114,0,114,0,114,0,114,0,114,0,114,0,114]
[null,"$200,000 or more",0,114,0,114,0,114,0,114,0,114,0,114,0,114,0,114,0,114,0,114,0,114,0,114,0,114,0,114,0,114]
[null,"Householder 25 to 44 years:",61,24,773,147,2075,192,214,65,105,42,117,48,234,61,43,30,167,50,814,138,305,58,131,40,287,91,171,51,119,35]
[null,"Less than $10,000",6,9,0,114,176,99,6,10,0,114,0,114,0,114,0,114,0,114,143,100,14,21,0,114,0,114,22,24,0,114]
[null,"$10,000 to $14,999",0,114,34,55,138,94,0,114,0,114,7,14,0,114,0,114,0,114,12,19,0,114,0,114,26,41,0,114,7,7]
[null,"$15,000 to $19,999",0,114,28,44,67,50,4,6,4,6,6,9,0,114,0,114,0,114,118,76,24,30,0,114,10,15,0,114,7,8]
[null,"$20,000 to $24,999",5,10,44,44,31,38,9,14,0,114,0,114,0,114,0,114,5,7,0,114,0,114,0,114,11,18,0,114,0,114]
[null,"$25,000 to $29,999",0,114,16,27,146,87,0,114,0,114,0,114,0,114,0,114,0,114,27,43,17,18,4,6,0,114,10,16,0,114]
[null,"$30,000 to $34,999",0,114,53,50,80,73,5,8,20,23,6,10,13,20,0,114,7,7,30,34,15,16,3,6,11,18,9,15,9,9]
[null,"$35,000 to $39,999",0,114,0,114,128,105,11,17,0,114,0,114,7,11,0,114,24,20,89,77,7,10,2,4,63,66,8,13,3,4]
[null,"$40,000 to $44,999",8,9,51,53,125,85,0,114,10,15,29,17,13,21,0,114,2,3,45,48,6,9,0,114,24,36,0,114,15,17]
[null,"$45,000 to $49,999",10,12,57,72,128,84,13,15,0,114,0,114,8,12,0,114,0,114,13,21,11,12,6,8,0,114,29,33,3,6]
[null,"$50,000 to $59,999",10,15,104,66,215,103,12,13,7,12,24,27,0,114,0,114,41,30,64,54,16,17,2,5,16,22,0,114,34,28]
[null,"$60,000 to $74,999",17,16,121,71,285,117,31,23,19,16,12,17,7,11,0,114,55,37,69,53,45,28,15,13,34,48,45,25,18,12]
[null,"$75,000 to $99,999",5,8,201,84,374,139,33,22,33,20,33,29,52,35,24,22,19,14,184,79,17,19,53,23,79,51,34,27,6,9]
[null,"$100,000 to $124,999",0,114,51,47,53,44,35,24,8,13,0,114,68,41,13,19,14,14,20,32,74,37,20,20,0,114,0,114,11,12]
[null,"$125,000 to $149,999",0,114,13,20,59,52,38,36,4,6,0,114,34,27,0,114,0,114,0,114,20,17,12,11,0,114,14,15,3,5]
[null,"$150,000 to $199,999",0,114,0,114,11,19,5,8,0,114,0,114,19,18,6,9,0,114,0,114,14,15,10,14,13,16,0,114,0,114]
[null,"$200,000 or more",0,114,0,114,59,64,12,19,0,114,0,114,13,14,0,114,0,114,0,114,25,21,4,6,0,114,0,114,3,4]
[null,"Householder 45 to 64 years:",151,48,940,148,2029,218,307,60,133,39,200,50,422,73,123,48,211,38,930,151,491,86,147,38,637,119,318,71,231,54]
[null,"Less than $10,000",0,114,0,114,117,63,4,6,5,8,4,6,27,32,10,15,3,6,13,20,0,114,12,12,34,30,28,21,5,6]
[null,"$10,000 to $14,999",26,20,10,16,117,81,0,114,3,5,3,5,0,114,0,114,25,18,54,45,9,15,8,13,12,18,5,8,20,18]
[null,"$15,000 to $19,999",5,8,24,28,68,40,0,114,0,114,8,12,6,9,5,8,0,114,27,31,6,10,5,8,0,114,15,13,17,17]
[null,"$20,000 to $24,999",12,15,34,31,106,57,22,18,0,114,4,6,6,9,0,114,4,5,0,114,12,15,0,114,19,31,17,17,6,7]
[null,"$25,000 to $29,999",0,114,42,54,160,93,29,21,7,7,8,8,0,114,0,114,7,7,46,50,23,19,6,7,8,13,20,24,23,22]
[null,"$30,000 to $34,999",4,7,34,37,293,114,21,21,12,15,13,16,5,8,10,16,13,9,52,40,0,114,9,15,0,114,9,12,8,9]
[null,"$35,000 to $39,999",3,4,66,71,111,69,13,13,13,16,18,15,6,10,17,22,7,9,14,22,15,18,6,7,71,62,5,9,9,14]
[null,"$40,000 to $44,999",20,15,75,55,127,89,18,17,4,6,17,16,0,114,12,14,15,11,74,67,15,16,4,6,37,36,22,17,15,20]
[null,"$45,000 to $49,999",9,11,58,61,124,68,6,7,3,5,23,22,12,18,0,114,3,4,22,26,47,28,6,7,20,24,6,10,17,15]
[null,"$50,000 to $59,999",14,12,132,80,149,80,30,19,6,9,25,17,19,15,5,8,18,10,258,91,40,25,8,11,48,40,35,22,11,10]
[null,"$60,000 to $74,999",12,18,157,91,246,112,30,16,24,14,30,16,44,35,14,13,28,18,169,78,75,45,14,13,105,57,44,23,36,17]
[null,"$75,000 to $99,999",21,14,168,70,185,77,37,26,23,17,25,17,87,47,15,16,41,20,81,61,75,40,32,19,36,33,80,34,13,11]
[null,"$100,000 to $124,999",0,114,110,90,89,54,33,16,25,22,16,17,103,47,20,17,20,17,96,81,83,43,13,14,45,37,9,13,11,11]
[null,"$125,000 to $149,999",14,16,15,24,46,49,25,17,5,9,0,114,61,37,5,9,14,16,13,20,29,25,16,19,45,48,14,16,11,9]
[null,"$150,000 to $199,999",11,11,15,26,66,56,21,13,3,5,0,114,13,12,10,15,0,114,11,18,12,13,8,9,119,81,9,14,10,15]
[null,"$200,000 or more",0,114,0,114,25,29,18,15,0,114,6,8,33,23,0,114,13,13,0,114,50,40,0,114,38,35,0,114,19,14]
[null,"Householder 65 years and over:",108,48,379,105,1363,180,145,39,66,20,81,31,340,80,52,29,84,30,538,96,150,49,57,22,403,98,142,46,173,41]
[null,"Less than $10,000",3,4,54,44,193,93,5,8,3,6,3,4,0,114,0,114,4,7,12,20,0,114,8,13,0,114,0,114,9,8]
[null,"$10,000 to $14,999",5,7,63,49,270,105,17,19,17,16,8,7,33,30,9,11,11,16,195,91,6,9,0,114,8,13,7,10,7,7]
[null,"$15,000 to $19,999",0,114,58,48,157,79,9,9,4,7,25,27,0,114,0,114,26,17,39,36,0,114,3,5,34,44,7,7,7,7]
[null,"$20,000 to $24,999",12,12,40,36,106,61,13,12,6,6,6,6,23,21,0,114,8,6,14,22,7,10,14,14,41,48,9,11,20,18]
[null,"$25,000 to $29,999",0,114,42,38,80,65,14,12,8,8,0,114,21,15,15,18,8,8,42,34,9,13,2,3,9,14,17,18,18,14]
[null,"$30,000 to $34,999",4,6,30,33,109,55,4,7,2,4,10,13,38,32,0,114,9,8,38,35,7,12,3,5,39,31,0,114,18,11]
[null,"$35,000 to $39,999",0,114,10,18,58,43,9,11,8,9,0,114,18,21,0,114,3,5,0,114,39,35,0,114,0,114,7,8,0,114]
[null,"$40,000 to $44,999",34,44,0,114,90,53,13,15,4,6,0,114,9,15,3,4,3,6,38,35,0,114,15,12,0,114,0,114,13,14]
[null,"$45,000 to $49,999",16,18,25,35,71,55,3,5,0,114,16,12,24,24,0,114,3,4,25,29,0,114,2,4,26,24,0,114,6,6]
[null,"$50,000 to $59,999",7,9,0,114,65,43,0,114,3,5,4,6,8,13,17,17,3,5,26,23,4,7,0,114,64,45,15,15,7,7]
[null,"$60,000 to $74,999",19,19,34,51,62,39,17,16,2,6,3,4,62,52,3,4,3,4,30,30,23,17,7,8,59,49,31,31,26,19]
[null,"$75,000 to $99,999",0,114,23,25,57,54,21,16,3,5,3,4,38,25,0,114,3,4,11,19,17,18,0,114,67,41,13,11,10,10]
[null,"$100,000 to $124,999",8,9,0,114,45,49,11,9,3,5,3,4,31,24,0,114,0,114,12,19,7,10,3,5,9,15,28,26,10,11]
[null,"$125,000 to $149,999",0,114,0,114,0,114,0,114,3,4,0,114,23,23,5,8,0,114,46,51,14,15,0,114,9,14,8,12,8,8]
[null,"$150,000 to $199,999",0,114,0,114,0,114,5,8,0,114,0,114,12,20,0,114,0,114,10,17,9,14,0,114,7,12,0,114,0,114]
[null,"$200,000 or more",0,114,0,114,0,114,4,7,0,114,0,114,0,114,0,114,0,114,0,114,8,11,0,114,31,27,0,114,14,9]

{"sheet":"DisabilityByAge","index":38,"n_rows":72,"n_cols":15,"rows_kept":72,"cut":false,"hidden":true,"merged":[[51,11,51,12],[51,13,51,14],[28,13,28,14],[51,3,51,4],[51,5,51,6],[51,7,51,8],[51,9,51,10],[28,3,28,4],[28,5,28,6],[28,7,28,8],[28,9,28,10],[28,11,28,12]]}
[]
[]
[]
[]
[null,{"$f":"CntyDataLink!A20","v":"Acworth"}]
[null,"SOCIAL CHARACTERISTICS"]
[]
[null,"Disabilities By Age"]
[null,null,"Universe: Civilian Non-institutionalized Population"]
[]
[]
[]
[]
[]
[]
[]
[]
[]
[]
[]
[]
[]
[]
[]
[]
[]
[]
[]
[null,null,null,"Under 5",null,"5 to 17 years",null,"18 to 34 years",null,"35 to 64 years",null,"65 to 74 years",null,"75 years and older"]
[null,null,null,"Estimate","Margin of Error","Estimate","Margin of Error","Estimate","Margin of Error","Estimate","Margin of Error","Estimate","Margin of Error","Estimate","Margin of Error"]
[null,"Total ",null,{"$f":"CntyDataLink!D112","v":37},{"$f":"CntyDataLink!E112","v":19.104973174542799},{"$f":"CntyDataLink!J112","v":58},{"$f":"CntyDataLink!K112","v":29.206163733020468},{"$f":"CntyDataLink!P112","v":126},{"$f":"CntyDataLink!Q112","v":45.486261662176638},{"$f":"CntyDataLink!V112","v":403},{"$f":"CntyDataLink!W112","v":66.483080554378645},{"$f":"CntyDataLink!AB112","v":205},{"$f":"CntyDataLink!AC112","v":49.929950931279713},{"$f":"CntyDataLink!AH112","v":77},{"$f":"CntyDataLink!AI112","v":26.92582403567252}]
[]
[null,"With a disability:",null,{"$f":"CntyDataLink!F112","v":0},{"$f":"CntyDataLink!G112","v":15.556349186104045},{"$f":"CntyDataLink!L112","v":0},{"$f":"CntyDataLink!M112","v":15.556349186104045},{"$f":"CntyDataLink!R112","v":26},{"$f":"CntyDataLink!S112","v":24.596747752497688},{"$f":"CntyDataLink!X112","v":15},{"$f":"CntyDataLink!Y112","v":12.529964086141668},{"$f":"CntyDataLink!AD112","v":47},{"$f":"CntyDataLink!AE112","v":23.345235059857504},{"$f":"CntyDataLink!AJ112","v":23},{"$f":"CntyDataLink!AK112","v":15.524174696260024}]
[]
[]
[]
[null,"Type of disability"]
[null,null,"Hearing disability",{"$f":"CntyDataLink!AN112","v":0},{"$f":"CntyDataLink!AO112","v":15.556349186104045},{"$f":"CntyDataLink!AP112","v":0},{"$f":"CntyDataLink!AQ112","v":15.556349186104045},{"$f":"CntyDataLink!AR112","v":9},{"$f":"CntyDataLink!AS112","v":17.804493814764857},{"$f":"CntyDataLink!AT112","v":5},{"$f":"CntyDataLink!AU112","v":12.529964086141668},{"$f":"CntyDataLink!AV112","v":13},{"$f":"CntyDataLink!AW112","v":11.704699910719626},{"$f":"CntyDataLink!AX112","v":13},{"$f":"CntyDataLink!AY112","v":16.278820596099706}]
[null,null,"Visual disability",{"$f":"CntyDataLink!AZ112","v":0},{"$f":"CntyDataLink!BA112","v":15.556349186104045},{"$f":"CntyDataLink!BB112","v":0},{"$f":"CntyDataLink!BC112","v":15.556349186104045},{"$f":"CntyDataLink!BD112","v":9},{"$f":"CntyDataLink!BE112","v":17.804493814764857},{"$f":"CntyDataLink!BF112","v":0},{"$f":"CntyDataLink!BG112","v":15.556349186104045},{"$f":"CntyDataLink!BH112","v":7},{"$f":"CntyDataLink!BI112","v":14.866068747318506},{"$f":"CntyDataLink!BJ112","v":0},{"$f":"CntyDataLink!BK112","v":15.556349186104045}]
[null,null,"Cognitive disability","NA","NA",{"$f":"CntyDataLink!BL112","v":0},{"$f":"CntyDataLink!BM112","v":15.556349186104045},{"$f":"CntyDataLink!BN112","v":18},{"$f":"CntyDataLink!BO112","v":21.95449840010015},{"$f":"CntyDataLink!BP112","v":8},{"$f":"CntyDataLink!BQ112","v":14.866068747318506},{"$f":"CntyDataLink!BR112","v":19},{"$f":"CntyDataLink!BS112","v":15.524174696260024},{"$f":"CntyDataLink!BT112","v":6},{"$f":"CntyDataLink!BU112","v":14.866068747318506}]
[null,null,"Ambulatory disability","NA","NA",{"$f":"CntyDataLink!BV112","v":0},{"$f":"CntyDataLink!BW112","v":15.556349186104045},{"$f":"CntyDataLink!BX112","v":0},{"$f":"CntyDataLink!BY112","v":15.556349186104045},{"$f":"CntyDataLink!BZ112","v":4},{"$f":"CntyDataLink!CA112","v":12.083045973594572},{"$f":"CntyDataLink!CB112","v":32},{"$f":"CntyDataLink!CC112","v":19.849433241279208},{"$f":"CntyDataLink!CD112","v":12},{"$f":"CntyDataLink!CE112","v":10.770329614269007}]
[null,null,"Self-care disability","NA","NA",{"$f":"CntyDataLink!CF112","v":0},{"$f":"CntyDataLink!CG112","v":15.556349186104045},{"$f":"CntyDataLink!CH112","v":9},{"$f":"CntyDataLink!CI112","v":17.804493814764857},{"$f":"CntyDataLink!CJ112","v":0},{"$f":"CntyDataLink!CK112","v":15.556349186104045},{"$f":"CntyDataLink!CL112","v":4},{"$f":"CntyDataLink!CM112","v":5.6568542494923806},{"$f":"CntyDataLink!CN112","v":6},{"$f":"CntyDataLink!CO112","v":14.866068747318506}]
[null,null,"Independent living disability","NA","NA","NA","NA",{"$f":"CntyDataLink!CP112","v":13},{"$f":"CntyDataLink!CQ112","v":12.649110640673518},{"$f":"CntyDataLink!CR112","v":3},{"$f":"CntyDataLink!CS112","v":11.704699910719626},{"$f":"CntyDataLink!CT112","v":5},{"$f":"CntyDataLink!CU112","v":12.529964086141668},{"$f":"CntyDataLink!CV112","v":15},{"$f":"CntyDataLink!CW112","v":19.416487838947599}]
[]
[null,"With two or more types of disability:",null,{"$f":"CntyDataLink!CZ112","v":0},{"$f":"CntyDataLink!DA112","v":11},{"$f":"CntyDataLink!DD112","v":11},{"$f":"CntyDataLink!DE112","v":14},{"$f":"CntyDataLink!DH112","v":35},{"$f":"CntyDataLink!DI112","v":20},{"$f":"CntyDataLink!DL112","v":0},{"$f":"CntyDataLink!DM112","v":0},{"$f":"CntyDataLink!DP112","v":0},{"$f":"CntyDataLink!DQ112","v":0},{"$f":"CntyDataLink!DT112","v":0},{"$f":"CntyDataLink!DU112","v":0}]
[]
[null,"No disability",null,{"$f":"CntyDataLink!H112","v":37},{"$f":"CntyDataLink!I112","v":19.104973174542799},{"$f":"CntyDataLink!N112","v":58},{"$f":"CntyDataLink!O112","v":29.206163733020468},{"$f":"CntyDataLink!T112","v":100},{"$f":"CntyDataLink!U112","v":34.655446902326915},{"$f":"CntyDataLink!Z112","v":388},{"$f":"CntyDataLink!AA112","v":66.483080554378645},{"$f":"CntyDataLink!AF112","v":158},{"$f":"CntyDataLink!AG112","v":43.046486500061768},{"$f":"CntyDataLink!AL112","v":54},{"$f":"CntyDataLink!AM112","v":22.803508501982758}]
[null,"Source: 2015-20198 American Community Survey Tables B18101;  B18102; B18103; B18104; B18105; B18106; and B18107."]
[null,"NA indicates that the American Community Survey does not calculate the number for that disability."]
[null,"Percent of Population with Disabilities"]
[]
[null,null,null,"Under 5",null,"5 to 17 years",null,"18 to 34 years",null,"35 to 64 years",null,"65 to 74 years",null,"75 years and older"]
[]
[null,"With a disability:",null,{"$f":"D33/D$31","v":0},null,{"$f":"F33/F$31","v":0},null,{"$f":"H33/H$31","v":0.20634920634920634},null,{"$f":"J33/J$31","v":3.7220843672456573E-2},null,{"$f":"L33/L$31","v":0.22926829268292684},null,{"$f":"N33/N$31","v":0.29870129870129869}]
[]
[null,"Type of disability"]
[null,null,"Hearing disability",{"$f":"D38/D$31","v":0},null,{"$f":"F38/F$31","v":0},null,{"$f":"H38/H$31","v":7.1428571428571425E-2},null,1.2406947890818859E-2,null,{"$f":"L38/L$31","v":6.3414634146341464E-2},null,{"$f":"N38/N$31","v":0.16883116883116883}]
[null,null,"Visual disability",{"$f":"D39/D$31","v":0},null,{"$f":"F39/F$31","v":0},null,7.1428571428571425E-2,null,0,null,3.4146341463414637E-2,null,0]
[null,null,"Cognitive disability","NA",null,{"$f":"F40/F$31","v":0},null,0.14285714285714285,null,1.9851116625310174E-2,null,9.2682926829268292E-2,null,7.792207792207792E-2]
[null,null,"Ambulatory disability","NA",null,{"$f":"F41/F$31","v":0},null,0,null,9.9255583126550868E-3,null,0.15609756097560976,null,0.15584415584415584]
[null,null,"Self-care disability","NA",null,{"$f":"F42/F$31","v":0},null,7.1428571428571425E-2,null,0,null,1.9512195121951219E-2,null,7.792207792207792E-2]
[null,null,"Independent living disability","NA",null,"NA",null,0.10317460317460317,null,7.4441687344913151E-3,null,2.4390243902439025E-2,null,0.19480519480519481]
[]
[]
[]
[null,"No disability",null,{"$f":"D47/D$31","v":1},null,{"$f":"F47/F$31","v":1},null,{"$f":"H47/H$31","v":0.79365079365079361},null,{"$f":"J47/J$31","v":0.96277915632754341},null,{"$f":"L47/L$31","v":0.77073170731707319},null,{"$f":"N47/N$31","v":0.70129870129870131}]
[]
[]
[null,"Source: 2015-2019 American Community Survey Tables B18101;  B18102; B18103; B18104; B18105; B18106; and B18107."]
[null,"NA indicates that the American Community Survey does not calculate the number for that disability."]
[]
[null,"Data from the American Community Survey are estimates."]

{"sheet":"DisabilityByAgePrior5YearEst","index":39,"n_rows":72,"n_cols":15,"rows_kept":72,"cut":false,"hidden":true,"merged":[[51,13,51,14],[28,3,28,4],[28,5,28,6],[28,7,28,8],[28,9,28,10],[28,11,28,12],[28,13,28,14],[51,3,51,4],[51,5,51,6],[51,7,51,8],[51,9,51,10],[51,11,51,12]]}
[]
[]
[]
[]
[null,{"$f":"CntyDataLink!A20","v":"Acworth"}]
[null,"SOCIAL CHARACTERISTICS"]
[]
[null,"Disabilities By Age"]
[null,null,"Universe: Civilian Non-institutionalized Population"]
[]
[]
[]
[]
[]
[]
[]
[]
[]
[]
[]
[]
[]
[]
[]
[]
[]
[]
[]
[null,null,null,"Under 5",null,"5 to 17 years",null,"18 to 34 years",null,"35 to 64 years",null,"65 to 74 years",null,"75 years and older"]
[null,null,null,"Estimate","Margin of Error","Estimate","Margin of Error","Estimate","Margin of Error","Estimate","Margin of Error","Estimate","Margin of Error","Estimate","Margin of Error"]
[null,"Total ",null,{"$f":"CntyDataLinkPrior5YearEstimates!D112","v":55},{"$f":"CntyDataLinkPrior5YearEstimates!E112","v":36.235341863986875},{"$f":"CntyDataLinkPrior5YearEstimates!J112","v":152},{"$f":"CntyDataLinkPrior5YearEstimates!K112","v":54.203320931470607},{"$f":"CntyDataLinkPrior5YearEstimates!P112","v":184},{"$f":"CntyDataLinkPrior5YearEstimates!Q112","v":54.378304497290095},{"$f":"CntyDataLinkPrior5YearEstimates!V112","v":380},{"$f":"CntyDataLinkPrior5YearEstimates!W112","v":55.865910893853687},{"$f":"CntyDataLinkPrior5YearEstimates!AB112","v":105},{"$f":"CntyDataLinkPrior5YearEstimates!AC112","v":33.421549934136806},{"$f":"CntyDataLinkPrior5YearEstimates!AH112","v":47},{"$f":"CntyDataLinkPrior5YearEstimates!AI112","v":18.788294228055936}]
[]
[null,"With a disability:",null,{"$f":"CntyDataLinkPrior5YearEstimates!F112","v":0},{"$f":"CntyDataLinkPrior5YearEstimates!G112","v":15.556349186104045},{"$f":"CntyDataLinkPrior5YearEstimates!L112","v":2},{"$f":"CntyDataLinkPrior5YearEstimates!M112","v":11.401754250991379},{"$f":"CntyDataLinkPrior5YearEstimates!R112","v":15},{"$f":"CntyDataLinkPrior5YearEstimates!S112","v":13.416407864998739},{"$f":"CntyDataLinkPrior5YearEstimates!X112","v":33},{"$f":"CntyDataLinkPrior5YearEstimates!Y112","v":14.212670403551895},{"$f":"CntyDataLinkPrior5YearEstimates!AD112","v":38},{"$f":"CntyDataLinkPrior5YearEstimates!AE112","v":20.248456731316587},{"$f":"CntyDataLinkPrior5YearEstimates!AJ112","v":19},{"$f":"CntyDataLinkPrior5YearEstimates!AK112","v":15.524174696260024}]
[]
[null,"With one disability:",null,{"$f":"CntyDataLinkPrior5YearEstimates!CX112","v":0},{"$f":"CntyDataLinkPrior5YearEstimates!CY112","v":15},{"$f":"CntyDataLinkPrior5YearEstimates!DB112","v":56},{"$f":"CntyDataLinkPrior5YearEstimates!DC112","v":46},{"$f":"CntyDataLinkPrior5YearEstimates!DF112","v":88},{"$f":"CntyDataLinkPrior5YearEstimates!DG112","v":53},{"$f":"CntyDataLinkPrior5YearEstimates!DJ112","v":751},{"$f":"CntyDataLinkPrior5YearEstimates!DK112","v":211},{"$f":"CntyDataLinkPrior5YearEstimates!DN112","v":0},{"$f":"CntyDataLinkPrior5YearEstimates!DO112","v":0},{"$f":"CntyDataLinkPrior5YearEstimates!DR112","v":0},{"$f":"CntyDataLinkPrior5YearEstimates!DS112","v":0}]
[]
[null,"Type of disability"]
[null,null,"Hearing disability",{"$f":"CntyDataLinkPrior5YearEstimates!AN112","v":0},{"$f":"CntyDataLinkPrior5YearEstimates!AO112","v":15.556349186104045},{"$f":"CntyDataLinkPrior5YearEstimates!AP112","v":0},{"$f":"CntyDataLinkPrior5YearEstimates!AQ112","v":15.556349186104045},{"$f":"CntyDataLinkPrior5YearEstimates!AR112","v":0},{"$f":"CntyDataLinkPrior5YearEstimates!AS112","v":15.556349186104045},{"$f":"CntyDataLinkPrior5YearEstimates!AT112","v":13},{"$f":"CntyDataLinkPrior5YearEstimates!AU112","v":11.401754250991379},{"$f":"CntyDataLinkPrior5YearEstimates!AV112","v":13},{"$f":"CntyDataLinkPrior5YearEstimates!AW112","v":7.810249675906654},{"$f":"CntyDataLinkPrior5YearEstimates!AX112","v":10},{"$f":"CntyDataLinkPrior5YearEstimates!AY112","v":5.6568542494923806}]
[null,null,"Visual disability",{"$f":"CntyDataLinkPrior5YearEstimates!AZ112","v":0},{"$f":"CntyDataLinkPrior5YearEstimates!BA112","v":15.556349186104045},{"$f":"CntyDataLinkPrior5YearEstimates!BB112","v":0},{"$f":"CntyDataLinkPrior5YearEstimates!BC112","v":15.556349186104045},{"$f":"CntyDataLinkPrior5YearEstimates!BD112","v":0},{"$f":"CntyDataLinkPrior5YearEstimates!BE112","v":15.556349186104045},{"$f":"CntyDataLinkPrior5YearEstimates!BF112","v":2},{"$f":"CntyDataLinkPrior5YearEstimates!BG112","v":11.401754250991379},{"$f":"CntyDataLinkPrior5YearEstimates!BH112","v":4},{"$f":"CntyDataLinkPrior5YearEstimates!BI112","v":13.601470508735444},{"$f":"CntyDataLinkPrior5YearEstimates!BJ112","v":0},{"$f":"CntyDataLinkPrior5YearEstimates!BK112","v":15.556349186104045}]
[null,null,"Cognitive disability","NA","NA",{"$f":"CntyDataLinkPrior5YearEstimates!BL112","v":2},{"$f":"CntyDataLinkPrior5YearEstimates!BM112","v":11.401754250991379},{"$f":"CntyDataLinkPrior5YearEstimates!BN112","v":12},{"$f":"CntyDataLinkPrior5YearEstimates!BO112","v":12.649110640673518},{"$f":"CntyDataLinkPrior5YearEstimates!BP112","v":8},{"$f":"CntyDataLinkPrior5YearEstimates!BQ112","v":7.2111025509279782},{"$f":"CntyDataLinkPrior5YearEstimates!BR112","v":4},{"$f":"CntyDataLinkPrior5YearEstimates!BS112","v":13.601470508735444},{"$f":"CntyDataLinkPrior5YearEstimates!BT112","v":4},{"$f":"CntyDataLinkPrior5YearEstimates!BU112","v":11.704699910719626}]
[null,null,"Ambulatory disability","NA","NA",{"$f":"CntyDataLinkPrior5YearEstimates!BV112","v":0},{"$f":"CntyDataLinkPrior5YearEstimates!BW112","v":15.556349186104045},{"$f":"CntyDataLinkPrior5YearEstimates!BX112","v":11},{"$f":"CntyDataLinkPrior5YearEstimates!BY112","v":13},{"$f":"CntyDataLinkPrior5YearEstimates!BZ112","v":17},{"$f":"CntyDataLinkPrior5YearEstimates!CA112","v":10.63014581273465},{"$f":"CntyDataLinkPrior5YearEstimates!CB112","v":20},{"$f":"CntyDataLinkPrior5YearEstimates!CC112","v":15.297058540778355},{"$f":"CntyDataLinkPrior5YearEstimates!CD112","v":6},{"$f":"CntyDataLinkPrior5YearEstimates!CE112","v":5}]
[null,null,"Self-care disability","NA","NA",{"$f":"CntyDataLinkPrior5YearEstimates!CF112","v":0},{"$f":"CntyDataLinkPrior5YearEstimates!CG112","v":15.556349186104045},{"$f":"CntyDataLinkPrior5YearEstimates!CH112","v":0},{"$f":"CntyDataLinkPrior5YearEstimates!CI112","v":15.556349186104045},{"$f":"CntyDataLinkPrior5YearEstimates!CJ112","v":8},{"$f":"CntyDataLinkPrior5YearEstimates!CK112","v":7.6157731058639087},{"$f":"CntyDataLinkPrior5YearEstimates!CL112","v":0},{"$f":"CntyDataLinkPrior5YearEstimates!CM112","v":15.556349186104045},{"$f":"CntyDataLinkPrior5YearEstimates!CN112","v":4},{"$f":"CntyDataLinkPrior5YearEstimates!CO112","v":11.704699910719626}]
[null,null,"Independent living disability","NA","NA","NA","NA",{"$f":"CntyDataLinkPrior5YearEstimates!CP112","v":13},{"$f":"CntyDataLinkPrior5YearEstimates!CQ112","v":13.416407864998739},{"$f":"CntyDataLinkPrior5YearEstimates!CR112","v":11},{"$f":"CntyDataLinkPrior5YearEstimates!CS112","v":8.6023252670426267},{"$f":"CntyDataLinkPrior5YearEstimates!CT112","v":6},{"$f":"CntyDataLinkPrior5YearEstimates!CU112","v":13.038404810405298},{"$f":"CntyDataLinkPrior5YearEstimates!CV112","v":13},{"$f":"CntyDataLinkPrior5YearEstimates!CW112","v":18.601075237738275}]
[]
[null,"With two or more types of disability:",null,{"$f":"CntyDataLinkPrior5YearEstimates!CZ112","v":11},{"$f":"CntyDataLinkPrior5YearEstimates!DA112","v":18},{"$f":"CntyDataLinkPrior5YearEstimates!DD112","v":89},{"$f":"CntyDataLinkPrior5YearEstimates!DE112","v":65},{"$f":"CntyDataLinkPrior5YearEstimates!DH112","v":77},{"$f":"CntyDataLinkPrior5YearEstimates!DI112","v":56},{"$f":"CntyDataLinkPrior5YearEstimates!DL112","v":0},{"$f":"CntyDataLinkPrior5YearEstimates!DM112","v":0},{"$f":"CntyDataLinkPrior5YearEstimates!DP112","v":0},{"$f":"CntyDataLinkPrior5YearEstimates!DQ112","v":0},{"$f":"CntyDataLinkPrior5YearEstimates!DT112","v":0},{"$f":"CntyDataLinkPrior5YearEstimates!DU112","v":0}]
[]
[null,"No disability",null,{"$f":"CntyDataLinkPrior5YearEstimates!H112","v":55},{"$f":"CntyDataLinkPrior5YearEstimates!I112","v":36.235341863986875},{"$f":"CntyDataLinkPrior5YearEstimates!N112","v":150},{"$f":"CntyDataLinkPrior5YearEstimates!O112","v":54.203320931470607},{"$f":"CntyDataLinkPrior5YearEstimates!T112","v":169},{"$f":"CntyDataLinkPrior5YearEstimates!U112","v":51.623637996561229},{"$f":"CntyDataLinkPrior5YearEstimates!Z112","v":347},{"$f":"CntyDataLinkPrior5YearEstimates!AA112","v":52.32590180780452},{"$f":"CntyDataLinkPrior5YearEstimates!AF112","v":67},{"$f":"CntyDataLinkPrior5YearEstimates!AG112","v":27.658633371878661},{"$f":"CntyDataLinkPrior5YearEstimates!AL112","v":28},{"$f":"CntyDataLinkPrior5YearEstimates!AM112","v":11.401754250991379}]
[null,"Source: 2010-2014 American Community Survey Tables B18101;  B18102; B18103; B18104; B18105; B18106;  and B18107"]
[null,"NA indicates that the American Community Survey does not calculate the number for that disability."]
[null,"Percent of Population with Disabilities"]
[]
[null,null,null,"Under 5",null,"5 to 17 years",null,"18 to 34 years",null,"35 to 64 years",null,"65 to 74 years",null,"75 years and older"]
[]
[null,"With one disability:",null,{"$f":"D33/D$31","v":0},null,{"$f":"F33/F$31","v":1.3157894736842105E-2},null,{"$f":"H33/H$31","v":8.1521739130434784E-2},null,{"$f":"J33/J$31","v":8.6842105263157901E-2},null,{"$f":"L33/L$31","v":0.3619047619047619},null,{"$f":"N33/N$31","v":0.40425531914893614}]
[]
[null,"Type of disability"]
[null,null,"Hearing disability",{"$f":"D38/D$31","v":0},null,{"$f":"F38/F$31","v":0},null,{"$f":"H38/H$31","v":0},null,{"$f":"J38/J$31","v":3.4210526315789476E-2},null,{"$f":"L38/L$31","v":0.12380952380952381},null,{"$f":"N38/N$31","v":0.21276595744680851}]
[null,null,"Visual disability",{"$f":"D39/D$31","v":0},null,{"$f":"F39/F$31","v":0},null,0,null,5.263157894736842E-3,null,3.8095238095238099E-2,null,0]
[null,null,"Cognitive disability","NA",null,{"$f":"F40/F$31","v":1.3157894736842105E-2},null,6.5217391304347824E-2,null,2.1052631578947368E-2,null,3.8095238095238099E-2,null,8.5106382978723402E-2]
[null,null,"Ambulatory disability","NA",null,{"$f":"F41/F$31","v":0},null,5.9782608695652176E-2,null,4.4736842105263158E-2,null,0.19047619047619047,null,0.1276595744680851]
[null,null,"Self-care disability","NA",null,{"$f":"F42/F$31","v":0},null,0,null,2.1052631578947368E-2,null,0,null,8.5106382978723402E-2]
[null,null,"Independent living disability","NA",null,"NA",null,7.0652173913043473E-2,null,2.8947368421052631E-2,null,5.7142857142857141E-2,null,0.27659574468085107]
[]
[]
[]
[null,"No disability",null,{"$f":"D47/D$31","v":1},null,{"$f":"F47/F$31","v":0.98684210526315785},null,{"$f":"H47/H$31","v":0.91847826086956519},null,{"$f":"J47/J$31","v":0.91315789473684206},null,{"$f":"L47/L$31","v":0.63809523809523805},null,{"$f":"N47/N$31","v":0.5957446808510638}]
[]
[]
[null,"Source: 2010-2014 American Community Survey Tables B18101;  B18102; B18103; B18104; B18105; B18106;  and B18107"]
[null,"NA indicates that the American Community Survey does not calculate the number for that disability."]
[]
[null,"Data from the American Community Survey are estimates."]

{"sheet":"SData_B18101_DisabilityAge","index":40,"n_rows":59,"n_cols":82,"rows_kept":59,"cut":false,"hidden":true,"merged":[]}
["GEO_ID","GEO_ID2","SUMLEVEL"]
["Geography Identifier","Geography Identifier","Geographic Summary Level",null,{"$f":"[1]ACS_16_5YR_B18101_with_ann!D$2","v":"Estimate Total:"},{"$f":"[1]ACS_16_5YR_B18101_with_ann!E$2","v":"Margin of Error Total:"},{"$f":"[1]ACS_16_5YR_B18101_with_ann!F$2","v":"Estimate Total: Male:"},{"$f":"[1]ACS_16_5YR_B18101_with_ann!G$2","v":"Margin of Error Total: Male:"},{"$f":"[1]ACS_16_5YR_B18101_with_ann!H$2","v":"Estimate Total: Male: Under 5 years:"},{"$f":"[1]ACS_16_5YR_B18101_with_ann!I$2","v":"Margin of Error Total: Male: Under 5 years:"},{"$f":"[1]ACS_16_5YR_B18101_with_ann!J$2","v":"Estimate Total: Male: Under 5 years: With a disability"},{"$f":"[1]ACS_16_5YR_B18101_with_ann!K$2","v":"Margin of Error Total: Male: Under 5 years: With a disability"},{"$f":"[1]ACS_16_5YR_B18101_with_ann!L$2","v":"Estimate Total: Male: Under 5 years: No disability"},{"$f":"[1]ACS_16_5YR_B18101_with_ann!M$2","v":"Margin of Error Total: Male: Under 5 years: No disability"},{"$f":"[1]ACS_16_5YR_B18101_with_ann!N$2","v":"Estimate Total: Male: 5 to 17 years:"},{"$f":"[1]ACS_16_5YR_B18101_with_ann!O$2","v":"Margin of Error Total: Male: 5 to 17 years:"},{"$f":"[1]ACS_16_5YR_B18101_with_ann!P$2","v":"Estimate Total: Male: 5 to 17 years: With a disability"},{"$f":"[1]ACS_16_5YR_B18101_with_ann!Q$2","v":"Margin of Error Total: Male: 5 to 17 years: With a disability"},{"$f":"[1]ACS_16_5YR_B18101_with_ann!R$2","v":"Estimate Total: Male: 5 to 17 years: No disability"},{"$f":"[1]ACS_16_5YR_B18101_with_ann!S$2","v":"Margin of Error Total: Male: 5 to 17 years: No disability"},{"$f":"[1]ACS_16_5YR_B18101_with_ann!T$2","v":"Estimate Total: Male: 18 to 34 years:"},{"$f":"[1]ACS_16_5YR_B18101_with_ann!U$2","v":"Margin of Error Total: Male: 18 to 34 years:"},{"$f":"[1]ACS_16_5YR_B18101_with_ann!V$2","v":"Estimate Total: Male: 18 to 34 years: With a disability"},{"$f":"[1]ACS_16_5YR_B18101_with_ann!W$2","v":"Margin of Error Total: Male: 18 to 34 years: With a disability"},{"$f":"[1]ACS_16_5YR_B18101_with_ann!X$2","v":"Estimate Total: Male: 18 to 34 years: No disability"},{"$f":"[1]ACS_16_5YR_B18101_with_ann!Y$2","v":"Margin of Error Total: Male: 18 to 34 years: No disability"},{"$f":"[1]ACS_16_5YR_B18101_with_ann!Z$2","v":"Estimate Total: Male: 35 to 64 years:"},{"$f":"[1]ACS_16_5YR_B18101_with_ann!AA$2","v":"Margin of Error Total: Male: 35 to 64 years:"},{"$f":"[1]ACS_16_5YR_B18101_with_ann!AB$2","v":"Estimate Total: Male: 35 to 64 years: With a disability"},{"$f":"[1]ACS_16_5YR_B18101_with_ann!AC$2","v":"Margin of Error Total: Male: 35 to 64 years: With a disability"},{"$f":"[1]ACS_16_5YR_B18101_with_ann!AD$2","v":"Estimate Total: Male: 35 to 64 years: No disability"},{"$f":"[1]ACS_16_5YR_B18101_with_ann!AE$2","v":"Margin of Error Total: Male: 35 to 64 years: No disability"},{"$f":"[1]ACS_16_5YR_B18101_with_ann!AF$2","v":"Estimate Total: Male: 65 to 74 years:"},{"$f":"[1]ACS_16_5YR_B18101_with_ann!AG$2","v":"Margin of Error Total: Male: 65 to 74 years:"},{"$f":"[1]ACS_16_5YR_B18101_with_ann!AH$2","v":"Estimate Total: Male: 65 to 74 years: With a disability"},{"$f":"[1]ACS_16_5YR_B18101_with_ann!AI$2","v":"Margin of Error Total: Male: 65 to 74 years: With a disability"},{"$f":"[1]ACS_16_5YR_B18101_with_ann!AJ$2","v":"Estimate Total: Male: 65 to 74 years: No disability"},{"$f":"[1]ACS_16_5YR_B18101_with_ann!AK$2","v":"Margin of Error Total: Male: 65 to 74 years: No disability"},{"$f":"[1]ACS_16_5YR_B18101_with_ann!AL$2","v":"Estimate Total: Male: 75 years and over:"},{"$f":"[1]ACS_16_5YR_B18101_with_ann!AM$2","v":"Margin of Error Total: Male: 75 years and over:"},{"$f":"[1]ACS_16_5YR_B18101_with_ann!AN$2","v":"Estimate Total: Male: 75 years and over: With a disability"},{"$f":"[1]ACS_16_5YR_B18101_with_ann!AO$2","v":"Margin of Error Total: Male: 75 years and over: With a disability"},{"$f":"[1]ACS_16_5YR_B18101_with_ann!AP$2","v":"Estimate Total: Male: 75 years and over: No disability"},{"$f":"[1]ACS_16_5YR_B18101_with_ann!AQ$2","v":"Margin of Error Total: Male: 75 years and over: No disability"},{"$f":"[1]ACS_16_5YR_B18101_with_ann!AR$2","v":"Estimate Total: Female:"},{"$f":"[1]ACS_16_5YR_B18101_with_ann!AS$2","v":"Margin of Error Total: Female:"},{"$f":"[1]ACS_16_5YR_B18101_with_ann!AT$2","v":"Estimate Total: Female: Under 5 years:"},{"$f":"[1]ACS_16_5YR_B18101_with_ann!AU$2","v":"Margin of Error Total: Female: Under 5 years:"},{"$f":"[1]ACS_16_5YR_B18101_with_ann!AV$2","v":"Estimate Total: Female: Under 5 years: With a disability"},{"$f":"[1]ACS_16_5YR_B18101_with_ann!AW$2","v":"Margin of Error Total: Female: Under 5 years: With a disability"},{"$f":"[1]ACS_16_5YR_B18101_with_ann!AX$2","v":"Estimate Total: Female: Under 5 years: No disability"},{"$f":"[1]ACS_16_5YR_B18101_with_ann!AY$2","v":"Margin of Error Total: Female: Under 5 years: No disability"},{"$f":"[1]ACS_16_5YR_B18101_with_ann!AZ$2","v":"Estimate Total: Female: 5 to 17 years:"},{"$f":"[1]ACS_16_5YR_B18101_with_ann!BA$2","v":"Margin of Error Total: Female: 5 to 17 years:"},{"$f":"[1]ACS_16_5YR_B18101_with_ann!BB$2","v":"Estimate Total: Female: 5 to 17 years: With a disability"},{"$f":"[1]ACS_16_5YR_B18101_with_ann!BC$2","v":"Margin of Error Total: Female: 5 to 17 years: With a disability"},{"$f":"[1]ACS_16_5YR_B18101_with_ann!BD$2","v":"Estimate Total: Female: 5 to 17 years: No disability"},{"$f":"[1]ACS_16_5YR_B18101_with_ann!BE$2","v":"Margin of Error Total: Female: 5 to 17 years: No disability"},{"$f":"[1]ACS_16_5YR_B18101_with_ann!BF$2","v":"Estimate Total: Female: 18 to 34 years:"},{"$f":"[1]ACS_16_5YR_B18101_with_ann!BG$2","v":"Margin of Error Total: Female: 18 to 34 years:"},{"$f":"[1]ACS_16_5YR_B18101_with_ann!BH$2","v":"Estimate Total: Female: 18 to 34 years: With a disability"},{"$f":"[1]ACS_16_5YR_B18101_with_ann!BI$2","v":"Margin of Error Total: Female: 18 to 34 years: With a disability"},{"$f":"[1]ACS_16_5YR_B18101_with_ann!BJ$2","v":"Estimate Total: Female: 18 to 34 years: No disability"},{"$f":"[1]ACS_16_5YR_B18101_with_ann!BK$2","v":"Margin of Error Total: Female: 18 to 34 years: No disability"},{"$f":"[1]ACS_16_5YR_B18101_with_ann!BL$2","v":"Estimate Total: Female: 35 to 64 years:"},{"$f":"[1]ACS_16_5YR_B18101_with_ann!BM$2","v":"Margin of Error Total: Female: 35 to 64 years:"},{"$f":"[1]ACS_16_5YR_B18101_with_ann!BN$2","v":"Estimate Total: Female: 35 to 64 years: With a disability"},{"$f":"[1]ACS_16_5YR_B18101_with_ann!BO$2","v":"Margin of Error Total: Female: 35 to 64 years: With a disability"},{"$f":"[1]ACS_16_5YR_B18101_with_ann!BP$2","v":"Estimate Total: Female: 35 to 64 years: No disability"},{"$f":"[1]ACS_16_5YR_B18101_with_ann!BQ$2","v":"Margin of Error Total: Female: 35 to 64 years: No disability"},{"$f":"[1]ACS_16_5YR_B18101_with_ann!BR$2","v":"Estimate Total: Female: 65 to 74 years:"},{"$f":"[1]ACS_16_5YR_B18101_with_ann!BS$2","v":"Margin of Error Total: Female: 65 to 74 years:"},{"$f":"[1]ACS_16_5YR_B18101_with_ann!BT$2","v":"Estimate Total: Female: 65 to 74 years: With a disability"},{"$f":"[1]ACS_16_5YR_B18101_with_ann!BU$2","v":"Margin of Error Total: Female: 65 to 74 years: With a disability"},{"$f":"[1]ACS_16_5YR_B18101_with_ann!BV$2","v":"Estimate Total: Female: 65 to 74 years: No disability"},{"$f":"[1]ACS_16_5YR_B18101_with_ann!BW$2","v":"Margin of Error Total: Female: 65 to 74 years: No disability"},{"$f":"[1]ACS_16_5YR_B18101_with_ann!BX$2","v":"Estimate Total: Female: 75 years and over:"},{"$f":"[1]ACS_16_5YR_B18101_with_ann!BY$2","v":"Margin of Error Total: Female: 75 years and over:"},{"$f":"[1]ACS_16_5YR_B18101_with_ann!BZ$2","v":"Estimate Total: Female: 75 years and over: With a disability"},{"$f":"[1]ACS_16_5YR_B18101_with_ann!CA$2","v":"Margin of Error Total: Female: 75 years and over: With a disability"},{"$f":"[1]ACS_16_5YR_B18101_with_ann!CB$2","v":"Estimate Total: Female: 75 years and over: No disability"},{"$f":"[1]ACS_16_5YR_B18101_with_ann!CC$2","v":"Margin of Error Total: Female: 75 years and over: No disability"}]
["0600000US3301900259",3301900259,"060","Acworth",{"$f":"[1]ACS_16_5YR_B18101_with_ann!D258","v":906},{"$f":"[1]ACS_16_5YR_B18101_with_ann!E258","v":134},{"$f":"[1]ACS_16_5YR_B18101_with_ann!F258","v":487},{"$f":"[1]ACS_16_5YR_B18101_with_ann!G258","v":83},{"$f":"[1]ACS_16_5YR_B18101_with_ann!H258","v":21},{"$f":"[1]ACS_16_5YR_B18101_with_ann!I258","v":14},{"$f":"[1]ACS_16_5YR_B18101_with_ann!J258","v":0},{"$f":"[1]ACS_16_5YR_B18101_with_ann!K258","v":11},{"$f":"[1]ACS_16_5YR_B18101_with_ann!L258","v":21},{"$f":"[1]ACS_16_5YR_B18101_with_ann!M258","v":14},{"$f":"[1]ACS_16_5YR_B18101_with_ann!N258","v":34},{"$f":"[1]ACS_16_5YR_B18101_with_ann!O258","v":23},{"$f":"[1]ACS_16_5YR_B18101_with_ann!P258","v":0},{"$f":"[1]ACS_16_5YR_B18101_with_ann!Q258","v":11},{"$f":"[1]ACS_16_5YR_B18101_with_ann!R258","v":34},{"$f":"[1]ACS_16_5YR_B18101_with_ann!S258","v":23},{"$f":"[1]ACS_16_5YR_B18101_with_ann!T258","v":79},{"$f":"[1]ACS_16_5YR_B18101_with_ann!U258","v":38},{"$f":"[1]ACS_16_5YR_B18101_with_ann!V258","v":26},{"$f":"[1]ACS_16_5YR_B18101_with_ann!W258","v":22},{"$f":"[1]ACS_16_5YR_B18101_with_ann!X258","v":53},{"$f":"[1]ACS_16_5YR_B18101_with_ann!Y258","v":24},{"$f":"[1]ACS_16_5YR_B18101_with_ann!Z258","v":213},{"$f":"[1]ACS_16_5YR_B18101_with_ann!AA258","v":48},{"$f":"[1]ACS_16_5YR_B18101_with_ann!AB258","v":10},{"$f":"[1]ACS_16_5YR_B18101_with_ann!AC258","v":11},{"$f":"[1]ACS_16_5YR_B18101_with_ann!AD258","v":203},{"$f":"[1]ACS_16_5YR_B18101_with_ann!AE258","v":48},{"$f":"[1]ACS_16_5YR_B18101_with_ann!AF258","v":88},{"$f":"[1]ACS_16_5YR_B18101_with_ann!AG258","v":27},{"$f":"[1]ACS_16_5YR_B18101_with_ann!AH258","v":29},{"$f":"[1]ACS_16_5YR_B18101_with_ann!AI258","v":17},{"$f":"[1]ACS_16_5YR_B18101_with_ann!AJ258","v":59},{"$f":"[1]ACS_16_5YR_B18101_with_ann!AK258","v":22},{"$f":"[1]ACS_16_5YR_B18101_with_ann!AL258","v":52},{"$f":"[1]ACS_16_5YR_B18101_with_ann!AM258","v":23},{"$f":"[1]ACS_16_5YR_B18101_with_ann!AN258","v":19},{"$f":"[1]ACS_16_5YR_B18101_with_ann!AO258","v":15},{"$f":"[1]ACS_16_5YR_B18101_with_ann!AP258","v":33},{"$f":"[1]ACS_16_5YR_B18101_with_ann!AQ258","v":18},{"$f":"[1]ACS_16_5YR_B18101_with_ann!AR258","v":419},{"$f":"[1]ACS_16_5YR_B18101_with_ann!AS258","v":72},{"$f":"[1]ACS_16_5YR_B18101_with_ann!AT258","v":16},{"$f":"[1]ACS_16_5YR_B18101_with_ann!AU258","v":13},{"$f":"[1]ACS_16_5YR_B18101_with_ann!AV258","v":0},{"$f":"[1]ACS_16_5YR_B18101_with_ann!AW258","v":11},{"$f":"[1]ACS_16_5YR_B18101_with_ann!AX258","v":16},{"$f":"[1]ACS_16_5YR_B18101_with_ann!AY258","v":13},{"$f":"[1]ACS_16_5YR_B18101_with_ann!AZ258","v":24},{"$f":"[1]ACS_16_5YR_B18101_with_ann!BA258","v":18},{"$f":"[1]ACS_16_5YR_B18101_with_ann!BB258","v":0},{"$f":"[1]ACS_16_5YR_B18101_with_ann!BC258","v":11},{"$f":"[1]ACS_16_5YR_B18101_with_ann!BD258","v":24},{"$f":"[1]ACS_16_5YR_B18101_with_ann!BE258","v":18},{"$f":"[1]ACS_16_5YR_B18101_with_ann!BF258","v":47},{"$f":"[1]ACS_16_5YR_B18101_with_ann!BG258","v":25},{"$f":"[1]ACS_16_5YR_B18101_with_ann!BH258","v":0},{"$f":"[1]ACS_16_5YR_B18101_with_ann!BI258","v":11},{"$f":"[1]ACS_16_5YR_B18101_with_ann!BJ258","v":47},{"$f":"[1]ACS_16_5YR_B18101_with_ann!BK258","v":25},{"$f":"[1]ACS_16_5YR_B18101_with_ann!BL258","v":190},{"$f":"[1]ACS_16_5YR_B18101_with_ann!BM258","v":46},{"$f":"[1]ACS_16_5YR_B18101_with_ann!BN258","v":5},{"$f":"[1]ACS_16_5YR_B18101_with_ann!BO258","v":6},{"$f":"[1]ACS_16_5YR_B18101_with_ann!BP258","v":185},{"$f":"[1]ACS_16_5YR_B18101_with_ann!BQ258","v":46},{"$f":"[1]ACS_16_5YR_B18101_with_ann!BR258","v":117},{"$f":"[1]ACS_16_5YR_B18101_with_ann!BS258","v":42},{"$f":"[1]ACS_16_5YR_B18101_with_ann!BT258","v":18},{"$f":"[1]ACS_16_5YR_B18101_with_ann!BU258","v":16},{"$f":"[1]ACS_16_5YR_B18101_with_ann!BV258","v":99},{"$f":"[1]ACS_16_5YR_B18101_with_ann!BW258","v":37},{"$f":"[1]ACS_16_5YR_B18101_with_ann!BX258","v":25},{"$f":"[1]ACS_16_5YR_B18101_with_ann!BY258","v":14},{"$f":"[1]ACS_16_5YR_B18101_with_ann!BZ258","v":4},{"$f":"[1]ACS_16_5YR_B18101_with_ann!CA258","v":4},{"$f":"[1]ACS_16_5YR_B18101_with_ann!CB258","v":21},{"$f":"[1]ACS_16_5YR_B18101_with_ann!CC258","v":14}]
["0600000US3301911380",3301911380,"060","Charlestown",{"$f":"[1]ACS_16_5YR_B18101_with_ann!D259","v":5017},{"$f":"[1]ACS_16_5YR_B18101_with_ann!E259","v":22},{"$f":"[1]ACS_16_5YR_B18101_with_ann!F259","v":2514},{"$f":"[1]ACS_16_5YR_B18101_with_ann!G259","v":222},{"$f":"[1]ACS_16_5YR_B18101_with_ann!H259","v":189},{"$f":"[1]ACS_16_5YR_B18101_with_ann!I259","v":101},{"$f":"[1]ACS_16_5YR_B18101_with_ann!J259","v":0},{"$f":"[1]ACS_16_5YR_B18101_with_ann!K259","v":16},{"$f":"[1]ACS_16_5YR_B18101_with_ann!L259","v":189},{"$f":"[1]ACS_16_5YR_B18101_with_ann!M259","v":101},{"$f":"[1]ACS_16_5YR_B18101_with_ann!N259","v":250},{"$f":"[1]ACS_16_5YR_B18101_with_ann!O259","v":103},{"$f":"[1]ACS_16_5YR_B18101_with_ann!P259","v":0},{"$f":"[1]ACS_16_5YR_B18101_with_ann!Q259","v":16},{"$f":"[1]ACS_16_5YR_B18101_with_ann!R259","v":250},{"$f":"[1]ACS_16_5YR_B18101_with_ann!S259","v":103},{"$f":"[1]ACS_16_5YR_B18101_with_ann!T259","v":490},{"$f":"[1]ACS_16_5YR_B18101_with_ann!U259","v":144},{"$f":"[1]ACS_16_5YR_B18101_with_ann!V259","v":22},{"$f":"[1]ACS_16_5YR_B18101_with_ann!W259","v":33},{"$f":"[1]ACS_16_5YR_B18101_with_ann!X259","v":468},{"$f":"[1]ACS_16_5YR_B18101_with_ann!Y259","v":141},{"$f":"[1]ACS_16_5YR_B18101_with_ann!Z259","v":1034},{"$f":"[1]ACS_16_5YR_B18101_with_ann!AA259","v":172},{"$f":"[1]ACS_16_5YR_B18101_with_ann!AB259","v":186},{"$f":"[1]ACS_16_5YR_B18101_with_ann!AC259","v":129},{"$f":"[1]ACS_16_5YR_B18101_with_ann!AD259","v":848},{"$f":"[1]ACS_16_5YR_B18101_with_ann!AE259","v":158},{"$f":"[1]ACS_16_5YR_B18101_with_ann!AF259","v":261},{"$f":"[1]ACS_16_5YR_B18101_with_ann!AG259","v":94},{"$f":"[1]ACS_16_5YR_B18101_with_ann!AH259","v":50},{"$f":"[1]ACS_16_5YR_B18101_with_ann!AI259","v":48},{"$f":"[1]ACS_16_5YR_B18101_with_ann!AJ259","v":211},{"$f":"[1]ACS_16_5YR_B18101_with_ann!AK259","v":104},{"$f":"[1]ACS_16_5YR_B18101_with_ann!AL259","v":290},{"$f":"[1]ACS_16_5YR_B18101_with_ann!AM259","v":141},{"$f":"[1]ACS_16_5YR_B18101_with_ann!AN259","v":141},{"$f":"[1]ACS_16_5YR_B18101_with_ann!AO259","v":98},{"$f":"[1]ACS_16_5YR_B18101_with_ann!AP259","v":149},{"$f":"[1]ACS_16_5YR_B18101_with_ann!AQ259","v":88},{"$f":"[1]ACS_16_5YR_B18101_with_ann!AR259","v":2503},{"$f":"[1]ACS_16_5YR_B18101_with_ann!AS259","v":221},{"$f":"[1]ACS_16_5YR_B18101_with_ann!AT259","v":121},{"$f":"[1]ACS_16_5YR_B18101_with_ann!AU259","v":78},{"$f":"[1]ACS_16_5YR_B18101_with_ann!AV259","v":33},{"$f":"[1]ACS_16_5YR_B18101_with_ann!AW259","v":51},{"$f":"[1]ACS_16_5YR_B18101_with_ann!AX259","v":88},{"$f":"[1]ACS_16_5YR_B18101_with_ann!AY259","v":68},{"$f":"[1]ACS_16_5YR_B18101_with_ann!AZ259","v":420},{"$f":"[1]ACS_16_5YR_B18101_with_ann!BA259","v":147},{"$f":"[1]ACS_16_5YR_B18101_with_ann!BB259","v":56},{"$f":"[1]ACS_16_5YR_B18101_with_ann!BC259","v":57},{"$f":"[1]ACS_16_5YR_B18101_with_ann!BD259","v":364},{"$f":"[1]ACS_16_5YR_B18101_with_ann!BE259","v":145},{"$f":"[1]ACS_16_5YR_B18101_with_ann!BF259","v":357},{"$f":"[1]ACS_16_5YR_B18101_with_ann!BG259","v":108},{"$f":"[1]ACS_16_5YR_B18101_with_ann!BH259","v":0},{"$f":"[1]ACS_16_5YR_B18101_with_ann!BI259","v":16},{"$f":"[1]ACS_16_5YR_B18101_with_ann!BJ259","v":357},{"$f":"[1]ACS_16_5YR_B18101_with_ann!BK259","v":108},{"$f":"[1]ACS_16_5YR_B18101_with_ann!BL259","v":1080},{"$f":"[1]ACS_16_5YR_B18101_with_ann!BM259","v":163},{"$f":"[1]ACS_16_5YR_B18101_with_ann!BN259","v":95},{"$f":"[1]ACS_16_5YR_B18101_with_ann!BO259","v":81},{"$f":"[1]ACS_16_5YR_B18101_with_ann!BP259","v":985},{"$f":"[1]ACS_16_5YR_B18101_with_ann!BQ259","v":174},{"$f":"[1]ACS_16_5YR_B18101_with_ann!BR259","v":296},{"$f":"[1]ACS_16_5YR_B18101_with_ann!BS259","v":120},{"$f":"[1]ACS_16_5YR_B18101_with_ann!BT259","v":16},{"$f":"[1]ACS_16_5YR_B18101_with_ann!BU259","v":26},{"$f":"[1]ACS_16_5YR_B18101_with_ann!BV259","v":280},{"$f":"[1]ACS_16_5YR_B18101_with_ann!BW259","v":121},{"$f":"[1]ACS_16_5YR_B18101_with_ann!BX259","v":229},{"$f":"[1]ACS_16_5YR_B18101_with_ann!BY259","v":88},{"$f":"[1]ACS_16_5YR_B18101_with_ann!BZ259","v":84},{"$f":"[1]ACS_16_5YR_B18101_with_ann!CA259","v":70},{"$f":"[1]ACS_16_5YR_B18101_with_ann!CB259","v":145},{"$f":"[1]ACS_16_5YR_B18101_with_ann!CC259","v":71}]
["0600000US3301912900",3301912900,"060","Claremont",{"$f":"[1]ACS_16_5YR_B18101_with_ann!D260","v":12914},{"$f":"[1]ACS_16_5YR_B18101_with_ann!E260","v":40},{"$f":"[1]ACS_16_5YR_B18101_with_ann!F260","v":6265},{"$f":"[1]ACS_16_5YR_B18101_with_ann!G260","v":280},{"$f":"[1]ACS_16_5YR_B18101_with_ann!H260","v":393},{"$f":"[1]ACS_16_5YR_B18101_with_ann!I260","v":117},{"$f":"[1]ACS_16_5YR_B18101_with_ann!J260","v":0},{"$f":"[1]ACS_16_5YR_B18101_with_ann!K260","v":18},{"$f":"[1]ACS_16_5YR_B18101_with_ann!L260","v":393},{"$f":"[1]ACS_16_5YR_B18101_with_ann!M260","v":117},{"$f":"[1]ACS_16_5YR_B18101_with_ann!N260","v":902},{"$f":"[1]ACS_16_5YR_B18101_with_ann!O260","v":164},{"$f":"[1]ACS_16_5YR_B18101_with_ann!P260","v":73},{"$f":"[1]ACS_16_5YR_B18101_with_ann!Q260","v":50},{"$f":"[1]ACS_16_5YR_B18101_with_ann!R260","v":829},{"$f":"[1]ACS_16_5YR_B18101_with_ann!S260","v":170},{"$f":"[1]ACS_16_5YR_B18101_with_ann!T260","v":1622},{"$f":"[1]ACS_16_5YR_B18101_with_ann!U260","v":255},{"$f":"[1]ACS_16_5YR_B18101_with_ann!V260","v":161},{"$f":"[1]ACS_16_5YR_B18101_with_ann!W260","v":98},{"$f":"[1]ACS_16_5YR_B18101_with_ann!X260","v":1461},{"$f":"[1]ACS_16_5YR_B18101_with_ann!Y260","v":238},{"$f":"[1]ACS_16_5YR_B18101_with_ann!Z260","v":2416},{"$f":"[1]ACS_16_5YR_B18101_with_ann!AA260","v":184},{"$f":"[1]ACS_16_5YR_B18101_with_ann!AB260","v":433},{"$f":"[1]ACS_16_5YR_B18101_with_ann!AC260","v":130},{"$f":"[1]ACS_16_5YR_B18101_with_ann!AD260","v":1983},{"$f":"[1]ACS_16_5YR_B18101_with_ann!AE260","v":194},{"$f":"[1]ACS_16_5YR_B18101_with_ann!AF260","v":650},{"$f":"[1]ACS_16_5YR_B18101_with_ann!AG260","v":105},{"$f":"[1]ACS_16_5YR_B18101_with_ann!AH260","v":187},{"$f":"[1]ACS_16_5YR_B18101_with_ann!AI260","v":79},{"$f":"[1]ACS_16_5YR_B18101_with_ann!AJ260","v":463},{"$f":"[1]ACS_16_5YR_B18101_with_ann!AK260","v":100},{"$f":"[1]ACS_16_5YR_B18101_with_ann!AL260","v":282},{"$f":"[1]ACS_16_5YR_B18101_with_ann!AM260","v":88},{"$f":"[1]ACS_16_5YR_B18101_with_ann!AN260","v":145},{"$f":"[1]ACS_16_5YR_B18101_with_ann!AO260","v":64},{"$f":"[1]ACS_16_5YR_B18101_with_ann!AP260","v":137},{"$f":"[1]ACS_16_5YR_B18101_with_ann!AQ260","v":65},{"$f":"[1]ACS_16_5YR_B18101_with_ann!AR260","v":6649},{"$f":"[1]ACS_16_5YR_B18101_with_ann!AS260","v":275},{"$f":"[1]ACS_16_5YR_B18101_with_ann!AT260","v":475},{"$f":"[1]ACS_16_5YR_B18101_with_ann!AU260","v":107},{"$f":"[1]ACS_16_5YR_B18101_with_ann!AV260","v":0},{"$f":"[1]ACS_16_5YR_B18101_with_ann!AW260","v":18},{"$f":"[1]ACS_16_5YR_B18101_with_ann!AX260","v":475},{"$f":"[1]ACS_16_5YR_B18101_with_ann!AY260","v":107},{"$f":"[1]ACS_16_5YR_B18101_with_ann!AZ260","v":922},{"$f":"[1]ACS_16_5YR_B18101_with_ann!BA260","v":206},{"$f":"[1]ACS_16_5YR_B18101_with_ann!BB260","v":52},{"$f":"[1]ACS_16_5YR_B18101_with_ann!BC260","v":50},{"$f":"[1]ACS_16_5YR_B18101_with_ann!BD260","v":870},{"$f":"[1]ACS_16_5YR_B18101_with_ann!BE260","v":191},{"$f":"[1]ACS_16_5YR_B18101_with_ann!BF260","v":1415},{"$f":"[1]ACS_16_5YR_B18101_with_ann!BG260","v":187},{"$f":"[1]ACS_16_5YR_B18101_with_ann!BH260","v":285},{"$f":"[1]ACS_16_5YR_B18101_with_ann!BI260","v":100},{"$f":"[1]ACS_16_5YR_B18101_with_ann!BJ260","v":1130},{"$f":"[1]ACS_16_5YR_B18101_with_ann!BK260","v":214},{"$f":"[1]ACS_16_5YR_B18101_with_ann!BL260","v":2460},{"$f":"[1]ACS_16_5YR_B18101_with_ann!BM260","v":217},{"$f":"[1]ACS_16_5YR_B18101_with_ann!BN260","v":391},{"$f":"[1]ACS_16_5YR_B18101_with_ann!BO260","v":134},{"$f":"[1]ACS_16_5YR_B18101_with_ann!BP260","v":2069},{"$f":"[1]ACS_16_5YR_B18101_with_ann!BQ260","v":238},{"$f":"[1]ACS_16_5YR_B18101_with_ann!BR260","v":755},{"$f":"[1]ACS_16_5YR_B18101_with_ann!BS260","v":152},{"$f":"[1]ACS_16_5YR_B18101_with_ann!BT260","v":167},{"$f":"[1]ACS_16_5YR_B18101_with_ann!BU260","v":113},{"$f":"[1]ACS_16_5YR_B18101_with_ann!BV260","v":588},{"$f":"[1]ACS_16_5YR_B18101_with_ann!BW260","v":139},{"$f":"[1]ACS_16_5YR_B18101_with_ann!BX260","v":622},{"$f":"[1]ACS_16_5YR_B18101_with_ann!BY260","v":128},{"$f":"[1]ACS_16_5YR_B18101_with_ann!BZ260","v":365},{"$f":"[1]ACS_16_5YR_B18101_with_ann!CA260","v":114},{"$f":"[1]ACS_16_5YR_B18101_with_ann!CB260","v":257},{"$f":"[1]ACS_16_5YR_B18101_with_ann!CC260","v":75}]
["0600000US3301915060",3301915060,"060","Cornish",{"$f":"[1]ACS_16_5YR_B18101_with_ann!D261","v":1783},{"$f":"[1]ACS_16_5YR_B18101_with_ann!E261","v":217},{"$f":"[1]ACS_16_5YR_B18101_with_ann!F261","v":922},{"$f":"[1]ACS_16_5YR_B18101_with_ann!G261","v":150},{"$f":"[1]ACS_16_5YR_B18101_with_ann!H261","v":35},{"$f":"[1]ACS_16_5YR_B18101_with_ann!I261","v":19},{"$f":"[1]ACS_16_5YR_B18101_with_ann!J261","v":0},{"$f":"[1]ACS_16_5YR_B18101_with_ann!K261","v":11},{"$f":"[1]ACS_16_5YR_B18101_with_ann!L261","v":35},{"$f":"[1]ACS_16_5YR_B18101_with_ann!M261","v":19},{"$f":"[1]ACS_16_5YR_B18101_with_ann!N261","v":169},{"$f":"[1]ACS_16_5YR_B18101_with_ann!O261","v":107},{"$f":"[1]ACS_16_5YR_B18101_with_ann!P261","v":5},{"$f":"[1]ACS_16_5YR_B18101_with_ann!Q261","v":9},{"$f":"[1]ACS_16_5YR_B18101_with_ann!R261","v":164},{"$f":"[1]ACS_16_5YR_B18101_with_ann!S261","v":106},{"$f":"[1]ACS_16_5YR_B18101_with_ann!T261","v":95},{"$f":"[1]ACS_16_5YR_B18101_with_ann!U261","v":28},{"$f":"[1]ACS_16_5YR_B18101_with_ann!V261","v":9},{"$f":"[1]ACS_16_5YR_B18101_with_ann!W261","v":10},{"$f":"[1]ACS_16_5YR_B18101_with_ann!X261","v":86},{"$f":"[1]ACS_16_5YR_B18101_with_ann!Y261","v":27},{"$f":"[1]ACS_16_5YR_B18101_with_ann!Z261","v":367},{"$f":"[1]ACS_16_5YR_B18101_with_ann!AA261","v":53},{"$f":"[1]ACS_16_5YR_B18101_with_ann!AB261","v":31},{"$f":"[1]ACS_16_5YR_B18101_with_ann!AC261","v":18},{"$f":"[1]ACS_16_5YR_B18101_with_ann!AD261","v":336},{"$f":"[1]ACS_16_5YR_B18101_with_ann!AE261","v":51},{"$f":"[1]ACS_16_5YR_B18101_with_ann!AF261","v":190},{"$f":"[1]ACS_16_5YR_B18101_with_ann!AG261","v":51},{"$f":"[1]ACS_16_5YR_B18101_with_ann!AH261","v":20},{"$f":"[1]ACS_16_5YR_B18101_with_ann!AI261","v":12},{"$f":"[1]ACS_16_5YR_B18101_with_ann!AJ261","v":170},{"$f":"[1]ACS_16_5YR_B18101_with_ann!AK261","v":48},{"$f":"[1]ACS_16_5YR_B18101_with_ann!AL261","v":66},{"$f":"[1]ACS_16_5YR_B18101_with_ann!AM261","v":32},{"$f":"[1]ACS_16_5YR_B18101_with_ann!AN261","v":25},{"$f":"[1]ACS_16_5YR_B18101_with_ann!AO261","v":15},{"$f":"[1]ACS_16_5YR_B18101_with_ann!AP261","v":41},{"$f":"[1]ACS_16_5YR_B18101_with_ann!AQ261","v":25},{"$f":"[1]ACS_16_5YR_B18101_with_ann!AR261","v":861},{"$f":"[1]ACS_16_5YR_B18101_with_ann!AS261","v":100},{"$f":"[1]ACS_16_5YR_B18101_with_ann!AT261","v":26},{"$f":"[1]ACS_16_5YR_B18101_with_ann!AU261","v":14},{"$f":"[1]ACS_16_5YR_B18101_with_ann!AV261","v":0},{"$f":"[1]ACS_16_5YR_B18101_with_ann!AW261","v":11},{"$f":"[1]ACS_16_5YR_B18101_with_ann!AX261","v":26},{"$f":"[1]ACS_16_5YR_B18101_with_ann!AY261","v":14},{"$f":"[1]ACS_16_5YR_B18101_with_ann!AZ261","v":119},{"$f":"[1]ACS_16_5YR_B18101_with_ann!BA261","v":46},{"$f":"[1]ACS_16_5YR_B18101_with_ann!BB261","v":0},{"$f":"[1]ACS_16_5YR_B18101_with_ann!BC261","v":11},{"$f":"[1]ACS_16_5YR_B18101_with_ann!BD261","v":119},{"$f":"[1]ACS_16_5YR_B18101_with_ann!BE261","v":46},{"$f":"[1]ACS_16_5YR_B18101_with_ann!BF262","v":124},{"$f":"[1]ACS_16_5YR_B18101_with_ann!BG262","v":96},{"$f":"[1]ACS_16_5YR_B18101_with_ann!BH262","v":0},{"$f":"[1]ACS_16_5YR_B18101_with_ann!BI262","v":11},{"$f":"[1]ACS_16_5YR_B18101_with_ann!BJ262","v":124},{"$f":"[1]ACS_16_5YR_B18101_with_ann!BK262","v":96},{"$f":"[1]ACS_16_5YR_B18101_with_ann!BL262","v":169},{"$f":"[1]ACS_16_5YR_B18101_with_ann!BM262","v":53},{"$f":"[1]ACS_16_5YR_B18101_with_ann!BN262","v":13},{"$f":"[1]ACS_16_5YR_B18101_with_ann!BO262","v":11},{"$f":"[1]ACS_16_5YR_B18101_with_ann!BP262","v":156},{"$f":"[1]ACS_16_5YR_B18101_with_ann!BQ262","v":51},{"$f":"[1]ACS_16_5YR_B18101_with_ann!BR262","v":49},{"$f":"[1]ACS_16_5YR_B18101_with_ann!BS262","v":24},{"$f":"[1]ACS_16_5YR_B18101_with_ann!BT262","v":7},{"$f":"[1]ACS_16_5YR_B18101_with_ann!BU262","v":7},{"$f":"[1]ACS_16_5YR_B18101_with_ann!BV262","v":42},{"$f":"[1]ACS_16_5YR_B18101_with_ann!BW262","v":23},{"$f":"[1]ACS_16_5YR_B18101_with_ann!BX262","v":21},{"$f":"[1]ACS_16_5YR_B18101_with_ann!BY262","v":12},{"$f":"[1]ACS_16_5YR_B18101_with_ann!BZ262","v":8},{"$f":"[1]ACS_16_5YR_B18101_with_ann!CA262","v":10},{"$f":"[1]ACS_16_5YR_B18101_with_ann!CB262","v":13},{"$f":"[1]ACS_16_5YR_B18101_with_ann!CC262","v":7}]
["0600000US3301916340",3301916340,"060","Croydon",{"$f":"[1]ACS_16_5YR_B18101_with_ann!D262","v":863},{"$f":"[1]ACS_16_5YR_B18101_with_ann!E262","v":244},{"$f":"[1]ACS_16_5YR_B18101_with_ann!F262","v":423},{"$f":"[1]ACS_16_5YR_B18101_with_ann!G262","v":111},{"$f":"[1]ACS_16_5YR_B18101_with_ann!H262","v":11},{"$f":"[1]ACS_16_5YR_B18101_with_ann!I262","v":12},{"$f":"[1]ACS_16_5YR_B18101_with_ann!J262","v":0},{"$f":"[1]ACS_16_5YR_B18101_with_ann!K262","v":11},{"$f":"[1]ACS_16_5YR_B18101_with_ann!L262","v":11},{"$f":"[1]ACS_16_5YR_B18101_with_ann!M262","v":12},{"$f":"[1]ACS_16_5YR_B18101_with_ann!N262","v":56},{"$f":"[1]ACS_16_5YR_B18101_with_ann!O262","v":37},{"$f":"[1]ACS_16_5YR_B18101_with_ann!P262","v":0},{"$f":"[1]ACS_16_5YR_B18101_with_ann!Q262","v":11},{"$f":"[1]ACS_16_5YR_B18101_with_ann!R262","v":56},{"$f":"[1]ACS_16_5YR_B18101_with_ann!S262","v":37},{"$f":"[1]ACS_16_5YR_B18101_with_ann!T262","v":87},{"$f":"[1]ACS_16_5YR_B18101_with_ann!U262","v":47},{"$f":"[1]ACS_16_5YR_B18101_with_ann!V262","v":7},{"$f":"[1]ACS_16_5YR_B18101_with_ann!W262","v":10},{"$f":"[1]ACS_16_5YR_B18101_with_ann!X262","v":80},{"$f":"[1]ACS_16_5YR_B18101_with_ann!Y262","v":46},{"$f":"[1]ACS_16_5YR_B18101_with_ann!Z262","v":198},{"$f":"[1]ACS_16_5YR_B18101_with_ann!AA262","v":60},{"$f":"[1]ACS_16_5YR_B18101_with_ann!AB262","v":28},{"$f":"[1]ACS_16_5YR_B18101_with_ann!AC262","v":15},{"$f":"[1]ACS_16_5YR_B18101_with_ann!AD262","v":170},{"$f":"[1]ACS_16_5YR_B18101_with_ann!AE262","v":57},{"$f":"[1]ACS_16_5YR_B18101_with_ann!AF262","v":38},{"$f":"[1]ACS_16_5YR_B18101_with_ann!AG262","v":22},{"$f":"[1]ACS_16_5YR_B18101_with_ann!AH262","v":7},{"$f":"[1]ACS_16_5YR_B18101_with_ann!AI262","v":7},{"$f":"[1]ACS_16_5YR_B18101_with_ann!AJ262","v":31},{"$f":"[1]ACS_16_5YR_B18101_with_ann!AK262","v":21},{"$f":"[1]ACS_16_5YR_B18101_with_ann!AL262","v":33},{"$f":"[1]ACS_16_5YR_B18101_with_ann!AM262","v":16},{"$f":"[1]ACS_16_5YR_B18101_with_ann!AN262","v":20},{"$f":"[1]ACS_16_5YR_B18101_with_ann!AO262","v":12},{"$f":"[1]ACS_16_5YR_B18101_with_ann!AP262","v":13},{"$f":"[1]ACS_16_5YR_B18101_with_ann!AQ262","v":11},{"$f":"[1]ACS_16_5YR_B18101_with_ann!AR262","v":440},{"$f":"[1]ACS_16_5YR_B18101_with_ann!AS262","v":156},{"$f":"[1]ACS_16_5YR_B18101_with_ann!AT262","v":12},{"$f":"[1]ACS_16_5YR_B18101_with_ann!AU262","v":11},{"$f":"[1]ACS_16_5YR_B18101_with_ann!AV262","v":0},{"$f":"[1]ACS_16_5YR_B18101_with_ann!AW262","v":11},{"$f":"[1]ACS_16_5YR_B18101_with_ann!AX262","v":12},{"$f":"[1]ACS_16_5YR_B18101_with_ann!AY262","v":11},{"$f":"[1]ACS_16_5YR_B18101_with_ann!AZ262","v":65},{"$f":"[1]ACS_16_5YR_B18101_with_ann!BA262","v":34},{"$f":"[1]ACS_16_5YR_B18101_with_ann!BB262","v":0},{"$f":"[1]ACS_16_5YR_B18101_with_ann!BC262","v":11},{"$f":"[1]ACS_16_5YR_B18101_with_ann!BD262","v":65},{"$f":"[1]ACS_16_5YR_B18101_with_ann!BE262","v":34},{"$f":"[1]ACS_16_5YR_B18101_with_ann!BF263","v":69},{"$f":"[1]ACS_16_5YR_B18101_with_ann!BG263","v":34},{"$f":"[1]ACS_16_5YR_B18101_with_ann!BH263","v":3},{"$f":"[1]ACS_16_5YR_B18101_with_ann!BI263","v":4},{"$f":"[1]ACS_16_5YR_B18101_with_ann!BJ263","v":66},{"$f":"[1]ACS_16_5YR_B18101_with_ann!BK263","v":34},{"$f":"[1]ACS_16_5YR_B18101_with_ann!BL263","v":117},{"$f":"[1]ACS_16_5YR_B18101_with_ann!BM263","v":33},{"$f":"[1]ACS_16_5YR_B18101_with_ann!BN263","v":13},{"$f":"[1]ACS_16_5YR_B18101_with_ann!BO263","v":7},{"$f":"[1]ACS_16_5YR_B18101_with_ann!BP263","v":104},{"$f":"[1]ACS_16_5YR_B18101_with_ann!BQ263","v":33},{"$f":"[1]ACS_16_5YR_B18101_with_ann!BR263","v":49},{"$f":"[1]ACS_16_5YR_B18101_with_ann!BS263","v":21},{"$f":"[1]ACS_16_5YR_B18101_with_ann!BT263","v":16},{"$f":"[1]ACS_16_5YR_B18101_with_ann!BU263","v":12},{"$f":"[1]ACS_16_5YR_B18101_with_ann!BV263","v":33},{"$f":"[1]ACS_16_5YR_B18101_with_ann!BW263","v":17},{"$f":"[1]ACS_16_5YR_B18101_with_ann!BX263","v":29},{"$f":"[1]ACS_16_5YR_B18101_with_ann!BY263","v":13},{"$f":"[1]ACS_16_5YR_B18101_with_ann!BZ263","v":12},{"$f":"[1]ACS_16_5YR_B18101_with_ann!CA263","v":9},{"$f":"[1]ACS_16_5YR_B18101_with_ann!CB263","v":17},{"$f":"[1]ACS_16_5YR_B18101_with_ann!CC263","v":11}]
["0600000US3301930500",3301930500,"060","Goshen",{"$f":"[1]ACS_16_5YR_B18101_with_ann!D263","v":680},{"$f":"[1]ACS_16_5YR_B18101_with_ann!E263","v":109},{"$f":"[1]ACS_16_5YR_B18101_with_ann!F263","v":346},{"$f":"[1]ACS_16_5YR_B18101_with_ann!G263","v":70},{"$f":"[1]ACS_16_5YR_B18101_with_ann!H263","v":18},{"$f":"[1]ACS_16_5YR_B18101_with_ann!I263","v":14},{"$f":"[1]ACS_16_5YR_B18101_with_ann!J263","v":0},{"$f":"[1]ACS_16_5YR_B18101_with_ann!K263","v":11},{"$f":"[1]ACS_16_5YR_B18101_with_ann!L263","v":18},{"$f":"[1]ACS_16_5YR_B18101_with_ann!M263","v":14},{"$f":"[1]ACS_16_5YR_B18101_with_ann!N263","v":49},{"$f":"[1]ACS_16_5YR_B18101_with_ann!O263","v":27},{"$f":"[1]ACS_16_5YR_B18101_with_ann!P263","v":2},{"$f":"[1]ACS_16_5YR_B18101_with_ann!Q263","v":3},{"$f":"[1]ACS_16_5YR_B18101_with_ann!R263","v":47},{"$f":"[1]ACS_16_5YR_B18101_with_ann!S263","v":27},{"$f":"[1]ACS_16_5YR_B18101_with_ann!T263","v":43},{"$f":"[1]ACS_16_5YR_B18101_with_ann!U263","v":21},{"$f":"[1]ACS_16_5YR_B18101_with_ann!V263","v":3},{"$f":"[1]ACS_16_5YR_B18101_with_ann!W263","v":5},{"$f":"[1]ACS_16_5YR_B18101_with_ann!X263","v":40},{"$f":"[1]ACS_16_5YR_B18101_with_ann!Y263","v":21},{"$f":"[1]ACS_16_5YR_B18101_with_ann!Z263","v":157},{"$f":"[1]ACS_16_5YR_B18101_with_ann!AA263","v":41},{"$f":"[1]ACS_16_5YR_B18101_with_ann!AB263","v":12},{"$f":"[1]ACS_16_5YR_B18101_with_ann!AC263","v":11},{"$f":"[1]ACS_16_5YR_B18101_with_ann!AD263","v":145},{"$f":"[1]ACS_16_5YR_B18101_with_ann!AE263","v":39},{"$f":"[1]ACS_16_5YR_B18101_with_ann!AF263","v":59},{"$f":"[1]ACS_16_5YR_B18101_with_ann!AG263","v":26},{"$f":"[1]ACS_16_5YR_B18101_with_ann!AH263","v":8},{"$f":"[1]ACS_16_5YR_B18101_with_ann!AI263","v":7},{"$f":"[1]ACS_16_5YR_B18101_with_ann!AJ263","v":51},{"$f":"[1]ACS_16_5YR_B18101_with_ann!AK263","v":24},{"$f":"[1]ACS_16_5YR_B18101_with_ann!AL263","v":20},{"$f":"[1]ACS_16_5YR_B18101_with_ann!AM263","v":14},{"$f":"[1]ACS_16_5YR_B18101_with_ann!AN263","v":1},{"$f":"[1]ACS_16_5YR_B18101_with_ann!AO263","v":3},{"$f":"[1]ACS_16_5YR_B18101_with_ann!AP263","v":19},{"$f":"[1]ACS_16_5YR_B18101_with_ann!AQ263","v":14},{"$f":"[1]ACS_16_5YR_B18101_with_ann!AR263","v":334},{"$f":"[1]ACS_16_5YR_B18101_with_ann!AS263","v":59},{"$f":"[1]ACS_16_5YR_B18101_with_ann!AT263","v":21},{"$f":"[1]ACS_16_5YR_B18101_with_ann!AU263","v":14},{"$f":"[1]ACS_16_5YR_B18101_with_ann!AV263","v":0},{"$f":"[1]ACS_16_5YR_B18101_with_ann!AW263","v":11},{"$f":"[1]ACS_16_5YR_B18101_with_ann!AX263","v":21},{"$f":"[1]ACS_16_5YR_B18101_with_ann!AY263","v":14},{"$f":"[1]ACS_16_5YR_B18101_with_ann!AZ263","v":49},{"$f":"[1]ACS_16_5YR_B18101_with_ann!BA263","v":25},{"$f":"[1]ACS_16_5YR_B18101_with_ann!BB263","v":0},{"$f":"[1]ACS_16_5YR_B18101_with_ann!BC263","v":11},{"$f":"[1]ACS_16_5YR_B18101_with_ann!BD263","v":49},{"$f":"[1]ACS_16_5YR_B18101_with_ann!BE263","v":25},{"$f":"[1]ACS_16_5YR_B18101_with_ann!BF264","v":114},{"$f":"[1]ACS_16_5YR_B18101_with_ann!BG264","v":98},{"$f":"[1]ACS_16_5YR_B18101_with_ann!BH264","v":0},{"$f":"[1]ACS_16_5YR_B18101_with_ann!BI264","v":11},{"$f":"[1]ACS_16_5YR_B18101_with_ann!BJ264","v":114},{"$f":"[1]ACS_16_5YR_B18101_with_ann!BK264","v":98},{"$f":"[1]ACS_16_5YR_B18101_with_ann!BL264","v":896},{"$f":"[1]ACS_16_5YR_B18101_with_ann!BM264","v":131},{"$f":"[1]ACS_16_5YR_B18101_with_ann!BN264","v":46},{"$f":"[1]ACS_16_5YR_B18101_with_ann!BO264","v":65},{"$f":"[1]ACS_16_5YR_B18101_with_ann!BP264","v":850},{"$f":"[1]ACS_16_5YR_B18101_with_ann!BQ264","v":137},{"$f":"[1]ACS_16_5YR_B18101_with_ann!BR264","v":139},{"$f":"[1]ACS_16_5YR_B18101_with_ann!BS264","v":53},{"$f":"[1]ACS_16_5YR_B18101_with_ann!BT264","v":42},{"$f":"[1]ACS_16_5YR_B18101_with_ann!BU264","v":31},{"$f":"[1]ACS_16_5YR_B18101_with_ann!BV264","v":97},{"$f":"[1]ACS_16_5YR_B18101_with_ann!BW264","v":48},{"$f":"[1]ACS_16_5YR_B18101_with_ann!BX264","v":164},{"$f":"[1]ACS_16_5YR_B18101_with_ann!BY264","v":75},{"$f":"[1]ACS_16_5YR_B18101_with_ann!BZ264","v":43},{"$f":"[1]ACS_16_5YR_B18101_with_ann!CA264","v":37},{"$f":"[1]ACS_16_5YR_B18101_with_ann!CB264","v":121},{"$f":"[1]ACS_16_5YR_B18101_with_ann!CC264","v":66}]
["0600000US3301931220",3301931220,"060","Grantham",{"$f":"[1]ACS_16_5YR_B18101_with_ann!D264","v":2945},{"$f":"[1]ACS_16_5YR_B18101_with_ann!E264","v":14},{"$f":"[1]ACS_16_5YR_B18101_with_ann!F264","v":1382},{"$f":"[1]ACS_16_5YR_B18101_with_ann!G264","v":143},{"$f":"[1]ACS_16_5YR_B18101_with_ann!H264","v":0},{"$f":"[1]ACS_16_5YR_B18101_with_ann!I264","v":11},{"$f":"[1]ACS_16_5YR_B18101_with_ann!J264","v":0},{"$f":"[1]ACS_16_5YR_B18101_with_ann!K264","v":11},{"$f":"[1]ACS_16_5YR_B18101_with_ann!L264","v":0},{"$f":"[1]ACS_16_5YR_B18101_with_ann!M264","v":11},{"$f":"[1]ACS_16_5YR_B18101_with_ann!N264","v":271},{"$f":"[1]ACS_16_5YR_B18101_with_ann!O264","v":92},{"$f":"[1]ACS_16_5YR_B18101_with_ann!P264","v":58},{"$f":"[1]ACS_16_5YR_B18101_with_ann!Q264","v":63},{"$f":"[1]ACS_16_5YR_B18101_with_ann!R264","v":213},{"$f":"[1]ACS_16_5YR_B18101_with_ann!S264","v":80},{"$f":"[1]ACS_16_5YR_B18101_with_ann!T264","v":148},{"$f":"[1]ACS_16_5YR_B18101_with_ann!U264","v":73},{"$f":"[1]ACS_16_5YR_B18101_with_ann!V264","v":0},{"$f":"[1]ACS_16_5YR_B18101_with_ann!W264","v":11},{"$f":"[1]ACS_16_5YR_B18101_with_ann!X264","v":148},{"$f":"[1]ACS_16_5YR_B18101_with_ann!Y264","v":73},{"$f":"[1]ACS_16_5YR_B18101_with_ann!Z264","v":613},{"$f":"[1]ACS_16_5YR_B18101_with_ann!AA264","v":124},{"$f":"[1]ACS_16_5YR_B18101_with_ann!AB264","v":82},{"$f":"[1]ACS_16_5YR_B18101_with_ann!AC264","v":79},{"$f":"[1]ACS_16_5YR_B18101_with_ann!AD264","v":531},{"$f":"[1]ACS_16_5YR_B18101_with_ann!AE264","v":134},{"$f":"[1]ACS_16_5YR_B18101_with_ann!AF264","v":156},{"$f":"[1]ACS_16_5YR_B18101_with_ann!AG264","v":69},{"$f":"[1]ACS_16_5YR_B18101_with_ann!AH264","v":17},{"$f":"[1]ACS_16_5YR_B18101_with_ann!AI264","v":26},{"$f":"[1]ACS_16_5YR_B18101_with_ann!AJ264","v":139},{"$f":"[1]ACS_16_5YR_B18101_with_ann!AK264","v":61},{"$f":"[1]ACS_16_5YR_B18101_with_ann!AL264","v":194},{"$f":"[1]ACS_16_5YR_B18101_with_ann!AM264","v":86},{"$f":"[1]ACS_16_5YR_B18101_with_ann!AN264","v":63},{"$f":"[1]ACS_16_5YR_B18101_with_ann!AO264","v":64},{"$f":"[1]ACS_16_5YR_B18101_with_ann!AP264","v":131},{"$f":"[1]ACS_16_5YR_B18101_with_ann!AQ264","v":67},{"$f":"[1]ACS_16_5YR_B18101_with_ann!AR264","v":1563},{"$f":"[1]ACS_16_5YR_B18101_with_ann!AS264","v":142},{"$f":"[1]ACS_16_5YR_B18101_with_ann!AT264","v":0},{"$f":"[1]ACS_16_5YR_B18101_with_ann!AU264","v":11},{"$f":"[1]ACS_16_5YR_B18101_with_ann!AV264","v":0},{"$f":"[1]ACS_16_5YR_B18101_with_ann!AW264","v":11},{"$f":"[1]ACS_16_5YR_B18101_with_ann!AX264","v":0},{"$f":"[1]ACS_16_5YR_B18101_with_ann!AY264","v":11},{"$f":"[1]ACS_16_5YR_B18101_with_ann!AZ264","v":250},{"$f":"[1]ACS_16_5YR_B18101_with_ann!BA264","v":125},{"$f":"[1]ACS_16_5YR_B18101_with_ann!BB264","v":0},{"$f":"[1]ACS_16_5YR_B18101_with_ann!BC264","v":11},{"$f":"[1]ACS_16_5YR_B18101_with_ann!BD264","v":250},{"$f":"[1]ACS_16_5YR_B18101_with_ann!BE264","v":125},{"$f":"[1]ACS_16_5YR_B18101_with_ann!BF265","v":69},{"$f":"[1]ACS_16_5YR_B18101_with_ann!BG265","v":25},{"$f":"[1]ACS_16_5YR_B18101_with_ann!BH265","v":2},{"$f":"[1]ACS_16_5YR_B18101_with_ann!BI265","v":3},{"$f":"[1]ACS_16_5YR_B18101_with_ann!BJ265","v":67},{"$f":"[1]ACS_16_5YR_B18101_with_ann!BK265","v":25},{"$f":"[1]ACS_16_5YR_B18101_with_ann!BL265","v":174},{"$f":"[1]ACS_16_5YR_B18101_with_ann!BM265","v":41},{"$f":"[1]ACS_16_5YR_B18101_with_ann!BN265","v":10},{"$f":"[1]ACS_16_5YR_B18101_with_ann!BO265","v":11},{"$f":"[1]ACS_16_5YR_B18101_with_ann!BP265","v":164},{"$f":"[1]ACS_16_5YR_B18101_with_ann!BQ265","v":39},{"$f":"[1]ACS_16_5YR_B18101_with_ann!BR265","v":35},{"$f":"[1]ACS_16_5YR_B18101_with_ann!BS265","v":11},{"$f":"[1]ACS_16_5YR_B18101_with_ann!BT265","v":9},{"$f":"[1]ACS_16_5YR_B18101_with_ann!BU265","v":6},{"$f":"[1]ACS_16_5YR_B18101_with_ann!BV265","v":26},{"$f":"[1]ACS_16_5YR_B18101_with_ann!BW265","v":10},{"$f":"[1]ACS_16_5YR_B18101_with_ann!BX265","v":15},{"$f":"[1]ACS_16_5YR_B18101_with_ann!BY265","v":8},{"$f":"[1]ACS_16_5YR_B18101_with_ann!BZ265","v":4},{"$f":"[1]ACS_16_5YR_B18101_with_ann!CA265","v":4},{"$f":"[1]ACS_16_5YR_B18101_with_ann!CB265","v":11},{"$f":"[1]ACS_16_5YR_B18101_with_ann!CC265","v":7}]
["0600000US3301940900",3301940900,"060","Langdon",{"$f":"[1]ACS_16_5YR_B18101_with_ann!D265","v":712},{"$f":"[1]ACS_16_5YR_B18101_with_ann!E265","v":145},{"$f":"[1]ACS_16_5YR_B18101_with_ann!F265","v":342},{"$f":"[1]ACS_16_5YR_B18101_with_ann!G265","v":85},{"$f":"[1]ACS_16_5YR_B18101_with_ann!H265","v":16},{"$f":"[1]ACS_16_5YR_B18101_with_ann!I265","v":14},{"$f":"[1]ACS_16_5YR_B18101_with_ann!J265","v":0},{"$f":"[1]ACS_16_5YR_B18101_with_ann!K265","v":11},{"$f":"[1]ACS_16_5YR_B18101_with_ann!L265","v":16},{"$f":"[1]ACS_16_5YR_B18101_with_ann!M265","v":14},{"$f":"[1]ACS_16_5YR_B18101_with_ann!N265","v":76},{"$f":"[1]ACS_16_5YR_B18101_with_ann!O265","v":46},{"$f":"[1]ACS_16_5YR_B18101_with_ann!P265","v":6},{"$f":"[1]ACS_16_5YR_B18101_with_ann!Q265","v":8},{"$f":"[1]ACS_16_5YR_B18101_with_ann!R265","v":70},{"$f":"[1]ACS_16_5YR_B18101_with_ann!S265","v":44},{"$f":"[1]ACS_16_5YR_B18101_with_ann!T265","v":53},{"$f":"[1]ACS_16_5YR_B18101_with_ann!U265","v":27},{"$f":"[1]ACS_16_5YR_B18101_with_ann!V265","v":2},{"$f":"[1]ACS_16_5YR_B18101_with_ann!W265","v":4},{"$f":"[1]ACS_16_5YR_B18101_with_ann!X265","v":51},{"$f":"[1]ACS_16_5YR_B18101_with_ann!Y265","v":26},{"$f":"[1]ACS_16_5YR_B18101_with_ann!Z265","v":143},{"$f":"[1]ACS_16_5YR_B18101_with_ann!AA265","v":40},{"$f":"[1]ACS_16_5YR_B18101_with_ann!AB265","v":5},{"$f":"[1]ACS_16_5YR_B18101_with_ann!AC265","v":5},{"$f":"[1]ACS_16_5YR_B18101_with_ann!AD265","v":138},{"$f":"[1]ACS_16_5YR_B18101_with_ann!AE265","v":39},{"$f":"[1]ACS_16_5YR_B18101_with_ann!AF265","v":39},{"$f":"[1]ACS_16_5YR_B18101_with_ann!AG265","v":14},{"$f":"[1]ACS_16_5YR_B18101_with_ann!AH265","v":12},{"$f":"[1]ACS_16_5YR_B18101_with_ann!AI265","v":8},{"$f":"[1]ACS_16_5YR_B18101_with_ann!AJ265","v":27},{"$f":"[1]ACS_16_5YR_B18101_with_ann!AK265","v":12},{"$f":"[1]ACS_16_5YR_B18101_with_ann!AL265","v":15},{"$f":"[1]ACS_16_5YR_B18101_with_ann!AM265","v":9},{"$f":"[1]ACS_16_5YR_B18101_with_ann!AN265","v":7},{"$f":"[1]ACS_16_5YR_B18101_with_ann!AO265","v":5},{"$f":"[1]ACS_16_5YR_B18101_with_ann!AP265","v":8},{"$f":"[1]ACS_16_5YR_B18101_with_ann!AQ265","v":6},{"$f":"[1]ACS_16_5YR_B18101_with_ann!AR265","v":370},{"$f":"[1]ACS_16_5YR_B18101_with_ann!AS265","v":73},{"$f":"[1]ACS_16_5YR_B18101_with_ann!AT265","v":16},{"$f":"[1]ACS_16_5YR_B18101_with_ann!AU265","v":13},{"$f":"[1]ACS_16_5YR_B18101_with_ann!AV265","v":0},{"$f":"[1]ACS_16_5YR_B18101_with_ann!AW265","v":11},{"$f":"[1]ACS_16_5YR_B18101_with_ann!AX265","v":16},{"$f":"[1]ACS_16_5YR_B18101_with_ann!AY265","v":13},{"$f":"[1]ACS_16_5YR_B18101_with_ann!AZ265","v":61},{"$f":"[1]ACS_16_5YR_B18101_with_ann!BA265","v":42},{"$f":"[1]ACS_16_5YR_B18101_with_ann!BB265","v":3},{"$f":"[1]ACS_16_5YR_B18101_with_ann!BC265","v":4},{"$f":"[1]ACS_16_5YR_B18101_with_ann!BD265","v":58},{"$f":"[1]ACS_16_5YR_B18101_with_ann!BE265","v":42},{"$f":"[1]ACS_16_5YR_B18101_with_ann!BF266","v":54},{"$f":"[1]ACS_16_5YR_B18101_with_ann!BG266","v":24},{"$f":"[1]ACS_16_5YR_B18101_with_ann!BH266","v":3},{"$f":"[1]ACS_16_5YR_B18101_with_ann!BI266","v":5},{"$f":"[1]ACS_16_5YR_B18101_with_ann!BJ266","v":51},{"$f":"[1]ACS_16_5YR_B18101_with_ann!BK266","v":23},{"$f":"[1]ACS_16_5YR_B18101_with_ann!BL266","v":191},{"$f":"[1]ACS_16_5YR_B18101_with_ann!BM266","v":52},{"$f":"[1]ACS_16_5YR_B18101_with_ann!BN266","v":27},{"$f":"[1]ACS_16_5YR_B18101_with_ann!BO266","v":20},{"$f":"[1]ACS_16_5YR_B18101_with_ann!BP266","v":164},{"$f":"[1]ACS_16_5YR_B18101_with_ann!BQ266","v":48},{"$f":"[1]ACS_16_5YR_B18101_with_ann!BR266","v":51},{"$f":"[1]ACS_16_5YR_B18101_with_ann!BS266","v":23},{"$f":"[1]ACS_16_5YR_B18101_with_ann!BT266","v":13},{"$f":"[1]ACS_16_5YR_B18101_with_ann!BU266","v":13},{"$f":"[1]ACS_16_5YR_B18101_with_ann!BV266","v":38},{"$f":"[1]ACS_16_5YR_B18101_with_ann!BW266","v":19},{"$f":"[1]ACS_16_5YR_B18101_with_ann!BX266","v":39},{"$f":"[1]ACS_16_5YR_B18101_with_ann!BY266","v":26},{"$f":"[1]ACS_16_5YR_B18101_with_ann!BZ266","v":10},{"$f":"[1]ACS_16_5YR_B18101_with_ann!CA266","v":9},{"$f":"[1]ACS_16_5YR_B18101_with_ann!CB266","v":29},{"$f":"[1]ACS_16_5YR_B18101_with_ann!CC266","v":25}]
["0600000US3301941700",3301941700,"060","Lempster",{"$f":"[1]ACS_16_5YR_B18101_with_ann!D266","v":923},{"$f":"[1]ACS_16_5YR_B18101_with_ann!E266","v":176},{"$f":"[1]ACS_16_5YR_B18101_with_ann!F266","v":432},{"$f":"[1]ACS_16_5YR_B18101_with_ann!G266","v":77},{"$f":"[1]ACS_16_5YR_B18101_with_ann!H266","v":31},{"$f":"[1]ACS_16_5YR_B18101_with_ann!I266","v":21},{"$f":"[1]ACS_16_5YR_B18101_with_ann!J266","v":3},{"$f":"[1]ACS_16_5YR_B18101_with_ann!K266","v":4},{"$f":"[1]ACS_16_5YR_B18101_with_ann!L266","v":28},{"$f":"[1]ACS_16_5YR_B18101_with_ann!M266","v":21},{"$f":"[1]ACS_16_5YR_B18101_with_ann!N266","v":36},{"$f":"[1]ACS_16_5YR_B18101_with_ann!O266","v":23},{"$f":"[1]ACS_16_5YR_B18101_with_ann!P266","v":2},{"$f":"[1]ACS_16_5YR_B18101_with_ann!Q266","v":4},{"$f":"[1]ACS_16_5YR_B18101_with_ann!R266","v":34},{"$f":"[1]ACS_16_5YR_B18101_with_ann!S266","v":21},{"$f":"[1]ACS_16_5YR_B18101_with_ann!T266","v":34},{"$f":"[1]ACS_16_5YR_B18101_with_ann!U266","v":16},{"$f":"[1]ACS_16_5YR_B18101_with_ann!V266","v":7},{"$f":"[1]ACS_16_5YR_B18101_with_ann!W266","v":7},{"$f":"[1]ACS_16_5YR_B18101_with_ann!X266","v":27},{"$f":"[1]ACS_16_5YR_B18101_with_ann!Y266","v":14},{"$f":"[1]ACS_16_5YR_B18101_with_ann!Z266","v":249},{"$f":"[1]ACS_16_5YR_B18101_with_ann!AA266","v":58},{"$f":"[1]ACS_16_5YR_B18101_with_ann!AB266","v":36},{"$f":"[1]ACS_16_5YR_B18101_with_ann!AC266","v":19},{"$f":"[1]ACS_16_5YR_B18101_with_ann!AD266","v":213},{"$f":"[1]ACS_16_5YR_B18101_with_ann!AE266","v":56},{"$f":"[1]ACS_16_5YR_B18101_with_ann!AF266","v":68},{"$f":"[1]ACS_16_5YR_B18101_with_ann!AG266","v":28},{"$f":"[1]ACS_16_5YR_B18101_with_ann!AH266","v":17},{"$f":"[1]ACS_16_5YR_B18101_with_ann!AI266","v":16},{"$f":"[1]ACS_16_5YR_B18101_with_ann!AJ266","v":51},{"$f":"[1]ACS_16_5YR_B18101_with_ann!AK266","v":25},{"$f":"[1]ACS_16_5YR_B18101_with_ann!AL266","v":14},{"$f":"[1]ACS_16_5YR_B18101_with_ann!AM266","v":11},{"$f":"[1]ACS_16_5YR_B18101_with_ann!AN266","v":8},{"$f":"[1]ACS_16_5YR_B18101_with_ann!AO266","v":8},{"$f":"[1]ACS_16_5YR_B18101_with_ann!AP266","v":6},{"$f":"[1]ACS_16_5YR_B18101_with_ann!AQ266","v":6},{"$f":"[1]ACS_16_5YR_B18101_with_ann!AR266","v":491},{"$f":"[1]ACS_16_5YR_B18101_with_ann!AS266","v":123},{"$f":"[1]ACS_16_5YR_B18101_with_ann!AT266","v":35},{"$f":"[1]ACS_16_5YR_B18101_with_ann!AU266","v":23},{"$f":"[1]ACS_16_5YR_B18101_with_ann!AV266","v":0},{"$f":"[1]ACS_16_5YR_B18101_with_ann!AW266","v":11},{"$f":"[1]ACS_16_5YR_B18101_with_ann!AX266","v":35},{"$f":"[1]ACS_16_5YR_B18101_with_ann!AY266","v":23},{"$f":"[1]ACS_16_5YR_B18101_with_ann!AZ266","v":121},{"$f":"[1]ACS_16_5YR_B18101_with_ann!BA266","v":76},{"$f":"[1]ACS_16_5YR_B18101_with_ann!BB266","v":0},{"$f":"[1]ACS_16_5YR_B18101_with_ann!BC266","v":11},{"$f":"[1]ACS_16_5YR_B18101_with_ann!BD266","v":121},{"$f":"[1]ACS_16_5YR_B18101_with_ann!BE266","v":76},{"$f":"[1]ACS_16_5YR_B18101_with_ann!BF267","v":520},{"$f":"[1]ACS_16_5YR_B18101_with_ann!BG267","v":162},{"$f":"[1]ACS_16_5YR_B18101_with_ann!BH267","v":44},{"$f":"[1]ACS_16_5YR_B18101_with_ann!BI267","v":43},{"$f":"[1]ACS_16_5YR_B18101_with_ann!BJ267","v":476},{"$f":"[1]ACS_16_5YR_B18101_with_ann!BK267","v":158},{"$f":"[1]ACS_16_5YR_B18101_with_ann!BL267","v":1406},{"$f":"[1]ACS_16_5YR_B18101_with_ann!BM267","v":188},{"$f":"[1]ACS_16_5YR_B18101_with_ann!BN267","v":181},{"$f":"[1]ACS_16_5YR_B18101_with_ann!BO267","v":98},{"$f":"[1]ACS_16_5YR_B18101_with_ann!BP267","v":1225},{"$f":"[1]ACS_16_5YR_B18101_with_ann!BQ267","v":186},{"$f":"[1]ACS_16_5YR_B18101_with_ann!BR267","v":312},{"$f":"[1]ACS_16_5YR_B18101_with_ann!BS267","v":130},{"$f":"[1]ACS_16_5YR_B18101_with_ann!BT267","v":108},{"$f":"[1]ACS_16_5YR_B18101_with_ann!BU267","v":78},{"$f":"[1]ACS_16_5YR_B18101_with_ann!BV267","v":204},{"$f":"[1]ACS_16_5YR_B18101_with_ann!BW267","v":97},{"$f":"[1]ACS_16_5YR_B18101_with_ann!BX267","v":285},{"$f":"[1]ACS_16_5YR_B18101_with_ann!BY267","v":103},{"$f":"[1]ACS_16_5YR_B18101_with_ann!BZ267","v":169},{"$f":"[1]ACS_16_5YR_B18101_with_ann!CA267","v":83},{"$f":"[1]ACS_16_5YR_B18101_with_ann!CB267","v":116},{"$f":"[1]ACS_16_5YR_B18101_with_ann!CC267","v":57}]
["0600000US3301952580",3301952580,"060","Newport",{"$f":"[1]ACS_16_5YR_B18101_with_ann!D267","v":6259},{"$f":"[1]ACS_16_5YR_B18101_with_ann!E267","v":51},{"$f":"[1]ACS_16_5YR_B18101_with_ann!F267","v":3230},{"$f":"[1]ACS_16_5YR_B18101_with_ann!G267","v":212},{"$f":"[1]ACS_16_5YR_B18101_with_ann!H267","v":185},{"$f":"[1]ACS_16_5YR_B18101_with_ann!I267","v":95},{"$f":"[1]ACS_16_5YR_B18101_with_ann!J267","v":0},{"$f":"[1]ACS_16_5YR_B18101_with_ann!K267","v":16},{"$f":"[1]ACS_16_5YR_B18101_with_ann!L267","v":185},{"$f":"[1]ACS_16_5YR_B18101_with_ann!M267","v":95},{"$f":"[1]ACS_16_5YR_B18101_with_ann!N267","v":507},{"$f":"[1]ACS_16_5YR_B18101_with_ann!O267","v":185},{"$f":"[1]ACS_16_5YR_B18101_with_ann!P267","v":87},{"$f":"[1]ACS_16_5YR_B18101_with_ann!Q267","v":70},{"$f":"[1]ACS_16_5YR_B18101_with_ann!R267","v":420},{"$f":"[1]ACS_16_5YR_B18101_with_ann!S267","v":143},{"$f":"[1]ACS_16_5YR_B18101_with_ann!T267","v":754},{"$f":"[1]ACS_16_5YR_B18101_with_ann!U267","v":177},{"$f":"[1]ACS_16_5YR_B18101_with_ann!V267","v":52},{"$f":"[1]ACS_16_5YR_B18101_with_ann!W267","v":59},{"$f":"[1]ACS_16_5YR_B18101_with_ann!X267","v":702},{"$f":"[1]ACS_16_5YR_B18101_with_ann!Y267","v":178},{"$f":"[1]ACS_16_5YR_B18101_with_ann!Z267","v":1262},{"$f":"[1]ACS_16_5YR_B18101_with_ann!AA267","v":216},{"$f":"[1]ACS_16_5YR_B18101_with_ann!AB267","v":188},{"$f":"[1]ACS_16_5YR_B18101_with_ann!AC267","v":131},{"$f":"[1]ACS_16_5YR_B18101_with_ann!AD267","v":1074},{"$f":"[1]ACS_16_5YR_B18101_with_ann!AE267","v":212},{"$f":"[1]ACS_16_5YR_B18101_with_ann!AF267","v":405},{"$f":"[1]ACS_16_5YR_B18101_with_ann!AG267","v":161},{"$f":"[1]ACS_16_5YR_B18101_with_ann!AH267","v":142},{"$f":"[1]ACS_16_5YR_B18101_with_ann!AI267","v":120},{"$f":"[1]ACS_16_5YR_B18101_with_ann!AJ267","v":263},{"$f":"[1]ACS_16_5YR_B18101_with_ann!AK267","v":126},{"$f":"[1]ACS_16_5YR_B18101_with_ann!AL267","v":117},{"$f":"[1]ACS_16_5YR_B18101_with_ann!AM267","v":81},{"$f":"[1]ACS_16_5YR_B18101_with_ann!AN267","v":94},{"$f":"[1]ACS_16_5YR_B18101_with_ann!AO267","v":77},{"$f":"[1]ACS_16_5YR_B18101_with_ann!AP267","v":23},{"$f":"[1]ACS_16_5YR_B18101_with_ann!AQ267","v":27},{"$f":"[1]ACS_16_5YR_B18101_with_ann!AR267","v":3029},{"$f":"[1]ACS_16_5YR_B18101_with_ann!AS267","v":217},{"$f":"[1]ACS_16_5YR_B18101_with_ann!AT267","v":100},{"$f":"[1]ACS_16_5YR_B18101_with_ann!AU267","v":62},{"$f":"[1]ACS_16_5YR_B18101_with_ann!AV267","v":0},{"$f":"[1]ACS_16_5YR_B18101_with_ann!AW267","v":16},{"$f":"[1]ACS_16_5YR_B18101_with_ann!AX267","v":100},{"$f":"[1]ACS_16_5YR_B18101_with_ann!AY267","v":62},{"$f":"[1]ACS_16_5YR_B18101_with_ann!AZ267","v":406},{"$f":"[1]ACS_16_5YR_B18101_with_ann!BA267","v":128},{"$f":"[1]ACS_16_5YR_B18101_with_ann!BB267","v":0},{"$f":"[1]ACS_16_5YR_B18101_with_ann!BC267","v":16},{"$f":"[1]ACS_16_5YR_B18101_with_ann!BD267","v":406},{"$f":"[1]ACS_16_5YR_B18101_with_ann!BE267","v":128},{"$f":"[1]ACS_16_5YR_B18101_with_ann!BF268","v":280},{"$f":"[1]ACS_16_5YR_B18101_with_ann!BG268","v":61},{"$f":"[1]ACS_16_5YR_B18101_with_ann!BH268","v":0},{"$f":"[1]ACS_16_5YR_B18101_with_ann!BI268","v":11},{"$f":"[1]ACS_16_5YR_B18101_with_ann!BJ268","v":280},{"$f":"[1]ACS_16_5YR_B18101_with_ann!BK268","v":61},{"$f":"[1]ACS_16_5YR_B18101_with_ann!BL268","v":521},{"$f":"[1]ACS_16_5YR_B18101_with_ann!BM268","v":81},{"$f":"[1]ACS_16_5YR_B18101_with_ann!BN268","v":9},{"$f":"[1]ACS_16_5YR_B18101_with_ann!BO268","v":9},{"$f":"[1]ACS_16_5YR_B18101_with_ann!BP268","v":512},{"$f":"[1]ACS_16_5YR_B18101_with_ann!BQ268","v":81},{"$f":"[1]ACS_16_5YR_B18101_with_ann!BR268","v":181},{"$f":"[1]ACS_16_5YR_B18101_with_ann!BS268","v":56},{"$f":"[1]ACS_16_5YR_B18101_with_ann!BT268","v":46},{"$f":"[1]ACS_16_5YR_B18101_with_ann!BU268","v":32},{"$f":"[1]ACS_16_5YR_B18101_with_ann!BV268","v":135},{"$f":"[1]ACS_16_5YR_B18101_with_ann!BW268","v":49},{"$f":"[1]ACS_16_5YR_B18101_with_ann!BX268","v":60},{"$f":"[1]ACS_16_5YR_B18101_with_ann!BY268","v":32},{"$f":"[1]ACS_16_5YR_B18101_with_ann!BZ268","v":23},{"$f":"[1]ACS_16_5YR_B18101_with_ann!CA268","v":22},{"$f":"[1]ACS_16_5YR_B18101_with_ann!CB268","v":37},{"$f":"[1]ACS_16_5YR_B18101_with_ann!CC268","v":25}]
["0600000US3301962340",3301962340,"060","Plainfield",{"$f":"[1]ACS_16_5YR_B18101_with_ann!D268","v":2555},{"$f":"[1]ACS_16_5YR_B18101_with_ann!E268","v":293},{"$f":"[1]ACS_16_5YR_B18101_with_ann!F268","v":1278},{"$f":"[1]ACS_16_5YR_B18101_with_ann!G268","v":174},{"$f":"[1]ACS_16_5YR_B18101_with_ann!H268","v":32},{"$f":"[1]ACS_16_5YR_B18101_with_ann!I268","v":34},{"$f":"[1]ACS_16_5YR_B18101_with_ann!J268","v":0},{"$f":"[1]ACS_16_5YR_B18101_with_ann!K268","v":11},{"$f":"[1]ACS_16_5YR_B18101_with_ann!L268","v":32},{"$f":"[1]ACS_16_5YR_B18101_with_ann!M268","v":34},{"$f":"[1]ACS_16_5YR_B18101_with_ann!N268","v":230},{"$f":"[1]ACS_16_5YR_B18101_with_ann!O268","v":86},{"$f":"[1]ACS_16_5YR_B18101_with_ann!P268","v":12},{"$f":"[1]ACS_16_5YR_B18101_with_ann!Q268","v":12},{"$f":"[1]ACS_16_5YR_B18101_with_ann!R268","v":218},{"$f":"[1]ACS_16_5YR_B18101_with_ann!S268","v":87},{"$f":"[1]ACS_16_5YR_B18101_with_ann!T268","v":261},{"$f":"[1]ACS_16_5YR_B18101_with_ann!U268","v":84},{"$f":"[1]ACS_16_5YR_B18101_with_ann!V268","v":16},{"$f":"[1]ACS_16_5YR_B18101_with_ann!W268","v":21},{"$f":"[1]ACS_16_5YR_B18101_with_ann!X268","v":245},{"$f":"[1]ACS_16_5YR_B18101_with_ann!Y268","v":83},{"$f":"[1]ACS_16_5YR_B18101_with_ann!Z268","v":521},{"$f":"[1]ACS_16_5YR_B18101_with_ann!AA268","v":71},{"$f":"[1]ACS_16_5YR_B18101_with_ann!AB268","v":43},{"$f":"[1]ACS_16_5YR_B18101_with_ann!AC268","v":22},{"$f":"[1]ACS_16_5YR_B18101_with_ann!AD268","v":478},{"$f":"[1]ACS_16_5YR_B18101_with_ann!AE268","v":73},{"$f":"[1]ACS_16_5YR_B18101_with_ann!AF268","v":178},{"$f":"[1]ACS_16_5YR_B18101_with_ann!AG268","v":57},{"$f":"[1]ACS_16_5YR_B18101_with_ann!AH268","v":48},{"$f":"[1]ACS_16_5YR_B18101_with_ann!AI268","v":36},{"$f":"[1]ACS_16_5YR_B18101_with_ann!AJ268","v":130},{"$f":"[1]ACS_16_5YR_B18101_with_ann!AK268","v":47},{"$f":"[1]ACS_16_5YR_B18101_with_ann!AL268","v":56},{"$f":"[1]ACS_16_5YR_B18101_with_ann!AM268","v":35},{"$f":"[1]ACS_16_5YR_B18101_with_ann!AN268","v":5},{"$f":"[1]ACS_16_5YR_B18101_with_ann!AO268","v":7},{"$f":"[1]ACS_16_5YR_B18101_with_ann!AP268","v":51},{"$f":"[1]ACS_16_5YR_B18101_with_ann!AQ268","v":34},{"$f":"[1]ACS_16_5YR_B18101_with_ann!AR268","v":1277},{"$f":"[1]ACS_16_5YR_B18101_with_ann!AS268","v":157},{"$f":"[1]ACS_16_5YR_B18101_with_ann!AT268","v":50},{"$f":"[1]ACS_16_5YR_B18101_with_ann!AU268","v":55},{"$f":"[1]ACS_16_5YR_B18101_with_ann!AV268","v":0},{"$f":"[1]ACS_16_5YR_B18101_with_ann!AW268","v":11},{"$f":"[1]ACS_16_5YR_B18101_with_ann!AX268","v":50},{"$f":"[1]ACS_16_5YR_B18101_with_ann!AY268","v":55},{"$f":"[1]ACS_16_5YR_B18101_with_ann!AZ268","v":185},{"$f":"[1]ACS_16_5YR_B18101_with_ann!BA268","v":81},{"$f":"[1]ACS_16_5YR_B18101_with_ann!BB268","v":0},{"$f":"[1]ACS_16_5YR_B18101_with_ann!BC268","v":11},{"$f":"[1]ACS_16_5YR_B18101_with_ann!BD268","v":185},{"$f":"[1]ACS_16_5YR_B18101_with_ann!BE268","v":81},{"$f":"[1]ACS_16_5YR_B18101_with_ann!BF269","v":37},{"$f":"[1]ACS_16_5YR_B18101_with_ann!BG269","v":27},{"$f":"[1]ACS_16_5YR_B18101_with_ann!BH269","v":0},{"$f":"[1]ACS_16_5YR_B18101_with_ann!BI269","v":11},{"$f":"[1]ACS_16_5YR_B18101_with_ann!BJ269","v":37},{"$f":"[1]ACS_16_5YR_B18101_with_ann!BK269","v":27},{"$f":"[1]ACS_16_5YR_B18101_with_ann!BL269","v":241},{"$f":"[1]ACS_16_5YR_B18101_with_ann!BM269","v":64},{"$f":"[1]ACS_16_5YR_B18101_with_ann!BN269","v":18},{"$f":"[1]ACS_16_5YR_B18101_with_ann!BO269","v":13},{"$f":"[1]ACS_16_5YR_B18101_with_ann!BP269","v":223},{"$f":"[1]ACS_16_5YR_B18101_with_ann!BQ269","v":62},{"$f":"[1]ACS_16_5YR_B18101_with_ann!BR269","v":112},{"$f":"[1]ACS_16_5YR_B18101_with_ann!BS269","v":42},{"$f":"[1]ACS_16_5YR_B18101_with_ann!BT269","v":9},{"$f":"[1]ACS_16_5YR_B18101_with_ann!BU269","v":11},{"$f":"[1]ACS_16_5YR_B18101_with_ann!BV269","v":103},{"$f":"[1]ACS_16_5YR_B18101_with_ann!BW269","v":41},{"$f":"[1]ACS_16_5YR_B18101_with_ann!BX269","v":38},{"$f":"[1]ACS_16_5YR_B18101_with_ann!BY269","v":26},{"$f":"[1]ACS_16_5YR_B18101_with_ann!BZ269","v":10},{"$f":"[1]ACS_16_5YR_B18101_with_ann!CA269","v":16},{"$f":"[1]ACS_16_5YR_B18101_with_ann!CB269","v":28},{"$f":"[1]ACS_16_5YR_B18101_with_ann!CC269","v":18}]
["0600000US3301972740",3301972740,"060","Springfield",{"$f":"[1]ACS_16_5YR_B18101_with_ann!D269","v":1084},{"$f":"[1]ACS_16_5YR_B18101_with_ann!E269","v":198},{"$f":"[1]ACS_16_5YR_B18101_with_ann!F269","v":575},{"$f":"[1]ACS_16_5YR_B18101_with_ann!G269","v":112},{"$f":"[1]ACS_16_5YR_B18101_with_ann!H269","v":3},{"$f":"[1]ACS_16_5YR_B18101_with_ann!I269","v":5},{"$f":"[1]ACS_16_5YR_B18101_with_ann!J269","v":0},{"$f":"[1]ACS_16_5YR_B18101_with_ann!K269","v":11},{"$f":"[1]ACS_16_5YR_B18101_with_ann!L269","v":3},{"$f":"[1]ACS_16_5YR_B18101_with_ann!M269","v":5},{"$f":"[1]ACS_16_5YR_B18101_with_ann!N269","v":72},{"$f":"[1]ACS_16_5YR_B18101_with_ann!O269","v":33},{"$f":"[1]ACS_16_5YR_B18101_with_ann!P269","v":7},{"$f":"[1]ACS_16_5YR_B18101_with_ann!Q269","v":8},{"$f":"[1]ACS_16_5YR_B18101_with_ann!R269","v":65},{"$f":"[1]ACS_16_5YR_B18101_with_ann!S269","v":32},{"$f":"[1]ACS_16_5YR_B18101_with_ann!T269","v":103},{"$f":"[1]ACS_16_5YR_B18101_with_ann!U269","v":56},{"$f":"[1]ACS_16_5YR_B18101_with_ann!V269","v":6},{"$f":"[1]ACS_16_5YR_B18101_with_ann!W269","v":9},{"$f":"[1]ACS_16_5YR_B18101_with_ann!X269","v":97},{"$f":"[1]ACS_16_5YR_B18101_with_ann!Y269","v":56},{"$f":"[1]ACS_16_5YR_B18101_with_ann!Z269","v":225},{"$f":"[1]ACS_16_5YR_B18101_with_ann!AA269","v":63},{"$f":"[1]ACS_16_5YR_B18101_with_ann!AB269","v":6},{"$f":"[1]ACS_16_5YR_B18101_with_ann!AC269","v":7},{"$f":"[1]ACS_16_5YR_B18101_with_ann!AD269","v":219},{"$f":"[1]ACS_16_5YR_B18101_with_ann!AE269","v":63},{"$f":"[1]ACS_16_5YR_B18101_with_ann!AF269","v":111},{"$f":"[1]ACS_16_5YR_B18101_with_ann!AG269","v":42},{"$f":"[1]ACS_16_5YR_B18101_with_ann!AH269","v":10},{"$f":"[1]ACS_16_5YR_B18101_with_ann!AI269","v":10},{"$f":"[1]ACS_16_5YR_B18101_with_ann!AJ269","v":101},{"$f":"[1]ACS_16_5YR_B18101_with_ann!AK269","v":41},{"$f":"[1]ACS_16_5YR_B18101_with_ann!AL269","v":61},{"$f":"[1]ACS_16_5YR_B18101_with_ann!AM269","v":35},{"$f":"[1]ACS_16_5YR_B18101_with_ann!AN269","v":19},{"$f":"[1]ACS_16_5YR_B18101_with_ann!AO269","v":19},{"$f":"[1]ACS_16_5YR_B18101_with_ann!AP269","v":42},{"$f":"[1]ACS_16_5YR_B18101_with_ann!AQ269","v":28},{"$f":"[1]ACS_16_5YR_B18101_with_ann!AR269","v":509},{"$f":"[1]ACS_16_5YR_B18101_with_ann!AS269","v":111},{"$f":"[1]ACS_16_5YR_B18101_with_ann!AT269","v":11},{"$f":"[1]ACS_16_5YR_B18101_with_ann!AU269","v":17},{"$f":"[1]ACS_16_5YR_B18101_with_ann!AV269","v":0},{"$f":"[1]ACS_16_5YR_B18101_with_ann!AW269","v":11},{"$f":"[1]ACS_16_5YR_B18101_with_ann!AX269","v":11},{"$f":"[1]ACS_16_5YR_B18101_with_ann!AY269","v":17},{"$f":"[1]ACS_16_5YR_B18101_with_ann!AZ269","v":70},{"$f":"[1]ACS_16_5YR_B18101_with_ann!BA269","v":46},{"$f":"[1]ACS_16_5YR_B18101_with_ann!BB269","v":15},{"$f":"[1]ACS_16_5YR_B18101_with_ann!BC269","v":19},{"$f":"[1]ACS_16_5YR_B18101_with_ann!BD269","v":55},{"$f":"[1]ACS_16_5YR_B18101_with_ann!BE269","v":33},{"$f":"[1]ACS_16_5YR_B18101_with_ann!BF270","v":250},{"$f":"[1]ACS_16_5YR_B18101_with_ann!BG270","v":74},{"$f":"[1]ACS_16_5YR_B18101_with_ann!BH270","v":16},{"$f":"[1]ACS_16_5YR_B18101_with_ann!BI270","v":25},{"$f":"[1]ACS_16_5YR_B18101_with_ann!BJ270","v":234},{"$f":"[1]ACS_16_5YR_B18101_with_ann!BK270","v":73},{"$f":"[1]ACS_16_5YR_B18101_with_ann!BL270","v":734},{"$f":"[1]ACS_16_5YR_B18101_with_ann!BM270","v":118},{"$f":"[1]ACS_16_5YR_B18101_with_ann!BN270","v":10},{"$f":"[1]ACS_16_5YR_B18101_with_ann!BO270","v":16},{"$f":"[1]ACS_16_5YR_B18101_with_ann!BP270","v":724},{"$f":"[1]ACS_16_5YR_B18101_with_ann!BQ270","v":121},{"$f":"[1]ACS_16_5YR_B18101_with_ann!BR270","v":233},{"$f":"[1]ACS_16_5YR_B18101_with_ann!BS270","v":69},{"$f":"[1]ACS_16_5YR_B18101_with_ann!BT270","v":10},{"$f":"[1]ACS_16_5YR_B18101_with_ann!BU270","v":11},{"$f":"[1]ACS_16_5YR_B18101_with_ann!BV270","v":223},{"$f":"[1]ACS_16_5YR_B18101_with_ann!BW270","v":68},{"$f":"[1]ACS_16_5YR_B18101_with_ann!BX270","v":182},{"$f":"[1]ACS_16_5YR_B18101_with_ann!BY270","v":81},{"$f":"[1]ACS_16_5YR_B18101_with_ann!BZ270","v":87},{"$f":"[1]ACS_16_5YR_B18101_with_ann!CA270","v":64},{"$f":"[1]ACS_16_5YR_B18101_with_ann!CB270","v":95},{"$f":"[1]ACS_16_5YR_B18101_with_ann!CC270","v":53}]
["0600000US3301975060",3301975060,"060","Sunapee",{"$f":"[1]ACS_16_5YR_B18101_with_ann!D270","v":3449},{"$f":"[1]ACS_16_5YR_B18101_with_ann!E270","v":19},{"$f":"[1]ACS_16_5YR_B18101_with_ann!F270","v":1792},{"$f":"[1]ACS_16_5YR_B18101_with_ann!G270","v":129},{"$f":"[1]ACS_16_5YR_B18101_with_ann!H270","v":97},{"$f":"[1]ACS_16_5YR_B18101_with_ann!I270","v":57},{"$f":"[1]ACS_16_5YR_B18101_with_ann!J270","v":0},{"$f":"[1]ACS_16_5YR_B18101_with_ann!K270","v":11},{"$f":"[1]ACS_16_5YR_B18101_with_ann!L270","v":97},{"$f":"[1]ACS_16_5YR_B18101_with_ann!M270","v":57},{"$f":"[1]ACS_16_5YR_B18101_with_ann!N270","v":337},{"$f":"[1]ACS_16_5YR_B18101_with_ann!O270","v":95},{"$f":"[1]ACS_16_5YR_B18101_with_ann!P270","v":0},{"$f":"[1]ACS_16_5YR_B18101_with_ann!Q270","v":11},{"$f":"[1]ACS_16_5YR_B18101_with_ann!R270","v":337},{"$f":"[1]ACS_16_5YR_B18101_with_ann!S270","v":95},{"$f":"[1]ACS_16_5YR_B18101_with_ann!T270","v":290},{"$f":"[1]ACS_16_5YR_B18101_with_ann!U270","v":93},{"$f":"[1]ACS_16_5YR_B18101_with_ann!V270","v":0},{"$f":"[1]ACS_16_5YR_B18101_with_ann!W270","v":11},{"$f":"[1]ACS_16_5YR_B18101_with_ann!X270","v":290},{"$f":"[1]ACS_16_5YR_B18101_with_ann!Y270","v":93},{"$f":"[1]ACS_16_5YR_B18101_with_ann!Z270","v":777},{"$f":"[1]ACS_16_5YR_B18101_with_ann!AA270","v":126},{"$f":"[1]ACS_16_5YR_B18101_with_ann!AB270","v":53},{"$f":"[1]ACS_16_5YR_B18101_with_ann!AC270","v":49},{"$f":"[1]ACS_16_5YR_B18101_with_ann!AD270","v":724},{"$f":"[1]ACS_16_5YR_B18101_with_ann!AE270","v":117},{"$f":"[1]ACS_16_5YR_B18101_with_ann!AF270","v":176},{"$f":"[1]ACS_16_5YR_B18101_with_ann!AG270","v":58},{"$f":"[1]ACS_16_5YR_B18101_with_ann!AH270","v":45},{"$f":"[1]ACS_16_5YR_B18101_with_ann!AI270","v":38},{"$f":"[1]ACS_16_5YR_B18101_with_ann!AJ270","v":131},{"$f":"[1]ACS_16_5YR_B18101_with_ann!AK270","v":45},{"$f":"[1]ACS_16_5YR_B18101_with_ann!AL270","v":115},{"$f":"[1]ACS_16_5YR_B18101_with_ann!AM270","v":59},{"$f":"[1]ACS_16_5YR_B18101_with_ann!AN270","v":34},{"$f":"[1]ACS_16_5YR_B18101_with_ann!AO270","v":40},{"$f":"[1]ACS_16_5YR_B18101_with_ann!AP270","v":81},{"$f":"[1]ACS_16_5YR_B18101_with_ann!AQ270","v":47},{"$f":"[1]ACS_16_5YR_B18101_with_ann!AR270","v":1657},{"$f":"[1]ACS_16_5YR_B18101_with_ann!AS270","v":127},{"$f":"[1]ACS_16_5YR_B18101_with_ann!AT270","v":61},{"$f":"[1]ACS_16_5YR_B18101_with_ann!AU270","v":39},{"$f":"[1]ACS_16_5YR_B18101_with_ann!AV270","v":0},{"$f":"[1]ACS_16_5YR_B18101_with_ann!AW270","v":11},{"$f":"[1]ACS_16_5YR_B18101_with_ann!AX270","v":61},{"$f":"[1]ACS_16_5YR_B18101_with_ann!AY270","v":39},{"$f":"[1]ACS_16_5YR_B18101_with_ann!AZ270","v":197},{"$f":"[1]ACS_16_5YR_B18101_with_ann!BA270","v":84},{"$f":"[1]ACS_16_5YR_B18101_with_ann!BB270","v":0},{"$f":"[1]ACS_16_5YR_B18101_with_ann!BC270","v":11},{"$f":"[1]ACS_16_5YR_B18101_with_ann!BD270","v":197},{"$f":"[1]ACS_16_5YR_B18101_with_ann!BE270","v":84},{"$f":"[1]ACS_16_5YR_B18101_with_ann!BF271","v":111},{"$f":"[1]ACS_16_5YR_B18101_with_ann!BG271","v":46},{"$f":"[1]ACS_16_5YR_B18101_with_ann!BH271","v":12},{"$f":"[1]ACS_16_5YR_B18101_with_ann!BI271","v":11},{"$f":"[1]ACS_16_5YR_B18101_with_ann!BJ271","v":99},{"$f":"[1]ACS_16_5YR_B18101_with_ann!BK271","v":44},{"$f":"[1]ACS_16_5YR_B18101_with_ann!BL271","v":338},{"$f":"[1]ACS_16_5YR_B18101_with_ann!BM271","v":45},{"$f":"[1]ACS_16_5YR_B18101_with_ann!BN271","v":31},{"$f":"[1]ACS_16_5YR_B18101_with_ann!BO271","v":22},{"$f":"[1]ACS_16_5YR_B18101_with_ann!BP271","v":307},{"$f":"[1]ACS_16_5YR_B18101_with_ann!BQ271","v":45},{"$f":"[1]ACS_16_5YR_B18101_with_ann!BR271","v":113},{"$f":"[1]ACS_16_5YR_B18101_with_ann!BS271","v":29},{"$f":"[1]ACS_16_5YR_B18101_with_ann!BT271","v":16},{"$f":"[1]ACS_16_5YR_B18101_with_ann!BU271","v":9},{"$f":"[1]ACS_16_5YR_B18101_with_ann!BV271","v":97},{"$f":"[1]ACS_16_5YR_B18101_with_ann!BW271","v":27},{"$f":"[1]ACS_16_5YR_B18101_with_ann!BX271","v":39},{"$f":"[1]ACS_16_5YR_B18101_with_ann!BY271","v":15},{"$f":"[1]ACS_16_5YR_B18101_with_ann!BZ271","v":13},{"$f":"[1]ACS_16_5YR_B18101_with_ann!CA271","v":8},{"$f":"[1]ACS_16_5YR_B18101_with_ann!CB271","v":26},{"$f":"[1]ACS_16_5YR_B18101_with_ann!CC271","v":12}]
["0600000US3301977940",3301977940,"060","Unity",{"$f":"[1]ACS_16_5YR_B18101_with_ann!D271","v":1331},{"$f":"[1]ACS_16_5YR_B18101_with_ann!E271","v":148},{"$f":"[1]ACS_16_5YR_B18101_with_ann!F271","v":627},{"$f":"[1]ACS_16_5YR_B18101_with_ann!G271","v":66},{"$f":"[1]ACS_16_5YR_B18101_with_ann!H271","v":3},{"$f":"[1]ACS_16_5YR_B18101_with_ann!I271","v":6},{"$f":"[1]ACS_16_5YR_B18101_with_ann!J271","v":0},{"$f":"[1]ACS_16_5YR_B18101_with_ann!K271","v":11},{"$f":"[1]ACS_16_5YR_B18101_with_ann!L271","v":3},{"$f":"[1]ACS_16_5YR_B18101_with_ann!M271","v":6},{"$f":"[1]ACS_16_5YR_B18101_with_ann!N271","v":46},{"$f":"[1]ACS_16_5YR_B18101_with_ann!O271","v":21},{"$f":"[1]ACS_16_5YR_B18101_with_ann!P271","v":0},{"$f":"[1]ACS_16_5YR_B18101_with_ann!Q271","v":11},{"$f":"[1]ACS_16_5YR_B18101_with_ann!R271","v":46},{"$f":"[1]ACS_16_5YR_B18101_with_ann!S271","v":21},{"$f":"[1]ACS_16_5YR_B18101_with_ann!T271","v":79},{"$f":"[1]ACS_16_5YR_B18101_with_ann!U271","v":31},{"$f":"[1]ACS_16_5YR_B18101_with_ann!V271","v":0},{"$f":"[1]ACS_16_5YR_B18101_with_ann!W271","v":11},{"$f":"[1]ACS_16_5YR_B18101_with_ann!X271","v":79},{"$f":"[1]ACS_16_5YR_B18101_with_ann!Y271","v":31},{"$f":"[1]ACS_16_5YR_B18101_with_ann!Z271","v":324},{"$f":"[1]ACS_16_5YR_B18101_with_ann!AA271","v":53},{"$f":"[1]ACS_16_5YR_B18101_with_ann!AB271","v":32},{"$f":"[1]ACS_16_5YR_B18101_with_ann!AC271","v":17},{"$f":"[1]ACS_16_5YR_B18101_with_ann!AD271","v":292},{"$f":"[1]ACS_16_5YR_B18101_with_ann!AE271","v":50},{"$f":"[1]ACS_16_5YR_B18101_with_ann!AF271","v":128},{"$f":"[1]ACS_16_5YR_B18101_with_ann!AG271","v":36},{"$f":"[1]ACS_16_5YR_B18101_with_ann!AH271","v":38},{"$f":"[1]ACS_16_5YR_B18101_with_ann!AI271","v":23},{"$f":"[1]ACS_16_5YR_B18101_with_ann!AJ271","v":90},{"$f":"[1]ACS_16_5YR_B18101_with_ann!AK271","v":29},{"$f":"[1]ACS_16_5YR_B18101_with_ann!AL271","v":47},{"$f":"[1]ACS_16_5YR_B18101_with_ann!AM271","v":17},{"$f":"[1]ACS_16_5YR_B18101_with_ann!AN271","v":21},{"$f":"[1]ACS_16_5YR_B18101_with_ann!AO271","v":10},{"$f":"[1]ACS_16_5YR_B18101_with_ann!AP271","v":26},{"$f":"[1]ACS_16_5YR_B18101_with_ann!AQ271","v":12},{"$f":"[1]ACS_16_5YR_B18101_with_ann!AR271","v":704},{"$f":"[1]ACS_16_5YR_B18101_with_ann!AS271","v":99},{"$f":"[1]ACS_16_5YR_B18101_with_ann!AT271","v":14},{"$f":"[1]ACS_16_5YR_B18101_with_ann!AU271","v":15},{"$f":"[1]ACS_16_5YR_B18101_with_ann!AV271","v":0},{"$f":"[1]ACS_16_5YR_B18101_with_ann!AW271","v":11},{"$f":"[1]ACS_16_5YR_B18101_with_ann!AX271","v":14},{"$f":"[1]ACS_16_5YR_B18101_with_ann!AY271","v":15},{"$f":"[1]ACS_16_5YR_B18101_with_ann!AZ271","v":89},{"$f":"[1]ACS_16_5YR_B18101_with_ann!BA271","v":48},{"$f":"[1]ACS_16_5YR_B18101_with_ann!BB271","v":0},{"$f":"[1]ACS_16_5YR_B18101_with_ann!BC271","v":11},{"$f":"[1]ACS_16_5YR_B18101_with_ann!BD271","v":89},{"$f":"[1]ACS_16_5YR_B18101_with_ann!BE271","v":48},{"$f":"[1]ACS_16_5YR_B18101_with_ann!BF272","v":63},{"$f":"[1]ACS_16_5YR_B18101_with_ann!BG272","v":30},{"$f":"[1]ACS_16_5YR_B18101_with_ann!BH272","v":0},{"$f":"[1]ACS_16_5YR_B18101_with_ann!BI272","v":11},{"$f":"[1]ACS_16_5YR_B18101_with_ann!BJ272","v":63},{"$f":"[1]ACS_16_5YR_B18101_with_ann!BK272","v":30},{"$f":"[1]ACS_16_5YR_B18101_with_ann!BL272","v":301},{"$f":"[1]ACS_16_5YR_B18101_with_ann!BM272","v":81},{"$f":"[1]ACS_16_5YR_B18101_with_ann!BN272","v":21},{"$f":"[1]ACS_16_5YR_B18101_with_ann!BO272","v":14},{"$f":"[1]ACS_16_5YR_B18101_with_ann!BP272","v":280},{"$f":"[1]ACS_16_5YR_B18101_with_ann!BQ272","v":80},{"$f":"[1]ACS_16_5YR_B18101_with_ann!BR272","v":116},{"$f":"[1]ACS_16_5YR_B18101_with_ann!BS272","v":31},{"$f":"[1]ACS_16_5YR_B18101_with_ann!BT272","v":25},{"$f":"[1]ACS_16_5YR_B18101_with_ann!BU272","v":20},{"$f":"[1]ACS_16_5YR_B18101_with_ann!BV272","v":91},{"$f":"[1]ACS_16_5YR_B18101_with_ann!BW272","v":26},{"$f":"[1]ACS_16_5YR_B18101_with_ann!BX272","v":29},{"$f":"[1]ACS_16_5YR_B18101_with_ann!BY272","v":15},{"$f":"[1]ACS_16_5YR_B18101_with_ann!BZ272","v":3},{"$f":"[1]ACS_16_5YR_B18101_with_ann!CA272","v":6},{"$f":"[1]ACS_16_5YR_B18101_with_ann!CB272","v":26},{"$f":"[1]ACS_16_5YR_B18101_with_ann!CC272","v":13}]
["0600000US3301978980",3301978980,"060","Washington",{"$f":"[1]ACS_16_5YR_B18101_with_ann!D272","v":1199},{"$f":"[1]ACS_16_5YR_B18101_with_ann!E272","v":188},{"$f":"[1]ACS_16_5YR_B18101_with_ann!F272","v":612},{"$f":"[1]ACS_16_5YR_B18101_with_ann!G272","v":109},{"$f":"[1]ACS_16_5YR_B18101_with_ann!H272","v":0},{"$f":"[1]ACS_16_5YR_B18101_with_ann!I272","v":11},{"$f":"[1]ACS_16_5YR_B18101_with_ann!J272","v":0},{"$f":"[1]ACS_16_5YR_B18101_with_ann!K272","v":11},{"$f":"[1]ACS_16_5YR_B18101_with_ann!L272","v":0},{"$f":"[1]ACS_16_5YR_B18101_with_ann!M272","v":11},{"$f":"[1]ACS_16_5YR_B18101_with_ann!N272","v":61},{"$f":"[1]ACS_16_5YR_B18101_with_ann!O272","v":49},{"$f":"[1]ACS_16_5YR_B18101_with_ann!P272","v":0},{"$f":"[1]ACS_16_5YR_B18101_with_ann!Q272","v":11},{"$f":"[1]ACS_16_5YR_B18101_with_ann!R272","v":61},{"$f":"[1]ACS_16_5YR_B18101_with_ann!S272","v":49},{"$f":"[1]ACS_16_5YR_B18101_with_ann!T272","v":72},{"$f":"[1]ACS_16_5YR_B18101_with_ann!U272","v":37},{"$f":"[1]ACS_16_5YR_B18101_with_ann!V272","v":9},{"$f":"[1]ACS_16_5YR_B18101_with_ann!W272","v":8},{"$f":"[1]ACS_16_5YR_B18101_with_ann!X272","v":63},{"$f":"[1]ACS_16_5YR_B18101_with_ann!Y272","v":34},{"$f":"[1]ACS_16_5YR_B18101_with_ann!Z272","v":309},{"$f":"[1]ACS_16_5YR_B18101_with_ann!AA272","v":80},{"$f":"[1]ACS_16_5YR_B18101_with_ann!AB272","v":4},{"$f":"[1]ACS_16_5YR_B18101_with_ann!AC272","v":5},{"$f":"[1]ACS_16_5YR_B18101_with_ann!AD272","v":305},{"$f":"[1]ACS_16_5YR_B18101_with_ann!AE272","v":80},{"$f":"[1]ACS_16_5YR_B18101_with_ann!AF272","v":121},{"$f":"[1]ACS_16_5YR_B18101_with_ann!AG272","v":35},{"$f":"[1]ACS_16_5YR_B18101_with_ann!AH272","v":8},{"$f":"[1]ACS_16_5YR_B18101_with_ann!AI272","v":8},{"$f":"[1]ACS_16_5YR_B18101_with_ann!AJ272","v":113},{"$f":"[1]ACS_16_5YR_B18101_with_ann!AK272","v":34},{"$f":"[1]ACS_16_5YR_B18101_with_ann!AL272","v":49},{"$f":"[1]ACS_16_5YR_B18101_with_ann!AM272","v":19},{"$f":"[1]ACS_16_5YR_B18101_with_ann!AN272","v":19},{"$f":"[1]ACS_16_5YR_B18101_with_ann!AO272","v":16},{"$f":"[1]ACS_16_5YR_B18101_with_ann!AP272","v":30},{"$f":"[1]ACS_16_5YR_B18101_with_ann!AQ272","v":12},{"$f":"[1]ACS_16_5YR_B18101_with_ann!AR272","v":587},{"$f":"[1]ACS_16_5YR_B18101_with_ann!AS272","v":104},{"$f":"[1]ACS_16_5YR_B18101_with_ann!AT272","v":6},{"$f":"[1]ACS_16_5YR_B18101_with_ann!AU272","v":8},{"$f":"[1]ACS_16_5YR_B18101_with_ann!AV272","v":0},{"$f":"[1]ACS_16_5YR_B18101_with_ann!AW272","v":11},{"$f":"[1]ACS_16_5YR_B18101_with_ann!AX272","v":6},{"$f":"[1]ACS_16_5YR_B18101_with_ann!AY272","v":8},{"$f":"[1]ACS_16_5YR_B18101_with_ann!AZ272","v":72},{"$f":"[1]ACS_16_5YR_B18101_with_ann!BA272","v":29},{"$f":"[1]ACS_16_5YR_B18101_with_ann!BB272","v":5},{"$f":"[1]ACS_16_5YR_B18101_with_ann!BC272","v":6},{"$f":"[1]ACS_16_5YR_B18101_with_ann!BD272","v":67},{"$f":"[1]ACS_16_5YR_B18101_with_ann!BE272","v":29},{"$f":"[1]ACS_16_5YR_B18101_with_ann!BF273","v":0},{"$f":"[1]ACS_16_5YR_B18101_with_ann!BG273","v":0},{"$f":"[1]ACS_16_5YR_B18101_with_ann!BH273","v":0},{"$f":"[1]ACS_16_5YR_B18101_with_ann!BI273","v":0},{"$f":"[1]ACS_16_5YR_B18101_with_ann!BJ273","v":0},{"$f":"[1]ACS_16_5YR_B18101_with_ann!BK273","v":0},{"$f":"[1]ACS_16_5YR_B18101_with_ann!BL273","v":0},{"$f":"[1]ACS_16_5YR_B18101_with_ann!BM273","v":0},{"$f":"[1]ACS_16_5YR_B18101_with_ann!BN273","v":0},{"$f":"[1]ACS_16_5YR_B18101_with_ann!BO273","v":0},{"$f":"[1]ACS_16_5YR_B18101_with_ann!BP273","v":0},{"$f":"[1]ACS_16_5YR_B18101_with_ann!BQ273","v":0},{"$f":"[1]ACS_16_5YR_B18101_with_ann!BR273","v":0},{"$f":"[1]ACS_16_5YR_B18101_with_ann!BS273","v":0},{"$f":"[1]ACS_16_5YR_B18101_with_ann!BT273","v":0},{"$f":"[1]ACS_16_5YR_B18101_with_ann!BU273","v":0},{"$f":"[1]ACS_16_5YR_B18101_with_ann!BV273","v":0},{"$f":"[1]ACS_16_5YR_B18101_with_ann!BW273","v":0},{"$f":"[1]ACS_16_5YR_B18101_with_ann!BX273","v":0},{"$f":"[1]ACS_16_5YR_B18101_with_ann!BY273","v":0},{"$f":"[1]ACS_16_5YR_B18101_with_ann!BZ273","v":0},{"$f":"[1]ACS_16_5YR_B18101_with_ann!CA273","v":0},{"$f":"[1]ACS_16_5YR_B18101_with_ann!CB273","v":0},{"$f":"[1]ACS_16_5YR_B18101_with_ann!CC273","v":0}]
[]
[null,null,null,null,{"$f":"$D$3","v":"Acworth"},null,{"$f":"$D$4","v":"Charlestown"},null,{"$f":"$D$5","v":"Claremont"},null,{"$f":"$D$6","v":"Cornish"},null,{"$f":"$D$7","v":"Croydon"},null,{"$f":"$D$8","v":"Goshen"},null,{"$f":"$D$9","v":"Grantham"},null,{"$f":"$D$10","v":"Langdon"},null,{"$f":"$D$11","v":"Lempster"},null,{"$f":"$D$12","v":"Newport"},null,{"$f":"$D$13","v":"Plainfield"},null,{"$f":"$D$14","v":"Springfield"},null,{"$f":"$D$15","v":"Sunapee"},null,{"$f":"$D$16","v":"Unity"},null,{"$f":"$D$17","v":"Washington"}]
[null,null,null,null,"Estimate","Margin Of Error","Estimate","Margin Of Error","Estimate","Margin Of Error","Estimate","Margin Of Error","Estimate","Margin Of Error","Estimate","Margin Of Error","Estimate","Margin Of Error","Estimate","Margin Of Error","Estimate","Margin Of Error","Estimate","Margin Of Error","Estimate","Margin Of Error","Estimate","Margin Of Error","Estimate","Margin Of Error",null,"Estimate","Margin Of Error"]
[null,null,null,"Estimate Total:",906,134,5017,22,12914,40,1783,217,863,244,680,109,2945,14,712,145,923,176,6259,51,2555,293,1084,198,3449,19,1331,148,1199,188]
[null,null,null,"Estimate Total: Male:",487,83,2514,222,6265,280,922,150,423,111,346,70,1382,143,342,85,432,77,3230,212,1278,174,575,112,1792,129,627,66,612,109]
[null,null,null,"Estimate Total: Male: Under 5 years:",21,14,189,101,393,117,35,19,11,12,18,14,0,11,16,14,31,21,185,95,32,34,3,5,97,57,3,6,0,11]
[null,null,null,"Estimate Total: Male: Under 5 years: With a disability",0,11,0,16,0,18,0,11,0,11,0,11,0,11,0,11,3,4,0,16,0,11,0,11,0,11,0,11,0,11]
[null,null,null,"Estimate Total: Male: Under 5 years: No disability",21,14,189,101,393,117,35,19,11,12,18,14,0,11,16,14,28,21,185,95,32,34,3,5,97,57,3,6,0,11]
[null,null,null,"Estimate Total: Male: 5 to 17 years:",34,23,250,103,902,164,169,107,56,37,49,27,271,92,76,46,36,23,507,185,230,86,72,33,337,95,46,21,61,49]
[null,null,null,"Estimate Total: Male: 5 to 17 years: With a disability",0,11,0,16,73,50,5,9,0,11,2,3,58,63,6,8,2,4,87,70,12,12,7,8,0,11,0,11,0,11]
[null,null,null,"Estimate Total: Male: 5 to 17 years: No disability",34,23,250,103,829,170,164,106,56,37,47,27,213,80,70,44,34,21,420,143,218,87,65,32,337,95,46,21,61,49]
[null,null,null,"Estimate Total: Male: 18 to 34 years:",79,38,490,144,1622,255,95,28,87,47,43,21,148,73,53,27,34,16,754,177,261,84,103,56,290,93,79,31,72,37]
[null,null,null,"Estimate Total: Male: 18 to 34 years: With a disability",26,22,22,33,161,98,9,10,7,10,3,5,0,11,2,4,7,7,52,59,16,21,6,9,0,11,0,11,9,8]
[null,null,null,"Estimate Total: Male: 18 to 34 years: No disability",53,24,468,141,1461,238,86,27,80,46,40,21,148,73,51,26,27,14,702,178,245,83,97,56,290,93,79,31,63,34]
[null,null,null,"Estimate Total: Male: 35 to 64 years:",213,48,1034,172,2416,184,367,53,198,60,157,41,613,124,143,40,249,58,1262,216,521,71,225,63,777,126,324,53,309,80]
[null,null,null,"Estimate Total: Male: 35 to 64 years: With a disability",10,11,186,129,433,130,31,18,28,15,12,11,82,79,5,5,36,19,188,131,43,22,6,7,53,49,32,17,4,5]
[null,null,null,"Estimate Total: Male: 35 to 64 years: No disability",203,48,848,158,1983,194,336,51,170,57,145,39,531,134,138,39,213,56,1074,212,478,73,219,63,724,117,292,50,305,80]
[null,null,null,"Estimate Total: Male: 65 to 74 years:",88,27,261,94,650,105,190,51,38,22,59,26,156,69,39,14,68,28,405,161,178,57,111,42,176,58,128,36,121,35]
[null,null,null,"Estimate Total: Male: 65 to 74 years: With a disability",29,17,50,48,187,79,20,12,7,7,8,7,17,26,12,8,17,16,142,120,48,36,10,10,45,38,38,23,8,8]
[null,null,null,"Estimate Total: Male: 65 to 74 years: No disability",59,22,211,104,463,100,170,48,31,21,51,24,139,61,27,12,51,25,263,126,130,47,101,41,131,45,90,29,113,34]
[null,null,null,"Estimate Total: Male: 75 years and over:",52,23,290,141,282,88,66,32,33,16,20,14,194,86,15,9,14,11,117,81,56,35,61,35,115,59,47,17,49,19]
[null,null,null,"Estimate Total: Male: 75 years and over: With a disability",19,15,141,98,145,64,25,15,20,12,1,3,63,64,7,5,8,8,94,77,5,7,19,19,34,40,21,10,19,16]
[null,null,null,"Estimate Total: Male: 75 years and over: No disability",33,18,149,88,137,65,41,25,13,11,19,14,131,67,8,6,6,6,23,27,51,34,42,28,81,47,26,12,30,12]
[null,null,null,"Estimate Total: Female:",419,72,2503,221,6649,275,861,100,440,156,334,59,1563,142,370,73,491,123,3029,217,1277,157,509,111,1657,127,704,99,587,104]
[null,null,null,"Estimate Total: Female: Under 5 years:",16,13,121,78,475,107,26,14,12,11,21,14,0,11,16,13,35,23,100,62,50,55,11,17,61,39,14,15,6,8]
[null,null,null,"Estimate Total: Female: Under 5 years: With a disability",0,11,33,51,0,18,0,11,0,11,0,11,0,11,0,11,0,11,0,16,0,11,0,11,0,11,0,11,0,11]
[null,null,null,"Estimate Total: Female: Under 5 years: No disability",16,13,88,68,475,107,26,14,12,11,21,14,0,11,16,13,35,23,100,62,50,55,11,17,61,39,14,15,6,8]
[null,null,null,"Estimate Total: Female: 5 to 17 years:",24,18,420,147,922,206,119,46,65,34,49,25,250,125,61,42,121,76,406,128,185,81,70,46,197,84,89,48,72,29]
[null,null,null,"Estimate Total: Female: 5 to 17 years: With a disability",0,11,56,57,52,50,0,11,0,11,0,11,0,11,3,4,0,11,0,16,0,11,15,19,0,11,0,11,5,6]
[null,null,null,"Estimate Total: Female: 5 to 17 years: No disability",24,18,364,145,870,191,119,46,65,34,49,25,250,125,58,42,121,76,406,128,185,81,55,33,197,84,89,48,67,29]
[null,null,null,"Estimate Total: Female: 18 to 34 years:",47,25,357,108,1415,187,124,96,69,34,114,98,69,25,54,24,520,162,280,61,37,27,250,74,111,46,63,30,0,0]
[null,null,null,"Estimate Total: Female: 18 to 34 years: With a disability",0,11,0,16,285,100,0,11,3,4,0,11,2,3,3,5,44,43,0,11,0,11,16,25,12,11,0,11,0,0]
[null,null,null,"Estimate Total: Female: 18 to 34 years: No disability",47,25,357,108,1130,214,124,96,66,34,114,98,67,25,51,23,476,158,280,61,37,27,234,73,99,44,63,30,0,0]
[null,null,null,"Estimate Total: Female: 35 to 64 years:",190,46,1080,163,2460,217,169,53,117,33,896,131,174,41,191,52,1406,188,521,81,241,64,734,118,338,45,301,81,0,0]
[null,null,null,"Estimate Total: Female: 35 to 64 years: With a disability",5,6,95,81,391,134,13,11,13,7,46,65,10,11,27,20,181,98,9,9,18,13,10,16,31,22,21,14,0,0]
[null,null,null,"Estimate Total: Female: 35 to 64 years: No disability",185,46,985,174,2069,238,156,51,104,33,850,137,164,39,164,48,1225,186,512,81,223,62,724,121,307,45,280,80,0,0]
[null,null,null,"Estimate Total: Female: 65 to 74 years:",117,42,296,120,755,152,49,24,49,21,139,53,35,11,51,23,312,130,181,56,112,42,233,69,113,29,116,31,0,0]
[null,null,null,"Estimate Total: Female: 65 to 74 years: With a disability",18,16,16,26,167,113,7,7,16,12,42,31,9,6,13,13,108,78,46,32,9,11,10,11,16,9,25,20,0,0]
[null,null,null,"Estimate Total: Female: 65 to 74 years: No disability",99,37,280,121,588,139,42,23,33,17,97,48,26,10,38,19,204,97,135,49,103,41,223,68,97,27,91,26,0,0]
[null,null,null,"Estimate Total: Female: 75 years and over:",25,14,229,88,622,128,21,12,29,13,164,75,15,8,39,26,285,103,60,32,38,26,182,81,39,15,29,15,0,0]
[null,null,null,"Estimate Total: Female: 75 years and over: With a disability",4,4,84,70,365,114,8,10,12,9,43,37,4,4,10,9,169,83,23,22,10,16,87,64,13,8,3,6,0,0]
[null,null,null,"Estimate Total: Female: 75 years and over: No disability",21,14,145,71,257,75,13,7,17,11,121,66,11,7,29,25,116,57,37,25,28,18,95,53,26,12,26,13,0,0]

{"sheet":"ACS_Table_B18101","index":41,"n_rows":125,"n_cols":32,"rows_kept":125,"cut":false,"hidden":true,"merged":[]}
["B18101. SEX BY AGE BY DISABILITY STATUS\n"]
["Universe:  Civilian non-institutionalized population"]
["Data Set: 2015-2019 American Community Survey 5-Year Estimates"]
[]
[null,null,"Acworth",null,"Charlestown",null,"Claremont",null,"Cornish",null,"Croydon",null,"Goshen",null,"Grantham",null,"Langdon",null,"Lempster",null,"Newport",null,"Plainfield",null,"Springfield",null,"Sunapee",null,"Unity",null,"Washington"]
[null,null,"Estimate","Margin Of Error","Estimate","Margin Of Error","Estimate","Margin Of Error","Estimate","Margin Of Error","Estimate","Margin Of Error","Estimate","Margin Of Error","Estimate","Margin Of Error","Estimate","Margin Of Error","Estimate","Margin Of Error","Estimate","Margin Of Error","Estimate","Margin Of Error","Estimate","Margin Of Error","Estimate","Margin Of Error","Estimate","Margin Of Error","Estimate","Margin Of Error"]
[null,"Total",906,134,5017,22,12914,40,1783,217,863,244,680,109,2945,14,712,145,923,176,6259,51,2555,293,1084,198,3449,19,1331,148,1199,188]
[null,"Male:",487,83,2514,222,6265,280,922,150,423,111,346,70,1382,143,342,85,432,77,3230,212,1278,174,575,112,1792,129,627,66,612,109]
[null,"Under 5 years:",21,14,189,101,393,117,35,19,11,12,18,14,0,11,16,14,31,21,185,95,32,34,3,5,97,57,3,6,0,11]
[null,"With a disability",0,11,0,16,0,18,0,11,0,11,0,11,0,11,0,11,3,4,0,16,0,11,0,11,0,11,0,11,0,11]
[null,"No disability",21,14,189,101,393,117,35,19,11,12,18,14,0,11,16,14,28,21,185,95,32,34,3,5,97,57,3,6,0,11]
[null,"5 to 17 years:",34,23,250,103,902,164,169,107,56,37,49,27,271,92,76,46,36,23,507,185,230,86,72,33,337,95,46,21,61,49]
[null,"With a disability",0,11,0,16,73,50,5,9,0,11,2,3,58,63,6,8,2,4,87,70,12,12,7,8,0,11,0,11,0,11]
[null,"No disability",34,23,250,103,829,170,164,106,56,37,47,27,213,80,70,44,34,21,420,143,218,87,65,32,337,95,46,21,61,49]
[null,"18 to 34 years:",79,38,490,144,1622,255,95,28,87,47,43,21,148,73,53,27,34,16,754,177,261,84,103,56,290,93,79,31,72,37]
[null,"With a disability",26,22,22,33,161,98,9,10,7,10,3,5,0,11,2,4,7,7,52,59,16,21,6,9,0,11,0,11,9,8]
[null,"No disability",53,24,468,141,1461,238,86,27,80,46,40,21,148,73,51,26,27,14,702,178,245,83,97,56,290,93,79,31,63,34]
[null,"35 to 64 years:",213,48,1034,172,2416,184,367,53,198,60,157,41,613,124,143,40,249,58,1262,216,521,71,225,63,777,126,324,53,309,80]
[null,"With a disability",10,11,186,129,433,130,31,18,28,15,12,11,82,79,5,5,36,19,188,131,43,22,6,7,53,49,32,17,4,5]
[null,"No disability",203,48,848,158,1983,194,336,51,170,57,145,39,531,134,138,39,213,56,1074,212,478,73,219,63,724,117,292,50,305,80]
[null,"65 to 74 years:",88,27,261,94,650,105,190,51,38,22,59,26,156,69,39,14,68,28,405,161,178,57,111,42,176,58,128,36,121,35]
[null,"With a disability",29,17,50,48,187,79,20,12,7,7,8,7,17,26,12,8,17,16,142,120,48,36,10,10,45,38,38,23,8,8]
[null,"No disability",59,22,211,104,463,100,170,48,31,21,51,24,139,61,27,12,51,25,263,126,130,47,101,41,131,45,90,29,113,34]
[null,"75 years and over:",52,23,290,141,282,88,66,32,33,16,20,14,194,86,15,9,14,11,117,81,56,35,61,35,115,59,47,17,49,19]
[null,"With a disability",19,15,141,98,145,64,25,15,20,12,1,3,63,64,7,5,8,8,94,77,5,7,19,19,34,40,21,10,19,16]
[null,"No disability",33,18,149,88,137,65,41,25,13,11,19,14,131,67,8,6,6,6,23,27,51,34,42,28,81,47,26,12,30,12]
[null,"Female:",419,72,2503,221,6649,275,861,100,440,156,334,59,1563,142,370,73,491,123,3029,217,1277,157,509,111,1657,127,704,99,587,104]
[null,"Under 5 years:",16,13,121,78,475,107,26,14,12,11,21,14,0,11,16,13,35,23,100,62,50,55,11,17,61,39,14,15,6,8]
[null,"With a disability",0,11,33,51,0,18,0,11,0,11,0,11,0,11,0,11,0,11,0,16,0,11,0,11,0,11,0,11,0,11]
[null,"No disability",16,13,88,68,475,107,26,14,12,11,21,14,0,11,16,13,35,23,100,62,50,55,11,17,61,39,14,15,6,8]
[null,"5 to 17 years:",24,18,420,147,922,206,119,46,65,34,49,25,250,125,61,42,121,76,406,128,185,81,70,46,197,84,89,48,72,29]
[null,"With a disability",0,11,56,57,52,50,0,11,0,11,0,11,0,11,3,4,0,11,0,16,0,11,15,19,0,11,0,11,5,6]
[null,"No disability",24,18,364,145,870,191,119,46,65,34,49,25,250,125,58,42,121,76,406,128,185,81,55,33,197,84,89,48,67,29]
[null,"18 to 34 years:",47,25,357,108,1415,187,124,96,69,34,114,98,69,25,54,24,520,162,280,61,37,27,250,74,111,46,63,30,0,0]
[null,"With a disability",0,11,0,16,285,100,0,11,3,4,0,11,2,3,3,5,44,43,0,11,0,11,16,25,12,11,0,11,0,0]
[null,"No disability",47,25,357,108,1130,214,124,96,66,34,114,98,67,25,51,23,476,158,280,61,37,27,234,73,99,44,63,30,0,0]
[null,"35 to 64 years:",190,46,1080,163,2460,217,169,53,117,33,896,131,174,41,191,52,1406,188,521,81,241,64,734,118,338,45,301,81,0,0]
[null,"With a disability",5,6,95,81,391,134,13,11,13,7,46,65,10,11,27,20,181,98,9,9,18,13,10,16,31,22,21,14,0,0]
[null,"No disability",185,46,985,174,2069,238,156,51,104,33,850,137,164,39,164,48,1225,186,512,81,223,62,724,121,307,45,280,80,0,0]
[null,"65 to 74 years:",117,42,296,120,755,152,49,24,49,21,139,53,35,11,51,23,312,130,181,56,112,42,233,69,113,29,116,31,0,0]
[null,"With a disability",18,16,16,26,167,113,7,7,16,12,42,31,9,6,13,13,108,78,46,32,9,11,10,11,16,9,25,20,0,0]
[null,"No disability",99,37,280,121,588,139,42,23,33,17,97,48,26,10,38,19,204,97,135,49,103,41,223,68,97,27,91,26,0,0]
[null,"75 years and over:",25,14,229,88,622,128,21,12,29,13,164,75,15,8,39,26,285,103,60,32,38,26,182,81,39,15,29,15,0,0]
[null,"With a disability",4,4,84,70,365,114,8,10,12,9,43,37,4,4,10,9,169,83,23,22,10,16,87,64,13,8,3,6,0,0]
[null,"No disability",21,14,145,71,257,75,13,7,17,11,121,66,11,7,29,25,116,57,37,25,28,18,95,53,26,12,26,13,0,0]
[]
[]
[{"$f":"A1& \"-Calculated\"","v":"B18101. SEX BY AGE BY DISABILITY STATUS\n-Calculated"}]
[{"$f":"A2","v":"Universe:  Civilian non-institutionalized population"}]
[{"$f":"A3","v":"Data Set: 2015-2019 American Community Survey 5-Year Estimates"}]
[]
[]
[null,null,"Acworth",null,"Charlestown",null,"Claremont",null,"Cornish",null,"Croydon",null,"Goshen",null,"Grantham",null,"Langdon",null,"Lempster",null,"Newport",null,"Plainfield",null,"Springfield",null,"Sunapee",null,"Unity",null,"Washington"]
[null,null,"Estimate","Margin Of Error","Estimate","Margin Of Error","Estimate","Margin Of Error","Estimate","Margin Of Error","Estimate","Margin Of Error","Estimate","Margin Of Error","Estimate","Margin Of Error","Estimate","Margin Of Error","Estimate","Margin Of Error","Estimate","Margin Of Error","Estimate","Margin Of Error","Estimate","Margin Of Error","Estimate","Margin Of Error","Estimate","Margin Of Error","Estimate","Margin Of Error"]
[null,"Total",{"$f":"C7","v":906},134,5017,22,12914,40,1783,217,863,244,680,109,2945,14,712,145,923,176,6259,51,2555,293,{"$f":"Y7","v":1084},198,3449,19,1331,148,1199,188]
[null,"Under 5 years:",{"$f":"C28+C9","v":37},{"$f":"SQRT((D28^2)+(D9^2))","v":19.104973174542799},{"$f":"E28+E9","v":310},{"$f":"SQRT((F28^2)+(F9^2))","v":127.61269529321916},{"$f":"G28+G9","v":868},{"$f":"SQRT((H28^2)+(H9^2))","v":158.54967675779096},{"$f":"I28+I9","v":61},{"$f":"SQRT((J28^2)+(J9^2))","v":23.600847442411894},{"$f":"K28+K9","v":23},{"$f":"SQRT((L28^2)+(L9^2))","v":16.278820596099706},{"$f":"M28+M9","v":39},{"$f":"SQRT((N28^2)+(N9^2))","v":19.798989873223331},{"$f":"O28+O9","v":0},{"$f":"SQRT((P28^2)+(P9^2))","v":15.556349186104045},{"$f":"Q28+Q9","v":32},{"$f":"SQRT((R28^2)+(R9^2))","v":19.104973174542799},{"$f":"S28+S9","v":66},{"$f":"SQRT((T28^2)+(T9^2))","v":31.144823004794873},{"$f":"U28+U9","v":285},{"$f":"SQRT((V28^2)+(V9^2))","v":113.44161493913951},{"$f":"W28+W9","v":82},{"$f":"SQRT((X28^2)+(X9^2))","v":64.660652641308843},14,17.720045146669349,{"$f":"AA28+AA9","v":158},{"$f":"SQRT((AB28^2)+(AB9^2))","v":69.06518659932803},17,16.15549442140351,{"$f":"AE28+AE9","v":6},{"$f":"SQRT((AF28^2)+(AF9^2))","v":13.601470508735444}]
[null,"With a disability",{"$f":"C29+C10","v":0},{"$f":"SQRT((D29^2)+(D10^2))","v":15.556349186104045},{"$f":"E29+E10","v":33},{"$f":"SQRT((F29^2)+(F10^2))","v":53.450912059571067},{"$f":"G29+G10","v":0},{"$f":"SQRT((H29^2)+(H10^2))","v":25.45584412271571},{"$f":"I29+I10","v":0},{"$f":"SQRT((J29^2)+(J10^2))","v":15.556349186104045},{"$f":"K29+K10","v":0},{"$f":"SQRT((L29^2)+(L10^2))","v":15.556349186104045},{"$f":"M29+M10","v":0},{"$f":"SQRT((N29^2)+(N10^2))","v":15.556349186104045},{"$f":"O29+O10","v":0},{"$f":"SQRT((P29^2)+(P10^2))","v":15.556349186104045},{"$f":"Q29+Q10","v":0},{"$f":"SQRT((R29^2)+(R10^2))","v":15.556349186104045},{"$f":"S29+S10","v":3},{"$f":"SQRT((T29^2)+(T10^2))","v":11.704699910719626},{"$f":"U29+U10","v":0},{"$f":"SQRT((V29^2)+(V10^2))","v":22.627416997969522},0,15.556349186104045,0,15.556349186104045,0,15.556349186104045,0,15.556349186104045,0,15.556349186104045]
[null,"No disability",{"$f":"C30+C11","v":37},19.104973174542799,277,121.75795661885921,868,158.54967675779096,61,23.600847442411894,23,16.278820596099706,39,19.798989873223331,0,15.556349186104045,32,19.104973174542799,63,31.144823004794873,285,113.44161493913951,82,64.660652641308843,14,17.720045146669349,158,69.06518659932803,17,16.15549442140351,6,13.601470508735444]
[null,"5 to 17 years:",58,29.206163733020468,670,179.49373248110922,1824,263.30970358116315,288,116.46887996370532,121,50.24937810560445,98,36.796738985948195,521,155.20631430454111,137,62.289646009589745,157,79.404030124421269,913,224.96444163467257,415,118.1397477566293,142,56.612719418872643,534,126.81088281373961,135,52.392747589718944,133,56.938563381947034]
[null,"With a disability",0,15.556349186104045,56,59.203040462462738,125,70.710678118654755,5,14.212670403551895,0,15.556349186104045,2,11.401754250991379,58,63.953107821277925,9,8.9442719099991592,2,11.704699910719626,87,71.805292284064961,12,16.278820596099706,22,20.615528128088304,0,15.556349186104045,0,15.556349186104045,5,12.529964086141668]
[null,"No disability",58,29.206163733020468,614,177.85949510779568,1699,255.69708641280997,283,115.55085460523432,121,50.24937810560445,96,36.796738985948195,463,148.40822079655831,128,60.827625302982199,155,78.847954951285828,826,191.91925385432282,403,118.86967653695369,120,45.967379738244816,534,126.81088281373961,135,52.392747589718944,128,56.938563381947034]
[null,"18 to 34 years:",126,45.486261662176638,847,180,3037,316.21827904155066,219,100,156,58.008620049092706,157,100.22474744293447,217,77.1621668954417,107,36.124783736376884,554,162.78820596099706,1034,187.21645226849054,298,88.232647019116456,353,92.80086206496145,401,103.75451797391764,142,43.139309220245984,72,37]
[null,"With a disability",26,24.596747752497688,22,36.674241641784498,446,140.01428498549711,9,14.866068747318506,10,10.770329614269007,3,12.083045973594572,2,11.401754250991379,5,6.4031242374328485,51,43.56604182158393,52,60.016664352494629,16,23.706539182259394,22,26.570660511172846,12,15.556349186104045,0,15.556349186104045,9,8]
[null,"No disability",100,34.655446902326915,825,177.6091213873882,2591,320.06249389767618,210,99.724620831567975,146,57.201398584300364,154,100.22474744293447,215,77.1621668954417,102,34.713109915419565,503,158.61904047118682,982,188.16216410320115,282,87.281154896117187,331,92.005434622091755,389,102.88342918079665,142,43.139309220245984,63,34]
[null,"35 to 64 years:",403,66.483080554378645,2114,236.96624232155938,4876,284.50834785643815,536,74.953318805774032,315,68.47627326307996,1053,137.26616480400406,787,130.60245020672468,334,65.604877867426907,1655,196.74348782107123,1783,230.68810112357335,762,95.587656106842587,959,133.76471881628578,1115,133.79461872586654,625,96.79876032264049,309,80]
[null,"With a disability",15,12.529964086141668,281,152.32202729743324,824,186.69761648183942,44,21.095023109728988,41,16.552945357246848,58,65.924198895398035,92,79.762146410437069,32,20.615528128088304,217,99.824846606443629,197,131.30879635424276,61,25.553864678361276,16,17.464249196572979,84,53.712196007983138,53,22.022715545545239,4,5]
[null,"No disability",388,66.483080554378645,1833,235.03191272676142,4052,307.05048444840469,492,72.124891681027847,274,65.863495200300449,995,142.44297104455524,695,139.56002292920419,302,61.846584384264908,1438,194.24726510301247,1586,226.94713040706199,701,95.775779819325933,943,136.41847382227965,1031,125.35549449465708,572,94.339811320566042,305,80]
[null,"65 to 74 years:",205,49.929950931279713,557,152.43359209832983,1405,184.74035834110532,239,56.36488268416781,87,30.413812651491099,198,59.033888572581766,191,69.871310278253688,90,26.92582403567252,380,132.98120167903431,586,170.46113926640288,290,70.802542327235685,344,80.777472107017559,289,64.845971347493901,244,47.507894080878813,121,35]
[null,"With a disability",47,23.345235059857504,66,54.589376255824725,354,137.87675656179326,27,13.892443989449804,23,13.892443989449804,50,31.780497164141408,26,26.683328128252668,25,15.264337522473747,125,79.624116949577527,188,124.19339757008019,57,37.643060449437421,20,14.866068747318506,61,39.05124837953327,63,30.479501308256342,8,8]
[null,"No disability",158,43.046486500061768,491,159.55249919697278,1051,171.2337583538947,212,53.225933528685054,64,27.018512172212592,148,53.665631459994955,165,61.814237842102365,65,22.472205054244231,255,100.16985574512923,398,135.19245541079576,233,62.369864518050704,324,79.404030124421269,228,52.478567053607705,181,38.948684188300895,113,34]
[null,"75 years and over:",77,26.92582403567252,519,166.20770138594662,904,155.3319027115808,87,34.176014981270121,62,20.615528128088304,184,76.295478240849903,209,86.371291526756735,54,27.513632984395208,299,103.58571330062848,177,87.091905479212016,94,43.600458713183279,243,88.238313673823114,154,60.876925020897694,76,22.671568097509269,49,19]
[null,"With a disability",23,15.524174696260024,225,120.43255373859678,510,130.73637596323374,33,18.027756377319946,32,15,44,37.12142238654117,67,64.124878167525594,17,10.295630140987001,177,83.384650865731871,117,80.081208782085696,15,17.464249196572979,106,66.760766921898067,47,40.792156108742276,24,11.661903789690601,19,16]
[null,"No disability",54,22.803508501982758,294,113.07077429645558,394,99.247166206396045,54,25.96150997149434,30,15.556349186104045,140,67.468511173731997,142,67.36467917239716,37,25.709920264364882,122,57.314919523628397,60,36.796738985948195,79,38.470768123342687,137,59.941638282582836,107,48.507731342539614,52,17.691806012954132,30,12]
[]
[]
[]
[]
[]
[]
[]
[]
[]
[]
[]
[]
[]
[]
[]
[]
[]
[]
[]
[]
[]
[]
[]
[]
[]
[]
["B18101. SEX BY AGE BY DISABILITY STATUS\n-Calculated"]
["Universe:  Civilian non-institutionalized population"]
["Data Set: 2010-2014 American Community Survey 5-Year Estimates"]
[]
[]
[null,null,"Acworth",null,"Charlestown",null,"Claremont",null,"Cornish",null,"Croydon",null,"Goshen",null,"Grantham",null,"Langdon",null,"Lempster",null,"Newport",null,"Plainfield",null,"Springfield",null,"Sunapee",null,"Unity",null,"Washington"]
[null,null,"Estimate","Margin Of Error","Estimate","Margin Of Error","Estimate","Margin Of Error","Estimate","Margin Of Error","Estimate","Margin Of Error","Estimate","Margin Of Error","Estimate","Margin Of Error","Estimate","Margin Of Error","Estimate","Margin Of Error","Estimate","Margin Of Error","Estimate","Margin Of Error","Estimate","Margin Of Error","Estimate","Margin Of Error","Estimate","Margin Of Error","Estimate","Margin Of Error"]
[null,"Total",923,163,5047,16,13083,71,1601,179,651,140,821,127,2958,30,787,149,1089,147,6351,81,2518,166,1313,217,3363,30,1352,149,1013,140]
[null,"Under 5 years:",55,36.235341863986875,306,121.16517651536682,879,148.52945835759317,91,46.043457732885351,32,26.40075756488817,47,27.658633371878661,159,79.511005527536881,41,29.546573405388315,67,29.681644159311659,146,75,141,62.032249677083293,82,48.60041152089147,78,57.454329688892898,49,26.40075756488817,16,11.661903789690601]
[null,"With a disability",0,15.556349186104045,0,15.556349186104045,0,24.041630560342615,0,15.556349186104045,0,15.556349186104045,2,11.401754250991379,0,15.556349186104045,0,15.556349186104045,0,15.556349186104045,0,21.213203435596427,0,15.556349186104045,0,15.556349186104045,0,15.556349186104045,0,15.556349186104045,0,15.556349186104045]
[null,"No disability",55,36.235341863986875,306,121.16517651536682,879,148.52945835759317,91,46.043457732885351,32,26.40075756488817,45,27.658633371878661,159,79.511005527536881,41,29.546573405388315,67,29.681644159311659,146,75,141,62.032249677083293,82,48.60041152089147,78,57.454329688892898,49,26.40075756488817,16,11.661903789690601]
[null,"5 to 17 years:",152,54.203320931470607,588,145.71547618561317,2117,243.21184181696418,243,76.05918747922567,93,33.941125496954278,93,39.446165846632042,536,156.72268502038881,140,59.816385714952723,156,48.104053883222775,1002,213.05398376937239,408,85.562842402528915,244,73.552702193733168,492,128.80993750483694,142,39.962482405376171,130,58.137767414994535]
[null,"With a disability",2,11.401754250991379,30,34.985711369071801,127,82.734515167492219,3,12.083045973594572,11,12.206555615733702,15,13.928388277184119,9,9.2195444572928871,7,13.038404810405298,23,17.4928556845359,22,28.301943396169811,5,13.038404810405298,3,12.529964086141668,26,27.202941017470888,11,11.661903789690601,0,15.556349186104045]
[null,"No disability",150,54.203320931470607,558,143.05593311708537,1990,246.67792767088019,240,76.05918747922567,82,32.557641192199412,78,36.249137920783717,527,155.59562975867928,133,59.033888572581766,133,44.045431091090478,980,213.05398376937239,403,85.562842402528915,241,73.552702193733168,466,127.80062597655773,131,39.446165846632042,130,58.137767414994535]
[null,"18 to 34 years:",184,54.378304497290095,900,194.55847450059841,2858,279.37966998334008,273,55.97320787662612,96,41.400483088968905,134,40.36087214122113,358,127.3184982632139,175,58,137,52.773099207835045,1050,218.68699092538631,401,83.630138108220294,173,55,504,146.60491124106312,207,60.21627686929839,100,41.231056256176608]
[null,"With a disability",15,13.416407864998739,69,70.604532432415411,295,110.53506231056279,5,13.038404810405298,5,14.866068747318506,9,7.6157731058639087,18,20.124611797498108,21,22.825424421026653,5,12.529964086141668,115,83.006023877788536,15,17.691806012954132,0,15.556349186104045,0,15.556349186104045,42,27.202941017470888,5,13.601470508735444]
[null,"No disability",169,51.623637996561229,831,198.84164553734712,2563,271.70940359141048,268,55.97320787662612,91,39.11521443121589,125,41.109609582188931,340,126.24579200908045,154,51.61395160225576,132,52.773099207835045,935,209.46837470128995,386,79.511005527536881,173,55,504,146.60491124106312,165,53.535035257296691,95,40.607881008493905]
[null,"35 to 64 years:",380,55.865910893853687,2320,200.124960961895,5203,255.34486483969087,799,72.138755187485728,348,58.051701094799967,405,54.671747731346578,1313,129.4488315899375,305,50.328918128646478,571,72.249567472753768,3031,239.05857022913861,1172,102.7277956543408,648,89.403579346690591,1478,196.54261624390779,768,68.8839603971781,520,70.767224051816527]
[null,"With a disability",33,14.212670403551895,428,139.51702405083043,1033,220.79175709251467,116,38.418745424597091,29,17.691806012954132,81,27.658633371878661,106,52.345009313209601,31,12.806248474865697,59,31.384709652950431,492,177.59786034747154,107,39.446165846632042,53,24.207436873820409,150,85.088189544730596,76,32.649655434629018,105,35.608987629529715]
[null,"No disability",347,52.32590180780452,1892,231.63117234085743,4170,297.10604167535871,683,69.31089380465383,319,55.97320787662612,324,51.739733281106119,1207,137.2443077143821,274,51.739733281106119,512,66.528189513919585,2539,252.24194734421155,1065,102.59142264341595,595,86.400231481171389,1328,199.25109786397664,692,69.656299069071991,415,60.827625302982199]
[null,"65 to 74 years:",105,33.421549934136806,573,157.76247969653622,1109,160.96272860510285,142,45.607017003965517,55,19.849433241279208,75,29.068883707497267,262,79.246451024635803,87,25.45584412271571,85,28.301943396169811,702,194.60986614249546,297,68.818602136341013,120,40.496913462633174,436,116.10340218959993,117,30.610455730027933,161,29.732137494637012]
[null,"With a disability",38,20.248456731316587,251,117.61377470347595,259,104.80935072788114,25,18.788294228055936,9,8.4852813742385695,16,11.661903789690601,58,46.173585522460783,10,7.2801098892805181,26,18.357559750685819,224,146.68674105044394,61,25.45584412271571,29,20.223748416156685,64,47.201694884823787,33,19.697715603592208,34,17]
[null,"No disability",67,27.658633371878661,322,135.83077707206124,850,147.80054127099805,117,41.340053217188775,46,17.029386365926403,59,27.018512172212592,204,70.710678118654755,77,24.041630560342615,59,23.600847442411894,478,136.19104228986575,236,66.400301204136113,91,33.301651610693426,372,106.83164325236227,84,25.45584412271571,127,29]
[null,"75 years and over:",47,18.788294228055936,360,139.26952286842948,917,129.20139318134306,53,20,27,18.601075237738275,67,22.671568097509269,330,92.200867674876037,39,19.104973174542799,73,30.413812651491099,420,113.56936206565572,99,36.891733491393431,46,21.95449840010015,375,95.587656106842587,69,21.633307652783937,86,27.658633371878661]
[null,"With a disability",19,15.524174696260024,193,104.20172743289815,522,97.8008179924892,20,12.041594578792296,16,13.601470508735444,36,18.439088914585774,83,65.924198895398035,10,7.6157731058639087,43,22.203603311174518,255,105.11898020814318,43,26.627053911388696,32,18.788294228055936,163,72.862884927787476,29,14.7648230602334,25,13.601470508735444]
[null,"No disability",28,11.401754250991379,167,88.090862182180956,395,103.58571330062848,33,15.811388300841896,11,12.369316876852981,31,13.45362404707371,247,76.367532368147138,29,19.104973174542799,30,18.788294228055936,165,66.603303221386852,56,23.021728866442675,14,9.2195444572928871,212,81.320354155647891,40,16.401219466856727,61,24.413111231467404]

{"sheet":"SData_B18102_HearingDisability","index":42,"n_rows":59,"n_cols":82,"rows_kept":59,"cut":false,"hidden":true,"merged":[]}
["GEO_ID","GEO_ID2","SUMLEVEL"]
["Geography Identifier","Geography Identifier","Geographic Summary Level",null,{"$f":"[1]ACS_16_5YR_B18102_with_ann!D$2","v":"Estimate Total:"},{"$f":"[1]ACS_16_5YR_B18102_with_ann!E$2","v":"Margin of Error Total:"},{"$f":"[1]ACS_16_5YR_B18102_with_ann!F$2","v":"Estimate Total: Male:"},{"$f":"[1]ACS_16_5YR_B18102_with_ann!G$2","v":"Margin of Error Total: Male:"},{"$f":"[1]ACS_16_5YR_B18102_with_ann!H$2","v":"Estimate Total: Male: Under 5 years:"},{"$f":"[1]ACS_16_5YR_B18102_with_ann!I$2","v":"Margin of Error Total: Male: Under 5 years:"},{"$f":"[1]ACS_16_5YR_B18102_with_ann!J$2","v":"Estimate Total: Male: Under 5 years: With a hearing difficulty"},{"$f":"[1]ACS_16_5YR_B18102_with_ann!K$2","v":"Margin of Error Total: Male: Under 5 years: With a hearing difficulty"},{"$f":"[1]ACS_16_5YR_B18102_with_ann!L$2","v":"Estimate Total: Male: Under 5 years: No hearing difficulty"},{"$f":"[1]ACS_16_5YR_B18102_with_ann!M$2","v":"Margin of Error Total: Male: Under 5 years: No hearing difficulty"},{"$f":"[1]ACS_16_5YR_B18102_with_ann!N$2","v":"Estimate Total: Male: 5 to 17 years:"},{"$f":"[1]ACS_16_5YR_B18102_with_ann!O$2","v":"Margin of Error Total: Male: 5 to 17 years:"},{"$f":"[1]ACS_16_5YR_B18102_with_ann!P$2","v":"Estimate Total: Male: 5 to 17 years: With a hearing difficulty"},{"$f":"[1]ACS_16_5YR_B18102_with_ann!Q$2","v":"Margin of Error Total: Male: 5 to 17 years: With a hearing difficulty"},{"$f":"[1]ACS_16_5YR_B18102_with_ann!R$2","v":"Estimate Total: Male: 5 to 17 years: No hearing difficulty"},{"$f":"[1]ACS_16_5YR_B18102_with_ann!S$2","v":"Margin of Error Total: Male: 5 to 17 years: No hearing difficulty"},{"$f":"[1]ACS_16_5YR_B18102_with_ann!T$2","v":"Estimate Total: Male: 18 to 34 years:"},{"$f":"[1]ACS_16_5YR_B18102_with_ann!U$2","v":"Margin of Error Total: Male: 18 to 34 years:"},{"$f":"[1]ACS_16_5YR_B18102_with_ann!V$2","v":"Estimate Total: Male: 18 to 34 years: With a hearing difficulty"},{"$f":"[1]ACS_16_5YR_B18102_with_ann!W$2","v":"Margin of Error Total: Male: 18 to 34 years: With a hearing difficulty"},{"$f":"[1]ACS_16_5YR_B18102_with_ann!X$2","v":"Estimate Total: Male: 18 to 34 years: No hearing difficulty"},{"$f":"[1]ACS_16_5YR_B18102_with_ann!Y$2","v":"Margin of Error Total: Male: 18 to 34 years: No hearing difficulty"},{"$f":"[1]ACS_16_5YR_B18102_with_ann!Z$2","v":"Estimate Total: Male: 35 to 64 years:"},{"$f":"[1]ACS_16_5YR_B18102_with_ann!AA$2","v":"Margin of Error Total: Male: 35 to 64 years:"},{"$f":"[1]ACS_16_5YR_B18102_with_ann!AB$2","v":"Estimate Total: Male: 35 to 64 years: With a hearing difficulty"},{"$f":"[1]ACS_16_5YR_B18102_with_ann!AC$2","v":"Margin of Error Total: Male: 35 to 64 years: With a hearing difficulty"},{"$f":"[1]ACS_16_5YR_B18102_with_ann!AD$2","v":"Estimate Total: Male: 35 to 64 years: No hearing difficulty"},{"$f":"[1]ACS_16_5YR_B18102_with_ann!AE$2","v":"Margin of Error Total: Male: 35 to 64 years: No hearing difficulty"},{"$f":"[1]ACS_16_5YR_B18102_with_ann!AF$2","v":"Estimate Total: Male: 65 to 74 years:"},{"$f":"[1]ACS_16_5YR_B18102_with_ann!AG$2","v":"Margin of Error Total: Male: 65 to 74 years:"},{"$f":"[1]ACS_16_5YR_B18102_with_ann!AH$2","v":"Estimate Total: Male: 65 to 74 years: With a hearing difficulty"},{"$f":"[1]ACS_16_5YR_B18102_with_ann!AI$2","v":"Margin of Error Total: Male: 65 to 74 years: With a hearing difficulty"},{"$f":"[1]ACS_16_5YR_B18102_with_ann!AJ$2","v":"Estimate Total: Male: 65 to 74 years: No hearing difficulty"},{"$f":"[1]ACS_16_5YR_B18102_with_ann!AK$2","v":"Margin of Error Total: Male: 65 to 74 years: No hearing difficulty"},{"$f":"[1]ACS_16_5YR_B18102_with_ann!AL$2","v":"Estimate Total: Male: 75 years and over:"},{"$f":"[1]ACS_16_5YR_B18102_with_ann!AM$2","v":"Margin of Error Total: Male: 75 years and over:"},{"$f":"[1]ACS_16_5YR_B18102_with_ann!AN$2","v":"Estimate Total: Male: 75 years and over: With a hearing difficulty"},{"$f":"[1]ACS_16_5YR_B18102_with_ann!AO$2","v":"Margin of Error Total: Male: 75 years and over: With a hearing difficulty"},{"$f":"[1]ACS_16_5YR_B18102_with_ann!AP$2","v":"Estimate Total: Male: 75 years and over: No hearing difficulty"},{"$f":"[1]ACS_16_5YR_B18102_with_ann!AQ$2","v":"Margin of Error Total: Male: 75 years and over: No hearing difficulty"},{"$f":"[1]ACS_16_5YR_B18102_with_ann!AR$2","v":"Estimate Total: Female:"},{"$f":"[1]ACS_16_5YR_B18102_with_ann!AS$2","v":"Margin of Error Total: Female:"},{"$f":"[1]ACS_16_5YR_B18102_with_ann!AT$2","v":"Estimate Total: Female: Under 5 years:"},{"$f":"[1]ACS_16_5YR_B18102_with_ann!AU$2","v":"Margin of Error Total: Female: Under 5 years:"},{"$f":"[1]ACS_16_5YR_B18102_with_ann!AV$2","v":"Estimate Total: Female: Under 5 years: With a hearing difficulty"},{"$f":"[1]ACS_16_5YR_B18102_with_ann!AW$2","v":"Margin of Error Total: Female: Under 5 years: With a hearing difficulty"},{"$f":"[1]ACS_16_5YR_B18102_with_ann!AX$2","v":"Estimate Total: Female: Under 5 years: No hearing difficulty"},{"$f":"[1]ACS_16_5YR_B18102_with_ann!AY$2","v":"Margin of Error Total: Female: Under 5 years: No hearing difficulty"},{"$f":"[1]ACS_16_5YR_B18102_with_ann!AZ$2","v":"Estimate Total: Female: 5 to 17 years:"},{"$f":"[1]ACS_16_5YR_B18102_with_ann!BA$2","v":"Margin of Error Total: Female: 5 to 17 years:"},{"$f":"[1]ACS_16_5YR_B18102_with_ann!BB$2","v":"Estimate Total: Female: 5 to 17 years: With a hearing difficulty"},{"$f":"[1]ACS_16_5YR_B18102_with_ann!BC$2","v":"Margin of Error Total: Female: 5 to 17 years: With a hearing difficulty"},{"$f":"[1]ACS_16_5YR_B18102_with_ann!BD$2","v":"Estimate Total: Female: 5 to 17 years: No hearing difficulty"},{"$f":"[1]ACS_16_5YR_B18102_with_ann!BE$2","v":"Margin of Error Total: Female: 5 to 17 years: No hearing difficulty"},{"$f":"[1]ACS_16_5YR_B18102_with_ann!BF$2","v":"Estimate Total: Female: 18 to 34 years:"},{"$f":"[1]ACS_16_5YR_B18102_with_ann!BG$2","v":"Margin of Error Total: Female: 18 to 34 years:"},{"$f":"[1]ACS_16_5YR_B18102_with_ann!BH$2","v":"Estimate Total: Female: 18 to 34 years: With a hearing difficulty"},{"$f":"[1]ACS_16_5YR_B18102_with_ann!BI$2","v":"Margin of Error Total: Female: 18 to 34 years: With a hearing difficulty"},{"$f":"[1]ACS_16_5YR_B18102_with_ann!BJ$2","v":"Estimate Total: Female: 18 to 34 years: No hearing difficulty"},{"$f":"[1]ACS_16_5YR_B18102_with_ann!BK$2","v":"Margin of Error Total: Female: 18 to 34 years: No hearing difficulty"},{"$f":"[1]ACS_16_5YR_B18102_with_ann!BL$2","v":"Estimate Total: Female: 35 to 64 years:"},{"$f":"[1]ACS_16_5YR_B18102_with_ann!BM$2","v":"Margin of Error Total: Female: 35 to 64 years:"},{"$f":"[1]ACS_16_5YR_B18102_with_ann!BN$2","v":"Estimate Total: Female: 35 to 64 years: With a hearing difficulty"},{"$f":"[1]ACS_16_5YR_B18102_with_ann!BO$2","v":"Margin of Error Total: Female: 35 to 64 years: With a hearing difficulty"},{"$f":"[1]ACS_16_5YR_B18102_with_ann!BP$2","v":"Estimate Total: Female: 35 to 64 years: No hearing difficulty"},{"$f":"[1]ACS_16_5YR_B18102_with_ann!BQ$2","v":"Margin of Error Total: Female: 35 to 64 years: No hearing difficulty"},{"$f":"[1]ACS_16_5YR_B18102_with_ann!BR$2","v":"Estimate Total: Female: 65 to 74 years:"},{"$f":"[1]ACS_16_5YR_B18102_with_ann!BS$2","v":"Margin of Error Total: Female: 65 to 74 years:"},{"$f":"[1]ACS_16_5YR_B18102_with_ann!BT$2","v":"Estimate Total: Female: 65 to 74 years: With a hearing difficulty"},{"$f":"[1]ACS_16_5YR_B18102_with_ann!BU$2","v":"Margin of Error Total: Female: 65 to 74 years: With a hearing difficulty"},{"$f":"[1]ACS_16_5YR_B18102_with_ann!BV$2","v":"Estimate Total: Female: 65 to 74 years: No hearing difficulty"},{"$f":"[1]ACS_16_5YR_B18102_with_ann!BW$2","v":"Margin of Error Total: Female: 65 to 74 years: No hearing difficulty"},{"$f":"[1]ACS_16_5YR_B18102_with_ann!BX$2","v":"Estimate Total: Female: 75 years and over:"},{"$f":"[1]ACS_16_5YR_B18102_with_ann!BY$2","v":"Margin of Error Total: Female: 75 years and over:"},{"$f":"[1]ACS_16_5YR_B18102_with_ann!BZ$2","v":"Estimate Total: Female: 75 years and over: With a hearing difficulty"},{"$f":"[1]ACS_16_5YR_B18102_with_ann!CA$2","v":"Margin of Error Total: Female: 75 years and over: With a hearing difficulty"},{"$f":"[1]ACS_16_5YR_B18102_with_ann!CB$2","v":"Estimate Total: Female: 75 years and over: No hearing difficulty"},{"$f":"[1]ACS_16_5YR_B18102_with_ann!CC$2","v":"Margin of Error Total: Female: 75 years and over: No hearing difficulty"}]
["0600000US3301900259",3301900259,"060","Acworth",{"$f":"[1]ACS_16_5YR_B18102_with_ann!D258","v":906},{"$f":"[1]ACS_16_5YR_B18102_with_ann!E258","v":134},{"$f":"[1]ACS_16_5YR_B18102_with_ann!F258","v":487},{"$f":"[1]ACS_16_5YR_B18102_with_ann!G258","v":83},{"$f":"[1]ACS_16_5YR_B18102_with_ann!H258","v":21},{"$f":"[1]ACS_16_5YR_B18102_with_ann!I258","v":14},{"$f":"[1]ACS_16_5YR_B18102_with_ann!J258","v":0},{"$f":"[1]ACS_16_5YR_B18102_with_ann!K258","v":11},{"$f":"[1]ACS_16_5YR_B18102_with_ann!L258","v":21},{"$f":"[1]ACS_16_5YR_B18102_with_ann!M258","v":14},{"$f":"[1]ACS_16_5YR_B18102_with_ann!N258","v":34},{"$f":"[1]ACS_16_5YR_B18102_with_ann!O258","v":23},{"$f":"[1]ACS_16_5YR_B18102_with_ann!P258","v":0},{"$f":"[1]ACS_16_5YR_B18102_with_ann!Q258","v":11},{"$f":"[1]ACS_16_5YR_B18102_with_ann!R258","v":34},{"$f":"[1]ACS_16_5YR_B18102_with_ann!S258","v":23},{"$f":"[1]ACS_16_5YR_B18102_with_ann!T258","v":79},{"$f":"[1]ACS_16_5YR_B18102_with_ann!U258","v":38},{"$f":"[1]ACS_16_5YR_B18102_with_ann!V258","v":9},{"$f":"[1]ACS_16_5YR_B18102_with_ann!W258","v":14},{"$f":"[1]ACS_16_5YR_B18102_with_ann!X258","v":70},{"$f":"[1]ACS_16_5YR_B18102_with_ann!Y258","v":37},{"$f":"[1]ACS_16_5YR_B18102_with_ann!Z258","v":213},{"$f":"[1]ACS_16_5YR_B18102_with_ann!AA258","v":48},{"$f":"[1]ACS_16_5YR_B18102_with_ann!AB258","v":0},{"$f":"[1]ACS_16_5YR_B18102_with_ann!AC258","v":11},{"$f":"[1]ACS_16_5YR_B18102_with_ann!AD258","v":213},{"$f":"[1]ACS_16_5YR_B18102_with_ann!AE258","v":48},{"$f":"[1]ACS_16_5YR_B18102_with_ann!AF258","v":88},{"$f":"[1]ACS_16_5YR_B18102_with_ann!AG258","v":27},{"$f":"[1]ACS_16_5YR_B18102_with_ann!AH258","v":10},{"$f":"[1]ACS_16_5YR_B18102_with_ann!AI258","v":11},{"$f":"[1]ACS_16_5YR_B18102_with_ann!AJ258","v":78},{"$f":"[1]ACS_16_5YR_B18102_with_ann!AK258","v":24},{"$f":"[1]ACS_16_5YR_B18102_with_ann!AL258","v":52},{"$f":"[1]ACS_16_5YR_B18102_with_ann!AM258","v":23},{"$f":"[1]ACS_16_5YR_B18102_with_ann!AN258","v":13},{"$f":"[1]ACS_16_5YR_B18102_with_ann!AO258","v":12},{"$f":"[1]ACS_16_5YR_B18102_with_ann!AP258","v":39},{"$f":"[1]ACS_16_5YR_B18102_with_ann!AQ258","v":21},{"$f":"[1]ACS_16_5YR_B18102_with_ann!AR258","v":419},{"$f":"[1]ACS_16_5YR_B18102_with_ann!AS258","v":72},{"$f":"[1]ACS_16_5YR_B18102_with_ann!AT258","v":16},{"$f":"[1]ACS_16_5YR_B18102_with_ann!AU258","v":13},{"$f":"[1]ACS_16_5YR_B18102_with_ann!AV258","v":0},{"$f":"[1]ACS_16_5YR_B18102_with_ann!AW258","v":11},{"$f":"[1]ACS_16_5YR_B18102_with_ann!AX258","v":16},{"$f":"[1]ACS_16_5YR_B18102_with_ann!AY258","v":13},{"$f":"[1]ACS_16_5YR_B18102_with_ann!AZ258","v":24},{"$f":"[1]ACS_16_5YR_B18102_with_ann!BA258","v":18},{"$f":"[1]ACS_16_5YR_B18102_with_ann!BB258","v":0},{"$f":"[1]ACS_16_5YR_B18102_with_ann!BC258","v":11},{"$f":"[1]ACS_16_5YR_B18102_with_ann!BD258","v":24},{"$f":"[1]ACS_16_5YR_B18102_with_ann!BE258","v":18},{"$f":"[1]ACS_16_5YR_B18102_with_ann!BF258","v":47},{"$f":"[1]ACS_16_5YR_B18102_with_ann!BG258","v":25},{"$f":"[1]ACS_16_5YR_B18102_with_ann!BH258","v":0},{"$f":"[1]ACS_16_5YR_B18102_with_ann!BI258","v":11},{"$f":"[1]ACS_16_5YR_B18102_with_ann!BJ258","v":47},{"$f":"[1]ACS_16_5YR_B18102_with_ann!BK258","v":25},{"$f":"[1]ACS_16_5YR_B18102_with_ann!BL258","v":190},{"$f":"[1]ACS_16_5YR_B18102_with_ann!BM258","v":46},{"$f":"[1]ACS_16_5YR_B18102_with_ann!BN258","v":5},{"$f":"[1]ACS_16_5YR_B18102_with_ann!BO258","v":6},{"$f":"[1]ACS_16_5YR_B18102_with_ann!BP258","v":185},{"$f":"[1]ACS_16_5YR_B18102_with_ann!BQ258","v":46},{"$f":"[1]ACS_16_5YR_B18102_with_ann!BR258","v":117},{"$f":"[1]ACS_16_5YR_B18102_with_ann!BS258","v":42},{"$f":"[1]ACS_16_5YR_B18102_with_ann!BT258","v":3},{"$f":"[1]ACS_16_5YR_B18102_with_ann!BU258","v":4},{"$f":"[1]ACS_16_5YR_B18102_with_ann!BV258","v":114},{"$f":"[1]ACS_16_5YR_B18102_with_ann!BW258","v":42},{"$f":"[1]ACS_16_5YR_B18102_with_ann!BX258","v":25},{"$f":"[1]ACS_16_5YR_B18102_with_ann!BY258","v":14},{"$f":"[1]ACS_16_5YR_B18102_with_ann!BZ258","v":0},{"$f":"[1]ACS_16_5YR_B18102_with_ann!CA258","v":11},{"$f":"[1]ACS_16_5YR_B18102_with_ann!CB258","v":25},{"$f":"[1]ACS_16_5YR_B18102_with_ann!CC258","v":14}]
["0600000US3301911380",3301911380,"060","Charlestown",{"$f":"[1]ACS_16_5YR_B18102_with_ann!D259","v":5017},{"$f":"[1]ACS_16_5YR_B18102_with_ann!E259","v":22},{"$f":"[1]ACS_16_5YR_B18102_with_ann!F259","v":2514},{"$f":"[1]ACS_16_5YR_B18102_with_ann!G259","v":222},{"$f":"[1]ACS_16_5YR_B18102_with_ann!H259","v":189},{"$f":"[1]ACS_16_5YR_B18102_with_ann!I259","v":101},{"$f":"[1]ACS_16_5YR_B18102_with_ann!J259","v":0},{"$f":"[1]ACS_16_5YR_B18102_with_ann!K259","v":16},{"$f":"[1]ACS_16_5YR_B18102_with_ann!L259","v":189},{"$f":"[1]ACS_16_5YR_B18102_with_ann!M259","v":101},{"$f":"[1]ACS_16_5YR_B18102_with_ann!N259","v":250},{"$f":"[1]ACS_16_5YR_B18102_with_ann!O259","v":103},{"$f":"[1]ACS_16_5YR_B18102_with_ann!P259","v":0},{"$f":"[1]ACS_16_5YR_B18102_with_ann!Q259","v":16},{"$f":"[1]ACS_16_5YR_B18102_with_ann!R259","v":250},{"$f":"[1]ACS_16_5YR_B18102_with_ann!S259","v":103},{"$f":"[1]ACS_16_5YR_B18102_with_ann!T259","v":490},{"$f":"[1]ACS_16_5YR_B18102_with_ann!U259","v":144},{"$f":"[1]ACS_16_5YR_B18102_with_ann!V259","v":0},{"$f":"[1]ACS_16_5YR_B18102_with_ann!W259","v":16},{"$f":"[1]ACS_16_5YR_B18102_with_ann!X259","v":490},{"$f":"[1]ACS_16_5YR_B18102_with_ann!Y259","v":144},{"$f":"[1]ACS_16_5YR_B18102_with_ann!Z259","v":1034},{"$f":"[1]ACS_16_5YR_B18102_with_ann!AA259","v":172},{"$f":"[1]ACS_16_5YR_B18102_with_ann!AB259","v":24},{"$f":"[1]ACS_16_5YR_B18102_with_ann!AC259","v":29},{"$f":"[1]ACS_16_5YR_B18102_with_ann!AD259","v":1010},{"$f":"[1]ACS_16_5YR_B18102_with_ann!AE259","v":171},{"$f":"[1]ACS_16_5YR_B18102_with_ann!AF259","v":261},{"$f":"[1]ACS_16_5YR_B18102_with_ann!AG259","v":94},{"$f":"[1]ACS_16_5YR_B18102_with_ann!AH259","v":36},{"$f":"[1]ACS_16_5YR_B18102_with_ann!AI259","v":42},{"$f":"[1]ACS_16_5YR_B18102_with_ann!AJ259","v":225},{"$f":"[1]ACS_16_5YR_B18102_with_ann!AK259","v":99},{"$f":"[1]ACS_16_5YR_B18102_with_ann!AL259","v":290},{"$f":"[1]ACS_16_5YR_B18102_with_ann!AM259","v":141},{"$f":"[1]ACS_16_5YR_B18102_with_ann!AN259","v":141},{"$f":"[1]ACS_16_5YR_B18102_with_ann!AO259","v":98},{"$f":"[1]ACS_16_5YR_B18102_with_ann!AP259","v":149},{"$f":"[1]ACS_16_5YR_B18102_with_ann!AQ259","v":88},{"$f":"[1]ACS_16_5YR_B18102_with_ann!AR259","v":2503},{"$f":"[1]ACS_16_5YR_B18102_with_ann!AS259","v":221},{"$f":"[1]ACS_16_5YR_B18102_with_ann!AT259","v":121},{"$f":"[1]ACS_16_5YR_B18102_with_ann!AU259","v":78},{"$f":"[1]ACS_16_5YR_B18102_with_ann!AV259","v":0},{"$f":"[1]ACS_16_5YR_B18102_with_ann!AW259","v":16},{"$f":"[1]ACS_16_5YR_B18102_with_ann!AX259","v":121},{"$f":"[1]ACS_16_5YR_B18102_with_ann!AY259","v":78},{"$f":"[1]ACS_16_5YR_B18102_with_ann!AZ259","v":420},{"$f":"[1]ACS_16_5YR_B18102_with_ann!BA259","v":147},{"$f":"[1]ACS_16_5YR_B18102_with_ann!BB259","v":0},{"$f":"[1]ACS_16_5YR_B18102_with_ann!BC259","v":16},{"$f":"[1]ACS_16_5YR_B18102_with_ann!BD259","v":420},{"$f":"[1]ACS_16_5YR_B18102_with_ann!BE259","v":147},{"$f":"[1]ACS_16_5YR_B18102_with_ann!BF259","v":357},{"$f":"[1]ACS_16_5YR_B18102_with_ann!BG259","v":108},{"$f":"[1]ACS_16_5YR_B18102_with_ann!BH259","v":0},{"$f":"[1]ACS_16_5YR_B18102_with_ann!BI259","v":16},{"$f":"[1]ACS_16_5YR_B18102_with_ann!BJ259","v":357},{"$f":"[1]ACS_16_5YR_B18102_with_ann!BK259","v":108},{"$f":"[1]ACS_16_5YR_B18102_with_ann!BL259","v":1080},{"$f":"[1]ACS_16_5YR_B18102_with_ann!BM259","v":163},{"$f":"[1]ACS_16_5YR_B18102_with_ann!BN259","v":13},{"$f":"[1]ACS_16_5YR_B18102_with_ann!BO259","v":21},{"$f":"[1]ACS_16_5YR_B18102_with_ann!BP259","v":1067},{"$f":"[1]ACS_16_5YR_B18102_with_ann!BQ259","v":171},{"$f":"[1]ACS_16_5YR_B18102_with_ann!BR259","v":296},{"$f":"[1]ACS_16_5YR_B18102_with_ann!BS259","v":120},{"$f":"[1]ACS_16_5YR_B18102_with_ann!BT259","v":16},{"$f":"[1]ACS_16_5YR_B18102_with_ann!BU259","v":26},{"$f":"[1]ACS_16_5YR_B18102_with_ann!BV259","v":280},{"$f":"[1]ACS_16_5YR_B18102_with_ann!BW259","v":121},{"$f":"[1]ACS_16_5YR_B18102_with_ann!BX259","v":229},{"$f":"[1]ACS_16_5YR_B18102_with_ann!BY259","v":88},{"$f":"[1]ACS_16_5YR_B18102_with_ann!BZ259","v":68},{"$f":"[1]ACS_16_5YR_B18102_with_ann!CA259","v":69},{"$f":"[1]ACS_16_5YR_B18102_with_ann!CB259","v":161},{"$f":"[1]ACS_16_5YR_B18102_with_ann!CC259","v":72}]
["0600000US3301912900",3301912900,"060","Claremont",{"$f":"[1]ACS_16_5YR_B18102_with_ann!D260","v":12914},{"$f":"[1]ACS_16_5YR_B18102_with_ann!E260","v":40},{"$f":"[1]ACS_16_5YR_B18102_with_ann!F260","v":6265},{"$f":"[1]ACS_16_5YR_B18102_with_ann!G260","v":280},{"$f":"[1]ACS_16_5YR_B18102_with_ann!H260","v":393},{"$f":"[1]ACS_16_5YR_B18102_with_ann!I260","v":117},{"$f":"[1]ACS_16_5YR_B18102_with_ann!J260","v":0},{"$f":"[1]ACS_16_5YR_B18102_with_ann!K260","v":18},{"$f":"[1]ACS_16_5YR_B18102_with_ann!L260","v":393},{"$f":"[1]ACS_16_5YR_B18102_with_ann!M260","v":117},{"$f":"[1]ACS_16_5YR_B18102_with_ann!N260","v":902},{"$f":"[1]ACS_16_5YR_B18102_with_ann!O260","v":164},{"$f":"[1]ACS_16_5YR_B18102_with_ann!P260","v":0},{"$f":"[1]ACS_16_5YR_B18102_with_ann!Q260","v":18},{"$f":"[1]ACS_16_5YR_B18102_with_ann!R260","v":902},{"$f":"[1]ACS_16_5YR_B18102_with_ann!S260","v":164},{"$f":"[1]ACS_16_5YR_B18102_with_ann!T260","v":1622},{"$f":"[1]ACS_16_5YR_B18102_with_ann!U260","v":255},{"$f":"[1]ACS_16_5YR_B18102_with_ann!V260","v":95},{"$f":"[1]ACS_16_5YR_B18102_with_ann!W260","v":92},{"$f":"[1]ACS_16_5YR_B18102_with_ann!X260","v":1527},{"$f":"[1]ACS_16_5YR_B18102_with_ann!Y260","v":243},{"$f":"[1]ACS_16_5YR_B18102_with_ann!Z260","v":2416},{"$f":"[1]ACS_16_5YR_B18102_with_ann!AA260","v":184},{"$f":"[1]ACS_16_5YR_B18102_with_ann!AB260","v":50},{"$f":"[1]ACS_16_5YR_B18102_with_ann!AC260","v":42},{"$f":"[1]ACS_16_5YR_B18102_with_ann!AD260","v":2366},{"$f":"[1]ACS_16_5YR_B18102_with_ann!AE260","v":186},{"$f":"[1]ACS_16_5YR_B18102_with_ann!AF260","v":650},{"$f":"[1]ACS_16_5YR_B18102_with_ann!AG260","v":105},{"$f":"[1]ACS_16_5YR_B18102_with_ann!AH260","v":118},{"$f":"[1]ACS_16_5YR_B18102_with_ann!AI260","v":72},{"$f":"[1]ACS_16_5YR_B18102_with_ann!AJ260","v":532},{"$f":"[1]ACS_16_5YR_B18102_with_ann!AK260","v":104},{"$f":"[1]ACS_16_5YR_B18102_with_ann!AL260","v":282},{"$f":"[1]ACS_16_5YR_B18102_with_ann!AM260","v":88},{"$f":"[1]ACS_16_5YR_B18102_with_ann!AN260","v":81},{"$f":"[1]ACS_16_5YR_B18102_with_ann!AO260","v":43},{"$f":"[1]ACS_16_5YR_B18102_with_ann!AP260","v":201},{"$f":"[1]ACS_16_5YR_B18102_with_ann!AQ260","v":82},{"$f":"[1]ACS_16_5YR_B18102_with_ann!AR260","v":6649},{"$f":"[1]ACS_16_5YR_B18102_with_ann!AS260","v":275},{"$f":"[1]ACS_16_5YR_B18102_with_ann!AT260","v":475},{"$f":"[1]ACS_16_5YR_B18102_with_ann!AU260","v":107},{"$f":"[1]ACS_16_5YR_B18102_with_ann!AV260","v":0},{"$f":"[1]ACS_16_5YR_B18102_with_ann!AW260","v":18},{"$f":"[1]ACS_16_5YR_B18102_with_ann!AX260","v":475},{"$f":"[1]ACS_16_5YR_B18102_with_ann!AY260","v":107},{"$f":"[1]ACS_16_5YR_B18102_with_ann!AZ260","v":922},{"$f":"[1]ACS_16_5YR_B18102_with_ann!BA260","v":206},{"$f":"[1]ACS_16_5YR_B18102_with_ann!BB260","v":0},{"$f":"[1]ACS_16_5YR_B18102_with_ann!BC260","v":18},{"$f":"[1]ACS_16_5YR_B18102_with_ann!BD260","v":922},{"$f":"[1]ACS_16_5YR_B18102_with_ann!BE260","v":206},{"$f":"[1]ACS_16_5YR_B18102_with_ann!BF260","v":1415},{"$f":"[1]ACS_16_5YR_B18102_with_ann!BG260","v":187},{"$f":"[1]ACS_16_5YR_B18102_with_ann!BH260","v":0},{"$f":"[1]ACS_16_5YR_B18102_with_ann!BI260","v":18},{"$f":"[1]ACS_16_5YR_B18102_with_ann!BJ260","v":1415},{"$f":"[1]ACS_16_5YR_B18102_with_ann!BK260","v":187},{"$f":"[1]ACS_16_5YR_B18102_with_ann!BL260","v":2460},{"$f":"[1]ACS_16_5YR_B18102_with_ann!BM260","v":217},{"$f":"[1]ACS_16_5YR_B18102_with_ann!BN260","v":12},{"$f":"[1]ACS_16_5YR_B18102_with_ann!BO260","v":19},{"$f":"[1]ACS_16_5YR_B18102_with_ann!BP260","v":2448},{"$f":"[1]ACS_16_5YR_B18102_with_ann!BQ260","v":219},{"$f":"[1]ACS_16_5YR_B18102_with_ann!BR260","v":755},{"$f":"[1]ACS_16_5YR_B18102_with_ann!BS260","v":152},{"$f":"[1]ACS_16_5YR_B18102_with_ann!BT260","v":51},{"$f":"[1]ACS_16_5YR_B18102_with_ann!BU260","v":47},{"$f":"[1]ACS_16_5YR_B18102_with_ann!BV260","v":704},{"$f":"[1]ACS_16_5YR_B18102_with_ann!BW260","v":146},{"$f":"[1]ACS_16_5YR_B18102_with_ann!BX260","v":622},{"$f":"[1]ACS_16_5YR_B18102_with_ann!BY260","v":128},{"$f":"[1]ACS_16_5YR_B18102_with_ann!BZ260","v":179},{"$f":"[1]ACS_16_5YR_B18102_with_ann!CA260","v":95},{"$f":"[1]ACS_16_5YR_B18102_with_ann!CB260","v":443},{"$f":"[1]ACS_16_5YR_B18102_with_ann!CC260","v":112}]
["0600000US3301915060",3301915060,"060","Cornish",{"$f":"[1]ACS_16_5YR_B18102_with_ann!D261","v":1783},{"$f":"[1]ACS_16_5YR_B18102_with_ann!E261","v":217},{"$f":"[1]ACS_16_5YR_B18102_with_ann!F261","v":922},{"$f":"[1]ACS_16_5YR_B18102_with_ann!G261","v":150},{"$f":"[1]ACS_16_5YR_B18102_with_ann!H261","v":35},{"$f":"[1]ACS_16_5YR_B18102_with_ann!I261","v":19},{"$f":"[1]ACS_16_5YR_B18102_with_ann!J261","v":0},{"$f":"[1]ACS_16_5YR_B18102_with_ann!K261","v":11},{"$f":"[1]ACS_16_5YR_B18102_with_ann!L261","v":35},{"$f":"[1]ACS_16_5YR_B18102_with_ann!M261","v":19},{"$f":"[1]ACS_16_5YR_B18102_with_ann!N261","v":169},{"$f":"[1]ACS_16_5YR_B18102_with_ann!O261","v":107},{"$f":"[1]ACS_16_5YR_B18102_with_ann!P261","v":0},{"$f":"[1]ACS_16_5YR_B18102_with_ann!Q261","v":11},{"$f":"[1]ACS_16_5YR_B18102_with_ann!R261","v":169},{"$f":"[1]ACS_16_5YR_B18102_with_ann!S261","v":107},{"$f":"[1]ACS_16_5YR_B18102_with_ann!T261","v":95},{"$f":"[1]ACS_16_5YR_B18102_with_ann!U261","v":28},{"$f":"[1]ACS_16_5YR_B18102_with_ann!V261","v":5},{"$f":"[1]ACS_16_5YR_B18102_with_ann!W261","v":7},{"$f":"[1]ACS_16_5YR_B18102_with_ann!X261","v":90},{"$f":"[1]ACS_16_5YR_B18102_with_ann!Y261","v":28},{"$f":"[1]ACS_16_5YR_B18102_with_ann!Z261","v":367},{"$f":"[1]ACS_16_5YR_B18102_with_ann!AA261","v":53},{"$f":"[1]ACS_16_5YR_B18102_with_ann!AB261","v":21},{"$f":"[1]ACS_16_5YR_B18102_with_ann!AC261","v":16},{"$f":"[1]ACS_16_5YR_B18102_with_ann!AD261","v":346},{"$f":"[1]ACS_16_5YR_B18102_with_ann!AE261","v":51},{"$f":"[1]ACS_16_5YR_B18102_with_ann!AF261","v":190},{"$f":"[1]ACS_16_5YR_B18102_with_ann!AG261","v":51},{"$f":"[1]ACS_16_5YR_B18102_with_ann!AH261","v":10},{"$f":"[1]ACS_16_5YR_B18102_with_ann!AI261","v":8},{"$f":"[1]ACS_16_5YR_B18102_with_ann!AJ261","v":180},{"$f":"[1]ACS_16_5YR_B18102_with_ann!AK261","v":51},{"$f":"[1]ACS_16_5YR_B18102_with_ann!AL261","v":66},{"$f":"[1]ACS_16_5YR_B18102_with_ann!AM261","v":32},{"$f":"[1]ACS_16_5YR_B18102_with_ann!AN261","v":21},{"$f":"[1]ACS_16_5YR_B18102_with_ann!AO261","v":13},{"$f":"[1]ACS_16_5YR_B18102_with_ann!AP261","v":45},{"$f":"[1]ACS_16_5YR_B18102_with_ann!AQ261","v":27},{"$f":"[1]ACS_16_5YR_B18102_with_ann!AR261","v":861},{"$f":"[1]ACS_16_5YR_B18102_with_ann!AS261","v":100},{"$f":"[1]ACS_16_5YR_B18102_with_ann!AT261","v":26},{"$f":"[1]ACS_16_5YR_B18102_with_ann!AU261","v":14},{"$f":"[1]ACS_16_5YR_B18102_with_ann!AV261","v":0},{"$f":"[1]ACS_16_5YR_B18102_with_ann!AW261","v":11},{"$f":"[1]ACS_16_5YR_B18102_with_ann!AX261","v":26},{"$f":"[1]ACS_16_5YR_B18102_with_ann!AY261","v":14},{"$f":"[1]ACS_16_5YR_B18102_with_ann!AZ261","v":119},{"$f":"[1]ACS_16_5YR_B18102_with_ann!BA261","v":46},{"$f":"[1]ACS_16_5YR_B18102_with_ann!BB261","v":0},{"$f":"[1]ACS_16_5YR_B18102_with_ann!BC261","v":11},{"$f":"[1]ACS_16_5YR_B18102_with_ann!BD261","v":119},{"$f":"[1]ACS_16_5YR_B18102_with_ann!BE261","v":46},{"$f":"[1]ACS_16_5YR_B18102_with_ann!BF262","v":124},{"$f":"[1]ACS_16_5YR_B18102_with_ann!BG262","v":96},{"$f":"[1]ACS_16_5YR_B18102_with_ann!BH262","v":0},{"$f":"[1]ACS_16_5YR_B18102_with_ann!BI262","v":11},{"$f":"[1]ACS_16_5YR_B18102_with_ann!BJ262","v":124},{"$f":"[1]ACS_16_5YR_B18102_with_ann!BK262","v":96},{"$f":"[1]ACS_16_5YR_B18102_with_ann!BL262","v":169},{"$f":"[1]ACS_16_5YR_B18102_with_ann!BM262","v":53},{"$f":"[1]ACS_16_5YR_B18102_with_ann!BN262","v":0},{"$f":"[1]ACS_16_5YR_B18102_with_ann!BO262","v":11},{"$f":"[1]ACS_16_5YR_B18102_with_ann!BP262","v":169},{"$f":"[1]ACS_16_5YR_B18102_with_ann!BQ262","v":53},{"$f":"[1]ACS_16_5YR_B18102_with_ann!BR262","v":49},{"$f":"[1]ACS_16_5YR_B18102_with_ann!BS262","v":24},{"$f":"[1]ACS_16_5YR_B18102_with_ann!BT262","v":6},{"$f":"[1]ACS_16_5YR_B18102_with_ann!BU262","v":7},{"$f":"[1]ACS_16_5YR_B18102_with_ann!BV262","v":43},{"$f":"[1]ACS_16_5YR_B18102_with_ann!BW262","v":23},{"$f":"[1]ACS_16_5YR_B18102_with_ann!BX262","v":21},{"$f":"[1]ACS_16_5YR_B18102_with_ann!BY262","v":12},{"$f":"[1]ACS_16_5YR_B18102_with_ann!BZ262","v":2},{"$f":"[1]ACS_16_5YR_B18102_with_ann!CA262","v":4},{"$f":"[1]ACS_16_5YR_B18102_with_ann!CB262","v":19},{"$f":"[1]ACS_16_5YR_B18102_with_ann!CC262","v":12}]
["0600000US3301916340",3301916340,"060","Croydon",{"$f":"[1]ACS_16_5YR_B18102_with_ann!D262","v":863},{"$f":"[1]ACS_16_5YR_B18102_with_ann!E262","v":244},{"$f":"[1]ACS_16_5YR_B18102_with_ann!F262","v":423},{"$f":"[1]ACS_16_5YR_B18102_with_ann!G262","v":111},{"$f":"[1]ACS_16_5YR_B18102_with_ann!H262","v":11},{"$f":"[1]ACS_16_5YR_B18102_with_ann!I262","v":12},{"$f":"[1]ACS_16_5YR_B18102_with_ann!J262","v":0},{"$f":"[1]ACS_16_5YR_B18102_with_ann!K262","v":11},{"$f":"[1]ACS_16_5YR_B18102_with_ann!L262","v":11},{"$f":"[1]ACS_16_5YR_B18102_with_ann!M262","v":12},{"$f":"[1]ACS_16_5YR_B18102_with_ann!N262","v":56},{"$f":"[1]ACS_16_5YR_B18102_with_ann!O262","v":37},{"$f":"[1]ACS_16_5YR_B18102_with_ann!P262","v":0},{"$f":"[1]ACS_16_5YR_B18102_with_ann!Q262","v":11},{"$f":"[1]ACS_16_5YR_B18102_with_ann!R262","v":56},{"$f":"[1]ACS_16_5YR_B18102_with_ann!S262","v":37},{"$f":"[1]ACS_16_5YR_B18102_with_ann!T262","v":87},{"$f":"[1]ACS_16_5YR_B18102_with_ann!U262","v":47},{"$f":"[1]ACS_16_5YR_B18102_with_ann!V262","v":0},{"$f":"[1]ACS_16_5YR_B18102_with_ann!W262","v":11},{"$f":"[1]ACS_16_5YR_B18102_with_ann!X262","v":87},{"$f":"[1]ACS_16_5YR_B18102_with_ann!Y262","v":47},{"$f":"[1]ACS_16_5YR_B18102_with_ann!Z262","v":198},{"$f":"[1]ACS_16_5YR_B18102_with_ann!AA262","v":60},{"$f":"[1]ACS_16_5YR_B18102_with_ann!AB262","v":0},{"$f":"[1]ACS_16_5YR_B18102_with_ann!AC262","v":11},{"$f":"[1]ACS_16_5YR_B18102_with_ann!AD262","v":198},{"$f":"[1]ACS_16_5YR_B18102_with_ann!AE262","v":60},{"$f":"[1]ACS_16_5YR_B18102_with_ann!AF262","v":38},{"$f":"[1]ACS_16_5YR_B18102_with_ann!AG262","v":22},{"$f":"[1]ACS_16_5YR_B18102_with_ann!AH262","v":2},{"$f":"[1]ACS_16_5YR_B18102_with_ann!AI262","v":3},{"$f":"[1]ACS_16_5YR_B18102_with_ann!AJ262","v":36},{"$f":"[1]ACS_16_5YR_B18102_with_ann!AK262","v":22},{"$f":"[1]ACS_16_5YR_B18102_with_ann!AL262","v":33},{"$f":"[1]ACS_16_5YR_B18102_with_ann!AM262","v":16},{"$f":"[1]ACS_16_5YR_B18102_with_ann!AN262","v":11},{"$f":"[1]ACS_16_5YR_B18102_with_ann!AO262","v":9},{"$f":"[1]ACS_16_5YR_B18102_with_ann!AP262","v":22},{"$f":"[1]ACS_16_5YR_B18102_with_ann!AQ262","v":13},{"$f":"[1]ACS_16_5YR_B18102_with_ann!AR262","v":440},{"$f":"[1]ACS_16_5YR_B18102_with_ann!AS262","v":156},{"$f":"[1]ACS_16_5YR_B18102_with_ann!AT262","v":12},{"$f":"[1]ACS_16_5YR_B18102_with_ann!AU262","v":11},{"$f":"[1]ACS_16_5YR_B18102_with_ann!AV262","v":0},{"$f":"[1]ACS_16_5YR_B18102_with_ann!AW262","v":11},{"$f":"[1]ACS_16_5YR_B18102_with_ann!AX262","v":12},{"$f":"[1]ACS_16_5YR_B18102_with_ann!AY262","v":11},{"$f":"[1]ACS_16_5YR_B18102_with_ann!AZ262","v":65},{"$f":"[1]ACS_16_5YR_B18102_with_ann!BA262","v":34},{"$f":"[1]ACS_16_5YR_B18102_with_ann!BB262","v":0},{"$f":"[1]ACS_16_5YR_B18102_with_ann!BC262","v":11},{"$f":"[1]ACS_16_5YR_B18102_with_ann!BD262","v":65},{"$f":"[1]ACS_16_5YR_B18102_with_ann!BE262","v":34},{"$f":"[1]ACS_16_5YR_B18102_with_ann!BF263","v":69},{"$f":"[1]ACS_16_5YR_B18102_with_ann!BG263","v":34},{"$f":"[1]ACS_16_5YR_B18102_with_ann!BH263","v":0},{"$f":"[1]ACS_16_5YR_B18102_with_ann!BI263","v":11},{"$f":"[1]ACS_16_5YR_B18102_with_ann!BJ263","v":69},{"$f":"[1]ACS_16_5YR_B18102_with_ann!BK263","v":34},{"$f":"[1]ACS_16_5YR_B18102_with_ann!BL263","v":117},{"$f":"[1]ACS_16_5YR_B18102_with_ann!BM263","v":33},{"$f":"[1]ACS_16_5YR_B18102_with_ann!BN263","v":2},{"$f":"[1]ACS_16_5YR_B18102_with_ann!BO263","v":3},{"$f":"[1]ACS_16_5YR_B18102_with_ann!BP263","v":115},{"$f":"[1]ACS_16_5YR_B18102_with_ann!BQ263","v":33},{"$f":"[1]ACS_16_5YR_B18102_with_ann!BR263","v":49},{"$f":"[1]ACS_16_5YR_B18102_with_ann!BS263","v":21},{"$f":"[1]ACS_16_5YR_B18102_with_ann!BT263","v":5},{"$f":"[1]ACS_16_5YR_B18102_with_ann!BU263","v":5},{"$f":"[1]ACS_16_5YR_B18102_with_ann!BV263","v":44},{"$f":"[1]ACS_16_5YR_B18102_with_ann!BW263","v":21},{"$f":"[1]ACS_16_5YR_B18102_with_ann!BX263","v":29},{"$f":"[1]ACS_16_5YR_B18102_with_ann!BY263","v":13},{"$f":"[1]ACS_16_5YR_B18102_with_ann!BZ263","v":7},{"$f":"[1]ACS_16_5YR_B18102_with_ann!CA263","v":6},{"$f":"[1]ACS_16_5YR_B18102_with_ann!CB263","v":22},{"$f":"[1]ACS_16_5YR_B18102_with_ann!CC263","v":11}]
["0600000US3301930500",3301930500,"060","Goshen",{"$f":"[1]ACS_16_5YR_B18102_with_ann!D263","v":680},{"$f":"[1]ACS_16_5YR_B18102_with_ann!E263","v":109},{"$f":"[1]ACS_16_5YR_B18102_with_ann!F263","v":346},{"$f":"[1]ACS_16_5YR_B18102_with_ann!G263","v":70},{"$f":"[1]ACS_16_5YR_B18102_with_ann!H263","v":18},{"$f":"[1]ACS_16_5YR_B18102_with_ann!I263","v":14},{"$f":"[1]ACS_16_5YR_B18102_with_ann!J263","v":0},{"$f":"[1]ACS_16_5YR_B18102_with_ann!K263","v":11},{"$f":"[1]ACS_16_5YR_B18102_with_ann!L263","v":18},{"$f":"[1]ACS_16_5YR_B18102_with_ann!M263","v":14},{"$f":"[1]ACS_16_5YR_B18102_with_ann!N263","v":49},{"$f":"[1]ACS_16_5YR_B18102_with_ann!O263","v":27},{"$f":"[1]ACS_16_5YR_B18102_with_ann!P263","v":0},{"$f":"[1]ACS_16_5YR_B18102_with_ann!Q263","v":11},{"$f":"[1]ACS_16_5YR_B18102_with_ann!R263","v":49},{"$f":"[1]ACS_16_5YR_B18102_with_ann!S263","v":27},{"$f":"[1]ACS_16_5YR_B18102_with_ann!T263","v":43},{"$f":"[1]ACS_16_5YR_B18102_with_ann!U263","v":21},{"$f":"[1]ACS_16_5YR_B18102_with_ann!V263","v":2},{"$f":"[1]ACS_16_5YR_B18102_with_ann!W263","v":3},{"$f":"[1]ACS_16_5YR_B18102_with_ann!X263","v":41},{"$f":"[1]ACS_16_5YR_B18102_with_ann!Y263","v":21},{"$f":"[1]ACS_16_5YR_B18102_with_ann!Z263","v":157},{"$f":"[1]ACS_16_5YR_B18102_with_ann!AA263","v":41},{"$f":"[1]ACS_16_5YR_B18102_with_ann!AB263","v":4},{"$f":"[1]ACS_16_5YR_B18102_with_ann!AC263","v":5},{"$f":"[1]ACS_16_5YR_B18102_with_ann!AD263","v":153},{"$f":"[1]ACS_16_5YR_B18102_with_ann!AE263","v":41},{"$f":"[1]ACS_16_5YR_B18102_with_ann!AF263","v":59},{"$f":"[1]ACS_16_5YR_B18102_with_ann!AG263","v":26},{"$f":"[1]ACS_16_5YR_B18102_with_ann!AH263","v":6},{"$f":"[1]ACS_16_5YR_B18102_with_ann!AI263","v":6},{"$f":"[1]ACS_16_5YR_B18102_with_ann!AJ263","v":53},{"$f":"[1]ACS_16_5YR_B18102_with_ann!AK263","v":25},{"$f":"[1]ACS_16_5YR_B18102_with_ann!AL263","v":20},{"$f":"[1]ACS_16_5YR_B18102_with_ann!AM263","v":14},{"$f":"[1]ACS_16_5YR_B18102_with_ann!AN263","v":1},{"$f":"[1]ACS_16_5YR_B18102_with_ann!AO263","v":3},{"$f":"[1]ACS_16_5YR_B18102_with_ann!AP263","v":19},{"$f":"[1]ACS_16_5YR_B18102_with_ann!AQ263","v":14},{"$f":"[1]ACS_16_5YR_B18102_with_ann!AR263","v":334},{"$f":"[1]ACS_16_5YR_B18102_with_ann!AS263","v":59},{"$f":"[1]ACS_16_5YR_B18102_with_ann!AT263","v":21},{"$f":"[1]ACS_16_5YR_B18102_with_ann!AU263","v":14},{"$f":"[1]ACS_16_5YR_B18102_with_ann!AV263","v":0},{"$f":"[1]ACS_16_5YR_B18102_with_ann!AW263","v":11},{"$f":"[1]ACS_16_5YR_B18102_with_ann!AX263","v":21},{"$f":"[1]ACS_16_5YR_B18102_with_ann!AY263","v":14},{"$f":"[1]ACS_16_5YR_B18102_with_ann!AZ263","v":49},{"$f":"[1]ACS_16_5YR_B18102_with_ann!BA263","v":25},{"$f":"[1]ACS_16_5YR_B18102_with_ann!BB263","v":0},{"$f":"[1]ACS_16_5YR_B18102_with_ann!BC263","v":11},{"$f":"[1]ACS_16_5YR_B18102_with_ann!BD263","v":49},{"$f":"[1]ACS_16_5YR_B18102_with_ann!BE263","v":25},{"$f":"[1]ACS_16_5YR_B18102_with_ann!BF264","v":114},{"$f":"[1]ACS_16_5YR_B18102_with_ann!BG264","v":98},{"$f":"[1]ACS_16_5YR_B18102_with_ann!BH264","v":0},{"$f":"[1]ACS_16_5YR_B18102_with_ann!BI264","v":11},{"$f":"[1]ACS_16_5YR_B18102_with_ann!BJ264","v":114},{"$f":"[1]ACS_16_5YR_B18102_with_ann!BK264","v":98},{"$f":"[1]ACS_16_5YR_B18102_with_ann!BL264","v":896},{"$f":"[1]ACS_16_5YR_B18102_with_ann!BM264","v":131},{"$f":"[1]ACS_16_5YR_B18102_with_ann!BN264","v":0},{"$f":"[1]ACS_16_5YR_B18102_with_ann!BO264","v":11},{"$f":"[1]ACS_16_5YR_B18102_with_ann!BP264","v":896},{"$f":"[1]ACS_16_5YR_B18102_with_ann!BQ264","v":131},{"$f":"[1]ACS_16_5YR_B18102_with_ann!BR264","v":139},{"$f":"[1]ACS_16_5YR_B18102_with_ann!BS264","v":53},{"$f":"[1]ACS_16_5YR_B18102_with_ann!BT264","v":29},{"$f":"[1]ACS_16_5YR_B18102_with_ann!BU264","v":32},{"$f":"[1]ACS_16_5YR_B18102_with_ann!BV264","v":110},{"$f":"[1]ACS_16_5YR_B18102_with_ann!BW264","v":53},{"$f":"[1]ACS_16_5YR_B18102_with_ann!BX264","v":164},{"$f":"[1]ACS_16_5YR_B18102_with_ann!BY264","v":75},{"$f":"[1]ACS_16_5YR_B18102_with_ann!BZ264","v":28},{"$f":"[1]ACS_16_5YR_B18102_with_ann!CA264","v":29},{"$f":"[1]ACS_16_5YR_B18102_with_ann!CB264","v":136},{"$f":"[1]ACS_16_5YR_B18102_with_ann!CC264","v":69}]
["0600000US3301931220",3301931220,"060","Grantham",{"$f":"[1]ACS_16_5YR_B18102_with_ann!D264","v":2945},{"$f":"[1]ACS_16_5YR_B18102_with_ann!E264","v":14},{"$f":"[1]ACS_16_5YR_B18102_with_ann!F264","v":1382},{"$f":"[1]ACS_16_5YR_B18102_with_ann!G264","v":143},{"$f":"[1]ACS_16_5YR_B18102_with_ann!H264","v":0},{"$f":"[1]ACS_16_5YR_B18102_with_ann!I264","v":11},{"$f":"[1]ACS_16_5YR_B18102_with_ann!J264","v":0},{"$f":"[1]ACS_16_5YR_B18102_with_ann!K264","v":11},{"$f":"[1]ACS_16_5YR_B18102_with_ann!L264","v":0},{"$f":"[1]ACS_16_5YR_B18102_with_ann!M264","v":11},{"$f":"[1]ACS_16_5YR_B18102_with_ann!N264","v":271},{"$f":"[1]ACS_16_5YR_B18102_with_ann!O264","v":92},{"$f":"[1]ACS_16_5YR_B18102_with_ann!P264","v":41},{"$f":"[1]ACS_16_5YR_B18102_with_ann!Q264","v":61},{"$f":"[1]ACS_16_5YR_B18102_with_ann!R264","v":230},{"$f":"[1]ACS_16_5YR_B18102_with_ann!S264","v":84},{"$f":"[1]ACS_16_5YR_B18102_with_ann!T264","v":148},{"$f":"[1]ACS_16_5YR_B18102_with_ann!U264","v":73},{"$f":"[1]ACS_16_5YR_B18102_with_ann!V264","v":0},{"$f":"[1]ACS_16_5YR_B18102_with_ann!W264","v":11},{"$f":"[1]ACS_16_5YR_B18102_with_ann!X264","v":148},{"$f":"[1]ACS_16_5YR_B18102_with_ann!Y264","v":73},{"$f":"[1]ACS_16_5YR_B18102_with_ann!Z264","v":613},{"$f":"[1]ACS_16_5YR_B18102_with_ann!AA264","v":124},{"$f":"[1]ACS_16_5YR_B18102_with_ann!AB264","v":82},{"$f":"[1]ACS_16_5YR_B18102_with_ann!AC264","v":79},{"$f":"[1]ACS_16_5YR_B18102_with_ann!AD264","v":531},{"$f":"[1]ACS_16_5YR_B18102_with_ann!AE264","v":134},{"$f":"[1]ACS_16_5YR_B18102_with_ann!AF264","v":156},{"$f":"[1]ACS_16_5YR_B18102_with_ann!AG264","v":69},{"$f":"[1]ACS_16_5YR_B18102_with_ann!AH264","v":0},{"$f":"[1]ACS_16_5YR_B18102_with_ann!AI264","v":11},{"$f":"[1]ACS_16_5YR_B18102_with_ann!AJ264","v":156},{"$f":"[1]ACS_16_5YR_B18102_with_ann!AK264","v":69},{"$f":"[1]ACS_16_5YR_B18102_with_ann!AL264","v":194},{"$f":"[1]ACS_16_5YR_B18102_with_ann!AM264","v":86},{"$f":"[1]ACS_16_5YR_B18102_with_ann!AN264","v":28},{"$f":"[1]ACS_16_5YR_B18102_with_ann!AO264","v":30},{"$f":"[1]ACS_16_5YR_B18102_with_ann!AP264","v":166},{"$f":"[1]ACS_16_5YR_B18102_with_ann!AQ264","v":82},{"$f":"[1]ACS_16_5YR_B18102_with_ann!AR264","v":1563},{"$f":"[1]ACS_16_5YR_B18102_with_ann!AS264","v":142},{"$f":"[1]ACS_16_5YR_B18102_with_ann!AT264","v":0},{"$f":"[1]ACS_16_5YR_B18102_with_ann!AU264","v":11},{"$f":"[1]ACS_16_5YR_B18102_with_ann!AV264","v":0},{"$f":"[1]ACS_16_5YR_B18102_with_ann!AW264","v":11},{"$f":"[1]ACS_16_5YR_B18102_with_ann!AX264","v":0},{"$f":"[1]ACS_16_5YR_B18102_with_ann!AY264","v":11},{"$f":"[1]ACS_16_5YR_B18102_with_ann!AZ264","v":250},{"$f":"[1]ACS_16_5YR_B18102_with_ann!BA264","v":125},{"$f":"[1]ACS_16_5YR_B18102_with_ann!BB264","v":0},{"$f":"[1]ACS_16_5YR_B18102_with_ann!BC264","v":11},{"$f":"[1]ACS_16_5YR_B18102_with_ann!BD264","v":250},{"$f":"[1]ACS_16_5YR_B18102_with_ann!BE264","v":125},{"$f":"[1]ACS_16_5YR_B18102_with_ann!BF265","v":69},{"$f":"[1]ACS_16_5YR_B18102_with_ann!BG265","v":25},{"$f":"[1]ACS_16_5YR_B18102_with_ann!BH265","v":2},{"$f":"[1]ACS_16_5YR_B18102_with_ann!BI265","v":3},{"$f":"[1]ACS_16_5YR_B18102_with_ann!BJ265","v":67},{"$f":"[1]ACS_16_5YR_B18102_with_ann!BK265","v":25},{"$f":"[1]ACS_16_5YR_B18102_with_ann!BL265","v":174},{"$f":"[1]ACS_16_5YR_B18102_with_ann!BM265","v":41},{"$f":"[1]ACS_16_5YR_B18102_with_ann!BN265","v":7},{"$f":"[1]ACS_16_5YR_B18102_with_ann!BO265","v":10},{"$f":"[1]ACS_16_5YR_B18102_with_ann!BP265","v":167},{"$f":"[1]ACS_16_5YR_B18102_with_ann!BQ265","v":39},{"$f":"[1]ACS_16_5YR_B18102_with_ann!BR265","v":35},{"$f":"[1]ACS_16_5YR_B18102_with_ann!BS265","v":11},{"$f":"[1]ACS_16_5YR_B18102_with_ann!BT265","v":6},{"$f":"[1]ACS_16_5YR_B18102_with_ann!BU265","v":6},{"$f":"[1]ACS_16_5YR_B18102_with_ann!BV265","v":29},{"$f":"[1]ACS_16_5YR_B18102_with_ann!BW265","v":10},{"$f":"[1]ACS_16_5YR_B18102_with_ann!BX265","v":15},{"$f":"[1]ACS_16_5YR_B18102_with_ann!BY265","v":8},{"$f":"[1]ACS_16_5YR_B18102_with_ann!BZ265","v":4},{"$f":"[1]ACS_16_5YR_B18102_with_ann!CA265","v":4},{"$f":"[1]ACS_16_5YR_B18102_with_ann!CB265","v":11},{"$f":"[1]ACS_16_5YR_B18102_with_ann!CC265","v":7}]
["0600000US3301940900",3301940900,"060","Langdon",{"$f":"[1]ACS_16_5YR_B18102_with_ann!D265","v":712},{"$f":"[1]ACS_16_5YR_B18102_with_ann!E265","v":145},{"$f":"[1]ACS_16_5YR_B18102_with_ann!F265","v":342},{"$f":"[1]ACS_16_5YR_B18102_with_ann!G265","v":85},{"$f":"[1]ACS_16_5YR_B18102_with_ann!H265","v":16},{"$f":"[1]ACS_16_5YR_B18102_with_ann!I265","v":14},{"$f":"[1]ACS_16_5YR_B18102_with_ann!J265","v":0},{"$f":"[1]ACS_16_5YR_B18102_with_ann!K265","v":11},{"$f":"[1]ACS_16_5YR_B18102_with_ann!L265","v":16},{"$f":"[1]ACS_16_5YR_B18102_with_ann!M265","v":14},{"$f":"[1]ACS_16_5YR_B18102_with_ann!N265","v":76},{"$f":"[1]ACS_16_5YR_B18102_with_ann!O265","v":46},{"$f":"[1]ACS_16_5YR_B18102_with_ann!P265","v":0},{"$f":"[1]ACS_16_5YR_B18102_with_ann!Q265","v":11},{"$f":"[1]ACS_16_5YR_B18102_with_ann!R265","v":76},{"$f":"[1]ACS_16_5YR_B18102_with_ann!S265","v":46},{"$f":"[1]ACS_16_5YR_B18102_with_ann!T265","v":53},{"$f":"[1]ACS_16_5YR_B18102_with_ann!U265","v":27},{"$f":"[1]ACS_16_5YR_B18102_with_ann!V265","v":0},{"$f":"[1]ACS_16_5YR_B18102_with_ann!W265","v":11},{"$f":"[1]ACS_16_5YR_B18102_with_ann!X265","v":53},{"$f":"[1]ACS_16_5YR_B18102_with_ann!Y265","v":27},{"$f":"[1]ACS_16_5YR_B18102_with_ann!Z265","v":143},{"$f":"[1]ACS_16_5YR_B18102_with_ann!AA265","v":40},{"$f":"[1]ACS_16_5YR_B18102_with_ann!AB265","v":5},{"$f":"[1]ACS_16_5YR_B18102_with_ann!AC265","v":5},{"$f":"[1]ACS_16_5YR_B18102_with_ann!AD265","v":138},{"$f":"[1]ACS_16_5YR_B18102_with_ann!AE265","v":39},{"$f":"[1]ACS_16_5YR_B18102_with_ann!AF265","v":39},{"$f":"[1]ACS_16_5YR_B18102_with_ann!AG265","v":14},{"$f":"[1]ACS_16_5YR_B18102_with_ann!AH265","v":4},{"$f":"[1]ACS_16_5YR_B18102_with_ann!AI265","v":6},{"$f":"[1]ACS_16_5YR_B18102_with_ann!AJ265","v":35},{"$f":"[1]ACS_16_5YR_B18102_with_ann!AK265","v":15},{"$f":"[1]ACS_16_5YR_B18102_with_ann!AL265","v":15},{"$f":"[1]ACS_16_5YR_B18102_with_ann!AM265","v":9},{"$f":"[1]ACS_16_5YR_B18102_with_ann!AN265","v":7},{"$f":"[1]ACS_16_5YR_B18102_with_ann!AO265","v":5},{"$f":"[1]ACS_16_5YR_B18102_with_ann!AP265","v":8},{"$f":"[1]ACS_16_5YR_B18102_with_ann!AQ265","v":6},{"$f":"[1]ACS_16_5YR_B18102_with_ann!AR265","v":370},{"$f":"[1]ACS_16_5YR_B18102_with_ann!AS265","v":73},{"$f":"[1]ACS_16_5YR_B18102_with_ann!AT265","v":16},{"$f":"[1]ACS_16_5YR_B18102_with_ann!AU265","v":13},{"$f":"[1]ACS_16_5YR_B18102_with_ann!AV265","v":0},{"$f":"[1]ACS_16_5YR_B18102_with_ann!AW265","v":11},{"$f":"[1]ACS_16_5YR_B18102_with_ann!AX265","v":16},{"$f":"[1]ACS_16_5YR_B18102_with_ann!AY265","v":13},{"$f":"[1]ACS_16_5YR_B18102_with_ann!AZ265","v":61},{"$f":"[1]ACS_16_5YR_B18102_with_ann!BA265","v":42},{"$f":"[1]ACS_16_5YR_B18102_with_ann!BB265","v":0},{"$f":"[1]ACS_16_5YR_B18102_with_ann!BC265","v":11},{"$f":"[1]ACS_16_5YR_B18102_with_ann!BD265","v":61},{"$f":"[1]ACS_16_5YR_B18102_with_ann!BE265","v":42},{"$f":"[1]ACS_16_5YR_B18102_with_ann!BF266","v":54},{"$f":"[1]ACS_16_5YR_B18102_with_ann!BG266","v":24},{"$f":"[1]ACS_16_5YR_B18102_with_ann!BH266","v":3},{"$f":"[1]ACS_16_5YR_B18102_with_ann!BI266","v":5},{"$f":"[1]ACS_16_5YR_B18102_with_ann!BJ266","v":51},{"$f":"[1]ACS_16_5YR_B18102_with_ann!BK266","v":23},{"$f":"[1]ACS_16_5YR_B18102_with_ann!BL266","v":191},{"$f":"[1]ACS_16_5YR_B18102_with_ann!BM266","v":52},{"$f":"[1]ACS_16_5YR_B18102_with_ann!BN266","v":10},{"$f":"[1]ACS_16_5YR_B18102_with_ann!BO266","v":14},{"$f":"[1]ACS_16_5YR_B18102_with_ann!BP266","v":181},{"$f":"[1]ACS_16_5YR_B18102_with_ann!BQ266","v":51},{"$f":"[1]ACS_16_5YR_B18102_with_ann!BR266","v":51},{"$f":"[1]ACS_16_5YR_B18102_with_ann!BS266","v":23},{"$f":"[1]ACS_16_5YR_B18102_with_ann!BT266","v":0},{"$f":"[1]ACS_16_5YR_B18102_with_ann!BU266","v":11},{"$f":"[1]ACS_16_5YR_B18102_with_ann!BV266","v":51},{"$f":"[1]ACS_16_5YR_B18102_with_ann!BW266","v":23},{"$f":"[1]ACS_16_5YR_B18102_with_ann!BX266","v":39},{"$f":"[1]ACS_16_5YR_B18102_with_ann!BY266","v":26},{"$f":"[1]ACS_16_5YR_B18102_with_ann!BZ266","v":7},{"$f":"[1]ACS_16_5YR_B18102_with_ann!CA266","v":8},{"$f":"[1]ACS_16_5YR_B18102_with_ann!CB266","v":32},{"$f":"[1]ACS_16_5YR_B18102_with_ann!CC266","v":25}]
["0600000US3301941700",3301941700,"060","Lempster",{"$f":"[1]ACS_16_5YR_B18102_with_ann!D266","v":923},{"$f":"[1]ACS_16_5YR_B18102_with_ann!E266","v":176},{"$f":"[1]ACS_16_5YR_B18102_with_ann!F266","v":432},{"$f":"[1]ACS_16_5YR_B18102_with_ann!G266","v":77},{"$f":"[1]ACS_16_5YR_B18102_with_ann!H266","v":31},{"$f":"[1]ACS_16_5YR_B18102_with_ann!I266","v":21},{"$f":"[1]ACS_16_5YR_B18102_with_ann!J266","v":3},{"$f":"[1]ACS_16_5YR_B18102_with_ann!K266","v":4},{"$f":"[1]ACS_16_5YR_B18102_with_ann!L266","v":28},{"$f":"[1]ACS_16_5YR_B18102_with_ann!M266","v":21},{"$f":"[1]ACS_16_5YR_B18102_with_ann!N266","v":36},{"$f":"[1]ACS_16_5YR_B18102_with_ann!O266","v":23},{"$f":"[1]ACS_16_5YR_B18102_with_ann!P266","v":0},{"$f":"[1]ACS_16_5YR_B18102_with_ann!Q266","v":11},{"$f":"[1]ACS_16_5YR_B18102_with_ann!R266","v":36},{"$f":"[1]ACS_16_5YR_B18102_with_ann!S266","v":23},{"$f":"[1]ACS_16_5YR_B18102_with_ann!T266","v":34},{"$f":"[1]ACS_16_5YR_B18102_with_ann!U266","v":16},{"$f":"[1]ACS_16_5YR_B18102_with_ann!V266","v":0},{"$f":"[1]ACS_16_5YR_B18102_with_ann!W266","v":11},{"$f":"[1]ACS_16_5YR_B18102_with_ann!X266","v":34},{"$f":"[1]ACS_16_5YR_B18102_with_ann!Y266","v":16},{"$f":"[1]ACS_16_5YR_B18102_with_ann!Z266","v":249},{"$f":"[1]ACS_16_5YR_B18102_with_ann!AA266","v":58},{"$f":"[1]ACS_16_5YR_B18102_with_ann!AB266","v":6},{"$f":"[1]ACS_16_5YR_B18102_with_ann!AC266","v":6},{"$f":"[1]ACS_16_5YR_B18102_with_ann!AD266","v":243},{"$f":"[1]ACS_16_5YR_B18102_with_ann!AE266","v":58},{"$f":"[1]ACS_16_5YR_B18102_with_ann!AF266","v":68},{"$f":"[1]ACS_16_5YR_B18102_with_ann!AG266","v":28},{"$f":"[1]ACS_16_5YR_B18102_with_ann!AH266","v":17},{"$f":"[1]ACS_16_5YR_B18102_with_ann!AI266","v":16},{"$f":"[1]ACS_16_5YR_B18102_with_ann!AJ266","v":51},{"$f":"[1]ACS_16_5YR_B18102_with_ann!AK266","v":25},{"$f":"[1]ACS_16_5YR_B18102_with_ann!AL266","v":14},{"$f":"[1]ACS_16_5YR_B18102_with_ann!AM266","v":11},{"$f":"[1]ACS_16_5YR_B18102_with_ann!AN266","v":6},{"$f":"[1]ACS_16_5YR_B18102_with_ann!AO266","v":6},{"$f":"[1]ACS_16_5YR_B18102_with_ann!AP266","v":8},{"$f":"[1]ACS_16_5YR_B18102_with_ann!AQ266","v":8},{"$f":"[1]ACS_16_5YR_B18102_with_ann!AR266","v":491},{"$f":"[1]ACS_16_5YR_B18102_with_ann!AS266","v":123},{"$f":"[1]ACS_16_5YR_B18102_with_ann!AT266","v":35},{"$f":"[1]ACS_16_5YR_B18102_with_ann!AU266","v":23},{"$f":"[1]ACS_16_5YR_B18102_with_ann!AV266","v":0},{"$f":"[1]ACS_16_5YR_B18102_with_ann!AW266","v":11},{"$f":"[1]ACS_16_5YR_B18102_with_ann!AX266","v":35},{"$f":"[1]ACS_16_5YR_B18102_with_ann!AY266","v":23},{"$f":"[1]ACS_16_5YR_B18102_with_ann!AZ266","v":121},{"$f":"[1]ACS_16_5YR_B18102_with_ann!BA266","v":76},{"$f":"[1]ACS_16_5YR_B18102_with_ann!BB266","v":0},{"$f":"[1]ACS_16_5YR_B18102_with_ann!BC266","v":11},{"$f":"[1]ACS_16_5YR_B18102_with_ann!BD266","v":121},{"$f":"[1]ACS_16_5YR_B18102_with_ann!BE266","v":76},{"$f":"[1]ACS_16_5YR_B18102_with_ann!BF267","v":520},{"$f":"[1]ACS_16_5YR_B18102_with_ann!BG267","v":162},{"$f":"[1]ACS_16_5YR_B18102_with_ann!BH267","v":13},{"$f":"[1]ACS_16_5YR_B18102_with_ann!BI267","v":20},{"$f":"[1]ACS_16_5YR_B18102_with_ann!BJ267","v":507},{"$f":"[1]ACS_16_5YR_B18102_with_ann!BK267","v":162},{"$f":"[1]ACS_16_5YR_B18102_with_ann!BL267","v":1406},{"$f":"[1]ACS_16_5YR_B18102_with_ann!BM267","v":188},{"$f":"[1]ACS_16_5YR_B18102_with_ann!BN267","v":14},{"$f":"[1]ACS_16_5YR_B18102_with_ann!BO267","v":22},{"$f":"[1]ACS_16_5YR_B18102_with_ann!BP267","v":1392},{"$f":"[1]ACS_16_5YR_B18102_with_ann!BQ267","v":188},{"$f":"[1]ACS_16_5YR_B18102_with_ann!BR267","v":312},{"$f":"[1]ACS_16_5YR_B18102_with_ann!BS267","v":130},{"$f":"[1]ACS_16_5YR_B18102_with_ann!BT267","v":12},{"$f":"[1]ACS_16_5YR_B18102_with_ann!BU267","v":20},{"$f":"[1]ACS_16_5YR_B18102_with_ann!BV267","v":300},{"$f":"[1]ACS_16_5YR_B18102_with_ann!BW267","v":128},{"$f":"[1]ACS_16_5YR_B18102_with_ann!BX267","v":285},{"$f":"[1]ACS_16_5YR_B18102_with_ann!BY267","v":103},{"$f":"[1]ACS_16_5YR_B18102_with_ann!BZ267","v":81},{"$f":"[1]ACS_16_5YR_B18102_with_ann!CA267","v":73},{"$f":"[1]ACS_16_5YR_B18102_with_ann!CB267","v":204},{"$f":"[1]ACS_16_5YR_B18102_with_ann!CC267","v":92}]
["0600000US3301952580",3301952580,"060","Newport",{"$f":"[1]ACS_16_5YR_B18102_with_ann!D267","v":6259},{"$f":"[1]ACS_16_5YR_B18102_with_ann!E267","v":51},{"$f":"[1]ACS_16_5YR_B18102_with_ann!F267","v":3230},{"$f":"[1]ACS_16_5YR_B18102_with_ann!G267","v":212},{"$f":"[1]ACS_16_5YR_B18102_with_ann!H267","v":185},{"$f":"[1]ACS_16_5YR_B18102_with_ann!I267","v":95},{"$f":"[1]ACS_16_5YR_B18102_with_ann!J267","v":0},{"$f":"[1]ACS_16_5YR_B18102_with_ann!K267","v":16},{"$f":"[1]ACS_16_5YR_B18102_with_ann!L267","v":185},{"$f":"[1]ACS_16_5YR_B18102_with_ann!M267","v":95},{"$f":"[1]ACS_16_5YR_B18102_with_ann!N267","v":507},{"$f":"[1]ACS_16_5YR_B18102_with_ann!O267","v":185},{"$f":"[1]ACS_16_5YR_B18102_with_ann!P267","v":0},{"$f":"[1]ACS_16_5YR_B18102_with_ann!Q267","v":16},{"$f":"[1]ACS_16_5YR_B18102_with_ann!R267","v":507},{"$f":"[1]ACS_16_5YR_B18102_with_ann!S267","v":185},{"$f":"[1]ACS_16_5YR_B18102_with_ann!T267","v":754},{"$f":"[1]ACS_16_5YR_B18102_with_ann!U267","v":177},{"$f":"[1]ACS_16_5YR_B18102_with_ann!V267","v":0},{"$f":"[1]ACS_16_5YR_B18102_with_ann!W267","v":16},{"$f":"[1]ACS_16_5YR_B18102_with_ann!X267","v":754},{"$f":"[1]ACS_16_5YR_B18102_with_ann!Y267","v":177},{"$f":"[1]ACS_16_5YR_B18102_with_ann!Z267","v":1262},{"$f":"[1]ACS_16_5YR_B18102_with_ann!AA267","v":216},{"$f":"[1]ACS_16_5YR_B18102_with_ann!AB267","v":132},{"$f":"[1]ACS_16_5YR_B18102_with_ann!AC267","v":112},{"$f":"[1]ACS_16_5YR_B18102_with_ann!AD267","v":1130},{"$f":"[1]ACS_16_5YR_B18102_with_ann!AE267","v":207},{"$f":"[1]ACS_16_5YR_B18102_with_ann!AF267","v":405},{"$f":"[1]ACS_16_5YR_B18102_with_ann!AG267","v":161},{"$f":"[1]ACS_16_5YR_B18102_with_ann!AH267","v":12},{"$f":"[1]ACS_16_5YR_B18102_with_ann!AI267","v":19},{"$f":"[1]ACS_16_5YR_B18102_with_ann!AJ267","v":393},{"$f":"[1]ACS_16_5YR_B18102_with_ann!AK267","v":161},{"$f":"[1]ACS_16_5YR_B18102_with_ann!AL267","v":117},{"$f":"[1]ACS_16_5YR_B18102_with_ann!AM267","v":81},{"$f":"[1]ACS_16_5YR_B18102_with_ann!AN267","v":0},{"$f":"[1]ACS_16_5YR_B18102_with_ann!AO267","v":16},{"$f":"[1]ACS_16_5YR_B18102_with_ann!AP267","v":117},{"$f":"[1]ACS_16_5YR_B18102_with_ann!AQ267","v":81},{"$f":"[1]ACS_16_5YR_B18102_with_ann!AR267","v":3029},{"$f":"[1]ACS_16_5YR_B18102_with_ann!AS267","v":217},{"$f":"[1]ACS_16_5YR_B18102_with_ann!AT267","v":100},{"$f":"[1]ACS_16_5YR_B18102_with_ann!AU267","v":62},{"$f":"[1]ACS_16_5YR_B18102_with_ann!AV267","v":0},{"$f":"[1]ACS_16_5YR_B18102_with_ann!AW267","v":16},{"$f":"[1]ACS_16_5YR_B18102_with_ann!AX267","v":100},{"$f":"[1]ACS_16_5YR_B18102_with_ann!AY267","v":62},{"$f":"[1]ACS_16_5YR_B18102_with_ann!AZ267","v":406},{"$f":"[1]ACS_16_5YR_B18102_with_ann!BA267","v":128},{"$f":"[1]ACS_16_5YR_B18102_with_ann!BB267","v":0},{"$f":"[1]ACS_16_5YR_B18102_with_ann!BC267","v":16},{"$f":"[1]ACS_16_5YR_B18102_with_ann!BD267","v":406},{"$f":"[1]ACS_16_5YR_B18102_with_ann!BE267","v":128},{"$f":"[1]ACS_16_5YR_B18102_with_ann!BF268","v":280},{"$f":"[1]ACS_16_5YR_B18102_with_ann!BG268","v":61},{"$f":"[1]ACS_16_5YR_B18102_with_ann!BH268","v":0},{"$f":"[1]ACS_16_5YR_B18102_with_ann!BI268","v":11},{"$f":"[1]ACS_16_5YR_B18102_with_ann!BJ268","v":280},{"$f":"[1]ACS_16_5YR_B18102_with_ann!BK268","v":61},{"$f":"[1]ACS_16_5YR_B18102_with_ann!BL268","v":521},{"$f":"[1]ACS_16_5YR_B18102_with_ann!BM268","v":81},{"$f":"[1]ACS_16_5YR_B18102_with_ann!BN268","v":0},{"$f":"[1]ACS_16_5YR_B18102_with_ann!BO268","v":11},{"$f":"[1]ACS_16_5YR_B18102_with_ann!BP268","v":521},{"$f":"[1]ACS_16_5YR_B18102_with_ann!BQ268","v":81},{"$f":"[1]ACS_16_5YR_B18102_with_ann!BR268","v":181},{"$f":"[1]ACS_16_5YR_B18102_with_ann!BS268","v":56},{"$f":"[1]ACS_16_5YR_B18102_with_ann!BT268","v":5},{"$f":"[1]ACS_16_5YR_B18102_with_ann!BU268","v":7},{"$f":"[1]ACS_16_5YR_B18102_with_ann!BV268","v":176},{"$f":"[1]ACS_16_5YR_B18102_with_ann!BW268","v":56},{"$f":"[1]ACS_16_5YR_B18102_with_ann!BX268","v":60},{"$f":"[1]ACS_16_5YR_B18102_with_ann!BY268","v":32},{"$f":"[1]ACS_16_5YR_B18102_with_ann!BZ268","v":5},{"$f":"[1]ACS_16_5YR_B18102_with_ann!CA268","v":7},{"$f":"[1]ACS_16_5YR_B18102_with_ann!CB268","v":55},{"$f":"[1]ACS_16_5YR_B18102_with_ann!CC268","v":34}]
["0600000US3301962340",3301962340,"060","Plainfield",{"$f":"[1]ACS_16_5YR_B18102_with_ann!D268","v":2555},{"$f":"[1]ACS_16_5YR_B18102_with_ann!E268","v":293},{"$f":"[1]ACS_16_5YR_B18102_with_ann!F268","v":1278},{"$f":"[1]ACS_16_5YR_B18102_with_ann!G268","v":174},{"$f":"[1]ACS_16_5YR_B18102_with_ann!H268","v":32},{"$f":"[1]ACS_16_5YR_B18102_with_ann!I268","v":34},{"$f":"[1]ACS_16_5YR_B18102_with_ann!J268","v":0},{"$f":"[1]ACS_16_5YR_B18102_with_ann!K268","v":11},{"$f":"[1]ACS_16_5YR_B18102_with_ann!L268","v":32},{"$f":"[1]ACS_16_5YR_B18102_with_ann!M268","v":34},{"$f":"[1]ACS_16_5YR_B18102_with_ann!N268","v":230},{"$f":"[1]ACS_16_5YR_B18102_with_ann!O268","v":86},{"$f":"[1]ACS_16_5YR_B18102_with_ann!P268","v":0},{"$f":"[1]ACS_16_5YR_B18102_with_ann!Q268","v":11},{"$f":"[1]ACS_16_5YR_B18102_with_ann!R268","v":230},{"$f":"[1]ACS_16_5YR_B18102_with_ann!S268","v":86},{"$f":"[1]ACS_16_5YR_B18102_with_ann!T268","v":261},{"$f":"[1]ACS_16_5YR_B18102_with_ann!U268","v":84},{"$f":"[1]ACS_16_5YR_B18102_with_ann!V268","v":0},{"$f":"[1]ACS_16_5YR_B18102_with_ann!W268","v":11},{"$f":"[1]ACS_16_5YR_B18102_with_ann!X268","v":261},{"$f":"[1]ACS_16_5YR_B18102_with_ann!Y268","v":84},{"$f":"[1]ACS_16_5YR_B18102_with_ann!Z268","v":521},{"$f":"[1]ACS_16_5YR_B18102_with_ann!AA268","v":71},{"$f":"[1]ACS_16_5YR_B18102_with_ann!AB268","v":27},{"$f":"[1]ACS_16_5YR_B18102_with_ann!AC268","v":19},{"$f":"[1]ACS_16_5YR_B18102_with_ann!AD268","v":494},{"$f":"[1]ACS_16_5YR_B18102_with_ann!AE268","v":73},{"$f":"[1]ACS_16_5YR_B18102_with_ann!AF268","v":178},{"$f":"[1]ACS_16_5YR_B18102_with_ann!AG268","v":57},{"$f":"[1]ACS_16_5YR_B18102_with_ann!AH268","v":11},{"$f":"[1]ACS_16_5YR_B18102_with_ann!AI268","v":11},{"$f":"[1]ACS_16_5YR_B18102_with_ann!AJ268","v":167},{"$f":"[1]ACS_16_5YR_B18102_with_ann!AK268","v":56},{"$f":"[1]ACS_16_5YR_B18102_with_ann!AL268","v":56},{"$f":"[1]ACS_16_5YR_B18102_with_ann!AM268","v":35},{"$f":"[1]ACS_16_5YR_B18102_with_ann!AN268","v":5},{"$f":"[1]ACS_16_5YR_B18102_with_ann!AO268","v":7},{"$f":"[1]ACS_16_5YR_B18102_with_ann!AP268","v":51},{"$f":"[1]ACS_16_5YR_B18102_with_ann!AQ268","v":34},{"$f":"[1]ACS_16_5YR_B18102_with_ann!AR268","v":1277},{"$f":"[1]ACS_16_5YR_B18102_with_ann!AS268","v":157},{"$f":"[1]ACS_16_5YR_B18102_with_ann!AT268","v":50},{"$f":"[1]ACS_16_5YR_B18102_with_ann!AU268","v":55},{"$f":"[1]ACS_16_5YR_B18102_with_ann!AV268","v":0},{"$f":"[1]ACS_16_5YR_B18102_with_ann!AW268","v":11},{"$f":"[1]ACS_16_5YR_B18102_with_ann!AX268","v":50},{"$f":"[1]ACS_16_5YR_B18102_with_ann!AY268","v":55},{"$f":"[1]ACS_16_5YR_B18102_with_ann!AZ268","v":185},{"$f":"[1]ACS_16_5YR_B18102_with_ann!BA268","v":81},{"$f":"[1]ACS_16_5YR_B18102_with_ann!BB268","v":0},{"$f":"[1]ACS_16_5YR_B18102_with_ann!BC268","v":11},{"$f":"[1]ACS_16_5YR_B18102_with_ann!BD268","v":185},{"$f":"[1]ACS_16_5YR_B18102_with_ann!BE268","v":81},{"$f":"[1]ACS_16_5YR_B18102_with_ann!BF269","v":37},{"$f":"[1]ACS_16_5YR_B18102_with_ann!BG269","v":27},{"$f":"[1]ACS_16_5YR_B18102_with_ann!BH269","v":0},{"$f":"[1]ACS_16_5YR_B18102_with_ann!BI269","v":11},{"$f":"[1]ACS_16_5YR_B18102_with_ann!BJ269","v":37},{"$f":"[1]ACS_16_5YR_B18102_with_ann!BK269","v":27},{"$f":"[1]ACS_16_5YR_B18102_with_ann!BL269","v":241},{"$f":"[1]ACS_16_5YR_B18102_with_ann!BM269","v":64},{"$f":"[1]ACS_16_5YR_B18102_with_ann!BN269","v":6},{"$f":"[1]ACS_16_5YR_B18102_with_ann!BO269","v":7},{"$f":"[1]ACS_16_5YR_B18102_with_ann!BP269","v":235},{"$f":"[1]ACS_16_5YR_B18102_with_ann!BQ269","v":63},{"$f":"[1]ACS_16_5YR_B18102_with_ann!BR269","v":112},{"$f":"[1]ACS_16_5YR_B18102_with_ann!BS269","v":42},{"$f":"[1]ACS_16_5YR_B18102_with_ann!BT269","v":9},{"$f":"[1]ACS_16_5YR_B18102_with_ann!BU269","v":11},{"$f":"[1]ACS_16_5YR_B18102_with_ann!BV269","v":103},{"$f":"[1]ACS_16_5YR_B18102_with_ann!BW269","v":41},{"$f":"[1]ACS_16_5YR_B18102_with_ann!BX269","v":38},{"$f":"[1]ACS_16_5YR_B18102_with_ann!BY269","v":26},{"$f":"[1]ACS_16_5YR_B18102_with_ann!BZ269","v":0},{"$f":"[1]ACS_16_5YR_B18102_with_ann!CA269","v":11},{"$f":"[1]ACS_16_5YR_B18102_with_ann!CB269","v":38},{"$f":"[1]ACS_16_5YR_B18102_with_ann!CC269","v":26}]
["0600000US3301972740",3301972740,"060","Springfield",{"$f":"[1]ACS_16_5YR_B18102_with_ann!D269","v":1084},{"$f":"[1]ACS_16_5YR_B18102_with_ann!E269","v":198},{"$f":"[1]ACS_16_5YR_B18102_with_ann!F269","v":575},{"$f":"[1]ACS_16_5YR_B18102_with_ann!G269","v":112},{"$f":"[1]ACS_16_5YR_B18102_with_ann!H269","v":3},{"$f":"[1]ACS_16_5YR_B18102_with_ann!I269","v":5},{"$f":"[1]ACS_16_5YR_B18102_with_ann!J269","v":0},{"$f":"[1]ACS_16_5YR_B18102_with_ann!K269","v":11},{"$f":"[1]ACS_16_5YR_B18102_with_ann!L269","v":3},{"$f":"[1]ACS_16_5YR_B18102_with_ann!M269","v":5},{"$f":"[1]ACS_16_5YR_B18102_with_ann!N269","v":72},{"$f":"[1]ACS_16_5YR_B18102_with_ann!O269","v":33},{"$f":"[1]ACS_16_5YR_B18102_with_ann!P269","v":0},{"$f":"[1]ACS_16_5YR_B18102_with_ann!Q269","v":11},{"$f":"[1]ACS_16_5YR_B18102_with_ann!R269","v":72},{"$f":"[1]ACS_16_5YR_B18102_with_ann!S269","v":33},{"$f":"[1]ACS_16_5YR_B18102_with_ann!T269","v":103},{"$f":"[1]ACS_16_5YR_B18102_with_ann!U269","v":56},{"$f":"[1]ACS_16_5YR_B18102_with_ann!V269","v":6},{"$f":"[1]ACS_16_5YR_B18102_with_ann!W269","v":9},{"$f":"[1]ACS_16_5YR_B18102_with_ann!X269","v":97},{"$f":"[1]ACS_16_5YR_B18102_with_ann!Y269","v":56},{"$f":"[1]ACS_16_5YR_B18102_with_ann!Z269","v":225},{"$f":"[1]ACS_16_5YR_B18102_with_ann!AA269","v":63},{"$f":"[1]ACS_16_5YR_B18102_with_ann!AB269","v":3},{"$f":"[1]ACS_16_5YR_B18102_with_ann!AC269","v":5},{"$f":"[1]ACS_16_5YR_B18102_with_ann!AD269","v":222},{"$f":"[1]ACS_16_5YR_B18102_with_ann!AE269","v":63},{"$f":"[1]ACS_16_5YR_B18102_with_ann!AF269","v":111},{"$f":"[1]ACS_16_5YR_B18102_with_ann!AG269","v":42},{"$f":"[1]ACS_16_5YR_B18102_with_ann!AH269","v":10},{"$f":"[1]ACS_16_5YR_B18102_with_ann!AI269","v":10},{"$f":"[1]ACS_16_5YR_B18102_with_ann!AJ269","v":101},{"$f":"[1]ACS_16_5YR_B18102_with_ann!AK269","v":41},{"$f":"[1]ACS_16_5YR_B18102_with_ann!AL269","v":61},{"$f":"[1]ACS_16_5YR_B18102_with_ann!AM269","v":35},{"$f":"[1]ACS_16_5YR_B18102_with_ann!AN269","v":7},{"$f":"[1]ACS_16_5YR_B18102_with_ann!AO269","v":8},{"$f":"[1]ACS_16_5YR_B18102_with_ann!AP269","v":54},{"$f":"[1]ACS_16_5YR_B18102_with_ann!AQ269","v":33},{"$f":"[1]ACS_16_5YR_B18102_with_ann!AR269","v":509},{"$f":"[1]ACS_16_5YR_B18102_with_ann!AS269","v":111},{"$f":"[1]ACS_16_5YR_B18102_with_ann!AT269","v":11},{"$f":"[1]ACS_16_5YR_B18102_with_ann!AU269","v":17},{"$f":"[1]ACS_16_5YR_B18102_with_ann!AV269","v":0},{"$f":"[1]ACS_16_5YR_B18102_with_ann!AW269","v":11},{"$f":"[1]ACS_16_5YR_B18102_with_ann!AX269","v":11},{"$f":"[1]ACS_16_5YR_B18102_with_ann!AY269","v":17},{"$f":"[1]ACS_16_5YR_B18102_with_ann!AZ269","v":70},{"$f":"[1]ACS_16_5YR_B18102_with_ann!BA269","v":46},{"$f":"[1]ACS_16_5YR_B18102_with_ann!BB269","v":0},{"$f":"[1]ACS_16_5YR_B18102_with_ann!BC269","v":11},{"$f":"[1]ACS_16_5YR_B18102_with_ann!BD269","v":70},{"$f":"[1]ACS_16_5YR_B18102_with_ann!BE269","v":46},{"$f":"[1]ACS_16_5YR_B18102_with_ann!BF270","v":250},{"$f":"[1]ACS_16_5YR_B18102_with_ann!BG270","v":74},{"$f":"[1]ACS_16_5YR_B18102_with_ann!BH270","v":0},{"$f":"[1]ACS_16_5YR_B18102_with_ann!BI270","v":11},{"$f":"[1]ACS_16_5YR_B18102_with_ann!BJ270","v":250},{"$f":"[1]ACS_16_5YR_B18102_with_ann!BK270","v":74},{"$f":"[1]ACS_16_5YR_B18102_with_ann!BL270","v":734},{"$f":"[1]ACS_16_5YR_B18102_with_ann!BM270","v":118},{"$f":"[1]ACS_16_5YR_B18102_with_ann!BN270","v":0},{"$f":"[1]ACS_16_5YR_B18102_with_ann!BO270","v":11},{"$f":"[1]ACS_16_5YR_B18102_with_ann!BP270","v":734},{"$f":"[1]ACS_16_5YR_B18102_with_ann!BQ270","v":118},{"$f":"[1]ACS_16_5YR_B18102_with_ann!BR270","v":233},{"$f":"[1]ACS_16_5YR_B18102_with_ann!BS270","v":69},{"$f":"[1]ACS_16_5YR_B18102_with_ann!BT270","v":0},{"$f":"[1]ACS_16_5YR_B18102_with_ann!BU270","v":11},{"$f":"[1]ACS_16_5YR_B18102_with_ann!BV270","v":233},{"$f":"[1]ACS_16_5YR_B18102_with_ann!BW270","v":69},{"$f":"[1]ACS_16_5YR_B18102_with_ann!BX270","v":182},{"$f":"[1]ACS_16_5YR_B18102_with_ann!BY270","v":81},{"$f":"[1]ACS_16_5YR_B18102_with_ann!BZ270","v":33},{"$f":"[1]ACS_16_5YR_B18102_with_ann!CA270","v":52},{"$f":"[1]ACS_16_5YR_B18102_with_ann!CB270","v":149},{"$f":"[1]ACS_16_5YR_B18102_with_ann!CC270","v":64}]
["0600000US3301975060",3301975060,"060","Sunapee",{"$f":"[1]ACS_16_5YR_B18102_with_ann!D270","v":3449},{"$f":"[1]ACS_16_5YR_B18102_with_ann!E270","v":19},{"$f":"[1]ACS_16_5YR_B18102_with_ann!F270","v":1792},{"$f":"[1]ACS_16_5YR_B18102_with_ann!G270","v":129},{"$f":"[1]ACS_16_5YR_B18102_with_ann!H270","v":97},{"$f":"[1]ACS_16_5YR_B18102_with_ann!I270","v":57},{"$f":"[1]ACS_16_5YR_B18102_with_ann!J270","v":0},{"$f":"[1]ACS_16_5YR_B18102_with_ann!K270","v":11},{"$f":"[1]ACS_16_5YR_B18102_with_ann!L270","v":97},{"$f":"[1]ACS_16_5YR_B18102_with_ann!M270","v":57},{"$f":"[1]ACS_16_5YR_B18102_with_ann!N270","v":337},{"$f":"[1]ACS_16_5YR_B18102_with_ann!O270","v":95},{"$f":"[1]ACS_16_5YR_B18102_with_ann!P270","v":0},{"$f":"[1]ACS_16_5YR_B18102_with_ann!Q270","v":11},{"$f":"[1]ACS_16_5YR_B18102_with_ann!R270","v":337},{"$f":"[1]ACS_16_5YR_B18102_with_ann!S270","v":95},{"$f":"[1]ACS_16_5YR_B18102_with_ann!T270","v":290},{"$f":"[1]ACS_16_5YR_B18102_with_ann!U270","v":93},{"$f":"[1]ACS_16_5YR_B18102_with_ann!V270","v":0},{"$f":"[1]ACS_16_5YR_B18102_with_ann!W270","v":11},{"$f":"[1]ACS_16_5YR_B18102_with_ann!X270","v":290},{"$f":"[1]ACS_16_5YR_B18102_with_ann!Y270","v":93},{"$f":"[1]ACS_16_5YR_B18102_with_ann!Z270","v":777},{"$f":"[1]ACS_16_5YR_B18102_with_ann!AA270","v":126},{"$f":"[1]ACS_16_5YR_B18102_with_ann!AB270","v":0},{"$f":"[1]ACS_16_5YR_B18102_with_ann!AC270","v":11},{"$f":"[1]ACS_16_5YR_B18102_with_ann!AD270","v":777},{"$f":"[1]ACS_16_5YR_B18102_with_ann!AE270","v":126},{"$f":"[1]ACS_16_5YR_B18102_with_ann!AF270","v":176},{"$f":"[1]ACS_16_5YR_B18102_with_ann!AG270","v":58},{"$f":"[1]ACS_16_5YR_B18102_with_ann!AH270","v":35},{"$f":"[1]ACS_16_5YR_B18102_with_ann!AI270","v":36},{"$f":"[1]ACS_16_5YR_B18102_with_ann!AJ270","v":141},{"$f":"[1]ACS_16_5YR_B18102_with_ann!AK270","v":46},{"$f":"[1]ACS_16_5YR_B18102_with_ann!AL270","v":115},{"$f":"[1]ACS_16_5YR_B18102_with_ann!AM270","v":59},{"$f":"[1]ACS_16_5YR_B18102_with_ann!AN270","v":34},{"$f":"[1]ACS_16_5YR_B18102_with_ann!AO270","v":40},{"$f":"[1]ACS_16_5YR_B18102_with_ann!AP270","v":81},{"$f":"[1]ACS_16_5YR_B18102_with_ann!AQ270","v":47},{"$f":"[1]ACS_16_5YR_B18102_with_ann!AR270","v":1657},{"$f":"[1]ACS_16_5YR_B18102_with_ann!AS270","v":127},{"$f":"[1]ACS_16_5YR_B18102_with_ann!AT270","v":61},{"$f":"[1]ACS_16_5YR_B18102_with_ann!AU270","v":39},{"$f":"[1]ACS_16_5YR_B18102_with_ann!AV270","v":0},{"$f":"[1]ACS_16_5YR_B18102_with_ann!AW270","v":11},{"$f":"[1]ACS_16_5YR_B18102_with_ann!AX270","v":61},{"$f":"[1]ACS_16_5YR_B18102_with_ann!AY270","v":39},{"$f":"[1]ACS_16_5YR_B18102_with_ann!AZ270","v":197},{"$f":"[1]ACS_16_5YR_B18102_with_ann!BA270","v":84},{"$f":"[1]ACS_16_5YR_B18102_with_ann!BB270","v":0},{"$f":"[1]ACS_16_5YR_B18102_with_ann!BC270","v":11},{"$f":"[1]ACS_16_5YR_B18102_with_ann!BD270","v":197},{"$f":"[1]ACS_16_5YR_B18102_with_ann!BE270","v":84},{"$f":"[1]ACS_16_5YR_B18102_with_ann!BF271","v":111},{"$f":"[1]ACS_16_5YR_B18102_with_ann!BG271","v":46},{"$f":"[1]ACS_16_5YR_B18102_with_ann!BH271","v":5},{"$f":"[1]ACS_16_5YR_B18102_with_ann!BI271","v":8},{"$f":"[1]ACS_16_5YR_B18102_with_ann!BJ271","v":106},{"$f":"[1]ACS_16_5YR_B18102_with_ann!BK271","v":45},{"$f":"[1]ACS_16_5YR_B18102_with_ann!BL271","v":338},{"$f":"[1]ACS_16_5YR_B18102_with_ann!BM271","v":45},{"$f":"[1]ACS_16_5YR_B18102_with_ann!BN271","v":14},{"$f":"[1]ACS_16_5YR_B18102_with_ann!BO271","v":18},{"$f":"[1]ACS_16_5YR_B18102_with_ann!BP271","v":324},{"$f":"[1]ACS_16_5YR_B18102_with_ann!BQ271","v":44},{"$f":"[1]ACS_16_5YR_B18102_with_ann!BR271","v":113},{"$f":"[1]ACS_16_5YR_B18102_with_ann!BS271","v":29},{"$f":"[1]ACS_16_5YR_B18102_with_ann!BT271","v":3},{"$f":"[1]ACS_16_5YR_B18102_with_ann!BU271","v":4},{"$f":"[1]ACS_16_5YR_B18102_with_ann!BV271","v":110},{"$f":"[1]ACS_16_5YR_B18102_with_ann!BW271","v":28},{"$f":"[1]ACS_16_5YR_B18102_with_ann!BX271","v":39},{"$f":"[1]ACS_16_5YR_B18102_with_ann!BY271","v":15},{"$f":"[1]ACS_16_5YR_B18102_with_ann!BZ271","v":0},{"$f":"[1]ACS_16_5YR_B18102_with_ann!CA271","v":11},{"$f":"[1]ACS_16_5YR_B18102_with_ann!CB271","v":39},{"$f":"[1]ACS_16_5YR_B18102_with_ann!CC271","v":15}]
["0600000US3301977940",3301977940,"060","Unity",{"$f":"[1]ACS_16_5YR_B18102_with_ann!D271","v":1331},{"$f":"[1]ACS_16_5YR_B18102_with_ann!E271","v":148},{"$f":"[1]ACS_16_5YR_B18102_with_ann!F271","v":627},{"$f":"[1]ACS_16_5YR_B18102_with_ann!G271","v":66},{"$f":"[1]ACS_16_5YR_B18102_with_ann!H271","v":3},{"$f":"[1]ACS_16_5YR_B18102_with_ann!I271","v":6},{"$f":"[1]ACS_16_5YR_B18102_with_ann!J271","v":0},{"$f":"[1]ACS_16_5YR_B18102_with_ann!K271","v":11},{"$f":"[1]ACS_16_5YR_B18102_with_ann!L271","v":3},{"$f":"[1]ACS_16_5YR_B18102_with_ann!M271","v":6},{"$f":"[1]ACS_16_5YR_B18102_with_ann!N271","v":46},{"$f":"[1]ACS_16_5YR_B18102_with_ann!O271","v":21},{"$f":"[1]ACS_16_5YR_B18102_with_ann!P271","v":0},{"$f":"[1]ACS_16_5YR_B18102_with_ann!Q271","v":11},{"$f":"[1]ACS_16_5YR_B18102_with_ann!R271","v":46},{"$f":"[1]ACS_16_5YR_B18102_with_ann!S271","v":21},{"$f":"[1]ACS_16_5YR_B18102_with_ann!T271","v":79},{"$f":"[1]ACS_16_5YR_B18102_with_ann!U271","v":31},{"$f":"[1]ACS_16_5YR_B18102_with_ann!V271","v":0},{"$f":"[1]ACS_16_5YR_B18102_with_ann!W271","v":11},{"$f":"[1]ACS_16_5YR_B18102_with_ann!X271","v":79},{"$f":"[1]ACS_16_5YR_B18102_with_ann!Y271","v":31},{"$f":"[1]ACS_16_5YR_B18102_with_ann!Z271","v":324},{"$f":"[1]ACS_16_5YR_B18102_with_ann!AA271","v":53},{"$f":"[1]ACS_16_5YR_B18102_with_ann!AB271","v":14},{"$f":"[1]ACS_16_5YR_B18102_with_ann!AC271","v":14},{"$f":"[1]ACS_16_5YR_B18102_with_ann!AD271","v":310},{"$f":"[1]ACS_16_5YR_B18102_with_ann!AE271","v":51},{"$f":"[1]ACS_16_5YR_B18102_with_ann!AF271","v":128},{"$f":"[1]ACS_16_5YR_B18102_with_ann!AG271","v":36},{"$f":"[1]ACS_16_5YR_B18102_with_ann!AH271","v":21},{"$f":"[1]ACS_16_5YR_B18102_with_ann!AI271","v":11},{"$f":"[1]ACS_16_5YR_B18102_with_ann!AJ271","v":107},{"$f":"[1]ACS_16_5YR_B18102_with_ann!AK271","v":34},{"$f":"[1]ACS_16_5YR_B18102_with_ann!AL271","v":47},{"$f":"[1]ACS_16_5YR_B18102_with_ann!AM271","v":17},{"$f":"[1]ACS_16_5YR_B18102_with_ann!AN271","v":13},{"$f":"[1]ACS_16_5YR_B18102_with_ann!AO271","v":9},{"$f":"[1]ACS_16_5YR_B18102_with_ann!AP271","v":34},{"$f":"[1]ACS_16_5YR_B18102_with_ann!AQ271","v":14},{"$f":"[1]ACS_16_5YR_B18102_with_ann!AR271","v":704},{"$f":"[1]ACS_16_5YR_B18102_with_ann!AS271","v":99},{"$f":"[1]ACS_16_5YR_B18102_with_ann!AT271","v":14},{"$f":"[1]ACS_16_5YR_B18102_with_ann!AU271","v":15},{"$f":"[1]ACS_16_5YR_B18102_with_ann!AV271","v":0},{"$f":"[1]ACS_16_5YR_B18102_with_ann!AW271","v":11},{"$f":"[1]ACS_16_5YR_B18102_with_ann!AX271","v":14},{"$f":"[1]ACS_16_5YR_B18102_with_ann!AY271","v":15},{"$f":"[1]ACS_16_5YR_B18102_with_ann!AZ271","v":89},{"$f":"[1]ACS_16_5YR_B18102_with_ann!BA271","v":48},{"$f":"[1]ACS_16_5YR_B18102_with_ann!BB271","v":0},{"$f":"[1]ACS_16_5YR_B18102_with_ann!BC271","v":11},{"$f":"[1]ACS_16_5YR_B18102_with_ann!BD271","v":89},{"$f":"[1]ACS_16_5YR_B18102_with_ann!BE271","v":48},{"$f":"[1]ACS_16_5YR_B18102_with_ann!BF272","v":63},{"$f":"[1]ACS_16_5YR_B18102_with_ann!BG272","v":30},{"$f":"[1]ACS_16_5YR_B18102_with_ann!BH272","v":0},{"$f":"[1]ACS_16_5YR_B18102_with_ann!BI272","v":11},{"$f":"[1]ACS_16_5YR_B18102_with_ann!BJ272","v":63},{"$f":"[1]ACS_16_5YR_B18102_with_ann!BK272","v":30},{"$f":"[1]ACS_16_5YR_B18102_with_ann!BL272","v":301},{"$f":"[1]ACS_16_5YR_B18102_with_ann!BM272","v":81},{"$f":"[1]ACS_16_5YR_B18102_with_ann!BN272","v":4},{"$f":"[1]ACS_16_5YR_B18102_with_ann!BO272","v":5},{"$f":"[1]ACS_16_5YR_B18102_with_ann!BP272","v":297},{"$f":"[1]ACS_16_5YR_B18102_with_ann!BQ272","v":81},{"$f":"[1]ACS_16_5YR_B18102_with_ann!BR272","v":116},{"$f":"[1]ACS_16_5YR_B18102_with_ann!BS272","v":31},{"$f":"[1]ACS_16_5YR_B18102_with_ann!BT272","v":4},{"$f":"[1]ACS_16_5YR_B18102_with_ann!BU272","v":6},{"$f":"[1]ACS_16_5YR_B18102_with_ann!BV272","v":112},{"$f":"[1]ACS_16_5YR_B18102_with_ann!BW272","v":31},{"$f":"[1]ACS_16_5YR_B18102_with_ann!BX272","v":29},{"$f":"[1]ACS_16_5YR_B18102_with_ann!BY272","v":15},{"$f":"[1]ACS_16_5YR_B18102_with_ann!BZ272","v":3},{"$f":"[1]ACS_16_5YR_B18102_with_ann!CA272","v":6},{"$f":"[1]ACS_16_5YR_B18102_with_ann!CB272","v":26},{"$f":"[1]ACS_16_5YR_B18102_with_ann!CC272","v":13}]
["0600000US3301978980",3301978980,"060","Washington",{"$f":"[1]ACS_16_5YR_B18102_with_ann!D272","v":1199},{"$f":"[1]ACS_16_5YR_B18102_with_ann!E272","v":188},{"$f":"[1]ACS_16_5YR_B18102_with_ann!F272","v":612},{"$f":"[1]ACS_16_5YR_B18102_with_ann!G272","v":109},{"$f":"[1]ACS_16_5YR_B18102_with_ann!H272","v":0},{"$f":"[1]ACS_16_5YR_B18102_with_ann!I272","v":11},{"$f":"[1]ACS_16_5YR_B18102_with_ann!J272","v":0},{"$f":"[1]ACS_16_5YR_B18102_with_ann!K272","v":11},{"$f":"[1]ACS_16_5YR_B18102_with_ann!L272","v":0},{"$f":"[1]ACS_16_5YR_B18102_with_ann!M272","v":11},{"$f":"[1]ACS_16_5YR_B18102_with_ann!N272","v":61},{"$f":"[1]ACS_16_5YR_B18102_with_ann!O272","v":49},{"$f":"[1]ACS_16_5YR_B18102_with_ann!P272","v":0},{"$f":"[1]ACS_16_5YR_B18102_with_ann!Q272","v":11},{"$f":"[1]ACS_16_5YR_B18102_with_ann!R272","v":61},{"$f":"[1]ACS_16_5YR_B18102_with_ann!S272","v":49},{"$f":"[1]ACS_16_5YR_B18102_with_ann!T272","v":72},{"$f":"[1]ACS_16_5YR_B18102_with_ann!U272","v":37},{"$f":"[1]ACS_16_5YR_B18102_with_ann!V272","v":0},{"$f":"[1]ACS_16_5YR_B18102_with_ann!W272","v":11},{"$f":"[1]ACS_16_5YR_B18102_with_ann!X272","v":72},{"$f":"[1]ACS_16_5YR_B18102_with_ann!Y272","v":37},{"$f":"[1]ACS_16_5YR_B18102_with_ann!Z272","v":309},{"$f":"[1]ACS_16_5YR_B18102_with_ann!AA272","v":80},{"$f":"[1]ACS_16_5YR_B18102_with_ann!AB272","v":0},{"$f":"[1]ACS_16_5YR_B18102_with_ann!AC272","v":11},{"$f":"[1]ACS_16_5YR_B18102_with_ann!AD272","v":309},{"$f":"[1]ACS_16_5YR_B18102_with_ann!AE272","v":80},{"$f":"[1]ACS_16_5YR_B18102_with_ann!AF272","v":121},{"$f":"[1]ACS_16_5YR_B18102_with_ann!AG272","v":35},{"$f":"[1]ACS_16_5YR_B18102_with_ann!AH272","v":8},{"$f":"[1]ACS_16_5YR_B18102_with_ann!AI272","v":8},{"$f":"[1]ACS_16_5YR_B18102_with_ann!AJ272","v":113},{"$f":"[1]ACS_16_5YR_B18102_with_ann!AK272","v":34},{"$f":"[1]ACS_16_5YR_B18102_with_ann!AL272","v":49},{"$f":"[1]ACS_16_5YR_B18102_with_ann!AM272","v":19},{"$f":"[1]ACS_16_5YR_B18102_with_ann!AN272","v":3},{"$f":"[1]ACS_16_5YR_B18102_with_ann!AO272","v":6},{"$f":"[1]ACS_16_5YR_B18102_with_ann!AP272","v":46},{"$f":"[1]ACS_16_5YR_B18102_with_ann!AQ272","v":18},{"$f":"[1]ACS_16_5YR_B18102_with_ann!AR272","v":587},{"$f":"[1]ACS_16_5YR_B18102_with_ann!AS272","v":104},{"$f":"[1]ACS_16_5YR_B18102_with_ann!AT272","v":6},{"$f":"[1]ACS_16_5YR_B18102_with_ann!AU272","v":8},{"$f":"[1]ACS_16_5YR_B18102_with_ann!AV272","v":0},{"$f":"[1]ACS_16_5YR_B18102_with_ann!AW272","v":11},{"$f":"[1]ACS_16_5YR_B18102_with_ann!AX272","v":6},{"$f":"[1]ACS_16_5YR_B18102_with_ann!AY272","v":8},{"$f":"[1]ACS_16_5YR_B18102_with_ann!AZ272","v":72},{"$f":"[1]ACS_16_5YR_B18102_with_ann!BA272","v":29},{"$f":"[1]ACS_16_5YR_B18102_with_ann!BB272","v":0},{"$f":"[1]ACS_16_5YR_B18102_with_ann!BC272","v":11},{"$f":"[1]ACS_16_5YR_B18102_with_ann!BD272","v":72},{"$f":"[1]ACS_16_5YR_B18102_with_ann!BE272","v":29},{"$f":"[1]ACS_16_5YR_B18102_with_ann!BF273","v":0},{"$f":"[1]ACS_16_5YR_B18102_with_ann!BG273","v":0},{"$f":"[1]ACS_16_5YR_B18102_with_ann!BH273","v":0},{"$f":"[1]ACS_16_5YR_B18102_with_ann!BI273","v":0},{"$f":"[1]ACS_16_5YR_B18102_with_ann!BJ273","v":0},{"$f":"[1]ACS_16_5YR_B18102_with_ann!BK273","v":0},{"$f":"[1]ACS_16_5YR_B18102_with_ann!BL273","v":0},{"$f":"[1]ACS_16_5YR_B18102_with_ann!BM273","v":0},{"$f":"[1]ACS_16_5YR_B18102_with_ann!BN273","v":0},{"$f":"[1]ACS_16_5YR_B18102_with_ann!BO273","v":0},{"$f":"[1]ACS_16_5YR_B18102_with_ann!BP273","v":0},{"$f":"[1]ACS_16_5YR_B18102_with_ann!BQ273","v":0},{"$f":"[1]ACS_16_5YR_B18102_with_ann!BR273","v":0},{"$f":"[1]ACS_16_5YR_B18102_with_ann!BS273","v":0},{"$f":"[1]ACS_16_5YR_B18102_with_ann!BT273","v":0},{"$f":"[1]ACS_16_5YR_B18102_with_ann!BU273","v":0},{"$f":"[1]ACS_16_5YR_B18102_with_ann!BV273","v":0},{"$f":"[1]ACS_16_5YR_B18102_with_ann!BW273","v":0},{"$f":"[1]ACS_16_5YR_B18102_with_ann!BX273","v":0},{"$f":"[1]ACS_16_5YR_B18102_with_ann!BY273","v":0},{"$f":"[1]ACS_16_5YR_B18102_with_ann!BZ273","v":0},{"$f":"[1]ACS_16_5YR_B18102_with_ann!CA273","v":0},{"$f":"[1]ACS_16_5YR_B18102_with_ann!CB273","v":0},{"$f":"[1]ACS_16_5YR_B18102_with_ann!CC273","v":0}]
[]
[null,null,null,null,{"$f":"$D$3","v":"Acworth"},null,{"$f":"$D$4","v":"Charlestown"},null,{"$f":"$D$5","v":"Claremont"},null,{"$f":"$D$6","v":"Cornish"},null,{"$f":"$D$7","v":"Croydon"},null,{"$f":"$D$8","v":"Goshen"},null,{"$f":"$D$9","v":"Grantham"},null,{"$f":"$D$10","v":"Langdon"},null,{"$f":"$D$11","v":"Lempster"},null,{"$f":"$D$12","v":"Newport"},null,{"$f":"$D$13","v":"Plainfield"},null,{"$f":"$D$14","v":"Springfield"},null,{"$f":"$D$15","v":"Sunapee"},null,{"$f":"$D$16","v":"Unity"},null,{"$f":"$D$17","v":"Washington"}]
[null,null,null,null,"Estimate","Margin Of Error","Estimate","Margin Of Error","Estimate","Margin Of Error","Estimate","Margin Of Error","Estimate","Margin Of Error","Estimate","Margin Of Error","Estimate","Margin Of Error","Estimate","Margin Of Error","Estimate","Margin Of Error","Estimate","Margin Of Error","Estimate","Margin Of Error","Estimate","Margin Of Error","Estimate","Margin Of Error",null,"Estimate","Margin Of Error"]
[null,null,null,"Estimate Total:",906,134,5017,22,12914,40,1783,217,863,244,680,109,2945,14,712,145,923,176,6259,51,2555,293,1084,198,3449,19,1331,148,1199,188]
[null,null,null,"Estimate Total: Male:",487,83,2514,222,6265,280,922,150,423,111,346,70,1382,143,342,85,432,77,3230,212,1278,174,575,112,1792,129,627,66,612,109]
[null,null,null,"Estimate Total: Male: Under 5 years:",21,14,189,101,393,117,35,19,11,12,18,14,0,11,16,14,31,21,185,95,32,34,3,5,97,57,3,6,0,11]
[null,null,null,"Estimate Total: Male: Under 5 years: With a hearing difficulty",0,11,0,16,0,18,0,11,0,11,0,11,0,11,0,11,3,4,0,16,0,11,0,11,0,11,0,11,0,11]
[null,null,null,"Estimate Total: Male: Under 5 years: No hearing difficulty",21,14,189,101,393,117,35,19,11,12,18,14,0,11,16,14,28,21,185,95,32,34,3,5,97,57,3,6,0,11]
[null,null,null,"Estimate Total: Male: 5 to 17 years:",34,23,250,103,902,164,169,107,56,37,49,27,271,92,76,46,36,23,507,185,230,86,72,33,337,95,46,21,61,49]
[null,null,null,"Estimate Total: Male: 5 to 17 years: With a hearing difficulty",0,11,0,16,0,18,0,11,0,11,0,11,41,61,0,11,0,11,0,16,0,11,0,11,0,11,0,11,0,11]
[null,null,null,"Estimate Total: Male: 5 to 17 years: No hearing difficulty",34,23,250,103,902,164,169,107,56,37,49,27,230,84,76,46,36,23,507,185,230,86,72,33,337,95,46,21,61,49]
[null,null,null,"Estimate Total: Male: 18 to 34 years:",79,38,490,144,1622,255,95,28,87,47,43,21,148,73,53,27,34,16,754,177,261,84,103,56,290,93,79,31,72,37]
[null,null,null,"Estimate Total: Male: 18 to 34 years: With a hearing difficulty",9,14,0,16,95,92,5,7,0,11,2,3,0,11,0,11,0,11,0,16,0,11,6,9,0,11,0,11,0,11]
[null,null,null,"Estimate Total: Male: 18 to 34 years: No hearing difficulty",70,37,490,144,1527,243,90,28,87,47,41,21,148,73,53,27,34,16,754,177,261,84,97,56,290,93,79,31,72,37]
[null,null,null,"Estimate Total: Male: 35 to 64 years:",213,48,1034,172,2416,184,367,53,198,60,157,41,613,124,143,40,249,58,1262,216,521,71,225,63,777,126,324,53,309,80]
[null,null,null,"Estimate Total: Male: 35 to 64 years: With a hearing difficulty",0,11,24,29,50,42,21,16,0,11,4,5,82,79,5,5,6,6,132,112,27,19,3,5,0,11,14,14,0,11]
[null,null,null,"Estimate Total: Male: 35 to 64 years: No hearing difficulty",213,48,1010,171,2366,186,346,51,198,60,153,41,531,134,138,39,243,58,1130,207,494,73,222,63,777,126,310,51,309,80]
[null,null,null,"Estimate Total: Male: 65 to 74 years:",88,27,261,94,650,105,190,51,38,22,59,26,156,69,39,14,68,28,405,161,178,57,111,42,176,58,128,36,121,35]
[null,null,null,"Estimate Total: Male: 65 to 74 years: With a hearing difficulty",10,11,36,42,118,72,10,8,2,3,6,6,0,11,4,6,17,16,12,19,11,11,10,10,35,36,21,11,8,8]
[null,null,null,"Estimate Total: Male: 65 to 74 years: No hearing difficulty",78,24,225,99,532,104,180,51,36,22,53,25,156,69,35,15,51,25,393,161,167,56,101,41,141,46,107,34,113,34]
[null,null,null,"Estimate Total: Male: 75 years and over:",52,23,290,141,282,88,66,32,33,16,20,14,194,86,15,9,14,11,117,81,56,35,61,35,115,59,47,17,49,19]
[null,null,null,"Estimate Total: Male: 75 years and over: With a hearing difficulty",13,12,141,98,81,43,21,13,11,9,1,3,28,30,7,5,6,6,0,16,5,7,7,8,34,40,13,9,3,6]
[null,null,null,"Estimate Total: Male: 75 years and over: No hearing difficulty",39,21,149,88,201,82,45,27,22,13,19,14,166,82,8,6,8,8,117,81,51,34,54,33,81,47,34,14,46,18]
[null,null,null,"Estimate Total: Female:",419,72,2503,221,6649,275,861,100,440,156,334,59,1563,142,370,73,491,123,3029,217,1277,157,509,111,1657,127,704,99,587,104]
[null,null,null,"Estimate Total: Female: Under 5 years:",16,13,121,78,475,107,26,14,12,11,21,14,0,11,16,13,35,23,100,62,50,55,11,17,61,39,14,15,6,8]
[null,null,null,"Estimate Total: Female: Under 5 years: With a hearing difficulty",0,11,0,16,0,18,0,11,0,11,0,11,0,11,0,11,0,11,0,16,0,11,0,11,0,11,0,11,0,11]
[null,null,null,"Estimate Total: Female: Under 5 years: No hearing difficulty",16,13,121,78,475,107,26,14,12,11,21,14,0,11,16,13,35,23,100,62,50,55,11,17,61,39,14,15,6,8]
[null,null,null,"Estimate Total: Female: 5 to 17 years:",24,18,420,147,922,206,119,46,65,34,49,25,250,125,61,42,121,76,406,128,185,81,70,46,197,84,89,48,72,29]
[null,null,null,"Estimate Total: Female: 5 to 17 years: With a hearing difficulty",0,11,0,16,0,18,0,11,0,11,0,11,0,11,0,11,0,11,0,16,0,11,0,11,0,11,0,11,0,11]
[null,null,null,"Estimate Total: Female: 5 to 17 years: No hearing difficulty",24,18,420,147,922,206,119,46,65,34,49,25,250,125,61,42,121,76,406,128,185,81,70,46,197,84,89,48,72,29]
[null,null,null,"Estimate Total: Female: 18 to 34 years:",47,25,357,108,1415,187,124,96,69,34,114,98,69,25,54,24,520,162,280,61,37,27,250,74,111,46,63,30,0,0]
[null,null,null,"Estimate Total: Female: 18 to 34 years: With a hearing difficulty",0,11,0,16,0,18,0,11,0,11,0,11,2,3,3,5,13,20,0,11,0,11,0,11,5,8,0,11,0,0]
[null,null,null,"Estimate Total: Female: 18 to 34 years: No hearing difficulty",47,25,357,108,1415,187,124,96,69,34,114,98,67,25,51,23,507,162,280,61,37,27,250,74,106,45,63,30,0,0]
[null,null,null,"Estimate Total: Female: 35 to 64 years:",190,46,1080,163,2460,217,169,53,117,33,896,131,174,41,191,52,1406,188,521,81,241,64,734,118,338,45,301,81,0,0]
[null,null,null,"Estimate Total: Female: 35 to 64 years: With a hearing difficulty",5,6,13,21,12,19,0,11,2,3,0,11,7,10,10,14,14,22,0,11,6,7,0,11,14,18,4,5,0,0]
[null,null,null,"Estimate Total: Female: 35 to 64 years: No hearing difficulty",185,46,1067,171,2448,219,169,53,115,33,896,131,167,39,181,51,1392,188,521,81,235,63,734,118,324,44,297,81,0,0]
[null,null,null,"Estimate Total: Female: 65 to 74 years:",117,42,296,120,755,152,49,24,49,21,139,53,35,11,51,23,312,130,181,56,112,42,233,69,113,29,116,31,0,0]
[null,null,null,"Estimate Total: Female: 65 to 74 years: With a hearing difficulty",3,4,16,26,51,47,6,7,5,5,29,32,6,6,0,11,12,20,5,7,9,11,0,11,3,4,4,6,0,0]
[null,null,null,"Estimate Total: Female: 65 to 74 years: No hearing difficulty",114,42,280,121,704,146,43,23,44,21,110,53,29,10,51,23,300,128,176,56,103,41,233,69,110,28,112,31,0,0]
[null,null,null,"Estimate Total: Female: 75 years and over:",25,14,229,88,622,128,21,12,29,13,164,75,15,8,39,26,285,103,60,32,38,26,182,81,39,15,29,15,0,0]
[null,null,null,"Estimate Total: Female: 75 years and over: With a hearing difficulty",0,11,68,69,179,95,2,4,7,6,28,29,4,4,7,8,81,73,5,7,0,11,33,52,0,11,3,6,0,0]
[null,null,null,"Estimate Total: Female: 75 years and over: No hearing difficulty",25,14,161,72,443,112,19,12,22,11,136,69,11,7,32,25,204,92,55,34,38,26,149,64,39,15,26,13,0,0]

{"sheet":"ACS_Table_B18102","index":43,"n_rows":125,"n_cols":32,"rows_kept":125,"cut":false,"hidden":true,"merged":[]}
["B18102. SEX BY AGE BY HEARING DIFFICULTY\n\n"]
["Universe:  Civilian non-institutionalized population"]
["Data Set: 2015-2019 American Community Survey 5-Year Estimates"]
[]
[null,null,"Acworth",null,"Charlestown",null,"Claremont",null,"Cornish",null,"Croydon",null,"Goshen",null,"Grantham",null,"Langdon",null,"Lempster",null,"Newport",null,"Plainfield",null,"Springfield",null,"Sunapee",null,"Unity",null,"Washington"]
[null,null,"Estimate","Margin Of Error","Estimate","Margin Of Error","Estimate","Margin Of Error","Estimate","Margin Of Error","Estimate","Margin Of Error","Estimate","Margin Of Error","Estimate","Margin Of Error","Estimate","Margin Of Error","Estimate","Margin Of Error","Estimate","Margin Of Error","Estimate","Margin Of Error","Estimate","Margin Of Error","Estimate","Margin Of Error","Estimate","Margin Of Error","Estimate","Margin Of Error"]
[null,"Total:",906,134,5017,22,12914,40,1783,217,863,244,680,109,2945,14,712,145,923,176,6259,51,2555,293,1084,198,3449,19,1331,148,1199,188]
[null,"Male:",487,83,2514,222,6265,280,922,150,423,111,346,70,1382,143,342,85,432,77,3230,212,1278,174,575,112,1792,129,627,66,612,109]
[null,"Under 5 years:",21,14,189,101,393,117,35,19,11,12,18,14,0,11,16,14,31,21,185,95,32,34,3,5,97,57,3,6,0,11]
[null,"With hearing difficulty",0,11,0,16,0,18,0,11,0,11,0,11,0,11,0,11,3,4,0,16,0,11,0,11,0,11,0,11,0,11]
[null,"With no hearing difficulty",21,14,189,101,393,117,35,19,11,12,18,14,0,11,16,14,28,21,185,95,32,34,3,5,97,57,3,6,0,11]
[null,"5 to 17  years:",34,23,250,103,902,164,169,107,56,37,49,27,271,92,76,46,36,23,507,185,230,86,72,33,337,95,46,21,61,49]
[null,"With hearing difficulty",0,11,0,16,0,18,0,11,0,11,0,11,41,61,0,11,0,11,0,16,0,11,0,11,0,11,0,11,0,11]
[null,"With no hearing difficulty",34,23,250,103,902,164,169,107,56,37,49,27,230,84,76,46,36,23,507,185,230,86,72,33,337,95,46,21,61,49]
[null,"18 to 34  years:",79,38,490,144,1622,255,95,28,87,47,43,21,148,73,53,27,34,16,754,177,261,84,103,56,290,93,79,31,72,37]
[null,"With hearing difficulty",9,14,0,16,95,92,5,7,0,11,2,3,0,11,0,11,0,11,0,16,0,11,6,9,0,11,0,11,0,11]
[null,"With no hearing difficulty",70,37,490,144,1527,243,90,28,87,47,41,21,148,73,53,27,34,16,754,177,261,84,97,56,290,93,79,31,72,37]
[null,"35 to 64  years:",213,48,1034,172,2416,184,367,53,198,60,157,41,613,124,143,40,249,58,1262,216,521,71,225,63,777,126,324,53,309,80]
[null,"With hearing difficulty",0,11,24,29,50,42,21,16,0,11,4,5,82,79,5,5,6,6,132,112,27,19,3,5,0,11,14,14,0,11]
[null,"With no hearing difficulty",213,48,1010,171,2366,186,346,51,198,60,153,41,531,134,138,39,243,58,1130,207,494,73,222,63,777,126,310,51,309,80]
[null,"65 to 74  years:",88,27,261,94,650,105,190,51,38,22,59,26,156,69,39,14,68,28,405,161,178,57,111,42,176,58,128,36,121,35]
[null,"With hearing difficulty",10,11,36,42,118,72,10,8,2,3,6,6,0,11,4,6,17,16,12,19,11,11,10,10,35,36,21,11,8,8]
[null,"With no hearing difficulty",78,24,225,99,532,104,180,51,36,22,53,25,156,69,35,15,51,25,393,161,167,56,101,41,141,46,107,34,113,34]
[null,"75  years and Older:",52,23,290,141,282,88,66,32,33,16,20,14,194,86,15,9,14,11,117,81,56,35,61,35,115,59,47,17,49,19]
[null,"With hearing difficulty",13,12,141,98,81,43,21,13,11,9,1,3,28,30,7,5,6,6,0,16,5,7,7,8,34,40,13,9,3,6]
[null,"With no hearing difficulty",39,21,149,88,201,82,45,27,22,13,19,14,166,82,8,6,8,8,117,81,51,34,54,33,81,47,34,14,46,18]
[null,"Female:",419,72,2503,221,6649,275,861,100,440,156,334,59,1563,142,370,73,491,123,3029,217,1277,157,509,111,1657,127,704,99,587,104]
[null,"Under 5 years:",16,13,121,78,475,107,26,14,12,11,21,14,0,11,16,13,35,23,100,62,50,55,11,17,61,39,14,15,6,8]
[null,"With hearing difficulty",0,11,0,16,0,18,0,11,0,11,0,11,0,11,0,11,0,11,0,16,0,11,0,11,0,11,0,11,0,11]
[null,"With no hearing difficulty",16,13,121,78,475,107,26,14,12,11,21,14,0,11,16,13,35,23,100,62,50,55,11,17,61,39,14,15,6,8]
[null,"5 to 17  years:",24,18,420,147,922,206,119,46,65,34,49,25,250,125,61,42,121,76,406,128,185,81,70,46,197,84,89,48,72,29]
[null,"With hearing difficulty",0,11,0,16,0,18,0,11,0,11,0,11,0,11,0,11,0,11,0,16,0,11,0,11,0,11,0,11,0,11]
[null,"With no hearing difficulty",24,18,420,147,922,206,119,46,65,34,49,25,250,125,61,42,121,76,406,128,185,81,70,46,197,84,89,48,72,29]
[null,"18 to 34  years:",47,25,357,108,1415,187,124,96,69,34,114,98,69,25,54,24,520,162,280,61,37,27,250,74,111,46,63,30,0,0]
[null,"With hearing difficulty",0,11,0,16,0,18,0,11,0,11,0,11,2,3,3,5,13,20,0,11,0,11,0,11,5,8,0,11,0,0]
[null,"With no hearing difficulty",47,25,357,108,1415,187,124,96,69,34,114,98,67,25,51,23,507,162,280,61,37,27,250,74,106,45,63,30,0,0]
[null,"35 to 64  years:",190,46,1080,163,2460,217,169,53,117,33,896,131,174,41,191,52,1406,188,521,81,241,64,734,118,338,45,301,81,0,0]
[null,"With hearing difficulty",5,6,13,21,12,19,0,11,2,3,0,11,7,10,10,14,14,22,0,11,6,7,0,11,14,18,4,5,0,0]
[null,"With no hearing difficulty",185,46,1067,171,2448,219,169,53,115,33,896,131,167,39,181,51,1392,188,521,81,235,63,734,118,324,44,297,81,0,0]
[null,"65 to 74  years:",117,42,296,120,755,152,49,24,49,21,139,53,35,11,51,23,312,130,181,56,112,42,233,69,113,29,116,31,0,0]
[null,"With hearing difficulty",3,4,16,26,51,47,6,7,5,5,29,32,6,6,0,11,12,20,5,7,9,11,0,11,3,4,4,6,0,0]
[null,"With no hearing difficulty",114,42,280,121,704,146,43,23,44,21,110,53,29,10,51,23,300,128,176,56,103,41,233,69,110,28,112,31,0,0]
[null,"75  years and Older:",25,14,229,88,622,128,21,12,29,13,164,75,15,8,39,26,285,103,60,32,38,26,182,81,39,15,29,15,0,0]
[null,"With hearing difficulty",0,11,68,69,179,95,2,4,7,6,28,29,4,4,7,8,81,73,5,7,0,11,33,52,0,11,3,6,0,0]
[null,"With no hearing difficulty",25,14,161,72,443,112,19,12,22,11,136,69,11,7,32,25,204,92,55,34,38,26,149,64,39,15,26,13,0,0]
[]
[]
[{"$f":"A1& \"-Calculated\"","v":"B18102. SEX BY AGE BY HEARING DIFFICULTY\n\n-Calculated"}]
[{"$f":"A2","v":"Universe:  Civilian non-institutionalized population"}]
[{"$f":"A3","v":"Data Set: 2015-2019 American Community Survey 5-Year Estimates"}]
[]
[]
[null,null,"Acworth",null,"Charlestown",null,"Claremont",null,"Cornish",null,"Croydon",null,"Goshen",null,"Grantham",null,"Langdon",null,"Lempster",null,"Newport",null,"Plainfield",null,"Springfield",null,"Sunapee",null,"Unity",null,"Washington"]
[null,null,"Estimate","Margin Of Error","Estimate","Margin Of Error","Estimate","Margin Of Error","Estimate","Margin Of Error","Estimate","Margin Of Error","Estimate","Margin Of Error","Estimate","Margin Of Error","Estimate","Margin Of Error","Estimate","Margin Of Error","Estimate","Margin Of Error","Estimate","Margin Of Error","Estimate","Margin Of Error","Estimate","Margin Of Error","Estimate","Margin Of Error","Estimate","Margin Of Error"]
[null,"Total",{"$f":"C7","v":906},134,5017,22,12914,40,1783,217,863,244,680,109,2945,14,712,145,923,176,6259,51,2555,293,{"$f":"Y7","v":1084},198,3449,19,1331,148,1199,188]
[null,"Under 5 years:",{"$f":"C28+C9","v":37},{"$f":"SQRT((D28^2)+(D9^2))","v":19.104973174542799},{"$f":"E28+E9","v":310},{"$f":"SQRT((F28^2)+(F9^2))","v":127.61269529321916},{"$f":"G28+G9","v":868},{"$f":"SQRT((H28^2)+(H9^2))","v":158.54967675779096},{"$f":"I28+I9","v":61},{"$f":"SQRT((J28^2)+(J9^2))","v":23.600847442411894},{"$f":"K28+K9","v":23},{"$f":"SQRT((L28^2)+(L9^2))","v":16.278820596099706},{"$f":"M28+M9","v":39},{"$f":"SQRT((N28^2)+(N9^2))","v":19.798989873223331},{"$f":"O28+O9","v":0},{"$f":"SQRT((P28^2)+(P9^2))","v":15.556349186104045},{"$f":"Q28+Q9","v":32},{"$f":"SQRT((R28^2)+(R9^2))","v":19.104973174542799},{"$f":"S28+S9","v":66},{"$f":"SQRT((T28^2)+(T9^2))","v":31.144823004794873},{"$f":"U28+U9","v":285},{"$f":"SQRT((V28^2)+(V9^2))","v":113.44161493913951},{"$f":"W28+W9","v":82},{"$f":"SQRT((X28^2)+(X9^2))","v":64.660652641308843},{"$f":"Y28+Y9","v":14},{"$f":"SQRT((Z28^2)+(Z9^2))","v":17.720045146669349},{"$f":"AA28+AA9","v":158},{"$f":"SQRT((AB28^2)+(AB9^2))","v":69.06518659932803},17,16.15549442140351,{"$f":"AE28+AE9","v":6},{"$f":"SQRT((AF28^2)+(AF9^2))","v":13.601470508735444}]
[null,"With hearing difficulty",{"$f":"C29+C10","v":0},{"$f":"SQRT((D29^2)+(D10^2))","v":15.556349186104045},{"$f":"E29+E10","v":0},{"$f":"SQRT((F29^2)+(F10^2))","v":22.627416997969522},{"$f":"G29+G10","v":0},{"$f":"SQRT((H29^2)+(H10^2))","v":25.45584412271571},{"$f":"I29+I10","v":0},{"$f":"SQRT((J29^2)+(J10^2))","v":15.556349186104045},{"$f":"K29+K10","v":0},{"$f":"SQRT((L29^2)+(L10^2))","v":15.556349186104045},{"$f":"M29+M10","v":0},{"$f":"SQRT((N29^2)+(N10^2))","v":15.556349186104045},{"$f":"O29+O10","v":0},{"$f":"SQRT((P29^2)+(P10^2))","v":15.556349186104045},{"$f":"Q29+Q10","v":0},{"$f":"SQRT((R29^2)+(R10^2))","v":15.556349186104045},{"$f":"S29+S10","v":3},{"$f":"SQRT((T29^2)+(T10^2))","v":11.704699910719626},{"$f":"U29+U10","v":0},{"$f":"SQRT((V29^2)+(V10^2))","v":22.627416997969522},{"$f":"W29+W10","v":0},{"$f":"SQRT((X29^2)+(X10^2))","v":15.556349186104045},0,15.556349186104045,0,15.556349186104045,0,15.556349186104045,0,15.556349186104045]
[null,"With no hearing difficulty",37,19.104973174542799,310,127.61269529321916,868,158.54967675779096,61,23.600847442411894,23,16.278820596099706,39,19.798989873223331,0,15.556349186104045,32,19.104973174542799,63,31.144823004794873,285,113.44161493913951,82,64.660652641308843,14,17.720045146669349,158,69.06518659932803,17,16.15549442140351,6,13.601470508735444]
[null,"5 to 17 years:",58,29.206163733020468,670,179.49373248110922,1824,263.30970358116315,288,116.46887996370532,121,50.24937810560445,98,36.796738985948195,521,155.20631430454111,137,62.289646009589745,157,79.404030124421269,913,224.96444163467257,415,118.1397477566293,142,56.612719418872643,534,126.81088281373961,135,52.392747589718944,133,56.938563381947034]
[null,"With hearing difficulty",0,15.556349186104045,0,22.627416997969522,0,25.45584412271571,0,15.556349186104045,0,15.556349186104045,0,15.556349186104045,41,61.98386886924694,0,15.556349186104045,0,15.556349186104045,0,22.627416997969522,0,15.556349186104045,0,15.556349186104045,0,15.556349186104045,0,15.556349186104045,0,15.556349186104045]
[null,"With no hearing difficulty",58,29.206163733020468,670,179.49373248110922,1824,263.30970358116315,288,116.46887996370532,121,50.24937810560445,98,36.796738985948195,480,150.60212481900777,137,62.289646009589745,157,79.404030124421269,913,224.96444163467257,415,118.1397477566293,142,56.612719418872643,534,126.81088281373961,135,52.392747589718944,133,56.938563381947034]
[null,"18 to 34 years:",126,45.486261662176638,847,180,3037,316.21827904155066,219,100,156,58.008620049092706,157,100.22474744293447,217,77.1621668954417,107,36.124783736376884,554,162.78820596099706,1034,187.21645226849054,298,88.232647019116456,353,92.80086206496145,401,103.75451797391764,142,43.139309220245984,72,37]
[null,"With hearing difficulty",9,17.804493814764857,0,22.627416997969522,95,93.744333162063725,5,13.038404810405298,0,15.556349186104045,2,11.401754250991379,2,11.401754250991379,3,12.083045973594572,13,22.825424421026653,0,19.416487838947599,0,15.556349186104045,6,14.212670403551895,5,13.601470508735444,0,15.556349186104045,0,11]
[null,"With no hearing difficulty",117,44.654227123532216,847,180,2942,306.62354769325856,214,100,156,58.008620049092706,155,100.22474744293447,215,77.1621668954417,104,35.468295701936398,541,162.78820596099706,1034,187.21645226849054,298,88.232647019116456,347,92.80086206496145,396,103.31505214633539,142,43.139309220245984,72,37]
[null,"35 to 64 years:",403,66.483080554378645,2114,236.96624232155938,4876,284.50834785643815,536,74.953318805774032,315,68.47627326307996,1053,137.26616480400406,787,130.60245020672468,334,65.604877867426907,1655,196.74348782107123,1783,230.68810112357335,762,95.587656106842587,959,133.76471881628578,1115,133.79461872586654,625,96.79876032264049,309,80]
[null,"With hearing difficulty",5,12.529964086141668,37,35.805027579936315,62,46.097722286464439,21,19.416487838947599,2,11.401754250991379,4,12.083045973594572,89,79.630396206473819,15,14.866068747318506,20,22.803508501982758,132,112.53888216967503,33,20.248456731316587,3,12.083045973594572,14,21.095023109728988,18,14.866068747318506,0,11]
[null,"With no hearing difficulty",398,66.483080554378645,2077,241.83051916579925,4814,287.32733945797781,515,73.552702193733168,313,68.47627326307996,1049,137.26616480400406,698,139.56002292920419,319,64.202803677098089,1635,196.74348782107123,1651,222.28360263411244,729,96.426137535421375,956,133.76471881628578,1101,133.46160496562297,607,95.718336801262907,309,80]
[null,"65 to 74 years:",205,49.929950931279713,557,152.43359209832983,1405,184.74035834110532,239,56.36488268416781,87,30.413812651491099,198,59.033888572581766,191,69.871310278253688,90,26.92582403567252,380,132.98120167903431,586,170.46113926640288,290,70.802542327235685,344,80.777472107017559,289,64.845971347493901,244,47.507894080878813,121,35]
[null,"With hearing difficulty",13,11.704699910719626,52,49.396356140913873,169,85.982556370463882,16,10.63014581273465,7,5.8309518948453007,35,32.557641192199412,6,12.529964086141668,4,12.529964086141668,29,25.612496949731394,17,20.248456731316587,20,15.556349186104045,10,14.866068747318506,38,36.221540552549669,25,12.529964086141668,8,8]
[null,"With no hearing difficulty",192,48.373546489791295,505,156.33937443907084,1236,179.25400971805345,223,55.946402922797461,80,30.413812651491099,163,58.600341295934449,185,69.72087205421343,86,27.459060435491963,351,130.41855696180662,569,170.46113926640288,270,69.404610797842537,334,80.262070743284468,251,53.851648071345039,219,46.010868281309364,113,34]
[null,"75 years and over:",77,26.92582403567252,519,166.20770138594662,904,155.3319027115808,87,34.176014981270121,62,20.615528128088304,184,76.295478240849903,209,86.371291526756735,54,27.513632984395208,299,103.58571330062848,177,87.091905479212016,94,43.600458713183279,243,88.238313673823114,154,60.876925020897694,76,22.671568097509269,49,19]
[null,"With hearing difficulty",13,16.278820596099706,209,119.85407794480753,260,104.27847332982968,23,13.601470508735444,18,10.816653826391969,29,29.154759474226502,32,30.265491900843113,14,9.4339811320566032,87,73.246160308919954,5,17.464249196572979,5,13.038404810405298,40,52.611785751863621,34,41.484937025383083,16,10.816653826391969,3,6]
[null,"With no hearing difficulty",64,25.238858928247925,310,113.70136322841516,644,138.80922159568507,64,29.546573405388315,44,17.029386365926403,155,70.405965656327737,177,82.29823813423954,40,25.709920264364882,212,92.347171044921566,172,87.846456957580259,89,42.80186911806539,203,72.006944109578768,120,49.33558553417604,60,19.104973174542799,46,18]
[]
[]
[]
[]
[]
[]
[]
[]
[]
[]
[]
[]
[]
[]
[]
[]
[]
[]
[]
[]
[]
[]
[]
[]
[]
[]
["B18102. SEX BY AGE BY HEARING DIFFICULTY\n\n-Calculated"]
["Universe:  Civilian non-institutionalized population"]
["Data Set: 2010-2014 American Community Survey 5-Year Estimates"]
[]
[]
[null,null,"Acworth",null,"Charlestown",null,"Claremont",null,"Cornish",null,"Croydon",null,"Goshen",null,"Grantham",null,"Langdon",null,"Lempster",null,"Newport",null,"Plainfield",null,"Springfield",null,"Sunapee",null,"Unity",null,"Washington"]
[null,null,"Estimate","Margin Of Error","Estimate","Margin Of Error","Estimate","Margin Of Error","Estimate","Margin Of Error","Estimate","Margin Of Error","Estimate","Margin Of Error","Estimate","Margin Of Error","Estimate","Margin Of Error","Estimate","Margin Of Error","Estimate","Margin Of Error","Estimate","Margin Of Error","Estimate","Margin Of Error","Estimate","Margin Of Error","Estimate","Margin Of Error","Estimate","Margin Of Error"]
[null,"Total",923,163,5047,16,13083,71,1601,179,651,140,821,127,2958,30,787,149,1089,147,6351,81,2518,166,1313,217,3363,30,1352,149,1013,140]
[null,"Under 5 years:",55,36.235341863986875,306,121.16517651536682,879,148.52945835759317,91,46.043457732885351,32,26.40075756488817,47,27.658633371878661,159,79.511005527536881,41,29.546573405388315,67,29.681644159311659,146,75,141,62.032249677083293,82,48.60041152089147,78,57.454329688892898,49,26.40075756488817,16,11.661903789690601]
[null,"With hearing difficulty",0,15.556349186104045,0,15.556349186104045,0,24.041630560342615,0,15.556349186104045,0,15.556349186104045,2,11.401754250991379,0,15.556349186104045,0,15.556349186104045,0,15.556349186104045,0,21.213203435596427,0,15.556349186104045,0,15.556349186104045,0,15.556349186104045,0,15.556349186104045,0,15.556349186104045]
[null,"With no hearing difficulty",55,36.235341863986875,306,121.16517651536682,879,148.52945835759317,91,46.043457732885351,32,26.40075756488817,45,27.658633371878661,159,79.511005527536881,41,29.546573405388315,67,29.681644159311659,146,75,141,62.032249677083293,82,48.60041152089147,78,57.454329688892898,49,26.40075756488817,16,11.661903789690601]
[null,"5 to 17 years:",152,54.203320931470607,588,145.71547618561317,2117,243.21184181696418,243,76.05918747922567,93,33.941125496954278,93,39.446165846632042,536,156.72268502038881,140,59.816385714952723,156,48.104053883222775,1002,213.05398376937239,408,85.562842402528915,244,73.552702193733168,492,128.80993750483694,142,39.962482405376171,130,58.137767414994535]
[null,"With hearing difficulty",0,15.556349186104045,9,18.601075237738275,12,25.495097567963924,0,15.556349186104045,0,15.556349186104045,0,15.556349186104045,0,15.556349186104045,3,11.704699910719626,0,15.556349186104045,0,21.213203435596427,0,15.556349186104045,0,15.556349186104045,0,15.556349186104045,0,15.556349186104045,0,15.556349186104045]
[null,"With no hearing difficulty",152,54.203320931470607,579,143.84018909887459,2105,243.21184181696418,243,76.05918747922567,93,33.941125496954278,93,39.446165846632042,536,156.72268502038881,137,59.816385714952723,156,48.104053883222775,1002,213.05398376937239,408,85.562842402528915,244,73.552702193733168,492,128.80993750483694,142,39.962482405376171,130,58.137767414994535]
[null,"18 to 34 years:",184,54.378304497290095,900,194.55847450059841,2858,279.37966998334008,273,55.97320787662612,96,41.400483088968905,134,40.36087214122113,358,127.3184982632139,175,58,137,52.773099207835045,1050,218.68699092538631,401,83.630138108220294,173,55,504,146.60491124106312,207,60.21627686929839,100,41.231056256176608]
[null,"With hearing difficulty",0,15.556349186104045,19,30.083217912982647,46,36.76955262170047,0,15.556349186104045,0,15.556349186104045,6,5.8309518948453007,12,21.095023109728988,0,15.556349186104045,0,15.556349186104045,57,51.429563482495162,0,15.556349186104045,0,15.556349186104045,0,15.556349186104045,4,13.601470508735444,5,13.601470508735444]
[null,"With no hearing difficulty",184,54.378304497290095,881,194.55847450059841,2812,279.50849718747372,273,55.97320787662612,96,41.400483088968905,128,41.109609582188931,346,126.24579200908045,175,58,137,52.773099207835045,993,215.87033144922904,401,83.630138108220294,173,55,504,146.60491124106312,203,59.076221950967721,95,40.607881008493905]
[null,"35 to 64 years:",380,55.865910893853687,2320,200.124960961895,5203,255.34486483969087,799,72.138755187485728,348,58.051701094799967,405,54.671747731346578,1313,129.4488315899375,305,50.328918128646478,571,72.249567472753768,3031,239.05857022913861,1172,102.7277956543408,648,89.403579346690591,1478,196.54261624390779,768,68.8839603971781,520,70.767224051816527]
[null,"With hearing difficulty",13,11.401754250991379,66,48.373546489791295,377,154.98387012847499,33,18.027756377319946,10,7.810249675906654,19,11.704699910719626,45,37.643060449437421,10,7.0710678118654755,14,12.083045973594572,93,72.498275841567434,23,19.235384061671343,18,15.811388300841896,13,19.416487838947599,21,18.027756377319946,41,25.495097567963924]
[null,"With no hearing difficulty",367,53.740115370177612,2254,195.57607215607945,4826,277.79488836189915,766,70.724818840347695,338,58.728187440104094,386,54.561891462814962,1268,133.86933928274988,295,50.328918128646478,557,71.589105316381762,2938,242.42524621004307,1149,104.1393297462587,630,88.0056816347672,1465,196.54261624390779,747,68.249542123006222,479,66.468037431535464]
[null,"65 to 74 years:",105,33.421549934136806,573,157.76247969653622,1109,160.96272860510285,142,45.607017003965517,55,19.849433241279208,75,29.068883707497267,262,79.246451024635803,87,25.45584412271571,85,28.301943396169811,702,194.60986614249546,297,68.818602136341013,120,40.496913462633174,436,116.10340218959993,117,30.610455730027933,161,29.732137494637012]
[null,"With hearing difficulty",13,7.810249675906654,145,99.704563586628268,67,49.769468552517218,8,17.029386365926403,7,7.810249675906654,15,10.770329614269007,4,12.529964086141668,10,7.2801098892805181,6,13.038404810405298,80,87.281154896117187,14,14.866068747318506,27,22.825424421026653,12,21.95449840010015,6,12.529964086141668,22,15.264337522473747]
[null,"With no hearing difficulty",92,31.89043743820395,428,143.54441821262157,1042,153.83757668398187,134,43.266615305567875,48,17.691806012954132,60,27.658633371878661,258,77.89736837660179,77,24.041630560342615,79,28.301943396169811,622,163.80781422142229,283,68.007352543677214,93,33.301651610693426,424,114.10959644131601,111,29.832867780352597,139,29]
[null,"75 years and over:",47,18.788294228055936,360,139.26952286842948,917,129.20139318134306,53,20,27,18.601075237738275,67,22.671568097509269,330,92.200867674876037,39,19.104973174542799,73,30.413812651491099,420,113.56936206565572,99,36.891733491393431,46,21.95449840010015,375,95.587656106842587,69,21.633307652783937,86,27.658633371878661]
[null,"With hearing difficulty",10,5.6568542494923806,132,95.634721728041853,296,82.09750300709517,12,10,2,11.401754250991379,8,5.6568542494923806,75,65.490457320131767,8,6.7082039324993694,31,20.124611797498108,105,54.12947441089743,18,16.552945357246848,21,15.264337522473747,130,66.030296076876709,16,10.295630140987001,8,13.038404810405298]
[null,"With no hearing difficulty",37,18.384776310850235,228,96.540147089177367,621,117.04699910719626,41,16.643316977093239,25,18.601075237738275,59,22.671568097509269,255,77.077882690172544,31,19.104973174542799,42,21.540659228538015,315,105.41821474489122,81,31.780497164141408,25,14.317821063276353,245,84.958813551037778,53,18.867962264113206,78,26.90724809414742]

{"sheet":"SData_B18103_VisualDisability","index":44,"n_rows":59,"n_cols":82,"rows_kept":59,"cut":false,"hidden":true,"merged":[]}
["GEO_ID","GEO_ID2","SUMLEVEL"]
["Geography Identifier","Geography Identifier","Geographic Summary Level",null,{"$f":"[1]ACS_16_5YR_B18103_with_ann!D$2","v":"Estimate Total:"},{"$f":"[1]ACS_16_5YR_B18103_with_ann!E$2","v":"Margin of Error Total:"},{"$f":"[1]ACS_16_5YR_B18103_with_ann!F$2","v":"Estimate Total: Male:"},{"$f":"[1]ACS_16_5YR_B18103_with_ann!G$2","v":"Margin of Error Total: Male:"},{"$f":"[1]ACS_16_5YR_B18103_with_ann!H$2","v":"Estimate Total: Male: Under 5 years:"},{"$f":"[1]ACS_16_5YR_B18103_with_ann!I$2","v":"Margin of Error Total: Male: Under 5 years:"},{"$f":"[1]ACS_16_5YR_B18103_with_ann!J$2","v":"Estimate Total: Male: Under 5 years: With a vision difficulty"},{"$f":"[1]ACS_16_5YR_B18103_with_ann!K$2","v":"Margin of Error Total: Male: Under 5 years: With a vision difficulty"},{"$f":"[1]ACS_16_5YR_B18103_with_ann!L$2","v":"Estimate Total: Male: Under 5 years: No vision difficulty"},{"$f":"[1]ACS_16_5YR_B18103_with_ann!M$2","v":"Margin of Error Total: Male: Under 5 years: No vision difficulty"},{"$f":"[1]ACS_16_5YR_B18103_with_ann!N$2","v":"Estimate Total: Male: 5 to 17 years:"},{"$f":"[1]ACS_16_5YR_B18103_with_ann!O$2","v":"Margin of Error Total: Male: 5 to 17 years:"},{"$f":"[1]ACS_16_5YR_B18103_with_ann!P$2","v":"Estimate Total: Male: 5 to 17 years: With a vision difficulty"},{"$f":"[1]ACS_16_5YR_B18103_with_ann!Q$2","v":"Margin of Error Total: Male: 5 to 17 years: With a vision difficulty"},{"$f":"[1]ACS_16_5YR_B18103_with_ann!R$2","v":"Estimate Total: Male: 5 to 17 years: No vision difficulty"},{"$f":"[1]ACS_16_5YR_B18103_with_ann!S$2","v":"Margin of Error Total: Male: 5 to 17 years: No vision difficulty"},{"$f":"[1]ACS_16_5YR_B18103_with_ann!T$2","v":"Estimate Total: Male: 18 to 34 years:"},{"$f":"[1]ACS_16_5YR_B18103_with_ann!U$2","v":"Margin of Error Total: Male: 18 to 34 years:"},{"$f":"[1]ACS_16_5YR_B18103_with_ann!V$2","v":"Estimate Total: Male: 18 to 34 years: With a vision difficulty"},{"$f":"[1]ACS_16_5YR_B18103_with_ann!W$2","v":"Margin of Error Total: Male: 18 to 34 years: With a vision difficulty"},{"$f":"[1]ACS_16_5YR_B18103_with_ann!X$2","v":"Estimate Total: Male: 18 to 34 years: No vision difficulty"},{"$f":"[1]ACS_16_5YR_B18103_with_ann!Y$2","v":"Margin of Error Total: Male: 18 to 34 years: No vision difficulty"},{"$f":"[1]ACS_16_5YR_B18103_with_ann!Z$2","v":"Estimate Total: Male: 35 to 64 years:"},{"$f":"[1]ACS_16_5YR_B18103_with_ann!AA$2","v":"Margin of Error Total: Male: 35 to 64 years:"},{"$f":"[1]ACS_16_5YR_B18103_with_ann!AB$2","v":"Estimate Total: Male: 35 to 64 years: With a vision difficulty"},{"$f":"[1]ACS_16_5YR_B18103_with_ann!AC$2","v":"Margin of Error Total: Male: 35 to 64 years: With a vision difficulty"},{"$f":"[1]ACS_16_5YR_B18103_with_ann!AD$2","v":"Estimate Total: Male: 35 to 64 years: No vision difficulty"},{"$f":"[1]ACS_16_5YR_B18103_with_ann!AE$2","v":"Margin of Error Total: Male: 35 to 64 years: No vision difficulty"},{"$f":"[1]ACS_16_5YR_B18103_with_ann!AF$2","v":"Estimate Total: Male: 65 to 74 years:"},{"$f":"[1]ACS_16_5YR_B18103_with_ann!AG$2","v":"Margin of Error Total: Male: 65 to 74 years:"},{"$f":"[1]ACS_16_5YR_B18103_with_ann!AH$2","v":"Estimate Total: Male: 65 to 74 years: With a vision difficulty"},{"$f":"[1]ACS_16_5YR_B18103_with_ann!AI$2","v":"Margin of Error Total: Male: 65 to 74 years: With a vision difficulty"},{"$f":"[1]ACS_16_5YR_B18103_with_ann!AJ$2","v":"Estimate Total: Male: 65 to 74 years: No vision difficulty"},{"$f":"[1]ACS_16_5YR_B18103_with_ann!AK$2","v":"Margin of Error Total: Male: 65 to 74 years: No vision difficulty"},{"$f":"[1]ACS_16_5YR_B18103_with_ann!AL$2","v":"Estimate Total: Male: 75 years and over:"},{"$f":"[1]ACS_16_5YR_B18103_with_ann!AM$2","v":"Margin of Error Total: Male: 75 years and over:"},{"$f":"[1]ACS_16_5YR_B18103_with_ann!AN$2","v":"Estimate Total: Male: 75 years and over: With a vision difficulty"},{"$f":"[1]ACS_16_5YR_B18103_with_ann!AO$2","v":"Margin of Error Total: Male: 75 years and over: With a vision difficulty"},{"$f":"[1]ACS_16_5YR_B18103_with_ann!AP$2","v":"Estimate Total: Male: 75 years and over: No vision difficulty"},{"$f":"[1]ACS_16_5YR_B18103_with_ann!AQ$2","v":"Margin of Error Total: Male: 75 years and over: No vision difficulty"},{"$f":"[1]ACS_16_5YR_B18103_with_ann!AR$2","v":"Estimate Total: Female:"},{"$f":"[1]ACS_16_5YR_B18103_with_ann!AS$2","v":"Margin of Error Total: Female:"},{"$f":"[1]ACS_16_5YR_B18103_with_ann!AT$2","v":"Estimate Total: Female: Under 5 years:"},{"$f":"[1]ACS_16_5YR_B18103_with_ann!AU$2","v":"Margin of Error Total: Female: Under 5 years:"},{"$f":"[1]ACS_16_5YR_B18103_with_ann!AV$2","v":"Estimate Total: Female: Under 5 years: With a vision difficulty"},{"$f":"[1]ACS_16_5YR_B18103_with_ann!AW$2","v":"Margin of Error Total: Female: Under 5 years: With a vision difficulty"},{"$f":"[1]ACS_16_5YR_B18103_with_ann!AX$2","v":"Estimate Total: Female: Under 5 years: No vision difficulty"},{"$f":"[1]ACS_16_5YR_B18103_with_ann!AY$2","v":"Margin of Error Total: Female: Under 5 years: No vision difficulty"},{"$f":"[1]ACS_16_5YR_B18103_with_ann!AZ$2","v":"Estimate Total: Female: 5 to 17 years:"},{"$f":"[1]ACS_16_5YR_B18103_with_ann!BA$2","v":"Margin of Error Total: Female: 5 to 17 years:"},{"$f":"[1]ACS_16_5YR_B18103_with_ann!BB$2","v":"Estimate Total: Female: 5 to 17 years: With a vision difficulty"},{"$f":"[1]ACS_16_5YR_B18103_with_ann!BC$2","v":"Margin of Error Total: Female: 5 to 17 years: With a vision difficulty"},{"$f":"[1]ACS_16_5YR_B18103_with_ann!BD$2","v":"Estimate Total: Female: 5 to 17 years: No vision difficulty"},{"$f":"[1]ACS_16_5YR_B18103_with_ann!BE$2","v":"Margin of Error Total: Female: 5 to 17 years: No vision difficulty"},{"$f":"[1]ACS_16_5YR_B18103_with_ann!BF$2","v":"Estimate Total: Female: 18 to 34 years:"},{"$f":"[1]ACS_16_5YR_B18103_with_ann!BG$2","v":"Margin of Error Total: Female: 18 to 34 years:"},{"$f":"[1]ACS_16_5YR_B18103_with_ann!BH$2","v":"Estimate Total: Female: 18 to 34 years: With a vision difficulty"},{"$f":"[1]ACS_16_5YR_B18103_with_ann!BI$2","v":"Margin of Error Total: Female: 18 to 34 years: With a vision difficulty"},{"$f":"[1]ACS_16_5YR_B18103_with_ann!BJ$2","v":"Estimate Total: Female: 18 to 34 years: No vision difficulty"},{"$f":"[1]ACS_16_5YR_B18103_with_ann!BK$2","v":"Margin of Error Total: Female: 18 to 34 years: No vision difficulty"},{"$f":"[1]ACS_16_5YR_B18103_with_ann!BL$2","v":"Estimate Total: Female: 35 to 64 years:"},{"$f":"[1]ACS_16_5YR_B18103_with_ann!BM$2","v":"Margin of Error Total: Female: 35 to 64 years:"},{"$f":"[1]ACS_16_5YR_B18103_with_ann!BN$2","v":"Estimate Total: Female: 35 to 64 years: With a vision difficulty"},{"$f":"[1]ACS_16_5YR_B18103_with_ann!BO$2","v":"Margin of Error Total: Female: 35 to 64 years: With a vision difficulty"},{"$f":"[1]ACS_16_5YR_B18103_with_ann!BP$2","v":"Estimate Total: Female: 35 to 64 years: No vision difficulty"},{"$f":"[1]ACS_16_5YR_B18103_with_ann!BQ$2","v":"Margin of Error Total: Female: 35 to 64 years: No vision difficulty"},{"$f":"[1]ACS_16_5YR_B18103_with_ann!BR$2","v":"Estimate Total: Female: 65 to 74 years:"},{"$f":"[1]ACS_16_5YR_B18103_with_ann!BS$2","v":"Margin of Error Total: Female: 65 to 74 years:"},{"$f":"[1]ACS_16_5YR_B18103_with_ann!BT$2","v":"Estimate Total: Female: 65 to 74 years: With a vision difficulty"},{"$f":"[1]ACS_16_5YR_B18103_with_ann!BU$2","v":"Margin of Error Total: Female: 65 to 74 years: With a vision difficulty"},{"$f":"[1]ACS_16_5YR_B18103_with_ann!BV$2","v":"Estimate Total: Female: 65 to 74 years: No vision difficulty"},{"$f":"[1]ACS_16_5YR_B18103_with_ann!BW$2","v":"Margin of Error Total: Female: 65 to 74 years: No vision difficulty"},{"$f":"[1]ACS_16_5YR_B18103_with_ann!BX$2","v":"Estimate Total: Female: 75 years and over:"},{"$f":"[1]ACS_16_5YR_B18103_with_ann!BY$2","v":"Margin of Error Total: Female: 75 years and over:"},{"$f":"[1]ACS_16_5YR_B18103_with_ann!BZ$2","v":"Estimate Total: Female: 75 years and over: With a vision difficulty"},{"$f":"[1]ACS_16_5YR_B18103_with_ann!CA$2","v":"Margin of Error Total: Female: 75 years and over: With a vision difficulty"},{"$f":"[1]ACS_16_5YR_B18103_with_ann!CB$2","v":"Estimate Total: Female: 75 years and over: No vision difficulty"},{"$f":"[1]ACS_16_5YR_B18103_with_ann!CC$2","v":"Margin of Error Total: Female: 75 years and over: No vision difficulty"}]
["0600000US3301900259",3301900259,"060","Acworth",{"$f":"[1]ACS_16_5YR_B18103_with_ann!D258","v":906},{"$f":"[1]ACS_16_5YR_B18103_with_ann!E258","v":134},{"$f":"[1]ACS_16_5YR_B18103_with_ann!F258","v":487},{"$f":"[1]ACS_16_5YR_B18103_with_ann!G258","v":83},{"$f":"[1]ACS_16_5YR_B18103_with_ann!H258","v":21},{"$f":"[1]ACS_16_5YR_B18103_with_ann!I258","v":14},{"$f":"[1]ACS_16_5YR_B18103_with_ann!J258","v":0},{"$f":"[1]ACS_16_5YR_B18103_with_ann!K258","v":11},{"$f":"[1]ACS_16_5YR_B18103_with_ann!L258","v":21},{"$f":"[1]ACS_16_5YR_B18103_with_ann!M258","v":14},{"$f":"[1]ACS_16_5YR_B18103_with_ann!N258","v":34},{"$f":"[1]ACS_16_5YR_B18103_with_ann!O258","v":23},{"$f":"[1]ACS_16_5YR_B18103_with_ann!P258","v":0},{"$f":"[1]ACS_16_5YR_B18103_with_ann!Q258","v":11},{"$f":"[1]ACS_16_5YR_B18103_with_ann!R258","v":34},{"$f":"[1]ACS_16_5YR_B18103_with_ann!S258","v":23},{"$f":"[1]ACS_16_5YR_B18103_with_ann!T258","v":79},{"$f":"[1]ACS_16_5YR_B18103_with_ann!U258","v":38},{"$f":"[1]ACS_16_5YR_B18103_with_ann!V258","v":9},{"$f":"[1]ACS_16_5YR_B18103_with_ann!W258","v":14},{"$f":"[1]ACS_16_5YR_B18103_with_ann!X258","v":70},{"$f":"[1]ACS_16_5YR_B18103_with_ann!Y258","v":37},{"$f":"[1]ACS_16_5YR_B18103_with_ann!Z258","v":213},{"$f":"[1]ACS_16_5YR_B18103_with_ann!AA258","v":48},{"$f":"[1]ACS_16_5YR_B18103_with_ann!AB258","v":0},{"$f":"[1]ACS_16_5YR_B18103_with_ann!AC258","v":11},{"$f":"[1]ACS_16_5YR_B18103_with_ann!AD258","v":213},{"$f":"[1]ACS_16_5YR_B18103_with_ann!AE258","v":48},{"$f":"[1]ACS_16_5YR_B18103_with_ann!AF258","v":88},{"$f":"[1]ACS_16_5YR_B18103_with_ann!AG258","v":27},{"$f":"[1]ACS_16_5YR_B18103_with_ann!AH258","v":7},{"$f":"[1]ACS_16_5YR_B18103_with_ann!AI258","v":10},{"$f":"[1]ACS_16_5YR_B18103_with_ann!AJ258","v":81},{"$f":"[1]ACS_16_5YR_B18103_with_ann!AK258","v":24},{"$f":"[1]ACS_16_5YR_B18103_with_ann!AL258","v":52},{"$f":"[1]ACS_16_5YR_B18103_with_ann!AM258","v":23},{"$f":"[1]ACS_16_5YR_B18103_with_ann!AN258","v":0},{"$f":"[1]ACS_16_5YR_B18103_with_ann!AO258","v":11},{"$f":"[1]ACS_16_5YR_B18103_with_ann!AP258","v":52},{"$f":"[1]ACS_16_5YR_B18103_with_ann!AQ258","v":23},{"$f":"[1]ACS_16_5YR_B18103_with_ann!AR258","v":419},{"$f":"[1]ACS_16_5YR_B18103_with_ann!AS258","v":72},{"$f":"[1]ACS_16_5YR_B18103_with_ann!AT258","v":16},{"$f":"[1]ACS_16_5YR_B18103_with_ann!AU258","v":13},{"$f":"[1]ACS_16_5YR_B18103_with_ann!AV258","v":0},{"$f":"[1]ACS_16_5YR_B18103_with_ann!AW258","v":11},{"$f":"[1]ACS_16_5YR_B18103_with_ann!AX258","v":16},{"$f":"[1]ACS_16_5YR_B18103_with_ann!AY258","v":13},{"$f":"[1]ACS_16_5YR_B18103_with_ann!AZ258","v":24},{"$f":"[1]ACS_16_5YR_B18103_with_ann!BA258","v":18},{"$f":"[1]ACS_16_5YR_B18103_with_ann!BB258","v":0},{"$f":"[1]ACS_16_5YR_B18103_with_ann!BC258","v":11},{"$f":"[1]ACS_16_5YR_B18103_with_ann!BD258","v":24},{"$f":"[1]ACS_16_5YR_B18103_with_ann!BE258","v":18},{"$f":"[1]ACS_16_5YR_B18103_with_ann!BF258","v":47},{"$f":"[1]ACS_16_5YR_B18103_with_ann!BG258","v":25},{"$f":"[1]ACS_16_5YR_B18103_with_ann!BH258","v":0},{"$f":"[1]ACS_16_5YR_B18103_with_ann!BI258","v":11},{"$f":"[1]ACS_16_5YR_B18103_with_ann!BJ258","v":47},{"$f":"[1]ACS_16_5YR_B18103_with_ann!BK258","v":25},{"$f":"[1]ACS_16_5YR_B18103_with_ann!BL258","v":190},{"$f":"[1]ACS_16_5YR_B18103_with_ann!BM258","v":46},{"$f":"[1]ACS_16_5YR_B18103_with_ann!BN258","v":0},{"$f":"[1]ACS_16_5YR_B18103_with_ann!BO258","v":11},{"$f":"[1]ACS_16_5YR_B18103_with_ann!BP258","v":190},{"$f":"[1]ACS_16_5YR_B18103_with_ann!BQ258","v":46},{"$f":"[1]ACS_16_5YR_B18103_with_ann!BR258","v":117},{"$f":"[1]ACS_16_5YR_B18103_with_ann!BS258","v":42},{"$f":"[1]ACS_16_5YR_B18103_with_ann!BT258","v":0},{"$f":"[1]ACS_16_5YR_B18103_with_ann!BU258","v":11},{"$f":"[1]ACS_16_5YR_B18103_with_ann!BV258","v":117},{"$f":"[1]ACS_16_5YR_B18103_with_ann!BW258","v":42},{"$f":"[1]ACS_16_5YR_B18103_with_ann!BX258","v":25},{"$f":"[1]ACS_16_5YR_B18103_with_ann!BY258","v":14},{"$f":"[1]ACS_16_5YR_B18103_with_ann!BZ258","v":0},{"$f":"[1]ACS_16_5YR_B18103_with_ann!CA258","v":11},{"$f":"[1]ACS_16_5YR_B18103_with_ann!CB258","v":25},{"$f":"[1]ACS_16_5YR_B18103_with_ann!CC258","v":14}]
["0600000US3301911380",3301911380,"060","Charlestown",{"$f":"[1]ACS_16_5YR_B18103_with_ann!D259","v":5017},{"$f":"[1]ACS_16_5YR_B18103_with_ann!E259","v":22},{"$f":"[1]ACS_16_5YR_B18103_with_ann!F259","v":2514},{"$f":"[1]ACS_16_5YR_B18103_with_ann!G259","v":222},{"$f":"[1]ACS_16_5YR_B18103_with_ann!H259","v":189},{"$f":"[1]ACS_16_5YR_B18103_with_ann!I259","v":101},{"$f":"[1]ACS_16_5YR_B18103_with_ann!J259","v":0},{"$f":"[1]ACS_16_5YR_B18103_with_ann!K259","v":16},{"$f":"[1]ACS_16_5YR_B18103_with_ann!L259","v":189},{"$f":"[1]ACS_16_5YR_B18103_with_ann!M259","v":101},{"$f":"[1]ACS_16_5YR_B18103_with_ann!N259","v":250},{"$f":"[1]ACS_16_5YR_B18103_with_ann!O259","v":103},{"$f":"[1]ACS_16_5YR_B18103_with_ann!P259","v":0},{"$f":"[1]ACS_16_5YR_B18103_with_ann!Q259","v":16},{"$f":"[1]ACS_16_5YR_B18103_with_ann!R259","v":250},{"$f":"[1]ACS_16_5YR_B18103_with_ann!S259","v":103},{"$f":"[1]ACS_16_5YR_B18103_with_ann!T259","v":490},{"$f":"[1]ACS_16_5YR_B18103_with_ann!U259","v":144},{"$f":"[1]ACS_16_5YR_B18103_with_ann!V259","v":0},{"$f":"[1]ACS_16_5YR_B18103_with_ann!W259","v":16},{"$f":"[1]ACS_16_5YR_B18103_with_ann!X259","v":490},{"$f":"[1]ACS_16_5YR_B18103_with_ann!Y259","v":144},{"$f":"[1]ACS_16_5YR_B18103_with_ann!Z259","v":1034},{"$f":"[1]ACS_16_5YR_B18103_with_ann!AA259","v":172},{"$f":"[1]ACS_16_5YR_B18103_with_ann!AB259","v":54},{"$f":"[1]ACS_16_5YR_B18103_with_ann!AC259","v":85},{"$f":"[1]ACS_16_5YR_B18103_with_ann!AD259","v":980},{"$f":"[1]ACS_16_5YR_B18103_with_ann!AE259","v":158},{"$f":"[1]ACS_16_5YR_B18103_with_ann!AF259","v":261},{"$f":"[1]ACS_16_5YR_B18103_with_ann!AG259","v":94},{"$f":"[1]ACS_16_5YR_B18103_with_ann!AH259","v":0},{"$f":"[1]ACS_16_5YR_B18103_with_ann!AI259","v":16},{"$f":"[1]ACS_16_5YR_B18103_with_ann!AJ259","v":261},{"$f":"[1]ACS_16_5YR_B18103_with_ann!AK259","v":94},{"$f":"[1]ACS_16_5YR_B18103_with_ann!AL259","v":290},{"$f":"[1]ACS_16_5YR_B18103_with_ann!AM259","v":141},{"$f":"[1]ACS_16_5YR_B18103_with_ann!AN259","v":80},{"$f":"[1]ACS_16_5YR_B18103_with_ann!AO259","v":91},{"$f":"[1]ACS_16_5YR_B18103_with_ann!AP259","v":210},{"$f":"[1]ACS_16_5YR_B18103_with_ann!AQ259","v":89},{"$f":"[1]ACS_16_5YR_B18103_with_ann!AR259","v":2503},{"$f":"[1]ACS_16_5YR_B18103_with_ann!AS259","v":221},{"$f":"[1]ACS_16_5YR_B18103_with_ann!AT259","v":121},{"$f":"[1]ACS_16_5YR_B18103_with_ann!AU259","v":78},{"$f":"[1]ACS_16_5YR_B18103_with_ann!AV259","v":33},{"$f":"[1]ACS_16_5YR_B18103_with_ann!AW259","v":51},{"$f":"[1]ACS_16_5YR_B18103_with_ann!AX259","v":88},{"$f":"[1]ACS_16_5YR_B18103_with_ann!AY259","v":68},{"$f":"[1]ACS_16_5YR_B18103_with_ann!AZ259","v":420},{"$f":"[1]ACS_16_5YR_B18103_with_ann!BA259","v":147},{"$f":"[1]ACS_16_5YR_B18103_with_ann!BB259","v":0},{"$f":"[1]ACS_16_5YR_B18103_with_ann!BC259","v":16},{"$f":"[1]ACS_16_5YR_B18103_with_ann!BD259","v":420},{"$f":"[1]ACS_16_5YR_B18103_with_ann!BE259","v":147},{"$f":"[1]ACS_16_5YR_B18103_with_ann!BF259","v":357},{"$f":"[1]ACS_16_5YR_B18103_with_ann!BG259","v":108},{"$f":"[1]ACS_16_5YR_B18103_with_ann!BH259","v":0},{"$f":"[1]ACS_16_5YR_B18103_with_ann!BI259","v":16},{"$f":"[1]ACS_16_5YR_B18103_with_ann!BJ259","v":357},{"$f":"[1]ACS_16_5YR_B18103_with_ann!BK259","v":108},{"$f":"[1]ACS_16_5YR_B18103_with_ann!BL259","v":1080},{"$f":"[1]ACS_16_5YR_B18103_with_ann!BM259","v":163},{"$f":"[1]ACS_16_5YR_B18103_with_ann!BN259","v":29},{"$f":"[1]ACS_16_5YR_B18103_with_ann!BO259","v":43},{"$f":"[1]ACS_16_5YR_B18103_with_ann!BP259","v":1051},{"$f":"[1]ACS_16_5YR_B18103_with_ann!BQ259","v":165},{"$f":"[1]ACS_16_5YR_B18103_with_ann!BR259","v":296},{"$f":"[1]ACS_16_5YR_B18103_with_ann!BS259","v":120},{"$f":"[1]ACS_16_5YR_B18103_with_ann!BT259","v":0},{"$f":"[1]ACS_16_5YR_B18103_with_ann!BU259","v":16},{"$f":"[1]ACS_16_5YR_B18103_with_ann!BV259","v":296},{"$f":"[1]ACS_16_5YR_B18103_with_ann!BW259","v":120},{"$f":"[1]ACS_16_5YR_B18103_with_ann!BX259","v":229},{"$f":"[1]ACS_16_5YR_B18103_with_ann!BY259","v":88},{"$f":"[1]ACS_16_5YR_B18103_with_ann!BZ259","v":52},{"$f":"[1]ACS_16_5YR_B18103_with_ann!CA259","v":66},{"$f":"[1]ACS_16_5YR_B18103_with_ann!CB259","v":177},{"$f":"[1]ACS_16_5YR_B18103_with_ann!CC259","v":76}]
["0600000US3301912900",3301912900,"060","Claremont",{"$f":"[1]ACS_16_5YR_B18103_with_ann!D260","v":12914},{"$f":"[1]ACS_16_5YR_B18103_with_ann!E260","v":40},{"$f":"[1]ACS_16_5YR_B18103_with_ann!F260","v":6265},{"$f":"[1]ACS_16_5YR_B18103_with_ann!G260","v":280},{"$f":"[1]ACS_16_5YR_B18103_with_ann!H260","v":393},{"$f":"[1]ACS_16_5YR_B18103_with_ann!I260","v":117},{"$f":"[1]ACS_16_5YR_B18103_with_ann!J260","v":0},{"$f":"[1]ACS_16_5YR_B18103_with_ann!K260","v":18},{"$f":"[1]ACS_16_5YR_B18103_with_ann!L260","v":393},{"$f":"[1]ACS_16_5YR_B18103_with_ann!M260","v":117},{"$f":"[1]ACS_16_5YR_B18103_with_ann!N260","v":902},{"$f":"[1]ACS_16_5YR_B18103_with_ann!O260","v":164},{"$f":"[1]ACS_16_5YR_B18103_with_ann!P260","v":15},{"$f":"[1]ACS_16_5YR_B18103_with_ann!Q260","v":23},{"$f":"[1]ACS_16_5YR_B18103_with_ann!R260","v":887},{"$f":"[1]ACS_16_5YR_B18103_with_ann!S260","v":164},{"$f":"[1]ACS_16_5YR_B18103_with_ann!T260","v":1622},{"$f":"[1]ACS_16_5YR_B18103_with_ann!U260","v":255},{"$f":"[1]ACS_16_5YR_B18103_with_ann!V260","v":14},{"$f":"[1]ACS_16_5YR_B18103_with_ann!W260","v":23},{"$f":"[1]ACS_16_5YR_B18103_with_ann!X260","v":1608},{"$f":"[1]ACS_16_5YR_B18103_with_ann!Y260","v":254},{"$f":"[1]ACS_16_5YR_B18103_with_ann!Z260","v":2416},{"$f":"[1]ACS_16_5YR_B18103_with_ann!AA260","v":184},{"$f":"[1]ACS_16_5YR_B18103_with_ann!AB260","v":93},{"$f":"[1]ACS_16_5YR_B18103_with_ann!AC260","v":65},{"$f":"[1]ACS_16_5YR_B18103_with_ann!AD260","v":2323},{"$f":"[1]ACS_16_5YR_B18103_with_ann!AE260","v":193},{"$f":"[1]ACS_16_5YR_B18103_with_ann!AF260","v":650},{"$f":"[1]ACS_16_5YR_B18103_with_ann!AG260","v":105},{"$f":"[1]ACS_16_5YR_B18103_with_ann!AH260","v":17},{"$f":"[1]ACS_16_5YR_B18103_with_ann!AI260","v":26},{"$f":"[1]ACS_16_5YR_B18103_with_ann!AJ260","v":633},{"$f":"[1]ACS_16_5YR_B18103_with_ann!AK260","v":103},{"$f":"[1]ACS_16_5YR_B18103_with_ann!AL260","v":282},{"$f":"[1]ACS_16_5YR_B18103_with_ann!AM260","v":88},{"$f":"[1]ACS_16_5YR_B18103_with_ann!AN260","v":10},{"$f":"[1]ACS_16_5YR_B18103_with_ann!AO260","v":16},{"$f":"[1]ACS_16_5YR_B18103_with_ann!AP260","v":272},{"$f":"[1]ACS_16_5YR_B18103_with_ann!AQ260","v":87},{"$f":"[1]ACS_16_5YR_B18103_with_ann!AR260","v":6649},{"$f":"[1]ACS_16_5YR_B18103_with_ann!AS260","v":275},{"$f":"[1]ACS_16_5YR_B18103_with_ann!AT260","v":475},{"$f":"[1]ACS_16_5YR_B18103_with_ann!AU260","v":107},{"$f":"[1]ACS_16_5YR_B18103_with_ann!AV260","v":0},{"$f":"[1]ACS_16_5YR_B18103_with_ann!AW260","v":18},{"$f":"[1]ACS_16_5YR_B18103_with_ann!AX260","v":475},{"$f":"[1]ACS_16_5YR_B18103_with_ann!AY260","v":107},{"$f":"[1]ACS_16_5YR_B18103_with_ann!AZ260","v":922},{"$f":"[1]ACS_16_5YR_B18103_with_ann!BA260","v":206},{"$f":"[1]ACS_16_5YR_B18103_with_ann!BB260","v":6},{"$f":"[1]ACS_16_5YR_B18103_with_ann!BC260","v":10},{"$f":"[1]ACS_16_5YR_B18103_with_ann!BD260","v":916},{"$f":"[1]ACS_16_5YR_B18103_with_ann!BE260","v":205},{"$f":"[1]ACS_16_5YR_B18103_with_ann!BF260","v":1415},{"$f":"[1]ACS_16_5YR_B18103_with_ann!BG260","v":187},{"$f":"[1]ACS_16_5YR_B18103_with_ann!BH260","v":0},{"$f":"[1]ACS_16_5YR_B18103_with_ann!BI260","v":18},{"$f":"[1]ACS_16_5YR_B18103_with_ann!BJ260","v":1415},{"$f":"[1]ACS_16_5YR_B18103_with_ann!BK260","v":187},{"$f":"[1]ACS_16_5YR_B18103_with_ann!BL260","v":2460},{"$f":"[1]ACS_16_5YR_B18103_with_ann!BM260","v":217},{"$f":"[1]ACS_16_5YR_B18103_with_ann!BN260","v":58},{"$f":"[1]ACS_16_5YR_B18103_with_ann!BO260","v":57},{"$f":"[1]ACS_16_5YR_B18103_with_ann!BP260","v":2402},{"$f":"[1]ACS_16_5YR_B18103_with_ann!BQ260","v":220},{"$f":"[1]ACS_16_5YR_B18103_with_ann!BR260","v":755},{"$f":"[1]ACS_16_5YR_B18103_with_ann!BS260","v":152},{"$f":"[1]ACS_16_5YR_B18103_with_ann!BT260","v":50},{"$f":"[1]ACS_16_5YR_B18103_with_ann!BU260","v":65},{"$f":"[1]ACS_16_5YR_B18103_with_ann!BV260","v":705},{"$f":"[1]ACS_16_5YR_B18103_with_ann!BW260","v":155},{"$f":"[1]ACS_16_5YR_B18103_with_ann!BX260","v":622},{"$f":"[1]ACS_16_5YR_B18103_with_ann!BY260","v":128},{"$f":"[1]ACS_16_5YR_B18103_with_ann!BZ260","v":138},{"$f":"[1]ACS_16_5YR_B18103_with_ann!CA260","v":82},{"$f":"[1]ACS_16_5YR_B18103_with_ann!CB260","v":484},{"$f":"[1]ACS_16_5YR_B18103_with_ann!CC260","v":112}]
["0600000US3301915060",3301915060,"060","Cornish",{"$f":"[1]ACS_16_5YR_B18103_with_ann!D261","v":1783},{"$f":"[1]ACS_16_5YR_B18103_with_ann!E261","v":217},{"$f":"[1]ACS_16_5YR_B18103_with_ann!F261","v":922},{"$f":"[1]ACS_16_5YR_B18103_with_ann!G261","v":150},{"$f":"[1]ACS_16_5YR_B18103_with_ann!H261","v":35},{"$f":"[1]ACS_16_5YR_B18103_with_ann!I261","v":19},{"$f":"[1]ACS_16_5YR_B18103_with_ann!J261","v":0},{"$f":"[1]ACS_16_5YR_B18103_with_ann!K261","v":11},{"$f":"[1]ACS_16_5YR_B18103_with_ann!L261","v":35},{"$f":"[1]ACS_16_5YR_B18103_with_ann!M261","v":19},{"$f":"[1]ACS_16_5YR_B18103_with_ann!N261","v":169},{"$f":"[1]ACS_16_5YR_B18103_with_ann!O261","v":107},{"$f":"[1]ACS_16_5YR_B18103_with_ann!P261","v":0},{"$f":"[1]ACS_16_5YR_B18103_with_ann!Q261","v":11},{"$f":"[1]ACS_16_5YR_B18103_with_ann!R261","v":169},{"$f":"[1]ACS_16_5YR_B18103_with_ann!S261","v":107},{"$f":"[1]ACS_16_5YR_B18103_with_ann!T261","v":95},{"$f":"[1]ACS_16_5YR_B18103_with_ann!U261","v":28},{"$f":"[1]ACS_16_5YR_B18103_with_ann!V261","v":0},{"$f":"[1]ACS_16_5YR_B18103_with_ann!W261","v":11},{"$f":"[1]ACS_16_5YR_B18103_with_ann!X261","v":95},{"$f":"[1]ACS_16_5YR_B18103_with_ann!Y261","v":28},{"$f":"[1]ACS_16_5YR_B18103_with_ann!Z261","v":367},{"$f":"[1]ACS_16_5YR_B18103_with_ann!AA261","v":53},{"$f":"[1]ACS_16_5YR_B18103_with_ann!AB261","v":9},{"$f":"[1]ACS_16_5YR_B18103_with_ann!AC261","v":9},{"$f":"[1]ACS_16_5YR_B18103_with_ann!AD261","v":358},{"$f":"[1]ACS_16_5YR_B18103_with_ann!AE261","v":53},{"$f":"[1]ACS_16_5YR_B18103_with_ann!AF261","v":190},{"$f":"[1]ACS_16_5YR_B18103_with_ann!AG261","v":51},{"$f":"[1]ACS_16_5YR_B18103_with_ann!AH261","v":0},{"$f":"[1]ACS_16_5YR_B18103_with_ann!AI261","v":11},{"$f":"[1]ACS_16_5YR_B18103_with_ann!AJ261","v":190},{"$f":"[1]ACS_16_5YR_B18103_with_ann!AK261","v":51},{"$f":"[1]ACS_16_5YR_B18103_with_ann!AL261","v":66},{"$f":"[1]ACS_16_5YR_B18103_with_ann!AM261","v":32},{"$f":"[1]ACS_16_5YR_B18103_with_ann!AN261","v":7},{"$f":"[1]ACS_16_5YR_B18103_with_ann!AO261","v":9},{"$f":"[1]ACS_16_5YR_B18103_with_ann!AP261","v":59},{"$f":"[1]ACS_16_5YR_B18103_with_ann!AQ261","v":30},{"$f":"[1]ACS_16_5YR_B18103_with_ann!AR261","v":861},{"$f":"[1]ACS_16_5YR_B18103_with_ann!AS261","v":100},{"$f":"[1]ACS_16_5YR_B18103_with_ann!AT261","v":26},{"$f":"[1]ACS_16_5YR_B18103_with_ann!AU261","v":14},{"$f":"[1]ACS_16_5YR_B18103_with_ann!AV261","v":0},{"$f":"[1]ACS_16_5YR_B18103_with_ann!AW261","v":11},{"$f":"[1]ACS_16_5YR_B18103_with_ann!AX261","v":26},{"$f":"[1]ACS_16_5YR_B18103_with_ann!AY261","v":14},{"$f":"[1]ACS_16_5YR_B18103_with_ann!AZ261","v":119},{"$f":"[1]ACS_16_5YR_B18103_with_ann!BA261","v":46},{"$f":"[1]ACS_16_5YR_B18103_with_ann!BB261","v":0},{"$f":"[1]ACS_16_5YR_B18103_with_ann!BC261","v":11},{"$f":"[1]ACS_16_5YR_B18103_with_ann!BD261","v":119},{"$f":"[1]ACS_16_5YR_B18103_with_ann!BE261","v":46},{"$f":"[1]ACS_16_5YR_B18103_with_ann!BF262","v":124},{"$f":"[1]ACS_16_5YR_B18103_with_ann!BG262","v":96},{"$f":"[1]ACS_16_5YR_B18103_with_ann!BH262","v":0},{"$f":"[1]ACS_16_5YR_B18103_with_ann!BI262","v":11},{"$f":"[1]ACS_16_5YR_B18103_with_ann!BJ262","v":124},{"$f":"[1]ACS_16_5YR_B18103_with_ann!BK262","v":96},{"$f":"[1]ACS_16_5YR_B18103_with_ann!BL262","v":169},{"$f":"[1]ACS_16_5YR_B18103_with_ann!BM262","v":53},{"$f":"[1]ACS_16_5YR_B18103_with_ann!BN262","v":0},{"$f":"[1]ACS_16_5YR_B18103_with_ann!BO262","v":11},{"$f":"[1]ACS_16_5YR_B18103_with_ann!BP262","v":169},{"$f":"[1]ACS_16_5YR_B18103_with_ann!BQ262","v":53},{"$f":"[1]ACS_16_5YR_B18103_with_ann!BR262","v":49},{"$f":"[1]ACS_16_5YR_B18103_with_ann!BS262","v":24},{"$f":"[1]ACS_16_5YR_B18103_with_ann!BT262","v":4},{"$f":"[1]ACS_16_5YR_B18103_with_ann!BU262","v":6},{"$f":"[1]ACS_16_5YR_B18103_with_ann!BV262","v":45},{"$f":"[1]ACS_16_5YR_B18103_with_ann!BW262","v":23},{"$f":"[1]ACS_16_5YR_B18103_with_ann!BX262","v":21},{"$f":"[1]ACS_16_5YR_B18103_with_ann!BY262","v":12},{"$f":"[1]ACS_16_5YR_B18103_with_ann!BZ262","v":0},{"$f":"[1]ACS_16_5YR_B18103_with_ann!CA262","v":11},{"$f":"[1]ACS_16_5YR_B18103_with_ann!CB262","v":21},{"$f":"[1]ACS_16_5YR_B18103_with_ann!CC262","v":12}]
["0600000US3301916340",3301916340,"060","Croydon",{"$f":"[1]ACS_16_5YR_B18103_with_ann!D262","v":863},{"$f":"[1]ACS_16_5YR_B18103_with_ann!E262","v":244},{"$f":"[1]ACS_16_5YR_B18103_with_ann!F262","v":423},{"$f":"[1]ACS_16_5YR_B18103_with_ann!G262","v":111},{"$f":"[1]ACS_16_5YR_B18103_with_ann!H262","v":11},{"$f":"[1]ACS_16_5YR_B18103_with_ann!I262","v":12},{"$f":"[1]ACS_16_5YR_B18103_with_ann!J262","v":0},{"$f":"[1]ACS_16_5YR_B18103_with_ann!K262","v":11},{"$f":"[1]ACS_16_5YR_B18103_with_ann!L262","v":11},{"$f":"[1]ACS_16_5YR_B18103_with_ann!M262","v":12},{"$f":"[1]ACS_16_5YR_B18103_with_ann!N262","v":56},{"$f":"[1]ACS_16_5YR_B18103_with_ann!O262","v":37},{"$f":"[1]ACS_16_5YR_B18103_with_ann!P262","v":0},{"$f":"[1]ACS_16_5YR_B18103_with_ann!Q262","v":11},{"$f":"[1]ACS_16_5YR_B18103_with_ann!R262","v":56},{"$f":"[1]ACS_16_5YR_B18103_with_ann!S262","v":37},{"$f":"[1]ACS_16_5YR_B18103_with_ann!T262","v":87},{"$f":"[1]ACS_16_5YR_B18103_with_ann!U262","v":47},{"$f":"[1]ACS_16_5YR_B18103_with_ann!V262","v":0},{"$f":"[1]ACS_16_5YR_B18103_with_ann!W262","v":11},{"$f":"[1]ACS_16_5YR_B18103_with_ann!X262","v":87},{"$f":"[1]ACS_16_5YR_B18103_with_ann!Y262","v":47},{"$f":"[1]ACS_16_5YR_B18103_with_ann!Z262","v":198},{"$f":"[1]ACS_16_5YR_B18103_with_ann!AA262","v":60},{"$f":"[1]ACS_16_5YR_B18103_with_ann!AB262","v":0},{"$f":"[1]ACS_16_5YR_B18103_with_ann!AC262","v":11},{"$f":"[1]ACS_16_5YR_B18103_with_ann!AD262","v":198},{"$f":"[1]ACS_16_5YR_B18103_with_ann!AE262","v":60},{"$f":"[1]ACS_16_5YR_B18103_with_ann!AF262","v":38},{"$f":"[1]ACS_16_5YR_B18103_with_ann!AG262","v":22},{"$f":"[1]ACS_16_5YR_B18103_with_ann!AH262","v":2},{"$f":"[1]ACS_16_5YR_B18103_with_ann!AI262","v":4},{"$f":"[1]ACS_16_5YR_B18103_with_ann!AJ262","v":36},{"$f":"[1]ACS_16_5YR_B18103_with_ann!AK262","v":21},{"$f":"[1]ACS_16_5YR_B18103_with_ann!AL262","v":33},{"$f":"[1]ACS_16_5YR_B18103_with_ann!AM262","v":16},{"$f":"[1]ACS_16_5YR_B18103_with_ann!AN262","v":2},{"$f":"[1]ACS_16_5YR_B18103_with_ann!AO262","v":3},{"$f":"[1]ACS_16_5YR_B18103_with_ann!AP262","v":31},{"$f":"[1]ACS_16_5YR_B18103_with_ann!AQ262","v":16},{"$f":"[1]ACS_16_5YR_B18103_with_ann!AR262","v":440},{"$f":"[1]ACS_16_5YR_B18103_with_ann!AS262","v":156},{"$f":"[1]ACS_16_5YR_B18103_with_ann!AT262","v":12},{"$f":"[1]ACS_16_5YR_B18103_with_ann!AU262","v":11},{"$f":"[1]ACS_16_5YR_B18103_with_ann!AV262","v":0},{"$f":"[1]ACS_16_5YR_B18103_with_ann!AW262","v":11},{"$f":"[1]ACS_16_5YR_B18103_with_ann!AX262","v":12},{"$f":"[1]ACS_16_5YR_B18103_with_ann!AY262","v":11},{"$f":"[1]ACS_16_5YR_B18103_with_ann!AZ262","v":65},{"$f":"[1]ACS_16_5YR_B18103_with_ann!BA262","v":34},{"$f":"[1]ACS_16_5YR_B18103_with_ann!BB262","v":0},{"$f":"[1]ACS_16_5YR_B18103_with_ann!BC262","v":11},{"$f":"[1]ACS_16_5YR_B18103_with_ann!BD262","v":65},{"$f":"[1]ACS_16_5YR_B18103_with_ann!BE262","v":34},{"$f":"[1]ACS_16_5YR_B18103_with_ann!BF263","v":69},{"$f":"[1]ACS_16_5YR_B18103_with_ann!BG263","v":34},{"$f":"[1]ACS_16_5YR_B18103_with_ann!BH263","v":0},{"$f":"[1]ACS_16_5YR_B18103_with_ann!BI263","v":11},{"$f":"[1]ACS_16_5YR_B18103_with_ann!BJ263","v":69},{"$f":"[1]ACS_16_5YR_B18103_with_ann!BK263","v":34},{"$f":"[1]ACS_16_5YR_B18103_with_ann!BL263","v":117},{"$f":"[1]ACS_16_5YR_B18103_with_ann!BM263","v":33},{"$f":"[1]ACS_16_5YR_B18103_with_ann!BN263","v":3},{"$f":"[1]ACS_16_5YR_B18103_with_ann!BO263","v":4},{"$f":"[1]ACS_16_5YR_B18103_with_ann!BP263","v":114},{"$f":"[1]ACS_16_5YR_B18103_with_ann!BQ263","v":33},{"$f":"[1]ACS_16_5YR_B18103_with_ann!BR263","v":49},{"$f":"[1]ACS_16_5YR_B18103_with_ann!BS263","v":21},{"$f":"[1]ACS_16_5YR_B18103_with_ann!BT263","v":0},{"$f":"[1]ACS_16_5YR_B18103_with_ann!BU263","v":11},{"$f":"[1]ACS_16_5YR_B18103_with_ann!BV263","v":49},{"$f":"[1]ACS_16_5YR_B18103_with_ann!BW263","v":21},{"$f":"[1]ACS_16_5YR_B18103_with_ann!BX263","v":29},{"$f":"[1]ACS_16_5YR_B18103_with_ann!BY263","v":13},{"$f":"[1]ACS_16_5YR_B18103_with_ann!BZ263","v":2},{"$f":"[1]ACS_16_5YR_B18103_with_ann!CA263","v":5},{"$f":"[1]ACS_16_5YR_B18103_with_ann!CB263","v":27},{"$f":"[1]ACS_16_5YR_B18103_with_ann!CC263","v":12}]
["0600000US3301930500",3301930500,"060","Goshen",{"$f":"[1]ACS_16_5YR_B18103_with_ann!D263","v":680},{"$f":"[1]ACS_16_5YR_B18103_with_ann!E263","v":109},{"$f":"[1]ACS_16_5YR_B18103_with_ann!F263","v":346},{"$f":"[1]ACS_16_5YR_B18103_with_ann!G263","v":70},{"$f":"[1]ACS_16_5YR_B18103_with_ann!H263","v":18},{"$f":"[1]ACS_16_5YR_B18103_with_ann!I263","v":14},{"$f":"[1]ACS_16_5YR_B18103_with_ann!J263","v":0},{"$f":"[1]ACS_16_5YR_B18103_with_ann!K263","v":11},{"$f":"[1]ACS_16_5YR_B18103_with_ann!L263","v":18},{"$f":"[1]ACS_16_5YR_B18103_with_ann!M263","v":14},{"$f":"[1]ACS_16_5YR_B18103_with_ann!N263","v":49},{"$f":"[1]ACS_16_5YR_B18103_with_ann!O263","v":27},{"$f":"[1]ACS_16_5YR_B18103_with_ann!P263","v":0},{"$f":"[1]ACS_16_5YR_B18103_with_ann!Q263","v":11},{"$f":"[1]ACS_16_5YR_B18103_with_ann!R263","v":49},{"$f":"[1]ACS_16_5YR_B18103_with_ann!S263","v":27},{"$f":"[1]ACS_16_5YR_B18103_with_ann!T263","v":43},{"$f":"[1]ACS_16_5YR_B18103_with_ann!U263","v":21},{"$f":"[1]ACS_16_5YR_B18103_with_ann!V263","v":2},{"$f":"[1]ACS_16_5YR_B18103_with_ann!W263","v":3},{"$f":"[1]ACS_16_5YR_B18103_with_ann!X263","v":41},{"$f":"[1]ACS_16_5YR_B18103_with_ann!Y263","v":21},{"$f":"[1]ACS_16_5YR_B18103_with_ann!Z263","v":157},{"$f":"[1]ACS_16_5YR_B18103_with_ann!AA263","v":41},{"$f":"[1]ACS_16_5YR_B18103_with_ann!AB263","v":2},{"$f":"[1]ACS_16_5YR_B18103_with_ann!AC263","v":3},{"$f":"[1]ACS_16_5YR_B18103_with_ann!AD263","v":155},{"$f":"[1]ACS_16_5YR_B18103_with_ann!AE263","v":41},{"$f":"[1]ACS_16_5YR_B18103_with_ann!AF263","v":59},{"$f":"[1]ACS_16_5YR_B18103_with_ann!AG263","v":26},{"$f":"[1]ACS_16_5YR_B18103_with_ann!AH263","v":0},{"$f":"[1]ACS_16_5YR_B18103_with_ann!AI263","v":11},{"$f":"[1]ACS_16_5YR_B18103_with_ann!AJ263","v":59},{"$f":"[1]ACS_16_5YR_B18103_with_ann!AK263","v":26},{"$f":"[1]ACS_16_5YR_B18103_with_ann!AL263","v":20},{"$f":"[1]ACS_16_5YR_B18103_with_ann!AM263","v":14},{"$f":"[1]ACS_16_5YR_B18103_with_ann!AN263","v":1},{"$f":"[1]ACS_16_5YR_B18103_with_ann!AO263","v":3},{"$f":"[1]ACS_16_5YR_B18103_with_ann!AP263","v":19},{"$f":"[1]ACS_16_5YR_B18103_with_ann!AQ263","v":14},{"$f":"[1]ACS_16_5YR_B18103_with_ann!AR263","v":334},{"$f":"[1]ACS_16_5YR_B18103_with_ann!AS263","v":59},{"$f":"[1]ACS_16_5YR_B18103_with_ann!AT263","v":21},{"$f":"[1]ACS_16_5YR_B18103_with_ann!AU263","v":14},{"$f":"[1]ACS_16_5YR_B18103_with_ann!AV263","v":0},{"$f":"[1]ACS_16_5YR_B18103_with_ann!AW263","v":11},{"$f":"[1]ACS_16_5YR_B18103_with_ann!AX263","v":21},{"$f":"[1]ACS_16_5YR_B18103_with_ann!AY263","v":14},{"$f":"[1]ACS_16_5YR_B18103_with_ann!AZ263","v":49},{"$f":"[1]ACS_16_5YR_B18103_with_ann!BA263","v":25},{"$f":"[1]ACS_16_5YR_B18103_with_ann!BB263","v":0},{"$f":"[1]ACS_16_5YR_B18103_with_ann!BC263","v":11},{"$f":"[1]ACS_16_5YR_B18103_with_ann!BD263","v":49},{"$f":"[1]ACS_16_5YR_B18103_with_ann!BE263","v":25},{"$f":"[1]ACS_16_5YR_B18103_with_ann!BF264","v":114},{"$f":"[1]ACS_16_5YR_B18103_with_ann!BG264","v":98},{"$f":"[1]ACS_16_5YR_B18103_with_ann!BH264","v":0},{"$f":"[1]ACS_16_5YR_B18103_with_ann!BI264","v":11},{"$f":"[1]ACS_16_5YR_B18103_with_ann!BJ264","v":114},{"$f":"[1]ACS_16_5YR_B18103_with_ann!BK264","v":98},{"$f":"[1]ACS_16_5YR_B18103_with_ann!BL264","v":896},{"$f":"[1]ACS_16_5YR_B18103_with_ann!BM264","v":131},{"$f":"[1]ACS_16_5YR_B18103_with_ann!BN264","v":0},{"$f":"[1]ACS_16_5YR_B18103_with_ann!BO264","v":11},{"$f":"[1]ACS_16_5YR_B18103_with_ann!BP264","v":896},{"$f":"[1]ACS_16_5YR_B18103_with_ann!BQ264","v":131},{"$f":"[1]ACS_16_5YR_B18103_with_ann!BR264","v":139},{"$f":"[1]ACS_16_5YR_B18103_with_ann!BS264","v":53},{"$f":"[1]ACS_16_5YR_B18103_with_ann!BT264","v":16},{"$f":"[1]ACS_16_5YR_B18103_with_ann!BU264","v":23},{"$f":"[1]ACS_16_5YR_B18103_with_ann!BV264","v":123},{"$f":"[1]ACS_16_5YR_B18103_with_ann!BW264","v":57},{"$f":"[1]ACS_16_5YR_B18103_with_ann!BX264","v":164},{"$f":"[1]ACS_16_5YR_B18103_with_ann!BY264","v":75},{"$f":"[1]ACS_16_5YR_B18103_with_ann!BZ264","v":0},{"$f":"[1]ACS_16_5YR_B18103_with_ann!CA264","v":11},{"$f":"[1]ACS_16_5YR_B18103_with_ann!CB264","v":164},{"$f":"[1]ACS_16_5YR_B18103_with_ann!CC264","v":75}]
["0600000US3301931220",3301931220,"060","Grantham",{"$f":"[1]ACS_16_5YR_B18103_with_ann!D264","v":2945},{"$f":"[1]ACS_16_5YR_B18103_with_ann!E264","v":14},{"$f":"[1]ACS_16_5YR_B18103_with_ann!F264","v":1382},{"$f":"[1]ACS_16_5YR_B18103_with_ann!G264","v":143},{"$f":"[1]ACS_16_5YR_B18103_with_ann!H264","v":0},{"$f":"[1]ACS_16_5YR_B18103_with_ann!I264","v":11},{"$f":"[1]ACS_16_5YR_B18103_with_ann!J264","v":0},{"$f":"[1]ACS_16_5YR_B18103_with_ann!K264","v":11},{"$f":"[1]ACS_16_5YR_B18103_with_ann!L264","v":0},{"$f":"[1]ACS_16_5YR_B18103_with_ann!M264","v":11},{"$f":"[1]ACS_16_5YR_B18103_with_ann!N264","v":271},{"$f":"[1]ACS_16_5YR_B18103_with_ann!O264","v":92},{"$f":"[1]ACS_16_5YR_B18103_with_ann!P264","v":41},{"$f":"[1]ACS_16_5YR_B18103_with_ann!Q264","v":61},{"$f":"[1]ACS_16_5YR_B18103_with_ann!R264","v":230},{"$f":"[1]ACS_16_5YR_B18103_with_ann!S264","v":84},{"$f":"[1]ACS_16_5YR_B18103_with_ann!T264","v":148},{"$f":"[1]ACS_16_5YR_B18103_with_ann!U264","v":73},{"$f":"[1]ACS_16_5YR_B18103_with_ann!V264","v":0},{"$f":"[1]ACS_16_5YR_B18103_with_ann!W264","v":11},{"$f":"[1]ACS_16_5YR_B18103_with_ann!X264","v":148},{"$f":"[1]ACS_16_5YR_B18103_with_ann!Y264","v":73},{"$f":"[1]ACS_16_5YR_B18103_with_ann!Z264","v":613},{"$f":"[1]ACS_16_5YR_B18103_with_ann!AA264","v":124},{"$f":"[1]ACS_16_5YR_B18103_with_ann!AB264","v":0},{"$f":"[1]ACS_16_5YR_B18103_with_ann!AC264","v":11},{"$f":"[1]ACS_16_5YR_B18103_with_ann!AD264","v":613},{"$f":"[1]ACS_16_5YR_B18103_with_ann!AE264","v":124},{"$f":"[1]ACS_16_5YR_B18103_with_ann!AF264","v":156},{"$f":"[1]ACS_16_5YR_B18103_with_ann!AG264","v":69},{"$f":"[1]ACS_16_5YR_B18103_with_ann!AH264","v":0},{"$f":"[1]ACS_16_5YR_B18103_with_ann!AI264","v":11},{"$f":"[1]ACS_16_5YR_B18103_with_ann!AJ264","v":156},{"$f":"[1]ACS_16_5YR_B18103_with_ann!AK264","v":69},{"$f":"[1]ACS_16_5YR_B18103_with_ann!AL264","v":194},{"$f":"[1]ACS_16_5YR_B18103_with_ann!AM264","v":86},{"$f":"[1]ACS_16_5YR_B18103_with_ann!AN264","v":15},{"$f":"[1]ACS_16_5YR_B18103_with_ann!AO264","v":22},{"$f":"[1]ACS_16_5YR_B18103_with_ann!AP264","v":179},{"$f":"[1]ACS_16_5YR_B18103_with_ann!AQ264","v":84},{"$f":"[1]ACS_16_5YR_B18103_with_ann!AR264","v":1563},{"$f":"[1]ACS_16_5YR_B18103_with_ann!AS264","v":142},{"$f":"[1]ACS_16_5YR_B18103_with_ann!AT264","v":0},{"$f":"[1]ACS_16_5YR_B18103_with_ann!AU264","v":11},{"$f":"[1]ACS_16_5YR_B18103_with_ann!AV264","v":0},{"$f":"[1]ACS_16_5YR_B18103_with_ann!AW264","v":11},{"$f":"[1]ACS_16_5YR_B18103_with_ann!AX264","v":0},{"$f":"[1]ACS_16_5YR_B18103_with_ann!AY264","v":11},{"$f":"[1]ACS_16_5YR_B18103_with_ann!AZ264","v":250},{"$f":"[1]ACS_16_5YR_B18103_with_ann!BA264","v":125},{"$f":"[1]ACS_16_5YR_B18103_with_ann!BB264","v":0},{"$f":"[1]ACS_16_5YR_B18103_with_ann!BC264","v":11},{"$f":"[1]ACS_16_5YR_B18103_with_ann!BD264","v":250},{"$f":"[1]ACS_16_5YR_B18103_with_ann!BE264","v":125},{"$f":"[1]ACS_16_5YR_B18103_with_ann!BF265","v":69},{"$f":"[1]ACS_16_5YR_B18103_with_ann!BG265","v":25},{"$f":"[1]ACS_16_5YR_B18103_with_ann!BH265","v":0},{"$f":"[1]ACS_16_5YR_B18103_with_ann!BI265","v":11},{"$f":"[1]ACS_16_5YR_B18103_with_ann!BJ265","v":69},{"$f":"[1]ACS_16_5YR_B18103_with_ann!BK265","v":25},{"$f":"[1]ACS_16_5YR_B18103_with_ann!BL265","v":174},{"$f":"[1]ACS_16_5YR_B18103_with_ann!BM265","v":41},{"$f":"[1]ACS_16_5YR_B18103_with_ann!BN265","v":0},{"$f":"[1]ACS_16_5YR_B18103_with_ann!BO265","v":11},{"$f":"[1]ACS_16_5YR_B18103_with_ann!BP265","v":174},{"$f":"[1]ACS_16_5YR_B18103_with_ann!BQ265","v":41},{"$f":"[1]ACS_16_5YR_B18103_with_ann!BR265","v":35},{"$f":"[1]ACS_16_5YR_B18103_with_ann!BS265","v":11},{"$f":"[1]ACS_16_5YR_B18103_with_ann!BT265","v":0},{"$f":"[1]ACS_16_5YR_B18103_with_ann!BU265","v":11},{"$f":"[1]ACS_16_5YR_B18103_with_ann!BV265","v":35},{"$f":"[1]ACS_16_5YR_B18103_with_ann!BW265","v":11},{"$f":"[1]ACS_16_5YR_B18103_with_ann!BX265","v":15},{"$f":"[1]ACS_16_5YR_B18103_with_ann!BY265","v":8},{"$f":"[1]ACS_16_5YR_B18103_with_ann!BZ265","v":0},{"$f":"[1]ACS_16_5YR_B18103_with_ann!CA265","v":11},{"$f":"[1]ACS_16_5YR_B18103_with_ann!CB265","v":15},{"$f":"[1]ACS_16_5YR_B18103_with_ann!CC265","v":8}]
["0600000US3301940900",3301940900,"060","Langdon",{"$f":"[1]ACS_16_5YR_B18103_with_ann!D265","v":712},{"$f":"[1]ACS_16_5YR_B18103_with_ann!E265","v":145},{"$f":"[1]ACS_16_5YR_B18103_with_ann!F265","v":342},{"$f":"[1]ACS_16_5YR_B18103_with_ann!G265","v":85},{"$f":"[1]ACS_16_5YR_B18103_with_ann!H265","v":16},{"$f":"[1]ACS_16_5YR_B18103_with_ann!I265","v":14},{"$f":"[1]ACS_16_5YR_B18103_with_ann!J265","v":0},{"$f":"[1]ACS_16_5YR_B18103_with_ann!K265","v":11},{"$f":"[1]ACS_16_5YR_B18103_with_ann!L265","v":16},{"$f":"[1]ACS_16_5YR_B18103_with_ann!M265","v":14},{"$f":"[1]ACS_16_5YR_B18103_with_ann!N265","v":76},{"$f":"[1]ACS_16_5YR_B18103_with_ann!O265","v":46},{"$f":"[1]ACS_16_5YR_B18103_with_ann!P265","v":0},{"$f":"[1]ACS_16_5YR_B18103_with_ann!Q265","v":11},{"$f":"[1]ACS_16_5YR_B18103_with_ann!R265","v":76},{"$f":"[1]ACS_16_5YR_B18103_with_ann!S265","v":46},{"$f":"[1]ACS_16_5YR_B18103_with_ann!T265","v":53},{"$f":"[1]ACS_16_5YR_B18103_with_ann!U265","v":27},{"$f":"[1]ACS_16_5YR_B18103_with_ann!V265","v":0},{"$f":"[1]ACS_16_5YR_B18103_with_ann!W265","v":11},{"$f":"[1]ACS_16_5YR_B18103_with_ann!X265","v":53},{"$f":"[1]ACS_16_5YR_B18103_with_ann!Y265","v":27},{"$f":"[1]ACS_16_5YR_B18103_with_ann!Z265","v":143},{"$f":"[1]ACS_16_5YR_B18103_with_ann!AA265","v":40},{"$f":"[1]ACS_16_5YR_B18103_with_ann!AB265","v":2},{"$f":"[1]ACS_16_5YR_B18103_with_ann!AC265","v":3},{"$f":"[1]ACS_16_5YR_B18103_with_ann!AD265","v":141},{"$f":"[1]ACS_16_5YR_B18103_with_ann!AE265","v":40},{"$f":"[1]ACS_16_5YR_B18103_with_ann!AF265","v":39},{"$f":"[1]ACS_16_5YR_B18103_with_ann!AG265","v":14},{"$f":"[1]ACS_16_5YR_B18103_with_ann!AH265","v":0},{"$f":"[1]ACS_16_5YR_B18103_with_ann!AI265","v":11},{"$f":"[1]ACS_16_5YR_B18103_with_ann!AJ265","v":39},{"$f":"[1]ACS_16_5YR_B18103_with_ann!AK265","v":14},{"$f":"[1]ACS_16_5YR_B18103_with_ann!AL265","v":15},{"$f":"[1]ACS_16_5YR_B18103_with_ann!AM265","v":9},{"$f":"[1]ACS_16_5YR_B18103_with_ann!AN265","v":6},{"$f":"[1]ACS_16_5YR_B18103_with_ann!AO265","v":5},{"$f":"[1]ACS_16_5YR_B18103_with_ann!AP265","v":9},{"$f":"[1]ACS_16_5YR_B18103_with_ann!AQ265","v":8},{"$f":"[1]ACS_16_5YR_B18103_with_ann!AR265","v":370},{"$f":"[1]ACS_16_5YR_B18103_with_ann!AS265","v":73},{"$f":"[1]ACS_16_5YR_B18103_with_ann!AT265","v":16},{"$f":"[1]ACS_16_5YR_B18103_with_ann!AU265","v":13},{"$f":"[1]ACS_16_5YR_B18103_with_ann!AV265","v":0},{"$f":"[1]ACS_16_5YR_B18103_with_ann!AW265","v":11},{"$f":"[1]ACS_16_5YR_B18103_with_ann!AX265","v":16},{"$f":"[1]ACS_16_5YR_B18103_with_ann!AY265","v":13},{"$f":"[1]ACS_16_5YR_B18103_with_ann!AZ265","v":61},{"$f":"[1]ACS_16_5YR_B18103_with_ann!BA265","v":42},{"$f":"[1]ACS_16_5YR_B18103_with_ann!BB265","v":0},{"$f":"[1]ACS_16_5YR_B18103_with_ann!BC265","v":11},{"$f":"[1]ACS_16_5YR_B18103_with_ann!BD265","v":61},{"$f":"[1]ACS_16_5YR_B18103_with_ann!BE265","v":42},{"$f":"[1]ACS_16_5YR_B18103_with_ann!BF266","v":54},{"$f":"[1]ACS_16_5YR_B18103_with_ann!BG266","v":24},{"$f":"[1]ACS_16_5YR_B18103_with_ann!BH266","v":0},{"$f":"[1]ACS_16_5YR_B18103_with_ann!BI266","v":11},{"$f":"[1]ACS_16_5YR_B18103_with_ann!BJ266","v":54},{"$f":"[1]ACS_16_5YR_B18103_with_ann!BK266","v":24},{"$f":"[1]ACS_16_5YR_B18103_with_ann!BL266","v":191},{"$f":"[1]ACS_16_5YR_B18103_with_ann!BM266","v":52},{"$f":"[1]ACS_16_5YR_B18103_with_ann!BN266","v":5},{"$f":"[1]ACS_16_5YR_B18103_with_ann!BO266","v":7},{"$f":"[1]ACS_16_5YR_B18103_with_ann!BP266","v":186},{"$f":"[1]ACS_16_5YR_B18103_with_ann!BQ266","v":51},{"$f":"[1]ACS_16_5YR_B18103_with_ann!BR266","v":51},{"$f":"[1]ACS_16_5YR_B18103_with_ann!BS266","v":23},{"$f":"[1]ACS_16_5YR_B18103_with_ann!BT266","v":0},{"$f":"[1]ACS_16_5YR_B18103_with_ann!BU266","v":11},{"$f":"[1]ACS_16_5YR_B18103_with_ann!BV266","v":51},{"$f":"[1]ACS_16_5YR_B18103_with_ann!BW266","v":23},{"$f":"[1]ACS_16_5YR_B18103_with_ann!BX266","v":39},{"$f":"[1]ACS_16_5YR_B18103_with_ann!BY266","v":26},{"$f":"[1]ACS_16_5YR_B18103_with_ann!BZ266","v":6},{"$f":"[1]ACS_16_5YR_B18103_with_ann!CA266","v":6},{"$f":"[1]ACS_16_5YR_B18103_with_ann!CB266","v":33},{"$f":"[1]ACS_16_5YR_B18103_with_ann!CC266","v":25}]
["0600000US3301941700",3301941700,"060","Lempster",{"$f":"[1]ACS_16_5YR_B18103_with_ann!D266","v":923},{"$f":"[1]ACS_16_5YR_B18103_with_ann!E266","v":176},{"$f":"[1]ACS_16_5YR_B18103_with_ann!F266","v":432},{"$f":"[1]ACS_16_5YR_B18103_with_ann!G266","v":77},{"$f":"[1]ACS_16_5YR_B18103_with_ann!H266","v":31},{"$f":"[1]ACS_16_5YR_B18103_with_ann!I266","v":21},{"$f":"[1]ACS_16_5YR_B18103_with_ann!J266","v":0},{"$f":"[1]ACS_16_5YR_B18103_with_ann!K266","v":11},{"$f":"[1]ACS_16_5YR_B18103_with_ann!L266","v":31},{"$f":"[1]ACS_16_5YR_B18103_with_ann!M266","v":21},{"$f":"[1]ACS_16_5YR_B18103_with_ann!N266","v":36},{"$f":"[1]ACS_16_5YR_B18103_with_ann!O266","v":23},{"$f":"[1]ACS_16_5YR_B18103_with_ann!P266","v":0},{"$f":"[1]ACS_16_5YR_B18103_with_ann!Q266","v":11},{"$f":"[1]ACS_16_5YR_B18103_with_ann!R266","v":36},{"$f":"[1]ACS_16_5YR_B18103_with_ann!S266","v":23},{"$f":"[1]ACS_16_5YR_B18103_with_ann!T266","v":34},{"$f":"[1]ACS_16_5YR_B18103_with_ann!U266","v":16},{"$f":"[1]ACS_16_5YR_B18103_with_ann!V266","v":0},{"$f":"[1]ACS_16_5YR_B18103_with_ann!W266","v":11},{"$f":"[1]ACS_16_5YR_B18103_with_ann!X266","v":34},{"$f":"[1]ACS_16_5YR_B18103_with_ann!Y266","v":16},{"$f":"[1]ACS_16_5YR_B18103_with_ann!Z266","v":249},{"$f":"[1]ACS_16_5YR_B18103_with_ann!AA266","v":58},{"$f":"[1]ACS_16_5YR_B18103_with_ann!AB266","v":6},{"$f":"[1]ACS_16_5YR_B18103_with_ann!AC266","v":7},{"$f":"[1]ACS_16_5YR_B18103_with_ann!AD266","v":243},{"$f":"[1]ACS_16_5YR_B18103_with_ann!AE266","v":57},{"$f":"[1]ACS_16_5YR_B18103_with_ann!AF266","v":68},{"$f":"[1]ACS_16_5YR_B18103_with_ann!AG266","v":28},{"$f":"[1]ACS_16_5YR_B18103_with_ann!AH266","v":0},{"$f":"[1]ACS_16_5YR_B18103_with_ann!AI266","v":11},{"$f":"[1]ACS_16_5YR_B18103_with_ann!AJ266","v":68},{"$f":"[1]ACS_16_5YR_B18103_with_ann!AK266","v":28},{"$f":"[1]ACS_16_5YR_B18103_with_ann!AL266","v":14},{"$f":"[1]ACS_16_5YR_B18103_with_ann!AM266","v":11},{"$f":"[1]ACS_16_5YR_B18103_with_ann!AN266","v":0},{"$f":"[1]ACS_16_5YR_B18103_with_ann!AO266","v":11},{"$f":"[1]ACS_16_5YR_B18103_with_ann!AP266","v":14},{"$f":"[1]ACS_16_5YR_B18103_with_ann!AQ266","v":11},{"$f":"[1]ACS_16_5YR_B18103_with_ann!AR266","v":491},{"$f":"[1]ACS_16_5YR_B18103_with_ann!AS266","v":123},{"$f":"[1]ACS_16_5YR_B18103_with_ann!AT266","v":35},{"$f":"[1]ACS_16_5YR_B18103_with_ann!AU266","v":23},{"$f":"[1]ACS_16_5YR_B18103_with_ann!AV266","v":0},{"$f":"[1]ACS_16_5YR_B18103_with_ann!AW266","v":11},{"$f":"[1]ACS_16_5YR_B18103_with_ann!AX266","v":35},{"$f":"[1]ACS_16_5YR_B18103_with_ann!AY266","v":23},{"$f":"[1]ACS_16_5YR_B18103_with_ann!AZ266","v":121},{"$f":"[1]ACS_16_5YR_B18103_with_ann!BA266","v":76},{"$f":"[1]ACS_16_5YR_B18103_with_ann!BB266","v":0},{"$f":"[1]ACS_16_5YR_B18103_with_ann!BC266","v":11},{"$f":"[1]ACS_16_5YR_B18103_with_ann!BD266","v":121},{"$f":"[1]ACS_16_5YR_B18103_with_ann!BE266","v":76},{"$f":"[1]ACS_16_5YR_B18103_with_ann!BF267","v":520},{"$f":"[1]ACS_16_5YR_B18103_with_ann!BG267","v":162},{"$f":"[1]ACS_16_5YR_B18103_with_ann!BH267","v":0},{"$f":"[1]ACS_16_5YR_B18103_with_ann!BI267","v":16},{"$f":"[1]ACS_16_5YR_B18103_with_ann!BJ267","v":520},{"$f":"[1]ACS_16_5YR_B18103_with_ann!BK267","v":162},{"$f":"[1]ACS_16_5YR_B18103_with_ann!BL267","v":1406},{"$f":"[1]ACS_16_5YR_B18103_with_ann!BM267","v":188},{"$f":"[1]ACS_16_5YR_B18103_with_ann!BN267","v":65},{"$f":"[1]ACS_16_5YR_B18103_with_ann!BO267","v":64},{"$f":"[1]ACS_16_5YR_B18103_with_ann!BP267","v":1341},{"$f":"[1]ACS_16_5YR_B18103_with_ann!BQ267","v":200},{"$f":"[1]ACS_16_5YR_B18103_with_ann!BR267","v":312},{"$f":"[1]ACS_16_5YR_B18103_with_ann!BS267","v":130},{"$f":"[1]ACS_16_5YR_B18103_with_ann!BT267","v":19},{"$f":"[1]ACS_16_5YR_B18103_with_ann!BU267","v":31},{"$f":"[1]ACS_16_5YR_B18103_with_ann!BV267","v":293},{"$f":"[1]ACS_16_5YR_B18103_with_ann!BW267","v":123},{"$f":"[1]ACS_16_5YR_B18103_with_ann!BX267","v":285},{"$f":"[1]ACS_16_5YR_B18103_with_ann!BY267","v":103},{"$f":"[1]ACS_16_5YR_B18103_with_ann!BZ267","v":23},{"$f":"[1]ACS_16_5YR_B18103_with_ann!CA267","v":27},{"$f":"[1]ACS_16_5YR_B18103_with_ann!CB267","v":262},{"$f":"[1]ACS_16_5YR_B18103_with_ann!CC267","v":98}]
["0600000US3301952580",3301952580,"060","Newport",{"$f":"[1]ACS_16_5YR_B18103_with_ann!D267","v":6259},{"$f":"[1]ACS_16_5YR_B18103_with_ann!E267","v":51},{"$f":"[1]ACS_16_5YR_B18103_with_ann!F267","v":3230},{"$f":"[1]ACS_16_5YR_B18103_with_ann!G267","v":212},{"$f":"[1]ACS_16_5YR_B18103_with_ann!H267","v":185},{"$f":"[1]ACS_16_5YR_B18103_with_ann!I267","v":95},{"$f":"[1]ACS_16_5YR_B18103_with_ann!J267","v":0},{"$f":"[1]ACS_16_5YR_B18103_with_ann!K267","v":16},{"$f":"[1]ACS_16_5YR_B18103_with_ann!L267","v":185},{"$f":"[1]ACS_16_5YR_B18103_with_ann!M267","v":95},{"$f":"[1]ACS_16_5YR_B18103_with_ann!N267","v":507},{"$f":"[1]ACS_16_5YR_B18103_with_ann!O267","v":185},{"$f":"[1]ACS_16_5YR_B18103_with_ann!P267","v":64},{"$f":"[1]ACS_16_5YR_B18103_with_ann!Q267","v":59},{"$f":"[1]ACS_16_5YR_B18103_with_ann!R267","v":443},{"$f":"[1]ACS_16_5YR_B18103_with_ann!S267","v":153},{"$f":"[1]ACS_16_5YR_B18103_with_ann!T267","v":754},{"$f":"[1]ACS_16_5YR_B18103_with_ann!U267","v":177},{"$f":"[1]ACS_16_5YR_B18103_with_ann!V267","v":0},{"$f":"[1]ACS_16_5YR_B18103_with_ann!W267","v":16},{"$f":"[1]ACS_16_5YR_B18103_with_ann!X267","v":754},{"$f":"[1]ACS_16_5YR_B18103_with_ann!Y267","v":177},{"$f":"[1]ACS_16_5YR_B18103_with_ann!Z267","v":1262},{"$f":"[1]ACS_16_5YR_B18103_with_ann!AA267","v":216},{"$f":"[1]ACS_16_5YR_B18103_with_ann!AB267","v":63},{"$f":"[1]ACS_16_5YR_B18103_with_ann!AC267","v":65},{"$f":"[1]ACS_16_5YR_B18103_with_ann!AD267","v":1199},{"$f":"[1]ACS_16_5YR_B18103_with_ann!AE267","v":218},{"$f":"[1]ACS_16_5YR_B18103_with_ann!AF267","v":405},{"$f":"[1]ACS_16_5YR_B18103_with_ann!AG267","v":161},{"$f":"[1]ACS_16_5YR_B18103_with_ann!AH267","v":0},{"$f":"[1]ACS_16_5YR_B18103_with_ann!AI267","v":16},{"$f":"[1]ACS_16_5YR_B18103_with_ann!AJ267","v":405},{"$f":"[1]ACS_16_5YR_B18103_with_ann!AK267","v":161},{"$f":"[1]ACS_16_5YR_B18103_with_ann!AL267","v":117},{"$f":"[1]ACS_16_5YR_B18103_with_ann!AM267","v":81},{"$f":"[1]ACS_16_5YR_B18103_with_ann!AN267","v":12},{"$f":"[1]ACS_16_5YR_B18103_with_ann!AO267","v":19},{"$f":"[1]ACS_16_5YR_B18103_with_ann!AP267","v":105},{"$f":"[1]ACS_16_5YR_B18103_with_ann!AQ267","v":79},{"$f":"[1]ACS_16_5YR_B18103_with_ann!AR267","v":3029},{"$f":"[1]ACS_16_5YR_B18103_with_ann!AS267","v":217},{"$f":"[1]ACS_16_5YR_B18103_with_ann!AT267","v":100},{"$f":"[1]ACS_16_5YR_B18103_with_ann!AU267","v":62},{"$f":"[1]ACS_16_5YR_B18103_with_ann!AV267","v":0},{"$f":"[1]ACS_16_5YR_B18103_with_ann!AW267","v":16},{"$f":"[1]ACS_16_5YR_B18103_with_ann!AX267","v":100},{"$f":"[1]ACS_16_5YR_B18103_with_ann!AY267","v":62},{"$f":"[1]ACS_16_5YR_B18103_with_ann!AZ267","v":406},{"$f":"[1]ACS_16_5YR_B18103_with_ann!BA267","v":128},{"$f":"[1]ACS_16_5YR_B18103_with_ann!BB267","v":0},{"$f":"[1]ACS_16_5YR_B18103_with_ann!BC267","v":16},{"$f":"[1]ACS_16_5YR_B18103_with_ann!BD267","v":406},{"$f":"[1]ACS_16_5YR_B18103_with_ann!BE267","v":128},{"$f":"[1]ACS_16_5YR_B18103_with_ann!BF268","v":280},{"$f":"[1]ACS_16_5YR_B18103_with_ann!BG268","v":61},{"$f":"[1]ACS_16_5YR_B18103_with_ann!BH268","v":0},{"$f":"[1]ACS_16_5YR_B18103_with_ann!BI268","v":11},{"$f":"[1]ACS_16_5YR_B18103_with_ann!BJ268","v":280},{"$f":"[1]ACS_16_5YR_B18103_with_ann!BK268","v":61},{"$f":"[1]ACS_16_5YR_B18103_with_ann!BL268","v":521},{"$f":"[1]ACS_16_5YR_B18103_with_ann!BM268","v":81},{"$f":"[1]ACS_16_5YR_B18103_with_ann!BN268","v":0},{"$f":"[1]ACS_16_5YR_B18103_with_ann!BO268","v":11},{"$f":"[1]ACS_16_5YR_B18103_with_ann!BP268","v":521},{"$f":"[1]ACS_16_5YR_B18103_with_ann!BQ268","v":81},{"$f":"[1]ACS_16_5YR_B18103_with_ann!BR268","v":181},{"$f":"[1]ACS_16_5YR_B18103_with_ann!BS268","v":56},{"$f":"[1]ACS_16_5YR_B18103_with_ann!BT268","v":0},{"$f":"[1]ACS_16_5YR_B18103_with_ann!BU268","v":11},{"$f":"[1]ACS_16_5YR_B18103_with_ann!BV268","v":181},{"$f":"[1]ACS_16_5YR_B18103_with_ann!BW268","v":56},{"$f":"[1]ACS_16_5YR_B18103_with_ann!BX268","v":60},{"$f":"[1]ACS_16_5YR_B18103_with_ann!BY268","v":32},{"$f":"[1]ACS_16_5YR_B18103_with_ann!BZ268","v":0},{"$f":"[1]ACS_16_5YR_B18103_with_ann!CA268","v":11},{"$f":"[1]ACS_16_5YR_B18103_with_ann!CB268","v":60},{"$f":"[1]ACS_16_5YR_B18103_with_ann!CC268","v":32}]
["0600000US3301962340",3301962340,"060","Plainfield",{"$f":"[1]ACS_16_5YR_B18103_with_ann!D268","v":2555},{"$f":"[1]ACS_16_5YR_B18103_with_ann!E268","v":293},{"$f":"[1]ACS_16_5YR_B18103_with_ann!F268","v":1278},{"$f":"[1]ACS_16_5YR_B18103_with_ann!G268","v":174},{"$f":"[1]ACS_16_5YR_B18103_with_ann!H268","v":32},{"$f":"[1]ACS_16_5YR_B18103_with_ann!I268","v":34},{"$f":"[1]ACS_16_5YR_B18103_with_ann!J268","v":0},{"$f":"[1]ACS_16_5YR_B18103_with_ann!K268","v":11},{"$f":"[1]ACS_16_5YR_B18103_with_ann!L268","v":32},{"$f":"[1]ACS_16_5YR_B18103_with_ann!M268","v":34},{"$f":"[1]ACS_16_5YR_B18103_with_ann!N268","v":230},{"$f":"[1]ACS_16_5YR_B18103_with_ann!O268","v":86},{"$f":"[1]ACS_16_5YR_B18103_with_ann!P268","v":0},{"$f":"[1]ACS_16_5YR_B18103_with_ann!Q268","v":11},{"$f":"[1]ACS_16_5YR_B18103_with_ann!R268","v":230},{"$f":"[1]ACS_16_5YR_B18103_with_ann!S268","v":86},{"$f":"[1]ACS_16_5YR_B18103_with_ann!T268","v":261},{"$f":"[1]ACS_16_5YR_B18103_with_ann!U268","v":84},{"$f":"[1]ACS_16_5YR_B18103_with_ann!V268","v":0},{"$f":"[1]ACS_16_5YR_B18103_with_ann!W268","v":11},{"$f":"[1]ACS_16_5YR_B18103_with_ann!X268","v":261},{"$f":"[1]ACS_16_5YR_B18103_with_ann!Y268","v":84},{"$f":"[1]ACS_16_5YR_B18103_with_ann!Z268","v":521},{"$f":"[1]ACS_16_5YR_B18103_with_ann!AA268","v":71},{"$f":"[1]ACS_16_5YR_B18103_with_ann!AB268","v":10},{"$f":"[1]ACS_16_5YR_B18103_with_ann!AC268","v":9},{"$f":"[1]ACS_16_5YR_B18103_with_ann!AD268","v":511},{"$f":"[1]ACS_16_5YR_B18103_with_ann!AE268","v":72},{"$f":"[1]ACS_16_5YR_B18103_with_ann!AF268","v":178},{"$f":"[1]ACS_16_5YR_B18103_with_ann!AG268","v":57},{"$f":"[1]ACS_16_5YR_B18103_with_ann!AH268","v":0},{"$f":"[1]ACS_16_5YR_B18103_with_ann!AI268","v":11},{"$f":"[1]ACS_16_5YR_B18103_with_ann!AJ268","v":178},{"$f":"[1]ACS_16_5YR_B18103_with_ann!AK268","v":57},{"$f":"[1]ACS_16_5YR_B18103_with_ann!AL268","v":56},{"$f":"[1]ACS_16_5YR_B18103_with_ann!AM268","v":35},{"$f":"[1]ACS_16_5YR_B18103_with_ann!AN268","v":0},{"$f":"[1]ACS_16_5YR_B18103_with_ann!AO268","v":11},{"$f":"[1]ACS_16_5YR_B18103_with_ann!AP268","v":56},{"$f":"[1]ACS_16_5YR_B18103_with_ann!AQ268","v":35},{"$f":"[1]ACS_16_5YR_B18103_with_ann!AR268","v":1277},{"$f":"[1]ACS_16_5YR_B18103_with_ann!AS268","v":157},{"$f":"[1]ACS_16_5YR_B18103_with_ann!AT268","v":50},{"$f":"[1]ACS_16_5YR_B18103_with_ann!AU268","v":55},{"$f":"[1]ACS_16_5YR_B18103_with_ann!AV268","v":0},{"$f":"[1]ACS_16_5YR_B18103_with_ann!AW268","v":11},{"$f":"[1]ACS_16_5YR_B18103_with_ann!AX268","v":50},{"$f":"[1]ACS_16_5YR_B18103_with_ann!AY268","v":55},{"$f":"[1]ACS_16_5YR_B18103_with_ann!AZ268","v":185},{"$f":"[1]ACS_16_5YR_B18103_with_ann!BA268","v":81},{"$f":"[1]ACS_16_5YR_B18103_with_ann!BB268","v":0},{"$f":"[1]ACS_16_5YR_B18103_with_ann!BC268","v":11},{"$f":"[1]ACS_16_5YR_B18103_with_ann!BD268","v":185},{"$f":"[1]ACS_16_5YR_B18103_with_ann!BE268","v":81},{"$f":"[1]ACS_16_5YR_B18103_with_ann!BF269","v":37},{"$f":"[1]ACS_16_5YR_B18103_with_ann!BG269","v":27},{"$f":"[1]ACS_16_5YR_B18103_with_ann!BH269","v":0},{"$f":"[1]ACS_16_5YR_B18103_with_ann!BI269","v":11},{"$f":"[1]ACS_16_5YR_B18103_with_ann!BJ269","v":37},{"$f":"[1]ACS_16_5YR_B18103_with_ann!BK269","v":27},{"$f":"[1]ACS_16_5YR_B18103_with_ann!BL269","v":241},{"$f":"[1]ACS_16_5YR_B18103_with_ann!BM269","v":64},{"$f":"[1]ACS_16_5YR_B18103_with_ann!BN269","v":4},{"$f":"[1]ACS_16_5YR_B18103_with_ann!BO269","v":6},{"$f":"[1]ACS_16_5YR_B18103_with_ann!BP269","v":237},{"$f":"[1]ACS_16_5YR_B18103_with_ann!BQ269","v":63},{"$f":"[1]ACS_16_5YR_B18103_with_ann!BR269","v":112},{"$f":"[1]ACS_16_5YR_B18103_with_ann!BS269","v":42},{"$f":"[1]ACS_16_5YR_B18103_with_ann!BT269","v":6},{"$f":"[1]ACS_16_5YR_B18103_with_ann!BU269","v":10},{"$f":"[1]ACS_16_5YR_B18103_with_ann!BV269","v":106},{"$f":"[1]ACS_16_5YR_B18103_with_ann!BW269","v":41},{"$f":"[1]ACS_16_5YR_B18103_with_ann!BX269","v":38},{"$f":"[1]ACS_16_5YR_B18103_with_ann!BY269","v":26},{"$f":"[1]ACS_16_5YR_B18103_with_ann!BZ269","v":0},{"$f":"[1]ACS_16_5YR_B18103_with_ann!CA269","v":11},{"$f":"[1]ACS_16_5YR_B18103_with_ann!CB269","v":38},{"$f":"[1]ACS_16_5YR_B18103_with_ann!CC269","v":26}]
["0600000US3301972740",3301972740,"060","Springfield",{"$f":"[1]ACS_16_5YR_B18103_with_ann!D269","v":1084},{"$f":"[1]ACS_16_5YR_B18103_with_ann!E269","v":198},{"$f":"[1]ACS_16_5YR_B18103_with_ann!F269","v":575},{"$f":"[1]ACS_16_5YR_B18103_with_ann!G269","v":112},{"$f":"[1]ACS_16_5YR_B18103_with_ann!H269","v":3},{"$f":"[1]ACS_16_5YR_B18103_with_ann!I269","v":5},{"$f":"[1]ACS_16_5YR_B18103_with_ann!J269","v":0},{"$f":"[1]ACS_16_5YR_B18103_with_ann!K269","v":11},{"$f":"[1]ACS_16_5YR_B18103_with_ann!L269","v":3},{"$f":"[1]ACS_16_5YR_B18103_with_ann!M269","v":5},{"$f":"[1]ACS_16_5YR_B18103_with_ann!N269","v":72},{"$f":"[1]ACS_16_5YR_B18103_with_ann!O269","v":33},{"$f":"[1]ACS_16_5YR_B18103_with_ann!P269","v":0},{"$f":"[1]ACS_16_5YR_B18103_with_ann!Q269","v":11},{"$f":"[1]ACS_16_5YR_B18103_with_ann!R269","v":72},{"$f":"[1]ACS_16_5YR_B18103_with_ann!S269","v":33},{"$f":"[1]ACS_16_5YR_B18103_with_ann!T269","v":103},{"$f":"[1]ACS_16_5YR_B18103_with_ann!U269","v":56},{"$f":"[1]ACS_16_5YR_B18103_with_ann!V269","v":0},{"$f":"[1]ACS_16_5YR_B18103_with_ann!W269","v":11},{"$f":"[1]ACS_16_5YR_B18103_with_ann!X269","v":103},{"$f":"[1]ACS_16_5YR_B18103_with_ann!Y269","v":56},{"$f":"[1]ACS_16_5YR_B18103_with_ann!Z269","v":225},{"$f":"[1]ACS_16_5YR_B18103_with_ann!AA269","v":63},{"$f":"[1]ACS_16_5YR_B18103_with_ann!AB269","v":0},{"$f":"[1]ACS_16_5YR_B18103_with_ann!AC269","v":11},{"$f":"[1]ACS_16_5YR_B18103_with_ann!AD269","v":225},{"$f":"[1]ACS_16_5YR_B18103_with_ann!AE269","v":63},{"$f":"[1]ACS_16_5YR_B18103_with_ann!AF269","v":111},{"$f":"[1]ACS_16_5YR_B18103_with_ann!AG269","v":42},{"$f":"[1]ACS_16_5YR_B18103_with_ann!AH269","v":4},{"$f":"[1]ACS_16_5YR_B18103_with_ann!AI269","v":6},{"$f":"[1]ACS_16_5YR_B18103_with_ann!AJ269","v":107},{"$f":"[1]ACS_16_5YR_B18103_with_ann!AK269","v":41},{"$f":"[1]ACS_16_5YR_B18103_with_ann!AL269","v":61},{"$f":"[1]ACS_16_5YR_B18103_with_ann!AM269","v":35},{"$f":"[1]ACS_16_5YR_B18103_with_ann!AN269","v":7},{"$f":"[1]ACS_16_5YR_B18103_with_ann!AO269","v":8},{"$f":"[1]ACS_16_5YR_B18103_with_ann!AP269","v":54},{"$f":"[1]ACS_16_5YR_B18103_with_ann!AQ269","v":33},{"$f":"[1]ACS_16_5YR_B18103_with_ann!AR269","v":509},{"$f":"[1]ACS_16_5YR_B18103_with_ann!AS269","v":111},{"$f":"[1]ACS_16_5YR_B18103_with_ann!AT269","v":11},{"$f":"[1]ACS_16_5YR_B18103_with_ann!AU269","v":17},{"$f":"[1]ACS_16_5YR_B18103_with_ann!AV269","v":0},{"$f":"[1]ACS_16_5YR_B18103_with_ann!AW269","v":11},{"$f":"[1]ACS_16_5YR_B18103_with_ann!AX269","v":11},{"$f":"[1]ACS_16_5YR_B18103_with_ann!AY269","v":17},{"$f":"[1]ACS_16_5YR_B18103_with_ann!AZ269","v":70},{"$f":"[1]ACS_16_5YR_B18103_with_ann!BA269","v":46},{"$f":"[1]ACS_16_5YR_B18103_with_ann!BB269","v":0},{"$f":"[1]ACS_16_5YR_B18103_with_ann!BC269","v":11},{"$f":"[1]ACS_16_5YR_B18103_with_ann!BD269","v":70},{"$f":"[1]ACS_16_5YR_B18103_with_ann!BE269","v":46},{"$f":"[1]ACS_16_5YR_B18103_with_ann!BF270","v":250},{"$f":"[1]ACS_16_5YR_B18103_with_ann!BG270","v":74},{"$f":"[1]ACS_16_5YR_B18103_with_ann!BH270","v":0},{"$f":"[1]ACS_16_5YR_B18103_with_ann!BI270","v":11},{"$f":"[1]ACS_16_5YR_B18103_with_ann!BJ270","v":250},{"$f":"[1]ACS_16_5YR_B18103_with_ann!BK270","v":74},{"$f":"[1]ACS_16_5YR_B18103_with_ann!BL270","v":734},{"$f":"[1]ACS_16_5YR_B18103_with_ann!BM270","v":118},{"$f":"[1]ACS_16_5YR_B18103_with_ann!BN270","v":10},{"$f":"[1]ACS_16_5YR_B18103_with_ann!BO270","v":16},{"$f":"[1]ACS_16_5YR_B18103_with_ann!BP270","v":724},{"$f":"[1]ACS_16_5YR_B18103_with_ann!BQ270","v":121},{"$f":"[1]ACS_16_5YR_B18103_with_ann!BR270","v":233},{"$f":"[1]ACS_16_5YR_B18103_with_ann!BS270","v":69},{"$f":"[1]ACS_16_5YR_B18103_with_ann!BT270","v":6},{"$f":"[1]ACS_16_5YR_B18103_with_ann!BU270","v":9},{"$f":"[1]ACS_16_5YR_B18103_with_ann!BV270","v":227},{"$f":"[1]ACS_16_5YR_B18103_with_ann!BW270","v":68},{"$f":"[1]ACS_16_5YR_B18103_with_ann!BX270","v":182},{"$f":"[1]ACS_16_5YR_B18103_with_ann!BY270","v":81},{"$f":"[1]ACS_16_5YR_B18103_with_ann!BZ270","v":0},{"$f":"[1]ACS_16_5YR_B18103_with_ann!CA270","v":11},{"$f":"[1]ACS_16_5YR_B18103_with_ann!CB270","v":182},{"$f":"[1]ACS_16_5YR_B18103_with_ann!CC270","v":81}]
["0600000US3301975060",3301975060,"060","Sunapee",{"$f":"[1]ACS_16_5YR_B18103_with_ann!D270","v":3449},{"$f":"[1]ACS_16_5YR_B18103_with_ann!E270","v":19},{"$f":"[1]ACS_16_5YR_B18103_with_ann!F270","v":1792},{"$f":"[1]ACS_16_5YR_B18103_with_ann!G270","v":129},{"$f":"[1]ACS_16_5YR_B18103_with_ann!H270","v":97},{"$f":"[1]ACS_16_5YR_B18103_with_ann!I270","v":57},{"$f":"[1]ACS_16_5YR_B18103_with_ann!J270","v":0},{"$f":"[1]ACS_16_5YR_B18103_with_ann!K270","v":11},{"$f":"[1]ACS_16_5YR_B18103_with_ann!L270","v":97},{"$f":"[1]ACS_16_5YR_B18103_with_ann!M270","v":57},{"$f":"[1]ACS_16_5YR_B18103_with_ann!N270","v":337},{"$f":"[1]ACS_16_5YR_B18103_with_ann!O270","v":95},{"$f":"[1]ACS_16_5YR_B18103_with_ann!P270","v":0},{"$f":"[1]ACS_16_5YR_B18103_with_ann!Q270","v":11},{"$f":"[1]ACS_16_5YR_B18103_with_ann!R270","v":337},{"$f":"[1]ACS_16_5YR_B18103_with_ann!S270","v":95},{"$f":"[1]ACS_16_5YR_B18103_with_ann!T270","v":290},{"$f":"[1]ACS_16_5YR_B18103_with_ann!U270","v":93},{"$f":"[1]ACS_16_5YR_B18103_with_ann!V270","v":0},{"$f":"[1]ACS_16_5YR_B18103_with_ann!W270","v":11},{"$f":"[1]ACS_16_5YR_B18103_with_ann!X270","v":290},{"$f":"[1]ACS_16_5YR_B18103_with_ann!Y270","v":93},{"$f":"[1]ACS_16_5YR_B18103_with_ann!Z270","v":777},{"$f":"[1]ACS_16_5YR_B18103_with_ann!AA270","v":126},{"$f":"[1]ACS_16_5YR_B18103_with_ann!AB270","v":0},{"$f":"[1]ACS_16_5YR_B18103_with_ann!AC270","v":11},{"$f":"[1]ACS_16_5YR_B18103_with_ann!AD270","v":777},{"$f":"[1]ACS_16_5YR_B18103_with_ann!AE270","v":126},{"$f":"[1]ACS_16_5YR_B18103_with_ann!AF270","v":176},{"$f":"[1]ACS_16_5YR_B18103_with_ann!AG270","v":58},{"$f":"[1]ACS_16_5YR_B18103_with_ann!AH270","v":10},{"$f":"[1]ACS_16_5YR_B18103_with_ann!AI270","v":15},{"$f":"[1]ACS_16_5YR_B18103_with_ann!AJ270","v":166},{"$f":"[1]ACS_16_5YR_B18103_with_ann!AK270","v":58},{"$f":"[1]ACS_16_5YR_B18103_with_ann!AL270","v":115},{"$f":"[1]ACS_16_5YR_B18103_with_ann!AM270","v":59},{"$f":"[1]ACS_16_5YR_B18103_with_ann!AN270","v":0},{"$f":"[1]ACS_16_5YR_B18103_with_ann!AO270","v":11},{"$f":"[1]ACS_16_5YR_B18103_with_ann!AP270","v":115},{"$f":"[1]ACS_16_5YR_B18103_with_ann!AQ270","v":59},{"$f":"[1]ACS_16_5YR_B18103_with_ann!AR270","v":1657},{"$f":"[1]ACS_16_5YR_B18103_with_ann!AS270","v":127},{"$f":"[1]ACS_16_5YR_B18103_with_ann!AT270","v":61},{"$f":"[1]ACS_16_5YR_B18103_with_ann!AU270","v":39},{"$f":"[1]ACS_16_5YR_B18103_with_ann!AV270","v":0},{"$f":"[1]ACS_16_5YR_B18103_with_ann!AW270","v":11},{"$f":"[1]ACS_16_5YR_B18103_with_ann!AX270","v":61},{"$f":"[1]ACS_16_5YR_B18103_with_ann!AY270","v":39},{"$f":"[1]ACS_16_5YR_B18103_with_ann!AZ270","v":197},{"$f":"[1]ACS_16_5YR_B18103_with_ann!BA270","v":84},{"$f":"[1]ACS_16_5YR_B18103_with_ann!BB270","v":0},{"$f":"[1]ACS_16_5YR_B18103_with_ann!BC270","v":11},{"$f":"[1]ACS_16_5YR_B18103_with_ann!BD270","v":197},{"$f":"[1]ACS_16_5YR_B18103_with_ann!BE270","v":84},{"$f":"[1]ACS_16_5YR_B18103_with_ann!BF271","v":111},{"$f":"[1]ACS_16_5YR_B18103_with_ann!BG271","v":46},{"$f":"[1]ACS_16_5YR_B18103_with_ann!BH271","v":0},{"$f":"[1]ACS_16_5YR_B18103_with_ann!BI271","v":11},{"$f":"[1]ACS_16_5YR_B18103_with_ann!BJ271","v":111},{"$f":"[1]ACS_16_5YR_B18103_with_ann!BK271","v":46},{"$f":"[1]ACS_16_5YR_B18103_with_ann!BL271","v":338},{"$f":"[1]ACS_16_5YR_B18103_with_ann!BM271","v":45},{"$f":"[1]ACS_16_5YR_B18103_with_ann!BN271","v":7},{"$f":"[1]ACS_16_5YR_B18103_with_ann!BO271","v":8},{"$f":"[1]ACS_16_5YR_B18103_with_ann!BP271","v":331},{"$f":"[1]ACS_16_5YR_B18103_with_ann!BQ271","v":44},{"$f":"[1]ACS_16_5YR_B18103_with_ann!BR271","v":113},{"$f":"[1]ACS_16_5YR_B18103_with_ann!BS271","v":29},{"$f":"[1]ACS_16_5YR_B18103_with_ann!BT271","v":3},{"$f":"[1]ACS_16_5YR_B18103_with_ann!BU271","v":4},{"$f":"[1]ACS_16_5YR_B18103_with_ann!BV271","v":110},{"$f":"[1]ACS_16_5YR_B18103_with_ann!BW271","v":28},{"$f":"[1]ACS_16_5YR_B18103_with_ann!BX271","v":39},{"$f":"[1]ACS_16_5YR_B18103_with_ann!BY271","v":15},{"$f":"[1]ACS_16_5YR_B18103_with_ann!BZ271","v":0},{"$f":"[1]ACS_16_5YR_B18103_with_ann!CA271","v":11},{"$f":"[1]ACS_16_5YR_B18103_with_ann!CB271","v":39},{"$f":"[1]ACS_16_5YR_B18103_with_ann!CC271","v":15}]
["0600000US3301977940",3301977940,"060","Unity",{"$f":"[1]ACS_16_5YR_B18103_with_ann!D271","v":1331},{"$f":"[1]ACS_16_5YR_B18103_with_ann!E271","v":148},{"$f":"[1]ACS_16_5YR_B18103_with_ann!F271","v":627},{"$f":"[1]ACS_16_5YR_B18103_with_ann!G271","v":66},{"$f":"[1]ACS_16_5YR_B18103_with_ann!H271","v":3},{"$f":"[1]ACS_16_5YR_B18103_with_ann!I271","v":6},{"$f":"[1]ACS_16_5YR_B18103_with_ann!J271","v":0},{"$f":"[1]ACS_16_5YR_B18103_with_ann!K271","v":11},{"$f":"[1]ACS_16_5YR_B18103_with_ann!L271","v":3},{"$f":"[1]ACS_16_5YR_B18103_with_ann!M271","v":6},{"$f":"[1]ACS_16_5YR_B18103_with_ann!N271","v":46},{"$f":"[1]ACS_16_5YR_B18103_with_ann!O271","v":21},{"$f":"[1]ACS_16_5YR_B18103_with_ann!P271","v":0},{"$f":"[1]ACS_16_5YR_B18103_with_ann!Q271","v":11},{"$f":"[1]ACS_16_5YR_B18103_with_ann!R271","v":46},{"$f":"[1]ACS_16_5YR_B18103_with_ann!S271","v":21},{"$f":"[1]ACS_16_5YR_B18103_with_ann!T271","v":79},{"$f":"[1]ACS_16_5YR_B18103_with_ann!U271","v":31},{"$f":"[1]ACS_16_5YR_B18103_with_ann!V271","v":0},{"$f":"[1]ACS_16_5YR_B18103_with_ann!W271","v":11},{"$f":"[1]ACS_16_5YR_B18103_with_ann!X271","v":79},{"$f":"[1]ACS_16_5YR_B18103_with_ann!Y271","v":31},{"$f":"[1]ACS_16_5YR_B18103_with_ann!Z271","v":324},{"$f":"[1]ACS_16_5YR_B18103_with_ann!AA271","v":53},{"$f":"[1]ACS_16_5YR_B18103_with_ann!AB271","v":0},{"$f":"[1]ACS_16_5YR_B18103_with_ann!AC271","v":11},{"$f":"[1]ACS_16_5YR_B18103_with_ann!AD271","v":324},{"$f":"[1]ACS_16_5YR_B18103_with_ann!AE271","v":53},{"$f":"[1]ACS_16_5YR_B18103_with_ann!AF271","v":128},{"$f":"[1]ACS_16_5YR_B18103_with_ann!AG271","v":36},{"$f":"[1]ACS_16_5YR_B18103_with_ann!AH271","v":4},{"$f":"[1]ACS_16_5YR_B18103_with_ann!AI271","v":5},{"$f":"[1]ACS_16_5YR_B18103_with_ann!AJ271","v":124},{"$f":"[1]ACS_16_5YR_B18103_with_ann!AK271","v":36},{"$f":"[1]ACS_16_5YR_B18103_with_ann!AL271","v":47},{"$f":"[1]ACS_16_5YR_B18103_with_ann!AM271","v":17},{"$f":"[1]ACS_16_5YR_B18103_with_ann!AN271","v":2},{"$f":"[1]ACS_16_5YR_B18103_with_ann!AO271","v":4},{"$f":"[1]ACS_16_5YR_B18103_with_ann!AP271","v":45},{"$f":"[1]ACS_16_5YR_B18103_with_ann!AQ271","v":15},{"$f":"[1]ACS_16_5YR_B18103_with_ann!AR271","v":704},{"$f":"[1]ACS_16_5YR_B18103_with_ann!AS271","v":99},{"$f":"[1]ACS_16_5YR_B18103_with_ann!AT271","v":14},{"$f":"[1]ACS_16_5YR_B18103_with_ann!AU271","v":15},{"$f":"[1]ACS_16_5YR_B18103_with_ann!AV271","v":0},{"$f":"[1]ACS_16_5YR_B18103_with_ann!AW271","v":11},{"$f":"[1]ACS_16_5YR_B18103_with_ann!AX271","v":14},{"$f":"[1]ACS_16_5YR_B18103_with_ann!AY271","v":15},{"$f":"[1]ACS_16_5YR_B18103_with_ann!AZ271","v":89},{"$f":"[1]ACS_16_5YR_B18103_with_ann!BA271","v":48},{"$f":"[1]ACS_16_5YR_B18103_with_ann!BB271","v":0},{"$f":"[1]ACS_16_5YR_B18103_with_ann!BC271","v":11},{"$f":"[1]ACS_16_5YR_B18103_with_ann!BD271","v":89},{"$f":"[1]ACS_16_5YR_B18103_with_ann!BE271","v":48},{"$f":"[1]ACS_16_5YR_B18103_with_ann!BF272","v":63},{"$f":"[1]ACS_16_5YR_B18103_with_ann!BG272","v":30},{"$f":"[1]ACS_16_5YR_B18103_with_ann!BH272","v":0},{"$f":"[1]ACS_16_5YR_B18103_with_ann!BI272","v":11},{"$f":"[1]ACS_16_5YR_B18103_with_ann!BJ272","v":63},{"$f":"[1]ACS_16_5YR_B18103_with_ann!BK272","v":30},{"$f":"[1]ACS_16_5YR_B18103_with_ann!BL272","v":301},{"$f":"[1]ACS_16_5YR_B18103_with_ann!BM272","v":81},{"$f":"[1]ACS_16_5YR_B18103_with_ann!BN272","v":0},{"$f":"[1]ACS_16_5YR_B18103_with_ann!BO272","v":11},{"$f":"[1]ACS_16_5YR_B18103_with_ann!BP272","v":301},{"$f":"[1]ACS_16_5YR_B18103_with_ann!BQ272","v":81},{"$f":"[1]ACS_16_5YR_B18103_with_ann!BR272","v":116},{"$f":"[1]ACS_16_5YR_B18103_with_ann!BS272","v":31},{"$f":"[1]ACS_16_5YR_B18103_with_ann!BT272","v":0},{"$f":"[1]ACS_16_5YR_B18103_with_ann!BU272","v":11},{"$f":"[1]ACS_16_5YR_B18103_with_ann!BV272","v":116},{"$f":"[1]ACS_16_5YR_B18103_with_ann!BW272","v":31},{"$f":"[1]ACS_16_5YR_B18103_with_ann!BX272","v":29},{"$f":"[1]ACS_16_5YR_B18103_with_ann!BY272","v":15},{"$f":"[1]ACS_16_5YR_B18103_with_ann!BZ272","v":0},{"$f":"[1]ACS_16_5YR_B18103_with_ann!CA272","v":11},{"$f":"[1]ACS_16_5YR_B18103_with_ann!CB272","v":29},{"$f":"[1]ACS_16_5YR_B18103_with_ann!CC272","v":15}]
["0600000US3301978980",3301978980,"060","Washington",{"$f":"[1]ACS_16_5YR_B18103_with_ann!D272","v":1199},{"$f":"[1]ACS_16_5YR_B18103_with_ann!E272","v":188},{"$f":"[1]ACS_16_5YR_B18103_with_ann!F272","v":612},{"$f":"[1]ACS_16_5YR_B18103_with_ann!G272","v":109},{"$f":"[1]ACS_16_5YR_B18103_with_ann!H272","v":0},{"$f":"[1]ACS_16_5YR_B18103_with_ann!I272","v":11},{"$f":"[1]ACS_16_5YR_B18103_with_ann!J272","v":0},{"$f":"[1]ACS_16_5YR_B18103_with_ann!K272","v":11},{"$f":"[1]ACS_16_5YR_B18103_with_ann!L272","v":0},{"$f":"[1]ACS_16_5YR_B18103_with_ann!M272","v":11},{"$f":"[1]ACS_16_5YR_B18103_with_ann!N272","v":61},{"$f":"[1]ACS_16_5YR_B18103_with_ann!O272","v":49},{"$f":"[1]ACS_16_5YR_B18103_with_ann!P272","v":0},{"$f":"[1]ACS_16_5YR_B18103_with_ann!Q272","v":11},{"$f":"[1]ACS_16_5YR_B18103_with_ann!R272","v":61},{"$f":"[1]ACS_16_5YR_B18103_with_ann!S272","v":49},{"$f":"[1]ACS_16_5YR_B18103_with_ann!T272","v":72},{"$f":"[1]ACS_16_5YR_B18103_with_ann!U272","v":37},{"$f":"[1]ACS_16_5YR_B18103_with_ann!V272","v":0},{"$f":"[1]ACS_16_5YR_B18103_with_ann!W272","v":11},{"$f":"[1]ACS_16_5YR_B18103_with_ann!X272","v":72},{"$f":"[1]ACS_16_5YR_B18103_with_ann!Y272","v":37},{"$f":"[1]ACS_16_5YR_B18103_with_ann!Z272","v":309},{"$f":"[1]ACS_16_5YR_B18103_with_ann!AA272","v":80},{"$f":"[1]ACS_16_5YR_B18103_with_ann!AB272","v":0},{"$f":"[1]ACS_16_5YR_B18103_with_ann!AC272","v":11},{"$f":"[1]ACS_16_5YR_B18103_with_ann!AD272","v":309},{"$f":"[1]ACS_16_5YR_B18103_with_ann!AE272","v":80},{"$f":"[1]ACS_16_5YR_B18103_with_ann!AF272","v":121},{"$f":"[1]ACS_16_5YR_B18103_with_ann!AG272","v":35},{"$f":"[1]ACS_16_5YR_B18103_with_ann!AH272","v":0},{"$f":"[1]ACS_16_5YR_B18103_with_ann!AI272","v":11},{"$f":"[1]ACS_16_5YR_B18103_with_ann!AJ272","v":121},{"$f":"[1]ACS_16_5YR_B18103_with_ann!AK272","v":35},{"$f":"[1]ACS_16_5YR_B18103_with_ann!AL272","v":49},{"$f":"[1]ACS_16_5YR_B18103_with_ann!AM272","v":19},{"$f":"[1]ACS_16_5YR_B18103_with_ann!AN272","v":0},{"$f":"[1]ACS_16_5YR_B18103_with_ann!AO272","v":11},{"$f":"[1]ACS_16_5YR_B18103_with_ann!AP272","v":49},{"$f":"[1]ACS_16_5YR_B18103_with_ann!AQ272","v":19},{"$f":"[1]ACS_16_5YR_B18103_with_ann!AR272","v":587},{"$f":"[1]ACS_16_5YR_B18103_with_ann!AS272","v":104},{"$f":"[1]ACS_16_5YR_B18103_with_ann!AT272","v":6},{"$f":"[1]ACS_16_5YR_B18103_with_ann!AU272","v":8},{"$f":"[1]ACS_16_5YR_B18103_with_ann!AV272","v":0},{"$f":"[1]ACS_16_5YR_B18103_with_ann!AW272","v":11},{"$f":"[1]ACS_16_5YR_B18103_with_ann!AX272","v":6},{"$f":"[1]ACS_16_5YR_B18103_with_ann!AY272","v":8},{"$f":"[1]ACS_16_5YR_B18103_with_ann!AZ272","v":72},{"$f":"[1]ACS_16_5YR_B18103_with_ann!BA272","v":29},{"$f":"[1]ACS_16_5YR_B18103_with_ann!BB272","v":2},{"$f":"[1]ACS_16_5YR_B18103_with_ann!BC272","v":5},{"$f":"[1]ACS_16_5YR_B18103_with_ann!BD272","v":70},{"$f":"[1]ACS_16_5YR_B18103_with_ann!BE272","v":29},{"$f":"[1]ACS_16_5YR_B18103_with_ann!BF273","v":0},{"$f":"[1]ACS_16_5YR_B18103_with_ann!BG273","v":0},{"$f":"[1]ACS_16_5YR_B18103_with_ann!BH273","v":0},{"$f":"[1]ACS_16_5YR_B18103_with_ann!BI273","v":0},{"$f":"[1]ACS_16_5YR_B18103_with_ann!BJ273","v":0},{"$f":"[1]ACS_16_5YR_B18103_with_ann!BK273","v":0},{"$f":"[1]ACS_16_5YR_B18103_with_ann!BL273","v":0},{"$f":"[1]ACS_16_5YR_B18103_with_ann!BM273","v":0},{"$f":"[1]ACS_16_5YR_B18103_with_ann!BN273","v":0},{"$f":"[1]ACS_16_5YR_B18103_with_ann!BO273","v":0},{"$f":"[1]ACS_16_5YR_B18103_with_ann!BP273","v":0},{"$f":"[1]ACS_16_5YR_B18103_with_ann!BQ273","v":0},{"$f":"[1]ACS_16_5YR_B18103_with_ann!BR273","v":0},{"$f":"[1]ACS_16_5YR_B18103_with_ann!BS273","v":0},{"$f":"[1]ACS_16_5YR_B18103_with_ann!BT273","v":0},{"$f":"[1]ACS_16_5YR_B18103_with_ann!BU273","v":0},{"$f":"[1]ACS_16_5YR_B18103_with_ann!BV273","v":0},{"$f":"[1]ACS_16_5YR_B18103_with_ann!BW273","v":0},{"$f":"[1]ACS_16_5YR_B18103_with_ann!BX273","v":0},{"$f":"[1]ACS_16_5YR_B18103_with_ann!BY273","v":0},{"$f":"[1]ACS_16_5YR_B18103_with_ann!BZ273","v":0},{"$f":"[1]ACS_16_5YR_B18103_with_ann!CA273","v":0},{"$f":"[1]ACS_16_5YR_B18103_with_ann!CB273","v":0},{"$f":"[1]ACS_16_5YR_B18103_with_ann!CC273","v":0}]
[]
[null,null,null,null,{"$f":"$D$3","v":"Acworth"},null,{"$f":"$D$4","v":"Charlestown"},null,{"$f":"$D$5","v":"Claremont"},null,{"$f":"$D$6","v":"Cornish"},null,{"$f":"$D$7","v":"Croydon"},null,{"$f":"$D$8","v":"Goshen"},null,{"$f":"$D$9","v":"Grantham"},null,{"$f":"$D$10","v":"Langdon"},null,{"$f":"$D$11","v":"Lempster"},null,{"$f":"$D$12","v":"Newport"},null,{"$f":"$D$13","v":"Plainfield"},null,{"$f":"$D$14","v":"Springfield"},null,{"$f":"$D$15","v":"Sunapee"},null,{"$f":"$D$16","v":"Unity"},null,{"$f":"$D$17","v":"Washington"}]
[null,null,null,null,"Estimate","Margin Of Error","Estimate","Margin Of Error","Estimate","Margin Of Error","Estimate","Margin Of Error","Estimate","Margin Of Error","Estimate","Margin Of Error","Estimate","Margin Of Error","Estimate","Margin Of Error","Estimate","Margin Of Error","Estimate","Margin Of Error","Estimate","Margin Of Error","Estimate","Margin Of Error","Estimate","Margin Of Error",null,"Estimate","Margin Of Error"]
[null,null,null,"Estimate Total:",906,134,5017,22,12914,40,1783,217,863,244,680,109,2945,14,712,145,923,176,6259,51,2555,293,1084,198,3449,19,1331,148,1199,188]
[null,null,null,"Estimate Total: Male:",487,83,2514,222,6265,280,922,150,423,111,346,70,1382,143,342,85,432,77,3230,212,1278,174,575,112,1792,129,627,66,612,109]
[null,null,null,"Estimate Total: Male: Under 5 years:",21,14,189,101,393,117,35,19,11,12,18,14,0,11,16,14,31,21,185,95,32,34,3,5,97,57,3,6,0,11]
[null,null,null,"Estimate Total: Male: Under 5 years: With a vision difficulty",0,11,0,16,0,18,0,11,0,11,0,11,0,11,0,11,0,11,0,16,0,11,0,11,0,11,0,11,0,11]
[null,null,null,"Estimate Total: Male: Under 5 years: No vision difficulty",21,14,189,101,393,117,35,19,11,12,18,14,0,11,16,14,31,21,185,95,32,34,3,5,97,57,3,6,0,11]
[null,null,null,"Estimate Total: Male: 5 to 17 years:",34,23,250,103,902,164,169,107,56,37,49,27,271,92,76,46,36,23,507,185,230,86,72,33,337,95,46,21,61,49]
[null,null,null,"Estimate Total: Male: 5 to 17 years: With a vision difficulty",0,11,0,16,15,23,0,11,0,11,0,11,41,61,0,11,0,11,64,59,0,11,0,11,0,11,0,11,0,11]
[null,null,null,"Estimate Total: Male: 5 to 17 years: No vision difficulty",34,23,250,103,887,164,169,107,56,37,49,27,230,84,76,46,36,23,443,153,230,86,72,33,337,95,46,21,61,49]
[null,null,null,"Estimate Total: Male: 18 to 34 years:",79,38,490,144,1622,255,95,28,87,47,43,21,148,73,53,27,34,16,754,177,261,84,103,56,290,93,79,31,72,37]
[null,null,null,"Estimate Total: Male: 18 to 34 years: With a vision difficulty",9,14,0,16,14,23,0,11,0,11,2,3,0,11,0,11,0,11,0,16,0,11,0,11,0,11,0,11,0,11]
[null,null,null,"Estimate Total: Male: 18 to 34 years: No vision difficulty",70,37,490,144,1608,254,95,28,87,47,41,21,148,73,53,27,34,16,754,177,261,84,103,56,290,93,79,31,72,37]
[null,null,null,"Estimate Total: Male: 35 to 64 years:",213,48,1034,172,2416,184,367,53,198,60,157,41,613,124,143,40,249,58,1262,216,521,71,225,63,777,126,324,53,309,80]
[null,null,null,"Estimate Total: Male: 35 to 64 years: With a vision difficulty",0,11,54,85,93,65,9,9,0,11,2,3,0,11,2,3,6,7,63,65,10,9,0,11,0,11,0,11,0,11]
[null,null,null,"Estimate Total: Male: 35 to 64 years: No vision difficulty",213,48,980,158,2323,193,358,53,198,60,155,41,613,124,141,40,243,57,1199,218,511,72,225,63,777,126,324,53,309,80]
[null,null,null,"Estimate Total: Male: 65 to 74 years:",88,27,261,94,650,105,190,51,38,22,59,26,156,69,39,14,68,28,405,161,178,57,111,42,176,58,128,36,121,35]
[null,null,null,"Estimate Total: Male: 65 to 74 years: With a vision difficulty",7,10,0,16,17,26,0,11,2,4,0,11,0,11,0,11,0,11,0,16,0,11,4,6,10,15,4,5,0,11]
[null,null,null,"Estimate Total: Male: 65 to 74 years: No vision difficulty",81,24,261,94,633,103,190,51,36,21,59,26,156,69,39,14,68,28,405,161,178,57,107,41,166,58,124,36,121,35]
[null,null,null,"Estimate Total: Male: 75 years and over:",52,23,290,141,282,88,66,32,33,16,20,14,194,86,15,9,14,11,117,81,56,35,61,35,115,59,47,17,49,19]
[null,null,null,"Estimate Total: Male: 75 years and over: With a vision difficulty",0,11,80,91,10,16,7,9,2,3,1,3,15,22,6,5,0,11,12,19,0,11,7,8,0,11,2,4,0,11]
[null,null,null,"Estimate Total: Male: 75 years and over: No vision difficulty",52,23,210,89,272,87,59,30,31,16,19,14,179,84,9,8,14,11,105,79,56,35,54,33,115,59,45,15,49,19]
[null,null,null,"Estimate Total: Female:",419,72,2503,221,6649,275,861,100,440,156,334,59,1563,142,370,73,491,123,3029,217,1277,157,509,111,1657,127,704,99,587,104]
[null,null,null,"Estimate Total: Female: Under 5 years:",16,13,121,78,475,107,26,14,12,11,21,14,0,11,16,13,35,23,100,62,50,55,11,17,61,39,14,15,6,8]
[null,null,null,"Estimate Total: Female: Under 5 years: With a vision difficulty",0,11,33,51,0,18,0,11,0,11,0,11,0,11,0,11,0,11,0,16,0,11,0,11,0,11,0,11,0,11]
[null,null,null,"Estimate Total: Female: Under 5 years: No vision difficulty",16,13,88,68,475,107,26,14,12,11,21,14,0,11,16,13,35,23,100,62,50,55,11,17,61,39,14,15,6,8]
[null,null,null,"Estimate Total: Female: 5 to 17 years:",24,18,420,147,922,206,119,46,65,34,49,25,250,125,61,42,121,76,406,128,185,81,70,46,197,84,89,48,72,29]
[null,null,null,"Estimate Total: Female: 5 to 17 years: With a vision difficulty",0,11,0,16,6,10,0,11,0,11,0,11,0,11,0,11,0,11,0,16,0,11,0,11,0,11,0,11,2,5]
[null,null,null,"Estimate Total: Female: 5 to 17 years: No vision difficulty",24,18,420,147,916,205,119,46,65,34,49,25,250,125,61,42,121,76,406,128,185,81,70,46,197,84,89,48,70,29]
[null,null,null,"Estimate Total: Female: 18 to 34 years:",47,25,357,108,1415,187,124,96,69,34,114,98,69,25,54,24,520,162,280,61,37,27,250,74,111,46,63,30,0,0]
[null,null,null,"Estimate Total: Female: 18 to 34 years: With a vision difficulty",0,11,0,16,0,18,0,11,0,11,0,11,0,11,0,11,0,16,0,11,0,11,0,11,0,11,0,11,0,0]
[null,null,null,"Estimate Total: Female: 18 to 34 years: No vision difficulty",47,25,357,108,1415,187,124,96,69,34,114,98,69,25,54,24,520,162,280,61,37,27,250,74,111,46,63,30,0,0]
[null,null,null,"Estimate Total: Female: 35 to 64 years:",190,46,1080,163,2460,217,169,53,117,33,896,131,174,41,191,52,1406,188,521,81,241,64,734,118,338,45,301,81,0,0]
[null,null,null,"Estimate Total: Female: 35 to 64 years: With a vision difficulty",0,11,29,43,58,57,0,11,3,4,0,11,0,11,5,7,65,64,0,11,4,6,10,16,7,8,0,11,0,0]
[null,null,null,"Estimate Total: Female: 35 to 64 years: No vision difficulty",190,46,1051,165,2402,220,169,53,114,33,896,131,174,41,186,51,1341,200,521,81,237,63,724,121,331,44,301,81,0,0]
[null,null,null,"Estimate Total: Female: 65 to 74 years:",117,42,296,120,755,152,49,24,49,21,139,53,35,11,51,23,312,130,181,56,112,42,233,69,113,29,116,31,0,0]
[null,null,null,"Estimate Total: Female: 65 to 74 years: With a vision difficulty",0,11,0,16,50,65,4,6,0,11,16,23,0,11,0,11,19,31,0,11,6,10,6,9,3,4,0,11,0,0]
[null,null,null,"Estimate Total: Female: 65 to 74 years: No vision difficulty",117,42,296,120,705,155,45,23,49,21,123,57,35,11,51,23,293,123,181,56,106,41,227,68,110,28,116,31,0,0]
[null,null,null,"Estimate Total: Female: 75 years and over:",25,14,229,88,622,128,21,12,29,13,164,75,15,8,39,26,285,103,60,32,38,26,182,81,39,15,29,15,0,0]
[null,null,null,"Estimate Total: Female: 75 years and over: With a vision difficulty",0,11,52,66,138,82,0,11,2,5,0,11,0,11,6,6,23,27,0,11,0,11,0,11,0,11,0,11,0,0]
[null,null,null,"Estimate Total: Female: 75 years and over: No vision difficulty",25,14,177,76,484,112,21,12,27,12,164,75,15,8,33,25,262,98,60,32,38,26,182,81,39,15,29,15,0,0]

{"sheet":"ACS_Table_B18103","index":45,"n_rows":125,"n_cols":32,"rows_kept":125,"cut":false,"hidden":true,"merged":[]}
["B18103. SEX BY AGE BY VISION DIFFICULTY\n\n\n"]
["Universe:  Civilian non-institutionalized population"]
["Data Set: 2015-2019 American Community Survey 5-Year Estimates"]
[]
[null,null,"Acworth",null,"Charlestown",null,"Claremont",null,"Cornish",null,"Croydon",null,"Goshen",null,"Grantham",null,"Langdon",null,"Lempster",null,"Newport",null,"Plainfield",null,"Springfield",null,"Sunapee",null,"Unity",null,"Washington"]
[null,null,"Estimate","Margin Of Error","Estimate","Margin Of Error","Estimate","Margin Of Error","Estimate","Margin Of Error","Estimate","Margin Of Error","Estimate","Margin Of Error","Estimate","Margin Of Error","Estimate","Margin Of Error","Estimate","Margin Of Error","Estimate","Margin Of Error","Estimate","Margin Of Error","Estimate","Margin Of Error","Estimate","Margin Of Error","Estimate","Margin Of Error","Estimate","Margin Of Error"]
[null,"Total:",906,134,5017,22,12914,40,1783,217,863,244,680,109,2945,14,712,145,923,176,6259,51,2555,293,1084,198,3449,19,1331,148,1199,188]
[null,"Male:",487,83,2514,222,6265,280,922,150,423,111,346,70,1382,143,342,85,432,77,3230,212,1278,174,575,112,1792,129,627,66,612,109]
[null,"Under 5 years:",21,14,189,101,393,117,35,19,11,12,18,14,0,11,16,14,31,21,185,95,32,34,3,5,97,57,3,6,0,11]
[null,"With vision difficulty",0,11,0,16,0,18,0,11,0,11,0,11,0,11,0,11,0,11,0,16,0,11,0,11,0,11,0,11,0,11]
[null,"With no vision difficulty",21,14,189,101,393,117,35,19,11,12,18,14,0,11,16,14,31,21,185,95,32,34,3,5,97,57,3,6,0,11]
[null,"5 to 17  years:",34,23,250,103,902,164,169,107,56,37,49,27,271,92,76,46,36,23,507,185,230,86,72,33,337,95,46,21,61,49]
[null,"With vision difficulty",0,11,0,16,15,23,0,11,0,11,0,11,41,61,0,11,0,11,64,59,0,11,0,11,0,11,0,11,0,11]
[null,"With no vision difficulty",34,23,250,103,887,164,169,107,56,37,49,27,230,84,76,46,36,23,443,153,230,86,72,33,337,95,46,21,61,49]
[null,"18 to 34  years:",79,38,490,144,1622,255,95,28,87,47,43,21,148,73,53,27,34,16,754,177,261,84,103,56,290,93,79,31,72,37]
[null,"With vision difficulty",9,14,0,16,14,23,0,11,0,11,2,3,0,11,0,11,0,11,0,16,0,11,0,11,0,11,0,11,0,11]
[null,"With no vision difficulty",70,37,490,144,1608,254,95,28,87,47,41,21,148,73,53,27,34,16,754,177,261,84,103,56,290,93,79,31,72,37]
[null,"35 to 64  years:",213,48,1034,172,2416,184,367,53,198,60,157,41,613,124,143,40,249,58,1262,216,521,71,225,63,777,126,324,53,309,80]
[null,"With vision difficulty",0,11,54,85,93,65,9,9,0,11,2,3,0,11,2,3,6,7,63,65,10,9,0,11,0,11,0,11,0,11]
[null,"With no vision difficulty",213,48,980,158,2323,193,358,53,198,60,155,41,613,124,141,40,243,57,1199,218,511,72,225,63,777,126,324,53,309,80]
[null,"65 to 74  years:",88,27,261,94,650,105,190,51,38,22,59,26,156,69,39,14,68,28,405,161,178,57,111,42,176,58,128,36,121,35]
[null,"With vision difficulty",7,10,0,16,17,26,0,11,2,4,0,11,0,11,0,11,0,11,0,16,0,11,4,6,10,15,4,5,0,11]
[null,"With no vision difficulty",81,24,261,94,633,103,190,51,36,21,59,26,156,69,39,14,68,28,405,161,178,57,107,41,166,58,124,36,121,35]
[null,"75  years and Older:",52,23,290,141,282,88,66,32,33,16,20,14,194,86,15,9,14,11,117,81,56,35,61,35,115,59,47,17,49,19]
[null,"With vision difficulty",0,11,80,91,10,16,7,9,2,3,1,3,15,22,6,5,0,11,12,19,0,11,7,8,0,11,2,4,0,11]
[null,"With no vision difficulty",52,23,210,89,272,87,59,30,31,16,19,14,179,84,9,8,14,11,105,79,56,35,54,33,115,59,45,15,49,19]
[null,"Female:",419,72,2503,221,6649,275,861,100,440,156,334,59,1563,142,370,73,491,123,3029,217,1277,157,509,111,1657,127,704,99,587,104]
[null,"Under 5 years:",16,13,121,78,475,107,26,14,12,11,21,14,0,11,16,13,35,23,100,62,50,55,11,17,61,39,14,15,6,8]
[null,"With vision difficulty",0,11,33,51,0,18,0,11,0,11,0,11,0,11,0,11,0,11,0,16,0,11,0,11,0,11,0,11,0,11]
[null,"With no vision difficulty",16,13,88,68,475,107,26,14,12,11,21,14,0,11,16,13,35,23,100,62,50,55,11,17,61,39,14,15,6,8]
[null,"5 to 17  years:",24,18,420,147,922,206,119,46,65,34,49,25,250,125,61,42,121,76,406,128,185,81,70,46,197,84,89,48,72,29]
[null,"With vision difficulty",0,11,0,16,6,10,0,11,0,11,0,11,0,11,0,11,0,11,0,16,0,11,0,11,0,11,0,11,2,5]
[null,"With no vision difficulty",24,18,420,147,916,205,119,46,65,34,49,25,250,125,61,42,121,76,406,128,185,81,70,46,197,84,89,48,70,29]
[null,"18 to 34  years:",47,25,357,108,1415,187,124,96,69,34,114,98,69,25,54,24,520,162,280,61,37,27,250,74,111,46,63,30,0,0]
[null,"With vision difficulty",0,11,0,16,0,18,0,11,0,11,0,11,0,11,0,11,0,16,0,11,0,11,0,11,0,11,0,11,0,0]
[null,"With no vision difficulty",47,25,357,108,1415,187,124,96,69,34,114,98,69,25,54,24,520,162,280,61,37,27,250,74,111,46,63,30,0,0]
[null,"35 to 64  years:",190,46,1080,163,2460,217,169,53,117,33,896,131,174,41,191,52,1406,188,521,81,241,64,734,118,338,45,301,81,0,0]
[null,"With vision difficulty",0,11,29,43,58,57,0,11,3,4,0,11,0,11,5,7,65,64,0,11,4,6,10,16,7,8,0,11,0,0]
[null,"With no vision difficulty",190,46,1051,165,2402,220,169,53,114,33,896,131,174,41,186,51,1341,200,521,81,237,63,724,121,331,44,301,81,0,0]
[null,"65 to 74  years:",117,42,296,120,755,152,49,24,49,21,139,53,35,11,51,23,312,130,181,56,112,42,233,69,113,29,116,31,0,0]
[null,"With vision difficulty",0,11,0,16,50,65,4,6,0,11,16,23,0,11,0,11,19,31,0,11,6,10,6,9,3,4,0,11,0,0]
[null,"With no vision difficulty",117,42,296,120,705,155,45,23,49,21,123,57,35,11,51,23,293,123,181,56,106,41,227,68,110,28,116,31,0,0]
[null,"75  years and Older:",25,14,229,88,622,128,21,12,29,13,164,75,15,8,39,26,285,103,60,32,38,26,182,81,39,15,29,15,0,0]
[null,"With vision difficulty",0,11,52,66,138,82,0,11,2,5,0,11,0,11,6,6,23,27,0,11,0,11,0,11,0,11,0,11,0,0]
[null,"With no vision difficulty",25,14,177,76,484,112,21,12,27,12,164,75,15,8,33,25,262,98,60,32,38,26,182,81,39,15,29,15,0,0]
[]
[]
[{"$f":"A1& \"-Calculated\"","v":"B18103. SEX BY AGE BY VISION DIFFICULTY\n\n\n-Calculated"}]
[{"$f":"A2","v":"Universe:  Civilian non-institutionalized population"}]
[{"$f":"A3","v":"Data Set: 2015-2019 American Community Survey 5-Year Estimates"}]
[]
[]
[null,null,"Acworth",null,"Charlestown",null,"Claremont",null,"Cornish",null,"Croydon",null,"Goshen",null,"Grantham",null,"Langdon",null,"Lempster",null,"Newport",null,"Plainfield",null,"Springfield",null,"Sunapee",null,"Unity",null,"Washington"]
[null,null,"Estimate","Margin Of Error","Estimate","Margin Of Error","Estimate","Margin Of Error","Estimate","Margin Of Error","Estimate","Margin Of Error","Estimate","Margin Of Error","Estimate","Margin Of Error","Estimate","Margin Of Error","Estimate","Margin Of Error","Estimate","Margin Of Error","Estimate","Margin Of Error","Estimate","Margin Of Error","Estimate","Margin Of Error","Estimate","Margin Of Error","Estimate","Margin Of Error"]
[null,"Total",{"$f":"C7","v":906},134,5017,22,12914,40,1783,217,863,244,680,109,2945,14,712,145,923,176,6259,51,2555,293,{"$f":"Y7","v":1084},198,3449,19,1331,148,1199,188]
[null,"Under 5 years:",{"$f":"C28+C9","v":37},{"$f":"SQRT((D28^2)+(D9^2))","v":19.104973174542799},{"$f":"E28+E9","v":310},{"$f":"SQRT((F28^2)+(F9^2))","v":127.61269529321916},{"$f":"G28+G9","v":868},{"$f":"SQRT((H28^2)+(H9^2))","v":158.54967675779096},{"$f":"I28+I9","v":61},{"$f":"SQRT((J28^2)+(J9^2))","v":23.600847442411894},{"$f":"K28+K9","v":23},{"$f":"SQRT((L28^2)+(L9^2))","v":16.278820596099706},{"$f":"M28+M9","v":39},{"$f":"SQRT((N28^2)+(N9^2))","v":19.798989873223331},{"$f":"O28+O9","v":0},{"$f":"SQRT((P28^2)+(P9^2))","v":15.556349186104045},{"$f":"Q28+Q9","v":32},{"$f":"SQRT((R28^2)+(R9^2))","v":19.104973174542799},{"$f":"S28+S9","v":66},{"$f":"SQRT((T28^2)+(T9^2))","v":31.144823004794873},{"$f":"U28+U9","v":285},{"$f":"SQRT((V28^2)+(V9^2))","v":113.44161493913951},{"$f":"W28+W9","v":82},{"$f":"SQRT((X28^2)+(X9^2))","v":64.660652641308843},{"$f":"Y28+Y9","v":14},{"$f":"SQRT((Z28^2)+(Z9^2))","v":17.720045146669349},{"$f":"AA28+AA9","v":158},{"$f":"SQRT((AB28^2)+(AB9^2))","v":69.06518659932803},17,16.15549442140351,{"$f":"AE28+AE9","v":6},{"$f":"SQRT((AF28^2)+(AF9^2))","v":13.601470508735444}]
[null,"With vision difficulty",{"$f":"C29+C10","v":0},{"$f":"SQRT((D29^2)+(D10^2))","v":15.556349186104045},{"$f":"E29+E10","v":33},{"$f":"SQRT((F29^2)+(F10^2))","v":53.450912059571067},{"$f":"G29+G10","v":0},{"$f":"SQRT((H29^2)+(H10^2))","v":25.45584412271571},{"$f":"I29+I10","v":0},{"$f":"SQRT((J29^2)+(J10^2))","v":15.556349186104045},{"$f":"K29+K10","v":0},{"$f":"SQRT((L29^2)+(L10^2))","v":15.556349186104045},{"$f":"M29+M10","v":0},{"$f":"SQRT((N29^2)+(N10^2))","v":15.556349186104045},{"$f":"O29+O10","v":0},{"$f":"SQRT((P29^2)+(P10^2))","v":15.556349186104045},{"$f":"Q29+Q10","v":0},{"$f":"SQRT((R29^2)+(R10^2))","v":15.556349186104045},{"$f":"S29+S10","v":0},{"$f":"SQRT((T29^2)+(T10^2))","v":15.556349186104045},{"$f":"U29+U10","v":0},{"$f":"SQRT((V29^2)+(V10^2))","v":22.627416997969522},{"$f":"W29+W10","v":0},{"$f":"SQRT((X29^2)+(X10^2))","v":15.556349186104045},0,15.556349186104045,0,15.556349186104045,0,15.556349186104045,0,15.556349186104045]
[null,"With no vision difficulty",37,19.104973174542799,277,121.75795661885921,868,158.54967675779096,61,23.600847442411894,23,16.278820596099706,39,19.798989873223331,0,15.556349186104045,32,19.104973174542799,66,31.144823004794873,285,113.44161493913951,82,64.660652641308843,14,17.720045146669349,158,69.06518659932803,17,16.15549442140351,6,13.601470508735444]
[null,"5 to 17 years:",58,29.206163733020468,670,179.49373248110922,1824,263.30970358116315,288,116.46887996370532,121,50.24937810560445,98,36.796738985948195,521,155.20631430454111,137,62.289646009589745,157,79.404030124421269,913,224.96444163467257,415,118.1397477566293,142,56.612719418872643,534,126.81088281373961,135,52.392747589718944,133,56.938563381947034]
[null,"With vision difficulty",0,15.556349186104045,0,22.627416997969522,21,25.079872407968907,0,15.556349186104045,0,15.556349186104045,0,15.556349186104045,41,61.98386886924694,0,15.556349186104045,0,15.556349186104045,64,61.1310068623117,0,15.556349186104045,0,15.556349186104045,0,15.556349186104045,0,15.556349186104045,2,12.083045973594572]
[null,"With no vision difficulty",58,29.206163733020468,670,179.49373248110922,1803,262.52809373474679,288,116.46887996370532,121,50.24937810560445,98,36.796738985948195,480,150.60212481900777,137,62.289646009589745,157,79.404030124421269,849,199.48182874637979,415,118.1397477566293,142,56.612719418872643,534,126.81088281373961,135,52.392747589718944,131,56.938563381947034]
[null,"18 to 34 years:",126,45.486261662176638,847,180,3037,316.21827904155066,219,100,156,58.008620049092706,157,100.22474744293447,217,77.1621668954417,107,36.124783736376884,554,162.78820596099706,1034,187.21645226849054,298,88.232647019116456,353,92.80086206496145,401,103.75451797391764,142,43.139309220245984,72,37]
[null,"With vision difficulty",9,17.804493814764857,0,22.627416997969522,14,29.206163733020468,0,15.556349186104045,0,15.556349186104045,2,11.401754250991379,0,15.556349186104045,0,15.556349186104045,0,19.416487838947599,0,19.416487838947599,0,15.556349186104045,0,15.556349186104045,0,15.556349186104045,0,15.556349186104045,0,11]
[null,"With no vision difficulty",117,44.654227123532216,847,180,3023,315.41242841714404,219,100,156,58.008620049092706,155,100.22474744293447,217,77.1621668954417,107,36.124783736376884,554,162.78820596099706,1034,187.21645226849054,298,88.232647019116456,353,92.80086206496145,401,103.75451797391764,142,43.139309220245984,72,37]
[null,"35 to 64 years:",403,66.483080554378645,2114,236.96624232155938,4876,284.50834785643815,536,74.953318805774032,315,68.47627326307996,1053,137.26616480400406,787,130.60245020672468,334,65.604877867426907,1655,196.74348782107123,1783,230.68810112357335,762,95.587656106842587,959,133.76471881628578,1115,133.79461872586654,625,96.79876032264049,309,80]
[null,"With vision difficulty",0,15.556349186104045,83,95.257545632878873,151,86.452298986203942,9,14.212670403551895,3,11.704699910719626,2,11.401754250991379,0,15.556349186104045,7,7.6157731058639087,71,64.381674411279491,63,65.924198895398035,14,10.816653826391969,10,19.416487838947599,7,13.601470508735444,0,15.556349186104045,0,11]
[null,"With no vision difficulty",403,66.483080554378645,2031,228.44911906155383,4725,292.65850406232857,527,74.953318805774032,312,68.47627326307996,1051,137.26616480400406,787,130.60245020672468,327,64.815121692395209,1584,207.96393918177256,1720,232.56181973832247,748,95.671312314611839,949,136.41847382227965,1108,133.46160496562297,625,96.79876032264049,309,80]
[null,"65 to 74 years:",205,49.929950931279713,557,152.43359209832983,1405,184.74035834110532,239,56.36488268416781,87,30.413812651491099,198,59.033888572581766,191,69.871310278253688,90,26.92582403567252,380,132.98120167903431,586,170.46113926640288,290,70.802542327235685,344,80.777472107017559,289,64.845971347493901,244,47.507894080878813,121,35]
[null,"With vision difficulty",7,14.866068747318506,0,22.627416997969522,67,70.007142492748557,4,12.529964086141668,2,11.704699910719626,16,25.495097567963924,0,15.556349186104045,0,15.556349186104045,19,32.893768406797051,0,19.416487838947599,6,14.866068747318506,10,10.816653826391969,13,15.524174696260024,4,12.083045973594572,0,11]
[null,"With no vision difficulty",198,48.373546489791295,557,152.43359209832983,1338,186.10212250267324,235,55.946402922797461,85,29.698484809834994,182,62.649820430708338,191,69.871310278253688,90,26.92582403567252,361,126.14673994994877,586,170.46113926640288,284,70.213958726167832,334,79.404030124421269,276,64.404968752418469,240,47.507894080878813,121,35]
[null,"75 years and over:",77,26.92582403567252,519,166.20770138594662,904,155.3319027115808,87,34.176014981270121,62,20.615528128088304,184,76.295478240849903,209,86.371291526756735,54,27.513632984395208,299,103.58571330062848,177,87.091905479212016,94,43.600458713183279,243,88.238313673823114,154,60.876925020897694,76,22.671568097509269,49,19]
[null,"With vision difficulty",0,15.556349186104045,132,112.4144118874444,148,83.546394296821688,7,14.212670403551895,4,5.8309518948453007,1,11.401754250991379,15,24.596747752497688,12,7.810249675906654,23,29.154759474226502,12,21.95449840010015,0,15.556349186104045,7,13.601470508735444,0,15.556349186104045,2,11.704699910719626,0,11]
[null,"With no vision difficulty",77,26.92582403567252,387,117.03418304068261,756,141.82030884185804,80,32.310988842807021,58,20,183,76.295478240849903,194,84.380092438915952,42,26.248809496813376,276,98.615414616580097,165,85.234969349440135,94,43.600458713183279,236,87.464278422679513,154,60.876925020897694,74,21.213203435596427,49,19]
[]
[]
[]
[]
[]
[]
[]
[]
[]
[]
[]
[]
[]
[]
[]
[]
[]
[]
[]
[]
[]
[]
[]
[]
[]
[]
["B18103. SEX BY AGE BY VISION DIFFICULTY\n\n\n-Calculated"]
["Universe:  Civilian non-institutionalized population"]
["Data Set: 2010-2014 American Community Survey 5-Year Estimates"]
[]
[]
[null,null,"Acworth",null,"Charlestown",null,"Claremont",null,"Cornish",null,"Croydon",null,"Goshen",null,"Grantham",null,"Langdon",null,"Lempster",null,"Newport",null,"Plainfield",null,"Springfield",null,"Sunapee",null,"Unity",null,"Washington"]
[null,null,"Estimate","Margin Of Error","Estimate","Margin Of Error","Estimate","Margin Of Error","Estimate","Margin Of Error","Estimate","Margin Of Error","Estimate","Margin Of Error","Estimate","Margin Of Error","Estimate","Margin Of Error","Estimate","Margin Of Error","Estimate","Margin Of Error","Estimate","Margin Of Error","Estimate","Margin Of Error","Estimate","Margin Of Error","Estimate","Margin Of Error","Estimate","Margin Of Error"]
[null,"Total",923,163,5047,16,13083,71,1601,179,651,140,821,127,2958,30,787,149,1089,147,6351,81,2518,166,1313,217,3363,30,1352,149,1013,140]
[null,"Under 5 years:",55,36.235341863986875,306,121.16517651536682,879,148.52945835759317,91,46.043457732885351,32,26.40075756488817,47,27.658633371878661,159,79.511005527536881,41,29.546573405388315,67,29.681644159311659,146,75,141,62.032249677083293,82,48.60041152089147,78,57.454329688892898,49,26.40075756488817,16,11.661903789690601]
[null,"With vision difficulty",0,15.556349186104045,0,15.556349186104045,0,24.041630560342615,0,15.556349186104045,0,15.556349186104045,0,15.556349186104045,0,15.556349186104045,0,15.556349186104045,0,15.556349186104045,0,21.213203435596427,0,15.556349186104045,0,15.556349186104045,0,15.556349186104045,0,15.556349186104045,0,15.556349186104045]
[null,"With no vision difficulty",55,36.235341863986875,306,121.16517651536682,879,148.52945835759317,91,46.043457732885351,32,26.40075756488817,47,27.658633371878661,159,79.511005527536881,41,29.546573405388315,67,29.681644159311659,146,75,141,62.032249677083293,82,48.60041152089147,78,57.454329688892898,49,26.40075756488817,16,11.661903789690601]
[null,"5 to 17 years:",152,54.203320931470607,588,145.71547618561317,2117,243.21184181696418,243,76.05918747922567,93,33.941125496954278,93,39.446165846632042,536,156.72268502038881,140,59.816385714952723,156,48.104053883222775,1002,213.05398376937239,408,85.562842402528915,244,73.552702193733168,492,128.80993750483694,142,39.962482405376171,130,58.137767414994535]
[null,"With vision difficulty",0,15.556349186104045,0,15.556349186104045,0,24.041630560342615,0,15.556349186104045,0,15.556349186104045,0,15.556349186104045,0,15.556349186104045,0,15.556349186104045,3,11.704699910719626,9,19.209372712298546,0,15.556349186104045,0,15.556349186104045,0,15.556349186104045,0,15.556349186104045,0,15.556349186104045]
[null,"With no vision difficulty",152,54.203320931470607,588,145.71547618561317,2117,243.21184181696418,243,76.05918747922567,93,33.941125496954278,93,39.446165846632042,536,156.72268502038881,140,59.816385714952723,153,47.381430961928537,993,211.7829077144801,408,85.562842402528915,244,73.552702193733168,492,128.80993750483694,142,39.962482405376171,130,58.137767414994535]
[null,"18 to 34 years:",184,54.378304497290095,900,194.55847450059841,2858,279.37966998334008,273,55.97320787662612,96,41.400483088968905,134,40.36087214122113,358,127.3184982632139,175,58,137,52.773099207835045,1050,218.68699092538631,401,83.630138108220294,173,55,504,146.60491124106312,207,60.21627686929839,100,41.231056256176608]
[null,"With vision difficulty",0,15.556349186104045,0,15.556349186104045,0,24.041630560342615,0,15.556349186104045,0,15.556349186104045,0,15.556349186104045,12,21.095023109728988,0,15.556349186104045,2,12.529964086141668,42,48.383881613611777,0,15.556349186104045,0,15.556349186104045,0,15.556349186104045,0,15.556349186104045,0,15.556349186104045]
[null,"With no vision difficulty",184,54.378304497290095,900,194.55847450059841,2858,279.37966998334008,273,55.97320787662612,96,41.400483088968905,134,40.36087214122113,346,126.24579200908045,175,58,135,51.884487084291386,1008,217.1543230055529,401,83.630138108220294,173,55,504,146.60491124106312,207,60.21627686929839,100,41.231056256176608]
[null,"35 to 64 years:",380,55.865910893853687,2320,200.124960961895,5203,255.34486483969087,799,72.138755187485728,348,58.051701094799967,405,54.671747731346578,1313,129.4488315899375,305,50.328918128646478,571,72.249567472753768,3031,239.05857022913861,1172,102.7277956543408,648,89.403579346690591,1478,196.54261624390779,768,68.8839603971781,520,70.767224051816527]
[null,"With vision difficulty",2,11.401754250991379,85,88.887569434651553,163,77.077882690172544,12,13.601470508735444,3,12.083045973594572,4,5,0,15.556349186104045,7,6.7082039324993694,5,13.601470508735444,75,55.072679252057455,0,15.556349186104045,7,7.0710678118654755,28,32.893768406797051,4,12.083045973594572,4,4.2426406871192848]
[null,"With no vision difficulty",378,55.865910893853687,2235,230.7834482799839,5040,260.2498799231231,787,70.007142492748557,345,58.051701094799967,401,54.671747731346578,1313,129.4488315899375,298,50.328918128646478,566,72.249567472753768,2956,241.23018053303363,1172,102.7277956543408,641,90,1450,197.3068675946177,764,68.117545463705611,516,69.354163537598808]
[null,"65 to 74 years:",105,33.421549934136806,573,157.76247969653622,1109,160.96272860510285,142,45.607017003965517,55,19.849433241279208,75,29.068883707497267,262,79.246451024635803,87,25.45584412271571,85,28.301943396169811,702,194.60986614249546,297,68.818602136341013,120,40.496913462633174,436,116.10340218959993,117,30.610455730027933,161,29.732137494637012]
[null,"With vision difficulty",4,13.601470508735444,30,33.97057550292606,33,35.355339059327378,3,11.704699910719626,2,11.401754250991379,5,13.601470508735444,0,15.556349186104045,0,15.556349186104045,13,19.416487838947599,0,21.213203435596427,4,12.529964086141668,15,20.248456731316587,13,19.416487838947599,13,19.416487838947599,10,8.6023252670426267]
[null,"With no vision difficulty",101,32.802438933713454,543,160.63934760823702,1076,160.20611723651504,139,45.607017003965517,53,19.209372712298546,70,29.068883707497267,262,79.246451024635803,87,25.45584412271571,72,25.80697580112788,702,194.60986614249546,293,68.818602136341013,105,34.058772731852805,423,114.10959644131601,104,28.319604517012593,151,29.068883707497267]
[null,"75 years and over:",47,18.788294228055936,360,139.26952286842948,917,129.20139318134306,53,20,27,18.601075237738275,67,22.671568097509269,330,92.200867674876037,39,19.104973174542799,73,30.413812651491099,420,113.56936206565572,99,36.891733491393431,46,21.95449840010015,375,95.587656106842587,69,21.633307652783937,86,27.658633371878661]
[null,"With vision difficulty",0,15.556349186104045,0,15.556349186104045,73,44.271887242357309,4,12.083045973594572,0,15.556349186104045,4,4.2426406871192848,41,55.108982933819419,6,5.8309518948453007,13,9.8488578017961039,48,38.209946349085598,0,15.556349186104045,3,12.083045973594572,17,22.825424421026653,0,15.556349186104045,3,11.704699910719626]
[null,"With no vision difficulty",47,18.788294228055936,360,139.26952286842948,844,131.40015220691336,49,19.416487838947599,27,18.601075237738275,63,22.671568097509269,289,79.93122043357026,33,18.439088914585774,60,29,372,111.94641575325224,99,36.891733491393431,43,21.095023109728988,358,93.605555390692487,69,21.633307652783937,83,26.90724809414742]

{"sheet":"SData_B18104_CognitiveDisabil","index":46,"n_rows":53,"n_cols":70,"rows_kept":53,"cut":false,"hidden":true,"merged":[]}
["GEO_ID","GEO_ID2","SUMLEVEL"]
["Geography Identifier","Geography Identifier","Geographic Summary Level",null,{"$f":"[1]ACS_16_5YR_B18104_with_ann!D$2","v":"Estimate Total:"},{"$f":"[1]ACS_16_5YR_B18104_with_ann!E$2","v":"Margin of Error Total:"},{"$f":"[1]ACS_16_5YR_B18104_with_ann!F$2","v":"Estimate Total: Male:"},{"$f":"[1]ACS_16_5YR_B18104_with_ann!G$2","v":"Margin of Error Total: Male:"},{"$f":"[1]ACS_16_5YR_B18104_with_ann!H$2","v":"Estimate Total: Male: 5 to 17 years:"},{"$f":"[1]ACS_16_5YR_B18104_with_ann!I$2","v":"Margin of Error Total: Male: 5 to 17 years:"},{"$f":"[1]ACS_16_5YR_B18104_with_ann!J$2","v":"Estimate Total: Male: 5 to 17 years: With a cognitive difficulty"},{"$f":"[1]ACS_16_5YR_B18104_with_ann!K$2","v":"Margin of Error Total: Male: 5 to 17 years: With a cognitive difficulty"},{"$f":"[1]ACS_16_5YR_B18104_with_ann!L$2","v":"Estimate Total: Male: 5 to 17 years: No cognitive difficulty"},{"$f":"[1]ACS_16_5YR_B18104_with_ann!M$2","v":"Margin of Error Total: Male: 5 to 17 years: No cognitive difficulty"},{"$f":"[1]ACS_16_5YR_B18104_with_ann!N$2","v":"Estimate Total: Male: 18 to 34 years:"},{"$f":"[1]ACS_16_5YR_B18104_with_ann!O$2","v":"Margin of Error Total: Male: 18 to 34 years:"},{"$f":"[1]ACS_16_5YR_B18104_with_ann!P$2","v":"Estimate Total: Male: 18 to 34 years: With a cognitive difficulty"},{"$f":"[1]ACS_16_5YR_B18104_with_ann!Q$2","v":"Margin of Error Total: Male: 18 to 34 years: With a cognitive difficulty"},{"$f":"[1]ACS_16_5YR_B18104_with_ann!R$2","v":"Estimate Total: Male: 18 to 34 years: No cognitive difficulty"},{"$f":"[1]ACS_16_5YR_B18104_with_ann!S$2","v":"Margin of Error Total: Male: 18 to 34 years: No cognitive difficulty"},{"$f":"[1]ACS_16_5YR_B18104_with_ann!T$2","v":"Estimate Total: Male: 35 to 64 years:"},{"$f":"[1]ACS_16_5YR_B18104_with_ann!U$2","v":"Margin of Error Total: Male: 35 to 64 years:"},{"$f":"[1]ACS_16_5YR_B18104_with_ann!V$2","v":"Estimate Total: Male: 35 to 64 years: With a cognitive difficulty"},{"$f":"[1]ACS_16_5YR_B18104_with_ann!W$2","v":"Margin of Error Total: Male: 35 to 64 years: With a cognitive difficulty"},{"$f":"[1]ACS_16_5YR_B18104_with_ann!X$2","v":"Estimate Total: Male: 35 to 64 years: No cognitive difficulty"},{"$f":"[1]ACS_16_5YR_B18104_with_ann!Y$2","v":"Margin of Error Total: Male: 35 to 64 years: No cognitive difficulty"},{"$f":"[1]ACS_16_5YR_B18104_with_ann!Z$2","v":"Estimate Total: Male: 65 to 74 years:"},{"$f":"[1]ACS_16_5YR_B18104_with_ann!AA$2","v":"Margin of Error Total: Male: 65 to 74 years:"},{"$f":"[1]ACS_16_5YR_B18104_with_ann!AB$2","v":"Estimate Total: Male: 65 to 74 years: With a cognitive difficulty"},{"$f":"[1]ACS_16_5YR_B18104_with_ann!AC$2","v":"Margin of Error Total: Male: 65 to 74 years: With a cognitive difficulty"},{"$f":"[1]ACS_16_5YR_B18104_with_ann!AD$2","v":"Estimate Total: Male: 65 to 74 years: No cognitive difficulty"},{"$f":"[1]ACS_16_5YR_B18104_with_ann!AE$2","v":"Margin of Error Total: Male: 65 to 74 years: No cognitive difficulty"},{"$f":"[1]ACS_16_5YR_B18104_with_ann!AF$2","v":"Estimate Total: Male: 75 years and over:"},{"$f":"[1]ACS_16_5YR_B18104_with_ann!AG$2","v":"Margin of Error Total: Male: 75 years and over:"},{"$f":"[1]ACS_16_5YR_B18104_with_ann!AH$2","v":"Estimate Total: Male: 75 years and over: With a cognitive difficulty"},{"$f":"[1]ACS_16_5YR_B18104_with_ann!AI$2","v":"Margin of Error Total: Male: 75 years and over: With a cognitive difficulty"},{"$f":"[1]ACS_16_5YR_B18104_with_ann!AJ$2","v":"Estimate Total: Male: 75 years and over: No cognitive difficulty"},{"$f":"[1]ACS_16_5YR_B18104_with_ann!AK$2","v":"Margin of Error Total: Male: 75 years and over: No cognitive difficulty"},{"$f":"[1]ACS_16_5YR_B18104_with_ann!AL$2","v":"Estimate Total: Female:"},{"$f":"[1]ACS_16_5YR_B18104_with_ann!AM$2","v":"Margin of Error Total: Female:"},{"$f":"[1]ACS_16_5YR_B18104_with_ann!AN$2","v":"Estimate Total: Female: 5 to 17 years:"},{"$f":"[1]ACS_16_5YR_B18104_with_ann!AO$2","v":"Margin of Error Total: Female: 5 to 17 years:"},{"$f":"[1]ACS_16_5YR_B18104_with_ann!AP$2","v":"Estimate Total: Female: 5 to 17 years: With a cognitive difficulty"},{"$f":"[1]ACS_16_5YR_B18104_with_ann!AQ$2","v":"Margin of Error Total: Female: 5 to 17 years: With a cognitive difficulty"},{"$f":"[1]ACS_16_5YR_B18104_with_ann!AR$2","v":"Estimate Total: Female: 5 to 17 years: No cognitive difficulty"},{"$f":"[1]ACS_16_5YR_B18104_with_ann!AS$2","v":"Margin of Error Total: Female: 5 to 17 years: No cognitive difficulty"},{"$f":"[1]ACS_16_5YR_B18104_with_ann!AT$2","v":"Estimate Total: Female: 18 to 34 years:"},{"$f":"[1]ACS_16_5YR_B18104_with_ann!AU$2","v":"Margin of Error Total: Female: 18 to 34 years:"},{"$f":"[1]ACS_16_5YR_B18104_with_ann!AV$2","v":"Estimate Total: Female: 18 to 34 years: With a cognitive difficulty"},{"$f":"[1]ACS_16_5YR_B18104_with_ann!AW$2","v":"Margin of Error Total: Female: 18 to 34 years: With a cognitive difficulty"},{"$f":"[1]ACS_16_5YR_B18104_with_ann!AX$2","v":"Estimate Total: Female: 18 to 34 years: No cognitive difficulty"},{"$f":"[1]ACS_16_5YR_B18104_with_ann!AY$2","v":"Margin of Error Total: Female: 18 to 34 years: No cognitive difficulty"},{"$f":"[1]ACS_16_5YR_B18104_with_ann!AZ$2","v":"Estimate Total: Female: 35 to 64 years:"},{"$f":"[1]ACS_16_5YR_B18104_with_ann!BA$2","v":"Margin of Error Total: Female: 35 to 64 years:"},{"$f":"[1]ACS_16_5YR_B18104_with_ann!BB$2","v":"Estimate Total: Female: 35 to 64 years: With a cognitive difficulty"},{"$f":"[1]ACS_16_5YR_B18104_with_ann!BC$2","v":"Margin of Error Total: Female: 35 to 64 years: With a cognitive difficulty"},{"$f":"[1]ACS_16_5YR_B18104_with_ann!BD$2","v":"Estimate Total: Female: 35 to 64 years: No cognitive difficulty"},{"$f":"[1]ACS_16_5YR_B18104_with_ann!BE$2","v":"Margin of Error Total: Female: 35 to 64 years: No cognitive difficulty"},{"$f":"[1]ACS_16_5YR_B18104_with_ann!BF$2","v":"Estimate Total: Female: 65 to 74 years:"},{"$f":"[1]ACS_16_5YR_B18104_with_ann!BG$2","v":"Margin of Error Total: Female: 65 to 74 years:"},{"$f":"[1]ACS_16_5YR_B18104_with_ann!BH$2","v":"Estimate Total: Female: 65 to 74 years: With a cognitive difficulty"},{"$f":"[1]ACS_16_5YR_B18104_with_ann!BI$2","v":"Margin of Error Total: Female: 65 to 74 years: With a cognitive difficulty"},{"$f":"[1]ACS_16_5YR_B18104_with_ann!BJ$2","v":"Estimate Total: Female: 65 to 74 years: No cognitive difficulty"},{"$f":"[1]ACS_16_5YR_B18104_with_ann!BK$2","v":"Margin of Error Total: Female: 65 to 74 years: No cognitive difficulty"},{"$f":"[1]ACS_16_5YR_B18104_with_ann!BL$2","v":"Estimate Total: Female: 75 years and over:"},{"$f":"[1]ACS_16_5YR_B18104_with_ann!BM$2","v":"Margin of Error Total: Female: 75 years and over:"},{"$f":"[1]ACS_16_5YR_B18104_with_ann!BN$2","v":"Estimate Total: Female: 75 years and over: With a cognitive difficulty"},{"$f":"[1]ACS_16_5YR_B18104_with_ann!BO$2","v":"Margin of Error Total: Female: 75 years and over: With a cognitive difficulty"},{"$f":"[1]ACS_16_5YR_B18104_with_ann!BP$2","v":"Estimate Total: Female: 75 years and over: No cognitive difficulty"},{"$f":"[1]ACS_16_5YR_B18104_with_ann!BQ$2","v":"Margin of Error Total: Female: 75 years and over: No cognitive difficulty"}]
["0600000US3301900259",3301900259,"060","Acworth",{"$f":"[1]ACS_16_5YR_B18104_with_ann!D258","v":869},{"$f":"[1]ACS_16_5YR_B18104_with_ann!E258","v":133},{"$f":"[1]ACS_16_5YR_B18104_with_ann!F258","v":466},{"$f":"[1]ACS_16_5YR_B18104_with_ann!G258","v":81},{"$f":"[1]ACS_16_5YR_B18104_with_ann!H258","v":34},{"$f":"[1]ACS_16_5YR_B18104_with_ann!I258","v":23},{"$f":"[1]ACS_16_5YR_B18104_with_ann!J258","v":0},{"$f":"[1]ACS_16_5YR_B18104_with_ann!K258","v":11},{"$f":"[1]ACS_16_5YR_B18104_with_ann!L258","v":34},{"$f":"[1]ACS_16_5YR_B18104_with_ann!M258","v":23},{"$f":"[1]ACS_16_5YR_B18104_with_ann!N258","v":79},{"$f":"[1]ACS_16_5YR_B18104_with_ann!O258","v":38},{"$f":"[1]ACS_16_5YR_B18104_with_ann!P258","v":18},{"$f":"[1]ACS_16_5YR_B18104_with_ann!Q258","v":19},{"$f":"[1]ACS_16_5YR_B18104_with_ann!R258","v":61},{"$f":"[1]ACS_16_5YR_B18104_with_ann!S258","v":27},{"$f":"[1]ACS_16_5YR_B18104_with_ann!T258","v":213},{"$f":"[1]ACS_16_5YR_B18104_with_ann!U258","v":48},{"$f":"[1]ACS_16_5YR_B18104_with_ann!V258","v":8},{"$f":"[1]ACS_16_5YR_B18104_with_ann!W258","v":10},{"$f":"[1]ACS_16_5YR_B18104_with_ann!X258","v":205},{"$f":"[1]ACS_16_5YR_B18104_with_ann!Y258","v":48},{"$f":"[1]ACS_16_5YR_B18104_with_ann!Z258","v":88},{"$f":"[1]ACS_16_5YR_B18104_with_ann!AA258","v":27},{"$f":"[1]ACS_16_5YR_B18104_with_ann!AB258","v":17},{"$f":"[1]ACS_16_5YR_B18104_with_ann!AC258","v":15},{"$f":"[1]ACS_16_5YR_B18104_with_ann!AD258","v":71},{"$f":"[1]ACS_16_5YR_B18104_with_ann!AE258","v":23},{"$f":"[1]ACS_16_5YR_B18104_with_ann!AF258","v":52},{"$f":"[1]ACS_16_5YR_B18104_with_ann!AG258","v":23},{"$f":"[1]ACS_16_5YR_B18104_with_ann!AH258","v":6},{"$f":"[1]ACS_16_5YR_B18104_with_ann!AI258","v":10},{"$f":"[1]ACS_16_5YR_B18104_with_ann!AJ258","v":46},{"$f":"[1]ACS_16_5YR_B18104_with_ann!AK258","v":21},{"$f":"[1]ACS_16_5YR_B18104_with_ann!AL258","v":403},{"$f":"[1]ACS_16_5YR_B18104_with_ann!AM258","v":70},{"$f":"[1]ACS_16_5YR_B18104_with_ann!AN258","v":24},{"$f":"[1]ACS_16_5YR_B18104_with_ann!AO258","v":18},{"$f":"[1]ACS_16_5YR_B18104_with_ann!AP258","v":0},{"$f":"[1]ACS_16_5YR_B18104_with_ann!AQ258","v":11},{"$f":"[1]ACS_16_5YR_B18104_with_ann!AR258","v":24},{"$f":"[1]ACS_16_5YR_B18104_with_ann!AS258","v":18},{"$f":"[1]ACS_16_5YR_B18104_with_ann!AT258","v":47},{"$f":"[1]ACS_16_5YR_B18104_with_ann!AU258","v":25},{"$f":"[1]ACS_16_5YR_B18104_with_ann!AV258","v":0},{"$f":"[1]ACS_16_5YR_B18104_with_ann!AW258","v":11},{"$f":"[1]ACS_16_5YR_B18104_with_ann!AX258","v":47},{"$f":"[1]ACS_16_5YR_B18104_with_ann!AY258","v":25},{"$f":"[1]ACS_16_5YR_B18104_with_ann!AZ258","v":190},{"$f":"[1]ACS_16_5YR_B18104_with_ann!BA258","v":46},{"$f":"[1]ACS_16_5YR_B18104_with_ann!BB258","v":0},{"$f":"[1]ACS_16_5YR_B18104_with_ann!BC258","v":11},{"$f":"[1]ACS_16_5YR_B18104_with_ann!BD258","v":190},{"$f":"[1]ACS_16_5YR_B18104_with_ann!BE258","v":46},{"$f":"[1]ACS_16_5YR_B18104_with_ann!BF258","v":117},{"$f":"[1]ACS_16_5YR_B18104_with_ann!BG258","v":42},{"$f":"[1]ACS_16_5YR_B18104_with_ann!BH258","v":2},{"$f":"[1]ACS_16_5YR_B18104_with_ann!BI258","v":4},{"$f":"[1]ACS_16_5YR_B18104_with_ann!BJ258","v":115},{"$f":"[1]ACS_16_5YR_B18104_with_ann!BK258","v":42},{"$f":"[1]ACS_16_5YR_B18104_with_ann!BL258","v":25},{"$f":"[1]ACS_16_5YR_B18104_with_ann!BM258","v":14},{"$f":"[1]ACS_16_5YR_B18104_with_ann!BN258","v":0},{"$f":"[1]ACS_16_5YR_B18104_with_ann!BO258","v":11},{"$f":"[1]ACS_16_5YR_B18104_with_ann!BP258","v":25},{"$f":"[1]ACS_16_5YR_B18104_with_ann!BQ258","v":14}]
["0600000US3301911380",3301911380,"060","Charlestown",{"$f":"[1]ACS_16_5YR_B18104_with_ann!D259","v":4707},{"$f":"[1]ACS_16_5YR_B18104_with_ann!E259","v":114},{"$f":"[1]ACS_16_5YR_B18104_with_ann!F259","v":2325},{"$f":"[1]ACS_16_5YR_B18104_with_ann!G259","v":195},{"$f":"[1]ACS_16_5YR_B18104_with_ann!H259","v":250},{"$f":"[1]ACS_16_5YR_B18104_with_ann!I259","v":103},{"$f":"[1]ACS_16_5YR_B18104_with_ann!J259","v":0},{"$f":"[1]ACS_16_5YR_B18104_with_ann!K259","v":16},{"$f":"[1]ACS_16_5YR_B18104_with_ann!L259","v":250},{"$f":"[1]ACS_16_5YR_B18104_with_ann!M259","v":103},{"$f":"[1]ACS_16_5YR_B18104_with_ann!N259","v":490},{"$f":"[1]ACS_16_5YR_B18104_with_ann!O259","v":144},{"$f":"[1]ACS_16_5YR_B18104_with_ann!P259","v":22},{"$f":"[1]ACS_16_5YR_B18104_with_ann!Q259","v":33},{"$f":"[1]ACS_16_5YR_B18104_with_ann!R259","v":468},{"$f":"[1]ACS_16_5YR_B18104_with_ann!S259","v":141},{"$f":"[1]ACS_16_5YR_B18104_with_ann!T259","v":1034},{"$f":"[1]ACS_16_5YR_B18104_with_ann!U259","v":172},{"$f":"[1]ACS_16_5YR_B18104_with_ann!V259","v":143},{"$f":"[1]ACS_16_5YR_B18104_with_ann!W259","v":126},{"$f":"[1]ACS_16_5YR_B18104_with_ann!X259","v":891},{"$f":"[1]ACS_16_5YR_B18104_with_ann!Y259","v":161},{"$f":"[1]ACS_16_5YR_B18104_with_ann!Z259","v":261},{"$f":"[1]ACS_16_5YR_B18104_with_ann!AA259","v":94},{"$f":"[1]ACS_16_5YR_B18104_with_ann!AB259","v":0},{"$f":"[1]ACS_16_5YR_B18104_with_ann!AC259","v":16},{"$f":"[1]ACS_16_5YR_B18104_with_ann!AD259","v":261},{"$f":"[1]ACS_16_5YR_B18104_with_ann!AE259","v":94},{"$f":"[1]ACS_16_5YR_B18104_with_ann!AF259","v":290},{"$f":"[1]ACS_16_5YR_B18104_with_ann!AG259","v":141},{"$f":"[1]ACS_16_5YR_B18104_with_ann!AH259","v":78},{"$f":"[1]ACS_16_5YR_B18104_with_ann!AI259","v":90},{"$f":"[1]ACS_16_5YR_B18104_with_ann!AJ259","v":212},{"$f":"[1]ACS_16_5YR_B18104_with_ann!AK259","v":89},{"$f":"[1]ACS_16_5YR_B18104_with_ann!AL259","v":2382},{"$f":"[1]ACS_16_5YR_B18104_with_ann!AM259","v":208},{"$f":"[1]ACS_16_5YR_B18104_with_ann!AN259","v":420},{"$f":"[1]ACS_16_5YR_B18104_with_ann!AO259","v":147},{"$f":"[1]ACS_16_5YR_B18104_with_ann!AP259","v":56},{"$f":"[1]ACS_16_5YR_B18104_with_ann!AQ259","v":57},{"$f":"[1]ACS_16_5YR_B18104_with_ann!AR259","v":364},{"$f":"[1]ACS_16_5YR_B18104_with_ann!AS259","v":145},{"$f":"[1]ACS_16_5YR_B18104_with_ann!AT259","v":357},{"$f":"[1]ACS_16_5YR_B18104_with_ann!AU259","v":108},{"$f":"[1]ACS_16_5YR_B18104_with_ann!AV259","v":0},{"$f":"[1]ACS_16_5YR_B18104_with_ann!AW259","v":16},{"$f":"[1]ACS_16_5YR_B18104_with_ann!AX259","v":357},{"$f":"[1]ACS_16_5YR_B18104_with_ann!AY259","v":108},{"$f":"[1]ACS_16_5YR_B18104_with_ann!AZ259","v":1080},{"$f":"[1]ACS_16_5YR_B18104_with_ann!BA259","v":163},{"$f":"[1]ACS_16_5YR_B18104_with_ann!BB259","v":83},{"$f":"[1]ACS_16_5YR_B18104_with_ann!BC259","v":79},{"$f":"[1]ACS_16_5YR_B18104_with_ann!BD259","v":997},{"$f":"[1]ACS_16_5YR_B18104_with_ann!BE259","v":171},{"$f":"[1]ACS_16_5YR_B18104_with_ann!BF259","v":296},{"$f":"[1]ACS_16_5YR_B18104_with_ann!BG259","v":120},{"$f":"[1]ACS_16_5YR_B18104_with_ann!BH259","v":0},{"$f":"[1]ACS_16_5YR_B18104_with_ann!BI259","v":16},{"$f":"[1]ACS_16_5YR_B18104_with_ann!BJ259","v":296},{"$f":"[1]ACS_16_5YR_B18104_with_ann!BK259","v":120},{"$f":"[1]ACS_16_5YR_B18104_with_ann!BL259","v":229},{"$f":"[1]ACS_16_5YR_B18104_with_ann!BM259","v":88},{"$f":"[1]ACS_16_5YR_B18104_with_ann!BN259","v":17},{"$f":"[1]ACS_16_5YR_B18104_with_ann!BO259","v":28},{"$f":"[1]ACS_16_5YR_B18104_with_ann!BP259","v":212},{"$f":"[1]ACS_16_5YR_B18104_with_ann!BQ259","v":89}]
["0600000US3301912900",3301912900,"060","Claremont",{"$f":"[1]ACS_16_5YR_B18104_with_ann!D260","v":12046},{"$f":"[1]ACS_16_5YR_B18104_with_ann!E260","v":169},{"$f":"[1]ACS_16_5YR_B18104_with_ann!F260","v":5872},{"$f":"[1]ACS_16_5YR_B18104_with_ann!G260","v":297},{"$f":"[1]ACS_16_5YR_B18104_with_ann!H260","v":902},{"$f":"[1]ACS_16_5YR_B18104_with_ann!I260","v":164},{"$f":"[1]ACS_16_5YR_B18104_with_ann!J260","v":46},{"$f":"[1]ACS_16_5YR_B18104_with_ann!K260","v":35},{"$f":"[1]ACS_16_5YR_B18104_with_ann!L260","v":856},{"$f":"[1]ACS_16_5YR_B18104_with_ann!M260","v":169},{"$f":"[1]ACS_16_5YR_B18104_with_ann!N260","v":1622},{"$f":"[1]ACS_16_5YR_B18104_with_ann!O260","v":255},{"$f":"[1]ACS_16_5YR_B18104_with_ann!P260","v":123},{"$f":"[1]ACS_16_5YR_B18104_with_ann!Q260","v":98},{"$f":"[1]ACS_16_5YR_B18104_with_ann!R260","v":1499},{"$f":"[1]ACS_16_5YR_B18104_with_ann!S260","v":241},{"$f":"[1]ACS_16_5YR_B18104_with_ann!T260","v":2416},{"$f":"[1]ACS_16_5YR_B18104_with_ann!U260","v":184},{"$f":"[1]ACS_16_5YR_B18104_with_ann!V260","v":139},{"$f":"[1]ACS_16_5YR_B18104_with_ann!W260","v":75},{"$f":"[1]ACS_16_5YR_B18104_with_ann!X260","v":2277},{"$f":"[1]ACS_16_5YR_B18104_with_ann!Y260","v":197},{"$f":"[1]ACS_16_5YR_B18104_with_ann!Z260","v":650},{"$f":"[1]ACS_16_5YR_B18104_with_ann!AA260","v":105},{"$f":"[1]ACS_16_5YR_B18104_with_ann!AB260","v":21},{"$f":"[1]ACS_16_5YR_B18104_with_ann!AC260","v":28},{"$f":"[1]ACS_16_5YR_B18104_with_ann!AD260","v":629},{"$f":"[1]ACS_16_5YR_B18104_with_ann!AE260","v":107},{"$f":"[1]ACS_16_5YR_B18104_with_ann!AF260","v":282},{"$f":"[1]ACS_16_5YR_B18104_with_ann!AG260","v":88},{"$f":"[1]ACS_16_5YR_B18104_with_ann!AH260","v":21},{"$f":"[1]ACS_16_5YR_B18104_with_ann!AI260","v":24},{"$f":"[1]ACS_16_5YR_B18104_with_ann!AJ260","v":261},{"$f":"[1]ACS_16_5YR_B18104_with_ann!AK260","v":84},{"$f":"[1]ACS_16_5YR_B18104_with_ann!AL260","v":6174},{"$f":"[1]ACS_16_5YR_B18104_with_ann!AM260","v":266},{"$f":"[1]ACS_16_5YR_B18104_with_ann!AN260","v":922},{"$f":"[1]ACS_16_5YR_B18104_with_ann!AO260","v":206},{"$f":"[1]ACS_16_5YR_B18104_with_ann!AP260","v":52},{"$f":"[1]ACS_16_5YR_B18104_with_ann!AQ260","v":50},{"$f":"[1]ACS_16_5YR_B18104_with_ann!AR260","v":870},{"$f":"[1]ACS_16_5YR_B18104_with_ann!AS260","v":191},{"$f":"[1]ACS_16_5YR_B18104_with_ann!AT260","v":1415},{"$f":"[1]ACS_16_5YR_B18104_with_ann!AU260","v":187},{"$f":"[1]ACS_16_5YR_B18104_with_ann!AV260","v":217},{"$f":"[1]ACS_16_5YR_B18104_with_ann!AW260","v":92},{"$f":"[1]ACS_16_5YR_B18104_with_ann!AX260","v":1198},{"$f":"[1]ACS_16_5YR_B18104_with_ann!AY260","v":218},{"$f":"[1]ACS_16_5YR_B18104_with_ann!AZ260","v":2460},{"$f":"[1]ACS_16_5YR_B18104_with_ann!BA260","v":217},{"$f":"[1]ACS_16_5YR_B18104_with_ann!BB260","v":114},{"$f":"[1]ACS_16_5YR_B18104_with_ann!BC260","v":74},{"$f":"[1]ACS_16_5YR_B18104_with_ann!BD260","v":2346},{"$f":"[1]ACS_16_5YR_B18104_with_ann!BE260","v":212},{"$f":"[1]ACS_16_5YR_B18104_with_ann!BF260","v":755},{"$f":"[1]ACS_16_5YR_B18104_with_ann!BG260","v":152},{"$f":"[1]ACS_16_5YR_B18104_with_ann!BH260","v":102},{"$f":"[1]ACS_16_5YR_B18104_with_ann!BI260","v":102},{"$f":"[1]ACS_16_5YR_B18104_with_ann!BJ260","v":653},{"$f":"[1]ACS_16_5YR_B18104_with_ann!BK260","v":145},{"$f":"[1]ACS_16_5YR_B18104_with_ann!BL260","v":622},{"$f":"[1]ACS_16_5YR_B18104_with_ann!BM260","v":128},{"$f":"[1]ACS_16_5YR_B18104_with_ann!BN260","v":75},{"$f":"[1]ACS_16_5YR_B18104_with_ann!BO260","v":54},{"$f":"[1]ACS_16_5YR_B18104_with_ann!BP260","v":547},{"$f":"[1]ACS_16_5YR_B18104_with_ann!BQ260","v":120}]
["0600000US3301915060",3301915060,"060","Cornish",{"$f":"[1]ACS_16_5YR_B18104_with_ann!D261","v":1722},{"$f":"[1]ACS_16_5YR_B18104_with_ann!E261","v":218},{"$f":"[1]ACS_16_5YR_B18104_with_ann!F261","v":887},{"$f":"[1]ACS_16_5YR_B18104_with_ann!G261","v":151},{"$f":"[1]ACS_16_5YR_B18104_with_ann!H261","v":169},{"$f":"[1]ACS_16_5YR_B18104_with_ann!I261","v":107},{"$f":"[1]ACS_16_5YR_B18104_with_ann!J261","v":5},{"$f":"[1]ACS_16_5YR_B18104_with_ann!K261","v":9},{"$f":"[1]ACS_16_5YR_B18104_with_ann!L261","v":164},{"$f":"[1]ACS_16_5YR_B18104_with_ann!M261","v":106},{"$f":"[1]ACS_16_5YR_B18104_with_ann!N261","v":95},{"$f":"[1]ACS_16_5YR_B18104_with_ann!O261","v":28},{"$f":"[1]ACS_16_5YR_B18104_with_ann!P261","v":9},{"$f":"[1]ACS_16_5YR_B18104_with_ann!Q261","v":10},{"$f":"[1]ACS_16_5YR_B18104_with_ann!R261","v":86},{"$f":"[1]ACS_16_5YR_B18104_with_ann!S261","v":27},{"$f":"[1]ACS_16_5YR_B18104_with_ann!T261","v":367},{"$f":"[1]ACS_16_5YR_B18104_with_ann!U261","v":53},{"$f":"[1]ACS_16_5YR_B18104_with_ann!V261","v":6},{"$f":"[1]ACS_16_5YR_B18104_with_ann!W261","v":7},{"$f":"[1]ACS_16_5YR_B18104_with_ann!X261","v":361},{"$f":"[1]ACS_16_5YR_B18104_with_ann!Y261","v":54},{"$f":"[1]ACS_16_5YR_B18104_with_ann!Z261","v":190},{"$f":"[1]ACS_16_5YR_B18104_with_ann!AA261","v":51},{"$f":"[1]ACS_16_5YR_B18104_with_ann!AB261","v":0},{"$f":"[1]ACS_16_5YR_B18104_with_ann!AC261","v":11},{"$f":"[1]ACS_16_5YR_B18104_with_ann!AD261","v":190},{"$f":"[1]ACS_16_5YR_B18104_with_ann!AE261","v":51},{"$f":"[1]ACS_16_5YR_B18104_with_ann!AF261","v":66},{"$f":"[1]ACS_16_5YR_B18104_with_ann!AG261","v":32},{"$f":"[1]ACS_16_5YR_B18104_with_ann!AH261","v":8},{"$f":"[1]ACS_16_5YR_B18104_with_ann!AI261","v":8},{"$f":"[1]ACS_16_5YR_B18104_with_ann!AJ261","v":58},{"$f":"[1]ACS_16_5YR_B18104_with_ann!AK261","v":31},{"$f":"[1]ACS_16_5YR_B18104_with_ann!AL261","v":835},{"$f":"[1]ACS_16_5YR_B18104_with_ann!AM261","v":101},{"$f":"[1]ACS_16_5YR_B18104_with_ann!AN261","v":119},{"$f":"[1]ACS_16_5YR_B18104_with_ann!AO261","v":46},{"$f":"[1]ACS_16_5YR_B18104_with_ann!AP261","v":0},{"$f":"[1]ACS_16_5YR_B18104_with_ann!AQ261","v":11},{"$f":"[1]ACS_16_5YR_B18104_with_ann!AR261","v":119},{"$f":"[1]ACS_16_5YR_B18104_with_ann!AS261","v":46},{"$f":"[1]ACS_16_5YR_B18104_with_ann!AT261","v":78},{"$f":"[1]ACS_16_5YR_B18104_with_ann!AU261","v":27},{"$f":"[1]ACS_16_5YR_B18104_with_ann!AV261","v":0},{"$f":"[1]ACS_16_5YR_B18104_with_ann!AW261","v":11},{"$f":"[1]ACS_16_5YR_B18104_with_ann!AX261","v":78},{"$f":"[1]ACS_16_5YR_B18104_with_ann!AY261","v":27},{"$f":"[1]ACS_16_5YR_B18104_with_ann!AZ261","v":380},{"$f":"[1]ACS_16_5YR_B18104_with_ann!BA261","v":59},{"$f":"[1]ACS_16_5YR_B18104_with_ann!BB261","v":7},{"$f":"[1]ACS_16_5YR_B18104_with_ann!BC261","v":7},{"$f":"[1]ACS_16_5YR_B18104_with_ann!BD261","v":373},{"$f":"[1]ACS_16_5YR_B18104_with_ann!BE261","v":61},{"$f":"[1]ACS_16_5YR_B18104_with_ann!BF262","v":49},{"$f":"[1]ACS_16_5YR_B18104_with_ann!BG262","v":24},{"$f":"[1]ACS_16_5YR_B18104_with_ann!BH262","v":1},{"$f":"[1]ACS_16_5YR_B18104_with_ann!BI262","v":3},{"$f":"[1]ACS_16_5YR_B18104_with_ann!BJ262","v":48},{"$f":"[1]ACS_16_5YR_B18104_with_ann!BK262","v":24},{"$f":"[1]ACS_16_5YR_B18104_with_ann!BL262","v":21},{"$f":"[1]ACS_16_5YR_B18104_with_ann!BM262","v":12},{"$f":"[1]ACS_16_5YR_B18104_with_ann!BN262","v":3},{"$f":"[1]ACS_16_5YR_B18104_with_ann!BO262","v":5},{"$f":"[1]ACS_16_5YR_B18104_with_ann!BP262","v":18},{"$f":"[1]ACS_16_5YR_B18104_with_ann!BQ262","v":10}]
["0600000US3301916340",3301916340,"060","Croydon",{"$f":"[1]ACS_16_5YR_B18104_with_ann!D262","v":840},{"$f":"[1]ACS_16_5YR_B18104_with_ann!E262","v":240},{"$f":"[1]ACS_16_5YR_B18104_with_ann!F262","v":412},{"$f":"[1]ACS_16_5YR_B18104_with_ann!G262","v":108},{"$f":"[1]ACS_16_5YR_B18104_with_ann!H262","v":56},{"$f":"[1]ACS_16_5YR_B18104_with_ann!I262","v":37},{"$f":"[1]ACS_16_5YR_B18104_with_ann!J262","v":0},{"$f":"[1]ACS_16_5YR_B18104_with_ann!K262","v":11},{"$f":"[1]ACS_16_5YR_B18104_with_ann!L262","v":56},{"$f":"[1]ACS_16_5YR_B18104_with_ann!M262","v":37},{"$f":"[1]ACS_16_5YR_B18104_with_ann!N262","v":87},{"$f":"[1]ACS_16_5YR_B18104_with_ann!O262","v":47},{"$f":"[1]ACS_16_5YR_B18104_with_ann!P262","v":5},{"$f":"[1]ACS_16_5YR_B18104_with_ann!Q262","v":9},{"$f":"[1]ACS_16_5YR_B18104_with_ann!R262","v":82},{"$f":"[1]ACS_16_5YR_B18104_with_ann!S262","v":46},{"$f":"[1]ACS_16_5YR_B18104_with_ann!T262","v":198},{"$f":"[1]ACS_16_5YR_B18104_with_ann!U262","v":60},{"$f":"[1]ACS_16_5YR_B18104_with_ann!V262","v":12},{"$f":"[1]ACS_16_5YR_B18104_with_ann!W262","v":11},{"$f":"[1]ACS_16_5YR_B18104_with_ann!X262","v":186},{"$f":"[1]ACS_16_5YR_B18104_with_ann!Y262","v":59},{"$f":"[1]ACS_16_5YR_B18104_with_ann!Z262","v":38},{"$f":"[1]ACS_16_5YR_B18104_with_ann!AA262","v":22},{"$f":"[1]ACS_16_5YR_B18104_with_ann!AB262","v":2},{"$f":"[1]ACS_16_5YR_B18104_with_ann!AC262","v":4},{"$f":"[1]ACS_16_5YR_B18104_with_ann!AD262","v":36},{"$f":"[1]ACS_16_5YR_B18104_with_ann!AE262","v":21},{"$f":"[1]ACS_16_5YR_B18104_with_ann!AF262","v":33},{"$f":"[1]ACS_16_5YR_B18104_with_ann!AG262","v":16},{"$f":"[1]ACS_16_5YR_B18104_with_ann!AH262","v":0},{"$f":"[1]ACS_16_5YR_B18104_with_ann!AI262","v":11},{"$f":"[1]ACS_16_5YR_B18104_with_ann!AJ262","v":33},{"$f":"[1]ACS_16_5YR_B18104_with_ann!AK262","v":16},{"$f":"[1]ACS_16_5YR_B18104_with_ann!AL262","v":428},{"$f":"[1]ACS_16_5YR_B18104_with_ann!AM262","v":154},{"$f":"[1]ACS_16_5YR_B18104_with_ann!AN262","v":65},{"$f":"[1]ACS_16_5YR_B18104_with_ann!AO262","v":34},{"$f":"[1]ACS_16_5YR_B18104_with_ann!AP262","v":0},{"$f":"[1]ACS_16_5YR_B18104_with_ann!AQ262","v":11},{"$f":"[1]ACS_16_5YR_B18104_with_ann!AR262","v":65},{"$f":"[1]ACS_16_5YR_B18104_with_ann!AS262","v":34},{"$f":"[1]ACS_16_5YR_B18104_with_ann!AT262","v":124},{"$f":"[1]ACS_16_5YR_B18104_with_ann!AU262","v":96},{"$f":"[1]ACS_16_5YR_B18104_with_ann!AV262","v":0},{"$f":"[1]ACS_16_5YR_B18104_with_ann!AW262","v":11},{"$f":"[1]ACS_16_5YR_B18104_with_ann!AX262","v":124},{"$f":"[1]ACS_16_5YR_B18104_with_ann!AY262","v":96},{"$f":"[1]ACS_16_5YR_B18104_with_ann!AZ262","v":169},{"$f":"[1]ACS_16_5YR_B18104_with_ann!BA262","v":53},{"$f":"[1]ACS_16_5YR_B18104_with_ann!BB262","v":0},{"$f":"[1]ACS_16_5YR_B18104_with_ann!BC262","v":11},{"$f":"[1]ACS_16_5YR_B18104_with_ann!BD262","v":169},{"$f":"[1]ACS_16_5YR_B18104_with_ann!BE262","v":53},{"$f":"[1]ACS_16_5YR_B18104_with_ann!BF263","v":49},{"$f":"[1]ACS_16_5YR_B18104_with_ann!BG263","v":21},{"$f":"[1]ACS_16_5YR_B18104_with_ann!BH263","v":7},{"$f":"[1]ACS_16_5YR_B18104_with_ann!BI263","v":10},{"$f":"[1]ACS_16_5YR_B18104_with_ann!BJ263","v":42},{"$f":"[1]ACS_16_5YR_B18104_with_ann!BK263","v":19},{"$f":"[1]ACS_16_5YR_B18104_with_ann!BL263","v":29},{"$f":"[1]ACS_16_5YR_B18104_with_ann!BM263","v":13},{"$f":"[1]ACS_16_5YR_B18104_with_ann!BN263","v":3},{"$f":"[1]ACS_16_5YR_B18104_with_ann!BO263","v":4},{"$f":"[1]ACS_16_5YR_B18104_with_ann!BP263","v":26},{"$f":"[1]ACS_16_5YR_B18104_with_ann!BQ263","v":13}]
["0600000US3301930500",3301930500,"060","Goshen",{"$f":"[1]ACS_16_5YR_B18104_with_ann!D263","v":641},{"$f":"[1]ACS_16_5YR_B18104_with_ann!E263","v":102},{"$f":"[1]ACS_16_5YR_B18104_with_ann!F263","v":328},{"$f":"[1]ACS_16_5YR_B18104_with_ann!G263","v":66},{"$f":"[1]ACS_16_5YR_B18104_with_ann!H263","v":49},{"$f":"[1]ACS_16_5YR_B18104_with_ann!I263","v":27},{"$f":"[1]ACS_16_5YR_B18104_with_ann!J263","v":2},{"$f":"[1]ACS_16_5YR_B18104_with_ann!K263","v":3},{"$f":"[1]ACS_16_5YR_B18104_with_ann!L263","v":47},{"$f":"[1]ACS_16_5YR_B18104_with_ann!M263","v":27},{"$f":"[1]ACS_16_5YR_B18104_with_ann!N263","v":43},{"$f":"[1]ACS_16_5YR_B18104_with_ann!O263","v":21},{"$f":"[1]ACS_16_5YR_B18104_with_ann!P263","v":1},{"$f":"[1]ACS_16_5YR_B18104_with_ann!Q263","v":4},{"$f":"[1]ACS_16_5YR_B18104_with_ann!R263","v":42},{"$f":"[1]ACS_16_5YR_B18104_with_ann!S263","v":21},{"$f":"[1]ACS_16_5YR_B18104_with_ann!T263","v":157},{"$f":"[1]ACS_16_5YR_B18104_with_ann!U263","v":41},{"$f":"[1]ACS_16_5YR_B18104_with_ann!V263","v":7},{"$f":"[1]ACS_16_5YR_B18104_with_ann!W263","v":9},{"$f":"[1]ACS_16_5YR_B18104_with_ann!X263","v":150},{"$f":"[1]ACS_16_5YR_B18104_with_ann!Y263","v":39},{"$f":"[1]ACS_16_5YR_B18104_with_ann!Z263","v":59},{"$f":"[1]ACS_16_5YR_B18104_with_ann!AA263","v":26},{"$f":"[1]ACS_16_5YR_B18104_with_ann!AB263","v":4},{"$f":"[1]ACS_16_5YR_B18104_with_ann!AC263","v":4},{"$f":"[1]ACS_16_5YR_B18104_with_ann!AD263","v":55},{"$f":"[1]ACS_16_5YR_B18104_with_ann!AE263","v":25},{"$f":"[1]ACS_16_5YR_B18104_with_ann!AF263","v":20},{"$f":"[1]ACS_16_5YR_B18104_with_ann!AG263","v":14},{"$f":"[1]ACS_16_5YR_B18104_with_ann!AH263","v":0},{"$f":"[1]ACS_16_5YR_B18104_with_ann!AI263","v":11},{"$f":"[1]ACS_16_5YR_B18104_with_ann!AJ263","v":20},{"$f":"[1]ACS_16_5YR_B18104_with_ann!AK263","v":14},{"$f":"[1]ACS_16_5YR_B18104_with_ann!AL263","v":313},{"$f":"[1]ACS_16_5YR_B18104_with_ann!AM263","v":53},{"$f":"[1]ACS_16_5YR_B18104_with_ann!AN263","v":49},{"$f":"[1]ACS_16_5YR_B18104_with_ann!AO263","v":25},{"$f":"[1]ACS_16_5YR_B18104_with_ann!AP263","v":0},{"$f":"[1]ACS_16_5YR_B18104_with_ann!AQ263","v":11},{"$f":"[1]ACS_16_5YR_B18104_with_ann!AR263","v":49},{"$f":"[1]ACS_16_5YR_B18104_with_ann!AS263","v":25},{"$f":"[1]ACS_16_5YR_B18104_with_ann!AT263","v":69},{"$f":"[1]ACS_16_5YR_B18104_with_ann!AU263","v":34},{"$f":"[1]ACS_16_5YR_B18104_with_ann!AV263","v":0},{"$f":"[1]ACS_16_5YR_B18104_with_ann!AW263","v":11},{"$f":"[1]ACS_16_5YR_B18104_with_ann!AX263","v":69},{"$f":"[1]ACS_16_5YR_B18104_with_ann!AY263","v":34},{"$f":"[1]ACS_16_5YR_B18104_with_ann!AZ263","v":117},{"$f":"[1]ACS_16_5YR_B18104_with_ann!BA263","v":33},{"$f":"[1]ACS_16_5YR_B18104_with_ann!BB263","v":6},{"$f":"[1]ACS_16_5YR_B18104_with_ann!BC263","v":5},{"$f":"[1]ACS_16_5YR_B18104_with_ann!BD263","v":111},{"$f":"[1]ACS_16_5YR_B18104_with_ann!BE263","v":32},{"$f":"[1]ACS_16_5YR_B18104_with_ann!BF264","v":139},{"$f":"[1]ACS_16_5YR_B18104_with_ann!BG264","v":53},{"$f":"[1]ACS_16_5YR_B18104_with_ann!BH264","v":0},{"$f":"[1]ACS_16_5YR_B18104_with_ann!BI264","v":11},{"$f":"[1]ACS_16_5YR_B18104_with_ann!BJ264","v":139},{"$f":"[1]ACS_16_5YR_B18104_with_ann!BK264","v":53},{"$f":"[1]ACS_16_5YR_B18104_with_ann!BL264","v":164},{"$f":"[1]ACS_16_5YR_B18104_with_ann!BM264","v":75},{"$f":"[1]ACS_16_5YR_B18104_with_ann!BN264","v":14},{"$f":"[1]ACS_16_5YR_B18104_with_ann!BO264","v":21},{"$f":"[1]ACS_16_5YR_B18104_with_ann!BP264","v":150},{"$f":"[1]ACS_16_5YR_B18104_with_ann!BQ264","v":74}]
["0600000US3301931220",3301931220,"060","Grantham",{"$f":"[1]ACS_16_5YR_B18104_with_ann!D264","v":2945},{"$f":"[1]ACS_16_5YR_B18104_with_ann!E264","v":14},{"$f":"[1]ACS_16_5YR_B18104_with_ann!F264","v":1382},{"$f":"[1]ACS_16_5YR_B18104_with_ann!G264","v":143},{"$f":"[1]ACS_16_5YR_B18104_with_ann!H264","v":271},{"$f":"[1]ACS_16_5YR_B18104_with_ann!I264","v":92},{"$f":"[1]ACS_16_5YR_B18104_with_ann!J264","v":58},{"$f":"[1]ACS_16_5YR_B18104_with_ann!K264","v":63},{"$f":"[1]ACS_16_5YR_B18104_with_ann!L264","v":213},{"$f":"[1]ACS_16_5YR_B18104_with_ann!M264","v":80},{"$f":"[1]ACS_16_5YR_B18104_with_ann!N264","v":148},{"$f":"[1]ACS_16_5YR_B18104_with_ann!O264","v":73},{"$f":"[1]ACS_16_5YR_B18104_with_ann!P264","v":0},{"$f":"[1]ACS_16_5YR_B18104_with_ann!Q264","v":11},{"$f":"[1]ACS_16_5YR_B18104_with_ann!R264","v":148},{"$f":"[1]ACS_16_5YR_B18104_with_ann!S264","v":73},{"$f":"[1]ACS_16_5YR_B18104_with_ann!T264","v":613},{"$f":"[1]ACS_16_5YR_B18104_with_ann!U264","v":124},{"$f":"[1]ACS_16_5YR_B18104_with_ann!V264","v":0},{"$f":"[1]ACS_16_5YR_B18104_with_ann!W264","v":11},{"$f":"[1]ACS_16_5YR_B18104_with_ann!X264","v":613},{"$f":"[1]ACS_16_5YR_B18104_with_ann!Y264","v":124},{"$f":"[1]ACS_16_5YR_B18104_with_ann!Z264","v":156},{"$f":"[1]ACS_16_5YR_B18104_with_ann!AA264","v":69},{"$f":"[1]ACS_16_5YR_B18104_with_ann!AB264","v":0},{"$f":"[1]ACS_16_5YR_B18104_with_ann!AC264","v":11},{"$f":"[1]ACS_16_5YR_B18104_with_ann!AD264","v":156},{"$f":"[1]ACS_16_5YR_B18104_with_ann!AE264","v":69},{"$f":"[1]ACS_16_5YR_B18104_with_ann!AF264","v":194},{"$f":"[1]ACS_16_5YR_B18104_with_ann!AG264","v":86},{"$f":"[1]ACS_16_5YR_B18104_with_ann!AH264","v":0},{"$f":"[1]ACS_16_5YR_B18104_with_ann!AI264","v":11},{"$f":"[1]ACS_16_5YR_B18104_with_ann!AJ264","v":194},{"$f":"[1]ACS_16_5YR_B18104_with_ann!AK264","v":86},{"$f":"[1]ACS_16_5YR_B18104_with_ann!AL264","v":1563},{"$f":"[1]ACS_16_5YR_B18104_with_ann!AM264","v":142},{"$f":"[1]ACS_16_5YR_B18104_with_ann!AN264","v":250},{"$f":"[1]ACS_16_5YR_B18104_with_ann!AO264","v":125},{"$f":"[1]ACS_16_5YR_B18104_with_ann!AP264","v":0},{"$f":"[1]ACS_16_5YR_B18104_with_ann!AQ264","v":11},{"$f":"[1]ACS_16_5YR_B18104_with_ann!AR264","v":250},{"$f":"[1]ACS_16_5YR_B18104_with_ann!AS264","v":125},{"$f":"[1]ACS_16_5YR_B18104_with_ann!AT264","v":114},{"$f":"[1]ACS_16_5YR_B18104_with_ann!AU264","v":98},{"$f":"[1]ACS_16_5YR_B18104_with_ann!AV264","v":0},{"$f":"[1]ACS_16_5YR_B18104_with_ann!AW264","v":11},{"$f":"[1]ACS_16_5YR_B18104_with_ann!AX264","v":114},{"$f":"[1]ACS_16_5YR_B18104_with_ann!AY264","v":98},{"$f":"[1]ACS_16_5YR_B18104_with_ann!AZ264","v":896},{"$f":"[1]ACS_16_5YR_B18104_with_ann!BA264","v":131},{"$f":"[1]ACS_16_5YR_B18104_with_ann!BB264","v":46},{"$f":"[1]ACS_16_5YR_B18104_with_ann!BC264","v":65},{"$f":"[1]ACS_16_5YR_B18104_with_ann!BD264","v":850},{"$f":"[1]ACS_16_5YR_B18104_with_ann!BE264","v":137},{"$f":"[1]ACS_16_5YR_B18104_with_ann!BF265","v":35},{"$f":"[1]ACS_16_5YR_B18104_with_ann!BG265","v":11},{"$f":"[1]ACS_16_5YR_B18104_with_ann!BH265","v":0},{"$f":"[1]ACS_16_5YR_B18104_with_ann!BI265","v":11},{"$f":"[1]ACS_16_5YR_B18104_with_ann!BJ265","v":35},{"$f":"[1]ACS_16_5YR_B18104_with_ann!BK265","v":11},{"$f":"[1]ACS_16_5YR_B18104_with_ann!BL265","v":15},{"$f":"[1]ACS_16_5YR_B18104_with_ann!BM265","v":8},{"$f":"[1]ACS_16_5YR_B18104_with_ann!BN265","v":0},{"$f":"[1]ACS_16_5YR_B18104_with_ann!BO265","v":11},{"$f":"[1]ACS_16_5YR_B18104_with_ann!BP265","v":15},{"$f":"[1]ACS_16_5YR_B18104_with_ann!BQ265","v":8}]
["0600000US3301940900",3301940900,"060","Langdon",{"$f":"[1]ACS_16_5YR_B18104_with_ann!D265","v":680},{"$f":"[1]ACS_16_5YR_B18104_with_ann!E265","v":139},{"$f":"[1]ACS_16_5YR_B18104_with_ann!F265","v":326},{"$f":"[1]ACS_16_5YR_B18104_with_ann!G265","v":83},{"$f":"[1]ACS_16_5YR_B18104_with_ann!H265","v":76},{"$f":"[1]ACS_16_5YR_B18104_with_ann!I265","v":46},{"$f":"[1]ACS_16_5YR_B18104_with_ann!J265","v":6},{"$f":"[1]ACS_16_5YR_B18104_with_ann!K265","v":8},{"$f":"[1]ACS_16_5YR_B18104_with_ann!L265","v":70},{"$f":"[1]ACS_16_5YR_B18104_with_ann!M265","v":44},{"$f":"[1]ACS_16_5YR_B18104_with_ann!N265","v":53},{"$f":"[1]ACS_16_5YR_B18104_with_ann!O265","v":27},{"$f":"[1]ACS_16_5YR_B18104_with_ann!P265","v":2},{"$f":"[1]ACS_16_5YR_B18104_with_ann!Q265","v":4},{"$f":"[1]ACS_16_5YR_B18104_with_ann!R265","v":51},{"$f":"[1]ACS_16_5YR_B18104_with_ann!S265","v":26},{"$f":"[1]ACS_16_5YR_B18104_with_ann!T265","v":143},{"$f":"[1]ACS_16_5YR_B18104_with_ann!U265","v":40},{"$f":"[1]ACS_16_5YR_B18104_with_ann!V265","v":0},{"$f":"[1]ACS_16_5YR_B18104_with_ann!W265","v":11},{"$f":"[1]ACS_16_5YR_B18104_with_ann!X265","v":143},{"$f":"[1]ACS_16_5YR_B18104_with_ann!Y265","v":40},{"$f":"[1]ACS_16_5YR_B18104_with_ann!Z265","v":39},{"$f":"[1]ACS_16_5YR_B18104_with_ann!AA265","v":14},{"$f":"[1]ACS_16_5YR_B18104_with_ann!AB265","v":2},{"$f":"[1]ACS_16_5YR_B18104_with_ann!AC265","v":3},{"$f":"[1]ACS_16_5YR_B18104_with_ann!AD265","v":37},{"$f":"[1]ACS_16_5YR_B18104_with_ann!AE265","v":14},{"$f":"[1]ACS_16_5YR_B18104_with_ann!AF265","v":15},{"$f":"[1]ACS_16_5YR_B18104_with_ann!AG265","v":9},{"$f":"[1]ACS_16_5YR_B18104_with_ann!AH265","v":3},{"$f":"[1]ACS_16_5YR_B18104_with_ann!AI265","v":4},{"$f":"[1]ACS_16_5YR_B18104_with_ann!AJ265","v":12},{"$f":"[1]ACS_16_5YR_B18104_with_ann!AK265","v":8},{"$f":"[1]ACS_16_5YR_B18104_with_ann!AL265","v":354},{"$f":"[1]ACS_16_5YR_B18104_with_ann!AM265","v":70},{"$f":"[1]ACS_16_5YR_B18104_with_ann!AN265","v":61},{"$f":"[1]ACS_16_5YR_B18104_with_ann!AO265","v":42},{"$f":"[1]ACS_16_5YR_B18104_with_ann!AP265","v":3},{"$f":"[1]ACS_16_5YR_B18104_with_ann!AQ265","v":4},{"$f":"[1]ACS_16_5YR_B18104_with_ann!AR265","v":58},{"$f":"[1]ACS_16_5YR_B18104_with_ann!AS265","v":42},{"$f":"[1]ACS_16_5YR_B18104_with_ann!AT265","v":69},{"$f":"[1]ACS_16_5YR_B18104_with_ann!AU265","v":25},{"$f":"[1]ACS_16_5YR_B18104_with_ann!AV265","v":2},{"$f":"[1]ACS_16_5YR_B18104_with_ann!AW265","v":3},{"$f":"[1]ACS_16_5YR_B18104_with_ann!AX265","v":67},{"$f":"[1]ACS_16_5YR_B18104_with_ann!AY265","v":25},{"$f":"[1]ACS_16_5YR_B18104_with_ann!AZ265","v":174},{"$f":"[1]ACS_16_5YR_B18104_with_ann!BA265","v":41},{"$f":"[1]ACS_16_5YR_B18104_with_ann!BB265","v":3},{"$f":"[1]ACS_16_5YR_B18104_with_ann!BC265","v":4},{"$f":"[1]ACS_16_5YR_B18104_with_ann!BD265","v":171},{"$f":"[1]ACS_16_5YR_B18104_with_ann!BE265","v":42},{"$f":"[1]ACS_16_5YR_B18104_with_ann!BF266","v":51},{"$f":"[1]ACS_16_5YR_B18104_with_ann!BG266","v":23},{"$f":"[1]ACS_16_5YR_B18104_with_ann!BH266","v":0},{"$f":"[1]ACS_16_5YR_B18104_with_ann!BI266","v":11},{"$f":"[1]ACS_16_5YR_B18104_with_ann!BJ266","v":51},{"$f":"[1]ACS_16_5YR_B18104_with_ann!BK266","v":23},{"$f":"[1]ACS_16_5YR_B18104_with_ann!BL266","v":39},{"$f":"[1]ACS_16_5YR_B18104_with_ann!BM266","v":26},{"$f":"[1]ACS_16_5YR_B18104_with_ann!BN266","v":3},{"$f":"[1]ACS_16_5YR_B18104_with_ann!BO266","v":4},{"$f":"[1]ACS_16_5YR_B18104_with_ann!BP266","v":36},{"$f":"[1]ACS_16_5YR_B18104_with_ann!BQ266","v":26}]
["0600000US3301941700",3301941700,"060","Lempster",{"$f":"[1]ACS_16_5YR_B18104_with_ann!D266","v":857},{"$f":"[1]ACS_16_5YR_B18104_with_ann!E266","v":153},{"$f":"[1]ACS_16_5YR_B18104_with_ann!F266","v":401},{"$f":"[1]ACS_16_5YR_B18104_with_ann!G266","v":68},{"$f":"[1]ACS_16_5YR_B18104_with_ann!H266","v":36},{"$f":"[1]ACS_16_5YR_B18104_with_ann!I266","v":23},{"$f":"[1]ACS_16_5YR_B18104_with_ann!J266","v":2},{"$f":"[1]ACS_16_5YR_B18104_with_ann!K266","v":4},{"$f":"[1]ACS_16_5YR_B18104_with_ann!L266","v":34},{"$f":"[1]ACS_16_5YR_B18104_with_ann!M266","v":21},{"$f":"[1]ACS_16_5YR_B18104_with_ann!N266","v":34},{"$f":"[1]ACS_16_5YR_B18104_with_ann!O266","v":16},{"$f":"[1]ACS_16_5YR_B18104_with_ann!P266","v":4},{"$f":"[1]ACS_16_5YR_B18104_with_ann!Q266","v":5},{"$f":"[1]ACS_16_5YR_B18104_with_ann!R266","v":30},{"$f":"[1]ACS_16_5YR_B18104_with_ann!S266","v":15},{"$f":"[1]ACS_16_5YR_B18104_with_ann!T266","v":249},{"$f":"[1]ACS_16_5YR_B18104_with_ann!U266","v":58},{"$f":"[1]ACS_16_5YR_B18104_with_ann!V266","v":10},{"$f":"[1]ACS_16_5YR_B18104_with_ann!W266","v":11},{"$f":"[1]ACS_16_5YR_B18104_with_ann!X266","v":239},{"$f":"[1]ACS_16_5YR_B18104_with_ann!Y266","v":57},{"$f":"[1]ACS_16_5YR_B18104_with_ann!Z266","v":68},{"$f":"[1]ACS_16_5YR_B18104_with_ann!AA266","v":28},{"$f":"[1]ACS_16_5YR_B18104_with_ann!AB266","v":0},{"$f":"[1]ACS_16_5YR_B18104_with_ann!AC266","v":11},{"$f":"[1]ACS_16_5YR_B18104_with_ann!AD266","v":68},{"$f":"[1]ACS_16_5YR_B18104_with_ann!AE266","v":28},{"$f":"[1]ACS_16_5YR_B18104_with_ann!AF266","v":14},{"$f":"[1]ACS_16_5YR_B18104_with_ann!AG266","v":11},{"$f":"[1]ACS_16_5YR_B18104_with_ann!AH266","v":2},{"$f":"[1]ACS_16_5YR_B18104_with_ann!AI266","v":4},{"$f":"[1]ACS_16_5YR_B18104_with_ann!AJ266","v":12},{"$f":"[1]ACS_16_5YR_B18104_with_ann!AK266","v":9},{"$f":"[1]ACS_16_5YR_B18104_with_ann!AL266","v":456},{"$f":"[1]ACS_16_5YR_B18104_with_ann!AM266","v":111},{"$f":"[1]ACS_16_5YR_B18104_with_ann!AN266","v":121},{"$f":"[1]ACS_16_5YR_B18104_with_ann!AO266","v":76},{"$f":"[1]ACS_16_5YR_B18104_with_ann!AP266","v":0},{"$f":"[1]ACS_16_5YR_B18104_with_ann!AQ266","v":11},{"$f":"[1]ACS_16_5YR_B18104_with_ann!AR266","v":121},{"$f":"[1]ACS_16_5YR_B18104_with_ann!AS266","v":76},{"$f":"[1]ACS_16_5YR_B18104_with_ann!AT266","v":54},{"$f":"[1]ACS_16_5YR_B18104_with_ann!AU266","v":24},{"$f":"[1]ACS_16_5YR_B18104_with_ann!AV266","v":0},{"$f":"[1]ACS_16_5YR_B18104_with_ann!AW266","v":11},{"$f":"[1]ACS_16_5YR_B18104_with_ann!AX266","v":54},{"$f":"[1]ACS_16_5YR_B18104_with_ann!AY266","v":24},{"$f":"[1]ACS_16_5YR_B18104_with_ann!AZ266","v":191},{"$f":"[1]ACS_16_5YR_B18104_with_ann!BA266","v":52},{"$f":"[1]ACS_16_5YR_B18104_with_ann!BB266","v":11},{"$f":"[1]ACS_16_5YR_B18104_with_ann!BC266","v":11},{"$f":"[1]ACS_16_5YR_B18104_with_ann!BD266","v":180},{"$f":"[1]ACS_16_5YR_B18104_with_ann!BE266","v":50},{"$f":"[1]ACS_16_5YR_B18104_with_ann!BF267","v":312},{"$f":"[1]ACS_16_5YR_B18104_with_ann!BG267","v":130},{"$f":"[1]ACS_16_5YR_B18104_with_ann!BH267","v":30},{"$f":"[1]ACS_16_5YR_B18104_with_ann!BI267","v":37},{"$f":"[1]ACS_16_5YR_B18104_with_ann!BJ267","v":282},{"$f":"[1]ACS_16_5YR_B18104_with_ann!BK267","v":120},{"$f":"[1]ACS_16_5YR_B18104_with_ann!BL267","v":285},{"$f":"[1]ACS_16_5YR_B18104_with_ann!BM267","v":103},{"$f":"[1]ACS_16_5YR_B18104_with_ann!BN267","v":24},{"$f":"[1]ACS_16_5YR_B18104_with_ann!BO267","v":28},{"$f":"[1]ACS_16_5YR_B18104_with_ann!BP267","v":261},{"$f":"[1]ACS_16_5YR_B18104_with_ann!BQ267","v":107}]
["0600000US3301952580",3301952580,"060","Newport",{"$f":"[1]ACS_16_5YR_B18104_with_ann!D267","v":5974},{"$f":"[1]ACS_16_5YR_B18104_with_ann!E267","v":123},{"$f":"[1]ACS_16_5YR_B18104_with_ann!F267","v":3045},{"$f":"[1]ACS_16_5YR_B18104_with_ann!G267","v":247},{"$f":"[1]ACS_16_5YR_B18104_with_ann!H267","v":507},{"$f":"[1]ACS_16_5YR_B18104_with_ann!I267","v":185},{"$f":"[1]ACS_16_5YR_B18104_with_ann!J267","v":66},{"$f":"[1]ACS_16_5YR_B18104_with_ann!K267","v":63},{"$f":"[1]ACS_16_5YR_B18104_with_ann!L267","v":441},{"$f":"[1]ACS_16_5YR_B18104_with_ann!M267","v":147},{"$f":"[1]ACS_16_5YR_B18104_with_ann!N267","v":754},{"$f":"[1]ACS_16_5YR_B18104_with_ann!O267","v":177},{"$f":"[1]ACS_16_5YR_B18104_with_ann!P267","v":18},{"$f":"[1]ACS_16_5YR_B18104_with_ann!Q267","v":29},{"$f":"[1]ACS_16_5YR_B18104_with_ann!R267","v":736},{"$f":"[1]ACS_16_5YR_B18104_with_ann!S267","v":175},{"$f":"[1]ACS_16_5YR_B18104_with_ann!T267","v":1262},{"$f":"[1]ACS_16_5YR_B18104_with_ann!U267","v":216},{"$f":"[1]ACS_16_5YR_B18104_with_ann!V267","v":127},{"$f":"[1]ACS_16_5YR_B18104_with_ann!W267","v":110},{"$f":"[1]ACS_16_5YR_B18104_with_ann!X267","v":1135},{"$f":"[1]ACS_16_5YR_B18104_with_ann!Y267","v":210},{"$f":"[1]ACS_16_5YR_B18104_with_ann!Z267","v":405},{"$f":"[1]ACS_16_5YR_B18104_with_ann!AA267","v":161},{"$f":"[1]ACS_16_5YR_B18104_with_ann!AB267","v":40},{"$f":"[1]ACS_16_5YR_B18104_with_ann!AC267","v":67},{"$f":"[1]ACS_16_5YR_B18104_with_ann!AD267","v":365},{"$f":"[1]ACS_16_5YR_B18104_with_ann!AE267","v":147},{"$f":"[1]ACS_16_5YR_B18104_with_ann!AF267","v":117},{"$f":"[1]ACS_16_5YR_B18104_with_ann!AG267","v":81},{"$f":"[1]ACS_16_5YR_B18104_with_ann!AH267","v":0},{"$f":"[1]ACS_16_5YR_B18104_with_ann!AI267","v":16},{"$f":"[1]ACS_16_5YR_B18104_with_ann!AJ267","v":117},{"$f":"[1]ACS_16_5YR_B18104_with_ann!AK267","v":81},{"$f":"[1]ACS_16_5YR_B18104_with_ann!AL267","v":2929},{"$f":"[1]ACS_16_5YR_B18104_with_ann!AM267","v":214},{"$f":"[1]ACS_16_5YR_B18104_with_ann!AN267","v":406},{"$f":"[1]ACS_16_5YR_B18104_with_ann!AO267","v":128},{"$f":"[1]ACS_16_5YR_B18104_with_ann!AP267","v":0},{"$f":"[1]ACS_16_5YR_B18104_with_ann!AQ267","v":16},{"$f":"[1]ACS_16_5YR_B18104_with_ann!AR267","v":406},{"$f":"[1]ACS_16_5YR_B18104_with_ann!AS267","v":128},{"$f":"[1]ACS_16_5YR_B18104_with_ann!AT267","v":520},{"$f":"[1]ACS_16_5YR_B18104_with_ann!AU267","v":162},{"$f":"[1]ACS_16_5YR_B18104_with_ann!AV267","v":12},{"$f":"[1]ACS_16_5YR_B18104_with_ann!AW267","v":20},{"$f":"[1]ACS_16_5YR_B18104_with_ann!AX267","v":508},{"$f":"[1]ACS_16_5YR_B18104_with_ann!AY267","v":161},{"$f":"[1]ACS_16_5YR_B18104_with_ann!AZ267","v":1406},{"$f":"[1]ACS_16_5YR_B18104_with_ann!BA267","v":188},{"$f":"[1]ACS_16_5YR_B18104_with_ann!BB267","v":84},{"$f":"[1]ACS_16_5YR_B18104_with_ann!BC267","v":78},{"$f":"[1]ACS_16_5YR_B18104_with_ann!BD267","v":1322},{"$f":"[1]ACS_16_5YR_B18104_with_ann!BE267","v":201},{"$f":"[1]ACS_16_5YR_B18104_with_ann!BF268","v":181},{"$f":"[1]ACS_16_5YR_B18104_with_ann!BG268","v":56},{"$f":"[1]ACS_16_5YR_B18104_with_ann!BH268","v":5},{"$f":"[1]ACS_16_5YR_B18104_with_ann!BI268","v":7},{"$f":"[1]ACS_16_5YR_B18104_with_ann!BJ268","v":176},{"$f":"[1]ACS_16_5YR_B18104_with_ann!BK268","v":56},{"$f":"[1]ACS_16_5YR_B18104_with_ann!BL268","v":60},{"$f":"[1]ACS_16_5YR_B18104_with_ann!BM268","v":32},{"$f":"[1]ACS_16_5YR_B18104_with_ann!BN268","v":7},{"$f":"[1]ACS_16_5YR_B18104_with_ann!BO268","v":9},{"$f":"[1]ACS_16_5YR_B18104_with_ann!BP268","v":53},{"$f":"[1]ACS_16_5YR_B18104_with_ann!BQ268","v":34}]
["0600000US3301962340",3301962340,"060","Plainfield",{"$f":"[1]ACS_16_5YR_B18104_with_ann!D268","v":2473},{"$f":"[1]ACS_16_5YR_B18104_with_ann!E268","v":261},{"$f":"[1]ACS_16_5YR_B18104_with_ann!F268","v":1246},{"$f":"[1]ACS_16_5YR_B18104_with_ann!G268","v":168},{"$f":"[1]ACS_16_5YR_B18104_with_ann!H268","v":230},{"$f":"[1]ACS_16_5YR_B18104_with_ann!I268","v":86},{"$f":"[1]ACS_16_5YR_B18104_with_ann!J268","v":12},{"$f":"[1]ACS_16_5YR_B18104_with_ann!K268","v":12},{"$f":"[1]ACS_16_5YR_B18104_with_ann!L268","v":218},{"$f":"[1]ACS_16_5YR_B18104_with_ann!M268","v":87},{"$f":"[1]ACS_16_5YR_B18104_with_ann!N268","v":261},{"$f":"[1]ACS_16_5YR_B18104_with_ann!O268","v":84},{"$f":"[1]ACS_16_5YR_B18104_with_ann!P268","v":16},{"$f":"[1]ACS_16_5YR_B18104_with_ann!Q268","v":21},{"$f":"[1]ACS_16_5YR_B18104_with_ann!R268","v":245},{"$f":"[1]ACS_16_5YR_B18104_with_ann!S268","v":83},{"$f":"[1]ACS_16_5YR_B18104_with_ann!T268","v":521},{"$f":"[1]ACS_16_5YR_B18104_with_ann!U268","v":71},{"$f":"[1]ACS_16_5YR_B18104_with_ann!V268","v":5},{"$f":"[1]ACS_16_5YR_B18104_with_ann!W268","v":7},{"$f":"[1]ACS_16_5YR_B18104_with_ann!X268","v":516},{"$f":"[1]ACS_16_5YR_B18104_with_ann!Y268","v":71},{"$f":"[1]ACS_16_5YR_B18104_with_ann!Z268","v":178},{"$f":"[1]ACS_16_5YR_B18104_with_ann!AA268","v":57},{"$f":"[1]ACS_16_5YR_B18104_with_ann!AB268","v":12},{"$f":"[1]ACS_16_5YR_B18104_with_ann!AC268","v":14},{"$f":"[1]ACS_16_5YR_B18104_with_ann!AD268","v":166},{"$f":"[1]ACS_16_5YR_B18104_with_ann!AE268","v":53},{"$f":"[1]ACS_16_5YR_B18104_with_ann!AF268","v":56},{"$f":"[1]ACS_16_5YR_B18104_with_ann!AG268","v":35},{"$f":"[1]ACS_16_5YR_B18104_with_ann!AH268","v":0},{"$f":"[1]ACS_16_5YR_B18104_with_ann!AI268","v":11},{"$f":"[1]ACS_16_5YR_B18104_with_ann!AJ268","v":56},{"$f":"[1]ACS_16_5YR_B18104_with_ann!AK268","v":35},{"$f":"[1]ACS_16_5YR_B18104_with_ann!AL268","v":1227},{"$f":"[1]ACS_16_5YR_B18104_with_ann!AM268","v":135},{"$f":"[1]ACS_16_5YR_B18104_with_ann!AN268","v":185},{"$f":"[1]ACS_16_5YR_B18104_with_ann!AO268","v":81},{"$f":"[1]ACS_16_5YR_B18104_with_ann!AP268","v":0},{"$f":"[1]ACS_16_5YR_B18104_with_ann!AQ268","v":11},{"$f":"[1]ACS_16_5YR_B18104_with_ann!AR268","v":185},{"$f":"[1]ACS_16_5YR_B18104_with_ann!AS268","v":81},{"$f":"[1]ACS_16_5YR_B18104_with_ann!AT268","v":280},{"$f":"[1]ACS_16_5YR_B18104_with_ann!AU268","v":61},{"$f":"[1]ACS_16_5YR_B18104_with_ann!AV268","v":0},{"$f":"[1]ACS_16_5YR_B18104_with_ann!AW268","v":11},{"$f":"[1]ACS_16_5YR_B18104_with_ann!AX268","v":280},{"$f":"[1]ACS_16_5YR_B18104_with_ann!AY268","v":61},{"$f":"[1]ACS_16_5YR_B18104_with_ann!AZ268","v":521},{"$f":"[1]ACS_16_5YR_B18104_with_ann!BA268","v":81},{"$f":"[1]ACS_16_5YR_B18104_with_ann!BB268","v":9},{"$f":"[1]ACS_16_5YR_B18104_with_ann!BC268","v":9},{"$f":"[1]ACS_16_5YR_B18104_with_ann!BD268","v":512},{"$f":"[1]ACS_16_5YR_B18104_with_ann!BE268","v":81},{"$f":"[1]ACS_16_5YR_B18104_with_ann!BF269","v":112},{"$f":"[1]ACS_16_5YR_B18104_with_ann!BG269","v":42},{"$f":"[1]ACS_16_5YR_B18104_with_ann!BH269","v":6},{"$f":"[1]ACS_16_5YR_B18104_with_ann!BI269","v":10},{"$f":"[1]ACS_16_5YR_B18104_with_ann!BJ269","v":106},{"$f":"[1]ACS_16_5YR_B18104_with_ann!BK269","v":41},{"$f":"[1]ACS_16_5YR_B18104_with_ann!BL269","v":38},{"$f":"[1]ACS_16_5YR_B18104_with_ann!BM269","v":26},{"$f":"[1]ACS_16_5YR_B18104_with_ann!BN269","v":0},{"$f":"[1]ACS_16_5YR_B18104_with_ann!BO269","v":11},{"$f":"[1]ACS_16_5YR_B18104_with_ann!BP269","v":38},{"$f":"[1]ACS_16_5YR_B18104_with_ann!BQ269","v":26}]
["0600000US3301972740",3301972740,"060","Springfield",{"$f":"[1]ACS_16_5YR_B18104_with_ann!D269","v":1070},{"$f":"[1]ACS_16_5YR_B18104_with_ann!E269","v":193},{"$f":"[1]ACS_16_5YR_B18104_with_ann!F269","v":572},{"$f":"[1]ACS_16_5YR_B18104_with_ann!G269","v":113},{"$f":"[1]ACS_16_5YR_B18104_with_ann!H269","v":72},{"$f":"[1]ACS_16_5YR_B18104_with_ann!I269","v":33},{"$f":"[1]ACS_16_5YR_B18104_with_ann!J269","v":7},{"$f":"[1]ACS_16_5YR_B18104_with_ann!K269","v":8},{"$f":"[1]ACS_16_5YR_B18104_with_ann!L269","v":65},{"$f":"[1]ACS_16_5YR_B18104_with_ann!M269","v":32},{"$f":"[1]ACS_16_5YR_B18104_with_ann!N269","v":103},{"$f":"[1]ACS_16_5YR_B18104_with_ann!O269","v":56},{"$f":"[1]ACS_16_5YR_B18104_with_ann!P269","v":6},{"$f":"[1]ACS_16_5YR_B18104_with_ann!Q269","v":9},{"$f":"[1]ACS_16_5YR_B18104_with_ann!R269","v":97},{"$f":"[1]ACS_16_5YR_B18104_with_ann!S269","v":56},{"$f":"[1]ACS_16_5YR_B18104_with_ann!T269","v":225},{"$f":"[1]ACS_16_5YR_B18104_with_ann!U269","v":63},{"$f":"[1]ACS_16_5YR_B18104_with_ann!V269","v":3},{"$f":"[1]ACS_16_5YR_B18104_with_ann!W269","v":5},{"$f":"[1]ACS_16_5YR_B18104_with_ann!X269","v":222},{"$f":"[1]ACS_16_5YR_B18104_with_ann!Y269","v":63},{"$f":"[1]ACS_16_5YR_B18104_with_ann!Z269","v":111},{"$f":"[1]ACS_16_5YR_B18104_with_ann!AA269","v":42},{"$f":"[1]ACS_16_5YR_B18104_with_ann!AB269","v":0},{"$f":"[1]ACS_16_5YR_B18104_with_ann!AC269","v":11},{"$f":"[1]ACS_16_5YR_B18104_with_ann!AD269","v":111},{"$f":"[1]ACS_16_5YR_B18104_with_ann!AE269","v":42},{"$f":"[1]ACS_16_5YR_B18104_with_ann!AF269","v":61},{"$f":"[1]ACS_16_5YR_B18104_with_ann!AG269","v":35},{"$f":"[1]ACS_16_5YR_B18104_with_ann!AH269","v":13},{"$f":"[1]ACS_16_5YR_B18104_with_ann!AI269","v":16},{"$f":"[1]ACS_16_5YR_B18104_with_ann!AJ269","v":48},{"$f":"[1]ACS_16_5YR_B18104_with_ann!AK269","v":30},{"$f":"[1]ACS_16_5YR_B18104_with_ann!AL269","v":498},{"$f":"[1]ACS_16_5YR_B18104_with_ann!AM269","v":104},{"$f":"[1]ACS_16_5YR_B18104_with_ann!AN269","v":70},{"$f":"[1]ACS_16_5YR_B18104_with_ann!AO269","v":46},{"$f":"[1]ACS_16_5YR_B18104_with_ann!AP269","v":15},{"$f":"[1]ACS_16_5YR_B18104_with_ann!AQ269","v":19},{"$f":"[1]ACS_16_5YR_B18104_with_ann!AR269","v":55},{"$f":"[1]ACS_16_5YR_B18104_with_ann!AS269","v":33},{"$f":"[1]ACS_16_5YR_B18104_with_ann!AT269","v":37},{"$f":"[1]ACS_16_5YR_B18104_with_ann!AU269","v":27},{"$f":"[1]ACS_16_5YR_B18104_with_ann!AV269","v":0},{"$f":"[1]ACS_16_5YR_B18104_with_ann!AW269","v":11},{"$f":"[1]ACS_16_5YR_B18104_with_ann!AX269","v":37},{"$f":"[1]ACS_16_5YR_B18104_with_ann!AY269","v":27},{"$f":"[1]ACS_16_5YR_B18104_with_ann!AZ269","v":241},{"$f":"[1]ACS_16_5YR_B18104_with_ann!BA269","v":64},{"$f":"[1]ACS_16_5YR_B18104_with_ann!BB269","v":4},{"$f":"[1]ACS_16_5YR_B18104_with_ann!BC269","v":6},{"$f":"[1]ACS_16_5YR_B18104_with_ann!BD269","v":237},{"$f":"[1]ACS_16_5YR_B18104_with_ann!BE269","v":63},{"$f":"[1]ACS_16_5YR_B18104_with_ann!BF270","v":233},{"$f":"[1]ACS_16_5YR_B18104_with_ann!BG270","v":69},{"$f":"[1]ACS_16_5YR_B18104_with_ann!BH270","v":0},{"$f":"[1]ACS_16_5YR_B18104_with_ann!BI270","v":11},{"$f":"[1]ACS_16_5YR_B18104_with_ann!BJ270","v":233},{"$f":"[1]ACS_16_5YR_B18104_with_ann!BK270","v":69},{"$f":"[1]ACS_16_5YR_B18104_with_ann!BL270","v":182},{"$f":"[1]ACS_16_5YR_B18104_with_ann!BM270","v":81},{"$f":"[1]ACS_16_5YR_B18104_with_ann!BN270","v":33},{"$f":"[1]ACS_16_5YR_B18104_with_ann!BO270","v":52},{"$f":"[1]ACS_16_5YR_B18104_with_ann!BP270","v":149},{"$f":"[1]ACS_16_5YR_B18104_with_ann!BQ270","v":64}]
["0600000US3301975060",3301975060,"060","Sunapee",{"$f":"[1]ACS_16_5YR_B18104_with_ann!D270","v":3291},{"$f":"[1]ACS_16_5YR_B18104_with_ann!E270","v":68},{"$f":"[1]ACS_16_5YR_B18104_with_ann!F270","v":1695},{"$f":"[1]ACS_16_5YR_B18104_with_ann!G270","v":131},{"$f":"[1]ACS_16_5YR_B18104_with_ann!H270","v":337},{"$f":"[1]ACS_16_5YR_B18104_with_ann!I270","v":95},{"$f":"[1]ACS_16_5YR_B18104_with_ann!J270","v":0},{"$f":"[1]ACS_16_5YR_B18104_with_ann!K270","v":11},{"$f":"[1]ACS_16_5YR_B18104_with_ann!L270","v":337},{"$f":"[1]ACS_16_5YR_B18104_with_ann!M270","v":95},{"$f":"[1]ACS_16_5YR_B18104_with_ann!N270","v":290},{"$f":"[1]ACS_16_5YR_B18104_with_ann!O270","v":93},{"$f":"[1]ACS_16_5YR_B18104_with_ann!P270","v":0},{"$f":"[1]ACS_16_5YR_B18104_with_ann!Q270","v":11},{"$f":"[1]ACS_16_5YR_B18104_with_ann!R270","v":290},{"$f":"[1]ACS_16_5YR_B18104_with_ann!S270","v":93},{"$f":"[1]ACS_16_5YR_B18104_with_ann!T270","v":777},{"$f":"[1]ACS_16_5YR_B18104_with_ann!U270","v":126},{"$f":"[1]ACS_16_5YR_B18104_with_ann!V270","v":29},{"$f":"[1]ACS_16_5YR_B18104_with_ann!W270","v":31},{"$f":"[1]ACS_16_5YR_B18104_with_ann!X270","v":748},{"$f":"[1]ACS_16_5YR_B18104_with_ann!Y270","v":124},{"$f":"[1]ACS_16_5YR_B18104_with_ann!Z270","v":176},{"$f":"[1]ACS_16_5YR_B18104_with_ann!AA270","v":58},{"$f":"[1]ACS_16_5YR_B18104_with_ann!AB270","v":0},{"$f":"[1]ACS_16_5YR_B18104_with_ann!AC270","v":11},{"$f":"[1]ACS_16_5YR_B18104_with_ann!AD270","v":176},{"$f":"[1]ACS_16_5YR_B18104_with_ann!AE270","v":58},{"$f":"[1]ACS_16_5YR_B18104_with_ann!AF270","v":115},{"$f":"[1]ACS_16_5YR_B18104_with_ann!AG270","v":59},{"$f":"[1]ACS_16_5YR_B18104_with_ann!AH270","v":0},{"$f":"[1]ACS_16_5YR_B18104_with_ann!AI270","v":11},{"$f":"[1]ACS_16_5YR_B18104_with_ann!AJ270","v":115},{"$f":"[1]ACS_16_5YR_B18104_with_ann!AK270","v":59},{"$f":"[1]ACS_16_5YR_B18104_with_ann!AL270","v":1596},{"$f":"[1]ACS_16_5YR_B18104_with_ann!AM270","v":134},{"$f":"[1]ACS_16_5YR_B18104_with_ann!AN270","v":197},{"$f":"[1]ACS_16_5YR_B18104_with_ann!AO270","v":84},{"$f":"[1]ACS_16_5YR_B18104_with_ann!AP270","v":0},{"$f":"[1]ACS_16_5YR_B18104_with_ann!AQ270","v":11},{"$f":"[1]ACS_16_5YR_B18104_with_ann!AR270","v":197},{"$f":"[1]ACS_16_5YR_B18104_with_ann!AS270","v":84},{"$f":"[1]ACS_16_5YR_B18104_with_ann!AT270","v":250},{"$f":"[1]ACS_16_5YR_B18104_with_ann!AU270","v":74},{"$f":"[1]ACS_16_5YR_B18104_with_ann!AV270","v":0},{"$f":"[1]ACS_16_5YR_B18104_with_ann!AW270","v":11},{"$f":"[1]ACS_16_5YR_B18104_with_ann!AX270","v":250},{"$f":"[1]ACS_16_5YR_B18104_with_ann!AY270","v":74},{"$f":"[1]ACS_16_5YR_B18104_with_ann!AZ270","v":734},{"$f":"[1]ACS_16_5YR_B18104_with_ann!BA270","v":118},{"$f":"[1]ACS_16_5YR_B18104_with_ann!BB270","v":0},{"$f":"[1]ACS_16_5YR_B18104_with_ann!BC270","v":11},{"$f":"[1]ACS_16_5YR_B18104_with_ann!BD270","v":734},{"$f":"[1]ACS_16_5YR_B18104_with_ann!BE270","v":118},{"$f":"[1]ACS_16_5YR_B18104_with_ann!BF271","v":113},{"$f":"[1]ACS_16_5YR_B18104_with_ann!BG271","v":29},{"$f":"[1]ACS_16_5YR_B18104_with_ann!BH271","v":3},{"$f":"[1]ACS_16_5YR_B18104_with_ann!BI271","v":4},{"$f":"[1]ACS_16_5YR_B18104_with_ann!BJ271","v":110},{"$f":"[1]ACS_16_5YR_B18104_with_ann!BK271","v":28},{"$f":"[1]ACS_16_5YR_B18104_with_ann!BL271","v":39},{"$f":"[1]ACS_16_5YR_B18104_with_ann!BM271","v":15},{"$f":"[1]ACS_16_5YR_B18104_with_ann!BN271","v":7},{"$f":"[1]ACS_16_5YR_B18104_with_ann!BO271","v":6},{"$f":"[1]ACS_16_5YR_B18104_with_ann!BP271","v":32},{"$f":"[1]ACS_16_5YR_B18104_with_ann!BQ271","v":13}]
["0600000US3301977940",3301977940,"060","Unity",{"$f":"[1]ACS_16_5YR_B18104_with_ann!D271","v":1314},{"$f":"[1]ACS_16_5YR_B18104_with_ann!E271","v":147},{"$f":"[1]ACS_16_5YR_B18104_with_ann!F271","v":624},{"$f":"[1]ACS_16_5YR_B18104_with_ann!G271","v":66},{"$f":"[1]ACS_16_5YR_B18104_with_ann!H271","v":46},{"$f":"[1]ACS_16_5YR_B18104_with_ann!I271","v":21},{"$f":"[1]ACS_16_5YR_B18104_with_ann!J271","v":0},{"$f":"[1]ACS_16_5YR_B18104_with_ann!K271","v":11},{"$f":"[1]ACS_16_5YR_B18104_with_ann!L271","v":46},{"$f":"[1]ACS_16_5YR_B18104_with_ann!M271","v":21},{"$f":"[1]ACS_16_5YR_B18104_with_ann!N271","v":79},{"$f":"[1]ACS_16_5YR_B18104_with_ann!O271","v":31},{"$f":"[1]ACS_16_5YR_B18104_with_ann!P271","v":0},{"$f":"[1]ACS_16_5YR_B18104_with_ann!Q271","v":11},{"$f":"[1]ACS_16_5YR_B18104_with_ann!R271","v":79},{"$f":"[1]ACS_16_5YR_B18104_with_ann!S271","v":31},{"$f":"[1]ACS_16_5YR_B18104_with_ann!T271","v":324},{"$f":"[1]ACS_16_5YR_B18104_with_ann!U271","v":53},{"$f":"[1]ACS_16_5YR_B18104_with_ann!V271","v":7},{"$f":"[1]ACS_16_5YR_B18104_with_ann!W271","v":7},{"$f":"[1]ACS_16_5YR_B18104_with_ann!X271","v":317},{"$f":"[1]ACS_16_5YR_B18104_with_ann!Y271","v":54},{"$f":"[1]ACS_16_5YR_B18104_with_ann!Z271","v":128},{"$f":"[1]ACS_16_5YR_B18104_with_ann!AA271","v":36},{"$f":"[1]ACS_16_5YR_B18104_with_ann!AB271","v":11},{"$f":"[1]ACS_16_5YR_B18104_with_ann!AC271","v":17},{"$f":"[1]ACS_16_5YR_B18104_with_ann!AD271","v":117},{"$f":"[1]ACS_16_5YR_B18104_with_ann!AE271","v":31},{"$f":"[1]ACS_16_5YR_B18104_with_ann!AF271","v":47},{"$f":"[1]ACS_16_5YR_B18104_with_ann!AG271","v":17},{"$f":"[1]ACS_16_5YR_B18104_with_ann!AH271","v":2},{"$f":"[1]ACS_16_5YR_B18104_with_ann!AI271","v":3},{"$f":"[1]ACS_16_5YR_B18104_with_ann!AJ271","v":45},{"$f":"[1]ACS_16_5YR_B18104_with_ann!AK271","v":16},{"$f":"[1]ACS_16_5YR_B18104_with_ann!AL271","v":690},{"$f":"[1]ACS_16_5YR_B18104_with_ann!AM271","v":100},{"$f":"[1]ACS_16_5YR_B18104_with_ann!AN271","v":89},{"$f":"[1]ACS_16_5YR_B18104_with_ann!AO271","v":48},{"$f":"[1]ACS_16_5YR_B18104_with_ann!AP271","v":0},{"$f":"[1]ACS_16_5YR_B18104_with_ann!AQ271","v":11},{"$f":"[1]ACS_16_5YR_B18104_with_ann!AR271","v":89},{"$f":"[1]ACS_16_5YR_B18104_with_ann!AS271","v":48},{"$f":"[1]ACS_16_5YR_B18104_with_ann!AT271","v":111},{"$f":"[1]ACS_16_5YR_B18104_with_ann!AU271","v":46},{"$f":"[1]ACS_16_5YR_B18104_with_ann!AV271","v":7},{"$f":"[1]ACS_16_5YR_B18104_with_ann!AW271","v":7},{"$f":"[1]ACS_16_5YR_B18104_with_ann!AX271","v":104},{"$f":"[1]ACS_16_5YR_B18104_with_ann!AY271","v":45},{"$f":"[1]ACS_16_5YR_B18104_with_ann!AZ271","v":338},{"$f":"[1]ACS_16_5YR_B18104_with_ann!BA271","v":45},{"$f":"[1]ACS_16_5YR_B18104_with_ann!BB271","v":3},{"$f":"[1]ACS_16_5YR_B18104_with_ann!BC271","v":4},{"$f":"[1]ACS_16_5YR_B18104_with_ann!BD271","v":335},{"$f":"[1]ACS_16_5YR_B18104_with_ann!BE271","v":44},{"$f":"[1]ACS_16_5YR_B18104_with_ann!BF272","v":116},{"$f":"[1]ACS_16_5YR_B18104_with_ann!BG272","v":31},{"$f":"[1]ACS_16_5YR_B18104_with_ann!BH272","v":2},{"$f":"[1]ACS_16_5YR_B18104_with_ann!BI272","v":5},{"$f":"[1]ACS_16_5YR_B18104_with_ann!BJ272","v":114},{"$f":"[1]ACS_16_5YR_B18104_with_ann!BK272","v":31},{"$f":"[1]ACS_16_5YR_B18104_with_ann!BL272","v":29},{"$f":"[1]ACS_16_5YR_B18104_with_ann!BM272","v":15},{"$f":"[1]ACS_16_5YR_B18104_with_ann!BN272","v":0},{"$f":"[1]ACS_16_5YR_B18104_with_ann!BO272","v":11},{"$f":"[1]ACS_16_5YR_B18104_with_ann!BP272","v":29},{"$f":"[1]ACS_16_5YR_B18104_with_ann!BQ272","v":15}]
["0600000US3301978980",3301978980,"060","Washington",{"$f":"[1]ACS_16_5YR_B18104_with_ann!D272","v":1193},{"$f":"[1]ACS_16_5YR_B18104_with_ann!E272","v":187},{"$f":"[1]ACS_16_5YR_B18104_with_ann!F272","v":612},{"$f":"[1]ACS_16_5YR_B18104_with_ann!G272","v":109},{"$f":"[1]ACS_16_5YR_B18104_with_ann!H272","v":61},{"$f":"[1]ACS_16_5YR_B18104_with_ann!I272","v":49},{"$f":"[1]ACS_16_5YR_B18104_with_ann!J272","v":0},{"$f":"[1]ACS_16_5YR_B18104_with_ann!K272","v":11},{"$f":"[1]ACS_16_5YR_B18104_with_ann!L272","v":61},{"$f":"[1]ACS_16_5YR_B18104_with_ann!M272","v":49},{"$f":"[1]ACS_16_5YR_B18104_with_ann!N272","v":72},{"$f":"[1]ACS_16_5YR_B18104_with_ann!O272","v":37},{"$f":"[1]ACS_16_5YR_B18104_with_ann!P272","v":9},{"$f":"[1]ACS_16_5YR_B18104_with_ann!Q272","v":8},{"$f":"[1]ACS_16_5YR_B18104_with_ann!R272","v":63},{"$f":"[1]ACS_16_5YR_B18104_with_ann!S272","v":34},{"$f":"[1]ACS_16_5YR_B18104_with_ann!T272","v":309},{"$f":"[1]ACS_16_5YR_B18104_with_ann!U272","v":80},{"$f":"[1]ACS_16_5YR_B18104_with_ann!V272","v":0},{"$f":"[1]ACS_16_5YR_B18104_with_ann!W272","v":11},{"$f":"[1]ACS_16_5YR_B18104_with_ann!X272","v":309},{"$f":"[1]ACS_16_5YR_B18104_with_ann!Y272","v":80},{"$f":"[1]ACS_16_5YR_B18104_with_ann!Z272","v":121},{"$f":"[1]ACS_16_5YR_B18104_with_ann!AA272","v":35},{"$f":"[1]ACS_16_5YR_B18104_with_ann!AB272","v":0},{"$f":"[1]ACS_16_5YR_B18104_with_ann!AC272","v":11},{"$f":"[1]ACS_16_5YR_B18104_with_ann!AD272","v":121},{"$f":"[1]ACS_16_5YR_B18104_with_ann!AE272","v":35},{"$f":"[1]ACS_16_5YR_B18104_with_ann!AF272","v":49},{"$f":"[1]ACS_16_5YR_B18104_with_ann!AG272","v":19},{"$f":"[1]ACS_16_5YR_B18104_with_ann!AH272","v":0},{"$f":"[1]ACS_16_5YR_B18104_with_ann!AI272","v":11},{"$f":"[1]ACS_16_5YR_B18104_with_ann!AJ272","v":49},{"$f":"[1]ACS_16_5YR_B18104_with_ann!AK272","v":19},{"$f":"[1]ACS_16_5YR_B18104_with_ann!AL272","v":581},{"$f":"[1]ACS_16_5YR_B18104_with_ann!AM272","v":102},{"$f":"[1]ACS_16_5YR_B18104_with_ann!AN272","v":72},{"$f":"[1]ACS_16_5YR_B18104_with_ann!AO272","v":29},{"$f":"[1]ACS_16_5YR_B18104_with_ann!AP272","v":3},{"$f":"[1]ACS_16_5YR_B18104_with_ann!AQ272","v":4},{"$f":"[1]ACS_16_5YR_B18104_with_ann!AR272","v":69},{"$f":"[1]ACS_16_5YR_B18104_with_ann!AS272","v":29},{"$f":"[1]ACS_16_5YR_B18104_with_ann!AT272","v":63},{"$f":"[1]ACS_16_5YR_B18104_with_ann!AU272","v":30},{"$f":"[1]ACS_16_5YR_B18104_with_ann!AV272","v":0},{"$f":"[1]ACS_16_5YR_B18104_with_ann!AW272","v":11},{"$f":"[1]ACS_16_5YR_B18104_with_ann!AX272","v":63},{"$f":"[1]ACS_16_5YR_B18104_with_ann!AY272","v":30},{"$f":"[1]ACS_16_5YR_B18104_with_ann!AZ272","v":301},{"$f":"[1]ACS_16_5YR_B18104_with_ann!BA272","v":81},{"$f":"[1]ACS_16_5YR_B18104_with_ann!BB272","v":10},{"$f":"[1]ACS_16_5YR_B18104_with_ann!BC272","v":12},{"$f":"[1]ACS_16_5YR_B18104_with_ann!BD272","v":291},{"$f":"[1]ACS_16_5YR_B18104_with_ann!BE272","v":80},{"$f":"[1]ACS_16_5YR_B18104_with_ann!BF273","v":0},{"$f":"[1]ACS_16_5YR_B18104_with_ann!BG273","v":0},{"$f":"[1]ACS_16_5YR_B18104_with_ann!BH273","v":0},{"$f":"[1]ACS_16_5YR_B18104_with_ann!BI273","v":0},{"$f":"[1]ACS_16_5YR_B18104_with_ann!BJ273","v":0},{"$f":"[1]ACS_16_5YR_B18104_with_ann!BK273","v":0},{"$f":"[1]ACS_16_5YR_B18104_with_ann!BL273","v":0},{"$f":"[1]ACS_16_5YR_B18104_with_ann!BM273","v":0},{"$f":"[1]ACS_16_5YR_B18104_with_ann!BN273","v":0},{"$f":"[1]ACS_16_5YR_B18104_with_ann!BO273","v":0},{"$f":"[1]ACS_16_5YR_B18104_with_ann!BP273","v":0},{"$f":"[1]ACS_16_5YR_B18104_with_ann!BQ273","v":0}]
[]
[null,null,null,null,{"$f":"$D$3","v":"Acworth"},null,{"$f":"$D$4","v":"Charlestown"},null,{"$f":"$D$5","v":"Claremont"},null,{"$f":"$D$6","v":"Cornish"},null,{"$f":"$D$7","v":"Croydon"},null,{"$f":"$D$8","v":"Goshen"},null,{"$f":"$D$9","v":"Grantham"},null,{"$f":"$D$10","v":"Langdon"},null,{"$f":"$D$11","v":"Lempster"},null,{"$f":"$D$12","v":"Newport"},null,{"$f":"$D$13","v":"Plainfield"},null,{"$f":"$D$14","v":"Springfield"},null,{"$f":"$D$15","v":"Sunapee"},null,{"$f":"$D$16","v":"Unity"},null,{"$f":"$D$17","v":"Washington"}]
[null,null,null,null,"Estimate","Margin Of Error","Estimate","Margin Of Error","Estimate","Margin Of Error","Estimate","Margin Of Error","Estimate","Margin Of Error","Estimate","Margin Of Error","Estimate","Margin Of Error","Estimate","Margin Of Error","Estimate","Margin Of Error","Estimate","Margin Of Error","Estimate","Margin Of Error","Estimate","Margin Of Error","Estimate","Margin Of Error",null,"Estimate","Margin Of Error"]
[null,null,null,"Estimate Total:",869,133,4707,114,12046,169,1722,218,840,240,641,102,2945,14,680,139,857,153,5974,123,2473,261,1070,193,3291,68,1314,147,1193,187]
[null,null,null,"Estimate Total: Male:",466,81,2325,195,5872,297,887,151,412,108,328,66,1382,143,326,83,401,68,3045,247,1246,168,572,113,1695,131,624,66,612,109]
[null,null,null,"Estimate Total: Male: 5 to 17 years:",34,23,250,103,902,164,169,107,56,37,49,27,271,92,76,46,36,23,507,185,230,86,72,33,337,95,46,21,61,49]
[null,null,null,"Estimate Total: Male: 5 to 17 years: With a cognitive difficulty",0,11,0,16,46,35,5,9,0,11,2,3,58,63,6,8,2,4,66,63,12,12,7,8,0,11,0,11,0,11]
[null,null,null,"Estimate Total: Male: 5 to 17 years: No cognitive difficulty",34,23,250,103,856,169,164,106,56,37,47,27,213,80,70,44,34,21,441,147,218,87,65,32,337,95,46,21,61,49]
[null,null,null,"Estimate Total: Male: 18 to 34 years:",79,38,490,144,1622,255,95,28,87,47,43,21,148,73,53,27,34,16,754,177,261,84,103,56,290,93,79,31,72,37]
[null,null,null,"Estimate Total: Male: 18 to 34 years: With a cognitive difficulty",18,19,22,33,123,98,9,10,5,9,1,4,0,11,2,4,4,5,18,29,16,21,6,9,0,11,0,11,9,8]
[null,null,null,"Estimate Total: Male: 18 to 34 years: No cognitive difficulty",61,27,468,141,1499,241,86,27,82,46,42,21,148,73,51,26,30,15,736,175,245,83,97,56,290,93,79,31,63,34]
[null,null,null,"Estimate Total: Male: 35 to 64 years:",213,48,1034,172,2416,184,367,53,198,60,157,41,613,124,143,40,249,58,1262,216,521,71,225,63,777,126,324,53,309,80]
[null,null,null,"Estimate Total: Male: 35 to 64 years: With a cognitive difficulty",8,10,143,126,139,75,6,7,12,11,7,9,0,11,0,11,10,11,127,110,5,7,3,5,29,31,7,7,0,11]
[null,null,null,"Estimate Total: Male: 35 to 64 years: No cognitive difficulty",205,48,891,161,2277,197,361,54,186,59,150,39,613,124,143,40,239,57,1135,210,516,71,222,63,748,124,317,54,309,80]
[null,null,null,"Estimate Total: Male: 65 to 74 years:",88,27,261,94,650,105,190,51,38,22,59,26,156,69,39,14,68,28,405,161,178,57,111,42,176,58,128,36,121,35]
[null,null,null,"Estimate Total: Male: 65 to 74 years: With a cognitive difficulty",17,15,0,16,21,28,0,11,2,4,4,4,0,11,2,3,0,11,40,67,12,14,0,11,0,11,11,17,0,11]
[null,null,null,"Estimate Total: Male: 65 to 74 years: No cognitive difficulty",71,23,261,94,629,107,190,51,36,21,55,25,156,69,37,14,68,28,365,147,166,53,111,42,176,58,117,31,121,35]
[null,null,null,"Estimate Total: Male: 75 years and over:",52,23,290,141,282,88,66,32,33,16,20,14,194,86,15,9,14,11,117,81,56,35,61,35,115,59,47,17,49,19]
[null,null,null,"Estimate Total: Male: 75 years and over: With a cognitive difficulty",6,10,78,90,21,24,8,8,0,11,0,11,0,11,3,4,2,4,0,16,0,11,13,16,0,11,2,3,0,11]
[null,null,null,"Estimate Total: Male: 75 years and over: No cognitive difficulty",46,21,212,89,261,84,58,31,33,16,20,14,194,86,12,8,12,9,117,81,56,35,48,30,115,59,45,16,49,19]
[null,null,null,"Estimate Total: Female:",403,70,2382,208,6174,266,835,101,428,154,313,53,1563,142,354,70,456,111,2929,214,1227,135,498,104,1596,134,690,100,581,102]
[null,null,null,"Estimate Total: Female: 5 to 17 years:",24,18,420,147,922,206,119,46,65,34,49,25,250,125,61,42,121,76,406,128,185,81,70,46,197,84,89,48,72,29]
[null,null,null,"Estimate Total: Female: 5 to 17 years: With a cognitive difficulty",0,11,56,57,52,50,0,11,0,11,0,11,0,11,3,4,0,11,0,16,0,11,15,19,0,11,0,11,3,4]
[null,null,null,"Estimate Total: Female: 5 to 17 years: No cognitive difficulty",24,18,364,145,870,191,119,46,65,34,49,25,250,125,58,42,121,76,406,128,185,81,55,33,197,84,89,48,69,29]
[null,null,null,"Estimate Total: Female: 18 to 34 years:",47,25,357,108,1415,187,78,27,124,96,69,34,114,98,69,25,54,24,520,162,280,61,37,27,250,74,111,46,63,30]
[null,null,null,"Estimate Total: Female: 18 to 34 years: With a cognitive difficulty",0,11,0,16,217,92,0,11,0,11,0,11,0,11,2,3,0,11,12,20,0,11,0,11,0,11,7,7,0,11]
[null,null,null,"Estimate Total: Female: 18 to 34 years: No cognitive difficulty",47,25,357,108,1198,218,78,27,124,96,69,34,114,98,67,25,54,24,508,161,280,61,37,27,250,74,104,45,63,30]
[null,null,null,"Estimate Total: Female: 35 to 64 years:",190,46,1080,163,2460,217,380,59,169,53,117,33,896,131,174,41,191,52,1406,188,521,81,241,64,734,118,338,45,301,81]
[null,null,null,"Estimate Total: Female: 35 to 64 years: With a cognitive difficulty",0,11,83,79,114,74,7,7,0,11,6,5,46,65,3,4,11,11,84,78,9,9,4,6,0,11,3,4,10,12]
[null,null,null,"Estimate Total: Female: 35 to 64 years: No cognitive difficulty",190,46,997,171,2346,212,373,61,169,53,111,32,850,137,171,42,180,50,1322,201,512,81,237,63,734,118,335,44,291,80]
[null,null,null,"Estimate Total: Female: 65 to 74 years:",117,42,296,120,755,152,49,24,49,21,139,53,35,11,51,23,312,130,181,56,112,42,233,69,113,29,116,31,0,0]
[null,null,null,"Estimate Total: Female: 65 to 74 years: With a cognitive difficulty",2,4,0,16,102,102,1,3,7,10,0,11,0,11,0,11,30,37,5,7,6,10,0,11,3,4,2,5,0,0]
[null,null,null,"Estimate Total: Female: 65 to 74 years: No cognitive difficulty",115,42,296,120,653,145,48,24,42,19,139,53,35,11,51,23,282,120,176,56,106,41,233,69,110,28,114,31,0,0]
[null,null,null,"Estimate Total: Female: 75 years and over:",25,14,229,88,622,128,21,12,29,13,164,75,15,8,39,26,285,103,60,32,38,26,182,81,39,15,29,15,0,0]
[null,null,null,"Estimate Total: Female: 75 years and over: With a cognitive difficulty",0,11,17,28,75,54,3,5,3,4,14,21,0,11,3,4,24,28,7,9,0,11,33,52,7,6,0,11,0,0]
[null,null,null,"Estimate Total: Female: 75 years and over: No cognitive difficulty",25,14,212,89,547,120,18,10,26,13,150,74,15,8,36,26,261,107,53,34,38,26,149,64,32,13,29,15,0,0]

{"sheet":"ACS_Table_B18104","index":47,"n_rows":122,"n_cols":32,"rows_kept":122,"cut":false,"hidden":true,"merged":[]}
["B18104. SEX BY AGE BY COGNITIVE DIFFICULTY\n\n"]
["Universe:  Civilian non-institutionalized population 5 years and over"]
["Data Set: 2015-2019 American Community Survey 5-Year Estimates"]
[]
[null,null,"Acworth",null,"Charlestown",null,"Claremont",null,"Cornish",null,"Croydon",null,"Goshen",null,"Grantham",null,"Langdon",null,"Lempster",null,"Newport",null,"Plainfield",null,"Springfield",null,"Sunapee",null,"Unity",null,"Washington"]
[null,null,"Estimate","Margin Of Error","Estimate","Margin Of Error","Estimate","Margin Of Error","Estimate","Margin Of Error","Estimate","Margin Of Error","Estimate","Margin Of Error","Estimate","Margin Of Error","Estimate","Margin Of Error","Estimate","Margin Of Error","Estimate","Margin Of Error","Estimate","Margin Of Error","Estimate","Margin Of Error","Estimate","Margin Of Error","Estimate","Margin Of Error","Estimate","Margin Of Error"]
[null,"Total:",869,133,4707,114,12046,169,1722,218,840,240,641,102,2945,14,680,139,857,153,5974,123,2473,261,1070,193,3291,68,1314,147,1193,187]
[null,"Male:",466,81,2325,195,5872,297,887,151,412,108,328,66,1382,143,326,83,401,68,3045,247,1246,168,572,113,1695,131,624,66,612,109]
[null,"5 to 17  years:",34,23,250,103,902,164,169,107,56,37,49,27,271,92,76,46,36,23,507,185,230,86,72,33,337,95,46,21,61,49]
[null,"With cognitive difficulty",0,11,0,16,46,35,5,9,0,11,2,3,58,63,6,8,2,4,66,63,12,12,7,8,0,11,0,11,0,11]
[null,"With no cognitive difficulty",34,23,250,103,856,169,164,106,56,37,47,27,213,80,70,44,34,21,441,147,218,87,65,32,337,95,46,21,61,49]
[null,"18 to 34  years:",79,38,490,144,1622,255,95,28,87,47,43,21,148,73,53,27,34,16,754,177,261,84,103,56,290,93,79,31,72,37]
[null,"With cognitive difficulty",18,19,22,33,123,98,9,10,5,9,1,4,0,11,2,4,4,5,18,29,16,21,6,9,0,11,0,11,9,8]
[null,"With no cognitive difficulty",61,27,468,141,1499,241,86,27,82,46,42,21,148,73,51,26,30,15,736,175,245,83,97,56,290,93,79,31,63,34]
[null,"35 to 64  years:",213,48,1034,172,2416,184,367,53,198,60,157,41,613,124,143,40,249,58,1262,216,521,71,225,63,777,126,324,53,309,80]
[null,"With cognitive difficulty",8,10,143,126,139,75,6,7,12,11,7,9,0,11,0,11,10,11,127,110,5,7,3,5,29,31,7,7,0,11]
[null,"With no cognitive difficulty",205,48,891,161,2277,197,361,54,186,59,150,39,613,124,143,40,239,57,1135,210,516,71,222,63,748,124,317,54,309,80]
[null,"65 to 74  years:",88,27,261,94,650,105,190,51,38,22,59,26,156,69,39,14,68,28,405,161,178,57,111,42,176,58,128,36,121,35]
[null,"With cognitive difficulty",17,15,0,16,21,28,0,11,2,4,4,4,0,11,2,3,0,11,40,67,12,14,0,11,0,11,11,17,0,11]
[null,"With no cognitive difficulty",71,23,261,94,629,107,190,51,36,21,55,25,156,69,37,14,68,28,365,147,166,53,111,42,176,58,117,31,121,35]
[null,"75  years and Older:",52,23,290,141,282,88,66,32,33,16,20,14,194,86,15,9,14,11,117,81,56,35,61,35,115,59,47,17,49,19]
[null,"With cognitive difficulty",6,10,78,90,21,24,8,8,0,11,0,11,0,11,3,4,2,4,0,16,0,11,13,16,0,11,2,3,0,11]
[null,"With no cognitive difficulty",46,21,212,89,261,84,58,31,33,16,20,14,194,86,12,8,12,9,117,81,56,35,48,30,115,59,45,16,49,19]
[null,"Female:",403,70,2382,208,6174,266,835,101,428,154,313,53,1563,142,354,70,456,111,2929,214,1227,135,498,104,1596,134,690,100,581,102]
[null,"5 to 17  years:",24,18,420,147,922,206,119,46,65,34,49,25,250,125,61,42,121,76,406,128,185,81,70,46,197,84,89,48,72,29]
[null,"With cognitive difficulty",0,11,56,57,52,50,0,11,0,11,0,11,0,11,3,4,0,11,0,16,0,11,15,19,0,11,0,11,3,4]
[null,"With no cognitive difficulty",24,18,364,145,870,191,119,46,65,34,49,25,250,125,58,42,121,76,406,128,185,81,55,33,197,84,89,48,69,29]
[null,"18 to 34  years:",47,25,357,108,1415,187,78,27,124,96,69,34,114,98,69,25,54,24,520,162,280,61,37,27,250,74,111,46,63,30]
[null,"With cognitive difficulty",0,11,0,16,217,92,0,11,0,11,0,11,0,11,2,3,0,11,12,20,0,11,0,11,0,11,7,7,0,11]
[null,"With no cognitive difficulty",47,25,357,108,1198,218,78,27,124,96,69,34,114,98,67,25,54,24,508,161,280,61,37,27,250,74,104,45,63,30]
[null,"35 to 64  years:",190,46,1080,163,2460,217,380,59,169,53,117,33,896,131,174,41,191,52,1406,188,521,81,241,64,734,118,338,45,301,81]
[null,"With cognitive difficulty",0,11,83,79,114,74,7,7,0,11,6,5,46,65,3,4,11,11,84,78,9,9,4,6,0,11,3,4,10,12]
[null,"With no cognitive difficulty",190,46,997,171,2346,212,373,61,169,53,111,32,850,137,171,42,180,50,1322,201,512,81,237,63,734,118,335,44,291,80]
[null,"65 to 74  years:",117,42,296,120,755,152,49,24,49,21,139,53,35,11,51,23,312,130,181,56,112,42,233,69,113,29,116,31,0,0]
[null,"With cognitive difficulty",2,4,0,16,102,102,1,3,7,10,0,11,0,11,0,11,30,37,5,7,6,10,0,11,3,4,2,5,0,0]
[null,"With no cognitive difficulty",115,42,296,120,653,145,48,24,42,19,139,53,35,11,51,23,282,120,176,56,106,41,233,69,110,28,114,31,0,0]
[null,"75  years and Older:",25,14,229,88,622,128,21,12,29,13,164,75,15,8,39,26,285,103,60,32,38,26,182,81,39,15,29,15,0,0]
[null,"With cognitive difficulty",0,11,17,28,75,54,3,5,3,4,14,21,0,11,3,4,24,28,7,9,0,11,33,52,7,6,0,11,0,0]
[null,"With no cognitive difficulty",25,14,212,89,547,120,18,10,26,13,150,74,15,8,36,26,261,107,53,34,38,26,149,64,32,13,29,15,0,0]
[]
[]
[{"$f":"A1& \"-Calculated\"","v":"B18104. SEX BY AGE BY COGNITIVE DIFFICULTY\n\n-Calculated"}]
[{"$f":"A2","v":"Universe:  Civilian non-institutionalized population 5 years and over"}]
[{"$f":"A3","v":"Data Set: 2015-2019 American Community Survey 5-Year Estimates"}]
[]
[]
[null,null,"Acworth",null,"Charlestown",null,"Claremont",null,"Cornish",null,"Croydon",null,"Goshen",null,"Grantham",null,"Langdon",null,"Lempster",null,"Newport",null,"Plainfield",null,"Springfield",null,"Sunapee",null,"Unity",null,"Washington"]
[null,null,"Estimate","Margin Of Error","Estimate","Margin Of Error","Estimate","Margin Of Error","Estimate","Margin Of Error","Estimate","Margin Of Error","Estimate","Margin Of Error","Estimate","Margin Of Error","Estimate","Margin Of Error","Estimate","Margin Of Error","Estimate","Margin Of Error","Estimate","Margin Of Error","Estimate","Margin Of Error","Estimate","Margin Of Error","Estimate","Margin Of Error","Estimate","Margin Of Error"]
[null,"Total:",{"$f":"C7","v":869},133,4707,114,12046,169,1722,218,840,240,641,102,2945,14,680,139,857,153,5974,123,2473,261,{"$f":"Y7","v":1070},193,3291,68,1314,147,1193,187]
[null,"5 to 17  years:",{"$f":"C25+C9","v":58},{"$f":"SQRT((D25^2)+(D9^2))","v":29.206163733020468},{"$f":"E25+E9","v":670},{"$f":"SQRT((F25^2)+(F9^2))","v":179.49373248110922},{"$f":"G25+G9","v":1824},{"$f":"SQRT((H25^2)+(H9^2))","v":263.30970358116315},{"$f":"I25+I9","v":288},{"$f":"SQRT((J25^2)+(J9^2))","v":116.46887996370532},{"$f":"K25+K9","v":121},{"$f":"SQRT((L25^2)+(L9^2))","v":50.24937810560445},{"$f":"M25+M9","v":98},{"$f":"SQRT((N25^2)+(N9^2))","v":36.796738985948195},{"$f":"O25+O9","v":521},{"$f":"SQRT((P25^2)+(P9^2))","v":155.20631430454111},{"$f":"Q25+Q9","v":137},{"$f":"SQRT((R25^2)+(R9^2))","v":62.289646009589745},{"$f":"S25+S9","v":157},{"$f":"SQRT((T25^2)+(T9^2))","v":79.404030124421269},{"$f":"U25+U9","v":913},{"$f":"SQRT((V25^2)+(V9^2))","v":224.96444163467257},{"$f":"W25+W9","v":415},{"$f":"SQRT((X25^2)+(X9^2))","v":118.1397477566293},142,56.612719418872643,{"$f":"AA25+AA9","v":534},{"$f":"SQRT((AB25^2)+(AB9^2))","v":126.81088281373961},135,52.392747589718944,{"$f":"AE25+AE9","v":133},{"$f":"SQRT((AF25^2)+(AF9^2))","v":56.938563381947034}]
[null,"With cognitive difficulty",0,15.556349186104045,56,59.203040462462738,98,61.032778078668514,5,14.212670403551895,0,15.556349186104045,2,11.401754250991379,58,63.953107821277925,9,8.9442719099991592,2,11.704699910719626,66,65,12,16.278820596099706,22,20.615528128088304,0,15.556349186104045,0,15.556349186104045,3,11.704699910719626]
[null,"With no cognitive difficulty",58,29.206163733020468,614,177.85949510779568,1726,255.03333115496883,283,115.55085460523432,121,50.24937810560445,96,36.796738985948195,463,148.40822079655831,128,60.827625302982199,155,78.847954951285828,847,194.91793144808406,403,118.86967653695369,120,45.967379738244816,534,126.81088281373961,135,52.392747589718944,130,56.938563381947034]
[null,"18 to 34  years:",126,45.486261662176638,847,180,3037,316.21827904155066,173,38.897300677553446,211,106.88779163215975,112,39.962482405376171,262,122.20065466273084,122,36.796738985948195,88,28.844410203711913,1274,239.94374340665772,541,103.81233067415451,140,62.169124169478209,540,118.84864324004712,190,55.470712993434653,135,47.634021455258214]
[null,"With cognitive difficulty",18,21.95449840010015,22,36.674241641784498,340,134.41726079637243,9,14.866068747318506,5,14.212670403551895,1,11.704699910719626,0,15.556349186104045,4,5,4,12.083045973594572,30,35.227829907617071,16,23.706539182259394,6,14.212670403551895,0,15.556349186104045,7,13.038404810405298,9,13.601470508735444]
[null,"With no cognitive difficulty",108,36.796738985948195,825,177.6091213873882,2697,324.9692293125612,164,38.183766184073569,206,106.45186705737011,111,39.962482405376171,262,122.20065466273084,118,36.069377593742864,84,28.301943396169811,1244,237.79402852048241,525,103.00485425454472,134,62.169124169478209,540,118.84864324004712,183,54.644304369257,126,45.343136195018538]
[null,"35 to 64  years:",403,66.483080554378645,2114,236.96624232155938,4876,284.50834785643815,747,79.309520235593411,367,80.05623023850174,274,52.630789467763066,1509,180.38015411901608,317,57.280013966478741,440,77.89736837660179,2668,286.35642126552705,1042,107.71258050942797,466,89.805345052507874,1511,172.62676501632069,662,69.526973183074787,610,113.84638773364749]
[null,"With cognitive difficulty",8,14.866068747318506,226,148.71785366928881,253,105.3612832116238,13,9.8994949366116654,12,15.556349186104045,13,10.295630140987001,46,65.924198895398035,3,11.704699910719626,21,15.556349186104045,211,134.84806264830058,14,11.401754250991379,7,7.810249675906654,29,32.893768406797051,10,8.0622577482985491,10,16.278820596099706]
[null,"With no cognitive difficulty",395,66.483080554378645,1888,234.86591919646409,4623,289.40110573389313,734,81.467785044151043,355,79.309520235593411,261,50.447993022517757,1463,184.78365728602733,314,58,419,75.822160349069449,2457,290.69055712217414,1028,107.71258050942797,459,89.095454429504983,1482,171.17242768623689,652,69.656299069071991,600,113.13708498984761]
[null,"65 to 74  years:",205,49.929950931279713,557,152.43359209832983,1405,184.74035834110532,239,56.36488268416781,87,30.413812651491099,198,59.033888572581766,191,69.871310278253688,90,26.92582403567252,380,132.98120167903431,586,170.46113926640288,290,70.802542327235685,344,80.777472107017559,289,64.845971347493901,244,47.507894080878813,121,35]
[null,"With cognitive difficulty",19,15.524174696260024,0,22.627416997969522,123,105.77334257741882,1,11.401754250991379,9,10.770329614269007,4,11.704699910719626,0,15.556349186104045,2,11.401754250991379,30,38.600518131237564,45,67.36467917239716,18,17.204650534085253,0,15.556349186104045,3,11.704699910719626,13,17.720045146669349,0,11]
[null,"With no cognitive difficulty",186,47.885279575251516,557,152.43359209832983,1282,180.20543831971332,238,56.36488268416781,78,28.319604517012593,194,58.600341295934449,191,69.871310278253688,88,26.92582403567252,350,123.2233744059949,541,157.30543537970962,{"$f":"W36+W20","v":272},67.007462271003817,{"$f":"Y36+Y20","v":344},80.777472107017559,286,64.404968752418469,231,43.840620433565945,121,35]
[null,"75  years and Older:",77,26.92582403567252,519,166.20770138594662,904,155.3319027115808,87,34.176014981270121,62,20.615528128088304,184,76.295478240849903,209,86.371291526756735,54,27.513632984395208,299,103.58571330062848,177,87.091905479212016,{"$f":"W37+W21","v":94},43.600458713183279,{"$f":"Y37+Y21","v":243},88.238313673823114,154,60.876925020897694,76,22.671568097509269,49,19]
[null,"With cognitive difficulty",6,14.866068747318506,95,94.254973343585434,96,59.093146810776631,11,9.4339811320566032,3,11.704699910719626,14,23.706539182259394,0,15.556349186104045,6,5.6568542494923806,26,28.284271247461902,7,18.357559750685819,{"$f":"W38+W22","v":0},15.556349186104045,{"$f":"Y38+Y22","v":46},54.405882034941776,7,12.529964086141668,2,11.401754250991379,0,11]
[null,"With no cognitive difficulty",71,25.238858928247925,424,125.86500705120545,808,146.47866738880444,76,32.572994949804659,59,20.615528128088304,170,75.312681535050928,209,86.371291526756735,48,27.202941017470888,273,107.37783756436893,170,87.846456957580259,{"$f":"W39+W23","v":94},43.600458713183279,{"$f":"Y39+Y23","v":197},70.682388188289167,147,60.415229867972862,74,21.931712199461309,49,19]
[]
[]
[]
[]
[]
[]
[]
[]
[]
[]
[]
[]
[]
[]
[]
[]
[]
[]
[]
[]
[]
[]
[]
[]
[]
[]
[]
[]
[]
[]
[]
[]
[]
[]
[]
["B18104. SEX BY AGE BY COGNITIVE DIFFICULTY\n\n-Calculated"]
["Universe:  Civilian non-institutionalized population 5 years and over"]
["Data Set: 2010-2014 American Community Survey 5-Year Estimates"]
[]
[]
[null,null,"Acworth",null,"Charlestown",null,"Claremont",null,"Cornish",null,"Croydon",null,"Goshen",null,"Grantham",null,"Langdon",null,"Lempster",null,"Newport",null,"Plainfield",null,"Springfield",null,"Sunapee",null,"Unity",null,"Washington"]
[null,null,"Estimate","Margin Of Error","Estimate","Margin Of Error","Estimate","Margin Of Error","Estimate","Margin Of Error","Estimate","Margin Of Error","Estimate","Margin Of Error","Estimate","Margin Of Error","Estimate","Margin Of Error","Estimate","Margin Of Error","Estimate","Margin Of Error","Estimate","Margin Of Error","Estimate","Margin Of Error","Estimate","Margin Of Error","Estimate","Margin Of Error","Estimate","Margin Of Error"]
[null,"Total:",868,138,4741,123,12204,167,1510,165,619,123,774,111,2799,84,746,144,1022,150,6205,116,2377,155,1231,195,3285,64,1303,144,997,136]
[null,"5 to 17  years:",152,54.203320931470607,588,145.71547618561317,2117,243.21184181696418,243,76.05918747922567,93,33.941125496954278,93,39.446165846632042,536,156.72268502038881,140,59.816385714952723,156,48.104053883222775,1002,213.05398376937239,408,85.562842402528915,244,73.552702193733168,492,128.80993750483694,142,39.962482405376171,130,58.137767414994535]
[null,"With cognitive difficulty",2,11.401754250991379,21,23.430749027719962,127,82.734515167492219,3,12.083045973594572,4,13.038404810405298,15,13.928388277184119,9,9.2195444572928871,3,12.083045973594572,23,17.4928556845359,13,25.80697580112788,5,13.038404810405298,0,15.556349186104045,26,27.202941017470888,4,12.529964086141668,0,15.556349186104045]
[null,"With no cognitive difficulty",150,54.203320931470607,567,143.05593311708537,1990,246.67792767088019,240,76.05918747922567,89,32.557641192199412,78,36.249137920783717,527,155.59562975867928,137,59.816385714952723,133,44.045431091090478,989,214.3361845326169,403,85.562842402528915,244,73.552702193733168,466,127.80062597655773,138,39.446165846632042,130,58.137767414994535]
[null,"18 to 34  years:",184,54.378304497290095,900,194.55847450059841,2858,279.37966998334008,273,55.97320787662612,96,41.400483088968905,134,40.36087214122113,358,127.3184982632139,175,58,137,52.773099207835045,1050,218.68699092538631,401,83.630138108220294,173,55,504,146.60491124106312,207,60.21627686929839,100,41.231056256176608]
[null,"With cognitive difficulty",12,12.649110640673518,50,66.573267908372955,236,102.94173109094289,5,13.038404810405298,0,15.556349186104045,0,15.556349186104045,6,14.212670403551895,21,22.825424421026653,0,15.556349186104045,46,61.846584384264908,7,16.278820596099706,0,15.556349186104045,0,15.556349186104045,34,25.80697580112788,0,15.556349186104045]
[null,"With no cognitive difficulty",172,52.478567053607705,850,198.84164553734712,2622,276.95667531222279,268,55.97320787662612,96,41.400483088968905,134,40.36087214122113,352,127.3184982632139,154,51.61395160225576,137,52.773099207835045,1004,214.11212016137713,394,81.055536516637773,173,55,504,146.60491124106312,173,56.302753041036986,100,41.231056256176608]
[null,"35 to 64  years:",380,55.865910893853687,2320,200.124960961895,5203,255.34486483969087,799,72.138755187485728,348,58.051701094799967,405,54.671747731346578,1313,129.4488315899375,305,50.328918128646478,571,72.249567472753768,3031,239.05857022913861,1172,102.7277956543408,648,89.403579346690591,1478,196.54261624390779,768,68.8839603971781,520,70.767224051816527]
[null,"With cognitive difficulty",8,7.2111025509279782,218,107.48953437428223,501,182.3211452355431,15,10.816653826391969,4,4.2426406871192848,34,19.798989873223331,50,35.608987629529715,21,10,10,8.9442719099991592,211,121.82364302548172,45,29.966648127543394,11,10,83,72.835430938520574,20,12.083045973594572,11,8.4852813742385695]
[null,"With no cognitive difficulty",372,55.865910893853687,2102,222.70383921252906,4702,293.23369519889764,784,72.124891681027847,344,58.051701094799967,371,51.855568649856693,1263,131.55227098001768,284,50.990195135927848,561,72.249567472753768,2820,247.51767613647314,1127,104.23531071570709,637,88.600225733346747,1395,197.84084512557058,748,68.117545463705611,509,70.178344238091]
[null,"65 to 74  years:",105,33.421549934136806,573,157.76247969653622,1109,160.96272860510285,142,45.607017003965517,55,19.849433241279208,75,29.068883707497267,262,79.246451024635803,87,25.45584412271571,85,28.301943396169811,702,194.60986614249546,297,68.818602136341013,120,40.496913462633174,436,116.10340218959993,117,30.610455730027933,161,29.732137494637012]
[null,"With cognitive difficulty",4,13.601470508735444,49,59.615434243155519,39,30.528675044947494,3,12.083045973594572,0,15.556349186104045,4,5,0,15.556349186104045,0,15.556349186104045,0,15.556349186104045,58,66.708320320631671,3,12.083045973594572,7,15.556349186104045,31,39.560080889704963,16,16.552945357246848,3,12.083045973594572]
[null,"With no cognitive difficulty",101,32.649655434629018,524,150.98675438593943,1070,160.20611723651504,139,44.82186966202994,55,19.849433241279208,71,28.42534080710379,262,79.246451024635803,87,25.45584412271571,85,28.301943396169811,644,186.03763060198332,294,69.404610797842537,113,38.013155617496423,405,110.30865786510141,101,28.319604517012593,158,29.732137494637012]
[null,"75  years and Older:",47,18.788294228055936,360,139.26952286842948,917,129.20139318134306,53,20,27,18.601075237738275,67,22.671568097509269,330,92.200867674876037,39,19.104973174542799,73,30.413812651491099,420,113.56936206565572,99,36.891733491393431,46,21.95449840010015,375,95.587656106842587,69,21.633307652783937,86,27.658633371878661]
[null,"With cognitive difficulty",4,11.704699910719626,81,91.443971917234649,135,65.946948375190189,0,15.556349186104045,3,11.704699910719626,22,15.811388300841896,69,64.381674411279491,4,12.083045973594572,20,16.278820596099706,77,69.462219947249025,5,13.601470508735444,8,14.866068747318506,21,18.027756377319946,4,12.083045973594572,3,11.704699910719626]
[null,"With no cognitive difficulty",43,18.788294228055936,279,102.17631819555841,782,130.66751700403586,53,20,24,18.601075237738275,45,18.601075237738275,261,77.781745930520231,35,17.691806012954132,53,24.839484696748443,343,96.254870006665115,94,35.355339059327378,38,19.416487838947599,354,94.794514609232536,65,21.633307652783937,83,27.658633371878661]

{"sheet":"SData_B18105_AmbulatoryDisabil","index":48,"n_rows":53,"n_cols":70,"rows_kept":53,"cut":false,"hidden":true,"merged":[]}
["GEO_ID","GEO_ID2","SUMLEVEL"]
["Geography Identifier","Geography Identifier","Geographic Summary Level",null,{"$f":"[1]ACS_16_5YR_B18105_with_ann!D$2","v":"Estimate Total:"},{"$f":"[1]ACS_16_5YR_B18105_with_ann!E$2","v":"Margin of Error Total:"},{"$f":"[1]ACS_16_5YR_B18105_with_ann!F$2","v":"Estimate Total: Male:"},{"$f":"[1]ACS_16_5YR_B18105_with_ann!G$2","v":"Margin of Error Total: Male:"},{"$f":"[1]ACS_16_5YR_B18105_with_ann!H$2","v":"Estimate Total: Male: 5 to 17 years:"},{"$f":"[1]ACS_16_5YR_B18105_with_ann!I$2","v":"Margin of Error Total: Male: 5 to 17 years:"},{"$f":"[1]ACS_16_5YR_B18105_with_ann!J$2","v":"Estimate Total: Male: 5 to 17 years: With an ambulatory difficulty"},{"$f":"[1]ACS_16_5YR_B18105_with_ann!K$2","v":"Margin of Error Total: Male: 5 to 17 years: With an ambulatory difficulty"},{"$f":"[1]ACS_16_5YR_B18105_with_ann!L$2","v":"Estimate Total: Male: 5 to 17 years: No ambulatory difficulty"},{"$f":"[1]ACS_16_5YR_B18105_with_ann!M$2","v":"Margin of Error Total: Male: 5 to 17 years: No ambulatory difficulty"},{"$f":"[1]ACS_16_5YR_B18105_with_ann!N$2","v":"Estimate Total: Male: 18 to 34 years:"},{"$f":"[1]ACS_16_5YR_B18105_with_ann!O$2","v":"Margin of Error Total: Male: 18 to 34 years:"},{"$f":"[1]ACS_16_5YR_B18105_with_ann!P$2","v":"Estimate Total: Male: 18 to 34 years: With an ambulatory difficulty"},{"$f":"[1]ACS_16_5YR_B18105_with_ann!Q$2","v":"Margin of Error Total: Male: 18 to 34 years: With an ambulatory difficulty"},{"$f":"[1]ACS_16_5YR_B18105_with_ann!R$2","v":"Estimate Total: Male: 18 to 34 years: No ambulatory difficulty"},{"$f":"[1]ACS_16_5YR_B18105_with_ann!S$2","v":"Margin of Error Total: Male: 18 to 34 years: No ambulatory difficulty"},{"$f":"[1]ACS_16_5YR_B18105_with_ann!T$2","v":"Estimate Total: Male: 35 to 64 years:"},{"$f":"[1]ACS_16_5YR_B18105_with_ann!U$2","v":"Margin of Error Total: Male: 35 to 64 years:"},{"$f":"[1]ACS_16_5YR_B18105_with_ann!V$2","v":"Estimate Total: Male: 35 to 64 years: With an ambulatory difficulty"},{"$f":"[1]ACS_16_5YR_B18105_with_ann!W$2","v":"Margin of Error Total: Male: 35 to 64 years: With an ambulatory difficulty"},{"$f":"[1]ACS_16_5YR_B18105_with_ann!X$2","v":"Estimate Total: Male: 35 to 64 years: No ambulatory difficulty"},{"$f":"[1]ACS_16_5YR_B18105_with_ann!Y$2","v":"Margin of Error Total: Male: 35 to 64 years: No ambulatory difficulty"},{"$f":"[1]ACS_16_5YR_B18105_with_ann!Z$2","v":"Estimate Total: Male: 65 to 74 years:"},{"$f":"[1]ACS_16_5YR_B18105_with_ann!AA$2","v":"Margin of Error Total: Male: 65 to 74 years:"},{"$f":"[1]ACS_16_5YR_B18105_with_ann!AB$2","v":"Estimate Total: Male: 65 to 74 years: With an ambulatory difficulty"},{"$f":"[1]ACS_16_5YR_B18105_with_ann!AC$2","v":"Margin of Error Total: Male: 65 to 74 years: With an ambulatory difficulty"},{"$f":"[1]ACS_16_5YR_B18105_with_ann!AD$2","v":"Estimate Total: Male: 65 to 74 years: No ambulatory difficulty"},{"$f":"[1]ACS_16_5YR_B18105_with_ann!AE$2","v":"Margin of Error Total: Male: 65 to 74 years: No ambulatory difficulty"},{"$f":"[1]ACS_16_5YR_B18105_with_ann!AF$2","v":"Estimate Total: Male: 75 years and over:"},{"$f":"[1]ACS_16_5YR_B18105_with_ann!AG$2","v":"Margin of Error Total: Male: 75 years and over:"},{"$f":"[1]ACS_16_5YR_B18105_with_ann!AH$2","v":"Estimate Total: Male: 75 years and over: With an ambulatory difficulty"},{"$f":"[1]ACS_16_5YR_B18105_with_ann!AI$2","v":"Margin of Error Total: Male: 75 years and over: With an ambulatory difficulty"},{"$f":"[1]ACS_16_5YR_B18105_with_ann!AJ$2","v":"Estimate Total: Male: 75 years and over: No ambulatory difficulty"},{"$f":"[1]ACS_16_5YR_B18105_with_ann!AK$2","v":"Margin of Error Total: Male: 75 years and over: No ambulatory difficulty"},{"$f":"[1]ACS_16_5YR_B18105_with_ann!AL$2","v":"Estimate Total: Female:"},{"$f":"[1]ACS_16_5YR_B18105_with_ann!AM$2","v":"Margin of Error Total: Female:"},{"$f":"[1]ACS_16_5YR_B18105_with_ann!AN$2","v":"Estimate Total: Female: 5 to 17 years:"},{"$f":"[1]ACS_16_5YR_B18105_with_ann!AO$2","v":"Margin of Error Total: Female: 5 to 17 years:"},{"$f":"[1]ACS_16_5YR_B18105_with_ann!AP$2","v":"Estimate Total: Female: 5 to 17 years: With an ambulatory difficulty"},{"$f":"[1]ACS_16_5YR_B18105_with_ann!AQ$2","v":"Margin of Error Total: Female: 5 to 17 years: With an ambulatory difficulty"},{"$f":"[1]ACS_16_5YR_B18105_with_ann!AR$2","v":"Estimate Total: Female: 5 to 17 years: No ambulatory difficulty"},{"$f":"[1]ACS_16_5YR_B18105_with_ann!AS$2","v":"Margin of Error Total: Female: 5 to 17 years: No ambulatory difficulty"},{"$f":"[1]ACS_16_5YR_B18105_with_ann!AT$2","v":"Estimate Total: Female: 18 to 34 years:"},{"$f":"[1]ACS_16_5YR_B18105_with_ann!AU$2","v":"Margin of Error Total: Female: 18 to 34 years:"},{"$f":"[1]ACS_16_5YR_B18105_with_ann!AV$2","v":"Estimate Total: Female: 18 to 34 years: With an ambulatory difficulty"},{"$f":"[1]ACS_16_5YR_B18105_with_ann!AW$2","v":"Margin of Error Total: Female: 18 to 34 years: With an ambulatory difficulty"},{"$f":"[1]ACS_16_5YR_B18105_with_ann!AX$2","v":"Estimate Total: Female: 18 to 34 years: No ambulatory difficulty"},{"$f":"[1]ACS_16_5YR_B18105_with_ann!AY$2","v":"Margin of Error Total: Female: 18 to 34 years: No ambulatory difficulty"},{"$f":"[1]ACS_16_5YR_B18105_with_ann!AZ$2","v":"Estimate Total: Female: 35 to 64 years:"},{"$f":"[1]ACS_16_5YR_B18105_with_ann!BA$2","v":"Margin of Error Total: Female: 35 to 64 years:"},{"$f":"[1]ACS_16_5YR_B18105_with_ann!BB$2","v":"Estimate Total: Female: 35 to 64 years: With an ambulatory difficulty"},{"$f":"[1]ACS_16_5YR_B18105_with_ann!BC$2","v":"Margin of Error Total: Female: 35 to 64 years: With an ambulatory difficulty"},{"$f":"[1]ACS_16_5YR_B18105_with_ann!BD$2","v":"Estimate Total: Female: 35 to 64 years: No ambulatory difficulty"},{"$f":"[1]ACS_16_5YR_B18105_with_ann!BE$2","v":"Margin of Error Total: Female: 35 to 64 years: No ambulatory difficulty"},{"$f":"[1]ACS_16_5YR_B18105_with_ann!BF$2","v":"Estimate Total: Female: 65 to 74 years:"},{"$f":"[1]ACS_16_5YR_B18105_with_ann!BG$2","v":"Margin of Error Total: Female: 65 to 74 years:"},{"$f":"[1]ACS_16_5YR_B18105_with_ann!BH$2","v":"Estimate Total: Female: 65 to 74 years: With an ambulatory difficulty"},{"$f":"[1]ACS_16_5YR_B18105_with_ann!BI$2","v":"Margin of Error Total: Female: 65 to 74 years: With an ambulatory difficulty"},{"$f":"[1]ACS_16_5YR_B18105_with_ann!BJ$2","v":"Estimate Total: Female: 65 to 74 years: No ambulatory difficulty"},{"$f":"[1]ACS_16_5YR_B18105_with_ann!BK$2","v":"Margin of Error Total: Female: 65 to 74 years: No ambulatory difficulty"},{"$f":"[1]ACS_16_5YR_B18105_with_ann!BL$2","v":"Estimate Total: Female: 75 years and over:"},{"$f":"[1]ACS_16_5YR_B18105_with_ann!BM$2","v":"Margin of Error Total: Female: 75 years and over:"},{"$f":"[1]ACS_16_5YR_B18105_with_ann!BN$2","v":"Estimate Total: Female: 75 years and over: With an ambulatory difficulty"},{"$f":"[1]ACS_16_5YR_B18105_with_ann!BO$2","v":"Margin of Error Total: Female: 75 years and over: With an ambulatory difficulty"},{"$f":"[1]ACS_16_5YR_B18105_with_ann!BP$2","v":"Estimate Total: Female: 75 years and over: No ambulatory difficulty"},{"$f":"[1]ACS_16_5YR_B18105_with_ann!BQ$2","v":"Margin of Error Total: Female: 75 years and over: No ambulatory difficulty"}]
["0600000US3301900259",3301900259,"060","Acworth",{"$f":"[1]ACS_16_5YR_B18105_with_ann!D258","v":869},{"$f":"[1]ACS_16_5YR_B18105_with_ann!E258","v":133},{"$f":"[1]ACS_16_5YR_B18105_with_ann!F258","v":466},{"$f":"[1]ACS_16_5YR_B18105_with_ann!G258","v":81},{"$f":"[1]ACS_16_5YR_B18105_with_ann!H258","v":34},{"$f":"[1]ACS_16_5YR_B18105_with_ann!I258","v":23},{"$f":"[1]ACS_16_5YR_B18105_with_ann!J258","v":0},{"$f":"[1]ACS_16_5YR_B18105_with_ann!K258","v":11},{"$f":"[1]ACS_16_5YR_B18105_with_ann!L258","v":34},{"$f":"[1]ACS_16_5YR_B18105_with_ann!M258","v":23},{"$f":"[1]ACS_16_5YR_B18105_with_ann!N258","v":79},{"$f":"[1]ACS_16_5YR_B18105_with_ann!O258","v":38},{"$f":"[1]ACS_16_5YR_B18105_with_ann!P258","v":0},{"$f":"[1]ACS_16_5YR_B18105_with_ann!Q258","v":11},{"$f":"[1]ACS_16_5YR_B18105_with_ann!R258","v":79},{"$f":"[1]ACS_16_5YR_B18105_with_ann!S258","v":38},{"$f":"[1]ACS_16_5YR_B18105_with_ann!T258","v":213},{"$f":"[1]ACS_16_5YR_B18105_with_ann!U258","v":48},{"$f":"[1]ACS_16_5YR_B18105_with_ann!V258","v":4},{"$f":"[1]ACS_16_5YR_B18105_with_ann!W258","v":5},{"$f":"[1]ACS_16_5YR_B18105_with_ann!X258","v":209},{"$f":"[1]ACS_16_5YR_B18105_with_ann!Y258","v":48},{"$f":"[1]ACS_16_5YR_B18105_with_ann!Z258","v":88},{"$f":"[1]ACS_16_5YR_B18105_with_ann!AA258","v":27},{"$f":"[1]ACS_16_5YR_B18105_with_ann!AB258","v":19},{"$f":"[1]ACS_16_5YR_B18105_with_ann!AC258","v":13},{"$f":"[1]ACS_16_5YR_B18105_with_ann!AD258","v":69},{"$f":"[1]ACS_16_5YR_B18105_with_ann!AE258","v":23},{"$f":"[1]ACS_16_5YR_B18105_with_ann!AF258","v":52},{"$f":"[1]ACS_16_5YR_B18105_with_ann!AG258","v":23},{"$f":"[1]ACS_16_5YR_B18105_with_ann!AH258","v":8},{"$f":"[1]ACS_16_5YR_B18105_with_ann!AI258","v":10},{"$f":"[1]ACS_16_5YR_B18105_with_ann!AJ258","v":44},{"$f":"[1]ACS_16_5YR_B18105_with_ann!AK258","v":20},{"$f":"[1]ACS_16_5YR_B18105_with_ann!AL258","v":403},{"$f":"[1]ACS_16_5YR_B18105_with_ann!AM258","v":70},{"$f":"[1]ACS_16_5YR_B18105_with_ann!AN258","v":24},{"$f":"[1]ACS_16_5YR_B18105_with_ann!AO258","v":18},{"$f":"[1]ACS_16_5YR_B18105_with_ann!AP258","v":0},{"$f":"[1]ACS_16_5YR_B18105_with_ann!AQ258","v":11},{"$f":"[1]ACS_16_5YR_B18105_with_ann!AR258","v":24},{"$f":"[1]ACS_16_5YR_B18105_with_ann!AS258","v":18},{"$f":"[1]ACS_16_5YR_B18105_with_ann!AT258","v":47},{"$f":"[1]ACS_16_5YR_B18105_with_ann!AU258","v":25},{"$f":"[1]ACS_16_5YR_B18105_with_ann!AV258","v":0},{"$f":"[1]ACS_16_5YR_B18105_with_ann!AW258","v":11},{"$f":"[1]ACS_16_5YR_B18105_with_ann!AX258","v":47},{"$f":"[1]ACS_16_5YR_B18105_with_ann!AY258","v":25},{"$f":"[1]ACS_16_5YR_B18105_with_ann!AZ258","v":190},{"$f":"[1]ACS_16_5YR_B18105_with_ann!BA258","v":46},{"$f":"[1]ACS_16_5YR_B18105_with_ann!BB258","v":0},{"$f":"[1]ACS_16_5YR_B18105_with_ann!BC258","v":11},{"$f":"[1]ACS_16_5YR_B18105_with_ann!BD258","v":190},{"$f":"[1]ACS_16_5YR_B18105_with_ann!BE258","v":46},{"$f":"[1]ACS_16_5YR_B18105_with_ann!BF258","v":117},{"$f":"[1]ACS_16_5YR_B18105_with_ann!BG258","v":42},{"$f":"[1]ACS_16_5YR_B18105_with_ann!BH258","v":13},{"$f":"[1]ACS_16_5YR_B18105_with_ann!BI258","v":15},{"$f":"[1]ACS_16_5YR_B18105_with_ann!BJ258","v":104},{"$f":"[1]ACS_16_5YR_B18105_with_ann!BK258","v":37},{"$f":"[1]ACS_16_5YR_B18105_with_ann!BL258","v":25},{"$f":"[1]ACS_16_5YR_B18105_with_ann!BM258","v":14},{"$f":"[1]ACS_16_5YR_B18105_with_ann!BN258","v":4},{"$f":"[1]ACS_16_5YR_B18105_with_ann!BO258","v":4},{"$f":"[1]ACS_16_5YR_B18105_with_ann!BP258","v":21},{"$f":"[1]ACS_16_5YR_B18105_with_ann!BQ258","v":14}]
["0600000US3301911380",3301911380,"060","Charlestown",{"$f":"[1]ACS_16_5YR_B18105_with_ann!D259","v":4707},{"$f":"[1]ACS_16_5YR_B18105_with_ann!E259","v":114},{"$f":"[1]ACS_16_5YR_B18105_with_ann!F259","v":2325},{"$f":"[1]ACS_16_5YR_B18105_with_ann!G259","v":195},{"$f":"[1]ACS_16_5YR_B18105_with_ann!H259","v":250},{"$f":"[1]ACS_16_5YR_B18105_with_ann!I259","v":103},{"$f":"[1]ACS_16_5YR_B18105_with_ann!J259","v":0},{"$f":"[1]ACS_16_5YR_B18105_with_ann!K259","v":16},{"$f":"[1]ACS_16_5YR_B18105_with_ann!L259","v":250},{"$f":"[1]ACS_16_5YR_B18105_with_ann!M259","v":103},{"$f":"[1]ACS_16_5YR_B18105_with_ann!N259","v":490},{"$f":"[1]ACS_16_5YR_B18105_with_ann!O259","v":144},{"$f":"[1]ACS_16_5YR_B18105_with_ann!P259","v":0},{"$f":"[1]ACS_16_5YR_B18105_with_ann!Q259","v":16},{"$f":"[1]ACS_16_5YR_B18105_with_ann!R259","v":490},{"$f":"[1]ACS_16_5YR_B18105_with_ann!S259","v":144},{"$f":"[1]ACS_16_5YR_B18105_with_ann!T259","v":1034},{"$f":"[1]ACS_16_5YR_B18105_with_ann!U259","v":172},{"$f":"[1]ACS_16_5YR_B18105_with_ann!V259","v":119},{"$f":"[1]ACS_16_5YR_B18105_with_ann!W259","v":101},{"$f":"[1]ACS_16_5YR_B18105_with_ann!X259","v":915},{"$f":"[1]ACS_16_5YR_B18105_with_ann!Y259","v":154},{"$f":"[1]ACS_16_5YR_B18105_with_ann!Z259","v":261},{"$f":"[1]ACS_16_5YR_B18105_with_ann!AA259","v":94},{"$f":"[1]ACS_16_5YR_B18105_with_ann!AB259","v":14},{"$f":"[1]ACS_16_5YR_B18105_with_ann!AC259","v":24},{"$f":"[1]ACS_16_5YR_B18105_with_ann!AD259","v":247},{"$f":"[1]ACS_16_5YR_B18105_with_ann!AE259","v":99},{"$f":"[1]ACS_16_5YR_B18105_with_ann!AF259","v":290},{"$f":"[1]ACS_16_5YR_B18105_with_ann!AG259","v":141},{"$f":"[1]ACS_16_5YR_B18105_with_ann!AH259","v":109},{"$f":"[1]ACS_16_5YR_B18105_with_ann!AI259","v":92},{"$f":"[1]ACS_16_5YR_B18105_with_ann!AJ259","v":181},{"$f":"[1]ACS_16_5YR_B18105_with_ann!AK259","v":88},{"$f":"[1]ACS_16_5YR_B18105_with_ann!AL259","v":2382},{"$f":"[1]ACS_16_5YR_B18105_with_ann!AM259","v":208},{"$f":"[1]ACS_16_5YR_B18105_with_ann!AN259","v":420},{"$f":"[1]ACS_16_5YR_B18105_with_ann!AO259","v":147},{"$f":"[1]ACS_16_5YR_B18105_with_ann!AP259","v":0},{"$f":"[1]ACS_16_5YR_B18105_with_ann!AQ259","v":16},{"$f":"[1]ACS_16_5YR_B18105_with_ann!AR259","v":420},{"$f":"[1]ACS_16_5YR_B18105_with_ann!AS259","v":147},{"$f":"[1]ACS_16_5YR_B18105_with_ann!AT259","v":357},{"$f":"[1]ACS_16_5YR_B18105_with_ann!AU259","v":108},{"$f":"[1]ACS_16_5YR_B18105_with_ann!AV259","v":0},{"$f":"[1]ACS_16_5YR_B18105_with_ann!AW259","v":16},{"$f":"[1]ACS_16_5YR_B18105_with_ann!AX259","v":357},{"$f":"[1]ACS_16_5YR_B18105_with_ann!AY259","v":108},{"$f":"[1]ACS_16_5YR_B18105_with_ann!AZ259","v":1080},{"$f":"[1]ACS_16_5YR_B18105_with_ann!BA259","v":163},{"$f":"[1]ACS_16_5YR_B18105_with_ann!BB259","v":54},{"$f":"[1]ACS_16_5YR_B18105_with_ann!BC259","v":50},{"$f":"[1]ACS_16_5YR_B18105_with_ann!BD259","v":1026},{"$f":"[1]ACS_16_5YR_B18105_with_ann!BE259","v":175},{"$f":"[1]ACS_16_5YR_B18105_with_ann!BF259","v":296},{"$f":"[1]ACS_16_5YR_B18105_with_ann!BG259","v":120},{"$f":"[1]ACS_16_5YR_B18105_with_ann!BH259","v":0},{"$f":"[1]ACS_16_5YR_B18105_with_ann!BI259","v":16},{"$f":"[1]ACS_16_5YR_B18105_with_ann!BJ259","v":296},{"$f":"[1]ACS_16_5YR_B18105_with_ann!BK259","v":120},{"$f":"[1]ACS_16_5YR_B18105_with_ann!BL259","v":229},{"$f":"[1]ACS_16_5YR_B18105_with_ann!BM259","v":88},{"$f":"[1]ACS_16_5YR_B18105_with_ann!BN259","v":48},{"$f":"[1]ACS_16_5YR_B18105_with_ann!BO259","v":40},{"$f":"[1]ACS_16_5YR_B18105_with_ann!BP259","v":181},{"$f":"[1]ACS_16_5YR_B18105_with_ann!BQ259","v":86}]
["0600000US3301912900",3301912900,"060","Claremont",{"$f":"[1]ACS_16_5YR_B18105_with_ann!D260","v":12046},{"$f":"[1]ACS_16_5YR_B18105_with_ann!E260","v":169},{"$f":"[1]ACS_16_5YR_B18105_with_ann!F260","v":5872},{"$f":"[1]ACS_16_5YR_B18105_with_ann!G260","v":297},{"$f":"[1]ACS_16_5YR_B18105_with_ann!H260","v":902},{"$f":"[1]ACS_16_5YR_B18105_with_ann!I260","v":164},{"$f":"[1]ACS_16_5YR_B18105_with_ann!J260","v":23},{"$f":"[1]ACS_16_5YR_B18105_with_ann!K260","v":30},{"$f":"[1]ACS_16_5YR_B18105_with_ann!L260","v":879},{"$f":"[1]ACS_16_5YR_B18105_with_ann!M260","v":160},{"$f":"[1]ACS_16_5YR_B18105_with_ann!N260","v":1622},{"$f":"[1]ACS_16_5YR_B18105_with_ann!O260","v":255},{"$f":"[1]ACS_16_5YR_B18105_with_ann!P260","v":0},{"$f":"[1]ACS_16_5YR_B18105_with_ann!Q260","v":18},{"$f":"[1]ACS_16_5YR_B18105_with_ann!R260","v":1622},{"$f":"[1]ACS_16_5YR_B18105_with_ann!S260","v":255},{"$f":"[1]ACS_16_5YR_B18105_with_ann!T260","v":2416},{"$f":"[1]ACS_16_5YR_B18105_with_ann!U260","v":184},{"$f":"[1]ACS_16_5YR_B18105_with_ann!V260","v":188},{"$f":"[1]ACS_16_5YR_B18105_with_ann!W260","v":112},{"$f":"[1]ACS_16_5YR_B18105_with_ann!X260","v":2228},{"$f":"[1]ACS_16_5YR_B18105_with_ann!Y260","v":198},{"$f":"[1]ACS_16_5YR_B18105_with_ann!Z260","v":650},{"$f":"[1]ACS_16_5YR_B18105_with_ann!AA260","v":105},{"$f":"[1]ACS_16_5YR_B18105_with_ann!AB260","v":58},{"$f":"[1]ACS_16_5YR_B18105_with_ann!AC260","v":50},{"$f":"[1]ACS_16_5YR_B18105_with_ann!AD260","v":592},{"$f":"[1]ACS_16_5YR_B18105_with_ann!AE260","v":109},{"$f":"[1]ACS_16_5YR_B18105_with_ann!AF260","v":282},{"$f":"[1]ACS_16_5YR_B18105_with_ann!AG260","v":88},{"$f":"[1]ACS_16_5YR_B18105_with_ann!AH260","v":56},{"$f":"[1]ACS_16_5YR_B18105_with_ann!AI260","v":45},{"$f":"[1]ACS_16_5YR_B18105_with_ann!AJ260","v":226},{"$f":"[1]ACS_16_5YR_B18105_with_ann!AK260","v":75},{"$f":"[1]ACS_16_5YR_B18105_with_ann!AL260","v":6174},{"$f":"[1]ACS_16_5YR_B18105_with_ann!AM260","v":266},{"$f":"[1]ACS_16_5YR_B18105_with_ann!AN260","v":922},{"$f":"[1]ACS_16_5YR_B18105_with_ann!AO260","v":206},{"$f":"[1]ACS_16_5YR_B18105_with_ann!AP260","v":6},{"$f":"[1]ACS_16_5YR_B18105_with_ann!AQ260","v":10},{"$f":"[1]ACS_16_5YR_B18105_with_ann!AR260","v":916},{"$f":"[1]ACS_16_5YR_B18105_with_ann!AS260","v":205},{"$f":"[1]ACS_16_5YR_B18105_with_ann!AT260","v":1415},{"$f":"[1]ACS_16_5YR_B18105_with_ann!AU260","v":187},{"$f":"[1]ACS_16_5YR_B18105_with_ann!AV260","v":74},{"$f":"[1]ACS_16_5YR_B18105_with_ann!AW260","v":52},{"$f":"[1]ACS_16_5YR_B18105_with_ann!AX260","v":1341},{"$f":"[1]ACS_16_5YR_B18105_with_ann!AY260","v":187},{"$f":"[1]ACS_16_5YR_B18105_with_ann!AZ260","v":2460},{"$f":"[1]ACS_16_5YR_B18105_with_ann!BA260","v":217},{"$f":"[1]ACS_16_5YR_B18105_with_ann!BB260","v":198},{"$f":"[1]ACS_16_5YR_B18105_with_ann!BC260","v":95},{"$f":"[1]ACS_16_5YR_B18105_with_ann!BD260","v":2262},{"$f":"[1]ACS_16_5YR_B18105_with_ann!BE260","v":230},{"$f":"[1]ACS_16_5YR_B18105_with_ann!BF260","v":755},{"$f":"[1]ACS_16_5YR_B18105_with_ann!BG260","v":152},{"$f":"[1]ACS_16_5YR_B18105_with_ann!BH260","v":107},{"$f":"[1]ACS_16_5YR_B18105_with_ann!BI260","v":103},{"$f":"[1]ACS_16_5YR_B18105_with_ann!BJ260","v":648},{"$f":"[1]ACS_16_5YR_B18105_with_ann!BK260","v":145},{"$f":"[1]ACS_16_5YR_B18105_with_ann!BL260","v":622},{"$f":"[1]ACS_16_5YR_B18105_with_ann!BM260","v":128},{"$f":"[1]ACS_16_5YR_B18105_with_ann!BN260","v":264},{"$f":"[1]ACS_16_5YR_B18105_with_ann!BO260","v":107},{"$f":"[1]ACS_16_5YR_B18105_with_ann!BP260","v":358},{"$f":"[1]ACS_16_5YR_B18105_with_ann!BQ260","v":105}]
["0600000US3301915060",3301915060,"060","Cornish",{"$f":"[1]ACS_16_5YR_B18105_with_ann!D261","v":1722},{"$f":"[1]ACS_16_5YR_B18105_with_ann!E261","v":218},{"$f":"[1]ACS_16_5YR_B18105_with_ann!F261","v":887},{"$f":"[1]ACS_16_5YR_B18105_with_ann!G261","v":151},{"$f":"[1]ACS_16_5YR_B18105_with_ann!H261","v":169},{"$f":"[1]ACS_16_5YR_B18105_with_ann!I261","v":107},{"$f":"[1]ACS_16_5YR_B18105_with_ann!J261","v":0},{"$f":"[1]ACS_16_5YR_B18105_with_ann!K261","v":11},{"$f":"[1]ACS_16_5YR_B18105_with_ann!L261","v":169},{"$f":"[1]ACS_16_5YR_B18105_with_ann!M261","v":107},{"$f":"[1]ACS_16_5YR_B18105_with_ann!N261","v":95},{"$f":"[1]ACS_16_5YR_B18105_with_ann!O261","v":28},{"$f":"[1]ACS_16_5YR_B18105_with_ann!P261","v":0},{"$f":"[1]ACS_16_5YR_B18105_with_ann!Q261","v":11},{"$f":"[1]ACS_16_5YR_B18105_with_ann!R261","v":95},{"$f":"[1]ACS_16_5YR_B18105_with_ann!S261","v":28},{"$f":"[1]ACS_16_5YR_B18105_with_ann!T261","v":367},{"$f":"[1]ACS_16_5YR_B18105_with_ann!U261","v":53},{"$f":"[1]ACS_16_5YR_B18105_with_ann!V261","v":8},{"$f":"[1]ACS_16_5YR_B18105_with_ann!W261","v":8},{"$f":"[1]ACS_16_5YR_B18105_with_ann!X261","v":359},{"$f":"[1]ACS_16_5YR_B18105_with_ann!Y261","v":54},{"$f":"[1]ACS_16_5YR_B18105_with_ann!Z261","v":190},{"$f":"[1]ACS_16_5YR_B18105_with_ann!AA261","v":51},{"$f":"[1]ACS_16_5YR_B18105_with_ann!AB261","v":10},{"$f":"[1]ACS_16_5YR_B18105_with_ann!AC261","v":10},{"$f":"[1]ACS_16_5YR_B18105_with_ann!AD261","v":180},{"$f":"[1]ACS_16_5YR_B18105_with_ann!AE261","v":48},{"$f":"[1]ACS_16_5YR_B18105_with_ann!AF261","v":66},{"$f":"[1]ACS_16_5YR_B18105_with_ann!AG261","v":32},{"$f":"[1]ACS_16_5YR_B18105_with_ann!AH261","v":12},{"$f":"[1]ACS_16_5YR_B18105_with_ann!AI261","v":10},{"$f":"[1]ACS_16_5YR_B18105_with_ann!AJ261","v":54},{"$f":"[1]ACS_16_5YR_B18105_with_ann!AK261","v":29},{"$f":"[1]ACS_16_5YR_B18105_with_ann!AL261","v":835},{"$f":"[1]ACS_16_5YR_B18105_with_ann!AM261","v":101},{"$f":"[1]ACS_16_5YR_B18105_with_ann!AN261","v":119},{"$f":"[1]ACS_16_5YR_B18105_with_ann!AO261","v":46},{"$f":"[1]ACS_16_5YR_B18105_with_ann!AP261","v":0},{"$f":"[1]ACS_16_5YR_B18105_with_ann!AQ261","v":11},{"$f":"[1]ACS_16_5YR_B18105_with_ann!AR261","v":119},{"$f":"[1]ACS_16_5YR_B18105_with_ann!AS261","v":46},{"$f":"[1]ACS_16_5YR_B18105_with_ann!AT261","v":78},{"$f":"[1]ACS_16_5YR_B18105_with_ann!AU261","v":27},{"$f":"[1]ACS_16_5YR_B18105_with_ann!AV261","v":0},{"$f":"[1]ACS_16_5YR_B18105_with_ann!AW261","v":11},{"$f":"[1]ACS_16_5YR_B18105_with_ann!AX261","v":78},{"$f":"[1]ACS_16_5YR_B18105_with_ann!AY261","v":27},{"$f":"[1]ACS_16_5YR_B18105_with_ann!AZ261","v":380},{"$f":"[1]ACS_16_5YR_B18105_with_ann!BA261","v":59},{"$f":"[1]ACS_16_5YR_B18105_with_ann!BB261","v":10},{"$f":"[1]ACS_16_5YR_B18105_with_ann!BC261","v":10},{"$f":"[1]ACS_16_5YR_B18105_with_ann!BD261","v":370},{"$f":"[1]ACS_16_5YR_B18105_with_ann!BE261","v":60},{"$f":"[1]ACS_16_5YR_B18105_with_ann!BF262","v":49},{"$f":"[1]ACS_16_5YR_B18105_with_ann!BG262","v":24},{"$f":"[1]ACS_16_5YR_B18105_with_ann!BH262","v":3},{"$f":"[1]ACS_16_5YR_B18105_with_ann!BI262","v":5},{"$f":"[1]ACS_16_5YR_B18105_with_ann!BJ262","v":46},{"$f":"[1]ACS_16_5YR_B18105_with_ann!BK262","v":24},{"$f":"[1]ACS_16_5YR_B18105_with_ann!BL262","v":21},{"$f":"[1]ACS_16_5YR_B18105_with_ann!BM262","v":12},{"$f":"[1]ACS_16_5YR_B18105_with_ann!BN262","v":3},{"$f":"[1]ACS_16_5YR_B18105_with_ann!BO262","v":6},{"$f":"[1]ACS_16_5YR_B18105_with_ann!BP262","v":18},{"$f":"[1]ACS_16_5YR_B18105_with_ann!BQ262","v":11}]
["0600000US3301916340",3301916340,"060","Croydon",{"$f":"[1]ACS_16_5YR_B18105_with_ann!D262","v":840},{"$f":"[1]ACS_16_5YR_B18105_with_ann!E262","v":240},{"$f":"[1]ACS_16_5YR_B18105_with_ann!F262","v":412},{"$f":"[1]ACS_16_5YR_B18105_with_ann!G262","v":108},{"$f":"[1]ACS_16_5YR_B18105_with_ann!H262","v":56},{"$f":"[1]ACS_16_5YR_B18105_with_ann!I262","v":37},{"$f":"[1]ACS_16_5YR_B18105_with_ann!J262","v":0},{"$f":"[1]ACS_16_5YR_B18105_with_ann!K262","v":11},{"$f":"[1]ACS_16_5YR_B18105_with_ann!L262","v":56},{"$f":"[1]ACS_16_5YR_B18105_with_ann!M262","v":37},{"$f":"[1]ACS_16_5YR_B18105_with_ann!N262","v":87},{"$f":"[1]ACS_16_5YR_B18105_with_ann!O262","v":47},{"$f":"[1]ACS_16_5YR_B18105_with_ann!P262","v":2},{"$f":"[1]ACS_16_5YR_B18105_with_ann!Q262","v":4},{"$f":"[1]ACS_16_5YR_B18105_with_ann!R262","v":85},{"$f":"[1]ACS_16_5YR_B18105_with_ann!S262","v":46},{"$f":"[1]ACS_16_5YR_B18105_with_ann!T262","v":198},{"$f":"[1]ACS_16_5YR_B18105_with_ann!U262","v":60},{"$f":"[1]ACS_16_5YR_B18105_with_ann!V262","v":14},{"$f":"[1]ACS_16_5YR_B18105_with_ann!W262","v":11},{"$f":"[1]ACS_16_5YR_B18105_with_ann!X262","v":184},{"$f":"[1]ACS_16_5YR_B18105_with_ann!Y262","v":57},{"$f":"[1]ACS_16_5YR_B18105_with_ann!Z262","v":38},{"$f":"[1]ACS_16_5YR_B18105_with_ann!AA262","v":22},{"$f":"[1]ACS_16_5YR_B18105_with_ann!AB262","v":5},{"$f":"[1]ACS_16_5YR_B18105_with_ann!AC262","v":6},{"$f":"[1]ACS_16_5YR_B18105_with_ann!AD262","v":33},{"$f":"[1]ACS_16_5YR_B18105_with_ann!AE262","v":21},{"$f":"[1]ACS_16_5YR_B18105_with_ann!AF262","v":33},{"$f":"[1]ACS_16_5YR_B18105_with_ann!AG262","v":16},{"$f":"[1]ACS_16_5YR_B18105_with_ann!AH262","v":10},{"$f":"[1]ACS_16_5YR_B18105_with_ann!AI262","v":8},{"$f":"[1]ACS_16_5YR_B18105_with_ann!AJ262","v":23},{"$f":"[1]ACS_16_5YR_B18105_with_ann!AK262","v":13},{"$f":"[1]ACS_16_5YR_B18105_with_ann!AL262","v":428},{"$f":"[1]ACS_16_5YR_B18105_with_ann!AM262","v":154},{"$f":"[1]ACS_16_5YR_B18105_with_ann!AN262","v":65},{"$f":"[1]ACS_16_5YR_B18105_with_ann!AO262","v":34},{"$f":"[1]ACS_16_5YR_B18105_with_ann!AP262","v":0},{"$f":"[1]ACS_16_5YR_B18105_with_ann!AQ262","v":11},{"$f":"[1]ACS_16_5YR_B18105_with_ann!AR262","v":65},{"$f":"[1]ACS_16_5YR_B18105_with_ann!AS262","v":34},{"$f":"[1]ACS_16_5YR_B18105_with_ann!AT262","v":124},{"$f":"[1]ACS_16_5YR_B18105_with_ann!AU262","v":96},{"$f":"[1]ACS_16_5YR_B18105_with_ann!AV262","v":0},{"$f":"[1]ACS_16_5YR_B18105_with_ann!AW262","v":11},{"$f":"[1]ACS_16_5YR_B18105_with_ann!AX262","v":124},{"$f":"[1]ACS_16_5YR_B18105_with_ann!AY262","v":96},{"$f":"[1]ACS_16_5YR_B18105_with_ann!AZ262","v":169},{"$f":"[1]ACS_16_5YR_B18105_with_ann!BA262","v":53},{"$f":"[1]ACS_16_5YR_B18105_with_ann!BB262","v":2},{"$f":"[1]ACS_16_5YR_B18105_with_ann!BC262","v":4},{"$f":"[1]ACS_16_5YR_B18105_with_ann!BD262","v":167},{"$f":"[1]ACS_16_5YR_B18105_with_ann!BE262","v":52},{"$f":"[1]ACS_16_5YR_B18105_with_ann!BF263","v":49},{"$f":"[1]ACS_16_5YR_B18105_with_ann!BG263","v":21},{"$f":"[1]ACS_16_5YR_B18105_with_ann!BH263","v":4},{"$f":"[1]ACS_16_5YR_B18105_with_ann!BI263","v":5},{"$f":"[1]ACS_16_5YR_B18105_with_ann!BJ263","v":45},{"$f":"[1]ACS_16_5YR_B18105_with_ann!BK263","v":20},{"$f":"[1]ACS_16_5YR_B18105_with_ann!BL263","v":29},{"$f":"[1]ACS_16_5YR_B18105_with_ann!BM263","v":13},{"$f":"[1]ACS_16_5YR_B18105_with_ann!BN263","v":7},{"$f":"[1]ACS_16_5YR_B18105_with_ann!BO263","v":7},{"$f":"[1]ACS_16_5YR_B18105_with_ann!BP263","v":22},{"$f":"[1]ACS_16_5YR_B18105_with_ann!BQ263","v":12}]
["0600000US3301930500",3301930500,"060","Goshen",{"$f":"[1]ACS_16_5YR_B18105_with_ann!D263","v":641},{"$f":"[1]ACS_16_5YR_B18105_with_ann!E263","v":102},{"$f":"[1]ACS_16_5YR_B18105_with_ann!F263","v":328},{"$f":"[1]ACS_16_5YR_B18105_with_ann!G263","v":66},{"$f":"[1]ACS_16_5YR_B18105_with_ann!H263","v":49},{"$f":"[1]ACS_16_5YR_B18105_with_ann!I263","v":27},{"$f":"[1]ACS_16_5YR_B18105_with_ann!J263","v":0},{"$f":"[1]ACS_16_5YR_B18105_with_ann!K263","v":11},{"$f":"[1]ACS_16_5YR_B18105_with_ann!L263","v":49},{"$f":"[1]ACS_16_5YR_B18105_with_ann!M263","v":27},{"$f":"[1]ACS_16_5YR_B18105_with_ann!N263","v":43},{"$f":"[1]ACS_16_5YR_B18105_with_ann!O263","v":21},{"$f":"[1]ACS_16_5YR_B18105_with_ann!P263","v":0},{"$f":"[1]ACS_16_5YR_B18105_with_ann!Q263","v":11},{"$f":"[1]ACS_16_5YR_B18105_with_ann!R263","v":43},{"$f":"[1]ACS_16_5YR_B18105_with_ann!S263","v":21},{"$f":"[1]ACS_16_5YR_B18105_with_ann!T263","v":157},{"$f":"[1]ACS_16_5YR_B18105_with_ann!U263","v":41},{"$f":"[1]ACS_16_5YR_B18105_with_ann!V263","v":5},{"$f":"[1]ACS_16_5YR_B18105_with_ann!W263","v":5},{"$f":"[1]ACS_16_5YR_B18105_with_ann!X263","v":152},{"$f":"[1]ACS_16_5YR_B18105_with_ann!Y263","v":41},{"$f":"[1]ACS_16_5YR_B18105_with_ann!Z263","v":59},{"$f":"[1]ACS_16_5YR_B18105_with_ann!AA263","v":26},{"$f":"[1]ACS_16_5YR_B18105_with_ann!AB263","v":0},{"$f":"[1]ACS_16_5YR_B18105_with_ann!AC263","v":11},{"$f":"[1]ACS_16_5YR_B18105_with_ann!AD263","v":59},{"$f":"[1]ACS_16_5YR_B18105_with_ann!AE263","v":26},{"$f":"[1]ACS_16_5YR_B18105_with_ann!AF263","v":20},{"$f":"[1]ACS_16_5YR_B18105_with_ann!AG263","v":14},{"$f":"[1]ACS_16_5YR_B18105_with_ann!AH263","v":0},{"$f":"[1]ACS_16_5YR_B18105_with_ann!AI263","v":11},{"$f":"[1]ACS_16_5YR_B18105_with_ann!AJ263","v":20},{"$f":"[1]ACS_16_5YR_B18105_with_ann!AK263","v":14},{"$f":"[1]ACS_16_5YR_B18105_with_ann!AL263","v":313},{"$f":"[1]ACS_16_5YR_B18105_with_ann!AM263","v":53},{"$f":"[1]ACS_16_5YR_B18105_with_ann!AN263","v":49},{"$f":"[1]ACS_16_5YR_B18105_with_ann!AO263","v":25},{"$f":"[1]ACS_16_5YR_B18105_with_ann!AP263","v":0},{"$f":"[1]ACS_16_5YR_B18105_with_ann!AQ263","v":11},{"$f":"[1]ACS_16_5YR_B18105_with_ann!AR263","v":49},{"$f":"[1]ACS_16_5YR_B18105_with_ann!AS263","v":25},{"$f":"[1]ACS_16_5YR_B18105_with_ann!AT263","v":69},{"$f":"[1]ACS_16_5YR_B18105_with_ann!AU263","v":34},{"$f":"[1]ACS_16_5YR_B18105_with_ann!AV263","v":0},{"$f":"[1]ACS_16_5YR_B18105_with_ann!AW263","v":11},{"$f":"[1]ACS_16_5YR_B18105_with_ann!AX263","v":69},{"$f":"[1]ACS_16_5YR_B18105_with_ann!AY263","v":34},{"$f":"[1]ACS_16_5YR_B18105_with_ann!AZ263","v":117},{"$f":"[1]ACS_16_5YR_B18105_with_ann!BA263","v":33},{"$f":"[1]ACS_16_5YR_B18105_with_ann!BB263","v":7},{"$f":"[1]ACS_16_5YR_B18105_with_ann!BC263","v":6},{"$f":"[1]ACS_16_5YR_B18105_with_ann!BD263","v":110},{"$f":"[1]ACS_16_5YR_B18105_with_ann!BE263","v":34},{"$f":"[1]ACS_16_5YR_B18105_with_ann!BF264","v":139},{"$f":"[1]ACS_16_5YR_B18105_with_ann!BG264","v":53},{"$f":"[1]ACS_16_5YR_B18105_with_ann!BH264","v":16},{"$f":"[1]ACS_16_5YR_B18105_with_ann!BI264","v":23},{"$f":"[1]ACS_16_5YR_B18105_with_ann!BJ264","v":123},{"$f":"[1]ACS_16_5YR_B18105_with_ann!BK264","v":57},{"$f":"[1]ACS_16_5YR_B18105_with_ann!BL264","v":164},{"$f":"[1]ACS_16_5YR_B18105_with_ann!BM264","v":75},{"$f":"[1]ACS_16_5YR_B18105_with_ann!BN264","v":15},{"$f":"[1]ACS_16_5YR_B18105_with_ann!BO264","v":22},{"$f":"[1]ACS_16_5YR_B18105_with_ann!BP264","v":149},{"$f":"[1]ACS_16_5YR_B18105_with_ann!BQ264","v":72}]
["0600000US3301931220",3301931220,"060","Grantham",{"$f":"[1]ACS_16_5YR_B18105_with_ann!D264","v":2945},{"$f":"[1]ACS_16_5YR_B18105_with_ann!E264","v":14},{"$f":"[1]ACS_16_5YR_B18105_with_ann!F264","v":1382},{"$f":"[1]ACS_16_5YR_B18105_with_ann!G264","v":143},{"$f":"[1]ACS_16_5YR_B18105_with_ann!H264","v":271},{"$f":"[1]ACS_16_5YR_B18105_with_ann!I264","v":92},{"$f":"[1]ACS_16_5YR_B18105_with_ann!J264","v":41},{"$f":"[1]ACS_16_5YR_B18105_with_ann!K264","v":61},{"$f":"[1]ACS_16_5YR_B18105_with_ann!L264","v":230},{"$f":"[1]ACS_16_5YR_B18105_with_ann!M264","v":84},{"$f":"[1]ACS_16_5YR_B18105_with_ann!N264","v":148},{"$f":"[1]ACS_16_5YR_B18105_with_ann!O264","v":73},{"$f":"[1]ACS_16_5YR_B18105_with_ann!P264","v":0},{"$f":"[1]ACS_16_5YR_B18105_with_ann!Q264","v":11},{"$f":"[1]ACS_16_5YR_B18105_with_ann!R264","v":148},{"$f":"[1]ACS_16_5YR_B18105_with_ann!S264","v":73},{"$f":"[1]ACS_16_5YR_B18105_with_ann!T264","v":613},{"$f":"[1]ACS_16_5YR_B18105_with_ann!U264","v":124},{"$f":"[1]ACS_16_5YR_B18105_with_ann!V264","v":0},{"$f":"[1]ACS_16_5YR_B18105_with_ann!W264","v":11},{"$f":"[1]ACS_16_5YR_B18105_with_ann!X264","v":613},{"$f":"[1]ACS_16_5YR_B18105_with_ann!Y264","v":124},{"$f":"[1]ACS_16_5YR_B18105_with_ann!Z264","v":156},{"$f":"[1]ACS_16_5YR_B18105_with_ann!AA264","v":69},{"$f":"[1]ACS_16_5YR_B18105_with_ann!AB264","v":17},{"$f":"[1]ACS_16_5YR_B18105_with_ann!AC264","v":26},{"$f":"[1]ACS_16_5YR_B18105_with_ann!AD264","v":139},{"$f":"[1]ACS_16_5YR_B18105_with_ann!AE264","v":61},{"$f":"[1]ACS_16_5YR_B18105_with_ann!AF264","v":194},{"$f":"[1]ACS_16_5YR_B18105_with_ann!AG264","v":86},{"$f":"[1]ACS_16_5YR_B18105_with_ann!AH264","v":35},{"$f":"[1]ACS_16_5YR_B18105_with_ann!AI264","v":56},{"$f":"[1]ACS_16_5YR_B18105_with_ann!AJ264","v":159},{"$f":"[1]ACS_16_5YR_B18105_with_ann!AK264","v":71},{"$f":"[1]ACS_16_5YR_B18105_with_ann!AL264","v":1563},{"$f":"[1]ACS_16_5YR_B18105_with_ann!AM264","v":142},{"$f":"[1]ACS_16_5YR_B18105_with_ann!AN264","v":250},{"$f":"[1]ACS_16_5YR_B18105_with_ann!AO264","v":125},{"$f":"[1]ACS_16_5YR_B18105_with_ann!AP264","v":0},{"$f":"[1]ACS_16_5YR_B18105_with_ann!AQ264","v":11},{"$f":"[1]ACS_16_5YR_B18105_with_ann!AR264","v":250},{"$f":"[1]ACS_16_5YR_B18105_with_ann!AS264","v":125},{"$f":"[1]ACS_16_5YR_B18105_with_ann!AT264","v":114},{"$f":"[1]ACS_16_5YR_B18105_with_ann!AU264","v":98},{"$f":"[1]ACS_16_5YR_B18105_with_ann!AV264","v":0},{"$f":"[1]ACS_16_5YR_B18105_with_ann!AW264","v":11},{"$f":"[1]ACS_16_5YR_B18105_with_ann!AX264","v":114},{"$f":"[1]ACS_16_5YR_B18105_with_ann!AY264","v":98},{"$f":"[1]ACS_16_5YR_B18105_with_ann!AZ264","v":896},{"$f":"[1]ACS_16_5YR_B18105_with_ann!BA264","v":131},{"$f":"[1]ACS_16_5YR_B18105_with_ann!BB264","v":0},{"$f":"[1]ACS_16_5YR_B18105_with_ann!BC264","v":11},{"$f":"[1]ACS_16_5YR_B18105_with_ann!BD264","v":896},{"$f":"[1]ACS_16_5YR_B18105_with_ann!BE264","v":131},{"$f":"[1]ACS_16_5YR_B18105_with_ann!BF265","v":35},{"$f":"[1]ACS_16_5YR_B18105_with_ann!BG265","v":11},{"$f":"[1]ACS_16_5YR_B18105_with_ann!BH265","v":3},{"$f":"[1]ACS_16_5YR_B18105_with_ann!BI265","v":4},{"$f":"[1]ACS_16_5YR_B18105_with_ann!BJ265","v":32},{"$f":"[1]ACS_16_5YR_B18105_with_ann!BK265","v":12},{"$f":"[1]ACS_16_5YR_B18105_with_ann!BL265","v":15},{"$f":"[1]ACS_16_5YR_B18105_with_ann!BM265","v":8},{"$f":"[1]ACS_16_5YR_B18105_with_ann!BN265","v":4},{"$f":"[1]ACS_16_5YR_B18105_with_ann!BO265","v":4},{"$f":"[1]ACS_16_5YR_B18105_with_ann!BP265","v":11},{"$f":"[1]ACS_16_5YR_B18105_with_ann!BQ265","v":7}]
["0600000US3301940900",3301940900,"060","Langdon",{"$f":"[1]ACS_16_5YR_B18105_with_ann!D265","v":680},{"$f":"[1]ACS_16_5YR_B18105_with_ann!E265","v":139},{"$f":"[1]ACS_16_5YR_B18105_with_ann!F265","v":326},{"$f":"[1]ACS_16_5YR_B18105_with_ann!G265","v":83},{"$f":"[1]ACS_16_5YR_B18105_with_ann!H265","v":76},{"$f":"[1]ACS_16_5YR_B18105_with_ann!I265","v":46},{"$f":"[1]ACS_16_5YR_B18105_with_ann!J265","v":0},{"$f":"[1]ACS_16_5YR_B18105_with_ann!K265","v":11},{"$f":"[1]ACS_16_5YR_B18105_with_ann!L265","v":76},{"$f":"[1]ACS_16_5YR_B18105_with_ann!M265","v":46},{"$f":"[1]ACS_16_5YR_B18105_with_ann!N265","v":53},{"$f":"[1]ACS_16_5YR_B18105_with_ann!O265","v":27},{"$f":"[1]ACS_16_5YR_B18105_with_ann!P265","v":2},{"$f":"[1]ACS_16_5YR_B18105_with_ann!Q265","v":4},{"$f":"[1]ACS_16_5YR_B18105_with_ann!R265","v":51},{"$f":"[1]ACS_16_5YR_B18105_with_ann!S265","v":26},{"$f":"[1]ACS_16_5YR_B18105_with_ann!T265","v":143},{"$f":"[1]ACS_16_5YR_B18105_with_ann!U265","v":40},{"$f":"[1]ACS_16_5YR_B18105_with_ann!V265","v":2},{"$f":"[1]ACS_16_5YR_B18105_with_ann!W265","v":3},{"$f":"[1]ACS_16_5YR_B18105_with_ann!X265","v":141},{"$f":"[1]ACS_16_5YR_B18105_with_ann!Y265","v":40},{"$f":"[1]ACS_16_5YR_B18105_with_ann!Z265","v":39},{"$f":"[1]ACS_16_5YR_B18105_with_ann!AA265","v":14},{"$f":"[1]ACS_16_5YR_B18105_with_ann!AB265","v":7},{"$f":"[1]ACS_16_5YR_B18105_with_ann!AC265","v":6},{"$f":"[1]ACS_16_5YR_B18105_with_ann!AD265","v":32},{"$f":"[1]ACS_16_5YR_B18105_with_ann!AE265","v":13},{"$f":"[1]ACS_16_5YR_B18105_with_ann!AF265","v":15},{"$f":"[1]ACS_16_5YR_B18105_with_ann!AG265","v":9},{"$f":"[1]ACS_16_5YR_B18105_with_ann!AH265","v":6},{"$f":"[1]ACS_16_5YR_B18105_with_ann!AI265","v":5},{"$f":"[1]ACS_16_5YR_B18105_with_ann!AJ265","v":9},{"$f":"[1]ACS_16_5YR_B18105_with_ann!AK265","v":8},{"$f":"[1]ACS_16_5YR_B18105_with_ann!AL265","v":354},{"$f":"[1]ACS_16_5YR_B18105_with_ann!AM265","v":70},{"$f":"[1]ACS_16_5YR_B18105_with_ann!AN265","v":61},{"$f":"[1]ACS_16_5YR_B18105_with_ann!AO265","v":42},{"$f":"[1]ACS_16_5YR_B18105_with_ann!AP265","v":0},{"$f":"[1]ACS_16_5YR_B18105_with_ann!AQ265","v":11},{"$f":"[1]ACS_16_5YR_B18105_with_ann!AR265","v":61},{"$f":"[1]ACS_16_5YR_B18105_with_ann!AS265","v":42},{"$f":"[1]ACS_16_5YR_B18105_with_ann!AT265","v":69},{"$f":"[1]ACS_16_5YR_B18105_with_ann!AU265","v":25},{"$f":"[1]ACS_16_5YR_B18105_with_ann!AV265","v":0},{"$f":"[1]ACS_16_5YR_B18105_with_ann!AW265","v":11},{"$f":"[1]ACS_16_5YR_B18105_with_ann!AX265","v":69},{"$f":"[1]ACS_16_5YR_B18105_with_ann!AY265","v":25},{"$f":"[1]ACS_16_5YR_B18105_with_ann!AZ265","v":174},{"$f":"[1]ACS_16_5YR_B18105_with_ann!BA265","v":41},{"$f":"[1]ACS_16_5YR_B18105_with_ann!BB265","v":0},{"$f":"[1]ACS_16_5YR_B18105_with_ann!BC265","v":11},{"$f":"[1]ACS_16_5YR_B18105_with_ann!BD265","v":174},{"$f":"[1]ACS_16_5YR_B18105_with_ann!BE265","v":41},{"$f":"[1]ACS_16_5YR_B18105_with_ann!BF266","v":51},{"$f":"[1]ACS_16_5YR_B18105_with_ann!BG266","v":23},{"$f":"[1]ACS_16_5YR_B18105_with_ann!BH266","v":13},{"$f":"[1]ACS_16_5YR_B18105_with_ann!BI266","v":13},{"$f":"[1]ACS_16_5YR_B18105_with_ann!BJ266","v":38},{"$f":"[1]ACS_16_5YR_B18105_with_ann!BK266","v":19},{"$f":"[1]ACS_16_5YR_B18105_with_ann!BL266","v":39},{"$f":"[1]ACS_16_5YR_B18105_with_ann!BM266","v":26},{"$f":"[1]ACS_16_5YR_B18105_with_ann!BN266","v":3},{"$f":"[1]ACS_16_5YR_B18105_with_ann!BO266","v":4},{"$f":"[1]ACS_16_5YR_B18105_with_ann!BP266","v":36},{"$f":"[1]ACS_16_5YR_B18105_with_ann!BQ266","v":26}]
["0600000US3301941700",3301941700,"060","Lempster",{"$f":"[1]ACS_16_5YR_B18105_with_ann!D266","v":857},{"$f":"[1]ACS_16_5YR_B18105_with_ann!E266","v":153},{"$f":"[1]ACS_16_5YR_B18105_with_ann!F266","v":401},{"$f":"[1]ACS_16_5YR_B18105_with_ann!G266","v":68},{"$f":"[1]ACS_16_5YR_B18105_with_ann!H266","v":36},{"$f":"[1]ACS_16_5YR_B18105_with_ann!I266","v":23},{"$f":"[1]ACS_16_5YR_B18105_with_ann!J266","v":0},{"$f":"[1]ACS_16_5YR_B18105_with_ann!K266","v":11},{"$f":"[1]ACS_16_5YR_B18105_with_ann!L266","v":36},{"$f":"[1]ACS_16_5YR_B18105_with_ann!M266","v":23},{"$f":"[1]ACS_16_5YR_B18105_with_ann!N266","v":34},{"$f":"[1]ACS_16_5YR_B18105_with_ann!O266","v":16},{"$f":"[1]ACS_16_5YR_B18105_with_ann!P266","v":0},{"$f":"[1]ACS_16_5YR_B18105_with_ann!Q266","v":11},{"$f":"[1]ACS_16_5YR_B18105_with_ann!R266","v":34},{"$f":"[1]ACS_16_5YR_B18105_with_ann!S266","v":16},{"$f":"[1]ACS_16_5YR_B18105_with_ann!T266","v":249},{"$f":"[1]ACS_16_5YR_B18105_with_ann!U266","v":58},{"$f":"[1]ACS_16_5YR_B18105_with_ann!V266","v":13},{"$f":"[1]ACS_16_5YR_B18105_with_ann!W266","v":10},{"$f":"[1]ACS_16_5YR_B18105_with_ann!X266","v":236},{"$f":"[1]ACS_16_5YR_B18105_with_ann!Y266","v":57},{"$f":"[1]ACS_16_5YR_B18105_with_ann!Z266","v":68},{"$f":"[1]ACS_16_5YR_B18105_with_ann!AA266","v":28},{"$f":"[1]ACS_16_5YR_B18105_with_ann!AB266","v":0},{"$f":"[1]ACS_16_5YR_B18105_with_ann!AC266","v":11},{"$f":"[1]ACS_16_5YR_B18105_with_ann!AD266","v":68},{"$f":"[1]ACS_16_5YR_B18105_with_ann!AE266","v":28},{"$f":"[1]ACS_16_5YR_B18105_with_ann!AF266","v":14},{"$f":"[1]ACS_16_5YR_B18105_with_ann!AG266","v":11},{"$f":"[1]ACS_16_5YR_B18105_with_ann!AH266","v":0},{"$f":"[1]ACS_16_5YR_B18105_with_ann!AI266","v":11},{"$f":"[1]ACS_16_5YR_B18105_with_ann!AJ266","v":14},{"$f":"[1]ACS_16_5YR_B18105_with_ann!AK266","v":11},{"$f":"[1]ACS_16_5YR_B18105_with_ann!AL266","v":456},{"$f":"[1]ACS_16_5YR_B18105_with_ann!AM266","v":111},{"$f":"[1]ACS_16_5YR_B18105_with_ann!AN266","v":121},{"$f":"[1]ACS_16_5YR_B18105_with_ann!AO266","v":76},{"$f":"[1]ACS_16_5YR_B18105_with_ann!AP266","v":0},{"$f":"[1]ACS_16_5YR_B18105_with_ann!AQ266","v":11},{"$f":"[1]ACS_16_5YR_B18105_with_ann!AR266","v":121},{"$f":"[1]ACS_16_5YR_B18105_with_ann!AS266","v":76},{"$f":"[1]ACS_16_5YR_B18105_with_ann!AT266","v":54},{"$f":"[1]ACS_16_5YR_B18105_with_ann!AU266","v":24},{"$f":"[1]ACS_16_5YR_B18105_with_ann!AV266","v":0},{"$f":"[1]ACS_16_5YR_B18105_with_ann!AW266","v":11},{"$f":"[1]ACS_16_5YR_B18105_with_ann!AX266","v":54},{"$f":"[1]ACS_16_5YR_B18105_with_ann!AY266","v":24},{"$f":"[1]ACS_16_5YR_B18105_with_ann!AZ266","v":191},{"$f":"[1]ACS_16_5YR_B18105_with_ann!BA266","v":52},{"$f":"[1]ACS_16_5YR_B18105_with_ann!BB266","v":11},{"$f":"[1]ACS_16_5YR_B18105_with_ann!BC266","v":11},{"$f":"[1]ACS_16_5YR_B18105_with_ann!BD266","v":180},{"$f":"[1]ACS_16_5YR_B18105_with_ann!BE266","v":50},{"$f":"[1]ACS_16_5YR_B18105_with_ann!BF267","v":312},{"$f":"[1]ACS_16_5YR_B18105_with_ann!BG267","v":130},{"$f":"[1]ACS_16_5YR_B18105_with_ann!BH267","v":67},{"$f":"[1]ACS_16_5YR_B18105_with_ann!BI267","v":67},{"$f":"[1]ACS_16_5YR_B18105_with_ann!BJ267","v":245},{"$f":"[1]ACS_16_5YR_B18105_with_ann!BK267","v":104},{"$f":"[1]ACS_16_5YR_B18105_with_ann!BL267","v":285},{"$f":"[1]ACS_16_5YR_B18105_with_ann!BM267","v":103},{"$f":"[1]ACS_16_5YR_B18105_with_ann!BN267","v":120},{"$f":"[1]ACS_16_5YR_B18105_with_ann!BO267","v":69},{"$f":"[1]ACS_16_5YR_B18105_with_ann!BP267","v":165},{"$f":"[1]ACS_16_5YR_B18105_with_ann!BQ267","v":90}]
["0600000US3301952580",3301952580,"060","Newport",{"$f":"[1]ACS_16_5YR_B18105_with_ann!D267","v":5974},{"$f":"[1]ACS_16_5YR_B18105_with_ann!E267","v":123},{"$f":"[1]ACS_16_5YR_B18105_with_ann!F267","v":3045},{"$f":"[1]ACS_16_5YR_B18105_with_ann!G267","v":247},{"$f":"[1]ACS_16_5YR_B18105_with_ann!H267","v":507},{"$f":"[1]ACS_16_5YR_B18105_with_ann!I267","v":185},{"$f":"[1]ACS_16_5YR_B18105_with_ann!J267","v":43},{"$f":"[1]ACS_16_5YR_B18105_with_ann!K267","v":50},{"$f":"[1]ACS_16_5YR_B18105_with_ann!L267","v":464},{"$f":"[1]ACS_16_5YR_B18105_with_ann!M267","v":156},{"$f":"[1]ACS_16_5YR_B18105_with_ann!N267","v":754},{"$f":"[1]ACS_16_5YR_B18105_with_ann!O267","v":177},{"$f":"[1]ACS_16_5YR_B18105_with_ann!P267","v":34},{"$f":"[1]ACS_16_5YR_B18105_with_ann!Q267","v":52},{"$f":"[1]ACS_16_5YR_B18105_with_ann!R267","v":720},{"$f":"[1]ACS_16_5YR_B18105_with_ann!S267","v":179},{"$f":"[1]ACS_16_5YR_B18105_with_ann!T267","v":1262},{"$f":"[1]ACS_16_5YR_B18105_with_ann!U267","v":216},{"$f":"[1]ACS_16_5YR_B18105_with_ann!V267","v":117},{"$f":"[1]ACS_16_5YR_B18105_with_ann!W267","v":106},{"$f":"[1]ACS_16_5YR_B18105_with_ann!X267","v":1145},{"$f":"[1]ACS_16_5YR_B18105_with_ann!Y267","v":212},{"$f":"[1]ACS_16_5YR_B18105_with_ann!Z267","v":405},{"$f":"[1]ACS_16_5YR_B18105_with_ann!AA267","v":161},{"$f":"[1]ACS_16_5YR_B18105_with_ann!AB267","v":88},{"$f":"[1]ACS_16_5YR_B18105_with_ann!AC267","v":99},{"$f":"[1]ACS_16_5YR_B18105_with_ann!AD267","v":317},{"$f":"[1]ACS_16_5YR_B18105_with_ann!AE267","v":140},{"$f":"[1]ACS_16_5YR_B18105_with_ann!AF267","v":117},{"$f":"[1]ACS_16_5YR_B18105_with_ann!AG267","v":81},{"$f":"[1]ACS_16_5YR_B18105_with_ann!AH267","v":82},{"$f":"[1]ACS_16_5YR_B18105_with_ann!AI267","v":74},{"$f":"[1]ACS_16_5YR_B18105_with_ann!AJ267","v":35},{"$f":"[1]ACS_16_5YR_B18105_with_ann!AK267","v":33},{"$f":"[1]ACS_16_5YR_B18105_with_ann!AL267","v":2929},{"$f":"[1]ACS_16_5YR_B18105_with_ann!AM267","v":214},{"$f":"[1]ACS_16_5YR_B18105_with_ann!AN267","v":406},{"$f":"[1]ACS_16_5YR_B18105_with_ann!AO267","v":128},{"$f":"[1]ACS_16_5YR_B18105_with_ann!AP267","v":0},{"$f":"[1]ACS_16_5YR_B18105_with_ann!AQ267","v":16},{"$f":"[1]ACS_16_5YR_B18105_with_ann!AR267","v":406},{"$f":"[1]ACS_16_5YR_B18105_with_ann!AS267","v":128},{"$f":"[1]ACS_16_5YR_B18105_with_ann!AT267","v":520},{"$f":"[1]ACS_16_5YR_B18105_with_ann!AU267","v":162},{"$f":"[1]ACS_16_5YR_B18105_with_ann!AV267","v":0},{"$f":"[1]ACS_16_5YR_B18105_with_ann!AW267","v":16},{"$f":"[1]ACS_16_5YR_B18105_with_ann!AX267","v":520},{"$f":"[1]ACS_16_5YR_B18105_with_ann!AY267","v":162},{"$f":"[1]ACS_16_5YR_B18105_with_ann!AZ267","v":1406},{"$f":"[1]ACS_16_5YR_B18105_with_ann!BA267","v":188},{"$f":"[1]ACS_16_5YR_B18105_with_ann!BB267","v":101},{"$f":"[1]ACS_16_5YR_B18105_with_ann!BC267","v":68},{"$f":"[1]ACS_16_5YR_B18105_with_ann!BD267","v":1305},{"$f":"[1]ACS_16_5YR_B18105_with_ann!BE267","v":175},{"$f":"[1]ACS_16_5YR_B18105_with_ann!BF268","v":181},{"$f":"[1]ACS_16_5YR_B18105_with_ann!BG268","v":56},{"$f":"[1]ACS_16_5YR_B18105_with_ann!BH268","v":41},{"$f":"[1]ACS_16_5YR_B18105_with_ann!BI268","v":31},{"$f":"[1]ACS_16_5YR_B18105_with_ann!BJ268","v":140},{"$f":"[1]ACS_16_5YR_B18105_with_ann!BK268","v":50},{"$f":"[1]ACS_16_5YR_B18105_with_ann!BL268","v":60},{"$f":"[1]ACS_16_5YR_B18105_with_ann!BM268","v":32},{"$f":"[1]ACS_16_5YR_B18105_with_ann!BN268","v":5},{"$f":"[1]ACS_16_5YR_B18105_with_ann!BO268","v":7},{"$f":"[1]ACS_16_5YR_B18105_with_ann!BP268","v":55},{"$f":"[1]ACS_16_5YR_B18105_with_ann!BQ268","v":34}]
["0600000US3301962340",3301962340,"060","Plainfield",{"$f":"[1]ACS_16_5YR_B18105_with_ann!D268","v":2473},{"$f":"[1]ACS_16_5YR_B18105_with_ann!E268","v":261},{"$f":"[1]ACS_16_5YR_B18105_with_ann!F268","v":1246},{"$f":"[1]ACS_16_5YR_B18105_with_ann!G268","v":168},{"$f":"[1]ACS_16_5YR_B18105_with_ann!H268","v":230},{"$f":"[1]ACS_16_5YR_B18105_with_ann!I268","v":86},{"$f":"[1]ACS_16_5YR_B18105_with_ann!J268","v":0},{"$f":"[1]ACS_16_5YR_B18105_with_ann!K268","v":11},{"$f":"[1]ACS_16_5YR_B18105_with_ann!L268","v":230},{"$f":"[1]ACS_16_5YR_B18105_with_ann!M268","v":86},{"$f":"[1]ACS_16_5YR_B18105_with_ann!N268","v":261},{"$f":"[1]ACS_16_5YR_B18105_with_ann!O268","v":84},{"$f":"[1]ACS_16_5YR_B18105_with_ann!P268","v":0},{"$f":"[1]ACS_16_5YR_B18105_with_ann!Q268","v":11},{"$f":"[1]ACS_16_5YR_B18105_with_ann!R268","v":261},{"$f":"[1]ACS_16_5YR_B18105_with_ann!S268","v":84},{"$f":"[1]ACS_16_5YR_B18105_with_ann!T268","v":521},{"$f":"[1]ACS_16_5YR_B18105_with_ann!U268","v":71},{"$f":"[1]ACS_16_5YR_B18105_with_ann!V268","v":6},{"$f":"[1]ACS_16_5YR_B18105_with_ann!W268","v":8},{"$f":"[1]ACS_16_5YR_B18105_with_ann!X268","v":515},{"$f":"[1]ACS_16_5YR_B18105_with_ann!Y268","v":71},{"$f":"[1]ACS_16_5YR_B18105_with_ann!Z268","v":178},{"$f":"[1]ACS_16_5YR_B18105_with_ann!AA268","v":57},{"$f":"[1]ACS_16_5YR_B18105_with_ann!AB268","v":0},{"$f":"[1]ACS_16_5YR_B18105_with_ann!AC268","v":11},{"$f":"[1]ACS_16_5YR_B18105_with_ann!AD268","v":178},{"$f":"[1]ACS_16_5YR_B18105_with_ann!AE268","v":57},{"$f":"[1]ACS_16_5YR_B18105_with_ann!AF268","v":56},{"$f":"[1]ACS_16_5YR_B18105_with_ann!AG268","v":35},{"$f":"[1]ACS_16_5YR_B18105_with_ann!AH268","v":0},{"$f":"[1]ACS_16_5YR_B18105_with_ann!AI268","v":11},{"$f":"[1]ACS_16_5YR_B18105_with_ann!AJ268","v":56},{"$f":"[1]ACS_16_5YR_B18105_with_ann!AK268","v":35},{"$f":"[1]ACS_16_5YR_B18105_with_ann!AL268","v":1227},{"$f":"[1]ACS_16_5YR_B18105_with_ann!AM268","v":135},{"$f":"[1]ACS_16_5YR_B18105_with_ann!AN268","v":185},{"$f":"[1]ACS_16_5YR_B18105_with_ann!AO268","v":81},{"$f":"[1]ACS_16_5YR_B18105_with_ann!AP268","v":0},{"$f":"[1]ACS_16_5YR_B18105_with_ann!AQ268","v":11},{"$f":"[1]ACS_16_5YR_B18105_with_ann!AR268","v":185},{"$f":"[1]ACS_16_5YR_B18105_with_ann!AS268","v":81},{"$f":"[1]ACS_16_5YR_B18105_with_ann!AT268","v":280},{"$f":"[1]ACS_16_5YR_B18105_with_ann!AU268","v":61},{"$f":"[1]ACS_16_5YR_B18105_with_ann!AV268","v":0},{"$f":"[1]ACS_16_5YR_B18105_with_ann!AW268","v":11},{"$f":"[1]ACS_16_5YR_B18105_with_ann!AX268","v":280},{"$f":"[1]ACS_16_5YR_B18105_with_ann!AY268","v":61},{"$f":"[1]ACS_16_5YR_B18105_with_ann!AZ268","v":521},{"$f":"[1]ACS_16_5YR_B18105_with_ann!BA268","v":81},{"$f":"[1]ACS_16_5YR_B18105_with_ann!BB268","v":0},{"$f":"[1]ACS_16_5YR_B18105_with_ann!BC268","v":11},{"$f":"[1]ACS_16_5YR_B18105_with_ann!BD268","v":521},{"$f":"[1]ACS_16_5YR_B18105_with_ann!BE268","v":81},{"$f":"[1]ACS_16_5YR_B18105_with_ann!BF269","v":112},{"$f":"[1]ACS_16_5YR_B18105_with_ann!BG269","v":42},{"$f":"[1]ACS_16_5YR_B18105_with_ann!BH269","v":0},{"$f":"[1]ACS_16_5YR_B18105_with_ann!BI269","v":11},{"$f":"[1]ACS_16_5YR_B18105_with_ann!BJ269","v":112},{"$f":"[1]ACS_16_5YR_B18105_with_ann!BK269","v":42},{"$f":"[1]ACS_16_5YR_B18105_with_ann!BL269","v":38},{"$f":"[1]ACS_16_5YR_B18105_with_ann!BM269","v":26},{"$f":"[1]ACS_16_5YR_B18105_with_ann!BN269","v":10},{"$f":"[1]ACS_16_5YR_B18105_with_ann!BO269","v":16},{"$f":"[1]ACS_16_5YR_B18105_with_ann!BP269","v":28},{"$f":"[1]ACS_16_5YR_B18105_with_ann!BQ269","v":18}]
["0600000US3301972740",3301972740,"060","Springfield",{"$f":"[1]ACS_16_5YR_B18105_with_ann!D269","v":1070},{"$f":"[1]ACS_16_5YR_B18105_with_ann!E269","v":193},{"$f":"[1]ACS_16_5YR_B18105_with_ann!F269","v":572},{"$f":"[1]ACS_16_5YR_B18105_with_ann!G269","v":113},{"$f":"[1]ACS_16_5YR_B18105_with_ann!H269","v":72},{"$f":"[1]ACS_16_5YR_B18105_with_ann!I269","v":33},{"$f":"[1]ACS_16_5YR_B18105_with_ann!J269","v":0},{"$f":"[1]ACS_16_5YR_B18105_with_ann!K269","v":11},{"$f":"[1]ACS_16_5YR_B18105_with_ann!L269","v":72},{"$f":"[1]ACS_16_5YR_B18105_with_ann!M269","v":33},{"$f":"[1]ACS_16_5YR_B18105_with_ann!N269","v":103},{"$f":"[1]ACS_16_5YR_B18105_with_ann!O269","v":56},{"$f":"[1]ACS_16_5YR_B18105_with_ann!P269","v":0},{"$f":"[1]ACS_16_5YR_B18105_with_ann!Q269","v":11},{"$f":"[1]ACS_16_5YR_B18105_with_ann!R269","v":103},{"$f":"[1]ACS_16_5YR_B18105_with_ann!S269","v":56},{"$f":"[1]ACS_16_5YR_B18105_with_ann!T269","v":225},{"$f":"[1]ACS_16_5YR_B18105_with_ann!U269","v":63},{"$f":"[1]ACS_16_5YR_B18105_with_ann!V269","v":3},{"$f":"[1]ACS_16_5YR_B18105_with_ann!W269","v":5},{"$f":"[1]ACS_16_5YR_B18105_with_ann!X269","v":222},{"$f":"[1]ACS_16_5YR_B18105_with_ann!Y269","v":63},{"$f":"[1]ACS_16_5YR_B18105_with_ann!Z269","v":111},{"$f":"[1]ACS_16_5YR_B18105_with_ann!AA269","v":42},{"$f":"[1]ACS_16_5YR_B18105_with_ann!AB269","v":0},{"$f":"[1]ACS_16_5YR_B18105_with_ann!AC269","v":11},{"$f":"[1]ACS_16_5YR_B18105_with_ann!AD269","v":111},{"$f":"[1]ACS_16_5YR_B18105_with_ann!AE269","v":42},{"$f":"[1]ACS_16_5YR_B18105_with_ann!AF269","v":61},{"$f":"[1]ACS_16_5YR_B18105_with_ann!AG269","v":35},{"$f":"[1]ACS_16_5YR_B18105_with_ann!AH269","v":9},{"$f":"[1]ACS_16_5YR_B18105_with_ann!AI269","v":14},{"$f":"[1]ACS_16_5YR_B18105_with_ann!AJ269","v":52},{"$f":"[1]ACS_16_5YR_B18105_with_ann!AK269","v":31},{"$f":"[1]ACS_16_5YR_B18105_with_ann!AL269","v":498},{"$f":"[1]ACS_16_5YR_B18105_with_ann!AM269","v":104},{"$f":"[1]ACS_16_5YR_B18105_with_ann!AN269","v":70},{"$f":"[1]ACS_16_5YR_B18105_with_ann!AO269","v":46},{"$f":"[1]ACS_16_5YR_B18105_with_ann!AP269","v":0},{"$f":"[1]ACS_16_5YR_B18105_with_ann!AQ269","v":11},{"$f":"[1]ACS_16_5YR_B18105_with_ann!AR269","v":70},{"$f":"[1]ACS_16_5YR_B18105_with_ann!AS269","v":46},{"$f":"[1]ACS_16_5YR_B18105_with_ann!AT269","v":37},{"$f":"[1]ACS_16_5YR_B18105_with_ann!AU269","v":27},{"$f":"[1]ACS_16_5YR_B18105_with_ann!AV269","v":0},{"$f":"[1]ACS_16_5YR_B18105_with_ann!AW269","v":11},{"$f":"[1]ACS_16_5YR_B18105_with_ann!AX269","v":37},{"$f":"[1]ACS_16_5YR_B18105_with_ann!AY269","v":27},{"$f":"[1]ACS_16_5YR_B18105_with_ann!AZ269","v":241},{"$f":"[1]ACS_16_5YR_B18105_with_ann!BA269","v":64},{"$f":"[1]ACS_16_5YR_B18105_with_ann!BB269","v":0},{"$f":"[1]ACS_16_5YR_B18105_with_ann!BC269","v":11},{"$f":"[1]ACS_16_5YR_B18105_with_ann!BD269","v":241},{"$f":"[1]ACS_16_5YR_B18105_with_ann!BE269","v":64},{"$f":"[1]ACS_16_5YR_B18105_with_ann!BF270","v":233},{"$f":"[1]ACS_16_5YR_B18105_with_ann!BG270","v":69},{"$f":"[1]ACS_16_5YR_B18105_with_ann!BH270","v":4},{"$f":"[1]ACS_16_5YR_B18105_with_ann!BI270","v":7},{"$f":"[1]ACS_16_5YR_B18105_with_ann!BJ270","v":229},{"$f":"[1]ACS_16_5YR_B18105_with_ann!BK270","v":69},{"$f":"[1]ACS_16_5YR_B18105_with_ann!BL270","v":182},{"$f":"[1]ACS_16_5YR_B18105_with_ann!BM270","v":81},{"$f":"[1]ACS_16_5YR_B18105_with_ann!BN270","v":60},{"$f":"[1]ACS_16_5YR_B18105_with_ann!BO270","v":61},{"$f":"[1]ACS_16_5YR_B18105_with_ann!BP270","v":122},{"$f":"[1]ACS_16_5YR_B18105_with_ann!BQ270","v":61}]
["0600000US3301975060",3301975060,"060","Sunapee",{"$f":"[1]ACS_16_5YR_B18105_with_ann!D270","v":3291},{"$f":"[1]ACS_16_5YR_B18105_with_ann!E270","v":68},{"$f":"[1]ACS_16_5YR_B18105_with_ann!F270","v":1695},{"$f":"[1]ACS_16_5YR_B18105_with_ann!G270","v":131},{"$f":"[1]ACS_16_5YR_B18105_with_ann!H270","v":337},{"$f":"[1]ACS_16_5YR_B18105_with_ann!I270","v":95},{"$f":"[1]ACS_16_5YR_B18105_with_ann!J270","v":0},{"$f":"[1]ACS_16_5YR_B18105_with_ann!K270","v":11},{"$f":"[1]ACS_16_5YR_B18105_with_ann!L270","v":337},{"$f":"[1]ACS_16_5YR_B18105_with_ann!M270","v":95},{"$f":"[1]ACS_16_5YR_B18105_with_ann!N270","v":290},{"$f":"[1]ACS_16_5YR_B18105_with_ann!O270","v":93},{"$f":"[1]ACS_16_5YR_B18105_with_ann!P270","v":0},{"$f":"[1]ACS_16_5YR_B18105_with_ann!Q270","v":11},{"$f":"[1]ACS_16_5YR_B18105_with_ann!R270","v":290},{"$f":"[1]ACS_16_5YR_B18105_with_ann!S270","v":93},{"$f":"[1]ACS_16_5YR_B18105_with_ann!T270","v":777},{"$f":"[1]ACS_16_5YR_B18105_with_ann!U270","v":126},{"$f":"[1]ACS_16_5YR_B18105_with_ann!V270","v":24},{"$f":"[1]ACS_16_5YR_B18105_with_ann!W270","v":26},{"$f":"[1]ACS_16_5YR_B18105_with_ann!X270","v":753},{"$f":"[1]ACS_16_5YR_B18105_with_ann!Y270","v":115},{"$f":"[1]ACS_16_5YR_B18105_with_ann!Z270","v":176},{"$f":"[1]ACS_16_5YR_B18105_with_ann!AA270","v":58},{"$f":"[1]ACS_16_5YR_B18105_with_ann!AB270","v":0},{"$f":"[1]ACS_16_5YR_B18105_with_ann!AC270","v":11},{"$f":"[1]ACS_16_5YR_B18105_with_ann!AD270","v":176},{"$f":"[1]ACS_16_5YR_B18105_with_ann!AE270","v":58},{"$f":"[1]ACS_16_5YR_B18105_with_ann!AF270","v":115},{"$f":"[1]ACS_16_5YR_B18105_with_ann!AG270","v":59},{"$f":"[1]ACS_16_5YR_B18105_with_ann!AH270","v":10},{"$f":"[1]ACS_16_5YR_B18105_with_ann!AI270","v":15},{"$f":"[1]ACS_16_5YR_B18105_with_ann!AJ270","v":105},{"$f":"[1]ACS_16_5YR_B18105_with_ann!AK270","v":58},{"$f":"[1]ACS_16_5YR_B18105_with_ann!AL270","v":1596},{"$f":"[1]ACS_16_5YR_B18105_with_ann!AM270","v":134},{"$f":"[1]ACS_16_5YR_B18105_with_ann!AN270","v":197},{"$f":"[1]ACS_16_5YR_B18105_with_ann!AO270","v":84},{"$f":"[1]ACS_16_5YR_B18105_with_ann!AP270","v":0},{"$f":"[1]ACS_16_5YR_B18105_with_ann!AQ270","v":11},{"$f":"[1]ACS_16_5YR_B18105_with_ann!AR270","v":197},{"$f":"[1]ACS_16_5YR_B18105_with_ann!AS270","v":84},{"$f":"[1]ACS_16_5YR_B18105_with_ann!AT270","v":250},{"$f":"[1]ACS_16_5YR_B18105_with_ann!AU270","v":74},{"$f":"[1]ACS_16_5YR_B18105_with_ann!AV270","v":0},{"$f":"[1]ACS_16_5YR_B18105_with_ann!AW270","v":11},{"$f":"[1]ACS_16_5YR_B18105_with_ann!AX270","v":250},{"$f":"[1]ACS_16_5YR_B18105_with_ann!AY270","v":74},{"$f":"[1]ACS_16_5YR_B18105_with_ann!AZ270","v":734},{"$f":"[1]ACS_16_5YR_B18105_with_ann!BA270","v":118},{"$f":"[1]ACS_16_5YR_B18105_with_ann!BB270","v":0},{"$f":"[1]ACS_16_5YR_B18105_with_ann!BC270","v":11},{"$f":"[1]ACS_16_5YR_B18105_with_ann!BD270","v":734},{"$f":"[1]ACS_16_5YR_B18105_with_ann!BE270","v":118},{"$f":"[1]ACS_16_5YR_B18105_with_ann!BF271","v":113},{"$f":"[1]ACS_16_5YR_B18105_with_ann!BG271","v":29},{"$f":"[1]ACS_16_5YR_B18105_with_ann!BH271","v":16},{"$f":"[1]ACS_16_5YR_B18105_with_ann!BI271","v":9},{"$f":"[1]ACS_16_5YR_B18105_with_ann!BJ271","v":97},{"$f":"[1]ACS_16_5YR_B18105_with_ann!BK271","v":27},{"$f":"[1]ACS_16_5YR_B18105_with_ann!BL271","v":39},{"$f":"[1]ACS_16_5YR_B18105_with_ann!BM271","v":15},{"$f":"[1]ACS_16_5YR_B18105_with_ann!BN271","v":13},{"$f":"[1]ACS_16_5YR_B18105_with_ann!BO271","v":8},{"$f":"[1]ACS_16_5YR_B18105_with_ann!BP271","v":26},{"$f":"[1]ACS_16_5YR_B18105_with_ann!BQ271","v":12}]
["0600000US3301977940",3301977940,"060","Unity",{"$f":"[1]ACS_16_5YR_B18105_with_ann!D271","v":1314},{"$f":"[1]ACS_16_5YR_B18105_with_ann!E271","v":147},{"$f":"[1]ACS_16_5YR_B18105_with_ann!F271","v":624},{"$f":"[1]ACS_16_5YR_B18105_with_ann!G271","v":66},{"$f":"[1]ACS_16_5YR_B18105_with_ann!H271","v":46},{"$f":"[1]ACS_16_5YR_B18105_with_ann!I271","v":21},{"$f":"[1]ACS_16_5YR_B18105_with_ann!J271","v":0},{"$f":"[1]ACS_16_5YR_B18105_with_ann!K271","v":11},{"$f":"[1]ACS_16_5YR_B18105_with_ann!L271","v":46},{"$f":"[1]ACS_16_5YR_B18105_with_ann!M271","v":21},{"$f":"[1]ACS_16_5YR_B18105_with_ann!N271","v":79},{"$f":"[1]ACS_16_5YR_B18105_with_ann!O271","v":31},{"$f":"[1]ACS_16_5YR_B18105_with_ann!P271","v":0},{"$f":"[1]ACS_16_5YR_B18105_with_ann!Q271","v":11},{"$f":"[1]ACS_16_5YR_B18105_with_ann!R271","v":79},{"$f":"[1]ACS_16_5YR_B18105_with_ann!S271","v":31},{"$f":"[1]ACS_16_5YR_B18105_with_ann!T271","v":324},{"$f":"[1]ACS_16_5YR_B18105_with_ann!U271","v":53},{"$f":"[1]ACS_16_5YR_B18105_with_ann!V271","v":23},{"$f":"[1]ACS_16_5YR_B18105_with_ann!W271","v":16},{"$f":"[1]ACS_16_5YR_B18105_with_ann!X271","v":301},{"$f":"[1]ACS_16_5YR_B18105_with_ann!Y271","v":49},{"$f":"[1]ACS_16_5YR_B18105_with_ann!Z271","v":128},{"$f":"[1]ACS_16_5YR_B18105_with_ann!AA271","v":36},{"$f":"[1]ACS_16_5YR_B18105_with_ann!AB271","v":6},{"$f":"[1]ACS_16_5YR_B18105_with_ann!AC271","v":4},{"$f":"[1]ACS_16_5YR_B18105_with_ann!AD271","v":122},{"$f":"[1]ACS_16_5YR_B18105_with_ann!AE271","v":36},{"$f":"[1]ACS_16_5YR_B18105_with_ann!AF271","v":47},{"$f":"[1]ACS_16_5YR_B18105_with_ann!AG271","v":17},{"$f":"[1]ACS_16_5YR_B18105_with_ann!AH271","v":5},{"$f":"[1]ACS_16_5YR_B18105_with_ann!AI271","v":5},{"$f":"[1]ACS_16_5YR_B18105_with_ann!AJ271","v":42},{"$f":"[1]ACS_16_5YR_B18105_with_ann!AK271","v":16},{"$f":"[1]ACS_16_5YR_B18105_with_ann!AL271","v":690},{"$f":"[1]ACS_16_5YR_B18105_with_ann!AM271","v":100},{"$f":"[1]ACS_16_5YR_B18105_with_ann!AN271","v":89},{"$f":"[1]ACS_16_5YR_B18105_with_ann!AO271","v":48},{"$f":"[1]ACS_16_5YR_B18105_with_ann!AP271","v":0},{"$f":"[1]ACS_16_5YR_B18105_with_ann!AQ271","v":11},{"$f":"[1]ACS_16_5YR_B18105_with_ann!AR271","v":89},{"$f":"[1]ACS_16_5YR_B18105_with_ann!AS271","v":48},{"$f":"[1]ACS_16_5YR_B18105_with_ann!AT271","v":111},{"$f":"[1]ACS_16_5YR_B18105_with_ann!AU271","v":46},{"$f":"[1]ACS_16_5YR_B18105_with_ann!AV271","v":7},{"$f":"[1]ACS_16_5YR_B18105_with_ann!AW271","v":7},{"$f":"[1]ACS_16_5YR_B18105_with_ann!AX271","v":104},{"$f":"[1]ACS_16_5YR_B18105_with_ann!AY271","v":45},{"$f":"[1]ACS_16_5YR_B18105_with_ann!AZ271","v":338},{"$f":"[1]ACS_16_5YR_B18105_with_ann!BA271","v":45},{"$f":"[1]ACS_16_5YR_B18105_with_ann!BB271","v":10},{"$f":"[1]ACS_16_5YR_B18105_with_ann!BC271","v":8},{"$f":"[1]ACS_16_5YR_B18105_with_ann!BD271","v":328},{"$f":"[1]ACS_16_5YR_B18105_with_ann!BE271","v":45},{"$f":"[1]ACS_16_5YR_B18105_with_ann!BF272","v":116},{"$f":"[1]ACS_16_5YR_B18105_with_ann!BG272","v":31},{"$f":"[1]ACS_16_5YR_B18105_with_ann!BH272","v":21},{"$f":"[1]ACS_16_5YR_B18105_with_ann!BI272","v":20},{"$f":"[1]ACS_16_5YR_B18105_with_ann!BJ272","v":95},{"$f":"[1]ACS_16_5YR_B18105_with_ann!BK272","v":27},{"$f":"[1]ACS_16_5YR_B18105_with_ann!BL272","v":29},{"$f":"[1]ACS_16_5YR_B18105_with_ann!BM272","v":15},{"$f":"[1]ACS_16_5YR_B18105_with_ann!BN272","v":3},{"$f":"[1]ACS_16_5YR_B18105_with_ann!BO272","v":6},{"$f":"[1]ACS_16_5YR_B18105_with_ann!BP272","v":26},{"$f":"[1]ACS_16_5YR_B18105_with_ann!BQ272","v":13}]
["0600000US3301978980",3301978980,"060","Washington",{"$f":"[1]ACS_16_5YR_B18105_with_ann!D272","v":1193},{"$f":"[1]ACS_16_5YR_B18105_with_ann!E272","v":187},{"$f":"[1]ACS_16_5YR_B18105_with_ann!F272","v":612},{"$f":"[1]ACS_16_5YR_B18105_with_ann!G272","v":109},{"$f":"[1]ACS_16_5YR_B18105_with_ann!H272","v":61},{"$f":"[1]ACS_16_5YR_B18105_with_ann!I272","v":49},{"$f":"[1]ACS_16_5YR_B18105_with_ann!J272","v":0},{"$f":"[1]ACS_16_5YR_B18105_with_ann!K272","v":11},{"$f":"[1]ACS_16_5YR_B18105_with_ann!L272","v":61},{"$f":"[1]ACS_16_5YR_B18105_with_ann!M272","v":49},{"$f":"[1]ACS_16_5YR_B18105_with_ann!N272","v":72},{"$f":"[1]ACS_16_5YR_B18105_with_ann!O272","v":37},{"$f":"[1]ACS_16_5YR_B18105_with_ann!P272","v":0},{"$f":"[1]ACS_16_5YR_B18105_with_ann!Q272","v":11},{"$f":"[1]ACS_16_5YR_B18105_with_ann!R272","v":72},{"$f":"[1]ACS_16_5YR_B18105_with_ann!S272","v":37},{"$f":"[1]ACS_16_5YR_B18105_with_ann!T272","v":309},{"$f":"[1]ACS_16_5YR_B18105_with_ann!U272","v":80},{"$f":"[1]ACS_16_5YR_B18105_with_ann!V272","v":4},{"$f":"[1]ACS_16_5YR_B18105_with_ann!W272","v":5},{"$f":"[1]ACS_16_5YR_B18105_with_ann!X272","v":305},{"$f":"[1]ACS_16_5YR_B18105_with_ann!Y272","v":80},{"$f":"[1]ACS_16_5YR_B18105_with_ann!Z272","v":121},{"$f":"[1]ACS_16_5YR_B18105_with_ann!AA272","v":35},{"$f":"[1]ACS_16_5YR_B18105_with_ann!AB272","v":0},{"$f":"[1]ACS_16_5YR_B18105_with_ann!AC272","v":11},{"$f":"[1]ACS_16_5YR_B18105_with_ann!AD272","v":121},{"$f":"[1]ACS_16_5YR_B18105_with_ann!AE272","v":35},{"$f":"[1]ACS_16_5YR_B18105_with_ann!AF272","v":49},{"$f":"[1]ACS_16_5YR_B18105_with_ann!AG272","v":19},{"$f":"[1]ACS_16_5YR_B18105_with_ann!AH272","v":16},{"$f":"[1]ACS_16_5YR_B18105_with_ann!AI272","v":14},{"$f":"[1]ACS_16_5YR_B18105_with_ann!AJ272","v":33},{"$f":"[1]ACS_16_5YR_B18105_with_ann!AK272","v":13},{"$f":"[1]ACS_16_5YR_B18105_with_ann!AL272","v":581},{"$f":"[1]ACS_16_5YR_B18105_with_ann!AM272","v":102},{"$f":"[1]ACS_16_5YR_B18105_with_ann!AN272","v":72},{"$f":"[1]ACS_16_5YR_B18105_with_ann!AO272","v":29},{"$f":"[1]ACS_16_5YR_B18105_with_ann!AP272","v":0},{"$f":"[1]ACS_16_5YR_B18105_with_ann!AQ272","v":11},{"$f":"[1]ACS_16_5YR_B18105_with_ann!AR272","v":72},{"$f":"[1]ACS_16_5YR_B18105_with_ann!AS272","v":29},{"$f":"[1]ACS_16_5YR_B18105_with_ann!AT272","v":63},{"$f":"[1]ACS_16_5YR_B18105_with_ann!AU272","v":30},{"$f":"[1]ACS_16_5YR_B18105_with_ann!AV272","v":0},{"$f":"[1]ACS_16_5YR_B18105_with_ann!AW272","v":11},{"$f":"[1]ACS_16_5YR_B18105_with_ann!AX272","v":63},{"$f":"[1]ACS_16_5YR_B18105_with_ann!AY272","v":30},{"$f":"[1]ACS_16_5YR_B18105_with_ann!AZ272","v":301},{"$f":"[1]ACS_16_5YR_B18105_with_ann!BA272","v":81},{"$f":"[1]ACS_16_5YR_B18105_with_ann!BB272","v":10},{"$f":"[1]ACS_16_5YR_B18105_with_ann!BC272","v":12},{"$f":"[1]ACS_16_5YR_B18105_with_ann!BD272","v":291},{"$f":"[1]ACS_16_5YR_B18105_with_ann!BE272","v":80},{"$f":"[1]ACS_16_5YR_B18105_with_ann!BF273","v":0},{"$f":"[1]ACS_16_5YR_B18105_with_ann!BG273","v":0},{"$f":"[1]ACS_16_5YR_B18105_with_ann!BH273","v":0},{"$f":"[1]ACS_16_5YR_B18105_with_ann!BI273","v":0},{"$f":"[1]ACS_16_5YR_B18105_with_ann!BJ273","v":0},{"$f":"[1]ACS_16_5YR_B18105_with_ann!BK273","v":0},{"$f":"[1]ACS_16_5YR_B18105_with_ann!BL273","v":0},{"$f":"[1]ACS_16_5YR_B18105_with_ann!BM273","v":0},{"$f":"[1]ACS_16_5YR_B18105_with_ann!BN273","v":0},{"$f":"[1]ACS_16_5YR_B18105_with_ann!BO273","v":0},{"$f":"[1]ACS_16_5YR_B18105_with_ann!BP273","v":0},{"$f":"[1]ACS_16_5YR_B18105_with_ann!BQ273","v":0}]
[]
[null,null,null,null,{"$f":"$D$3","v":"Acworth"},null,{"$f":"$D$4","v":"Charlestown"},null,{"$f":"$D$5","v":"Claremont"},null,{"$f":"$D$6","v":"Cornish"},null,{"$f":"$D$7","v":"Croydon"},null,{"$f":"$D$8","v":"Goshen"},null,{"$f":"$D$9","v":"Grantham"},null,{"$f":"$D$10","v":"Langdon"},null,{"$f":"$D$11","v":"Lempster"},null,{"$f":"$D$12","v":"Newport"},null,{"$f":"$D$13","v":"Plainfield"},null,{"$f":"$D$14","v":"Springfield"},null,{"$f":"$D$15","v":"Sunapee"},null,{"$f":"$D$16","v":"Unity"},null,{"$f":"$D$17","v":"Washington"}]
[null,null,null,null,"Estimate","Margin Of Error","Estimate","Margin Of Error","Estimate","Margin Of Error","Estimate","Margin Of Error","Estimate","Margin Of Error","Estimate","Margin Of Error","Estimate","Margin Of Error","Estimate","Margin Of Error","Estimate","Margin Of Error","Estimate","Margin Of Error","Estimate","Margin Of Error","Estimate","Margin Of Error","Estimate","Margin Of Error",null,"Estimate","Margin Of Error"]
[null,null,null,"Estimate Total:",869,133,4707,114,12046,169,1722,218,840,240,641,102,2945,14,680,139,857,153,5974,123,2473,261,1070,193,3291,68,1314,147,1193,187]
[null,null,null,"Estimate Total: Male:",466,81,2325,195,5872,297,887,151,412,108,328,66,1382,143,326,83,401,68,3045,247,1246,168,572,113,1695,131,624,66,612,109]
[null,null,null,"Estimate Total: Male: 5 to 17 years:",34,23,250,103,902,164,169,107,56,37,49,27,271,92,76,46,36,23,507,185,230,86,72,33,337,95,46,21,61,49]
[null,null,null,"Estimate Total: Male: 5 to 17 years: With an ambulatory difficulty",0,11,0,16,23,30,0,11,0,11,0,11,41,61,0,11,0,11,43,50,0,11,0,11,0,11,0,11,0,11]
[null,null,null,"Estimate Total: Male: 5 to 17 years: No ambulatory difficulty",34,23,250,103,879,160,169,107,56,37,49,27,230,84,76,46,36,23,464,156,230,86,72,33,337,95,46,21,61,49]
[null,null,null,"Estimate Total: Male: 18 to 34 years:",79,38,490,144,1622,255,95,28,87,47,43,21,148,73,53,27,34,16,754,177,261,84,103,56,290,93,79,31,72,37]
[null,null,null,"Estimate Total: Male: 18 to 34 years: With an ambulatory difficulty",0,11,0,16,0,18,0,11,2,4,0,11,0,11,2,4,0,11,34,52,0,11,0,11,0,11,0,11,0,11]
[null,null,null,"Estimate Total: Male: 18 to 34 years: No ambulatory difficulty",79,38,490,144,1622,255,95,28,85,46,43,21,148,73,51,26,34,16,720,179,261,84,103,56,290,93,79,31,72,37]
[null,null,null,"Estimate Total: Male: 35 to 64 years:",213,48,1034,172,2416,184,367,53,198,60,157,41,613,124,143,40,249,58,1262,216,521,71,225,63,777,126,324,53,309,80]
[null,null,null,"Estimate Total: Male: 35 to 64 years: With an ambulatory difficulty",4,5,119,101,188,112,8,8,14,11,5,5,0,11,2,3,13,10,117,106,6,8,3,5,24,26,23,16,4,5]
[null,null,null,"Estimate Total: Male: 35 to 64 years: No ambulatory difficulty",209,48,915,154,2228,198,359,54,184,57,152,41,613,124,141,40,236,57,1145,212,515,71,222,63,753,115,301,49,305,80]
[null,null,null,"Estimate Total: Male: 65 to 74 years:",88,27,261,94,650,105,190,51,38,22,59,26,156,69,39,14,68,28,405,161,178,57,111,42,176,58,128,36,121,35]
[null,null,null,"Estimate Total: Male: 65 to 74 years: With an ambulatory difficulty",19,13,14,24,58,50,10,10,5,6,0,11,17,26,7,6,0,11,88,99,0,11,0,11,0,11,6,4,0,11]
[null,null,null,"Estimate Total: Male: 65 to 74 years: No ambulatory difficulty",69,23,247,99,592,109,180,48,33,21,59,26,139,61,32,13,68,28,317,140,178,57,111,42,176,58,122,36,121,35]
[null,null,null,"Estimate Total: Male: 75 years and over:",52,23,290,141,282,88,66,32,33,16,20,14,194,86,15,9,14,11,117,81,56,35,61,35,115,59,47,17,49,19]
[null,null,null,"Estimate Total: Male: 75 years and over: With an ambulatory difficulty",8,10,109,92,56,45,12,10,10,8,0,11,35,56,6,5,0,11,82,74,0,11,9,14,10,15,5,5,16,14]
[null,null,null,"Estimate Total: Male: 75 years and over: No ambulatory difficulty",44,20,181,88,226,75,54,29,23,13,20,14,159,71,9,8,14,11,35,33,56,35,52,31,105,58,42,16,33,13]
[null,null,null,"Estimate Total: Female:",403,70,2382,208,6174,266,835,101,428,154,313,53,1563,142,354,70,456,111,2929,214,1227,135,498,104,1596,134,690,100,581,102]
[null,null,null,"Estimate Total: Female: 5 to 17 years:",24,18,420,147,922,206,119,46,65,34,49,25,250,125,61,42,121,76,406,128,185,81,70,46,197,84,89,48,72,29]
[null,null,null,"Estimate Total: Female: 5 to 17 years: With an ambulatory difficulty",0,11,0,16,6,10,0,11,0,11,0,11,0,11,0,11,0,11,0,16,0,11,0,11,0,11,0,11,0,11]
[null,null,null,"Estimate Total: Female: 5 to 17 years: No ambulatory difficulty",24,18,420,147,916,205,119,46,65,34,49,25,250,125,61,42,121,76,406,128,185,81,70,46,197,84,89,48,72,29]
[null,null,null,"Estimate Total: Female: 18 to 34 years:",47,25,357,108,1415,187,78,27,124,96,69,34,114,98,69,25,54,24,520,162,280,61,37,27,250,74,111,46,63,30]
[null,null,null,"Estimate Total: Female: 18 to 34 years: With an ambulatory difficulty",0,11,0,16,74,52,0,11,0,11,0,11,0,11,0,11,0,11,0,16,0,11,0,11,0,11,7,7,0,11]
[null,null,null,"Estimate Total: Female: 18 to 34 years: No ambulatory difficulty",47,25,357,108,1341,187,78,27,124,96,69,34,114,98,69,25,54,24,520,162,280,61,37,27,250,74,104,45,63,30]
[null,null,null,"Estimate Total: Female: 35 to 64 years:",190,46,1080,163,2460,217,380,59,169,53,117,33,896,131,174,41,191,52,1406,188,521,81,241,64,734,118,338,45,301,81]
[null,null,null,"Estimate Total: Female: 35 to 64 years: With an ambulatory difficulty",0,11,54,50,198,95,10,10,2,4,7,6,0,11,0,11,11,11,101,68,0,11,0,11,0,11,10,8,10,12]
[null,null,null,"Estimate Total: Female: 35 to 64 years: No ambulatory difficulty",190,46,1026,175,2262,230,370,60,167,52,110,34,896,131,174,41,180,50,1305,175,521,81,241,64,734,118,328,45,291,80]
[null,null,null,"Estimate Total: Female: 65 to 74 years:",117,42,296,120,755,152,49,24,49,21,139,53,35,11,51,23,312,130,181,56,112,42,233,69,113,29,116,31,0,0]
[null,null,null,"Estimate Total: Female: 65 to 74 years: With an ambulatory difficulty",13,15,0,16,107,103,3,5,4,5,16,23,3,4,13,13,67,67,41,31,0,11,4,7,16,9,21,20,0,0]
[null,null,null,"Estimate Total: Female: 65 to 74 years: No ambulatory difficulty",104,37,296,120,648,145,46,24,45,20,123,57,32,12,38,19,245,104,140,50,112,42,229,69,97,27,95,27,0,0]
[null,null,null,"Estimate Total: Female: 75 years and over:",25,14,229,88,622,128,21,12,29,13,164,75,15,8,39,26,285,103,60,32,38,26,182,81,39,15,29,15,0,0]
[null,null,null,"Estimate Total: Female: 75 years and over: With an ambulatory difficulty",4,4,48,40,264,107,3,6,7,7,15,22,4,4,3,4,120,69,5,7,10,16,60,61,13,8,3,6,0,0]
[null,null,null,"Estimate Total: Female: 75 years and over: No ambulatory difficulty",21,14,181,86,358,105,18,11,22,12,149,72,11,7,36,26,165,90,55,34,28,18,122,61,26,12,26,13,0,0]

{"sheet":"ACS_Table_B18105","index":49,"n_rows":122,"n_cols":32,"rows_kept":122,"cut":false,"hidden":true,"merged":[]}
["B18105. SEX BY AGE BY AMBULATORY DIFFICULTY\n\n"]
["Universe:  Civilian non-institutionalized population 5 years and over"]
["Data Set: 2015-2019 American Community Survey 5-Year Estimates"]
[]
[null,null,"Acworth",null,"Charlestown",null,"Claremont",null,"Cornish",null,"Croydon",null,"Goshen",null,"Grantham",null,"Langdon",null,"Lempster",null,"Newport",null,"Plainfield",null,"Springfield",null,"Sunapee",null,"Unity",null,"Washington"]
[null,null,"Estimate","Margin Of Error","Estimate","Margin Of Error","Estimate","Margin Of Error","Estimate","Margin Of Error","Estimate","Margin Of Error","Estimate","Margin Of Error","Estimate","Margin Of Error","Estimate","Margin Of Error","Estimate","Margin Of Error","Estimate","Margin Of Error","Estimate","Margin Of Error","Estimate","Margin Of Error","Estimate","Margin Of Error","Estimate","Margin Of Error","Estimate","Margin Of Error"]
[null,"Total:",869,133,4707,114,12046,169,1722,218,840,240,641,102,2945,14,680,139,857,153,5974,123,2473,261,1070,193,3291,68,1314,147,1193,187]
[null,"Male:",466,81,2325,195,5872,297,887,151,412,108,328,66,1382,143,326,83,401,68,3045,247,1246,168,572,113,1695,131,624,66,612,109]
[null,"5 to 17  years:",34,23,250,103,902,164,169,107,56,37,49,27,271,92,76,46,36,23,507,185,230,86,72,33,337,95,46,21,61,49]
[null,"With ambulatory difficulty",0,11,0,16,23,30,0,11,0,11,0,11,41,61,0,11,0,11,43,50,0,11,0,11,0,11,0,11,0,11]
[null,"With no ambulatory difficulty",34,23,250,103,879,160,169,107,56,37,49,27,230,84,76,46,36,23,464,156,230,86,72,33,337,95,46,21,61,49]
[null,"18 to 34  years:",79,38,490,144,1622,255,95,28,87,47,43,21,148,73,53,27,34,16,754,177,261,84,103,56,290,93,79,31,72,37]
[null,"With ambulatory difficulty",0,11,0,16,0,18,0,11,2,4,0,11,0,11,2,4,0,11,34,52,0,11,0,11,0,11,0,11,0,11]
[null,"With no ambulatory difficulty",79,38,490,144,1622,255,95,28,85,46,43,21,148,73,51,26,34,16,720,179,261,84,103,56,290,93,79,31,72,37]
[null,"35 to 64  years:",213,48,1034,172,2416,184,367,53,198,60,157,41,613,124,143,40,249,58,1262,216,521,71,225,63,777,126,324,53,309,80]
[null,"With ambulatory difficulty",4,5,119,101,188,112,8,8,14,11,5,5,0,11,2,3,13,10,117,106,6,8,3,5,24,26,23,16,4,5]
[null,"With no ambulatory difficulty",209,48,915,154,2228,198,359,54,184,57,152,41,613,124,141,40,236,57,1145,212,515,71,222,63,753,115,301,49,305,80]
[null,"65 to 74  years:",88,27,261,94,650,105,190,51,38,22,59,26,156,69,39,14,68,28,405,161,178,57,111,42,176,58,128,36,121,35]
[null,"With ambulatory difficulty",19,13,14,24,58,50,10,10,5,6,0,11,17,26,7,6,0,11,88,99,0,11,0,11,0,11,6,4,0,11]
[null,"With no ambulatory difficulty",69,23,247,99,592,109,180,48,33,21,59,26,139,61,32,13,68,28,317,140,178,57,111,42,176,58,122,36,121,35]
[null,"75  years and Older:",52,23,290,141,282,88,66,32,33,16,20,14,194,86,15,9,14,11,117,81,56,35,61,35,115,59,47,17,49,19]
[null,"With ambulatory difficulty",8,10,109,92,56,45,12,10,10,8,0,11,35,56,6,5,0,11,82,74,0,11,9,14,10,15,5,5,16,14]
[null,"With no ambulatory difficulty",44,20,181,88,226,75,54,29,23,13,20,14,159,71,9,8,14,11,35,33,56,35,52,31,105,58,42,16,33,13]
[null,"Female:",403,70,2382,208,6174,266,835,101,428,154,313,53,1563,142,354,70,456,111,2929,214,1227,135,498,104,1596,134,690,100,581,102]
[null,"5 to 17  years:",24,18,420,147,922,206,119,46,65,34,49,25,250,125,61,42,121,76,406,128,185,81,70,46,197,84,89,48,72,29]
[null,"With ambulatory difficulty",0,11,0,16,6,10,0,11,0,11,0,11,0,11,0,11,0,11,0,16,0,11,0,11,0,11,0,11,0,11]
[null,"With no ambulatory difficulty",24,18,420,147,916,205,119,46,65,34,49,25,250,125,61,42,121,76,406,128,185,81,70,46,197,84,89,48,72,29]
[null,"18 to 34  years:",47,25,357,108,1415,187,78,27,124,96,69,34,114,98,69,25,54,24,520,162,280,61,37,27,250,74,111,46,63,30]
[null,"With ambulatory difficulty",0,11,0,16,74,52,0,11,0,11,0,11,0,11,0,11,0,11,0,16,0,11,0,11,0,11,7,7,0,11]
[null,"With no ambulatory difficulty",47,25,357,108,1341,187,78,27,124,96,69,34,114,98,69,25,54,24,520,162,280,61,37,27,250,74,104,45,63,30]
[null,"35 to 64  years:",190,46,1080,163,2460,217,380,59,169,53,117,33,896,131,174,41,191,52,1406,188,521,81,241,64,734,118,338,45,301,81]
[null,"With ambulatory difficulty",0,11,54,50,198,95,10,10,2,4,7,6,0,11,0,11,11,11,101,68,0,11,0,11,0,11,10,8,10,12]
[null,"With no ambulatory difficulty",190,46,1026,175,2262,230,370,60,167,52,110,34,896,131,174,41,180,50,1305,175,521,81,241,64,734,118,328,45,291,80]
[null,"65 to 74  years:",117,42,296,120,755,152,49,24,49,21,139,53,35,11,51,23,312,130,181,56,112,42,233,69,113,29,116,31,0,0]
[null,"With ambulatory difficulty",13,15,0,16,107,103,3,5,4,5,16,23,3,4,13,13,67,67,41,31,0,11,4,7,16,9,21,20,0,0]
[null,"With no ambulatory difficulty",104,37,296,120,648,145,46,24,45,20,123,57,32,12,38,19,245,104,140,50,112,42,229,69,97,27,95,27,0,0]
[null,"75  years and Older:",25,14,229,88,622,128,21,12,29,13,164,75,15,8,39,26,285,103,60,32,38,26,182,81,39,15,29,15,0,0]
[null,"With ambulatory difficulty",4,4,48,40,264,107,3,6,7,7,15,22,4,4,3,4,120,69,5,7,10,16,60,61,13,8,3,6,0,0]
[null,"With no ambulatory difficulty",21,14,181,86,358,105,18,11,22,12,149,72,11,7,36,26,165,90,55,34,28,18,122,61,26,12,26,13,0,0]
[]
[]
[{"$f":"A1& \"-Calculated\"","v":"B18105. SEX BY AGE BY AMBULATORY DIFFICULTY\n\n-Calculated"}]
[{"$f":"A2","v":"Universe:  Civilian non-institutionalized population 5 years and over"}]
[{"$f":"A3","v":"Data Set: 2015-2019 American Community Survey 5-Year Estimates"}]
[]
[]
[null,null,"Acworth",null,"Charlestown",null,"Claremont",null,"Cornish",null,"Croydon",null,"Goshen",null,"Grantham",null,"Langdon",null,"Lempster",null,"Newport",null,"Plainfield",null,"Springfield",null,"Sunapee",null,"Unity",null,"Washington"]
[null,null,"Estimate","Margin Of Error","Estimate","Margin Of Error","Estimate","Margin Of Error","Estimate","Margin Of Error","Estimate","Margin Of Error","Estimate","Margin Of Error","Estimate","Margin Of Error","Estimate","Margin Of Error","Estimate","Margin Of Error","Estimate","Margin Of Error","Estimate","Margin Of Error","Estimate","Margin Of Error","Estimate","Margin Of Error","Estimate","Margin Of Error","Estimate","Margin Of Error"]
[null,"Total:",{"$f":"C7","v":869},133,4707,114,12046,169,1722,218,840,240,641,102,2945,14,680,139,857,153,5974,123,2473,261,{"$f":"Y7","v":1070},193,3291,68,1314,147,1193,187]
[null,"5 to 17  years:",{"$f":"C25+C9","v":58},{"$f":"SQRT((D25^2)+(D9^2))","v":29.206163733020468},{"$f":"E25+E9","v":670},{"$f":"SQRT((F25^2)+(F9^2))","v":179.49373248110922},{"$f":"G25+G9","v":1824},{"$f":"SQRT((H25^2)+(H9^2))","v":263.30970358116315},{"$f":"I25+I9","v":288},{"$f":"SQRT((J25^2)+(J9^2))","v":116.46887996370532},{"$f":"K25+K9","v":121},{"$f":"SQRT((L25^2)+(L9^2))","v":50.24937810560445},{"$f":"M25+M9","v":98},{"$f":"SQRT((N25^2)+(N9^2))","v":36.796738985948195},{"$f":"O25+O9","v":521},{"$f":"SQRT((P25^2)+(P9^2))","v":155.20631430454111},{"$f":"Q25+Q9","v":137},{"$f":"SQRT((R25^2)+(R9^2))","v":62.289646009589745},{"$f":"S25+S9","v":157},{"$f":"SQRT((T25^2)+(T9^2))","v":79.404030124421269},{"$f":"U25+U9","v":913},{"$f":"SQRT((V25^2)+(V9^2))","v":224.96444163467257},{"$f":"W25+W9","v":415},{"$f":"SQRT((X25^2)+(X9^2))","v":118.1397477566293},{"$f":"Y25+Y9","v":142},{"$f":"SQRT((Z25^2)+(Z9^2))","v":56.612719418872643},{"$f":"AA25+AA9","v":534},{"$f":"SQRT((AB25^2)+(AB9^2))","v":126.81088281373961},135,52.392747589718944,{"$f":"AE25+AE9","v":133},{"$f":"SQRT((AF25^2)+(AF9^2))","v":56.938563381947034}]
[null,"With ambulatory difficulty",0,15.556349186104045,0,22.627416997969522,29,31.622776601683793,0,15.556349186104045,0,15.556349186104045,0,15.556349186104045,41,61.98386886924694,0,15.556349186104045,0,15.556349186104045,43,52.497618993626752,0,15.556349186104045,0,15.556349186104045,0,15.556349186104045,0,15.556349186104045,0,15.556349186104045]
[null,"With no ambulatory difficulty",58,29.206163733020468,670,179.49373248110922,1795,260.04807247891688,288,116.46887996370532,121,50.24937810560445,98,36.796738985948195,480,150.60212481900777,137,62.289646009589745,157,79.404030124421269,870,201.79197209007103,415,118.1397477566293,142,56.612719418872643,534,126.81088281373961,135,52.392747589718944,133,56.938563381947034]
[null,"18 to 34  years:",126,45.486261662176638,847,180,3037,316.21827904155066,173,38.897300677553446,211,106.88779163215975,112,39.962482405376171,262,122.20065466273084,122,36.796738985948195,88,28.844410203711913,1274,239.94374340665772,541,103.81233067415451,140,62.169124169478209,540,118.84864324004712,190,55.470712993434653,135,47.634021455258214]
[null,"With ambulatory difficulty",0,15.556349186104045,0,22.627416997969522,74,55.027265968790417,0,15.556349186104045,2,11.704699910719626,0,15.556349186104045,0,15.556349186104045,2,11.704699910719626,0,15.556349186104045,34,54.405882034941776,0,15.556349186104045,0,15.556349186104045,0,15.556349186104045,7,13.038404810405298,0,15.556349186104045]
[null,"With no ambulatory difficulty",126,45.486261662176638,847,180,2963,316.21827904155066,173,38.897300677553446,209,106.45186705737011,112,39.962482405376171,262,122.20065466273084,120,36.069377593742864,88,28.844410203711913,1240,241.42286552851616,541,103.81233067415451,140,62.169124169478209,540,118.84864324004712,183,54.644304369257,135,47.634021455258214]
[null,"35 to 64  years:",403,66.483080554378645,2114,236.96624232155938,4876,284.50834785643815,747,79.309520235593411,367,80.05623023850174,274,52.630789467763066,1509,180.38015411901608,317,57.280013966478741,440,77.89736837660179,2668,286.35642126552705,1042,107.71258050942797,466,89.805345052507874,1511,172.62676501632069,662,69.526973183074787,610,113.84638773364749]
[null,"With ambulatory difficulty",4,12.083045973594572,173,112.69871339105873,386,146.86388255796589,18,12.806248474865697,16,11.704699910719626,12,7.810249675906654,0,15.556349186104045,2,11.401754250991379,24,14.866068747318506,218,125.93649193144932,6,13.601470508735444,3,12.083045973594572,24,28.231188426986208,33,17.888543819998318,14,13]
[null,"With no ambulatory difficulty",399,66.483080554378645,1941,233.11156127485398,4490,303.48640826238,729,80.721744282442259,351,77.155686763841331,262,53.263495942343098,1509,180.38015411901608,315,57.280013966478741,416,75.822160349069449,2450,274.89816296221409,1036,107.71258050942797,463,89.805345052507874,1487,164.76953601925328,629,66.528189513919585,596,113.13708498984761]
[null,"65 to 74  years:",205,49.929950931279713,557,152.43359209832983,1405,184.74035834110532,239,56.36488268416781,87,30.413812651491099,198,59.033888572581766,191,69.871310278253688,90,26.92582403567252,380,132.98120167903431,586,170.46113926640288,290,70.802542327235685,344,80.777472107017559,289,64.845971347493901,244,47.507894080878813,121,35]
[null,"With ambulatory difficulty",32,19.849433241279208,14,28.844410203711913,165,114.49454135459908,13,11.180339887498949,9,7.810249675906654,16,25.495097567963924,20,26.305892875931811,20,14.317821063276353,67,67.896980787071826,129,103.74005976477939,0,15.556349186104045,4,13.038404810405298,16,14.212670403551895,27,20.396078054371138,0,11]
[null,"With no ambulatory difficulty",173,43.56604182158393,543,155.56670594957006,1240,181.40011025354974,226,53.665631459994955,78,29,182,62.649820430708338,171,62.169124169478209,70,23.021728866442675,313,107.70329614269008,457,148.66068747318505,290,70.802542327235685,340,80.777472107017559,273,63.976558206893252,217,45,121,35]
[null,"75  years and Older:",77,26.92582403567252,519,166.20770138594662,904,155.3319027115808,87,34.176014981270121,62,20.615528128088304,184,76.295478240849903,209,86.371291526756735,54,27.513632984395208,299,103.58571330062848,177,87.091905479212016,94,43.600458713183279,243,88.238313673823114,154,60.876925020897694,76,22.671568097509269,49,19]
[null,"With ambulatory difficulty",12,10.770329614269007,157,100.31948963187563,320,116.0775602776006,15,11.661903789690601,17,10.63014581273465,15,24.596747752497688,39,56.142675390472796,9,6.4031242374328485,120,69.871310278253688,87,74.330343736592525,10,19.416487838947599,69,62.585940913275401,23,17,8,7.810249675906654,16,14]
[null,"With no ambulatory difficulty",65,24.413111231467404,362,123.04470732217619,584,129.0348790056394,72,31.016124838541646,45,17.691806012954132,169,73.348483283568996,170,71.344235926947874,45,27.202941017470888,179,90.669730340395304,90,47.381430961928537,84,39.357337308308857,174,68.425141578224014,131,59.22837157984339,68,20.615528128088304,33,13]
[]
[]
[]
[]
[]
[]
[]
[]
[]
[]
[]
[]
[]
[]
[]
[]
[]
[]
[]
[]
[]
[]
[]
[]
[]
[]
[]
[]
[]
[]
[]
[]
[]
[]
[]
["B18105. SEX BY AGE BY AMBULATORY DIFFICULTY\n\n-Calculated"]
["Universe:  Civilian non-institutionalized population 5 years and over"]
["Data Set: 2010-2014 American Community Survey 5-Year Estimates"]
[]
[]
[null,null,"Acworth",null,"Charlestown",null,"Claremont",null,"Cornish",null,"Croydon",null,"Goshen",null,"Grantham",null,"Langdon",null,"Lempster",null,"Newport",null,"Plainfield",null,"Springfield",null,"Sunapee",null,"Unity",null,"Washington"]
[null,null,"Estimate","Margin Of Error","Estimate","Margin Of Error","Estimate","Margin Of Error","Estimate","Margin Of Error","Estimate","Margin Of Error","Estimate","Margin Of Error","Estimate","Margin Of Error","Estimate","Margin Of Error","Estimate","Margin Of Error","Estimate","Margin Of Error","Estimate","Margin Of Error","Estimate","Margin Of Error","Estimate","Margin Of Error","Estimate","Margin Of Error","Estimate","Margin Of Error"]
[null,"Total:",868,138,4741,123,12204,167,1510,165,619,123,774,111,2799,84,746,144,1022,150,6205,116,2377,155,1231,195,3285,64,1303,144,997,136]
[null,"5 to 17  years:",152,54.203320931470607,588,145.71547618561317,2117,243.21184181696418,243,76.05918747922567,93,33.941125496954278,93,39.446165846632042,536,156.72268502038881,140,59.816385714952723,156,48.104053883222775,1002,213.05398376937239,408,85.562842402528915,244,73.552702193733168,492,128.80993750483694,142,39.962482405376171,130,58.137767414994535]
[null,"With ambulatory difficulty",0,15.556349186104045,0,15.556349186104045,0,24.041630560342615,0,15.556349186104045,0,15.556349186104045,0,15.556349186104045,0,15.556349186104045,2,11.704699910719626,6,5.6568542494923806,0,21.213203435596427,5,13.038404810405298,3,12.529964086141668,0,15.556349186104045,7,14.866068747318506,0,15.556349186104045]
[null,"With no ambulatory difficulty",152,54.203320931470607,588,145.71547618561317,2117,243.21184181696418,243,76.05918747922567,93,33.941125496954278,93,39.446165846632042,536,156.72268502038881,138,59.816385714952723,150,47.381430961928537,1002,213.05398376937239,403,85.562842402528915,241,73.552702193733168,492,128.80993750483694,135,39.962482405376171,130,58.137767414994535]
[null,"18 to 34  years:",184,54.378304497290095,900,194.55847450059841,2858,279.37966998334008,273,55.97320787662612,96,41.400483088968905,134,40.36087214122113,358,127.3184982632139,175,58,137,52.773099207835045,1050,218.68699092538631,401,83.630138108220294,173,55,504,146.60491124106312,207,60.21627686929839,100,41.231056256176608]
[null,"With ambulatory difficulty",11,13,0,15.556349186104045,12,16.492422502470642,0,15.556349186104045,0,15.556349186104045,0,15.556349186104045,12,21.095023109728988,5,13.038404810405298,3,11.704699910719626,12,24.207436873820409,8,17.029386365926403,0,15.556349186104045,0,15.556349186104045,10,10.63014581273465,0,15.556349186104045]
[null,"With no ambulatory difficulty",173,53.535035257296691,900,194.55847450059841,2846,281.55638866841576,273,55.97320787662612,96,41.400483088968905,134,40.36087214122113,346,126.24579200908045,170,58,134,52.773099207835045,1038,216.14809737770074,393,82.134036793524274,173,55,504,146.60491124106312,197,58.600341295934449,100,41.231056256176608]
[null,"35 to 64  years:",380,55.865910893853687,2320,200.124960961895,5203,255.34486483969087,799,72.138755187485728,348,58.051701094799967,405,54.671747731346578,1313,129.4488315899375,305,50.328918128646478,571,72.249567472753768,3031,239.05857022913861,1172,102.7277956543408,648,89.403579346690591,1478,196.54261624390779,768,68.8839603971781,520,70.767224051816527]
[null,"With ambulatory difficulty",17,10.63014581273465,323,129.9576854210631,553,157.38487856207789,69,31.89043743820395,17,15,39,21.633307652783937,7,14.866068747318506,8,6.4031242374328485,33,26.419689627245813,259,106.10372283760829,63,34.176014981270121,17,14.866068747318506,88,74.040529441651074,49,27.513632984395208,71,29.732137494637012]
[null,"With no ambulatory difficulty",363,54.451813560247928,1997,237.26145915424192,4650,275.86228448267445,730,71.589105316381762,331,55.97320787662612,366,56.080299571239813,1306,130.13838787997952,297,50.328918128646478,538,66.528189513919585,2772,248.16325271885037,1109,102.6498904042279,631,89.627004859026727,1390,198.39858870465787,719,69.028979421689272,449,64.443773942872099]
[null,"65 to 74  years:",105,33.421549934136806,573,157.76247969653622,1109,160.96272860510285,142,45.607017003965517,55,19.849433241279208,75,29.068883707497267,262,79.246451024635803,87,25.45584412271571,85,28.301943396169811,702,194.60986614249546,297,68.818602136341013,120,40.496913462633174,436,116.10340218959993,117,30.610455730027933,161,29.732137494637012]
[null,"With ambulatory difficulty",20,15.297058540778355,154,89.196412483911033,227,100.12492197250393,14,12.806248474865697,7,7.810249675906654,6,8.9442719099991592,42,42.059481689626182,2,2.8284271247461903,10,9.4339811320566032,211,146.68674105044394,51,22.203603311174518,17,17.262676501632068,8,16.278820596099706,21,18.384776310850235,16,10.63014581273465]
[null,"With no ambulatory difficulty",85,29.068883707497267,419,141.44963768069539,882,147.61097520171052,128,44.204072210600685,48,17.691806012954132,69,29.068883707497267,220,74.249579123386283,85,24.758836806279895,75,26.92582403567252,491,137.20058308913997,246,67.201190465645766,103,34.058772731852805,428,116.77756633874505,96,26.870057685088806,145,28.42534080710379]
[null,"75  years and Older:",47,18.788294228055936,360,139.26952286842948,917,129.20139318134306,53,20,27,18.601075237738275,67,22.671568097509269,330,92.200867674876037,39,19.104973174542799,73,30.413812651491099,420,113.56936206565572,99,36.891733491393431,46,21.95449840010015,375,95.587656106842587,69,21.633307652783937,86,27.658633371878661]
[null,"With ambulatory difficulty",6,5,76,46.227697325304881,333,99.045444115315064,16,10.63014581273465,11,12.806248474865697,17,13.416407864998739,55,55.108982933819419,6,5.8309518948453007,40,22.203603311174518,150,89.872131386765275,39,24.596747752497688,14,18.601075237738275,28,35.440090293338699,16,10.295630140987001,20,12.083045973594572]
[null,"With no ambulatory difficulty",41,18.788294228055936,284,132.30646242719968,584,118.98319209031165,37,17.204650534085253,16,13.416407864998739,50,18.867962264113206,275,79.246451024635803,33,18.439088914585774,33,19.235384061671343,270,79.630396206473819,60,24.207436873820409,32,15.556349186104045,347,96.896852374058057,53,18.601075237738275,66,23.600847442411894]

{"sheet":"SData_B18106_SelfCareDisability","index":50,"n_rows":53,"n_cols":70,"rows_kept":53,"cut":false,"hidden":true,"merged":[]}
["GEO_ID","GEO_ID2","SUMLEVEL"]
["Geography Identifier","Geography Identifier","Geographic Summary Level",null,{"$f":"[1]ACS_16_5YR_B18106_with_ann!D$2","v":"Estimate Total:"},{"$f":"[1]ACS_16_5YR_B18106_with_ann!E$2","v":"Margin of Error Total:"},{"$f":"[1]ACS_16_5YR_B18106_with_ann!F$2","v":"Estimate Total: Male:"},{"$f":"[1]ACS_16_5YR_B18106_with_ann!G$2","v":"Margin of Error Total: Male:"},{"$f":"[1]ACS_16_5YR_B18106_with_ann!H$2","v":"Estimate Total: Male: 5 to 17 years:"},{"$f":"[1]ACS_16_5YR_B18106_with_ann!I$2","v":"Margin of Error Total: Male: 5 to 17 years:"},{"$f":"[1]ACS_16_5YR_B18106_with_ann!J$2","v":"Estimate Total: Male: 5 to 17 years: With a self-care difficulty"},{"$f":"[1]ACS_16_5YR_B18106_with_ann!K$2","v":"Margin of Error Total: Male: 5 to 17 years: With a self-care difficulty"},{"$f":"[1]ACS_16_5YR_B18106_with_ann!L$2","v":"Estimate Total: Male: 5 to 17 years: No self-care difficulty"},{"$f":"[1]ACS_16_5YR_B18106_with_ann!M$2","v":"Margin of Error Total: Male: 5 to 17 years: No self-care difficulty"},{"$f":"[1]ACS_16_5YR_B18106_with_ann!N$2","v":"Estimate Total: Male: 18 to 34 years:"},{"$f":"[1]ACS_16_5YR_B18106_with_ann!O$2","v":"Margin of Error Total: Male: 18 to 34 years:"},{"$f":"[1]ACS_16_5YR_B18106_with_ann!P$2","v":"Estimate Total: Male: 18 to 34 years: With a self-care difficulty"},{"$f":"[1]ACS_16_5YR_B18106_with_ann!Q$2","v":"Margin of Error Total: Male: 18 to 34 years: With a self-care difficulty"},{"$f":"[1]ACS_16_5YR_B18106_with_ann!R$2","v":"Estimate Total: Male: 18 to 34 years: No self-care difficulty"},{"$f":"[1]ACS_16_5YR_B18106_with_ann!S$2","v":"Margin of Error Total: Male: 18 to 34 years: No self-care difficulty"},{"$f":"[1]ACS_16_5YR_B18106_with_ann!T$2","v":"Estimate Total: Male: 35 to 64 years:"},{"$f":"[1]ACS_16_5YR_B18106_with_ann!U$2","v":"Margin of Error Total: Male: 35 to 64 years:"},{"$f":"[1]ACS_16_5YR_B18106_with_ann!V$2","v":"Estimate Total: Male: 35 to 64 years: With a self-care difficulty"},{"$f":"[1]ACS_16_5YR_B18106_with_ann!W$2","v":"Margin of Error Total: Male: 35 to 64 years: With a self-care difficulty"},{"$f":"[1]ACS_16_5YR_B18106_with_ann!X$2","v":"Estimate Total: Male: 35 to 64 years: No self-care difficulty"},{"$f":"[1]ACS_16_5YR_B18106_with_ann!Y$2","v":"Margin of Error Total: Male: 35 to 64 years: No self-care difficulty"},{"$f":"[1]ACS_16_5YR_B18106_with_ann!Z$2","v":"Estimate Total: Male: 65 to 74 years:"},{"$f":"[1]ACS_16_5YR_B18106_with_ann!AA$2","v":"Margin of Error Total: Male: 65 to 74 years:"},{"$f":"[1]ACS_16_5YR_B18106_with_ann!AB$2","v":"Estimate Total: Male: 65 to 74 years: With a self-care difficulty"},{"$f":"[1]ACS_16_5YR_B18106_with_ann!AC$2","v":"Margin of Error Total: Male: 65 to 74 years: With a self-care difficulty"},{"$f":"[1]ACS_16_5YR_B18106_with_ann!AD$2","v":"Estimate Total: Male: 65 to 74 years: No self-care difficulty"},{"$f":"[1]ACS_16_5YR_B18106_with_ann!AE$2","v":"Margin of Error Total: Male: 65 to 74 years: No self-care difficulty"},{"$f":"[1]ACS_16_5YR_B18106_with_ann!AF$2","v":"Estimate Total: Male: 75 years and over:"},{"$f":"[1]ACS_16_5YR_B18106_with_ann!AG$2","v":"Margin of Error Total: Male: 75 years and over:"},{"$f":"[1]ACS_16_5YR_B18106_with_ann!AH$2","v":"Estimate Total: Male: 75 years and over: With a self-care difficulty"},{"$f":"[1]ACS_16_5YR_B18106_with_ann!AI$2","v":"Margin of Error Total: Male: 75 years and over: With a self-care difficulty"},{"$f":"[1]ACS_16_5YR_B18106_with_ann!AJ$2","v":"Estimate Total: Male: 75 years and over: No self-care difficulty"},{"$f":"[1]ACS_16_5YR_B18106_with_ann!AK$2","v":"Margin of Error Total: Male: 75 years and over: No self-care difficulty"},{"$f":"[1]ACS_16_5YR_B18106_with_ann!AL$2","v":"Estimate Total: Female:"},{"$f":"[1]ACS_16_5YR_B18106_with_ann!AM$2","v":"Margin of Error Total: Female:"},{"$f":"[1]ACS_16_5YR_B18106_with_ann!AN$2","v":"Estimate Total: Female: 5 to 17 years:"},{"$f":"[1]ACS_16_5YR_B18106_with_ann!AO$2","v":"Margin of Error Total: Female: 5 to 17 years:"},{"$f":"[1]ACS_16_5YR_B18106_with_ann!AP$2","v":"Estimate Total: Female: 5 to 17 years: With a self-care difficulty"},{"$f":"[1]ACS_16_5YR_B18106_with_ann!AQ$2","v":"Margin of Error Total: Female: 5 to 17 years: With a self-care difficulty"},{"$f":"[1]ACS_16_5YR_B18106_with_ann!AR$2","v":"Estimate Total: Female: 5 to 17 years: No self-care difficulty"},{"$f":"[1]ACS_16_5YR_B18106_with_ann!AS$2","v":"Margin of Error Total: Female: 5 to 17 years: No self-care difficulty"},{"$f":"[1]ACS_16_5YR_B18106_with_ann!AT$2","v":"Estimate Total: Female: 18 to 34 years:"},{"$f":"[1]ACS_16_5YR_B18106_with_ann!AU$2","v":"Margin of Error Total: Female: 18 to 34 years:"},{"$f":"[1]ACS_16_5YR_B18106_with_ann!AV$2","v":"Estimate Total: Female: 18 to 34 years: With a self-care difficulty"},{"$f":"[1]ACS_16_5YR_B18106_with_ann!AW$2","v":"Margin of Error Total: Female: 18 to 34 years: With a self-care difficulty"},{"$f":"[1]ACS_16_5YR_B18106_with_ann!AX$2","v":"Estimate Total: Female: 18 to 34 years: No self-care difficulty"},{"$f":"[1]ACS_16_5YR_B18106_with_ann!AY$2","v":"Margin of Error Total: Female: 18 to 34 years: No self-care difficulty"},{"$f":"[1]ACS_16_5YR_B18106_with_ann!AZ$2","v":"Estimate Total: Female: 35 to 64 years:"},{"$f":"[1]ACS_16_5YR_B18106_with_ann!BA$2","v":"Margin of Error Total: Female: 35 to 64 years:"},{"$f":"[1]ACS_16_5YR_B18106_with_ann!BB$2","v":"Estimate Total: Female: 35 to 64 years: With a self-care difficulty"},{"$f":"[1]ACS_16_5YR_B18106_with_ann!BC$2","v":"Margin of Error Total: Female: 35 to 64 years: With a self-care difficulty"},{"$f":"[1]ACS_16_5YR_B18106_with_ann!BD$2","v":"Estimate Total: Female: 35 to 64 years: No self-care difficulty"},{"$f":"[1]ACS_16_5YR_B18106_with_ann!BE$2","v":"Margin of Error Total: Female: 35 to 64 years: No self-care difficulty"},{"$f":"[1]ACS_16_5YR_B18106_with_ann!BF$2","v":"Estimate Total: Female: 65 to 74 years:"},{"$f":"[1]ACS_16_5YR_B18106_with_ann!BG$2","v":"Margin of Error Total: Female: 65 to 74 years:"},{"$f":"[1]ACS_16_5YR_B18106_with_ann!BH$2","v":"Estimate Total: Female: 65 to 74 years: With a self-care difficulty"},{"$f":"[1]ACS_16_5YR_B18106_with_ann!BI$2","v":"Margin of Error Total: Female: 65 to 74 years: With a self-care difficulty"},{"$f":"[1]ACS_16_5YR_B18106_with_ann!BJ$2","v":"Estimate Total: Female: 65 to 74 years: No self-care difficulty"},{"$f":"[1]ACS_16_5YR_B18106_with_ann!BK$2","v":"Margin of Error Total: Female: 65 to 74 years: No self-care difficulty"},{"$f":"[1]ACS_16_5YR_B18106_with_ann!BL$2","v":"Estimate Total: Female: 75 years and over:"},{"$f":"[1]ACS_16_5YR_B18106_with_ann!BM$2","v":"Margin of Error Total: Female: 75 years and over:"},{"$f":"[1]ACS_16_5YR_B18106_with_ann!BN$2","v":"Estimate Total: Female: 75 years and over: With a self-care difficulty"},{"$f":"[1]ACS_16_5YR_B18106_with_ann!BO$2","v":"Margin of Error Total: Female: 75 years and over: With a self-care difficulty"},{"$f":"[1]ACS_16_5YR_B18106_with_ann!BP$2","v":"Estimate Total: Female: 75 years and over: No self-care difficulty"},{"$f":"[1]ACS_16_5YR_B18106_with_ann!BQ$2","v":"Margin of Error Total: Female: 75 years and over: No self-care difficulty"}]
["0600000US3301900259",3301900259,"060","Acworth",{"$f":"[1]ACS_16_5YR_B18106_with_ann!D258","v":869},{"$f":"[1]ACS_16_5YR_B18106_with_ann!E258","v":133},{"$f":"[1]ACS_16_5YR_B18106_with_ann!F258","v":466},{"$f":"[1]ACS_16_5YR_B18106_with_ann!G258","v":81},{"$f":"[1]ACS_16_5YR_B18106_with_ann!H258","v":34},{"$f":"[1]ACS_16_5YR_B18106_with_ann!I258","v":23},{"$f":"[1]ACS_16_5YR_B18106_with_ann!J258","v":0},{"$f":"[1]ACS_16_5YR_B18106_with_ann!K258","v":11},{"$f":"[1]ACS_16_5YR_B18106_with_ann!L258","v":34},{"$f":"[1]ACS_16_5YR_B18106_with_ann!M258","v":23},{"$f":"[1]ACS_16_5YR_B18106_with_ann!N258","v":79},{"$f":"[1]ACS_16_5YR_B18106_with_ann!O258","v":38},{"$f":"[1]ACS_16_5YR_B18106_with_ann!P258","v":9},{"$f":"[1]ACS_16_5YR_B18106_with_ann!Q258","v":14},{"$f":"[1]ACS_16_5YR_B18106_with_ann!R258","v":70},{"$f":"[1]ACS_16_5YR_B18106_with_ann!S258","v":37},{"$f":"[1]ACS_16_5YR_B18106_with_ann!T258","v":213},{"$f":"[1]ACS_16_5YR_B18106_with_ann!U258","v":48},{"$f":"[1]ACS_16_5YR_B18106_with_ann!V258","v":0},{"$f":"[1]ACS_16_5YR_B18106_with_ann!W258","v":11},{"$f":"[1]ACS_16_5YR_B18106_with_ann!X258","v":213},{"$f":"[1]ACS_16_5YR_B18106_with_ann!Y258","v":48},{"$f":"[1]ACS_16_5YR_B18106_with_ann!Z258","v":88},{"$f":"[1]ACS_16_5YR_B18106_with_ann!AA258","v":27},{"$f":"[1]ACS_16_5YR_B18106_with_ann!AB258","v":2},{"$f":"[1]ACS_16_5YR_B18106_with_ann!AC258","v":4},{"$f":"[1]ACS_16_5YR_B18106_with_ann!AD258","v":86},{"$f":"[1]ACS_16_5YR_B18106_with_ann!AE258","v":27},{"$f":"[1]ACS_16_5YR_B18106_with_ann!AF258","v":52},{"$f":"[1]ACS_16_5YR_B18106_with_ann!AG258","v":23},{"$f":"[1]ACS_16_5YR_B18106_with_ann!AH258","v":6},{"$f":"[1]ACS_16_5YR_B18106_with_ann!AI258","v":10},{"$f":"[1]ACS_16_5YR_B18106_with_ann!AJ258","v":46},{"$f":"[1]ACS_16_5YR_B18106_with_ann!AK258","v":21},{"$f":"[1]ACS_16_5YR_B18106_with_ann!AL258","v":403},{"$f":"[1]ACS_16_5YR_B18106_with_ann!AM258","v":70},{"$f":"[1]ACS_16_5YR_B18106_with_ann!AN258","v":24},{"$f":"[1]ACS_16_5YR_B18106_with_ann!AO258","v":18},{"$f":"[1]ACS_16_5YR_B18106_with_ann!AP258","v":0},{"$f":"[1]ACS_16_5YR_B18106_with_ann!AQ258","v":11},{"$f":"[1]ACS_16_5YR_B18106_with_ann!AR258","v":24},{"$f":"[1]ACS_16_5YR_B18106_with_ann!AS258","v":18},{"$f":"[1]ACS_16_5YR_B18106_with_ann!AT258","v":47},{"$f":"[1]ACS_16_5YR_B18106_with_ann!AU258","v":25},{"$f":"[1]ACS_16_5YR_B18106_with_ann!AV258","v":0},{"$f":"[1]ACS_16_5YR_B18106_with_ann!AW258","v":11},{"$f":"[1]ACS_16_5YR_B18106_with_ann!AX258","v":47},{"$f":"[1]ACS_16_5YR_B18106_with_ann!AY258","v":25},{"$f":"[1]ACS_16_5YR_B18106_with_ann!AZ258","v":190},{"$f":"[1]ACS_16_5YR_B18106_with_ann!BA258","v":46},{"$f":"[1]ACS_16_5YR_B18106_with_ann!BB258","v":0},{"$f":"[1]ACS_16_5YR_B18106_with_ann!BC258","v":11},{"$f":"[1]ACS_16_5YR_B18106_with_ann!BD258","v":190},{"$f":"[1]ACS_16_5YR_B18106_with_ann!BE258","v":46},{"$f":"[1]ACS_16_5YR_B18106_with_ann!BF258","v":117},{"$f":"[1]ACS_16_5YR_B18106_with_ann!BG258","v":42},{"$f":"[1]ACS_16_5YR_B18106_with_ann!BH258","v":2},{"$f":"[1]ACS_16_5YR_B18106_with_ann!BI258","v":4},{"$f":"[1]ACS_16_5YR_B18106_with_ann!BJ258","v":115},{"$f":"[1]ACS_16_5YR_B18106_with_ann!BK258","v":42},{"$f":"[1]ACS_16_5YR_B18106_with_ann!BL258","v":25},{"$f":"[1]ACS_16_5YR_B18106_with_ann!BM258","v":14},{"$f":"[1]ACS_16_5YR_B18106_with_ann!BN258","v":0},{"$f":"[1]ACS_16_5YR_B18106_with_ann!BO258","v":11},{"$f":"[1]ACS_16_5YR_B18106_with_ann!BP258","v":25},{"$f":"[1]ACS_16_5YR_B18106_with_ann!BQ258","v":14}]
["0600000US3301911380",3301911380,"060","Charlestown",{"$f":"[1]ACS_16_5YR_B18106_with_ann!D259","v":4707},{"$f":"[1]ACS_16_5YR_B18106_with_ann!E259","v":114},{"$f":"[1]ACS_16_5YR_B18106_with_ann!F259","v":2325},{"$f":"[1]ACS_16_5YR_B18106_with_ann!G259","v":195},{"$f":"[1]ACS_16_5YR_B18106_with_ann!H259","v":250},{"$f":"[1]ACS_16_5YR_B18106_with_ann!I259","v":103},{"$f":"[1]ACS_16_5YR_B18106_with_ann!J259","v":0},{"$f":"[1]ACS_16_5YR_B18106_with_ann!K259","v":16},{"$f":"[1]ACS_16_5YR_B18106_with_ann!L259","v":250},{"$f":"[1]ACS_16_5YR_B18106_with_ann!M259","v":103},{"$f":"[1]ACS_16_5YR_B18106_with_ann!N259","v":490},{"$f":"[1]ACS_16_5YR_B18106_with_ann!O259","v":144},{"$f":"[1]ACS_16_5YR_B18106_with_ann!P259","v":0},{"$f":"[1]ACS_16_5YR_B18106_with_ann!Q259","v":16},{"$f":"[1]ACS_16_5YR_B18106_with_ann!R259","v":490},{"$f":"[1]ACS_16_5YR_B18106_with_ann!S259","v":144},{"$f":"[1]ACS_16_5YR_B18106_with_ann!T259","v":1034},{"$f":"[1]ACS_16_5YR_B18106_with_ann!U259","v":172},{"$f":"[1]ACS_16_5YR_B18106_with_ann!V259","v":71},{"$f":"[1]ACS_16_5YR_B18106_with_ann!W259","v":86},{"$f":"[1]ACS_16_5YR_B18106_with_ann!X259","v":963},{"$f":"[1]ACS_16_5YR_B18106_with_ann!Y259","v":153},{"$f":"[1]ACS_16_5YR_B18106_with_ann!Z259","v":261},{"$f":"[1]ACS_16_5YR_B18106_with_ann!AA259","v":94},{"$f":"[1]ACS_16_5YR_B18106_with_ann!AB259","v":0},{"$f":"[1]ACS_16_5YR_B18106_with_ann!AC259","v":16},{"$f":"[1]ACS_16_5YR_B18106_with_ann!AD259","v":261},{"$f":"[1]ACS_16_5YR_B18106_with_ann!AE259","v":94},{"$f":"[1]ACS_16_5YR_B18106_with_ann!AF259","v":290},{"$f":"[1]ACS_16_5YR_B18106_with_ann!AG259","v":141},{"$f":"[1]ACS_16_5YR_B18106_with_ann!AH259","v":32},{"$f":"[1]ACS_16_5YR_B18106_with_ann!AI259","v":36},{"$f":"[1]ACS_16_5YR_B18106_with_ann!AJ259","v":258},{"$f":"[1]ACS_16_5YR_B18106_with_ann!AK259","v":142},{"$f":"[1]ACS_16_5YR_B18106_with_ann!AL259","v":2382},{"$f":"[1]ACS_16_5YR_B18106_with_ann!AM259","v":208},{"$f":"[1]ACS_16_5YR_B18106_with_ann!AN259","v":420},{"$f":"[1]ACS_16_5YR_B18106_with_ann!AO259","v":147},{"$f":"[1]ACS_16_5YR_B18106_with_ann!AP259","v":31},{"$f":"[1]ACS_16_5YR_B18106_with_ann!AQ259","v":41},{"$f":"[1]ACS_16_5YR_B18106_with_ann!AR259","v":389},{"$f":"[1]ACS_16_5YR_B18106_with_ann!AS259","v":144},{"$f":"[1]ACS_16_5YR_B18106_with_ann!AT259","v":357},{"$f":"[1]ACS_16_5YR_B18106_with_ann!AU259","v":108},{"$f":"[1]ACS_16_5YR_B18106_with_ann!AV259","v":0},{"$f":"[1]ACS_16_5YR_B18106_with_ann!AW259","v":16},{"$f":"[1]ACS_16_5YR_B18106_with_ann!AX259","v":357},{"$f":"[1]ACS_16_5YR_B18106_with_ann!AY259","v":108},{"$f":"[1]ACS_16_5YR_B18106_with_ann!AZ259","v":1080},{"$f":"[1]ACS_16_5YR_B18106_with_ann!BA259","v":163},{"$f":"[1]ACS_16_5YR_B18106_with_ann!BB259","v":54},{"$f":"[1]ACS_16_5YR_B18106_with_ann!BC259","v":68},{"$f":"[1]ACS_16_5YR_B18106_with_ann!BD259","v":1026},{"$f":"[1]ACS_16_5YR_B18106_with_ann!BE259","v":171},{"$f":"[1]ACS_16_5YR_B18106_with_ann!BF259","v":296},{"$f":"[1]ACS_16_5YR_B18106_with_ann!BG259","v":120},{"$f":"[1]ACS_16_5YR_B18106_with_ann!BH259","v":0},{"$f":"[1]ACS_16_5YR_B18106_with_ann!BI259","v":16},{"$f":"[1]ACS_16_5YR_B18106_with_ann!BJ259","v":296},{"$f":"[1]ACS_16_5YR_B18106_with_ann!BK259","v":120},{"$f":"[1]ACS_16_5YR_B18106_with_ann!BL259","v":229},{"$f":"[1]ACS_16_5YR_B18106_with_ann!BM259","v":88},{"$f":"[1]ACS_16_5YR_B18106_with_ann!BN259","v":17},{"$f":"[1]ACS_16_5YR_B18106_with_ann!BO259","v":28},{"$f":"[1]ACS_16_5YR_B18106_with_ann!BP259","v":212},{"$f":"[1]ACS_16_5YR_B18106_with_ann!BQ259","v":89}]
["0600000US3301912900",3301912900,"060","Claremont",{"$f":"[1]ACS_16_5YR_B18106_with_ann!D260","v":12046},{"$f":"[1]ACS_16_5YR_B18106_with_ann!E260","v":169},{"$f":"[1]ACS_16_5YR_B18106_with_ann!F260","v":5872},{"$f":"[1]ACS_16_5YR_B18106_with_ann!G260","v":297},{"$f":"[1]ACS_16_5YR_B18106_with_ann!H260","v":902},{"$f":"[1]ACS_16_5YR_B18106_with_ann!I260","v":164},{"$f":"[1]ACS_16_5YR_B18106_with_ann!J260","v":23},{"$f":"[1]ACS_16_5YR_B18106_with_ann!K260","v":30},{"$f":"[1]ACS_16_5YR_B18106_with_ann!L260","v":879},{"$f":"[1]ACS_16_5YR_B18106_with_ann!M260","v":160},{"$f":"[1]ACS_16_5YR_B18106_with_ann!N260","v":1622},{"$f":"[1]ACS_16_5YR_B18106_with_ann!O260","v":255},{"$f":"[1]ACS_16_5YR_B18106_with_ann!P260","v":0},{"$f":"[1]ACS_16_5YR_B18106_with_ann!Q260","v":18},{"$f":"[1]ACS_16_5YR_B18106_with_ann!R260","v":1622},{"$f":"[1]ACS_16_5YR_B18106_with_ann!S260","v":255},{"$f":"[1]ACS_16_5YR_B18106_with_ann!T260","v":2416},{"$f":"[1]ACS_16_5YR_B18106_with_ann!U260","v":184},{"$f":"[1]ACS_16_5YR_B18106_with_ann!V260","v":138},{"$f":"[1]ACS_16_5YR_B18106_with_ann!W260","v":79},{"$f":"[1]ACS_16_5YR_B18106_with_ann!X260","v":2278},{"$f":"[1]ACS_16_5YR_B18106_with_ann!Y260","v":188},{"$f":"[1]ACS_16_5YR_B18106_with_ann!Z260","v":650},{"$f":"[1]ACS_16_5YR_B18106_with_ann!AA260","v":105},{"$f":"[1]ACS_16_5YR_B18106_with_ann!AB260","v":22},{"$f":"[1]ACS_16_5YR_B18106_with_ann!AC260","v":36},{"$f":"[1]ACS_16_5YR_B18106_with_ann!AD260","v":628},{"$f":"[1]ACS_16_5YR_B18106_with_ann!AE260","v":107},{"$f":"[1]ACS_16_5YR_B18106_with_ann!AF260","v":282},{"$f":"[1]ACS_16_5YR_B18106_with_ann!AG260","v":88},{"$f":"[1]ACS_16_5YR_B18106_with_ann!AH260","v":14},{"$f":"[1]ACS_16_5YR_B18106_with_ann!AI260","v":21},{"$f":"[1]ACS_16_5YR_B18106_with_ann!AJ260","v":268},{"$f":"[1]ACS_16_5YR_B18106_with_ann!AK260","v":85},{"$f":"[1]ACS_16_5YR_B18106_with_ann!AL260","v":6174},{"$f":"[1]ACS_16_5YR_B18106_with_ann!AM260","v":266},{"$f":"[1]ACS_16_5YR_B18106_with_ann!AN260","v":922},{"$f":"[1]ACS_16_5YR_B18106_with_ann!AO260","v":206},{"$f":"[1]ACS_16_5YR_B18106_with_ann!AP260","v":30},{"$f":"[1]ACS_16_5YR_B18106_with_ann!AQ260","v":38},{"$f":"[1]ACS_16_5YR_B18106_with_ann!AR260","v":892},{"$f":"[1]ACS_16_5YR_B18106_with_ann!AS260","v":203},{"$f":"[1]ACS_16_5YR_B18106_with_ann!AT260","v":1415},{"$f":"[1]ACS_16_5YR_B18106_with_ann!AU260","v":187},{"$f":"[1]ACS_16_5YR_B18106_with_ann!AV260","v":9},{"$f":"[1]ACS_16_5YR_B18106_with_ann!AW260","v":15},{"$f":"[1]ACS_16_5YR_B18106_with_ann!AX260","v":1406},{"$f":"[1]ACS_16_5YR_B18106_with_ann!AY260","v":184},{"$f":"[1]ACS_16_5YR_B18106_with_ann!AZ260","v":2460},{"$f":"[1]ACS_16_5YR_B18106_with_ann!BA260","v":217},{"$f":"[1]ACS_16_5YR_B18106_with_ann!BB260","v":14},{"$f":"[1]ACS_16_5YR_B18106_with_ann!BC260","v":21},{"$f":"[1]ACS_16_5YR_B18106_with_ann!BD260","v":2446},{"$f":"[1]ACS_16_5YR_B18106_with_ann!BE260","v":219},{"$f":"[1]ACS_16_5YR_B18106_with_ann!BF260","v":755},{"$f":"[1]ACS_16_5YR_B18106_with_ann!BG260","v":152},{"$f":"[1]ACS_16_5YR_B18106_with_ann!BH260","v":93},{"$f":"[1]ACS_16_5YR_B18106_with_ann!BI260","v":102},{"$f":"[1]ACS_16_5YR_B18106_with_ann!BJ260","v":662},{"$f":"[1]ACS_16_5YR_B18106_with_ann!BK260","v":145},{"$f":"[1]ACS_16_5YR_B18106_with_ann!BL260","v":622},{"$f":"[1]ACS_16_5YR_B18106_with_ann!BM260","v":128},{"$f":"[1]ACS_16_5YR_B18106_with_ann!BN260","v":47},{"$f":"[1]ACS_16_5YR_B18106_with_ann!BO260","v":53},{"$f":"[1]ACS_16_5YR_B18106_with_ann!BP260","v":575},{"$f":"[1]ACS_16_5YR_B18106_with_ann!BQ260","v":122}]
["0600000US3301915060",3301915060,"060","Cornish",{"$f":"[1]ACS_16_5YR_B18106_with_ann!D261","v":1722},{"$f":"[1]ACS_16_5YR_B18106_with_ann!E261","v":218},{"$f":"[1]ACS_16_5YR_B18106_with_ann!F261","v":887},{"$f":"[1]ACS_16_5YR_B18106_with_ann!G261","v":151},{"$f":"[1]ACS_16_5YR_B18106_with_ann!H261","v":169},{"$f":"[1]ACS_16_5YR_B18106_with_ann!I261","v":107},{"$f":"[1]ACS_16_5YR_B18106_with_ann!J261","v":0},{"$f":"[1]ACS_16_5YR_B18106_with_ann!K261","v":11},{"$f":"[1]ACS_16_5YR_B18106_with_ann!L261","v":169},{"$f":"[1]ACS_16_5YR_B18106_with_ann!M261","v":107},{"$f":"[1]ACS_16_5YR_B18106_with_ann!N261","v":95},{"$f":"[1]ACS_16_5YR_B18106_with_ann!O261","v":28},{"$f":"[1]ACS_16_5YR_B18106_with_ann!P261","v":0},{"$f":"[1]ACS_16_5YR_B18106_with_ann!Q261","v":11},{"$f":"[1]ACS_16_5YR_B18106_with_ann!R261","v":95},{"$f":"[1]ACS_16_5YR_B18106_with_ann!S261","v":28},{"$f":"[1]ACS_16_5YR_B18106_with_ann!T261","v":367},{"$f":"[1]ACS_16_5YR_B18106_with_ann!U261","v":53},{"$f":"[1]ACS_16_5YR_B18106_with_ann!V261","v":0},{"$f":"[1]ACS_16_5YR_B18106_with_ann!W261","v":11},{"$f":"[1]ACS_16_5YR_B18106_with_ann!X261","v":367},{"$f":"[1]ACS_16_5YR_B18106_with_ann!Y261","v":53},{"$f":"[1]ACS_16_5YR_B18106_with_ann!Z261","v":190},{"$f":"[1]ACS_16_5YR_B18106_with_ann!AA261","v":51},{"$f":"[1]ACS_16_5YR_B18106_with_ann!AB261","v":0},{"$f":"[1]ACS_16_5YR_B18106_with_ann!AC261","v":11},{"$f":"[1]ACS_16_5YR_B18106_with_ann!AD261","v":190},{"$f":"[1]ACS_16_5YR_B18106_with_ann!AE261","v":51},{"$f":"[1]ACS_16_5YR_B18106_with_ann!AF261","v":66},{"$f":"[1]ACS_16_5YR_B18106_with_ann!AG261","v":32},{"$f":"[1]ACS_16_5YR_B18106_with_ann!AH261","v":0},{"$f":"[1]ACS_16_5YR_B18106_with_ann!AI261","v":11},{"$f":"[1]ACS_16_5YR_B18106_with_ann!AJ261","v":66},{"$f":"[1]ACS_16_5YR_B18106_with_ann!AK261","v":32},{"$f":"[1]ACS_16_5YR_B18106_with_ann!AL261","v":835},{"$f":"[1]ACS_16_5YR_B18106_with_ann!AM261","v":101},{"$f":"[1]ACS_16_5YR_B18106_with_ann!AN261","v":119},{"$f":"[1]ACS_16_5YR_B18106_with_ann!AO261","v":46},{"$f":"[1]ACS_16_5YR_B18106_with_ann!AP261","v":0},{"$f":"[1]ACS_16_5YR_B18106_with_ann!AQ261","v":11},{"$f":"[1]ACS_16_5YR_B18106_with_ann!AR261","v":119},{"$f":"[1]ACS_16_5YR_B18106_with_ann!AS261","v":46},{"$f":"[1]ACS_16_5YR_B18106_with_ann!AT261","v":78},{"$f":"[1]ACS_16_5YR_B18106_with_ann!AU261","v":27},{"$f":"[1]ACS_16_5YR_B18106_with_ann!AV261","v":0},{"$f":"[1]ACS_16_5YR_B18106_with_ann!AW261","v":11},{"$f":"[1]ACS_16_5YR_B18106_with_ann!AX261","v":78},{"$f":"[1]ACS_16_5YR_B18106_with_ann!AY261","v":27},{"$f":"[1]ACS_16_5YR_B18106_with_ann!AZ261","v":380},{"$f":"[1]ACS_16_5YR_B18106_with_ann!BA261","v":59},{"$f":"[1]ACS_16_5YR_B18106_with_ann!BB261","v":0},{"$f":"[1]ACS_16_5YR_B18106_with_ann!BC261","v":11},{"$f":"[1]ACS_16_5YR_B18106_with_ann!BD261","v":380},{"$f":"[1]ACS_16_5YR_B18106_with_ann!BE261","v":59},{"$f":"[1]ACS_16_5YR_B18106_with_ann!BF262","v":49},{"$f":"[1]ACS_16_5YR_B18106_with_ann!BG262","v":24},{"$f":"[1]ACS_16_5YR_B18106_with_ann!BH262","v":0},{"$f":"[1]ACS_16_5YR_B18106_with_ann!BI262","v":11},{"$f":"[1]ACS_16_5YR_B18106_with_ann!BJ262","v":49},{"$f":"[1]ACS_16_5YR_B18106_with_ann!BK262","v":24},{"$f":"[1]ACS_16_5YR_B18106_with_ann!BL262","v":21},{"$f":"[1]ACS_16_5YR_B18106_with_ann!BM262","v":12},{"$f":"[1]ACS_16_5YR_B18106_with_ann!BN262","v":0},{"$f":"[1]ACS_16_5YR_B18106_with_ann!BO262","v":11},{"$f":"[1]ACS_16_5YR_B18106_with_ann!BP262","v":21},{"$f":"[1]ACS_16_5YR_B18106_with_ann!BQ262","v":12}]
["0600000US3301916340",3301916340,"060","Croydon",{"$f":"[1]ACS_16_5YR_B18106_with_ann!D262","v":840},{"$f":"[1]ACS_16_5YR_B18106_with_ann!E262","v":240},{"$f":"[1]ACS_16_5YR_B18106_with_ann!F262","v":412},{"$f":"[1]ACS_16_5YR_B18106_with_ann!G262","v":108},{"$f":"[1]ACS_16_5YR_B18106_with_ann!H262","v":56},{"$f":"[1]ACS_16_5YR_B18106_with_ann!I262","v":37},{"$f":"[1]ACS_16_5YR_B18106_with_ann!J262","v":0},{"$f":"[1]ACS_16_5YR_B18106_with_ann!K262","v":11},{"$f":"[1]ACS_16_5YR_B18106_with_ann!L262","v":56},{"$f":"[1]ACS_16_5YR_B18106_with_ann!M262","v":37},{"$f":"[1]ACS_16_5YR_B18106_with_ann!N262","v":87},{"$f":"[1]ACS_16_5YR_B18106_with_ann!O262","v":47},{"$f":"[1]ACS_16_5YR_B18106_with_ann!P262","v":2},{"$f":"[1]ACS_16_5YR_B18106_with_ann!Q262","v":4},{"$f":"[1]ACS_16_5YR_B18106_with_ann!R262","v":85},{"$f":"[1]ACS_16_5YR_B18106_with_ann!S262","v":46},{"$f":"[1]ACS_16_5YR_B18106_with_ann!T262","v":198},{"$f":"[1]ACS_16_5YR_B18106_with_ann!U262","v":60},{"$f":"[1]ACS_16_5YR_B18106_with_ann!V262","v":0},{"$f":"[1]ACS_16_5YR_B18106_with_ann!W262","v":11},{"$f":"[1]ACS_16_5YR_B18106_with_ann!X262","v":198},{"$f":"[1]ACS_16_5YR_B18106_with_ann!Y262","v":60},{"$f":"[1]ACS_16_5YR_B18106_with_ann!Z262","v":38},{"$f":"[1]ACS_16_5YR_B18106_with_ann!AA262","v":22},{"$f":"[1]ACS_16_5YR_B18106_with_ann!AB262","v":2},{"$f":"[1]ACS_16_5YR_B18106_with_ann!AC262","v":4},{"$f":"[1]ACS_16_5YR_B18106_with_ann!AD262","v":36},{"$f":"[1]ACS_16_5YR_B18106_with_ann!AE262","v":21},{"$f":"[1]ACS_16_5YR_B18106_with_ann!AF262","v":33},{"$f":"[1]ACS_16_5YR_B18106_with_ann!AG262","v":16},{"$f":"[1]ACS_16_5YR_B18106_with_ann!AH262","v":2},{"$f":"[1]ACS_16_5YR_B18106_with_ann!AI262","v":3},{"$f":"[1]ACS_16_5YR_B18106_with_ann!AJ262","v":31},{"$f":"[1]ACS_16_5YR_B18106_with_ann!AK262","v":16},{"$f":"[1]ACS_16_5YR_B18106_with_ann!AL262","v":428},{"$f":"[1]ACS_16_5YR_B18106_with_ann!AM262","v":154},{"$f":"[1]ACS_16_5YR_B18106_with_ann!AN262","v":65},{"$f":"[1]ACS_16_5YR_B18106_with_ann!AO262","v":34},{"$f":"[1]ACS_16_5YR_B18106_with_ann!AP262","v":0},{"$f":"[1]ACS_16_5YR_B18106_with_ann!AQ262","v":11},{"$f":"[1]ACS_16_5YR_B18106_with_ann!AR262","v":65},{"$f":"[1]ACS_16_5YR_B18106_with_ann!AS262","v":34},{"$f":"[1]ACS_16_5YR_B18106_with_ann!AT262","v":124},{"$f":"[1]ACS_16_5YR_B18106_with_ann!AU262","v":96},{"$f":"[1]ACS_16_5YR_B18106_with_ann!AV262","v":0},{"$f":"[1]ACS_16_5YR_B18106_with_ann!AW262","v":11},{"$f":"[1]ACS_16_5YR_B18106_with_ann!AX262","v":124},{"$f":"[1]ACS_16_5YR_B18106_with_ann!AY262","v":96},{"$f":"[1]ACS_16_5YR_B18106_with_ann!AZ262","v":169},{"$f":"[1]ACS_16_5YR_B18106_with_ann!BA262","v":53},{"$f":"[1]ACS_16_5YR_B18106_with_ann!BB262","v":2},{"$f":"[1]ACS_16_5YR_B18106_with_ann!BC262","v":3},{"$f":"[1]ACS_16_5YR_B18106_with_ann!BD262","v":167},{"$f":"[1]ACS_16_5YR_B18106_with_ann!BE262","v":53},{"$f":"[1]ACS_16_5YR_B18106_with_ann!BF263","v":49},{"$f":"[1]ACS_16_5YR_B18106_with_ann!BG263","v":21},{"$f":"[1]ACS_16_5YR_B18106_with_ann!BH263","v":2},{"$f":"[1]ACS_16_5YR_B18106_with_ann!BI263","v":4},{"$f":"[1]ACS_16_5YR_B18106_with_ann!BJ263","v":47},{"$f":"[1]ACS_16_5YR_B18106_with_ann!BK263","v":20},{"$f":"[1]ACS_16_5YR_B18106_with_ann!BL263","v":29},{"$f":"[1]ACS_16_5YR_B18106_with_ann!BM263","v":13},{"$f":"[1]ACS_16_5YR_B18106_with_ann!BN263","v":0},{"$f":"[1]ACS_16_5YR_B18106_with_ann!BO263","v":11},{"$f":"[1]ACS_16_5YR_B18106_with_ann!BP263","v":29},{"$f":"[1]ACS_16_5YR_B18106_with_ann!BQ263","v":13}]
["0600000US3301930500",3301930500,"060","Goshen",{"$f":"[1]ACS_16_5YR_B18106_with_ann!D263","v":641},{"$f":"[1]ACS_16_5YR_B18106_with_ann!E263","v":102},{"$f":"[1]ACS_16_5YR_B18106_with_ann!F263","v":328},{"$f":"[1]ACS_16_5YR_B18106_with_ann!G263","v":66},{"$f":"[1]ACS_16_5YR_B18106_with_ann!H263","v":49},{"$f":"[1]ACS_16_5YR_B18106_with_ann!I263","v":27},{"$f":"[1]ACS_16_5YR_B18106_with_ann!J263","v":2},{"$f":"[1]ACS_16_5YR_B18106_with_ann!K263","v":3},{"$f":"[1]ACS_16_5YR_B18106_with_ann!L263","v":47},{"$f":"[1]ACS_16_5YR_B18106_with_ann!M263","v":27},{"$f":"[1]ACS_16_5YR_B18106_with_ann!N263","v":43},{"$f":"[1]ACS_16_5YR_B18106_with_ann!O263","v":21},{"$f":"[1]ACS_16_5YR_B18106_with_ann!P263","v":0},{"$f":"[1]ACS_16_5YR_B18106_with_ann!Q263","v":11},{"$f":"[1]ACS_16_5YR_B18106_with_ann!R263","v":43},{"$f":"[1]ACS_16_5YR_B18106_with_ann!S263","v":21},{"$f":"[1]ACS_16_5YR_B18106_with_ann!T263","v":157},{"$f":"[1]ACS_16_5YR_B18106_with_ann!U263","v":41},{"$f":"[1]ACS_16_5YR_B18106_with_ann!V263","v":2},{"$f":"[1]ACS_16_5YR_B18106_with_ann!W263","v":3},{"$f":"[1]ACS_16_5YR_B18106_with_ann!X263","v":155},{"$f":"[1]ACS_16_5YR_B18106_with_ann!Y263","v":41},{"$f":"[1]ACS_16_5YR_B18106_with_ann!Z263","v":59},{"$f":"[1]ACS_16_5YR_B18106_with_ann!AA263","v":26},{"$f":"[1]ACS_16_5YR_B18106_with_ann!AB263","v":2},{"$f":"[1]ACS_16_5YR_B18106_with_ann!AC263","v":3},{"$f":"[1]ACS_16_5YR_B18106_with_ann!AD263","v":57},{"$f":"[1]ACS_16_5YR_B18106_with_ann!AE263","v":25},{"$f":"[1]ACS_16_5YR_B18106_with_ann!AF263","v":20},{"$f":"[1]ACS_16_5YR_B18106_with_ann!AG263","v":14},{"$f":"[1]ACS_16_5YR_B18106_with_ann!AH263","v":0},{"$f":"[1]ACS_16_5YR_B18106_with_ann!AI263","v":11},{"$f":"[1]ACS_16_5YR_B18106_with_ann!AJ263","v":20},{"$f":"[1]ACS_16_5YR_B18106_with_ann!AK263","v":14},{"$f":"[1]ACS_16_5YR_B18106_with_ann!AL263","v":313},{"$f":"[1]ACS_16_5YR_B18106_with_ann!AM263","v":53},{"$f":"[1]ACS_16_5YR_B18106_with_ann!AN263","v":49},{"$f":"[1]ACS_16_5YR_B18106_with_ann!AO263","v":25},{"$f":"[1]ACS_16_5YR_B18106_with_ann!AP263","v":0},{"$f":"[1]ACS_16_5YR_B18106_with_ann!AQ263","v":11},{"$f":"[1]ACS_16_5YR_B18106_with_ann!AR263","v":49},{"$f":"[1]ACS_16_5YR_B18106_with_ann!AS263","v":25},{"$f":"[1]ACS_16_5YR_B18106_with_ann!AT263","v":69},{"$f":"[1]ACS_16_5YR_B18106_with_ann!AU263","v":34},{"$f":"[1]ACS_16_5YR_B18106_with_ann!AV263","v":0},{"$f":"[1]ACS_16_5YR_B18106_with_ann!AW263","v":11},{"$f":"[1]ACS_16_5YR_B18106_with_ann!AX263","v":69},{"$f":"[1]ACS_16_5YR_B18106_with_ann!AY263","v":34},{"$f":"[1]ACS_16_5YR_B18106_with_ann!AZ263","v":117},{"$f":"[1]ACS_16_5YR_B18106_with_ann!BA263","v":33},{"$f":"[1]ACS_16_5YR_B18106_with_ann!BB263","v":0},{"$f":"[1]ACS_16_5YR_B18106_with_ann!BC263","v":11},{"$f":"[1]ACS_16_5YR_B18106_with_ann!BD263","v":117},{"$f":"[1]ACS_16_5YR_B18106_with_ann!BE263","v":33},{"$f":"[1]ACS_16_5YR_B18106_with_ann!BF264","v":139},{"$f":"[1]ACS_16_5YR_B18106_with_ann!BG264","v":53},{"$f":"[1]ACS_16_5YR_B18106_with_ann!BH264","v":0},{"$f":"[1]ACS_16_5YR_B18106_with_ann!BI264","v":11},{"$f":"[1]ACS_16_5YR_B18106_with_ann!BJ264","v":139},{"$f":"[1]ACS_16_5YR_B18106_with_ann!BK264","v":53},{"$f":"[1]ACS_16_5YR_B18106_with_ann!BL264","v":164},{"$f":"[1]ACS_16_5YR_B18106_with_ann!BM264","v":75},{"$f":"[1]ACS_16_5YR_B18106_with_ann!BN264","v":0},{"$f":"[1]ACS_16_5YR_B18106_with_ann!BO264","v":11},{"$f":"[1]ACS_16_5YR_B18106_with_ann!BP264","v":164},{"$f":"[1]ACS_16_5YR_B18106_with_ann!BQ264","v":75}]
["0600000US3301931220",3301931220,"060","Grantham",{"$f":"[1]ACS_16_5YR_B18106_with_ann!D264","v":2945},{"$f":"[1]ACS_16_5YR_B18106_with_ann!E264","v":14},{"$f":"[1]ACS_16_5YR_B18106_with_ann!F264","v":1382},{"$f":"[1]ACS_16_5YR_B18106_with_ann!G264","v":143},{"$f":"[1]ACS_16_5YR_B18106_with_ann!H264","v":271},{"$f":"[1]ACS_16_5YR_B18106_with_ann!I264","v":92},{"$f":"[1]ACS_16_5YR_B18106_with_ann!J264","v":41},{"$f":"[1]ACS_16_5YR_B18106_with_ann!K264","v":61},{"$f":"[1]ACS_16_5YR_B18106_with_ann!L264","v":230},{"$f":"[1]ACS_16_5YR_B18106_with_ann!M264","v":84},{"$f":"[1]ACS_16_5YR_B18106_with_ann!N264","v":148},{"$f":"[1]ACS_16_5YR_B18106_with_ann!O264","v":73},{"$f":"[1]ACS_16_5YR_B18106_with_ann!P264","v":0},{"$f":"[1]ACS_16_5YR_B18106_with_ann!Q264","v":11},{"$f":"[1]ACS_16_5YR_B18106_with_ann!R264","v":148},{"$f":"[1]ACS_16_5YR_B18106_with_ann!S264","v":73},{"$f":"[1]ACS_16_5YR_B18106_with_ann!T264","v":613},{"$f":"[1]ACS_16_5YR_B18106_with_ann!U264","v":124},{"$f":"[1]ACS_16_5YR_B18106_with_ann!V264","v":0},{"$f":"[1]ACS_16_5YR_B18106_with_ann!W264","v":11},{"$f":"[1]ACS_16_5YR_B18106_with_ann!X264","v":613},{"$f":"[1]ACS_16_5YR_B18106_with_ann!Y264","v":124},{"$f":"[1]ACS_16_5YR_B18106_with_ann!Z264","v":156},{"$f":"[1]ACS_16_5YR_B18106_with_ann!AA264","v":69},{"$f":"[1]ACS_16_5YR_B18106_with_ann!AB264","v":0},{"$f":"[1]ACS_16_5YR_B18106_with_ann!AC264","v":11},{"$f":"[1]ACS_16_5YR_B18106_with_ann!AD264","v":156},{"$f":"[1]ACS_16_5YR_B18106_with_ann!AE264","v":69},{"$f":"[1]ACS_16_5YR_B18106_with_ann!AF264","v":194},{"$f":"[1]ACS_16_5YR_B18106_with_ann!AG264","v":86},{"$f":"[1]ACS_16_5YR_B18106_with_ann!AH264","v":0},{"$f":"[1]ACS_16_5YR_B18106_with_ann!AI264","v":11},{"$f":"[1]ACS_16_5YR_B18106_with_ann!AJ264","v":194},{"$f":"[1]ACS_16_5YR_B18106_with_ann!AK264","v":86},{"$f":"[1]ACS_16_5YR_B18106_with_ann!AL264","v":1563},{"$f":"[1]ACS_16_5YR_B18106_with_ann!AM264","v":142},{"$f":"[1]ACS_16_5YR_B18106_with_ann!AN264","v":250},{"$f":"[1]ACS_16_5YR_B18106_with_ann!AO264","v":125},{"$f":"[1]ACS_16_5YR_B18106_with_ann!AP264","v":0},{"$f":"[1]ACS_16_5YR_B18106_with_ann!AQ264","v":11},{"$f":"[1]ACS_16_5YR_B18106_with_ann!AR264","v":250},{"$f":"[1]ACS_16_5YR_B18106_with_ann!AS264","v":125},{"$f":"[1]ACS_16_5YR_B18106_with_ann!AT264","v":114},{"$f":"[1]ACS_16_5YR_B18106_with_ann!AU264","v":98},{"$f":"[1]ACS_16_5YR_B18106_with_ann!AV264","v":0},{"$f":"[1]ACS_16_5YR_B18106_with_ann!AW264","v":11},{"$f":"[1]ACS_16_5YR_B18106_with_ann!AX264","v":114},{"$f":"[1]ACS_16_5YR_B18106_with_ann!AY264","v":98},{"$f":"[1]ACS_16_5YR_B18106_with_ann!AZ264","v":896},{"$f":"[1]ACS_16_5YR_B18106_with_ann!BA264","v":131},{"$f":"[1]ACS_16_5YR_B18106_with_ann!BB264","v":0},{"$f":"[1]ACS_16_5YR_B18106_with_ann!BC264","v":11},{"$f":"[1]ACS_16_5YR_B18106_with_ann!BD264","v":896},{"$f":"[1]ACS_16_5YR_B18106_with_ann!BE264","v":131},{"$f":"[1]ACS_16_5YR_B18106_with_ann!BF265","v":35},{"$f":"[1]ACS_16_5YR_B18106_with_ann!BG265","v":11},{"$f":"[1]ACS_16_5YR_B18106_with_ann!BH265","v":0},{"$f":"[1]ACS_16_5YR_B18106_with_ann!BI265","v":11},{"$f":"[1]ACS_16_5YR_B18106_with_ann!BJ265","v":35},{"$f":"[1]ACS_16_5YR_B18106_with_ann!BK265","v":11},{"$f":"[1]ACS_16_5YR_B18106_with_ann!BL265","v":15},{"$f":"[1]ACS_16_5YR_B18106_with_ann!BM265","v":8},{"$f":"[1]ACS_16_5YR_B18106_with_ann!BN265","v":0},{"$f":"[1]ACS_16_5YR_B18106_with_ann!BO265","v":11},{"$f":"[1]ACS_16_5YR_B18106_with_ann!BP265","v":15},{"$f":"[1]ACS_16_5YR_B18106_with_ann!BQ265","v":8}]
["0600000US3301940900",3301940900,"060","Langdon",{"$f":"[1]ACS_16_5YR_B18106_with_ann!D265","v":680},{"$f":"[1]ACS_16_5YR_B18106_with_ann!E265","v":139},{"$f":"[1]ACS_16_5YR_B18106_with_ann!F265","v":326},{"$f":"[1]ACS_16_5YR_B18106_with_ann!G265","v":83},{"$f":"[1]ACS_16_5YR_B18106_with_ann!H265","v":76},{"$f":"[1]ACS_16_5YR_B18106_with_ann!I265","v":46},{"$f":"[1]ACS_16_5YR_B18106_with_ann!J265","v":0},{"$f":"[1]ACS_16_5YR_B18106_with_ann!K265","v":11},{"$f":"[1]ACS_16_5YR_B18106_with_ann!L265","v":76},{"$f":"[1]ACS_16_5YR_B18106_with_ann!M265","v":46},{"$f":"[1]ACS_16_5YR_B18106_with_ann!N265","v":53},{"$f":"[1]ACS_16_5YR_B18106_with_ann!O265","v":27},{"$f":"[1]ACS_16_5YR_B18106_with_ann!P265","v":0},{"$f":"[1]ACS_16_5YR_B18106_with_ann!Q265","v":11},{"$f":"[1]ACS_16_5YR_B18106_with_ann!R265","v":53},{"$f":"[1]ACS_16_5YR_B18106_with_ann!S265","v":27},{"$f":"[1]ACS_16_5YR_B18106_with_ann!T265","v":143},{"$f":"[1]ACS_16_5YR_B18106_with_ann!U265","v":40},{"$f":"[1]ACS_16_5YR_B18106_with_ann!V265","v":0},{"$f":"[1]ACS_16_5YR_B18106_with_ann!W265","v":11},{"$f":"[1]ACS_16_5YR_B18106_with_ann!X265","v":143},{"$f":"[1]ACS_16_5YR_B18106_with_ann!Y265","v":40},{"$f":"[1]ACS_16_5YR_B18106_with_ann!Z265","v":39},{"$f":"[1]ACS_16_5YR_B18106_with_ann!AA265","v":14},{"$f":"[1]ACS_16_5YR_B18106_with_ann!AB265","v":2},{"$f":"[1]ACS_16_5YR_B18106_with_ann!AC265","v":3},{"$f":"[1]ACS_16_5YR_B18106_with_ann!AD265","v":37},{"$f":"[1]ACS_16_5YR_B18106_with_ann!AE265","v":14},{"$f":"[1]ACS_16_5YR_B18106_with_ann!AF265","v":15},{"$f":"[1]ACS_16_5YR_B18106_with_ann!AG265","v":9},{"$f":"[1]ACS_16_5YR_B18106_with_ann!AH265","v":0},{"$f":"[1]ACS_16_5YR_B18106_with_ann!AI265","v":11},{"$f":"[1]ACS_16_5YR_B18106_with_ann!AJ265","v":15},{"$f":"[1]ACS_16_5YR_B18106_with_ann!AK265","v":9},{"$f":"[1]ACS_16_5YR_B18106_with_ann!AL265","v":354},{"$f":"[1]ACS_16_5YR_B18106_with_ann!AM265","v":70},{"$f":"[1]ACS_16_5YR_B18106_with_ann!AN265","v":61},{"$f":"[1]ACS_16_5YR_B18106_with_ann!AO265","v":42},{"$f":"[1]ACS_16_5YR_B18106_with_ann!AP265","v":0},{"$f":"[1]ACS_16_5YR_B18106_with_ann!AQ265","v":11},{"$f":"[1]ACS_16_5YR_B18106_with_ann!AR265","v":61},{"$f":"[1]ACS_16_5YR_B18106_with_ann!AS265","v":42},{"$f":"[1]ACS_16_5YR_B18106_with_ann!AT265","v":69},{"$f":"[1]ACS_16_5YR_B18106_with_ann!AU265","v":25},{"$f":"[1]ACS_16_5YR_B18106_with_ann!AV265","v":0},{"$f":"[1]ACS_16_5YR_B18106_with_ann!AW265","v":11},{"$f":"[1]ACS_16_5YR_B18106_with_ann!AX265","v":69},{"$f":"[1]ACS_16_5YR_B18106_with_ann!AY265","v":25},{"$f":"[1]ACS_16_5YR_B18106_with_ann!AZ265","v":174},{"$f":"[1]ACS_16_5YR_B18106_with_ann!BA265","v":41},{"$f":"[1]ACS_16_5YR_B18106_with_ann!BB265","v":0},{"$f":"[1]ACS_16_5YR_B18106_with_ann!BC265","v":11},{"$f":"[1]ACS_16_5YR_B18106_with_ann!BD265","v":174},{"$f":"[1]ACS_16_5YR_B18106_with_ann!BE265","v":41},{"$f":"[1]ACS_16_5YR_B18106_with_ann!BF266","v":51},{"$f":"[1]ACS_16_5YR_B18106_with_ann!BG266","v":23},{"$f":"[1]ACS_16_5YR_B18106_with_ann!BH266","v":0},{"$f":"[1]ACS_16_5YR_B18106_with_ann!BI266","v":11},{"$f":"[1]ACS_16_5YR_B18106_with_ann!BJ266","v":51},{"$f":"[1]ACS_16_5YR_B18106_with_ann!BK266","v":23},{"$f":"[1]ACS_16_5YR_B18106_with_ann!BL266","v":39},{"$f":"[1]ACS_16_5YR_B18106_with_ann!BM266","v":26},{"$f":"[1]ACS_16_5YR_B18106_with_ann!BN266","v":0},{"$f":"[1]ACS_16_5YR_B18106_with_ann!BO266","v":11},{"$f":"[1]ACS_16_5YR_B18106_with_ann!BP266","v":39},{"$f":"[1]ACS_16_5YR_B18106_with_ann!BQ266","v":26}]
["0600000US3301941700",3301941700,"060","Lempster",{"$f":"[1]ACS_16_5YR_B18106_with_ann!D266","v":857},{"$f":"[1]ACS_16_5YR_B18106_with_ann!E266","v":153},{"$f":"[1]ACS_16_5YR_B18106_with_ann!F266","v":401},{"$f":"[1]ACS_16_5YR_B18106_with_ann!G266","v":68},{"$f":"[1]ACS_16_5YR_B18106_with_ann!H266","v":36},{"$f":"[1]ACS_16_5YR_B18106_with_ann!I266","v":23},{"$f":"[1]ACS_16_5YR_B18106_with_ann!J266","v":0},{"$f":"[1]ACS_16_5YR_B18106_with_ann!K266","v":11},{"$f":"[1]ACS_16_5YR_B18106_with_ann!L266","v":36},{"$f":"[1]ACS_16_5YR_B18106_with_ann!M266","v":23},{"$f":"[1]ACS_16_5YR_B18106_with_ann!N266","v":34},{"$f":"[1]ACS_16_5YR_B18106_with_ann!O266","v":16},{"$f":"[1]ACS_16_5YR_B18106_with_ann!P266","v":0},{"$f":"[1]ACS_16_5YR_B18106_with_ann!Q266","v":11},{"$f":"[1]ACS_16_5YR_B18106_with_ann!R266","v":34},{"$f":"[1]ACS_16_5YR_B18106_with_ann!S266","v":16},{"$f":"[1]ACS_16_5YR_B18106_with_ann!T266","v":249},{"$f":"[1]ACS_16_5YR_B18106_with_ann!U266","v":58},{"$f":"[1]ACS_16_5YR_B18106_with_ann!V266","v":0},{"$f":"[1]ACS_16_5YR_B18106_with_ann!W266","v":11},{"$f":"[1]ACS_16_5YR_B18106_with_ann!X266","v":249},{"$f":"[1]ACS_16_5YR_B18106_with_ann!Y266","v":58},{"$f":"[1]ACS_16_5YR_B18106_with_ann!Z266","v":68},{"$f":"[1]ACS_16_5YR_B18106_with_ann!AA266","v":28},{"$f":"[1]ACS_16_5YR_B18106_with_ann!AB266","v":0},{"$f":"[1]ACS_16_5YR_B18106_with_ann!AC266","v":11},{"$f":"[1]ACS_16_5YR_B18106_with_ann!AD266","v":68},{"$f":"[1]ACS_16_5YR_B18106_with_ann!AE266","v":28},{"$f":"[1]ACS_16_5YR_B18106_with_ann!AF266","v":14},{"$f":"[1]ACS_16_5YR_B18106_with_ann!AG266","v":11},{"$f":"[1]ACS_16_5YR_B18106_with_ann!AH266","v":0},{"$f":"[1]ACS_16_5YR_B18106_with_ann!AI266","v":11},{"$f":"[1]ACS_16_5YR_B18106_with_ann!AJ266","v":14},{"$f":"[1]ACS_16_5YR_B18106_with_ann!AK266","v":11},{"$f":"[1]ACS_16_5YR_B18106_with_ann!AL266","v":456},{"$f":"[1]ACS_16_5YR_B18106_with_ann!AM266","v":111},{"$f":"[1]ACS_16_5YR_B18106_with_ann!AN266","v":121},{"$f":"[1]ACS_16_5YR_B18106_with_ann!AO266","v":76},{"$f":"[1]ACS_16_5YR_B18106_with_ann!AP266","v":0},{"$f":"[1]ACS_16_5YR_B18106_with_ann!AQ266","v":11},{"$f":"[1]ACS_16_5YR_B18106_with_ann!AR266","v":121},{"$f":"[1]ACS_16_5YR_B18106_with_ann!AS266","v":76},{"$f":"[1]ACS_16_5YR_B18106_with_ann!AT266","v":54},{"$f":"[1]ACS_16_5YR_B18106_with_ann!AU266","v":24},{"$f":"[1]ACS_16_5YR_B18106_with_ann!AV266","v":0},{"$f":"[1]ACS_16_5YR_B18106_with_ann!AW266","v":11},{"$f":"[1]ACS_16_5YR_B18106_with_ann!AX266","v":54},{"$f":"[1]ACS_16_5YR_B18106_with_ann!AY266","v":24},{"$f":"[1]ACS_16_5YR_B18106_with_ann!AZ266","v":191},{"$f":"[1]ACS_16_5YR_B18106_with_ann!BA266","v":52},{"$f":"[1]ACS_16_5YR_B18106_with_ann!BB266","v":7},{"$f":"[1]ACS_16_5YR_B18106_with_ann!BC266","v":9},{"$f":"[1]ACS_16_5YR_B18106_with_ann!BD266","v":184},{"$f":"[1]ACS_16_5YR_B18106_with_ann!BE266","v":50},{"$f":"[1]ACS_16_5YR_B18106_with_ann!BF267","v":312},{"$f":"[1]ACS_16_5YR_B18106_with_ann!BG267","v":130},{"$f":"[1]ACS_16_5YR_B18106_with_ann!BH267","v":0},{"$f":"[1]ACS_16_5YR_B18106_with_ann!BI267","v":16},{"$f":"[1]ACS_16_5YR_B18106_with_ann!BJ267","v":312},{"$f":"[1]ACS_16_5YR_B18106_with_ann!BK267","v":130},{"$f":"[1]ACS_16_5YR_B18106_with_ann!BL267","v":285},{"$f":"[1]ACS_16_5YR_B18106_with_ann!BM267","v":103},{"$f":"[1]ACS_16_5YR_B18106_with_ann!BN267","v":52},{"$f":"[1]ACS_16_5YR_B18106_with_ann!BO267","v":67},{"$f":"[1]ACS_16_5YR_B18106_with_ann!BP267","v":233},{"$f":"[1]ACS_16_5YR_B18106_with_ann!BQ267","v":91}]
["0600000US3301952580",3301952580,"060","Newport",{"$f":"[1]ACS_16_5YR_B18106_with_ann!D267","v":5974},{"$f":"[1]ACS_16_5YR_B18106_with_ann!E267","v":123},{"$f":"[1]ACS_16_5YR_B18106_with_ann!F267","v":3045},{"$f":"[1]ACS_16_5YR_B18106_with_ann!G267","v":247},{"$f":"[1]ACS_16_5YR_B18106_with_ann!H267","v":507},{"$f":"[1]ACS_16_5YR_B18106_with_ann!I267","v":185},{"$f":"[1]ACS_16_5YR_B18106_with_ann!J267","v":0},{"$f":"[1]ACS_16_5YR_B18106_with_ann!K267","v":16},{"$f":"[1]ACS_16_5YR_B18106_with_ann!L267","v":507},{"$f":"[1]ACS_16_5YR_B18106_with_ann!M267","v":185},{"$f":"[1]ACS_16_5YR_B18106_with_ann!N267","v":754},{"$f":"[1]ACS_16_5YR_B18106_with_ann!O267","v":177},{"$f":"[1]ACS_16_5YR_B18106_with_ann!P267","v":34},{"$f":"[1]ACS_16_5YR_B18106_with_ann!Q267","v":52},{"$f":"[1]ACS_16_5YR_B18106_with_ann!R267","v":720},{"$f":"[1]ACS_16_5YR_B18106_with_ann!S267","v":179},{"$f":"[1]ACS_16_5YR_B18106_with_ann!T267","v":1262},{"$f":"[1]ACS_16_5YR_B18106_with_ann!U267","v":216},{"$f":"[1]ACS_16_5YR_B18106_with_ann!V267","v":78},{"$f":"[1]ACS_16_5YR_B18106_with_ann!W267","v":98},{"$f":"[1]ACS_16_5YR_B18106_with_ann!X267","v":1184},{"$f":"[1]ACS_16_5YR_B18106_with_ann!Y267","v":221},{"$f":"[1]ACS_16_5YR_B18106_with_ann!Z267","v":405},{"$f":"[1]ACS_16_5YR_B18106_with_ann!AA267","v":161},{"$f":"[1]ACS_16_5YR_B18106_with_ann!AB267","v":0},{"$f":"[1]ACS_16_5YR_B18106_with_ann!AC267","v":16},{"$f":"[1]ACS_16_5YR_B18106_with_ann!AD267","v":405},{"$f":"[1]ACS_16_5YR_B18106_with_ann!AE267","v":161},{"$f":"[1]ACS_16_5YR_B18106_with_ann!AF267","v":117},{"$f":"[1]ACS_16_5YR_B18106_with_ann!AG267","v":81},{"$f":"[1]ACS_16_5YR_B18106_with_ann!AH267","v":30},{"$f":"[1]ACS_16_5YR_B18106_with_ann!AI267","v":33},{"$f":"[1]ACS_16_5YR_B18106_with_ann!AJ267","v":87},{"$f":"[1]ACS_16_5YR_B18106_with_ann!AK267","v":74},{"$f":"[1]ACS_16_5YR_B18106_with_ann!AL267","v":2929},{"$f":"[1]ACS_16_5YR_B18106_with_ann!AM267","v":214},{"$f":"[1]ACS_16_5YR_B18106_with_ann!AN267","v":406},{"$f":"[1]ACS_16_5YR_B18106_with_ann!AO267","v":128},{"$f":"[1]ACS_16_5YR_B18106_with_ann!AP267","v":0},{"$f":"[1]ACS_16_5YR_B18106_with_ann!AQ267","v":16},{"$f":"[1]ACS_16_5YR_B18106_with_ann!AR267","v":406},{"$f":"[1]ACS_16_5YR_B18106_with_ann!AS267","v":128},{"$f":"[1]ACS_16_5YR_B18106_with_ann!AT267","v":520},{"$f":"[1]ACS_16_5YR_B18106_with_ann!AU267","v":162},{"$f":"[1]ACS_16_5YR_B18106_with_ann!AV267","v":0},{"$f":"[1]ACS_16_5YR_B18106_with_ann!AW267","v":16},{"$f":"[1]ACS_16_5YR_B18106_with_ann!AX267","v":520},{"$f":"[1]ACS_16_5YR_B18106_with_ann!AY267","v":162},{"$f":"[1]ACS_16_5YR_B18106_with_ann!AZ267","v":1406},{"$f":"[1]ACS_16_5YR_B18106_with_ann!BA267","v":188},{"$f":"[1]ACS_16_5YR_B18106_with_ann!BB267","v":11},{"$f":"[1]ACS_16_5YR_B18106_with_ann!BC267","v":17},{"$f":"[1]ACS_16_5YR_B18106_with_ann!BD267","v":1395},{"$f":"[1]ACS_16_5YR_B18106_with_ann!BE267","v":190},{"$f":"[1]ACS_16_5YR_B18106_with_ann!BF268","v":181},{"$f":"[1]ACS_16_5YR_B18106_with_ann!BG268","v":56},{"$f":"[1]ACS_16_5YR_B18106_with_ann!BH268","v":21},{"$f":"[1]ACS_16_5YR_B18106_with_ann!BI268","v":27},{"$f":"[1]ACS_16_5YR_B18106_with_ann!BJ268","v":160},{"$f":"[1]ACS_16_5YR_B18106_with_ann!BK268","v":53},{"$f":"[1]ACS_16_5YR_B18106_with_ann!BL268","v":60},{"$f":"[1]ACS_16_5YR_B18106_with_ann!BM268","v":32},{"$f":"[1]ACS_16_5YR_B18106_with_ann!BN268","v":18},{"$f":"[1]ACS_16_5YR_B18106_with_ann!BO268","v":23},{"$f":"[1]ACS_16_5YR_B18106_with_ann!BP268","v":42},{"$f":"[1]ACS_16_5YR_B18106_with_ann!BQ268","v":26}]
["0600000US3301962340",3301962340,"060","Plainfield",{"$f":"[1]ACS_16_5YR_B18106_with_ann!D268","v":2473},{"$f":"[1]ACS_16_5YR_B18106_with_ann!E268","v":261},{"$f":"[1]ACS_16_5YR_B18106_with_ann!F268","v":1246},{"$f":"[1]ACS_16_5YR_B18106_with_ann!G268","v":168},{"$f":"[1]ACS_16_5YR_B18106_with_ann!H268","v":230},{"$f":"[1]ACS_16_5YR_B18106_with_ann!I268","v":86},{"$f":"[1]ACS_16_5YR_B18106_with_ann!J268","v":7},{"$f":"[1]ACS_16_5YR_B18106_with_ann!K268","v":9},{"$f":"[1]ACS_16_5YR_B18106_with_ann!L268","v":223},{"$f":"[1]ACS_16_5YR_B18106_with_ann!M268","v":87},{"$f":"[1]ACS_16_5YR_B18106_with_ann!N268","v":261},{"$f":"[1]ACS_16_5YR_B18106_with_ann!O268","v":84},{"$f":"[1]ACS_16_5YR_B18106_with_ann!P268","v":0},{"$f":"[1]ACS_16_5YR_B18106_with_ann!Q268","v":11},{"$f":"[1]ACS_16_5YR_B18106_with_ann!R268","v":261},{"$f":"[1]ACS_16_5YR_B18106_with_ann!S268","v":84},{"$f":"[1]ACS_16_5YR_B18106_with_ann!T268","v":521},{"$f":"[1]ACS_16_5YR_B18106_with_ann!U268","v":71},{"$f":"[1]ACS_16_5YR_B18106_with_ann!V268","v":6},{"$f":"[1]ACS_16_5YR_B18106_with_ann!W268","v":8},{"$f":"[1]ACS_16_5YR_B18106_with_ann!X268","v":515},{"$f":"[1]ACS_16_5YR_B18106_with_ann!Y268","v":71},{"$f":"[1]ACS_16_5YR_B18106_with_ann!Z268","v":178},{"$f":"[1]ACS_16_5YR_B18106_with_ann!AA268","v":57},{"$f":"[1]ACS_16_5YR_B18106_with_ann!AB268","v":0},{"$f":"[1]ACS_16_5YR_B18106_with_ann!AC268","v":11},{"$f":"[1]ACS_16_5YR_B18106_with_ann!AD268","v":178},{"$f":"[1]ACS_16_5YR_B18106_with_ann!AE268","v":57},{"$f":"[1]ACS_16_5YR_B18106_with_ann!AF268","v":56},{"$f":"[1]ACS_16_5YR_B18106_with_ann!AG268","v":35},{"$f":"[1]ACS_16_5YR_B18106_with_ann!AH268","v":0},{"$f":"[1]ACS_16_5YR_B18106_with_ann!AI268","v":11},{"$f":"[1]ACS_16_5YR_B18106_with_ann!AJ268","v":56},{"$f":"[1]ACS_16_5YR_B18106_with_ann!AK268","v":35},{"$f":"[1]ACS_16_5YR_B18106_with_ann!AL268","v":1227},{"$f":"[1]ACS_16_5YR_B18106_with_ann!AM268","v":135},{"$f":"[1]ACS_16_5YR_B18106_with_ann!AN268","v":185},{"$f":"[1]ACS_16_5YR_B18106_with_ann!AO268","v":81},{"$f":"[1]ACS_16_5YR_B18106_with_ann!AP268","v":0},{"$f":"[1]ACS_16_5YR_B18106_with_ann!AQ268","v":11},{"$f":"[1]ACS_16_5YR_B18106_with_ann!AR268","v":185},{"$f":"[1]ACS_16_5YR_B18106_with_ann!AS268","v":81},{"$f":"[1]ACS_16_5YR_B18106_with_ann!AT268","v":280},{"$f":"[1]ACS_16_5YR_B18106_with_ann!AU268","v":61},{"$f":"[1]ACS_16_5YR_B18106_with_ann!AV268","v":0},{"$f":"[1]ACS_16_5YR_B18106_with_ann!AW268","v":11},{"$f":"[1]ACS_16_5YR_B18106_with_ann!AX268","v":280},{"$f":"[1]ACS_16_5YR_B18106_with_ann!AY268","v":61},{"$f":"[1]ACS_16_5YR_B18106_with_ann!AZ268","v":521},{"$f":"[1]ACS_16_5YR_B18106_with_ann!BA268","v":81},{"$f":"[1]ACS_16_5YR_B18106_with_ann!BB268","v":0},{"$f":"[1]ACS_16_5YR_B18106_with_ann!BC268","v":11},{"$f":"[1]ACS_16_5YR_B18106_with_ann!BD268","v":521},{"$f":"[1]ACS_16_5YR_B18106_with_ann!BE268","v":81},{"$f":"[1]ACS_16_5YR_B18106_with_ann!BF269","v":112},{"$f":"[1]ACS_16_5YR_B18106_with_ann!BG269","v":42},{"$f":"[1]ACS_16_5YR_B18106_with_ann!BH269","v":0},{"$f":"[1]ACS_16_5YR_B18106_with_ann!BI269","v":11},{"$f":"[1]ACS_16_5YR_B18106_with_ann!BJ269","v":112},{"$f":"[1]ACS_16_5YR_B18106_with_ann!BK269","v":42},{"$f":"[1]ACS_16_5YR_B18106_with_ann!BL269","v":38},{"$f":"[1]ACS_16_5YR_B18106_with_ann!BM269","v":26},{"$f":"[1]ACS_16_5YR_B18106_with_ann!BN269","v":10},{"$f":"[1]ACS_16_5YR_B18106_with_ann!BO269","v":16},{"$f":"[1]ACS_16_5YR_B18106_with_ann!BP269","v":28},{"$f":"[1]ACS_16_5YR_B18106_with_ann!BQ269","v":18}]
["0600000US3301972740",3301972740,"060","Springfield",{"$f":"[1]ACS_16_5YR_B18106_with_ann!D269","v":1070},{"$f":"[1]ACS_16_5YR_B18106_with_ann!E269","v":193},{"$f":"[1]ACS_16_5YR_B18106_with_ann!F269","v":572},{"$f":"[1]ACS_16_5YR_B18106_with_ann!G269","v":113},{"$f":"[1]ACS_16_5YR_B18106_with_ann!H269","v":72},{"$f":"[1]ACS_16_5YR_B18106_with_ann!I269","v":33},{"$f":"[1]ACS_16_5YR_B18106_with_ann!J269","v":0},{"$f":"[1]ACS_16_5YR_B18106_with_ann!K269","v":11},{"$f":"[1]ACS_16_5YR_B18106_with_ann!L269","v":72},{"$f":"[1]ACS_16_5YR_B18106_with_ann!M269","v":33},{"$f":"[1]ACS_16_5YR_B18106_with_ann!N269","v":103},{"$f":"[1]ACS_16_5YR_B18106_with_ann!O269","v":56},{"$f":"[1]ACS_16_5YR_B18106_with_ann!P269","v":0},{"$f":"[1]ACS_16_5YR_B18106_with_ann!Q269","v":11},{"$f":"[1]ACS_16_5YR_B18106_with_ann!R269","v":103},{"$f":"[1]ACS_16_5YR_B18106_with_ann!S269","v":56},{"$f":"[1]ACS_16_5YR_B18106_with_ann!T269","v":225},{"$f":"[1]ACS_16_5YR_B18106_with_ann!U269","v":63},{"$f":"[1]ACS_16_5YR_B18106_with_ann!V269","v":3},{"$f":"[1]ACS_16_5YR_B18106_with_ann!W269","v":5},{"$f":"[1]ACS_16_5YR_B18106_with_ann!X269","v":222},{"$f":"[1]ACS_16_5YR_B18106_with_ann!Y269","v":63},{"$f":"[1]ACS_16_5YR_B18106_with_ann!Z269","v":111},{"$f":"[1]ACS_16_5YR_B18106_with_ann!AA269","v":42},{"$f":"[1]ACS_16_5YR_B18106_with_ann!AB269","v":0},{"$f":"[1]ACS_16_5YR_B18106_with_ann!AC269","v":11},{"$f":"[1]ACS_16_5YR_B18106_with_ann!AD269","v":111},{"$f":"[1]ACS_16_5YR_B18106_with_ann!AE269","v":42},{"$f":"[1]ACS_16_5YR_B18106_with_ann!AF269","v":61},{"$f":"[1]ACS_16_5YR_B18106_with_ann!AG269","v":35},{"$f":"[1]ACS_16_5YR_B18106_with_ann!AH269","v":0},{"$f":"[1]ACS_16_5YR_B18106_with_ann!AI269","v":11},{"$f":"[1]ACS_16_5YR_B18106_with_ann!AJ269","v":61},{"$f":"[1]ACS_16_5YR_B18106_with_ann!AK269","v":35},{"$f":"[1]ACS_16_5YR_B18106_with_ann!AL269","v":498},{"$f":"[1]ACS_16_5YR_B18106_with_ann!AM269","v":104},{"$f":"[1]ACS_16_5YR_B18106_with_ann!AN269","v":70},{"$f":"[1]ACS_16_5YR_B18106_with_ann!AO269","v":46},{"$f":"[1]ACS_16_5YR_B18106_with_ann!AP269","v":0},{"$f":"[1]ACS_16_5YR_B18106_with_ann!AQ269","v":11},{"$f":"[1]ACS_16_5YR_B18106_with_ann!AR269","v":70},{"$f":"[1]ACS_16_5YR_B18106_with_ann!AS269","v":46},{"$f":"[1]ACS_16_5YR_B18106_with_ann!AT269","v":37},{"$f":"[1]ACS_16_5YR_B18106_with_ann!AU269","v":27},{"$f":"[1]ACS_16_5YR_B18106_with_ann!AV269","v":0},{"$f":"[1]ACS_16_5YR_B18106_with_ann!AW269","v":11},{"$f":"[1]ACS_16_5YR_B18106_with_ann!AX269","v":37},{"$f":"[1]ACS_16_5YR_B18106_with_ann!AY269","v":27},{"$f":"[1]ACS_16_5YR_B18106_with_ann!AZ269","v":241},{"$f":"[1]ACS_16_5YR_B18106_with_ann!BA269","v":64},{"$f":"[1]ACS_16_5YR_B18106_with_ann!BB269","v":0},{"$f":"[1]ACS_16_5YR_B18106_with_ann!BC269","v":11},{"$f":"[1]ACS_16_5YR_B18106_with_ann!BD269","v":241},{"$f":"[1]ACS_16_5YR_B18106_with_ann!BE269","v":64},{"$f":"[1]ACS_16_5YR_B18106_with_ann!BF270","v":233},{"$f":"[1]ACS_16_5YR_B18106_with_ann!BG270","v":69},{"$f":"[1]ACS_16_5YR_B18106_with_ann!BH270","v":0},{"$f":"[1]ACS_16_5YR_B18106_with_ann!BI270","v":11},{"$f":"[1]ACS_16_5YR_B18106_with_ann!BJ270","v":233},{"$f":"[1]ACS_16_5YR_B18106_with_ann!BK270","v":69},{"$f":"[1]ACS_16_5YR_B18106_with_ann!BL270","v":182},{"$f":"[1]ACS_16_5YR_B18106_with_ann!BM270","v":81},{"$f":"[1]ACS_16_5YR_B18106_with_ann!BN270","v":15},{"$f":"[1]ACS_16_5YR_B18106_with_ann!BO270","v":23},{"$f":"[1]ACS_16_5YR_B18106_with_ann!BP270","v":167},{"$f":"[1]ACS_16_5YR_B18106_with_ann!BQ270","v":79}]
["0600000US3301975060",3301975060,"060","Sunapee",{"$f":"[1]ACS_16_5YR_B18106_with_ann!D270","v":3291},{"$f":"[1]ACS_16_5YR_B18106_with_ann!E270","v":68},{"$f":"[1]ACS_16_5YR_B18106_with_ann!F270","v":1695},{"$f":"[1]ACS_16_5YR_B18106_with_ann!G270","v":131},{"$f":"[1]ACS_16_5YR_B18106_with_ann!H270","v":337},{"$f":"[1]ACS_16_5YR_B18106_with_ann!I270","v":95},{"$f":"[1]ACS_16_5YR_B18106_with_ann!J270","v":0},{"$f":"[1]ACS_16_5YR_B18106_with_ann!K270","v":11},{"$f":"[1]ACS_16_5YR_B18106_with_ann!L270","v":337},{"$f":"[1]ACS_16_5YR_B18106_with_ann!M270","v":95},{"$f":"[1]ACS_16_5YR_B18106_with_ann!N270","v":290},{"$f":"[1]ACS_16_5YR_B18106_with_ann!O270","v":93},{"$f":"[1]ACS_16_5YR_B18106_with_ann!P270","v":0},{"$f":"[1]ACS_16_5YR_B18106_with_ann!Q270","v":11},{"$f":"[1]ACS_16_5YR_B18106_with_ann!R270","v":290},{"$f":"[1]ACS_16_5YR_B18106_with_ann!S270","v":93},{"$f":"[1]ACS_16_5YR_B18106_with_ann!T270","v":777},{"$f":"[1]ACS_16_5YR_B18106_with_ann!U270","v":126},{"$f":"[1]ACS_16_5YR_B18106_with_ann!V270","v":31},{"$f":"[1]ACS_16_5YR_B18106_with_ann!W270","v":34},{"$f":"[1]ACS_16_5YR_B18106_with_ann!X270","v":746},{"$f":"[1]ACS_16_5YR_B18106_with_ann!Y270","v":115},{"$f":"[1]ACS_16_5YR_B18106_with_ann!Z270","v":176},{"$f":"[1]ACS_16_5YR_B18106_with_ann!AA270","v":58},{"$f":"[1]ACS_16_5YR_B18106_with_ann!AB270","v":0},{"$f":"[1]ACS_16_5YR_B18106_with_ann!AC270","v":11},{"$f":"[1]ACS_16_5YR_B18106_with_ann!AD270","v":176},{"$f":"[1]ACS_16_5YR_B18106_with_ann!AE270","v":58},{"$f":"[1]ACS_16_5YR_B18106_with_ann!AF270","v":115},{"$f":"[1]ACS_16_5YR_B18106_with_ann!AG270","v":59},{"$f":"[1]ACS_16_5YR_B18106_with_ann!AH270","v":0},{"$f":"[1]ACS_16_5YR_B18106_with_ann!AI270","v":11},{"$f":"[1]ACS_16_5YR_B18106_with_ann!AJ270","v":115},{"$f":"[1]ACS_16_5YR_B18106_with_ann!AK270","v":59},{"$f":"[1]ACS_16_5YR_B18106_with_ann!AL270","v":1596},{"$f":"[1]ACS_16_5YR_B18106_with_ann!AM270","v":134},{"$f":"[1]ACS_16_5YR_B18106_with_ann!AN270","v":197},{"$f":"[1]ACS_16_5YR_B18106_with_ann!AO270","v":84},{"$f":"[1]ACS_16_5YR_B18106_with_ann!AP270","v":0},{"$f":"[1]ACS_16_5YR_B18106_with_ann!AQ270","v":11},{"$f":"[1]ACS_16_5YR_B18106_with_ann!AR270","v":197},{"$f":"[1]ACS_16_5YR_B18106_with_ann!AS270","v":84},{"$f":"[1]ACS_16_5YR_B18106_with_ann!AT270","v":250},{"$f":"[1]ACS_16_5YR_B18106_with_ann!AU270","v":74},{"$f":"[1]ACS_16_5YR_B18106_with_ann!AV270","v":0},{"$f":"[1]ACS_16_5YR_B18106_with_ann!AW270","v":11},{"$f":"[1]ACS_16_5YR_B18106_with_ann!AX270","v":250},{"$f":"[1]ACS_16_5YR_B18106_with_ann!AY270","v":74},{"$f":"[1]ACS_16_5YR_B18106_with_ann!AZ270","v":734},{"$f":"[1]ACS_16_5YR_B18106_with_ann!BA270","v":118},{"$f":"[1]ACS_16_5YR_B18106_with_ann!BB270","v":0},{"$f":"[1]ACS_16_5YR_B18106_with_ann!BC270","v":11},{"$f":"[1]ACS_16_5YR_B18106_with_ann!BD270","v":734},{"$f":"[1]ACS_16_5YR_B18106_with_ann!BE270","v":118},{"$f":"[1]ACS_16_5YR_B18106_with_ann!BF271","v":113},{"$f":"[1]ACS_16_5YR_B18106_with_ann!BG271","v":29},{"$f":"[1]ACS_16_5YR_B18106_with_ann!BH271","v":0},{"$f":"[1]ACS_16_5YR_B18106_with_ann!BI271","v":11},{"$f":"[1]ACS_16_5YR_B18106_with_ann!BJ271","v":113},{"$f":"[1]ACS_16_5YR_B18106_with_ann!BK271","v":29},{"$f":"[1]ACS_16_5YR_B18106_with_ann!BL271","v":39},{"$f":"[1]ACS_16_5YR_B18106_with_ann!BM271","v":15},{"$f":"[1]ACS_16_5YR_B18106_with_ann!BN271","v":4},{"$f":"[1]ACS_16_5YR_B18106_with_ann!BO271","v":5},{"$f":"[1]ACS_16_5YR_B18106_with_ann!BP271","v":35},{"$f":"[1]ACS_16_5YR_B18106_with_ann!BQ271","v":13}]
["0600000US3301977940",3301977940,"060","Unity",{"$f":"[1]ACS_16_5YR_B18106_with_ann!D271","v":1314},{"$f":"[1]ACS_16_5YR_B18106_with_ann!E271","v":147},{"$f":"[1]ACS_16_5YR_B18106_with_ann!F271","v":624},{"$f":"[1]ACS_16_5YR_B18106_with_ann!G271","v":66},{"$f":"[1]ACS_16_5YR_B18106_with_ann!H271","v":46},{"$f":"[1]ACS_16_5YR_B18106_with_ann!I271","v":21},{"$f":"[1]ACS_16_5YR_B18106_with_ann!J271","v":0},{"$f":"[1]ACS_16_5YR_B18106_with_ann!K271","v":11},{"$f":"[1]ACS_16_5YR_B18106_with_ann!L271","v":46},{"$f":"[1]ACS_16_5YR_B18106_with_ann!M271","v":21},{"$f":"[1]ACS_16_5YR_B18106_with_ann!N271","v":79},{"$f":"[1]ACS_16_5YR_B18106_with_ann!O271","v":31},{"$f":"[1]ACS_16_5YR_B18106_with_ann!P271","v":0},{"$f":"[1]ACS_16_5YR_B18106_with_ann!Q271","v":11},{"$f":"[1]ACS_16_5YR_B18106_with_ann!R271","v":79},{"$f":"[1]ACS_16_5YR_B18106_with_ann!S271","v":31},{"$f":"[1]ACS_16_5YR_B18106_with_ann!T271","v":324},{"$f":"[1]ACS_16_5YR_B18106_with_ann!U271","v":53},{"$f":"[1]ACS_16_5YR_B18106_with_ann!V271","v":3},{"$f":"[1]ACS_16_5YR_B18106_with_ann!W271","v":4},{"$f":"[1]ACS_16_5YR_B18106_with_ann!X271","v":321},{"$f":"[1]ACS_16_5YR_B18106_with_ann!Y271","v":53},{"$f":"[1]ACS_16_5YR_B18106_with_ann!Z271","v":128},{"$f":"[1]ACS_16_5YR_B18106_with_ann!AA271","v":36},{"$f":"[1]ACS_16_5YR_B18106_with_ann!AB271","v":0},{"$f":"[1]ACS_16_5YR_B18106_with_ann!AC271","v":11},{"$f":"[1]ACS_16_5YR_B18106_with_ann!AD271","v":128},{"$f":"[1]ACS_16_5YR_B18106_with_ann!AE271","v":36},{"$f":"[1]ACS_16_5YR_B18106_with_ann!AF271","v":47},{"$f":"[1]ACS_16_5YR_B18106_with_ann!AG271","v":17},{"$f":"[1]ACS_16_5YR_B18106_with_ann!AH271","v":0},{"$f":"[1]ACS_16_5YR_B18106_with_ann!AI271","v":11},{"$f":"[1]ACS_16_5YR_B18106_with_ann!AJ271","v":47},{"$f":"[1]ACS_16_5YR_B18106_with_ann!AK271","v":17},{"$f":"[1]ACS_16_5YR_B18106_with_ann!AL271","v":690},{"$f":"[1]ACS_16_5YR_B18106_with_ann!AM271","v":100},{"$f":"[1]ACS_16_5YR_B18106_with_ann!AN271","v":89},{"$f":"[1]ACS_16_5YR_B18106_with_ann!AO271","v":48},{"$f":"[1]ACS_16_5YR_B18106_with_ann!AP271","v":0},{"$f":"[1]ACS_16_5YR_B18106_with_ann!AQ271","v":11},{"$f":"[1]ACS_16_5YR_B18106_with_ann!AR271","v":89},{"$f":"[1]ACS_16_5YR_B18106_with_ann!AS271","v":48},{"$f":"[1]ACS_16_5YR_B18106_with_ann!AT271","v":111},{"$f":"[1]ACS_16_5YR_B18106_with_ann!AU271","v":46},{"$f":"[1]ACS_16_5YR_B18106_with_ann!AV271","v":0},{"$f":"[1]ACS_16_5YR_B18106_with_ann!AW271","v":11},{"$f":"[1]ACS_16_5YR_B18106_with_ann!AX271","v":111},{"$f":"[1]ACS_16_5YR_B18106_with_ann!AY271","v":46},{"$f":"[1]ACS_16_5YR_B18106_with_ann!AZ271","v":338},{"$f":"[1]ACS_16_5YR_B18106_with_ann!BA271","v":45},{"$f":"[1]ACS_16_5YR_B18106_with_ann!BB271","v":3},{"$f":"[1]ACS_16_5YR_B18106_with_ann!BC271","v":4},{"$f":"[1]ACS_16_5YR_B18106_with_ann!BD271","v":335},{"$f":"[1]ACS_16_5YR_B18106_with_ann!BE271","v":44},{"$f":"[1]ACS_16_5YR_B18106_with_ann!BF272","v":116},{"$f":"[1]ACS_16_5YR_B18106_with_ann!BG272","v":31},{"$f":"[1]ACS_16_5YR_B18106_with_ann!BH272","v":0},{"$f":"[1]ACS_16_5YR_B18106_with_ann!BI272","v":11},{"$f":"[1]ACS_16_5YR_B18106_with_ann!BJ272","v":116},{"$f":"[1]ACS_16_5YR_B18106_with_ann!BK272","v":31},{"$f":"[1]ACS_16_5YR_B18106_with_ann!BL272","v":29},{"$f":"[1]ACS_16_5YR_B18106_with_ann!BM272","v":15},{"$f":"[1]ACS_16_5YR_B18106_with_ann!BN272","v":0},{"$f":"[1]ACS_16_5YR_B18106_with_ann!BO272","v":11},{"$f":"[1]ACS_16_5YR_B18106_with_ann!BP272","v":29},{"$f":"[1]ACS_16_5YR_B18106_with_ann!BQ272","v":15}]
["0600000US3301978980",3301978980,"060","Washington",{"$f":"[1]ACS_16_5YR_B18106_with_ann!D272","v":1193},{"$f":"[1]ACS_16_5YR_B18106_with_ann!E272","v":187},{"$f":"[1]ACS_16_5YR_B18106_with_ann!F272","v":612},{"$f":"[1]ACS_16_5YR_B18106_with_ann!G272","v":109},{"$f":"[1]ACS_16_5YR_B18106_with_ann!H272","v":61},{"$f":"[1]ACS_16_5YR_B18106_with_ann!I272","v":49},{"$f":"[1]ACS_16_5YR_B18106_with_ann!J272","v":0},{"$f":"[1]ACS_16_5YR_B18106_with_ann!K272","v":11},{"$f":"[1]ACS_16_5YR_B18106_with_ann!L272","v":61},{"$f":"[1]ACS_16_5YR_B18106_with_ann!M272","v":49},{"$f":"[1]ACS_16_5YR_B18106_with_ann!N272","v":72},{"$f":"[1]ACS_16_5YR_B18106_with_ann!O272","v":37},{"$f":"[1]ACS_16_5YR_B18106_with_ann!P272","v":0},{"$f":"[1]ACS_16_5YR_B18106_with_ann!Q272","v":11},{"$f":"[1]ACS_16_5YR_B18106_with_ann!R272","v":72},{"$f":"[1]ACS_16_5YR_B18106_with_ann!S272","v":37},{"$f":"[1]ACS_16_5YR_B18106_with_ann!T272","v":309},{"$f":"[1]ACS_16_5YR_B18106_with_ann!U272","v":80},{"$f":"[1]ACS_16_5YR_B18106_with_ann!V272","v":0},{"$f":"[1]ACS_16_5YR_B18106_with_ann!W272","v":11},{"$f":"[1]ACS_16_5YR_B18106_with_ann!X272","v":309},{"$f":"[1]ACS_16_5YR_B18106_with_ann!Y272","v":80},{"$f":"[1]ACS_16_5YR_B18106_with_ann!Z272","v":121},{"$f":"[1]ACS_16_5YR_B18106_with_ann!AA272","v":35},{"$f":"[1]ACS_16_5YR_B18106_with_ann!AB272","v":0},{"$f":"[1]ACS_16_5YR_B18106_with_ann!AC272","v":11},{"$f":"[1]ACS_16_5YR_B18106_with_ann!AD272","v":121},{"$f":"[1]ACS_16_5YR_B18106_with_ann!AE272","v":35},{"$f":"[1]ACS_16_5YR_B18106_with_ann!AF272","v":49},{"$f":"[1]ACS_16_5YR_B18106_with_ann!AG272","v":19},{"$f":"[1]ACS_16_5YR_B18106_with_ann!AH272","v":0},{"$f":"[1]ACS_16_5YR_B18106_with_ann!AI272","v":11},{"$f":"[1]ACS_16_5YR_B18106_with_ann!AJ272","v":49},{"$f":"[1]ACS_16_5YR_B18106_with_ann!AK272","v":19},{"$f":"[1]ACS_16_5YR_B18106_with_ann!AL272","v":581},{"$f":"[1]ACS_16_5YR_B18106_with_ann!AM272","v":102},{"$f":"[1]ACS_16_5YR_B18106_with_ann!AN272","v":72},{"$f":"[1]ACS_16_5YR_B18106_with_ann!AO272","v":29},{"$f":"[1]ACS_16_5YR_B18106_with_ann!AP272","v":2},{"$f":"[1]ACS_16_5YR_B18106_with_ann!AQ272","v":5},{"$f":"[1]ACS_16_5YR_B18106_with_ann!AR272","v":70},{"$f":"[1]ACS_16_5YR_B18106_with_ann!AS272","v":29},{"$f":"[1]ACS_16_5YR_B18106_with_ann!AT272","v":63},{"$f":"[1]ACS_16_5YR_B18106_with_ann!AU272","v":30},{"$f":"[1]ACS_16_5YR_B18106_with_ann!AV272","v":0},{"$f":"[1]ACS_16_5YR_B18106_with_ann!AW272","v":11},{"$f":"[1]ACS_16_5YR_B18106_with_ann!AX272","v":63},{"$f":"[1]ACS_16_5YR_B18106_with_ann!AY272","v":30},{"$f":"[1]ACS_16_5YR_B18106_with_ann!AZ272","v":301},{"$f":"[1]ACS_16_5YR_B18106_with_ann!BA272","v":81},{"$f":"[1]ACS_16_5YR_B18106_with_ann!BB272","v":0},{"$f":"[1]ACS_16_5YR_B18106_with_ann!BC272","v":11},{"$f":"[1]ACS_16_5YR_B18106_with_ann!BD272","v":301},{"$f":"[1]ACS_16_5YR_B18106_with_ann!BE272","v":81},{"$f":"[1]ACS_16_5YR_B18106_with_ann!BF273","v":0},{"$f":"[1]ACS_16_5YR_B18106_with_ann!BG273","v":0},{"$f":"[1]ACS_16_5YR_B18106_with_ann!BH273","v":0},{"$f":"[1]ACS_16_5YR_B18106_with_ann!BI273","v":0},{"$f":"[1]ACS_16_5YR_B18106_with_ann!BJ273","v":0},{"$f":"[1]ACS_16_5YR_B18106_with_ann!BK273","v":0},{"$f":"[1]ACS_16_5YR_B18106_with_ann!BL273","v":0},{"$f":"[1]ACS_16_5YR_B18106_with_ann!BM273","v":0},{"$f":"[1]ACS_16_5YR_B18106_with_ann!BN273","v":0},{"$f":"[1]ACS_16_5YR_B18106_with_ann!BO273","v":0},{"$f":"[1]ACS_16_5YR_B18106_with_ann!BP273","v":0},{"$f":"[1]ACS_16_5YR_B18106_with_ann!BQ273","v":0}]
[]
[null,null,null,null,{"$f":"$D$3","v":"Acworth"},null,{"$f":"$D$4","v":"Charlestown"},null,{"$f":"$D$5","v":"Claremont"},null,{"$f":"$D$6","v":"Cornish"},null,{"$f":"$D$7","v":"Croydon"},null,{"$f":"$D$8","v":"Goshen"},null,{"$f":"$D$9","v":"Grantham"},null,{"$f":"$D$10","v":"Langdon"},null,{"$f":"$D$11","v":"Lempster"},null,{"$f":"$D$12","v":"Newport"},null,{"$f":"$D$13","v":"Plainfield"},null,{"$f":"$D$14","v":"Springfield"},null,{"$f":"$D$15","v":"Sunapee"},null,{"$f":"$D$16","v":"Unity"},null,{"$f":"$D$17","v":"Washington"}]
[null,null,null,null,"Estimate","Margin Of Error","Estimate","Margin Of Error","Estimate","Margin Of Error","Estimate","Margin Of Error","Estimate","Margin Of Error","Estimate","Margin Of Error","Estimate","Margin Of Error","Estimate","Margin Of Error","Estimate","Margin Of Error","Estimate","Margin Of Error","Estimate","Margin Of Error","Estimate","Margin Of Error","Estimate","Margin Of Error",null,"Estimate","Margin Of Error"]
[null,null,null,"Estimate Total:",869,133,4707,114,12046,169,1722,218,840,240,641,102,2945,14,680,139,857,153,5974,123,2473,261,1070,193,3291,68,1314,147,1193,187]
[null,null,null,"Estimate Total: Male:",466,81,2325,195,5872,297,887,151,412,108,328,66,1382,143,326,83,401,68,3045,247,1246,168,572,113,1695,131,624,66,612,109]
[null,null,null,"Estimate Total: Male: 5 to 17 years:",34,23,250,103,902,164,169,107,56,37,49,27,271,92,76,46,36,23,507,185,230,86,72,33,337,95,46,21,61,49]
[null,null,null,"Estimate Total: Male: 5 to 17 years: With a self-care difficulty",0,11,0,16,23,30,0,11,0,11,2,3,41,61,0,11,0,11,0,16,7,9,0,11,0,11,0,11,0,11]
[null,null,null,"Estimate Total: Male: 5 to 17 years: No self-care difficulty",34,23,250,103,879,160,169,107,56,37,47,27,230,84,76,46,36,23,507,185,223,87,72,33,337,95,46,21,61,49]
[null,null,null,"Estimate Total: Male: 18 to 34 years:",79,38,490,144,1622,255,95,28,87,47,43,21,148,73,53,27,34,16,754,177,261,84,103,56,290,93,79,31,72,37]
[null,null,null,"Estimate Total: Male: 18 to 34 years: With a self-care difficulty",9,14,0,16,0,18,0,11,2,4,0,11,0,11,0,11,0,11,34,52,0,11,0,11,0,11,0,11,0,11]
[null,null,null,"Estimate Total: Male: 18 to 34 years: No self-care difficulty",70,37,490,144,1622,255,95,28,85,46,43,21,148,73,53,27,34,16,720,179,261,84,103,56,290,93,79,31,72,37]
[null,null,null,"Estimate Total: Male: 35 to 64 years:",213,48,1034,172,2416,184,367,53,198,60,157,41,613,124,143,40,249,58,1262,216,521,71,225,63,777,126,324,53,309,80]
[null,null,null,"Estimate Total: Male: 35 to 64 years: With a self-care difficulty",0,11,71,86,138,79,0,11,0,11,2,3,0,11,0,11,0,11,78,98,6,8,3,5,31,34,3,4,0,11]
[null,null,null,"Estimate Total: Male: 35 to 64 years: No self-care difficulty",213,48,963,153,2278,188,367,53,198,60,155,41,613,124,143,40,249,58,1184,221,515,71,222,63,746,115,321,53,309,80]
[null,null,null,"Estimate Total: Male: 65 to 74 years:",88,27,261,94,650,105,190,51,38,22,59,26,156,69,39,14,68,28,405,161,178,57,111,42,176,58,128,36,121,35]
[null,null,null,"Estimate Total: Male: 65 to 74 years: With a self-care difficulty",2,4,0,16,22,36,0,11,2,4,2,3,0,11,2,3,0,11,0,16,0,11,0,11,0,11,0,11,0,11]
[null,null,null,"Estimate Total: Male: 65 to 74 years: No self-care difficulty",86,27,261,94,628,107,190,51,36,21,57,25,156,69,37,14,68,28,405,161,178,57,111,42,176,58,128,36,121,35]
[null,null,null,"Estimate Total: Male: 75 years and over:",52,23,290,141,282,88,66,32,33,16,20,14,194,86,15,9,14,11,117,81,56,35,61,35,115,59,47,17,49,19]
[null,null,null,"Estimate Total: Male: 75 years and over: With a self-care difficulty",6,10,32,36,14,21,0,11,2,3,0,11,0,11,0,11,0,11,30,33,0,11,0,11,0,11,0,11,0,11]
[null,null,null,"Estimate Total: Male: 75 years and over: No self-care difficulty",46,21,258,142,268,85,66,32,31,16,20,14,194,86,15,9,14,11,87,74,56,35,61,35,115,59,47,17,49,19]
[null,null,null,"Estimate Total: Female:",403,70,2382,208,6174,266,835,101,428,154,313,53,1563,142,354,70,456,111,2929,214,1227,135,498,104,1596,134,690,100,581,102]
[null,null,null,"Estimate Total: Female: 5 to 17 years:",24,18,420,147,922,206,119,46,65,34,49,25,250,125,61,42,121,76,406,128,185,81,70,46,197,84,89,48,72,29]
[null,null,null,"Estimate Total: Female: 5 to 17 years: With a self-care difficulty",0,11,31,41,30,38,0,11,0,11,0,11,0,11,0,11,0,11,0,16,0,11,0,11,0,11,0,11,2,5]
[null,null,null,"Estimate Total: Female: 5 to 17 years: No self-care difficulty",24,18,389,144,892,203,119,46,65,34,49,25,250,125,61,42,121,76,406,128,185,81,70,46,197,84,89,48,70,29]
[null,null,null,"Estimate Total: Female: 18 to 34 years:",47,25,357,108,1415,187,78,27,124,96,69,34,114,98,69,25,54,24,520,162,280,61,37,27,250,74,111,46,63,30]
[null,null,null,"Estimate Total: Female: 18 to 34 years: With a self-care difficulty",0,11,0,16,9,15,0,11,0,11,0,11,0,11,0,11,0,11,0,16,0,11,0,11,0,11,0,11,0,11]
[null,null,null,"Estimate Total: Female: 18 to 34 years: No self-care difficulty",47,25,357,108,1406,184,78,27,124,96,69,34,114,98,69,25,54,24,520,162,280,61,37,27,250,74,111,46,63,30]
[null,null,null,"Estimate Total: Female: 35 to 64 years:",190,46,1080,163,2460,217,380,59,169,53,117,33,896,131,174,41,191,52,1406,188,521,81,241,64,734,118,338,45,301,81]
[null,null,null,"Estimate Total: Female: 35 to 64 years: With a self-care difficulty",0,11,54,68,14,21,0,11,2,3,0,11,0,11,0,11,7,9,11,17,0,11,0,11,0,11,3,4,0,11]
[null,null,null,"Estimate Total: Female: 35 to 64 years: No self-care difficulty",190,46,1026,171,2446,219,380,59,167,53,117,33,896,131,174,41,184,50,1395,190,521,81,241,64,734,118,335,44,301,81]
[null,null,null,"Estimate Total: Female: 65 to 74 years:",117,42,296,120,755,152,49,24,49,21,139,53,35,11,51,23,312,130,181,56,112,42,233,69,113,29,116,31,0,0]
[null,null,null,"Estimate Total: Female: 65 to 74 years: With a self-care difficulty",2,4,0,16,93,102,0,11,2,4,0,11,0,11,0,11,0,16,21,27,0,11,0,11,0,11,0,11,0,0]
[null,null,null,"Estimate Total: Female: 65 to 74 years: No self-care difficulty",115,42,296,120,662,145,49,24,47,20,139,53,35,11,51,23,312,130,160,53,112,42,233,69,113,29,116,31,0,0]
[null,null,null,"Estimate Total: Female: 75 years and over:",25,14,229,88,622,128,21,12,29,13,164,75,15,8,39,26,285,103,60,32,38,26,182,81,39,15,29,15,0,0]
[null,null,null,"Estimate Total: Female: 75 years and over: With a self-care difficulty",0,11,17,28,47,53,0,11,0,11,0,11,0,11,0,11,52,67,18,23,10,16,15,23,4,5,0,11,0,0]
[null,null,null,"Estimate Total: Female: 75 years and over: No self-care difficulty",25,14,212,89,575,122,21,12,29,13,164,75,15,8,39,26,233,91,42,26,28,18,167,79,35,13,29,15,0,0]

{"sheet":"ACS_Table_B18106","index":51,"n_rows":122,"n_cols":32,"rows_kept":122,"cut":false,"hidden":true,"merged":[]}
["B18106. SEX BY AGE BY SELF-CARE DIFFICULTY\n\n\n\n"]
["Universe:  Civilian non-institutionalized population 5 years and over"]
["Data Set: 2015-2019 American Community Survey 5-Year Estimates"]
[]
[null,null,"Acworth",null,"Charlestown",null,"Claremont",null,"Cornish",null,"Croydon",null,"Goshen",null,"Grantham",null,"Langdon",null,"Lempster",null,"Newport",null,"Plainfield",null,"Springfield",null,"Sunapee",null,"Unity",null,"Washington"]
[null,null,"Estimate","Margin Of Error","Estimate","Margin Of Error","Estimate","Margin Of Error","Estimate","Margin Of Error","Estimate","Margin Of Error","Estimate","Margin Of Error","Estimate","Margin Of Error","Estimate","Margin Of Error","Estimate","Margin Of Error","Estimate","Margin Of Error","Estimate","Margin Of Error","Estimate","Margin Of Error","Estimate","Margin Of Error","Estimate","Margin Of Error","Estimate","Margin Of Error"]
[null,"Total:",869,133,4707,114,12046,169,1722,218,840,240,641,102,2945,14,680,139,857,153,5974,123,2473,261,1070,193,3291,68,1314,147,1193,187]
[null,"Male:",466,81,2325,195,5872,297,887,151,412,108,328,66,1382,143,326,83,401,68,3045,247,1246,168,572,113,1695,131,624,66,612,109]
[null,"5 to 17  years:",34,23,250,103,902,164,169,107,56,37,49,27,271,92,76,46,36,23,507,185,230,86,72,33,337,95,46,21,61,49]
[null,"With self care difficulty",0,11,0,16,23,30,0,11,0,11,2,3,41,61,0,11,0,11,0,16,7,9,0,11,0,11,0,11,0,11]
[null,"With no self care difficulty",34,23,250,103,879,160,169,107,56,37,47,27,230,84,76,46,36,23,507,185,223,87,72,33,337,95,46,21,61,49]
[null,"18 to 34  years:",79,38,490,144,1622,255,95,28,87,47,43,21,148,73,53,27,34,16,754,177,261,84,103,56,290,93,79,31,72,37]
[null,"With self care difficulty",9,14,0,16,0,18,0,11,2,4,0,11,0,11,0,11,0,11,34,52,0,11,0,11,0,11,0,11,0,11]
[null,"With no self care difficulty",70,37,490,144,1622,255,95,28,85,46,43,21,148,73,53,27,34,16,720,179,261,84,103,56,290,93,79,31,72,37]
[null,"35 to 64  years:",213,48,1034,172,2416,184,367,53,198,60,157,41,613,124,143,40,249,58,1262,216,521,71,225,63,777,126,324,53,309,80]
[null,"With self care difficulty",0,11,71,86,138,79,0,11,0,11,2,3,0,11,0,11,0,11,78,98,6,8,3,5,31,34,3,4,0,11]
[null,"With no self care difficulty",213,48,963,153,2278,188,367,53,198,60,155,41,613,124,143,40,249,58,1184,221,515,71,222,63,746,115,321,53,309,80]
[null,"65 to 74  years:",88,27,261,94,650,105,190,51,38,22,59,26,156,69,39,14,68,28,405,161,178,57,111,42,176,58,128,36,121,35]
[null,"With self care difficulty",2,4,0,16,22,36,0,11,2,4,2,3,0,11,2,3,0,11,0,16,0,11,0,11,0,11,0,11,0,11]
[null,"With no self care difficulty",86,27,261,94,628,107,190,51,36,21,57,25,156,69,37,14,68,28,405,161,178,57,111,42,176,58,128,36,121,35]
[null,"75  years and Older:",52,23,290,141,282,88,66,32,33,16,20,14,194,86,15,9,14,11,117,81,56,35,61,35,115,59,47,17,49,19]
[null,"With self care difficulty",6,10,32,36,14,21,0,11,2,3,0,11,0,11,0,11,0,11,30,33,0,11,0,11,0,11,0,11,0,11]
[null,"With no self care difficulty",46,21,258,142,268,85,66,32,31,16,20,14,194,86,15,9,14,11,87,74,56,35,61,35,115,59,47,17,49,19]
[null,"Female:",403,70,2382,208,6174,266,835,101,428,154,313,53,1563,142,354,70,456,111,2929,214,1227,135,498,104,1596,134,690,100,581,102]
[null,"5 to 17  years:",24,18,420,147,922,206,119,46,65,34,49,25,250,125,61,42,121,76,406,128,185,81,70,46,197,84,89,48,72,29]
[null,"With self care difficulty",0,11,31,41,30,38,0,11,0,11,0,11,0,11,0,11,0,11,0,16,0,11,0,11,0,11,0,11,2,5]
[null,"With no self care difficulty",24,18,389,144,892,203,119,46,65,34,49,25,250,125,61,42,121,76,406,128,185,81,70,46,197,84,89,48,70,29]
[null,"18 to 34  years:",47,25,357,108,1415,187,78,27,124,96,69,34,114,98,69,25,54,24,520,162,280,61,37,27,250,74,111,46,63,30]
[null,"With self care difficulty",0,11,0,16,9,15,0,11,0,11,0,11,0,11,0,11,0,11,0,16,0,11,0,11,0,11,0,11,0,11]
[null,"With no self care difficulty",47,25,357,108,1406,184,78,27,124,96,69,34,114,98,69,25,54,24,520,162,280,61,37,27,250,74,111,46,63,30]
[null,"35 to 64  years:",190,46,1080,163,2460,217,380,59,169,53,117,33,896,131,174,41,191,52,1406,188,521,81,241,64,734,118,338,45,301,81]
[null,"With self care difficulty",0,11,54,68,14,21,0,11,2,3,0,11,0,11,0,11,7,9,11,17,0,11,0,11,0,11,3,4,0,11]
[null,"With no self care difficulty",190,46,1026,171,2446,219,380,59,167,53,117,33,896,131,174,41,184,50,1395,190,521,81,241,64,734,118,335,44,301,81]
[null,"65 to 74  years:",117,42,296,120,755,152,49,24,49,21,139,53,35,11,51,23,312,130,181,56,112,42,233,69,113,29,116,31,0,0]
[null,"With self care difficulty",2,4,0,16,93,102,0,11,2,4,0,11,0,11,0,11,0,16,21,27,0,11,0,11,0,11,0,11,0,0]
[null,"With no self care difficulty",115,42,296,120,662,145,49,24,47,20,139,53,35,11,51,23,312,130,160,53,112,42,233,69,113,29,116,31,0,0]
[null,"75  years and Older:",25,14,229,88,622,128,21,12,29,13,164,75,15,8,39,26,285,103,60,32,38,26,182,81,39,15,29,15,0,0]
[null,"With self care difficulty",0,11,17,28,47,53,0,11,0,11,0,11,0,11,0,11,52,67,18,23,10,16,15,23,4,5,0,11,0,0]
[null,"With no self care difficulty",25,14,212,89,575,122,21,12,29,13,164,75,15,8,39,26,233,91,42,26,28,18,167,79,35,13,29,15,0,0]
[]
[]
[{"$f":"A1& \"-Calculated\"","v":"B18106. SEX BY AGE BY SELF-CARE DIFFICULTY\n\n\n\n-Calculated"}]
[{"$f":"A2","v":"Universe:  Civilian non-institutionalized population 5 years and over"}]
[{"$f":"A3","v":"Data Set: 2015-2019 American Community Survey 5-Year Estimates"}]
[]
[]
[null,null,"Acworth",null,"Charlestown",null,"Claremont",null,"Cornish",null,"Croydon",null,"Goshen",null,"Grantham",null,"Langdon",null,"Lempster",null,"Newport",null,"Plainfield",null,"Springfield",null,"Sunapee",null,"Unity",null,"Washington"]
[null,null,"Estimate","Margin Of Error","Estimate","Margin Of Error","Estimate","Margin Of Error","Estimate","Margin Of Error","Estimate","Margin Of Error","Estimate","Margin Of Error","Estimate","Margin Of Error","Estimate","Margin Of Error","Estimate","Margin Of Error","Estimate","Margin Of Error","Estimate","Margin Of Error","Estimate","Margin Of Error","Estimate","Margin Of Error","Estimate","Margin Of Error","Estimate","Margin Of Error"]
[null,"Total:",{"$f":"C7","v":869},133,4707,114,12046,169,1722,218,840,240,641,102,2945,14,680,139,857,153,5974,123,2473,261,{"$f":"Y7","v":1070},193,3291,68,1314,147,1193,187]
[null,"5 to 17  years:",{"$f":"C25+C9","v":58},{"$f":"SQRT((D25^2)+(D9^2))","v":29.206163733020468},{"$f":"E25+E9","v":670},{"$f":"SQRT((F25^2)+(F9^2))","v":179.49373248110922},{"$f":"G25+G9","v":1824},{"$f":"SQRT((H25^2)+(H9^2))","v":263.30970358116315},{"$f":"I25+I9","v":288},{"$f":"SQRT((J25^2)+(J9^2))","v":116.46887996370532},{"$f":"K25+K9","v":121},{"$f":"SQRT((L25^2)+(L9^2))","v":50.24937810560445},{"$f":"M25+M9","v":98},{"$f":"SQRT((N25^2)+(N9^2))","v":36.796738985948195},{"$f":"O25+O9","v":521},{"$f":"SQRT((P25^2)+(P9^2))","v":155.20631430454111},{"$f":"Q25+Q9","v":137},{"$f":"SQRT((R25^2)+(R9^2))","v":62.289646009589745},{"$f":"S25+S9","v":157},{"$f":"SQRT((T25^2)+(T9^2))","v":79.404030124421269},{"$f":"U25+U9","v":913},{"$f":"SQRT((V25^2)+(V9^2))","v":224.96444163467257},{"$f":"W25+W9","v":415},{"$f":"SQRT((X25^2)+(X9^2))","v":118.1397477566293},142,56.612719418872643,{"$f":"AA25+AA9","v":534},{"$f":"SQRT((AB25^2)+(AB9^2))","v":126.81088281373961},135,52.392747589718944,{"$f":"AE25+AE9","v":133},{"$f":"SQRT((AF25^2)+(AF9^2))","v":56.938563381947034}]
[null,"With self care difficulty",0,15.556349186104045,31,44.011362169330773,53,48.414873747640819,0,15.556349186104045,0,15.556349186104045,2,11.401754250991379,41,61.98386886924694,0,15.556349186104045,0,15.556349186104045,0,22.627416997969522,7,14.212670403551895,0,15.556349186104045,0,15.556349186104045,0,15.556349186104045,2,12.083045973594572]
[null,"With no self care difficulty",58,29.206163733020468,639,177.04519197086375,1771,258.47437010272409,288,116.46887996370532,121,50.24937810560445,96,36.796738985948195,480,150.60212481900777,137,62.289646009589745,157,79.404030124421269,913,224.96444163467257,408,118.86967653695369,142,56.612719418872643,534,126.81088281373961,135,52.392747589718944,131,56.938563381947034]
[null,"18 to 34  years:",126,45.486261662176638,847,180,3037,316.21827904155066,173,38.897300677553446,211,106.88779163215975,112,39.962482405376171,262,122.20065466273084,122,36.796738985948195,88,28.844410203711913,1274,239.94374340665772,541,103.81233067415451,140,62.169124169478209,540,118.84864324004712,190,55.470712993434653,135,47.634021455258214]
[null,"With self care difficulty",9,17.804493814764857,0,22.627416997969522,9,23.430749027719962,0,15.556349186104045,2,11.704699910719626,0,15.556349186104045,0,15.556349186104045,0,15.556349186104045,0,15.556349186104045,34,54.405882034941776,0,15.556349186104045,0,15.556349186104045,0,15.556349186104045,0,15.556349186104045,0,15.556349186104045]
[null,"With no self care difficulty",117,44.654227123532216,847,180,3028,314.45349417680194,173,38.897300677553446,209,106.45186705737011,112,39.962482405376171,262,122.20065466273084,122,36.796738985948195,88,28.844410203711913,1240,241.42286552851616,541,103.81233067415451,140,62.169124169478209,540,118.84864324004712,190,55.470712993434653,135,47.634021455258214]
[null,"35 to 64  years:",403,66.483080554378645,2114,236.96624232155938,4876,284.50834785643815,747,79.309520235593411,367,80.05623023850174,274,52.630789467763066,1509,180.38015411901608,317,57.280013966478741,440,77.89736837660179,2668,286.35642126552705,1042,107.71258050942797,466,89.805345052507874,1511,172.62676501632069,662,69.526973183074787,610,113.84638773364749]
[null,"With self care difficulty",0,15.556349186104045,125,109.63576058932597,152,81.743501270743224,0,15.556349186104045,2,11.401754250991379,2,11.401754250991379,0,15.556349186104045,0,15.556349186104045,7,14.212670403551895,89,99.463561166891665,6,13.601470508735444,3,12.083045973594572,31,35.735136770411273,6,5.6568542494923806,0,15.556349186104045]
[null,"With no self care difficulty",403,66.483080554378645,1989,229.4558781116753,4724,288.62605564986677,747,79.309520235593411,365,80.05623023850174,272,52.630789467763066,1509,180.38015411901608,317,57.280013966478741,433,76.576758876306585,2579,291.44639301250584,1036,107.71258050942797,463,89.805345052507874,1480,164.76953601925328,656,68.8839603971781,610,113.84638773364749]
[null,"65 to 74  years:",205,49.929950931279713,557,152.43359209832983,1405,184.74035834110532,239,56.36488268416781,87,30.413812651491099,198,59.033888572581766,191,69.871310278253688,90,26.92582403567252,380,132.98120167903431,586,170.46113926640288,290,70.802542327235685,344,80.777472107017559,289,64.845971347493901,244,47.507894080878813,121,35]
[null,"With self care difficulty",4,5.6568542494923806,0,22.627416997969522,115,108.16653826391968,0,15.556349186104045,4,5.6568542494923806,2,11.401754250991379,0,15.556349186104045,2,11.401754250991379,0,19.416487838947599,21,31.384709652950431,0,15.556349186104045,0,15.556349186104045,0,15.556349186104045,0,15.556349186104045,0,11]
[null,"With no self care difficulty",201,49.929950931279713,557,152.43359209832983,1290,180.20543831971332,239,56.36488268416781,83,29,196,58.600341295934449,191,69.871310278253688,88,26.92582403567252,380,132.98120167903431,565,169.49926253526885,290,70.802542327235685,344,80.777472107017559,289,64.845971347493901,244,47.507894080878813,121,35]
[null,"75  years and Older:",77,26.92582403567252,519,166.20770138594662,904,155.3319027115808,87,34.176014981270121,62,20.615528128088304,184,76.295478240849903,209,86.371291526756735,54,27.513632984395208,299,103.58571330062848,177,87.091905479212016,94,43.600458713183279,243,88.238313673823114,154,60.876925020897694,76,22.671568097509269,49,19]
[null,"With self care difficulty",6,14.866068747318506,49,45.607017003965517,61,57.008771254956898,0,15.556349186104045,2,11.401754250991379,0,15.556349186104045,0,15.556349186104045,0,15.556349186104045,52,67.896980787071826,48,40.224370722237531,10,19.416487838947599,15,25.495097567963924,4,12.083045973594572,0,15.556349186104045,0,11]
[null,"With no self care difficulty",71,25.238858928247925,470,167.58579892103029,843,148.69095466772686,87,34.176014981270121,60,20.615528128088304,184,76.295478240849903,209,86.371291526756735,54,27.513632984395208,247,91.662424144247893,129,78.434686204510314,84,39.357337308308857,228,86.406018308911797,150,60.415229867972862,76,22.671568097509269,49,19]
[]
[]
[]
[]
[]
[]
[]
[]
[]
[]
[]
[]
[]
[]
[]
[]
[]
[]
[]
[]
[]
[]
[]
[]
[]
[]
[]
[]
[]
[]
[]
[]
[]
[]
[]
["B18106. SEX BY AGE BY SELF-CARE DIFFICULTY\n\n\n\n-Calculated"]
["Universe:  Civilian non-institutionalized population 5 years and over"]
["Data Set: 2010-2014 American Community Survey 5-Year Estimates"]
[]
[]
[null,null,"Acworth",null,"Charlestown",null,"Claremont",null,"Cornish",null,"Croydon",null,"Goshen",null,"Grantham",null,"Langdon",null,"Lempster",null,"Newport",null,"Plainfield",null,"Springfield",null,"Sunapee",null,"Unity",null,"Washington"]
[null,null,"Estimate","Margin Of Error","Estimate","Margin Of Error","Estimate","Margin Of Error","Estimate","Margin Of Error","Estimate","Margin Of Error","Estimate","Margin Of Error","Estimate","Margin Of Error","Estimate","Margin Of Error","Estimate","Margin Of Error","Estimate","Margin Of Error","Estimate","Margin Of Error","Estimate","Margin Of Error","Estimate","Margin Of Error","Estimate","Margin Of Error","Estimate","Margin Of Error"]
[null,"Total:",868,138,4741,123,12204,167,1510,165,619,123,774,111,2799,84,746,144,1022,150,6205,116,2377,155,1231,195,3285,64,1303,144,997,136]
[null,"5 to 17  years:",152,54.203320931470607,588,145.71547618561317,2117,243.21184181696418,243,76.05918747922567,93,33.941125496954278,93,39.446165846632042,536,156.72268502038881,140,59.816385714952723,156,48.104053883222775,1002,213.05398376937239,408,85.562842402528915,244,73.552702193733168,492,128.80993750483694,142,39.962482405376171,130,58.137767414994535]
[null,"With self care difficulty",0,15.556349186104045,11,21.095023109728988,13,27.018512172212592,0,15.556349186104045,0,15.556349186104045,0,15.556349186104045,0,15.556349186104045,2,11.401754250991379,6,5.6568542494923806,13,25.80697580112788,5,13.038404810405298,0,15.556349186104045,0,15.556349186104045,7,14.866068747318506,0,15.556349186104045]
[null,"With no self care difficulty",152,54.203320931470607,577,144.9413674559475,2104,242.40668307618913,243,76.05918747922567,93,33.941125496954278,93,39.446165846632042,536,156.72268502038881,138,59.816385714952723,150,47.381430961928537,989,214.3361845326169,403,85.562842402528915,244,73.552702193733168,492,128.80993750483694,135,39.962482405376171,130,58.137767414994535]
[null,"18 to 34  years:",184,54.378304497290095,900,194.55847450059841,2858,279.37966998334008,273,55.97320787662612,96,41.400483088968905,134,40.36087214122113,358,127.3184982632139,175,58,137,52.773099207835045,1050,218.68699092538631,401,83.630138108220294,173,55,504,146.60491124106312,207,60.21627686929839,100,41.231056256176608]
[null,"With self care difficulty",0,15.556349186104045,0,15.556349186104045,36,44.384682042344295,0,15.556349186104045,0,15.556349186104045,0,15.556349186104045,12,21.095023109728988,0,15.556349186104045,0,15.556349186104045,0,21.213203435596427,0,15.556349186104045,0,15.556349186104045,0,15.556349186104045,0,15.556349186104045,0,15.556349186104045]
[null,"With no self care difficulty",184,54.378304497290095,900,194.55847450059841,2822,274.36107595648474,273,55.97320787662612,96,41.400483088968905,134,40.36087214122113,346,126.24579200908045,175,58,137,52.773099207835045,1050,218.68699092538631,401,83.630138108220294,173,55,504,146.60491124106312,207,60.21627686929839,100,41.231056256176608]
[null,"35 to 64  years:",380,55.865910893853687,2320,200.124960961895,5203,255.34486483969087,799,72.138755187485728,348,58.051701094799967,405,54.671747731346578,1313,129.4488315899375,305,50.328918128646478,571,72.249567472753768,3031,239.05857022913861,1172,102.7277956543408,648,89.403579346690591,1478,196.54261624390779,768,68.8839603971781,520,70.767224051816527]
[null,"With self care difficulty",8,7.6157731058639087,101,87.114866699088736,143,69.892775020026207,21,19.697715603592208,0,15.556349186104045,3,11.704699910719626,0,15.556349186104045,4,12.083045973594572,0,15.556349186104045,37,47.434164902525687,14,16.278820596099706,7,15.556349186104045,7,15.556349186104045,4,12.083045973594572,28,19.104973174542799]
[null,"With no self care difficulty",372,55.172456896534889,2219,221.11083193728885,5060,252.60443384865596,778,68.680419334771102,348,58.051701094799967,402,54.671747731346578,1313,129.4488315899375,301,50.328918128646478,571,72.249567472753768,2994,242.11773995310628,1158,102.7277956543408,641,90.210864090751286,1471,196.54261624390779,764,68.117545463705611,492,65.855903304107827]
[null,"65 to 74  years:",105,33.421549934136806,573,157.76247969653622,1109,160.96272860510285,142,45.607017003965517,55,19.849433241279208,75,29.068883707497267,262,79.246451024635803,87,25.45584412271571,85,28.301943396169811,702,194.60986614249546,297,68.818602136341013,120,40.496913462633174,436,116.10340218959993,117,30.610455730027933,161,29.732137494637012]
[null,"With self care difficulty",0,15.556349186104045,52,63.953107821277925,18,20.248456731316587,0,15.556349186104045,1,11.704699910719626,0,15.556349186104045,3,11.704699910719626,0,15.556349186104045,0,15.556349186104045,19,30.016662039607269,15,12.529964086141668,7,15.556349186104045,15,16.970562748477139,0,15.556349186104045,3,12.083045973594572]
[null,"With no self care difficulty",105,33.421549934136806,521,151.74320413119,1091,161.07451691686057,142,45.607017003965517,54,19.209372712298546,75,29.068883707497267,259,79.246451024635803,87,25.45584412271571,85,28.301943396169811,683,193.87624919004389,282,68.818602136341013,113,38.013155617496423,421,115.31261856362468,117,30.610455730027933,158,29.732137494637012]
[null,"75  years and Older:",47,18.788294228055936,360,139.26952286842948,917,129.20139318134306,53,20,27,18.601075237738275,67,22.671568097509269,330,92.200867674876037,39,19.104973174542799,73,30.413812651491099,420,113.56936206565572,99,36.891733491393431,46,21.95449840010015,375,95.587656106842587,69,21.633307652783937,86,27.658633371878661]
[null,"With self care difficulty",4,11.704699910719626,24,30.083217912982647,137,63.031738037277698,8,8.0622577482985491,9,15.556349186104045,5,13.038404810405298,37,55.108982933819419,2,11.401754250991379,10,15.556349186104045,77,68.942004612572731,18,17.804493814764857,6,12.529964086141668,0,15.556349186104045,6,5.6568542494923806,3,12.083045973594572]
[null,"With no self care difficulty",43,18.788294228055936,336,138.13037319865606,780,127.20062892926276,45,18.867962264113206,18,15.524174696260024,62,20.518284528683193,293,80.65977932030313,37,18.384776310850235,63,28.319604517012593,343,89.044932477934978,81,30.886890422961002,40,20.248456731316587,375,95.587656106842587,63,20.248456731316587,83,27.658633371878661]

{"sheet":"SData_B18107_IndependantLivDis","index":52,"n_rows":47,"n_cols":58,"rows_kept":47,"cut":false,"hidden":true,"merged":[]}
["GEO_ID","GEO_ID2","SUMLEVEL"]
["Geography Identifier","Geography Identifier","Geographic Summary Level",null,{"$f":"[1]ACS_16_5YR_B18107_with_ann!D$2","v":"Estimate Total:"},{"$f":"[1]ACS_16_5YR_B18107_with_ann!E$2","v":"Margin of Error Total:"},{"$f":"[1]ACS_16_5YR_B18107_with_ann!F$2","v":"Estimate Total: Male:"},{"$f":"[1]ACS_16_5YR_B18107_with_ann!G$2","v":"Margin of Error Total: Male:"},{"$f":"[1]ACS_16_5YR_B18107_with_ann!H$2","v":"Estimate Total: Male: 18 to 34 years:"},{"$f":"[1]ACS_16_5YR_B18107_with_ann!I$2","v":"Margin of Error Total: Male: 18 to 34 years:"},{"$f":"[1]ACS_16_5YR_B18107_with_ann!J$2","v":"Estimate Total: Male: 18 to 34 years: With an independent living difficulty"},{"$f":"[1]ACS_16_5YR_B18107_with_ann!K$2","v":"Margin of Error Total: Male: 18 to 34 years: With an independent living difficulty"},{"$f":"[1]ACS_16_5YR_B18107_with_ann!L$2","v":"Estimate Total: Male: 18 to 34 years: No independent living difficulty"},{"$f":"[1]ACS_16_5YR_B18107_with_ann!M$2","v":"Margin of Error Total: Male: 18 to 34 years: No independent living difficulty"},{"$f":"[1]ACS_16_5YR_B18107_with_ann!N$2","v":"Estimate Total: Male: 35 to 64 years:"},{"$f":"[1]ACS_16_5YR_B18107_with_ann!O$2","v":"Margin of Error Total: Male: 35 to 64 years:"},{"$f":"[1]ACS_16_5YR_B18107_with_ann!P$2","v":"Estimate Total: Male: 35 to 64 years: With an independent living difficulty"},{"$f":"[1]ACS_16_5YR_B18107_with_ann!Q$2","v":"Margin of Error Total: Male: 35 to 64 years: With an independent living difficulty"},{"$f":"[1]ACS_16_5YR_B18107_with_ann!R$2","v":"Estimate Total: Male: 35 to 64 years: No independent living difficulty"},{"$f":"[1]ACS_16_5YR_B18107_with_ann!S$2","v":"Margin of Error Total: Male: 35 to 64 years: No independent living difficulty"},{"$f":"[1]ACS_16_5YR_B18107_with_ann!T$2","v":"Estimate Total: Male: 65 to 74 years:"},{"$f":"[1]ACS_16_5YR_B18107_with_ann!U$2","v":"Margin of Error Total: Male: 65 to 74 years:"},{"$f":"[1]ACS_16_5YR_B18107_with_ann!V$2","v":"Estimate Total: Male: 65 to 74 years: With an independent living difficulty"},{"$f":"[1]ACS_16_5YR_B18107_with_ann!W$2","v":"Margin of Error Total: Male: 65 to 74 years: With an independent living difficulty"},{"$f":"[1]ACS_16_5YR_B18107_with_ann!X$2","v":"Estimate Total: Male: 65 to 74 years: No independent living difficulty"},{"$f":"[1]ACS_16_5YR_B18107_with_ann!Y$2","v":"Margin of Error Total: Male: 65 to 74 years: No independent living difficulty"},{"$f":"[1]ACS_16_5YR_B18107_with_ann!Z$2","v":"Estimate Total: Male: 75 years and over:"},{"$f":"[1]ACS_16_5YR_B18107_with_ann!AA$2","v":"Margin of Error Total: Male: 75 years and over:"},{"$f":"[1]ACS_16_5YR_B18107_with_ann!AB$2","v":"Estimate Total: Male: 75 years and over: With an independent living difficulty"},{"$f":"[1]ACS_16_5YR_B18107_with_ann!AC$2","v":"Margin of Error Total: Male: 75 years and over: With an independent living difficulty"},{"$f":"[1]ACS_16_5YR_B18107_with_ann!AD$2","v":"Estimate Total: Male: 75 years and over: No independent living difficulty"},{"$f":"[1]ACS_16_5YR_B18107_with_ann!AE$2","v":"Margin of Error Total: Male: 75 years and over: No independent living difficulty"},{"$f":"[1]ACS_16_5YR_B18107_with_ann!AF$2","v":"Estimate Total: Female:"},{"$f":"[1]ACS_16_5YR_B18107_with_ann!AG$2","v":"Margin of Error Total: Female:"},{"$f":"[1]ACS_16_5YR_B18107_with_ann!AH$2","v":"Estimate Total: Female: 18 to 34 years:"},{"$f":"[1]ACS_16_5YR_B18107_with_ann!AI$2","v":"Margin of Error Total: Female: 18 to 34 years:"},{"$f":"[1]ACS_16_5YR_B18107_with_ann!AJ$2","v":"Estimate Total: Female: 18 to 34 years: With an independent living difficulty"},{"$f":"[1]ACS_16_5YR_B18107_with_ann!AK$2","v":"Margin of Error Total: Female: 18 to 34 years: With an independent living difficulty"},{"$f":"[1]ACS_16_5YR_B18107_with_ann!AL$2","v":"Estimate Total: Female: 18 to 34 years: No independent living difficulty"},{"$f":"[1]ACS_16_5YR_B18107_with_ann!AM$2","v":"Margin of Error Total: Female: 18 to 34 years: No independent living difficulty"},{"$f":"[1]ACS_16_5YR_B18107_with_ann!AN$2","v":"Estimate Total: Female: 35 to 64 years:"},{"$f":"[1]ACS_16_5YR_B18107_with_ann!AO$2","v":"Margin of Error Total: Female: 35 to 64 years:"},{"$f":"[1]ACS_16_5YR_B18107_with_ann!AP$2","v":"Estimate Total: Female: 35 to 64 years: With an independent living difficulty"},{"$f":"[1]ACS_16_5YR_B18107_with_ann!AQ$2","v":"Margin of Error Total: Female: 35 to 64 years: With an independent living difficulty"},{"$f":"[1]ACS_16_5YR_B18107_with_ann!AR$2","v":"Estimate Total: Female: 35 to 64 years: No independent living difficulty"},{"$f":"[1]ACS_16_5YR_B18107_with_ann!AS$2","v":"Margin of Error Total: Female: 35 to 64 years: No independent living difficulty"},{"$f":"[1]ACS_16_5YR_B18107_with_ann!AT$2","v":"Estimate Total: Female: 65 to 74 years:"},{"$f":"[1]ACS_16_5YR_B18107_with_ann!AU$2","v":"Margin of Error Total: Female: 65 to 74 years:"},{"$f":"[1]ACS_16_5YR_B18107_with_ann!AV$2","v":"Estimate Total: Female: 65 to 74 years: With an independent living difficulty"},{"$f":"[1]ACS_16_5YR_B18107_with_ann!AW$2","v":"Margin of Error Total: Female: 65 to 74 years: With an independent living difficulty"},{"$f":"[1]ACS_16_5YR_B18107_with_ann!AX$2","v":"Estimate Total: Female: 65 to 74 years: No independent living difficulty"},{"$f":"[1]ACS_16_5YR_B18107_with_ann!AY$2","v":"Margin of Error Total: Female: 65 to 74 years: No independent living difficulty"},{"$f":"[1]ACS_16_5YR_B18107_with_ann!AZ$2","v":"Estimate Total: Female: 75 years and over:"},{"$f":"[1]ACS_16_5YR_B18107_with_ann!BA$2","v":"Margin of Error Total: Female: 75 years and over:"},{"$f":"[1]ACS_16_5YR_B18107_with_ann!BB$2","v":"Estimate Total: Female: 75 years and over: With an independent living difficulty"},{"$f":"[1]ACS_16_5YR_B18107_with_ann!BC$2","v":"Margin of Error Total: Female: 75 years and over: With an independent living difficulty"},{"$f":"[1]ACS_16_5YR_B18107_with_ann!BD$2","v":"Estimate Total: Female: 75 years and over: No independent living difficulty"},{"$f":"[1]ACS_16_5YR_B18107_with_ann!BE$2","v":"Margin of Error Total: Female: 75 years and over: No independent living difficulty"}]
["0600000US3301900259",3301900259,"060","Acworth",{"$f":"[1]ACS_16_5YR_B18107_with_ann!D258","v":811},{"$f":"[1]ACS_16_5YR_B18107_with_ann!E258","v":122},{"$f":"[1]ACS_16_5YR_B18107_with_ann!F258","v":432},{"$f":"[1]ACS_16_5YR_B18107_with_ann!G258","v":73},{"$f":"[1]ACS_16_5YR_B18107_with_ann!H258","v":79},{"$f":"[1]ACS_16_5YR_B18107_with_ann!I258","v":38},{"$f":"[1]ACS_16_5YR_B18107_with_ann!J258","v":17},{"$f":"[1]ACS_16_5YR_B18107_with_ann!K258","v":17},{"$f":"[1]ACS_16_5YR_B18107_with_ann!L258","v":62},{"$f":"[1]ACS_16_5YR_B18107_with_ann!M258","v":35},{"$f":"[1]ACS_16_5YR_B18107_with_ann!N258","v":213},{"$f":"[1]ACS_16_5YR_B18107_with_ann!O258","v":48},{"$f":"[1]ACS_16_5YR_B18107_with_ann!P258","v":0},{"$f":"[1]ACS_16_5YR_B18107_with_ann!Q258","v":11},{"$f":"[1]ACS_16_5YR_B18107_with_ann!R258","v":213},{"$f":"[1]ACS_16_5YR_B18107_with_ann!S258","v":48},{"$f":"[1]ACS_16_5YR_B18107_with_ann!T258","v":88},{"$f":"[1]ACS_16_5YR_B18107_with_ann!U258","v":27},{"$f":"[1]ACS_16_5YR_B18107_with_ann!V258","v":12},{"$f":"[1]ACS_16_5YR_B18107_with_ann!W258","v":11},{"$f":"[1]ACS_16_5YR_B18107_with_ann!X258","v":76},{"$f":"[1]ACS_16_5YR_B18107_with_ann!Y258","v":23},{"$f":"[1]ACS_16_5YR_B18107_with_ann!Z258","v":52},{"$f":"[1]ACS_16_5YR_B18107_with_ann!AA258","v":23},{"$f":"[1]ACS_16_5YR_B18107_with_ann!AB258","v":11},{"$f":"[1]ACS_16_5YR_B18107_with_ann!AC258","v":13},{"$f":"[1]ACS_16_5YR_B18107_with_ann!AD258","v":41},{"$f":"[1]ACS_16_5YR_B18107_with_ann!AE258","v":19},{"$f":"[1]ACS_16_5YR_B18107_with_ann!AF258","v":379},{"$f":"[1]ACS_16_5YR_B18107_with_ann!AG258","v":65},{"$f":"[1]ACS_16_5YR_B18107_with_ann!AH258","v":47},{"$f":"[1]ACS_16_5YR_B18107_with_ann!AI258","v":25},{"$f":"[1]ACS_16_5YR_B18107_with_ann!AJ258","v":0},{"$f":"[1]ACS_16_5YR_B18107_with_ann!AK258","v":11},{"$f":"[1]ACS_16_5YR_B18107_with_ann!AL258","v":47},{"$f":"[1]ACS_16_5YR_B18107_with_ann!AM258","v":25},{"$f":"[1]ACS_16_5YR_B18107_with_ann!AN258","v":190},{"$f":"[1]ACS_16_5YR_B18107_with_ann!AO258","v":46},{"$f":"[1]ACS_16_5YR_B18107_with_ann!AP258","v":0},{"$f":"[1]ACS_16_5YR_B18107_with_ann!AQ258","v":11},{"$f":"[1]ACS_16_5YR_B18107_with_ann!AR258","v":190},{"$f":"[1]ACS_16_5YR_B18107_with_ann!AS258","v":46},{"$f":"[1]ACS_16_5YR_B18107_with_ann!AT258","v":117},{"$f":"[1]ACS_16_5YR_B18107_with_ann!AU258","v":42},{"$f":"[1]ACS_16_5YR_B18107_with_ann!AV258","v":5},{"$f":"[1]ACS_16_5YR_B18107_with_ann!AW258","v":5},{"$f":"[1]ACS_16_5YR_B18107_with_ann!AX258","v":112},{"$f":"[1]ACS_16_5YR_B18107_with_ann!AY258","v":41},{"$f":"[1]ACS_16_5YR_B18107_with_ann!AZ258","v":25},{"$f":"[1]ACS_16_5YR_B18107_with_ann!BA258","v":14},{"$f":"[1]ACS_16_5YR_B18107_with_ann!BB258","v":2},{"$f":"[1]ACS_16_5YR_B18107_with_ann!BC258","v":3},{"$f":"[1]ACS_16_5YR_B18107_with_ann!BD258","v":23},{"$f":"[1]ACS_16_5YR_B18107_with_ann!BE258","v":14}]
["0600000US3301911380",3301911380,"060","Charlestown",{"$f":"[1]ACS_16_5YR_B18107_with_ann!D259","v":4037},{"$f":"[1]ACS_16_5YR_B18107_with_ann!E259","v":194},{"$f":"[1]ACS_16_5YR_B18107_with_ann!F259","v":2075},{"$f":"[1]ACS_16_5YR_B18107_with_ann!G259","v":189},{"$f":"[1]ACS_16_5YR_B18107_with_ann!H259","v":490},{"$f":"[1]ACS_16_5YR_B18107_with_ann!I259","v":144},{"$f":"[1]ACS_16_5YR_B18107_with_ann!J259","v":1},{"$f":"[1]ACS_16_5YR_B18107_with_ann!K259","v":3},{"$f":"[1]ACS_16_5YR_B18107_with_ann!L259","v":489},{"$f":"[1]ACS_16_5YR_B18107_with_ann!M259","v":144},{"$f":"[1]ACS_16_5YR_B18107_with_ann!N259","v":1034},{"$f":"[1]ACS_16_5YR_B18107_with_ann!O259","v":172},{"$f":"[1]ACS_16_5YR_B18107_with_ann!P259","v":71},{"$f":"[1]ACS_16_5YR_B18107_with_ann!Q259","v":86},{"$f":"[1]ACS_16_5YR_B18107_with_ann!R259","v":963},{"$f":"[1]ACS_16_5YR_B18107_with_ann!S259","v":153},{"$f":"[1]ACS_16_5YR_B18107_with_ann!T259","v":261},{"$f":"[1]ACS_16_5YR_B18107_with_ann!U259","v":94},{"$f":"[1]ACS_16_5YR_B18107_with_ann!V259","v":0},{"$f":"[1]ACS_16_5YR_B18107_with_ann!W259","v":16},{"$f":"[1]ACS_16_5YR_B18107_with_ann!X259","v":261},{"$f":"[1]ACS_16_5YR_B18107_with_ann!Y259","v":94},{"$f":"[1]ACS_16_5YR_B18107_with_ann!Z259","v":290},{"$f":"[1]ACS_16_5YR_B18107_with_ann!AA259","v":141},{"$f":"[1]ACS_16_5YR_B18107_with_ann!AB259","v":32},{"$f":"[1]ACS_16_5YR_B18107_with_ann!AC259","v":36},{"$f":"[1]ACS_16_5YR_B18107_with_ann!AD259","v":258},{"$f":"[1]ACS_16_5YR_B18107_with_ann!AE259","v":142},{"$f":"[1]ACS_16_5YR_B18107_with_ann!AF259","v":1962},{"$f":"[1]ACS_16_5YR_B18107_with_ann!AG259","v":208},{"$f":"[1]ACS_16_5YR_B18107_with_ann!AH259","v":357},{"$f":"[1]ACS_16_5YR_B18107_with_ann!AI259","v":108},{"$f":"[1]ACS_16_5YR_B18107_with_ann!AJ259","v":0},{"$f":"[1]ACS_16_5YR_B18107_with_ann!AK259","v":16},{"$f":"[1]ACS_16_5YR_B18107_with_ann!AL259","v":357},{"$f":"[1]ACS_16_5YR_B18107_with_ann!AM259","v":108},{"$f":"[1]ACS_16_5YR_B18107_with_ann!AN259","v":1080},{"$f":"[1]ACS_16_5YR_B18107_with_ann!AO259","v":163},{"$f":"[1]ACS_16_5YR_B18107_with_ann!AP259","v":83},{"$f":"[1]ACS_16_5YR_B18107_with_ann!AQ259","v":79},{"$f":"[1]ACS_16_5YR_B18107_with_ann!AR259","v":997},{"$f":"[1]ACS_16_5YR_B18107_with_ann!AS259","v":171},{"$f":"[1]ACS_16_5YR_B18107_with_ann!AT259","v":296},{"$f":"[1]ACS_16_5YR_B18107_with_ann!AU259","v":120},{"$f":"[1]ACS_16_5YR_B18107_with_ann!AV259","v":0},{"$f":"[1]ACS_16_5YR_B18107_with_ann!AW259","v":16},{"$f":"[1]ACS_16_5YR_B18107_with_ann!AX259","v":296},{"$f":"[1]ACS_16_5YR_B18107_with_ann!AY259","v":120},{"$f":"[1]ACS_16_5YR_B18107_with_ann!AZ259","v":229},{"$f":"[1]ACS_16_5YR_B18107_with_ann!BA259","v":88},{"$f":"[1]ACS_16_5YR_B18107_with_ann!BB259","v":49},{"$f":"[1]ACS_16_5YR_B18107_with_ann!BC259","v":40},{"$f":"[1]ACS_16_5YR_B18107_with_ann!BD259","v":180},{"$f":"[1]ACS_16_5YR_B18107_with_ann!BE259","v":86}]
["0600000US3301912900",3301912900,"060","Claremont",{"$f":"[1]ACS_16_5YR_B18107_with_ann!D260","v":10222},{"$f":"[1]ACS_16_5YR_B18107_with_ann!E260","v":239},{"$f":"[1]ACS_16_5YR_B18107_with_ann!F260","v":4970},{"$f":"[1]ACS_16_5YR_B18107_with_ann!G260","v":237},{"$f":"[1]ACS_16_5YR_B18107_with_ann!H260","v":1622},{"$f":"[1]ACS_16_5YR_B18107_with_ann!I260","v":255},{"$f":"[1]ACS_16_5YR_B18107_with_ann!J260","v":96},{"$f":"[1]ACS_16_5YR_B18107_with_ann!K260","v":95},{"$f":"[1]ACS_16_5YR_B18107_with_ann!L260","v":1526},{"$f":"[1]ACS_16_5YR_B18107_with_ann!M260","v":243},{"$f":"[1]ACS_16_5YR_B18107_with_ann!N260","v":2416},{"$f":"[1]ACS_16_5YR_B18107_with_ann!O260","v":184},{"$f":"[1]ACS_16_5YR_B18107_with_ann!P260","v":275},{"$f":"[1]ACS_16_5YR_B18107_with_ann!Q260","v":115},{"$f":"[1]ACS_16_5YR_B18107_with_ann!R260","v":2141},{"$f":"[1]ACS_16_5YR_B18107_with_ann!S260","v":199},{"$f":"[1]ACS_16_5YR_B18107_with_ann!T260","v":650},{"$f":"[1]ACS_16_5YR_B18107_with_ann!U260","v":105},{"$f":"[1]ACS_16_5YR_B18107_with_ann!V260","v":22},{"$f":"[1]ACS_16_5YR_B18107_with_ann!W260","v":36},{"$f":"[1]ACS_16_5YR_B18107_with_ann!X260","v":628},{"$f":"[1]ACS_16_5YR_B18107_with_ann!Y260","v":107},{"$f":"[1]ACS_16_5YR_B18107_with_ann!Z260","v":282},{"$f":"[1]ACS_16_5YR_B18107_with_ann!AA260","v":88},{"$f":"[1]ACS_16_5YR_B18107_with_ann!AB260","v":25},{"$f":"[1]ACS_16_5YR_B18107_with_ann!AC260","v":26},{"$f":"[1]ACS_16_5YR_B18107_with_ann!AD260","v":257},{"$f":"[1]ACS_16_5YR_B18107_with_ann!AE260","v":83},{"$f":"[1]ACS_16_5YR_B18107_with_ann!AF260","v":5252},{"$f":"[1]ACS_16_5YR_B18107_with_ann!AG260","v":232},{"$f":"[1]ACS_16_5YR_B18107_with_ann!AH260","v":1415},{"$f":"[1]ACS_16_5YR_B18107_with_ann!AI260","v":187},{"$f":"[1]ACS_16_5YR_B18107_with_ann!AJ260","v":158},{"$f":"[1]ACS_16_5YR_B18107_with_ann!AK260","v":73},{"$f":"[1]ACS_16_5YR_B18107_with_ann!AL260","v":1257},{"$f":"[1]ACS_16_5YR_B18107_with_ann!AM260","v":198},{"$f":"[1]ACS_16_5YR_B18107_with_ann!AN260","v":2460},{"$f":"[1]ACS_16_5YR_B18107_with_ann!AO260","v":217},{"$f":"[1]ACS_16_5YR_B18107_with_ann!AP260","v":195},{"$f":"[1]ACS_16_5YR_B18107_with_ann!AQ260","v":106},{"$f":"[1]ACS_16_5YR_B18107_with_ann!AR260","v":2265},{"$f":"[1]ACS_16_5YR_B18107_with_ann!AS260","v":232},{"$f":"[1]ACS_16_5YR_B18107_with_ann!AT260","v":755},{"$f":"[1]ACS_16_5YR_B18107_with_ann!AU260","v":152},{"$f":"[1]ACS_16_5YR_B18107_with_ann!AV260","v":61},{"$f":"[1]ACS_16_5YR_B18107_with_ann!AW260","v":84},{"$f":"[1]ACS_16_5YR_B18107_with_ann!AX260","v":694},{"$f":"[1]ACS_16_5YR_B18107_with_ann!AY260","v":145},{"$f":"[1]ACS_16_5YR_B18107_with_ann!AZ260","v":622},{"$f":"[1]ACS_16_5YR_B18107_with_ann!BA260","v":128},{"$f":"[1]ACS_16_5YR_B18107_with_ann!BB260","v":162},{"$f":"[1]ACS_16_5YR_B18107_with_ann!BC260","v":67},{"$f":"[1]ACS_16_5YR_B18107_with_ann!BD260","v":460},{"$f":"[1]ACS_16_5YR_B18107_with_ann!BE260","v":114}]
["0600000US3301915060",3301915060,"060","Cornish",{"$f":"[1]ACS_16_5YR_B18107_with_ann!D261","v":1434},{"$f":"[1]ACS_16_5YR_B18107_with_ann!E261","v":137},{"$f":"[1]ACS_16_5YR_B18107_with_ann!F261","v":718},{"$f":"[1]ACS_16_5YR_B18107_with_ann!G261","v":74},{"$f":"[1]ACS_16_5YR_B18107_with_ann!H261","v":95},{"$f":"[1]ACS_16_5YR_B18107_with_ann!I261","v":28},{"$f":"[1]ACS_16_5YR_B18107_with_ann!J261","v":4},{"$f":"[1]ACS_16_5YR_B18107_with_ann!K261","v":6},{"$f":"[1]ACS_16_5YR_B18107_with_ann!L261","v":91},{"$f":"[1]ACS_16_5YR_B18107_with_ann!M261","v":27},{"$f":"[1]ACS_16_5YR_B18107_with_ann!N261","v":367},{"$f":"[1]ACS_16_5YR_B18107_with_ann!O261","v":53},{"$f":"[1]ACS_16_5YR_B18107_with_ann!P261","v":6},{"$f":"[1]ACS_16_5YR_B18107_with_ann!Q261","v":7},{"$f":"[1]ACS_16_5YR_B18107_with_ann!R261","v":361},{"$f":"[1]ACS_16_5YR_B18107_with_ann!S261","v":54},{"$f":"[1]ACS_16_5YR_B18107_with_ann!T261","v":190},{"$f":"[1]ACS_16_5YR_B18107_with_ann!U261","v":51},{"$f":"[1]ACS_16_5YR_B18107_with_ann!V261","v":3},{"$f":"[1]ACS_16_5YR_B18107_with_ann!W261","v":6},{"$f":"[1]ACS_16_5YR_B18107_with_ann!X261","v":187},{"$f":"[1]ACS_16_5YR_B18107_with_ann!Y261","v":49},{"$f":"[1]ACS_16_5YR_B18107_with_ann!Z261","v":66},{"$f":"[1]ACS_16_5YR_B18107_with_ann!AA261","v":32},{"$f":"[1]ACS_16_5YR_B18107_with_ann!AB261","v":12},{"$f":"[1]ACS_16_5YR_B18107_with_ann!AC261","v":10},{"$f":"[1]ACS_16_5YR_B18107_with_ann!AD261","v":54},{"$f":"[1]ACS_16_5YR_B18107_with_ann!AE261","v":29},{"$f":"[1]ACS_16_5YR_B18107_with_ann!AF261","v":716},{"$f":"[1]ACS_16_5YR_B18107_with_ann!AG261","v":82},{"$f":"[1]ACS_16_5YR_B18107_with_ann!AH261","v":78},{"$f":"[1]ACS_16_5YR_B18107_with_ann!AI261","v":27},{"$f":"[1]ACS_16_5YR_B18107_with_ann!AJ261","v":0},{"$f":"[1]ACS_16_5YR_B18107_with_ann!AK261","v":11},{"$f":"[1]ACS_16_5YR_B18107_with_ann!AL261","v":78},{"$f":"[1]ACS_16_5YR_B18107_with_ann!AM261","v":27},{"$f":"[1]ACS_16_5YR_B18107_with_ann!AN261","v":380},{"$f":"[1]ACS_16_5YR_B18107_with_ann!AO261","v":59},{"$f":"[1]ACS_16_5YR_B18107_with_ann!AP261","v":2},{"$f":"[1]ACS_16_5YR_B18107_with_ann!AQ261","v":5},{"$f":"[1]ACS_16_5YR_B18107_with_ann!AR261","v":378},{"$f":"[1]ACS_16_5YR_B18107_with_ann!AS261","v":60},{"$f":"[1]ACS_16_5YR_B18107_with_ann!AT261","v":172},{"$f":"[1]ACS_16_5YR_B18107_with_ann!AU261","v":43},{"$f":"[1]ACS_16_5YR_B18107_with_ann!AV261","v":9},{"$f":"[1]ACS_16_5YR_B18107_with_ann!AW261","v":8},{"$f":"[1]ACS_16_5YR_B18107_with_ann!AX261","v":163},{"$f":"[1]ACS_16_5YR_B18107_with_ann!AY261","v":42},{"$f":"[1]ACS_16_5YR_B18107_with_ann!AZ261","v":86},{"$f":"[1]ACS_16_5YR_B18107_with_ann!BA261","v":33},{"$f":"[1]ACS_16_5YR_B18107_with_ann!BB261","v":7},{"$f":"[1]ACS_16_5YR_B18107_with_ann!BC261","v":8},{"$f":"[1]ACS_16_5YR_B18107_with_ann!BD261","v":79},{"$f":"[1]ACS_16_5YR_B18107_with_ann!BE261","v":33}]
["0600000US3301916340",3301916340,"060","Croydon",{"$f":"[1]ACS_16_5YR_B18107_with_ann!D262","v":719},{"$f":"[1]ACS_16_5YR_B18107_with_ann!E262","v":208},{"$f":"[1]ACS_16_5YR_B18107_with_ann!F262","v":356},{"$f":"[1]ACS_16_5YR_B18107_with_ann!G262","v":93},{"$f":"[1]ACS_16_5YR_B18107_with_ann!H262","v":87},{"$f":"[1]ACS_16_5YR_B18107_with_ann!I262","v":47},{"$f":"[1]ACS_16_5YR_B18107_with_ann!J262","v":2},{"$f":"[1]ACS_16_5YR_B18107_with_ann!K262","v":4},{"$f":"[1]ACS_16_5YR_B18107_with_ann!L262","v":85},{"$f":"[1]ACS_16_5YR_B18107_with_ann!M262","v":46},{"$f":"[1]ACS_16_5YR_B18107_with_ann!N262","v":198},{"$f":"[1]ACS_16_5YR_B18107_with_ann!O262","v":60},{"$f":"[1]ACS_16_5YR_B18107_with_ann!P262","v":5},{"$f":"[1]ACS_16_5YR_B18107_with_ann!Q262","v":9},{"$f":"[1]ACS_16_5YR_B18107_with_ann!R262","v":193},{"$f":"[1]ACS_16_5YR_B18107_with_ann!S262","v":60},{"$f":"[1]ACS_16_5YR_B18107_with_ann!T262","v":38},{"$f":"[1]ACS_16_5YR_B18107_with_ann!U262","v":22},{"$f":"[1]ACS_16_5YR_B18107_with_ann!V262","v":2},{"$f":"[1]ACS_16_5YR_B18107_with_ann!W262","v":4},{"$f":"[1]ACS_16_5YR_B18107_with_ann!X262","v":36},{"$f":"[1]ACS_16_5YR_B18107_with_ann!Y262","v":21},{"$f":"[1]ACS_16_5YR_B18107_with_ann!Z262","v":33},{"$f":"[1]ACS_16_5YR_B18107_with_ann!AA262","v":16},{"$f":"[1]ACS_16_5YR_B18107_with_ann!AB262","v":6},{"$f":"[1]ACS_16_5YR_B18107_with_ann!AC262","v":5},{"$f":"[1]ACS_16_5YR_B18107_with_ann!AD262","v":27},{"$f":"[1]ACS_16_5YR_B18107_with_ann!AE262","v":15},{"$f":"[1]ACS_16_5YR_B18107_with_ann!AF262","v":363},{"$f":"[1]ACS_16_5YR_B18107_with_ann!AG262","v":132},{"$f":"[1]ACS_16_5YR_B18107_with_ann!AH262","v":124},{"$f":"[1]ACS_16_5YR_B18107_with_ann!AI262","v":96},{"$f":"[1]ACS_16_5YR_B18107_with_ann!AJ262","v":0},{"$f":"[1]ACS_16_5YR_B18107_with_ann!AK262","v":11},{"$f":"[1]ACS_16_5YR_B18107_with_ann!AL262","v":124},{"$f":"[1]ACS_16_5YR_B18107_with_ann!AM262","v":96},{"$f":"[1]ACS_16_5YR_B18107_with_ann!AN262","v":169},{"$f":"[1]ACS_16_5YR_B18107_with_ann!AO262","v":53},{"$f":"[1]ACS_16_5YR_B18107_with_ann!AP262","v":11},{"$f":"[1]ACS_16_5YR_B18107_with_ann!AQ262","v":10},{"$f":"[1]ACS_16_5YR_B18107_with_ann!AR262","v":158},{"$f":"[1]ACS_16_5YR_B18107_with_ann!AS262","v":52},{"$f":"[1]ACS_16_5YR_B18107_with_ann!AT262","v":49},{"$f":"[1]ACS_16_5YR_B18107_with_ann!AU262","v":24},{"$f":"[1]ACS_16_5YR_B18107_with_ann!AV262","v":1},{"$f":"[1]ACS_16_5YR_B18107_with_ann!AW262","v":3},{"$f":"[1]ACS_16_5YR_B18107_with_ann!AX262","v":48},{"$f":"[1]ACS_16_5YR_B18107_with_ann!AY262","v":24},{"$f":"[1]ACS_16_5YR_B18107_with_ann!AZ262","v":21},{"$f":"[1]ACS_16_5YR_B18107_with_ann!BA262","v":12},{"$f":"[1]ACS_16_5YR_B18107_with_ann!BB262","v":5},{"$f":"[1]ACS_16_5YR_B18107_with_ann!BC262","v":8},{"$f":"[1]ACS_16_5YR_B18107_with_ann!BD262","v":16},{"$f":"[1]ACS_16_5YR_B18107_with_ann!BE262","v":9}]
["0600000US3301930500",3301930500,"060","Goshen",{"$f":"[1]ACS_16_5YR_B18107_with_ann!D263","v":543},{"$f":"[1]ACS_16_5YR_B18107_with_ann!E263","v":82},{"$f":"[1]ACS_16_5YR_B18107_with_ann!F263","v":279},{"$f":"[1]ACS_16_5YR_B18107_with_ann!G263","v":56},{"$f":"[1]ACS_16_5YR_B18107_with_ann!H263","v":43},{"$f":"[1]ACS_16_5YR_B18107_with_ann!I263","v":21},{"$f":"[1]ACS_16_5YR_B18107_with_ann!J263","v":1},{"$f":"[1]ACS_16_5YR_B18107_with_ann!K263","v":4},{"$f":"[1]ACS_16_5YR_B18107_with_ann!L263","v":42},{"$f":"[1]ACS_16_5YR_B18107_with_ann!M263","v":21},{"$f":"[1]ACS_16_5YR_B18107_with_ann!N263","v":157},{"$f":"[1]ACS_16_5YR_B18107_with_ann!O263","v":41},{"$f":"[1]ACS_16_5YR_B18107_with_ann!P263","v":10},{"$f":"[1]ACS_16_5YR_B18107_with_ann!Q263","v":9},{"$f":"[1]ACS_16_5YR_B18107_with_ann!R263","v":147},{"$f":"[1]ACS_16_5YR_B18107_with_ann!S263","v":39},{"$f":"[1]ACS_16_5YR_B18107_with_ann!T263","v":59},{"$f":"[1]ACS_16_5YR_B18107_with_ann!U263","v":26},{"$f":"[1]ACS_16_5YR_B18107_with_ann!V263","v":2},{"$f":"[1]ACS_16_5YR_B18107_with_ann!W263","v":3},{"$f":"[1]ACS_16_5YR_B18107_with_ann!X263","v":57},{"$f":"[1]ACS_16_5YR_B18107_with_ann!Y263","v":25},{"$f":"[1]ACS_16_5YR_B18107_with_ann!Z263","v":20},{"$f":"[1]ACS_16_5YR_B18107_with_ann!AA263","v":14},{"$f":"[1]ACS_16_5YR_B18107_with_ann!AB263","v":0},{"$f":"[1]ACS_16_5YR_B18107_with_ann!AC263","v":11},{"$f":"[1]ACS_16_5YR_B18107_with_ann!AD263","v":20},{"$f":"[1]ACS_16_5YR_B18107_with_ann!AE263","v":14},{"$f":"[1]ACS_16_5YR_B18107_with_ann!AF263","v":264},{"$f":"[1]ACS_16_5YR_B18107_with_ann!AG263","v":41},{"$f":"[1]ACS_16_5YR_B18107_with_ann!AH263","v":69},{"$f":"[1]ACS_16_5YR_B18107_with_ann!AI263","v":34},{"$f":"[1]ACS_16_5YR_B18107_with_ann!AJ263","v":3},{"$f":"[1]ACS_16_5YR_B18107_with_ann!AK263","v":4},{"$f":"[1]ACS_16_5YR_B18107_with_ann!AL263","v":66},{"$f":"[1]ACS_16_5YR_B18107_with_ann!AM263","v":34},{"$f":"[1]ACS_16_5YR_B18107_with_ann!AN263","v":117},{"$f":"[1]ACS_16_5YR_B18107_with_ann!AO263","v":33},{"$f":"[1]ACS_16_5YR_B18107_with_ann!AP263","v":4},{"$f":"[1]ACS_16_5YR_B18107_with_ann!AQ263","v":5},{"$f":"[1]ACS_16_5YR_B18107_with_ann!AR263","v":113},{"$f":"[1]ACS_16_5YR_B18107_with_ann!AS263","v":33},{"$f":"[1]ACS_16_5YR_B18107_with_ann!AT263","v":49},{"$f":"[1]ACS_16_5YR_B18107_with_ann!AU263","v":21},{"$f":"[1]ACS_16_5YR_B18107_with_ann!AV263","v":9},{"$f":"[1]ACS_16_5YR_B18107_with_ann!AW263","v":10},{"$f":"[1]ACS_16_5YR_B18107_with_ann!AX263","v":40},{"$f":"[1]ACS_16_5YR_B18107_with_ann!AY263","v":17},{"$f":"[1]ACS_16_5YR_B18107_with_ann!AZ263","v":29},{"$f":"[1]ACS_16_5YR_B18107_with_ann!BA263","v":13},{"$f":"[1]ACS_16_5YR_B18107_with_ann!BB263","v":3},{"$f":"[1]ACS_16_5YR_B18107_with_ann!BC263","v":5},{"$f":"[1]ACS_16_5YR_B18107_with_ann!BD263","v":26},{"$f":"[1]ACS_16_5YR_B18107_with_ann!BE263","v":13}]
["0600000US3301931220",3301931220,"060","Grantham",{"$f":"[1]ACS_16_5YR_B18107_with_ann!D264","v":2424},{"$f":"[1]ACS_16_5YR_B18107_with_ann!E264","v":110},{"$f":"[1]ACS_16_5YR_B18107_with_ann!F264","v":1111},{"$f":"[1]ACS_16_5YR_B18107_with_ann!G264","v":113},{"$f":"[1]ACS_16_5YR_B18107_with_ann!H264","v":148},{"$f":"[1]ACS_16_5YR_B18107_with_ann!I264","v":73},{"$f":"[1]ACS_16_5YR_B18107_with_ann!J264","v":0},{"$f":"[1]ACS_16_5YR_B18107_with_ann!K264","v":11},{"$f":"[1]ACS_16_5YR_B18107_with_ann!L264","v":148},{"$f":"[1]ACS_16_5YR_B18107_with_ann!M264","v":73},{"$f":"[1]ACS_16_5YR_B18107_with_ann!N264","v":613},{"$f":"[1]ACS_16_5YR_B18107_with_ann!O264","v":124},{"$f":"[1]ACS_16_5YR_B18107_with_ann!P264","v":0},{"$f":"[1]ACS_16_5YR_B18107_with_ann!Q264","v":11},{"$f":"[1]ACS_16_5YR_B18107_with_ann!R264","v":613},{"$f":"[1]ACS_16_5YR_B18107_with_ann!S264","v":124},{"$f":"[1]ACS_16_5YR_B18107_with_ann!T264","v":156},{"$f":"[1]ACS_16_5YR_B18107_with_ann!U264","v":69},{"$f":"[1]ACS_16_5YR_B18107_with_ann!V264","v":0},{"$f":"[1]ACS_16_5YR_B18107_with_ann!W264","v":11},{"$f":"[1]ACS_16_5YR_B18107_with_ann!X264","v":156},{"$f":"[1]ACS_16_5YR_B18107_with_ann!Y264","v":69},{"$f":"[1]ACS_16_5YR_B18107_with_ann!Z264","v":194},{"$f":"[1]ACS_16_5YR_B18107_with_ann!AA264","v":86},{"$f":"[1]ACS_16_5YR_B18107_with_ann!AB264","v":48},{"$f":"[1]ACS_16_5YR_B18107_with_ann!AC264","v":61},{"$f":"[1]ACS_16_5YR_B18107_with_ann!AD264","v":146},{"$f":"[1]ACS_16_5YR_B18107_with_ann!AE264","v":70},{"$f":"[1]ACS_16_5YR_B18107_with_ann!AF264","v":1313},{"$f":"[1]ACS_16_5YR_B18107_with_ann!AG264","v":134},{"$f":"[1]ACS_16_5YR_B18107_with_ann!AH264","v":114},{"$f":"[1]ACS_16_5YR_B18107_with_ann!AI264","v":98},{"$f":"[1]ACS_16_5YR_B18107_with_ann!AJ264","v":0},{"$f":"[1]ACS_16_5YR_B18107_with_ann!AK264","v":11},{"$f":"[1]ACS_16_5YR_B18107_with_ann!AL264","v":114},{"$f":"[1]ACS_16_5YR_B18107_with_ann!AM264","v":98},{"$f":"[1]ACS_16_5YR_B18107_with_ann!AN264","v":896},{"$f":"[1]ACS_16_5YR_B18107_with_ann!AO264","v":131},{"$f":"[1]ACS_16_5YR_B18107_with_ann!AP264","v":46},{"$f":"[1]ACS_16_5YR_B18107_with_ann!AQ264","v":65},{"$f":"[1]ACS_16_5YR_B18107_with_ann!AR264","v":850},{"$f":"[1]ACS_16_5YR_B18107_with_ann!AS264","v":137},{"$f":"[1]ACS_16_5YR_B18107_with_ann!AT264","v":139},{"$f":"[1]ACS_16_5YR_B18107_with_ann!AU264","v":53},{"$f":"[1]ACS_16_5YR_B18107_with_ann!AV264","v":13},{"$f":"[1]ACS_16_5YR_B18107_with_ann!AW264","v":21},{"$f":"[1]ACS_16_5YR_B18107_with_ann!AX264","v":126},{"$f":"[1]ACS_16_5YR_B18107_with_ann!AY264","v":52},{"$f":"[1]ACS_16_5YR_B18107_with_ann!AZ264","v":164},{"$f":"[1]ACS_16_5YR_B18107_with_ann!BA264","v":75},{"$f":"[1]ACS_16_5YR_B18107_with_ann!BB264","v":29},{"$f":"[1]ACS_16_5YR_B18107_with_ann!BC264","v":30},{"$f":"[1]ACS_16_5YR_B18107_with_ann!BD264","v":135},{"$f":"[1]ACS_16_5YR_B18107_with_ann!BE264","v":71}]
["0600000US3301940900",3301940900,"060","Langdon",{"$f":"[1]ACS_16_5YR_B18107_with_ann!D265","v":543},{"$f":"[1]ACS_16_5YR_B18107_with_ann!E265","v":97},{"$f":"[1]ACS_16_5YR_B18107_with_ann!F265","v":250},{"$f":"[1]ACS_16_5YR_B18107_with_ann!G265","v":55},{"$f":"[1]ACS_16_5YR_B18107_with_ann!H265","v":53},{"$f":"[1]ACS_16_5YR_B18107_with_ann!I265","v":27},{"$f":"[1]ACS_16_5YR_B18107_with_ann!J265","v":2},{"$f":"[1]ACS_16_5YR_B18107_with_ann!K265","v":4},{"$f":"[1]ACS_16_5YR_B18107_with_ann!L265","v":51},{"$f":"[1]ACS_16_5YR_B18107_with_ann!M265","v":26},{"$f":"[1]ACS_16_5YR_B18107_with_ann!N265","v":143},{"$f":"[1]ACS_16_5YR_B18107_with_ann!O265","v":40},{"$f":"[1]ACS_16_5YR_B18107_with_ann!P265","v":0},{"$f":"[1]ACS_16_5YR_B18107_with_ann!Q265","v":11},{"$f":"[1]ACS_16_5YR_B18107_with_ann!R265","v":143},{"$f":"[1]ACS_16_5YR_B18107_with_ann!S265","v":40},{"$f":"[1]ACS_16_5YR_B18107_with_ann!T265","v":39},{"$f":"[1]ACS_16_5YR_B18107_with_ann!U265","v":14},{"$f":"[1]ACS_16_5YR_B18107_with_ann!V265","v":5},{"$f":"[1]ACS_16_5YR_B18107_with_ann!W265","v":5},{"$f":"[1]ACS_16_5YR_B18107_with_ann!X265","v":34},{"$f":"[1]ACS_16_5YR_B18107_with_ann!Y265","v":13},{"$f":"[1]ACS_16_5YR_B18107_with_ann!Z265","v":15},{"$f":"[1]ACS_16_5YR_B18107_with_ann!AA265","v":9},{"$f":"[1]ACS_16_5YR_B18107_with_ann!AB265","v":3},{"$f":"[1]ACS_16_5YR_B18107_with_ann!AC265","v":4},{"$f":"[1]ACS_16_5YR_B18107_with_ann!AD265","v":12},{"$f":"[1]ACS_16_5YR_B18107_with_ann!AE265","v":8},{"$f":"[1]ACS_16_5YR_B18107_with_ann!AF265","v":293},{"$f":"[1]ACS_16_5YR_B18107_with_ann!AG265","v":53},{"$f":"[1]ACS_16_5YR_B18107_with_ann!AH265","v":69},{"$f":"[1]ACS_16_5YR_B18107_with_ann!AI265","v":25},{"$f":"[1]ACS_16_5YR_B18107_with_ann!AJ265","v":2},{"$f":"[1]ACS_16_5YR_B18107_with_ann!AK265","v":3},{"$f":"[1]ACS_16_5YR_B18107_with_ann!AL265","v":67},{"$f":"[1]ACS_16_5YR_B18107_with_ann!AM265","v":25},{"$f":"[1]ACS_16_5YR_B18107_with_ann!AN265","v":174},{"$f":"[1]ACS_16_5YR_B18107_with_ann!AO265","v":41},{"$f":"[1]ACS_16_5YR_B18107_with_ann!AP265","v":0},{"$f":"[1]ACS_16_5YR_B18107_with_ann!AQ265","v":11},{"$f":"[1]ACS_16_5YR_B18107_with_ann!AR265","v":174},{"$f":"[1]ACS_16_5YR_B18107_with_ann!AS265","v":41},{"$f":"[1]ACS_16_5YR_B18107_with_ann!AT265","v":35},{"$f":"[1]ACS_16_5YR_B18107_with_ann!AU265","v":11},{"$f":"[1]ACS_16_5YR_B18107_with_ann!AV265","v":3},{"$f":"[1]ACS_16_5YR_B18107_with_ann!AW265","v":4},{"$f":"[1]ACS_16_5YR_B18107_with_ann!AX265","v":32},{"$f":"[1]ACS_16_5YR_B18107_with_ann!AY265","v":12},{"$f":"[1]ACS_16_5YR_B18107_with_ann!AZ265","v":15},{"$f":"[1]ACS_16_5YR_B18107_with_ann!BA265","v":8},{"$f":"[1]ACS_16_5YR_B18107_with_ann!BB265","v":0},{"$f":"[1]ACS_16_5YR_B18107_with_ann!BC265","v":11},{"$f":"[1]ACS_16_5YR_B18107_with_ann!BD265","v":15},{"$f":"[1]ACS_16_5YR_B18107_with_ann!BE265","v":8}]
["0600000US3301941700",3301941700,"060","Lempster",{"$f":"[1]ACS_16_5YR_B18107_with_ann!D266","v":700},{"$f":"[1]ACS_16_5YR_B18107_with_ann!E266","v":111},{"$f":"[1]ACS_16_5YR_B18107_with_ann!F266","v":365},{"$f":"[1]ACS_16_5YR_B18107_with_ann!G266","v":64},{"$f":"[1]ACS_16_5YR_B18107_with_ann!H266","v":34},{"$f":"[1]ACS_16_5YR_B18107_with_ann!I266","v":16},{"$f":"[1]ACS_16_5YR_B18107_with_ann!J266","v":3},{"$f":"[1]ACS_16_5YR_B18107_with_ann!K266","v":5},{"$f":"[1]ACS_16_5YR_B18107_with_ann!L266","v":31},{"$f":"[1]ACS_16_5YR_B18107_with_ann!M266","v":16},{"$f":"[1]ACS_16_5YR_B18107_with_ann!N266","v":249},{"$f":"[1]ACS_16_5YR_B18107_with_ann!O266","v":58},{"$f":"[1]ACS_16_5YR_B18107_with_ann!P266","v":7},{"$f":"[1]ACS_16_5YR_B18107_with_ann!Q266","v":7},{"$f":"[1]ACS_16_5YR_B18107_with_ann!R266","v":242},{"$f":"[1]ACS_16_5YR_B18107_with_ann!S266","v":58},{"$f":"[1]ACS_16_5YR_B18107_with_ann!T266","v":68},{"$f":"[1]ACS_16_5YR_B18107_with_ann!U266","v":28},{"$f":"[1]ACS_16_5YR_B18107_with_ann!V266","v":0},{"$f":"[1]ACS_16_5YR_B18107_with_ann!W266","v":11},{"$f":"[1]ACS_16_5YR_B18107_with_ann!X266","v":68},{"$f":"[1]ACS_16_5YR_B18107_with_ann!Y266","v":28},{"$f":"[1]ACS_16_5YR_B18107_with_ann!Z266","v":14},{"$f":"[1]ACS_16_5YR_B18107_with_ann!AA266","v":11},{"$f":"[1]ACS_16_5YR_B18107_with_ann!AB266","v":0},{"$f":"[1]ACS_16_5YR_B18107_with_ann!AC266","v":11},{"$f":"[1]ACS_16_5YR_B18107_with_ann!AD266","v":14},{"$f":"[1]ACS_16_5YR_B18107_with_ann!AE266","v":11},{"$f":"[1]ACS_16_5YR_B18107_with_ann!AF266","v":335},{"$f":"[1]ACS_16_5YR_B18107_with_ann!AG266","v":66},{"$f":"[1]ACS_16_5YR_B18107_with_ann!AH266","v":54},{"$f":"[1]ACS_16_5YR_B18107_with_ann!AI266","v":24},{"$f":"[1]ACS_16_5YR_B18107_with_ann!AJ266","v":0},{"$f":"[1]ACS_16_5YR_B18107_with_ann!AK266","v":11},{"$f":"[1]ACS_16_5YR_B18107_with_ann!AL266","v":54},{"$f":"[1]ACS_16_5YR_B18107_with_ann!AM266","v":24},{"$f":"[1]ACS_16_5YR_B18107_with_ann!AN266","v":191},{"$f":"[1]ACS_16_5YR_B18107_with_ann!AO266","v":52},{"$f":"[1]ACS_16_5YR_B18107_with_ann!AP266","v":11},{"$f":"[1]ACS_16_5YR_B18107_with_ann!AQ266","v":11},{"$f":"[1]ACS_16_5YR_B18107_with_ann!AR266","v":180},{"$f":"[1]ACS_16_5YR_B18107_with_ann!AS266","v":50},{"$f":"[1]ACS_16_5YR_B18107_with_ann!AT266","v":51},{"$f":"[1]ACS_16_5YR_B18107_with_ann!AU266","v":23},{"$f":"[1]ACS_16_5YR_B18107_with_ann!AV266","v":0},{"$f":"[1]ACS_16_5YR_B18107_with_ann!AW266","v":11},{"$f":"[1]ACS_16_5YR_B18107_with_ann!AX266","v":51},{"$f":"[1]ACS_16_5YR_B18107_with_ann!AY266","v":23},{"$f":"[1]ACS_16_5YR_B18107_with_ann!AZ266","v":39},{"$f":"[1]ACS_16_5YR_B18107_with_ann!BA266","v":26},{"$f":"[1]ACS_16_5YR_B18107_with_ann!BB266","v":3},{"$f":"[1]ACS_16_5YR_B18107_with_ann!BC266","v":4},{"$f":"[1]ACS_16_5YR_B18107_with_ann!BD266","v":36},{"$f":"[1]ACS_16_5YR_B18107_with_ann!BE266","v":26}]
["0600000US3301952580",3301952580,"060","Newport",{"$f":"[1]ACS_16_5YR_B18107_with_ann!D267","v":5061},{"$f":"[1]ACS_16_5YR_B18107_with_ann!E267","v":257},{"$f":"[1]ACS_16_5YR_B18107_with_ann!F267","v":2538},{"$f":"[1]ACS_16_5YR_B18107_with_ann!G267","v":250},{"$f":"[1]ACS_16_5YR_B18107_with_ann!H267","v":754},{"$f":"[1]ACS_16_5YR_B18107_with_ann!I267","v":177},{"$f":"[1]ACS_16_5YR_B18107_with_ann!J267","v":0},{"$f":"[1]ACS_16_5YR_B18107_with_ann!K267","v":16},{"$f":"[1]ACS_16_5YR_B18107_with_ann!L267","v":754},{"$f":"[1]ACS_16_5YR_B18107_with_ann!M267","v":177},{"$f":"[1]ACS_16_5YR_B18107_with_ann!N267","v":1262},{"$f":"[1]ACS_16_5YR_B18107_with_ann!O267","v":216},{"$f":"[1]ACS_16_5YR_B18107_with_ann!P267","v":78},{"$f":"[1]ACS_16_5YR_B18107_with_ann!Q267","v":98},{"$f":"[1]ACS_16_5YR_B18107_with_ann!R267","v":1184},{"$f":"[1]ACS_16_5YR_B18107_with_ann!S267","v":221},{"$f":"[1]ACS_16_5YR_B18107_with_ann!T267","v":405},{"$f":"[1]ACS_16_5YR_B18107_with_ann!U267","v":161},{"$f":"[1]ACS_16_5YR_B18107_with_ann!V267","v":116},{"$f":"[1]ACS_16_5YR_B18107_with_ann!W267","v":117},{"$f":"[1]ACS_16_5YR_B18107_with_ann!X267","v":289},{"$f":"[1]ACS_16_5YR_B18107_with_ann!Y267","v":129},{"$f":"[1]ACS_16_5YR_B18107_with_ann!Z267","v":117},{"$f":"[1]ACS_16_5YR_B18107_with_ann!AA267","v":81},{"$f":"[1]ACS_16_5YR_B18107_with_ann!AB267","v":41},{"$f":"[1]ACS_16_5YR_B18107_with_ann!AC267","v":37},{"$f":"[1]ACS_16_5YR_B18107_with_ann!AD267","v":76},{"$f":"[1]ACS_16_5YR_B18107_with_ann!AE267","v":73},{"$f":"[1]ACS_16_5YR_B18107_with_ann!AF267","v":2523},{"$f":"[1]ACS_16_5YR_B18107_with_ann!AG267","v":219},{"$f":"[1]ACS_16_5YR_B18107_with_ann!AH267","v":520},{"$f":"[1]ACS_16_5YR_B18107_with_ann!AI267","v":162},{"$f":"[1]ACS_16_5YR_B18107_with_ann!AJ267","v":19},{"$f":"[1]ACS_16_5YR_B18107_with_ann!AK267","v":31},{"$f":"[1]ACS_16_5YR_B18107_with_ann!AL267","v":501},{"$f":"[1]ACS_16_5YR_B18107_with_ann!AM267","v":158},{"$f":"[1]ACS_16_5YR_B18107_with_ann!AN267","v":1406},{"$f":"[1]ACS_16_5YR_B18107_with_ann!AO267","v":188},{"$f":"[1]ACS_16_5YR_B18107_with_ann!AP267","v":33},{"$f":"[1]ACS_16_5YR_B18107_with_ann!AQ267","v":38},{"$f":"[1]ACS_16_5YR_B18107_with_ann!AR267","v":1373},{"$f":"[1]ACS_16_5YR_B18107_with_ann!AS267","v":186},{"$f":"[1]ACS_16_5YR_B18107_with_ann!AT267","v":312},{"$f":"[1]ACS_16_5YR_B18107_with_ann!AU267","v":130},{"$f":"[1]ACS_16_5YR_B18107_with_ann!AV267","v":18},{"$f":"[1]ACS_16_5YR_B18107_with_ann!AW267","v":29},{"$f":"[1]ACS_16_5YR_B18107_with_ann!AX267","v":294},{"$f":"[1]ACS_16_5YR_B18107_with_ann!AY267","v":129},{"$f":"[1]ACS_16_5YR_B18107_with_ann!AZ267","v":285},{"$f":"[1]ACS_16_5YR_B18107_with_ann!BA267","v":103},{"$f":"[1]ACS_16_5YR_B18107_with_ann!BB267","v":89},{"$f":"[1]ACS_16_5YR_B18107_with_ann!BC267","v":58},{"$f":"[1]ACS_16_5YR_B18107_with_ann!BD267","v":196},{"$f":"[1]ACS_16_5YR_B18107_with_ann!BE267","v":85}]
["0600000US3301962340",3301962340,"060","Plainfield",{"$f":"[1]ACS_16_5YR_B18107_with_ann!D268","v":2058},{"$f":"[1]ACS_16_5YR_B18107_with_ann!E268","v":183},{"$f":"[1]ACS_16_5YR_B18107_with_ann!F268","v":1016},{"$f":"[1]ACS_16_5YR_B18107_with_ann!G268","v":119},{"$f":"[1]ACS_16_5YR_B18107_with_ann!H268","v":261},{"$f":"[1]ACS_16_5YR_B18107_with_ann!I268","v":84},{"$f":"[1]ACS_16_5YR_B18107_with_ann!J268","v":0},{"$f":"[1]ACS_16_5YR_B18107_with_ann!K268","v":11},{"$f":"[1]ACS_16_5YR_B18107_with_ann!L268","v":261},{"$f":"[1]ACS_16_5YR_B18107_with_ann!M268","v":84},{"$f":"[1]ACS_16_5YR_B18107_with_ann!N268","v":521},{"$f":"[1]ACS_16_5YR_B18107_with_ann!O268","v":71},{"$f":"[1]ACS_16_5YR_B18107_with_ann!P268","v":16},{"$f":"[1]ACS_16_5YR_B18107_with_ann!Q268","v":12},{"$f":"[1]ACS_16_5YR_B18107_with_ann!R268","v":505},{"$f":"[1]ACS_16_5YR_B18107_with_ann!S268","v":71},{"$f":"[1]ACS_16_5YR_B18107_with_ann!T268","v":178},{"$f":"[1]ACS_16_5YR_B18107_with_ann!U268","v":57},{"$f":"[1]ACS_16_5YR_B18107_with_ann!V268","v":25},{"$f":"[1]ACS_16_5YR_B18107_with_ann!W268","v":31},{"$f":"[1]ACS_16_5YR_B18107_with_ann!X268","v":153},{"$f":"[1]ACS_16_5YR_B18107_with_ann!Y268","v":51},{"$f":"[1]ACS_16_5YR_B18107_with_ann!Z268","v":56},{"$f":"[1]ACS_16_5YR_B18107_with_ann!AA268","v":35},{"$f":"[1]ACS_16_5YR_B18107_with_ann!AB268","v":0},{"$f":"[1]ACS_16_5YR_B18107_with_ann!AC268","v":11},{"$f":"[1]ACS_16_5YR_B18107_with_ann!AD268","v":56},{"$f":"[1]ACS_16_5YR_B18107_with_ann!AE268","v":35},{"$f":"[1]ACS_16_5YR_B18107_with_ann!AF268","v":1042},{"$f":"[1]ACS_16_5YR_B18107_with_ann!AG268","v":102},{"$f":"[1]ACS_16_5YR_B18107_with_ann!AH268","v":280},{"$f":"[1]ACS_16_5YR_B18107_with_ann!AI268","v":61},{"$f":"[1]ACS_16_5YR_B18107_with_ann!AJ268","v":0},{"$f":"[1]ACS_16_5YR_B18107_with_ann!AK268","v":11},{"$f":"[1]ACS_16_5YR_B18107_with_ann!AL268","v":280},{"$f":"[1]ACS_16_5YR_B18107_with_ann!AM268","v":61},{"$f":"[1]ACS_16_5YR_B18107_with_ann!AN268","v":521},{"$f":"[1]ACS_16_5YR_B18107_with_ann!AO268","v":81},{"$f":"[1]ACS_16_5YR_B18107_with_ann!AP268","v":0},{"$f":"[1]ACS_16_5YR_B18107_with_ann!AQ268","v":11},{"$f":"[1]ACS_16_5YR_B18107_with_ann!AR268","v":521},{"$f":"[1]ACS_16_5YR_B18107_with_ann!AS268","v":81},{"$f":"[1]ACS_16_5YR_B18107_with_ann!AT268","v":181},{"$f":"[1]ACS_16_5YR_B18107_with_ann!AU268","v":56},{"$f":"[1]ACS_16_5YR_B18107_with_ann!AV268","v":21},{"$f":"[1]ACS_16_5YR_B18107_with_ann!AW268","v":27},{"$f":"[1]ACS_16_5YR_B18107_with_ann!AX268","v":160},{"$f":"[1]ACS_16_5YR_B18107_with_ann!AY268","v":53},{"$f":"[1]ACS_16_5YR_B18107_with_ann!AZ268","v":60},{"$f":"[1]ACS_16_5YR_B18107_with_ann!BA268","v":32},{"$f":"[1]ACS_16_5YR_B18107_with_ann!BB268","v":23},{"$f":"[1]ACS_16_5YR_B18107_with_ann!BC268","v":22},{"$f":"[1]ACS_16_5YR_B18107_with_ann!BD268","v":37},{"$f":"[1]ACS_16_5YR_B18107_with_ann!BE268","v":25}]
["0600000US3301972740",3301972740,"060","Springfield",{"$f":"[1]ACS_16_5YR_B18107_with_ann!D269","v":928},{"$f":"[1]ACS_16_5YR_B18107_with_ann!E269","v":166},{"$f":"[1]ACS_16_5YR_B18107_with_ann!F269","v":500},{"$f":"[1]ACS_16_5YR_B18107_with_ann!G269","v":101},{"$f":"[1]ACS_16_5YR_B18107_with_ann!H269","v":103},{"$f":"[1]ACS_16_5YR_B18107_with_ann!I269","v":56},{"$f":"[1]ACS_16_5YR_B18107_with_ann!J269","v":0},{"$f":"[1]ACS_16_5YR_B18107_with_ann!K269","v":11},{"$f":"[1]ACS_16_5YR_B18107_with_ann!L269","v":103},{"$f":"[1]ACS_16_5YR_B18107_with_ann!M269","v":56},{"$f":"[1]ACS_16_5YR_B18107_with_ann!N269","v":225},{"$f":"[1]ACS_16_5YR_B18107_with_ann!O269","v":63},{"$f":"[1]ACS_16_5YR_B18107_with_ann!P269","v":0},{"$f":"[1]ACS_16_5YR_B18107_with_ann!Q269","v":11},{"$f":"[1]ACS_16_5YR_B18107_with_ann!R269","v":225},{"$f":"[1]ACS_16_5YR_B18107_with_ann!S269","v":63},{"$f":"[1]ACS_16_5YR_B18107_with_ann!T269","v":111},{"$f":"[1]ACS_16_5YR_B18107_with_ann!U269","v":42},{"$f":"[1]ACS_16_5YR_B18107_with_ann!V269","v":0},{"$f":"[1]ACS_16_5YR_B18107_with_ann!W269","v":11},{"$f":"[1]ACS_16_5YR_B18107_with_ann!X269","v":111},{"$f":"[1]ACS_16_5YR_B18107_with_ann!Y269","v":42},{"$f":"[1]ACS_16_5YR_B18107_with_ann!Z269","v":61},{"$f":"[1]ACS_16_5YR_B18107_with_ann!AA269","v":35},{"$f":"[1]ACS_16_5YR_B18107_with_ann!AB269","v":0},{"$f":"[1]ACS_16_5YR_B18107_with_ann!AC269","v":11},{"$f":"[1]ACS_16_5YR_B18107_with_ann!AD269","v":61},{"$f":"[1]ACS_16_5YR_B18107_with_ann!AE269","v":35},{"$f":"[1]ACS_16_5YR_B18107_with_ann!AF269","v":428},{"$f":"[1]ACS_16_5YR_B18107_with_ann!AG269","v":87},{"$f":"[1]ACS_16_5YR_B18107_with_ann!AH269","v":37},{"$f":"[1]ACS_16_5YR_B18107_with_ann!AI269","v":27},{"$f":"[1]ACS_16_5YR_B18107_with_ann!AJ269","v":0},{"$f":"[1]ACS_16_5YR_B18107_with_ann!AK269","v":11},{"$f":"[1]ACS_16_5YR_B18107_with_ann!AL269","v":37},{"$f":"[1]ACS_16_5YR_B18107_with_ann!AM269","v":27},{"$f":"[1]ACS_16_5YR_B18107_with_ann!AN269","v":241},{"$f":"[1]ACS_16_5YR_B18107_with_ann!AO269","v":64},{"$f":"[1]ACS_16_5YR_B18107_with_ann!AP269","v":4},{"$f":"[1]ACS_16_5YR_B18107_with_ann!AQ269","v":6},{"$f":"[1]ACS_16_5YR_B18107_with_ann!AR269","v":237},{"$f":"[1]ACS_16_5YR_B18107_with_ann!AS269","v":64},{"$f":"[1]ACS_16_5YR_B18107_with_ann!AT269","v":112},{"$f":"[1]ACS_16_5YR_B18107_with_ann!AU269","v":42},{"$f":"[1]ACS_16_5YR_B18107_with_ann!AV269","v":0},{"$f":"[1]ACS_16_5YR_B18107_with_ann!AW269","v":11},{"$f":"[1]ACS_16_5YR_B18107_with_ann!AX269","v":112},{"$f":"[1]ACS_16_5YR_B18107_with_ann!AY269","v":42},{"$f":"[1]ACS_16_5YR_B18107_with_ann!AZ269","v":38},{"$f":"[1]ACS_16_5YR_B18107_with_ann!BA269","v":26},{"$f":"[1]ACS_16_5YR_B18107_with_ann!BB269","v":10},{"$f":"[1]ACS_16_5YR_B18107_with_ann!BC269","v":16},{"$f":"[1]ACS_16_5YR_B18107_with_ann!BD269","v":28},{"$f":"[1]ACS_16_5YR_B18107_with_ann!BE269","v":18}]
["0600000US3301975060",3301975060,"060","Sunapee",{"$f":"[1]ACS_16_5YR_B18107_with_ann!D270","v":2757},{"$f":"[1]ACS_16_5YR_B18107_with_ann!E270","v":127},{"$f":"[1]ACS_16_5YR_B18107_with_ann!F270","v":1358},{"$f":"[1]ACS_16_5YR_B18107_with_ann!G270","v":130},{"$f":"[1]ACS_16_5YR_B18107_with_ann!H270","v":290},{"$f":"[1]ACS_16_5YR_B18107_with_ann!I270","v":93},{"$f":"[1]ACS_16_5YR_B18107_with_ann!J270","v":0},{"$f":"[1]ACS_16_5YR_B18107_with_ann!K270","v":11},{"$f":"[1]ACS_16_5YR_B18107_with_ann!L270","v":290},{"$f":"[1]ACS_16_5YR_B18107_with_ann!M270","v":93},{"$f":"[1]ACS_16_5YR_B18107_with_ann!N270","v":777},{"$f":"[1]ACS_16_5YR_B18107_with_ann!O270","v":126},{"$f":"[1]ACS_16_5YR_B18107_with_ann!P270","v":43},{"$f":"[1]ACS_16_5YR_B18107_with_ann!Q270","v":36},{"$f":"[1]ACS_16_5YR_B18107_with_ann!R270","v":734},{"$f":"[1]ACS_16_5YR_B18107_with_ann!S270","v":115},{"$f":"[1]ACS_16_5YR_B18107_with_ann!T270","v":176},{"$f":"[1]ACS_16_5YR_B18107_with_ann!U270","v":58},{"$f":"[1]ACS_16_5YR_B18107_with_ann!V270","v":0},{"$f":"[1]ACS_16_5YR_B18107_with_ann!W270","v":11},{"$f":"[1]ACS_16_5YR_B18107_with_ann!X270","v":176},{"$f":"[1]ACS_16_5YR_B18107_with_ann!Y270","v":58},{"$f":"[1]ACS_16_5YR_B18107_with_ann!Z270","v":115},{"$f":"[1]ACS_16_5YR_B18107_with_ann!AA270","v":59},{"$f":"[1]ACS_16_5YR_B18107_with_ann!AB270","v":0},{"$f":"[1]ACS_16_5YR_B18107_with_ann!AC270","v":11},{"$f":"[1]ACS_16_5YR_B18107_with_ann!AD270","v":115},{"$f":"[1]ACS_16_5YR_B18107_with_ann!AE270","v":59},{"$f":"[1]ACS_16_5YR_B18107_with_ann!AF270","v":1399},{"$f":"[1]ACS_16_5YR_B18107_with_ann!AG270","v":130},{"$f":"[1]ACS_16_5YR_B18107_with_ann!AH270","v":250},{"$f":"[1]ACS_16_5YR_B18107_with_ann!AI270","v":74},{"$f":"[1]ACS_16_5YR_B18107_with_ann!AJ270","v":16},{"$f":"[1]ACS_16_5YR_B18107_with_ann!AK270","v":25},{"$f":"[1]ACS_16_5YR_B18107_with_ann!AL270","v":234},{"$f":"[1]ACS_16_5YR_B18107_with_ann!AM270","v":73},{"$f":"[1]ACS_16_5YR_B18107_with_ann!AN270","v":734},{"$f":"[1]ACS_16_5YR_B18107_with_ann!AO270","v":118},{"$f":"[1]ACS_16_5YR_B18107_with_ann!AP270","v":0},{"$f":"[1]ACS_16_5YR_B18107_with_ann!AQ270","v":11},{"$f":"[1]ACS_16_5YR_B18107_with_ann!AR270","v":734},{"$f":"[1]ACS_16_5YR_B18107_with_ann!AS270","v":118},{"$f":"[1]ACS_16_5YR_B18107_with_ann!AT270","v":233},{"$f":"[1]ACS_16_5YR_B18107_with_ann!AU270","v":69},{"$f":"[1]ACS_16_5YR_B18107_with_ann!AV270","v":4},{"$f":"[1]ACS_16_5YR_B18107_with_ann!AW270","v":7},{"$f":"[1]ACS_16_5YR_B18107_with_ann!AX270","v":229},{"$f":"[1]ACS_16_5YR_B18107_with_ann!AY270","v":69},{"$f":"[1]ACS_16_5YR_B18107_with_ann!AZ270","v":182},{"$f":"[1]ACS_16_5YR_B18107_with_ann!BA270","v":81},{"$f":"[1]ACS_16_5YR_B18107_with_ann!BB270","v":80},{"$f":"[1]ACS_16_5YR_B18107_with_ann!BC270","v":59},{"$f":"[1]ACS_16_5YR_B18107_with_ann!BD270","v":102},{"$f":"[1]ACS_16_5YR_B18107_with_ann!BE270","v":52}]
["0600000US3301977940",3301977940,"060","Unity",{"$f":"[1]ACS_16_5YR_B18107_with_ann!D271","v":1179},{"$f":"[1]ACS_16_5YR_B18107_with_ann!E271","v":125},{"$f":"[1]ACS_16_5YR_B18107_with_ann!F271","v":578},{"$f":"[1]ACS_16_5YR_B18107_with_ann!G271","v":61},{"$f":"[1]ACS_16_5YR_B18107_with_ann!H271","v":79},{"$f":"[1]ACS_16_5YR_B18107_with_ann!I271","v":31},{"$f":"[1]ACS_16_5YR_B18107_with_ann!J271","v":0},{"$f":"[1]ACS_16_5YR_B18107_with_ann!K271","v":11},{"$f":"[1]ACS_16_5YR_B18107_with_ann!L271","v":79},{"$f":"[1]ACS_16_5YR_B18107_with_ann!M271","v":31},{"$f":"[1]ACS_16_5YR_B18107_with_ann!N271","v":324},{"$f":"[1]ACS_16_5YR_B18107_with_ann!O271","v":53},{"$f":"[1]ACS_16_5YR_B18107_with_ann!P271","v":8},{"$f":"[1]ACS_16_5YR_B18107_with_ann!Q271","v":8},{"$f":"[1]ACS_16_5YR_B18107_with_ann!R271","v":316},{"$f":"[1]ACS_16_5YR_B18107_with_ann!S271","v":53},{"$f":"[1]ACS_16_5YR_B18107_with_ann!T271","v":128},{"$f":"[1]ACS_16_5YR_B18107_with_ann!U271","v":36},{"$f":"[1]ACS_16_5YR_B18107_with_ann!V271","v":0},{"$f":"[1]ACS_16_5YR_B18107_with_ann!W271","v":11},{"$f":"[1]ACS_16_5YR_B18107_with_ann!X271","v":128},{"$f":"[1]ACS_16_5YR_B18107_with_ann!Y271","v":36},{"$f":"[1]ACS_16_5YR_B18107_with_ann!Z271","v":47},{"$f":"[1]ACS_16_5YR_B18107_with_ann!AA271","v":17},{"$f":"[1]ACS_16_5YR_B18107_with_ann!AB271","v":5},{"$f":"[1]ACS_16_5YR_B18107_with_ann!AC271","v":5},{"$f":"[1]ACS_16_5YR_B18107_with_ann!AD271","v":42},{"$f":"[1]ACS_16_5YR_B18107_with_ann!AE271","v":16},{"$f":"[1]ACS_16_5YR_B18107_with_ann!AF271","v":601},{"$f":"[1]ACS_16_5YR_B18107_with_ann!AG271","v":81},{"$f":"[1]ACS_16_5YR_B18107_with_ann!AH271","v":111},{"$f":"[1]ACS_16_5YR_B18107_with_ann!AI271","v":46},{"$f":"[1]ACS_16_5YR_B18107_with_ann!AJ271","v":7},{"$f":"[1]ACS_16_5YR_B18107_with_ann!AK271","v":7},{"$f":"[1]ACS_16_5YR_B18107_with_ann!AL271","v":104},{"$f":"[1]ACS_16_5YR_B18107_with_ann!AM271","v":45},{"$f":"[1]ACS_16_5YR_B18107_with_ann!AN271","v":338},{"$f":"[1]ACS_16_5YR_B18107_with_ann!AO271","v":45},{"$f":"[1]ACS_16_5YR_B18107_with_ann!AP271","v":3},{"$f":"[1]ACS_16_5YR_B18107_with_ann!AQ271","v":4},{"$f":"[1]ACS_16_5YR_B18107_with_ann!AR271","v":335},{"$f":"[1]ACS_16_5YR_B18107_with_ann!AS271","v":44},{"$f":"[1]ACS_16_5YR_B18107_with_ann!AT271","v":113},{"$f":"[1]ACS_16_5YR_B18107_with_ann!AU271","v":29},{"$f":"[1]ACS_16_5YR_B18107_with_ann!AV271","v":3},{"$f":"[1]ACS_16_5YR_B18107_with_ann!AW271","v":4},{"$f":"[1]ACS_16_5YR_B18107_with_ann!AX271","v":110},{"$f":"[1]ACS_16_5YR_B18107_with_ann!AY271","v":28},{"$f":"[1]ACS_16_5YR_B18107_with_ann!AZ271","v":39},{"$f":"[1]ACS_16_5YR_B18107_with_ann!BA271","v":15},{"$f":"[1]ACS_16_5YR_B18107_with_ann!BB271","v":7},{"$f":"[1]ACS_16_5YR_B18107_with_ann!BC271","v":6},{"$f":"[1]ACS_16_5YR_B18107_with_ann!BD271","v":32},{"$f":"[1]ACS_16_5YR_B18107_with_ann!BE271","v":13}]
["0600000US3301978980",3301978980,"060","Washington",{"$f":"[1]ACS_16_5YR_B18107_with_ann!D272","v":1060},{"$f":"[1]ACS_16_5YR_B18107_with_ann!E272","v":166},{"$f":"[1]ACS_16_5YR_B18107_with_ann!F272","v":551},{"$f":"[1]ACS_16_5YR_B18107_with_ann!G272","v":92},{"$f":"[1]ACS_16_5YR_B18107_with_ann!H272","v":72},{"$f":"[1]ACS_16_5YR_B18107_with_ann!I272","v":37},{"$f":"[1]ACS_16_5YR_B18107_with_ann!J272","v":4},{"$f":"[1]ACS_16_5YR_B18107_with_ann!K272","v":6},{"$f":"[1]ACS_16_5YR_B18107_with_ann!L272","v":68},{"$f":"[1]ACS_16_5YR_B18107_with_ann!M272","v":36},{"$f":"[1]ACS_16_5YR_B18107_with_ann!N272","v":309},{"$f":"[1]ACS_16_5YR_B18107_with_ann!O272","v":80},{"$f":"[1]ACS_16_5YR_B18107_with_ann!P272","v":0},{"$f":"[1]ACS_16_5YR_B18107_with_ann!Q272","v":11},{"$f":"[1]ACS_16_5YR_B18107_with_ann!R272","v":309},{"$f":"[1]ACS_16_5YR_B18107_with_ann!S272","v":80},{"$f":"[1]ACS_16_5YR_B18107_with_ann!T272","v":121},{"$f":"[1]ACS_16_5YR_B18107_with_ann!U272","v":35},{"$f":"[1]ACS_16_5YR_B18107_with_ann!V272","v":0},{"$f":"[1]ACS_16_5YR_B18107_with_ann!W272","v":11},{"$f":"[1]ACS_16_5YR_B18107_with_ann!X272","v":121},{"$f":"[1]ACS_16_5YR_B18107_with_ann!Y272","v":35},{"$f":"[1]ACS_16_5YR_B18107_with_ann!Z272","v":49},{"$f":"[1]ACS_16_5YR_B18107_with_ann!AA272","v":19},{"$f":"[1]ACS_16_5YR_B18107_with_ann!AB272","v":3},{"$f":"[1]ACS_16_5YR_B18107_with_ann!AC272","v":4},{"$f":"[1]ACS_16_5YR_B18107_with_ann!AD272","v":46},{"$f":"[1]ACS_16_5YR_B18107_with_ann!AE272","v":19},{"$f":"[1]ACS_16_5YR_B18107_with_ann!AF272","v":509},{"$f":"[1]ACS_16_5YR_B18107_with_ann!AG272","v":91},{"$f":"[1]ACS_16_5YR_B18107_with_ann!AH272","v":63},{"$f":"[1]ACS_16_5YR_B18107_with_ann!AI272","v":30},{"$f":"[1]ACS_16_5YR_B18107_with_ann!AJ272","v":0},{"$f":"[1]ACS_16_5YR_B18107_with_ann!AK272","v":11},{"$f":"[1]ACS_16_5YR_B18107_with_ann!AL272","v":63},{"$f":"[1]ACS_16_5YR_B18107_with_ann!AM272","v":30},{"$f":"[1]ACS_16_5YR_B18107_with_ann!AN272","v":301},{"$f":"[1]ACS_16_5YR_B18107_with_ann!AO272","v":81},{"$f":"[1]ACS_16_5YR_B18107_with_ann!AP272","v":7},{"$f":"[1]ACS_16_5YR_B18107_with_ann!AQ272","v":7},{"$f":"[1]ACS_16_5YR_B18107_with_ann!AR272","v":294},{"$f":"[1]ACS_16_5YR_B18107_with_ann!AS272","v":82},{"$f":"[1]ACS_16_5YR_B18107_with_ann!AT272","v":116},{"$f":"[1]ACS_16_5YR_B18107_with_ann!AU272","v":31},{"$f":"[1]ACS_16_5YR_B18107_with_ann!AV272","v":19},{"$f":"[1]ACS_16_5YR_B18107_with_ann!AW272","v":20},{"$f":"[1]ACS_16_5YR_B18107_with_ann!AX272","v":97},{"$f":"[1]ACS_16_5YR_B18107_with_ann!AY272","v":27},{"$f":"[1]ACS_16_5YR_B18107_with_ann!AZ272","v":29},{"$f":"[1]ACS_16_5YR_B18107_with_ann!BA272","v":15},{"$f":"[1]ACS_16_5YR_B18107_with_ann!BB272","v":3},{"$f":"[1]ACS_16_5YR_B18107_with_ann!BC272","v":6},{"$f":"[1]ACS_16_5YR_B18107_with_ann!BD272","v":26},{"$f":"[1]ACS_16_5YR_B18107_with_ann!BE272","v":13}]
[]
[null,null,null,null,{"$f":"$D$3","v":"Acworth"},null,{"$f":"$D$4","v":"Charlestown"},null,{"$f":"$D$5","v":"Claremont"},null,{"$f":"$D$6","v":"Cornish"},null,{"$f":"$D$7","v":"Croydon"},null,{"$f":"$D$8","v":"Goshen"},null,{"$f":"$D$9","v":"Grantham"},null,{"$f":"$D$10","v":"Langdon"},null,{"$f":"$D$11","v":"Lempster"},null,{"$f":"$D$12","v":"Newport"},null,{"$f":"$D$13","v":"Plainfield"},null,{"$f":"$D$14","v":"Springfield"},null,{"$f":"$D$15","v":"Sunapee"},null,{"$f":"$D$16","v":"Unity"},null,{"$f":"$D$17","v":"Washington"}]
[null,null,null,null,"Estimate","Margin Of Error","Estimate","Margin Of Error","Estimate","Margin Of Error","Estimate","Margin Of Error","Estimate","Margin Of Error","Estimate","Margin Of Error","Estimate","Margin Of Error","Estimate","Margin Of Error","Estimate","Margin Of Error","Estimate","Margin Of Error","Estimate","Margin Of Error","Estimate","Margin Of Error","Estimate","Margin Of Error",null,"Estimate","Margin Of Error"]
[null,null,null,"Estimate Total:",811,122,4037,194,10222,239,1434,137,719,208,543,82,2424,110,543,97,700,111,5061,257,2058,183,928,166,2757,127,1179,125,1060,166]
[null,null,null,"Estimate Total: Male:",432,73,2075,189,4970,237,718,74,356,93,279,56,1111,113,250,55,365,64,2538,250,1016,119,500,101,1358,130,578,61,551,92]
[null,null,null,"Estimate Total: Male: 18 to 34 years:",79,38,490,144,1622,255,95,28,87,47,43,21,148,73,53,27,34,16,754,177,261,84,103,56,290,93,79,31,72,37]
[null,null,null,"Estimate Total: Male: 18 to 34 years: With an independent living difficulty",17,17,1,3,96,95,4,6,2,4,1,4,0,11,2,4,3,5,0,16,0,11,0,11,0,11,0,11,4,6]
[null,null,null,"Estimate Total: Male: 18 to 34 years: No independent living difficulty",62,35,489,144,1526,243,91,27,85,46,42,21,148,73,51,26,31,16,754,177,261,84,103,56,290,93,79,31,68,36]
[null,null,null,"Estimate Total: Male: 35 to 64 years:",213,48,1034,172,2416,184,367,53,198,60,157,41,613,124,143,40,249,58,1262,216,521,71,225,63,777,126,324,53,309,80]
[null,null,null,"Estimate Total: Male: 35 to 64 years: With an independent living difficulty",0,11,71,86,275,115,6,7,5,9,10,9,0,11,0,11,7,7,78,98,16,12,0,11,43,36,8,8,0,11]
[null,null,null,"Estimate Total: Male: 35 to 64 years: No independent living difficulty",213,48,963,153,2141,199,361,54,193,60,147,39,613,124,143,40,242,58,1184,221,505,71,225,63,734,115,316,53,309,80]
[null,null,null,"Estimate Total: Male: 65 to 74 years:",88,27,261,94,650,105,190,51,38,22,59,26,156,69,39,14,68,28,405,161,178,57,111,42,176,58,128,36,121,35]
[null,null,null,"Estimate Total: Male: 65 to 74 years: With an independent living difficulty",12,11,0,16,22,36,3,6,2,4,2,3,0,11,5,5,0,11,116,117,25,31,0,11,0,11,0,11,0,11]
[null,null,null,"Estimate Total: Male: 65 to 74 years: No independent living difficulty",76,23,261,94,628,107,187,49,36,21,57,25,156,69,34,13,68,28,289,129,153,51,111,42,176,58,128,36,121,35]
[null,null,null,"Estimate Total: Male: 75 years and over:",52,23,290,141,282,88,66,32,33,16,20,14,194,86,15,9,14,11,117,81,56,35,61,35,115,59,47,17,49,19]
[null,null,null,"Estimate Total: Male: 75 years and over: With an independent living difficulty",11,13,32,36,25,26,12,10,6,5,0,11,48,61,3,4,0,11,41,37,0,11,0,11,0,11,5,5,3,4]
[null,null,null,"Estimate Total: Male: 75 years and over: No independent living difficulty",41,19,258,142,257,83,54,29,27,15,20,14,146,70,12,8,14,11,76,73,56,35,61,35,115,59,42,16,46,19]
[null,null,null,"Estimate Total: Female:",379,65,1962,208,5252,232,716,82,363,132,264,41,1313,134,293,53,335,66,2523,219,1042,102,428,87,1399,130,601,81,509,91]
[null,null,null,"Estimate Total: Female: 18 to 34 years:",47,25,357,108,1415,187,78,27,124,96,69,34,114,98,69,25,54,24,520,162,280,61,37,27,250,74,111,46,63,30]
[null,null,null,"Estimate Total: Female: 18 to 34 years: With an independent living difficulty",0,11,0,16,158,73,0,11,0,11,3,4,0,11,2,3,0,11,19,31,0,11,0,11,16,25,7,7,0,11]
[null,null,null,"Estimate Total: Female: 18 to 34 years: No independent living difficulty",47,25,357,108,1257,198,78,27,124,96,66,34,114,98,67,25,54,24,501,158,280,61,37,27,234,73,104,45,63,30]
[null,null,null,"Estimate Total: Female: 35 to 64 years:",190,46,1080,163,2460,217,380,59,169,53,117,33,896,131,174,41,191,52,1406,188,521,81,241,64,734,118,338,45,301,81]
[null,null,null,"Estimate Total: Female: 35 to 64 years: With an independent living difficulty",0,11,83,79,195,106,2,5,11,10,4,5,46,65,0,11,11,11,33,38,0,11,4,6,0,11,3,4,7,7]
[null,null,null,"Estimate Total: Female: 35 to 64 years: No independent living difficulty",190,46,997,171,2265,232,378,60,158,52,113,33,850,137,174,41,180,50,1373,186,521,81,237,64,734,118,335,44,294,82]
[null,null,null,"Estimate Total: Female: 65 to 74 years:",117,42,296,120,755,152,172,43,49,24,49,21,139,53,35,11,51,23,312,130,181,56,112,42,233,69,113,29,116,31]
[null,null,null,"Estimate Total: Female: 65 to 74 years: With an independent living difficulty",5,5,0,16,61,84,9,8,1,3,9,10,13,21,3,4,0,11,18,29,21,27,0,11,4,7,3,4,19,20]
[null,null,null,"Estimate Total: Female: 65 to 74 years: No independent living difficulty",112,41,296,120,694,145,163,42,48,24,40,17,126,52,32,12,51,23,294,129,160,53,112,42,229,69,110,28,97,27]
[null,null,null,"Estimate Total: Female: 75 years and over:",25,14,229,88,622,128,86,33,21,12,29,13,164,75,15,8,39,26,285,103,60,32,38,26,182,81,39,15,29,15]
[null,null,null,"Estimate Total: Female: 75 years and over: With an independent living difficulty",2,3,49,40,162,67,7,8,5,8,3,5,29,30,0,11,3,4,89,58,23,22,10,16,80,59,7,6,3,6]
[null,null,null,"Estimate Total: Female: 75 years and over: No independent living difficulty",23,14,180,86,460,114,79,33,16,9,26,13,135,71,15,8,36,26,196,85,37,25,28,18,102,52,32,13,26,13]

{"sheet":"ACS_Table_B18107","index":53,"n_rows":119,"n_cols":32,"rows_kept":119,"cut":false,"hidden":true,"merged":[]}
["B18107. SEX BY AGE BY INDEPENDENT LIVING DIFFICULTY\n\n\n"]
["Universe:  Civilian non-institutionalized population 18 years and over"]
["Data Set: 2015-2019 American Community Survey 5-Year Estimates"]
[]
[null,null,"Acworth",null,"Charlestown",null,"Claremont",null,"Cornish",null,"Croydon",null,"Goshen",null,"Grantham",null,"Langdon",null,"Lempster",null,"Newport",null,"Plainfield",null,"Springfield",null,"Sunapee",null,"Unity",null,"Washington"]
[null,null,"Estimate","Margin Of Error","Estimate","Margin Of Error","Estimate","Margin Of Error","Estimate","Margin Of Error","Estimate","Margin Of Error","Estimate","Margin Of Error","Estimate","Margin Of Error","Estimate","Margin Of Error","Estimate","Margin Of Error","Estimate","Margin Of Error","Estimate","Margin Of Error","Estimate","Margin Of Error","Estimate","Margin Of Error","Estimate","Margin Of Error","Estimate","Margin Of Error"]
[null,"Total:",811,122,4037,194,10222,239,1434,137,719,208,543,82,2424,110,543,97,700,111,5061,257,2058,183,928,166,2757,127,1179,125,1060,166]
[null,"Male:",432,73,2075,189,4970,237,718,74,356,93,279,56,1111,113,250,55,365,64,2538,250,1016,119,500,101,1358,130,578,61,551,92]
[null,"18 to 34  years:",79,38,490,144,1622,255,95,28,87,47,43,21,148,73,53,27,34,16,754,177,261,84,103,56,290,93,79,31,72,37]
[null,"With independent living difficulty",17,17,1,3,96,95,4,6,2,4,1,4,0,11,2,4,3,5,0,16,0,11,0,11,0,11,0,11,4,6]
[null,"With no independent living difficulty",62,35,489,144,1526,243,91,27,85,46,42,21,148,73,51,26,31,16,754,177,261,84,103,56,290,93,79,31,68,36]
[null,"35 to 64  years:",213,48,1034,172,2416,184,367,53,198,60,157,41,613,124,143,40,249,58,1262,216,521,71,225,63,777,126,324,53,309,80]
[null,"With independent living difficulty",0,11,71,86,275,115,6,7,5,9,10,9,0,11,0,11,7,7,78,98,16,12,0,11,43,36,8,8,0,11]
[null,"With no independent living difficulty",213,48,963,153,2141,199,361,54,193,60,147,39,613,124,143,40,242,58,1184,221,505,71,225,63,734,115,316,53,309,80]
[null,"65 to 74  years:",88,27,261,94,650,105,190,51,38,22,59,26,156,69,39,14,68,28,405,161,178,57,111,42,176,58,128,36,121,35]
[null,"With independent living difficulty",12,11,0,16,22,36,3,6,2,4,2,3,0,11,5,5,0,11,116,117,25,31,0,11,0,11,0,11,0,11]
[null,"With no independent living difficulty",76,23,261,94,628,107,187,49,36,21,57,25,156,69,34,13,68,28,289,129,153,51,111,42,176,58,128,36,121,35]
[null,"75  years and Older:",52,23,290,141,282,88,66,32,33,16,20,14,194,86,15,9,14,11,117,81,56,35,61,35,115,59,47,17,49,19]
[null,"With independent living difficulty",11,13,32,36,25,26,12,10,6,5,0,11,48,61,3,4,0,11,41,37,0,11,0,11,0,11,5,5,3,4]
[null,"With no independent living difficulty",41,19,258,142,257,83,54,29,27,15,20,14,146,70,12,8,14,11,76,73,56,35,61,35,115,59,42,16,46,19]
[null,"Female:",379,65,1962,208,5252,232,716,82,363,132,264,41,1313,134,293,53,335,66,2523,219,1042,102,428,87,1399,130,601,81,509,91]
[null,"18 to 34  years:",47,25,357,108,1415,187,78,27,124,96,69,34,114,98,69,25,54,24,520,162,280,61,37,27,250,74,111,46,63,30]
[null,"With independent living difficulty",0,11,0,16,158,73,0,11,0,11,3,4,0,11,2,3,0,11,19,31,0,11,0,11,16,25,7,7,0,11]
[null,"With no independent living difficulty",47,25,357,108,1257,198,78,27,124,96,66,34,114,98,67,25,54,24,501,158,280,61,37,27,234,73,104,45,63,30]
[null,"35 to 64  years:",190,46,1080,163,2460,217,380,59,169,53,117,33,896,131,174,41,191,52,1406,188,521,81,241,64,734,118,338,45,301,81]
[null,"With independent living difficulty",0,11,83,79,195,106,2,5,11,10,4,5,46,65,0,11,11,11,33,38,0,11,4,6,0,11,3,4,7,7]
[null,"With no independent living difficulty",190,46,997,171,2265,232,378,60,158,52,113,33,850,137,174,41,180,50,1373,186,521,81,237,64,734,118,335,44,294,82]
[null,"65 to 74  years:",117,42,296,120,755,152,172,43,49,24,49,21,139,53,35,11,51,23,312,130,181,56,112,42,233,69,113,29,116,31]
[null,"With independent living difficulty",5,5,0,16,61,84,9,8,1,3,9,10,13,21,3,4,0,11,18,29,21,27,0,11,4,7,3,4,19,20]
[null,"With no independent living difficulty",112,41,296,120,694,145,163,42,48,24,40,17,126,52,32,12,51,23,294,129,160,53,112,42,229,69,110,28,97,27]
[null,"75  years and Older:",25,14,229,88,622,128,86,33,21,12,29,13,164,75,15,8,39,26,285,103,60,32,38,26,182,81,39,15,29,15]
[null,"With independent living difficulty",2,3,49,40,162,67,7,8,5,8,3,5,29,30,0,11,3,4,89,58,23,22,10,16,80,59,7,6,3,6]
[null,"With no independent living difficulty",23,14,180,86,460,114,79,33,16,9,26,13,135,71,15,8,36,26,196,85,37,25,28,18,102,52,32,13,26,13]
[]
[]
[{"$f":"A1& \"-Calculated\"","v":"B18107. SEX BY AGE BY INDEPENDENT LIVING DIFFICULTY\n\n\n-Calculated"}]
[{"$f":"A2","v":"Universe:  Civilian non-institutionalized population 18 years and over"}]
[{"$f":"A3","v":"Data Set: 2015-2019 American Community Survey 5-Year Estimates"}]
[]
[]
[null,null,"Acworth",null,"Charlestown",null,"Claremont",null,"Cornish",null,"Croydon",null,"Goshen",null,"Grantham",null,"Langdon",null,"Lempster",null,"Newport",null,"Plainfield",null,"Springfield",null,"Sunapee",null,"Unity",null,"Washington"]
[null,null,"Estimate","Margin Of Error","Estimate","Margin Of Error","Estimate","Margin Of Error","Estimate","Margin Of Error","Estimate","Margin Of Error","Estimate","Margin Of Error","Estimate","Margin Of Error","Estimate","Margin Of Error","Estimate","Margin Of Error","Estimate","Margin Of Error","Estimate","Margin Of Error","Estimate","Margin Of Error","Estimate","Margin Of Error","Estimate","Margin Of Error","Estimate","Margin Of Error"]
[null,"Total:",685,117,4116,161,10164,243,1288,122,513,89,636,98,2306,122,587,89,895,122,5106,247,1933,164,1001,164,2790,91,1178,123,900,144]
[null,"18 to 34  years:",162,42.01190307520001,886,201.67548190099856,2911,250.80071770232237,221,53.758720222862451,117,46.227697325304881,131,43.829214001622255,330,97.8008179924892,160,56.586217403180434,143,44.407206622349037,1041,229.1025971044414,387,91.438503924769023,173,56.603886792339623,470,125.1758762701504,219,56.400354608814297,88,34.409301068170507]
[null,"With independent living difficulty",13,12.649110640673518,0,15.556349186104045,84,52.630789467763066,0,15.556349186104045,0,15.556349186104045,2,11.704699910719626,0,15.556349186104045,3,12.083045973594572,5,12.529964086141668,41,41.725292090050132,0,15.556349186104045,0,15.556349186104045,0,15.556349186104045,0,15.556349186104045,6,13.601470508735444]
[null,"With no independent living difficulty",149,40.80441152620633,886,201.67548190099856,2827,243.82370680473218,221,53.758720222862451,117,46.227697325304881,129,43.011626335213137,330,97.8008179924892,157,56.586217403180434,138,43.829214001622255,1000,229.86300267768192,387,91.438503924769023,173,56.603886792339623,470,125.1758762701504,219,56.400354608814297,82,31.240998703626616]
[null,"35 to 64  years:",348,56.727418414731339,2391,210.35446275275456,5160,278.40258619488435,866,84.504437753291981,310,58.137767414994535,358,56.0357029044876,1434,118.92854997854805,309,46.010868281309364,604,74.4043009509531,3059,220.62184841941652,1182,96.208107766445551,627,87.206651122491792,1508,152.10851389715174,798,67.882250993908556,542,83.486525858967212]
[null,"With independent living difficulty",3,11.704699910719626,177,96.829747495281637,312,99.724620831567975,36,21.931712199461309,3,12.083045973594572,20,11.661903789690601,14,15,16,10.295630140987001,15,11.704699910719626,134,84.480767041972342,11,12.206555615733702,15,13,72,63.529520697074361,11,11.401754250991379,35,21.2602916254693]
[null,"With no independent living difficulty",345,56.727418414731339,2214,203.34207631476571,4848,281.40007107319644,830,82.462112512353215,307,58.137767414994535,338,56.0357029044876,1420,118.92854997854805,293,45.967379738244816,589,75,2925,212.8966885604377,1171,96.260064408871031,612,87.863530545955186,1436,164.54178800535746,787,68.622153857191051,507,79.309520235593411]
[null,"65 to 74  years:",132,48.259714048054619,482,139.34489585198304,1064,144.58907289280197,156,43.139309220245984,53,18.384776310850235,78,29.698484809834994,249,77.077882690172544,80,27.586228448267445,85,28.42534080710379,625,164.26807358704855,254,59.665735560705194,146,41.880783182743848,479,110.34491379306978,107,32.526911934581186,167,37.483329627982627]
[null,"With independent living difficulty",5,12.529964086141668,0,15.556349186104045,71,47.801673610868477,5,13.601470508735444,2,11.401754250991379,2,11.401754250991379,12,21.095023109728988,0,15.556349186104045,0,15.556349186104045,52,61.465437442517235,18,15.556349186104045,7,16.278820596099706,27,28.319604517012593,6,13.038404810405298,16,13.892443989449804]
[null,"With no independent living difficulty",127,47.707441767506253,482,139.34489585198304,993,144.97241116847025,151,43.139309220245984,51,17.691806012954132,76,29.698484809834994,237,75.690157880665041,80,27.586228448267445,85,28.42534080710379,573,160.52725625263767,236,57.201398584300364,139,40.224370722237531,452,113.21660655575224,101,31.827660925679098,151,34.655446902326915]
[null,"75  years and Older:",43,19.235384061671343,357,116.04309544302927,1029,136.65284482951682,45,19.849433241279208,33,22.203603311174518,69,21.023796041628639,293,86.278618440491968,38,19.849433241279208,63,28.319604517012593,381,106.94391053257777,110,39.357337308308857,55,26.248809496813376,333,103.47946656221224,54,20.248456731316587,103,31.144823004794873]
[null,"With independent living difficulty",15,19.416487838947599,55,43.011626335213137,286,82.758685344802331,8,8.0622577482985491,3,12.083045973594572,20,14.317821063276353,50,49.365980188789933,4,11.704699910719626,23,15.524174696260024,94,63.063460101710248,26,20.615528128088304,20,16.643316977093239,40,33.421549934136806,14,8.9442719099991592,9,7.810249675906654]
[null,"With no independent living difficulty",28,12.041594578792296,302,112.43220179290273,743,115.80155439371269,37,16.970562748477139,30,22.203603311174518,49,15.811388300841896,243,78.746428490440124,34,19.104973174542799,40,22.203603311174518,287,94.031909477581067,84,34.481879299133332,35,17.691806012954132,293,101.67103815738285,40,18.601075237738275,94,29.698484809834994]
[]
[]
[]
[]
[]
[]
[]
[]
[]
[]
[]
[]
[]
[]
[]
[]
[]
[]
[]
[]
[]
[]
[]
[]
[]
[]
[]
[]
[]
[]
[]
[]
[]
[]
[]
[]
[]
[]
[]
[]
[]
[]
[]
[]
["B18107. SEX BY AGE BY INDEPENDENT LIVING DIFFICULTY\n\n\n-Calculated"]
["Universe:  Civilian non-institutionalized population 18 years and over"]
["Data Set: 2010-2014 American Community Survey 5-Year Estimates"]
[]
[]
[null,null,"Acworth",null,"Charlestown",null,"Claremont",null,"Cornish",null,"Croydon",null,"Goshen",null,"Grantham",null,"Langdon",null,"Lempster",null,"Newport",null,"Plainfield",null,"Springfield",null,"Sunapee",null,"Unity",null,"Washington"]
[null,null,"Estimate","Margin Of Error","Estimate","Margin Of Error","Estimate","Margin Of Error","Estimate","Margin Of Error","Estimate","Margin Of Error","Estimate","Margin Of Error","Estimate","Margin Of Error","Estimate","Margin Of Error","Estimate","Margin Of Error","Estimate","Margin Of Error","Estimate","Margin Of Error","Estimate","Margin Of Error","Estimate","Margin Of Error","Estimate","Margin Of Error","Estimate","Margin Of Error"]
[null,"Total:",716,96,4153,138,10087,232,1267,114,526,104,681,91,2263,158,606,105,866,128,5203,205,1969,138,987,150,2793,98,1161,125,867,121]
[null,"18 to 34  years:",184,54.378304497290095,900,194.55847450059841,2858,279.37966998334008,273,55.97320787662612,96,41.400483088968905,134,40.36087214122113,358,127.3184982632139,175,58,137,52.773099207835045,1050,218.68699092538631,401,83.630138108220294,173,55,504,146.60491124106312,207,60.21627686929839,100,41.231056256176608]
[null,"With independent living difficulty",13,13.416407864998739,0,15.556349186104045,113,64.381674411279491,5,13.038404810405298,5,14.866068747318506,3,11.704699910719626,0,15.556349186104045,1,11.401754250991379,0,15.556349186104045,26,31.400636936215164,0,15.556349186104045,0,15.556349186104045,0,15.556349186104045,0,15.556349186104045,0,15.556349186104045]
[null,"With no independent living difficulty",171,52.697248505021591,900,194.55847450059841,2745,285.28056365620142,268,55.97320787662612,91,39.11521443121589,131,40.36087214122113,358,127.3184982632139,174,58.694122363316758,137,52.773099207835045,1024,220.05681084665386,401,83.630138108220294,173,55,504,146.60491124106312,207,60.21627686929839,100,41.231056256176608]
[null,"35 to 64  years:",380,55.865910893853687,2320,200.124960961895,5203,255.34486483969087,799,72.138755187485728,348,58.051701094799967,405,54.671747731346578,1313,129.4488315899375,305,50.328918128646478,571,72.249567472753768,3031,239.05857022913861,1172,102.7277956543408,648,89.403579346690591,1478,196.54261624390779,768,68.8839603971781,520,70.767224051816527]
[null,"With independent living difficulty",11,8.6023252670426267,180,93.085981758801893,264,94.578010129204984,23,18.681541692269406,2,11.401754250991379,18,12.529964086141668,18,28.231188426986208,19,10,3,11.704699910719626,142,97.123632551506233,11,11.661903789690601,14,11.661903789690601,60,54.405882034941776,14,12.083045973594572,33,24.207436873820409]
[null,"With no independent living difficulty",369,54.451813560247928,2140,198.20443990990717,4939,262.33756879257686,776,69.354163537598808,346,58.051701094799967,387,54.037024344425184,1295,132.23085872821065,286,50.990195135927848,568,72.249567472753768,2889,240.8318915758459,1161,101.9803902718557,634,88.0056816347672,1418,203.08865059377396,754,69.814038702828242,487,65.053823869162372]
[null,"65 to 74  years:",105,33.421549934136806,573,157.76247969653622,1109,160.96272860510285,142,45.607017003965517,55,19.849433241279208,75,29.068883707497267,262,79.246451024635803,87,25.45584412271571,85,28.301943396169811,702,194.60986614249546,297,68.818602136341013,120,40.496913462633174,436,116.10340218959993,117,30.610455730027933,161,29.732137494637012]
[null,"With independent living difficulty",6,13.038404810405298,14,25.495097567963924,58,35.383612025908263,9,11.180339887498949,2,11.401754250991379,1,11.704699910719626,12,21.95449840010015,0,15.556349186104045,0,15.556349186104045,58,66.309878600401618,15,12.529964086141668,7,15.556349186104045,15,16.970562748477139,9,13.601470508735444,6,13.601470508735444]
[null,"With no independent living difficulty",99,34.058772731852805,559,157.0350279396288,1051,162.93557008830209,133,44.204072210600685,53,19.209372712298546,74,29.068883707497267,250,77.794601355106892,87,25.45584412271571,85,28.301943396169811,644,185.27007313648906,282,68.818602136341013,113,38.013155617496423,421,115.31261856362468,108,30,155,29.732137494637012]
[null,"75  years and Older:",47,18.788294228055936,360,139.26952286842948,917,129.20139318134306,53,20,27,18.601075237738275,67,22.671568097509269,330,92.200867674876037,39,19.104973174542799,73,30.413812651491099,420,113.56936206565572,99,36.891733491393431,46,21.95449840010015,375,95.587656106842587,69,21.633307652783937,86,27.658633371878661]
[null,"With independent living difficulty",13,18.601075237738275,47,35.735136770411273,231,76.275815302099531,12,9.8994949366116654,3,11.704699910719626,19,15.231546211727817,44,55.108982933819419,6,13.038404810405298,26,14.317821063276353,143,88.459030064770658,27,21.540659228538015,14,18.601075237738275,40,35.440090293338699,17,10.295630140987001,5,6.4031242374328485]
[null,"With no independent living difficulty",34,12.041594578792296,313,135.36986370680884,686,130,41,16.401219466856727,24,18.601075237738275,48,19.104973174542799,286,79.93122043357026,33,17.691806012954132,47,26.248809496813376,277,77.801028270839709,72,27.802877548915689,32,15.556349186104045,335,91.923881554251182,52,18.601075237738275,81,26.90724809414742]

{"sheet":"SData_B18108_MultipleDisability","index":54,"n_rows":33,"n_cols":34,"rows_kept":33,"cut":false,"hidden":true,"merged":[]}
["GEO_ID","GEO_ID2","SUMLEVEL"]
["Geography Identifier","Geography Identifier","Geographic Summary Level",null,{"$f":"[1]ACS_16_5YR_C18108_with_ann!D$2","v":"Estimate Total:"},{"$f":"[1]ACS_16_5YR_C18108_with_ann!E$2","v":"Margin of Error Total:"},{"$f":"[1]ACS_16_5YR_C18108_with_ann!F$2","v":"Estimate Total: Under 18 years:"},{"$f":"[1]ACS_16_5YR_C18108_with_ann!G$2","v":"Margin of Error Total: Under 18 years:"},{"$f":"[1]ACS_16_5YR_C18108_with_ann!H$2","v":"Estimate Total: Under 18 years: With one type of disability"},{"$f":"[1]ACS_16_5YR_C18108_with_ann!I$2","v":"Margin of Error Total: Under 18 years: With one type of disability"},{"$f":"[1]ACS_16_5YR_C18108_with_ann!J$2","v":"Estimate Total: Under 18 years: With two or more types of disability"},{"$f":"[1]ACS_16_5YR_C18108_with_ann!K$2","v":"Margin of Error Total: Under 18 years: With two or more types of disability"},{"$f":"[1]ACS_16_5YR_C18108_with_ann!L$2","v":"Estimate Total: Under 18 years: No disability"},{"$f":"[1]ACS_16_5YR_C18108_with_ann!M$2","v":"Margin of Error Total: Under 18 years: No disability"},{"$f":"[1]ACS_16_5YR_C18108_with_ann!N$2","v":"Estimate Total: 18 to 64 years:"},{"$f":"[1]ACS_16_5YR_C18108_with_ann!O$2","v":"Margin of Error Total: 18 to 64 years:"},{"$f":"[1]ACS_16_5YR_C18108_with_ann!P$2","v":"Estimate Total: 18 to 64 years: With one type of disability"},{"$f":"[1]ACS_16_5YR_C18108_with_ann!Q$2","v":"Margin of Error Total: 18 to 64 years: With one type of disability"},{"$f":"[1]ACS_16_5YR_C18108_with_ann!R$2","v":"Estimate Total: 18 to 64 years: With two or more types of disability"},{"$f":"[1]ACS_16_5YR_C18108_with_ann!S$2","v":"Margin of Error Total: 18 to 64 years: With two or more types of disability"},{"$f":"[1]ACS_16_5YR_C18108_with_ann!T$2","v":"Estimate Total: 18 to 64 years: No disability"},{"$f":"[1]ACS_16_5YR_C18108_with_ann!U$2","v":"Margin of Error Total: 18 to 64 years: No disability"},{"$f":"[1]ACS_16_5YR_C18108_with_ann!V$2","v":"Estimate Total: 65 years and over:"},{"$f":"[1]ACS_16_5YR_C18108_with_ann!W$2","v":"Margin of Error Total: 65 years and over:"},{"$f":"[1]ACS_16_5YR_C18108_with_ann!X$2","v":"Estimate Total: 65 years and over: With one type of disability"},{"$f":"[1]ACS_16_5YR_C18108_with_ann!Y$2","v":"Margin of Error Total: 65 years and over: With one type of disability"},{"$f":"[1]ACS_16_5YR_C18108_with_ann!Z$2","v":"Estimate Total: 65 years and over: With two or more types of disability"},{"$f":"[1]ACS_16_5YR_C18108_with_ann!AA$2","v":"Margin of Error Total: 65 years and over: With two or more types of disability"},{"$f":"[1]ACS_16_5YR_C18108_with_ann!AB$2","v":"Estimate Total: 65 years and over: No disability"},{"$f":"[1]ACS_16_5YR_C18108_with_ann!AC$2","v":"Margin of Error Total: 65 years and over: No disability"}]
["0600000US3301900259",3301900259,"060","Acworth",{"$f":"[1]ACS_16_5YR_C18108_with_ann!D258","v":906},{"$f":"[1]ACS_16_5YR_C18108_with_ann!E258","v":134},{"$f":"[1]ACS_16_5YR_C18108_with_ann!F258","v":95},{"$f":"[1]ACS_16_5YR_C18108_with_ann!G258","v":34},{"$f":"[1]ACS_16_5YR_C18108_with_ann!H258","v":0},{"$f":"[1]ACS_16_5YR_C18108_with_ann!I258","v":11},{"$f":"[1]ACS_16_5YR_C18108_with_ann!J258","v":0},{"$f":"[1]ACS_16_5YR_C18108_with_ann!K258","v":11},{"$f":"[1]ACS_16_5YR_C18108_with_ann!L258","v":95},{"$f":"[1]ACS_16_5YR_C18108_with_ann!M258","v":34},{"$f":"[1]ACS_16_5YR_C18108_with_ann!N258","v":529},{"$f":"[1]ACS_16_5YR_C18108_with_ann!O258","v":99},{"$f":"[1]ACS_16_5YR_C18108_with_ann!P258","v":30},{"$f":"[1]ACS_16_5YR_C18108_with_ann!Q258","v":21},{"$f":"[1]ACS_16_5YR_C18108_with_ann!R258","v":11},{"$f":"[1]ACS_16_5YR_C18108_with_ann!S258","v":14},{"$f":"[1]ACS_16_5YR_C18108_with_ann!T258","v":488},{"$f":"[1]ACS_16_5YR_C18108_with_ann!U258","v":91},{"$f":"[1]ACS_16_5YR_C18108_with_ann!V258","v":282},{"$f":"[1]ACS_16_5YR_C18108_with_ann!W258","v":73},{"$f":"[1]ACS_16_5YR_C18108_with_ann!X258","v":35},{"$f":"[1]ACS_16_5YR_C18108_with_ann!Y258","v":20},{"$f":"[1]ACS_16_5YR_C18108_with_ann!Z258","v":35},{"$f":"[1]ACS_16_5YR_C18108_with_ann!AA258","v":20},{"$f":"[1]ACS_16_5YR_C18108_with_ann!AB258","v":212},{"$f":"[1]ACS_16_5YR_C18108_with_ann!AC258","v":57}]
["0600000US3301911380",3301911380,"060","Charlestown",{"$f":"[1]ACS_16_5YR_C18108_with_ann!D259","v":5017},{"$f":"[1]ACS_16_5YR_C18108_with_ann!E259","v":22},{"$f":"[1]ACS_16_5YR_C18108_with_ann!F259","v":980},{"$f":"[1]ACS_16_5YR_C18108_with_ann!G259","v":194},{"$f":"[1]ACS_16_5YR_C18108_with_ann!H259","v":58},{"$f":"[1]ACS_16_5YR_C18108_with_ann!I259","v":65},{"$f":"[1]ACS_16_5YR_C18108_with_ann!J259","v":31},{"$f":"[1]ACS_16_5YR_C18108_with_ann!K259","v":41},{"$f":"[1]ACS_16_5YR_C18108_with_ann!L259","v":891},{"$f":"[1]ACS_16_5YR_C18108_with_ann!M259","v":198},{"$f":"[1]ACS_16_5YR_C18108_with_ann!N259","v":2961},{"$f":"[1]ACS_16_5YR_C18108_with_ann!O259","v":206},{"$f":"[1]ACS_16_5YR_C18108_with_ann!P259","v":102},{"$f":"[1]ACS_16_5YR_C18108_with_ann!Q259","v":68},{"$f":"[1]ACS_16_5YR_C18108_with_ann!R259","v":201},{"$f":"[1]ACS_16_5YR_C18108_with_ann!S259","v":140},{"$f":"[1]ACS_16_5YR_C18108_with_ann!T259","v":2658},{"$f":"[1]ACS_16_5YR_C18108_with_ann!U259","v":250},{"$f":"[1]ACS_16_5YR_C18108_with_ann!V259","v":1076},{"$f":"[1]ACS_16_5YR_C18108_with_ann!W259","v":201},{"$f":"[1]ACS_16_5YR_C18108_with_ann!X259","v":82},{"$f":"[1]ACS_16_5YR_C18108_with_ann!Y259","v":69},{"$f":"[1]ACS_16_5YR_C18108_with_ann!Z259","v":209},{"$f":"[1]ACS_16_5YR_C18108_with_ann!AA259","v":123},{"$f":"[1]ACS_16_5YR_C18108_with_ann!AB259","v":785},{"$f":"[1]ACS_16_5YR_C18108_with_ann!AC259","v":170}]
["0600000US3301912900",3301912900,"060","Claremont",{"$f":"[1]ACS_16_5YR_C18108_with_ann!D260","v":12914},{"$f":"[1]ACS_16_5YR_C18108_with_ann!E260","v":40},{"$f":"[1]ACS_16_5YR_C18108_with_ann!F260","v":2692},{"$f":"[1]ACS_16_5YR_C18108_with_ann!G260","v":245},{"$f":"[1]ACS_16_5YR_C18108_with_ann!H260","v":58},{"$f":"[1]ACS_16_5YR_C18108_with_ann!I260","v":41},{"$f":"[1]ACS_16_5YR_C18108_with_ann!J260","v":67},{"$f":"[1]ACS_16_5YR_C18108_with_ann!K260","v":54},{"$f":"[1]ACS_16_5YR_C18108_with_ann!L260","v":2567},{"$f":"[1]ACS_16_5YR_C18108_with_ann!M260","v":241},{"$f":"[1]ACS_16_5YR_C18108_with_ann!N260","v":7913},{"$f":"[1]ACS_16_5YR_C18108_with_ann!O260","v":272},{"$f":"[1]ACS_16_5YR_C18108_with_ann!P260","v":629},{"$f":"[1]ACS_16_5YR_C18108_with_ann!Q260","v":164},{"$f":"[1]ACS_16_5YR_C18108_with_ann!R260","v":641},{"$f":"[1]ACS_16_5YR_C18108_with_ann!S260","v":193},{"$f":"[1]ACS_16_5YR_C18108_with_ann!T260","v":6643},{"$f":"[1]ACS_16_5YR_C18108_with_ann!U260","v":313},{"$f":"[1]ACS_16_5YR_C18108_with_ann!V260","v":2309},{"$f":"[1]ACS_16_5YR_C18108_with_ann!W260","v":222},{"$f":"[1]ACS_16_5YR_C18108_with_ann!X260","v":403},{"$f":"[1]ACS_16_5YR_C18108_with_ann!Y260","v":115},{"$f":"[1]ACS_16_5YR_C18108_with_ann!Z260","v":461},{"$f":"[1]ACS_16_5YR_C18108_with_ann!AA260","v":155},{"$f":"[1]ACS_16_5YR_C18108_with_ann!AB260","v":1445},{"$f":"[1]ACS_16_5YR_C18108_with_ann!AC260","v":217}]
["0600000US3301915060",3301915060,"060","Cornish",{"$f":"[1]ACS_16_5YR_C18108_with_ann!D261","v":1783},{"$f":"[1]ACS_16_5YR_C18108_with_ann!E261","v":217},{"$f":"[1]ACS_16_5YR_C18108_with_ann!F261","v":349},{"$f":"[1]ACS_16_5YR_C18108_with_ann!G261","v":128},{"$f":"[1]ACS_16_5YR_C18108_with_ann!H261","v":5},{"$f":"[1]ACS_16_5YR_C18108_with_ann!I261","v":9},{"$f":"[1]ACS_16_5YR_C18108_with_ann!J261","v":0},{"$f":"[1]ACS_16_5YR_C18108_with_ann!K261","v":11},{"$f":"[1]ACS_16_5YR_C18108_with_ann!L261","v":344},{"$f":"[1]ACS_16_5YR_C18108_with_ann!M261","v":127},{"$f":"[1]ACS_16_5YR_C18108_with_ann!N261","v":920},{"$f":"[1]ACS_16_5YR_C18108_with_ann!O261","v":115},{"$f":"[1]ACS_16_5YR_C18108_with_ann!P261","v":43},{"$f":"[1]ACS_16_5YR_C18108_with_ann!Q261","v":23},{"$f":"[1]ACS_16_5YR_C18108_with_ann!R261","v":26},{"$f":"[1]ACS_16_5YR_C18108_with_ann!S261","v":19},{"$f":"[1]ACS_16_5YR_C18108_with_ann!T261","v":851},{"$f":"[1]ACS_16_5YR_C18108_with_ann!U261","v":113},{"$f":"[1]ACS_16_5YR_C18108_with_ann!V261","v":514},{"$f":"[1]ACS_16_5YR_C18108_with_ann!W261","v":86},{"$f":"[1]ACS_16_5YR_C18108_with_ann!X261","v":55},{"$f":"[1]ACS_16_5YR_C18108_with_ann!Y261","v":20},{"$f":"[1]ACS_16_5YR_C18108_with_ann!Z261","v":31},{"$f":"[1]ACS_16_5YR_C18108_with_ann!AA261","v":16},{"$f":"[1]ACS_16_5YR_C18108_with_ann!AB261","v":428},{"$f":"[1]ACS_16_5YR_C18108_with_ann!AC261","v":81}]
["0600000US3301916340",3301916340,"060","Croydon",{"$f":"[1]ACS_16_5YR_C18108_with_ann!D262","v":863},{"$f":"[1]ACS_16_5YR_C18108_with_ann!E262","v":244},{"$f":"[1]ACS_16_5YR_C18108_with_ann!F262","v":144},{"$f":"[1]ACS_16_5YR_C18108_with_ann!G262","v":66},{"$f":"[1]ACS_16_5YR_C18108_with_ann!H262","v":0},{"$f":"[1]ACS_16_5YR_C18108_with_ann!I262","v":11},{"$f":"[1]ACS_16_5YR_C18108_with_ann!J262","v":0},{"$f":"[1]ACS_16_5YR_C18108_with_ann!K262","v":11},{"$f":"[1]ACS_16_5YR_C18108_with_ann!L262","v":144},{"$f":"[1]ACS_16_5YR_C18108_with_ann!M262","v":66},{"$f":"[1]ACS_16_5YR_C18108_with_ann!N262","v":578},{"$f":"[1]ACS_16_5YR_C18108_with_ann!O262","v":199},{"$f":"[1]ACS_16_5YR_C18108_with_ann!P262","v":41},{"$f":"[1]ACS_16_5YR_C18108_with_ann!Q262","v":19},{"$f":"[1]ACS_16_5YR_C18108_with_ann!R262","v":7},{"$f":"[1]ACS_16_5YR_C18108_with_ann!S262","v":8},{"$f":"[1]ACS_16_5YR_C18108_with_ann!T262","v":530},{"$f":"[1]ACS_16_5YR_C18108_with_ann!U262","v":192},{"$f":"[1]ACS_16_5YR_C18108_with_ann!V262","v":141},{"$f":"[1]ACS_16_5YR_C18108_with_ann!W262","v":54},{"$f":"[1]ACS_16_5YR_C18108_with_ann!X262","v":23},{"$f":"[1]ACS_16_5YR_C18108_with_ann!Y262","v":13},{"$f":"[1]ACS_16_5YR_C18108_with_ann!Z262","v":19},{"$f":"[1]ACS_16_5YR_C18108_with_ann!AA262","v":13},{"$f":"[1]ACS_16_5YR_C18108_with_ann!AB262","v":99},{"$f":"[1]ACS_16_5YR_C18108_with_ann!AC262","v":41}]
["0600000US3301930500",3301930500,"060","Goshen",{"$f":"[1]ACS_16_5YR_C18108_with_ann!D263","v":680},{"$f":"[1]ACS_16_5YR_C18108_with_ann!E263","v":109},{"$f":"[1]ACS_16_5YR_C18108_with_ann!F263","v":137},{"$f":"[1]ACS_16_5YR_C18108_with_ann!G263","v":54},{"$f":"[1]ACS_16_5YR_C18108_with_ann!H263","v":0},{"$f":"[1]ACS_16_5YR_C18108_with_ann!I263","v":11},{"$f":"[1]ACS_16_5YR_C18108_with_ann!J263","v":2},{"$f":"[1]ACS_16_5YR_C18108_with_ann!K263","v":3},{"$f":"[1]ACS_16_5YR_C18108_with_ann!L263","v":135},{"$f":"[1]ACS_16_5YR_C18108_with_ann!M263","v":54},{"$f":"[1]ACS_16_5YR_C18108_with_ann!N263","v":386},{"$f":"[1]ACS_16_5YR_C18108_with_ann!O263","v":77},{"$f":"[1]ACS_16_5YR_C18108_with_ann!P263","v":12},{"$f":"[1]ACS_16_5YR_C18108_with_ann!Q263","v":7},{"$f":"[1]ACS_16_5YR_C18108_with_ann!R263","v":19},{"$f":"[1]ACS_16_5YR_C18108_with_ann!S263","v":13},{"$f":"[1]ACS_16_5YR_C18108_with_ann!T263","v":355},{"$f":"[1]ACS_16_5YR_C18108_with_ann!U263","v":75},{"$f":"[1]ACS_16_5YR_C18108_with_ann!V263","v":157},{"$f":"[1]ACS_16_5YR_C18108_with_ann!W263","v":46},{"$f":"[1]ACS_16_5YR_C18108_with_ann!X263","v":15},{"$f":"[1]ACS_16_5YR_C18108_with_ann!Y263","v":10},{"$f":"[1]ACS_16_5YR_C18108_with_ann!Z263","v":22},{"$f":"[1]ACS_16_5YR_C18108_with_ann!AA263","v":12},{"$f":"[1]ACS_16_5YR_C18108_with_ann!AB263","v":120},{"$f":"[1]ACS_16_5YR_C18108_with_ann!AC263","v":41}]
["0600000US3301931220",3301931220,"060","Grantham",{"$f":"[1]ACS_16_5YR_C18108_with_ann!D264","v":2945},{"$f":"[1]ACS_16_5YR_C18108_with_ann!E264","v":14},{"$f":"[1]ACS_16_5YR_C18108_with_ann!F264","v":521},{"$f":"[1]ACS_16_5YR_C18108_with_ann!G264","v":109},{"$f":"[1]ACS_16_5YR_C18108_with_ann!H264","v":17},{"$f":"[1]ACS_16_5YR_C18108_with_ann!I264","v":24},{"$f":"[1]ACS_16_5YR_C18108_with_ann!J264","v":41},{"$f":"[1]ACS_16_5YR_C18108_with_ann!K264","v":61},{"$f":"[1]ACS_16_5YR_C18108_with_ann!L264","v":463},{"$f":"[1]ACS_16_5YR_C18108_with_ann!M264","v":111},{"$f":"[1]ACS_16_5YR_C18108_with_ann!N264","v":1771},{"$f":"[1]ACS_16_5YR_C18108_with_ann!O264","v":172},{"$f":"[1]ACS_16_5YR_C18108_with_ann!P264","v":82},{"$f":"[1]ACS_16_5YR_C18108_with_ann!Q264","v":79},{"$f":"[1]ACS_16_5YR_C18108_with_ann!R264","v":46},{"$f":"[1]ACS_16_5YR_C18108_with_ann!S264","v":65},{"$f":"[1]ACS_16_5YR_C18108_with_ann!T264","v":1643},{"$f":"[1]ACS_16_5YR_C18108_with_ann!U264","v":204},{"$f":"[1]ACS_16_5YR_C18108_with_ann!V264","v":653},{"$f":"[1]ACS_16_5YR_C18108_with_ann!W264","v":159},{"$f":"[1]ACS_16_5YR_C18108_with_ann!X264","v":57},{"$f":"[1]ACS_16_5YR_C18108_with_ann!Y264","v":47},{"$f":"[1]ACS_16_5YR_C18108_with_ann!Z264","v":108},{"$f":"[1]ACS_16_5YR_C18108_with_ann!AA264","v":69},{"$f":"[1]ACS_16_5YR_C18108_with_ann!AB264","v":488},{"$f":"[1]ACS_16_5YR_C18108_with_ann!AC264","v":145}]
["0600000US3301940900",3301940900,"060","Langdon",{"$f":"[1]ACS_16_5YR_C18108_with_ann!D265","v":712},{"$f":"[1]ACS_16_5YR_C18108_with_ann!E265","v":145},{"$f":"[1]ACS_16_5YR_C18108_with_ann!F265","v":169},{"$f":"[1]ACS_16_5YR_C18108_with_ann!G265","v":86},{"$f":"[1]ACS_16_5YR_C18108_with_ann!H265","v":9},{"$f":"[1]ACS_16_5YR_C18108_with_ann!I265","v":10},{"$f":"[1]ACS_16_5YR_C18108_with_ann!J265","v":0},{"$f":"[1]ACS_16_5YR_C18108_with_ann!K265","v":11},{"$f":"[1]ACS_16_5YR_C18108_with_ann!L265","v":160},{"$f":"[1]ACS_16_5YR_C18108_with_ann!M265","v":83},{"$f":"[1]ACS_16_5YR_C18108_with_ann!N265","v":439},{"$f":"[1]ACS_16_5YR_C18108_with_ann!O265","v":94},{"$f":"[1]ACS_16_5YR_C18108_with_ann!P265","v":13},{"$f":"[1]ACS_16_5YR_C18108_with_ann!Q265","v":12},{"$f":"[1]ACS_16_5YR_C18108_with_ann!R265","v":6},{"$f":"[1]ACS_16_5YR_C18108_with_ann!S265","v":5},{"$f":"[1]ACS_16_5YR_C18108_with_ann!T265","v":420},{"$f":"[1]ACS_16_5YR_C18108_with_ann!U265","v":91},{"$f":"[1]ACS_16_5YR_C18108_with_ann!V265","v":104},{"$f":"[1]ACS_16_5YR_C18108_with_ann!W265","v":25},{"$f":"[1]ACS_16_5YR_C18108_with_ann!X265","v":15},{"$f":"[1]ACS_16_5YR_C18108_with_ann!Y265","v":10},{"$f":"[1]ACS_16_5YR_C18108_with_ann!Z265","v":17},{"$f":"[1]ACS_16_5YR_C18108_with_ann!AA265","v":10},{"$f":"[1]ACS_16_5YR_C18108_with_ann!AB265","v":72},{"$f":"[1]ACS_16_5YR_C18108_with_ann!AC265","v":20}]
["0600000US3301941700",3301941700,"060","Lempster",{"$f":"[1]ACS_16_5YR_C18108_with_ann!D266","v":923},{"$f":"[1]ACS_16_5YR_C18108_with_ann!E266","v":176},{"$f":"[1]ACS_16_5YR_C18108_with_ann!F266","v":223},{"$f":"[1]ACS_16_5YR_C18108_with_ann!G266","v":116},{"$f":"[1]ACS_16_5YR_C18108_with_ann!H266","v":5},{"$f":"[1]ACS_16_5YR_C18108_with_ann!I266","v":5},{"$f":"[1]ACS_16_5YR_C18108_with_ann!J266","v":0},{"$f":"[1]ACS_16_5YR_C18108_with_ann!K266","v":11},{"$f":"[1]ACS_16_5YR_C18108_with_ann!L266","v":218},{"$f":"[1]ACS_16_5YR_C18108_with_ann!M266","v":116},{"$f":"[1]ACS_16_5YR_C18108_with_ann!N266","v":528},{"$f":"[1]ACS_16_5YR_C18108_with_ann!O266","v":95},{"$f":"[1]ACS_16_5YR_C18108_with_ann!P266","v":56},{"$f":"[1]ACS_16_5YR_C18108_with_ann!Q266","v":29},{"$f":"[1]ACS_16_5YR_C18108_with_ann!R266","v":17},{"$f":"[1]ACS_16_5YR_C18108_with_ann!S266","v":12},{"$f":"[1]ACS_16_5YR_C18108_with_ann!T266","v":455},{"$f":"[1]ACS_16_5YR_C18108_with_ann!U266","v":92},{"$f":"[1]ACS_16_5YR_C18108_with_ann!V266","v":172},{"$f":"[1]ACS_16_5YR_C18108_with_ann!W266","v":53},{"$f":"[1]ACS_16_5YR_C18108_with_ann!X266","v":45},{"$f":"[1]ACS_16_5YR_C18108_with_ann!Y266","v":30},{"$f":"[1]ACS_16_5YR_C18108_with_ann!Z266","v":3},{"$f":"[1]ACS_16_5YR_C18108_with_ann!AA266","v":4},{"$f":"[1]ACS_16_5YR_C18108_with_ann!AB266","v":124},{"$f":"[1]ACS_16_5YR_C18108_with_ann!AC266","v":43}]
["0600000US3301952580",3301952580,"060","Newport",{"$f":"[1]ACS_16_5YR_C18108_with_ann!D267","v":6259},{"$f":"[1]ACS_16_5YR_C18108_with_ann!E267","v":51},{"$f":"[1]ACS_16_5YR_C18108_with_ann!F267","v":1198},{"$f":"[1]ACS_16_5YR_C18108_with_ann!G267","v":248},{"$f":"[1]ACS_16_5YR_C18108_with_ann!H267","v":44},{"$f":"[1]ACS_16_5YR_C18108_with_ann!I267","v":51},{"$f":"[1]ACS_16_5YR_C18108_with_ann!J267","v":43},{"$f":"[1]ACS_16_5YR_C18108_with_ann!K267","v":50},{"$f":"[1]ACS_16_5YR_C18108_with_ann!L267","v":1111},{"$f":"[1]ACS_16_5YR_C18108_with_ann!M267","v":227},{"$f":"[1]ACS_16_5YR_C18108_with_ann!N267","v":3942},{"$f":"[1]ACS_16_5YR_C18108_with_ann!O267","v":277},{"$f":"[1]ACS_16_5YR_C18108_with_ann!P267","v":209},{"$f":"[1]ACS_16_5YR_C18108_with_ann!Q267","v":99},{"$f":"[1]ACS_16_5YR_C18108_with_ann!R267","v":256},{"$f":"[1]ACS_16_5YR_C18108_with_ann!S267","v":139},{"$f":"[1]ACS_16_5YR_C18108_with_ann!T267","v":3477},{"$f":"[1]ACS_16_5YR_C18108_with_ann!U267","v":327},{"$f":"[1]ACS_16_5YR_C18108_with_ann!V267","v":1119},{"$f":"[1]ACS_16_5YR_C18108_with_ann!W267","v":287},{"$f":"[1]ACS_16_5YR_C18108_with_ann!X267","v":232},{"$f":"[1]ACS_16_5YR_C18108_with_ann!Y267","v":121},{"$f":"[1]ACS_16_5YR_C18108_with_ann!Z267","v":281},{"$f":"[1]ACS_16_5YR_C18108_with_ann!AA267","v":140},{"$f":"[1]ACS_16_5YR_C18108_with_ann!AB267","v":606},{"$f":"[1]ACS_16_5YR_C18108_with_ann!AC267","v":206}]
["0600000US3301962340",3301962340,"060","Plainfield",{"$f":"[1]ACS_16_5YR_C18108_with_ann!D268","v":2555},{"$f":"[1]ACS_16_5YR_C18108_with_ann!E268","v":293},{"$f":"[1]ACS_16_5YR_C18108_with_ann!F268","v":497},{"$f":"[1]ACS_16_5YR_C18108_with_ann!G268","v":164},{"$f":"[1]ACS_16_5YR_C18108_with_ann!H268","v":5},{"$f":"[1]ACS_16_5YR_C18108_with_ann!I268","v":7},{"$f":"[1]ACS_16_5YR_C18108_with_ann!J268","v":7},{"$f":"[1]ACS_16_5YR_C18108_with_ann!K268","v":9},{"$f":"[1]ACS_16_5YR_C18108_with_ann!L268","v":485},{"$f":"[1]ACS_16_5YR_C18108_with_ann!M268","v":166},{"$f":"[1]ACS_16_5YR_C18108_with_ann!N268","v":1583},{"$f":"[1]ACS_16_5YR_C18108_with_ann!O268","v":207},{"$f":"[1]ACS_16_5YR_C18108_with_ann!P268","v":57},{"$f":"[1]ACS_16_5YR_C18108_with_ann!Q268","v":29},{"$f":"[1]ACS_16_5YR_C18108_with_ann!R268","v":11},{"$f":"[1]ACS_16_5YR_C18108_with_ann!S268","v":11},{"$f":"[1]ACS_16_5YR_C18108_with_ann!T268","v":1515},{"$f":"[1]ACS_16_5YR_C18108_with_ann!U268","v":204},{"$f":"[1]ACS_16_5YR_C18108_with_ann!V268","v":475},{"$f":"[1]ACS_16_5YR_C18108_with_ann!W268","v":115},{"$f":"[1]ACS_16_5YR_C18108_with_ann!X268","v":73},{"$f":"[1]ACS_16_5YR_C18108_with_ann!Y268","v":42},{"$f":"[1]ACS_16_5YR_C18108_with_ann!Z268","v":49},{"$f":"[1]ACS_16_5YR_C18108_with_ann!AA268","v":36},{"$f":"[1]ACS_16_5YR_C18108_with_ann!AB268","v":353},{"$f":"[1]ACS_16_5YR_C18108_with_ann!AC268","v":91}]
["0600000US3301972740",3301972740,"060","Springfield",{"$f":"[1]ACS_16_5YR_C18108_with_ann!D269","v":1084},{"$f":"[1]ACS_16_5YR_C18108_with_ann!E269","v":198},{"$f":"[1]ACS_16_5YR_C18108_with_ann!F269","v":156},{"$f":"[1]ACS_16_5YR_C18108_with_ann!G269","v":65},{"$f":"[1]ACS_16_5YR_C18108_with_ann!H269","v":19},{"$f":"[1]ACS_16_5YR_C18108_with_ann!I269","v":20},{"$f":"[1]ACS_16_5YR_C18108_with_ann!J269","v":3},{"$f":"[1]ACS_16_5YR_C18108_with_ann!K269","v":5},{"$f":"[1]ACS_16_5YR_C18108_with_ann!L269","v":134},{"$f":"[1]ACS_16_5YR_C18108_with_ann!M269","v":56},{"$f":"[1]ACS_16_5YR_C18108_with_ann!N269","v":606},{"$f":"[1]ACS_16_5YR_C18108_with_ann!O269","v":146},{"$f":"[1]ACS_16_5YR_C18108_with_ann!P269","v":21},{"$f":"[1]ACS_16_5YR_C18108_with_ann!Q269","v":14},{"$f":"[1]ACS_16_5YR_C18108_with_ann!R269","v":9},{"$f":"[1]ACS_16_5YR_C18108_with_ann!S269","v":10},{"$f":"[1]ACS_16_5YR_C18108_with_ann!T269","v":576},{"$f":"[1]ACS_16_5YR_C18108_with_ann!U269","v":145},{"$f":"[1]ACS_16_5YR_C18108_with_ann!V269","v":322},{"$f":"[1]ACS_16_5YR_C18108_with_ann!W269","v":89},{"$f":"[1]ACS_16_5YR_C18108_with_ann!X269","v":15},{"$f":"[1]ACS_16_5YR_C18108_with_ann!Y269","v":12},{"$f":"[1]ACS_16_5YR_C18108_with_ann!Z269","v":33},{"$f":"[1]ACS_16_5YR_C18108_with_ann!AA269","v":26},{"$f":"[1]ACS_16_5YR_C18108_with_ann!AB269","v":274},{"$f":"[1]ACS_16_5YR_C18108_with_ann!AC269","v":79}]
["0600000US3301975060",3301975060,"060","Sunapee",{"$f":"[1]ACS_16_5YR_C18108_with_ann!D270","v":3449},{"$f":"[1]ACS_16_5YR_C18108_with_ann!E270","v":19},{"$f":"[1]ACS_16_5YR_C18108_with_ann!F270","v":692},{"$f":"[1]ACS_16_5YR_C18108_with_ann!G270","v":130},{"$f":"[1]ACS_16_5YR_C18108_with_ann!H270","v":0},{"$f":"[1]ACS_16_5YR_C18108_with_ann!I270","v":11},{"$f":"[1]ACS_16_5YR_C18108_with_ann!J270","v":0},{"$f":"[1]ACS_16_5YR_C18108_with_ann!K270","v":11},{"$f":"[1]ACS_16_5YR_C18108_with_ann!L270","v":692},{"$f":"[1]ACS_16_5YR_C18108_with_ann!M270","v":130},{"$f":"[1]ACS_16_5YR_C18108_with_ann!N270","v":2051},{"$f":"[1]ACS_16_5YR_C18108_with_ann!O270","v":124},{"$f":"[1]ACS_16_5YR_C18108_with_ann!P270","v":36},{"$f":"[1]ACS_16_5YR_C18108_with_ann!Q270","v":33},{"$f":"[1]ACS_16_5YR_C18108_with_ann!R270","v":43},{"$f":"[1]ACS_16_5YR_C18108_with_ann!S270","v":36},{"$f":"[1]ACS_16_5YR_C18108_with_ann!T270","v":1972},{"$f":"[1]ACS_16_5YR_C18108_with_ann!U270","v":129},{"$f":"[1]ACS_16_5YR_C18108_with_ann!V270","v":706},{"$f":"[1]ACS_16_5YR_C18108_with_ann!W270","v":139},{"$f":"[1]ACS_16_5YR_C18108_with_ann!X270","v":109},{"$f":"[1]ACS_16_5YR_C18108_with_ann!Y270","v":59},{"$f":"[1]ACS_16_5YR_C18108_with_ann!Z270","v":67},{"$f":"[1]ACS_16_5YR_C18108_with_ann!AA270","v":58},{"$f":"[1]ACS_16_5YR_C18108_with_ann!AB270","v":530},{"$f":"[1]ACS_16_5YR_C18108_with_ann!AC270","v":103}]
["0600000US3301977940",3301977940,"060","Unity",{"$f":"[1]ACS_16_5YR_C18108_with_ann!D271","v":1331},{"$f":"[1]ACS_16_5YR_C18108_with_ann!E271","v":148},{"$f":"[1]ACS_16_5YR_C18108_with_ann!F271","v":152},{"$f":"[1]ACS_16_5YR_C18108_with_ann!G271","v":61},{"$f":"[1]ACS_16_5YR_C18108_with_ann!H271","v":0},{"$f":"[1]ACS_16_5YR_C18108_with_ann!I271","v":11},{"$f":"[1]ACS_16_5YR_C18108_with_ann!J271","v":0},{"$f":"[1]ACS_16_5YR_C18108_with_ann!K271","v":11},{"$f":"[1]ACS_16_5YR_C18108_with_ann!L271","v":152},{"$f":"[1]ACS_16_5YR_C18108_with_ann!M271","v":61},{"$f":"[1]ACS_16_5YR_C18108_with_ann!N271","v":852},{"$f":"[1]ACS_16_5YR_C18108_with_ann!O271","v":114},{"$f":"[1]ACS_16_5YR_C18108_with_ann!P271","v":42},{"$f":"[1]ACS_16_5YR_C18108_with_ann!Q271","v":24},{"$f":"[1]ACS_16_5YR_C18108_with_ann!R271","v":33},{"$f":"[1]ACS_16_5YR_C18108_with_ann!S271","v":19},{"$f":"[1]ACS_16_5YR_C18108_with_ann!T271","v":777},{"$f":"[1]ACS_16_5YR_C18108_with_ann!U271","v":108},{"$f":"[1]ACS_16_5YR_C18108_with_ann!V271","v":327},{"$f":"[1]ACS_16_5YR_C18108_with_ann!W271","v":61},{"$f":"[1]ACS_16_5YR_C18108_with_ann!X271","v":64},{"$f":"[1]ACS_16_5YR_C18108_with_ann!Y271","v":27},{"$f":"[1]ACS_16_5YR_C18108_with_ann!Z271","v":24},{"$f":"[1]ACS_16_5YR_C18108_with_ann!AA271","v":15},{"$f":"[1]ACS_16_5YR_C18108_with_ann!AB271","v":239},{"$f":"[1]ACS_16_5YR_C18108_with_ann!AC271","v":51}]
["0600000US3301978980",3301978980,"060","Washington",{"$f":"[1]ACS_16_5YR_C18108_with_ann!D272","v":1199},{"$f":"[1]ACS_16_5YR_C18108_with_ann!E272","v":188},{"$f":"[1]ACS_16_5YR_C18108_with_ann!F272","v":139},{"$f":"[1]ACS_16_5YR_C18108_with_ann!G272","v":58},{"$f":"[1]ACS_16_5YR_C18108_with_ann!H272","v":3},{"$f":"[1]ACS_16_5YR_C18108_with_ann!I272","v":4},{"$f":"[1]ACS_16_5YR_C18108_with_ann!J272","v":2},{"$f":"[1]ACS_16_5YR_C18108_with_ann!K272","v":5},{"$f":"[1]ACS_16_5YR_C18108_with_ann!L272","v":134},{"$f":"[1]ACS_16_5YR_C18108_with_ann!M272","v":58},{"$f":"[1]ACS_16_5YR_C18108_with_ann!N272","v":745},{"$f":"[1]ACS_16_5YR_C18108_with_ann!O272","v":158},{"$f":"[1]ACS_16_5YR_C18108_with_ann!P272","v":20},{"$f":"[1]ACS_16_5YR_C18108_with_ann!Q272","v":11},{"$f":"[1]ACS_16_5YR_C18108_with_ann!R272","v":14},{"$f":"[1]ACS_16_5YR_C18108_with_ann!S272","v":14},{"$f":"[1]ACS_16_5YR_C18108_with_ann!T272","v":711},{"$f":"[1]ACS_16_5YR_C18108_with_ann!U272","v":154},{"$f":"[1]ACS_16_5YR_C18108_with_ann!V272","v":315},{"$f":"[1]ACS_16_5YR_C18108_with_ann!W272","v":62},{"$f":"[1]ACS_16_5YR_C18108_with_ann!X272","v":28},{"$f":"[1]ACS_16_5YR_C18108_with_ann!Y272","v":22},{"$f":"[1]ACS_16_5YR_C18108_with_ann!Z272","v":27},{"$f":"[1]ACS_16_5YR_C18108_with_ann!AA272","v":20},{"$f":"[1]ACS_16_5YR_C18108_with_ann!AB272","v":260},{"$f":"[1]ACS_16_5YR_C18108_with_ann!AC272","v":54}]
[]
[null,null,null,null,{"$f":"$D$3","v":"Acworth"},null,{"$f":"$D$4","v":"Charlestown"},null,{"$f":"$D$5","v":"Claremont"},null,{"$f":"$D$6","v":"Cornish"},null,{"$f":"$D$7","v":"Croydon"},null,{"$f":"$D$8","v":"Goshen"},null,{"$f":"$D$9","v":"Grantham"},null,{"$f":"$D$10","v":"Langdon"},null,{"$f":"$D$11","v":"Lempster"},null,{"$f":"$D$12","v":"Newport"},null,{"$f":"$D$13","v":"Plainfield"},null,{"$f":"$D$14","v":"Springfield"},null,{"$f":"$D$15","v":"Sunapee"},null,{"$f":"$D$16","v":"Unity"},null,{"$f":"$D$17","v":"Washington"}]
[null,null,null,null,"Estimate","Margin Of Error","Estimate","Margin Of Error","Estimate","Margin Of Error","Estimate","Margin Of Error","Estimate","Margin Of Error","Estimate","Margin Of Error","Estimate","Margin Of Error","Estimate","Margin Of Error","Estimate","Margin Of Error","Estimate","Margin Of Error","Estimate","Margin Of Error","Estimate","Margin Of Error","Estimate","Margin Of Error",null,"Estimate","Margin Of Error"]
[null,null,null,"Estimate Total:",906,134,5017,22,12914,40,1783,217,863,244,680,109,2945,14,712,145,923,176,6259,51,2555,293,1084,198,3449,19,1331,148,1199,188]
[null,null,null,"Estimate Total: Under 18 years:",95,34,980,194,2692,245,349,128,144,66,137,54,521,109,169,86,223,116,1198,248,497,164,156,65,692,130,152,61,139,58]
[null,null,null,"Estimate Total: Under 18 years: With one type of disability",0,11,58,65,58,41,5,9,0,11,0,11,17,24,9,10,5,5,44,51,5,7,19,20,0,11,0,11,3,4]
[null,null,null,"Estimate Total: Under 18 years: With two or more types of disability",0,11,31,41,67,54,0,11,0,11,2,3,41,61,0,11,0,11,43,50,7,9,3,5,0,11,0,11,2,5]
[null,null,null,"Estimate Total: Under 18 years: No disability",95,34,891,198,2567,241,344,127,144,66,135,54,463,111,160,83,218,116,1111,227,485,166,134,56,692,130,152,61,134,58]
[null,null,null,"Estimate Total: 18 to 64 years:",529,99,2961,206,7913,272,920,115,578,199,386,77,1771,172,439,94,528,95,3942,277,1583,207,606,146,2051,124,852,114,745,158]
[null,null,null,"Estimate Total: 18 to 64 years: With one type of disability",30,21,102,68,629,164,43,23,41,19,12,7,82,79,13,12,56,29,209,99,57,29,21,14,36,33,42,24,20,11]
[null,null,null,"Estimate Total: 18 to 64 years: With two or more types of disability",11,14,201,140,641,193,26,19,7,8,19,13,46,65,6,5,17,12,256,139,11,11,9,10,43,36,33,19,14,14]
[null,null,null,"Estimate Total: 18 to 64 years: No disability",488,91,2658,250,6643,313,851,113,530,192,355,75,1643,204,420,91,455,92,3477,327,1515,204,576,145,1972,129,777,108,711,154]
[null,null,null,"Estimate Total: 65 years and over:",282,73,1076,201,2309,222,514,86,141,54,157,46,653,159,104,25,172,53,1119,287,475,115,322,89,706,139,327,61,315,62]
[null,null,null,"Estimate Total: 65 years and over: With one type of disability",35,20,82,69,403,115,55,20,23,13,15,10,57,47,15,10,45,30,232,121,73,42,15,12,109,59,64,27,28,22]
[null,null,null,"Estimate Total: 65 years and over: With two or more types of disability",35,20,209,123,461,155,31,16,19,13,22,12,108,69,17,10,3,4,281,140,49,36,33,26,67,58,24,15,27,20]
[null,null,null,"Estimate Total: 65 years and over: No disability",212,57,785,170,1445,217,428,81,99,41,120,41,488,145,72,20,124,43,606,206,353,91,274,79,530,103,239,51,260,54]

{"sheet":"ACS_Table_C18108","index":55,"n_rows":118,"n_cols":522,"rows_kept":118,"cut":false,"hidden":true,"merged":[]}
["B18108. AGE BY NUMBER OF DISABILITIES\n\n"]
["Universe:  Civilian non-institutionalized population"]
["Data Set: 2015-2019 American Community Survey 5-Year Estimates"]
[]
[null,null,"Acworth",null,"Charlestown",null,"Claremont",null,"Cornish",null,"Croydon",null,"Goshen",null,"Grantham",null,"Langdon",null,"Lempster",null,"Newport",null,"Plainfield",null,"Springfield",null,"Sunapee",null,"Unity",null,"Washington"]
[null,null,"Estimate","Margin Of Error","Estimate","Margin Of Error","Estimate","Margin Of Error","Estimate","Margin Of Error","Estimate","Margin Of Error","Estimate","Margin Of Error","Estimate","Margin Of Error","Estimate","Margin Of Error","Estimate","Margin Of Error","Estimate","Margin Of Error","Estimate","Margin Of Error","Estimate","Margin Of Error","Estimate","Margin Of Error","Estimate","Margin Of Error","Estimate","Margin Of Error"]
[null,"Total:",906,134,5017,22,12914,40,1783,217,863,244,680,109,2945,14,712,145,923,176,6259,51,2555,293,1084,198,3449,19,1331,148,1199,188]
[null,"Under 18 years:",95,34,980,194,2692,245,349,128,144,66,137,54,521,109,169,86,223,116,1198,248,497,164,156,65,692,130,152,61,139,58]
[null,"With one type of disability",0,11,58,65,58,41,5,9,0,11,0,11,17,24,9,10,5,5,44,51,5,7,19,20,0,11,0,11,3,4]
[null,"With two or more types of disability",0,11,31,41,67,54,0,11,0,11,2,3,41,61,0,11,0,11,43,50,7,9,3,5,0,11,0,11,2,5]
[null,"No disability",95,34,891,198,2567,241,344,127,144,66,135,54,463,111,160,83,218,116,1111,227,485,166,134,56,692,130,152,61,134,58]
[null,"18 to 64  years:",529,99,2961,206,7913,272,920,115,578,199,386,77,1771,172,439,94,528,95,3942,277,1583,207,606,146,2051,124,852,114,745,158]
[null,"With one type of disability",30,21,102,68,629,164,43,23,41,19,12,7,82,79,13,12,56,29,209,99,57,29,21,14,36,33,42,24,20,11]
[null,"With two or more types of disability",11,14,201,140,641,193,26,19,7,8,19,13,46,65,6,5,17,12,256,139,11,11,9,10,43,36,33,19,14,14]
[null,"No disability",488,91,2658,250,6643,313,851,113,530,192,355,75,1643,204,420,91,455,92,3477,327,1515,204,576,145,1972,129,777,108,711,154]
[null,"65 years and over:",282,73,1076,201,2309,222,514,86,141,54,157,46,653,159,104,25,172,53,1119,287,475,115,322,89,706,139,327,61,315,62]
[null,"With one type of disability",35,20,82,69,403,115,55,20,23,13,15,10,57,47,15,10,45,30,232,121,73,42,15,12,109,59,64,27,28,22]
[null,"With two or more types of disability",35,20,209,123,461,155,31,16,19,13,22,12,108,69,17,10,3,4,281,140,49,36,33,26,67,58,24,15,27,20]
[null,"No disability",212,57,785,170,1445,217,428,81,99,41,120,41,488,145,72,20,124,43,606,206,353,91,274,79,530,103,239,51,260,54]
[]
[]
[]
[]
[]
[]
[]
[]
[]
[]
[]
[]
[]
[]
[]
[]
[]
[]
[]
[]
[]
[]
[]
[]
[]
[]
[]
[]
[]
[]
[]
[]
[]
[]
[]
[]
[]
[]
[]
[]
[]
[]
[]
[]
[]
[]
[]
[]
[]
[]
[]
[]
[]
[]
[]
[]
[]
[]
[]
[]
[]
[]
[]
[]
[]
[]
[]
[]
[]
[]
[]
[]
[]
[]
[]
[]
[]
[]
[]
[]
["B18108. AGE BY NUMBER OF DISABILITIES\n\n"]
["Universe:  Civilian non-institutionalized population"]
["Data Set: 2010-2014 American Community Survey 5-Year Estimates"]
[]
[null,null,"Acworth",null,"Charlestown",null,"Claremont",null,"Cornish",null,"Croydon",null,"Goshen",null,"Grantham",null,"Langdon",null,"Lempster",null,"Newport",null,"Plainfield",null,"Springfield",null,"Sunapee",null,"Unity",null,"Washington"]
[null,null,"Estimate","Margin Of Error","Estimate","Margin Of Error","Estimate","Margin Of Error","Estimate","Margin Of Error","Estimate","Margin Of Error","Estimate","Margin Of Error","Estimate","Margin Of Error","Estimate","Margin Of Error","Estimate","Margin Of Error","Estimate","Margin Of Error","Estimate","Margin Of Error","Estimate","Margin Of Error","Estimate","Margin Of Error","Estimate","Margin Of Error","Estimate","Margin Of Error",null,null,null,null,null,null,null,null,null,null,"Estimate","Margin Of Error","Estimate","Margin Of Error","Estimate","Margin Of Error","Estimate","Margin Of Error","Estimate","Margin Of Error","Estimate","Margin Of Error","Estimate","Margin Of Error","Estimate","Margin Of Error","Estimate","Margin Of Error","Estimate","Margin Of Error","Estimate","Margin Of Error","Estimate","Margin Of Error","Estimate","Margin Of Error","Estimate","Margin Of Error","Estimate","Margin Of Error","Estimate","Margin Of Error","Estimate","Margin Of Error"]
[null,"Total:",5264,21,4605,19,7313,27,1012,145,7125,41,3778,15,15560,162,6262,56,2266,140,2977,25,3362,141,800,176,2767,20,786,200,393,96,9930,71,348,65,1362,168,1195,152,137,41,41,24,1032,242,2507,18,4032,19,4136,113,1484,191,2851,19,2256,298,5046,37,6103,76,1922,228,3601,19,1642,213,2454,210,610,88,911,121,3995,20,5341,85,22848,164,1834,236,753,140,606,108,1089,203,5933,42,236,46,1124,173,741,133,828,107,7255,32,2262,263,3704,33,1919,197,4239,44,0,11,0,11,0,11,8671,580,17,16,991,165,0,11,315,75,2340,210,726,132,0,11,0,11,933,154,0,11,13,9,348,76,301,70,0,11,2765,15,8,17,0,11,902,89,0,11,3338,89,0,11,0,11,1307,85,20,16,2179,180,0,11,8,6,875,130,424,74,9,12,0,11,358,66,490,94,712,123,705,127,0,11,0,11,62,33,2081,219,1829,203,2066,318,872,125,378,116,2537,19,1092,143,3054,16,3317,18,3910,23,318,60,243,45,61,33,4565,17,1099,166,1278,210,637,117,11167,53,4432,123,578,189,2080,249,416,52,13336,56,1309,266,1557,149,5937,21,0,11,608,97,1733,148,906,130,308,65,1572,257,754,98,6853,74,1649,314,618,125,2490,22,726,135,260,110,896,163,1137,211,11234,20,2622,21,20924,226,1357,201,5051,28,1772,184,1551,143,17288,167,1416,119,2374,215,1805,142,5950,49,7721,27,24453,72,8329,16,1633,171,108437,353,1329,102,25521,45,14974,135,2508,187,86197,162,5381,27,5119,14,13032,19,6216,91,320,61,1594,295,8849,40,3679,17,259,66,4283,41,2421,253,3446,335,7611,29,1706,205,2291,204,2551,18,40333,422,1243,186,2779,17,4490,91,8322,73,4822,22,1164,184,13669,50,5591,23,5332,24,1749,234,4465,78,4772,59,7121,29,4078,30,1402,161,2014,287,2846,21,1891,199,1367,181,0,11,6788,19,5078,20,4184,165,3920,21,4802,18,4416,39,4330,19,33018,137,2453,130,6587,17,14251,110,4306,45,3668,15,8496,64,14765,183,2307,123,2055,149,6060,19,24247,24,966,162,1621,222,798,136,8911,33,4700,39,4344,22,4269,16,4855,17,7614,26,20789,309,10202,23,5275,65,28729,56,6133,38,8736,25,799,123,7303,19,13908,55,8691,17,29373,345,15169,37,6805,45,4357,15,1995,170,1563,168,4576,27,2648,16,29661,116,2506,31,11694,51,4017,28,923,163,5047,16,13083,71,1601,179,651,140,821,127,2958,30,787,149,1089,147,6351,81,2518,166,1313,217,3363,30,1352,149,1013,140]
[null,"Under 18 years:",928,236,866,192,1853,218,140,60,1328,249,818,139,3312,302,1340,190,455,78,509,85,649,146,215,88,360,139,188,88,84,37,2002,278,28,18,218,65,210,60,3,6,3,5,182,105,445,111,631,131,948,182,327,96,191,104,520,175,714,181,1035,248,449,110,709,192,314,104,468,114,60,28,128,45,759,97,1177,178,3609,321,359,126,165,64,101,38,206,79,1226,146,45,17,226,72,154,52,81,31,1392,289,470,135,928,138,474,103,991,131,0,11,0,11,0,11,1623,193,0,11,214,95,0,11,53,29,398,80,131,46,0,11,0,11,138,61,0,11,0,11,75,35,20,17,0,11,568,71,0,11,0,11,125,30,0,11,747,94,0,11,0,11,207,32,7,9,457,100,0,11,0,11,82,37,59,27,0,11,0,11,55,31,94,42,74,45,161,56,0,11,0,11,4,6,369,83,486,83,391,146,130,48,125,67,621,111,126,59,704,114,501,147,801,119,23,15,30,19,4,9,792,155,156,53,251,96,81,42,1441,200,813,112,96,36,424,105,62,25,2600,244,276,113,321,70,1176,201,0,11,106,44,396,52,199,66,53,24,347,85,129,41,812,138,316,131,110,57,348,95,134,40,49,41,144,56,207,93,3104,246,546,80,5892,292,370,111,1370,122,300,63,256,53,3157,262,290,44,532,142,380,60,1659,215,1771,130,5956,318,2293,150,350,83,22211,627,354,106,5619,252,3546,163,683,101,19093,643,1292,122,1523,227,3275,185,980,178,33,16,337,132,2406,208,829,103,37,22,836,110,422,110,840,192,1905,116,317,85,463,111,474,60,8640,396,262,90,596,63,899,106,1972,193,1168,233,251,82,2604,208,1257,157,1177,151,315,82,411,124,1136,153,1592,156,936,147,288,75,468,124,532,108,432,95,253,75,0,11,1431,121,1164,96,1185,125,779,108,1199,95,1156,115,1024,99,7444,423,553,61,1455,184,3335,295,993,98,879,68,1851,170,2764,306,529,65,484,72,1228,143,5967,266,120,67,443,99,99,40,1898,237,1231,118,867,122,917,169,1039,121,1669,258,3384,238,2473,241,789,141,5753,325,1479,170,1309,281,149,47,1709,141,3596,185,1907,261,6182,307,1677,197,1436,197,972,153,567,108,365,79,1043,110,612,106,5776,331,672,75,2671,247,947,138,207,95,894,138,2996,240,334,101,125,47,140,57,695,154,181,71,223,56,1148,191,549,73,326,125,570,94,191,55,146,65]
[null,"With one type of disability",0,15,76,66,126,87,5,7,19,27,34,36,202,100,65,56,20,23,0,11,15,22,0,11,0,11,8,9,4,5,51,38,0,11,13,10,14,12,0,11,0,11,0,11,25,26,0,11,30,26,4,8,0,11,36,32,16,23,0,15,5,6,16,25,20,16,5,9,0,11,0,11,61,60,41,48,145,78,0,11,10,10,15,20,13,11,8,12,3,5,11,11,2,3,0,11,64,61,16,20,34,41,11,13,44,46,0,11,0,11,0,11,78,48,0,11,32,38,0,11,3,4,26,22,4,6,0,11,0,11,10,13,0,11,0,11,0,11,0,11,0,11,56,39,0,11,0,11,0,11,0,11,0,11,0,11,0,11,3,4,0,11,50,31,0,11,0,11,6,8,2,3,0,11,0,11,2,3,2,3,0,11,35,27,0,11,0,11,0,11,30,31,29,15,17,26,0,11,4,7,26,31,7,10,103,77,8,14,26,40,5,6,3,4,0,11,0,11,9,10,12,15,5,7,52,50,21,23,0,11,0,11,0,11,197,177,18,18,26,24,65,59,0,11,0,11,2,3,6,9,0,11,11,17,2,3,0,15,18,17,3,5,3,5,8,6,0,11,6,6,15,19,64,57,11,15,149,69,8,8,25,24,6,7,7,11,88,57,15,10,15,14,10,9,148,95,0,15,293,171,128,160,8,11,915,203,6,7,120,59,118,70,0,11,694,207,31,29,80,91,35,46,19,30,0,11,11,14,84,70,13,15,0,11,67,43,0,11,6,11,47,36,3,5,16,25,25,24,437,123,7,12,15,22,29,34,108,80,61,58,15,16,118,85,31,30,33,44,0,11,12,20,37,29,94,80,51,39,15,11,4,5,14,15,17,16,0,11,0,11,0,15,12,18,19,18,13,16,68,57,112,89,99,71,173,73,5,9,67,61,124,78,37,34,33,32,24,23,33,30,12,14,4,5,30,39,191,76,0,11,13,11,5,7,37,36,0,11,0,11,49,47,45,40,70,71,94,59,71,50,44,46,177,99,8,14,38,58,0,11,91,90,10,16,23,39,236,116,62,42,195,136,69,96,18,22,18,15,0,11,19,17,229,127,9,15,107,86,24,20,2,3,10,15,89,70,3,5,11,13,15,16,9,7,4,5,11,14,9,12,0,11,3,6,26,26,4,6,0,11]
[null,"With two or more types of disability",11,18,0,11,70,86,0,11,43,46,0,11,17,21,0,15,4,6,11,12,0,11,0,11,0,11,0,11,2,3,23,26,0,11,4,5,10,12,0,11,0,11,0,11,6,10,31,37,29,45,0,11,0,11,0,11,16,24,18,18,10,9,0,11,0,11,0,11,0,11,0,11,0,11,0,15,19,23,0,11,0,11,0,11,6,7,17,22,0,11,0,11,3,5,0,11,0,15,0,11,27,41,3,7,0,11,0,11,0,11,0,11,96,57,0,11,8,13,0,11,0,11,0,11,7,8,0,11,0,11,2,3,0,11,0,11,0,11,0,11,0,11,16,18,0,11,0,11,0,11,0,11,35,39,0,11,0,11,0,11,0,11,43,30,0,11,0,11,0,11,0,11,0,11,0,11,0,11,2,4,0,11,0,11,0,11,0,11,0,11,0,11,3,4,0,11,0,11,0,11,30,47,0,11,22,34,0,11,6,13,0,11,0,11,0,11,23,40,0,11,0,11,0,11,11,18,29,36,0,11,0,11,0,11,36,43,0,11,0,11,27,31,0,11,0,11,0,11,0,11,0,11,19,17,2,3,0,15,0,11,7,11,0,11,0,11,0,11,1,2,0,11,8,14,0,11,9,14,0,11,0,15,4,5,0,11,25,28,2,5,0,11,3,5,44,66,14,24,46,42,29,33,0,11,416,168,0,11,101,68,36,34,0,11,304,156,20,22,0,15,12,20,0,15,0,11,0,11,16,25,45,35,0,11,59,57,0,11,0,11,14,21,2,3,11,11,19,22,88,48,3,4,14,16,0,11,18,32,13,22,0,11,22,35,38,49,33,45,6,9,18,26,0,11,20,33,4,8,0,11,0,11,0,11,0,11,0,11,0,11,0,15,18,25,10,16,9,13,30,33,0,11,8,13,84,67,1,3,0,15,51,62,10,15,0,11,8,11,45,50,0,11,4,5,22,35,120,78,0,11,7,8,0,11,28,43,0,11,0,11,0,11,0,11,23,37,6,10,35,40,0,15,28,38,12,21,21,31,4,5,17,26,25,29,0,15,73,61,20,30,34,45,24,37,0,11,8,8,0,11,12,12,91,68,7,9,0,17,6,10,0,11,20,33,38,45,0,11,0,11,2,3,0,11,3,5,12,10,13,21,5,7,0,11,0,11,7,10,0,11]
[null,"No disability",917,233,790,173,1657,254,135,60,1266,260,784,132,3093,274,1275,202,431,74,498,86,634,147,215,88,360,139,180,86,78,37,1928,269,28,18,201,63,186,50,3,6,3,5,182,105,414,121,600,139,889,190,323,93,191,104,484,167,682,184,1017,247,434,109,693,192,294,99,463,113,60,28,128,45,698,97,1136,180,3445,329,359,126,155,59,86,34,187,75,1201,145,42,16,215,73,149,52,81,31,1328,276,454,133,867,138,460,101,947,147,0,11,0,11,0,11,1449,203,0,11,174,70,0,11,50,28,372,81,120,44,0,11,0,11,126,56,0,11,0,11,75,35,20,17,0,11,496,63,0,11,0,11,125,30,0,11,712,85,0,11,0,11,204,31,7,9,364,89,0,11,0,11,76,35,57,28,0,11,0,11,53,30,90,41,74,45,126,43,0,11,0,11,4,6,339,77,454,78,374,135,130,48,121,66,565,100,119,57,579,144,493,148,769,115,18,11,27,18,4,9,769,159,147,51,239,94,76,45,1378,200,763,113,96,36,424,105,62,25,2367,263,258,105,295,60,1084,204,0,11,106,44,394,52,193,63,53,24,317,83,125,41,812,138,298,131,100,51,345,95,126,39,49,41,137,56,192,91,3032,232,535,81,5734,297,362,111,1345,120,290,64,249,53,3044,259,273,46,517,144,367,59,1467,220,1757,133,5617,351,2136,180,342,80,20880,600,348,105,5398,250,3392,176,683,101,18095,638,1241,124,1443,217,3228,192,961,174,33,16,326,129,2306,205,771,109,37,22,710,138,422,110,834,194,1844,129,312,83,436,100,430,51,8115,399,252,89,567,66,870,110,1846,218,1094,237,236,76,2464,233,1188,155,1111,167,309,83,381,128,1099,150,1478,157,881,135,273,73,464,124,518,115,415,96,253,75,0,11,1431,121,1134,101,1156,124,757,105,1101,126,1044,144,917,131,7187,434,547,62,1388,186,3160,314,946,108,846,80,1819,168,2686,307,517,66,476,70,1176,145,5656,256,120,67,423,99,94,37,1833,234,1231,118,867,122,868,176,994,127,1576,259,3284,244,2367,253,745,141,5548,336,1459,177,1250,287,145,46,1601,164,3561,189,1884,267,5873,301,1595,206,1207,182,879,172,549,104,339,83,1043,110,581,108,5456,332,656,70,2564,240,917,137,205,95,864,135,2869,218,331,101,114,46,123,51,686,153,174,70,200,50,1126,187,544,74,323,125,544,94,180,51,146,65]
[null,"18 to 64 years:",3420,262,3031,196,4556,223,659,96,4325,281,2308,156,9731,292,3388,181,1449,141,1912,109,2187,179,451,102,1776,191,419,108,246,64,6283,344,222,53,907,127,605,98,40,20,33,20,493,142,1642,98,2358,194,2438,152,788,134,2085,189,1229,195,3328,252,3120,264,1165,162,2185,175,1016,155,1576,154,460,73,564,91,2467,165,3143,202,15963,365,1163,164,440,87,402,82,747,140,4071,182,152,37,688,140,473,93,573,81,4912,229,1486,197,2201,143,1155,139,2691,132,0,11,0,11,0,11,5252,380,12,12,575,107,0,11,181,49,1435,144,431,94,0,11,0,11,550,112,0,11,13,9,191,45,186,51,0,11,1724,107,8,17,0,11,594,63,0,11,2043,114,0,11,0,11,880,71,13,9,1358,131,0,11,8,6,554,97,238,53,9,12,0,11,215,43,286,65,401,91,377,78,0,11,0,11,44,28,1376,148,1045,139,1267,224,476,76,200,57,1574,107,693,110,1744,175,2193,221,2517,117,228,46,147,35,40,24,2832,204,638,119,830,134,454,92,8476,311,2867,156,339,180,1361,176,263,39,8757,322,774,174,1036,117,3619,190,0,11,392,65,997,117,537,84,186,45,953,202,458,59,5429,213,1064,203,379,82,1685,124,465,95,145,72,553,114,743,149,6584,207,1601,97,12376,322,822,125,3300,124,1241,128,1075,123,11975,333,939,97,1568,163,1022,92,3510,171,4780,153,15584,332,5177,214,1017,119,73135,709,844,75,16831,313,9425,329,1481,141,56287,696,3680,130,3096,183,8296,192,3891,218,213,52,1001,207,5895,212,2344,136,188,54,2875,127,1484,199,2128,231,4631,109,1124,146,1467,124,1731,63,26469,530,807,126,1893,101,2924,143,5202,201,3355,232,754,105,9286,229,3367,173,3438,136,1023,148,2569,170,3082,129,4717,168,2656,148,951,114,1120,179,1840,106,1224,126,808,119,0,11,4226,139,3437,103,2613,172,2658,147,3135,108,2826,118,2857,105,22261,500,1462,96,4260,233,8348,264,2774,127,2214,84,5247,224,9084,311,1423,106,1317,101,3920,159,15650,297,518,128,1006,144,552,112,6112,277,3045,137,2664,115,2720,150,3363,125,4909,233,14097,364,6704,247,3244,289,18592,341,4102,172,5672,371,516,93,4708,158,8523,319,5828,244,19481,402,12434,256,4565,228,2732,180,1250,154,1018,110,2912,153,1683,105,19245,341,1510,81,7673,316,2521,156,564,88,3220,205,8061,258,1072,110,444,102,539,87,1671,145,480,95,708,114,4081,240,1573,140,821,142,1982,173,975,117,620,102]
[null,"With one type of disability",56,46,217,87,248,137,44,28,241,141,94,52,670,176,202,82,75,36,79,30,163,80,8,7,250,130,14,15,11,14,394,160,21,18,48,20,75,38,3,5,0,11,20,21,147,74,67,50,174,83,27,13,328,171,53,32,318,161,192,124,88,40,89,75,39,27,105,52,37,16,17,15,260,97,147,83,663,179,102,66,46,17,15,11,58,31,138,59,5,7,37,21,40,19,24,13,273,114,64,38,113,58,52,25,153,66,0,11,0,11,0,11,465,121,0,11,69,58,0,11,15,14,103,37,21,13,0,11,0,11,53,36,0,11,3,4,13,13,16,13,0,11,162,71,4,9,0,11,51,22,0,11,201,73,0,11,0,11,57,20,0,11,168,75,0,11,1,4,39,18,11,9,0,11,0,11,15,11,19,13,47,32,49,25,0,11,0,11,3,3,142,62,87,32,79,36,24,12,19,15,163,71,34,24,77,52,139,91,105,76,19,14,8,7,3,6,101,68,22,19,70,29,41,21,175,83,114,69,23,35,35,35,21,12,676,229,74,41,70,30,155,105,0,11,25,11,40,16,26,12,8,9,31,14,27,16,188,105,90,48,20,20,85,41,22,12,0,11,43,20,28,20,229,92,89,43,230,102,42,22,107,60,94,27,37,16,708,223,55,29,145,70,28,19,184,136,224,114,544,181,161,84,54,28,4630,419,35,18,592,155,630,203,45,24,3398,404,149,75,86,59,241,77,141,61,3,5,70,37,351,148,105,55,10,9,237,88,151,77,139,73,148,64,59,30,48,32,131,83,1590,263,99,44,50,24,255,127,610,149,153,88,52,37,390,152,163,98,185,95,22,15,111,52,224,78,264,124,245,127,84,41,74,35,104,42,44,23,17,13,0,11,114,55,127,54,68,42,106,60,108,48,122,63,128,73,1291,254,61,31,305,135,304,125,83,42,63,37,76,46,565,207,25,16,92,56,261,104,629,188,12,15,40,26,20,16,402,128,135,61,120,70,66,39,128,56,370,150,673,162,437,167,145,100,809,207,192,87,385,203,39,25,195,115,103,61,274,147,939,223,518,151,431,196,47,40,24,14,87,27,199,75,121,48,1519,240,70,31,558,249,100,52,20,13,195,110,629,156,83,31,27,24,60,23,98,53,23,18,58,31,349,148,81,39,32,19,52,38,96,49,60,27]
[null,"With two or more types of disability",89,65,77,56,244,140,14,16,55,43,159,84,675,198,120,66,53,34,56,35,116,67,22,14,16,19,21,15,16,17,339,150,2,5,76,30,15,12,2,5,0,11,12,15,33,26,133,78,218,129,28,17,202,111,34,29,297,157,140,91,56,45,66,76,16,27,43,27,11,9,0,11,239,134,153,78,684,177,39,34,35,21,7,5,18,18,77,38,6,8,22,16,15,13,0,11,232,96,129,70,125,60,10,13,126,75,0,11,0,11,0,11,523,149,0,11,17,14,0,11,31,21,77,41,44,27,0,11,0,11,34,22,0,11,2,4,6,8,11,9,0,11,39,27,4,9,0,11,45,23,0,11,160,98,0,11,0,11,33,14,0,11,75,37,0,11,2,4,28,22,12,11,0,11,0,11,11,7,16,11,72,34,40,18,0,11,0,11,0,11,65,51,74,35,80,65,23,13,9,7,104,55,34,31,72,57,85,51,171,83,17,12,2,5,0,11,102,57,21,18,81,47,22,16,86,42,171,100,13,16,46,36,10,5,507,192,89,53,114,55,207,127,0,11,2,3,14,25,20,15,1,3,14,14,20,11,118,98,44,29,9,12,75,34,36,17,4,8,29,16,34,27,120,57,82,42,134,83,30,18,83,55,50,39,16,14,256,92,49,24,95,47,28,20,117,70,68,78,501,138,165,74,37,23,3688,349,15,10,420,158,279,130,25,18,2551,370,39,37,35,39,166,90,56,66,8,9,37,61,84,70,105,72,7,7,223,111,98,48,108,59,101,66,43,19,37,26,52,38,1473,265,18,12,40,27,89,90,462,132,143,106,54,30,190,108,27,32,164,115,13,13,111,58,121,50,192,96,89,52,32,16,32,28,99,55,32,18,17,17,0,11,135,82,96,73,61,41,58,41,78,45,82,51,120,70,793,200,37,20,171,75,366,155,83,39,67,43,92,51,256,101,32,17,18,16,23,27,361,118,8,13,11,9,2,3,318,137,66,48,110,69,71,54,142,68,166,87,513,141,404,119,42,37,392,127,51,50,328,122,5,5,271,268,173,81,147,121,740,223,137,82,298,151,54,59,29,19,63,24,227,106,43,26,1373,266,15,13,355,140,85,54,28,16,302,138,699,198,38,24,7,7,30,18,26,40,29,13,6,6,258,129,41,29,21,16,98,76,22,14,50,31]
[null,"No disability",3275,267,2737,195,4064,274,601,95,4029,283,2055,165,8386,423,3066,202,1321,128,1777,112,1908,177,421,102,1510,213,384,105,219,56,5550,366,199,51,783,124,515,90,35,18,33,20,461,135,1462,121,2158,180,2046,216,733,128,1555,222,1142,185,2713,317,2788,272,1021,149,2030,180,961,141,1428,155,412,75,547,90,1968,199,2843,216,14616,412,1022,161,359,74,380,80,671,137,3856,190,141,32,629,139,418,88,549,80,4407,241,1293,201,1963,149,1093,135,2412,145,0,11,0,11,0,11,4264,361,12,12,489,117,0,11,135,36,1255,134,366,88,0,11,0,11,463,104,0,11,8,8,172,39,159,47,0,11,1523,134,0,11,0,11,498,59,0,11,1682,136,0,11,0,11,790,67,13,9,1115,124,0,11,5,9,487,92,215,47,9,12,0,11,189,42,251,65,282,75,288,64,0,11,0,11,41,28,1169,132,884,118,1108,215,429,74,172,50,1307,123,625,93,1595,163,1969,262,2241,173,192,39,137,35,37,21,2629,212,595,113,679,121,391,79,8215,321,2582,181,303,146,1280,168,232,35,7574,411,611,159,852,85,3257,217,0,11,365,66,943,114,491,86,177,43,908,204,411,57,5123,219,930,187,350,72,1525,122,407,90,141,72,481,110,681,144,6235,220,1430,107,12012,322,750,120,3110,143,1097,128,1022,120,11011,400,835,92,1328,169,966,86,3209,242,4488,191,14539,352,4851,227,926,112,64817,843,794,74,15819,388,8516,363,1411,142,50338,818,3492,147,2975,190,7889,191,3694,245,202,50,894,187,5460,234,2134,147,171,53,2415,156,1235,175,1881,234,4382,147,1022,142,1382,114,1548,100,23406,548,690,118,1803,103,2580,165,4130,238,3059,207,648,91,8706,311,3177,175,3089,195,988,148,2347,162,2737,130,4261,207,2322,150,835,113,1014,171,1637,124,1148,128,774,113,0,11,3977,160,3214,114,2484,172,2494,138,2949,119,2622,134,2609,124,20177,618,1364,101,3784,236,7678,276,2608,122,2084,105,5079,229,8263,350,1366,103,1207,98,3636,182,14660,364,498,122,955,144,530,110,5392,337,2844,156,2434,143,2583,156,3093,134,4373,294,12911,391,5863,268,3057,280,17391,483,3859,201,4959,406,472,80,4242,234,8247,353,5407,253,17802,540,11779,277,3836,345,2631,179,1197,156,868,103,2486,179,1519,100,16353,431,1425,92,6760,437,2336,158,516,78,2723,231,6733,350,951,107,410,90,449,89,1547,154,428,90,644,101,3474,270,1451,148,768,136,1832,184,857,99,510,90]
[null,"65 years and over:",916,224,708,172,904,177,213,50,1472,223,652,121,2517,217,1534,200,362,114,556,81,526,104,134,39,631,193,179,72,63,22,1645,309,98,30,237,54,380,73,94,30,5,7,357,103,420,104,1043,172,750,171,369,82,575,182,507,135,1004,262,1948,296,308,70,707,178,312,73,410,95,90,27,219,55,769,152,1021,173,3276,248,312,58,148,46,103,29,136,36,636,130,39,14,210,61,114,33,174,41,951,167,306,81,575,83,290,71,557,89,0,11,0,11,0,11,1796,164,5,7,202,57,0,11,81,29,507,98,164,43,0,11,0,11,245,39,0,11,0,11,82,26,95,33,0,11,473,99,0,11,0,11,183,30,0,11,548,84,0,11,0,11,220,47,0,11,364,69,0,11,0,11,239,58,127,30,0,11,0,11,88,23,110,30,237,72,167,39,0,11,0,11,14,12,336,76,298,64,408,105,266,57,53,18,342,86,273,67,606,152,623,212,592,91,67,25,66,17,17,12,941,203,305,75,197,53,102,39,1250,231,752,116,143,38,295,76,91,23,1979,284,259,70,200,36,1142,233,0,11,110,27,340,62,170,34,69,25,272,66,167,36,612,147,269,69,129,35,457,113,127,33,66,39,199,42,187,50,1546,145,475,95,2656,209,165,55,381,71,231,65,220,38,2156,223,187,39,274,43,403,56,781,170,1170,106,2913,246,859,173,266,50,13091,465,131,22,3071,227,2003,244,344,61,10817,454,409,93,500,143,1461,136,1345,205,74,27,256,74,548,97,506,96,34,27,572,76,515,107,478,129,1075,111,265,65,361,55,346,55,5224,343,174,38,290,54,667,126,1148,145,299,77,159,59,1779,172,967,146,717,125,411,81,1485,180,554,116,812,123,486,73,163,49,426,108,474,90,235,46,306,65,0,11,1131,156,477,49,386,86,483,149,468,74,434,125,449,87,3313,314,438,67,872,215,2568,212,539,122,575,74,1398,189,2917,272,355,52,254,38,912,149,2630,238,328,70,172,53,147,51,901,138,424,116,813,121,632,126,453,79,1036,169,3308,224,1025,199,1242,286,4384,333,552,113,1755,342,134,36,886,118,1789,299,956,197,3710,267,1058,136,804,206,653,164,178,63,180,51,621,119,353,79,4640,298,324,58,1350,200,549,104,152,45,933,208,2026,193,195,53,82,30,142,46,592,140,126,42,158,50,1122,180,396,68,166,52,811,153,186,43,247,50]
[null,"With one type of disability",88,53,158,74,152,82,51,22,150,67,54,29,336,94,232,81,42,17,92,41,62,39,41,22,141,84,16,21,9,10,319,126,18,11,33,19,77,22,16,14,2,3,46,30,76,49,140,71,169,82,67,27,138,89,57,39,223,133,285,123,68,29,88,49,23,13,66,32,20,14,21,19,189,97,349,140,637,165,72,27,32,21,27,13,51,21,87,45,1,3,23,18,12,9,9,8,187,89,58,39,49,37,22,15,83,42,0,11,0,11,0,11,304,98,0,11,22,15,0,11,28,18,85,48,18,13,0,11,0,11,45,18,0,11,0,11,11,10,30,17,0,11,156,72,0,11,0,11,11,9,0,11,63,40,0,11,0,11,57,24,0,11,94,36,0,11,0,11,43,26,14,10,0,11,0,11,20,11,18,13,63,30,46,20,0,11,0,11,0,11,61,30,52,34,70,30,52,22,4,5,36,34,48,20,173,81,109,75,81,53,13,7,8,5,3,4,49,59,22,16,20,12,14,16,213,84,121,48,13,8,50,28,13,9,330,112,63,27,18,9,210,111,0,11,16,11,32,13,18,10,12,10,39,21,22,12,111,70,54,31,23,12,92,40,18,10,9,14,64,21,52,27,244,82,79,44,319,124,25,19,34,17,38,21,38,16,254,92,28,13,59,30,41,21,107,81,190,100,503,131,80,63,31,14,2260,274,32,14,460,133,439,123,36,21,1750,252,45,36,76,56,283,86,129,69,4,6,27,19,78,56,113,66,0,11,127,76,123,62,89,41,141,67,61,32,36,20,26,24,866,178,23,16,46,21,166,87,183,79,61,36,36,22,285,76,159,70,204,105,34,20,221,88,26,15,152,69,96,49,25,15,80,37,55,29,40,14,71,33,0,11,214,104,60,36,56,48,6,11,22,20,123,83,61,37,501,132,62,25,191,136,465,144,66,41,90,36,195,65,393,117,71,38,42,18,114,70,373,107,53,25,12,13,23,13,93,47,74,46,138,52,76,62,28,21,109,52,490,133,191,107,154,80,687,138,97,46,379,166,11,8,185,87,276,127,330,152,726,172,138,67,222,136,95,94,48,36,40,18,150,65,129,51,825,174,55,30,233,96,121,81,42,21,234,114,328,99,19,16,7,9,21,12,60,47,10,8,23,19,159,90,51,23,32,17,146,70,29,15,32,18]
[null,"With two or more types of disability",77,56,93,43,88,44,9,8,160,91,79,49,459,126,181,77,106,96,92,43,78,53,21,16,56,53,19,20,10,7,294,127,10,7,36,17,55,26,5,7,3,6,11,14,62,31,65,35,167,74,29,17,47,37,63,31,187,118,199,159,16,11,120,88,50,42,60,35,8,6,16,11,172,81,145,106,609,161,40,23,12,7,5,6,18,11,153,78,9,7,9,10,15,8,16,11,194,82,52,37,149,68,42,25,134,60,0,11,0,11,0,11,388,93,5,7,22,16,0,11,15,13,73,26,17,10,0,11,0,11,52,25,0,11,0,11,3,5,11,11,0,11,107,52,0,11,0,11,25,13,0,11,116,64,0,11,0,11,52,24,0,11,85,38,0,11,0,11,46,26,16,8,0,11,0,11,16,10,26,16,37,26,45,24,0,11,0,11,11,12,130,67,64,27,85,52,29,19,7,4,66,39,46,24,85,66,61,45,181,57,16,12,2,3,4,7,101,67,42,29,26,12,18,10,196,95,193,59,23,15,10,11,14,7,289,98,49,28,38,14,228,104,0,11,22,13,52,23,27,13,5,5,42,26,34,14,181,72,47,23,32,23,80,53,30,14,4,5,29,16,23,15,250,88,39,27,372,100,17,8,19,21,35,16,9,8,533,153,31,21,39,20,49,19,115,69,63,59,549,194,133,92,22,12,2638,296,7,7,365,131,283,99,9,10,1835,269,39,35,63,56,277,98,160,98,9,9,14,22,51,52,38,35,0,11,156,56,128,86,150,82,173,84,47,28,25,17,46,29,1077,205,57,25,33,18,56,37,218,99,43,36,21,16,266,84,73,48,117,59,93,47,180,76,134,82,125,73,86,43,13,9,23,15,102,61,26,24,25,20,0,11,91,54,15,17,43,31,92,62,92,52,60,41,53,40,568,159,32,20,99,60,450,146,52,48,74,47,90,53,391,137,31,19,41,20,113,57,210,70,29,18,29,17,32,37,165,66,61,33,149,60,60,33,55,27,219,107,531,178,91,60,180,110,680,197,103,60,337,168,9,8,135,70,144,93,184,108,725,186,116,69,113,106,38,39,20,15,23,24,138,63,38,25,1016,247,26,19,266,108,65,40,15,11,210,117,453,120,26,17,18,13,31,22,81,67,10,9,46,27,320,138,53,27,29,23,81,49,33,21,27,15]
[null,"No disability",751,211,457,131,664,155,153,41,1162,165,519,117,1722,199,1121,173,214,45,372,62,386,98,72,30,434,159,144,58,44,19,1032,215,70,29,168,47,248,63,73,28,0,11,300,89,282,83,838,164,414,121,273,63,390,174,387,122,594,212,1464,259,224,62,499,152,239,64,284,86,62,22,182,51,408,151,527,117,2030,216,200,50,104,39,71,22,67,24,396,111,29,12,178,53,87,27,149,41,570,131,196,67,377,72,226,61,340,79,0,11,0,11,0,11,1104,155,0,11,158,49,0,11,38,20,349,86,129,39,0,11,0,11,148,34,0,11,0,11,68,24,54,26,0,11,210,71,0,11,0,11,147,28,0,11,369,77,0,11,0,11,111,38,0,11,185,44,0,11,0,11,150,39,97,26,0,11,0,11,52,17,66,20,137,52,76,27,0,11,0,11,3,5,145,44,182,40,253,82,185,47,42,16,240,75,179,56,348,108,453,197,330,68,38,21,56,17,10,10,791,197,241,57,151,52,70,34,841,194,438,98,107,35,235,72,64,18,1360,291,147,53,144,30,704,176,0,11,72,21,256,56,125,32,52,26,191,46,111,30,320,104,168,54,74,21,285,78,79,30,53,29,106,31,112,33,1052,148,357,91,1965,202,123,46,328,68,158,57,173,34,1369,250,128,31,176,49,313,51,559,193,917,130,1861,208,646,129,213,52,8193,516,92,20,2246,227,1281,203,299,62,7232,427,325,102,361,105,901,141,1056,216,61,23,215,64,419,112,355,91,34,27,289,79,264,77,239,86,761,124,157,41,300,52,274,53,3281,283,94,34,211,54,445,117,747,132,195,65,102,45,1228,161,735,154,396,71,284,63,1084,171,394,84,535,112,304,67,125,41,323,86,317,97,169,38,210,52,0,11,826,135,402,60,287,73,385,106,354,90,251,105,335,81,2244,311,344,73,582,139,1653,197,421,120,411,71,1113,184,2133,239,253,53,171,33,685,158,2047,215,246,65,131,46,92,28,643,133,289,94,526,108,496,120,370,75,708,167,2287,246,743,146,908,272,3017,303,352,84,1039,227,114,34,566,114,1369,273,442,127,2259,277,804,131,469,149,520,181,110,42,117,42,333,87,186,61,2799,249,243,54,851,185,363,102,95,38,489,155,1245,193,150,46,57,23,90,35,451,114,106,42,89,31,643,130,292,67,105,34,584,140,124,36,188,45]

{"sheet":"SData_B19001HseHldInc","index":56,"n_rows":37,"n_cols":38,"rows_kept":37,"cut":false,"hidden":true,"merged":[]}
["GEO_ID","GEO_ID2","SUMLEVEL","GEO_NAME","B19001_1_EST","B19001_1_MOE","B19001_2_EST","B19001_2_MOE","B19001_3_EST","B19001_3_MOE","B19001_4_EST","B19001_4_MOE","B19001_5_EST","B19001_5_MOE","B19001_6_EST","B19001_6_MOE","B19001_7_EST","B19001_7_MOE","B19001_8_EST","B19001_8_MOE","B19001_9_EST","B19001_9_MOE","B19001_10_EST","B19001_10_MOE","B19001_11_EST","B19001_11_MOE","B19001_12_EST","B19001_12_MOE","B19001_13_EST","B19001_13_MOE","B19001_14_EST","B19001_14_MOE","B19001_15_EST","B19001_15_MOE","B19001_16_EST","B19001_16_MOE","B19001_17_EST","B19001_17_MOE"]
["Geography Identifier","Geography Identifier","Geographic Summary Level","Geography",{"$f":"[1]ACS_16_5YR_B19001_with_ann!D$2","v":"Estimate Total:"},{"$f":"[1]ACS_16_5YR_B19001_with_ann!E$2","v":"Margin of Error Total:"},{"$f":"[1]ACS_16_5YR_B19001_with_ann!F$2","v":"Estimate  Total: - Less than $10,000"},{"$f":"[1]ACS_16_5YR_B19001_with_ann!G$2","v":"Margin of Error Total: Less than $10"},{"$f":"[1]ACS_16_5YR_B19001_with_ann!H$2","v":"Estimate  Total: - $10,000 to $14,999"},{"$f":"[1]ACS_16_5YR_B19001_with_ann!I$2","v":"Margin of Error Total: $10"},{"$f":"[1]ACS_16_5YR_B19001_with_ann!J$2","v":"Estimate  Total: - $15,000 to $19,999"},{"$f":"[1]ACS_16_5YR_B19001_with_ann!K$2","v":"Margin of Error Total: $15"},{"$f":"[1]ACS_16_5YR_B19001_with_ann!L$2","v":"Estimate  Total: - $20,000 to $24,999"},{"$f":"[1]ACS_16_5YR_B19001_with_ann!M$2","v":"Margin of Error Total: $20"},{"$f":"[1]ACS_16_5YR_B19001_with_ann!N$2","v":"Estimate  Total: - $25,000 to $29,999"},{"$f":"[1]ACS_16_5YR_B19001_with_ann!O$2","v":"Margin of Error Total: $25"},{"$f":"[1]ACS_16_5YR_B19001_with_ann!P$2","v":"Estimate  Total: - $30,000 to $34,999"},{"$f":"[1]ACS_16_5YR_B19001_with_ann!Q$2","v":"Margin of Error Total: $30"},{"$f":"[1]ACS_16_5YR_B19001_with_ann!R$2","v":"Estimate  Total: - $35,000 to $39,999"},{"$f":"[1]ACS_16_5YR_B19001_with_ann!S$2","v":"Margin of Error Total: $35"},{"$f":"[1]ACS_16_5YR_B19001_with_ann!T$2","v":"Estimate  Total: - $40,000 to $44,999"},{"$f":"[1]ACS_16_5YR_B19001_with_ann!U$2","v":"Margin of Error Total: $40"},{"$f":"[1]ACS_16_5YR_B19001_with_ann!V$2","v":"Estimate  Total: - $45,000 to $49,999"},{"$f":"[1]ACS_16_5YR_B19001_with_ann!W$2","v":"Margin of Error Total: $45"},{"$f":"[1]ACS_16_5YR_B19001_with_ann!X$2","v":"Estimate  Total: - $50,000 to $59,999"},{"$f":"[1]ACS_16_5YR_B19001_with_ann!Y$2","v":"Margin of Error Total: $50"},{"$f":"[1]ACS_16_5YR_B19001_with_ann!Z$2","v":"Estimate  Total: - $60,000 to $74,999"},{"$f":"[1]ACS_16_5YR_B19001_with_ann!AA$2","v":"Margin of Error Total: $60"},{"$f":"[1]ACS_16_5YR_B19001_with_ann!AB$2","v":"Estimate  Total: - $75,000 to $99,999"},{"$f":"[1]ACS_16_5YR_B19001_with_ann!AC$2","v":"Margin of Error Total: $75"},{"$f":"[1]ACS_16_5YR_B19001_with_ann!AD$2","v":"Estimate  Total: - $100,000 to $124,999"},{"$f":"[1]ACS_16_5YR_B19001_with_ann!AE$2","v":"Margin of Error Total: $100"},{"$f":"[1]ACS_16_5YR_B19001_with_ann!AF$2","v":"Estimate  Total: - $125,000 to $149,999"},{"$f":"[1]ACS_16_5YR_B19001_with_ann!AG$2","v":"Margin of Error Total: $125"},{"$f":"[1]ACS_16_5YR_B19001_with_ann!AH$2","v":"Estimate  Total: - $150,000 to $199,999"},{"$f":"[1]ACS_16_5YR_B19001_with_ann!AI$2","v":"Margin of Error Total: $150"},{"$f":"[1]ACS_16_5YR_B19001_with_ann!AJ$2","v":"Estimate  Total: - $200,000 or more"},{"$f":"[1]ACS_16_5YR_B19001_with_ann!AK$2","v":"Margin of Error Total: $200"}]
["0600000US3301900259",3301900259,"060","Acworth",{"$f":"[1]ACS_16_5YR_B19001_with_ann!D258","v":370},{"$f":"[1]ACS_16_5YR_B19001_with_ann!E258","v":51},{"$f":"[1]ACS_16_5YR_B19001_with_ann!F258","v":15},{"$f":"[1]ACS_16_5YR_B19001_with_ann!G258","v":16},{"$f":"[1]ACS_16_5YR_B19001_with_ann!H258","v":6},{"$f":"[1]ACS_16_5YR_B19001_with_ann!I258","v":6},{"$f":"[1]ACS_16_5YR_B19001_with_ann!J258","v":7},{"$f":"[1]ACS_16_5YR_B19001_with_ann!K258","v":6},{"$f":"[1]ACS_16_5YR_B19001_with_ann!L258","v":8},{"$f":"[1]ACS_16_5YR_B19001_with_ann!M258","v":10},{"$f":"[1]ACS_16_5YR_B19001_with_ann!N258","v":20},{"$f":"[1]ACS_16_5YR_B19001_with_ann!O258","v":12},{"$f":"[1]ACS_16_5YR_B19001_with_ann!P258","v":10},{"$f":"[1]ACS_16_5YR_B19001_with_ann!Q258","v":8},{"$f":"[1]ACS_16_5YR_B19001_with_ann!R258","v":9},{"$f":"[1]ACS_16_5YR_B19001_with_ann!S258","v":6},{"$f":"[1]ACS_16_5YR_B19001_with_ann!T258","v":19},{"$f":"[1]ACS_16_5YR_B19001_with_ann!U258","v":17},{"$f":"[1]ACS_16_5YR_B19001_with_ann!V258","v":18},{"$f":"[1]ACS_16_5YR_B19001_with_ann!W258","v":11},{"$f":"[1]ACS_16_5YR_B19001_with_ann!X258","v":46},{"$f":"[1]ACS_16_5YR_B19001_with_ann!Y258","v":22},{"$f":"[1]ACS_16_5YR_B19001_with_ann!Z258","v":51},{"$f":"[1]ACS_16_5YR_B19001_with_ann!AA258","v":24},{"$f":"[1]ACS_16_5YR_B19001_with_ann!AB258","v":64},{"$f":"[1]ACS_16_5YR_B19001_with_ann!AC258","v":32},{"$f":"[1]ACS_16_5YR_B19001_with_ann!AD258","v":34},{"$f":"[1]ACS_16_5YR_B19001_with_ann!AE258","v":19},{"$f":"[1]ACS_16_5YR_B19001_with_ann!AF258","v":28},{"$f":"[1]ACS_16_5YR_B19001_with_ann!AG258","v":16},{"$f":"[1]ACS_16_5YR_B19001_with_ann!AH258","v":19},{"$f":"[1]ACS_16_5YR_B19001_with_ann!AI258","v":13},{"$f":"[1]ACS_16_5YR_B19001_with_ann!AJ258","v":16},{"$f":"[1]ACS_16_5YR_B19001_with_ann!AK258","v":12}]
["0600000US3301911380",3301911380,"060","Charlestown",{"$f":"[1]ACS_16_5YR_B19001_with_ann!D259","v":2086},{"$f":"[1]ACS_16_5YR_B19001_with_ann!E259","v":184},{"$f":"[1]ACS_16_5YR_B19001_with_ann!F259","v":170},{"$f":"[1]ACS_16_5YR_B19001_with_ann!G259","v":108},{"$f":"[1]ACS_16_5YR_B19001_with_ann!H259","v":30},{"$f":"[1]ACS_16_5YR_B19001_with_ann!I259","v":35},{"$f":"[1]ACS_16_5YR_B19001_with_ann!J259","v":178},{"$f":"[1]ACS_16_5YR_B19001_with_ann!K259","v":111},{"$f":"[1]ACS_16_5YR_B19001_with_ann!L259","v":73},{"$f":"[1]ACS_16_5YR_B19001_with_ann!M259","v":77},{"$f":"[1]ACS_16_5YR_B19001_with_ann!N259","v":184},{"$f":"[1]ACS_16_5YR_B19001_with_ann!O259","v":114},{"$f":"[1]ACS_16_5YR_B19001_with_ann!P259","v":117},{"$f":"[1]ACS_16_5YR_B19001_with_ann!Q259","v":97},{"$f":"[1]ACS_16_5YR_B19001_with_ann!R259","v":119},{"$f":"[1]ACS_16_5YR_B19001_with_ann!S259","v":92},{"$f":"[1]ACS_16_5YR_B19001_with_ann!T259","v":114},{"$f":"[1]ACS_16_5YR_B19001_with_ann!U259","v":94},{"$f":"[1]ACS_16_5YR_B19001_with_ann!V259","v":78},{"$f":"[1]ACS_16_5YR_B19001_with_ann!W259","v":58},{"$f":"[1]ACS_16_5YR_B19001_with_ann!X259","v":200},{"$f":"[1]ACS_16_5YR_B19001_with_ann!Y259","v":110},{"$f":"[1]ACS_16_5YR_B19001_with_ann!Z259","v":168},{"$f":"[1]ACS_16_5YR_B19001_with_ann!AA259","v":92},{"$f":"[1]ACS_16_5YR_B19001_with_ann!AB259","v":413},{"$f":"[1]ACS_16_5YR_B19001_with_ann!AC259","v":144},{"$f":"[1]ACS_16_5YR_B19001_with_ann!AD259","v":58},{"$f":"[1]ACS_16_5YR_B19001_with_ann!AE259","v":55},{"$f":"[1]ACS_16_5YR_B19001_with_ann!AF259","v":71},{"$f":"[1]ACS_16_5YR_B19001_with_ann!AG259","v":66},{"$f":"[1]ACS_16_5YR_B19001_with_ann!AH259","v":23},{"$f":"[1]ACS_16_5YR_B19001_with_ann!AI259","v":29},{"$f":"[1]ACS_16_5YR_B19001_with_ann!AJ259","v":90},{"$f":"[1]ACS_16_5YR_B19001_with_ann!AK259","v":69}]
["0600000US3301912900",3301912900,"060","Claremont",{"$f":"[1]ACS_16_5YR_B19001_with_ann!D260","v":5231},{"$f":"[1]ACS_16_5YR_B19001_with_ann!E260","v":284},{"$f":"[1]ACS_16_5YR_B19001_with_ann!F260","v":311},{"$f":"[1]ACS_16_5YR_B19001_with_ann!G260","v":135},{"$f":"[1]ACS_16_5YR_B19001_with_ann!H260","v":245},{"$f":"[1]ACS_16_5YR_B19001_with_ann!I260","v":95},{"$f":"[1]ACS_16_5YR_B19001_with_ann!J260","v":299},{"$f":"[1]ACS_16_5YR_B19001_with_ann!K260","v":108},{"$f":"[1]ACS_16_5YR_B19001_with_ann!L260","v":410},{"$f":"[1]ACS_16_5YR_B19001_with_ann!M260","v":168},{"$f":"[1]ACS_16_5YR_B19001_with_ann!N260","v":326},{"$f":"[1]ACS_16_5YR_B19001_with_ann!O260","v":113},{"$f":"[1]ACS_16_5YR_B19001_with_ann!P260","v":358},{"$f":"[1]ACS_16_5YR_B19001_with_ann!Q260","v":133},{"$f":"[1]ACS_16_5YR_B19001_with_ann!R260","v":125},{"$f":"[1]ACS_16_5YR_B19001_with_ann!S260","v":58},{"$f":"[1]ACS_16_5YR_B19001_with_ann!T260","v":357},{"$f":"[1]ACS_16_5YR_B19001_with_ann!U260","v":142},{"$f":"[1]ACS_16_5YR_B19001_with_ann!V260","v":287},{"$f":"[1]ACS_16_5YR_B19001_with_ann!W260","v":105},{"$f":"[1]ACS_16_5YR_B19001_with_ann!X260","v":437},{"$f":"[1]ACS_16_5YR_B19001_with_ann!Y260","v":127},{"$f":"[1]ACS_16_5YR_B19001_with_ann!Z260","v":406},{"$f":"[1]ACS_16_5YR_B19001_with_ann!AA260","v":127},{"$f":"[1]ACS_16_5YR_B19001_with_ann!AB260","v":863},{"$f":"[1]ACS_16_5YR_B19001_with_ann!AC260","v":176},{"$f":"[1]ACS_16_5YR_B19001_with_ann!AD260","v":311},{"$f":"[1]ACS_16_5YR_B19001_with_ann!AE260","v":117},{"$f":"[1]ACS_16_5YR_B19001_with_ann!AF260","v":172},{"$f":"[1]ACS_16_5YR_B19001_with_ann!AG260","v":78},{"$f":"[1]ACS_16_5YR_B19001_with_ann!AH260","v":238},{"$f":"[1]ACS_16_5YR_B19001_with_ann!AI260","v":102},{"$f":"[1]ACS_16_5YR_B19001_with_ann!AJ260","v":86},{"$f":"[1]ACS_16_5YR_B19001_with_ann!AK260","v":54}]
["0600000US3301915060",3301915060,"060","Cornish",{"$f":"[1]ACS_16_5YR_B19001_with_ann!D261","v":741},{"$f":"[1]ACS_16_5YR_B19001_with_ann!E261","v":81},{"$f":"[1]ACS_16_5YR_B19001_with_ann!F261","v":16},{"$f":"[1]ACS_16_5YR_B19001_with_ann!G261","v":13},{"$f":"[1]ACS_16_5YR_B19001_with_ann!H261","v":19},{"$f":"[1]ACS_16_5YR_B19001_with_ann!I261","v":20},{"$f":"[1]ACS_16_5YR_B19001_with_ann!J261","v":33},{"$f":"[1]ACS_16_5YR_B19001_with_ann!K261","v":24},{"$f":"[1]ACS_16_5YR_B19001_with_ann!L261","v":7},{"$f":"[1]ACS_16_5YR_B19001_with_ann!M261","v":7},{"$f":"[1]ACS_16_5YR_B19001_with_ann!N261","v":36},{"$f":"[1]ACS_16_5YR_B19001_with_ann!O261","v":28},{"$f":"[1]ACS_16_5YR_B19001_with_ann!P261","v":29},{"$f":"[1]ACS_16_5YR_B19001_with_ann!Q261","v":23},{"$f":"[1]ACS_16_5YR_B19001_with_ann!R261","v":31},{"$f":"[1]ACS_16_5YR_B19001_with_ann!S261","v":23},{"$f":"[1]ACS_16_5YR_B19001_with_ann!T261","v":26},{"$f":"[1]ACS_16_5YR_B19001_with_ann!U261","v":16},{"$f":"[1]ACS_16_5YR_B19001_with_ann!V261","v":32},{"$f":"[1]ACS_16_5YR_B19001_with_ann!W261","v":17},{"$f":"[1]ACS_16_5YR_B19001_with_ann!X261","v":60},{"$f":"[1]ACS_16_5YR_B19001_with_ann!Y261","v":30},{"$f":"[1]ACS_16_5YR_B19001_with_ann!Z261","v":48},{"$f":"[1]ACS_16_5YR_B19001_with_ann!AA261","v":27},{"$f":"[1]ACS_16_5YR_B19001_with_ann!AB261","v":111},{"$f":"[1]ACS_16_5YR_B19001_with_ann!AC261","v":36},{"$f":"[1]ACS_16_5YR_B19001_with_ann!AD261","v":98},{"$f":"[1]ACS_16_5YR_B19001_with_ann!AE261","v":32},{"$f":"[1]ACS_16_5YR_B19001_with_ann!AF261","v":76},{"$f":"[1]ACS_16_5YR_B19001_with_ann!AG261","v":28},{"$f":"[1]ACS_16_5YR_B19001_with_ann!AH261","v":55},{"$f":"[1]ACS_16_5YR_B19001_with_ann!AI261","v":22},{"$f":"[1]ACS_16_5YR_B19001_with_ann!AJ261","v":64},{"$f":"[1]ACS_16_5YR_B19001_with_ann!AK261","v":29}]
["0600000US3301916340",3301916340,"060","Croydon",{"$f":"[1]ACS_16_5YR_B19001_with_ann!D262","v":293},{"$f":"[1]ACS_16_5YR_B19001_with_ann!E262","v":56},{"$f":"[1]ACS_16_5YR_B19001_with_ann!F262","v":14},{"$f":"[1]ACS_16_5YR_B19001_with_ann!G262","v":16},{"$f":"[1]ACS_16_5YR_B19001_with_ann!H262","v":12},{"$f":"[1]ACS_16_5YR_B19001_with_ann!I262","v":13},{"$f":"[1]ACS_16_5YR_B19001_with_ann!J262","v":6},{"$f":"[1]ACS_16_5YR_B19001_with_ann!K262","v":7},{"$f":"[1]ACS_16_5YR_B19001_with_ann!L262","v":10},{"$f":"[1]ACS_16_5YR_B19001_with_ann!M262","v":8},{"$f":"[1]ACS_16_5YR_B19001_with_ann!N262","v":10},{"$f":"[1]ACS_16_5YR_B19001_with_ann!O262","v":8},{"$f":"[1]ACS_16_5YR_B19001_with_ann!P262","v":11},{"$f":"[1]ACS_16_5YR_B19001_with_ann!Q262","v":9},{"$f":"[1]ACS_16_5YR_B19001_with_ann!R262","v":8},{"$f":"[1]ACS_16_5YR_B19001_with_ann!S262","v":8},{"$f":"[1]ACS_16_5YR_B19001_with_ann!T262","v":4},{"$f":"[1]ACS_16_5YR_B19001_with_ann!U262","v":4},{"$f":"[1]ACS_16_5YR_B19001_with_ann!V262","v":18},{"$f":"[1]ACS_16_5YR_B19001_with_ann!W262","v":16},{"$f":"[1]ACS_16_5YR_B19001_with_ann!X262","v":21},{"$f":"[1]ACS_16_5YR_B19001_with_ann!Y262","v":15},{"$f":"[1]ACS_16_5YR_B19001_with_ann!Z262","v":30},{"$f":"[1]ACS_16_5YR_B19001_with_ann!AA262","v":18},{"$f":"[1]ACS_16_5YR_B19001_with_ann!AB262","v":48},{"$f":"[1]ACS_16_5YR_B19001_with_ann!AC262","v":23},{"$f":"[1]ACS_16_5YR_B19001_with_ann!AD262","v":38},{"$f":"[1]ACS_16_5YR_B19001_with_ann!AE262","v":23},{"$f":"[1]ACS_16_5YR_B19001_with_ann!AF262","v":26},{"$f":"[1]ACS_16_5YR_B19001_with_ann!AG262","v":19},{"$f":"[1]ACS_16_5YR_B19001_with_ann!AH262","v":25},{"$f":"[1]ACS_16_5YR_B19001_with_ann!AI262","v":20},{"$f":"[1]ACS_16_5YR_B19001_with_ann!AJ262","v":12},{"$f":"[1]ACS_16_5YR_B19001_with_ann!AK262","v":11}]
["0600000US3301930500",3301930500,"060","Goshen",{"$f":"[1]ACS_16_5YR_B19001_with_ann!D263","v":277},{"$f":"[1]ACS_16_5YR_B19001_with_ann!E263","v":39},{"$f":"[1]ACS_16_5YR_B19001_with_ann!F263","v":19},{"$f":"[1]ACS_16_5YR_B19001_with_ann!G263","v":14},{"$f":"[1]ACS_16_5YR_B19001_with_ann!H263","v":8},{"$f":"[1]ACS_16_5YR_B19001_with_ann!I263","v":10},{"$f":"[1]ACS_16_5YR_B19001_with_ann!J263","v":9},{"$f":"[1]ACS_16_5YR_B19001_with_ann!K263","v":7},{"$f":"[1]ACS_16_5YR_B19001_with_ann!L263","v":9},{"$f":"[1]ACS_16_5YR_B19001_with_ann!M263","v":8},{"$f":"[1]ACS_16_5YR_B19001_with_ann!N263","v":7},{"$f":"[1]ACS_16_5YR_B19001_with_ann!O263","v":9},{"$f":"[1]ACS_16_5YR_B19001_with_ann!P263","v":8},{"$f":"[1]ACS_16_5YR_B19001_with_ann!Q263","v":9},{"$f":"[1]ACS_16_5YR_B19001_with_ann!R263","v":15},{"$f":"[1]ACS_16_5YR_B19001_with_ann!S263","v":12},{"$f":"[1]ACS_16_5YR_B19001_with_ann!T263","v":5},{"$f":"[1]ACS_16_5YR_B19001_with_ann!U263","v":7},{"$f":"[1]ACS_16_5YR_B19001_with_ann!V263","v":16},{"$f":"[1]ACS_16_5YR_B19001_with_ann!W263","v":13},{"$f":"[1]ACS_16_5YR_B19001_with_ann!X263","v":44},{"$f":"[1]ACS_16_5YR_B19001_with_ann!Y263","v":25},{"$f":"[1]ACS_16_5YR_B19001_with_ann!Z263","v":33},{"$f":"[1]ACS_16_5YR_B19001_with_ann!AA263","v":19},{"$f":"[1]ACS_16_5YR_B19001_with_ann!AB263","v":49},{"$f":"[1]ACS_16_5YR_B19001_with_ann!AC263","v":17},{"$f":"[1]ACS_16_5YR_B19001_with_ann!AD263","v":16},{"$f":"[1]ACS_16_5YR_B19001_with_ann!AE263","v":12},{"$f":"[1]ACS_16_5YR_B19001_with_ann!AF263","v":25},{"$f":"[1]ACS_16_5YR_B19001_with_ann!AG263","v":19},{"$f":"[1]ACS_16_5YR_B19001_with_ann!AH263","v":12},{"$f":"[1]ACS_16_5YR_B19001_with_ann!AI263","v":11},{"$f":"[1]ACS_16_5YR_B19001_with_ann!AJ263","v":2},{"$f":"[1]ACS_16_5YR_B19001_with_ann!AK263","v":4}]
["0600000US3301931220",3301931220,"060","Grantham",{"$f":"[1]ACS_16_5YR_B19001_with_ann!D264","v":1222},{"$f":"[1]ACS_16_5YR_B19001_with_ann!E264","v":142},{"$f":"[1]ACS_16_5YR_B19001_with_ann!F264","v":0},{"$f":"[1]ACS_16_5YR_B19001_with_ann!G264","v":11},{"$f":"[1]ACS_16_5YR_B19001_with_ann!H264","v":0},{"$f":"[1]ACS_16_5YR_B19001_with_ann!I264","v":11},{"$f":"[1]ACS_16_5YR_B19001_with_ann!J264","v":45},{"$f":"[1]ACS_16_5YR_B19001_with_ann!K264","v":48},{"$f":"[1]ACS_16_5YR_B19001_with_ann!L264","v":0},{"$f":"[1]ACS_16_5YR_B19001_with_ann!M264","v":11},{"$f":"[1]ACS_16_5YR_B19001_with_ann!N264","v":91},{"$f":"[1]ACS_16_5YR_B19001_with_ann!O264","v":76},{"$f":"[1]ACS_16_5YR_B19001_with_ann!P264","v":0},{"$f":"[1]ACS_16_5YR_B19001_with_ann!Q264","v":11},{"$f":"[1]ACS_16_5YR_B19001_with_ann!R264","v":0},{"$f":"[1]ACS_16_5YR_B19001_with_ann!S264","v":11},{"$f":"[1]ACS_16_5YR_B19001_with_ann!T264","v":91},{"$f":"[1]ACS_16_5YR_B19001_with_ann!U264","v":102},{"$f":"[1]ACS_16_5YR_B19001_with_ann!V264","v":17},{"$f":"[1]ACS_16_5YR_B19001_with_ann!W264","v":25},{"$f":"[1]ACS_16_5YR_B19001_with_ann!X264","v":67},{"$f":"[1]ACS_16_5YR_B19001_with_ann!Y264","v":54},{"$f":"[1]ACS_16_5YR_B19001_with_ann!Z264","v":146},{"$f":"[1]ACS_16_5YR_B19001_with_ann!AA264","v":82},{"$f":"[1]ACS_16_5YR_B19001_with_ann!AB264","v":129},{"$f":"[1]ACS_16_5YR_B19001_with_ann!AC264","v":62},{"$f":"[1]ACS_16_5YR_B19001_with_ann!AD264","v":135},{"$f":"[1]ACS_16_5YR_B19001_with_ann!AE264","v":64},{"$f":"[1]ACS_16_5YR_B19001_with_ann!AF264","v":232},{"$f":"[1]ACS_16_5YR_B19001_with_ann!AG264","v":116},{"$f":"[1]ACS_16_5YR_B19001_with_ann!AH264","v":163},{"$f":"[1]ACS_16_5YR_B19001_with_ann!AI264","v":107},{"$f":"[1]ACS_16_5YR_B19001_with_ann!AJ264","v":106},{"$f":"[1]ACS_16_5YR_B19001_with_ann!AK264","v":69}]
["0600000US3301940900",3301940900,"060","Langdon",{"$f":"[1]ACS_16_5YR_B19001_with_ann!D265","v":257},{"$f":"[1]ACS_16_5YR_B19001_with_ann!E265","v":47},{"$f":"[1]ACS_16_5YR_B19001_with_ann!F265","v":17},{"$f":"[1]ACS_16_5YR_B19001_with_ann!G265","v":16},{"$f":"[1]ACS_16_5YR_B19001_with_ann!H265","v":0},{"$f":"[1]ACS_16_5YR_B19001_with_ann!I265","v":11},{"$f":"[1]ACS_16_5YR_B19001_with_ann!J265","v":5},{"$f":"[1]ACS_16_5YR_B19001_with_ann!K265","v":5},{"$f":"[1]ACS_16_5YR_B19001_with_ann!L265","v":6},{"$f":"[1]ACS_16_5YR_B19001_with_ann!M265","v":6},{"$f":"[1]ACS_16_5YR_B19001_with_ann!N265","v":14},{"$f":"[1]ACS_16_5YR_B19001_with_ann!O265","v":9},{"$f":"[1]ACS_16_5YR_B19001_with_ann!P265","v":2},{"$f":"[1]ACS_16_5YR_B19001_with_ann!Q265","v":3},{"$f":"[1]ACS_16_5YR_B19001_with_ann!R265","v":16},{"$f":"[1]ACS_16_5YR_B19001_with_ann!S265","v":15},{"$f":"[1]ACS_16_5YR_B19001_with_ann!T265","v":4},{"$f":"[1]ACS_16_5YR_B19001_with_ann!U265","v":4},{"$f":"[1]ACS_16_5YR_B19001_with_ann!V265","v":5},{"$f":"[1]ACS_16_5YR_B19001_with_ann!W265","v":5},{"$f":"[1]ACS_16_5YR_B19001_with_ann!X265","v":19},{"$f":"[1]ACS_16_5YR_B19001_with_ann!Y265","v":15},{"$f":"[1]ACS_16_5YR_B19001_with_ann!Z265","v":34},{"$f":"[1]ACS_16_5YR_B19001_with_ann!AA265","v":18},{"$f":"[1]ACS_16_5YR_B19001_with_ann!AB265","v":45},{"$f":"[1]ACS_16_5YR_B19001_with_ann!AC265","v":22},{"$f":"[1]ACS_16_5YR_B19001_with_ann!AD265","v":32},{"$f":"[1]ACS_16_5YR_B19001_with_ann!AE265","v":14},{"$f":"[1]ACS_16_5YR_B19001_with_ann!AF265","v":23},{"$f":"[1]ACS_16_5YR_B19001_with_ann!AG265","v":12},{"$f":"[1]ACS_16_5YR_B19001_with_ann!AH265","v":18},{"$f":"[1]ACS_16_5YR_B19001_with_ann!AI265","v":13},{"$f":"[1]ACS_16_5YR_B19001_with_ann!AJ265","v":17},{"$f":"[1]ACS_16_5YR_B19001_with_ann!AK265","v":16}]
["0600000US3301941700",3301941700,"060","Lempster",{"$f":"[1]ACS_16_5YR_B19001_with_ann!D266","v":393},{"$f":"[1]ACS_16_5YR_B19001_with_ann!E266","v":59},{"$f":"[1]ACS_16_5YR_B19001_with_ann!F266","v":16},{"$f":"[1]ACS_16_5YR_B19001_with_ann!G266","v":17},{"$f":"[1]ACS_16_5YR_B19001_with_ann!H266","v":13},{"$f":"[1]ACS_16_5YR_B19001_with_ann!I266","v":15},{"$f":"[1]ACS_16_5YR_B19001_with_ann!J266","v":10},{"$f":"[1]ACS_16_5YR_B19001_with_ann!K266","v":9},{"$f":"[1]ACS_16_5YR_B19001_with_ann!L266","v":30},{"$f":"[1]ACS_16_5YR_B19001_with_ann!M266","v":21},{"$f":"[1]ACS_16_5YR_B19001_with_ann!N266","v":7},{"$f":"[1]ACS_16_5YR_B19001_with_ann!O266","v":8},{"$f":"[1]ACS_16_5YR_B19001_with_ann!P266","v":11},{"$f":"[1]ACS_16_5YR_B19001_with_ann!Q266","v":7},{"$f":"[1]ACS_16_5YR_B19001_with_ann!R266","v":22},{"$f":"[1]ACS_16_5YR_B19001_with_ann!S266","v":15},{"$f":"[1]ACS_16_5YR_B19001_with_ann!T266","v":14},{"$f":"[1]ACS_16_5YR_B19001_with_ann!U266","v":15},{"$f":"[1]ACS_16_5YR_B19001_with_ann!V266","v":34},{"$f":"[1]ACS_16_5YR_B19001_with_ann!W266","v":19},{"$f":"[1]ACS_16_5YR_B19001_with_ann!X266","v":17},{"$f":"[1]ACS_16_5YR_B19001_with_ann!Y266","v":15},{"$f":"[1]ACS_16_5YR_B19001_with_ann!Z266","v":38},{"$f":"[1]ACS_16_5YR_B19001_with_ann!AA266","v":26},{"$f":"[1]ACS_16_5YR_B19001_with_ann!AB266","v":67},{"$f":"[1]ACS_16_5YR_B19001_with_ann!AC266","v":29},{"$f":"[1]ACS_16_5YR_B19001_with_ann!AD266","v":75},{"$f":"[1]ACS_16_5YR_B19001_with_ann!AE266","v":35},{"$f":"[1]ACS_16_5YR_B19001_with_ann!AF266","v":14},{"$f":"[1]ACS_16_5YR_B19001_with_ann!AG266","v":11},{"$f":"[1]ACS_16_5YR_B19001_with_ann!AH266","v":14},{"$f":"[1]ACS_16_5YR_B19001_with_ann!AI266","v":22},{"$f":"[1]ACS_16_5YR_B19001_with_ann!AJ266","v":11},{"$f":"[1]ACS_16_5YR_B19001_with_ann!AK266","v":14}]
["0600000US3301952580",3301952580,"060","Newport",{"$f":"[1]ACS_16_5YR_B19001_with_ann!D267","v":2600},{"$f":"[1]ACS_16_5YR_B19001_with_ann!E267","v":168},{"$f":"[1]ACS_16_5YR_B19001_with_ann!F267","v":158},{"$f":"[1]ACS_16_5YR_B19001_with_ann!G267","v":103},{"$f":"[1]ACS_16_5YR_B19001_with_ann!H267","v":46},{"$f":"[1]ACS_16_5YR_B19001_with_ann!I267","v":57},{"$f":"[1]ACS_16_5YR_B19001_with_ann!J267","v":244},{"$f":"[1]ACS_16_5YR_B19001_with_ann!K267","v":129},{"$f":"[1]ACS_16_5YR_B19001_with_ann!L267","v":101},{"$f":"[1]ACS_16_5YR_B19001_with_ann!M267","v":65},{"$f":"[1]ACS_16_5YR_B19001_with_ann!N267","v":180},{"$f":"[1]ACS_16_5YR_B19001_with_ann!O267","v":114},{"$f":"[1]ACS_16_5YR_B19001_with_ann!P267","v":114},{"$f":"[1]ACS_16_5YR_B19001_with_ann!Q267","v":78},{"$f":"[1]ACS_16_5YR_B19001_with_ann!R267","v":76},{"$f":"[1]ACS_16_5YR_B19001_with_ann!S267","v":50},{"$f":"[1]ACS_16_5YR_B19001_with_ann!T267","v":77},{"$f":"[1]ACS_16_5YR_B19001_with_ann!U267","v":52},{"$f":"[1]ACS_16_5YR_B19001_with_ann!V267","v":78},{"$f":"[1]ACS_16_5YR_B19001_with_ann!W267","v":55},{"$f":"[1]ACS_16_5YR_B19001_with_ann!X267","v":363},{"$f":"[1]ACS_16_5YR_B19001_with_ann!Y267","v":136},{"$f":"[1]ACS_16_5YR_B19001_with_ann!Z267","v":263},{"$f":"[1]ACS_16_5YR_B19001_with_ann!AA267","v":119},{"$f":"[1]ACS_16_5YR_B19001_with_ann!AB267","v":377},{"$f":"[1]ACS_16_5YR_B19001_with_ann!AC267","v":131},{"$f":"[1]ACS_16_5YR_B19001_with_ann!AD267","v":104},{"$f":"[1]ACS_16_5YR_B19001_with_ann!AE267","v":61},{"$f":"[1]ACS_16_5YR_B19001_with_ann!AF267","v":145},{"$f":"[1]ACS_16_5YR_B19001_with_ann!AG267","v":87},{"$f":"[1]ACS_16_5YR_B19001_with_ann!AH267","v":215},{"$f":"[1]ACS_16_5YR_B19001_with_ann!AI267","v":111},{"$f":"[1]ACS_16_5YR_B19001_with_ann!AJ267","v":59},{"$f":"[1]ACS_16_5YR_B19001_with_ann!AK267","v":42}]
["0600000US3301962340",3301962340,"060","Plainfield",{"$f":"[1]ACS_16_5YR_B19001_with_ann!D268","v":915},{"$f":"[1]ACS_16_5YR_B19001_with_ann!E268","v":86},{"$f":"[1]ACS_16_5YR_B19001_with_ann!F268","v":42},{"$f":"[1]ACS_16_5YR_B19001_with_ann!G268","v":30},{"$f":"[1]ACS_16_5YR_B19001_with_ann!H268","v":0},{"$f":"[1]ACS_16_5YR_B19001_with_ann!I268","v":11},{"$f":"[1]ACS_16_5YR_B19001_with_ann!J268","v":0},{"$f":"[1]ACS_16_5YR_B19001_with_ann!K268","v":11},{"$f":"[1]ACS_16_5YR_B19001_with_ann!L268","v":30},{"$f":"[1]ACS_16_5YR_B19001_with_ann!M268","v":20},{"$f":"[1]ACS_16_5YR_B19001_with_ann!N268","v":84},{"$f":"[1]ACS_16_5YR_B19001_with_ann!O268","v":46},{"$f":"[1]ACS_16_5YR_B19001_with_ann!P268","v":16},{"$f":"[1]ACS_16_5YR_B19001_with_ann!Q268","v":14},{"$f":"[1]ACS_16_5YR_B19001_with_ann!R268","v":16},{"$f":"[1]ACS_16_5YR_B19001_with_ann!S268","v":13},{"$f":"[1]ACS_16_5YR_B19001_with_ann!T268","v":18},{"$f":"[1]ACS_16_5YR_B19001_with_ann!U268","v":13},{"$f":"[1]ACS_16_5YR_B19001_with_ann!V268","v":38},{"$f":"[1]ACS_16_5YR_B19001_with_ann!W268","v":29},{"$f":"[1]ACS_16_5YR_B19001_with_ann!X268","v":47},{"$f":"[1]ACS_16_5YR_B19001_with_ann!Y268","v":34},{"$f":"[1]ACS_16_5YR_B19001_with_ann!Z268","v":95},{"$f":"[1]ACS_16_5YR_B19001_with_ann!AA268","v":54},{"$f":"[1]ACS_16_5YR_B19001_with_ann!AB268","v":185},{"$f":"[1]ACS_16_5YR_B19001_with_ann!AC268","v":49},{"$f":"[1]ACS_16_5YR_B19001_with_ann!AD268","v":92},{"$f":"[1]ACS_16_5YR_B19001_with_ann!AE268","v":36},{"$f":"[1]ACS_16_5YR_B19001_with_ann!AF268","v":87},{"$f":"[1]ACS_16_5YR_B19001_with_ann!AG268","v":42},{"$f":"[1]ACS_16_5YR_B19001_with_ann!AH268","v":65},{"$f":"[1]ACS_16_5YR_B19001_with_ann!AI268","v":34},{"$f":"[1]ACS_16_5YR_B19001_with_ann!AJ268","v":100},{"$f":"[1]ACS_16_5YR_B19001_with_ann!AK268","v":32}]
["0600000US3301972740",3301972740,"060","Springfield",{"$f":"[1]ACS_16_5YR_B19001_with_ann!D269","v":442},{"$f":"[1]ACS_16_5YR_B19001_with_ann!E269","v":75},{"$f":"[1]ACS_16_5YR_B19001_with_ann!F269","v":21},{"$f":"[1]ACS_16_5YR_B19001_with_ann!G269","v":21},{"$f":"[1]ACS_16_5YR_B19001_with_ann!H269","v":7},{"$f":"[1]ACS_16_5YR_B19001_with_ann!I269","v":7},{"$f":"[1]ACS_16_5YR_B19001_with_ann!J269","v":7},{"$f":"[1]ACS_16_5YR_B19001_with_ann!K269","v":13},{"$f":"[1]ACS_16_5YR_B19001_with_ann!L269","v":6},{"$f":"[1]ACS_16_5YR_B19001_with_ann!M269","v":9},{"$f":"[1]ACS_16_5YR_B19001_with_ann!N269","v":23},{"$f":"[1]ACS_16_5YR_B19001_with_ann!O269","v":17},{"$f":"[1]ACS_16_5YR_B19001_with_ann!P269","v":33},{"$f":"[1]ACS_16_5YR_B19001_with_ann!Q269","v":29},{"$f":"[1]ACS_16_5YR_B19001_with_ann!R269","v":8},{"$f":"[1]ACS_16_5YR_B19001_with_ann!S269","v":9},{"$f":"[1]ACS_16_5YR_B19001_with_ann!T269","v":11},{"$f":"[1]ACS_16_5YR_B19001_with_ann!U269","v":13},{"$f":"[1]ACS_16_5YR_B19001_with_ann!V269","v":5},{"$f":"[1]ACS_16_5YR_B19001_with_ann!W269","v":9},{"$f":"[1]ACS_16_5YR_B19001_with_ann!X269","v":18},{"$f":"[1]ACS_16_5YR_B19001_with_ann!Y269","v":17},{"$f":"[1]ACS_16_5YR_B19001_with_ann!Z269","v":50},{"$f":"[1]ACS_16_5YR_B19001_with_ann!AA269","v":27},{"$f":"[1]ACS_16_5YR_B19001_with_ann!AB269","v":152},{"$f":"[1]ACS_16_5YR_B19001_with_ann!AC269","v":53},{"$f":"[1]ACS_16_5YR_B19001_with_ann!AD269","v":54},{"$f":"[1]ACS_16_5YR_B19001_with_ann!AE269","v":33},{"$f":"[1]ACS_16_5YR_B19001_with_ann!AF269","v":23},{"$f":"[1]ACS_16_5YR_B19001_with_ann!AG269","v":19},{"$f":"[1]ACS_16_5YR_B19001_with_ann!AH269","v":11},{"$f":"[1]ACS_16_5YR_B19001_with_ann!AI269","v":9},{"$f":"[1]ACS_16_5YR_B19001_with_ann!AJ269","v":13},{"$f":"[1]ACS_16_5YR_B19001_with_ann!AK269","v":8}]
["0600000US3301975060",3301975060,"060","Sunapee",{"$f":"[1]ACS_16_5YR_B19001_with_ann!D270","v":1393},{"$f":"[1]ACS_16_5YR_B19001_with_ann!E270","v":139},{"$f":"[1]ACS_16_5YR_B19001_with_ann!F270","v":118},{"$f":"[1]ACS_16_5YR_B19001_with_ann!G270","v":90},{"$f":"[1]ACS_16_5YR_B19001_with_ann!H270","v":15},{"$f":"[1]ACS_16_5YR_B19001_with_ann!I270","v":20},{"$f":"[1]ACS_16_5YR_B19001_with_ann!J270","v":16},{"$f":"[1]ACS_16_5YR_B19001_with_ann!K270","v":17},{"$f":"[1]ACS_16_5YR_B19001_with_ann!L270","v":112},{"$f":"[1]ACS_16_5YR_B19001_with_ann!M270","v":81},{"$f":"[1]ACS_16_5YR_B19001_with_ann!N270","v":22},{"$f":"[1]ACS_16_5YR_B19001_with_ann!O270","v":20},{"$f":"[1]ACS_16_5YR_B19001_with_ann!P270","v":51},{"$f":"[1]ACS_16_5YR_B19001_with_ann!Q270","v":50},{"$f":"[1]ACS_16_5YR_B19001_with_ann!R270","v":8},{"$f":"[1]ACS_16_5YR_B19001_with_ann!S270","v":13},{"$f":"[1]ACS_16_5YR_B19001_with_ann!T270","v":15},{"$f":"[1]ACS_16_5YR_B19001_with_ann!U270","v":23},{"$f":"[1]ACS_16_5YR_B19001_with_ann!V270","v":100},{"$f":"[1]ACS_16_5YR_B19001_with_ann!W270","v":71},{"$f":"[1]ACS_16_5YR_B19001_with_ann!X270","v":75},{"$f":"[1]ACS_16_5YR_B19001_with_ann!Y270","v":47},{"$f":"[1]ACS_16_5YR_B19001_with_ann!Z270","v":184},{"$f":"[1]ACS_16_5YR_B19001_with_ann!AA270","v":77},{"$f":"[1]ACS_16_5YR_B19001_with_ann!AB270","v":202},{"$f":"[1]ACS_16_5YR_B19001_with_ann!AC270","v":77},{"$f":"[1]ACS_16_5YR_B19001_with_ann!AD270","v":146},{"$f":"[1]ACS_16_5YR_B19001_with_ann!AE270","v":80},{"$f":"[1]ACS_16_5YR_B19001_with_ann!AF270","v":144},{"$f":"[1]ACS_16_5YR_B19001_with_ann!AG270","v":70},{"$f":"[1]ACS_16_5YR_B19001_with_ann!AH270","v":104},{"$f":"[1]ACS_16_5YR_B19001_with_ann!AI270","v":48},{"$f":"[1]ACS_16_5YR_B19001_with_ann!AJ270","v":81},{"$f":"[1]ACS_16_5YR_B19001_with_ann!AK270","v":42}]
["0600000US3301977940",3301977940,"060","Unity",{"$f":"[1]ACS_16_5YR_B19001_with_ann!D271","v":571},{"$f":"[1]ACS_16_5YR_B19001_with_ann!E271","v":56},{"$f":"[1]ACS_16_5YR_B19001_with_ann!F271","v":19},{"$f":"[1]ACS_16_5YR_B19001_with_ann!G271","v":20},{"$f":"[1]ACS_16_5YR_B19001_with_ann!H271","v":23},{"$f":"[1]ACS_16_5YR_B19001_with_ann!I271","v":16},{"$f":"[1]ACS_16_5YR_B19001_with_ann!J271","v":18},{"$f":"[1]ACS_16_5YR_B19001_with_ann!K271","v":20},{"$f":"[1]ACS_16_5YR_B19001_with_ann!L271","v":37},{"$f":"[1]ACS_16_5YR_B19001_with_ann!M271","v":22},{"$f":"[1]ACS_16_5YR_B19001_with_ann!N271","v":26},{"$f":"[1]ACS_16_5YR_B19001_with_ann!O271","v":12},{"$f":"[1]ACS_16_5YR_B19001_with_ann!P271","v":21},{"$f":"[1]ACS_16_5YR_B19001_with_ann!Q271","v":13},{"$f":"[1]ACS_16_5YR_B19001_with_ann!R271","v":7},{"$f":"[1]ACS_16_5YR_B19001_with_ann!S271","v":7},{"$f":"[1]ACS_16_5YR_B19001_with_ann!T271","v":16},{"$f":"[1]ACS_16_5YR_B19001_with_ann!U271","v":11},{"$f":"[1]ACS_16_5YR_B19001_with_ann!V271","v":25},{"$f":"[1]ACS_16_5YR_B19001_with_ann!W271","v":10},{"$f":"[1]ACS_16_5YR_B19001_with_ann!X271","v":39},{"$f":"[1]ACS_16_5YR_B19001_with_ann!Y271","v":20},{"$f":"[1]ACS_16_5YR_B19001_with_ann!Z271","v":73},{"$f":"[1]ACS_16_5YR_B19001_with_ann!AA271","v":24},{"$f":"[1]ACS_16_5YR_B19001_with_ann!AB271","v":96},{"$f":"[1]ACS_16_5YR_B19001_with_ann!AC271","v":34},{"$f":"[1]ACS_16_5YR_B19001_with_ann!AD271","v":80},{"$f":"[1]ACS_16_5YR_B19001_with_ann!AE271","v":33},{"$f":"[1]ACS_16_5YR_B19001_with_ann!AF271","v":45},{"$f":"[1]ACS_16_5YR_B19001_with_ann!AG271","v":25},{"$f":"[1]ACS_16_5YR_B19001_with_ann!AH271","v":34},{"$f":"[1]ACS_16_5YR_B19001_with_ann!AI271","v":16},{"$f":"[1]ACS_16_5YR_B19001_with_ann!AJ271","v":12},{"$f":"[1]ACS_16_5YR_B19001_with_ann!AK271","v":9}]
["0600000US3301978980",3301978980,"060","Washington",{"$f":"[1]ACS_16_5YR_B19001_with_ann!D272","v":537},{"$f":"[1]ACS_16_5YR_B19001_with_ann!E272","v":81},{"$f":"[1]ACS_16_5YR_B19001_with_ann!F272","v":17},{"$f":"[1]ACS_16_5YR_B19001_with_ann!G272","v":19},{"$f":"[1]ACS_16_5YR_B19001_with_ann!H272","v":12},{"$f":"[1]ACS_16_5YR_B19001_with_ann!I272","v":16},{"$f":"[1]ACS_16_5YR_B19001_with_ann!J272","v":18},{"$f":"[1]ACS_16_5YR_B19001_with_ann!K272","v":18},{"$f":"[1]ACS_16_5YR_B19001_with_ann!L272","v":20},{"$f":"[1]ACS_16_5YR_B19001_with_ann!M272","v":17},{"$f":"[1]ACS_16_5YR_B19001_with_ann!N272","v":13},{"$f":"[1]ACS_16_5YR_B19001_with_ann!O272","v":10},{"$f":"[1]ACS_16_5YR_B19001_with_ann!P272","v":20},{"$f":"[1]ACS_16_5YR_B19001_with_ann!Q272","v":15},{"$f":"[1]ACS_16_5YR_B19001_with_ann!R272","v":26},{"$f":"[1]ACS_16_5YR_B19001_with_ann!S272","v":22},{"$f":"[1]ACS_16_5YR_B19001_with_ann!T272","v":20},{"$f":"[1]ACS_16_5YR_B19001_with_ann!U272","v":15},{"$f":"[1]ACS_16_5YR_B19001_with_ann!V272","v":24},{"$f":"[1]ACS_16_5YR_B19001_with_ann!W272","v":18},{"$f":"[1]ACS_16_5YR_B19001_with_ann!X272","v":45},{"$f":"[1]ACS_16_5YR_B19001_with_ann!Y272","v":23},{"$f":"[1]ACS_16_5YR_B19001_with_ann!Z272","v":41},{"$f":"[1]ACS_16_5YR_B19001_with_ann!AA272","v":22},{"$f":"[1]ACS_16_5YR_B19001_with_ann!AB272","v":81},{"$f":"[1]ACS_16_5YR_B19001_with_ann!AC272","v":37},{"$f":"[1]ACS_16_5YR_B19001_with_ann!AD272","v":50},{"$f":"[1]ACS_16_5YR_B19001_with_ann!AE272","v":24},{"$f":"[1]ACS_16_5YR_B19001_with_ann!AF272","v":65},{"$f":"[1]ACS_16_5YR_B19001_with_ann!AG272","v":36},{"$f":"[1]ACS_16_5YR_B19001_with_ann!AH272","v":26},{"$f":"[1]ACS_16_5YR_B19001_with_ann!AI272","v":19},{"$f":"[1]ACS_16_5YR_B19001_with_ann!AJ272","v":59},{"$f":"[1]ACS_16_5YR_B19001_with_ann!AK272","v":59}]
[]
[null,null,null,null,{"$f":"$D$3","v":"Acworth"},null,{"$f":"$D$4","v":"Charlestown"},null,{"$f":"$D$5","v":"Claremont"},null,{"$f":"$D$6","v":"Cornish"},null,{"$f":"$D$7","v":"Croydon"},null,{"$f":"$D$8","v":"Goshen"},null,{"$f":"$D$9","v":"Grantham"},null,{"$f":"$D$10","v":"Langdon"},null,{"$f":"$D$11","v":"Lempster"},null,{"$f":"$D$12","v":"Newport"},null,{"$f":"$D$13","v":"Plainfield"},null,{"$f":"$D$14","v":"Springfield"},null,{"$f":"$D$15","v":"Sunapee"},null,{"$f":"$D$16","v":"Unity"},null,{"$f":"$D$17","v":"Washington"}]
[null,null,null,null,"Estimate","Margin Of Error","Estimate","Margin Of Error","Estimate","Margin Of Error","Estimate","Margin Of Error","Estimate","Margin Of Error","Estimate","Margin Of Error","Estimate","Margin Of Error","Estimate","Margin Of Error","Estimate","Margin Of Error","Estimate","Margin Of Error","Estimate","Margin Of Error","Estimate","Margin Of Error","Estimate","Margin Of Error",null,"Estimate","Margin Of Error"]
[null,null,null,"Estimate Total:",370,51,2086,184,5231,284,741,81,293,56,277,39,1222,142,257,47,393,59,2600,168,915,86,442,75,1393,139,571,56,537,81]
[null,null,null,"Estimate  Total: - Less than $10,000",15,16,170,108,311,135,16,13,14,16,19,14,0,11,17,16,16,17,158,103,42,30,21,21,118,90,19,20,17,19]
[null,null,null,"Estimate  Total: - $10,000 to $14,999",6,6,30,35,245,95,19,20,12,13,8,10,0,11,0,11,13,15,46,57,0,11,7,7,15,20,23,16,12,16]
[null,null,null,"Estimate  Total: - $15,000 to $19,999",7,6,178,111,299,108,33,24,6,7,9,7,45,48,5,5,10,9,244,129,0,11,7,13,16,17,18,20,18,18]
[null,null,null,"Estimate  Total: - $20,000 to $24,999",8,10,73,77,410,168,7,7,10,8,9,8,0,11,6,6,30,21,101,65,30,20,6,9,112,81,37,22,20,17]
[null,null,null,"Estimate  Total: - $25,000 to $29,999",20,12,184,114,326,113,36,28,10,8,7,9,91,76,14,9,7,8,180,114,84,46,23,17,22,20,26,12,13,10]
[null,null,null,"Estimate  Total: - $30,000 to $34,999",10,8,117,97,358,133,29,23,11,9,8,9,0,11,2,3,11,7,114,78,16,14,33,29,51,50,21,13,20,15]
[null,null,null,"Estimate  Total: - $35,000 to $39,999",9,6,119,92,125,58,31,23,8,8,15,12,0,11,16,15,22,15,76,50,16,13,8,9,8,13,7,7,26,22]
[null,null,null,"Estimate  Total: - $40,000 to $44,999",19,17,114,94,357,142,26,16,4,4,5,7,91,102,4,4,14,15,77,52,18,13,11,13,15,23,16,11,20,15]
[null,null,null,"Estimate  Total: - $45,000 to $49,999",18,11,78,58,287,105,32,17,18,16,16,13,17,25,5,5,34,19,78,55,38,29,5,9,100,71,25,10,24,18]
[null,null,null,"Estimate  Total: - $50,000 to $59,999",46,22,200,110,437,127,60,30,21,15,44,25,67,54,19,15,17,15,363,136,47,34,18,17,75,47,39,20,45,23]
[null,null,null,"Estimate  Total: - $60,000 to $74,999",51,24,168,92,406,127,48,27,30,18,33,19,146,82,34,18,38,26,263,119,95,54,50,27,184,77,73,24,41,22]
[null,null,null,"Estimate  Total: - $75,000 to $99,999",64,32,413,144,863,176,111,36,48,23,49,17,129,62,45,22,67,29,377,131,185,49,152,53,202,77,96,34,81,37]
[null,null,null,"Estimate  Total: - $100,000 to $124,999",34,19,58,55,311,117,98,32,38,23,16,12,135,64,32,14,75,35,104,61,92,36,54,33,146,80,80,33,50,24]
[null,null,null,"Estimate  Total: - $125,000 to $149,999",28,16,71,66,172,78,76,28,26,19,25,19,232,116,23,12,14,11,145,87,87,42,23,19,144,70,45,25,65,36]
[null,null,null,"Estimate  Total: - $150,000 to $199,999",19,13,23,29,238,102,55,22,25,20,12,11,163,107,18,13,14,22,215,111,65,34,11,9,104,48,34,16,26,19]
[null,null,null,"Estimate  Total: - $200,000 or more",16,12,90,69,86,54,64,29,12,11,2,4,106,69,17,16,11,14,59,42,100,32,13,8,81,42,12,9,59,59]

{"sheet":"SData_B19037IncomeByAgeofHH","index":57,"n_rows":89,"n_cols":256,"rows_kept":89,"cut":false,"hidden":true,"merged":[]}
["GEO_ID","GEO_ID2","SUMLEVEL","GEO_NAME","B19037_1_EST","B19037_1_MOE","B19037_2_EST","B19037_2_MOE","B19037_3_EST","B19037_3_MOE","B19037_4_EST","B19037_4_MOE","B19037_5_EST","B19037_5_MOE","B19037_6_EST","B19037_6_MOE","B19037_7_EST","B19037_7_MOE","B19037_8_EST","B19037_8_MOE","B19037_9_EST","B19037_9_MOE","B19037_10_EST","B19037_10_MOE","B19037_11_EST","B19037_11_MOE","B19037_12_EST","B19037_12_MOE","B19037_13_EST","B19037_13_MOE","B19037_14_EST","B19037_14_MOE","B19037_15_EST","B19037_15_MOE","B19037_16_EST","B19037_16_MOE","B19037_17_EST","B19037_17_MOE","B19037_18_EST","B19037_18_MOE","B19037_19_EST","B19037_19_MOE","B19037_20_EST","B19037_20_MOE","B19037_21_EST","B19037_21_MOE","B19037_22_EST","B19037_22_MOE","B19037_23_EST","B19037_23_MOE","B19037_24_EST","B19037_24_MOE","B19037_25_EST","B19037_25_MOE","B19037_26_EST","B19037_26_MOE","B19037_27_EST","B19037_27_MOE","B19037_28_EST","B19037_28_MOE","B19037_29_EST","B19037_29_MOE","B19037_30_EST","B19037_30_MOE","B19037_31_EST","B19037_31_MOE","B19037_32_EST","B19037_32_MOE","B19037_33_EST","B19037_33_MOE","B19037_34_EST","B19037_34_MOE","B19037_35_EST","B19037_35_MOE","B19037_36_EST","B19037_36_MOE","B19037_37_EST","B19037_37_MOE","B19037_38_EST","B19037_38_MOE","B19037_39_EST","B19037_39_MOE","B19037_40_EST","B19037_40_MOE","B19037_41_EST","B19037_41_MOE","B19037_42_EST","B19037_42_MOE","B19037_43_EST","B19037_43_MOE","B19037_44_EST","B19037_44_MOE","B19037_45_EST","B19037_45_MOE","B19037_46_EST","B19037_46_MOE","B19037_47_EST","B19037_47_MOE","B19037_48_EST","B19037_48_MOE","B19037_49_EST","B19037_49_MOE","B19037_50_EST","B19037_50_MOE","B19037_51_EST","B19037_51_MOE","B19037_52_EST","B19037_52_MOE","B19037_53_EST","B19037_53_MOE","B19037_54_EST","B19037_54_MOE","B19037_55_EST","B19037_55_MOE","B19037_56_EST","B19037_56_MOE","B19037_57_EST","B19037_57_MOE","B19037_58_EST","B19037_58_MOE","B19037_59_EST","B19037_59_MOE","B19037_60_EST","B19037_60_MOE","B19037_61_EST","B19037_61_MOE","B19037_62_EST","B19037_62_MOE","B19037_63_EST","B19037_63_MOE","B19037_64_EST","B19037_64_MOE","B19037_65_EST","B19037_65_MOE","B19037_66_EST","B19037_66_MOE","B19037_67_EST","B19037_67_MOE","B19037_68_EST","B19037_68_MOE","B19037_69_EST","B19037_69_MOE"]
["Geography Identifier","Geography Identifier","Geographic Summary Level","Geography",{"$f":"[1]ACS_16_5YR_B19037_with_ann!D$2","v":"Estimate Total:"},{"$f":"[1]ACS_16_5YR_B19037_with_ann!E$2","v":"Margin of Error Total:"},{"$f":"[1]ACS_16_5YR_B19037_with_ann!F$2","v":"Estimate  Householder under 25 years:"},{"$f":"[1]ACS_16_5YR_B19037_with_ann!G$2","v":"Margin of Error Total: Householder under 25 years:"},{"$f":"[1]ACS_16_5YR_B19037_with_ann!H$2","v":"Estimate  Householder under 25 years: - Less than $10,000"},{"$f":"[1]ACS_16_5YR_B19037_with_ann!I$2","v":"Margin of Error Total: Householder under 25 years: Less than $10"},{"$f":"[1]ACS_16_5YR_B19037_with_ann!J$2","v":"Estimate  Householder under 25 years: - $10,000 to $14,999"},{"$f":"[1]ACS_16_5YR_B19037_with_ann!K$2","v":"Margin of Error Total: Householder under 25 years: $10"},{"$f":"[1]ACS_16_5YR_B19037_with_ann!L$2","v":"Estimate  Householder under 25 years: - $15,000 to $19,999"},{"$f":"[1]ACS_16_5YR_B19037_with_ann!M$2","v":"Margin of Error Total: Householder under 25 years: $15"},{"$f":"[1]ACS_16_5YR_B19037_with_ann!N$2","v":"Estimate  Householder under 25 years: - $20,000 to $24,999"},{"$f":"[1]ACS_16_5YR_B19037_with_ann!O$2","v":"Margin of Error Total: Householder under 25 years: $20"},{"$f":"[1]ACS_16_5YR_B19037_with_ann!P$2","v":"Estimate  Householder under 25 years: - $25,000 to $29,999"},{"$f":"[1]ACS_16_5YR_B19037_with_ann!Q$2","v":"Margin of Error Total: Householder under 25 years: $25"},{"$f":"[1]ACS_16_5YR_B19037_with_ann!R$2","v":"Estimate  Householder under 25 years: - $30,000 to $34,999"},{"$f":"[1]ACS_16_5YR_B19037_with_ann!S$2","v":"Margin of Error Total: Householder under 25 years: $30"},{"$f":"[1]ACS_16_5YR_B19037_with_ann!T$2","v":"Estimate  Householder under 25 years: - $35,000 to $39,999"},{"$f":"[1]ACS_16_5YR_B19037_with_ann!U$2","v":"Margin of Error Total: Householder under 25 years: $35"},{"$f":"[1]ACS_16_5YR_B19037_with_ann!V$2","v":"Estimate  Householder under 25 years: - $40,000 to $44,999"},{"$f":"[1]ACS_16_5YR_B19037_with_ann!W$2","v":"Margin of Error Total: Householder under 25 years: $40"},{"$f":"[1]ACS_16_5YR_B19037_with_ann!X$2","v":"Estimate  Householder under 25 years: - $45,000 to $49,999"},{"$f":"[1]ACS_16_5YR_B19037_with_ann!Y$2","v":"Margin of Error Total: Householder under 25 years: $45"},{"$f":"[1]ACS_16_5YR_B19037_with_ann!Z$2","v":"Estimate  Householder under 25 years: - $50,000 to $59,999"},{"$f":"[1]ACS_16_5YR_B19037_with_ann!AA$2","v":"Margin of Error Total: Householder under 25 years: $50"},{"$f":"[1]ACS_16_5YR_B19037_with_ann!AB$2","v":"Estimate  Householder under 25 years: - $60,000 to $74,999"},{"$f":"[1]ACS_16_5YR_B19037_with_ann!AC$2","v":"Margin of Error Total: Householder under 25 years: $60"},{"$f":"[1]ACS_16_5YR_B19037_with_ann!AD$2","v":"Estimate  Householder under 25 years: - $75,000 to $99,999"},{"$f":"[1]ACS_16_5YR_B19037_with_ann!AE$2","v":"Margin of Error Total: Householder under 25 years: $75"},{"$f":"[1]ACS_16_5YR_B19037_with_ann!AF$2","v":"Estimate  Householder under 25 years: - $100,000 to $124,999"},{"$f":"[1]ACS_16_5YR_B19037_with_ann!AG$2","v":"Margin of Error Total: Householder under 25 years: $100"},{"$f":"[1]ACS_16_5YR_B19037_with_ann!AH$2","v":"Estimate  Householder under 25 years: - $125,000 to $149,999"},{"$f":"[1]ACS_16_5YR_B19037_with_ann!AI$2","v":"Margin of Error Total: Householder under 25 years: $125"},{"$f":"[1]ACS_16_5YR_B19037_with_ann!AJ$2","v":"Estimate  Householder under 25 years: - $150,000 to $199,999"},{"$f":"[1]ACS_16_5YR_B19037_with_ann!AK$2","v":"Margin of Error Total: Householder under 25 years: $150"},{"$f":"[1]ACS_16_5YR_B19037_with_ann!AL$2","v":"Estimate  Householder under 25 years: - $200,000 or more"},{"$f":"[1]ACS_16_5YR_B19037_with_ann!AM$2","v":"Margin of Error Total: Householder under 25 years: $200"},{"$f":"[1]ACS_16_5YR_B19037_with_ann!AN$2","v":"Estimate  Householder 25 to 44 years years:"},{"$f":"[1]ACS_16_5YR_B19037_with_ann!AO$2","v":"Margin of Error Total: Householder 25 to 44 years years:"},{"$f":"[1]ACS_16_5YR_B19037_with_ann!AP$2","v":"Estimate  Householder 25 to 44 years years: - Less than $10,000"},{"$f":"[1]ACS_16_5YR_B19037_with_ann!AQ$2","v":"Margin of Error Total: Householder 25 to 44 years years: Less than $10"},{"$f":"[1]ACS_16_5YR_B19037_with_ann!AR$2","v":"Estimate  Householder 25 to 44 years years: - $10,000 to $14,999"},{"$f":"[1]ACS_16_5YR_B19037_with_ann!AS$2","v":"Margin of Error Total: Householder 25 to 44 years years: $10"},{"$f":"[1]ACS_16_5YR_B19037_with_ann!AT$2","v":"Estimate  Householder 25 to 44 years years: - $15,000 to $19,999"},{"$f":"[1]ACS_16_5YR_B19037_with_ann!AU$2","v":"Margin of Error Total: Householder 25 to 44 years years: $15"},{"$f":"[1]ACS_16_5YR_B19037_with_ann!AV$2","v":"Estimate  Householder 25 to 44 years years: - $20,000 to $24,999"},{"$f":"[1]ACS_16_5YR_B19037_with_ann!AW$2","v":"Margin of Error Total: Householder 25 to 44 years years: $20"},{"$f":"[1]ACS_16_5YR_B19037_with_ann!AX$2","v":"Estimate  Householder 25 to 44 years years: - $25,000 to $29,999"},{"$f":"[1]ACS_16_5YR_B19037_with_ann!AY$2","v":"Margin of Error Total: Householder 25 to 44 years years: $25"},{"$f":"[1]ACS_16_5YR_B19037_with_ann!AZ$2","v":"Estimate  Householder 25 to 44 years years: - $30,000 to $34,999"},{"$f":"[1]ACS_16_5YR_B19037_with_ann!BA$2","v":"Margin of Error Total: Householder 25 to 44 years years: $30"},{"$f":"[1]ACS_16_5YR_B19037_with_ann!BB$2","v":"Estimate  Householder 25 to 44 years years: - $35,000 to $39,999"},{"$f":"[1]ACS_16_5YR_B19037_with_ann!BC$2","v":"Margin of Error Total: Householder 25 to 44 years years: $35"},{"$f":"[1]ACS_16_5YR_B19037_with_ann!BD$2","v":"Estimate  Householder 25 to 44 years years: - $40,000 to $44,999"},{"$f":"[1]ACS_16_5YR_B19037_with_ann!BE$2","v":"Margin of Error Total: Householder 25 to 44 years years: $40"},{"$f":"[1]ACS_16_5YR_B19037_with_ann!BF$2","v":"Estimate  Householder 25 to 44 years years: - $45,000 to $49,999"},{"$f":"[1]ACS_16_5YR_B19037_with_ann!BG$2","v":"Margin of Error Total: Householder 25 to 44 years years: $45"},{"$f":"[1]ACS_16_5YR_B19037_with_ann!BH$2","v":"Estimate  Householder 25 to 44 years years: - $50,000 to $59,999"},{"$f":"[1]ACS_16_5YR_B19037_with_ann!BI$2","v":"Margin of Error Total: Householder 25 to 44 years years: $50"},{"$f":"[1]ACS_16_5YR_B19037_with_ann!BJ$2","v":"Estimate  Householder 25 to 44 years years: - $60,000 to $74,999"},{"$f":"[1]ACS_16_5YR_B19037_with_ann!BK$2","v":"Margin of Error Total: Householder 25 to 44 years years: $60"},{"$f":"[1]ACS_16_5YR_B19037_with_ann!BL$2","v":"Estimate  Householder 25 to 44 years years: - $75,000 to $99,999"},{"$f":"[1]ACS_16_5YR_B19037_with_ann!BM$2","v":"Margin of Error Total: Householder 25 to 44 years years: $75"},{"$f":"[1]ACS_16_5YR_B19037_with_ann!BN$2","v":"Estimate  Householder 25 to 44 years years: - $100,000 to $124,999"},{"$f":"[1]ACS_16_5YR_B19037_with_ann!BO$2","v":"Margin of Error Total: Householder 25 to 44 years years: $100"},{"$f":"[1]ACS_16_5YR_B19037_with_ann!BP$2","v":"Estimate  Householder 25 to 44 years years: - $125,000 to $149,999"},{"$f":"[1]ACS_16_5YR_B19037_with_ann!BQ$2","v":"Margin of Error Total: Householder 25 to 44 years years: $125"},{"$f":"[1]ACS_16_5YR_B19037_with_ann!BR$2","v":"Estimate  Householder 25 to 44 years years: - $150,000 to $199,999"},{"$f":"[1]ACS_16_5YR_B19037_with_ann!BS$2","v":"Margin of Error Total: Householder 25 to 44 years years: $150"},{"$f":"[1]ACS_16_5YR_B19037_with_ann!BT$2","v":"Estimate  Householder 25 to 44 years years: - $200,000 or more"},{"$f":"[1]ACS_16_5YR_B19037_with_ann!BU$2","v":"Margin of Error Total: Householder 25 to 44 years years: $200"},{"$f":"[1]ACS_16_5YR_B19037_with_ann!BV$2","v":"Estimate  Householder 45 to 64 years years:"},{"$f":"[1]ACS_16_5YR_B19037_with_ann!BW$2","v":"Margin of Error Total: Householder 45 to 64 years years:"},{"$f":"[1]ACS_16_5YR_B19037_with_ann!BX$2","v":"Estimate  Householder 45 to 64 years years: - Less than $10,000"},{"$f":"[1]ACS_16_5YR_B19037_with_ann!BY$2","v":"Margin of Error Total: Householder 45 to 64 years years: Less than $10"},{"$f":"[1]ACS_16_5YR_B19037_with_ann!BZ$2","v":"Estimate  Householder 45 to 64 years years: - $10,000 to $14,999"},{"$f":"[1]ACS_16_5YR_B19037_with_ann!CA$2","v":"Margin of Error Total: Householder 45 to 64 years years: $10"},{"$f":"[1]ACS_16_5YR_B19037_with_ann!CB$2","v":"Estimate  Householder 45 to 64 years years: - $15,000 to $19,999"},{"$f":"[1]ACS_16_5YR_B19037_with_ann!CC$2","v":"Margin of Error Total: Householder 45 to 64 years years: $15"},{"$f":"[1]ACS_16_5YR_B19037_with_ann!CD$2","v":"Estimate  Householder 45 to 64 years years: - $20,000 to $24,999"},{"$f":"[1]ACS_16_5YR_B19037_with_ann!CE$2","v":"Margin of Error Total: Householder 45 to 64 years years: $20"},{"$f":"[1]ACS_16_5YR_B19037_with_ann!CF$2","v":"Estimate  Householder 45 to 64 years years: - $25,000 to $29,999"},{"$f":"[1]ACS_16_5YR_B19037_with_ann!CG$2","v":"Margin of Error Total: Householder 45 to 64 years years: $25"},{"$f":"[1]ACS_16_5YR_B19037_with_ann!CH$2","v":"Estimate  Householder 45 to 64 years years: - $30,000 to $34,999"},{"$f":"[1]ACS_16_5YR_B19037_with_ann!CI$2","v":"Margin of Error Total: Householder 45 to 64 years years: $30"},{"$f":"[1]ACS_16_5YR_B19037_with_ann!CJ$2","v":"Estimate  Householder 45 to 64 years years: - $35,000 to $39,999"},{"$f":"[1]ACS_16_5YR_B19037_with_ann!CK$2","v":"Margin of Error Total: Householder 45 to 64 years years: $35"},{"$f":"[1]ACS_16_5YR_B19037_with_ann!CL$2","v":"Estimate  Householder 45 to 64 years years: - $40,000 to $44,999"},{"$f":"[1]ACS_16_5YR_B19037_with_ann!CM$2","v":"Margin of Error Total: Householder 45 to 64 years years: $40"},{"$f":"[1]ACS_16_5YR_B19037_with_ann!CN$2","v":"Estimate  Householder 45 to 64 years years: - $45,000 to $49,999"},{"$f":"[1]ACS_16_5YR_B19037_with_ann!CO$2","v":"Margin of Error Total: Householder 45 to 64 years years: $45"},{"$f":"[1]ACS_16_5YR_B19037_with_ann!CP$2","v":"Estimate  Householder 45 to 64 years years: - $50,000 to $59,999"},{"$f":"[1]ACS_16_5YR_B19037_with_ann!CQ$2","v":"Margin of Error Total: Householder 45 to 64 years years: $50"},{"$f":"[1]ACS_16_5YR_B19037_with_ann!CR$2","v":"Estimate  Householder 45 to 64 years years: - $60,000 to $74,999"},{"$f":"[1]ACS_16_5YR_B19037_with_ann!CS$2","v":"Margin of Error Total: Householder 45 to 64 years years: $60"},{"$f":"[1]ACS_16_5YR_B19037_with_ann!CT$2","v":"Estimate  Householder 45 to 64 years years: - $75,000 to $99,999"},{"$f":"[1]ACS_16_5YR_B19037_with_ann!CU$2","v":"Margin of Error Total: Householder 45 to 64 years years: $75"},{"$f":"[1]ACS_16_5YR_B19037_with_ann!CV$2","v":"Estimate  Householder 45 to 64 years years: - $100,000 to $124,999"},{"$f":"[1]ACS_16_5YR_B19037_with_ann!CW$2","v":"Margin of Error Total: Householder 45 to 64 years years: $100"},{"$f":"[1]ACS_16_5YR_B19037_with_ann!CX$2","v":"Estimate  Householder 45 to 64 years years: - $125,000 to $149,999"},{"$f":"[1]ACS_16_5YR_B19037_with_ann!CY$2","v":"Margin of Error Total: Householder 45 to 64 years years: $125"},{"$f":"[1]ACS_16_5YR_B19037_with_ann!CZ$2","v":"Estimate  Householder 45 to 64 years years: - $150,000 to $199,999"},{"$f":"[1]ACS_16_5YR_B19037_with_ann!DA$2","v":"Margin of Error Total: Householder 45 to 64 years years: $150"},{"$f":"[1]ACS_16_5YR_B19037_with_ann!DB$2","v":"Estimate  Householder 45 to 64 years years: - $200,000 or more"},{"$f":"[1]ACS_16_5YR_B19037_with_ann!DC$2","v":"Margin of Error Total: Householder 45 to 64 years years: $200"},{"$f":"[1]ACS_16_5YR_B19037_with_ann!DD$2","v":"Estimate  Householder 65 and over years:"},{"$f":"[1]ACS_16_5YR_B19037_with_ann!DE$2","v":"Margin of Error Total: Householder 65 and over years:"},{"$f":"[1]ACS_16_5YR_B19037_with_ann!DF$2","v":"Estimate  Householder 65 and over years: - Less than $10,000"},{"$f":"[1]ACS_16_5YR_B19037_with_ann!DG$2","v":"Margin of Error Total: Householder 65 and over years: Less than $10"},{"$f":"[1]ACS_16_5YR_B19037_with_ann!DH$2","v":"Estimate  Householder 65 and over years: - $10,000 to $14,999"},{"$f":"[1]ACS_16_5YR_B19037_with_ann!DI$2","v":"Margin of Error Total: Householder 65 and over years: $10"},{"$f":"[1]ACS_16_5YR_B19037_with_ann!DJ$2","v":"Estimate  Householder 65 and over years: - $15,000 to $19,999"},{"$f":"[1]ACS_16_5YR_B19037_with_ann!DK$2","v":"Margin of Error Total: Householder 65 and over years: $15"},{"$f":"[1]ACS_16_5YR_B19037_with_ann!DL$2","v":"Estimate  Householder 65 and over years: - $20,000 to $24,999"},{"$f":"[1]ACS_16_5YR_B19037_with_ann!DM$2","v":"Margin of Error Total: Householder 65 and over years: $20"},{"$f":"[1]ACS_16_5YR_B19037_with_ann!DN$2","v":"Estimate  Householder 65 and over years: - $25,000 to $29,999"},{"$f":"[1]ACS_16_5YR_B19037_with_ann!DO$2","v":"Margin of Error Total: Householder 65 and over years: $25"},{"$f":"[1]ACS_16_5YR_B19037_with_ann!DP$2","v":"Estimate  Householder 65 and over years: - $30,000 to $34,999"},{"$f":"[1]ACS_16_5YR_B19037_with_ann!DQ$2","v":"Margin of Error Total: Householder 65 and over years: $30"},{"$f":"[1]ACS_16_5YR_B19037_with_ann!DR$2","v":"Estimate  Householder 65 and over years: - $35,000 to $39,999"},{"$f":"[1]ACS_16_5YR_B19037_with_ann!DS$2","v":"Margin of Error Total: Householder 65 and over years: $35"},{"$f":"[1]ACS_16_5YR_B19037_with_ann!DT$2","v":"Estimate  Householder 65 and over years: - $40,000 to $44,999"},{"$f":"[1]ACS_16_5YR_B19037_with_ann!DU$2","v":"Margin of Error Total: Householder 65 and over years: $40"},{"$f":"[1]ACS_16_5YR_B19037_with_ann!DV$2","v":"Estimate  Householder 65 and over years: - $45,000 to $49,999"},{"$f":"[1]ACS_16_5YR_B19037_with_ann!DW$2","v":"Margin of Error Total: Householder 65 and over years: $45"},{"$f":"[1]ACS_16_5YR_B19037_with_ann!DX$2","v":"Estimate  Householder 65 and over years: - $50,000 to $59,999"},{"$f":"[1]ACS_16_5YR_B19037_with_ann!DY$2","v":"Margin of Error Total: Householder 65 and over years: $50"},{"$f":"[1]ACS_16_5YR_B19037_with_ann!DZ$2","v":"Estimate  Householder 65 and over years: - $60,000 to $74,999"},{"$f":"[1]ACS_16_5YR_B19037_with_ann!EA$2","v":"Margin of Error Total: Householder 65 and over years: $60"},{"$f":"[1]ACS_16_5YR_B19037_with_ann!EB$2","v":"Estimate  Householder 65 and over years: - $75,000 to $99,999"},{"$f":"[1]ACS_16_5YR_B19037_with_ann!EC$2","v":"Margin of Error Total: Householder 65 and over years: $75"},{"$f":"[1]ACS_16_5YR_B19037_with_ann!ED$2","v":"Estimate  Householder 65 and over years: - $100,000 to $124,999"},{"$f":"[1]ACS_16_5YR_B19037_with_ann!EE$2","v":"Margin of Error Total: Householder 65 and over years: $100"},{"$f":"[1]ACS_16_5YR_B19037_with_ann!EF$2","v":"Estimate  Householder 65 and over years: - $125,000 to $149,999"},{"$f":"[1]ACS_16_5YR_B19037_with_ann!EG$2","v":"Margin of Error Total: Householder 65 and over years: $125"},{"$f":"[1]ACS_16_5YR_B19037_with_ann!EH$2","v":"Estimate  Householder 65 and over years: - $150,000 to $199,999"},{"$f":"[1]ACS_16_5YR_B19037_with_ann!EI$2","v":"Margin of Error Total: Householder 65 and over years: $150"},{"$f":"[1]ACS_16_5YR_B19037_with_ann!EJ$2","v":"Estimate  Householder 65 and over years: - $200,000 or more"},{"$f":"[1]ACS_16_5YR_B19037_with_ann!EK$2","v":"Margin of Error Total: Householder 65 and over years: $200"}]
["0600000US3301900259",3301900259,"060","Acworth",{"$f":"[1]ACS_16_5YR_B19037_with_ann!D258","v":370},{"$f":"[1]ACS_16_5YR_B19037_with_ann!E258","v":51},{"$f":"[1]ACS_16_5YR_B19037_with_ann!F258","v":0},{"$f":"[1]ACS_16_5YR_B19037_with_ann!G258","v":11},{"$f":"[1]ACS_16_5YR_B19037_with_ann!H258","v":0},{"$f":"[1]ACS_16_5YR_B19037_with_ann!I258","v":11},{"$f":"[1]ACS_16_5YR_B19037_with_ann!J258","v":0},{"$f":"[1]ACS_16_5YR_B19037_with_ann!K258","v":11},{"$f":"[1]ACS_16_5YR_B19037_with_ann!L258","v":0},{"$f":"[1]ACS_16_5YR_B19037_with_ann!M258","v":11},{"$f":"[1]ACS_16_5YR_B19037_with_ann!N258","v":0},{"$f":"[1]ACS_16_5YR_B19037_with_ann!O258","v":11},{"$f":"[1]ACS_16_5YR_B19037_with_ann!P258","v":0},{"$f":"[1]ACS_16_5YR_B19037_with_ann!Q258","v":11},{"$f":"[1]ACS_16_5YR_B19037_with_ann!R258","v":0},{"$f":"[1]ACS_16_5YR_B19037_with_ann!S258","v":11},{"$f":"[1]ACS_16_5YR_B19037_with_ann!T258","v":0},{"$f":"[1]ACS_16_5YR_B19037_with_ann!U258","v":11},{"$f":"[1]ACS_16_5YR_B19037_with_ann!V258","v":0},{"$f":"[1]ACS_16_5YR_B19037_with_ann!W258","v":11},{"$f":"[1]ACS_16_5YR_B19037_with_ann!X258","v":0},{"$f":"[1]ACS_16_5YR_B19037_with_ann!Y258","v":11},{"$f":"[1]ACS_16_5YR_B19037_with_ann!Z258","v":0},{"$f":"[1]ACS_16_5YR_B19037_with_ann!AA258","v":11},{"$f":"[1]ACS_16_5YR_B19037_with_ann!AB258","v":0},{"$f":"[1]ACS_16_5YR_B19037_with_ann!AC258","v":11},{"$f":"[1]ACS_16_5YR_B19037_with_ann!AD258","v":0},{"$f":"[1]ACS_16_5YR_B19037_with_ann!AE258","v":11},{"$f":"[1]ACS_16_5YR_B19037_with_ann!AF258","v":0},{"$f":"[1]ACS_16_5YR_B19037_with_ann!AG258","v":11},{"$f":"[1]ACS_16_5YR_B19037_with_ann!AH258","v":0},{"$f":"[1]ACS_16_5YR_B19037_with_ann!AI258","v":11},{"$f":"[1]ACS_16_5YR_B19037_with_ann!AJ258","v":0},{"$f":"[1]ACS_16_5YR_B19037_with_ann!AK258","v":11},{"$f":"[1]ACS_16_5YR_B19037_with_ann!AL258","v":0},{"$f":"[1]ACS_16_5YR_B19037_with_ann!AM258","v":11},{"$f":"[1]ACS_16_5YR_B19037_with_ann!AN258","v":53},{"$f":"[1]ACS_16_5YR_B19037_with_ann!AO258","v":23},{"$f":"[1]ACS_16_5YR_B19037_with_ann!AP258","v":6},{"$f":"[1]ACS_16_5YR_B19037_with_ann!AQ258","v":10},{"$f":"[1]ACS_16_5YR_B19037_with_ann!AR258","v":0},{"$f":"[1]ACS_16_5YR_B19037_with_ann!AS258","v":11},{"$f":"[1]ACS_16_5YR_B19037_with_ann!AT258","v":0},{"$f":"[1]ACS_16_5YR_B19037_with_ann!AU258","v":11},{"$f":"[1]ACS_16_5YR_B19037_with_ann!AV258","v":0},{"$f":"[1]ACS_16_5YR_B19037_with_ann!AW258","v":11},{"$f":"[1]ACS_16_5YR_B19037_with_ann!AX258","v":0},{"$f":"[1]ACS_16_5YR_B19037_with_ann!AY258","v":11},{"$f":"[1]ACS_16_5YR_B19037_with_ann!AZ258","v":2},{"$f":"[1]ACS_16_5YR_B19037_with_ann!BA258","v":3},{"$f":"[1]ACS_16_5YR_B19037_with_ann!BB258","v":2},{"$f":"[1]ACS_16_5YR_B19037_with_ann!BC258","v":3},{"$f":"[1]ACS_16_5YR_B19037_with_ann!BD258","v":11},{"$f":"[1]ACS_16_5YR_B19037_with_ann!BE258","v":11},{"$f":"[1]ACS_16_5YR_B19037_with_ann!BF258","v":2},{"$f":"[1]ACS_16_5YR_B19037_with_ann!BG258","v":3},{"$f":"[1]ACS_16_5YR_B19037_with_ann!BH258","v":2},{"$f":"[1]ACS_16_5YR_B19037_with_ann!BI258","v":3},{"$f":"[1]ACS_16_5YR_B19037_with_ann!BJ258","v":9},{"$f":"[1]ACS_16_5YR_B19037_with_ann!BK258","v":8},{"$f":"[1]ACS_16_5YR_B19037_with_ann!BL258","v":5},{"$f":"[1]ACS_16_5YR_B19037_with_ann!BM258","v":6},{"$f":"[1]ACS_16_5YR_B19037_with_ann!BN258","v":2},{"$f":"[1]ACS_16_5YR_B19037_with_ann!BO258","v":3},{"$f":"[1]ACS_16_5YR_B19037_with_ann!BP258","v":7},{"$f":"[1]ACS_16_5YR_B19037_with_ann!BQ258","v":6},{"$f":"[1]ACS_16_5YR_B19037_with_ann!BR258","v":3},{"$f":"[1]ACS_16_5YR_B19037_with_ann!BS258","v":5},{"$f":"[1]ACS_16_5YR_B19037_with_ann!BT258","v":2},{"$f":"[1]ACS_16_5YR_B19037_with_ann!BU258","v":3},{"$f":"[1]ACS_16_5YR_B19037_with_ann!BV258","v":169},{"$f":"[1]ACS_16_5YR_B19037_with_ann!BW258","v":42},{"$f":"[1]ACS_16_5YR_B19037_with_ann!BX258","v":9},{"$f":"[1]ACS_16_5YR_B19037_with_ann!BY258","v":12},{"$f":"[1]ACS_16_5YR_B19037_with_ann!BZ258","v":2},{"$f":"[1]ACS_16_5YR_B19037_with_ann!CA258","v":3},{"$f":"[1]ACS_16_5YR_B19037_with_ann!CB258","v":3},{"$f":"[1]ACS_16_5YR_B19037_with_ann!CC258","v":4},{"$f":"[1]ACS_16_5YR_B19037_with_ann!CD258","v":0},{"$f":"[1]ACS_16_5YR_B19037_with_ann!CE258","v":11},{"$f":"[1]ACS_16_5YR_B19037_with_ann!CF258","v":8},{"$f":"[1]ACS_16_5YR_B19037_with_ann!CG258","v":10},{"$f":"[1]ACS_16_5YR_B19037_with_ann!CH258","v":0},{"$f":"[1]ACS_16_5YR_B19037_with_ann!CI258","v":11},{"$f":"[1]ACS_16_5YR_B19037_with_ann!CJ258","v":0},{"$f":"[1]ACS_16_5YR_B19037_with_ann!CK258","v":11},{"$f":"[1]ACS_16_5YR_B19037_with_ann!CL258","v":0},{"$f":"[1]ACS_16_5YR_B19037_with_ann!CM258","v":11},{"$f":"[1]ACS_16_5YR_B19037_with_ann!CN258","v":11},{"$f":"[1]ACS_16_5YR_B19037_with_ann!CO258","v":11},{"$f":"[1]ACS_16_5YR_B19037_with_ann!CP258","v":13},{"$f":"[1]ACS_16_5YR_B19037_with_ann!CQ258","v":13},{"$f":"[1]ACS_16_5YR_B19037_with_ann!CR258","v":20},{"$f":"[1]ACS_16_5YR_B19037_with_ann!CS258","v":18},{"$f":"[1]ACS_16_5YR_B19037_with_ann!CT258","v":36},{"$f":"[1]ACS_16_5YR_B19037_with_ann!CU258","v":27},{"$f":"[1]ACS_16_5YR_B19037_with_ann!CV258","v":23},{"$f":"[1]ACS_16_5YR_B19037_with_ann!CW258","v":16},{"$f":"[1]ACS_16_5YR_B19037_with_ann!CX259","v":35},{"$f":"[1]ACS_16_5YR_B19037_with_ann!CY259","v":35},{"$f":"[1]ACS_16_5YR_B19037_with_ann!CZ259","v":23},{"$f":"[1]ACS_16_5YR_B19037_with_ann!DA259","v":29},{"$f":"[1]ACS_16_5YR_B19037_with_ann!DB259","v":21},{"$f":"[1]ACS_16_5YR_B19037_with_ann!DC259","v":26},{"$f":"[1]ACS_16_5YR_B19037_with_ann!DD259","v":649},{"$f":"[1]ACS_16_5YR_B19037_with_ann!DE259","v":117},{"$f":"[1]ACS_16_5YR_B19037_with_ann!DF259","v":0},{"$f":"[1]ACS_16_5YR_B19037_with_ann!DG259","v":16},{"$f":"[1]ACS_16_5YR_B19037_with_ann!DH259","v":30},{"$f":"[1]ACS_16_5YR_B19037_with_ann!DI259","v":35},{"$f":"[1]ACS_16_5YR_B19037_with_ann!DJ259","v":122},{"$f":"[1]ACS_16_5YR_B19037_with_ann!DK259","v":86},{"$f":"[1]ACS_16_5YR_B19037_with_ann!DL259","v":15},{"$f":"[1]ACS_16_5YR_B19037_with_ann!DM259","v":24},{"$f":"[1]ACS_16_5YR_B19037_with_ann!DN259","v":67},{"$f":"[1]ACS_16_5YR_B19037_with_ann!DO259","v":68},{"$f":"[1]ACS_16_5YR_B19037_with_ann!DP259","v":13},{"$f":"[1]ACS_16_5YR_B19037_with_ann!DQ259","v":21},{"$f":"[1]ACS_16_5YR_B19037_with_ann!DR259","v":90},{"$f":"[1]ACS_16_5YR_B19037_with_ann!DS259","v":80},{"$f":"[1]ACS_16_5YR_B19037_with_ann!DT259","v":32},{"$f":"[1]ACS_16_5YR_B19037_with_ann!DU259","v":53},{"$f":"[1]ACS_16_5YR_B19037_with_ann!DV259","v":0},{"$f":"[1]ACS_16_5YR_B19037_with_ann!DW259","v":16},{"$f":"[1]ACS_16_5YR_B19037_with_ann!DX259","v":62},{"$f":"[1]ACS_16_5YR_B19037_with_ann!DY259","v":51},{"$f":"[1]ACS_16_5YR_B19037_with_ann!DZ259","v":110},{"$f":"[1]ACS_16_5YR_B19037_with_ann!EA259","v":68},{"$f":"[1]ACS_16_5YR_B19037_with_ann!EB259","v":62},{"$f":"[1]ACS_16_5YR_B19037_with_ann!EC259","v":51},{"$f":"[1]ACS_16_5YR_B19037_with_ann!ED259","v":0},{"$f":"[1]ACS_16_5YR_B19037_with_ann!EE259","v":16},{"$f":"[1]ACS_16_5YR_B19037_with_ann!EF259","v":0},{"$f":"[1]ACS_16_5YR_B19037_with_ann!EG259","v":16},{"$f":"[1]ACS_16_5YR_B19037_with_ann!EH259","v":0},{"$f":"[1]ACS_16_5YR_B19037_with_ann!EI259","v":16},{"$f":"[1]ACS_16_5YR_B19037_with_ann!EJ259","v":46},{"$f":"[1]ACS_16_5YR_B19037_with_ann!EK259","v":54}]
["0600000US3301911380",3301911380,"060","Charlestown",{"$f":"[1]ACS_16_5YR_B19037_with_ann!D259","v":2086},{"$f":"[1]ACS_16_5YR_B19037_with_ann!E259","v":184},{"$f":"[1]ACS_16_5YR_B19037_with_ann!F259","v":14},{"$f":"[1]ACS_16_5YR_B19037_with_ann!G259","v":19},{"$f":"[1]ACS_16_5YR_B19037_with_ann!H259","v":6},{"$f":"[1]ACS_16_5YR_B19037_with_ann!I259","v":9},{"$f":"[1]ACS_16_5YR_B19037_with_ann!J259","v":0},{"$f":"[1]ACS_16_5YR_B19037_with_ann!K259","v":16},{"$f":"[1]ACS_16_5YR_B19037_with_ann!L259","v":0},{"$f":"[1]ACS_16_5YR_B19037_with_ann!M259","v":16},{"$f":"[1]ACS_16_5YR_B19037_with_ann!N259","v":0},{"$f":"[1]ACS_16_5YR_B19037_with_ann!O259","v":16},{"$f":"[1]ACS_16_5YR_B19037_with_ann!P259","v":0},{"$f":"[1]ACS_16_5YR_B19037_with_ann!Q259","v":16},{"$f":"[1]ACS_16_5YR_B19037_with_ann!R259","v":8},{"$f":"[1]ACS_16_5YR_B19037_with_ann!S259","v":15},{"$f":"[1]ACS_16_5YR_B19037_with_ann!T259","v":0},{"$f":"[1]ACS_16_5YR_B19037_with_ann!U259","v":16},{"$f":"[1]ACS_16_5YR_B19037_with_ann!V259","v":0},{"$f":"[1]ACS_16_5YR_B19037_with_ann!W259","v":16},{"$f":"[1]ACS_16_5YR_B19037_with_ann!X259","v":0},{"$f":"[1]ACS_16_5YR_B19037_with_ann!Y259","v":16},{"$f":"[1]ACS_16_5YR_B19037_with_ann!Z259","v":0},{"$f":"[1]ACS_16_5YR_B19037_with_ann!AA259","v":16},{"$f":"[1]ACS_16_5YR_B19037_with_ann!AB259","v":0},{"$f":"[1]ACS_16_5YR_B19037_with_ann!AC259","v":16},{"$f":"[1]ACS_16_5YR_B19037_with_ann!AD259","v":0},{"$f":"[1]ACS_16_5YR_B19037_with_ann!AE259","v":16},{"$f":"[1]ACS_16_5YR_B19037_with_ann!AF259","v":0},{"$f":"[1]ACS_16_5YR_B19037_with_ann!AG259","v":16},{"$f":"[1]ACS_16_5YR_B19037_with_ann!AH259","v":0},{"$f":"[1]ACS_16_5YR_B19037_with_ann!AI259","v":16},{"$f":"[1]ACS_16_5YR_B19037_with_ann!AJ259","v":0},{"$f":"[1]ACS_16_5YR_B19037_with_ann!AK259","v":16},{"$f":"[1]ACS_16_5YR_B19037_with_ann!AL259","v":0},{"$f":"[1]ACS_16_5YR_B19037_with_ann!AM259","v":16},{"$f":"[1]ACS_16_5YR_B19037_with_ann!AN259","v":526},{"$f":"[1]ACS_16_5YR_B19037_with_ann!AO259","v":132},{"$f":"[1]ACS_16_5YR_B19037_with_ann!AP259","v":71},{"$f":"[1]ACS_16_5YR_B19037_with_ann!AQ259","v":71},{"$f":"[1]ACS_16_5YR_B19037_with_ann!AR259","v":0},{"$f":"[1]ACS_16_5YR_B19037_with_ann!AS259","v":16},{"$f":"[1]ACS_16_5YR_B19037_with_ann!AT259","v":29},{"$f":"[1]ACS_16_5YR_B19037_with_ann!AU259","v":47},{"$f":"[1]ACS_16_5YR_B19037_with_ann!AV259","v":0},{"$f":"[1]ACS_16_5YR_B19037_with_ann!AW259","v":16},{"$f":"[1]ACS_16_5YR_B19037_with_ann!AX259","v":32},{"$f":"[1]ACS_16_5YR_B19037_with_ann!AY259","v":53},{"$f":"[1]ACS_16_5YR_B19037_with_ann!AZ259","v":51},{"$f":"[1]ACS_16_5YR_B19037_with_ann!BA259","v":58},{"$f":"[1]ACS_16_5YR_B19037_with_ann!BB259","v":29},{"$f":"[1]ACS_16_5YR_B19037_with_ann!BC259","v":43},{"$f":"[1]ACS_16_5YR_B19037_with_ann!BD259","v":22},{"$f":"[1]ACS_16_5YR_B19037_with_ann!BE259","v":39},{"$f":"[1]ACS_16_5YR_B19037_with_ann!BF259","v":26},{"$f":"[1]ACS_16_5YR_B19037_with_ann!BG259","v":34},{"$f":"[1]ACS_16_5YR_B19037_with_ann!BH259","v":16},{"$f":"[1]ACS_16_5YR_B19037_with_ann!BI259","v":25},{"$f":"[1]ACS_16_5YR_B19037_with_ann!BJ259","v":0},{"$f":"[1]ACS_16_5YR_B19037_with_ann!BK259","v":16},{"$f":"[1]ACS_16_5YR_B19037_with_ann!BL259","v":153},{"$f":"[1]ACS_16_5YR_B19037_with_ann!BM259","v":99},{"$f":"[1]ACS_16_5YR_B19037_with_ann!BN259","v":38},{"$f":"[1]ACS_16_5YR_B19037_with_ann!BO259","v":47},{"$f":"[1]ACS_16_5YR_B19037_with_ann!BP259","v":36},{"$f":"[1]ACS_16_5YR_B19037_with_ann!BQ259","v":59},{"$f":"[1]ACS_16_5YR_B19037_with_ann!BR259","v":0},{"$f":"[1]ACS_16_5YR_B19037_with_ann!BS259","v":16},{"$f":"[1]ACS_16_5YR_B19037_with_ann!BT259","v":23},{"$f":"[1]ACS_16_5YR_B19037_with_ann!BU259","v":36},{"$f":"[1]ACS_16_5YR_B19037_with_ann!BV259","v":897},{"$f":"[1]ACS_16_5YR_B19037_with_ann!BW259","v":203},{"$f":"[1]ACS_16_5YR_B19037_with_ann!BX259","v":93},{"$f":"[1]ACS_16_5YR_B19037_with_ann!BY259","v":107},{"$f":"[1]ACS_16_5YR_B19037_with_ann!BZ259","v":0},{"$f":"[1]ACS_16_5YR_B19037_with_ann!CA259","v":16},{"$f":"[1]ACS_16_5YR_B19037_with_ann!CB259","v":27},{"$f":"[1]ACS_16_5YR_B19037_with_ann!CC259","v":35},{"$f":"[1]ACS_16_5YR_B19037_with_ann!CD259","v":58},{"$f":"[1]ACS_16_5YR_B19037_with_ann!CE259","v":72},{"$f":"[1]ACS_16_5YR_B19037_with_ann!CF259","v":85},{"$f":"[1]ACS_16_5YR_B19037_with_ann!CG259","v":65},{"$f":"[1]ACS_16_5YR_B19037_with_ann!CH259","v":45},{"$f":"[1]ACS_16_5YR_B19037_with_ann!CI259","v":67},{"$f":"[1]ACS_16_5YR_B19037_with_ann!CJ259","v":0},{"$f":"[1]ACS_16_5YR_B19037_with_ann!CK259","v":16},{"$f":"[1]ACS_16_5YR_B19037_with_ann!CL259","v":60},{"$f":"[1]ACS_16_5YR_B19037_with_ann!CM259","v":66},{"$f":"[1]ACS_16_5YR_B19037_with_ann!CN259","v":52},{"$f":"[1]ACS_16_5YR_B19037_with_ann!CO259","v":49},{"$f":"[1]ACS_16_5YR_B19037_with_ann!CP259","v":122},{"$f":"[1]ACS_16_5YR_B19037_with_ann!CQ259","v":100},{"$f":"[1]ACS_16_5YR_B19037_with_ann!CR259","v":58},{"$f":"[1]ACS_16_5YR_B19037_with_ann!CS259","v":58},{"$f":"[1]ACS_16_5YR_B19037_with_ann!CT259","v":198},{"$f":"[1]ACS_16_5YR_B19037_with_ann!CU259","v":110},{"$f":"[1]ACS_16_5YR_B19037_with_ann!CV259","v":20},{"$f":"[1]ACS_16_5YR_B19037_with_ann!CW259","v":28},{"$f":"[1]ACS_16_5YR_B19037_with_ann!CX260","v":68},{"$f":"[1]ACS_16_5YR_B19037_with_ann!CY260","v":46},{"$f":"[1]ACS_16_5YR_B19037_with_ann!CZ260","v":164},{"$f":"[1]ACS_16_5YR_B19037_with_ann!DA260","v":81},{"$f":"[1]ACS_16_5YR_B19037_with_ann!DB260","v":15},{"$f":"[1]ACS_16_5YR_B19037_with_ann!DC260","v":23},{"$f":"[1]ACS_16_5YR_B19037_with_ann!DD260","v":1408},{"$f":"[1]ACS_16_5YR_B19037_with_ann!DE260","v":194},{"$f":"[1]ACS_16_5YR_B19037_with_ann!DF260","v":11},{"$f":"[1]ACS_16_5YR_B19037_with_ann!DG260","v":18},{"$f":"[1]ACS_16_5YR_B19037_with_ann!DH260","v":117},{"$f":"[1]ACS_16_5YR_B19037_with_ann!DI260","v":59},{"$f":"[1]ACS_16_5YR_B19037_with_ann!DJ260","v":121},{"$f":"[1]ACS_16_5YR_B19037_with_ann!DK260","v":60},{"$f":"[1]ACS_16_5YR_B19037_with_ann!DL260","v":119},{"$f":"[1]ACS_16_5YR_B19037_with_ann!DM260","v":80},{"$f":"[1]ACS_16_5YR_B19037_with_ann!DN260","v":147},{"$f":"[1]ACS_16_5YR_B19037_with_ann!DO260","v":88},{"$f":"[1]ACS_16_5YR_B19037_with_ann!DP260","v":161},{"$f":"[1]ACS_16_5YR_B19037_with_ann!DQ260","v":92},{"$f":"[1]ACS_16_5YR_B19037_with_ann!DR260","v":67},{"$f":"[1]ACS_16_5YR_B19037_with_ann!DS260","v":45},{"$f":"[1]ACS_16_5YR_B19037_with_ann!DT260","v":68},{"$f":"[1]ACS_16_5YR_B19037_with_ann!DU260","v":45},{"$f":"[1]ACS_16_5YR_B19037_with_ann!DV260","v":178},{"$f":"[1]ACS_16_5YR_B19037_with_ann!DW260","v":90},{"$f":"[1]ACS_16_5YR_B19037_with_ann!DX260","v":126},{"$f":"[1]ACS_16_5YR_B19037_with_ann!DY260","v":62},{"$f":"[1]ACS_16_5YR_B19037_with_ann!DZ260","v":85},{"$f":"[1]ACS_16_5YR_B19037_with_ann!EA260","v":50},{"$f":"[1]ACS_16_5YR_B19037_with_ann!EB260","v":65},{"$f":"[1]ACS_16_5YR_B19037_with_ann!EC260","v":46},{"$f":"[1]ACS_16_5YR_B19037_with_ann!ED260","v":77},{"$f":"[1]ACS_16_5YR_B19037_with_ann!EE260","v":47},{"$f":"[1]ACS_16_5YR_B19037_with_ann!EF260","v":0},{"$f":"[1]ACS_16_5YR_B19037_with_ann!EG260","v":18},{"$f":"[1]ACS_16_5YR_B19037_with_ann!EH260","v":41},{"$f":"[1]ACS_16_5YR_B19037_with_ann!EI260","v":43},{"$f":"[1]ACS_16_5YR_B19037_with_ann!EJ260","v":25},{"$f":"[1]ACS_16_5YR_B19037_with_ann!EK260","v":30}]
["0600000US3301912900",3301912900,"060","Claremont",{"$f":"[1]ACS_16_5YR_B19037_with_ann!D260","v":5231},{"$f":"[1]ACS_16_5YR_B19037_with_ann!E260","v":284},{"$f":"[1]ACS_16_5YR_B19037_with_ann!F260","v":227},{"$f":"[1]ACS_16_5YR_B19037_with_ann!G260","v":118},{"$f":"[1]ACS_16_5YR_B19037_with_ann!H260","v":21},{"$f":"[1]ACS_16_5YR_B19037_with_ann!I260","v":34},{"$f":"[1]ACS_16_5YR_B19037_with_ann!J260","v":0},{"$f":"[1]ACS_16_5YR_B19037_with_ann!K260","v":18},{"$f":"[1]ACS_16_5YR_B19037_with_ann!L260","v":5},{"$f":"[1]ACS_16_5YR_B19037_with_ann!M260","v":8},{"$f":"[1]ACS_16_5YR_B19037_with_ann!N260","v":46},{"$f":"[1]ACS_16_5YR_B19037_with_ann!O260","v":50},{"$f":"[1]ACS_16_5YR_B19037_with_ann!P260","v":9},{"$f":"[1]ACS_16_5YR_B19037_with_ann!Q260","v":14},{"$f":"[1]ACS_16_5YR_B19037_with_ann!R260","v":0},{"$f":"[1]ACS_16_5YR_B19037_with_ann!S260","v":18},{"$f":"[1]ACS_16_5YR_B19037_with_ann!T260","v":0},{"$f":"[1]ACS_16_5YR_B19037_with_ann!U260","v":18},{"$f":"[1]ACS_16_5YR_B19037_with_ann!V260","v":22},{"$f":"[1]ACS_16_5YR_B19037_with_ann!W260","v":27},{"$f":"[1]ACS_16_5YR_B19037_with_ann!X260","v":18},{"$f":"[1]ACS_16_5YR_B19037_with_ann!Y260","v":30},{"$f":"[1]ACS_16_5YR_B19037_with_ann!Z260","v":12},{"$f":"[1]ACS_16_5YR_B19037_with_ann!AA260","v":20},{"$f":"[1]ACS_16_5YR_B19037_with_ann!AB260","v":9},{"$f":"[1]ACS_16_5YR_B19037_with_ann!AC260","v":14},{"$f":"[1]ACS_16_5YR_B19037_with_ann!AD260","v":85},{"$f":"[1]ACS_16_5YR_B19037_with_ann!AE260","v":74},{"$f":"[1]ACS_16_5YR_B19037_with_ann!AF260","v":0},{"$f":"[1]ACS_16_5YR_B19037_with_ann!AG260","v":18},{"$f":"[1]ACS_16_5YR_B19037_with_ann!AH260","v":0},{"$f":"[1]ACS_16_5YR_B19037_with_ann!AI260","v":18},{"$f":"[1]ACS_16_5YR_B19037_with_ann!AJ260","v":0},{"$f":"[1]ACS_16_5YR_B19037_with_ann!AK260","v":18},{"$f":"[1]ACS_16_5YR_B19037_with_ann!AL260","v":0},{"$f":"[1]ACS_16_5YR_B19037_with_ann!AM260","v":18},{"$f":"[1]ACS_16_5YR_B19037_with_ann!AN260","v":1585},{"$f":"[1]ACS_16_5YR_B19037_with_ann!AO260","v":199},{"$f":"[1]ACS_16_5YR_B19037_with_ann!AP260","v":67},{"$f":"[1]ACS_16_5YR_B19037_with_ann!AQ260","v":56},{"$f":"[1]ACS_16_5YR_B19037_with_ann!AR260","v":56},{"$f":"[1]ACS_16_5YR_B19037_with_ann!AS260","v":46},{"$f":"[1]ACS_16_5YR_B19037_with_ann!AT260","v":0},{"$f":"[1]ACS_16_5YR_B19037_with_ann!AU260","v":18},{"$f":"[1]ACS_16_5YR_B19037_with_ann!AV260","v":122},{"$f":"[1]ACS_16_5YR_B19037_with_ann!AW260","v":90},{"$f":"[1]ACS_16_5YR_B19037_with_ann!AX260","v":126},{"$f":"[1]ACS_16_5YR_B19037_with_ann!AY260","v":84},{"$f":"[1]ACS_16_5YR_B19037_with_ann!AZ260","v":21},{"$f":"[1]ACS_16_5YR_B19037_with_ann!BA260","v":33},{"$f":"[1]ACS_16_5YR_B19037_with_ann!BB260","v":0},{"$f":"[1]ACS_16_5YR_B19037_with_ann!BC260","v":18},{"$f":"[1]ACS_16_5YR_B19037_with_ann!BD260","v":178},{"$f":"[1]ACS_16_5YR_B19037_with_ann!BE260","v":108},{"$f":"[1]ACS_16_5YR_B19037_with_ann!BF260","v":51},{"$f":"[1]ACS_16_5YR_B19037_with_ann!BG260","v":43},{"$f":"[1]ACS_16_5YR_B19037_with_ann!BH260","v":109},{"$f":"[1]ACS_16_5YR_B19037_with_ann!BI260","v":71},{"$f":"[1]ACS_16_5YR_B19037_with_ann!BJ260","v":185},{"$f":"[1]ACS_16_5YR_B19037_with_ann!BK260","v":105},{"$f":"[1]ACS_16_5YR_B19037_with_ann!BL260","v":375},{"$f":"[1]ACS_16_5YR_B19037_with_ann!BM260","v":113},{"$f":"[1]ACS_16_5YR_B19037_with_ann!BN260","v":112},{"$f":"[1]ACS_16_5YR_B19037_with_ann!BO260","v":67},{"$f":"[1]ACS_16_5YR_B19037_with_ann!BP260","v":104},{"$f":"[1]ACS_16_5YR_B19037_with_ann!BQ260","v":64},{"$f":"[1]ACS_16_5YR_B19037_with_ann!BR260","v":33},{"$f":"[1]ACS_16_5YR_B19037_with_ann!BS260","v":50},{"$f":"[1]ACS_16_5YR_B19037_with_ann!BT260","v":46},{"$f":"[1]ACS_16_5YR_B19037_with_ann!BU260","v":35},{"$f":"[1]ACS_16_5YR_B19037_with_ann!BV260","v":2011},{"$f":"[1]ACS_16_5YR_B19037_with_ann!BW260","v":231},{"$f":"[1]ACS_16_5YR_B19037_with_ann!BX260","v":212},{"$f":"[1]ACS_16_5YR_B19037_with_ann!BY260","v":118},{"$f":"[1]ACS_16_5YR_B19037_with_ann!BZ260","v":72},{"$f":"[1]ACS_16_5YR_B19037_with_ann!CA260","v":64},{"$f":"[1]ACS_16_5YR_B19037_with_ann!CB260","v":173},{"$f":"[1]ACS_16_5YR_B19037_with_ann!CC260","v":97},{"$f":"[1]ACS_16_5YR_B19037_with_ann!CD260","v":123},{"$f":"[1]ACS_16_5YR_B19037_with_ann!CE260","v":101},{"$f":"[1]ACS_16_5YR_B19037_with_ann!CF260","v":44},{"$f":"[1]ACS_16_5YR_B19037_with_ann!CG260","v":40},{"$f":"[1]ACS_16_5YR_B19037_with_ann!CH260","v":176},{"$f":"[1]ACS_16_5YR_B19037_with_ann!CI260","v":82},{"$f":"[1]ACS_16_5YR_B19037_with_ann!CJ260","v":58},{"$f":"[1]ACS_16_5YR_B19037_with_ann!CK260","v":43},{"$f":"[1]ACS_16_5YR_B19037_with_ann!CL260","v":89},{"$f":"[1]ACS_16_5YR_B19037_with_ann!CM260","v":59},{"$f":"[1]ACS_16_5YR_B19037_with_ann!CN260","v":40},{"$f":"[1]ACS_16_5YR_B19037_with_ann!CO260","v":37},{"$f":"[1]ACS_16_5YR_B19037_with_ann!CP260","v":190},{"$f":"[1]ACS_16_5YR_B19037_with_ann!CQ260","v":86},{"$f":"[1]ACS_16_5YR_B19037_with_ann!CR260","v":127},{"$f":"[1]ACS_16_5YR_B19037_with_ann!CS260","v":61},{"$f":"[1]ACS_16_5YR_B19037_with_ann!CT260","v":338},{"$f":"[1]ACS_16_5YR_B19037_with_ann!CU260","v":130},{"$f":"[1]ACS_16_5YR_B19037_with_ann!CV260","v":122},{"$f":"[1]ACS_16_5YR_B19037_with_ann!CW260","v":78},{"$f":"[1]ACS_16_5YR_B19037_with_ann!CX262","v":9},{"$f":"[1]ACS_16_5YR_B19037_with_ann!CY262","v":11},{"$f":"[1]ACS_16_5YR_B19037_with_ann!CZ262","v":21},{"$f":"[1]ACS_16_5YR_B19037_with_ann!DA262","v":20},{"$f":"[1]ACS_16_5YR_B19037_with_ann!DB262","v":11},{"$f":"[1]ACS_16_5YR_B19037_with_ann!DC262","v":10},{"$f":"[1]ACS_16_5YR_B19037_with_ann!DD262","v":82},{"$f":"[1]ACS_16_5YR_B19037_with_ann!DE262","v":30},{"$f":"[1]ACS_16_5YR_B19037_with_ann!DF262","v":2},{"$f":"[1]ACS_16_5YR_B19037_with_ann!DG262","v":4},{"$f":"[1]ACS_16_5YR_B19037_with_ann!DH262","v":4},{"$f":"[1]ACS_16_5YR_B19037_with_ann!DI262","v":4},{"$f":"[1]ACS_16_5YR_B19037_with_ann!DJ262","v":3},{"$f":"[1]ACS_16_5YR_B19037_with_ann!DK262","v":5},{"$f":"[1]ACS_16_5YR_B19037_with_ann!DL262","v":10},{"$f":"[1]ACS_16_5YR_B19037_with_ann!DM262","v":8},{"$f":"[1]ACS_16_5YR_B19037_with_ann!DN262","v":5},{"$f":"[1]ACS_16_5YR_B19037_with_ann!DO262","v":5},{"$f":"[1]ACS_16_5YR_B19037_with_ann!DP262","v":6},{"$f":"[1]ACS_16_5YR_B19037_with_ann!DQ262","v":7},{"$f":"[1]ACS_16_5YR_B19037_with_ann!DR262","v":8},{"$f":"[1]ACS_16_5YR_B19037_with_ann!DS262","v":8},{"$f":"[1]ACS_16_5YR_B19037_with_ann!DT262","v":4},{"$f":"[1]ACS_16_5YR_B19037_with_ann!DU262","v":4},{"$f":"[1]ACS_16_5YR_B19037_with_ann!DV262","v":2},{"$f":"[1]ACS_16_5YR_B19037_with_ann!DW262","v":3},{"$f":"[1]ACS_16_5YR_B19037_with_ann!DX262","v":4},{"$f":"[1]ACS_16_5YR_B19037_with_ann!DY262","v":5},{"$f":"[1]ACS_16_5YR_B19037_with_ann!DZ262","v":9},{"$f":"[1]ACS_16_5YR_B19037_with_ann!EA262","v":7},{"$f":"[1]ACS_16_5YR_B19037_with_ann!EB262","v":11},{"$f":"[1]ACS_16_5YR_B19037_with_ann!EC262","v":12},{"$f":"[1]ACS_16_5YR_B19037_with_ann!ED262","v":6},{"$f":"[1]ACS_16_5YR_B19037_with_ann!EE262","v":6},{"$f":"[1]ACS_16_5YR_B19037_with_ann!EF262","v":7},{"$f":"[1]ACS_16_5YR_B19037_with_ann!EG262","v":12},{"$f":"[1]ACS_16_5YR_B19037_with_ann!EH262","v":0},{"$f":"[1]ACS_16_5YR_B19037_with_ann!EI262","v":11},{"$f":"[1]ACS_16_5YR_B19037_with_ann!EJ262","v":1},{"$f":"[1]ACS_16_5YR_B19037_with_ann!EK262","v":3}]
["0600000US3301915060",3301915060,"060","Cornish",{"$f":"[1]ACS_16_5YR_B19037_with_ann!D261","v":741},{"$f":"[1]ACS_16_5YR_B19037_with_ann!E261","v":81},{"$f":"[1]ACS_16_5YR_B19037_with_ann!F261","v":0},{"$f":"[1]ACS_16_5YR_B19037_with_ann!G261","v":11},{"$f":"[1]ACS_16_5YR_B19037_with_ann!H261","v":0},{"$f":"[1]ACS_16_5YR_B19037_with_ann!I261","v":11},{"$f":"[1]ACS_16_5YR_B19037_with_ann!J261","v":0},{"$f":"[1]ACS_16_5YR_B19037_with_ann!K261","v":11},{"$f":"[1]ACS_16_5YR_B19037_with_ann!L261","v":0},{"$f":"[1]ACS_16_5YR_B19037_with_ann!M261","v":11},{"$f":"[1]ACS_16_5YR_B19037_with_ann!N261","v":0},{"$f":"[1]ACS_16_5YR_B19037_with_ann!O261","v":11},{"$f":"[1]ACS_16_5YR_B19037_with_ann!P261","v":0},{"$f":"[1]ACS_16_5YR_B19037_with_ann!Q261","v":11},{"$f":"[1]ACS_16_5YR_B19037_with_ann!R261","v":0},{"$f":"[1]ACS_16_5YR_B19037_with_ann!S261","v":11},{"$f":"[1]ACS_16_5YR_B19037_with_ann!T261","v":0},{"$f":"[1]ACS_16_5YR_B19037_with_ann!U261","v":11},{"$f":"[1]ACS_16_5YR_B19037_with_ann!V261","v":0},{"$f":"[1]ACS_16_5YR_B19037_with_ann!W261","v":11},{"$f":"[1]ACS_16_5YR_B19037_with_ann!X261","v":0},{"$f":"[1]ACS_16_5YR_B19037_with_ann!Y261","v":11},{"$f":"[1]ACS_16_5YR_B19037_with_ann!Z261","v":0},{"$f":"[1]ACS_16_5YR_B19037_with_ann!AA261","v":11},{"$f":"[1]ACS_16_5YR_B19037_with_ann!AB261","v":0},{"$f":"[1]ACS_16_5YR_B19037_with_ann!AC261","v":11},{"$f":"[1]ACS_16_5YR_B19037_with_ann!AD261","v":0},{"$f":"[1]ACS_16_5YR_B19037_with_ann!AE261","v":11},{"$f":"[1]ACS_16_5YR_B19037_with_ann!AF261","v":0},{"$f":"[1]ACS_16_5YR_B19037_with_ann!AG261","v":11},{"$f":"[1]ACS_16_5YR_B19037_with_ann!AH261","v":0},{"$f":"[1]ACS_16_5YR_B19037_with_ann!AI261","v":11},{"$f":"[1]ACS_16_5YR_B19037_with_ann!AJ261","v":0},{"$f":"[1]ACS_16_5YR_B19037_with_ann!AK261","v":11},{"$f":"[1]ACS_16_5YR_B19037_with_ann!AL261","v":0},{"$f":"[1]ACS_16_5YR_B19037_with_ann!AM261","v":11},{"$f":"[1]ACS_16_5YR_B19037_with_ann!AN261","v":96},{"$f":"[1]ACS_16_5YR_B19037_with_ann!AO261","v":34},{"$f":"[1]ACS_16_5YR_B19037_with_ann!AP261","v":7},{"$f":"[1]ACS_16_5YR_B19037_with_ann!AQ261","v":9},{"$f":"[1]ACS_16_5YR_B19037_with_ann!AR261","v":0},{"$f":"[1]ACS_16_5YR_B19037_with_ann!AS261","v":11},{"$f":"[1]ACS_16_5YR_B19037_with_ann!AT261","v":0},{"$f":"[1]ACS_16_5YR_B19037_with_ann!AU261","v":11},{"$f":"[1]ACS_16_5YR_B19037_with_ann!AV261","v":0},{"$f":"[1]ACS_16_5YR_B19037_with_ann!AW261","v":11},{"$f":"[1]ACS_16_5YR_B19037_with_ann!AX261","v":8},{"$f":"[1]ACS_16_5YR_B19037_with_ann!AY261","v":13},{"$f":"[1]ACS_16_5YR_B19037_with_ann!AZ261","v":0},{"$f":"[1]ACS_16_5YR_B19037_with_ann!BA261","v":11},{"$f":"[1]ACS_16_5YR_B19037_with_ann!BB261","v":4},{"$f":"[1]ACS_16_5YR_B19037_with_ann!BC261","v":6},{"$f":"[1]ACS_16_5YR_B19037_with_ann!BD261","v":0},{"$f":"[1]ACS_16_5YR_B19037_with_ann!BE261","v":11},{"$f":"[1]ACS_16_5YR_B19037_with_ann!BF262","v":2},{"$f":"[1]ACS_16_5YR_B19037_with_ann!BG262","v":4},{"$f":"[1]ACS_16_5YR_B19037_with_ann!BH262","v":2},{"$f":"[1]ACS_16_5YR_B19037_with_ann!BI262","v":5},{"$f":"[1]ACS_16_5YR_B19037_with_ann!BJ262","v":7},{"$f":"[1]ACS_16_5YR_B19037_with_ann!BK262","v":11},{"$f":"[1]ACS_16_5YR_B19037_with_ann!BL262","v":12},{"$f":"[1]ACS_16_5YR_B19037_with_ann!BM262","v":10},{"$f":"[1]ACS_16_5YR_B19037_with_ann!BN262","v":10},{"$f":"[1]ACS_16_5YR_B19037_with_ann!BO262","v":8},{"$f":"[1]ACS_16_5YR_B19037_with_ann!BP262","v":10},{"$f":"[1]ACS_16_5YR_B19037_with_ann!BQ262","v":12},{"$f":"[1]ACS_16_5YR_B19037_with_ann!BR262","v":4},{"$f":"[1]ACS_16_5YR_B19037_with_ann!BS262","v":6},{"$f":"[1]ACS_16_5YR_B19037_with_ann!BT262","v":0},{"$f":"[1]ACS_16_5YR_B19037_with_ann!BU262","v":11},{"$f":"[1]ACS_16_5YR_B19037_with_ann!BV262","v":153},{"$f":"[1]ACS_16_5YR_B19037_with_ann!BW262","v":52},{"$f":"[1]ACS_16_5YR_B19037_with_ann!BX262","v":12},{"$f":"[1]ACS_16_5YR_B19037_with_ann!BY262","v":15},{"$f":"[1]ACS_16_5YR_B19037_with_ann!BZ262","v":8},{"$f":"[1]ACS_16_5YR_B19037_with_ann!CA262","v":12},{"$f":"[1]ACS_16_5YR_B19037_with_ann!CB262","v":3},{"$f":"[1]ACS_16_5YR_B19037_with_ann!CC262","v":4},{"$f":"[1]ACS_16_5YR_B19037_with_ann!CD262","v":0},{"$f":"[1]ACS_16_5YR_B19037_with_ann!CE262","v":11},{"$f":"[1]ACS_16_5YR_B19037_with_ann!CF262","v":2},{"$f":"[1]ACS_16_5YR_B19037_with_ann!CG262","v":4},{"$f":"[1]ACS_16_5YR_B19037_with_ann!CH262","v":3},{"$f":"[1]ACS_16_5YR_B19037_with_ann!CI262","v":4},{"$f":"[1]ACS_16_5YR_B19037_with_ann!CJ262","v":0},{"$f":"[1]ACS_16_5YR_B19037_with_ann!CK262","v":11},{"$f":"[1]ACS_16_5YR_B19037_with_ann!CL262","v":0},{"$f":"[1]ACS_16_5YR_B19037_with_ann!CM262","v":11},{"$f":"[1]ACS_16_5YR_B19037_with_ann!CN262","v":14},{"$f":"[1]ACS_16_5YR_B19037_with_ann!CO262","v":14},{"$f":"[1]ACS_16_5YR_B19037_with_ann!CP262","v":15},{"$f":"[1]ACS_16_5YR_B19037_with_ann!CQ262","v":13},{"$f":"[1]ACS_16_5YR_B19037_with_ann!CR262","v":8},{"$f":"[1]ACS_16_5YR_B19037_with_ann!CS262","v":8},{"$f":"[1]ACS_16_5YR_B19037_with_ann!CT262","v":25},{"$f":"[1]ACS_16_5YR_B19037_with_ann!CU262","v":18},{"$f":"[1]ACS_16_5YR_B19037_with_ann!CV262","v":22},{"$f":"[1]ACS_16_5YR_B19037_with_ann!CW262","v":18},{"$f":"[1]ACS_16_5YR_B19037_with_ann!CX263","v":16},{"$f":"[1]ACS_16_5YR_B19037_with_ann!CY263","v":15},{"$f":"[1]ACS_16_5YR_B19037_with_ann!CZ263","v":6},{"$f":"[1]ACS_16_5YR_B19037_with_ann!DA263","v":9},{"$f":"[1]ACS_16_5YR_B19037_with_ann!DB263","v":0},{"$f":"[1]ACS_16_5YR_B19037_with_ann!DC263","v":11},{"$f":"[1]ACS_16_5YR_B19037_with_ann!DD263","v":88},{"$f":"[1]ACS_16_5YR_B19037_with_ann!DE263","v":25},{"$f":"[1]ACS_16_5YR_B19037_with_ann!DF263","v":11},{"$f":"[1]ACS_16_5YR_B19037_with_ann!DG263","v":10},{"$f":"[1]ACS_16_5YR_B19037_with_ann!DH263","v":0},{"$f":"[1]ACS_16_5YR_B19037_with_ann!DI263","v":11},{"$f":"[1]ACS_16_5YR_B19037_with_ann!DJ263","v":3},{"$f":"[1]ACS_16_5YR_B19037_with_ann!DK263","v":4},{"$f":"[1]ACS_16_5YR_B19037_with_ann!DL263","v":6},{"$f":"[1]ACS_16_5YR_B19037_with_ann!DM263","v":5},{"$f":"[1]ACS_16_5YR_B19037_with_ann!DN263","v":5},{"$f":"[1]ACS_16_5YR_B19037_with_ann!DO263","v":8},{"$f":"[1]ACS_16_5YR_B19037_with_ann!DP263","v":5},{"$f":"[1]ACS_16_5YR_B19037_with_ann!DQ263","v":8},{"$f":"[1]ACS_16_5YR_B19037_with_ann!DR263","v":11},{"$f":"[1]ACS_16_5YR_B19037_with_ann!DS263","v":11},{"$f":"[1]ACS_16_5YR_B19037_with_ann!DT263","v":3},{"$f":"[1]ACS_16_5YR_B19037_with_ann!DU263","v":6},{"$f":"[1]ACS_16_5YR_B19037_with_ann!DV263","v":8},{"$f":"[1]ACS_16_5YR_B19037_with_ann!DW263","v":6},{"$f":"[1]ACS_16_5YR_B19037_with_ann!DX263","v":4},{"$f":"[1]ACS_16_5YR_B19037_with_ann!DY263","v":4},{"$f":"[1]ACS_16_5YR_B19037_with_ann!DZ263","v":9},{"$f":"[1]ACS_16_5YR_B19037_with_ann!EA263","v":7},{"$f":"[1]ACS_16_5YR_B19037_with_ann!EB263","v":13},{"$f":"[1]ACS_16_5YR_B19037_with_ann!EC263","v":11},{"$f":"[1]ACS_16_5YR_B19037_with_ann!ED263","v":2},{"$f":"[1]ACS_16_5YR_B19037_with_ann!EE263","v":3},{"$f":"[1]ACS_16_5YR_B19037_with_ann!EF263","v":6},{"$f":"[1]ACS_16_5YR_B19037_with_ann!EG263","v":10},{"$f":"[1]ACS_16_5YR_B19037_with_ann!EH263","v":0},{"$f":"[1]ACS_16_5YR_B19037_with_ann!EI263","v":11},{"$f":"[1]ACS_16_5YR_B19037_with_ann!EJ263","v":2},{"$f":"[1]ACS_16_5YR_B19037_with_ann!EK263","v":4}]
["0600000US3301916340",3301916340,"060","Croydon",{"$f":"[1]ACS_16_5YR_B19037_with_ann!D262","v":293},{"$f":"[1]ACS_16_5YR_B19037_with_ann!E262","v":56},{"$f":"[1]ACS_16_5YR_B19037_with_ann!F262","v":8},{"$f":"[1]ACS_16_5YR_B19037_with_ann!G262","v":9},{"$f":"[1]ACS_16_5YR_B19037_with_ann!H262","v":0},{"$f":"[1]ACS_16_5YR_B19037_with_ann!I262","v":11},{"$f":"[1]ACS_16_5YR_B19037_with_ann!J262","v":0},{"$f":"[1]ACS_16_5YR_B19037_with_ann!K262","v":11},{"$f":"[1]ACS_16_5YR_B19037_with_ann!L262","v":0},{"$f":"[1]ACS_16_5YR_B19037_with_ann!M262","v":11},{"$f":"[1]ACS_16_5YR_B19037_with_ann!N262","v":0},{"$f":"[1]ACS_16_5YR_B19037_with_ann!O262","v":11},{"$f":"[1]ACS_16_5YR_B19037_with_ann!P262","v":0},{"$f":"[1]ACS_16_5YR_B19037_with_ann!Q262","v":11},{"$f":"[1]ACS_16_5YR_B19037_with_ann!R262","v":2},{"$f":"[1]ACS_16_5YR_B19037_with_ann!S262","v":4},{"$f":"[1]ACS_16_5YR_B19037_with_ann!T262","v":0},{"$f":"[1]ACS_16_5YR_B19037_with_ann!U262","v":11},{"$f":"[1]ACS_16_5YR_B19037_with_ann!V262","v":0},{"$f":"[1]ACS_16_5YR_B19037_with_ann!W262","v":11},{"$f":"[1]ACS_16_5YR_B19037_with_ann!X262","v":0},{"$f":"[1]ACS_16_5YR_B19037_with_ann!Y262","v":11},{"$f":"[1]ACS_16_5YR_B19037_with_ann!Z262","v":0},{"$f":"[1]ACS_16_5YR_B19037_with_ann!AA262","v":11},{"$f":"[1]ACS_16_5YR_B19037_with_ann!AB262","v":6},{"$f":"[1]ACS_16_5YR_B19037_with_ann!AC262","v":9},{"$f":"[1]ACS_16_5YR_B19037_with_ann!AD262","v":0},{"$f":"[1]ACS_16_5YR_B19037_with_ann!AE262","v":11},{"$f":"[1]ACS_16_5YR_B19037_with_ann!AF262","v":0},{"$f":"[1]ACS_16_5YR_B19037_with_ann!AG262","v":11},{"$f":"[1]ACS_16_5YR_B19037_with_ann!AH262","v":0},{"$f":"[1]ACS_16_5YR_B19037_with_ann!AI262","v":11},{"$f":"[1]ACS_16_5YR_B19037_with_ann!AJ262","v":0},{"$f":"[1]ACS_16_5YR_B19037_with_ann!AK262","v":11},{"$f":"[1]ACS_16_5YR_B19037_with_ann!AL262","v":0},{"$f":"[1]ACS_16_5YR_B19037_with_ann!AM262","v":11},{"$f":"[1]ACS_16_5YR_B19037_with_ann!AN262","v":50},{"$f":"[1]ACS_16_5YR_B19037_with_ann!AO262","v":21},{"$f":"[1]ACS_16_5YR_B19037_with_ann!AP262","v":0},{"$f":"[1]ACS_16_5YR_B19037_with_ann!AQ262","v":11},{"$f":"[1]ACS_16_5YR_B19037_with_ann!AR262","v":0},{"$f":"[1]ACS_16_5YR_B19037_with_ann!AS262","v":11},{"$f":"[1]ACS_16_5YR_B19037_with_ann!AT262","v":0},{"$f":"[1]ACS_16_5YR_B19037_with_ann!AU262","v":11},{"$f":"[1]ACS_16_5YR_B19037_with_ann!AV262","v":0},{"$f":"[1]ACS_16_5YR_B19037_with_ann!AW262","v":11},{"$f":"[1]ACS_16_5YR_B19037_with_ann!AX262","v":3},{"$f":"[1]ACS_16_5YR_B19037_with_ann!AY262","v":5},{"$f":"[1]ACS_16_5YR_B19037_with_ann!AZ262","v":0},{"$f":"[1]ACS_16_5YR_B19037_with_ann!BA262","v":11},{"$f":"[1]ACS_16_5YR_B19037_with_ann!BB262","v":0},{"$f":"[1]ACS_16_5YR_B19037_with_ann!BC262","v":11},{"$f":"[1]ACS_16_5YR_B19037_with_ann!BD262","v":0},{"$f":"[1]ACS_16_5YR_B19037_with_ann!BE262","v":11},{"$f":"[1]ACS_16_5YR_B19037_with_ann!BF263","v":8},{"$f":"[1]ACS_16_5YR_B19037_with_ann!BG263","v":12},{"$f":"[1]ACS_16_5YR_B19037_with_ann!BH263","v":26},{"$f":"[1]ACS_16_5YR_B19037_with_ann!BI263","v":19},{"$f":"[1]ACS_16_5YR_B19037_with_ann!BJ263","v":5},{"$f":"[1]ACS_16_5YR_B19037_with_ann!BK263","v":5},{"$f":"[1]ACS_16_5YR_B19037_with_ann!BL263","v":19},{"$f":"[1]ACS_16_5YR_B19037_with_ann!BM263","v":13},{"$f":"[1]ACS_16_5YR_B19037_with_ann!BN263","v":4},{"$f":"[1]ACS_16_5YR_B19037_with_ann!BO263","v":5},{"$f":"[1]ACS_16_5YR_B19037_with_ann!BP263","v":3},{"$f":"[1]ACS_16_5YR_B19037_with_ann!BQ263","v":4},{"$f":"[1]ACS_16_5YR_B19037_with_ann!BR263","v":6},{"$f":"[1]ACS_16_5YR_B19037_with_ann!BS263","v":7},{"$f":"[1]ACS_16_5YR_B19037_with_ann!BT263","v":0},{"$f":"[1]ACS_16_5YR_B19037_with_ann!BU263","v":11},{"$f":"[1]ACS_16_5YR_B19037_with_ann!BV263","v":99},{"$f":"[1]ACS_16_5YR_B19037_with_ann!BW263","v":33},{"$f":"[1]ACS_16_5YR_B19037_with_ann!BX263","v":0},{"$f":"[1]ACS_16_5YR_B19037_with_ann!BY263","v":11},{"$f":"[1]ACS_16_5YR_B19037_with_ann!BZ263","v":8},{"$f":"[1]ACS_16_5YR_B19037_with_ann!CA263","v":10},{"$f":"[1]ACS_16_5YR_B19037_with_ann!CB263","v":3},{"$f":"[1]ACS_16_5YR_B19037_with_ann!CC263","v":4},{"$f":"[1]ACS_16_5YR_B19037_with_ann!CD263","v":3},{"$f":"[1]ACS_16_5YR_B19037_with_ann!CE263","v":7},{"$f":"[1]ACS_16_5YR_B19037_with_ann!CF263","v":0},{"$f":"[1]ACS_16_5YR_B19037_with_ann!CG263","v":11},{"$f":"[1]ACS_16_5YR_B19037_with_ann!CH263","v":3},{"$f":"[1]ACS_16_5YR_B19037_with_ann!CI263","v":4},{"$f":"[1]ACS_16_5YR_B19037_with_ann!CJ263","v":4},{"$f":"[1]ACS_16_5YR_B19037_with_ann!CK263","v":5},{"$f":"[1]ACS_16_5YR_B19037_with_ann!CL263","v":2},{"$f":"[1]ACS_16_5YR_B19037_with_ann!CM263","v":3},{"$f":"[1]ACS_16_5YR_B19037_with_ann!CN263","v":0},{"$f":"[1]ACS_16_5YR_B19037_with_ann!CO263","v":11},{"$f":"[1]ACS_16_5YR_B19037_with_ann!CP263","v":14},{"$f":"[1]ACS_16_5YR_B19037_with_ann!CQ263","v":16},{"$f":"[1]ACS_16_5YR_B19037_with_ann!CR263","v":13},{"$f":"[1]ACS_16_5YR_B19037_with_ann!CS263","v":14},{"$f":"[1]ACS_16_5YR_B19037_with_ann!CT263","v":17},{"$f":"[1]ACS_16_5YR_B19037_with_ann!CU263","v":11},{"$f":"[1]ACS_16_5YR_B19037_with_ann!CV263","v":10},{"$f":"[1]ACS_16_5YR_B19037_with_ann!CW263","v":10},{"$f":"[1]ACS_16_5YR_B19037_with_ann!CX264","v":131},{"$f":"[1]ACS_16_5YR_B19037_with_ann!CY264","v":94},{"$f":"[1]ACS_16_5YR_B19037_with_ann!CZ264","v":120},{"$f":"[1]ACS_16_5YR_B19037_with_ann!DA264","v":98},{"$f":"[1]ACS_16_5YR_B19037_with_ann!DB264","v":59},{"$f":"[1]ACS_16_5YR_B19037_with_ann!DC264","v":47},{"$f":"[1]ACS_16_5YR_B19037_with_ann!DD264","v":409},{"$f":"[1]ACS_16_5YR_B19037_with_ann!DE264","v":112},{"$f":"[1]ACS_16_5YR_B19037_with_ann!DF264","v":0},{"$f":"[1]ACS_16_5YR_B19037_with_ann!DG264","v":11},{"$f":"[1]ACS_16_5YR_B19037_with_ann!DH264","v":0},{"$f":"[1]ACS_16_5YR_B19037_with_ann!DI264","v":11},{"$f":"[1]ACS_16_5YR_B19037_with_ann!DJ264","v":14},{"$f":"[1]ACS_16_5YR_B19037_with_ann!DK264","v":22},{"$f":"[1]ACS_16_5YR_B19037_with_ann!DL264","v":0},{"$f":"[1]ACS_16_5YR_B19037_with_ann!DM264","v":11},{"$f":"[1]ACS_16_5YR_B19037_with_ann!DN264","v":78},{"$f":"[1]ACS_16_5YR_B19037_with_ann!DO264","v":71},{"$f":"[1]ACS_16_5YR_B19037_with_ann!DP264","v":0},{"$f":"[1]ACS_16_5YR_B19037_with_ann!DQ264","v":11},{"$f":"[1]ACS_16_5YR_B19037_with_ann!DR264","v":0},{"$f":"[1]ACS_16_5YR_B19037_with_ann!DS264","v":11},{"$f":"[1]ACS_16_5YR_B19037_with_ann!DT264","v":0},{"$f":"[1]ACS_16_5YR_B19037_with_ann!DU264","v":11},{"$f":"[1]ACS_16_5YR_B19037_with_ann!DV264","v":17},{"$f":"[1]ACS_16_5YR_B19037_with_ann!DW264","v":25},{"$f":"[1]ACS_16_5YR_B19037_with_ann!DX264","v":44},{"$f":"[1]ACS_16_5YR_B19037_with_ann!DY264","v":40},{"$f":"[1]ACS_16_5YR_B19037_with_ann!DZ264","v":20},{"$f":"[1]ACS_16_5YR_B19037_with_ann!EA264","v":30},{"$f":"[1]ACS_16_5YR_B19037_with_ann!EB264","v":87},{"$f":"[1]ACS_16_5YR_B19037_with_ann!EC264","v":54},{"$f":"[1]ACS_16_5YR_B19037_with_ann!ED264","v":55},{"$f":"[1]ACS_16_5YR_B19037_with_ann!EE264","v":41},{"$f":"[1]ACS_16_5YR_B19037_with_ann!EF264","v":62},{"$f":"[1]ACS_16_5YR_B19037_with_ann!EG264","v":63},{"$f":"[1]ACS_16_5YR_B19037_with_ann!EH264","v":14},{"$f":"[1]ACS_16_5YR_B19037_with_ann!EI264","v":20},{"$f":"[1]ACS_16_5YR_B19037_with_ann!EJ264","v":18},{"$f":"[1]ACS_16_5YR_B19037_with_ann!EK264","v":27}]
["0600000US3301930500",3301930500,"060","Goshen",{"$f":"[1]ACS_16_5YR_B19037_with_ann!D263","v":277},{"$f":"[1]ACS_16_5YR_B19037_with_ann!E263","v":39},{"$f":"[1]ACS_16_5YR_B19037_with_ann!F263","v":6},{"$f":"[1]ACS_16_5YR_B19037_with_ann!G263","v":9},{"$f":"[1]ACS_16_5YR_B19037_with_ann!H263","v":0},{"$f":"[1]ACS_16_5YR_B19037_with_ann!I263","v":11},{"$f":"[1]ACS_16_5YR_B19037_with_ann!J263","v":0},{"$f":"[1]ACS_16_5YR_B19037_with_ann!K263","v":11},{"$f":"[1]ACS_16_5YR_B19037_with_ann!L263","v":0},{"$f":"[1]ACS_16_5YR_B19037_with_ann!M263","v":11},{"$f":"[1]ACS_16_5YR_B19037_with_ann!N263","v":0},{"$f":"[1]ACS_16_5YR_B19037_with_ann!O263","v":11},{"$f":"[1]ACS_16_5YR_B19037_with_ann!P263","v":0},{"$f":"[1]ACS_16_5YR_B19037_with_ann!Q263","v":11},{"$f":"[1]ACS_16_5YR_B19037_with_ann!R263","v":0},{"$f":"[1]ACS_16_5YR_B19037_with_ann!S263","v":11},{"$f":"[1]ACS_16_5YR_B19037_with_ann!T263","v":0},{"$f":"[1]ACS_16_5YR_B19037_with_ann!U263","v":11},{"$f":"[1]ACS_16_5YR_B19037_with_ann!V263","v":0},{"$f":"[1]ACS_16_5YR_B19037_with_ann!W263","v":11},{"$f":"[1]ACS_16_5YR_B19037_with_ann!X263","v":0},{"$f":"[1]ACS_16_5YR_B19037_with_ann!Y263","v":11},{"$f":"[1]ACS_16_5YR_B19037_with_ann!Z263","v":0},{"$f":"[1]ACS_16_5YR_B19037_with_ann!AA263","v":11},{"$f":"[1]ACS_16_5YR_B19037_with_ann!AB263","v":6},{"$f":"[1]ACS_16_5YR_B19037_with_ann!AC263","v":9},{"$f":"[1]ACS_16_5YR_B19037_with_ann!AD263","v":0},{"$f":"[1]ACS_16_5YR_B19037_with_ann!AE263","v":11},{"$f":"[1]ACS_16_5YR_B19037_with_ann!AF263","v":0},{"$f":"[1]ACS_16_5YR_B19037_with_ann!AG263","v":11},{"$f":"[1]ACS_16_5YR_B19037_with_ann!AH263","v":0},{"$f":"[1]ACS_16_5YR_B19037_with_ann!AI263","v":11},{"$f":"[1]ACS_16_5YR_B19037_with_ann!AJ263","v":0},{"$f":"[1]ACS_16_5YR_B19037_with_ann!AK263","v":11},{"$f":"[1]ACS_16_5YR_B19037_with_ann!AL263","v":0},{"$f":"[1]ACS_16_5YR_B19037_with_ann!AM263","v":11},{"$f":"[1]ACS_16_5YR_B19037_with_ann!AN263","v":84},{"$f":"[1]ACS_16_5YR_B19037_with_ann!AO263","v":31},{"$f":"[1]ACS_16_5YR_B19037_with_ann!AP263","v":8},{"$f":"[1]ACS_16_5YR_B19037_with_ann!AQ263","v":10},{"$f":"[1]ACS_16_5YR_B19037_with_ann!AR263","v":0},{"$f":"[1]ACS_16_5YR_B19037_with_ann!AS263","v":11},{"$f":"[1]ACS_16_5YR_B19037_with_ann!AT263","v":3},{"$f":"[1]ACS_16_5YR_B19037_with_ann!AU263","v":4},{"$f":"[1]ACS_16_5YR_B19037_with_ann!AV263","v":0},{"$f":"[1]ACS_16_5YR_B19037_with_ann!AW263","v":11},{"$f":"[1]ACS_16_5YR_B19037_with_ann!AX263","v":2},{"$f":"[1]ACS_16_5YR_B19037_with_ann!AY263","v":4},{"$f":"[1]ACS_16_5YR_B19037_with_ann!AZ263","v":0},{"$f":"[1]ACS_16_5YR_B19037_with_ann!BA263","v":11},{"$f":"[1]ACS_16_5YR_B19037_with_ann!BB263","v":0},{"$f":"[1]ACS_16_5YR_B19037_with_ann!BC263","v":11},{"$f":"[1]ACS_16_5YR_B19037_with_ann!BD263","v":0},{"$f":"[1]ACS_16_5YR_B19037_with_ann!BE263","v":11},{"$f":"[1]ACS_16_5YR_B19037_with_ann!BF264","v":0},{"$f":"[1]ACS_16_5YR_B19037_with_ann!BG264","v":11},{"$f":"[1]ACS_16_5YR_B19037_with_ann!BH264","v":23},{"$f":"[1]ACS_16_5YR_B19037_with_ann!BI264","v":37},{"$f":"[1]ACS_16_5YR_B19037_with_ann!BJ264","v":54},{"$f":"[1]ACS_16_5YR_B19037_with_ann!BK264","v":58},{"$f":"[1]ACS_16_5YR_B19037_with_ann!BL264","v":0},{"$f":"[1]ACS_16_5YR_B19037_with_ann!BM264","v":11},{"$f":"[1]ACS_16_5YR_B19037_with_ann!BN264","v":41},{"$f":"[1]ACS_16_5YR_B19037_with_ann!BO264","v":43},{"$f":"[1]ACS_16_5YR_B19037_with_ann!BP264","v":39},{"$f":"[1]ACS_16_5YR_B19037_with_ann!BQ264","v":52},{"$f":"[1]ACS_16_5YR_B19037_with_ann!BR264","v":29},{"$f":"[1]ACS_16_5YR_B19037_with_ann!BS264","v":31},{"$f":"[1]ACS_16_5YR_B19037_with_ann!BT264","v":29},{"$f":"[1]ACS_16_5YR_B19037_with_ann!BU264","v":32},{"$f":"[1]ACS_16_5YR_B19037_with_ann!BV264","v":558},{"$f":"[1]ACS_16_5YR_B19037_with_ann!BW264","v":124},{"$f":"[1]ACS_16_5YR_B19037_with_ann!BX264","v":0},{"$f":"[1]ACS_16_5YR_B19037_with_ann!BY264","v":11},{"$f":"[1]ACS_16_5YR_B19037_with_ann!BZ264","v":0},{"$f":"[1]ACS_16_5YR_B19037_with_ann!CA264","v":11},{"$f":"[1]ACS_16_5YR_B19037_with_ann!CB264","v":31},{"$f":"[1]ACS_16_5YR_B19037_with_ann!CC264","v":43},{"$f":"[1]ACS_16_5YR_B19037_with_ann!CD264","v":0},{"$f":"[1]ACS_16_5YR_B19037_with_ann!CE264","v":11},{"$f":"[1]ACS_16_5YR_B19037_with_ann!CF264","v":13},{"$f":"[1]ACS_16_5YR_B19037_with_ann!CG264","v":22},{"$f":"[1]ACS_16_5YR_B19037_with_ann!CH264","v":0},{"$f":"[1]ACS_16_5YR_B19037_with_ann!CI264","v":11},{"$f":"[1]ACS_16_5YR_B19037_with_ann!CJ264","v":0},{"$f":"[1]ACS_16_5YR_B19037_with_ann!CK264","v":11},{"$f":"[1]ACS_16_5YR_B19037_with_ann!CL264","v":91},{"$f":"[1]ACS_16_5YR_B19037_with_ann!CM264","v":102},{"$f":"[1]ACS_16_5YR_B19037_with_ann!CN264","v":0},{"$f":"[1]ACS_16_5YR_B19037_with_ann!CO264","v":11},{"$f":"[1]ACS_16_5YR_B19037_with_ann!CP264","v":0},{"$f":"[1]ACS_16_5YR_B19037_with_ann!CQ264","v":11},{"$f":"[1]ACS_16_5YR_B19037_with_ann!CR264","v":55},{"$f":"[1]ACS_16_5YR_B19037_with_ann!CS264","v":50},{"$f":"[1]ACS_16_5YR_B19037_with_ann!CT264","v":42},{"$f":"[1]ACS_16_5YR_B19037_with_ann!CU264","v":34},{"$f":"[1]ACS_16_5YR_B19037_with_ann!CV264","v":16},{"$f":"[1]ACS_16_5YR_B19037_with_ann!CW264","v":24},{"$f":"[1]ACS_16_5YR_B19037_with_ann!CX265","v":15},{"$f":"[1]ACS_16_5YR_B19037_with_ann!CY265","v":9},{"$f":"[1]ACS_16_5YR_B19037_with_ann!CZ265","v":10},{"$f":"[1]ACS_16_5YR_B19037_with_ann!DA265","v":12},{"$f":"[1]ACS_16_5YR_B19037_with_ann!DB265","v":17},{"$f":"[1]ACS_16_5YR_B19037_with_ann!DC265","v":16},{"$f":"[1]ACS_16_5YR_B19037_with_ann!DD265","v":56},{"$f":"[1]ACS_16_5YR_B19037_with_ann!DE265","v":15},{"$f":"[1]ACS_16_5YR_B19037_with_ann!DF265","v":0},{"$f":"[1]ACS_16_5YR_B19037_with_ann!DG265","v":11},{"$f":"[1]ACS_16_5YR_B19037_with_ann!DH265","v":0},{"$f":"[1]ACS_16_5YR_B19037_with_ann!DI265","v":11},{"$f":"[1]ACS_16_5YR_B19037_with_ann!DJ265","v":2},{"$f":"[1]ACS_16_5YR_B19037_with_ann!DK265","v":3},{"$f":"[1]ACS_16_5YR_B19037_with_ann!DL265","v":0},{"$f":"[1]ACS_16_5YR_B19037_with_ann!DM265","v":11},{"$f":"[1]ACS_16_5YR_B19037_with_ann!DN265","v":11},{"$f":"[1]ACS_16_5YR_B19037_with_ann!DO265","v":7},{"$f":"[1]ACS_16_5YR_B19037_with_ann!DP265","v":2},{"$f":"[1]ACS_16_5YR_B19037_with_ann!DQ265","v":3},{"$f":"[1]ACS_16_5YR_B19037_with_ann!DR265","v":0},{"$f":"[1]ACS_16_5YR_B19037_with_ann!DS265","v":11},{"$f":"[1]ACS_16_5YR_B19037_with_ann!DT265","v":2},{"$f":"[1]ACS_16_5YR_B19037_with_ann!DU265","v":3},{"$f":"[1]ACS_16_5YR_B19037_with_ann!DV265","v":2},{"$f":"[1]ACS_16_5YR_B19037_with_ann!DW265","v":3},{"$f":"[1]ACS_16_5YR_B19037_with_ann!DX265","v":8},{"$f":"[1]ACS_16_5YR_B19037_with_ann!DY265","v":7},{"$f":"[1]ACS_16_5YR_B19037_with_ann!DZ265","v":9},{"$f":"[1]ACS_16_5YR_B19037_with_ann!EA265","v":5},{"$f":"[1]ACS_16_5YR_B19037_with_ann!EB265","v":4},{"$f":"[1]ACS_16_5YR_B19037_with_ann!EC265","v":5},{"$f":"[1]ACS_16_5YR_B19037_with_ann!ED265","v":12},{"$f":"[1]ACS_16_5YR_B19037_with_ann!EE265","v":11},{"$f":"[1]ACS_16_5YR_B19037_with_ann!EF265","v":4},{"$f":"[1]ACS_16_5YR_B19037_with_ann!EG265","v":5},{"$f":"[1]ACS_16_5YR_B19037_with_ann!EH265","v":0},{"$f":"[1]ACS_16_5YR_B19037_with_ann!EI265","v":11},{"$f":"[1]ACS_16_5YR_B19037_with_ann!EJ265","v":0},{"$f":"[1]ACS_16_5YR_B19037_with_ann!EK265","v":11}]
["0600000US3301931220",3301931220,"060","Grantham",{"$f":"[1]ACS_16_5YR_B19037_with_ann!D264","v":1222},{"$f":"[1]ACS_16_5YR_B19037_with_ann!E264","v":142},{"$f":"[1]ACS_16_5YR_B19037_with_ann!F264","v":40},{"$f":"[1]ACS_16_5YR_B19037_with_ann!G264","v":40},{"$f":"[1]ACS_16_5YR_B19037_with_ann!H264","v":0},{"$f":"[1]ACS_16_5YR_B19037_with_ann!I264","v":11},{"$f":"[1]ACS_16_5YR_B19037_with_ann!J264","v":0},{"$f":"[1]ACS_16_5YR_B19037_with_ann!K264","v":11},{"$f":"[1]ACS_16_5YR_B19037_with_ann!L264","v":0},{"$f":"[1]ACS_16_5YR_B19037_with_ann!M264","v":11},{"$f":"[1]ACS_16_5YR_B19037_with_ann!N264","v":0},{"$f":"[1]ACS_16_5YR_B19037_with_ann!O264","v":11},{"$f":"[1]ACS_16_5YR_B19037_with_ann!P264","v":0},{"$f":"[1]ACS_16_5YR_B19037_with_ann!Q264","v":11},{"$f":"[1]ACS_16_5YR_B19037_with_ann!R264","v":0},{"$f":"[1]ACS_16_5YR_B19037_with_ann!S264","v":11},{"$f":"[1]ACS_16_5YR_B19037_with_ann!T264","v":0},{"$f":"[1]ACS_16_5YR_B19037_with_ann!U264","v":11},{"$f":"[1]ACS_16_5YR_B19037_with_ann!V264","v":0},{"$f":"[1]ACS_16_5YR_B19037_with_ann!W264","v":11},{"$f":"[1]ACS_16_5YR_B19037_with_ann!X264","v":0},{"$f":"[1]ACS_16_5YR_B19037_with_ann!Y264","v":11},{"$f":"[1]ACS_16_5YR_B19037_with_ann!Z264","v":0},{"$f":"[1]ACS_16_5YR_B19037_with_ann!AA264","v":11},{"$f":"[1]ACS_16_5YR_B19037_with_ann!AB264","v":17},{"$f":"[1]ACS_16_5YR_B19037_with_ann!AC264","v":24},{"$f":"[1]ACS_16_5YR_B19037_with_ann!AD264","v":0},{"$f":"[1]ACS_16_5YR_B19037_with_ann!AE264","v":11},{"$f":"[1]ACS_16_5YR_B19037_with_ann!AF264","v":23},{"$f":"[1]ACS_16_5YR_B19037_with_ann!AG264","v":33},{"$f":"[1]ACS_16_5YR_B19037_with_ann!AH264","v":0},{"$f":"[1]ACS_16_5YR_B19037_with_ann!AI264","v":11},{"$f":"[1]ACS_16_5YR_B19037_with_ann!AJ264","v":0},{"$f":"[1]ACS_16_5YR_B19037_with_ann!AK264","v":11},{"$f":"[1]ACS_16_5YR_B19037_with_ann!AL264","v":0},{"$f":"[1]ACS_16_5YR_B19037_with_ann!AM264","v":11},{"$f":"[1]ACS_16_5YR_B19037_with_ann!AN264","v":215},{"$f":"[1]ACS_16_5YR_B19037_with_ann!AO264","v":83},{"$f":"[1]ACS_16_5YR_B19037_with_ann!AP264","v":0},{"$f":"[1]ACS_16_5YR_B19037_with_ann!AQ264","v":11},{"$f":"[1]ACS_16_5YR_B19037_with_ann!AR264","v":0},{"$f":"[1]ACS_16_5YR_B19037_with_ann!AS264","v":11},{"$f":"[1]ACS_16_5YR_B19037_with_ann!AT264","v":0},{"$f":"[1]ACS_16_5YR_B19037_with_ann!AU264","v":11},{"$f":"[1]ACS_16_5YR_B19037_with_ann!AV264","v":0},{"$f":"[1]ACS_16_5YR_B19037_with_ann!AW264","v":11},{"$f":"[1]ACS_16_5YR_B19037_with_ann!AX264","v":0},{"$f":"[1]ACS_16_5YR_B19037_with_ann!AY264","v":11},{"$f":"[1]ACS_16_5YR_B19037_with_ann!AZ264","v":0},{"$f":"[1]ACS_16_5YR_B19037_with_ann!BA264","v":11},{"$f":"[1]ACS_16_5YR_B19037_with_ann!BB264","v":0},{"$f":"[1]ACS_16_5YR_B19037_with_ann!BC264","v":11},{"$f":"[1]ACS_16_5YR_B19037_with_ann!BD264","v":0},{"$f":"[1]ACS_16_5YR_B19037_with_ann!BE264","v":11},{"$f":"[1]ACS_16_5YR_B19037_with_ann!BF265","v":0},{"$f":"[1]ACS_16_5YR_B19037_with_ann!BG265","v":11},{"$f":"[1]ACS_16_5YR_B19037_with_ann!BH265","v":0},{"$f":"[1]ACS_16_5YR_B19037_with_ann!BI265","v":11},{"$f":"[1]ACS_16_5YR_B19037_with_ann!BJ265","v":19},{"$f":"[1]ACS_16_5YR_B19037_with_ann!BK265","v":16},{"$f":"[1]ACS_16_5YR_B19037_with_ann!BL265","v":16},{"$f":"[1]ACS_16_5YR_B19037_with_ann!BM265","v":14},{"$f":"[1]ACS_16_5YR_B19037_with_ann!BN265","v":10},{"$f":"[1]ACS_16_5YR_B19037_with_ann!BO265","v":9},{"$f":"[1]ACS_16_5YR_B19037_with_ann!BP265","v":4},{"$f":"[1]ACS_16_5YR_B19037_with_ann!BQ265","v":5},{"$f":"[1]ACS_16_5YR_B19037_with_ann!BR265","v":8},{"$f":"[1]ACS_16_5YR_B19037_with_ann!BS265","v":8},{"$f":"[1]ACS_16_5YR_B19037_with_ann!BT265","v":0},{"$f":"[1]ACS_16_5YR_B19037_with_ann!BU265","v":11},{"$f":"[1]ACS_16_5YR_B19037_with_ann!BV265","v":130},{"$f":"[1]ACS_16_5YR_B19037_with_ann!BW265","v":41},{"$f":"[1]ACS_16_5YR_B19037_with_ann!BX265","v":11},{"$f":"[1]ACS_16_5YR_B19037_with_ann!BY265","v":13},{"$f":"[1]ACS_16_5YR_B19037_with_ann!BZ265","v":0},{"$f":"[1]ACS_16_5YR_B19037_with_ann!CA265","v":11},{"$f":"[1]ACS_16_5YR_B19037_with_ann!CB265","v":3},{"$f":"[1]ACS_16_5YR_B19037_with_ann!CC265","v":4},{"$f":"[1]ACS_16_5YR_B19037_with_ann!CD265","v":6},{"$f":"[1]ACS_16_5YR_B19037_with_ann!CE265","v":6},{"$f":"[1]ACS_16_5YR_B19037_with_ann!CF265","v":3},{"$f":"[1]ACS_16_5YR_B19037_with_ann!CG265","v":5},{"$f":"[1]ACS_16_5YR_B19037_with_ann!CH265","v":0},{"$f":"[1]ACS_16_5YR_B19037_with_ann!CI265","v":11},{"$f":"[1]ACS_16_5YR_B19037_with_ann!CJ265","v":10},{"$f":"[1]ACS_16_5YR_B19037_with_ann!CK265","v":11},{"$f":"[1]ACS_16_5YR_B19037_with_ann!CL265","v":0},{"$f":"[1]ACS_16_5YR_B19037_with_ann!CM265","v":11},{"$f":"[1]ACS_16_5YR_B19037_with_ann!CN265","v":3},{"$f":"[1]ACS_16_5YR_B19037_with_ann!CO265","v":4},{"$f":"[1]ACS_16_5YR_B19037_with_ann!CP265","v":11},{"$f":"[1]ACS_16_5YR_B19037_with_ann!CQ265","v":14},{"$f":"[1]ACS_16_5YR_B19037_with_ann!CR265","v":6},{"$f":"[1]ACS_16_5YR_B19037_with_ann!CS265","v":6},{"$f":"[1]ACS_16_5YR_B19037_with_ann!CT265","v":25},{"$f":"[1]ACS_16_5YR_B19037_with_ann!CU265","v":17},{"$f":"[1]ACS_16_5YR_B19037_with_ann!CV265","v":10},{"$f":"[1]ACS_16_5YR_B19037_with_ann!CW265","v":8},{"$f":"[1]ACS_16_5YR_B19037_with_ann!CX266","v":3},{"$f":"[1]ACS_16_5YR_B19037_with_ann!CY266","v":4},{"$f":"[1]ACS_16_5YR_B19037_with_ann!CZ266","v":14},{"$f":"[1]ACS_16_5YR_B19037_with_ann!DA266","v":22},{"$f":"[1]ACS_16_5YR_B19037_with_ann!DB266","v":11},{"$f":"[1]ACS_16_5YR_B19037_with_ann!DC266","v":14},{"$f":"[1]ACS_16_5YR_B19037_with_ann!DD266","v":102},{"$f":"[1]ACS_16_5YR_B19037_with_ann!DE266","v":30},{"$f":"[1]ACS_16_5YR_B19037_with_ann!DF266","v":0},{"$f":"[1]ACS_16_5YR_B19037_with_ann!DG266","v":11},{"$f":"[1]ACS_16_5YR_B19037_with_ann!DH266","v":0},{"$f":"[1]ACS_16_5YR_B19037_with_ann!DI266","v":11},{"$f":"[1]ACS_16_5YR_B19037_with_ann!DJ266","v":7},{"$f":"[1]ACS_16_5YR_B19037_with_ann!DK266","v":7},{"$f":"[1]ACS_16_5YR_B19037_with_ann!DL266","v":15},{"$f":"[1]ACS_16_5YR_B19037_with_ann!DM266","v":16},{"$f":"[1]ACS_16_5YR_B19037_with_ann!DN266","v":5},{"$f":"[1]ACS_16_5YR_B19037_with_ann!DO266","v":7},{"$f":"[1]ACS_16_5YR_B19037_with_ann!DP266","v":7},{"$f":"[1]ACS_16_5YR_B19037_with_ann!DQ266","v":7},{"$f":"[1]ACS_16_5YR_B19037_with_ann!DR266","v":6},{"$f":"[1]ACS_16_5YR_B19037_with_ann!DS266","v":9},{"$f":"[1]ACS_16_5YR_B19037_with_ann!DT266","v":2},{"$f":"[1]ACS_16_5YR_B19037_with_ann!DU266","v":5},{"$f":"[1]ACS_16_5YR_B19037_with_ann!DV266","v":24},{"$f":"[1]ACS_16_5YR_B19037_with_ann!DW266","v":19},{"$f":"[1]ACS_16_5YR_B19037_with_ann!DX266","v":2},{"$f":"[1]ACS_16_5YR_B19037_with_ann!DY266","v":3},{"$f":"[1]ACS_16_5YR_B19037_with_ann!DZ266","v":20},{"$f":"[1]ACS_16_5YR_B19037_with_ann!EA266","v":18},{"$f":"[1]ACS_16_5YR_B19037_with_ann!EB266","v":6},{"$f":"[1]ACS_16_5YR_B19037_with_ann!EC266","v":6},{"$f":"[1]ACS_16_5YR_B19037_with_ann!ED266","v":8},{"$f":"[1]ACS_16_5YR_B19037_with_ann!EE266","v":8},{"$f":"[1]ACS_16_5YR_B19037_with_ann!EF266","v":0},{"$f":"[1]ACS_16_5YR_B19037_with_ann!EG266","v":11},{"$f":"[1]ACS_16_5YR_B19037_with_ann!EH266","v":0},{"$f":"[1]ACS_16_5YR_B19037_with_ann!EI266","v":11},{"$f":"[1]ACS_16_5YR_B19037_with_ann!EJ266","v":0},{"$f":"[1]ACS_16_5YR_B19037_with_ann!EK266","v":11}]
["0600000US3301940900",3301940900,"060","Langdon",{"$f":"[1]ACS_16_5YR_B19037_with_ann!D265","v":257},{"$f":"[1]ACS_16_5YR_B19037_with_ann!E265","v":47},{"$f":"[1]ACS_16_5YR_B19037_with_ann!F265","v":6},{"$f":"[1]ACS_16_5YR_B19037_with_ann!G265","v":10},{"$f":"[1]ACS_16_5YR_B19037_with_ann!H265","v":6},{"$f":"[1]ACS_16_5YR_B19037_with_ann!I265","v":10},{"$f":"[1]ACS_16_5YR_B19037_with_ann!J265","v":0},{"$f":"[1]ACS_16_5YR_B19037_with_ann!K265","v":11},{"$f":"[1]ACS_16_5YR_B19037_with_ann!L265","v":0},{"$f":"[1]ACS_16_5YR_B19037_with_ann!M265","v":11},{"$f":"[1]ACS_16_5YR_B19037_with_ann!N265","v":0},{"$f":"[1]ACS_16_5YR_B19037_with_ann!O265","v":11},{"$f":"[1]ACS_16_5YR_B19037_with_ann!P265","v":0},{"$f":"[1]ACS_16_5YR_B19037_with_ann!Q265","v":11},{"$f":"[1]ACS_16_5YR_B19037_with_ann!R265","v":0},{"$f":"[1]ACS_16_5YR_B19037_with_ann!S265","v":11},{"$f":"[1]ACS_16_5YR_B19037_with_ann!T265","v":0},{"$f":"[1]ACS_16_5YR_B19037_with_ann!U265","v":11},{"$f":"[1]ACS_16_5YR_B19037_with_ann!V265","v":0},{"$f":"[1]ACS_16_5YR_B19037_with_ann!W265","v":11},{"$f":"[1]ACS_16_5YR_B19037_with_ann!X265","v":0},{"$f":"[1]ACS_16_5YR_B19037_with_ann!Y265","v":11},{"$f":"[1]ACS_16_5YR_B19037_with_ann!Z265","v":0},{"$f":"[1]ACS_16_5YR_B19037_with_ann!AA265","v":11},{"$f":"[1]ACS_16_5YR_B19037_with_ann!AB265","v":0},{"$f":"[1]ACS_16_5YR_B19037_with_ann!AC265","v":11},{"$f":"[1]ACS_16_5YR_B19037_with_ann!AD265","v":0},{"$f":"[1]ACS_16_5YR_B19037_with_ann!AE265","v":11},{"$f":"[1]ACS_16_5YR_B19037_with_ann!AF265","v":0},{"$f":"[1]ACS_16_5YR_B19037_with_ann!AG265","v":11},{"$f":"[1]ACS_16_5YR_B19037_with_ann!AH265","v":0},{"$f":"[1]ACS_16_5YR_B19037_with_ann!AI265","v":11},{"$f":"[1]ACS_16_5YR_B19037_with_ann!AJ265","v":0},{"$f":"[1]ACS_16_5YR_B19037_with_ann!AK265","v":11},{"$f":"[1]ACS_16_5YR_B19037_with_ann!AL265","v":0},{"$f":"[1]ACS_16_5YR_B19037_with_ann!AM265","v":11},{"$f":"[1]ACS_16_5YR_B19037_with_ann!AN265","v":65},{"$f":"[1]ACS_16_5YR_B19037_with_ann!AO265","v":22},{"$f":"[1]ACS_16_5YR_B19037_with_ann!AP265","v":0},{"$f":"[1]ACS_16_5YR_B19037_with_ann!AQ265","v":11},{"$f":"[1]ACS_16_5YR_B19037_with_ann!AR265","v":0},{"$f":"[1]ACS_16_5YR_B19037_with_ann!AS265","v":11},{"$f":"[1]ACS_16_5YR_B19037_with_ann!AT265","v":0},{"$f":"[1]ACS_16_5YR_B19037_with_ann!AU265","v":11},{"$f":"[1]ACS_16_5YR_B19037_with_ann!AV265","v":0},{"$f":"[1]ACS_16_5YR_B19037_with_ann!AW265","v":11},{"$f":"[1]ACS_16_5YR_B19037_with_ann!AX265","v":0},{"$f":"[1]ACS_16_5YR_B19037_with_ann!AY265","v":11},{"$f":"[1]ACS_16_5YR_B19037_with_ann!AZ265","v":0},{"$f":"[1]ACS_16_5YR_B19037_with_ann!BA265","v":11},{"$f":"[1]ACS_16_5YR_B19037_with_ann!BB265","v":6},{"$f":"[1]ACS_16_5YR_B19037_with_ann!BC265","v":10},{"$f":"[1]ACS_16_5YR_B19037_with_ann!BD265","v":2},{"$f":"[1]ACS_16_5YR_B19037_with_ann!BE265","v":3},{"$f":"[1]ACS_16_5YR_B19037_with_ann!BF266","v":7},{"$f":"[1]ACS_16_5YR_B19037_with_ann!BG266","v":7},{"$f":"[1]ACS_16_5YR_B19037_with_ann!BH266","v":0},{"$f":"[1]ACS_16_5YR_B19037_with_ann!BI266","v":11},{"$f":"[1]ACS_16_5YR_B19037_with_ann!BJ266","v":0},{"$f":"[1]ACS_16_5YR_B19037_with_ann!BK266","v":11},{"$f":"[1]ACS_16_5YR_B19037_with_ann!BL266","v":11},{"$f":"[1]ACS_16_5YR_B19037_with_ann!BM266","v":10},{"$f":"[1]ACS_16_5YR_B19037_with_ann!BN266","v":42},{"$f":"[1]ACS_16_5YR_B19037_with_ann!BO266","v":28},{"$f":"[1]ACS_16_5YR_B19037_with_ann!BP266","v":11},{"$f":"[1]ACS_16_5YR_B19037_with_ann!BQ266","v":10},{"$f":"[1]ACS_16_5YR_B19037_with_ann!BR266","v":0},{"$f":"[1]ACS_16_5YR_B19037_with_ann!BS266","v":11},{"$f":"[1]ACS_16_5YR_B19037_with_ann!BT266","v":0},{"$f":"[1]ACS_16_5YR_B19037_with_ann!BU266","v":11},{"$f":"[1]ACS_16_5YR_B19037_with_ann!BV266","v":197},{"$f":"[1]ACS_16_5YR_B19037_with_ann!BW266","v":56},{"$f":"[1]ACS_16_5YR_B19037_with_ann!BX266","v":13},{"$f":"[1]ACS_16_5YR_B19037_with_ann!BY266","v":16},{"$f":"[1]ACS_16_5YR_B19037_with_ann!BZ266","v":4},{"$f":"[1]ACS_16_5YR_B19037_with_ann!CA266","v":5},{"$f":"[1]ACS_16_5YR_B19037_with_ann!CB266","v":3},{"$f":"[1]ACS_16_5YR_B19037_with_ann!CC266","v":4},{"$f":"[1]ACS_16_5YR_B19037_with_ann!CD266","v":15},{"$f":"[1]ACS_16_5YR_B19037_with_ann!CE266","v":14},{"$f":"[1]ACS_16_5YR_B19037_with_ann!CF266","v":2},{"$f":"[1]ACS_16_5YR_B19037_with_ann!CG266","v":4},{"$f":"[1]ACS_16_5YR_B19037_with_ann!CH266","v":4},{"$f":"[1]ACS_16_5YR_B19037_with_ann!CI266","v":5},{"$f":"[1]ACS_16_5YR_B19037_with_ann!CJ266","v":8},{"$f":"[1]ACS_16_5YR_B19037_with_ann!CK266","v":7},{"$f":"[1]ACS_16_5YR_B19037_with_ann!CL266","v":12},{"$f":"[1]ACS_16_5YR_B19037_with_ann!CM266","v":15},{"$f":"[1]ACS_16_5YR_B19037_with_ann!CN266","v":3},{"$f":"[1]ACS_16_5YR_B19037_with_ann!CO266","v":4},{"$f":"[1]ACS_16_5YR_B19037_with_ann!CP266","v":15},{"$f":"[1]ACS_16_5YR_B19037_with_ann!CQ266","v":15},{"$f":"[1]ACS_16_5YR_B19037_with_ann!CR266","v":15},{"$f":"[1]ACS_16_5YR_B19037_with_ann!CS266","v":17},{"$f":"[1]ACS_16_5YR_B19037_with_ann!CT266","v":50},{"$f":"[1]ACS_16_5YR_B19037_with_ann!CU266","v":29},{"$f":"[1]ACS_16_5YR_B19037_with_ann!CV266","v":25},{"$f":"[1]ACS_16_5YR_B19037_with_ann!CW266","v":19},{"$f":"[1]ACS_16_5YR_B19037_with_ann!CX267","v":83},{"$f":"[1]ACS_16_5YR_B19037_with_ann!CY267","v":57},{"$f":"[1]ACS_16_5YR_B19037_with_ann!CZ267","v":215},{"$f":"[1]ACS_16_5YR_B19037_with_ann!DA267","v":111},{"$f":"[1]ACS_16_5YR_B19037_with_ann!DB267","v":23},{"$f":"[1]ACS_16_5YR_B19037_with_ann!DC267","v":27},{"$f":"[1]ACS_16_5YR_B19037_with_ann!DD267","v":684},{"$f":"[1]ACS_16_5YR_B19037_with_ann!DE267","v":162},{"$f":"[1]ACS_16_5YR_B19037_with_ann!DF267","v":0},{"$f":"[1]ACS_16_5YR_B19037_with_ann!DG267","v":16},{"$f":"[1]ACS_16_5YR_B19037_with_ann!DH267","v":33},{"$f":"[1]ACS_16_5YR_B19037_with_ann!DI267","v":53},{"$f":"[1]ACS_16_5YR_B19037_with_ann!DJ267","v":173},{"$f":"[1]ACS_16_5YR_B19037_with_ann!DK267","v":110},{"$f":"[1]ACS_16_5YR_B19037_with_ann!DL267","v":73},{"$f":"[1]ACS_16_5YR_B19037_with_ann!DM267","v":51},{"$f":"[1]ACS_16_5YR_B19037_with_ann!DN267","v":74},{"$f":"[1]ACS_16_5YR_B19037_with_ann!DO267","v":70},{"$f":"[1]ACS_16_5YR_B19037_with_ann!DP267","v":13},{"$f":"[1]ACS_16_5YR_B19037_with_ann!DQ267","v":21},{"$f":"[1]ACS_16_5YR_B19037_with_ann!DR267","v":13},{"$f":"[1]ACS_16_5YR_B19037_with_ann!DS267","v":22},{"$f":"[1]ACS_16_5YR_B19037_with_ann!DT267","v":11},{"$f":"[1]ACS_16_5YR_B19037_with_ann!DU267","v":18},{"$f":"[1]ACS_16_5YR_B19037_with_ann!DV267","v":36},{"$f":"[1]ACS_16_5YR_B19037_with_ann!DW267","v":28},{"$f":"[1]ACS_16_5YR_B19037_with_ann!DX267","v":38},{"$f":"[1]ACS_16_5YR_B19037_with_ann!DY267","v":37},{"$f":"[1]ACS_16_5YR_B19037_with_ann!DZ267","v":93},{"$f":"[1]ACS_16_5YR_B19037_with_ann!EA267","v":73},{"$f":"[1]ACS_16_5YR_B19037_with_ann!EB267","v":55},{"$f":"[1]ACS_16_5YR_B19037_with_ann!EC267","v":36},{"$f":"[1]ACS_16_5YR_B19037_with_ann!ED267","v":13},{"$f":"[1]ACS_16_5YR_B19037_with_ann!EE267","v":21},{"$f":"[1]ACS_16_5YR_B19037_with_ann!EF267","v":36},{"$f":"[1]ACS_16_5YR_B19037_with_ann!EG267","v":59},{"$f":"[1]ACS_16_5YR_B19037_with_ann!EH267","v":0},{"$f":"[1]ACS_16_5YR_B19037_with_ann!EI267","v":16},{"$f":"[1]ACS_16_5YR_B19037_with_ann!EJ267","v":23},{"$f":"[1]ACS_16_5YR_B19037_with_ann!EK267","v":27}]
["0600000US3301941700",3301941700,"060","Lempster",{"$f":"[1]ACS_16_5YR_B19037_with_ann!D266","v":393},{"$f":"[1]ACS_16_5YR_B19037_with_ann!E266","v":59},{"$f":"[1]ACS_16_5YR_B19037_with_ann!F266","v":3},{"$f":"[1]ACS_16_5YR_B19037_with_ann!G266","v":4},{"$f":"[1]ACS_16_5YR_B19037_with_ann!H266","v":0},{"$f":"[1]ACS_16_5YR_B19037_with_ann!I266","v":11},{"$f":"[1]ACS_16_5YR_B19037_with_ann!J266","v":0},{"$f":"[1]ACS_16_5YR_B19037_with_ann!K266","v":11},{"$f":"[1]ACS_16_5YR_B19037_with_ann!L266","v":0},{"$f":"[1]ACS_16_5YR_B19037_with_ann!M266","v":11},{"$f":"[1]ACS_16_5YR_B19037_with_ann!N266","v":0},{"$f":"[1]ACS_16_5YR_B19037_with_ann!O266","v":11},{"$f":"[1]ACS_16_5YR_B19037_with_ann!P266","v":0},{"$f":"[1]ACS_16_5YR_B19037_with_ann!Q266","v":11},{"$f":"[1]ACS_16_5YR_B19037_with_ann!R266","v":0},{"$f":"[1]ACS_16_5YR_B19037_with_ann!S266","v":11},{"$f":"[1]ACS_16_5YR_B19037_with_ann!T266","v":0},{"$f":"[1]ACS_16_5YR_B19037_with_ann!U266","v":11},{"$f":"[1]ACS_16_5YR_B19037_with_ann!V266","v":0},{"$f":"[1]ACS_16_5YR_B19037_with_ann!W266","v":11},{"$f":"[1]ACS_16_5YR_B19037_with_ann!X266","v":0},{"$f":"[1]ACS_16_5YR_B19037_with_ann!Y266","v":11},{"$f":"[1]ACS_16_5YR_B19037_with_ann!Z266","v":0},{"$f":"[1]ACS_16_5YR_B19037_with_ann!AA266","v":11},{"$f":"[1]ACS_16_5YR_B19037_with_ann!AB266","v":3},{"$f":"[1]ACS_16_5YR_B19037_with_ann!AC266","v":4},{"$f":"[1]ACS_16_5YR_B19037_with_ann!AD266","v":0},{"$f":"[1]ACS_16_5YR_B19037_with_ann!AE266","v":11},{"$f":"[1]ACS_16_5YR_B19037_with_ann!AF266","v":0},{"$f":"[1]ACS_16_5YR_B19037_with_ann!AG266","v":11},{"$f":"[1]ACS_16_5YR_B19037_with_ann!AH266","v":0},{"$f":"[1]ACS_16_5YR_B19037_with_ann!AI266","v":11},{"$f":"[1]ACS_16_5YR_B19037_with_ann!AJ266","v":0},{"$f":"[1]ACS_16_5YR_B19037_with_ann!AK266","v":11},{"$f":"[1]ACS_16_5YR_B19037_with_ann!AL266","v":0},{"$f":"[1]ACS_16_5YR_B19037_with_ann!AM266","v":11},{"$f":"[1]ACS_16_5YR_B19037_with_ann!AN266","v":91},{"$f":"[1]ACS_16_5YR_B19037_with_ann!AO266","v":32},{"$f":"[1]ACS_16_5YR_B19037_with_ann!AP266","v":3},{"$f":"[1]ACS_16_5YR_B19037_with_ann!AQ266","v":5},{"$f":"[1]ACS_16_5YR_B19037_with_ann!AR266","v":9},{"$f":"[1]ACS_16_5YR_B19037_with_ann!AS266","v":14},{"$f":"[1]ACS_16_5YR_B19037_with_ann!AT266","v":0},{"$f":"[1]ACS_16_5YR_B19037_with_ann!AU266","v":11},{"$f":"[1]ACS_16_5YR_B19037_with_ann!AV266","v":0},{"$f":"[1]ACS_16_5YR_B19037_with_ann!AW266","v":11},{"$f":"[1]ACS_16_5YR_B19037_with_ann!AX266","v":0},{"$f":"[1]ACS_16_5YR_B19037_with_ann!AY266","v":11},{"$f":"[1]ACS_16_5YR_B19037_with_ann!AZ266","v":0},{"$f":"[1]ACS_16_5YR_B19037_with_ann!BA266","v":11},{"$f":"[1]ACS_16_5YR_B19037_with_ann!BB266","v":8},{"$f":"[1]ACS_16_5YR_B19037_with_ann!BC266","v":10},{"$f":"[1]ACS_16_5YR_B19037_with_ann!BD266","v":0},{"$f":"[1]ACS_16_5YR_B19037_with_ann!BE266","v":11},{"$f":"[1]ACS_16_5YR_B19037_with_ann!BF267","v":0},{"$f":"[1]ACS_16_5YR_B19037_with_ann!BG267","v":16},{"$f":"[1]ACS_16_5YR_B19037_with_ann!BH267","v":231},{"$f":"[1]ACS_16_5YR_B19037_with_ann!BI267","v":123},{"$f":"[1]ACS_16_5YR_B19037_with_ann!BJ267","v":79},{"$f":"[1]ACS_16_5YR_B19037_with_ann!BK267","v":78},{"$f":"[1]ACS_16_5YR_B19037_with_ann!BL267","v":182},{"$f":"[1]ACS_16_5YR_B19037_with_ann!BM267","v":102},{"$f":"[1]ACS_16_5YR_B19037_with_ann!BN267","v":64},{"$f":"[1]ACS_16_5YR_B19037_with_ann!BO267","v":64},{"$f":"[1]ACS_16_5YR_B19037_with_ann!BP267","v":26},{"$f":"[1]ACS_16_5YR_B19037_with_ann!BQ267","v":30},{"$f":"[1]ACS_16_5YR_B19037_with_ann!BR267","v":0},{"$f":"[1]ACS_16_5YR_B19037_with_ann!BS267","v":16},{"$f":"[1]ACS_16_5YR_B19037_with_ann!BT267","v":13},{"$f":"[1]ACS_16_5YR_B19037_with_ann!BU267","v":21},{"$f":"[1]ACS_16_5YR_B19037_with_ann!BV267","v":1037},{"$f":"[1]ACS_16_5YR_B19037_with_ann!BW267","v":185},{"$f":"[1]ACS_16_5YR_B19037_with_ann!BX267","v":42},{"$f":"[1]ACS_16_5YR_B19037_with_ann!BY267","v":40},{"$f":"[1]ACS_16_5YR_B19037_with_ann!BZ267","v":13},{"$f":"[1]ACS_16_5YR_B19037_with_ann!CA267","v":22},{"$f":"[1]ACS_16_5YR_B19037_with_ann!CB267","v":12},{"$f":"[1]ACS_16_5YR_B19037_with_ann!CC267","v":21},{"$f":"[1]ACS_16_5YR_B19037_with_ann!CD267","v":14},{"$f":"[1]ACS_16_5YR_B19037_with_ann!CE267","v":23},{"$f":"[1]ACS_16_5YR_B19037_with_ann!CF267","v":106},{"$f":"[1]ACS_16_5YR_B19037_with_ann!CG267","v":91},{"$f":"[1]ACS_16_5YR_B19037_with_ann!CH267","v":66},{"$f":"[1]ACS_16_5YR_B19037_with_ann!CI267","v":63},{"$f":"[1]ACS_16_5YR_B19037_with_ann!CJ267","v":38},{"$f":"[1]ACS_16_5YR_B19037_with_ann!CK267","v":37},{"$f":"[1]ACS_16_5YR_B19037_with_ann!CL267","v":53},{"$f":"[1]ACS_16_5YR_B19037_with_ann!CM267","v":43},{"$f":"[1]ACS_16_5YR_B19037_with_ann!CN267","v":42},{"$f":"[1]ACS_16_5YR_B19037_with_ann!CO267","v":40},{"$f":"[1]ACS_16_5YR_B19037_with_ann!CP267","v":94},{"$f":"[1]ACS_16_5YR_B19037_with_ann!CQ267","v":63},{"$f":"[1]ACS_16_5YR_B19037_with_ann!CR267","v":91},{"$f":"[1]ACS_16_5YR_B19037_with_ann!CS267","v":64},{"$f":"[1]ACS_16_5YR_B19037_with_ann!CT267","v":118},{"$f":"[1]ACS_16_5YR_B19037_with_ann!CU267","v":79},{"$f":"[1]ACS_16_5YR_B19037_with_ann!CV267","v":27},{"$f":"[1]ACS_16_5YR_B19037_with_ann!CW267","v":24},{"$f":"[1]ACS_16_5YR_B19037_with_ann!CX268","v":62},{"$f":"[1]ACS_16_5YR_B19037_with_ann!CY268","v":44},{"$f":"[1]ACS_16_5YR_B19037_with_ann!CZ268","v":34},{"$f":"[1]ACS_16_5YR_B19037_with_ann!DA268","v":21},{"$f":"[1]ACS_16_5YR_B19037_with_ann!DB268","v":61},{"$f":"[1]ACS_16_5YR_B19037_with_ann!DC268","v":26},{"$f":"[1]ACS_16_5YR_B19037_with_ann!DD268","v":271},{"$f":"[1]ACS_16_5YR_B19037_with_ann!DE268","v":65},{"$f":"[1]ACS_16_5YR_B19037_with_ann!DF268","v":26},{"$f":"[1]ACS_16_5YR_B19037_with_ann!DG268","v":28},{"$f":"[1]ACS_16_5YR_B19037_with_ann!DH268","v":0},{"$f":"[1]ACS_16_5YR_B19037_with_ann!DI268","v":11},{"$f":"[1]ACS_16_5YR_B19037_with_ann!DJ268","v":0},{"$f":"[1]ACS_16_5YR_B19037_with_ann!DK268","v":11},{"$f":"[1]ACS_16_5YR_B19037_with_ann!DL268","v":14},{"$f":"[1]ACS_16_5YR_B19037_with_ann!DM268","v":12},{"$f":"[1]ACS_16_5YR_B19037_with_ann!DN268","v":56},{"$f":"[1]ACS_16_5YR_B19037_with_ann!DO268","v":40},{"$f":"[1]ACS_16_5YR_B19037_with_ann!DP268","v":6},{"$f":"[1]ACS_16_5YR_B19037_with_ann!DQ268","v":8},{"$f":"[1]ACS_16_5YR_B19037_with_ann!DR268","v":6},{"$f":"[1]ACS_16_5YR_B19037_with_ann!DS268","v":9},{"$f":"[1]ACS_16_5YR_B19037_with_ann!DT268","v":0},{"$f":"[1]ACS_16_5YR_B19037_with_ann!DU268","v":11},{"$f":"[1]ACS_16_5YR_B19037_with_ann!DV268","v":20},{"$f":"[1]ACS_16_5YR_B19037_with_ann!DW268","v":24},{"$f":"[1]ACS_16_5YR_B19037_with_ann!DX268","v":9},{"$f":"[1]ACS_16_5YR_B19037_with_ann!DY268","v":10},{"$f":"[1]ACS_16_5YR_B19037_with_ann!DZ268","v":44},{"$f":"[1]ACS_16_5YR_B19037_with_ann!EA268","v":34},{"$f":"[1]ACS_16_5YR_B19037_with_ann!EB268","v":33},{"$f":"[1]ACS_16_5YR_B19037_with_ann!EC268","v":18},{"$f":"[1]ACS_16_5YR_B19037_with_ann!ED268","v":14},{"$f":"[1]ACS_16_5YR_B19037_with_ann!EE268","v":12},{"$f":"[1]ACS_16_5YR_B19037_with_ann!EF268","v":10},{"$f":"[1]ACS_16_5YR_B19037_with_ann!EG268","v":10},{"$f":"[1]ACS_16_5YR_B19037_with_ann!EH268","v":15},{"$f":"[1]ACS_16_5YR_B19037_with_ann!EI268","v":12},{"$f":"[1]ACS_16_5YR_B19037_with_ann!EJ268","v":18},{"$f":"[1]ACS_16_5YR_B19037_with_ann!EK268","v":15}]
["0600000US3301952580",3301952580,"060","Newport",{"$f":"[1]ACS_16_5YR_B19037_with_ann!D267","v":2600},{"$f":"[1]ACS_16_5YR_B19037_with_ann!E267","v":168},{"$f":"[1]ACS_16_5YR_B19037_with_ann!F267","v":65},{"$f":"[1]ACS_16_5YR_B19037_with_ann!G267","v":48},{"$f":"[1]ACS_16_5YR_B19037_with_ann!H267","v":32},{"$f":"[1]ACS_16_5YR_B19037_with_ann!I267","v":31},{"$f":"[1]ACS_16_5YR_B19037_with_ann!J267","v":0},{"$f":"[1]ACS_16_5YR_B19037_with_ann!K267","v":16},{"$f":"[1]ACS_16_5YR_B19037_with_ann!L267","v":0},{"$f":"[1]ACS_16_5YR_B19037_with_ann!M267","v":16},{"$f":"[1]ACS_16_5YR_B19037_with_ann!N267","v":0},{"$f":"[1]ACS_16_5YR_B19037_with_ann!O267","v":16},{"$f":"[1]ACS_16_5YR_B19037_with_ann!P267","v":0},{"$f":"[1]ACS_16_5YR_B19037_with_ann!Q267","v":16},{"$f":"[1]ACS_16_5YR_B19037_with_ann!R267","v":11},{"$f":"[1]ACS_16_5YR_B19037_with_ann!S267","v":16},{"$f":"[1]ACS_16_5YR_B19037_with_ann!T267","v":0},{"$f":"[1]ACS_16_5YR_B19037_with_ann!U267","v":16},{"$f":"[1]ACS_16_5YR_B19037_with_ann!V267","v":0},{"$f":"[1]ACS_16_5YR_B19037_with_ann!W267","v":16},{"$f":"[1]ACS_16_5YR_B19037_with_ann!X267","v":0},{"$f":"[1]ACS_16_5YR_B19037_with_ann!Y267","v":16},{"$f":"[1]ACS_16_5YR_B19037_with_ann!Z267","v":0},{"$f":"[1]ACS_16_5YR_B19037_with_ann!AA267","v":16},{"$f":"[1]ACS_16_5YR_B19037_with_ann!AB267","v":0},{"$f":"[1]ACS_16_5YR_B19037_with_ann!AC267","v":16},{"$f":"[1]ACS_16_5YR_B19037_with_ann!AD267","v":22},{"$f":"[1]ACS_16_5YR_B19037_with_ann!AE267","v":26},{"$f":"[1]ACS_16_5YR_B19037_with_ann!AF267","v":0},{"$f":"[1]ACS_16_5YR_B19037_with_ann!AG267","v":16},{"$f":"[1]ACS_16_5YR_B19037_with_ann!AH267","v":0},{"$f":"[1]ACS_16_5YR_B19037_with_ann!AI267","v":16},{"$f":"[1]ACS_16_5YR_B19037_with_ann!AJ267","v":0},{"$f":"[1]ACS_16_5YR_B19037_with_ann!AK267","v":16},{"$f":"[1]ACS_16_5YR_B19037_with_ann!AL267","v":0},{"$f":"[1]ACS_16_5YR_B19037_with_ann!AM267","v":16},{"$f":"[1]ACS_16_5YR_B19037_with_ann!AN267","v":814},{"$f":"[1]ACS_16_5YR_B19037_with_ann!AO267","v":162},{"$f":"[1]ACS_16_5YR_B19037_with_ann!AP267","v":84},{"$f":"[1]ACS_16_5YR_B19037_with_ann!AQ267","v":93},{"$f":"[1]ACS_16_5YR_B19037_with_ann!AR267","v":0},{"$f":"[1]ACS_16_5YR_B19037_with_ann!AS267","v":16},{"$f":"[1]ACS_16_5YR_B19037_with_ann!AT267","v":59},{"$f":"[1]ACS_16_5YR_B19037_with_ann!AU267","v":60},{"$f":"[1]ACS_16_5YR_B19037_with_ann!AV267","v":14},{"$f":"[1]ACS_16_5YR_B19037_with_ann!AW267","v":22},{"$f":"[1]ACS_16_5YR_B19037_with_ann!AX267","v":0},{"$f":"[1]ACS_16_5YR_B19037_with_ann!AY267","v":16},{"$f":"[1]ACS_16_5YR_B19037_with_ann!AZ267","v":24},{"$f":"[1]ACS_16_5YR_B19037_with_ann!BA267","v":28},{"$f":"[1]ACS_16_5YR_B19037_with_ann!BB267","v":25},{"$f":"[1]ACS_16_5YR_B19037_with_ann!BC267","v":29},{"$f":"[1]ACS_16_5YR_B19037_with_ann!BD267","v":13},{"$f":"[1]ACS_16_5YR_B19037_with_ann!BE267","v":20},{"$f":"[1]ACS_16_5YR_B19037_with_ann!BF268","v":7},{"$f":"[1]ACS_16_5YR_B19037_with_ann!BG268","v":10},{"$f":"[1]ACS_16_5YR_B19037_with_ann!BH268","v":5},{"$f":"[1]ACS_16_5YR_B19037_with_ann!BI268","v":7},{"$f":"[1]ACS_16_5YR_B19037_with_ann!BJ268","v":32},{"$f":"[1]ACS_16_5YR_B19037_with_ann!BK268","v":33},{"$f":"[1]ACS_16_5YR_B19037_with_ann!BL268","v":35},{"$f":"[1]ACS_16_5YR_B19037_with_ann!BM268","v":21},{"$f":"[1]ACS_16_5YR_B19037_with_ann!BN268","v":40},{"$f":"[1]ACS_16_5YR_B19037_with_ann!BO268","v":28},{"$f":"[1]ACS_16_5YR_B19037_with_ann!BP268","v":15},{"$f":"[1]ACS_16_5YR_B19037_with_ann!BQ268","v":13},{"$f":"[1]ACS_16_5YR_B19037_with_ann!BR268","v":16},{"$f":"[1]ACS_16_5YR_B19037_with_ann!BS268","v":26},{"$f":"[1]ACS_16_5YR_B19037_with_ann!BT268","v":21},{"$f":"[1]ACS_16_5YR_B19037_with_ann!BU268","v":13},{"$f":"[1]ACS_16_5YR_B19037_with_ann!BV268","v":449},{"$f":"[1]ACS_16_5YR_B19037_with_ann!BW268","v":86},{"$f":"[1]ACS_16_5YR_B19037_with_ann!BX268","v":16},{"$f":"[1]ACS_16_5YR_B19037_with_ann!BY268","v":14},{"$f":"[1]ACS_16_5YR_B19037_with_ann!BZ268","v":0},{"$f":"[1]ACS_16_5YR_B19037_with_ann!CA268","v":11},{"$f":"[1]ACS_16_5YR_B19037_with_ann!CB268","v":0},{"$f":"[1]ACS_16_5YR_B19037_with_ann!CC268","v":11},{"$f":"[1]ACS_16_5YR_B19037_with_ann!CD268","v":16},{"$f":"[1]ACS_16_5YR_B19037_with_ann!CE268","v":19},{"$f":"[1]ACS_16_5YR_B19037_with_ann!CF268","v":28},{"$f":"[1]ACS_16_5YR_B19037_with_ann!CG268","v":26},{"$f":"[1]ACS_16_5YR_B19037_with_ann!CH268","v":10},{"$f":"[1]ACS_16_5YR_B19037_with_ann!CI268","v":11},{"$f":"[1]ACS_16_5YR_B19037_with_ann!CJ268","v":5},{"$f":"[1]ACS_16_5YR_B19037_with_ann!CK268","v":7},{"$f":"[1]ACS_16_5YR_B19037_with_ann!CL268","v":4},{"$f":"[1]ACS_16_5YR_B19037_with_ann!CM268","v":6},{"$f":"[1]ACS_16_5YR_B19037_with_ann!CN268","v":11},{"$f":"[1]ACS_16_5YR_B19037_with_ann!CO268","v":12},{"$f":"[1]ACS_16_5YR_B19037_with_ann!CP268","v":33},{"$f":"[1]ACS_16_5YR_B19037_with_ann!CQ268","v":31},{"$f":"[1]ACS_16_5YR_B19037_with_ann!CR268","v":14},{"$f":"[1]ACS_16_5YR_B19037_with_ann!CS268","v":13},{"$f":"[1]ACS_16_5YR_B19037_with_ann!CT268","v":117},{"$f":"[1]ACS_16_5YR_B19037_with_ann!CU268","v":46},{"$f":"[1]ACS_16_5YR_B19037_with_ann!CV268","v":38},{"$f":"[1]ACS_16_5YR_B19037_with_ann!CW268","v":19},{"$f":"[1]ACS_16_5YR_B19037_with_ann!CX269","v":20},{"$f":"[1]ACS_16_5YR_B19037_with_ann!CY269","v":19},{"$f":"[1]ACS_16_5YR_B19037_with_ann!CZ269","v":11},{"$f":"[1]ACS_16_5YR_B19037_with_ann!DA269","v":9},{"$f":"[1]ACS_16_5YR_B19037_with_ann!DB269","v":7},{"$f":"[1]ACS_16_5YR_B19037_with_ann!DC269","v":8},{"$f":"[1]ACS_16_5YR_B19037_with_ann!DD269","v":182},{"$f":"[1]ACS_16_5YR_B19037_with_ann!DE269","v":51},{"$f":"[1]ACS_16_5YR_B19037_with_ann!DF269","v":13},{"$f":"[1]ACS_16_5YR_B19037_with_ann!DG269","v":16},{"$f":"[1]ACS_16_5YR_B19037_with_ann!DH269","v":4},{"$f":"[1]ACS_16_5YR_B19037_with_ann!DI269","v":6},{"$f":"[1]ACS_16_5YR_B19037_with_ann!DJ269","v":7},{"$f":"[1]ACS_16_5YR_B19037_with_ann!DK269","v":13},{"$f":"[1]ACS_16_5YR_B19037_with_ann!DL269","v":0},{"$f":"[1]ACS_16_5YR_B19037_with_ann!DM269","v":11},{"$f":"[1]ACS_16_5YR_B19037_with_ann!DN269","v":16},{"$f":"[1]ACS_16_5YR_B19037_with_ann!DO269","v":16},{"$f":"[1]ACS_16_5YR_B19037_with_ann!DP269","v":14},{"$f":"[1]ACS_16_5YR_B19037_with_ann!DQ269","v":17},{"$f":"[1]ACS_16_5YR_B19037_with_ann!DR269","v":5},{"$f":"[1]ACS_16_5YR_B19037_with_ann!DS269","v":7},{"$f":"[1]ACS_16_5YR_B19037_with_ann!DT269","v":3},{"$f":"[1]ACS_16_5YR_B19037_with_ann!DU269","v":5},{"$f":"[1]ACS_16_5YR_B19037_with_ann!DV269","v":0},{"$f":"[1]ACS_16_5YR_B19037_with_ann!DW269","v":11},{"$f":"[1]ACS_16_5YR_B19037_with_ann!DX269","v":11},{"$f":"[1]ACS_16_5YR_B19037_with_ann!DY269","v":15},{"$f":"[1]ACS_16_5YR_B19037_with_ann!DZ269","v":43},{"$f":"[1]ACS_16_5YR_B19037_with_ann!EA269","v":26},{"$f":"[1]ACS_16_5YR_B19037_with_ann!EB269","v":54},{"$f":"[1]ACS_16_5YR_B19037_with_ann!EC269","v":34},{"$f":"[1]ACS_16_5YR_B19037_with_ann!ED269","v":10},{"$f":"[1]ACS_16_5YR_B19037_with_ann!EE269","v":14},{"$f":"[1]ACS_16_5YR_B19037_with_ann!EF269","v":0},{"$f":"[1]ACS_16_5YR_B19037_with_ann!EG269","v":11},{"$f":"[1]ACS_16_5YR_B19037_with_ann!EH269","v":0},{"$f":"[1]ACS_16_5YR_B19037_with_ann!EI269","v":11},{"$f":"[1]ACS_16_5YR_B19037_with_ann!EJ269","v":2},{"$f":"[1]ACS_16_5YR_B19037_with_ann!EK269","v":4}]
["0600000US3301962340",3301962340,"060","Plainfield",{"$f":"[1]ACS_16_5YR_B19037_with_ann!D268","v":915},{"$f":"[1]ACS_16_5YR_B19037_with_ann!E268","v":86},{"$f":"[1]ACS_16_5YR_B19037_with_ann!F268","v":5},{"$f":"[1]ACS_16_5YR_B19037_with_ann!G268","v":7},{"$f":"[1]ACS_16_5YR_B19037_with_ann!H268","v":0},{"$f":"[1]ACS_16_5YR_B19037_with_ann!I268","v":11},{"$f":"[1]ACS_16_5YR_B19037_with_ann!J268","v":0},{"$f":"[1]ACS_16_5YR_B19037_with_ann!K268","v":11},{"$f":"[1]ACS_16_5YR_B19037_with_ann!L268","v":0},{"$f":"[1]ACS_16_5YR_B19037_with_ann!M268","v":11},{"$f":"[1]ACS_16_5YR_B19037_with_ann!N268","v":0},{"$f":"[1]ACS_16_5YR_B19037_with_ann!O268","v":11},{"$f":"[1]ACS_16_5YR_B19037_with_ann!P268","v":0},{"$f":"[1]ACS_16_5YR_B19037_with_ann!Q268","v":11},{"$f":"[1]ACS_16_5YR_B19037_with_ann!R268","v":0},{"$f":"[1]ACS_16_5YR_B19037_with_ann!S268","v":11},{"$f":"[1]ACS_16_5YR_B19037_with_ann!T268","v":0},{"$f":"[1]ACS_16_5YR_B19037_with_ann!U268","v":11},{"$f":"[1]ACS_16_5YR_B19037_with_ann!V268","v":0},{"$f":"[1]ACS_16_5YR_B19037_with_ann!W268","v":11},{"$f":"[1]ACS_16_5YR_B19037_with_ann!X268","v":0},{"$f":"[1]ACS_16_5YR_B19037_with_ann!Y268","v":11},{"$f":"[1]ACS_16_5YR_B19037_with_ann!Z268","v":0},{"$f":"[1]ACS_16_5YR_B19037_with_ann!AA268","v":11},{"$f":"[1]ACS_16_5YR_B19037_with_ann!AB268","v":5},{"$f":"[1]ACS_16_5YR_B19037_with_ann!AC268","v":7},{"$f":"[1]ACS_16_5YR_B19037_with_ann!AD268","v":0},{"$f":"[1]ACS_16_5YR_B19037_with_ann!AE268","v":11},{"$f":"[1]ACS_16_5YR_B19037_with_ann!AF268","v":0},{"$f":"[1]ACS_16_5YR_B19037_with_ann!AG268","v":11},{"$f":"[1]ACS_16_5YR_B19037_with_ann!AH268","v":0},{"$f":"[1]ACS_16_5YR_B19037_with_ann!AI268","v":11},{"$f":"[1]ACS_16_5YR_B19037_with_ann!AJ268","v":0},{"$f":"[1]ACS_16_5YR_B19037_with_ann!AK268","v":11},{"$f":"[1]ACS_16_5YR_B19037_with_ann!AL268","v":0},{"$f":"[1]ACS_16_5YR_B19037_with_ann!AM268","v":11},{"$f":"[1]ACS_16_5YR_B19037_with_ann!AN268","v":190},{"$f":"[1]ACS_16_5YR_B19037_with_ann!AO268","v":49},{"$f":"[1]ACS_16_5YR_B19037_with_ann!AP268","v":0},{"$f":"[1]ACS_16_5YR_B19037_with_ann!AQ268","v":11},{"$f":"[1]ACS_16_5YR_B19037_with_ann!AR268","v":0},{"$f":"[1]ACS_16_5YR_B19037_with_ann!AS268","v":11},{"$f":"[1]ACS_16_5YR_B19037_with_ann!AT268","v":0},{"$f":"[1]ACS_16_5YR_B19037_with_ann!AU268","v":11},{"$f":"[1]ACS_16_5YR_B19037_with_ann!AV268","v":0},{"$f":"[1]ACS_16_5YR_B19037_with_ann!AW268","v":11},{"$f":"[1]ACS_16_5YR_B19037_with_ann!AX268","v":0},{"$f":"[1]ACS_16_5YR_B19037_with_ann!AY268","v":11},{"$f":"[1]ACS_16_5YR_B19037_with_ann!AZ268","v":0},{"$f":"[1]ACS_16_5YR_B19037_with_ann!BA268","v":11},{"$f":"[1]ACS_16_5YR_B19037_with_ann!BB268","v":5},{"$f":"[1]ACS_16_5YR_B19037_with_ann!BC268","v":8},{"$f":"[1]ACS_16_5YR_B19037_with_ann!BD268","v":14},{"$f":"[1]ACS_16_5YR_B19037_with_ann!BE268","v":14},{"$f":"[1]ACS_16_5YR_B19037_with_ann!BF269","v":0},{"$f":"[1]ACS_16_5YR_B19037_with_ann!BG269","v":11},{"$f":"[1]ACS_16_5YR_B19037_with_ann!BH269","v":0},{"$f":"[1]ACS_16_5YR_B19037_with_ann!BI269","v":11},{"$f":"[1]ACS_16_5YR_B19037_with_ann!BJ269","v":3},{"$f":"[1]ACS_16_5YR_B19037_with_ann!BK269","v":5},{"$f":"[1]ACS_16_5YR_B19037_with_ann!BL269","v":22},{"$f":"[1]ACS_16_5YR_B19037_with_ann!BM269","v":15},{"$f":"[1]ACS_16_5YR_B19037_with_ann!BN269","v":0},{"$f":"[1]ACS_16_5YR_B19037_with_ann!BO269","v":11},{"$f":"[1]ACS_16_5YR_B19037_with_ann!BP269","v":3},{"$f":"[1]ACS_16_5YR_B19037_with_ann!BQ269","v":5},{"$f":"[1]ACS_16_5YR_B19037_with_ann!BR269","v":0},{"$f":"[1]ACS_16_5YR_B19037_with_ann!BS269","v":11},{"$f":"[1]ACS_16_5YR_B19037_with_ann!BT269","v":4},{"$f":"[1]ACS_16_5YR_B19037_with_ann!BU269","v":6},{"$f":"[1]ACS_16_5YR_B19037_with_ann!BV269","v":209},{"$f":"[1]ACS_16_5YR_B19037_with_ann!BW269","v":60},{"$f":"[1]ACS_16_5YR_B19037_with_ann!BX269","v":0},{"$f":"[1]ACS_16_5YR_B19037_with_ann!BY269","v":11},{"$f":"[1]ACS_16_5YR_B19037_with_ann!BZ269","v":3},{"$f":"[1]ACS_16_5YR_B19037_with_ann!CA269","v":5},{"$f":"[1]ACS_16_5YR_B19037_with_ann!CB269","v":0},{"$f":"[1]ACS_16_5YR_B19037_with_ann!CC269","v":11},{"$f":"[1]ACS_16_5YR_B19037_with_ann!CD269","v":6},{"$f":"[1]ACS_16_5YR_B19037_with_ann!CE269","v":9},{"$f":"[1]ACS_16_5YR_B19037_with_ann!CF269","v":7},{"$f":"[1]ACS_16_5YR_B19037_with_ann!CG269","v":8},{"$f":"[1]ACS_16_5YR_B19037_with_ann!CH269","v":8},{"$f":"[1]ACS_16_5YR_B19037_with_ann!CI269","v":14},{"$f":"[1]ACS_16_5YR_B19037_with_ann!CJ269","v":3},{"$f":"[1]ACS_16_5YR_B19037_with_ann!CK269","v":5},{"$f":"[1]ACS_16_5YR_B19037_with_ann!CL269","v":8},{"$f":"[1]ACS_16_5YR_B19037_with_ann!CM269","v":13},{"$f":"[1]ACS_16_5YR_B19037_with_ann!CN269","v":5},{"$f":"[1]ACS_16_5YR_B19037_with_ann!CO269","v":9},{"$f":"[1]ACS_16_5YR_B19037_with_ann!CP269","v":7},{"$f":"[1]ACS_16_5YR_B19037_with_ann!CQ269","v":8},{"$f":"[1]ACS_16_5YR_B19037_with_ann!CR269","v":4},{"$f":"[1]ACS_16_5YR_B19037_with_ann!CS269","v":6},{"$f":"[1]ACS_16_5YR_B19037_with_ann!CT269","v":76},{"$f":"[1]ACS_16_5YR_B19037_with_ann!CU269","v":41},{"$f":"[1]ACS_16_5YR_B19037_with_ann!CV269","v":44},{"$f":"[1]ACS_16_5YR_B19037_with_ann!CW269","v":30},{"$f":"[1]ACS_16_5YR_B19037_with_ann!CX270","v":70},{"$f":"[1]ACS_16_5YR_B19037_with_ann!CY270","v":57},{"$f":"[1]ACS_16_5YR_B19037_with_ann!CZ270","v":63},{"$f":"[1]ACS_16_5YR_B19037_with_ann!DA270","v":35},{"$f":"[1]ACS_16_5YR_B19037_with_ann!DB270","v":24},{"$f":"[1]ACS_16_5YR_B19037_with_ann!DC270","v":26},{"$f":"[1]ACS_16_5YR_B19037_with_ann!DD270","v":419},{"$f":"[1]ACS_16_5YR_B19037_with_ann!DE270","v":96},{"$f":"[1]ACS_16_5YR_B19037_with_ann!DF270","v":33},{"$f":"[1]ACS_16_5YR_B19037_with_ann!DG270","v":52},{"$f":"[1]ACS_16_5YR_B19037_with_ann!DH270","v":4},{"$f":"[1]ACS_16_5YR_B19037_with_ann!DI270","v":8},{"$f":"[1]ACS_16_5YR_B19037_with_ann!DJ270","v":16},{"$f":"[1]ACS_16_5YR_B19037_with_ann!DK270","v":17},{"$f":"[1]ACS_16_5YR_B19037_with_ann!DL270","v":65},{"$f":"[1]ACS_16_5YR_B19037_with_ann!DM270","v":58},{"$f":"[1]ACS_16_5YR_B19037_with_ann!DN270","v":12},{"$f":"[1]ACS_16_5YR_B19037_with_ann!DO270","v":14},{"$f":"[1]ACS_16_5YR_B19037_with_ann!DP270","v":15},{"$f":"[1]ACS_16_5YR_B19037_with_ann!DQ270","v":17},{"$f":"[1]ACS_16_5YR_B19037_with_ann!DR270","v":0},{"$f":"[1]ACS_16_5YR_B19037_with_ann!DS270","v":11},{"$f":"[1]ACS_16_5YR_B19037_with_ann!DT270","v":0},{"$f":"[1]ACS_16_5YR_B19037_with_ann!DU270","v":11},{"$f":"[1]ACS_16_5YR_B19037_with_ann!DV270","v":31},{"$f":"[1]ACS_16_5YR_B19037_with_ann!DW270","v":27},{"$f":"[1]ACS_16_5YR_B19037_with_ann!DX270","v":19},{"$f":"[1]ACS_16_5YR_B19037_with_ann!DY270","v":22},{"$f":"[1]ACS_16_5YR_B19037_with_ann!DZ270","v":61},{"$f":"[1]ACS_16_5YR_B19037_with_ann!EA270","v":45},{"$f":"[1]ACS_16_5YR_B19037_with_ann!EB270","v":54},{"$f":"[1]ACS_16_5YR_B19037_with_ann!EC270","v":35},{"$f":"[1]ACS_16_5YR_B19037_with_ann!ED270","v":4},{"$f":"[1]ACS_16_5YR_B19037_with_ann!EE270","v":8},{"$f":"[1]ACS_16_5YR_B19037_with_ann!EF270","v":39},{"$f":"[1]ACS_16_5YR_B19037_with_ann!EG270","v":31},{"$f":"[1]ACS_16_5YR_B19037_with_ann!EH270","v":19},{"$f":"[1]ACS_16_5YR_B19037_with_ann!EI270","v":20},{"$f":"[1]ACS_16_5YR_B19037_with_ann!EJ270","v":47},{"$f":"[1]ACS_16_5YR_B19037_with_ann!EK270","v":36}]
["0600000US3301972740",3301972740,"060","Springfield",{"$f":"[1]ACS_16_5YR_B19037_with_ann!D269","v":442},{"$f":"[1]ACS_16_5YR_B19037_with_ann!E269","v":75},{"$f":"[1]ACS_16_5YR_B19037_with_ann!F269","v":0},{"$f":"[1]ACS_16_5YR_B19037_with_ann!G269","v":11},{"$f":"[1]ACS_16_5YR_B19037_with_ann!H269","v":0},{"$f":"[1]ACS_16_5YR_B19037_with_ann!I269","v":11},{"$f":"[1]ACS_16_5YR_B19037_with_ann!J269","v":0},{"$f":"[1]ACS_16_5YR_B19037_with_ann!K269","v":11},{"$f":"[1]ACS_16_5YR_B19037_with_ann!L269","v":0},{"$f":"[1]ACS_16_5YR_B19037_with_ann!M269","v":11},{"$f":"[1]ACS_16_5YR_B19037_with_ann!N269","v":0},{"$f":"[1]ACS_16_5YR_B19037_with_ann!O269","v":11},{"$f":"[1]ACS_16_5YR_B19037_with_ann!P269","v":0},{"$f":"[1]ACS_16_5YR_B19037_with_ann!Q269","v":11},{"$f":"[1]ACS_16_5YR_B19037_with_ann!R269","v":0},{"$f":"[1]ACS_16_5YR_B19037_with_ann!S269","v":11},{"$f":"[1]ACS_16_5YR_B19037_with_ann!T269","v":0},{"$f":"[1]ACS_16_5YR_B19037_with_ann!U269","v":11},{"$f":"[1]ACS_16_5YR_B19037_with_ann!V269","v":0},{"$f":"[1]ACS_16_5YR_B19037_with_ann!W269","v":11},{"$f":"[1]ACS_16_5YR_B19037_with_ann!X269","v":0},{"$f":"[1]ACS_16_5YR_B19037_with_ann!Y269","v":11},{"$f":"[1]ACS_16_5YR_B19037_with_ann!Z269","v":0},{"$f":"[1]ACS_16_5YR_B19037_with_ann!AA269","v":11},{"$f":"[1]ACS_16_5YR_B19037_with_ann!AB269","v":0},{"$f":"[1]ACS_16_5YR_B19037_with_ann!AC269","v":11},{"$f":"[1]ACS_16_5YR_B19037_with_ann!AD269","v":0},{"$f":"[1]ACS_16_5YR_B19037_with_ann!AE269","v":11},{"$f":"[1]ACS_16_5YR_B19037_with_ann!AF269","v":0},{"$f":"[1]ACS_16_5YR_B19037_with_ann!AG269","v":11},{"$f":"[1]ACS_16_5YR_B19037_with_ann!AH269","v":0},{"$f":"[1]ACS_16_5YR_B19037_with_ann!AI269","v":11},{"$f":"[1]ACS_16_5YR_B19037_with_ann!AJ269","v":0},{"$f":"[1]ACS_16_5YR_B19037_with_ann!AK269","v":11},{"$f":"[1]ACS_16_5YR_B19037_with_ann!AL269","v":0},{"$f":"[1]ACS_16_5YR_B19037_with_ann!AM269","v":11},{"$f":"[1]ACS_16_5YR_B19037_with_ann!AN269","v":51},{"$f":"[1]ACS_16_5YR_B19037_with_ann!AO269","v":25},{"$f":"[1]ACS_16_5YR_B19037_with_ann!AP269","v":8},{"$f":"[1]ACS_16_5YR_B19037_with_ann!AQ269","v":13},{"$f":"[1]ACS_16_5YR_B19037_with_ann!AR269","v":0},{"$f":"[1]ACS_16_5YR_B19037_with_ann!AS269","v":11},{"$f":"[1]ACS_16_5YR_B19037_with_ann!AT269","v":0},{"$f":"[1]ACS_16_5YR_B19037_with_ann!AU269","v":11},{"$f":"[1]ACS_16_5YR_B19037_with_ann!AV269","v":0},{"$f":"[1]ACS_16_5YR_B19037_with_ann!AW269","v":11},{"$f":"[1]ACS_16_5YR_B19037_with_ann!AX269","v":0},{"$f":"[1]ACS_16_5YR_B19037_with_ann!AY269","v":11},{"$f":"[1]ACS_16_5YR_B19037_with_ann!AZ269","v":11},{"$f":"[1]ACS_16_5YR_B19037_with_ann!BA269","v":17},{"$f":"[1]ACS_16_5YR_B19037_with_ann!BB269","v":0},{"$f":"[1]ACS_16_5YR_B19037_with_ann!BC269","v":11},{"$f":"[1]ACS_16_5YR_B19037_with_ann!BD269","v":0},{"$f":"[1]ACS_16_5YR_B19037_with_ann!BE269","v":11},{"$f":"[1]ACS_16_5YR_B19037_with_ann!BF270","v":28},{"$f":"[1]ACS_16_5YR_B19037_with_ann!BG270","v":47},{"$f":"[1]ACS_16_5YR_B19037_with_ann!BH270","v":10},{"$f":"[1]ACS_16_5YR_B19037_with_ann!BI270","v":16},{"$f":"[1]ACS_16_5YR_B19037_with_ann!BJ270","v":101},{"$f":"[1]ACS_16_5YR_B19037_with_ann!BK270","v":57},{"$f":"[1]ACS_16_5YR_B19037_with_ann!BL270","v":52},{"$f":"[1]ACS_16_5YR_B19037_with_ann!BM270","v":47},{"$f":"[1]ACS_16_5YR_B19037_with_ann!BN270","v":65},{"$f":"[1]ACS_16_5YR_B19037_with_ann!BO270","v":51},{"$f":"[1]ACS_16_5YR_B19037_with_ann!BP270","v":35},{"$f":"[1]ACS_16_5YR_B19037_with_ann!BQ270","v":31},{"$f":"[1]ACS_16_5YR_B19037_with_ann!BR270","v":22},{"$f":"[1]ACS_16_5YR_B19037_with_ann!BS270","v":24},{"$f":"[1]ACS_16_5YR_B19037_with_ann!BT270","v":10},{"$f":"[1]ACS_16_5YR_B19037_with_ann!BU270","v":16},{"$f":"[1]ACS_16_5YR_B19037_with_ann!BV270","v":520},{"$f":"[1]ACS_16_5YR_B19037_with_ann!BW270","v":104},{"$f":"[1]ACS_16_5YR_B19037_with_ann!BX270","v":79},{"$f":"[1]ACS_16_5YR_B19037_with_ann!BY270","v":74},{"$f":"[1]ACS_16_5YR_B19037_with_ann!BZ270","v":0},{"$f":"[1]ACS_16_5YR_B19037_with_ann!CA270","v":11},{"$f":"[1]ACS_16_5YR_B19037_with_ann!CB270","v":0},{"$f":"[1]ACS_16_5YR_B19037_with_ann!CC270","v":11},{"$f":"[1]ACS_16_5YR_B19037_with_ann!CD270","v":0},{"$f":"[1]ACS_16_5YR_B19037_with_ann!CE270","v":11},{"$f":"[1]ACS_16_5YR_B19037_with_ann!CF270","v":10},{"$f":"[1]ACS_16_5YR_B19037_with_ann!CG270","v":15},{"$f":"[1]ACS_16_5YR_B19037_with_ann!CH270","v":0},{"$f":"[1]ACS_16_5YR_B19037_with_ann!CI270","v":11},{"$f":"[1]ACS_16_5YR_B19037_with_ann!CJ270","v":0},{"$f":"[1]ACS_16_5YR_B19037_with_ann!CK270","v":11},{"$f":"[1]ACS_16_5YR_B19037_with_ann!CL270","v":0},{"$f":"[1]ACS_16_5YR_B19037_with_ann!CM270","v":11},{"$f":"[1]ACS_16_5YR_B19037_with_ann!CN270","v":41},{"$f":"[1]ACS_16_5YR_B19037_with_ann!CO270","v":51},{"$f":"[1]ACS_16_5YR_B19037_with_ann!CP270","v":46},{"$f":"[1]ACS_16_5YR_B19037_with_ann!CQ270","v":38},{"$f":"[1]ACS_16_5YR_B19037_with_ann!CR270","v":22},{"$f":"[1]ACS_16_5YR_B19037_with_ann!CS270","v":24},{"$f":"[1]ACS_16_5YR_B19037_with_ann!CT270","v":96},{"$f":"[1]ACS_16_5YR_B19037_with_ann!CU270","v":56},{"$f":"[1]ACS_16_5YR_B19037_with_ann!CV270","v":69},{"$f":"[1]ACS_16_5YR_B19037_with_ann!CW270","v":47},{"$f":"[1]ACS_16_5YR_B19037_with_ann!CX271","v":33},{"$f":"[1]ACS_16_5YR_B19037_with_ann!CY271","v":24},{"$f":"[1]ACS_16_5YR_B19037_with_ann!CZ271","v":20},{"$f":"[1]ACS_16_5YR_B19037_with_ann!DA271","v":16},{"$f":"[1]ACS_16_5YR_B19037_with_ann!DB271","v":6},{"$f":"[1]ACS_16_5YR_B19037_with_ann!DC271","v":6},{"$f":"[1]ACS_16_5YR_B19037_with_ann!DD271","v":189},{"$f":"[1]ACS_16_5YR_B19037_with_ann!DE271","v":35},{"$f":"[1]ACS_16_5YR_B19037_with_ann!DF271","v":6},{"$f":"[1]ACS_16_5YR_B19037_with_ann!DG271","v":6},{"$f":"[1]ACS_16_5YR_B19037_with_ann!DH271","v":7},{"$f":"[1]ACS_16_5YR_B19037_with_ann!DI271","v":6},{"$f":"[1]ACS_16_5YR_B19037_with_ann!DJ271","v":3},{"$f":"[1]ACS_16_5YR_B19037_with_ann!DK271","v":4},{"$f":"[1]ACS_16_5YR_B19037_with_ann!DL271","v":20},{"$f":"[1]ACS_16_5YR_B19037_with_ann!DM271","v":19},{"$f":"[1]ACS_16_5YR_B19037_with_ann!DN271","v":20},{"$f":"[1]ACS_16_5YR_B19037_with_ann!DO271","v":11},{"$f":"[1]ACS_16_5YR_B19037_with_ann!DP271","v":13},{"$f":"[1]ACS_16_5YR_B19037_with_ann!DQ271","v":8},{"$f":"[1]ACS_16_5YR_B19037_with_ann!DR271","v":3},{"$f":"[1]ACS_16_5YR_B19037_with_ann!DS271","v":4},{"$f":"[1]ACS_16_5YR_B19037_with_ann!DT271","v":16},{"$f":"[1]ACS_16_5YR_B19037_with_ann!DU271","v":11},{"$f":"[1]ACS_16_5YR_B19037_with_ann!DV271","v":13},{"$f":"[1]ACS_16_5YR_B19037_with_ann!DW271","v":8},{"$f":"[1]ACS_16_5YR_B19037_with_ann!DX271","v":11},{"$f":"[1]ACS_16_5YR_B19037_with_ann!DY271","v":8},{"$f":"[1]ACS_16_5YR_B19037_with_ann!DZ271","v":16},{"$f":"[1]ACS_16_5YR_B19037_with_ann!EA271","v":10},{"$f":"[1]ACS_16_5YR_B19037_with_ann!EB271","v":21},{"$f":"[1]ACS_16_5YR_B19037_with_ann!EC271","v":10},{"$f":"[1]ACS_16_5YR_B19037_with_ann!ED271","v":23},{"$f":"[1]ACS_16_5YR_B19037_with_ann!EE271","v":19},{"$f":"[1]ACS_16_5YR_B19037_with_ann!EF271","v":8},{"$f":"[1]ACS_16_5YR_B19037_with_ann!EG271","v":8},{"$f":"[1]ACS_16_5YR_B19037_with_ann!EH271","v":6},{"$f":"[1]ACS_16_5YR_B19037_with_ann!EI271","v":6},{"$f":"[1]ACS_16_5YR_B19037_with_ann!EJ271","v":3},{"$f":"[1]ACS_16_5YR_B19037_with_ann!EK271","v":5}]
["0600000US3301975060",3301975060,"060","Sunapee",{"$f":"[1]ACS_16_5YR_B19037_with_ann!D270","v":1393},{"$f":"[1]ACS_16_5YR_B19037_with_ann!E270","v":139},{"$f":"[1]ACS_16_5YR_B19037_with_ann!F270","v":50},{"$f":"[1]ACS_16_5YR_B19037_with_ann!G270","v":52},{"$f":"[1]ACS_16_5YR_B19037_with_ann!H270","v":6},{"$f":"[1]ACS_16_5YR_B19037_with_ann!I270","v":10},{"$f":"[1]ACS_16_5YR_B19037_with_ann!J270","v":0},{"$f":"[1]ACS_16_5YR_B19037_with_ann!K270","v":11},{"$f":"[1]ACS_16_5YR_B19037_with_ann!L270","v":0},{"$f":"[1]ACS_16_5YR_B19037_with_ann!M270","v":11},{"$f":"[1]ACS_16_5YR_B19037_with_ann!N270","v":8},{"$f":"[1]ACS_16_5YR_B19037_with_ann!O270","v":13},{"$f":"[1]ACS_16_5YR_B19037_with_ann!P270","v":0},{"$f":"[1]ACS_16_5YR_B19037_with_ann!Q270","v":11},{"$f":"[1]ACS_16_5YR_B19037_with_ann!R270","v":28},{"$f":"[1]ACS_16_5YR_B19037_with_ann!S270","v":47},{"$f":"[1]ACS_16_5YR_B19037_with_ann!T270","v":0},{"$f":"[1]ACS_16_5YR_B19037_with_ann!U270","v":11},{"$f":"[1]ACS_16_5YR_B19037_with_ann!V270","v":0},{"$f":"[1]ACS_16_5YR_B19037_with_ann!W270","v":11},{"$f":"[1]ACS_16_5YR_B19037_with_ann!X270","v":0},{"$f":"[1]ACS_16_5YR_B19037_with_ann!Y270","v":11},{"$f":"[1]ACS_16_5YR_B19037_with_ann!Z270","v":0},{"$f":"[1]ACS_16_5YR_B19037_with_ann!AA270","v":11},{"$f":"[1]ACS_16_5YR_B19037_with_ann!AB270","v":0},{"$f":"[1]ACS_16_5YR_B19037_with_ann!AC270","v":11},{"$f":"[1]ACS_16_5YR_B19037_with_ann!AD270","v":0},{"$f":"[1]ACS_16_5YR_B19037_with_ann!AE270","v":11},{"$f":"[1]ACS_16_5YR_B19037_with_ann!AF270","v":8},{"$f":"[1]ACS_16_5YR_B19037_with_ann!AG270","v":12},{"$f":"[1]ACS_16_5YR_B19037_with_ann!AH270","v":0},{"$f":"[1]ACS_16_5YR_B19037_with_ann!AI270","v":11},{"$f":"[1]ACS_16_5YR_B19037_with_ann!AJ270","v":0},{"$f":"[1]ACS_16_5YR_B19037_with_ann!AK270","v":11},{"$f":"[1]ACS_16_5YR_B19037_with_ann!AL270","v":0},{"$f":"[1]ACS_16_5YR_B19037_with_ann!AM270","v":11},{"$f":"[1]ACS_16_5YR_B19037_with_ann!AN270","v":404},{"$f":"[1]ACS_16_5YR_B19037_with_ann!AO270","v":99},{"$f":"[1]ACS_16_5YR_B19037_with_ann!AP270","v":0},{"$f":"[1]ACS_16_5YR_B19037_with_ann!AQ270","v":11},{"$f":"[1]ACS_16_5YR_B19037_with_ann!AR270","v":11},{"$f":"[1]ACS_16_5YR_B19037_with_ann!AS270","v":17},{"$f":"[1]ACS_16_5YR_B19037_with_ann!AT270","v":0},{"$f":"[1]ACS_16_5YR_B19037_with_ann!AU270","v":11},{"$f":"[1]ACS_16_5YR_B19037_with_ann!AV270","v":39},{"$f":"[1]ACS_16_5YR_B19037_with_ann!AW270","v":55},{"$f":"[1]ACS_16_5YR_B19037_with_ann!AX270","v":0},{"$f":"[1]ACS_16_5YR_B19037_with_ann!AY270","v":11},{"$f":"[1]ACS_16_5YR_B19037_with_ann!AZ270","v":8},{"$f":"[1]ACS_16_5YR_B19037_with_ann!BA270","v":14},{"$f":"[1]ACS_16_5YR_B19037_with_ann!BB270","v":8},{"$f":"[1]ACS_16_5YR_B19037_with_ann!BC270","v":13},{"$f":"[1]ACS_16_5YR_B19037_with_ann!BD270","v":15},{"$f":"[1]ACS_16_5YR_B19037_with_ann!BE270","v":23},{"$f":"[1]ACS_16_5YR_B19037_with_ann!BF271","v":9},{"$f":"[1]ACS_16_5YR_B19037_with_ann!BG271","v":7},{"$f":"[1]ACS_16_5YR_B19037_with_ann!BH271","v":10},{"$f":"[1]ACS_16_5YR_B19037_with_ann!BI271","v":14},{"$f":"[1]ACS_16_5YR_B19037_with_ann!BJ271","v":27},{"$f":"[1]ACS_16_5YR_B19037_with_ann!BK271","v":20},{"$f":"[1]ACS_16_5YR_B19037_with_ann!BL271","v":3},{"$f":"[1]ACS_16_5YR_B19037_with_ann!BM271","v":6},{"$f":"[1]ACS_16_5YR_B19037_with_ann!BN271","v":15},{"$f":"[1]ACS_16_5YR_B19037_with_ann!BO271","v":15},{"$f":"[1]ACS_16_5YR_B19037_with_ann!BP271","v":4},{"$f":"[1]ACS_16_5YR_B19037_with_ann!BQ271","v":5},{"$f":"[1]ACS_16_5YR_B19037_with_ann!BR271","v":8},{"$f":"[1]ACS_16_5YR_B19037_with_ann!BS271","v":7},{"$f":"[1]ACS_16_5YR_B19037_with_ann!BT271","v":3},{"$f":"[1]ACS_16_5YR_B19037_with_ann!BU271","v":4},{"$f":"[1]ACS_16_5YR_B19037_with_ann!BV271","v":280},{"$f":"[1]ACS_16_5YR_B19037_with_ann!BW271","v":48},{"$f":"[1]ACS_16_5YR_B19037_with_ann!BX271","v":0},{"$f":"[1]ACS_16_5YR_B19037_with_ann!BY271","v":11},{"$f":"[1]ACS_16_5YR_B19037_with_ann!BZ271","v":13},{"$f":"[1]ACS_16_5YR_B19037_with_ann!CA271","v":14},{"$f":"[1]ACS_16_5YR_B19037_with_ann!CB271","v":12},{"$f":"[1]ACS_16_5YR_B19037_with_ann!CC271","v":17},{"$f":"[1]ACS_16_5YR_B19037_with_ann!CD271","v":17},{"$f":"[1]ACS_16_5YR_B19037_with_ann!CE271","v":13},{"$f":"[1]ACS_16_5YR_B19037_with_ann!CF271","v":6},{"$f":"[1]ACS_16_5YR_B19037_with_ann!CG271","v":6},{"$f":"[1]ACS_16_5YR_B19037_with_ann!CH271","v":8},{"$f":"[1]ACS_16_5YR_B19037_with_ann!CI271","v":10},{"$f":"[1]ACS_16_5YR_B19037_with_ann!CJ271","v":0},{"$f":"[1]ACS_16_5YR_B19037_with_ann!CK271","v":11},{"$f":"[1]ACS_16_5YR_B19037_with_ann!CL271","v":0},{"$f":"[1]ACS_16_5YR_B19037_with_ann!CM271","v":11},{"$f":"[1]ACS_16_5YR_B19037_with_ann!CN271","v":3},{"$f":"[1]ACS_16_5YR_B19037_with_ann!CO271","v":5},{"$f":"[1]ACS_16_5YR_B19037_with_ann!CP271","v":18},{"$f":"[1]ACS_16_5YR_B19037_with_ann!CQ271","v":11},{"$f":"[1]ACS_16_5YR_B19037_with_ann!CR271","v":30},{"$f":"[1]ACS_16_5YR_B19037_with_ann!CS271","v":14},{"$f":"[1]ACS_16_5YR_B19037_with_ann!CT271","v":72},{"$f":"[1]ACS_16_5YR_B19037_with_ann!CU271","v":32},{"$f":"[1]ACS_16_5YR_B19037_with_ann!CV271","v":42},{"$f":"[1]ACS_16_5YR_B19037_with_ann!CW271","v":23},{"$f":"[1]ACS_16_5YR_B19037_with_ann!CX272","v":44},{"$f":"[1]ACS_16_5YR_B19037_with_ann!CY272","v":33},{"$f":"[1]ACS_16_5YR_B19037_with_ann!CZ272","v":17},{"$f":"[1]ACS_16_5YR_B19037_with_ann!DA272","v":14},{"$f":"[1]ACS_16_5YR_B19037_with_ann!DB272","v":7},{"$f":"[1]ACS_16_5YR_B19037_with_ann!DC272","v":7},{"$f":"[1]ACS_16_5YR_B19037_with_ann!DD272","v":179},{"$f":"[1]ACS_16_5YR_B19037_with_ann!DE272","v":36},{"$f":"[1]ACS_16_5YR_B19037_with_ann!DF272","v":6},{"$f":"[1]ACS_16_5YR_B19037_with_ann!DG272","v":6},{"$f":"[1]ACS_16_5YR_B19037_with_ann!DH272","v":12},{"$f":"[1]ACS_16_5YR_B19037_with_ann!DI272","v":16},{"$f":"[1]ACS_16_5YR_B19037_with_ann!DJ272","v":5},{"$f":"[1]ACS_16_5YR_B19037_with_ann!DK272","v":5},{"$f":"[1]ACS_16_5YR_B19037_with_ann!DL272","v":14},{"$f":"[1]ACS_16_5YR_B19037_with_ann!DM272","v":16},{"$f":"[1]ACS_16_5YR_B19037_with_ann!DN272","v":10},{"$f":"[1]ACS_16_5YR_B19037_with_ann!DO272","v":9},{"$f":"[1]ACS_16_5YR_B19037_with_ann!DP272","v":16},{"$f":"[1]ACS_16_5YR_B19037_with_ann!DQ272","v":14},{"$f":"[1]ACS_16_5YR_B19037_with_ann!DR272","v":3},{"$f":"[1]ACS_16_5YR_B19037_with_ann!DS272","v":4},{"$f":"[1]ACS_16_5YR_B19037_with_ann!DT272","v":16},{"$f":"[1]ACS_16_5YR_B19037_with_ann!DU272","v":15},{"$f":"[1]ACS_16_5YR_B19037_with_ann!DV272","v":18},{"$f":"[1]ACS_16_5YR_B19037_with_ann!DW272","v":15},{"$f":"[1]ACS_16_5YR_B19037_with_ann!DX272","v":13},{"$f":"[1]ACS_16_5YR_B19037_with_ann!DY272","v":8},{"$f":"[1]ACS_16_5YR_B19037_with_ann!DZ272","v":14},{"$f":"[1]ACS_16_5YR_B19037_with_ann!EA272","v":9},{"$f":"[1]ACS_16_5YR_B19037_with_ann!EB272","v":20},{"$f":"[1]ACS_16_5YR_B19037_with_ann!EC272","v":10},{"$f":"[1]ACS_16_5YR_B19037_with_ann!ED272","v":9},{"$f":"[1]ACS_16_5YR_B19037_with_ann!EE272","v":7},{"$f":"[1]ACS_16_5YR_B19037_with_ann!EF272","v":8},{"$f":"[1]ACS_16_5YR_B19037_with_ann!EG272","v":7},{"$f":"[1]ACS_16_5YR_B19037_with_ann!EH272","v":9},{"$f":"[1]ACS_16_5YR_B19037_with_ann!EI272","v":10},{"$f":"[1]ACS_16_5YR_B19037_with_ann!EJ272","v":6},{"$f":"[1]ACS_16_5YR_B19037_with_ann!EK272","v":6}]
["0600000US3301977940",3301977940,"060","Unity",{"$f":"[1]ACS_16_5YR_B19037_with_ann!D271","v":571},{"$f":"[1]ACS_16_5YR_B19037_with_ann!E271","v":56},{"$f":"[1]ACS_16_5YR_B19037_with_ann!F271","v":0},{"$f":"[1]ACS_16_5YR_B19037_with_ann!G271","v":11},{"$f":"[1]ACS_16_5YR_B19037_with_ann!H271","v":0},{"$f":"[1]ACS_16_5YR_B19037_with_ann!I271","v":11},{"$f":"[1]ACS_16_5YR_B19037_with_ann!J271","v":0},{"$f":"[1]ACS_16_5YR_B19037_with_ann!K271","v":11},{"$f":"[1]ACS_16_5YR_B19037_with_ann!L271","v":0},{"$f":"[1]ACS_16_5YR_B19037_with_ann!M271","v":11},{"$f":"[1]ACS_16_5YR_B19037_with_ann!N271","v":0},{"$f":"[1]ACS_16_5YR_B19037_with_ann!O271","v":11},{"$f":"[1]ACS_16_5YR_B19037_with_ann!P271","v":0},{"$f":"[1]ACS_16_5YR_B19037_with_ann!Q271","v":11},{"$f":"[1]ACS_16_5YR_B19037_with_ann!R271","v":0},{"$f":"[1]ACS_16_5YR_B19037_with_ann!S271","v":11},{"$f":"[1]ACS_16_5YR_B19037_with_ann!T271","v":0},{"$f":"[1]ACS_16_5YR_B19037_with_ann!U271","v":11},{"$f":"[1]ACS_16_5YR_B19037_with_ann!V271","v":0},{"$f":"[1]ACS_16_5YR_B19037_with_ann!W271","v":11},{"$f":"[1]ACS_16_5YR_B19037_with_ann!X271","v":0},{"$f":"[1]ACS_16_5YR_B19037_with_ann!Y271","v":11},{"$f":"[1]ACS_16_5YR_B19037_with_ann!Z271","v":0},{"$f":"[1]ACS_16_5YR_B19037_with_ann!AA271","v":11},{"$f":"[1]ACS_16_5YR_B19037_with_ann!AB271","v":0},{"$f":"[1]ACS_16_5YR_B19037_with_ann!AC271","v":11},{"$f":"[1]ACS_16_5YR_B19037_with_ann!AD271","v":0},{"$f":"[1]ACS_16_5YR_B19037_with_ann!AE271","v":11},{"$f":"[1]ACS_16_5YR_B19037_with_ann!AF271","v":0},{"$f":"[1]ACS_16_5YR_B19037_with_ann!AG271","v":11},{"$f":"[1]ACS_16_5YR_B19037_with_ann!AH271","v":0},{"$f":"[1]ACS_16_5YR_B19037_with_ann!AI271","v":11},{"$f":"[1]ACS_16_5YR_B19037_with_ann!AJ271","v":0},{"$f":"[1]ACS_16_5YR_B19037_with_ann!AK271","v":11},{"$f":"[1]ACS_16_5YR_B19037_with_ann!AL271","v":0},{"$f":"[1]ACS_16_5YR_B19037_with_ann!AM271","v":11},{"$f":"[1]ACS_16_5YR_B19037_with_ann!AN271","v":102},{"$f":"[1]ACS_16_5YR_B19037_with_ann!AO271","v":32},{"$f":"[1]ACS_16_5YR_B19037_with_ann!AP271","v":13},{"$f":"[1]ACS_16_5YR_B19037_with_ann!AQ271","v":18},{"$f":"[1]ACS_16_5YR_B19037_with_ann!AR271","v":3},{"$f":"[1]ACS_16_5YR_B19037_with_ann!AS271","v":5},{"$f":"[1]ACS_16_5YR_B19037_with_ann!AT271","v":3},{"$f":"[1]ACS_16_5YR_B19037_with_ann!AU271","v":5},{"$f":"[1]ACS_16_5YR_B19037_with_ann!AV271","v":0},{"$f":"[1]ACS_16_5YR_B19037_with_ann!AW271","v":11},{"$f":"[1]ACS_16_5YR_B19037_with_ann!AX271","v":0},{"$f":"[1]ACS_16_5YR_B19037_with_ann!AY271","v":11},{"$f":"[1]ACS_16_5YR_B19037_with_ann!AZ271","v":0},{"$f":"[1]ACS_16_5YR_B19037_with_ann!BA271","v":11},{"$f":"[1]ACS_16_5YR_B19037_with_ann!BB271","v":4},{"$f":"[1]ACS_16_5YR_B19037_with_ann!BC271","v":5},{"$f":"[1]ACS_16_5YR_B19037_with_ann!BD271","v":0},{"$f":"[1]ACS_16_5YR_B19037_with_ann!BE271","v":11},{"$f":"[1]ACS_16_5YR_B19037_with_ann!BF272","v":3},{"$f":"[1]ACS_16_5YR_B19037_with_ann!BG272","v":4},{"$f":"[1]ACS_16_5YR_B19037_with_ann!BH272","v":7},{"$f":"[1]ACS_16_5YR_B19037_with_ann!BI272","v":8},{"$f":"[1]ACS_16_5YR_B19037_with_ann!BJ272","v":14},{"$f":"[1]ACS_16_5YR_B19037_with_ann!BK272","v":17},{"$f":"[1]ACS_16_5YR_B19037_with_ann!BL272","v":3},{"$f":"[1]ACS_16_5YR_B19037_with_ann!BM272","v":5},{"$f":"[1]ACS_16_5YR_B19037_with_ann!BN272","v":0},{"$f":"[1]ACS_16_5YR_B19037_with_ann!BO272","v":11},{"$f":"[1]ACS_16_5YR_B19037_with_ann!BP272","v":13},{"$f":"[1]ACS_16_5YR_B19037_with_ann!BQ272","v":14},{"$f":"[1]ACS_16_5YR_B19037_with_ann!BR272","v":0},{"$f":"[1]ACS_16_5YR_B19037_with_ann!BS272","v":11},{"$f":"[1]ACS_16_5YR_B19037_with_ann!BT272","v":46},{"$f":"[1]ACS_16_5YR_B19037_with_ann!BU272","v":58},{"$f":"[1]ACS_16_5YR_B19037_with_ann!BV272","v":259},{"$f":"[1]ACS_16_5YR_B19037_with_ann!BW272","v":56},{"$f":"[1]ACS_16_5YR_B19037_with_ann!BX272","v":11},{"$f":"[1]ACS_16_5YR_B19037_with_ann!BY272","v":16},{"$f":"[1]ACS_16_5YR_B19037_with_ann!BZ272","v":0},{"$f":"[1]ACS_16_5YR_B19037_with_ann!CA272","v":11},{"$f":"[1]ACS_16_5YR_B19037_with_ann!CB272","v":3},{"$f":"[1]ACS_16_5YR_B19037_with_ann!CC272","v":5},{"$f":"[1]ACS_16_5YR_B19037_with_ann!CD272","v":6},{"$f":"[1]ACS_16_5YR_B19037_with_ann!CE272","v":6},{"$f":"[1]ACS_16_5YR_B19037_with_ann!CF272","v":3},{"$f":"[1]ACS_16_5YR_B19037_with_ann!CG272","v":5},{"$f":"[1]ACS_16_5YR_B19037_with_ann!CH272","v":4},{"$f":"[1]ACS_16_5YR_B19037_with_ann!CI272","v":5},{"$f":"[1]ACS_16_5YR_B19037_with_ann!CJ272","v":23},{"$f":"[1]ACS_16_5YR_B19037_with_ann!CK272","v":21},{"$f":"[1]ACS_16_5YR_B19037_with_ann!CL272","v":4},{"$f":"[1]ACS_16_5YR_B19037_with_ann!CM272","v":5},{"$f":"[1]ACS_16_5YR_B19037_with_ann!CN272","v":3},{"$f":"[1]ACS_16_5YR_B19037_with_ann!CO272","v":4},{"$f":"[1]ACS_16_5YR_B19037_with_ann!CP272","v":22},{"$f":"[1]ACS_16_5YR_B19037_with_ann!CQ272","v":19},{"$f":"[1]ACS_16_5YR_B19037_with_ann!CR272","v":13},{"$f":"[1]ACS_16_5YR_B19037_with_ann!CS272","v":12},{"$f":"[1]ACS_16_5YR_B19037_with_ann!CT272","v":58},{"$f":"[1]ACS_16_5YR_B19037_with_ann!CU272","v":35},{"$f":"[1]ACS_16_5YR_B19037_with_ann!CV272","v":41},{"$f":"[1]ACS_16_5YR_B19037_with_ann!CW272","v":25},{"$f":"[1]ACS_16_5YR_B19037_with_ann!CX273","v":0},{"$f":"[1]ACS_16_5YR_B19037_with_ann!CY273","v":0},{"$f":"[1]ACS_16_5YR_B19037_with_ann!CZ273","v":0},{"$f":"[1]ACS_16_5YR_B19037_with_ann!DA273","v":0},{"$f":"[1]ACS_16_5YR_B19037_with_ann!DB273","v":0},{"$f":"[1]ACS_16_5YR_B19037_with_ann!DC273","v":0},{"$f":"[1]ACS_16_5YR_B19037_with_ann!DD273","v":0},{"$f":"[1]ACS_16_5YR_B19037_with_ann!DE273","v":0},{"$f":"[1]ACS_16_5YR_B19037_with_ann!DF273","v":0},{"$f":"[1]ACS_16_5YR_B19037_with_ann!DG273","v":0},{"$f":"[1]ACS_16_5YR_B19037_with_ann!DH273","v":0},{"$f":"[1]ACS_16_5YR_B19037_with_ann!DI273","v":0},{"$f":"[1]ACS_16_5YR_B19037_with_ann!DJ273","v":0},{"$f":"[1]ACS_16_5YR_B19037_with_ann!DK273","v":0},{"$f":"[1]ACS_16_5YR_B19037_with_ann!DL273","v":0},{"$f":"[1]ACS_16_5YR_B19037_with_ann!DM273","v":0},{"$f":"[1]ACS_16_5YR_B19037_with_ann!DN273","v":0},{"$f":"[1]ACS_16_5YR_B19037_with_ann!DO273","v":0},{"$f":"[1]ACS_16_5YR_B19037_with_ann!DP273","v":0},{"$f":"[1]ACS_16_5YR_B19037_with_ann!DQ273","v":0},{"$f":"[1]ACS_16_5YR_B19037_with_ann!DR273","v":0},{"$f":"[1]ACS_16_5YR_B19037_with_ann!DS273","v":0},{"$f":"[1]ACS_16_5YR_B19037_with_ann!DT273","v":0},{"$f":"[1]ACS_16_5YR_B19037_with_ann!DU273","v":0},{"$f":"[1]ACS_16_5YR_B19037_with_ann!DV273","v":0},{"$f":"[1]ACS_16_5YR_B19037_with_ann!DW273","v":0},{"$f":"[1]ACS_16_5YR_B19037_with_ann!DX273","v":0},{"$f":"[1]ACS_16_5YR_B19037_with_ann!DY273","v":0},{"$f":"[1]ACS_16_5YR_B19037_with_ann!DZ273","v":0},{"$f":"[1]ACS_16_5YR_B19037_with_ann!EA273","v":0},{"$f":"[1]ACS_16_5YR_B19037_with_ann!EB273","v":0},{"$f":"[1]ACS_16_5YR_B19037_with_ann!EC273","v":0},{"$f":"[1]ACS_16_5YR_B19037_with_ann!ED273","v":0},{"$f":"[1]ACS_16_5YR_B19037_with_ann!EE273","v":0},{"$f":"[1]ACS_16_5YR_B19037_with_ann!EF273","v":0},{"$f":"[1]ACS_16_5YR_B19037_with_ann!EG273","v":0},{"$f":"[1]ACS_16_5YR_B19037_with_ann!EH273","v":0},{"$f":"[1]ACS_16_5YR_B19037_with_ann!EI273","v":0},{"$f":"[1]ACS_16_5YR_B19037_with_ann!EJ273","v":0},{"$f":"[1]ACS_16_5YR_B19037_with_ann!EK273","v":0}]
["0600000US3301978980",3301978980,"060","Washington",{"$f":"[1]ACS_16_5YR_B19037_with_ann!D272","v":537},{"$f":"[1]ACS_16_5YR_B19037_with_ann!E272","v":81},{"$f":"[1]ACS_16_5YR_B19037_with_ann!F272","v":3},{"$f":"[1]ACS_16_5YR_B19037_with_ann!G272","v":5},{"$f":"[1]ACS_16_5YR_B19037_with_ann!H272","v":0},{"$f":"[1]ACS_16_5YR_B19037_with_ann!I272","v":11},{"$f":"[1]ACS_16_5YR_B19037_with_ann!J272","v":0},{"$f":"[1]ACS_16_5YR_B19037_with_ann!K272","v":11},{"$f":"[1]ACS_16_5YR_B19037_with_ann!L272","v":0},{"$f":"[1]ACS_16_5YR_B19037_with_ann!M272","v":11},{"$f":"[1]ACS_16_5YR_B19037_with_ann!N272","v":0},{"$f":"[1]ACS_16_5YR_B19037_with_ann!O272","v":11},{"$f":"[1]ACS_16_5YR_B19037_with_ann!P272","v":0},{"$f":"[1]ACS_16_5YR_B19037_with_ann!Q272","v":11},{"$f":"[1]ACS_16_5YR_B19037_with_ann!R272","v":0},{"$f":"[1]ACS_16_5YR_B19037_with_ann!S272","v":11},{"$f":"[1]ACS_16_5YR_B19037_with_ann!T272","v":0},{"$f":"[1]ACS_16_5YR_B19037_with_ann!U272","v":11},{"$f":"[1]ACS_16_5YR_B19037_with_ann!V272","v":0},{"$f":"[1]ACS_16_5YR_B19037_with_ann!W272","v":11},{"$f":"[1]ACS_16_5YR_B19037_with_ann!X272","v":0},{"$f":"[1]ACS_16_5YR_B19037_with_ann!Y272","v":11},{"$f":"[1]ACS_16_5YR_B19037_with_ann!Z272","v":3},{"$f":"[1]ACS_16_5YR_B19037_with_ann!AA272","v":5},{"$f":"[1]ACS_16_5YR_B19037_with_ann!AB272","v":0},{"$f":"[1]ACS_16_5YR_B19037_with_ann!AC272","v":11},{"$f":"[1]ACS_16_5YR_B19037_with_ann!AD272","v":0},{"$f":"[1]ACS_16_5YR_B19037_with_ann!AE272","v":11},{"$f":"[1]ACS_16_5YR_B19037_with_ann!AF272","v":0},{"$f":"[1]ACS_16_5YR_B19037_with_ann!AG272","v":11},{"$f":"[1]ACS_16_5YR_B19037_with_ann!AH272","v":0},{"$f":"[1]ACS_16_5YR_B19037_with_ann!AI272","v":11},{"$f":"[1]ACS_16_5YR_B19037_with_ann!AJ272","v":0},{"$f":"[1]ACS_16_5YR_B19037_with_ann!AK272","v":11},{"$f":"[1]ACS_16_5YR_B19037_with_ann!AL272","v":0},{"$f":"[1]ACS_16_5YR_B19037_with_ann!AM272","v":11},{"$f":"[1]ACS_16_5YR_B19037_with_ann!AN272","v":96},{"$f":"[1]ACS_16_5YR_B19037_with_ann!AO272","v":65},{"$f":"[1]ACS_16_5YR_B19037_with_ann!AP272","v":0},{"$f":"[1]ACS_16_5YR_B19037_with_ann!AQ272","v":11},{"$f":"[1]ACS_16_5YR_B19037_with_ann!AR272","v":0},{"$f":"[1]ACS_16_5YR_B19037_with_ann!AS272","v":11},{"$f":"[1]ACS_16_5YR_B19037_with_ann!AT272","v":10},{"$f":"[1]ACS_16_5YR_B19037_with_ann!AU272","v":16},{"$f":"[1]ACS_16_5YR_B19037_with_ann!AV272","v":0},{"$f":"[1]ACS_16_5YR_B19037_with_ann!AW272","v":11},{"$f":"[1]ACS_16_5YR_B19037_with_ann!AX272","v":0},{"$f":"[1]ACS_16_5YR_B19037_with_ann!AY272","v":11},{"$f":"[1]ACS_16_5YR_B19037_with_ann!AZ272","v":0},{"$f":"[1]ACS_16_5YR_B19037_with_ann!BA272","v":11},{"$f":"[1]ACS_16_5YR_B19037_with_ann!BB272","v":0},{"$f":"[1]ACS_16_5YR_B19037_with_ann!BC272","v":11},{"$f":"[1]ACS_16_5YR_B19037_with_ann!BD272","v":0},{"$f":"[1]ACS_16_5YR_B19037_with_ann!BE272","v":11},{"$f":"[1]ACS_16_5YR_B19037_with_ann!BF273","v":0},{"$f":"[1]ACS_16_5YR_B19037_with_ann!BG273","v":0},{"$f":"[1]ACS_16_5YR_B19037_with_ann!BH273","v":0},{"$f":"[1]ACS_16_5YR_B19037_with_ann!BI273","v":0},{"$f":"[1]ACS_16_5YR_B19037_with_ann!BJ273","v":0},{"$f":"[1]ACS_16_5YR_B19037_with_ann!BK273","v":0},{"$f":"[1]ACS_16_5YR_B19037_with_ann!BL273","v":0},{"$f":"[1]ACS_16_5YR_B19037_with_ann!BM273","v":0},{"$f":"[1]ACS_16_5YR_B19037_with_ann!BN273","v":0},{"$f":"[1]ACS_16_5YR_B19037_with_ann!BO273","v":0},{"$f":"[1]ACS_16_5YR_B19037_with_ann!BP273","v":0},{"$f":"[1]ACS_16_5YR_B19037_with_ann!BQ273","v":0},{"$f":"[1]ACS_16_5YR_B19037_with_ann!BR273","v":0},{"$f":"[1]ACS_16_5YR_B19037_with_ann!BS273","v":0},{"$f":"[1]ACS_16_5YR_B19037_with_ann!BT273","v":0},{"$f":"[1]ACS_16_5YR_B19037_with_ann!BU273","v":0},{"$f":"[1]ACS_16_5YR_B19037_with_ann!BV273","v":0},{"$f":"[1]ACS_16_5YR_B19037_with_ann!BW273","v":0},{"$f":"[1]ACS_16_5YR_B19037_with_ann!BX273","v":0},{"$f":"[1]ACS_16_5YR_B19037_with_ann!BY273","v":0},{"$f":"[1]ACS_16_5YR_B19037_with_ann!BZ273","v":0},{"$f":"[1]ACS_16_5YR_B19037_with_ann!CA273","v":0},{"$f":"[1]ACS_16_5YR_B19037_with_ann!CB273","v":0},{"$f":"[1]ACS_16_5YR_B19037_with_ann!CC273","v":0},{"$f":"[1]ACS_16_5YR_B19037_with_ann!CD273","v":0},{"$f":"[1]ACS_16_5YR_B19037_with_ann!CE273","v":0},{"$f":"[1]ACS_16_5YR_B19037_with_ann!CF273","v":0},{"$f":"[1]ACS_16_5YR_B19037_with_ann!CG273","v":0},{"$f":"[1]ACS_16_5YR_B19037_with_ann!CH273","v":0},{"$f":"[1]ACS_16_5YR_B19037_with_ann!CI273","v":0},{"$f":"[1]ACS_16_5YR_B19037_with_ann!CJ273","v":0},{"$f":"[1]ACS_16_5YR_B19037_with_ann!CK273","v":0},{"$f":"[1]ACS_16_5YR_B19037_with_ann!CL273","v":0},{"$f":"[1]ACS_16_5YR_B19037_with_ann!CM273","v":0},{"$f":"[1]ACS_16_5YR_B19037_with_ann!CN273","v":0},{"$f":"[1]ACS_16_5YR_B19037_with_ann!CO273","v":0},{"$f":"[1]ACS_16_5YR_B19037_with_ann!CP273","v":0},{"$f":"[1]ACS_16_5YR_B19037_with_ann!CQ273","v":0},{"$f":"[1]ACS_16_5YR_B19037_with_ann!CR273","v":0},{"$f":"[1]ACS_16_5YR_B19037_with_ann!CS273","v":0},{"$f":"[1]ACS_16_5YR_B19037_with_ann!CT273","v":0},{"$f":"[1]ACS_16_5YR_B19037_with_ann!CU273","v":0},{"$f":"[1]ACS_16_5YR_B19037_with_ann!CV273","v":0},{"$f":"[1]ACS_16_5YR_B19037_with_ann!CW273","v":0},{"$f":"[1]ACS_16_5YR_B19037_with_ann!CX274","v":0},{"$f":"[1]ACS_16_5YR_B19037_with_ann!CY274","v":0},{"$f":"[1]ACS_16_5YR_B19037_with_ann!CZ274","v":0},{"$f":"[1]ACS_16_5YR_B19037_with_ann!DA274","v":0},{"$f":"[1]ACS_16_5YR_B19037_with_ann!DB274","v":0},{"$f":"[1]ACS_16_5YR_B19037_with_ann!DC274","v":0},{"$f":"[1]ACS_16_5YR_B19037_with_ann!DD274","v":0},{"$f":"[1]ACS_16_5YR_B19037_with_ann!DE274","v":0},{"$f":"[1]ACS_16_5YR_B19037_with_ann!DF274","v":0},{"$f":"[1]ACS_16_5YR_B19037_with_ann!DG274","v":0},{"$f":"[1]ACS_16_5YR_B19037_with_ann!DH274","v":0},{"$f":"[1]ACS_16_5YR_B19037_with_ann!DI274","v":0},{"$f":"[1]ACS_16_5YR_B19037_with_ann!DJ274","v":0},{"$f":"[1]ACS_16_5YR_B19037_with_ann!DK274","v":0},{"$f":"[1]ACS_16_5YR_B19037_with_ann!DL274","v":0},{"$f":"[1]ACS_16_5YR_B19037_with_ann!DM274","v":0},{"$f":"[1]ACS_16_5YR_B19037_with_ann!DN274","v":0},{"$f":"[1]ACS_16_5YR_B19037_with_ann!DO274","v":0},{"$f":"[1]ACS_16_5YR_B19037_with_ann!DP274","v":0},{"$f":"[1]ACS_16_5YR_B19037_with_ann!DQ274","v":0},{"$f":"[1]ACS_16_5YR_B19037_with_ann!DR274","v":0},{"$f":"[1]ACS_16_5YR_B19037_with_ann!DS274","v":0},{"$f":"[1]ACS_16_5YR_B19037_with_ann!DT274","v":0},{"$f":"[1]ACS_16_5YR_B19037_with_ann!DU274","v":0},{"$f":"[1]ACS_16_5YR_B19037_with_ann!DV274","v":0},{"$f":"[1]ACS_16_5YR_B19037_with_ann!DW274","v":0},{"$f":"[1]ACS_16_5YR_B19037_with_ann!DX274","v":0},{"$f":"[1]ACS_16_5YR_B19037_with_ann!DY274","v":0},{"$f":"[1]ACS_16_5YR_B19037_with_ann!DZ274","v":0},{"$f":"[1]ACS_16_5YR_B19037_with_ann!EA274","v":0},{"$f":"[1]ACS_16_5YR_B19037_with_ann!EB274","v":0},{"$f":"[1]ACS_16_5YR_B19037_with_ann!EC274","v":0},{"$f":"[1]ACS_16_5YR_B19037_with_ann!ED274","v":0},{"$f":"[1]ACS_16_5YR_B19037_with_ann!EE274","v":0},{"$f":"[1]ACS_16_5YR_B19037_with_ann!EF274","v":0},{"$f":"[1]ACS_16_5YR_B19037_with_ann!EG274","v":0},{"$f":"[1]ACS_16_5YR_B19037_with_ann!EH274","v":0},{"$f":"[1]ACS_16_5YR_B19037_with_ann!EI274","v":0},{"$f":"[1]ACS_16_5YR_B19037_with_ann!EJ274","v":0},{"$f":"[1]ACS_16_5YR_B19037_with_ann!EK274","v":0}]
[]
[null,null,null,null,{"$f":"$D$3","v":"Acworth"},null,{"$f":"$D$4","v":"Charlestown"},null,{"$f":"$D$5","v":"Claremont"},null,{"$f":"$D$6","v":"Cornish"},null,{"$f":"$D$7","v":"Croydon"},null,{"$f":"$D$8","v":"Goshen"},null,{"$f":"$D$9","v":"Grantham"},null,{"$f":"$D$10","v":"Langdon"},null,{"$f":"$D$11","v":"Lempster"},null,{"$f":"$D$12","v":"Newport"},null,{"$f":"$D$13","v":"Plainfield"},null,{"$f":"$D$14","v":"Springfield"},null,{"$f":"$D$15","v":"Sunapee"},null,{"$f":"$D$16","v":"Unity"},null,{"$f":"$D$17","v":"Washington"}]
[null,null,null,null,"Estimate","Margin Of Error","Estimate","Margin Of Error","Estimate","Margin Of Error","Estimate","Margin Of Error","Estimate","Margin Of Error","Estimate","Margin Of Error","Estimate","Margin Of Error","Estimate","Margin Of Error","Estimate","Margin Of Error","Estimate","Margin Of Error","Estimate","Margin Of Error","Estimate","Margin Of Error","Estimate","Margin Of Error",null,"Estimate","Margin Of Error"]
[null,null,null,"Estimate Total:",370,51,2086,184,5231,284,741,81,293,56,277,39,1222,142,257,47,393,59,2600,168,915,86,442,75,1393,139,571,56,537,81]
[null,null,null,"Estimate  Householder under 25 years:",0,11,14,19,227,118,0,11,8,9,6,9,40,40,6,10,3,4,65,48,5,7,0,11,50,52,0,11,3,5]
[null,null,null,"Estimate  Householder under 25 years: - Less than $10,000",0,11,6,9,21,34,0,11,0,11,0,11,0,11,6,10,0,11,32,31,0,11,0,11,6,10,0,11,0,11]
[null,null,null,"Estimate  Householder under 25 years: - $10,000 to $14,999",0,11,0,16,0,18,0,11,0,11,0,11,0,11,0,11,0,11,0,16,0,11,0,11,0,11,0,11,0,11]
[null,null,null,"Estimate  Householder under 25 years: - $15,000 to $19,999",0,11,0,16,5,8,0,11,0,11,0,11,0,11,0,11,0,11,0,16,0,11,0,11,0,11,0,11,0,11]
[null,null,null,"Estimate  Householder under 25 years: - $20,000 to $24,999",0,11,0,16,46,50,0,11,0,11,0,11,0,11,0,11,0,11,0,16,0,11,0,11,8,13,0,11,0,11]
[null,null,null,"Estimate  Householder under 25 years: - $25,000 to $29,999",0,11,0,16,9,14,0,11,0,11,0,11,0,11,0,11,0,11,0,16,0,11,0,11,0,11,0,11,0,11]
[null,null,null,"Estimate  Householder under 25 years: - $30,000 to $34,999",0,11,8,15,0,18,0,11,2,4,0,11,0,11,0,11,0,11,11,16,0,11,0,11,28,47,0,11,0,11]
[null,null,null,"Estimate  Householder under 25 years: - $35,000 to $39,999",0,11,0,16,0,18,0,11,0,11,0,11,0,11,0,11,0,11,0,16,0,11,0,11,0,11,0,11,0,11]
[null,null,null,"Estimate  Householder under 25 years: - $40,000 to $44,999",0,11,0,16,22,27,0,11,0,11,0,11,0,11,0,11,0,11,0,16,0,11,0,11,0,11,0,11,0,11]
[null,null,null,"Estimate  Householder under 25 years: - $45,000 to $49,999",0,11,0,16,18,30,0,11,0,11,0,11,0,11,0,11,0,11,0,16,0,11,0,11,0,11,0,11,0,11]
[null,null,null,"Estimate  Householder under 25 years: - $50,000 to $59,999",0,11,0,16,12,20,0,11,0,11,0,11,0,11,0,11,0,11,0,16,0,11,0,11,0,11,0,11,3,5]
[null,null,null,"Estimate  Householder under 25 years: - $60,000 to $74,999",0,11,0,16,9,14,0,11,6,9,6,9,17,24,0,11,3,4,0,16,5,7,0,11,0,11,0,11,0,11]
[null,null,null,"Estimate  Householder under 25 years: - $75,000 to $99,999",0,11,0,16,85,74,0,11,0,11,0,11,0,11,0,11,0,11,22,26,0,11,0,11,0,11,0,11,0,11]
[null,null,null,"Estimate  Householder under 25 years: - $100,000 to $124,999",0,11,0,16,0,18,0,11,0,11,0,11,23,33,0,11,0,11,0,16,0,11,0,11,8,12,0,11,0,11]
[null,null,null,"Estimate  Householder under 25 years: - $125,000 to $149,999",0,11,0,16,0,18,0,11,0,11,0,11,0,11,0,11,0,11,0,16,0,11,0,11,0,11,0,11,0,11]
[null,null,null,"Estimate  Householder under 25 years: - $150,000 to $199,999",0,11,0,16,0,18,0,11,0,11,0,11,0,11,0,11,0,11,0,16,0,11,0,11,0,11,0,11,0,11]
[null,null,null,"Estimate  Householder under 25 years: - $200,000 or more",0,11,0,16,0,18,0,11,0,11,0,11,0,11,0,11,0,11,0,16,0,11,0,11,0,11,0,11,0,11]
[null,null,null,"Estimate  Householder 25 to 44 years years:",53,23,526,132,1585,199,96,34,50,21,84,31,215,83,65,22,91,32,814,162,190,49,51,25,404,99,102,32,96,65]
[null,null,null,"Estimate  Householder 25 to 44 years years: - Less than $10,000",6,10,71,71,67,56,7,9,0,11,8,10,0,11,0,11,3,5,84,93,0,11,8,13,0,11,13,18,0,11]
[null,null,null,"Estimate  Householder 25 to 44 years years: - $10,000 to $14,999",0,11,0,16,56,46,0,11,0,11,0,11,0,11,0,11,9,14,0,16,0,11,0,11,11,17,3,5,0,11]
[null,null,null,"Estimate  Householder 25 to 44 years years: - $15,000 to $19,999",0,11,29,47,0,18,0,11,0,11,3,4,0,11,0,11,0,11,59,60,0,11,0,11,0,11,3,5,10,16]
[null,null,null,"Estimate  Householder 25 to 44 years years: - $20,000 to $24,999",0,11,0,16,122,90,0,11,0,11,0,11,0,11,0,11,0,11,14,22,0,11,0,11,39,55,0,11,0,11]
[null,null,null,"Estimate  Householder 25 to 44 years years: - $25,000 to $29,999",0,11,32,53,126,84,8,13,3,5,2,4,0,11,0,11,0,11,0,16,0,11,0,11,0,11,0,11,0,11]
[null,null,null,"Estimate  Householder 25 to 44 years years: - $30,000 to $34,999",2,3,51,58,21,33,0,11,0,11,0,11,0,11,0,11,0,11,24,28,0,11,11,17,8,14,0,11,0,11]
[null,null,null,"Estimate  Householder 25 to 44 years years: - $35,000 to $39,999",2,3,29,43,0,18,4,6,0,11,0,11,0,11,6,10,8,10,25,29,5,8,0,11,8,13,4,5,0,11]
[null,null,null,"Estimate  Householder 25 to 44 years years: - $40,000 to $44,999",11,11,22,39,178,108,0,11,0,11,0,11,0,11,2,3,0,11,13,20,14,14,0,11,15,23,0,11,0,11]
[null,null,null,"Estimate  Householder 25 to 44 years years: - $45,000 to $49,999",2,3,26,34,51,43,2,4,8,12,0,11,0,11,7,7,0,16,7,10,0,11,28,47,9,7,3,4,0,0]
[null,null,null,"Estimate  Householder 25 to 44 years years: - $50,000 to $59,999",2,3,16,25,109,71,2,5,26,19,23,37,0,11,0,11,231,123,5,7,0,11,10,16,10,14,7,8,0,0]
[null,null,null,"Estimate  Householder 25 to 44 years years: - $60,000 to $74,999",9,8,0,16,185,105,7,11,5,5,54,58,19,16,0,11,79,78,32,33,3,5,101,57,27,20,14,17,0,0]
[null,null,null,"Estimate  Householder 25 to 44 years years: - $75,000 to $99,999",5,6,153,99,375,113,12,10,19,13,0,11,16,14,11,10,182,102,35,21,22,15,52,47,3,6,3,5,0,0]
[null,null,null,"Estimate  Householder 25 to 44 years years: - $100,000 to $124,999",2,3,38,47,112,67,10,8,4,5,41,43,10,9,42,28,64,64,40,28,0,11,65,51,15,15,0,11,0,0]
[null,null,null,"Estimate  Householder 25 to 44 years years: - $125,000 to $149,999",7,6,36,59,104,64,10,12,3,4,39,52,4,5,11,10,26,30,15,13,3,5,35,31,4,5,13,14,0,0,null,null,null,null,null,null,null,null,null,null,null,null,null,null,null,null,null,null,null,null,null,null,null,null,null,null,null,null,null,null,null,null,null,null,null,null,null,null,null,null,null,null,null,null,null,null,null,null,null,null,null,null,null,null,null,null,null,null,null,null,null,null,null,null,null,null,null,null,null,null,null,null,null,null,null,null,null,null,null,null,null,null,null,null,null,null,null,null,null,null,null,null,null,null,null,null,null,null,null,null,null,null,null,null,null,null,null,null,null,null,null,null,null,null,null,null,null,null,null,null,null,null,null,null,null,null,null,null,null,null,null,null,null,null,null,null,null,null,null,null,null,null,null,null,null,null,null,null,null,null,null,null,null,null,null,null,null,null,null,null,null,null,null,null,null,null,null,null,null,null,null,null,null,null,null,null,null,null,null,null,null,null,null,null,null,null,null,null,null,null,null,null,null,null,null,null,null,{"$f":"LEFT(#REF!,LEN(#REF!)-10)","v":{"$error":"#REF!"}},{"$f":"LEFT(#REF!,LEN(#REF!)-10)","v":{"$error":"#REF!"}},{"$f":"LEFT(#REF!,LEN(#REF!)-10)","v":{"$error":"#REF!"}},{"$f":"LEFT(#REF!,LEN(#REF!)-10)","v":{"$error":"#REF!"}},{"$f":"LEFT(#REF!,LEN(#REF!)-10)","v":{"$error":"#REF!"}},{"$f":"LEFT(#REF!,LEN(#REF!)-10)","v":{"$error":"#REF!"}},{"$f":"LEFT(#REF!,LEN(#REF!)-10)","v":{"$error":"#REF!"}},{"$f":"LEFT(#REF!,LEN(#REF!)-10)","v":{"$error":"#REF!"}},{"$f":"LEFT(#REF!,LEN(#REF!)-10)","v":{"$error":"#REF!"}},{"$f":"LEFT(#REF!,LEN(#REF!)-10)","v":{"$error":"#REF!"}},{"$f":"LEFT(#REF!,LEN(#REF!)-10)","v":{"$error":"#REF!"}},{"$f":"LEFT(#REF!,LEN(#REF!)-10)","v":{"$error":"#REF!"}},{"$f":"LEFT(#REF!,LEN(#REF!)-10)","v":{"$error":"#REF!"}},{"$f":"LEFT(#REF!,LEN(#REF!)-10)","v":{"$error":"#REF!"}},{"$f":"LEFT(#REF!,LEN(#REF!)-10)","v":{"$error":"#REF!"}},{"$f":"LEFT(#REF!,LEN(#REF!)-10)","v":{"$error":"#REF!"}},{"$f":"LEFT(#REF!,LEN(#REF!)-10)","v":{"$error":"#REF!"}},{"$f":"LEFT(#REF!,LEN(#REF!)-10)","v":{"$error":"#REF!"}},{"$f":"LEFT(#REF!,LEN(#REF!)-10)","v":{"$error":"#REF!"}},{"$f":"LEFT(#REF!,LEN(#REF!)-10)","v":{"$error":"#REF!"}},{"$f":"LEFT(#REF!,LEN(#REF!)-10)","v":{"$error":"#REF!"}},{"$f":"LEFT(#REF!,LEN(#REF!)-10)","v":{"$error":"#REF!"}},{"$f":"LEFT(#REF!,LEN(#REF!)-10)","v":{"$error":"#REF!"}},{"$f":"LEFT(#REF!,LEN(#REF!)-10)","v":{"$error":"#REF!"}},{"$f":"LEFT(#REF!,LEN(#REF!)-10)","v":{"$error":"#REF!"}}]
[null,null,null,"Estimate  Householder 25 to 44 years years: - $150,000 to $199,999",3,5,0,16,33,50,4,6,6,7,29,31,8,8,0,11,0,16,16,26,0,11,22,24,8,7,0,11,0,0,null,null,null,null,null,null,null,null,null,null,null,null,null,null,null,null,null,null,null,null,null,null,null,null,null,null,null,null,null,null,null,null,null,null,null,null,null,null,null,null,null,null,null,null,null,null,null,null,null,null,null,null,null,null,null,null,null,null,null,null,null,null,null,null,null,null,null,null,null,null,null,null,null,null,null,null,null,null,null,null,null,null,null,null,null,null,null,null,null,null,null,null,null,null,null,null,null,null,null,null,null,null,null,null,null,null,null,null,null,null,null,null,null,null,null,null,null,null,null,null,null,null,null,null,null,null,null,null,null,null,null,null,null,null,null,null,null,null,null,null,null,null,null,null,null,null,null,null,null,null,null,null,null,null,null,null,null,null,null,null,null,null,null,null,null,null,null,null,null,null,null,null,null,null,null,null,null,null,null,null,null,null,null,null,null,null,null,null,null,null,null,null,null,null,null,null,null,{"$f":"LEFT(#REF!,LEN(#REF!)-10)","v":{"$error":"#REF!"}},{"$f":"LEFT(#REF!,LEN(#REF!)-10)","v":{"$error":"#REF!"}},{"$f":"LEFT(#REF!,LEN(#REF!)-10)","v":{"$error":"#REF!"}},{"$f":"LEFT(#REF!,LEN(#REF!)-10)","v":{"$error":"#REF!"}},{"$f":"LEFT(#REF!,LEN(#REF!)-10)","v":{"$error":"#REF!"}},{"$f":"LEFT(#REF!,LEN(#REF!)-10)","v":{"$error":"#REF!"}},{"$f":"LEFT(#REF!,LEN(#REF!)-10)","v":{"$error":"#REF!"}},{"$f":"LEFT(#REF!,LEN(#REF!)-10)","v":{"$error":"#REF!"}},{"$f":"LEFT(#REF!,LEN(#REF!)-10)","v":{"$error":"#REF!"}},{"$f":"LEFT(#REF!,LEN(#REF!)-10)","v":{"$error":"#REF!"}},{"$f":"LEFT(#REF!,LEN(#REF!)-10)","v":{"$error":"#REF!"}},{"$f":"LEFT(#REF!,LEN(#REF!)-10)","v":{"$error":"#REF!"}},{"$f":"LEFT(#REF!,LEN(#REF!)-10)","v":{"$error":"#REF!"}},{"$f":"LEFT(#REF!,LEN(#REF!)-10)","v":{"$error":"#REF!"}},{"$f":"LEFT(#REF!,LEN(#REF!)-10)","v":{"$error":"#REF!"}},{"$f":"LEFT(#REF!,LEN(#REF!)-10)","v":{"$error":"#REF!"}},{"$f":"LEFT(#REF!,LEN(#REF!)-10)","v":{"$error":"#REF!"}},{"$f":"LEFT(#REF!,LEN(#REF!)-10)","v":{"$error":"#REF!"}},{"$f":"LEFT(#REF!,LEN(#REF!)-10)","v":{"$error":"#REF!"}},{"$f":"LEFT(#REF!,LEN(#REF!)-10)","v":{"$error":"#REF!"}},{"$f":"LEFT(#REF!,LEN(#REF!)-10)","v":{"$error":"#REF!"}},{"$f":"LEFT(#REF!,LEN(#REF!)-10)","v":{"$error":"#REF!"}},{"$f":"LEFT(#REF!,LEN(#REF!)-10)","v":{"$error":"#REF!"}},{"$f":"LEFT(#REF!,LEN(#REF!)-10)","v":{"$error":"#REF!"}},{"$f":"LEFT(#REF!,LEN(#REF!)-10)","v":{"$error":"#REF!"}}]
[null,null,null,"Estimate  Householder 25 to 44 years years: - $200,000 or more",2,3,23,36,46,35,0,11,0,11,29,32,0,11,0,11,13,21,21,13,4,6,10,16,3,4,46,58,0,0,null,null,null,null,null,null,null,null,null,null,null,null,null,null,null,null,null,null,null,null,null,null,null,null,null,null,null,null,null,null,null,null,null,null,null,null,null,null,null,null,null,null,null,null,null,null,null,null,null,null,null,null,null,null,null,null,null,null,null,null,null,null,null,null,null,null,null,null,null,null,null,null,null,null,null,null,null,null,null,null,null,null,null,null,null,null,null,null,null,null,null,null,null,null,null,null,null,null,null,null,null,null,null,null,null,null,null,null,null,null,null,null,null,null,null,null,null,null,null,null,null,null,null,null,null,null,null,null,null,null,null,null,null,null,null,null,null,null,null,null,null,null,null,null,null,null,null,null,null,null,null,null,null,null,null,null,null,null,null,null,null,null,null,null,null,null,null,null,null,null,null,null,null,null,null,null,null,null,null,null,null,null,null,null,null,null,null,null,null,null,null,null,null,null,null,null,null,{"$f":"LEFT(#REF!,LEN(#REF!)-10)","v":{"$error":"#REF!"}},{"$f":"LEFT(#REF!,LEN(#REF!)-10)","v":{"$error":"#REF!"}},{"$f":"LEFT(#REF!,LEN(#REF!)-10)","v":{"$error":"#REF!"}},{"$f":"LEFT(#REF!,LEN(#REF!)-10)","v":{"$error":"#REF!"}},{"$f":"LEFT(#REF!,LEN(#REF!)-10)","v":{"$error":"#REF!"}},{"$f":"LEFT(#REF!,LEN(#REF!)-10)","v":{"$error":"#REF!"}},{"$f":"LEFT(#REF!,LEN(#REF!)-10)","v":{"$error":"#REF!"}},{"$f":"LEFT(#REF!,LEN(#REF!)-10)","v":{"$error":"#REF!"}},{"$f":"LEFT(#REF!,LEN(#REF!)-10)","v":{"$error":"#REF!"}},{"$f":"LEFT(#REF!,LEN(#REF!)-10)","v":{"$error":"#REF!"}},{"$f":"LEFT(#REF!,LEN(#REF!)-10)","v":{"$error":"#REF!"}},{"$f":"LEFT(#REF!,LEN(#REF!)-10)","v":{"$error":"#REF!"}},{"$f":"LEFT(#REF!,LEN(#REF!)-10)","v":{"$error":"#REF!"}},{"$f":"LEFT(#REF!,LEN(#REF!)-10)","v":{"$error":"#REF!"}},{"$f":"LEFT(#REF!,LEN(#REF!)-10)","v":{"$error":"#REF!"}},{"$f":"LEFT(#REF!,LEN(#REF!)-10)","v":{"$error":"#REF!"}},{"$f":"LEFT(#REF!,LEN(#REF!)-10)","v":{"$error":"#REF!"}},{"$f":"LEFT(#REF!,LEN(#REF!)-10)","v":{"$error":"#REF!"}},{"$f":"LEFT(#REF!,LEN(#REF!)-10)","v":{"$error":"#REF!"}},{"$f":"LEFT(#REF!,LEN(#REF!)-10)","v":{"$error":"#REF!"}},{"$f":"LEFT(#REF!,LEN(#REF!)-10)","v":{"$error":"#REF!"}},{"$f":"LEFT(#REF!,LEN(#REF!)-10)","v":{"$error":"#REF!"}},{"$f":"LEFT(#REF!,LEN(#REF!)-10)","v":{"$error":"#REF!"}},{"$f":"LEFT(#REF!,LEN(#REF!)-10)","v":{"$error":"#REF!"}},{"$f":"LEFT(#REF!,LEN(#REF!)-10)","v":{"$error":"#REF!"}}]
[null,null,null,"Estimate  Householder 45 to 64 years years:",169,42,897,203,2011,231,153,52,99,33,558,124,130,41,197,56,1037,185,449,86,209,60,520,104,280,48,259,56,0,0,null,null,null,null,null,null,null,null,null,null,null,null,null,null,null,null,null,null,null,null,null,null,null,null,null,null,null,null,null,null,null,null,null,null,null,null,null,null,null,null,null,null,null,null,null,null,null,null,null,null,null,null,null,null,null,null,null,null,null,null,null,null,null,null,null,null,null,null,null,null,null,null,null,null,null,null,null,null,null,null,null,null,null,null,null,null,null,null,null,null,null,null,null,null,null,null,null,null,null,null,null,null,null,null,null,null,null,null,null,null,null,null,null,null,null,null,null,null,null,null,null,null,null,null,null,null,null,null,null,null,null,null,null,null,null,null,null,null,null,null,null,null,null,null,null,null,null,null,null,null,null,null,null,null,null,null,null,null,null,null,null,null,null,null,null,null,null,null,null,null,null,null,null,null,null,null,null,null,null,null,null,null,null,null,null,null,null,null,null,null,null,null,null,null,null,null,null,{"$f":"LEFT(#REF!,LEN(#REF!)-10)","v":{"$error":"#REF!"}},{"$f":"LEFT(#REF!,LEN(#REF!)-10)","v":{"$error":"#REF!"}},{"$f":"LEFT(#REF!,LEN(#REF!)-10)","v":{"$error":"#REF!"}},{"$f":"LEFT(#REF!,LEN(#REF!)-10)","v":{"$error":"#REF!"}},{"$f":"LEFT(#REF!,LEN(#REF!)-10)","v":{"$error":"#REF!"}},{"$f":"LEFT(#REF!,LEN(#REF!)-10)","v":{"$error":"#REF!"}},{"$f":"LEFT(#REF!,LEN(#REF!)-10)","v":{"$error":"#REF!"}},{"$f":"LEFT(#REF!,LEN(#REF!)-10)","v":{"$error":"#REF!"}},{"$f":"LEFT(#REF!,LEN(#REF!)-10)","v":{"$error":"#REF!"}},{"$f":"LEFT(#REF!,LEN(#REF!)-10)","v":{"$error":"#REF!"}},{"$f":"LEFT(#REF!,LEN(#REF!)-10)","v":{"$error":"#REF!"}},{"$f":"LEFT(#REF!,LEN(#REF!)-10)","v":{"$error":"#REF!"}},{"$f":"LEFT(#REF!,LEN(#REF!)-10)","v":{"$error":"#REF!"}},{"$f":"LEFT(#REF!,LEN(#REF!)-10)","v":{"$error":"#REF!"}},{"$f":"LEFT(#REF!,LEN(#REF!)-10)","v":{"$error":"#REF!"}},{"$f":"LEFT(#REF!,LEN(#REF!)-10)","v":{"$error":"#REF!"}},{"$f":"LEFT(#REF!,LEN(#REF!)-10)","v":{"$error":"#REF!"}},{"$f":"LEFT(#REF!,LEN(#REF!)-10)","v":{"$error":"#REF!"}},{"$f":"LEFT(#REF!,LEN(#REF!)-10)","v":{"$error":"#REF!"}},{"$f":"LEFT(#REF!,LEN(#REF!)-10)","v":{"$error":"#REF!"}},{"$f":"LEFT(#REF!,LEN(#REF!)-10)","v":{"$error":"#REF!"}},{"$f":"LEFT(#REF!,LEN(#REF!)-10)","v":{"$error":"#REF!"}},{"$f":"LEFT(#REF!,LEN(#REF!)-10)","v":{"$error":"#REF!"}},{"$f":"LEFT(#REF!,LEN(#REF!)-10)","v":{"$error":"#REF!"}},{"$f":"LEFT(#REF!,LEN(#REF!)-10)","v":{"$error":"#REF!"}}]
[null,null,null,"Estimate  Householder 45 to 64 years years: - Less than $10,000",9,12,93,107,212,118,12,15,0,11,0,11,11,13,13,16,42,40,16,14,0,11,79,74,0,11,11,16,0,0,null,null,null,null,null,null,null,null,null,null,null,null,null,null,null,null,null,null,null,null,null,null,null,null,null,null,null,null,null,null,null,null,null,null,null,null,null,null,null,null,null,null,null,null,null,null,null,null,null,null,null,null,null,null,null,null,null,null,null,null,null,null,null,null,null,null,null,null,null,null,null,null,null,null,null,null,null,null,null,null,null,null,null,null,null,null,null,null,null,null,null,null,null,null,null,null,null,null,null,null,null,null,null,null,null,null,null,null,null,null,null,null,null,null,null,null,null,null,null,null,null,null,null,null,null,null,null,null,null,null,null,null,null,null,null,null,null,null,null,null,null,null,null,null,null,null,null,null,null,null,null,null,null,null,null,null,null,null,null,null,null,null,null,null,null,null,null,null,null,null,null,null,null,null,null,null,null,null,null,null,null,null,null,null,null,null,null,null,null,null,null,null,null,null,null,null,null,{"$f":"LEFT(#REF!,LEN(#REF!)-10)","v":{"$error":"#REF!"}},{"$f":"LEFT(#REF!,LEN(#REF!)-10)","v":{"$error":"#REF!"}},{"$f":"LEFT(#REF!,LEN(#REF!)-10)","v":{"$error":"#REF!"}},{"$f":"LEFT(#REF!,LEN(#REF!)-10)","v":{"$error":"#REF!"}},{"$f":"LEFT(#REF!,LEN(#REF!)-10)","v":{"$error":"#REF!"}},{"$f":"LEFT(#REF!,LEN(#REF!)-10)","v":{"$error":"#REF!"}},{"$f":"LEFT(#REF!,LEN(#REF!)-10)","v":{"$error":"#REF!"}},{"$f":"LEFT(#REF!,LEN(#REF!)-10)","v":{"$error":"#REF!"}},{"$f":"LEFT(#REF!,LEN(#REF!)-10)","v":{"$error":"#REF!"}},{"$f":"LEFT(#REF!,LEN(#REF!)-10)","v":{"$error":"#REF!"}},{"$f":"LEFT(#REF!,LEN(#REF!)-10)","v":{"$error":"#REF!"}},{"$f":"LEFT(#REF!,LEN(#REF!)-10)","v":{"$error":"#REF!"}},{"$f":"LEFT(#REF!,LEN(#REF!)-10)","v":{"$error":"#REF!"}},{"$f":"LEFT(#REF!,LEN(#REF!)-10)","v":{"$error":"#REF!"}},{"$f":"LEFT(#REF!,LEN(#REF!)-10)","v":{"$error":"#REF!"}},{"$f":"LEFT(#REF!,LEN(#REF!)-10)","v":{"$error":"#REF!"}},{"$f":"LEFT(#REF!,LEN(#REF!)-10)","v":{"$error":"#REF!"}},{"$f":"LEFT(#REF!,LEN(#REF!)-10)","v":{"$error":"#REF!"}},{"$f":"LEFT(#REF!,LEN(#REF!)-10)","v":{"$error":"#REF!"}},{"$f":"LEFT(#REF!,LEN(#REF!)-10)","v":{"$error":"#REF!"}},{"$f":"LEFT(#REF!,LEN(#REF!)-10)","v":{"$error":"#REF!"}},{"$f":"LEFT(#REF!,LEN(#REF!)-10)","v":{"$error":"#REF!"}},{"$f":"LEFT(#REF!,LEN(#REF!)-10)","v":{"$error":"#REF!"}},{"$f":"LEFT(#REF!,LEN(#REF!)-10)","v":{"$error":"#REF!"}},{"$f":"LEFT(#REF!,LEN(#REF!)-10)","v":{"$error":"#REF!"}}]
[null,null,null,"Estimate  Householder 45 to 64 years years: - $10,000 to $14,999",2,3,0,16,72,64,8,12,8,10,0,11,0,11,4,5,13,22,0,11,3,5,0,11,13,14,0,11,0,0,null,null,null,null,null,null,null,null,null,null,null,null,null,null,null,null,null,null,null,null,null,null,null,null,null,null,null,null,null,null,null,null,null,null,null,null,null,null,null,null,null,null,null,null,null,null,null,null,null,null,null,null,null,null,null,null,null,null,null,null,null,null,null,null,null,null,null,null,null,null,null,null,null,null,null,null,null,null,null,null,null,null,null,null,null,null,null,null,null,null,null,null,null,null,null,null,null,null,null,null,null,null,null,null,null,null,null,null,null,null,null,null,null,null,null,null,null,null,null,null,null,null,null,null,null,null,null,null,null,null,null,null,null,null,null,null,null,null,null,null,null,null,null,null,null,null,null,null,null,null,null,null,null,null,null,null,null,null,null,null,null,null,null,null,null,null,null,null,null,null,null,null,null,null,null,null,null,null,null,null,null,null,null,null,null,null,null,null,null,null,null,null,null,null,null,null,null,{"$f":"LEFT(#REF!,LEN(#REF!)-10)","v":{"$error":"#REF!"}},{"$f":"LEFT(#REF!,LEN(#REF!)-10)","v":{"$error":"#REF!"}},{"$f":"LEFT(#REF!,LEN(#REF!)-10)","v":{"$error":"#REF!"}},{"$f":"LEFT(#REF!,LEN(#REF!)-10)","v":{"$error":"#REF!"}},{"$f":"LEFT(#REF!,LEN(#REF!)-10)","v":{"$error":"#REF!"}},{"$f":"LEFT(#REF!,LEN(#REF!)-10)","v":{"$error":"#REF!"}},{"$f":"LEFT(#REF!,LEN(#REF!)-10)","v":{"$error":"#REF!"}},{"$f":"LEFT(#REF!,LEN(#REF!)-10)","v":{"$error":"#REF!"}},{"$f":"LEFT(#REF!,LEN(#REF!)-10)","v":{"$error":"#REF!"}},{"$f":"LEFT(#REF!,LEN(#REF!)-10)","v":{"$error":"#REF!"}},{"$f":"LEFT(#REF!,LEN(#REF!)-10)","v":{"$error":"#REF!"}},{"$f":"LEFT(#REF!,LEN(#REF!)-10)","v":{"$error":"#REF!"}},{"$f":"LEFT(#REF!,LEN(#REF!)-10)","v":{"$error":"#REF!"}},{"$f":"LEFT(#REF!,LEN(#REF!)-10)","v":{"$error":"#REF!"}},{"$f":"LEFT(#REF!,LEN(#REF!)-10)","v":{"$error":"#REF!"}},{"$f":"LEFT(#REF!,LEN(#REF!)-10)","v":{"$error":"#REF!"}},{"$f":"LEFT(#REF!,LEN(#REF!)-10)","v":{"$error":"#REF!"}},{"$f":"LEFT(#REF!,LEN(#REF!)-10)","v":{"$error":"#REF!"}},{"$f":"LEFT(#REF!,LEN(#REF!)-10)","v":{"$error":"#REF!"}},{"$f":"LEFT(#REF!,LEN(#REF!)-10)","v":{"$error":"#REF!"}},{"$f":"LEFT(#REF!,LEN(#REF!)-10)","v":{"$error":"#REF!"}},{"$f":"LEFT(#REF!,LEN(#REF!)-10)","v":{"$error":"#REF!"}},{"$f":"LEFT(#REF!,LEN(#REF!)-10)","v":{"$error":"#REF!"}},{"$f":"LEFT(#REF!,LEN(#REF!)-10)","v":{"$error":"#REF!"}},{"$f":"LEFT(#REF!,LEN(#REF!)-10)","v":{"$error":"#REF!"}}]
[null,null,null,"Estimate  Householder 45 to 64 years years: - $15,000 to $19,999",3,4,27,35,173,97,3,4,3,4,31,43,3,4,3,4,12,21,0,11,0,11,0,11,12,17,3,5,0,0,null,null,null,null,null,null,null,null,null,null,null,null,null,null,null,null,null,null,null,null,null,null,null,null,null,null,null,null,null,null,null,null,null,null,null,null,null,null,null,null,null,null,null,null,null,null,null,null,null,null,null,null,null,null,null,null,null,null,null,null,null,null,null,null,null,null,null,null,null,null,null,null,null,null,null,null,null,null,null,null,null,null,null,null,null,null,null,null,null,null,null,null,null,null,null,null,null,null,null,null,null,null,null,null,null,null,null,null,null,null,null,null,null,null,null,null,null,null,null,null,null,null,null,null,null,null,null,null,null,null,null,null,null,null,null,null,null,null,null,null,null,null,null,null,null,null,null,null,null,null,null,null,null,null,null,null,null,null,null,null,null,null,null,null,null,null,null,null,null,null,null,null,null,null,null,null,null,null,null,null,null,null,null,null,null,null,null,null,null,null,null,null,null,null,null,null,null,{"$f":"LEFT(#REF!,LEN(#REF!)-10)","v":{"$error":"#REF!"}},{"$f":"LEFT(#REF!,LEN(#REF!)-10)","v":{"$error":"#REF!"}},{"$f":"LEFT(#REF!,LEN(#REF!)-10)","v":{"$error":"#REF!"}},{"$f":"LEFT(#REF!,LEN(#REF!)-10)","v":{"$error":"#REF!"}},{"$f":"LEFT(#REF!,LEN(#REF!)-10)","v":{"$error":"#REF!"}},{"$f":"LEFT(#REF!,LEN(#REF!)-10)","v":{"$error":"#REF!"}},{"$f":"LEFT(#REF!,LEN(#REF!)-10)","v":{"$error":"#REF!"}},{"$f":"LEFT(#REF!,LEN(#REF!)-10)","v":{"$error":"#REF!"}},{"$f":"LEFT(#REF!,LEN(#REF!)-10)","v":{"$error":"#REF!"}},{"$f":"LEFT(#REF!,LEN(#REF!)-10)","v":{"$error":"#REF!"}},{"$f":"LEFT(#REF!,LEN(#REF!)-10)","v":{"$error":"#REF!"}},{"$f":"LEFT(#REF!,LEN(#REF!)-10)","v":{"$error":"#REF!"}},{"$f":"LEFT(#REF!,LEN(#REF!)-10)","v":{"$error":"#REF!"}},{"$f":"LEFT(#REF!,LEN(#REF!)-10)","v":{"$error":"#REF!"}},{"$f":"LEFT(#REF!,LEN(#REF!)-10)","v":{"$error":"#REF!"}},{"$f":"LEFT(#REF!,LEN(#REF!)-10)","v":{"$error":"#REF!"}},{"$f":"LEFT(#REF!,LEN(#REF!)-10)","v":{"$error":"#REF!"}},{"$f":"LEFT(#REF!,LEN(#REF!)-10)","v":{"$error":"#REF!"}},{"$f":"LEFT(#REF!,LEN(#REF!)-10)","v":{"$error":"#REF!"}},{"$f":"LEFT(#REF!,LEN(#REF!)-10)","v":{"$error":"#REF!"}},{"$f":"LEFT(#REF!,LEN(#REF!)-10)","v":{"$error":"#REF!"}},{"$f":"LEFT(#REF!,LEN(#REF!)-10)","v":{"$error":"#REF!"}},{"$f":"LEFT(#REF!,LEN(#REF!)-10)","v":{"$error":"#REF!"}},{"$f":"LEFT(#REF!,LEN(#REF!)-10)","v":{"$error":"#REF!"}},{"$f":"LEFT(#REF!,LEN(#REF!)-10)","v":{"$error":"#REF!"}}]
[null,null,null,"Estimate  Householder 45 to 64 years years: - $20,000 to $24,999",0,11,58,72,123,101,0,11,3,7,0,11,6,6,15,14,14,23,16,19,6,9,0,11,17,13,6,6,0,0,null,null,null,null,null,null,null,null,null,null,null,null,null,null,null,null,null,null,null,null,null,null,null,null,null,null,null,null,null,null,null,null,null,null,null,null,null,null,null,null,null,null,null,null,null,null,null,null,null,null,null,null,null,null,null,null,null,null,null,null,null,null,null,null,null,null,null,null,null,null,null,null,null,null,null,null,null,null,null,null,null,null,null,null,null,null,null,null,null,null,null,null,null,null,null,null,null,null,null,null,null,null,null,null,null,null,null,null,null,null,null,null,null,null,null,null,null,null,null,null,null,null,null,null,null,null,null,null,null,null,null,null,null,null,null,null,null,null,null,null,null,null,null,null,null,null,null,null,null,null,null,null,null,null,null,null,null,null,null,null,null,null,null,null,null,null,null,null,null,null,null,null,null,null,null,null,null,null,null,null,null,null,null,null,null,null,null,null,null,null,null,null,null,null,null,null,null,{"$f":"LEFT(#REF!,LEN(#REF!)-10)","v":{"$error":"#REF!"}},{"$f":"LEFT(#REF!,LEN(#REF!)-10)","v":{"$error":"#REF!"}},{"$f":"LEFT(#REF!,LEN(#REF!)-10)","v":{"$error":"#REF!"}},{"$f":"LEFT(#REF!,LEN(#REF!)-10)","v":{"$error":"#REF!"}},{"$f":"LEFT(#REF!,LEN(#REF!)-10)","v":{"$error":"#REF!"}},{"$f":"LEFT(#REF!,LEN(#REF!)-10)","v":{"$error":"#REF!"}},{"$f":"LEFT(#REF!,LEN(#REF!)-10)","v":{"$error":"#REF!"}},{"$f":"LEFT(#REF!,LEN(#REF!)-10)","v":{"$error":"#REF!"}},{"$f":"LEFT(#REF!,LEN(#REF!)-10)","v":{"$error":"#REF!"}},{"$f":"LEFT(#REF!,LEN(#REF!)-10)","v":{"$error":"#REF!"}},{"$f":"LEFT(#REF!,LEN(#REF!)-10)","v":{"$error":"#REF!"}},{"$f":"LEFT(#REF!,LEN(#REF!)-10)","v":{"$error":"#REF!"}},{"$f":"LEFT(#REF!,LEN(#REF!)-10)","v":{"$error":"#REF!"}},{"$f":"LEFT(#REF!,LEN(#REF!)-10)","v":{"$error":"#REF!"}},{"$f":"LEFT(#REF!,LEN(#REF!)-10)","v":{"$error":"#REF!"}},{"$f":"LEFT(#REF!,LEN(#REF!)-10)","v":{"$error":"#REF!"}},{"$f":"LEFT(#REF!,LEN(#REF!)-10)","v":{"$error":"#REF!"}},{"$f":"LEFT(#REF!,LEN(#REF!)-10)","v":{"$error":"#REF!"}},{"$f":"LEFT(#REF!,LEN(#REF!)-10)","v":{"$error":"#REF!"}},{"$f":"LEFT(#REF!,LEN(#REF!)-10)","v":{"$error":"#REF!"}},{"$f":"LEFT(#REF!,LEN(#REF!)-10)","v":{"$error":"#REF!"}},{"$f":"LEFT(#REF!,LEN(#REF!)-10)","v":{"$error":"#REF!"}},{"$f":"LEFT(#REF!,LEN(#REF!)-10)","v":{"$error":"#REF!"}},{"$f":"LEFT(#REF!,LEN(#REF!)-10)","v":{"$error":"#REF!"}},{"$f":"LEFT(#REF!,LEN(#REF!)-10)","v":{"$error":"#REF!"}}]
[null,null,null,"Estimate  Householder 45 to 64 years years: - $25,000 to $29,999",8,10,85,65,44,40,2,4,0,11,13,22,3,5,2,4,106,91,28,26,7,8,10,15,6,6,3,5,0,0,null,null,null,null,null,null,null,null,null,null,null,null,null,null,null,null,null,null,null,null,null,null,null,null,null,null,null,null,null,null,null,null,null,null,null,null,null,null,null,null,null,null,null,null,null,null,null,null,null,null,null,null,null,null,null,null,null,null,null,null,null,null,null,null,null,null,null,null,null,null,null,null,null,null,null,null,null,null,null,null,null,null,null,null,null,null,null,null,null,null,null,null,null,null,null,null,null,null,null,null,null,null,null,null,null,null,null,null,null,null,null,null,null,null,null,null,null,null,null,null,null,null,null,null,null,null,null,null,null,null,null,null,null,null,null,null,null,null,null,null,null,null,null,null,null,null,null,null,null,null,null,null,null,null,null,null,null,null,null,null,null,null,null,null,null,null,null,null,null,null,null,null,null,null,null,null,null,null,null,null,null,null,null,null,null,null,null,null,null,null,null,null,null,null,null,null,null,{"$f":"LEFT(#REF!,LEN(#REF!)-10)","v":{"$error":"#REF!"}},{"$f":"LEFT(#REF!,LEN(#REF!)-10)","v":{"$error":"#REF!"}},{"$f":"LEFT(#REF!,LEN(#REF!)-10)","v":{"$error":"#REF!"}},{"$f":"LEFT(#REF!,LEN(#REF!)-10)","v":{"$error":"#REF!"}},{"$f":"LEFT(#REF!,LEN(#REF!)-10)","v":{"$error":"#REF!"}},{"$f":"LEFT(#REF!,LEN(#REF!)-10)","v":{"$error":"#REF!"}},{"$f":"LEFT(#REF!,LEN(#REF!)-10)","v":{"$error":"#REF!"}},{"$f":"LEFT(#REF!,LEN(#REF!)-10)","v":{"$error":"#REF!"}},{"$f":"LEFT(#REF!,LEN(#REF!)-10)","v":{"$error":"#REF!"}},{"$f":"LEFT(#REF!,LEN(#REF!)-10)","v":{"$error":"#REF!"}},{"$f":"LEFT(#REF!,LEN(#REF!)-10)","v":{"$error":"#REF!"}},{"$f":"LEFT(#REF!,LEN(#REF!)-10)","v":{"$error":"#REF!"}},{"$f":"LEFT(#REF!,LEN(#REF!)-10)","v":{"$error":"#REF!"}},{"$f":"LEFT(#REF!,LEN(#REF!)-10)","v":{"$error":"#REF!"}},{"$f":"LEFT(#REF!,LEN(#REF!)-10)","v":{"$error":"#REF!"}},{"$f":"LEFT(#REF!,LEN(#REF!)-10)","v":{"$error":"#REF!"}},{"$f":"LEFT(#REF!,LEN(#REF!)-10)","v":{"$error":"#REF!"}},{"$f":"LEFT(#REF!,LEN(#REF!)-10)","v":{"$error":"#REF!"}},{"$f":"LEFT(#REF!,LEN(#REF!)-10)","v":{"$error":"#REF!"}},{"$f":"LEFT(#REF!,LEN(#REF!)-10)","v":{"$error":"#REF!"}},{"$f":"LEFT(#REF!,LEN(#REF!)-10)","v":{"$error":"#REF!"}},{"$f":"LEFT(#REF!,LEN(#REF!)-10)","v":{"$error":"#REF!"}},{"$f":"LEFT(#REF!,LEN(#REF!)-10)","v":{"$error":"#REF!"}},{"$f":"LEFT(#REF!,LEN(#REF!)-10)","v":{"$error":"#REF!"}},{"$f":"LEFT(#REF!,LEN(#REF!)-10)","v":{"$error":"#REF!"}}]
[null,null,null,"Estimate  Householder 45 to 64 years years: - $30,000 to $34,999",0,11,45,67,176,82,3,4,3,4,0,11,0,11,4,5,66,63,10,11,8,14,0,11,8,10,4,5,0,0,null,null,null,null,null,null,null,null,null,null,null,null,null,null,null,null,null,null,null,null,null,null,null,null,null,null,null,null,null,null,null,null,null,null,null,null,null,null,null,null,null,null,null,null,null,null,null,null,null,null,null,null,null,null,null,null,null,null,null,null,null,null,null,null,null,null,null,null,null,null,null,null,null,null,null,null,null,null,null,null,null,null,null,null,null,null,null,null,null,null,null,null,null,null,null,null,null,null,null,null,null,null,null,null,null,null,null,null,null,null,null,null,null,null,null,null,null,null,null,null,null,null,null,null,null,null,null,null,null,null,null,null,null,null,null,null,null,null,null,null,null,null,null,null,null,null,null,null,null,null,null,null,null,null,null,null,null,null,null,null,null,null,null,null,null,null,null,null,null,null,null,null,null,null,null,null,null,null,null,null,null,null,null,null,null,null,null,null,null,null,null,null,null,null,null,null,null,{"$f":"LEFT(#REF!,LEN(#REF!)-10)","v":{"$error":"#REF!"}},{"$f":"LEFT(#REF!,LEN(#REF!)-10)","v":{"$error":"#REF!"}},{"$f":"LEFT(#REF!,LEN(#REF!)-10)","v":{"$error":"#REF!"}},{"$f":"LEFT(#REF!,LEN(#REF!)-10)","v":{"$error":"#REF!"}},{"$f":"LEFT(#REF!,LEN(#REF!)-10)","v":{"$error":"#REF!"}},{"$f":"LEFT(#REF!,LEN(#REF!)-10)","v":{"$error":"#REF!"}},{"$f":"LEFT(#REF!,LEN(#REF!)-10)","v":{"$error":"#REF!"}},{"$f":"LEFT(#REF!,LEN(#REF!)-10)","v":{"$error":"#REF!"}},{"$f":"LEFT(#REF!,LEN(#REF!)-10)","v":{"$error":"#REF!"}},{"$f":"LEFT(#REF!,LEN(#REF!)-10)","v":{"$error":"#REF!"}},{"$f":"LEFT(#REF!,LEN(#REF!)-10)","v":{"$error":"#REF!"}},{"$f":"LEFT(#REF!,LEN(#REF!)-10)","v":{"$error":"#REF!"}},{"$f":"LEFT(#REF!,LEN(#REF!)-10)","v":{"$error":"#REF!"}},{"$f":"LEFT(#REF!,LEN(#REF!)-10)","v":{"$error":"#REF!"}},{"$f":"LEFT(#REF!,LEN(#REF!)-10)","v":{"$error":"#REF!"}},{"$f":"LEFT(#REF!,LEN(#REF!)-10)","v":{"$error":"#REF!"}},{"$f":"LEFT(#REF!,LEN(#REF!)-10)","v":{"$error":"#REF!"}},{"$f":"LEFT(#REF!,LEN(#REF!)-10)","v":{"$error":"#REF!"}},{"$f":"LEFT(#REF!,LEN(#REF!)-10)","v":{"$error":"#REF!"}},{"$f":"LEFT(#REF!,LEN(#REF!)-10)","v":{"$error":"#REF!"}},{"$f":"LEFT(#REF!,LEN(#REF!)-10)","v":{"$error":"#REF!"}},{"$f":"LEFT(#REF!,LEN(#REF!)-10)","v":{"$error":"#REF!"}},{"$f":"LEFT(#REF!,LEN(#REF!)-10)","v":{"$error":"#REF!"}},{"$f":"LEFT(#REF!,LEN(#REF!)-10)","v":{"$error":"#REF!"}},{"$f":"LEFT(#REF!,LEN(#REF!)-10)","v":{"$error":"#REF!"}}]
[null,null,null,"Estimate  Householder 45 to 64 years years: - $35,000 to $39,999",0,11,0,16,58,43,0,11,4,5,0,11,10,11,8,7,38,37,5,7,3,5,0,11,0,11,23,21,0,0]
[null,null,null,"Estimate  Householder 45 to 64 years years: - $40,000 to $44,999",0,11,60,66,89,59,0,11,2,3,91,102,0,11,12,15,53,43,4,6,8,13,0,11,0,11,4,5,0,0]
[null,null,null,"Estimate  Householder 45 to 64 years years: - $45,000 to $49,999",11,11,52,49,40,37,14,14,0,11,0,11,3,4,3,4,42,40,11,12,5,9,41,51,3,5,3,4,0,0]
[null,null,null,"Estimate  Householder 45 to 64 years years: - $50,000 to $59,999",13,13,122,100,190,86,15,13,14,16,0,11,11,14,15,15,94,63,33,31,7,8,46,38,18,11,22,19,0,0]
[null,null,null,"Estimate  Householder 45 to 64 years years: - $60,000 to $74,999",20,18,58,58,127,61,8,8,13,14,55,50,6,6,15,17,91,64,14,13,4,6,22,24,30,14,13,12,0,0]
[null,null,null,"Estimate  Householder 45 to 64 years years: - $75,000 to $99,999",36,27,198,110,338,130,25,18,17,11,42,34,25,17,50,29,118,79,117,46,76,41,96,56,72,32,58,35,0,0]
[null,null,null,"Estimate  Householder 45 to 64 years years: - $100,000 to $124,999",23,16,20,28,122,78,22,18,10,10,16,24,10,8,25,19,27,24,38,19,44,30,69,47,42,23,41,25,0,0]
[null,null,null,"Estimate  Householder 45 to 64 years years: - $125,000 to $149,999",35,35,68,46,9,11,16,15,131,94,15,9,3,4,83,57,62,44,20,19,70,57,33,24,44,33,0,0,0,0]
[null,null,null,"Estimate  Householder 45 to 64 years years: - $150,000 to $199,999",23,29,164,81,21,20,6,9,120,98,10,12,14,22,215,111,34,21,11,9,63,35,20,16,17,14,0,0,0,0]
[null,null,null,"Estimate  Householder 45 to 64 years years: - $200,000 or more",21,26,15,23,11,10,0,11,59,47,17,16,11,14,23,27,61,26,7,8,24,26,6,6,7,7,0,0,0,0]
[null,null,null,"Estimate  Householder 65 and over years:",649,117,1408,194,82,30,88,25,409,112,56,15,102,30,684,162,271,65,182,51,419,96,189,35,179,36,0,0,0,0]
[null,null,null,"Estimate  Householder 65 and over years: - Less than $10,000",0,16,11,18,2,4,11,10,0,11,0,11,0,11,0,16,26,28,13,16,33,52,6,6,6,6,0,0,0,0]
[null,null,null,"Estimate  Householder 65 and over years: - $10,000 to $14,999",30,35,117,59,4,4,0,11,0,11,0,11,0,11,33,53,0,11,4,6,4,8,7,6,12,16,0,0,0,0]
[null,null,null,"Estimate  Householder 65 and over years: - $15,000 to $19,999",122,86,121,60,3,5,3,4,14,22,2,3,7,7,173,110,0,11,7,13,16,17,3,4,5,5,0,0,0,0]
[null,null,null,"Estimate  Householder 65 and over years: - $20,000 to $24,999",15,24,119,80,10,8,6,5,0,11,0,11,15,16,73,51,14,12,0,11,65,58,20,19,14,16,0,0,0,0]
[null,null,null,"Estimate  Householder 65 and over years: - $25,000 to $29,999",67,68,147,88,5,5,5,8,78,71,11,7,5,7,74,70,56,40,16,16,12,14,20,11,10,9,0,0,0,0]
[null,null,null,"Estimate  Householder 65 and over years: - $30,000 to $34,999",13,21,161,92,6,7,5,8,0,11,2,3,7,7,13,21,6,8,14,17,15,17,13,8,16,14,0,0,0,0]
[null,null,null,"Estimate  Householder 65 and over years: - $35,000 to $39,999",90,80,67,45,8,8,11,11,0,11,0,11,6,9,13,22,6,9,5,7,0,11,3,4,3,4,0,0,0,0]
[null,null,null,"Estimate  Householder 65 and over years: - $40,000 to $44,999",32,53,68,45,4,4,3,6,0,11,2,3,2,5,11,18,0,11,3,5,0,11,16,11,16,15,0,0,0,0]
[null,null,null,"Estimate  Householder 65 and over years: - $45,000 to $49,999",0,16,178,90,2,3,8,6,17,25,2,3,24,19,36,28,20,24,0,11,31,27,13,8,18,15,0,0,0,0]
[null,null,null,"Estimate  Householder 65 and over years: - $50,000 to $59,999",62,51,126,62,4,5,4,4,44,40,8,7,2,3,38,37,9,10,11,15,19,22,11,8,13,8,0,0,0,0]
[null,null,null,"Estimate  Householder 65 and over years: - $60,000 to $74,999",110,68,85,50,9,7,9,7,20,30,9,5,20,18,93,73,44,34,43,26,61,45,16,10,14,9,0,0,0,0]
[null,null,null,"Estimate  Householder 65 and over years: - $75,000 to $99,999",62,51,65,46,11,12,13,11,87,54,4,5,6,6,55,36,33,18,54,34,54,35,21,10,20,10,0,0,0,0]
[null,null,null,"Estimate  Householder 65 and over years: - $100,000 to $124,999",0,16,77,47,6,6,2,3,55,41,12,11,8,8,13,21,14,12,10,14,4,8,23,19,9,7,0,0,0,0]
[null,null,null,"Estimate  Householder 65 and over years: - $125,000 to $149,999",0,16,0,18,7,12,6,10,62,63,4,5,0,11,36,59,10,10,0,11,39,31,8,8,8,7,0,0,0,0]
[null,null,null,"Estimate  Householder 65 and over years: - $150,000 to $199,999",0,16,41,43,0,11,0,11,14,20,0,11,0,11,0,16,15,12,0,11,19,20,6,6,9,10,0,0,0,0]
[null,null,null,"Estimate  Householder 65 and over years: - $200,000 or more",46,54,25,30,1,3,2,4,18,27,0,11,0,11,23,27,18,15,2,4,47,36,3,5,6,6,0,0,0,0]

{"sheet":"SData_B19049MedianIncomeByAge","index":58,"n_rows":25,"n_cols":34,"rows_kept":25,"cut":false,"hidden":true,"merged":[]}
["GEO_ID","GEO_ID2","SUMLEVEL","GEO_NAME","B19049_1_EST","B19049_1_MOE","B19049_2_EST","B19049_2_MOE","B19049_3_EST","B19049_3_MOE","B19049_4_EST","B19049_4_MOE","B19049_5_EST","B19049_5_MOE"]
["Geography Identifier","Geography Identifier","Geographic Summary Level","Geography",{"$f":"[1]ACS_16_5YR_B19049_with_ann!D$2","v":"Estimate Median household income in the past 12 months (in 2019 inflation-adjusted dollars) -- Total:"},{"$f":"[1]ACS_16_5YR_B19049_with_ann!E$2","v":"Margin of Error Median household income in the past 12 months (in 2019 inflation-adjusted dollars) -- Total:"},{"$f":"[1]ACS_16_5YR_B19049_with_ann!F$2","v":"Estimate Median household income in the past 12 months (in 2019 inflation-adjusted dollars) -- Total: Householder under 25 years"},{"$f":"[1]ACS_16_5YR_B19049_with_ann!G$2","v":"Margin of Error Median household income in the past 12 months (in 2019 inflation-adjusted dollars) -- Total: Householder under 25 years"},{"$f":"[1]ACS_16_5YR_B19049_with_ann!H$2","v":"Estimate Median household income in the past 12 months (in 2019 inflation-adjusted dollars) -- Total: Householder 25 to 44 years"},{"$f":"[1]ACS_16_5YR_B19049_with_ann!I$2","v":"Margin of Error Median household income in the past 12 months (in 2019 inflation-adjusted dollars) -- Total: Householder 25 to 44 years"},{"$f":"[1]ACS_16_5YR_B19049_with_ann!J$2","v":"Estimate Median household income in the past 12 months (in 2019 inflation-adjusted dollars) -- Total: Householder 45 to 64 years"},{"$f":"[1]ACS_16_5YR_B19049_with_ann!K$2","v":"Margin of Error Median household income in the past 12 months (in 2019 inflation-adjusted dollars) -- Total: Householder 45 to 64 years"},{"$f":"[1]ACS_16_5YR_B19049_with_ann!L$2","v":"Estimate Median household income in the past 12 months (in 2019 inflation-adjusted dollars) -- Total: Householder 65 years and over"},{"$f":"[1]ACS_16_5YR_B19049_with_ann!M$2","v":"Margin of Error Median household income in the past 12 months (in 2019 inflation-adjusted dollars) -- Total: Householder 65 years and over"}]
["0600000US3301900259",3301900259,"060","Acworth",{"$f":"[1]ACS_16_5YR_B19049_with_ann!D258","v":68438},{"$f":"[1]ACS_16_5YR_B19049_with_ann!E258","v":8127},{"$f":"[1]ACS_16_5YR_B19049_with_ann!F258","v":"-"},{"$f":"[1]ACS_16_5YR_B19049_with_ann!G258","v":"**"},{"$f":"[1]ACS_16_5YR_B19049_with_ann!H258","v":63250},{"$f":"[1]ACS_16_5YR_B19049_with_ann!I258","v":29245},{"$f":"[1]ACS_16_5YR_B19049_with_ann!J258","v":94375},{"$f":"[1]ACS_16_5YR_B19049_with_ann!K258","v":18057},{"$f":"[1]ACS_16_5YR_B19049_with_ann!L258","v":55000},{"$f":"[1]ACS_16_5YR_B19049_with_ann!M258","v":6509}]
["0600000US3301911380",3301911380,"060","Charlestown",{"$f":"[1]ACS_16_5YR_B19049_with_ann!D259","v":47302},{"$f":"[1]ACS_16_5YR_B19049_with_ann!E259","v":12871},{"$f":"[1]ACS_16_5YR_B19049_with_ann!F259","v":"-"},{"$f":"[1]ACS_16_5YR_B19049_with_ann!G259","v":"**"},{"$f":"[1]ACS_16_5YR_B19049_with_ann!H259","v":52969},{"$f":"[1]ACS_16_5YR_B19049_with_ann!I259","v":48413},{"$f":"[1]ACS_16_5YR_B19049_with_ann!J259","v":55187},{"$f":"[1]ACS_16_5YR_B19049_with_ann!K259","v":14459},{"$f":"[1]ACS_16_5YR_B19049_with_ann!L259","v":39572},{"$f":"[1]ACS_16_5YR_B19049_with_ann!M259","v":10971}]
["0600000US3301912900",3301912900,"060","Claremont",{"$f":"[1]ACS_16_5YR_B19049_with_ann!D260","v":47649},{"$f":"[1]ACS_16_5YR_B19049_with_ann!E260","v":4588},{"$f":"[1]ACS_16_5YR_B19049_with_ann!F260","v":46458},{"$f":"[1]ACS_16_5YR_B19049_with_ann!G260","v":23982},{"$f":"[1]ACS_16_5YR_B19049_with_ann!H260","v":63254},{"$f":"[1]ACS_16_5YR_B19049_with_ann!I260","v":7567},{"$f":"[1]ACS_16_5YR_B19049_with_ann!J260","v":51285},{"$f":"[1]ACS_16_5YR_B19049_with_ann!K260","v":11597},{"$f":"[1]ACS_16_5YR_B19049_with_ann!L260","v":36296},{"$f":"[1]ACS_16_5YR_B19049_with_ann!M260","v":7516}]
["0600000US3301915060",3301915060,"060","Cornish",{"$f":"[1]ACS_16_5YR_B19049_with_ann!D261","v":82083},{"$f":"[1]ACS_16_5YR_B19049_with_ann!E261","v":12741},{"$f":"[1]ACS_16_5YR_B19049_with_ann!F261","v":"-"},{"$f":"[1]ACS_16_5YR_B19049_with_ann!G261","v":"**"},{"$f":"[1]ACS_16_5YR_B19049_with_ann!H261","v":108000},{"$f":"[1]ACS_16_5YR_B19049_with_ann!I261","v":14436},{"$f":"[1]ACS_16_5YR_B19049_with_ann!J261","v":99479},{"$f":"[1]ACS_16_5YR_B19049_with_ann!K261","v":9464},{"$f":"[1]ACS_16_5YR_B19049_with_ann!L261","v":55278},{"$f":"[1]ACS_16_5YR_B19049_with_ann!M261","v":6252}]
["0600000US3301916340",3301916340,"060","Croydon",{"$f":"[1]ACS_16_5YR_B19049_with_ann!D262","v":75521},{"$f":"[1]ACS_16_5YR_B19049_with_ann!E262","v":12747},{"$f":"[1]ACS_16_5YR_B19049_with_ann!F262","v":"-"},{"$f":"[1]ACS_16_5YR_B19049_with_ann!G262","v":"**"},{"$f":"[1]ACS_16_5YR_B19049_with_ann!H262","v":94167},{"$f":"[1]ACS_16_5YR_B19049_with_ann!I262","v":26312},{"$f":"[1]ACS_16_5YR_B19049_with_ann!J262","v":85417},{"$f":"[1]ACS_16_5YR_B19049_with_ann!K262","v":29743},{"$f":"[1]ACS_16_5YR_B19049_with_ann!L262","v":43750},{"$f":"[1]ACS_16_5YR_B19049_with_ann!M262","v":16904}]
["0600000US3301930500",3301930500,"060","Goshen",{"$f":"[1]ACS_16_5YR_B19049_with_ann!D263","v":59583},{"$f":"[1]ACS_16_5YR_B19049_with_ann!E263","v":12176},{"$f":"[1]ACS_16_5YR_B19049_with_ann!F263","v":"-"},{"$f":"[1]ACS_16_5YR_B19049_with_ann!G263","v":"**"},{"$f":"[1]ACS_16_5YR_B19049_with_ann!H263","v":58214},{"$f":"[1]ACS_16_5YR_B19049_with_ann!I263","v":12021},{"$f":"[1]ACS_16_5YR_B19049_with_ann!J263","v":74844},{"$f":"[1]ACS_16_5YR_B19049_with_ann!K263","v":19519},{"$f":"[1]ACS_16_5YR_B19049_with_ann!L263","v":45000},{"$f":"[1]ACS_16_5YR_B19049_with_ann!M263","v":10529}]
["0600000US3301931220",3301931220,"060","Grantham",{"$f":"[1]ACS_16_5YR_B19049_with_ann!D264","v":108571},{"$f":"[1]ACS_16_5YR_B19049_with_ann!E264","v":26279},{"$f":"[1]ACS_16_5YR_B19049_with_ann!F264","v":"-"},{"$f":"[1]ACS_16_5YR_B19049_with_ann!G264","v":"**"},{"$f":"[1]ACS_16_5YR_B19049_with_ann!H264","v":116118},{"$f":"[1]ACS_16_5YR_B19049_with_ann!I264","v":43161},{"$f":"[1]ACS_16_5YR_B19049_with_ann!J264","v":137664},{"$f":"[1]ACS_16_5YR_B19049_with_ann!K264","v":56617},{"$f":"[1]ACS_16_5YR_B19049_with_ann!L264","v":85515},{"$f":"[1]ACS_16_5YR_B19049_with_ann!M264","v":22746}]
["0600000US3301940900",3301940900,"060","Langdon",{"$f":"[1]ACS_16_5YR_B19049_with_ann!D265","v":79125},{"$f":"[1]ACS_16_5YR_B19049_with_ann!E265","v":12995},{"$f":"[1]ACS_16_5YR_B19049_with_ann!F265","v":"-"},{"$f":"[1]ACS_16_5YR_B19049_with_ann!G265","v":"**"},{"$f":"[1]ACS_16_5YR_B19049_with_ann!H265","v":78875},{"$f":"[1]ACS_16_5YR_B19049_with_ann!I265","v":9084},{"$f":"[1]ACS_16_5YR_B19049_with_ann!J265","v":91667},{"$f":"[1]ACS_16_5YR_B19049_with_ann!K265","v":10346},{"$f":"[1]ACS_16_5YR_B19049_with_ann!L265","v":60625},{"$f":"[1]ACS_16_5YR_B19049_with_ann!M265","v":10286}]
["0600000US3301941700",3301941700,"060","Lempster",{"$f":"[1]ACS_16_5YR_B19049_with_ann!D266","v":70156},{"$f":"[1]ACS_16_5YR_B19049_with_ann!E266","v":12339},{"$f":"[1]ACS_16_5YR_B19049_with_ann!F266","v":"-"},{"$f":"[1]ACS_16_5YR_B19049_with_ann!G266","v":"**"},{"$f":"[1]ACS_16_5YR_B19049_with_ann!H266","v":102344},{"$f":"[1]ACS_16_5YR_B19049_with_ann!I266","v":14160},{"$f":"[1]ACS_16_5YR_B19049_with_ann!J266","v":78365},{"$f":"[1]ACS_16_5YR_B19049_with_ann!K266","v":14797},{"$f":"[1]ACS_16_5YR_B19049_with_ann!L266","v":46731},{"$f":"[1]ACS_16_5YR_B19049_with_ann!M266","v":5043}]
["0600000US3301952580",3301952580,"060","Newport",{"$f":"[1]ACS_16_5YR_B19049_with_ann!D267","v":54816},{"$f":"[1]ACS_16_5YR_B19049_with_ann!E267","v":7020},{"$f":"[1]ACS_16_5YR_B19049_with_ann!F267","v":"-"},{"$f":"[1]ACS_16_5YR_B19049_with_ann!G267","v":"**"},{"$f":"[1]ACS_16_5YR_B19049_with_ann!H267","v":58396},{"$f":"[1]ACS_16_5YR_B19049_with_ann!I267","v":10726},{"$f":"[1]ACS_16_5YR_B19049_with_ann!J267","v":70024},{"$f":"[1]ACS_16_5YR_B19049_with_ann!K267","v":22503},{"$f":"[1]ACS_16_5YR_B19049_with_ann!L267","v":27128},{"$f":"[1]ACS_16_5YR_B19049_with_ann!M267","v":23594}]
["0600000US3301962340",3301962340,"060","Plainfield",{"$f":"[1]ACS_16_5YR_B19049_with_ann!D268","v":85313},{"$f":"[1]ACS_16_5YR_B19049_with_ann!E268","v":10050},{"$f":"[1]ACS_16_5YR_B19049_with_ann!F268","v":"-"},{"$f":"[1]ACS_16_5YR_B19049_with_ann!G268","v":"**"},{"$f":"[1]ACS_16_5YR_B19049_with_ann!H268","v":93929},{"$f":"[1]ACS_16_5YR_B19049_with_ann!I268","v":31447},{"$f":"[1]ACS_16_5YR_B19049_with_ann!J268","v":95536},{"$f":"[1]ACS_16_5YR_B19049_with_ann!K268","v":11386},{"$f":"[1]ACS_16_5YR_B19049_with_ann!L268","v":58750},{"$f":"[1]ACS_16_5YR_B19049_with_ann!M268","v":21391}]
["0600000US3301972740",3301972740,"060","Springfield",{"$f":"[1]ACS_16_5YR_B19049_with_ann!D269","v":79444},{"$f":"[1]ACS_16_5YR_B19049_with_ann!E269","v":8510},{"$f":"[1]ACS_16_5YR_B19049_with_ann!F269","v":"-"},{"$f":"[1]ACS_16_5YR_B19049_with_ann!G269","v":"**"},{"$f":"[1]ACS_16_5YR_B19049_with_ann!H269","v":82917},{"$f":"[1]ACS_16_5YR_B19049_with_ann!I269","v":49133},{"$f":"[1]ACS_16_5YR_B19049_with_ann!J269","v":96250},{"$f":"[1]ACS_16_5YR_B19049_with_ann!K269","v":7418},{"$f":"[1]ACS_16_5YR_B19049_with_ann!L269","v":66667},{"$f":"[1]ACS_16_5YR_B19049_with_ann!M269","v":9001}]
["0600000US3301975060",3301975060,"060","Sunapee",{"$f":"[1]ACS_16_5YR_B19049_with_ann!D270","v":73682},{"$f":"[1]ACS_16_5YR_B19049_with_ann!E270","v":16011},{"$f":"[1]ACS_16_5YR_B19049_with_ann!F270","v":33482},{"$f":"[1]ACS_16_5YR_B19049_with_ann!G270","v":11286},{"$f":"[1]ACS_16_5YR_B19049_with_ann!H270","v":70455},{"$f":"[1]ACS_16_5YR_B19049_with_ann!I270","v":26432},{"$f":"[1]ACS_16_5YR_B19049_with_ann!J270","v":93235},{"$f":"[1]ACS_16_5YR_B19049_with_ann!K270","v":12877},{"$f":"[1]ACS_16_5YR_B19049_with_ann!L270","v":64375},{"$f":"[1]ACS_16_5YR_B19049_with_ann!M270","v":22625}]
["0600000US3301977940",3301977940,"060","Unity",{"$f":"[1]ACS_16_5YR_B19049_with_ann!D271","v":69702},{"$f":"[1]ACS_16_5YR_B19049_with_ann!E271","v":9041},{"$f":"[1]ACS_16_5YR_B19049_with_ann!F271","v":"-"},{"$f":"[1]ACS_16_5YR_B19049_with_ann!G271","v":"**"},{"$f":"[1]ACS_16_5YR_B19049_with_ann!H271","v":64375},{"$f":"[1]ACS_16_5YR_B19049_with_ann!I271","v":14302},{"$f":"[1]ACS_16_5YR_B19049_with_ann!J271","v":87500},{"$f":"[1]ACS_16_5YR_B19049_with_ann!K271","v":6036},{"$f":"[1]ACS_16_5YR_B19049_with_ann!L271","v":48194},{"$f":"[1]ACS_16_5YR_B19049_with_ann!M271","v":9618}]
["0600000US3301978980",3301978980,"060","Washington",{"$f":"[1]ACS_16_5YR_B19049_with_ann!D272","v":78224},{"$f":"[1]ACS_16_5YR_B19049_with_ann!E272","v":12451},{"$f":"[1]ACS_16_5YR_B19049_with_ann!F272","v":"-"},{"$f":"[1]ACS_16_5YR_B19049_with_ann!G272","v":"**"},{"$f":"[1]ACS_16_5YR_B19049_with_ann!H272","v":"-"},{"$f":"[1]ACS_16_5YR_B19049_with_ann!I272","v":"**"},{"$f":"[1]ACS_16_5YR_B19049_with_ann!J272","v":88375},{"$f":"[1]ACS_16_5YR_B19049_with_ann!K272","v":19223},{"$f":"[1]ACS_16_5YR_B19049_with_ann!L272","v":47083},{"$f":"[1]ACS_16_5YR_B19049_with_ann!M272","v":9380}]
[]
[null,null,null,null,{"$f":"$D$3","v":"Acworth"},null,{"$f":"$D$4","v":"Charlestown"},null,{"$f":"$D$5","v":"Claremont"},null,{"$f":"$D$6","v":"Cornish"},null,{"$f":"$D$7","v":"Croydon"},null,{"$f":"$D$8","v":"Goshen"},null,{"$f":"$D$9","v":"Grantham"},null,{"$f":"$D$10","v":"Langdon"},null,{"$f":"$D$11","v":"Lempster"},null,{"$f":"$D$12","v":"Newport"},null,{"$f":"$D$13","v":"Plainfield"},null,{"$f":"$D$14","v":"Springfield"},null,{"$f":"$D$15","v":"Sunapee"},null,{"$f":"$D$16","v":"Unity"},null,{"$f":"$D$17","v":"Washington"}]
[null,null,null,null,"Estimate","Margin Of Error","Estimate","Margin Of Error","Estimate","Margin Of Error","Estimate","Margin Of Error","Estimate","Margin Of Error","Estimate","Margin Of Error","Estimate","Margin Of Error","Estimate","Margin Of Error","Estimate","Margin Of Error","Estimate","Margin Of Error","Estimate","Margin Of Error","Estimate","Margin Of Error","Estimate","Margin Of Error",null,"Estimate","Margin Of Error"]
[null,null,null,"Estimate Median household income in the past 12 months (in 2019 inflation-adjusted dollars) -- Total:",68438,8127,47302,12871,47649,4588,82083,12741,75521,12747,59583,12176,108571,26279,79125,12995,70156,12339,54816,7020,85313,10050,79444,8510,73682,16011,69702,9041,78224,12451]
[null,null,null,"Estimate Median household income in the past 12 months (in 2019 inflation-adjusted dollars) -- Total: Householder under 25 years","-","**","-","**",46458,23982,"-","**","-","**","-","**","-","**","-","**","-","**","-","**","-","**","-","**",33482,11286,"-","**","-","**"]
[null,null,null,"Estimate Median household income in the past 12 months (in 2019 inflation-adjusted dollars) -- Total: Householder 25 to 44 years",63250,29245,52969,48413,63254,7567,108000,14436,94167,26312,58214,12021,116118,43161,78875,9084,102344,14160,58396,10726,93929,31447,82917,49133,70455,26432,64375,14302,"-","**"]
[null,null,null,"Estimate Median household income in the past 12 months (in 2019 inflation-adjusted dollars) -- Total: Householder 45 to 64 years",94375,18057,55187,14459,51285,11597,99479,9464,85417,29743,74844,19519,137664,56617,91667,10346,78365,14797,70024,22503,95536,11386,96250,7418,93235,12877,87500,6036,88375,19223]
[null,null,null,"Estimate Median household income in the past 12 months (in 2019 inflation-adjusted dollars) -- Total: Householder 65 years and over",55000,6509,39572,10971,36296,7516,55278,6252,43750,16904,45000,10529,85515,22746,60625,10286,46731,5043,27128,23594,58750,21391,66667,9001,64375,22625,48194,9618,47083,9380]

{"sheet":"SData_Tables_B19101_B19113","index":59,"n_rows":39,"n_cols":42,"rows_kept":39,"cut":false,"hidden":true,"merged":[]}
["GEO_ID","GEO_ID2","SUMLEVEL","GEO_NAME","B19101_1_EST","B19101_1_MOE","B19101_2_EST","B19101_2_MOE","B19101_3_EST","B19101_3_MOE","B19101_4_EST","B19101_4_MOE","B19101_5_EST","B19101_5_MOE","B19101_6_EST","B19101_6_MOE","B19101_7_EST","B19101_7_MOE","B19101_8_EST","B19101_8_MOE","B19101_9_EST","B19101_9_MOE","B19101_10_EST","B19101_10_MOE","B19101_11_EST","B19101_11_MOE","B19101_12_EST","B19101_12_MOE","B19101_13_EST","B19101_13_MOE","B19101_14_EST","B19101_14_MOE","B19101_15_EST","B19101_15_MOE","B19101_16_EST","B19101_16_MOE","B19101_17_EST","B19101_17_MOE","B19113_1_EST","B19113_1_MOE"]
["Geography Identifier","Geography Identifier","Geographic Summary Level","Geography",{"$f":"[1]ACS_16_5YR_B19101_with_ann!D$2","v":"Estimate Total:"},{"$f":"[1]ACS_16_5YR_B19101_with_ann!E$2","v":"Margin of Error Total:"},{"$f":"[1]ACS_16_5YR_B19101_with_ann!F$2","v":"Estimate  Total: - Less than $10,000"},{"$f":"[1]ACS_16_5YR_B19101_with_ann!G$2","v":"Margin of Error Total: Less than $10"},{"$f":"[1]ACS_16_5YR_B19101_with_ann!H$2","v":"Estimate  Total: - $10,000 to $14,999"},{"$f":"[1]ACS_16_5YR_B19101_with_ann!I$2","v":"Margin of Error Total: $10"},{"$f":"[1]ACS_16_5YR_B19101_with_ann!J$2","v":"Estimate  Total: - $15,000 to $19,999"},{"$f":"[1]ACS_16_5YR_B19101_with_ann!K$2","v":"Margin of Error Total: $15"},{"$f":"[1]ACS_16_5YR_B19101_with_ann!L$2","v":"Estimate  Total: - $20,000 to $24,999"},{"$f":"[1]ACS_16_5YR_B19101_with_ann!M$2","v":"Margin of Error Total: $20"},{"$f":"[1]ACS_16_5YR_B19101_with_ann!N$2","v":"Estimate  Total: - $25,000 to $29,999"},{"$f":"[1]ACS_16_5YR_B19101_with_ann!O$2","v":"Margin of Error Total: $25"},{"$f":"[1]ACS_16_5YR_B19101_with_ann!P$2","v":"Estimate  Total: - $30,000 to $34,999"},{"$f":"[1]ACS_16_5YR_B19101_with_ann!Q$2","v":"Margin of Error Total: $30"},{"$f":"[1]ACS_16_5YR_B19101_with_ann!R$2","v":"Estimate  Total: - $35,000 to $39,999"},{"$f":"[1]ACS_16_5YR_B19101_with_ann!S$2","v":"Margin of Error Total: $35"},{"$f":"[1]ACS_16_5YR_B19101_with_ann!T$2","v":"Estimate  Total: - $40,000 to $44,999"},{"$f":"[1]ACS_16_5YR_B19101_with_ann!U$2","v":"Margin of Error Total: $40"},{"$f":"[1]ACS_16_5YR_B19101_with_ann!V$2","v":"Estimate  Total: - $45,000 to $49,999"},{"$f":"[1]ACS_16_5YR_B19101_with_ann!W$2","v":"Margin of Error Total: $45"},{"$f":"[1]ACS_16_5YR_B19101_with_ann!X$2","v":"Estimate  Total: - $50,000 to $59,999"},{"$f":"[1]ACS_16_5YR_B19101_with_ann!Y$2","v":"Margin of Error Total: $50"},{"$f":"[1]ACS_16_5YR_B19101_with_ann!Z$2","v":"Estimate  Total: - $60,000 to $74,999"},{"$f":"[1]ACS_16_5YR_B19101_with_ann!AA$2","v":"Margin of Error Total: $60"},{"$f":"[1]ACS_16_5YR_B19101_with_ann!AB$2","v":"Estimate  Total: - $75,000 to $99,999"},{"$f":"[1]ACS_16_5YR_B19101_with_ann!AC$2","v":"Margin of Error Total: $75"},{"$f":"[1]ACS_16_5YR_B19101_with_ann!AD$2","v":"Estimate  Total: - $100,000 to $124,999"},{"$f":"[1]ACS_16_5YR_B19101_with_ann!AE$2","v":"Margin of Error Total: $100"},{"$f":"[1]ACS_16_5YR_B19101_with_ann!AF$2","v":"Estimate  Total: - $125,000 to $149,999"},{"$f":"[1]ACS_16_5YR_B19101_with_ann!AG$2","v":"Margin of Error Total: $125"},{"$f":"[1]ACS_16_5YR_B19101_with_ann!AH$2","v":"Estimate  Total: - $150,000 to $199,999"},{"$f":"[1]ACS_16_5YR_B19101_with_ann!AI$2","v":"Margin of Error Total: $150"},{"$f":"[1]ACS_16_5YR_B19101_with_ann!AJ$2","v":"Estimate  Total: - $200,000 or more"},{"$f":"[1]ACS_16_5YR_B19101_with_ann!AK$2","v":"Margin of Error Total: $200"},{"$f":"[1]ACS_16_5YR_B19113_with_ann!D$2","v":"Estimate Median family income in the past 12 months (in 2019 inflation-adjusted dollars)"},{"$f":"[1]ACS_16_5YR_B19113_with_ann!E$2","v":"Margin of Error Median family income in the past 12 months (in 2019 inflation-adjusted dollars)"}]
["0600000US3301900259",3301900259,"060","Acworth",{"$f":"[1]ACS_16_5YR_B19101_with_ann!D258","v":255},{"$f":"[1]ACS_16_5YR_B19101_with_ann!E258","v":43},{"$f":"[1]ACS_16_5YR_B19101_with_ann!F258","v":9},{"$f":"[1]ACS_16_5YR_B19101_with_ann!G258","v":12},{"$f":"[1]ACS_16_5YR_B19101_with_ann!H258","v":0},{"$f":"[1]ACS_16_5YR_B19101_with_ann!I258","v":11},{"$f":"[1]ACS_16_5YR_B19101_with_ann!J258","v":2},{"$f":"[1]ACS_16_5YR_B19101_with_ann!K258","v":3},{"$f":"[1]ACS_16_5YR_B19101_with_ann!L258","v":2},{"$f":"[1]ACS_16_5YR_B19101_with_ann!M258","v":3},{"$f":"[1]ACS_16_5YR_B19101_with_ann!N258","v":5},{"$f":"[1]ACS_16_5YR_B19101_with_ann!O258","v":5},{"$f":"[1]ACS_16_5YR_B19101_with_ann!P258","v":8},{"$f":"[1]ACS_16_5YR_B19101_with_ann!Q258","v":8},{"$f":"[1]ACS_16_5YR_B19101_with_ann!R258","v":2},{"$f":"[1]ACS_16_5YR_B19101_with_ann!S258","v":3},{"$f":"[1]ACS_16_5YR_B19101_with_ann!T258","v":19},{"$f":"[1]ACS_16_5YR_B19101_with_ann!U258","v":17},{"$f":"[1]ACS_16_5YR_B19101_with_ann!V258","v":14},{"$f":"[1]ACS_16_5YR_B19101_with_ann!W258","v":12},{"$f":"[1]ACS_16_5YR_B19101_with_ann!X258","v":12},{"$f":"[1]ACS_16_5YR_B19101_with_ann!Y258","v":11},{"$f":"[1]ACS_16_5YR_B19101_with_ann!Z258","v":37},{"$f":"[1]ACS_16_5YR_B19101_with_ann!AA258","v":22},{"$f":"[1]ACS_16_5YR_B19101_with_ann!AB258","v":57},{"$f":"[1]ACS_16_5YR_B19101_with_ann!AC258","v":29},{"$f":"[1]ACS_16_5YR_B19101_with_ann!AD258","v":30},{"$f":"[1]ACS_16_5YR_B19101_with_ann!AE258","v":18},{"$f":"[1]ACS_16_5YR_B19101_with_ann!AF258","v":28},{"$f":"[1]ACS_16_5YR_B19101_with_ann!AG258","v":15},{"$f":"[1]ACS_16_5YR_B19101_with_ann!AH258","v":16},{"$f":"[1]ACS_16_5YR_B19101_with_ann!AI258","v":13},{"$f":"[1]ACS_16_5YR_B19101_with_ann!AJ258","v":14},{"$f":"[1]ACS_16_5YR_B19101_with_ann!AK258","v":11},{"$f":"[1]ACS_16_5YR_B19113_with_ann!D258","v":82031},{"$f":"[1]ACS_16_5YR_B19113_with_ann!E258","v":10238},null,"Acworth"]
["0600000US3301911380",3301911380,"060","Charlestown",{"$f":"[1]ACS_16_5YR_B19101_with_ann!D259","v":1379},{"$f":"[1]ACS_16_5YR_B19101_with_ann!E259","v":163},{"$f":"[1]ACS_16_5YR_B19101_with_ann!F259","v":51},{"$f":"[1]ACS_16_5YR_B19101_with_ann!G259","v":54},{"$f":"[1]ACS_16_5YR_B19101_with_ann!H259","v":16},{"$f":"[1]ACS_16_5YR_B19101_with_ann!I259","v":26},{"$f":"[1]ACS_16_5YR_B19101_with_ann!J259","v":33},{"$f":"[1]ACS_16_5YR_B19101_with_ann!K259","v":38},{"$f":"[1]ACS_16_5YR_B19101_with_ann!L259","v":0},{"$f":"[1]ACS_16_5YR_B19101_with_ann!M259","v":16},{"$f":"[1]ACS_16_5YR_B19101_with_ann!N259","v":124},{"$f":"[1]ACS_16_5YR_B19101_with_ann!O259","v":92},{"$f":"[1]ACS_16_5YR_B19101_with_ann!P259","v":45},{"$f":"[1]ACS_16_5YR_B19101_with_ann!Q259","v":67},{"$f":"[1]ACS_16_5YR_B19101_with_ann!R259","v":77},{"$f":"[1]ACS_16_5YR_B19101_with_ann!S259","v":64},{"$f":"[1]ACS_16_5YR_B19101_with_ann!T259","v":103},{"$f":"[1]ACS_16_5YR_B19101_with_ann!U259","v":87},{"$f":"[1]ACS_16_5YR_B19101_with_ann!V259","v":39},{"$f":"[1]ACS_16_5YR_B19101_with_ann!W259","v":44},{"$f":"[1]ACS_16_5YR_B19101_with_ann!X259","v":253},{"$f":"[1]ACS_16_5YR_B19101_with_ann!Y259","v":121},{"$f":"[1]ACS_16_5YR_B19101_with_ann!Z259","v":117},{"$f":"[1]ACS_16_5YR_B19101_with_ann!AA259","v":69},{"$f":"[1]ACS_16_5YR_B19101_with_ann!AB259","v":323},{"$f":"[1]ACS_16_5YR_B19101_with_ann!AC259","v":146},{"$f":"[1]ACS_16_5YR_B19101_with_ann!AD259","v":73},{"$f":"[1]ACS_16_5YR_B19101_with_ann!AE259","v":61},{"$f":"[1]ACS_16_5YR_B19101_with_ann!AF259","v":35},{"$f":"[1]ACS_16_5YR_B19101_with_ann!AG259","v":35},{"$f":"[1]ACS_16_5YR_B19101_with_ann!AH259","v":23},{"$f":"[1]ACS_16_5YR_B19101_with_ann!AI259","v":29},{"$f":"[1]ACS_16_5YR_B19101_with_ann!AJ259","v":67},{"$f":"[1]ACS_16_5YR_B19101_with_ann!AK259","v":60},{"$f":"[1]ACS_16_5YR_B19113_with_ann!D259","v":56853},{"$f":"[1]ACS_16_5YR_B19113_with_ann!E259","v":7095},null,"Acworth"]
["0600000US3301912900",3301912900,"060","Claremont",{"$f":"[1]ACS_16_5YR_B19101_with_ann!D260","v":3165},{"$f":"[1]ACS_16_5YR_B19101_with_ann!E260","v":231},{"$f":"[1]ACS_16_5YR_B19101_with_ann!F260","v":132},{"$f":"[1]ACS_16_5YR_B19101_with_ann!G260","v":84},{"$f":"[1]ACS_16_5YR_B19101_with_ann!H260","v":88},{"$f":"[1]ACS_16_5YR_B19101_with_ann!I260","v":67},{"$f":"[1]ACS_16_5YR_B19101_with_ann!J260","v":73},{"$f":"[1]ACS_16_5YR_B19101_with_ann!K260","v":80},{"$f":"[1]ACS_16_5YR_B19101_with_ann!L260","v":155},{"$f":"[1]ACS_16_5YR_B19101_with_ann!M260","v":97},{"$f":"[1]ACS_16_5YR_B19101_with_ann!N260","v":178},{"$f":"[1]ACS_16_5YR_B19101_with_ann!O260","v":105},{"$f":"[1]ACS_16_5YR_B19101_with_ann!P260","v":205},{"$f":"[1]ACS_16_5YR_B19101_with_ann!Q260","v":98},{"$f":"[1]ACS_16_5YR_B19101_with_ann!R260","v":44},{"$f":"[1]ACS_16_5YR_B19101_with_ann!S260","v":41},{"$f":"[1]ACS_16_5YR_B19101_with_ann!T260","v":177},{"$f":"[1]ACS_16_5YR_B19101_with_ann!U260","v":91},{"$f":"[1]ACS_16_5YR_B19101_with_ann!V260","v":232},{"$f":"[1]ACS_16_5YR_B19101_with_ann!W260","v":100},{"$f":"[1]ACS_16_5YR_B19101_with_ann!X260","v":302},{"$f":"[1]ACS_16_5YR_B19101_with_ann!Y260","v":114},{"$f":"[1]ACS_16_5YR_B19101_with_ann!Z260","v":219},{"$f":"[1]ACS_16_5YR_B19101_with_ann!AA260","v":72},{"$f":"[1]ACS_16_5YR_B19101_with_ann!AB260","v":722},{"$f":"[1]ACS_16_5YR_B19101_with_ann!AC260","v":187},{"$f":"[1]ACS_16_5YR_B19101_with_ann!AD260","v":294},{"$f":"[1]ACS_16_5YR_B19101_with_ann!AE260","v":114},{"$f":"[1]ACS_16_5YR_B19101_with_ann!AF260","v":132},{"$f":"[1]ACS_16_5YR_B19101_with_ann!AG260","v":69},{"$f":"[1]ACS_16_5YR_B19101_with_ann!AH260","v":157},{"$f":"[1]ACS_16_5YR_B19101_with_ann!AI260","v":80},{"$f":"[1]ACS_16_5YR_B19101_with_ann!AJ260","v":55},{"$f":"[1]ACS_16_5YR_B19101_with_ann!AK260","v":44},{"$f":"[1]ACS_16_5YR_B19113_with_ann!D260","v":59924},{"$f":"[1]ACS_16_5YR_B19113_with_ann!E260","v":10063},null,"Acworth"]
["0600000US3301915060",3301915060,"060","Cornish",{"$f":"[1]ACS_16_5YR_B19101_with_ann!D261","v":526},{"$f":"[1]ACS_16_5YR_B19101_with_ann!E261","v":72},{"$f":"[1]ACS_16_5YR_B19101_with_ann!F261","v":4},{"$f":"[1]ACS_16_5YR_B19101_with_ann!G261","v":7},{"$f":"[1]ACS_16_5YR_B19101_with_ann!H261","v":4},{"$f":"[1]ACS_16_5YR_B19101_with_ann!I261","v":6},{"$f":"[1]ACS_16_5YR_B19101_with_ann!J261","v":0},{"$f":"[1]ACS_16_5YR_B19101_with_ann!K261","v":11},{"$f":"[1]ACS_16_5YR_B19101_with_ann!L261","v":4},{"$f":"[1]ACS_16_5YR_B19101_with_ann!M261","v":6},{"$f":"[1]ACS_16_5YR_B19101_with_ann!N261","v":15},{"$f":"[1]ACS_16_5YR_B19101_with_ann!O261","v":19},{"$f":"[1]ACS_16_5YR_B19101_with_ann!P261","v":23},{"$f":"[1]ACS_16_5YR_B19101_with_ann!Q261","v":22},{"$f":"[1]ACS_16_5YR_B19101_with_ann!R261","v":28},{"$f":"[1]ACS_16_5YR_B19101_with_ann!S261","v":23},{"$f":"[1]ACS_16_5YR_B19101_with_ann!T261","v":12},{"$f":"[1]ACS_16_5YR_B19101_with_ann!U261","v":8},{"$f":"[1]ACS_16_5YR_B19101_with_ann!V261","v":18},{"$f":"[1]ACS_16_5YR_B19101_with_ann!W261","v":12},{"$f":"[1]ACS_16_5YR_B19101_with_ann!X261","v":29},{"$f":"[1]ACS_16_5YR_B19101_with_ann!Y261","v":21},{"$f":"[1]ACS_16_5YR_B19101_with_ann!Z261","v":35},{"$f":"[1]ACS_16_5YR_B19101_with_ann!AA261","v":24},{"$f":"[1]ACS_16_5YR_B19101_with_ann!AB261","v":79},{"$f":"[1]ACS_16_5YR_B19101_with_ann!AC261","v":32},{"$f":"[1]ACS_16_5YR_B19101_with_ann!AD261","v":88},{"$f":"[1]ACS_16_5YR_B19101_with_ann!AE261","v":30},{"$f":"[1]ACS_16_5YR_B19101_with_ann!AF261","v":73},{"$f":"[1]ACS_16_5YR_B19101_with_ann!AG261","v":27},{"$f":"[1]ACS_16_5YR_B19101_with_ann!AH261","v":50},{"$f":"[1]ACS_16_5YR_B19101_with_ann!AI261","v":21},{"$f":"[1]ACS_16_5YR_B19101_with_ann!AJ261","v":64},{"$f":"[1]ACS_16_5YR_B19101_with_ann!AK261","v":29},{"$f":"[1]ACS_16_5YR_B19113_with_ann!D261","v":104167},{"$f":"[1]ACS_16_5YR_B19113_with_ann!E261","v":8949},null,"Acworth"]
["0600000US3301916340",3301916340,"060","Croydon",{"$f":"[1]ACS_16_5YR_B19101_with_ann!D262","v":187},{"$f":"[1]ACS_16_5YR_B19101_with_ann!E262","v":46},{"$f":"[1]ACS_16_5YR_B19101_with_ann!F262","v":12},{"$f":"[1]ACS_16_5YR_B19101_with_ann!G262","v":15},{"$f":"[1]ACS_16_5YR_B19101_with_ann!H262","v":0},{"$f":"[1]ACS_16_5YR_B19101_with_ann!I262","v":11},{"$f":"[1]ACS_16_5YR_B19101_with_ann!J262","v":0},{"$f":"[1]ACS_16_5YR_B19101_with_ann!K262","v":11},{"$f":"[1]ACS_16_5YR_B19101_with_ann!L262","v":2},{"$f":"[1]ACS_16_5YR_B19101_with_ann!M262","v":4},{"$f":"[1]ACS_16_5YR_B19101_with_ann!N262","v":3},{"$f":"[1]ACS_16_5YR_B19101_with_ann!O262","v":5},{"$f":"[1]ACS_16_5YR_B19101_with_ann!P262","v":3},{"$f":"[1]ACS_16_5YR_B19101_with_ann!Q262","v":5},{"$f":"[1]ACS_16_5YR_B19101_with_ann!R262","v":3},{"$f":"[1]ACS_16_5YR_B19101_with_ann!S262","v":4},{"$f":"[1]ACS_16_5YR_B19101_with_ann!T262","v":4},{"$f":"[1]ACS_16_5YR_B19101_with_ann!U262","v":5},{"$f":"[1]ACS_16_5YR_B19101_with_ann!V262","v":7},{"$f":"[1]ACS_16_5YR_B19101_with_ann!W262","v":7},{"$f":"[1]ACS_16_5YR_B19101_with_ann!X262","v":16},{"$f":"[1]ACS_16_5YR_B19101_with_ann!Y262","v":12},{"$f":"[1]ACS_16_5YR_B19101_with_ann!Z262","v":14},{"$f":"[1]ACS_16_5YR_B19101_with_ann!AA262","v":10},{"$f":"[1]ACS_16_5YR_B19101_with_ann!AB262","v":40},{"$f":"[1]ACS_16_5YR_B19101_with_ann!AC262","v":19},{"$f":"[1]ACS_16_5YR_B19101_with_ann!AD262","v":42},{"$f":"[1]ACS_16_5YR_B19101_with_ann!AE262","v":25},{"$f":"[1]ACS_16_5YR_B19101_with_ann!AF262","v":14},{"$f":"[1]ACS_16_5YR_B19101_with_ann!AG262","v":14},{"$f":"[1]ACS_16_5YR_B19101_with_ann!AH262","v":21},{"$f":"[1]ACS_16_5YR_B19101_with_ann!AI262","v":20},{"$f":"[1]ACS_16_5YR_B19101_with_ann!AJ262","v":6},{"$f":"[1]ACS_16_5YR_B19101_with_ann!AK262","v":7},{"$f":"[1]ACS_16_5YR_B19113_with_ann!D262","v":92750},{"$f":"[1]ACS_16_5YR_B19113_with_ann!E262","v":18419},null,"Acworth"]
["0600000US3301930500",3301930500,"060","Goshen",{"$f":"[1]ACS_16_5YR_B19101_with_ann!D263","v":163},{"$f":"[1]ACS_16_5YR_B19101_with_ann!E263","v":36},{"$f":"[1]ACS_16_5YR_B19101_with_ann!F263","v":2},{"$f":"[1]ACS_16_5YR_B19101_with_ann!G263","v":3},{"$f":"[1]ACS_16_5YR_B19101_with_ann!H263","v":2},{"$f":"[1]ACS_16_5YR_B19101_with_ann!I263","v":3},{"$f":"[1]ACS_16_5YR_B19101_with_ann!J263","v":6},{"$f":"[1]ACS_16_5YR_B19101_with_ann!K263","v":6},{"$f":"[1]ACS_16_5YR_B19101_with_ann!L263","v":2},{"$f":"[1]ACS_16_5YR_B19101_with_ann!M263","v":3},{"$f":"[1]ACS_16_5YR_B19101_with_ann!N263","v":10},{"$f":"[1]ACS_16_5YR_B19101_with_ann!O263","v":10},{"$f":"[1]ACS_16_5YR_B19101_with_ann!P263","v":0},{"$f":"[1]ACS_16_5YR_B19101_with_ann!Q263","v":11},{"$f":"[1]ACS_16_5YR_B19101_with_ann!R263","v":9},{"$f":"[1]ACS_16_5YR_B19101_with_ann!S263","v":11},{"$f":"[1]ACS_16_5YR_B19101_with_ann!T263","v":4},{"$f":"[1]ACS_16_5YR_B19101_with_ann!U263","v":5},{"$f":"[1]ACS_16_5YR_B19101_with_ann!V263","v":13},{"$f":"[1]ACS_16_5YR_B19101_with_ann!W263","v":12},{"$f":"[1]ACS_16_5YR_B19101_with_ann!X263","v":19},{"$f":"[1]ACS_16_5YR_B19101_with_ann!Y263","v":16},{"$f":"[1]ACS_16_5YR_B19101_with_ann!Z263","v":19},{"$f":"[1]ACS_16_5YR_B19101_with_ann!AA263","v":12},{"$f":"[1]ACS_16_5YR_B19101_with_ann!AB263","v":36},{"$f":"[1]ACS_16_5YR_B19101_with_ann!AC263","v":16},{"$f":"[1]ACS_16_5YR_B19101_with_ann!AD263","v":11},{"$f":"[1]ACS_16_5YR_B19101_with_ann!AE263","v":12},{"$f":"[1]ACS_16_5YR_B19101_with_ann!AF263","v":16},{"$f":"[1]ACS_16_5YR_B19101_with_ann!AG263","v":13},{"$f":"[1]ACS_16_5YR_B19101_with_ann!AH263","v":12},{"$f":"[1]ACS_16_5YR_B19101_with_ann!AI263","v":11},{"$f":"[1]ACS_16_5YR_B19101_with_ann!AJ263","v":2},{"$f":"[1]ACS_16_5YR_B19101_with_ann!AK263","v":4},{"$f":"[1]ACS_16_5YR_B19113_with_ann!D263","v":70250},{"$f":"[1]ACS_16_5YR_B19113_with_ann!E263","v":13304},null,"Acworth"]
["0600000US3301931220",3301931220,"060","Grantham",{"$f":"[1]ACS_16_5YR_B19101_with_ann!D264","v":902},{"$f":"[1]ACS_16_5YR_B19101_with_ann!E264","v":98},{"$f":"[1]ACS_16_5YR_B19101_with_ann!F264","v":0},{"$f":"[1]ACS_16_5YR_B19101_with_ann!G264","v":11},{"$f":"[1]ACS_16_5YR_B19101_with_ann!H264","v":0},{"$f":"[1]ACS_16_5YR_B19101_with_ann!I264","v":11},{"$f":"[1]ACS_16_5YR_B19101_with_ann!J264","v":31},{"$f":"[1]ACS_16_5YR_B19101_with_ann!K264","v":43},{"$f":"[1]ACS_16_5YR_B19101_with_ann!L264","v":0},{"$f":"[1]ACS_16_5YR_B19101_with_ann!M264","v":11},{"$f":"[1]ACS_16_5YR_B19101_with_ann!N264","v":43},{"$f":"[1]ACS_16_5YR_B19101_with_ann!O264","v":50},{"$f":"[1]ACS_16_5YR_B19101_with_ann!P264","v":0},{"$f":"[1]ACS_16_5YR_B19101_with_ann!Q264","v":11},{"$f":"[1]ACS_16_5YR_B19101_with_ann!R264","v":0},{"$f":"[1]ACS_16_5YR_B19101_with_ann!S264","v":11},{"$f":"[1]ACS_16_5YR_B19101_with_ann!T264","v":0},{"$f":"[1]ACS_16_5YR_B19101_with_ann!U264","v":11},{"$f":"[1]ACS_16_5YR_B19101_with_ann!V264","v":0},{"$f":"[1]ACS_16_5YR_B19101_with_ann!W264","v":11},{"$f":"[1]ACS_16_5YR_B19101_with_ann!X264","v":26},{"$f":"[1]ACS_16_5YR_B19101_with_ann!Y264","v":28},{"$f":"[1]ACS_16_5YR_B19101_with_ann!Z264","v":96},{"$f":"[1]ACS_16_5YR_B19101_with_ann!AA264","v":64},{"$f":"[1]ACS_16_5YR_B19101_with_ann!AB264","v":112},{"$f":"[1]ACS_16_5YR_B19101_with_ann!AC264","v":55},{"$f":"[1]ACS_16_5YR_B19101_with_ann!AD264","v":140},{"$f":"[1]ACS_16_5YR_B19101_with_ann!AE264","v":67},{"$f":"[1]ACS_16_5YR_B19101_with_ann!AF264","v":232},{"$f":"[1]ACS_16_5YR_B19101_with_ann!AG264","v":116},{"$f":"[1]ACS_16_5YR_B19101_with_ann!AH264","v":163},{"$f":"[1]ACS_16_5YR_B19101_with_ann!AI264","v":107},{"$f":"[1]ACS_16_5YR_B19101_with_ann!AJ264","v":59},{"$f":"[1]ACS_16_5YR_B19101_with_ann!AK264","v":48},{"$f":"[1]ACS_16_5YR_B19113_with_ann!D264","v":125313},{"$f":"[1]ACS_16_5YR_B19113_with_ann!E264","v":26710},null,"Acworth"]
["0600000US3301940900",3301940900,"060","Langdon",{"$f":"[1]ACS_16_5YR_B19101_with_ann!D265","v":190},{"$f":"[1]ACS_16_5YR_B19101_with_ann!E265","v":38},{"$f":"[1]ACS_16_5YR_B19101_with_ann!F265","v":3},{"$f":"[1]ACS_16_5YR_B19101_with_ann!G265","v":4},{"$f":"[1]ACS_16_5YR_B19101_with_ann!H265","v":2},{"$f":"[1]ACS_16_5YR_B19101_with_ann!I265","v":3},{"$f":"[1]ACS_16_5YR_B19101_with_ann!J265","v":2},{"$f":"[1]ACS_16_5YR_B19101_with_ann!K265","v":3},{"$f":"[1]ACS_16_5YR_B19101_with_ann!L265","v":7},{"$f":"[1]ACS_16_5YR_B19101_with_ann!M265","v":11},{"$f":"[1]ACS_16_5YR_B19101_with_ann!N265","v":12},{"$f":"[1]ACS_16_5YR_B19101_with_ann!O265","v":9},{"$f":"[1]ACS_16_5YR_B19101_with_ann!P265","v":2},{"$f":"[1]ACS_16_5YR_B19101_with_ann!Q265","v":3},{"$f":"[1]ACS_16_5YR_B19101_with_ann!R265","v":9},{"$f":"[1]ACS_16_5YR_B19101_with_ann!S265","v":11},{"$f":"[1]ACS_16_5YR_B19101_with_ann!T265","v":0},{"$f":"[1]ACS_16_5YR_B19101_with_ann!U265","v":11},{"$f":"[1]ACS_16_5YR_B19101_with_ann!V265","v":5},{"$f":"[1]ACS_16_5YR_B19101_with_ann!W265","v":5},{"$f":"[1]ACS_16_5YR_B19101_with_ann!X265","v":19},{"$f":"[1]ACS_16_5YR_B19101_with_ann!Y265","v":15},{"$f":"[1]ACS_16_5YR_B19101_with_ann!Z265","v":13},{"$f":"[1]ACS_16_5YR_B19101_with_ann!AA265","v":11},{"$f":"[1]ACS_16_5YR_B19101_with_ann!AB265","v":31},{"$f":"[1]ACS_16_5YR_B19101_with_ann!AC265","v":16},{"$f":"[1]ACS_16_5YR_B19101_with_ann!AD265","v":29},{"$f":"[1]ACS_16_5YR_B19101_with_ann!AE265","v":13},{"$f":"[1]ACS_16_5YR_B19101_with_ann!AF265","v":21},{"$f":"[1]ACS_16_5YR_B19101_with_ann!AG265","v":12},{"$f":"[1]ACS_16_5YR_B19101_with_ann!AH265","v":18},{"$f":"[1]ACS_16_5YR_B19101_with_ann!AI265","v":13},{"$f":"[1]ACS_16_5YR_B19101_with_ann!AJ265","v":17},{"$f":"[1]ACS_16_5YR_B19101_with_ann!AK265","v":16},{"$f":"[1]ACS_16_5YR_B19113_with_ann!D265","v":92000},{"$f":"[1]ACS_16_5YR_B19113_with_ann!E265","v":13847},null,"Acworth"]
["0600000US3301941700",3301941700,"060","Lempster",{"$f":"[1]ACS_16_5YR_B19101_with_ann!D266","v":240},{"$f":"[1]ACS_16_5YR_B19101_with_ann!E266","v":47},{"$f":"[1]ACS_16_5YR_B19101_with_ann!F266","v":3},{"$f":"[1]ACS_16_5YR_B19101_with_ann!G266","v":5},{"$f":"[1]ACS_16_5YR_B19101_with_ann!H266","v":9},{"$f":"[1]ACS_16_5YR_B19101_with_ann!I266","v":14},{"$f":"[1]ACS_16_5YR_B19101_with_ann!J266","v":0},{"$f":"[1]ACS_16_5YR_B19101_with_ann!K266","v":11},{"$f":"[1]ACS_16_5YR_B19101_with_ann!L266","v":8},{"$f":"[1]ACS_16_5YR_B19101_with_ann!M266","v":7},{"$f":"[1]ACS_16_5YR_B19101_with_ann!N266","v":0},{"$f":"[1]ACS_16_5YR_B19101_with_ann!O266","v":11},{"$f":"[1]ACS_16_5YR_B19101_with_ann!P266","v":7},{"$f":"[1]ACS_16_5YR_B19101_with_ann!Q266","v":8},{"$f":"[1]ACS_16_5YR_B19101_with_ann!R266","v":10},{"$f":"[1]ACS_16_5YR_B19101_with_ann!S266","v":7},{"$f":"[1]ACS_16_5YR_B19101_with_ann!T266","v":12},{"$f":"[1]ACS_16_5YR_B19101_with_ann!U266","v":14},{"$f":"[1]ACS_16_5YR_B19101_with_ann!V266","v":20},{"$f":"[1]ACS_16_5YR_B19101_with_ann!W266","v":17},{"$f":"[1]ACS_16_5YR_B19101_with_ann!X266","v":2},{"$f":"[1]ACS_16_5YR_B19101_with_ann!Y266","v":3},{"$f":"[1]ACS_16_5YR_B19101_with_ann!Z266","v":33},{"$f":"[1]ACS_16_5YR_B19101_with_ann!AA266","v":23},{"$f":"[1]ACS_16_5YR_B19101_with_ann!AB266","v":50},{"$f":"[1]ACS_16_5YR_B19101_with_ann!AC266","v":18},{"$f":"[1]ACS_16_5YR_B19101_with_ann!AD266","v":50},{"$f":"[1]ACS_16_5YR_B19101_with_ann!AE266","v":29},{"$f":"[1]ACS_16_5YR_B19101_with_ann!AF266","v":11},{"$f":"[1]ACS_16_5YR_B19101_with_ann!AG266","v":10},{"$f":"[1]ACS_16_5YR_B19101_with_ann!AH266","v":14},{"$f":"[1]ACS_16_5YR_B19101_with_ann!AI266","v":22},{"$f":"[1]ACS_16_5YR_B19101_with_ann!AJ266","v":11},{"$f":"[1]ACS_16_5YR_B19101_with_ann!AK266","v":14},{"$f":"[1]ACS_16_5YR_B19113_with_ann!D266","v":79333},{"$f":"[1]ACS_16_5YR_B19113_with_ann!E266","v":8904},null,"Acworth"]
["0600000US3301952580",3301952580,"060","Newport",{"$f":"[1]ACS_16_5YR_B19101_with_ann!D267","v":1572},{"$f":"[1]ACS_16_5YR_B19101_with_ann!E267","v":151},{"$f":"[1]ACS_16_5YR_B19101_with_ann!F267","v":102},{"$f":"[1]ACS_16_5YR_B19101_with_ann!G267","v":84},{"$f":"[1]ACS_16_5YR_B19101_with_ann!H267","v":0},{"$f":"[1]ACS_16_5YR_B19101_with_ann!I267","v":16},{"$f":"[1]ACS_16_5YR_B19101_with_ann!J267","v":51},{"$f":"[1]ACS_16_5YR_B19101_with_ann!K267","v":63},{"$f":"[1]ACS_16_5YR_B19101_with_ann!L267","v":26},{"$f":"[1]ACS_16_5YR_B19101_with_ann!M267","v":30},{"$f":"[1]ACS_16_5YR_B19101_with_ann!N267","v":114},{"$f":"[1]ACS_16_5YR_B19101_with_ann!O267","v":96},{"$f":"[1]ACS_16_5YR_B19101_with_ann!P267","v":76},{"$f":"[1]ACS_16_5YR_B19101_with_ann!Q267","v":62},{"$f":"[1]ACS_16_5YR_B19101_with_ann!R267","v":64},{"$f":"[1]ACS_16_5YR_B19101_with_ann!S267","v":43},{"$f":"[1]ACS_16_5YR_B19101_with_ann!T267","v":48},{"$f":"[1]ACS_16_5YR_B19101_with_ann!U267","v":61},{"$f":"[1]ACS_16_5YR_B19101_with_ann!V267","v":64},{"$f":"[1]ACS_16_5YR_B19101_with_ann!W267","v":48},{"$f":"[1]ACS_16_5YR_B19101_with_ann!X267","v":235},{"$f":"[1]ACS_16_5YR_B19101_with_ann!Y267","v":117},{"$f":"[1]ACS_16_5YR_B19101_with_ann!Z267","v":135},{"$f":"[1]ACS_16_5YR_B19101_with_ann!AA267","v":89},{"$f":"[1]ACS_16_5YR_B19101_with_ann!AB267","v":285},{"$f":"[1]ACS_16_5YR_B19101_with_ann!AC267","v":134},{"$f":"[1]ACS_16_5YR_B19101_with_ann!AD267","v":54},{"$f":"[1]ACS_16_5YR_B19101_with_ann!AE267","v":39},{"$f":"[1]ACS_16_5YR_B19101_with_ann!AF267","v":117},{"$f":"[1]ACS_16_5YR_B19101_with_ann!AG267","v":78},{"$f":"[1]ACS_16_5YR_B19101_with_ann!AH267","v":155},{"$f":"[1]ACS_16_5YR_B19101_with_ann!AI267","v":85},{"$f":"[1]ACS_16_5YR_B19101_with_ann!AJ267","v":46},{"$f":"[1]ACS_16_5YR_B19101_with_ann!AK267","v":38},{"$f":"[1]ACS_16_5YR_B19113_with_ann!D267","v":61071},{"$f":"[1]ACS_16_5YR_B19113_with_ann!E267","v":10387},null,"Acworth"]
["0600000US3301962340",3301962340,"060","Plainfield",{"$f":"[1]ACS_16_5YR_B19101_with_ann!D268","v":715},{"$f":"[1]ACS_16_5YR_B19101_with_ann!E268","v":79},{"$f":"[1]ACS_16_5YR_B19101_with_ann!F268","v":36},{"$f":"[1]ACS_16_5YR_B19101_with_ann!G268","v":29},{"$f":"[1]ACS_16_5YR_B19101_with_ann!H268","v":0},{"$f":"[1]ACS_16_5YR_B19101_with_ann!I268","v":11},{"$f":"[1]ACS_16_5YR_B19101_with_ann!J268","v":0},{"$f":"[1]ACS_16_5YR_B19101_with_ann!K268","v":11},{"$f":"[1]ACS_16_5YR_B19101_with_ann!L268","v":10},{"$f":"[1]ACS_16_5YR_B19101_with_ann!M268","v":11},{"$f":"[1]ACS_16_5YR_B19101_with_ann!N268","v":53},{"$f":"[1]ACS_16_5YR_B19101_with_ann!O268","v":38},{"$f":"[1]ACS_16_5YR_B19101_with_ann!P268","v":5},{"$f":"[1]ACS_16_5YR_B19101_with_ann!Q268","v":8},{"$f":"[1]ACS_16_5YR_B19101_with_ann!R268","v":0},{"$f":"[1]ACS_16_5YR_B19101_with_ann!S268","v":11},{"$f":"[1]ACS_16_5YR_B19101_with_ann!T268","v":18},{"$f":"[1]ACS_16_5YR_B19101_with_ann!U268","v":13},{"$f":"[1]ACS_16_5YR_B19101_with_ann!V268","v":31},{"$f":"[1]ACS_16_5YR_B19101_with_ann!W268","v":28},{"$f":"[1]ACS_16_5YR_B19101_with_ann!X268","v":41},{"$f":"[1]ACS_16_5YR_B19101_with_ann!Y268","v":31},{"$f":"[1]ACS_16_5YR_B19101_with_ann!Z268","v":64},{"$f":"[1]ACS_16_5YR_B19101_with_ann!AA268","v":36},{"$f":"[1]ACS_16_5YR_B19101_with_ann!AB268","v":154},{"$f":"[1]ACS_16_5YR_B19101_with_ann!AC268","v":41},{"$f":"[1]ACS_16_5YR_B19101_with_ann!AD268","v":72},{"$f":"[1]ACS_16_5YR_B19101_with_ann!AE268","v":34},{"$f":"[1]ACS_16_5YR_B19101_with_ann!AF268","v":87},{"$f":"[1]ACS_16_5YR_B19101_with_ann!AG268","v":42},{"$f":"[1]ACS_16_5YR_B19101_with_ann!AH268","v":65},{"$f":"[1]ACS_16_5YR_B19101_with_ann!AI268","v":34},{"$f":"[1]ACS_16_5YR_B19101_with_ann!AJ268","v":79},{"$f":"[1]ACS_16_5YR_B19101_with_ann!AK268","v":27},{"$f":"[1]ACS_16_5YR_B19113_with_ann!D268","v":91550},{"$f":"[1]ACS_16_5YR_B19113_with_ann!E268","v":7553},null,"Acworth"]
["0600000US3301972740",3301972740,"060","Springfield",{"$f":"[1]ACS_16_5YR_B19101_with_ann!D269","v":337},{"$f":"[1]ACS_16_5YR_B19101_with_ann!E269","v":66},{"$f":"[1]ACS_16_5YR_B19101_with_ann!F269","v":0},{"$f":"[1]ACS_16_5YR_B19101_with_ann!G269","v":11},{"$f":"[1]ACS_16_5YR_B19101_with_ann!H269","v":3},{"$f":"[1]ACS_16_5YR_B19101_with_ann!I269","v":5},{"$f":"[1]ACS_16_5YR_B19101_with_ann!J269","v":7},{"$f":"[1]ACS_16_5YR_B19101_with_ann!K269","v":13},{"$f":"[1]ACS_16_5YR_B19101_with_ann!L269","v":6},{"$f":"[1]ACS_16_5YR_B19101_with_ann!M269","v":9},{"$f":"[1]ACS_16_5YR_B19101_with_ann!N269","v":8},{"$f":"[1]ACS_16_5YR_B19101_with_ann!O269","v":8},{"$f":"[1]ACS_16_5YR_B19101_with_ann!P269","v":14},{"$f":"[1]ACS_16_5YR_B19101_with_ann!Q269","v":17},{"$f":"[1]ACS_16_5YR_B19101_with_ann!R269","v":6},{"$f":"[1]ACS_16_5YR_B19101_with_ann!S269","v":7},{"$f":"[1]ACS_16_5YR_B19101_with_ann!T269","v":3},{"$f":"[1]ACS_16_5YR_B19101_with_ann!U269","v":5},{"$f":"[1]ACS_16_5YR_B19101_with_ann!V269","v":0},{"$f":"[1]ACS_16_5YR_B19101_with_ann!W269","v":11},{"$f":"[1]ACS_16_5YR_B19101_with_ann!X269","v":14},{"$f":"[1]ACS_16_5YR_B19101_with_ann!Y269","v":16},{"$f":"[1]ACS_16_5YR_B19101_with_ann!Z269","v":49},{"$f":"[1]ACS_16_5YR_B19101_with_ann!AA269","v":32},{"$f":"[1]ACS_16_5YR_B19101_with_ann!AB269","v":143},{"$f":"[1]ACS_16_5YR_B19101_with_ann!AC269","v":53},{"$f":"[1]ACS_16_5YR_B19101_with_ann!AD269","v":41},{"$f":"[1]ACS_16_5YR_B19101_with_ann!AE269","v":29},{"$f":"[1]ACS_16_5YR_B19101_with_ann!AF269","v":23},{"$f":"[1]ACS_16_5YR_B19101_with_ann!AG269","v":19},{"$f":"[1]ACS_16_5YR_B19101_with_ann!AH269","v":11},{"$f":"[1]ACS_16_5YR_B19101_with_ann!AI269","v":9},{"$f":"[1]ACS_16_5YR_B19101_with_ann!AJ269","v":9},{"$f":"[1]ACS_16_5YR_B19101_with_ann!AK269","v":9},{"$f":"[1]ACS_16_5YR_B19113_with_ann!D269","v":89196},{"$f":"[1]ACS_16_5YR_B19113_with_ann!E269","v":11665},null,"Acworth"]
["0600000US3301975060",3301975060,"060","Sunapee",{"$f":"[1]ACS_16_5YR_B19101_with_ann!D270","v":901},{"$f":"[1]ACS_16_5YR_B19101_with_ann!E270","v":90},{"$f":"[1]ACS_16_5YR_B19101_with_ann!F270","v":56},{"$f":"[1]ACS_16_5YR_B19101_with_ann!G270","v":53},{"$f":"[1]ACS_16_5YR_B19101_with_ann!H270","v":11},{"$f":"[1]ACS_16_5YR_B19101_with_ann!I270","v":17},{"$f":"[1]ACS_16_5YR_B19101_with_ann!J270","v":0},{"$f":"[1]ACS_16_5YR_B19101_with_ann!K270","v":11},{"$f":"[1]ACS_16_5YR_B19101_with_ann!L270","v":7},{"$f":"[1]ACS_16_5YR_B19101_with_ann!M270","v":16},{"$f":"[1]ACS_16_5YR_B19101_with_ann!N270","v":17},{"$f":"[1]ACS_16_5YR_B19101_with_ann!O270","v":18},{"$f":"[1]ACS_16_5YR_B19101_with_ann!P270","v":35},{"$f":"[1]ACS_16_5YR_B19101_with_ann!Q270","v":31},{"$f":"[1]ACS_16_5YR_B19101_with_ann!R270","v":0},{"$f":"[1]ACS_16_5YR_B19101_with_ann!S270","v":11},{"$f":"[1]ACS_16_5YR_B19101_with_ann!T270","v":0},{"$f":"[1]ACS_16_5YR_B19101_with_ann!U270","v":11},{"$f":"[1]ACS_16_5YR_B19101_with_ann!V270","v":39},{"$f":"[1]ACS_16_5YR_B19101_with_ann!W270","v":29},{"$f":"[1]ACS_16_5YR_B19101_with_ann!X270","v":48},{"$f":"[1]ACS_16_5YR_B19101_with_ann!Y270","v":36},{"$f":"[1]ACS_16_5YR_B19101_with_ann!Z270","v":92},{"$f":"[1]ACS_16_5YR_B19101_with_ann!AA270","v":52},{"$f":"[1]ACS_16_5YR_B19101_with_ann!AB270","v":177},{"$f":"[1]ACS_16_5YR_B19101_with_ann!AC270","v":73},{"$f":"[1]ACS_16_5YR_B19101_with_ann!AD270","v":146},{"$f":"[1]ACS_16_5YR_B19101_with_ann!AE270","v":80},{"$f":"[1]ACS_16_5YR_B19101_with_ann!AF270","v":109},{"$f":"[1]ACS_16_5YR_B19101_with_ann!AG270","v":65},{"$f":"[1]ACS_16_5YR_B19101_with_ann!AH270","v":83},{"$f":"[1]ACS_16_5YR_B19101_with_ann!AI270","v":43},{"$f":"[1]ACS_16_5YR_B19101_with_ann!AJ270","v":81},{"$f":"[1]ACS_16_5YR_B19101_with_ann!AK270","v":42},{"$f":"[1]ACS_16_5YR_B19113_with_ann!D270","v":94198},{"$f":"[1]ACS_16_5YR_B19113_with_ann!E270","v":10812},null,"Acworth"]
["0600000US3301977940",3301977940,"060","Unity",{"$f":"[1]ACS_16_5YR_B19101_with_ann!D271","v":406},{"$f":"[1]ACS_16_5YR_B19101_with_ann!E271","v":48},{"$f":"[1]ACS_16_5YR_B19101_with_ann!F271","v":0},{"$f":"[1]ACS_16_5YR_B19101_with_ann!G271","v":11},{"$f":"[1]ACS_16_5YR_B19101_with_ann!H271","v":7},{"$f":"[1]ACS_16_5YR_B19101_with_ann!I271","v":7},{"$f":"[1]ACS_16_5YR_B19101_with_ann!J271","v":15},{"$f":"[1]ACS_16_5YR_B19101_with_ann!K271","v":18},{"$f":"[1]ACS_16_5YR_B19101_with_ann!L271","v":6},{"$f":"[1]ACS_16_5YR_B19101_with_ann!M271","v":6},{"$f":"[1]ACS_16_5YR_B19101_with_ann!N271","v":26},{"$f":"[1]ACS_16_5YR_B19101_with_ann!O271","v":18},{"$f":"[1]ACS_16_5YR_B19101_with_ann!P271","v":14},{"$f":"[1]ACS_16_5YR_B19101_with_ann!Q271","v":9},{"$f":"[1]ACS_16_5YR_B19101_with_ann!R271","v":6},{"$f":"[1]ACS_16_5YR_B19101_with_ann!S271","v":5},{"$f":"[1]ACS_16_5YR_B19101_with_ann!T271","v":11},{"$f":"[1]ACS_16_5YR_B19101_with_ann!U271","v":8},{"$f":"[1]ACS_16_5YR_B19101_with_ann!V271","v":23},{"$f":"[1]ACS_16_5YR_B19101_with_ann!W271","v":11},{"$f":"[1]ACS_16_5YR_B19101_with_ann!X271","v":17},{"$f":"[1]ACS_16_5YR_B19101_with_ann!Y271","v":10},{"$f":"[1]ACS_16_5YR_B19101_with_ann!Z271","v":52},{"$f":"[1]ACS_16_5YR_B19101_with_ann!AA271","v":20},{"$f":"[1]ACS_16_5YR_B19101_with_ann!AB271","v":95},{"$f":"[1]ACS_16_5YR_B19101_with_ann!AC271","v":34},{"$f":"[1]ACS_16_5YR_B19101_with_ann!AD271","v":61},{"$f":"[1]ACS_16_5YR_B19101_with_ann!AE271","v":30},{"$f":"[1]ACS_16_5YR_B19101_with_ann!AF271","v":43},{"$f":"[1]ACS_16_5YR_B19101_with_ann!AG271","v":25},{"$f":"[1]ACS_16_5YR_B19101_with_ann!AH271","v":22},{"$f":"[1]ACS_16_5YR_B19101_with_ann!AI271","v":10},{"$f":"[1]ACS_16_5YR_B19101_with_ann!AJ271","v":8},{"$f":"[1]ACS_16_5YR_B19101_with_ann!AK271","v":7},{"$f":"[1]ACS_16_5YR_B19113_with_ann!D271","v":84792},{"$f":"[1]ACS_16_5YR_B19113_with_ann!E271","v":8738},null,"Acworth"]
["0600000US3301978980",3301978980,"060","Washington",{"$f":"[1]ACS_16_5YR_B19101_with_ann!D272","v":419},{"$f":"[1]ACS_16_5YR_B19101_with_ann!E272","v":78},{"$f":"[1]ACS_16_5YR_B19101_with_ann!F272","v":6},{"$f":"[1]ACS_16_5YR_B19101_with_ann!G272","v":6},{"$f":"[1]ACS_16_5YR_B19101_with_ann!H272","v":0},{"$f":"[1]ACS_16_5YR_B19101_with_ann!I272","v":11},{"$f":"[1]ACS_16_5YR_B19101_with_ann!J272","v":6},{"$f":"[1]ACS_16_5YR_B19101_with_ann!K272","v":6},{"$f":"[1]ACS_16_5YR_B19101_with_ann!L272","v":17},{"$f":"[1]ACS_16_5YR_B19101_with_ann!M272","v":17},{"$f":"[1]ACS_16_5YR_B19101_with_ann!N272","v":13},{"$f":"[1]ACS_16_5YR_B19101_with_ann!O272","v":10},{"$f":"[1]ACS_16_5YR_B19101_with_ann!P272","v":3},{"$f":"[1]ACS_16_5YR_B19101_with_ann!Q272","v":4},{"$f":"[1]ACS_16_5YR_B19101_with_ann!R272","v":16},{"$f":"[1]ACS_16_5YR_B19101_with_ann!S272","v":15},{"$f":"[1]ACS_16_5YR_B19101_with_ann!T272","v":24},{"$f":"[1]ACS_16_5YR_B19101_with_ann!U272","v":21},{"$f":"[1]ACS_16_5YR_B19101_with_ann!V272","v":21},{"$f":"[1]ACS_16_5YR_B19101_with_ann!W272","v":17},{"$f":"[1]ACS_16_5YR_B19101_with_ann!X272","v":40},{"$f":"[1]ACS_16_5YR_B19101_with_ann!Y272","v":22},{"$f":"[1]ACS_16_5YR_B19101_with_ann!Z272","v":38},{"$f":"[1]ACS_16_5YR_B19101_with_ann!AA272","v":22},{"$f":"[1]ACS_16_5YR_B19101_with_ann!AB272","v":52},{"$f":"[1]ACS_16_5YR_B19101_with_ann!AC272","v":26},{"$f":"[1]ACS_16_5YR_B19101_with_ann!AD272","v":41},{"$f":"[1]ACS_16_5YR_B19101_with_ann!AE272","v":20},{"$f":"[1]ACS_16_5YR_B19101_with_ann!AF272","v":57},{"$f":"[1]ACS_16_5YR_B19101_with_ann!AG272","v":35},{"$f":"[1]ACS_16_5YR_B19101_with_ann!AH272","v":26},{"$f":"[1]ACS_16_5YR_B19101_with_ann!AI272","v":19},{"$f":"[1]ACS_16_5YR_B19101_with_ann!AJ272","v":59},{"$f":"[1]ACS_16_5YR_B19101_with_ann!AK272","v":59},{"$f":"[1]ACS_16_5YR_B19113_with_ann!D272","v":88942},{"$f":"[1]ACS_16_5YR_B19113_with_ann!E272","v":24832},null,"Acworth"]
[]
[null,null,null,null,{"$f":"$D$3","v":"Acworth"},null,{"$f":"$D$4","v":"Charlestown"},null,{"$f":"$D$5","v":"Claremont"},null,{"$f":"$D$6","v":"Cornish"},null,{"$f":"$D$7","v":"Croydon"},null,{"$f":"$D$8","v":"Goshen"},null,{"$f":"$D$9","v":"Grantham"},null,{"$f":"$D$10","v":"Langdon"},null,{"$f":"$D$11","v":"Lempster"},null,{"$f":"$D$12","v":"Newport"},null,{"$f":"$D$13","v":"Plainfield"},null,{"$f":"$D$14","v":"Springfield"},null,{"$f":"$D$15","v":"Sunapee"},null,{"$f":"$D$16","v":"Unity"},null,{"$f":"$D$17","v":"Washington"}]
[null,null,null,null,"Estimate","Margin Of Error","Estimate","Margin Of Error","Estimate","Margin Of Error","Estimate","Margin Of Error","Estimate","Margin Of Error","Estimate","Margin Of Error","Estimate","Margin Of Error","Estimate","Margin Of Error","Estimate","Margin Of Error","Estimate","Margin Of Error","Estimate","Margin Of Error","Estimate","Margin Of Error","Estimate","Margin Of Error",null,"Estimate","Margin Of Error"]
["Table B19101",null,null,"Estimate Total:",255,43,1379,163,3165,231,526,72,187,46,163,36,902,98,190,38,240,47,1572,151,715,79,337,66,901,90,406,48,419,78]
[null,null,null,"Estimate  Total: - Less than $10,000",9,12,51,54,132,84,4,7,12,15,2,3,0,11,3,4,3,5,102,84,36,29,0,11,56,53,0,11,6,6]
[null,null,null,"Estimate  Total: - $10,000 to $14,999",0,11,16,26,88,67,4,6,0,11,2,3,0,11,2,3,9,14,0,16,0,11,3,5,11,17,7,7,0,11]
[null,null,null,"Estimate  Total: - $15,000 to $19,999",2,3,33,38,73,80,0,11,0,11,6,6,31,43,2,3,0,11,51,63,0,11,7,13,0,11,15,18,6,6]
[null,null,null,"Estimate  Total: - $20,000 to $24,999",2,3,0,16,155,97,4,6,2,4,2,3,0,11,7,11,8,7,26,30,10,11,6,9,7,16,6,6,17,17]
[null,null,null,"Estimate  Total: - $25,000 to $29,999",5,5,124,92,178,105,15,19,3,5,10,10,43,50,12,9,0,11,114,96,53,38,8,8,17,18,26,18,13,10]
[null,null,null,"Estimate  Total: - $30,000 to $34,999",8,8,45,67,205,98,23,22,3,5,0,11,0,11,2,3,7,8,76,62,5,8,14,17,35,31,14,9,3,4]
[null,null,null,"Estimate  Total: - $35,000 to $39,999",2,3,77,64,44,41,28,23,3,4,9,11,0,11,9,11,10,7,64,43,0,11,6,7,0,11,6,5,16,15]
[null,null,null,"Estimate  Total: - $40,000 to $44,999",19,17,103,87,177,91,12,8,4,5,4,5,0,11,0,11,12,14,48,61,18,13,3,5,0,11,11,8,24,21]
[null,null,null,"Estimate  Total: - $45,000 to $49,999",14,12,39,44,232,100,18,12,7,7,13,12,0,11,5,5,20,17,64,48,31,28,0,11,39,29,23,11,21,17]
[null,null,null,"Estimate  Total: - $50,000 to $59,999",12,11,253,121,302,114,29,21,16,12,19,16,26,28,19,15,2,3,235,117,41,31,14,16,48,36,17,10,40,22]
[null,null,null,"Estimate  Total: - $60,000 to $74,999",37,22,117,69,219,72,35,24,14,10,19,12,96,64,13,11,33,23,135,89,64,36,49,32,92,52,52,20,38,22]
[null,null,null,"Estimate  Total: - $75,000 to $99,999",57,29,323,146,722,187,79,32,40,19,36,16,112,55,31,16,50,18,285,134,154,41,143,53,177,73,95,34,52,26]
[null,null,null,"Estimate  Total: - $100,000 to $124,999",30,18,73,61,294,114,88,30,42,25,11,12,140,67,29,13,50,29,54,39,72,34,41,29,146,80,61,30,41,20]
[null,null,null,"Estimate  Total: - $125,000 to $149,999",28,15,35,35,132,69,73,27,14,14,16,13,232,116,21,12,11,10,117,78,87,42,23,19,109,65,43,25,57,35]
[null,null,null,"Estimate  Total: - $150,000 to $199,999",16,13,23,29,157,80,50,21,21,20,12,11,163,107,18,13,14,22,155,85,65,34,11,9,83,43,22,10,26,19]
[null,null,null,"Estimate  Total: - $200,000 or more",14,11,67,60,55,44,64,29,6,7,2,4,59,48,17,16,11,14,46,38,79,27,9,9,81,42,8,7,59,59]
[]
["Table B19113",null,null,"Estimate Median family income in the past 12 months (in 2019 inflation-adjusted dollars)",82031,10238,56853,7095,59924,10063,104167,8949,92750,18419,70250,13304,125313,26710,92000,13847,79333,8904,61071,10387,91550,7553,89196,11665,94198,10812,84792,8738,88942,24832]

{"sheet":"SData_Tables_B19201_B19202","index":60,"n_rows":39,"n_cols":42,"rows_kept":39,"cut":false,"hidden":true,"merged":[]}
["GEO_ID","GEO_ID2","SUMLEVEL","GEO_NAME","B19201_1_EST","B19201_1_MOE","B19201_2_EST","B19201_2_MOE","B19201_3_EST","B19201_3_MOE","B19201_4_EST","B19201_4_MOE","B19201_5_EST","B19201_5_MOE","B19201_6_EST","B19201_6_MOE","B19201_7_EST","B19201_7_MOE","B19201_8_EST","B19201_8_MOE","B19201_9_EST","B19201_9_MOE","B19201_10_EST","B19201_10_MOE","B19201_11_EST","B19201_11_MOE","B19201_12_EST","B19201_12_MOE","B19201_13_EST","B19201_13_MOE","B19201_14_EST","B19201_14_MOE","B19201_15_EST","B19201_15_MOE","B19201_16_EST","B19201_16_MOE","B19201_17_EST","B19201_17_MOE","B19202_1_EST","B19202_1_MOE"]
["Geography Identifier","Geography Identifier","Geographic Summary Level","Geography",{"$f":"[1]ACS_16_5YR_B19201_with_ann!D$2","v":"Estimate Total:"},{"$f":"[1]ACS_16_5YR_B19201_with_ann!E$2","v":"Margin of Error Total:"},{"$f":"[1]ACS_16_5YR_B19201_with_ann!F$2","v":"Estimate  Total: - Less than $10,000"},{"$f":"[1]ACS_16_5YR_B19201_with_ann!G$2","v":"Margin of Error Total: Less than $10"},{"$f":"[1]ACS_16_5YR_B19201_with_ann!H$2","v":"Estimate  Total: - $10,000 to $14,999"},{"$f":"[1]ACS_16_5YR_B19201_with_ann!I$2","v":"Margin of Error Total: $10"},{"$f":"[1]ACS_16_5YR_B19201_with_ann!J$2","v":"Estimate  Total: - $15,000 to $19,999"},{"$f":"[1]ACS_16_5YR_B19201_with_ann!K$2","v":"Margin of Error Total: $15"},{"$f":"[1]ACS_16_5YR_B19201_with_ann!L$2","v":"Estimate  Total: - $20,000 to $24,999"},{"$f":"[1]ACS_16_5YR_B19201_with_ann!M$2","v":"Margin of Error Total: $20"},{"$f":"[1]ACS_16_5YR_B19201_with_ann!N$2","v":"Estimate  Total: - $25,000 to $29,999"},{"$f":"[1]ACS_16_5YR_B19201_with_ann!O$2","v":"Margin of Error Total: $25"},{"$f":"[1]ACS_16_5YR_B19201_with_ann!P$2","v":"Estimate  Total: - $30,000 to $34,999"},{"$f":"[1]ACS_16_5YR_B19201_with_ann!Q$2","v":"Margin of Error Total: $30"},{"$f":"[1]ACS_16_5YR_B19201_with_ann!R$2","v":"Estimate  Total: - $35,000 to $39,999"},{"$f":"[1]ACS_16_5YR_B19201_with_ann!S$2","v":"Margin of Error Total: $35"},{"$f":"[1]ACS_16_5YR_B19201_with_ann!T$2","v":"Estimate  Total: - $40,000 to $44,999"},{"$f":"[1]ACS_16_5YR_B19201_with_ann!U$2","v":"Margin of Error Total: $40"},{"$f":"[1]ACS_16_5YR_B19201_with_ann!V$2","v":"Estimate  Total: - $45,000 to $49,999"},{"$f":"[1]ACS_16_5YR_B19201_with_ann!W$2","v":"Margin of Error Total: $45"},{"$f":"[1]ACS_16_5YR_B19201_with_ann!X$2","v":"Estimate  Total: - $50,000 to $59,999"},{"$f":"[1]ACS_16_5YR_B19201_with_ann!Y$2","v":"Margin of Error Total: $50"},{"$f":"[1]ACS_16_5YR_B19201_with_ann!Z$2","v":"Estimate  Total: - $60,000 to $74,999"},{"$f":"[1]ACS_16_5YR_B19201_with_ann!AA$2","v":"Margin of Error Total: $60"},{"$f":"[1]ACS_16_5YR_B19201_with_ann!AB$2","v":"Estimate  Total: - $75,000 to $99,999"},{"$f":"[1]ACS_16_5YR_B19201_with_ann!AC$2","v":"Margin of Error Total: $75"},{"$f":"[1]ACS_16_5YR_B19201_with_ann!AD$2","v":"Estimate  Total: - $100,000 to $124,999"},{"$f":"[1]ACS_16_5YR_B19201_with_ann!AE$2","v":"Margin of Error Total: $100"},{"$f":"[1]ACS_16_5YR_B19201_with_ann!AF$2","v":"Estimate  Total: - $125,000 to $149,999"},{"$f":"[1]ACS_16_5YR_B19201_with_ann!AG$2","v":"Margin of Error Total: $125"},{"$f":"[1]ACS_16_5YR_B19201_with_ann!AH$2","v":"Estimate  Total: - $150,000 to $199,999"},{"$f":"[1]ACS_16_5YR_B19201_with_ann!AI$2","v":"Margin of Error Total: $150"},{"$f":"[1]ACS_16_5YR_B19201_with_ann!AJ$2","v":"Estimate  Total: - $200,000 or more"},{"$f":"[1]ACS_16_5YR_B19201_with_ann!AK$2","v":"Margin of Error Total: $200"},{"$f":"[1]ACS_16_5YR_B19202_with_ann!D$2","v":"Estimate Median nonfamily household income in the past 12 months (in 2019 inflation-adjusted dollars)"},{"$f":"[1]ACS_16_5YR_B19202_with_ann!E$2","v":"Margin of Error Median nonfamily household income in the past 12 months (in 2019 inflation-adjusted dollars)"}]
["0600000US3301900259",3301900259,"060","Acworth",{"$f":"[1]ACS_16_5YR_B19201_with_ann!D258","v":115},{"$f":"[1]ACS_16_5YR_B19201_with_ann!E258","v":28},{"$f":"[1]ACS_16_5YR_B19201_with_ann!F258","v":6},{"$f":"[1]ACS_16_5YR_B19201_with_ann!G258","v":10},{"$f":"[1]ACS_16_5YR_B19201_with_ann!H258","v":6},{"$f":"[1]ACS_16_5YR_B19201_with_ann!I258","v":6},{"$f":"[1]ACS_16_5YR_B19201_with_ann!J258","v":5},{"$f":"[1]ACS_16_5YR_B19201_with_ann!K258","v":5},{"$f":"[1]ACS_16_5YR_B19201_with_ann!L258","v":6},{"$f":"[1]ACS_16_5YR_B19201_with_ann!M258","v":9},{"$f":"[1]ACS_16_5YR_B19201_with_ann!N258","v":15},{"$f":"[1]ACS_16_5YR_B19201_with_ann!O258","v":11},{"$f":"[1]ACS_16_5YR_B19201_with_ann!P258","v":2},{"$f":"[1]ACS_16_5YR_B19201_with_ann!Q258","v":3},{"$f":"[1]ACS_16_5YR_B19201_with_ann!R258","v":7},{"$f":"[1]ACS_16_5YR_B19201_with_ann!S258","v":6},{"$f":"[1]ACS_16_5YR_B19201_with_ann!T258","v":2},{"$f":"[1]ACS_16_5YR_B19201_with_ann!U258","v":3},{"$f":"[1]ACS_16_5YR_B19201_with_ann!V258","v":6},{"$f":"[1]ACS_16_5YR_B19201_with_ann!W258","v":6},{"$f":"[1]ACS_16_5YR_B19201_with_ann!X258","v":34},{"$f":"[1]ACS_16_5YR_B19201_with_ann!Y258","v":20},{"$f":"[1]ACS_16_5YR_B19201_with_ann!Z258","v":12},{"$f":"[1]ACS_16_5YR_B19201_with_ann!AA258","v":9},{"$f":"[1]ACS_16_5YR_B19201_with_ann!AB258","v":8},{"$f":"[1]ACS_16_5YR_B19201_with_ann!AC258","v":10},{"$f":"[1]ACS_16_5YR_B19201_with_ann!AD258","v":4},{"$f":"[1]ACS_16_5YR_B19201_with_ann!AE258","v":5},{"$f":"[1]ACS_16_5YR_B19201_with_ann!AF258","v":2},{"$f":"[1]ACS_16_5YR_B19201_with_ann!AG258","v":3},{"$f":"[1]ACS_16_5YR_B19201_with_ann!AH258","v":0},{"$f":"[1]ACS_16_5YR_B19201_with_ann!AI258","v":11},{"$f":"[1]ACS_16_5YR_B19201_with_ann!AJ258","v":0},{"$f":"[1]ACS_16_5YR_B19201_with_ann!AK258","v":11},{"$f":"[1]ACS_16_5YR_B19202_with_ann!D258","v":50568},{"$f":"[1]ACS_16_5YR_B19202_with_ann!E258","v":8284},null,"Acworth"]
["0600000US3301911380",3301911380,"060","Charlestown",{"$f":"[1]ACS_16_5YR_B19201_with_ann!D259","v":707},{"$f":"[1]ACS_16_5YR_B19201_with_ann!E259","v":222},{"$f":"[1]ACS_16_5YR_B19201_with_ann!F259","v":148},{"$f":"[1]ACS_16_5YR_B19201_with_ann!G259","v":111},{"$f":"[1]ACS_16_5YR_B19201_with_ann!H259","v":14},{"$f":"[1]ACS_16_5YR_B19201_with_ann!I259","v":23},{"$f":"[1]ACS_16_5YR_B19201_with_ann!J259","v":116},{"$f":"[1]ACS_16_5YR_B19201_with_ann!K259","v":96},{"$f":"[1]ACS_16_5YR_B19201_with_ann!L259","v":73},{"$f":"[1]ACS_16_5YR_B19201_with_ann!M259","v":77},{"$f":"[1]ACS_16_5YR_B19201_with_ann!N259","v":99},{"$f":"[1]ACS_16_5YR_B19201_with_ann!O259","v":81},{"$f":"[1]ACS_16_5YR_B19201_with_ann!P259","v":72},{"$f":"[1]ACS_16_5YR_B19201_with_ann!Q259","v":63},{"$f":"[1]ACS_16_5YR_B19201_with_ann!R259","v":17},{"$f":"[1]ACS_16_5YR_B19201_with_ann!S259","v":28},{"$f":"[1]ACS_16_5YR_B19201_with_ann!T259","v":37},{"$f":"[1]ACS_16_5YR_B19201_with_ann!U259","v":46},{"$f":"[1]ACS_16_5YR_B19201_with_ann!V259","v":13},{"$f":"[1]ACS_16_5YR_B19201_with_ann!W259","v":23},{"$f":"[1]ACS_16_5YR_B19201_with_ann!X259","v":0},{"$f":"[1]ACS_16_5YR_B19201_with_ann!Y259","v":16},{"$f":"[1]ACS_16_5YR_B19201_with_ann!Z259","v":51},{"$f":"[1]ACS_16_5YR_B19201_with_ann!AA259","v":57},{"$f":"[1]ACS_16_5YR_B19201_with_ann!AB259","v":59},{"$f":"[1]ACS_16_5YR_B19201_with_ann!AC259","v":49},{"$f":"[1]ACS_16_5YR_B19201_with_ann!AD259","v":8},{"$f":"[1]ACS_16_5YR_B19201_with_ann!AE259","v":13},{"$f":"[1]ACS_16_5YR_B19201_with_ann!AF259","v":0},{"$f":"[1]ACS_16_5YR_B19201_with_ann!AG259","v":16},{"$f":"[1]ACS_16_5YR_B19201_with_ann!AH259","v":0},{"$f":"[1]ACS_16_5YR_B19201_with_ann!AI259","v":16},{"$f":"[1]ACS_16_5YR_B19201_with_ann!AJ259","v":0},{"$f":"[1]ACS_16_5YR_B19201_with_ann!AK259","v":16},{"$f":"[1]ACS_16_5YR_B19202_with_ann!D259","v":25139},{"$f":"[1]ACS_16_5YR_B19202_with_ann!E259","v":7159},null,"Acworth"]
["0600000US3301912900",3301912900,"060","Claremont",{"$f":"[1]ACS_16_5YR_B19201_with_ann!D260","v":2066},{"$f":"[1]ACS_16_5YR_B19201_with_ann!E260","v":273},{"$f":"[1]ACS_16_5YR_B19201_with_ann!F260","v":203},{"$f":"[1]ACS_16_5YR_B19201_with_ann!G260","v":122},{"$f":"[1]ACS_16_5YR_B19201_with_ann!H260","v":209},{"$f":"[1]ACS_16_5YR_B19201_with_ann!I260","v":89},{"$f":"[1]ACS_16_5YR_B19201_with_ann!J260","v":247},{"$f":"[1]ACS_16_5YR_B19201_with_ann!K260","v":110},{"$f":"[1]ACS_16_5YR_B19201_with_ann!L260","v":308},{"$f":"[1]ACS_16_5YR_B19201_with_ann!M260","v":155},{"$f":"[1]ACS_16_5YR_B19201_with_ann!N260","v":127},{"$f":"[1]ACS_16_5YR_B19201_with_ann!O260","v":65},{"$f":"[1]ACS_16_5YR_B19201_with_ann!P260","v":144},{"$f":"[1]ACS_16_5YR_B19201_with_ann!Q260","v":94},{"$f":"[1]ACS_16_5YR_B19201_with_ann!R260","v":81},{"$f":"[1]ACS_16_5YR_B19201_with_ann!S260","v":40},{"$f":"[1]ACS_16_5YR_B19201_with_ann!T260","v":175},{"$f":"[1]ACS_16_5YR_B19201_with_ann!U260","v":93},{"$f":"[1]ACS_16_5YR_B19201_with_ann!V260","v":94},{"$f":"[1]ACS_16_5YR_B19201_with_ann!W260","v":58},{"$f":"[1]ACS_16_5YR_B19201_with_ann!X260","v":109},{"$f":"[1]ACS_16_5YR_B19201_with_ann!Y260","v":68},{"$f":"[1]ACS_16_5YR_B19201_with_ann!Z260","v":130},{"$f":"[1]ACS_16_5YR_B19201_with_ann!AA260","v":78},{"$f":"[1]ACS_16_5YR_B19201_with_ann!AB260","v":132},{"$f":"[1]ACS_16_5YR_B19201_with_ann!AC260","v":70},{"$f":"[1]ACS_16_5YR_B19201_with_ann!AD260","v":19},{"$f":"[1]ACS_16_5YR_B19201_with_ann!AE260","v":30},{"$f":"[1]ACS_16_5YR_B19201_with_ann!AF260","v":32},{"$f":"[1]ACS_16_5YR_B19201_with_ann!AG260","v":33},{"$f":"[1]ACS_16_5YR_B19201_with_ann!AH260","v":25},{"$f":"[1]ACS_16_5YR_B19201_with_ann!AI260","v":32},{"$f":"[1]ACS_16_5YR_B19201_with_ann!AJ260","v":31},{"$f":"[1]ACS_16_5YR_B19201_with_ann!AK260","v":24},{"$f":"[1]ACS_16_5YR_B19202_with_ann!D260","v":28324},{"$f":"[1]ACS_16_5YR_B19202_with_ann!E260","v":7836},null,"Acworth"]
["0600000US3301915060",3301915060,"060","Cornish",{"$f":"[1]ACS_16_5YR_B19201_with_ann!D261","v":215},{"$f":"[1]ACS_16_5YR_B19201_with_ann!E261","v":55},{"$f":"[1]ACS_16_5YR_B19201_with_ann!F261","v":12},{"$f":"[1]ACS_16_5YR_B19201_with_ann!G261","v":10},{"$f":"[1]ACS_16_5YR_B19201_with_ann!H261","v":15},{"$f":"[1]ACS_16_5YR_B19201_with_ann!I261","v":20},{"$f":"[1]ACS_16_5YR_B19201_with_ann!J261","v":33},{"$f":"[1]ACS_16_5YR_B19201_with_ann!K261","v":24},{"$f":"[1]ACS_16_5YR_B19201_with_ann!L261","v":3},{"$f":"[1]ACS_16_5YR_B19201_with_ann!M261","v":4},{"$f":"[1]ACS_16_5YR_B19201_with_ann!N261","v":21},{"$f":"[1]ACS_16_5YR_B19201_with_ann!O261","v":20},{"$f":"[1]ACS_16_5YR_B19201_with_ann!P261","v":6},{"$f":"[1]ACS_16_5YR_B19201_with_ann!Q261","v":7},{"$f":"[1]ACS_16_5YR_B19201_with_ann!R261","v":6},{"$f":"[1]ACS_16_5YR_B19201_with_ann!S261","v":7},{"$f":"[1]ACS_16_5YR_B19201_with_ann!T261","v":14},{"$f":"[1]ACS_16_5YR_B19201_with_ann!U261","v":15},{"$f":"[1]ACS_16_5YR_B19201_with_ann!V261","v":14},{"$f":"[1]ACS_16_5YR_B19201_with_ann!W261","v":10},{"$f":"[1]ACS_16_5YR_B19201_with_ann!X261","v":31},{"$f":"[1]ACS_16_5YR_B19201_with_ann!Y261","v":21},{"$f":"[1]ACS_16_5YR_B19201_with_ann!Z261","v":10},{"$f":"[1]ACS_16_5YR_B19201_with_ann!AA261","v":12},{"$f":"[1]ACS_16_5YR_B19201_with_ann!AB261","v":32},{"$f":"[1]ACS_16_5YR_B19201_with_ann!AC261","v":20},{"$f":"[1]ACS_16_5YR_B19201_with_ann!AD261","v":10},{"$f":"[1]ACS_16_5YR_B19201_with_ann!AE261","v":9},{"$f":"[1]ACS_16_5YR_B19201_with_ann!AF261","v":3},{"$f":"[1]ACS_16_5YR_B19201_with_ann!AG261","v":6},{"$f":"[1]ACS_16_5YR_B19201_with_ann!AH261","v":5},{"$f":"[1]ACS_16_5YR_B19201_with_ann!AI261","v":6},{"$f":"[1]ACS_16_5YR_B19201_with_ann!AJ261","v":0},{"$f":"[1]ACS_16_5YR_B19201_with_ann!AK261","v":11},{"$f":"[1]ACS_16_5YR_B19202_with_ann!D261","v":43750},{"$f":"[1]ACS_16_5YR_B19202_with_ann!E261","v":11593},null,"Acworth"]
["0600000US3301916340",3301916340,"060","Croydon",{"$f":"[1]ACS_16_5YR_B19201_with_ann!D262","v":106},{"$f":"[1]ACS_16_5YR_B19201_with_ann!E262","v":36},{"$f":"[1]ACS_16_5YR_B19201_with_ann!F262","v":9},{"$f":"[1]ACS_16_5YR_B19201_with_ann!G262","v":12},{"$f":"[1]ACS_16_5YR_B19201_with_ann!H262","v":12},{"$f":"[1]ACS_16_5YR_B19201_with_ann!I262","v":13},{"$f":"[1]ACS_16_5YR_B19201_with_ann!J262","v":6},{"$f":"[1]ACS_16_5YR_B19201_with_ann!K262","v":7},{"$f":"[1]ACS_16_5YR_B19201_with_ann!L262","v":8},{"$f":"[1]ACS_16_5YR_B19201_with_ann!M262","v":7},{"$f":"[1]ACS_16_5YR_B19201_with_ann!N262","v":7},{"$f":"[1]ACS_16_5YR_B19201_with_ann!O262","v":6},{"$f":"[1]ACS_16_5YR_B19201_with_ann!P262","v":8},{"$f":"[1]ACS_16_5YR_B19201_with_ann!Q262","v":7},{"$f":"[1]ACS_16_5YR_B19201_with_ann!R262","v":5},{"$f":"[1]ACS_16_5YR_B19201_with_ann!S262","v":6},{"$f":"[1]ACS_16_5YR_B19201_with_ann!T262","v":2},{"$f":"[1]ACS_16_5YR_B19201_with_ann!U262","v":3},{"$f":"[1]ACS_16_5YR_B19201_with_ann!V262","v":11},{"$f":"[1]ACS_16_5YR_B19201_with_ann!W262","v":14},{"$f":"[1]ACS_16_5YR_B19201_with_ann!X262","v":5},{"$f":"[1]ACS_16_5YR_B19201_with_ann!Y262","v":10},{"$f":"[1]ACS_16_5YR_B19201_with_ann!Z262","v":9},{"$f":"[1]ACS_16_5YR_B19201_with_ann!AA262","v":10},{"$f":"[1]ACS_16_5YR_B19201_with_ann!AB262","v":14},{"$f":"[1]ACS_16_5YR_B19201_with_ann!AC262","v":14},{"$f":"[1]ACS_16_5YR_B19201_with_ann!AD262","v":0},{"$f":"[1]ACS_16_5YR_B19201_with_ann!AE262","v":11},{"$f":"[1]ACS_16_5YR_B19201_with_ann!AF262","v":0},{"$f":"[1]ACS_16_5YR_B19201_with_ann!AG262","v":11},{"$f":"[1]ACS_16_5YR_B19201_with_ann!AH262","v":4},{"$f":"[1]ACS_16_5YR_B19201_with_ann!AI262","v":6},{"$f":"[1]ACS_16_5YR_B19201_with_ann!AJ262","v":6},{"$f":"[1]ACS_16_5YR_B19201_with_ann!AK262","v":9},{"$f":"[1]ACS_16_5YR_B19202_with_ann!D262","v":39000},{"$f":"[1]ACS_16_5YR_B19202_with_ann!E262","v":16857},null,"Acworth"]
["0600000US3301930500",3301930500,"060","Goshen",{"$f":"[1]ACS_16_5YR_B19201_with_ann!D263","v":114},{"$f":"[1]ACS_16_5YR_B19201_with_ann!E263","v":36},{"$f":"[1]ACS_16_5YR_B19201_with_ann!F263","v":17},{"$f":"[1]ACS_16_5YR_B19201_with_ann!G263","v":14},{"$f":"[1]ACS_16_5YR_B19201_with_ann!H263","v":6},{"$f":"[1]ACS_16_5YR_B19201_with_ann!I263","v":9},{"$f":"[1]ACS_16_5YR_B19201_with_ann!J263","v":3},{"$f":"[1]ACS_16_5YR_B19201_with_ann!K263","v":4},{"$f":"[1]ACS_16_5YR_B19201_with_ann!L263","v":9},{"$f":"[1]ACS_16_5YR_B19201_with_ann!M263","v":8},{"$f":"[1]ACS_16_5YR_B19201_with_ann!N263","v":7},{"$f":"[1]ACS_16_5YR_B19201_with_ann!O263","v":9},{"$f":"[1]ACS_16_5YR_B19201_with_ann!P263","v":8},{"$f":"[1]ACS_16_5YR_B19201_with_ann!Q263","v":9},{"$f":"[1]ACS_16_5YR_B19201_with_ann!R263","v":4},{"$f":"[1]ACS_16_5YR_B19201_with_ann!S263","v":4},{"$f":"[1]ACS_16_5YR_B19201_with_ann!T263","v":1},{"$f":"[1]ACS_16_5YR_B19201_with_ann!U263","v":3},{"$f":"[1]ACS_16_5YR_B19201_with_ann!V263","v":5},{"$f":"[1]ACS_16_5YR_B19201_with_ann!W263","v":5},{"$f":"[1]ACS_16_5YR_B19201_with_ann!X263","v":21},{"$f":"[1]ACS_16_5YR_B19201_with_ann!Y263","v":18},{"$f":"[1]ACS_16_5YR_B19201_with_ann!Z263","v":10},{"$f":"[1]ACS_16_5YR_B19201_with_ann!AA263","v":12},{"$f":"[1]ACS_16_5YR_B19201_with_ann!AB263","v":9},{"$f":"[1]ACS_16_5YR_B19201_with_ann!AC263","v":7},{"$f":"[1]ACS_16_5YR_B19201_with_ann!AD263","v":5},{"$f":"[1]ACS_16_5YR_B19201_with_ann!AE263","v":5},{"$f":"[1]ACS_16_5YR_B19201_with_ann!AF263","v":9},{"$f":"[1]ACS_16_5YR_B19201_with_ann!AG263","v":15},{"$f":"[1]ACS_16_5YR_B19201_with_ann!AH263","v":0},{"$f":"[1]ACS_16_5YR_B19201_with_ann!AI263","v":11},{"$f":"[1]ACS_16_5YR_B19201_with_ann!AJ263","v":0},{"$f":"[1]ACS_16_5YR_B19201_with_ann!AK263","v":11},{"$f":"[1]ACS_16_5YR_B19202_with_ann!D263","v":47500},{"$f":"[1]ACS_16_5YR_B19202_with_ann!E263","v":18586},null,"Acworth"]
["0600000US3301931220",3301931220,"060","Grantham",{"$f":"[1]ACS_16_5YR_B19201_with_ann!D264","v":320},{"$f":"[1]ACS_16_5YR_B19201_with_ann!E264","v":149},{"$f":"[1]ACS_16_5YR_B19201_with_ann!F264","v":0},{"$f":"[1]ACS_16_5YR_B19201_with_ann!G264","v":11},{"$f":"[1]ACS_16_5YR_B19201_with_ann!H264","v":0},{"$f":"[1]ACS_16_5YR_B19201_with_ann!I264","v":11},{"$f":"[1]ACS_16_5YR_B19201_with_ann!J264","v":14},{"$f":"[1]ACS_16_5YR_B19201_with_ann!K264","v":22},{"$f":"[1]ACS_16_5YR_B19201_with_ann!L264","v":0},{"$f":"[1]ACS_16_5YR_B19201_with_ann!M264","v":11},{"$f":"[1]ACS_16_5YR_B19201_with_ann!N264","v":48},{"$f":"[1]ACS_16_5YR_B19201_with_ann!O264","v":61},{"$f":"[1]ACS_16_5YR_B19201_with_ann!P264","v":0},{"$f":"[1]ACS_16_5YR_B19201_with_ann!Q264","v":11},{"$f":"[1]ACS_16_5YR_B19201_with_ann!R264","v":0},{"$f":"[1]ACS_16_5YR_B19201_with_ann!S264","v":11},{"$f":"[1]ACS_16_5YR_B19201_with_ann!T264","v":91},{"$f":"[1]ACS_16_5YR_B19201_with_ann!U264","v":102},{"$f":"[1]ACS_16_5YR_B19201_with_ann!V264","v":17},{"$f":"[1]ACS_16_5YR_B19201_with_ann!W264","v":25},{"$f":"[1]ACS_16_5YR_B19201_with_ann!X264","v":41},{"$f":"[1]ACS_16_5YR_B19201_with_ann!Y264","v":46},{"$f":"[1]ACS_16_5YR_B19201_with_ann!Z264","v":50},{"$f":"[1]ACS_16_5YR_B19201_with_ann!AA264","v":55},{"$f":"[1]ACS_16_5YR_B19201_with_ann!AB264","v":17},{"$f":"[1]ACS_16_5YR_B19201_with_ann!AC264","v":26},{"$f":"[1]ACS_16_5YR_B19201_with_ann!AD264","v":13},{"$f":"[1]ACS_16_5YR_B19201_with_ann!AE264","v":20},{"$f":"[1]ACS_16_5YR_B19201_with_ann!AF264","v":0},{"$f":"[1]ACS_16_5YR_B19201_with_ann!AG264","v":11},{"$f":"[1]ACS_16_5YR_B19201_with_ann!AH264","v":0},{"$f":"[1]ACS_16_5YR_B19201_with_ann!AI264","v":11},{"$f":"[1]ACS_16_5YR_B19201_with_ann!AJ264","v":29},{"$f":"[1]ACS_16_5YR_B19201_with_ann!AK264","v":32},{"$f":"[1]ACS_16_5YR_B19202_with_ann!D264","v":46029},{"$f":"[1]ACS_16_5YR_B19202_with_ann!E264","v":11056},null,"Acworth"]
["0600000US3301940900",3301940900,"060","Langdon",{"$f":"[1]ACS_16_5YR_B19201_with_ann!D265","v":67},{"$f":"[1]ACS_16_5YR_B19201_with_ann!E265","v":27},{"$f":"[1]ACS_16_5YR_B19201_with_ann!F265","v":14},{"$f":"[1]ACS_16_5YR_B19201_with_ann!G265","v":15},{"$f":"[1]ACS_16_5YR_B19201_with_ann!H265","v":0},{"$f":"[1]ACS_16_5YR_B19201_with_ann!I265","v":11},{"$f":"[1]ACS_16_5YR_B19201_with_ann!J265","v":3},{"$f":"[1]ACS_16_5YR_B19201_with_ann!K265","v":4},{"$f":"[1]ACS_16_5YR_B19201_with_ann!L265","v":6},{"$f":"[1]ACS_16_5YR_B19201_with_ann!M265","v":6},{"$f":"[1]ACS_16_5YR_B19201_with_ann!N265","v":4},{"$f":"[1]ACS_16_5YR_B19201_with_ann!O265","v":4},{"$f":"[1]ACS_16_5YR_B19201_with_ann!P265","v":0},{"$f":"[1]ACS_16_5YR_B19201_with_ann!Q265","v":11},{"$f":"[1]ACS_16_5YR_B19201_with_ann!R265","v":7},{"$f":"[1]ACS_16_5YR_B19201_with_ann!S265","v":11},{"$f":"[1]ACS_16_5YR_B19201_with_ann!T265","v":2},{"$f":"[1]ACS_16_5YR_B19201_with_ann!U265","v":3},{"$f":"[1]ACS_16_5YR_B19201_with_ann!V265","v":0},{"$f":"[1]ACS_16_5YR_B19201_with_ann!W265","v":11},{"$f":"[1]ACS_16_5YR_B19201_with_ann!X265","v":0},{"$f":"[1]ACS_16_5YR_B19201_with_ann!Y265","v":11},{"$f":"[1]ACS_16_5YR_B19201_with_ann!Z265","v":14},{"$f":"[1]ACS_16_5YR_B19201_with_ann!AA265","v":11},{"$f":"[1]ACS_16_5YR_B19201_with_ann!AB265","v":12},{"$f":"[1]ACS_16_5YR_B19201_with_ann!AC265","v":15},{"$f":"[1]ACS_16_5YR_B19201_with_ann!AD265","v":3},{"$f":"[1]ACS_16_5YR_B19201_with_ann!AE265","v":4},{"$f":"[1]ACS_16_5YR_B19201_with_ann!AF265","v":2},{"$f":"[1]ACS_16_5YR_B19201_with_ann!AG265","v":4},{"$f":"[1]ACS_16_5YR_B19201_with_ann!AH265","v":0},{"$f":"[1]ACS_16_5YR_B19201_with_ann!AI265","v":11},{"$f":"[1]ACS_16_5YR_B19201_with_ann!AJ265","v":0},{"$f":"[1]ACS_16_5YR_B19201_with_ann!AK265","v":11},{"$f":"[1]ACS_16_5YR_B19202_with_ann!D265","v":"-"},{"$f":"[1]ACS_16_5YR_B19202_with_ann!E265","v":"**"},null,"Acworth"]
["0600000US3301941700",3301941700,"060","Lempster",{"$f":"[1]ACS_16_5YR_B19201_with_ann!D266","v":153},{"$f":"[1]ACS_16_5YR_B19201_with_ann!E266","v":49},{"$f":"[1]ACS_16_5YR_B19201_with_ann!F266","v":16},{"$f":"[1]ACS_16_5YR_B19201_with_ann!G266","v":17},{"$f":"[1]ACS_16_5YR_B19201_with_ann!H266","v":4},{"$f":"[1]ACS_16_5YR_B19201_with_ann!I266","v":5},{"$f":"[1]ACS_16_5YR_B19201_with_ann!J266","v":10},{"$f":"[1]ACS_16_5YR_B19201_with_ann!K266","v":9},{"$f":"[1]ACS_16_5YR_B19201_with_ann!L266","v":28},{"$f":"[1]ACS_16_5YR_B19201_with_ann!M266","v":21},{"$f":"[1]ACS_16_5YR_B19201_with_ann!N266","v":7},{"$f":"[1]ACS_16_5YR_B19201_with_ann!O266","v":8},{"$f":"[1]ACS_16_5YR_B19201_with_ann!P266","v":4},{"$f":"[1]ACS_16_5YR_B19201_with_ann!Q266","v":5},{"$f":"[1]ACS_16_5YR_B19201_with_ann!R266","v":11},{"$f":"[1]ACS_16_5YR_B19201_with_ann!S266","v":12},{"$f":"[1]ACS_16_5YR_B19201_with_ann!T266","v":2},{"$f":"[1]ACS_16_5YR_B19201_with_ann!U266","v":3},{"$f":"[1]ACS_16_5YR_B19201_with_ann!V266","v":11},{"$f":"[1]ACS_16_5YR_B19201_with_ann!W266","v":11},{"$f":"[1]ACS_16_5YR_B19201_with_ann!X266","v":15},{"$f":"[1]ACS_16_5YR_B19201_with_ann!Y266","v":15},{"$f":"[1]ACS_16_5YR_B19201_with_ann!Z266","v":9},{"$f":"[1]ACS_16_5YR_B19201_with_ann!AA266","v":14},{"$f":"[1]ACS_16_5YR_B19201_with_ann!AB266","v":19},{"$f":"[1]ACS_16_5YR_B19201_with_ann!AC266","v":21},{"$f":"[1]ACS_16_5YR_B19201_with_ann!AD266","v":17},{"$f":"[1]ACS_16_5YR_B19201_with_ann!AE266","v":17},{"$f":"[1]ACS_16_5YR_B19201_with_ann!AF266","v":0},{"$f":"[1]ACS_16_5YR_B19201_with_ann!AG266","v":11},{"$f":"[1]ACS_16_5YR_B19201_with_ann!AH266","v":0},{"$f":"[1]ACS_16_5YR_B19201_with_ann!AI266","v":11},{"$f":"[1]ACS_16_5YR_B19201_with_ann!AJ266","v":0},{"$f":"[1]ACS_16_5YR_B19201_with_ann!AK266","v":11},{"$f":"[1]ACS_16_5YR_B19202_with_ann!D266","v":36705},{"$f":"[1]ACS_16_5YR_B19202_with_ann!E266","v":20254},null,"Acworth"]
["0600000US3301952580",3301952580,"060","Newport",{"$f":"[1]ACS_16_5YR_B19201_with_ann!D267","v":1028},{"$f":"[1]ACS_16_5YR_B19201_with_ann!E267","v":213},{"$f":"[1]ACS_16_5YR_B19201_with_ann!F267","v":94},{"$f":"[1]ACS_16_5YR_B19201_with_ann!G267","v":87},{"$f":"[1]ACS_16_5YR_B19201_with_ann!H267","v":46},{"$f":"[1]ACS_16_5YR_B19201_with_ann!I267","v":57},{"$f":"[1]ACS_16_5YR_B19201_with_ann!J267","v":232},{"$f":"[1]ACS_16_5YR_B19201_with_ann!K267","v":127},{"$f":"[1]ACS_16_5YR_B19201_with_ann!L267","v":87},{"$f":"[1]ACS_16_5YR_B19201_with_ann!M267","v":57},{"$f":"[1]ACS_16_5YR_B19201_with_ann!N267","v":28},{"$f":"[1]ACS_16_5YR_B19201_with_ann!O267","v":32},{"$f":"[1]ACS_16_5YR_B19201_with_ann!P267","v":39},{"$f":"[1]ACS_16_5YR_B19201_with_ann!Q267","v":36},{"$f":"[1]ACS_16_5YR_B19201_with_ann!R267","v":26},{"$f":"[1]ACS_16_5YR_B19201_with_ann!S267","v":30},{"$f":"[1]ACS_16_5YR_B19201_with_ann!T267","v":50},{"$f":"[1]ACS_16_5YR_B19201_with_ann!U267","v":40},{"$f":"[1]ACS_16_5YR_B19201_with_ann!V267","v":14},{"$f":"[1]ACS_16_5YR_B19201_with_ann!W267","v":24},{"$f":"[1]ACS_16_5YR_B19201_with_ann!X267","v":88},{"$f":"[1]ACS_16_5YR_B19201_with_ann!Y267","v":83},{"$f":"[1]ACS_16_5YR_B19201_with_ann!Z267","v":81},{"$f":"[1]ACS_16_5YR_B19201_with_ann!AA267","v":61},{"$f":"[1]ACS_16_5YR_B19201_with_ann!AB267","v":142},{"$f":"[1]ACS_16_5YR_B19201_with_ann!AC267","v":83},{"$f":"[1]ACS_16_5YR_B19201_with_ann!AD267","v":14},{"$f":"[1]ACS_16_5YR_B19201_with_ann!AE267","v":21},{"$f":"[1]ACS_16_5YR_B19201_with_ann!AF267","v":14},{"$f":"[1]ACS_16_5YR_B19201_with_ann!AG267","v":22},{"$f":"[1]ACS_16_5YR_B19201_with_ann!AH267","v":73},{"$f":"[1]ACS_16_5YR_B19201_with_ann!AI267","v":78},{"$f":"[1]ACS_16_5YR_B19201_with_ann!AJ267","v":0},{"$f":"[1]ACS_16_5YR_B19201_with_ann!AK267","v":16},{"$f":"[1]ACS_16_5YR_B19202_with_ann!D267","v":31731},{"$f":"[1]ACS_16_5YR_B19202_with_ann!E267","v":17510},null,"Acworth"]
["0600000US3301962340",3301962340,"060","Plainfield",{"$f":"[1]ACS_16_5YR_B19201_with_ann!D268","v":200},{"$f":"[1]ACS_16_5YR_B19201_with_ann!E268","v":55},{"$f":"[1]ACS_16_5YR_B19201_with_ann!F268","v":6},{"$f":"[1]ACS_16_5YR_B19201_with_ann!G268","v":9},{"$f":"[1]ACS_16_5YR_B19201_with_ann!H268","v":0},{"$f":"[1]ACS_16_5YR_B19201_with_ann!I268","v":11},{"$f":"[1]ACS_16_5YR_B19201_with_ann!J268","v":0},{"$f":"[1]ACS_16_5YR_B19201_with_ann!K268","v":11},{"$f":"[1]ACS_16_5YR_B19201_with_ann!L268","v":20},{"$f":"[1]ACS_16_5YR_B19201_with_ann!M268","v":21},{"$f":"[1]ACS_16_5YR_B19201_with_ann!N268","v":31},{"$f":"[1]ACS_16_5YR_B19201_with_ann!O268","v":27},{"$f":"[1]ACS_16_5YR_B19201_with_ann!P268","v":11},{"$f":"[1]ACS_16_5YR_B19201_with_ann!Q268","v":11},{"$f":"[1]ACS_16_5YR_B19201_with_ann!R268","v":16},{"$f":"[1]ACS_16_5YR_B19201_with_ann!S268","v":13},{"$f":"[1]ACS_16_5YR_B19201_with_ann!T268","v":0},{"$f":"[1]ACS_16_5YR_B19201_with_ann!U268","v":11},{"$f":"[1]ACS_16_5YR_B19201_with_ann!V268","v":7},{"$f":"[1]ACS_16_5YR_B19201_with_ann!W268","v":10},{"$f":"[1]ACS_16_5YR_B19201_with_ann!X268","v":6},{"$f":"[1]ACS_16_5YR_B19201_with_ann!Y268","v":9},{"$f":"[1]ACS_16_5YR_B19201_with_ann!Z268","v":31},{"$f":"[1]ACS_16_5YR_B19201_with_ann!AA268","v":31},{"$f":"[1]ACS_16_5YR_B19201_with_ann!AB268","v":31},{"$f":"[1]ACS_16_5YR_B19201_with_ann!AC268","v":25},{"$f":"[1]ACS_16_5YR_B19201_with_ann!AD268","v":20},{"$f":"[1]ACS_16_5YR_B19201_with_ann!AE268","v":16},{"$f":"[1]ACS_16_5YR_B19201_with_ann!AF268","v":0},{"$f":"[1]ACS_16_5YR_B19201_with_ann!AG268","v":11},{"$f":"[1]ACS_16_5YR_B19201_with_ann!AH268","v":0},{"$f":"[1]ACS_16_5YR_B19201_with_ann!AI268","v":11},{"$f":"[1]ACS_16_5YR_B19201_with_ann!AJ268","v":21},{"$f":"[1]ACS_16_5YR_B19201_with_ann!AK268","v":17},{"$f":"[1]ACS_16_5YR_B19202_with_ann!D268","v":61875},{"$f":"[1]ACS_16_5YR_B19202_with_ann!E268","v":29003},null,"Acworth"]
["0600000US3301972740",3301972740,"060","Springfield",{"$f":"[1]ACS_16_5YR_B19201_with_ann!D269","v":105},{"$f":"[1]ACS_16_5YR_B19201_with_ann!E269","v":46},{"$f":"[1]ACS_16_5YR_B19201_with_ann!F269","v":21},{"$f":"[1]ACS_16_5YR_B19201_with_ann!G269","v":21},{"$f":"[1]ACS_16_5YR_B19201_with_ann!H269","v":4},{"$f":"[1]ACS_16_5YR_B19201_with_ann!I269","v":6},{"$f":"[1]ACS_16_5YR_B19201_with_ann!J269","v":0},{"$f":"[1]ACS_16_5YR_B19201_with_ann!K269","v":11},{"$f":"[1]ACS_16_5YR_B19201_with_ann!L269","v":0},{"$f":"[1]ACS_16_5YR_B19201_with_ann!M269","v":11},{"$f":"[1]ACS_16_5YR_B19201_with_ann!N269","v":15},{"$f":"[1]ACS_16_5YR_B19201_with_ann!O269","v":16},{"$f":"[1]ACS_16_5YR_B19201_with_ann!P269","v":19},{"$f":"[1]ACS_16_5YR_B19201_with_ann!Q269","v":22},{"$f":"[1]ACS_16_5YR_B19201_with_ann!R269","v":2},{"$f":"[1]ACS_16_5YR_B19201_with_ann!S269","v":5},{"$f":"[1]ACS_16_5YR_B19201_with_ann!T269","v":8},{"$f":"[1]ACS_16_5YR_B19201_with_ann!U269","v":13},{"$f":"[1]ACS_16_5YR_B19201_with_ann!V269","v":5},{"$f":"[1]ACS_16_5YR_B19201_with_ann!W269","v":9},{"$f":"[1]ACS_16_5YR_B19201_with_ann!X269","v":4},{"$f":"[1]ACS_16_5YR_B19201_with_ann!Y269","v":6},{"$f":"[1]ACS_16_5YR_B19201_with_ann!Z269","v":10},{"$f":"[1]ACS_16_5YR_B19201_with_ann!AA269","v":16},{"$f":"[1]ACS_16_5YR_B19201_with_ann!AB269","v":9},{"$f":"[1]ACS_16_5YR_B19201_with_ann!AC269","v":15},{"$f":"[1]ACS_16_5YR_B19201_with_ann!AD269","v":4},{"$f":"[1]ACS_16_5YR_B19201_with_ann!AE269","v":6},{"$f":"[1]ACS_16_5YR_B19201_with_ann!AF269","v":0},{"$f":"[1]ACS_16_5YR_B19201_with_ann!AG269","v":11},{"$f":"[1]ACS_16_5YR_B19201_with_ann!AH269","v":0},{"$f":"[1]ACS_16_5YR_B19201_with_ann!AI269","v":11},{"$f":"[1]ACS_16_5YR_B19201_with_ann!AJ269","v":4},{"$f":"[1]ACS_16_5YR_B19201_with_ann!AK269","v":6},{"$f":"[1]ACS_16_5YR_B19202_with_ann!D269","v":32969},{"$f":"[1]ACS_16_5YR_B19202_with_ann!E269","v":10309},null,"Acworth"]
["0600000US3301975060",3301975060,"060","Sunapee",{"$f":"[1]ACS_16_5YR_B19201_with_ann!D270","v":492},{"$f":"[1]ACS_16_5YR_B19201_with_ann!E270","v":142},{"$f":"[1]ACS_16_5YR_B19201_with_ann!F270","v":70},{"$f":"[1]ACS_16_5YR_B19201_with_ann!G270","v":78},{"$f":"[1]ACS_16_5YR_B19201_with_ann!H270","v":4},{"$f":"[1]ACS_16_5YR_B19201_with_ann!I270","v":8},{"$f":"[1]ACS_16_5YR_B19201_with_ann!J270","v":16},{"$f":"[1]ACS_16_5YR_B19201_with_ann!K270","v":17},{"$f":"[1]ACS_16_5YR_B19201_with_ann!L270","v":105},{"$f":"[1]ACS_16_5YR_B19201_with_ann!M270","v":78},{"$f":"[1]ACS_16_5YR_B19201_with_ann!N270","v":5},{"$f":"[1]ACS_16_5YR_B19201_with_ann!O270","v":8},{"$f":"[1]ACS_16_5YR_B19201_with_ann!P270","v":45},{"$f":"[1]ACS_16_5YR_B19201_with_ann!Q270","v":50},{"$f":"[1]ACS_16_5YR_B19201_with_ann!R270","v":0},{"$f":"[1]ACS_16_5YR_B19201_with_ann!S270","v":11},{"$f":"[1]ACS_16_5YR_B19201_with_ann!T270","v":15},{"$f":"[1]ACS_16_5YR_B19201_with_ann!U270","v":23},{"$f":"[1]ACS_16_5YR_B19201_with_ann!V270","v":74},{"$f":"[1]ACS_16_5YR_B19201_with_ann!W270","v":69},{"$f":"[1]ACS_16_5YR_B19201_with_ann!X270","v":27},{"$f":"[1]ACS_16_5YR_B19201_with_ann!Y270","v":31},{"$f":"[1]ACS_16_5YR_B19201_with_ann!Z270","v":68},{"$f":"[1]ACS_16_5YR_B19201_with_ann!AA270","v":56},{"$f":"[1]ACS_16_5YR_B19201_with_ann!AB270","v":25},{"$f":"[1]ACS_16_5YR_B19201_with_ann!AC270","v":24},{"$f":"[1]ACS_16_5YR_B19201_with_ann!AD270","v":0},{"$f":"[1]ACS_16_5YR_B19201_with_ann!AE270","v":11},{"$f":"[1]ACS_16_5YR_B19201_with_ann!AF270","v":29},{"$f":"[1]ACS_16_5YR_B19201_with_ann!AG270","v":30},{"$f":"[1]ACS_16_5YR_B19201_with_ann!AH270","v":9},{"$f":"[1]ACS_16_5YR_B19201_with_ann!AI270","v":14},{"$f":"[1]ACS_16_5YR_B19201_with_ann!AJ270","v":0},{"$f":"[1]ACS_16_5YR_B19201_with_ann!AK270","v":11},{"$f":"[1]ACS_16_5YR_B19202_with_ann!D270","v":40167},{"$f":"[1]ACS_16_5YR_B19202_with_ann!E270","v":17857},null,"Acworth"]
["0600000US3301977940",3301977940,"060","Unity",{"$f":"[1]ACS_16_5YR_B19201_with_ann!D271","v":165},{"$f":"[1]ACS_16_5YR_B19201_with_ann!E271","v":39},{"$f":"[1]ACS_16_5YR_B19201_with_ann!F271","v":19},{"$f":"[1]ACS_16_5YR_B19201_with_ann!G271","v":20},{"$f":"[1]ACS_16_5YR_B19201_with_ann!H271","v":16},{"$f":"[1]ACS_16_5YR_B19201_with_ann!I271","v":14},{"$f":"[1]ACS_16_5YR_B19201_with_ann!J271","v":6},{"$f":"[1]ACS_16_5YR_B19201_with_ann!K271","v":7},{"$f":"[1]ACS_16_5YR_B19201_with_ann!L271","v":31},{"$f":"[1]ACS_16_5YR_B19201_with_ann!M271","v":21},{"$f":"[1]ACS_16_5YR_B19201_with_ann!N271","v":10},{"$f":"[1]ACS_16_5YR_B19201_with_ann!O271","v":7},{"$f":"[1]ACS_16_5YR_B19201_with_ann!P271","v":7},{"$f":"[1]ACS_16_5YR_B19201_with_ann!Q271","v":7},{"$f":"[1]ACS_16_5YR_B19201_with_ann!R271","v":4},{"$f":"[1]ACS_16_5YR_B19201_with_ann!S271","v":5},{"$f":"[1]ACS_16_5YR_B19201_with_ann!T271","v":5},{"$f":"[1]ACS_16_5YR_B19201_with_ann!U271","v":5},{"$f":"[1]ACS_16_5YR_B19201_with_ann!V271","v":2},{"$f":"[1]ACS_16_5YR_B19201_with_ann!W271","v":4},{"$f":"[1]ACS_16_5YR_B19201_with_ann!X271","v":9},{"$f":"[1]ACS_16_5YR_B19201_with_ann!Y271","v":8},{"$f":"[1]ACS_16_5YR_B19201_with_ann!Z271","v":21},{"$f":"[1]ACS_16_5YR_B19201_with_ann!AA271","v":16},{"$f":"[1]ACS_16_5YR_B19201_with_ann!AB271","v":4},{"$f":"[1]ACS_16_5YR_B19201_with_ann!AC271","v":5},{"$f":"[1]ACS_16_5YR_B19201_with_ann!AD271","v":16},{"$f":"[1]ACS_16_5YR_B19201_with_ann!AE271","v":17},{"$f":"[1]ACS_16_5YR_B19201_with_ann!AF271","v":2},{"$f":"[1]ACS_16_5YR_B19201_with_ann!AG271","v":3},{"$f":"[1]ACS_16_5YR_B19201_with_ann!AH271","v":9},{"$f":"[1]ACS_16_5YR_B19201_with_ann!AI271","v":13},{"$f":"[1]ACS_16_5YR_B19201_with_ann!AJ271","v":4},{"$f":"[1]ACS_16_5YR_B19201_with_ann!AK271","v":5},{"$f":"[1]ACS_16_5YR_B19202_with_ann!D271","v":32679},{"$f":"[1]ACS_16_5YR_B19202_with_ann!E271","v":15762},null,"Acworth"]
["0600000US3301978980",3301978980,"060","Washington",{"$f":"[1]ACS_16_5YR_B19201_with_ann!D272","v":118},{"$f":"[1]ACS_16_5YR_B19201_with_ann!E272","v":45},{"$f":"[1]ACS_16_5YR_B19201_with_ann!F272","v":11},{"$f":"[1]ACS_16_5YR_B19201_with_ann!G272","v":16},{"$f":"[1]ACS_16_5YR_B19201_with_ann!H272","v":12},{"$f":"[1]ACS_16_5YR_B19201_with_ann!I272","v":16},{"$f":"[1]ACS_16_5YR_B19201_with_ann!J272","v":12},{"$f":"[1]ACS_16_5YR_B19201_with_ann!K272","v":16},{"$f":"[1]ACS_16_5YR_B19201_with_ann!L272","v":3},{"$f":"[1]ACS_16_5YR_B19201_with_ann!M272","v":4},{"$f":"[1]ACS_16_5YR_B19201_with_ann!N272","v":0},{"$f":"[1]ACS_16_5YR_B19201_with_ann!O272","v":11},{"$f":"[1]ACS_16_5YR_B19201_with_ann!P272","v":17},{"$f":"[1]ACS_16_5YR_B19201_with_ann!Q272","v":14},{"$f":"[1]ACS_16_5YR_B19201_with_ann!R272","v":13},{"$f":"[1]ACS_16_5YR_B19201_with_ann!S272","v":17},{"$f":"[1]ACS_16_5YR_B19201_with_ann!T272","v":3},{"$f":"[1]ACS_16_5YR_B19201_with_ann!U272","v":4},{"$f":"[1]ACS_16_5YR_B19201_with_ann!V272","v":3},{"$f":"[1]ACS_16_5YR_B19201_with_ann!W272","v":4},{"$f":"[1]ACS_16_5YR_B19201_with_ann!X272","v":2},{"$f":"[1]ACS_16_5YR_B19201_with_ann!Y272","v":4},{"$f":"[1]ACS_16_5YR_B19201_with_ann!Z272","v":2},{"$f":"[1]ACS_16_5YR_B19201_with_ann!AA272","v":4},{"$f":"[1]ACS_16_5YR_B19201_with_ann!AB272","v":29},{"$f":"[1]ACS_16_5YR_B19201_with_ann!AC272","v":23},{"$f":"[1]ACS_16_5YR_B19201_with_ann!AD272","v":3},{"$f":"[1]ACS_16_5YR_B19201_with_ann!AE272","v":4},{"$f":"[1]ACS_16_5YR_B19201_with_ann!AF272","v":8},{"$f":"[1]ACS_16_5YR_B19201_with_ann!AG272","v":7},{"$f":"[1]ACS_16_5YR_B19201_with_ann!AH272","v":0},{"$f":"[1]ACS_16_5YR_B19201_with_ann!AI272","v":11},{"$f":"[1]ACS_16_5YR_B19201_with_ann!AJ272","v":0},{"$f":"[1]ACS_16_5YR_B19201_with_ann!AK272","v":11},{"$f":"[1]ACS_16_5YR_B19202_with_ann!D272","v":38269},{"$f":"[1]ACS_16_5YR_B19202_with_ann!E272","v":13254},null,"Acworth"]
[]
[null,null,null,null,{"$f":"$D$3","v":"Acworth"},null,{"$f":"$D$4","v":"Charlestown"},null,{"$f":"$D$5","v":"Claremont"},null,{"$f":"$D$6","v":"Cornish"},null,{"$f":"$D$7","v":"Croydon"},null,{"$f":"$D$8","v":"Goshen"},null,{"$f":"$D$9","v":"Grantham"},null,{"$f":"$D$10","v":"Langdon"},null,{"$f":"$D$11","v":"Lempster"},null,{"$f":"$D$12","v":"Newport"},null,{"$f":"$D$13","v":"Plainfield"},null,{"$f":"$D$14","v":"Springfield"},null,{"$f":"$D$15","v":"Sunapee"},null,{"$f":"$D$16","v":"Unity"},null,{"$f":"$D$17","v":"Washington"}]
[null,null,null,null,"Estimate","Margin Of Error","Estimate","Margin Of Error","Estimate","Margin Of Error","Estimate","Margin Of Error","Estimate","Margin Of Error","Estimate","Margin Of Error","Estimate","Margin Of Error","Estimate","Margin Of Error","Estimate","Margin Of Error","Estimate","Margin Of Error","Estimate","Margin Of Error","Estimate","Margin Of Error","Estimate","Margin Of Error",null,"Estimate","Margin Of Error"]
["Table B19201",null,null,"Estimate Total:",115,28,707,222,2066,273,215,55,106,36,114,36,320,149,67,27,153,49,1028,213,200,55,105,46,492,142,165,39,118,45]
[null,null,null,"Estimate  Total: - Less than $10,000",6,10,148,111,203,122,12,10,9,12,17,14,0,11,14,15,16,17,94,87,6,9,21,21,70,78,19,20,11,16]
[null,null,null,"Estimate  Total: - $10,000 to $14,999",6,6,14,23,209,89,15,20,12,13,6,9,0,11,0,11,4,5,46,57,0,11,4,6,4,8,16,14,12,16]
[null,null,null,"Estimate  Total: - $15,000 to $19,999",5,5,116,96,247,110,33,24,6,7,3,4,14,22,3,4,10,9,232,127,0,11,0,11,16,17,6,7,12,16]
[null,null,null,"Estimate  Total: - $20,000 to $24,999",6,9,73,77,308,155,3,4,8,7,9,8,0,11,6,6,28,21,87,57,20,21,0,11,105,78,31,21,3,4]
[null,null,null,"Estimate  Total: - $25,000 to $29,999",15,11,99,81,127,65,21,20,7,6,7,9,48,61,4,4,7,8,28,32,31,27,15,16,5,8,10,7,0,11]
[null,null,null,"Estimate  Total: - $30,000 to $34,999",2,3,72,63,144,94,6,7,8,7,8,9,0,11,0,11,4,5,39,36,11,11,19,22,45,50,7,7,17,14]
[null,null,null,"Estimate  Total: - $35,000 to $39,999",7,6,17,28,81,40,6,7,5,6,4,4,0,11,7,11,11,12,26,30,16,13,2,5,0,11,4,5,13,17]
[null,null,null,"Estimate  Total: - $40,000 to $44,999",2,3,37,46,175,93,14,15,2,3,1,3,91,102,2,3,2,3,50,40,0,11,8,13,15,23,5,5,3,4]
[null,null,null,"Estimate  Total: - $45,000 to $49,999",6,6,13,23,94,58,14,10,11,14,5,5,17,25,0,11,11,11,14,24,7,10,5,9,74,69,2,4,3,4]
[null,null,null,"Estimate  Total: - $50,000 to $59,999",34,20,0,16,109,68,31,21,5,10,21,18,41,46,0,11,15,15,88,83,6,9,4,6,27,31,9,8,2,4]
[null,null,null,"Estimate  Total: - $60,000 to $74,999",12,9,51,57,130,78,10,12,9,10,10,12,50,55,14,11,9,14,81,61,31,31,10,16,68,56,21,16,2,4]
[null,null,null,"Estimate  Total: - $75,000 to $99,999",8,10,59,49,132,70,32,20,14,14,9,7,17,26,12,15,19,21,142,83,31,25,9,15,25,24,4,5,29,23]
[null,null,null,"Estimate  Total: - $100,000 to $124,999",4,5,8,13,19,30,10,9,0,11,5,5,13,20,3,4,17,17,14,21,20,16,4,6,0,11,16,17,3,4]
[null,null,null,"Estimate  Total: - $125,000 to $149,999",2,3,0,16,32,33,3,6,0,11,9,15,0,11,2,4,0,11,14,22,0,11,0,11,29,30,2,3,8,7]
[null,null,null,"Estimate  Total: - $150,000 to $199,999",0,11,0,16,25,32,5,6,4,6,0,11,0,11,0,11,0,11,73,78,0,11,0,11,9,14,9,13,0,11]
[null,null,null,"Estimate  Total: - $200,000 or more",0,11,0,16,31,24,0,11,6,9,0,11,29,32,0,11,0,11,0,16,21,17,4,6,0,11,4,5,0,11]
["Table B19202"]
[null,null,null,"Estimate Median nonfamily household income in the past 12 months (in 2019 inflation-adjusted dollars)",50568,8284,25139,7159,28324,7836,43750,11593,39000,16857,47500,18586,46029,11056,"-","**",36705,20254,31731,17510,61875,29003,32969,10309,40167,17857,32679,15762,38269,13254]

{"sheet":"ACS_Table_B19049","index":61,"n_rows":56,"n_cols":32,"rows_kept":56,"cut":false,"hidden":true,"merged":[]}
[null,"B19049. MEDIAN HOUSEHOLD INCOME IN THE PAST 12 MONTHS (IN 2019 INFLATION-ADJUSTED DOLLARS) BY AGE OF HOUSEHOLDER "]
[null,"Universe:  HOUSEHOLDS"]
[null,"Data Set: 2015-2019 American Community Survey 5-Year Estimates"]
[]
[null,null,"Acworth",null,"Charlestown",null,"Claremont",null,"Cornish",null,"Croydon",null,"Goshen",null,"Grantham",null,"Langdon",null,"Lempster",null,"Newport",null,"Plainfield",null,"Springfield",null,"Sunapee",null,"Unity",null,"Washington"]
[null,null,"Estimate","Margin Of Error","Estimate","Margin Of Error","Estimate","Margin Of Error","Estimate","Margin Of Error","Estimate","Margin Of Error","Estimate","Margin Of Error","Estimate","Margin Of Error","Estimate","Margin Of Error","Estimate","Margin Of Error","Estimate","Margin Of Error","Estimate","Margin Of Error","Estimate","Margin Of Error","Estimate","Margin Of Error","Estimate","Margin Of Error","Estimate","Margin Of Error"]
[null,"Median household income in the past 12 months"]
[null,"Total:",68438,8127,47302,12871,47649,4588,82083,12741,75521,12747,59583,12176,108571,26279,79125,12995,70156,12339,54816,7020,85313,10050,79444,8510,73682,16011,69702,9041,78224,12451]
[null,"Householder under 25 years","-","**","-","**",46458,23982,"-","**","-","**","-","**","-","**","-","**","-","**","-","**","-","**","-","**",33482,11286,"-","**","-","**"]
[null,"Householder 25 to 44 years",63250,29245,52969,48413,63254,7567,108000,14436,94167,26312,58214,12021,116118,43161,78875,9084,102344,14160,58396,10726,93929,31447,82917,49133,70455,26432,64375,14302,"-","**"]
[null,"Householder 45 to 64 years",94375,18057,55187,14459,51285,11597,99479,9464,85417,29743,74844,19519,137664,56617,91667,10346,78365,14797,70024,22503,95536,11386,96250,7418,93235,12877,87500,6036,88375,19223]
[null,"Householder 65 years and over",55000,6509,39572,10971,36296,7516,55278,6252,43750,16904,45000,10529,85515,22746,60625,10286,46731,5043,27128,23594,58750,21391,66667,9001,64375,22625,48194,9618,47083,9380]
[]
[]
[]
[]
[]
[]
[]
[]
[]
[]
[]
[]
[]
[]
[]
[]
[]
[null,"B19049. MEDIAN HOUSEHOLD INCOME IN THE PAST 12 MONTHS (IN 2014 INFLATION-ADJUSTED DOLLARS) BY AGE OF HOUSEHOLDER "]
[null,"Universe:  HOUSEHOLDS"]
[null,"Data Set: 2010-2014 American Community Survey 5-Year Estimates"]
[]
[null,null,"Acworth",null,"Charlestown",null,"Claremont",null,"Cornish",null,"Croydon",null,"Goshen",null,"Grantham",null,"Langdon",null,"Lempster",null,"Newport",null,"Plainfield",null,"Springfield",null,"Sunapee",null,"Unity",null,"Washington"]
[null,null,"Estimate","Margin Of Error","Estimate","Margin Of Error","Estimate","Margin Of Error","Estimate","Margin Of Error","Estimate","Margin Of Error","Estimate","Margin Of Error","Estimate","Margin Of Error","Estimate","Margin Of Error","Estimate","Margin Of Error","Estimate","Margin Of Error","Estimate","Margin Of Error","Estimate","Margin Of Error","Estimate","Margin Of Error","Estimate","Margin Of Error","Estimate","Margin Of Error"]
[null,"Median household income in the past 12 months"]
[null,"Total:",52589,5357,42693,5663,45510,4246,75417,10889,71094,18009,49167,8505,96875,17594,73214,4733,61161,8225,53900,9123,99625,14885,76207,4252,72863,11422,57917,11070,59375,11632]
[null,"Householder under 25 years","-","**","-","**",20239,8691,"-","**","-","**","-","**","-","**","-","**","-","**",11250,39025,"-","**","-","**","-","**","-","**","-","**"]
[null,"Householder 25 to 44 years",76563,7360,55789,31220,54709,5340,82708,24032,80500,18860,39531,28865,102059,25486,91346,9564,81815,11597,65477,26162,107120,32965,73056,9311,76944,9693,68750,16848,76667,34311]
[null,"Householder 45 to 64 years",46250,19737,51521,10887,55169,10529,83250,8689,88750,21762,52333,8446,105929,16748,71250,16064,58235,6986,67286,9508,101522,11081,98750,27394,70000,23072,63750,10475,60313,17308]
[null,"Householder 65 years and over",44583,12565,23140,7188,32445,4373,42917,25292,34063,15298,44250,19175,67614,15977,42500,15607,34375,17960,39392,9058,69318,19584,54167,28906,58162,22271,28750,14775,48375,5580]
[]
[]
[]
[null,"B19049. MEDIAN HOUSEHOLD INCOME IN THE PAST 12 MONTHS (IN 2009 INFLATION-ADJUSTED DOLLARS) BY AGE OF HOUSEHOLDER "]
[null,"Universe:  HOUSEHOLDS"]
[null,"Data Set: 2005-2009 American Community Survey 5-Year Estimates"]
[]
[null,null,"Acworth",null,"Charlestown",null,"Claremont",null,"Cornish",null,"Croydon",null,"Goshen",null,"Grantham",null,"Langdon",null,"Lempster",null,"Newport",null,"Plainfield",null,"Springfield",null,"Sunapee",null,"Unity",null,"Washington"]
[null,null,"Estimate","Margin Of Error","Estimate","Margin Of Error","Estimate","Margin Of Error","Estimate","Margin Of Error","Estimate","Margin Of Error","Estimate","Margin Of Error","Estimate","Margin Of Error","Estimate","Margin Of Error","Estimate","Margin Of Error","Estimate","Margin Of Error","Estimate","Margin Of Error","Estimate","Margin Of Error","Estimate","Margin Of Error","Estimate","Margin Of Error","Estimate","Margin Of Error"]
[null,"Median household income in the past 12 months"]
[null,"Total:",46477,5651,53531,5209,39486,5205,66964,6688,56172,16572,48300,6016,81167,8903,64167,28735,55000,7327,45565,6153,72330,10177,78594,12478,58986,5957,61786,12425,52625,10426]
[null,"Householder under 25 years",33194,12424,2499,"***",29185,14406,36250,95166,43558,31189,"-","**","-","**","-","**","-","**",44375,40633,"-","**","-","**",20559,20081,24271,7748,"-","**"]
[null,"Householder 25 to 44 years",50375,12057,59938,10753,50497,6038,88077,26900,72361,20746,54250,13108,109167,19382,91806,20891,63304,9635,39400,9850,74306,34808,96250,13725,44844,29206,63393,27108,54438,3202]
[null,"Householder 45 to 64 years",49028,11155,59745,10294,43147,6966,66563,14898,67188,11874,52500,11723,94688,33249,63542,36944,67788,16055,54583,5489,76750,14087,73393,19886,66343,11352,59375,12368,49135,12206]
[null,"Householder 65 years and over",43000,8714,21450,5914,21997,5206,40375,12993,28214,9615,23750,21913,58750,22595,41667,27497,20500,5357,26071,14068,63571,39157,31250,23035,57212,9099,65972,15456,41442,14405]

{"sheet":"ACS_Table_B25118","index":62,"n_rows":191,"n_cols":76,"rows_kept":191,"cut":false,"hidden":true,"merged":[]}
[null,"B25118. TENURE BY HOUSEHOLD INCOME IN THE PAST 12 MONTHS (IN 2019 INFLATION-ADJUSTED DOLLARS) "]
[null,"Universe:  OCCUPIED HOUSING UNITS"]
[null,"Data Set: 2015-2019 American Community Survey 5-Year Estimates"]
[]
[null,null,"Acworth",null,"Charlestown",null,"Claremont",null,"Cornish",null,"Croydon",null,"Goshen",null,"Grantham",null,"Langdon",null,"Lempster",null,"Newport",null,"Plainfield",null,"Springfield",null,"Sunapee",null,"Unity",null,"Washington"]
[null,null,"Estimate","Margin Of Error","Estimate","Margin Of Error","Estimate","Margin Of Error","Estimate","Margin Of Error","Estimate","Margin Of Error","Estimate","Margin Of Error","Estimate","Margin Of Error","Estimate","Margin Of Error","Estimate","Margin Of Error","Estimate","Margin Of Error","Estimate","Margin Of Error","Estimate","Margin Of Error","Estimate","Margin Of Error","Estimate","Margin Of Error","Estimate","Margin Of Error"]
[null,"Total:",370,51,2086,184,5231,284,741,81,293,56,277,39,1222,142,257,47,393,59,2600,168,915,86,442,75,1393,139,571,56,537,81]
[null,"Owner occupied:",340,50,1584,209,2921,257,686,79,257,53,223,35,1082,164,218,44,367,61,1743,186,803,78,398,71,1044,138,536,56,499,81]
[null,"Less than $5,000",9,12,55,55,27,41,7,8,2,4,2,3,0,11,3,4,14,15,61,80,22,27,4,6,54,60,16,18,6,6]
[null,"$5,000 to $9,999",0,11,54,85,68,59,6,9,7,12,0,11,0,11,8,12,2,4,0,16,16,11,9,15,0,11,3,5,11,16]
[null,"$10,000 to $14,999",6,6,16,26,81,65,12,19,12,13,8,10,0,11,0,11,13,15,13,22,0,11,7,7,4,8,23,16,12,16]
[null,"$15,000 to $19,999",7,6,105,88,90,68,27,24,3,5,9,7,45,48,5,5,10,9,40,37,0,11,7,13,16,17,18,20,8,7]
[null,"$20,000 to $24,999",8,10,56,71,133,75,3,4,10,8,5,8,0,11,6,6,28,21,75,55,14,13,6,9,65,58,29,22,20,17]
[null,"$25,000 to $34,999",28,14,241,139,334,116,61,35,16,11,15,13,91,76,14,9,18,10,131,87,95,47,56,35,32,26,44,17,27,14]
[null,"$35,000 to $49,999",40,19,270,140,334,111,86,34,30,18,26,16,108,106,15,13,58,30,181,74,54,31,19,16,57,34,37,13,70,31]
[null,"$50,000 to $74,999",89,29,323,117,532,116,98,34,36,17,62,26,173,89,40,19,43,25,468,146,101,40,61,31,175,73,104,31,70,26]
[null,"$75,000 to $99,999",59,34,304,126,610,148,108,36,46,22,41,15,114,58,45,22,67,29,303,118,185,49,128,44,202,77,96,34,81,37]
[null,"$100,000 to $149,999",62,21,93,64,442,140,162,36,58,27,41,21,282,107,52,15,89,36,222,100,151,45,77,36,275,91,120,40,109,41]
[null,"$150,000 or more",32,17,67,54,270,104,116,35,37,23,14,11,269,116,30,21,25,27,249,120,165,43,24,12,164,64,46,19,85,61]
[null,"Renter occupied:",30,16,502,134,2310,288,55,26,36,22,54,23,140,79,39,21,26,16,857,184,112,49,44,33,349,122,35,20,38,28]
[null,"Less than $5,000",6,10,61,66,147,102,3,5,5,10,8,10,0,11,6,10,0,11,43,53,0,11,0,11,31,48,0,11,0,11]
[null,"$5,000 to $9,999",0,11,0,16,69,47,0,11,0,11,9,11,0,11,0,11,0,11,54,45,4,8,8,13,33,52,0,11,0,11]
[null,"$10,000 to $14,999",0,11,14,23,164,77,7,7,0,11,0,11,0,11,0,11,0,11,33,53,0,11,0,11,11,17,0,11,0,11]
[null,"$15,000 to $19,999",0,11,73,66,209,83,6,6,3,4,0,11,0,11,0,11,0,11,204,117,0,11,0,11,0,11,0,11,10,16]
[null,"$20,000 to $24,999",0,11,17,28,277,145,4,6,0,11,4,4,0,11,0,11,2,3,26,29,16,18,0,11,47,56,8,13,0,11]
[null,"$25,000 to $34,999",2,3,60,53,350,133,4,6,5,6,0,11,0,11,2,3,0,11,163,100,5,7,0,11,41,50,3,4,6,6]
[null,"$35,000 to $49,999",6,5,41,42,435,157,3,5,0,11,10,12,0,11,10,10,12,8,50,40,18,15,5,9,66,67,11,9,0,11]
[null,"$50,000 to $74,999",8,10,45,52,311,115,10,17,15,15,15,15,40,35,13,14,12,14,158,116,41,38,7,8,84,59,8,9,16,16]
[null,"$75,000 to $99,999",5,6,109,97,253,133,3,5,2,4,8,7,15,23,0,11,0,11,74,58,0,11,24,29,0,11,0,11,0,11]
[null,"$100,000 to $149,999",0,11,36,59,41,43,12,10,6,10,0,11,85,80,3,4,0,11,27,31,28,30,0,11,15,23,5,7,6,14]
[null,"$150,000 or more",3,5,46,54,54,38,3,4,0,11,0,11,0,11,5,8,0,11,25,29,0,11,0,11,21,18,0,11,0,11]
[]
[]
[]
[]
[]
[null,"Calculated B25118. TENURE BY HOUSEHOLD INCOME IN THE PAST 12 MONTHS (IN 2019 INFLATION-ADJUSTED DOLLARS) "]
[null,"Universe:  OCCUPIED HOUSING UNITS"]
[null,"Data Set: 2015-2019 American Community Survey 5-Year Estimates"]
[null,null,"Acworth",null,"Charlestown",null,"Claremont",null,"Cornish",null,"Croydon",null,"Goshen",null,"Grantham",null,"Langdon",null,"Lempster",null,"Newport",null,"Plainfield",null,"Springfield",null,"Sunapee",null,"Unity",null,"Washington"]
[null,null,"Estimate","Margin Of Error","Estimate","Margin Of Error","Estimate","Margin Of Error","Estimate","Margin Of Error","Estimate","Margin Of Error","Estimate","Margin Of Error","Estimate","Margin Of Error","Estimate","Margin Of Error","Estimate","Margin Of Error","Estimate","Margin Of Error","Estimate","Margin Of Error","Estimate","Margin Of Error","Estimate","Margin Of Error","Estimate","Margin Of Error","Estimate","Margin Of Error"]
[null,{"$f":"B7","v":"Total:"},370,51,2086,184,5231,284,741,81,293,56,277,39,1222,142,257,47,393,59,2600,168,915,86,{"$f":"Y7","v":442},75,1393,139,571,56,537,81]
[null,"Less than $5,000",{"$f":"C9+C21","v":15},{"$f":"SQRT((D9^2)+(D21^2))","v":15.620499351813308},{"$f":"E9+E21","v":116},{"$f":"SQRT((F9^2)+(F21^2))","v":85.912746434973201},{"$f":"G9+G21","v":174},{"$f":"SQRT((H9^2)+(H21^2))","v":109.9317970379817},{"$f":"I9+I21","v":10},{"$f":"SQRT((J9^2)+(J21^2))","v":9.4339811320566032},{"$f":"K9+K21","v":7},{"$f":"SQRT((L9^2)+(L21^2))","v":10.770329614269007},{"$f":"M9+M21","v":10},{"$f":"SQRT((N9^2)+(N21^2))","v":10.440306508910551},{"$f":"O9+O21","v":0},{"$f":"SQRT((P9^2)+(P21^2))","v":15.556349186104045},{"$f":"Q9+Q21","v":9},{"$f":"SQRT((R9^2)+(R21^2))","v":10.770329614269007},{"$f":"S9+S21","v":14},{"$f":"SQRT((T9^2)+(T21^2))","v":18.601075237738275},{"$f":"U9+U21","v":104},{"$f":"SQRT((V9^2)+(V21^2))","v":95.963534741067136},{"$f":"W9+W21","v":22},{"$f":"SQRT((X9^2)+(X21^2))","v":29.154759474226502},{"$f":"Y9+Y21","v":4},{"$f":"SQRT((Z9^2)+(Z21^2))","v":12.529964086141668},{"$f":"AA9+AA21","v":85},{"$f":"SQRT((AB9^2)+(AB21^2))","v":76.837490849194182},16,21.095023109728988,{"$f":"AE16","v":70},26]
[null,"$5,000 to $9,999",{"$f":"C10+C22","v":0},{"$f":"SQRT((D10^2)+(D22^2))","v":15.556349186104045},{"$f":"E10+E22","v":54},86.49277426467485,{"$f":"G10+G22","v":137},75.432088662584434,{"$f":"I10+I22","v":6},14.212670403551895,{"$f":"K10+K22","v":7},16.278820596099706,{"$f":"M10+M22","v":9},15.556349186104045,{"$f":"O10+O22","v":0},15.556349186104045,{"$f":"Q10+Q22","v":8},16.278820596099706,2,11.704699910719626,54,47.75981574503821,20,13.601470508735444,17,19.849433241279208,33,53.150729063673246,3,12.083045973594572,81,37]
[null,"$10,000 to $14,999",{"$f":"C11+C23","v":6},12.529964086141668,{"$f":"E11+E23","v":30},34.713109915419565,{"$f":"G11+G23","v":245},100.7670581092849,{"$f":"I11+I23","v":19},20.248456731316587,{"$f":"K11+K23","v":12},17.029386365926403,{"$f":"M11+M23","v":8},14.866068747318506,{"$f":"O11+O23","v":0},15.556349186104045,{"$f":"Q11+Q23","v":0},15.556349186104045,13,18.601075237738275,46,57.384666941614292,0,15.556349186104045,7,13.038404810405298,15,18.788294228055936,23,19.416487838947599,{"$f":"AE18+AE19","v":194},{"$f":"SQRT((AF18^2)+(AF19^2))","v":73.498299300051841}]
[null,"$15,000 to $19,999",{"$f":"C12+C24","v":7},12.529964086141668,178,110,299,107.29864864013899,33,24.738633753705962,6,6.4031242374328485,9,13.038404810405298,45,49.244289008980523,5,12.083045973594572,10,14.212670403551895,244,122.71104269787622,0,15.556349186104045,7,17.029386365926403,16,20.248456731316587,18,22.825424421026653,{"$f":"AE20+AE21","v":38},{"$f":"SQRT((AF20^2)+(AF21^2))","v":30.083217912982647}]
[null,"$20,000 to $24,999",8,14.866068747318506,73,76.321687612368734,410,163.24827717314508,7,7.2111025509279782,10,13.601470508735444,9,8.9442719099991592,0,15.556349186104045,6,12.529964086141668,30,21.213203435596427,101,62.177166226839255,30,22.203603311174518,6,14.212670403551895,112,80.622577482985491,37,25.553864678361276,{"$f":"AE22+AE23+AE24","v":10},{"$f":"SQRT((AF22^2)+(AF23^2)+(AF24^2))","v":22.315913604421397}]
[null,"$25,000 to $34,999",30,14.317821063276353,301,148.7615541731129,684,176.47946056127893,65,35.510561809129406,21,12.529964086141668,15,17.029386365926403,91,76.791926658991954,16,9.4868329805051381,18,14.866068747318506,294,132.54810447531869,100,47.518417482066887,56,36.687872655688281,73,56.356011214421486,47,17.464249196572979,{"$f":"AE25+AE26","v":6},{"$f":"SQRT((AF25^2)+(AF26^2))","v":12.529964086141668}]
[null,"$35,000 to $49,999",46,19.646882704388499,311,146.16429112474771,769,192.27584351654787,89,34.365680554879162,30,21.095023109728988,36,20,108,106.56922632730333,25,16.401219466856727,70,31.048349392520048,231,84.118963379252364,72,34.438350715445125,24,18.357559750685819,123,75.133215025047349,48,15.811388300841896,{"$f":"AE27","v":0},{"$f":"AF27","v":11}]
[null,"$50,000 to $74,999",97,30.675723300355934,368,128.03515142334936,843,163.3431969810803,108,38.013155617496423,51,22.671568097509269,77,30.016662039607269,213,95.634721728041853,53,23.600847442411894,55,28.653097563788805,626,186.47251808242416,142,55.172456896534889,68,32.015621187164243,259,93.861600242058515,112,32.280024783137947,{"$f":"AE28+AE29","v":16},{"$f":"SQRT((AF28^2)+(AF29^2))","v":19.416487838947599}]
[null,"$75,000 to $99,999",64,34.525353003264136,413,159.0125781188394,863,198.97989848223364,111,36.345563690772494,48,22.360679774997898,49,16.552945357246848,129,62.393909959225986,45,24.596747752497688,67,31.016124838541646,377,131.48383931114881,185,50.219518117958877,152,52.697248505021591,202,77.781745930520231,96,35.735136770411273,{"$f":"AE30","v":6},14]
[null,"$100,000 to $149,999",62,23.706539182259394,129,87.045964869142551,483,146.45477117526761,174,37.363083384538811,64,28.792360097775937,41,23.706539182259394,367,133.60014970051492,55,15.524174696260024,89,37.643060449437421,249,104.69479452198185,179,54.083269131959838,77,37.643060449437421,290,93.861600242058515,125,40.607881008493905,0,11]
[null,"$150,000 or more",35,17.720045146669349,{"$f":"E19+E31","v":113},76.367532368147138,324,110.72488428533127,119,35.227829907617071,37,25.495097567963924,14,15.556349186104045,269,116.52038448271615,35,22.472205054244231,25,29.154759474226502,274,123.45444503945575,165,44.384682042344295,24,16.278820596099706,185,66.483080554378645,46,21.95449840010015,{"$f":"AE19+AE31","v":85},{"$f":"SQRT((AF19^2)+(AF31^2))","v":61.98386886924694}]
[]
[]
[]
[]
[]
[]
[]
[]
[]
[]
[]
[]
[]
[]
[]
[]
[null,"B25118. TENURE BY HOUSEHOLD INCOME IN THE PAST 12 MONTHS (IN 2014 INFLATION-ADJUSTED DOLLARS) "]
[null,"Universe:  OCCUPIED HOUSING UNITS"]
[null,"Data Set: 2010-2014 American Community Survey 5-Year Estimates"]
[]
[null,null,"Acworth",null,"Charlestown",null,"Claremont",null,"Cornish",null,"Croydon",null,"Goshen",null,"Grantham",null,"Langdon",null,"Lempster",null,"Newport",null,"Plainfield",null,"Springfield",null,"Sunapee",null,"Unity",null,"Washington"]
[null,null,"Estimate","Margin Of Error","Estimate","Margin Of Error","Estimate","Margin Of Error","Estimate","Margin Of Error","Estimate","Margin Of Error","Estimate","Margin Of Error","Estimate","Margin Of Error","Estimate","Margin Of Error","Estimate","Margin Of Error","Estimate","Margin Of Error","Estimate","Margin Of Error","Estimate","Margin Of Error","Estimate","Margin Of Error","Estimate","Margin Of Error","Estimate","Margin Of Error",null,null,null,null,null,null,null,null,null,null,null,null,null,null,null,null,null,null,null,null,null,null,null,null,null,null,null,null,null,null,null,null,null,null,null,null,"Estimate","Margin Of Error","Estimate","Margin Of Error","Estimate","Margin Of Error","Estimate","Margin Of Error"]
[null,"Total:",347,44,2185,131,5418,242,644,62,257,42,320,42,1084,82,284,42,425,55,2806,190,933,81,482,69,1496,87,529,62,449,64,null,null,null,null,null,null,null,null,null,null,null,null,null,null,null,null,null,null,null,null,null,null,null,null,null,null,null,null,null,null,null,null,null,null,null,null,3846,231,321,42,2717,107,4364,175]
[null,"Owner occupied:",274,40,1721,147,3486,249,550,56,213,37,254,35,991,88,255,38,375,51,1858,197,815,78,410,65,1068,125,513,58,418,62,null,null,null,null,null,null,null,null,null,null,null,null,null,null,null,null,null,null,null,null,null,null,null,null,null,null,null,null,null,null,null,null,null,null,null,null,2686,223,288,36,2540,143,4088,189]
[null,"Less than $5,000",2,3,27,30,82,63,12,10,2,6,6,8,0,11,8,9,3,4,24,38,6,9,0,11,0,11,3,4,10,13,null,null,null,null,null,null,null,null,null,null,null,null,null,null,null,null,null,null,null,null,null,null,null,null,null,null,null,null,null,null,null,null,null,null,null,null,12,18,2,5,14,23,44,55]
[null,"$5,000 to $9,999",9,11,49,44,39,26,16,12,0,11,0,11,0,11,0,11,6,10,80,73,0,11,3,5,0,11,4,6,0,11,null,null,null,null,null,null,null,null,null,null,null,null,null,null,null,null,null,null,null,null,null,null,null,null,null,null,null,null,null,null,null,null,null,null,null,null,11,18,6,7,11,20,14,22]
[null,"$10,000 to $14,999",12,8,79,62,162,98,10,9,1,4,5,5,0,11,10,7,7,12,44,44,0,11,9,8,12,13,30,16,16,10,null,null,null,null,null,null,null,null,null,null,null,null,null,null,null,null,null,null,null,null,null,null,null,null,null,null,null,null,null,null,null,null,null,null,null,null,41,38,7,7,9,15,41,32]
[null,"$15,000 to $19,999",17,16,69,42,191,87,14,10,6,6,10,10,10,13,6,6,3,5,45,38,10,10,5,7,45,48,9,7,16,13,null,null,null,null,null,null,null,null,null,null,null,null,null,null,null,null,null,null,null,null,null,null,null,null,null,null,null,null,null,null,null,null,null,null,null,null,207,100,11,9,29,32,42,44]
[null,"$20,000 to $24,999",13,14,48,45,138,52,7,8,17,13,20,17,0,11,10,7,37,23,26,29,12,11,12,9,75,56,19,16,25,17,null,null,null,null,null,null,null,null,null,null,null,null,null,null,null,null,null,null,null,null,null,null,null,null,null,null,null,null,null,null,null,null,null,null,null,null,215,104,9,8,43,43,85,61]
[null,"$25,000 to $34,999",34,20,228,112,247,101,28,13,29,16,43,18,58,49,28,16,30,17,137,72,75,32,11,14,98,67,72,32,36,22,null,null,null,null,null,null,null,null,null,null,null,null,null,null,null,null,null,null,null,null,null,null,null,null,null,null,null,null,null,null,null,null,null,null,null,null,249,113,22,11,143,73,192,78]
[null,"$35,000 to $49,999",42,18,351,153,492,139,68,26,22,16,36,13,98,53,33,16,52,22,258,117,90,37,38,25,114,64,85,31,55,22,null,null,null,null,null,null,null,null,null,null,null,null,null,null,null,null,null,null,null,null,null,null,null,null,null,null,null,null,null,null,null,null,null,null,null,null,398,139,40,32,98,61,241,81]
[null,"$50,000 to $74,999",63,23,396,149,832,180,101,40,38,20,52,24,192,65,40,17,77,30,472,155,105,34,119,39,155,77,120,34,96,31,null,null,null,null,null,null,null,null,null,null,null,null,null,null,null,null,null,null,null,null,null,null,null,null,null,null,null,null,null,null,null,null,null,null,null,null,570,177,28,14,345,110,497,122]
[null,"$75,000 to $99,999",42,19,266,112,614,182,102,26,39,16,31,12,162,69,64,29,66,25,343,152,100,45,70,26,145,60,59,24,72,29,null,null,null,null,null,null,null,null,null,null,null,null,null,null,null,null,null,null,null,null,null,null,null,null,null,null,null,null,null,null,null,null,null,null,null,null,387,140,37,16,442,115,531,137]
[null,"$100,000 to $149,999",19,9,191,80,464,141,135,36,55,25,28,10,303,90,35,14,69,31,317,121,262,60,113,38,314,110,102,33,63,28,null,null,null,null,null,null,null,null,null,null,null,null,null,null,null,null,null,null,null,null,null,null,null,null,null,null,null,null,null,null,null,null,null,null,null,null,462,164,58,24,687,127,1129,161]
[null,"$150,000 or more",21,12,17,27,225,90,57,27,4,5,23,18,168,56,21,15,25,20,112,59,155,46,30,18,110,50,10,7,29,15,null,null,null,null,null,null,null,null,null,null,null,null,null,null,null,null,null,null,null,null,null,null,null,null,null,null,null,null,null,null,null,null,null,null,null,null,134,106,68,26,719,143,1272,162]
[null,"Renter occupied:",73,32,464,161,1932,223,94,39,44,23,66,32,93,68,29,18,50,28,948,207,118,53,72,37,428,128,16,13,31,17,null,null,null,null,null,null,null,null,null,null,null,null,null,null,null,null,null,null,null,null,null,null,null,null,null,null,null,null,null,null,null,null,null,null,null,null,1160,200,33,30,177,114,276,108]
[null,"Less than $5,000",2,3,69,89,106,56,0,11,0,11,6,9,0,11,0,11,4,7,31,35,0,11,0,11,10,16,0,11,0,11,null,null,null,null,null,null,null,null,null,null,null,null,null,null,null,null,null,null,null,null,null,null,null,null,null,null,null,null,null,null,null,null,null,null,null,null,46,48,0,114,0,114,0,114]
[null,"$5,000 to $9,999",3,4,0,11,208,104,0,11,0,11,0,11,0,11,0,11,0,11,138,99,0,11,3,4,34,54,0,11,0,11,null,null,null,null,null,null,null,null,null,null,null,null,null,null,null,null,null,null,null,null,null,null,null,null,null,null,null,null,null,null,null,null,null,null,null,null,16,28,0,114,18,29,0,114]
[null,"$10,000 to $14,999",0,11,58,58,243,95,6,6,2,3,3,4,0,11,2,3,0,11,155,82,0,11,0,11,53,49,0,11,2,3,null,null,null,null,null,null,null,null,null,null,null,null,null,null,null,null,null,null,null,null,null,null,null,null,null,null,null,null,null,null,null,null,null,null,null,null,105,73,0,114,0,114,29,21]
[null,"$15,000 to $19,999",0,11,115,89,158,75,3,4,2,3,0,11,0,11,0,11,0,11,36,43,0,11,6,9,0,11,0,11,6,4,null,null,null,null,null,null,null,null,null,null,null,null,null,null,null,null,null,null,null,null,null,null,null,null,null,null,null,null,null,null,null,null,null,null,null,null,260,142,0,114,34,49,31,49]
[null,"$20,000 to $24,999",7,11,69,64,198,84,9,13,0,11,10,16,0,11,5,8,12,14,51,49,10,10,0,11,0,11,0,11,3,4,null,null,null,null,null,null,null,null,null,null,null,null,null,null,null,null,null,null,null,null,null,null,null,null,null,null,null,null,null,null,null,null,null,null,null,null,25,29,0,114,0,114,21,31]
[null,"$25,000 to $34,999",8,8,11,16,382,133,6,7,0,11,8,11,0,11,0,11,6,8,26,33,22,22,0,11,22,34,3,4,3,4,null,null,null,null,null,null,null,null,null,null,null,null,null,null,null,null,null,null,null,null,null,null,null,null,null,null,null,null,null,null,null,null,null,null,null,null,84,59,2,3,0,114,0,114]
[null,"$35,000 to $49,999",9,11,92,92,270,89,0,11,6,9,15,14,20,22,3,5,2,3,265,147,0,11,16,19,24,22,6,9,12,15,null,null,null,null,null,null,null,null,null,null,null,null,null,null,null,null,null,null,null,null,null,null,null,null,null,null,null,null,null,null,null,null,null,null,null,null,229,115,0,114,0,114,67,60]
[null,"$50,000 to $74,999",11,12,41,44,262,124,41,28,8,11,7,11,12,19,12,14,3,4,134,75,27,27,5,6,159,93,7,8,3,4,null,null,null,null,null,null,null,null,null,null,null,null,null,null,null,null,null,null,null,null,null,null,null,null,null,null,null,null,null,null,null,null,null,null,null,null,293,141,25,31,0,114,40,49]
[null,"$75,000 to $99,999",22,14,9,16,60,55,11,12,16,15,10,11,21,17,7,11,15,17,112,96,11,13,30,23,89,69,0,11,2,3,null,null,null,null,null,null,null,null,null,null,null,null,null,null,null,null,null,null,null,null,null,null,null,null,null,null,null,null,null,null,null,null,null,null,null,null,92,69,6,6,72,81,19,21]
[null,"$100,000 to $149,999",11,17,0,11,45,42,14,14,7,9,7,8,40,61,0,11,0,11,0,15,37,37,12,14,8,14,0,11,0,11,null,null,null,null,null,null,null,null,null,null,null,null,null,null,null,null,null,null,null,null,null,null,null,null,null,null,null,null,null,null,null,null,null,null,null,null,10,17,0,114,53,51,20,24]
[null,"$150,000 or more",0,11,0,11,0,17,4,6,3,5,0,11,0,11,0,11,8,12,0,15,11,11,0,11,29,45,0,11,0,11,null,null,null,null,null,null,null,null,null,null,null,null,null,null,null,null,null,null,null,null,null,null,null,null,null,null,null,null,null,null,null,null,null,null,null,null,0,114,0,114,0,114,49,50]
[]
[]
[]
[]
[]
[null,"Calculated B25118. TENURE BY HOUSEHOLD INCOME IN THE PAST 12 MONTHS (IN 2014 INFLATION-ADJUSTED DOLLARS) "]
[null,"Universe:  OCCUPIED HOUSING UNITS"]
[null,"Data Set: 2010-2014 American Community Survey 5-Year Estimates"]
[null,null,"Acworth",null,"Charlestown",null,"Claremont",null,"Cornish",null,"Croydon",null,"Goshen",null,"Grantham",null,"Langdon",null,"Lempster",null,"Newport",null,"Plainfield",null,"Springfield",null,"Sunapee",null,"Unity",null,"Washington"]
[null,null,"Estimate","Margin Of Error","Estimate","Margin Of Error","Estimate","Margin Of Error","Estimate","Margin Of Error","Estimate","Margin Of Error","Estimate","Margin Of Error","Estimate","Margin Of Error","Estimate","Margin Of Error","Estimate","Margin Of Error","Estimate","Margin Of Error","Estimate","Margin Of Error","Estimate","Margin Of Error","Estimate","Margin Of Error","Estimate","Margin Of Error","Estimate","Margin Of Error",null,null,null,null,null,null,null,null,null,null,null,null,null,null,null,null,null,null,null,null,null,null,null,null,null,null,null,null,null,null,null,null,null,null,null,null,"Estimate","Margin Of Error","Estimate","Margin Of Error","Estimate","Margin Of Error","Estimate","Margin Of Error"]
[null,"Total:",347,44,2185,131,5418,242,644,62,257,42,320,42,1084,82,284,42,425,55,2806,190,933,81,482,69,1496,87,529,62,449,64]
[null,"Less than $5,000",4,4.2426406871192848,96,93.920178875468508,188,84.291162051546067,12,14.866068747318506,2,12.529964086141668,12,12.041594578792296,0,15.556349186104045,8,14.212670403551895,7,8.0622577482985491,55,51.662365412357957,6,14.212670403551895,0,15.556349186104045,10,19.416487838947599,3,11.704699910719626,96,31]
[null,"$5,000 to $9,999",12,11.704699910719626,49,45.354161881794269,247,107.20074626605917,16,16.278820596099706,0,15.556349186104045,0,15.556349186104045,0,15.556349186104045,0,15.556349186104045,6,14.866068747318506,218,123.00406497347964,0,15.556349186104045,6,6.4031242374328485,34,55.108982933819419,4,12.529964086141668,72,29]
[null,"$10,000 to $14,999",12,13.601470508735444,137,84.899941107164494,405,136.48809471891678,16,10.816653826391969,3,5,8,6.4031242374328485,0,15.556349186104045,12,7.6157731058639087,7,16.278820596099706,199,93.059120993054734,0,15.556349186104045,9,13.601470508735444,65,50.695167422546305,30,19.416487838947599,92,31.76476034853718]
[null,"$15,000 to $19,999",17,19.416487838947599,184,98.412397592986224,349,114.86513831445988,17,10.770329614269007,8,6.7082039324993694,10,14.866068747318506,10,17.029386365926403,6,12.529964086141668,3,12.083045973594572,81,57.384666941614292,10,14.866068747318506,11,11.401754250991379,45,49.244289008980523,9,13.038404810405298,31,20.248456731316587]
[null,"$20,000 to $24,999",20,17.804493814764857,117,78.236819976274603,336,98.792712281827747,16,15.264337522473747,17,17.029386365926403,30,23.345235059857504,0,15.556349186104045,15,10.63014581273465,49,26.92582403567252,77,56.938563381947034,22,14.866068747318506,12,14.212670403551895,75,57.070132293521098,19,19.416487838947599,8,12.083045973594572]
[null,"$25,000 to $34,999",42,21.540659228538015,239,113.13708498984761,629,167.00299398513789,34,14.7648230602334,29,19.416487838947599,51,21.095023109728988,58,50.219518117958877,28,19.416487838947599,36,18.788294228055936,163,79.202272694664515,97,38.832975677895199,11,17.804493814764857,120,75.133215025047349,75,32.249030993194197,6,5.6568542494923806]
[null,"$35,000 to $49,999",51,21.095023109728988,443,178.53010950537168,762,165.05150711217394,68,28.231188426986208,28,18.357559750685819,51,19.104973174542799,118,57.384666941614292,36,16.763054614240211,54,22.203603311174518,523,187.87761974221411,90,38.600518131237564,54,31.400636936215164,138,67.675697262754525,91,32.280024783137947,12,15]
[null,"$50,000 to $74,999",74,25.942243542145693,437,155.36087023443193,1094,218.577217477028,142,48.826222462934808,46,22.825424421026653,59,26.40075756488817,204,67.720011813348052,52,22.022715545545239,80,30.265491900843113,606,172.19175357722565,132,43.416586692184822,124,39.45883931389772,314,120.7393887677091,127,34.928498393145958,5,5]
[null,"$75,000 to $99,999",64,23.600847442411894,275,113.13708498984761,674,190.12890364171355,113,28.635642126552707,55,21.931712199461309,41,16.278820596099706,183,71.06335201775947,71,31.016124838541646,81,30.232432915661949,455,179.77764043395385,111,46.840153714521477,100,34.713109915419565,234,91.438503924769023,59,26.40075756488817,0,11]
[null,"$100,000 to $149,999",30,19.235384061671343,191,80.752708932889675,509,147.12239802287073,149,38.626415831655933,62,26.570660511172846,35,12.806248474865697,343,108.72442227944924,35,17.804493814764857,69,32.893768406797051,317,121.92620719107111,299,70.49113419430843,125,40.496913462633174,322,110.8873302050329,102,34.785054261852174,0,11]
[null,"$150,000 or more",21,16.278820596099706,17,29.154759474226502,225,91.591484320323147,61,27.658633371878661,7,7.0710678118654755,23,21.095023109728988,168,57.070132293521098,21,18.601075237738275,33,23.323807579381203,112,60.876925020897694,166,47.296934361541872,30,21.095023109728988,139,67.268120235368556,10,13.038404810405298,29,18.601075237738275]
[]
[]
[]
[]
[]
[]
[]
[]
[]
[]
[]
[]
[]
[]
[]
[]
[null,"B25118. TENURE BY HOUSEHOLD INCOME IN THE PAST 12 MONTHS (IN 2009 INFLATION-ADJUSTED DOLLARS) "]
[null,"Universe:  OCCUPIED HOUSING UNITS"]
[null,"Data Set: 2005-2009 American Community Survey 5-Year Estimates"]
[]
[null,null,"Acworth",null,"Charlestown",null,"Claremont",null,"Cornish",null,"Croydon",null,"Goshen",null,"Grantham",null,"Langdon",null,"Lempster",null,"Newport",null,"Plainfield",null,"Springfield",null,"Sunapee",null,"Unity",null,"Washington"]
[null,null,"Estimate","Margin Of Error","Estimate","Margin Of Error","Estimate","Margin Of Error","Estimate","Margin Of Error","Estimate","Margin Of Error","Estimate","Margin Of Error","Estimate","Margin Of Error","Estimate","Margin Of Error","Estimate","Margin Of Error","Estimate","Margin Of Error","Estimate","Margin Of Error","Estimate","Margin Of Error","Estimate","Margin Of Error","Estimate","Margin Of Error","Estimate","Margin Of Error"]
[null,"Total:",343,60,2138,130,5799,248,676,72,335,54,402,60,1016,69,222,59,468,57,2562,192,946,97,335,56,1422,128,648,87,527,62,null,null,null,null,null,null,null,null,null,null,null,null,null,null,null,null,null,null,null,null,null,null,null,null,null,null,null,null,null,null,null,null,null,null,null,null,3846,231,321,42,2717,107,4364,175]
[null,"Owner occupied:",300,54,1686,144,3164,254,588,66,281,45,330,57,921,71,212,58,394,54,1706,182,868,90,316,56,978,136,537,82,510,62,null,null,null,null,null,null,null,null,null,null,null,null,null,null,null,null,null,null,null,null,null,null,null,null,null,null,null,null,null,null,null,null,null,null,null,null,2686,223,288,36,2540,143,4088,189]
[null,"Less than $5,000",3,4,29,33,24,28,4,6,5,8,0,114,27,32,10,15,3,6,0,114,14,21,16,19,10,17,21,19,12,10,null,null,null,null,null,null,null,null,null,null,null,null,null,null,null,null,null,null,null,null,null,null,null,null,null,null,null,null,null,null,null,null,null,null,null,null,12,18,2,5,14,23,44,55]
[null,"$5,000 to $9,999",6,9,9,15,38,39,5,8,0,114,7,7,0,114,0,114,4,7,85,75,0,114,4,7,0,114,7,9,0,114,null,null,null,null,null,null,null,null,null,null,null,null,null,null,null,null,null,null,null,null,null,null,null,null,null,null,null,null,null,null,null,null,null,null,null,null,11,18,6,7,11,20,14,22]
[null,"$10,000 to $14,999",31,22,59,61,145,81,12,17,20,17,18,16,33,30,9,11,32,24,104,59,9,15,8,13,20,22,8,9,34,21,null,null,null,null,null,null,null,null,null,null,null,null,null,null,null,null,null,null,null,null,null,null,null,null,null,null,null,null,null,null,null,null,null,null,null,null,41,38,7,7,9,15,41,32]
[null,"$15,000 to $19,999",5,8,92,64,138,60,13,10,8,9,13,14,6,9,5,8,26,17,61,52,6,10,8,9,34,44,12,11,29,20,null,null,null,null,null,null,null,null,null,null,null,null,null,null,null,null,null,null,null,null,null,null,null,null,null,null,null,null,null,null,null,null,null,null,null,null,207,100,11,9,29,32,42,44]
[null,"$20,000 to $24,999",26,19,86,57,32,29,39,25,6,6,10,9,29,23,4,7,17,10,14,22,19,13,14,14,60,67,25,24,23,19,null,null,null,null,null,null,null,null,null,null,null,null,null,null,null,null,null,null,null,null,null,null,null,null,null,null,null,null,null,null,null,null,null,null,null,null,215,104,9,8,43,43,85,61]
[null,"$25,000 to $34,999",8,9,139,70,461,131,73,33,45,29,34,23,77,43,15,18,36,16,214,89,64,33,24,19,59,39,58,38,72,26,null,null,null,null,null,null,null,null,null,null,null,null,null,null,null,null,null,null,null,null,null,null,null,null,null,null,null,null,null,null,null,null,null,null,null,null,249,113,22,11,143,73,192,78]
[null,"$35,000 to $49,999",95,48,278,118,597,185,56,25,39,24,100,38,90,44,32,27,37,17,223,95,131,53,38,18,76,42,40,25,81,37,null,null,null,null,null,null,null,null,null,null,null,null,null,null,null,null,null,null,null,null,null,null,null,null,null,null,null,null,null,null,null,null,null,null,null,null,398,139,40,32,98,61,241,81]
[null,"$50,000 to $74,999",67,30,477,131,755,177,104,33,55,22,75,32,133,60,39,22,125,40,532,135,191,65,37,19,291,86,165,52,130,38,null,null,null,null,null,null,null,null,null,null,null,null,null,null,null,null,null,null,null,null,null,null,null,null,null,null,null,null,null,null,null,null,null,null,null,null,570,177,28,14,345,110,497,122]
[null,"$75,000 to $99,999",26,15,343,102,571,143,78,33,52,23,48,27,161,58,39,25,53,22,265,90,100,48,81,24,158,61,119,46,29,19,null,null,null,null,null,null,null,null,null,null,null,null,null,null,null,null,null,null,null,null,null,null,null,null,null,null,null,null,null,null,null,null,null,null,null,null,387,140,37,16,442,115,531,137]
[null,"$100,000 to $149,999",22,18,159,102,266,99,139,49,48,24,19,17,275,69,43,28,48,26,187,102,216,68,64,32,108,68,73,35,54,22,null,null,null,null,null,null,null,null,null,null,null,null,null,null,null,null,null,null,null,null,null,null,null,null,null,null,null,null,null,null,null,null,null,null,null,null,462,164,58,24,687,127,1129,161]
[null,"$150,000 or more",11,11,15,26,137,90,65,29,3,5,6,8,90,34,16,17,13,13,21,25,118,51,22,17,162,79,9,14,46,23,null,null,null,null,null,null,null,null,null,null,null,null,null,null,null,null,null,null,null,null,null,null,null,null,null,null,null,null,null,null,null,null,null,null,null,null,134,106,68,26,719,143,1272,162]
[null,"Renter occupied:",43,31,452,134,2635,251,88,36,54,36,72,40,95,52,10,16,74,29,856,193,78,46,19,18,444,119,111,44,17,12,null,null,null,null,null,null,null,null,null,null,null,null,null,null,null,null,null,null,null,null,null,null,null,null,null,null,null,null,null,null,null,null,null,null,null,null,1160,200,33,30,177,114,276,108]
[null,"Less than $5,000",0,114,29,47,137,79,5,8,0,114,0,114,0,114,0,114,0,114,13,20,0,114,0,114,55,54,11,18,0,114,null,null,null,null,null,null,null,null,null,null,null,null,null,null,null,null,null,null,null,null,null,null,null,null,null,null,null,null,null,null,null,null,null,null,null,null,46,48,0,114,0,114,0,114]
[null,"$5,000 to $9,999",0,114,16,25,359,126,6,10,3,6,0,114,0,114,0,114,0,114,116,113,0,114,0,114,0,114,11,17,2,4,null,null,null,null,null,null,null,null,null,null,null,null,null,null,null,null,null,null,null,null,null,null,null,null,null,null,null,null,null,null,null,null,null,null,null,null,16,28,0,114,18,29,0,114]
[null,"$10,000 to $14,999",0,114,48,41,395,134,5,7,10,17,0,114,0,114,0,114,4,6,157,88,6,9,0,114,26,41,4,7,0,114,null,null,null,null,null,null,null,null,null,null,null,null,null,null,null,null,null,null,null,null,null,null,null,null,null,null,null,null,null,null,null,null,null,null,null,null,105,73,0,114,0,114,29,21]
[null,"$15,000 to $19,999",0,114,18,28,172,75,0,114,0,114,26,24,0,114,0,114,0,114,123,70,24,30,0,114,18,21,10,15,2,3,null,null,null,null,null,null,null,null,null,null,null,null,null,null,null,null,null,null,null,null,null,null,null,null,null,null,null,null,null,null,null,null,null,null,null,null,260,142,0,114,34,49,31,49]
[null,"$20,000 to $24,999",12,15,32,40,234,99,5,8,0,114,0,114,0,114,0,114,0,114,79,111,0,114,0,114,49,60,13,16,3,5,null,null,null,null,null,null,null,null,null,null,null,null,null,null,null,null,null,null,null,null,null,null,null,null,null,null,null,null,null,null,null,null,null,null,null,null,25,29,0,114,0,114,21,31]
[null,"$25,000 to $34,999",9,15,95,73,460,188,0,114,4,6,3,4,20,29,10,16,8,8,21,35,7,12,3,6,26,24,12,12,4,6,null,null,null,null,null,null,null,null,null,null,null,null,null,null,null,null,null,null,null,null,null,null,null,null,null,null,null,null,null,null,null,null,null,null,null,null,84,59,2,3,0,114,0,114]
[null,"$35,000 to $49,999",10,12,64,67,425,163,30,21,20,22,7,7,7,11,0,114,29,20,153,95,9,15,3,6,165,92,37,34,0,114,null,null,null,null,null,null,null,null,null,null,null,null,null,null,null,null,null,null,null,null,null,null,null,null,null,null,null,null,null,null,null,null,null,null,null,null,229,115,0,114,0,114,67,60]
[null,"$50,000 to $74,999",12,18,71,70,310,136,21,23,10,13,23,25,7,11,0,114,23,24,183,101,12,16,9,12,35,43,5,9,6,8,null,null,null,null,null,null,null,null,null,null,null,null,null,null,null,null,null,null,null,null,null,null,null,null,null,null,null,null,null,null,null,null,null,null,null,null,293,141,25,31,0,114,40,49]
[null,"$75,000 to $99,999",0,114,49,51,93,66,13,20,7,12,13,19,16,17,0,114,10,11,11,19,9,14,4,6,24,40,8,12,0,114,null,null,null,null,null,null,null,null,null,null,null,null,null,null,null,null,null,null,null,null,null,null,null,null,null,null,null,null,null,null,null,null,null,null,null,null,92,69,6,6,72,81,19,21]
[null,"$100,000 to $149,999",0,114,30,26,26,28,3,5,0,114,0,114,45,39,0,114,0,114,0,114,11,16,0,114,0,114,0,114,0,114,null,null,null,null,null,null,null,null,null,null,null,null,null,null,null,null,null,null,null,null,null,null,null,null,null,null,null,null,null,null,null,null,null,null,null,null,10,17,0,114,53,51,20,24]
[null,"$150,000 or more",0,114,0,114,24,27,0,114,0,114,0,114,0,114,0,114,0,114,0,114,0,114,0,114,46,46,0,114,0,114,null,null,null,null,null,null,null,null,null,null,null,null,null,null,null,null,null,null,null,null,null,null,null,null,null,null,null,null,null,null,null,null,null,null,null,null,0,114,0,114,0,114,49,50]
[]
[]
[]
[]
[]
[null,"Calculated B25118. TENURE BY HOUSEHOLD INCOME IN THE PAST 12 MONTHS (IN 2009 INFLATION-ADJUSTED DOLLARS) "]
[null,"Universe:  OCCUPIED HOUSING UNITS"]
[null,"Data Set: 2005-2009 American Community Survey 5-Year Estimates"]
[null,null,"Acworth",null,"Charlestown",null,"Claremont",null,"Cornish",null,"Croydon",null,"Goshen",null,"Grantham",null,"Langdon",null,"Lempster",null,"Newport",null,"Plainfield",null,"Springfield",null,"Sunapee",null,"Unity",null,"Washington"]
[null,null,"Estimate","Margin Of Error","Estimate","Margin Of Error","Estimate","Margin Of Error","Estimate","Margin Of Error","Estimate","Margin Of Error","Estimate","Margin Of Error","Estimate","Margin Of Error","Estimate","Margin Of Error","Estimate","Margin Of Error","Estimate","Margin Of Error","Estimate","Margin Of Error","Estimate","Margin Of Error","Estimate","Margin Of Error","Estimate","Margin Of Error","Estimate","Margin Of Error"]
[null,"Total:",343,60,2138,130,5799,248,676,72,335,54,402,60,1016,69,222,59,468,57,2562,192,946,97,335,56,1422,128,648,87,527,62]
[null,"Less than $5,000",3,114.0701538527936,58,57.428216061444921,161,83.815273071201048,9,10,5,114.28035701729323,0,161.22034611053283,27,118.40608092492548,10,114.9826073804208,3,114.15778554264269,13,115.7410903698423,14,115.91807451816995,16,115.57248807566617,65,56.612719418872643,32,26.172504656604801,130,38]
[null,"$5,000 to $9,999",6,114.35471131527551,25,29.154759474226502,397,131.89768762188365,11,12.806248474865697,3,114.15778554264269,7,114.21471008587291,0,161.22034611053283,0,161.22034611053283,4,114.21471008587291,201,135.6244815658294,0,161.22034611053283,4,114.21471008587291,0,161.22034611053283,18,19.235384061671343,29,19]
[null,"$10,000 to $14,999",31,116.10340218959993,107,73.498299300051841,540,156.57905351610731,17,18.384776310850235,30,24.041630560342615,18,115.11733144926528,33,117.881296226331,9,114.52947218947619,36,24.738633753705962,261,105.94810050208545,15,17.4928556845359,8,114.73883387938018,46,46.529560496527367,12,11.401754250991379,100,31.827660925679098]
[null,"$15,000 to $19,999",5,114.28035701729323,110,69.856996786291916,310,96.046863561492728,13,114.43775600735974,8,114.35471131527551,39,27.784887978899608,6,114.35471131527551,5,114.28035701729323,26,115.26057435220423,184,87.200917426366559,30,31.622776601683793,8,114.35471131527551,52,48.754486972995622,22,18.601075237738275,17,114.62983904725679]
[null,"$20,000 to $24,999",38,24.207436873820409,118,69.634761434214738,266,103.16006979447037,44,26.248809496813376,6,114.15778554264269,10,114.35471131527551,29,116.29703349613007,4,114.21471008587291,17,114.43775600735974,93,113.1591799192624,19,114.73883387938018,14,114.85643212288984,109,89.938868127189593,38,28.844410203711913,4,114.10959644131601]
[null,"$25,000 to $34,999",17,17.4928556845359,234,101.13851887386922,921,229.13969538253298,73,118.68024266911489,49,29.614185789921695,37,23.345235059857504,97,51.86520991955976,25,24.083189157584592,44,17.888543819998318,235,95.634721728041853,71,35.114099732158877,27,19.924858845171276,85,45.793012567421243,70,39.849717690342551,7,7.810249675906654]
[null,"$35,000 to $49,999",105,49.477267507411923,342,135.69450983735487,1022,246.56439321199645,86,32.649655434629018,59,32.557641192199412,107,38.639358172723313,97,45.354161881794269,32,117.15374513859982,66,26.248809496813376,376,134.35028842544403,140,55.081757415681643,41,18.973665961010276,241,101.13357503816425,77,42.201895692018383,0,114]
[null,"$50,000 to $74,999",79,34.985711369071801,548,148.52945835759317,1065,223.21514285549716,125,40.224370722237531,65,25.553864678361276,98,40.607881008493905,140,61,39,116.10340218959993,148,46.647615158762406,715,168.60011862392031,203,66.940271884718243,46,22.472205054244231,326,96.150923032490951,170,52.773099207835045,6,114.28035701729323]
[null,"$75,000 to $99,999",26,114.9826073804208,392,114.03946685248927,664,157.49603169603989,91,38.587562763149478,59,25.942243542145693,61,33.015148038438355,177,60.440052945046304,39,116.70903992407786,63,24.596747752497688,276,91.983694207180008,109,50,85,24.738633753705962,182,72.945184899347538,127,47.539457296018853,0,114]
[null,"$100,000 to $149,999",22,115.41230437002807,189,105.26157893552613,292,102.88342918079665,142,49.254441424099006,48,116.49892703368559,19,115.26057435220423,320,79.259068881737434,43,117.38824472663352,48,116.92732785794773,187,152.97058540778355,227,69.856996786291916,64,118.40608092492548,108,132.74034804836094,73,119.25183436744275,0,114]
[null,"$150,000 or more",11,114.52947218947619,15,116.92732785794773,161,93.962758580194958,65,117.63077828527702,3,114.10959644131601,6,114.28035701729323,90,118.96217886370441,16,115.26057435220423,13,114.73883387938018,21,116.70903992407786,118,124.88794977899188,22,115.26057435220423,208,91.4166286842826,9,114.85643212288984,46,116.29703349613007]

{"sheet":"ACS_TableB19101_ACS_Tbl_B19113","index":63,"n_rows":130,"n_cols":32,"rows_kept":130,"cut":false,"hidden":true,"merged":[]}
[null,"B19101. FAMILY INCOME IN THE PAST 12 MONTHS (IN 2019 INFLATION-ADJUSTED DOLLARS)"]
[null,"Universe:  FAMILIES"]
[null,"Data Set: 2015-2019 American Community Survey 5-Year Estimates"]
[]
[null,null,"Acworth",null,"Charlestown",null,"Claremont",null,"Cornish",null,"Croydon",null,"Goshen",null,"Grantham",null,"Langdon",null,"Lempster",null,"Newport",null,"Plainfield",null,"Springfield",null,"Sunapee",null,"Unity",null,"Washington"]
[null,null,"Estimate","Margin Of Error","Estimate","Margin Of Error","Estimate","Margin Of Error","Estimate","Margin Of Error","Estimate","Margin Of Error","Estimate","Margin Of Error","Estimate","Margin Of Error","Estimate","Margin Of Error","Estimate","Margin Of Error","Estimate","Margin Of Error","Estimate","Margin Of Error","Estimate","Margin Of Error","Estimate","Margin Of Error","Estimate","Margin Of Error","Estimate","Margin Of Error"]
[null,"Total",255,43,1379,163,3165,231,526,72,187,46,163,36,902,98,190,38,240,47,1572,151,715,79,337,66,901,90,406,48,419,78]
[null,"Less than $10,000",9,12,51,54,132,84,4,7,12,15,2,3,0,11,3,4,3,5,102,84,36,29,0,11,56,53,0,11,6,6]
[null,"$10,000 to $14,999",0,11,16,26,88,67,4,6,0,11,2,3,0,11,2,3,9,14,0,16,0,11,3,5,11,17,7,7,0,11]
[null,"$15,000 to $19,999",2,3,33,38,73,80,0,11,0,11,6,6,31,43,2,3,0,11,51,63,0,11,7,13,0,11,15,18,6,6]
[null,"$20,000 to $24,999",2,3,0,16,155,97,4,6,2,4,2,3,0,11,7,11,8,7,26,30,10,11,6,9,7,16,6,6,17,17]
[null,"$25,000 to $29,999",5,5,124,92,178,105,15,19,3,5,10,10,43,50,12,9,0,11,114,96,53,38,8,8,17,18,26,18,13,10]
[null,"$30,000 to $34,999",8,8,45,67,205,98,23,22,3,5,0,11,0,11,2,3,7,8,76,62,5,8,14,17,35,31,14,9,3,4]
[null,"$35,000 to $39,999",2,3,77,64,44,41,28,23,3,4,9,11,0,11,9,11,10,7,64,43,0,11,6,7,0,11,6,5,16,15]
[null,"$40,000 to $44,999",19,17,103,87,177,91,12,8,4,5,4,5,0,11,0,11,12,14,48,61,18,13,3,5,0,11,11,8,24,21]
[null,"$45,000 to $49,999",14,12,39,44,232,100,18,12,7,7,13,12,0,11,5,5,20,17,64,48,31,28,0,11,39,29,23,11,21,17]
[null,"$50,000 to $59,999",12,11,253,121,302,114,29,21,16,12,19,16,26,28,19,15,2,3,235,117,41,31,14,16,48,36,17,10,40,22]
[null,"$60,000 to $74,999",37,22,117,69,219,72,35,24,14,10,19,12,96,64,13,11,33,23,135,89,64,36,49,32,92,52,52,20,38,22]
[null,"$75,000 to $99,999",57,29,323,146,722,187,79,32,40,19,36,16,112,55,31,16,50,18,285,134,154,41,143,53,177,73,95,34,52,26]
[null,"$100,000 to $124,999",30,18,73,61,294,114,88,30,42,25,11,12,140,67,29,13,50,29,54,39,72,34,41,29,146,80,61,30,41,20]
[null,"$125,000 to $149,999",28,15,35,35,132,69,73,27,14,14,16,13,232,116,21,12,11,10,117,78,87,42,23,19,109,65,43,25,57,35]
[null,"$150,000 to $199,999",16,13,23,29,157,80,50,21,21,20,12,11,163,107,18,13,14,22,155,85,65,34,11,9,83,43,22,10,26,19]
[null,"$200,000 or more",14,11,67,60,55,44,64,29,6,7,2,4,59,48,17,16,11,14,46,38,79,27,9,9,81,42,8,7,59,59]
[]
[]
[null,"B19113. MEDIAN FAMILY INCOME IN THE PAST 12 MONTHS (IN 2019 INFLATION-ADJUSTED DOLLARS)"]
[null,"Universe:  FAMILIES"]
[null,"Data Set: 2015-2019 American Community Survey 5-Year Estimates"]
[]
[null,null,"Acworth",null,"Charlestown",null,"Claremont",null,"Cornish",null,"Croydon",null,"Goshen",null,"Grantham",null,"Langdon",null,"Lempster",null,"Newport",null,"Plainfield",null,"Springfield",null,"Sunapee",null,"Unity",null,"Washington"]
[null,null,"Estimate","Margin Of Error","Estimate","Margin Of Error","Estimate","Margin Of Error","Estimate","Margin Of Error","Estimate","Margin Of Error","Estimate","Margin Of Error","Estimate","Margin Of Error","Estimate","Margin Of Error","Estimate","Margin Of Error","Estimate","Margin Of Error","Estimate","Margin Of Error","Estimate","Margin Of Error","Estimate","Margin Of Error","Estimate","Margin Of Error","Estimate","Margin Of Error"]
[null,"Median family income in the past 12 months",82031,10238,56853,7095,59924,10063,104167,8949,92750,18419,70250,13304,125313,26710,92000,13847,79333,8904,61071,10387,91550,7553,89196,11665,94198,10812,84792,8738,88942,24832]
[]
[]
[]
[]
[]
[]
[]
[]
[]
[]
[]
[]
[]
[]
[]
[]
[]
[null,"B19101. FAMILY INCOME IN THE PAST 12 MONTHS (IN 2014 INFLATION-ADJUSTED DOLLARS)"]
[null,"Universe:  FAMILIES"]
[null,"Data Set: 2010-2014 American Community Survey 5-Year Estimates"]
[]
[null,null,"Acworth",null,"Charlestown",null,"Claremont",null,"Cornish",null,"Croydon",null,"Goshen",null,"Grantham",null,"Langdon",null,"Lempster",null,"Newport",null,"Plainfield",null,"Springfield",null,"Sunapee",null,"Unity",null,"Washington"]
[null,null,"Estimate","Margin Of Error","Estimate","Margin Of Error","Estimate","Margin Of Error","Estimate","Margin Of Error","Estimate","Margin Of Error","Estimate","Margin Of Error","Estimate","Margin Of Error","Estimate","Margin Of Error","Estimate","Margin Of Error","Estimate","Margin Of Error","Estimate","Margin Of Error","Estimate","Margin Of Error","Estimate","Margin Of Error","Estimate","Margin Of Error","Estimate","Margin Of Error"]
[null,null,254,44,1459,112,3318,212,453,63,190,37,211,36,887,77,224,41,317,56,1785,164,676,68,379,57,962,108,375,49,338,53]
[null,"Less than $10,000",14,12,143,100,133,87,6,7,0,11,12,12,0,11,8,9,8,11,74,69,0,11,0,11,10,16,0,11,10,13]
[null,"$10,000 to $14,999",4,6,13,21,126,93,10,9,3,4,3,4,0,11,0,11,0,11,53,49,0,11,3,4,6,9,9,7,6,6]
[null,"$15,000 to $19,999",3,4,99,77,122,69,0,11,6,6,5,8,10,13,2,3,6,6,26,40,10,10,3,4,0,11,0,11,11,12]
[null,"$20,000 to $24,999",10,12,23,29,129,78,3,4,16,13,23,19,0,11,7,6,25,19,89,59,18,14,9,9,6,9,10,9,21,16]
[null,"$25,000 to $29,999",8,10,53,40,172,80,11,9,6,6,10,7,10,11,4,4,22,20,47,37,9,10,8,13,26,40,27,19,16,15]
[null,"$30,000 to $34,999",19,17,75,69,250,103,19,13,15,13,19,17,0,11,20,15,9,8,89,59,6,7,3,4,43,48,3,5,6,6]
[null,"$35,000 to $39,999",18,15,158,114,193,72,2,5,6,7,9,7,45,41,12,12,3,4,101,70,56,36,11,12,30,35,13,12,33,17]
[null,"$40,000 to $44,999",10,8,128,86,174,65,51,32,3,7,8,7,35,31,9,6,22,16,38,36,10,11,0,11,7,12,19,14,2,4]
[null,"$45,000 to $49,999",6,8,7,13,119,62,6,6,10,11,6,6,22,14,10,9,12,13,133,93,4,7,11,13,23,23,34,21,10,11]
[null,"$50,000 to $59,999",39,21,77,59,397,140,21,14,8,8,29,17,66,47,7,6,27,19,186,106,11,10,37,21,88,60,39,23,44,28]
[null,"$60,000 to $74,999",32,19,240,108,368,132,71,30,24,17,16,9,117,41,33,17,33,14,243,108,123,45,66,27,120,73,61,25,40,19]
[null,"$75,000 to $99,999",54,22,258,112,555,168,86,26,42,20,28,15,142,67,56,28,64,26,328,142,75,28,86,30,156,60,56,24,71,34]
[null,"$100,000 to $124,999",14,9,86,52,283,114,64,27,40,23,16,9,193,85,26,13,45,21,142,77,132,51,42,20,156,64,75,28,26,17]
[null,"$125,000 to $149,999",2,4,82,77,117,56,53,22,9,8,10,9,92,53,9,7,12,16,124,70,91,38,70,33,152,80,19,13,21,13]
[null,"$150,000 to $199,999",8,11,17,27,119,83,40,24,0,11,15,15,49,35,6,7,9,6,55,41,71,28,16,14,48,51,7,6,13,10]
[null,"$200,000 or more",13,8,0,11,61,42,10,8,2,4,2,3,106,50,15,13,20,22,57,47,60,25,14,10,91,45,3,4,8,7]
[]
[]
[null,"B19113. MEDIAN FAMILY INCOME IN THE PAST 12 MONTHS (IN 2014 INFLATION-ADJUSTED DOLLARS)"]
[null,"Universe:  FAMILIES"]
[null,"Data Set: 2010-2014 American Community Survey 5-Year Estimates"]
[]
[null,null,"Acworth",null,"Charlestown",null,"Claremont",null,"Cornish",null,"Croydon",null,"Goshen",null,"Grantham",null,"Langdon",null,"Lempster",null,"Newport",null,"Plainfield",null,"Springfield",null,"Sunapee",null,"Unity",null,"Washington"]
[null,null,"Estimate","Margin Of Error","Estimate","Margin Of Error","Estimate","Margin Of Error","Estimate","Margin Of Error","Estimate","Margin Of Error","Estimate","Margin Of Error","Estimate","Margin Of Error","Estimate","Margin Of Error","Estimate","Margin Of Error","Estimate","Margin Of Error","Estimate","Margin Of Error","Estimate","Margin Of Error","Estimate","Margin Of Error","Estimate","Margin Of Error","Estimate","Margin Of Error"]
[null,"Median family income in the past 12 months",58889,10777,51386,14601,54408,4569,82917,8238,71250,22833,54250,7391,99688,16146,75000,17195,66635,21294,62585,7289,100870,10827,82917,10635,96098,14523,66181,5113,62500,17073]
[]
[]
[]
[]
[]
[]
[]
[]
[]
[]
[]
[]
[]
[]
[]
[]
[]
[null,"B19101. FAMILY INCOME IN THE PAST 12 MONTHS (IN 2009 INFLATION-ADJUSTED DOLLARS)"]
[null,"Universe:  FAMILIES"]
[null,"Data Set: 2005-2009 American Community Survey 5-Year Estimates"]
[]
[null,null,"Acworth",null,"Charlestown",null,"Claremont",null,"Cornish",null,"Croydon",null,"Goshen",null,"Grantham",null,"Langdon",null,"Lempster",null,"Newport",null,"Plainfield",null,"Springfield",null,"Sunapee",null,"Unity",null,"Washington"]
[null,null,"Estimate","Margin Of Error","Estimate","Margin Of Error","Estimate","Margin Of Error","Estimate","Margin Of Error","Estimate","Margin Of Error","Estimate","Margin Of Error","Estimate","Margin Of Error","Estimate","Margin Of Error","Estimate","Margin Of Error","Estimate","Margin Of Error","Estimate","Margin Of Error","Estimate","Margin Of Error","Estimate","Margin Of Error","Estimate","Margin Of Error","Estimate","Margin Of Error"]
[null,null,249,55,1469,131,3492,252,535,72,244,46,270,58,796,58,170,56,325,55,1699,141,796,89,250,48,935,85,455,77,404,58]
[null,"Less than $10,000",0,114,43,52,214,99,4,6,5,8,0,114,27,32,0,114,18,15,128,101,14,21,20,18,11,17,41,35,3,5]
[null,"$10,000 to $14,999",19,17,11,17,111,78,11,17,16,18,7,8,0,114,0,114,3,5,12,19,29,32,0,114,38,45,3,5,12,15]
[null,"$15,000 to $19,999",5,8,51,52,121,62,4,6,4,6,19,17,6,9,5,8,16,17,136,85,6,10,8,9,19,20,15,13,5,6]
[null,"$20,000 to $24,999",9,10,54,46,155,99,17,17,6,6,6,6,23,21,0,114,13,8,0,114,12,15,5,7,31,38,2,5,6,7]
[null,"$25,000 to $29,999",0,114,46,43,241,95,39,28,5,7,6,6,7,10,15,18,8,8,93,55,32,24,5,5,0,114,44,32,41,23]
[null,"$30,000 to $34,999",8,9,75,58,265,123,25,23,34,27,20,20,24,24,0,114,17,11,112,68,15,16,0,114,9,13,5,7,24,14]
[null,"$35,000 to $39,999",3,4,88,72,218,114,18,15,11,10,21,18,24,23,17,22,19,15,62,62,46,37,2,4,31,37,36,28,25,22]
[null,"$40,000 to $44,999",55,46,59,48,141,78,16,16,13,15,31,19,22,26,18,19,15,11,69,55,21,17,6,9,44,47,22,17,28,25]
[null,"$45,000 to $49,999",35,23,126,88,256,103,13,13,3,5,29,20,24,21,0,114,6,6,84,70,51,29,8,7,25,22,0,114,26,17]
[null,"$50,000 to $59,999",31,20,165,95,263,124,38,23,9,10,35,20,13,13,22,17,41,21,303,118,61,34,10,12,141,68,41,25,49,30]
[null,"$60,000 to $74,999",35,27,251,107,548,164,73,25,36,17,36,20,91,56,9,10,57,35,266,97,113,44,29,16,123,59,93,42,66,22]
[null,"$75,000 to $99,999",21,13,313,92,554,147,87,37,51,23,41,26,164,62,30,22,54,22,255,92,100,48,82,25,171,70,91,34,29,19]
[null,"$100,000 to $124,999",8,9,144,98,175,82,66,29,36,25,19,17,174,57,33,26,34,22,99,82,130,55,25,21,46,43,33,26,32,20]
[null,"$125,000 to $149,999",14,16,28,32,105,71,63,39,12,11,0,114,107,46,5,9,14,16,59,55,63,34,28,22,54,51,29,23,22,13]
[null,"$150,000 to $199,999",6,8,15,26,68,55,31,18,3,5,0,114,44,27,16,17,0,114,21,25,30,25,18,16,123,79,0,114,10,15]
[null,"$200,000 or more",0,114,0,114,57,64,30,24,0,114,0,114,46,26,0,114,10,13,0,114,73,44,4,6,69,44,0,114,26,16]
[]
[]
[null,"B19113. MEDIAN FAMILY INCOME IN THE PAST 12 MONTHS (IN 2009 INFLATION-ADJUSTED DOLLARS)"]
[null,"Universe:  FAMILIES"]
[null,"Data Set: 2005-2009 American Community Survey 5-Year Estimates"]
[]
[null,null,"Acworth",null,"Charlestown",null,"Claremont",null,"Cornish",null,"Croydon",null,"Goshen",null,"Grantham",null,"Langdon",null,"Lempster",null,"Newport",null,"Plainfield",null,"Springfield",null,"Sunapee",null,"Unity",null,"Washington"]
[null,null,"Estimate","Margin Of Error","Estimate","Margin Of Error","Estimate","Margin Of Error","Estimate","Margin Of Error","Estimate","Margin Of Error","Estimate","Margin Of Error","Estimate","Margin Of Error","Estimate","Margin Of Error","Estimate","Margin Of Error","Estimate","Margin Of Error","Estimate","Margin Of Error","Estimate","Margin Of Error","Estimate","Margin Of Error","Estimate","Margin Of Error","Estimate","Margin Of Error"]
[null,"Median family income in the past 12 months",49010,4776,60635,7691,50469,4620,75913,5655,67857,11940,49545,8699,88409,19442,66667,48148,61806,7306,54236,6211,74688,12531,84342,8701,73594,22160,63869,7394,55179,5792]

{"sheet":"ACS_TableB19201_ACS_Tbl_B19202","index":64,"n_rows":130,"n_cols":32,"rows_kept":130,"cut":false,"hidden":true,"merged":[]}
[null,"B19102. NON-FAMILY INCOME IN THE PAST 12 MONTHS (IN 2019 INFLATION-ADJUSTED DOLLARS)"]
[null,"Universe:  FAMILIES"]
[null,"Data Set: 2015-2019 American Community Survey 5-Year Estimates"]
[]
[null,null,"Acworth",null,"Charlestown",null,"Claremont",null,"Cornish",null,"Croydon",null,"Goshen",null,"Grantham",null,"Langdon",null,"Lempster",null,"Newport",null,"Plainfield",null,"Springfield",null,"Sunapee",null,"Unity",null,"Washington"]
[null,null,"Estimate","Margin Of Error","Estimate","Margin Of Error","Estimate","Margin Of Error","Estimate","Margin Of Error","Estimate","Margin Of Error","Estimate","Margin Of Error","Estimate","Margin Of Error","Estimate","Margin Of Error","Estimate","Margin Of Error","Estimate","Margin Of Error","Estimate","Margin Of Error","Estimate","Margin Of Error","Estimate","Margin Of Error","Estimate","Margin Of Error","Estimate","Margin Of Error"]
[null,"Total:",115,28,707,222,2066,273,215,55,106,36,114,36,320,149,67,27,153,49,1028,213,200,55,105,46,492,142,165,39,118,45]
[null,"Less than $10,000",6,10,148,111,203,122,12,10,9,12,17,14,0,11,14,15,16,17,94,87,6,9,21,21,70,78,19,20,11,16]
[null,"$10,000 to $14,999",6,6,14,23,209,89,15,20,12,13,6,9,0,11,0,11,4,5,46,57,0,11,4,6,4,8,16,14,12,16]
[null,"$15,000 to $19,999",5,5,116,96,247,110,33,24,6,7,3,4,14,22,3,4,10,9,232,127,0,11,0,11,16,17,6,7,12,16]
[null,"$20,000 to $24,999",6,9,73,77,308,155,3,4,8,7,9,8,0,11,6,6,28,21,87,57,20,21,0,11,105,78,31,21,3,4]
[null,"$25,000 to $29,999",15,11,99,81,127,65,21,20,7,6,7,9,48,61,4,4,7,8,28,32,31,27,15,16,5,8,10,7,0,11]
[null,"$30,000 to $34,999",2,3,72,63,144,94,6,7,8,7,8,9,0,11,0,11,4,5,39,36,11,11,19,22,45,50,7,7,17,14]
[null,"$35,000 to $39,999",7,6,17,28,81,40,6,7,5,6,4,4,0,11,7,11,11,12,26,30,16,13,2,5,0,11,4,5,13,17]
[null,"$40,000 to $44,999",2,3,37,46,175,93,14,15,2,3,1,3,91,102,2,3,2,3,50,40,0,11,8,13,15,23,5,5,3,4]
[null,"$45,000 to $49,999",6,6,13,23,94,58,14,10,11,14,5,5,17,25,0,11,11,11,14,24,7,10,5,9,74,69,2,4,3,4]
[null,"$50,000 to $59,999",34,20,0,16,109,68,31,21,5,10,21,18,41,46,0,11,15,15,88,83,6,9,4,6,27,31,9,8,2,4]
[null,"$60,000 to $74,999",12,9,51,57,130,78,10,12,9,10,10,12,50,55,14,11,9,14,81,61,31,31,10,16,68,56,21,16,2,4]
[null,"$75,000 to $99,999",8,10,59,49,132,70,32,20,14,14,9,7,17,26,12,15,19,21,142,83,31,25,9,15,25,24,4,5,29,23]
[null,"$100,000 to $124,999",4,5,8,13,19,30,10,9,0,11,5,5,13,20,3,4,17,17,14,21,20,16,4,6,0,11,16,17,3,4]
[null,"$125,000 to $149,999",2,3,0,16,32,33,3,6,0,11,9,15,0,11,2,4,0,11,14,22,0,11,0,11,29,30,2,3,8,7]
[null,"$150,000 to $199,999",0,11,0,16,25,32,5,6,4,6,0,11,0,11,0,11,0,11,73,78,0,11,0,11,9,14,9,13,0,11]
[null,"$200,000 or more",0,11,0,16,31,24,0,11,6,9,0,11,29,32,0,11,0,11,0,16,21,17,4,6,0,11,4,5,0,11]
[]
[]
[null,"B19112. MEDIAN NON-FAMILY INCOME IN THE PAST 12 MONTHS (IN 2019 INFLATION-ADJUSTED DOLLARS)"]
[null,"Universe:  FAMILIES"]
[null,"Data Set: 2015-2019 American Community Survey 5-Year Estimates"]
[]
[null,null,"Acworth",null,"Charlestown",null,"Claremont",null,"Cornish",null,"Croydon",null,"Goshen",null,"Grantham",null,"Langdon",null,"Lempster",null,"Newport",null,"Plainfield",null,"Springfield",null,"Sunapee",null,"Unity",null,"Washington"]
[null,null,"Estimate","Margin Of Error","Estimate","Margin Of Error","Estimate","Margin Of Error","Estimate","Margin Of Error","Estimate","Margin Of Error","Estimate","Margin Of Error","Estimate","Margin Of Error","Estimate","Margin Of Error","Estimate","Margin Of Error","Estimate","Margin Of Error","Estimate","Margin Of Error","Estimate","Margin Of Error","Estimate","Margin Of Error","Estimate","Margin Of Error","Estimate","Margin Of Error"]
[null,"Median family income in the past 12 months",50568,8284,25139,7159,28324,7836,43750,11593,39000,16857,47500,18586,46029,11056,"-","**",36705,20254,31731,17510,61875,29003,32969,10309,40167,17857,32679,15762,38269,13254]
[]
[]
[]
[]
[]
[]
[]
[]
[]
[]
[]
[]
[]
[]
[]
[]
[]
[null,"B19102. NON-FAMILY INCOME IN THE PAST 12 MONTHS (IN 2014 INFLATION-ADJUSTED DOLLARS)"]
[null,"Universe:  FAMILIES"]
[null,"Data Set: 2010-2014 American Community Survey 5-Year Estimates"]
[]
[null,null,"Acworth",null,"Charlestown",null,"Claremont",null,"Cornish",null,"Croydon",null,"Goshen",null,"Grantham",null,"Langdon",null,"Lempster",null,"Newport",null,"Plainfield",null,"Springfield",null,"Sunapee",null,"Unity",null,"Washington"]
[null,null,"Estimate","Margin Of Error","Estimate","Margin Of Error","Estimate","Margin Of Error","Estimate","Margin Of Error","Estimate","Margin Of Error","Estimate","Margin Of Error","Estimate","Margin Of Error","Estimate","Margin Of Error","Estimate","Margin Of Error","Estimate","Margin Of Error","Estimate","Margin Of Error","Estimate","Margin Of Error","Estimate","Margin Of Error","Estimate","Margin Of Error","Estimate","Margin Of Error"]
[null,"Total:",93,35,726,177,2100,276,191,39,67,21,109,37,197,87,60,24,108,37,1021,238,257,73,103,43,534,141,154,43,111,35]
[null,"Less than $10,000",8,8,36,34,357,122,22,15,2,6,0,11,0,11,0,11,7,8,199,110,6,9,6,7,34,54,7,7,0,11]
[null,"$10,000 to $14,999",5,5,124,83,279,98,6,6,0,11,5,4,0,11,12,7,7,12,146,82,0,11,6,7,59,50,24,15,12,9]
[null,"$15,000 to $19,999",14,16,85,69,263,115,17,10,2,3,5,6,0,11,4,6,0,11,55,42,0,11,8,9,45,48,9,7,11,9]
[null,"$20,000 to $24,999",10,13,94,71,207,81,13,14,7,9,17,17,0,11,8,9,24,21,30,34,4,6,3,4,69,57,12,15,7,7]
[null,"$25,000 to $29,999",12,10,37,37,87,45,7,8,2,3,20,13,37,44,4,5,9,10,11,17,33,25,0,11,29,36,20,22,14,14]
[null,"$30,000 to $34,999",9,7,74,75,148,104,3,5,6,6,5,6,11,16,0,11,6,6,16,26,49,30,0,11,22,20,25,16,3,4]
[null,"$35,000 to $39,999",9,8,24,36,92,59,14,14,2,3,4,4,0,11,3,4,3,4,34,30,13,12,9,16,63,51,12,9,13,9]
[null,"$40,000 to $44,999",0,11,67,64,110,73,6,7,6,6,10,11,0,11,0,11,3,4,192,135,5,7,13,15,7,12,12,14,6,6]
[null,"$45,000 to $49,999",2,3,45,40,95,55,4,5,0,11,8,10,16,24,2,3,14,11,72,90,6,9,16,18,8,12,3,4,3,4]
[null,"$50,000 to $59,999",11,12,86,66,90,53,25,18,5,6,16,17,0,11,2,4,17,16,33,27,10,11,10,16,50,46,0,11,7,7]
[null,"$60,000 to $74,999",2,3,14,24,186,82,15,16,9,9,7,7,21,23,12,14,0,11,112,95,27,28,5,7,64,64,19,17,15,11]
[null,"$75,000 to $99,999",8,7,34,38,44,43,22,13,8,10,9,6,41,31,13,13,14,13,80,85,40,34,14,17,78,69,3,4,12,14]
[null,"$100,000 to $124,999",3,4,6,12,25,40,18,17,0,11,0,11,58,67,0,11,0,11,0,15,34,30,13,15,6,10,0,11,0,11]
[null,"$125,000 to $149,999",0,11,0,11,72,61,12,11,13,12,3,5,0,11,0,11,0,11,41,61,0,11,0,11,0,11,8,13,0,11]
[null,"$150,000 to $199,999",0,11,0,11,17,19,7,8,0,11,0,11,0,11,0,11,4,5,0,15,5,7,0,11,0,11,0,11,0,11]
[null,"$200,000 or more",0,11,0,11,28,30,0,11,5,6,0,11,13,19,0,11,0,11,0,15,25,24,0,11,0,11,0,11,8,13]
[]
[]
[null,"B19112. MEDIAN NON-FAMILY INCOME IN THE PAST 12 MONTHS (IN 2014 INFLATION-ADJUSTED DOLLARS)"]
[null,"Universe:  FAMILIES"]
[null,"Data Set: 2010-2014 American Community Survey 5-Year Estimates"]
[]
[null,null,"Acworth",null,"Charlestown",null,"Claremont",null,"Cornish",null,"Croydon",null,"Goshen",null,"Grantham",null,"Langdon",null,"Lempster",null,"Newport",null,"Plainfield",null,"Springfield",null,"Sunapee",null,"Unity",null,"Washington"]
[null,null,"Estimate","Margin Of Error","Estimate","Margin Of Error","Estimate","Margin Of Error","Estimate","Margin Of Error","Estimate","Margin Of Error","Estimate","Margin Of Error","Estimate","Margin Of Error","Estimate","Margin Of Error","Estimate","Margin Of Error","Estimate","Margin Of Error","Estimate","Margin Of Error","Estimate","Margin Of Error","Estimate","Margin Of Error","Estimate","Margin Of Error","Estimate","Margin Of Error"]
[null,"Median family income in the past 12 months",28958,5459,27400,8865,23803,3203,53750,19288,61875,27379,36563,14917,85938,37282,36667,50724,35833,20780,40254,16760,65368,32605,46806,8889,35625,9053,32727,8748,38125,9542]
[]
[]
[]
[]
[]
[]
[]
[]
[]
[]
[]
[]
[]
[]
[]
[]
[]
[null,"B19102. NON-FAMILY INCOME IN THE PAST 12 MONTHS (IN 2009 INFLATION-ADJUSTED DOLLARS)"]
[null,"Universe:  FAMILIES"]
[null,"Data Set: 2005-2009 American Community Survey 5-Year Estimates"]
[]
[null,null,"Acworth",null,"Charlestown",null,"Claremont",null,"Cornish",null,"Croydon",null,"Goshen",null,"Grantham",null,"Langdon",null,"Lempster",null,"Newport",null,"Plainfield",null,"Springfield",null,"Sunapee",null,"Unity",null,"Washington"]
[null,null,"Estimate","Margin Of Error","Estimate","Margin Of Error","Estimate","Margin Of Error","Estimate","Margin Of Error","Estimate","Margin Of Error","Estimate","Margin Of Error","Estimate","Margin Of Error","Estimate","Margin Of Error","Estimate","Margin Of Error","Estimate","Margin Of Error","Estimate","Margin Of Error","Estimate","Margin Of Error","Estimate","Margin Of Error","Estimate","Margin Of Error","Estimate","Margin Of Error"]
[null,"Total:",94,42,669,162,2307,312,141,51,91,42,132,48,220,85,52,27,143,45,863,215,150,58,85,35,487,151,193,60,123,32]
[null,"Less than $10,000",9,10,40,39,409,147,16,15,3,6,7,7,0,114,10,15,5,7,86,81,0,114,0,114,54,45,30,23,14,11]
[null,"$10,000 to $14,999",12,13,96,73,425,135,17,19,14,15,14,15,33,30,9,11,29,26,249,103,15,17,8,13,8,13,9,11,22,15]
[null,"$15,000 to $19,999",0,114,59,48,214,74,9,9,4,7,20,26,0,114,0,114,21,15,48,44,0,114,0,114,42,46,7,7,26,18]
[null,"$20,000 to $24,999",29,23,64,50,156,80,27,21,0,114,7,8,6,9,4,7,4,5,93,113,7,10,9,11,78,76,24,18,20,18]
[null,"$25,000 to $29,999",0,114,54,58,254,130,16,15,10,7,2,4,34,34,0,114,7,7,48,54,12,13,7,8,17,19,3,6,0,114]
[null,"$30,000 to $34,999",9,15,59,48,192,96,5,7,0,114,17,16,32,31,10,16,12,10,14,22,7,12,15,16,50,37,18,19,11,9]
[null,"$35,000 to $39,999",0,114,0,114,128,91,4,7,10,15,12,14,7,11,0,114,4,8,49,54,15,18,6,7,103,83,5,7,0,114]
[null,"$40,000 to $44,999",15,13,67,68,153,93,15,13,27,26,0,114,0,114,6,6,5,7,100,81,0,114,13,11,17,20,0,114,2,4]
[null,"$45,000 to $49,999",5,8,14,24,43,43,9,11,4,6,3,4,20,23,0,114,0,114,12,19,7,10,6,7,31,29,35,35,0,114]
[null,"$50,000 to $59,999",0,114,59,48,139,90,4,7,7,12,18,24,14,15,0,114,21,22,121,77,6,9,0,114,10,14,9,9,3,5]
[null,"$60,000 to $74,999",5,7,61,66,36,29,15,15,4,6,9,8,22,25,8,9,28,25,13,21,30,33,7,11,42,43,27,25,15,11]
[null,"$75,000 to $99,999",5,7,79,62,122,72,4,7,8,13,17,20,13,14,0,114,4,6,30,35,9,14,3,5,11,17,15,19,0,114]
[null,"$100,000 to $124,999",0,114,17,27,0,114,0,114,0,114,0,114,28,23,0,114,0,114,0,114,27,25,11,13,8,13,11,15,0,114]
[null,"$125,000 to $149,999",0,114,0,114,0,114,0,114,0,114,0,114,11,16,5,8,0,114,0,114,0,114,0,114,0,114,0,114,0,114]
[null,"$150,000 to $199,999",5,7,0,114,9,15,0,114,0,114,0,114,0,114,0,114,0,114,0,114,5,8,0,114,16,22,0,114,0,114]
[null,"$200,000 or more",0,114,0,114,27,31,0,114,0,114,6,8,0,114,0,114,3,4,0,114,10,14,0,114,0,114,0,114,10,8]
[]
[]
[null,"B19112. MEDIAN NON-FAMILY INCOME IN THE PAST 12 MONTHS (IN 2009 INFLATION-ADJUSTED DOLLARS)"]
[null,"Universe:  FAMILIES"]
[null,"Data Set: 2005-2009 American Community Survey 5-Year Estimates"]
[]
[null,null,"Acworth",null,"Charlestown",null,"Claremont",null,"Cornish",null,"Croydon",null,"Goshen",null,"Grantham",null,"Langdon",null,"Lempster",null,"Newport",null,"Plainfield",null,"Springfield",null,"Sunapee",null,"Unity",null,"Washington"]
[null,null,"Estimate","Margin Of Error","Estimate","Margin Of Error","Estimate","Margin Of Error","Estimate","Margin Of Error","Estimate","Margin Of Error","Estimate","Margin Of Error","Estimate","Margin Of Error","Estimate","Margin Of Error","Estimate","Margin Of Error","Estimate","Margin Of Error","Estimate","Margin Of Error","Estimate","Margin Of Error","Estimate","Margin Of Error","Estimate","Margin Of Error","Estimate","Margin Of Error"]
[null,"Median family income in the past 12 months",24559,16884,32656,11151,22930,4990,25341,5506,41125,4458,34821,8570,36786,22907,30750,23338,33194,16791,21535,5480,65833,30924,36458,11715,34276,6413,45043,26284,19948,5634]

{"sheet":"ACS_Table_B25119","index":65,"n_rows":68,"n_cols":32,"rows_kept":68,"cut":false,"hidden":true,"merged":[[40,2,40,3],[40,4,40,5],[40,6,40,7],[40,8,40,9],[40,10,40,11],[40,12,40,13],[40,14,40,15],[40,16,40,17],[40,18,40,19],[40,20,40,21],[40,22,40,23],[46,2,46,3],[46,4,46,5],[46,6,46,7],[46,8,46,9],[46,10,46,11],[46,12,46,13],[46,14,46,15],[46,16,46,17],[46,18,46,19],[46,20,46,21],[46,22,46,23],[52,2,52,3],[52,4,52,5],[52,6,52,7],[52,8,52,9],[52,10,52,11],[52,12,52,13],[52,14,52,15],[52,16,52,17],[52,18,52,19],[52,20,52,21],[52,22,52,23],[23,18,23,19],[23,20,23,21],[23,22,23,23],[23,10,23,11],[23,12,23,13],[23,14,23,15],[23,16,23,17],[23,2,23,3],[23,4,23,5],[23,6,23,7],[23,8,23,9],[17,18,17,19],[17,20,17,21],[17,22,17,23],[11,18,11,19],[11,20,11,21],[11,22,11,23],[17,4,17,5],[17,6,17,7],[17,8,17,9],[17,12,17,13],[17,16,17,17],[17,14,17,15],[11,10,11,11],[11,12,11,13],[11,14,11,15],[11,16,11,17],[11,2,11,3],[11,4,11,5],[11,6,11,7],[11,8,11,9],[17,2,17,3],[17,10,17,11],[77,18,77,19],[77,16,77,17],[77,14,77,15],[77,2,77,3],[89,10,89,11],[77,20,77,21],[77,22,77,23],[71,18,71,19],[71,20,71,21],[71,22,71,23],[77,4,77,5],[77,6,77,7],[77,8,77,9],[77,10,77,11],[77,12,77,13],[71,10,71,11],[71,12,71,13],[71,14,71,15],[71,16,71,17],[71,2,71,3],[71,4,71,5],[71,6,71,7],[71,8,71,9],[101,18,101,19],[101,20,101,21],[101,22,101,23],[95,18,95,19],[95,20,95,21],[95,22,95,23],[101,4,101,5],[101,6,101,7],[101,8,101,9],[101,10,101,11],[101,12,101,13],[101,16,101,17],[101,14,101,15],[95,10,95,11],[95,12,95,13],[95,14,95,15],[95,16,95,17],[95,2,95,3],[95,4,95,5],[95,6,95,7],[95,8,95,9],[101,2,101,3],[89,18,89,19],[89,20,89,21],[89,22,89,23],[83,18,83,19],[83,20,83,21],[83,22,83,23],[89,4,89,5],[89,6,89,7],[89,8,89,9],[89,12,89,13],[89,16,89,17],[89,14,89,15],[83,10,83,11],[83,12,83,13],[83,14,83,15],[83,16,83,17],[83,2,83,3],[83,4,83,5],[83,6,83,7],[83,8,83,9],[89,2,89,3],[125,18,125,19],[125,20,125,21],[125,22,125,23],[119,18,119,19],[119,20,119,21],[119,22,119,23],[125,4,125,5],[125,6,125,7],[125,8,125,9],[125,12,125,13],[125,16,125,17],[125,14,125,15],[119,10,119,11],[119,12,119,13],[119,14,119,15],[119,16,119,17],[119,2,119,3],[119,4,119,5],[119,6,119,7],[119,8,119,9],[125,2,125,3],[113,18,113,19],[113,16,113,17],[113,14,113,15],[113,2,113,3],[125,10,125,11],[113,20,113,21],[113,22,113,23],[107,18,107,19],[107,20,107,21],[107,22,107,23],[113,4,113,5],[113,6,113,7],[113,8,113,9],[113,10,113,11],[113,12,113,13],[107,10,107,11],[107,12,107,13],[107,14,107,15],[107,16,107,17],[107,2,107,3],[107,4,107,5],[107,6,107,7],[107,8,107,9],[149,18,149,19],[149,16,149,17],[149,14,149,15],[149,2,149,3],[161,10,161,11],[149,20,149,21],[149,22,149,23],[143,18,143,19],[143,20,143,21],[143,22,143,23],[149,4,149,5],[149,6,149,7],[149,8,149,9],[149,10,149,11],[149,12,149,13],[143,10,143,11],[143,12,143,13],[143,14,143,15],[143,16,143,17],[143,2,143,3],[143,4,143,5],[143,6,143,7],[143,8,143,9],[137,18,137,19],[137,20,137,21],[137,22,137,23],[131,18,131,19],[131,20,131,21],[131,22,131,23],[137,4,137,5],[137,6,137,7],[137,8,137,9],[137,10,137,11],[137,12,137,13],[137,16,137,17],[137,14,137,15],[131,10,131,11],[131,12,131,13],[131,14,131,15],[131,16,131,17],[131,2,131,3],[131,4,131,5],[131,6,131,7],[131,8,131,9],[137,2,137,3],[173,18,173,19],[173,20,173,21],[173,22,173,23],[167,18,167,19],[167,20,167,21],[167,22,167,23],[173,4,173,5],[173,6,173,7],[173,8,173,9],[173,10,173,11],[173,12,173,13],[173,16,173,17],[173,14,173,15],[167,10,167,11],[167,12,167,13],[167,14,167,15],[167,16,167,17],[167,2,167,3],[167,4,167,5],[167,6,167,7],[167,8,167,9],[173,2,173,3],[161,18,161,19],[161,20,161,21],[161,22,161,23],[155,18,155,19],[155,20,155,21],[155,22,155,23],[161,4,161,5],[161,6,161,7],[161,8,161,9],[161,12,161,13],[161,16,161,17],[161,14,161,15],[155,10,155,11],[155,12,155,13],[155,14,155,15],[155,16,155,17],[155,2,155,3],[155,4,155,5],[155,6,155,7],[155,8,155,9],[161,2,161,3],[197,18,197,19],[197,20,197,21],[197,22,197,23],[191,18,191,19],[191,20,191,21],[191,22,191,23],[197,4,197,5],[197,6,197,7],[197,8,197,9],[197,12,197,13],[197,16,197,17],[197,14,197,15],[191,10,191,11],[191,12,191,13],[191,14,191,15],[191,16,191,17],[191,2,191,3],[191,4,191,5],[191,6,191,7],[191,8,191,9],[197,2,197,3],[185,18,185,19],[185,16,185,17],[185,14,185,15],[185,2,185,3],[197,10,197,11],[185,20,185,21],[185,22,185,23],[179,18,179,19],[179,20,179,21],[179,22,179,23],[185,4,185,5],[185,6,185,7],[185,8,185,9],[185,10,185,11],[185,12,185,13],[179,10,179,11],[179,12,179,13],[179,14,179,15],[179,16,179,17],[179,2,179,3],[179,4,179,5],[179,6,179,7],[179,8,179,9],[221,18,221,19],[221,16,221,17],[221,14,221,15],[221,2,221,3],[233,10,233,11],[221,20,221,21],[221,22,221,23],[215,18,215,19],[215,20,215,21],[215,22,215,23],[221,4,221,5],[221,6,221,7],[221,8,221,9],[221,10,221,11],[221,12,221,13],[215,10,215,11],[215,12,215,13],[215,14,215,15],[215,16,215,17],[215,2,215,3],[215,4,215,5],[215,6,215,7],[215,8,215,9],[209,18,209,19],[209,20,209,21],[209,22,209,23],[203,18,203,19],[203,20,203,21],[203,22,203,23],[209,4,209,5],[209,6,209,7],[209,8,209,9],[209,10,209,11],[209,12,209,13],[209,16,209,17],[209,14,209,15],[203,10,203,11],[203,12,203,13],[203,14,203,15],[203,16,203,17],[203,2,203,3],[203,4,203,5],[203,6,203,7],[203,8,203,9],[209,2,209,3],[245,18,245,19],[245,20,245,21],[245,22,245,23],[239,18,239,19],[239,20,239,21],[239,22,239,23],[245,4,245,5],[245,6,245,7],[245,8,245,9],[245,10,245,11],[245,12,245,13],[245,16,245,17],[245,14,245,15],[239,10,239,11],[239,12,239,13],[239,14,239,15],[239,16,239,17],[239,2,239,3],[239,4,239,5],[239,6,239,7],[239,8,239,9],[245,2,245,3],[233,18,233,19],[233,20,233,21],[233,22,233,23],[227,18,227,19],[227,20,227,21],[227,22,227,23],[233,4,233,5],[233,6,233,7],[233,8,233,9],[233,12,233,13],[233,16,233,17],[233,14,233,15],[227,10,227,11],[227,12,227,13],[227,14,227,15],[227,16,227,17],[227,2,227,3],[227,4,227,5],[227,6,227,7],[227,8,227,9],[233,2,233,3],[269,18,269,19],[269,20,269,21],[269,22,269,23],[263,18,263,19],[263,20,263,21],[263,22,263,23],[269,4,269,5],[269,6,269,7],[269,8,269,9],[269,12,269,13],[269,16,269,17],[269,14,269,15],[263,10,263,11],[263,12,263,13],[263,14,263,15],[263,16,263,17],[263,2,263,3],[263,4,263,5],[263,6,263,7],[263,8,263,9],[269,2,269,3],[257,18,257,19],[257,16,257,17],[257,14,257,15],[257,2,257,3],[269,10,269,11],[257,20,257,21],[257,22,257,23],[251,18,251,19],[251,20,251,21],[251,22,251,23],[257,4,257,5],[257,6,257,7],[257,8,257,9],[257,10,257,11],[257,12,257,13],[251,10,251,11],[251,12,251,13],[251,14,251,15],[251,16,251,17],[251,2,251,3],[251,4,251,5],[251,6,251,7],[251,8,251,9],[293,18,293,19],[293,16,293,17],[293,14,293,15],[293,2,293,3],[305,10,305,11],[293,20,293,21],[293,22,293,23],[287,18,287,19],[287,20,287,21],[287,22,287,23],[293,4,293,5],[293,6,293,7],[293,8,293,9],[293,10,293,11],[293,12,293,13],[287,10,287,11],[287,12,287,13],[287,14,287,15],[287,16,287,17],[287,2,287,3],[287,4,287,5],[287,6,287,7],[287,8,287,9],[281,18,281,19],[281,20,281,21],[281,22,281,23],[275,18,275,19],[275,20,275,21],[275,22,275,23],[281,4,281,5],[281,6,281,7],[281,8,281,9],[281,10,281,11],[281,12,281,13],[281,16,281,17],[281,14,281,15],[275,10,275,11],[275,12,275,13],[275,14,275,15],[275,16,275,17],[275,2,275,3],[275,4,275,5],[275,6,275,7],[275,8,275,9],[281,2,281,3],[317,18,317,19],[317,20,317,21],[317,22,317,23],[311,18,311,19],[311,20,311,21],[311,22,311,23],[317,4,317,5],[317,6,317,7],[317,8,317,9],[317,10,317,11],[317,12,317,13],[317,16,317,17],[317,14,317,15],[311,10,311,11],[311,12,311,13],[311,14,311,15],[311,16,311,17],[311,2,311,3],[311,4,311,5],[311,6,311,7],[311,8,311,9],[317,2,317,3],[305,18,305,19],[305,20,305,21],[305,22,305,23],[299,18,299,19],[299,20,299,21],[299,22,299,23],[305,4,305,5],[305,6,305,7],[305,8,305,9],[305,12,305,13],[305,16,305,17],[305,14,305,15],[299,10,299,11],[299,12,299,13],[299,14,299,15],[299,16,299,17],[299,2,299,3],[299,4,299,5],[299,6,299,7],[299,8,299,9],[305,2,305,3],[341,18,341,19],[341,20,341,21],[341,22,341,23],[335,18,335,19],[335,20,335,21],[335,22,335,23],[341,4,341,5],[341,6,341,7],[341,8,341,9],[341,12,341,13],[341,16,341,17],[341,14,341,15],[335,10,335,11],[335,12,335,13],[335,14,335,15],[335,16,335,17],[335,2,335,3],[335,4,335,5],[335,6,335,7],[335,8,335,9],[341,2,341,3],[329,18,329,19],[329,16,329,17],[329,14,329,15],[329,2,329,3],[341,10,341,11],[329,20,329,21],[329,22,329,23],[323,18,323,19],[323,20,323,21],[323,22,323,23],[329,4,329,5],[329,6,329,7],[329,8,329,9],[329,10,329,11],[329,12,329,13],[323,10,323,11],[323,12,323,13],[323,14,323,15],[323,16,323,17],[323,2,323,3],[323,4,323,5],[323,6,323,7],[323,8,323,9],[365,18,365,19],[365,16,365,17],[365,14,365,15],[365,2,365,3],[377,10,377,11],[365,20,365,21],[365,22,365,23],[359,18,359,19],[359,20,359,21],[359,22,359,23],[365,4,365,5],[365,6,365,7],[365,8,365,9],[365,10,365,11],[365,12,365,13],[359,10,359,11],[359,12,359,13],[359,14,359,15],[359,16,359,17],[359,2,359,3],[359,4,359,5],[359,6,359,7],[359,8,359,9],[353,18,353,19],[353,20,353,21],[353,22,353,23],[347,18,347,19],[347,20,347,21],[347,22,347,23],[353,4,353,5],[353,6,353,7],[353,8,353,9],[353,10,353,11],[353,12,353,13],[353,16,353,17],[353,14,353,15],[347,10,347,11],[347,12,347,13],[347,14,347,15],[347,16,347,17],[347,2,347,3],[347,4,347,5],[347,6,347,7],[347,8,347,9],[353,2,353,3],[389,18,389,19],[389,20,389,21],[389,22,389,23],[383,18,383,19],[383,20,383,21],[383,22,383,23],[389,4,389,5],[389,6,389,7],[389,8,389,9],[389,10,389,11],[389,12,389,13],[389,16,389,17],[389,14,389,15],[383,10,383,11],[383,12,383,13],[383,14,383,15],[383,16,383,17],[383,2,383,3],[383,4,383,5],[383,6,383,7],[383,8,383,9],[389,2,389,3],[377,18,377,19],[377,20,377,21],[377,22,377,23],[371,18,371,19],[371,20,371,21],[371,22,371,23],[377,4,377,5],[377,6,377,7],[377,8,377,9],[377,12,377,13],[377,16,377,17],[377,14,377,15],[371,10,371,11],[371,12,371,13],[371,14,371,15],[371,16,371,17],[371,2,371,3],[371,4,371,5],[371,6,371,7],[371,8,371,9],[377,2,377,3],[413,18,413,19],[413,20,413,21],[413,22,413,23],[407,18,407,19],[407,20,407,21],[407,22,407,23],[413,4,413,5],[413,6,413,7],[413,8,413,9],[413,12,413,13],[413,16,413,17],[413,14,413,15],[407,10,407,11],[407,12,407,13],[407,14,407,15],[407,16,407,17],[407,2,407,3],[407,4,407,5],[407,6,407,7],[407,8,407,9],[413,2,413,3],[401,18,401,19],[401,16,401,17],[401,14,401,15],[401,2,401,3],[413,10,413,11],[401,20,401,21],[401,22,401,23],[395,18,395,19],[395,20,395,21],[395,22,395,23],[401,4,401,5],[401,6,401,7],[401,8,401,9],[401,10,401,11],[401,12,401,13],[395,10,395,11],[395,12,395,13],[395,14,395,15],[395,16,395,17],[395,2,395,3],[395,4,395,5],[395,6,395,7],[395,8,395,9],[437,18,437,19],[437,16,437,17],[437,14,437,15],[437,2,437,3],[449,10,449,11],[437,20,437,21],[437,22,437,23],[431,18,431,19],[431,20,431,21],[431,22,431,23],[437,4,437,5],[437,6,437,7],[437,8,437,9],[437,10,437,11],[437,12,437,13],[431,10,431,11],[431,12,431,13],[431,14,431,15],[431,16,431,17],[431,2,431,3],[431,4,431,5],[431,6,431,7],[431,8,431,9],[425,18,425,19],[425,20,425,21],[425,22,425,23],[419,18,419,19],[419,20,419,21],[419,22,419,23],[425,4,425,5],[425,6,425,7],[425,8,425,9],[425,10,425,11],[425,12,425,13],[425,16,425,17],[425,14,425,15],[419,10,419,11],[419,12,419,13],[419,14,419,15],[419,16,419,17],[419,2,419,3],[419,4,419,5],[419,6,419,7],[419,8,419,9],[425,2,425,3],[461,18,461,19],[461,20,461,21],[461,22,461,23],[455,18,455,19],[455,20,455,21],[455,22,455,23],[461,4,461,5],[461,6,461,7],[461,8,461,9],[461,10,461,11],[461,12,461,13],[461,16,461,17],[461,14,461,15],[455,10,455,11],[455,12,455,13],[455,14,455,15],[455,16,455,17],[455,2,455,3],[455,4,455,5],[455,6,455,7],[455,8,455,9],[461,2,461,3],[449,18,449,19],[449,20,449,21],[449,22,449,23],[443,18,443,19],[443,20,443,21],[443,22,443,23],[449,4,449,5],[449,6,449,7],[449,8,449,9],[449,12,449,13],[449,16,449,17],[449,14,449,15],[443,10,443,11],[443,12,443,13],[443,14,443,15],[443,16,443,17],[443,2,443,3],[443,4,443,5],[443,6,443,7],[443,8,443,9],[449,2,449,3],[485,18,485,19],[485,20,485,21],[485,22,485,23],[479,18,479,19],[479,20,479,21],[479,22,479,23],[485,4,485,5],[485,6,485,7],[485,8,485,9],[485,12,485,13],[485,16,485,17],[485,14,485,15],[479,10,479,11],[479,12,479,13],[479,14,479,15],[479,16,479,17],[479,2,479,3],[479,4,479,5],[479,6,479,7],[479,8,479,9],[485,2,485,3],[473,18,473,19],[473,16,473,17],[473,14,473,15],[473,2,473,3],[485,10,485,11],[473,20,473,21],[473,22,473,23],[467,18,467,19],[467,20,467,21],[467,22,467,23],[473,4,473,5],[473,6,473,7],[473,8,473,9],[473,10,473,11],[473,12,473,13],[467,10,467,11],[467,12,467,13],[467,14,467,15],[467,16,467,17],[467,2,467,3],[467,4,467,5],[467,6,467,7],[467,8,467,9],[509,18,509,19],[509,16,509,17],[509,14,509,15],[509,2,509,3],[521,10,521,11],[509,20,509,21],[509,22,509,23],[503,18,503,19],[503,20,503,21],[503,22,503,23],[509,4,509,5],[509,6,509,7],[509,8,509,9],[509,10,509,11],[509,12,509,13],[503,10,503,11],[503,12,503,13],[503,14,503,15],[503,16,503,17],[503,2,503,3],[503,4,503,5],[503,6,503,7],[503,8,503,9],[497,18,497,19],[497,20,497,21],[497,22,497,23],[491,18,491,19],[491,20,491,21],[491,22,491,23],[497,4,497,5],[497,6,497,7],[497,8,497,9],[497,10,497,11],[497,12,497,13],[497,16,497,17],[497,14,497,15],[491,10,491,11],[491,12,491,13],[491,14,491,15],[491,16,491,17],[491,2,491,3],[491,4,491,5],[491,6,491,7],[491,8,491,9],[497,2,497,3],[533,18,533,19],[533,20,533,21],[533,22,533,23],[527,18,527,19],[527,20,527,21],[527,22,527,23],[533,4,533,5],[533,6,533,7],[533,8,533,9],[533,10,533,11],[533,12,533,13],[533,16,533,17],[533,14,533,15],[527,10,527,11],[527,12,527,13],[527,14,527,15],[527,16,527,17],[527,2,527,3],[527,4,527,5],[527,6,527,7],[527,8,527,9],[533,2,533,3],[521,18,521,19],[521,20,521,21],[521,22,521,23],[515,18,515,19],[515,20,515,21],[515,22,515,23],[521,4,521,5],[521,6,521,7],[521,8,521,9],[521,12,521,13],[521,16,521,17],[521,14,521,15],[515,10,515,11],[515,12,515,13],[515,14,515,15],[515,16,515,17],[515,2,515,3],[515,4,515,5],[515,6,515,7],[515,8,515,9],[521,2,521,3],[557,18,557,19],[557,20,557,21],[557,22,557,23],[551,18,551,19],[551,20,551,21],[551,22,551,23],[557,4,557,5],[557,6,557,7],[557,8,557,9],[557,12,557,13],[557,16,557,17],[557,14,557,15],[551,10,551,11],[551,12,551,13],[551,14,551,15],[551,16,551,17],[551,2,551,3],[551,4,551,5],[551,6,551,7],[551,8,551,9],[557,2,557,3],[545,18,545,19],[545,16,545,17],[545,14,545,15],[545,2,545,3],[557,10,557,11],[545,20,545,21],[545,22,545,23],[539,18,539,19],[539,20,539,21],[539,22,539,23],[545,4,545,5],[545,6,545,7],[545,8,545,9],[545,10,545,11],[545,12,545,13],[539,10,539,11],[539,12,539,13],[539,14,539,15],[539,16,539,17],[539,2,539,3],[539,4,539,5],[539,6,539,7],[539,8,539,9],[581,18,581,19],[581,16,581,17],[581,14,581,15],[581,2,581,3],[593,10,593,11],[581,20,581,21],[581,22,581,23],[575,18,575,19],[575,20,575,21],[575,22,575,23],[581,4,581,5],[581,6,581,7],[581,8,581,9],[581,10,581,11],[581,12,581,13],[575,10,575,11],[575,12,575,13],[575,14,575,15],[575,16,575,17],[575,2,575,3],[575,4,575,5],[575,6,575,7],[575,8,575,9],[569,18,569,19],[569,20,569,21],[569,22,569,23],[563,18,563,19],[563,20,563,21],[563,22,563,23],[569,4,569,5],[569,6,569,7],[569,8,569,9]],"merged_total":89628,"flags":["merged_cut"]}
[null,"B25119. MEDIAN HOUSEHOLD INCOME THE PAST 12 MONTHS (IN 2019 INFLATION-ADJUSTED DOLLARS) BY TENURE"]
[null," Universe:  OCCUPIED HOUSING UNITS"]
[null,"Data Set: 2015-2019 American Community Survey 5-Year Estimates"]
[]
[null,null,"Acworth",null,"Charlestown",null,"Claremont",null,"Cornish",null,"Croydon",null,"Goshen",null,"Grantham",null,"Langdon",null,"Lempster",null,"Newport",null,"Plainfield",null,"Springfield",null,"Sunapee",null,"Unity",null,"Washington"]
[null,null,"Estimate","Margin Of Error","Estimate","Margin Of Error","Estimate","Margin Of Error","Estimate","Margin Of Error","Estimate","Margin Of Error","Estimate","Margin Of Error","Estimate","Margin Of Error","Estimate","Margin Of Error","Estimate","Margin Of Error","Estimate","Margin Of Error","Estimate","Margin Of Error","Estimate","Margin Of Error","Estimate","Margin Of Error","Estimate","Margin Of Error","Estimate","Margin Of Error"]
[null,"Median household income in the past 12 months"]
[null,"Total:",68438,8127,47302,12871,47649,4588,82083,12741,75521,12747,59583,12176,108571,26279,79125,12995,70156,12339,54816,7020,85313,10050,79444,8510,73682,16011,69702,9041,78224,12451]
[null,"Owner occupied (dollars)",70500,7922,49167,13210,65906,9470,87647,12888,77708,12879,69107,11123,106563,25268,86000,11589,74219,11690,67439,9804,89375,7847,79259,6027,91786,6042,73750,10245,79934,15397]
[null,"Renter occupied (dollars)",51250,15306,46058,35417,33708,7109,66071,41117,49000,27814,138315,83312,65536,46199,49643,5108,27862,6650,54412,12651,93125,70025,45292,25837,42083,19435,55577,37949,0,0]
[]
[]
[]
[]
[]
[]
[]
[]
[]
[]
[]
[]
[]
[]
[]
[]
[]
[]
[]
[null,"B25119. MEDIAN HOUSEHOLD INCOME THE PAST 12 MONTHS (IN 2014 INFLATION-ADJUSTED DOLLARS) BY TENURE"]
[null," Universe:  OCCUPIED HOUSING UNITS"]
[null,"Data Set: 2010-2014 American Community Survey 5-Year Estimates"]
[]
[null,null,"Acworth",null,"Charlestown",null,"Claremont",null,"Cornish",null,"Croydon",null,"Goshen",null,"Grantham",null,"Langdon",null,"Lempster",null,"Newport",null,"Plainfield",null,"Springfield",null,"Sunapee",null,"Unity",null,"Washington"]
[null,null,"Estimate","Margin Of Error","Estimate","Margin Of Error","Estimate","Margin Of Error","Estimate","Margin Of Error","Estimate","Margin Of Error","Estimate","Margin Of Error","Estimate","Margin Of Error","Estimate","Margin Of Error","Estimate","Margin Of Error","Estimate","Margin Of Error","Estimate","Margin Of Error","Estimate","Margin Of Error","Estimate","Margin Of Error","Estimate","Margin Of Error","Estimate","Margin Of Error"]
[null,"Median household income in the past 12 months"]
[null,"Total:",52589,5357,42693,5663,45510,4246,75417,10889,71094,18009,49167,8505,96875,17594,73214,4733,61161,8225,53900,9123,99625,14885,76207,4252,72863,11422,57917,11070,59375,11632]
[null,"Owner occupied (dollars)",52679,6944,50339,9529,62439,9101,80536,9452,68750,14670,52188,10037,97813,13789,73295,10472,61250,8932,65903,4054,100742,11458,76053,7396,81512,17294,58750,10868,61750,15225]
[null,"Renter occupied (dollars)",52344,45538,19590,6267,26338,3653,68750,4060,83500,21387,39500,9787,83194,62351,73125,25159,60833,77713,38224,15471,75000,39252,76500,19590,56154,16239,42083,25397,35417,6026]
[]
[]
[]
[]
[]
[]
[]
[]
[]
[]
[]
[]
[]
[]
[]
[]
[]
[]
[]
[null,"B25119. MEDIAN HOUSEHOLD INCOME THE PAST 12 MONTHS (IN 2009 INFLATION-ADJUSTED DOLLARS) BY TENURE"]
[null," Universe:  OCCUPIED HOUSING UNITS"]
[null,"Data Set: 2005-2009 American Community Survey 5-Year Estimates"]
[]
[null,null,"Acworth",null,"Charlestown",null,"Claremont",null,"Cornish",null,"Croydon",null,"Goshen",null,"Grantham",null,"Langdon",null,"Lempster",null,"Newport",null,"Plainfield",null,"Springfield",null,"Sunapee",null,"Unity",null,"Washington"]
[null,null,"Estimate","Margin Of Error","Estimate","Margin Of Error","Estimate","Margin Of Error","Estimate","Margin Of Error","Estimate","Margin Of Error","Estimate","Margin Of Error","Estimate","Margin Of Error","Estimate","Margin Of Error","Estimate","Margin Of Error","Estimate","Margin Of Error","Estimate","Margin Of Error","Estimate","Margin Of Error","Estimate","Margin Of Error","Estimate","Margin Of Error","Estimate","Margin Of Error"]
[null,"Median household income in the past 12 months"]
[null,"Total:",46477,5651,53531,5209,39486,5205,66964,6688,56172,16572,48300,6016,81167,8903,64167,28735,55000,7327,45565,6153,72330,10177,78594,12478,58986,5957,61786,12425,52625,10426]
[null,"Owner occupied (dollars)",47500,6452,57300,6810,54333,8712,73000,12514,64712,11758,48300,5876,80250,8805,67500,31407,56000,6482,52500,7652,75000,12979,80250,11918,65370,8953,65920,3160,52833,9673]
[null,"Renter occupied (dollars)",45250,27199,33235,11721,25369,3472,43056,32438,40000,13384,50000,29532,94219,52891,"-","**",41667,38872,20601,7833,38056,45742,71750,18438,36967,3949,27321,20129,30938,24499]

{"sheet":"ACS_Table_B25001","index":66,"n_rows":29,"n_cols":32,"rows_kept":29,"cut":false,"hidden":true,"merged":[]}
[null,"B25001. HOUSING UNITS"]
[null,"Universe:  HOUSING UNITS"]
[null,"Data Set: 2015-2019 American Community Survey 5-Year Estimates"]
[]
[null,null,"Acworth",null,"Charlestown",null,"Claremont",null,"Cornish",null,"Croydon",null,"Goshen",null,"Grantham",null,"Langdon",null,"Lempster",null,"Newport",null,"Plainfield",null,"Springfield",null,"Sunapee",null,"Unity",null,"Washington"]
[null,null,"Estimate","Margin Of Error","Estimate","Margin Of Error","Estimate","Margin Of Error","Estimate","Margin Of Error","Estimate","Margin Of Error","Estimate","Margin Of Error","Estimate","Margin Of Error","Estimate","Margin Of Error","Estimate","Margin Of Error","Estimate","Margin Of Error","Estimate","Margin Of Error","Estimate","Margin Of Error","Estimate","Margin Of Error","Estimate","Margin Of Error","Estimate","Margin Of Error"]
[null,"Total",587,53,2354,203,6129,297,837,83,464,75,435,52,1745,211,318,45,694,76,2816,228,1076,83,719,93,2592,180,726,60,1160,88]
[]
[]
[]
[]
[null,"B25001. HOUSING UNITS"]
[null,"Universe:  HOUSING UNITS"]
[null,"Data Set: 2010-2014 American Community Survey 5-Year Estimates"]
[]
[null,null,"Acworth",null,"Charlestown",null,"Claremont",null,"Cornish",null,"Croydon",null,"Goshen",null,"Grantham",null,"Langdon",null,"Lempster",null,"Newport",null,"Plainfield",null,"Springfield",null,"Sunapee",null,"Unity",null,"Washington"]
[null,null,"Estimate","Margin Of Error","Estimate","Margin Of Error","Estimate","Margin Of Error","Estimate","Margin Of Error","Estimate","Margin Of Error","Estimate","Margin Of Error","Estimate","Margin Of Error","Estimate","Margin Of Error","Estimate","Margin Of Error","Estimate","Margin Of Error","Estimate","Margin Of Error","Estimate","Margin Of Error","Estimate","Margin Of Error","Estimate","Margin Of Error","Estimate","Margin Of Error"]
[null,"Total",556,51,2398,155,6189,227,751,65,376,44,398,51,1663,132,318,47,604,67,3088,184,985,79,667,79,2565,133,674,64,1144,77]
[]
[]
[]
[]
[null,"B25001. HOUSING UNITS"]
[null,"Universe:  HOUSING UNITS"]
[null,"Data Set: 2005-2009 American Community Survey 5-Year Estimates"]
[]
[null,null,"Acworth",null,"Charlestown",null,"Claremont",null,"Cornish",null,"Croydon",null,"Goshen",null,"Grantham",null,"Langdon",null,"Lempster",null,"Newport",null,"Plainfield",null,"Springfield",null,"Sunapee",null,"Unity",null,"Washington"]
[null,null,"Estimate","Margin Of Error","Estimate","Margin Of Error","Estimate","Margin Of Error","Estimate","Margin Of Error","Estimate","Margin Of Error","Estimate","Margin Of Error","Estimate","Margin Of Error","Estimate","Margin Of Error","Estimate","Margin Of Error","Estimate","Margin Of Error","Estimate","Margin Of Error","Estimate","Margin Of Error","Estimate","Margin Of Error","Estimate","Margin Of Error","Estimate","Margin Of Error"]
[null,"Total",511,73,2205,126,6310,254,771,75,399,57,493,63,1590,115,249,61,635,64,2701,188,1046,92,528,66,2305,159,763,89,1009,76]

{"sheet":"ACS_Table_B25003","index":67,"n_rows":42,"n_cols":32,"rows_kept":42,"cut":false,"hidden":true,"merged":[]}
[null,"B25003. TENURE"]
[null,"Universe:  OCCUPIED HOUSING UNITS"]
[null,"Data Set: 2015-2019 American Community Survey 5-Year Estimates"]
[]
[null,null,"Acworth",null,"Charlestown",null,"Claremont",null,"Cornish",null,"Croydon",null,"Goshen",null,"Grantham",null,"Langdon",null,"Lempster",null,"Newport",null,"Plainfield",null,"Springfield",null,"Sunapee",null,"Unity",null,"Washington"]
[null,null,"Estimate","Margin Of Error","Estimate","Margin Of Error","Estimate","Margin Of Error","Estimate","Margin Of Error","Estimate","Margin Of Error","Estimate","Margin Of Error","Estimate","Margin Of Error","Estimate","Margin Of Error","Estimate","Margin Of Error","Estimate","Margin Of Error","Estimate","Margin Of Error","Estimate","Margin Of Error","Estimate","Margin Of Error","Estimate","Margin Of Error","Estimate","Margin Of Error"]
[null,"Total:",370,51,2086,184,5231,284,741,81,293,56,277,39,1222,142,257,47,393,59,2600,168,915,86,442,75,1393,139,571,56,537,81]
[null,"Owner occupied",340,50,1584,209,2921,257,686,79,257,53,223,35,1082,164,218,44,367,61,1743,186,803,78,398,71,1044,138,536,56,499,81]
[null,"Renter occupied",30,16,502,134,2310,288,55,26,36,22,54,23,140,79,39,21,26,16,857,184,112,49,44,33,349,122,35,20,38,28]
[]
[]
[]
[]
[]
[]
[]
[]
[]
[]
[]
[]
[null,"B25003. TENURE"]
[null,"Universe:  OCCUPIED HOUSING UNITS"]
[null,"Data Set: 2010-2014 American Community Survey 5-Year Estimates"]
[]
[null,null,"Acworth",null,"Charlestown",null,"Claremont",null,"Cornish",null,"Croydon",null,"Goshen",null,"Grantham",null,"Langdon",null,"Lempster",null,"Newport",null,"Plainfield",null,"Springfield",null,"Sunapee",null,"Unity",null,"Washington"]
[null,null,"Estimate","Margin Of Error","Estimate","Margin Of Error","Estimate","Margin Of Error","Estimate","Margin Of Error","Estimate","Margin Of Error","Estimate","Margin Of Error","Estimate","Margin Of Error","Estimate","Margin Of Error","Estimate","Margin Of Error","Estimate","Margin Of Error","Estimate","Margin Of Error","Estimate","Margin Of Error","Estimate","Margin Of Error","Estimate","Margin Of Error","Estimate","Margin Of Error"]
[null,"Total:",347,44,2185,131,5418,242,644,62,257,42,320,42,1084,82,284,42,425,55,2806,190,933,81,482,69,1496,87,529,62,449,64]
[null,"Owner occupied",274,40,1721,147,3486,249,550,56,213,37,254,35,991,88,255,38,375,51,1858,197,815,78,410,65,1068,125,513,58,418,62]
[null,"Renter occupied",73,32,464,161,1932,223,94,39,44,23,66,32,93,68,29,18,50,28,948,207,118,53,72,37,428,128,16,13,31,17]
[]
[]
[]
[null,"B25003. TENURE"]
[null,"Universe:  OCCUPIED HOUSING UNITS"]
[null,"Data Set: 2005-2009 American Community Survey 5-Year Estimates"]
[]
[null,null,"Acworth",null,"Charlestown",null,"Claremont",null,"Cornish",null,"Croydon",null,"Goshen",null,"Grantham",null,"Langdon",null,"Lempster",null,"Newport",null,"Plainfield",null,"Springfield",null,"Sunapee",null,"Unity",null,"Washington"]
[null,null,"Estimate","Margin Of Error","Estimate","Margin Of Error","Estimate","Margin Of Error","Estimate","Margin Of Error","Estimate","Margin Of Error","Estimate","Margin Of Error","Estimate","Margin Of Error","Estimate","Margin Of Error","Estimate","Margin Of Error","Estimate","Margin Of Error","Estimate","Margin Of Error","Estimate","Margin Of Error","Estimate","Margin Of Error","Estimate","Margin Of Error","Estimate","Margin Of Error"]
[null,"Total:",343,60,2138,130,5799,248,676,72,335,54,402,60,1016,69,222,59,468,57,2562,192,946,97,335,56,1422,128,648,87,527,62]
[null,"Owner occupied",300,54,1686,144,3164,254,588,66,281,45,330,57,921,71,212,58,394,54,1706,182,868,90,316,56,978,136,537,82,510,62]
[null,"Renter occupied",43,31,452,134,2635,251,88,36,54,36,72,40,95,52,10,16,74,29,856,193,78,46,19,18,444,119,111,44,17,12]

{"sheet":"ACS_Table_B25004","index":68,"n_rows":56,"n_cols":32,"rows_kept":56,"cut":false,"hidden":true,"merged":[]}
[null,"B25004. VACANCY STATUS"]
[null,"Universe:  VACANT HOUSING UNITS"]
[null,"Data Set: 2015-2019 American Community Survey 5-Year Estimates"]
[]
[null,null,"Acworth",null,"Charlestown",null,"Claremont",null,"Cornish",null,"Croydon",null,"Goshen",null,"Grantham",null,"Langdon",null,"Lempster",null,"Newport",null,"Plainfield",null,"Springfield",null,"Sunapee",null,"Unity",null,"Washington"]
[null,null,"Estimate","Margin Of Error","Estimate","Margin Of Error","Estimate","Margin Of Error","Estimate","Margin Of Error","Estimate","Margin Of Error","Estimate","Margin Of Error","Estimate","Margin Of Error","Estimate","Margin Of Error","Estimate","Margin Of Error","Estimate","Margin Of Error","Estimate","Margin Of Error","Estimate","Margin Of Error","Estimate","Margin Of Error","Estimate","Margin Of Error","Estimate","Margin Of Error"]
[null,"Total:",217,39,268,110,898,228,96,45,171,54,158,40,523,186,61,28,301,64,216,140,161,66,277,77,1199,161,155,44,623,79]
[null,"For rent",4,6,0,16,279,124,0,11,0,11,17,13,0,11,0,11,0,11,33,54,15,25,9,15,0,11,0,11,3,4]
[null,"Rented, not occupied",0,11,27,42,51,75,0,11,0,11,0,11,0,11,0,11,8,12,0,16,0,11,0,11,0,11,0,11,0,11]
[null,"For sale only",0,11,32,52,57,62,27,26,4,6,13,14,12,19,14,14,2,3,0,16,21,26,0,11,0,11,4,6,3,4]
[null,"Sold, not occupied",6,9,45,65,0,18,11,18,29,35,7,10,0,11,0,11,19,20,0,16,0,11,0,11,21,25,4,5,0,11]
[null,"For seasonal, recreational, or occasional use",192,36,164,83,217,151,58,37,123,41,118,34,511,185,35,21,233,53,145,115,107,47,250,75,1152,150,140,44,577,70]
[null,"For migrant workers",0,11,0,16,0,18,0,11,0,11,0,11,0,11,0,11,0,11,0,16,0,11,0,11,0,11,0,11,0,11]
[null,"Other vacant",15,14,0,16,294,164,0,11,15,15,3,5,0,11,12,15,39,26,38,61,18,28,18,20,26,41,7,10,40,29]
[]
[]
[]
[]
[]
[]
[]
[null,"B25004. VACANCY STATUS"]
[null,"Universe:  VACANT HOUSING UNITS"]
[null,"Data Set: 2010-2014 American Community Survey 5-Year Estimates"]
[]
[null,null,"Acworth",null,"Charlestown",null,"Claremont",null,"Cornish",null,"Croydon",null,"Goshen",null,"Grantham",null,"Langdon",null,"Lempster",null,"Newport",null,"Plainfield",null,"Springfield",null,"Sunapee",null,"Unity",null,"Washington"]
[null,null,"Estimate","Margin Of Error","Estimate","Margin Of Error","Estimate","Margin Of Error","Estimate","Margin Of Error","Estimate","Margin Of Error","Estimate","Margin Of Error","Estimate","Margin Of Error","Estimate","Margin Of Error","Estimate","Margin Of Error","Estimate","Margin Of Error","Estimate","Margin Of Error","Estimate","Margin Of Error","Estimate","Margin Of Error","Estimate","Margin Of Error","Estimate","Margin Of Error"]
[null,"Total:",209,47,213,103,771,215,107,45,119,37,78,32,579,134,34,23,179,55,282,162,52,34,185,54,1069,144,145,41,695,85]
[null,"For rent",0,11,68,75,132,106,0,11,0,11,0,11,0,11,0,11,0,11,39,62,0,11,0,11,33,42,9,14,0,11]
[null,"Rented, not occupied",0,11,0,11,0,17,0,11,0,11,0,11,16,24,0,11,0,11,0,15,0,11,0,11,0,11,0,11,5,7]
[null,"For sale only",17,14,0,11,56,48,10,16,6,10,3,5,0,11,0,11,0,11,0,15,6,8,4,7,0,11,0,11,21,20]
[null,"Sold, not occupied",0,11,0,11,0,17,0,11,0,11,0,11,40,55,0,11,0,11,0,15,0,11,0,11,0,11,0,11,0,11]
[null,"For seasonal, recreational, or occasional use",179,41,72,77,164,115,54,36,100,33,63,29,513,135,25,19,162,53,99,91,6,8,146,47,943,148,121,37,657,83]
[null,"For migrant workers",0,11,0,11,0,17,0,11,0,11,0,11,0,11,0,11,0,11,0,15,0,11,0,11,0,11,0,11,0,11]
[null,"Other vacant",13,12,73,77,419,155,43,33,13,14,12,13,10,16,9,11,17,18,144,131,40,33,35,26,93,69,15,17,12,14]
[]
[]
[]
[]
[]
[]
[]
[null,"B25004. VACANCY STATUS"]
[null,"Universe:  VACANT HOUSING UNITS"]
[null,"Data Set: 2005-2009 American Community Survey 5-Year Estimates"]
[]
[null,null,"Acworth",null,"Charlestown",null,"Claremont",null,"Cornish",null,"Croydon",null,"Goshen",null,"Grantham",null,"Langdon",null,"Lempster",null,"Newport",null,"Plainfield",null,"Springfield",null,"Sunapee",null,"Unity",null,"Washington"]
[null,null,"Estimate","Margin Of Error","Estimate","Margin Of Error","Estimate","Margin Of Error","Estimate","Margin Of Error","Estimate","Margin Of Error","Estimate","Margin Of Error","Estimate","Margin Of Error","Estimate","Margin Of Error","Estimate","Margin Of Error","Estimate","Margin Of Error","Estimate","Margin Of Error","Estimate","Margin Of Error","Estimate","Margin Of Error","Estimate","Margin Of Error","Estimate","Margin Of Error"]
[null,"Total:",168,52,67,79,511,165,95,42,64,28,91,39,574,105,27,21,167,43,139,100,100,63,193,58,883,144,115,47,482,68]
[null,"For rent",10,16,0,114,121,94,0,114,0,114,10,16,0,114,8,13,0,114,0,114,26,32,9,15,0,114,0,114,10,16]
[null,"Rented, not occupied",0,114,0,114,40,63,9,15,0,114,0,114,0,114,0,114,0,114,0,114,0,114,8,12,61,67,0,114,0,114]
[null,"For sale only",5,8,0,114,95,81,10,15,0,114,0,114,27,30,0,114,16,18,39,64,0,114,25,22,54,52,5,8,5,8]
[null,"Sold, not occupied",0,114,0,114,16,26,0,114,0,114,9,14,30,33,10,15,0,114,0,114,21,31,0,114,0,114,0,114,0,114]
[null,"For seasonal, recreational, or occasional use",142,52,67,79,73,64,52,28,64,28,72,35,507,104,9,11,151,42,57,70,33,33,133,41,730,142,100,45,450,66]
[null,"For migrant workers",0,114,0,114,0,114,0,114,0,114,0,114,0,114,0,114,0,114,0,114,0,114,0,114,0,114,0,114,0,114]
[null,"Other vacant",11,13,0,114,166,104,24,18,0,114,0,114,10,16,0,114,0,114,43,71,20,30,18,18,38,42,10,12,17,18]

{"sheet":"ACS_Table_B25008","index":69,"n_rows":51,"n_cols":32,"rows_kept":51,"cut":false,"hidden":true,"merged":[]}
[null,"B25008. TOTAL POPULATION IN OCCUPIED HOUSING UNITS BY TENURE"]
[null,"Universe:  TOTAL POPULATION IN OCCUPIED HOUSING UNITS"]
[null,"Data Set: 2015-2019 American Community Survey 5-Year Estimates"]
[]
[null,null,"Acworth",null,"Charlestown",null,"Claremont",null,"Cornish",null,"Croydon",null,"Goshen",null,"Grantham",null,"Langdon",null,"Lempster",null,"Newport",null,"Plainfield",null,"Springfield",null,"Sunapee",null,"Unity",null,"Washington"]
[null,null,"Estimate","Margin Of Error","Estimate","Margin Of Error","Estimate","Margin Of Error","Estimate","Margin Of Error","Estimate","Margin Of Error","Estimate","Margin Of Error","Estimate","Margin Of Error","Estimate","Margin Of Error","Estimate","Margin Of Error","Estimate","Margin Of Error","Estimate","Margin Of Error","Estimate","Margin Of Error","Estimate","Margin Of Error","Estimate","Margin Of Error","Estimate","Margin Of Error"]
[null,"Total:",906,134,5003,23,12846,112,1783,217,863,244,680,109,2945,14,712,145,923,176,6236,79,2415,293,1084,198,3434,21,1331,148,1199,188]
[null,"Owner occupied",830,141,3866,422,7564,649,1677,218,730,235,561,99,2519,303,575,117,875,183,4260,491,2052,256,974,180,2771,249,1243,145,1105,194]
[null,"Renter occupied",76,51,1137,420,5282,650,106,51,133,88,119,68,426,303,137,97,48,27,1976,495,363,243,110,96,663,249,88,52,94,74]
[]
[]
[]
[]
[]
[]
[]
[]
[]
[]
[]
[]
[null,"B25008. TOTAL POPULATION IN OCCUPIED HOUSING UNITS BY TENURE"]
[null,"Universe:  TOTAL POPULATION IN OCCUPIED HOUSING UNITS"]
[null,"Data Set: 2010-2014 American Community Survey 5-Year Estimates"]
[]
[null,null,"Acworth",null,"Charlestown",null,"Claremont",null,"Cornish",null,"Croydon",null,"Goshen",null,"Grantham",null,"Langdon",null,"Lempster",null,"Newport",null,"Plainfield",null,"Springfield",null,"Sunapee",null,"Unity",null,"Washington"]
[null,null,"Estimate","Margin Of Error","Estimate","Margin Of Error","Estimate","Margin Of Error","Estimate","Margin Of Error","Estimate","Margin Of Error","Estimate","Margin Of Error","Estimate","Margin Of Error","Estimate","Margin Of Error","Estimate","Margin Of Error","Estimate","Margin Of Error","Estimate","Margin Of Error","Estimate","Margin Of Error","Estimate","Margin Of Error","Estimate","Margin Of Error","Estimate","Margin Of Error"]
[null,"Total:",923,163,5028,44,13040,78,1601,179,650,141,819,128,2970,25,787,149,1089,147,6311,112,2412,165,1313,217,3342,31,1352,149,1013,140]
[null,"Owner occupied",685,109,4237,313,8788,504,1333,161,537,132,607,121,2709,148,716,143,950,125,4500,440,2140,175,1161,207,2444,290,1302,143,915,123]
[null,"Renter occupied",238,137,791,310,4252,514,268,125,113,59,212,103,261,146,71,47,139,91,1811,429,272,118,152,81,898,290,50,39,98,64]
[]
[]
[]
[]
[]
[]
[]
[]
[]
[]
[]
[]
[null,"B25008. TOTAL POPULATION IN OCCUPIED HOUSING UNITS BY TENURE"]
[null,"Universe:  TOTAL POPULATION IN OCCUPIED HOUSING UNITS"]
[null,"Data Set: 2005-2009 American Community Survey 5-Year Estimates"]
[]
[null,null,"Acworth",null,"Charlestown",null,"Claremont",null,"Cornish",null,"Croydon",null,"Goshen",null,"Grantham",null,"Langdon",null,"Lempster",null,"Newport",null,"Plainfield",null,"Springfield",null,"Sunapee",null,"Unity",null,"Washington"]
[null,null,"Estimate","Margin Of Error","Estimate","Margin Of Error","Estimate","Margin Of Error","Estimate","Margin Of Error","Estimate","Margin Of Error","Estimate","Margin Of Error","Estimate","Margin Of Error","Estimate","Margin Of Error","Estimate","Margin Of Error","Estimate","Margin Of Error","Estimate","Margin Of Error","Estimate","Margin Of Error","Estimate","Margin Of Error","Estimate","Margin Of Error","Estimate","Margin Of Error"]
[null,"Total:",822,164,4872,23,12879,253,1750,201,759,129,913,149,2516,18,586,170,1148,165,6219,184,2535,256,836,152,3352,40,1599,236,1263,169]
[null,"Owner occupied",703,142,4018,264,7819,688,1535,186,657,118,774,153,2314,111,576,172,969,147,4407,455,2349,252,796,154,2384,292,1321,216,1206,165]
[null,"Renter occupied",119,89,854,267,5060,633,215,118,102,73,139,77,202,109,10,16,179,81,1812,455,186,130,40,39,968,293,278,151,57,45]

{"sheet":"ACS_Table_B25024","index":70,"n_rows":78,"n_cols":32,"rows_kept":78,"cut":false,"hidden":true,"merged":[]}
[null,"B25024. UNITS IN STRUCTURE "]
[null,"Universe:  HOUSING UNITS"]
[null,"Data Set: 2015-2019 American Community Survey 5-Year Estimates"]
[]
[null,null,"Acworth",null,"Charlestown",null,"Claremont",null,"Cornish",null,"Croydon",null,"Goshen",null,"Grantham",null,"Langdon",null,"Lempster",null,"Newport",null,"Plainfield",null,"Springfield",null,"Sunapee",null,"Unity",null,"Washington"]
[null,null,"Estimate","Margin Of Error","Estimate","Margin Of Error","Estimate","Margin Of Error","Estimate","Margin Of Error","Estimate","Margin Of Error","Estimate","Margin Of Error","Estimate","Margin Of Error","Estimate","Margin Of Error","Estimate","Margin Of Error","Estimate","Margin Of Error","Estimate","Margin Of Error","Estimate","Margin Of Error","Estimate","Margin Of Error","Estimate","Margin Of Error","Estimate","Margin Of Error"]
[null,"Total:",587,53,2354,203,6129,297,837,83,464,75,435,52,1745,211,318,45,694,76,2816,228,1076,83,719,93,2592,180,726,60,1160,88]
[null,"1, detached",560,51,1240,233,3095,311,788,83,419,72,365,48,1443,226,295,45,606,74,1750,237,950,79,615,91,2078,197,608,56,1082,87]
[null,"1, attached",2,4,6,13,101,79,9,8,6,7,2,3,126,107,0,11,8,9,27,32,19,13,3,5,89,70,2,4,0,11]
[null,2,0,11,109,85,690,179,20,24,1,3,0,11,112,94,11,11,5,6,149,86,23,22,12,14,174,98,11,14,13,15]
[null,"3 or 4",0,11,152,91,744,196,0,11,0,11,13,14,64,82,0,11,0,11,225,103,16,18,0,11,84,73,0,11,9,13]
[null,"5 to 9",0,11,47,58,579,163,0,11,0,11,12,9,0,11,0,11,0,11,102,74,0,11,0,11,74,61,0,11,0,11]
[null,"10 to 19",0,11,16,26,85,79,0,11,0,11,6,9,0,11,0,11,0,11,55,68,22,25,0,11,18,29,0,11,0,11]
[null,"20 to 49",2,3,46,37,218,103,0,11,0,11,0,11,0,11,0,11,0,11,155,104,0,11,0,11,7,16,0,11,0,11]
[null,"50 or more",0,11,0,16,252,95,0,11,0,11,0,11,0,11,0,11,3,4,12,21,0,11,0,11,33,52,0,11,0,11]
[null,"Mobile home",23,16,738,195,365,138,20,15,38,23,37,19,0,11,12,10,72,35,341,147,46,21,89,46,35,49,105,33,56,32]
[null,"Boat, RV, van, etc.",0,11,0,16,0,18,0,11,0,11,0,11,0,11,0,11,0,11,0,16,0,11,0,11,0,11,0,11,0,11]
[]
[]
[null,"Calculated B25024. UNITS IN STRUCTURE "]
[null,"Universe:  HOUSING UNITS"]
[null,"Data Set: 2015-2019 American Community Survey 5-Year Estimates"]
[]
[null,null,"Acworth",null,"Charlestown",null,"Claremont",null,"Cornish",null,"Croydon",null,"Goshen",null,"Grantham",null,"Langdon",null,"Lempster",null,"Newport",null,"Plainfield",null,"Springfield",null,"Sunapee",null,"Unity",null,"Washington"]
[null,null,"Estimate","Margin Of Error","Estimate","Margin Of Error","Estimate","Margin Of Error","Estimate","Margin Of Error","Estimate","Margin Of Error","Estimate","Margin Of Error","Estimate","Margin Of Error","Estimate","Margin Of Error","Estimate","Margin Of Error","Estimate","Margin Of Error","Estimate","Margin Of Error","Estimate","Margin Of Error","Estimate","Margin Of Error","Estimate","Margin Of Error","Estimate","Margin Of Error"]
[null,"Total:",{"$f":"C7","v":587},53,2354,203,6129,297,837,83,464,75,435,52,1745,211,318,45,694,76,2816,228,1076,83,{"$f":"Y7","v":719},93,2592,180,{"$f":"AC7","v":726},60,1160,88]
[null,"Single Family",{"$f":"C8","v":560},51,1240,233,3095,311,788,83,419,72,365,48,1443,226,295,45,606,74,1750,237,950,79,615,91,2078,197,{"$f":"AC8","v":608},56,1082,87]
[null,"Multi-Family",{"$f":"C9+C10+C11+C12+C13+C14+C15","v":4},{"$f":"SQRT((D9^2)+(D10^2)+(D11^2)+(D12^2)+(D13^2)+(D14^2)+(D15^2))","v":25.099800796022265},{"$f":"E9+E10+E11+E12+E13+E14+E15","v":376},{"$f":"SQRT((F9^2)+(F10^2)+(F11^2)+(F12^2)+(F13^2)+(F14^2)+(F15^2))","v":146.08216865860118},{"$f":"G9+G10+G11+G12+G13+G14+G15","v":2669},{"$f":"SQRT((H9^2)+(H10^2)+(H11^2)+(H12^2)+(H13^2)+(H14^2)+(H15^2))","v":359.36332589734309},{"$f":"I9+I10+I11+I12+I13+I14+I15","v":29},{"$f":"SQRT((J9^2)+(J10^2)+(J11^2)+(J12^2)+(J13^2)+(J14^2)+(J15^2))","v":35.284557528754704},{"$f":"K9+K10+K11+K12+K13+K14+K15","v":7},{"$f":"SQRT((L9^2)+(L10^2)+(L11^2)+(L12^2)+(L13^2)+(L14^2)+(L15^2))","v":25.748786379167466},{"$f":"M9+M10+M11+M12+M13+M14+M15","v":33},{"$f":"SQRT((N9^2)+(N10^2)+(N11^2)+(N12^2)+(N13^2)+(N14^2)+(N15^2))","v":27.018512172212592},{"$f":"O9+O10+O11+O12+O13+O14+O15","v":302},{"$f":"SQRT((P9^2)+(P10^2)+(P11^2)+(P12^2)+(P13^2)+(P14^2)+(P15^2))","v":165.81013238038258},{"$f":"Q9+Q10+Q11+Q12+Q13+Q14+Q15","v":11},{"$f":"SQRT((R9^2)+(R10^2)+(R11^2)+(R12^2)+(R13^2)+(R14^2)+(R15^2))","v":29.103264421710495},{"$f":"S9+S10+S11+S12+S13+S14+S15","v":16},{"$f":"SQRT((T9^2)+(T10^2)+(T11^2)+(T12^2)+(T13^2)+(T14^2)+(T15^2))","v":24.839484696748443},{"$f":"U9+U10+U11+U12+U13+U14+U15","v":725},{"$f":"SQRT((V9^2)+(V10^2)+(V11^2)+(V12^2)+(V13^2)+(V14^2)+(V15^2))","v":200.96268310310748},{"$f":"W9+W10+W11+W12+W13+W14+W15","v":80},{"$f":"SQRT((X9^2)+(X10^2)+(X11^2)+(X12^2)+(X13^2)+(X14^2)+(X15^2))","v":44.328320518603},{"$f":"Y9+Y10+Y11+Y12+Y13+Y14+Y15","v":15},{"$f":"SQRT((Z9^2)+(Z10^2)+(Z11^2)+(Z12^2)+(Z13^2)+(Z14^2)+(Z15^2))","v":28.740215726399828},{"$f":"AA9+AA10+AA11+AA12+AA13+AA14+AA15","v":479},{"$f":"SQRT((AB9^2)+(AB10^2)+(AB11^2)+(AB12^2)+(AB13^2)+(AB14^2)+(AB15^2))","v":165.39347024595619},{"$f":"AC9+AC10+AC11+AC12+AC13+AC14+AC15","v":13},{"$f":"SQRT((AD9^2)+(AD10^2)+(AD11^2)+(AD12^2)+(AD13^2)+(AD14^2)+(AD15^2))","v":28.583211855912904},{"$f":"AE9+AE10+AE11+AE12+AE13+AE14+AE15","v":22},{"$f":"SQRT((AF9^2)+(AF10^2)+(AF11^2)+(AF12^2)+(AF13^2)+(AF14^2)+(AF15^2))","v":31.606961258558215}]
[null,"Mobile Home & Other",{"$f":"C16+C17","v":23},{"$f":"SQRT((D16^2)+(D17^2))","v":19.416487838947599},{"$f":"E16+E17","v":738},{"$f":"SQRT((F16^2)+(F17^2))","v":195.65530915362353},{"$f":"G16+G17","v":365},{"$f":"SQRT((H16^2)+(H17^2))","v":139.16896205691842},{"$f":"I16+I17","v":20},{"$f":"SQRT((J16^2)+(J17^2))","v":18.601075237738275},{"$f":"K16+K17","v":38},{"$f":"SQRT((L16^2)+(L17^2))","v":25.495097567963924},{"$f":"M16+M17","v":37},{"$f":"SQRT((N16^2)+(N17^2))","v":21.95449840010015},{"$f":"O16+O17","v":0},{"$f":"SQRT((P16^2)+(P17^2))","v":15.556349186104045},{"$f":"Q16+Q17","v":12},{"$f":"SQRT((R16^2)+(R17^2))","v":14.866068747318506},{"$f":"S16+S17","v":72},{"$f":"SQRT((T16^2)+(T17^2))","v":36.687872655688281},{"$f":"U16+U17","v":341},{"$f":"SQRT((V16^2)+(V17^2))","v":147.8681845428556},{"$f":"W16+W17","v":46},{"$f":"SQRT((X16^2)+(X17^2))","v":23.706539182259394},{"$f":"Y16+Y17","v":89},{"$f":"SQRT((Z16^2)+(Z17^2))","v":47.296934361541872},{"$f":"AA16+AA17","v":35},{"$f":"SQRT((AB16^2)+(AB17^2))","v":50.219518117958877},{"$f":"AC16+AC17","v":105},{"$f":"SQRT((AD16^2)+(AD17^2))","v":34.785054261852174},{"$f":"AE16+AE17","v":56},{"$f":"SQRT((AF16^2)+(AF17^2))","v":33.837848631377263}]
[]
[]
[]
[]
[]
[]
[]
[]
[]
[]
[]
[]
[]
[]
[]
[]
[]
[]
[]
[]
[]
[]
[]
[]
[]
[]
[]
[null,"Calculated B25024. UNITS IN STRUCTURE "]
[null,"Universe:  HOUSING UNITS"]
[null,"Data Set: 2010-2014 American Community Survey 5-Year Estimates"]
[]
[null,null,"Acworth",null,"Charlestown",null,"Claremont",null,"Cornish",null,"Croydon",null,"Goshen",null,"Grantham",null,"Langdon",null,"Lempster",null,"Newport",null,"Plainfield",null,"Springfield",null,"Sunapee",null,"Unity",null,"Washington"]
[null,null,"Estimate","Margin Of Error","Estimate","Margin Of Error","Estimate","Margin Of Error","Estimate","Margin Of Error","Estimate","Margin Of Error","Estimate","Margin Of Error","Estimate","Margin Of Error","Estimate","Margin Of Error","Estimate","Margin Of Error","Estimate","Margin Of Error","Estimate","Margin Of Error","Estimate","Margin Of Error","Estimate","Margin Of Error","Estimate","Margin Of Error","Estimate","Margin Of Error"]
[null,"Total:",556,51,2398,155,6189,227,751,65,376,44,398,51,1663,132,318,47,604,67,3088,184,985,79,667,79,2565,133,674,64,1144,77]
[null,"Single Family",507,51,1510,225,3270,252,659,64,340,41,331,46,1428,155,288,44,530,75,1831,215,818,85,628,79,2080,145,595,64,1080,74]
[null,"Multi-Family",8,25.632011235952593,316,153.4861557274792,2514,344.68681436921838,46,33.734255586865999,11,27.110883423451916,20,26.92582403567252,224,95.551033484730027,18,32.403703492039298,13,27.073972741361768,1048,242.1796853577938,99,51,3,27.404379212089442,423,139.43098651304163,0,29.103264421710495,15,28.948229652260256]
[null,"Mobile Home & Other",41,20.396078054371138,572,143.42245291445826,405,114.27160627207444,46,29.154759474226502,25,19.416487838947599,47,26.40075756488817,11,21.095023109728988,12,14.212670403551895,61,27.313000567495326,209,128.87590930814028,68,27.313000567495326,36,23.706539182259394,62,53.150729063673246,79,31.016124838541646,49,31.953090617340916]
[]
[]
[null,"Calculated B25024. UNITS IN STRUCTURE "]
[null,"Universe:  HOUSING UNITS"]
[null,"Data Set: 2005-2009 American Community Survey 5-Year Estimates"]
[]
[null,null,"Acworth",null,"Charlestown",null,"Claremont",null,"Cornish",null,"Croydon",null,"Goshen",null,"Grantham",null,"Langdon",null,"Lempster",null,"Newport",null,"Plainfield",null,"Springfield",null,"Sunapee",null,"Unity",null,"Washington"]
[null,null,"Estimate","Margin Of Error","Estimate","Margin Of Error","Estimate","Margin Of Error","Estimate","Margin Of Error","Estimate","Margin Of Error","Estimate","Margin Of Error","Estimate","Margin Of Error","Estimate","Margin Of Error","Estimate","Margin Of Error","Estimate","Margin Of Error","Estimate","Margin Of Error","Estimate","Margin Of Error","Estimate","Margin Of Error","Estimate","Margin Of Error","Estimate","Margin Of Error"]
[null,"Total:",511,73,2205,126,6310,254,771,75,399,57,493,63,1590,115,249,61,635,64,2701,188,1046,92,528,66,2305,159,763,89,1009,76]
[null,"Single Family",439,73,1095,130,2958,242,661,76,367,52,421,65,1272,117,207,59,527,60,1465,196,938,92,471,64,1714,180,610,84,951,75]
[null,"Multi-Family",15,255.59538336988797,307,173.96838793298051,2915,366.82966074187624,38,229.13969538253298,0,301.61564946136332,35,229.08077178148324,312,246.53802952080233,0,301.61564946136332,21,228.62633269157777,861,263.92044255797998,48,230.62957312539083,9,279.42082957431791,499,201.96039215648202,29,281.1849924871525,8,228.10962276940444]
[null,"Mobile Home & Other",57,117.38824472663352,803,190.80094339389416,437,161.22034611053283,72,122.93087488503447,32,116.92732785794773,37,115.91807451816995,6,114.43775600735974,42,117.63077828527702,87,117.38824472663352,375,175.17134468856486,60,115.7410903698423,48,116.29703349613007,92,132.23085872821065,124,122.93087488503447,50,118.40608092492548]

{"sheet":"ACS_Table_B25032","index":71,"n_rows":119,"n_cols":32,"rows_kept":119,"cut":false,"hidden":true,"merged":[]}
[null,"B25032. TENURE BY UNITS IN STRUCTURE "]
[null,"Universe:  OCCUPIED HOUSING UNITS"]
[null,"Data Set: 2015-2019 American Community Survey 5-Year Estimates"]
[]
[null,null,"Acworth",null,"Charlestown",null,"Claremont",null,"Cornish",null,"Croydon",null,"Goshen",null,"Grantham",null,"Langdon",null,"Lempster",null,"Newport",null,"Plainfield",null,"Springfield",null,"Sunapee",null,"Unity",null,"Washington"]
[null,null,"Estimate","Margin Of Error","Estimate","Margin Of Error","Estimate","Margin Of Error","Estimate","Margin Of Error","Estimate","Margin Of Error","Estimate","Margin Of Error","Estimate","Margin Of Error","Estimate","Margin Of Error","Estimate","Margin Of Error","Estimate","Margin Of Error","Estimate","Margin Of Error","Estimate","Margin Of Error","Estimate","Margin Of Error","Estimate","Margin Of Error","Estimate","Margin Of Error"]
[null,"Total:",370,51,2086,184,5231,284,741,81,293,56,277,39,1222,142,257,47,393,59,2600,168,915,86,442,75,1393,139,571,56,537,81]
[null,"Owner-occupied housing units:",340,50,1584,209,2921,257,686,79,257,53,223,35,1082,164,218,44,367,61,1743,186,803,78,398,71,1044,138,536,56,499,81]
[null,"1, detached",324,48,958,198,2458,251,664,77,225,49,198,37,1050,175,210,44,345,61,1376,197,746,79,332,58,972,144,444,54,483,82]
[null,"1, attached",2,4,6,13,59,56,6,6,4,5,2,3,0,11,0,11,8,9,14,23,9,9,3,5,58,53,2,4,0,11]
[null,2,0,11,56,56,103,50,0,11,1,3,0,11,32,46,3,4,5,6,39,38,9,9,0,11,10,14,3,4,13,15]
[null,"3 or 4",0,11,17,27,83,59,0,11,0,11,0,11,0,11,0,11,0,11,0,16,0,11,0,11,0,11,0,11,0,11]
[null,"5 to 9",0,11,0,16,0,18,0,11,0,11,0,11,0,11,0,11,0,11,13,22,0,11,0,11,0,11,0,11,0,11]
[null,"10 to 19",0,11,0,16,0,18,0,11,0,11,0,11,0,11,0,11,0,11,0,16,0,11,0,11,0,11,0,11,0,11]
[null,"20 to 49",0,11,0,16,0,18,0,11,0,11,0,11,0,11,0,11,0,11,0,16,0,11,0,11,0,11,0,11,0,11]
[null,"50 or more",0,11,0,16,0,18,0,11,0,11,0,11,0,11,0,11,3,4,0,16,0,11,0,11,0,11,0,11,0,11]
[null,"Mobile home",14,12,547,175,218,78,16,13,27,21,23,17,0,11,5,5,6,6,301,141,39,18,63,41,4,8,87,30,3,4]
[null,"Boat, RV, van, etc.",0,11,0,16,0,18,0,11,0,11,0,11,0,11,0,11,0,11,0,16,0,11,0,11,0,11,0,11,0,11]
[null,"Renter-occupied housing units:",30,16,502,134,2310,288,55,26,36,22,54,23,140,79,39,21,26,16,857,184,112,49,44,33,349,122,35,20,38,28]
[null,"1, detached",28,16,147,78,294,127,38,19,29,19,29,19,79,60,29,20,20,15,231,109,57,39,32,31,157,90,23,14,35,28]
[null,"1, attached",0,11,0,16,0,18,3,4,2,5,0,11,46,67,0,11,0,11,13,21,10,11,0,11,0,11,0,11,0,11]
[null,2,0,11,53,67,424,147,10,17,0,11,0,11,0,11,8,10,0,11,110,78,0,11,12,14,0,11,8,13,0,11]
[null,"3 or 4",0,11,135,96,578,178,0,11,0,11,6,9,15,23,0,11,0,11,225,103,16,18,0,11,55,58,0,11,0,11]
[null,"5 to 9",0,11,47,58,368,115,0,11,0,11,7,10,0,11,0,11,0,11,56,49,0,11,0,11,48,46,0,11,0,11]
[null,"10 to 19",0,11,16,26,85,79,0,11,0,11,6,9,0,11,0,11,0,11,55,68,22,25,0,11,18,29,0,11,0,11]
[null,"20 to 49",2,3,46,37,187,83,0,11,0,11,0,11,0,11,0,11,0,11,155,104,0,11,0,11,7,16,0,11,0,11]
[null,"50 or more",0,11,0,16,252,95,0,11,0,11,0,11,0,11,0,11,0,11,12,21,0,11,0,11,33,52,0,11,0,11]
[null,"Mobile home",0,11,58,52,122,110,4,6,5,10,6,4,0,11,2,3,6,6,0,16,7,10,0,11,31,48,4,6,3,4]
[null,"Boat, RV, van, etc.",0,11,0,16,0,18,0,11,0,11,0,11,0,11,0,11,0,11,0,16,0,11,0,11,0,11,0,11,0,11]
[]
[]
[null,"Calculated B25032. TENURE BY UNITS IN STRUCTURE "]
[null,"Universe:  OCCUPIED HOUSING UNITS"]
[null,"Data Set: 2015-2019 American Community Survey 5-Year Estimates"]
[]
[null,null,"Acworth",null,"Charlestown",null,"Claremont",null,"Cornish",null,"Croydon",null,"Goshen",null,"Grantham",null,"Langdon",null,"Lempster",null,"Newport",null,"Plainfield",null,"Springfield",null,"Sunapee",null,"Unity",null,"Washington"]
[null,null,"Estimate","Margin Of Error","Estimate","Margin Of Error","Estimate","Margin Of Error","Estimate","Margin Of Error","Estimate","Margin Of Error","Estimate","Margin Of Error","Estimate","Margin Of Error","Estimate","Margin Of Error","Estimate","Margin Of Error","Estimate","Margin Of Error","Estimate","Margin Of Error","Estimate","Margin Of Error","Estimate","Margin Of Error","Estimate","Margin Of Error","Estimate","Margin Of Error"]
[null,"Total:",{"$f":"C7","v":370},51,2086,184,5231,284,741,81,293,56,277,39,1222,142,257,47,{"$f":"S7","v":393},59,2600,168,915,86,442,75,1393,139,{"$f":"AC7","v":571},56,537,81]
[null,"Owner-occupied housing units:",340,50,1584,209,2921,257,686,79,257,53,223,35,1082,164,218,44,367,61,1743,186,803,78,398,71,1044,138,{"$f":"AC8","v":536},56,499,81]
[null,"Single Family",{"$f":"C9","v":324},48,{"$f":"E9","v":958},198,{"$f":"G9","v":2458},251,{"$f":"I9","v":664},77,{"$f":"K9","v":225},49,{"$f":"M9","v":198},37,{"$f":"O9","v":1050},175,{"$f":"Q9","v":210},44,{"$f":"S9","v":345},61,{"$f":"U9","v":1376},197,{"$f":"W9","v":746},79,{"$f":"Y9","v":332},58,{"$f":"AA9","v":972},144,{"$f":"AC9","v":444},{"$f":"AD9","v":54},{"$f":"AE9","v":483},{"$f":"AF9","v":82}]
[null,"Multi-Family",{"$f":"C10+C11+C12+C13+C14+C15+C16","v":2},{"$f":"SQRT((D10^2)+(D11^2)+(D12^2)+(D13^2)+(D14^2)+(D15^2)+(D16^2))","v":27.239676943752471},{"$f":"E10+E11+E12+E13+E14+E15+E16","v":79},{"$f":"SQRT((F10^2)+(F11^2)+(F12^2)+(F13^2)+(F14^2)+(F15^2)+(F16^2))","v":71.119617546778187},{"$f":"G10+G11+G12+G13+G14+G15+G16","v":245},{"$f":"SQRT((H10^2)+(H11^2)+(H12^2)+(H13^2)+(H14^2)+(H15^2)+(H16^2))","v":102.04410811016969},{"$f":"I10+I11+I12+I13+I14+I15+I16","v":6},{"$f":"SQRT((J10^2)+(J11^2)+(J12^2)+(J13^2)+(J14^2)+(J15^2)+(J16^2))","v":27.604347483684521},{"$f":"K10+K11+K12+K13+K14+K15+K16","v":5},{"$f":"SQRT((L10^2)+(L11^2)+(L12^2)+(L13^2)+(L14^2)+(L15^2)+(L16^2))","v":25.278449319529077},{"$f":"M10+M11+M12+M13+M14+M15+M16","v":2},{"$f":"SQRT((N10^2)+(N11^2)+(N12^2)+(N13^2)+(N14^2)+(N15^2)+(N16^2))","v":27.110883423451916},{"$f":"O10+O11+O12+O13+O14+O15+O16","v":32},{"$f":"SQRT((P10^2)+(P11^2)+(P12^2)+(P13^2)+(P14^2)+(P15^2)+(P16^2))","v":53.310411741047361},{"$f":"Q10+Q11+Q12+Q13+Q14+Q15+Q16","v":3},{"$f":"SQRT((R10^2)+(R11^2)+(R12^2)+(R13^2)+(R14^2)+(R15^2)+(R16^2))","v":27.239676943752471},{"$f":"S10+S11+S12+S13+S14+S15+S16","v":16},{"$f":"SQRT((T10^2)+(T11^2)+(T12^2)+(T13^2)+(T14^2)+(T15^2)+(T16^2))","v":24.839484696748443},{"$f":"U10+U11+U12+U13+U14+U15+U16","v":66},{"$f":"SQRT((V10^2)+(V11^2)+(V12^2)+(V13^2)+(V14^2)+(V15^2)+(V16^2))","v":59},{"$f":"W10+W11+W12+W13+W14+W15+W16","v":18},{"$f":"SQRT((X10^2)+(X11^2)+(X12^2)+(X13^2)+(X14^2)+(X15^2)+(X16^2))","v":27.694764848252458},{"$f":"Y10+Y11+Y12+Y13+Y14+Y15+Y16","v":3},{"$f":"SQRT((Z10^2)+(Z11^2)+(Z12^2)+(Z13^2)+(Z14^2)+(Z15^2)+(Z16^2))","v":27.404379212089442},{"$f":"AA10+AA11+AA12+AA13+AA14+AA15+AA16","v":68},{"$f":"SQRT((AB10^2)+(AB11^2)+(AB12^2)+(AB13^2)+(AB14^2)+(AB15^2)+(AB16^2))","v":60.083275543199207},{"$f":"AC10+AC11+AC12+AC13+AC14+AC15+AC16","v":5},{"$f":"SQRT((AD10^2)+(AD11^2)+(AD12^2)+(AD13^2)+(AD14^2)+(AD15^2)+(AD16^2))","v":25.238858928247925},{"$f":"AE10+AE11+AE12+AE13+AE14+AE15+AE16","v":13},{"$f":"SQRT((AF10^2)+(AF11^2)+(AF12^2)+(AF13^2)+(AF14^2)+(AF15^2)+(AF16^2))","v":30.838287890218549}]
[null,"Mobile Home & Other",{"$f":"C17+C18","v":14},{"$f":"SQRT((D17^2)+(D18^2))","v":16.278820596099706},{"$f":"E17+E18","v":547},{"$f":"SQRT((F17^2)+(F18^2))","v":175.72990639046048},{"$f":"G17+G18","v":218},{"$f":"SQRT((H17^2)+(H18^2))","v":80.049984384758005},{"$f":"I17+I18","v":16},{"$f":"SQRT((J17^2)+(J18^2))","v":17.029386365926403},{"$f":"K17+K18","v":27},{"$f":"SQRT((L17^2)+(L18^2))","v":23.706539182259394},{"$f":"M17+M18","v":23},{"$f":"SQRT((N17^2)+(N18^2))","v":20.248456731316587},{"$f":"O17+O18","v":0},{"$f":"SQRT((P17^2)+(P18^2))","v":15.556349186104045},{"$f":"Q17+Q18","v":5},{"$f":"SQRT((R17^2)+(R18^2))","v":12.083045973594572},{"$f":"S17+S18","v":6},{"$f":"SQRT((T17^2)+(T18^2))","v":12.529964086141668},{"$f":"U17+U18","v":301},{"$f":"SQRT((V17^2)+(V18^2))","v":141.90489773083945},{"$f":"W17+W18","v":39},{"$f":"SQRT((X17^2)+(X18^2))","v":21.095023109728988},{"$f":"Y17+Y18","v":63},{"$f":"SQRT((Z17^2)+(Z18^2))","v":42.449970553582247},{"$f":"AA17+AA18","v":4},{"$f":"SQRT((AB17^2)+(AB18^2))","v":13.601470508735444},{"$f":"AC17+AC18","v":87},{"$f":"SQRT((AD17^2)+(AD18^2))","v":31.953090617340916},{"$f":"AE17+AE18","v":3},{"$f":"SQRT((AF17^2)+(AF18^2))","v":11.704699910719626}]
[null,"Renter-occupied housing units:",{"$f":"C19","v":30},16,502,134,2310,288,55,26,36,22,54,23,140,79,39,21,{"$f":"S19","v":26},16,857,184,112,49,44,33,349,122,{"$f":"AC19","v":35},20,38,28]
[null,"Single Family",28,16,147,78,294,127,38,19,29,19,29,19,79,60,29,20,20,15,231,109,57,39,32,31,157,90,{"$f":"AC20","v":23},14,35,28]
[null,"Multi-Family",{"$f":"C21+C22+C23+C24+C25+C26+C27","v":2},{"$f":"SQRT((D21^2)+(D22^2)+(D23^2)+(D24^2)+(D25^2)+(D26^2)+(D27^2))","v":27.110883423451916},{"$f":"E21+E22+E23+E24+E25+E26+E27","v":297},{"$f":"SQRT((F21^2)+(F22^2)+(F23^2)+(F24^2)+(F25^2)+(F26^2)+(F27^2))","v":140.09282636880448},{"$f":"G21+G22+G23+G24+G25+G26+G27","v":1894},{"$f":"SQRT((H21^2)+(H22^2)+(H23^2)+(H24^2)+(H25^2)+(H26^2)+(H27^2))","v":298.32364974973069},{"$f":"I21+I22+I23+I24+I25+I26+I27","v":13},{"$f":"SQRT((J21^2)+(J22^2)+(J23^2)+(J24^2)+(J25^2)+(J26^2)+(J27^2))","v":30.166206257996713},{"$f":"K21+K22+K23+K24+K25+K26+K27","v":2},{"$f":"SQRT((L21^2)+(L22^2)+(L23^2)+(L24^2)+(L25^2)+(L26^2)+(L27^2))","v":27.404379212089442},{"$f":"M21+M22+M23+M24+M25+M26+M27","v":19},{"$f":"SQRT((N21^2)+(N22^2)+(N23^2)+(N24^2)+(N25^2)+(N26^2)+(N27^2))","v":27.313000567495326},{"$f":"O21+O22+O23+O24+O25+O26+O27","v":61},{"$f":"SQRT((P21^2)+(P22^2)+(P23^2)+(P24^2)+(P25^2)+(P26^2)+(P27^2))","v":74.986665481270734},{"$f":"Q21+Q22+Q23+Q24+Q25+Q26+Q27","v":8},{"$f":"SQRT((R21^2)+(R22^2)+(R23^2)+(R24^2)+(R25^2)+(R26^2)+(R27^2))","v":28.740215726399828},{"$f":"S21+S22+S23+S24+S25+S26+S27","v":0},{"$f":"SQRT((T21^2)+(T22^2)+(T23^2)+(T24^2)+(T25^2)+(T26^2)+(T27^2))","v":29.103264421710495},{"$f":"U21+U22+U23+U24+U25+U26+U27","v":626},{"$f":"SQRT((V21^2)+(V22^2)+(V23^2)+(V24^2)+(V25^2)+(V26^2)+(V27^2))","v":188.19139193916388},{"$f":"W21+W22+W23+W24+W25+W26+W27","v":48},{"$f":"SQRT((X21^2)+(X22^2)+(X23^2)+(X24^2)+(X25^2)+(X26^2)+(X27^2))","v":39.42080668885405},{"$f":"Y21+Y22+Y23+Y24+Y25+Y26+Y27","v":12},{"$f":"SQRT((Z21^2)+(Z22^2)+(Z23^2)+(Z24^2)+(Z25^2)+(Z26^2)+(Z27^2))","v":30.364452901377952},{"$f":"AA21+AA22+AA23+AA24+AA25+AA26+AA27","v":161},{"$f":"SQRT((AB21^2)+(AB22^2)+(AB23^2)+(AB24^2)+(AB25^2)+(AB26^2)+(AB27^2))","v":97.585859631403565},{"$f":"AC21+AC22+AC23+AC24+AC25+AC26+AC27","v":8},{"$f":"SQRT((AD21^2)+(AD22^2)+(AD23^2)+(AD24^2)+(AD25^2)+(AD26^2)+(AD27^2))","v":29.916550603303182},{"$f":"AE21+AE22+AE23+AE24+AE25+AE26+AE27","v":0},{"$f":"SQRT((AF21^2)+(AF22^2)+(AF23^2)+(AF24^2)+(AF25^2)+(AF26^2)+(AF27^2))","v":29.103264421710495}]
[null,"Mobile Home & Other",{"$f":"C28+C29","v":0},{"$f":"SQRT((D28^2)+(D29^2))","v":15.556349186104045},{"$f":"E28+E29","v":58},{"$f":"SQRT((F28^2)+(F29^2))","v":54.405882034941776},{"$f":"G28+G29","v":122},{"$f":"SQRT((H28^2)+(H29^2))","v":111.46299834474219},{"$f":"I28+I29","v":4},{"$f":"SQRT((J28^2)+(J29^2))","v":12.529964086141668},{"$f":"K28+K29","v":5},{"$f":"SQRT((L28^2)+(L29^2))","v":14.866068747318506},{"$f":"M28+M29","v":6},{"$f":"SQRT((N28^2)+(N29^2))","v":11.704699910719626},{"$f":"O28+O29","v":0},{"$f":"SQRT((P28^2)+(P29^2))","v":15.556349186104045},{"$f":"Q28+Q29","v":2},{"$f":"SQRT((R28^2)+(R29^2))","v":11.401754250991379},{"$f":"S28+S29","v":6},{"$f":"SQRT((T28^2)+(T29^2))","v":12.529964086141668},{"$f":"U28+U29","v":0},{"$f":"SQRT((V28^2)+(V29^2))","v":22.627416997969522},{"$f":"W28+W29","v":7},{"$f":"SQRT((X28^2)+(X29^2))","v":14.866068747318506},{"$f":"Y28+Y29","v":0},{"$f":"SQRT((Z28^2)+(Z29^2))","v":15.556349186104045},{"$f":"AA28+AA29","v":31},{"$f":"SQRT((AB28^2)+(AB29^2))","v":49.244289008980523},{"$f":"AC28+AC29","v":4},{"$f":"SQRT((AD28^2)+(AD29^2))","v":12.529964086141668},{"$f":"AE28+AE29","v":3},{"$f":"SQRT((AF28^2)+(AF29^2))","v":11.704699910719626}]
[]
[]
[]
[]
[]
[]
[]
[]
[]
[]
[]
[]
[]
[]
[]
[]
[]
[]
[]
[]
[]
[]
[]
[]
[]
[]
[]
[]
[]
[]
[]
[]
[]
[]
[]
[]
[]
[]
[]
[]
[null,"Calculated B25032. TENURE BY UNITS IN STRUCTURE "]
[null,"Universe:  OCCUPIED HOUSING UNITS"]
[null,"Data Set: 2010-2014 American Community Survey 5-Year Estimates"]
[]
[null,null,"Acworth",null,"Charlestown",null,"Claremont",null,"Cornish",null,"Croydon",null,"Goshen",null,"Grantham",null,"Langdon",null,"Lempster",null,"Newport",null,"Plainfield",null,"Springfield",null,"Sunapee",null,"Unity",null,"Washington"]
[null,null,"Estimate","Margin Of Error","Estimate","Margin Of Error","Estimate","Margin Of Error","Estimate","Margin Of Error","Estimate","Margin Of Error","Estimate","Margin Of Error","Estimate","Margin Of Error","Estimate","Margin Of Error","Estimate","Margin Of Error","Estimate","Margin Of Error","Estimate","Margin Of Error","Estimate","Margin Of Error","Estimate","Margin Of Error","Estimate","Margin Of Error","Estimate","Margin Of Error"]
[null,"Total:",347,44,2185,131,5418,242,644,62,257,42,320,42,1084,82,284,42,425,55,2806,190,933,81,482,69,1496,87,529,62,449,64]
[null,"Owner-occupied housing units:",274,40,1721,147,3486,249,550,56,213,37,254,35,991,88,255,38,375,51,1858,197,815,78,410,65,1068,125,513,58,418,62]
[null,"Single Family",245,37,1175,169,2867,230,500,56,200,34,226,34,951,88,241,38,342,51,1618,213,689,78,371,64,1005,127,461,54,406,59]
[null,"Multi-Family",3,27.239676943752471,52,66.143782776614771,262,99.54898291795854,23,26.115129714401192,5,26.038433132583073,10,24.289915602982237,40,41.352146256270665,2,27.110883423451916,9,26.172504656604801,31,48.918299234540036,65,39.66106403010388,3,27.404379212089442,45,53.310411741047361,0,29.103264421710495,0,29.103264421710495]
[null,"Mobile Home & Other",26,15.524174696260024,494,125.48306658669129,357,95.524865872714003,27,20.248456731316587,8,13.601470508735444,18,17.804493814764857,0,15.556349186104045,12,14.212670403551895,24,17.029386365926403,209,128.87590930814028,61,26.40075756488817,36,23.706539182259394,18,24.596747752497688,52,25.495097567963924,12,17.804493814764857]
[null,"Renter-occupied housing units:",73,32,464,161,1932,223,94,39,44,23,66,32,93,68,29,18,50,28,948,207,118,53,72,37,428,128,16,13,31,17]
[null,"Single Family",68,32,122,90,217,97,71,35,28,19,39,24,81,65,13,11,33,22,114,101,84,46,72,37,244,122,8,8,20,16]
[null,"Multi-Family",5,27.604347483684521,264,141.97534997315555,1706,280.82556863647585,23,31.953090617340916,6,28.407745422683583,10,31.336879231984796,12,32.969683043669072,16,32.403703492039298,0,29.103264421710495,834,215.71972557000902,34,40.323690307311907,0,29.103264421710495,165,80.012499023590053,0,29.103264421710495,2,27.110883423451916]
[null,"Mobile Home & Other",0,15.556349186104045,78,84.717176534631989,9,23.345235059857504,0,15.556349186104045,10,15.556349186104045,17,18.601075237738275,0,15.556349186104045,0,15.556349186104045,17,20.248456731316587,0,21.213203435596427,0,15.556349186104045,0,15.556349186104045,19,23.706539182259394,8,14.866068747318506,9,13.038404810405298]
[]
[]
[]
[null,"Calculated B25032. TENURE BY UNITS IN STRUCTURE "]
[null,"Universe:  OCCUPIED HOUSING UNITS"]
[null,"Data Set: 2005-2009 American Community Survey 5-Year Estimates"]
[]
[null,null,"Acworth",null,"Charlestown",null,"Claremont",null,"Cornish",null,"Croydon",null,"Goshen",null,"Grantham",null,"Langdon",null,"Lempster",null,"Newport",null,"Plainfield",null,"Springfield",null,"Sunapee",null,"Unity",null,"Washington"]
[null,null,"Estimate","Margin Of Error","Estimate","Margin Of Error","Estimate","Margin Of Error","Estimate","Margin Of Error","Estimate","Margin Of Error","Estimate","Margin Of Error","Estimate","Margin Of Error","Estimate","Margin Of Error","Estimate","Margin Of Error","Estimate","Margin Of Error","Estimate","Margin Of Error","Estimate","Margin Of Error","Estimate","Margin Of Error","Estimate","Margin Of Error","Estimate","Margin Of Error"]
[null,"Total:",343,60,2138,130,5799,248,676,72,335,54,402,60,1016,69,222,59,468,57,2562,192,946,97,335,56,1422,128,648,87,527,62]
[null,"Owner-occupied housing units:",300,54,1686,144,3164,254,588,66,281,45,330,57,921,71,212,58,394,54,1706,182,868,90,316,56,978,136,537,82,510,62]
[null,"Single Family",261,58,974,127,2487,245,537,63,272,47,285,52,818,70,184,55,330,54,1359,188,766,91,277,54,900,132,471,70,467,61]
[null,"Multi-Family",3,279.28659115682586,12,279.95713957675736,319,226.06415018750761,0,301.61564946136332,0,301.61564946136332,22,228.50382928957669,97,234.19222873528489,0,301.61564946136332,10,255.03137061938085,116,239.84161440417299,42,230.68810112357335,5,279.3564031841762,51,282.09218351453836,0,301.61564946136332,6,254.99215674212414]
[null,"Mobile Home & Other",36,116.10340218959993,700,188.40382161729099,358,152.97058540778355,51,120.16655108639841,9,114.28035701729323,23,115.91807451816995,6,114.43775600735974,28,116.29703349613007,54,116.70903992407786,231,152.30561381643159,60,115.7410903698423,34,115.41230437002807,27,116.92732785794773,66,120.81390648431164,37,117.63077828527702]
[null,"Renter-occupied housing units:",43,31,452,134,2635,251,88,36,54,36,72,40,95,52,10,16,74,29,856,193,78,46,19,18,444,119,111,44,17,12]
[null,"Single Family",26,25,121,63,287,131,53,34,31,27,60,41,95,52,0,114,41,21,67,61,72,45,12,14,195,92,39,22,12,10]
[null,"Multi-Family",12,279.82137159266443,271,205.92717159228891,2318,340.56276954476397,24,255.60907652115955,0,301.61564946136332,3,279.27047821064082,0,301.61564946136332,0,301.61564946136332,11,279.64441707282481,731,250.74090212807323,6,279.38682860865151,4,279.30628349537716,217,225.88049937964985,29,281.1849924871525,2,279.25794527640568]
[null,"Mobile Home & Other",5,114.28035701729323,60,129.76902558006668,30,119.25183436744275,11,115.26057435220423,23,116.70903992407786,9,114.43775600735974,0,161.22034611053283,10,115.11733144926528,22,115.26057435220423,58,122.93087488503447,0,161.22034611053283,3,114.15778554264269,32,119.85407794480753,43,118.1397477566293,3,114.10959644131601]

{"sheet":"ACS_Table_B25034","index":72,"n_rows":58,"n_cols":32,"rows_kept":58,"cut":false,"hidden":true,"merged":[]}
[null,"B25034. YEAR STRUCTURE BUILT"]
[null,"Universe:  HOUSING UNITS"]
[null,"Data Set: 2015-2019 American Community Survey 5-Year Estimates"]
[]
[null,null,"Acworth",null,"Charlestown",null,"Claremont",null,"Cornish",null,"Croydon",null,"Goshen",null,"Grantham",null,"Langdon",null,"Lempster",null,"Newport",null,"Plainfield",null,"Springfield",null,"Sunapee",null,"Unity",null,"Washington"]
[null,null,"Estimate","Margin Of Error","Estimate","Margin Of Error","Estimate","Margin Of Error","Estimate","Margin Of Error","Estimate","Margin Of Error","Estimate","Margin Of Error","Estimate","Margin Of Error","Estimate","Margin Of Error","Estimate","Margin Of Error","Estimate","Margin Of Error","Estimate","Margin Of Error","Estimate","Margin Of Error","Estimate","Margin Of Error","Estimate","Margin Of Error","Estimate","Margin Of Error"]
[null,"Total:",587,53,2354,203,6129,297,837,83,464,75,435,52,1745,211,318,45,694,76,2816,228,1076,83,719,93,2592,180,726,60,1160,88]
[null,"Built 2014 or later",17,12,63,69,0,18,3,5,9,12,3,5,0,11,3,4,0,11,12,21,0,11,6,7,27,27,9,9,6,14]
[null,"Built 2010 or 2013",21,16,0,16,40,52,16,17,0,11,2,3,27,30,0,11,13,16,26,28,7,10,12,15,76,63,17,16,82,65]
[null,"Built 2000 to 2009",51,23,48,47,189,86,101,30,70,26,49,21,263,108,49,19,123,45,276,120,81,29,178,63,470,150,156,40,183,43]
[null,"Built 1990 to 1999",54,19,170,89,123,66,107,35,79,32,37,21,233,131,44,19,66,26,208,115,129,37,96,44,381,140,99,34,55,29]
[null,"Built 1980 to 1989",86,30,511,164,587,173,146,45,89,34,75,26,572,192,67,23,156,47,512,149,215,58,104,41,337,129,109,35,285,63]
[null,"Built 1970 to 1979",75,29,470,171,774,182,93,38,56,37,83,32,470,163,26,14,130,45,284,120,159,67,92,47,478,139,120,34,183,52]
[null,"Built 1960 to 1969",35,18,276,145,591,162,31,21,16,13,19,15,24,34,12,10,57,33,238,122,73,44,74,34,177,94,44,25,105,41]
[null,"Built 1950 to 1959",64,25,184,112,629,152,50,27,32,22,48,22,31,36,5,5,34,26,224,109,29,16,34,25,108,76,56,27,94,45]
[null,"Built 1940 to 1949",14,15,77,66,519,130,14,9,3,4,14,13,0,11,10,11,0,11,229,122,13,11,0,11,14,24,30,26,17,16]
[null,"Built 1939 or earlier",170,35,555,165,2677,281,276,60,110,38,105,33,125,83,102,37,115,44,807,236,370,78,123,51,524,187,86,36,150,50]
[]
[]
[]
[]
[null,"B25034. YEAR STRUCTURE BUILT"]
[null,"Universe:  HOUSING UNITS"]
[null,"Data Set: 2010-2014 American Community Survey 5-Year Estimates"]
[]
[null,null,"Acworth",null,"Charlestown",null,"Claremont",null,"Cornish",null,"Croydon",null,"Goshen",null,"Grantham",null,"Langdon",null,"Lempster",null,"Newport",null,"Plainfield",null,"Springfield",null,"Sunapee",null,"Unity",null,"Washington"]
[null,null,"Estimate","Margin Of Error","Estimate","Margin Of Error","Estimate","Margin Of Error","Estimate","Margin Of Error","Estimate","Margin Of Error","Estimate","Margin Of Error","Estimate","Margin Of Error","Estimate","Margin Of Error","Estimate","Margin Of Error","Estimate","Margin Of Error","Estimate","Margin Of Error","Estimate","Margin Of Error","Estimate","Margin Of Error","Estimate","Margin Of Error","Estimate","Margin Of Error"]
[null,"Total:",556,51,2398,155,6189,227,751,65,376,44,398,51,1663,132,318,47,604,67,3088,184,985,79,667,79,2565,133,674,64,1144,77]
[null,"Built 2010 or later",8,9,0,11,0,17,6,6,10,10,0,11,0,11,0,11,3,4,17,26,9,10,0,11,27,26,3,4,10,9]
[null,"Built 2000 to 2009",97,35,234,109,149,71,47,19,70,28,33,18,250,103,34,13,130,42,386,155,82,27,127,37,424,142,114,37,179,53]
[null,"Built 1990 to 1999",18,9,186,73,250,99,76,32,64,26,36,15,403,139,67,27,37,20,177,95,90,30,102,35,380,122,121,40,137,48]
[null,"Built 1980 to 1989",54,23,388,147,681,176,115,40,68,26,110,35,512,153,48,20,125,44,459,163,219,54,142,43,448,146,136,37,203,50]
[null,"Built 1970 to 1979",106,32,349,135,793,198,109,37,40,17,62,20,401,117,50,25,121,43,294,119,168,58,105,44,431,135,112,31,190,54]
[null,"Built 1960 to 1969",41,24,270,131,523,133,52,28,29,18,20,14,0,11,10,7,41,25,290,112,52,32,38,27,54,57,40,21,102,41]
[null,"Built 1950 to 1959",58,25,139,83,721,170,38,20,17,15,51,23,24,17,33,24,4,5,138,76,39,22,34,24,205,107,44,29,133,63]
[null,"Built 1940 to 1949",44,25,182,88,663,169,33,16,25,17,5,6,18,14,36,22,0,11,97,74,55,35,11,14,86,63,32,23,21,17]
[null,"Built 1939 or earlier",130,33,650,176,2409,279,275,51,53,26,81,22,55,49,40,15,143,47,1230,208,271,65,108,43,510,132,72,26,169,54]
[]
[]
[]
[]
[]
[null,"B25034. YEAR STRUCTURE BUILT"]
[null,"Universe:  HOUSING UNITS"]
[null,"Data Set: 2005-2009 American Community Survey 5-Year Estimates"]
[]
[null,null,"Acworth",null,"Charlestown",null,"Claremont",null,"Cornish",null,"Croydon",null,"Goshen",null,"Grantham",null,"Langdon",null,"Lempster",null,"Newport",null,"Plainfield",null,"Springfield",null,"Sunapee",null,"Unity",null,"Washington"]
[null,null,"Estimate","Margin Of Error","Estimate","Margin Of Error","Estimate","Margin Of Error","Estimate","Margin Of Error","Estimate","Margin Of Error","Estimate","Margin Of Error","Estimate","Margin Of Error","Estimate","Margin Of Error","Estimate","Margin Of Error","Estimate","Margin Of Error","Estimate","Margin Of Error","Estimate","Margin Of Error","Estimate","Margin Of Error","Estimate","Margin Of Error","Estimate","Margin Of Error"]
[null,"Total:",511,73,2205,126,6310,254,771,75,399,57,493,63,1590,115,249,61,635,64,2701,188,1046,92,528,66,2305,159,763,89,1009,76]
[null,"Built 2005 or later",0,114,19,31,94,72,0,114,9,10,0,114,21,26,5,8,0,114,59,45,17,17,0,114,51,44,0,114,10,13]
[null,"Built 2000 to 2004",14,12,142,62,70,77,42,34,14,10,21,19,35,26,13,14,46,30,116,67,19,20,22,15,126,72,62,38,62,32]
[null,"Built 1990 to 1999",54,24,336,127,160,89,47,26,64,30,67,33,304,85,41,29,90,33,209,97,177,63,146,43,333,109,96,34,53,22]
[null,"Built 1980 to 1989",66,28,554,142,662,173,152,54,89,37,89,41,631,116,60,29,166,47,328,127,298,68,78,35,430,134,202,70,235,56]
[null,"Built 1970 to 1979",49,26,379,129,1075,233,136,42,34,26,69,31,458,83,13,16,104,38,287,108,165,49,59,32,381,128,153,55,234,58]
[null,"Built 1960 to 1969",67,46,184,103,482,151,46,28,26,17,30,22,54,42,13,9,63,26,217,117,54,40,57,28,188,74,29,18,171,60]
[null,"Built 1950 to 1959",92,41,133,82,729,171,41,27,20,18,53,31,25,22,8,13,42,29,298,103,4,7,53,27,128,71,54,37,77,38]
[null,"Built 1940 to 1949",15,15,85,69,374,125,3,6,19,17,27,19,5,8,5,8,38,29,140,88,42,38,19,13,128,77,48,25,5,6]
[null,"Built 1939 or earlier",154,55,373,129,2664,281,304,65,124,43,137,42,57,26,91,49,86,24,1047,203,270,75,94,39,540,167,119,55,162,40]

{"sheet":"ACS_Table_B25041","index":73,"n_rows":73,"n_cols":32,"rows_kept":73,"cut":false,"hidden":true,"merged":[]}
[null,"B25041. BEDROOMS "]
[null,"Universe:  HOUSING UNITS"]
[null,"Data Set: 2015-2019 American Community Survey 5-Year Estimates"]
[]
[null,null,"Acworth",null,"Charlestown",null,"Claremont",null,"Cornish",null,"Croydon",null,"Goshen",null,"Grantham",null,"Langdon",null,"Lempster",null,"Newport",null,"Plainfield",null,"Springfield",null,"Sunapee",null,"Unity",null,"Washington"]
[null,null,"Estimate","Margin Of Error","Estimate","Margin Of Error","Estimate","Margin Of Error","Estimate","Margin Of Error","Estimate","Margin Of Error","Estimate","Margin Of Error","Estimate","Margin Of Error","Estimate","Margin Of Error","Estimate","Margin Of Error","Estimate","Margin Of Error","Estimate","Margin Of Error","Estimate","Margin Of Error","Estimate","Margin Of Error","Estimate","Margin Of Error","Estimate","Margin Of Error"]
[null,"Total:",587,53,2354,203,6129,297,837,83,464,75,435,52,1745,211,318,45,694,76,2816,228,1076,83,719,93,2592,180,726,60,1160,88]
[null,"No bedroom",24,16,91,86,60,58,3,5,0,11,18,16,0,11,0,11,48,22,0,16,14,15,18,21,61,66,21,16,33,24]
[null,"1 bedroom",64,23,182,100,1152,231,64,36,46,25,54,29,75,78,28,18,99,39,310,132,63,41,36,28,209,100,32,21,93,36]
[null,"2 bedrooms",160,37,1020,242,1955,285,183,49,137,50,140,44,339,146,94,30,199,59,957,230,221,67,225,57,503,161,291,58,416,88]
[null,"3 bedrooms",235,46,717,189,2024,300,365,62,201,47,165,40,1020,233,132,35,229,62,949,189,527,84,322,68,1076,198,308,51,463,81]
[null,"4 bedrooms",58,22,180,105,757,187,198,55,58,33,41,19,200,93,41,21,83,27,416,144,182,53,112,52,631,169,74,31,140,48]
[null,"5 or more bedrooms",46,21,164,93,181,101,24,13,22,14,17,12,111,98,23,16,36,19,184,141,69,39,6,7,112,64,0,11,15,14]
[]
[]
[null,"Calculated B25041. BEDROOMS "]
[null,"Universe:  HOUSING UNITS"]
[null,"Data Set: 2015-2019 American Community Survey 5-Year Estimates"]
[]
[null,null,"Acworth",null,"Charlestown",null,"Claremont",null,"Cornish",null,"Croydon",null,"Goshen",null,"Grantham",null,"Langdon",null,"Lempster",null,"Newport",null,"Plainfield",null,"Springfield",null,"Sunapee",null,"Unity",null,"Washington"]
[null,null,"Estimate","Margin Of Error","Estimate","Margin Of Error","Estimate","Margin Of Error","Estimate","Margin Of Error","Estimate","Margin Of Error","Estimate","Margin Of Error","Estimate","Margin Of Error","Estimate","Margin Of Error","Estimate","Margin Of Error","Estimate","Margin Of Error","Estimate","Margin Of Error","Estimate","Margin Of Error","Estimate","Margin Of Error","Estimate","Margin Of Error","Estimate","Margin Of Error"]
[null,"Total:",{"$f":"C7","v":587},{"$f":"D7","v":53},2354,203,6129,297,837,83,464,75,435,52,1745,211,318,45,694,76,2816,228,1076,83,{"$f":"Y7","v":719},93,2592,180,{"$f":"AC7","v":726},60,1160,88]
[null,"No bedroom",{"$f":"C8","v":24},16,91,86,60,58,3,5,0,11,18,16,0,11,0,11,48,22,0,16,14,15,18,21,61,66,{"$f":"AC8","v":21},16,33,24]
[null,"1 bedroom",{"$f":"C9","v":64},{"$f":"D9","v":23},182,100,1152,231,64,36,46,25,54,29,75,78,28,18,99,39,310,132,63,41,36,28,209,100,{"$f":"AC9","v":32},21,93,36]
[null,"2 bedrooms",{"$f":"C10","v":160},37,1020,242,1955,285,183,49,137,50,140,44,339,146,94,30,199,59,957,230,221,67,225,57,503,161,{"$f":"AC10","v":291},58,416,88]
[null,"3 bedrooms",{"$f":"C11","v":235},46,717,189,2024,300,365,62,201,47,165,40,1020,233,132,35,229,62,949,189,527,84,322,68,1076,198,{"$f":"AC11","v":308},51,463,81]
[null,"4 + bedrooms",{"$f":"C12+C13","v":104},{"$f":"SQRT((D12^2)+(D13^2))","v":30.413812651491099},{"$f":"E12+E13","v":344},{"$f":"SQRT((F12^2)+(F13^2))","v":140.2640367307315},{"$f":"G12+G13","v":938},{"$f":"SQRT((H12^2)+(H13^2))","v":212.53235047869771},{"$f":"I12+I13","v":222},{"$f":"SQRT((J12^2)+(J13^2))","v":56.515484603779164},{"$f":"K12+K13","v":80},{"$f":"SQRT((L12^2)+(L13^2))","v":35.846896657869841},{"$f":"M12+M13","v":58},{"$f":"SQRT((N12^2)+(N13^2))","v":22.472205054244231},{"$f":"O12+O13","v":311},{"$f":"SQRT((P12^2)+(P13^2))","v":135.10366390294527},{"$f":"Q12+Q13","v":64},{"$f":"SQRT((R12^2)+(R13^2))","v":26.40075756488817},{"$f":"S12+S13","v":119},{"$f":"SQRT((T12^2)+(T13^2))","v":33.015148038438355},{"$f":"U12+U13","v":600},{"$f":"SQRT((V12^2)+(V13^2))","v":201.53659717282119},{"$f":"W12+W13","v":251},{"$f":"SQRT((X12^2)+(X13^2))","v":65.80273550544841},{"$f":"Y12+Y13","v":118},{"$f":"SQRT((Z12^2)+(Z13^2))","v":52.469038489379621},{"$f":"AA12+AA13","v":743},{"$f":"SQRT((AB12^2)+(AB13^2))","v":180.71247881648904},{"$f":"AC12+AC13","v":74},{"$f":"SQRT((AD12^2)+(AD13^2))","v":32.893768406797051},{"$f":"AE12+AE13","v":155},{"$f":"SQRT((AF12^2)+(AF13^2))","v":50}]
[]
[]
[]
[]
[]
[]
[]
[]
[]
[]
[]
[]
[]
[]
[]
[]
[]
[]
[]
[null,"Calculated B25041. BEDROOMS "]
[null,"Universe:  HOUSING UNITS"]
[null,"Data Set: 2010-2014 American Community Survey 5-Year Estimates"]
[]
[null,null,"Acworth",null,"Charlestown",null,"Claremont",null,"Cornish",null,"Croydon",null,"Goshen",null,"Grantham",null,"Langdon",null,"Lempster",null,"Newport",null,"Plainfield",null,"Springfield",null,"Sunapee",null,"Unity",null,"Washington"]
[null,null,"Estimate","Margin Of Error","Estimate","Margin Of Error","Estimate","Margin Of Error","Estimate","Margin Of Error","Estimate","Margin Of Error","Estimate","Margin Of Error","Estimate","Margin Of Error","Estimate","Margin Of Error","Estimate","Margin Of Error","Estimate","Margin Of Error","Estimate","Margin Of Error","Estimate","Margin Of Error","Estimate","Margin Of Error","Estimate","Margin Of Error","Estimate","Margin Of Error"]
[null,"Total:",556,51,2398,155,6189,227,751,65,376,44,398,51,1663,132,318,47,604,67,3088,184,985,79,667,79,2565,133,674,64,1144,77]
[null,"No bedroom",21,18,21,35,140,99,0,11,14,8,0,11,0,11,5,8,11,14,85,70,7,10,0,11,29,47,19,19,18,19]
[null,"1 bedroom",48,24,214,101,1036,192,46,27,31,18,50,27,11,18,12,8,66,36,460,181,57,36,66,35,44,45,34,18,159,47]
[null,"2 bedrooms",180,37,943,210,2124,257,156,38,149,36,143,41,309,121,84,32,174,46,992,245,264,77,153,50,650,166,220,47,360,68]
[null,"3 bedrooms",216,46,944,184,2224,263,342,56,146,44,142,29,1082,140,153,36,278,57,1079,170,362,62,311,64,1182,199,307,53,428,66]
[null,"4 + bedrooms",91,30.413812651491099,276,116.70903992407786,665,142.77955035648486,207,51.312766442669997,36,20.223748416156685,63,25.80697580112788,261,73.756355658343097,64,25.298221281347036,75,28.653097563788805,472,143.60013927569847,295,67.955868032128024,137,48.764741360946438,660,153.37861650177967,94,34.205262752974143,179,66.098411478642959]
[]
[]
[]
[null,"Calculated B25041. BEDROOMS "]
[null,"Universe:  HOUSING UNITS"]
[null,"Data Set: 2005-2009 American Community Survey 5-Year Estimates"]
[]
[null,null,"Acworth",null,"Charlestown",null,"Claremont",null,"Cornish",null,"Croydon",null,"Goshen",null,"Grantham",null,"Langdon",null,"Lempster",null,"Newport",null,"Plainfield",null,"Springfield",null,"Sunapee",null,"Unity",null,"Washington"]
[null,null,"Estimate","Margin Of Error","Estimate","Margin Of Error","Estimate","Margin Of Error","Estimate","Margin Of Error","Estimate","Margin Of Error","Estimate","Margin Of Error","Estimate","Margin Of Error","Estimate","Margin Of Error","Estimate","Margin Of Error","Estimate","Margin Of Error","Estimate","Margin Of Error","Estimate","Margin Of Error","Estimate","Margin Of Error","Estimate","Margin Of Error","Estimate","Margin Of Error"]
[null,"Total:",511,73,2205,126,6310,254,771,75,399,57,493,63,1590,115,249,61,635,64,2701,188,1046,92,528,66,2305,159,763,89,1009,76]
[null,"No bedroom",14,11,0,114,106,79,5,8,5,9,5,8,0,114,0,114,24,19,46,71,0,114,0,114,74,69,0,114,31,25]
[null,"1 bedroom",50,27,346,128,1300,227,46,32,37,21,40,26,25,22,9,10,84,41,303,129,68,49,35,23,165,99,77,32,158,49]
[null,"2 bedrooms",179,57,757,187,1843,297,168,53,99,35,219,59,216,76,110,42,204,51,859,197,181,48,161,50,643,150,283,80,322,64]
[null,"3 bedrooms",179,48,799,176,2063,249,399,71,184,53,175,50,1048,119,62,34,238,46,1160,195,495,99,250,52,1051,179,319,66,379,65]
[null,"4 + bedrooms",89,50.119856344566671,303,112.76967677527502,998,206.07280266934791,153,42.190046219457976,74,35.383612025908263,54,25.45584412271571,301,75.953933407032977,68,35.608987629529715,85,28.178005607210743,333,123.69316876852982,302,83.486525858967212,82,36.76955262170047,372,114.40279716860073,84,34.669871646719429,119,43.863424398922618]

{"sheet":"PovertyCharacteristics","index":74,"n_rows":82,"n_cols":17,"rows_kept":82,"cut":false,"hidden":true,"merged":[[21,15,21,16],[49,15,49,16],[64,15,64,16],[64,3,64,5],[64,7,64,9],[64,11,64,14],[77,2,78,3],[77,6,78,9],[77,11,78,13],[21,11,21,13],[30,2,31,4],[30,7,31,9],[30,11,31,13],[49,11,49,14],[21,3,21,5],[21,7,21,9]]}
[]
[null,null,{"$f":"CntyDataLink!A86","v":"Acworth"}]
[null,null,"POVERTY CHARACTERISTICS"]
[]
[]
[]
[]
[]
[]
[]
[]
[]
[]
[]
[]
[]
[]
[null,null,null,null,null,null,null,null,null,null,null,null,"2009 Income (2005-2009 ACS)"]
[null,null,null,null,null,null,null,null,null,null,null,null,"2014 Income (2010-2014 ACS)"]
[null,null,null,null,null,null,null,null,null,null,null,null,"2019 Income (2015-2019 ACS)"]
[]
[null,null,null,"2009 Inc below Poverty Level",null,null,null,"2014 Inc below Poverty Level",null,null,null,"2019 Inc below Poverty Level",null,null,null,"Statistically Significant Change"]
[null,null,"Population","Estimate","Margin of Error","% of Population in Poverty",null,"Estimate","Margin of Error","% of Population in Poverty",null,"Estimate","Margin of Error","% of Population in Poverty",null,"2009-2019","2014-2019"]
[null,null," Total Individuals living Poverty",{"$f":"CntyDataLinkPrior10YearEstimate!$D$124","v":1746},{"$f":"CntyDataLinkPrior10YearEstimate!$E$124","v":398},{"$f":"D24/CntyDataLinkPrior10YearEstimate!$B$124","v":0.13658765547993429},null,{"$f":"CntyDataLinkPrior5YearEstimates!$D$124","v":1745},{"$f":"CntyDataLinkPrior5YearEstimates!$E$124","v":406},{"$f":"H24/CntyDataLinkPrior5YearEstimates!$B$124","v":0.13394227817009519},null,{"$f":"CntyDataLink!$D$124","v":753},{"$f":"CntyDataLink!$E$124","v":318},{"$f":"L24/CntyDataLink!$B$124","v":0.15038945476333135},null,{"$f":"StatisticallySignificantCalcs!$A112","v":"Y"},{"$f":"StatisticallySignificantCalcs!$J$112","v":"Y"}]
[null,null,"Under 5 yrs.",{"$f":"CntyDataLinkPrior10YearEstimate!$F$124","v":215},{"$f":"CntyDataLinkPrior10YearEstimate!$G$124","v":101.41498903022176},{"$f":"D25/(CntyDataLinkPrior10YearEstimate!$F$124+CntyDataLinkPrior10YearEstimate!$R$124)","v":0.28289473684210525},null,{"$f":"CntyDataLinkPrior5YearEstimates!$F$124","v":81},{"$f":"CntyDataLinkPrior5YearEstimates!$G$124","v":81.344944526380985},{"$f":"H25/(CntyDataLinkPrior5YearEstimates!$F$124+CntyDataLinkPrior5YearEstimates!$R$124)","v":9.4295692665890565E-2},null,{"$f":"CntyDataLink!$F$124","v":67},{"$f":"CntyDataLink!$G$124","v":86.608313688698502},{"$f":"L25/(CntyDataLink!$F$124+CntyDataLink!$R$124)","v":0.22333333333333333},null,{"$f":"StatisticallySignificantCalcs!$A113","v":"N"},{"$f":"StatisticallySignificantCalcs!$J$113","v":"N"}]
[null,null,"5 to 17 yrs.",{"$f":"CntyDataLinkPrior10YearEstimate!$H$124","v":254},{"$f":"CntyDataLinkPrior10YearEstimate!$I$124","v":101.04949282406122},{"$f":"D26/(CntyDataLinkPrior10YearEstimate!$H$124+CntyDataLinkPrior10YearEstimate!$T$124)","v":0.12744606121424987},null,{"$f":"CntyDataLinkPrior5YearEstimates!$H$124","v":412},{"$f":"CntyDataLinkPrior5YearEstimates!$I$124","v":184.68351307033339},{"$f":"H26/(CntyDataLinkPrior5YearEstimates!$H$124+CntyDataLinkPrior5YearEstimates!$T$124)","v":0.19788664745437079},null,{"$f":"CntyDataLink!$H$124","v":86},{"$f":"CntyDataLink!$I$124","v":73.525505778607197},{"$f":"L26/(CntyDataLink!$H$124+CntyDataLink!$T$124)","v":0.15579710144927536},null,{"$f":"StatisticallySignificantCalcs!$A114","v":"Y"},{"$f":"StatisticallySignificantCalcs!$J$114","v":"Y"}]
[null,null,"18 to 64 yrs.",{"$f":"CntyDataLinkPrior10YearEstimate!$J$124","v":1011},{"$f":"CntyDataLinkPrior10YearEstimate!$K$124","v":231.43465600467013},{"$f":"D27/(CntyDataLinkPrior10YearEstimate!$J$124+CntyDataLinkPrior10YearEstimate!$V$124)","v":0.12661239824671258},null,{"$f":"CntyDataLinkPrior5YearEstimates!$J$124","v":1109},{"$f":"CntyDataLinkPrior5YearEstimates!$K$124","v":225.46840133375673},{"$f":"H27/(CntyDataLinkPrior5YearEstimates!$J$124+CntyDataLinkPrior5YearEstimates!$V$124)","v":0.13757598312864408},null,{"$f":"CntyDataLink!$J$124","v":506},{"$f":"CntyDataLink!$K$124","v":204.57516955877122},{"$f":"L27/(CntyDataLink!$J$124+CntyDataLink!$V$124)","v":0.22280933509467196},null,{"$f":"StatisticallySignificantCalcs!$A115","v":"Y"},{"$f":"StatisticallySignificantCalcs!$J$115","v":"Y"}]
[null,null,"65 to 74 yrs.",{"$f":"CntyDataLinkPrior10YearEstimate!$L$124","v":103},{"$f":"CntyDataLinkPrior10YearEstimate!$M$124","v":52.697248505021591},{"$f":"D28/(CntyDataLinkPrior10YearEstimate!$L$124+CntyDataLinkPrior10YearEstimate!$X$124)","v":0.10228401191658391},null,{"$f":"CntyDataLinkPrior5YearEstimates!$L$124","v":45},{"$f":"CntyDataLinkPrior5YearEstimates!$M$124","v":38.275318418009277},{"$f":"H28/(CntyDataLinkPrior5YearEstimates!$L$124+CntyDataLinkPrior5YearEstimates!$X$124)","v":4.0577096483318302E-2},null,{"$f":"CntyDataLink!$L$124","v":0},{"$f":"CntyDataLink!$M$124","v":22.627416997969522},{"$f":"L28/(CntyDataLink!$L$124+CntyDataLink!$X$124)","v":0},null,{"$f":"StatisticallySignificantCalcs!$A116","v":"N"},{"$f":"StatisticallySignificantCalcs!$J$116","v":"Y"}]
[null,null,"75 yrs. & Over",{"$f":"CntyDataLinkPrior10YearEstimate!$N$124","v":163},{"$f":"CntyDataLinkPrior10YearEstimate!$O$124","v":87.692645073575008},{"$f":"D29/(CntyDataLinkPrior10YearEstimate!$N$124+CntyDataLinkPrior10YearEstimate!$Z$124)","v":0.1527647610121837},null,{"$f":"CntyDataLinkPrior5YearEstimates!$N$124","v":98},{"$f":"CntyDataLinkPrior5YearEstimates!$O$124","v":63.63961030678928},{"$f":"H29/(CntyDataLinkPrior5YearEstimates!$N$124+CntyDataLinkPrior5YearEstimates!$Z$124)","v":8.4337349397590355E-2},null,{"$f":"CntyDataLink!$N$124","v":94},{"$f":"CntyDataLink!$O$124","v":93.776329636001435},{"$f":"L29/(CntyDataLink!$N$124+CntyDataLink!$Z$124)","v":0.23267326732673269},null,{"$f":"StatisticallySignificantCalcs!A116","v":"N"}]
[]
[null,null,"Source: 2005-2009 American Community Survey  Table B1701",null,null,null,null,"Source: 2015-2019 American Community Survey  Table B1701",null,null,null,"Source: 2015-2019 American Community Survey  Table B1701"]
[]
[]
[]
[]
[]
[]
[]
[]
[]
[]
[]
[]
[]
[]
[]
[]
[]
[]
[null,null,null,{"$f":"D22","v":"2009 Inc below Poverty Level"},null,null,null,{"$f":"H22","v":"2014 Inc below Poverty Level"},null,null,null,{"$f":"L22","v":"2019 Inc below Poverty Level"},null,null,null,"Statistically Significant Change"]
[null,null,null,"Estimate","Margin of Error","% of Family Type in Poverty",null,"Estimate","Margin of Error ","% of Family Type in Poverty",null,"Estimate","Margin of Error ","% of Family Type in Poverty",null,"2009-2019","2014-2019"]
[]
[]
[null,null,"Total Households",{"$f":"CntyDataLinkPrior10YearEstimate!$AD$124","v":348},{"$f":"CntyDataLinkPrior10YearEstimate!$AE$124","v":130},{"$f":"$D54/($D54+$D68)","v":6.5946560545764643E-2},null,{"$f":"CntyDataLinkPrior5YearEstimates!$AD$124","v":283},{"$f":"CntyDataLinkPrior5YearEstimates!$AE$124","v":127},{"$f":"$H54/($H54+$H68)","v":5.740365111561866E-2},null,{"$f":"CntyDataLink!$AD$124","v":342},{"$f":"CntyDataLink!$AE$124","v":138},{"$f":"$L54/($L54+$L68)","v":7.0053256861941832E-2},null,{"$f":"StatisticallySignificantCalcs!$A$94","v":"N"},{"$f":"StatisticallySignificantCalcs!$J$94","v":"N"}]
[null,null,"Family Households",{"$f":"CntyDataLinkPrior10YearEstimate!$AF$124","v":119},{"$f":"CntyDataLinkPrior10YearEstimate!$AG$124","v":75},{"$f":"$D55/($D55+$D69)","v":3.6469506589028498E-2},null,{"$f":"CntyDataLinkPrior5YearEstimates!$AF$124","v":48},{"$f":"CntyDataLinkPrior5YearEstimates!$AG$124","v":41},{"$f":"$H55/($H55+$H69)","v":1.5569250729808628E-2},null,{"$f":"CntyDataLink!$AF$124","v":116},{"$f":"CntyDataLink!$AG$124","v":70},{"$f":"$L55/($L55+$L69)","v":3.9469207213337867E-2},null,{"$f":"StatisticallySignificantCalcs!$A$95","v":"N"},{"$f":"StatisticallySignificantCalcs!$J$95","v":"N"}]
[null,null,"Married Couple Fam HH",{"$f":"CntyDataLinkPrior10YearEstimate!$AH$124","v":6},{"$f":"CntyDataLinkPrior10YearEstimate!$AI$124","v":6},{"$f":"$D56/($D56+$D70)","v":2.3687327279905252E-3},null,{"$f":"CntyDataLinkPrior5YearEstimates!$AH$124","v":0},{"$f":"CntyDataLinkPrior5YearEstimates!$AI$124","v":17},0,null,{"$f":"CntyDataLink!$AH$124","v":12},{"$f":"CntyDataLink!$AI$124","v":12},5.9582919563058593E-3,null,{"$f":"StatisticallySignificantCalcs!$A$96","v":"N"},{"$f":"StatisticallySignificantCalcs!$J$96","v":"N"}]
[null,null,"M C Fam HH w/Children",{"$f":"CntyDataLinkPrior10YearEstimate!$BN$124","v":69},{"$f":"CntyDataLinkPrior10YearEstimate!$BO$124","v":61},6.4066852367688026E-2,null,{"$f":"CntyDataLinkPrior5YearEstimates!$BN$124","v":32},{"$f":"CntyDataLinkPrior5YearEstimates!$BO$124","v":36},4.0764331210191081E-2,null,{"$f":"CntyDataLink!$BN$124","v":95},{"$f":"CntyDataLink!$BO$124","v":60},0.1280323450134771,null,{"$f":"StatisticallySignificantCalcs!$A$97","v":"N"},{"$f":"StatisticallySignificantCalcs!$J$97","v":"N"}]
[null,null,"Male Head of Family HH ",{"$f":"CntyDataLinkPrior10YearEstimate!$AL$124","v":65},{"$f":"CntyDataLinkPrior10YearEstimate!$AM$124","v":61},0.30805687203791471,null,{"$f":"CntyDataLinkPrior5YearEstimates!$AL$124","v":29},{"$f":"CntyDataLinkPrior5YearEstimates!$AM$124","v":34},0.10661764705882353,null,{"$f":"CntyDataLink!$AL$124","v":24},{"$f":"CntyDataLink!$AM$124","v":32},0.12,null,{"$f":"StatisticallySignificantCalcs!$A$98","v":"N"},{"$f":"StatisticallySignificantCalcs!$J$98","v":"N"}]
[null,null,"Male Head of HH w/Children",{"$f":"CntyDataLinkPrior10YearEstimate!$BP$124","v":65},{"$f":"CntyDataLinkPrior10YearEstimate!$BQ$124","v":61},0.41139240506329117,null,{"$f":"CntyDataLinkPrior5YearEstimates!$BP$124","v":17},{"$f":"CntyDataLinkPrior5YearEstimates!$BQ$124","v":29},8.5427135678391955E-2,null,{"$f":"CntyDataLink!$BP$124","v":24},{"$f":"CntyDataLink!$BQ$124","v":32},0.15286624203821655,null,{"$f":"StatisticallySignificantCalcs!$A$99","v":"N"},{"$f":"StatisticallySignificantCalcs!$J$99","v":"N"}]
[null,null,"Female Head of Family HH ",{"$f":"CntyDataLinkPrior10YearEstimate!$AN$124","v":164},{"$f":"CntyDataLinkPrior10YearEstimate!$AO$124","v":89},0.25826771653543307,null,{"$f":"CntyDataLinkPrior5YearEstimates!$AN$124","v":206},{"$f":"CntyDataLinkPrior5YearEstimates!$AO$124","v":123},0.25152625152625152,null,{"$f":"CntyDataLink!$AN$124","v":202},{"$f":"CntyDataLink!$AO$124","v":122},0.2384887839433294,null,{"$f":"StatisticallySignificantCalcs!$A$100","v":"N"},{"$f":"StatisticallySignificantCalcs!$J$100","v":"N"}]
[null,null,"Female Head of HH w/Children",{"$f":"CntyDataLinkPrior10YearEstimate!$BR$124","v":164},{"$f":"CntyDataLinkPrior10YearEstimate!$BS$124","v":89},0.37788018433179721,null,{"$f":"CntyDataLinkPrior5YearEstimates!$BR$124","v":195},{"$f":"CntyDataLinkPrior5YearEstimates!$BS$124","v":119},0.32718120805369127,null,{"$f":"CntyDataLink!$BR$124","v":154},{"$f":"CntyDataLink!$BS$124","v":98},0.26829268292682928,null,{"$f":"StatisticallySignificantCalcs!$A$101","v":"N"},{"$f":"StatisticallySignificantCalcs!$J$101","v":"N"}]
[null,null,"Non-Family HH ",{"$f":"CntyDataLinkPrior10YearEstimate!$AP$124","v":522},{"$f":"CntyDataLinkPrior10YearEstimate!$AQ$124","v":162},0.22626788036410922,null,{"$f":"CntyDataLinkPrior5YearEstimates!$AP$124","v":488},{"$f":"CntyDataLinkPrior5YearEstimates!$AQ$124","v":140},0.23238095238095238,null,{"$f":"CntyDataLink!$AP$124","v":349},{"$f":"CntyDataLink!$AQ$124","v":127},0.16892545982575025,null,{"$f":"StatisticallySignificantCalcs!$A$102","v":"N"},{"$f":"StatisticallySignificantCalcs!$J$102","v":"N"}]
[]
[null,"Data from the American Community Survey are estimates."]
[null,null,null,"2009  Inc at or Above Poverty Level",null,null,null,"2014 Inc at or Above Poverty Level",null,null,null,"2019 Inc at or above Poverty Level",null,null,null,"Statistically Significant Change"]
[null,null,"Households","Estimate","Margin of Error",null,null,"Estimate","Margin of Error",null,null,"Estimate","Margin of Error",null,null,"2009-2019","2014-2019"]
[]
[null,null,"Total Households",{"$f":"CntyDataLinkPrior10YearEstimate!$AV$124","v":4929},{"$f":"CntyDataLinkPrior10YearEstimate!$AW$124","v":237},{"$f":"$D68/($D68+$D54)","v":0.93405343945423536},null,{"$f":"CntyDataLinkPrior5YearEstimates!$AV$124","v":4647},{"$f":"CntyDataLinkPrior5YearEstimates!$AW$124","v":227},{"$f":"$H68/($H68+$H54)","v":0.94259634888438137},null,{"$f":"CntyDataLink!$AV$124","v":4540},{"$f":"CntyDataLink!$AW$124","v":294},{"$f":"$L68/($L68+$L54)","v":0.92994674313805814},null,{"$f":"StatisticallySignificantCalcs!$A$103","v":"Y"},{"$f":"StatisticallySignificantCalcs!$J$103","v":"N"}]
[null,null,"Family Households",{"$f":"CntyDataLinkPrior10YearEstimate!$AX$124","v":3144},{"$f":"CntyDataLinkPrior10YearEstimate!$AY$124","v":284},{"$f":"$D69/($D69+$D55)","v":0.96353049341097152},null,{"$f":"CntyDataLinkPrior5YearEstimates!$AX$124","v":3035},{"$f":"CntyDataLinkPrior5YearEstimates!$AY$124","v":222},{"$f":"$H69/($H69+$H55)","v":0.98443074927019136},null,{"$f":"CntyDataLink!$AX$124","v":2823},{"$f":"CntyDataLink!$AY$124","v":244},{"$f":"$L69/($L69+$L55)","v":0.96053079278666209},null,{"$f":"StatisticallySignificantCalcs!$A$104","v":"N"},{"$f":"StatisticallySignificantCalcs!$J$104","v":"N"}]
[null,null,"Married Couple Fam HH",{"$f":"CntyDataLinkPrior10YearEstimate!$AZ$124","v":2527},{"$f":"CntyDataLinkPrior10YearEstimate!$BA$124","v":248},{"$f":"$D70/($D70+$D56)","v":0.99763126727200946},null,{"$f":"CntyDataLinkPrior5YearEstimates!$AZ$124","v":2179},{"$f":"CntyDataLinkPrior5YearEstimates!$BA$124","v":216},{"$f":"$H70/($H70+$H56)","v":1},null,{"$f":"CntyDataLink!$AZ$124","v":2002},{"$f":"CntyDataLink!$BA$124","v":234},0.99404170804369418,null,{"$f":"StatisticallySignificantCalcs!$A$105","v":"Y"},{"$f":"StatisticallySignificantCalcs!$J$105","v":"N"}]
[null,null,"M C Fam HH w/Children",{"$f":"CntyDataLinkPrior10YearEstimate!$BT$124","v":1008},{"$f":"CntyDataLinkPrior10YearEstimate!$BU$124","v":171},0.93593314763231195,null,{"$f":"CntyDataLinkPrior5YearEstimates!$BT$124","v":753},{"$f":"CntyDataLinkPrior5YearEstimates!$BU$124","v":177},0.95923566878980893,null,{"$f":"CntyDataLink!$BT$124","v":647},{"$f":"CntyDataLink!$BU$124","v":155},0.87196765498652296,null,{"$f":"StatisticallySignificantCalcs!$A$106","v":"Y"},{"$f":"StatisticallySignificantCalcs!$J$106","v":"N"}]
[null,null,"Male Head of Family HH ",{"$f":"CntyDataLinkPrior10YearEstimate!$BD$124","v":146},{"$f":"CntyDataLinkPrior10YearEstimate!$BE$124","v":76},0.69194312796208535,null,{"$f":"CntyDataLinkPrior5YearEstimates!$BD$124","v":243},{"$f":"CntyDataLinkPrior5YearEstimates!$BE$124","v":115},0.89338235294117652,null,{"$f":"CntyDataLink!$BD$124","v":176},{"$f":"CntyDataLink!$BE$124","v":79},0.88,null,{"$f":"StatisticallySignificantCalcs!$A$107","v":"N"},{"$f":"StatisticallySignificantCalcs!$J$107","v":"N"}]
[null,null,"Male Head of HH w/Children",{"$f":"CntyDataLinkPrior10YearEstimate!$BV$124","v":93},{"$f":"CntyDataLinkPrior10YearEstimate!$BW$124","v":69},0.58860759493670889,null,{"$f":"CntyDataLinkPrior5YearEstimates!$BV$124","v":182},{"$f":"CntyDataLinkPrior5YearEstimates!$BW$124","v":109},0.914572864321608,null,{"$f":"CntyDataLink!$BV$124","v":133},{"$f":"CntyDataLink!$BW$124","v":79},0.84713375796178347,null,{"$f":"StatisticallySignificantCalcs!$A$108","v":"N"},{"$f":"StatisticallySignificantCalcs!$J$108","v":"N"}]
[null,null,"Female Head of Family HH ",{"$f":"CntyDataLinkPrior10YearEstimate!$BF$124","v":471},{"$f":"CntyDataLinkPrior10YearEstimate!$BG$124","v":156},0.74173228346456688,null,{"$f":"CntyDataLinkPrior5YearEstimates!$BF$124","v":613},{"$f":"CntyDataLinkPrior5YearEstimates!$BG$124","v":149},0.74847374847374848,null,{"$f":"CntyDataLink!$BF$124","v":645},{"$f":"CntyDataLink!$BG$124","v":172},0.7615112160566706,null,{"$f":"StatisticallySignificantCalcs!$A$109","v":"N"},{"$f":"StatisticallySignificantCalcs!$J$109","v":"N"}]
[null,null,"Female Head of HH w/Children",{"$f":"CntyDataLinkPrior10YearEstimate!$BX$124","v":270},{"$f":"CntyDataLinkPrior10YearEstimate!$BY$124","v":137},0.62211981566820274,null,{"$f":"CntyDataLinkPrior5YearEstimates!$BX$124","v":401},{"$f":"CntyDataLinkPrior5YearEstimates!$BY$124","v":125},0.67281879194630867,null,{"$f":"CntyDataLink!$BX$124","v":420},{"$f":"CntyDataLink!$BY$124","v":137},0.73170731707317072,null,{"$f":"StatisticallySignificantCalcs!$A$110","v":"N"},{"$f":"StatisticallySignificantCalcs!$J$110","v":"N"}]
[null,null,"Non-Family HH ",{"$f":"CntyDataLinkPrior10YearEstimate!$BH$124","v":1785},{"$f":"CntyDataLinkPrior10YearEstimate!$BI$124","v":284},0.77373211963589072,null,{"$f":"CntyDataLinkPrior5YearEstimates!$BH$124","v":1612},{"$f":"CntyDataLinkPrior5YearEstimates!$BI$124","v":237},0.76761904761904765,null,{"$f":"CntyDataLink!$BH$124","v":1717},{"$f":"CntyDataLink!$BI$124","v":247},0.83107454017424975,null,{"$f":"StatisticallySignificantCalcs!$A$111","v":"N"},{"$f":"StatisticallySignificantCalcs!$J$111","v":"N"}]
[]
[null,null,"Source: 2005-2009 American Community Survey ",null,null,null,"Source: 2010-2014 American Community Survey",null,null,null,null,"Source: 2015-2019 American Community Survey"]
[]
[null,null,"Tables B17010; and B17017",null,null,null,"Tables B17010; and B17017",null,null,null,null,"Tables B17010; and B17017"]
[]
[null,null,"Data from the American Community Survey are estimates."]

{"sheet":"ACS_Table_ B17001","index":75,"n_rows":210,"n_cols":32,"rows_kept":210,"cut":false,"hidden":true,"merged":[]}
[null,"B17001. POVERTY STATUS IN THE PAST 12 MONTHS BY SEX BY AGE"]
[null,"Universe:  POPULATION FOR WHOM POVERTY STATUS IS DETERMINED"]
[null,"Data Set: 2015-2019 American Community Survey 5-Year Estimates"]
[]
[null,null,"Acworth",null,"Charlestown",null,"Claremont",null,"Cornish",null,"Croydon",null,"Goshen",null,"Grantham",null,"Langdon",null,"Lempster",null,"Newport",null,"Plainfield",null,"Springfield",null,"Sunapee",null,"Unity",null,"Washington"]
[null,null,"Estimate","Margin Of Error","Estimate","Margin Of Error","Estimate","Margin Of Error","Estimate","Margin Of Error","Estimate","Margin Of Error","Estimate","Margin Of Error","Estimate","Margin Of Error","Estimate","Margin Of Error","Estimate","Margin Of Error","Estimate","Margin Of Error","Estimate","Margin Of Error","Estimate","Margin Of Error","Estimate","Margin Of Error","Estimate","Margin Of Error","Estimate","Margin Of Error"]
[null,"Total:",4140,18,904,134,5007,25,12881,54,1783,217,854,241,675,109,2945,14,704,144,923,176,6246,55,2410,292,1084,198,3449,19,1317,146]
[null,"Income in the past 12 months below poverty level:",84,70,34,26,753,318,2117,519,175,172,85,71,96,46,49,65,127,87,75,34,765,368,132,74,73,52,287,179,130,74]
[null,"Male:",11,16,24,17,352,169,986,329,108,128,47,45,47,28,0,11,58,50,48,24,303,164,77,44,59,43,143,85,43,26]
[null,"Under 5 years",0,11,0,11,42,45,157,100,0,11,7,10,4,9,0,11,6,10,0,11,37,58,0,11,0,11,9,13,0,11]
[null,"5 years",0,11,0,11,36,43,0,18,0,11,0,11,0,11,0,11,0,11,0,11,0,16,0,11,0,11,0,11,0,11]
[null,"6 to 11 years",0,11,0,11,24,34,87,79,11,17,0,11,0,11,0,11,22,22,0,11,0,16,0,11,0,11,0,11,0,11]
[null,"12 to 14 years",0,11,0,11,0,16,34,35,33,50,18,29,0,11,0,11,12,19,0,11,11,18,0,11,0,11,0,11,0,11]
[null,"15 years",0,11,0,11,0,16,15,23,23,35,0,11,0,11,0,11,0,11,0,11,0,16,0,11,3,5,0,11,0,11]
[null,"16 and 17 years",0,11,0,11,6,9,0,18,0,11,0,11,0,11,0,11,0,11,3,4,20,26,0,11,0,11,10,16,0,11]
[null,"18 to 24 years",0,11,0,11,0,16,95,100,10,11,2,4,13,11,0,11,2,3,0,11,94,87,0,11,9,11,11,15,0,11]
[null,"25 to 34 years",1,5,0,11,55,66,111,69,3,5,0,11,2,3,0,11,9,11,0,11,59,87,8,11,20,33,11,16,0,11]
[null,"35 to 44 years",0,11,6,10,17,28,88,59,4,6,0,11,9,10,0,11,5,5,12,14,0,16,0,11,0,11,0,11,9,7]
[null,"45 to 54 years",0,11,0,11,0,16,219,148,15,22,12,19,5,5,0,11,0,11,21,17,14,24,10,11,10,11,22,30,10,10]
[null,"55 to 64 years",9,15,13,13,109,103,151,69,3,4,6,9,0,11,0,11,0,11,4,5,68,67,35,25,0,11,80,74,21,22]
[null,"65 to 74 years",0,11,3,4,0,16,17,17,6,9,0,11,14,17,0,11,2,3,8,12,0,16,24,30,8,8,0,11,3,5]
[null,"75 years and over",1,3,2,3,63,87,12,20,0,11,2,3,0,11,0,11,0,11,0,11,0,16,0,11,9,15,0,11,0,11]
[null,"Female:",73,67,10,12,401,199,1131,279,67,48,38,32,49,27,49,65,69,44,27,19,462,233,55,35,14,16,144,122,87,53]
[null,"Under 5 years",0,11,0,11,25,35,137,84,4,6,0,11,7,9,0,11,2,3,3,4,0,16,0,11,0,11,11,19,0,11]
[null,"5 years",0,11,0,11,0,16,0,18,0,11,0,11,0,11,0,11,0,11,0,11,0,16,0,11,0,11,0,11,0,11]
[null,"6 to 11 years",0,11,0,11,20,32,184,104,19,22,0,11,5,9,0,11,19,24,0,11,89,99,0,11,6,8,0,11,0,11]
[null,"12 to 14 years",0,11,0,11,0,16,46,43,0,11,7,13,0,11,0,11,7,11,0,11,0,16,0,11,0,11,35,53,6,8]
[null,"15 years",0,11,0,11,0,16,33,36,0,11,0,11,3,6,0,11,0,11,0,11,0,16,0,11,0,11,0,11,0,11]
[null,"16 and 17 years",0,11,0,11,0,16,0,18,5,7,0,11,2,4,18,25,0,11,0,11,15,24,0,11,0,11,0,11,0,11]
[null,"18 to 24 years",11,19,0,11,9,17,46,35,5,7,0,11,0,11,0,11,6,10,0,11,111,79,0,11,0,11,0,11,21,27]
[null,"25 to 34 years",0,11,0,11,116,108,228,118,8,9,0,11,2,3,0,11,20,16,13,15,48,56,0,11,0,11,19,16,12,13]
[null,"35 to 44 years",6,11,3,4,111,81,124,64,16,19,11,13,0,11,0,11,0,11,0,11,48,77,4,7,0,11,0,11,24,20]
[null,"45 to 54 years",40,59,7,11,24,40,202,111,4,6,3,6,7,13,31,43,5,4,0,11,92,83,16,18,8,8,0,11,0,11]
[null,"55 to 64 years",16,17,0,11,65,74,3,4,15,16,14,13,0,11,8,12,11,9,26,30,0,11,0,11,42,50,21,20,0,11]
[null,"65 to 74 years",0,11,0,11,0,16,0,11,2,4,9,11,0,11,2,3,0,11,33,53,30,28,0,11,4,8,3,4,9,7]
[null,"75 years and over",0,11,0,11,31,35,3,5,0,11,0,11,0,11,0,11,0,11,0,16,5,7,0,11,33,52,0,11,3,4]
[null,"Income in the past 12 months at or above poverty level:",4056,73,870,136,4254,317,1608,156,769,234,579,101,2896,69,577,113,848,175,5481,372,2278,305,1011,205,3162,180,1187,147,1158,193]
[null,"Male:",1994,141,461,83,2162,254,814,92,376,103,296,63,1382,143,284,62,384,76,2914,251,1168,182,516,112,1649,150,574,65,586,112]
[null,"Under 5 years",211,96,21,14,147,111,35,19,4,6,14,13,0,11,10,8,31,21,148,84,32,34,3,5,88,57,3,6,0,11]
[null,"5 years",14,24,3,5,0,16,12,12,6,7,2,3,41,61,4,8,3,4,55,42,0,11,0,11,28,44,3,4,0,11]
[null,"6 to 11 years",121,87,19,15,104,74,36,18,23,17,33,19,76,53,21,15,23,19,128,85,89,47,14,11,159,70,20,14,28,19]
[null,"12 to 14 years",24,25,8,11,28,24,35,21,5,6,0,11,89,49,8,9,2,4,123,107,60,40,21,12,65,49,7,7,30,32]
[null,"15 years",11,17,2,3,15,26,0,11,3,4,0,11,0,11,2,4,3,4,21,33,5,8,0,11,15,17,0,11,0,11]
[null,"16 and 17 years",8,11,0,11,37,41,19,17,1,3,11,11,65,53,7,8,2,4,136,108,76,48,34,27,60,42,6,6,3,5]
[null,"18 to 24 years",172,109,18,16,155,99,37,19,37,30,4,6,60,50,6,7,12,11,284,141,129,79,19,17,131,63,42,25,29,26]
[null,"25 to 34 years",233,102,61,30,280,114,45,20,48,32,24,17,88,65,36,21,22,12,317,126,91,40,55,43,137,68,37,23,43,25]
[null,"35 to 44 years",249,71,25,14,306,118,78,31,38,21,41,19,112,54,35,16,62,31,317,138,104,45,69,39,254,97,33,19,66,60]
[null,"45 to 54 years",304,75,63,32,261,98,95,33,43,26,63,31,355,127,45,22,74,43,349,135,210,70,82,41,221,75,92,37,107,44]
[null,"55 to 64 years",361,67,106,35,341,105,172,41,99,50,39,21,146,85,58,27,76,26,514,169,162,38,64,28,200,73,159,45,125,43]
[null,"65 to 74 years",175,60,85,27,261,94,184,48,38,22,45,21,156,69,37,14,60,26,405,161,154,52,103,42,176,58,125,36,109,33]
[null,"75 years and over",111,41,50,23,227,86,66,32,31,16,20,14,194,86,15,9,14,11,117,81,56,35,52,32,115,59,47,17,46,20]
[null,"Female:",2062,147,409,73,2092,250,794,92,393,153,283,55,1514,137,293,59,464,123,2567,300,1110,153,495,115,1513,133,613,96,572,103]
[null,"Under 5 years",102,54,16,13,86,66,22,15,12,11,14,12,0,11,14,12,32,22,100,62,50,55,11,17,50,36,14,15,6,8]
[null,"5 years",19,23,0,11,44,74,4,6,0,11,0,11,24,35,2,4,13,15,0,16,11,17,16,20,11,17,0,11,7,8]
[null,"6 to 11 years",142,70,9,7,179,76,32,22,19,13,27,18,93,66,18,15,43,38,130,89,93,53,12,18,56,48,28,18,6,7]
[null,"12 to 14 years",6,7,120,66,55,29,11,9,0,11,79,66,5,6,3,5,96,76,35,20,13,13,10,16,46,31,27,16,0,0]
[null,"15 years",0,11,41,47,0,11,3,5,10,10,0,11,0,11,0,11,53,78,27,41,15,13,62,58,0,11,14,17,0,0]
[null,"16 and 17 years",9,14,16,28,4,6,16,22,0,11,36,40,2,5,62,56,23,30,14,15,8,8,23,27,5,7,18,19,0,0]
[null,"18 to 24 years",13,11,19,25,17,13,77,91,17,22,90,72,19,20,7,10,112,71,55,35,11,18,98,45,38,28,24,24,0,0]
[null,"25 to 34 years",34,21,213,118,48,24,47,29,50,27,24,36,24,15,34,15,249,105,118,43,26,19,133,61,40,23,36,19,0,0]
[null,"35 to 44 years",42,26,147,101,72,27,17,18,27,15,227,90,30,16,36,26,438,139,122,46,37,34,261,80,65,25,76,67,0,0]
[null,"45 to 54 years",48,25,232,99,108,36,51,28,27,15,294,114,54,23,56,34,481,131,163,60,94,40,164,52,71,26,119,42,0,0]
[null,"55 to 64 years",90,29,501,162,177,46,72,32,42,18,344,147,77,30,88,31,321,126,216,44,102,41,267,97,157,41,106,36,0,0]
[null,"65 to 74 years",117,42,296,120,172,43,47,24,40,19,139,53,33,11,51,23,279,126,151,51,112,42,229,66,110,29,107,30,0,0]
[null,"75 years and over",25,14,198,84,83,32,21,12,29,13,164,75,15,8,39,26,285,103,55,34,38,26,149,64,39,15,26,14,0,0]
[]
[]
[]
[null,"Calculated Table B17001. POVERTY STATUS IN THE PAST 12 MONTHS BY SEX BY AGE"]
[null,"Universe:  POPULATION FOR WHOM POVERTY STATUS IS DETERMINED"]
[null,"Data Set: 2015-2019 American Community Survey 5-Year Estimates"]
[]
[null,null,"Acworth",null,"Charlestown",null,"Claremont",null,"Cornish",null,"Croydon",null,"Goshen",null,"Grantham",null,"Langdon",null,"Lempster",null,"Newport",null,"Plainfield",null,"Springfield",null,"Sunapee",null,"Unity",null,"Washington"]
[null,null,"Estimate","Margin Of Error","Estimate","Margin Of Error","Estimate","Margin Of Error","Estimate","Margin Of Error","Estimate","Margin Of Error","Estimate","Margin Of Error","Estimate","Margin Of Error","Estimate","Margin Of Error","Estimate","Margin Of Error","Estimate","Margin Of Error","Estimate","Margin Of Error","Estimate","Margin Of Error","Estimate","Margin Of Error","Estimate","Margin Of Error","Estimate","Margin Of Error"]
[null,"Total:",{"$f":"C7","v":4140},{"$f":"D7","v":18},904,134,5007,25,12881,54,1783,217,854,241,675,109,2945,14,704,144,923,176,6246,55,2410,292,1084,198,3449,19,1317,146]
[null,"Income in the past 12 months below poverty level:",{"$f":"C8","v":84},70,34,26,753,318,2117,519,175,172,85,71,96,46,49,65,127,87,75,34,765,368,132,74,73,52,287,179,130,74]
[null,"Under 5 years",{"$f":"C10+C24","v":0},{"$f":"SQRT(((D10^2))+((D34^2)))","v":20.248456731316587},{"$f":"E10+E24","v":0},{"$f":"SQRT(((F10^2))+((F34^2)))","v":15.556349186104045},{"$f":"G10+G24","v":67},{"$f":"SQRT(((H10^2))+((H34^2)))","v":86.608313688698502},{"$f":"I10+I24","v":294},{"$f":"SQRT(((J10^2))+((J34^2)))","v":100.07996802557443},{"$f":"K10+K24","v":4},{"$f":"SQRT(((L10^2))+((L34^2)))","v":19.416487838947599},{"$f":"M10+M24","v":7},{"$f":"SQRT(((N10^2))+((N34^2)))","v":16.401219466856727},{"$f":"O10+O24","v":11},{"$f":"SQRT(((P10^2))+((P34^2)))","v":14.212670403551895},{"$f":"Q10+Q24","v":0},{"$f":"SQRT(((R10^2))+((R34^2)))","v":16.278820596099706},{"$f":"S10+S24","v":8},{"$f":"SQRT(((T10^2))+((T34^2)))","v":13.45362404707371},{"$f":"U10+U24","v":3},{"$f":"SQRT(((V10^2))+((V34^2)))","v":31.953090617340916},{"$f":"W10+W24","v":37},{"$f":"SQRT(((X10^2))+((X34^2)))","v":59.033888572581766},{"$f":"Y10+Y24","v":0},{"$f":"SQRT(((Z10^2))+((Z34^2)))","v":15.556349186104045},{"$f":"AA10+AA24","v":0},{"$f":"SQRT(((AB10^2))+((AB34^2)))","v":51.195702944680818},{"$f":"AC10+AC24","v":20},{"$f":"SQRT(((AD10^2))+((AD34^2)))","v":23.853720883753127},{"$f":"AE10+AE24","v":0},{"$f":"SQRT(((AF10^2))+((AF34^2)))","v":15.556349186104045}]
[null,"5 to 17 years",{"$f":"C11+C12+C13+C14+C15+C25+C26+C27+C28+C29","v":0},{"$f":"SQRT((D11^2)+(D12^2)+(D13^2)+(D14^2)+(D15^2)+(D25^2)+(D26^2)+(D27^2)+(D28)+(D29^2))","v":33.166247903554002},{"$f":"E11+E12+E13+E14+E15+E25+E26+E27+E28+E29","v":0},{"$f":"SQRT((F11^2)+(F12^2)+(F13^2)+(F14^2)+(F15^2)+(F25^2)+(F26^2)+(F27^2)+(F28)+(F29^2))","v":33.166247903554002},{"$f":"G11+G12+G13+G14+G15+G25+G26+G27+G28+G29","v":86},{"$f":"SQRT((H11^2)+(H12^2)+(H13^2)+(H14^2)+(H15^2)+(H25^2)+(H26^2)+(H27^2)+(H28)+(H29^2))","v":73.525505778607197},{"$f":"I11+I12+I13+I14+I15+I25+I26+I27+I28+I29","v":399},{"$f":"SQRT((J11^2)+(J12^2)+(J13^2)+(J14^2)+(J15^2)+(J25^2)+(J26^2)+(J27^2)+(J28)+(J29^2))","v":148.29699929533302},{"$f":"K11+K12+K13+K14+K15+K25+K26+K27+K28+K29","v":91},{"$f":"SQRT((L11^2)+(L12^2)+(L13^2)+(L14^2)+(L15^2)+(L25^2)+(L26^2)+(L27^2)+(L28)+(L29^2))","v":71.007041904306931},{"$f":"M11+M12+M13+M14+M15+M25+M26+M27+M28+M29","v":25},{"$f":"SQRT((N11^2)+(N12^2)+(N13^2)+(N14^2)+(N15^2)+(N25^2)+(N26^2)+(N27^2)+(N28)+(N29^2))","v":43.220365569948619},{"$f":"O11+O12+O13+O14+O15+O25+O26+O27+O28+O29","v":10},{"$f":"SQRT((P11^2)+(P12^2)+(P13^2)+(P14^2)+(P15^2)+(P25^2)+(P26^2)+(P27^2)+(P28)+(P29^2))","v":30.822070014844883},{"$f":"Q11+Q12+Q13+Q14+Q15+Q25+Q26+Q27+Q28+Q29","v":18},{"$f":"SQRT((R11^2)+(R12^2)+(R13^2)+(R14^2)+(R15^2)+(R25^2)+(R26^2)+(R27^2)+(R28)+(R29^2))","v":40.049968789001575},{"$f":"S11+S12+S13+S14+S15+S25+S26+S27+S28+S29","v":60},{"$f":"SQRT((T11^2)+(T12^2)+(T13^2)+(T14^2)+(T15^2)+(T25^2)+(T26^2)+(T27^2)+(T28)+(T29^2))","v":46.454278597347738},{"$f":"U11+U12+U13+U14+U15+U25+U26+U27+U28+U29","v":3},{"$f":"SQRT((V11^2)+(V12^2)+(V13^2)+(V14^2)+(V15^2)+(V25^2)+(V26^2)+(V27^2)+(V28)+(V29^2))","v":31.54362059117501},{"$f":"W11+W12+W13+W14+W15+W25+W26+W27+W28+W29","v":135},{"$f":"SQRT((X11^2)+(X12^2)+(X13^2)+(X14^2)+(X15^2)+(X25^2)+(X26^2)+(X27^2)+(X28)+(X29^2))","v":112.57441982972864},{"$f":"Y11+Y12+Y13+Y14+Y15+Y25+Y26+Y27+Y28+Y29","v":0},{"$f":"SQRT((Z11^2)+(Z12^2)+(Z13^2)+(Z14^2)+(Z15^2)+(Z25^2)+(Z26^2)+(Z27^2)+(Z28)+(Z29^2))","v":33.166247903554002},{"$f":"AA11+AA12+AA13+AA14+AA15+AA25+AA26+AA27+AA28+AA29","v":9},{"$f":"SQRT((AB11^2)+(AB12^2)+(AB13^2)+(AB14^2)+(AB15^2)+(AB25^2)+(AB26^2)+(AB27^2)+(AB28)+(AB29^2))","v":30.773365106858236},{"$f":"AC11+AC12+AC13+AC14+AC15+AC25+AC26+AC27+AC28+AC29","v":45},{"$f":"SQRT((AD11^2)+(AD12^2)+(AD13^2)+(AD14^2)+(AD15^2)+(AD25^2)+(AD26^2)+(AD27^2)+(AD28)+(AD29^2))","v":62.63385665915839},{"$f":"AE11+AE12+AE13+AE14+AE15+AE25+AE26+AE27+AE28+AE29","v":6},{"$f":"SQRT((AF11^2)+(AF12^2)+(AF13^2)+(AF14^2)+(AF15^2)+(AF25^2)+(AF26^2)+(AF27^2)+(AF28)+(AF29^2))","v":32.295510523910288}]
[null,"18 to 64 years",{"$f":"C16+C17+C18+C19+C20+C30+C31+C32+C33+C34","v":83},{"$f":"SQRT((D16^2)+(D17^2)+(D18^2)+(D19^2)+(D20^2)+(D30^2)+(D31^2)+(D32^2)+(D33^2)+(D34^2))","v":70.611613775638915},{"$f":"E16+E17+E18+E19+E20+E30+E31+E32+E33+E34","v":29},{"$f":"SQRT((F16^2)+(F17^2)+(F18^2)+(F19^2)+(F20^2)+(F30^2)+(F31^2)+(F32^2)+(F33^2)+(F34^2))","v":33.645207682521445},{"$f":"G16+G17+G18+G19+G20+G30+G31+G32+G33+G34","v":506},{"$f":"SQRT((H16^2)+(H17^2)+(H18^2)+(H19^2)+(H20^2)+(H30^2)+(H31^2)+(H32^2)+(H33^2)+(H34^2))","v":204.57516955877122},{"$f":"I16+I17+I18+I19+I20+I30+I31+I32+I33+I34","v":1267},{"$f":"SQRT((J16^2)+(J17^2)+(J18^2)+(J19^2)+(J20^2)+(J30^2)+(J31^2)+(J32^2)+(J33^2)+(J34^2))","v":276.56644771193777},{"$f":"K16+K17+K18+K19+K20+K30+K31+K32+K33+K34","v":83},{"$f":"SQRT((L16^2)+(L17^2)+(L18^2)+(L19^2)+(L20^2)+(L30^2)+(L31^2)+(L32^2)+(L33^2)+(L34^2))","v":38.275318418009277},{"$f":"M16+M17+M18+M19+M20+M30+M31+M32+M33+M34","v":48},{"$f":"SQRT((N16^2)+(N17^2)+(N18^2)+(N19^2)+(N20^2)+(N30^2)+(N31^2)+(N32^2)+(N33^2)+(N34^2))","v":36.276714294434107},{"$f":"O16+O17+O18+O19+O20+O30+O31+O32+O33+O34","v":38},{"$f":"SQRT((P16^2)+(P17^2)+(P18^2)+(P19^2)+(P20^2)+(P30^2)+(P31^2)+(P32^2)+(P33^2)+(P34^2))","v":30.28200785945344},{"$f":"Q16+Q17+Q18+Q19+Q20+Q30+Q31+Q32+Q33+Q34","v":39},{"$f":"SQRT((R16^2)+(R17^2)+(R18^2)+(R19^2)+(R20^2)+(R30^2)+(R31^2)+(R32^2)+(R33^2)+(R34^2))","v":54.415071441651165},{"$f":"S16+S17+S18+S19+S20+S30+S31+S32+S33+S34","v":58},{"$f":"SQRT((T16^2)+(T17^2)+(T18^2)+(T19^2)+(T20^2)+(T30^2)+(T31^2)+(T32^2)+(T33^2)+(T34^2))","v":31.160872901765767},{"$f":"U16+U17+U18+U19+U20+U30+U31+U32+U33+U34","v":76},{"$f":"SQRT((V16^2)+(V17^2)+(V18^2)+(V19^2)+(V20^2)+(V30^2)+(V31^2)+(V32^2)+(V33^2)+(V34^2))","v":47.328638264796929},{"$f":"W16+W17+W18+W19+W20+W30+W31+W32+W33+W34","v":534},{"$f":"SQRT((X16^2)+(X17^2)+(X18^2)+(X19^2)+(X20^2)+(X30^2)+(X31^2)+(X32^2)+(X33^2)+(X34^2))","v":206.82117879946435},{"$f":"Y16+Y17+Y18+Y19+Y20+Y30+Y31+Y32+Y33+Y34","v":73},{"$f":"SQRT((Z16^2)+(Z17^2)+(Z18^2)+(Z19^2)+(Z20^2)+(Z30^2)+(Z31^2)+(Z32^2)+(Z33^2)+(Z34^2))","v":42.953463189829058},{"$f":"AA16+AA17+AA18+AA19+AA20+AA30+AA31+AA32+AA33+AA34","v":89},{"$f":"SQRT((AB16^2)+(AB17^2)+(AB18^2)+(AB19^2)+(AB20^2)+(AB30^2)+(AB31^2)+(AB32^2)+(AB33^2)+(AB34^2))","v":67.082039324993687},{"$f":"AC16+AC17+AC18+AC19+AC20+AC30+AC31+AC32+AC33+AC34","v":164},{"$f":"SQRT((AD16^2)+(AD17^2)+(AD18^2)+(AD19^2)+(AD20^2)+(AD30^2)+(AD31^2)+(AD32^2)+(AD33^2)+(AD34^2))","v":89.425947017630179},{"$f":"AE16+AE17+AE18+AE19+AE20+AE30+AE31+AE32+AE33+AE34","v":97},{"$f":"SQRT((AF16^2)+(AF17^2)+(AF18^2)+(AF19^2)+(AF20^2)+(AF30^2)+(AF31^2)+(AF32^2)+(AF33^2)+(AF34^2))","v":49.142649501222458}]
[null,"65 to 74 years",{"$f":"C21+C35","v":0},{"$f":"SQRT((D21^2)+(D35^2))","v":15.556349186104045},{"$f":"E21+E35","v":3},{"$f":"SQRT((F21^2)+(F35^2))","v":11.704699910719626},{"$f":"G21+G35","v":0},{"$f":"SQRT((H21^2)+(H35^2))","v":22.627416997969522},{"$f":"I21+I35","v":17},{"$f":"SQRT((J21^2)+(J35^2))","v":20.248456731316587},{"$f":"K21+K35","v":8},{"$f":"SQRT((L21^2)+(L35^2))","v":9.8488578017961039},{"$f":"M21+M35","v":9},{"$f":"SQRT((N21^2)+(N35^2))","v":15.556349186104045},{"$f":"O21+O35","v":14},{"$f":"SQRT((P21^2)+(P35^2))","v":20.248456731316587},{"$f":"Q21+Q35","v":2},{"$f":"SQRT((R21^2)+(R35^2))","v":11.401754250991379},{"$f":"S21+S35","v":2},{"$f":"SQRT((T21^2)+(T35^2))","v":11.401754250991379},{"$f":"U21+U35","v":41},{"$f":"SQRT((V21^2)+(V35^2))","v":54.341512676774101},{"$f":"W21+W35","v":30},{"$f":"SQRT((X21^2)+(X35^2))","v":32.249030993194197},{"$f":"Y21+Y35","v":24},{"$f":"SQRT((Z21^2)+(Z35^2))","v":31.953090617340916},{"$f":"AA21+AA35","v":12},{"$f":"SQRT((AB21^2)+(AB35^2))","v":11.313708498984761},{"$f":"AC21+AC35","v":3},{"$f":"SQRT((AD21^2)+(AD35^2))","v":11.704699910719626},{"$f":"AE21+AE35","v":12},{"$f":"SQRT((AF21^2)+(AF35^2))","v":8.6023252670426267}]
[null,"75 years and over",{"$f":"C22+C36","v":1},{"$f":"SQRT((D22^2)+(D36^2))","v":11.401754250991379},{"$f":"E22+E36","v":2},{"$f":"SQRT((F22^2)+(F36^2))","v":11.401754250991379},{"$f":"G22+G36","v":94},{"$f":"SQRT((H22^2)+(H36^2))","v":93.776329636001435},{"$f":"I22+I36","v":15},{"$f":"SQRT((J22^2)+(J36^2))","v":20.615528128088304},{"$f":"K22+K36","v":0},{"$f":"SQRT((L22^2)+(L36^2))","v":15.556349186104045},{"$f":"M22+M36","v":2},{"$f":"SQRT((N22^2)+(N36^2))","v":11.401754250991379},{"$f":"O22+O36","v":0},{"$f":"SQRT((P22^2)+(P36^2))","v":15.556349186104045},{"$f":"Q22+Q36","v":0},{"$f":"SQRT((R22^2)+(R36^2))","v":15.556349186104045},{"$f":"S22+S36","v":0},{"$f":"SQRT((T22^2)+(T36^2))","v":15.556349186104045},{"$f":"U22+U36","v":0},{"$f":"SQRT((V22^2)+(V36^2))","v":19.416487838947599},{"$f":"W22+W36","v":5},{"$f":"SQRT((X22^2)+(X36^2))","v":17.464249196572979},{"$f":"Y22+Y36","v":0},{"$f":"SQRT((Z22^2)+(Z36^2))","v":15.556349186104045},{"$f":"AA22+AA36","v":42},{"$f":"SQRT((AB22^2)+(AB36^2))","v":54.120236510939236},{"$f":"AC22+AC36","v":0},{"$f":"SQRT((AD22^2)+(AD36^2))","v":15.556349186104045},{"$f":"AE22+AE36","v":3},{"$f":"SQRT((AF22^2)+(AF36^2))","v":11.704699910719626}]
[null," Income in the past 12 months at or above poverty level ",{"$f":"C37","v":4056},73,870,136,4254,317,1608,156,769,234,579,101,2896,69,577,113,848,175,5481,372,2278,305,1011,205,3162,180,1187,147,1158,193]
[null,"Under 5 years",{"$f":"C39+C53","v":313},{"$f":"SQRT(((D39))^2+((D53))^2)","v":110.14535850411491},{"$f":"E39+E53","v":37},{"$f":"SQRT(((F39))^2+((F53))^2)","v":19.104973174542799},{"$f":"G39+G53","v":233},{"$f":"SQRT(((H39))^2+((H53))^2)","v":129.1394595001853},{"$f":"I39+I53","v":57},{"$f":"SQRT(((J39))^2+((J53))^2)","v":24.207436873820409},{"$f":"K39+K53","v":16},{"$f":"SQRT(((L39))^2+((L53))^2)","v":12.529964086141668},{"$f":"M39+M53","v":28},{"$f":"SQRT(((N39))^2+((N53))^2)","v":17.691806012954132},{"$f":"O39+O53","v":0},{"$f":"SQRT(((P39))^2+((P53))^2)","v":15.556349186104045},{"$f":"Q39+Q53","v":24},{"$f":"SQRT(((R39))^2+((R53))^2)","v":14.422205101855956},{"$f":"S39+S53","v":63},{"$f":"SQRT(((T39))^2+((T53))^2)","v":30.413812651491099},{"$f":"U39+U53","v":248},{"$f":"SQRT(((V39))^2+((V53))^2)","v":104.4030650891055},{"$f":"W39+W53","v":82},{"$f":"SQRT(((X39))^2+((X53))^2)","v":64.660652641308843},{"$f":"Y39+Y53","v":14},{"$f":"SQRT(((Z39))^2+((Z53))^2)","v":17.720045146669349},{"$f":"AA39+AA53","v":138},{"$f":"SQRT(((AB39))^2+((AB53))^2)","v":67.416615162732697},{"$f":"AC39+AC53","v":17},{"$f":"SQRT(((AD39))^2+((AD53))^2)","v":16.15549442140351},{"$f":"AE39+AE53","v":6},{"$f":"SQRT(((AF39))^2+((AF53))^2)","v":13.601470508735444}]
[null,"5 to 17 years",{"$f":"((C40)+(C41)+(C42)+(C43)+(C44)+(C54)+(C55)+(C56)+(C57)+(C58))","v":354},{"$f":"SQRT((D40^2)+(D41^2)+(D42^2)+(D43^2)+(D44^2)+(D54^2)+(D55^2)+(D56^2)+(D57^2)+(D58^2))","v":122.37238250520417},{"$f":"((E40)+(E41)+(E42)+(E43)+(E44)+(E54)+(E55)+(E56)+(E57)+(E58))","v":218},{"$f":"SQRT((F40^2)+(F41^2)+(F42^2)+(F43^2)+(F44^2)+(F54^2)+(F55^2)+(F56^2)+(F57^2)+(F58^2))","v":89.554452708952439},{"$f":"((G40)+(G41)+(G42)+(G43)+(G44)+(G54)+(G55)+(G56)+(G57)+(G58))","v":466},{"$f":"SQRT((H40^2)+(H41^2)+(H42^2)+(H43^2)+(H44^2)+(H54^2)+(H55^2)+(H56^2)+(H57^2)+(H58^2))","v":144.62019222777985},{"$f":"((I40)+(I41)+(I42)+(I43)+(I44)+(I54)+(I55)+(I56)+(I57)+(I58))","v":168},{"$f":"SQRT((J40^2)+(J41^2)+(J42^2)+(J43^2)+(J44^2)+(J54^2)+(J55^2)+(J56^2)+(J57^2)+(J58^2))","v":49.28488612140643},{"$f":"((K40)+(K41)+(K42)+(K43)+(K44)+(K54)+(K55)+(K56)+(K57)+(K58))","v":67},{"$f":"SQRT((L40^2)+(L41^2)+(L42^2)+(L43^2)+(L44^2)+(L54^2)+(L55^2)+(L56^2)+(L57^2)+(L58^2))","v":32.109188716004645},{"$f":"((M40)+(M41)+(M42)+(M43)+(M44)+(M54)+(M55)+(M56)+(M57)+(M58))","v":188},{"$f":"SQRT((N40^2)+(N41^2)+(N42^2)+(N43^2)+(N44^2)+(N54^2)+(N55^2)+(N56^2)+(N57^2)+(N58^2))","v":85.17628778010932},{"$f":"((O40)+(O41)+(O42)+(O43)+(O44)+(O54)+(O55)+(O56)+(O57)+(O58))","v":395},{"$f":"SQRT((P40^2)+(P41^2)+(P42^2)+(P43^2)+(P44^2)+(P54^2)+(P55^2)+(P56^2)+(P57^2)+(P58^2))","v":132.75541420220873},{"$f":"((Q40)+(Q41)+(Q42)+(Q43)+(Q44)+(Q54)+(Q55)+(Q56)+(Q57)+(Q58))","v":127},{"$f":"SQRT((R40^2)+(R41^2)+(R42^2)+(R43^2)+(R44^2)+(R54^2)+(R55^2)+(R56^2)+(R57^2)+(R58^2))","v":63.031738037277698},{"$f":"((S40)+(S41)+(S42)+(S43)+(S44)+(S54)+(S55)+(S56)+(S57)+(S58))","v":261},{"$f":"SQRT((T40^2)+(T41^2)+(T42^2)+(T43^2)+(T44^2)+(T54^2)+(T55^2)+(T56^2)+(T57^2)+(T58^2))","v":121.8769871632869},{"$f":"((U40)+(U41)+(U42)+(U43)+(U44)+(U54)+(U55)+(U56)+(U57)+(U58))","v":669},{"$f":"SQRT((V40^2)+(V41^2)+(V42^2)+(V43^2)+(V44^2)+(V54^2)+(V55^2)+(V56^2)+(V57^2)+(V58^2))","v":208.98325291754838},{"$f":"((W40)+(W41)+(W42)+(W43)+(W44)+(W54)+(W55)+(W56)+(W57)+(W58))","v":370},{"$f":"SQRT((X40^2)+(X41^2)+(X42^2)+(X43^2)+(X44^2)+(X54^2)+(X55^2)+(X56^2)+(X57^2)+(X58^2))","v":98.984847325234583},{"$f":"((Y40)+(Y41)+(Y42)+(Y43)+(Y44)+(Y54)+(Y55)+(Y56)+(Y57)+(Y58))","v":192},{"$f":"SQRT((Z40^2)+(Z41^2)+(Z42^2)+(Z43^2)+(Z44^2)+(Z54^2)+(Z55^2)+(Z56^2)+(Z57^2)+(Z58^2))","v":79.429213769242352},{"$f":"((AA40)+(AA41)+(AA42)+(AA43)+(AA44)+(AA54)+(AA55)+(AA56)+(AA57)+(AA58))","v":445},{"$f":"SQRT((AB40^2)+(AB41^2)+(AB42^2)+(AB43^2)+(AB44^2)+(AB54^2)+(AB55^2)+(AB56^2)+(AB57^2)+(AB58^2))","v":122.53162856993292},{"$f":"((AC40)+(AC41)+(AC42)+(AC43)+(AC44)+(AC54)+(AC55)+(AC56)+(AC57)+(AC58))","v":123},{"$f":"SQRT((AD40^2)+(AD41^2)+(AD42^2)+(AD43^2)+(AD44^2)+(AD54^2)+(AD55^2)+(AD56^2)+(AD57^2)+(AD58^2))","v":42.059481689626182},{"$f":"((AE40)+(AE41)+(AE42)+(AE43)+(AE44)+(AE54)+(AE55)+(AE56)+(AE57)+(AE58))","v":74},{"$f":"SQRT((AF40^2)+(AF41^2)+(AF42^2)+(AF43^2)+(AF44^2)+(AF54^2)+(AF55^2)+(AF56^2)+(AF57^2)+(AF58^2))","v":42.01190307520001}]
[null,"18 to 64 years",{"$f":"((C45)+(C46)+(C47)+(C48)+(C49)+(C59)+(C60)+(C61)+(C62)+(C63))","v":1546},{"$f":"SQRT((D45^2)+(D46^2)+(D47^2)+(D48^2)+(D49^2)+(D59^2)+(D60^2)+(D61^2)+(D62^2)+(D63^2))","v":200.35967658189111},{"$f":"((E45)+(E46)+(E47)+(E48)+(E49)+(E59)+(E60)+(E61)+(E62)+(E63))","v":1385},{"$f":"SQRT((F45^2)+(F46^2)+(F47^2)+(F48^2)+(F49^2)+(F59^2)+(F60^2)+(F61^2)+(F62^2)+(F63^2))","v":253.76366958254681},{"$f":"((G45)+(G46)+(G47)+(G48)+(G49)+(G59)+(G60)+(G61)+(G62)+(G63))","v":1765},{"$f":"SQRT((H45^2)+(H46^2)+(H47^2)+(H48^2)+(H49^2)+(H59^2)+(H60^2)+(H61^2)+(H62^2)+(H63^2))","v":249.47144125129833},{"$f":"((I45)+(I46)+(I47)+(I48)+(I49)+(I59)+(I60)+(I61)+(I62)+(I63))","v":691},{"$f":"SQRT((J45^2)+(J46^2)+(J47^2)+(J48^2)+(J49^2)+(J59^2)+(J60^2)+(J61^2)+(J62^2)+(J63^2))","v":125.48306658669129},{"$f":"((K45)+(K46)+(K47)+(K48)+(K49)+(K59)+(K60)+(K61)+(K62)+(K63))","v":428},{"$f":"SQRT((L45^2)+(L46^2)+(L47^2)+(L48^2)+(L49^2)+(L59^2)+(L60^2)+(L61^2)+(L62^2)+(L63^2))","v":86.764047853935452},{"$f":"((M45)+(M46)+(M47)+(M48)+(M49)+(M59)+(M60)+(M61)+(M62)+(M63))","v":1150},{"$f":"SQRT((N45^2)+(N46^2)+(N47^2)+(N48^2)+(N49^2)+(N59^2)+(N60^2)+(N61^2)+(N62^2)+(N63^2))","v":226.43542125736423},{"$f":"((O45)+(O46)+(O47)+(O48)+(O49)+(O59)+(O60)+(O61)+(O62)+(O63))","v":965},{"$f":"SQRT((P45^2)+(P46^2)+(P47^2)+(P48^2)+(P49^2)+(P59^2)+(P60^2)+(P61^2)+(P62^2)+(P63^2))","v":187.89624796679684},{"$f":"((Q45)+(Q46)+(Q47)+(Q48)+(Q49)+(Q59)+(Q60)+(Q61)+(Q62)+(Q63))","v":401},{"$f":"SQRT((R45^2)+(R46^2)+(R47^2)+(R48^2)+(R49^2)+(R59^2)+(R60^2)+(R61^2)+(R62^2)+(R63^2))","v":71.253070109294242},{"$f":"((S45)+(S46)+(S47)+(S48)+(S49)+(S59)+(S60)+(S61)+(S62)+(S63))","v":1847},{"$f":"SQRT((T45^2)+(T46^2)+(T47^2)+(T48^2)+(T49^2)+(T59^2)+(T60^2)+(T61^2)+(T62^2)+(T63^2))","v":268.65405264019375},{"$f":"((U45)+(U46)+(U47)+(U48)+(U49)+(U59)+(U60)+(U61)+(U62)+(U63))","v":2455},{"$f":"SQRT((V45^2)+(V46^2)+(V47^2)+(V48^2)+(V49^2)+(V59^2)+(V60^2)+(V61^2)+(V62^2)+(V63^2))","v":335.13131754582412},{"$f":"((W45)+(W46)+(W47)+(W48)+(W49)+(W59)+(W60)+(W61)+(W62)+(W63))","v":966},{"$f":"SQRT((X45^2)+(X46^2)+(X47^2)+(X48^2)+(X49^2)+(X59^2)+(X60^2)+(X61^2)+(X62^2)+(X63^2))","v":146.05478424207814},{"$f":"((Y45)+(Y46)+(Y47)+(Y48)+(Y49)+(Y59)+(Y60)+(Y61)+(Y62)+(Y63))","v":1212},{"$f":"SQRT((Z45^2)+(Z46^2)+(Z47^2)+(Z48^2)+(Z49^2)+(Z59^2)+(Z60^2)+(Z61^2)+(Z62^2)+(Z63^2))","v":174.30720008077694},{"$f":"((AA45)+(AA46)+(AA47)+(AA48)+(AA49)+(AA59)+(AA60)+(AA61)+(AA62)+(AA63))","v":1314},{"$f":"SQRT((AB45^2)+(AB46^2)+(AB47^2)+(AB48^2)+(AB49^2)+(AB59^2)+(AB60^2)+(AB61^2)+(AB62^2)+(AB63^2))","v":182.34856730997367},{"$f":"((AC45)+(AC46)+(AC47)+(AC48)+(AC49)+(AC59)+(AC60)+(AC61)+(AC62)+(AC63))","v":724},{"$f":"SQRT((AD45^2)+(AD46^2)+(AD47^2)+(AD48^2)+(AD49^2)+(AD59^2)+(AD60^2)+(AD61^2)+(AD62^2)+(AD63^2))","v":115.73677030226824},{"$f":"((AE45)+(AE46)+(AE47)+(AE48)+(AE49)+(AE59)+(AE60)+(AE61)+(AE62)+(AE63))","v":370},{"$f":"SQRT((AF45^2)+(AF46^2)+(AF47^2)+(AF48^2)+(AF49^2)+(AF59^2)+(AF60^2)+(AF61^2)+(AF62^2)+(AF63^2))","v":93.198712437458056}]
[null,"65 to 74 years",{"$f":"((C50)+(C64))","v":292},{"$f":"SQRT((D50^2)+(D64^2))","v":73.23933369440222},{"$f":"((E50)+(E64))","v":381},{"$f":"SQRT((F50^2)+(F64^2))","v":123},{"$f":"((G50)+(G64))","v":433},{"$f":"SQRT((H50^2)+(H64^2))","v":103.36827366266692},{"$f":"((I50)+(I64))","v":231},{"$f":"SQRT((J50^2)+(J64^2))","v":53.665631459994955},{"$f":"((K50)+(K64))","v":78},{"$f":"SQRT((L50^2)+(L64^2))","v":29.068883707497267},{"$f":"((M50)+(M64))","v":184},{"$f":"SQRT((N50^2)+(N64^2))","v":57.008771254956898},{"$f":"((O50)+(O64))","v":189},{"$f":"SQRT((P50^2)+(P64^2))","v":69.871310278253688},{"$f":"((Q50)+(Q64))","v":88},{"$f":"SQRT((R50^2)+(R64^2))","v":26.92582403567252},{"$f":"((S50)+(S64))","v":339},{"$f":"SQRT((T50^2)+(T64^2))","v":128.65457628860312},{"$f":"((U50)+(U64))","v":556},{"$f":"SQRT((V50^2)+(V64^2))","v":168.88457596832222},{"$f":"((W50)+(W64))","v":266},{"$f":"SQRT((X50^2)+(X64^2))","v":66.843099868273612},{"$f":"((Y50)+(Y64))","v":332},{"$f":"SQRT((Z50^2)+(Z64^2))","v":78.230428862431779},{"$f":"((AA50)+(AA64))","v":286},{"$f":"SQRT((AB50^2)+(AB64^2))","v":64.845971347493901},{"$f":"((AC50)+(AC64))","v":232},{"$f":"SQRT((AD50^2)+(AD64^2))","v":46.861498055439924},{"$f":"((AE50)+(AE64))","v":109},{"$f":"SQRT((AF50^2)+(AF64^2))","v":33}]
[null,"75 years and over",{"$f":"((C51)+(C65))","v":136},{"$f":"SQRT((D51^2)+(D65^2))","v":43.324358044868937},{"$f":"((E51)+(E65))","v":248},{"$f":"SQRT((F51^2)+(F65^2))","v":87.091905479212016},{"$f":"((G51)+(G65))","v":310},{"$f":"SQRT((H51^2)+(H65^2))","v":91.760557975635692},{"$f":"((I51)+(I65))","v":87},{"$f":"SQRT((J51^2)+(J65^2))","v":34.176014981270121},{"$f":"((K51)+(K65))","v":60},{"$f":"SQRT((L51^2)+(L65^2))","v":20.615528128088304},{"$f":"((M51)+(M65))","v":184},{"$f":"SQRT((N51^2)+(N65^2))","v":76.295478240849903},{"$f":"((O51)+(O65))","v":209},{"$f":"SQRT((P51^2)+(P65^2))","v":86.371291526756735},{"$f":"((Q51)+(Q65))","v":54},{"$f":"SQRT((R51^2)+(R65^2))","v":27.513632984395208},{"$f":"((S51)+(S65))","v":299},{"$f":"SQRT((T51^2)+(T65^2))","v":103.58571330062848},{"$f":"((U51)+(U65))","v":172},{"$f":"SQRT((V51^2)+(V65^2))","v":87.846456957580259},{"$f":"((W51)+(W65))","v":94},{"$f":"SQRT((X51^2)+(X65^2))","v":43.600458713183279},{"$f":"((Y51)+(Y65))","v":201},{"$f":"SQRT((Z51^2)+(Z65^2))","v":71.554175279993274},{"$f":"((AA51)+(AA65))","v":154},{"$f":"SQRT((AB51^2)+(AB65^2))","v":60.876925020897694},{"$f":"((AC51)+(AC65))","v":73},{"$f":"SQRT((AD51^2)+(AD65^2))","v":22.022715545545239},{"$f":"((AE51)+(AE65))","v":46},{"$f":"SQRT((AF51^2)+(AF65^2))","v":20}]
[]
[]
[]
[]
[]
[]
[]
[]
[]
[]
[]
[]
[]
[]
[]
[]
[]
[]
[]
[]
[]
[]
[]
[]
[]
[]
[]
[]
[]
[]
[]
[]
[]
[]
[]
[]
[]
[]
[]
[]
[]
[]
[]
[null,"Calculated Table B17001. POVERTY STATUS IN THE PAST 12 MONTHS BY SEX BY AGE"]
[null,"Universe:  POPULATION FOR WHOM POVERTY STATUS IS DETERMINED"]
[null,"Data Set: 2010-2014 American Community Survey 5-Year Estimates"]
[]
[null,null,"Acworth",null,"Charlestown",null,"Claremont",null,"Cornish",null,"Croydon",null,"Goshen",null,"Grantham",null,"Langdon",null,"Lempster",null,"Newport",null,"Plainfield",null,"Springfield",null,"Sunapee",null,"Unity",null,"Washington"]
[null,null,"Estimate","Margin Of Error","Estimate","Margin Of Error","Estimate","Margin Of Error","Estimate","Margin Of Error","Estimate","Margin Of Error","Estimate","Margin Of Error","Estimate","Margin Of Error","Estimate","Margin Of Error","Estimate","Margin Of Error","Estimate","Margin Of Error","Estimate","Margin Of Error","Estimate","Margin Of Error","Estimate","Margin Of Error","Estimate","Margin Of Error","Estimate","Margin Of Error"]
[null,"Total:",870,132,5047,16,13028,83,1596,177,651,140,821,127,2970,25,781,147,1089,147,6311,98,2404,166,1313,217,3363,30,1342,147,1010,140]
[null,"Income in the past 12 months below poverty level:",67,33,550,250,1745,406,75,41,20,16,91,55,63,61,39,24,73,48,750,317,10,11,39,26,178,126,98,41,76,51]
[null,"Under 5 years",0,12.529964086141668,86,77.987178433380961,81,81.344944526380985,3,10.770329614269007,0,11.704699910719626,7,13.416407864998739,0,15.556349186104045,0,14.866068747318506,5,6.4031242374328485,26,48.383881613611777,0,14.212670403551895,0,15.556349186104045,11,44.77722635447622,0,18.601075237738275,9,9.8488578017961039]
[null,"5 to 17 years",7,29.58039891549808,61,67.69785816405124,412,184.68351307033339,16,29.103264421710495,5,32.295510523910288,30,35.171010790137949,0,33.166247903554002,0,33.166247903554002,23,31.606961258558215,89,97.149369529606318,0,33.166247903554002,0,33.166247903554002,39,52.782572881586589,3,31.54362059117501,9,28.178005607210743]
[null,"18 to 64 years",56,25.238858928247925,327,150.07331541616585,1109,225.46840133375673,50,30.397368307141328,13,30.854497241083024,48,28.635642126552707,63,59.016946718718003,33,35.256205127608389,27,25.119713374160941,470,176.59558318372518,6,34.205262752974143,30,38.157568056677825,128,94.778689587902619,81,45.254833995939045,52,29.03446228191595]
[null,"65 to 74 years",2,11.401754250991379,26,31.953090617340916,45,38.275318418009277,6,6.4031242374328485,1,11.704699910719626,3,11.704699910719626,0,15.556349186104045,4,12.083045973594572,4,12.083045973594572,141,106.90182411914213,4,12.529964086141668,6,5.6568542494923806,0,15.556349186104045,9,7.2111025509279782,0,15.556349186104045]
[null,"75 years and over",2,11.401754250991379,50,39.446165846632042,98,63.63961030678928,0,15.556349186104045,1,11.401754250991379,3,11.704699910719626,0,15.556349186104045,2,11.401754250991379,14,13.601470508735444,24,25.709920264364882,0,15.556349186104045,3,11.704699910719626,0,15.556349186104045,5,12.529964086141668,6,5.6568542494923806]
[null," Income in the past 12 months at or above poverty level ",803,137,4497,250,11283,414,1521,183,631,141,730,119,2907,63,742,151,1016,147,5561,335,2394,165,1274,217,3185,131,1244,143,934,129]
[null,"Under 5 years",39,24.207436873820409,220,83.546394296821688,778,155.43809056984713,83,43.600458713183279,32,26.40075756488817,40,25.45584412271571,159,79.511005527536881,41,29.546573405388315,62,28.844410203711913,120,71.06335201775947,141,62.032249677083293,82,48.60041152089147,67,53.712196007983138,44,25.495097567963924,4,12.529964086141668]
[null,"5 to 17 years",108,40.049968789001575,527,137.90576492663388,1670,283.4607556611673,227,67.394361781976983,88,36.124783736376884,63,34.914180500192181,536,156.58543993615754,134,52.201532544552748,133,41.231056256176608,873,244.28467000612216,305,72.387844283415433,244,68.738635424337602,453,135.75345299475811,134,39.038442591886273,121,50.467811523782167]
[null,"18 to 64 years",508,72.938330115241882,2893,347.95976778932362,6952,450.16774651234175,1022,105.05712731652241,431,74.108029254595621,491,69.613217135828449,1620,215.04883166388046,447,74.786362393152942,681,94.451045520946991,3611,361.43602476786953,1556,160.96583488430085,791,108.49423947841655,1854,254.25184365113265,894,98.015304927342854,568,81.81686867633104]
[null,"65 to 74 years",103,32.649655434629018,547,158.49290204927161,1064,156.48642113614844,136,44.204072210600685,54,19.209372712298546,72,29.068883707497267,262,79.246451024635803,83,25.45584412271571,81,27.784887978899608,561,171.20747647226156,293,68.818602136341013,114,39.66106403010388,436,116.10340218959993,108,30,161,29.732137494637012]
[null,"75 years and over",45,18.788294228055936,310,140.356688476182,819,123.22743201089601,53,20,26,18.601075237738275,64,22.671568097509269,330,92.200867674876037,37,19.104973174542799,59,26.90724809414742,396,110.53506231056279,99,36.891733491393431,43,21.095023109728988,375,95.587656106842587,64,21.633307652783937,80,26.90724809414742]
[]
[]
[]
[]
[]
[]
[]
[]
[]
[]
[]
[]
[]
[]
[]
[]
[]
[]
[]
[]
[]
[]
[]
[]
[]
[]
[]
[]
[]
[]
[]
[]
[]
[]
[]
[]
[]
[]
[]
[]
[]
[]
[null,"Calculated Table B17001. POVERTY STATUS IN THE PAST 12 MONTHS BY SEX BY AGE"]
[null,"Universe:  POPULATION FOR WHOM POVERTY STATUS IS DETERMINED"]
[null,"Data Set: 2005-2009 American Community Survey 5-Year Estimates"]
[]
[null,null,"Acworth",null,"Charlestown",null,"Claremont",null,"Cornish",null,"Croydon",null,"Goshen",null,"Grantham",null,"Langdon",null,"Lempster",null,"Newport",null,"Plainfield",null,"Springfield",null,"Sunapee",null,"Unity",null,"Washington"]
[null,null,"Estimate","Margin Of Error","Estimate","Margin Of Error","Estimate","Margin Of Error","Estimate","Margin Of Error","Estimate","Margin Of Error","Estimate","Margin Of Error","Estimate","Margin Of Error","Estimate","Margin Of Error","Estimate","Margin Of Error","Estimate","Margin Of Error","Estimate","Margin Of Error","Estimate","Margin Of Error","Estimate","Margin Of Error","Estimate","Margin Of Error","Estimate","Margin Of Error"]
[null,"Total:",822,164,4872,23,12783,263,1744,202,759,129,877,137,2516,18,586,170,1143,165,6219,184,2523,254,832,150,3338,45,1599,236,1260,168]
[null,"Income in the past 12 months below poverty level:",98,65,226,121,1746,398,88,68,70,52,50,27,165,104,28,27,117,55,819,309,153,108,68,45,348,248,207,145,116,65]
[null,"Under 5 years",0,161.22034611053283,21,118.96217886370441,215,101.41498903022176,10,16.15549442140351,7,114.10959644131601,0,114.15778554264269,0,117.881296226331,0,161.22034611053283,13,114.28035701729323,40,54.708317466359723,0,114.28035701729323,0,161.22034611053283,29,48.104053883222775,35,21.213203435596427,0,115.41230437002807]
[null,"5 to 17 years",4,322.69335289094505,11,323.11917306158108,254,101.04949282406122,31,280.73653128868,6,322.77236560771433,4,322.67320930005951,0,342.16662607565922,9,301.96688560171629,28,229.24222996647018,273,288.27417504868521,51,257.70719819205669,8,322.9210429810978,92,294.72699231661835,39,305.36371755662134,27,255.57386407846948]
[null,"18 to 64 years",86,233.38594644922389,128,269.27123871665168,1011,231.43465600467013,38,198.95979493354932,48,229.97391156389892,40,256.27329162439071,137,174.76841819962783,19,302.15393427853957,62,256.40397812826541,474,239.26136336650762,92,234.69767787517625,41,256.39032743065798,201,153.24163924991146,133,204.57028132160352,70,166.38209038234854]
[null,"65 to 74 years",3,114.0701538527936,14,116.29703349613007,103,52.697248505021591,5,114.28035701729323,6,6.4031242374328485,3,114.0701538527936,22,22.671568097509269,0,161.22034611053283,12,10.770329614269007,0,161.22034611053283,0,161.22034611053283,19,19.849433241279208,0,161.22034611053283,0,161.22034611053283,10,114.73883387938018]
[null,"75 years and over",5,114.21471008587291,52,43.829214001622255,163,87.692645073575008,4,114.15778554264269,3,114.15778554264269,3,114.10959644131601,6,114.43775600735974,0,161.22034611053283,2,114.0701538527936,32,119.85407794480753,10,114.85643212288984,0,161.22034611053283,26,120.48651376813922,0,161.22034611053283,9,114.28035701729323]
[null," Income in the past 12 months at or above poverty level ",724,158,4646,122,11037,459,1656,205,689,118,827,128,2351,105,558,170,1026,151,5400,338,2370,242,764,141,2990,250,1392,212,1144,154]
[null,"Under 5 years",40,21.931712199461309,334,111.51681487560519,545,175.06855799943062,64,33.941125496954278,30,116.10340218959993,37,21.400934559032695,136,67.623960250786851,29,25.495097567963924,41,25,324,123.42204017111368,76,39.66106403010388,59,30.232432915661949,118,64.031242374328485,33,24.351591323771842,78,38.209946349085598]
[null,"5 to 17 years",40,198.75361631930122,680,212.8497122384712,1739,261.25849268492692,301,78.701969479803992,95,201.43237078483688,129,122.07784401765949,322,83.204567182336817,108,232.51881644288488,180,169.69089545405788,849,197.32460566285189,442,92.504053965218191,143,121.16930304330384,478,118.54534997206765,231,132.08709248068109,109,165.95180023127196]
[null,"18 to 64 years",439,78.892331693264083,3172,342.99562679427851,6974,471.79232719492165,1097,130.92746083232501,460,86.388656662781827,534,87.954533709184091,1326,151.40343457134651,340,82.776808346299504,693,93.322023124233652,3461,361.23399618529817,1589,169.45795938816212,481,82.637763764516279,1734,230.84410323852762,916,120.33287165193059,695,96.76259607927021]
[null,"65 to 74 years",150,63.812224534175265,225,84.628600366542756,904,155,122,35.383612025908263,61,18.384776310850235,86,36.715119501371639,313,89.961102705558247,53,26.419689627245813,70,22.671568097509269,442,98.812954616284998,155,49.819674828324601,43,16.970562748477139,364,87.658428003244509,150,47.507894080878813,183,44.687805943008662]
[null,"75 years and over",55,44.147480109288232,235,88.600225733346747,875,137.05838172107534,72,31.144823004794873,43,19.104973174542799,41,20.248456731316587,254,76.026311234992846,28,24.041630560342615,42,21.400934559032695,324,100.90094152187085,108,53.535035257296691,38,19.104973174542799,296,91.35097153287424,62,29.681644159311659,79,32.015621187164243]

{"sheet":"ACS_Table_B17010","index":76,"n_rows":156,"n_cols":32,"rows_kept":156,"cut":false,"hidden":true,"merged":[]}
[null,"B17010. POVERTY STATUS IN THE PAST 12 MONTHS OF FAMILIES BY FAMILY TYPE BY PRESENCE OF RELATED CHILDREN UNDER 18 YEARS"]
[null,"Universe: FAMILIES"]
[null,"Data Set: 2015-2019 American Community Survey 5-Year Estimates"]
[]
[null,null,"Acworth",null,"Charlestown",null,"Claremont",null,"Cornish",null,"Croydon",null,"Goshen",null,"Grantham",null,"Langdon",null,"Lempster",null,"Newport",null,"Plainfield",null,"Springfield",null,"Sunapee",null,"Unity",null,"Washington"]
[null,null,"Estimate","Margin Of Error","Estimate","Margin Of Error","Estimate","Margin Of Error","Estimate","Margin Of Error","Estimate","Margin Of Error","Estimate","Margin Of Error","Estimate","Margin Of Error","Estimate","Margin Of Error","Estimate","Margin Of Error","Estimate","Margin Of Error","Estimate","Margin Of Error","Estimate","Margin Of Error","Estimate","Margin Of Error"]
[null,"Total:",255,43,1379,163,3165,231,526,72,187,46,163,36,902,98,190,38,240,47,1572,151,715,79,337,66,901,90,406,48,419,78]
[null,"Income in the past 12 months below poverty level:",9,12,93,61,342,138,23,24,12,15,16,12,31,43,22,15,12,14,153,102,36,29,9,10,67,55,22,20,6,6]
[null,"Married-couple family:",9,12,42,44,116,70,19,23,5,10,5,6,0,11,11,11,9,14,13,20,25,28,9,10,42,50,19,19,6,6]
[null,"With related children under 18 years:",0,11,42,44,95,60,19,23,0,11,0,11,0,11,8,10,0,11,0,16,0,11,9,10,31,48,0,11,0,11]
[null,"Under 5 years only",0,11,0,16,0,18,0,11,0,11,0,11,0,11,0,11,0,11,0,16,0,11,0,11,0,11,0,11,0,11]
[null,"Under 5 years and 5 to 17 years",0,11,42,44,38,40,4,7,0,11,0,11,0,11,6,10,0,11,0,16,0,11,0,11,0,11,0,11,0,11]
[null,"5 to 17 years only",0,11,0,16,57,48,15,22,0,11,0,11,0,11,2,3,0,11,0,16,0,11,9,10,31,48,0,11,0,11]
[null,"No related children under 18 years",9,12,0,16,21,25,0,11,5,10,5,6,0,11,3,4,9,14,13,20,25,28,0,11,11,17,19,19,6,6]
[null,"Other family:",0,11,51,54,226,124,4,6,7,11,11,10,31,43,11,12,3,5,140,100,11,11,0,11,25,20,3,4,0,11]
[null,"Male householder, no spouse present:",0,11,6,9,24,32,0,11,0,11,9,10,0,11,0,11,0,11,12,21,6,9,0,11,6,10,3,4,0,11]
[null,"With related children under 18 years:",0,11,6,9,24,32,0,11,0,11,9,10,0,11,0,11,0,11,12,21,0,11,0,11,6,10,3,4,0,11]
[null,"Under 5 years only",0,11,0,16,0,18,0,11,0,11,0,11,0,11,0,11,0,11,0,16,0,11,0,11,0,11,0,11,0,11]
[null,"Under 5 years and 5 to 17 years",0,11,0,16,24,32,0,11,0,11,6,9,0,11,0,11,0,11,0,16,0,11,0,11,0,11,0,11,0,11]
[null,"5 to 17 years only",0,11,6,9,0,18,0,11,0,11,3,4,0,11,0,11,0,11,12,21,0,11,0,11,6,10,3,4,0,11]
[null,"No related children under 18 years",0,11,0,16,0,18,0,11,0,11,0,11,0,11,0,11,0,11,0,16,6,9,0,11,0,11,0,11,0,11]
[null,"Female householder, no spouse present:",0,11,45,53,202,122,4,6,7,11,2,3,31,43,11,12,3,5,128,98,5,7,0,11,19,16,0,11,0,11]
[null,"With related children under 18 years:",0,11,29,47,154,98,4,6,7,11,2,3,31,43,11,12,3,5,75,78,0,11,0,11,19,16,0,11,0,11]
[null,"Under 5 years only",0,11,0,16,122,90,0,11,0,11,2,3,0,11,0,11,3,5,0,16,0,11,0,11,19,16,0,11,0,11]
[null,"Under 5 years and 5 to 17 years",0,11,0,16,21,33,0,11,7,11,0,11,0,11,2,3,0,11,36,53,0,11,0,11,0,11,0,11,0,11]
[null,"5 to 17 years only",0,11,29,47,11,16,4,6,0,11,0,11,31,43,9,11,0,11,39,59,0,11,0,11,0,11,0,11,0,11]
[null,"No related children under 18 years",0,11,16,26,48,66,0,11,0,11,0,11,0,11,0,11,0,11,53,63,5,7,0,11,0,11,0,11,0,11]
[null,"Income in the past 12 months at or above poverty level:",246,45,1286,178,2823,244,503,68,175,45,147,33,871,91,168,35,228,48,1419,180,679,84,328,68,834,107,384,50,413,78]
[null,"Married-couple family:",209,41,910,195,2002,234,463,65,153,46,107,29,750,119,163,36,185,43,954,147,574,87,295,62,711,114,340,45,381,79]
[null,"With related children under 18 years:",45,22,155,86,647,155,103,33,44,26,41,22,235,97,52,21,58,27,357,110,201,61,79,39,273,67,29,17,61,26]
[null,"Under 5 years only",11,11,59,60,114,74,20,12,10,10,4,4,0,11,8,6,6,6,23,25,26,28,3,5,8,12,0,11,0,11]
[null,"Under 5 years and 5 to 17 years",7,6,0,16,125,108,16,11,0,11,12,11,0,11,13,13,34,24,88,62,38,24,3,5,81,59,3,6,3,4]
[null,"5 to 17 years only",27,18,96,68,408,119,67,27,34,22,25,19,235,97,31,15,18,15,246,114,137,49,73,39,184,66,26,17,58,26]
[null,"No related children under 18 years",164,40,755,170,1355,213,109,36,66,23,515,120,111,31,127,41,597,150,373,76,216,54,438,105,311,44,320,74,0,0]
[null,"Other family:",37,19,376,138,821,172,22,12,40,20,121,69,5,6,43,30,465,160,105,55,33,26,123,56,44,22,32,22,0,0]
[null,"Male householder, no spouse present:",23,14,177,107,176,79,12,9,21,16,89,68,0,11,22,23,106,81,17,15,5,8,47,37,18,11,9,13,0,0]
[null,"With related children under 18 years:",11,8,149,103,133,79,10,9,19,16,89,68,0,11,5,6,24,25,5,7,0,11,30,33,9,7,3,4,0,0]
[null,"Under 5 years only",2,3,32,53,0,18,0,11,2,3,0,11,0,11,3,4,24,25,0,11,0,11,0,11,0,11,0,11,0,0]
[null,"Under 5 years and 5 to 17 years",7,7,65,69,0,18,0,11,7,10,0,11,0,11,0,11,0,16,0,11,0,11,18,27,0,11,0,11,0,0]
[null,"5 to 17 years only",2,3,52,65,133,79,10,9,10,12,89,68,0,11,2,5,0,16,5,7,0,11,12,19,9,7,3,4,0,0]
[null,"No related children under 18 years",12,11,28,30,43,37,2,3,2,3,0,11,0,11,17,22,82,74,12,13,5,8,17,21,9,7,6,14,0,0]
[null,"Female householder, no spouse present:",14,12,199,96,645,172,10,9,19,14,32,31,5,6,21,18,359,128,88,54,28,24,76,42,26,19,23,17,0,0]
[null,"With related children under 18 years:",0,11,103,84,420,137,5,6,6,6,14,21,0,11,19,17,198,107,55,44,20,22,48,34,20,18,7,8,0,0]
[null,"Under 5 years only",0,11,0,16,132,86,0,11,0,11,0,11,0,11,0,11,66,73,0,11,10,16,24,24,10,14,0,11,0,0]
[null,"Under 5 years and 5 to 17 years",0,11,53,71,68,51,0,11,0,11,0,11,0,11,6,7,0,16,0,11,0,11,0,11,4,6,0,11,0,0]
[null,"5 to 17 years only",0,11,50,46,220,111,5,6,6,6,14,21,0,11,13,15,132,87,55,44,10,16,24,27,6,5,7,8,0,0]
[null,"No related children under 18 years",14,12,96,70,225,92,5,6,13,12,18,25,5,6,2,3,161,106,33,24,8,10,28,22,6,6,16,16,0,0]
[]
[]
[]
[]
[]
[]
[]
[]
[]
[]
[]
[]
[null,"B17010. POVERTY STATUS IN THE PAST 12 MONTHS OF FAMILIES BY FAMILY TYPE BY PRESENCE OF RELATED CHILDREN UNDER 18 YEARS"]
[null,"Universe: FAMILIES"]
[null,"Data Set: 2010-2014 American Community Survey 5-Year Estimates"]
[]
[null,null,"Acworth",null,"Charlestown",null,"Claremont",null,"Cornish",null,"Croydon",null,"Goshen",null,"Grantham",null,"Langdon",null,"Lempster",null,"Newport",null,"Plainfield",null,"Springfield",null,"Sunapee",null,"Unity",null,"Washington"]
[null,null,"Estimate","Margin Of Error","Estimate","Margin Of Error","Estimate","Margin Of Error","Estimate","Margin Of Error","Estimate","Margin Of Error","Estimate","Margin Of Error","Estimate","Margin Of Error","Estimate","Margin Of Error","Estimate","Margin Of Error","Estimate","Margin Of Error","Estimate","Margin Of Error","Estimate","Margin Of Error","Estimate","Margin Of Error"]
[null,"Total:",254,44,1459,112,3318,212,453,63,190,37,211,36,887,77,224,41,317,56,1785,164,676,68,379,57,962,108,375,49,338,53]
[null,"Income in the past 12 months below poverty level:",18,13,166,100,283,127,16,11,7,6,20,15,0,11,8,9,11,11,127,72,0,11,3,4,10,16,9,7,22,16]
[null,"Married-couple family:",10,12,54,46,48,41,9,8,3,4,9,10,0,11,8,9,6,10,53,41,0,11,3,4,0,11,6,6,19,15]
[null,"With related children under 18 years:",0,11,0,11,32,36,3,5,0,11,2,3,0,11,0,11,4,8,36,31,0,11,0,11,0,11,0,11,6,7]
[null,"Under 5 years only",0,11,0,11,0,17,0,11,0,11,0,11,0,11,0,11,0,11,36,31,0,11,0,11,0,11,0,11,0,11]
[null,"Under 5 years and 5 to 17 years",0,11,0,11,0,17,0,11,0,11,0,11,0,11,0,11,0,11,0,15,0,11,0,11,0,11,0,11,6,7]
[null,"5 to 17 years only",0,11,0,11,32,36,3,5,0,11,2,3,0,11,0,11,4,8,0,15,0,11,0,11,0,11,0,11,0,11]
[null,"No related children under 18 years",10,12,54,46,16,20,6,6,3,4,7,8,0,11,8,9,2,4,17,28,0,11,3,4,0,11,6,6,13,13]
[null,"Other family:",8,8,112,97,235,118,7,7,4,5,11,12,0,11,0,11,5,5,74,66,0,11,0,11,10,16,3,4,3,4]
[null,"Male householder, no spouse present:",5,5,0,11,29,34,4,6,4,5,5,9,0,11,0,11,3,4,0,15,0,11,0,11,0,11,3,4,3,4]
[null,"With related children under 18 years:",2,3,0,11,17,29,4,6,4,5,5,9,0,11,0,11,3,4,0,15,0,11,0,11,0,11,3,4,0,11]
[null,"Under 5 years only",0,11,0,11,17,29,0,11,0,11,0,11,0,11,0,11,0,11,0,15,0,11,0,11,0,11,0,11,0,11]
[null,"Under 5 years and 5 to 17 years",0,11,0,11,0,17,0,11,0,11,0,11,0,11,0,11,0,11,0,15,0,11,0,11,0,11,0,11,0,11]
[null,"5 to 17 years only",2,3,0,11,0,17,4,6,4,5,5,9,0,11,0,11,3,4,0,15,0,11,0,11,0,11,3,4,0,11]
[null,"No related children under 18 years",3,4,0,11,12,18,0,11,0,11,0,11,0,11,0,11,0,11,0,15,0,11,0,11,0,11,0,11,3,4]
[null,"Female householder, no spouse present:",3,4,112,97,206,123,3,4,0,11,6,9,0,11,0,11,2,3,74,66,0,11,0,11,10,16,0,11,0,11]
[null,"With related children under 18 years:",3,4,99,95,195,119,3,4,0,11,6,9,0,11,0,11,2,3,74,66,0,11,0,11,10,16,0,11,0,11]
[null,"Under 5 years only",0,11,34,52,42,37,0,11,0,11,6,9,0,11,0,11,2,3,0,15,0,11,0,11,0,11,0,11,0,11]
[null,"Under 5 years and 5 to 17 years",0,11,55,85,0,17,3,4,0,11,0,11,0,11,0,11,0,11,0,15,0,11,0,11,10,16,0,11,0,11]
[null,"5 to 17 years only",3,4,10,16,153,116,0,11,0,11,0,11,0,11,0,11,0,11,74,66,0,11,0,11,0,11,0,11,0,11]
[null,"No related children under 18 years",0,11,13,21,11,17,0,11,0,11,0,11,0,11,0,11,0,11,0,15,0,11,0,11,0,11,0,11,0,11]
[null,"Income in the past 12 months at or above poverty level:",236,46,1293,136,3035,222,437,64,183,37,191,35,887,77,216,41,306,56,1658,179,676,68,376,58,952,111,366,49,316,49]
[null,"Married-couple family:",187,38,1144,143,2179,216,368,55,141,32,148,30,804,77,193,41,277,55,1267,194,547,70,329,55,800,120,336,46,265,51]
[null,"With related children under 18 years:",54,20,328,79,753,177,106,40,37,18,41,16,273,69,71,27,87,29,364,120,183,40,112,41,215,59,89,27,37,16]
[null,"Under 5 years only",9,6,38,43,206,95,31,19,0,11,12,13,40,29,22,18,28,16,12,22,28,21,7,7,25,35,15,12,2,3]
[null,"Under 5 years and 5 to 17 years",15,14,110,49,118,83,9,8,2,4,4,4,35,33,8,7,6,6,15,26,38,21,31,27,20,16,10,12,2,4]
[null,"5 to 17 years only",30,19,180,84,429,128,66,31,35,18,25,12,198,65,41,22,53,23,337,120,117,43,74,31,170,60,64,23,33,15]
[null,"No related children under 18 years",133,33,816,127,1426,162,262,46,104,30,107,28,531,109,122,33,190,46,903,181,364,63,217,51,585,123,247,45,228,51]
[null,"Other family:",49,26,149,125,856,196,69,33,42,22,43,23,83,72,23,14,29,19,391,138,129,48,47,25,152,81,30,17,51,30]
[null,"Male householder, no spouse present:",21,20,90,104,243,115,29,21,22,17,11,13,75,71,2,3,17,18,93,78,57,34,18,18,94,69,24,16,21,20]
[null,"With related children under 18 years:",11,17,19,28,182,109,19,17,20,17,0,11,75,71,0,11,15,17,37,39,13,11,15,18,47,49,16,14,13,17]
[null,"Under 5 years only",11,17,0,11,128,99,4,6,6,10,0,11,30,43,0,11,10,16,0,15,10,11,0,11,0,11,0,11,0,11]
[null,"Under 5 years and 5 to 17 years",0,11,0,11,21,34,6,9,6,9,0,11,0,11,0,11,0,11,0,15,0,11,0,11,0,11,0,11,0,11]
[null,"5 to 17 years only",0,11,19,28,33,40,9,11,8,10,0,11,45,60,0,11,5,8,37,39,3,4,15,18,47,49,16,14,13,17]
[null,"No related children under 18 years",10,11,71,94,61,47,10,14,2,3,11,13,0,11,2,3,2,4,56,71,44,32,3,4,47,51,8,9,8,6]
[null,"Female householder, no spouse present:",28,16,59,68,613,149,40,26,20,15,32,19,8,9,21,14,12,9,298,135,72,37,29,18,58,38,6,8,30,22]
[null,"With related children under 18 years:",22,14,59,68,401,125,32,25,18,14,22,18,0,11,9,7,5,7,160,108,41,33,21,17,29,28,6,8,16,18]
[null,"Under 5 years only",3,5,0,11,57,64,0,11,0,11,5,5,0,11,0,11,2,4,42,46,0,11,9,13,0,11,4,6,0,11]
[null,"Under 5 years and 5 to 17 years",3,4,0,11,30,35,2,3,9,10,10,16,0,11,0,11,0,11,15,24,4,6,0,11,8,14,0,11,0,11]
[null,"5 to 17 years only",16,13,59,68,314,111,30,24,9,11,7,5,0,11,9,7,3,5,103,93,37,32,12,10,21,23,2,4,16,18]
[null,"No related children under 18 years",6,5,0,11,212,82,8,8,2,3,10,9,8,9,12,12,7,7,138,76,31,18,8,10,29,24,0,11,14,13]
[]
[]
[]
[null,"B17010. POVERTY STATUS IN THE PAST 12 MONTHS OF FAMILIES BY FAMILY TYPE BY PRESENCE OF RELATED CHILDREN UNDER 18 YEARS"]
[null,"Universe: FAMILIES"]
[null,"Data Set: 2005-2009 American Community Survey 5-Year Estimates"]
[]
[null,null,"Acworth",null,"Charlestown",null,"Claremont",null,"Cornish",null,"Croydon",null,"Goshen",null,"Grantham",null,"Langdon",null,"Lempster",null,"Newport",null,"Plainfield",null,"Springfield",null,"Sunapee",null,"Unity",null,"Washington"]
[null,null,"Estimate","Margin Of Error","Estimate","Margin Of Error","Estimate","Margin Of Error","Estimate","Margin Of Error","Estimate","Margin Of Error","Estimate","Margin Of Error","Estimate","Margin Of Error","Estimate","Margin Of Error","Estimate","Margin Of Error","Estimate","Margin Of Error","Estimate","Margin Of Error","Estimate","Margin Of Error","Estimate","Margin Of Error","Estimate","Margin Of Error","Estimate","Margin Of Error"]
[null,"Total:",249,55,1469,131,3492,252,535,72,244,46,270,58,796,58,170,56,325,55,1699,141,796,89,250,48,935,85,455,77,404,58]
[null,"Income in the past 12 months below poverty level:",19,17,43,52,348,130,19,20,22,20,3,4,37,35,5,8,31,17,175,102,46,36,20,18,37,44,41,35,18,16]
[null,"Married-couple family:",14,16,14,23,119,75,8,9,12,11,0,114,37,35,0,114,7,7,33,38,3,5,8,13,26,41,20,24,3,4]
[null,"With related children under 18 years:",4,7,0,114,69,61,4,6,4,6,0,114,0,114,0,114,5,7,33,38,3,5,0,114,26,41,11,18,3,4]
[null,"Under 5 years only",0,114,0,114,14,24,0,114,0,114,0,114,0,114,0,114,0,114,0,114,0,114,0,114,0,114,0,114,0,114]
[null,"Under 5 years and 5 to 17 years",0,114,0,114,15,24,0,114,0,114,0,114,0,114,0,114,0,114,0,114,0,114,0,114,26,41,11,18,0,114]
[null,"5 to 17 years only",4,7,0,114,40,51,4,6,4,6,0,114,0,114,0,114,5,7,33,38,3,5,0,114,0,114,0,114,3,4]
[null,"No related children under 18 years",10,14,14,23,50,49,4,6,8,9,0,114,37,35,0,114,2,5,0,114,0,114,8,13,0,114,9,11,0,114]
[null,"Other family:",5,7,29,47,229,104,11,17,10,17,3,4,0,114,5,8,24,17,142,97,43,36,12,12,11,17,21,23,15,15]
[null,"Male householder, no spouse present:",5,7,0,114,65,61,0,114,0,114,0,114,0,114,0,114,0,114,1,10,24,30,4,7,0,114,0,114,3,5]
[null,"With related children under 18 years:",0,114,0,114,65,61,0,114,0,114,0,114,0,114,0,114,0,114,1,10,24,30,0,114,0,114,0,114,3,5]
[null,"Under 5 years only",0,114,0,114,53,56,0,114,0,114,0,114,0,114,0,114,0,114,0,114,0,114,0,114,0,114,0,114,0,114]
[null,"Under 5 years and 5 to 17 years",0,114,0,114,0,114,0,114,0,114,0,114,0,114,0,114,0,114,1,10,0,114,0,114,0,114,0,114,0,114]
[null,"5 to 17 years only",0,114,0,114,12,20,0,114,0,114,0,114,0,114,0,114,0,114,0,114,24,30,0,114,0,114,0,114,3,5]
[null,"No related children under 18 years",5,7,0,114,0,114,0,114,0,114,0,114,0,114,0,114,0,114,0,114,0,114,4,7,0,114,0,114,0,114]
[null,"Female householder, no spouse present:",0,114,29,47,164,89,11,17,10,17,3,4,0,114,5,8,24,17,141,99,19,23,8,13,11,17,21,23,12,15]
[null,"With related children under 18 years:",0,114,29,47,164,89,11,17,10,17,3,4,0,114,5,8,16,14,141,99,19,23,8,13,0,114,21,23,12,15]
[null,"Under 5 years only",0,114,29,47,79,58,0,114,10,17,0,114,0,114,0,114,6,9,0,114,0,114,0,114,0,114,21,23,0,114]
[null,"Under 5 years and 5 to 17 years",0,114,0,114,31,33,11,17,0,114,0,114,0,114,0,114,0,114,35,48,0,114,0,114,0,114,0,114,0,114]
[null,"5 to 17 years only",0,114,0,114,54,53,0,114,0,114,3,4,0,114,5,8,10,11,106,96,19,23,8,13,0,114,0,114,12,15]
[null,"No related children under 18 years",0,114,0,114,0,114,0,114,0,114,0,114,0,114,0,114,8,10,0,114,0,114,0,114,11,17,0,114,0,114]
[null,"Income in the past 12 months at or above poverty level:",230,57,1426,132,3144,284,516,72,222,44,267,58,759,62,165,56,294,54,1524,148,750,82,230,47,898,99,414,74,386,54]
[null,"Married-couple family:",222,58,1186,136,2527,248,442,70,192,40,213,48,736,66,156,56,267,51,1216,150,660,82,207,46,741,99,367,74,356,52]
[null,"With related children under 18 years:",55,27,412,83,1008,171,206,57,69,26,66,29,259,57,54,30,122,40,413,125,286,61,123,39,240,69,126,39,120,41]
[null,"Under 5 years only",26,21,86,57,125,87,25,24,15,15,7,11,53,34,13,19,8,13,125,76,45,30,28,23,35,29,6,9,50,29]
[null,"Under 5 years and 5 to 17 years",13,15,180,68,218,108,38,23,6,7,26,18,52,34,10,15,17,13,92,60,20,20,31,20,29,36,9,12,11,10]
[null,"5 to 17 years only",16,14,146,69,665,145,143,52,48,26,33,24,154,51,31,22,97,39,196,100,221,61,64,28,176,64,111,40,59,32]
[null,"No related children under 18 years",167,53,774,149,1519,228,236,51,123,37,147,46,477,83,102,46,145,37,803,139,374,67,84,34,501,106,241,58,236,45]
[null,"Other family:",8,11,240,110,617,178,74,33,30,24,54,28,23,22,9,15,27,21,308,117,90,48,23,16,157,80,47,34,30,18]
[null,"Male householder, no spouse present:",8,11,106,86,146,76,30,23,3,4,13,11,16,18,0,114,2,4,118,82,15,17,11,11,50,51,21,24,15,16]
[null,"With related children under 18 years:",8,11,106,86,93,69,23,21,0,114,9,9,16,18,0,114,2,4,77,74,7,12,8,10,50,51,0,114,9,14]
[null,"Under 5 years only",0,114,0,114,9,16,0,114,0,114,5,7,0,114,0,114,0,114,0,114,0,114,5,8,23,38,0,114,0,114]
[null,"Under 5 years and 5 to 17 years",0,114,12,19,0,114,0,114,0,114,4,5,0,114,0,114,0,114,0,114,0,114,3,5,0,114,0,114,0,114]
[null,"5 to 17 years only",8,11,94,85,84,66,23,21,0,114,0,114,16,18,0,114,2,4,77,74,7,12,0,114,27,34,0,114,9,14]
[null,"No related children under 18 years",0,114,0,114,53,33,7,8,3,4,4,6,0,114,0,114,0,114,41,36,8,12,3,4,0,114,21,24,6,7]
[null,"Female householder, no spouse present:",0,114,134,83,471,156,44,25,27,23,41,24,7,12,9,15,25,21,190,86,75,46,12,11,107,56,26,22,15,9]
[null,"With related children under 18 years:",0,114,108,79,270,137,17,21,19,21,24,20,0,114,9,15,20,19,152,75,27,20,12,11,58,44,11,16,3,5]
[null,"Under 5 years only",0,114,0,114,34,57,0,114,0,114,0,114,0,114,0,114,9,12,0,114,0,114,0,114,9,14,0,114,0,114]
[null,"Under 5 years and 5 to 17 years",0,114,28,44,59,86,0,114,9,14,0,114,0,114,0,114,0,114,32,50,0,114,0,114,0,114,11,16,0,114]
[null,"5 to 17 years only",0,114,80,80,177,85,17,21,10,16,24,20,0,114,9,15,11,15,120,71,27,20,12,11,49,42,0,114,3,5]
[null,"No related children under 18 years",0,114,26,23,201,108,27,16,8,9,17,15,7,12,0,114,5,8,38,40,48,39,0,114,49,39,15,17,12,8]

{"sheet":"ACS_Table_B17017","index":77,"n_rows":213,"n_cols":32,"rows_kept":213,"cut":false,"hidden":true,"merged":[]}
[null,"B17017. POVERTY STATUS IN THE PAST 12 MONTHS BY HOUSEHOLD TYPE BY AGE OF HOUSEHOLDER"]
[null,"Universe: HOUSEHOLDS"]
[null,"Data Set: 2015-2019 American Community Survey 5-Year Estimates"]
[]
[null,null,"Acworth",null,"Charlestown",null,"Claremont",null,"Cornish",null,"Croydon",null,"Goshen",null,"Grantham",null,"Langdon",null,"Lempster",null,"Newport",null,"Plainfield",null,"Springfield",null,"Sunapee",null,"Unity",null,"Washington"]
[null,null,"Estimate","Margin Of Error","Estimate","Margin Of Error","Estimate","Margin Of Error","Estimate","Margin Of Error","Estimate","Margin Of Error","Estimate","Margin Of Error","Estimate","Margin Of Error","Estimate","Margin Of Error","Estimate","Margin Of Error","Estimate","Margin Of Error","Estimate","Margin Of Error","Estimate","Margin Of Error","Estimate","Margin Of Error","Estimate","Margin Of Error","Estimate","Margin Of Error"]
[null,"Total:",370,51,2086,184,5231,284,741,81,293,56,277,39,1222,142,257,47,393,59,2600,168,915,86,442,75,1393,139,571,56,537,81]
[null,"Income in the past 12 months below poverty level:",19,16,255,125,691,184,38,25,28,21,39,21,31,43,36,19,34,24,293,132,58,33,34,23,141,94,50,31,29,23]
[null,"Family households:",9,12,93,61,342,138,23,24,12,15,16,12,31,43,22,15,12,14,153,102,36,29,9,10,67,55,22,20,6,6]
[null,"Married-couple family:",9,12,42,44,116,70,19,23,5,10,5,6,0,11,11,11,9,14,13,20,25,28,9,10,42,50,19,19,6,6]
[null,"Householder under 25 years",0,11,0,16,0,18,0,11,0,11,0,11,0,11,0,11,0,11,0,16,0,11,0,11,0,11,0,11,0,11]
[null,"Householder 25 to 44 years",0,11,16,25,57,48,4,7,0,11,0,11,0,11,6,10,9,14,0,16,0,11,0,11,0,11,3,5,0,11]
[null,"Householder 45 to 64 years",9,12,26,37,38,40,15,22,5,10,5,6,0,11,3,4,0,11,13,20,4,8,9,10,42,50,16,18,0,11]
[null,"Householder 65 years and over",0,11,0,16,21,25,0,11,0,11,0,11,0,11,2,3,0,11,0,16,21,27,0,11,0,11,0,11,6,6]
[null,"Other family:",0,11,51,54,226,124,4,6,7,11,11,10,31,43,11,12,3,5,140,100,11,11,0,11,25,20,3,4,0,11]
[null,"Male householder, no spouse present:",0,11,6,9,24,32,0,11,0,11,9,10,0,11,0,11,0,11,12,21,6,9,0,11,6,10,3,4,0,11]
[null,"Householder under 25 years",0,11,6,9,0,18,0,11,0,11,6,9,0,11,0,11,0,11,0,16,0,11,0,11,6,10,0,11,0,11]
[null,"Householder 25 to 44 years",0,11,0,16,24,32,0,11,0,11,3,4,0,11,0,11,0,11,0,16,0,11,0,11,0,11,3,4,0,11]
[null,"Householder 45 to 64 years",0,11,0,16,0,18,0,11,0,11,0,11,0,11,0,11,0,11,12,21,6,9,0,11,0,11,0,11,0,11]
[null,"Householder 65 years and over",0,11,0,16,0,18,0,11,0,11,0,11,0,11,0,11,0,11,0,16,0,11,0,11,0,11,0,11,0,11]
[null,"Female householder, no spouse present:",0,11,45,53,202,122,4,6,7,11,2,3,31,43,11,12,3,5,128,98,5,7,0,11,19,16,0,11,0,11]
[null,"Householder under 25 years",0,11,0,16,21,34,0,11,0,11,0,11,0,11,0,11,0,11,0,16,0,11,0,11,0,11,0,11,0,11]
[null,"Householder 25 to 44 years",0,11,29,47,133,92,0,11,7,11,2,3,0,11,9,11,3,5,36,53,0,11,0,11,19,16,0,11,0,11]
[null,"Householder 45 to 64 years",0,11,0,16,44,70,4,6,0,11,0,11,31,43,2,3,0,11,92,83,0,11,0,11,0,11,0,11,0,11]
[null,"Householder 65 years and over",0,11,16,26,4,9,0,11,0,11,0,11,0,11,0,11,0,11,0,16,5,7,0,11,0,11,0,11,0,11]
[null,"Nonfamily households:",10,10,162,113,349,127,15,12,16,14,23,17,0,11,14,15,22,18,140,97,22,20,25,21,74,78,28,24,23,21]
[null,"Male householder:",10,10,109,94,141,77,9,11,4,5,8,10,0,11,0,11,20,17,14,24,6,9,25,21,37,58,12,14,20,21]
[null,"Householder under 25 years",0,11,0,16,14,16,0,11,2,4,0,11,0,11,0,11,0,11,0,16,0,11,0,11,0,11,0,11,0,11]
[null,"Householder 25 to 44 years",6,10,55,65,9,13,3,5,0,11,6,9,0,11,0,11,3,5,0,16,0,11,8,13,0,11,0,11,0,11]
[null,"Householder 45 to 64 years",2,3,54,85,118,72,0,11,0,11,0,11,0,11,0,11,17,17,14,24,6,9,0,11,37,58,9,13,11,16]
[null,"Householder 65 years and over",2,3,0,16,0,18,6,9,2,3,2,3,0,11,0,11,0,11,0,16,0,11,17,16,0,11,3,5,9,15]
[null,"Female householder:",0,11,53,67,208,97,6,6,12,13,15,14,0,11,14,15,2,4,126,93,16,18,0,11,37,53,16,18,3,4]
[null,"Householder under 25 years",0,11,0,16,0,18,0,11,0,11,0,11,0,11,6,10,0,11,32,31,0,11,0,11,0,11,0,11,0,11]
[null,"Householder 25 to 44 years",0,11,0,16,46,46,0,11,0,11,0,11,0,11,0,11,48,77,0,11,0,11,0,11,13,18,0,11,0,0]
[null,"Householder 45 to 64 years",0,11,39,62,141,93,10,12,6,9,0,11,8,12,2,4,13,22,11,17,0,11,0,11,0,11,0,11,0,0]
[null,"Householder 65 years and over",0,11,14,23,21,28,2,4,9,11,0,11,0,11,0,11,33,53,5,7,0,11,37,53,3,4,3,4,0,0]
[null,"Income in the past 12 months at or above poverty level:",351,53,1831,178,4540,294,265,55,238,39,1191,141,221,40,359,57,2307,205,857,91,408,76,1252,149,521,59,508,84,0,0]
[null,"Family households:",246,45,1286,178,2823,244,175,45,147,33,871,91,168,35,228,48,1419,180,679,84,328,68,834,107,384,50,413,78,0,0]
[null,"Married-couple family:",209,41,910,195,2002,234,153,46,107,29,750,119,163,36,185,43,954,147,574,87,295,62,711,114,340,45,381,79,0,0]
[null,"Householder under 25 years",0,11,0,16,68,73,0,11,0,11,0,11,0,11,3,4,0,16,5,7,0,11,8,12,0,11,3,5,0,0]
[null,"Householder 25 to 44 years",25,15,149,98,498,116,31,17,41,24,109,53,39,19,60,31,309,128,148,47,28,16,215,70,40,20,79,62,0,0]
[null,"Householder 45 to 64 years",107,33,487,135,913,133,81,38,36,17,373,114,86,31,72,29,451,141,293,65,145,51,289,81,171,36,187,47,0,0]
[null,"Householder 65 years and over",77,30,274,110,523,124,41,22,30,17,268,78,38,12,50,23,194,89,128,46,122,42,199,62,129,30,112,28,0,0]
[null,"Other family:",37,19,376,138,821,172,22,12,40,20,121,69,5,6,43,30,465,160,105,55,33,26,123,56,44,22,32,22,0,0]
[null,"Male householder, no spouse present:",23,14,177,107,176,79,12,9,21,16,89,68,0,11,22,23,106,81,17,15,5,8,47,37,18,11,9,13,0,0]
[null,"Householder under 25 years",0,11,0,16,0,18,0,11,0,11,23,33,0,11,0,11,11,16,0,11,0,11,0,11,0,11,0,11,0,0]
[null,"Householder 25 to 44 years",9,8,110,88,115,77,6,7,19,16,21,31,0,11,5,6,0,16,5,7,0,11,18,27,6,5,3,4,0,0]
[null,"Householder 45 to 64 years",9,11,67,67,61,49,4,6,2,3,45,44,0,11,14,22,81,73,6,9,5,8,22,24,9,8,6,14,0,0]
[null,"Householder 65 years and over",5,5,0,16,0,18,2,3,0,11,0,11,0,11,3,4,14,22,6,8,0,11,7,12,3,4,0,11,0,0]
[null,"Female householder, no spouse present:",14,12,199,96,645,172,10,9,19,14,32,31,5,6,21,18,359,128,88,54,28,24,76,42,26,19,23,17,0,0]
[null,"Householder under 25 years",0,11,0,16,12,20,0,11,0,11,0,11,0,11,0,11,0,16,0,11,0,11,0,11,0,11,0,11,0,0]
[null,"Householder 25 to 44 years",0,11,74,73,328,139,0,11,4,5,0,11,0,11,6,7,160,110,16,14,0,11,38,32,17,17,4,6,0,0]
[null,"Householder 45 to 64 years",7,10,66,57,101,57,8,8,5,6,18,25,3,5,15,15,66,46,45,42,18,19,10,15,3,5,15,16,0,0]
[null,"Householder 65 years and over",7,6,59,42,204,114,2,4,10,11,14,21,2,3,0,11,133,98,27,21,10,16,28,22,6,6,4,4,0,0]
[null,"Nonfamily households:",105,25,545,182,1717,247,90,34,91,34,320,149,53,22,131,46,888,205,178,52,80,42,418,126,137,34,95,37,0,0]
[null,"Male householder:",251,103,873,178,59,27,52,31,100,69,19,15,84,43,366,129,84,38,45,32,148,92,59,22,64,32,0,0,0,0]
[null,"Householder under 25 years",8,15,56,48,6,9,0,11,0,11,0,11,0,11,11,18,0,11,0,11,28,47,0,11,0,11,0,0,0,0]
[null,"Householder 25 to 44 years",85,69,256,110,4,6,5,9,52,51,11,12,5,9,127,89,9,9,15,18,60,69,2,4,10,16,0,0,0,0]
[null,"Householder 45 to 64 years",43,44,282,129,32,22,34,26,0,11,5,5,59,37,70,54,37,30,12,14,28,27,32,14,25,24,0,0,0,0]
[null,"Householder 65 years and over",115,73,279,94,17,11,13,12,48,61,3,4,20,21,158,104,38,28,18,21,32,38,25,17,29,14,0,0,0,0]
[null,"Female householder:",294,139,844,176,31,18,39,14,220,135,34,16,47,20,522,163,94,43,35,27,270,87,78,33,31,20,0,0,0,0]
[null,"Householder under 25 years",0,16,56,56,0,11,0,11,17,24,0,11,0,11,11,18,0,11,0,11,8,13,0,11,0,11,0,0,0,0]
[null,"Householder 25 to 44 years",8,13,119,67,2,5,4,4,33,47,0,11,0,11,134,84,12,13,0,11,54,43,18,16,0,11,0,0,0,0]
[null,"Householder 45 to 64 years",115,94,313,115,13,16,11,10,91,102,23,16,18,14,225,110,41,22,20,19,92,64,40,26,15,17,0,0,0,0]
[null,"Householder 65 years and over",171,95,356,105,16,10,24,11,79,60,11,7,29,17,152,76,41,33,15,17,116,66,20,10,16,10,0,0,0,0]
[]
[]
[]
[]
[]
[]
[]
[]
[]
[null,"B17017. POVERTY STATUS IN THE PAST 12 MONTHS BY HOUSEHOLD TYPE BY AGE OF HOUSEHOLDER"]
[null,"Universe: HOUSEHOLDS",null,null,null,null,null,null,null,null,null,null,null,"B19001. HOUSEHOLD INCOME IN THE PAST 12 MONTHS (IN 2007 INFLATION-ADJUSTED DOLLARS) - Universe:  HOUSEHOLDS"]
[null,"Data Set: 2010-2014 American Community Survey 5-Year Estimates",null,null,null,null,null,null,null,null,null,null,null,"Data Set: 2006-2008 American Community Survey 3-Year Estimates"]
[]
[null,null,"Acworth",null,"Charlestown",null,"Claremont",null,"Cornish",null,"Croydon",null,"Goshen",null,"Grantham",null,"Langdon",null,"Lempster",null,"Newport",null,"Plainfield",null,"Springfield",null,"Sunapee",null,"Unity",null,"Washington"]
[null,null,"Estimate","Margin Of Error","Estimate","Margin Of Error","Estimate","Margin Of Error","Estimate","Margin Of Error","Estimate","Margin Of Error","Estimate","Margin Of Error","Estimate","Margin Of Error","Estimate","Margin Of Error","Estimate","Margin Of Error","Estimate","Margin Of Error","Estimate","Margin Of Error","Estimate","Margin Of Error","Estimate","Margin Of Error"]
[null,"Total:",347,44,2185,131,5418,242,644,62,257,42,320,42,1084,82,284,42,425,55,2806,190,933,81,482,69,1496,87,529,62,449,64]
[null,"Income in the past 12 months below poverty level:",29,17,242,116,771,187,42,22,9,8,29,19,7,10,16,11,25,19,435,168,10,11,28,23,79,70,54,26,28,18]
[null,"Family households:",18,13,166,100,283,127,16,11,7,6,20,15,0,11,8,9,11,11,127,72,0,11,3,4,10,16,9,7,22,16]
[null,"Married-couple family:",10,12,54,46,48,41,9,8,3,4,9,10,0,11,8,9,6,10,53,41,0,11,3,4,0,11,6,6,19,15]
[null,"Householder under 25 years",0,11,0,11,0,17,0,11,0,11,0,11,0,11,0,11,0,11,36,31,0,11,0,11,0,11,0,11,0,11]
[null,"Householder 25 to 44 years",0,11,0,11,26,29,0,11,0,11,2,3,0,11,0,11,0,11,0,15,0,11,0,11,0,11,0,11,3,4]
[null,"Householder 45 to 64 years",8,12,41,42,17,27,9,8,3,4,4,6,0,11,6,9,6,10,17,28,0,11,0,11,0,11,3,4,13,13]
[null,"Householder 65 years and over",2,3,13,22,5,9,0,11,0,11,3,4,0,11,2,3,0,11,0,15,0,11,3,4,0,11,3,4,3,4]
[null,"Other family:",8,8,112,97,235,118,7,7,4,5,11,12,0,11,0,11,5,5,74,66,0,11,0,11,10,16,3,4,3,4]
[null,"Male householder, no spouse present:",5,5,0,11,29,34,4,6,4,5,5,9,0,11,0,11,3,4,0,15,0,11,0,11,0,11,3,4,3,4]
[null,"Householder under 25 years",0,11,0,11,17,29,0,11,0,11,0,11,0,11,0,11,0,11,0,15,0,11,0,11,0,11,0,11,0,11]
[null,"Householder 25 to 44 years",0,11,0,11,0,17,0,11,0,11,5,9,0,11,0,11,3,4,0,15,0,11,0,11,0,11,0,11,0,11]
[null,"Householder 45 to 64 years",5,5,0,11,12,18,4,6,4,5,0,11,0,11,0,11,0,11,0,15,0,11,0,11,0,11,0,11,3,4]
[null,"Householder 65 years and over",0,11,0,11,0,17,0,11,0,11,0,11,0,11,0,11,0,11,0,15,0,11,0,11,0,11,3,4,0,11]
[null,"Female householder, no spouse present:",3,4,112,97,206,123,3,4,0,11,6,9,0,11,0,11,2,3,74,66,0,11,0,11,10,16,0,11,0,11]
[null,"Householder under 25 years",0,11,0,11,31,31,0,11,0,11,6,9,0,11,0,11,2,3,35,52,0,11,0,11,0,11,0,11,0,11]
[null,"Householder 25 to 44 years",0,11,99,95,164,116,0,11,0,11,0,11,0,11,0,11,0,11,18,29,0,11,0,11,10,16,0,11,0,11]
[null,"Householder 45 to 64 years",3,4,0,11,11,17,3,4,0,11,0,11,0,11,0,11,0,11,21,34,0,11,0,11,0,11,0,11,0,11]
[null,"Householder 65 years and over",0,11,13,21,0,17,0,11,0,11,0,11,0,11,0,11,0,11,0,15,0,11,0,11,0,11,0,11,0,11]
[null,"Nonfamily households:",11,9,76,63,488,140,26,17,2,6,9,11,7,10,8,6,14,14,308,143,10,11,25,23,69,68,45,25,6,6]
[null,"Male householder:",9,9,31,51,220,111,11,9,1,4,0,11,0,11,2,3,7,8,201,127,4,6,19,22,43,56,27,24,0,11]
[null,"Householder under 25 years",0,11,0,11,84,78,0,11,0,11,0,11,0,11,0,11,0,11,0,15,0,11,0,11,0,11,0,11,0,11]
[null,"Householder 25 to 44 years",3,4,0,11,21,23,0,11,0,11,0,11,0,11,0,11,0,11,51,64,0,11,9,16,0,11,5,7,0,11]
[null,"Householder 45 to 64 years",6,7,31,51,102,79,8,7,0,11,0,11,0,11,2,3,7,8,41,46,0,11,10,16,43,56,22,23,0,11]
[null,"Householder 65 years and over",0,11,0,11,13,21,3,4,1,4,0,11,0,11,0,11,0,11,109,102,4,6,0,11,0,11,0,11,0,11]
[null,"Female householder:",2,3,45,37,268,106,15,11,1,3,9,11,7,10,6,6,7,12,107,66,6,9,6,7,26,41,18,15,6,6]
[null,"Householder under 25 years",0,11,0,11,33,30,0,11,0,11,0,11,0,11,0,11,0,11,0,15,0,11,0,11,0,11,0,11,0,11]
[null,"Householder 25 to 44 years",0,11,0,11,52,53,0,11,0,11,2,3,0,11,0,11,0,11,17,28,0,11,0,11,0,11,0,11,3,4]
[null,"Householder 45 to 64 years",2,3,18,21,89,55,12,11,0,11,7,11,7,10,6,6,0,11,45,39,6,9,3,5,26,41,15,14,3,4]
[null,"Householder 65 years and over",0,11,27,30,94,67,3,5,1,3,0,11,0,11,0,11,7,12,45,33,0,11,3,4,0,11,3,4,0,11]
[null,"Income in the past 12 months at or above poverty level:",318,44,1943,169,4647,227,602,64,248,41,291,39,1077,82,268,42,400,56,2371,195,923,79,454,67,1417,87,475,60,421,60]
[null,"Family households:",236,46,1293,136,3035,222,437,64,183,37,191,35,887,77,216,41,306,56,1658,179,676,68,376,58,952,111,366,49,316,49]
[null,"Married-couple family:",187,38,1144,143,2179,216,368,55,141,32,148,30,804,77,193,41,277,55,1267,194,547,70,329,55,800,120,336,46,265,51]
[null,"Householder under 25 years",0,11,0,11,26,29,6,7,0,11,0,11,0,11,0,11,0,11,0,15,2,4,0,11,0,11,6,7,0,11]
[null,"Householder 25 to 44 years",42,18,281,94,777,148,65,34,38,22,22,13,146,59,86,32,90,37,266,118,103,31,128,41,183,58,69,28,61,27]
[null,"Householder 45 to 64 years",81,33,638,136,890,158,236,45,69,20,96,25,428,76,56,16,137,36,776,148,327,57,142,42,360,95,205,34,115,40]
[null,"Householder 65 years and over",64,27,225,94,486,90,61,30,34,15,30,18,230,62,51,20,50,24,225,66,115,34,59,24,257,82,56,20,89,23]
[null,"Other family:",49,26,149,125,856,196,69,33,42,22,43,23,83,72,23,14,29,19,391,138,129,48,47,25,152,81,30,17,51,30]
[null,"Male householder, no spouse present:",21,20,90,104,243,115,29,21,22,17,11,13,75,71,2,3,17,18,93,78,57,34,18,18,94,69,24,16,21,20]
[null,"Householder under 25 years",7,11,0,11,51,50,0,11,0,11,0,11,0,11,0,11,0,11,15,22,0,11,0,11,0,11,0,11,0,11]
[null,"Householder 25 to 44 years",11,17,19,28,33,39,9,11,8,9,0,11,68,71,2,3,15,17,78,79,10,11,10,16,0,11,20,15,11,16]
[null,"Householder 45 to 64 years",3,4,71,94,138,94,10,11,14,15,11,13,7,10,0,11,2,4,0,15,47,32,8,9,68,58,4,5,10,8]
[null,"Householder 65 years and over",0,11,0,11,21,23,10,14,0,11,0,11,0,11,0,11,0,11,0,15,0,11,0,11,26,40,0,11,0,11]
[null,"Female householder, no spouse present:",28,16,59,68,613,149,40,26,20,15,32,19,8,9,21,14,12,9,298,135,72,37,29,18,58,38,6,8,30,22]
[null,"Householder under 25 years",0,11,0,11,17,20,0,11,0,11,0,11,0,11,0,11,0,11,42,46,0,11,0,11,0,11,2,4,0,11]
[null,"Householder 25 to 44 years",14,12,12,22,345,116,19,22,10,11,17,17,0,11,3,5,2,4,99,89,31,32,12,14,20,23,0,11,19,19]
[null,"Householder 45 to 64 years",12,9,47,66,102,65,21,12,7,7,12,7,0,11,13,12,6,6,108,67,16,14,9,9,9,14,4,7,11,12]
[null,"Householder 65 years and over",2,3,0,11,149,69,0,11,3,8,3,4,8,9,5,5,4,5,49,48,25,16,8,10,29,24,0,11,0,11]
[null,"Nonfamily households:",82,31,650,158,1612,237,165,38,65,21,100,36,190,86,52,23,94,36,713,215,247,71,78,37,465,127,109,33,105,35]
[null,"Male householder:",43,23,211,93,747,191,62,30,42,19,51,24,93,71,38,22,46,25,229,135,127,55,60,33,188,98,61,25,53,22]
[null,"Householder under 25 years",2,3,0,11,27,28,0,11,0,11,0,11,0,11,0,11,0,11,13,22,0,11,10,15,0,11,0,11,0,11]
[null,"Householder 25 to 44 years",15,13,19,31,170,102,10,9,13,14,4,4,70,69,24,20,5,6,104,103,13,20,12,16,73,63,7,8,3,4]
[null,"Householder 45 to 64 years",26,18,119,73,364,114,41,27,20,12,29,16,4,7,7,6,38,24,52,46,58,35,23,21,40,51,29,16,30,20]
[null,"Householder 65 years and over",0,11,73,51,186,87,11,8,9,9,18,17,19,21,7,6,3,4,60,78,56,41,15,13,75,57,25,18,20,9]
[null,"Female householder:",39,21,439,128,865,166,103,32,23,13,49,23,97,58,14,9,48,26,484,179,120,47,18,14,277,87,48,24,52,26]
[null,"Householder under 25 years",0,11,14,22,41,42,0,11,0,11,0,11,0,11,0,11,0,11,0,15,0,11,0,11,7,11,0,11,0,11]
[null,"Householder 25 to 44 years",0,11,24,36,113,66,22,13,3,4,5,5,0,11,7,6,8,11,152,118,0,11,5,7,40,51,4,5,0,11]
[null,"Householder 45 to 64 years",18,11,184,93,328,101,45,21,17,12,21,16,41,35,0,11,20,12,38,36,70,32,9,11,130,68,28,19,23,18]
[null,"Householder 65 years and over",21,18,217,110,383,97,36,22,3,4,23,15,56,48,7,6,20,16,294,137,50,29,4,5,100,52,16,14,29,15]
[]
[]
[]
[]
[]
[]
[]
[]
[]
[null,"B17017. POVERTY STATUS IN THE PAST 12 MONTHS BY HOUSEHOLD TYPE BY AGE OF HOUSEHOLDER"]
[null,"Universe: HOUSEHOLDS",null,null,null,null,null,null,null,null,null,null,null,"B19001. HOUSEHOLD INCOME IN THE PAST 12 MONTHS (IN 2007 INFLATION-ADJUSTED DOLLARS) - Universe:  HOUSEHOLDS"]
[null,"Data Set: 2005-2009 American Community Survey 5-Year Estimates",null,null,null,null,null,null,null,null,null,null,null,"Data Set: 2006-2008 American Community Survey 3-Year Estimates"]
[]
[null,null,"Acworth",null,"Charlestown",null,"Claremont",null,"Cornish",null,"Croydon",null,"Goshen",null,"Grantham",null,"Langdon",null,"Lempster",null,"Newport",null,"Plainfield",null,"Springfield",null,"Sunapee",null,"Unity",null,"Washington"]
[null,null,"Estimate","Margin Of Error","Estimate","Margin Of Error","Estimate","Margin Of Error","Estimate","Margin Of Error","Estimate","Margin Of Error","Estimate","Margin Of Error","Estimate","Margin Of Error","Estimate","Margin Of Error","Estimate","Margin Of Error","Estimate","Margin Of Error","Estimate","Margin Of Error","Estimate","Margin Of Error","Estimate","Margin Of Error","Estimate","Margin Of Error","Estimate","Margin Of Error"]
[null,"Total:",343,60,2138,130,5799,248,676,72,335,54,402,60,1016,69,222,59,468,57,2562,192,946,97,335,56,1422,128,648,87,527,62]
[null,"Income in the past 12 months below poverty level:",49,29,140,84,870,193,35,26,28,22,13,9,65,45,15,17,51,24,295,136,55,39,29,24,104,67,71,44,32,17]
[null,"Family households:",19,17,43,52,348,130,19,20,22,20,3,4,37,35,5,8,31,17,175,102,46,36,20,18,37,44,41,35,18,16]
[null,"Married-couple family:",14,16,14,23,119,75,8,9,12,11,0,114,37,35,0,114,7,7,33,38,3,5,8,13,26,41,20,24,3,4]
[null,"Householder under 25 years",0,114,0,114,0,114,0,114,0,114,0,114,0,114,0,114,0,114,0,114,0,114,0,114,0,114,0,114,0,114]
[null,"Householder 25 to 44 years",0,114,0,114,54,57,4,6,4,6,0,114,0,114,0,114,5,7,33,38,0,114,0,114,26,41,11,18,3,4]
[null,"Householder 45 to 64 years",14,16,0,114,51,48,4,6,8,9,0,114,27,32,0,114,0,114,0,114,3,5,0,114,0,114,9,11,0,114]
[null,"Householder 65 years and over",0,114,14,23,14,22,0,114,0,114,0,114,10,15,0,114,2,5,0,114,0,114,8,13,0,114,0,114,0,114]
[null,"Other family:",5,7,29,47,229,104,11,17,10,17,3,4,0,114,5,8,24,17,142,97,43,36,12,12,11,17,21,23,15,15]
[null,"Male householder, no spouse present:",5,7,0,114,65,61,0,114,0,114,0,114,0,114,0,114,0,114,1,10,24,30,4,7,0,114,0,114,3,5]
[null,"Householder under 25 years",0,114,0,114,0,114,0,114,0,114,0,114,0,114,0,114,0,114,0,114,0,114,0,114,0,114,0,114,0,114]
[null,"Householder 25 to 44 years",0,114,0,114,53,56,0,114,0,114,0,114,0,114,0,114,0,114,1,10,24,30,0,114,0,114,0,114,3,5]
[null,"Householder 45 to 64 years",5,7,0,114,12,20,0,114,0,114,0,114,0,114,0,114,0,114,0,114,0,114,4,7,0,114,0,114,0,114]
[null,"Householder 65 years and over",0,114,0,114,0,114,0,114,0,114,0,114,0,114,0,114,0,114,0,114,0,114,0,114,0,114,0,114,0,114]
[null,"Female householder, no spouse present:",0,114,29,47,164,89,11,17,10,17,3,4,0,114,5,8,24,17,141,99,19,23,8,13,11,17,21,23,12,15]
[null,"Householder under 25 years",0,114,29,47,66,52,0,114,10,17,0,114,0,114,0,114,0,114,0,114,0,114,0,114,0,114,12,19,0,114]
[null,"Householder 25 to 44 years",0,114,0,114,98,69,11,17,0,114,3,4,0,114,0,114,12,13,141,99,14,21,0,114,0,114,0,114,0,114]
[null,"Householder 45 to 64 years",0,114,0,114,0,114,0,114,0,114,0,114,0,114,5,8,7,7,0,114,5,9,8,13,11,17,9,14,12,15]
[null,"Householder 65 years and over",0,114,0,114,0,114,0,114,0,114,0,114,0,114,0,114,5,8,0,114,0,114,0,114,0,114,0,114,0,114]
[null,"Nonfamily households:",30,23,97,67,522,162,16,15,6,8,10,9,28,30,10,15,20,19,120,82,9,15,9,15,67,49,30,23,14,11]
[null,"Male householder:",6,9,9,15,163,81,6,10,0,114,0,114,28,30,10,15,13,18,0,114,9,15,0,114,57,55,23,22,12,10]
[null,"Householder under 25 years",0,114,0,114,15,26,0,114,0,114,0,114,20,29,0,114,0,114,0,114,0,114,0,114,31,48,0,114,0,114]
[null,"Householder 25 to 44 years",6,9,0,114,29,44,6,10,0,114,0,114,0,114,0,114,0,114,0,114,0,114,0,114,0,114,11,17,0,114]
[null,"Householder 45 to 64 years",0,114,0,114,42,33,0,114,0,114,0,114,8,12,10,15,11,17,0,114,9,15,0,114,26,29,12,15,3,4]
[null,"Householder 65 years and over",0,114,9,15,77,64,0,114,0,114,0,114,0,114,0,114,2,4,0,114,0,114,0,114,0,114,0,114,9,8]
[null,"Female householder:",24,20,88,65,359,129,10,11,6,8,10,9,0,114,0,114,7,8,120,82,0,114,9,15,10,17,7,8,2,4]
[null,"Householder under 25 years",9,15,0,114,24,33,5,8,0,114,0,114,0,114,0,114,0,114,46,71,0,114,0,114,0,114,0,114,0,114]
[null,"Householder 25 to 44 years",0,114,34,55,100,79,0,114,0,114,0,114,0,114,0,114,0,114,15,25,0,114,0,114,0,114,0,114,0,114]
[null,"Householder 45 to 64 years",7,10,23,28,87,45,0,114,0,114,4,6,0,114,0,114,7,8,27,30,0,114,9,15,10,17,7,8,2,4]
[null,"Householder 65 years and over",8,8,31,36,148,73,5,8,6,8,6,7,0,114,0,114,0,114,32,37,0,114,0,114,0,114,0,114,0,114]
[null,"Income in the past 12 months at or above poverty level:",294,59,1998,143,4929,237,641,73,307,50,389,61,951,70,207,57,417,59,2267,212,891,90,306,53,1318,156,577,84,495,61]
[null,"Family households:",230,57,1426,132,3144,284,516,72,222,44,267,58,759,62,165,56,294,54,1524,148,750,82,230,47,898,99,414,74,386,54]
[null,"Married-couple family:",222,58,1186,136,2527,248,442,70,192,40,213,48,736,66,156,56,267,51,1216,150,660,82,207,46,741,99,367,74,356,52]
[null,"Householder under 25 years",5,8,0,114,52,71,0,114,4,7,0,114,0,114,0,114,0,114,67,69,0,114,0,114,0,114,0,114,0,114]
[null,"Householder 25 to 44 years",37,21,459,117,1054,209,153,53,65,26,51,31,185,59,34,27,106,42,292,116,204,56,98,35,132,59,96,37,92,33]
[null,"Householder 45 to 64 years",88,36,575,142,871,159,228,61,92,38,126,40,320,70,90,41,130,32,650,124,374,79,84,35,384,90,192,59,153,46]
[null,"Householder 65 years and over",92,47,152,58,550,106,61,27,31,14,36,17,231,72,32,27,31,14,207,65,82,31,25,13,225,58,79,34,111,33]
[null,"Other family:",8,11,240,110,617,178,74,33,30,24,54,28,23,22,9,15,27,21,308,117,90,48,23,16,157,80,47,34,30,18]
[null,"Male householder, no spouse present:",8,11,106,86,146,76,30,23,3,4,13,11,16,18,0,114,2,4,118,82,15,17,11,11,50,51,21,24,15,16]
[null,"Householder under 25 years",0,114,0,114,9,16,0,114,0,114,4,6,0,114,0,114,0,114,0,114,0,114,0,114,0,114,0,114,0,114]
[null,"Householder 25 to 44 years",8,11,57,60,57,53,12,19,0,114,9,9,0,114,0,114,0,114,69,73,7,12,8,10,23,38,0,114,0,114]
[null,"Householder 45 to 64 years",0,114,49,63,63,48,6,6,0,114,0,114,16,18,0,114,2,4,36,31,0,114,3,4,27,34,21,24,13,15]
[null,"Householder 65 years and over",0,114,0,114,17,20,12,11,3,4,0,114,0,114,0,114,0,114,13,20,8,12,0,114,0,114,0,114,2,3]
[null,"Female householder, no spouse present:",0,114,134,83,471,156,44,25,27,23,41,24,7,12,9,15,25,21,190,86,75,46,12,11,107,56,26,22,15,9]
[null,"Householder under 25 years",0,114,0,114,34,57,0,114,0,114,0,114,0,114,0,114,6,11,32,50,0,114,0,114,9,14,5,7,0,114]
[null,"Householder 25 to 44 years",0,114,88,52,168,92,17,21,19,21,9,10,0,114,9,15,14,16,108,68,30,25,7,8,42,41,0,114,3,5]
[null,"Householder 45 to 64 years",0,114,36,54,224,122,14,9,0,114,28,22,7,12,0,114,5,8,37,37,21,19,5,8,44,36,11,16,6,6]
[null,"Householder 65 years and over",0,114,10,18,45,45,13,13,8,9,4,6,0,114,0,114,0,114,13,22,24,33,0,114,12,18,10,15,6,5]
[null,"Nonfamily households:",64,33,572,157,1785,284,125,48,85,41,122,48,192,76,42,23,123,45,743,207,141,56,76,33,420,145,163,54,109,31]
[null,"Male householder:",22,18,287,131,743,182,73,39,39,28,75,42,68,40,15,11,77,40,334,171,89,45,51,22,223,105,121,45,80,26]
[null,"Householder under 25 years",0,114,0,114,63,60,5,10,13,21,0,114,0,114,0,114,0,114,109,119,0,114,0,114,38,58,0,114,4,6]
[null,"Householder 25 to 44 years",5,10,115,78,255,128,6,10,7,12,40,35,49,35,0,114,24,26,110,80,14,21,18,14,64,68,43,29,18,12]
[null,"Householder 45 to 64 years",17,17,115,81,307,119,34,22,4,6,15,13,6,9,8,9,35,21,89,76,61,39,13,10,48,38,53,32,33,20]
[null,"Householder 65 years and over",0,114,57,48,118,53,28,24,15,15,20,26,13,14,7,6,18,17,26,29,14,16,20,13,73,50,25,19,25,17]
[null,"Female householder:",42,27,285,101,1042,193,52,25,46,29,47,23,124,58,27,23,46,20,409,146,52,29,25,18,197,93,42,28,29,17]
[null,"Householder under 25 years",9,14,17,28,69,65,0,114,4,6,0,114,0,114,4,7,0,114,26,31,0,114,0,114,17,21,0,114,0,114]
[null,"Householder 25 to 44 years",5,8,20,30,207,119,5,8,10,15,5,7,0,114,0,114,6,10,45,48,12,16,0,114,0,114,10,17,0,114]
[null,"Householder 45 to 64 years",20,16,142,77,372,139,21,19,29,22,27,16,38,24,10,16,14,11,91,53,18,16,21,18,87,58,4,7,9,11]
[null,"Householder 65 years and over",8,9,106,60,394,117,26,17,3,4,15,14,86,51,13,14,26,15,247,105,22,19,4,6,93,67,28,20,20,14]

{"sheet":"ACS_Table_B03002","index":78,"n_rows":108,"n_cols":32,"rows_kept":108,"cut":false,"hidden":true,"merged":[]}
[null,"B03002. HISPANIC OR LATINO ORIGIN BY RACE"]
[null,"Universe:  TOTAL POPULATION"]
[null,"Data Set: 2015-2019 American Community Survey 5-Year Estimates"]
[]
[null,null,"Acworth",null,"Charlestown",null,"Claremont",null,"Cornish",null,"Croydon",null,"Goshen",null,"Grantham",null,"Langdon",null,"Lempster",null,"Newport",null,"Plainfield",null,"Springfield",null,"Sunapee",null,"Unity",null,"Washington"]
[null,null,"Estimate","Margin Of Error","Estimate","Margin Of Error","Estimate","Margin Of Error","Estimate","Margin Of Error","Estimate","Margin Of Error","Estimate","Margin Of Error","Estimate","Margin Of Error","Estimate","Margin Of Error","Estimate","Margin Of Error","Estimate","Margin Of Error","Estimate","Margin Of Error","Estimate","Margin Of Error","Estimate","Margin Of Error","Estimate","Margin Of Error","Estimate","Margin Of Error"]
[null,"Total:",906,134,5019,19,12977,23,1783,217,863,244,702,108,2945,14,712,145,923,176,6374,19,2555,293,1084,198,3449,19,1613,156,1199,188]
[null,"Not Hispanic or Latino:",892,134,4950,76,12685,96,1778,216,861,243,659,101,2921,34,703,143,923,176,6246,150,2542,297,1084,198,3444,23,1574,154,1168,187]
[null,"White alone",861,131,4730,164,12243,167,1721,207,848,242,644,98,2879,58,662,129,876,169,5904,246,2424,289,1075,200,3407,50,1549,159,1129,191]
[null,"Black or African American alone",0,11,0,16,202,128,15,24,10,22,0,11,0,11,6,9,0,11,15,29,16,24,0,11,7,16,11,16,0,11]
[null,"American Indian and Alaska Native alone",0,11,8,13,0,18,9,10,0,11,0,11,24,34,0,11,0,11,98,131,0,11,0,11,0,11,0,11,0,11]
[null,"Asian alone",8,12,91,107,57,74,8,11,0,11,0,11,0,11,9,13,32,51,26,30,83,73,0,11,30,45,0,11,0,11]
[null,"Native Hawaiian and Other Pacific Islander alone",0,11,0,16,0,18,0,11,0,11,0,11,0,11,0,11,0,11,0,16,0,11,0,11,0,11,0,11,0,11]
[null,"Some other race alone",0,11,0,16,0,18,0,11,0,11,0,11,0,11,0,11,0,11,0,16,0,11,0,11,0,11,0,11,2,4]
[null,"Two or more races:",23,25,121,118,183,117,25,29,3,5,15,26,18,25,26,27,15,15,203,137,19,31,9,13,0,11,14,30,37,52]
[null,"Two races including Some other race",0,11,0,16,0,18,0,11,0,11,0,11,0,11,0,11,0,11,0,16,0,11,0,11,0,11,0,11,0,11]
[null,"Two races excluding Some other race, and three or more races",23,25,121,118,183,117,25,29,3,5,15,26,18,25,26,27,15,15,203,137,19,31,9,13,0,11,14,30,37,52]
[null,"Hispanic or Latino:",14,14,69,74,292,97,5,7,2,5,43,49,24,29,9,11,0,11,128,148,13,22,0,11,5,12,39,25,31,24]
[null,"White alone",8,12,69,74,233,121,0,11,1,3,21,29,24,29,5,7,0,11,127,148,10,22,0,11,5,12,28,21,28,23]
[null,"Black or African American alone",0,11,0,16,59,71,0,11,0,11,0,11,0,11,0,11,0,11,0,16,0,11,0,11,0,11,0,11,0,11]
[null,"American Indian and Alaska Native alone",0,11,0,16,0,18,5,7,0,11,0,11,0,11,0,11,0,11,0,16,0,11,0,11,0,11,0,11,0,11]
[null,"Asian alone",0,11,0,16,0,18,0,11,1,3,0,11,0,11,0,11,0,11,0,16,0,11,0,11,0,11,0,11,0,11]
[null,"Native Hawaiian and Other Pacific Islander alone",0,11,0,16,0,18,0,11,0,11,0,11,0,11,0,11,0,11,0,16,0,11,0,11,0,11,0,11,0,11]
[null,"Some other race alone",6,7,0,16,0,18,0,11,0,11,8,15,0,11,4,7,0,11,0,16,3,6,0,11,0,11,11,14,3,6]
[null,"Two or more races:",0,11,0,16,0,18,0,11,0,11,14,25,0,11,0,11,0,11,1,2,0,11,0,11,0,11,0,11,0,11]
[null,"Two races including Some other race",0,11,0,16,0,18,0,11,0,11,14,25,0,11,0,11,0,11,1,2,0,11,0,11,0,11,0,11,0,11]
[null,"Two races excluding Some other race, and three or more races",0,11,0,16,0,18,0,11,0,11,0,11,0,11,0,11,0,11,0,16,0,11,0,11,0,11,0,11,0,11]
[]
[]
[]
[null,null,"Acworth",null,"Charlestown",null,"Claremont",null,"Cornish",null,"Croydon",null,"Goshen",null,"Grantham",null,"Langdon",null,"Lempster",null,"Newport",null,"Plainfield",null,"Springfield",null,"Sunapee",null,"Unity",null,"Washington"]
[null,null,"Estimate","Margin Of Error","Estimate","Margin Of Error","Estimate","Margin Of Error","Estimate","Margin Of Error","Estimate","Margin Of Error","Estimate","Margin Of Error","Estimate","Margin Of Error","Estimate","Margin Of Error","Estimate","Margin Of Error","Estimate","Margin Of Error","Estimate","Margin Of Error","Estimate","Margin Of Error","Estimate","Margin Of Error","Estimate","Margin Of Error","Estimate","Margin Of Error"]
[null,"Total:",{"$f":"C7","v":906},134,5019,19,12977,23,1783,217,863,244,702,108,2945,14,712,145,923,176,6374,19,2555,293,{"$f":"Y7","v":1084},198,3449,19,{"$f":"AC7","v":1613},156,1199,188]
[null,"Not Hispanic or Latino:",{"$f":"C8","v":892},134,4950,76,12685,96,1778,216,861,243,659,101,2921,34,703,143,{"$f":"S8","v":923},176,6246,150,2542,297,1084,198,3444,23,{"$f":"AC8","v":1574},154,1168,187]
[null,"White",861,131,4730,164,12243,167,1721,207,848,242,644,98,2879,58,662,129,876,169,5904,246,2424,289,1075,200,3407,50,{"$f":"AC9","v":1549},159,1129,191]
[null,"Black",0,11,0,16,202,128,15,24,10,22,0,11,0,11,6,9,0,11,15,29,16,24,0,11,7,16,{"$f":"AC10","v":11},16,0,11]
[null,"American Indian",{"$f":"$C$11","v":0},{"$f":"D11","v":11},{"$f":"E11","v":8},13,0,18,9,10,0,11,0,11,24,34,0,11,0,11,98,131,0,11,0,11,0,11,{"$f":"AC11","v":0},11,0,11]
[null,"Asian &Pacific Is.",{"$f":"C12+C13","v":8},{"$f":"SQRT((D12^2)+(D13^2))","v":16.278820596099706},{"$f":"E12+E13","v":91},{"$f":"SQRT((F12^2)+(F13^2))","v":108.18964830333815},{"$f":"G12+G13","v":57},{"$f":"SQRT((H12^2)+(H13^2))","v":76.157731058639087},{"$f":"I12+I13","v":8},{"$f":"SQRT((J12^2)+(J13^2))","v":15.556349186104045},{"$f":"K12+K13","v":0},{"$f":"SQRT((L12^2)+(L13^2))","v":15.556349186104045},{"$f":"M12+M13","v":0},{"$f":"SQRT((N12^2)+(N13^2))","v":15.556349186104045},{"$f":"O12+O13","v":0},{"$f":"SQRT((P12^2)+(P13^2))","v":15.556349186104045},{"$f":"Q12+Q13","v":9},{"$f":"SQRT((R12^2)+(R13^2))","v":17.029386365926403},{"$f":"S12+S13","v":32},{"$f":"SQRT((T12^2)+(T13^2))","v":52.172789842982326},{"$f":"U12+U13","v":26},{"$f":"SQRT((V12^2)+(V13^2))","v":34},{"$f":"W12+W13","v":83},{"$f":"SQRT((X12^2)+(X13^2))","v":73.824115301166998},{"$f":"Y12+Y13","v":0},{"$f":"SQRT((Z12^2)+(Z13^2))","v":15.556349186104045},{"$f":"AA12+AA13","v":30},{"$f":"SQRT((AB12^2)+(AB13^2))","v":46.324939287601879},{"$f":"AC12+AC13","v":0},{"$f":"SQRT((AD12^2)+(AD13^2))","v":15.556349186104045},{"$f":"AE12+AE13","v":0},{"$f":"SQRT((AF12^2)+(AF13^2))","v":15.556349186104045}]
[null,"Other*",{"$f":"C14+C15","v":23},{"$f":"SQRT((D14^2)+(D15^2))","v":27.313000567495326},{"$f":"E14+E15","v":121},{"$f":"SQRT((F14^2)+(F15^2))","v":119.07980517283357},{"$f":"G14+G15","v":183},{"$f":"SQRT((H14^2)+(H15^2))","v":118.37651794169315},{"$f":"I14+I15","v":25},{"$f":"SQRT((J14^2)+(J15^2))","v":31.016124838541646},{"$f":"K14+K15","v":3},{"$f":"SQRT((L14^2)+(L15^2))","v":12.083045973594572},{"$f":"M14+M15","v":15},{"$f":"SQRT((N14^2)+(N15^2))","v":28.231188426986208},{"$f":"O14+O15","v":18},{"$f":"SQRT((P14^2)+(P15^2))","v":27.313000567495326},{"$f":"Q14+Q15","v":26},{"$f":"SQRT((R14^2)+(R15^2))","v":29.154759474226502},{"$f":"S14+S15","v":15},{"$f":"SQRT((T14^2)+(T15^2))","v":18.601075237738275},{"$f":"U14+U15","v":203},{"$f":"SQRT((V14^2)+(V15^2))","v":137.93114224133723},{"$f":"W14+W15","v":19},{"$f":"SQRT((X14^2)+(X15^2))","v":32.893768406797051},{"$f":"Y14+Y15","v":9},{"$f":"SQRT((Z14^2)+(Z15^2))","v":17.029386365926403},{"$f":"AA14+AA15","v":0},{"$f":"SQRT((AB14^2)+(AB15^2))","v":15.556349186104045},{"$f":"AC14+AC15","v":14},{"$f":"SQRT((AD14^2)+(AD15^2))","v":31.953090617340916},{"$f":"AE14+AE15","v":39},{"$f":"SQRT((AF14^2)+(AF15^2))","v":52.153619241621193}]
[null,"Hispanic or Latino:",{"$f":"C18","v":14},{"$f":"D18","v":14},{"$f":"E18","v":69},74,292,97,5,7,2,5,43,49,24,29,9,11,0,11,128,148,13,22,{"$f":"Y18","v":0},11,5,12,39,25,31,24]
[]
[]
[]
[]
[]
[]
[]
[]
[]
[]
[]
[]
[]
[]
[]
[]
[]
[]
[]
[]
[]
[]
[]
[]
[]
[]
[]
[]
[]
[]
[]
[]
[]
[]
[]
[]
[]
[null,"B03002. HISPANIC OR LATINO ORIGIN BY RACE"]
[null,"Universe:  TOTAL POPULATION"]
[null,"Data Set: 2010-2014 American Community Survey 5-Year Estimates"]
[]
[null,null,"Acworth",null,"Charlestown",null,"Claremont",null,"Cornish",null,"Croydon",null,"Goshen",null,"Grantham",null,"Langdon",null,"Lempster",null,"Newport",null,"Plainfield",null,"Springfield",null,"Sunapee",null,"Unity",null,"Washington"]
[null,null,"Estimate","Margin Of Error","Estimate","Margin Of Error","Estimate","Margin Of Error","Estimate","Margin Of Error","Estimate","Margin Of Error","Estimate","Margin Of Error","Estimate","Margin Of Error","Estimate","Margin Of Error","Estimate","Margin Of Error","Estimate","Margin Of Error","Estimate","Margin Of Error","Estimate","Margin Of Error","Estimate","Margin Of Error","Estimate","Margin Of Error","Estimate","Margin Of Error"]
[null,"Total:",923,163,5047,16,13169,21,1601,179,651,140,821,127,2970,25,787,149,1089,147,6434,18,2518,166,1313,217,3363,30,1592,183,1013,140]
[null,"Not Hispanic or Latino:",923,163,5037,20,12956,112,1594,178,651,140,821,127,2941,46,762,136,1060,143,6373,55,2461,158,1306,216,3269,95,1576,184,987,138]
[null,"White",897,166,4833,112,12713,199,1552,178,612,130,797,125,2909,55,748,136,1053,142,5895,214,2347,159,1292,216,3222,102,1557,184,965,132]
[null,"Black",0,11,61,67,50,51,0,11,0,11,4,5,13,20,0,11,0,11,1,3,17,22,0,11,0,11,0,11,9,13]
[null,"American Indian",0,11,0,11,0,17,2,4,3,5,5,8,0,11,2,4,0,11,209,170,0,11,0,11,0,11,2,4,0,11]
[null,"Asian &Pacific Is.",16,21.95449840010015,28,47.296934361541872,45,38.832975677895199,26,26.40075756488817,0,15.556349186104045,0,15.556349186104045,11,19.416487838947599,4,12.529964086141668,3,12.529964086141668,176,94.201910808645493,23,29.154759474226502,9,19.416487838947599,21,29.154759474226502,4,12.529964086141668,0,15.556349186104045]
[null,"Other*",10,14.212670403551895,115,80.752708932889675,148,137.55726080436466,14,25.495097567963924,36,56.089214649520635,15,21.95449840010015,8,17.804493814764857,8,17.029386365926403,4,13.038404810405298,92,76.485292703891773,74,61.294371682887821,5,15.556349186104045,26,30.083217912982647,13,17.804493814764857,13,23.706539182259394]
[null,"Hispanic or Latino:",0,11,10,17,213,107,7,11,0,11,0,11,29,39,25,31,29,28,61,53,57,74,7,12,94,86,16,12,26,33]
[]
["`"]
[]
[null,"B03002. HISPANIC OR LATINO ORIGIN BY RACE"]
[null,"Universe:  TOTAL POPULATION"]
[null,"Data Set: 2005-2009 American Community Survey 5-Year Estimates"]
[]
[null,null,"Acworth",null,"Charlestown",null,"Claremont",null,"Cornish",null,"Croydon",null,"Goshen",null,"Grantham",null,"Langdon",null,"Lempster",null,"Newport",null,"Plainfield",null,"Springfield",null,"Sunapee",null,"Unity",null,"Washington"]
[null,null,"Estimate","Margin Of Error","Estimate","Margin Of Error","Estimate","Margin Of Error","Estimate","Margin Of Error","Estimate","Margin Of Error","Estimate","Margin Of Error","Estimate","Margin Of Error","Estimate","Margin Of Error","Estimate","Margin Of Error","Estimate","Margin Of Error","Estimate","Margin Of Error","Estimate","Margin Of Error","Estimate","Margin Of Error","Estimate","Margin Of Error","Estimate","Margin Of Error"]
[null,"Total:",822,164,4872,23,13086,27,1750,201,759,129,913,149,2516,18,586,170,1148,165,6500,17,2535,256,836,152,3352,40,1703,241,1263,169]
[null,"Not Hispanic or Latino:",822,164,4843,46,12967,82,1711,191,759,129,913,149,2486,39,586,170,1148,165,6439,82,2480,260,836,152,3309,46,1689,238,1243,167]
[null,"White",814,165,4764,67,12697,186,1569,177,746,126,876,148,2416,68,586,170,1148,165,6404,97,2399,251,812,146,3116,137,1642,226,1215,162]
[null,"Black",0,114,56,53,51,50,17,20,0,114,0,114,14,20,0,114,0,114,35,48,14,21,0,114,0,114,10,17,0,114]
[null,"American Indian",0,114,0,114,49,67,13,20,0,114,0,114,0,114,0,114,0,114,0,114,0,114,7,10,13,20,0,114,0,114]
[null,"Asian &Pacific Is.",0,161.22034611053283,0,161.22034611053283,58,126.14277624977183,0,161.22034611053283,4,114.21471008587291,0,161.22034611053283,56,124.88794977899188,0,161.22034611053283,0,161.22034611053283,0,161.22034611053283,0,161.22034611053283,0,161.22034611053283,28,120.16655108639841,0,161.22034611053283,0,161.22034611053283]
[null,"Other*",8,114.52947218947619,23,119.85407794480753,112,134.40610105199838,112,134.30189872075525,9,114.85643212288984,37,118.96217886370441,0,161.22034611053283,0,161.22034611053283,0,161.22034611053283,0,161.22034611053283,67,137.56816492197603,17,115.57248807566617,152,132.51792331605563,37,124.48293055676348,28,116.29703349613007]
[null,"Hispanic or Latino:",0,114,29,40,119,81,39,45,0,114,0,114,30,34,0,114,0,114,61,79,55,49,0,114,43,32,14,20,20,18]

{"sheet":"RentalHousingCost","index":79,"n_rows":124,"n_cols":21,"rows_kept":124,"cut":false,"hidden":true,"merged":[]}
[]
[null,null,"HIDE THIS COLUMN",{"$f":"CntyDataLink!A70","v":"Acworth"}]
[]
[null,null,null,"RENTAL HOUSING COST CHARACTERISTICS"]
[]
[]
[]
[]
[]
[]
[]
[]
[]
[]
[]
[]
[]
[]
[]
[]
[]
[]
[]
[]
[]
[]
[]
[]
[]
[]
[]
[]
[]
[]
[]
[]
[]
[]
[null,null,null,"Source:  2015-2019 American Community Survey Table B25074"]
[]
[null,null,null,"Income in 2019 Inflation Adjusted Dollars"]
[null,null,null,"Data from the American Community Survey are estimates"]
[null,null,null,{"$f":"CntyDataLink!A70","v":"Acworth"}]
[]
[null,null,null,{"$f":"D4","v":"RENTAL HOUSING COST CHARACTERISTICS"}]
[]
[null,null,null,"Renter Households by "]
[null,null,null,"Gross Rent as a Percent of 2019 Household Income"]
[null,null,null,null,null,null,"By Household Income"]
[null,null,{"$f":"CntyDataLink!AO$69","v":"H73RenterOccHU"},null,"Specified Renter Occ Housing Units",{"$f":"\"Margin of Error Renter Occupied Units\"","v":"Margin of Error Renter Occupied Units"},null,"Less than $10,000",{"$f":"\"Margin of Error \"&H50","v":"Margin of Error Less than $10,000"},"$10,000 to $19,999",{"$f":"\"Margin of Error \"&J50","v":"Margin of Error $10,000 to $19,999"},"$20,000 to $34,999",{"$f":"\"Margin of Error \"&L50","v":"Margin of Error $20,000 to $34,999"},"$35,000 to $49,999",{"$f":"\"Margin of Error \"&N50","v":"Margin of Error $35,000 to $49,999"},"$50,000 to $74,999",{"$f":"\"Margin of Error \"&P50","v":"Margin of Error $50,000 to $74,999"},"$75,000 to $99,999",{"$f":"\"Margin of Error \"&R50","v":"Margin of Error $75,000 to $99,999"},"$100,000 or More",{"$f":"\"Margin of Error \"&T50","v":"Margin of Error $100,000 or More"}]
[]
[null,null,null,"All Renter Households",{"$f":"CntyDataLink!$B$156","v":2310},{"$f":"CntyDataLink!$C$156","v":288},null,{"$f":"CntyDataLink!$BH$148","v":216},{"$f":"CntyDataLink!$BI$148","v":116},{"$f":"CntyDataLink!$BZ$148","v":373},{"$f":"CntyDataLink!$CA$148","v":101},{"$f":"CntyDataLink!$CR$148","v":627},{"$f":"CntyDataLink!$CS$148","v":199},{"$f":"CntyDataLink!$DJ$148","v":435},{"$f":"CntyDataLink!$DK$148","v":157},{"$f":"CntyDataLink!$EB$148","v":311},{"$f":"CntyDataLink!$EC$148","v":115},{"$f":"CntyDataLink!$ET$148","v":2},{"$f":"CntyDataLink!$EU$148","v":4},{"$f":"CntyDataLink!$FL$148","v":6},{"$f":"CntyDataLink!$FM$148","v":10}]
[null,null,null,"Rent Less than 20% of HH Income",{"$f":"CntyDataLink!$D$156","v":494},{"$f":"CntyDataLink!$E$156","v":157.81001235663092},null,{"$f":"CntyDataLink!$BJ$148","v":7},{"$f":"CntyDataLink!$BK$148","v":11},{"$f":"CntyDataLink!$CB$148","v":19},{"$f":"CntyDataLink!$CC$148","v":22},{"$f":"CntyDataLink!$CT$148","v":38},{"$f":"CntyDataLink!$CU$148","v":40},{"$f":"CntyDataLink!$DL$148","v":25},{"$f":"CntyDataLink!$DM$148","v":29},{"$f":"CntyDataLink!$ED$148","v":6},{"$f":"CntyDataLink!$EE$148","v":9},{"$f":"CntyDataLink!$EV$148","v":0},{"$f":"CntyDataLink!$EW$148","v":11},{"$f":"CntyDataLink!$FN$148","v":6},{"$f":"CntyDataLink!$FO$148","v":10}]
[null,null,null,"Rent 20% to 24.9% of HH Income",{"$f":"CntyDataLink!$F$156","v":322},{"$f":"CntyDataLink!$G$156","v":125},null,{"$f":"CntyDataLink!$BL$148","v":0},{"$f":"CntyDataLink!$BM$148","v":18},{"$f":"CntyDataLink!$CD$148","v":24},{"$f":"CntyDataLink!$CE$148","v":29},{"$f":"CntyDataLink!$CV$148","v":20},{"$f":"CntyDataLink!$CW$148","v":24},{"$f":"CntyDataLink!$DN$148","v":123},{"$f":"CntyDataLink!$DO$148","v":76},{"$f":"CntyDataLink!$EF$148","v":0},{"$f":"CntyDataLink!$EG$148","v":11},{"$f":"CntyDataLink!$EX$148","v":0},{"$f":"CntyDataLink!$EY$148","v":11},{"$f":"CntyDataLink!$FP$148","v":0},{"$f":"CntyDataLink!$FQ$148","v":11}]
[null,null,null,"Rent 25% to 29.9% of HH Income",{"$f":"CntyDataLink!$H$156","v":293},{"$f":"CntyDataLink!$I$156","v":114},null,{"$f":"CntyDataLink!$BN$148","v":15},{"$f":"CntyDataLink!$BO$148","v":24},{"$f":"CntyDataLink!$CF$148","v":52},{"$f":"CntyDataLink!$CG$148","v":64},{"$f":"CntyDataLink!$CX$148","v":34},{"$f":"CntyDataLink!$CY$148","v":33},{"$f":"CntyDataLink!$DP$148","v":117},{"$f":"CntyDataLink!$DQ$148","v":68},{"$f":"CntyDataLink!$EH$148","v":9},{"$f":"CntyDataLink!$EI$148","v":12},{"$f":"CntyDataLink!$EZ$148","v":0},{"$f":"CntyDataLink!$FA$148","v":11},{"$f":"CntyDataLink!$FR$148","v":0},{"$f":"CntyDataLink!$FS$148","v":11}]
[null,null,null,"Rent Less Than 30% of HH Income",{"$f":"CntyDataLink!$J$156","v":1109},{"$f":"CntyDataLink!$K$156","v":231.35470602518549},null,{"$f":"SUM(H53:H55)","v":22},{"$f":"SQRT((I53^2)+(I54^2)+(I55^2))","v":31.953090617340916},{"$f":"SUM(J53:J55)","v":95},{"$f":"SQRT((K53^2)+(K54^2)+(K55^2))","v":73.627440536799867},{"$f":"SUM(L53:L55)","v":92},{"$f":"SQRT((M53^2)+(M54^2)+(M55^2))","v":57.140178508646613},{"$f":"SUM(N53:N55)","v":265},{"$f":"SQRT((O53^2)+(O54^2)+(O55^2))","v":106.02358228243375},{"$f":"SUM(P53:P55)","v":15},{"$f":"SQRT((Q53^2)+(Q54^2)+(Q55^2))","v":18.601075237738275},{"$f":"SUM(R53:R55)","v":0},{"$f":"SQRT((S53^2)+(S54^2)+(S55^2))","v":19.05255888325765},{"$f":"SUM(T53:T55)","v":6},{"$f":"SQRT((U53^2)+(U54^2)+(U55^2))","v":18.493242008906929}]
[null,null,null,"Rent 30% or More of HH Income",{"$f":"CntyDataLink!$L$156","v":1097},{"$f":"CntyDataLink!$M$156","v":247.39037976445243},null,{"$f":"H60+H58","v":98},{"$f":"SQRT((I58^2)+(I60^2))","v":66.940271884718243},{"$f":"J60+J58","v":278},{"$f":"SQRT((K58^2)+(K60^2))","v":111.54371340420759},{"$f":"L60+L58","v":527},{"$f":"SQRT((M58^2)+(M60^2))","v":183.38484124921558},{"$f":"N60+N58","v":170},{"$f":"SQRT((O58^2)+(O60^2))","v":115.14338886796757},0,{"$f":"SQRT((Q58^2)+(Q60^2))","v":22},{"$f":"R60+R58","v":0},{"$f":"SQRT((S58^2)+(S60^2))","v":22},0,{"$f":"SQRT((U58^2)+(U60^2))","v":22}]
[null,null,null,"Rent 30% to 34.9% of HH Income",{"$f":"CntyDataLink!$N$156","v":244},{"$f":"CntyDataLink!$O$156","v":113},null,{"$f":"CntyDataLink!$BP$148","v":27},{"$f":"CntyDataLink!$BQ$148","v":32},{"$f":"CntyDataLink!$CH$148","v":50},{"$f":"CntyDataLink!$CI$148","v":38},{"$f":"CntyDataLink!$CZ$148","v":57},{"$f":"CntyDataLink!$DA$148","v":63},{"$f":"CntyDataLink!$DR$148","v":86},{"$f":"CntyDataLink!$DS$148","v":87},{"$f":"CntyDataLink!$EJ$148","v":0},{"$f":"CntyDataLink!$EK$148","v":11},{"$f":"CntyDataLink!$FB$148","v":0},{"$f":"CntyDataLink!$FC$148","v":11},{"$f":"CntyDataLink!$FT$148","v":0},{"$f":"CntyDataLink!$FU$148","v":11}]
[null,null,null,"Rent Less Than 35% of HH Income",{"$f":"CntyDataLink!$P$156","v":1353},{"$f":"CntyDataLink!$Q$156","v":257.47621249350397},null,{"$f":"SUM(H56,H58)","v":49},{"$f":"SQRT((I56^2)+(I58^2))","v":45.221676218380054},{"$f":"SUM(J56,J58)","v":145},{"$f":"SQRT((K56^2)+(K58^2))","v":82.855295545909442},{"$f":"SUM(L56,L58)","v":149},{"$f":"SQRT((M56^2)+(M58^2))","v":85.052924699859673},351,193.02358228243375,15,{"$f":"SQRT((Q58^2)+(Q56^2))","v":21.61018278497431},{"$f":"SUM(R56,R58)","v":0},{"$f":"SQRT((S58^2)+(S56^2))","v":22},6,{"$f":"SQRT((U58^2)+(U56^2))","v":21.517434791350013}]
[null,null,null,"Rent 35% or More of HH Income",{"$f":"CntyDataLink!$R$156","v":853},{"$f":"CntyDataLink!$S$156","v":220.07498722026546},null,{"$f":"CntyDataLink!$BR$148+CntyDataLink!$BT$148+CntyDataLink!$BV$148","v":71},{"$f":"SQRT((CntyDataLink!$BS$148^2)+(CntyDataLink!$BU$148^2)+(CntyDataLink!$BW$148^2))","v":58.796258384356399},{"$f":"CntyDataLink!$CJ$148+CntyDataLink!$CL$148+CntyDataLink!$CN$148","v":228},{"$f":"SQRT((CntyDataLink!$CK$148^2)+(CntyDataLink!$CM$148^2)+(CntyDataLink!$CO$148^2))","v":104.87134975769121},{"$f":"CntyDataLink!$DB$148+CntyDataLink!$DD$148+CntyDataLink!$DF$148","v":470},{"$f":"SQRT((CntyDataLink!$DC$148^2)+(CntyDataLink!$DE$148^2)+(CntyDataLink!$DG$148^2))","v":172.22369175000284},{"$f":"CntyDataLink!$DT$148+CntyDataLink!$DV$148+CntyDataLink!$DX$148","v":84},{"$f":"SQRT((CntyDataLink!$DU$148^2)+(CntyDataLink!$DW$148^2)+(CntyDataLink!$DY$148^2))","v":75.425459892532302},{"$f":"CntyDataLink!$EL$148+CntyDataLink!$EN$148+CntyDataLink!$EP$148","v":0},{"$f":"SQRT((CntyDataLink!$EM$148^2)+(CntyDataLink!$EO$148^2)+(CntyDataLink!$EQ$148^2))","v":19.05255888325765},{"$f":"CntyDataLink!$FD$148+CntyDataLink!$FF$148+CntyDataLink!$FH$148","v":0},{"$f":"SQRT((CntyDataLink!$FE$148^2)+(CntyDataLink!$FG$148^2)+(CntyDataLink!$FI$148^2))","v":19.05255888325765},{"$f":"CntyDataLink!$FV$148+CntyDataLink!$FX$148+CntyDataLink!$FZ$148","v":0},{"$f":"SQRT((CntyDataLink!$FW$148^2)+(CntyDataLink!$FY$148^2)+(CntyDataLink!$GA$148^2))","v":19.05255888325765}]
[null,null,null,"Rent 50% or More of HH Income",{"$f":"CntyDataLink!$T$156","v":467},{"$f":"CntyDataLink!$U$156","v":173},null,{"$f":"CntyDataLink!$BV$148","v":71},{"$f":"CntyDataLink!$BW$148","v":53},{"$f":"CntyDataLink!$CN$148","v":178},{"$f":"CntyDataLink!$CO$148","v":93},{"$f":"CntyDataLink!$DF$148","v":218},{"$f":"CntyDataLink!$DG$148","v":133},{"$f":"CntyDataLink!$DX$148","v":0},{"$f":"CntyDataLink!$DY$148","v":18},{"$f":"CntyDataLink!$EP$148","v":0},{"$f":"CntyDataLink!$EQ$148","v":11},{"$f":"CntyDataLink!$FH$148","v":0},{"$f":"CntyDataLink!$FI$148","v":11},{"$f":"CntyDataLink!$FZ$148","v":0},{"$f":"CntyDataLink!$GA$148","v":11}]
[null,null,null,"Percent not computed",{"$f":"CntyDataLink!$V$156","v":104},{"$f":"CntyDataLink!$W$156","v":87},null,{"$f":"CntyDataLink!$BX$148","v":96},{"$f":"CntyDataLink!$BY$148","v":86},{"$f":"CntyDataLink!$CP$148","v":0},{"$f":"CntyDataLink!$CQ$148","v":18},{"$f":"CntyDataLink!$DH$148","v":8},{"$f":"CntyDataLink!$DI$148","v":12},{"$f":"CntyDataLink!$DZ$148","v":0},{"$f":"CntyDataLink!$EA$148","v":18},{"$f":"CntyDataLink!$ER$148","v":0},{"$f":"CntyDataLink!$ES$148","v":11},{"$f":"CntyDataLink!$FJ$148","v":2},{"$f":"CntyDataLink!$FK$148","v":4},{"$f":"CntyDataLink!$GB$148","v":0},{"$f":"CntyDataLink!$GC147","v":0}]
[]
[]
[]
[null,null,null,"Percent of Households Paying ",null,null,null,"By Household Income"]
[null,null,null,{"$f":"D56","v":"Rent Less Than 30% of HH Income"},{"$f":"E56/E$52","v":0.48008658008658006},null,null,{"$f":"H56/H$52","v":0.10185185185185185},null,{"$f":"J56/J$52","v":0.2546916890080429},null,{"$f":"L56/L$52","v":0.14673046251993621},null,{"$f":"N56/N$52","v":0.60919540229885061},null,{"$f":"P56/P$52","v":4.8231511254019289E-2},null,{"$f":"R56/R$52","v":0},null,{"$f":"T56/T$52","v":1}]
[null,null,null,{"$f":"D57","v":"Rent 30% or More of HH Income"},{"$f":"E57/E$52","v":0.47489177489177486},null,null,{"$f":"H57/H$52","v":0.45370370370370372},null,{"$f":"J57/J$52","v":0.74530831099195716},null,{"$f":"L57/L$52","v":0.84051036682615632},null,{"$f":"N57/N$52","v":0.39080459770114945},null,{"$f":"P57/P$52","v":0},null,{"$f":"R57/R$52","v":0},null,{"$f":"T57/T$52","v":0}]
[null,null,null,{"$f":"D59","v":"Rent Less Than 35% of HH Income"},{"$f":"E59/E$52","v":0.58571428571428574},null,null,{"$f":"H59/H$52","v":0.22685185185185186},null,{"$f":"J59/J$52","v":0.38873994638069703},null,{"$f":"L59/L$52","v":0.23763955342902712},null,{"$f":"N59/N$52","v":0.80689655172413788},null,{"$f":"P59/P$52","v":4.8231511254019289E-2},null,{"$f":"R59/R$52","v":0},null,{"$f":"T59/T$52","v":1}]
[null,null,null,{"$f":"D60","v":"Rent 35% or More of HH Income"},{"$f":"E60/E$52","v":0.36926406926406924},null,null,{"$f":"H60/H$52","v":0.32870370370370372},null,{"$f":"J60/J$52","v":0.61126005361930291},null,{"$f":"L60/L$52","v":0.74960127591706538},null,{"$f":"N60/N$52","v":0.19310344827586207},null,{"$f":"P60/P$52","v":0},null,{"$f":"R60/R$52","v":0},null,{"$f":"T60/T$52","v":0}]
[null,null,null,"Rent 50% or More of HH Income",{"$f":"E61/E$52","v":0.20216450216450216},null,null,{"$f":"H61/H$52","v":0.32870370370370372},null,{"$f":"J61/J$52","v":0.47721179624664878},null,{"$f":"L61/L$52","v":0.34768740031897927},null,{"$f":"N61/N$52","v":0},null,{"$f":"P61/P$52","v":0},null,{"$f":"R61/R$52","v":0},null,{"$f":"T61/T$52","v":0}]
[null,null,null,"Percent not computed",{"$f":"E62/E$52","v":4.5021645021645025E-2},null,null,{"$f":"H62/H$52","v":0.44444444444444442},null,{"$f":"J62/J$52","v":0},null,{"$f":"L62/L$52","v":1.2759170653907496E-2},null,{"$f":"N62/N$52","v":0},null,{"$f":"P62/P$52","v":0},null,{"$f":"R62/R$52","v":1},null,{"$f":"T62/T$52","v":0}]
[]
[]
[null,null,null,"Source:  2015-2019 American Community Survey Table B25070; B25074"]
[]
[null,null,null,{"$f":"D41","v":"Income in 2019 Inflation Adjusted Dollars"}]
[null,null,null,"Data from the American Community Survey are estimates"]
[]
[null,null,null,{"$f":"CntyDataLink!A70","v":"Acworth"}]
[null,null,null,{"$f":"D4","v":"RENTAL HOUSING COST CHARACTERISTICS"}]
[]
[null,null,null,"Rental Housing Costs"]
[]
[null,null,null,"Renter Occupied Housing Units By Gross Rent "]
[]
[null,null,null,null,"Units","Margin of Error"]
[null,null,{"$f":"CntyDataLink!E$69","v":"H62RntrOccHU"},"Specified Renter Occ Housing Units",{"$f":"CntyDataLink!$B$148","v":2310},{"$f":"CntyDataLink!$C$148","v":288}]
[null,null,{"$f":"CntyDataLink!F$69","v":"H62RntrOccHUwRent"},"Renter Occ. Housing Units w/ Cash Rent",{"$f":"CntyDataLink!$D$148","v":2302},{"$f":"CntyDataLink!$E$148","v":287}]
[]
[null,null,{"$f":"CntyDataLink!G$69","v":"H62ROHUGRent<100"},"Gross Rent","Units","Margin of Error 2015-2019"]
[null,null,{"$f":"CntyDataLink!H$69","v":"H62ROHUGRent100to149"},"Less than $100",{"$f":"CntyDataLink!$F$148","v":7},{"$f":"CntyDataLink!$G$148","v":11}]
[null,null,{"$f":"CntyDataLink!I$69","v":"H62ROHUGRent150to199"},"$100 to $149",{"$f":"CntyDataLink!$H$148","v":0},{"$f":"CntyDataLink!$I$148","v":18}]
[null,null,{"$f":"CntyDataLink!J$69","v":"H62ROHUGRent200to249"},"$150 to $199",{"$f":"CntyDataLink!J$148","v":24},{"$f":"CntyDataLink!$K$148","v":28}]
[null,null,{"$f":"CntyDataLink!K$69","v":"H62ROHUGRent250to299"},"$200 to $249",{"$f":"CntyDataLink!$L$148","v":73},{"$f":"CntyDataLink!$M$148","v":46}]
[null,null,{"$f":"CntyDataLink!L$69","v":"H62ROHUGRent300to349"},"$250 to $299",{"$f":"CntyDataLink!$N$148","v":24},{"$f":"CntyDataLink!$O$148","v":32}]
[null,null,{"$f":"CntyDataLink!M$69","v":"H62ROHUGRent350to399"},"$300 to $349",{"$f":"CntyDataLink!$P$148","v":97},{"$f":"CntyDataLink!$Q$148","v":74}]
[null,null,{"$f":"CntyDataLink!N$69","v":"H62ROHUGRent400to449"},"$350 to $399",{"$f":"CntyDataLink!$R$148","v":68},{"$f":"CntyDataLink!$S$148","v":59}]
[null,null,{"$f":"CntyDataLink!O$69","v":"H62ROHUGRent450to499"},"$400 to $449",{"$f":"CntyDataLink!$T$148","v":0},{"$f":"CntyDataLink!$U$148","v":18}]
[null,null,{"$f":"CntyDataLink!P$69","v":"H62ROHUGRent500to549"},"$450 to $499",{"$f":"CntyDataLink!$V$148","v":8},{"$f":"CntyDataLink!$W$148","v":13}]
[null,null,{"$f":"CntyDataLink!Q$69","v":"H62ROHUGRent550to599"},"$500 to $549",{"$f":"CntyDataLink!$X$148","v":34},{"$f":"CntyDataLink!$Y$148","v":33}]
[null,null,{"$f":"CntyDataLink!R$69","v":"H62ROHUGRent600to649"},"$550 to $599",{"$f":"CntyDataLink!$Z$148","v":42},{"$f":"CntyDataLink!$AA$148","v":47}]
[null,null,{"$f":"CntyDataLink!S$69","v":"H62ROHUGRent650to699"},"$600 to $649",{"$f":"CntyDataLink!$AB$148","v":38},{"$f":"CntyDataLink!$AC$148","v":34}]
[null,null,{"$f":"CntyDataLink!T$69","v":"H62ROHUGRent700to749"},"$650 to $699",{"$f":"CntyDataLink!$AD$148","v":87},{"$f":"CntyDataLink!$AE$148","v":62}]
[null,null,{"$f":"CntyDataLink!U$69","v":"H62ROHUGRent750to799"},"$700 to $749",{"$f":"CntyDataLink!$AF$148","v":99},{"$f":"CntyDataLink!$AG$148","v":81}]
[null,null,{"$f":"CntyDataLink!V$69","v":"H62ROHUGRent800to899"},"$750 to $799",{"$f":"CntyDataLink!$AH$148","v":62},{"$f":"CntyDataLink!$AI$148","v":48}]
[null,null,{"$f":"CntyDataLink!W$69","v":"H62ROHUGRent900to999"},"$800 to $899",{"$f":"CntyDataLink!$AJ$148","v":224},{"$f":"CntyDataLink!$AK$148","v":93}]
[null,null,{"$f":"CntyDataLink!X$69","v":"H62ROHUGRent1000to1249"},"$900 to $999",{"$f":"CntyDataLink!$AL$148","v":321},{"$f":"CntyDataLink!$AM$148","v":140}]
[null,null,{"$f":"CntyDataLink!Y$69","v":"H62ROHUGRent1250to1499"},"$1000 to $1249",{"$f":"CntyDataLink!$AN$148","v":871},{"$f":"CntyDataLink!$AO$148","v":230}]
[null,null,{"$f":"CntyDataLink!Z$69","v":"H62ROHUGRent1500to1999"},"$1250 to $1499",{"$f":"CntyDataLink!$AP$148","v":159},{"$f":"CntyDataLink!$AQ$148","v":90}]
[null,null,{"$f":"CntyDataLink!AA$69","v":"H62ROHUGRent2000>"},"$1500 to $1999",{"$f":"CntyDataLink!$AR$148","v":56},{"$f":"CntyDataLink!$AS$148","v":48}]
[null,null,{"$f":"CntyDataLink!AB$69","v":"H62ROHUNoGRent"},"$2,000 to $2,499",{"$f":"CntyDataLink!$AT$148","v":8},{"$f":"CntyDataLink!$AU$148","v":12}]
[null,null,{"$f":"CntyDataLink!AC$69","v":"H63MedianGrossRnt"},"$2,500 to $2,999",{"$f":"CntyDataLink!$AV$148","v":0},{"$f":"CntyDataLink!$AW$148","v":18}]
[null,null,null,"$3,000 to $3,499",{"$f":"CntyDataLink!$AX$148","v":0},{"$f":"CntyDataLink!$AY$148","v":18}]
[null,null,null,"$3,500 or more",{"$f":"CntyDataLink!$AZ$148","v":0},{"$f":"CntyDataLink!$BA$148","v":18}]
[null,null,null,"Renter Occ. Housing Units w/ No Cash Rent",{"$f":"CntyDataLink!$BB$148","v":8},{"$f":"CntyDataLink!$BC$148","v":12}]
[]
[null,null,null,"Median Gross Rent",{"$f":"CntyDataLink!$BD$148","v":982},{"$f":"CntyDataLink!$BE$148","v":48}]
[]
[]
[]
[]
[null,null,null,"Source: 2015-2019 American Community Survey Table B25063; B25064"]
[null,null,null,"Data from the American Community Survey are estimates"]

{"sheet":"RentalHousingCost-Prior5Yr","index":80,"n_rows":76,"n_cols":21,"rows_kept":76,"cut":false,"hidden":true,"merged":[]}
[]
[null,null,"HIDE THIS COLUMN",{"$f":"CntyDataLink!A70","v":"Acworth"}]
[]
[null,null,null,"RENTAL HOUSING COST CHARACTERISTICS"]
[]
[]
[]
[]
[]
[]
[]
[]
[]
[]
[]
[]
[]
[]
[]
[]
[]
[]
[]
[]
[]
[]
[]
[]
[]
[]
[]
[]
[]
[]
[]
[]
[]
[]
[null,null,null,"Source:  2010-2014 American Community Survey Table B25074"]
[]
[null,null,null,"Income in 2014 Inflation Adjusted Dollars"]
[null,null,null,"Data from the American Community Survey are estimates"]
[null,null,null,{"$f":"CntyDataLinkPrior5YearEstimates!A120","v":"Acworth"}]
[]
[null,null,null,{"$f":"D4","v":"RENTAL HOUSING COST CHARACTERISTICS"}]
[]
[null,null,null,"Renter Households by "]
[null,null,null,"Gross Rent as a Percent of 2014 Household Income"]
[null,null,null,null,null,null,"By Household Income"]
[null,null,{"$f":"CntyDataLinkPrior5YearEstimates!AO$69","v":"H73RenterOccHU"},null,"Specified Renter Occ Housing Units",{"$f":"\"Margin of Error Renter Occupied Units\"","v":"Margin of Error Renter Occupied Units"},null,"Less than $10,000",{"$f":"\"Margin of Error \"&H50","v":"Margin of Error Less than $10,000"},"$10,000 to $19,999",{"$f":"\"Margin of Error \"&J50","v":"Margin of Error $10,000 to $19,999"},"$20,000 to $34,999",{"$f":"\"Margin of Error \"&L50","v":"Margin of Error $20,000 to $34,999"},"$35,000 to $49,999",{"$f":"\"Margin of Error \"&N50","v":"Margin of Error $35,000 to $49,999"},"$50,000 to $74,999",{"$f":"\"Margin of Error \"&P50","v":"Margin of Error $50,000 to $74,999"},"$75,000 to $99,999",{"$f":"\"Margin of Error \"&R50","v":"Margin of Error $75,000 to $99,999"},"$100,000 or More",{"$f":"\"Margin of Error \"&T50","v":"Margin of Error $100,000 or More"}]
[]
[null,null,null,"All Renter Households",{"$f":"CntyDataLinkPrior5YearEstimates!$B$156","v":1932},{"$f":"CntyDataLinkPrior5YearEstimates!$C$156","v":223},null,{"$f":"CntyDataLinkPrior5YearEstimates!$BB$148","v":314},{"$f":"CntyDataLinkPrior5YearEstimates!$BC$148","v":113},{"$f":"CntyDataLinkPrior5YearEstimates!$BT$148","v":401},{"$f":"CntyDataLinkPrior5YearEstimates!$BU$148","v":111},{"$f":"CntyDataLinkPrior5YearEstimates!$CL$148","v":580},{"$f":"CntyDataLinkPrior5YearEstimates!$CM$148","v":153},{"$f":"CntyDataLinkPrior5YearEstimates!$DD$148","v":270},{"$f":"CntyDataLinkPrior5YearEstimates!$DE$148","v":89},{"$f":"CntyDataLinkPrior5YearEstimates!$DV$148","v":262},{"$f":"CntyDataLinkPrior5YearEstimates!$DW$148","v":124},{"$f":"CntyDataLinkPrior5YearEstimates!$EN$148","v":60},{"$f":"CntyDataLinkPrior5YearEstimates!$EO$148","v":55},{"$f":"CntyDataLinkPrior5YearEstimates!$FF$148","v":45},{"$f":"CntyDataLinkPrior5YearEstimates!$FG$148","v":42}]
[null,null,null,"Rent Less than 20% of HH Income",{"$f":"CntyDataLinkPrior5YearEstimates!$D$156","v":341},{"$f":"CntyDataLinkPrior5YearEstimates!$E$156","v":143.62799170078233},null,{"$f":"CntyDataLinkPrior5YearEstimates!$BD$148","v":8},{"$f":"CntyDataLinkPrior5YearEstimates!$BE$148","v":15},{"$f":"CntyDataLinkPrior5YearEstimates!$BV$148","v":7},{"$f":"CntyDataLinkPrior5YearEstimates!$BW$148","v":12},{"$f":"CntyDataLinkPrior5YearEstimates!$CN$148","v":0},{"$f":"CntyDataLinkPrior5YearEstimates!$CO$148","v":17},{"$f":"CntyDataLinkPrior5YearEstimates!$DF$148","v":69},{"$f":"CntyDataLinkPrior5YearEstimates!$DG$148","v":49},{"$f":"CntyDataLinkPrior5YearEstimates!$DX$148","v":175},{"$f":"CntyDataLinkPrior5YearEstimates!$DY$148","v":116},{"$f":"CntyDataLinkPrior5YearEstimates!$EP$148","v":37},{"$f":"CntyDataLinkPrior5YearEstimates!$EQ$148","v":41},{"$f":"CntyDataLinkPrior5YearEstimates!$FH$148","v":45},{"$f":"CntyDataLinkPrior5YearEstimates!$FI$148","v":42}]
[null,null,null,"Rent 20% to 24.9% of HH Income",{"$f":"CntyDataLinkPrior5YearEstimates!$F$156","v":198},{"$f":"CntyDataLinkPrior5YearEstimates!$G$156","v":84},null,{"$f":"CntyDataLinkPrior5YearEstimates!$BF$148","v":0},{"$f":"CntyDataLinkPrior5YearEstimates!$BG$148","v":17},{"$f":"CntyDataLinkPrior5YearEstimates!$BX$148","v":23},{"$f":"CntyDataLinkPrior5YearEstimates!$BY$148","v":25},{"$f":"CntyDataLinkPrior5YearEstimates!$CP$148","v":43},{"$f":"CntyDataLinkPrior5YearEstimates!$CQ$148","v":37},{"$f":"CntyDataLinkPrior5YearEstimates!$DH$148","v":32},{"$f":"CntyDataLinkPrior5YearEstimates!$DI$148","v":32},{"$f":"CntyDataLinkPrior5YearEstimates!$DZ$148","v":87},{"$f":"CntyDataLinkPrior5YearEstimates!$EA$148","v":61},{"$f":"CntyDataLinkPrior5YearEstimates!$ER$148","v":13},{"$f":"CntyDataLinkPrior5YearEstimates!$ES$148","v":21},{"$f":"CntyDataLinkPrior5YearEstimates!$FJ$148","v":0},{"$f":"CntyDataLinkPrior5YearEstimates!$FK$148","v":17}]
[null,null,null,"Rent 25% to 29.9% of HH Income",{"$f":"CntyDataLinkPrior5YearEstimates!$H$156","v":293},{"$f":"CntyDataLinkPrior5YearEstimates!$I$156","v":122},null,{"$f":"CntyDataLinkPrior5YearEstimates!$BH$148","v":0},{"$f":"CntyDataLinkPrior5YearEstimates!$BI$148","v":17},{"$f":"CntyDataLinkPrior5YearEstimates!$BZ$148","v":100},{"$f":"CntyDataLinkPrior5YearEstimates!$CA$148","v":66},{"$f":"CntyDataLinkPrior5YearEstimates!$CR$148","v":109},{"$f":"CntyDataLinkPrior5YearEstimates!$CS$148","v":87},{"$f":"CntyDataLinkPrior5YearEstimates!$DJ$148","v":84},{"$f":"CntyDataLinkPrior5YearEstimates!$DK$148","v":58},{"$f":"CntyDataLinkPrior5YearEstimates!$EB$148","v":0},{"$f":"CntyDataLinkPrior5YearEstimates!$EC$148","v":17},{"$f":"CntyDataLinkPrior5YearEstimates!$ET$148","v":0},{"$f":"CntyDataLinkPrior5YearEstimates!$EU$148","v":17},{"$f":"CntyDataLinkPrior5YearEstimates!$FL$148","v":0},{"$f":"CntyDataLinkPrior5YearEstimates!$FM$148","v":17}]
[null,null,null,"Rent Less Than 30% of HH Income",{"$f":"CntyDataLinkPrior5YearEstimates!$J$156","v":832},{"$f":"CntyDataLinkPrior5YearEstimates!$K$156","v":206.32256299299891},null,{"$f":"SUM(H53:H55)","v":8},{"$f":"SQRT((I53^2)+(I54^2)+(I55^2))","v":28.337254630609507},{"$f":"SUM(J53:J55)","v":130},{"$f":"SQRT((K53^2)+(K54^2)+(K55^2))","v":71.589105316381762},{"$f":"SUM(L53:L55)","v":152},{"$f":"SQRT((M53^2)+(M54^2)+(M55^2))","v":96.0572745813663},{"$f":"SUM(N53:N55)","v":185},{"$f":"SQRT((O53^2)+(O54^2)+(O55^2))","v":82.395388220458074},{"$f":"SUM(P53:P55)","v":262},{"$f":"SQRT((Q53^2)+(Q54^2)+(Q55^2))","v":132.15899515356494},{"$f":"SUM(R53:R55)","v":50},{"$f":"SQRT((S53^2)+(S54^2)+(S55^2))","v":49.101934788763671},{"$f":"SUM(T53:T55)","v":45},{"$f":"SQRT((U53^2)+(U54^2)+(U55^2))","v":48.394214530251446}]
[null,null,null,"Rent 30% or More of HH Income",{"$f":"CntyDataLinkPrior5YearEstimates!$L$156","v":973},{"$f":"CntyDataLinkPrior5YearEstimates!$M$156","v":198.06564568344507},null,{"$f":"H60+H58","v":249},{"$f":"SQRT((I58^2)+(I60^2))","v":107.11675872616759},{"$f":"J60+J58","v":264},{"$f":"SQRT((K58^2)+(K60^2))","v":93.653617121817561},{"$f":"L60+L58","v":385},{"$f":"SQRT((M58^2)+(M60^2))","v":139.68894014917572},{"$f":"N60+N58","v":75},{"$f":"SQRT((O58^2)+(O60^2))","v":58.197938107805847},0,{"$f":"SQRT((Q58^2)+(Q60^2))","v":34},{"$f":"R60+R58","v":0},{"$f":"SQRT((S58^2)+(S60^2))","v":34},0,{"$f":"SQRT((U58^2)+(U60^2))","v":34}]
[null,null,null,"Rent 30% to 34.9% of HH Income",{"$f":"CntyDataLinkPrior5YearEstimates!$N$156","v":253},{"$f":"CntyDataLinkPrior5YearEstimates!$O$156","v":109},null,{"$f":"CntyDataLinkPrior5YearEstimates!$BJ$148","v":81},{"$f":"CntyDataLinkPrior5YearEstimates!$BK$148","v":66},{"$f":"CntyDataLinkPrior5YearEstimates!$CB$148","v":18},{"$f":"CntyDataLinkPrior5YearEstimates!$CC$148","v":21},{"$f":"CntyDataLinkPrior5YearEstimates!$CT$148","v":102},{"$f":"CntyDataLinkPrior5YearEstimates!$CU$148","v":60},{"$f":"CntyDataLinkPrior5YearEstimates!$DL$148","v":52},{"$f":"CntyDataLinkPrior5YearEstimates!$DM$148","v":45},{"$f":"CntyDataLinkPrior5YearEstimates!$ED$148","v":0},{"$f":"CntyDataLinkPrior5YearEstimates!$EE$148","v":17},{"$f":"CntyDataLinkPrior5YearEstimates!$EV$148","v":0},{"$f":"CntyDataLinkPrior5YearEstimates!$EW$148","v":17},{"$f":"CntyDataLinkPrior5YearEstimates!$FN$148","v":0},{"$f":"CntyDataLinkPrior5YearEstimates!$FO$148","v":17}]
[null,null,null,"Rent Less Than 35% of HH Income",{"$f":"CntyDataLinkPrior5YearEstimates!$P$156","v":1085},{"$f":"CntyDataLinkPrior5YearEstimates!$Q$156","v":233.34523779156069},null,{"$f":"SUM(H56,H58)","v":89},{"$f":"SQRT((I56^2)+(I58^2))","v":71.826179071422146},{"$f":"SUM(J56,J58)","v":148},{"$f":"SQRT((K56^2)+(K58^2))","v":74.605629814377949},{"$f":"SUM(L56,L58)","v":254},{"$f":"SQRT((M56^2)+(M58^2))","v":113.25634640054393},237,127.39538822045807,262,{"$f":"SQRT((Q58^2)+(Q56^2))","v":133.24788928909908},{"$f":"SUM(R56,R58)","v":50},{"$f":"SQRT((S58^2)+(S56^2))","v":51.96152422706632},45,{"$f":"SQRT((U58^2)+(U56^2))","v":51.293274412928639}]
[null,null,null,"Rent 35% or More of HH Income",{"$f":"CntyDataLinkPrior5YearEstimates!$R$156","v":720},{"$f":"CntyDataLinkPrior5YearEstimates!$S$156","v":165.37533068750005},null,{"$f":"CntyDataLinkPrior5YearEstimates!$BL$148+CntyDataLinkPrior5YearEstimates!$BN$148+CntyDataLinkPrior5YearEstimates!$BP$148","v":168},{"$f":"SQRT((CntyDataLinkPrior5YearEstimates!$BM$148^2)+(CntyDataLinkPrior5YearEstimates!$BO$148^2)+(CntyDataLinkPrior5YearEstimates!$BQ$148^2))","v":84.368240469977806},{"$f":"CntyDataLinkPrior5YearEstimates!$CD$148+CntyDataLinkPrior5YearEstimates!$CF$148+CntyDataLinkPrior5YearEstimates!$CH$148","v":246},{"$f":"SQRT((CntyDataLinkPrior5YearEstimates!$CE$148^2)+(CntyDataLinkPrior5YearEstimates!$CG$148^2)+(CntyDataLinkPrior5YearEstimates!$CI$148^2))","v":91.268833672837076},{"$f":"CntyDataLinkPrior5YearEstimates!$CV$148+CntyDataLinkPrior5YearEstimates!$CX$148+CntyDataLinkPrior5YearEstimates!$CZ$148","v":283},{"$f":"SQRT((CntyDataLinkPrior5YearEstimates!$CW$148^2)+(CntyDataLinkPrior5YearEstimates!$CY$148^2)+(CntyDataLinkPrior5YearEstimates!$DA$148^2))","v":126.14673994994877},{"$f":"CntyDataLinkPrior5YearEstimates!$DN$148+CntyDataLinkPrior5YearEstimates!$DP$148+CntyDataLinkPrior5YearEstimates!$DR$148","v":23},{"$f":"SQRT((CntyDataLinkPrior5YearEstimates!$DO$148^2)+(CntyDataLinkPrior5YearEstimates!$DQ$148^2)+(CntyDataLinkPrior5YearEstimates!$DS$148^2))","v":36.905284174491868},{"$f":"CntyDataLinkPrior5YearEstimates!$EF$148+CntyDataLinkPrior5YearEstimates!$EH$148+CntyDataLinkPrior5YearEstimates!$EJ$148","v":0},{"$f":"SQRT((CntyDataLinkPrior5YearEstimates!$EG$148^2)+(CntyDataLinkPrior5YearEstimates!$EI$148^2)+(CntyDataLinkPrior5YearEstimates!$EK$148^2))","v":29.444863728670914},{"$f":"CntyDataLinkPrior5YearEstimates!$EX$148+CntyDataLinkPrior5YearEstimates!$EZ$148+CntyDataLinkPrior5YearEstimates!$FB$148","v":0},{"$f":"SQRT((CntyDataLinkPrior5YearEstimates!$EY$148^2)+(CntyDataLinkPrior5YearEstimates!$FA$148^2)+(CntyDataLinkPrior5YearEstimates!$FC$148^2))","v":29.444863728670914},{"$f":"CntyDataLinkPrior5YearEstimates!$FP$148+CntyDataLinkPrior5YearEstimates!$FR$148+CntyDataLinkPrior5YearEstimates!$FT$148","v":0},{"$f":"SQRT((CntyDataLinkPrior5YearEstimates!$FQ$148^2)+(CntyDataLinkPrior5YearEstimates!$FS$148^2)+(CntyDataLinkPrior5YearEstimates!$FU$148^2))","v":29.444863728670914}]
[null,null,null,"Percent not computed",{"$f":"CntyDataLinkPrior5YearEstimates!$V$156","v":127},{"$f":"CntyDataLinkPrior5YearEstimates!$W$156","v":69},null,{"$f":"CntyDataLinkPrior5YearEstimates!$BR$148","v":57},{"$f":"CntyDataLinkPrior5YearEstimates!$BS$148","v":56},{"$f":"CntyDataLinkPrior5YearEstimates!$CJ$148","v":7},{"$f":"CntyDataLinkPrior5YearEstimates!$CK$148","v":12},{"$f":"CntyDataLinkPrior5YearEstimates!$DB$148","v":43},{"$f":"CntyDataLinkPrior5YearEstimates!$DC$148","v":29},{"$f":"CntyDataLinkPrior5YearEstimates!$DT$148","v":10},{"$f":"CntyDataLinkPrior5YearEstimates!$DU$148","v":15},{"$f":"CntyDataLinkPrior5YearEstimates!$EL$148","v":0},{"$f":"CntyDataLinkPrior5YearEstimates!$EM$148","v":17},{"$f":"CntyDataLinkPrior5YearEstimates!$FD$148","v":10},{"$f":"CntyDataLinkPrior5YearEstimates!$FE$148","v":16},{"$f":"CntyDataLinkPrior5YearEstimates!$FV$148","v":0},{"$f":"CntyDataLinkPrior5YearEstimates!$FW149","v":0}]
[]
[]
[]
[null,null,null,"Percent of Households Paying ",null,null,null,"By Household Income"]
[null,null,null,{"$f":"D56","v":"Rent Less Than 30% of HH Income"},{"$f":"E56/E$52","v":0.43064182194616979},null,null,{"$f":"H56/H$52","v":2.5477707006369428E-2},null,{"$f":"J56/J$52","v":0.32418952618453867},null,{"$f":"L56/L$52","v":0.2620689655172414},null,{"$f":"N56/N$52","v":0.68518518518518523},null,{"$f":"P56/P$52","v":1},null,{"$f":"R56/R$52","v":0.83333333333333337},null,{"$f":"T56/T$52","v":1}]
[null,null,null,{"$f":"D57","v":"Rent 30% or More of HH Income"},{"$f":"E57/E$52","v":0.50362318840579712},null,null,{"$f":"H57/H$52","v":0.79299363057324845},null,{"$f":"J57/J$52","v":0.65835411471321692},null,{"$f":"L57/L$52","v":0.66379310344827591},null,{"$f":"N57/N$52","v":0.27777777777777779},null,{"$f":"P57/P$52","v":0},null,{"$f":"R57/R$52","v":0},null,{"$f":"T57/T$52","v":0}]
[null,null,null,{"$f":"D59","v":"Rent Less Than 35% of HH Income"},{"$f":"E59/E$52","v":0.56159420289855078},null,null,{"$f":"H59/H$52","v":0.28343949044585987},null,{"$f":"J59/J$52","v":0.36907730673316708},null,{"$f":"L59/L$52","v":0.43793103448275861},null,{"$f":"N59/N$52","v":0.87777777777777777},null,{"$f":"P59/P$52","v":1},null,{"$f":"R59/R$52","v":0.83333333333333337},null,{"$f":"T59/T$52","v":1}]
[null,null,null,{"$f":"D60","v":"Rent 35% or More of HH Income"},{"$f":"E60/E$52","v":0.37267080745341613},null,null,{"$f":"H60/H$52","v":0.53503184713375795},null,{"$f":"J60/J$52","v":0.61346633416458851},null,{"$f":"L60/L$52","v":0.4879310344827586},null,{"$f":"N60/N$52","v":8.5185185185185183E-2},null,{"$f":"P60/P$52","v":0},null,{"$f":"R60/R$52","v":0},null,{"$f":"T60/T$52","v":0}]
[null,null,null,"Percent not computed",{"$f":"E61/E$52","v":6.5734989648033121E-2},null,null,{"$f":"H61/H$52","v":0.18152866242038215},null,{"$f":"J61/J$52","v":1.7456359102244388E-2},null,{"$f":"L61/L$52","v":7.4137931034482754E-2},null,{"$f":"N61/N$52","v":3.7037037037037035E-2},null,{"$f":"P61/P$52","v":0},null,{"$f":"R61/R$52","v":0.16666666666666666},null,{"$f":"T61/T$52","v":0}]
[]
[]
[null,null,null,"Source:  2010-2014 American Community Survey Table B25070; B25074"]
[]
[null,null,null,{"$f":"D41","v":"Income in 2014 Inflation Adjusted Dollars"}]
[null,null,null,"Data from the American Community Survey are estimates"]

{"sheet":"ACS_Table_B25063_&_B25064","index":81,"n_rows":159,"n_cols":32,"rows_kept":159,"cut":false,"hidden":true,"merged":[]}
[null,"B25063. GROSS RENT"]
[null,"Universe:  RENTER-OCCUPIED HOUSING UNITS"]
[null,"Data Set: 2015-2019 American Community Survey 5-Year Estimates"]
[]
[null,null,"Acworth",null,"Charlestown",null,"Claremont",null,"Cornish",null,"Croydon",null,"Goshen",null,"Grantham",null,"Langdon",null,"Lempster",null,"Newport",null,"Plainfield",null,"Springfield",null,"Sunapee",null,"Unity",null,"Washington"]
[null,null,"Estimate","Margin Of Error","Estimate","Margin Of Error","Estimate","Margin Of Error","Estimate","Margin Of Error","Estimate","Margin Of Error","Estimate","Margin Of Error","Estimate","Margin Of Error","Estimate","Margin Of Error","Estimate","Margin Of Error","Estimate","Margin Of Error","Estimate","Margin Of Error","Estimate","Margin Of Error","Estimate","Margin Of Error","Estimate","Margin Of Error","Estimate","Margin Of Error"]
[null,"Total:",30,16,502,134,2310,288,55,26,36,22,54,23,140,79,39,21,26,16,857,184,112,49,44,33,349,122,35,20,38,28]
[null,"With cash rent:",28,16,471,144,2302,287,52,25,34,21,44,25,140,79,36,21,24,16,785,186,108,48,29,30,344,122,27,18,29,26]
[null,"Less than $100",0,11,0,16,7,11,0,11,0,11,0,11,0,11,0,11,0,11,0,16,0,11,0,11,0,11,0,11,0,11]
[null,"$100 to $149",0,11,0,16,0,18,0,11,0,11,0,11,0,11,0,11,0,11,15,23,0,11,0,11,0,11,0,11,0,11]
[null,"$150 to $199",0,11,0,16,24,28,0,11,0,11,0,11,0,11,0,11,0,11,0,16,0,11,0,11,0,11,0,11,0,11]
[null,"$200 to $249",0,11,14,23,73,46,0,11,0,11,0,11,0,11,0,11,0,11,0,16,0,11,0,11,0,11,0,11,0,11]
[null,"$250 to $299",0,11,0,16,24,32,0,11,0,11,0,11,0,11,0,11,0,11,46,58,0,11,0,11,0,11,0,11,0,11]
[null,"$300 to $349",0,11,0,16,97,74,0,11,0,11,0,11,23,37,0,11,0,11,25,28,0,11,0,11,0,11,0,11,0,11]
[null,"$350 to $399",0,11,0,16,68,59,0,11,0,11,0,11,0,11,0,11,0,11,11,18,0,11,0,11,0,11,0,11,0,11]
[null,"$400 to $449",0,11,33,37,0,18,0,11,0,11,7,10,0,11,0,11,0,11,0,16,0,11,0,11,0,11,0,11,0,11]
[null,"$450 to $499",0,11,8,15,8,13,0,11,0,11,0,11,0,11,0,11,0,11,40,67,0,11,0,11,0,11,0,11,0,11]
[null,"$500 to $549",0,11,0,16,34,33,3,5,0,11,0,11,0,11,0,11,0,11,41,65,0,11,0,11,0,11,0,11,0,11]
[null,"$550 to $599",0,11,14,23,42,47,0,11,0,11,0,11,0,11,0,11,4,5,13,20,0,11,0,11,0,11,0,11,0,11]
[null,"$600 to $649",0,11,21,26,38,34,8,8,0,11,0,11,0,11,0,11,0,11,0,16,0,11,16,27,0,11,0,11,0,11]
[null,"$650 to $699",0,11,17,27,87,62,0,11,0,11,0,11,0,11,0,11,0,11,14,24,0,11,0,11,0,11,0,11,0,11]
[null,"$700 to $749",0,11,0,16,99,81,0,11,3,4,0,11,0,11,0,11,2,4,13,20,0,11,0,11,0,11,0,11,6,14]
[null,"$750 to $799",0,11,85,92,62,48,0,11,0,11,0,11,0,11,0,11,0,11,7,11,0,11,0,11,0,11,0,11,0,11]
[null,"$800 to $899",0,11,0,16,224,93,0,11,5,10,6,9,0,11,14,14,0,11,183,116,6,8,0,11,65,60,0,11,0,11]
[null,"$900 to $999",8,10,66,59,321,140,11,9,0,11,8,9,0,11,12,13,12,14,117,86,16,18,0,11,53,61,0,11,10,15]
[null,"$1,000 to $1,249",8,9,93,78,871,230,19,19,8,9,8,7,54,58,2,3,3,4,108,83,5,7,0,11,70,63,10,8,3,4]
[null,"$1,250 to $1,499",3,4,120,96,159,90,4,6,10,12,15,17,0,11,6,9,3,5,39,39,22,27,8,12,112,83,17,17,10,16]
[null,"$1,500 to $1,999",9,8,0,16,56,48,7,7,8,11,0,11,63,69,2,3,0,11,88,74,59,40,5,9,23,33,0,11,0,11]
[null,"$2,000 to $2,499",0,11,0,16,8,12,0,11,0,11,0,11,0,11,0,11,0,11,25,30,0,11,0,11,0,11,0,11,0,11]
[null,"$2,500 to $2,999",0,11,0,16,0,18,0,11,0,11,0,11,0,11,0,11,0,11,0,16,0,11,0,11,0,11,0,11,0,11]
[null,"$3,000 to $3,499",0,11,0,16,0,18,0,11,0,11,0,11,0,11,0,11,0,11,0,16,0,11,0,11,0,11,0,11,0,11]
[null,"$3,500 or more",0,11,0,16,0,18,0,11,0,11,0,11,0,11,0,11,0,11,0,16,0,11,0,11,21,18,0,11,0,11]
[null,"No cash rent",2,3,31,47,8,12,3,4,2,4,10,7,0,11,3,4,2,3,72,76,4,8,15,15,5,8,8,9,9,7]
[]
[]
[]
[null,"B25064. MEDIAN GROSS RENT (DOLLARS)"]
[null,"Universe:  RENTER-OCCUPIED HOUSING UNITS PAYING CASH RENT"]
[null,"Data Set: 2015-2019 American Community Survey 5-Year Estimates"]
[null,{"$f":"RentalHousingCost!D41","v":"Income in 2019 Inflation Adjusted Dollars"}]
[null,null,"Acworth",null,"Charlestown",null,"Claremont",null,"Cornish",null,"Croydon",null,"Goshen",null,"Grantham",null,"Langdon",null,"Lempster",null,"Newport",null,"Plainfield",null,"Springfield",null,"Sunapee",null,"Unity",null,"Washington"]
[null,null,"Estimate","Margin Of Error","Estimate","Margin Of Error","Estimate","Margin Of Error","Estimate","Margin Of Error","Estimate","Margin Of Error","Estimate","Margin Of Error","Estimate","Margin Of Error","Estimate","Margin Of Error","Estimate","Margin Of Error","Estimate","Margin Of Error","Estimate","Margin Of Error","Estimate","Margin Of Error","Estimate","Margin Of Error","Estimate","Margin Of Error","Estimate","Margin Of Error"]
[null,"Median gross rent",1188,295,966,221,982,48,1275,276,1031,310,1218,697,933,84,950,92,892,65,1542,205,"-","**",1193,231,1301,113,985,396,0,0]
[]
[]
[null,null,null,296,1094,92,964,378,960,275,1024,177,1162,258,891,47,906,124,939,623,917,201,761,95]
[]
[]
[]
[]
[]
[]
[]
[]
[]
[]
[]
[]
[]
[]
[]
[]
[]
[]
[]
[]
[]
[]
[]
[null,"B25063. GROSS RENT"]
[null,"Universe:  RENTER-OCCUPIED HOUSING UNITS"]
[null,"Data Set: 2010-2014 American Community Survey 5-Year Estimates"]
[]
[null,null,"Acworth",null,"Charlestown",null,"Claremont",null,"Cornish",null,"Croydon",null,"Goshen",null,"Grantham",null,"Langdon",null,"Lempster",null,"Newport",null,"Plainfield",null,"Springfield",null,"Sunapee",null,"Unity",null,"Washington"]
[null,null,"Estimate","Margin Of Error","Estimate","Margin Of Error","Estimate","Margin Of Error","Estimate","Margin Of Error","Estimate","Margin Of Error","Estimate","Margin Of Error","Estimate","Margin Of Error","Estimate","Margin Of Error","Estimate","Margin Of Error","Estimate","Margin Of Error","Estimate","Margin Of Error","Estimate","Margin Of Error","Estimate","Margin Of Error","Estimate","Margin Of Error","Estimate","Margin Of Error"]
[null,"Total:",73,32,464,161,1932,223,94,39,44,23,66,32,93,68,29,18,50,28,948,207,118,53,72,37,428,128,16,13,31,17]
[null,"With cash rent:",63,30,395,147,1862,223,89,37,42,23,63,31,93,68,24,16,37,24,931,209,114,52,69,36,418,127,13,12,20,16]
[null,"Less than $100",0,11,0,11,17,20,0,11,0,11,0,11,0,11,1,3,0,11,22,35,0,11,0,11,0,11,0,11,0,11]
[null,"$100 to $149",0,11,0,11,0,17,0,11,0,11,0,11,0,11,0,11,0,11,0,15,0,11,0,11,0,11,0,11,0,11]
[null,"$150 to $199",0,11,0,11,40,40,0,11,0,11,0,11,0,11,0,11,0,11,82,79,0,11,0,11,0,11,0,11,0,11]
[null,"$200 to $249",0,11,0,11,163,91,0,11,0,11,0,11,0,11,0,11,0,11,14,24,0,11,0,11,0,11,0,11,0,11]
[null,"$250 to $299",0,11,0,11,76,55,0,11,0,11,0,11,0,11,0,11,0,11,63,68,0,11,3,4,0,11,0,11,0,11]
[null,"$300 to $349",0,11,0,11,51,47,0,11,0,11,0,11,0,11,0,11,0,11,18,29,0,11,0,11,0,11,0,11,0,11]
[null,"$350 to $399",0,11,11,19,51,35,0,11,0,11,0,11,0,11,0,11,0,11,50,40,0,11,0,11,9,14,0,11,0,11]
[null,"$400 to $449",0,11,33,53,62,61,0,11,2,3,0,11,0,11,0,11,0,11,0,15,0,11,0,11,0,11,0,11,0,11]
[null,"$450 to $499",0,11,13,21,38,37,0,11,0,11,0,11,0,11,0,11,0,11,0,15,0,11,0,11,0,11,0,11,0,11]
[null,"$500 to $549",0,11,42,65,118,86,0,11,0,11,0,11,0,11,0,11,0,11,0,15,7,10,0,11,0,11,0,11,0,11]
[null,"$550 to $599",3,4,47,66,23,20,0,11,0,11,0,11,0,11,0,11,4,7,0,15,13,20,0,11,0,11,0,11,0,11]
[null,"$600 to $649",0,11,74,62,104,78,9,13,0,11,0,11,0,11,0,11,0,11,0,15,0,11,0,11,0,11,0,11,0,11]
[null,"$650 to $699",0,11,0,11,56,65,0,11,0,11,0,11,0,11,0,11,0,11,35,52,0,11,0,11,9,14,0,11,0,11]
[null,"$700 to $749",7,11,0,11,77,58,4,6,0,11,0,11,0,11,0,11,0,11,70,90,0,11,0,11,26,41,0,11,0,11]
[null,"$750 to $799",0,11,40,54,90,62,0,11,2,3,0,11,0,11,0,11,0,11,93,102,0,11,10,15,48,52,6,9,0,11]
[null,"$800 to $899",22,18,0,11,206,86,3,4,9,11,17,15,10,17,2,3,24,22,147,97,4,6,15,18,34,54,0,11,12,15]
[null,"$900 to $999",0,11,55,85,231,86,8,10,10,13,11,10,0,11,10,15,3,4,86,60,17,25,16,17,0,11,2,4,3,4]
[null,"$1,000 to $1,249",9,8,80,69,407,151,33,26,6,10,29,27,12,19,0,11,4,6,74,60,18,16,6,7,199,111,5,7,0,11]
[null,"$1,250 to $1,499",0,11,0,11,20,19,25,18,6,9,6,4,0,11,2,3,0,11,145,93,7,10,2,4,25,25,0,11,2,3]
[null,"$1,500 to $1,999",22,22,0,11,32,27,3,5,7,10,0,11,59,62,9,11,2,3,0,15,23,31,17,19,59,44,0,11,3,4]
[null,"$2,000 or more",0,11,0,11,0,17,4,6,0,11,0,11,12,14,0,11,0,11,32,45,25,24,0,11,9,14,0,11,0,11]
[null,"No cash rent",10,12,69,65,70,37,5,6,2,4,3,4,0,11,5,8,13,13,17,22,4,6,3,4,10,16,3,4,11,6]
[]
[]
[]
[]
[]
[]
[null,"B25064. MEDIAN GROSS RENT (DOLLARS)"]
[null,"Universe:  RENTER-OCCUPIED HOUSING UNITS PAYING CASH RENT"]
[null,"Data Set: 2010-2014 American Community Survey 5-Year Estimates"]
[null,"Income in 2014 Inflation Adjusted Dollars"]
[null,null,"Acworth",null,"Charlestown",null,"Claremont",null,"Cornish",null,"Croydon",null,"Goshen",null,"Grantham",null,"Langdon",null,"Lempster",null,"Newport",null,"Plainfield",null,"Springfield",null,"Sunapee",null,"Unity",null,"Washington"]
[null,null,"Estimate","Margin Of Error","Estimate","Margin Of Error","Estimate","Margin Of Error","Estimate","Margin Of Error","Estimate","Margin Of Error","Estimate","Margin Of Error","Estimate","Margin Of Error","Estimate","Margin Of Error","Estimate","Margin Of Error","Estimate","Margin Of Error","Estimate","Margin Of Error","Estimate","Margin Of Error","Estimate","Margin Of Error","Estimate","Margin Of Error","Estimate","Margin Of Error"]
[null,"Median gross rent",898,606,635,219,781,76,1155,110,980,297,1030,107,1708,151,990,1115,860,32,813,72,1222,507,941,175,1104,73,925,301,883,344]
[]
[]
[]
[]
[null,"B25063. GROSS RENT"]
[null,"Universe:  RENTER-OCCUPIED HOUSING UNITS"]
[null,"Data Set: 2005-2009 American Community Survey 5-Year Estimates"]
[]
[null,null,"Acworth",null,"Charlestown",null,"Claremont",null,"Cornish",null,"Croydon",null,"Goshen",null,"Grantham",null,"Langdon",null,"Lempster",null,"Newport",null,"Plainfield",null,"Springfield",null,"Sunapee",null,"Unity",null,"Washington"]
[null,null,"Estimate","Margin Of Error","Estimate","Margin Of Error","Estimate","Margin Of Error","Estimate","Margin Of Error","Estimate","Margin Of Error","Estimate","Margin Of Error","Estimate","Margin Of Error","Estimate","Margin Of Error","Estimate","Margin Of Error","Estimate","Margin Of Error","Estimate","Margin Of Error","Estimate","Margin Of Error","Estimate","Margin Of Error","Estimate","Margin Of Error","Estimate","Margin Of Error"]
[null,"Total:",43,31,452,134,2635,251,88,36,54,36,72,40,95,52,10,16,74,29,856,193,78,46,19,18,444,119,111,44,17,12]
[null,"With cash rent:",35,27,414,128,2586,234,55,31,41,29,49,33,74,43,10,16,54,28,856,193,42,34,15,14,413,114,75,40,10,9]
[null,"Less than $100",0,114,0,114,13,19,0,114,0,114,0,114,0,114,0,114,0,114,36,42,0,114,0,114,0,114,0,114,0,114]
[null,"$100 to $149",0,114,0,114,43,61,0,114,0,114,0,114,0,114,0,114,0,114,0,114,0,114,0,114,0,114,0,114,0,114]
[null,"$150 to $199",0,114,0,114,161,77,0,114,0,114,0,114,0,114,0,114,0,114,126,112,0,114,0,114,0,114,10,15,0,114]
[null,"$200 to $249",0,114,16,25,0,114,0,114,0,114,0,114,0,114,0,114,0,114,12,21,0,114,0,114,0,114,0,114,0,114]
[null,"$250 to $299",0,114,18,28,78,66,0,114,0,114,0,114,0,114,0,114,0,114,14,23,0,114,0,114,0,114,7,10,0,114]
[null,"$300 to $349",0,114,43,34,166,105,0,114,0,114,0,114,0,114,0,114,0,114,26,32,6,9,0,114,0,114,0,114,0,114]
[null,"$350 to $399",9,14,10,16,49,42,0,114,0,114,0,114,0,114,0,114,0,114,0,114,0,114,3,6,0,114,0,114,0,114]
[null,"$400 to $449",0,114,0,114,76,50,0,114,0,114,0,114,0,114,0,114,0,114,13,22,0,114,0,114,10,15,0,114,0,114]
[null,"$450 to $499",0,114,0,114,48,36,0,114,0,114,0,114,0,114,0,114,0,114,14,23,24,30,3,6,0,114,0,114,0,114]
[null,"$500 to $549",0,114,29,47,60,58,0,114,0,114,0,114,0,114,0,114,0,114,0,114,0,114,0,114,0,114,0,114,0,114]
[null,"$550 to $599",0,114,19,30,131,85,5,8,3,5,0,114,0,114,0,114,0,114,88,82,0,114,0,114,21,33,0,114,0,114]
[null,"$600 to $649",0,114,99,78,167,94,6,10,0,114,0,114,0,114,10,16,12,18,0,114,0,114,0,114,68,68,40,37,0,114]
[null,"$650 to $699",0,114,39,63,248,99,0,114,0,114,0,114,0,114,0,114,4,6,124,114,0,114,0,114,13,19,0,114,4,6]
[null,"$700 to $749",0,114,0,114,122,68,0,114,10,17,0,114,0,114,0,114,0,114,13,21,0,114,0,114,9,14,0,114,0,114]
[null,"$750 to $799",0,114,37,60,175,102,0,114,0,114,6,9,0,114,0,114,11,13,65,58,0,114,4,6,9,15,8,13,0,114]
[null,"$800 to $899",5,8,20,30,513,151,13,20,4,6,0,114,0,114,0,114,0,114,102,78,0,114,0,114,85,58,0,114,0,114]
[null,"$900 to $999",12,18,0,114,197,100,5,7,7,12,13,19,0,114,0,114,4,6,105,83,0,114,0,114,42,62,5,7,0,114]
[null,"$1,000 to $1,249",9,15,45,56,239,123,14,17,10,15,25,26,6,9,0,114,17,16,118,82,0,114,5,8,95,62,5,9,3,5]
[null,"$1,250 to $1,499",0,114,22,26,93,64,0,114,7,12,5,7,14,16,0,114,0,114,0,114,12,16,0,114,27,43,0,114,0,114]
[null,"$1,500 to $1,999",0,114,0,114,0,114,12,19,0,114,0,114,54,39,0,114,6,10,0,114,0,114,0,114,24,40,0,114,0,114]
[null,"$2,000 or more",0,114,17,27,7,11,0,114,0,114,0,114,0,114,0,114,0,114,0,114,0,114,0,114,10,15,0,114,3,5]
[null,"No cash rent",8,10,38,33,49,44,33,20,13,16,23,26,21,33,0,114,20,12,0,114,36,28,4,8,31,48,36,26,7,6]
[]
[]
[]
[]
[]
[]
[null,"B25064. MEDIAN GROSS RENT (DOLLARS)"]
[null,"Universe:  RENTER-OCCUPIED HOUSING UNITS PAYING CASH RENT"]
[null,"Data Set: 2005-2009 American Community Survey 5-Year Estimates"]
[null,"Income in 2009 Inflation Adjusted Dollars"]
[null,null,"Acworth",null,"Charlestown",null,"Claremont",null,"Cornish",null,"Croydon",null,"Goshen",null,"Grantham",null,"Langdon",null,"Lempster",null,"Newport",null,"Plainfield",null,"Springfield",null,"Sunapee",null,"Unity",null,"Washington"]
[null,null,"Estimate","Margin Of Error","Estimate","Margin Of Error","Estimate","Margin Of Error","Estimate","Margin Of Error","Estimate","Margin Of Error","Estimate","Margin Of Error","Estimate","Margin Of Error","Estimate","Margin Of Error","Estimate","Margin Of Error","Estimate","Margin Of Error","Estimate","Margin Of Error","Estimate","Margin Of Error","Estimate","Margin Of Error","Estimate","Margin Of Error","Estimate","Margin Of Error"]
[null,"Median gross rent",929,141,636,51,722,60,970,279,950,278,1055,137,1657,149,-666666666,"**",850,350,690,118,481,676,769,531,890,116,626,14,1083,1007]

{"sheet":"ACS_Table_B25070","index":82,"n_rows":141,"n_cols":32,"rows_kept":141,"cut":false,"hidden":true,"merged":[]}
[null,"B25070. GROSS RENT AS A PERCENTAGE OF HOUSEHOLD INCOME IN THE PAST 12 MONTHS"]
[null,"Universe:  RENTER-OCCUPIED HOUSING UNITS"]
[null,"Data Set: 2015-2019 American Community Survey 5-Year Estimates"]
[]
[null,null,"Acworth",null,"Charlestown",null,"Claremont",null,"Cornish",null,"Croydon",null,"Goshen",null,"Grantham",null,"Langdon",null,"Lempster",null,"Newport",null,"Plainfield",null,"Springfield",null,"Sunapee",null,"Unity",null,"Washington"]
[null,null,"Estimate","Margin Of Error","Estimate","Margin Of Error","Estimate","Margin Of Error","Estimate","Margin Of Error","Estimate","Margin Of Error","Estimate","Margin Of Error","Estimate","Margin Of Error","Estimate","Margin Of Error","Estimate","Margin Of Error","Estimate","Margin Of Error","Estimate","Margin Of Error","Estimate","Margin Of Error","Estimate","Margin Of Error","Estimate","Margin Of Error","Estimate","Margin Of Error"]
[null,"Total:",30,16,502,134,2310,288,55,26,36,22,54,23,140,79,39,21,26,16,857,184,112,49,44,33,349,122,35,20,38,28]
[null,"Less than 10.0 percent",0,11,63,61,65,42,5,7,0,11,0,11,62,64,5,8,0,11,13,21,0,11,16,27,0,11,0,11,6,14]
[null,"10.0 to 14.9 percent",3,5,103,92,110,72,3,4,0,11,4,6,46,67,0,11,4,5,102,57,0,11,0,11,15,23,0,11,0,11]
[null,"15.0 to 19.9 percent",0,11,47,62,319,134,3,5,12,14,10,10,15,23,7,11,3,4,64,48,28,30,8,12,27,32,0,11,0,11]
[null,"20.0 to 24.9 percent",7,7,14,23,322,125,14,18,0,11,0,11,0,11,6,9,11,14,122,99,0,11,0,11,39,35,3,4,13,15]
[null,"25.0 to 29.9 percent",6,10,57,50,293,114,3,5,9,12,7,13,0,11,6,10,3,4,11,18,11,11,0,11,16,19,9,10,0,11]
[null,"30.0 to 34.9 percent",2,3,15,25,244,113,0,11,0,11,8,12,0,11,2,3,0,11,93,84,22,28,0,11,109,86,0,11,0,11]
[null,"35.0 to 39.9 percent",2,3,26,41,159,90,0,11,0,11,0,11,17,24,0,11,0,11,117,93,19,30,0,11,0,11,0,11,0,11]
[null,"40.0 to 49.9 percent",0,11,0,16,227,102,4,6,3,4,0,11,0,11,4,3,3,5,51,71,12,12,5,9,24,23,7,6,0,11]
[null,"50.0 percent or more",2,3,85,70,467,173,20,12,5,6,9,10,0,11,6,10,0,11,212,120,16,18,0,11,83,78,8,13,10,16]
[null,"Not computed",8,10,92,84,104,87,3,4,7,11,16,10,0,11,3,4,2,3,72,76,4,8,15,15,36,49,8,9,9,7]
[]
[]
[]
[]
[]
[]
[]
[]
[]
[]
[]
[]
[]
[]
[]
[]
[]
[null,"Calculated B25070. GROSS RENT AS A PERCENTAGE OF HOUSEHOLD INCOME IN THE PAST 12 MONTHS"]
[null,"Universe:  RENTER-OCCUPIED HOUSING UNITS"]
[null,"Data Set: 2015-2019 American Community Survey 5-Year Estimates"]
[null,{"$f":"RentalHousingCost!D41","v":"Income in 2019 Inflation Adjusted Dollars"}]
[null,null,"Acworth",null,"Charlestown",null,"Claremont",null,"Cornish",null,"Croydon",null,"Goshen",null,"Grantham",null,"Langdon",null,"Lempster",null,"Newport",null,"Plainfield",null,"Springfield",null,"Sunapee",null,"Unity",null,"Washington"]
[null,null,"Estimate","Margin of Error","Estimate","Margin of Error","Estimate","Margin of Error","Estimate","Margin of Error","Estimate","Margin of Error","Estimate","Margin of Error","Estimate","Margin of Error","Estimate","Margin of Error","Estimate","Margin of Error","Estimate","Margin of Error","Estimate","Margin of Error","Estimate","Margin of Error","Estimate","Margin of Error","Estimate","Margin of Error","Estimate","Margin of Error"]
[null,{"$f":"B7","v":"Total:"},30,16,502,134,2310,288,55,26,36,22,54,23,140,79,39,21,26,16,857,184,112,49,44,33,349,122,{"$f":"AC7","v":35},20,38,28]
[null," Less Than 20% of HH Income",{"$f":"C8+C9+C10","v":3},{"$f":"SQRT((D8^2)+(D9^2)+(D10^2))","v":16.340134638368191},{"$f":"E8+E9+E10","v":213},{"$f":"SQRT((F8^2)+(F9^2)+(F10^2))","v":126.60568707605516},{"$f":"G8+G9+G10","v":494},{"$f":"SQRT((H8^2)+(H9^2)+(H10^2))","v":157.81001235663092},{"$f":"I8+I9+I10","v":11},{"$f":"SQRT((J8^2)+(J9^2)+(J10^2))","v":9.4868329805051381},{"$f":"K8+K9+K10","v":12},{"$f":"SQRT((L8^2)+(L9^2)+(L10^2))","v":20.928449536456348},{"$f":"M8+M9+M10","v":14},{"$f":"SQRT((N8^2)+(N9^2)+(N10^2))","v":16.031219541881399},{"$f":"O8+O9+O10","v":123},{"$f":"SQRT((P8^2)+(P9^2)+(P10^2))","v":95.467271878900988},{"$f":"Q8+Q9+Q10","v":12},{"$f":"SQRT((R8^2)+(R9^2)+(R10^2))","v":17.4928556845359},{"$f":"S8+S9+S10","v":7},{"$f":"SQRT((T8^2)+(T9^2)+(T10^2))","v":12.727922061357855},{"$f":"U8+U9+U10","v":179},{"$f":"SQRT((V8^2)+(V9^2)+(V10^2))","v":77.420927403383644},{"$f":"W8+W9+W10","v":28},{"$f":"SQRT((X8^2)+(X9^2)+(X10^2))","v":33.793490497431605},{"$f":"Y8+Y9+Y10","v":24},{"$f":"SQRT((Z8^2)+(Z9^2)+(Z10^2))","v":31.527765540868891},{"$f":"AA8+AA9+AA10","v":42},{"$f":"SQRT((AB8^2)+(AB9^2)+(AB10^2))","v":40.914545090957567},{"$f":"AC8+AC9+AC10","v":0},{"$f":"SQRT((AD8^2)+(AD9^2)+(AD10^2))","v":19.05255888325765},{"$f":"AE8+AE9+AE10","v":6},{"$f":"SQRT((AF8^2)+(AF9^2)+(AF10^2))","v":20.928449536456348}]
[null," 20% to 24.9% of HH Income",{"$f":"C11","v":7},{"$f":"D11","v":7},{"$f":"E11","v":14},23,322,125,14,18,0,11,0,11,0,11,6,9,11,14,122,99,0,11,{"$f":"Y11","v":0},11,39,35,{"$f":"AC11","v":3},4,13,15]
[null," 25% to 29.9% of HH Income",{"$f":"C12","v":6},{"$f":"D12","v":10},57,50,293,114,3,5,9,12,7,13,0,11,6,10,3,4,11,18,11,11,0,11,16,19,{"$f":"AC12","v":9},10,0,11]
[null," Less Than 30% of HH Income",{"$f":"C12+C11+C10+C9+C8","v":16},{"$f":"SQRT((D12^2)+(D11^2)+(D10^2)+(D9^2)+(D8^2))","v":20.396078054371138},{"$f":"E12+E11+E10+E9+E8","v":284},{"$f":"SQRT((F12^2)+(F11^2)+(F10^2)+(F9^2)+(F8^2))","v":138.05071531868279},{"$f":"G12+G11+G10+G9+G8","v":1109},{"$f":"SQRT((H12^2)+(H11^2)+(H10^2)+(H9^2)+(H8^2))","v":231.35470602518549},{"$f":"I12+I11+I10+I9+I8","v":28},{"$f":"SQRT((J12^2)+(J11^2)+(J10^2)+(J9^2)+(J8^2))","v":20.952326839756964},{"$f":"K12+K11+K10+K9+K8","v":21},{"$f":"SQRT((L12^2)+(L11^2)+(L10^2)+(L9^2)+(L8^2))","v":26.514147167125703},{"$f":"M12+M11+M10+M9+M8","v":21},{"$f":"SQRT((N12^2)+(N11^2)+(N10^2)+(N9^2)+(N8^2))","v":23.388031127053001},{"$f":"O12+O11+O10+O9+O8","v":123},{"$f":"SQRT((P12^2)+(P11^2)+(P10^2)+(P9^2)+(P8^2))","v":96.726418314749978},{"$f":"Q12+Q11+Q10+Q9+Q8","v":24},{"$f":"SQRT((R12^2)+(R11^2)+(R10^2)+(R9^2)+(R8^2))","v":22.06807649071391},{"$f":"S12+S11+S10+S9+S8","v":21},{"$f":"SQRT((T12^2)+(T11^2)+(T10^2)+(T9^2)+(T8^2))","v":19.339079605813716},{"$f":"U12+U11+U10+U9+U8","v":312},{"$f":"SQRT((V12^2)+(V11^2)+(V10^2)+(V9^2)+(V8^2))","v":126.96062381699296},{"$f":"W12+W11+W10+W9+W8","v":39},{"$f":"SQRT((X12^2)+(X11^2)+(X10^2)+(X9^2)+(X8^2))","v":37.20215047547655},{"$f":"Y12+Y11+Y10+Y9+Y8","v":24},{"$f":"SQRT((Z12^2)+(Z11^2)+(Z10^2)+(Z9^2)+(Z8^2))","v":35.156791662493895},{"$f":"AA12+AA11+AA10+AA9+AA8","v":97},{"$f":"SQRT((AB12^2)+(AB11^2)+(AB10^2)+(AB9^2)+(AB8^2))","v":57.096409694480791},{"$f":"AC12+AC11+AC10+AC9+AC8","v":12},{"$f":"SQRT((AD12^2)+(AD11^2)+(AD10^2)+(AD9^2)+(AD8^2))","v":21.88606862823929},{"$f":"AE12+AE11+AE10+AE9+AE8","v":19},{"$f":"SQRT((AF12^2)+(AF11^2)+(AF10^2)+(AF9^2)+(AF8^2))","v":28}]
[null," 30% or More of HH Income",{"$f":"C13+C14+C15+C16","v":6},{"$f":"SQRT((D13^2)+(D14^2)+(D15^2)+(D16^2))","v":12.165525060596439},{"$f":"E13+E14+E15+E16","v":126},{"$f":"SQRT((F13^2)+(F14^2)+(F15^2)+(F16^2))","v":86.382868671976851},{"$f":"G13+G14+G15+G16","v":1097},{"$f":"SQRT((H13^2)+(H14^2)+(H15^2)+(H16^2))","v":247.39037976445243},{"$f":"I13+I14+I15+I16","v":24},{"$f":"SQRT((J13^2)+(J14^2)+(J15^2)+(J16^2))","v":20.542638584174139},{"$f":"K13+K14+K15+K16","v":8},{"$f":"SQRT((L13^2)+(L14^2)+(L15^2)+(L16^2))","v":17.146428199482248},{"$f":"M13+M14+M15+M16","v":17},{"$f":"SQRT((N13^2)+(N14^2)+(N15^2)+(N16^2))","v":22.045407685048602},{"$f":"O13+O14+O15+O16","v":17},{"$f":"SQRT((P13^2)+(P14^2)+(P15^2)+(P16^2))","v":30.643106892089126},{"$f":"Q13+Q14+Q15+Q16","v":12},{"$f":"SQRT((R13^2)+(R14^2)+(R15^2)+(R16^2))","v":15.459624833740307},{"$f":"S13+S14+S15+S16","v":3},{"$f":"SQRT((T13^2)+(T14^2)+(T15^2)+(T16^2))","v":19.697715603592208},{"$f":"U13+U14+U15+U16","v":473},{"$f":"SQRT((V13^2)+(V14^2)+(V15^2)+(V16^2))","v":187.47266467407988},{"$f":"W13+W14+W15+W16","v":69},{"$f":"SQRT((X13^2)+(X14^2)+(X15^2)+(X16^2))","v":46.389654018972806},{"$f":"Y13+Y14+Y15+Y16","v":5},{"$f":"SQRT((Z13^2)+(Z14^2)+(Z15^2)+(Z16^2))","v":21.071307505705477},{"$f":"AA13+AA14+AA15+AA16","v":216},{"$f":"SQRT((AB13^2)+(AB14^2)+(AB15^2)+(AB16^2))","v":118.86967653695369},{"$f":"AC13+AC14+AC15+AC16","v":15},{"$f":"SQRT((AD13^2)+(AD14^2)+(AD15^2)+(AD16^2))","v":21.142374511865974},{"$f":"AE13+AE14+AE15+AE16","v":10},{"$f":"SQRT((AF13^2)+(AF14^2)+(AF15^2)+(AF16^2))","v":24.879710609249457}]
[null," 30% to 34.9% of HH Income",{"$f":"C13","v":2},{"$f":"D13","v":3},{"$f":"E13","v":15},25,244,113,0,11,0,11,8,12,0,11,2,3,0,11,93,84,22,28,{"$f":"Y13","v":0},11,109,86,0,11,0,11]
[null," Less Than 35% of HH Income",{"$f":"C13+C12+C11+C10+C9+C8","v":18},{"$f":"SQRT((D13^2)+(D12^2)+(D11^2)+(D10^2)+(D9^2)+(D8^2))","v":20.615528128088304},{"$f":"E13+E12+E11+E10+E9+E8","v":299},{"$f":"SQRT((F13^2)+(F12^2)+(F11^2)+(F10^2)+(F9^2)+(F8^2))","v":140.29611541307906},{"$f":"G13+G12+G11+G10+G9+G8","v":1353},{"$f":"SQRT((H13^2)+(H12^2)+(H11^2)+(H10^2)+(H9^2)+(H8^2))","v":257.47621249350397},{"$f":"I13+I12+I11+I10+I9+I8","v":28},{"$f":"SQRT((J13^2)+(J12^2)+(J11^2)+(J10^2)+(J9^2)+(J8^2))","v":23.664319132398465},{"$f":"K13+K12+K11+K10+K9+K8","v":21},{"$f":"SQRT((L13^2)+(L12^2)+(L11^2)+(L10^2)+(L9^2)+(L8^2))","v":28.705400188814647},{"$f":"M13+M12+M11+M10+M9+M8","v":29},{"$f":"SQRT((N13^2)+(N12^2)+(N11^2)+(N10^2)+(N9^2)+(N8^2))","v":26.28687885618983},{"$f":"O13+O12+O11+O10+O9+O8","v":123},{"$f":"SQRT((P13^2)+(P12^2)+(P11^2)+(P10^2)+(P9^2)+(P8^2))","v":97.349884437527706},{"$f":"Q13+Q12+Q11+Q10+Q9+Q8","v":26},{"$f":"SQRT((R13^2)+(R12^2)+(R11^2)+(R10^2)+(R9^2)+(R8^2))","v":22.271057451320086},{"$f":"S13+S12+S11+S10+S9+S8","v":21},{"$f":"SQRT((T13^2)+(T12^2)+(T11^2)+(T10^2)+(T9^2)+(T8^2))","v":22.248595461286989},{"$f":"U13+U12+U11+U10+U9+U8","v":405},{"$f":"SQRT((V13^2)+(V12^2)+(V11^2)+(V10^2)+(V9^2)+(V8^2))","v":152.23337347638329},{"$f":"W13+W12+W11+W10+W9+W8","v":61},{"$f":"SQRT((X13^2)+(X12^2)+(X11^2)+(X10^2)+(X9^2)+(X8^2))","v":46.561786907291264},{"$f":"Y13+Y12+Y11+Y10+Y9+Y8","v":24},{"$f":"SQRT((Z13^2)+(Z12^2)+(Z11^2)+(Z10^2)+(Z9^2)+(Z8^2))","v":36.837480912787726},{"$f":"AA13+AA12+AA11+AA10+AA9+AA8","v":206},{"$f":"SQRT((AB13^2)+(AB12^2)+(AB11^2)+(AB10^2)+(AB9^2)+(AB8^2))","v":103.22790320451152},{"$f":"AC13+AC12+AC11+AC10+AC9+AC8","v":12},{"$f":"SQRT((AD13^2)+(AD12^2)+(AD11^2)+(AD10^2)+(AD9^2)+(AD8^2))","v":24.494897427831781},{"$f":"AE13+AE12+AE11+AE10+AE9+AE8","v":19},{"$f":"SQRT((AF13^2)+(AF12^2)+(AF11^2)+(AF10^2)+(AF9^2)+(AF8^2))","v":30.083217912982647}]
[null," 35% or More of HH Income",{"$f":"C14+C15+C16","v":4},{"$f":"SQRT((D14^2)+(D15^2)+(D16^2))","v":11.789826122551595},{"$f":"E14+E15+E16","v":111},{"$f":"SQRT((F14^2)+(F15^2)+(F16^2))","v":82.686153617156478},{"$f":"G14+G15+G16","v":853},{"$f":"SQRT((H14^2)+(H15^2)+(H16^2))","v":220.07498722026546},{"$f":"I14+I15+I16","v":24},{"$f":"SQRT((J14^2)+(J15^2)+(J16^2))","v":17.349351572897472},{"$f":"K14+K15+K16","v":8},{"$f":"SQRT((L14^2)+(L15^2)+(L16^2))","v":13.152946437965905},{"$f":"M14+M15+M16","v":9},{"$f":"SQRT((N14^2)+(N15^2)+(N16^2))","v":18.493242008906929},{"$f":"O14+O15+O16","v":17},{"$f":"SQRT((P14^2)+(P15^2)+(P16^2))","v":28.600699292150182},{"$f":"Q14+Q15+Q16","v":10},{"$f":"SQRT((R14^2)+(R15^2)+(R16^2))","v":15.165750888103101},{"$f":"S14+S15+S16","v":3},{"$f":"SQRT((T14^2)+(T15^2)+(T16^2))","v":16.340134638368191},{"$f":"U14+U15+U16","v":380},{"$f":"SQRT((V14^2)+(V15^2)+(V16^2))","v":167.60071598892409},{"$f":"W14+W15+W16","v":47},{"$f":"SQRT((X14^2)+(X15^2)+(X16^2))","v":36.986484017813858},{"$f":"Y14+Y15+Y16","v":5},{"$f":"SQRT((Z14^2)+(Z15^2)+(Z16^2))","v":17.972200755611428},{"$f":"AA14+AA15+AA16","v":107},{"$f":"SQRT((AB14^2)+(AB15^2)+(AB16^2))","v":82.060952955714569},{"$f":"AC14+AC15+AC16","v":15},{"$f":"SQRT((AD14^2)+(AD15^2)+(AD16^2))","v":18.055470085267789},{"$f":"AE14+AE15+AE16","v":10},{"$f":"SQRT((AF14^2)+(AF15^2)+(AF16^2))","v":22.315913604421397}]
[null," 50% or More of HH Income",{"$f":"C16","v":2},{"$f":"D16","v":3},{"$f":"E16","v":85},70,467,173,20,12,5,6,9,10,0,11,6,10,0,11,212,120,16,18,{"$f":"Y16","v":0},11,83,78,{"$f":"AC16","v":8},13,10,16]
[null,"Not computed",{"$f":"C17","v":8},{"$f":"D17","v":10},92,84,104,87,3,4,7,11,16,10,0,11,3,4,2,3,72,76,4,8,15,15,36,49,{"$f":"AC17","v":8},9,9,7]
[]
[]
[]
[]
[]
[]
[]
[]
[]
[]
[]
[]
[]
[]
[]
[]
[]
[]
[]
[]
[]
[]
[]
[]
[]
[]
[]
[]
[]
[]
[]
[]
[]
[]
[]
[]
[]
[]
[]
[]
[]
[]
[]
[]
[]
[]
[]
[]
[]
[]
[]
[]
[null,"Calculated B25070. GROSS RENT AS A PERCENTAGE OF HOUSEHOLD INCOME IN THE PAST 12 MONTHS"]
[null,"Universe:  RENTER-OCCUPIED HOUSING UNITS"]
[null,"Data Set: 2010-2014 American Community Survey 5-Year Estimates"]
[null,"Income in 2014 Inflation Adjusted Dollars"]
[null,null,"Acworth",null,"Charlestown",null,"Claremont",null,"Cornish",null,"Croydon",null,"Goshen",null,"Grantham",null,"Langdon",null,"Lempster",null,"Newport",null,"Plainfield",null,"Springfield",null,"Sunapee",null,"Unity",null,"Washington"]
[null,null,"Estimate","Margin of Error","Estimate","Margin of Error","Estimate","Margin of Error","Estimate","Margin of Error","Estimate","Margin of Error","Estimate","Margin of Error","Estimate","Margin of Error","Estimate","Margin of Error","Estimate","Margin of Error","Estimate","Margin of Error","Estimate","Margin of Error","Estimate","Margin of Error","Estimate","Margin of Error","Estimate","Margin of Error","Estimate","Margin of Error"]
[null,"Total:",73,32,464,161,1932,223,94,39,44,23,66,32,93,68,29,18,50,28,948,207,118,53,72,37,428,128,16,13,31,17]
[null," Less Than 20% of HH Income",22,23.53720459187964,66,73.742796258346488,341,143.62799170078233,35,23.53720459187964,22,16.401219466856727,14,20.273134932713294,52,65.863495200300449,13,18.055470085267789,15,23.043437243605826,254,138.94243412291294,59,45.321076774498643,22,20.46948949045872,192,108.55873986004075,0,19.05255888325765,0,19.05255888325765]
[null," 20% to 24.9% of HH Income",12,13,20,21,198,84,26,25,10,13,7,11,10,17,6,10,0,11,192,124,20,16,20,19,25,23,13,12,2,3]
[null," 25% to 29.9% of HH Income",9,13,33,37,293,122,6,9,2,3,0,11,9,14,0,11,0,11,80,70,13,20,18,20,40,47,0,11,12,15]
[null," Less Than 30% of HH Income",43,29.866369046136157,119,85.135186615171051,832,206.32256299299891,67,35.496478698597699,34,21.142374511865974,21,25.553864678361276,71,69.447822140078657,19,23.388031127053001,15,27.802877548915689,526,198.94974239742055,92,52.057660339281483,60,34.351128074635334,257,120.51141024815865,13,25.059928172283335,14,24.433583445741231]
[null," 30% or More of HH Income",18,17.944358444926362,262,150.67514725395159,973,198.06564568344507,22,22.781571499789035,8,18.220867158288598,36,26.49528259898354,22,26.343879744638983,5,16.61324772583615,18,19.05255888325765,390,158.7734234687909,22,26.172504656604801,9,18.411952639521967,161,86.740993768805765,0,22,6,16.552945357246848]
[null," 30% to 34.9% of HH Income",0,11,63,71,253,109,12,14,0,11,8,10,12,14,0,11,0,11,87,63,14,22,3,4,7,12,0,11,3,4]
[null," Less Than 35% of HH Income",43,31.827660925679098,182,110.85576214162258,1085,233.34523779156069,79,38.157568056677825,34,23.832750575625969,29,27.440845468024488,83,70.844901016234047,19,25.845695966640172,15,29.899832775452108,613,208.68636754709206,106,56.515484603779164,63,34.583232931581165,264,121.10739036078682,13,27.367864366808018,17,24.758836806279895]
[null," 35% or More of HH Income",18,14.177446878757825,199,132.89845747788047,720,165.37533068750005,10,17.972200755611428,8,14.52583904633395,28,24.535688292770594,10,22.315913604421397,5,12.449899597988733,18,15.556349186104045,303,145.73949361789343,8,14.177446878757825,6,17.972200755611428,154,85.906926379658117,0,19.05255888325765,3,16.06237840420901]
[null," 50% or More of HH Income",3,4,144,114,417,122,10,9,2,3,15,16,10,16,2,3,2,3,167,98,6,8,6,9,109,80,0,11,3,4]
[null,"Not computed",12,12,83,69,127,69,5,6,2,4,9,10,0,11,5,8,17,15,32,34,4,6,3,4,10,16,3,4,11,6]
[]
[]
[]
[]
[null,"Calculated B25070. GROSS RENT AS A PERCENTAGE OF HOUSEHOLD INCOME IN THE PAST 12 MONTHS"]
[null,"Universe:  RENTER-OCCUPIED HOUSING UNITS"]
[null,"Data Set: 2005-2009 American Community Survey 5-Year Estimates"]
[]
[null,null,"Acworth",null,"Charlestown",null,"Claremont",null,"Cornish",null,"Croydon",null,"Goshen",null,"Grantham",null,"Langdon",null,"Lempster",null,"Newport",null,"Plainfield",null,"Springfield",null,"Sunapee",null,"Unity",null,"Washington"]
[null,null,"Estimate","Margin Of Error","Estimate","Margin Of Error","Estimate","Margin Of Error","Estimate","Margin Of Error","Estimate","Margin Of Error","Estimate","Margin Of Error","Estimate","Margin Of Error","Estimate","Margin Of Error","Estimate","Margin Of Error","Estimate","Margin Of Error","Estimate","Margin Of Error","Estimate","Margin Of Error","Estimate","Margin Of Error","Estimate","Margin Of Error","Estimate","Margin Of Error"]
[null,"Total:",43,31,452,134,2635,251,88,36,54,36,72,40,95,52,10,16,74,29,856,193,78,46,19,18,444,119,111,44,17,12]
[null," Less Than 20% of HH Income",12,162.22207001514928,120,85.982556370463882,576,171.98546450209099,18,116.17228585166085,10,161.74362429474616,16,115.64168798491312,6,161.47135968957468,0,197.45379206285202,17,162.4561479292181,130,74.337070160183202,0,197.45379206285202,15,114.88254871824527,79,60.770058416953987,51,118.7097300140136,0,197.45379206285202]
[null," 20% to 24.9% of HH Income",14,16,101,76,338,128,0,114,0,114,0,114,33,27,0,114,0,114,289,146,12,16,0,114,75,62,0,114,0,114]
[null," 25% to 29.9% of HH Income",0,114,45,35,341,110,0,114,7,12,23,24,8,13,10,16,6,11,123,89,0,114,0,114,63,63,8,13,4,6]
[null," Less Than 30% of HH Income",26,198.91706814650169,266,119.97499739529066,1255,240.96265270784184,18,198.71587757398754,17,198.2447981663075,39,164.14932226482082,47,164.22849935379668,10,228.56071403458645,23,198.76870981117727,542,186.44838427833051,12,228.56071403458645,15,197.9646433078392,217,107.26602444390302,59,165.0969412193939,4,228.07893370497854]
[null," 30% or More of HH Income",9,198.022725968511,148,148.94629904767692,1311,264.98679212368302,37,163.43806166251483,24,162.90181091688331,10,161.58279611394278,27,164.17673403987544,0,228,31,115.79723658188048,314,159.36436239009021,30,164.23458831805192,0,228,185,106.04715932074748,16,162.265215003093,6,197.61578884289585]
[null," 30% to 34.9% of HH Income",0,114,55,62,288,140,26,24,14,16,4,6,0,114,0,114,24,19,40,38,24,30,0,114,83,76,5,7,0,114]
[null," Less Than 35% of HH Income",26,229.26840166058645,321,135.04813956511953,1543,278.68082101213929,44,200.15993605114886,31,198.88941651078369,43,164.2589419179364,47,199.91748297735242,10,255.41339040856883,47,199.67473550752484,582,190.28137060679376,36,230.52114870440846,15,228.44255295369118,300,131.46102083887831,64,165.24527224704494,4,254.98235233050934]
[null," 35% or More of HH Income",9,161.91664522216362,93,135.42894816101909,1023,224.98444390668436,11,161.66632302368976,10,162.11415730897781,6,161.47135968957468,27,118.14397995666135,0,197.45379206285202,7,114.22784249034909,274,154.76756766196203,6,161.47135968957468,0,197.45379206285202,102,73.95944834840239,11,162.11415730897781,6,161.41871019184859]
[null," 50% or More of HH Income",0,114,29,47,557,147,11,12,10,17,6,9,20,29,0,114,4,6,151,99,0,114,0,114,47,42,11,17,6,8]
[null,"Not computed",8,10,38,33,69,50,33,20,13,16,23,26,21,33,0,114,20,12,0,114,36,28,4,8,42,50,36,26,7,6]

{"sheet":"ACS_Table_B25074","index":83,"n_rows":491,"n_cols":32,"rows_kept":491,"cut":false,"hidden":true,"merged":[]}
[null,"B25074. HOUSEHOLD INCOME BY GROSS RENT AS A PERCENTAGE OF HOUSEHOLD INCOME IN THE PAST 12 MONTHS"]
[null,"Universe:  RENTER-OCCUPIED HOUSING UNITS",null,null,null,{"$f":"RentalHousingCost!D41","v":"Income in 2019 Inflation Adjusted Dollars"}]
[null,"Data Set: 2015-2019 American Community Survey 5-Year Estimates"]
[]
[null,null,"Acworth",null,"Charlestown",null,"Claremont",null,"Cornish",null,"Croydon",null,"Goshen",null,"Grantham",null,"Langdon",null,"Lempster",null,"Newport",null,"Plainfield",null,"Springfield",null,"Sunapee",null,"Unity",null,"Washington"]
[null,null,"Estimate","Margin Of Error","Estimate","Margin Of Error","Estimate","Margin Of Error","Estimate","Margin Of Error","Estimate","Margin Of Error","Estimate","Margin Of Error","Estimate","Margin Of Error","Estimate","Margin Of Error","Estimate","Margin Of Error","Estimate","Margin Of Error","Estimate","Margin Of Error","Estimate","Margin Of Error","Estimate","Margin Of Error","Estimate","Margin Of Error","Estimate","Margin Of Error"]
[null,"Total:",30,16,502,134,2310,288,55,26,36,22,54,23,140,79,39,21,26,16,857,184,112,49,44,33,349,122,35,20,38,28]
[null,"Less than $10,000:",6,10,61,66,216,116,3,5,5,10,17,15,0,11,6,10,0,11,97,66,4,8,8,13,64,72,0,11,0,11]
[null,"Less than 20.0 percent",0,11,0,16,7,11,0,11,0,11,0,11,0,11,0,11,0,11,15,23,0,11,0,11,0,11,0,11,0,11]
[null,"20.0 to 24.9 percent",0,11,0,16,0,18,0,11,0,11,0,11,0,11,0,11,0,11,0,16,0,11,0,11,0,11,0,11,0,11]
[null,"25.0 to 29.9 percent",0,11,0,16,15,24,0,11,0,11,0,11,0,11,0,11,0,11,0,16,0,11,0,11,0,11,0,11,0,11]
[null,"30.0 to 34.9 percent",0,11,0,16,27,32,0,11,0,11,0,11,0,11,0,11,0,11,0,16,0,11,0,11,0,11,0,11,0,11]
[null,"35.0 to 39.9 percent",0,11,0,16,0,18,0,11,0,11,0,11,0,11,0,11,0,11,0,16,0,11,0,11,0,11,0,11,0,11]
[null,"40.0 to 49.9 percent",0,11,0,16,0,18,0,11,0,11,0,11,0,11,0,11,0,11,0,16,0,11,0,11,0,11,0,11,0,11]
[null,"50.0 percent or more",0,11,0,16,71,53,3,5,0,11,9,10,0,11,6,10,0,11,71,60,0,11,0,11,33,52,0,11,0,11]
[null,"Not computed",6,10,61,66,96,86,0,11,5,10,8,10,0,11,0,11,0,11,11,19,4,8,8,13,31,48,0,11,0,11]
[null,"$10,000 to $19,999:",0,11,87,70,373,101,13,9,3,4,0,11,0,11,0,11,0,11,237,133,0,11,0,11,11,17,0,11,10,16]
[null,"Less than 20.0 percent",0,11,0,16,19,22,0,11,0,11,0,11,0,11,0,11,0,11,0,16,0,11,0,11,0,11,0,11,0,11]
[null,"20.0 to 24.9 percent",0,11,14,23,24,29,0,11,0,11,0,11,0,11,0,11,0,11,0,16,0,11,0,11,0,11,0,11,0,11]
[null,"25.0 to 29.9 percent",0,11,16,26,52,64,0,11,0,11,0,11,0,11,0,11,0,11,11,18,0,11,0,11,0,11,0,11,0,11]
[null,"30.0 to 34.9 percent",0,11,0,16,50,38,0,11,0,11,0,11,0,11,0,11,0,11,33,53,0,11,0,11,0,11,0,11,0,11]
[null,"35.0 to 39.9 percent",0,11,0,16,12,18,0,11,0,11,0,11,0,11,0,11,0,11,81,93,0,11,0,11,0,11,0,11,0,11]
[null,"40.0 to 49.9 percent",0,11,0,16,38,45,3,4,0,11,0,11,0,11,0,11,13,20,0,11,0,11,0,11,0,11,0,11,0,0]
[null,"50.0 percent or more",0,11,57,62,178,93,0,11,0,11,0,11,0,11,0,11,88,79,0,11,0,11,11,17,0,11,10,16,0,0]
[null,"Not computed",0,11,0,16,0,18,0,11,0,11,0,11,0,11,0,11,11,17,0,11,0,11,0,11,0,11,0,11,0,0]
[null,"$20,000 to $34,999:",2,3,77,62,627,199,5,6,4,4,0,11,2,3,2,3,189,99,21,19,0,11,88,73,11,14,6,6,0,0]
[null,"Less than 20.0 percent",0,11,8,15,38,40,0,11,0,11,0,11,0,11,0,11,25,30,0,11,0,11,0,11,0,11,0,11,0,0]
[null,"20.0 to 24.9 percent",0,11,0,16,20,24,0,11,0,11,0,11,0,11,0,11,0,16,0,11,0,11,0,11,0,11,0,11,0,0]
[null,"25.0 to 29.9 percent",0,11,0,16,34,33,0,11,0,11,0,11,0,11,0,11,0,16,0,11,0,11,0,11,0,11,0,11,0,0]
[null,"30.0 to 34.9 percent",0,11,15,25,57,63,0,11,0,11,0,11,0,11,0,11,11,16,0,11,0,11,28,47,0,11,0,11,0,0]
[null,"35.0 to 39.9 percent",0,11,26,41,63,56,0,11,0,11,0,11,0,11,0,11,26,29,0,11,0,11,0,11,0,11,0,11,0,0]
[null,"40.0 to 49.9 percent",0,11,0,16,189,94,0,11,0,11,0,11,2,3,0,11,38,59,5,7,0,11,16,19,3,4,0,11,0,0]
[null,"50.0 percent or more",0,11,28,35,218,133,5,6,0,11,0,11,0,11,0,11,39,38,16,18,0,11,39,55,8,13,0,11,0,0]
[null,"Not computed",2,3,0,16,8,12,0,11,4,4,0,11,0,11,2,3,50,64,0,11,0,11,5,8,0,11,6,6,0,0]
[null,"$35,000 to $49,999:",6,5,41,42,435,157,0,11,10,12,0,11,10,10,12,8,50,40,18,15,5,9,66,67,11,9,0,11,0,0]
[null,"Less than 20.0 percent",0,11,0,16,25,29,0,11,0,11,0,11,0,11,4,5,13,21,0,11,0,11,0,11,0,11,0,11,0,0]
[null,"20.0 to 24.9 percent",2,3,0,16,123,76,0,11,0,11,0,11,0,11,2,4,13,20,0,11,0,11,0,11,0,11,0,11,0,0]
[null,"25.0 to 29.9 percent",0,11,41,42,117,68,0,11,0,11,0,11,6,10,3,4,0,16,6,8,0,11,0,11,4,6,0,11,0,0]
[null,"30.0 to 34.9 percent",2,3,0,16,86,87,0,11,8,12,0,11,2,3,0,11,0,16,5,8,0,11,58,66,0,11,0,11,0,0]
[null,"Income in 2009 Inflation Adjusted Dollars",0,11,0,16,84,71,0,11,0,11,0,11,0,11,0,11,10,17,0,11,0,11,0,11,0,11,0,11,0,0]
[null,"40.0 to 49.9 percent",0,11,0,16,0,18,0,11,0,11,0,11,2,3,3,5,0,16,7,10,5,9,8,13,4,5,0,11,0,0]
[null,"50.0 percent or more",2,3,0,16,0,18,0,11,0,11,0,11,0,11,0,11,14,21,0,11,0,11,0,11,0,11,0,11,0,0]
[null,"Not computed",0,11,0,16,0,18,0,11,2,3,0,11,0,11,0,11,0,16,0,11,0,11,0,11,3,4,0,11,0,0]
[null,"$50,000 to $74,999:",8,10,45,52,311,115,15,15,15,15,40,35,13,14,12,14,158,116,41,38,7,8,84,59,8,9,16,16,0,0]
[null,"Less than 20.0 percent",14,23,65,42,6,9,6,9,23,37,7,11,3,4,12,20,0,11,0,11,27,32,0,11,0,11,0,0,0,0]
[null,"20.0 to 24.9 percent",0,16,155,91,0,11,0,11,0,11,6,9,9,13,97,96,0,11,0,11,27,31,3,4,13,15,0,0,0,0]
[null,"25.0 to 29.9 percent",0,16,67,53,9,12,7,13,0,11,0,11,0,11,0,16,5,7,0,11,7,11,5,8,0,11,0,0,0,0]
[null,"30.0 to 34.9 percent",0,16,24,45,0,11,0,11,0,11,0,11,0,11,49,66,17,26,0,11,23,33,0,11,0,11,0,0,0,0]
[null,"35.0 to 39.9 percent",0,16,0,18,0,11,0,11,17,24,0,11,0,11,0,16,19,30,0,11,0,11,0,11,0,11,0,0,0,0]
[null,"40.0 to 49.9 percent",0,16,0,18,0,11,0,11,0,11,0,11,0,11,0,16,0,11,0,11,0,11,0,11,0,11,0,0,0,0]
[null,"50.0 percent or more",0,16,0,18,0,11,0,11,0,11,0,11,0,11,0,16,0,11,0,11,0,11,0,11,0,11,0,0,0,0]
[null,"Not computed",31,47,0,18,0,11,2,4,0,11,0,11,0,11,0,16,0,11,7,8,0,11,0,11,3,4,0,0,0,0]
[null,"$75,000 to $99,999:",109,97,253,133,2,4,8,7,15,23,0,11,0,11,74,58,0,11,24,29,0,11,0,11,0,11,0,0,0,0]
[null,"Less than 20.0 percent",109,97,245,133,0,11,8,7,15,23,0,11,0,11,62,54,0,11,24,29,0,11,0,11,0,11,0,0,0,0]
[null,"20.0 to 24.9 percent",0,16,0,18,0,11,0,11,0,11,0,11,0,11,12,21,0,11,0,11,0,11,0,11,0,11,0,0,0,0]
[null,"25.0 to 29.9 percent",0,16,8,12,0,11,0,11,0,11,0,11,0,11,0,16,0,11,0,11,0,11,0,11,0,11,0,0,0,0]
[null,"30.0 to 34.9 percent",0,16,0,18,0,11,0,11,0,11,0,11,0,11,0,16,0,11,0,11,0,11,0,11,0,11,0,0,0,0]
[null,"35.0 to 39.9 percent",0,16,0,18,0,11,0,11,0,11,0,11,0,11,0,16,0,11,0,11,0,11,0,11,0,11,0,0,0,0]
[null,"40.0 to 49.9 percent",0,16,0,18,0,11,0,11,0,11,0,11,0,11,0,16,0,11,0,11,0,11,0,11,0,11,0,0,0,0]
[null,"50.0 percent or more",0,16,0,18,0,11,0,11,0,11,0,11,0,11,0,16,0,11,0,11,0,11,0,11,0,11,0,0,0,0]
[null,"Not computed",0,16,0,18,2,4,0,11,0,11,0,11,0,11,0,16,0,11,0,11,0,11,0,11,0,11,0,0,0,0]
[null,"$100,000 or more:",82,76,95,57,6,10,0,11,85,80,8,9,0,11,52,42,28,30,0,11,36,29,5,7,6,14,0,0,0,0]
[null,"Less than 20.0 percent",82,76,95,57,6,10,0,11,85,80,5,8,0,11,52,42,28,30,0,11,15,23,0,11,6,14,0,0,0,0]
[null,"20.0 to 24.9 percent",0,16,0,18,0,11,0,11,0,11,0,11,0,11,0,16,0,11,0,11,12,18,0,11,0,11,0,0,0,0]
[null,"25.0 to 29.9 percent",0,16,0,18,0,11,0,11,0,11,0,11,0,11,0,16,0,11,0,11,9,14,0,11,0,11,0,0,0,0]
[null,"30.0 to 34.9 percent",0,16,0,18,0,11,0,11,0,11,0,11,0,11,0,16,0,11,0,11,0,11,0,11,0,11,0,0,0,0]
[null,"35.0 to 39.9 percent",0,16,0,18,0,11,0,11,0,11,0,11,0,11,0,16,0,11,0,11,0,11,0,11,0,11,0,0,0,0]
[null,"40.0 to 49.9 percent",0,16,0,18,0,11,0,11,0,11,0,11,0,11,0,16,0,11,0,11,0,11,0,11,0,11,0,0,0,0]
[null,"50.0 percent or more",0,16,0,18,0,11,0,11,0,11,0,11,0,11,0,16,0,11,0,11,0,11,0,11,0,11,0,0,0,0]
[null,"Not computed",0,16,0,18,0,11,0,11,0,11,3,4,0,11,0,16,0,11,0,11,0,11,5,7,0,11,0,0,0,0]
[]
[]
[]
[]
[]
[]
[]
[]
[]
[]
[]
[]
[]
[]
[]
[null,"Calculated B25074. HOUSEHOLD INCOME BY GROSS RENT AS A PERCENTAGE OF HOUSEHOLD INCOME IN THE PAST 12 MONTHS"]
[null,"Universe:  RENTER-OCCUPIED HOUSING UNITS"]
[null,"Data Set: 2015-2019 American Community Survey 5-Year Estimates"]
[]
[null,null,"Acworth",null,"Charlestown",null,"Claremont",null,"Cornish",null,"Croydon",null,"Goshen",null,"Grantham",null,"Langdon",null,"Lempster",null,"Newport",null,"Plainfield",null,"Springfield",null,"Sunapee",null,"Unity",null,"Washington"]
[null,null,"Estimate","Margin Of Error","Estimate","Margin Of Error","Estimate","Margin Of Error","Estimate","Margin Of Error","Estimate","Margin Of Error","Estimate","Margin Of Error","Estimate","Margin Of Error","Estimate","Margin Of Error","Estimate","Margin Of Error","Estimate","Margin Of Error","Estimate","Margin Of Error","Estimate","Margin Of Error","Estimate","Margin Of Error","Estimate","Margin Of Error","Estimate","Margin Of Error"]
[null,"Total:",{"$f":"C7","v":30},16,{"$f":"E7","v":502},134,2310,288,55,26,36,22,54,23,140,79,39,21,{"$f":"S7","v":26},16,857,184,112,49,44,33,349,122,35,20,38,28]
[null,"Less than $10,000:",6,10,61,66,216,116,3,5,5,10,17,15,0,11,6,10,0,11,97,66,4,8,8,13,64,72,0,11,0,11]
[null,"Less than 30.0 percent",{"$f":"C9+C10+C11","v":0},{"$f":"SQRT((D9^2)+(D10^2)+(D11^2))","v":19.05255888325765},{"$f":"E9+E10+E11","v":0},{"$f":"SQRT((F9^2)+(F10^2)+(F11^2))","v":27.712812921102035},{"$f":"G9+G10+G11","v":22},{"$f":"SQRT((H9^2)+(H10^2)+(H11^2))","v":31.953090617340916},{"$f":"I9+I10+I11","v":0},{"$f":"SQRT((J9^2)+(J10^2)+(J11^2))","v":19.05255888325765},{"$f":"K9+K10+K11","v":0},{"$f":"SQRT((L9^2)+(L10^2)+(L11^2))","v":19.05255888325765},{"$f":"M9+M10+M11","v":0},{"$f":"SQRT((N9^2)+(N10^2)+(N11^2))","v":19.05255888325765},{"$f":"O9+O10+O11","v":0},{"$f":"SQRT((P9^2)+(P10^2)+(P11^2))","v":19.05255888325765},{"$f":"Q9+Q10+Q11","v":0},{"$f":"SQRT((R9^2)+(R10^2)+(R11^2))","v":19.05255888325765},{"$f":"S9+S10+S11","v":0},{"$f":"SQRT((T9^2)+(T10^2)+(T11^2))","v":19.05255888325765},{"$f":"U9+U10+U11","v":15},{"$f":"SQRT((V9^2)+(V10^2)+(V11^2))","v":32.264531609803356},{"$f":"W9+W10+W11","v":0},{"$f":"SQRT((X9^2)+(X10^2)+(X11^2))","v":19.05255888325765},{"$f":"Y9+Y10+Y11","v":0},{"$f":"SQRT((Z9^2)+(Z10^2)+(Z11^2))","v":19.05255888325765},{"$f":"AA9+AA10+AA11","v":0},{"$f":"SQRT((AB9^2)+(AB10^2)+(AB11^2))","v":19.05255888325765},{"$f":"AC9+AC10+AC11","v":0},{"$f":"SQRT((AD9^2)+(AD10^2)+(AD11^2))","v":19.05255888325765},{"$f":"AE9+AE10+AE11","v":0},{"$f":"SQRT((AF9^2)+(AF10^2)+(AF11^2))","v":19.05255888325765}]
[null,"More than 30.0 percent",{"$f":"C12+C13+C14+C15","v":0},{"$f":"SQRT((D12^2)+(D13^2)+(D14^2)+(D15^2))","v":22},{"$f":"E12+E13+E14+E15","v":0},{"$f":"SQRT((F12^2)+(F13^2)+(F14^2)+(F15^2))","v":32},{"$f":"G12+G13+G14+G15","v":98},{"$f":"SQRT((H12^2)+(H13^2)+(H14^2)+(H15^2))","v":66.940271884718243},{"$f":"I12+I13+I14+I15","v":3},{"$f":"SQRT((J12^2)+(J13^2)+(J14^2)+(J15^2))","v":19.697715603592208},{"$f":"K12+K13+K14+K15","v":0},{"$f":"SQRT((L12^2)+(L13^2)+(L14^2)+(L15^2))","v":22},{"$f":"M12+M13+M14+M15","v":9},{"$f":"SQRT((N12^2)+(N13^2)+(N14^2)+(N15^2))","v":21.517434791350013},{"$f":"O12+O13+O14+O15","v":0},{"$f":"SQRT((P12^2)+(P13^2)+(P14^2)+(P15^2))","v":22},{"$f":"Q12+Q13+Q14+Q15","v":6},{"$f":"SQRT((R12^2)+(R13^2)+(R14^2)+(R15^2))","v":21.517434791350013},{"$f":"S12+S13+S14+S15","v":0},{"$f":"SQRT((T12^2)+(T13^2)+(T14^2)+(T15^2))","v":22},{"$f":"U12+U13+U14+U15","v":71},{"$f":"SQRT((V12^2)+(V13^2)+(V14^2)+(V15^2))","v":66.090846567433218},{"$f":"W12+W13+W14+W15","v":0},{"$f":"SQRT((X12^2)+(X13^2)+(X14^2)+(X15^2))","v":22},{"$f":"Y12+Y13+Y14+Y15","v":0},{"$f":"SQRT((Z12^2)+(Z13^2)+(Z14^2)+(Z15^2))","v":22},{"$f":"AA12+AA13+AA14+AA15","v":33},{"$f":"SQRT((AB12^2)+(AB13^2)+(AB14^2)+(AB15^2))","v":55.380501984001555},{"$f":"AC12+AC13+AC14+AC15","v":0},{"$f":"SQRT((AD12^2)+(AD13^2)+(AD14^2)+(AD15^2))","v":22},{"$f":"AE12+AE13+AE14+AE15","v":0},{"$f":"SQRT((AF12^2)+(AF13^2)+(AF14^2)+(AF15^2))","v":22}]
[null,"Less Than 35% of HH Income",{"$f":"C9+C10+C11+C12","v":0},{"$f":"SQRT((D9^2)+(D10^2)+(D11^2)+(D12^2))","v":22},{"$f":"E9+E10+E11+E12","v":0},{"$f":"SQRT((F9^2)+(F10^2)+(F11^2)+(F12^2))","v":32},{"$f":"G9+G10+G11+G12","v":49},{"$f":"SQRT((H9^2)+(H10^2)+(H11^2)+(H12^2))","v":45.221676218380054},{"$f":"I9+I10+I11+I12","v":0},{"$f":"SQRT((J9^2)+(J10^2)+(J11^2)+(J12^2))","v":22},{"$f":"K9+K10+K11+K12","v":0},{"$f":"SQRT((L9^2)+(L10^2)+(L11^2)+(L12^2))","v":22},{"$f":"M9+M10+M11+M12","v":0},{"$f":"SQRT((N9^2)+(N10^2)+(N11^2)+(N12^2))","v":22},{"$f":"O9+O10+O11+O12","v":0},{"$f":"SQRT((P9^2)+(P10^2)+(P11^2)+(P12^2))","v":22},{"$f":"Q9+Q10+Q11+Q12","v":0},{"$f":"SQRT((R9^2)+(R10^2)+(R11^2)+(R12^2))","v":22},{"$f":"S9+S10+S11+S12","v":0},{"$f":"SQRT((T9^2)+(T10^2)+(T11^2)+(T12^2))","v":22},{"$f":"U9+U10+U11+U12","v":15},{"$f":"SQRT((V9^2)+(V10^2)+(V11^2)+(V12^2))","v":36.013886210738214},{"$f":"W9+W10+W11+W12","v":0},{"$f":"SQRT((X9^2)+(X10^2)+(X11^2)+(X12^2))","v":22},{"$f":"Y9+Y10+Y11+Y12","v":0},{"$f":"SQRT((Z9^2)+(Z10^2)+(Z11^2)+(Z12^2))","v":22},{"$f":"AA9+AA10+AA11+AA12","v":0},{"$f":"SQRT((AB9^2)+(AB10^2)+(AB11^2)+(AB12^2))","v":22},{"$f":"AC9+AC10+AC11+AC12","v":0},{"$f":"SQRT((AD9^2)+(AD10^2)+(AD11^2)+(AD12^2))","v":22},{"$f":"AE9+AE10+AE11+AE12","v":0},{"$f":"SQRT((AF9^2)+(AF10^2)+(AF11^2)+(AF12^2))","v":22}]
[null,"35.0 percent or more",{"$f":"C13+C14++C15","v":0},{"$f":"SQRT((D13^2)+(D14^2)+(D15^2))","v":19.05255888325765},{"$f":"E13+E14++E15","v":0},{"$f":"SQRT((F13^2)+(F14^2)+(F15^2))","v":27.712812921102035},{"$f":"G13+G14++G15","v":71},{"$f":"SQRT((H13^2)+(H14^2)+(H15^2))","v":58.796258384356399},{"$f":"I13+I14++I15","v":3},{"$f":"SQRT((J13^2)+(J14^2)+(J15^2))","v":16.340134638368191},{"$f":"K13+K14++K15","v":0},{"$f":"SQRT((L13^2)+(L14^2)+(L15^2))","v":19.05255888325765},{"$f":"M13+M14++M15","v":9},{"$f":"SQRT((N13^2)+(N14^2)+(N15^2))","v":18.493242008906929},{"$f":"O13+O14++O15","v":0},{"$f":"SQRT((P13^2)+(P14^2)+(P15^2))","v":19.05255888325765},{"$f":"Q13+Q14++Q15","v":6},{"$f":"SQRT((R13^2)+(R14^2)+(R15^2))","v":18.493242008906929},{"$f":"S13+S14++S15","v":0},{"$f":"SQRT((T13^2)+(T14^2)+(T15^2))","v":19.05255888325765},{"$f":"U13+U14++U15","v":71},{"$f":"SQRT((V13^2)+(V14^2)+(V15^2))","v":64.124878167525594},{"$f":"W13+W14++W15","v":0},{"$f":"SQRT((X13^2)+(X14^2)+(X15^2))","v":19.05255888325765},{"$f":"Y13+Y14++Y15","v":0},{"$f":"SQRT((Z13^2)+(Z14^2)+(Z15^2))","v":19.05255888325765},{"$f":"AA13+AA14++AA15","v":33},{"$f":"SQRT((AB13^2)+(AB14^2)+(AB15^2))","v":54.277066980447643},{"$f":"AC13+AC14++AC15","v":0},{"$f":"SQRT((AD13^2)+(AD14^2)+(AD15^2))","v":19.05255888325765},{"$f":"AE13+AE14++AE15","v":0},{"$f":"SQRT((AF13^2)+(AF14^2)+(AF15^2))","v":19.05255888325765}]
[null,"50.0 percent or more",{"$f":"C15","v":0},11,0,16,71,53,3,5,0,11,9,10,0,11,6,10,0,11,71,60,0,11,0,11,33,52,0,11,0,11]
[null,"Not Computed",{"$f":"C16","v":6},10,61,66,96,86,0,11,5,10,8,10,0,11,0,11,0,11,11,19,4,8,8,13,31,48,0,11,0,11]
[null,"$10,000 to $19,999:",{"$f":"C17","v":0},11,{"$f":"E17","v":87},70,373,101,13,9,3,4,0,11,0,11,0,11,0,11,237,133,0,11,0,11,11,17,0,11,10,16]
[null,"Less than 30.0 percent",{"$f":"C18+C19+C20","v":0},{"$f":"SQRT((D18^2)+(D19^2)+(D20^2))","v":19.05255888325765},{"$f":"E18+E19+E20","v":30},{"$f":"SQRT((F18^2)+(F19^2)+(F20^2))","v":38.223029707232783},{"$f":"G18+G19+G20","v":95},{"$f":"SQRT((H18^2)+(H19^2)+(H20^2))","v":73.627440536799867},{"$f":"I18+I19+I20","v":0},{"$f":"SQRT((J18^2)+(J19^2)+(J20^2))","v":19.05255888325765},{"$f":"K18+K19+K20","v":0},{"$f":"SQRT((L18^2)+(L19^2)+(L20^2))","v":19.05255888325765},{"$f":"M18+M19+M20","v":0},{"$f":"SQRT((N18^2)+(N19^2)+(N20^2))","v":19.05255888325765},{"$f":"O18+O19+O20","v":0},{"$f":"SQRT((P18^2)+(P19^2)+(P20^2))","v":19.05255888325765},{"$f":"Q18+Q19+Q20","v":0},{"$f":"SQRT((R18^2)+(R19^2)+(R20^2))","v":19.05255888325765},{"$f":"S18+S19+S20","v":0},{"$f":"SQRT((T18^2)+(T19^2)+(T20^2))","v":19.05255888325765},{"$f":"U18+U19+U20","v":11},{"$f":"SQRT((V18^2)+(V19^2)+(V20^2))","v":28.913664589601922},{"$f":"W18+W19+W20","v":0},{"$f":"SQRT((X18^2)+(X19^2)+(X20^2))","v":19.05255888325765},{"$f":"Y18+Y19+Y20","v":0},{"$f":"SQRT((Z18^2)+(Z19^2)+(Z20^2))","v":19.05255888325765},{"$f":"AA18+AA19+AA20","v":0},{"$f":"SQRT((AB18^2)+(AB19^2)+(AB20^2))","v":19.05255888325765},{"$f":"AC18+AC19+AC20","v":0},{"$f":"SQRT((AD18^2)+(AD19^2)+(AD20^2))","v":19.05255888325765},{"$f":"AE18+AE19+AE20","v":0},{"$f":"SQRT((AF18^2)+(AF19^2)+(AF20^2))","v":19.05255888325765}]
[null,"More than 30.0 percent",{"$f":"C21+C22+C23+C24","v":0},{"$f":"SQRT((D21^2)+(D22^2)+(D23^2)+(D24^2))","v":22},{"$f":"E21+E22+E23+E24","v":57},{"$f":"SQRT((F21^2)+(F22^2)+(F23^2)+(F24^2))","v":67.911707385398586},{"$f":"G21+G22+G23+G24","v":278},{"$f":"SQRT((H21^2)+(H22^2)+(H23^2)+(H24^2))","v":111.54371340420759},{"$f":"I21+I22+I23+I24","v":3},{"$f":"SQRT((J21^2)+(J22^2)+(J23^2)+(J24^2))","v":19.467922333931785},{"$f":"K21+K22+K23+K24","v":0},{"$f":"SQRT((L21^2)+(L22^2)+(L23^2)+(L24^2))","v":22},{"$f":"M21+M22+M23+M24","v":0},{"$f":"SQRT((N21^2)+(N22^2)+(N23^2)+(N24^2))","v":22},{"$f":"O21+O22+O23+O24","v":0},{"$f":"SQRT((P21^2)+(P22^2)+(P23^2)+(P24^2))","v":22},{"$f":"Q21+Q22+Q23+Q24","v":0},{"$f":"SQRT((R21^2)+(R22^2)+(R23^2)+(R24^2))","v":22},{"$f":"S21+S22+S23+S24","v":101},{"$f":"SQRT((T21^2)+(T22^2)+(T23^2)+(T24^2))","v":82.963847548194153},{"$f":"U21+U22+U23+U24","v":114},{"$f":"SQRT((V21^2)+(V22^2)+(V23^2)+(V24^2))","v":108.16653826391968},{"$f":"W21+W22+W23+W24","v":0},{"$f":"SQRT((X21^2)+(X22^2)+(X23^2)+(X24^2))","v":22},{"$f":"Y21+Y22+Y23+Y24","v":11},{"$f":"SQRT((Z21^2)+(Z22^2)+(Z23^2)+(Z24^2))","v":25.534290669607408},{"$f":"AA21+AA22+AA23+AA24","v":0},{"$f":"SQRT((AB21^2)+(AB22^2)+(AB23^2)+(AB24^2))","v":22},{"$f":"AC21+AC22+AC23+AC24","v":10},{"$f":"SQRT((AD21^2)+(AD22^2)+(AD23^2)+(AD24^2))","v":24.879710609249457},{"$f":"AE21+AE22+AE23+AE24","v":0},{"$f":"SQRT((AF21^2)+(AF22^2)+(AF23^2)+(AF24^2))","v":15.556349186104045}]
[null,"Less Than 35% of HH Income",{"$f":"C18+C19+C20+C21","v":0},{"$f":"SQRT((D18^2)+(D19^2)+(D20^2)+(D21^2))","v":22},{"$f":"E18+E19+E20+E21","v":30},{"$f":"SQRT((F18^2)+(F19^2)+(F20^2)+(F21^2))","v":41.43669871020132},{"$f":"G18+G19+G20+G21","v":145},{"$f":"SQRT((H18^2)+(H19^2)+(H20^2)+(H21^2))","v":82.855295545909442},{"$f":"I18+I19+I20+I21","v":0},{"$f":"SQRT((J18^2)+(J19^2)+(J20^2)+(J21^2))","v":22},{"$f":"K18+K19+K20+K21","v":0},{"$f":"SQRT((L18^2)+(L19^2)+(L20^2)+(L21^2))","v":22},{"$f":"M18+M19+M20+M21","v":0},{"$f":"SQRT((N18^2)+(N19^2)+(N20^2)+(N21^2))","v":22},{"$f":"O18+O19+O20+O21","v":0},{"$f":"SQRT((P18^2)+(P19^2)+(P20^2)+(P21^2))","v":22},{"$f":"Q18+Q19+Q20+Q21","v":0},{"$f":"SQRT((R18^2)+(R19^2)+(R20^2)+(R21^2))","v":22},{"$f":"S18+S19+S20+S21","v":0},{"$f":"SQRT((T18^2)+(T19^2)+(T20^2)+(T21^2))","v":22},{"$f":"U18+U19+U20+U21","v":44},{"$f":"SQRT((V18^2)+(V19^2)+(V20^2)+(V21^2))","v":60.373835392494321},{"$f":"W18+W19+W20+W21","v":0},{"$f":"SQRT((X18^2)+(X19^2)+(X20^2)+(X21^2))","v":22},{"$f":"Y18+Y19+Y20+Y21","v":0},{"$f":"SQRT((Z18^2)+(Z19^2)+(Z20^2)+(Z21^2))","v":22},{"$f":"AA18+AA19+AA20+AA21","v":0},{"$f":"SQRT((AB18^2)+(AB19^2)+(AB20^2)+(AB21^2))","v":22},{"$f":"AC18+AC19+AC20+AC21","v":0},{"$f":"SQRT((AD18^2)+(AD19^2)+(AD20^2)+(AD21^2))","v":22},{"$f":"AE18+AE19+AE20+AE21","v":0},{"$f":"SQRT((AF18^2)+(AF19^2)+(AF20^2)+(AF21^2))","v":22}]
[null,"35.0 percent or more",{"$f":"C22+C23++C24","v":0},{"$f":"SQRT((D22^2)+(D23^2)+(D24^2))","v":19.05255888325765},{"$f":"E22+E23++E24","v":57},{"$f":"SQRT((F22^2)+(F23^2)+(F24^2))","v":66},{"$f":"G22+G23++G24","v":228},{"$f":"SQRT((H22^2)+(H23^2)+(H24^2))","v":104.87134975769121},{"$f":"I22+I23++I24","v":3},{"$f":"SQRT((J22^2)+(J23^2)+(J24^2))","v":16.06237840420901},{"$f":"K22+K23++K24","v":0},{"$f":"SQRT((L22^2)+(L23^2)+(L24^2))","v":19.05255888325765},{"$f":"M22+M23++M24","v":0},{"$f":"SQRT((N22^2)+(N23^2)+(N24^2))","v":19.05255888325765},{"$f":"O22+O23++O24","v":0},{"$f":"SQRT((P22^2)+(P23^2)+(P24^2))","v":19.05255888325765},{"$f":"Q22+Q23++Q24","v":0},{"$f":"SQRT((R22^2)+(R23^2)+(R24^2))","v":19.05255888325765},{"$f":"S22+S23++S24","v":101},{"$f":"SQRT((T22^2)+(T23^2)+(T24^2))","v":82.231380871295116},{"$f":"U22+U23++U24","v":81},{"$f":"SQRT((V22^2)+(V23^2)+(V24^2))","v":94.292099350900017},{"$f":"W22+W23++W24","v":0},{"$f":"SQRT((X22^2)+(X23^2)+(X24^2))","v":19.05255888325765},{"$f":"Y22+Y23++Y24","v":11},{"$f":"SQRT((Z22^2)+(Z23^2)+(Z24^2))","v":23.043437243605826},{"$f":"AA22+AA23++AA24","v":0},{"$f":"SQRT((AB22^2)+(AB23^2)+(AB24^2))","v":19.05255888325765},{"$f":"AC22+AC23++AC24","v":10},{"$f":"SQRT((AD22^2)+(AD23^2)+(AD24^2))","v":22.315913604421397},{"$f":"AE22+AE23++AE24","v":0},{"$f":"SQRT((AF22^2)+(AF23^2)+(AF24^2))","v":11}]
[null,"50.0 percent or more",{"$f":"C24","v":0},{"$f":"D24","v":11},{"$f":"E24","v":57},{"$f":"F24","v":62},{"$f":"G24","v":178},93,{"$f":"I24","v":0},11,{"$f":"K24","v":0},11,{"$f":"M24","v":0},11,{"$f":"O24","v":0},11,{"$f":"Q24","v":0},11,{"$f":"S24","v":88},79,{"$f":"U24","v":0},11,{"$f":"W24","v":0},11,{"$f":"Y24","v":11},17,{"$f":"AA24","v":0},11,{"$f":"AC24","v":10},16,{"$f":"AE24","v":0},0]
[null,"Not Computed",{"$f":"C25","v":0},11,{"$f":"E25","v":0},16,0,18,0,11,0,11,0,11,0,11,0,11,{"$f":"S25","v":11},17,0,11,0,11,0,11,0,11,0,11,0,0]
[null,"$20,000 to $34,999:",2,3,77,62,627,199,5,6,4,4,0,11,2,3,2,3,189,99,21,19,0,11,88,73,11,14,6,6,0,0]
[null,"Less than 30.0 percent",{"$f":"C27+C28+C29","v":0},{"$f":"SQRT((D27^2)+(D28^2)+(D29^2))","v":19.05255888325765},{"$f":"E27+E28+E29","v":8},{"$f":"SQRT((F27^2)+(F28^2)+(F29^2))","v":27.147743920996454},{"$f":"G27+G28+G29","v":92},{"$f":"SQRT((H27^2)+(H28^2)+(H29^2))","v":57.140178508646613},{"$f":"I27+I28+I29","v":0},{"$f":"SQRT((J27^2)+(J28^2)+(J29^2))","v":19.05255888325765},{"$f":"K27+K28+K29","v":0},{"$f":"SQRT((L27^2)+(L28^2)+(L29^2))","v":19.05255888325765},{"$f":"M27+M28+M29","v":0},{"$f":"SQRT((N27^2)+(N28^2)+(N29^2))","v":19.05255888325765},{"$f":"O27+O28+O29","v":0},{"$f":"SQRT((P27^2)+(P28^2)+(P29^2))","v":19.05255888325765},{"$f":"Q27+Q28+Q29","v":0},{"$f":"SQRT((R27^2)+(R28^2)+(R29^2))","v":19.05255888325765},{"$f":"S27+S28+S29","v":25},{"$f":"SQRT((T27^2)+(T28^2)+(T29^2))","v":37.576588456111871},{"$f":"U27+U28+U29","v":0},{"$f":"SQRT((V27^2)+(V28^2)+(V29^2))","v":19.05255888325765},{"$f":"W27+W28+W29","v":0},{"$f":"SQRT((X27^2)+(X28^2)+(X29^2))","v":19.05255888325765},{"$f":"Y27+Y28+Y29","v":0},{"$f":"SQRT((Z27^2)+(Z28^2)+(Z29^2))","v":19.05255888325765},{"$f":"AA27+AA28+AA29","v":0},{"$f":"SQRT((AB27^2)+(AB28^2)+(AB29^2))","v":19.05255888325765},{"$f":"AC27+AC28+AC29","v":0},{"$f":"SQRT((AD27^2)+(AD28^2)+(AD29^2))","v":19.05255888325765},{"$f":"AE27+AE28+AE29","v":0},{"$f":"SQRT((AF27^2)+(AF28^2)+(AF29^2))","v":0}]
[null,"More than 30.0 percent",{"$f":"C30+C31+C32+C33","v":0},{"$f":"SQRT((D30^2)+(D31^2)+(D32^2)+(D33^2))","v":22},{"$f":"E30+E31+E32+E33","v":69},{"$f":"SQRT((F30^2)+(F31^2)+(F32^2)+(F33^2))","v":61.538605769061746},{"$f":"G30+G31+G32+G33","v":527},{"$f":"SQRT((H30^2)+(H31^2)+(H32^2)+(H33^2))","v":183.38484124921558},{"$f":"I30+I31+I32+I33","v":5},{"$f":"SQRT((J30^2)+(J31^2)+(J32^2)+(J33^2))","v":19.974984355438178},{"$f":"K30+K31+K32+K33","v":0},{"$f":"SQRT((L30^2)+(L31^2)+(L32^2)+(L33^2))","v":22},{"$f":"M30+M31+M32+M33","v":0},{"$f":"SQRT((N30^2)+(N31^2)+(N32^2)+(N33^2))","v":22},{"$f":"O30+O31+O32+O33","v":2},{"$f":"SQRT((P30^2)+(P31^2)+(P32^2)+(P33^2))","v":19.28730152198591},{"$f":"Q30+Q31+Q32+Q33","v":0},{"$f":"SQRT((R30^2)+(R31^2)+(R32^2)+(R33^2))","v":22},{"$f":"S30+S31+S32+S33","v":114},{"$f":"SQRT((T30^2)+(T31^2)+(T32^2)+(T33^2))","v":77.601546376344842},{"$f":"U30+U31+U32+U33","v":21},{"$f":"SQRT((V30^2)+(V31^2)+(V32^2)+(V33^2))","v":24.79919353527449},{"$f":"W30+W31+W32+W33","v":0},{"$f":"SQRT((X30^2)+(X31^2)+(X32^2)+(X33^2))","v":22},{"$f":"Y30+Y31+Y32+Y33","v":83},{"$f":"SQRT((Z30^2)+(Z31^2)+(Z32^2)+(Z33^2))","v":75.604232685743199},{"$f":"AA30+AA31+AA32+AA33","v":11},{"$f":"SQRT((AB30^2)+(AB31^2)+(AB32^2)+(AB33^2))","v":20.663978319771825},{"$f":"AC30+AC31+AC32+AC33","v":0},{"$f":"SQRT((AD30^2)+(AD31^2)+(AD32^2)+(AD33^2))","v":22},{"$f":"AE30+AE31+AE32+AE33","v":0},{"$f":"SQRT((AF30^2)+(AF31^2)+(AF32^2)+(AF33^2))","v":0}]
[null,"Less Than 35% of HH Income",{"$f":"C27+C28+C29+C30","v":0},{"$f":"SQRT((D27^2)+(D28^2)+(D29^2)+(D30^2))","v":22},{"$f":"E27+E28+E29+E30","v":23},{"$f":"SQRT((F27^2)+(F28^2)+(F29^2)+(F30^2))","v":36.905284174491868},{"$f":"G27+G28+G29+G30","v":149},{"$f":"SQRT((H27^2)+(H28^2)+(H29^2)+(H30^2))","v":85.052924699859673},{"$f":"I27+I28+I29+I30","v":0},{"$f":"SQRT((J27^2)+(J28^2)+(J29^2)+(J30^2))","v":22},{"$f":"K27+K28+K29+K30","v":0},{"$f":"SQRT((L27^2)+(L28^2)+(L29^2)+(L30^2))","v":22},{"$f":"M27+M28+M29+M30","v":0},{"$f":"SQRT((N27^2)+(N28^2)+(N29^2)+(N30^2))","v":22},{"$f":"O27+O28+O29+O30","v":0},{"$f":"SQRT((P27^2)+(P28^2)+(P29^2)+(P30^2))","v":22},{"$f":"Q27+Q28+Q29+Q30","v":0},{"$f":"SQRT((R27^2)+(R28^2)+(R29^2)+(R30^2))","v":22},{"$f":"S27+S28+S29+S30","v":36},{"$f":"SQRT((T27^2)+(T28^2)+(T29^2)+(T30^2))","v":40.841155713324277},{"$f":"U27+U28+U29+U30","v":0},{"$f":"SQRT((V27^2)+(V28^2)+(V29^2)+(V30^2))","v":22},{"$f":"W27+W28+W29+W30","v":0},{"$f":"SQRT((X27^2)+(X28^2)+(X29^2)+(X30^2))","v":22},{"$f":"Y27+Y28+Y29+Y30","v":28},{"$f":"SQRT((Z27^2)+(Z28^2)+(Z29^2)+(Z30^2))","v":50.714889332423866},{"$f":"AA27+AA28+AA29+AA30","v":0},{"$f":"SQRT((AB27^2)+(AB28^2)+(AB29^2)+(AB30^2))","v":22},{"$f":"AC27+AC28+AC29+AC30","v":0},{"$f":"SQRT((AD27^2)+(AD28^2)+(AD29^2)+(AD30^2))","v":22},{"$f":"AE27+AE28+AE29+AE30","v":0},{"$f":"SQRT((AF27^2)+(AF28^2)+(AF29^2)+(AF30^2))","v":0}]
[null,"35.0 percent or more",{"$f":"C31+C32+C33","v":0},{"$f":"SQRT((D31^2)+(D32^2)+(D33^2))","v":19.05255888325765},{"$f":"E31+E32+E33","v":54},{"$f":"SQRT((F31^2)+(F32^2)+(F33^2))","v":56.231663678038196},{"$f":"G31+G32+G33","v":470},{"$f":"SQRT((H31^2)+(H32^2)+(H33^2))","v":172.22369175000284},{"$f":"I31+I32+I33","v":5},{"$f":"SQRT((J31^2)+(J32^2)+(J33^2))","v":16.673332000533065},{"$f":"K31+K32+K33","v":0},{"$f":"SQRT((L31^2)+(L32^2)+(L33^2))","v":19.05255888325765},{"$f":"M31+M32+M33","v":0},{"$f":"SQRT((N31^2)+(N32^2)+(N33^2))","v":19.05255888325765},{"$f":"O31+O32+O33","v":2},{"$f":"SQRT((P31^2)+(P32^2)+(P33^2))","v":15.842979517754859},{"$f":"Q31+Q32+Q33","v":0},{"$f":"SQRT((R31^2)+(R32^2)+(R33^2))","v":19.05255888325765},{"$f":"S31+S32+S33","v":103},{"$f":"SQRT((T31^2)+(T32^2)+(T33^2))","v":75.934182026278521},{"$f":"U31+U32+U33","v":21},{"$f":"SQRT((V31^2)+(V32^2)+(V33^2))","v":22.22611077089287},{"$f":"W31+W32+W33","v":0},{"$f":"SQRT((X31^2)+(X32^2)+(X33^2))","v":19.05255888325765},{"$f":"Y31+Y32+Y33","v":55},{"$f":"SQRT((Z31^2)+(Z32^2)+(Z33^2))","v":59.219929077971713},{"$f":"AA31+AA32+AA33","v":11},{"$f":"SQRT((AB31^2)+(AB32^2)+(AB33^2))","v":17.4928556845359},{"$f":"AC31+AC32+AC33","v":0},{"$f":"SQRT((AD31^2)+(AD32^2)+(AD33^2))","v":19.05255888325765},{"$f":"AE31+AE32+AE33","v":0},{"$f":"SQRT((AF31^2)+(AF32^2)+(AF33^2))","v":0}]
[null,"50.0 percent or more",{"$f":"C33","v":0},11,{"$f":"E33","v":28},35,218,133,5,6,0,11,0,11,0,11,0,11,{"$f":"S33","v":39},38,16,18,0,11,39,55,8,13,0,11,0,0]
[null,"Not Computed",2,3,0,16,8,12,0,11,4,4,0,11,0,11,2,3,50,64,0,11,0,11,5,8,0,11,6,6,0,0]
[null,"$35,000 to $49,999:",6,5,41,42,435,157,0,11,10,12,0,11,10,10,12,8,50,40,18,15,5,9,66,67,11,9,0,11,0,0]
[null,"Less than 30.0 percent",{"$f":"C36+C37+C38","v":2},{"$f":"SQRT((D36^2)+(D37^2)+(D38^2))","v":15.842979517754859},{"$f":"E36+E37+E38","v":41},{"$f":"SQRT((F36^2)+(F37^2)+(F38^2))","v":47.707441767506253},{"$f":"G36+G37+G38","v":265},{"$f":"SQRT((H36^2)+(H37^2)+(H38^2))","v":106.02358228243375},{"$f":"I36+I37+I38","v":0},{"$f":"SQRT((J36^2)+(J37^2)+(J38^2))","v":19.05255888325765},{"$f":"K36+K37+K38","v":0},{"$f":"SQRT((L36^2)+(L37^2)+(L38^2))","v":19.05255888325765},{"$f":"M36+M37+M38","v":0},{"$f":"SQRT((N36^2)+(N37^2)+(N38^2))","v":19.05255888325765},{"$f":"O36+O37+O38","v":6},{"$f":"SQRT((P36^2)+(P37^2)+(P38^2))","v":18.493242008906929},{"$f":"Q36+Q37+Q38","v":9},{"$f":"SQRT((R36^2)+(R37^2)+(R38^2))","v":7.5498344352707498},{"$f":"S36+S37+S38","v":26},{"$f":"SQRT((T36^2)+(T37^2)+(T38^2))","v":33.120990323358392},{"$f":"U36+U37+U38","v":6},{"$f":"SQRT((V36^2)+(V37^2)+(V38^2))","v":17.4928556845359},{"$f":"W36+W37+W38","v":0},{"$f":"SQRT((X36^2)+(X37^2)+(X38^2))","v":19.05255888325765},{"$f":"Y36+Y37+Y38","v":0},{"$f":"SQRT((Z36^2)+(Z37^2)+(Z38^2))","v":19.05255888325765},{"$f":"AA36+AA37+AA38","v":4},{"$f":"SQRT((AB36^2)+(AB37^2)+(AB38^2))","v":16.673332000533065},{"$f":"AC36+AC37+AC38","v":0},{"$f":"SQRT((AD36^2)+(AD37^2)+(AD38^2))","v":19.05255888325765},{"$f":"AE36+AE37+AE38","v":0},{"$f":"SQRT((AF36^2)+(AF37^2)+(AF38^2))","v":0}]
[null,"More than 30.0 percent",{"$f":"C39+C40+C41+C42","v":4},{"$f":"SQRT((D39^2)+(D40^2)+(D41^2)+(D42^2))","v":16.124515496597098},{"$f":"E39+E40+E41+E42","v":0},{"$f":"SQRT((F39^2)+(F40^2)+(F41^2)+(F42^2))","v":32},{"$f":"G39+G40+G41+G42","v":170},{"$f":"SQRT((H39^2)+(H40^2)+(H41^2)+(H42^2))","v":115.14338886796757},{"$f":"I39+I40+I41+I42","v":0},{"$f":"SQRT((J39^2)+(J40^2)+(J41^2)+(J42^2))","v":22},{"$f":"K39+K40+K41+K42","v":8},{"$f":"SQRT((L39^2)+(L40^2)+(L41^2)+(L42^2))","v":22.516660498395403},{"$f":"M39+M40+M41+M42","v":0},{"$f":"SQRT((N39^2)+(N40^2)+(N41^2)+(N42^2))","v":22},{"$f":"O39+O40+O41+O42","v":4},{"$f":"SQRT((P39^2)+(P40^2)+(P41^2)+(P42^2))","v":16.124515496597098},{"$f":"Q39+Q40+Q41+Q42","v":3},{"$f":"SQRT((R39^2)+(R40^2)+(R41^2)+(R42^2))","v":19.697715603592208},{"$f":"S39+S40+S41+S42","v":24},{"$f":"SQRT((T39^2)+(T40^2)+(T41^2)+(T42^2))","v":35.242020373412188},{"$f":"U39+U40+U41+U42","v":12},{"$f":"SQRT((V39^2)+(V40^2)+(V41^2)+(V42^2))","v":20.149441679609886},{"$f":"W39+W40+W41+W42","v":5},{"$f":"SQRT((X39^2)+(X40^2)+(X41^2)+(X42^2))","v":21.071307505705477},{"$f":"Y39+Y40+Y41+Y42","v":66},{"$f":"SQRT((Z39^2)+(Z40^2)+(Z41^2)+(Z42^2))","v":69.043464571239468},{"$f":"AA39+AA40+AA41+AA42","v":4},{"$f":"SQRT((AB39^2)+(AB40^2)+(AB41^2)+(AB42^2))","v":19.697715603592208},{"$f":"AC39+AC40+AC41+AC42","v":0},{"$f":"SQRT((AD39^2)+(AD40^2)+(AD41^2)+(AD42^2))","v":22},{"$f":"AE39+AE40+AE41+AE42","v":0},{"$f":"SQRT((AF39^2)+(AF40^2)+(AF41^2)+(AF42^2))","v":0}]
[null,"Less Than 35% of HH Income",{"$f":"C36+C37+C38+C39","v":4},{"$f":"SQRT((D36^2)+(D37^2)+(D38^2)+(D39^2))","v":16.124515496597098},{"$f":"E36+E37+E38+E39","v":41},{"$f":"SQRT((F36^2)+(F37^2)+(F38^2)+(F39^2))","v":50.318982501636498},{"$f":"G36+G37+G38+G39","v":351},{"$f":"SQRT((H36^2)+(H37^2)+(H38^2)+(H39^2))","v":137.14955340794953},{"$f":"I36+I37+I38+I39","v":0},{"$f":"SQRT((J36^2)+(J37^2)+(J38^2)+(J39^2))","v":22},{"$f":"K36+K37+K38+K39","v":8},{"$f":"SQRT((L36^2)+(L37^2)+(L38^2)+(L39^2))","v":22.516660498395403},{"$f":"M36+M37+M38+M39","v":0},{"$f":"SQRT((N36^2)+(N37^2)+(N38^2)+(N39^2))","v":22},{"$f":"O36+O37+O38+O39","v":8},{"$f":"SQRT((P36^2)+(P37^2)+(P38^2)+(P39^2))","v":18.734993995195193},{"$f":"Q36+Q37+Q38+Q39","v":9},{"$f":"SQRT((R36^2)+(R37^2)+(R38^2)+(R39^2))","v":13.341664064126334},{"$f":"S36+S37+S38+S39","v":26},{"$f":"SQRT((T36^2)+(T37^2)+(T38^2)+(T39^2))","v":36.783148315499041},{"$f":"U36+U37+U38+U39","v":11},{"$f":"SQRT((V36^2)+(V37^2)+(V38^2)+(V39^2))","v":19.235384061671343},{"$f":"W36+W37+W38+W39","v":0},{"$f":"SQRT((X36^2)+(X37^2)+(X38^2)+(X39^2))","v":22},{"$f":"Y36+Y37+Y38+Y39","v":58},{"$f":"SQRT((Z36^2)+(Z37^2)+(Z38^2)+(Z39^2))","v":68.694977982382383},{"$f":"AA36+AA37+AA38+AA39","v":4},{"$f":"SQRT((AB36^2)+(AB37^2)+(AB38^2)+(AB39^2))","v":19.974984355438178},{"$f":"AC36+AC37+AC38+AC39","v":0},{"$f":"SQRT((AD36^2)+(AD37^2)+(AD38^2)+(AD39^2))","v":22},{"$f":"AE36+AE37+AE38+AE39","v":0},{"$f":"SQRT((AF36^2)+(AF37^2)+(AF38^2)+(AF39^2))","v":0}]
[null,"35.0 percent or more",{"$f":"C40+C41+C42","v":2},{"$f":"SQRT((D40^2)+(D41^2)+(D42^2))","v":15.842979517754859},{"$f":"E40+E41+E42","v":0},{"$f":"SQRT((F40^2)+(F41^2)+(F42^2))","v":27.712812921102035},{"$f":"G40+G41+G42","v":84},{"$f":"SQRT((H40^2)+(H41^2)+(H42^2))","v":75.425459892532302},{"$f":"I40+I41+I42","v":0},{"$f":"SQRT((J40^2)+(J41^2)+(J42^2))","v":19.05255888325765},{"$f":"K40+K41+K42","v":0},{"$f":"SQRT((L40^2)+(L41^2)+(L42^2))","v":19.05255888325765},{"$f":"M40+M41+M42","v":0},{"$f":"SQRT((N40^2)+(N41^2)+(N42^2))","v":19.05255888325765},{"$f":"O40+O41+O42","v":2},{"$f":"SQRT((P40^2)+(P41^2)+(P42^2))","v":15.842979517754859},{"$f":"Q40+Q41+Q42","v":3},{"$f":"SQRT((R40^2)+(R41^2)+(R42^2))","v":16.340134638368191},{"$f":"S40+S41+S42","v":24},{"$f":"SQRT((T40^2)+(T41^2)+(T42^2))","v":31.400636936215164},{"$f":"U40+U41+U42","v":7},{"$f":"SQRT((V40^2)+(V41^2)+(V42^2))","v":18.493242008906929},{"$f":"W40+W41+W42","v":5},{"$f":"SQRT((X40^2)+(X41^2)+(X42^2))","v":17.972200755611428},{"$f":"Y40+Y41+Y42","v":8},{"$f":"SQRT((Z40^2)+(Z41^2)+(Z42^2))","v":20.273134932713294},{"$f":"AA40+AA41+AA42","v":4},{"$f":"SQRT((AB40^2)+(AB41^2)+(AB42^2))","v":16.340134638368191},{"$f":"AC40+AC41+AC42","v":0},{"$f":"SQRT((AD40^2)+(AD41^2)+(AD42^2))","v":19.05255888325765},{"$f":"AE40+AE41+AE42","v":0},{"$f":"SQRT((AF40^2)+(AF41^2)+(AF42^2))","v":0}]
[null,"50.0 percent or more",{"$f":"C42","v":2},{"$f":"D42","v":3},{"$f":"E42","v":0},{"$f":"F42","v":16},{"$f":"G42","v":0},18,{"$f":"I42","v":0},11,{"$f":"K42","v":0},11,{"$f":"M42","v":0},11,{"$f":"O42","v":0},11,{"$f":"Q42","v":0},11,{"$f":"S42","v":14},21,{"$f":"U42","v":0},11,{"$f":"W42","v":0},11,{"$f":"Y42","v":0},11,{"$f":"AA42","v":0},11,{"$f":"AC42","v":0},11,{"$f":"AE42","v":0},0]
[null,"Not Computed",{"$f":"C43","v":0},11,{"$f":"E43","v":0},16,{"$f":"G43","v":0},18,{"$f":"I43","v":0},11,{"$f":"K43","v":2},3,{"$f":"M43","v":0},11,{"$f":"O43","v":0},11,{"$f":"Q43","v":0},11,{"$f":"S43","v":0},16,{"$f":"U43","v":0},11,{"$f":"W43","v":0},11,{"$f":"Y43","v":0},11,{"$f":"AA43","v":3},4,{"$f":"AC43","v":0},11,{"$f":"AE43","v":0},0]
[null,"$50,000 to $74,999:",{"$f":"C44","v":8},10,{"$f":"E44","v":45},52,311,115,15,15,15,15,40,35,13,14,12,14,158,116,41,38,7,8,84,59,8,9,16,16,0,0]
[null,"Less than 30.0 percent",{"$f":"C45+C46+C47","v":14},{"$f":"SQRT((D45^2)+(D46^2)+(D47^2))","v":32.264531609803356},{"$f":"E45+E46+E47","v":287},{"$f":"SQRT((F45^2)+(F46^2)+(F47^2))","v":113.37548235840057},{"$f":"G45+G46+G47","v":15},{"$f":"SQRT((H45^2)+(H46^2)+(H47^2))","v":18.601075237738275},{"$f":"I45+I46+I47","v":13},{"$f":"SQRT((J45^2)+(J46^2)+(J47^2))","v":19.261360284258224},{"$f":"K45+K46+K47","v":23},{"$f":"SQRT((L45^2)+(L46^2)+(L47^2))","v":40.137264480778953},{"$f":"M45+M46+M47","v":13},{"$f":"SQRT((N45^2)+(N46^2)+(N47^2))","v":17.972200755611428},{"$f":"O45+O46+O47","v":12},{"$f":"SQRT((P45^2)+(P46^2)+(P47^2))","v":17.4928556845359},{"$f":"Q45+Q46+Q47","v":109},{"$f":"SQRT((R45^2)+(R46^2)+(R47^2))","v":99.35793878699377},{"$f":"S45+S46+S47","v":5},{"$f":"SQRT((T45^2)+(T46^2)+(T47^2))","v":17.058722109231979},{"$f":"U45+U46+U47","v":0},{"$f":"SQRT((V45^2)+(V46^2)+(V47^2))","v":19.05255888325765},{"$f":"W45+W46+W47","v":61},{"$f":"SQRT((X45^2)+(X46^2)+(X47^2))","v":45.891175622335062},{"$f":"Y45+Y46+Y47","v":8},{"$f":"SQRT((Z45^2)+(Z46^2)+(Z47^2))","v":14.177446878757825},{"$f":"AA45+AA46+AA47","v":13},{"$f":"SQRT((AB45^2)+(AB46^2)+(AB47^2))","v":21.61018278497431},{"$f":"AC45+AC46+AC47","v":0},{"$f":"SQRT((AD45^2)+(AD46^2)+(AD47^2))","v":0},{"$f":"AE45+AE46+AE47","v":0},{"$f":"SQRT((AF45^2)+(AF46^2)+(AF47^2))","v":0}]
[null,"More than 30.0 percent",{"$f":"C48+C49+C50+C51","v":0},{"$f":"SQRT((D48^2)+(D49^2)+(D50^2)+(D51^2))","v":32},{"$f":"E48+E49+E50+E51","v":24},{"$f":"SQRT((F48^2)+(F49^2)+(F50^2)+(F51^2))","v":54.74486277268398},{"$f":"G48+G49+G50+G51","v":0},{"$f":"SQRT((H48^2)+(H49^2)+(H50^2)+(H51^2))","v":22},{"$f":"I48+I49+I50+I51","v":0},{"$f":"SQRT((J48^2)+(J49^2)+(J50^2)+(J51^2))","v":22},{"$f":"K48+K49+K50+K51","v":17},{"$f":"SQRT((L48^2)+(L49^2)+(L50^2)+(L51^2))","v":30.643106892089126},{"$f":"M48+M49+M50+M51","v":0},{"$f":"SQRT((N48^2)+(N49^2)+(N50^2)+(N51^2))","v":22},{"$f":"O48+O49+O50+O51","v":0},{"$f":"SQRT((P48^2)+(P49^2)+(P50^2)+(P51^2))","v":22},{"$f":"Q48+Q49+Q50+Q51","v":49},{"$f":"SQRT((R48^2)+(R49^2)+(R50^2)+(R51^2))","v":71.582120672693122},{"$f":"S48+S49+S50+S51","v":36},{"$f":"SQRT((T48^2)+(T49^2)+(T50^2)+(T51^2))","v":42.638011210655684},{"$f":"U48+U49+U50+U51","v":0},{"$f":"SQRT((V48^2)+(V49^2)+(V50^2)+(V51^2))","v":22},{"$f":"W48+W49+W50+W51","v":23},{"$f":"SQRT((X48^2)+(X49^2)+(X50^2)+(X51^2))","v":38.105117766515299},{"$f":"Y48+Y49+Y50+Y51","v":0},{"$f":"SQRT((Z48^2)+(Z49^2)+(Z50^2)+(Z51^2))","v":22},{"$f":"AA48+AA49+AA50+AA51","v":0},{"$f":"SQRT((AB48^2)+(AB49^2)+(AB50^2)+(AB51^2))","v":22},{"$f":"AC48+AC49+AC50+AC51","v":0},{"$f":"SQRT((AD48^2)+(AD49^2)+(AD50^2)+(AD51^2))","v":0},{"$f":"AE48+AE49+AE50+AE51","v":0},{"$f":"SQRT((AF48^2)+(AF49^2)+(AF50^2)+(AF51^2))","v":0}]
[null,"Less Than 35% of HH Income",{"$f":"C48+C47+C46+C45","v":14},{"$f":"SQRT((D48^2)+(D47^2)+(D46^2)+(D45^2))","v":36.013886210738214},{"$f":"E48+E47+E46+E45","v":311},{"$f":"SQRT((F48^2)+(F47^2)+(F46^2)+(F45^2))","v":121.97950647547317},{"$f":"G48+G47+G46+G45","v":15},{"$f":"SQRT((H48^2)+(H47^2)+(H46^2)+(H45^2))","v":21.61018278497431},{"$f":"I48+I47+I46+I45","v":13},{"$f":"SQRT((J48^2)+(J47^2)+(J46^2)+(J45^2))","v":22.181073012818835},{"$f":"K48+K47+K46+K45","v":23},{"$f":"SQRT((L48^2)+(L47^2)+(L46^2)+(L45^2))","v":41.617304093369626},{"$f":"M48+M47+M46+M45","v":13},{"$f":"SQRT((N48^2)+(N47^2)+(N46^2)+(N45^2))","v":21.071307505705477},{"$f":"O48+O47+O46+O45","v":12},{"$f":"SQRT((P48^2)+(P47^2)+(P46^2)+(P45^2))","v":20.663978319771825},{"$f":"Q48+Q47+Q46+Q45","v":158},{"$f":"SQRT((R48^2)+(R47^2)+(R46^2)+(R45^2))","v":119.28118040998756},{"$f":"S48+S47+S46+S45","v":22},{"$f":"SQRT((T48^2)+(T47^2)+(T46^2)+(T45^2))","v":31.096623610932426},{"$f":"U48+U47+U46+U45","v":0},{"$f":"SQRT((V48^2)+(V47^2)+(V46^2)+(V45^2))","v":22},{"$f":"W48+W47+W46+W45","v":84},{"$f":"SQRT((X48^2)+(X47^2)+(X46^2)+(X45^2))","v":56.524331044250317},{"$f":"Y48+Y47+Y46+Y45","v":8},{"$f":"SQRT((Z48^2)+(Z47^2)+(Z46^2)+(Z45^2))","v":17.944358444926362},{"$f":"AA48+AA47+AA46+AA45","v":13},{"$f":"SQRT((AB48^2)+(AB47^2)+(AB46^2)+(AB45^2))","v":24.248711305964282},{"$f":"AC48+AC47+AC46+AC45","v":0},{"$f":"SQRT((AD48^2)+(AD47^2)+(AD46^2)+(AD45^2))","v":0},{"$f":"AE48+AE47+AE46+AE45","v":0},{"$f":"SQRT((AF48^2)+(AF47^2)+(AF46^2)+(AF45^2))","v":0}]
[null,"35.0 percent or more",{"$f":"C49+C50+C51","v":0},{"$f":"SQRT((D49^2)+(D50^2)+(D51^2))","v":27.712812921102035},{"$f":"E49+E50+E51","v":0},{"$f":"SQRT((F49^2)+(F50^2)+(F51^2))","v":31.176914536239792},{"$f":"G49+G50+G51","v":0},{"$f":"SQRT((H49^2)+(H50^2)+(H51^2))","v":19.05255888325765},{"$f":"I49+I50+I51","v":0},{"$f":"SQRT((J49^2)+(J50^2)+(J51^2))","v":19.05255888325765},{"$f":"K49+K50+K51","v":17},{"$f":"SQRT((L49^2)+(L50^2)+(L51^2))","v":28.600699292150182},{"$f":"M49+M50+M51","v":0},{"$f":"SQRT((N49^2)+(N50^2)+(N51^2))","v":19.05255888325765},{"$f":"O49+O50+O51","v":0},{"$f":"SQRT((P49^2)+(P50^2)+(P51^2))","v":19.05255888325765},{"$f":"Q49+Q50+Q51","v":0},{"$f":"SQRT((R49^2)+(R50^2)+(R51^2))","v":27.712812921102035},{"$f":"S49+S50+S51","v":19},{"$f":"SQRT((T49^2)+(T50^2)+(T51^2))","v":33.793490497431605},{"$f":"U49+U50+U51","v":0},{"$f":"SQRT((V49^2)+(V50^2)+(V51^2))","v":19.05255888325765},{"$f":"W49+W50+W51","v":0},{"$f":"SQRT((X49^2)+(X50^2)+(X51^2))","v":19.05255888325765},{"$f":"Y49+Y50+Y51","v":0},{"$f":"SQRT((Z49^2)+(Z50^2)+(Z51^2))","v":19.05255888325765},{"$f":"AA49+AA50+AA51","v":0},{"$f":"SQRT((AB49^2)+(AB50^2)+(AB51^2))","v":19.05255888325765},{"$f":"AC49+AC50+AC51","v":0},{"$f":"SQRT((AD49^2)+(AD50^2)+(AD51^2))","v":0},{"$f":"AE49+AE50+AE51","v":0},{"$f":"SQRT((AF49^2)+(AF50^2)+(AF51^2))","v":0}]
[null,"50.0 percent or more",{"$f":"C51","v":0},{"$f":"D51","v":16},{"$f":"E51","v":0},{"$f":"F51","v":18},{"$f":"G51","v":0},11,{"$f":"I51","v":0},11,{"$f":"K51","v":0},11,{"$f":"M51","v":0},11,{"$f":"O51","v":0},11,{"$f":"Q51","v":0},16,{"$f":"S51","v":0},11,{"$f":"U51","v":0},11,{"$f":"W51","v":0},11,{"$f":"Y51","v":0},11,{"$f":"AA51","v":0},11,{"$f":"AC51","v":0},0,{"$f":"AE51","v":0},0]
[null,"Not Computed",{"$f":"C52","v":31},47,{"$f":"E52","v":0},18,{"$f":"G52","v":0},11,{"$f":"I52","v":2},4,{"$f":"K52","v":0},11,{"$f":"M52","v":0},11,{"$f":"O52","v":0},11,{"$f":"Q52","v":0},16,{"$f":"S52","v":0},11,{"$f":"U52","v":7},8,{"$f":"W52","v":0},11,{"$f":"Y52","v":0},11,{"$f":"AA52","v":3},4,{"$f":"AC52","v":0},0,{"$f":"AE52","v":0},0]
[null,"$75,000 to $99,999:",{"$f":"C53","v":109},97,{"$f":"E53","v":253},133,{"$f":"G53","v":2},4,{"$f":"I53","v":8},7,{"$f":"K53","v":15},23,{"$f":"M53","v":0},11,{"$f":"O53","v":0},11,{"$f":"Q53","v":74},58,{"$f":"S53","v":0},11,{"$f":"U53","v":24},29,{"$f":"W53","v":0},11,{"$f":"Y53","v":0},11,{"$f":"AA53","v":0},11,{"$f":"AC53","v":0},0,{"$f":"AE53","v":0},0]
[null,"Less than 30.0 percent",{"$f":"C54+C55+C56","v":109},{"$f":"SQRT((D54^2)+(D55^2)+(D56^2))","v":99.604216778206734},{"$f":"E54+E55+E56","v":253},{"$f":"SQRT((F54^2)+(F55^2)+(F56^2))","v":134.74791278531924},{"$f":"G54+G55+G56","v":0},{"$f":"SQRT((H54^2)+(H55^2)+(H56^2))","v":19.05255888325765},{"$f":"I54+I55+I56","v":8},{"$f":"SQRT((J54^2)+(J55^2)+(J56^2))","v":17.058722109231979},{"$f":"K54+K55+K56","v":15},{"$f":"SQRT((L54^2)+(L55^2)+(L56^2))","v":27.766886753829642},{"$f":"M54+M55+M56","v":0},{"$f":"SQRT((N54^2)+(N55^2)+(N56^2))","v":19.05255888325765},{"$f":"O54+O55+O56","v":0},{"$f":"SQRT((P54^2)+(P55^2)+(P56^2))","v":19.05255888325765},{"$f":"Q54+Q55+Q56","v":74},{"$f":"SQRT((R54^2)+(R55^2)+(R56^2))","v":60.108235708594876},{"$f":"S54+S55+S56","v":0},{"$f":"SQRT((T54^2)+(T55^2)+(T56^2))","v":19.05255888325765},{"$f":"U54+U55+U56","v":24},{"$f":"SQRT((V54^2)+(V55^2)+(V56^2))","v":32.908965343808667},{"$f":"W54+W55+W56","v":0},{"$f":"SQRT((X54^2)+(X55^2)+(X56^2))","v":19.05255888325765},{"$f":"Y54+Y55+Y56","v":0},{"$f":"SQRT((Z54^2)+(Z55^2)+(Z56^2))","v":19.05255888325765},{"$f":"AA54+AA55+AA56","v":0},{"$f":"SQRT((AB54^2)+(AB55^2)+(AB56^2))","v":19.05255888325765},{"$f":"AC54+AC55+AC56","v":0},{"$f":"SQRT((AD54^2)+(AD55^2)+(AD56^2))","v":0},{"$f":"AE54+AE55+AE56","v":0},{"$f":"SQRT((AF54^2)+(AF55^2)+(AF56^2))","v":0}]
[null,"More than 30.0 percent",{"$f":"C57+C58+C59+C60","v":0},{"$f":"SQRT((D57^2)+(D58^2)+(D59^2)+(D60^2))","v":32},{"$f":"E57+E58+E59+E60","v":0},{"$f":"SQRT((F57^2)+(F58^2)+(F59^2)+(F60^2))","v":36},{"$f":"G57+G58+G59+G60","v":0},{"$f":"SQRT((H57^2)+(H58^2)+(H59^2)+(H60^2))","v":22},{"$f":"I57+I58+I59+I60","v":0},{"$f":"SQRT((J57^2)+(J58^2)+(J59^2)+(J60^2))","v":22},{"$f":"K57+K58+K59+K60","v":0},{"$f":"SQRT((L57^2)+(L58^2)+(L59^2)+(L60^2))","v":22},{"$f":"M57+M58+M59+M60","v":0},{"$f":"SQRT((N57^2)+(N58^2)+(N59^2)+(N60^2))","v":22},{"$f":"O57+O58+O59+O60","v":0},{"$f":"SQRT((P57^2)+(P58^2)+(P59^2)+(P60^2))","v":22},{"$f":"Q57+Q58+Q59+Q60","v":0},{"$f":"SQRT((R57^2)+(R58^2)+(R59^2)+(R60^2))","v":32},{"$f":"S57+S58+S59+S60","v":0},{"$f":"SQRT((T57^2)+(T58^2)+(T59^2)+(T60^2))","v":22},{"$f":"U57+U58+U59+U60","v":0},{"$f":"SQRT((V57^2)+(V58^2)+(V59^2)+(V60^2))","v":22},{"$f":"W57+W58+W59+W60","v":0},{"$f":"SQRT((X57^2)+(X58^2)+(X59^2)+(X60^2))","v":22},{"$f":"Y57+Y58+Y59+Y60","v":0},{"$f":"SQRT((Z57^2)+(Z58^2)+(Z59^2)+(Z60^2))","v":22},{"$f":"AA57+AA58+AA59+AA60","v":0},{"$f":"SQRT((AB57^2)+(AB58^2)+(AB59^2)+(AB60^2))","v":22},{"$f":"AC57+AC58+AC59+AC60","v":0},{"$f":"SQRT((AD57^2)+(AD58^2)+(AD59^2)+(AD60^2))","v":0},{"$f":"AE57+AE58+AE59+AE60","v":0},{"$f":"SQRT((AF57^2)+(AF58^2)+(AF59^2)+(AF60^2))","v":0}]
[null,"Less Than 35% of HH Income",{"$f":"C54+C55+C56+C57","v":109},{"$f":"SQRT((D54^2)+(D55^2)+(D56^2)+(D57^2))","v":100.88111815399351},{"$f":"E54+E55+E56+E57","v":253},{"$f":"SQRT((F54^2)+(F55^2)+(F56^2)+(F57^2))","v":135.94484175576505},{"$f":"G54+G55+G56+G57","v":0},{"$f":"SQRT((H54^2)+(H55^2)+(H56^2)+(H57^2))","v":22},{"$f":"I54+I55+I56+I57","v":8},{"$f":"SQRT((J54^2)+(J55^2)+(J56^2)+(J57^2))","v":20.297783130184438},{"$f":"K54+K55+K56+K57","v":15},{"$f":"SQRT((L54^2)+(L55^2)+(L56^2)+(L57^2))","v":29.866369046136157},{"$f":"M54+M55+M56+M57","v":0},{"$f":"SQRT((N54^2)+(N55^2)+(N56^2)+(N57^2))","v":22},{"$f":"O54+O55+O56+O57","v":0},{"$f":"SQRT((P54^2)+(P55^2)+(P56^2)+(P57^2))","v":22},{"$f":"Q54+Q55+Q56+Q57","v":74},{"$f":"SQRT((R54^2)+(R55^2)+(R56^2)+(R57^2))","v":62.201286160335947},{"$f":"S54+S55+S56+S57","v":0},{"$f":"SQRT((T54^2)+(T55^2)+(T56^2)+(T57^2))","v":22},{"$f":"U54+U55+U56+U57","v":24},{"$f":"SQRT((V54^2)+(V55^2)+(V56^2)+(V57^2))","v":34.698703145794944},{"$f":"W54+W55+W56+W57","v":0},{"$f":"SQRT((X54^2)+(X55^2)+(X56^2)+(X57^2))","v":22},{"$f":"Y54+Y55+Y56+Y57","v":0},{"$f":"SQRT((Z54^2)+(Z55^2)+(Z56^2)+(Z57^2))","v":22},{"$f":"AA54+AA55+AA56+AA57","v":0},{"$f":"SQRT((AB54^2)+(AB55^2)+(AB56^2)+(AB57^2))","v":22},{"$f":"AC54+AC55+AC56+AC57","v":0},{"$f":"SQRT((AD54^2)+(AD55^2)+(AD56^2)+(AD57^2))","v":0},{"$f":"AE54+AE55+AE56+AE57","v":0},{"$f":"SQRT((AF54^2)+(AF55^2)+(AF56^2)+(AF57^2))","v":0}]
[null,"35.0 percent or more",{"$f":"C58+C59+C60","v":0},{"$f":"SQRT((D58^2)+(D59^2)+(D60^2))","v":27.712812921102035},{"$f":"E58+E59+E60","v":0},{"$f":"SQRT((F58^2)+(F59^2)+(F60^2))","v":31.176914536239792},{"$f":"G58+G59+G60","v":0},{"$f":"SQRT((H58^2)+(H59^2)+(H60^2))","v":19.05255888325765},{"$f":"I58+I59+I60","v":0},{"$f":"SQRT((J58^2)+(J59^2)+(J60^2))","v":19.05255888325765},{"$f":"K58+K59+K60","v":0},{"$f":"SQRT((L58^2)+(L59^2)+(L60^2))","v":19.05255888325765},{"$f":"M58+M59+M60","v":0},{"$f":"SQRT((N58^2)+(N59^2)+(N60^2))","v":19.05255888325765},{"$f":"O58+O59+O60","v":0},{"$f":"SQRT((P58^2)+(P59^2)+(P60^2))","v":19.05255888325765},{"$f":"Q58+Q59+Q60","v":0},{"$f":"SQRT((R58^2)+(R59^2)+(R60^2))","v":27.712812921102035},{"$f":"S58+S59+S60","v":0},{"$f":"SQRT((T58^2)+(T59^2)+(T60^2))","v":19.05255888325765},{"$f":"U58+U59+U60","v":0},{"$f":"SQRT((V58^2)+(V59^2)+(V60^2))","v":19.05255888325765},{"$f":"W58+W59+W60","v":0},{"$f":"SQRT((X58^2)+(X59^2)+(X60^2))","v":19.05255888325765},{"$f":"Y58+Y59+Y60","v":0},{"$f":"SQRT((Z58^2)+(Z59^2)+(Z60^2))","v":19.05255888325765},{"$f":"AA58+AA59+AA60","v":0},{"$f":"SQRT((AB58^2)+(AB59^2)+(AB60^2))","v":19.05255888325765},{"$f":"AC58+AC59+AC60","v":0},{"$f":"SQRT((AD58^2)+(AD59^2)+(AD60^2))","v":0},{"$f":"AE58+AE59+AE60","v":0},{"$f":"SQRT((AF58^2)+(AF59^2)+(AF60^2))","v":0}]
[null,"50.0 percent or more",{"$f":"C60","v":0},16,{"$f":"E60","v":0},18,0,11,0,11,0,11,0,11,0,11,0,16,{"$f":"S60","v":0},11,0,11,0,11,0,11,0,11,0,0,0,0]
[null,"Not Computed",0,16,0,18,2,4,0,11,0,11,0,11,0,11,0,16,0,11,0,11,0,11,0,11,0,11,0,0,0,0]
[null,"$100,000 or more:",82,76,95,57,6,10,0,11,85,80,8,9,0,11,52,42,28,30,0,11,36,29,5,7,6,14,0,0,0,0]
[null,"Less than 30.0 percent",{"$f":"C63+C64+C65","v":82},{"$f":"SQRT((D63^2)+(D64^2)+(D65^2))","v":79.296910406396037},{"$f":"E63+E64+E65","v":95},{"$f":"SQRT((F63^2)+(F64^2)+(F65^2))","v":62.425956140054431},{"$f":"G63+G64+G65","v":6},{"$f":"SQRT((H63^2)+(H64^2)+(H65^2))","v":18.493242008906929},{"$f":"I63+I64+I65","v":0},{"$f":"SQRT((J63^2)+(J64^2)+(J65^2))","v":19.05255888325765},{"$f":"K63+K64+K65","v":85},{"$f":"SQRT((L63^2)+(L64^2)+(L65^2))","v":81.498466243236749},{"$f":"M63+M64+M65","v":5},{"$f":"SQRT((N63^2)+(N64^2)+(N65^2))","v":17.4928556845359},{"$f":"O63+O64+O65","v":0},{"$f":"SQRT((P63^2)+(P64^2)+(P65^2))","v":19.05255888325765},{"$f":"Q63+Q64+Q65","v":52},{"$f":"SQRT((R63^2)+(R64^2)+(R65^2))","v":47.707441767506253},{"$f":"S63+S64+S65","v":28},{"$f":"SQRT((T63^2)+(T64^2)+(T65^2))","v":33.793490497431605},{"$f":"U63+U64+U65","v":0},{"$f":"SQRT((V63^2)+(V64^2)+(V65^2))","v":19.05255888325765},{"$f":"W63+W64+W65","v":36},{"$f":"SQRT((X63^2)+(X64^2)+(X65^2))","v":32.388269481403292},{"$f":"Y63+Y64+Y65","v":0},{"$f":"SQRT((Z63^2)+(Z64^2)+(Z65^2))","v":19.05255888325765},{"$f":"AA63+AA64+AA65","v":6},{"$f":"SQRT((AB63^2)+(AB64^2)+(AB65^2))","v":20.928449536456348},{"$f":"AC63+AC64+AC65","v":0},{"$f":"SQRT((AD63^2)+(AD64^2)+(AD65^2))","v":0},{"$f":"AE63+AE64+AE65","v":0},{"$f":"SQRT((AF63^2)+(AF64^2)+(AF65^2))","v":0}]
[null,"More than 30.0 percent",{"$f":"C66+C67+C68+C69","v":0},{"$f":"SQRT((D66^2)+(D67^2)+(D68^2)+(D69^2))","v":32},{"$f":"E66+E67+E68+E69","v":0},{"$f":"SQRT((F66^2)+(F67^2)+(F68^2)+(F69^2))","v":36},{"$f":"G66+G67+G68+G69","v":0},{"$f":"SQRT((H66^2)+(H67^2)+(H68^2)+(H69^2))","v":22},{"$f":"I66+I67+I68+I69","v":0},{"$f":"SQRT((J66^2)+(J67^2)+(J68^2)+(J69^2))","v":22},{"$f":"K66+K67+K68+K69","v":0},{"$f":"SQRT((L66^2)+(L67^2)+(L68^2)+(L69^2))","v":22},{"$f":"M66+M67+M68+M69","v":0},{"$f":"SQRT((N66^2)+(N67^2)+(N68^2)+(N69^2))","v":22},{"$f":"O66+O67+O68+O69","v":0},{"$f":"SQRT((P66^2)+(P67^2)+(P68^2)+(P69^2))","v":22},{"$f":"Q66+Q67+Q68+Q69","v":0},{"$f":"SQRT((R66^2)+(R67^2)+(R68^2)+(R69^2))","v":32},{"$f":"S66+S67+S68+S69","v":0},{"$f":"SQRT((T66^2)+(T67^2)+(T68^2)+(T69^2))","v":22},{"$f":"U66+U67+U68+U69","v":0},{"$f":"SQRT((V66^2)+(V67^2)+(V68^2)+(V69^2))","v":22},{"$f":"W66+W67+W68+W69","v":0},{"$f":"SQRT((X66^2)+(X67^2)+(X68^2)+(X69^2))","v":22},{"$f":"Y66+Y67+Y68+Y69","v":0},{"$f":"SQRT((Z66^2)+(Z67^2)+(Z68^2)+(Z69^2))","v":22},{"$f":"AA66+AA67+AA68+AA69","v":0},{"$f":"SQRT((AB66^2)+(AB67^2)+(AB68^2)+(AB69^2))","v":22},{"$f":"AC66+AC67+AC68+AC69","v":0},{"$f":"SQRT((AD66^2)+(AD67^2)+(AD68^2)+(AD69^2))","v":0},{"$f":"AE66+AE67+AE68+AE69","v":0},{"$f":"SQRT((AF66^2)+(AF67^2)+(AF68^2)+(AF69^2))","v":0}]
[null,"Less Than 35% of HH Income",{"$f":"C63+C64+C65+C66","v":82},{"$f":"SQRT(((D63^2)+(D64^2)+(D65^2)+(D66^2)))","v":80.894993664626739},{"$f":"E63+E64+E65+E66","v":95},{"$f":"SQRT(((F63^2)+(F64^2)+(F65^2)+(F66^2)))","v":64.969223483123145},{"$f":"G63+G64+G65+G66","v":6},{"$f":"SQRT(((H63^2)+(H64^2)+(H65^2)+(H66^2)))","v":21.517434791350013},{"$f":"I63+I64+I65+I66","v":0},{"$f":"SQRT(((J63^2)+(J64^2)+(J65^2)+(J66^2)))","v":22},{"$f":"K63+K64+K65+K66","v":85},{"$f":"SQRT(((L63^2)+(L64^2)+(L65^2)+(L66^2)))","v":82.237461050302372},{"$f":"M63+M64+M65+M66","v":5},{"$f":"SQRT(((N63^2)+(N64^2)+(N65^2)+(N66^2)))","v":20.663978319771825},{"$f":"O63+O64+O65+O66","v":0},{"$f":"SQRT(((P63^2)+(P64^2)+(P65^2)+(P66^2)))","v":22},{"$f":"Q63+Q64+Q65+Q66","v":52},{"$f":"SQRT(((R63^2)+(R64^2)+(R65^2)+(R66^2)))","v":50.318982501636498},{"$f":"S63+S64+S65+S66","v":28},{"$f":"SQRT(((T63^2)+(T64^2)+(T65^2)+(T66^2)))","v":35.538711287833721},{"$f":"U63+U64+U65+U66","v":0},{"$f":"SQRT(((V63^2)+(V64^2)+(V65^2)+(V66^2)))","v":22},{"$f":"W63+W64+W65+W66","v":36},{"$f":"SQRT(((X63^2)+(X64^2)+(X65^2)+(X66^2)))","v":34.205262752974143},{"$f":"Y63+Y64+Y65+Y66","v":0},{"$f":"SQRT(((Z63^2)+(Z64^2)+(Z65^2)+(Z66^2)))","v":22},{"$f":"AA63+AA64+AA65+AA66","v":6},{"$f":"SQRT(((AB63^2)+(AB64^2)+(AB65^2)+(AB66^2)))","v":23.643180835073778},{"$f":"AC63+AC64+AC65+AC66","v":0},{"$f":"SQRT(((AD63^2)+(AD64^2)+(AD65^2)+(AD66^2)))","v":0},{"$f":"AE63+AE64+AE65+AE66","v":0},{"$f":"SQRT(((AF63^2)+(AF64^2)+(AF65^2)+(AF66^2)))","v":0}]
[null,"35.0 percent or more",{"$f":"C67+C68+C69","v":0},{"$f":"SQRT((D67^2)+(D68^2)+(D69^2))","v":27.712812921102035},{"$f":"E67+E68+E69","v":0},{"$f":"SQRT((F67^2)+(F68^2)+(F69^2))","v":31.176914536239792},{"$f":"G67+G68+G69","v":0},{"$f":"SQRT((H67^2)+(H68^2)+(H69^2))","v":19.05255888325765},{"$f":"I67+I68+I69","v":0},{"$f":"SQRT((J67^2)+(J68^2)+(J69^2))","v":19.05255888325765},{"$f":"K67+K68+K69","v":0},{"$f":"SQRT((L67^2)+(L68^2)+(L69^2))","v":19.05255888325765},{"$f":"M67+M68+M69","v":0},{"$f":"SQRT((N67^2)+(N68^2)+(N69^2))","v":19.05255888325765},{"$f":"O67+O68+O69","v":0},{"$f":"SQRT((P67^2)+(P68^2)+(P69^2))","v":19.05255888325765},{"$f":"Q67+Q68+Q69","v":0},{"$f":"SQRT((R67^2)+(R68^2)+(R69^2))","v":27.712812921102035},{"$f":"S67+S68+S69","v":0},{"$f":"SQRT((T67^2)+(T68^2)+(T69^2))","v":19.05255888325765},{"$f":"U67+U68+U69","v":0},{"$f":"SQRT((V67^2)+(V68^2)+(V69^2))","v":19.05255888325765},{"$f":"W67+W68+W69","v":0},{"$f":"SQRT((X67^2)+(X68^2)+(X69^2))","v":19.05255888325765},{"$f":"Y67+Y68+Y69","v":0},{"$f":"SQRT((Z67^2)+(Z68^2)+(Z69^2))","v":19.05255888325765},{"$f":"AA67+AA68+AA69","v":0},{"$f":"SQRT((AB67^2)+(AB68^2)+(AB69^2))","v":19.05255888325765},{"$f":"AC67+AC68+AC69","v":0},{"$f":"SQRT((AD67^2)+(AD68^2)+(AD69^2))","v":0},{"$f":"AE67+AE68+AE69","v":0},{"$f":"SQRT((AF67^2)+(AF68^2)+(AF69^2))","v":0}]
[null,"50.0 percent or more",{"$f":"C69","v":0},{"$f":"D69","v":16},{"$f":"E69","v":0},{"$f":"F69","v":18},{"$f":"G69","v":0},11,{"$f":"I69","v":0},11,{"$f":"K69","v":0},11,{"$f":"M69","v":0},11,{"$f":"O69","v":0},11,{"$f":"Q69","v":0},16,{"$f":"S69","v":0},11,{"$f":"U69","v":0},11,{"$f":"W69","v":0},11,{"$f":"Y69","v":0},11,{"$f":"AA69","v":0},11,{"$f":"AC69","v":0},0,{"$f":"AE69","v":0},0]
[null,"Not Computed",{"$f":"C70","v":0},16,{"$f":"E70","v":0},18,{"$f":"G70","v":0},11,{"$f":"I70","v":0},11,{"$f":"K70","v":0},11,{"$f":"M70","v":3},4,{"$f":"O70","v":0},11,{"$f":"Q70","v":0},16,{"$f":"S70","v":0},11,{"$f":"U70","v":0},11,{"$f":"W70","v":0},11,{"$f":"Y70","v":5},7,{"$f":"AA70","v":0},11,{"$f":"AC70","v":0},0,{"$f":"AE70","v":0},0]
[]
[]
[null,"Calculated GROSS RENT AS A PERCENTAGE OF HOUSEHOLD INCOME IN THE PAST 12 MONTHS"]
[null,"Universe:  RENTER-OCCUPIED HOUSING UNITS"]
[null,"Data Set: 2015-2019 American Community Survey 5-Year Estimates"]
[]
[null,null,"Acworth",null,"Charlestown",null,"Claremont",null,"Cornish",null,"Croydon",null,"Goshen",null,"Grantham",null,"Langdon",null,"Lempster",null,"Newport",null,"Plainfield",null,"Springfield",null,"Sunapee",null,"Unity",null,"Washington"]
[null,null,"Estimate","Margin Of Error","Estimate","Margin Of Error","Estimate","Margin Of Error","Estimate","Margin Of Error","Estimate","Margin Of Error","Estimate","Margin Of Error","Estimate","Margin Of Error","Estimate","Margin Of Error","Estimate","Margin Of Error","Estimate","Margin Of Error","Estimate","Margin Of Error","Estimate","Margin Of Error","Estimate","Margin Of Error"]
[null,{"$f":"B92","v":"Total:"},30,16,{"$f":"E92","v":502},134,2310,288,55,26,36,22,54,23,140,79,39,21,26,16,857,184,112,49,44,33,349,122,35,20,38,28]
[null,"Less than 30.0 percent",{"$f":"C136+C129+C122+C115+C108+C101+C94","v":207},{"$f":"SQRT((D136^2)+(D129^2)+(D122^2)+(D115^2)+(D108^2)+(D101^2)+(D94^2))","v":136.34515026211969},{"$f":"E136+E129+E122+E115+E108+E101+E94","v":714},{"$f":"SQRT((F136^2)+(F129^2)+(F122^2)+(F115^2)+(F108^2)+(F101^2)+(F94^2))","v":200.37464909513878},{"$f":"G136+G129+G122+G115+G108+G101+G94","v":495},{"$f":"SQRT((H136^2)+(H129^2)+(H122^2)+(H115^2)+(H108^2)+(H101^2)+(H94^2))","v":148.32059870429327},{"$f":"I136+I129+I122+I115+I108+I101+I94","v":21},{"$f":"SQRT((J136^2)+(J129^2)+(J122^2)+(J115^2)+(J108^2)+(J101^2)+(J94^2))","v":49.769468552517218},{"$f":"K136+K129+K122+K115+K108+K101+K94","v":123},{"$f":"SQRT((L136^2)+(L129^2)+(L122^2)+(L115^2)+(L108^2)+(L101^2)+(L94^2))","v":102.35233265539189},{"$f":"M136+M129+M122+M115+M108+M101+M94","v":18},{"$f":"SQRT((N136^2)+(N129^2)+(N122^2)+(N115^2)+(N108^2)+(N101^2)+(N94^2))","v":49.436828377233098},{"$f":"O136+O129+O122+O115+O108+O101+O94","v":18},{"$f":"SQRT((P136^2)+(P129^2)+(P122^2)+(P115^2)+(P108^2)+(P101^2)+(P94^2))","v":49.628620774710235},{"$f":"Q136+Q129+Q122+Q115+Q108+Q101+Q94","v":244},{"$f":"SQRT((R136^2)+(R129^2)+(R122^2)+(R115^2)+(R108^2)+(R101^2)+(R94^2))","v":130.02692028960772},{"$f":"S136+S129+S122+S115+S108+S101+S94","v":84},{"$f":"SQRT((T136^2)+(T129^2)+(T122^2)+(T115^2)+(T108^2)+(T101^2)+(T94^2))","v":70.929542505221335},{"$f":"U136+U129+U122+U115+U108+U101+U94","v":56},{"$f":"SQRT((V136^2)+(V129^2)+(V122^2)+(V115^2)+(V108^2)+(V101^2)+(V94^2))","v":65.992423807585666},{"$f":"W136+W129+W122+W115+W108+W101+W94","v":97},{"$f":"SQRT((X136^2)+(X129^2)+(X122^2)+(X115^2)+(X108^2)+(X101^2)+(X94^2))","v":70.498226928058273},{"$f":"Y136+Y129+Y122+Y115+Y108+Y101+Y94","v":8},{"$f":"SQRT((Z136^2)+(Z129^2)+(Z122^2)+(Z115^2)+(Z108^2)+(Z101^2)+(Z94^2))","v":48.774993593028796},{"$f":"AA136+AA129+AA122+AA115+AA108+AA101+AA94","v":23},{"$f":"SQRT((AB136^2)+(AB129^2)+(AB122^2)+(AB115^2)+(AB108^2)+(AB101^2)+(AB94^2))","v":51.332251070842396},{"$f":"AC136+AC129+AC122+AC115+AC108+AC101+AC94","v":0},{"$f":"SQRT((AD136^2)+(AD129^2)+(AD122^2)+(AD115^2)+(AD108^2)+(AD101^2)+(AD94^2))","v":38.105117766515299},{"$f":"AE136+AE129+AE122+AE115+AE108+AE101+AE94","v":0},{"$f":"SQRT((AF136^2)+(AF129^2)+(AF122^2)+(AF115^2)+(AF108^2)+(AF101^2)+(AF94^2))","v":26.944387170614959}]
[null,"More than 30.0 percent",{"$f":"C137+C130+C123+C116+C109+C102+C95","v":4},{"$f":"SQRT((D137^2)+(D130^2)+(D123^2)+(D116^2)+(D109^2)+(D102^2)+(D95^2))","v":69.16646586316233},{"$f":"E137+E130+E123+E116+E109+E102+E95","v":150},{"$f":"SQRT((F137^2)+(F130^2)+(F123^2)+(F116^2)+(F109^2)+(F102^2)+(F95^2))","v":126.63332894621384},{"$f":"G137+G130+G123+G116+G109+G102+G95","v":1073},{"$f":"SQRT((H137^2)+(H130^2)+(H123^2)+(H116^2)+(H109^2)+(H102^2)+(H95^2))","v":255.46624043109884},{"$f":"I137+I130+I123+I116+I109+I102+I95","v":11},{"$f":"SQRT((J137^2)+(J130^2)+(J123^2)+(J116^2)+(J109^2)+(J102^2)+(J95^2))","v":55.695601262577284},{"$f":"K137+K130+K123+K116+K109+K102+K95","v":25},{"$f":"SQRT((L137^2)+(L130^2)+(L123^2)+(L116^2)+(L109^2)+(L102^2)+(L95^2))","v":62.177166226839255},{"$f":"M137+M130+M123+M116+M109+M102+M95","v":9},{"$f":"SQRT((N137^2)+(N130^2)+(N123^2)+(N116^2)+(N109^2)+(N102^2)+(N95^2))","v":58.025856305616031},{"$f":"O137+O130+O123+O116+O109+O102+O95","v":6},{"$f":"SQRT((P137^2)+(P130^2)+(P123^2)+(P116^2)+(P109^2)+(P102^2)+(P95^2))","v":55.244909267732531},{"$f":"Q137+Q130+Q123+Q116+Q109+Q102+Q95","v":58},{"$f":"SQRT((R137^2)+(R130^2)+(R123^2)+(R116^2)+(R109^2)+(R102^2)+(R95^2))","v":94.820883775674645},{"$f":"S137+S130+S123+S116+S109+S102+S95","v":275},{"$f":"SQRT((T137^2)+(T130^2)+(T123^2)+(T116^2)+(T109^2)+(T102^2)+(T95^2))","v":131.97348218486925},{"$f":"U137+U130+U123+U116+U109+U102+U95","v":218},{"$f":"SQRT((V137^2)+(V130^2)+(V123^2)+(V116^2)+(V109^2)+(V102^2)+(V95^2))","v":136.1653406708183},{"$f":"W137+W130+W123+W116+W109+W102+W95","v":28},{"$f":"SQRT((X137^2)+(X130^2)+(X123^2)+(X116^2)+(X109^2)+(X102^2)+(X95^2))","v":65.696270822627369},{"$f":"Y137+Y130+Y123+Y116+Y109+Y102+Y95","v":160},{"$f":"SQRT((Z137^2)+(Z130^2)+(Z123^2)+(Z116^2)+(Z109^2)+(Z102^2)+(Z95^2))","v":114.32847414358332},{"$f":"AA137+AA130+AA123+AA116+AA109+AA102+AA95","v":48},{"$f":"SQRT((AB137^2)+(AB130^2)+(AB123^2)+(AB116^2)+(AB109^2)+(AB102^2)+(AB95^2))","v":76.275815302099531},{"$f":"AC137+AC130+AC123+AC116+AC109+AC102+AC95","v":10},{"$f":"SQRT((AD137^2)+(AD130^2)+(AD123^2)+(AD116^2)+(AD109^2)+(AD102^2)+(AD95^2))","v":45.508241011931013},{"$f":"AE137+AE130+AE123+AE116+AE109+AE102+AE95","v":0},26.944387170614959]
[null,"Less Than 35% of HH Income",{"$f":"C138+C131+C124+C117+C110+C103+C96","v":209},{"$f":"SQRT((D138^2)+(D131^2)+(D124^2)+(D117^2)+(D110^2)+(D103^2)+(D96^2))","v":140.46351839534705},{"$f":"E138+E131+E124+E117+E110+E103+E96","v":753},{"$f":"SQRT((F138^2)+(F131^2)+(F124^2)+(F117^2)+(F110^2)+(F103^2)+(F96^2))","v":210.27600909281117},{"$f":"G138+G131+G124+G117+G110+G103+G96","v":715},{"$f":"SQRT((H138^2)+(H131^2)+(H124^2)+(H117^2)+(H110^2)+(H103^2)+(H96^2))","v":190.70395905696347},{"$f":"I138+I131+I124+I117+I110+I103+I96","v":21},{"$f":"SQRT((J138^2)+(J131^2)+(J124^2)+(J117^2)+(J110^2)+(J103^2)+(J96^2))","v":57.654141221598294},{"$f":"K138+K131+K124+K117+K110+K103+K96","v":131},{"$f":"SQRT((L138^2)+(L131^2)+(L124^2)+(L117^2)+(L110^2)+(L103^2)+(L96^2))","v":106.51760417883985},{"$f":"M138+M131+M124+M117+M110+M103+M96","v":18},{"$f":"SQRT((N138^2)+(N131^2)+(N124^2)+(N117^2)+(N110^2)+(N103^2)+(N96^2))","v":57.367238037053866},{"$f":"O138+O131+O124+O117+O110+O103+O96","v":20},{"$f":"SQRT((P138^2)+(P131^2)+(P124^2)+(P117^2)+(P110^2)+(P103^2)+(P96^2))","v":56.550862062394771},{"$f":"Q138+Q131+Q124+Q117+Q110+Q103+Q96","v":293},{"$f":"SQRT((R138^2)+(R131^2)+(R124^2)+(R117^2)+(R110^2)+(R103^2)+(R96^2))","v":149.19450392021818},{"$f":"S138+S131+S124+S117+S110+S103+S96","v":112},{"$f":"SQRT((T138^2)+(T131^2)+(T124^2)+(T117^2)+(T110^2)+(T103^2)+(T96^2))","v":81.871851084484462},{"$f":"U138+U131+U124+U117+U110+U103+U96","v":94},{"$f":"SQRT((V138^2)+(V131^2)+(V124^2)+(V117^2)+(V110^2)+(V103^2)+(V96^2))","v":89.263654417685586},{"$f":"W138+W131+W124+W117+W110+W103+W96","v":120},{"$f":"SQRT((X138^2)+(X131^2)+(X124^2)+(X117^2)+(X110^2)+(X103^2)+(X96^2))","v":82.371111440844359},{"$f":"Y138+Y131+Y124+Y117+Y110+Y103+Y96","v":94},{"$f":"SQRT((Z138^2)+(Z131^2)+(Z124^2)+(Z117^2)+(Z110^2)+(Z103^2)+(Z96^2))","v":97.718984849413985},{"$f":"AA138+AA131+AA124+AA117+AA110+AA103+AA96","v":23},{"$f":"SQRT((AB138^2)+(AB131^2)+(AB124^2)+(AB117^2)+(AB110^2)+(AB103^2)+(AB96^2))","v":59.008473967727717},{"$f":"AC138+AC131+AC124+AC117+AC110+AC103+AC96","v":0},{"$f":"SQRT((AD138^2)+(AD131^2)+(AD124^2)+(AD117^2)+(AD110^2)+(AD103^2)+(AD96^2))","v":44},{"$f":"AE138+AE131+AE124+AE117+AE110+AE103+AE96","v":0},31.11269837220809]
[null,"35.0 percent or more",{"$f":"C139+C132+C125+C118+C111+C104+C97","v":2},{"$f":"SQRT((D139^2)+(D132^2)+(D125^2)+(D118^2)+(D111^2)+(D104^2)+(D97^2))","v":60.365553091146275},{"$f":"E139+E132+E125+E118+E111+E104+E97","v":111},{"$f":"SQRT((F139^2)+(F132^2)+(F125^2)+(F118^2)+(F111^2)+(F104^2)+(F97^2))","v":109.40749517286281},{"$f":"G139+G132+G125+G118+G111+G104+G97","v":853},{"$f":"SQRT((H139^2)+(H132^2)+(H125^2)+(H118^2)+(H111^2)+(H104^2)+(H97^2))","v":225.59698579546668},{"$f":"I139+I132+I125+I118+I111+I104+I97","v":11},{"$f":"SQRT((J139^2)+(J132^2)+(J125^2)+(J118^2)+(J111^2)+(J104^2)+(J97^2))","v":47.486840282335066},{"$f":"K139+K132+K125+K118+K111+K104+K97","v":17},{"$f":"SQRT((L139^2)+(L132^2)+(L125^2)+(L118^2)+(L111^2)+(L104^2)+(L97^2))","v":54.735728733616035},{"$f":"M139+M132+M125+M118+M111+M104+M97","v":9},{"$f":"SQRT((N139^2)+(N132^2)+(N125^2)+(N118^2)+(N111^2)+(N104^2)+(N97^2))","v":50.19960159204453},{"$f":"O139+O132+O125+O118+O111+O104+O97","v":4},{"$f":"SQRT((P139^2)+(P132^2)+(P125^2)+(P118^2)+(P111^2)+(P104^2)+(P97^2))","v":48.135226186234959},{"$f":"Q139+Q132+Q125+Q118+Q111+Q104+Q97","v":9},{"$f":"SQRT((R139^2)+(R132^2)+(R125^2)+(R118^2)+(R111^2)+(R104^2)+(R97^2))","v":60.32412452742269},{"$f":"S139+S132+S125+S118+S111+S104+S97","v":247},{"$f":"SQRT((T139^2)+(T132^2)+(T125^2)+(T118^2)+(T111^2)+(T104^2)+(T97^2))","v":125.47908192204787},{"$f":"U139+U132+U125+U118+U111+U104+U97","v":180},{"$f":"SQRT((V139^2)+(V132^2)+(V125^2)+(V118^2)+(V111^2)+(V104^2)+(V97^2))","v":122.18019479441011},{"$f":"W139+W132+W125+W118+W111+W104+W97","v":5},{"$f":"SQRT((X139^2)+(X132^2)+(X125^2)+(X118^2)+(X111^2)+(X104^2)+(X97^2))","v":50.009999000199947},{"$f":"Y139+Y132+Y125+Y118+Y111+Y104+Y97","v":74},{"$f":"SQRT((Z139^2)+(Z132^2)+(Z125^2)+(Z118^2)+(Z111^2)+(Z104^2)+(Z97^2))","v":76.817966648434535},{"$f":"AA139+AA132+AA125+AA118+AA111+AA104+AA97","v":48},{"$f":"SQRT((AB139^2)+(AB132^2)+(AB125^2)+(AB118^2)+(AB111^2)+(AB104^2)+(AB97^2))","v":70.505318948289286},{"$f":"AC139+AC132+AC125+AC118+AC111+AC104+AC97","v":10},{"$f":"SQRT((AD139^2)+(AD132^2)+(AD125^2)+(AD118^2)+(AD111^2)+(AD104^2)+(AD97^2))","v":39.837168574084181},{"$f":"AE139+AE132+AE125+AE118+AE111+AE104+AE97","v":0},22]
[null,"50.0 percent or more",{"$f":"C140+C133+C126+C119+C112+C105+C98","v":2},{"$f":"SQRT((D140^2)+(D133^2)+(D126^2)+(D119^2)+(D112^2)+(D105^2)+(D98^2))","v":33.763886032268267},{"$f":"E140+E133+E126+E119+E112+E105+E98","v":85},{"$f":"SQRT((F140^2)+(F133^2)+(F126^2)+(F119^2)+(F112^2)+(F105^2)+(F98^2))","v":80.950602221354728},{"$f":"G140+G133+G126+G119+G112+G105+G98","v":467},{"$f":"SQRT((H140^2)+(H133^2)+(H126^2)+(H119^2)+(H112^2)+(H105^2)+(H98^2))","v":172.72521529875132},{"$f":"I140+I133+I126+I119+I112+I105+I98","v":8},{"$f":"SQRT((J140^2)+(J133^2)+(J126^2)+(J119^2)+(J112^2)+(J105^2)+(J98^2))","v":25.80697580112788},{"$f":"K140+K133+K126+K119+K112+K105+K98","v":0},{"$f":"SQRT((L140^2)+(L133^2)+(L126^2)+(L119^2)+(L112^2)+(L105^2)+(L98^2))","v":29.103264421710495},{"$f":"M140+M133+M126+M119+M112+M105+M98","v":9},{"$f":"SQRT((N140^2)+(N133^2)+(N126^2)+(N119^2)+(N112^2)+(N105^2)+(N98^2))","v":28.740215726399828},{"$f":"O140+O133+O126+O119+O112+O105+O98","v":0},{"$f":"SQRT((P140^2)+(P133^2)+(P126^2)+(P119^2)+(P112^2)+(P105^2)+(P98^2))","v":29.103264421710495},{"$f":"Q140+Q133+Q126+Q119+Q112+Q105+Q98","v":6},{"$f":"SQRT((R140^2)+(R133^2)+(R126^2)+(R119^2)+(R112^2)+(R105^2)+(R98^2))","v":35.085609585697668},{"$f":"S140+S133+S126+S119+S112+S105+S98","v":141},{"$f":"SQRT((T140^2)+(T133^2)+(T126^2)+(T119^2)+(T112^2)+(T105^2)+(T98^2))","v":92.790085677296361},{"$f":"U140+U133+U126+U119+U112+U105+U98","v":87},{"$f":"SQRT((V140^2)+(V133^2)+(V126^2)+(V119^2)+(V112^2)+(V105^2)+(V98^2))","v":67.297845433564959},{"$f":"W140+W133+W126+W119+W112+W105+W98","v":0},{"$f":"SQRT((X140^2)+(X133^2)+(X126^2)+(X119^2)+(X112^2)+(X105^2)+(X98^2))","v":29.103264421710495},{"$f":"Y140+Y133+Y126+Y119+Y112+Y105+Y98","v":50},{"$f":"SQRT((Z140^2)+(Z133^2)+(Z126^2)+(Z119^2)+(Z112^2)+(Z105^2)+(Z98^2))","v":62.601916903558156},{"$f":"AA140+AA133+AA126+AA119+AA112+AA105+AA98","v":41},{"$f":"SQRT((AB140^2)+(AB133^2)+(AB126^2)+(AB119^2)+(AB112^2)+(AB105^2)+(AB98^2))","v":58.974570791146924},{"$f":"AC140+AC133+AC126+AC119+AC112+AC105+AC98","v":10},{"$f":"SQRT((AD140^2)+(AD133^2)+(AD126^2)+(AD119^2)+(AD112^2)+(AD105^2)+(AD98^2))","v":24.879710609249457},{"$f":"AE140+AE133+AE126+AE119+AE112+AE105+AE98","v":0},11]
[null,"Not Computed",{"$f":"C140+C134+C127+C120+C113+C106+C99","v":39},{"$f":"SQRT((D140^2)+(D134^2)+(D127^2)+(D120^2)+(D113^2)+(D106^2)+(D99^2))","v":55.42562584220407},{"$f":"E140+E134+E127+E120+E113+E106+E99","v":61},{"$f":"SQRT((F140^2)+(F134^2)+(F127^2)+(F120^2)+(F113^2)+(F106^2)+(F99^2))","v":78.076885183772546},{"$f":"G140+G134+G127+G120+G113+G106+G99","v":106},{"$f":"SQRT((H140^2)+(H134^2)+(H127^2)+(H120^2)+(H113^2)+(H106^2)+(H99^2))","v":91.902121847104269},{"$f":"I140+I134+I127+I120+I113+I106+I99","v":2},{"$f":"SQRT((J140^2)+(J134^2)+(J127^2)+(J120^2)+(J113^2)+(J106^2)+(J99^2))","v":27.239676943752471},{"$f":"K140+K134+K127+K120+K113+K106+K99","v":11},{"$f":"SQRT((L140^2)+(L134^2)+(L127^2)+(L120^2)+(L113^2)+(L106^2)+(L99^2))","v":24.677925358506133},{"$f":"M140+M134+M127+M120+M113+M106+M99","v":8},{"$f":"SQRT((N140^2)+(N134^2)+(N127^2)+(N120^2)+(N113^2)+(N106^2)+(N99^2))","v":28.740215726399828},{"$f":"O140+O134+O127+O120+O113+O106+O99","v":0},{"$f":"SQRT((P140^2)+(P134^2)+(P127^2)+(P120^2)+(P113^2)+(P106^2)+(P99^2))","v":29.103264421710495},{"$f":"Q140+Q134+Q127+Q120+Q113+Q106+Q99","v":2},{"$f":"SQRT((R140^2)+(R134^2)+(R127^2)+(R120^2)+(R113^2)+(R106^2)+(R99^2))","v":33.763886032268267},{"$f":"S140+S134+S127+S120+S113+S106+S99","v":61},{"$f":"SQRT((T140^2)+(T134^2)+(T127^2)+(T120^2)+(T113^2)+(T106^2)+(T99^2))","v":71.589105316381762},{"$f":"U140+U134+U127+U120+U113+U106+U99","v":18},{"$f":"SQRT((V140^2)+(V134^2)+(V127^2)+(V120^2)+(V113^2)+(V106^2)+(V99^2))","v":32.093613071762427},{"$f":"W140+W134+W127+W120+W113+W106+W99","v":4},{"$f":"SQRT((X140^2)+(X134^2)+(X127^2)+(X120^2)+(X113^2)+(X106^2)+(X99^2))","v":28.106938645110393},{"$f":"Y140+Y134+Y127+Y120+Y113+Y106+Y99","v":13},{"$f":"SQRT((Z140^2)+(Z134^2)+(Z127^2)+(Z120^2)+(Z113^2)+(Z106^2)+(Z99^2))","v":28.948229652260256},{"$f":"AA140+AA134+AA127+AA120+AA113+AA106+AA99","v":37},{"$f":"SQRT((AB140^2)+(AB134^2)+(AB127^2)+(AB120^2)+(AB113^2)+(AB106^2)+(AB99^2))","v":53.103672189407014},{"$f":"AC140+AC134+AC127+AC120+AC113+AC106+AC99","v":6},{"$f":"SQRT((AD140^2)+(AD134^2)+(AD127^2)+(AD120^2)+(AD113^2)+(AD106^2)+(AD99^2))","v":19.974984355438178},{"$f":"AE140+AE134+AE127+AE120+AE113+AE106+AE99","v":0},{"$f":"SQRT((AF140^2)+(AF134^2)+(AF127^2)+(AF120^2)+(AF113^2)+(AF106^2)+(AF99^2))","v":11}]
[]
[]
[]
[]
[]
[]
[]
[]
[]
[]
[]
[null,"B25074. HOUSEHOLD INCOME BY GROSS RENT AS A PERCENTAGE OF HOUSEHOLD INCOME IN THE PAST 12 MONTHS"]
[null,"Universe:  RENTER-OCCUPIED HOUSING UNITS"]
[null,"Data Set: 2010-2014 American Community Survey 5-Year Estimates",null,null,null,"Income in 2011 Inflation Adjusted Dollars"]
[]
[null,null,"Acworth",null,"Charlestown",null,"Claremont",null,"Cornish",null,"Croydon",null,"Goshen",null,"Grantham",null,"Langdon",null,"Lempster",null,"Newport",null,"Plainfield",null,"Springfield",null,"Sunapee",null,"Unity",null,"Washington"]
[null,null,"Estimate","Margin Of Error","Estimate","Margin Of Error","Estimate","Margin Of Error","Estimate","Margin Of Error","Estimate","Margin Of Error","Estimate","Margin Of Error","Estimate","Margin Of Error","Estimate","Margin Of Error","Estimate","Margin Of Error","Estimate","Margin Of Error","Estimate","Margin Of Error","Estimate","Margin Of Error","Estimate","Margin Of Error","Estimate","Margin Of Error","Estimate","Margin Of Error"]
[null,"Total:",73,32,464,161,1932,223,94,39,44,23,66,32,93,68,29,18,50,28,948,207,118,53,72,37,428,128,16,13,31,17]
[null,"Less than $10,000:",5,6,69,89,314,113,0,11,0,11,6,9,0,11,0,11,4,7,169,109,0,11,3,4,44,56,0,11,0,11]
[null,"Less than 20.0 percent",0,11,0,11,8,15,0,11,0,11,0,11,0,11,0,11,0,11,22,35,0,11,0,11,0,11,0,11,0,11]
[null,"20.0 to 24.9 percent",0,11,0,11,0,17,0,11,0,11,0,11,0,11,0,11,0,11,0,15,0,11,0,11,0,11,0,11,0,11]
[null,"25.0 to 29.9 percent",0,11,0,11,0,17,0,11,0,11,0,11,0,11,0,11,0,11,0,15,0,11,0,11,0,11,0,11,0,11]
[null,"30.0 to 34.9 percent",0,11,0,11,81,66,0,11,0,11,0,11,0,11,0,11,0,11,0,15,0,11,3,4,0,11,0,11,0,11]
[null,"35.0 to 39.9 percent",0,11,0,11,11,19,0,11,0,11,0,11,0,11,0,11,0,11,41,64,0,11,0,11,0,11,0,11,0,11]
[null,"40.0 to 49.9 percent",0,11,0,11,45,49,0,11,0,11,0,11,0,11,0,11,0,11,0,15,0,11,0,11,0,11,0,11,0,11]
[null,"50.0 percent or more",3,4,55,85,112,66,0,11,0,11,0,11,0,11,0,11,0,11,91,72,0,11,0,11,34,54,0,11,0,11]
[null,"Not computed",2,3,14,21,57,56,0,11,0,11,6,9,0,11,0,11,4,7,15,24,0,11,0,11,10,16,0,11,0,11]
[null,"$10,000 to $19,999:",0,11,173,105,401,111,9,8,4,5,3,4,0,11,2,3,0,11,191,92,0,11,6,9,53,49,0,11,8,5]
[null,"Less than 20.0 percent",0,11,0,11,7,12,0,11,0,11,0,11,0,11,0,11,0,11,26,40,0,11,0,11,0,11,0,11,0,11]
[null,"20.0 to 24.9 percent",0,11,0,11,23,25,0,11,0,11,0,11,0,11,0,11,0,11,63,67,0,11,0,11,0,11,0,11,0,11]
[null,"25.0 to 29.9 percent",0,11,11,19,100,66,0,11,2,3,0,11,0,11,0,11,0,11,0,15,0,11,0,11,0,11,0,11,0,11]
[null,"30.0 to 34.9 percent",0,11,33,53,18,21,0,11,0,11,0,11,0,11,0,11,0,11,23,27,0,11,0,11,0,11,0,11,0,11]
[null,"35.0 to 39.9 percent",0,11,42,65,31,37,0,11,0,11,0,11,0,11,0,11,0,11,18,29,0,11,0,11,0,11,0,11,0,11]
[null,"40.0 to 49.9 percent",0,11,13,21,18,20,0,11,0,11,0,11,0,11,0,11,0,11,12,20,0,11,0,11,0,11,0,11,0,11]
[null,"50.0 percent or more",0,11,50,59,197,81,6,6,2,3,3,4,0,11,2,3,0,11,42,39,0,11,6,9,53,49,0,11,0,11]
[null,"Not computed",0,11,24,27,7,12,3,5,0,11,0,11,0,11,0,11,0,11,7,14,0,11,0,11,0,11,0,11,8,5]
[null,"$20,000 to $34,999:",15,14,80,70,580,153,15,16,0,11,18,20,0,11,5,8,18,15,77,54,32,28,0,11,22,34,3,4,6,6]
[null,"Less than 20.0 percent",0,11,0,11,0,17,0,11,0,11,0,11,0,11,0,11,0,11,17,28,0,11,0,11,0,11,0,11,0,11]
[null,"20.0 to 24.9 percent",0,11,11,16,43,37,0,11,0,11,0,11,0,11,0,11,0,11,0,15,7,10,0,11,0,11,0,11,0,11]
[null,"25.0 to 29.9 percent",0,11,0,11,109,87,0,11,0,11,0,11,0,11,0,11,0,11,0,15,13,20,0,11,0,11,0,11,0,11]
[null,"30.0 to 34.9 percent",0,11,30,47,102,60,9,13,0,11,0,11,0,11,0,11,0,11,16,26,0,11,0,11,0,11,0,11,3,4]
[null,"35.0 to 39.9 percent",6,8,0,11,43,33,0,11,0,11,6,11,0,11,0,11,9,13,0,15,0,11,0,11,0,11,0,11,0,11]
[null,"40.0 to 49.9 percent",9,11,0,11,132,82,0,11,0,11,0,11,0,11,0,11,7,8,0,15,2,4,0,11,0,11,0,11,0,11]
[null,"50.0 percent or more",0,11,39,44,108,90,4,7,0,11,12,16,0,11,0,11,0,11,34,41,6,8,0,11,22,34,0,11,3,4]
[null,"Not computed",0,11,0,11,43,29,2,3,0,11,0,11,0,11,5,8,2,4,10,17,4,6,0,11,0,11,3,4,0,11]
[null,"$35,000 to $49,999:",9,11,92,92,270,89,0,11,6,9,15,14,20,22,3,5,2,3,265,147,0,11,16,19,24,22,6,9,12,15]
[null,"Less than 20.0 percent",0,11,47,66,69,49,0,11,0,11,0,11,0,11,0,11,0,11,69,89,0,11,0,11,9,14,0,11,0,11]
[null,"20.0 to 24.9 percent",7,11,9,15,32,32,0,11,0,11,0,11,10,17,0,11,0,11,93,102,0,11,7,11,0,11,6,9,0,11]
[null,"25.0 to 29.9 percent",0,11,0,11,84,58,0,11,0,11,0,11,0,11,0,11,0,11,38,60,0,11,9,16,0,11,0,11,9,14]
[null,"30.0 to 34.9 percent",0,11,0,11,52,45,0,11,0,11,8,10,0,11,0,11,0,11,0,15,0,11,0,11,7,12,0,11,0,11]
[null,"Income in 2009 Inflation Adjusted Dollars",0,11,0,11,23,28,0,11,0,11,7,9,0,11,0,11,0,11,65,76,0,11,0,11,8,13,0,11,0,11]
[null,"40.0 to 49.9 percent",0,11,0,11,0,17,0,11,6,9,0,11,0,11,3,5,0,11,0,15,0,11,0,11,0,11,0,11,0,11]
[null,"50.0 percent or more",0,11,0,11,0,17,0,11,0,11,0,11,10,16,0,11,2,3,0,15,0,11,0,11,0,11,0,11,0,11]
[null,"Not computed",2,3,36,58,10,15,0,11,0,11,0,11,0,11,0,11,0,11,0,15,0,11,0,11,0,11,0,11,3,4]
[null,"$50,000 to $74,999:",11,12,41,44,262,124,41,28,8,11,7,11,12,19,12,14,3,4,134,75,27,27,5,6,159,93,7,8,3,4]
[null,"Less than 20.0 percent",0,11,19,31,175,116,6,7,2,3,0,11,12,19,12,14,0,11,40,37,21,26,0,11,73,72,0,11,0,11]
[null,"20.0 to 24.9 percent",3,5,0,11,87,61,26,25,6,10,7,11,0,11,0,11,0,11,36,42,6,9,3,4,18,20,7,8,0,11]
[null,"25.0 to 29.9 percent",0,11,22,32,0,17,6,9,0,11,0,11,0,11,0,11,0,11,42,46,0,11,2,4,31,44,0,11,3,4]
[null,"30.0 to 34.9 percent",0,11,0,11,0,17,3,5,0,11,0,11,0,11,0,11,0,11,16,25,0,11,0,11,0,11,0,11,0,11]
[null,"35.0 to 39.9 percent",0,11,0,11,0,17,0,11,0,11,0,11,0,11,0,11,0,11,0,15,0,11,0,11,28,25,0,11,0,11]
[null,"40.0 to 49.9 percent",0,11,0,11,0,17,0,11,0,11,0,11,0,11,0,11,0,11,0,15,0,11,0,11,9,14,0,11,0,11]
[null,"50.0 percent or more",0,11,0,11,0,17,0,11,0,11,0,11,0,11,0,11,0,11,0,15,0,11,0,11,0,11,0,11,0,11]
[null,"Not computed",8,12,0,11,0,17,0,11,0,11,0,11,0,11,0,11,3,4,0,15,0,11,0,11,0,11,0,11,0,11]
[null,"$75,000 to $99,999:",22,14,9,16,60,55,11,12,16,15,10,11,21,17,7,11,15,17,112,96,11,13,30,23,89,69,0,11,2,3]
[null,"Less than 20.0 percent",11,13,0,11,37,41,11,12,14,14,10,11,0,11,1,3,15,17,80,85,4,7,13,16,73,67,0,11,0,11]
[null,"20.0 to 24.9 percent",2,3,0,11,13,21,0,11,0,11,0,11,0,11,6,10,0,11,0,15,7,10,10,15,7,11,0,11,2,3]
[null,"25.0 to 29.9 percent",9,13,0,11,0,17,0,11,0,11,0,11,9,14,0,11,0,11,0,15,0,11,7,12,9,13,0,11,0,11]
[null,"30.0 to 34.9 percent",0,11,0,11,0,17,0,11,0,11,0,11,12,14,0,11,0,11,32,45,0,11,0,11,0,11,0,11,0,11]
[null,"35.0 to 39.9 percent",0,11,0,11,0,17,0,11,0,11,0,11,0,11,0,11,0,11,0,15,0,11,0,11,0,11,0,11,0,11]
[null,"40.0 to 49.9 percent",0,11,0,11,0,17,0,11,0,11,0,11,0,11,0,11,0,11,0,15,0,11,0,11,0,11,0,11,0,11]
[null,"50.0 percent or more",0,11,0,11,0,17,0,11,0,11,0,11,0,11,0,11,0,11,0,15,0,11,0,11,0,11,0,11,0,11]
[null,"Not computed",0,11,9,16,10,16,0,11,2,4,0,11,0,11,0,11,0,11,0,15,0,11,0,11,0,11,0,11,0,11]
[null,"$100,000 or more:",11,17,0,11,45,42,18,16,10,11,7,8,40,61,0,11,8,12,0,15,48,36,12,14,37,48,0,11,0,11]
[null,"Less than 20.0 percent",11,17,0,11,45,42,18,16,6,8,4,7,40,61,0,11,0,11,0,15,34,31,9,13,37,48,0,11,0,11]
[null,"20.0 to 24.9 percent",0,11,0,11,0,17,0,11,4,8,0,11,0,11,0,11,0,11,0,15,0,11,0,11,0,11,0,11,0,11]
[null,"25.0 to 29.9 percent",0,11,0,11,0,17,0,11,0,11,0,11,0,11,0,11,0,11,0,15,0,11,0,11,0,11,0,11,0,11]
[null,"30.0 to 34.9 percent",0,11,0,11,0,17,0,11,0,11,0,11,0,11,0,11,0,11,0,15,14,22,0,11,0,11,0,11,0,11]
[null,"35.0 to 39.9 percent",0,11,0,11,0,17,0,11,0,11,0,11,0,11,0,11,0,11,0,15,0,11,0,11,0,11,0,11,0,11]
[null,"40.0 to 49.9 percent",0,11,0,11,0,17,0,11,0,11,0,11,0,11,0,11,0,11,0,15,0,11,0,11,0,11,0,11,0,11]
[null,"50.0 percent or more",0,11,0,11,0,17,0,11,0,11,0,11,0,11,0,11,0,11,0,15,0,11,0,11,0,11,0,11,0,11]
[null,"Not computed",0,11,0,11,0,17,0,11,0,11,3,4,0,11,0,11,8,12,0,15,0,11,3,4,0,11,0,11,0,11]
[]
[]
[]
[]
[]
[]
[]
[]
[]
[]
[]
[]
[]
[]
[]
[null,"Calculated B25074. HOUSEHOLD INCOME BY GROSS RENT AS A PERCENTAGE OF HOUSEHOLD INCOME IN THE PAST 12 MONTHS"]
[null,"Universe:  RENTER-OCCUPIED HOUSING UNITS"]
[null,"Data Set: 2010-2014 American Community Survey 5-Year Estimates"]
[]
[null,null,"Acworth",null,"Charlestown",null,"Claremont",null,"Cornish",null,"Croydon",null,"Goshen",null,"Grantham",null,"Langdon",null,"Lempster",null,"Newport",null,"Plainfield",null,"Springfield",null,"Sunapee",null,"Unity",null,"Washington"]
[null,null,"Estimate","Margin Of Error","Estimate","Margin Of Error","Estimate","Margin Of Error","Estimate","Margin Of Error","Estimate","Margin Of Error","Estimate","Margin Of Error","Estimate","Margin Of Error","Estimate","Margin Of Error","Estimate","Margin Of Error","Estimate","Margin Of Error","Estimate","Margin Of Error","Estimate","Margin Of Error","Estimate","Margin Of Error","Estimate","Margin Of Error","Estimate","Margin Of Error"]
[null,"Total:",{"$f":"C174","v":73},32,464,161,1932,223,94,39,44,23,66,32,93,68,29,18,50,28,948,207,118,53,72,37,428,128,16,13,31,17]
[null,"Less than $10,000:",5,6,69,89,314,113,0,11,0,11,6,9,0,11,0,11,4,7,169,109,0,11,3,4,44,56,0,11,0,11]
[null,"Less than 30.0 percent",{"$f":"C176+C177+C178","v":0},{"$f":"SQRT((D176^2)+(D177^2)+(D178^2))","v":19.05255888325765},{"$f":"E176+E177+E178","v":0},{"$f":"SQRT((F176^2)+(F177^2)+(F178^2))","v":19.05255888325765},{"$f":"G176+G177+G178","v":8},{"$f":"SQRT((H176^2)+(H177^2)+(H178^2))","v":28.337254630609507},{"$f":"I176+I177+I178","v":0},{"$f":"SQRT((J176^2)+(J177^2)+(J178^2))","v":19.05255888325765},{"$f":"K176+K177+K178","v":0},{"$f":"SQRT((L176^2)+(L177^2)+(L178^2))","v":19.05255888325765},{"$f":"M176+M177+M178","v":0},{"$f":"SQRT((N176^2)+(N177^2)+(N178^2))","v":19.05255888325765},{"$f":"O176+O177+O178","v":0},{"$f":"SQRT((P176^2)+(P177^2)+(P178^2))","v":19.05255888325765},{"$f":"Q176+Q177+Q178","v":0},{"$f":"SQRT((R176^2)+(R177^2)+(R178^2))","v":19.05255888325765},{"$f":"S176+S177+S178","v":0},{"$f":"SQRT((T176^2)+(T177^2)+(T178^2))","v":19.05255888325765},{"$f":"U176+U177+U178","v":22},{"$f":"SQRT((V176^2)+(V177^2)+(V178^2))","v":40.926763859362246},{"$f":"W176+W177+W178","v":0},{"$f":"SQRT((X176^2)+(X177^2)+(X178^2))","v":19.05255888325765},{"$f":"Y176+Y177+Y178","v":0},{"$f":"SQRT((Z176^2)+(Z177^2)+(Z178^2))","v":19.05255888325765},{"$f":"AA176+AA177+AA178","v":0},{"$f":"SQRT((AB176^2)+(AB177^2)+(AB178^2))","v":19.05255888325765},{"$f":"AC176+AC177+AC178","v":0},{"$f":"SQRT((AD176^2)+(AD177^2)+(AD178^2))","v":19.05255888325765},{"$f":"AE176+AE177+AE178","v":0},{"$f":"SQRT((AF176^2)+(AF177^2)+(AF178^2))","v":19.05255888325765}]
[null,"More than 30.0 percent",{"$f":"C179+C180+C181+C182","v":3},{"$f":"SQRT((D179^2)+(D180^2)+(D181^2)+(D182^2))","v":19.467922333931785},{"$f":"E179+E180+E181+E182","v":55},{"$f":"SQRT((F179^2)+(F180^2)+(F181^2)+(F182^2))","v":87.109126961530265},{"$f":"G179+G180+G181+G182","v":249},{"$f":"SQRT((H179^2)+(H180^2)+(H181^2)+(H182^2))","v":107.11675872616759},{"$f":"I179+I180+I181+I182","v":0},{"$f":"SQRT((J179^2)+(J180^2)+(J181^2)+(J182^2))","v":22},{"$f":"K179+K180+K181+K182","v":0},{"$f":"SQRT((L179^2)+(L180^2)+(L181^2)+(L182^2))","v":22},{"$f":"M179+M180+M181+M182","v":0},{"$f":"SQRT((N179^2)+(N180^2)+(N181^2)+(N182^2))","v":22},{"$f":"O179+O180+O181+O182","v":0},{"$f":"SQRT((P179^2)+(P180^2)+(P181^2)+(P182^2))","v":22},{"$f":"Q179+Q180+Q181+Q182","v":0},{"$f":"SQRT((R179^2)+(R180^2)+(R181^2)+(R182^2))","v":22},{"$f":"S179+S180+S181+S182","v":0},{"$f":"SQRT((T179^2)+(T180^2)+(T181^2)+(T182^2))","v":22},{"$f":"U179+U180+U181+U182","v":132},{"$f":"SQRT((V179^2)+(V180^2)+(V181^2)+(V182^2))","v":98.640762365261551},{"$f":"W179+W180+W181+W182","v":0},{"$f":"SQRT((X179^2)+(X180^2)+(X181^2)+(X182^2))","v":22},{"$f":"Y179+Y180+Y181+Y182","v":3},{"$f":"SQRT((Z179^2)+(Z180^2)+(Z181^2)+(Z182^2))","v":19.467922333931785},{"$f":"AA179+AA180+AA181+AA182","v":34},{"$f":"SQRT((AB179^2)+(AB180^2)+(AB181^2)+(AB182^2))","v":57.262553208881634},{"$f":"AC179+AC180+AC181+AC182","v":0},{"$f":"SQRT((AD179^2)+(AD180^2)+(AD181^2)+(AD182^2))","v":22},{"$f":"AE179+AE180+AE181+AE182","v":0},{"$f":"SQRT((AF179^2)+(AF180^2)+(AF181^2)+(AF182^2))","v":22}]
[null,"Less Than 35% of HH Income",{"$f":"C176+C177+C178+C179","v":0},{"$f":"SQRT((D176^2)+(D177^2)+(D178^2)+(D179^2))","v":22},{"$f":"E176+E177+E178+E179","v":0},{"$f":"SQRT((F176^2)+(F177^2)+(F178^2)+(F179^2))","v":22},{"$f":"G176+G177+G178+G179","v":89},{"$f":"SQRT((H176^2)+(H177^2)+(H178^2)+(H179^2))","v":71.826179071422146},{"$f":"I176+I177+I178+I179","v":0},{"$f":"SQRT((J176^2)+(J177^2)+(J178^2)+(J179^2))","v":22},{"$f":"K176+K177+K178+K179","v":0},{"$f":"SQRT((L176^2)+(L177^2)+(L178^2)+(L179^2))","v":22},{"$f":"M176+M177+M178+M179","v":0},{"$f":"SQRT((N176^2)+(N177^2)+(N178^2)+(N179^2))","v":22},{"$f":"O176+O177+O178+O179","v":0},{"$f":"SQRT((P176^2)+(P177^2)+(P178^2)+(P179^2))","v":22},{"$f":"Q176+Q177+Q178+Q179","v":0},{"$f":"SQRT((R176^2)+(R177^2)+(R178^2)+(R179^2))","v":22},{"$f":"S176+S177+S178+S179","v":0},{"$f":"SQRT((T176^2)+(T177^2)+(T178^2)+(T179^2))","v":22},{"$f":"U176+U177+U178+U179","v":22},{"$f":"SQRT((V176^2)+(V177^2)+(V178^2)+(V179^2))","v":43.588989435406738},{"$f":"W176+W177+W178+W179","v":0},{"$f":"SQRT((X176^2)+(X177^2)+(X178^2)+(X179^2))","v":22},{"$f":"Y176+Y177+Y178+Y179","v":3},{"$f":"SQRT((Z176^2)+(Z177^2)+(Z178^2)+(Z179^2))","v":19.467922333931785},{"$f":"AA176+AA177+AA178+AA179","v":0},{"$f":"SQRT((AB176^2)+(AB177^2)+(AB178^2)+(AB179^2))","v":22},{"$f":"AC176+AC177+AC178+AC179","v":0},{"$f":"SQRT((AD176^2)+(AD177^2)+(AD178^2)+(AD179^2))","v":22},{"$f":"AE176+AE177+AE178+AE179","v":0},{"$f":"SQRT((AF176^2)+(AF177^2)+(AF178^2)+(AF179^2))","v":22}]
[null,"35.0 percent or more",{"$f":"C180+C181++C182","v":3},{"$f":"SQRT((D180^2)+(D181^2)+(D182^2))","v":16.06237840420901},{"$f":"E180+E181++E182","v":55},{"$f":"SQRT((F180^2)+(F181^2)+(F182^2))","v":86.411804749119781},{"$f":"G180+G181++G182","v":168},{"$f":"SQRT((H180^2)+(H181^2)+(H182^2))","v":84.368240469977806},{"$f":"I180+I181++I182","v":0},{"$f":"SQRT((J180^2)+(J181^2)+(J182^2))","v":19.05255888325765},{"$f":"K180+K181++K182","v":0},{"$f":"SQRT((L180^2)+(L181^2)+(L182^2))","v":19.05255888325765},{"$f":"M180+M181++M182","v":0},{"$f":"SQRT((N180^2)+(N181^2)+(N182^2))","v":19.05255888325765},{"$f":"O180+O181++O182","v":0},{"$f":"SQRT((P180^2)+(P181^2)+(P182^2))","v":19.05255888325765},{"$f":"Q180+Q181++Q182","v":0},{"$f":"SQRT((R180^2)+(R181^2)+(R182^2))","v":19.05255888325765},{"$f":"S180+S181++S182","v":0},{"$f":"SQRT((T180^2)+(T181^2)+(T182^2))","v":19.05255888325765},{"$f":"U180+U181++U182","v":132},{"$f":"SQRT((V180^2)+(V181^2)+(V182^2))","v":97.49358953285082},{"$f":"W180+W181++W182","v":0},{"$f":"SQRT((X180^2)+(X181^2)+(X182^2))","v":19.05255888325765},{"$f":"Y180+Y181++Y182","v":0},{"$f":"SQRT((Z180^2)+(Z181^2)+(Z182^2))","v":19.05255888325765},{"$f":"AA180+AA181++AA182","v":34},{"$f":"SQRT((AB180^2)+(AB181^2)+(AB182^2))","v":56.196085272908469},{"$f":"AC180+AC181++AC182","v":0},{"$f":"SQRT((AD180^2)+(AD181^2)+(AD182^2))","v":19.05255888325765},{"$f":"AE180+AE181++AE182","v":0},{"$f":"SQRT((AF180^2)+(AF181^2)+(AF182^2))","v":19.05255888325765}]
[null,"50.0 percent or more",{"$f":"C182","v":3},4,55,85,112,66,0,11,0,11,0,11,0,11,0,11,0,11,91,72,0,11,0,11,34,54,0,11,0,11]
[null,"Not Computed",2,3,14,21,57,56,0,11,0,11,6,9,0,11,0,11,4,7,15,24,0,11,0,11,10,16,0,11,0,11]
[null,"$10,000 to $19,999:",0,11,173,105,401,111,9,8,4,5,3,4,0,11,2,3,0,11,191,92,0,11,6,9,53,49,0,11,8,5]
[null,"Less than 30.0 percent",{"$f":"C185+C186+C187","v":0},{"$f":"SQRT((D185^2)+(D186^2)+(D187^2))","v":19.05255888325765},{"$f":"E185+E186+E187","v":11},{"$f":"SQRT((F185^2)+(F186^2)+(F187^2))","v":24.556058315617349},{"$f":"G185+G186+G187","v":130},{"$f":"SQRT((H185^2)+(H186^2)+(H187^2))","v":71.589105316381762},{"$f":"I185+I186+I187","v":0},{"$f":"SQRT((J185^2)+(J186^2)+(J187^2))","v":19.05255888325765},{"$f":"K185+K186+K187","v":2},{"$f":"SQRT((L185^2)+(L186^2)+(L187^2))","v":15.842979517754859},{"$f":"M185+M186+M187","v":0},{"$f":"SQRT((N185^2)+(N186^2)+(N187^2))","v":19.05255888325765},{"$f":"O185+O186+O187","v":0},{"$f":"SQRT((P185^2)+(P186^2)+(P187^2))","v":19.05255888325765},{"$f":"Q185+Q186+Q187","v":0},{"$f":"SQRT((R185^2)+(R186^2)+(R187^2))","v":19.05255888325765},{"$f":"S185+S186+S187","v":0},{"$f":"SQRT((T185^2)+(T186^2)+(T187^2))","v":19.05255888325765},{"$f":"U185+U186+U187","v":89},{"$f":"SQRT((V185^2)+(V186^2)+(V187^2))","v":79.460682101275722},{"$f":"W185+W186+W187","v":0},{"$f":"SQRT((X185^2)+(X186^2)+(X187^2))","v":19.05255888325765},{"$f":"Y185+Y186+Y187","v":0},{"$f":"SQRT((Z185^2)+(Z186^2)+(Z187^2))","v":19.05255888325765},{"$f":"AA185+AA186+AA187","v":0},{"$f":"SQRT((AB185^2)+(AB186^2)+(AB187^2))","v":19.05255888325765},{"$f":"AC185+AC186+AC187","v":0},{"$f":"SQRT((AD185^2)+(AD186^2)+(AD187^2))","v":19.05255888325765},{"$f":"AE185+AE186+AE187","v":0},{"$f":"SQRT((AF185^2)+(AF186^2)+(AF187^2))","v":19.05255888325765}]
[null,"More than 30.0 percent",{"$f":"C188+C189+C190+C191","v":0},{"$f":"SQRT((D188^2)+(D189^2)+(D190^2)+(D191^2))","v":22},{"$f":"E188+E189+E190+E191","v":138},{"$f":"SQRT((F188^2)+(F189^2)+(F190^2)+(F191^2))","v":104.6709128650362},{"$f":"G188+G189+G190+G191","v":264},{"$f":"SQRT((H188^2)+(H189^2)+(H190^2)+(H191^2))","v":93.653617121817561},{"$f":"I188+I189+I190+I191","v":6},{"$f":"SQRT((J188^2)+(J189^2)+(J190^2)+(J191^2))","v":19.974984355438178},{"$f":"K188+K189+K190+K191","v":2},{"$f":"SQRT((L188^2)+(L189^2)+(L190^2)+(L191^2))","v":19.28730152198591},{"$f":"M188+M189+M190+M191","v":3},{"$f":"SQRT((N188^2)+(N189^2)+(N190^2)+(N191^2))","v":19.467922333931785},{"$f":"O188+O189+O190+O191","v":0},{"$f":"SQRT((P188^2)+(P189^2)+(P190^2)+(P191^2))","v":22},{"$f":"Q188+Q189+Q190+Q191","v":2},{"$f":"SQRT((R188^2)+(R189^2)+(R190^2)+(R191^2))","v":19.28730152198591},{"$f":"S188+S189+S190+S191","v":0},{"$f":"SQRT((T188^2)+(T189^2)+(T190^2)+(T191^2))","v":22},{"$f":"U188+U189+U190+U191","v":95},{"$f":"SQRT((V188^2)+(V189^2)+(V190^2)+(V191^2))","v":59.084684986889791},{"$f":"W188+W189+W190+W191","v":0},{"$f":"SQRT((X188^2)+(X189^2)+(X190^2)+(X191^2))","v":22},{"$f":"Y188+Y189+Y190+Y191","v":6},{"$f":"SQRT((Z188^2)+(Z189^2)+(Z190^2)+(Z191^2))","v":21.071307505705477},{"$f":"AA188+AA189+AA190+AA191","v":53},{"$f":"SQRT((AB188^2)+(AB189^2)+(AB190^2)+(AB191^2))","v":52.57375771237966},{"$f":"AC188+AC189+AC190+AC191","v":0},{"$f":"SQRT((AD188^2)+(AD189^2)+(AD190^2)+(AD191^2))","v":22},{"$f":"AE188+AE189+AE190+AE191","v":0},{"$f":"SQRT((AF188^2)+(AF189^2)+(AF190^2)+(AF191^2))","v":22}]
[null,"Less Than 35% of HH Income",{"$f":"C185+C186+C187+C188","v":0},{"$f":"SQRT((D185^2)+(D186^2)+(D187^2)+(D188^2))","v":22},{"$f":"E185+E186+E187+E188","v":44},{"$f":"SQRT((F185^2)+(F186^2)+(F187^2)+(F188^2))","v":58.412327466040935},{"$f":"G185+G186+G187+G188","v":148},{"$f":"SQRT((H185^2)+(H186^2)+(H187^2)+(H188^2))","v":74.605629814377949},{"$f":"I185+I186+I187+I188","v":0},{"$f":"SQRT((J185^2)+(J186^2)+(J187^2)+(J188^2))","v":22},{"$f":"K185+K186+K187+K188","v":2},{"$f":"SQRT((L185^2)+(L186^2)+(L187^2)+(L188^2))","v":19.28730152198591},{"$f":"M185+M186+M187+M188","v":0},{"$f":"SQRT((N185^2)+(N186^2)+(N187^2)+(N188^2))","v":22},{"$f":"O185+O186+O187+O188","v":0},{"$f":"SQRT((P185^2)+(P186^2)+(P187^2)+(P188^2))","v":22},{"$f":"Q185+Q186+Q187+Q188","v":0},{"$f":"SQRT((R185^2)+(R186^2)+(R187^2)+(R188^2))","v":22},{"$f":"S185+S186+S187+S188","v":0},{"$f":"SQRT((T185^2)+(T186^2)+(T187^2)+(T188^2))","v":22},{"$f":"U185+U186+U187+U188","v":112},{"$f":"SQRT((V185^2)+(V186^2)+(V187^2)+(V188^2))","v":83.922583373011108},{"$f":"W185+W186+W187+W188","v":0},{"$f":"SQRT((X185^2)+(X186^2)+(X187^2)+(X188^2))","v":22},{"$f":"Y185+Y186+Y187+Y188","v":0},{"$f":"SQRT((Z185^2)+(Z186^2)+(Z187^2)+(Z188^2))","v":22},{"$f":"AA185+AA186+AA187+AA188","v":0},{"$f":"SQRT((AB185^2)+(AB186^2)+(AB187^2)+(AB188^2))","v":22},{"$f":"AC185+AC186+AC187+AC188","v":0},{"$f":"SQRT((AD185^2)+(AD186^2)+(AD187^2)+(AD188^2))","v":22},{"$f":"AE185+AE186+AE187+AE188","v":0},{"$f":"SQRT((AF185^2)+(AF186^2)+(AF187^2)+(AF188^2))","v":22}]
[null,"35.0 percent or more",{"$f":"C189+C190++C191","v":0},{"$f":"SQRT((D189^2)+(D190^2)+(D191^2))","v":19.05255888325765},{"$f":"E189+E190++E191","v":105},{"$f":"SQRT((F189^2)+(F190^2)+(F191^2))","v":90.260733433758446},{"$f":"G189+G190++G191","v":246},{"$f":"SQRT((H189^2)+(H190^2)+(H191^2))","v":91.268833672837076},{"$f":"I189+I190++I191","v":6},{"$f":"SQRT((J189^2)+(J190^2)+(J191^2))","v":16.673332000533065},{"$f":"K189+K190++K191","v":2},{"$f":"SQRT((L189^2)+(L190^2)+(L191^2))","v":15.842979517754859},{"$f":"M189+M190++M191","v":3},{"$f":"SQRT((N189^2)+(N190^2)+(N191^2))","v":16.06237840420901},{"$f":"O189+O190++O191","v":0},{"$f":"SQRT((P189^2)+(P190^2)+(P191^2))","v":19.05255888325765},{"$f":"Q189+Q190++Q191","v":2},{"$f":"SQRT((R189^2)+(R190^2)+(R191^2))","v":15.842979517754859},{"$f":"S189+S190++S191","v":0},{"$f":"SQRT((T189^2)+(T190^2)+(T191^2))","v":19.05255888325765},{"$f":"U189+U190++U191","v":72},{"$f":"SQRT((V189^2)+(V190^2)+(V191^2))","v":52.55473337388365},{"$f":"W189+W190++W191","v":0},{"$f":"SQRT((X189^2)+(X190^2)+(X191^2))","v":19.05255888325765},{"$f":"Y189+Y190++Y191","v":6},{"$f":"SQRT((Z189^2)+(Z190^2)+(Z191^2))","v":17.972200755611428},{"$f":"AA189+AA190++AA191","v":53},{"$f":"SQRT((AB189^2)+(AB190^2)+(AB191^2))","v":51.410115736107812},{"$f":"AC189+AC190++AC191","v":0},{"$f":"SQRT((AD189^2)+(AD190^2)+(AD191^2))","v":19.05255888325765},{"$f":"AE189+AE190++AE191","v":0},{"$f":"SQRT((AF189^2)+(AF190^2)+(AF191^2))","v":19.05255888325765}]
[null,"50.0 percent or more",{"$f":"C191","v":0},{"$f":"D191","v":11},{"$f":"E191","v":50},{"$f":"F191","v":59},{"$f":"G191","v":197},81,{"$f":"I191","v":6},6,{"$f":"K191","v":2},3,{"$f":"M191","v":3},4,{"$f":"O191","v":0},11,{"$f":"Q191","v":2},3,{"$f":"S191","v":0},11,{"$f":"U191","v":42},39,{"$f":"W191","v":0},11,{"$f":"Y191","v":6},9,{"$f":"AA191","v":53},49,{"$f":"AC191","v":0},11,{"$f":"AE191","v":0},11]
[null,"Not Computed",{"$f":"C192","v":0},11,24,27,7,12,3,5,0,11,0,11,0,11,0,11,0,11,7,14,0,11,0,11,0,11,0,11,8,5]
[null,"$20,000 to $34,999:",15,14,80,70,580,153,15,16,0,11,18,20,0,11,5,8,18,15,77,54,32,28,0,11,22,34,3,4,6,6]
[null,"Less than 30.0 percent",{"$f":"C194+C195+C196","v":0},{"$f":"SQRT((D194^2)+(D195^2)+(D196^2))","v":19.05255888325765},{"$f":"E194+E195+E196","v":11},{"$f":"SQRT((F194^2)+(F195^2)+(F196^2))","v":22.315913604421397},{"$f":"G194+G195+G196","v":152},{"$f":"SQRT((H194^2)+(H195^2)+(H196^2))","v":96.0572745813663},{"$f":"I194+I195+I196","v":0},{"$f":"SQRT((J194^2)+(J195^2)+(J196^2))","v":19.05255888325765},{"$f":"K194+K195+K196","v":0},{"$f":"SQRT((L194^2)+(L195^2)+(L196^2))","v":19.05255888325765},{"$f":"M194+M195+M196","v":0},{"$f":"SQRT((N194^2)+(N195^2)+(N196^2))","v":19.05255888325765},{"$f":"O194+O195+O196","v":0},{"$f":"SQRT((P194^2)+(P195^2)+(P196^2))","v":19.05255888325765},{"$f":"Q194+Q195+Q196","v":0},{"$f":"SQRT((R194^2)+(R195^2)+(R196^2))","v":19.05255888325765},{"$f":"S194+S195+S196","v":0},{"$f":"SQRT((T194^2)+(T195^2)+(T196^2))","v":19.05255888325765},{"$f":"U194+U195+U196","v":17},{"$f":"SQRT((V194^2)+(V195^2)+(V196^2))","v":35.128336140500593},{"$f":"W194+W195+W196","v":20},{"$f":"SQRT((X194^2)+(X195^2)+(X196^2))","v":24.919871588754223},{"$f":"Y194+Y195+Y196","v":0},{"$f":"SQRT((Z194^2)+(Z195^2)+(Z196^2))","v":19.05255888325765},{"$f":"AA194+AA195+AA196","v":0},{"$f":"SQRT((AB194^2)+(AB195^2)+(AB196^2))","v":19.05255888325765},{"$f":"AC194+AC195+AC196","v":0},{"$f":"SQRT((AD194^2)+(AD195^2)+(AD196^2))","v":19.05255888325765},{"$f":"AE194+AE195+AE196","v":0},{"$f":"SQRT((AF194^2)+(AF195^2)+(AF196^2))","v":19.05255888325765}]
[null,"More than 30.0 percent",{"$f":"C197+C198+C199+C200","v":15},{"$f":"SQRT((D197^2)+(D198^2)+(D199^2)+(D200^2))","v":20.663978319771825},{"$f":"E197+E198+E199+E200","v":69},{"$f":"SQRT((F197^2)+(F198^2)+(F199^2)+(F200^2))","v":66.234432133143557},{"$f":"G197+G198+G199+G200","v":385},{"$f":"SQRT((H197^2)+(H198^2)+(H199^2)+(H200^2))","v":139.68894014917572},{"$f":"I197+I198+I199+I200","v":13},{"$f":"SQRT((J197^2)+(J198^2)+(J199^2)+(J200^2))","v":21.447610589527216},{"$f":"K197+K198+K199+K200","v":0},{"$f":"SQRT((L197^2)+(L198^2)+(L199^2)+(L200^2))","v":22},{"$f":"M197+M198+M199+M200","v":18},{"$f":"SQRT((N197^2)+(N198^2)+(N199^2)+(N200^2))","v":24.879710609249457},{"$f":"O197+O198+O199+O200","v":0},{"$f":"SQRT((P197^2)+(P198^2)+(P199^2)+(P200^2))","v":22},{"$f":"Q197+Q198+Q199+Q200","v":0},{"$f":"SQRT((R197^2)+(R198^2)+(R199^2)+(R200^2))","v":22},{"$f":"S197+S198+S199+S200","v":16},{"$f":"SQRT((T197^2)+(T198^2)+(T199^2)+(T200^2))","v":21.794494717703369},{"$f":"U197+U198+U199+U200","v":50},{"$f":"SQRT((V197^2)+(V198^2)+(V199^2)+(V200^2))","v":52.98112871579842},{"$f":"W197+W198+W199+W200","v":8},{"$f":"SQRT((X197^2)+(X198^2)+(X199^2)+(X200^2))","v":17.944358444926362},{"$f":"Y197+Y198+Y199+Y200","v":0},{"$f":"SQRT((Z197^2)+(Z198^2)+(Z199^2)+(Z200^2))","v":22},{"$f":"AA197+AA198+AA199+AA200","v":22},{"$f":"SQRT((AB197^2)+(AB198^2)+(AB199^2)+(AB200^2))","v":38.974350539810153},{"$f":"AC197+AC198+AC199+AC200","v":0},{"$f":"SQRT((AD197^2)+(AD198^2)+(AD199^2)+(AD200^2))","v":22},{"$f":"AE197+AE198+AE199+AE200","v":6},{"$f":"SQRT((AF197^2)+(AF198^2)+(AF199^2)+(AF200^2))","v":16.552945357246848}]
[null,"Less Than 35% of HH Income",{"$f":"C194+C195+C196+C197","v":0},{"$f":"SQRT((D194^2)+(D195^2)+(D196^2)+(D197^2))","v":22},{"$f":"E194+E195+E196+E197","v":41},{"$f":"SQRT((F194^2)+(F195^2)+(F196^2)+(F197^2))","v":52.028838157314254},{"$f":"G194+G195+G196+G197","v":254},{"$f":"SQRT((H194^2)+(H195^2)+(H196^2)+(H197^2))","v":113.25634640054393},{"$f":"I194+I195+I196+I197","v":9},{"$f":"SQRT((J194^2)+(J195^2)+(J196^2)+(J197^2))","v":23.065125189341593},{"$f":"K194+K195+K196+K197","v":0},{"$f":"SQRT((L194^2)+(L195^2)+(L196^2)+(L197^2))","v":22},{"$f":"M194+M195+M196+M197","v":0},{"$f":"SQRT((N194^2)+(N195^2)+(N196^2)+(N197^2))","v":22},{"$f":"O194+O195+O196+O197","v":0},{"$f":"SQRT((P194^2)+(P195^2)+(P196^2)+(P197^2))","v":22},{"$f":"Q194+Q195+Q196+Q197","v":0},{"$f":"SQRT((R194^2)+(R195^2)+(R196^2)+(R197^2))","v":22},{"$f":"S194+S195+S196+S197","v":0},{"$f":"SQRT((T194^2)+(T195^2)+(T196^2)+(T197^2))","v":22},{"$f":"U194+U195+U196+U197","v":33},{"$f":"SQRT((V194^2)+(V195^2)+(V196^2)+(V197^2))","v":43.703546766824317},{"$f":"W194+W195+W196+W197","v":20},{"$f":"SQRT((X194^2)+(X195^2)+(X196^2)+(X197^2))","v":27.239676943752471},{"$f":"Y194+Y195+Y196+Y197","v":0},{"$f":"SQRT((Z194^2)+(Z195^2)+(Z196^2)+(Z197^2))","v":22},{"$f":"AA194+AA195+AA196+AA197","v":0},{"$f":"SQRT((AB194^2)+(AB195^2)+(AB196^2)+(AB197^2))","v":22},{"$f":"AC194+AC195+AC196+AC197","v":0},{"$f":"SQRT((AD194^2)+(AD195^2)+(AD196^2)+(AD197^2))","v":22},{"$f":"AE194+AE195+AE196+AE197","v":3},{"$f":"SQRT((AF194^2)+(AF195^2)+(AF196^2)+(AF197^2))","v":19.467922333931785}]
[null,"35.0 percent or more",{"$f":"C198+C199+C200","v":15},{"$f":"SQRT((D198^2)+(D199^2)+(D200^2))","v":17.4928556845359},{"$f":"E198+E199+E200","v":39},{"$f":"SQRT((F198^2)+(F199^2)+(F200^2))","v":46.669047558312137},{"$f":"G198+G199+G200","v":283},{"$f":"SQRT((H198^2)+(H199^2)+(H200^2))","v":126.14673994994877},{"$f":"I198+I199+I200","v":4},{"$f":"SQRT((J198^2)+(J199^2)+(J200^2))","v":17.058722109231979},{"$f":"K198+K199+K200","v":0},{"$f":"SQRT((L198^2)+(L199^2)+(L200^2))","v":19.05255888325765},{"$f":"M198+M199+M200","v":18},{"$f":"SQRT((N198^2)+(N199^2)+(N200^2))","v":22.315913604421397},{"$f":"O198+O199+O200","v":0},{"$f":"SQRT((P198^2)+(P199^2)+(P200^2))","v":19.05255888325765},{"$f":"Q198+Q199+Q200","v":0},{"$f":"SQRT((R198^2)+(R199^2)+(R200^2))","v":19.05255888325765},{"$f":"S198+S199+S200","v":16},{"$f":"SQRT((T198^2)+(T199^2)+(T200^2))","v":18.814887722226779},{"$f":"U198+U199+U200","v":34},{"$f":"SQRT((V198^2)+(V199^2)+(V200^2))","v":46.162755550335163},{"$f":"W198+W199+W200","v":8},{"$f":"SQRT((X198^2)+(X199^2)+(X200^2))","v":14.177446878757825},{"$f":"Y198+Y199+Y200","v":0},{"$f":"SQRT((Z198^2)+(Z199^2)+(Z200^2))","v":19.05255888325765},{"$f":"AA198+AA199+AA200","v":22},{"$f":"SQRT((AB198^2)+(AB199^2)+(AB200^2))","v":37.389838191679836},{"$f":"AC198+AC199+AC200","v":0},{"$f":"SQRT((AD198^2)+(AD199^2)+(AD200^2))","v":19.05255888325765},{"$f":"AE198+AE199+AE200","v":3},{"$f":"SQRT((AF198^2)+(AF199^2)+(AF200^2))","v":16.06237840420901}]
[null,"50.0 percent or more",{"$f":"C200","v":0},11,39,44,108,90,4,7,0,11,12,16,0,11,0,11,0,11,34,41,6,8,0,11,22,34,0,11,3,4]
[null,"Not Computed",0,11,0,11,43,29,2,3,0,11,0,11,0,11,5,8,2,4,10,17,4,6,0,11,0,11,3,4,0,11]
[null,"$35,000 to $49,999:",9,11,92,92,270,89,0,11,6,9,15,14,20,22,3,5,2,3,265,147,0,11,16,19,24,22,6,9,12,15]
[null,"Less than 30.0 percent",{"$f":"C203+C204+C205","v":7},{"$f":"SQRT((D203^2)+(D204^2)+(D205^2))","v":19.05255888325765},{"$f":"E203+E204+E205","v":56},{"$f":"SQRT((F203^2)+(F204^2)+(F205^2))","v":68.571130951735071},{"$f":"G203+G204+G205","v":185},{"$f":"SQRT((H203^2)+(H204^2)+(H205^2))","v":82.395388220458074},{"$f":"I203+I204+I205","v":0},{"$f":"SQRT((J203^2)+(J204^2)+(J205^2))","v":19.05255888325765},{"$f":"K203+K204+K205","v":0},{"$f":"SQRT((L203^2)+(L204^2)+(L205^2))","v":19.05255888325765},{"$f":"M203+M204+M205","v":0},{"$f":"SQRT((N203^2)+(N204^2)+(N205^2))","v":19.05255888325765},{"$f":"O203+O204+O205","v":10},{"$f":"SQRT((P203^2)+(P204^2)+(P205^2))","v":23.043437243605826},{"$f":"Q203+Q204+Q205","v":0},{"$f":"SQRT((R203^2)+(R204^2)+(R205^2))","v":19.05255888325765},{"$f":"S203+S204+S205","v":0},{"$f":"SQRT((T203^2)+(T204^2)+(T205^2))","v":19.05255888325765},{"$f":"U203+U204+U205","v":200},{"$f":"SQRT((V203^2)+(V204^2)+(V205^2))","v":148.07092894960846},{"$f":"W203+W204+W205","v":0},{"$f":"SQRT((X203^2)+(X204^2)+(X205^2))","v":19.05255888325765},{"$f":"Y203+Y204+Y205","v":16},{"$f":"SQRT((Z203^2)+(Z204^2)+(Z205^2))","v":22.315913604421397},{"$f":"AA203+AA204+AA205","v":9},{"$f":"SQRT((AB203^2)+(AB204^2)+(AB205^2))","v":20.928449536456348},{"$f":"AC203+AC204+AC205","v":6},{"$f":"SQRT((AD203^2)+(AD204^2)+(AD205^2))","v":17.972200755611428},{"$f":"AE203+AE204+AE205","v":9},{"$f":"SQRT((AF203^2)+(AF204^2)+(AF205^2))","v":20.928449536456348}]
[null,"More than 30.0 percent",{"$f":"C206+C207+C208+C209","v":0},{"$f":"SQRT((D206^2)+(D207^2)+(D208^2)+(D209^2))","v":22},{"$f":"E206+E207+E208+E209","v":0},{"$f":"SQRT((F206^2)+(F207^2)+(F208^2)+(F209^2))","v":22},{"$f":"G206+G207+G208+G209","v":75},{"$f":"SQRT((H206^2)+(H207^2)+(H208^2)+(H209^2))","v":58.197938107805847},{"$f":"I206+I207+I208+I209","v":0},{"$f":"SQRT((J206^2)+(J207^2)+(J208^2)+(J209^2))","v":22},{"$f":"K206+K207+K208+K209","v":6},{"$f":"SQRT((L206^2)+(L207^2)+(L208^2)+(L209^2))","v":21.071307505705477},{"$f":"M206+M207+M208+M209","v":15},{"$f":"SQRT((N206^2)+(N207^2)+(N208^2)+(N209^2))","v":20.566963801203133},{"$f":"O206+O207+O208+O209","v":10},{"$f":"SQRT((P206^2)+(P207^2)+(P208^2)+(P209^2))","v":24.879710609249457},{"$f":"Q206+Q207+Q208+Q209","v":3},{"$f":"SQRT((R206^2)+(R207^2)+(R208^2)+(R209^2))","v":19.697715603592208},{"$f":"S206+S207+S208+S209","v":2},{"$f":"SQRT((T206^2)+(T207^2)+(T208^2)+(T209^2))","v":19.28730152198591},{"$f":"U206+U207+U208+U209","v":65},{"$f":"SQRT((V206^2)+(V207^2)+(V208^2)+(V209^2))","v":80.318117507820119},{"$f":"W206+W207+W208+W209","v":0},{"$f":"SQRT((X206^2)+(X207^2)+(X208^2)+(X209^2))","v":22},{"$f":"Y206+Y207+Y208+Y209","v":0},{"$f":"SQRT((Z206^2)+(Z207^2)+(Z208^2)+(Z209^2))","v":22},{"$f":"AA206+AA207+AA208+AA209","v":15},{"$f":"SQRT((AB206^2)+(AB207^2)+(AB208^2)+(AB209^2))","v":23.558437978779494},{"$f":"AC206+AC207+AC208+AC209","v":0},{"$f":"SQRT((AD206^2)+(AD207^2)+(AD208^2)+(AD209^2))","v":22},{"$f":"AE206+AE207+AE208+AE209","v":0},{"$f":"SQRT((AF206^2)+(AF207^2)+(AF208^2)+(AF209^2))","v":22}]
[null,"Less Than 35% of HH Income",{"$f":"C203+C204+C205+C206","v":7},{"$f":"SQRT((D203^2)+(D204^2)+(D205^2)+(D206^2))","v":22},{"$f":"E203+E204+E205+E206","v":56},{"$f":"SQRT((F203^2)+(F204^2)+(F205^2)+(F206^2))","v":69.447822140078657},{"$f":"G203+G204+G205+G206","v":237},{"$f":"SQRT((H203^2)+(H204^2)+(H205^2)+(H206^2))","v":93.882905792268701},{"$f":"I203+I204+I205+I206","v":0},{"$f":"SQRT((J203^2)+(J204^2)+(J205^2)+(J206^2))","v":22},{"$f":"K203+K204+K205+K206","v":0},{"$f":"SQRT((L203^2)+(L204^2)+(L205^2)+(L206^2))","v":22},{"$f":"M203+M204+M205+M206","v":8},{"$f":"SQRT((N203^2)+(N204^2)+(N205^2)+(N206^2))","v":21.517434791350013},{"$f":"O203+O204+O205+O206","v":10},{"$f":"SQRT((P203^2)+(P204^2)+(P205^2)+(P206^2))","v":25.534290669607408},{"$f":"Q203+Q204+Q205+Q206","v":0},{"$f":"SQRT((R203^2)+(R204^2)+(R205^2)+(R206^2))","v":22},{"$f":"S203+S204+S205+S206","v":0},{"$f":"SQRT((T203^2)+(T204^2)+(T205^2)+(T206^2))","v":22},{"$f":"U203+U204+U205+U206","v":200},{"$f":"SQRT((V203^2)+(V204^2)+(V205^2)+(V206^2))","v":148.82876066137217},{"$f":"W203+W204+W205+W206","v":0},{"$f":"SQRT((X203^2)+(X204^2)+(X205^2)+(X206^2))","v":22},{"$f":"Y203+Y204+Y205+Y206","v":16},{"$f":"SQRT((Z203^2)+(Z204^2)+(Z205^2)+(Z206^2))","v":24.879710609249457},{"$f":"AA203+AA204+AA205+AA206","v":16},{"$f":"SQRT((AB203^2)+(AB204^2)+(AB205^2)+(AB206^2))","v":24.124676163629637},{"$f":"AC203+AC204+AC205+AC206","v":6},{"$f":"SQRT((AD203^2)+(AD204^2)+(AD205^2)+(AD206^2))","v":21.071307505705477},{"$f":"AE203+AE204+AE205+AE206","v":9},{"$f":"SQRT((AF203^2)+(AF204^2)+(AF205^2)+(AF206^2))","v":23.643180835073778}]
[null,"35.0 percent or more",{"$f":"C207+C208+C209","v":0},{"$f":"SQRT((D207^2)+(D208^2)+(D209^2))","v":19.05255888325765},{"$f":"E207+E208+E209","v":0},{"$f":"SQRT((F207^2)+(F208^2)+(F209^2))","v":19.05255888325765},{"$f":"G207+G208+G209","v":23},{"$f":"SQRT((H207^2)+(H208^2)+(H209^2))","v":36.905284174491868},{"$f":"I207+I208+I209","v":0},{"$f":"SQRT((J207^2)+(J208^2)+(J209^2))","v":19.05255888325765},{"$f":"K207+K208+K209","v":6},{"$f":"SQRT((L207^2)+(L208^2)+(L209^2))","v":17.972200755611428},{"$f":"M207+M208+M209","v":7},{"$f":"SQRT((N207^2)+(N208^2)+(N209^2))","v":17.972200755611428},{"$f":"O207+O208+O209","v":10},{"$f":"SQRT((P207^2)+(P208^2)+(P209^2))","v":22.315913604421397},{"$f":"Q207+Q208+Q209","v":3},{"$f":"SQRT((R207^2)+(R208^2)+(R209^2))","v":16.340134638368191},{"$f":"S207+S208+S209","v":2},{"$f":"SQRT((T207^2)+(T208^2)+(T209^2))","v":15.842979517754859},{"$f":"U207+U208+U209","v":65},{"$f":"SQRT((V207^2)+(V208^2)+(V209^2))","v":78.90500617831546},{"$f":"W207+W208+W209","v":0},{"$f":"SQRT((X207^2)+(X208^2)+(X209^2))","v":19.05255888325765},{"$f":"Y207+Y208+Y209","v":0},{"$f":"SQRT((Z207^2)+(Z208^2)+(Z209^2))","v":19.05255888325765},{"$f":"AA207+AA208+AA209","v":8},{"$f":"SQRT((AB207^2)+(AB208^2)+(AB209^2))","v":20.273134932713294},{"$f":"AC207+AC208+AC209","v":0},{"$f":"SQRT((AD207^2)+(AD208^2)+(AD209^2))","v":19.05255888325765},{"$f":"AE207+AE208+AE209","v":0},{"$f":"SQRT((AF207^2)+(AF208^2)+(AF209^2))","v":19.05255888325765}]
[null,"50.0 percent or more",{"$f":"C209","v":0},{"$f":"D209","v":11},{"$f":"E209","v":0},{"$f":"F209","v":11},{"$f":"G209","v":0},17,{"$f":"I209","v":0},11,{"$f":"K209","v":0},11,{"$f":"M209","v":0},11,{"$f":"O209","v":10},16,{"$f":"Q209","v":0},11,{"$f":"S209","v":2},3,{"$f":"U209","v":0},15,{"$f":"W209","v":0},11,{"$f":"Y209","v":0},11,{"$f":"AA209","v":0},11,{"$f":"AC209","v":0},11,{"$f":"AE209","v":0},11]
[null,"Not Computed",{"$f":"C210","v":2},3,{"$f":"E210","v":36},58,{"$f":"G210","v":10},15,{"$f":"I210","v":0},11,{"$f":"K210","v":0},11,{"$f":"M210","v":0},11,{"$f":"O210","v":0},11,{"$f":"Q210","v":0},11,{"$f":"S210","v":0},11,{"$f":"U210","v":0},15,{"$f":"W210","v":0},11,{"$f":"Y210","v":0},11,{"$f":"AA210","v":0},11,{"$f":"AC210","v":0},11,{"$f":"AE210","v":3},4]
[null,"$50,000 to $74,999:",{"$f":"C211","v":11},12,41,44,262,124,41,28,8,11,7,11,12,19,12,14,3,4,134,75,27,27,5,6,159,93,7,8,3,4]
[null,"Less than 30.0 percent",{"$f":"C212+C213+C214","v":3},{"$f":"SQRT((D212^2)+(D213^2)+(D214^2))","v":16.340134638368191},{"$f":"E212+E213+E214","v":41},{"$f":"SQRT((F212^2)+(F213^2)+(F214^2))","v":45.891175622335062},{"$f":"G212+G213+G214","v":262},{"$f":"SQRT((H212^2)+(H213^2)+(H214^2))","v":132.15899515356494},{"$f":"I212+I213+I214","v":38},{"$f":"SQRT((J212^2)+(J213^2)+(J214^2))","v":27.477263328068172},{"$f":"K212+K213+K214","v":8},{"$f":"SQRT((L212^2)+(L213^2)+(L214^2))","v":15.165750888103101},{"$f":"M212+M213+M214","v":7},{"$f":"SQRT((N212^2)+(N213^2)+(N214^2))","v":19.05255888325765},{"$f":"O212+O213+O214","v":12},{"$f":"SQRT((P212^2)+(P213^2)+(P214^2))","v":24.556058315617349},{"$f":"Q212+Q213+Q214","v":12},{"$f":"SQRT((R212^2)+(R213^2)+(R214^2))","v":20.928449536456348},{"$f":"S212+S213+S214","v":0},{"$f":"SQRT((T212^2)+(T213^2)+(T214^2))","v":19.05255888325765},{"$f":"U212+U213+U214","v":118},{"$f":"SQRT((V212^2)+(V213^2)+(V214^2))","v":72.449982746719826},{"$f":"W212+W213+W214","v":27},{"$f":"SQRT((X212^2)+(X213^2)+(X214^2))","v":29.631064780058107},{"$f":"Y212+Y213+Y214","v":5},{"$f":"SQRT((Z212^2)+(Z213^2)+(Z214^2))","v":12.369316876852981},{"$f":"AA212+AA213+AA214","v":122},{"$f":"SQRT((AB212^2)+(AB213^2)+(AB214^2))","v":86.717933554715202},{"$f":"AC212+AC213+AC214","v":7},{"$f":"SQRT((AD212^2)+(AD213^2)+(AD214^2))","v":17.4928556845359},{"$f":"AE212+AE213+AE214","v":3},{"$f":"SQRT((AF212^2)+(AF213^2)+(AF214^2))","v":16.06237840420901}]
[null,"More than 30.0 percent",{"$f":"C215+C216+C217+C218","v":0},{"$f":"SQRT((D215^2)+(D216^2)+(D217^2)+(D218^2))","v":22},{"$f":"E215+E216+E217+E218","v":0},{"$f":"SQRT((F215^2)+(F216^2)+(F217^2)+(F218^2))","v":22},{"$f":"G215+G216+G217+G218","v":0},{"$f":"SQRT((H215^2)+(H216^2)+(H217^2)+(H218^2))","v":34},{"$f":"I215+I216+I217+I218","v":3},{"$f":"SQRT((J215^2)+(J216^2)+(J217^2)+(J218^2))","v":19.697715603592208},{"$f":"K215+K216+K217+K218","v":0},{"$f":"SQRT((L215^2)+(L216^2)+(L217^2)+(L218^2))","v":22},{"$f":"M215+M216+M217+M218","v":0},{"$f":"SQRT((N215^2)+(N216^2)+(N217^2)+(N218^2))","v":22},{"$f":"O215+O216+O217+O218","v":0},{"$f":"SQRT((P215^2)+(P216^2)+(P217^2)+(P218^2))","v":22},{"$f":"Q215+Q216+Q217+Q218","v":0},{"$f":"SQRT((R215^2)+(R216^2)+(R217^2)+(R218^2))","v":22},{"$f":"S215+S216+S217+S218","v":0},{"$f":"SQRT((T215^2)+(T216^2)+(T217^2)+(T218^2))","v":22},{"$f":"U215+U216+U217+U218","v":16},{"$f":"SQRT((V215^2)+(V216^2)+(V217^2)+(V218^2))","v":36.055512754639892},{"$f":"W215+W216+W217+W218","v":0},{"$f":"SQRT((X215^2)+(X216^2)+(X217^2)+(X218^2))","v":22},{"$f":"Y215+Y216+Y217+Y218","v":0},{"$f":"SQRT((Z215^2)+(Z216^2)+(Z217^2)+(Z218^2))","v":22},{"$f":"AA215+AA216+AA217+AA218","v":37},{"$f":"SQRT((AB215^2)+(AB216^2)+(AB217^2)+(AB218^2))","v":32.603680773802211},{"$f":"AC215+AC216+AC217+AC218","v":0},{"$f":"SQRT((AD215^2)+(AD216^2)+(AD217^2)+(AD218^2))","v":22},{"$f":"AE215+AE216+AE217+AE218","v":0},{"$f":"SQRT((AF215^2)+(AF216^2)+(AF217^2)+(AF218^2))","v":22}]
[null,"Less Than 35% of HH Income",{"$f":"C215+C214+C213+C212","v":3},{"$f":"SQRT((D215^2)+(D214^2)+(D213^2)+(D212^2))","v":19.697715603592208},{"$f":"E215+E214+E213+E212","v":41},{"$f":"SQRT((F215^2)+(F214^2)+(F213^2)+(F212^2))","v":47.191100855987671},{"$f":"G215+G214+G213+G212","v":262},{"$f":"SQRT((H215^2)+(H214^2)+(H213^2)+(H212^2))","v":133.24788928909905},{"$f":"I215+I214+I213+I212","v":41},{"$f":"SQRT((J215^2)+(J214^2)+(J213^2)+(J212^2))","v":27.928480087537881},{"$f":"K215+K214+K213+K212","v":8},{"$f":"SQRT((L215^2)+(L214^2)+(L213^2)+(L212^2))","v":18.734993995195193},{"$f":"M215+M214+M213+M212","v":7},{"$f":"SQRT((N215^2)+(N214^2)+(N213^2)+(N212^2))","v":22},{"$f":"O215+O214+O213+O212","v":12},{"$f":"SQRT((P215^2)+(P214^2)+(P213^2)+(P212^2))","v":26.90724809414742},{"$f":"Q215+Q214+Q213+Q212","v":12},{"$f":"SQRT((R215^2)+(R214^2)+(R213^2)+(R212^2))","v":23.643180835073778},{"$f":"S215+S214+S213+S212","v":0},{"$f":"SQRT((T215^2)+(T214^2)+(T213^2)+(T212^2))","v":22},{"$f":"U215+U214+U213+U212","v":134},{"$f":"SQRT((V215^2)+(V214^2)+(V213^2)+(V212^2))","v":76.642025025438883},{"$f":"W215+W214+W213+W212","v":27},{"$f":"SQRT((X215^2)+(X214^2)+(X213^2)+(X212^2))","v":31.606961258558215},{"$f":"Y215+Y214+Y213+Y212","v":5},{"$f":"SQRT((Z215^2)+(Z214^2)+(Z213^2)+(Z212^2))","v":16.552945357246848},{"$f":"AA215+AA214+AA213+AA212","v":122},{"$f":"SQRT((AB215^2)+(AB214^2)+(AB213^2)+(AB212^2))","v":87.41281370600079},{"$f":"AC215+AC214+AC213+AC212","v":7},{"$f":"SQRT((AD215^2)+(AD214^2)+(AD213^2)+(AD212^2))","v":20.663978319771825},{"$f":"AE215+AE214+AE213+AE212","v":3},{"$f":"SQRT((AF215^2)+(AF214^2)+(AF213^2)+(AF212^2))","v":19.467922333931785}]
[null,"35.0 percent or more",{"$f":"C216+C217+C218","v":0},{"$f":"SQRT((D216^2)+(D217^2)+(D218^2))","v":19.05255888325765},{"$f":"E216+E217+E218","v":0},{"$f":"SQRT((F216^2)+(F217^2)+(F218^2))","v":19.05255888325765},{"$f":"G216+G217+G218","v":0},{"$f":"SQRT((H216^2)+(H217^2)+(H218^2))","v":29.444863728670914},{"$f":"I216+I217+I218","v":0},{"$f":"SQRT((J216^2)+(J217^2)+(J218^2))","v":19.05255888325765},{"$f":"K216+K217+K218","v":0},{"$f":"SQRT((L216^2)+(L217^2)+(L218^2))","v":19.05255888325765},{"$f":"M216+M217+M218","v":0},{"$f":"SQRT((N216^2)+(N217^2)+(N218^2))","v":19.05255888325765},{"$f":"O216+O217+O218","v":0},{"$f":"SQRT((P216^2)+(P217^2)+(P218^2))","v":19.05255888325765},{"$f":"Q216+Q217+Q218","v":0},{"$f":"SQRT((R216^2)+(R217^2)+(R218^2))","v":19.05255888325765},{"$f":"S216+S217+S218","v":0},{"$f":"SQRT((T216^2)+(T217^2)+(T218^2))","v":19.05255888325765},{"$f":"U216+U217+U218","v":0},{"$f":"SQRT((V216^2)+(V217^2)+(V218^2))","v":25.98076211353316},{"$f":"W216+W217+W218","v":0},{"$f":"SQRT((X216^2)+(X217^2)+(X218^2))","v":19.05255888325765},{"$f":"Y216+Y217+Y218","v":0},{"$f":"SQRT((Z216^2)+(Z217^2)+(Z218^2))","v":19.05255888325765},{"$f":"AA216+AA217+AA218","v":37},{"$f":"SQRT((AB216^2)+(AB217^2)+(AB218^2))","v":30.692018506445613},{"$f":"AC216+AC217+AC218","v":0},{"$f":"SQRT((AD216^2)+(AD217^2)+(AD218^2))","v":19.05255888325765},{"$f":"AE216+AE217+AE218","v":0},{"$f":"SQRT((AF216^2)+(AF217^2)+(AF218^2))","v":19.05255888325765}]
[null,"50.0 percent or more",{"$f":"C218","v":0},{"$f":"D218","v":11},{"$f":"E218","v":0},{"$f":"F218","v":11},{"$f":"G218","v":0},17,{"$f":"I218","v":0},11,{"$f":"K218","v":0},11,{"$f":"M218","v":0},11,{"$f":"O218","v":0},11,{"$f":"Q218","v":0},11,{"$f":"S218","v":0},11,{"$f":"U218","v":0},15,{"$f":"W218","v":0},11,{"$f":"Y218","v":0},11,{"$f":"AA218","v":0},11,{"$f":"AC218","v":0},11,{"$f":"AE218","v":0},11]
[null,"Not Computed",{"$f":"C219","v":8},12,{"$f":"E219","v":0},11,{"$f":"G219","v":0},17,{"$f":"I219","v":0},11,{"$f":"K219","v":0},11,{"$f":"M219","v":0},11,{"$f":"O219","v":0},11,{"$f":"Q219","v":0},11,{"$f":"S219","v":3},4,{"$f":"U219","v":0},15,{"$f":"W219","v":0},11,{"$f":"Y219","v":0},11,{"$f":"AA219","v":0},11,{"$f":"AC219","v":0},11,{"$f":"AE219","v":0},11]
[null,"$75,000 to $99,999:",{"$f":"C220","v":22},14,{"$f":"E220","v":9},16,{"$f":"G220","v":60},55,{"$f":"I220","v":11},12,{"$f":"K220","v":16},15,{"$f":"M220","v":10},11,{"$f":"O220","v":21},17,{"$f":"Q220","v":7},11,{"$f":"S220","v":15},17,{"$f":"U220","v":112},96,{"$f":"W220","v":11},13,{"$f":"Y220","v":30},23,{"$f":"AA220","v":89},69,{"$f":"AC220","v":0},11,{"$f":"AE220","v":2},3]
[null,"Less than 30.0 percent",{"$f":"C221+C222+C223","v":22},{"$f":"SQRT((D221^2)+(D222^2)+(D223^2))","v":18.627936010197157},{"$f":"E221+E222+E223","v":0},{"$f":"SQRT((F221^2)+(F222^2)+(F223^2))","v":19.05255888325765},{"$f":"G221+G222+G223","v":50},{"$f":"SQRT((H221^2)+(H222^2)+(H223^2))","v":49.101934788763671},{"$f":"I221+I222+I223","v":11},{"$f":"SQRT((J221^2)+(J222^2)+(J223^2))","v":19.646882704388499},{"$f":"K221+K222+K223","v":14},{"$f":"SQRT((L221^2)+(L222^2)+(L223^2))","v":20.928449536456348},{"$f":"M221+M222+M223","v":10},{"$f":"SQRT((N221^2)+(N222^2)+(N223^2))","v":19.05255888325765},{"$f":"O221+O222+O223","v":9},{"$f":"SQRT((P221^2)+(P222^2)+(P223^2))","v":20.928449536456348},{"$f":"Q221+Q222+Q223","v":7},{"$f":"SQRT((R221^2)+(R222^2)+(R223^2))","v":15.165750888103101},{"$f":"S221+S222+S223","v":15},{"$f":"SQRT((T221^2)+(T222^2)+(T223^2))","v":23.043437243605826},{"$f":"U221+U222+U223","v":80},{"$f":"SQRT((V221^2)+(V222^2)+(V223^2))","v":87.607077339676152},{"$f":"W221+W222+W223","v":11},{"$f":"SQRT((X221^2)+(X222^2)+(X223^2))","v":16.431676725154983},{"$f":"Y221+Y222+Y223","v":30},{"$f":"SQRT((Z221^2)+(Z222^2)+(Z223^2))","v":25},{"$f":"AA221+AA222+AA223","v":89},{"$f":"SQRT((AB221^2)+(AB222^2)+(AB223^2))","v":69.130311730817468},{"$f":"AC221+AC222+AC223","v":0},{"$f":"SQRT((AD221^2)+(AD222^2)+(AD223^2))","v":19.05255888325765},{"$f":"AE221+AE222+AE223","v":2},{"$f":"SQRT((AF221^2)+(AF222^2)+(AF223^2))","v":15.842979517754859}]
[null,"More than 30.0 percent",{"$f":"C224+C225+C226+C227","v":0},{"$f":"SQRT((D224^2)+(D225^2)+(D226^2)+(D227^2))","v":22},{"$f":"E224+E225+E226+E227","v":0},{"$f":"SQRT((F224^2)+(F225^2)+(F226^2)+(F227^2))","v":22},{"$f":"G224+G225+G226+G227","v":0},{"$f":"SQRT((H224^2)+(H225^2)+(H226^2)+(H227^2))","v":34},{"$f":"I224+I225+I226+I227","v":0},{"$f":"SQRT((J224^2)+(J225^2)+(J226^2)+(J227^2))","v":22},{"$f":"K224+K225+K226+K227","v":0},{"$f":"SQRT((L224^2)+(L225^2)+(L226^2)+(L227^2))","v":22},{"$f":"M224+M225+M226+M227","v":0},{"$f":"SQRT((N224^2)+(N225^2)+(N226^2)+(N227^2))","v":22},{"$f":"O224+O225+O226+O227","v":12},{"$f":"SQRT((P224^2)+(P225^2)+(P226^2)+(P227^2))","v":23.643180835073778},{"$f":"Q224+Q225+Q226+Q227","v":0},{"$f":"SQRT((R224^2)+(R225^2)+(R226^2)+(R227^2))","v":22},{"$f":"S224+S225+S226+S227","v":0},{"$f":"SQRT((T224^2)+(T225^2)+(T226^2)+(T227^2))","v":22},{"$f":"U224+U225+U226+U227","v":32},{"$f":"SQRT((V224^2)+(V225^2)+(V226^2)+(V227^2))","v":51.96152422706632},{"$f":"W224+W225+W226+W227","v":0},{"$f":"SQRT((X224^2)+(X225^2)+(X226^2)+(X227^2))","v":22},{"$f":"Y224+Y225+Y226+Y227","v":0},{"$f":"SQRT((Z224^2)+(Z225^2)+(Z226^2)+(Z227^2))","v":22},{"$f":"AA224+AA225+AA226+AA227","v":0},{"$f":"SQRT((AB224^2)+(AB225^2)+(AB226^2)+(AB227^2))","v":22},{"$f":"AC224+AC225+AC226+AC227","v":0},{"$f":"SQRT((AD224^2)+(AD225^2)+(AD226^2)+(AD227^2))","v":22},{"$f":"AE224+AE225+AE226+AE227","v":0},{"$f":"SQRT((AF224^2)+(AF225^2)+(AF226^2)+(AF227^2))","v":22}]
[null,"Less Than 35% of HH Income",{"$f":"C221+C222+C223+C224","v":22},{"$f":"SQRT((D221^2)+(D222^2)+(D223^2)+(D224^2))","v":21.633307652783937},{"$f":"E221+E222+E223+E224","v":0},{"$f":"SQRT((F221^2)+(F222^2)+(F223^2)+(F224^2))","v":22},{"$f":"G221+G222+G223+G224","v":50},{"$f":"SQRT((H221^2)+(H222^2)+(H223^2)+(H224^2))","v":51.96152422706632},{"$f":"I221+I222+I223+I224","v":11},{"$f":"SQRT((J221^2)+(J222^2)+(J223^2)+(J224^2))","v":22.516660498395403},{"$f":"K221+K222+K223+K224","v":14},{"$f":"SQRT((L221^2)+(L222^2)+(L223^2)+(L224^2))","v":23.643180835073778},{"$f":"M221+M222+M223+M224","v":10},{"$f":"SQRT((N221^2)+(N222^2)+(N223^2)+(N224^2))","v":22},{"$f":"O221+O222+O223+O224","v":21},{"$f":"SQRT((P221^2)+(P222^2)+(P223^2)+(P224^2))","v":25.179356624028344},{"$f":"Q221+Q222+Q223+Q224","v":7},{"$f":"SQRT((R221^2)+(R222^2)+(R223^2)+(R224^2))","v":18.734993995195193},{"$f":"S221+S222+S223+S224","v":15},{"$f":"SQRT((T221^2)+(T222^2)+(T223^2)+(T224^2))","v":25.534290669607408},{"$f":"U221+U222+U223+U224","v":112},{"$f":"SQRT((V221^2)+(V222^2)+(V223^2)+(V224^2))","v":98.488578017961046},{"$f":"W221+W222+W223+W224","v":11},{"$f":"SQRT((X221^2)+(X222^2)+(X223^2)+(X224^2))","v":19.773719933285189},{"$f":"Y221+Y222+Y223+Y224","v":30},{"$f":"SQRT((Z221^2)+(Z222^2)+(Z223^2)+(Z224^2))","v":27.313000567495326},{"$f":"AA221+AA222+AA223+AA224","v":89},{"$f":"SQRT((AB221^2)+(AB222^2)+(AB223^2)+(AB224^2))","v":70},{"$f":"AC221+AC222+AC223+AC224","v":0},{"$f":"SQRT((AD221^2)+(AD222^2)+(AD223^2)+(AD224^2))","v":22},{"$f":"AE221+AE222+AE223+AE224","v":2},{"$f":"SQRT((AF221^2)+(AF222^2)+(AF223^2)+(AF224^2))","v":19.28730152198591}]
[null,"35.0 percent or more",{"$f":"C225+C226+C227","v":0},{"$f":"SQRT((D225^2)+(D226^2)+(D227^2))","v":19.05255888325765},{"$f":"E225+E226+E227","v":0},{"$f":"SQRT((F225^2)+(F226^2)+(F227^2))","v":19.05255888325765},{"$f":"G225+G226+G227","v":0},{"$f":"SQRT((H225^2)+(H226^2)+(H227^2))","v":29.444863728670914},{"$f":"I225+I226+I227","v":0},{"$f":"SQRT((J225^2)+(J226^2)+(J227^2))","v":19.05255888325765},{"$f":"K225+K226+K227","v":0},{"$f":"SQRT((L225^2)+(L226^2)+(L227^2))","v":19.05255888325765},{"$f":"M225+M226+M227","v":0},{"$f":"SQRT((N225^2)+(N226^2)+(N227^2))","v":19.05255888325765},{"$f":"O225+O226+O227","v":0},{"$f":"SQRT((P225^2)+(P226^2)+(P227^2))","v":19.05255888325765},{"$f":"Q225+Q226+Q227","v":0},{"$f":"SQRT((R225^2)+(R226^2)+(R227^2))","v":19.05255888325765},{"$f":"S225+S226+S227","v":0},{"$f":"SQRT((T225^2)+(T226^2)+(T227^2))","v":19.05255888325765},{"$f":"U225+U226+U227","v":0},{"$f":"SQRT((V225^2)+(V226^2)+(V227^2))","v":25.98076211353316},{"$f":"W225+W226+W227","v":0},{"$f":"SQRT((X225^2)+(X226^2)+(X227^2))","v":19.05255888325765},{"$f":"Y225+Y226+Y227","v":0},{"$f":"SQRT((Z225^2)+(Z226^2)+(Z227^2))","v":19.05255888325765},{"$f":"AA225+AA226+AA227","v":0},{"$f":"SQRT((AB225^2)+(AB226^2)+(AB227^2))","v":19.05255888325765},{"$f":"AC225+AC226+AC227","v":0},{"$f":"SQRT((AD225^2)+(AD226^2)+(AD227^2))","v":19.05255888325765},{"$f":"AE225+AE226+AE227","v":0},{"$f":"SQRT((AF225^2)+(AF226^2)+(AF227^2))","v":19.05255888325765}]
[null,"50.0 percent or more",{"$f":"C227","v":0},11,0,11,0,17,0,11,0,11,0,11,0,11,0,11,0,11,0,15,0,11,0,11,0,11,0,11,0,11]
[null,"Not Computed",0,11,9,16,10,16,0,11,2,4,0,11,0,11,0,11,0,11,0,15,0,11,0,11,0,11,0,11,0,11]
[null,"$100,000 or more:",11,17,0,11,45,42,18,16,10,11,7,8,40,61,0,11,8,12,0,15,48,36,12,14,37,48,0,11,0,11]
[null,"Less than 30.0 percent",{"$f":"C230+C231+C232","v":11},{"$f":"SQRT((D230^2)+(D231^2)+(D232^2))","v":23.043437243605826},{"$f":"E230+E231+E232","v":0},{"$f":"SQRT((F230^2)+(F231^2)+(F232^2))","v":19.05255888325765},{"$f":"G230+G231+G232","v":45},{"$f":"SQRT((H230^2)+(H231^2)+(H232^2))","v":48.394214530251446},{"$f":"I230+I231+I232","v":18},{"$f":"SQRT((J230^2)+(J231^2)+(J232^2))","v":22.315913604421397},{"$f":"K230+K231+K232","v":10},{"$f":"SQRT((L230^2)+(L231^2)+(L232^2))","v":15.779733838059499},{"$f":"M230+M231+M232","v":4},{"$f":"SQRT((N230^2)+(N231^2)+(N232^2))","v":17.058722109231979},{"$f":"O230+O231+O232","v":40},{"$f":"SQRT((P230^2)+(P231^2)+(P232^2))","v":62.952362942148568},{"$f":"Q230+Q231+Q232","v":0},{"$f":"SQRT((R230^2)+(R231^2)+(R232^2))","v":19.05255888325765},{"$f":"S230+S231+S232","v":0},{"$f":"SQRT((T230^2)+(T231^2)+(T232^2))","v":19.05255888325765},{"$f":"U230+U231+U232","v":0},{"$f":"SQRT((V230^2)+(V231^2)+(V232^2))","v":25.98076211353316},{"$f":"W230+W231+W232","v":34},{"$f":"SQRT((X230^2)+(X231^2)+(X232^2))","v":34.684290392049249},{"$f":"Y230+Y231+Y232","v":9},{"$f":"SQRT((Z230^2)+(Z231^2)+(Z232^2))","v":20.273134932713294},{"$f":"AA230+AA231+AA232","v":37},{"$f":"SQRT((AB230^2)+(AB231^2)+(AB232^2))","v":50.457903246171455},{"$f":"AC230+AC231+AC232","v":0},{"$f":"SQRT((AD230^2)+(AD231^2)+(AD232^2))","v":19.05255888325765},{"$f":"AE230+AE231+AE232","v":0},{"$f":"SQRT((AF230^2)+(AF231^2)+(AF232^2))","v":19.05255888325765}]
[null,"More than 30.0 percent",{"$f":"C233+C234+C235+C236","v":0},{"$f":"SQRT((D233^2)+(D234^2)+(D235^2)+(D236^2))","v":22},{"$f":"E233+E234+E235+E236","v":0},{"$f":"SQRT((F233^2)+(F234^2)+(F235^2)+(F236^2))","v":22},{"$f":"G233+G234+G235+G236","v":0},{"$f":"SQRT((H233^2)+(H234^2)+(H235^2)+(H236^2))","v":34},{"$f":"I233+I234+I235+I236","v":0},{"$f":"SQRT((J233^2)+(J234^2)+(J235^2)+(J236^2))","v":22},{"$f":"K233+K234+K235+K236","v":0},{"$f":"SQRT((L233^2)+(L234^2)+(L235^2)+(L236^2))","v":22},{"$f":"M233+M234+M235+M236","v":0},{"$f":"SQRT((N233^2)+(N234^2)+(N235^2)+(N236^2))","v":22},{"$f":"O233+O234+O235+O236","v":0},{"$f":"SQRT((P233^2)+(P234^2)+(P235^2)+(P236^2))","v":22},{"$f":"Q233+Q234+Q235+Q236","v":0},{"$f":"SQRT((R233^2)+(R234^2)+(R235^2)+(R236^2))","v":22},{"$f":"S233+S234+S235+S236","v":0},{"$f":"SQRT((T233^2)+(T234^2)+(T235^2)+(T236^2))","v":22},{"$f":"U233+U234+U235+U236","v":0},{"$f":"SQRT((V233^2)+(V234^2)+(V235^2)+(V236^2))","v":30},{"$f":"W233+W234+W235+W236","v":14},{"$f":"SQRT((X233^2)+(X234^2)+(X235^2)+(X236^2))","v":29.103264421710495},{"$f":"Y233+Y234+Y235+Y236","v":0},{"$f":"SQRT((Z233^2)+(Z234^2)+(Z235^2)+(Z236^2))","v":22},{"$f":"AA233+AA234+AA235+AA236","v":0},{"$f":"SQRT((AB233^2)+(AB234^2)+(AB235^2)+(AB236^2))","v":22},{"$f":"AC233+AC234+AC235+AC236","v":0},{"$f":"SQRT((AD233^2)+(AD234^2)+(AD235^2)+(AD236^2))","v":22},{"$f":"AE233+AE234+AE235+AE236","v":0},{"$f":"SQRT((AF233^2)+(AF234^2)+(AF235^2)+(AF236^2))","v":22}]
[null,"Less Than 35% of HH Income",{"$f":"C230+C231+C232+C233","v":11},{"$f":"SQRT(((D230^2)+(D231^2)+(D232^2)+(D233^2)))","v":25.534290669607408},{"$f":"E230+E231+E232+E233","v":0},{"$f":"SQRT(((F230^2)+(F231^2)+(F232^2)+(F233^2)))","v":22},{"$f":"G230+G231+G232+G233","v":45},{"$f":"SQRT(((H230^2)+(H231^2)+(H232^2)+(H233^2)))","v":51.293274412928639},{"$f":"I230+I231+I232+I233","v":18},{"$f":"SQRT(((J230^2)+(J231^2)+(J232^2)+(J233^2)))","v":24.879710609249457},{"$f":"K230+K231+K232+K233","v":10},{"$f":"SQRT(((L230^2)+(L231^2)+(L232^2)+(L233^2)))","v":19.235384061671343},{"$f":"M230+M231+M232+M233","v":4},{"$f":"SQRT(((N230^2)+(N231^2)+(N232^2)+(N233^2)))","v":20.297783130184438},{"$f":"O230+O231+O232+O233","v":40},{"$f":"SQRT(((P230^2)+(P231^2)+(P232^2)+(P233^2)))","v":63.906181234681831},{"$f":"Q230+Q231+Q232+Q233","v":0},{"$f":"SQRT(((R230^2)+(R231^2)+(R232^2)+(R233^2)))","v":22},{"$f":"S230+S231+S232+S233","v":0},{"$f":"SQRT(((T230^2)+(T231^2)+(T232^2)+(T233^2)))","v":22},{"$f":"U230+U231+U232+U233","v":0},{"$f":"SQRT(((V230^2)+(V231^2)+(V232^2)+(V233^2)))","v":30},{"$f":"W230+W231+W232+W233","v":48},{"$f":"SQRT(((X230^2)+(X231^2)+(X232^2)+(X233^2)))","v":41.073105555825698},{"$f":"Y230+Y231+Y232+Y233","v":9},{"$f":"SQRT(((Z230^2)+(Z231^2)+(Z232^2)+(Z233^2)))","v":23.065125189341593},{"$f":"AA230+AA231+AA232+AA233","v":37},{"$f":"SQRT(((AB230^2)+(AB231^2)+(AB232^2)+(AB233^2)))","v":51.643005334701428},{"$f":"AC230+AC231+AC232+AC233","v":0},{"$f":"SQRT(((AD230^2)+(AD231^2)+(AD232^2)+(AD233^2)))","v":22},{"$f":"AE230+AE231+AE232+AE233","v":0},{"$f":"SQRT(((AF230^2)+(AF231^2)+(AF232^2)+(AF233^2)))","v":22}]
[null,"35.0 percent or more",{"$f":"C234+C235+C236","v":0},{"$f":"SQRT((D234^2)+(D235^2)+(D236^2))","v":19.05255888325765},{"$f":"E234+E235+E236","v":0},{"$f":"SQRT((F234^2)+(F235^2)+(F236^2))","v":19.05255888325765},{"$f":"G234+G235+G236","v":0},{"$f":"SQRT((H234^2)+(H235^2)+(H236^2))","v":29.444863728670914},{"$f":"I234+I235+I236","v":0},{"$f":"SQRT((J234^2)+(J235^2)+(J236^2))","v":19.05255888325765},{"$f":"K234+K235+K236","v":0},{"$f":"SQRT((L234^2)+(L235^2)+(L236^2))","v":19.05255888325765},{"$f":"M234+M235+M236","v":0},{"$f":"SQRT((N234^2)+(N235^2)+(N236^2))","v":19.05255888325765},{"$f":"O234+O235+O236","v":0},{"$f":"SQRT((P234^2)+(P235^2)+(P236^2))","v":19.05255888325765},{"$f":"Q234+Q235+Q236","v":0},{"$f":"SQRT((R234^2)+(R235^2)+(R236^2))","v":19.05255888325765},{"$f":"S234+S235+S236","v":0},{"$f":"SQRT((T234^2)+(T235^2)+(T236^2))","v":19.05255888325765},{"$f":"U234+U235+U236","v":0},{"$f":"SQRT((V234^2)+(V235^2)+(V236^2))","v":25.98076211353316},{"$f":"W234+W235+W236","v":0},{"$f":"SQRT((X234^2)+(X235^2)+(X236^2))","v":19.05255888325765},{"$f":"Y234+Y235+Y236","v":0},{"$f":"SQRT((Z234^2)+(Z235^2)+(Z236^2))","v":19.05255888325765},{"$f":"AA234+AA235+AA236","v":0},{"$f":"SQRT((AB234^2)+(AB235^2)+(AB236^2))","v":19.05255888325765},{"$f":"AC234+AC235+AC236","v":0},{"$f":"SQRT((AD234^2)+(AD235^2)+(AD236^2))","v":19.05255888325765},{"$f":"AE234+AE235+AE236","v":0},{"$f":"SQRT((AF234^2)+(AF235^2)+(AF236^2))","v":19.05255888325765}]
[null,"50.0 percent or more",{"$f":"C236","v":0},{"$f":"D236","v":11},{"$f":"E236","v":0},{"$f":"F236","v":11},{"$f":"G236","v":0},17,{"$f":"I236","v":0},11,{"$f":"K236","v":0},11,{"$f":"M236","v":0},11,{"$f":"O236","v":0},11,{"$f":"Q236","v":0},11,{"$f":"S236","v":0},11,{"$f":"U236","v":0},15,{"$f":"W236","v":0},11,{"$f":"Y236","v":0},11,{"$f":"AA236","v":0},11,{"$f":"AC236","v":0},11,{"$f":"AE236","v":0},11]
[null,"Not Computed",{"$f":"C237","v":0},11,{"$f":"E237","v":0},11,{"$f":"G237","v":0},17,{"$f":"I237","v":0},11,{"$f":"K237","v":0},11,{"$f":"M237","v":3},4,{"$f":"O237","v":0},11,{"$f":"Q237","v":0},11,{"$f":"S237","v":8},12,{"$f":"U237","v":0},15,{"$f":"W237","v":0},11,{"$f":"Y237","v":3},4,{"$f":"AA237","v":0},11,{"$f":"AC237","v":0},11,{"$f":"AE237","v":0},11]
[]
[]
[null,"Calculated GROSS RENT AS A PERCENTAGE OF HOUSEHOLD INCOME IN THE PAST 12 MONTHS"]
[null,"Universe:  RENTER-OCCUPIED HOUSING UNITS"]
[null,"Data Set: 2010-2014 American Community Survey 5-Year Estimates"]
[]
[null,null,"Acworth",null,"Charlestown",null,"Claremont",null,"Cornish",null,"Croydon",null,"Goshen",null,"Grantham",null,"Langdon",null,"Lempster",null,"Newport",null,"Plainfield",null,"Springfield",null,"Sunapee",null,"Unity",null,"Washington"]
[null,null,"Estimate","Margin Of Error","Estimate","Margin Of Error","Estimate","Margin Of Error","Estimate","Margin Of Error","Estimate","Margin Of Error","Estimate","Margin Of Error","Estimate","Margin Of Error","Estimate","Margin Of Error","Estimate","Margin Of Error","Estimate","Margin Of Error","Estimate","Margin Of Error","Estimate","Margin Of Error","Estimate","Margin Of Error"]
[null,{"$f":"B259","v":"Total:"},73,32,464,161,1932,223,94,39,44,23,66,32,93,68,29,18,50,28,948,207,118,53,72,37,428,128,16,13,31,17]
[null,"Less than 30.0 percent",{"$f":"C303+C296+C289+C282+C275+C268+C261","v":43},{"$f":"SQRT((D303^2)+(D296^2)+(D289^2)+(D282^2)+(D275^2)+(D268^2)+(D261^2))","v":50.960769224963627},{"$f":"E303+E296+E289+E282+E275+E268+E261","v":119},{"$f":"SQRT((F303^2)+(F296^2)+(F289^2)+(F282^2)+(F275^2)+(F268^2)+(F261^2))","v":94.857788293845431},{"$f":"G303+G296+G289+G282+G275+G268+G261","v":832},{"$f":"SQRT((H303^2)+(H296^2)+(H289^2)+(H282^2)+(H275^2)+(H268^2)+(H261^2))","v":210.14994646680259},{"$f":"I303+I296+I289+I282+I275+I268+I261","v":67},{"$f":"SQRT((J303^2)+(J296^2)+(J289^2)+(J282^2)+(J275^2)+(J268^2)+(J261^2))","v":55.596762495670554},{"$f":"K303+K296+K289+K282+K275+K268+K261","v":34},{"$f":"SQRT((L303^2)+(L296^2)+(L289^2)+(L282^2)+(L275^2)+(L268^2)+(L261^2))","v":47.507894080878813},{"$f":"M303+M296+M289+M282+M275+M268+M261","v":21},{"$f":"SQRT((N303^2)+(N296^2)+(N289^2)+(N282^2)+(N275^2)+(N268^2)+(N261^2))","v":49.689032995219378},{"$f":"O303+O296+O289+O282+O275+O268+O261","v":71},{"$f":"SQRT((P303^2)+(P296^2)+(P289^2)+(P282^2)+(P275^2)+(P268^2)+(P261^2))","v":81.387959797503214},{"$f":"Q303+Q296+Q289+Q282+Q275+Q268+Q261","v":19},{"$f":"SQRT((R303^2)+(R296^2)+(R289^2)+(R282^2)+(R275^2)+(R268^2)+(R261^2))","v":49.829710013203972},{"$f":"S303+S296+S289+S282+S275+S268+S261","v":15},{"$f":"SQRT((T303^2)+(T296^2)+(T289^2)+(T282^2)+(T275^2)+(T268^2)+(T261^2))","v":52.04805471869242},{"$f":"U303+U296+U289+U282+U275+U268+U261","v":526},{"$f":"SQRT((V303^2)+(V296^2)+(V289^2)+(V282^2)+(V275^2)+(V268^2)+(V261^2))","v":211.53486710232903},{"$f":"W303+W296+W289+W282+W275+W268+W261","v":92},{"$f":"SQRT((X303^2)+(X296^2)+(X289^2)+(X282^2)+(X275^2)+(X268^2)+(X261^2))","v":63.725975865419272},{"$f":"Y303+Y296+Y289+Y282+Y275+Y268+Y261","v":60},{"$f":"SQRT((Z303^2)+(Z296^2)+(Z289^2)+(Z282^2)+(Z275^2)+(Z268^2)+(Z261^2))","v":52.687759489277965},{"$f":"AA303+AA296+AA289+AA282+AA275+AA268+AA261","v":257},{"$f":"SQRT((AB303^2)+(AB296^2)+(AB289^2)+(AB282^2)+(AB275^2)+(AB268^2)+(AB261^2))","v":127.9531164137865},{"$f":"AC303+AC296+AC289+AC282+AC275+AC268+AC261","v":13},{"$f":"SQRT((AD303^2)+(AD296^2)+(AD289^2)+(AD282^2)+(AD275^2)+(AD268^2)+(AD261^2))","v":49.436828377233098},{"$f":"AE303+AE296+AE289+AE282+AE275+AE268+AE261","v":14},{"$f":"SQRT((AF303^2)+(AF296^2)+(AF289^2)+(AF282^2)+(AF275^2)+(AF268^2)+(AF261^2))","v":48.979587585033826}]
[null,"More than 30.0 percent",{"$f":"C304+C297+C290+C283+C276+C269+C262","v":18},{"$f":"SQRT((D304^2)+(D297^2)+(D290^2)+(D283^2)+(D276^2)+(D269^2)+(D262^2))","v":56.797887284651708},262,157.69273921141709,973,215.90044001807871,22,56.418082207746124,8,56.885850613311568,36,57.9396237474839,22,59.983331017875294,5,56.391488719486738,18,57.157676649772952,390,165.46600859391032,22,59.908263203000637,9,56.947344099615393,161,100.73728207570423,0,58.20652884342099,6,56.373752757821613]
[null,"Less Than 35% of HH Income",{"$f":"C305+C298+C291+C284+C277+C270+C263","v":43},{"$f":"SQRT((D305^2)+(D298^2)+(D291^2)+(D284^2)+(D277^2)+(D270^2)+(D263^2))","v":58.68560300448484},182,120.91732712891069,1085,235.48248342498854,79,62.369864518050704,34,55.713553108736477,29,57.40209055426466,83,86.867715521935992,19,57.706152185014034,15,59.632206063502295,613,222.43425995111454,106,72.601652873746616,63,59.312730505347666,264,131.30879635424276,13,57.367238037053866,17,56.044625076808217]
[null,"35.0 percent or more",{"$f":"C306+C299+C292+C285+C278+C271+C264","v":18},{"$f":"SQRT((D306^2)+(D299^2)+(D292^2)+(D285^2)+(D278^2)+(D271^2)+(D264^2))","v":48.774993593028796},199,138.72274507087869,720,187.94680098368261,10,48.826222462934808,8,48.877397639399746,28,50.309044912421065,10,51.730068625510249,5,48.301138702933287,18,49.193495504995376,303,150.49584711878265,8,48.774993593028796,6,50.009999000199947,154,96.322375385992217,0,50.408332644514239,3,49.355850717012267]
[null,"50.0 percent or more",{"$f":"C307+C300+C293+C286+C279+C272+C265","v":3},{"$f":"SQRT((D307^2)+(D300^2)+(D293^2)+(D286^2)+(D279^2)+(D272^2)+(D265^2))","v":27.239676943752471},144,114.56875664857326,417,142.03168660548954,10,26.267851073127396,2,27.110883423451916,15,29.614185789921695,10,31.336879231984796,2,27.110883423451916,2,27.110883423451916,167,96.363893653172809,6,28.106938645110393,6,28.407745422683583,109,83.408632646747066,0,29.103264421710495,3,27.239676943752471]
[null,"Not Computed",{"$f":"C307+C301+C294+C287+C280+C273+C266","v":12},{"$f":"SQRT((D307^2)+(D301^2)+(D294^2)+(D287^2)+(D280^2)+(D273^2)+(D266^2))","v":25.416530054277668},{"$f":"E307+E301+E294+E287+E280+E273+E266","v":83},{"$f":"SQRT((F307^2)+(F301^2)+(F294^2)+(F287^2)+(F280^2)+(F273^2)+(F266^2))","v":71.784399419372448},{"$f":"G307+G301+G294+G287+G280+G273+G266","v":127},{"$f":"SQRT((H307^2)+(H301^2)+(H294^2)+(H287^2)+(H280^2)+(H273^2)+(H266^2))","v":71.972216861786322},{"$f":"I307+I301+I294+I287+I280+I273+I266","v":5},{"$f":"SQRT((J307^2)+(J301^2)+(J294^2)+(J287^2)+(J280^2)+(J273^2)+(J266^2))","v":25.278449319529077},{"$f":"K307+K301+K294+K287+K280+K273+K266","v":2},{"$f":"SQRT((L307^2)+(L301^2)+(L294^2)+(L287^2)+(L280^2)+(L273^2)+(L266^2))","v":27.239676943752471},{"$f":"M307+M301+M294+M287+M280+M273+M266","v":6},{"$f":"SQRT((N307^2)+(N301^2)+(N294^2)+(N287^2)+(N280^2)+(N273^2)+(N266^2))","v":28.407745422683583},{"$f":"O307+O301+O294+O287+O280+O273+O266","v":0},{"$f":"SQRT((P307^2)+(P301^2)+(P294^2)+(P287^2)+(P280^2)+(P273^2)+(P266^2))","v":29.103264421710495},{"$f":"Q307+Q301+Q294+Q287+Q280+Q273+Q266","v":5},{"$f":"SQRT((R307^2)+(R301^2)+(R294^2)+(R287^2)+(R280^2)+(R273^2)+(R266^2))","v":28.106938645110393},{"$f":"S307+S301+S294+S287+S280+S273+S266","v":9},{"$f":"SQRT((T307^2)+(T301^2)+(T294^2)+(T287^2)+(T280^2)+(T273^2)+(T266^2))","v":23.769728648009426},{"$f":"U307+U301+U294+U287+U280+U273+U266","v":32},{"$f":"SQRT((V307^2)+(V301^2)+(V294^2)+(V287^2)+(V280^2)+(V273^2)+(V266^2))","v":44.283179650969061},{"$f":"W307+W301+W294+W287+W280+W273+W266","v":4},{"$f":"SQRT((X307^2)+(X301^2)+(X294^2)+(X287^2)+(X280^2)+(X273^2)+(X266^2))","v":27.604347483684521},{"$f":"Y307+Y301+Y294+Y287+Y280+Y273+Y266","v":0},{"$f":"SQRT((Z307^2)+(Z301^2)+(Z294^2)+(Z287^2)+(Z280^2)+(Z273^2)+(Z266^2))","v":29.103264421710495},{"$f":"AA307+AA301+AA294+AA287+AA280+AA273+AA266","v":10},{"$f":"SQRT((AB307^2)+(AB301^2)+(AB294^2)+(AB287^2)+(AB280^2)+(AB273^2)+(AB266^2))","v":31.336879231984796},{"$f":"AC307+AC301+AC294+AC287+AC280+AC273+AC266","v":3},{"$f":"SQRT((AD307^2)+(AD301^2)+(AD294^2)+(AD287^2)+(AD280^2)+(AD273^2)+(AD266^2))","v":27.239676943752471},{"$f":"AE307+AE301+AE294+AE287+AE280+AE273+AE266","v":11},{"$f":"SQRT((AF307^2)+(AF301^2)+(AF294^2)+(AF287^2)+(AF280^2)+(AF273^2)+(AF266^2))","v":25.416530054277668}]
[]
[]
[]
[]
[null,"B25074. HOUSEHOLD INCOME BY GROSS RENT AS A PERCENTAGE OF HOUSEHOLD INCOME IN THE PAST 12 MONTHS"]
[null,"Universe:  RENTER-OCCUPIED HOUSING UNITS"]
[null,"Data Set: 2005-2009 American Community Survey 5-Year Estimates",null,null,null,"Income in 2007 Inflation Adjusted Dollars"]
[]
[null,null,"Acworth",null,"Charlestown",null,"Claremont",null,"Cornish",null,"Croydon",null,"Goshen",null,"Grantham",null,"Langdon",null,"Lempster",null,"Newport",null,"Plainfield",null,"Springfield",null,"Sunapee",null,"Unity",null,"Washington"]
[null,null,"Estimate","Margin Of Error","Estimate","Margin Of Error","Estimate","Margin Of Error","Estimate","Margin Of Error","Estimate","Margin Of Error","Estimate","Margin Of Error","Estimate","Margin Of Error","Estimate","Margin Of Error","Estimate","Margin Of Error","Estimate","Margin Of Error","Estimate","Margin Of Error","Estimate","Margin Of Error","Estimate","Margin Of Error","Estimate","Margin Of Error","Estimate","Margin Of Error"]
[null,"Total:",43,31,452,134,2635,251,88,36,54,36,72,40,95,52,10,16,74,29,856,193,78,46,19,18,444,119,111,44,17,12]
[null,"Less than $10,000:",0,114,45,54,496,158,11,13,3,6,0,114,0,114,0,114,0,114,129,115,0,114,0,114,55,54,22,24,2,4]
[null,"Less than 20.0 percent",0,114,0,114,22,26,0,114,0,114,0,114,0,114,0,114,0,114,15,25,0,114,0,114,0,114,0,114,0,114]
[null,"20.0 to 24.9 percent",0,114,0,114,61,65,0,114,0,114,0,114,0,114,0,114,0,114,55,79,0,114,0,114,0,114,0,114,0,114]
[null,"25.0 to 29.9 percent",0,114,16,25,27,28,0,114,0,114,0,114,0,114,0,114,0,114,0,114,0,114,0,114,0,114,0,114,0,114]
[null,"30.0 to 34.9 percent",0,114,0,114,29,46,0,114,0,114,0,114,0,114,0,114,0,114,0,114,0,114,0,114,0,114,0,114,0,114]
[null,"35.0 percent or more",0,114,29,47,337,146,6,10,0,114,0,114,0,114,0,114,0,114,59,74,0,114,0,114,13,19,11,17,0,114]
[null,"Not computed",0,114,0,114,20,23,5,8,3,6,0,114,0,114,0,114,0,114,0,114,0,114,0,114,42,50,11,18,2,4]
[null,"$10,000 to $19,999:",0,114,66,52,567,163,5,7,10,17,26,24,0,114,0,114,4,6,280,109,30,32,0,114,44,39,14,16,2,3]
[null,"Less than 20.0 percent",0,114,0,114,54,43,0,114,0,114,0,114,0,114,0,114,0,114,21,33,0,114,0,114,0,114,10,15,0,114]
[null,"20.0 to 24.9 percent",0,114,18,28,12,20,0,114,0,114,0,114,0,114,0,114,0,114,97,85,0,114,0,114,0,114,0,114,0,114]
[null,"25.0 to 29.9 percent",0,114,29,34,63,43,0,114,0,114,0,114,0,114,0,114,0,114,0,114,0,114,0,114,0,114,0,114,0,114]
[null,"30.0 to 34.9 percent",0,114,0,114,100,85,0,114,0,114,0,114,0,114,0,114,0,114,26,32,24,30,0,114,10,15,0,114,0,114]
[null,"35.0 percent or more",0,114,19,30,304,121,5,7,10,17,6,9,0,114,0,114,4,6,136,75,6,9,0,114,34,37,0,114,0,114]
[null,"Not computed",0,114,0,114,34,38,0,114,0,114,20,26,0,114,0,114,0,114,0,114,0,114,0,114,0,114,4,7,2,3]
[null,"$20,000 to $34,999:",21,23,127,80,694,221,5,8,4,6,3,4,20,29,10,16,8,8,100,117,7,12,3,6,75,58,25,21,7,7]
[null,"Less than 20.0 percent",0,114,0,114,34,32,0,114,0,114,0,114,0,114,0,114,0,114,0,114,0,114,3,6,0,114,7,10,0,114]
[null,"20.0 to 24.9 percent",9,14,27,32,36,55,0,114,0,114,0,114,0,114,0,114,0,114,0,114,0,114,0,114,0,114,0,114,0,114]
[null,"25.0 to 29.9 percent",0,114,0,114,153,83,0,114,0,114,0,114,0,114,10,16,0,114,21,35,0,114,0,114,9,14,0,114,4,6]
[null,"30.0 to 34.9 percent",0,114,55,62,145,99,5,8,4,6,0,114,0,114,0,114,4,6,0,114,0,114,0,114,11,18,5,7,0,114]
[null,"35.0 percent or more",9,15,45,47,326,154,0,114,0,114,0,114,20,29,0,114,0,114,79,111,0,114,0,114,55,61,0,114,3,5]
[null,"Not computed",3,5,0,114,0,114,0,114,0,114,3,4,0,114,0,114,4,5,0,114,7,12,0,114,0,114,13,16,0,114]
[null,"$35,000 to $49,999:",10,12,64,67,425,163,30,21,20,22,7,7,7,11,0,114,29,20,153,95,9,15,3,6,165,92,37,34,0,114]
[null,"Less than 20.0 percent",0,114,14,24,134,99,0,114,0,114,0,114,0,114,0,114,0,114,21,31,0,114,3,6,21,33,29,33,0,114]
[null,"20.0 to 24.9 percent",5,8,39,63,108,74,0,114,0,114,0,114,0,114,0,114,0,114,35,48,0,114,0,114,52,50,0,114,0,114]
[null,"25.0 to 29.9 percent",0,114,0,114,98,78,0,114,0,114,3,4,0,114,0,114,6,11,83,78,0,114,0,114,30,46,8,13,0,114]
[null,"30.0 to 34.9 percent",0,114,0,114,14,23,9,14,10,15,4,6,0,114,0,114,14,15,14,22,0,114,0,114,62,71,0,114,0,114]
[null,"35.0 percent or more",0,114,0,114,56,71,0,114,0,114,0,114,7,11,0,114,3,4,0,114,0,114,0,114,0,114,0,114,0,114]
[null,"Not computed",5,9,11,19,15,19,21,16,10,15,0,114,0,114,0,114,6,6,0,114,9,15,0,114,0,114,0,114,0,114]
[null,"$50,000 to $74,999:",12,18,71,70,310,136,21,23,10,13,23,25,7,11,0,114,23,24,183,101,12,16,9,12,35,43,5,9,6,8]
[null,"Less than 20.0 percent",12,18,57,66,252,122,5,10,3,5,3,4,0,114,0,114,12,18,62,53,0,114,5,8,12,20,5,9,0,114]
[null,"20.0 to 24.9 percent",0,114,0,114,58,55,0,114,0,114,0,114,7,11,0,114,0,114,102,83,12,16,0,114,23,38,0,114,0,114]
[null,"25.0 to 29.9 percent",0,114,0,114,0,114,0,114,7,12,20,24,0,114,0,114,0,114,19,27,0,114,0,114,0,114,0,114,0,114]
[null,"30.0 to 34.9 percent",0,114,0,114,0,114,12,19,0,114,0,114,0,114,0,114,6,10,0,114,0,114,0,114,0,114,0,114,0,114]
[null,"35.0 percent or more",0,114,0,114,0,114,0,114,0,114,0,114,0,114,0,114,0,114,0,114,0,114,0,114,0,114,0,114,3,5]
[null,"Not computed",0,114,14,22,0,114,4,8,0,114,0,114,0,114,0,114,5,9,0,114,0,114,4,8,0,114,0,114,3,4]
[null,"$75,000 to $99,999:",0,114,49,51,93,66,13,20,7,12,13,19,16,17,0,114,10,11,11,19,9,14,4,6,24,40,8,12,0,114]
[null,"Less than 20.0 percent",0,114,49,51,30,36,13,20,7,12,13,19,0,114,0,114,5,8,11,19,0,114,4,6,0,114,0,114,0,114]
[null,"20.0 to 24.9 percent",0,114,0,114,63,57,0,114,0,114,0,114,8,12,0,114,0,114,0,114,0,114,0,114,0,114,0,114,0,114]
[null,"25.0 to 29.9 percent",0,114,0,114,0,114,0,114,0,114,0,114,8,13,0,114,0,114,0,114,0,114,0,114,24,40,0,114,0,114]
[null,"30.0 to 34.9 percent",0,114,0,114,0,114,0,114,0,114,0,114,0,114,0,114,0,114,0,114,0,114,0,114,0,114,0,114,0,114]
[null,"35.0 percent or more",0,114,0,114,0,114,0,114,0,114,0,114,0,114,0,114,0,114,0,114,0,114,0,114,0,114,0,114,0,114]
[null,"Not computed",0,114,0,114,0,114,0,114,0,114,0,114,0,114,0,114,5,7,0,114,9,14,0,114,0,114,8,12,0,114]
[null,"$100,000 or more:",0,114,30,26,50,40,3,5,0,114,0,114,45,39,0,114,0,114,0,114,11,16,0,114,46,46,0,114,0,114]
[null,"Less than 20.0 percent",0,114,0,114,50,40,0,114,0,114,0,114,6,9,0,114,0,114,0,114,0,114,0,114,46,46,0,114,0,114]
[null,"20.0 to 24.9 percent",0,114,17,27,0,114,0,114,0,114,0,114,18,22,0,114,0,114,0,114,0,114,0,114,0,114,0,114,0,114]
[null,"25.0 to 29.9 percent",0,114,0,114,0,114,0,114,0,114,0,114,0,114,0,114,0,114,0,114,0,114,0,114,0,114,0,114,0,114]
[null,"30.0 to 34.9 percent",0,114,0,114,0,114,0,114,0,114,0,114,0,114,0,114,0,114,0,114,0,114,0,114,0,114,0,114,0,114]
[null,"35.0 percent or more",0,114,0,114,0,114,0,114,0,114,0,114,0,114,0,114,0,114,0,114,0,114,0,114,0,114,0,114,0,114]
[null,"Not computed",0,114,13,20,0,114,3,5,0,114,0,114,21,33,0,114,0,114,0,114,11,16,0,114,0,114,0,114,0,114]
[]
[]
[]
[]
[]
[]
[]
[]
[]
[]
[]
[]
[]
[]
[]
[]
[]
[]
[]
[]
[]
[]
[]
[]
[]
[]
[]
[]
[]
[]
[]
[]
[]
[]
[]
[]
[]
[]
[]
[]
[]
[]
[]
[]
[]
[null,"Calculated B25074. HOUSEHOLD INCOME BY GROSS RENT AS A PERCENTAGE OF HOUSEHOLD INCOME IN THE PAST 12 MONTHS"]
[null,"Universe:  RENTER OCCUPIED HOUSING UNITS"]
[null,"Data Set: 2005-2009 American Community Survey 5-Year Estimates"]
[]
[null,null,"Acworth",null,"Charlestown",null,"Claremont",null,"Cornish",null,"Croydon",null,"Goshen",null,"Grantham",null,"Langdon",null,"Lempster",null,"Newport",null,"Plainfield",null,"Springfield",null,"Sunapee",null,"Unity",null,"Washington"]
[null,null,"Estimate","Margin Of Error","Estimate","Margin Of Error","Estimate","Margin Of Error","Estimate","Margin Of Error","Estimate","Margin Of Error","Estimate","Margin Of Error","Estimate","Margin Of Error","Estimate","Margin Of Error","Estimate","Margin Of Error","Estimate","Margin Of Error","Estimate","Margin Of Error","Estimate","Margin Of Error","Estimate","Margin Of Error","Estimate","Margin Of Error","Estimate","Margin Of Error"]
[null,"Total:",{"$f":"C334","v":43},31,452,134,2635,251,88,36,54,36,72,40,95,52,10,16,74,29,856,193,78,46,19,18,444,119,111,44,17,12]
[null,"Less than $10,000:",{"$f":"C335","v":0},114,45,54,496,158,11,13,3,6,0,114,0,114,0,114,0,114,129,115,0,114,0,114,55,54,22,24,2,4]
[null,"Less than 30.0 percent",{"$f":"C336+C337+C338","v":0},{"$f":"SQRT((D336^2)+(D337^2)+(D338^2))","v":197.45379206285202},{"$f":"E336+E337+E338","v":16},{"$f":"SQRT((F336^2)+(F337^2)+(F338^2))","v":163.1471728225776},{"$f":"G336+G337+G338","v":110},{"$f":"SQRT((H336^2)+(H337^2)+(H338^2))","v":75.398938984577228},{"$f":"I336+I337+I338","v":0},{"$f":"SQRT((J336^2)+(J337^2)+(J338^2))","v":197.45379206285202},{"$f":"K336+K337+K338","v":0},{"$f":"SQRT((L336^2)+(L337^2)+(L338^2))","v":197.45379206285202},{"$f":"M336+M337+M338","v":0},{"$f":"SQRT((N336^2)+(N337^2)+(N338^2))","v":197.45379206285202},{"$f":"O336+O337+O338","v":0},{"$f":"SQRT((P336^2)+(P337^2)+(P338^2))","v":197.45379206285202},{"$f":"Q336+Q337+Q338","v":0},{"$f":"SQRT((R336^2)+(R337^2)+(R338^2))","v":197.45379206285202},{"$f":"S336+S337+S338","v":0},{"$f":"SQRT((T336^2)+(T337^2)+(T338^2))","v":197.45379206285202},{"$f":"U336+U337+U338","v":70},{"$f":"SQRT((V336^2)+(V337^2)+(V338^2))","v":140.93260800822497},{"$f":"W336+W337+W338","v":0},{"$f":"SQRT((X336^2)+(X337^2)+(X338^2))","v":197.45379206285202},{"$f":"Y336+Y337+Y338","v":0},{"$f":"SQRT((Z336^2)+(Z337^2)+(Z338^2))","v":197.45379206285202},{"$f":"AA336+AA337+AA338","v":0},{"$f":"SQRT((AB336^2)+(AB337^2)+(AB338^2))","v":197.45379206285202},{"$f":"AC336+AC337+AC338","v":0},{"$f":"SQRT((AD336^2)+(AD337^2)+(AD338^2))","v":197.45379206285202},{"$f":"AE336+AE337+AE338","v":0},{"$f":"SQRT((AF336^2)+(AF337^2)+(AF338^2))","v":197.45379206285202}]
[null,"More than 30.0 percent",{"$f":"C340+C339","v":0},{"$f":"SQRT((D340^2)+(D339^2))","v":161.22034611053283},{"$f":"E340+E339","v":29},{"$f":"SQRT((F340^2)+(F339^2))","v":123.30855606972291},{"$f":"G340+G339","v":366},{"$f":"SQRT((H340^2)+(H339^2))","v":153.07514494521962},{"$f":"I340+I339","v":6},{"$f":"SQRT((J340^2)+(J339^2))","v":114.43775600735974},{"$f":"K340+K339","v":0},{"$f":"SQRT((L340^2)+(L339^2))","v":161.22034611053283},{"$f":"M340+M339","v":0},{"$f":"SQRT((N340^2)+(N339^2))","v":161.22034611053283},{"$f":"O340+O339","v":0},{"$f":"SQRT((P340^2)+(P339^2))","v":161.22034611053283},{"$f":"Q340+Q339","v":0},{"$f":"SQRT((R340^2)+(R339^2))","v":161.22034611053283},{"$f":"S340+S339","v":0},{"$f":"SQRT((T340^2)+(T339^2))","v":161.22034611053283},{"$f":"U340+U339","v":59},{"$f":"SQRT((V340^2)+(V339^2))","v":135.91173606425605},{"$f":"W340+W339","v":0},{"$f":"SQRT((X340^2)+(X339^2))","v":161.22034611053283},{"$f":"Y340+Y339","v":0},{"$f":"SQRT((Z340^2)+(Z339^2))","v":161.22034611053283},{"$f":"AA340+AA339","v":13},{"$f":"SQRT((AB340^2)+(AB339^2))","v":115.57248807566617},{"$f":"AC340+AC339","v":11},{"$f":"SQRT((AD340^2)+(AD339^2))","v":115.26057435220423},{"$f":"AE340+AE339","v":0},{"$f":"SQRT((AF340^2)+(AF339^2))","v":161.22034611053283}]
[null,"Less Than 35% of HH Income",{"$f":"C336+C337+C338+C339","v":0},{"$f":"SQRT((D336^2)+(D337^2)+(D338^2)+(D339^2))","v":228},{"$f":"E336+E337+E338+E339","v":16},{"$f":"SQRT((F336^2)+(F337^2)+(F338^2)+(F339^2))","v":199.0301484700245},{"$f":"G336+G337+G338+G339","v":139},{"$f":"SQRT((H336^2)+(H337^2)+(H338^2)+(H339^2))","v":88.323269867006175},{"$f":"I336+I337+I338+I339","v":0},{"$f":"SQRT((J336^2)+(J337^2)+(J338^2)+(J339^2))","v":228},{"$f":"K336+K337+K338+K339","v":0},{"$f":"SQRT((L336^2)+(L337^2)+(L338^2)+(L339^2))","v":228},{"$f":"M336+M337+M338+M339","v":0},{"$f":"SQRT((N336^2)+(N337^2)+(N338^2)+(N339^2))","v":228},{"$f":"O336+O337+O338+O339","v":0},{"$f":"SQRT((P336^2)+(P337^2)+(P338^2)+(P339^2))","v":228},{"$f":"Q336+Q337+Q338+Q339","v":0},{"$f":"SQRT((R336^2)+(R337^2)+(R338^2)+(R339^2))","v":228},{"$f":"S336+S337+S338+S339","v":0},{"$f":"SQRT((T336^2)+(T337^2)+(T338^2)+(T339^2))","v":228},{"$f":"U336+U337+U338+U339","v":70},{"$f":"SQRT((V336^2)+(V337^2)+(V338^2)+(V339^2))","v":181.26775775079253},{"$f":"W336+W337+W338+W339","v":0},{"$f":"SQRT((X336^2)+(X337^2)+(X338^2)+(X339^2))","v":228},{"$f":"Y336+Y337+Y338+Y339","v":0},{"$f":"SQRT((Z336^2)+(Z337^2)+(Z338^2)+(Z339^2))","v":228},{"$f":"AA336+AA337+AA338+AA339","v":0},{"$f":"SQRT((AB336^2)+(AB337^2)+(AB338^2)+(AB339^2))","v":228},{"$f":"AC336+AC337+AC338+AC339","v":0},{"$f":"SQRT((AD336^2)+(AD337^2)+(AD338^2)+(AD339^2))","v":228},{"$f":"AE336+AE337+AE338+AE339","v":0},{"$f":"SQRT((AF336^2)+(AF337^2)+(AF338^2)+(AF339^2))","v":228}]
[null,"35.0 percent or more",{"$f":"C340","v":0},114,29,47,337,146,6,10,0,114,0,114,0,114,0,114,0,114,59,74,0,114,0,114,13,19,11,17,0,114]
[null,"Not Computed",{"$f":"C341","v":0},114,0,114,20,23,5,8,3,6,0,114,0,114,0,114,0,114,0,114,0,114,0,114,42,50,11,18,2,4]
[null,"$10,000 to $19,999:",{"$f":"C342","v":0},114,66,52,567,163,5,7,10,17,26,24,0,114,0,114,4,6,280,109,30,32,0,114,44,39,14,16,2,3]
[null,"Less than 30.0 percent",{"$f":"C343+C344+C345","v":0},{"$f":"SQRT((D343^2)+(D344^2)+(D345^2))","v":197.45379206285202},{"$f":"E343+E344+E345","v":47},{"$f":"SQRT((F343^2)+(F344^2)+(F345^2))","v":122.21292893961751},{"$f":"G343+G344+G345","v":129},{"$f":"SQRT((H343^2)+(H344^2)+(H345^2))","v":64.015623093116886},{"$f":"I343+I344+I345","v":0},{"$f":"SQRT((J343^2)+(J344^2)+(J345^2))","v":197.45379206285202},{"$f":"K343+K344+K345","v":0},{"$f":"SQRT((L343^2)+(L344^2)+(L345^2))","v":197.45379206285202},{"$f":"M343+M344+M345","v":0},{"$f":"SQRT((N343^2)+(N344^2)+(N345^2))","v":197.45379206285202},{"$f":"O343+O344+O345","v":0},{"$f":"SQRT((P343^2)+(P344^2)+(P345^2))","v":197.45379206285202},{"$f":"Q343+Q344+Q345","v":0},{"$f":"SQRT((R343^2)+(R344^2)+(R345^2))","v":197.45379206285202},{"$f":"S343+S344+S345","v":0},{"$f":"SQRT((T343^2)+(T344^2)+(T345^2))","v":197.45379206285202},{"$f":"U343+U344+U345","v":118},{"$f":"SQRT((V343^2)+(V344^2)+(V345^2))","v":145.97945060863876},{"$f":"W343+W344+W345","v":0},{"$f":"SQRT((X343^2)+(X344^2)+(X345^2))","v":197.45379206285202},{"$f":"Y343+Y344+Y345","v":0},{"$f":"SQRT((Z343^2)+(Z344^2)+(Z345^2))","v":197.45379206285202},{"$f":"AA343+AA344+AA345","v":0},{"$f":"SQRT((AB343^2)+(AB344^2)+(AB345^2))","v":197.45379206285202},{"$f":"AC343+AC344+AC345","v":10},{"$f":"SQRT((AD343^2)+(AD344^2)+(AD345^2))","v":161.91664522216362},{"$f":"AE343+AE344+AE345","v":0},{"$f":"SQRT((AF343^2)+(AF344^2)+(AF345^2))","v":197.45379206285202}]
[null,"More than 30.0 percent",{"$f":"C346+C347","v":0},{"$f":"SQRT((D346^2)+(D347^2))","v":161.22034611053283},{"$f":"E346+E347","v":19},{"$f":"SQRT((F346^2)+(F347^2))","v":117.881296226331},{"$f":"G346+G347","v":404},{"$f":"SQRT((H346^2)+(H347^2))","v":147.87156589419075},{"$f":"I346+I347","v":5},{"$f":"SQRT((J346^2)+(J347^2))","v":114.21471008587291},{"$f":"K346+K347","v":10},{"$f":"SQRT((L346^2)+(L347^2))","v":115.26057435220423},{"$f":"M346+M347","v":6},{"$f":"SQRT((N346^2)+(N347^2))","v":114.35471131527551},{"$f":"O346+O347","v":0},{"$f":"SQRT((P346^2)+(P347^2))","v":161.22034611053283},{"$f":"Q346+Q347","v":0},{"$f":"SQRT((R346^2)+(R347^2))","v":161.22034611053283},{"$f":"S346+S347","v":4},{"$f":"SQRT((T346^2)+(T347^2))","v":114.15778554264269},{"$f":"U346+U347","v":162},{"$f":"SQRT((V346^2)+(V347^2))","v":81.541400527584756},{"$f":"W346+W347","v":30},{"$f":"SQRT((X346^2)+(X347^2))","v":31.32091952673165},{"$f":"Y346+Y347","v":0},{"$f":"SQRT((Z346^2)+(Z347^2))","v":161.22034611053283},{"$f":"AA346+AA347","v":44},{"$f":"SQRT((AB346^2)+(AB347^2))","v":39.924929555354261},{"$f":"AC346+AC347","v":0},{"$f":"SQRT((AD346^2)+(AD347^2))","v":161.22034611053283},{"$f":"AE346+AE347","v":0},{"$f":"SQRT((AF346^2)+(AF347^2))","v":161.22034611053283}]
[null,"Less Than 35% of HH Income",{"$f":"C343+C344+C345+C346","v":0},{"$f":"SQRT((D343^2)+(D344^2)+(D345^2)+(D346^2))","v":228},{"$f":"E343+E344+E345+E346","v":47},{"$f":"SQRT((F343^2)+(F344^2)+(F345^2)+(F346^2))","v":167.12869292853338},{"$f":"G343+G344+G345+G346","v":229},{"$f":"SQRT((H343^2)+(H344^2)+(H345^2)+(H346^2))","v":106.40958603434186},{"$f":"I343+I344+I345+I346","v":0},{"$f":"SQRT((J343^2)+(J344^2)+(J345^2)+(J346^2))","v":228},{"$f":"K343+K344+K345+K346","v":0},{"$f":"SQRT((L343^2)+(L344^2)+(L345^2)+(L346^2))","v":228},{"$f":"M343+M344+M345+M346","v":0},{"$f":"SQRT((N343^2)+(N344^2)+(N345^2)+(N346^2))","v":228},{"$f":"O343+O344+O345+O346","v":0},{"$f":"SQRT((P343^2)+(P344^2)+(P345^2)+(P346^2))","v":228},{"$f":"Q343+Q344+Q345+Q346","v":0},{"$f":"SQRT((R343^2)+(R344^2)+(R345^2)+(R346^2))","v":228},{"$f":"S343+S344+S345+S346","v":0},{"$f":"SQRT((T343^2)+(T344^2)+(T345^2)+(T346^2))","v":228},{"$f":"U343+U344+U345+U346","v":144},{"$f":"SQRT((V343^2)+(V344^2)+(V345^2)+(V346^2))","v":149.44564229177109},{"$f":"W343+W344+W345+W346","v":24},{"$f":"SQRT((X343^2)+(X344^2)+(X345^2)+(X346^2))","v":199.71980372511885},{"$f":"Y343+Y344+Y345+Y346","v":0},{"$f":"SQRT((Z343^2)+(Z344^2)+(Z345^2)+(Z346^2))","v":228},{"$f":"AA343+AA344+AA345+AA346","v":10},{"$f":"SQRT((AB343^2)+(AB344^2)+(AB345^2)+(AB346^2))","v":198.022725968511},{"$f":"AC343+AC344+AC345+AC346","v":10},{"$f":"SQRT((AD343^2)+(AD344^2)+(AD345^2)+(AD346^2))","v":198.022725968511},{"$f":"AE343+AE344+AE345+AE346","v":0},{"$f":"SQRT((AF343^2)+(AF344^2)+(AF345^2)+(AF346^2))","v":228}]
[null,"35.0 percent or more",{"$f":"C347","v":0},114,19,30,304,121,5,7,10,17,6,9,0,114,0,114,4,6,136,75,6,9,0,114,34,37,0,114,0,114]
[null,"Not Computed",{"$f":"C348","v":0},114,0,114,34,38,0,114,0,114,20,26,0,114,0,114,0,114,0,114,0,114,0,114,0,114,4,7,2,3]
[null,"$20,000 to $34,999:",{"$f":"C349","v":21},23,127,80,694,221,5,8,4,6,3,4,20,29,10,16,8,8,100,117,7,12,3,6,75,58,25,21,7,7]
[null,"Less than 30.0 percent",{"$f":"C350+C351+C352","v":9},{"$f":"SQRT((D350^2)+(D351^2)+(D352^2))","v":161.8270681931796},{"$f":"E350+E351+E352","v":27},{"$f":"SQRT((F350^2)+(F351^2)+(F352^2))","v":164.36544649043483},{"$f":"G350+G351+G352","v":223},{"$f":"SQRT((H350^2)+(H351^2)+(H352^2))","v":104.58489374665922},{"$f":"I350+I351+I352","v":0},{"$f":"SQRT((J350^2)+(J351^2)+(J352^2))","v":197.45379206285202},{"$f":"K350+K351+K352","v":0},{"$f":"SQRT((L350^2)+(L351^2)+(L352^2))","v":197.45379206285202},{"$f":"M350+M351+M352","v":0},{"$f":"SQRT((N350^2)+(N351^2)+(N352^2))","v":197.45379206285202},{"$f":"O350+O351+O352","v":0},{"$f":"SQRT((P350^2)+(P351^2)+(P352^2))","v":197.45379206285202},{"$f":"Q350+Q351+Q352","v":10},{"$f":"SQRT((R350^2)+(R351^2)+(R352^2))","v":162.01234520862909},{"$f":"S350+S351+S352","v":0},{"$f":"SQRT((T350^2)+(T351^2)+(T352^2))","v":197.45379206285202},{"$f":"U350+U351+U352","v":21},{"$f":"SQRT((V350^2)+(V351^2)+(V352^2))","v":164.97575579460153},{"$f":"W350+W351+W352","v":0},{"$f":"SQRT((X350^2)+(X351^2)+(X352^2))","v":197.45379206285202},{"$f":"Y350+Y351+Y352","v":3},{"$f":"SQRT((Z350^2)+(Z351^2)+(Z352^2))","v":161.33195591698504},{"$f":"AA350+AA351+AA352","v":9},{"$f":"SQRT((AB350^2)+(AB351^2)+(AB352^2))","v":161.8270681931796},{"$f":"AC350+AC351+AC352","v":7},{"$f":"SQRT((AD350^2)+(AD351^2)+(AD352^2))","v":161.5301829380503},{"$f":"AE350+AE351+AE352","v":4},{"$f":"SQRT((AF350^2)+(AF351^2)+(AF352^2))","v":161.33195591698504}]
[null,"More than 30.0 percent",{"$f":"C353+C354","v":9},{"$f":"SQRT((D353^2)+(D354^2))","v":114.9826073804208},{"$f":"E353+E354","v":100},{"$f":"SQRT((F353^2)+(F354^2))","v":77.801028270839709},{"$f":"G353+G354","v":471},{"$f":"SQRT((H353^2)+(H354^2))","v":183.07648674802562},{"$f":"I353+I354","v":5},{"$f":"SQRT((J353^2)+(J354^2))","v":114.28035701729323},{"$f":"K353+K354","v":4},{"$f":"SQRT((L353^2)+(L354^2))","v":114.15778554264269},{"$f":"M353+M354","v":0},{"$f":"SQRT((N353^2)+(N354^2))","v":161.22034611053283},{"$f":"O353+O354","v":20},{"$f":"SQRT((P353^2)+(P354^2))","v":117.63077828527702},{"$f":"Q353+Q354","v":0},{"$f":"SQRT((R353^2)+(R354^2))","v":161.22034611053283},{"$f":"S353+S354","v":4},{"$f":"SQRT((T353^2)+(T354^2))","v":114.15778554264269},{"$f":"U353+U354","v":79},{"$f":"SQRT((V353^2)+(V354^2))","v":159.11316727411344},{"$f":"W353+W354","v":0},{"$f":"SQRT((X353^2)+(X354^2))","v":161.22034611053283},{"$f":"Y353+Y354","v":0},{"$f":"SQRT((Z353^2)+(Z354^2))","v":161.22034611053283},{"$f":"AA353+AA354","v":66},{"$f":"SQRT((AB353^2)+(AB354^2))","v":63.600314464631381},{"$f":"AC353+AC354","v":5},{"$f":"SQRT((AD353^2)+(AD354^2))","v":114.21471008587291},{"$f":"AE353+AE354","v":3},{"$f":"SQRT((AF353^2)+(AF354^2))","v":114.10959644131601}]
[null,"Less Than 35% of HH Income",{"$f":"C350+C351+C352+C353","v":9},{"$f":"SQRT((D353^2)+(D350^2)+(D351^2)+(D352^2))","v":197.94948850653796},{"$f":"E350+E351+E352+E353","v":82},{"$f":"SQRT((F353^2)+(F350^2)+(F351^2)+(F352^2))","v":175.67014544310027},{"$f":"G350+G351+G352+G353","v":368},{"$f":"SQRT((H353^2)+(H350^2)+(H351^2)+(H352^2))","v":144.01041628993369},{"$f":"I350+I351+I352+I353","v":5},{"$f":"SQRT((J353^2)+(J350^2)+(J351^2)+(J352^2))","v":197.61578884289585},{"$f":"K350+K351+K352+K353","v":4},{"$f":"SQRT((L353^2)+(L350^2)+(L351^2)+(L352^2))","v":197.54493159785193},{"$f":"M350+M351+M352+M353","v":0},{"$f":"SQRT((N353^2)+(N350^2)+(N351^2)+(N352^2))","v":228},{"$f":"O350+O351+O352+O353","v":0},{"$f":"SQRT((P353^2)+(P350^2)+(P351^2)+(P352^2))","v":228},{"$f":"Q350+Q351+Q352+Q353","v":10},{"$f":"SQRT((R353^2)+(R350^2)+(R351^2)+(R352^2))","v":198.10098434889213},{"$f":"S350+S351+S352+S353","v":4},{"$f":"SQRT((T353^2)+(T350^2)+(T351^2)+(T352^2))","v":197.54493159785193},{"$f":"U350+U351+U352+U353","v":21},{"$f":"SQRT((V353^2)+(V350^2)+(V351^2)+(V352^2))","v":200.53179299053804},{"$f":"W350+W351+W352+W353","v":0},{"$f":"SQRT((X353^2)+(X350^2)+(X351^2)+(X352^2))","v":228},{"$f":"Y350+Y351+Y352+Y353","v":3},{"$f":"SQRT((Z353^2)+(Z350^2)+(Z351^2)+(Z352^2))","v":197.54493159785193},{"$f":"AA350+AA351+AA352+AA353","v":20},{"$f":"SQRT((AB353^2)+(AB350^2)+(AB351^2)+(AB352^2))","v":162.82505949638096},{"$f":"AC350+AC351+AC352+AC353","v":12},{"$f":"SQRT((AD353^2)+(AD350^2)+(AD351^2)+(AD352^2))","v":161.68178623456632},{"$f":"AE350+AE351+AE352+AE353","v":4},{"$f":"SQRT((AF353^2)+(AF350^2)+(AF351^2)+(AF352^2))","v":197.54493159785193}]
[null,"35.0 percent or more",{"$f":"C354","v":9},15,45,47,326,154,0,114,0,114,0,114,20,29,0,114,0,114,79,111,0,114,0,114,55,61,0,114,3,5]
[null,"Not Computed",{"$f":"C355","v":3},5,0,114,0,114,0,114,0,114,3,4,0,114,0,114,4,5,0,114,7,12,0,114,0,114,13,16,0,114]
[null,"$35,000 to $49,999:",{"$f":"C356","v":10},12,64,67,425,163,30,21,20,22,7,7,7,11,0,114,29,20,153,95,9,15,3,6,165,92,37,34,0,114]
[null,"Less than 30.0 percent",{"$f":"C357+C358+C359","v":5},{"$f":"SQRT((D357^2)+(D358^2)+(D360^2))","v":161.41871019184859},{"$f":"E357+E358+E359","v":53},{"$f":"SQRT((F357^2)+(F358^2)+(F360^2))","v":132.44244032786469},{"$f":"G357+G358+G359","v":340},{"$f":"SQRT((H357^2)+(H358^2)+(H360^2))","v":125.72191535289303},{"$f":"I357+I358+I359","v":0},{"$f":"SQRT((J357^2)+(J358^2)+(J360^2))","v":161.8270681931796},{"$f":"K357+K358+K359","v":0},{"$f":"SQRT((L357^2)+(L358^2)+(L360^2))","v":161.91664522216362},{"$f":"M357+M358+M359","v":3},{"$f":"SQRT((N357^2)+(N358^2)+(N360^2))","v":161.33195591698504},{"$f":"O357+O358+O359","v":0},{"$f":"SQRT((P357^2)+(P358^2)+(P360^2))","v":197.45379206285202},{"$f":"Q357+Q358+Q359","v":0},{"$f":"SQRT((R357^2)+(R358^2)+(R360^2))","v":197.45379206285202},{"$f":"S357+S358+S359","v":6},{"$f":"SQRT((T357^2)+(T358^2)+(T360^2))","v":161.91664522216362},{"$f":"U357+U358+U359","v":139},{"$f":"SQRT((V357^2)+(V358^2)+(V360^2))","v":61.229078059366529},{"$f":"W357+W358+W359","v":0},{"$f":"SQRT((X357^2)+(X358^2)+(X360^2))","v":197.45379206285202},{"$f":"Y357+Y358+Y359","v":3},{"$f":"SQRT((Z357^2)+(Z358^2)+(Z360^2))","v":161.33195591698504},{"$f":"AA357+AA358+AA359","v":103},{"$f":"SQRT((AB357^2)+(AB358^2)+(AB360^2))","v":92.897793299948731},{"$f":"AC357+AC358+AC359","v":37},{"$f":"SQRT((AD357^2)+(AD358^2)+(AD360^2))","v":164.56305782282973},{"$f":"AE357+AE358+AE359","v":0},{"$f":"SQRT((AF357^2)+(AF358^2)+(AF360^2))","v":197.45379206285202}]
[null,"More than 30.0 percent",{"$f":"C360+C361","v":0},{"$f":"SQRT((D360^2)+(D361^2))","v":161.22034611053283},{"$f":"E360+E361","v":0},{"$f":"SQRT((F360^2)+(F361^2))","v":161.22034611053283},{"$f":"G360+G361","v":70},{"$f":"SQRT((H360^2)+(H361^2))","v":74.632432628181164},{"$f":"I360+I361","v":9},{"$f":"SQRT((J360^2)+(J361^2))","v":114.85643212288984},{"$f":"K360+K361","v":10},{"$f":"SQRT((L360^2)+(L361^2))","v":114.9826073804208},{"$f":"M360+M361","v":4},{"$f":"SQRT((N360^2)+(N361^2))","v":114.15778554264269},{"$f":"O360+O361","v":7},{"$f":"SQRT((P360^2)+(P361^2))","v":114.52947218947619},{"$f":"Q360+Q361","v":0},{"$f":"SQRT((R360^2)+(R361^2))","v":161.22034611053283},{"$f":"S360+S361","v":17},{"$f":"SQRT((T360^2)+(T361^2))","v":15.524174696260024},{"$f":"U360+U361","v":14},{"$f":"SQRT((V360^2)+(V361^2))","v":116.10340218959993},{"$f":"W360+W361","v":0},{"$f":"SQRT((X360^2)+(X361^2))","v":161.22034611053283},{"$f":"Y360+Y361","v":0},{"$f":"SQRT((Z360^2)+(Z361^2))","v":161.22034611053283},{"$f":"AA360+AA361","v":62},{"$f":"SQRT((AB360^2)+(AB361^2))","v":134.30189872075525},{"$f":"AC360+AC361","v":0},{"$f":"SQRT((AD360^2)+(AD361^2))","v":161.22034611053283},{"$f":"AE360+AE361","v":0},{"$f":"SQRT((AF360^2)+(AF361^2))","v":161.22034611053283}]
[null,"Less Than 35% of HH Income",{"$f":"C357+C358+C359+C360","v":5},{"$f":"SQRT((D359^2)+(D360^2)+(D357^2)+(D358^2))","v":197.61578884289585},{"$f":"E357+E358+E359+E360","v":53},{"$f":"SQRT((F359^2)+(F360^2)+(F357^2)+(F358^2))","v":174.7483905505284},{"$f":"G357+G358+G359+G360","v":354},{"$f":"SQRT((H359^2)+(H360^2)+(H357^2)+(H358^2))","v":147.95269514273809},{"$f":"I357+I358+I359+I360","v":9},{"$f":"SQRT((J359^2)+(J360^2)+(J357^2)+(J358^2))","v":197.94948850653796},{"$f":"K357+K358+K359+K360","v":10},{"$f":"SQRT((L359^2)+(L360^2)+(L357^2)+(L358^2))","v":198.022725968511},{"$f":"M357+M358+M359+M360","v":7},{"$f":"SQRT((N359^2)+(N360^2)+(N357^2)+(N358^2))","v":161.38153549895353},{"$f":"O357+O358+O359+O360","v":0},{"$f":"SQRT((P359^2)+(P360^2)+(P357^2)+(P358^2))","v":228},{"$f":"Q357+Q358+Q359+Q360","v":0},{"$f":"SQRT((R359^2)+(R360^2)+(R357^2)+(R358^2))","v":228},{"$f":"S357+S358+S359+S360","v":20},{"$f":"SQRT((T359^2)+(T360^2)+(T357^2)+(T358^2))","v":162.28986413205232},{"$f":"U357+U358+U359+U360","v":153},{"$f":"SQRT((V359^2)+(V360^2)+(V357^2)+(V358^2))","v":99.161484458432753},{"$f":"W357+W358+W359+W360","v":0},{"$f":"SQRT((X359^2)+(X360^2)+(X357^2)+(X358^2))","v":228},{"$f":"Y357+Y358+Y359+Y360","v":3},{"$f":"SQRT((Z359^2)+(Z360^2)+(Z357^2)+(Z358^2))","v":197.54493159785193},{"$f":"AA357+AA358+AA359+AA360","v":165},{"$f":"SQRT((AB359^2)+(AB360^2)+(AB357^2)+(AB358^2))","v":103.66291525902598},{"$f":"AC357+AC358+AC359+AC360","v":37},{"$f":"SQRT((AD359^2)+(AD360^2)+(AD357^2)+(AD358^2))","v":165.07574019219177},{"$f":"AE357+AE358+AE359+AE360","v":0},{"$f":"SQRT((AF359^2)+(AF360^2)+(AF357^2)+(AF358^2))","v":228}]
[null,"35.0 percent or more",{"$f":"C361","v":0},114,0,114,56,71,0,114,0,114,0,114,7,11,0,114,3,4,0,114,0,114,0,114,0,114,0,114,0,114]
[null,"Not Computed",{"$f":"C362","v":5},9,11,19,15,19,21,16,10,15,0,114,0,114,0,114,6,6,0,114,9,15,0,114,0,114,0,114,0,114]
[null,"$50,000 to $74,999:",{"$f":"C363","v":12},18,71,70,310,136,21,23,10,13,23,25,7,11,0,114,23,24,183,101,12,16,9,12,35,43,5,9,6,8]
[null,"Less than 30.0 percent",{"$f":"C364+C365+C366","v":12},{"$f":"SQRT((D364^2)+(D365^2)+(D366^2))","v":162.22207001514928},{"$f":"E364+E365+E366","v":57},{"$f":"SQRT((F364^2)+(F365^2)+(F366^2))","v":174.2067736914957},{"$f":"G364+G365+G366","v":310},{"$f":"SQRT((H364^2)+(H365^2)+(H366^2))","v":175.79817974029197},{"$f":"I364+I365+I366","v":5},{"$f":"SQRT((J364^2)+(J365^2)+(J366^2))","v":161.5301829380503},{"$f":"K364+K365+K366","v":10},{"$f":"SQRT((L364^2)+(L365^2)+(L366^2))","v":114.73883387938018},{"$f":"M364+M365+M366","v":23},{"$f":"SQRT((N364^2)+(N365^2)+(N366^2))","v":116.56757696718243},{"$f":"O364+O365+O366","v":7},{"$f":"SQRT((P364^2)+(P365^2)+(P366^2))","v":161.59517319524119},{"$f":"Q364+Q365+Q366","v":0},{"$f":"SQRT((R364^2)+(R365^2)+(R366^2))","v":197.45379206285202},{"$f":"S364+S365+S366","v":12},{"$f":"SQRT((T364^2)+(T365^2)+(T366^2))","v":162.22207001514928},{"$f":"U364+U365+U366","v":183},{"$f":"SQRT((V364^2)+(V365^2)+(V366^2))","v":102.112682855755},{"$f":"W364+W365+W366","v":12},{"$f":"SQRT((X364^2)+(X365^2)+(X366^2))","v":162.01234520862909},{"$f":"Y364+Y365+Y366","v":5},{"$f":"SQRT((Z364^2)+(Z365^2)+(Z366^2))","v":161.41871019184859},{"$f":"AA364+AA365+AA366","v":35},{"$f":"SQRT((AB364^2)+(AB365^2)+(AB366^2))","v":121.81953866272849},{"$f":"AC364+AC365+AC366","v":5},{"$f":"SQRT((AD364^2)+(AD365^2)+(AD366^2))","v":161.47135968957468},{"$f":"AE364+AE365+AE366","v":0},{"$f":"SQRT((AF364^2)+(AF365^2)+(AF366^2))","v":197.45379206285202}]
[null,"More than 30.0 percent",{"$f":"C367+C368","v":0},{"$f":"SQRT((D367^2)+(D368^2))","v":161.22034611053283},{"$f":"E367+E368","v":0},{"$f":"SQRT((F367^2)+(F368^2))","v":161.22034611053283},{"$f":"G367+G368","v":0},{"$f":"SQRT((H367^2)+(H368^2))","v":161.22034611053283},{"$f":"I367+I368","v":12},{"$f":"SQRT((J367^2)+(J368^2))","v":115.57248807566617},{"$f":"K367+K368","v":0},{"$f":"SQRT((L367^2)+(L368^2))","v":161.22034611053283},{"$f":"M367+M368","v":0},{"$f":"SQRT((N367^2)+(N368^2))","v":161.22034611053283},{"$f":"O367+O368","v":0},{"$f":"SQRT((P367^2)+(P368^2))","v":161.22034611053283},{"$f":"Q367+Q368","v":0},{"$f":"SQRT((R367^2)+(R368^2))","v":161.22034611053283},{"$f":"S367+S368","v":6},{"$f":"SQRT((T367^2)+(T368^2))","v":114.43775600735974},{"$f":"U367+U368","v":0},{"$f":"SQRT((V367^2)+(V368^2))","v":161.22034611053283},{"$f":"W367+W368","v":0},{"$f":"SQRT((X367^2)+(X368^2))","v":161.22034611053283},{"$f":"Y367+Y368","v":0},{"$f":"SQRT((Z367^2)+(Z368^2))","v":161.22034611053283},{"$f":"AA367+AA368","v":0},{"$f":"SQRT((AB367^2)+(AB368^2))","v":161.22034611053283},{"$f":"AC367+AC368","v":0},{"$f":"SQRT((AD367^2)+(AD368^2))","v":161.22034611053283},{"$f":"AE367+AE368","v":3},{"$f":"SQRT((AF367^2)+(AF368^2))","v":114.10959644131601}]
[null,"Less Than 35% of HH Income",{"$f":"C367+C366+C365+C364","v":12},{"$f":"SQRT((D367^2)+(D366^2)+(D365^2)+(D364^2))","v":198.27253970229967},{"$f":"E367+E366+E365+E364","v":57},{"$f":"SQRT((F367^2)+(F366^2)+(F365^2)+(F364^2))","v":208.19221887476968},{"$f":"G367+G366+G365+G364","v":310},{"$f":"SQRT((H367^2)+(H366^2)+(H365^2)+(H364^2))","v":209.52565475377949},{"$f":"I367+I366+I365+I364","v":17},{"$f":"SQRT((J367^2)+(J366^2)+(J365^2)+(J364^2))","v":162.64378254332379},{"$f":"K367+K366+K365+K364","v":10},{"$f":"SQRT((L367^2)+(L366^2)+(L365^2)+(L364^2))","v":161.74362429474616},{"$f":"M367+M366+M365+M364","v":23},{"$f":"SQRT((N367^2)+(N366^2)+(N365^2)+(N364^2))","v":163.04600577751054},{"$f":"O367+O366+O365+O364","v":7},{"$f":"SQRT((P367^2)+(P366^2)+(P365^2)+(P364^2))","v":197.75995550161312},{"$f":"Q367+Q366+Q365+Q364","v":0},{"$f":"SQRT((R367^2)+(R366^2)+(R365^2)+(R364^2))","v":228},{"$f":"S367+S366+S365+S364","v":18},{"$f":"SQRT((T367^2)+(T366^2)+(T365^2)+(T364^2))","v":162.52999723128036},{"$f":"U367+U366+U365+U364","v":183},{"$f":"SQRT((V367^2)+(V366^2)+(V365^2)+(V364^2))","v":153.04574479546957},{"$f":"W367+W366+W365+W364","v":12},{"$f":"SQRT((X367^2)+(X366^2)+(X365^2)+(X364^2))","v":198.10098434889213},{"$f":"Y367+Y366+Y365+Y364","v":5},{"$f":"SQRT((Z367^2)+(Z366^2)+(Z365^2)+(Z364^2))","v":197.61578884289585},{"$f":"AA367+AA366+AA365+AA364","v":35},{"$f":"SQRT((AB367^2)+(AB366^2)+(AB365^2)+(AB364^2))","v":166.84124190379308},{"$f":"AC367+AC366+AC365+AC364","v":5},{"$f":"SQRT((AD367^2)+(AD366^2)+(AD365^2)+(AD364^2))","v":197.6587969203496},{"$f":"AE367+AE366+AE365+AE364","v":0},{"$f":"SQRT((AF367^2)+(AF366^2)+(AF365^2)+(AF364^2))","v":228}]
[null,"35.0 percent or more",{"$f":"C368","v":0},114,0,114,0,114,0,114,0,114,0,114,0,114,0,114,0,114,0,114,0,114,0,114,0,114,0,114,3,5]
[null,"Not Computed",{"$f":"C369","v":0},114,14,22,0,114,4,8,0,114,0,114,0,114,0,114,5,9,0,114,0,114,4,8,0,114,0,114,3,4]
[null,"$75,000 to $99,999:",{"$f":"C370","v":0},114,49,51,93,66,13,20,7,12,13,19,16,17,0,114,10,11,11,19,9,14,4,6,24,40,8,12,0,114]
[null,"Less than 30.0 percent",{"$f":"C371+C372+C373","v":0},{"$f":"SQRT((D371^2)+(D372^2)+(D373^2))","v":197.45379206285202},{"$f":"E371+E372+E373","v":49},{"$f":"SQRT((F371^2)+(F372^2)+(F373^2))","v":169.09464805250343},{"$f":"G371+G372+G373","v":93},{"$f":"SQRT((H371^2)+(H372^2)+(H373^2))","v":132.44244032786469},{"$f":"I371+I372+I373","v":13},{"$f":"SQRT((J371^2)+(J372^2)+(J373^2))","v":162.4561479292181},{"$f":"K371+K372+K373","v":7},{"$f":"SQRT((L371^2)+(L372^2)+(L373^2))","v":161.66632302368976},{"$f":"M371+M372+M373","v":13},{"$f":"SQRT((N371^2)+(N372^2)+(N373^2))","v":162.33607116103309},{"$f":"O371+O372+O373","v":16},{"$f":"SQRT((P371^2)+(P372^2)+(P373^2))","v":115.36463929644994},{"$f":"Q371+Q372+Q373","v":0},{"$f":"SQRT((R371^2)+(R372^2)+(R373^2))","v":197.45379206285202},{"$f":"S371+S372+S373","v":5},{"$f":"SQRT((T371^2)+(T372^2)+(T373^2))","v":161.41871019184859},{"$f":"U371+U372+U373","v":11},{"$f":"SQRT((V371^2)+(V372^2)+(V373^2))","v":162.33607116103309},{"$f":"W371+W372+W373","v":0},{"$f":"SQRT((X371^2)+(X372^2)+(X373^2))","v":197.45379206285202},{"$f":"Y371+Y372+Y373","v":4},{"$f":"SQRT((Z371^2)+(Z372^2)+(Z373^2))","v":161.33195591698504},{"$f":"AA371+AA372+AA373","v":24},{"$f":"SQRT((AB371^2)+(AB372^2)+(AB373^2))","v":166.10839834276894},{"$f":"AC371+AC372+AC373","v":0},{"$f":"SQRT((AD371^2)+(AD372^2)+(AD373^2))","v":197.45379206285202},{"$f":"AE371+AE372+AE373","v":0},{"$f":"SQRT((AF371^2)+(AF372^2)+(AF373^2))","v":197.45379206285202}]
[null,"More than 30.0 percent",{"$f":"C374+C375","v":0},{"$f":"SQRT((D374^2)+(D375^2))","v":161.22034611053283},{"$f":"E374+E375","v":0},{"$f":"SQRT((F374^2)+(F375^2))","v":161.22034611053283},{"$f":"G374+G375","v":0},{"$f":"SQRT((H374^2)+(H375^2))","v":161.22034611053283},{"$f":"I374+I375","v":0},{"$f":"SQRT((J374^2)+(J375^2))","v":161.22034611053283},{"$f":"K374+K375","v":0},{"$f":"SQRT((L374^2)+(L375^2))","v":161.22034611053283},{"$f":"M374+M375","v":0},{"$f":"SQRT((N374^2)+(N375^2))","v":161.22034611053283},{"$f":"O374+O375","v":0},{"$f":"SQRT((P374^2)+(P375^2))","v":161.22034611053283},{"$f":"Q374+Q375","v":0},{"$f":"SQRT((R374^2)+(R375^2))","v":161.22034611053283},{"$f":"S374+S375","v":0},{"$f":"SQRT((T374^2)+(T375^2))","v":161.22034611053283},{"$f":"U374+U375","v":0},{"$f":"SQRT((V374^2)+(V375^2))","v":161.22034611053283},{"$f":"W374+W375","v":0},{"$f":"SQRT((X374^2)+(X375^2))","v":161.22034611053283},{"$f":"Y374+Y375","v":0},{"$f":"SQRT((Z374^2)+(Z375^2))","v":161.22034611053283},{"$f":"AA374+AA375","v":0},{"$f":"SQRT((AB374^2)+(AB375^2))","v":161.22034611053283},{"$f":"AC374+AC375","v":0},{"$f":"SQRT((AD374^2)+(AD375^2))","v":161.22034611053283},{"$f":"AE374+AE375","v":0},{"$f":"SQRT((AF374^2)+(AF375^2))","v":161.22034611053283}]
[null,"Less Than 35% of HH Income",{"$f":"C374+C373+C372+C371","v":0},{"$f":"SQRT((D374^2)+(D373^2)+(D372^2)+(D371^2))","v":228},{"$f":"E374+E373+E372+E371","v":49},{"$f":"SQRT((F374^2)+(F373^2)+(F372^2)+(F371^2))","v":203.93381279228808},{"$f":"G374+G373+G372+G371","v":93},{"$f":"SQRT((H374^2)+(H373^2)+(H372^2)+(H371^2))","v":174.7483905505284},{"$f":"I374+I373+I372+I371","v":13},{"$f":"SQRT((J374^2)+(J373^2)+(J372^2)+(J371^2))","v":198.4641025475388},{"$f":"K374+K373+K372+K371","v":7},{"$f":"SQRT((L374^2)+(L373^2)+(L372^2)+(L371^2))","v":197.81809826201444},{"$f":"M374+M373+M372+M371","v":13},{"$f":"SQRT((N374^2)+(N373^2)+(N372^2)+(N371^2))","v":198.36582366930045},{"$f":"O374+O373+O372+O371","v":16},{"$f":"SQRT((P374^2)+(P373^2)+(P372^2)+(P371^2))","v":162.18816233005415},{"$f":"Q374+Q373+Q372+Q371","v":0},{"$f":"SQRT((R374^2)+(R373^2)+(R372^2)+(R371^2))","v":228},{"$f":"S374+S373+S372+S371","v":5},{"$f":"SQRT((T374^2)+(T373^2)+(T372^2)+(T371^2))","v":197.61578884289585},{"$f":"U374+U373+U372+U371","v":11},{"$f":"SQRT((V374^2)+(V373^2)+(V372^2)+(V371^2))","v":198.36582366930045},{"$f":"W374+W373+W372+W371","v":0},{"$f":"SQRT((X374^2)+(X373^2)+(X372^2)+(X371^2))","v":228},{"$f":"Y374+Y373+Y372+Y371","v":4},{"$f":"SQRT((Z374^2)+(Z373^2)+(Z372^2)+(Z371^2))","v":197.54493159785193},{"$f":"AA374+AA373+AA372+AA371","v":24},{"$f":"SQRT((AB374^2)+(AB373^2)+(AB372^2)+(AB371^2))","v":201.46463709544659},{"$f":"AC374+AC373+AC372+AC371","v":0},{"$f":"SQRT((AD374^2)+(AD373^2)+(AD372^2)+(AD371^2))","v":228},{"$f":"AE374+AE373+AE372+AE371","v":0},{"$f":"SQRT((AF374^2)+(AF373^2)+(AF372^2)+(AF371^2))","v":228}]
[null,"35.0 percent or more",{"$f":"C375","v":0},114,0,114,0,114,0,114,0,114,0,114,0,114,0,114,0,114,0,114,0,114,0,114,0,114,0,114,0,114]
[null,"Not Computed",{"$f":"C376","v":0},114,0,114,0,114,0,114,0,114,0,114,0,114,0,114,5,7,0,114,9,14,0,114,0,114,8,12,0,114]
[null,"$100,000 or more:",{"$f":"C377","v":0},114,30,26,50,40,3,5,0,114,0,114,45,39,0,114,0,114,0,114,11,16,0,114,46,46,0,114,0,114]
[null,"Less than 30.0 percent",{"$f":"C378+C379+C380","v":0},{"$f":"SQRT((D378^2)+(D379^2)+(D380^2))","v":197.45379206285202},{"$f":"E378+E379+E380","v":17},{"$f":"SQRT((F378^2)+(F379^2)+(F380^2))","v":163.46559270990332},{"$f":"G378+G379+G380","v":50},{"$f":"SQRT((H378^2)+(H379^2)+(H380^2))","v":166.10839834276894},{"$f":"I378+I379+I380","v":0},{"$f":"SQRT((J378^2)+(J379^2)+(J380^2))","v":197.45379206285202},{"$f":"K378+K379+K380","v":0},{"$f":"SQRT((L378^2)+(L379^2)+(L380^2))","v":197.45379206285202},{"$f":"M378+M379+M380","v":0},{"$f":"SQRT((N378^2)+(N379^2)+(N380^2))","v":197.45379206285202},{"$f":"O378+O379+O380","v":24},{"$f":"SQRT((P378^2)+(P379^2)+(P380^2))","v":116.45170672858342},{"$f":"Q378+Q379+Q380","v":0},{"$f":"SQRT((R378^2)+(R379^2)+(R380^2))","v":197.45379206285202},{"$f":"S378+S379+S380","v":0},{"$f":"SQRT((T378^2)+(T379^2)+(T380^2))","v":197.45379206285202},{"$f":"U378+U379+U380","v":0},{"$f":"SQRT((V378^2)+(V379^2)+(V380^2))","v":197.45379206285202},{"$f":"W378+W379+W380","v":0},{"$f":"SQRT((X378^2)+(X379^2)+(X380^2))","v":197.45379206285202},{"$f":"Y378+Y379+Y380","v":0},{"$f":"SQRT((Z378^2)+(Z379^2)+(Z380^2))","v":197.45379206285202},{"$f":"AA378+AA379+AA380","v":46},{"$f":"SQRT((AB378^2)+(AB379^2)+(AB380^2))","v":167.65440644373174},{"$f":"AC378+AC379+AC380","v":0},{"$f":"SQRT((AD378^2)+(AD379^2)+(AD380^2))","v":197.45379206285202},{"$f":"AE378+AE379+AE380","v":0},{"$f":"SQRT((AF378^2)+(AF379^2)+(AF380^2))","v":197.45379206285202}]
[null,"More than 30.0 percent",{"$f":"C381+C382","v":0},{"$f":"SQRT((D381^2)+(D382^2))","v":161.22034611053283},{"$f":"E381+E382","v":0},{"$f":"SQRT((F381^2)+(F382^2))","v":161.22034611053283},{"$f":"G381+G382","v":0},{"$f":"SQRT((H381^2)+(H382^2))","v":161.22034611053283},{"$f":"I381+I382","v":0},{"$f":"SQRT((J381^2)+(J382^2))","v":161.22034611053283},{"$f":"K381+K382","v":0},{"$f":"SQRT((L381^2)+(L382^2))","v":161.22034611053283},{"$f":"M381+M382","v":0},{"$f":"SQRT((N381^2)+(N382^2))","v":161.22034611053283},{"$f":"O381+O382","v":0},{"$f":"SQRT((P381^2)+(P382^2))","v":161.22034611053283},{"$f":"Q381+Q382","v":0},{"$f":"SQRT((R381^2)+(R382^2))","v":161.22034611053283},{"$f":"S381+S382","v":0},{"$f":"SQRT((T381^2)+(T382^2))","v":161.22034611053283},{"$f":"U381+U382","v":0},{"$f":"SQRT((V381^2)+(V382^2))","v":161.22034611053283},{"$f":"W381+W382","v":0},{"$f":"SQRT((X381^2)+(X382^2))","v":161.22034611053283},{"$f":"Y381+Y382","v":0},{"$f":"SQRT((Z381^2)+(Z382^2))","v":161.22034611053283},{"$f":"AA381+AA382","v":0},{"$f":"SQRT((AB381^2)+(AB382^2))","v":161.22034611053283},{"$f":"AC381+AC382","v":0},{"$f":"SQRT((AD381^2)+(AD382^2))","v":161.22034611053283},{"$f":"AE381+AE382","v":0},{"$f":"SQRT((AF381^2)+(AF382^2))","v":161.22034611053283}]
[null,"Less Than 35% of HH Income",{"$f":"C378+C379+C380+C381","v":0},{"$f":"SQRT((D378^2)+(D379^2)+(D380^2)+(D381^2))","v":228},{"$f":"E378+E379+E380+E381","v":17},{"$f":"SQRT((F378^2)+(F379^2)+(F380^2)+(F381^2))","v":199.29124416290847},{"$f":"G378+G379+G380+G381","v":50},{"$f":"SQRT((H378^2)+(H379^2)+(H380^2)+(H381^2))","v":201.46463709544659},{"$f":"I378+I379+I380+I381","v":0},{"$f":"SQRT((J378^2)+(J379^2)+(J380^2)+(J381^2))","v":228},{"$f":"K378+K379+K380+K381","v":0},{"$f":"SQRT((L378^2)+(L379^2)+(L380^2)+(L381^2))","v":228},{"$f":"M378+M379+M380+M381","v":0},{"$f":"SQRT((N378^2)+(N379^2)+(N380^2)+(N381^2))","v":228},{"$f":"O378+O379+O380+O381","v":24},{"$f":"SQRT((P378^2)+(P379^2)+(P380^2)+(P381^2))","v":162.96318602678338},{"$f":"Q378+Q379+Q380+Q381","v":0},{"$f":"SQRT((R378^2)+(R379^2)+(R380^2)+(R381^2))","v":228},{"$f":"S378+S379+S380+S381","v":0},{"$f":"SQRT((T378^2)+(T379^2)+(T380^2)+(T381^2))","v":228},{"$f":"U378+U379+U380+U381","v":0},{"$f":"SQRT((V378^2)+(V379^2)+(V380^2)+(V381^2))","v":228},{"$f":"W378+W379+W380+W381","v":0},{"$f":"SQRT((X378^2)+(X379^2)+(X380^2)+(X381^2))","v":228},{"$f":"Y378+Y379+Y380+Y381","v":0},{"$f":"SQRT((Z378^2)+(Z379^2)+(Z380^2)+(Z381^2))","v":228},{"$f":"AA378+AA379+AA380+AA381","v":46},{"$f":"SQRT((AB378^2)+(AB379^2)+(AB380^2)+(AB381^2))","v":202.74121435958699},{"$f":"AC378+AC379+AC380+AC381","v":0},{"$f":"SQRT((AD378^2)+(AD379^2)+(AD380^2)+(AD381^2))","v":228},{"$f":"AE378+AE379+AE380+AE381","v":0},{"$f":"SQRT((AF378^2)+(AF379^2)+(AF380^2)+(AF381^2))","v":228}]
[null,"35.0 percent or more",{"$f":"C382","v":0},114,0,114,0,114,0,114,0,114,0,114,0,114,0,114,0,114,0,114,0,114,0,114,0,114,0,114,0,114]
[null,"Not Computed",{"$f":"C383","v":0},114,13,20,0,114,3,5,0,114,0,114,21,33,0,114,0,114,0,114,11,16,0,114,0,114,0,114,0,114]
[]
[]
[null,"Calculated GROSS RENT AS A PERCENTAGE OF HOUSEHOLD INCOME IN THE PAST 12 MONTHS"]
[null,"Universe:  RENTER OCCUPIED HOUSING UNITS"]
[null,"Data Set: 2005-2009 American Community Survey 5-Year Estimates"]
[]
[null,null,"Acworth",null,"Charlestown",null,"Claremont",null,"Cornish",null,"Croydon",null,"Goshen",null,"Grantham",null,"Langdon",null,"Lempster",null,"Newport",null,"Plainfield",null,"Springfield",null,"Sunapee",null,"Unity",null,"Washington"]
[null,null,"Estimate","Margin Of Error","Estimate","Margin Of Error","Estimate","Margin Of Error","Estimate","Margin Of Error","Estimate","Margin Of Error","Estimate","Margin Of Error","Estimate","Margin Of Error","Estimate","Margin Of Error","Estimate","Margin Of Error","Estimate","Margin Of Error","Estimate","Margin Of Error","Estimate","Margin Of Error","Estimate","Margin Of Error","Estimate","Margin Of Error","Estimate","Margin Of Error"]
[null,{"$f":"B435","v":"Total:"},43,31,452,134,2635,251,88,36,54,36,72,40,95,52,10,16,74,29,856,193,78,46,19,18,444,119,111,44,17,12]
[null,"Less than 30.0 percent",{"$f":"C473+C467+C461+C455+C449+C443+C437","v":26},{"$f":"SQRT((D473^2)+(D467^2)+(D461^2)+(D455^2)+(D449^2)+(D443^2)+(D437^2))","v":484.26439059670702},{"$f":"E473+E467+E461+E455+E449+E443+E437","v":266},{"$f":"SQRT((F473^2)+(F467^2)+(F461^2)+(F455^2)+(F449^2)+(F443^2)+(F437^2))","v":414.45385750406524},{"$f":"G473+G467+G461+G455+G449+G443+G437","v":1255},{"$f":"SQRT((H473^2)+(H467^2)+(H461^2)+(H455^2)+(H449^2)+(H443^2)+(H437^2))","v":335.50707891190609},{"$f":"I473+I467+I461+I455+I449+I443+I437","v":18},{"$f":"SQRT((J473^2)+(J467^2)+(J461^2)+(J455^2)+(J449^2)+(J443^2)+(J437^2))","v":484.38001610305929},{"$f":"K473+K467+K461+K455+K449+K443+K437","v":17},{"$f":"SQRT((L473^2)+(L467^2)+(L461^2)+(L455^2)+(L449^2)+(L443^2)+(L437^2))","v":470.60599231204014},{"$f":"M473+M467+M461+M455+M449+M443+M437","v":39},{"$f":"SQRT((N473^2)+(N467^2)+(N461^2)+(N455^2)+(N449^2)+(N443^2)+(N437^2))","v":471.08491803495474},{"$f":"O473+O467+O461+O455+O449+O443+O437","v":47},{"$f":"SQRT((P473^2)+(P467^2)+(P461^2)+(P455^2)+(P449^2)+(P443^2)+(P437^2))","v":457.09408221940481},{"$f":"Q473+Q467+Q461+Q455+Q449+Q443+Q437","v":10},{"$f":"SQRT((R473^2)+(R467^2)+(R461^2)+(R455^2)+(R449^2)+(R443^2)+(R437^2))","v":510.07450436186281},{"$f":"S473+S467+S461+S455+S449+S443+S437","v":23},{"$f":"SQRT((T473^2)+(T467^2)+(T461^2)+(T455^2)+(T449^2)+(T443^2)+(T437^2))","v":484.29433199243618},{"$f":"U473+U467+U461+U455+U449+U443+U437","v":542},{"$f":"SQRT((V473^2)+(V467^2)+(V461^2)+(V455^2)+(V449^2)+(V443^2)+(V437^2))","v":384.58549114598696},{"$f":"W473+W467+W461+W455+W449+W443+W437","v":12},{"$f":"SQRT((X473^2)+(X467^2)+(X461^2)+(X455^2)+(X449^2)+(X443^2)+(X437^2))","v":510.07450436186281},{"$f":"Y473+Y467+Y461+Y455+Y449+Y443+Y437","v":15},{"$f":"SQRT((Z473^2)+(Z467^2)+(Z461^2)+(Z455^2)+(Z449^2)+(Z443^2)+(Z437^2))","v":470.21697119521326},{"$f":"AA473+AA467+AA461+AA455+AA449+AA443+AA437","v":217},{"$f":"SQRT((AB473^2)+(AB467^2)+(AB461^2)+(AB455^2)+(AB449^2)+(AB443^2)+(AB437^2))","v":428.17519778707407},{"$f":"AC473+AC467+AC461+AC455+AC449+AC443+AC437","v":59},{"$f":"SQRT((AD473^2)+(AD467^2)+(AD461^2)+(AD455^2)+(AD449^2)+(AD443^2)+(AD437^2))","v":471.62167040966216},{"$f":"AE473+AE467+AE461+AE455+AE449+AE443+AE437","v":4},{"$f":"SQRT((AF473^2)+(AF467^2)+(AF461^2)+(AF455^2)+(AF449^2)+(AF443^2)+(AF437^2))","v":509.85880398400496}]
[null,"More than 30.0 percent",{"$f":"C474+C468+C462+C456+C450+C444+C438","v":9},{"$f":"SQRT((D474^2)+(D468^2)+(D462^2)+(D456^2)+(D450^2)+(D444^2)+(D438^2))","v":411.30645509157767},{"$f":"E474+E468+E462+E456+E450+E444+E438","v":148},{"$f":"SQRT((F474^2)+(F468^2)+(F462^2)+(F456^2)+(F450^2)+(F444^2)+(F438^2))","v":372.99061650395441},{"$f":"G474+G468+G462+G456+G450+G444+G438","v":1311},{"$f":"SQRT((H474^2)+(H468^2)+(H462^2)+(H456^2)+(H450^2)+(H444^2)+(H438^2))","v":402.94044224922374},{"$f":"I474+I468+I462+I456+I450+I444+I438","v":37},{"$f":"SQRT((J474^2)+(J468^2)+(J462^2)+(J456^2)+(J450^2)+(J444^2)+(J438^2))","v":343.12388433334104},{"$f":"K474+K468+K462+K456+K450+K444+K438","v":24},{"$f":"SQRT((L474^2)+(L468^2)+(L462^2)+(L456^2)+(L450^2)+(L444^2)+(L438^2))","v":378.82185786989641},{"$f":"M474+M468+M462+M456+M450+M444+M438","v":10},{"$f":"SQRT((N474^2)+(N468^2)+(N462^2)+(N456^2)+(N450^2)+(N444^2)+(N438^2))","v":395.05569227641814},{"$f":"O474+O468+O462+O456+O450+O444+O438","v":27},{"$f":"SQRT((P474^2)+(P468^2)+(P462^2)+(P456^2)+(P450^2)+(P444^2)+(P438^2))","v":396.12371804778365},{"$f":"Q474+Q468+Q462+Q456+Q450+Q444+Q438","v":0},{"$f":"SQRT((R474^2)+(R468^2)+(R462^2)+(R456^2)+(R450^2)+(R444^2)+(R438^2))","v":426.54894209222931},{"$f":"S474+S468+S462+S456+S450+S444+S438","v":31},{"$f":"SQRT((T474^2)+(T468^2)+(T462^2)+(T456^2)+(T450^2)+(T444^2)+(T438^2))","v":342.6032691029086},{"$f":"U474+U468+U462+U456+U450+U444+U438","v":314},{"$f":"SQRT((V474^2)+(V468^2)+(V462^2)+(V456^2)+(V450^2)+(V444^2)+(V438^2))","v":376.68819997446161},{"$f":"W474+W468+W462+W456+W450+W444+W438","v":30},{"$f":"SQRT((X474^2)+(X468^2)+(X462^2)+(X456^2)+(X450^2)+(X444^2)+(X438^2))","v":396.14769972827054},{"$f":"Y474+Y468+Y462+Y456+Y450+Y444+Y438","v":0},{"$f":"SQRT((Z474^2)+(Z468^2)+(Z462^2)+(Z456^2)+(Z450^2)+(Z444^2)+(Z438^2))","v":426.54894209222931},{"$f":"AA474+AA468+AA462+AA456+AA450+AA444+AA438","v":185},{"$f":"SQRT((AB474^2)+(AB468^2)+(AB462^2)+(AB456^2)+(AB450^2)+(AB444^2)+(AB438^2))","v":339.12976867270146},{"$f":"AC474+AC468+AC462+AC456+AC450+AC444+AC438","v":16},{"$f":"SQRT((AD474^2)+(AD468^2)+(AD462^2)+(AD456^2)+(AD450^2)+(AD444^2)+(AD438^2))","v":395.33530072585222},{"$f":"AE474+AE468+AE462+AE456+AE450+AE444+AE438","v":6},{"$f":"SQRT((AF474^2)+(AF468^2)+(AF462^2)+(AF456^2)+(AF450^2)+(AF444^2)+(AF438^2))","v":394.97088500293285}]
[null,"Less Than 35% of HH Income",{"$f":"C475+C469+C463+C457+C451+C445+C439","v":26},{"$f":"SQRT((D475^2)+(D469^2)+(D463^2)+(D457^2)+(D451^2)+(D445^2)+(D439^2))","v":570.5120507053291},{"$f":"E475+E469+E463+E457+E451+E445+E439","v":321},{"$f":"SQRT((F475^2)+(F469^2)+(F463^2)+(F457^2)+(F451^2)+(F445^2)+(F439^2))","v":503.57918940321593},{"$f":"G475+G469+G463+G457+G451+G445+G439","v":1543},{"$f":"SQRT((H475^2)+(H469^2)+(H463^2)+(H457^2)+(H451^2)+(H445^2)+(H439^2))","v":420.4509483875616},{"$f":"I475+I469+I463+I457+I451+I445+I439","v":44},{"$f":"SQRT((J475^2)+(J469^2)+(J463^2)+(J457^2)+(J451^2)+(J445^2)+(J439^2))","v":547.74903012237269},{"$f":"K475+K469+K463+K457+K451+K445+K439","v":31},{"$f":"SQRT((L475^2)+(L469^2)+(L463^2)+(L457^2)+(L451^2)+(L445^2)+(L439^2))","v":547.2494860664558},{"$f":"M475+M469+M463+M457+M451+M445+M439","v":43},{"$f":"SQRT((N475^2)+(N469^2)+(N463^2)+(N457^2)+(N451^2)+(N445^2)+(N439^2))","v":547.64313197555941},{"$f":"O475+O469+O463+O457+O451+O445+O439","v":47},{"$f":"SQRT((P475^2)+(P469^2)+(P463^2)+(P457^2)+(P451^2)+(P445^2)+(P439^2))","v":547.63765392821551},{"$f":"Q475+Q469+Q463+Q457+Q451+Q445+Q439","v":10},{"$f":"SQRT((R475^2)+(R469^2)+(R463^2)+(R457^2)+(R451^2)+(R445^2)+(R439^2))","v":592.57742110208687},{"$f":"S475+S469+S463+S457+S451+S445+S439","v":47},{"$f":"SQRT((T475^2)+(T469^2)+(T463^2)+(T457^2)+(T451^2)+(T445^2)+(T439^2))","v":535.52030773818467},{"$f":"U475+U469+U463+U457+U451+U445+U439","v":582},{"$f":"SQRT((V475^2)+(V469^2)+(V463^2)+(V457^2)+(V451^2)+(V445^2)+(V439^2))","v":469.03517991724243},{"$f":"W475+W469+W463+W457+W451+W445+W439","v":36},{"$f":"SQRT((X475^2)+(X469^2)+(X463^2)+(X457^2)+(X451^2)+(X445^2)+(X439^2))","v":582.28171875819703},{"$f":"Y475+Y469+Y463+Y457+Y451+Y445+Y439","v":15},{"$f":"SQRT((Z475^2)+(Z469^2)+(Z463^2)+(Z457^2)+(Z451^2)+(Z445^2)+(Z439^2))","v":558.63762852138768},{"$f":"AA475+AA469+AA463+AA457+AA451+AA445+AA439","v":300},{"$f":"SQRT((AB475^2)+(AB469^2)+(AB463^2)+(AB457^2)+(AB451^2)+(AB445^2)+(AB439^2))","v":487.83501309356632},{"$f":"AC475+AC469+AC463+AC457+AC451+AC445+AC439","v":64},{"$f":"SQRT((AD475^2)+(AD469^2)+(AD463^2)+(AD457^2)+(AD451^2)+(AD445^2)+(AD439^2))","v":536.30681517206176},{"$f":"AE475+AE469+AE463+AE457+AE451+AE445+AE439","v":4},{"$f":"SQRT((AF475^2)+(AF469^2)+(AF463^2)+(AF457^2)+(AF451^2)+(AF445^2)+(AF439^2))","v":592.3917622654792}]
[null,"35.0 percent or more",{"$f":"C476+C470+C464+C458+C452+C446+C440","v":9},{"$f":"SQRT((D476^2)+(D470^2)+(D464^2)+(D458^2)+(D452^2)+(D446^2)+(D440^2))","v":279.64441707282481},{"$f":"E476+E470+E464+E458+E452+E446+E440","v":93},{"$f":"SQRT((F476^2)+(F470^2)+(F464^2)+(F458^2)+(F452^2)+(F446^2)+(F440^2))","v":239.37836159519514},{"$f":"G476+G470+G464+G458+G452+G446+G440","v":1023},{"$f":"SQRT((H476^2)+(H470^2)+(H464^2)+(H458^2)+(H452^2)+(H446^2)+(H440^2))","v":322.02794909758995},{"$f":"I476+I470+I464+I458+I452+I446+I440","v":11},{"$f":"SQRT((J476^2)+(J470^2)+(J464^2)+(J458^2)+(J452^2)+(J446^2)+(J440^2))","v":255.2038400965001},{"$f":"K476+K470+K464+K458+K452+K446+K440","v":10},{"$f":"SQRT((L476^2)+(L470^2)+(L464^2)+(L458^2)+(L452^2)+(L446^2)+(L440^2))","v":279.75882470442286},{"$f":"M476+M470+M464+M458+M452+M446+M440","v":6},{"$f":"SQRT((N476^2)+(N470^2)+(N464^2)+(N458^2)+(N452^2)+(N446^2)+(N440^2))","v":279.38682860865151},{"$f":"O476+O470+O464+O458+O452+O446+O440","v":27},{"$f":"SQRT((P476^2)+(P470^2)+(P464^2)+(P458^2)+(P452^2)+(P446^2)+(P440^2))","v":256.79174441558672},{"$f":"Q476+Q470+Q464+Q458+Q452+Q446+Q440","v":0},{"$f":"SQRT((R476^2)+(R470^2)+(R464^2)+(R458^2)+(R452^2)+(R446^2)+(R440^2))","v":301.61564946136332},{"$f":"S476+S470+S464+S458+S452+S446+S440","v":7},{"$f":"SQRT((T476^2)+(T470^2)+(T464^2)+(T458^2)+(T452^2)+(T446^2)+(T440^2))","v":255.0137251208256},{"$f":"U476+U470+U464+U458+U452+U446+U440","v":274},{"$f":"SQRT((V476^2)+(V470^2)+(V464^2)+(V458^2)+(V452^2)+(V446^2)+(V440^2))","v":274.60152949319126},{"$f":"W476+W470+W464+W458+W452+W446+W440","v":6},{"$f":"SQRT((X476^2)+(X470^2)+(X464^2)+(X458^2)+(X452^2)+(X446^2)+(X440^2))","v":279.38682860865151},{"$f":"Y476+Y470+Y464+Y458+Y452+Y446+Y440","v":0},{"$f":"SQRT((Z476^2)+(Z470^2)+(Z464^2)+(Z458^2)+(Z452^2)+(Z446^2)+(Z440^2))","v":301.61564946136332},{"$f":"AA476+AA470+AA464+AA458+AA452+AA446+AA440","v":102},{"$f":"SQRT((AB476^2)+(AB470^2)+(AB464^2)+(AB458^2)+(AB452^2)+(AB446^2)+(AB440^2))","v":239.65600347164266},{"$f":"AC476+AC470+AC464+AC458+AC452+AC446+AC440","v":11},{"$f":"SQRT((AD476^2)+(AD470^2)+(AD464^2)+(AD458^2)+(AD452^2)+(AD446^2)+(AD440^2))","v":279.75882470442286},{"$f":"AE476+AE470+AE464+AE458+AE452+AE446+AE440","v":6},{"$f":"SQRT((AF476^2)+(AF470^2)+(AF464^2)+(AF458^2)+(AF452^2)+(AF446^2)+(AF440^2))","v":255.0098037331114}]
[null,"Not Computed",{"$f":"C477+C471+C465+C459+C453+C447+C441","v":8},{"$f":"SQRT((D477^2)+(D471^2)+(D465^2)+(D459^2)+(D453^2)+(D447^2)+(D441^2))","v":255.11957980523565},{"$f":"E477+E471+E465+E459+E453+E447+E441","v":38},{"$f":"SQRT((F477^2)+(F471^2)+(F465^2)+(F459^2)+(F453^2)+(F447^2)+(F441^2))","v":230.71410880134746},{"$f":"G477+G471+G465+G459+G453+G447+G441","v":69},{"$f":"SQRT((H477^2)+(H471^2)+(H465^2)+(H459^2)+(H453^2)+(H447^2)+(H441^2))","v":233.06222345116336},{"$f":"I477+I471+I465+I459+I453+I447+I441","v":33},{"$f":"SQRT((J477^2)+(J471^2)+(J465^2)+(J459^2)+(J453^2)+(J447^2)+(J441^2))","v":198.48677537810926},{"$f":"K477+K471+K465+K459+K453+K447+K441","v":13},{"$f":"SQRT((L477^2)+(L471^2)+(L465^2)+(L459^2)+(L453^2)+(L447^2)+(L441^2))","v":255.42317827479948},{"$f":"M477+M471+M465+M459+M453+M447+M441","v":23},{"$f":"SQRT((N477^2)+(N471^2)+(N465^2)+(N459^2)+(N453^2)+(N447^2)+(N441^2))","v":256.2654873368632},{"$f":"O477+O471+O465+O459+O453+O447+O441","v":21},{"$f":"SQRT((P477^2)+(P471^2)+(P465^2)+(P459^2)+(P453^2)+(P447^2)+(P441^2))","v":281.1849924871525},{"$f":"Q477+Q471+Q465+Q459+Q453+Q447+Q441","v":0},{"$f":"SQRT((R477^2)+(R471^2)+(R465^2)+(R459^2)+(R453^2)+(R447^2)+(R441^2))","v":301.61564946136332},{"$f":"S477+S471+S465+S459+S453+S447+S441","v":20},{"$f":"SQRT((T477^2)+(T471^2)+(T465^2)+(T459^2)+(T453^2)+(T447^2)+(T441^2))","v":197.93685861910612},{"$f":"U477+U471+U465+U459+U453+U447+U441","v":0},{"$f":"SQRT((V477^2)+(V471^2)+(V465^2)+(V459^2)+(V453^2)+(V447^2)+(V441^2))","v":301.61564946136332},{"$f":"W477+W471+W465+W459+W453+W447+W441","v":36},{"$f":"SQRT((X477^2)+(X471^2)+(X465^2)+(X459^2)+(X453^2)+(X447^2)+(X441^2))","v":199.52192861938761},{"$f":"Y477+Y471+Y465+Y459+Y453+Y447+Y441","v":4},{"$f":"SQRT((Z477^2)+(Z471^2)+(Z465^2)+(Z459^2)+(Z453^2)+(Z447^2)+(Z441^2))","v":279.3564031841762},{"$f":"AA477+AA471+AA465+AA459+AA453+AA447+AA441","v":42},{"$f":"SQRT((AB477^2)+(AB471^2)+(AB465^2)+(AB459^2)+(AB453^2)+(AB447^2)+(AB441^2))","v":283.6829215867603},{"$f":"AC477+AC471+AC465+AC459+AC453+AC447+AC441","v":36},{"$f":"SQRT((AD477^2)+(AD471^2)+(AD465^2)+(AD459^2)+(AD453^2)+(AD447^2)+(AD441^2))","v":199.40160480798542},{"$f":"AE477+AE471+AE465+AE459+AE453+AE447+AE441","v":7},{"$f":"SQRT((AF477^2)+(AF471^2)+(AF465^2)+(AF459^2)+(AF453^2)+(AF447^2)+(AF441^2))","v":228.08989455914087}]

{"sheet":"SData_B25001_B25003_B25004","index":84,"n_rows":34,"n_cols":34,"rows_kept":34,"cut":false,"hidden":true,"merged":[]}
["GEO_ID","GEO_ID2","SUMLEVEL","GEO_NAME","B25001_1_EST","B25001_1_MOE","B25003_1_EST","B25003_1_MOE","B25003_2_EST","B25003_2_MOE","B25003_3_EST","B25003_3_MOE","B25004_1_EST","B25004_1_MOE","B25004_2_EST","B25004_2_MOE","B25004_3_EST","B25004_3_MOE","B25004_4_EST","B25004_4_MOE","B25004_5_EST","B25004_5_MOE","B25004_6_EST","B25004_6_MOE","B25004_7_EST","B25004_7_MOE","B25004_8_EST","B25004_8_MOE"]
["Geography Identifier","Geography Identifier","Geographic Summary Level","Geography",{"$f":"[1]ACS_16_5YR_B25001_with_ann!D$2","v":"Estimate Total"},{"$f":"[1]ACS_16_5YR_B25001_with_ann!E$2","v":"Margin of Error Total"},{"$f":"[1]ACS_16_5YR_B25003_with_ann!D$2","v":"Estimate Total:"},{"$f":"[1]ACS_16_5YR_B25003_with_ann!E$2","v":"Margin of Error Total:"},{"$f":"[1]ACS_16_5YR_B25003_with_ann!F$2","v":"Estimate Total: Owner occupied"},{"$f":"[1]ACS_16_5YR_B25003_with_ann!G$2","v":"Margin of Error Total: Owner occupied"},{"$f":"[1]ACS_16_5YR_B25003_with_ann!H$2","v":"Estimate Total: Renter occupied"},{"$f":"[1]ACS_16_5YR_B25003_with_ann!I$2","v":"Margin of Error Total: Renter occupied"},{"$f":"[1]ACS_16_5YR_B25004_with_ann!D$2","v":"Estimate Total:"},{"$f":"[1]ACS_16_5YR_B25004_with_ann!E$2","v":"Margin of Error Total:"},{"$f":"[1]ACS_16_5YR_B25004_with_ann!F$2","v":"Estimate Total: For rent"},{"$f":"[1]ACS_16_5YR_B25004_with_ann!G$2","v":"Margin of Error Total: For rent"},{"$f":"[1]ACS_16_5YR_B25004_with_ann!H$2","v":"Estimate Total: Rented"},{"$f":"[1]ACS_16_5YR_B25004_with_ann!I$2","v":"Margin of Error Total: Rented"},{"$f":"[1]ACS_16_5YR_B25004_with_ann!J$2","v":"Estimate Total: For sale only"},{"$f":"[1]ACS_16_5YR_B25004_with_ann!K$2","v":"Margin of Error Total: For sale only"},{"$f":"[1]ACS_16_5YR_B25004_with_ann!L$2","v":"Estimate Total: Sold"},{"$f":"[1]ACS_16_5YR_B25004_with_ann!M$2","v":"Margin of Error Total: Sold"},{"$f":"[1]ACS_16_5YR_B25004_with_ann!N$2","v":"Estimate Total: For seasonal"},{"$f":"[1]ACS_16_5YR_B25004_with_ann!O$2","v":"Margin of Error Total: For seasonal"},{"$f":"[1]ACS_16_5YR_B25004_with_ann!P$2","v":"Estimate Total: For migrant workers"},{"$f":"[1]ACS_16_5YR_B25004_with_ann!Q$2","v":"Margin of Error Total: For migrant workers"},{"$f":"[1]ACS_16_5YR_B25004_with_ann!R$2","v":"Estimate Total: Other vacant"},{"$f":"[1]ACS_16_5YR_B25004_with_ann!S$2","v":"Margin of Error Total: Other vacant"}]
["0600000US3301900259",3301900259,"060","Acworth",{"$f":"[1]ACS_16_5YR_B25001_with_ann!D258","v":587},{"$f":"[1]ACS_16_5YR_B25001_with_ann!E258","v":53},{"$f":"[1]ACS_16_5YR_B25003_with_ann!D258","v":370},{"$f":"[1]ACS_16_5YR_B25003_with_ann!E258","v":51},{"$f":"[1]ACS_16_5YR_B25003_with_ann!F258","v":340},{"$f":"[1]ACS_16_5YR_B25003_with_ann!G258","v":50},{"$f":"[1]ACS_16_5YR_B25003_with_ann!H258","v":30},{"$f":"[1]ACS_16_5YR_B25003_with_ann!I258","v":16},{"$f":"[1]ACS_16_5YR_B25004_with_ann!D258","v":217},{"$f":"[1]ACS_16_5YR_B25004_with_ann!E258","v":39},{"$f":"[1]ACS_16_5YR_B25004_with_ann!F258","v":4},{"$f":"[1]ACS_16_5YR_B25004_with_ann!G258","v":6},{"$f":"[1]ACS_16_5YR_B25004_with_ann!H258","v":0},{"$f":"[1]ACS_16_5YR_B25004_with_ann!I258","v":11},{"$f":"[1]ACS_16_5YR_B25004_with_ann!J258","v":0},{"$f":"[1]ACS_16_5YR_B25004_with_ann!K258","v":11},{"$f":"[1]ACS_16_5YR_B25004_with_ann!L258","v":6},{"$f":"[1]ACS_16_5YR_B25004_with_ann!M258","v":9},{"$f":"[1]ACS_16_5YR_B25004_with_ann!N258","v":192},{"$f":"[1]ACS_16_5YR_B25004_with_ann!O258","v":36},{"$f":"[1]ACS_16_5YR_B25004_with_ann!P258","v":0},{"$f":"[1]ACS_16_5YR_B25004_with_ann!Q258","v":11},{"$f":"[1]ACS_16_5YR_B25004_with_ann!R258","v":15},{"$f":"[1]ACS_16_5YR_B25004_with_ann!S258","v":14},null,"Acworth"]
["0600000US3301911380",3301911380,"060","Charlestown",{"$f":"[1]ACS_16_5YR_B25001_with_ann!D259","v":2354},{"$f":"[1]ACS_16_5YR_B25001_with_ann!E259","v":203},{"$f":"[1]ACS_16_5YR_B25003_with_ann!D259","v":2086},{"$f":"[1]ACS_16_5YR_B25003_with_ann!E259","v":184},{"$f":"[1]ACS_16_5YR_B25003_with_ann!F259","v":1584},{"$f":"[1]ACS_16_5YR_B25003_with_ann!G259","v":209},{"$f":"[1]ACS_16_5YR_B25003_with_ann!H259","v":502},{"$f":"[1]ACS_16_5YR_B25003_with_ann!I259","v":134},{"$f":"[1]ACS_16_5YR_B25004_with_ann!D259","v":268},{"$f":"[1]ACS_16_5YR_B25004_with_ann!E259","v":110},{"$f":"[1]ACS_16_5YR_B25004_with_ann!F259","v":0},{"$f":"[1]ACS_16_5YR_B25004_with_ann!G259","v":16},{"$f":"[1]ACS_16_5YR_B25004_with_ann!H259","v":27},{"$f":"[1]ACS_16_5YR_B25004_with_ann!I259","v":42},{"$f":"[1]ACS_16_5YR_B25004_with_ann!J259","v":32},{"$f":"[1]ACS_16_5YR_B25004_with_ann!K259","v":52},{"$f":"[1]ACS_16_5YR_B25004_with_ann!L259","v":45},{"$f":"[1]ACS_16_5YR_B25004_with_ann!M259","v":65},{"$f":"[1]ACS_16_5YR_B25004_with_ann!N259","v":164},{"$f":"[1]ACS_16_5YR_B25004_with_ann!O259","v":83},{"$f":"[1]ACS_16_5YR_B25004_with_ann!P259","v":0},{"$f":"[1]ACS_16_5YR_B25004_with_ann!Q259","v":16},{"$f":"[1]ACS_16_5YR_B25004_with_ann!R259","v":0},{"$f":"[1]ACS_16_5YR_B25004_with_ann!S259","v":16},null,"Acworth"]
["0600000US3301912900",3301912900,"060","Claremont",{"$f":"[1]ACS_16_5YR_B25001_with_ann!D260","v":6129},{"$f":"[1]ACS_16_5YR_B25001_with_ann!E260","v":297},{"$f":"[1]ACS_16_5YR_B25003_with_ann!D260","v":5231},{"$f":"[1]ACS_16_5YR_B25003_with_ann!E260","v":284},{"$f":"[1]ACS_16_5YR_B25003_with_ann!F260","v":2921},{"$f":"[1]ACS_16_5YR_B25003_with_ann!G260","v":257},{"$f":"[1]ACS_16_5YR_B25003_with_ann!H260","v":2310},{"$f":"[1]ACS_16_5YR_B25003_with_ann!I260","v":288},{"$f":"[1]ACS_16_5YR_B25004_with_ann!D260","v":898},{"$f":"[1]ACS_16_5YR_B25004_with_ann!E260","v":228},{"$f":"[1]ACS_16_5YR_B25004_with_ann!F260","v":279},{"$f":"[1]ACS_16_5YR_B25004_with_ann!G260","v":124},{"$f":"[1]ACS_16_5YR_B25004_with_ann!H260","v":51},{"$f":"[1]ACS_16_5YR_B25004_with_ann!I260","v":75},{"$f":"[1]ACS_16_5YR_B25004_with_ann!J260","v":57},{"$f":"[1]ACS_16_5YR_B25004_with_ann!K260","v":62},{"$f":"[1]ACS_16_5YR_B25004_with_ann!L260","v":0},{"$f":"[1]ACS_16_5YR_B25004_with_ann!M260","v":18},{"$f":"[1]ACS_16_5YR_B25004_with_ann!N260","v":217},{"$f":"[1]ACS_16_5YR_B25004_with_ann!O260","v":151},{"$f":"[1]ACS_16_5YR_B25004_with_ann!P260","v":0},{"$f":"[1]ACS_16_5YR_B25004_with_ann!Q260","v":18},{"$f":"[1]ACS_16_5YR_B25004_with_ann!R260","v":294},{"$f":"[1]ACS_16_5YR_B25004_with_ann!S260","v":164},null,"Acworth"]
["0600000US3301915060",3301915060,"060","Cornish",{"$f":"[1]ACS_16_5YR_B25001_with_ann!D261","v":837},{"$f":"[1]ACS_16_5YR_B25001_with_ann!E261","v":83},{"$f":"[1]ACS_16_5YR_B25003_with_ann!D261","v":741},{"$f":"[1]ACS_16_5YR_B25003_with_ann!E261","v":81},{"$f":"[1]ACS_16_5YR_B25003_with_ann!F261","v":686},{"$f":"[1]ACS_16_5YR_B25003_with_ann!G261","v":79},{"$f":"[1]ACS_16_5YR_B25003_with_ann!H261","v":55},{"$f":"[1]ACS_16_5YR_B25003_with_ann!I261","v":26},{"$f":"[1]ACS_16_5YR_B25004_with_ann!D261","v":96},{"$f":"[1]ACS_16_5YR_B25004_with_ann!E261","v":45},{"$f":"[1]ACS_16_5YR_B25004_with_ann!F261","v":0},{"$f":"[1]ACS_16_5YR_B25004_with_ann!G261","v":11},{"$f":"[1]ACS_16_5YR_B25004_with_ann!H261","v":0},{"$f":"[1]ACS_16_5YR_B25004_with_ann!I261","v":11},{"$f":"[1]ACS_16_5YR_B25004_with_ann!J261","v":27},{"$f":"[1]ACS_16_5YR_B25004_with_ann!K261","v":26},{"$f":"[1]ACS_16_5YR_B25004_with_ann!L261","v":11},{"$f":"[1]ACS_16_5YR_B25004_with_ann!M261","v":18},{"$f":"[1]ACS_16_5YR_B25004_with_ann!N261","v":58},{"$f":"[1]ACS_16_5YR_B25004_with_ann!O261","v":37},{"$f":"[1]ACS_16_5YR_B25004_with_ann!P261","v":0},{"$f":"[1]ACS_16_5YR_B25004_with_ann!Q261","v":11},{"$f":"[1]ACS_16_5YR_B25004_with_ann!R261","v":0},{"$f":"[1]ACS_16_5YR_B25004_with_ann!S261","v":11},null,"Acworth"]
["0600000US3301916340",3301916340,"060","Croydon",{"$f":"[1]ACS_16_5YR_B25001_with_ann!D262","v":464},{"$f":"[1]ACS_16_5YR_B25001_with_ann!E262","v":75},{"$f":"[1]ACS_16_5YR_B25003_with_ann!D262","v":293},{"$f":"[1]ACS_16_5YR_B25003_with_ann!E262","v":56},{"$f":"[1]ACS_16_5YR_B25003_with_ann!F262","v":257},{"$f":"[1]ACS_16_5YR_B25003_with_ann!G262","v":53},{"$f":"[1]ACS_16_5YR_B25003_with_ann!H262","v":36},{"$f":"[1]ACS_16_5YR_B25003_with_ann!I262","v":22},{"$f":"[1]ACS_16_5YR_B25004_with_ann!D262","v":171},{"$f":"[1]ACS_16_5YR_B25004_with_ann!E262","v":54},{"$f":"[1]ACS_16_5YR_B25004_with_ann!F262","v":0},{"$f":"[1]ACS_16_5YR_B25004_with_ann!G262","v":11},{"$f":"[1]ACS_16_5YR_B25004_with_ann!H262","v":0},{"$f":"[1]ACS_16_5YR_B25004_with_ann!I262","v":11},{"$f":"[1]ACS_16_5YR_B25004_with_ann!J262","v":4},{"$f":"[1]ACS_16_5YR_B25004_with_ann!K262","v":6},{"$f":"[1]ACS_16_5YR_B25004_with_ann!L262","v":29},{"$f":"[1]ACS_16_5YR_B25004_with_ann!M262","v":35},{"$f":"[1]ACS_16_5YR_B25004_with_ann!N262","v":123},{"$f":"[1]ACS_16_5YR_B25004_with_ann!O262","v":41},{"$f":"[1]ACS_16_5YR_B25004_with_ann!P262","v":0},{"$f":"[1]ACS_16_5YR_B25004_with_ann!Q262","v":11},{"$f":"[1]ACS_16_5YR_B25004_with_ann!R262","v":15},{"$f":"[1]ACS_16_5YR_B25004_with_ann!S262","v":15},null,"Acworth"]
["0600000US3301930500",3301930500,"060","Goshen",{"$f":"[1]ACS_16_5YR_B25001_with_ann!D263","v":435},{"$f":"[1]ACS_16_5YR_B25001_with_ann!E263","v":52},{"$f":"[1]ACS_16_5YR_B25003_with_ann!D263","v":277},{"$f":"[1]ACS_16_5YR_B25003_with_ann!E263","v":39},{"$f":"[1]ACS_16_5YR_B25003_with_ann!F263","v":223},{"$f":"[1]ACS_16_5YR_B25003_with_ann!G263","v":35},{"$f":"[1]ACS_16_5YR_B25003_with_ann!H263","v":54},{"$f":"[1]ACS_16_5YR_B25003_with_ann!I263","v":23},{"$f":"[1]ACS_16_5YR_B25004_with_ann!D263","v":158},{"$f":"[1]ACS_16_5YR_B25004_with_ann!E263","v":40},{"$f":"[1]ACS_16_5YR_B25004_with_ann!F263","v":17},{"$f":"[1]ACS_16_5YR_B25004_with_ann!G263","v":13},{"$f":"[1]ACS_16_5YR_B25004_with_ann!H263","v":0},{"$f":"[1]ACS_16_5YR_B25004_with_ann!I263","v":11},{"$f":"[1]ACS_16_5YR_B25004_with_ann!J263","v":13},{"$f":"[1]ACS_16_5YR_B25004_with_ann!K263","v":14},{"$f":"[1]ACS_16_5YR_B25004_with_ann!L263","v":7},{"$f":"[1]ACS_16_5YR_B25004_with_ann!M263","v":10},{"$f":"[1]ACS_16_5YR_B25004_with_ann!N263","v":118},{"$f":"[1]ACS_16_5YR_B25004_with_ann!O263","v":34},{"$f":"[1]ACS_16_5YR_B25004_with_ann!P263","v":0},{"$f":"[1]ACS_16_5YR_B25004_with_ann!Q263","v":11},{"$f":"[1]ACS_16_5YR_B25004_with_ann!R263","v":3},{"$f":"[1]ACS_16_5YR_B25004_with_ann!S263","v":5},null,"Acworth"]
["0600000US3301931220",3301931220,"060","Grantham",{"$f":"[1]ACS_16_5YR_B25001_with_ann!D264","v":1745},{"$f":"[1]ACS_16_5YR_B25001_with_ann!E264","v":211},{"$f":"[1]ACS_16_5YR_B25003_with_ann!D264","v":1222},{"$f":"[1]ACS_16_5YR_B25003_with_ann!E264","v":142},{"$f":"[1]ACS_16_5YR_B25003_with_ann!F264","v":1082},{"$f":"[1]ACS_16_5YR_B25003_with_ann!G264","v":164},{"$f":"[1]ACS_16_5YR_B25003_with_ann!H264","v":140},{"$f":"[1]ACS_16_5YR_B25003_with_ann!I264","v":79},{"$f":"[1]ACS_16_5YR_B25004_with_ann!D264","v":523},{"$f":"[1]ACS_16_5YR_B25004_with_ann!E264","v":186},{"$f":"[1]ACS_16_5YR_B25004_with_ann!F264","v":0},{"$f":"[1]ACS_16_5YR_B25004_with_ann!G264","v":11},{"$f":"[1]ACS_16_5YR_B25004_with_ann!H264","v":0},{"$f":"[1]ACS_16_5YR_B25004_with_ann!I264","v":11},{"$f":"[1]ACS_16_5YR_B25004_with_ann!J264","v":12},{"$f":"[1]ACS_16_5YR_B25004_with_ann!K264","v":19},{"$f":"[1]ACS_16_5YR_B25004_with_ann!L264","v":0},{"$f":"[1]ACS_16_5YR_B25004_with_ann!M264","v":11},{"$f":"[1]ACS_16_5YR_B25004_with_ann!N264","v":511},{"$f":"[1]ACS_16_5YR_B25004_with_ann!O264","v":185},{"$f":"[1]ACS_16_5YR_B25004_with_ann!P264","v":0},{"$f":"[1]ACS_16_5YR_B25004_with_ann!Q264","v":11},{"$f":"[1]ACS_16_5YR_B25004_with_ann!R264","v":0},{"$f":"[1]ACS_16_5YR_B25004_with_ann!S264","v":11},null,"Acworth"]
["0600000US3301940900",3301940900,"060","Langdon",{"$f":"[1]ACS_16_5YR_B25001_with_ann!D265","v":318},{"$f":"[1]ACS_16_5YR_B25001_with_ann!E265","v":45},{"$f":"[1]ACS_16_5YR_B25003_with_ann!D265","v":257},{"$f":"[1]ACS_16_5YR_B25003_with_ann!E265","v":47},{"$f":"[1]ACS_16_5YR_B25003_with_ann!F265","v":218},{"$f":"[1]ACS_16_5YR_B25003_with_ann!G265","v":44},{"$f":"[1]ACS_16_5YR_B25003_with_ann!H265","v":39},{"$f":"[1]ACS_16_5YR_B25003_with_ann!I265","v":21},{"$f":"[1]ACS_16_5YR_B25004_with_ann!D265","v":61},{"$f":"[1]ACS_16_5YR_B25004_with_ann!E265","v":28},{"$f":"[1]ACS_16_5YR_B25004_with_ann!F265","v":0},{"$f":"[1]ACS_16_5YR_B25004_with_ann!G265","v":11},{"$f":"[1]ACS_16_5YR_B25004_with_ann!H265","v":0},{"$f":"[1]ACS_16_5YR_B25004_with_ann!I265","v":11},{"$f":"[1]ACS_16_5YR_B25004_with_ann!J265","v":14},{"$f":"[1]ACS_16_5YR_B25004_with_ann!K265","v":14},{"$f":"[1]ACS_16_5YR_B25004_with_ann!L265","v":0},{"$f":"[1]ACS_16_5YR_B25004_with_ann!M265","v":11},{"$f":"[1]ACS_16_5YR_B25004_with_ann!N265","v":35},{"$f":"[1]ACS_16_5YR_B25004_with_ann!O265","v":21},{"$f":"[1]ACS_16_5YR_B25004_with_ann!P265","v":0},{"$f":"[1]ACS_16_5YR_B25004_with_ann!Q265","v":11},{"$f":"[1]ACS_16_5YR_B25004_with_ann!R265","v":12},{"$f":"[1]ACS_16_5YR_B25004_with_ann!S265","v":15},null,"Acworth"]
["0600000US3301941700",3301941700,"060","Lempster",{"$f":"[1]ACS_16_5YR_B25001_with_ann!D266","v":694},{"$f":"[1]ACS_16_5YR_B25001_with_ann!E266","v":76},{"$f":"[1]ACS_16_5YR_B25003_with_ann!D266","v":393},{"$f":"[1]ACS_16_5YR_B25003_with_ann!E266","v":59},{"$f":"[1]ACS_16_5YR_B25003_with_ann!F266","v":367},{"$f":"[1]ACS_16_5YR_B25003_with_ann!G266","v":61},{"$f":"[1]ACS_16_5YR_B25003_with_ann!H266","v":26},{"$f":"[1]ACS_16_5YR_B25003_with_ann!I266","v":16},{"$f":"[1]ACS_16_5YR_B25004_with_ann!D266","v":301},{"$f":"[1]ACS_16_5YR_B25004_with_ann!E266","v":64},{"$f":"[1]ACS_16_5YR_B25004_with_ann!F266","v":0},{"$f":"[1]ACS_16_5YR_B25004_with_ann!G266","v":11},{"$f":"[1]ACS_16_5YR_B25004_with_ann!H266","v":8},{"$f":"[1]ACS_16_5YR_B25004_with_ann!I266","v":12},{"$f":"[1]ACS_16_5YR_B25004_with_ann!J266","v":2},{"$f":"[1]ACS_16_5YR_B25004_with_ann!K266","v":3},{"$f":"[1]ACS_16_5YR_B25004_with_ann!L266","v":19},{"$f":"[1]ACS_16_5YR_B25004_with_ann!M266","v":20},{"$f":"[1]ACS_16_5YR_B25004_with_ann!N266","v":233},{"$f":"[1]ACS_16_5YR_B25004_with_ann!O266","v":53},{"$f":"[1]ACS_16_5YR_B25004_with_ann!P266","v":0},{"$f":"[1]ACS_16_5YR_B25004_with_ann!Q266","v":11},{"$f":"[1]ACS_16_5YR_B25004_with_ann!R266","v":39},{"$f":"[1]ACS_16_5YR_B25004_with_ann!S266","v":26},null,"Acworth"]
["0600000US3301952580",3301952580,"060","Newport",{"$f":"[1]ACS_16_5YR_B25001_with_ann!D267","v":2816},{"$f":"[1]ACS_16_5YR_B25001_with_ann!E267","v":228},{"$f":"[1]ACS_16_5YR_B25003_with_ann!D267","v":2600},{"$f":"[1]ACS_16_5YR_B25003_with_ann!E267","v":168},{"$f":"[1]ACS_16_5YR_B25003_with_ann!F267","v":1743},{"$f":"[1]ACS_16_5YR_B25003_with_ann!G267","v":186},{"$f":"[1]ACS_16_5YR_B25003_with_ann!H267","v":857},{"$f":"[1]ACS_16_5YR_B25003_with_ann!I267","v":184},{"$f":"[1]ACS_16_5YR_B25004_with_ann!D267","v":216},{"$f":"[1]ACS_16_5YR_B25004_with_ann!E267","v":140},{"$f":"[1]ACS_16_5YR_B25004_with_ann!F267","v":33},{"$f":"[1]ACS_16_5YR_B25004_with_ann!G267","v":54},{"$f":"[1]ACS_16_5YR_B25004_with_ann!H267","v":0},{"$f":"[1]ACS_16_5YR_B25004_with_ann!I267","v":16},{"$f":"[1]ACS_16_5YR_B25004_with_ann!J267","v":0},{"$f":"[1]ACS_16_5YR_B25004_with_ann!K267","v":16},{"$f":"[1]ACS_16_5YR_B25004_with_ann!L267","v":0},{"$f":"[1]ACS_16_5YR_B25004_with_ann!M267","v":16},{"$f":"[1]ACS_16_5YR_B25004_with_ann!N267","v":145},{"$f":"[1]ACS_16_5YR_B25004_with_ann!O267","v":115},{"$f":"[1]ACS_16_5YR_B25004_with_ann!P267","v":0},{"$f":"[1]ACS_16_5YR_B25004_with_ann!Q267","v":16},{"$f":"[1]ACS_16_5YR_B25004_with_ann!R267","v":38},{"$f":"[1]ACS_16_5YR_B25004_with_ann!S267","v":61},null,"Acworth"]
["0600000US3301962340",3301962340,"060","Plainfield",{"$f":"[1]ACS_16_5YR_B25001_with_ann!D268","v":1076},{"$f":"[1]ACS_16_5YR_B25001_with_ann!E268","v":83},{"$f":"[1]ACS_16_5YR_B25003_with_ann!D268","v":915},{"$f":"[1]ACS_16_5YR_B25003_with_ann!E268","v":86},{"$f":"[1]ACS_16_5YR_B25003_with_ann!F268","v":803},{"$f":"[1]ACS_16_5YR_B25003_with_ann!G268","v":78},{"$f":"[1]ACS_16_5YR_B25003_with_ann!H268","v":112},{"$f":"[1]ACS_16_5YR_B25003_with_ann!I268","v":49},{"$f":"[1]ACS_16_5YR_B25004_with_ann!D268","v":161},{"$f":"[1]ACS_16_5YR_B25004_with_ann!E268","v":66},{"$f":"[1]ACS_16_5YR_B25004_with_ann!F268","v":15},{"$f":"[1]ACS_16_5YR_B25004_with_ann!G268","v":25},{"$f":"[1]ACS_16_5YR_B25004_with_ann!H268","v":0},{"$f":"[1]ACS_16_5YR_B25004_with_ann!I268","v":11},{"$f":"[1]ACS_16_5YR_B25004_with_ann!J268","v":21},{"$f":"[1]ACS_16_5YR_B25004_with_ann!K268","v":26},{"$f":"[1]ACS_16_5YR_B25004_with_ann!L268","v":0},{"$f":"[1]ACS_16_5YR_B25004_with_ann!M268","v":11},{"$f":"[1]ACS_16_5YR_B25004_with_ann!N268","v":107},{"$f":"[1]ACS_16_5YR_B25004_with_ann!O268","v":47},{"$f":"[1]ACS_16_5YR_B25004_with_ann!P268","v":0},{"$f":"[1]ACS_16_5YR_B25004_with_ann!Q268","v":11},{"$f":"[1]ACS_16_5YR_B25004_with_ann!R268","v":18},{"$f":"[1]ACS_16_5YR_B25004_with_ann!S268","v":28},null,"Acworth"]
["0600000US3301972740",3301972740,"060","Springfield",{"$f":"[1]ACS_16_5YR_B25001_with_ann!D269","v":719},{"$f":"[1]ACS_16_5YR_B25001_with_ann!E269","v":93},{"$f":"[1]ACS_16_5YR_B25003_with_ann!D269","v":442},{"$f":"[1]ACS_16_5YR_B25003_with_ann!E269","v":75},{"$f":"[1]ACS_16_5YR_B25003_with_ann!F269","v":398},{"$f":"[1]ACS_16_5YR_B25003_with_ann!G269","v":71},{"$f":"[1]ACS_16_5YR_B25003_with_ann!H269","v":44},{"$f":"[1]ACS_16_5YR_B25003_with_ann!I269","v":33},{"$f":"[1]ACS_16_5YR_B25004_with_ann!D269","v":277},{"$f":"[1]ACS_16_5YR_B25004_with_ann!E269","v":77},{"$f":"[1]ACS_16_5YR_B25004_with_ann!F269","v":9},{"$f":"[1]ACS_16_5YR_B25004_with_ann!G269","v":15},{"$f":"[1]ACS_16_5YR_B25004_with_ann!H269","v":0},{"$f":"[1]ACS_16_5YR_B25004_with_ann!I269","v":11},{"$f":"[1]ACS_16_5YR_B25004_with_ann!J269","v":0},{"$f":"[1]ACS_16_5YR_B25004_with_ann!K269","v":11},{"$f":"[1]ACS_16_5YR_B25004_with_ann!L269","v":0},{"$f":"[1]ACS_16_5YR_B25004_with_ann!M269","v":11},{"$f":"[1]ACS_16_5YR_B25004_with_ann!N269","v":250},{"$f":"[1]ACS_16_5YR_B25004_with_ann!O269","v":75},{"$f":"[1]ACS_16_5YR_B25004_with_ann!P269","v":0},{"$f":"[1]ACS_16_5YR_B25004_with_ann!Q269","v":11},{"$f":"[1]ACS_16_5YR_B25004_with_ann!R269","v":18},{"$f":"[1]ACS_16_5YR_B25004_with_ann!S269","v":20},null,"Acworth"]
["0600000US3301975060",3301975060,"060","Sunapee",{"$f":"[1]ACS_16_5YR_B25001_with_ann!D270","v":2592},{"$f":"[1]ACS_16_5YR_B25001_with_ann!E270","v":180},{"$f":"[1]ACS_16_5YR_B25003_with_ann!D270","v":1393},{"$f":"[1]ACS_16_5YR_B25003_with_ann!E270","v":139},{"$f":"[1]ACS_16_5YR_B25003_with_ann!F270","v":1044},{"$f":"[1]ACS_16_5YR_B25003_with_ann!G270","v":138},{"$f":"[1]ACS_16_5YR_B25003_with_ann!H270","v":349},{"$f":"[1]ACS_16_5YR_B25003_with_ann!I270","v":122},{"$f":"[1]ACS_16_5YR_B25004_with_ann!D270","v":1199},{"$f":"[1]ACS_16_5YR_B25004_with_ann!E270","v":161},{"$f":"[1]ACS_16_5YR_B25004_with_ann!F270","v":0},{"$f":"[1]ACS_16_5YR_B25004_with_ann!G270","v":11},{"$f":"[1]ACS_16_5YR_B25004_with_ann!H270","v":0},{"$f":"[1]ACS_16_5YR_B25004_with_ann!I270","v":11},{"$f":"[1]ACS_16_5YR_B25004_with_ann!J270","v":0},{"$f":"[1]ACS_16_5YR_B25004_with_ann!K270","v":11},{"$f":"[1]ACS_16_5YR_B25004_with_ann!L270","v":21},{"$f":"[1]ACS_16_5YR_B25004_with_ann!M270","v":25},{"$f":"[1]ACS_16_5YR_B25004_with_ann!N270","v":1152},{"$f":"[1]ACS_16_5YR_B25004_with_ann!O270","v":150},{"$f":"[1]ACS_16_5YR_B25004_with_ann!P270","v":0},{"$f":"[1]ACS_16_5YR_B25004_with_ann!Q270","v":11},{"$f":"[1]ACS_16_5YR_B25004_with_ann!R270","v":26},{"$f":"[1]ACS_16_5YR_B25004_with_ann!S270","v":41},null,"Acworth"]
["0600000US3301977940",3301977940,"060","Unity",{"$f":"[1]ACS_16_5YR_B25001_with_ann!D271","v":726},{"$f":"[1]ACS_16_5YR_B25001_with_ann!E271","v":60},{"$f":"[1]ACS_16_5YR_B25003_with_ann!D271","v":571},{"$f":"[1]ACS_16_5YR_B25003_with_ann!E271","v":56},{"$f":"[1]ACS_16_5YR_B25003_with_ann!F271","v":536},{"$f":"[1]ACS_16_5YR_B25003_with_ann!G271","v":56},{"$f":"[1]ACS_16_5YR_B25003_with_ann!H271","v":35},{"$f":"[1]ACS_16_5YR_B25003_with_ann!I271","v":20},{"$f":"[1]ACS_16_5YR_B25004_with_ann!D271","v":155},{"$f":"[1]ACS_16_5YR_B25004_with_ann!E271","v":44},{"$f":"[1]ACS_16_5YR_B25004_with_ann!F271","v":0},{"$f":"[1]ACS_16_5YR_B25004_with_ann!G271","v":11},{"$f":"[1]ACS_16_5YR_B25004_with_ann!H271","v":0},{"$f":"[1]ACS_16_5YR_B25004_with_ann!I271","v":11},{"$f":"[1]ACS_16_5YR_B25004_with_ann!J271","v":4},{"$f":"[1]ACS_16_5YR_B25004_with_ann!K271","v":6},{"$f":"[1]ACS_16_5YR_B25004_with_ann!L271","v":4},{"$f":"[1]ACS_16_5YR_B25004_with_ann!M271","v":5},{"$f":"[1]ACS_16_5YR_B25004_with_ann!N271","v":140},{"$f":"[1]ACS_16_5YR_B25004_with_ann!O271","v":44},{"$f":"[1]ACS_16_5YR_B25004_with_ann!P271","v":0},{"$f":"[1]ACS_16_5YR_B25004_with_ann!Q271","v":11},{"$f":"[1]ACS_16_5YR_B25004_with_ann!R271","v":7},{"$f":"[1]ACS_16_5YR_B25004_with_ann!S271","v":10},null,"Acworth"]
["0600000US3301978980",3301978980,"060","Washington",{"$f":"[1]ACS_16_5YR_B25001_with_ann!D272","v":1160},{"$f":"[1]ACS_16_5YR_B25001_with_ann!E272","v":88},{"$f":"[1]ACS_16_5YR_B25003_with_ann!D272","v":537},{"$f":"[1]ACS_16_5YR_B25003_with_ann!E272","v":81},{"$f":"[1]ACS_16_5YR_B25003_with_ann!F272","v":499},{"$f":"[1]ACS_16_5YR_B25003_with_ann!G272","v":81},{"$f":"[1]ACS_16_5YR_B25003_with_ann!H272","v":38},{"$f":"[1]ACS_16_5YR_B25003_with_ann!I272","v":28},{"$f":"[1]ACS_16_5YR_B25004_with_ann!D272","v":623},{"$f":"[1]ACS_16_5YR_B25004_with_ann!E272","v":79},{"$f":"[1]ACS_16_5YR_B25004_with_ann!F272","v":3},{"$f":"[1]ACS_16_5YR_B25004_with_ann!G272","v":4},{"$f":"[1]ACS_16_5YR_B25004_with_ann!H272","v":0},{"$f":"[1]ACS_16_5YR_B25004_with_ann!I272","v":11},{"$f":"[1]ACS_16_5YR_B25004_with_ann!J272","v":3},{"$f":"[1]ACS_16_5YR_B25004_with_ann!K272","v":4},{"$f":"[1]ACS_16_5YR_B25004_with_ann!L272","v":0},{"$f":"[1]ACS_16_5YR_B25004_with_ann!M272","v":11},{"$f":"[1]ACS_16_5YR_B25004_with_ann!N272","v":577},{"$f":"[1]ACS_16_5YR_B25004_with_ann!O272","v":70},{"$f":"[1]ACS_16_5YR_B25004_with_ann!P272","v":0},{"$f":"[1]ACS_16_5YR_B25004_with_ann!Q272","v":11},{"$f":"[1]ACS_16_5YR_B25004_with_ann!R272","v":40},{"$f":"[1]ACS_16_5YR_B25004_with_ann!S272","v":29},null,"Acworth"]
[]
[null,null,null,null,{"$f":"$D$3","v":"Acworth"},null,{"$f":"$D$4","v":"Charlestown"},null,{"$f":"$D$5","v":"Claremont"},null,{"$f":"$D$6","v":"Cornish"},null,{"$f":"$D$7","v":"Croydon"},null,{"$f":"$D$8","v":"Goshen"},null,{"$f":"$D$9","v":"Grantham"},null,{"$f":"$D$10","v":"Langdon"},null,{"$f":"$D$11","v":"Lempster"},null,{"$f":"$D$12","v":"Newport"},null,{"$f":"$D$13","v":"Plainfield"},null,{"$f":"$D$14","v":"Springfield"},null,{"$f":"$D$15","v":"Sunapee"},null,{"$f":"$D$16","v":"Unity"},null,{"$f":"$D$17","v":"Washington"}]
[null,null,null,null,"Estimate","Margin Of Error","Estimate","Margin Of Error","Estimate","Margin Of Error","Estimate","Margin Of Error","Estimate","Margin Of Error","Estimate","Margin Of Error","Estimate","Margin Of Error","Estimate","Margin Of Error","Estimate","Margin Of Error","Estimate","Margin Of Error","Estimate","Margin Of Error","Estimate","Margin Of Error","Estimate","Margin Of Error",null,"Estimate","Margin Of Error"]
[null,null,null,"Estimate Total",587,53,2354,203,6129,297,837,83,464,75,435,52,1745,211,318,45,694,76,2816,228,1076,83,719,93,2592,180,726,60,1160,88]
["TABLE 25003"]
[null,null,null,"Estimate Total:",370,51,2086,184,5231,284,741,81,293,56,277,39,1222,142,257,47,393,59,2600,168,915,86,442,75,1393,139,571,56,537,81]
[null,null,null,"Estimate Total: Owner occupied",340,50,1584,209,2921,257,686,79,257,53,223,35,1082,164,218,44,367,61,1743,186,803,78,398,71,1044,138,536,56,499,81]
[null,null,null,"Estimate Total: Renter occupied",30,16,502,134,2310,288,55,26,36,22,54,23,140,79,39,21,26,16,857,184,112,49,44,33,349,122,35,20,38,28]
["TABLE 25004"]
[null,null,null,"Estimate Total:",217,39,268,110,898,228,96,45,171,54,158,40,523,186,61,28,301,64,216,140,161,66,277,77,1199,161,155,44,623,79]
[null,null,null,"Estimate Total: For rent",4,6,0,16,279,124,0,11,0,11,17,13,0,11,0,11,0,11,33,54,15,25,9,15,0,11,0,11,3,4]
[null,null,null,"Estimate Total: Rented",0,11,27,42,51,75,0,11,0,11,0,11,0,11,0,11,8,12,0,16,0,11,0,11,0,11,0,11,0,11]
[null,null,null,"Estimate Total: For sale only",0,11,32,52,57,62,27,26,4,6,13,14,12,19,14,14,2,3,0,16,21,26,0,11,0,11,4,6,3,4]
[null,null,null,"Estimate Total: Sold",6,9,45,65,0,18,11,18,29,35,7,10,0,11,0,11,19,20,0,16,0,11,0,11,21,25,4,5,0,11]
[null,null,null,"Estimate Total: For seasonal",192,36,164,83,217,151,58,37,123,41,118,34,511,185,35,21,233,53,145,115,107,47,250,75,1152,150,140,44,577,70]
[null,null,null,"Estimate Total: For migrant workers",0,11,0,16,0,18,0,11,0,11,0,11,0,11,0,11,0,11,0,16,0,11,0,11,0,11,0,11,0,11]
[null,null,null,"Estimate Total: Other vacant",15,14,0,16,294,164,0,11,15,15,3,5,0,11,12,15,39,26,38,61,18,28,18,20,26,41,7,10,40,29]

{"sheet":"SData_B25008","index":85,"n_rows":23,"n_cols":34,"rows_kept":23,"cut":false,"hidden":true,"merged":[]}
["GEO_ID","GEO_ID2","SUMLEVEL","GEO_NAME","B25008_1_EST","B25008_1_MOE","B25008_2_EST","B25008_2_MOE","B25008_3_EST","B25008_3_MOE"]
["Geography Identifier","Geography Identifier","Geographic Summary Level","Geography",{"$f":"[1]ACS_16_5YR_B25008_with_ann!D$2","v":"Estimate Total:"},{"$f":"[1]ACS_16_5YR_B25008_with_ann!E$2","v":"Margin of Error Total:"},{"$f":"[1]ACS_16_5YR_B25008_with_ann!F$2","v":"Estimate Total: Owner occupied"},{"$f":"[1]ACS_16_5YR_B25008_with_ann!G$2","v":"Margin of Error Total: Owner occupied"},{"$f":"[1]ACS_16_5YR_B25008_with_ann!H$2","v":"Estimate Total: Renter occupied"},{"$f":"[1]ACS_16_5YR_B25008_with_ann!I$2","v":"Margin of Error Total: Renter occupied"}]
["0600000US3301900259",3301900259,"060","Acworth",{"$f":"[1]ACS_16_5YR_B25008_with_ann!D258","v":906},{"$f":"[1]ACS_16_5YR_B25008_with_ann!E258","v":134},{"$f":"[1]ACS_16_5YR_B25008_with_ann!F258","v":830},{"$f":"[1]ACS_16_5YR_B25008_with_ann!G258","v":141},{"$f":"[1]ACS_16_5YR_B25008_with_ann!H258","v":76},{"$f":"[1]ACS_16_5YR_B25008_with_ann!I258","v":51}]
["0600000US3301911380",3301911380,"060","Charlestown",{"$f":"[1]ACS_16_5YR_B25008_with_ann!D259","v":5003},{"$f":"[1]ACS_16_5YR_B25008_with_ann!E259","v":23},{"$f":"[1]ACS_16_5YR_B25008_with_ann!F259","v":3866},{"$f":"[1]ACS_16_5YR_B25008_with_ann!G259","v":422},{"$f":"[1]ACS_16_5YR_B25008_with_ann!H259","v":1137},{"$f":"[1]ACS_16_5YR_B25008_with_ann!I259","v":420}]
["0600000US3301912900",3301912900,"060","Claremont",{"$f":"[1]ACS_16_5YR_B25008_with_ann!D260","v":12846},{"$f":"[1]ACS_16_5YR_B25008_with_ann!E260","v":112},{"$f":"[1]ACS_16_5YR_B25008_with_ann!F260","v":7564},{"$f":"[1]ACS_16_5YR_B25008_with_ann!G260","v":649},{"$f":"[1]ACS_16_5YR_B25008_with_ann!H260","v":5282},{"$f":"[1]ACS_16_5YR_B25008_with_ann!I260","v":650}]
["0600000US3301915060",3301915060,"060","Cornish",{"$f":"[1]ACS_16_5YR_B25008_with_ann!D261","v":1783},{"$f":"[1]ACS_16_5YR_B25008_with_ann!E261","v":217},{"$f":"[1]ACS_16_5YR_B25008_with_ann!F261","v":1677},{"$f":"[1]ACS_16_5YR_B25008_with_ann!G261","v":218},{"$f":"[1]ACS_16_5YR_B25008_with_ann!H261","v":106},{"$f":"[1]ACS_16_5YR_B25008_with_ann!I261","v":51}]
["0600000US3301916340",3301916340,"060","Croydon",{"$f":"[1]ACS_16_5YR_B25008_with_ann!D262","v":863},{"$f":"[1]ACS_16_5YR_B25008_with_ann!E262","v":244},{"$f":"[1]ACS_16_5YR_B25008_with_ann!F262","v":730},{"$f":"[1]ACS_16_5YR_B25008_with_ann!G262","v":235},{"$f":"[1]ACS_16_5YR_B25008_with_ann!H262","v":133},{"$f":"[1]ACS_16_5YR_B25008_with_ann!I262","v":88}]
["0600000US3301930500",3301930500,"060","Goshen",{"$f":"[1]ACS_16_5YR_B25008_with_ann!D263","v":680},{"$f":"[1]ACS_16_5YR_B25008_with_ann!E263","v":109},{"$f":"[1]ACS_16_5YR_B25008_with_ann!F263","v":561},{"$f":"[1]ACS_16_5YR_B25008_with_ann!G263","v":99},{"$f":"[1]ACS_16_5YR_B25008_with_ann!H263","v":119},{"$f":"[1]ACS_16_5YR_B25008_with_ann!I263","v":68}]
["0600000US3301931220",3301931220,"060","Grantham",{"$f":"[1]ACS_16_5YR_B25008_with_ann!D264","v":2945},{"$f":"[1]ACS_16_5YR_B25008_with_ann!E264","v":14},{"$f":"[1]ACS_16_5YR_B25008_with_ann!F264","v":2519},{"$f":"[1]ACS_16_5YR_B25008_with_ann!G264","v":303},{"$f":"[1]ACS_16_5YR_B25008_with_ann!H264","v":426},{"$f":"[1]ACS_16_5YR_B25008_with_ann!I264","v":303}]
["0600000US3301940900",3301940900,"060","Langdon",{"$f":"[1]ACS_16_5YR_B25008_with_ann!D265","v":712},{"$f":"[1]ACS_16_5YR_B25008_with_ann!E265","v":145},{"$f":"[1]ACS_16_5YR_B25008_with_ann!F265","v":575},{"$f":"[1]ACS_16_5YR_B25008_with_ann!G265","v":117},{"$f":"[1]ACS_16_5YR_B25008_with_ann!H265","v":137},{"$f":"[1]ACS_16_5YR_B25008_with_ann!I265","v":97}]
["0600000US3301941700",3301941700,"060","Lempster",{"$f":"[1]ACS_16_5YR_B25008_with_ann!D266","v":923},{"$f":"[1]ACS_16_5YR_B25008_with_ann!E266","v":176},{"$f":"[1]ACS_16_5YR_B25008_with_ann!F266","v":875},{"$f":"[1]ACS_16_5YR_B25008_with_ann!G266","v":183},{"$f":"[1]ACS_16_5YR_B25008_with_ann!H266","v":48},{"$f":"[1]ACS_16_5YR_B25008_with_ann!I266","v":27}]
["0600000US3301952580",3301952580,"060","Newport",{"$f":"[1]ACS_16_5YR_B25008_with_ann!D267","v":6236},{"$f":"[1]ACS_16_5YR_B25008_with_ann!E267","v":79},{"$f":"[1]ACS_16_5YR_B25008_with_ann!F267","v":4260},{"$f":"[1]ACS_16_5YR_B25008_with_ann!G267","v":491},{"$f":"[1]ACS_16_5YR_B25008_with_ann!H267","v":1976},{"$f":"[1]ACS_16_5YR_B25008_with_ann!I267","v":495}]
["0600000US3301962340",3301962340,"060","Plainfield",{"$f":"[1]ACS_16_5YR_B25008_with_ann!D268","v":2415},{"$f":"[1]ACS_16_5YR_B25008_with_ann!E268","v":293},{"$f":"[1]ACS_16_5YR_B25008_with_ann!F268","v":2052},{"$f":"[1]ACS_16_5YR_B25008_with_ann!G268","v":256},{"$f":"[1]ACS_16_5YR_B25008_with_ann!H268","v":363},{"$f":"[1]ACS_16_5YR_B25008_with_ann!I268","v":243}]
["0600000US3301972740",3301972740,"060","Springfield",{"$f":"[1]ACS_16_5YR_B25008_with_ann!D269","v":1084},{"$f":"[1]ACS_16_5YR_B25008_with_ann!E269","v":198},{"$f":"[1]ACS_16_5YR_B25008_with_ann!F269","v":974},{"$f":"[1]ACS_16_5YR_B25008_with_ann!G269","v":180},{"$f":"[1]ACS_16_5YR_B25008_with_ann!H269","v":110},{"$f":"[1]ACS_16_5YR_B25008_with_ann!I269","v":96}]
["0600000US3301975060",3301975060,"060","Sunapee",{"$f":"[1]ACS_16_5YR_B25008_with_ann!D270","v":3434},{"$f":"[1]ACS_16_5YR_B25008_with_ann!E270","v":21},{"$f":"[1]ACS_16_5YR_B25008_with_ann!F270","v":2771},{"$f":"[1]ACS_16_5YR_B25008_with_ann!G270","v":249},{"$f":"[1]ACS_16_5YR_B25008_with_ann!H270","v":663},{"$f":"[1]ACS_16_5YR_B25008_with_ann!I270","v":249}]
["0600000US3301977940",3301977940,"060","Unity",{"$f":"[1]ACS_16_5YR_B25008_with_ann!D271","v":1331},{"$f":"[1]ACS_16_5YR_B25008_with_ann!E271","v":148},{"$f":"[1]ACS_16_5YR_B25008_with_ann!F271","v":1243},{"$f":"[1]ACS_16_5YR_B25008_with_ann!G271","v":145},{"$f":"[1]ACS_16_5YR_B25008_with_ann!H271","v":88},{"$f":"[1]ACS_16_5YR_B25008_with_ann!I271","v":52}]
["0600000US3301978980",3301978980,"060","Washington",{"$f":"[1]ACS_16_5YR_B25008_with_ann!D272","v":1199},{"$f":"[1]ACS_16_5YR_B25008_with_ann!E272","v":188},{"$f":"[1]ACS_16_5YR_B25008_with_ann!F272","v":1105},{"$f":"[1]ACS_16_5YR_B25008_with_ann!G272","v":194},{"$f":"[1]ACS_16_5YR_B25008_with_ann!H272","v":94},{"$f":"[1]ACS_16_5YR_B25008_with_ann!I272","v":74}]
[]
[null,null,null,null,{"$f":"$D$3","v":"Acworth"},null,{"$f":"$D$4","v":"Charlestown"},null,{"$f":"$D$5","v":"Claremont"},null,{"$f":"$D$6","v":"Cornish"},null,{"$f":"$D$7","v":"Croydon"},null,{"$f":"$D$8","v":"Goshen"},null,{"$f":"$D$9","v":"Grantham"},null,{"$f":"$D$10","v":"Langdon"},null,{"$f":"$D$11","v":"Lempster"},null,{"$f":"$D$12","v":"Newport"},null,{"$f":"$D$13","v":"Plainfield"},null,{"$f":"$D$14","v":"Springfield"},null,{"$f":"$D$15","v":"Sunapee"},null,{"$f":"$D$16","v":"Unity"},null,{"$f":"$D$17","v":"Washington"}]
[null,null,null,null,"Estimate","Margin Of Error","Estimate","Margin Of Error","Estimate","Margin Of Error","Estimate","Margin Of Error","Estimate","Margin Of Error","Estimate","Margin Of Error","Estimate","Margin Of Error","Estimate","Margin Of Error","Estimate","Margin Of Error","Estimate","Margin Of Error","Estimate","Margin Of Error","Estimate","Margin Of Error","Estimate","Margin Of Error",null,"Estimate","Margin Of Error"]
[null,null,null,"Estimate Total:",906,134,5003,23,12846,112,1783,217,863,244,680,109,2945,14,712,145,923,176,6236,79,2415,293,1084,198,3434,21,1331,148,1199,188]
[null,null,null,"Estimate Total: Owner occupied",830,141,3866,422,7564,649,1677,218,730,235,561,99,2519,303,575,117,875,183,4260,491,2052,256,974,180,2771,249,1243,145,1105,194]
[null,null,null,"Estimate Total: Renter occupied",76,51,1137,420,5282,650,106,51,133,88,119,68,426,303,137,97,48,27,1976,495,363,243,110,96,663,249,88,52,94,74]

{"sheet":"SData_B25010AvgHHSizeByTenure","index":86,"n_rows":23,"n_cols":34,"rows_kept":23,"cut":false,"hidden":true,"merged":[]}
["GEO_ID","GEO_ID2","SUMLEVEL","GEO_NAME","B25010_1_EST","B25010_1_MOE","B25010_2_EST","B25010_2_MOE","B25010_3_EST","B25010_3_MOE"]
["Geography Identifier","Geography Identifier","Geographic Summary Level","Geography",{"$f":"[1]ACS_16_5YR_B25010_with_ann!D$2","v":"Estimate Average household size -- Total:"},{"$f":"[1]ACS_16_5YR_B25010_with_ann!E$2","v":"Margin of Error Average household size -- Total:"},{"$f":"[1]ACS_16_5YR_B25010_with_ann!F$2","v":"Estimate Average household size -- Total: Owner occupied"},{"$f":"[1]ACS_16_5YR_B25010_with_ann!G$2","v":"Margin of Error Average household size -- Total: Owner occupied"},{"$f":"[1]ACS_16_5YR_B25010_with_ann!H$2","v":"Estimate Average household size -- Total: Renter occupied"},{"$f":"[1]ACS_16_5YR_B25010_with_ann!I$2","v":"Margin of Error Average household size -- Total: Renter occupied"}]
["0600000US3301900259",3301900259,"060","Acworth",{"$f":"[1]ACS_16_5YR_B25010_with_ann!D258","v":2.4500000000000002},{"$f":"[1]ACS_16_5YR_B25010_with_ann!E258","v":0.21},{"$f":"[1]ACS_16_5YR_B25010_with_ann!F258","v":2.44},{"$f":"[1]ACS_16_5YR_B25010_with_ann!G258","v":0.22},{"$f":"[1]ACS_16_5YR_B25010_with_ann!H258","v":2.5299999999999998},{"$f":"[1]ACS_16_5YR_B25010_with_ann!I258","v":1.47}]
["0600000US3301911380",3301911380,"060","Charlestown",{"$f":"[1]ACS_16_5YR_B25010_with_ann!D259","v":2.4},{"$f":"[1]ACS_16_5YR_B25010_with_ann!E259","v":0.21},{"$f":"[1]ACS_16_5YR_B25010_with_ann!F259","v":2.44},{"$f":"[1]ACS_16_5YR_B25010_with_ann!G259","v":0.22},{"$f":"[1]ACS_16_5YR_B25010_with_ann!H259","v":2.2599999999999998},{"$f":"[1]ACS_16_5YR_B25010_with_ann!I259","v":0.61}]
["0600000US3301912900",3301912900,"060","Claremont",{"$f":"[1]ACS_16_5YR_B25010_with_ann!D260","v":2.46},{"$f":"[1]ACS_16_5YR_B25010_with_ann!E260","v":0.13},{"$f":"[1]ACS_16_5YR_B25010_with_ann!F260","v":2.59},{"$f":"[1]ACS_16_5YR_B25010_with_ann!G260","v":0.18},{"$f":"[1]ACS_16_5YR_B25010_with_ann!H260","v":2.29},{"$f":"[1]ACS_16_5YR_B25010_with_ann!I260","v":0.23}]
["0600000US3301915060",3301915060,"060","Cornish",{"$f":"[1]ACS_16_5YR_B25010_with_ann!D261","v":2.41},{"$f":"[1]ACS_16_5YR_B25010_with_ann!E261","v":0.22},{"$f":"[1]ACS_16_5YR_B25010_with_ann!F261","v":2.44},{"$f":"[1]ACS_16_5YR_B25010_with_ann!G261","v":0.23},{"$f":"[1]ACS_16_5YR_B25010_with_ann!H261","v":1.93},{"$f":"[1]ACS_16_5YR_B25010_with_ann!I261","v":0.54}]
["0600000US3301916340",3301916340,"060","Croydon",{"$f":"[1]ACS_16_5YR_B25010_with_ann!D262","v":2.95},{"$f":"[1]ACS_16_5YR_B25010_with_ann!E262","v":0.56999999999999995},{"$f":"[1]ACS_16_5YR_B25010_with_ann!F262","v":2.84},{"$f":"[1]ACS_16_5YR_B25010_with_ann!G262","v":0.61},{"$f":"[1]ACS_16_5YR_B25010_with_ann!H262","v":3.69},{"$f":"[1]ACS_16_5YR_B25010_with_ann!I262","v":1.22}]
["0600000US3301930500",3301930500,"060","Goshen",{"$f":"[1]ACS_16_5YR_B25010_with_ann!D263","v":2.4500000000000002},{"$f":"[1]ACS_16_5YR_B25010_with_ann!E263","v":0.28000000000000003},{"$f":"[1]ACS_16_5YR_B25010_with_ann!F263","v":2.52},{"$f":"[1]ACS_16_5YR_B25010_with_ann!G263","v":0.32},{"$f":"[1]ACS_16_5YR_B25010_with_ann!H263","v":2.2000000000000002},{"$f":"[1]ACS_16_5YR_B25010_with_ann!I263","v":0.79}]
["0600000US3301931220",3301931220,"060","Grantham",{"$f":"[1]ACS_16_5YR_B25010_with_ann!D264","v":2.41},{"$f":"[1]ACS_16_5YR_B25010_with_ann!E264","v":0.28000000000000003},{"$f":"[1]ACS_16_5YR_B25010_with_ann!F264","v":2.33},{"$f":"[1]ACS_16_5YR_B25010_with_ann!G264","v":0.31},{"$f":"[1]ACS_16_5YR_B25010_with_ann!H264","v":3.04},{"$f":"[1]ACS_16_5YR_B25010_with_ann!I264","v":1.04}]
["0600000US3301940900",3301940900,"060","Langdon",{"$f":"[1]ACS_16_5YR_B25010_with_ann!D265","v":2.77},{"$f":"[1]ACS_16_5YR_B25010_with_ann!E265","v":0.41},{"$f":"[1]ACS_16_5YR_B25010_with_ann!F265","v":2.64},{"$f":"[1]ACS_16_5YR_B25010_with_ann!G265","v":0.3},{"$f":"[1]ACS_16_5YR_B25010_with_ann!H265","v":3.51},{"$f":"[1]ACS_16_5YR_B25010_with_ann!I265","v":1.67}]
["0600000US3301941700",3301941700,"060","Lempster",{"$f":"[1]ACS_16_5YR_B25010_with_ann!D266","v":2.35},{"$f":"[1]ACS_16_5YR_B25010_with_ann!E266","v":0.35},{"$f":"[1]ACS_16_5YR_B25010_with_ann!F266","v":2.38},{"$f":"[1]ACS_16_5YR_B25010_with_ann!G266","v":0.37},{"$f":"[1]ACS_16_5YR_B25010_with_ann!H266","v":1.85},{"$f":"[1]ACS_16_5YR_B25010_with_ann!I266","v":0.65}]
["0600000US3301952580",3301952580,"060","Newport",{"$f":"[1]ACS_16_5YR_B25010_with_ann!D267","v":2.4},{"$f":"[1]ACS_16_5YR_B25010_with_ann!E267","v":0.15},{"$f":"[1]ACS_16_5YR_B25010_with_ann!F267","v":2.44},{"$f":"[1]ACS_16_5YR_B25010_with_ann!G267","v":0.21},{"$f":"[1]ACS_16_5YR_B25010_with_ann!H267","v":2.31},{"$f":"[1]ACS_16_5YR_B25010_with_ann!I267","v":0.31}]
["0600000US3301962340",3301962340,"060","Plainfield",{"$f":"[1]ACS_16_5YR_B25010_with_ann!D268","v":2.64},{"$f":"[1]ACS_16_5YR_B25010_with_ann!E268","v":0.25},{"$f":"[1]ACS_16_5YR_B25010_with_ann!F268","v":2.56},{"$f":"[1]ACS_16_5YR_B25010_with_ann!G268","v":0.22},{"$f":"[1]ACS_16_5YR_B25010_with_ann!H268","v":3.24},{"$f":"[1]ACS_16_5YR_B25010_with_ann!I268","v":1.6}]
["0600000US3301972740",3301972740,"060","Springfield",{"$f":"[1]ACS_16_5YR_B25010_with_ann!D269","v":2.4500000000000002},{"$f":"[1]ACS_16_5YR_B25010_with_ann!E269","v":0.26},{"$f":"[1]ACS_16_5YR_B25010_with_ann!F269","v":2.4500000000000002},{"$f":"[1]ACS_16_5YR_B25010_with_ann!G269","v":0.28000000000000003},{"$f":"[1]ACS_16_5YR_B25010_with_ann!H269","v":2.5},{"$f":"[1]ACS_16_5YR_B25010_with_ann!I269","v":0.69}]
["0600000US3301975060",3301975060,"060","Sunapee",{"$f":"[1]ACS_16_5YR_B25010_with_ann!D270","v":2.4700000000000002},{"$f":"[1]ACS_16_5YR_B25010_with_ann!E270","v":0.25},{"$f":"[1]ACS_16_5YR_B25010_with_ann!F270","v":2.65},{"$f":"[1]ACS_16_5YR_B25010_with_ann!G270","v":0.28999999999999998},{"$f":"[1]ACS_16_5YR_B25010_with_ann!H270","v":1.9},{"$f":"[1]ACS_16_5YR_B25010_with_ann!I270","v":0.39}]
["0600000US3301977940",3301977940,"060","Unity",{"$f":"[1]ACS_16_5YR_B25010_with_ann!D271","v":2.33},{"$f":"[1]ACS_16_5YR_B25010_with_ann!E271","v":0.19},{"$f":"[1]ACS_16_5YR_B25010_with_ann!F271","v":2.3199999999999998},{"$f":"[1]ACS_16_5YR_B25010_with_ann!G271","v":0.19},{"$f":"[1]ACS_16_5YR_B25010_with_ann!H271","v":2.5099999999999998},{"$f":"[1]ACS_16_5YR_B25010_with_ann!I271","v":0.82}]
["0600000US3301978980",3301978980,"060","Washington",{"$f":"[1]ACS_16_5YR_B25010_with_ann!D272","v":2.23},{"$f":"[1]ACS_16_5YR_B25010_with_ann!E272","v":0.17},{"$f":"[1]ACS_16_5YR_B25010_with_ann!F272","v":2.21},{"$f":"[1]ACS_16_5YR_B25010_with_ann!G272","v":0.18},{"$f":"[1]ACS_16_5YR_B25010_with_ann!H272","v":2.4700000000000002},{"$f":"[1]ACS_16_5YR_B25010_with_ann!I272","v":0.95}]
[]
[null,null,null,null,{"$f":"$D$3","v":"Acworth"},null,{"$f":"$D$4","v":"Charlestown"},null,{"$f":"$D$5","v":"Claremont"},null,{"$f":"$D$6","v":"Cornish"},null,{"$f":"$D$7","v":"Croydon"},null,{"$f":"$D$8","v":"Goshen"},null,{"$f":"$D$9","v":"Grantham"},null,{"$f":"$D$10","v":"Langdon"},null,{"$f":"$D$11","v":"Lempster"},null,{"$f":"$D$12","v":"Newport"},null,{"$f":"$D$13","v":"Plainfield"},null,{"$f":"$D$14","v":"Springfield"},null,{"$f":"$D$15","v":"Sunapee"},null,{"$f":"$D$16","v":"Unity"},null,{"$f":"$D$17","v":"Washington"}]
[null,null,null,null,"Estimate","Margin Of Error","Estimate","Margin Of Error","Estimate","Margin Of Error","Estimate","Margin Of Error","Estimate","Margin Of Error","Estimate","Margin Of Error","Estimate","Margin Of Error","Estimate","Margin Of Error","Estimate","Margin Of Error","Estimate","Margin Of Error","Estimate","Margin Of Error","Estimate","Margin Of Error","Estimate","Margin Of Error",null,"Estimate","Margin Of Error"]
[null,null,null,"Estimate Average household size -- Total:",2.4500000000000002,0.21,2.4,0.21,2.46,0.13,2.41,0.22,2.95,0.56999999999999995,2.4500000000000002,0.28000000000000003,2.41,0.28000000000000003,2.77,0.41,2.35,0.35,2.4,0.15,2.64,0.25,2.4500000000000002,0.26,2.4700000000000002,0.25,2.33,0.19,2.23,0.17]
[null,null,null,"Estimate Average household size -- Total: Owner occupied",2.44,0.22,2.44,0.22,2.59,0.18,2.44,0.23,2.84,0.61,2.52,0.32,2.33,0.31,2.64,0.3,2.38,0.37,2.44,0.21,2.56,0.22,2.4500000000000002,0.28000000000000003,2.65,0.28999999999999998,2.3199999999999998,0.19,2.21,0.18]
[null,null,null,"Estimate Average household size -- Total: Renter occupied",2.5299999999999998,1.47,2.2599999999999998,0.61,2.29,0.23,1.93,0.54,3.69,1.22,2.2000000000000002,0.79,3.04,1.04,3.51,1.67,1.85,0.65,2.31,0.31,3.24,1.6,2.5,0.69,1.9,0.39,2.5099999999999998,0.82,2.4700000000000002,0.95]

{"sheet":"SData_B25024","index":87,"n_rows":31,"n_cols":34,"rows_kept":31,"cut":false,"hidden":true,"merged":[]}
["GEO_ID","GEO_ID2","SUMLEVEL","GEO_NAME","B25024_1_EST","B25024_1_MOE","B25024_2_EST","B25024_2_MOE","B25024_3_EST","B25024_3_MOE","B25024_4_EST","B25024_4_MOE","B25024_5_EST","B25024_5_MOE","B25024_6_EST","B25024_6_MOE","B25024_7_EST","B25024_7_MOE","B25024_8_EST","B25024_8_MOE","B25024_9_EST","B25024_9_MOE","B25024_10_EST","B25024_10_MOE","B25024_11_EST","B25024_11_MOE"]
["Geography Identifier","Geography Identifier","Geographic Summary Level","Geography",{"$f":"[1]ACS_16_5YR_B25024_with_ann!D$2","v":"Estimate Total:"},{"$f":"[1]ACS_16_5YR_B25024_with_ann!E$2","v":"Margin of Error Total:"},{"$f":"[1]ACS_16_5YR_B25024_with_ann!F$2","v":"Estimate Total: 1"},{"$f":"[1]ACS_16_5YR_B25024_with_ann!G$2","v":"Margin of Error Total: 1"},{"$f":"[1]ACS_16_5YR_B25024_with_ann!H$2","v":"Estimate Total: 1"},{"$f":"[1]ACS_16_5YR_B25024_with_ann!I$2","v":"Margin of Error Total: 1"},{"$f":"[1]ACS_16_5YR_B25024_with_ann!J$2","v":"Estimate Total: 2"},{"$f":"[1]ACS_16_5YR_B25024_with_ann!K$2","v":"Margin of Error Total: 2"},{"$f":"[1]ACS_16_5YR_B25024_with_ann!L$2","v":"Estimate Total: 3 or 4"},{"$f":"[1]ACS_16_5YR_B25024_with_ann!M$2","v":"Margin of Error Total: 3 or 4"},{"$f":"[1]ACS_16_5YR_B25024_with_ann!N$2","v":"Estimate Total: 5 to 9"},{"$f":"[1]ACS_16_5YR_B25024_with_ann!O$2","v":"Margin of Error Total: 5 to 9"},{"$f":"[1]ACS_16_5YR_B25024_with_ann!P$2","v":"Estimate Total: 10 to 19"},{"$f":"[1]ACS_16_5YR_B25024_with_ann!Q$2","v":"Margin of Error Total: 10 to 19"},{"$f":"[1]ACS_16_5YR_B25024_with_ann!R$2","v":"Estimate Total: 20 to 49"},{"$f":"[1]ACS_16_5YR_B25024_with_ann!S$2","v":"Margin of Error Total: 20 to 49"},{"$f":"[1]ACS_16_5YR_B25024_with_ann!T$2","v":"Estimate Total: 50 or more"},{"$f":"[1]ACS_16_5YR_B25024_with_ann!U$2","v":"Margin of Error Total: 50 or more"},{"$f":"[1]ACS_16_5YR_B25024_with_ann!V$2","v":"Estimate Total: Mobile home"},{"$f":"[1]ACS_16_5YR_B25024_with_ann!W$2","v":"Margin of Error Total: Mobile home"},{"$f":"[1]ACS_16_5YR_B25024_with_ann!X$2","v":"Estimate Total: Boat"},{"$f":"[1]ACS_16_5YR_B25024_with_ann!Y$2","v":"Margin of Error Total: Boat"}]
["0600000US3301900259",3301900259,"060","Acworth",{"$f":"[1]ACS_16_5YR_B25024_with_ann!D258","v":587},{"$f":"[1]ACS_16_5YR_B25024_with_ann!E258","v":53},{"$f":"[1]ACS_16_5YR_B25024_with_ann!F258","v":560},{"$f":"[1]ACS_16_5YR_B25024_with_ann!G258","v":51},{"$f":"[1]ACS_16_5YR_B25024_with_ann!H258","v":2},{"$f":"[1]ACS_16_5YR_B25024_with_ann!I258","v":4},{"$f":"[1]ACS_16_5YR_B25024_with_ann!J258","v":0},{"$f":"[1]ACS_16_5YR_B25024_with_ann!K258","v":11},{"$f":"[1]ACS_16_5YR_B25024_with_ann!L258","v":0},{"$f":"[1]ACS_16_5YR_B25024_with_ann!M258","v":11},{"$f":"[1]ACS_16_5YR_B25024_with_ann!N258","v":0},{"$f":"[1]ACS_16_5YR_B25024_with_ann!O258","v":11},{"$f":"[1]ACS_16_5YR_B25024_with_ann!P258","v":0},{"$f":"[1]ACS_16_5YR_B25024_with_ann!Q258","v":11},{"$f":"[1]ACS_16_5YR_B25024_with_ann!R258","v":2},{"$f":"[1]ACS_16_5YR_B25024_with_ann!S258","v":3},{"$f":"[1]ACS_16_5YR_B25024_with_ann!T258","v":0},{"$f":"[1]ACS_16_5YR_B25024_with_ann!U258","v":11},{"$f":"[1]ACS_16_5YR_B25024_with_ann!V258","v":23},{"$f":"[1]ACS_16_5YR_B25024_with_ann!W258","v":16},{"$f":"[1]ACS_16_5YR_B25024_with_ann!X258","v":0},{"$f":"[1]ACS_16_5YR_B25024_with_ann!Y258","v":11}]
["0600000US3301911380",3301911380,"060","Charlestown",{"$f":"[1]ACS_16_5YR_B25024_with_ann!D259","v":2354},{"$f":"[1]ACS_16_5YR_B25024_with_ann!E259","v":203},{"$f":"[1]ACS_16_5YR_B25024_with_ann!F259","v":1240},{"$f":"[1]ACS_16_5YR_B25024_with_ann!G259","v":233},{"$f":"[1]ACS_16_5YR_B25024_with_ann!H259","v":6},{"$f":"[1]ACS_16_5YR_B25024_with_ann!I259","v":13},{"$f":"[1]ACS_16_5YR_B25024_with_ann!J259","v":109},{"$f":"[1]ACS_16_5YR_B25024_with_ann!K259","v":85},{"$f":"[1]ACS_16_5YR_B25024_with_ann!L259","v":152},{"$f":"[1]ACS_16_5YR_B25024_with_ann!M259","v":91},{"$f":"[1]ACS_16_5YR_B25024_with_ann!N259","v":47},{"$f":"[1]ACS_16_5YR_B25024_with_ann!O259","v":58},{"$f":"[1]ACS_16_5YR_B25024_with_ann!P259","v":16},{"$f":"[1]ACS_16_5YR_B25024_with_ann!Q259","v":26},{"$f":"[1]ACS_16_5YR_B25024_with_ann!R259","v":46},{"$f":"[1]ACS_16_5YR_B25024_with_ann!S259","v":37},{"$f":"[1]ACS_16_5YR_B25024_with_ann!T259","v":0},{"$f":"[1]ACS_16_5YR_B25024_with_ann!U259","v":16},{"$f":"[1]ACS_16_5YR_B25024_with_ann!V259","v":738},{"$f":"[1]ACS_16_5YR_B25024_with_ann!W259","v":195},{"$f":"[1]ACS_16_5YR_B25024_with_ann!X259","v":0},{"$f":"[1]ACS_16_5YR_B25024_with_ann!Y259","v":16}]
["0600000US3301912900",3301912900,"060","Claremont",{"$f":"[1]ACS_16_5YR_B25024_with_ann!D260","v":6129},{"$f":"[1]ACS_16_5YR_B25024_with_ann!E260","v":297},{"$f":"[1]ACS_16_5YR_B25024_with_ann!F260","v":3095},{"$f":"[1]ACS_16_5YR_B25024_with_ann!G260","v":311},{"$f":"[1]ACS_16_5YR_B25024_with_ann!H260","v":101},{"$f":"[1]ACS_16_5YR_B25024_with_ann!I260","v":79},{"$f":"[1]ACS_16_5YR_B25024_with_ann!J260","v":690},{"$f":"[1]ACS_16_5YR_B25024_with_ann!K260","v":179},{"$f":"[1]ACS_16_5YR_B25024_with_ann!L260","v":744},{"$f":"[1]ACS_16_5YR_B25024_with_ann!M260","v":196},{"$f":"[1]ACS_16_5YR_B25024_with_ann!N260","v":579},{"$f":"[1]ACS_16_5YR_B25024_with_ann!O260","v":163},{"$f":"[1]ACS_16_5YR_B25024_with_ann!P260","v":85},{"$f":"[1]ACS_16_5YR_B25024_with_ann!Q260","v":79},{"$f":"[1]ACS_16_5YR_B25024_with_ann!R260","v":218},{"$f":"[1]ACS_16_5YR_B25024_with_ann!S260","v":103},{"$f":"[1]ACS_16_5YR_B25024_with_ann!T260","v":252},{"$f":"[1]ACS_16_5YR_B25024_with_ann!U260","v":95},{"$f":"[1]ACS_16_5YR_B25024_with_ann!V260","v":365},{"$f":"[1]ACS_16_5YR_B25024_with_ann!W260","v":138},{"$f":"[1]ACS_16_5YR_B25024_with_ann!X260","v":0},{"$f":"[1]ACS_16_5YR_B25024_with_ann!Y260","v":18}]
["0600000US3301915060",3301915060,"060","Cornish",{"$f":"[1]ACS_16_5YR_B25024_with_ann!D261","v":837},{"$f":"[1]ACS_16_5YR_B25024_with_ann!E261","v":83},{"$f":"[1]ACS_16_5YR_B25024_with_ann!F261","v":788},{"$f":"[1]ACS_16_5YR_B25024_with_ann!G261","v":83},{"$f":"[1]ACS_16_5YR_B25024_with_ann!H261","v":9},{"$f":"[1]ACS_16_5YR_B25024_with_ann!I261","v":8},{"$f":"[1]ACS_16_5YR_B25024_with_ann!J261","v":20},{"$f":"[1]ACS_16_5YR_B25024_with_ann!K261","v":24},{"$f":"[1]ACS_16_5YR_B25024_with_ann!L261","v":0},{"$f":"[1]ACS_16_5YR_B25024_with_ann!M261","v":11},{"$f":"[1]ACS_16_5YR_B25024_with_ann!N261","v":0},{"$f":"[1]ACS_16_5YR_B25024_with_ann!O261","v":11},{"$f":"[1]ACS_16_5YR_B25024_with_ann!P261","v":0},{"$f":"[1]ACS_16_5YR_B25024_with_ann!Q261","v":11},{"$f":"[1]ACS_16_5YR_B25024_with_ann!R261","v":0},{"$f":"[1]ACS_16_5YR_B25024_with_ann!S261","v":11},{"$f":"[1]ACS_16_5YR_B25024_with_ann!T261","v":0},{"$f":"[1]ACS_16_5YR_B25024_with_ann!U261","v":11},{"$f":"[1]ACS_16_5YR_B25024_with_ann!V261","v":20},{"$f":"[1]ACS_16_5YR_B25024_with_ann!W261","v":15},{"$f":"[1]ACS_16_5YR_B25024_with_ann!X261","v":0},{"$f":"[1]ACS_16_5YR_B25024_with_ann!Y261","v":11}]
["0600000US3301916340",3301916340,"060","Croydon",{"$f":"[1]ACS_16_5YR_B25024_with_ann!D262","v":464},{"$f":"[1]ACS_16_5YR_B25024_with_ann!E262","v":75},{"$f":"[1]ACS_16_5YR_B25024_with_ann!F262","v":419},{"$f":"[1]ACS_16_5YR_B25024_with_ann!G262","v":72},{"$f":"[1]ACS_16_5YR_B25024_with_ann!H262","v":6},{"$f":"[1]ACS_16_5YR_B25024_with_ann!I262","v":7},{"$f":"[1]ACS_16_5YR_B25024_with_ann!J262","v":1},{"$f":"[1]ACS_16_5YR_B25024_with_ann!K262","v":3},{"$f":"[1]ACS_16_5YR_B25024_with_ann!L262","v":0},{"$f":"[1]ACS_16_5YR_B25024_with_ann!M262","v":11},{"$f":"[1]ACS_16_5YR_B25024_with_ann!N262","v":0},{"$f":"[1]ACS_16_5YR_B25024_with_ann!O262","v":11},{"$f":"[1]ACS_16_5YR_B25024_with_ann!P262","v":0},{"$f":"[1]ACS_16_5YR_B25024_with_ann!Q262","v":11},{"$f":"[1]ACS_16_5YR_B25024_with_ann!R262","v":0},{"$f":"[1]ACS_16_5YR_B25024_with_ann!S262","v":11},{"$f":"[1]ACS_16_5YR_B25024_with_ann!T262","v":0},{"$f":"[1]ACS_16_5YR_B25024_with_ann!U262","v":11},{"$f":"[1]ACS_16_5YR_B25024_with_ann!V262","v":38},{"$f":"[1]ACS_16_5YR_B25024_with_ann!W262","v":23},{"$f":"[1]ACS_16_5YR_B25024_with_ann!X262","v":0},{"$f":"[1]ACS_16_5YR_B25024_with_ann!Y262","v":11}]
["0600000US3301930500",3301930500,"060","Goshen",{"$f":"[1]ACS_16_5YR_B25024_with_ann!D263","v":435},{"$f":"[1]ACS_16_5YR_B25024_with_ann!E263","v":52},{"$f":"[1]ACS_16_5YR_B25024_with_ann!F263","v":365},{"$f":"[1]ACS_16_5YR_B25024_with_ann!G263","v":48},{"$f":"[1]ACS_16_5YR_B25024_with_ann!H263","v":2},{"$f":"[1]ACS_16_5YR_B25024_with_ann!I263","v":3},{"$f":"[1]ACS_16_5YR_B25024_with_ann!J263","v":0},{"$f":"[1]ACS_16_5YR_B25024_with_ann!K263","v":11},{"$f":"[1]ACS_16_5YR_B25024_with_ann!L263","v":13},{"$f":"[1]ACS_16_5YR_B25024_with_ann!M263","v":14},{"$f":"[1]ACS_16_5YR_B25024_with_ann!N263","v":12},{"$f":"[1]ACS_16_5YR_B25024_with_ann!O263","v":9},{"$f":"[1]ACS_16_5YR_B25024_with_ann!P263","v":6},{"$f":"[1]ACS_16_5YR_B25024_with_ann!Q263","v":9},{"$f":"[1]ACS_16_5YR_B25024_with_ann!R263","v":0},{"$f":"[1]ACS_16_5YR_B25024_with_ann!S263","v":11},{"$f":"[1]ACS_16_5YR_B25024_with_ann!T263","v":0},{"$f":"[1]ACS_16_5YR_B25024_with_ann!U263","v":11},{"$f":"[1]ACS_16_5YR_B25024_with_ann!V263","v":37},{"$f":"[1]ACS_16_5YR_B25024_with_ann!W263","v":19},{"$f":"[1]ACS_16_5YR_B25024_with_ann!X263","v":0},{"$f":"[1]ACS_16_5YR_B25024_with_ann!Y263","v":11}]
["0600000US3301931220",3301931220,"060","Grantham",{"$f":"[1]ACS_16_5YR_B25024_with_ann!D264","v":1745},{"$f":"[1]ACS_16_5YR_B25024_with_ann!E264","v":211},{"$f":"[1]ACS_16_5YR_B25024_with_ann!F264","v":1443},{"$f":"[1]ACS_16_5YR_B25024_with_ann!G264","v":226},{"$f":"[1]ACS_16_5YR_B25024_with_ann!H264","v":126},{"$f":"[1]ACS_16_5YR_B25024_with_ann!I264","v":107},{"$f":"[1]ACS_16_5YR_B25024_with_ann!J264","v":112},{"$f":"[1]ACS_16_5YR_B25024_with_ann!K264","v":94},{"$f":"[1]ACS_16_5YR_B25024_with_ann!L264","v":64},{"$f":"[1]ACS_16_5YR_B25024_with_ann!M264","v":82},{"$f":"[1]ACS_16_5YR_B25024_with_ann!N264","v":0},{"$f":"[1]ACS_16_5YR_B25024_with_ann!O264","v":11},{"$f":"[1]ACS_16_5YR_B25024_with_ann!P264","v":0},{"$f":"[1]ACS_16_5YR_B25024_with_ann!Q264","v":11},{"$f":"[1]ACS_16_5YR_B25024_with_ann!R264","v":0},{"$f":"[1]ACS_16_5YR_B25024_with_ann!S264","v":11},{"$f":"[1]ACS_16_5YR_B25024_with_ann!T264","v":0},{"$f":"[1]ACS_16_5YR_B25024_with_ann!U264","v":11},{"$f":"[1]ACS_16_5YR_B25024_with_ann!V264","v":0},{"$f":"[1]ACS_16_5YR_B25024_with_ann!W264","v":11},{"$f":"[1]ACS_16_5YR_B25024_with_ann!X264","v":0},{"$f":"[1]ACS_16_5YR_B25024_with_ann!Y264","v":11}]
["0600000US3301940900",3301940900,"060","Langdon",{"$f":"[1]ACS_16_5YR_B25024_with_ann!D265","v":318},{"$f":"[1]ACS_16_5YR_B25024_with_ann!E265","v":45},{"$f":"[1]ACS_16_5YR_B25024_with_ann!F265","v":295},{"$f":"[1]ACS_16_5YR_B25024_with_ann!G265","v":45},{"$f":"[1]ACS_16_5YR_B25024_with_ann!H265","v":0},{"$f":"[1]ACS_16_5YR_B25024_with_ann!I265","v":11},{"$f":"[1]ACS_16_5YR_B25024_with_ann!J265","v":11},{"$f":"[1]ACS_16_5YR_B25024_with_ann!K265","v":11},{"$f":"[1]ACS_16_5YR_B25024_with_ann!L265","v":0},{"$f":"[1]ACS_16_5YR_B25024_with_ann!M265","v":11},{"$f":"[1]ACS_16_5YR_B25024_with_ann!N265","v":0},{"$f":"[1]ACS_16_5YR_B25024_with_ann!O265","v":11},{"$f":"[1]ACS_16_5YR_B25024_with_ann!P265","v":0},{"$f":"[1]ACS_16_5YR_B25024_with_ann!Q265","v":11},{"$f":"[1]ACS_16_5YR_B25024_with_ann!R265","v":0},{"$f":"[1]ACS_16_5YR_B25024_with_ann!S265","v":11},{"$f":"[1]ACS_16_5YR_B25024_with_ann!T265","v":0},{"$f":"[1]ACS_16_5YR_B25024_with_ann!U265","v":11},{"$f":"[1]ACS_16_5YR_B25024_with_ann!V265","v":12},{"$f":"[1]ACS_16_5YR_B25024_with_ann!W265","v":10},{"$f":"[1]ACS_16_5YR_B25024_with_ann!X265","v":0},{"$f":"[1]ACS_16_5YR_B25024_with_ann!Y265","v":11}]
["0600000US3301941700",3301941700,"060","Lempster",{"$f":"[1]ACS_16_5YR_B25024_with_ann!D266","v":694},{"$f":"[1]ACS_16_5YR_B25024_with_ann!E266","v":76},{"$f":"[1]ACS_16_5YR_B25024_with_ann!F266","v":606},{"$f":"[1]ACS_16_5YR_B25024_with_ann!G266","v":74},{"$f":"[1]ACS_16_5YR_B25024_with_ann!H266","v":8},{"$f":"[1]ACS_16_5YR_B25024_with_ann!I266","v":9},{"$f":"[1]ACS_16_5YR_B25024_with_ann!J266","v":5},{"$f":"[1]ACS_16_5YR_B25024_with_ann!K266","v":6},{"$f":"[1]ACS_16_5YR_B25024_with_ann!L266","v":0},{"$f":"[1]ACS_16_5YR_B25024_with_ann!M266","v":11},{"$f":"[1]ACS_16_5YR_B25024_with_ann!N266","v":0},{"$f":"[1]ACS_16_5YR_B25024_with_ann!O266","v":11},{"$f":"[1]ACS_16_5YR_B25024_with_ann!P266","v":0},{"$f":"[1]ACS_16_5YR_B25024_with_ann!Q266","v":11},{"$f":"[1]ACS_16_5YR_B25024_with_ann!R266","v":0},{"$f":"[1]ACS_16_5YR_B25024_with_ann!S266","v":11},{"$f":"[1]ACS_16_5YR_B25024_with_ann!T266","v":3},{"$f":"[1]ACS_16_5YR_B25024_with_ann!U266","v":4},{"$f":"[1]ACS_16_5YR_B25024_with_ann!V266","v":72},{"$f":"[1]ACS_16_5YR_B25024_with_ann!W266","v":35},{"$f":"[1]ACS_16_5YR_B25024_with_ann!X266","v":0},{"$f":"[1]ACS_16_5YR_B25024_with_ann!Y266","v":11}]
["0600000US3301952580",3301952580,"060","Newport",{"$f":"[1]ACS_16_5YR_B25024_with_ann!D267","v":2816},{"$f":"[1]ACS_16_5YR_B25024_with_ann!E267","v":228},{"$f":"[1]ACS_16_5YR_B25024_with_ann!F267","v":1750},{"$f":"[1]ACS_16_5YR_B25024_with_ann!G267","v":237},{"$f":"[1]ACS_16_5YR_B25024_with_ann!H267","v":27},{"$f":"[1]ACS_16_5YR_B25024_with_ann!I267","v":32},{"$f":"[1]ACS_16_5YR_B25024_with_ann!J267","v":149},{"$f":"[1]ACS_16_5YR_B25024_with_ann!K267","v":86},{"$f":"[1]ACS_16_5YR_B25024_with_ann!L267","v":225},{"$f":"[1]ACS_16_5YR_B25024_with_ann!M267","v":103},{"$f":"[1]ACS_16_5YR_B25024_with_ann!N267","v":102},{"$f":"[1]ACS_16_5YR_B25024_with_ann!O267","v":74},{"$f":"[1]ACS_16_5YR_B25024_with_ann!P267","v":55},{"$f":"[1]ACS_16_5YR_B25024_with_ann!Q267","v":68},{"$f":"[1]ACS_16_5YR_B25024_with_ann!R267","v":155},{"$f":"[1]ACS_16_5YR_B25024_with_ann!S267","v":104},{"$f":"[1]ACS_16_5YR_B25024_with_ann!T267","v":12},{"$f":"[1]ACS_16_5YR_B25024_with_ann!U267","v":21},{"$f":"[1]ACS_16_5YR_B25024_with_ann!V267","v":341},{"$f":"[1]ACS_16_5YR_B25024_with_ann!W267","v":147},{"$f":"[1]ACS_16_5YR_B25024_with_ann!X267","v":0},{"$f":"[1]ACS_16_5YR_B25024_with_ann!Y267","v":16}]
["0600000US3301962340",3301962340,"060","Plainfield",{"$f":"[1]ACS_16_5YR_B25024_with_ann!D268","v":1076},{"$f":"[1]ACS_16_5YR_B25024_with_ann!E268","v":83},{"$f":"[1]ACS_16_5YR_B25024_with_ann!F268","v":950},{"$f":"[1]ACS_16_5YR_B25024_with_ann!G268","v":79},{"$f":"[1]ACS_16_5YR_B25024_with_ann!H268","v":19},{"$f":"[1]ACS_16_5YR_B25024_with_ann!I268","v":13},{"$f":"[1]ACS_16_5YR_B25024_with_ann!J268","v":23},{"$f":"[1]ACS_16_5YR_B25024_with_ann!K268","v":22},{"$f":"[1]ACS_16_5YR_B25024_with_ann!L268","v":16},{"$f":"[1]ACS_16_5YR_B25024_with_ann!M268","v":18},{"$f":"[1]ACS_16_5YR_B25024_with_ann!N268","v":0},{"$f":"[1]ACS_16_5YR_B25024_with_ann!O268","v":11},{"$f":"[1]ACS_16_5YR_B25024_with_ann!P268","v":22},{"$f":"[1]ACS_16_5YR_B25024_with_ann!Q268","v":25},{"$f":"[1]ACS_16_5YR_B25024_with_ann!R268","v":0},{"$f":"[1]ACS_16_5YR_B25024_with_ann!S268","v":11},{"$f":"[1]ACS_16_5YR_B25024_with_ann!T268","v":0},{"$f":"[1]ACS_16_5YR_B25024_with_ann!U268","v":11},{"$f":"[1]ACS_16_5YR_B25024_with_ann!V268","v":46},{"$f":"[1]ACS_16_5YR_B25024_with_ann!W268","v":21},{"$f":"[1]ACS_16_5YR_B25024_with_ann!X268","v":0},{"$f":"[1]ACS_16_5YR_B25024_with_ann!Y268","v":11}]
["0600000US3301972740",3301972740,"060","Springfield",{"$f":"[1]ACS_16_5YR_B25024_with_ann!D269","v":719},{"$f":"[1]ACS_16_5YR_B25024_with_ann!E269","v":93},{"$f":"[1]ACS_16_5YR_B25024_with_ann!F269","v":615},{"$f":"[1]ACS_16_5YR_B25024_with_ann!G269","v":91},{"$f":"[1]ACS_16_5YR_B25024_with_ann!H269","v":3},{"$f":"[1]ACS_16_5YR_B25024_with_ann!I269","v":5},{"$f":"[1]ACS_16_5YR_B25024_with_ann!J269","v":12},{"$f":"[1]ACS_16_5YR_B25024_with_ann!K269","v":14},{"$f":"[1]ACS_16_5YR_B25024_with_ann!L269","v":0},{"$f":"[1]ACS_16_5YR_B25024_with_ann!M269","v":11},{"$f":"[1]ACS_16_5YR_B25024_with_ann!N269","v":0},{"$f":"[1]ACS_16_5YR_B25024_with_ann!O269","v":11},{"$f":"[1]ACS_16_5YR_B25024_with_ann!P269","v":0},{"$f":"[1]ACS_16_5YR_B25024_with_ann!Q269","v":11},{"$f":"[1]ACS_16_5YR_B25024_with_ann!R269","v":0},{"$f":"[1]ACS_16_5YR_B25024_with_ann!S269","v":11},{"$f":"[1]ACS_16_5YR_B25024_with_ann!T269","v":0},{"$f":"[1]ACS_16_5YR_B25024_with_ann!U269","v":11},{"$f":"[1]ACS_16_5YR_B25024_with_ann!V269","v":89},{"$f":"[1]ACS_16_5YR_B25024_with_ann!W269","v":46},{"$f":"[1]ACS_16_5YR_B25024_with_ann!X269","v":0},{"$f":"[1]ACS_16_5YR_B25024_with_ann!Y269","v":11}]
["0600000US3301975060",3301975060,"060","Sunapee",{"$f":"[1]ACS_16_5YR_B25024_with_ann!D270","v":2592},{"$f":"[1]ACS_16_5YR_B25024_with_ann!E270","v":180},{"$f":"[1]ACS_16_5YR_B25024_with_ann!F270","v":2078},{"$f":"[1]ACS_16_5YR_B25024_with_ann!G270","v":197},{"$f":"[1]ACS_16_5YR_B25024_with_ann!H270","v":89},{"$f":"[1]ACS_16_5YR_B25024_with_ann!I270","v":70},{"$f":"[1]ACS_16_5YR_B25024_with_ann!J270","v":174},{"$f":"[1]ACS_16_5YR_B25024_with_ann!K270","v":98},{"$f":"[1]ACS_16_5YR_B25024_with_ann!L270","v":84},{"$f":"[1]ACS_16_5YR_B25024_with_ann!M270","v":73},{"$f":"[1]ACS_16_5YR_B25024_with_ann!N270","v":74},{"$f":"[1]ACS_16_5YR_B25024_with_ann!O270","v":61},{"$f":"[1]ACS_16_5YR_B25024_with_ann!P270","v":18},{"$f":"[1]ACS_16_5YR_B25024_with_ann!Q270","v":29},{"$f":"[1]ACS_16_5YR_B25024_with_ann!R270","v":7},{"$f":"[1]ACS_16_5YR_B25024_with_ann!S270","v":16},{"$f":"[1]ACS_16_5YR_B25024_with_ann!T270","v":33},{"$f":"[1]ACS_16_5YR_B25024_with_ann!U270","v":52},{"$f":"[1]ACS_16_5YR_B25024_with_ann!V270","v":35},{"$f":"[1]ACS_16_5YR_B25024_with_ann!W270","v":49},{"$f":"[1]ACS_16_5YR_B25024_with_ann!X270","v":0},{"$f":"[1]ACS_16_5YR_B25024_with_ann!Y270","v":11}]
["0600000US3301977940",3301977940,"060","Unity",{"$f":"[1]ACS_16_5YR_B25024_with_ann!D271","v":726},{"$f":"[1]ACS_16_5YR_B25024_with_ann!E271","v":60},{"$f":"[1]ACS_16_5YR_B25024_with_ann!F271","v":608},{"$f":"[1]ACS_16_5YR_B25024_with_ann!G271","v":56},{"$f":"[1]ACS_16_5YR_B25024_with_ann!H271","v":2},{"$f":"[1]ACS_16_5YR_B25024_with_ann!I271","v":4},{"$f":"[1]ACS_16_5YR_B25024_with_ann!J271","v":11},{"$f":"[1]ACS_16_5YR_B25024_with_ann!K271","v":14},{"$f":"[1]ACS_16_5YR_B25024_with_ann!L271","v":0},{"$f":"[1]ACS_16_5YR_B25024_with_ann!M271","v":11},{"$f":"[1]ACS_16_5YR_B25024_with_ann!N271","v":0},{"$f":"[1]ACS_16_5YR_B25024_with_ann!O271","v":11},{"$f":"[1]ACS_16_5YR_B25024_with_ann!P271","v":0},{"$f":"[1]ACS_16_5YR_B25024_with_ann!Q271","v":11},{"$f":"[1]ACS_16_5YR_B25024_with_ann!R271","v":0},{"$f":"[1]ACS_16_5YR_B25024_with_ann!S271","v":11},{"$f":"[1]ACS_16_5YR_B25024_with_ann!T271","v":0},{"$f":"[1]ACS_16_5YR_B25024_with_ann!U271","v":11},{"$f":"[1]ACS_16_5YR_B25024_with_ann!V271","v":105},{"$f":"[1]ACS_16_5YR_B25024_with_ann!W271","v":33},{"$f":"[1]ACS_16_5YR_B25024_with_ann!X271","v":0},{"$f":"[1]ACS_16_5YR_B25024_with_ann!Y271","v":11}]
["0600000US3301978980",3301978980,"060","Washington",{"$f":"[1]ACS_16_5YR_B25024_with_ann!D272","v":1160},{"$f":"[1]ACS_16_5YR_B25024_with_ann!E272","v":88},{"$f":"[1]ACS_16_5YR_B25024_with_ann!F272","v":1082},{"$f":"[1]ACS_16_5YR_B25024_with_ann!G272","v":87},{"$f":"[1]ACS_16_5YR_B25024_with_ann!H272","v":0},{"$f":"[1]ACS_16_5YR_B25024_with_ann!I272","v":11},{"$f":"[1]ACS_16_5YR_B25024_with_ann!J272","v":13},{"$f":"[1]ACS_16_5YR_B25024_with_ann!K272","v":15},{"$f":"[1]ACS_16_5YR_B25024_with_ann!L272","v":9},{"$f":"[1]ACS_16_5YR_B25024_with_ann!M272","v":13},{"$f":"[1]ACS_16_5YR_B25024_with_ann!N272","v":0},{"$f":"[1]ACS_16_5YR_B25024_with_ann!O272","v":11},{"$f":"[1]ACS_16_5YR_B25024_with_ann!P272","v":0},{"$f":"[1]ACS_16_5YR_B25024_with_ann!Q272","v":11},{"$f":"[1]ACS_16_5YR_B25024_with_ann!R272","v":0},{"$f":"[1]ACS_16_5YR_B25024_with_ann!S272","v":11},{"$f":"[1]ACS_16_5YR_B25024_with_ann!T272","v":0},{"$f":"[1]ACS_16_5YR_B25024_with_ann!U272","v":11},{"$f":"[1]ACS_16_5YR_B25024_with_ann!V272","v":56},{"$f":"[1]ACS_16_5YR_B25024_with_ann!W272","v":32},{"$f":"[1]ACS_16_5YR_B25024_with_ann!X272","v":0},{"$f":"[1]ACS_16_5YR_B25024_with_ann!Y272","v":11}]
[]
[null,null,null,null,{"$f":"$D$3","v":"Acworth"},null,{"$f":"$D$4","v":"Charlestown"},null,{"$f":"$D$5","v":"Claremont"},null,{"$f":"$D$6","v":"Cornish"},null,{"$f":"$D$7","v":"Croydon"},null,{"$f":"$D$8","v":"Goshen"},null,{"$f":"$D$9","v":"Grantham"},null,{"$f":"$D$10","v":"Langdon"},null,{"$f":"$D$11","v":"Lempster"},null,{"$f":"$D$12","v":"Newport"},null,{"$f":"$D$13","v":"Plainfield"},null,{"$f":"$D$14","v":"Springfield"},null,{"$f":"$D$15","v":"Sunapee"},null,{"$f":"$D$16","v":"Unity"},null,{"$f":"$D$17","v":"Washington"}]
[null,null,null,null,"Estimate","Margin Of Error","Estimate","Margin Of Error","Estimate","Margin Of Error","Estimate","Margin Of Error","Estimate","Margin Of Error","Estimate","Margin Of Error","Estimate","Margin Of Error","Estimate","Margin Of Error","Estimate","Margin Of Error","Estimate","Margin Of Error","Estimate","Margin Of Error","Estimate","Margin Of Error","Estimate","Margin Of Error",null,"Estimate","Margin Of Error"]
[null,null,null,"Estimate Total:",587,53,2354,203,6129,297,837,83,464,75,435,52,1745,211,318,45,694,76,2816,228,1076,83,719,93,2592,180,726,60,1160,88]
[null,null,null,"Estimate Total: 1",560,51,1240,233,3095,311,788,83,419,72,365,48,1443,226,295,45,606,74,1750,237,950,79,615,91,2078,197,608,56,1082,87]
[null,null,null,"Estimate Total: 1",2,4,6,13,101,79,9,8,6,7,2,3,126,107,0,11,8,9,27,32,19,13,3,5,89,70,2,4,0,11]
[null,null,null,"Estimate Total: 2",0,11,109,85,690,179,20,24,1,3,0,11,112,94,11,11,5,6,149,86,23,22,12,14,174,98,11,14,13,15]
[null,null,null,"Estimate Total: 3 or 4",0,11,152,91,744,196,0,11,0,11,13,14,64,82,0,11,0,11,225,103,16,18,0,11,84,73,0,11,9,13]
[null,null,null,"Estimate Total: 5 to 9",0,11,47,58,579,163,0,11,0,11,12,9,0,11,0,11,0,11,102,74,0,11,0,11,74,61,0,11,0,11]
[null,null,null,"Estimate Total: 10 to 19",0,11,16,26,85,79,0,11,0,11,6,9,0,11,0,11,0,11,55,68,22,25,0,11,18,29,0,11,0,11]
[null,null,null,"Estimate Total: 20 to 49",2,3,46,37,218,103,0,11,0,11,0,11,0,11,0,11,0,11,155,104,0,11,0,11,7,16,0,11,0,11]
[null,null,null,"Estimate Total: 50 or more",0,11,0,16,252,95,0,11,0,11,0,11,0,11,0,11,3,4,12,21,0,11,0,11,33,52,0,11,0,11]
[null,null,null,"Estimate Total: Mobile home",23,16,738,195,365,138,20,15,38,23,37,19,0,11,12,10,72,35,341,147,46,21,89,46,35,49,105,33,56,32]
[null,null,null,"Estimate Total: Boat",0,11,0,16,0,18,0,11,0,11,0,11,0,11,0,11,0,11,0,16,0,11,0,11,0,11,0,11,0,11]

{"sheet":"SData_B25032","index":88,"n_rows":43,"n_cols":50,"rows_kept":43,"cut":false,"hidden":true,"merged":[]}
["GEO_ID","GEO_ID2","SUMLEVEL","GEO_NAME","B25032_1_EST","B25032_1_MOE","B25032_2_EST","B25032_2_MOE","B25032_3_EST","B25032_3_MOE","B25032_4_EST","B25032_4_MOE","B25032_5_EST","B25032_5_MOE","B25032_6_EST","B25032_6_MOE","B25032_7_EST","B25032_7_MOE","B25032_8_EST","B25032_8_MOE","B25032_9_EST","B25032_9_MOE","B25032_10_EST","B25032_10_MOE","B25032_11_EST","B25032_11_MOE","B25032_12_EST","B25032_12_MOE","B25032_13_EST","B25032_13_MOE","B25032_14_EST","B25032_14_MOE","B25032_15_EST","B25032_15_MOE","B25032_16_EST","B25032_16_MOE","B25032_17_EST","B25032_17_MOE","B25032_18_EST","B25032_18_MOE","B25032_19_EST","B25032_19_MOE","B25032_20_EST","B25032_20_MOE","B25032_21_EST","B25032_21_MOE","B25032_22_EST","B25032_22_MOE","B25032_23_EST","B25032_23_MOE"]
["Geography Identifier","Geography Identifier","Geographic Summary Level","Geography",{"$f":"[1]ACS_16_5YR_B25032_with_ann!D$2","v":"Estimate Total:"},{"$f":"[1]ACS_16_5YR_B25032_with_ann!E$2","v":"Margin of Error Total:"},{"$f":"[1]ACS_16_5YR_B25032_with_ann!F$2","v":"Estimate Total: Owner-occupied housing units:"},{"$f":"[1]ACS_16_5YR_B25032_with_ann!G$2","v":"Margin of Error Total: Owner-occupied housing units:"},{"$f":"[1]ACS_16_5YR_B25032_with_ann!H$2","v":"Estimate Total: Owner-occupied housing units: 1"},{"$f":"[1]ACS_16_5YR_B25032_with_ann!I$2","v":"Margin of Error Total: Owner-occupied housing units: 1"},{"$f":"[1]ACS_16_5YR_B25032_with_ann!J$2","v":"Estimate Total: Owner-occupied housing units: 1"},{"$f":"[1]ACS_16_5YR_B25032_with_ann!K$2","v":"Margin of Error Total: Owner-occupied housing units: 1"},{"$f":"[1]ACS_16_5YR_B25032_with_ann!L$2","v":"Estimate Total: Owner-occupied housing units: 2"},{"$f":"[1]ACS_16_5YR_B25032_with_ann!M$2","v":"Margin of Error Total: Owner-occupied housing units: 2"},{"$f":"[1]ACS_16_5YR_B25032_with_ann!N$2","v":"Estimate Total: Owner-occupied housing units: 3 or 4"},{"$f":"[1]ACS_16_5YR_B25032_with_ann!O$2","v":"Margin of Error Total: Owner-occupied housing units: 3 or 4"},{"$f":"[1]ACS_16_5YR_B25032_with_ann!P$2","v":"Estimate Total: Owner-occupied housing units: 5 to 9"},{"$f":"[1]ACS_16_5YR_B25032_with_ann!Q$2","v":"Margin of Error Total: Owner-occupied housing units: 5 to 9"},{"$f":"[1]ACS_16_5YR_B25032_with_ann!R$2","v":"Estimate Total: Owner-occupied housing units: 10 to 19"},{"$f":"[1]ACS_16_5YR_B25032_with_ann!S$2","v":"Margin of Error Total: Owner-occupied housing units: 10 to 19"},{"$f":"[1]ACS_16_5YR_B25032_with_ann!T$2","v":"Estimate Total: Owner-occupied housing units: 20 to 49"},{"$f":"[1]ACS_16_5YR_B25032_with_ann!U$2","v":"Margin of Error Total: Owner-occupied housing units: 20 to 49"},{"$f":"[1]ACS_16_5YR_B25032_with_ann!V$2","v":"Estimate Total: Owner-occupied housing units: 50 or more"},{"$f":"[1]ACS_16_5YR_B25032_with_ann!W$2","v":"Margin of Error Total: Owner-occupied housing units: 50 or more"},{"$f":"[1]ACS_16_5YR_B25032_with_ann!X$2","v":"Estimate Total: Owner-occupied housing units: Mobile home"},{"$f":"[1]ACS_16_5YR_B25032_with_ann!Y$2","v":"Margin of Error Total: Owner-occupied housing units: Mobile home"},{"$f":"[1]ACS_16_5YR_B25032_with_ann!Z$2","v":"Estimate Total: Owner-occupied housing units: Boat"},{"$f":"[1]ACS_16_5YR_B25032_with_ann!AA$2","v":"Margin of Error Total: Owner-occupied housing units: Boat"},{"$f":"[1]ACS_16_5YR_B25032_with_ann!AB$2","v":"Estimate Total: Renter-occupied housing units:"},{"$f":"[1]ACS_16_5YR_B25032_with_ann!AC$2","v":"Margin of Error Total: Renter-occupied housing units:"},{"$f":"[1]ACS_16_5YR_B25032_with_ann!AD$2","v":"Estimate Total: Renter-occupied housing units: 1"},{"$f":"[1]ACS_16_5YR_B25032_with_ann!AE$2","v":"Margin of Error Total: Renter-occupied housing units: 1"},{"$f":"[1]ACS_16_5YR_B25032_with_ann!AF$2","v":"Estimate Total: Renter-occupied housing units: 1"},{"$f":"[1]ACS_16_5YR_B25032_with_ann!AG$2","v":"Margin of Error Total: Renter-occupied housing units: 1"},{"$f":"[1]ACS_16_5YR_B25032_with_ann!AH$2","v":"Estimate Total: Renter-occupied housing units: 2"},{"$f":"[1]ACS_16_5YR_B25032_with_ann!AI$2","v":"Margin of Error Total: Renter-occupied housing units: 2"},{"$f":"[1]ACS_16_5YR_B25032_with_ann!AJ$2","v":"Estimate Total: Renter-occupied housing units: 3 or 4"},{"$f":"[1]ACS_16_5YR_B25032_with_ann!AK$2","v":"Margin of Error Total: Renter-occupied housing units: 3 or 4"},{"$f":"[1]ACS_16_5YR_B25032_with_ann!AL$2","v":"Estimate Total: Renter-occupied housing units: 5 to 9"},{"$f":"[1]ACS_16_5YR_B25032_with_ann!AM$2","v":"Margin of Error Total: Renter-occupied housing units: 5 to 9"},{"$f":"[1]ACS_16_5YR_B25032_with_ann!AN$2","v":"Estimate Total: Renter-occupied housing units: 10 to 19"},{"$f":"[1]ACS_16_5YR_B25032_with_ann!AO$2","v":"Margin of Error Total: Renter-occupied housing units: 10 to 19"},{"$f":"[1]ACS_16_5YR_B25032_with_ann!AP$2","v":"Estimate Total: Renter-occupied housing units: 20 to 49"},{"$f":"[1]ACS_16_5YR_B25032_with_ann!AQ$2","v":"Margin of Error Total: Renter-occupied housing units: 20 to 49"},{"$f":"[1]ACS_16_5YR_B25032_with_ann!AR$2","v":"Estimate Total: Renter-occupied housing units: 50 or more"},{"$f":"[1]ACS_16_5YR_B25032_with_ann!AS$2","v":"Margin of Error Total: Renter-occupied housing units: 50 or more"},{"$f":"[1]ACS_16_5YR_B25032_with_ann!AT$2","v":"Estimate Total: Renter-occupied housing units: Mobile home"},{"$f":"[1]ACS_16_5YR_B25032_with_ann!AU$2","v":"Margin of Error Total: Renter-occupied housing units: Mobile home"},{"$f":"[1]ACS_16_5YR_B25032_with_ann!AV$2","v":"Estimate Total: Renter-occupied housing units: Boat"},{"$f":"[1]ACS_16_5YR_B25032_with_ann!AW$2","v":"Margin of Error Total: Renter-occupied housing units: Boat"}]
["0600000US3301900259",3301900259,"060","Acworth",{"$f":"[1]ACS_16_5YR_B25032_with_ann!D258","v":370},{"$f":"[1]ACS_16_5YR_B25032_with_ann!E258","v":51},{"$f":"[1]ACS_16_5YR_B25032_with_ann!F258","v":340},{"$f":"[1]ACS_16_5YR_B25032_with_ann!G258","v":50},{"$f":"[1]ACS_16_5YR_B25032_with_ann!H258","v":324},{"$f":"[1]ACS_16_5YR_B25032_with_ann!I258","v":48},{"$f":"[1]ACS_16_5YR_B25032_with_ann!J258","v":2},{"$f":"[1]ACS_16_5YR_B25032_with_ann!K258","v":4},{"$f":"[1]ACS_16_5YR_B25032_with_ann!L258","v":0},{"$f":"[1]ACS_16_5YR_B25032_with_ann!M258","v":11},{"$f":"[1]ACS_16_5YR_B25032_with_ann!N258","v":0},{"$f":"[1]ACS_16_5YR_B25032_with_ann!O258","v":11},{"$f":"[1]ACS_16_5YR_B25032_with_ann!P258","v":0},{"$f":"[1]ACS_16_5YR_B25032_with_ann!Q258","v":11},{"$f":"[1]ACS_16_5YR_B25032_with_ann!R258","v":0},{"$f":"[1]ACS_16_5YR_B25032_with_ann!S258","v":11},{"$f":"[1]ACS_16_5YR_B25032_with_ann!T258","v":0},{"$f":"[1]ACS_16_5YR_B25032_with_ann!U258","v":11},{"$f":"[1]ACS_16_5YR_B25032_with_ann!V258","v":0},{"$f":"[1]ACS_16_5YR_B25032_with_ann!W258","v":11},{"$f":"[1]ACS_16_5YR_B25032_with_ann!X258","v":14},{"$f":"[1]ACS_16_5YR_B25032_with_ann!Y258","v":12},{"$f":"[1]ACS_16_5YR_B25032_with_ann!Z258","v":0},{"$f":"[1]ACS_16_5YR_B25032_with_ann!AA258","v":11},{"$f":"[1]ACS_16_5YR_B25032_with_ann!AB258","v":30},{"$f":"[1]ACS_16_5YR_B25032_with_ann!AC258","v":16},{"$f":"[1]ACS_16_5YR_B25032_with_ann!AD258","v":28},{"$f":"[1]ACS_16_5YR_B25032_with_ann!AE258","v":16},{"$f":"[1]ACS_16_5YR_B25032_with_ann!AF258","v":0},{"$f":"[1]ACS_16_5YR_B25032_with_ann!AG258","v":11},{"$f":"[1]ACS_16_5YR_B25032_with_ann!AH258","v":0},{"$f":"[1]ACS_16_5YR_B25032_with_ann!AI258","v":11},{"$f":"[1]ACS_16_5YR_B25032_with_ann!AJ258","v":0},{"$f":"[1]ACS_16_5YR_B25032_with_ann!AK258","v":11},{"$f":"[1]ACS_16_5YR_B25032_with_ann!AL258","v":0},{"$f":"[1]ACS_16_5YR_B25032_with_ann!AM258","v":11},{"$f":"[1]ACS_16_5YR_B25032_with_ann!AN258","v":0},{"$f":"[1]ACS_16_5YR_B25032_with_ann!AO258","v":11},{"$f":"[1]ACS_16_5YR_B25032_with_ann!AP258","v":2},{"$f":"[1]ACS_16_5YR_B25032_with_ann!AQ258","v":3},{"$f":"[1]ACS_16_5YR_B25032_with_ann!AR258","v":0},{"$f":"[1]ACS_16_5YR_B25032_with_ann!AS258","v":11},{"$f":"[1]ACS_16_5YR_B25032_with_ann!AT258","v":0},{"$f":"[1]ACS_16_5YR_B25032_with_ann!AU258","v":11},{"$f":"[1]ACS_16_5YR_B25032_with_ann!AV258","v":0},{"$f":"[1]ACS_16_5YR_B25032_with_ann!AW258","v":11}]
["0600000US3301911380",3301911380,"060","Charlestown",{"$f":"[1]ACS_16_5YR_B25032_with_ann!D259","v":2086},{"$f":"[1]ACS_16_5YR_B25032_with_ann!E259","v":184},{"$f":"[1]ACS_16_5YR_B25032_with_ann!F259","v":1584},{"$f":"[1]ACS_16_5YR_B25032_with_ann!G259","v":209},{"$f":"[1]ACS_16_5YR_B25032_with_ann!H259","v":958},{"$f":"[1]ACS_16_5YR_B25032_with_ann!I259","v":198},{"$f":"[1]ACS_16_5YR_B25032_with_ann!J259","v":6},{"$f":"[1]ACS_16_5YR_B25032_with_ann!K259","v":13},{"$f":"[1]ACS_16_5YR_B25032_with_ann!L259","v":56},{"$f":"[1]ACS_16_5YR_B25032_with_ann!M259","v":56},{"$f":"[1]ACS_16_5YR_B25032_with_ann!N259","v":17},{"$f":"[1]ACS_16_5YR_B25032_with_ann!O259","v":27},{"$f":"[1]ACS_16_5YR_B25032_with_ann!P259","v":0},{"$f":"[1]ACS_16_5YR_B25032_with_ann!Q259","v":16},{"$f":"[1]ACS_16_5YR_B25032_with_ann!R259","v":0},{"$f":"[1]ACS_16_5YR_B25032_with_ann!S259","v":16},{"$f":"[1]ACS_16_5YR_B25032_with_ann!T259","v":0},{"$f":"[1]ACS_16_5YR_B25032_with_ann!U259","v":16},{"$f":"[1]ACS_16_5YR_B25032_with_ann!V259","v":0},{"$f":"[1]ACS_16_5YR_B25032_with_ann!W259","v":16},{"$f":"[1]ACS_16_5YR_B25032_with_ann!X259","v":547},{"$f":"[1]ACS_16_5YR_B25032_with_ann!Y259","v":175},{"$f":"[1]ACS_16_5YR_B25032_with_ann!Z259","v":0},{"$f":"[1]ACS_16_5YR_B25032_with_ann!AA259","v":16},{"$f":"[1]ACS_16_5YR_B25032_with_ann!AB259","v":502},{"$f":"[1]ACS_16_5YR_B25032_with_ann!AC259","v":134},{"$f":"[1]ACS_16_5YR_B25032_with_ann!AD259","v":147},{"$f":"[1]ACS_16_5YR_B25032_with_ann!AE259","v":78},{"$f":"[1]ACS_16_5YR_B25032_with_ann!AF259","v":0},{"$f":"[1]ACS_16_5YR_B25032_with_ann!AG259","v":16},{"$f":"[1]ACS_16_5YR_B25032_with_ann!AH259","v":53},{"$f":"[1]ACS_16_5YR_B25032_with_ann!AI259","v":67},{"$f":"[1]ACS_16_5YR_B25032_with_ann!AJ259","v":135},{"$f":"[1]ACS_16_5YR_B25032_with_ann!AK259","v":96},{"$f":"[1]ACS_16_5YR_B25032_with_ann!AL259","v":47},{"$f":"[1]ACS_16_5YR_B25032_with_ann!AM259","v":58},{"$f":"[1]ACS_16_5YR_B25032_with_ann!AN259","v":16},{"$f":"[1]ACS_16_5YR_B25032_with_ann!AO259","v":26},{"$f":"[1]ACS_16_5YR_B25032_with_ann!AP259","v":46},{"$f":"[1]ACS_16_5YR_B25032_with_ann!AQ259","v":37},{"$f":"[1]ACS_16_5YR_B25032_with_ann!AR259","v":0},{"$f":"[1]ACS_16_5YR_B25032_with_ann!AS259","v":16},{"$f":"[1]ACS_16_5YR_B25032_with_ann!AT259","v":58},{"$f":"[1]ACS_16_5YR_B25032_with_ann!AU259","v":52},{"$f":"[1]ACS_16_5YR_B25032_with_ann!AV259","v":0},{"$f":"[1]ACS_16_5YR_B25032_with_ann!AW259","v":16}]
["0600000US3301912900",3301912900,"060","Claremont",{"$f":"[1]ACS_16_5YR_B25032_with_ann!D260","v":5231},{"$f":"[1]ACS_16_5YR_B25032_with_ann!E260","v":284},{"$f":"[1]ACS_16_5YR_B25032_with_ann!F260","v":2921},{"$f":"[1]ACS_16_5YR_B25032_with_ann!G260","v":257},{"$f":"[1]ACS_16_5YR_B25032_with_ann!H260","v":2458},{"$f":"[1]ACS_16_5YR_B25032_with_ann!I260","v":251},{"$f":"[1]ACS_16_5YR_B25032_with_ann!J260","v":59},{"$f":"[1]ACS_16_5YR_B25032_with_ann!K260","v":56},{"$f":"[1]ACS_16_5YR_B25032_with_ann!L260","v":103},{"$f":"[1]ACS_16_5YR_B25032_with_ann!M260","v":50},{"$f":"[1]ACS_16_5YR_B25032_with_ann!N260","v":83},{"$f":"[1]ACS_16_5YR_B25032_with_ann!O260","v":59},{"$f":"[1]ACS_16_5YR_B25032_with_ann!P260","v":0},{"$f":"[1]ACS_16_5YR_B25032_with_ann!Q260","v":18},{"$f":"[1]ACS_16_5YR_B25032_with_ann!R260","v":0},{"$f":"[1]ACS_16_5YR_B25032_with_ann!S260","v":18},{"$f":"[1]ACS_16_5YR_B25032_with_ann!T260","v":0},{"$f":"[1]ACS_16_5YR_B25032_with_ann!U260","v":18},{"$f":"[1]ACS_16_5YR_B25032_with_ann!V260","v":0},{"$f":"[1]ACS_16_5YR_B25032_with_ann!W260","v":18},{"$f":"[1]ACS_16_5YR_B25032_with_ann!X260","v":218},{"$f":"[1]ACS_16_5YR_B25032_with_ann!Y260","v":78},{"$f":"[1]ACS_16_5YR_B25032_with_ann!Z260","v":0},{"$f":"[1]ACS_16_5YR_B25032_with_ann!AA260","v":18},{"$f":"[1]ACS_16_5YR_B25032_with_ann!AB260","v":2310},{"$f":"[1]ACS_16_5YR_B25032_with_ann!AC260","v":288},{"$f":"[1]ACS_16_5YR_B25032_with_ann!AD260","v":294},{"$f":"[1]ACS_16_5YR_B25032_with_ann!AE260","v":127},{"$f":"[1]ACS_16_5YR_B25032_with_ann!AF260","v":0},{"$f":"[1]ACS_16_5YR_B25032_with_ann!AG260","v":18},{"$f":"[1]ACS_16_5YR_B25032_with_ann!AH260","v":424},{"$f":"[1]ACS_16_5YR_B25032_with_ann!AI260","v":147},{"$f":"[1]ACS_16_5YR_B25032_with_ann!AJ260","v":578},{"$f":"[1]ACS_16_5YR_B25032_with_ann!AK260","v":178},{"$f":"[1]ACS_16_5YR_B25032_with_ann!AL260","v":368},{"$f":"[1]ACS_16_5YR_B25032_with_ann!AM260","v":115},{"$f":"[1]ACS_16_5YR_B25032_with_ann!AN260","v":85},{"$f":"[1]ACS_16_5YR_B25032_with_ann!AO260","v":79},{"$f":"[1]ACS_16_5YR_B25032_with_ann!AP260","v":187},{"$f":"[1]ACS_16_5YR_B25032_with_ann!AQ260","v":83},{"$f":"[1]ACS_16_5YR_B25032_with_ann!AR260","v":252},{"$f":"[1]ACS_16_5YR_B25032_with_ann!AS260","v":95},{"$f":"[1]ACS_16_5YR_B25032_with_ann!AT260","v":122},{"$f":"[1]ACS_16_5YR_B25032_with_ann!AU260","v":110},{"$f":"[1]ACS_16_5YR_B25032_with_ann!AV260","v":0},{"$f":"[1]ACS_16_5YR_B25032_with_ann!AW260","v":18}]
["0600000US3301915060",3301915060,"060","Cornish",{"$f":"[1]ACS_16_5YR_B25032_with_ann!D261","v":741},{"$f":"[1]ACS_16_5YR_B25032_with_ann!E261","v":81},{"$f":"[1]ACS_16_5YR_B25032_with_ann!F261","v":686},{"$f":"[1]ACS_16_5YR_B25032_with_ann!G261","v":79},{"$f":"[1]ACS_16_5YR_B25032_with_ann!H261","v":664},{"$f":"[1]ACS_16_5YR_B25032_with_ann!I261","v":77},{"$f":"[1]ACS_16_5YR_B25032_with_ann!J261","v":6},{"$f":"[1]ACS_16_5YR_B25032_with_ann!K261","v":6},{"$f":"[1]ACS_16_5YR_B25032_with_ann!L261","v":0},{"$f":"[1]ACS_16_5YR_B25032_with_ann!M261","v":11},{"$f":"[1]ACS_16_5YR_B25032_with_ann!N261","v":0},{"$f":"[1]ACS_16_5YR_B25032_with_ann!O261","v":11},{"$f":"[1]ACS_16_5YR_B25032_with_ann!P261","v":0},{"$f":"[1]ACS_16_5YR_B25032_with_ann!Q261","v":11},{"$f":"[1]ACS_16_5YR_B25032_with_ann!R261","v":0},{"$f":"[1]ACS_16_5YR_B25032_with_ann!S261","v":11},{"$f":"[1]ACS_16_5YR_B25032_with_ann!T261","v":0},{"$f":"[1]ACS_16_5YR_B25032_with_ann!U261","v":11},{"$f":"[1]ACS_16_5YR_B25032_with_ann!V261","v":0},{"$f":"[1]ACS_16_5YR_B25032_with_ann!W261","v":11},{"$f":"[1]ACS_16_5YR_B25032_with_ann!X261","v":16},{"$f":"[1]ACS_16_5YR_B25032_with_ann!Y261","v":13},{"$f":"[1]ACS_16_5YR_B25032_with_ann!Z261","v":0},{"$f":"[1]ACS_16_5YR_B25032_with_ann!AA261","v":11},{"$f":"[1]ACS_16_5YR_B25032_with_ann!AB261","v":55},{"$f":"[1]ACS_16_5YR_B25032_with_ann!AC261","v":26},{"$f":"[1]ACS_16_5YR_B25032_with_ann!AD261","v":38},{"$f":"[1]ACS_16_5YR_B25032_with_ann!AE261","v":19},{"$f":"[1]ACS_16_5YR_B25032_with_ann!AF261","v":3},{"$f":"[1]ACS_16_5YR_B25032_with_ann!AG261","v":4},{"$f":"[1]ACS_16_5YR_B25032_with_ann!AH261","v":10},{"$f":"[1]ACS_16_5YR_B25032_with_ann!AI261","v":17},{"$f":"[1]ACS_16_5YR_B25032_with_ann!AJ261","v":0},{"$f":"[1]ACS_16_5YR_B25032_with_ann!AK261","v":11},{"$f":"[1]ACS_16_5YR_B25032_with_ann!AL261","v":0},{"$f":"[1]ACS_16_5YR_B25032_with_ann!AM261","v":11},{"$f":"[1]ACS_16_5YR_B25032_with_ann!AN261","v":0},{"$f":"[1]ACS_16_5YR_B25032_with_ann!AO261","v":11},{"$f":"[1]ACS_16_5YR_B25032_with_ann!AP261","v":0},{"$f":"[1]ACS_16_5YR_B25032_with_ann!AQ261","v":11},{"$f":"[1]ACS_16_5YR_B25032_with_ann!AR261","v":0},{"$f":"[1]ACS_16_5YR_B25032_with_ann!AS261","v":11},{"$f":"[1]ACS_16_5YR_B25032_with_ann!AT261","v":4},{"$f":"[1]ACS_16_5YR_B25032_with_ann!AU261","v":6},{"$f":"[1]ACS_16_5YR_B25032_with_ann!AV261","v":0},{"$f":"[1]ACS_16_5YR_B25032_with_ann!AW261","v":11}]
["0600000US3301916340",3301916340,"060","Croydon",{"$f":"[1]ACS_16_5YR_B25032_with_ann!D262","v":293},{"$f":"[1]ACS_16_5YR_B25032_with_ann!E262","v":56},{"$f":"[1]ACS_16_5YR_B25032_with_ann!F262","v":257},{"$f":"[1]ACS_16_5YR_B25032_with_ann!G262","v":53},{"$f":"[1]ACS_16_5YR_B25032_with_ann!H262","v":225},{"$f":"[1]ACS_16_5YR_B25032_with_ann!I262","v":49},{"$f":"[1]ACS_16_5YR_B25032_with_ann!J262","v":4},{"$f":"[1]ACS_16_5YR_B25032_with_ann!K262","v":5},{"$f":"[1]ACS_16_5YR_B25032_with_ann!L262","v":1},{"$f":"[1]ACS_16_5YR_B25032_with_ann!M262","v":3},{"$f":"[1]ACS_16_5YR_B25032_with_ann!N262","v":0},{"$f":"[1]ACS_16_5YR_B25032_with_ann!O262","v":11},{"$f":"[1]ACS_16_5YR_B25032_with_ann!P262","v":0},{"$f":"[1]ACS_16_5YR_B25032_with_ann!Q262","v":11},{"$f":"[1]ACS_16_5YR_B25032_with_ann!R262","v":0},{"$f":"[1]ACS_16_5YR_B25032_with_ann!S262","v":11},{"$f":"[1]ACS_16_5YR_B25032_with_ann!T262","v":0},{"$f":"[1]ACS_16_5YR_B25032_with_ann!U262","v":11},{"$f":"[1]ACS_16_5YR_B25032_with_ann!V262","v":0},{"$f":"[1]ACS_16_5YR_B25032_with_ann!W262","v":11},{"$f":"[1]ACS_16_5YR_B25032_with_ann!X262","v":27},{"$f":"[1]ACS_16_5YR_B25032_with_ann!Y262","v":21},{"$f":"[1]ACS_16_5YR_B25032_with_ann!Z262","v":0},{"$f":"[1]ACS_16_5YR_B25032_with_ann!AA262","v":11},{"$f":"[1]ACS_16_5YR_B25032_with_ann!AB262","v":36},{"$f":"[1]ACS_16_5YR_B25032_with_ann!AC262","v":22},{"$f":"[1]ACS_16_5YR_B25032_with_ann!AD262","v":29},{"$f":"[1]ACS_16_5YR_B25032_with_ann!AE262","v":19},{"$f":"[1]ACS_16_5YR_B25032_with_ann!AF262","v":2},{"$f":"[1]ACS_16_5YR_B25032_with_ann!AG262","v":5},{"$f":"[1]ACS_16_5YR_B25032_with_ann!AH262","v":0},{"$f":"[1]ACS_16_5YR_B25032_with_ann!AI262","v":11},{"$f":"[1]ACS_16_5YR_B25032_with_ann!AJ262","v":0},{"$f":"[1]ACS_16_5YR_B25032_with_ann!AK262","v":11},{"$f":"[1]ACS_16_5YR_B25032_with_ann!AL262","v":0},{"$f":"[1]ACS_16_5YR_B25032_with_ann!AM262","v":11},{"$f":"[1]ACS_16_5YR_B25032_with_ann!AN262","v":0},{"$f":"[1]ACS_16_5YR_B25032_with_ann!AO262","v":11},{"$f":"[1]ACS_16_5YR_B25032_with_ann!AP262","v":0},{"$f":"[1]ACS_16_5YR_B25032_with_ann!AQ262","v":11},{"$f":"[1]ACS_16_5YR_B25032_with_ann!AR262","v":0},{"$f":"[1]ACS_16_5YR_B25032_with_ann!AS262","v":11},{"$f":"[1]ACS_16_5YR_B25032_with_ann!AT262","v":5},{"$f":"[1]ACS_16_5YR_B25032_with_ann!AU262","v":10},{"$f":"[1]ACS_16_5YR_B25032_with_ann!AV262","v":0},{"$f":"[1]ACS_16_5YR_B25032_with_ann!AW262","v":11}]
["0600000US3301930500",3301930500,"060","Goshen",{"$f":"[1]ACS_16_5YR_B25032_with_ann!D263","v":277},{"$f":"[1]ACS_16_5YR_B25032_with_ann!E263","v":39},{"$f":"[1]ACS_16_5YR_B25032_with_ann!F263","v":223},{"$f":"[1]ACS_16_5YR_B25032_with_ann!G263","v":35},{"$f":"[1]ACS_16_5YR_B25032_with_ann!H263","v":198},{"$f":"[1]ACS_16_5YR_B25032_with_ann!I263","v":37},{"$f":"[1]ACS_16_5YR_B25032_with_ann!J263","v":2},{"$f":"[1]ACS_16_5YR_B25032_with_ann!K263","v":3},{"$f":"[1]ACS_16_5YR_B25032_with_ann!L263","v":0},{"$f":"[1]ACS_16_5YR_B25032_with_ann!M263","v":11},{"$f":"[1]ACS_16_5YR_B25032_with_ann!N263","v":0},{"$f":"[1]ACS_16_5YR_B25032_with_ann!O263","v":11},{"$f":"[1]ACS_16_5YR_B25032_with_ann!P263","v":0},{"$f":"[1]ACS_16_5YR_B25032_with_ann!Q263","v":11},{"$f":"[1]ACS_16_5YR_B25032_with_ann!R263","v":0},{"$f":"[1]ACS_16_5YR_B25032_with_ann!S263","v":11},{"$f":"[1]ACS_16_5YR_B25032_with_ann!T263","v":0},{"$f":"[1]ACS_16_5YR_B25032_with_ann!U263","v":11},{"$f":"[1]ACS_16_5YR_B25032_with_ann!V263","v":0},{"$f":"[1]ACS_16_5YR_B25032_with_ann!W263","v":11},{"$f":"[1]ACS_16_5YR_B25032_with_ann!X263","v":23},{"$f":"[1]ACS_16_5YR_B25032_with_ann!Y263","v":17},{"$f":"[1]ACS_16_5YR_B25032_with_ann!Z263","v":0},{"$f":"[1]ACS_16_5YR_B25032_with_ann!AA263","v":11},{"$f":"[1]ACS_16_5YR_B25032_with_ann!AB263","v":54},{"$f":"[1]ACS_16_5YR_B25032_with_ann!AC263","v":23},{"$f":"[1]ACS_16_5YR_B25032_with_ann!AD263","v":29},{"$f":"[1]ACS_16_5YR_B25032_with_ann!AE263","v":19},{"$f":"[1]ACS_16_5YR_B25032_with_ann!AF263","v":0},{"$f":"[1]ACS_16_5YR_B25032_with_ann!AG263","v":11},{"$f":"[1]ACS_16_5YR_B25032_with_ann!AH263","v":0},{"$f":"[1]ACS_16_5YR_B25032_with_ann!AI263","v":11},{"$f":"[1]ACS_16_5YR_B25032_with_ann!AJ263","v":6},{"$f":"[1]ACS_16_5YR_B25032_with_ann!AK263","v":9},{"$f":"[1]ACS_16_5YR_B25032_with_ann!AL263","v":7},{"$f":"[1]ACS_16_5YR_B25032_with_ann!AM263","v":10},{"$f":"[1]ACS_16_5YR_B25032_with_ann!AN263","v":6},{"$f":"[1]ACS_16_5YR_B25032_with_ann!AO263","v":9},{"$f":"[1]ACS_16_5YR_B25032_with_ann!AP263","v":0},{"$f":"[1]ACS_16_5YR_B25032_with_ann!AQ263","v":11},{"$f":"[1]ACS_16_5YR_B25032_with_ann!AR263","v":0},{"$f":"[1]ACS_16_5YR_B25032_with_ann!AS263","v":11},{"$f":"[1]ACS_16_5YR_B25032_with_ann!AT263","v":6},{"$f":"[1]ACS_16_5YR_B25032_with_ann!AU263","v":4},{"$f":"[1]ACS_16_5YR_B25032_with_ann!AV263","v":0},{"$f":"[1]ACS_16_5YR_B25032_with_ann!AW263","v":11}]
["0600000US3301931220",3301931220,"060","Grantham",{"$f":"[1]ACS_16_5YR_B25032_with_ann!D264","v":1222},{"$f":"[1]ACS_16_5YR_B25032_with_ann!E264","v":142},{"$f":"[1]ACS_16_5YR_B25032_with_ann!F264","v":1082},{"$f":"[1]ACS_16_5YR_B25032_with_ann!G264","v":164},{"$f":"[1]ACS_16_5YR_B25032_with_ann!H264","v":1050},{"$f":"[1]ACS_16_5YR_B25032_with_ann!I264","v":175},{"$f":"[1]ACS_16_5YR_B25032_with_ann!J264","v":0},{"$f":"[1]ACS_16_5YR_B25032_with_ann!K264","v":11},{"$f":"[1]ACS_16_5YR_B25032_with_ann!L264","v":32},{"$f":"[1]ACS_16_5YR_B25032_with_ann!M264","v":46},{"$f":"[1]ACS_16_5YR_B25032_with_ann!N264","v":0},{"$f":"[1]ACS_16_5YR_B25032_with_ann!O264","v":11},{"$f":"[1]ACS_16_5YR_B25032_with_ann!P264","v":0},{"$f":"[1]ACS_16_5YR_B25032_with_ann!Q264","v":11},{"$f":"[1]ACS_16_5YR_B25032_with_ann!R264","v":0},{"$f":"[1]ACS_16_5YR_B25032_with_ann!S264","v":11},{"$f":"[1]ACS_16_5YR_B25032_with_ann!T264","v":0},{"$f":"[1]ACS_16_5YR_B25032_with_ann!U264","v":11},{"$f":"[1]ACS_16_5YR_B25032_with_ann!V264","v":0},{"$f":"[1]ACS_16_5YR_B25032_with_ann!W264","v":11},{"$f":"[1]ACS_16_5YR_B25032_with_ann!X264","v":0},{"$f":"[1]ACS_16_5YR_B25032_with_ann!Y264","v":11},{"$f":"[1]ACS_16_5YR_B25032_with_ann!Z264","v":0},{"$f":"[1]ACS_16_5YR_B25032_with_ann!AA264","v":11},{"$f":"[1]ACS_16_5YR_B25032_with_ann!AB264","v":140},{"$f":"[1]ACS_16_5YR_B25032_with_ann!AC264","v":79},{"$f":"[1]ACS_16_5YR_B25032_with_ann!AD264","v":79},{"$f":"[1]ACS_16_5YR_B25032_with_ann!AE264","v":60},{"$f":"[1]ACS_16_5YR_B25032_with_ann!AF264","v":46},{"$f":"[1]ACS_16_5YR_B25032_with_ann!AG264","v":67},{"$f":"[1]ACS_16_5YR_B25032_with_ann!AH264","v":0},{"$f":"[1]ACS_16_5YR_B25032_with_ann!AI264","v":11},{"$f":"[1]ACS_16_5YR_B25032_with_ann!AJ264","v":15},{"$f":"[1]ACS_16_5YR_B25032_with_ann!AK264","v":23},{"$f":"[1]ACS_16_5YR_B25032_with_ann!AL264","v":0},{"$f":"[1]ACS_16_5YR_B25032_with_ann!AM264","v":11},{"$f":"[1]ACS_16_5YR_B25032_with_ann!AN264","v":0},{"$f":"[1]ACS_16_5YR_B25032_with_ann!AO264","v":11},{"$f":"[1]ACS_16_5YR_B25032_with_ann!AP264","v":0},{"$f":"[1]ACS_16_5YR_B25032_with_ann!AQ264","v":11},{"$f":"[1]ACS_16_5YR_B25032_with_ann!AR264","v":0},{"$f":"[1]ACS_16_5YR_B25032_with_ann!AS264","v":11},{"$f":"[1]ACS_16_5YR_B25032_with_ann!AT264","v":0},{"$f":"[1]ACS_16_5YR_B25032_with_ann!AU264","v":11},{"$f":"[1]ACS_16_5YR_B25032_with_ann!AV264","v":0},{"$f":"[1]ACS_16_5YR_B25032_with_ann!AW264","v":11}]
["0600000US3301940900",3301940900,"060","Langdon",{"$f":"[1]ACS_16_5YR_B25032_with_ann!D265","v":257},{"$f":"[1]ACS_16_5YR_B25032_with_ann!E265","v":47},{"$f":"[1]ACS_16_5YR_B25032_with_ann!F265","v":218},{"$f":"[1]ACS_16_5YR_B25032_with_ann!G265","v":44},{"$f":"[1]ACS_16_5YR_B25032_with_ann!H265","v":210},{"$f":"[1]ACS_16_5YR_B25032_with_ann!I265","v":44},{"$f":"[1]ACS_16_5YR_B25032_with_ann!J265","v":0},{"$f":"[1]ACS_16_5YR_B25032_with_ann!K265","v":11},{"$f":"[1]ACS_16_5YR_B25032_with_ann!L265","v":3},{"$f":"[1]ACS_16_5YR_B25032_with_ann!M265","v":4},{"$f":"[1]ACS_16_5YR_B25032_with_ann!N265","v":0},{"$f":"[1]ACS_16_5YR_B25032_with_ann!O265","v":11},{"$f":"[1]ACS_16_5YR_B25032_with_ann!P265","v":0},{"$f":"[1]ACS_16_5YR_B25032_with_ann!Q265","v":11},{"$f":"[1]ACS_16_5YR_B25032_with_ann!R265","v":0},{"$f":"[1]ACS_16_5YR_B25032_with_ann!S265","v":11},{"$f":"[1]ACS_16_5YR_B25032_with_ann!T265","v":0},{"$f":"[1]ACS_16_5YR_B25032_with_ann!U265","v":11},{"$f":"[1]ACS_16_5YR_B25032_with_ann!V265","v":0},{"$f":"[1]ACS_16_5YR_B25032_with_ann!W265","v":11},{"$f":"[1]ACS_16_5YR_B25032_with_ann!X265","v":5},{"$f":"[1]ACS_16_5YR_B25032_with_ann!Y265","v":5},{"$f":"[1]ACS_16_5YR_B25032_with_ann!Z265","v":0},{"$f":"[1]ACS_16_5YR_B25032_with_ann!AA265","v":11},{"$f":"[1]ACS_16_5YR_B25032_with_ann!AB265","v":39},{"$f":"[1]ACS_16_5YR_B25032_with_ann!AC265","v":21},{"$f":"[1]ACS_16_5YR_B25032_with_ann!AD265","v":29},{"$f":"[1]ACS_16_5YR_B25032_with_ann!AE265","v":20},{"$f":"[1]ACS_16_5YR_B25032_with_ann!AF265","v":0},{"$f":"[1]ACS_16_5YR_B25032_with_ann!AG265","v":11},{"$f":"[1]ACS_16_5YR_B25032_with_ann!AH265","v":8},{"$f":"[1]ACS_16_5YR_B25032_with_ann!AI265","v":10},{"$f":"[1]ACS_16_5YR_B25032_with_ann!AJ265","v":0},{"$f":"[1]ACS_16_5YR_B25032_with_ann!AK265","v":11},{"$f":"[1]ACS_16_5YR_B25032_with_ann!AL265","v":0},{"$f":"[1]ACS_16_5YR_B25032_with_ann!AM265","v":11},{"$f":"[1]ACS_16_5YR_B25032_with_ann!AN265","v":0},{"$f":"[1]ACS_16_5YR_B25032_with_ann!AO265","v":11},{"$f":"[1]ACS_16_5YR_B25032_with_ann!AP265","v":0},{"$f":"[1]ACS_16_5YR_B25032_with_ann!AQ265","v":11},{"$f":"[1]ACS_16_5YR_B25032_with_ann!AR265","v":0},{"$f":"[1]ACS_16_5YR_B25032_with_ann!AS265","v":11},{"$f":"[1]ACS_16_5YR_B25032_with_ann!AT265","v":2},{"$f":"[1]ACS_16_5YR_B25032_with_ann!AU265","v":3},{"$f":"[1]ACS_16_5YR_B25032_with_ann!AV265","v":0},{"$f":"[1]ACS_16_5YR_B25032_with_ann!AW265","v":11}]
["0600000US3301941700",3301941700,"060","Lempster",{"$f":"[1]ACS_16_5YR_B25032_with_ann!D266","v":393},{"$f":"[1]ACS_16_5YR_B25032_with_ann!E266","v":59},{"$f":"[1]ACS_16_5YR_B25032_with_ann!F266","v":367},{"$f":"[1]ACS_16_5YR_B25032_with_ann!G266","v":61},{"$f":"[1]ACS_16_5YR_B25032_with_ann!H266","v":345},{"$f":"[1]ACS_16_5YR_B25032_with_ann!I266","v":61},{"$f":"[1]ACS_16_5YR_B25032_with_ann!J266","v":8},{"$f":"[1]ACS_16_5YR_B25032_with_ann!K266","v":9},{"$f":"[1]ACS_16_5YR_B25032_with_ann!L266","v":5},{"$f":"[1]ACS_16_5YR_B25032_with_ann!M266","v":6},{"$f":"[1]ACS_16_5YR_B25032_with_ann!N266","v":0},{"$f":"[1]ACS_16_5YR_B25032_with_ann!O266","v":11},{"$f":"[1]ACS_16_5YR_B25032_with_ann!P266","v":0},{"$f":"[1]ACS_16_5YR_B25032_with_ann!Q266","v":11},{"$f":"[1]ACS_16_5YR_B25032_with_ann!R266","v":0},{"$f":"[1]ACS_16_5YR_B25032_with_ann!S266","v":11},{"$f":"[1]ACS_16_5YR_B25032_with_ann!T266","v":0},{"$f":"[1]ACS_16_5YR_B25032_with_ann!U266","v":11},{"$f":"[1]ACS_16_5YR_B25032_with_ann!V266","v":3},{"$f":"[1]ACS_16_5YR_B25032_with_ann!W266","v":4},{"$f":"[1]ACS_16_5YR_B25032_with_ann!X266","v":6},{"$f":"[1]ACS_16_5YR_B25032_with_ann!Y266","v":6},{"$f":"[1]ACS_16_5YR_B25032_with_ann!Z266","v":0},{"$f":"[1]ACS_16_5YR_B25032_with_ann!AA266","v":11},{"$f":"[1]ACS_16_5YR_B25032_with_ann!AB266","v":26},{"$f":"[1]ACS_16_5YR_B25032_with_ann!AC266","v":16},{"$f":"[1]ACS_16_5YR_B25032_with_ann!AD266","v":20},{"$f":"[1]ACS_16_5YR_B25032_with_ann!AE266","v":15},{"$f":"[1]ACS_16_5YR_B25032_with_ann!AF266","v":0},{"$f":"[1]ACS_16_5YR_B25032_with_ann!AG266","v":11},{"$f":"[1]ACS_16_5YR_B25032_with_ann!AH266","v":0},{"$f":"[1]ACS_16_5YR_B25032_with_ann!AI266","v":11},{"$f":"[1]ACS_16_5YR_B25032_with_ann!AJ266","v":0},{"$f":"[1]ACS_16_5YR_B25032_with_ann!AK266","v":11},{"$f":"[1]ACS_16_5YR_B25032_with_ann!AL266","v":0},{"$f":"[1]ACS_16_5YR_B25032_with_ann!AM266","v":11},{"$f":"[1]ACS_16_5YR_B25032_with_ann!AN266","v":0},{"$f":"[1]ACS_16_5YR_B25032_with_ann!AO266","v":11},{"$f":"[1]ACS_16_5YR_B25032_with_ann!AP266","v":0},{"$f":"[1]ACS_16_5YR_B25032_with_ann!AQ266","v":11},{"$f":"[1]ACS_16_5YR_B25032_with_ann!AR266","v":0},{"$f":"[1]ACS_16_5YR_B25032_with_ann!AS266","v":11},{"$f":"[1]ACS_16_5YR_B25032_with_ann!AT266","v":6},{"$f":"[1]ACS_16_5YR_B25032_with_ann!AU266","v":6},{"$f":"[1]ACS_16_5YR_B25032_with_ann!AV266","v":0},{"$f":"[1]ACS_16_5YR_B25032_with_ann!AW266","v":11}]
["0600000US3301952580",3301952580,"060","Newport",{"$f":"[1]ACS_16_5YR_B25032_with_ann!D267","v":2600},{"$f":"[1]ACS_16_5YR_B25032_with_ann!E267","v":168},{"$f":"[1]ACS_16_5YR_B25032_with_ann!F267","v":1743},{"$f":"[1]ACS_16_5YR_B25032_with_ann!G267","v":186},{"$f":"[1]ACS_16_5YR_B25032_with_ann!H267","v":1376},{"$f":"[1]ACS_16_5YR_B25032_with_ann!I267","v":197},{"$f":"[1]ACS_16_5YR_B25032_with_ann!J267","v":14},{"$f":"[1]ACS_16_5YR_B25032_with_ann!K267","v":23},{"$f":"[1]ACS_16_5YR_B25032_with_ann!L267","v":39},{"$f":"[1]ACS_16_5YR_B25032_with_ann!M267","v":38},{"$f":"[1]ACS_16_5YR_B25032_with_ann!N267","v":0},{"$f":"[1]ACS_16_5YR_B25032_with_ann!O267","v":16},{"$f":"[1]ACS_16_5YR_B25032_with_ann!P267","v":13},{"$f":"[1]ACS_16_5YR_B25032_with_ann!Q267","v":22},{"$f":"[1]ACS_16_5YR_B25032_with_ann!R267","v":0},{"$f":"[1]ACS_16_5YR_B25032_with_ann!S267","v":16},{"$f":"[1]ACS_16_5YR_B25032_with_ann!T267","v":0},{"$f":"[1]ACS_16_5YR_B25032_with_ann!U267","v":16},{"$f":"[1]ACS_16_5YR_B25032_with_ann!V267","v":0},{"$f":"[1]ACS_16_5YR_B25032_with_ann!W267","v":16},{"$f":"[1]ACS_16_5YR_B25032_with_ann!X267","v":301},{"$f":"[1]ACS_16_5YR_B25032_with_ann!Y267","v":141},{"$f":"[1]ACS_16_5YR_B25032_with_ann!Z267","v":0},{"$f":"[1]ACS_16_5YR_B25032_with_ann!AA267","v":16},{"$f":"[1]ACS_16_5YR_B25032_with_ann!AB267","v":857},{"$f":"[1]ACS_16_5YR_B25032_with_ann!AC267","v":184},{"$f":"[1]ACS_16_5YR_B25032_with_ann!AD267","v":231},{"$f":"[1]ACS_16_5YR_B25032_with_ann!AE267","v":109},{"$f":"[1]ACS_16_5YR_B25032_with_ann!AF267","v":13},{"$f":"[1]ACS_16_5YR_B25032_with_ann!AG267","v":21},{"$f":"[1]ACS_16_5YR_B25032_with_ann!AH267","v":110},{"$f":"[1]ACS_16_5YR_B25032_with_ann!AI267","v":78},{"$f":"[1]ACS_16_5YR_B25032_with_ann!AJ267","v":225},{"$f":"[1]ACS_16_5YR_B25032_with_ann!AK267","v":103},{"$f":"[1]ACS_16_5YR_B25032_with_ann!AL267","v":56},{"$f":"[1]ACS_16_5YR_B25032_with_ann!AM267","v":49},{"$f":"[1]ACS_16_5YR_B25032_with_ann!AN267","v":55},{"$f":"[1]ACS_16_5YR_B25032_with_ann!AO267","v":68},{"$f":"[1]ACS_16_5YR_B25032_with_ann!AP267","v":155},{"$f":"[1]ACS_16_5YR_B25032_with_ann!AQ267","v":104},{"$f":"[1]ACS_16_5YR_B25032_with_ann!AR267","v":12},{"$f":"[1]ACS_16_5YR_B25032_with_ann!AS267","v":21},{"$f":"[1]ACS_16_5YR_B25032_with_ann!AT267","v":0},{"$f":"[1]ACS_16_5YR_B25032_with_ann!AU267","v":16},{"$f":"[1]ACS_16_5YR_B25032_with_ann!AV267","v":0},{"$f":"[1]ACS_16_5YR_B25032_with_ann!AW267","v":16}]
["0600000US3301962340",3301962340,"060","Plainfield",{"$f":"[1]ACS_16_5YR_B25032_with_ann!D268","v":915},{"$f":"[1]ACS_16_5YR_B25032_with_ann!E268","v":86},{"$f":"[1]ACS_16_5YR_B25032_with_ann!F268","v":803},{"$f":"[1]ACS_16_5YR_B25032_with_ann!G268","v":78},{"$f":"[1]ACS_16_5YR_B25032_with_ann!H268","v":746},{"$f":"[1]ACS_16_5YR_B25032_with_ann!I268","v":79},{"$f":"[1]ACS_16_5YR_B25032_with_ann!J268","v":9},{"$f":"[1]ACS_16_5YR_B25032_with_ann!K268","v":9},{"$f":"[1]ACS_16_5YR_B25032_with_ann!L268","v":9},{"$f":"[1]ACS_16_5YR_B25032_with_ann!M268","v":9},{"$f":"[1]ACS_16_5YR_B25032_with_ann!N268","v":0},{"$f":"[1]ACS_16_5YR_B25032_with_ann!O268","v":11},{"$f":"[1]ACS_16_5YR_B25032_with_ann!P268","v":0},{"$f":"[1]ACS_16_5YR_B25032_with_ann!Q268","v":11},{"$f":"[1]ACS_16_5YR_B25032_with_ann!R268","v":0},{"$f":"[1]ACS_16_5YR_B25032_with_ann!S268","v":11},{"$f":"[1]ACS_16_5YR_B25032_with_ann!T268","v":0},{"$f":"[1]ACS_16_5YR_B25032_with_ann!U268","v":11},{"$f":"[1]ACS_16_5YR_B25032_with_ann!V268","v":0},{"$f":"[1]ACS_16_5YR_B25032_with_ann!W268","v":11},{"$f":"[1]ACS_16_5YR_B25032_with_ann!X268","v":39},{"$f":"[1]ACS_16_5YR_B25032_with_ann!Y268","v":18},{"$f":"[1]ACS_16_5YR_B25032_with_ann!Z268","v":0},{"$f":"[1]ACS_16_5YR_B25032_with_ann!AA268","v":11},{"$f":"[1]ACS_16_5YR_B25032_with_ann!AB268","v":112},{"$f":"[1]ACS_16_5YR_B25032_with_ann!AC268","v":49},{"$f":"[1]ACS_16_5YR_B25032_with_ann!AD268","v":57},{"$f":"[1]ACS_16_5YR_B25032_with_ann!AE268","v":39},{"$f":"[1]ACS_16_5YR_B25032_with_ann!AF268","v":10},{"$f":"[1]ACS_16_5YR_B25032_with_ann!AG268","v":11},{"$f":"[1]ACS_16_5YR_B25032_with_ann!AH268","v":0},{"$f":"[1]ACS_16_5YR_B25032_with_ann!AI268","v":11},{"$f":"[1]ACS_16_5YR_B25032_with_ann!AJ268","v":16},{"$f":"[1]ACS_16_5YR_B25032_with_ann!AK268","v":18},{"$f":"[1]ACS_16_5YR_B25032_with_ann!AL268","v":0},{"$f":"[1]ACS_16_5YR_B25032_with_ann!AM268","v":11},{"$f":"[1]ACS_16_5YR_B25032_with_ann!AN268","v":22},{"$f":"[1]ACS_16_5YR_B25032_with_ann!AO268","v":25},{"$f":"[1]ACS_16_5YR_B25032_with_ann!AP268","v":0},{"$f":"[1]ACS_16_5YR_B25032_with_ann!AQ268","v":11},{"$f":"[1]ACS_16_5YR_B25032_with_ann!AR268","v":0},{"$f":"[1]ACS_16_5YR_B25032_with_ann!AS268","v":11},{"$f":"[1]ACS_16_5YR_B25032_with_ann!AT268","v":7},{"$f":"[1]ACS_16_5YR_B25032_with_ann!AU268","v":10},{"$f":"[1]ACS_16_5YR_B25032_with_ann!AV268","v":0},{"$f":"[1]ACS_16_5YR_B25032_with_ann!AW268","v":11}]
["0600000US3301972740",3301972740,"060","Springfield",{"$f":"[1]ACS_16_5YR_B25032_with_ann!D269","v":442},{"$f":"[1]ACS_16_5YR_B25032_with_ann!E269","v":75},{"$f":"[1]ACS_16_5YR_B25032_with_ann!F269","v":398},{"$f":"[1]ACS_16_5YR_B25032_with_ann!G269","v":71},{"$f":"[1]ACS_16_5YR_B25032_with_ann!H269","v":332},{"$f":"[1]ACS_16_5YR_B25032_with_ann!I269","v":58},{"$f":"[1]ACS_16_5YR_B25032_with_ann!J269","v":3},{"$f":"[1]ACS_16_5YR_B25032_with_ann!K269","v":5},{"$f":"[1]ACS_16_5YR_B25032_with_ann!L269","v":0},{"$f":"[1]ACS_16_5YR_B25032_with_ann!M269","v":11},{"$f":"[1]ACS_16_5YR_B25032_with_ann!N269","v":0},{"$f":"[1]ACS_16_5YR_B25032_with_ann!O269","v":11},{"$f":"[1]ACS_16_5YR_B25032_with_ann!P269","v":0},{"$f":"[1]ACS_16_5YR_B25032_with_ann!Q269","v":11},{"$f":"[1]ACS_16_5YR_B25032_with_ann!R269","v":0},{"$f":"[1]ACS_16_5YR_B25032_with_ann!S269","v":11},{"$f":"[1]ACS_16_5YR_B25032_with_ann!T269","v":0},{"$f":"[1]ACS_16_5YR_B25032_with_ann!U269","v":11},{"$f":"[1]ACS_16_5YR_B25032_with_ann!V269","v":0},{"$f":"[1]ACS_16_5YR_B25032_with_ann!W269","v":11},{"$f":"[1]ACS_16_5YR_B25032_with_ann!X269","v":63},{"$f":"[1]ACS_16_5YR_B25032_with_ann!Y269","v":41},{"$f":"[1]ACS_16_5YR_B25032_with_ann!Z269","v":0},{"$f":"[1]ACS_16_5YR_B25032_with_ann!AA269","v":11},{"$f":"[1]ACS_16_5YR_B25032_with_ann!AB269","v":44},{"$f":"[1]ACS_16_5YR_B25032_with_ann!AC269","v":33},{"$f":"[1]ACS_16_5YR_B25032_with_ann!AD269","v":32},{"$f":"[1]ACS_16_5YR_B25032_with_ann!AE269","v":31},{"$f":"[1]ACS_16_5YR_B25032_with_ann!AF269","v":0},{"$f":"[1]ACS_16_5YR_B25032_with_ann!AG269","v":11},{"$f":"[1]ACS_16_5YR_B25032_with_ann!AH269","v":12},{"$f":"[1]ACS_16_5YR_B25032_with_ann!AI269","v":14},{"$f":"[1]ACS_16_5YR_B25032_with_ann!AJ269","v":0},{"$f":"[1]ACS_16_5YR_B25032_with_ann!AK269","v":11},{"$f":"[1]ACS_16_5YR_B25032_with_ann!AL269","v":0},{"$f":"[1]ACS_16_5YR_B25032_with_ann!AM269","v":11},{"$f":"[1]ACS_16_5YR_B25032_with_ann!AN269","v":0},{"$f":"[1]ACS_16_5YR_B25032_with_ann!AO269","v":11},{"$f":"[1]ACS_16_5YR_B25032_with_ann!AP269","v":0},{"$f":"[1]ACS_16_5YR_B25032_with_ann!AQ269","v":11},{"$f":"[1]ACS_16_5YR_B25032_with_ann!AR269","v":0},{"$f":"[1]ACS_16_5YR_B25032_with_ann!AS269","v":11},{"$f":"[1]ACS_16_5YR_B25032_with_ann!AT269","v":0},{"$f":"[1]ACS_16_5YR_B25032_with_ann!AU269","v":11},{"$f":"[1]ACS_16_5YR_B25032_with_ann!AV269","v":0},{"$f":"[1]ACS_16_5YR_B25032_with_ann!AW269","v":11}]
["0600000US3301975060",3301975060,"060","Sunapee",{"$f":"[1]ACS_16_5YR_B25032_with_ann!D270","v":1393},{"$f":"[1]ACS_16_5YR_B25032_with_ann!E270","v":139},{"$f":"[1]ACS_16_5YR_B25032_with_ann!F270","v":1044},{"$f":"[1]ACS_16_5YR_B25032_with_ann!G270","v":138},{"$f":"[1]ACS_16_5YR_B25032_with_ann!H270","v":972},{"$f":"[1]ACS_16_5YR_B25032_with_ann!I270","v":144},{"$f":"[1]ACS_16_5YR_B25032_with_ann!J270","v":58},{"$f":"[1]ACS_16_5YR_B25032_with_ann!K270","v":53},{"$f":"[1]ACS_16_5YR_B25032_with_ann!L270","v":10},{"$f":"[1]ACS_16_5YR_B25032_with_ann!M270","v":14},{"$f":"[1]ACS_16_5YR_B25032_with_ann!N270","v":0},{"$f":"[1]ACS_16_5YR_B25032_with_ann!O270","v":11},{"$f":"[1]ACS_16_5YR_B25032_with_ann!P270","v":0},{"$f":"[1]ACS_16_5YR_B25032_with_ann!Q270","v":11},{"$f":"[1]ACS_16_5YR_B25032_with_ann!R270","v":0},{"$f":"[1]ACS_16_5YR_B25032_with_ann!S270","v":11},{"$f":"[1]ACS_16_5YR_B25032_with_ann!T270","v":0},{"$f":"[1]ACS_16_5YR_B25032_with_ann!U270","v":11},{"$f":"[1]ACS_16_5YR_B25032_with_ann!V270","v":0},{"$f":"[1]ACS_16_5YR_B25032_with_ann!W270","v":11},{"$f":"[1]ACS_16_5YR_B25032_with_ann!X270","v":4},{"$f":"[1]ACS_16_5YR_B25032_with_ann!Y270","v":8},{"$f":"[1]ACS_16_5YR_B25032_with_ann!Z270","v":0},{"$f":"[1]ACS_16_5YR_B25032_with_ann!AA270","v":11},{"$f":"[1]ACS_16_5YR_B25032_with_ann!AB270","v":349},{"$f":"[1]ACS_16_5YR_B25032_with_ann!AC270","v":122},{"$f":"[1]ACS_16_5YR_B25032_with_ann!AD270","v":157},{"$f":"[1]ACS_16_5YR_B25032_with_ann!AE270","v":90},{"$f":"[1]ACS_16_5YR_B25032_with_ann!AF270","v":0},{"$f":"[1]ACS_16_5YR_B25032_with_ann!AG270","v":11},{"$f":"[1]ACS_16_5YR_B25032_with_ann!AH270","v":0},{"$f":"[1]ACS_16_5YR_B25032_with_ann!AI270","v":11},{"$f":"[1]ACS_16_5YR_B25032_with_ann!AJ270","v":55},{"$f":"[1]ACS_16_5YR_B25032_with_ann!AK270","v":58},{"$f":"[1]ACS_16_5YR_B25032_with_ann!AL270","v":48},{"$f":"[1]ACS_16_5YR_B25032_with_ann!AM270","v":46},{"$f":"[1]ACS_16_5YR_B25032_with_ann!AN270","v":18},{"$f":"[1]ACS_16_5YR_B25032_with_ann!AO270","v":29},{"$f":"[1]ACS_16_5YR_B25032_with_ann!AP270","v":7},{"$f":"[1]ACS_16_5YR_B25032_with_ann!AQ270","v":16},{"$f":"[1]ACS_16_5YR_B25032_with_ann!AR270","v":33},{"$f":"[1]ACS_16_5YR_B25032_with_ann!AS270","v":52},{"$f":"[1]ACS_16_5YR_B25032_with_ann!AT270","v":31},{"$f":"[1]ACS_16_5YR_B25032_with_ann!AU270","v":48},{"$f":"[1]ACS_16_5YR_B25032_with_ann!AV270","v":0},{"$f":"[1]ACS_16_5YR_B25032_with_ann!AW270","v":11}]
["0600000US3301977940",3301977940,"060","Unity",{"$f":"[1]ACS_16_5YR_B25032_with_ann!D271","v":571},{"$f":"[1]ACS_16_5YR_B25032_with_ann!E271","v":56},{"$f":"[1]ACS_16_5YR_B25032_with_ann!F271","v":536},{"$f":"[1]ACS_16_5YR_B25032_with_ann!G271","v":56},{"$f":"[1]ACS_16_5YR_B25032_with_ann!H271","v":444},{"$f":"[1]ACS_16_5YR_B25032_with_ann!I271","v":54},{"$f":"[1]ACS_16_5YR_B25032_with_ann!J271","v":2},{"$f":"[1]ACS_16_5YR_B25032_with_ann!K271","v":4},{"$f":"[1]ACS_16_5YR_B25032_with_ann!L271","v":3},{"$f":"[1]ACS_16_5YR_B25032_with_ann!M271","v":4},{"$f":"[1]ACS_16_5YR_B25032_with_ann!N271","v":0},{"$f":"[1]ACS_16_5YR_B25032_with_ann!O271","v":11},{"$f":"[1]ACS_16_5YR_B25032_with_ann!P271","v":0},{"$f":"[1]ACS_16_5YR_B25032_with_ann!Q271","v":11},{"$f":"[1]ACS_16_5YR_B25032_with_ann!R271","v":0},{"$f":"[1]ACS_16_5YR_B25032_with_ann!S271","v":11},{"$f":"[1]ACS_16_5YR_B25032_with_ann!T271","v":0},{"$f":"[1]ACS_16_5YR_B25032_with_ann!U271","v":11},{"$f":"[1]ACS_16_5YR_B25032_with_ann!V271","v":0},{"$f":"[1]ACS_16_5YR_B25032_with_ann!W271","v":11},{"$f":"[1]ACS_16_5YR_B25032_with_ann!X271","v":87},{"$f":"[1]ACS_16_5YR_B25032_with_ann!Y271","v":30},{"$f":"[1]ACS_16_5YR_B25032_with_ann!Z271","v":0},{"$f":"[1]ACS_16_5YR_B25032_with_ann!AA271","v":11},{"$f":"[1]ACS_16_5YR_B25032_with_ann!AB271","v":35},{"$f":"[1]ACS_16_5YR_B25032_with_ann!AC271","v":20},{"$f":"[1]ACS_16_5YR_B25032_with_ann!AD271","v":23},{"$f":"[1]ACS_16_5YR_B25032_with_ann!AE271","v":14},{"$f":"[1]ACS_16_5YR_B25032_with_ann!AF271","v":0},{"$f":"[1]ACS_16_5YR_B25032_with_ann!AG271","v":11},{"$f":"[1]ACS_16_5YR_B25032_with_ann!AH271","v":8},{"$f":"[1]ACS_16_5YR_B25032_with_ann!AI271","v":13},{"$f":"[1]ACS_16_5YR_B25032_with_ann!AJ271","v":0},{"$f":"[1]ACS_16_5YR_B25032_with_ann!AK271","v":11},{"$f":"[1]ACS_16_5YR_B25032_with_ann!AL271","v":0},{"$f":"[1]ACS_16_5YR_B25032_with_ann!AM271","v":11},{"$f":"[1]ACS_16_5YR_B25032_with_ann!AN271","v":0},{"$f":"[1]ACS_16_5YR_B25032_with_ann!AO271","v":11},{"$f":"[1]ACS_16_5YR_B25032_with_ann!AP271","v":0},{"$f":"[1]ACS_16_5YR_B25032_with_ann!AQ271","v":11},{"$f":"[1]ACS_16_5YR_B25032_with_ann!AR271","v":0},{"$f":"[1]ACS_16_5YR_B25032_with_ann!AS271","v":11},{"$f":"[1]ACS_16_5YR_B25032_with_ann!AT271","v":4},{"$f":"[1]ACS_16_5YR_B25032_with_ann!AU271","v":6},{"$f":"[1]ACS_16_5YR_B25032_with_ann!AV271","v":0},{"$f":"[1]ACS_16_5YR_B25032_with_ann!AW271","v":11}]
["0600000US3301978980",3301978980,"060","Washington",{"$f":"[1]ACS_16_5YR_B25032_with_ann!D272","v":537},{"$f":"[1]ACS_16_5YR_B25032_with_ann!E272","v":81},{"$f":"[1]ACS_16_5YR_B25032_with_ann!F272","v":499},{"$f":"[1]ACS_16_5YR_B25032_with_ann!G272","v":81},{"$f":"[1]ACS_16_5YR_B25032_with_ann!H272","v":483},{"$f":"[1]ACS_16_5YR_B25032_with_ann!I272","v":82},{"$f":"[1]ACS_16_5YR_B25032_with_ann!J272","v":0},{"$f":"[1]ACS_16_5YR_B25032_with_ann!K272","v":11},{"$f":"[1]ACS_16_5YR_B25032_with_ann!L272","v":13},{"$f":"[1]ACS_16_5YR_B25032_with_ann!M272","v":15},{"$f":"[1]ACS_16_5YR_B25032_with_ann!N272","v":0},{"$f":"[1]ACS_16_5YR_B25032_with_ann!O272","v":11},{"$f":"[1]ACS_16_5YR_B25032_with_ann!P272","v":0},{"$f":"[1]ACS_16_5YR_B25032_with_ann!Q272","v":11},{"$f":"[1]ACS_16_5YR_B25032_with_ann!R272","v":0},{"$f":"[1]ACS_16_5YR_B25032_with_ann!S272","v":11},{"$f":"[1]ACS_16_5YR_B25032_with_ann!T272","v":0},{"$f":"[1]ACS_16_5YR_B25032_with_ann!U272","v":11},{"$f":"[1]ACS_16_5YR_B25032_with_ann!V272","v":0},{"$f":"[1]ACS_16_5YR_B25032_with_ann!W272","v":11},{"$f":"[1]ACS_16_5YR_B25032_with_ann!X272","v":3},{"$f":"[1]ACS_16_5YR_B25032_with_ann!Y272","v":4},{"$f":"[1]ACS_16_5YR_B25032_with_ann!Z272","v":0},{"$f":"[1]ACS_16_5YR_B25032_with_ann!AA272","v":11},{"$f":"[1]ACS_16_5YR_B25032_with_ann!AB272","v":38},{"$f":"[1]ACS_16_5YR_B25032_with_ann!AC272","v":28},{"$f":"[1]ACS_16_5YR_B25032_with_ann!AD272","v":35},{"$f":"[1]ACS_16_5YR_B25032_with_ann!AE272","v":28},{"$f":"[1]ACS_16_5YR_B25032_with_ann!AF272","v":0},{"$f":"[1]ACS_16_5YR_B25032_with_ann!AG272","v":11},{"$f":"[1]ACS_16_5YR_B25032_with_ann!AH272","v":0},{"$f":"[1]ACS_16_5YR_B25032_with_ann!AI272","v":11},{"$f":"[1]ACS_16_5YR_B25032_with_ann!AJ272","v":0},{"$f":"[1]ACS_16_5YR_B25032_with_ann!AK272","v":11},{"$f":"[1]ACS_16_5YR_B25032_with_ann!AL272","v":0},{"$f":"[1]ACS_16_5YR_B25032_with_ann!AM272","v":11},{"$f":"[1]ACS_16_5YR_B25032_with_ann!AN272","v":0},{"$f":"[1]ACS_16_5YR_B25032_with_ann!AO272","v":11},{"$f":"[1]ACS_16_5YR_B25032_with_ann!AP272","v":0},{"$f":"[1]ACS_16_5YR_B25032_with_ann!AQ272","v":11},{"$f":"[1]ACS_16_5YR_B25032_with_ann!AR272","v":0},{"$f":"[1]ACS_16_5YR_B25032_with_ann!AS272","v":11},{"$f":"[1]ACS_16_5YR_B25032_with_ann!AT272","v":3},{"$f":"[1]ACS_16_5YR_B25032_with_ann!AU272","v":4},{"$f":"[1]ACS_16_5YR_B25032_with_ann!AV272","v":0},{"$f":"[1]ACS_16_5YR_B25032_with_ann!AW272","v":11}]
[]
[null,null,null,null,{"$f":"$D$3","v":"Acworth"},null,{"$f":"$D$4","v":"Charlestown"},null,{"$f":"$D$5","v":"Claremont"},null,{"$f":"$D$6","v":"Cornish"},null,{"$f":"$D$7","v":"Croydon"},null,{"$f":"$D$8","v":"Goshen"},null,{"$f":"$D$9","v":"Grantham"},null,{"$f":"$D$10","v":"Langdon"},null,{"$f":"$D$11","v":"Lempster"},null,{"$f":"$D$12","v":"Newport"},null,{"$f":"$D$13","v":"Plainfield"},null,{"$f":"$D$14","v":"Springfield"},null,{"$f":"$D$15","v":"Sunapee"},null,{"$f":"$D$16","v":"Unity"},null,{"$f":"$D$17","v":"Washington"}]
[null,null,null,null,"Estimate","Margin Of Error","Estimate","Margin Of Error","Estimate","Margin Of Error","Estimate","Margin Of Error","Estimate","Margin Of Error","Estimate","Margin Of Error","Estimate","Margin Of Error","Estimate","Margin Of Error","Estimate","Margin Of Error","Estimate","Margin Of Error","Estimate","Margin Of Error","Estimate","Margin Of Error","Estimate","Margin Of Error",null,"Estimate","Margin Of Error"]
[null,null,null,"Estimate Total:",370,51,2086,184,5231,284,741,81,293,56,277,39,1222,142,257,47,393,59,2600,168,915,86,442,75,1393,139,571,56,537,81]
[null,null,null,"Estimate Total: Owner-occupied housing units:",340,50,1584,209,2921,257,686,79,257,53,223,35,1082,164,218,44,367,61,1743,186,803,78,398,71,1044,138,536,56,499,81]
[null,null,null,"Estimate Total: Owner-occupied housing units: 1",324,48,958,198,2458,251,664,77,225,49,198,37,1050,175,210,44,345,61,1376,197,746,79,332,58,972,144,444,54,483,82]
[null,null,null,"Estimate Total: Owner-occupied housing units: 1",2,4,6,13,59,56,6,6,4,5,2,3,0,11,0,11,8,9,14,23,9,9,3,5,58,53,2,4,0,11]
[null,null,null,"Estimate Total: Owner-occupied housing units: 2",0,11,56,56,103,50,0,11,1,3,0,11,32,46,3,4,5,6,39,38,9,9,0,11,10,14,3,4,13,15]
[null,null,null,"Estimate Total: Owner-occupied housing units: 3 or 4",0,11,17,27,83,59,0,11,0,11,0,11,0,11,0,11,0,11,0,16,0,11,0,11,0,11,0,11,0,11]
[null,null,null,"Estimate Total: Owner-occupied housing units: 5 to 9",0,11,0,16,0,18,0,11,0,11,0,11,0,11,0,11,0,11,13,22,0,11,0,11,0,11,0,11,0,11]
[null,null,null,"Estimate Total: Owner-occupied housing units: 10 to 19",0,11,0,16,0,18,0,11,0,11,0,11,0,11,0,11,0,11,0,16,0,11,0,11,0,11,0,11,0,11]
[null,null,null,"Estimate Total: Owner-occupied housing units: 20 to 49",0,11,0,16,0,18,0,11,0,11,0,11,0,11,0,11,0,11,0,16,0,11,0,11,0,11,0,11,0,11]
[null,null,null,"Estimate Total: Owner-occupied housing units: 50 or more",0,11,0,16,0,18,0,11,0,11,0,11,0,11,0,11,3,4,0,16,0,11,0,11,0,11,0,11,0,11]
[null,null,null,"Estimate Total: Owner-occupied housing units: Mobile home",14,12,547,175,218,78,16,13,27,21,23,17,0,11,5,5,6,6,301,141,39,18,63,41,4,8,87,30,3,4]
[null,null,null,"Estimate Total: Owner-occupied housing units: Boat",0,11,0,16,0,18,0,11,0,11,0,11,0,11,0,11,0,11,0,16,0,11,0,11,0,11,0,11,0,11]
[null,null,null,"Estimate Total: Renter-occupied housing units:",30,16,502,134,2310,288,55,26,36,22,54,23,140,79,39,21,26,16,857,184,112,49,44,33,349,122,35,20,38,28]
[null,null,null,"Estimate Total: Renter-occupied housing units: 1",28,16,147,78,294,127,38,19,29,19,29,19,79,60,29,20,20,15,231,109,57,39,32,31,157,90,23,14,35,28]
[null,null,null,"Estimate Total: Renter-occupied housing units: 1",0,11,0,16,0,18,3,4,2,5,0,11,46,67,0,11,0,11,13,21,10,11,0,11,0,11,0,11,0,11]
[null,null,null,"Estimate Total: Renter-occupied housing units: 2",0,11,53,67,424,147,10,17,0,11,0,11,0,11,8,10,0,11,110,78,0,11,12,14,0,11,8,13,0,11]
[null,null,null,"Estimate Total: Renter-occupied housing units: 3 or 4",0,11,135,96,578,178,0,11,0,11,6,9,15,23,0,11,0,11,225,103,16,18,0,11,55,58,0,11,0,11]
[null,null,null,"Estimate Total: Renter-occupied housing units: 5 to 9",0,11,47,58,368,115,0,11,0,11,7,10,0,11,0,11,0,11,56,49,0,11,0,11,48,46,0,11,0,11]
[null,null,null,"Estimate Total: Renter-occupied housing units: 10 to 19",0,11,16,26,85,79,0,11,0,11,6,9,0,11,0,11,0,11,55,68,22,25,0,11,18,29,0,11,0,11]
[null,null,null,"Estimate Total: Renter-occupied housing units: 20 to 49",2,3,46,37,187,83,0,11,0,11,0,11,0,11,0,11,0,11,155,104,0,11,0,11,7,16,0,11,0,11]
[null,null,null,"Estimate Total: Renter-occupied housing units: 50 or more",0,11,0,16,252,95,0,11,0,11,0,11,0,11,0,11,0,11,12,21,0,11,0,11,33,52,0,11,0,11]
[null,null,null,"Estimate Total: Renter-occupied housing units: Mobile home",0,11,58,52,122,110,4,6,5,10,6,4,0,11,2,3,6,6,0,16,7,10,0,11,31,48,4,6,3,4]
[null,null,null,"Estimate Total: Renter-occupied housing units: Boat",0,11,0,16,0,18,0,11,0,11,0,11,0,11,0,11,0,11,0,16,0,11,0,11,0,11,0,11,0,11]

{"sheet":"SData_B25034_B25041_HuAgeTyp","index":89,"n_rows":39,"n_cols":42,"rows_kept":39,"cut":false,"hidden":true,"merged":[]}
["GEO_ID","GEO_ID2","SUMLEVEL","GEO_NAME","B25034_1_EST","B25034_1_MOE","B25034_2_EST","B25034_2_MOE","B25034_3_EST","B25034_3_MOE","B25034_4_EST","B25034_4_MOE","B25034_5_EST","B25034_5_MOE","B25034_6_EST","B25034_6_MOE","B25034_7_EST","B25034_7_MOE","B25034_8_EST","B25034_8_MOE","B25034_9_EST","B25034_9_MOE","B25034_10_EST","B25034_10_MOE","B25034_11_EST","B25034_11_MOE","B25041_1_EST","B25041_2_MOE","B25041_1_EST","B25041_2_MOE","B25041_3_EST","B25041_3_MOE","B25041_4_EST","B25041_4_MOE","B25041_5_EST","B25041_5_MOE","B25041_6_EST","B25041_6_MOE","B25041_7_EST","B25041_7_MOE"]
["Geography Identifier","Geography Identifier","Geographic Summary Level","Geography",{"$f":"[1]ACS_16_5YR_B25034_with_ann!D$2","v":"Estimate Total:"},{"$f":"[1]ACS_16_5YR_B25034_with_ann!E$2","v":"Margin of Error Total:"},{"$f":"[1]ACS_16_5YR_B25034_with_ann!F$2","v":"Estimate Total: Built 2014 or later"},{"$f":"[1]ACS_16_5YR_B25034_with_ann!G$2","v":"Margin of Error Total: Built 2014 or later"},{"$f":"[1]ACS_16_5YR_B25034_with_ann!H$2","v":"Estimate Total: Built 2010 to 2013"},{"$f":"[1]ACS_16_5YR_B25034_with_ann!I$2","v":"Margin of Error Total: Built 2010 to 2013"},{"$f":"[1]ACS_16_5YR_B25034_with_ann!J$2","v":"Estimate Total: Built 2000 to 2009"},{"$f":"[1]ACS_16_5YR_B25034_with_ann!K$2","v":"Margin of Error Total: Built 2000 to 2009"},{"$f":"[1]ACS_16_5YR_B25034_with_ann!L$2","v":"Estimate Total: Built 1990 to 1999"},{"$f":"[1]ACS_16_5YR_B25034_with_ann!M$2","v":"Margin of Error Total: Built 1990 to 1999"},{"$f":"[1]ACS_16_5YR_B25034_with_ann!N$2","v":"Estimate Total: Built 1980 to 1989"},{"$f":"[1]ACS_16_5YR_B25034_with_ann!O$2","v":"Margin of Error Total: Built 1980 to 1989"},{"$f":"[1]ACS_16_5YR_B25034_with_ann!P$2","v":"Estimate Total: Built 1970 to 1979"},{"$f":"[1]ACS_16_5YR_B25034_with_ann!Q$2","v":"Margin of Error Total: Built 1970 to 1979"},{"$f":"[1]ACS_16_5YR_B25034_with_ann!R$2","v":"Estimate Total: Built 1960 to 1969"},{"$f":"[1]ACS_16_5YR_B25034_with_ann!S$2","v":"Margin of Error Total: Built 1960 to 1969"},{"$f":"[1]ACS_16_5YR_B25034_with_ann!T$2","v":"Estimate Total: Built 1950 to 1959"},{"$f":"[1]ACS_16_5YR_B25034_with_ann!U$2","v":"Margin of Error Total: Built 1950 to 1959"},{"$f":"[1]ACS_16_5YR_B25034_with_ann!V$2","v":"Estimate Total: Built 1940 to 1949"},{"$f":"[1]ACS_16_5YR_B25034_with_ann!W$2","v":"Margin of Error Total: Built 1940 to 1949"},{"$f":"[1]ACS_16_5YR_B25034_with_ann!X$2","v":"Estimate Total: Built 1939 or earlier"},{"$f":"[1]ACS_16_5YR_B25034_with_ann!Y$2","v":"Margin of Error Total: Built 1939 or earlier"},{"$f":"[1]ACS_16_5YR_B25041_with_ann!D2","v":"Estimate Total:"},{"$f":"[1]ACS_16_5YR_B25041_with_ann!E2","v":"Margin of Error Total:"},{"$f":"[1]ACS_16_5YR_B25041_with_ann!F2","v":"Estimate Total: No bedroom"},{"$f":"[1]ACS_16_5YR_B25041_with_ann!G2","v":"Margin of Error Total: No bedroom"},{"$f":"[1]ACS_16_5YR_B25041_with_ann!H2","v":"Estimate Total: 1 bedroom"},{"$f":"[1]ACS_16_5YR_B25041_with_ann!I2","v":"Margin of Error Total: 1 bedroom"},{"$f":"[1]ACS_16_5YR_B25041_with_ann!J2","v":"Estimate Total: 2 bedrooms"},{"$f":"[1]ACS_16_5YR_B25041_with_ann!K2","v":"Margin of Error Total: 2 bedrooms"},{"$f":"[1]ACS_16_5YR_B25041_with_ann!L2","v":"Estimate Total: 3 bedrooms"},{"$f":"[1]ACS_16_5YR_B25041_with_ann!M2","v":"Margin of Error Total: 3 bedrooms"},{"$f":"[1]ACS_16_5YR_B25041_with_ann!N2","v":"Estimate Total: 4 bedrooms"},{"$f":"[1]ACS_16_5YR_B25041_with_ann!O2","v":"Margin of Error Total: 4 bedrooms"},{"$f":"[1]ACS_16_5YR_B25041_with_ann!P2","v":"Estimate Total: 5 or more bedrooms"},{"$f":"[1]ACS_16_5YR_B25041_with_ann!Q2","v":"Margin of Error Total: 5 or more bedrooms"}]
["0600000US3301900259",3301900259,"060","Acworth",{"$f":"[1]ACS_16_5YR_B25034_with_ann!D258","v":587},{"$f":"[1]ACS_16_5YR_B25034_with_ann!E258","v":53},{"$f":"[1]ACS_16_5YR_B25034_with_ann!F258","v":17},{"$f":"[1]ACS_16_5YR_B25034_with_ann!G258","v":12},{"$f":"[1]ACS_16_5YR_B25034_with_ann!H258","v":21},{"$f":"[1]ACS_16_5YR_B25034_with_ann!I258","v":16},{"$f":"[1]ACS_16_5YR_B25034_with_ann!J258","v":51},{"$f":"[1]ACS_16_5YR_B25034_with_ann!K258","v":23},{"$f":"[1]ACS_16_5YR_B25034_with_ann!L258","v":54},{"$f":"[1]ACS_16_5YR_B25034_with_ann!M258","v":19},{"$f":"[1]ACS_16_5YR_B25034_with_ann!N258","v":86},{"$f":"[1]ACS_16_5YR_B25034_with_ann!O258","v":30},{"$f":"[1]ACS_16_5YR_B25034_with_ann!P258","v":75},{"$f":"[1]ACS_16_5YR_B25034_with_ann!Q258","v":29},{"$f":"[1]ACS_16_5YR_B25034_with_ann!R258","v":35},{"$f":"[1]ACS_16_5YR_B25034_with_ann!S258","v":18},{"$f":"[1]ACS_16_5YR_B25034_with_ann!T258","v":64},{"$f":"[1]ACS_16_5YR_B25034_with_ann!U258","v":25},{"$f":"[1]ACS_16_5YR_B25034_with_ann!V258","v":14},{"$f":"[1]ACS_16_5YR_B25034_with_ann!W258","v":15},{"$f":"[1]ACS_16_5YR_B25034_with_ann!X258","v":170},{"$f":"[1]ACS_16_5YR_B25034_with_ann!Y258","v":35},{"$f":"[1]ACS_16_5YR_B25041_with_ann!D258","v":587},{"$f":"[1]ACS_16_5YR_B25041_with_ann!E258","v":53},{"$f":"[1]ACS_16_5YR_B25041_with_ann!F258","v":24},{"$f":"[1]ACS_16_5YR_B25041_with_ann!G258","v":16},{"$f":"[1]ACS_16_5YR_B25041_with_ann!H258","v":64},{"$f":"[1]ACS_16_5YR_B25041_with_ann!I258","v":23},{"$f":"[1]ACS_16_5YR_B25041_with_ann!J258","v":160},{"$f":"[1]ACS_16_5YR_B25041_with_ann!K258","v":37},{"$f":"[1]ACS_16_5YR_B25041_with_ann!L258","v":235},{"$f":"[1]ACS_16_5YR_B25041_with_ann!M258","v":46},{"$f":"[1]ACS_16_5YR_B25041_with_ann!N258","v":58},{"$f":"[1]ACS_16_5YR_B25041_with_ann!O258","v":22},{"$f":"[1]ACS_16_5YR_B25041_with_ann!P258","v":46},{"$f":"[1]ACS_16_5YR_B25041_with_ann!Q258","v":21},null,"Acworth"]
["0600000US3301911380",3301911380,"060","Charlestown",{"$f":"[1]ACS_16_5YR_B25034_with_ann!D259","v":2354},{"$f":"[1]ACS_16_5YR_B25034_with_ann!E259","v":203},{"$f":"[1]ACS_16_5YR_B25034_with_ann!F259","v":63},{"$f":"[1]ACS_16_5YR_B25034_with_ann!G259","v":69},{"$f":"[1]ACS_16_5YR_B25034_with_ann!H259","v":0},{"$f":"[1]ACS_16_5YR_B25034_with_ann!I259","v":16},{"$f":"[1]ACS_16_5YR_B25034_with_ann!J259","v":48},{"$f":"[1]ACS_16_5YR_B25034_with_ann!K259","v":47},{"$f":"[1]ACS_16_5YR_B25034_with_ann!L259","v":170},{"$f":"[1]ACS_16_5YR_B25034_with_ann!M259","v":89},{"$f":"[1]ACS_16_5YR_B25034_with_ann!N259","v":511},{"$f":"[1]ACS_16_5YR_B25034_with_ann!O259","v":164},{"$f":"[1]ACS_16_5YR_B25034_with_ann!P259","v":470},{"$f":"[1]ACS_16_5YR_B25034_with_ann!Q259","v":171},{"$f":"[1]ACS_16_5YR_B25034_with_ann!R259","v":276},{"$f":"[1]ACS_16_5YR_B25034_with_ann!S259","v":145},{"$f":"[1]ACS_16_5YR_B25034_with_ann!T259","v":184},{"$f":"[1]ACS_16_5YR_B25034_with_ann!U259","v":112},{"$f":"[1]ACS_16_5YR_B25034_with_ann!V259","v":77},{"$f":"[1]ACS_16_5YR_B25034_with_ann!W259","v":66},{"$f":"[1]ACS_16_5YR_B25034_with_ann!X259","v":555},{"$f":"[1]ACS_16_5YR_B25034_with_ann!Y259","v":165},{"$f":"[1]ACS_16_5YR_B25041_with_ann!D259","v":2354},{"$f":"[1]ACS_16_5YR_B25041_with_ann!E259","v":203},{"$f":"[1]ACS_16_5YR_B25041_with_ann!F259","v":91},{"$f":"[1]ACS_16_5YR_B25041_with_ann!G259","v":86},{"$f":"[1]ACS_16_5YR_B25041_with_ann!H259","v":182},{"$f":"[1]ACS_16_5YR_B25041_with_ann!I259","v":100},{"$f":"[1]ACS_16_5YR_B25041_with_ann!J259","v":1020},{"$f":"[1]ACS_16_5YR_B25041_with_ann!K259","v":242},{"$f":"[1]ACS_16_5YR_B25041_with_ann!L259","v":717},{"$f":"[1]ACS_16_5YR_B25041_with_ann!M259","v":189},{"$f":"[1]ACS_16_5YR_B25041_with_ann!N259","v":180},{"$f":"[1]ACS_16_5YR_B25041_with_ann!O259","v":105},{"$f":"[1]ACS_16_5YR_B25041_with_ann!P259","v":164},{"$f":"[1]ACS_16_5YR_B25041_with_ann!Q259","v":93},null,"Acworth"]
["0600000US3301912900",3301912900,"060","Claremont",{"$f":"[1]ACS_16_5YR_B25034_with_ann!D260","v":6129},{"$f":"[1]ACS_16_5YR_B25034_with_ann!E260","v":297},{"$f":"[1]ACS_16_5YR_B25034_with_ann!F260","v":0},{"$f":"[1]ACS_16_5YR_B25034_with_ann!G260","v":18},{"$f":"[1]ACS_16_5YR_B25034_with_ann!H260","v":40},{"$f":"[1]ACS_16_5YR_B25034_with_ann!I260","v":52},{"$f":"[1]ACS_16_5YR_B25034_with_ann!J260","v":189},{"$f":"[1]ACS_16_5YR_B25034_with_ann!K260","v":86},{"$f":"[1]ACS_16_5YR_B25034_with_ann!L260","v":123},{"$f":"[1]ACS_16_5YR_B25034_with_ann!M260","v":66},{"$f":"[1]ACS_16_5YR_B25034_with_ann!N260","v":587},{"$f":"[1]ACS_16_5YR_B25034_with_ann!O260","v":173},{"$f":"[1]ACS_16_5YR_B25034_with_ann!P260","v":774},{"$f":"[1]ACS_16_5YR_B25034_with_ann!Q260","v":182},{"$f":"[1]ACS_16_5YR_B25034_with_ann!R260","v":591},{"$f":"[1]ACS_16_5YR_B25034_with_ann!S260","v":162},{"$f":"[1]ACS_16_5YR_B25034_with_ann!T260","v":629},{"$f":"[1]ACS_16_5YR_B25034_with_ann!U260","v":152},{"$f":"[1]ACS_16_5YR_B25034_with_ann!V260","v":519},{"$f":"[1]ACS_16_5YR_B25034_with_ann!W260","v":130},{"$f":"[1]ACS_16_5YR_B25034_with_ann!X260","v":2677},{"$f":"[1]ACS_16_5YR_B25034_with_ann!Y260","v":281},{"$f":"[1]ACS_16_5YR_B25041_with_ann!D260","v":6129},{"$f":"[1]ACS_16_5YR_B25041_with_ann!E260","v":297},{"$f":"[1]ACS_16_5YR_B25041_with_ann!F260","v":60},{"$f":"[1]ACS_16_5YR_B25041_with_ann!G260","v":58},{"$f":"[1]ACS_16_5YR_B25041_with_ann!H260","v":1152},{"$f":"[1]ACS_16_5YR_B25041_with_ann!I260","v":231},{"$f":"[1]ACS_16_5YR_B25041_with_ann!J260","v":1955},{"$f":"[1]ACS_16_5YR_B25041_with_ann!K260","v":285},{"$f":"[1]ACS_16_5YR_B25041_with_ann!L260","v":2024},{"$f":"[1]ACS_16_5YR_B25041_with_ann!M260","v":300},{"$f":"[1]ACS_16_5YR_B25041_with_ann!N260","v":757},{"$f":"[1]ACS_16_5YR_B25041_with_ann!O260","v":187},{"$f":"[1]ACS_16_5YR_B25041_with_ann!P260","v":181},{"$f":"[1]ACS_16_5YR_B25041_with_ann!Q260","v":101},null,"Acworth"]
["0600000US3301915060",3301915060,"060","Cornish",{"$f":"[1]ACS_16_5YR_B25034_with_ann!D261","v":837},{"$f":"[1]ACS_16_5YR_B25034_with_ann!E261","v":83},{"$f":"[1]ACS_16_5YR_B25034_with_ann!F261","v":3},{"$f":"[1]ACS_16_5YR_B25034_with_ann!G261","v":5},{"$f":"[1]ACS_16_5YR_B25034_with_ann!H261","v":16},{"$f":"[1]ACS_16_5YR_B25034_with_ann!I261","v":17},{"$f":"[1]ACS_16_5YR_B25034_with_ann!J261","v":101},{"$f":"[1]ACS_16_5YR_B25034_with_ann!K261","v":30},{"$f":"[1]ACS_16_5YR_B25034_with_ann!L261","v":107},{"$f":"[1]ACS_16_5YR_B25034_with_ann!M261","v":35},{"$f":"[1]ACS_16_5YR_B25034_with_ann!N261","v":146},{"$f":"[1]ACS_16_5YR_B25034_with_ann!O261","v":45},{"$f":"[1]ACS_16_5YR_B25034_with_ann!P261","v":93},{"$f":"[1]ACS_16_5YR_B25034_with_ann!Q261","v":38},{"$f":"[1]ACS_16_5YR_B25034_with_ann!R261","v":31},{"$f":"[1]ACS_16_5YR_B25034_with_ann!S261","v":21},{"$f":"[1]ACS_16_5YR_B25034_with_ann!T261","v":50},{"$f":"[1]ACS_16_5YR_B25034_with_ann!U261","v":27},{"$f":"[1]ACS_16_5YR_B25034_with_ann!V261","v":14},{"$f":"[1]ACS_16_5YR_B25034_with_ann!W261","v":9},{"$f":"[1]ACS_16_5YR_B25034_with_ann!X261","v":276},{"$f":"[1]ACS_16_5YR_B25034_with_ann!Y261","v":60},{"$f":"[1]ACS_16_5YR_B25041_with_ann!D261","v":837},{"$f":"[1]ACS_16_5YR_B25041_with_ann!E261","v":83},{"$f":"[1]ACS_16_5YR_B25041_with_ann!F261","v":3},{"$f":"[1]ACS_16_5YR_B25041_with_ann!G261","v":5},{"$f":"[1]ACS_16_5YR_B25041_with_ann!H261","v":64},{"$f":"[1]ACS_16_5YR_B25041_with_ann!I261","v":36},{"$f":"[1]ACS_16_5YR_B25041_with_ann!J261","v":183},{"$f":"[1]ACS_16_5YR_B25041_with_ann!K261","v":49},{"$f":"[1]ACS_16_5YR_B25041_with_ann!L261","v":365},{"$f":"[1]ACS_16_5YR_B25041_with_ann!M261","v":62},{"$f":"[1]ACS_16_5YR_B25041_with_ann!N261","v":198},{"$f":"[1]ACS_16_5YR_B25041_with_ann!O261","v":55},{"$f":"[1]ACS_16_5YR_B25041_with_ann!P261","v":24},{"$f":"[1]ACS_16_5YR_B25041_with_ann!Q261","v":13},null,"Acworth"]
["0600000US3301916340",3301916340,"060","Croydon",{"$f":"[1]ACS_16_5YR_B25034_with_ann!D262","v":464},{"$f":"[1]ACS_16_5YR_B25034_with_ann!E262","v":75},{"$f":"[1]ACS_16_5YR_B25034_with_ann!F262","v":9},{"$f":"[1]ACS_16_5YR_B25034_with_ann!G262","v":12},{"$f":"[1]ACS_16_5YR_B25034_with_ann!H262","v":0},{"$f":"[1]ACS_16_5YR_B25034_with_ann!I262","v":11},{"$f":"[1]ACS_16_5YR_B25034_with_ann!J262","v":70},{"$f":"[1]ACS_16_5YR_B25034_with_ann!K262","v":26},{"$f":"[1]ACS_16_5YR_B25034_with_ann!L262","v":79},{"$f":"[1]ACS_16_5YR_B25034_with_ann!M262","v":32},{"$f":"[1]ACS_16_5YR_B25034_with_ann!N262","v":89},{"$f":"[1]ACS_16_5YR_B25034_with_ann!O262","v":34},{"$f":"[1]ACS_16_5YR_B25034_with_ann!P262","v":56},{"$f":"[1]ACS_16_5YR_B25034_with_ann!Q262","v":37},{"$f":"[1]ACS_16_5YR_B25034_with_ann!R262","v":16},{"$f":"[1]ACS_16_5YR_B25034_with_ann!S262","v":13},{"$f":"[1]ACS_16_5YR_B25034_with_ann!T262","v":32},{"$f":"[1]ACS_16_5YR_B25034_with_ann!U262","v":22},{"$f":"[1]ACS_16_5YR_B25034_with_ann!V262","v":3},{"$f":"[1]ACS_16_5YR_B25034_with_ann!W262","v":4},{"$f":"[1]ACS_16_5YR_B25034_with_ann!X262","v":110},{"$f":"[1]ACS_16_5YR_B25034_with_ann!Y262","v":38},{"$f":"[1]ACS_16_5YR_B25041_with_ann!D262","v":464},{"$f":"[1]ACS_16_5YR_B25041_with_ann!E262","v":75},{"$f":"[1]ACS_16_5YR_B25041_with_ann!F262","v":0},{"$f":"[1]ACS_16_5YR_B25041_with_ann!G262","v":11},{"$f":"[1]ACS_16_5YR_B25041_with_ann!H262","v":46},{"$f":"[1]ACS_16_5YR_B25041_with_ann!I262","v":25},{"$f":"[1]ACS_16_5YR_B25041_with_ann!J262","v":137},{"$f":"[1]ACS_16_5YR_B25041_with_ann!K262","v":50},{"$f":"[1]ACS_16_5YR_B25041_with_ann!L262","v":201},{"$f":"[1]ACS_16_5YR_B25041_with_ann!M262","v":47},{"$f":"[1]ACS_16_5YR_B25041_with_ann!N262","v":58},{"$f":"[1]ACS_16_5YR_B25041_with_ann!O262","v":33},{"$f":"[1]ACS_16_5YR_B25041_with_ann!P262","v":22},{"$f":"[1]ACS_16_5YR_B25041_with_ann!Q262","v":14},null,"Acworth"]
["0600000US3301930500",3301930500,"060","Goshen",{"$f":"[1]ACS_16_5YR_B25034_with_ann!D263","v":435},{"$f":"[1]ACS_16_5YR_B25034_with_ann!E263","v":52},{"$f":"[1]ACS_16_5YR_B25034_with_ann!F263","v":3},{"$f":"[1]ACS_16_5YR_B25034_with_ann!G263","v":5},{"$f":"[1]ACS_16_5YR_B25034_with_ann!H263","v":2},{"$f":"[1]ACS_16_5YR_B25034_with_ann!I263","v":3},{"$f":"[1]ACS_16_5YR_B25034_with_ann!J263","v":49},{"$f":"[1]ACS_16_5YR_B25034_with_ann!K263","v":21},{"$f":"[1]ACS_16_5YR_B25034_with_ann!L263","v":37},{"$f":"[1]ACS_16_5YR_B25034_with_ann!M263","v":21},{"$f":"[1]ACS_16_5YR_B25034_with_ann!N263","v":75},{"$f":"[1]ACS_16_5YR_B25034_with_ann!O263","v":26},{"$f":"[1]ACS_16_5YR_B25034_with_ann!P263","v":83},{"$f":"[1]ACS_16_5YR_B25034_with_ann!Q263","v":32},{"$f":"[1]ACS_16_5YR_B25034_with_ann!R263","v":19},{"$f":"[1]ACS_16_5YR_B25034_with_ann!S263","v":15},{"$f":"[1]ACS_16_5YR_B25034_with_ann!T263","v":48},{"$f":"[1]ACS_16_5YR_B25034_with_ann!U263","v":22},{"$f":"[1]ACS_16_5YR_B25034_with_ann!V263","v":14},{"$f":"[1]ACS_16_5YR_B25034_with_ann!W263","v":13},{"$f":"[1]ACS_16_5YR_B25034_with_ann!X263","v":105},{"$f":"[1]ACS_16_5YR_B25034_with_ann!Y263","v":33},{"$f":"[1]ACS_16_5YR_B25041_with_ann!D263","v":435},{"$f":"[1]ACS_16_5YR_B25041_with_ann!E263","v":52},{"$f":"[1]ACS_16_5YR_B25041_with_ann!F263","v":18},{"$f":"[1]ACS_16_5YR_B25041_with_ann!G263","v":16},{"$f":"[1]ACS_16_5YR_B25041_with_ann!H263","v":54},{"$f":"[1]ACS_16_5YR_B25041_with_ann!I263","v":29},{"$f":"[1]ACS_16_5YR_B25041_with_ann!J263","v":140},{"$f":"[1]ACS_16_5YR_B25041_with_ann!K263","v":44},{"$f":"[1]ACS_16_5YR_B25041_with_ann!L263","v":165},{"$f":"[1]ACS_16_5YR_B25041_with_ann!M263","v":40},{"$f":"[1]ACS_16_5YR_B25041_with_ann!N263","v":41},{"$f":"[1]ACS_16_5YR_B25041_with_ann!O263","v":19},{"$f":"[1]ACS_16_5YR_B25041_with_ann!P263","v":17},{"$f":"[1]ACS_16_5YR_B25041_with_ann!Q263","v":12},null,"Acworth"]
["0600000US3301931220",3301931220,"060","Grantham",{"$f":"[1]ACS_16_5YR_B25034_with_ann!D264","v":1745},{"$f":"[1]ACS_16_5YR_B25034_with_ann!E264","v":211},{"$f":"[1]ACS_16_5YR_B25034_with_ann!F264","v":0},{"$f":"[1]ACS_16_5YR_B25034_with_ann!G264","v":11},{"$f":"[1]ACS_16_5YR_B25034_with_ann!H264","v":27},{"$f":"[1]ACS_16_5YR_B25034_with_ann!I264","v":30},{"$f":"[1]ACS_16_5YR_B25034_with_ann!J264","v":263},{"$f":"[1]ACS_16_5YR_B25034_with_ann!K264","v":108},{"$f":"[1]ACS_16_5YR_B25034_with_ann!L264","v":233},{"$f":"[1]ACS_16_5YR_B25034_with_ann!M264","v":131},{"$f":"[1]ACS_16_5YR_B25034_with_ann!N264","v":572},{"$f":"[1]ACS_16_5YR_B25034_with_ann!O264","v":192},{"$f":"[1]ACS_16_5YR_B25034_with_ann!P264","v":470},{"$f":"[1]ACS_16_5YR_B25034_with_ann!Q264","v":163},{"$f":"[1]ACS_16_5YR_B25034_with_ann!R264","v":24},{"$f":"[1]ACS_16_5YR_B25034_with_ann!S264","v":34},{"$f":"[1]ACS_16_5YR_B25034_with_ann!T264","v":31},{"$f":"[1]ACS_16_5YR_B25034_with_ann!U264","v":36},{"$f":"[1]ACS_16_5YR_B25034_with_ann!V264","v":0},{"$f":"[1]ACS_16_5YR_B25034_with_ann!W264","v":11},{"$f":"[1]ACS_16_5YR_B25034_with_ann!X264","v":125},{"$f":"[1]ACS_16_5YR_B25034_with_ann!Y264","v":83},{"$f":"[1]ACS_16_5YR_B25041_with_ann!D264","v":1745},{"$f":"[1]ACS_16_5YR_B25041_with_ann!E264","v":211},{"$f":"[1]ACS_16_5YR_B25041_with_ann!F264","v":0},{"$f":"[1]ACS_16_5YR_B25041_with_ann!G264","v":11},{"$f":"[1]ACS_16_5YR_B25041_with_ann!H264","v":75},{"$f":"[1]ACS_16_5YR_B25041_with_ann!I264","v":78},{"$f":"[1]ACS_16_5YR_B25041_with_ann!J264","v":339},{"$f":"[1]ACS_16_5YR_B25041_with_ann!K264","v":146},{"$f":"[1]ACS_16_5YR_B25041_with_ann!L264","v":1020},{"$f":"[1]ACS_16_5YR_B25041_with_ann!M264","v":233},{"$f":"[1]ACS_16_5YR_B25041_with_ann!N264","v":200},{"$f":"[1]ACS_16_5YR_B25041_with_ann!O264","v":93},{"$f":"[1]ACS_16_5YR_B25041_with_ann!P264","v":111},{"$f":"[1]ACS_16_5YR_B25041_with_ann!Q264","v":98},null,"Acworth"]
["0600000US3301940900",3301940900,"060","Langdon",{"$f":"[1]ACS_16_5YR_B25034_with_ann!D265","v":318},{"$f":"[1]ACS_16_5YR_B25034_with_ann!E265","v":45},{"$f":"[1]ACS_16_5YR_B25034_with_ann!F265","v":3},{"$f":"[1]ACS_16_5YR_B25034_with_ann!G265","v":4},{"$f":"[1]ACS_16_5YR_B25034_with_ann!H265","v":0},{"$f":"[1]ACS_16_5YR_B25034_with_ann!I265","v":11},{"$f":"[1]ACS_16_5YR_B25034_with_ann!J265","v":49},{"$f":"[1]ACS_16_5YR_B25034_with_ann!K265","v":19},{"$f":"[1]ACS_16_5YR_B25034_with_ann!L265","v":44},{"$f":"[1]ACS_16_5YR_B25034_with_ann!M265","v":19},{"$f":"[1]ACS_16_5YR_B25034_with_ann!N265","v":67},{"$f":"[1]ACS_16_5YR_B25034_with_ann!O265","v":23},{"$f":"[1]ACS_16_5YR_B25034_with_ann!P265","v":26},{"$f":"[1]ACS_16_5YR_B25034_with_ann!Q265","v":14},{"$f":"[1]ACS_16_5YR_B25034_with_ann!R265","v":12},{"$f":"[1]ACS_16_5YR_B25034_with_ann!S265","v":10},{"$f":"[1]ACS_16_5YR_B25034_with_ann!T265","v":5},{"$f":"[1]ACS_16_5YR_B25034_with_ann!U265","v":5},{"$f":"[1]ACS_16_5YR_B25034_with_ann!V265","v":10},{"$f":"[1]ACS_16_5YR_B25034_with_ann!W265","v":11},{"$f":"[1]ACS_16_5YR_B25034_with_ann!X265","v":102},{"$f":"[1]ACS_16_5YR_B25034_with_ann!Y265","v":37},{"$f":"[1]ACS_16_5YR_B25041_with_ann!D265","v":318},{"$f":"[1]ACS_16_5YR_B25041_with_ann!E265","v":45},{"$f":"[1]ACS_16_5YR_B25041_with_ann!F265","v":0},{"$f":"[1]ACS_16_5YR_B25041_with_ann!G265","v":11},{"$f":"[1]ACS_16_5YR_B25041_with_ann!H265","v":28},{"$f":"[1]ACS_16_5YR_B25041_with_ann!I265","v":18},{"$f":"[1]ACS_16_5YR_B25041_with_ann!J265","v":94},{"$f":"[1]ACS_16_5YR_B25041_with_ann!K265","v":30},{"$f":"[1]ACS_16_5YR_B25041_with_ann!L265","v":132},{"$f":"[1]ACS_16_5YR_B25041_with_ann!M265","v":35},{"$f":"[1]ACS_16_5YR_B25041_with_ann!N265","v":41},{"$f":"[1]ACS_16_5YR_B25041_with_ann!O265","v":21},{"$f":"[1]ACS_16_5YR_B25041_with_ann!P265","v":23},{"$f":"[1]ACS_16_5YR_B25041_with_ann!Q265","v":16},null,"Acworth"]
["0600000US3301941700",3301941700,"060","Lempster",{"$f":"[1]ACS_16_5YR_B25034_with_ann!D266","v":694},{"$f":"[1]ACS_16_5YR_B25034_with_ann!E266","v":76},{"$f":"[1]ACS_16_5YR_B25034_with_ann!F266","v":0},{"$f":"[1]ACS_16_5YR_B25034_with_ann!G266","v":11},{"$f":"[1]ACS_16_5YR_B25034_with_ann!H266","v":13},{"$f":"[1]ACS_16_5YR_B25034_with_ann!I266","v":16},{"$f":"[1]ACS_16_5YR_B25034_with_ann!J266","v":123},{"$f":"[1]ACS_16_5YR_B25034_with_ann!K266","v":45},{"$f":"[1]ACS_16_5YR_B25034_with_ann!L266","v":66},{"$f":"[1]ACS_16_5YR_B25034_with_ann!M266","v":26},{"$f":"[1]ACS_16_5YR_B25034_with_ann!N266","v":156},{"$f":"[1]ACS_16_5YR_B25034_with_ann!O266","v":47},{"$f":"[1]ACS_16_5YR_B25034_with_ann!P266","v":130},{"$f":"[1]ACS_16_5YR_B25034_with_ann!Q266","v":45},{"$f":"[1]ACS_16_5YR_B25034_with_ann!R266","v":57},{"$f":"[1]ACS_16_5YR_B25034_with_ann!S266","v":33},{"$f":"[1]ACS_16_5YR_B25034_with_ann!T266","v":34},{"$f":"[1]ACS_16_5YR_B25034_with_ann!U266","v":26},{"$f":"[1]ACS_16_5YR_B25034_with_ann!V266","v":0},{"$f":"[1]ACS_16_5YR_B25034_with_ann!W266","v":11},{"$f":"[1]ACS_16_5YR_B25034_with_ann!X266","v":115},{"$f":"[1]ACS_16_5YR_B25034_with_ann!Y266","v":44},{"$f":"[1]ACS_16_5YR_B25041_with_ann!D266","v":694},{"$f":"[1]ACS_16_5YR_B25041_with_ann!E266","v":76},{"$f":"[1]ACS_16_5YR_B25041_with_ann!F266","v":48},{"$f":"[1]ACS_16_5YR_B25041_with_ann!G266","v":22},{"$f":"[1]ACS_16_5YR_B25041_with_ann!H266","v":99},{"$f":"[1]ACS_16_5YR_B25041_with_ann!I266","v":39},{"$f":"[1]ACS_16_5YR_B25041_with_ann!J266","v":199},{"$f":"[1]ACS_16_5YR_B25041_with_ann!K266","v":59},{"$f":"[1]ACS_16_5YR_B25041_with_ann!L266","v":229},{"$f":"[1]ACS_16_5YR_B25041_with_ann!M266","v":62},{"$f":"[1]ACS_16_5YR_B25041_with_ann!N266","v":83},{"$f":"[1]ACS_16_5YR_B25041_with_ann!O266","v":27},{"$f":"[1]ACS_16_5YR_B25041_with_ann!P266","v":36},{"$f":"[1]ACS_16_5YR_B25041_with_ann!Q266","v":19},null,"Acworth"]
["0600000US3301952580",3301952580,"060","Newport",{"$f":"[1]ACS_16_5YR_B25034_with_ann!D267","v":2816},{"$f":"[1]ACS_16_5YR_B25034_with_ann!E267","v":228},{"$f":"[1]ACS_16_5YR_B25034_with_ann!F267","v":12},{"$f":"[1]ACS_16_5YR_B25034_with_ann!G267","v":21},{"$f":"[1]ACS_16_5YR_B25034_with_ann!H267","v":26},{"$f":"[1]ACS_16_5YR_B25034_with_ann!I267","v":28},{"$f":"[1]ACS_16_5YR_B25034_with_ann!J267","v":276},{"$f":"[1]ACS_16_5YR_B25034_with_ann!K267","v":120},{"$f":"[1]ACS_16_5YR_B25034_with_ann!L267","v":208},{"$f":"[1]ACS_16_5YR_B25034_with_ann!M267","v":115},{"$f":"[1]ACS_16_5YR_B25034_with_ann!N267","v":512},{"$f":"[1]ACS_16_5YR_B25034_with_ann!O267","v":149},{"$f":"[1]ACS_16_5YR_B25034_with_ann!P267","v":284},{"$f":"[1]ACS_16_5YR_B25034_with_ann!Q267","v":120},{"$f":"[1]ACS_16_5YR_B25034_with_ann!R267","v":238},{"$f":"[1]ACS_16_5YR_B25034_with_ann!S267","v":122},{"$f":"[1]ACS_16_5YR_B25034_with_ann!T267","v":224},{"$f":"[1]ACS_16_5YR_B25034_with_ann!U267","v":109},{"$f":"[1]ACS_16_5YR_B25034_with_ann!V267","v":229},{"$f":"[1]ACS_16_5YR_B25034_with_ann!W267","v":122},{"$f":"[1]ACS_16_5YR_B25034_with_ann!X267","v":807},{"$f":"[1]ACS_16_5YR_B25034_with_ann!Y267","v":236},{"$f":"[1]ACS_16_5YR_B25041_with_ann!D267","v":2816},{"$f":"[1]ACS_16_5YR_B25041_with_ann!E267","v":228},{"$f":"[1]ACS_16_5YR_B25041_with_ann!F267","v":0},{"$f":"[1]ACS_16_5YR_B25041_with_ann!G267","v":16},{"$f":"[1]ACS_16_5YR_B25041_with_ann!H267","v":310},{"$f":"[1]ACS_16_5YR_B25041_with_ann!I267","v":132},{"$f":"[1]ACS_16_5YR_B25041_with_ann!J267","v":957},{"$f":"[1]ACS_16_5YR_B25041_with_ann!K267","v":230},{"$f":"[1]ACS_16_5YR_B25041_with_ann!L267","v":949},{"$f":"[1]ACS_16_5YR_B25041_with_ann!M267","v":189},{"$f":"[1]ACS_16_5YR_B25041_with_ann!N267","v":416},{"$f":"[1]ACS_16_5YR_B25041_with_ann!O267","v":144},{"$f":"[1]ACS_16_5YR_B25041_with_ann!P267","v":184},{"$f":"[1]ACS_16_5YR_B25041_with_ann!Q267","v":141},null,"Acworth"]
["0600000US3301962340",3301962340,"060","Plainfield",{"$f":"[1]ACS_16_5YR_B25034_with_ann!D268","v":1076},{"$f":"[1]ACS_16_5YR_B25034_with_ann!E268","v":83},{"$f":"[1]ACS_16_5YR_B25034_with_ann!F268","v":0},{"$f":"[1]ACS_16_5YR_B25034_with_ann!G268","v":11},{"$f":"[1]ACS_16_5YR_B25034_with_ann!H268","v":7},{"$f":"[1]ACS_16_5YR_B25034_with_ann!I268","v":10},{"$f":"[1]ACS_16_5YR_B25034_with_ann!J268","v":81},{"$f":"[1]ACS_16_5YR_B25034_with_ann!K268","v":29},{"$f":"[1]ACS_16_5YR_B25034_with_ann!L268","v":129},{"$f":"[1]ACS_16_5YR_B25034_with_ann!M268","v":37},{"$f":"[1]ACS_16_5YR_B25034_with_ann!N268","v":215},{"$f":"[1]ACS_16_5YR_B25034_with_ann!O268","v":58},{"$f":"[1]ACS_16_5YR_B25034_with_ann!P268","v":159},{"$f":"[1]ACS_16_5YR_B25034_with_ann!Q268","v":67},{"$f":"[1]ACS_16_5YR_B25034_with_ann!R268","v":73},{"$f":"[1]ACS_16_5YR_B25034_with_ann!S268","v":44},{"$f":"[1]ACS_16_5YR_B25034_with_ann!T268","v":29},{"$f":"[1]ACS_16_5YR_B25034_with_ann!U268","v":16},{"$f":"[1]ACS_16_5YR_B25034_with_ann!V268","v":13},{"$f":"[1]ACS_16_5YR_B25034_with_ann!W268","v":11},{"$f":"[1]ACS_16_5YR_B25034_with_ann!X268","v":370},{"$f":"[1]ACS_16_5YR_B25034_with_ann!Y268","v":78},{"$f":"[1]ACS_16_5YR_B25041_with_ann!D268","v":1076},{"$f":"[1]ACS_16_5YR_B25041_with_ann!E268","v":83},{"$f":"[1]ACS_16_5YR_B25041_with_ann!F268","v":14},{"$f":"[1]ACS_16_5YR_B25041_with_ann!G268","v":15},{"$f":"[1]ACS_16_5YR_B25041_with_ann!H268","v":63},{"$f":"[1]ACS_16_5YR_B25041_with_ann!I268","v":41},{"$f":"[1]ACS_16_5YR_B25041_with_ann!J268","v":221},{"$f":"[1]ACS_16_5YR_B25041_with_ann!K268","v":67},{"$f":"[1]ACS_16_5YR_B25041_with_ann!L268","v":527},{"$f":"[1]ACS_16_5YR_B25041_with_ann!M268","v":84},{"$f":"[1]ACS_16_5YR_B25041_with_ann!N268","v":182},{"$f":"[1]ACS_16_5YR_B25041_with_ann!O268","v":53},{"$f":"[1]ACS_16_5YR_B25041_with_ann!P268","v":69},{"$f":"[1]ACS_16_5YR_B25041_with_ann!Q268","v":39},null,"Acworth"]
["0600000US3301972740",3301972740,"060","Springfield",{"$f":"[1]ACS_16_5YR_B25034_with_ann!D269","v":719},{"$f":"[1]ACS_16_5YR_B25034_with_ann!E269","v":93},{"$f":"[1]ACS_16_5YR_B25034_with_ann!F269","v":6},{"$f":"[1]ACS_16_5YR_B25034_with_ann!G269","v":7},{"$f":"[1]ACS_16_5YR_B25034_with_ann!H269","v":12},{"$f":"[1]ACS_16_5YR_B25034_with_ann!I269","v":15},{"$f":"[1]ACS_16_5YR_B25034_with_ann!J269","v":178},{"$f":"[1]ACS_16_5YR_B25034_with_ann!K269","v":63},{"$f":"[1]ACS_16_5YR_B25034_with_ann!L269","v":96},{"$f":"[1]ACS_16_5YR_B25034_with_ann!M269","v":44},{"$f":"[1]ACS_16_5YR_B25034_with_ann!N269","v":104},{"$f":"[1]ACS_16_5YR_B25034_with_ann!O269","v":41},{"$f":"[1]ACS_16_5YR_B25034_with_ann!P269","v":92},{"$f":"[1]ACS_16_5YR_B25034_with_ann!Q269","v":47},{"$f":"[1]ACS_16_5YR_B25034_with_ann!R269","v":74},{"$f":"[1]ACS_16_5YR_B25034_with_ann!S269","v":34},{"$f":"[1]ACS_16_5YR_B25034_with_ann!T269","v":34},{"$f":"[1]ACS_16_5YR_B25034_with_ann!U269","v":25},{"$f":"[1]ACS_16_5YR_B25034_with_ann!V269","v":0},{"$f":"[1]ACS_16_5YR_B25034_with_ann!W269","v":11},{"$f":"[1]ACS_16_5YR_B25034_with_ann!X269","v":123},{"$f":"[1]ACS_16_5YR_B25034_with_ann!Y269","v":51},{"$f":"[1]ACS_16_5YR_B25041_with_ann!D269","v":719},{"$f":"[1]ACS_16_5YR_B25041_with_ann!E269","v":93},{"$f":"[1]ACS_16_5YR_B25041_with_ann!F269","v":18},{"$f":"[1]ACS_16_5YR_B25041_with_ann!G269","v":21},{"$f":"[1]ACS_16_5YR_B25041_with_ann!H269","v":36},{"$f":"[1]ACS_16_5YR_B25041_with_ann!I269","v":28},{"$f":"[1]ACS_16_5YR_B25041_with_ann!J269","v":225},{"$f":"[1]ACS_16_5YR_B25041_with_ann!K269","v":57},{"$f":"[1]ACS_16_5YR_B25041_with_ann!L269","v":322},{"$f":"[1]ACS_16_5YR_B25041_with_ann!M269","v":68},{"$f":"[1]ACS_16_5YR_B25041_with_ann!N269","v":112},{"$f":"[1]ACS_16_5YR_B25041_with_ann!O269","v":52},{"$f":"[1]ACS_16_5YR_B25041_with_ann!P269","v":6},{"$f":"[1]ACS_16_5YR_B25041_with_ann!Q269","v":7},null,"Acworth"]
["0600000US3301975060",3301975060,"060","Sunapee",{"$f":"[1]ACS_16_5YR_B25034_with_ann!D270","v":2592},{"$f":"[1]ACS_16_5YR_B25034_with_ann!E270","v":180},{"$f":"[1]ACS_16_5YR_B25034_with_ann!F270","v":27},{"$f":"[1]ACS_16_5YR_B25034_with_ann!G270","v":27},{"$f":"[1]ACS_16_5YR_B25034_with_ann!H270","v":76},{"$f":"[1]ACS_16_5YR_B25034_with_ann!I270","v":63},{"$f":"[1]ACS_16_5YR_B25034_with_ann!J270","v":470},{"$f":"[1]ACS_16_5YR_B25034_with_ann!K270","v":150},{"$f":"[1]ACS_16_5YR_B25034_with_ann!L270","v":381},{"$f":"[1]ACS_16_5YR_B25034_with_ann!M270","v":140},{"$f":"[1]ACS_16_5YR_B25034_with_ann!N270","v":337},{"$f":"[1]ACS_16_5YR_B25034_with_ann!O270","v":129},{"$f":"[1]ACS_16_5YR_B25034_with_ann!P270","v":478},{"$f":"[1]ACS_16_5YR_B25034_with_ann!Q270","v":139},{"$f":"[1]ACS_16_5YR_B25034_with_ann!R270","v":177},{"$f":"[1]ACS_16_5YR_B25034_with_ann!S270","v":94},{"$f":"[1]ACS_16_5YR_B25034_with_ann!T270","v":108},{"$f":"[1]ACS_16_5YR_B25034_with_ann!U270","v":76},{"$f":"[1]ACS_16_5YR_B25034_with_ann!V270","v":14},{"$f":"[1]ACS_16_5YR_B25034_with_ann!W270","v":24},{"$f":"[1]ACS_16_5YR_B25034_with_ann!X270","v":524},{"$f":"[1]ACS_16_5YR_B25034_with_ann!Y270","v":187},{"$f":"[1]ACS_16_5YR_B25041_with_ann!D270","v":2592},{"$f":"[1]ACS_16_5YR_B25041_with_ann!E270","v":180},{"$f":"[1]ACS_16_5YR_B25041_with_ann!F270","v":61},{"$f":"[1]ACS_16_5YR_B25041_with_ann!G270","v":66},{"$f":"[1]ACS_16_5YR_B25041_with_ann!H270","v":209},{"$f":"[1]ACS_16_5YR_B25041_with_ann!I270","v":100},{"$f":"[1]ACS_16_5YR_B25041_with_ann!J270","v":503},{"$f":"[1]ACS_16_5YR_B25041_with_ann!K270","v":161},{"$f":"[1]ACS_16_5YR_B25041_with_ann!L270","v":1076},{"$f":"[1]ACS_16_5YR_B25041_with_ann!M270","v":198},{"$f":"[1]ACS_16_5YR_B25041_with_ann!N270","v":631},{"$f":"[1]ACS_16_5YR_B25041_with_ann!O270","v":169},{"$f":"[1]ACS_16_5YR_B25041_with_ann!P270","v":112},{"$f":"[1]ACS_16_5YR_B25041_with_ann!Q270","v":64},null,"Acworth"]
["0600000US3301977940",3301977940,"060","Unity",{"$f":"[1]ACS_16_5YR_B25034_with_ann!D271","v":726},{"$f":"[1]ACS_16_5YR_B25034_with_ann!E271","v":60},{"$f":"[1]ACS_16_5YR_B25034_with_ann!F271","v":9},{"$f":"[1]ACS_16_5YR_B25034_with_ann!G271","v":9},{"$f":"[1]ACS_16_5YR_B25034_with_ann!H271","v":17},{"$f":"[1]ACS_16_5YR_B25034_with_ann!I271","v":16},{"$f":"[1]ACS_16_5YR_B25034_with_ann!J271","v":156},{"$f":"[1]ACS_16_5YR_B25034_with_ann!K271","v":40},{"$f":"[1]ACS_16_5YR_B25034_with_ann!L271","v":99},{"$f":"[1]ACS_16_5YR_B25034_with_ann!M271","v":34},{"$f":"[1]ACS_16_5YR_B25034_with_ann!N271","v":109},{"$f":"[1]ACS_16_5YR_B25034_with_ann!O271","v":35},{"$f":"[1]ACS_16_5YR_B25034_with_ann!P271","v":120},{"$f":"[1]ACS_16_5YR_B25034_with_ann!Q271","v":34},{"$f":"[1]ACS_16_5YR_B25034_with_ann!R271","v":44},{"$f":"[1]ACS_16_5YR_B25034_with_ann!S271","v":25},{"$f":"[1]ACS_16_5YR_B25034_with_ann!T271","v":56},{"$f":"[1]ACS_16_5YR_B25034_with_ann!U271","v":27},{"$f":"[1]ACS_16_5YR_B25034_with_ann!V271","v":30},{"$f":"[1]ACS_16_5YR_B25034_with_ann!W271","v":26},{"$f":"[1]ACS_16_5YR_B25034_with_ann!X271","v":86},{"$f":"[1]ACS_16_5YR_B25034_with_ann!Y271","v":36},{"$f":"[1]ACS_16_5YR_B25041_with_ann!D271","v":726},{"$f":"[1]ACS_16_5YR_B25041_with_ann!E271","v":60},{"$f":"[1]ACS_16_5YR_B25041_with_ann!F271","v":21},{"$f":"[1]ACS_16_5YR_B25041_with_ann!G271","v":16},{"$f":"[1]ACS_16_5YR_B25041_with_ann!H271","v":32},{"$f":"[1]ACS_16_5YR_B25041_with_ann!I271","v":21},{"$f":"[1]ACS_16_5YR_B25041_with_ann!J271","v":291},{"$f":"[1]ACS_16_5YR_B25041_with_ann!K271","v":58},{"$f":"[1]ACS_16_5YR_B25041_with_ann!L271","v":308},{"$f":"[1]ACS_16_5YR_B25041_with_ann!M271","v":51},{"$f":"[1]ACS_16_5YR_B25041_with_ann!N271","v":74},{"$f":"[1]ACS_16_5YR_B25041_with_ann!O271","v":31},{"$f":"[1]ACS_16_5YR_B25041_with_ann!P271","v":0},{"$f":"[1]ACS_16_5YR_B25041_with_ann!Q271","v":11},null,"Acworth"]
["0600000US3301978980",3301978980,"060","Washington",{"$f":"[1]ACS_16_5YR_B25034_with_ann!D272","v":1160},{"$f":"[1]ACS_16_5YR_B25034_with_ann!E272","v":88},{"$f":"[1]ACS_16_5YR_B25034_with_ann!F272","v":6},{"$f":"[1]ACS_16_5YR_B25034_with_ann!G272","v":14},{"$f":"[1]ACS_16_5YR_B25034_with_ann!H272","v":82},{"$f":"[1]ACS_16_5YR_B25034_with_ann!I272","v":65},{"$f":"[1]ACS_16_5YR_B25034_with_ann!J272","v":183},{"$f":"[1]ACS_16_5YR_B25034_with_ann!K272","v":43},{"$f":"[1]ACS_16_5YR_B25034_with_ann!L272","v":55},{"$f":"[1]ACS_16_5YR_B25034_with_ann!M272","v":29},{"$f":"[1]ACS_16_5YR_B25034_with_ann!N272","v":285},{"$f":"[1]ACS_16_5YR_B25034_with_ann!O272","v":63},{"$f":"[1]ACS_16_5YR_B25034_with_ann!P272","v":183},{"$f":"[1]ACS_16_5YR_B25034_with_ann!Q272","v":52},{"$f":"[1]ACS_16_5YR_B25034_with_ann!R272","v":105},{"$f":"[1]ACS_16_5YR_B25034_with_ann!S272","v":41},{"$f":"[1]ACS_16_5YR_B25034_with_ann!T272","v":94},{"$f":"[1]ACS_16_5YR_B25034_with_ann!U272","v":45},{"$f":"[1]ACS_16_5YR_B25034_with_ann!V272","v":17},{"$f":"[1]ACS_16_5YR_B25034_with_ann!W272","v":16},{"$f":"[1]ACS_16_5YR_B25034_with_ann!X272","v":150},{"$f":"[1]ACS_16_5YR_B25034_with_ann!Y272","v":50},{"$f":"[1]ACS_16_5YR_B25041_with_ann!D272","v":1160},{"$f":"[1]ACS_16_5YR_B25041_with_ann!E272","v":88},{"$f":"[1]ACS_16_5YR_B25041_with_ann!F272","v":33},{"$f":"[1]ACS_16_5YR_B25041_with_ann!G272","v":24},{"$f":"[1]ACS_16_5YR_B25041_with_ann!H272","v":93},{"$f":"[1]ACS_16_5YR_B25041_with_ann!I272","v":36},{"$f":"[1]ACS_16_5YR_B25041_with_ann!J272","v":416},{"$f":"[1]ACS_16_5YR_B25041_with_ann!K272","v":88},{"$f":"[1]ACS_16_5YR_B25041_with_ann!L272","v":463},{"$f":"[1]ACS_16_5YR_B25041_with_ann!M272","v":81},{"$f":"[1]ACS_16_5YR_B25041_with_ann!N272","v":140},{"$f":"[1]ACS_16_5YR_B25041_with_ann!O272","v":48},{"$f":"[1]ACS_16_5YR_B25041_with_ann!P272","v":15},{"$f":"[1]ACS_16_5YR_B25041_with_ann!Q272","v":14},null,"Acworth"]
[]
[null,null,null,null,{"$f":"$D$3","v":"Acworth"},null,{"$f":"$D$4","v":"Charlestown"},null,{"$f":"$D$5","v":"Claremont"},null,{"$f":"$D$6","v":"Cornish"},null,{"$f":"$D$7","v":"Croydon"},null,{"$f":"$D$8","v":"Goshen"},null,{"$f":"$D$9","v":"Grantham"},null,{"$f":"$D$10","v":"Langdon"},null,{"$f":"$D$11","v":"Lempster"},null,{"$f":"$D$12","v":"Newport"},null,{"$f":"$D$13","v":"Plainfield"},null,{"$f":"$D$14","v":"Springfield"},null,{"$f":"$D$15","v":"Sunapee"},null,{"$f":"$D$16","v":"Unity"},null,{"$f":"$D$17","v":"Washington"}]
["B25034. YEAR STRUCTURE BUILT",null,null,null,"Estimate","Margin Of Error","Estimate","Margin Of Error","Estimate","Margin Of Error","Estimate","Margin Of Error","Estimate","Margin Of Error","Estimate","Margin Of Error","Estimate","Margin Of Error","Estimate","Margin Of Error","Estimate","Margin Of Error","Estimate","Margin Of Error","Estimate","Margin Of Error","Estimate","Margin Of Error","Estimate","Margin Of Error",null,"Estimate","Margin Of Error"]
[null,null,null,"Estimate Total:",587,53,2354,203,6129,297,837,83,464,75,435,52,1745,211,318,45,694,76,2816,228,1076,83,719,93,2592,180,726,60,1160,88]
[null,null,null,"Estimate Total: Built 2014 or later",17,12,63,69,0,18,3,5,9,12,3,5,0,11,3,4,0,11,12,21,0,11,6,7,27,27,9,9,6,14]
[null,null,null,"Estimate Total: Built 2010 to 2013",21,16,0,16,40,52,16,17,0,11,2,3,27,30,0,11,13,16,26,28,7,10,12,15,76,63,17,16,82,65]
[null,null,null,"Estimate Total: Built 2000 to 2009",51,23,48,47,189,86,101,30,70,26,49,21,263,108,49,19,123,45,276,120,81,29,178,63,470,150,156,40,183,43]
[null,null,null,"Estimate Total: Built 1990 to 1999",54,19,170,89,123,66,107,35,79,32,37,21,233,131,44,19,66,26,208,115,129,37,96,44,381,140,99,34,55,29]
[null,null,null,"Estimate Total: Built 1980 to 1989",86,30,511,164,587,173,146,45,89,34,75,26,572,192,67,23,156,47,512,149,215,58,104,41,337,129,109,35,285,63]
[null,null,null,"Estimate Total: Built 1970 to 1979",75,29,470,171,774,182,93,38,56,37,83,32,470,163,26,14,130,45,284,120,159,67,92,47,478,139,120,34,183,52]
[null,null,null,"Estimate Total: Built 1960 to 1969",35,18,276,145,591,162,31,21,16,13,19,15,24,34,12,10,57,33,238,122,73,44,74,34,177,94,44,25,105,41]
[null,null,null,"Estimate Total: Built 1950 to 1959",64,25,184,112,629,152,50,27,32,22,48,22,31,36,5,5,34,26,224,109,29,16,34,25,108,76,56,27,94,45]
[null,null,null,"Estimate Total: Built 1940 to 1949",14,15,77,66,519,130,14,9,3,4,14,13,0,11,10,11,0,11,229,122,13,11,0,11,14,24,30,26,17,16]
[null,null,null,"Estimate Total: Built 1939 or earlier",170,35,555,165,2677,281,276,60,110,38,105,33,125,83,102,37,115,44,807,236,370,78,123,51,524,187,86,36,150,50]
[]
["B25041. BEDROOMS ",null,null,"Estimate Total:",587,53,2354,203,6129,297,837,83,464,75,435,52,1745,211,318,45,694,76,2816,228,1076,83,719,93,2592,180,726,60,1160,88]
[null,null,null,"Estimate Total: No bedroom",24,16,91,86,60,58,3,5,0,11,18,16,0,11,0,11,48,22,0,16,14,15,18,21,61,66,21,16,33,24]
[null,null,null,"Estimate Total: 1 bedroom",64,23,182,100,1152,231,64,36,46,25,54,29,75,78,28,18,99,39,310,132,63,41,36,28,209,100,32,21,93,36]
[null,null,null,"Estimate Total: 2 bedrooms",160,37,1020,242,1955,285,183,49,137,50,140,44,339,146,94,30,199,59,957,230,221,67,225,57,503,161,291,58,416,88]
[null,null,null,"Estimate Total: 3 bedrooms",235,46,717,189,2024,300,365,62,201,47,165,40,1020,233,132,35,229,62,949,189,527,84,322,68,1076,198,308,51,463,81]
[null,null,null,"Estimate Total: 4 bedrooms",58,22,180,105,757,187,198,55,58,33,41,19,200,93,41,21,83,27,416,144,182,53,112,52,631,169,74,31,140,48]
[null,null,null,"Estimate Total: 5 or more bedrooms",46,21,164,93,181,101,24,13,22,14,17,12,111,98,23,16,36,19,184,141,69,39,6,7,112,64,0,11,15,14]

{"sheet":"SData_B25063_B25064_OccRentGR","index":90,"n_rows":49,"n_cols":60,"rows_kept":49,"cut":false,"hidden":true,"merged":[]}
["GEO_ID","GEO_ID2","SUMLEVEL","GEO_NAME","B25063_1_EST","B25063_1_MOE","B25063_2_EST","B25063_2_MOE","B25063_3_EST","B25063_3_MOE","B25063_4_EST","B25063_4_MOE","B25063_5_EST","B25063_5_MOE","B25063_6_EST","B25063_6_MOE","B25063_7_EST","B25063_7_MOE","B25063_8_EST","B25063_8_MOE","B25063_9_EST","B25063_9_MOE","B25063_10_EST","B25063_10_MOE","B25063_11_EST","B25063_11_MOE","B25063_12_EST","B25063_12_MOE","B25063_13_EST","B25063_13_MOE","B25063_14_EST","B25063_14_MOE","B25063_15_EST","B25063_15_MOE","B25063_16_EST","B25063_16_MOE","B25063_17_EST","B25063_17_MOE","B25063_18_EST","B25063_18_MOE","B25063_19_EST","B25063_19_MOE","B25063_20_EST","B25063_20_MOE","B25063_21_EST","B25063_21_MOE","B25063_22_EST","B25063_22_MOE","B25063_23_EST","B25063_23_MOE","B25063_24_EST","B25063_24_MOE","B25063_25_EST","B25063_25_MOE","B25063_26_EST","B25063_26_MOE","B25063_27_EST","B25063_27_MOE","B25064_1_EST","B25064_1_MOE"]
["Geography Identifier","Geography Identifier","Geographic Summary Level","Geography",{"$f":"[1]ACS_16_5YR_B25063_with_ann!D$2","v":"Estimate Total:"},{"$f":"[1]ACS_16_5YR_B25063_with_ann!E$2","v":"Margin of Error Total:"},{"$f":"[1]ACS_16_5YR_B25063_with_ann!F$2","v":"Estimate Total: With cash rent:"},{"$f":"[1]ACS_16_5YR_B25063_with_ann!G$2","v":"Margin of Error Total: With cash rent:"},{"$f":"[1]ACS_16_5YR_B25063_with_ann!H$2","v":"Estimate Total: With cash rent: Less than $100"},{"$f":"[1]ACS_16_5YR_B25063_with_ann!I$2","v":"Margin of Error Total: With cash rent: Less than $100"},{"$f":"[1]ACS_16_5YR_B25063_with_ann!J$2","v":"Estimate Total: With cash rent: $100 to $149"},{"$f":"[1]ACS_16_5YR_B25063_with_ann!K$2","v":"Margin of Error Total: With cash rent: $100 to $149"},{"$f":"[1]ACS_16_5YR_B25063_with_ann!L$2","v":"Estimate Total: With cash rent: $150 to $199"},{"$f":"[1]ACS_16_5YR_B25063_with_ann!M$2","v":"Margin of Error Total: With cash rent: $150 to $199"},{"$f":"[1]ACS_16_5YR_B25063_with_ann!N$2","v":"Estimate Total: With cash rent: $200 to $249"},{"$f":"[1]ACS_16_5YR_B25063_with_ann!O$2","v":"Margin of Error Total: With cash rent: $200 to $249"},{"$f":"[1]ACS_16_5YR_B25063_with_ann!P$2","v":"Estimate Total: With cash rent: $250 to $299"},{"$f":"[1]ACS_16_5YR_B25063_with_ann!Q$2","v":"Margin of Error Total: With cash rent: $250 to $299"},{"$f":"[1]ACS_16_5YR_B25063_with_ann!R$2","v":"Estimate Total: With cash rent: $300 to $349"},{"$f":"[1]ACS_16_5YR_B25063_with_ann!S$2","v":"Margin of Error Total: With cash rent: $300 to $349"},{"$f":"[1]ACS_16_5YR_B25063_with_ann!T$2","v":"Estimate Total: With cash rent: $350 to $399"},{"$f":"[1]ACS_16_5YR_B25063_with_ann!U$2","v":"Margin of Error Total: With cash rent: $350 to $399"},{"$f":"[1]ACS_16_5YR_B25063_with_ann!V$2","v":"Estimate Total: With cash rent: $400 to $449"},{"$f":"[1]ACS_16_5YR_B25063_with_ann!W$2","v":"Margin of Error Total: With cash rent: $400 to $449"},{"$f":"[1]ACS_16_5YR_B25063_with_ann!X$2","v":"Estimate Total: With cash rent: $450 to $499"},{"$f":"[1]ACS_16_5YR_B25063_with_ann!Y$2","v":"Margin of Error Total: With cash rent: $450 to $499"},{"$f":"[1]ACS_16_5YR_B25063_with_ann!Z$2","v":"Estimate Total: With cash rent: $500 to $549"},{"$f":"[1]ACS_16_5YR_B25063_with_ann!AA$2","v":"Margin of Error Total: With cash rent: $500 to $549"},{"$f":"[1]ACS_16_5YR_B25063_with_ann!AB$2","v":"Estimate Total: With cash rent: $550 to $599"},{"$f":"[1]ACS_16_5YR_B25063_with_ann!AC$2","v":"Margin of Error Total: With cash rent: $550 to $599"},{"$f":"[1]ACS_16_5YR_B25063_with_ann!AD$2","v":"Estimate Total: With cash rent: $600 to $649"},{"$f":"[1]ACS_16_5YR_B25063_with_ann!AE$2","v":"Margin of Error Total: With cash rent: $600 to $649"},{"$f":"[1]ACS_16_5YR_B25063_with_ann!AF$2","v":"Estimate Total: With cash rent: $650 to $699"},{"$f":"[1]ACS_16_5YR_B25063_with_ann!AG$2","v":"Margin of Error Total: With cash rent: $650 to $699"},{"$f":"[1]ACS_16_5YR_B25063_with_ann!AH$2","v":"Estimate Total: With cash rent: $700 to $749"},{"$f":"[1]ACS_16_5YR_B25063_with_ann!AI$2","v":"Margin of Error Total: With cash rent: $700 to $749"},{"$f":"[1]ACS_16_5YR_B25063_with_ann!AJ$2","v":"Estimate Total: With cash rent: $750 to $799"},{"$f":"[1]ACS_16_5YR_B25063_with_ann!AK$2","v":"Margin of Error Total: With cash rent: $750 to $799"},{"$f":"[1]ACS_16_5YR_B25063_with_ann!AL$2","v":"Estimate Total: With cash rent: $800 to $899"},{"$f":"[1]ACS_16_5YR_B25063_with_ann!AM$2","v":"Margin of Error Total: With cash rent: $800 to $899"},{"$f":"[1]ACS_16_5YR_B25063_with_ann!AN$2","v":"Estimate Total: With cash rent: $900 to $999"},{"$f":"[1]ACS_16_5YR_B25063_with_ann!AO$2","v":"Margin of Error Total: With cash rent: $900 to $999"},{"$f":"[1]ACS_16_5YR_B25063_with_ann!AP$2","v":"Estimate Total: With cash rent: $1000 to $1249"},{"$f":"[1]ACS_16_5YR_B25063_with_ann!AQ$2","v":"Margin of Error Total: With cash rent: $1000 to $1249"},{"$f":"[1]ACS_16_5YR_B25063_with_ann!AR$2","v":"Estimate Total: With cash rent: $1250 to $1499"},{"$f":"[1]ACS_16_5YR_B25063_with_ann!AS$2","v":"Margin of Error Total: With cash rent:$1250 to $1499"},{"$f":"[1]ACS_16_5YR_B25063_with_ann!AT$2","v":"Estimate Total: With cash rent: $1500 to $1999"},{"$f":"[1]ACS_16_5YR_B25063_with_ann!AU$2","v":"Margin of Error Total: With cash rent: $1500 to $1999"},{"$f":"[1]ACS_16_5YR_B25063_with_ann!AV$2","v":"Estimate Total: With cash rent: $2,000 to $2,499"},{"$f":"[1]ACS_16_5YR_B25063_with_ann!AW$2","v":"Margin of Error Total: With cash rent: $2,000 to $2,499"},{"$f":"[1]ACS_16_5YR_B25063_with_ann!AX$2","v":"Estimate Total: With cash rent: $2,500 to $2,999"},{"$f":"[1]ACS_16_5YR_B25063_with_ann!AY$2","v":"Margin of Error Total: With cash rent: $2,500 to $2,999"},{"$f":"[1]ACS_16_5YR_B25063_with_ann!AZ$2","v":"Estimate Total: With cash rent: $3,000 to $3,499"},{"$f":"[1]ACS_16_5YR_B25063_with_ann!BA$2","v":"Margin of Error Total: With cash rent: $3,000 to $3,499"},{"$f":"[1]ACS_16_5YR_B25063_with_ann!BB$2","v":"Estimate Total: With cash rent: $3,500 or more"},{"$f":"[1]ACS_16_5YR_B25063_with_ann!BC$2","v":"Margin of Error Total: With cash rent: $3,500 or more"},{"$f":"[1]ACS_16_5YR_B25063_with_ann!BD$2","v":"Estimate Total: No cash rent"},{"$f":"[1]ACS_16_5YR_B25063_with_ann!BE$2","v":"Margin of Error Total: No cash rent"},{"$f":"[1]ACS_16_5YR_B25064_with_ann!D2","v":"Estimate Median gross rent"},{"$f":"[1]ACS_16_5YR_B25064_with_ann!E2","v":"Margin of Error Median gross rent"}]
["0600000US3301900259",3301900259,"060","Acworth",{"$f":"[1]ACS_16_5YR_B25063_with_ann!D258","v":30},{"$f":"[1]ACS_16_5YR_B25063_with_ann!E258","v":16},{"$f":"[1]ACS_16_5YR_B25063_with_ann!F258","v":28},{"$f":"[1]ACS_16_5YR_B25063_with_ann!G258","v":16},{"$f":"[1]ACS_16_5YR_B25063_with_ann!H258","v":0},{"$f":"[1]ACS_16_5YR_B25063_with_ann!I258","v":11},{"$f":"[1]ACS_16_5YR_B25063_with_ann!J258","v":0},{"$f":"[1]ACS_16_5YR_B25063_with_ann!K258","v":11},{"$f":"[1]ACS_16_5YR_B25063_with_ann!L258","v":0},{"$f":"[1]ACS_16_5YR_B25063_with_ann!M258","v":11},{"$f":"[1]ACS_16_5YR_B25063_with_ann!N258","v":0},{"$f":"[1]ACS_16_5YR_B25063_with_ann!O258","v":11},{"$f":"[1]ACS_16_5YR_B25063_with_ann!P258","v":0},{"$f":"[1]ACS_16_5YR_B25063_with_ann!Q258","v":11},{"$f":"[1]ACS_16_5YR_B25063_with_ann!R258","v":0},{"$f":"[1]ACS_16_5YR_B25063_with_ann!S258","v":11},{"$f":"[1]ACS_16_5YR_B25063_with_ann!T258","v":0},{"$f":"[1]ACS_16_5YR_B25063_with_ann!U258","v":11},{"$f":"[1]ACS_16_5YR_B25063_with_ann!V258","v":0},{"$f":"[1]ACS_16_5YR_B25063_with_ann!W258","v":11},{"$f":"[1]ACS_16_5YR_B25063_with_ann!X258","v":0},{"$f":"[1]ACS_16_5YR_B25063_with_ann!Y258","v":11},{"$f":"[1]ACS_16_5YR_B25063_with_ann!Z258","v":0},{"$f":"[1]ACS_16_5YR_B25063_with_ann!AA258","v":11},{"$f":"[1]ACS_16_5YR_B25063_with_ann!AB258","v":0},{"$f":"[1]ACS_16_5YR_B25063_with_ann!AC258","v":11},{"$f":"[1]ACS_16_5YR_B25063_with_ann!AD258","v":0},{"$f":"[1]ACS_16_5YR_B25063_with_ann!AE258","v":11},{"$f":"[1]ACS_16_5YR_B25063_with_ann!AF258","v":0},{"$f":"[1]ACS_16_5YR_B25063_with_ann!AG258","v":11},{"$f":"[1]ACS_16_5YR_B25063_with_ann!AH258","v":0},{"$f":"[1]ACS_16_5YR_B25063_with_ann!AI258","v":11},{"$f":"[1]ACS_16_5YR_B25063_with_ann!AJ258","v":0},{"$f":"[1]ACS_16_5YR_B25063_with_ann!AK258","v":11},{"$f":"[1]ACS_16_5YR_B25063_with_ann!AL258","v":0},{"$f":"[1]ACS_16_5YR_B25063_with_ann!AM258","v":11},{"$f":"[1]ACS_16_5YR_B25063_with_ann!AN258","v":8},{"$f":"[1]ACS_16_5YR_B25063_with_ann!AO258","v":10},{"$f":"[1]ACS_16_5YR_B25063_with_ann!AP258","v":8},{"$f":"[1]ACS_16_5YR_B25063_with_ann!AQ258","v":9},{"$f":"[1]ACS_16_5YR_B25063_with_ann!AR258","v":3},{"$f":"[1]ACS_16_5YR_B25063_with_ann!AS258","v":4},{"$f":"[1]ACS_16_5YR_B25063_with_ann!AT258","v":9},{"$f":"[1]ACS_16_5YR_B25063_with_ann!AU258","v":8},{"$f":"[1]ACS_16_5YR_B25063_with_ann!AV258","v":0},{"$f":"[1]ACS_16_5YR_B25063_with_ann!AW258","v":11},{"$f":"[1]ACS_16_5YR_B25063_with_ann!AX258","v":0},{"$f":"[1]ACS_16_5YR_B25063_with_ann!AY258","v":11},{"$f":"[1]ACS_16_5YR_B25063_with_ann!AZ258","v":0},{"$f":"[1]ACS_16_5YR_B25063_with_ann!BA258","v":11},{"$f":"[1]ACS_16_5YR_B25063_with_ann!BB258","v":0},{"$f":"[1]ACS_16_5YR_B25063_with_ann!BC258","v":11},{"$f":"[1]ACS_16_5YR_B25063_with_ann!BD258","v":2},{"$f":"[1]ACS_16_5YR_B25063_with_ann!BE258","v":3},{"$f":"[1]ACS_16_5YR_B25064_with_ann!D258","v":1188},{"$f":"[1]ACS_16_5YR_B25064_with_ann!E258","v":295}]
["0600000US3301911380",3301911380,"060","Charlestown",{"$f":"[1]ACS_16_5YR_B25063_with_ann!D259","v":502},{"$f":"[1]ACS_16_5YR_B25063_with_ann!E259","v":134},{"$f":"[1]ACS_16_5YR_B25063_with_ann!F259","v":471},{"$f":"[1]ACS_16_5YR_B25063_with_ann!G259","v":144},{"$f":"[1]ACS_16_5YR_B25063_with_ann!H259","v":0},{"$f":"[1]ACS_16_5YR_B25063_with_ann!I259","v":16},{"$f":"[1]ACS_16_5YR_B25063_with_ann!J259","v":0},{"$f":"[1]ACS_16_5YR_B25063_with_ann!K259","v":16},{"$f":"[1]ACS_16_5YR_B25063_with_ann!L259","v":0},{"$f":"[1]ACS_16_5YR_B25063_with_ann!M259","v":16},{"$f":"[1]ACS_16_5YR_B25063_with_ann!N259","v":14},{"$f":"[1]ACS_16_5YR_B25063_with_ann!O259","v":23},{"$f":"[1]ACS_16_5YR_B25063_with_ann!P259","v":0},{"$f":"[1]ACS_16_5YR_B25063_with_ann!Q259","v":16},{"$f":"[1]ACS_16_5YR_B25063_with_ann!R259","v":0},{"$f":"[1]ACS_16_5YR_B25063_with_ann!S259","v":16},{"$f":"[1]ACS_16_5YR_B25063_with_ann!T259","v":0},{"$f":"[1]ACS_16_5YR_B25063_with_ann!U259","v":16},{"$f":"[1]ACS_16_5YR_B25063_with_ann!V259","v":33},{"$f":"[1]ACS_16_5YR_B25063_with_ann!W259","v":37},{"$f":"[1]ACS_16_5YR_B25063_with_ann!X259","v":8},{"$f":"[1]ACS_16_5YR_B25063_with_ann!Y259","v":15},{"$f":"[1]ACS_16_5YR_B25063_with_ann!Z259","v":0},{"$f":"[1]ACS_16_5YR_B25063_with_ann!AA259","v":16},{"$f":"[1]ACS_16_5YR_B25063_with_ann!AB259","v":14},{"$f":"[1]ACS_16_5YR_B25063_with_ann!AC259","v":23},{"$f":"[1]ACS_16_5YR_B25063_with_ann!AD259","v":21},{"$f":"[1]ACS_16_5YR_B25063_with_ann!AE259","v":26},{"$f":"[1]ACS_16_5YR_B25063_with_ann!AF259","v":17},{"$f":"[1]ACS_16_5YR_B25063_with_ann!AG259","v":27},{"$f":"[1]ACS_16_5YR_B25063_with_ann!AH259","v":0},{"$f":"[1]ACS_16_5YR_B25063_with_ann!AI259","v":16},{"$f":"[1]ACS_16_5YR_B25063_with_ann!AJ259","v":85},{"$f":"[1]ACS_16_5YR_B25063_with_ann!AK259","v":92},{"$f":"[1]ACS_16_5YR_B25063_with_ann!AL259","v":0},{"$f":"[1]ACS_16_5YR_B25063_with_ann!AM259","v":16},{"$f":"[1]ACS_16_5YR_B25063_with_ann!AN259","v":66},{"$f":"[1]ACS_16_5YR_B25063_with_ann!AO259","v":59},{"$f":"[1]ACS_16_5YR_B25063_with_ann!AP259","v":93},{"$f":"[1]ACS_16_5YR_B25063_with_ann!AQ259","v":78},{"$f":"[1]ACS_16_5YR_B25063_with_ann!AR259","v":120},{"$f":"[1]ACS_16_5YR_B25063_with_ann!AS259","v":96},{"$f":"[1]ACS_16_5YR_B25063_with_ann!AT259","v":0},{"$f":"[1]ACS_16_5YR_B25063_with_ann!AU259","v":16},{"$f":"[1]ACS_16_5YR_B25063_with_ann!AV259","v":0},{"$f":"[1]ACS_16_5YR_B25063_with_ann!AW259","v":16},{"$f":"[1]ACS_16_5YR_B25063_with_ann!AX259","v":0},{"$f":"[1]ACS_16_5YR_B25063_with_ann!AY259","v":16},{"$f":"[1]ACS_16_5YR_B25063_with_ann!AZ259","v":0},{"$f":"[1]ACS_16_5YR_B25063_with_ann!BA259","v":16},{"$f":"[1]ACS_16_5YR_B25063_with_ann!BB259","v":0},{"$f":"[1]ACS_16_5YR_B25063_with_ann!BC259","v":16},{"$f":"[1]ACS_16_5YR_B25063_with_ann!BD259","v":31},{"$f":"[1]ACS_16_5YR_B25063_with_ann!BE259","v":47},{"$f":"[1]ACS_16_5YR_B25064_with_ann!D259","v":966},{"$f":"[1]ACS_16_5YR_B25064_with_ann!E259","v":221}]
["0600000US3301912900",3301912900,"060","Claremont",{"$f":"[1]ACS_16_5YR_B25063_with_ann!D260","v":2310},{"$f":"[1]ACS_16_5YR_B25063_with_ann!E260","v":288},{"$f":"[1]ACS_16_5YR_B25063_with_ann!F260","v":2302},{"$f":"[1]ACS_16_5YR_B25063_with_ann!G260","v":287},{"$f":"[1]ACS_16_5YR_B25063_with_ann!H260","v":7},{"$f":"[1]ACS_16_5YR_B25063_with_ann!I260","v":11},{"$f":"[1]ACS_16_5YR_B25063_with_ann!J260","v":0},{"$f":"[1]ACS_16_5YR_B25063_with_ann!K260","v":18},{"$f":"[1]ACS_16_5YR_B25063_with_ann!L260","v":24},{"$f":"[1]ACS_16_5YR_B25063_with_ann!M260","v":28},{"$f":"[1]ACS_16_5YR_B25063_with_ann!N260","v":73},{"$f":"[1]ACS_16_5YR_B25063_with_ann!O260","v":46},{"$f":"[1]ACS_16_5YR_B25063_with_ann!P260","v":24},{"$f":"[1]ACS_16_5YR_B25063_with_ann!Q260","v":32},{"$f":"[1]ACS_16_5YR_B25063_with_ann!R260","v":97},{"$f":"[1]ACS_16_5YR_B25063_with_ann!S260","v":74},{"$f":"[1]ACS_16_5YR_B25063_with_ann!T260","v":68},{"$f":"[1]ACS_16_5YR_B25063_with_ann!U260","v":59},{"$f":"[1]ACS_16_5YR_B25063_with_ann!V260","v":0},{"$f":"[1]ACS_16_5YR_B25063_with_ann!W260","v":18},{"$f":"[1]ACS_16_5YR_B25063_with_ann!X260","v":8},{"$f":"[1]ACS_16_5YR_B25063_with_ann!Y260","v":13},{"$f":"[1]ACS_16_5YR_B25063_with_ann!Z260","v":34},{"$f":"[1]ACS_16_5YR_B25063_with_ann!AA260","v":33},{"$f":"[1]ACS_16_5YR_B25063_with_ann!AB260","v":42},{"$f":"[1]ACS_16_5YR_B25063_with_ann!AC260","v":47},{"$f":"[1]ACS_16_5YR_B25063_with_ann!AD260","v":38},{"$f":"[1]ACS_16_5YR_B25063_with_ann!AE260","v":34},{"$f":"[1]ACS_16_5YR_B25063_with_ann!AF260","v":87},{"$f":"[1]ACS_16_5YR_B25063_with_ann!AG260","v":62},{"$f":"[1]ACS_16_5YR_B25063_with_ann!AH260","v":99},{"$f":"[1]ACS_16_5YR_B25063_with_ann!AI260","v":81},{"$f":"[1]ACS_16_5YR_B25063_with_ann!AJ260","v":62},{"$f":"[1]ACS_16_5YR_B25063_with_ann!AK260","v":48},{"$f":"[1]ACS_16_5YR_B25063_with_ann!AL260","v":224},{"$f":"[1]ACS_16_5YR_B25063_with_ann!AM260","v":93},{"$f":"[1]ACS_16_5YR_B25063_with_ann!AN260","v":321},{"$f":"[1]ACS_16_5YR_B25063_with_ann!AO260","v":140},{"$f":"[1]ACS_16_5YR_B25063_with_ann!AP260","v":871},{"$f":"[1]ACS_16_5YR_B25063_with_ann!AQ260","v":230},{"$f":"[1]ACS_16_5YR_B25063_with_ann!AR260","v":159},{"$f":"[1]ACS_16_5YR_B25063_with_ann!AS260","v":90},{"$f":"[1]ACS_16_5YR_B25063_with_ann!AT260","v":56},{"$f":"[1]ACS_16_5YR_B25063_with_ann!AU260","v":48},{"$f":"[1]ACS_16_5YR_B25063_with_ann!AV260","v":8},{"$f":"[1]ACS_16_5YR_B25063_with_ann!AW260","v":12},{"$f":"[1]ACS_16_5YR_B25063_with_ann!AX260","v":0},{"$f":"[1]ACS_16_5YR_B25063_with_ann!AY260","v":18},{"$f":"[1]ACS_16_5YR_B25063_with_ann!AZ260","v":0},{"$f":"[1]ACS_16_5YR_B25063_with_ann!BA260","v":18},{"$f":"[1]ACS_16_5YR_B25063_with_ann!BB260","v":0},{"$f":"[1]ACS_16_5YR_B25063_with_ann!BC260","v":18},{"$f":"[1]ACS_16_5YR_B25063_with_ann!BD260","v":8},{"$f":"[1]ACS_16_5YR_B25063_with_ann!BE260","v":12},{"$f":"[1]ACS_16_5YR_B25064_with_ann!D260","v":982},{"$f":"[1]ACS_16_5YR_B25064_with_ann!E260","v":48}]
["0600000US3301915060",3301915060,"060","Cornish",{"$f":"[1]ACS_16_5YR_B25063_with_ann!D261","v":55},{"$f":"[1]ACS_16_5YR_B25063_with_ann!E261","v":26},{"$f":"[1]ACS_16_5YR_B25063_with_ann!F261","v":52},{"$f":"[1]ACS_16_5YR_B25063_with_ann!G261","v":25},{"$f":"[1]ACS_16_5YR_B25063_with_ann!H261","v":0},{"$f":"[1]ACS_16_5YR_B25063_with_ann!I261","v":11},{"$f":"[1]ACS_16_5YR_B25063_with_ann!J261","v":0},{"$f":"[1]ACS_16_5YR_B25063_with_ann!K261","v":11},{"$f":"[1]ACS_16_5YR_B25063_with_ann!L261","v":0},{"$f":"[1]ACS_16_5YR_B25063_with_ann!M261","v":11},{"$f":"[1]ACS_16_5YR_B25063_with_ann!N261","v":0},{"$f":"[1]ACS_16_5YR_B25063_with_ann!O261","v":11},{"$f":"[1]ACS_16_5YR_B25063_with_ann!P261","v":0},{"$f":"[1]ACS_16_5YR_B25063_with_ann!Q261","v":11},{"$f":"[1]ACS_16_5YR_B25063_with_ann!R261","v":0},{"$f":"[1]ACS_16_5YR_B25063_with_ann!S261","v":11},{"$f":"[1]ACS_16_5YR_B25063_with_ann!T261","v":0},{"$f":"[1]ACS_16_5YR_B25063_with_ann!U261","v":11},{"$f":"[1]ACS_16_5YR_B25063_with_ann!V261","v":0},{"$f":"[1]ACS_16_5YR_B25063_with_ann!W261","v":11},{"$f":"[1]ACS_16_5YR_B25063_with_ann!X261","v":0},{"$f":"[1]ACS_16_5YR_B25063_with_ann!Y261","v":11},{"$f":"[1]ACS_16_5YR_B25063_with_ann!Z261","v":3},{"$f":"[1]ACS_16_5YR_B25063_with_ann!AA261","v":5},{"$f":"[1]ACS_16_5YR_B25063_with_ann!AB261","v":0},{"$f":"[1]ACS_16_5YR_B25063_with_ann!AC261","v":11},{"$f":"[1]ACS_16_5YR_B25063_with_ann!AD261","v":8},{"$f":"[1]ACS_16_5YR_B25063_with_ann!AE261","v":8},{"$f":"[1]ACS_16_5YR_B25063_with_ann!AF261","v":0},{"$f":"[1]ACS_16_5YR_B25063_with_ann!AG261","v":11},{"$f":"[1]ACS_16_5YR_B25063_with_ann!AH261","v":0},{"$f":"[1]ACS_16_5YR_B25063_with_ann!AI261","v":11},{"$f":"[1]ACS_16_5YR_B25063_with_ann!AJ261","v":0},{"$f":"[1]ACS_16_5YR_B25063_with_ann!AK261","v":11},{"$f":"[1]ACS_16_5YR_B25063_with_ann!AL261","v":0},{"$f":"[1]ACS_16_5YR_B25063_with_ann!AM261","v":11},{"$f":"[1]ACS_16_5YR_B25063_with_ann!AN261","v":11},{"$f":"[1]ACS_16_5YR_B25063_with_ann!AO261","v":9},{"$f":"[1]ACS_16_5YR_B25063_with_ann!AP261","v":19},{"$f":"[1]ACS_16_5YR_B25063_with_ann!AQ261","v":19},{"$f":"[1]ACS_16_5YR_B25063_with_ann!AR261","v":4},{"$f":"[1]ACS_16_5YR_B25063_with_ann!AS261","v":6},{"$f":"[1]ACS_16_5YR_B25063_with_ann!AT261","v":7},{"$f":"[1]ACS_16_5YR_B25063_with_ann!AU261","v":7},{"$f":"[1]ACS_16_5YR_B25063_with_ann!AV261","v":0},{"$f":"[1]ACS_16_5YR_B25063_with_ann!AW261","v":11},{"$f":"[1]ACS_16_5YR_B25063_with_ann!AX261","v":0},{"$f":"[1]ACS_16_5YR_B25063_with_ann!AY261","v":11},{"$f":"[1]ACS_16_5YR_B25063_with_ann!AZ261","v":0},{"$f":"[1]ACS_16_5YR_B25063_with_ann!BA261","v":11},{"$f":"[1]ACS_16_5YR_B25063_with_ann!BB261","v":0},{"$f":"[1]ACS_16_5YR_B25063_with_ann!BC261","v":11},{"$f":"[1]ACS_16_5YR_B25063_with_ann!BD261","v":3},{"$f":"[1]ACS_16_5YR_B25063_with_ann!BE261","v":4},{"$f":"[1]ACS_16_5YR_B25064_with_ann!D262","v":1275},{"$f":"[1]ACS_16_5YR_B25064_with_ann!E262","v":276}]
["0600000US3301916340",3301916340,"060","Croydon",{"$f":"[1]ACS_16_5YR_B25063_with_ann!D262","v":36},{"$f":"[1]ACS_16_5YR_B25063_with_ann!E262","v":22},{"$f":"[1]ACS_16_5YR_B25063_with_ann!F262","v":34},{"$f":"[1]ACS_16_5YR_B25063_with_ann!G262","v":21},{"$f":"[1]ACS_16_5YR_B25063_with_ann!H262","v":0},{"$f":"[1]ACS_16_5YR_B25063_with_ann!I262","v":11},{"$f":"[1]ACS_16_5YR_B25063_with_ann!J262","v":0},{"$f":"[1]ACS_16_5YR_B25063_with_ann!K262","v":11},{"$f":"[1]ACS_16_5YR_B25063_with_ann!L262","v":0},{"$f":"[1]ACS_16_5YR_B25063_with_ann!M262","v":11},{"$f":"[1]ACS_16_5YR_B25063_with_ann!N262","v":0},{"$f":"[1]ACS_16_5YR_B25063_with_ann!O262","v":11},{"$f":"[1]ACS_16_5YR_B25063_with_ann!P262","v":0},{"$f":"[1]ACS_16_5YR_B25063_with_ann!Q262","v":11},{"$f":"[1]ACS_16_5YR_B25063_with_ann!R262","v":0},{"$f":"[1]ACS_16_5YR_B25063_with_ann!S262","v":11},{"$f":"[1]ACS_16_5YR_B25063_with_ann!T262","v":0},{"$f":"[1]ACS_16_5YR_B25063_with_ann!U262","v":11},{"$f":"[1]ACS_16_5YR_B25063_with_ann!V262","v":0},{"$f":"[1]ACS_16_5YR_B25063_with_ann!W262","v":11},{"$f":"[1]ACS_16_5YR_B25063_with_ann!X262","v":0},{"$f":"[1]ACS_16_5YR_B25063_with_ann!Y262","v":11},{"$f":"[1]ACS_16_5YR_B25063_with_ann!Z262","v":0},{"$f":"[1]ACS_16_5YR_B25063_with_ann!AA262","v":11},{"$f":"[1]ACS_16_5YR_B25063_with_ann!AB262","v":0},{"$f":"[1]ACS_16_5YR_B25063_with_ann!AC262","v":11},{"$f":"[1]ACS_16_5YR_B25063_with_ann!AD262","v":0},{"$f":"[1]ACS_16_5YR_B25063_with_ann!AE262","v":11},{"$f":"[1]ACS_16_5YR_B25063_with_ann!AF262","v":0},{"$f":"[1]ACS_16_5YR_B25063_with_ann!AG262","v":11},{"$f":"[1]ACS_16_5YR_B25063_with_ann!AH262","v":3},{"$f":"[1]ACS_16_5YR_B25063_with_ann!AI262","v":4},{"$f":"[1]ACS_16_5YR_B25063_with_ann!AJ262","v":0},{"$f":"[1]ACS_16_5YR_B25063_with_ann!AK262","v":11},{"$f":"[1]ACS_16_5YR_B25063_with_ann!AL262","v":5},{"$f":"[1]ACS_16_5YR_B25063_with_ann!AM262","v":10},{"$f":"[1]ACS_16_5YR_B25063_with_ann!AN262","v":0},{"$f":"[1]ACS_16_5YR_B25063_with_ann!AO262","v":11},{"$f":"[1]ACS_16_5YR_B25063_with_ann!AP262","v":8},{"$f":"[1]ACS_16_5YR_B25063_with_ann!AQ262","v":9},{"$f":"[1]ACS_16_5YR_B25063_with_ann!AR262","v":10},{"$f":"[1]ACS_16_5YR_B25063_with_ann!AS262","v":12},{"$f":"[1]ACS_16_5YR_B25063_with_ann!AT262","v":8},{"$f":"[1]ACS_16_5YR_B25063_with_ann!AU262","v":11},{"$f":"[1]ACS_16_5YR_B25063_with_ann!AV262","v":0},{"$f":"[1]ACS_16_5YR_B25063_with_ann!AW262","v":11},{"$f":"[1]ACS_16_5YR_B25063_with_ann!AX262","v":0},{"$f":"[1]ACS_16_5YR_B25063_with_ann!AY262","v":11},{"$f":"[1]ACS_16_5YR_B25063_with_ann!AZ262","v":0},{"$f":"[1]ACS_16_5YR_B25063_with_ann!BA262","v":11},{"$f":"[1]ACS_16_5YR_B25063_with_ann!BB262","v":0},{"$f":"[1]ACS_16_5YR_B25063_with_ann!BC262","v":11},{"$f":"[1]ACS_16_5YR_B25063_with_ann!BD262","v":2},{"$f":"[1]ACS_16_5YR_B25063_with_ann!BE262","v":4},{"$f":"[1]ACS_16_5YR_B25064_with_ann!D263","v":1031},{"$f":"[1]ACS_16_5YR_B25064_with_ann!E263","v":310}]
["0600000US3301930500",3301930500,"060","Goshen",{"$f":"[1]ACS_16_5YR_B25063_with_ann!D263","v":54},{"$f":"[1]ACS_16_5YR_B25063_with_ann!E263","v":23},{"$f":"[1]ACS_16_5YR_B25063_with_ann!F263","v":44},{"$f":"[1]ACS_16_5YR_B25063_with_ann!G263","v":25},{"$f":"[1]ACS_16_5YR_B25063_with_ann!H263","v":0},{"$f":"[1]ACS_16_5YR_B25063_with_ann!I263","v":11},{"$f":"[1]ACS_16_5YR_B25063_with_ann!J263","v":0},{"$f":"[1]ACS_16_5YR_B25063_with_ann!K263","v":11},{"$f":"[1]ACS_16_5YR_B25063_with_ann!L263","v":0},{"$f":"[1]ACS_16_5YR_B25063_with_ann!M263","v":11},{"$f":"[1]ACS_16_5YR_B25063_with_ann!N263","v":0},{"$f":"[1]ACS_16_5YR_B25063_with_ann!O263","v":11},{"$f":"[1]ACS_16_5YR_B25063_with_ann!P263","v":0},{"$f":"[1]ACS_16_5YR_B25063_with_ann!Q263","v":11},{"$f":"[1]ACS_16_5YR_B25063_with_ann!R263","v":0},{"$f":"[1]ACS_16_5YR_B25063_with_ann!S263","v":11},{"$f":"[1]ACS_16_5YR_B25063_with_ann!T263","v":0},{"$f":"[1]ACS_16_5YR_B25063_with_ann!U263","v":11},{"$f":"[1]ACS_16_5YR_B25063_with_ann!V263","v":7},{"$f":"[1]ACS_16_5YR_B25063_with_ann!W263","v":10},{"$f":"[1]ACS_16_5YR_B25063_with_ann!X263","v":0},{"$f":"[1]ACS_16_5YR_B25063_with_ann!Y263","v":11},{"$f":"[1]ACS_16_5YR_B25063_with_ann!Z263","v":0},{"$f":"[1]ACS_16_5YR_B25063_with_ann!AA263","v":11},{"$f":"[1]ACS_16_5YR_B25063_with_ann!AB263","v":0},{"$f":"[1]ACS_16_5YR_B25063_with_ann!AC263","v":11},{"$f":"[1]ACS_16_5YR_B25063_with_ann!AD263","v":0},{"$f":"[1]ACS_16_5YR_B25063_with_ann!AE263","v":11},{"$f":"[1]ACS_16_5YR_B25063_with_ann!AF263","v":0},{"$f":"[1]ACS_16_5YR_B25063_with_ann!AG263","v":11},{"$f":"[1]ACS_16_5YR_B25063_with_ann!AH263","v":0},{"$f":"[1]ACS_16_5YR_B25063_with_ann!AI263","v":11},{"$f":"[1]ACS_16_5YR_B25063_with_ann!AJ263","v":0},{"$f":"[1]ACS_16_5YR_B25063_with_ann!AK263","v":11},{"$f":"[1]ACS_16_5YR_B25063_with_ann!AL263","v":6},{"$f":"[1]ACS_16_5YR_B25063_with_ann!AM263","v":9},{"$f":"[1]ACS_16_5YR_B25063_with_ann!AN263","v":8},{"$f":"[1]ACS_16_5YR_B25063_with_ann!AO263","v":9},{"$f":"[1]ACS_16_5YR_B25063_with_ann!AP263","v":8},{"$f":"[1]ACS_16_5YR_B25063_with_ann!AQ263","v":7},{"$f":"[1]ACS_16_5YR_B25063_with_ann!AR263","v":15},{"$f":"[1]ACS_16_5YR_B25063_with_ann!AS263","v":17},{"$f":"[1]ACS_16_5YR_B25063_with_ann!AT263","v":0},{"$f":"[1]ACS_16_5YR_B25063_with_ann!AU263","v":11},{"$f":"[1]ACS_16_5YR_B25063_with_ann!AV263","v":0},{"$f":"[1]ACS_16_5YR_B25063_with_ann!AW263","v":11},{"$f":"[1]ACS_16_5YR_B25063_with_ann!AX263","v":0},{"$f":"[1]ACS_16_5YR_B25063_with_ann!AY263","v":11},{"$f":"[1]ACS_16_5YR_B25063_with_ann!AZ263","v":0},{"$f":"[1]ACS_16_5YR_B25063_with_ann!BA263","v":11},{"$f":"[1]ACS_16_5YR_B25063_with_ann!BB263","v":0},{"$f":"[1]ACS_16_5YR_B25063_with_ann!BC263","v":11},{"$f":"[1]ACS_16_5YR_B25063_with_ann!BD263","v":10},{"$f":"[1]ACS_16_5YR_B25063_with_ann!BE263","v":7},{"$f":"[1]ACS_16_5YR_B25064_with_ann!D264","v":1218},{"$f":"[1]ACS_16_5YR_B25064_with_ann!E264","v":697}]
["0600000US3301931220",3301931220,"060","Grantham",{"$f":"[1]ACS_16_5YR_B25063_with_ann!D264","v":140},{"$f":"[1]ACS_16_5YR_B25063_with_ann!E264","v":79},{"$f":"[1]ACS_16_5YR_B25063_with_ann!F264","v":140},{"$f":"[1]ACS_16_5YR_B25063_with_ann!G264","v":79},{"$f":"[1]ACS_16_5YR_B25063_with_ann!H264","v":0},{"$f":"[1]ACS_16_5YR_B25063_with_ann!I264","v":11},{"$f":"[1]ACS_16_5YR_B25063_with_ann!J264","v":0},{"$f":"[1]ACS_16_5YR_B25063_with_ann!K264","v":11},{"$f":"[1]ACS_16_5YR_B25063_with_ann!L264","v":0},{"$f":"[1]ACS_16_5YR_B25063_with_ann!M264","v":11},{"$f":"[1]ACS_16_5YR_B25063_with_ann!N264","v":0},{"$f":"[1]ACS_16_5YR_B25063_with_ann!O264","v":11},{"$f":"[1]ACS_16_5YR_B25063_with_ann!P264","v":0},{"$f":"[1]ACS_16_5YR_B25063_with_ann!Q264","v":11},{"$f":"[1]ACS_16_5YR_B25063_with_ann!R264","v":23},{"$f":"[1]ACS_16_5YR_B25063_with_ann!S264","v":37},{"$f":"[1]ACS_16_5YR_B25063_with_ann!T264","v":0},{"$f":"[1]ACS_16_5YR_B25063_with_ann!U264","v":11},{"$f":"[1]ACS_16_5YR_B25063_with_ann!V264","v":0},{"$f":"[1]ACS_16_5YR_B25063_with_ann!W264","v":11},{"$f":"[1]ACS_16_5YR_B25063_with_ann!X264","v":0},{"$f":"[1]ACS_16_5YR_B25063_with_ann!Y264","v":11},{"$f":"[1]ACS_16_5YR_B25063_with_ann!Z264","v":0},{"$f":"[1]ACS_16_5YR_B25063_with_ann!AA264","v":11},{"$f":"[1]ACS_16_5YR_B25063_with_ann!AB264","v":0},{"$f":"[1]ACS_16_5YR_B25063_with_ann!AC264","v":11},{"$f":"[1]ACS_16_5YR_B25063_with_ann!AD264","v":0},{"$f":"[1]ACS_16_5YR_B25063_with_ann!AE264","v":11},{"$f":"[1]ACS_16_5YR_B25063_with_ann!AF264","v":0},{"$f":"[1]ACS_16_5YR_B25063_with_ann!AG264","v":11},{"$f":"[1]ACS_16_5YR_B25063_with_ann!AH264","v":0},{"$f":"[1]ACS_16_5YR_B25063_with_ann!AI264","v":11},{"$f":"[1]ACS_16_5YR_B25063_with_ann!AJ264","v":0},{"$f":"[1]ACS_16_5YR_B25063_with_ann!AK264","v":11},{"$f":"[1]ACS_16_5YR_B25063_with_ann!AL264","v":0},{"$f":"[1]ACS_16_5YR_B25063_with_ann!AM264","v":11},{"$f":"[1]ACS_16_5YR_B25063_with_ann!AN264","v":0},{"$f":"[1]ACS_16_5YR_B25063_with_ann!AO264","v":11},{"$f":"[1]ACS_16_5YR_B25063_with_ann!AP264","v":54},{"$f":"[1]ACS_16_5YR_B25063_with_ann!AQ264","v":58},{"$f":"[1]ACS_16_5YR_B25063_with_ann!AR264","v":0},{"$f":"[1]ACS_16_5YR_B25063_with_ann!AS264","v":11},{"$f":"[1]ACS_16_5YR_B25063_with_ann!AT264","v":63},{"$f":"[1]ACS_16_5YR_B25063_with_ann!AU264","v":69},{"$f":"[1]ACS_16_5YR_B25063_with_ann!AV264","v":0},{"$f":"[1]ACS_16_5YR_B25063_with_ann!AW264","v":11},{"$f":"[1]ACS_16_5YR_B25063_with_ann!AX264","v":0},{"$f":"[1]ACS_16_5YR_B25063_with_ann!AY264","v":11},{"$f":"[1]ACS_16_5YR_B25063_with_ann!AZ264","v":0},{"$f":"[1]ACS_16_5YR_B25063_with_ann!BA264","v":11},{"$f":"[1]ACS_16_5YR_B25063_with_ann!BB264","v":0},{"$f":"[1]ACS_16_5YR_B25063_with_ann!BC264","v":11},{"$f":"[1]ACS_16_5YR_B25063_with_ann!BD264","v":0},{"$f":"[1]ACS_16_5YR_B25063_with_ann!BE264","v":11},{"$f":"[1]ACS_16_5YR_B25064_with_ann!D265","v":933},{"$f":"[1]ACS_16_5YR_B25064_with_ann!E265","v":84}]
["0600000US3301940900",3301940900,"060","Langdon",{"$f":"[1]ACS_16_5YR_B25063_with_ann!D265","v":39},{"$f":"[1]ACS_16_5YR_B25063_with_ann!E265","v":21},{"$f":"[1]ACS_16_5YR_B25063_with_ann!F265","v":36},{"$f":"[1]ACS_16_5YR_B25063_with_ann!G265","v":21},{"$f":"[1]ACS_16_5YR_B25063_with_ann!H265","v":0},{"$f":"[1]ACS_16_5YR_B25063_with_ann!I265","v":11},{"$f":"[1]ACS_16_5YR_B25063_with_ann!J265","v":0},{"$f":"[1]ACS_16_5YR_B25063_with_ann!K265","v":11},{"$f":"[1]ACS_16_5YR_B25063_with_ann!L265","v":0},{"$f":"[1]ACS_16_5YR_B25063_with_ann!M265","v":11},{"$f":"[1]ACS_16_5YR_B25063_with_ann!N265","v":0},{"$f":"[1]ACS_16_5YR_B25063_with_ann!O265","v":11},{"$f":"[1]ACS_16_5YR_B25063_with_ann!P265","v":0},{"$f":"[1]ACS_16_5YR_B25063_with_ann!Q265","v":11},{"$f":"[1]ACS_16_5YR_B25063_with_ann!R265","v":0},{"$f":"[1]ACS_16_5YR_B25063_with_ann!S265","v":11},{"$f":"[1]ACS_16_5YR_B25063_with_ann!T265","v":0},{"$f":"[1]ACS_16_5YR_B25063_with_ann!U265","v":11},{"$f":"[1]ACS_16_5YR_B25063_with_ann!V265","v":0},{"$f":"[1]ACS_16_5YR_B25063_with_ann!W265","v":11},{"$f":"[1]ACS_16_5YR_B25063_with_ann!X265","v":0},{"$f":"[1]ACS_16_5YR_B25063_with_ann!Y265","v":11},{"$f":"[1]ACS_16_5YR_B25063_with_ann!Z265","v":0},{"$f":"[1]ACS_16_5YR_B25063_with_ann!AA265","v":11},{"$f":"[1]ACS_16_5YR_B25063_with_ann!AB265","v":0},{"$f":"[1]ACS_16_5YR_B25063_with_ann!AC265","v":11},{"$f":"[1]ACS_16_5YR_B25063_with_ann!AD265","v":0},{"$f":"[1]ACS_16_5YR_B25063_with_ann!AE265","v":11},{"$f":"[1]ACS_16_5YR_B25063_with_ann!AF265","v":0},{"$f":"[1]ACS_16_5YR_B25063_with_ann!AG265","v":11},{"$f":"[1]ACS_16_5YR_B25063_with_ann!AH265","v":0},{"$f":"[1]ACS_16_5YR_B25063_with_ann!AI265","v":11},{"$f":"[1]ACS_16_5YR_B25063_with_ann!AJ265","v":0},{"$f":"[1]ACS_16_5YR_B25063_with_ann!AK265","v":11},{"$f":"[1]ACS_16_5YR_B25063_with_ann!AL265","v":14},{"$f":"[1]ACS_16_5YR_B25063_with_ann!AM265","v":14},{"$f":"[1]ACS_16_5YR_B25063_with_ann!AN265","v":12},{"$f":"[1]ACS_16_5YR_B25063_with_ann!AO265","v":13},{"$f":"[1]ACS_16_5YR_B25063_with_ann!AP265","v":2},{"$f":"[1]ACS_16_5YR_B25063_with_ann!AQ265","v":3},{"$f":"[1]ACS_16_5YR_B25063_with_ann!AR265","v":6},{"$f":"[1]ACS_16_5YR_B25063_with_ann!AS265","v":9},{"$f":"[1]ACS_16_5YR_B25063_with_ann!AT265","v":2},{"$f":"[1]ACS_16_5YR_B25063_with_ann!AU265","v":3},{"$f":"[1]ACS_16_5YR_B25063_with_ann!AV265","v":0},{"$f":"[1]ACS_16_5YR_B25063_with_ann!AW265","v":11},{"$f":"[1]ACS_16_5YR_B25063_with_ann!AX265","v":0},{"$f":"[1]ACS_16_5YR_B25063_with_ann!AY265","v":11},{"$f":"[1]ACS_16_5YR_B25063_with_ann!AZ265","v":0},{"$f":"[1]ACS_16_5YR_B25063_with_ann!BA265","v":11},{"$f":"[1]ACS_16_5YR_B25063_with_ann!BB265","v":0},{"$f":"[1]ACS_16_5YR_B25063_with_ann!BC265","v":11},{"$f":"[1]ACS_16_5YR_B25063_with_ann!BD265","v":3},{"$f":"[1]ACS_16_5YR_B25063_with_ann!BE265","v":4},{"$f":"[1]ACS_16_5YR_B25064_with_ann!D266","v":950},{"$f":"[1]ACS_16_5YR_B25064_with_ann!E266","v":92}]
["0600000US3301941700",3301941700,"060","Lempster",{"$f":"[1]ACS_16_5YR_B25063_with_ann!D266","v":26},{"$f":"[1]ACS_16_5YR_B25063_with_ann!E266","v":16},{"$f":"[1]ACS_16_5YR_B25063_with_ann!F266","v":24},{"$f":"[1]ACS_16_5YR_B25063_with_ann!G266","v":16},{"$f":"[1]ACS_16_5YR_B25063_with_ann!H266","v":0},{"$f":"[1]ACS_16_5YR_B25063_with_ann!I266","v":11},{"$f":"[1]ACS_16_5YR_B25063_with_ann!J266","v":0},{"$f":"[1]ACS_16_5YR_B25063_with_ann!K266","v":11},{"$f":"[1]ACS_16_5YR_B25063_with_ann!L266","v":0},{"$f":"[1]ACS_16_5YR_B25063_with_ann!M266","v":11},{"$f":"[1]ACS_16_5YR_B25063_with_ann!N266","v":0},{"$f":"[1]ACS_16_5YR_B25063_with_ann!O266","v":11},{"$f":"[1]ACS_16_5YR_B25063_with_ann!P266","v":0},{"$f":"[1]ACS_16_5YR_B25063_with_ann!Q266","v":11},{"$f":"[1]ACS_16_5YR_B25063_with_ann!R266","v":0},{"$f":"[1]ACS_16_5YR_B25063_with_ann!S266","v":11},{"$f":"[1]ACS_16_5YR_B25063_with_ann!T266","v":0},{"$f":"[1]ACS_16_5YR_B25063_with_ann!U266","v":11},{"$f":"[1]ACS_16_5YR_B25063_with_ann!V266","v":0},{"$f":"[1]ACS_16_5YR_B25063_with_ann!W266","v":11},{"$f":"[1]ACS_16_5YR_B25063_with_ann!X266","v":0},{"$f":"[1]ACS_16_5YR_B25063_with_ann!Y266","v":11},{"$f":"[1]ACS_16_5YR_B25063_with_ann!Z266","v":0},{"$f":"[1]ACS_16_5YR_B25063_with_ann!AA266","v":11},{"$f":"[1]ACS_16_5YR_B25063_with_ann!AB266","v":4},{"$f":"[1]ACS_16_5YR_B25063_with_ann!AC266","v":5},{"$f":"[1]ACS_16_5YR_B25063_with_ann!AD266","v":0},{"$f":"[1]ACS_16_5YR_B25063_with_ann!AE266","v":11},{"$f":"[1]ACS_16_5YR_B25063_with_ann!AF266","v":0},{"$f":"[1]ACS_16_5YR_B25063_with_ann!AG266","v":11},{"$f":"[1]ACS_16_5YR_B25063_with_ann!AH266","v":2},{"$f":"[1]ACS_16_5YR_B25063_with_ann!AI266","v":4},{"$f":"[1]ACS_16_5YR_B25063_with_ann!AJ266","v":0},{"$f":"[1]ACS_16_5YR_B25063_with_ann!AK266","v":11},{"$f":"[1]ACS_16_5YR_B25063_with_ann!AL266","v":0},{"$f":"[1]ACS_16_5YR_B25063_with_ann!AM266","v":11},{"$f":"[1]ACS_16_5YR_B25063_with_ann!AN266","v":12},{"$f":"[1]ACS_16_5YR_B25063_with_ann!AO266","v":14},{"$f":"[1]ACS_16_5YR_B25063_with_ann!AP266","v":3},{"$f":"[1]ACS_16_5YR_B25063_with_ann!AQ266","v":4},{"$f":"[1]ACS_16_5YR_B25063_with_ann!AR266","v":3},{"$f":"[1]ACS_16_5YR_B25063_with_ann!AS266","v":5},{"$f":"[1]ACS_16_5YR_B25063_with_ann!AT266","v":0},{"$f":"[1]ACS_16_5YR_B25063_with_ann!AU266","v":11},{"$f":"[1]ACS_16_5YR_B25063_with_ann!AV266","v":0},{"$f":"[1]ACS_16_5YR_B25063_with_ann!AW266","v":11},{"$f":"[1]ACS_16_5YR_B25063_with_ann!AX266","v":0},{"$f":"[1]ACS_16_5YR_B25063_with_ann!AY266","v":11},{"$f":"[1]ACS_16_5YR_B25063_with_ann!AZ266","v":0},{"$f":"[1]ACS_16_5YR_B25063_with_ann!BA266","v":11},{"$f":"[1]ACS_16_5YR_B25063_with_ann!BB266","v":0},{"$f":"[1]ACS_16_5YR_B25063_with_ann!BC266","v":11},{"$f":"[1]ACS_16_5YR_B25063_with_ann!BD266","v":2},{"$f":"[1]ACS_16_5YR_B25063_with_ann!BE266","v":3},{"$f":"[1]ACS_16_5YR_B25064_with_ann!D267","v":892},{"$f":"[1]ACS_16_5YR_B25064_with_ann!E267","v":65}]
["0600000US3301952580",3301952580,"060","Newport",{"$f":"[1]ACS_16_5YR_B25063_with_ann!D267","v":857},{"$f":"[1]ACS_16_5YR_B25063_with_ann!E267","v":184},{"$f":"[1]ACS_16_5YR_B25063_with_ann!F267","v":785},{"$f":"[1]ACS_16_5YR_B25063_with_ann!G267","v":186},{"$f":"[1]ACS_16_5YR_B25063_with_ann!H267","v":0},{"$f":"[1]ACS_16_5YR_B25063_with_ann!I267","v":16},{"$f":"[1]ACS_16_5YR_B25063_with_ann!J267","v":15},{"$f":"[1]ACS_16_5YR_B25063_with_ann!K267","v":23},{"$f":"[1]ACS_16_5YR_B25063_with_ann!L267","v":0},{"$f":"[1]ACS_16_5YR_B25063_with_ann!M267","v":16},{"$f":"[1]ACS_16_5YR_B25063_with_ann!N267","v":0},{"$f":"[1]ACS_16_5YR_B25063_with_ann!O267","v":16},{"$f":"[1]ACS_16_5YR_B25063_with_ann!P267","v":46},{"$f":"[1]ACS_16_5YR_B25063_with_ann!Q267","v":58},{"$f":"[1]ACS_16_5YR_B25063_with_ann!R267","v":25},{"$f":"[1]ACS_16_5YR_B25063_with_ann!S267","v":28},{"$f":"[1]ACS_16_5YR_B25063_with_ann!T267","v":11},{"$f":"[1]ACS_16_5YR_B25063_with_ann!U267","v":18},{"$f":"[1]ACS_16_5YR_B25063_with_ann!V267","v":0},{"$f":"[1]ACS_16_5YR_B25063_with_ann!W267","v":16},{"$f":"[1]ACS_16_5YR_B25063_with_ann!X267","v":40},{"$f":"[1]ACS_16_5YR_B25063_with_ann!Y267","v":67},{"$f":"[1]ACS_16_5YR_B25063_with_ann!Z267","v":41},{"$f":"[1]ACS_16_5YR_B25063_with_ann!AA267","v":65},{"$f":"[1]ACS_16_5YR_B25063_with_ann!AB267","v":13},{"$f":"[1]ACS_16_5YR_B25063_with_ann!AC267","v":20},{"$f":"[1]ACS_16_5YR_B25063_with_ann!AD267","v":0},{"$f":"[1]ACS_16_5YR_B25063_with_ann!AE267","v":16},{"$f":"[1]ACS_16_5YR_B25063_with_ann!AF267","v":14},{"$f":"[1]ACS_16_5YR_B25063_with_ann!AG267","v":24},{"$f":"[1]ACS_16_5YR_B25063_with_ann!AH267","v":13},{"$f":"[1]ACS_16_5YR_B25063_with_ann!AI267","v":20},{"$f":"[1]ACS_16_5YR_B25063_with_ann!AJ267","v":7},{"$f":"[1]ACS_16_5YR_B25063_with_ann!AK267","v":11},{"$f":"[1]ACS_16_5YR_B25063_with_ann!AL267","v":183},{"$f":"[1]ACS_16_5YR_B25063_with_ann!AM267","v":116},{"$f":"[1]ACS_16_5YR_B25063_with_ann!AN267","v":117},{"$f":"[1]ACS_16_5YR_B25063_with_ann!AO267","v":86},{"$f":"[1]ACS_16_5YR_B25063_with_ann!AP267","v":108},{"$f":"[1]ACS_16_5YR_B25063_with_ann!AQ267","v":83},{"$f":"[1]ACS_16_5YR_B25063_with_ann!AR267","v":39},{"$f":"[1]ACS_16_5YR_B25063_with_ann!AS267","v":39},{"$f":"[1]ACS_16_5YR_B25063_with_ann!AT267","v":88},{"$f":"[1]ACS_16_5YR_B25063_with_ann!AU267","v":74},{"$f":"[1]ACS_16_5YR_B25063_with_ann!AV267","v":25},{"$f":"[1]ACS_16_5YR_B25063_with_ann!AW267","v":30},{"$f":"[1]ACS_16_5YR_B25063_with_ann!AX267","v":0},{"$f":"[1]ACS_16_5YR_B25063_with_ann!AY267","v":16},{"$f":"[1]ACS_16_5YR_B25063_with_ann!AZ267","v":0},{"$f":"[1]ACS_16_5YR_B25063_with_ann!BA267","v":16},{"$f":"[1]ACS_16_5YR_B25063_with_ann!BB267","v":0},{"$f":"[1]ACS_16_5YR_B25063_with_ann!BC267","v":16},{"$f":"[1]ACS_16_5YR_B25063_with_ann!BD267","v":72},{"$f":"[1]ACS_16_5YR_B25063_with_ann!BE267","v":76},{"$f":"[1]ACS_16_5YR_B25064_with_ann!D268","v":1542},{"$f":"[1]ACS_16_5YR_B25064_with_ann!E268","v":205}]
["0600000US3301962340",3301962340,"060","Plainfield",{"$f":"[1]ACS_16_5YR_B25063_with_ann!D268","v":112},{"$f":"[1]ACS_16_5YR_B25063_with_ann!E268","v":49},{"$f":"[1]ACS_16_5YR_B25063_with_ann!F268","v":108},{"$f":"[1]ACS_16_5YR_B25063_with_ann!G268","v":48},{"$f":"[1]ACS_16_5YR_B25063_with_ann!H268","v":0},{"$f":"[1]ACS_16_5YR_B25063_with_ann!I268","v":11},{"$f":"[1]ACS_16_5YR_B25063_with_ann!J268","v":0},{"$f":"[1]ACS_16_5YR_B25063_with_ann!K268","v":11},{"$f":"[1]ACS_16_5YR_B25063_with_ann!L268","v":0},{"$f":"[1]ACS_16_5YR_B25063_with_ann!M268","v":11},{"$f":"[1]ACS_16_5YR_B25063_with_ann!N268","v":0},{"$f":"[1]ACS_16_5YR_B25063_with_ann!O268","v":11},{"$f":"[1]ACS_16_5YR_B25063_with_ann!P268","v":0},{"$f":"[1]ACS_16_5YR_B25063_with_ann!Q268","v":11},{"$f":"[1]ACS_16_5YR_B25063_with_ann!R268","v":0},{"$f":"[1]ACS_16_5YR_B25063_with_ann!S268","v":11},{"$f":"[1]ACS_16_5YR_B25063_with_ann!T268","v":0},{"$f":"[1]ACS_16_5YR_B25063_with_ann!U268","v":11},{"$f":"[1]ACS_16_5YR_B25063_with_ann!V268","v":0},{"$f":"[1]ACS_16_5YR_B25063_with_ann!W268","v":11},{"$f":"[1]ACS_16_5YR_B25063_with_ann!X268","v":0},{"$f":"[1]ACS_16_5YR_B25063_with_ann!Y268","v":11},{"$f":"[1]ACS_16_5YR_B25063_with_ann!Z268","v":0},{"$f":"[1]ACS_16_5YR_B25063_with_ann!AA268","v":11},{"$f":"[1]ACS_16_5YR_B25063_with_ann!AB268","v":0},{"$f":"[1]ACS_16_5YR_B25063_with_ann!AC268","v":11},{"$f":"[1]ACS_16_5YR_B25063_with_ann!AD268","v":0},{"$f":"[1]ACS_16_5YR_B25063_with_ann!AE268","v":11},{"$f":"[1]ACS_16_5YR_B25063_with_ann!AF268","v":0},{"$f":"[1]ACS_16_5YR_B25063_with_ann!AG268","v":11},{"$f":"[1]ACS_16_5YR_B25063_with_ann!AH268","v":0},{"$f":"[1]ACS_16_5YR_B25063_with_ann!AI268","v":11},{"$f":"[1]ACS_16_5YR_B25063_with_ann!AJ268","v":0},{"$f":"[1]ACS_16_5YR_B25063_with_ann!AK268","v":11},{"$f":"[1]ACS_16_5YR_B25063_with_ann!AL268","v":6},{"$f":"[1]ACS_16_5YR_B25063_with_ann!AM268","v":8},{"$f":"[1]ACS_16_5YR_B25063_with_ann!AN268","v":16},{"$f":"[1]ACS_16_5YR_B25063_with_ann!AO268","v":18},{"$f":"[1]ACS_16_5YR_B25063_with_ann!AP268","v":5},{"$f":"[1]ACS_16_5YR_B25063_with_ann!AQ268","v":7},{"$f":"[1]ACS_16_5YR_B25063_with_ann!AR268","v":22},{"$f":"[1]ACS_16_5YR_B25063_with_ann!AS268","v":27},{"$f":"[1]ACS_16_5YR_B25063_with_ann!AT268","v":59},{"$f":"[1]ACS_16_5YR_B25063_with_ann!AU268","v":40},{"$f":"[1]ACS_16_5YR_B25063_with_ann!AV268","v":0},{"$f":"[1]ACS_16_5YR_B25063_with_ann!AW268","v":11},{"$f":"[1]ACS_16_5YR_B25063_with_ann!AX268","v":0},{"$f":"[1]ACS_16_5YR_B25063_with_ann!AY268","v":11},{"$f":"[1]ACS_16_5YR_B25063_with_ann!AZ268","v":0},{"$f":"[1]ACS_16_5YR_B25063_with_ann!BA268","v":11},{"$f":"[1]ACS_16_5YR_B25063_with_ann!BB268","v":0},{"$f":"[1]ACS_16_5YR_B25063_with_ann!BC268","v":11},{"$f":"[1]ACS_16_5YR_B25063_with_ann!BD268","v":4},{"$f":"[1]ACS_16_5YR_B25063_with_ann!BE268","v":8},{"$f":"[1]ACS_16_5YR_B25064_with_ann!D269","v":"-"},{"$f":"[1]ACS_16_5YR_B25064_with_ann!E269","v":"**"}]
["0600000US3301972740",3301972740,"060","Springfield",{"$f":"[1]ACS_16_5YR_B25063_with_ann!D269","v":44},{"$f":"[1]ACS_16_5YR_B25063_with_ann!E269","v":33},{"$f":"[1]ACS_16_5YR_B25063_with_ann!F269","v":29},{"$f":"[1]ACS_16_5YR_B25063_with_ann!G269","v":30},{"$f":"[1]ACS_16_5YR_B25063_with_ann!H269","v":0},{"$f":"[1]ACS_16_5YR_B25063_with_ann!I269","v":11},{"$f":"[1]ACS_16_5YR_B25063_with_ann!J269","v":0},{"$f":"[1]ACS_16_5YR_B25063_with_ann!K269","v":11},{"$f":"[1]ACS_16_5YR_B25063_with_ann!L269","v":0},{"$f":"[1]ACS_16_5YR_B25063_with_ann!M269","v":11},{"$f":"[1]ACS_16_5YR_B25063_with_ann!N269","v":0},{"$f":"[1]ACS_16_5YR_B25063_with_ann!O269","v":11},{"$f":"[1]ACS_16_5YR_B25063_with_ann!P269","v":0},{"$f":"[1]ACS_16_5YR_B25063_with_ann!Q269","v":11},{"$f":"[1]ACS_16_5YR_B25063_with_ann!R269","v":0},{"$f":"[1]ACS_16_5YR_B25063_with_ann!S269","v":11},{"$f":"[1]ACS_16_5YR_B25063_with_ann!T269","v":0},{"$f":"[1]ACS_16_5YR_B25063_with_ann!U269","v":11},{"$f":"[1]ACS_16_5YR_B25063_with_ann!V269","v":0},{"$f":"[1]ACS_16_5YR_B25063_with_ann!W269","v":11},{"$f":"[1]ACS_16_5YR_B25063_with_ann!X269","v":0},{"$f":"[1]ACS_16_5YR_B25063_with_ann!Y269","v":11},{"$f":"[1]ACS_16_5YR_B25063_with_ann!Z269","v":0},{"$f":"[1]ACS_16_5YR_B25063_with_ann!AA269","v":11},{"$f":"[1]ACS_16_5YR_B25063_with_ann!AB269","v":0},{"$f":"[1]ACS_16_5YR_B25063_with_ann!AC269","v":11},{"$f":"[1]ACS_16_5YR_B25063_with_ann!AD269","v":16},{"$f":"[1]ACS_16_5YR_B25063_with_ann!AE269","v":27},{"$f":"[1]ACS_16_5YR_B25063_with_ann!AF269","v":0},{"$f":"[1]ACS_16_5YR_B25063_with_ann!AG269","v":11},{"$f":"[1]ACS_16_5YR_B25063_with_ann!AH269","v":0},{"$f":"[1]ACS_16_5YR_B25063_with_ann!AI269","v":11},{"$f":"[1]ACS_16_5YR_B25063_with_ann!AJ269","v":0},{"$f":"[1]ACS_16_5YR_B25063_with_ann!AK269","v":11},{"$f":"[1]ACS_16_5YR_B25063_with_ann!AL269","v":0},{"$f":"[1]ACS_16_5YR_B25063_with_ann!AM269","v":11},{"$f":"[1]ACS_16_5YR_B25063_with_ann!AN269","v":0},{"$f":"[1]ACS_16_5YR_B25063_with_ann!AO269","v":11},{"$f":"[1]ACS_16_5YR_B25063_with_ann!AP269","v":0},{"$f":"[1]ACS_16_5YR_B25063_with_ann!AQ269","v":11},{"$f":"[1]ACS_16_5YR_B25063_with_ann!AR269","v":8},{"$f":"[1]ACS_16_5YR_B25063_with_ann!AS269","v":12},{"$f":"[1]ACS_16_5YR_B25063_with_ann!AT269","v":5},{"$f":"[1]ACS_16_5YR_B25063_with_ann!AU269","v":9},{"$f":"[1]ACS_16_5YR_B25063_with_ann!AV269","v":0},{"$f":"[1]ACS_16_5YR_B25063_with_ann!AW269","v":11},{"$f":"[1]ACS_16_5YR_B25063_with_ann!AX269","v":0},{"$f":"[1]ACS_16_5YR_B25063_with_ann!AY269","v":11},{"$f":"[1]ACS_16_5YR_B25063_with_ann!AZ269","v":0},{"$f":"[1]ACS_16_5YR_B25063_with_ann!BA269","v":11},{"$f":"[1]ACS_16_5YR_B25063_with_ann!BB269","v":0},{"$f":"[1]ACS_16_5YR_B25063_with_ann!BC269","v":11},{"$f":"[1]ACS_16_5YR_B25063_with_ann!BD269","v":15},{"$f":"[1]ACS_16_5YR_B25063_with_ann!BE269","v":15},{"$f":"[1]ACS_16_5YR_B25064_with_ann!D270","v":1193},{"$f":"[1]ACS_16_5YR_B25064_with_ann!E270","v":231}]
["0600000US3301975060",3301975060,"060","Sunapee",{"$f":"[1]ACS_16_5YR_B25063_with_ann!D270","v":349},{"$f":"[1]ACS_16_5YR_B25063_with_ann!E270","v":122},{"$f":"[1]ACS_16_5YR_B25063_with_ann!F270","v":344},{"$f":"[1]ACS_16_5YR_B25063_with_ann!G270","v":122},{"$f":"[1]ACS_16_5YR_B25063_with_ann!H270","v":0},{"$f":"[1]ACS_16_5YR_B25063_with_ann!I270","v":11},{"$f":"[1]ACS_16_5YR_B25063_with_ann!J270","v":0},{"$f":"[1]ACS_16_5YR_B25063_with_ann!K270","v":11},{"$f":"[1]ACS_16_5YR_B25063_with_ann!L270","v":0},{"$f":"[1]ACS_16_5YR_B25063_with_ann!M270","v":11},{"$f":"[1]ACS_16_5YR_B25063_with_ann!N270","v":0},{"$f":"[1]ACS_16_5YR_B25063_with_ann!O270","v":11},{"$f":"[1]ACS_16_5YR_B25063_with_ann!P270","v":0},{"$f":"[1]ACS_16_5YR_B25063_with_ann!Q270","v":11},{"$f":"[1]ACS_16_5YR_B25063_with_ann!R270","v":0},{"$f":"[1]ACS_16_5YR_B25063_with_ann!S270","v":11},{"$f":"[1]ACS_16_5YR_B25063_with_ann!T270","v":0},{"$f":"[1]ACS_16_5YR_B25063_with_ann!U270","v":11},{"$f":"[1]ACS_16_5YR_B25063_with_ann!V270","v":0},{"$f":"[1]ACS_16_5YR_B25063_with_ann!W270","v":11},{"$f":"[1]ACS_16_5YR_B25063_with_ann!X270","v":0},{"$f":"[1]ACS_16_5YR_B25063_with_ann!Y270","v":11},{"$f":"[1]ACS_16_5YR_B25063_with_ann!Z270","v":0},{"$f":"[1]ACS_16_5YR_B25063_with_ann!AA270","v":11},{"$f":"[1]ACS_16_5YR_B25063_with_ann!AB270","v":0},{"$f":"[1]ACS_16_5YR_B25063_with_ann!AC270","v":11},{"$f":"[1]ACS_16_5YR_B25063_with_ann!AD270","v":0},{"$f":"[1]ACS_16_5YR_B25063_with_ann!AE270","v":11},{"$f":"[1]ACS_16_5YR_B25063_with_ann!AF270","v":0},{"$f":"[1]ACS_16_5YR_B25063_with_ann!AG270","v":11},{"$f":"[1]ACS_16_5YR_B25063_with_ann!AH270","v":0},{"$f":"[1]ACS_16_5YR_B25063_with_ann!AI270","v":11},{"$f":"[1]ACS_16_5YR_B25063_with_ann!AJ270","v":0},{"$f":"[1]ACS_16_5YR_B25063_with_ann!AK270","v":11},{"$f":"[1]ACS_16_5YR_B25063_with_ann!AL270","v":65},{"$f":"[1]ACS_16_5YR_B25063_with_ann!AM270","v":60},{"$f":"[1]ACS_16_5YR_B25063_with_ann!AN270","v":53},{"$f":"[1]ACS_16_5YR_B25063_with_ann!AO270","v":61},{"$f":"[1]ACS_16_5YR_B25063_with_ann!AP270","v":70},{"$f":"[1]ACS_16_5YR_B25063_with_ann!AQ270","v":63},{"$f":"[1]ACS_16_5YR_B25063_with_ann!AR270","v":112},{"$f":"[1]ACS_16_5YR_B25063_with_ann!AS270","v":83},{"$f":"[1]ACS_16_5YR_B25063_with_ann!AT270","v":23},{"$f":"[1]ACS_16_5YR_B25063_with_ann!AU270","v":33},{"$f":"[1]ACS_16_5YR_B25063_with_ann!AV270","v":0},{"$f":"[1]ACS_16_5YR_B25063_with_ann!AW270","v":11},{"$f":"[1]ACS_16_5YR_B25063_with_ann!AX270","v":0},{"$f":"[1]ACS_16_5YR_B25063_with_ann!AY270","v":11},{"$f":"[1]ACS_16_5YR_B25063_with_ann!AZ270","v":0},{"$f":"[1]ACS_16_5YR_B25063_with_ann!BA270","v":11},{"$f":"[1]ACS_16_5YR_B25063_with_ann!BB270","v":21},{"$f":"[1]ACS_16_5YR_B25063_with_ann!BC270","v":18},{"$f":"[1]ACS_16_5YR_B25063_with_ann!BD270","v":5},{"$f":"[1]ACS_16_5YR_B25063_with_ann!BE270","v":8},{"$f":"[1]ACS_16_5YR_B25064_with_ann!D271","v":1301},{"$f":"[1]ACS_16_5YR_B25064_with_ann!E271","v":113}]
["0600000US3301977940",3301977940,"060","Unity",{"$f":"[1]ACS_16_5YR_B25063_with_ann!D271","v":35},{"$f":"[1]ACS_16_5YR_B25063_with_ann!E271","v":20},{"$f":"[1]ACS_16_5YR_B25063_with_ann!F271","v":27},{"$f":"[1]ACS_16_5YR_B25063_with_ann!G271","v":18},{"$f":"[1]ACS_16_5YR_B25063_with_ann!H271","v":0},{"$f":"[1]ACS_16_5YR_B25063_with_ann!I271","v":11},{"$f":"[1]ACS_16_5YR_B25063_with_ann!J271","v":0},{"$f":"[1]ACS_16_5YR_B25063_with_ann!K271","v":11},{"$f":"[1]ACS_16_5YR_B25063_with_ann!L271","v":0},{"$f":"[1]ACS_16_5YR_B25063_with_ann!M271","v":11},{"$f":"[1]ACS_16_5YR_B25063_with_ann!N271","v":0},{"$f":"[1]ACS_16_5YR_B25063_with_ann!O271","v":11},{"$f":"[1]ACS_16_5YR_B25063_with_ann!P271","v":0},{"$f":"[1]ACS_16_5YR_B25063_with_ann!Q271","v":11},{"$f":"[1]ACS_16_5YR_B25063_with_ann!R271","v":0},{"$f":"[1]ACS_16_5YR_B25063_with_ann!S271","v":11},{"$f":"[1]ACS_16_5YR_B25063_with_ann!T271","v":0},{"$f":"[1]ACS_16_5YR_B25063_with_ann!U271","v":11},{"$f":"[1]ACS_16_5YR_B25063_with_ann!V271","v":0},{"$f":"[1]ACS_16_5YR_B25063_with_ann!W271","v":11},{"$f":"[1]ACS_16_5YR_B25063_with_ann!X271","v":0},{"$f":"[1]ACS_16_5YR_B25063_with_ann!Y271","v":11},{"$f":"[1]ACS_16_5YR_B25063_with_ann!Z271","v":0},{"$f":"[1]ACS_16_5YR_B25063_with_ann!AA271","v":11},{"$f":"[1]ACS_16_5YR_B25063_with_ann!AB271","v":0},{"$f":"[1]ACS_16_5YR_B25063_with_ann!AC271","v":11},{"$f":"[1]ACS_16_5YR_B25063_with_ann!AD271","v":0},{"$f":"[1]ACS_16_5YR_B25063_with_ann!AE271","v":11},{"$f":"[1]ACS_16_5YR_B25063_with_ann!AF271","v":0},{"$f":"[1]ACS_16_5YR_B25063_with_ann!AG271","v":11},{"$f":"[1]ACS_16_5YR_B25063_with_ann!AH271","v":0},{"$f":"[1]ACS_16_5YR_B25063_with_ann!AI271","v":11},{"$f":"[1]ACS_16_5YR_B25063_with_ann!AJ271","v":0},{"$f":"[1]ACS_16_5YR_B25063_with_ann!AK271","v":11},{"$f":"[1]ACS_16_5YR_B25063_with_ann!AL271","v":0},{"$f":"[1]ACS_16_5YR_B25063_with_ann!AM271","v":11},{"$f":"[1]ACS_16_5YR_B25063_with_ann!AN271","v":0},{"$f":"[1]ACS_16_5YR_B25063_with_ann!AO271","v":11},{"$f":"[1]ACS_16_5YR_B25063_with_ann!AP271","v":10},{"$f":"[1]ACS_16_5YR_B25063_with_ann!AQ271","v":8},{"$f":"[1]ACS_16_5YR_B25063_with_ann!AR271","v":17},{"$f":"[1]ACS_16_5YR_B25063_with_ann!AS271","v":17},{"$f":"[1]ACS_16_5YR_B25063_with_ann!AT271","v":0},{"$f":"[1]ACS_16_5YR_B25063_with_ann!AU271","v":11},{"$f":"[1]ACS_16_5YR_B25063_with_ann!AV271","v":0},{"$f":"[1]ACS_16_5YR_B25063_with_ann!AW271","v":11},{"$f":"[1]ACS_16_5YR_B25063_with_ann!AX271","v":0},{"$f":"[1]ACS_16_5YR_B25063_with_ann!AY271","v":11},{"$f":"[1]ACS_16_5YR_B25063_with_ann!AZ271","v":0},{"$f":"[1]ACS_16_5YR_B25063_with_ann!BA271","v":11},{"$f":"[1]ACS_16_5YR_B25063_with_ann!BB271","v":0},{"$f":"[1]ACS_16_5YR_B25063_with_ann!BC271","v":11},{"$f":"[1]ACS_16_5YR_B25063_with_ann!BD271","v":8},{"$f":"[1]ACS_16_5YR_B25063_with_ann!BE271","v":9},{"$f":"[1]ACS_16_5YR_B25064_with_ann!D272","v":985},{"$f":"[1]ACS_16_5YR_B25064_with_ann!E272","v":396}]
["0600000US3301978980",3301978980,"060","Washington",{"$f":"[1]ACS_16_5YR_B25063_with_ann!D272","v":38},{"$f":"[1]ACS_16_5YR_B25063_with_ann!E272","v":28},{"$f":"[1]ACS_16_5YR_B25063_with_ann!F272","v":29},{"$f":"[1]ACS_16_5YR_B25063_with_ann!G272","v":26},{"$f":"[1]ACS_16_5YR_B25063_with_ann!H272","v":0},{"$f":"[1]ACS_16_5YR_B25063_with_ann!I272","v":11},{"$f":"[1]ACS_16_5YR_B25063_with_ann!J272","v":0},{"$f":"[1]ACS_16_5YR_B25063_with_ann!K272","v":11},{"$f":"[1]ACS_16_5YR_B25063_with_ann!L272","v":0},{"$f":"[1]ACS_16_5YR_B25063_with_ann!M272","v":11},{"$f":"[1]ACS_16_5YR_B25063_with_ann!N272","v":0},{"$f":"[1]ACS_16_5YR_B25063_with_ann!O272","v":11},{"$f":"[1]ACS_16_5YR_B25063_with_ann!P272","v":0},{"$f":"[1]ACS_16_5YR_B25063_with_ann!Q272","v":11},{"$f":"[1]ACS_16_5YR_B25063_with_ann!R272","v":0},{"$f":"[1]ACS_16_5YR_B25063_with_ann!S272","v":11},{"$f":"[1]ACS_16_5YR_B25063_with_ann!T272","v":0},{"$f":"[1]ACS_16_5YR_B25063_with_ann!U272","v":11},{"$f":"[1]ACS_16_5YR_B25063_with_ann!V272","v":0},{"$f":"[1]ACS_16_5YR_B25063_with_ann!W272","v":11},{"$f":"[1]ACS_16_5YR_B25063_with_ann!X272","v":0},{"$f":"[1]ACS_16_5YR_B25063_with_ann!Y272","v":11},{"$f":"[1]ACS_16_5YR_B25063_with_ann!Z272","v":0},{"$f":"[1]ACS_16_5YR_B25063_with_ann!AA272","v":11},{"$f":"[1]ACS_16_5YR_B25063_with_ann!AB272","v":0},{"$f":"[1]ACS_16_5YR_B25063_with_ann!AC272","v":11},{"$f":"[1]ACS_16_5YR_B25063_with_ann!AD272","v":0},{"$f":"[1]ACS_16_5YR_B25063_with_ann!AE272","v":11},{"$f":"[1]ACS_16_5YR_B25063_with_ann!AF272","v":0},{"$f":"[1]ACS_16_5YR_B25063_with_ann!AG272","v":11},{"$f":"[1]ACS_16_5YR_B25063_with_ann!AH272","v":6},{"$f":"[1]ACS_16_5YR_B25063_with_ann!AI272","v":14},{"$f":"[1]ACS_16_5YR_B25063_with_ann!AJ272","v":0},{"$f":"[1]ACS_16_5YR_B25063_with_ann!AK272","v":11},{"$f":"[1]ACS_16_5YR_B25063_with_ann!AL272","v":0},{"$f":"[1]ACS_16_5YR_B25063_with_ann!AM272","v":11},{"$f":"[1]ACS_16_5YR_B25063_with_ann!AN272","v":10},{"$f":"[1]ACS_16_5YR_B25063_with_ann!AO272","v":15},{"$f":"[1]ACS_16_5YR_B25063_with_ann!AP272","v":3},{"$f":"[1]ACS_16_5YR_B25063_with_ann!AQ272","v":4},{"$f":"[1]ACS_16_5YR_B25063_with_ann!AR272","v":10},{"$f":"[1]ACS_16_5YR_B25063_with_ann!AS272","v":16},{"$f":"[1]ACS_16_5YR_B25063_with_ann!AT272","v":0},{"$f":"[1]ACS_16_5YR_B25063_with_ann!AU272","v":11},{"$f":"[1]ACS_16_5YR_B25063_with_ann!AV272","v":0},{"$f":"[1]ACS_16_5YR_B25063_with_ann!AW272","v":11},{"$f":"[1]ACS_16_5YR_B25063_with_ann!AX272","v":0},{"$f":"[1]ACS_16_5YR_B25063_with_ann!AY272","v":11},{"$f":"[1]ACS_16_5YR_B25063_with_ann!AZ272","v":0},{"$f":"[1]ACS_16_5YR_B25063_with_ann!BA272","v":11},{"$f":"[1]ACS_16_5YR_B25063_with_ann!BB272","v":0},{"$f":"[1]ACS_16_5YR_B25063_with_ann!BC272","v":11},{"$f":"[1]ACS_16_5YR_B25063_with_ann!BD272","v":9},{"$f":"[1]ACS_16_5YR_B25063_with_ann!BE272","v":7},{"$f":"[1]ACS_16_5YR_B25064_with_ann!D273","v":0},{"$f":"[1]ACS_16_5YR_B25064_with_ann!E273","v":0}]
[]
[null,null,null,null,{"$f":"$D$3","v":"Acworth"},null,{"$f":"$D$4","v":"Charlestown"},null,{"$f":"$D$5","v":"Claremont"},null,{"$f":"$D$6","v":"Cornish"},null,{"$f":"$D$7","v":"Croydon"},null,{"$f":"$D$8","v":"Goshen"},null,{"$f":"$D$9","v":"Grantham"},null,{"$f":"$D$10","v":"Langdon"},null,{"$f":"$D$11","v":"Lempster"},null,{"$f":"$D$12","v":"Newport"},null,{"$f":"$D$13","v":"Plainfield"},null,{"$f":"$D$14","v":"Springfield"},null,{"$f":"$D$15","v":"Sunapee"},null,{"$f":"$D$16","v":"Unity"},null,{"$f":"$D$17","v":"Washington"}]
["Table B27063",null,null,null,"Estimate","Margin Of Error","Estimate","Margin Of Error","Estimate","Margin Of Error","Estimate","Margin Of Error","Estimate","Margin Of Error","Estimate","Margin Of Error","Estimate","Margin Of Error","Estimate","Margin Of Error","Estimate","Margin Of Error","Estimate","Margin Of Error","Estimate","Margin Of Error","Estimate","Margin Of Error","Estimate","Margin Of Error",null,"Estimate","Margin Of Error"]
[null,null,null,"Estimate Total:",30,16,502,134,2310,288,55,26,36,22,54,23,140,79,39,21,26,16,857,184,112,49,44,33,349,122,35,20,38,28]
[null,null,null,"Estimate Total: With cash rent:",28,16,471,144,2302,287,52,25,34,21,44,25,140,79,36,21,24,16,785,186,108,48,29,30,344,122,27,18,29,26]
[null,null,null,"Estimate Total: With cash rent: Less than $100",0,11,0,16,7,11,0,11,0,11,0,11,0,11,0,11,0,11,0,16,0,11,0,11,0,11,0,11,0,11]
[null,null,null,"Estimate Total: With cash rent: $100 to $149",0,11,0,16,0,18,0,11,0,11,0,11,0,11,0,11,0,11,15,23,0,11,0,11,0,11,0,11,0,11]
[null,null,null,"Estimate Total: With cash rent: $150 to $199",0,11,0,16,24,28,0,11,0,11,0,11,0,11,0,11,0,11,0,16,0,11,0,11,0,11,0,11,0,11]
[null,null,null,"Estimate Total: With cash rent: $200 to $249",0,11,14,23,73,46,0,11,0,11,0,11,0,11,0,11,0,11,0,16,0,11,0,11,0,11,0,11,0,11]
[null,null,null,"Estimate Total: With cash rent: $250 to $299",0,11,0,16,24,32,0,11,0,11,0,11,0,11,0,11,0,11,46,58,0,11,0,11,0,11,0,11,0,11]
[null,null,null,"Estimate Total: With cash rent: $300 to $349",0,11,0,16,97,74,0,11,0,11,0,11,23,37,0,11,0,11,25,28,0,11,0,11,0,11,0,11,0,11]
[null,null,null,"Estimate Total: With cash rent: $350 to $399",0,11,0,16,68,59,0,11,0,11,0,11,0,11,0,11,0,11,11,18,0,11,0,11,0,11,0,11,0,11]
[null,null,null,"Estimate Total: With cash rent: $400 to $449",0,11,33,37,0,18,0,11,0,11,7,10,0,11,0,11,0,11,0,16,0,11,0,11,0,11,0,11,0,11]
[null,null,null,"Estimate Total: With cash rent: $450 to $499",0,11,8,15,8,13,0,11,0,11,0,11,0,11,0,11,0,11,40,67,0,11,0,11,0,11,0,11,0,11]
[null,null,null,"Estimate Total: With cash rent: $500 to $549",0,11,0,16,34,33,3,5,0,11,0,11,0,11,0,11,0,11,41,65,0,11,0,11,0,11,0,11,0,11]
[null,null,null,"Estimate Total: With cash rent: $550 to $599",0,11,14,23,42,47,0,11,0,11,0,11,0,11,0,11,4,5,13,20,0,11,0,11,0,11,0,11,0,11]
[null,null,null,"Estimate Total: With cash rent: $600 to $649",0,11,21,26,38,34,8,8,0,11,0,11,0,11,0,11,0,11,0,16,0,11,16,27,0,11,0,11,0,11]
[null,null,null,"Estimate Total: With cash rent: $650 to $699",0,11,17,27,87,62,0,11,0,11,0,11,0,11,0,11,0,11,14,24,0,11,0,11,0,11,0,11,0,11]
[null,null,null,"Estimate Total: With cash rent: $700 to $749",0,11,0,16,99,81,0,11,3,4,0,11,0,11,0,11,2,4,13,20,0,11,0,11,0,11,0,11,6,14]
[null,null,null,"Estimate Total: With cash rent: $750 to $799",0,11,85,92,62,48,0,11,0,11,0,11,0,11,0,11,0,11,7,11,0,11,0,11,0,11,0,11,0,11]
[null,null,null,"Estimate Total: With cash rent: $800 to $899",0,11,0,16,224,93,0,11,5,10,6,9,0,11,14,14,0,11,183,116,6,8,0,11,65,60,0,11,0,11]
[null,null,null,"Estimate Total: With cash rent: $900 to $999",8,10,66,59,321,140,11,9,0,11,8,9,0,11,12,13,12,14,117,86,16,18,0,11,53,61,0,11,10,15]
[null,null,null,"Estimate Total: With cash rent: $1000 to $1249",8,9,93,78,871,230,19,19,8,9,8,7,54,58,2,3,3,4,108,83,5,7,0,11,70,63,10,8,3,4]
[null,null,null,"Estimate Total: With cash rent: $1250 to $1499",3,4,120,96,159,90,4,6,10,12,15,17,0,11,6,9,3,5,39,39,22,27,8,12,112,83,17,17,10,16]
[null,null,null,"Estimate Total: With cash rent: $1500 to $1999",9,8,0,16,56,48,7,7,8,11,0,11,63,69,2,3,0,11,88,74,59,40,5,9,23,33,0,11,0,11]
[null,null,null,"Estimate Total: With cash rent: $2,000 to $2,499",0,11,0,16,8,12,0,11,0,11,0,11,0,11,0,11,0,11,25,30,0,11,0,11,0,11,0,11,0,11]
[null,null,null,"Estimate Total: With cash rent: $2,500 to $2,999",0,11,0,16,0,18,0,11,0,11,0,11,0,11,0,11,0,11,0,16,0,11,0,11,0,11,0,11,0,11]
[null,null,null,"Estimate Total: With cash rent: $3,000 to $3,499",0,11,0,16,0,18,0,11,0,11,0,11,0,11,0,11,0,11,0,16,0,11,0,11,0,11,0,11,0,11]
[null,null,null,"Estimate Total: With cash rent: $3,500 or more",0,11,0,16,0,18,0,11,0,11,0,11,0,11,0,11,0,11,0,16,0,11,0,11,21,18,0,11,0,11]
[null,null,null,"Estimate Total: No cash rent",2,3,31,47,8,12,3,4,2,4,10,7,0,11,3,4,2,3,72,76,4,8,15,15,5,8,8,9,9,7]
["Table B27064"]
[null,null,null,"Estimate Median gross rent",1188,295,966,221,982,48,1275,276,1031,310,1218,697,933,84,950,92,892,65,1542,205,"-","**",1193,231,1301,113,985,396,0,0]

{"sheet":"SData_B25070_&_B25074GRAsPerInc","index":91,"n_rows":97,"n_cols":156,"rows_kept":97,"cut":false,"hidden":true,"merged":[]}
["GEO_ID","GEO_ID2","SUMLEVEL","GEO_NAME","B25070_1_EST","B25070_1_MOE","B25070_2_EST","B25070_2_MOE","B25070_3_EST","B25070_3_MOE","B25070_4_EST","B25070_4_MOE","B25070_5_EST","B25070_5_MOE","B25070_6_EST","B25070_6_MOE","B25070_7_EST","B25070_7_MOE","B25070_8_EST","B25070_8_MOE","B25070_9_EST","B25070_9_MOE","B25070_10_EST","B25070_10_MOE","B25070_11_EST","B25070_11_MOE","B25074_1_EST","B25074_1_MOE","B25074_2_EST","B25074_2_MOE","B25074_3_EST","B25074_3_MOE","B25074_4_EST","B25074_4_MOE","B25074_5_EST","B25074_5_MOE","B25074_6_EST","B25074_6_MOE","B25074_7_EST","B25074_7_MOE","B25074_8_EST","B25074_8_MOE","B25074_9_EST","B25074_9_MOE","B25074_10_EST","B25074_10_MOE","B25074_11_EST","B25074_11_MOE","B25074_12_EST","B25074_12_MOE","B25074_13_EST","B25074_13_MOE","B25074_14_EST","B25074_14_MOE","B25074_15_EST","B25074_15_MOE","B25074_16_EST","B25074_16_MOE","B25074_17_EST","B25074_17_MOE","B25074_18_EST","B25074_18_MOE","B25074_19_EST","B25074_19_MOE","B25074_20_EST","B25074_20_MOE","B25074_21_EST","B25074_21_MOE","B25074_22_EST","B25074_22_MOE","B25074_23_EST","B25074_23_MOE","B25074_24_EST","B25074_24_MOE","B25074_25_EST","B25074_25_MOE","B25074_26_EST","B25074_26_MOE","B25074_27_EST","B25074_27_MOE","B25074_28_EST","B25074_28_MOE","B25074_29_EST","B25074_29_MOE","B25074_30_EST","B25074_30_MOE","B25074_31_EST","B25074_31_MOE","B25074_32_EST","B25074_32_MOE","B25074_33_EST","B25074_33_MOE","B25074_34_EST","B25074_34_MOE","B25074_35_EST","B25074_35_MOE","B25074_36_EST","B25074_36_MOE","B25074_37_EST","B25074_37_MOE","B25074_38_EST","B25074_38_MOE","B25074_39_EST","B25074_39_MOE","B25074_40_EST","B25074_40_MOE","B25074_41_EST","B25074_41_MOE","B25074_42_EST","B25074_42_MOE","B25074_43_EST","B25074_43_MOE","B25074_44_EST","B25074_44_MOE","B25074_45_EST","B25074_45_MOE","B25074_46_EST","B25074_46_MOE","B25074_47_EST","B25074_47_MOE","B25074_48_EST","B25074_48_MOE","B25074_49_EST","B25074_49_MOE","B25074_50_EST","B25074_50_MOE","B25074_51_EST","B25074_51_MOE","B25074_52_EST","B25074_52_MOE","B25074_53_EST","B25074_53_MOE","B25074_54_EST","B25074_54_MOE","B25074_55_EST","B25074_55_MOE","B25074_56_EST","B25074_56_MOE","B25074_57_EST","B25074_57_MOE","B25074_58_EST","B25074_58_MOE","B25074_59_EST","B25074_59_MOE","B25074_60_EST","B25074_60_MOE","B25074_61_EST","B25074_61_MOE","B25074_62_EST","B25074_62_MOE","B25074_63_EST","B25074_63_MOE","B25074_64_EST","B25074_64_MOE"]
["Geography Identifier","Geography Identifier","Geographic Summary Level","Geography",{"$f":"[1]ACS_16_5YR_B25070_with_ann!D$2","v":"Estimate Total:"},{"$f":"[1]ACS_16_5YR_B25070_with_ann!E$2","v":"Margin of Error Total:"},{"$f":"[1]ACS_16_5YR_B25070_with_ann!F$2","v":"Estimate Total: Less than 10.0 percent"},{"$f":"[1]ACS_16_5YR_B25070_with_ann!G$2","v":"Margin of Error Total: Less than 10.0 percent"},{"$f":"[1]ACS_16_5YR_B25070_with_ann!H$2","v":"Estimate Total: 10.0 to 14.9 percent"},{"$f":"[1]ACS_16_5YR_B25070_with_ann!I$2","v":"Margin of Error Total: 10.0 to 14.9 percent"},{"$f":"[1]ACS_16_5YR_B25070_with_ann!J$2","v":"Estimate Total: 15.0 to 19.9 percent"},{"$f":"[1]ACS_16_5YR_B25070_with_ann!K$2","v":"Margin of Error Total: 15.0 to 19.9 percent"},{"$f":"[1]ACS_16_5YR_B25070_with_ann!L$2","v":"Estimate Total: 20.0 to 24.9 percent"},{"$f":"[1]ACS_16_5YR_B25070_with_ann!M$2","v":"Margin of Error Total: 20.0 to 24.9 percent"},{"$f":"[1]ACS_16_5YR_B25070_with_ann!N$2","v":"Estimate Total: 25.0 to 29.9 percent"},{"$f":"[1]ACS_16_5YR_B25070_with_ann!O$2","v":"Margin of Error Total: 25.0 to 29.9 percent"},{"$f":"[1]ACS_16_5YR_B25070_with_ann!P$2","v":"Estimate Total: 30.0 to 34.9 percent"},{"$f":"[1]ACS_16_5YR_B25070_with_ann!Q$2","v":"Margin of Error Total: 30.0 to 34.9 percent"},{"$f":"[1]ACS_16_5YR_B25070_with_ann!R$2","v":"Estimate Total: 35.0 to 39.9 percent"},{"$f":"[1]ACS_16_5YR_B25070_with_ann!S$2","v":"Margin of Error Total: 35.0 to 39.9 percent"},{"$f":"[1]ACS_16_5YR_B25070_with_ann!T$2","v":"Estimate Total: 40.0 to 49.9 percent"},{"$f":"[1]ACS_16_5YR_B25070_with_ann!U$2","v":"Margin of Error Total: 40.0 to 49.9 percent"},{"$f":"[1]ACS_16_5YR_B25070_with_ann!V$2","v":"Estimate Total: 50.0 percent or more"},{"$f":"[1]ACS_16_5YR_B25070_with_ann!W$2","v":"Margin of Error Total: 50.0 percent or more"},{"$f":"[1]ACS_16_5YR_B25070_with_ann!X$2","v":"Estimate Total: Not computed"},{"$f":"[1]ACS_16_5YR_B25070_with_ann!Y$2","v":"Margin of Error Total: Not computed"},{"$f":"[1]ACS_16_5YR_B25074_with_ann!D$2","v":"Estimate Total:"},{"$f":"[1]ACS_16_5YR_B25074_with_ann!E$2","v":"Margin of Error Total:"},{"$f":"[1]ACS_16_5YR_B25074_with_ann!F$2","v":"Estimate  Less than $10,000:"},{"$f":"[1]ACS_16_5YR_B25074_with_ann!G$2","v":"Margin of Error Total: Less than $10,000"},{"$f":"[1]ACS_16_5YR_B25074_with_ann!H$2","v":"Estimate  Less than $10,000: - Less than 20.0 percent"},{"$f":"[1]ACS_16_5YR_B25074_with_ann!I$2","v":"Margin of Error Total: Less than $10,000"},{"$f":"[1]ACS_16_5YR_B25074_with_ann!J$2","v":"Estimate  Less than $10,000: - 20.0 to 24.9 percent"},{"$f":"[1]ACS_16_5YR_B25074_with_ann!K$2","v":"Margin of Error Total: Less than $10,000"},{"$f":"[1]ACS_16_5YR_B25074_with_ann!L$2","v":"Estimate  Less than $10,000: - 25.0 to 29.9 percent"},{"$f":"[1]ACS_16_5YR_B25074_with_ann!M$2","v":"Margin of Error Total: Less than $10,000"},{"$f":"[1]ACS_16_5YR_B25074_with_ann!N$2","v":"Estimate  Less than $10,000: - 30.0 to 34.9 percent"},{"$f":"[1]ACS_16_5YR_B25074_with_ann!O$2","v":"Margin of Error Total: Less than $10,000"},{"$f":"[1]ACS_16_5YR_B25074_with_ann!P$2","v":"Estimate  Less than $10,000: - 35.0 to 39.9 percent"},{"$f":"[1]ACS_16_5YR_B25074_with_ann!Q$2","v":"Margin of Error Total: Less than $10,000"},{"$f":"[1]ACS_16_5YR_B25074_with_ann!R$2","v":"Estimate  Less than $10,000: - 40.0 to 49.9 percent"},{"$f":"[1]ACS_16_5YR_B25074_with_ann!S$2","v":"Margin of Error Total: Less than $10,000"},{"$f":"[1]ACS_16_5YR_B25074_with_ann!T$2","v":"Estimate  Less than $10,000: - 50.0 percent or more"},{"$f":"[1]ACS_16_5YR_B25074_with_ann!U$2","v":"Margin of Error Total: Less than $10,000"},{"$f":"[1]ACS_16_5YR_B25074_with_ann!V$2","v":"Estimate  Less than $10,000: - Not computed"},{"$f":"[1]ACS_16_5YR_B25074_with_ann!W$2","v":"Margin of Error Total: Less than $10,000"},{"$f":"[1]ACS_16_5YR_B25074_with_ann!X$2","v":"Estimate  $10,000 to $19,999,000:"},{"$f":"[1]ACS_16_5YR_B25074_with_ann!Y$2","v":"Margin of Error Total: $10,000 to $19,999,000"},{"$f":"[1]ACS_16_5YR_B25074_with_ann!Z$2","v":"Estimate  $10,000 to $19,999,000: - Less than 20.0 percent"},{"$f":"[1]ACS_16_5YR_B25074_with_ann!AA$2","v":"Margin of Error Total: $10,000 to $19,999,000"},{"$f":"[1]ACS_16_5YR_B25074_with_ann!AB$2","v":"Estimate  $10,000 to $19,999,000: - 20.0 to 24.9 percent"},{"$f":"[1]ACS_16_5YR_B25074_with_ann!AC$2","v":"Margin of Error Total: $10,000 to $19,999,000"},{"$f":"[1]ACS_16_5YR_B25074_with_ann!AD$2","v":"Estimate  $10,000 to $19,999,000: - 25.0 to 29.9 percent"},{"$f":"[1]ACS_16_5YR_B25074_with_ann!AE$2","v":"Margin of Error Total: $10,000 to $19,999,000"},{"$f":"[1]ACS_16_5YR_B25074_with_ann!AF$2","v":"Estimate  $10,000 to $19,999,000: - 30.0 to 34.9 percent"},{"$f":"[1]ACS_16_5YR_B25074_with_ann!AG$2","v":"Margin of Error Total: $10,000 to $19,999,000"},{"$f":"[1]ACS_16_5YR_B25074_with_ann!AH$2","v":"Estimate  $10,000 to $19,999,000: - 35.0 to 39.9 percent"},{"$f":"[1]ACS_16_5YR_B25074_with_ann!AI$2","v":"Margin of Error Total: $10,000 to $19,999,000"},{"$f":"[1]ACS_16_5YR_B25074_with_ann!AJ$2","v":"Estimate  $10,000 to $19,999,000: - 40.0 to 49.9 percent"},{"$f":"[1]ACS_16_5YR_B25074_with_ann!AK$2","v":"Margin of Error Total: $10,000 to $19,999,000"},{"$f":"[1]ACS_16_5YR_B25074_with_ann!AL$2","v":"Estimate  $10,000 to $19,999,000: - 50.0 percent or more"},{"$f":"[1]ACS_16_5YR_B25074_with_ann!AM$2","v":"Margin of Error Total: $10,000 to $19,999,000"},{"$f":"[1]ACS_16_5YR_B25074_with_ann!AN$2","v":"Estimate  $10,000 to $19,999,000: - Not computed"},{"$f":"[1]ACS_16_5YR_B25074_with_ann!AO$2","v":"Margin of Error Total: $10,000 to $19,999,000"},{"$f":"[1]ACS_16_5YR_B25074_with_ann!AP$2","v":"Estimate  $20,000 to $34,999,000:"},{"$f":"[1]ACS_16_5YR_B25074_with_ann!AQ$2","v":"Margin of Error Total: $20,000 to $34,999,000"},{"$f":"[1]ACS_16_5YR_B25074_with_ann!AR$2","v":"Estimate  $20,000 to $34,999,000: - Less than 20.0 percent"},{"$f":"[1]ACS_16_5YR_B25074_with_ann!AS$2","v":"Margin of Error Total: $20,000 to $34,999,000"},{"$f":"[1]ACS_16_5YR_B25074_with_ann!AT$2","v":"Estimate  $20,000 to $34,999,000: - 20.0 to 24.9 percent"},{"$f":"[1]ACS_16_5YR_B25074_with_ann!AU$2","v":"Margin of Error Total: $20,000 to $34,999,000"},{"$f":"[1]ACS_16_5YR_B25074_with_ann!AV$2","v":"Estimate  $20,000 to $34,999,000: - 25.0 to 29.9 percent"},{"$f":"[1]ACS_16_5YR_B25074_with_ann!AW$2","v":"Margin of Error Total: $20,000 to $34,999,000"},{"$f":"[1]ACS_16_5YR_B25074_with_ann!AX$2","v":"Estimate  $20,000 to $34,999,000: - 30.0 to 34.9 percent"},{"$f":"[1]ACS_16_5YR_B25074_with_ann!AY$2","v":"Margin of Error Total: $20,000 to $34,999,000"},{"$f":"[1]ACS_16_5YR_B25074_with_ann!AZ$2","v":"Estimate  $20,000 to $34,999,000: - 35.0 to 39.9 percent"},{"$f":"[1]ACS_16_5YR_B25074_with_ann!BA$2","v":"Margin of Error Total: $20,000 to $34,999,000"},{"$f":"[1]ACS_16_5YR_B25074_with_ann!BB$2","v":"Estimate  $20,000 to $34,999,000: - 40.0 to 49.9 percent"},{"$f":"[1]ACS_16_5YR_B25074_with_ann!BC$2","v":"Margin of Error Total: $20,000 to $34,999,000"},{"$f":"[1]ACS_16_5YR_B25074_with_ann!BD$2","v":"Estimate  $20,000 to $34,999,000: - 50.0 percent or more"},{"$f":"[1]ACS_16_5YR_B25074_with_ann!BE$2","v":"Margin of Error Total: $20,000 to $34,999,000"},{"$f":"[1]ACS_16_5YR_B25074_with_ann!BF$2","v":"Estimate  $20,000 to $34,999,000: - Not computed"},{"$f":"[1]ACS_16_5YR_B25074_with_ann!BG$2","v":"Margin of Error Total: $20,000 to $34,999,000"},{"$f":"[1]ACS_16_5YR_B25074_with_ann!BH$2","v":"Estimate  $35,000 to $49,999,000:"},{"$f":"[1]ACS_16_5YR_B25074_with_ann!BI$2","v":"Margin of Error Total: $35,000 to $49,999,000"},{"$f":"[1]ACS_16_5YR_B25074_with_ann!BJ$2","v":"Estimate  $35,000 to $49,999,000: - Less than 20.0 percent"},{"$f":"[1]ACS_16_5YR_B25074_with_ann!BK$2","v":"Margin of Error Total: $35,000 to $49,999,000"},{"$f":"[1]ACS_16_5YR_B25074_with_ann!BL$2","v":"Estimate  $35,000 to $49,999,000: - 20.0 to 24.9 percent"},{"$f":"[1]ACS_16_5YR_B25074_with_ann!BM$2","v":"Margin of Error Total: $35,000 to $49,999,000"},{"$f":"[1]ACS_16_5YR_B25074_with_ann!BN$2","v":"Estimate  $35,000 to $49,999,000: - 25.0 to 29.9 percent"},{"$f":"[1]ACS_16_5YR_B25074_with_ann!BO$2","v":"Margin of Error Total: $35,000 to $49,999,000"},{"$f":"[1]ACS_16_5YR_B25074_with_ann!BP$2","v":"Estimate  $35,000 to $49,999,000: - 30.0 to 34.9 percent"},{"$f":"[1]ACS_16_5YR_B25074_with_ann!BQ$2","v":"Margin of Error Total: $35,000 to $49,999,000"},{"$f":"[1]ACS_16_5YR_B25074_with_ann!BR$2","v":"Estimate  $35,000 to $49,999,000: - 35.0 to 39.9 percent"},{"$f":"[1]ACS_16_5YR_B25074_with_ann!BS$2","v":"Margin of Error Total: $35,000 to $49,999,000"},{"$f":"[1]ACS_16_5YR_B25074_with_ann!BT$2","v":"Estimate  $35,000 to $49,999,000: - 40.0 to 49.9 percent"},{"$f":"[1]ACS_16_5YR_B25074_with_ann!BU$2","v":"Margin of Error Total: $35,000 to $49,999,000"},{"$f":"[1]ACS_16_5YR_B25074_with_ann!BV$2","v":"Estimate  $35,000 to $49,999,000: - 50.0 percent or more"},{"$f":"[1]ACS_16_5YR_B25074_with_ann!BW$2","v":"Margin of Error Total: $35,000 to $49,999,000"},{"$f":"[1]ACS_16_5YR_B25074_with_ann!BX$2","v":"Estimate  $35,000 to $49,999,000: - Not computed"},{"$f":"[1]ACS_16_5YR_B25074_with_ann!BY$2","v":"Margin of Error Total: $35,000 to $49,999,000"},{"$f":"[1]ACS_16_5YR_B25074_with_ann!BZ$2","v":"Estimate  $50,000 to $74,999,000:"},{"$f":"[1]ACS_16_5YR_B25074_with_ann!CA$2","v":"Margin of Error Total: $50,000 to $74,999,000"},{"$f":"[1]ACS_16_5YR_B25074_with_ann!CB$2","v":"Estimate  $50,000 to $74,999,000: - Less than 20.0 percent"},{"$f":"[1]ACS_16_5YR_B25074_with_ann!CC$2","v":"Margin of Error Total: $50,000 to $74,999,000"},{"$f":"[1]ACS_16_5YR_B25074_with_ann!CD$2","v":"Estimate  $50,000 to $74,999,000: - 20.0 to 24.9 percent"},{"$f":"[1]ACS_16_5YR_B25074_with_ann!CE$2","v":"Margin of Error Total: $50,000 to $74,999,000"},{"$f":"[1]ACS_16_5YR_B25074_with_ann!CF$2","v":"Estimate  $50,000 to $74,999,000: - 25.0 to 29.9 percent"},{"$f":"[1]ACS_16_5YR_B25074_with_ann!CG$2","v":"Margin of Error Total: $50,000 to $74,999,000"},{"$f":"[1]ACS_16_5YR_B25074_with_ann!CH$2","v":"Estimate  $50,000 to $74,999,000: - 30.0 to 34.9 percent"},{"$f":"[1]ACS_16_5YR_B25074_with_ann!CI$2","v":"Margin of Error Total: $50,000 to $74,999,000"},{"$f":"[1]ACS_16_5YR_B25074_with_ann!CJ$2","v":"Estimate  $50,000 to $74,999,000: - 35.0 to 39.9 percent"},{"$f":"[1]ACS_16_5YR_B25074_with_ann!CK$2","v":"Margin of Error Total: $50,000 to $74,999,000"},{"$f":"[1]ACS_16_5YR_B25074_with_ann!CL$2","v":"Estimate  $50,000 to $74,999,000: - 40.0 to 49.9 percent"},{"$f":"[1]ACS_16_5YR_B25074_with_ann!CM$2","v":"Margin of Error Total: $50,000 to $74,999,000"},{"$f":"[1]ACS_16_5YR_B25074_with_ann!CN$2","v":"Estimate  $50,000 to $74,999,000: - 50.0 percent or more"},{"$f":"[1]ACS_16_5YR_B25074_with_ann!CO$2","v":"Margin of Error Total: $50,000 to $74,999,000"},{"$f":"[1]ACS_16_5YR_B25074_with_ann!CP$2","v":"Estimate  $50,000 to $74,999,000: - Not computed"},{"$f":"[1]ACS_16_5YR_B25074_with_ann!CQ$2","v":"Margin of Error Total: $50,000 to $74,999,000"},{"$f":"[1]ACS_16_5YR_B25074_with_ann!CR$2","v":"Estimate  $75,000 to $99,999,000:"},{"$f":"[1]ACS_16_5YR_B25074_with_ann!CS$2","v":"Margin of Error Total: $75,000 to $99,999,000"},{"$f":"[1]ACS_16_5YR_B25074_with_ann!CT$2","v":"Estimate  $75,000 to $99,999,000: - Less than 20.0 percent"},{"$f":"[1]ACS_16_5YR_B25074_with_ann!CU$2","v":"Margin of Error Total: $75,000 to $99,999,000"},{"$f":"[1]ACS_16_5YR_B25074_with_ann!CV$2","v":"Estimate  $75,000 to $99,999,000: - 20.0 to 24.9 percent"},{"$f":"[1]ACS_16_5YR_B25074_with_ann!CW$2","v":"Margin of Error Total: $75,000 to $99,999,000"},{"$f":"[1]ACS_16_5YR_B25074_with_ann!CX$2","v":"Estimate  $75,000 to $99,999,000: - 25.0 to 29.9 percent"},{"$f":"[1]ACS_16_5YR_B25074_with_ann!CY$2","v":"Margin of Error Total: $75,000 to $99,999,000"},{"$f":"[1]ACS_16_5YR_B25074_with_ann!CZ$2","v":"Estimate  $75,000 to $99,999,000: - 30.0 to 34.9 percent"},{"$f":"[1]ACS_16_5YR_B25074_with_ann!DA$2","v":"Margin of Error Total: $75,000 to $99,999,000"},{"$f":"[1]ACS_16_5YR_B25074_with_ann!DB$2","v":"Estimate  $75,000 to $99,999,000: - 35.0 to 39.9 percent"},{"$f":"[1]ACS_16_5YR_B25074_with_ann!DC$2","v":"Margin of Error Total: $75,000 to $99,999,000"},{"$f":"[1]ACS_16_5YR_B25074_with_ann!DD$2","v":"Estimate  $75,000 to $99,999,000: - 40.0 to 49.9 percent"},{"$f":"[1]ACS_16_5YR_B25074_with_ann!DE$2","v":"Margin of Error Total: $75,000 to $99,999,000"},{"$f":"[1]ACS_16_5YR_B25074_with_ann!DF$2","v":"Estimate  $75,000 to $99,999,000: - 50.0 percent or more"},{"$f":"[1]ACS_16_5YR_B25074_with_ann!DG$2","v":"Margin of Error Total: $75,000 to $99,999,000"},{"$f":"[1]ACS_16_5YR_B25074_with_ann!DH$2","v":"Estimate  $75,000 to $99,999,000: - Not computed"},{"$f":"[1]ACS_16_5YR_B25074_with_ann!DI$2","v":"Margin of Error Total: $75,000 to $99,999,000"},{"$f":"[1]ACS_16_5YR_B25074_with_ann!DJ$2","v":"Estimate  $100,000 or more:"},{"$f":"[1]ACS_16_5YR_B25074_with_ann!DK$2","v":"Margin of Error Total: $100,000 or more"},{"$f":"[1]ACS_16_5YR_B25074_with_ann!DL$2","v":"Estimate  $100,000 or more: - Less than 20.0 percent"},{"$f":"[1]ACS_16_5YR_B25074_with_ann!DM$2","v":"Margin of Error Total: $100,000 or more"},{"$f":"[1]ACS_16_5YR_B25074_with_ann!DN$2","v":"Estimate  $100,000 or more: - 20.0 to 24.9 percent"},{"$f":"[1]ACS_16_5YR_B25074_with_ann!DO$2","v":"Margin of Error Total: $100,000 or more"},{"$f":"[1]ACS_16_5YR_B25074_with_ann!DP$2","v":"Estimate  $100,000 or more: - 25.0 to 29.9 percent"},{"$f":"[1]ACS_16_5YR_B25074_with_ann!DQ$2","v":"Margin of Error Total: $100,000 or more"},{"$f":"[1]ACS_16_5YR_B25074_with_ann!DR$2","v":"Estimate  $100,000 or more: - 30.0 to 34.9 percent"},{"$f":"[1]ACS_16_5YR_B25074_with_ann!DS$2","v":"Margin of Error Total: $100,000 or more"},{"$f":"[1]ACS_16_5YR_B25074_with_ann!DT$2","v":"Estimate  $100,000 or more: - 35.0 to 39.9 percent"},{"$f":"[1]ACS_16_5YR_B25074_with_ann!DU$2","v":"Margin of Error Total: $100,000 or more"},{"$f":"[1]ACS_16_5YR_B25074_with_ann!DV$2","v":"Estimate  $100,000 or more: - 40.0 to 49.9 percent"},{"$f":"[1]ACS_16_5YR_B25074_with_ann!DW$2","v":"Margin of Error Total: $100,000 or more"},{"$f":"[1]ACS_16_5YR_B25074_with_ann!DX$2","v":"Estimate  $100,000 or more: - 50.0 percent or more"},{"$f":"[1]ACS_16_5YR_B25074_with_ann!DY$2","v":"Margin of Error Total: $100,000 or more"},{"$f":"[1]ACS_16_5YR_B25074_with_ann!DZ$2","v":"Estimate  $100,000 or more: - Not computed"},{"$f":"[1]ACS_16_5YR_B25074_with_ann!EA$2","v":"Margin of Error Total: $100,000 or more"}]
["0600000US3301900259",3301900259,"060","Acworth",{"$f":"[1]ACS_16_5YR_B25070_with_ann!D258","v":30},{"$f":"[1]ACS_16_5YR_B25070_with_ann!E258","v":16},{"$f":"[1]ACS_16_5YR_B25070_with_ann!F258","v":0},{"$f":"[1]ACS_16_5YR_B25070_with_ann!G258","v":11},{"$f":"[1]ACS_16_5YR_B25070_with_ann!H258","v":3},{"$f":"[1]ACS_16_5YR_B25070_with_ann!I258","v":5},{"$f":"[1]ACS_16_5YR_B25070_with_ann!J258","v":0},{"$f":"[1]ACS_16_5YR_B25070_with_ann!K258","v":11},{"$f":"[1]ACS_16_5YR_B25070_with_ann!L258","v":7},{"$f":"[1]ACS_16_5YR_B25070_with_ann!M258","v":7},{"$f":"[1]ACS_16_5YR_B25070_with_ann!N258","v":6},{"$f":"[1]ACS_16_5YR_B25070_with_ann!O258","v":10},{"$f":"[1]ACS_16_5YR_B25070_with_ann!P258","v":2},{"$f":"[1]ACS_16_5YR_B25070_with_ann!Q258","v":3},{"$f":"[1]ACS_16_5YR_B25070_with_ann!R258","v":2},{"$f":"[1]ACS_16_5YR_B25070_with_ann!S258","v":3},{"$f":"[1]ACS_16_5YR_B25070_with_ann!T258","v":0},{"$f":"[1]ACS_16_5YR_B25070_with_ann!U258","v":11},{"$f":"[1]ACS_16_5YR_B25070_with_ann!V258","v":2},{"$f":"[1]ACS_16_5YR_B25070_with_ann!W258","v":3},{"$f":"[1]ACS_16_5YR_B25070_with_ann!X258","v":8},{"$f":"[1]ACS_16_5YR_B25070_with_ann!Y258","v":10},{"$f":"[1]ACS_16_5YR_B25074_with_ann!D258","v":30},{"$f":"[1]ACS_16_5YR_B25074_with_ann!E258","v":16},{"$f":"[1]ACS_16_5YR_B25074_with_ann!F258","v":6},{"$f":"[1]ACS_16_5YR_B25074_with_ann!G258","v":10},{"$f":"[1]ACS_16_5YR_B25074_with_ann!H258","v":0},{"$f":"[1]ACS_16_5YR_B25074_with_ann!I258","v":11},{"$f":"[1]ACS_16_5YR_B25074_with_ann!J258","v":0},{"$f":"[1]ACS_16_5YR_B25074_with_ann!K258","v":11},{"$f":"[1]ACS_16_5YR_B25074_with_ann!L258","v":0},{"$f":"[1]ACS_16_5YR_B25074_with_ann!M258","v":11},{"$f":"[1]ACS_16_5YR_B25074_with_ann!N258","v":0},{"$f":"[1]ACS_16_5YR_B25074_with_ann!O258","v":11},{"$f":"[1]ACS_16_5YR_B25074_with_ann!P258","v":0},{"$f":"[1]ACS_16_5YR_B25074_with_ann!Q258","v":11},{"$f":"[1]ACS_16_5YR_B25074_with_ann!R258","v":0},{"$f":"[1]ACS_16_5YR_B25074_with_ann!S258","v":11},{"$f":"[1]ACS_16_5YR_B25074_with_ann!T258","v":0},{"$f":"[1]ACS_16_5YR_B25074_with_ann!U258","v":11},{"$f":"[1]ACS_16_5YR_B25074_with_ann!V258","v":6},{"$f":"[1]ACS_16_5YR_B25074_with_ann!W258","v":10},{"$f":"[1]ACS_16_5YR_B25074_with_ann!X258","v":0},{"$f":"[1]ACS_16_5YR_B25074_with_ann!Y258","v":11},{"$f":"[1]ACS_16_5YR_B25074_with_ann!Z258","v":0},{"$f":"[1]ACS_16_5YR_B25074_with_ann!AA258","v":11},{"$f":"[1]ACS_16_5YR_B25074_with_ann!AB258","v":0},{"$f":"[1]ACS_16_5YR_B25074_with_ann!AC258","v":11},{"$f":"[1]ACS_16_5YR_B25074_with_ann!AD258","v":0},{"$f":"[1]ACS_16_5YR_B25074_with_ann!AE258","v":11},{"$f":"[1]ACS_16_5YR_B25074_with_ann!AF258","v":0},{"$f":"[1]ACS_16_5YR_B25074_with_ann!AG258","v":11},{"$f":"[1]ACS_16_5YR_B25074_with_ann!AH258","v":0},{"$f":"[1]ACS_16_5YR_B25074_with_ann!AI258","v":11},{"$f":"[1]ACS_16_5YR_B25074_with_ann!AJ258","v":0},{"$f":"[1]ACS_16_5YR_B25074_with_ann!AK258","v":11},{"$f":"[1]ACS_16_5YR_B25074_with_ann!AL258","v":0},{"$f":"[1]ACS_16_5YR_B25074_with_ann!AM258","v":11},{"$f":"[1]ACS_16_5YR_B25074_with_ann!AN258","v":0},{"$f":"[1]ACS_16_5YR_B25074_with_ann!AO258","v":11},{"$f":"[1]ACS_16_5YR_B25074_with_ann!AP258","v":2},{"$f":"[1]ACS_16_5YR_B25074_with_ann!AQ258","v":3},{"$f":"[1]ACS_16_5YR_B25074_with_ann!AR258","v":0},{"$f":"[1]ACS_16_5YR_B25074_with_ann!AS258","v":11},{"$f":"[1]ACS_16_5YR_B25074_with_ann!AT258","v":0},{"$f":"[1]ACS_16_5YR_B25074_with_ann!AU258","v":11},{"$f":"[1]ACS_16_5YR_B25074_with_ann!AV258","v":0},{"$f":"[1]ACS_16_5YR_B25074_with_ann!AW258","v":11},{"$f":"[1]ACS_16_5YR_B25074_with_ann!AX258","v":0},{"$f":"[1]ACS_16_5YR_B25074_with_ann!AY258","v":11},{"$f":"[1]ACS_16_5YR_B25074_with_ann!AZ258","v":0},{"$f":"[1]ACS_16_5YR_B25074_with_ann!BA258","v":11},{"$f":"[1]ACS_16_5YR_B25074_with_ann!BB258","v":0},{"$f":"[1]ACS_16_5YR_B25074_with_ann!BC258","v":11},{"$f":"[1]ACS_16_5YR_B25074_with_ann!BD258","v":0},{"$f":"[1]ACS_16_5YR_B25074_with_ann!BE258","v":11},{"$f":"[1]ACS_16_5YR_B25074_with_ann!BF258","v":2},{"$f":"[1]ACS_16_5YR_B25074_with_ann!BG258","v":3},{"$f":"[1]ACS_16_5YR_B25074_with_ann!BH258","v":6},{"$f":"[1]ACS_16_5YR_B25074_with_ann!BI258","v":5},{"$f":"[1]ACS_16_5YR_B25074_with_ann!BJ258","v":0},{"$f":"[1]ACS_16_5YR_B25074_with_ann!BK258","v":11},{"$f":"[1]ACS_16_5YR_B25074_with_ann!BL258","v":2},{"$f":"[1]ACS_16_5YR_B25074_with_ann!BM258","v":3},{"$f":"[1]ACS_16_5YR_B25074_with_ann!BN258","v":0},{"$f":"[1]ACS_16_5YR_B25074_with_ann!BO258","v":11},{"$f":"[1]ACS_16_5YR_B25074_with_ann!BP258","v":2},{"$f":"[1]ACS_16_5YR_B25074_with_ann!BQ258","v":3},{"$f":"[1]ACS_16_5YR_B25074_with_ann!BR258","v":0},{"$f":"[1]ACS_16_5YR_B25074_with_ann!BS258","v":11},{"$f":"[1]ACS_16_5YR_B25074_with_ann!BT258","v":0},{"$f":"[1]ACS_16_5YR_B25074_with_ann!BU258","v":11},{"$f":"[1]ACS_16_5YR_B25074_with_ann!BV258","v":2},{"$f":"[1]ACS_16_5YR_B25074_with_ann!BW258","v":3},{"$f":"[1]ACS_16_5YR_B25074_with_ann!BX258","v":0},{"$f":"[1]ACS_16_5YR_B25074_with_ann!BY258","v":11},{"$f":"[1]ACS_16_5YR_B25074_with_ann!BZ258","v":8},{"$f":"[1]ACS_16_5YR_B25074_with_ann!CA258","v":10},{"$f":"[1]ACS_16_5YR_B25074_with_ann!CB259","v":14},{"$f":"[1]ACS_16_5YR_B25074_with_ann!CC259","v":23},{"$f":"[1]ACS_16_5YR_B25074_with_ann!CD259","v":0},{"$f":"[1]ACS_16_5YR_B25074_with_ann!CE259","v":16},{"$f":"[1]ACS_16_5YR_B25074_with_ann!CF259","v":0},{"$f":"[1]ACS_16_5YR_B25074_with_ann!CG259","v":16},{"$f":"[1]ACS_16_5YR_B25074_with_ann!CH259","v":0},{"$f":"[1]ACS_16_5YR_B25074_with_ann!CI259","v":16},{"$f":"[1]ACS_16_5YR_B25074_with_ann!CJ259","v":0},{"$f":"[1]ACS_16_5YR_B25074_with_ann!CK259","v":16},{"$f":"[1]ACS_16_5YR_B25074_with_ann!CL259","v":0},{"$f":"[1]ACS_16_5YR_B25074_with_ann!CM259","v":16},{"$f":"[1]ACS_16_5YR_B25074_with_ann!CN259","v":0},{"$f":"[1]ACS_16_5YR_B25074_with_ann!CO259","v":16},{"$f":"[1]ACS_16_5YR_B25074_with_ann!CP259","v":31},{"$f":"[1]ACS_16_5YR_B25074_with_ann!CQ259","v":47},{"$f":"[1]ACS_16_5YR_B25074_with_ann!CR259","v":109},{"$f":"[1]ACS_16_5YR_B25074_with_ann!CS259","v":97},{"$f":"[1]ACS_16_5YR_B25074_with_ann!CT259","v":109},{"$f":"[1]ACS_16_5YR_B25074_with_ann!CU259","v":97},{"$f":"[1]ACS_16_5YR_B25074_with_ann!CV259","v":0},{"$f":"[1]ACS_16_5YR_B25074_with_ann!CW259","v":16},{"$f":"[1]ACS_16_5YR_B25074_with_ann!CX259","v":0},{"$f":"[1]ACS_16_5YR_B25074_with_ann!CY259","v":16},{"$f":"[1]ACS_16_5YR_B25074_with_ann!CZ259","v":0},{"$f":"[1]ACS_16_5YR_B25074_with_ann!DA259","v":16},{"$f":"[1]ACS_16_5YR_B25074_with_ann!DB259","v":0},{"$f":"[1]ACS_16_5YR_B25074_with_ann!DC259","v":16},{"$f":"[1]ACS_16_5YR_B25074_with_ann!DD259","v":0},{"$f":"[1]ACS_16_5YR_B25074_with_ann!DE259","v":16},{"$f":"[1]ACS_16_5YR_B25074_with_ann!DF259","v":0},{"$f":"[1]ACS_16_5YR_B25074_with_ann!DG259","v":16},{"$f":"[1]ACS_16_5YR_B25074_with_ann!DH259","v":0},{"$f":"[1]ACS_16_5YR_B25074_with_ann!DI259","v":16},{"$f":"[1]ACS_16_5YR_B25074_with_ann!DJ259","v":82},{"$f":"[1]ACS_16_5YR_B25074_with_ann!DK259","v":76},{"$f":"[1]ACS_16_5YR_B25074_with_ann!DL259","v":82},{"$f":"[1]ACS_16_5YR_B25074_with_ann!DM259","v":76},{"$f":"[1]ACS_16_5YR_B25074_with_ann!DN259","v":0},{"$f":"[1]ACS_16_5YR_B25074_with_ann!DO259","v":16},{"$f":"[1]ACS_16_5YR_B25074_with_ann!DP259","v":0},{"$f":"[1]ACS_16_5YR_B25074_with_ann!DQ259","v":16},{"$f":"[1]ACS_16_5YR_B25074_with_ann!DR259","v":0},{"$f":"[1]ACS_16_5YR_B25074_with_ann!DS259","v":16},{"$f":"[1]ACS_16_5YR_B25074_with_ann!DT259","v":0},{"$f":"[1]ACS_16_5YR_B25074_with_ann!DU259","v":16},{"$f":"[1]ACS_16_5YR_B25074_with_ann!DV259","v":0},{"$f":"[1]ACS_16_5YR_B25074_with_ann!DW259","v":16},{"$f":"[1]ACS_16_5YR_B25074_with_ann!DX259","v":0},{"$f":"[1]ACS_16_5YR_B25074_with_ann!DY259","v":16},{"$f":"[1]ACS_16_5YR_B25074_with_ann!DZ259","v":0},{"$f":"[1]ACS_16_5YR_B25074_with_ann!EA259","v":16},null,"Charlestown"]
["0600000US3301911380",3301911380,"060","Charlestown",{"$f":"[1]ACS_16_5YR_B25070_with_ann!D259","v":502},{"$f":"[1]ACS_16_5YR_B25070_with_ann!E259","v":134},{"$f":"[1]ACS_16_5YR_B25070_with_ann!F259","v":63},{"$f":"[1]ACS_16_5YR_B25070_with_ann!G259","v":61},{"$f":"[1]ACS_16_5YR_B25070_with_ann!H259","v":103},{"$f":"[1]ACS_16_5YR_B25070_with_ann!I259","v":92},{"$f":"[1]ACS_16_5YR_B25070_with_ann!J259","v":47},{"$f":"[1]ACS_16_5YR_B25070_with_ann!K259","v":62},{"$f":"[1]ACS_16_5YR_B25070_with_ann!L259","v":14},{"$f":"[1]ACS_16_5YR_B25070_with_ann!M259","v":23},{"$f":"[1]ACS_16_5YR_B25070_with_ann!N259","v":57},{"$f":"[1]ACS_16_5YR_B25070_with_ann!O259","v":50},{"$f":"[1]ACS_16_5YR_B25070_with_ann!P259","v":15},{"$f":"[1]ACS_16_5YR_B25070_with_ann!Q259","v":25},{"$f":"[1]ACS_16_5YR_B25070_with_ann!R259","v":26},{"$f":"[1]ACS_16_5YR_B25070_with_ann!S259","v":41},{"$f":"[1]ACS_16_5YR_B25070_with_ann!T259","v":0},{"$f":"[1]ACS_16_5YR_B25070_with_ann!U259","v":16},{"$f":"[1]ACS_16_5YR_B25070_with_ann!V259","v":85},{"$f":"[1]ACS_16_5YR_B25070_with_ann!W259","v":70},{"$f":"[1]ACS_16_5YR_B25070_with_ann!X259","v":92},{"$f":"[1]ACS_16_5YR_B25070_with_ann!Y259","v":84},{"$f":"[1]ACS_16_5YR_B25074_with_ann!D259","v":502},{"$f":"[1]ACS_16_5YR_B25074_with_ann!E259","v":134},{"$f":"[1]ACS_16_5YR_B25074_with_ann!F259","v":61},{"$f":"[1]ACS_16_5YR_B25074_with_ann!G259","v":66},{"$f":"[1]ACS_16_5YR_B25074_with_ann!H259","v":0},{"$f":"[1]ACS_16_5YR_B25074_with_ann!I259","v":16},{"$f":"[1]ACS_16_5YR_B25074_with_ann!J259","v":0},{"$f":"[1]ACS_16_5YR_B25074_with_ann!K259","v":16},{"$f":"[1]ACS_16_5YR_B25074_with_ann!L259","v":0},{"$f":"[1]ACS_16_5YR_B25074_with_ann!M259","v":16},{"$f":"[1]ACS_16_5YR_B25074_with_ann!N259","v":0},{"$f":"[1]ACS_16_5YR_B25074_with_ann!O259","v":16},{"$f":"[1]ACS_16_5YR_B25074_with_ann!P259","v":0},{"$f":"[1]ACS_16_5YR_B25074_with_ann!Q259","v":16},{"$f":"[1]ACS_16_5YR_B25074_with_ann!R259","v":0},{"$f":"[1]ACS_16_5YR_B25074_with_ann!S259","v":16},{"$f":"[1]ACS_16_5YR_B25074_with_ann!T259","v":0},{"$f":"[1]ACS_16_5YR_B25074_with_ann!U259","v":16},{"$f":"[1]ACS_16_5YR_B25074_with_ann!V259","v":61},{"$f":"[1]ACS_16_5YR_B25074_with_ann!W259","v":66},{"$f":"[1]ACS_16_5YR_B25074_with_ann!X259","v":87},{"$f":"[1]ACS_16_5YR_B25074_with_ann!Y259","v":70},{"$f":"[1]ACS_16_5YR_B25074_with_ann!Z259","v":0},{"$f":"[1]ACS_16_5YR_B25074_with_ann!AA259","v":16},{"$f":"[1]ACS_16_5YR_B25074_with_ann!AB259","v":14},{"$f":"[1]ACS_16_5YR_B25074_with_ann!AC259","v":23},{"$f":"[1]ACS_16_5YR_B25074_with_ann!AD259","v":16},{"$f":"[1]ACS_16_5YR_B25074_with_ann!AE259","v":26},{"$f":"[1]ACS_16_5YR_B25074_with_ann!AF259","v":0},{"$f":"[1]ACS_16_5YR_B25074_with_ann!AG259","v":16},{"$f":"[1]ACS_16_5YR_B25074_with_ann!AH259","v":0},{"$f":"[1]ACS_16_5YR_B25074_with_ann!AI259","v":16},{"$f":"[1]ACS_16_5YR_B25074_with_ann!AJ259","v":0},{"$f":"[1]ACS_16_5YR_B25074_with_ann!AK259","v":16},{"$f":"[1]ACS_16_5YR_B25074_with_ann!AL259","v":57},{"$f":"[1]ACS_16_5YR_B25074_with_ann!AM259","v":62},{"$f":"[1]ACS_16_5YR_B25074_with_ann!AN259","v":0},{"$f":"[1]ACS_16_5YR_B25074_with_ann!AO259","v":16},{"$f":"[1]ACS_16_5YR_B25074_with_ann!AP259","v":77},{"$f":"[1]ACS_16_5YR_B25074_with_ann!AQ259","v":62},{"$f":"[1]ACS_16_5YR_B25074_with_ann!AR259","v":8},{"$f":"[1]ACS_16_5YR_B25074_with_ann!AS259","v":15},{"$f":"[1]ACS_16_5YR_B25074_with_ann!AT259","v":0},{"$f":"[1]ACS_16_5YR_B25074_with_ann!AU259","v":16},{"$f":"[1]ACS_16_5YR_B25074_with_ann!AV259","v":0},{"$f":"[1]ACS_16_5YR_B25074_with_ann!AW259","v":16},{"$f":"[1]ACS_16_5YR_B25074_with_ann!AX259","v":15},{"$f":"[1]ACS_16_5YR_B25074_with_ann!AY259","v":25},{"$f":"[1]ACS_16_5YR_B25074_with_ann!AZ259","v":26},{"$f":"[1]ACS_16_5YR_B25074_with_ann!BA259","v":41},{"$f":"[1]ACS_16_5YR_B25074_with_ann!BB259","v":0},{"$f":"[1]ACS_16_5YR_B25074_with_ann!BC259","v":16},{"$f":"[1]ACS_16_5YR_B25074_with_ann!BD259","v":28},{"$f":"[1]ACS_16_5YR_B25074_with_ann!BE259","v":35},{"$f":"[1]ACS_16_5YR_B25074_with_ann!BF259","v":0},{"$f":"[1]ACS_16_5YR_B25074_with_ann!BG259","v":16},{"$f":"[1]ACS_16_5YR_B25074_with_ann!BH259","v":41},{"$f":"[1]ACS_16_5YR_B25074_with_ann!BI259","v":42},{"$f":"[1]ACS_16_5YR_B25074_with_ann!BJ259","v":0},{"$f":"[1]ACS_16_5YR_B25074_with_ann!BK259","v":16},{"$f":"[1]ACS_16_5YR_B25074_with_ann!BL259","v":0},{"$f":"[1]ACS_16_5YR_B25074_with_ann!BM259","v":16},{"$f":"[1]ACS_16_5YR_B25074_with_ann!BN259","v":41},{"$f":"[1]ACS_16_5YR_B25074_with_ann!BO259","v":42},{"$f":"[1]ACS_16_5YR_B25074_with_ann!BP259","v":0},{"$f":"[1]ACS_16_5YR_B25074_with_ann!BQ259","v":16},{"$f":"[1]ACS_16_5YR_B25074_with_ann!BR259","v":0},{"$f":"[1]ACS_16_5YR_B25074_with_ann!BS259","v":16},{"$f":"[1]ACS_16_5YR_B25074_with_ann!BT259","v":0},{"$f":"[1]ACS_16_5YR_B25074_with_ann!BU259","v":16},{"$f":"[1]ACS_16_5YR_B25074_with_ann!BV259","v":0},{"$f":"[1]ACS_16_5YR_B25074_with_ann!BW259","v":16},{"$f":"[1]ACS_16_5YR_B25074_with_ann!BX259","v":0},{"$f":"[1]ACS_16_5YR_B25074_with_ann!BY259","v":16},{"$f":"[1]ACS_16_5YR_B25074_with_ann!BZ259","v":45},{"$f":"[1]ACS_16_5YR_B25074_with_ann!CA259","v":52},{"$f":"[1]ACS_16_5YR_B25074_with_ann!CB260","v":65},{"$f":"[1]ACS_16_5YR_B25074_with_ann!CC260","v":42},{"$f":"[1]ACS_16_5YR_B25074_with_ann!CD260","v":155},{"$f":"[1]ACS_16_5YR_B25074_with_ann!CE260","v":91},{"$f":"[1]ACS_16_5YR_B25074_with_ann!CF260","v":67},{"$f":"[1]ACS_16_5YR_B25074_with_ann!CG260","v":53},{"$f":"[1]ACS_16_5YR_B25074_with_ann!CH260","v":24},{"$f":"[1]ACS_16_5YR_B25074_with_ann!CI260","v":45},{"$f":"[1]ACS_16_5YR_B25074_with_ann!CJ260","v":0},{"$f":"[1]ACS_16_5YR_B25074_with_ann!CK260","v":18},{"$f":"[1]ACS_16_5YR_B25074_with_ann!CL260","v":0},{"$f":"[1]ACS_16_5YR_B25074_with_ann!CM260","v":18},{"$f":"[1]ACS_16_5YR_B25074_with_ann!CN260","v":0},{"$f":"[1]ACS_16_5YR_B25074_with_ann!CO260","v":18},{"$f":"[1]ACS_16_5YR_B25074_with_ann!CP260","v":0},{"$f":"[1]ACS_16_5YR_B25074_with_ann!CQ260","v":18},{"$f":"[1]ACS_16_5YR_B25074_with_ann!CR260","v":253},{"$f":"[1]ACS_16_5YR_B25074_with_ann!CS260","v":133},{"$f":"[1]ACS_16_5YR_B25074_with_ann!CT260","v":245},{"$f":"[1]ACS_16_5YR_B25074_with_ann!CU260","v":133},{"$f":"[1]ACS_16_5YR_B25074_with_ann!CV260","v":0},{"$f":"[1]ACS_16_5YR_B25074_with_ann!CW260","v":18},{"$f":"[1]ACS_16_5YR_B25074_with_ann!CX260","v":8},{"$f":"[1]ACS_16_5YR_B25074_with_ann!CY260","v":12},{"$f":"[1]ACS_16_5YR_B25074_with_ann!CZ260","v":0},{"$f":"[1]ACS_16_5YR_B25074_with_ann!DA260","v":18},{"$f":"[1]ACS_16_5YR_B25074_with_ann!DB260","v":0},{"$f":"[1]ACS_16_5YR_B25074_with_ann!DC260","v":18},{"$f":"[1]ACS_16_5YR_B25074_with_ann!DD260","v":0},{"$f":"[1]ACS_16_5YR_B25074_with_ann!DE260","v":18},{"$f":"[1]ACS_16_5YR_B25074_with_ann!DF260","v":0},{"$f":"[1]ACS_16_5YR_B25074_with_ann!DG260","v":18},{"$f":"[1]ACS_16_5YR_B25074_with_ann!DH260","v":0},{"$f":"[1]ACS_16_5YR_B25074_with_ann!DI260","v":18},{"$f":"[1]ACS_16_5YR_B25074_with_ann!DJ260","v":95},{"$f":"[1]ACS_16_5YR_B25074_with_ann!DK260","v":57},{"$f":"[1]ACS_16_5YR_B25074_with_ann!DL260","v":95},{"$f":"[1]ACS_16_5YR_B25074_with_ann!DM260","v":57},{"$f":"[1]ACS_16_5YR_B25074_with_ann!DN260","v":0},{"$f":"[1]ACS_16_5YR_B25074_with_ann!DO260","v":18},{"$f":"[1]ACS_16_5YR_B25074_with_ann!DP260","v":0},{"$f":"[1]ACS_16_5YR_B25074_with_ann!DQ260","v":18},{"$f":"[1]ACS_16_5YR_B25074_with_ann!DR260","v":0},{"$f":"[1]ACS_16_5YR_B25074_with_ann!DS260","v":18},{"$f":"[1]ACS_16_5YR_B25074_with_ann!DT260","v":0},{"$f":"[1]ACS_16_5YR_B25074_with_ann!DU260","v":18},{"$f":"[1]ACS_16_5YR_B25074_with_ann!DV260","v":0},{"$f":"[1]ACS_16_5YR_B25074_with_ann!DW260","v":18},{"$f":"[1]ACS_16_5YR_B25074_with_ann!DX260","v":0},{"$f":"[1]ACS_16_5YR_B25074_with_ann!DY260","v":18},{"$f":"[1]ACS_16_5YR_B25074_with_ann!DZ260","v":0},{"$f":"[1]ACS_16_5YR_B25074_with_ann!EA260","v":18},null,"Claremont"]
["0600000US3301912900",3301912900,"060","Claremont",{"$f":"[1]ACS_16_5YR_B25070_with_ann!D260","v":2310},{"$f":"[1]ACS_16_5YR_B25070_with_ann!E260","v":288},{"$f":"[1]ACS_16_5YR_B25070_with_ann!F260","v":65},{"$f":"[1]ACS_16_5YR_B25070_with_ann!G260","v":42},{"$f":"[1]ACS_16_5YR_B25070_with_ann!H260","v":110},{"$f":"[1]ACS_16_5YR_B25070_with_ann!I260","v":72},{"$f":"[1]ACS_16_5YR_B25070_with_ann!J260","v":319},{"$f":"[1]ACS_16_5YR_B25070_with_ann!K260","v":134},{"$f":"[1]ACS_16_5YR_B25070_with_ann!L260","v":322},{"$f":"[1]ACS_16_5YR_B25070_with_ann!M260","v":125},{"$f":"[1]ACS_16_5YR_B25070_with_ann!N260","v":293},{"$f":"[1]ACS_16_5YR_B25070_with_ann!O260","v":114},{"$f":"[1]ACS_16_5YR_B25070_with_ann!P260","v":244},{"$f":"[1]ACS_16_5YR_B25070_with_ann!Q260","v":113},{"$f":"[1]ACS_16_5YR_B25070_with_ann!R260","v":159},{"$f":"[1]ACS_16_5YR_B25070_with_ann!S260","v":90},{"$f":"[1]ACS_16_5YR_B25070_with_ann!T260","v":227},{"$f":"[1]ACS_16_5YR_B25070_with_ann!U260","v":102},{"$f":"[1]ACS_16_5YR_B25070_with_ann!V260","v":467},{"$f":"[1]ACS_16_5YR_B25070_with_ann!W260","v":173},{"$f":"[1]ACS_16_5YR_B25070_with_ann!X260","v":104},{"$f":"[1]ACS_16_5YR_B25070_with_ann!Y260","v":87},{"$f":"[1]ACS_16_5YR_B25074_with_ann!D260","v":2310},{"$f":"[1]ACS_16_5YR_B25074_with_ann!E260","v":288},{"$f":"[1]ACS_16_5YR_B25074_with_ann!F260","v":216},{"$f":"[1]ACS_16_5YR_B25074_with_ann!G260","v":116},{"$f":"[1]ACS_16_5YR_B25074_with_ann!H260","v":7},{"$f":"[1]ACS_16_5YR_B25074_with_ann!I260","v":11},{"$f":"[1]ACS_16_5YR_B25074_with_ann!J260","v":0},{"$f":"[1]ACS_16_5YR_B25074_with_ann!K260","v":18},{"$f":"[1]ACS_16_5YR_B25074_with_ann!L260","v":15},{"$f":"[1]ACS_16_5YR_B25074_with_ann!M260","v":24},{"$f":"[1]ACS_16_5YR_B25074_with_ann!N260","v":27},{"$f":"[1]ACS_16_5YR_B25074_with_ann!O260","v":32},{"$f":"[1]ACS_16_5YR_B25074_with_ann!P260","v":0},{"$f":"[1]ACS_16_5YR_B25074_with_ann!Q260","v":18},{"$f":"[1]ACS_16_5YR_B25074_with_ann!R260","v":0},{"$f":"[1]ACS_16_5YR_B25074_with_ann!S260","v":18},{"$f":"[1]ACS_16_5YR_B25074_with_ann!T260","v":71},{"$f":"[1]ACS_16_5YR_B25074_with_ann!U260","v":53},{"$f":"[1]ACS_16_5YR_B25074_with_ann!V260","v":96},{"$f":"[1]ACS_16_5YR_B25074_with_ann!W260","v":86},{"$f":"[1]ACS_16_5YR_B25074_with_ann!X260","v":373},{"$f":"[1]ACS_16_5YR_B25074_with_ann!Y260","v":101},{"$f":"[1]ACS_16_5YR_B25074_with_ann!Z260","v":19},{"$f":"[1]ACS_16_5YR_B25074_with_ann!AA260","v":22},{"$f":"[1]ACS_16_5YR_B25074_with_ann!AB260","v":24},{"$f":"[1]ACS_16_5YR_B25074_with_ann!AC260","v":29},{"$f":"[1]ACS_16_5YR_B25074_with_ann!AD260","v":52},{"$f":"[1]ACS_16_5YR_B25074_with_ann!AE260","v":64},{"$f":"[1]ACS_16_5YR_B25074_with_ann!AF260","v":50},{"$f":"[1]ACS_16_5YR_B25074_with_ann!AG260","v":38},{"$f":"[1]ACS_16_5YR_B25074_with_ann!AH260","v":12},{"$f":"[1]ACS_16_5YR_B25074_with_ann!AI260","v":18},{"$f":"[1]ACS_16_5YR_B25074_with_ann!AJ260","v":38},{"$f":"[1]ACS_16_5YR_B25074_with_ann!AK260","v":45},{"$f":"[1]ACS_16_5YR_B25074_with_ann!AL260","v":178},{"$f":"[1]ACS_16_5YR_B25074_with_ann!AM260","v":93},{"$f":"[1]ACS_16_5YR_B25074_with_ann!AN260","v":0},{"$f":"[1]ACS_16_5YR_B25074_with_ann!AO260","v":18},{"$f":"[1]ACS_16_5YR_B25074_with_ann!AP260","v":627},{"$f":"[1]ACS_16_5YR_B25074_with_ann!AQ260","v":199},{"$f":"[1]ACS_16_5YR_B25074_with_ann!AR260","v":38},{"$f":"[1]ACS_16_5YR_B25074_with_ann!AS260","v":40},{"$f":"[1]ACS_16_5YR_B25074_with_ann!AT260","v":20},{"$f":"[1]ACS_16_5YR_B25074_with_ann!AU260","v":24},{"$f":"[1]ACS_16_5YR_B25074_with_ann!AV260","v":34},{"$f":"[1]ACS_16_5YR_B25074_with_ann!AW260","v":33},{"$f":"[1]ACS_16_5YR_B25074_with_ann!AX260","v":57},{"$f":"[1]ACS_16_5YR_B25074_with_ann!AY260","v":63},{"$f":"[1]ACS_16_5YR_B25074_with_ann!AZ260","v":63},{"$f":"[1]ACS_16_5YR_B25074_with_ann!BA260","v":56},{"$f":"[1]ACS_16_5YR_B25074_with_ann!BB260","v":189},{"$f":"[1]ACS_16_5YR_B25074_with_ann!BC260","v":94},{"$f":"[1]ACS_16_5YR_B25074_with_ann!BD260","v":218},{"$f":"[1]ACS_16_5YR_B25074_with_ann!BE260","v":133},{"$f":"[1]ACS_16_5YR_B25074_with_ann!BF260","v":8},{"$f":"[1]ACS_16_5YR_B25074_with_ann!BG260","v":12},{"$f":"[1]ACS_16_5YR_B25074_with_ann!BH260","v":435},{"$f":"[1]ACS_16_5YR_B25074_with_ann!BI260","v":157},{"$f":"[1]ACS_16_5YR_B25074_with_ann!BJ260","v":25},{"$f":"[1]ACS_16_5YR_B25074_with_ann!BK260","v":29},{"$f":"[1]ACS_16_5YR_B25074_with_ann!BL260","v":123},{"$f":"[1]ACS_16_5YR_B25074_with_ann!BM260","v":76},{"$f":"[1]ACS_16_5YR_B25074_with_ann!BN260","v":117},{"$f":"[1]ACS_16_5YR_B25074_with_ann!BO260","v":68},{"$f":"[1]ACS_16_5YR_B25074_with_ann!BP260","v":86},{"$f":"[1]ACS_16_5YR_B25074_with_ann!BQ260","v":87},{"$f":"[1]ACS_16_5YR_B25074_with_ann!BR260","v":84},{"$f":"[1]ACS_16_5YR_B25074_with_ann!BS260","v":71},{"$f":"[1]ACS_16_5YR_B25074_with_ann!BT260","v":0},{"$f":"[1]ACS_16_5YR_B25074_with_ann!BU260","v":18},{"$f":"[1]ACS_16_5YR_B25074_with_ann!BV260","v":0},{"$f":"[1]ACS_16_5YR_B25074_with_ann!BW260","v":18},{"$f":"[1]ACS_16_5YR_B25074_with_ann!BX260","v":0},{"$f":"[1]ACS_16_5YR_B25074_with_ann!BY260","v":18},{"$f":"[1]ACS_16_5YR_B25074_with_ann!BZ260","v":311},{"$f":"[1]ACS_16_5YR_B25074_with_ann!CA260","v":115},{"$f":"[1]ACS_16_5YR_B25074_with_ann!CB262","v":6},{"$f":"[1]ACS_16_5YR_B25074_with_ann!CC262","v":9},{"$f":"[1]ACS_16_5YR_B25074_with_ann!CD262","v":0},{"$f":"[1]ACS_16_5YR_B25074_with_ann!CE262","v":11},{"$f":"[1]ACS_16_5YR_B25074_with_ann!CF262","v":9},{"$f":"[1]ACS_16_5YR_B25074_with_ann!CG262","v":12},{"$f":"[1]ACS_16_5YR_B25074_with_ann!CH262","v":0},{"$f":"[1]ACS_16_5YR_B25074_with_ann!CI262","v":11},{"$f":"[1]ACS_16_5YR_B25074_with_ann!CJ262","v":0},{"$f":"[1]ACS_16_5YR_B25074_with_ann!CK262","v":11},{"$f":"[1]ACS_16_5YR_B25074_with_ann!CL262","v":0},{"$f":"[1]ACS_16_5YR_B25074_with_ann!CM262","v":11},{"$f":"[1]ACS_16_5YR_B25074_with_ann!CN262","v":0},{"$f":"[1]ACS_16_5YR_B25074_with_ann!CO262","v":11},{"$f":"[1]ACS_16_5YR_B25074_with_ann!CP262","v":0},{"$f":"[1]ACS_16_5YR_B25074_with_ann!CQ262","v":11},{"$f":"[1]ACS_16_5YR_B25074_with_ann!CR262","v":2},{"$f":"[1]ACS_16_5YR_B25074_with_ann!CS262","v":4},{"$f":"[1]ACS_16_5YR_B25074_with_ann!CT262","v":0},{"$f":"[1]ACS_16_5YR_B25074_with_ann!CU262","v":11},{"$f":"[1]ACS_16_5YR_B25074_with_ann!CV262","v":0},{"$f":"[1]ACS_16_5YR_B25074_with_ann!CW262","v":11},{"$f":"[1]ACS_16_5YR_B25074_with_ann!CX262","v":0},{"$f":"[1]ACS_16_5YR_B25074_with_ann!CY262","v":11},{"$f":"[1]ACS_16_5YR_B25074_with_ann!CZ262","v":0},{"$f":"[1]ACS_16_5YR_B25074_with_ann!DA262","v":11},{"$f":"[1]ACS_16_5YR_B25074_with_ann!DB262","v":0},{"$f":"[1]ACS_16_5YR_B25074_with_ann!DC262","v":11},{"$f":"[1]ACS_16_5YR_B25074_with_ann!DD262","v":0},{"$f":"[1]ACS_16_5YR_B25074_with_ann!DE262","v":11},{"$f":"[1]ACS_16_5YR_B25074_with_ann!DF262","v":0},{"$f":"[1]ACS_16_5YR_B25074_with_ann!DG262","v":11},{"$f":"[1]ACS_16_5YR_B25074_with_ann!DH262","v":2},{"$f":"[1]ACS_16_5YR_B25074_with_ann!DI262","v":4},{"$f":"[1]ACS_16_5YR_B25074_with_ann!DJ262","v":6},{"$f":"[1]ACS_16_5YR_B25074_with_ann!DK262","v":10},{"$f":"[1]ACS_16_5YR_B25074_with_ann!DL262","v":6},{"$f":"[1]ACS_16_5YR_B25074_with_ann!DM262","v":10},{"$f":"[1]ACS_16_5YR_B25074_with_ann!DN262","v":0},{"$f":"[1]ACS_16_5YR_B25074_with_ann!DO262","v":11},{"$f":"[1]ACS_16_5YR_B25074_with_ann!DP262","v":0},{"$f":"[1]ACS_16_5YR_B25074_with_ann!DQ262","v":11},{"$f":"[1]ACS_16_5YR_B25074_with_ann!DR262","v":0},{"$f":"[1]ACS_16_5YR_B25074_with_ann!DS262","v":11},{"$f":"[1]ACS_16_5YR_B25074_with_ann!DT262","v":0},{"$f":"[1]ACS_16_5YR_B25074_with_ann!DU262","v":11},{"$f":"[1]ACS_16_5YR_B25074_with_ann!DV262","v":0},{"$f":"[1]ACS_16_5YR_B25074_with_ann!DW262","v":11},{"$f":"[1]ACS_16_5YR_B25074_with_ann!DX262","v":0},{"$f":"[1]ACS_16_5YR_B25074_with_ann!DY262","v":11},{"$f":"[1]ACS_16_5YR_B25074_with_ann!DZ262","v":0},{"$f":"[1]ACS_16_5YR_B25074_with_ann!EA262","v":11},null,"Cornish"]
["0600000US3301915060",3301915060,"060","Cornish",{"$f":"[1]ACS_16_5YR_B25070_with_ann!D261","v":55},{"$f":"[1]ACS_16_5YR_B25070_with_ann!E261","v":26},{"$f":"[1]ACS_16_5YR_B25070_with_ann!F261","v":5},{"$f":"[1]ACS_16_5YR_B25070_with_ann!G261","v":7},{"$f":"[1]ACS_16_5YR_B25070_with_ann!H261","v":3},{"$f":"[1]ACS_16_5YR_B25070_with_ann!I261","v":4},{"$f":"[1]ACS_16_5YR_B25070_with_ann!J261","v":3},{"$f":"[1]ACS_16_5YR_B25070_with_ann!K261","v":5},{"$f":"[1]ACS_16_5YR_B25070_with_ann!L261","v":14},{"$f":"[1]ACS_16_5YR_B25070_with_ann!M261","v":18},{"$f":"[1]ACS_16_5YR_B25070_with_ann!N261","v":3},{"$f":"[1]ACS_16_5YR_B25070_with_ann!O261","v":5},{"$f":"[1]ACS_16_5YR_B25070_with_ann!P261","v":0},{"$f":"[1]ACS_16_5YR_B25070_with_ann!Q261","v":11},{"$f":"[1]ACS_16_5YR_B25070_with_ann!R261","v":0},{"$f":"[1]ACS_16_5YR_B25070_with_ann!S261","v":11},{"$f":"[1]ACS_16_5YR_B25070_with_ann!T261","v":4},{"$f":"[1]ACS_16_5YR_B25070_with_ann!U261","v":6},{"$f":"[1]ACS_16_5YR_B25070_with_ann!V261","v":20},{"$f":"[1]ACS_16_5YR_B25070_with_ann!W261","v":12},{"$f":"[1]ACS_16_5YR_B25070_with_ann!X261","v":3},{"$f":"[1]ACS_16_5YR_B25070_with_ann!Y261","v":4},{"$f":"[1]ACS_16_5YR_B25074_with_ann!D261","v":55},{"$f":"[1]ACS_16_5YR_B25074_with_ann!E261","v":26},{"$f":"[1]ACS_16_5YR_B25074_with_ann!F261","v":3},{"$f":"[1]ACS_16_5YR_B25074_with_ann!G261","v":5},{"$f":"[1]ACS_16_5YR_B25074_with_ann!H261","v":0},{"$f":"[1]ACS_16_5YR_B25074_with_ann!I261","v":11},{"$f":"[1]ACS_16_5YR_B25074_with_ann!J261","v":0},{"$f":"[1]ACS_16_5YR_B25074_with_ann!K261","v":11},{"$f":"[1]ACS_16_5YR_B25074_with_ann!L261","v":0},{"$f":"[1]ACS_16_5YR_B25074_with_ann!M261","v":11},{"$f":"[1]ACS_16_5YR_B25074_with_ann!N261","v":0},{"$f":"[1]ACS_16_5YR_B25074_with_ann!O261","v":11},{"$f":"[1]ACS_16_5YR_B25074_with_ann!P261","v":0},{"$f":"[1]ACS_16_5YR_B25074_with_ann!Q261","v":11},{"$f":"[1]ACS_16_5YR_B25074_with_ann!R261","v":0},{"$f":"[1]ACS_16_5YR_B25074_with_ann!S261","v":11},{"$f":"[1]ACS_16_5YR_B25074_with_ann!T261","v":3},{"$f":"[1]ACS_16_5YR_B25074_with_ann!U261","v":5},{"$f":"[1]ACS_16_5YR_B25074_with_ann!V261","v":0},{"$f":"[1]ACS_16_5YR_B25074_with_ann!W261","v":11},{"$f":"[1]ACS_16_5YR_B25074_with_ann!X261","v":13},{"$f":"[1]ACS_16_5YR_B25074_with_ann!Y261","v":9},{"$f":"[1]ACS_16_5YR_B25074_with_ann!Z261","v":0},{"$f":"[1]ACS_16_5YR_B25074_with_ann!AA261","v":11},{"$f":"[1]ACS_16_5YR_B25074_with_ann!AB261","v":0},{"$f":"[1]ACS_16_5YR_B25074_with_ann!AC261","v":11},{"$f":"[1]ACS_16_5YR_B25074_with_ann!AD261","v":0},{"$f":"[1]ACS_16_5YR_B25074_with_ann!AE261","v":11},{"$f":"[1]ACS_16_5YR_B25074_with_ann!AF261","v":0},{"$f":"[1]ACS_16_5YR_B25074_with_ann!AG261","v":11},{"$f":"[1]ACS_16_5YR_B25074_with_ann!AH261","v":0},{"$f":"[1]ACS_16_5YR_B25074_with_ann!AI261","v":11},{"$f":"[1]ACS_16_5YR_B25074_with_ann!AJ262","v":3},{"$f":"[1]ACS_16_5YR_B25074_with_ann!AK262","v":4},{"$f":"[1]ACS_16_5YR_B25074_with_ann!AL262","v":0},{"$f":"[1]ACS_16_5YR_B25074_with_ann!AM262","v":11},{"$f":"[1]ACS_16_5YR_B25074_with_ann!AN262","v":0},{"$f":"[1]ACS_16_5YR_B25074_with_ann!AO262","v":11},{"$f":"[1]ACS_16_5YR_B25074_with_ann!AP262","v":5},{"$f":"[1]ACS_16_5YR_B25074_with_ann!AQ262","v":6},{"$f":"[1]ACS_16_5YR_B25074_with_ann!AR262","v":0},{"$f":"[1]ACS_16_5YR_B25074_with_ann!AS262","v":11},{"$f":"[1]ACS_16_5YR_B25074_with_ann!AT262","v":0},{"$f":"[1]ACS_16_5YR_B25074_with_ann!AU262","v":11},{"$f":"[1]ACS_16_5YR_B25074_with_ann!AV262","v":0},{"$f":"[1]ACS_16_5YR_B25074_with_ann!AW262","v":11},{"$f":"[1]ACS_16_5YR_B25074_with_ann!AX262","v":0},{"$f":"[1]ACS_16_5YR_B25074_with_ann!AY262","v":11},{"$f":"[1]ACS_16_5YR_B25074_with_ann!AZ262","v":0},{"$f":"[1]ACS_16_5YR_B25074_with_ann!BA262","v":11},{"$f":"[1]ACS_16_5YR_B25074_with_ann!BB262","v":0},{"$f":"[1]ACS_16_5YR_B25074_with_ann!BC262","v":11},{"$f":"[1]ACS_16_5YR_B25074_with_ann!BD262","v":5},{"$f":"[1]ACS_16_5YR_B25074_with_ann!BE262","v":6},{"$f":"[1]ACS_16_5YR_B25074_with_ann!BF262","v":0},{"$f":"[1]ACS_16_5YR_B25074_with_ann!BG262","v":11},{"$f":"[1]ACS_16_5YR_B25074_with_ann!BH262","v":0},{"$f":"[1]ACS_16_5YR_B25074_with_ann!BI262","v":11},{"$f":"[1]ACS_16_5YR_B25074_with_ann!BJ262","v":0},{"$f":"[1]ACS_16_5YR_B25074_with_ann!BK262","v":11},{"$f":"[1]ACS_16_5YR_B25074_with_ann!BL262","v":0},{"$f":"[1]ACS_16_5YR_B25074_with_ann!BM262","v":11},{"$f":"[1]ACS_16_5YR_B25074_with_ann!BN262","v":0},{"$f":"[1]ACS_16_5YR_B25074_with_ann!BO262","v":11},{"$f":"[1]ACS_16_5YR_B25074_with_ann!BP262","v":0},{"$f":"[1]ACS_16_5YR_B25074_with_ann!BQ262","v":11},{"$f":"[1]ACS_16_5YR_B25074_with_ann!BR262","v":0},{"$f":"[1]ACS_16_5YR_B25074_with_ann!BS262","v":11},{"$f":"[1]ACS_16_5YR_B25074_with_ann!BT262","v":0},{"$f":"[1]ACS_16_5YR_B25074_with_ann!BU262","v":11},{"$f":"[1]ACS_16_5YR_B25074_with_ann!BV262","v":0},{"$f":"[1]ACS_16_5YR_B25074_with_ann!BW262","v":11},{"$f":"[1]ACS_16_5YR_B25074_with_ann!BX262","v":0},{"$f":"[1]ACS_16_5YR_B25074_with_ann!BY262","v":11},{"$f":"[1]ACS_16_5YR_B25074_with_ann!BZ262","v":15},{"$f":"[1]ACS_16_5YR_B25074_with_ann!CA262","v":15},{"$f":"[1]ACS_16_5YR_B25074_with_ann!CB263","v":6},{"$f":"[1]ACS_16_5YR_B25074_with_ann!CC263","v":9},{"$f":"[1]ACS_16_5YR_B25074_with_ann!CD263","v":0},{"$f":"[1]ACS_16_5YR_B25074_with_ann!CE263","v":11},{"$f":"[1]ACS_16_5YR_B25074_with_ann!CF263","v":7},{"$f":"[1]ACS_16_5YR_B25074_with_ann!CG263","v":13},{"$f":"[1]ACS_16_5YR_B25074_with_ann!CH263","v":0},{"$f":"[1]ACS_16_5YR_B25074_with_ann!CI263","v":11},{"$f":"[1]ACS_16_5YR_B25074_with_ann!CJ263","v":0},{"$f":"[1]ACS_16_5YR_B25074_with_ann!CK263","v":11},{"$f":"[1]ACS_16_5YR_B25074_with_ann!CL263","v":0},{"$f":"[1]ACS_16_5YR_B25074_with_ann!CM263","v":11},{"$f":"[1]ACS_16_5YR_B25074_with_ann!CN263","v":0},{"$f":"[1]ACS_16_5YR_B25074_with_ann!CO263","v":11},{"$f":"[1]ACS_16_5YR_B25074_with_ann!CP263","v":2},{"$f":"[1]ACS_16_5YR_B25074_with_ann!CQ263","v":4},{"$f":"[1]ACS_16_5YR_B25074_with_ann!CR263","v":8},{"$f":"[1]ACS_16_5YR_B25074_with_ann!CS263","v":7},{"$f":"[1]ACS_16_5YR_B25074_with_ann!CT263","v":8},{"$f":"[1]ACS_16_5YR_B25074_with_ann!CU263","v":7},{"$f":"[1]ACS_16_5YR_B25074_with_ann!CV263","v":0},{"$f":"[1]ACS_16_5YR_B25074_with_ann!CW263","v":11},{"$f":"[1]ACS_16_5YR_B25074_with_ann!CX263","v":0},{"$f":"[1]ACS_16_5YR_B25074_with_ann!CY263","v":11},{"$f":"[1]ACS_16_5YR_B25074_with_ann!CZ263","v":0},{"$f":"[1]ACS_16_5YR_B25074_with_ann!DA263","v":11},{"$f":"[1]ACS_16_5YR_B25074_with_ann!DB263","v":0},{"$f":"[1]ACS_16_5YR_B25074_with_ann!DC263","v":11},{"$f":"[1]ACS_16_5YR_B25074_with_ann!DD263","v":0},{"$f":"[1]ACS_16_5YR_B25074_with_ann!DE263","v":11},{"$f":"[1]ACS_16_5YR_B25074_with_ann!DF263","v":0},{"$f":"[1]ACS_16_5YR_B25074_with_ann!DG263","v":11},{"$f":"[1]ACS_16_5YR_B25074_with_ann!DH263","v":0},{"$f":"[1]ACS_16_5YR_B25074_with_ann!DI263","v":11},{"$f":"[1]ACS_16_5YR_B25074_with_ann!DJ263","v":0},{"$f":"[1]ACS_16_5YR_B25074_with_ann!DK263","v":11},{"$f":"[1]ACS_16_5YR_B25074_with_ann!DL263","v":0},{"$f":"[1]ACS_16_5YR_B25074_with_ann!DM263","v":11},{"$f":"[1]ACS_16_5YR_B25074_with_ann!DN263","v":0},{"$f":"[1]ACS_16_5YR_B25074_with_ann!DO263","v":11},{"$f":"[1]ACS_16_5YR_B25074_with_ann!DP263","v":0},{"$f":"[1]ACS_16_5YR_B25074_with_ann!DQ263","v":11},{"$f":"[1]ACS_16_5YR_B25074_with_ann!DR263","v":0},{"$f":"[1]ACS_16_5YR_B25074_with_ann!DS263","v":11},{"$f":"[1]ACS_16_5YR_B25074_with_ann!DT263","v":0},{"$f":"[1]ACS_16_5YR_B25074_with_ann!DU263","v":11},{"$f":"[1]ACS_16_5YR_B25074_with_ann!DV263","v":0},{"$f":"[1]ACS_16_5YR_B25074_with_ann!DW263","v":11},{"$f":"[1]ACS_16_5YR_B25074_with_ann!DX263","v":0},{"$f":"[1]ACS_16_5YR_B25074_with_ann!DY263","v":11},{"$f":"[1]ACS_16_5YR_B25074_with_ann!DZ263","v":0},{"$f":"[1]ACS_16_5YR_B25074_with_ann!EA263","v":11},null,"Croydon"]
["0600000US3301916340",3301916340,"060","Croydon",{"$f":"[1]ACS_16_5YR_B25070_with_ann!D262","v":36},{"$f":"[1]ACS_16_5YR_B25070_with_ann!E262","v":22},{"$f":"[1]ACS_16_5YR_B25070_with_ann!F262","v":0},{"$f":"[1]ACS_16_5YR_B25070_with_ann!G262","v":11},{"$f":"[1]ACS_16_5YR_B25070_with_ann!H262","v":0},{"$f":"[1]ACS_16_5YR_B25070_with_ann!I262","v":11},{"$f":"[1]ACS_16_5YR_B25070_with_ann!J262","v":12},{"$f":"[1]ACS_16_5YR_B25070_with_ann!K262","v":14},{"$f":"[1]ACS_16_5YR_B25070_with_ann!L262","v":0},{"$f":"[1]ACS_16_5YR_B25070_with_ann!M262","v":11},{"$f":"[1]ACS_16_5YR_B25070_with_ann!N262","v":9},{"$f":"[1]ACS_16_5YR_B25070_with_ann!O262","v":12},{"$f":"[1]ACS_16_5YR_B25070_with_ann!P262","v":0},{"$f":"[1]ACS_16_5YR_B25070_with_ann!Q262","v":11},{"$f":"[1]ACS_16_5YR_B25070_with_ann!R262","v":0},{"$f":"[1]ACS_16_5YR_B25070_with_ann!S262","v":11},{"$f":"[1]ACS_16_5YR_B25070_with_ann!T262","v":3},{"$f":"[1]ACS_16_5YR_B25070_with_ann!U262","v":4},{"$f":"[1]ACS_16_5YR_B25070_with_ann!V262","v":5},{"$f":"[1]ACS_16_5YR_B25070_with_ann!W262","v":6},{"$f":"[1]ACS_16_5YR_B25070_with_ann!X262","v":7},{"$f":"[1]ACS_16_5YR_B25070_with_ann!Y262","v":11},{"$f":"[1]ACS_16_5YR_B25074_with_ann!D262","v":36},{"$f":"[1]ACS_16_5YR_B25074_with_ann!E262","v":22},{"$f":"[1]ACS_16_5YR_B25074_with_ann!F262","v":5},{"$f":"[1]ACS_16_5YR_B25074_with_ann!G262","v":10},{"$f":"[1]ACS_16_5YR_B25074_with_ann!H262","v":0},{"$f":"[1]ACS_16_5YR_B25074_with_ann!I262","v":11},{"$f":"[1]ACS_16_5YR_B25074_with_ann!J262","v":0},{"$f":"[1]ACS_16_5YR_B25074_with_ann!K262","v":11},{"$f":"[1]ACS_16_5YR_B25074_with_ann!L262","v":0},{"$f":"[1]ACS_16_5YR_B25074_with_ann!M262","v":11},{"$f":"[1]ACS_16_5YR_B25074_with_ann!N262","v":0},{"$f":"[1]ACS_16_5YR_B25074_with_ann!O262","v":11},{"$f":"[1]ACS_16_5YR_B25074_with_ann!P262","v":0},{"$f":"[1]ACS_16_5YR_B25074_with_ann!Q262","v":11},{"$f":"[1]ACS_16_5YR_B25074_with_ann!R262","v":0},{"$f":"[1]ACS_16_5YR_B25074_with_ann!S262","v":11},{"$f":"[1]ACS_16_5YR_B25074_with_ann!T262","v":0},{"$f":"[1]ACS_16_5YR_B25074_with_ann!U262","v":11},{"$f":"[1]ACS_16_5YR_B25074_with_ann!V262","v":5},{"$f":"[1]ACS_16_5YR_B25074_with_ann!W262","v":10},{"$f":"[1]ACS_16_5YR_B25074_with_ann!X262","v":3},{"$f":"[1]ACS_16_5YR_B25074_with_ann!Y262","v":4},{"$f":"[1]ACS_16_5YR_B25074_with_ann!Z262","v":0},{"$f":"[1]ACS_16_5YR_B25074_with_ann!AA262","v":11},{"$f":"[1]ACS_16_5YR_B25074_with_ann!AB262","v":0},{"$f":"[1]ACS_16_5YR_B25074_with_ann!AC262","v":11},{"$f":"[1]ACS_16_5YR_B25074_with_ann!AD262","v":0},{"$f":"[1]ACS_16_5YR_B25074_with_ann!AE262","v":11},{"$f":"[1]ACS_16_5YR_B25074_with_ann!AF262","v":0},{"$f":"[1]ACS_16_5YR_B25074_with_ann!AG262","v":11},{"$f":"[1]ACS_16_5YR_B25074_with_ann!AH262","v":0},{"$f":"[1]ACS_16_5YR_B25074_with_ann!AI262","v":11},{"$f":"[1]ACS_16_5YR_B25074_with_ann!AJ263","v":0},{"$f":"[1]ACS_16_5YR_B25074_with_ann!AK263","v":11},{"$f":"[1]ACS_16_5YR_B25074_with_ann!AL263","v":0},{"$f":"[1]ACS_16_5YR_B25074_with_ann!AM263","v":11},{"$f":"[1]ACS_16_5YR_B25074_with_ann!AN263","v":0},{"$f":"[1]ACS_16_5YR_B25074_with_ann!AO263","v":11},{"$f":"[1]ACS_16_5YR_B25074_with_ann!AP263","v":4},{"$f":"[1]ACS_16_5YR_B25074_with_ann!AQ263","v":4},{"$f":"[1]ACS_16_5YR_B25074_with_ann!AR263","v":0},{"$f":"[1]ACS_16_5YR_B25074_with_ann!AS263","v":11},{"$f":"[1]ACS_16_5YR_B25074_with_ann!AT263","v":0},{"$f":"[1]ACS_16_5YR_B25074_with_ann!AU263","v":11},{"$f":"[1]ACS_16_5YR_B25074_with_ann!AV263","v":0},{"$f":"[1]ACS_16_5YR_B25074_with_ann!AW263","v":11},{"$f":"[1]ACS_16_5YR_B25074_with_ann!AX263","v":0},{"$f":"[1]ACS_16_5YR_B25074_with_ann!AY263","v":11},{"$f":"[1]ACS_16_5YR_B25074_with_ann!AZ263","v":0},{"$f":"[1]ACS_16_5YR_B25074_with_ann!BA263","v":11},{"$f":"[1]ACS_16_5YR_B25074_with_ann!BB263","v":0},{"$f":"[1]ACS_16_5YR_B25074_with_ann!BC263","v":11},{"$f":"[1]ACS_16_5YR_B25074_with_ann!BD263","v":0},{"$f":"[1]ACS_16_5YR_B25074_with_ann!BE263","v":11},{"$f":"[1]ACS_16_5YR_B25074_with_ann!BF263","v":4},{"$f":"[1]ACS_16_5YR_B25074_with_ann!BG263","v":4},{"$f":"[1]ACS_16_5YR_B25074_with_ann!BH263","v":10},{"$f":"[1]ACS_16_5YR_B25074_with_ann!BI263","v":12},{"$f":"[1]ACS_16_5YR_B25074_with_ann!BJ263","v":0},{"$f":"[1]ACS_16_5YR_B25074_with_ann!BK263","v":11},{"$f":"[1]ACS_16_5YR_B25074_with_ann!BL263","v":0},{"$f":"[1]ACS_16_5YR_B25074_with_ann!BM263","v":11},{"$f":"[1]ACS_16_5YR_B25074_with_ann!BN263","v":0},{"$f":"[1]ACS_16_5YR_B25074_with_ann!BO263","v":11},{"$f":"[1]ACS_16_5YR_B25074_with_ann!BP263","v":8},{"$f":"[1]ACS_16_5YR_B25074_with_ann!BQ263","v":12},{"$f":"[1]ACS_16_5YR_B25074_with_ann!BR263","v":0},{"$f":"[1]ACS_16_5YR_B25074_with_ann!BS263","v":11},{"$f":"[1]ACS_16_5YR_B25074_with_ann!BT263","v":0},{"$f":"[1]ACS_16_5YR_B25074_with_ann!BU263","v":11},{"$f":"[1]ACS_16_5YR_B25074_with_ann!BV263","v":0},{"$f":"[1]ACS_16_5YR_B25074_with_ann!BW263","v":11},{"$f":"[1]ACS_16_5YR_B25074_with_ann!BX263","v":2},{"$f":"[1]ACS_16_5YR_B25074_with_ann!BY263","v":3},{"$f":"[1]ACS_16_5YR_B25074_with_ann!BZ263","v":15},{"$f":"[1]ACS_16_5YR_B25074_with_ann!CA263","v":15},{"$f":"[1]ACS_16_5YR_B25074_with_ann!CB264","v":23},{"$f":"[1]ACS_16_5YR_B25074_with_ann!CC264","v":37},{"$f":"[1]ACS_16_5YR_B25074_with_ann!CD264","v":0},{"$f":"[1]ACS_16_5YR_B25074_with_ann!CE264","v":11},{"$f":"[1]ACS_16_5YR_B25074_with_ann!CF264","v":0},{"$f":"[1]ACS_16_5YR_B25074_with_ann!CG264","v":11},{"$f":"[1]ACS_16_5YR_B25074_with_ann!CH264","v":0},{"$f":"[1]ACS_16_5YR_B25074_with_ann!CI264","v":11},{"$f":"[1]ACS_16_5YR_B25074_with_ann!CJ264","v":17},{"$f":"[1]ACS_16_5YR_B25074_with_ann!CK264","v":24},{"$f":"[1]ACS_16_5YR_B25074_with_ann!CL264","v":0},{"$f":"[1]ACS_16_5YR_B25074_with_ann!CM264","v":11},{"$f":"[1]ACS_16_5YR_B25074_with_ann!CN264","v":0},{"$f":"[1]ACS_16_5YR_B25074_with_ann!CO264","v":11},{"$f":"[1]ACS_16_5YR_B25074_with_ann!CP264","v":0},{"$f":"[1]ACS_16_5YR_B25074_with_ann!CQ264","v":11},{"$f":"[1]ACS_16_5YR_B25074_with_ann!CR264","v":15},{"$f":"[1]ACS_16_5YR_B25074_with_ann!CS264","v":23},{"$f":"[1]ACS_16_5YR_B25074_with_ann!CT264","v":15},{"$f":"[1]ACS_16_5YR_B25074_with_ann!CU264","v":23},{"$f":"[1]ACS_16_5YR_B25074_with_ann!CV264","v":0},{"$f":"[1]ACS_16_5YR_B25074_with_ann!CW264","v":11},{"$f":"[1]ACS_16_5YR_B25074_with_ann!CX264","v":0},{"$f":"[1]ACS_16_5YR_B25074_with_ann!CY264","v":11},{"$f":"[1]ACS_16_5YR_B25074_with_ann!CZ264","v":0},{"$f":"[1]ACS_16_5YR_B25074_with_ann!DA264","v":11},{"$f":"[1]ACS_16_5YR_B25074_with_ann!DB264","v":0},{"$f":"[1]ACS_16_5YR_B25074_with_ann!DC264","v":11},{"$f":"[1]ACS_16_5YR_B25074_with_ann!DD264","v":0},{"$f":"[1]ACS_16_5YR_B25074_with_ann!DE264","v":11},{"$f":"[1]ACS_16_5YR_B25074_with_ann!DF264","v":0},{"$f":"[1]ACS_16_5YR_B25074_with_ann!DG264","v":11},{"$f":"[1]ACS_16_5YR_B25074_with_ann!DH264","v":0},{"$f":"[1]ACS_16_5YR_B25074_with_ann!DI264","v":11},{"$f":"[1]ACS_16_5YR_B25074_with_ann!DJ264","v":85},{"$f":"[1]ACS_16_5YR_B25074_with_ann!DK264","v":80},{"$f":"[1]ACS_16_5YR_B25074_with_ann!DL264","v":85},{"$f":"[1]ACS_16_5YR_B25074_with_ann!DM264","v":80},{"$f":"[1]ACS_16_5YR_B25074_with_ann!DN264","v":0},{"$f":"[1]ACS_16_5YR_B25074_with_ann!DO264","v":11},{"$f":"[1]ACS_16_5YR_B25074_with_ann!DP264","v":0},{"$f":"[1]ACS_16_5YR_B25074_with_ann!DQ264","v":11},{"$f":"[1]ACS_16_5YR_B25074_with_ann!DR264","v":0},{"$f":"[1]ACS_16_5YR_B25074_with_ann!DS264","v":11},{"$f":"[1]ACS_16_5YR_B25074_with_ann!DT264","v":0},{"$f":"[1]ACS_16_5YR_B25074_with_ann!DU264","v":11},{"$f":"[1]ACS_16_5YR_B25074_with_ann!DV264","v":0},{"$f":"[1]ACS_16_5YR_B25074_with_ann!DW264","v":11},{"$f":"[1]ACS_16_5YR_B25074_with_ann!DX264","v":0},{"$f":"[1]ACS_16_5YR_B25074_with_ann!DY264","v":11},{"$f":"[1]ACS_16_5YR_B25074_with_ann!DZ264","v":0},{"$f":"[1]ACS_16_5YR_B25074_with_ann!EA264","v":11},null,"Goshen"]
["0600000US3301930500",3301930500,"060","Goshen",{"$f":"[1]ACS_16_5YR_B25070_with_ann!D263","v":54},{"$f":"[1]ACS_16_5YR_B25070_with_ann!E263","v":23},{"$f":"[1]ACS_16_5YR_B25070_with_ann!F263","v":0},{"$f":"[1]ACS_16_5YR_B25070_with_ann!G263","v":11},{"$f":"[1]ACS_16_5YR_B25070_with_ann!H263","v":4},{"$f":"[1]ACS_16_5YR_B25070_with_ann!I263","v":6},{"$f":"[1]ACS_16_5YR_B25070_with_ann!J263","v":10},{"$f":"[1]ACS_16_5YR_B25070_with_ann!K263","v":10},{"$f":"[1]ACS_16_5YR_B25070_with_ann!L263","v":0},{"$f":"[1]ACS_16_5YR_B25070_with_ann!M263","v":11},{"$f":"[1]ACS_16_5YR_B25070_with_ann!N263","v":7},{"$f":"[1]ACS_16_5YR_B25070_with_ann!O263","v":13},{"$f":"[1]ACS_16_5YR_B25070_with_ann!P263","v":8},{"$f":"[1]ACS_16_5YR_B25070_with_ann!Q263","v":12},{"$f":"[1]ACS_16_5YR_B25070_with_ann!R263","v":0},{"$f":"[1]ACS_16_5YR_B25070_with_ann!S263","v":11},{"$f":"[1]ACS_16_5YR_B25070_with_ann!T263","v":0},{"$f":"[1]ACS_16_5YR_B25070_with_ann!U263","v":11},{"$f":"[1]ACS_16_5YR_B25070_with_ann!V263","v":9},{"$f":"[1]ACS_16_5YR_B25070_with_ann!W263","v":10},{"$f":"[1]ACS_16_5YR_B25070_with_ann!X263","v":16},{"$f":"[1]ACS_16_5YR_B25070_with_ann!Y263","v":10},{"$f":"[1]ACS_16_5YR_B25074_with_ann!D263","v":54},{"$f":"[1]ACS_16_5YR_B25074_with_ann!E263","v":23},{"$f":"[1]ACS_16_5YR_B25074_with_ann!F263","v":17},{"$f":"[1]ACS_16_5YR_B25074_with_ann!G263","v":15},{"$f":"[1]ACS_16_5YR_B25074_with_ann!H263","v":0},{"$f":"[1]ACS_16_5YR_B25074_with_ann!I263","v":11},{"$f":"[1]ACS_16_5YR_B25074_with_ann!J263","v":0},{"$f":"[1]ACS_16_5YR_B25074_with_ann!K263","v":11},{"$f":"[1]ACS_16_5YR_B25074_with_ann!L263","v":0},{"$f":"[1]ACS_16_5YR_B25074_with_ann!M263","v":11},{"$f":"[1]ACS_16_5YR_B25074_with_ann!N263","v":0},{"$f":"[1]ACS_16_5YR_B25074_with_ann!O263","v":11},{"$f":"[1]ACS_16_5YR_B25074_with_ann!P263","v":0},{"$f":"[1]ACS_16_5YR_B25074_with_ann!Q263","v":11},{"$f":"[1]ACS_16_5YR_B25074_with_ann!R263","v":0},{"$f":"[1]ACS_16_5YR_B25074_with_ann!S263","v":11},{"$f":"[1]ACS_16_5YR_B25074_with_ann!T263","v":9},{"$f":"[1]ACS_16_5YR_B25074_with_ann!U263","v":10},{"$f":"[1]ACS_16_5YR_B25074_with_ann!V263","v":8},{"$f":"[1]ACS_16_5YR_B25074_with_ann!W263","v":10},{"$f":"[1]ACS_16_5YR_B25074_with_ann!X263","v":0},{"$f":"[1]ACS_16_5YR_B25074_with_ann!Y263","v":11},{"$f":"[1]ACS_16_5YR_B25074_with_ann!Z263","v":0},{"$f":"[1]ACS_16_5YR_B25074_with_ann!AA263","v":11},{"$f":"[1]ACS_16_5YR_B25074_with_ann!AB263","v":0},{"$f":"[1]ACS_16_5YR_B25074_with_ann!AC263","v":11},{"$f":"[1]ACS_16_5YR_B25074_with_ann!AD263","v":0},{"$f":"[1]ACS_16_5YR_B25074_with_ann!AE263","v":11},{"$f":"[1]ACS_16_5YR_B25074_with_ann!AF263","v":0},{"$f":"[1]ACS_16_5YR_B25074_with_ann!AG263","v":11},{"$f":"[1]ACS_16_5YR_B25074_with_ann!AH263","v":0},{"$f":"[1]ACS_16_5YR_B25074_with_ann!AI263","v":11},{"$f":"[1]ACS_16_5YR_B25074_with_ann!AJ264","v":0},{"$f":"[1]ACS_16_5YR_B25074_with_ann!AK264","v":11},{"$f":"[1]ACS_16_5YR_B25074_with_ann!AL264","v":0},{"$f":"[1]ACS_16_5YR_B25074_with_ann!AM264","v":11},{"$f":"[1]ACS_16_5YR_B25074_with_ann!AN264","v":0},{"$f":"[1]ACS_16_5YR_B25074_with_ann!AO264","v":11},{"$f":"[1]ACS_16_5YR_B25074_with_ann!AP264","v":0},{"$f":"[1]ACS_16_5YR_B25074_with_ann!AQ264","v":11},{"$f":"[1]ACS_16_5YR_B25074_with_ann!AR264","v":0},{"$f":"[1]ACS_16_5YR_B25074_with_ann!AS264","v":11},{"$f":"[1]ACS_16_5YR_B25074_with_ann!AT264","v":0},{"$f":"[1]ACS_16_5YR_B25074_with_ann!AU264","v":11},{"$f":"[1]ACS_16_5YR_B25074_with_ann!AV264","v":0},{"$f":"[1]ACS_16_5YR_B25074_with_ann!AW264","v":11},{"$f":"[1]ACS_16_5YR_B25074_with_ann!AX264","v":0},{"$f":"[1]ACS_16_5YR_B25074_with_ann!AY264","v":11},{"$f":"[1]ACS_16_5YR_B25074_with_ann!AZ264","v":0},{"$f":"[1]ACS_16_5YR_B25074_with_ann!BA264","v":11},{"$f":"[1]ACS_16_5YR_B25074_with_ann!BB264","v":0},{"$f":"[1]ACS_16_5YR_B25074_with_ann!BC264","v":11},{"$f":"[1]ACS_16_5YR_B25074_with_ann!BD264","v":0},{"$f":"[1]ACS_16_5YR_B25074_with_ann!BE264","v":11},{"$f":"[1]ACS_16_5YR_B25074_with_ann!BF264","v":0},{"$f":"[1]ACS_16_5YR_B25074_with_ann!BG264","v":11},{"$f":"[1]ACS_16_5YR_B25074_with_ann!BH264","v":0},{"$f":"[1]ACS_16_5YR_B25074_with_ann!BI264","v":11},{"$f":"[1]ACS_16_5YR_B25074_with_ann!BJ264","v":0},{"$f":"[1]ACS_16_5YR_B25074_with_ann!BK264","v":11},{"$f":"[1]ACS_16_5YR_B25074_with_ann!BL264","v":0},{"$f":"[1]ACS_16_5YR_B25074_with_ann!BM264","v":11},{"$f":"[1]ACS_16_5YR_B25074_with_ann!BN264","v":0},{"$f":"[1]ACS_16_5YR_B25074_with_ann!BO264","v":11},{"$f":"[1]ACS_16_5YR_B25074_with_ann!BP264","v":0},{"$f":"[1]ACS_16_5YR_B25074_with_ann!BQ264","v":11},{"$f":"[1]ACS_16_5YR_B25074_with_ann!BR264","v":0},{"$f":"[1]ACS_16_5YR_B25074_with_ann!BS264","v":11},{"$f":"[1]ACS_16_5YR_B25074_with_ann!BT264","v":0},{"$f":"[1]ACS_16_5YR_B25074_with_ann!BU264","v":11},{"$f":"[1]ACS_16_5YR_B25074_with_ann!BV264","v":0},{"$f":"[1]ACS_16_5YR_B25074_with_ann!BW264","v":11},{"$f":"[1]ACS_16_5YR_B25074_with_ann!BX264","v":0},{"$f":"[1]ACS_16_5YR_B25074_with_ann!BY264","v":11},{"$f":"[1]ACS_16_5YR_B25074_with_ann!BZ264","v":40},{"$f":"[1]ACS_16_5YR_B25074_with_ann!CA264","v":35},{"$f":"[1]ACS_16_5YR_B25074_with_ann!CB265","v":7},{"$f":"[1]ACS_16_5YR_B25074_with_ann!CC265","v":11},{"$f":"[1]ACS_16_5YR_B25074_with_ann!CD265","v":6},{"$f":"[1]ACS_16_5YR_B25074_with_ann!CE265","v":9},{"$f":"[1]ACS_16_5YR_B25074_with_ann!CF265","v":0},{"$f":"[1]ACS_16_5YR_B25074_with_ann!CG265","v":11},{"$f":"[1]ACS_16_5YR_B25074_with_ann!CH265","v":0},{"$f":"[1]ACS_16_5YR_B25074_with_ann!CI265","v":11},{"$f":"[1]ACS_16_5YR_B25074_with_ann!CJ265","v":0},{"$f":"[1]ACS_16_5YR_B25074_with_ann!CK265","v":11},{"$f":"[1]ACS_16_5YR_B25074_with_ann!CL265","v":0},{"$f":"[1]ACS_16_5YR_B25074_with_ann!CM265","v":11},{"$f":"[1]ACS_16_5YR_B25074_with_ann!CN265","v":0},{"$f":"[1]ACS_16_5YR_B25074_with_ann!CO265","v":11},{"$f":"[1]ACS_16_5YR_B25074_with_ann!CP265","v":0},{"$f":"[1]ACS_16_5YR_B25074_with_ann!CQ265","v":11},{"$f":"[1]ACS_16_5YR_B25074_with_ann!CR265","v":0},{"$f":"[1]ACS_16_5YR_B25074_with_ann!CS265","v":11},{"$f":"[1]ACS_16_5YR_B25074_with_ann!CT265","v":0},{"$f":"[1]ACS_16_5YR_B25074_with_ann!CU265","v":11},{"$f":"[1]ACS_16_5YR_B25074_with_ann!CV265","v":0},{"$f":"[1]ACS_16_5YR_B25074_with_ann!CW265","v":11},{"$f":"[1]ACS_16_5YR_B25074_with_ann!CX265","v":0},{"$f":"[1]ACS_16_5YR_B25074_with_ann!CY265","v":11},{"$f":"[1]ACS_16_5YR_B25074_with_ann!CZ265","v":0},{"$f":"[1]ACS_16_5YR_B25074_with_ann!DA265","v":11},{"$f":"[1]ACS_16_5YR_B25074_with_ann!DB265","v":0},{"$f":"[1]ACS_16_5YR_B25074_with_ann!DC265","v":11},{"$f":"[1]ACS_16_5YR_B25074_with_ann!DD265","v":0},{"$f":"[1]ACS_16_5YR_B25074_with_ann!DE265","v":11},{"$f":"[1]ACS_16_5YR_B25074_with_ann!DF265","v":0},{"$f":"[1]ACS_16_5YR_B25074_with_ann!DG265","v":11},{"$f":"[1]ACS_16_5YR_B25074_with_ann!DH265","v":0},{"$f":"[1]ACS_16_5YR_B25074_with_ann!DI265","v":11},{"$f":"[1]ACS_16_5YR_B25074_with_ann!DJ265","v":8},{"$f":"[1]ACS_16_5YR_B25074_with_ann!DK265","v":9},{"$f":"[1]ACS_16_5YR_B25074_with_ann!DL265","v":5},{"$f":"[1]ACS_16_5YR_B25074_with_ann!DM265","v":8},{"$f":"[1]ACS_16_5YR_B25074_with_ann!DN265","v":0},{"$f":"[1]ACS_16_5YR_B25074_with_ann!DO265","v":11},{"$f":"[1]ACS_16_5YR_B25074_with_ann!DP265","v":0},{"$f":"[1]ACS_16_5YR_B25074_with_ann!DQ265","v":11},{"$f":"[1]ACS_16_5YR_B25074_with_ann!DR265","v":0},{"$f":"[1]ACS_16_5YR_B25074_with_ann!DS265","v":11},{"$f":"[1]ACS_16_5YR_B25074_with_ann!DT265","v":0},{"$f":"[1]ACS_16_5YR_B25074_with_ann!DU265","v":11},{"$f":"[1]ACS_16_5YR_B25074_with_ann!DV265","v":0},{"$f":"[1]ACS_16_5YR_B25074_with_ann!DW265","v":11},{"$f":"[1]ACS_16_5YR_B25074_with_ann!DX265","v":0},{"$f":"[1]ACS_16_5YR_B25074_with_ann!DY265","v":11},{"$f":"[1]ACS_16_5YR_B25074_with_ann!DZ265","v":3},{"$f":"[1]ACS_16_5YR_B25074_with_ann!EA265","v":4},null,"Grantham"]
["0600000US3301931220",3301931220,"060","Grantham",{"$f":"[1]ACS_16_5YR_B25070_with_ann!D264","v":140},{"$f":"[1]ACS_16_5YR_B25070_with_ann!E264","v":79},{"$f":"[1]ACS_16_5YR_B25070_with_ann!F264","v":62},{"$f":"[1]ACS_16_5YR_B25070_with_ann!G264","v":64},{"$f":"[1]ACS_16_5YR_B25070_with_ann!H264","v":46},{"$f":"[1]ACS_16_5YR_B25070_with_ann!I264","v":67},{"$f":"[1]ACS_16_5YR_B25070_with_ann!J264","v":15},{"$f":"[1]ACS_16_5YR_B25070_with_ann!K264","v":23},{"$f":"[1]ACS_16_5YR_B25070_with_ann!L264","v":0},{"$f":"[1]ACS_16_5YR_B25070_with_ann!M264","v":11},{"$f":"[1]ACS_16_5YR_B25070_with_ann!N264","v":0},{"$f":"[1]ACS_16_5YR_B25070_with_ann!O264","v":11},{"$f":"[1]ACS_16_5YR_B25070_with_ann!P264","v":0},{"$f":"[1]ACS_16_5YR_B25070_with_ann!Q264","v":11},{"$f":"[1]ACS_16_5YR_B25070_with_ann!R264","v":17},{"$f":"[1]ACS_16_5YR_B25070_with_ann!S264","v":24},{"$f":"[1]ACS_16_5YR_B25070_with_ann!T264","v":0},{"$f":"[1]ACS_16_5YR_B25070_with_ann!U264","v":11},{"$f":"[1]ACS_16_5YR_B25070_with_ann!V264","v":0},{"$f":"[1]ACS_16_5YR_B25070_with_ann!W264","v":11},{"$f":"[1]ACS_16_5YR_B25070_with_ann!X264","v":0},{"$f":"[1]ACS_16_5YR_B25070_with_ann!Y264","v":11},{"$f":"[1]ACS_16_5YR_B25074_with_ann!D264","v":140},{"$f":"[1]ACS_16_5YR_B25074_with_ann!E264","v":79},{"$f":"[1]ACS_16_5YR_B25074_with_ann!F264","v":0},{"$f":"[1]ACS_16_5YR_B25074_with_ann!G264","v":11},{"$f":"[1]ACS_16_5YR_B25074_with_ann!H264","v":0},{"$f":"[1]ACS_16_5YR_B25074_with_ann!I264","v":11},{"$f":"[1]ACS_16_5YR_B25074_with_ann!J264","v":0},{"$f":"[1]ACS_16_5YR_B25074_with_ann!K264","v":11},{"$f":"[1]ACS_16_5YR_B25074_with_ann!L264","v":0},{"$f":"[1]ACS_16_5YR_B25074_with_ann!M264","v":11},{"$f":"[1]ACS_16_5YR_B25074_with_ann!N264","v":0},{"$f":"[1]ACS_16_5YR_B25074_with_ann!O264","v":11},{"$f":"[1]ACS_16_5YR_B25074_with_ann!P264","v":0},{"$f":"[1]ACS_16_5YR_B25074_with_ann!Q264","v":11},{"$f":"[1]ACS_16_5YR_B25074_with_ann!R264","v":0},{"$f":"[1]ACS_16_5YR_B25074_with_ann!S264","v":11},{"$f":"[1]ACS_16_5YR_B25074_with_ann!T264","v":0},{"$f":"[1]ACS_16_5YR_B25074_with_ann!U264","v":11},{"$f":"[1]ACS_16_5YR_B25074_with_ann!V264","v":0},{"$f":"[1]ACS_16_5YR_B25074_with_ann!W264","v":11},{"$f":"[1]ACS_16_5YR_B25074_with_ann!X264","v":0},{"$f":"[1]ACS_16_5YR_B25074_with_ann!Y264","v":11},{"$f":"[1]ACS_16_5YR_B25074_with_ann!Z264","v":0},{"$f":"[1]ACS_16_5YR_B25074_with_ann!AA264","v":11},{"$f":"[1]ACS_16_5YR_B25074_with_ann!AB264","v":0},{"$f":"[1]ACS_16_5YR_B25074_with_ann!AC264","v":11},{"$f":"[1]ACS_16_5YR_B25074_with_ann!AD264","v":0},{"$f":"[1]ACS_16_5YR_B25074_with_ann!AE264","v":11},{"$f":"[1]ACS_16_5YR_B25074_with_ann!AF264","v":0},{"$f":"[1]ACS_16_5YR_B25074_with_ann!AG264","v":11},{"$f":"[1]ACS_16_5YR_B25074_with_ann!AH264","v":0},{"$f":"[1]ACS_16_5YR_B25074_with_ann!AI264","v":11},{"$f":"[1]ACS_16_5YR_B25074_with_ann!AJ265","v":0},{"$f":"[1]ACS_16_5YR_B25074_with_ann!AK265","v":11},{"$f":"[1]ACS_16_5YR_B25074_with_ann!AL265","v":0},{"$f":"[1]ACS_16_5YR_B25074_with_ann!AM265","v":11},{"$f":"[1]ACS_16_5YR_B25074_with_ann!AN265","v":0},{"$f":"[1]ACS_16_5YR_B25074_with_ann!AO265","v":11},{"$f":"[1]ACS_16_5YR_B25074_with_ann!AP265","v":2},{"$f":"[1]ACS_16_5YR_B25074_with_ann!AQ265","v":3},{"$f":"[1]ACS_16_5YR_B25074_with_ann!AR265","v":0},{"$f":"[1]ACS_16_5YR_B25074_with_ann!AS265","v":11},{"$f":"[1]ACS_16_5YR_B25074_with_ann!AT265","v":0},{"$f":"[1]ACS_16_5YR_B25074_with_ann!AU265","v":11},{"$f":"[1]ACS_16_5YR_B25074_with_ann!AV265","v":0},{"$f":"[1]ACS_16_5YR_B25074_with_ann!AW265","v":11},{"$f":"[1]ACS_16_5YR_B25074_with_ann!AX265","v":0},{"$f":"[1]ACS_16_5YR_B25074_with_ann!AY265","v":11},{"$f":"[1]ACS_16_5YR_B25074_with_ann!AZ265","v":0},{"$f":"[1]ACS_16_5YR_B25074_with_ann!BA265","v":11},{"$f":"[1]ACS_16_5YR_B25074_with_ann!BB265","v":2},{"$f":"[1]ACS_16_5YR_B25074_with_ann!BC265","v":3},{"$f":"[1]ACS_16_5YR_B25074_with_ann!BD265","v":0},{"$f":"[1]ACS_16_5YR_B25074_with_ann!BE265","v":11},{"$f":"[1]ACS_16_5YR_B25074_with_ann!BF265","v":0},{"$f":"[1]ACS_16_5YR_B25074_with_ann!BG265","v":11},{"$f":"[1]ACS_16_5YR_B25074_with_ann!BH265","v":10},{"$f":"[1]ACS_16_5YR_B25074_with_ann!BI265","v":10},{"$f":"[1]ACS_16_5YR_B25074_with_ann!BJ265","v":0},{"$f":"[1]ACS_16_5YR_B25074_with_ann!BK265","v":11},{"$f":"[1]ACS_16_5YR_B25074_with_ann!BL265","v":0},{"$f":"[1]ACS_16_5YR_B25074_with_ann!BM265","v":11},{"$f":"[1]ACS_16_5YR_B25074_with_ann!BN265","v":6},{"$f":"[1]ACS_16_5YR_B25074_with_ann!BO265","v":10},{"$f":"[1]ACS_16_5YR_B25074_with_ann!BP265","v":2},{"$f":"[1]ACS_16_5YR_B25074_with_ann!BQ265","v":3},{"$f":"[1]ACS_16_5YR_B25074_with_ann!BR265","v":0},{"$f":"[1]ACS_16_5YR_B25074_with_ann!BS265","v":11},{"$f":"[1]ACS_16_5YR_B25074_with_ann!BT265","v":2},{"$f":"[1]ACS_16_5YR_B25074_with_ann!BU265","v":3},{"$f":"[1]ACS_16_5YR_B25074_with_ann!BV265","v":0},{"$f":"[1]ACS_16_5YR_B25074_with_ann!BW265","v":11},{"$f":"[1]ACS_16_5YR_B25074_with_ann!BX265","v":0},{"$f":"[1]ACS_16_5YR_B25074_with_ann!BY265","v":11},{"$f":"[1]ACS_16_5YR_B25074_with_ann!BZ265","v":13},{"$f":"[1]ACS_16_5YR_B25074_with_ann!CA265","v":14},{"$f":"[1]ACS_16_5YR_B25074_with_ann!CB266","v":3},{"$f":"[1]ACS_16_5YR_B25074_with_ann!CC266","v":4},{"$f":"[1]ACS_16_5YR_B25074_with_ann!CD266","v":9},{"$f":"[1]ACS_16_5YR_B25074_with_ann!CE266","v":13},{"$f":"[1]ACS_16_5YR_B25074_with_ann!CF266","v":0},{"$f":"[1]ACS_16_5YR_B25074_with_ann!CG266","v":11},{"$f":"[1]ACS_16_5YR_B25074_with_ann!CH266","v":0},{"$f":"[1]ACS_16_5YR_B25074_with_ann!CI266","v":11},{"$f":"[1]ACS_16_5YR_B25074_with_ann!CJ266","v":0},{"$f":"[1]ACS_16_5YR_B25074_with_ann!CK266","v":11},{"$f":"[1]ACS_16_5YR_B25074_with_ann!CL266","v":0},{"$f":"[1]ACS_16_5YR_B25074_with_ann!CM266","v":11},{"$f":"[1]ACS_16_5YR_B25074_with_ann!CN266","v":0},{"$f":"[1]ACS_16_5YR_B25074_with_ann!CO266","v":11},{"$f":"[1]ACS_16_5YR_B25074_with_ann!CP266","v":0},{"$f":"[1]ACS_16_5YR_B25074_with_ann!CQ266","v":11},{"$f":"[1]ACS_16_5YR_B25074_with_ann!CR266","v":0},{"$f":"[1]ACS_16_5YR_B25074_with_ann!CS266","v":11},{"$f":"[1]ACS_16_5YR_B25074_with_ann!CT266","v":0},{"$f":"[1]ACS_16_5YR_B25074_with_ann!CU266","v":11},{"$f":"[1]ACS_16_5YR_B25074_with_ann!CV266","v":0},{"$f":"[1]ACS_16_5YR_B25074_with_ann!CW266","v":11},{"$f":"[1]ACS_16_5YR_B25074_with_ann!CX266","v":0},{"$f":"[1]ACS_16_5YR_B25074_with_ann!CY266","v":11},{"$f":"[1]ACS_16_5YR_B25074_with_ann!CZ266","v":0},{"$f":"[1]ACS_16_5YR_B25074_with_ann!DA266","v":11},{"$f":"[1]ACS_16_5YR_B25074_with_ann!DB266","v":0},{"$f":"[1]ACS_16_5YR_B25074_with_ann!DC266","v":11},{"$f":"[1]ACS_16_5YR_B25074_with_ann!DD266","v":0},{"$f":"[1]ACS_16_5YR_B25074_with_ann!DE266","v":11},{"$f":"[1]ACS_16_5YR_B25074_with_ann!DF266","v":0},{"$f":"[1]ACS_16_5YR_B25074_with_ann!DG266","v":11},{"$f":"[1]ACS_16_5YR_B25074_with_ann!DH266","v":0},{"$f":"[1]ACS_16_5YR_B25074_with_ann!DI266","v":11},{"$f":"[1]ACS_16_5YR_B25074_with_ann!DJ266","v":0},{"$f":"[1]ACS_16_5YR_B25074_with_ann!DK266","v":11},{"$f":"[1]ACS_16_5YR_B25074_with_ann!DL266","v":0},{"$f":"[1]ACS_16_5YR_B25074_with_ann!DM266","v":11},{"$f":"[1]ACS_16_5YR_B25074_with_ann!DN266","v":0},{"$f":"[1]ACS_16_5YR_B25074_with_ann!DO266","v":11},{"$f":"[1]ACS_16_5YR_B25074_with_ann!DP266","v":0},{"$f":"[1]ACS_16_5YR_B25074_with_ann!DQ266","v":11},{"$f":"[1]ACS_16_5YR_B25074_with_ann!DR266","v":0},{"$f":"[1]ACS_16_5YR_B25074_with_ann!DS266","v":11},{"$f":"[1]ACS_16_5YR_B25074_with_ann!DT266","v":0},{"$f":"[1]ACS_16_5YR_B25074_with_ann!DU266","v":11},{"$f":"[1]ACS_16_5YR_B25074_with_ann!DV266","v":0},{"$f":"[1]ACS_16_5YR_B25074_with_ann!DW266","v":11},{"$f":"[1]ACS_16_5YR_B25074_with_ann!DX266","v":0},{"$f":"[1]ACS_16_5YR_B25074_with_ann!DY266","v":11},{"$f":"[1]ACS_16_5YR_B25074_with_ann!DZ266","v":0},{"$f":"[1]ACS_16_5YR_B25074_with_ann!EA266","v":11},null,"Langdon"]
["0600000US3301940900",3301940900,"060","Langdon",{"$f":"[1]ACS_16_5YR_B25070_with_ann!D265","v":39},{"$f":"[1]ACS_16_5YR_B25070_with_ann!E265","v":21},{"$f":"[1]ACS_16_5YR_B25070_with_ann!F265","v":5},{"$f":"[1]ACS_16_5YR_B25070_with_ann!G265","v":8},{"$f":"[1]ACS_16_5YR_B25070_with_ann!H265","v":0},{"$f":"[1]ACS_16_5YR_B25070_with_ann!I265","v":11},{"$f":"[1]ACS_16_5YR_B25070_with_ann!J265","v":7},{"$f":"[1]ACS_16_5YR_B25070_with_ann!K265","v":11},{"$f":"[1]ACS_16_5YR_B25070_with_ann!L265","v":6},{"$f":"[1]ACS_16_5YR_B25070_with_ann!M265","v":9},{"$f":"[1]ACS_16_5YR_B25070_with_ann!N265","v":6},{"$f":"[1]ACS_16_5YR_B25070_with_ann!O265","v":10},{"$f":"[1]ACS_16_5YR_B25070_with_ann!P265","v":2},{"$f":"[1]ACS_16_5YR_B25070_with_ann!Q265","v":3},{"$f":"[1]ACS_16_5YR_B25070_with_ann!R265","v":0},{"$f":"[1]ACS_16_5YR_B25070_with_ann!S265","v":11},{"$f":"[1]ACS_16_5YR_B25070_with_ann!T265","v":4},{"$f":"[1]ACS_16_5YR_B25070_with_ann!U265","v":3},{"$f":"[1]ACS_16_5YR_B25070_with_ann!V265","v":6},{"$f":"[1]ACS_16_5YR_B25070_with_ann!W265","v":10},{"$f":"[1]ACS_16_5YR_B25070_with_ann!X265","v":3},{"$f":"[1]ACS_16_5YR_B25070_with_ann!Y265","v":4},{"$f":"[1]ACS_16_5YR_B25074_with_ann!D265","v":39},{"$f":"[1]ACS_16_5YR_B25074_with_ann!E265","v":21},{"$f":"[1]ACS_16_5YR_B25074_with_ann!F265","v":6},{"$f":"[1]ACS_16_5YR_B25074_with_ann!G265","v":10},{"$f":"[1]ACS_16_5YR_B25074_with_ann!H265","v":0},{"$f":"[1]ACS_16_5YR_B25074_with_ann!I265","v":11},{"$f":"[1]ACS_16_5YR_B25074_with_ann!J265","v":0},{"$f":"[1]ACS_16_5YR_B25074_with_ann!K265","v":11},{"$f":"[1]ACS_16_5YR_B25074_with_ann!L265","v":0},{"$f":"[1]ACS_16_5YR_B25074_with_ann!M265","v":11},{"$f":"[1]ACS_16_5YR_B25074_with_ann!N265","v":0},{"$f":"[1]ACS_16_5YR_B25074_with_ann!O265","v":11},{"$f":"[1]ACS_16_5YR_B25074_with_ann!P265","v":0},{"$f":"[1]ACS_16_5YR_B25074_with_ann!Q265","v":11},{"$f":"[1]ACS_16_5YR_B25074_with_ann!R265","v":0},{"$f":"[1]ACS_16_5YR_B25074_with_ann!S265","v":11},{"$f":"[1]ACS_16_5YR_B25074_with_ann!T265","v":6},{"$f":"[1]ACS_16_5YR_B25074_with_ann!U265","v":10},{"$f":"[1]ACS_16_5YR_B25074_with_ann!V265","v":0},{"$f":"[1]ACS_16_5YR_B25074_with_ann!W265","v":11},{"$f":"[1]ACS_16_5YR_B25074_with_ann!X265","v":0},{"$f":"[1]ACS_16_5YR_B25074_with_ann!Y265","v":11},{"$f":"[1]ACS_16_5YR_B25074_with_ann!Z265","v":0},{"$f":"[1]ACS_16_5YR_B25074_with_ann!AA265","v":11},{"$f":"[1]ACS_16_5YR_B25074_with_ann!AB265","v":0},{"$f":"[1]ACS_16_5YR_B25074_with_ann!AC265","v":11},{"$f":"[1]ACS_16_5YR_B25074_with_ann!AD265","v":0},{"$f":"[1]ACS_16_5YR_B25074_with_ann!AE265","v":11},{"$f":"[1]ACS_16_5YR_B25074_with_ann!AF265","v":0},{"$f":"[1]ACS_16_5YR_B25074_with_ann!AG265","v":11},{"$f":"[1]ACS_16_5YR_B25074_with_ann!AH265","v":0},{"$f":"[1]ACS_16_5YR_B25074_with_ann!AI265","v":11},{"$f":"[1]ACS_16_5YR_B25074_with_ann!AJ266","v":0},{"$f":"[1]ACS_16_5YR_B25074_with_ann!AK266","v":11},{"$f":"[1]ACS_16_5YR_B25074_with_ann!AL266","v":0},{"$f":"[1]ACS_16_5YR_B25074_with_ann!AM266","v":11},{"$f":"[1]ACS_16_5YR_B25074_with_ann!AN266","v":0},{"$f":"[1]ACS_16_5YR_B25074_with_ann!AO266","v":11},{"$f":"[1]ACS_16_5YR_B25074_with_ann!AP266","v":2},{"$f":"[1]ACS_16_5YR_B25074_with_ann!AQ266","v":3},{"$f":"[1]ACS_16_5YR_B25074_with_ann!AR266","v":0},{"$f":"[1]ACS_16_5YR_B25074_with_ann!AS266","v":11},{"$f":"[1]ACS_16_5YR_B25074_with_ann!AT266","v":0},{"$f":"[1]ACS_16_5YR_B25074_with_ann!AU266","v":11},{"$f":"[1]ACS_16_5YR_B25074_with_ann!AV266","v":0},{"$f":"[1]ACS_16_5YR_B25074_with_ann!AW266","v":11},{"$f":"[1]ACS_16_5YR_B25074_with_ann!AX266","v":0},{"$f":"[1]ACS_16_5YR_B25074_with_ann!AY266","v":11},{"$f":"[1]ACS_16_5YR_B25074_with_ann!AZ266","v":0},{"$f":"[1]ACS_16_5YR_B25074_with_ann!BA266","v":11},{"$f":"[1]ACS_16_5YR_B25074_with_ann!BB266","v":0},{"$f":"[1]ACS_16_5YR_B25074_with_ann!BC266","v":11},{"$f":"[1]ACS_16_5YR_B25074_with_ann!BD266","v":0},{"$f":"[1]ACS_16_5YR_B25074_with_ann!BE266","v":11},{"$f":"[1]ACS_16_5YR_B25074_with_ann!BF266","v":2},{"$f":"[1]ACS_16_5YR_B25074_with_ann!BG266","v":3},{"$f":"[1]ACS_16_5YR_B25074_with_ann!BH266","v":12},{"$f":"[1]ACS_16_5YR_B25074_with_ann!BI266","v":8},{"$f":"[1]ACS_16_5YR_B25074_with_ann!BJ266","v":4},{"$f":"[1]ACS_16_5YR_B25074_with_ann!BK266","v":5},{"$f":"[1]ACS_16_5YR_B25074_with_ann!BL266","v":2},{"$f":"[1]ACS_16_5YR_B25074_with_ann!BM266","v":4},{"$f":"[1]ACS_16_5YR_B25074_with_ann!BN266","v":3},{"$f":"[1]ACS_16_5YR_B25074_with_ann!BO266","v":4},{"$f":"[1]ACS_16_5YR_B25074_with_ann!BP266","v":0},{"$f":"[1]ACS_16_5YR_B25074_with_ann!BQ266","v":11},{"$f":"[1]ACS_16_5YR_B25074_with_ann!BR266","v":0},{"$f":"[1]ACS_16_5YR_B25074_with_ann!BS266","v":11},{"$f":"[1]ACS_16_5YR_B25074_with_ann!BT266","v":3},{"$f":"[1]ACS_16_5YR_B25074_with_ann!BU266","v":5},{"$f":"[1]ACS_16_5YR_B25074_with_ann!BV266","v":0},{"$f":"[1]ACS_16_5YR_B25074_with_ann!BW266","v":11},{"$f":"[1]ACS_16_5YR_B25074_with_ann!BX266","v":0},{"$f":"[1]ACS_16_5YR_B25074_with_ann!BY266","v":11},{"$f":"[1]ACS_16_5YR_B25074_with_ann!BZ266","v":12},{"$f":"[1]ACS_16_5YR_B25074_with_ann!CA266","v":14},{"$f":"[1]ACS_16_5YR_B25074_with_ann!CB267","v":12},{"$f":"[1]ACS_16_5YR_B25074_with_ann!CC267","v":20},{"$f":"[1]ACS_16_5YR_B25074_with_ann!CD267","v":97},{"$f":"[1]ACS_16_5YR_B25074_with_ann!CE267","v":96},{"$f":"[1]ACS_16_5YR_B25074_with_ann!CF267","v":0},{"$f":"[1]ACS_16_5YR_B25074_with_ann!CG267","v":16},{"$f":"[1]ACS_16_5YR_B25074_with_ann!CH267","v":49},{"$f":"[1]ACS_16_5YR_B25074_with_ann!CI267","v":66},{"$f":"[1]ACS_16_5YR_B25074_with_ann!CJ267","v":0},{"$f":"[1]ACS_16_5YR_B25074_with_ann!CK267","v":16},{"$f":"[1]ACS_16_5YR_B25074_with_ann!CL267","v":0},{"$f":"[1]ACS_16_5YR_B25074_with_ann!CM267","v":16},{"$f":"[1]ACS_16_5YR_B25074_with_ann!CN267","v":0},{"$f":"[1]ACS_16_5YR_B25074_with_ann!CO267","v":16},{"$f":"[1]ACS_16_5YR_B25074_with_ann!CP267","v":0},{"$f":"[1]ACS_16_5YR_B25074_with_ann!CQ267","v":16},{"$f":"[1]ACS_16_5YR_B25074_with_ann!CR267","v":74},{"$f":"[1]ACS_16_5YR_B25074_with_ann!CS267","v":58},{"$f":"[1]ACS_16_5YR_B25074_with_ann!CT267","v":62},{"$f":"[1]ACS_16_5YR_B25074_with_ann!CU267","v":54},{"$f":"[1]ACS_16_5YR_B25074_with_ann!CV267","v":12},{"$f":"[1]ACS_16_5YR_B25074_with_ann!CW267","v":21},{"$f":"[1]ACS_16_5YR_B25074_with_ann!CX267","v":0},{"$f":"[1]ACS_16_5YR_B25074_with_ann!CY267","v":16},{"$f":"[1]ACS_16_5YR_B25074_with_ann!CZ267","v":0},{"$f":"[1]ACS_16_5YR_B25074_with_ann!DA267","v":16},{"$f":"[1]ACS_16_5YR_B25074_with_ann!DB267","v":0},{"$f":"[1]ACS_16_5YR_B25074_with_ann!DC267","v":16},{"$f":"[1]ACS_16_5YR_B25074_with_ann!DD267","v":0},{"$f":"[1]ACS_16_5YR_B25074_with_ann!DE267","v":16},{"$f":"[1]ACS_16_5YR_B25074_with_ann!DF267","v":0},{"$f":"[1]ACS_16_5YR_B25074_with_ann!DG267","v":16},{"$f":"[1]ACS_16_5YR_B25074_with_ann!DH267","v":0},{"$f":"[1]ACS_16_5YR_B25074_with_ann!DI267","v":16},{"$f":"[1]ACS_16_5YR_B25074_with_ann!DJ267","v":52},{"$f":"[1]ACS_16_5YR_B25074_with_ann!DK267","v":42},{"$f":"[1]ACS_16_5YR_B25074_with_ann!DL267","v":52},{"$f":"[1]ACS_16_5YR_B25074_with_ann!DM267","v":42},{"$f":"[1]ACS_16_5YR_B25074_with_ann!DN267","v":0},{"$f":"[1]ACS_16_5YR_B25074_with_ann!DO267","v":16},{"$f":"[1]ACS_16_5YR_B25074_with_ann!DP267","v":0},{"$f":"[1]ACS_16_5YR_B25074_with_ann!DQ267","v":16},{"$f":"[1]ACS_16_5YR_B25074_with_ann!DR267","v":0},{"$f":"[1]ACS_16_5YR_B25074_with_ann!DS267","v":16},{"$f":"[1]ACS_16_5YR_B25074_with_ann!DT267","v":0},{"$f":"[1]ACS_16_5YR_B25074_with_ann!DU267","v":16},{"$f":"[1]ACS_16_5YR_B25074_with_ann!DV267","v":0},{"$f":"[1]ACS_16_5YR_B25074_with_ann!DW267","v":16},{"$f":"[1]ACS_16_5YR_B25074_with_ann!DX267","v":0},{"$f":"[1]ACS_16_5YR_B25074_with_ann!DY267","v":16},{"$f":"[1]ACS_16_5YR_B25074_with_ann!DZ267","v":0},{"$f":"[1]ACS_16_5YR_B25074_with_ann!EA267","v":16},null,"Lempster"]
["0600000US3301941700",3301941700,"060","Lempster",{"$f":"[1]ACS_16_5YR_B25070_with_ann!D266","v":26},{"$f":"[1]ACS_16_5YR_B25070_with_ann!E266","v":16},{"$f":"[1]ACS_16_5YR_B25070_with_ann!F266","v":0},{"$f":"[1]ACS_16_5YR_B25070_with_ann!G266","v":11},{"$f":"[1]ACS_16_5YR_B25070_with_ann!H266","v":4},{"$f":"[1]ACS_16_5YR_B25070_with_ann!I266","v":5},{"$f":"[1]ACS_16_5YR_B25070_with_ann!J266","v":3},{"$f":"[1]ACS_16_5YR_B25070_with_ann!K266","v":4},{"$f":"[1]ACS_16_5YR_B25070_with_ann!L266","v":11},{"$f":"[1]ACS_16_5YR_B25070_with_ann!M266","v":14},{"$f":"[1]ACS_16_5YR_B25070_with_ann!N266","v":3},{"$f":"[1]ACS_16_5YR_B25070_with_ann!O266","v":4},{"$f":"[1]ACS_16_5YR_B25070_with_ann!P266","v":0},{"$f":"[1]ACS_16_5YR_B25070_with_ann!Q266","v":11},{"$f":"[1]ACS_16_5YR_B25070_with_ann!R266","v":0},{"$f":"[1]ACS_16_5YR_B25070_with_ann!S266","v":11},{"$f":"[1]ACS_16_5YR_B25070_with_ann!T266","v":3},{"$f":"[1]ACS_16_5YR_B25070_with_ann!U266","v":5},{"$f":"[1]ACS_16_5YR_B25070_with_ann!V266","v":0},{"$f":"[1]ACS_16_5YR_B25070_with_ann!W266","v":11},{"$f":"[1]ACS_16_5YR_B25070_with_ann!X266","v":2},{"$f":"[1]ACS_16_5YR_B25070_with_ann!Y266","v":3},{"$f":"[1]ACS_16_5YR_B25074_with_ann!D266","v":26},{"$f":"[1]ACS_16_5YR_B25074_with_ann!E266","v":16},{"$f":"[1]ACS_16_5YR_B25074_with_ann!F266","v":0},{"$f":"[1]ACS_16_5YR_B25074_with_ann!G266","v":11},{"$f":"[1]ACS_16_5YR_B25074_with_ann!H266","v":0},{"$f":"[1]ACS_16_5YR_B25074_with_ann!I266","v":11},{"$f":"[1]ACS_16_5YR_B25074_with_ann!J266","v":0},{"$f":"[1]ACS_16_5YR_B25074_with_ann!K266","v":11},{"$f":"[1]ACS_16_5YR_B25074_with_ann!L266","v":0},{"$f":"[1]ACS_16_5YR_B25074_with_ann!M266","v":11},{"$f":"[1]ACS_16_5YR_B25074_with_ann!N266","v":0},{"$f":"[1]ACS_16_5YR_B25074_with_ann!O266","v":11},{"$f":"[1]ACS_16_5YR_B25074_with_ann!P266","v":0},{"$f":"[1]ACS_16_5YR_B25074_with_ann!Q266","v":11},{"$f":"[1]ACS_16_5YR_B25074_with_ann!R266","v":0},{"$f":"[1]ACS_16_5YR_B25074_with_ann!S266","v":11},{"$f":"[1]ACS_16_5YR_B25074_with_ann!T266","v":0},{"$f":"[1]ACS_16_5YR_B25074_with_ann!U266","v":11},{"$f":"[1]ACS_16_5YR_B25074_with_ann!V266","v":0},{"$f":"[1]ACS_16_5YR_B25074_with_ann!W266","v":11},{"$f":"[1]ACS_16_5YR_B25074_with_ann!X266","v":0},{"$f":"[1]ACS_16_5YR_B25074_with_ann!Y266","v":11},{"$f":"[1]ACS_16_5YR_B25074_with_ann!Z266","v":0},{"$f":"[1]ACS_16_5YR_B25074_with_ann!AA266","v":11},{"$f":"[1]ACS_16_5YR_B25074_with_ann!AB266","v":0},{"$f":"[1]ACS_16_5YR_B25074_with_ann!AC266","v":11},{"$f":"[1]ACS_16_5YR_B25074_with_ann!AD266","v":0},{"$f":"[1]ACS_16_5YR_B25074_with_ann!AE266","v":11},{"$f":"[1]ACS_16_5YR_B25074_with_ann!AF266","v":0},{"$f":"[1]ACS_16_5YR_B25074_with_ann!AG266","v":11},{"$f":"[1]ACS_16_5YR_B25074_with_ann!AH266","v":0},{"$f":"[1]ACS_16_5YR_B25074_with_ann!AI266","v":11},{"$f":"[1]ACS_16_5YR_B25074_with_ann!AJ267","v":13},{"$f":"[1]ACS_16_5YR_B25074_with_ann!AK267","v":20},{"$f":"[1]ACS_16_5YR_B25074_with_ann!AL267","v":88},{"$f":"[1]ACS_16_5YR_B25074_with_ann!AM267","v":79},{"$f":"[1]ACS_16_5YR_B25074_with_ann!AN267","v":11},{"$f":"[1]ACS_16_5YR_B25074_with_ann!AO267","v":17},{"$f":"[1]ACS_16_5YR_B25074_with_ann!AP267","v":189},{"$f":"[1]ACS_16_5YR_B25074_with_ann!AQ267","v":99},{"$f":"[1]ACS_16_5YR_B25074_with_ann!AR267","v":25},{"$f":"[1]ACS_16_5YR_B25074_with_ann!AS267","v":30},{"$f":"[1]ACS_16_5YR_B25074_with_ann!AT267","v":0},{"$f":"[1]ACS_16_5YR_B25074_with_ann!AU267","v":16},{"$f":"[1]ACS_16_5YR_B25074_with_ann!AV267","v":0},{"$f":"[1]ACS_16_5YR_B25074_with_ann!AW267","v":16},{"$f":"[1]ACS_16_5YR_B25074_with_ann!AX267","v":11},{"$f":"[1]ACS_16_5YR_B25074_with_ann!AY267","v":16},{"$f":"[1]ACS_16_5YR_B25074_with_ann!AZ267","v":26},{"$f":"[1]ACS_16_5YR_B25074_with_ann!BA267","v":29},{"$f":"[1]ACS_16_5YR_B25074_with_ann!BB267","v":38},{"$f":"[1]ACS_16_5YR_B25074_with_ann!BC267","v":59},{"$f":"[1]ACS_16_5YR_B25074_with_ann!BD267","v":39},{"$f":"[1]ACS_16_5YR_B25074_with_ann!BE267","v":38},{"$f":"[1]ACS_16_5YR_B25074_with_ann!BF267","v":50},{"$f":"[1]ACS_16_5YR_B25074_with_ann!BG267","v":64},{"$f":"[1]ACS_16_5YR_B25074_with_ann!BH267","v":50},{"$f":"[1]ACS_16_5YR_B25074_with_ann!BI267","v":40},{"$f":"[1]ACS_16_5YR_B25074_with_ann!BJ267","v":13},{"$f":"[1]ACS_16_5YR_B25074_with_ann!BK267","v":21},{"$f":"[1]ACS_16_5YR_B25074_with_ann!BL267","v":13},{"$f":"[1]ACS_16_5YR_B25074_with_ann!BM267","v":20},{"$f":"[1]ACS_16_5YR_B25074_with_ann!BN267","v":0},{"$f":"[1]ACS_16_5YR_B25074_with_ann!BO267","v":16},{"$f":"[1]ACS_16_5YR_B25074_with_ann!BP267","v":0},{"$f":"[1]ACS_16_5YR_B25074_with_ann!BQ267","v":16},{"$f":"[1]ACS_16_5YR_B25074_with_ann!BR267","v":10},{"$f":"[1]ACS_16_5YR_B25074_with_ann!BS267","v":17},{"$f":"[1]ACS_16_5YR_B25074_with_ann!BT267","v":0},{"$f":"[1]ACS_16_5YR_B25074_with_ann!BU267","v":16},{"$f":"[1]ACS_16_5YR_B25074_with_ann!BV267","v":14},{"$f":"[1]ACS_16_5YR_B25074_with_ann!BW267","v":21},{"$f":"[1]ACS_16_5YR_B25074_with_ann!BX267","v":0},{"$f":"[1]ACS_16_5YR_B25074_with_ann!BY267","v":16},{"$f":"[1]ACS_16_5YR_B25074_with_ann!BZ267","v":158},{"$f":"[1]ACS_16_5YR_B25074_with_ann!CA267","v":116},{"$f":"[1]ACS_16_5YR_B25074_with_ann!CB268","v":0},{"$f":"[1]ACS_16_5YR_B25074_with_ann!CC268","v":11},{"$f":"[1]ACS_16_5YR_B25074_with_ann!CD268","v":0},{"$f":"[1]ACS_16_5YR_B25074_with_ann!CE268","v":11},{"$f":"[1]ACS_16_5YR_B25074_with_ann!CF268","v":5},{"$f":"[1]ACS_16_5YR_B25074_with_ann!CG268","v":7},{"$f":"[1]ACS_16_5YR_B25074_with_ann!CH268","v":17},{"$f":"[1]ACS_16_5YR_B25074_with_ann!CI268","v":26},{"$f":"[1]ACS_16_5YR_B25074_with_ann!CJ268","v":19},{"$f":"[1]ACS_16_5YR_B25074_with_ann!CK268","v":30},{"$f":"[1]ACS_16_5YR_B25074_with_ann!CL268","v":0},{"$f":"[1]ACS_16_5YR_B25074_with_ann!CM268","v":11},{"$f":"[1]ACS_16_5YR_B25074_with_ann!CN268","v":0},{"$f":"[1]ACS_16_5YR_B25074_with_ann!CO268","v":11},{"$f":"[1]ACS_16_5YR_B25074_with_ann!CP268","v":0},{"$f":"[1]ACS_16_5YR_B25074_with_ann!CQ268","v":11},{"$f":"[1]ACS_16_5YR_B25074_with_ann!CR268","v":0},{"$f":"[1]ACS_16_5YR_B25074_with_ann!CS268","v":11},{"$f":"[1]ACS_16_5YR_B25074_with_ann!CT268","v":0},{"$f":"[1]ACS_16_5YR_B25074_with_ann!CU268","v":11},{"$f":"[1]ACS_16_5YR_B25074_with_ann!CV268","v":0},{"$f":"[1]ACS_16_5YR_B25074_with_ann!CW268","v":11},{"$f":"[1]ACS_16_5YR_B25074_with_ann!CX268","v":0},{"$f":"[1]ACS_16_5YR_B25074_with_ann!CY268","v":11},{"$f":"[1]ACS_16_5YR_B25074_with_ann!CZ268","v":0},{"$f":"[1]ACS_16_5YR_B25074_with_ann!DA268","v":11},{"$f":"[1]ACS_16_5YR_B25074_with_ann!DB268","v":0},{"$f":"[1]ACS_16_5YR_B25074_with_ann!DC268","v":11},{"$f":"[1]ACS_16_5YR_B25074_with_ann!DD268","v":0},{"$f":"[1]ACS_16_5YR_B25074_with_ann!DE268","v":11},{"$f":"[1]ACS_16_5YR_B25074_with_ann!DF268","v":0},{"$f":"[1]ACS_16_5YR_B25074_with_ann!DG268","v":11},{"$f":"[1]ACS_16_5YR_B25074_with_ann!DH268","v":0},{"$f":"[1]ACS_16_5YR_B25074_with_ann!DI268","v":11},{"$f":"[1]ACS_16_5YR_B25074_with_ann!DJ268","v":28},{"$f":"[1]ACS_16_5YR_B25074_with_ann!DK268","v":30},{"$f":"[1]ACS_16_5YR_B25074_with_ann!DL268","v":28},{"$f":"[1]ACS_16_5YR_B25074_with_ann!DM268","v":30},{"$f":"[1]ACS_16_5YR_B25074_with_ann!DN268","v":0},{"$f":"[1]ACS_16_5YR_B25074_with_ann!DO268","v":11},{"$f":"[1]ACS_16_5YR_B25074_with_ann!DP268","v":0},{"$f":"[1]ACS_16_5YR_B25074_with_ann!DQ268","v":11},{"$f":"[1]ACS_16_5YR_B25074_with_ann!DR268","v":0},{"$f":"[1]ACS_16_5YR_B25074_with_ann!DS268","v":11},{"$f":"[1]ACS_16_5YR_B25074_with_ann!DT268","v":0},{"$f":"[1]ACS_16_5YR_B25074_with_ann!DU268","v":11},{"$f":"[1]ACS_16_5YR_B25074_with_ann!DV268","v":0},{"$f":"[1]ACS_16_5YR_B25074_with_ann!DW268","v":11},{"$f":"[1]ACS_16_5YR_B25074_with_ann!DX268","v":0},{"$f":"[1]ACS_16_5YR_B25074_with_ann!DY268","v":11},{"$f":"[1]ACS_16_5YR_B25074_with_ann!DZ268","v":0},{"$f":"[1]ACS_16_5YR_B25074_with_ann!EA268","v":11},null,"Newport"]
["0600000US3301952580",3301952580,"060","Newport",{"$f":"[1]ACS_16_5YR_B25070_with_ann!D267","v":857},{"$f":"[1]ACS_16_5YR_B25070_with_ann!E267","v":184},{"$f":"[1]ACS_16_5YR_B25070_with_ann!F267","v":13},{"$f":"[1]ACS_16_5YR_B25070_with_ann!G267","v":21},{"$f":"[1]ACS_16_5YR_B25070_with_ann!H267","v":102},{"$f":"[1]ACS_16_5YR_B25070_with_ann!I267","v":57},{"$f":"[1]ACS_16_5YR_B25070_with_ann!J267","v":64},{"$f":"[1]ACS_16_5YR_B25070_with_ann!K267","v":48},{"$f":"[1]ACS_16_5YR_B25070_with_ann!L267","v":122},{"$f":"[1]ACS_16_5YR_B25070_with_ann!M267","v":99},{"$f":"[1]ACS_16_5YR_B25070_with_ann!N267","v":11},{"$f":"[1]ACS_16_5YR_B25070_with_ann!O267","v":18},{"$f":"[1]ACS_16_5YR_B25070_with_ann!P267","v":93},{"$f":"[1]ACS_16_5YR_B25070_with_ann!Q267","v":84},{"$f":"[1]ACS_16_5YR_B25070_with_ann!R267","v":117},{"$f":"[1]ACS_16_5YR_B25070_with_ann!S267","v":93},{"$f":"[1]ACS_16_5YR_B25070_with_ann!T267","v":51},{"$f":"[1]ACS_16_5YR_B25070_with_ann!U267","v":71},{"$f":"[1]ACS_16_5YR_B25070_with_ann!V267","v":212},{"$f":"[1]ACS_16_5YR_B25070_with_ann!W267","v":120},{"$f":"[1]ACS_16_5YR_B25070_with_ann!X267","v":72},{"$f":"[1]ACS_16_5YR_B25070_with_ann!Y267","v":76},{"$f":"[1]ACS_16_5YR_B25074_with_ann!D267","v":857},{"$f":"[1]ACS_16_5YR_B25074_with_ann!E267","v":184},{"$f":"[1]ACS_16_5YR_B25074_with_ann!F267","v":97},{"$f":"[1]ACS_16_5YR_B25074_with_ann!G267","v":66},{"$f":"[1]ACS_16_5YR_B25074_with_ann!H267","v":15},{"$f":"[1]ACS_16_5YR_B25074_with_ann!I267","v":23},{"$f":"[1]ACS_16_5YR_B25074_with_ann!J267","v":0},{"$f":"[1]ACS_16_5YR_B25074_with_ann!K267","v":16},{"$f":"[1]ACS_16_5YR_B25074_with_ann!L267","v":0},{"$f":"[1]ACS_16_5YR_B25074_with_ann!M267","v":16},{"$f":"[1]ACS_16_5YR_B25074_with_ann!N267","v":0},{"$f":"[1]ACS_16_5YR_B25074_with_ann!O267","v":16},{"$f":"[1]ACS_16_5YR_B25074_with_ann!P267","v":0},{"$f":"[1]ACS_16_5YR_B25074_with_ann!Q267","v":16},{"$f":"[1]ACS_16_5YR_B25074_with_ann!R267","v":0},{"$f":"[1]ACS_16_5YR_B25074_with_ann!S267","v":16},{"$f":"[1]ACS_16_5YR_B25074_with_ann!T267","v":71},{"$f":"[1]ACS_16_5YR_B25074_with_ann!U267","v":60},{"$f":"[1]ACS_16_5YR_B25074_with_ann!V267","v":11},{"$f":"[1]ACS_16_5YR_B25074_with_ann!W267","v":19},{"$f":"[1]ACS_16_5YR_B25074_with_ann!X267","v":237},{"$f":"[1]ACS_16_5YR_B25074_with_ann!Y267","v":133},{"$f":"[1]ACS_16_5YR_B25074_with_ann!Z267","v":0},{"$f":"[1]ACS_16_5YR_B25074_with_ann!AA267","v":16},{"$f":"[1]ACS_16_5YR_B25074_with_ann!AB267","v":0},{"$f":"[1]ACS_16_5YR_B25074_with_ann!AC267","v":16},{"$f":"[1]ACS_16_5YR_B25074_with_ann!AD267","v":11},{"$f":"[1]ACS_16_5YR_B25074_with_ann!AE267","v":18},{"$f":"[1]ACS_16_5YR_B25074_with_ann!AF267","v":33},{"$f":"[1]ACS_16_5YR_B25074_with_ann!AG267","v":53},{"$f":"[1]ACS_16_5YR_B25074_with_ann!AH267","v":81},{"$f":"[1]ACS_16_5YR_B25074_with_ann!AI267","v":93},{"$f":"[1]ACS_16_5YR_B25074_with_ann!AJ268","v":0},{"$f":"[1]ACS_16_5YR_B25074_with_ann!AK268","v":11},{"$f":"[1]ACS_16_5YR_B25074_with_ann!AL268","v":0},{"$f":"[1]ACS_16_5YR_B25074_with_ann!AM268","v":11},{"$f":"[1]ACS_16_5YR_B25074_with_ann!AN268","v":0},{"$f":"[1]ACS_16_5YR_B25074_with_ann!AO268","v":11},{"$f":"[1]ACS_16_5YR_B25074_with_ann!AP268","v":21},{"$f":"[1]ACS_16_5YR_B25074_with_ann!AQ268","v":19},{"$f":"[1]ACS_16_5YR_B25074_with_ann!AR268","v":0},{"$f":"[1]ACS_16_5YR_B25074_with_ann!AS268","v":11},{"$f":"[1]ACS_16_5YR_B25074_with_ann!AT268","v":0},{"$f":"[1]ACS_16_5YR_B25074_with_ann!AU268","v":11},{"$f":"[1]ACS_16_5YR_B25074_with_ann!AV268","v":0},{"$f":"[1]ACS_16_5YR_B25074_with_ann!AW268","v":11},{"$f":"[1]ACS_16_5YR_B25074_with_ann!AX268","v":0},{"$f":"[1]ACS_16_5YR_B25074_with_ann!AY268","v":11},{"$f":"[1]ACS_16_5YR_B25074_with_ann!AZ268","v":0},{"$f":"[1]ACS_16_5YR_B25074_with_ann!BA268","v":11},{"$f":"[1]ACS_16_5YR_B25074_with_ann!BB268","v":5},{"$f":"[1]ACS_16_5YR_B25074_with_ann!BC268","v":7},{"$f":"[1]ACS_16_5YR_B25074_with_ann!BD268","v":16},{"$f":"[1]ACS_16_5YR_B25074_with_ann!BE268","v":18},{"$f":"[1]ACS_16_5YR_B25074_with_ann!BF268","v":0},{"$f":"[1]ACS_16_5YR_B25074_with_ann!BG268","v":11},{"$f":"[1]ACS_16_5YR_B25074_with_ann!BH268","v":18},{"$f":"[1]ACS_16_5YR_B25074_with_ann!BI268","v":15},{"$f":"[1]ACS_16_5YR_B25074_with_ann!BJ268","v":0},{"$f":"[1]ACS_16_5YR_B25074_with_ann!BK268","v":11},{"$f":"[1]ACS_16_5YR_B25074_with_ann!BL268","v":0},{"$f":"[1]ACS_16_5YR_B25074_with_ann!BM268","v":11},{"$f":"[1]ACS_16_5YR_B25074_with_ann!BN268","v":6},{"$f":"[1]ACS_16_5YR_B25074_with_ann!BO268","v":8},{"$f":"[1]ACS_16_5YR_B25074_with_ann!BP268","v":5},{"$f":"[1]ACS_16_5YR_B25074_with_ann!BQ268","v":8},{"$f":"[1]ACS_16_5YR_B25074_with_ann!BR268","v":0},{"$f":"[1]ACS_16_5YR_B25074_with_ann!BS268","v":11},{"$f":"[1]ACS_16_5YR_B25074_with_ann!BT268","v":7},{"$f":"[1]ACS_16_5YR_B25074_with_ann!BU268","v":10},{"$f":"[1]ACS_16_5YR_B25074_with_ann!BV268","v":0},{"$f":"[1]ACS_16_5YR_B25074_with_ann!BW268","v":11},{"$f":"[1]ACS_16_5YR_B25074_with_ann!BX268","v":0},{"$f":"[1]ACS_16_5YR_B25074_with_ann!BY268","v":11},{"$f":"[1]ACS_16_5YR_B25074_with_ann!BZ268","v":41},{"$f":"[1]ACS_16_5YR_B25074_with_ann!CA268","v":38},{"$f":"[1]ACS_16_5YR_B25074_with_ann!CB269","v":0},{"$f":"[1]ACS_16_5YR_B25074_with_ann!CC269","v":11},{"$f":"[1]ACS_16_5YR_B25074_with_ann!CD269","v":0},{"$f":"[1]ACS_16_5YR_B25074_with_ann!CE269","v":11},{"$f":"[1]ACS_16_5YR_B25074_with_ann!CF269","v":0},{"$f":"[1]ACS_16_5YR_B25074_with_ann!CG269","v":11},{"$f":"[1]ACS_16_5YR_B25074_with_ann!CH269","v":0},{"$f":"[1]ACS_16_5YR_B25074_with_ann!CI269","v":11},{"$f":"[1]ACS_16_5YR_B25074_with_ann!CJ269","v":0},{"$f":"[1]ACS_16_5YR_B25074_with_ann!CK269","v":11},{"$f":"[1]ACS_16_5YR_B25074_with_ann!CL269","v":0},{"$f":"[1]ACS_16_5YR_B25074_with_ann!CM269","v":11},{"$f":"[1]ACS_16_5YR_B25074_with_ann!CN269","v":0},{"$f":"[1]ACS_16_5YR_B25074_with_ann!CO269","v":11},{"$f":"[1]ACS_16_5YR_B25074_with_ann!CP269","v":7},{"$f":"[1]ACS_16_5YR_B25074_with_ann!CQ269","v":8},{"$f":"[1]ACS_16_5YR_B25074_with_ann!CR269","v":24},{"$f":"[1]ACS_16_5YR_B25074_with_ann!CS269","v":29},{"$f":"[1]ACS_16_5YR_B25074_with_ann!CT269","v":24},{"$f":"[1]ACS_16_5YR_B25074_with_ann!CU269","v":29},{"$f":"[1]ACS_16_5YR_B25074_with_ann!CV269","v":0},{"$f":"[1]ACS_16_5YR_B25074_with_ann!CW269","v":11},{"$f":"[1]ACS_16_5YR_B25074_with_ann!CX269","v":0},{"$f":"[1]ACS_16_5YR_B25074_with_ann!CY269","v":11},{"$f":"[1]ACS_16_5YR_B25074_with_ann!CZ269","v":0},{"$f":"[1]ACS_16_5YR_B25074_with_ann!DA269","v":11},{"$f":"[1]ACS_16_5YR_B25074_with_ann!DB269","v":0},{"$f":"[1]ACS_16_5YR_B25074_with_ann!DC269","v":11},{"$f":"[1]ACS_16_5YR_B25074_with_ann!DD269","v":0},{"$f":"[1]ACS_16_5YR_B25074_with_ann!DE269","v":11},{"$f":"[1]ACS_16_5YR_B25074_with_ann!DF269","v":0},{"$f":"[1]ACS_16_5YR_B25074_with_ann!DG269","v":11},{"$f":"[1]ACS_16_5YR_B25074_with_ann!DH269","v":0},{"$f":"[1]ACS_16_5YR_B25074_with_ann!DI269","v":11},{"$f":"[1]ACS_16_5YR_B25074_with_ann!DJ269","v":0},{"$f":"[1]ACS_16_5YR_B25074_with_ann!DK269","v":11},{"$f":"[1]ACS_16_5YR_B25074_with_ann!DL269","v":0},{"$f":"[1]ACS_16_5YR_B25074_with_ann!DM269","v":11},{"$f":"[1]ACS_16_5YR_B25074_with_ann!DN269","v":0},{"$f":"[1]ACS_16_5YR_B25074_with_ann!DO269","v":11},{"$f":"[1]ACS_16_5YR_B25074_with_ann!DP269","v":0},{"$f":"[1]ACS_16_5YR_B25074_with_ann!DQ269","v":11},{"$f":"[1]ACS_16_5YR_B25074_with_ann!DR269","v":0},{"$f":"[1]ACS_16_5YR_B25074_with_ann!DS269","v":11},{"$f":"[1]ACS_16_5YR_B25074_with_ann!DT269","v":0},{"$f":"[1]ACS_16_5YR_B25074_with_ann!DU269","v":11},{"$f":"[1]ACS_16_5YR_B25074_with_ann!DV269","v":0},{"$f":"[1]ACS_16_5YR_B25074_with_ann!DW269","v":11},{"$f":"[1]ACS_16_5YR_B25074_with_ann!DX269","v":0},{"$f":"[1]ACS_16_5YR_B25074_with_ann!DY269","v":11},{"$f":"[1]ACS_16_5YR_B25074_with_ann!DZ269","v":0},{"$f":"[1]ACS_16_5YR_B25074_with_ann!EA269","v":11},null,"Plainfield"]
["0600000US3301962340",3301962340,"060","Plainfield",{"$f":"[1]ACS_16_5YR_B25070_with_ann!D268","v":112},{"$f":"[1]ACS_16_5YR_B25070_with_ann!E268","v":49},{"$f":"[1]ACS_16_5YR_B25070_with_ann!F268","v":0},{"$f":"[1]ACS_16_5YR_B25070_with_ann!G268","v":11},{"$f":"[1]ACS_16_5YR_B25070_with_ann!H268","v":0},{"$f":"[1]ACS_16_5YR_B25070_with_ann!I268","v":11},{"$f":"[1]ACS_16_5YR_B25070_with_ann!J268","v":28},{"$f":"[1]ACS_16_5YR_B25070_with_ann!K268","v":30},{"$f":"[1]ACS_16_5YR_B25070_with_ann!L268","v":0},{"$f":"[1]ACS_16_5YR_B25070_with_ann!M268","v":11},{"$f":"[1]ACS_16_5YR_B25070_with_ann!N268","v":11},{"$f":"[1]ACS_16_5YR_B25070_with_ann!O268","v":11},{"$f":"[1]ACS_16_5YR_B25070_with_ann!P268","v":22},{"$f":"[1]ACS_16_5YR_B25070_with_ann!Q268","v":28},{"$f":"[1]ACS_16_5YR_B25070_with_ann!R268","v":19},{"$f":"[1]ACS_16_5YR_B25070_with_ann!S268","v":30},{"$f":"[1]ACS_16_5YR_B25070_with_ann!T268","v":12},{"$f":"[1]ACS_16_5YR_B25070_with_ann!U268","v":12},{"$f":"[1]ACS_16_5YR_B25070_with_ann!V268","v":16},{"$f":"[1]ACS_16_5YR_B25070_with_ann!W268","v":18},{"$f":"[1]ACS_16_5YR_B25070_with_ann!X268","v":4},{"$f":"[1]ACS_16_5YR_B25070_with_ann!Y268","v":8},{"$f":"[1]ACS_16_5YR_B25074_with_ann!D268","v":112},{"$f":"[1]ACS_16_5YR_B25074_with_ann!E268","v":49},{"$f":"[1]ACS_16_5YR_B25074_with_ann!F268","v":4},{"$f":"[1]ACS_16_5YR_B25074_with_ann!G268","v":8},{"$f":"[1]ACS_16_5YR_B25074_with_ann!H268","v":0},{"$f":"[1]ACS_16_5YR_B25074_with_ann!I268","v":11},{"$f":"[1]ACS_16_5YR_B25074_with_ann!J268","v":0},{"$f":"[1]ACS_16_5YR_B25074_with_ann!K268","v":11},{"$f":"[1]ACS_16_5YR_B25074_with_ann!L268","v":0},{"$f":"[1]ACS_16_5YR_B25074_with_ann!M268","v":11},{"$f":"[1]ACS_16_5YR_B25074_with_ann!N268","v":0},{"$f":"[1]ACS_16_5YR_B25074_with_ann!O268","v":11},{"$f":"[1]ACS_16_5YR_B25074_with_ann!P268","v":0},{"$f":"[1]ACS_16_5YR_B25074_with_ann!Q268","v":11},{"$f":"[1]ACS_16_5YR_B25074_with_ann!R268","v":0},{"$f":"[1]ACS_16_5YR_B25074_with_ann!S268","v":11},{"$f":"[1]ACS_16_5YR_B25074_with_ann!T268","v":0},{"$f":"[1]ACS_16_5YR_B25074_with_ann!U268","v":11},{"$f":"[1]ACS_16_5YR_B25074_with_ann!V268","v":4},{"$f":"[1]ACS_16_5YR_B25074_with_ann!W268","v":8},{"$f":"[1]ACS_16_5YR_B25074_with_ann!X268","v":0},{"$f":"[1]ACS_16_5YR_B25074_with_ann!Y268","v":11},{"$f":"[1]ACS_16_5YR_B25074_with_ann!Z268","v":0},{"$f":"[1]ACS_16_5YR_B25074_with_ann!AA268","v":11},{"$f":"[1]ACS_16_5YR_B25074_with_ann!AB268","v":0},{"$f":"[1]ACS_16_5YR_B25074_with_ann!AC268","v":11},{"$f":"[1]ACS_16_5YR_B25074_with_ann!AD268","v":0},{"$f":"[1]ACS_16_5YR_B25074_with_ann!AE268","v":11},{"$f":"[1]ACS_16_5YR_B25074_with_ann!AF268","v":0},{"$f":"[1]ACS_16_5YR_B25074_with_ann!AG268","v":11},{"$f":"[1]ACS_16_5YR_B25074_with_ann!AH268","v":0},{"$f":"[1]ACS_16_5YR_B25074_with_ann!AI268","v":11},{"$f":"[1]ACS_16_5YR_B25074_with_ann!AJ269","v":0},{"$f":"[1]ACS_16_5YR_B25074_with_ann!AK269","v":11},{"$f":"[1]ACS_16_5YR_B25074_with_ann!AL269","v":0},{"$f":"[1]ACS_16_5YR_B25074_with_ann!AM269","v":11},{"$f":"[1]ACS_16_5YR_B25074_with_ann!AN269","v":0},{"$f":"[1]ACS_16_5YR_B25074_with_ann!AO269","v":11},{"$f":"[1]ACS_16_5YR_B25074_with_ann!AP269","v":0},{"$f":"[1]ACS_16_5YR_B25074_with_ann!AQ269","v":11},{"$f":"[1]ACS_16_5YR_B25074_with_ann!AR269","v":0},{"$f":"[1]ACS_16_5YR_B25074_with_ann!AS269","v":11},{"$f":"[1]ACS_16_5YR_B25074_with_ann!AT269","v":0},{"$f":"[1]ACS_16_5YR_B25074_with_ann!AU269","v":11},{"$f":"[1]ACS_16_5YR_B25074_with_ann!AV269","v":0},{"$f":"[1]ACS_16_5YR_B25074_with_ann!AW269","v":11},{"$f":"[1]ACS_16_5YR_B25074_with_ann!AX269","v":0},{"$f":"[1]ACS_16_5YR_B25074_with_ann!AY269","v":11},{"$f":"[1]ACS_16_5YR_B25074_with_ann!AZ269","v":0},{"$f":"[1]ACS_16_5YR_B25074_with_ann!BA269","v":11},{"$f":"[1]ACS_16_5YR_B25074_with_ann!BB269","v":0},{"$f":"[1]ACS_16_5YR_B25074_with_ann!BC269","v":11},{"$f":"[1]ACS_16_5YR_B25074_with_ann!BD269","v":0},{"$f":"[1]ACS_16_5YR_B25074_with_ann!BE269","v":11},{"$f":"[1]ACS_16_5YR_B25074_with_ann!BF269","v":0},{"$f":"[1]ACS_16_5YR_B25074_with_ann!BG269","v":11},{"$f":"[1]ACS_16_5YR_B25074_with_ann!BH269","v":5},{"$f":"[1]ACS_16_5YR_B25074_with_ann!BI269","v":9},{"$f":"[1]ACS_16_5YR_B25074_with_ann!BJ269","v":0},{"$f":"[1]ACS_16_5YR_B25074_with_ann!BK269","v":11},{"$f":"[1]ACS_16_5YR_B25074_with_ann!BL269","v":0},{"$f":"[1]ACS_16_5YR_B25074_with_ann!BM269","v":11},{"$f":"[1]ACS_16_5YR_B25074_with_ann!BN269","v":0},{"$f":"[1]ACS_16_5YR_B25074_with_ann!BO269","v":11},{"$f":"[1]ACS_16_5YR_B25074_with_ann!BP269","v":0},{"$f":"[1]ACS_16_5YR_B25074_with_ann!BQ269","v":11},{"$f":"[1]ACS_16_5YR_B25074_with_ann!BR269","v":0},{"$f":"[1]ACS_16_5YR_B25074_with_ann!BS269","v":11},{"$f":"[1]ACS_16_5YR_B25074_with_ann!BT269","v":5},{"$f":"[1]ACS_16_5YR_B25074_with_ann!BU269","v":9},{"$f":"[1]ACS_16_5YR_B25074_with_ann!BV269","v":0},{"$f":"[1]ACS_16_5YR_B25074_with_ann!BW269","v":11},{"$f":"[1]ACS_16_5YR_B25074_with_ann!BX269","v":0},{"$f":"[1]ACS_16_5YR_B25074_with_ann!BY269","v":11},{"$f":"[1]ACS_16_5YR_B25074_with_ann!BZ269","v":7},{"$f":"[1]ACS_16_5YR_B25074_with_ann!CA269","v":8},{"$f":"[1]ACS_16_5YR_B25074_with_ann!CB270","v":27},{"$f":"[1]ACS_16_5YR_B25074_with_ann!CC270","v":32},{"$f":"[1]ACS_16_5YR_B25074_with_ann!CD270","v":27},{"$f":"[1]ACS_16_5YR_B25074_with_ann!CE270","v":31},{"$f":"[1]ACS_16_5YR_B25074_with_ann!CF270","v":7},{"$f":"[1]ACS_16_5YR_B25074_with_ann!CG270","v":11},{"$f":"[1]ACS_16_5YR_B25074_with_ann!CH270","v":23},{"$f":"[1]ACS_16_5YR_B25074_with_ann!CI270","v":33},{"$f":"[1]ACS_16_5YR_B25074_with_ann!CJ270","v":0},{"$f":"[1]ACS_16_5YR_B25074_with_ann!CK270","v":11},{"$f":"[1]ACS_16_5YR_B25074_with_ann!CL270","v":0},{"$f":"[1]ACS_16_5YR_B25074_with_ann!CM270","v":11},{"$f":"[1]ACS_16_5YR_B25074_with_ann!CN270","v":0},{"$f":"[1]ACS_16_5YR_B25074_with_ann!CO270","v":11},{"$f":"[1]ACS_16_5YR_B25074_with_ann!CP270","v":0},{"$f":"[1]ACS_16_5YR_B25074_with_ann!CQ270","v":11},{"$f":"[1]ACS_16_5YR_B25074_with_ann!CR270","v":0},{"$f":"[1]ACS_16_5YR_B25074_with_ann!CS270","v":11},{"$f":"[1]ACS_16_5YR_B25074_with_ann!CT270","v":0},{"$f":"[1]ACS_16_5YR_B25074_with_ann!CU270","v":11},{"$f":"[1]ACS_16_5YR_B25074_with_ann!CV270","v":0},{"$f":"[1]ACS_16_5YR_B25074_with_ann!CW270","v":11},{"$f":"[1]ACS_16_5YR_B25074_with_ann!CX270","v":0},{"$f":"[1]ACS_16_5YR_B25074_with_ann!CY270","v":11},{"$f":"[1]ACS_16_5YR_B25074_with_ann!CZ270","v":0},{"$f":"[1]ACS_16_5YR_B25074_with_ann!DA270","v":11},{"$f":"[1]ACS_16_5YR_B25074_with_ann!DB270","v":0},{"$f":"[1]ACS_16_5YR_B25074_with_ann!DC270","v":11},{"$f":"[1]ACS_16_5YR_B25074_with_ann!DD270","v":0},{"$f":"[1]ACS_16_5YR_B25074_with_ann!DE270","v":11},{"$f":"[1]ACS_16_5YR_B25074_with_ann!DF270","v":0},{"$f":"[1]ACS_16_5YR_B25074_with_ann!DG270","v":11},{"$f":"[1]ACS_16_5YR_B25074_with_ann!DH270","v":0},{"$f":"[1]ACS_16_5YR_B25074_with_ann!DI270","v":11},{"$f":"[1]ACS_16_5YR_B25074_with_ann!DJ270","v":36},{"$f":"[1]ACS_16_5YR_B25074_with_ann!DK270","v":29},{"$f":"[1]ACS_16_5YR_B25074_with_ann!DL270","v":15},{"$f":"[1]ACS_16_5YR_B25074_with_ann!DM270","v":23},{"$f":"[1]ACS_16_5YR_B25074_with_ann!DN270","v":12},{"$f":"[1]ACS_16_5YR_B25074_with_ann!DO270","v":18},{"$f":"[1]ACS_16_5YR_B25074_with_ann!DP270","v":9},{"$f":"[1]ACS_16_5YR_B25074_with_ann!DQ270","v":14},{"$f":"[1]ACS_16_5YR_B25074_with_ann!DR270","v":0},{"$f":"[1]ACS_16_5YR_B25074_with_ann!DS270","v":11},{"$f":"[1]ACS_16_5YR_B25074_with_ann!DT270","v":0},{"$f":"[1]ACS_16_5YR_B25074_with_ann!DU270","v":11},{"$f":"[1]ACS_16_5YR_B25074_with_ann!DV270","v":0},{"$f":"[1]ACS_16_5YR_B25074_with_ann!DW270","v":11},{"$f":"[1]ACS_16_5YR_B25074_with_ann!DX270","v":0},{"$f":"[1]ACS_16_5YR_B25074_with_ann!DY270","v":11},{"$f":"[1]ACS_16_5YR_B25074_with_ann!DZ270","v":0},{"$f":"[1]ACS_16_5YR_B25074_with_ann!EA270","v":11},null,"Springfield"]
["0600000US3301972740",3301972740,"060","Springfield",{"$f":"[1]ACS_16_5YR_B25070_with_ann!D269","v":44},{"$f":"[1]ACS_16_5YR_B25070_with_ann!E269","v":33},{"$f":"[1]ACS_16_5YR_B25070_with_ann!F269","v":16},{"$f":"[1]ACS_16_5YR_B25070_with_ann!G269","v":27},{"$f":"[1]ACS_16_5YR_B25070_with_ann!H269","v":0},{"$f":"[1]ACS_16_5YR_B25070_with_ann!I269","v":11},{"$f":"[1]ACS_16_5YR_B25070_with_ann!J269","v":8},{"$f":"[1]ACS_16_5YR_B25070_with_ann!K269","v":12},{"$f":"[1]ACS_16_5YR_B25070_with_ann!L269","v":0},{"$f":"[1]ACS_16_5YR_B25070_with_ann!M269","v":11},{"$f":"[1]ACS_16_5YR_B25070_with_ann!N269","v":0},{"$f":"[1]ACS_16_5YR_B25070_with_ann!O269","v":11},{"$f":"[1]ACS_16_5YR_B25070_with_ann!P269","v":0},{"$f":"[1]ACS_16_5YR_B25070_with_ann!Q269","v":11},{"$f":"[1]ACS_16_5YR_B25070_with_ann!R269","v":0},{"$f":"[1]ACS_16_5YR_B25070_with_ann!S269","v":11},{"$f":"[1]ACS_16_5YR_B25070_with_ann!T269","v":5},{"$f":"[1]ACS_16_5YR_B25070_with_ann!U269","v":9},{"$f":"[1]ACS_16_5YR_B25070_with_ann!V269","v":0},{"$f":"[1]ACS_16_5YR_B25070_with_ann!W269","v":11},{"$f":"[1]ACS_16_5YR_B25070_with_ann!X269","v":15},{"$f":"[1]ACS_16_5YR_B25070_with_ann!Y269","v":15},{"$f":"[1]ACS_16_5YR_B25074_with_ann!D269","v":44},{"$f":"[1]ACS_16_5YR_B25074_with_ann!E269","v":33},{"$f":"[1]ACS_16_5YR_B25074_with_ann!F269","v":8},{"$f":"[1]ACS_16_5YR_B25074_with_ann!G269","v":13},{"$f":"[1]ACS_16_5YR_B25074_with_ann!H269","v":0},{"$f":"[1]ACS_16_5YR_B25074_with_ann!I269","v":11},{"$f":"[1]ACS_16_5YR_B25074_with_ann!J269","v":0},{"$f":"[1]ACS_16_5YR_B25074_with_ann!K269","v":11},{"$f":"[1]ACS_16_5YR_B25074_with_ann!L269","v":0},{"$f":"[1]ACS_16_5YR_B25074_with_ann!M269","v":11},{"$f":"[1]ACS_16_5YR_B25074_with_ann!N269","v":0},{"$f":"[1]ACS_16_5YR_B25074_with_ann!O269","v":11},{"$f":"[1]ACS_16_5YR_B25074_with_ann!P269","v":0},{"$f":"[1]ACS_16_5YR_B25074_with_ann!Q269","v":11},{"$f":"[1]ACS_16_5YR_B25074_with_ann!R269","v":0},{"$f":"[1]ACS_16_5YR_B25074_with_ann!S269","v":11},{"$f":"[1]ACS_16_5YR_B25074_with_ann!T269","v":0},{"$f":"[1]ACS_16_5YR_B25074_with_ann!U269","v":11},{"$f":"[1]ACS_16_5YR_B25074_with_ann!V269","v":8},{"$f":"[1]ACS_16_5YR_B25074_with_ann!W269","v":13},{"$f":"[1]ACS_16_5YR_B25074_with_ann!X269","v":0},{"$f":"[1]ACS_16_5YR_B25074_with_ann!Y269","v":11},{"$f":"[1]ACS_16_5YR_B25074_with_ann!Z269","v":0},{"$f":"[1]ACS_16_5YR_B25074_with_ann!AA269","v":11},{"$f":"[1]ACS_16_5YR_B25074_with_ann!AB269","v":0},{"$f":"[1]ACS_16_5YR_B25074_with_ann!AC269","v":11},{"$f":"[1]ACS_16_5YR_B25074_with_ann!AD269","v":0},{"$f":"[1]ACS_16_5YR_B25074_with_ann!AE269","v":11},{"$f":"[1]ACS_16_5YR_B25074_with_ann!AF269","v":0},{"$f":"[1]ACS_16_5YR_B25074_with_ann!AG269","v":11},{"$f":"[1]ACS_16_5YR_B25074_with_ann!AH269","v":0},{"$f":"[1]ACS_16_5YR_B25074_with_ann!AI269","v":11},{"$f":"[1]ACS_16_5YR_B25074_with_ann!AJ270","v":0},{"$f":"[1]ACS_16_5YR_B25074_with_ann!AK270","v":11},{"$f":"[1]ACS_16_5YR_B25074_with_ann!AL270","v":11},{"$f":"[1]ACS_16_5YR_B25074_with_ann!AM270","v":17},{"$f":"[1]ACS_16_5YR_B25074_with_ann!AN270","v":0},{"$f":"[1]ACS_16_5YR_B25074_with_ann!AO270","v":11},{"$f":"[1]ACS_16_5YR_B25074_with_ann!AP270","v":88},{"$f":"[1]ACS_16_5YR_B25074_with_ann!AQ270","v":73},{"$f":"[1]ACS_16_5YR_B25074_with_ann!AR270","v":0},{"$f":"[1]ACS_16_5YR_B25074_with_ann!AS270","v":11},{"$f":"[1]ACS_16_5YR_B25074_with_ann!AT270","v":0},{"$f":"[1]ACS_16_5YR_B25074_with_ann!AU270","v":11},{"$f":"[1]ACS_16_5YR_B25074_with_ann!AV270","v":0},{"$f":"[1]ACS_16_5YR_B25074_with_ann!AW270","v":11},{"$f":"[1]ACS_16_5YR_B25074_with_ann!AX270","v":28},{"$f":"[1]ACS_16_5YR_B25074_with_ann!AY270","v":47},{"$f":"[1]ACS_16_5YR_B25074_with_ann!AZ270","v":0},{"$f":"[1]ACS_16_5YR_B25074_with_ann!BA270","v":11},{"$f":"[1]ACS_16_5YR_B25074_with_ann!BB270","v":16},{"$f":"[1]ACS_16_5YR_B25074_with_ann!BC270","v":19},{"$f":"[1]ACS_16_5YR_B25074_with_ann!BD270","v":39},{"$f":"[1]ACS_16_5YR_B25074_with_ann!BE270","v":55},{"$f":"[1]ACS_16_5YR_B25074_with_ann!BF270","v":5},{"$f":"[1]ACS_16_5YR_B25074_with_ann!BG270","v":8},{"$f":"[1]ACS_16_5YR_B25074_with_ann!BH270","v":66},{"$f":"[1]ACS_16_5YR_B25074_with_ann!BI270","v":67},{"$f":"[1]ACS_16_5YR_B25074_with_ann!BJ270","v":0},{"$f":"[1]ACS_16_5YR_B25074_with_ann!BK270","v":11},{"$f":"[1]ACS_16_5YR_B25074_with_ann!BL270","v":0},{"$f":"[1]ACS_16_5YR_B25074_with_ann!BM270","v":11},{"$f":"[1]ACS_16_5YR_B25074_with_ann!BN270","v":0},{"$f":"[1]ACS_16_5YR_B25074_with_ann!BO270","v":11},{"$f":"[1]ACS_16_5YR_B25074_with_ann!BP270","v":58},{"$f":"[1]ACS_16_5YR_B25074_with_ann!BQ270","v":66},{"$f":"[1]ACS_16_5YR_B25074_with_ann!BR270","v":0},{"$f":"[1]ACS_16_5YR_B25074_with_ann!BS270","v":11},{"$f":"[1]ACS_16_5YR_B25074_with_ann!BT270","v":8},{"$f":"[1]ACS_16_5YR_B25074_with_ann!BU270","v":13},{"$f":"[1]ACS_16_5YR_B25074_with_ann!BV270","v":0},{"$f":"[1]ACS_16_5YR_B25074_with_ann!BW270","v":11},{"$f":"[1]ACS_16_5YR_B25074_with_ann!BX270","v":0},{"$f":"[1]ACS_16_5YR_B25074_with_ann!BY270","v":11},{"$f":"[1]ACS_16_5YR_B25074_with_ann!BZ270","v":84},{"$f":"[1]ACS_16_5YR_B25074_with_ann!CA270","v":59},{"$f":"[1]ACS_16_5YR_B25074_with_ann!CB271","v":0},{"$f":"[1]ACS_16_5YR_B25074_with_ann!CC271","v":11},{"$f":"[1]ACS_16_5YR_B25074_with_ann!CD271","v":3},{"$f":"[1]ACS_16_5YR_B25074_with_ann!CE271","v":4},{"$f":"[1]ACS_16_5YR_B25074_with_ann!CF271","v":5},{"$f":"[1]ACS_16_5YR_B25074_with_ann!CG271","v":8},{"$f":"[1]ACS_16_5YR_B25074_with_ann!CH271","v":0},{"$f":"[1]ACS_16_5YR_B25074_with_ann!CI271","v":11},{"$f":"[1]ACS_16_5YR_B25074_with_ann!CJ271","v":0},{"$f":"[1]ACS_16_5YR_B25074_with_ann!CK271","v":11},{"$f":"[1]ACS_16_5YR_B25074_with_ann!CL271","v":0},{"$f":"[1]ACS_16_5YR_B25074_with_ann!CM271","v":11},{"$f":"[1]ACS_16_5YR_B25074_with_ann!CN271","v":0},{"$f":"[1]ACS_16_5YR_B25074_with_ann!CO271","v":11},{"$f":"[1]ACS_16_5YR_B25074_with_ann!CP271","v":0},{"$f":"[1]ACS_16_5YR_B25074_with_ann!CQ271","v":11},{"$f":"[1]ACS_16_5YR_B25074_with_ann!CR271","v":0},{"$f":"[1]ACS_16_5YR_B25074_with_ann!CS271","v":11},{"$f":"[1]ACS_16_5YR_B25074_with_ann!CT271","v":0},{"$f":"[1]ACS_16_5YR_B25074_with_ann!CU271","v":11},{"$f":"[1]ACS_16_5YR_B25074_with_ann!CV271","v":0},{"$f":"[1]ACS_16_5YR_B25074_with_ann!CW271","v":11},{"$f":"[1]ACS_16_5YR_B25074_with_ann!CX271","v":0},{"$f":"[1]ACS_16_5YR_B25074_with_ann!CY271","v":11},{"$f":"[1]ACS_16_5YR_B25074_with_ann!CZ271","v":0},{"$f":"[1]ACS_16_5YR_B25074_with_ann!DA271","v":11},{"$f":"[1]ACS_16_5YR_B25074_with_ann!DB271","v":0},{"$f":"[1]ACS_16_5YR_B25074_with_ann!DC271","v":11},{"$f":"[1]ACS_16_5YR_B25074_with_ann!DD271","v":0},{"$f":"[1]ACS_16_5YR_B25074_with_ann!DE271","v":11},{"$f":"[1]ACS_16_5YR_B25074_with_ann!DF271","v":0},{"$f":"[1]ACS_16_5YR_B25074_with_ann!DG271","v":11},{"$f":"[1]ACS_16_5YR_B25074_with_ann!DH271","v":0},{"$f":"[1]ACS_16_5YR_B25074_with_ann!DI271","v":11},{"$f":"[1]ACS_16_5YR_B25074_with_ann!DJ271","v":5},{"$f":"[1]ACS_16_5YR_B25074_with_ann!DK271","v":7},{"$f":"[1]ACS_16_5YR_B25074_with_ann!DL271","v":0},{"$f":"[1]ACS_16_5YR_B25074_with_ann!DM271","v":11},{"$f":"[1]ACS_16_5YR_B25074_with_ann!DN271","v":0},{"$f":"[1]ACS_16_5YR_B25074_with_ann!DO271","v":11},{"$f":"[1]ACS_16_5YR_B25074_with_ann!DP271","v":0},{"$f":"[1]ACS_16_5YR_B25074_with_ann!DQ271","v":11},{"$f":"[1]ACS_16_5YR_B25074_with_ann!DR271","v":0},{"$f":"[1]ACS_16_5YR_B25074_with_ann!DS271","v":11},{"$f":"[1]ACS_16_5YR_B25074_with_ann!DT271","v":0},{"$f":"[1]ACS_16_5YR_B25074_with_ann!DU271","v":11},{"$f":"[1]ACS_16_5YR_B25074_with_ann!DV271","v":0},{"$f":"[1]ACS_16_5YR_B25074_with_ann!DW271","v":11},{"$f":"[1]ACS_16_5YR_B25074_with_ann!DX271","v":0},{"$f":"[1]ACS_16_5YR_B25074_with_ann!DY271","v":11},{"$f":"[1]ACS_16_5YR_B25074_with_ann!DZ271","v":5},{"$f":"[1]ACS_16_5YR_B25074_with_ann!EA271","v":7},null,"Sunapee"]
["0600000US3301975060",3301975060,"060","Sunapee",{"$f":"[1]ACS_16_5YR_B25070_with_ann!D270","v":349},{"$f":"[1]ACS_16_5YR_B25070_with_ann!E270","v":122},{"$f":"[1]ACS_16_5YR_B25070_with_ann!F270","v":0},{"$f":"[1]ACS_16_5YR_B25070_with_ann!G270","v":11},{"$f":"[1]ACS_16_5YR_B25070_with_ann!H270","v":15},{"$f":"[1]ACS_16_5YR_B25070_with_ann!I270","v":23},{"$f":"[1]ACS_16_5YR_B25070_with_ann!J270","v":27},{"$f":"[1]ACS_16_5YR_B25070_with_ann!K270","v":32},{"$f":"[1]ACS_16_5YR_B25070_with_ann!L270","v":39},{"$f":"[1]ACS_16_5YR_B25070_with_ann!M270","v":35},{"$f":"[1]ACS_16_5YR_B25070_with_ann!N270","v":16},{"$f":"[1]ACS_16_5YR_B25070_with_ann!O270","v":19},{"$f":"[1]ACS_16_5YR_B25070_with_ann!P270","v":109},{"$f":"[1]ACS_16_5YR_B25070_with_ann!Q270","v":86},{"$f":"[1]ACS_16_5YR_B25070_with_ann!R270","v":0},{"$f":"[1]ACS_16_5YR_B25070_with_ann!S270","v":11},{"$f":"[1]ACS_16_5YR_B25070_with_ann!T270","v":24},{"$f":"[1]ACS_16_5YR_B25070_with_ann!U270","v":23},{"$f":"[1]ACS_16_5YR_B25070_with_ann!V270","v":83},{"$f":"[1]ACS_16_5YR_B25070_with_ann!W270","v":78},{"$f":"[1]ACS_16_5YR_B25070_with_ann!X270","v":36},{"$f":"[1]ACS_16_5YR_B25070_with_ann!Y270","v":49},{"$f":"[1]ACS_16_5YR_B25074_with_ann!D270","v":349},{"$f":"[1]ACS_16_5YR_B25074_with_ann!E270","v":122},{"$f":"[1]ACS_16_5YR_B25074_with_ann!F270","v":64},{"$f":"[1]ACS_16_5YR_B25074_with_ann!G270","v":72},{"$f":"[1]ACS_16_5YR_B25074_with_ann!H270","v":0},{"$f":"[1]ACS_16_5YR_B25074_with_ann!I270","v":11},{"$f":"[1]ACS_16_5YR_B25074_with_ann!J270","v":0},{"$f":"[1]ACS_16_5YR_B25074_with_ann!K270","v":11},{"$f":"[1]ACS_16_5YR_B25074_with_ann!L270","v":0},{"$f":"[1]ACS_16_5YR_B25074_with_ann!M270","v":11},{"$f":"[1]ACS_16_5YR_B25074_with_ann!N270","v":0},{"$f":"[1]ACS_16_5YR_B25074_with_ann!O270","v":11},{"$f":"[1]ACS_16_5YR_B25074_with_ann!P270","v":0},{"$f":"[1]ACS_16_5YR_B25074_with_ann!Q270","v":11},{"$f":"[1]ACS_16_5YR_B25074_with_ann!R270","v":0},{"$f":"[1]ACS_16_5YR_B25074_with_ann!S270","v":11},{"$f":"[1]ACS_16_5YR_B25074_with_ann!T270","v":33},{"$f":"[1]ACS_16_5YR_B25074_with_ann!U270","v":52},{"$f":"[1]ACS_16_5YR_B25074_with_ann!V270","v":31},{"$f":"[1]ACS_16_5YR_B25074_with_ann!W270","v":48},{"$f":"[1]ACS_16_5YR_B25074_with_ann!X270","v":11},{"$f":"[1]ACS_16_5YR_B25074_with_ann!Y270","v":17},{"$f":"[1]ACS_16_5YR_B25074_with_ann!Z270","v":0},{"$f":"[1]ACS_16_5YR_B25074_with_ann!AA270","v":11},{"$f":"[1]ACS_16_5YR_B25074_with_ann!AB270","v":0},{"$f":"[1]ACS_16_5YR_B25074_with_ann!AC270","v":11},{"$f":"[1]ACS_16_5YR_B25074_with_ann!AD270","v":0},{"$f":"[1]ACS_16_5YR_B25074_with_ann!AE270","v":11},{"$f":"[1]ACS_16_5YR_B25074_with_ann!AF270","v":0},{"$f":"[1]ACS_16_5YR_B25074_with_ann!AG270","v":11},{"$f":"[1]ACS_16_5YR_B25074_with_ann!AH270","v":0},{"$f":"[1]ACS_16_5YR_B25074_with_ann!AI270","v":11},{"$f":"[1]ACS_16_5YR_B25074_with_ann!AJ271","v":0},{"$f":"[1]ACS_16_5YR_B25074_with_ann!AK271","v":11},{"$f":"[1]ACS_16_5YR_B25074_with_ann!AL271","v":0},{"$f":"[1]ACS_16_5YR_B25074_with_ann!AM271","v":11},{"$f":"[1]ACS_16_5YR_B25074_with_ann!AN271","v":0},{"$f":"[1]ACS_16_5YR_B25074_with_ann!AO271","v":11},{"$f":"[1]ACS_16_5YR_B25074_with_ann!AP271","v":11},{"$f":"[1]ACS_16_5YR_B25074_with_ann!AQ271","v":14},{"$f":"[1]ACS_16_5YR_B25074_with_ann!AR271","v":0},{"$f":"[1]ACS_16_5YR_B25074_with_ann!AS271","v":11},{"$f":"[1]ACS_16_5YR_B25074_with_ann!AT271","v":0},{"$f":"[1]ACS_16_5YR_B25074_with_ann!AU271","v":11},{"$f":"[1]ACS_16_5YR_B25074_with_ann!AV271","v":0},{"$f":"[1]ACS_16_5YR_B25074_with_ann!AW271","v":11},{"$f":"[1]ACS_16_5YR_B25074_with_ann!AX271","v":0},{"$f":"[1]ACS_16_5YR_B25074_with_ann!AY271","v":11},{"$f":"[1]ACS_16_5YR_B25074_with_ann!AZ271","v":0},{"$f":"[1]ACS_16_5YR_B25074_with_ann!BA271","v":11},{"$f":"[1]ACS_16_5YR_B25074_with_ann!BB271","v":3},{"$f":"[1]ACS_16_5YR_B25074_with_ann!BC271","v":4},{"$f":"[1]ACS_16_5YR_B25074_with_ann!BD271","v":8},{"$f":"[1]ACS_16_5YR_B25074_with_ann!BE271","v":13},{"$f":"[1]ACS_16_5YR_B25074_with_ann!BF271","v":0},{"$f":"[1]ACS_16_5YR_B25074_with_ann!BG271","v":11},{"$f":"[1]ACS_16_5YR_B25074_with_ann!BH271","v":11},{"$f":"[1]ACS_16_5YR_B25074_with_ann!BI271","v":9},{"$f":"[1]ACS_16_5YR_B25074_with_ann!BJ271","v":0},{"$f":"[1]ACS_16_5YR_B25074_with_ann!BK271","v":11},{"$f":"[1]ACS_16_5YR_B25074_with_ann!BL271","v":0},{"$f":"[1]ACS_16_5YR_B25074_with_ann!BM271","v":11},{"$f":"[1]ACS_16_5YR_B25074_with_ann!BN271","v":4},{"$f":"[1]ACS_16_5YR_B25074_with_ann!BO271","v":6},{"$f":"[1]ACS_16_5YR_B25074_with_ann!BP271","v":0},{"$f":"[1]ACS_16_5YR_B25074_with_ann!BQ271","v":11},{"$f":"[1]ACS_16_5YR_B25074_with_ann!BR271","v":0},{"$f":"[1]ACS_16_5YR_B25074_with_ann!BS271","v":11},{"$f":"[1]ACS_16_5YR_B25074_with_ann!BT271","v":4},{"$f":"[1]ACS_16_5YR_B25074_with_ann!BU271","v":5},{"$f":"[1]ACS_16_5YR_B25074_with_ann!BV271","v":0},{"$f":"[1]ACS_16_5YR_B25074_with_ann!BW271","v":11},{"$f":"[1]ACS_16_5YR_B25074_with_ann!BX271","v":3},{"$f":"[1]ACS_16_5YR_B25074_with_ann!BY271","v":4},{"$f":"[1]ACS_16_5YR_B25074_with_ann!BZ271","v":8},{"$f":"[1]ACS_16_5YR_B25074_with_ann!CA271","v":9},{"$f":"[1]ACS_16_5YR_B25074_with_ann!CB272","v":0},{"$f":"[1]ACS_16_5YR_B25074_with_ann!CC272","v":11},{"$f":"[1]ACS_16_5YR_B25074_with_ann!CD272","v":13},{"$f":"[1]ACS_16_5YR_B25074_with_ann!CE272","v":15},{"$f":"[1]ACS_16_5YR_B25074_with_ann!CF272","v":0},{"$f":"[1]ACS_16_5YR_B25074_with_ann!CG272","v":11},{"$f":"[1]ACS_16_5YR_B25074_with_ann!CH272","v":0},{"$f":"[1]ACS_16_5YR_B25074_with_ann!CI272","v":11},{"$f":"[1]ACS_16_5YR_B25074_with_ann!CJ272","v":0},{"$f":"[1]ACS_16_5YR_B25074_with_ann!CK272","v":11},{"$f":"[1]ACS_16_5YR_B25074_with_ann!CL272","v":0},{"$f":"[1]ACS_16_5YR_B25074_with_ann!CM272","v":11},{"$f":"[1]ACS_16_5YR_B25074_with_ann!CN272","v":0},{"$f":"[1]ACS_16_5YR_B25074_with_ann!CO272","v":11},{"$f":"[1]ACS_16_5YR_B25074_with_ann!CP272","v":3},{"$f":"[1]ACS_16_5YR_B25074_with_ann!CQ272","v":4},{"$f":"[1]ACS_16_5YR_B25074_with_ann!CR272","v":0},{"$f":"[1]ACS_16_5YR_B25074_with_ann!CS272","v":11},{"$f":"[1]ACS_16_5YR_B25074_with_ann!CT272","v":0},{"$f":"[1]ACS_16_5YR_B25074_with_ann!CU272","v":11},{"$f":"[1]ACS_16_5YR_B25074_with_ann!CV272","v":0},{"$f":"[1]ACS_16_5YR_B25074_with_ann!CW272","v":11},{"$f":"[1]ACS_16_5YR_B25074_with_ann!CX272","v":0},{"$f":"[1]ACS_16_5YR_B25074_with_ann!CY272","v":11},{"$f":"[1]ACS_16_5YR_B25074_with_ann!CZ272","v":0},{"$f":"[1]ACS_16_5YR_B25074_with_ann!DA272","v":11},{"$f":"[1]ACS_16_5YR_B25074_with_ann!DB272","v":0},{"$f":"[1]ACS_16_5YR_B25074_with_ann!DC272","v":11},{"$f":"[1]ACS_16_5YR_B25074_with_ann!DD272","v":0},{"$f":"[1]ACS_16_5YR_B25074_with_ann!DE272","v":11},{"$f":"[1]ACS_16_5YR_B25074_with_ann!DF272","v":0},{"$f":"[1]ACS_16_5YR_B25074_with_ann!DG272","v":11},{"$f":"[1]ACS_16_5YR_B25074_with_ann!DH272","v":0},{"$f":"[1]ACS_16_5YR_B25074_with_ann!DI272","v":11},{"$f":"[1]ACS_16_5YR_B25074_with_ann!DJ272","v":6},{"$f":"[1]ACS_16_5YR_B25074_with_ann!DK272","v":14},{"$f":"[1]ACS_16_5YR_B25074_with_ann!DL272","v":6},{"$f":"[1]ACS_16_5YR_B25074_with_ann!DM272","v":14},{"$f":"[1]ACS_16_5YR_B25074_with_ann!DN272","v":0},{"$f":"[1]ACS_16_5YR_B25074_with_ann!DO272","v":11},{"$f":"[1]ACS_16_5YR_B25074_with_ann!DP272","v":0},{"$f":"[1]ACS_16_5YR_B25074_with_ann!DQ272","v":11},{"$f":"[1]ACS_16_5YR_B25074_with_ann!DR272","v":0},{"$f":"[1]ACS_16_5YR_B25074_with_ann!DS272","v":11},{"$f":"[1]ACS_16_5YR_B25074_with_ann!DT272","v":0},{"$f":"[1]ACS_16_5YR_B25074_with_ann!DU272","v":11},{"$f":"[1]ACS_16_5YR_B25074_with_ann!DV272","v":0},{"$f":"[1]ACS_16_5YR_B25074_with_ann!DW272","v":11},{"$f":"[1]ACS_16_5YR_B25074_with_ann!DX272","v":0},{"$f":"[1]ACS_16_5YR_B25074_with_ann!DY272","v":11},{"$f":"[1]ACS_16_5YR_B25074_with_ann!DZ272","v":0},{"$f":"[1]ACS_16_5YR_B25074_with_ann!EA272","v":11},null,"Unity"]
["0600000US3301977940",3301977940,"060","Unity",{"$f":"[1]ACS_16_5YR_B25070_with_ann!D271","v":35},{"$f":"[1]ACS_16_5YR_B25070_with_ann!E271","v":20},{"$f":"[1]ACS_16_5YR_B25070_with_ann!F271","v":0},{"$f":"[1]ACS_16_5YR_B25070_with_ann!G271","v":11},{"$f":"[1]ACS_16_5YR_B25070_with_ann!H271","v":0},{"$f":"[1]ACS_16_5YR_B25070_with_ann!I271","v":11},{"$f":"[1]ACS_16_5YR_B25070_with_ann!J271","v":0},{"$f":"[1]ACS_16_5YR_B25070_with_ann!K271","v":11},{"$f":"[1]ACS_16_5YR_B25070_with_ann!L271","v":3},{"$f":"[1]ACS_16_5YR_B25070_with_ann!M271","v":4},{"$f":"[1]ACS_16_5YR_B25070_with_ann!N271","v":9},{"$f":"[1]ACS_16_5YR_B25070_with_ann!O271","v":10},{"$f":"[1]ACS_16_5YR_B25070_with_ann!P271","v":0},{"$f":"[1]ACS_16_5YR_B25070_with_ann!Q271","v":11},{"$f":"[1]ACS_16_5YR_B25070_with_ann!R271","v":0},{"$f":"[1]ACS_16_5YR_B25070_with_ann!S271","v":11},{"$f":"[1]ACS_16_5YR_B25070_with_ann!T271","v":7},{"$f":"[1]ACS_16_5YR_B25070_with_ann!U271","v":6},{"$f":"[1]ACS_16_5YR_B25070_with_ann!V271","v":8},{"$f":"[1]ACS_16_5YR_B25070_with_ann!W271","v":13},{"$f":"[1]ACS_16_5YR_B25070_with_ann!X271","v":8},{"$f":"[1]ACS_16_5YR_B25070_with_ann!Y271","v":9},{"$f":"[1]ACS_16_5YR_B25074_with_ann!D271","v":35},{"$f":"[1]ACS_16_5YR_B25074_with_ann!E271","v":20},{"$f":"[1]ACS_16_5YR_B25074_with_ann!F271","v":0},{"$f":"[1]ACS_16_5YR_B25074_with_ann!G271","v":11},{"$f":"[1]ACS_16_5YR_B25074_with_ann!H271","v":0},{"$f":"[1]ACS_16_5YR_B25074_with_ann!I271","v":11},{"$f":"[1]ACS_16_5YR_B25074_with_ann!J271","v":0},{"$f":"[1]ACS_16_5YR_B25074_with_ann!K271","v":11},{"$f":"[1]ACS_16_5YR_B25074_with_ann!L271","v":0},{"$f":"[1]ACS_16_5YR_B25074_with_ann!M271","v":11},{"$f":"[1]ACS_16_5YR_B25074_with_ann!N271","v":0},{"$f":"[1]ACS_16_5YR_B25074_with_ann!O271","v":11},{"$f":"[1]ACS_16_5YR_B25074_with_ann!P271","v":0},{"$f":"[1]ACS_16_5YR_B25074_with_ann!Q271","v":11},{"$f":"[1]ACS_16_5YR_B25074_with_ann!R271","v":0},{"$f":"[1]ACS_16_5YR_B25074_with_ann!S271","v":11},{"$f":"[1]ACS_16_5YR_B25074_with_ann!T271","v":0},{"$f":"[1]ACS_16_5YR_B25074_with_ann!U271","v":11},{"$f":"[1]ACS_16_5YR_B25074_with_ann!V271","v":0},{"$f":"[1]ACS_16_5YR_B25074_with_ann!W271","v":11},{"$f":"[1]ACS_16_5YR_B25074_with_ann!X271","v":0},{"$f":"[1]ACS_16_5YR_B25074_with_ann!Y271","v":11},{"$f":"[1]ACS_16_5YR_B25074_with_ann!Z271","v":0},{"$f":"[1]ACS_16_5YR_B25074_with_ann!AA271","v":11},{"$f":"[1]ACS_16_5YR_B25074_with_ann!AB271","v":0},{"$f":"[1]ACS_16_5YR_B25074_with_ann!AC271","v":11},{"$f":"[1]ACS_16_5YR_B25074_with_ann!AD271","v":0},{"$f":"[1]ACS_16_5YR_B25074_with_ann!AE271","v":11},{"$f":"[1]ACS_16_5YR_B25074_with_ann!AF271","v":0},{"$f":"[1]ACS_16_5YR_B25074_with_ann!AG271","v":11},{"$f":"[1]ACS_16_5YR_B25074_with_ann!AH271","v":0},{"$f":"[1]ACS_16_5YR_B25074_with_ann!AI271","v":11},{"$f":"[1]ACS_16_5YR_B25074_with_ann!AJ272","v":0},{"$f":"[1]ACS_16_5YR_B25074_with_ann!AK272","v":11},{"$f":"[1]ACS_16_5YR_B25074_with_ann!AL272","v":10},{"$f":"[1]ACS_16_5YR_B25074_with_ann!AM272","v":16},{"$f":"[1]ACS_16_5YR_B25074_with_ann!AN272","v":0},{"$f":"[1]ACS_16_5YR_B25074_with_ann!AO272","v":11},{"$f":"[1]ACS_16_5YR_B25074_with_ann!AP272","v":6},{"$f":"[1]ACS_16_5YR_B25074_with_ann!AQ272","v":6},{"$f":"[1]ACS_16_5YR_B25074_with_ann!AR272","v":0},{"$f":"[1]ACS_16_5YR_B25074_with_ann!AS272","v":11},{"$f":"[1]ACS_16_5YR_B25074_with_ann!AT272","v":0},{"$f":"[1]ACS_16_5YR_B25074_with_ann!AU272","v":11},{"$f":"[1]ACS_16_5YR_B25074_with_ann!AV272","v":0},{"$f":"[1]ACS_16_5YR_B25074_with_ann!AW272","v":11},{"$f":"[1]ACS_16_5YR_B25074_with_ann!AX272","v":0},{"$f":"[1]ACS_16_5YR_B25074_with_ann!AY272","v":11},{"$f":"[1]ACS_16_5YR_B25074_with_ann!AZ272","v":0},{"$f":"[1]ACS_16_5YR_B25074_with_ann!BA272","v":11},{"$f":"[1]ACS_16_5YR_B25074_with_ann!BB272","v":0},{"$f":"[1]ACS_16_5YR_B25074_with_ann!BC272","v":11},{"$f":"[1]ACS_16_5YR_B25074_with_ann!BD272","v":0},{"$f":"[1]ACS_16_5YR_B25074_with_ann!BE272","v":11},{"$f":"[1]ACS_16_5YR_B25074_with_ann!BF272","v":6},{"$f":"[1]ACS_16_5YR_B25074_with_ann!BG272","v":6},{"$f":"[1]ACS_16_5YR_B25074_with_ann!BH272","v":0},{"$f":"[1]ACS_16_5YR_B25074_with_ann!BI272","v":11},{"$f":"[1]ACS_16_5YR_B25074_with_ann!BJ272","v":0},{"$f":"[1]ACS_16_5YR_B25074_with_ann!BK272","v":11},{"$f":"[1]ACS_16_5YR_B25074_with_ann!BL272","v":0},{"$f":"[1]ACS_16_5YR_B25074_with_ann!BM272","v":11},{"$f":"[1]ACS_16_5YR_B25074_with_ann!BN272","v":0},{"$f":"[1]ACS_16_5YR_B25074_with_ann!BO272","v":11},{"$f":"[1]ACS_16_5YR_B25074_with_ann!BP272","v":0},{"$f":"[1]ACS_16_5YR_B25074_with_ann!BQ272","v":11},{"$f":"[1]ACS_16_5YR_B25074_with_ann!BR272","v":0},{"$f":"[1]ACS_16_5YR_B25074_with_ann!BS272","v":11},{"$f":"[1]ACS_16_5YR_B25074_with_ann!BT272","v":0},{"$f":"[1]ACS_16_5YR_B25074_with_ann!BU272","v":11},{"$f":"[1]ACS_16_5YR_B25074_with_ann!BV272","v":0},{"$f":"[1]ACS_16_5YR_B25074_with_ann!BW272","v":11},{"$f":"[1]ACS_16_5YR_B25074_with_ann!BX272","v":0},{"$f":"[1]ACS_16_5YR_B25074_with_ann!BY272","v":11},{"$f":"[1]ACS_16_5YR_B25074_with_ann!BZ272","v":16},{"$f":"[1]ACS_16_5YR_B25074_with_ann!CA272","v":16},{"$f":"[1]ACS_16_5YR_B25074_with_ann!CB273","v":0},{"$f":"[1]ACS_16_5YR_B25074_with_ann!CC273","v":0},{"$f":"[1]ACS_16_5YR_B25074_with_ann!CD273","v":0},{"$f":"[1]ACS_16_5YR_B25074_with_ann!CE273","v":0},{"$f":"[1]ACS_16_5YR_B25074_with_ann!CF273","v":0},{"$f":"[1]ACS_16_5YR_B25074_with_ann!CG273","v":0},{"$f":"[1]ACS_16_5YR_B25074_with_ann!CH273","v":0},{"$f":"[1]ACS_16_5YR_B25074_with_ann!CI273","v":0},{"$f":"[1]ACS_16_5YR_B25074_with_ann!CJ273","v":0},{"$f":"[1]ACS_16_5YR_B25074_with_ann!CK273","v":0},{"$f":"[1]ACS_16_5YR_B25074_with_ann!CL273","v":0},{"$f":"[1]ACS_16_5YR_B25074_with_ann!CM273","v":0},{"$f":"[1]ACS_16_5YR_B25074_with_ann!CN273","v":0},{"$f":"[1]ACS_16_5YR_B25074_with_ann!CO273","v":0},{"$f":"[1]ACS_16_5YR_B25074_with_ann!CP273","v":0},{"$f":"[1]ACS_16_5YR_B25074_with_ann!CQ273","v":0},{"$f":"[1]ACS_16_5YR_B25074_with_ann!CR273","v":0},{"$f":"[1]ACS_16_5YR_B25074_with_ann!CS273","v":0},{"$f":"[1]ACS_16_5YR_B25074_with_ann!CT273","v":0},{"$f":"[1]ACS_16_5YR_B25074_with_ann!CU273","v":0},{"$f":"[1]ACS_16_5YR_B25074_with_ann!CV273","v":0},{"$f":"[1]ACS_16_5YR_B25074_with_ann!CW273","v":0},{"$f":"[1]ACS_16_5YR_B25074_with_ann!CX273","v":0},{"$f":"[1]ACS_16_5YR_B25074_with_ann!CY273","v":0},{"$f":"[1]ACS_16_5YR_B25074_with_ann!CZ273","v":0},{"$f":"[1]ACS_16_5YR_B25074_with_ann!DA273","v":0},{"$f":"[1]ACS_16_5YR_B25074_with_ann!DB273","v":0},{"$f":"[1]ACS_16_5YR_B25074_with_ann!DC273","v":0},{"$f":"[1]ACS_16_5YR_B25074_with_ann!DD273","v":0},{"$f":"[1]ACS_16_5YR_B25074_with_ann!DE273","v":0},{"$f":"[1]ACS_16_5YR_B25074_with_ann!DF273","v":0},{"$f":"[1]ACS_16_5YR_B25074_with_ann!DG273","v":0},{"$f":"[1]ACS_16_5YR_B25074_with_ann!DH273","v":0},{"$f":"[1]ACS_16_5YR_B25074_with_ann!DI273","v":0},{"$f":"[1]ACS_16_5YR_B25074_with_ann!DJ273","v":0},{"$f":"[1]ACS_16_5YR_B25074_with_ann!DK273","v":0},{"$f":"[1]ACS_16_5YR_B25074_with_ann!DL273","v":0},{"$f":"[1]ACS_16_5YR_B25074_with_ann!DM273","v":0},{"$f":"[1]ACS_16_5YR_B25074_with_ann!DN273","v":0},{"$f":"[1]ACS_16_5YR_B25074_with_ann!DO273","v":0},{"$f":"[1]ACS_16_5YR_B25074_with_ann!DP273","v":0},{"$f":"[1]ACS_16_5YR_B25074_with_ann!DQ273","v":0},{"$f":"[1]ACS_16_5YR_B25074_with_ann!DR273","v":0},{"$f":"[1]ACS_16_5YR_B25074_with_ann!DS273","v":0},{"$f":"[1]ACS_16_5YR_B25074_with_ann!DT273","v":0},{"$f":"[1]ACS_16_5YR_B25074_with_ann!DU273","v":0},{"$f":"[1]ACS_16_5YR_B25074_with_ann!DV273","v":0},{"$f":"[1]ACS_16_5YR_B25074_with_ann!DW273","v":0},{"$f":"[1]ACS_16_5YR_B25074_with_ann!DX273","v":0},{"$f":"[1]ACS_16_5YR_B25074_with_ann!DY273","v":0},{"$f":"[1]ACS_16_5YR_B25074_with_ann!DZ273","v":0},{"$f":"[1]ACS_16_5YR_B25074_with_ann!EA273","v":0},null,"Washington"]
["0600000US3301978980",3301978980,"060","Washington",{"$f":"[1]ACS_16_5YR_B25070_with_ann!D272","v":38},{"$f":"[1]ACS_16_5YR_B25070_with_ann!E272","v":28},{"$f":"[1]ACS_16_5YR_B25070_with_ann!F272","v":6},{"$f":"[1]ACS_16_5YR_B25070_with_ann!G272","v":14},{"$f":"[1]ACS_16_5YR_B25070_with_ann!H272","v":0},{"$f":"[1]ACS_16_5YR_B25070_with_ann!I272","v":11},{"$f":"[1]ACS_16_5YR_B25070_with_ann!J272","v":0},{"$f":"[1]ACS_16_5YR_B25070_with_ann!K272","v":11},{"$f":"[1]ACS_16_5YR_B25070_with_ann!L272","v":13},{"$f":"[1]ACS_16_5YR_B25070_with_ann!M272","v":15},{"$f":"[1]ACS_16_5YR_B25070_with_ann!N272","v":0},{"$f":"[1]ACS_16_5YR_B25070_with_ann!O272","v":11},{"$f":"[1]ACS_16_5YR_B25070_with_ann!P272","v":0},{"$f":"[1]ACS_16_5YR_B25070_with_ann!Q272","v":11},{"$f":"[1]ACS_16_5YR_B25070_with_ann!R272","v":0},{"$f":"[1]ACS_16_5YR_B25070_with_ann!S272","v":11},{"$f":"[1]ACS_16_5YR_B25070_with_ann!T272","v":0},{"$f":"[1]ACS_16_5YR_B25070_with_ann!U272","v":11},{"$f":"[1]ACS_16_5YR_B25070_with_ann!V272","v":10},{"$f":"[1]ACS_16_5YR_B25070_with_ann!W272","v":16},{"$f":"[1]ACS_16_5YR_B25070_with_ann!X272","v":9},{"$f":"[1]ACS_16_5YR_B25070_with_ann!Y272","v":7},{"$f":"[1]ACS_16_5YR_B25074_with_ann!D272","v":38},{"$f":"[1]ACS_16_5YR_B25074_with_ann!E272","v":28},{"$f":"[1]ACS_16_5YR_B25074_with_ann!F272","v":0},{"$f":"[1]ACS_16_5YR_B25074_with_ann!G272","v":11},{"$f":"[1]ACS_16_5YR_B25074_with_ann!H272","v":0},{"$f":"[1]ACS_16_5YR_B25074_with_ann!I272","v":11},{"$f":"[1]ACS_16_5YR_B25074_with_ann!J272","v":0},{"$f":"[1]ACS_16_5YR_B25074_with_ann!K272","v":11},{"$f":"[1]ACS_16_5YR_B25074_with_ann!L272","v":0},{"$f":"[1]ACS_16_5YR_B25074_with_ann!M272","v":11},{"$f":"[1]ACS_16_5YR_B25074_with_ann!N272","v":0},{"$f":"[1]ACS_16_5YR_B25074_with_ann!O272","v":11},{"$f":"[1]ACS_16_5YR_B25074_with_ann!P272","v":0},{"$f":"[1]ACS_16_5YR_B25074_with_ann!Q272","v":11},{"$f":"[1]ACS_16_5YR_B25074_with_ann!R272","v":0},{"$f":"[1]ACS_16_5YR_B25074_with_ann!S272","v":11},{"$f":"[1]ACS_16_5YR_B25074_with_ann!T272","v":0},{"$f":"[1]ACS_16_5YR_B25074_with_ann!U272","v":11},{"$f":"[1]ACS_16_5YR_B25074_with_ann!V272","v":0},{"$f":"[1]ACS_16_5YR_B25074_with_ann!W272","v":11},{"$f":"[1]ACS_16_5YR_B25074_with_ann!X272","v":10},{"$f":"[1]ACS_16_5YR_B25074_with_ann!Y272","v":16},{"$f":"[1]ACS_16_5YR_B25074_with_ann!Z272","v":0},{"$f":"[1]ACS_16_5YR_B25074_with_ann!AA272","v":11},{"$f":"[1]ACS_16_5YR_B25074_with_ann!AB272","v":0},{"$f":"[1]ACS_16_5YR_B25074_with_ann!AC272","v":11},{"$f":"[1]ACS_16_5YR_B25074_with_ann!AD272","v":0},{"$f":"[1]ACS_16_5YR_B25074_with_ann!AE272","v":11},{"$f":"[1]ACS_16_5YR_B25074_with_ann!AF272","v":0},{"$f":"[1]ACS_16_5YR_B25074_with_ann!AG272","v":11},{"$f":"[1]ACS_16_5YR_B25074_with_ann!AH272","v":0},{"$f":"[1]ACS_16_5YR_B25074_with_ann!AI272","v":11},{"$f":"[1]ACS_16_5YR_B25074_with_ann!AJ273","v":0},{"$f":"[1]ACS_16_5YR_B25074_with_ann!AK273","v":0},{"$f":"[1]ACS_16_5YR_B25074_with_ann!AL273","v":0},{"$f":"[1]ACS_16_5YR_B25074_with_ann!AM273","v":0},{"$f":"[1]ACS_16_5YR_B25074_with_ann!AN273","v":0},{"$f":"[1]ACS_16_5YR_B25074_with_ann!AO273","v":0},{"$f":"[1]ACS_16_5YR_B25074_with_ann!AP273","v":0},{"$f":"[1]ACS_16_5YR_B25074_with_ann!AQ273","v":0},{"$f":"[1]ACS_16_5YR_B25074_with_ann!AR273","v":0},{"$f":"[1]ACS_16_5YR_B25074_with_ann!AS273","v":0},{"$f":"[1]ACS_16_5YR_B25074_with_ann!AT273","v":0},{"$f":"[1]ACS_16_5YR_B25074_with_ann!AU273","v":0},{"$f":"[1]ACS_16_5YR_B25074_with_ann!AV273","v":0},{"$f":"[1]ACS_16_5YR_B25074_with_ann!AW273","v":0},{"$f":"[1]ACS_16_5YR_B25074_with_ann!AX273","v":0},{"$f":"[1]ACS_16_5YR_B25074_with_ann!AY273","v":0},{"$f":"[1]ACS_16_5YR_B25074_with_ann!AZ273","v":0},{"$f":"[1]ACS_16_5YR_B25074_with_ann!BA273","v":0},{"$f":"[1]ACS_16_5YR_B25074_with_ann!BB273","v":0},{"$f":"[1]ACS_16_5YR_B25074_with_ann!BC273","v":0},{"$f":"[1]ACS_16_5YR_B25074_with_ann!BD273","v":0},{"$f":"[1]ACS_16_5YR_B25074_with_ann!BE273","v":0},{"$f":"[1]ACS_16_5YR_B25074_with_ann!BF273","v":0},{"$f":"[1]ACS_16_5YR_B25074_with_ann!BG273","v":0},{"$f":"[1]ACS_16_5YR_B25074_with_ann!BH273","v":0},{"$f":"[1]ACS_16_5YR_B25074_with_ann!BI273","v":0},{"$f":"[1]ACS_16_5YR_B25074_with_ann!BJ273","v":0},{"$f":"[1]ACS_16_5YR_B25074_with_ann!BK273","v":0},{"$f":"[1]ACS_16_5YR_B25074_with_ann!BL273","v":0},{"$f":"[1]ACS_16_5YR_B25074_with_ann!BM273","v":0},{"$f":"[1]ACS_16_5YR_B25074_with_ann!BN273","v":0},{"$f":"[1]ACS_16_5YR_B25074_with_ann!BO273","v":0},{"$f":"[1]ACS_16_5YR_B25074_with_ann!BP273","v":0},{"$f":"[1]ACS_16_5YR_B25074_with_ann!BQ273","v":0},{"$f":"[1]ACS_16_5YR_B25074_with_ann!BR273","v":0},{"$f":"[1]ACS_16_5YR_B25074_with_ann!BS273","v":0},{"$f":"[1]ACS_16_5YR_B25074_with_ann!BT273","v":0},{"$f":"[1]ACS_16_5YR_B25074_with_ann!BU273","v":0},{"$f":"[1]ACS_16_5YR_B25074_with_ann!BV273","v":0},{"$f":"[1]ACS_16_5YR_B25074_with_ann!BW273","v":0},{"$f":"[1]ACS_16_5YR_B25074_with_ann!BX273","v":0},{"$f":"[1]ACS_16_5YR_B25074_with_ann!BY273","v":0},{"$f":"[1]ACS_16_5YR_B25074_with_ann!BZ273","v":0},{"$f":"[1]ACS_16_5YR_B25074_with_ann!CA273","v":0},{"$f":"[1]ACS_16_5YR_B25074_with_ann!CB274","v":0},{"$f":"[1]ACS_16_5YR_B25074_with_ann!CC274","v":0},{"$f":"[1]ACS_16_5YR_B25074_with_ann!CD274","v":0},{"$f":"[1]ACS_16_5YR_B25074_with_ann!CE274","v":0},{"$f":"[1]ACS_16_5YR_B25074_with_ann!CF274","v":0},{"$f":"[1]ACS_16_5YR_B25074_with_ann!CG274","v":0},{"$f":"[1]ACS_16_5YR_B25074_with_ann!CH274","v":0},{"$f":"[1]ACS_16_5YR_B25074_with_ann!CI274","v":0},{"$f":"[1]ACS_16_5YR_B25074_with_ann!CJ274","v":0},{"$f":"[1]ACS_16_5YR_B25074_with_ann!CK274","v":0},{"$f":"[1]ACS_16_5YR_B25074_with_ann!CL274","v":0},{"$f":"[1]ACS_16_5YR_B25074_with_ann!CM274","v":0},{"$f":"[1]ACS_16_5YR_B25074_with_ann!CN274","v":0},{"$f":"[1]ACS_16_5YR_B25074_with_ann!CO274","v":0},{"$f":"[1]ACS_16_5YR_B25074_with_ann!CP274","v":0},{"$f":"[1]ACS_16_5YR_B25074_with_ann!CQ274","v":0},{"$f":"[1]ACS_16_5YR_B25074_with_ann!CR274","v":0},{"$f":"[1]ACS_16_5YR_B25074_with_ann!CS274","v":0},{"$f":"[1]ACS_16_5YR_B25074_with_ann!CT274","v":0},{"$f":"[1]ACS_16_5YR_B25074_with_ann!CU274","v":0},{"$f":"[1]ACS_16_5YR_B25074_with_ann!CV274","v":0},{"$f":"[1]ACS_16_5YR_B25074_with_ann!CW274","v":0},{"$f":"[1]ACS_16_5YR_B25074_with_ann!CX274","v":0},{"$f":"[1]ACS_16_5YR_B25074_with_ann!CY274","v":0},{"$f":"[1]ACS_16_5YR_B25074_with_ann!CZ274","v":0},{"$f":"[1]ACS_16_5YR_B25074_with_ann!DA274","v":0},{"$f":"[1]ACS_16_5YR_B25074_with_ann!DB274","v":0},{"$f":"[1]ACS_16_5YR_B25074_with_ann!DC274","v":0},{"$f":"[1]ACS_16_5YR_B25074_with_ann!DD274","v":0},{"$f":"[1]ACS_16_5YR_B25074_with_ann!DE274","v":0},{"$f":"[1]ACS_16_5YR_B25074_with_ann!DF274","v":0},{"$f":"[1]ACS_16_5YR_B25074_with_ann!DG274","v":0},{"$f":"[1]ACS_16_5YR_B25074_with_ann!DH274","v":0},{"$f":"[1]ACS_16_5YR_B25074_with_ann!DI274","v":0},{"$f":"[1]ACS_16_5YR_B25074_with_ann!DJ274","v":0},{"$f":"[1]ACS_16_5YR_B25074_with_ann!DK274","v":0},{"$f":"[1]ACS_16_5YR_B25074_with_ann!DL274","v":0},{"$f":"[1]ACS_16_5YR_B25074_with_ann!DM274","v":0},{"$f":"[1]ACS_16_5YR_B25074_with_ann!DN274","v":0},{"$f":"[1]ACS_16_5YR_B25074_with_ann!DO274","v":0},{"$f":"[1]ACS_16_5YR_B25074_with_ann!DP274","v":0},{"$f":"[1]ACS_16_5YR_B25074_with_ann!DQ274","v":0},{"$f":"[1]ACS_16_5YR_B25074_with_ann!DR274","v":0},{"$f":"[1]ACS_16_5YR_B25074_with_ann!DS274","v":0},{"$f":"[1]ACS_16_5YR_B25074_with_ann!DT274","v":0},{"$f":"[1]ACS_16_5YR_B25074_with_ann!DU274","v":0},{"$f":"[1]ACS_16_5YR_B25074_with_ann!DV274","v":0},{"$f":"[1]ACS_16_5YR_B25074_with_ann!DW274","v":0},{"$f":"[1]ACS_16_5YR_B25074_with_ann!DX274","v":0},{"$f":"[1]ACS_16_5YR_B25074_with_ann!DY274","v":0},{"$f":"[1]ACS_16_5YR_B25074_with_ann!DZ274","v":0},{"$f":"[1]ACS_16_5YR_B25074_with_ann!EA274","v":0},null,"Washington"]
[]
[null,null,null,null,{"$f":"$D$3","v":"Acworth"},null,{"$f":"$D$4","v":"Charlestown"},null,{"$f":"$D$5","v":"Claremont"},null,{"$f":"$D$6","v":"Cornish"},null,{"$f":"$D$7","v":"Croydon"},null,{"$f":"$D$8","v":"Goshen"},null,{"$f":"$D$9","v":"Grantham"},null,{"$f":"$D$10","v":"Langdon"},null,{"$f":"$D$11","v":"Lempster"},null,{"$f":"$D$12","v":"Newport"},null,{"$f":"$D$13","v":"Plainfield"},null,{"$f":"$D$14","v":"Springfield"},null,{"$f":"$D$15","v":"Sunapee"},null,{"$f":"$D$16","v":"Unity"},null,{"$f":"$D$17","v":"Washington"}]
[null,null,null,null,"Estimate","Margin Of Error","Estimate","Margin Of Error","Estimate","Margin Of Error","Estimate","Margin Of Error","Estimate","Margin Of Error","Estimate","Margin Of Error","Estimate","Margin Of Error","Estimate","Margin Of Error","Estimate","Margin Of Error","Estimate","Margin Of Error","Estimate","Margin Of Error","Estimate","Margin Of Error","Estimate","Margin Of Error",null,"Estimate","Margin Of Error"]
["B25070",null,null,"Estimate Total:",30,16,502,134,2310,288,55,26,36,22,54,23,140,79,39,21,26,16,857,184,112,49,44,33,349,122,35,20,38,28]
[null,null,null,"Estimate Total: Less than 10.0 percent",0,11,63,61,65,42,5,7,0,11,0,11,62,64,5,8,0,11,13,21,0,11,16,27,0,11,0,11,6,14]
[null,null,null,"Estimate Total: 10.0 to 14.9 percent",3,5,103,92,110,72,3,4,0,11,4,6,46,67,0,11,4,5,102,57,0,11,0,11,15,23,0,11,0,11]
[null,null,null,"Estimate Total: 15.0 to 19.9 percent",0,11,47,62,319,134,3,5,12,14,10,10,15,23,7,11,3,4,64,48,28,30,8,12,27,32,0,11,0,11]
[null,null,null,"Estimate Total: 20.0 to 24.9 percent",7,7,14,23,322,125,14,18,0,11,0,11,0,11,6,9,11,14,122,99,0,11,0,11,39,35,3,4,13,15]
[null,null,null,"Estimate Total: 25.0 to 29.9 percent",6,10,57,50,293,114,3,5,9,12,7,13,0,11,6,10,3,4,11,18,11,11,0,11,16,19,9,10,0,11]
[null,null,null,"Estimate Total: 30.0 to 34.9 percent",2,3,15,25,244,113,0,11,0,11,8,12,0,11,2,3,0,11,93,84,22,28,0,11,109,86,0,11,0,11]
[null,null,null,"Estimate Total: 35.0 to 39.9 percent",2,3,26,41,159,90,0,11,0,11,0,11,17,24,0,11,0,11,117,93,19,30,0,11,0,11,0,11,0,11]
[null,null,null,"Estimate Total: 40.0 to 49.9 percent",0,11,0,16,227,102,4,6,3,4,0,11,0,11,4,3,3,5,51,71,12,12,5,9,24,23,7,6,0,11]
[null,null,null,"Estimate Total: 50.0 percent or more",2,3,85,70,467,173,20,12,5,6,9,10,0,11,6,10,0,11,212,120,16,18,0,11,83,78,8,13,10,16]
[null,null,null,"Estimate Total: Not computed",8,10,92,84,104,87,3,4,7,11,16,10,0,11,3,4,2,3,72,76,4,8,15,15,36,49,8,9,9,7]
[]
[]
["B25074",null,null,"Estimate Total:",30,16,502,134,2310,288,55,26,36,22,54,23,140,79,39,21,26,16,857,184,112,49,44,33,349,122,35,20,38,28]
[null,null,null,"Estimate  Less than $10,000:",6,10,61,66,216,116,3,5,5,10,17,15,0,11,6,10,0,11,97,66,4,8,8,13,64,72,0,11,0,11]
[null,null,null,"Estimate  Less than $10,000: - Less than 20.0 percent",0,11,0,16,7,11,0,11,0,11,0,11,0,11,0,11,0,11,15,23,0,11,0,11,0,11,0,11,0,11]
[null,null,null,"Estimate  Less than $10,000: - 20.0 to 24.9 percent",0,11,0,16,0,18,0,11,0,11,0,11,0,11,0,11,0,11,0,16,0,11,0,11,0,11,0,11,0,11]
[null,null,null,"Estimate  Less than $10,000: - 25.0 to 29.9 percent",0,11,0,16,15,24,0,11,0,11,0,11,0,11,0,11,0,11,0,16,0,11,0,11,0,11,0,11,0,11]
[null,null,null,"Estimate  Less than $10,000: - 30.0 to 34.9 percent",0,11,0,16,27,32,0,11,0,11,0,11,0,11,0,11,0,11,0,16,0,11,0,11,0,11,0,11,0,11]
[null,null,null,"Estimate  Less than $10,000: - 35.0 to 39.9 percent",0,11,0,16,0,18,0,11,0,11,0,11,0,11,0,11,0,11,0,16,0,11,0,11,0,11,0,11,0,11]
[null,null,null,"Estimate  Less than $10,000: - 40.0 to 49.9 percent",0,11,0,16,0,18,0,11,0,11,0,11,0,11,0,11,0,11,0,16,0,11,0,11,0,11,0,11,0,11]
[null,null,null,"Estimate  Less than $10,000: - 50.0 percent or more",0,11,0,16,71,53,3,5,0,11,9,10,0,11,6,10,0,11,71,60,0,11,0,11,33,52,0,11,0,11]
[null,null,null,"Estimate  Less than $10,000: - Not computed",6,10,61,66,96,86,0,11,5,10,8,10,0,11,0,11,0,11,11,19,4,8,8,13,31,48,0,11,0,11]
[null,null,null,"Estimate  $10,000 to $19,999,000:",0,11,87,70,373,101,13,9,3,4,0,11,0,11,0,11,0,11,237,133,0,11,0,11,11,17,0,11,10,16]
[null,null,null,"Estimate  $10,000 to $19,999,000: - Less than 20.0 percent",0,11,0,16,19,22,0,11,0,11,0,11,0,11,0,11,0,11,0,16,0,11,0,11,0,11,0,11,0,11]
[null,null,null,"Estimate  $10,000 to $19,999,000: - 20.0 to 24.9 percent",0,11,14,23,24,29,0,11,0,11,0,11,0,11,0,11,0,11,0,16,0,11,0,11,0,11,0,11,0,11]
[null,null,null,"Estimate  $10,000 to $19,999,000: - 25.0 to 29.9 percent",0,11,16,26,52,64,0,11,0,11,0,11,0,11,0,11,0,11,11,18,0,11,0,11,0,11,0,11,0,11]
[null,null,null,"Estimate  $10,000 to $19,999,000: - 30.0 to 34.9 percent",0,11,0,16,50,38,0,11,0,11,0,11,0,11,0,11,0,11,33,53,0,11,0,11,0,11,0,11,0,11]
[null,null,null,"Estimate  $10,000 to $19,999,000: - 35.0 to 39.9 percent",0,11,0,16,12,18,0,11,0,11,0,11,0,11,0,11,0,11,81,93,0,11,0,11,0,11,0,11,0,11]
[null,null,null,"Estimate  $10,000 to $19,999,000: - 40.0 to 49.9 percent",0,11,0,16,38,45,3,4,0,11,0,11,0,11,0,11,13,20,0,11,0,11,0,11,0,11,0,11,0,0]
[null,null,null,"Estimate  $10,000 to $19,999,000: - 50.0 percent or more",0,11,57,62,178,93,0,11,0,11,0,11,0,11,0,11,88,79,0,11,0,11,11,17,0,11,10,16,0,0]
[null,null,null,"Estimate  $10,000 to $19,999,000: - Not computed",0,11,0,16,0,18,0,11,0,11,0,11,0,11,0,11,11,17,0,11,0,11,0,11,0,11,0,11,0,0]
[null,null,null,"Estimate  $20,000 to $34,999,000:",2,3,77,62,627,199,5,6,4,4,0,11,2,3,2,3,189,99,21,19,0,11,88,73,11,14,6,6,0,0]
[null,null,null,"Estimate  $20,000 to $34,999,000: - Less than 20.0 percent",0,11,8,15,38,40,0,11,0,11,0,11,0,11,0,11,25,30,0,11,0,11,0,11,0,11,0,11,0,0]
[null,null,null,"Estimate  $20,000 to $34,999,000: - 20.0 to 24.9 percent",0,11,0,16,20,24,0,11,0,11,0,11,0,11,0,11,0,16,0,11,0,11,0,11,0,11,0,11,0,0]
[null,null,null,"Estimate  $20,000 to $34,999,000: - 25.0 to 29.9 percent",0,11,0,16,34,33,0,11,0,11,0,11,0,11,0,11,0,16,0,11,0,11,0,11,0,11,0,11,0,0]
[null,null,null,"Estimate  $20,000 to $34,999,000: - 30.0 to 34.9 percent",0,11,15,25,57,63,0,11,0,11,0,11,0,11,0,11,11,16,0,11,0,11,28,47,0,11,0,11,0,0]
[null,null,null,"Estimate  $20,000 to $34,999,000: - 35.0 to 39.9 percent",0,11,26,41,63,56,0,11,0,11,0,11,0,11,0,11,26,29,0,11,0,11,0,11,0,11,0,11,0,0]
[null,null,null,"Estimate  $20,000 to $34,999,000: - 40.0 to 49.9 percent",0,11,0,16,189,94,0,11,0,11,0,11,2,3,0,11,38,59,5,7,0,11,16,19,3,4,0,11,0,0]
[null,null,null,"Estimate  $20,000 to $34,999,000: - 50.0 percent or more",0,11,28,35,218,133,5,6,0,11,0,11,0,11,0,11,39,38,16,18,0,11,39,55,8,13,0,11,0,0]
[null,null,null,"Estimate  $20,000 to $34,999,000: - Not computed",2,3,0,16,8,12,0,11,4,4,0,11,0,11,2,3,50,64,0,11,0,11,5,8,0,11,6,6,0,0]
[null,null,null,"Estimate  $35,000 to $49,999,000:",6,5,41,42,435,157,0,11,10,12,0,11,10,10,12,8,50,40,18,15,5,9,66,67,11,9,0,11,0,0]
[null,null,null,"Estimate  $35,000 to $49,999,000: - Less than 20.0 percent",0,11,0,16,25,29,0,11,0,11,0,11,0,11,4,5,13,21,0,11,0,11,0,11,0,11,0,11,0,0]
[null,null,null,"Estimate  $35,000 to $49,999,000: - 20.0 to 24.9 percent",2,3,0,16,123,76,0,11,0,11,0,11,0,11,2,4,13,20,0,11,0,11,0,11,0,11,0,11,0,0]
[null,null,null,"Estimate  $35,000 to $49,999,000: - 25.0 to 29.9 percent",0,11,41,42,117,68,0,11,0,11,0,11,6,10,3,4,0,16,6,8,0,11,0,11,4,6,0,11,0,0]
[null,null,null,"Estimate  $35,000 to $49,999,000: - 30.0 to 34.9 percent",2,3,0,16,86,87,0,11,8,12,0,11,2,3,0,11,0,16,5,8,0,11,58,66,0,11,0,11,0,0]
[null,null,null,"Estimate  $35,000 to $49,999,000: - 35.0 to 39.9 percent",0,11,0,16,84,71,0,11,0,11,0,11,0,11,0,11,10,17,0,11,0,11,0,11,0,11,0,11,0,0]
[null,null,null,"Estimate  $35,000 to $49,999,000: - 40.0 to 49.9 percent",0,11,0,16,0,18,0,11,0,11,0,11,2,3,3,5,0,16,7,10,5,9,8,13,4,5,0,11,0,0]
[null,null,null,"Estimate  $35,000 to $49,999,000: - 50.0 percent or more",2,3,0,16,0,18,0,11,0,11,0,11,0,11,0,11,14,21,0,11,0,11,0,11,0,11,0,11,0,0]
[null,null,null,"Estimate  $35,000 to $49,999,000: - Not computed",0,11,0,16,0,18,0,11,2,3,0,11,0,11,0,11,0,16,0,11,0,11,0,11,3,4,0,11,0,0]
[null,null,null,"Estimate  $50,000 to $74,999,000:",8,10,45,52,311,115,15,15,15,15,40,35,13,14,12,14,158,116,41,38,7,8,84,59,8,9,16,16,0,0]
[null,null,null,"Estimate  $50,000 to $74,999,000: - Less than 20.0 percent",14,23,65,42,6,9,6,9,23,37,7,11,3,4,12,20,0,11,0,11,27,32,0,11,0,11,0,0,0,0]
[null,null,null,"Estimate  $50,000 to $74,999,000: - 20.0 to 24.9 percent",0,16,155,91,0,11,0,11,0,11,6,9,9,13,97,96,0,11,0,11,27,31,3,4,13,15,0,0,0,0]
[null,null,null,"Estimate  $50,000 to $74,999,000: - 25.0 to 29.9 percent",0,16,67,53,9,12,7,13,0,11,0,11,0,11,0,16,5,7,0,11,7,11,5,8,0,11,0,0,0,0]
[null,null,null,"Estimate  $50,000 to $74,999,000: - 30.0 to 34.9 percent",0,16,24,45,0,11,0,11,0,11,0,11,0,11,49,66,17,26,0,11,23,33,0,11,0,11,0,0,0,0]
[null,null,null,"Estimate  $50,000 to $74,999,000: - 35.0 to 39.9 percent",0,16,0,18,0,11,0,11,17,24,0,11,0,11,0,16,19,30,0,11,0,11,0,11,0,11,0,0,0,0]
[null,null,null,"Estimate  $50,000 to $74,999,000: - 40.0 to 49.9 percent",0,16,0,18,0,11,0,11,0,11,0,11,0,11,0,16,0,11,0,11,0,11,0,11,0,11,0,0,0,0]
[null,null,null,"Estimate  $50,000 to $74,999,000: - 50.0 percent or more",0,16,0,18,0,11,0,11,0,11,0,11,0,11,0,16,0,11,0,11,0,11,0,11,0,11,0,0,0,0]
[null,null,null,"Estimate  $50,000 to $74,999,000: - Not computed",31,47,0,18,0,11,2,4,0,11,0,11,0,11,0,16,0,11,7,8,0,11,0,11,3,4,0,0,0,0]
[null,null,null,"Estimate  $75,000 to $99,999,000:",109,97,253,133,2,4,8,7,15,23,0,11,0,11,74,58,0,11,24,29,0,11,0,11,0,11,0,0,0,0]
[null,null,null,"Estimate  $75,000 to $99,999,000: - Less than 20.0 percent",109,97,245,133,0,11,8,7,15,23,0,11,0,11,62,54,0,11,24,29,0,11,0,11,0,11,0,0,0,0]
[null,null,null,"Estimate  $75,000 to $99,999,000: - 20.0 to 24.9 percent",0,16,0,18,0,11,0,11,0,11,0,11,0,11,12,21,0,11,0,11,0,11,0,11,0,11,0,0,0,0]
[null,null,null,"Estimate  $75,000 to $99,999,000: - 25.0 to 29.9 percent",0,16,8,12,0,11,0,11,0,11,0,11,0,11,0,16,0,11,0,11,0,11,0,11,0,11,0,0,0,0]
[null,null,null,"Estimate  $75,000 to $99,999,000: - 30.0 to 34.9 percent",0,16,0,18,0,11,0,11,0,11,0,11,0,11,0,16,0,11,0,11,0,11,0,11,0,11,0,0,0,0]
[null,null,null,"Estimate  $75,000 to $99,999,000: - 35.0 to 39.9 percent",0,16,0,18,0,11,0,11,0,11,0,11,0,11,0,16,0,11,0,11,0,11,0,11,0,11,0,0,0,0]
[null,null,null,"Estimate  $75,000 to $99,999,000: - 40.0 to 49.9 percent",0,16,0,18,0,11,0,11,0,11,0,11,0,11,0,16,0,11,0,11,0,11,0,11,0,11,0,0,0,0]
[null,null,null,"Estimate  $75,000 to $99,999,000: - 50.0 percent or more",0,16,0,18,0,11,0,11,0,11,0,11,0,11,0,16,0,11,0,11,0,11,0,11,0,11,0,0,0,0]
[null,null,null,"Estimate  $75,000 to $99,999,000: - Not computed",0,16,0,18,2,4,0,11,0,11,0,11,0,11,0,16,0,11,0,11,0,11,0,11,0,11,0,0,0,0]
[null,null,null,"Estimate  $100,000 or more:",82,76,95,57,6,10,0,11,85,80,8,9,0,11,52,42,28,30,0,11,36,29,5,7,6,14,0,0,0,0]
[null,null,null,"Estimate  $100,000 or more: - Less than 20.0 percent",82,76,95,57,6,10,0,11,85,80,5,8,0,11,52,42,28,30,0,11,15,23,0,11,6,14,0,0,0,0]
[null,null,null,"Estimate  $100,000 or more: - 20.0 to 24.9 percent",0,16,0,18,0,11,0,11,0,11,0,11,0,11,0,16,0,11,0,11,12,18,0,11,0,11,0,0,0,0]
[null,null,null,"Estimate  $100,000 or more: - 25.0 to 29.9 percent",0,16,0,18,0,11,0,11,0,11,0,11,0,11,0,16,0,11,0,11,9,14,0,11,0,11,0,0,0,0]
[null,null,null,"Estimate  $100,000 or more: - 30.0 to 34.9 percent",0,16,0,18,0,11,0,11,0,11,0,11,0,11,0,16,0,11,0,11,0,11,0,11,0,11,0,0,0,0]
[null,null,null,"Estimate  $100,000 or more: - 35.0 to 39.9 percent",0,16,0,18,0,11,0,11,0,11,0,11,0,11,0,16,0,11,0,11,0,11,0,11,0,11,0,0,0,0]
[null,null,null,"Estimate  $100,000 or more: - 40.0 to 49.9 percent",0,16,0,18,0,11,0,11,0,11,0,11,0,11,0,16,0,11,0,11,0,11,0,11,0,11,0,0,0,0]
[null,null,null,"Estimate  $100,000 or more: - 50.0 percent or more",0,16,0,18,0,11,0,11,0,11,0,11,0,11,0,16,0,11,0,11,0,11,0,11,0,11,0,0,0,0]
[null,null,null,"Estimate  $100,000 or more: - Not computed",0,16,0,18,0,11,0,11,0,11,3,4,0,11,0,16,0,11,0,11,0,11,5,7,0,11,0,0,0,0]

{"sheet":"SData_B25075&_B25077_OOccHsgVal","index":92,"n_rows":52,"n_cols":62,"rows_kept":52,"cut":false,"hidden":true,"merged":[]}
["GEO_ID","GEO_ID2","SUMLEVEL","GEO_NAME","B25075_1_EST","B25075_1_MOE","B25075_2_EST","B25075_2_MOE","B25075_3_EST","B25075_3_MOE","B25075_4_EST","B25075_4_MOE","B25075_5_EST","B25075_5_MOE","B25075_6_EST","B25075_6_MOE","B25075_7_EST","B25075_7_MOE","B25075_8_EST","B25075_8_MOE","B25075_9_EST","B25075_9_MOE","B25075_10_EST","B25075_10_MOE","B25075_11_EST","B25075_11_MOE","B25075_12_EST","B25075_12_MOE","B25075_13_EST","B25075_13_MOE","B25075_14_EST","B25075_14_MOE","B25075_15_EST","B25075_15_MOE","B25075_16_EST","B25075_16_MOE","B25075_17_EST","B25075_17_MOE","B25075_18_EST","B25075_18_MOE","B25075_19_EST","B25075_19_MOE","B25075_20_EST","B25075_20_MOE","B25075_21_EST","B25075_21_MOE","B25075_22_EST","B25075_22_MOE","B25075_23_EST","B25075_23_MOE","B25075_24_EST","B25075_24_MOE","B25075_25_EST","B25075_25_MOE","B25075_26_EST","B25075_26_MOE","B25075_27_EST","B25075_27_MOE","B25077_1_EST","B25077_1_MOE"]
["Geography Identifier","Geography Identifier","Geographic Summary Level","Geography",{"$f":"[1]ACS_16_5YR_B25075_with_ann!D$2","v":"Estimate Total:"},{"$f":"[1]ACS_16_5YR_B25075_with_ann!E$2","v":"Margin of Error Total:"},{"$f":"[1]ACS_16_5YR_B25075_with_ann!F$2","v":"Estimate  Total: - Less than $10,000"},{"$f":"[1]ACS_16_5YR_B25075_with_ann!G$2","v":"Margin of Error Total: Less than $10"},{"$f":"[1]ACS_16_5YR_B25075_with_ann!H$2","v":"Estimate  Total: - $10,000 to $14,999"},{"$f":"[1]ACS_16_5YR_B25075_with_ann!I$2","v":"Margin of Error Total: $10"},{"$f":"[1]ACS_16_5YR_B25075_with_ann!J$2","v":"Estimate  Total: - $15,000 to $19,999"},{"$f":"[1]ACS_16_5YR_B25075_with_ann!K$2","v":"Margin of Error Total: $15"},{"$f":"[1]ACS_16_5YR_B25075_with_ann!L$2","v":"Estimate  Total: - $20,000 to $24,999"},{"$f":"[1]ACS_16_5YR_B25075_with_ann!M$2","v":"Margin of Error Total: $20"},{"$f":"[1]ACS_16_5YR_B25075_with_ann!N$2","v":"Estimate  Total: - $25,000 to $29,999"},{"$f":"[1]ACS_16_5YR_B25075_with_ann!O$2","v":"Margin of Error Total: $25"},{"$f":"[1]ACS_16_5YR_B25075_with_ann!P$2","v":"Estimate  Total: - $30,000 to $34,999"},{"$f":"[1]ACS_16_5YR_B25075_with_ann!Q$2","v":"Margin of Error Total: $30"},{"$f":"[1]ACS_16_5YR_B25075_with_ann!R$2","v":"Estimate  Total: - $35,000 to $39,999"},{"$f":"[1]ACS_16_5YR_B25075_with_ann!S$2","v":"Margin of Error Total: $35"},{"$f":"[1]ACS_16_5YR_B25075_with_ann!T$2","v":"Estimate  Total: - $40,000 to $49,999"},{"$f":"[1]ACS_16_5YR_B25075_with_ann!U$2","v":"Margin of Error Total: $40"},{"$f":"[1]ACS_16_5YR_B25075_with_ann!V$2","v":"Estimate  Total: - $50,000 to $59,999"},{"$f":"[1]ACS_16_5YR_B25075_with_ann!W$2","v":"Margin of Error Total: $50"},{"$f":"[1]ACS_16_5YR_B25075_with_ann!X$2","v":"Estimate  Total: - $60,000 to $69,999"},{"$f":"[1]ACS_16_5YR_B25075_with_ann!Y$2","v":"Margin of Error Total: $60"},{"$f":"[1]ACS_16_5YR_B25075_with_ann!Z$2","v":"Estimate  Total: - $70,000 to $79,999"},{"$f":"[1]ACS_16_5YR_B25075_with_ann!AA$2","v":"Margin of Error Total: $70"},{"$f":"[1]ACS_16_5YR_B25075_with_ann!AB$2","v":"Estimate  Total: - $80,000 to $89,999"},{"$f":"[1]ACS_16_5YR_B25075_with_ann!AC$2","v":"Margin of Error Total: $80"},{"$f":"[1]ACS_16_5YR_B25075_with_ann!AD$2","v":"Estimate  Total: - $90,000 to $99,999"},{"$f":"[1]ACS_16_5YR_B25075_with_ann!AE$2","v":"Margin of Error Total: $90"},{"$f":"[1]ACS_16_5YR_B25075_with_ann!AF$2","v":"Estimate  Total: - $100,000 to $124,999"},{"$f":"[1]ACS_16_5YR_B25075_with_ann!AG$2","v":"Margin of Error Total: $100"},{"$f":"[1]ACS_16_5YR_B25075_with_ann!AH$2","v":"Estimate  Total: - $125,000 to $149,999"},{"$f":"[1]ACS_16_5YR_B25075_with_ann!AI$2","v":"Margin of Error Total: $125"},{"$f":"[1]ACS_16_5YR_B25075_with_ann!AJ$2","v":"Estimate  Total: - $150,000 to $174,999"},{"$f":"[1]ACS_16_5YR_B25075_with_ann!AK$2","v":"Margin of Error Total: $150"},{"$f":"[1]ACS_16_5YR_B25075_with_ann!AL$2","v":"Estimate  Total: - $175,000 to $199,999"},{"$f":"[1]ACS_16_5YR_B25075_with_ann!AM$2","v":"Margin of Error Total: $175"},{"$f":"[1]ACS_16_5YR_B25075_with_ann!AN$2","v":"Estimate  Total: - $200,000 to $249,999"},{"$f":"[1]ACS_16_5YR_B25075_with_ann!AO$2","v":"Margin of Error Total: $200"},{"$f":"[1]ACS_16_5YR_B25075_with_ann!AP$2","v":"Estimate  Total: - $250,000 to $299,999"},{"$f":"[1]ACS_16_5YR_B25075_with_ann!AQ$2","v":"Margin of Error Total: $250"},{"$f":"[1]ACS_16_5YR_B25075_with_ann!AR$2","v":"Estimate  Total: - $300,000 to $399,999"},{"$f":"[1]ACS_16_5YR_B25075_with_ann!AS$2","v":"Margin of Error Total: $300"},{"$f":"[1]ACS_16_5YR_B25075_with_ann!AT$2","v":"Estimate  Total: - $400,000 to $499,999"},{"$f":"[1]ACS_16_5YR_B25075_with_ann!AU$2","v":"Margin of Error Total: $400"},{"$f":"[1]ACS_16_5YR_B25075_with_ann!AV$2","v":"Estimate  Total: - $500,000 to $749,999"},{"$f":"[1]ACS_16_5YR_B25075_with_ann!AW$2","v":"Margin of Error Total: $500"},{"$f":"[1]ACS_16_5YR_B25075_with_ann!AX$2","v":"Estimate  Total: - $750,000 to $999,999"},{"$f":"[1]ACS_16_5YR_B25075_with_ann!AY$2","v":"Margin of Error Total: $750"},{"$f":"[1]ACS_16_5YR_B25075_with_ann!AZ$2","v":"Estimate  Total: - $1,000,000 to $1,499,999"},{"$f":"[1]ACS_16_5YR_B25075_with_ann!BA$2","v":"Margin of Error Total: $1"},{"$f":"[1]ACS_16_5YR_B25075_with_ann!BB$2","v":"Estimate  Total: - $1,500,000 to $1,999,999"},{"$f":"[1]ACS_16_5YR_B25075_with_ann!BC$2","v":"Margin of Error Total: $1"},{"$f":"[1]ACS_16_5YR_B25075_with_ann!BD$2","v":"Estimate  Total: - $2,000,000 or more"},{"$f":"[1]ACS_16_5YR_B25075_with_ann!BE$2","v":"Margin of Error Total: $2"},{"$f":"[1]ACS_16_5YR_B25077_with_ann!D$2","v":"Estimate Median value (dollars)"},{"$f":"[1]ACS_16_5YR_B25077_with_ann!E$2","v":"Margin of Error Median value (dollars)"}]
["0600000US3301900259",3301900259,"060","Acworth",{"$f":"[1]ACS_16_5YR_B25075_with_ann!D258","v":340},{"$f":"[1]ACS_16_5YR_B25075_with_ann!E258","v":50},{"$f":"[1]ACS_16_5YR_B25075_with_ann!F258","v":0},{"$f":"[1]ACS_16_5YR_B25075_with_ann!G258","v":11},{"$f":"[1]ACS_16_5YR_B25075_with_ann!H258","v":3},{"$f":"[1]ACS_16_5YR_B25075_with_ann!I258","v":4},{"$f":"[1]ACS_16_5YR_B25075_with_ann!J258","v":2},{"$f":"[1]ACS_16_5YR_B25075_with_ann!K258","v":3},{"$f":"[1]ACS_16_5YR_B25075_with_ann!L258","v":0},{"$f":"[1]ACS_16_5YR_B25075_with_ann!M258","v":11},{"$f":"[1]ACS_16_5YR_B25075_with_ann!N258","v":0},{"$f":"[1]ACS_16_5YR_B25075_with_ann!O258","v":11},{"$f":"[1]ACS_16_5YR_B25075_with_ann!P258","v":0},{"$f":"[1]ACS_16_5YR_B25075_with_ann!Q258","v":11},{"$f":"[1]ACS_16_5YR_B25075_with_ann!R258","v":0},{"$f":"[1]ACS_16_5YR_B25075_with_ann!S258","v":11},{"$f":"[1]ACS_16_5YR_B25075_with_ann!T258","v":7},{"$f":"[1]ACS_16_5YR_B25075_with_ann!U258","v":11},{"$f":"[1]ACS_16_5YR_B25075_with_ann!V258","v":0},{"$f":"[1]ACS_16_5YR_B25075_with_ann!W258","v":11},{"$f":"[1]ACS_16_5YR_B25075_with_ann!X258","v":6},{"$f":"[1]ACS_16_5YR_B25075_with_ann!Y258","v":5},{"$f":"[1]ACS_16_5YR_B25075_with_ann!Z258","v":8},{"$f":"[1]ACS_16_5YR_B25075_with_ann!AA258","v":10},{"$f":"[1]ACS_16_5YR_B25075_with_ann!AB258","v":5},{"$f":"[1]ACS_16_5YR_B25075_with_ann!AC258","v":5},{"$f":"[1]ACS_16_5YR_B25075_with_ann!AD258","v":5},{"$f":"[1]ACS_16_5YR_B25075_with_ann!AE258","v":5},{"$f":"[1]ACS_16_5YR_B25075_with_ann!AF258","v":47},{"$f":"[1]ACS_16_5YR_B25075_with_ann!AG258","v":24},{"$f":"[1]ACS_16_5YR_B25075_with_ann!AH258","v":25},{"$f":"[1]ACS_16_5YR_B25075_with_ann!AI258","v":14},{"$f":"[1]ACS_16_5YR_B25075_with_ann!AJ258","v":58},{"$f":"[1]ACS_16_5YR_B25075_with_ann!AK258","v":23},{"$f":"[1]ACS_16_5YR_B25075_with_ann!AL258","v":25},{"$f":"[1]ACS_16_5YR_B25075_with_ann!AM258","v":17},{"$f":"[1]ACS_16_5YR_B25075_with_ann!AN258","v":44},{"$f":"[1]ACS_16_5YR_B25075_with_ann!AO258","v":23},{"$f":"[1]ACS_16_5YR_B25075_with_ann!AP258","v":47},{"$f":"[1]ACS_16_5YR_B25075_with_ann!AQ258","v":21},{"$f":"[1]ACS_16_5YR_B25075_with_ann!AR258","v":21},{"$f":"[1]ACS_16_5YR_B25075_with_ann!AS258","v":16},{"$f":"[1]ACS_16_5YR_B25075_with_ann!AT258","v":26},{"$f":"[1]ACS_16_5YR_B25075_with_ann!AU258","v":19},{"$f":"[1]ACS_16_5YR_B25075_with_ann!AV258","v":7},{"$f":"[1]ACS_16_5YR_B25075_with_ann!AW258","v":6},{"$f":"[1]ACS_16_5YR_B25075_with_ann!AX258","v":2},{"$f":"[1]ACS_16_5YR_B25075_with_ann!AY258","v":3},{"$f":"[1]ACS_16_5YR_B25075_with_ann!AZ258","v":2},{"$f":"[1]ACS_16_5YR_B25075_with_ann!BA258","v":3},{"$f":"[1]ACS_16_5YR_B25075_with_ann!BB258","v":0},{"$f":"[1]ACS_16_5YR_B25075_with_ann!BC258","v":11},{"$f":"[1]ACS_16_5YR_B25075_with_ann!BD258","v":0},{"$f":"[1]ACS_16_5YR_B25075_with_ann!BE258","v":11},{"$f":"[1]ACS_16_5YR_B25077_with_ann!D258","v":179000},{"$f":"[1]ACS_16_5YR_B25077_with_ann!E258","v":24139},null,"Acworth"]
["0600000US3301911380",3301911380,"060","Charlestown",{"$f":"[1]ACS_16_5YR_B25075_with_ann!D259","v":1584},{"$f":"[1]ACS_16_5YR_B25075_with_ann!E259","v":209},{"$f":"[1]ACS_16_5YR_B25075_with_ann!F259","v":35},{"$f":"[1]ACS_16_5YR_B25075_with_ann!G259","v":40},{"$f":"[1]ACS_16_5YR_B25075_with_ann!H259","v":72},{"$f":"[1]ACS_16_5YR_B25075_with_ann!I259","v":69},{"$f":"[1]ACS_16_5YR_B25075_with_ann!J259","v":60},{"$f":"[1]ACS_16_5YR_B25075_with_ann!K259","v":72},{"$f":"[1]ACS_16_5YR_B25075_with_ann!L259","v":7},{"$f":"[1]ACS_16_5YR_B25075_with_ann!M259","v":13},{"$f":"[1]ACS_16_5YR_B25075_with_ann!N259","v":28},{"$f":"[1]ACS_16_5YR_B25075_with_ann!O259","v":32},{"$f":"[1]ACS_16_5YR_B25075_with_ann!P259","v":62},{"$f":"[1]ACS_16_5YR_B25075_with_ann!Q259","v":49},{"$f":"[1]ACS_16_5YR_B25075_with_ann!R259","v":13},{"$f":"[1]ACS_16_5YR_B25075_with_ann!S259","v":23},{"$f":"[1]ACS_16_5YR_B25075_with_ann!T259","v":47},{"$f":"[1]ACS_16_5YR_B25075_with_ann!U259","v":54},{"$f":"[1]ACS_16_5YR_B25075_with_ann!V259","v":48},{"$f":"[1]ACS_16_5YR_B25075_with_ann!W259","v":63},{"$f":"[1]ACS_16_5YR_B25075_with_ann!X259","v":120},{"$f":"[1]ACS_16_5YR_B25075_with_ann!Y259","v":99},{"$f":"[1]ACS_16_5YR_B25075_with_ann!Z259","v":160},{"$f":"[1]ACS_16_5YR_B25075_with_ann!AA259","v":117},{"$f":"[1]ACS_16_5YR_B25075_with_ann!AB259","v":64},{"$f":"[1]ACS_16_5YR_B25075_with_ann!AC259","v":56},{"$f":"[1]ACS_16_5YR_B25075_with_ann!AD259","v":12},{"$f":"[1]ACS_16_5YR_B25075_with_ann!AE259","v":21},{"$f":"[1]ACS_16_5YR_B25075_with_ann!AF259","v":147},{"$f":"[1]ACS_16_5YR_B25075_with_ann!AG259","v":88},{"$f":"[1]ACS_16_5YR_B25075_with_ann!AH259","v":138},{"$f":"[1]ACS_16_5YR_B25075_with_ann!AI259","v":93},{"$f":"[1]ACS_16_5YR_B25075_with_ann!AJ259","v":149},{"$f":"[1]ACS_16_5YR_B25075_with_ann!AK259","v":81},{"$f":"[1]ACS_16_5YR_B25075_with_ann!AL259","v":114},{"$f":"[1]ACS_16_5YR_B25075_with_ann!AM259","v":82},{"$f":"[1]ACS_16_5YR_B25075_with_ann!AN259","v":216},{"$f":"[1]ACS_16_5YR_B25075_with_ann!AO259","v":106},{"$f":"[1]ACS_16_5YR_B25075_with_ann!AP259","v":61},{"$f":"[1]ACS_16_5YR_B25075_with_ann!AQ259","v":72},{"$f":"[1]ACS_16_5YR_B25075_with_ann!AR259","v":8},{"$f":"[1]ACS_16_5YR_B25075_with_ann!AS259","v":13},{"$f":"[1]ACS_16_5YR_B25075_with_ann!AT259","v":23},{"$f":"[1]ACS_16_5YR_B25075_with_ann!AU259","v":36},{"$f":"[1]ACS_16_5YR_B25075_with_ann!AV259","v":0},{"$f":"[1]ACS_16_5YR_B25075_with_ann!AW259","v":16},{"$f":"[1]ACS_16_5YR_B25075_with_ann!AX259","v":0},{"$f":"[1]ACS_16_5YR_B25075_with_ann!AY259","v":16},{"$f":"[1]ACS_16_5YR_B25075_with_ann!AZ259","v":0},{"$f":"[1]ACS_16_5YR_B25075_with_ann!BA259","v":16},{"$f":"[1]ACS_16_5YR_B25075_with_ann!BB259","v":0},{"$f":"[1]ACS_16_5YR_B25075_with_ann!BC259","v":16},{"$f":"[1]ACS_16_5YR_B25075_with_ann!BD259","v":0},{"$f":"[1]ACS_16_5YR_B25075_with_ann!BE259","v":16},{"$f":"[1]ACS_16_5YR_B25077_with_ann!D259","v":110900},{"$f":"[1]ACS_16_5YR_B25077_with_ann!E259","v":30678},null,"Acworth"]
["0600000US3301912900",3301912900,"060","Claremont",{"$f":"[1]ACS_16_5YR_B25075_with_ann!D260","v":2921},{"$f":"[1]ACS_16_5YR_B25075_with_ann!E260","v":257},{"$f":"[1]ACS_16_5YR_B25075_with_ann!F260","v":18},{"$f":"[1]ACS_16_5YR_B25075_with_ann!G260","v":27},{"$f":"[1]ACS_16_5YR_B25075_with_ann!H260","v":11},{"$f":"[1]ACS_16_5YR_B25075_with_ann!I260","v":18},{"$f":"[1]ACS_16_5YR_B25075_with_ann!J260","v":23},{"$f":"[1]ACS_16_5YR_B25075_with_ann!K260","v":35},{"$f":"[1]ACS_16_5YR_B25075_with_ann!L260","v":0},{"$f":"[1]ACS_16_5YR_B25075_with_ann!M260","v":18},{"$f":"[1]ACS_16_5YR_B25075_with_ann!N260","v":10},{"$f":"[1]ACS_16_5YR_B25075_with_ann!O260","v":17},{"$f":"[1]ACS_16_5YR_B25075_with_ann!P260","v":26},{"$f":"[1]ACS_16_5YR_B25075_with_ann!Q260","v":33},{"$f":"[1]ACS_16_5YR_B25075_with_ann!R260","v":0},{"$f":"[1]ACS_16_5YR_B25075_with_ann!S260","v":18},{"$f":"[1]ACS_16_5YR_B25075_with_ann!T260","v":56},{"$f":"[1]ACS_16_5YR_B25075_with_ann!U260","v":42},{"$f":"[1]ACS_16_5YR_B25075_with_ann!V260","v":52},{"$f":"[1]ACS_16_5YR_B25075_with_ann!W260","v":47},{"$f":"[1]ACS_16_5YR_B25075_with_ann!X260","v":87},{"$f":"[1]ACS_16_5YR_B25075_with_ann!Y260","v":54},{"$f":"[1]ACS_16_5YR_B25075_with_ann!Z260","v":103},{"$f":"[1]ACS_16_5YR_B25075_with_ann!AA260","v":69},{"$f":"[1]ACS_16_5YR_B25075_with_ann!AB260","v":182},{"$f":"[1]ACS_16_5YR_B25075_with_ann!AC260","v":85},{"$f":"[1]ACS_16_5YR_B25075_with_ann!AD260","v":182},{"$f":"[1]ACS_16_5YR_B25075_with_ann!AE260","v":113},{"$f":"[1]ACS_16_5YR_B25075_with_ann!AF260","v":489},{"$f":"[1]ACS_16_5YR_B25075_with_ann!AG260","v":117},{"$f":"[1]ACS_16_5YR_B25075_with_ann!AH260","v":655},{"$f":"[1]ACS_16_5YR_B25075_with_ann!AI260","v":144},{"$f":"[1]ACS_16_5YR_B25075_with_ann!AJ260","v":493},{"$f":"[1]ACS_16_5YR_B25075_with_ann!AK260","v":143},{"$f":"[1]ACS_16_5YR_B25075_with_ann!AL260","v":138},{"$f":"[1]ACS_16_5YR_B25075_with_ann!AM260","v":76},{"$f":"[1]ACS_16_5YR_B25075_with_ann!AN260","v":226},{"$f":"[1]ACS_16_5YR_B25075_with_ann!AO260","v":93},{"$f":"[1]ACS_16_5YR_B25075_with_ann!AP260","v":90},{"$f":"[1]ACS_16_5YR_B25075_with_ann!AQ260","v":48},{"$f":"[1]ACS_16_5YR_B25075_with_ann!AR260","v":32},{"$f":"[1]ACS_16_5YR_B25075_with_ann!AS260","v":38},{"$f":"[1]ACS_16_5YR_B25075_with_ann!AT260","v":32},{"$f":"[1]ACS_16_5YR_B25075_with_ann!AU260","v":49},{"$f":"[1]ACS_16_5YR_B25075_with_ann!AV260","v":0},{"$f":"[1]ACS_16_5YR_B25075_with_ann!AW260","v":18},{"$f":"[1]ACS_16_5YR_B25075_with_ann!AX260","v":0},{"$f":"[1]ACS_16_5YR_B25075_with_ann!AY260","v":18},{"$f":"[1]ACS_16_5YR_B25075_with_ann!AZ260","v":0},{"$f":"[1]ACS_16_5YR_B25075_with_ann!BA260","v":18},{"$f":"[1]ACS_16_5YR_B25075_with_ann!BB260","v":16},{"$f":"[1]ACS_16_5YR_B25075_with_ann!BC260","v":24},{"$f":"[1]ACS_16_5YR_B25075_with_ann!BD260","v":0},{"$f":"[1]ACS_16_5YR_B25075_with_ann!BE260","v":18},{"$f":"[1]ACS_16_5YR_B25077_with_ann!D260","v":133500},{"$f":"[1]ACS_16_5YR_B25077_with_ann!E260","v":5655},null,"Acworth"]
["0600000US3301915060",3301915060,"060","Cornish",{"$f":"[1]ACS_16_5YR_B25075_with_ann!D261","v":686},{"$f":"[1]ACS_16_5YR_B25075_with_ann!E261","v":79},{"$f":"[1]ACS_16_5YR_B25075_with_ann!F261","v":0},{"$f":"[1]ACS_16_5YR_B25075_with_ann!G261","v":11},{"$f":"[1]ACS_16_5YR_B25075_with_ann!H261","v":0},{"$f":"[1]ACS_16_5YR_B25075_with_ann!I261","v":11},{"$f":"[1]ACS_16_5YR_B25075_with_ann!J261","v":2},{"$f":"[1]ACS_16_5YR_B25075_with_ann!K261","v":4},{"$f":"[1]ACS_16_5YR_B25075_with_ann!L261","v":0},{"$f":"[1]ACS_16_5YR_B25075_with_ann!M261","v":11},{"$f":"[1]ACS_16_5YR_B25075_with_ann!N261","v":0},{"$f":"[1]ACS_16_5YR_B25075_with_ann!O261","v":11},{"$f":"[1]ACS_16_5YR_B25075_with_ann!P261","v":0},{"$f":"[1]ACS_16_5YR_B25075_with_ann!Q261","v":11},{"$f":"[1]ACS_16_5YR_B25075_with_ann!R261","v":0},{"$f":"[1]ACS_16_5YR_B25075_with_ann!S261","v":11},{"$f":"[1]ACS_16_5YR_B25075_with_ann!T261","v":0},{"$f":"[1]ACS_16_5YR_B25075_with_ann!U261","v":11},{"$f":"[1]ACS_16_5YR_B25075_with_ann!V261","v":0},{"$f":"[1]ACS_16_5YR_B25075_with_ann!W261","v":11},{"$f":"[1]ACS_16_5YR_B25075_with_ann!X261","v":14},{"$f":"[1]ACS_16_5YR_B25075_with_ann!Y261","v":18},{"$f":"[1]ACS_16_5YR_B25075_with_ann!Z261","v":12},{"$f":"[1]ACS_16_5YR_B25075_with_ann!AA261","v":11},{"$f":"[1]ACS_16_5YR_B25075_with_ann!AB261","v":4},{"$f":"[1]ACS_16_5YR_B25075_with_ann!AC261","v":6},{"$f":"[1]ACS_16_5YR_B25075_with_ann!AD261","v":0},{"$f":"[1]ACS_16_5YR_B25075_with_ann!AE261","v":11},{"$f":"[1]ACS_16_5YR_B25075_with_ann!AF261","v":26},{"$f":"[1]ACS_16_5YR_B25075_with_ann!AG261","v":17},{"$f":"[1]ACS_16_5YR_B25075_with_ann!AH261","v":23},{"$f":"[1]ACS_16_5YR_B25075_with_ann!AI261","v":20},{"$f":"[1]ACS_16_5YR_B25075_with_ann!AJ261","v":37},{"$f":"[1]ACS_16_5YR_B25075_with_ann!AK261","v":18},{"$f":"[1]ACS_16_5YR_B25075_with_ann!AL261","v":56},{"$f":"[1]ACS_16_5YR_B25075_with_ann!AM261","v":25},{"$f":"[1]ACS_16_5YR_B25075_with_ann!AN261","v":123},{"$f":"[1]ACS_16_5YR_B25075_with_ann!AO261","v":40},{"$f":"[1]ACS_16_5YR_B25075_with_ann!AP261","v":99},{"$f":"[1]ACS_16_5YR_B25075_with_ann!AQ261","v":35},{"$f":"[1]ACS_16_5YR_B25075_with_ann!AR261","v":176},{"$f":"[1]ACS_16_5YR_B25075_with_ann!AS261","v":45},{"$f":"[1]ACS_16_5YR_B25075_with_ann!AT261","v":38},{"$f":"[1]ACS_16_5YR_B25075_with_ann!AU261","v":18},{"$f":"[1]ACS_16_5YR_B25075_with_ann!AV261","v":53},{"$f":"[1]ACS_16_5YR_B25075_with_ann!AW261","v":30},{"$f":"[1]ACS_16_5YR_B25075_with_ann!AX261","v":6},{"$f":"[1]ACS_16_5YR_B25075_with_ann!AY261","v":7},{"$f":"[1]ACS_16_5YR_B25075_with_ann!AZ261","v":3},{"$f":"[1]ACS_16_5YR_B25075_with_ann!BA261","v":5},{"$f":"[1]ACS_16_5YR_B25075_with_ann!BB261","v":11},{"$f":"[1]ACS_16_5YR_B25075_with_ann!BC261","v":9},{"$f":"[1]ACS_16_5YR_B25075_with_ann!BD261","v":3},{"$f":"[1]ACS_16_5YR_B25075_with_ann!BE261","v":4},{"$f":"[1]ACS_16_5YR_B25077_with_ann!D262","v":226600},{"$f":"[1]ACS_16_5YR_B25077_with_ann!E262","v":28057},null,"Acworth"]
["0600000US3301916340",3301916340,"060","Croydon",{"$f":"[1]ACS_16_5YR_B25075_with_ann!D262","v":257},{"$f":"[1]ACS_16_5YR_B25075_with_ann!E262","v":53},{"$f":"[1]ACS_16_5YR_B25075_with_ann!F262","v":0},{"$f":"[1]ACS_16_5YR_B25075_with_ann!G262","v":11},{"$f":"[1]ACS_16_5YR_B25075_with_ann!H262","v":4},{"$f":"[1]ACS_16_5YR_B25075_with_ann!I262","v":6},{"$f":"[1]ACS_16_5YR_B25075_with_ann!J262","v":0},{"$f":"[1]ACS_16_5YR_B25075_with_ann!K262","v":11},{"$f":"[1]ACS_16_5YR_B25075_with_ann!L262","v":0},{"$f":"[1]ACS_16_5YR_B25075_with_ann!M262","v":11},{"$f":"[1]ACS_16_5YR_B25075_with_ann!N262","v":0},{"$f":"[1]ACS_16_5YR_B25075_with_ann!O262","v":11},{"$f":"[1]ACS_16_5YR_B25075_with_ann!P262","v":1},{"$f":"[1]ACS_16_5YR_B25075_with_ann!Q262","v":3},{"$f":"[1]ACS_16_5YR_B25075_with_ann!R262","v":0},{"$f":"[1]ACS_16_5YR_B25075_with_ann!S262","v":11},{"$f":"[1]ACS_16_5YR_B25075_with_ann!T262","v":2},{"$f":"[1]ACS_16_5YR_B25075_with_ann!U262","v":3},{"$f":"[1]ACS_16_5YR_B25075_with_ann!V262","v":0},{"$f":"[1]ACS_16_5YR_B25075_with_ann!W262","v":11},{"$f":"[1]ACS_16_5YR_B25075_with_ann!X262","v":0},{"$f":"[1]ACS_16_5YR_B25075_with_ann!Y262","v":11},{"$f":"[1]ACS_16_5YR_B25075_with_ann!Z262","v":2},{"$f":"[1]ACS_16_5YR_B25075_with_ann!AA262","v":4},{"$f":"[1]ACS_16_5YR_B25075_with_ann!AB262","v":6},{"$f":"[1]ACS_16_5YR_B25075_with_ann!AC262","v":8},{"$f":"[1]ACS_16_5YR_B25075_with_ann!AD262","v":10},{"$f":"[1]ACS_16_5YR_B25075_with_ann!AE262","v":9},{"$f":"[1]ACS_16_5YR_B25075_with_ann!AF262","v":12},{"$f":"[1]ACS_16_5YR_B25075_with_ann!AG262","v":13},{"$f":"[1]ACS_16_5YR_B25075_with_ann!AH262","v":23},{"$f":"[1]ACS_16_5YR_B25075_with_ann!AI262","v":21},{"$f":"[1]ACS_16_5YR_B25075_with_ann!AJ262","v":21},{"$f":"[1]ACS_16_5YR_B25075_with_ann!AK262","v":12},{"$f":"[1]ACS_16_5YR_B25075_with_ann!AL262","v":23},{"$f":"[1]ACS_16_5YR_B25075_with_ann!AM262","v":15},{"$f":"[1]ACS_16_5YR_B25075_with_ann!AN262","v":46},{"$f":"[1]ACS_16_5YR_B25075_with_ann!AO262","v":19},{"$f":"[1]ACS_16_5YR_B25075_with_ann!AP262","v":52},{"$f":"[1]ACS_16_5YR_B25075_with_ann!AQ262","v":29},{"$f":"[1]ACS_16_5YR_B25075_with_ann!AR262","v":26},{"$f":"[1]ACS_16_5YR_B25075_with_ann!AS262","v":17},{"$f":"[1]ACS_16_5YR_B25075_with_ann!AT262","v":22},{"$f":"[1]ACS_16_5YR_B25075_with_ann!AU262","v":13},{"$f":"[1]ACS_16_5YR_B25075_with_ann!AV262","v":5},{"$f":"[1]ACS_16_5YR_B25075_with_ann!AW262","v":6},{"$f":"[1]ACS_16_5YR_B25075_with_ann!AX262","v":0},{"$f":"[1]ACS_16_5YR_B25075_with_ann!AY262","v":11},{"$f":"[1]ACS_16_5YR_B25075_with_ann!AZ262","v":0},{"$f":"[1]ACS_16_5YR_B25075_with_ann!BA262","v":11},{"$f":"[1]ACS_16_5YR_B25075_with_ann!BB262","v":0},{"$f":"[1]ACS_16_5YR_B25075_with_ann!BC262","v":11},{"$f":"[1]ACS_16_5YR_B25075_with_ann!BD262","v":2},{"$f":"[1]ACS_16_5YR_B25075_with_ann!BE262","v":4},{"$f":"[1]ACS_16_5YR_B25077_with_ann!D263","v":188800},{"$f":"[1]ACS_16_5YR_B25077_with_ann!E263","v":19957},null,"Acworth"]
["0600000US3301930500",3301930500,"060","Goshen",{"$f":"[1]ACS_16_5YR_B25075_with_ann!D263","v":223},{"$f":"[1]ACS_16_5YR_B25075_with_ann!E263","v":35},{"$f":"[1]ACS_16_5YR_B25075_with_ann!F263","v":0},{"$f":"[1]ACS_16_5YR_B25075_with_ann!G263","v":11},{"$f":"[1]ACS_16_5YR_B25075_with_ann!H263","v":0},{"$f":"[1]ACS_16_5YR_B25075_with_ann!I263","v":11},{"$f":"[1]ACS_16_5YR_B25075_with_ann!J263","v":0},{"$f":"[1]ACS_16_5YR_B25075_with_ann!K263","v":11},{"$f":"[1]ACS_16_5YR_B25075_with_ann!L263","v":3},{"$f":"[1]ACS_16_5YR_B25075_with_ann!M263","v":4},{"$f":"[1]ACS_16_5YR_B25075_with_ann!N263","v":0},{"$f":"[1]ACS_16_5YR_B25075_with_ann!O263","v":11},{"$f":"[1]ACS_16_5YR_B25075_with_ann!P263","v":0},{"$f":"[1]ACS_16_5YR_B25075_with_ann!Q263","v":11},{"$f":"[1]ACS_16_5YR_B25075_with_ann!R263","v":0},{"$f":"[1]ACS_16_5YR_B25075_with_ann!S263","v":11},{"$f":"[1]ACS_16_5YR_B25075_with_ann!T263","v":0},{"$f":"[1]ACS_16_5YR_B25075_with_ann!U263","v":11},{"$f":"[1]ACS_16_5YR_B25075_with_ann!V263","v":2},{"$f":"[1]ACS_16_5YR_B25075_with_ann!W263","v":5},{"$f":"[1]ACS_16_5YR_B25075_with_ann!X263","v":6},{"$f":"[1]ACS_16_5YR_B25075_with_ann!Y263","v":9},{"$f":"[1]ACS_16_5YR_B25075_with_ann!Z263","v":9},{"$f":"[1]ACS_16_5YR_B25075_with_ann!AA263","v":11},{"$f":"[1]ACS_16_5YR_B25075_with_ann!AB263","v":0},{"$f":"[1]ACS_16_5YR_B25075_with_ann!AC263","v":11},{"$f":"[1]ACS_16_5YR_B25075_with_ann!AD263","v":5},{"$f":"[1]ACS_16_5YR_B25075_with_ann!AE263","v":5},{"$f":"[1]ACS_16_5YR_B25075_with_ann!AF263","v":10},{"$f":"[1]ACS_16_5YR_B25075_with_ann!AG263","v":7},{"$f":"[1]ACS_16_5YR_B25075_with_ann!AH263","v":35},{"$f":"[1]ACS_16_5YR_B25075_with_ann!AI263","v":19},{"$f":"[1]ACS_16_5YR_B25075_with_ann!AJ263","v":26},{"$f":"[1]ACS_16_5YR_B25075_with_ann!AK263","v":11},{"$f":"[1]ACS_16_5YR_B25075_with_ann!AL263","v":28},{"$f":"[1]ACS_16_5YR_B25075_with_ann!AM263","v":18},{"$f":"[1]ACS_16_5YR_B25075_with_ann!AN263","v":34},{"$f":"[1]ACS_16_5YR_B25075_with_ann!AO263","v":17},{"$f":"[1]ACS_16_5YR_B25075_with_ann!AP263","v":35},{"$f":"[1]ACS_16_5YR_B25075_with_ann!AQ263","v":20},{"$f":"[1]ACS_16_5YR_B25075_with_ann!AR263","v":22},{"$f":"[1]ACS_16_5YR_B25075_with_ann!AS263","v":14},{"$f":"[1]ACS_16_5YR_B25075_with_ann!AT263","v":6},{"$f":"[1]ACS_16_5YR_B25075_with_ann!AU263","v":5},{"$f":"[1]ACS_16_5YR_B25075_with_ann!AV263","v":0},{"$f":"[1]ACS_16_5YR_B25075_with_ann!AW263","v":11},{"$f":"[1]ACS_16_5YR_B25075_with_ann!AX263","v":2},{"$f":"[1]ACS_16_5YR_B25075_with_ann!AY263","v":4},{"$f":"[1]ACS_16_5YR_B25075_with_ann!AZ263","v":0},{"$f":"[1]ACS_16_5YR_B25075_with_ann!BA263","v":11},{"$f":"[1]ACS_16_5YR_B25075_with_ann!BB263","v":0},{"$f":"[1]ACS_16_5YR_B25075_with_ann!BC263","v":11},{"$f":"[1]ACS_16_5YR_B25075_with_ann!BD263","v":0},{"$f":"[1]ACS_16_5YR_B25075_with_ann!BE263","v":11},{"$f":"[1]ACS_16_5YR_B25077_with_ann!D264","v":302800},{"$f":"[1]ACS_16_5YR_B25077_with_ann!E264","v":36443},null,"Acworth"]
["0600000US3301931220",3301931220,"060","Grantham",{"$f":"[1]ACS_16_5YR_B25075_with_ann!D264","v":1082},{"$f":"[1]ACS_16_5YR_B25075_with_ann!E264","v":164},{"$f":"[1]ACS_16_5YR_B25075_with_ann!F264","v":0},{"$f":"[1]ACS_16_5YR_B25075_with_ann!G264","v":11},{"$f":"[1]ACS_16_5YR_B25075_with_ann!H264","v":0},{"$f":"[1]ACS_16_5YR_B25075_with_ann!I264","v":11},{"$f":"[1]ACS_16_5YR_B25075_with_ann!J264","v":0},{"$f":"[1]ACS_16_5YR_B25075_with_ann!K264","v":11},{"$f":"[1]ACS_16_5YR_B25075_with_ann!L264","v":0},{"$f":"[1]ACS_16_5YR_B25075_with_ann!M264","v":11},{"$f":"[1]ACS_16_5YR_B25075_with_ann!N264","v":0},{"$f":"[1]ACS_16_5YR_B25075_with_ann!O264","v":11},{"$f":"[1]ACS_16_5YR_B25075_with_ann!P264","v":0},{"$f":"[1]ACS_16_5YR_B25075_with_ann!Q264","v":11},{"$f":"[1]ACS_16_5YR_B25075_with_ann!R264","v":0},{"$f":"[1]ACS_16_5YR_B25075_with_ann!S264","v":11},{"$f":"[1]ACS_16_5YR_B25075_with_ann!T264","v":0},{"$f":"[1]ACS_16_5YR_B25075_with_ann!U264","v":11},{"$f":"[1]ACS_16_5YR_B25075_with_ann!V264","v":0},{"$f":"[1]ACS_16_5YR_B25075_with_ann!W264","v":11},{"$f":"[1]ACS_16_5YR_B25075_with_ann!X264","v":0},{"$f":"[1]ACS_16_5YR_B25075_with_ann!Y264","v":11},{"$f":"[1]ACS_16_5YR_B25075_with_ann!Z264","v":0},{"$f":"[1]ACS_16_5YR_B25075_with_ann!AA264","v":11},{"$f":"[1]ACS_16_5YR_B25075_with_ann!AB264","v":0},{"$f":"[1]ACS_16_5YR_B25075_with_ann!AC264","v":11},{"$f":"[1]ACS_16_5YR_B25075_with_ann!AD264","v":0},{"$f":"[1]ACS_16_5YR_B25075_with_ann!AE264","v":11},{"$f":"[1]ACS_16_5YR_B25075_with_ann!AF264","v":33},{"$f":"[1]ACS_16_5YR_B25075_with_ann!AG264","v":33},{"$f":"[1]ACS_16_5YR_B25075_with_ann!AH264","v":96},{"$f":"[1]ACS_16_5YR_B25075_with_ann!AI264","v":85},{"$f":"[1]ACS_16_5YR_B25075_with_ann!AJ264","v":73},{"$f":"[1]ACS_16_5YR_B25075_with_ann!AK264","v":62},{"$f":"[1]ACS_16_5YR_B25075_with_ann!AL264","v":63},{"$f":"[1]ACS_16_5YR_B25075_with_ann!AM264","v":83},{"$f":"[1]ACS_16_5YR_B25075_with_ann!AN264","v":132},{"$f":"[1]ACS_16_5YR_B25075_with_ann!AO264","v":80},{"$f":"[1]ACS_16_5YR_B25075_with_ann!AP264","v":136},{"$f":"[1]ACS_16_5YR_B25075_with_ann!AQ264","v":70},{"$f":"[1]ACS_16_5YR_B25075_with_ann!AR264","v":284},{"$f":"[1]ACS_16_5YR_B25075_with_ann!AS264","v":110},{"$f":"[1]ACS_16_5YR_B25075_with_ann!AT264","v":151},{"$f":"[1]ACS_16_5YR_B25075_with_ann!AU264","v":89},{"$f":"[1]ACS_16_5YR_B25075_with_ann!AV264","v":79},{"$f":"[1]ACS_16_5YR_B25075_with_ann!AW264","v":51},{"$f":"[1]ACS_16_5YR_B25075_with_ann!AX264","v":0},{"$f":"[1]ACS_16_5YR_B25075_with_ann!AY264","v":11},{"$f":"[1]ACS_16_5YR_B25075_with_ann!AZ264","v":35},{"$f":"[1]ACS_16_5YR_B25075_with_ann!BA264","v":56},{"$f":"[1]ACS_16_5YR_B25075_with_ann!BB264","v":0},{"$f":"[1]ACS_16_5YR_B25075_with_ann!BC264","v":11},{"$f":"[1]ACS_16_5YR_B25075_with_ann!BD264","v":0},{"$f":"[1]ACS_16_5YR_B25075_with_ann!BE264","v":11},{"$f":"[1]ACS_16_5YR_B25077_with_ann!D265","v":211300},{"$f":"[1]ACS_16_5YR_B25077_with_ann!E265","v":25490},null,"Acworth"]
["0600000US3301940900",3301940900,"060","Langdon",{"$f":"[1]ACS_16_5YR_B25075_with_ann!D265","v":218},{"$f":"[1]ACS_16_5YR_B25075_with_ann!E265","v":44},{"$f":"[1]ACS_16_5YR_B25075_with_ann!F265","v":0},{"$f":"[1]ACS_16_5YR_B25075_with_ann!G265","v":11},{"$f":"[1]ACS_16_5YR_B25075_with_ann!H265","v":0},{"$f":"[1]ACS_16_5YR_B25075_with_ann!I265","v":11},{"$f":"[1]ACS_16_5YR_B25075_with_ann!J265","v":0},{"$f":"[1]ACS_16_5YR_B25075_with_ann!K265","v":11},{"$f":"[1]ACS_16_5YR_B25075_with_ann!L265","v":0},{"$f":"[1]ACS_16_5YR_B25075_with_ann!M265","v":11},{"$f":"[1]ACS_16_5YR_B25075_with_ann!N265","v":0},{"$f":"[1]ACS_16_5YR_B25075_with_ann!O265","v":11},{"$f":"[1]ACS_16_5YR_B25075_with_ann!P265","v":0},{"$f":"[1]ACS_16_5YR_B25075_with_ann!Q265","v":11},{"$f":"[1]ACS_16_5YR_B25075_with_ann!R265","v":0},{"$f":"[1]ACS_16_5YR_B25075_with_ann!S265","v":11},{"$f":"[1]ACS_16_5YR_B25075_with_ann!T265","v":0},{"$f":"[1]ACS_16_5YR_B25075_with_ann!U265","v":11},{"$f":"[1]ACS_16_5YR_B25075_with_ann!V265","v":0},{"$f":"[1]ACS_16_5YR_B25075_with_ann!W265","v":11},{"$f":"[1]ACS_16_5YR_B25075_with_ann!X265","v":3},{"$f":"[1]ACS_16_5YR_B25075_with_ann!Y265","v":4},{"$f":"[1]ACS_16_5YR_B25075_with_ann!Z265","v":2},{"$f":"[1]ACS_16_5YR_B25075_with_ann!AA265","v":3},{"$f":"[1]ACS_16_5YR_B25075_with_ann!AB265","v":0},{"$f":"[1]ACS_16_5YR_B25075_with_ann!AC265","v":11},{"$f":"[1]ACS_16_5YR_B25075_with_ann!AD265","v":10},{"$f":"[1]ACS_16_5YR_B25075_with_ann!AE265","v":10},{"$f":"[1]ACS_16_5YR_B25075_with_ann!AF265","v":15},{"$f":"[1]ACS_16_5YR_B25075_with_ann!AG265","v":13},{"$f":"[1]ACS_16_5YR_B25075_with_ann!AH265","v":24},{"$f":"[1]ACS_16_5YR_B25075_with_ann!AI265","v":15},{"$f":"[1]ACS_16_5YR_B25075_with_ann!AJ265","v":16},{"$f":"[1]ACS_16_5YR_B25075_with_ann!AK265","v":12},{"$f":"[1]ACS_16_5YR_B25075_with_ann!AL265","v":30},{"$f":"[1]ACS_16_5YR_B25075_with_ann!AM265","v":15},{"$f":"[1]ACS_16_5YR_B25075_with_ann!AN265","v":40},{"$f":"[1]ACS_16_5YR_B25075_with_ann!AO265","v":23},{"$f":"[1]ACS_16_5YR_B25075_with_ann!AP265","v":45},{"$f":"[1]ACS_16_5YR_B25075_with_ann!AQ265","v":18},{"$f":"[1]ACS_16_5YR_B25075_with_ann!AR265","v":15},{"$f":"[1]ACS_16_5YR_B25075_with_ann!AS265","v":9},{"$f":"[1]ACS_16_5YR_B25075_with_ann!AT265","v":10},{"$f":"[1]ACS_16_5YR_B25075_with_ann!AU265","v":9},{"$f":"[1]ACS_16_5YR_B25075_with_ann!AV265","v":6},{"$f":"[1]ACS_16_5YR_B25075_with_ann!AW265","v":5},{"$f":"[1]ACS_16_5YR_B25075_with_ann!AX265","v":0},{"$f":"[1]ACS_16_5YR_B25075_with_ann!AY265","v":11},{"$f":"[1]ACS_16_5YR_B25075_with_ann!AZ265","v":2},{"$f":"[1]ACS_16_5YR_B25075_with_ann!BA265","v":3},{"$f":"[1]ACS_16_5YR_B25075_with_ann!BB265","v":0},{"$f":"[1]ACS_16_5YR_B25075_with_ann!BC265","v":11},{"$f":"[1]ACS_16_5YR_B25075_with_ann!BD265","v":0},{"$f":"[1]ACS_16_5YR_B25075_with_ann!BE265","v":11},{"$f":"[1]ACS_16_5YR_B25077_with_ann!D266","v":173600},{"$f":"[1]ACS_16_5YR_B25077_with_ann!E266","v":14237},null,"Acworth"]
["0600000US3301941700",3301941700,"060","Lempster",{"$f":"[1]ACS_16_5YR_B25075_with_ann!D266","v":367},{"$f":"[1]ACS_16_5YR_B25075_with_ann!E266","v":61},{"$f":"[1]ACS_16_5YR_B25075_with_ann!F266","v":0},{"$f":"[1]ACS_16_5YR_B25075_with_ann!G266","v":11},{"$f":"[1]ACS_16_5YR_B25075_with_ann!H266","v":0},{"$f":"[1]ACS_16_5YR_B25075_with_ann!I266","v":11},{"$f":"[1]ACS_16_5YR_B25075_with_ann!J266","v":0},{"$f":"[1]ACS_16_5YR_B25075_with_ann!K266","v":11},{"$f":"[1]ACS_16_5YR_B25075_with_ann!L266","v":0},{"$f":"[1]ACS_16_5YR_B25075_with_ann!M266","v":11},{"$f":"[1]ACS_16_5YR_B25075_with_ann!N266","v":0},{"$f":"[1]ACS_16_5YR_B25075_with_ann!O266","v":11},{"$f":"[1]ACS_16_5YR_B25075_with_ann!P266","v":0},{"$f":"[1]ACS_16_5YR_B25075_with_ann!Q266","v":11},{"$f":"[1]ACS_16_5YR_B25075_with_ann!R266","v":0},{"$f":"[1]ACS_16_5YR_B25075_with_ann!S266","v":11},{"$f":"[1]ACS_16_5YR_B25075_with_ann!T266","v":0},{"$f":"[1]ACS_16_5YR_B25075_with_ann!U266","v":11},{"$f":"[1]ACS_16_5YR_B25075_with_ann!V266","v":8},{"$f":"[1]ACS_16_5YR_B25075_with_ann!W266","v":9},{"$f":"[1]ACS_16_5YR_B25075_with_ann!X266","v":2},{"$f":"[1]ACS_16_5YR_B25075_with_ann!Y266","v":4},{"$f":"[1]ACS_16_5YR_B25075_with_ann!Z266","v":0},{"$f":"[1]ACS_16_5YR_B25075_with_ann!AA266","v":11},{"$f":"[1]ACS_16_5YR_B25075_with_ann!AB266","v":0},{"$f":"[1]ACS_16_5YR_B25075_with_ann!AC266","v":11},{"$f":"[1]ACS_16_5YR_B25075_with_ann!AD266","v":27},{"$f":"[1]ACS_16_5YR_B25075_with_ann!AE266","v":23},{"$f":"[1]ACS_16_5YR_B25075_with_ann!AF266","v":29},{"$f":"[1]ACS_16_5YR_B25075_with_ann!AG266","v":23},{"$f":"[1]ACS_16_5YR_B25075_with_ann!AH266","v":42},{"$f":"[1]ACS_16_5YR_B25075_with_ann!AI266","v":23},{"$f":"[1]ACS_16_5YR_B25075_with_ann!AJ266","v":80},{"$f":"[1]ACS_16_5YR_B25075_with_ann!AK266","v":31},{"$f":"[1]ACS_16_5YR_B25075_with_ann!AL266","v":53},{"$f":"[1]ACS_16_5YR_B25075_with_ann!AM266","v":21},{"$f":"[1]ACS_16_5YR_B25075_with_ann!AN266","v":33},{"$f":"[1]ACS_16_5YR_B25075_with_ann!AO266","v":19},{"$f":"[1]ACS_16_5YR_B25075_with_ann!AP266","v":64},{"$f":"[1]ACS_16_5YR_B25075_with_ann!AQ266","v":36},{"$f":"[1]ACS_16_5YR_B25075_with_ann!AR266","v":12},{"$f":"[1]ACS_16_5YR_B25075_with_ann!AS266","v":14},{"$f":"[1]ACS_16_5YR_B25075_with_ann!AT266","v":8},{"$f":"[1]ACS_16_5YR_B25075_with_ann!AU266","v":6},{"$f":"[1]ACS_16_5YR_B25075_with_ann!AV266","v":3},{"$f":"[1]ACS_16_5YR_B25075_with_ann!AW266","v":4},{"$f":"[1]ACS_16_5YR_B25075_with_ann!AX266","v":0},{"$f":"[1]ACS_16_5YR_B25075_with_ann!AY266","v":11},{"$f":"[1]ACS_16_5YR_B25075_with_ann!AZ266","v":6},{"$f":"[1]ACS_16_5YR_B25075_with_ann!BA266","v":6},{"$f":"[1]ACS_16_5YR_B25075_with_ann!BB266","v":0},{"$f":"[1]ACS_16_5YR_B25075_with_ann!BC266","v":11},{"$f":"[1]ACS_16_5YR_B25075_with_ann!BD266","v":0},{"$f":"[1]ACS_16_5YR_B25075_with_ann!BE266","v":11},{"$f":"[1]ACS_16_5YR_B25077_with_ann!D267","v":145800},{"$f":"[1]ACS_16_5YR_B25077_with_ann!E267","v":10372},null,"Acworth"]
["0600000US3301952580",3301952580,"060","Newport",{"$f":"[1]ACS_16_5YR_B25075_with_ann!D267","v":1743},{"$f":"[1]ACS_16_5YR_B25075_with_ann!E267","v":186},{"$f":"[1]ACS_16_5YR_B25075_with_ann!F267","v":0},{"$f":"[1]ACS_16_5YR_B25075_with_ann!G267","v":16},{"$f":"[1]ACS_16_5YR_B25075_with_ann!H267","v":14},{"$f":"[1]ACS_16_5YR_B25075_with_ann!I267","v":22},{"$f":"[1]ACS_16_5YR_B25075_with_ann!J267","v":0},{"$f":"[1]ACS_16_5YR_B25075_with_ann!K267","v":16},{"$f":"[1]ACS_16_5YR_B25075_with_ann!L267","v":0},{"$f":"[1]ACS_16_5YR_B25075_with_ann!M267","v":16},{"$f":"[1]ACS_16_5YR_B25075_with_ann!N267","v":0},{"$f":"[1]ACS_16_5YR_B25075_with_ann!O267","v":16},{"$f":"[1]ACS_16_5YR_B25075_with_ann!P267","v":13},{"$f":"[1]ACS_16_5YR_B25075_with_ann!Q267","v":22},{"$f":"[1]ACS_16_5YR_B25075_with_ann!R267","v":0},{"$f":"[1]ACS_16_5YR_B25075_with_ann!S267","v":16},{"$f":"[1]ACS_16_5YR_B25075_with_ann!T267","v":78},{"$f":"[1]ACS_16_5YR_B25075_with_ann!U267","v":74},{"$f":"[1]ACS_16_5YR_B25075_with_ann!V267","v":43},{"$f":"[1]ACS_16_5YR_B25075_with_ann!W267","v":40},{"$f":"[1]ACS_16_5YR_B25075_with_ann!X267","v":53},{"$f":"[1]ACS_16_5YR_B25075_with_ann!Y267","v":72},{"$f":"[1]ACS_16_5YR_B25075_with_ann!Z267","v":71},{"$f":"[1]ACS_16_5YR_B25075_with_ann!AA267","v":55},{"$f":"[1]ACS_16_5YR_B25075_with_ann!AB267","v":14},{"$f":"[1]ACS_16_5YR_B25075_with_ann!AC267","v":21},{"$f":"[1]ACS_16_5YR_B25075_with_ann!AD267","v":35},{"$f":"[1]ACS_16_5YR_B25075_with_ann!AE267","v":35},{"$f":"[1]ACS_16_5YR_B25075_with_ann!AF267","v":252},{"$f":"[1]ACS_16_5YR_B25075_with_ann!AG267","v":115},{"$f":"[1]ACS_16_5YR_B25075_with_ann!AH267","v":359},{"$f":"[1]ACS_16_5YR_B25075_with_ann!AI267","v":127},{"$f":"[1]ACS_16_5YR_B25075_with_ann!AJ267","v":233},{"$f":"[1]ACS_16_5YR_B25075_with_ann!AK267","v":81},{"$f":"[1]ACS_16_5YR_B25075_with_ann!AL267","v":147},{"$f":"[1]ACS_16_5YR_B25075_with_ann!AM267","v":87},{"$f":"[1]ACS_16_5YR_B25075_with_ann!AN267","v":177},{"$f":"[1]ACS_16_5YR_B25075_with_ann!AO267","v":100},{"$f":"[1]ACS_16_5YR_B25075_with_ann!AP267","v":77},{"$f":"[1]ACS_16_5YR_B25075_with_ann!AQ267","v":48},{"$f":"[1]ACS_16_5YR_B25075_with_ann!AR267","v":115},{"$f":"[1]ACS_16_5YR_B25075_with_ann!AS267","v":91},{"$f":"[1]ACS_16_5YR_B25075_with_ann!AT267","v":0},{"$f":"[1]ACS_16_5YR_B25075_with_ann!AU267","v":16},{"$f":"[1]ACS_16_5YR_B25075_with_ann!AV267","v":62},{"$f":"[1]ACS_16_5YR_B25075_with_ann!AW267","v":56},{"$f":"[1]ACS_16_5YR_B25075_with_ann!AX267","v":0},{"$f":"[1]ACS_16_5YR_B25075_with_ann!AY267","v":16},{"$f":"[1]ACS_16_5YR_B25075_with_ann!AZ267","v":0},{"$f":"[1]ACS_16_5YR_B25075_with_ann!BA267","v":16},{"$f":"[1]ACS_16_5YR_B25075_with_ann!BB267","v":0},{"$f":"[1]ACS_16_5YR_B25075_with_ann!BC267","v":16},{"$f":"[1]ACS_16_5YR_B25075_with_ann!BD267","v":0},{"$f":"[1]ACS_16_5YR_B25075_with_ann!BE267","v":16},{"$f":"[1]ACS_16_5YR_B25077_with_ann!D268","v":318900},{"$f":"[1]ACS_16_5YR_B25077_with_ann!E268","v":22835},null,"Acworth"]
["0600000US3301962340",3301962340,"060","Plainfield",{"$f":"[1]ACS_16_5YR_B25075_with_ann!D268","v":803},{"$f":"[1]ACS_16_5YR_B25075_with_ann!E268","v":78},{"$f":"[1]ACS_16_5YR_B25075_with_ann!F268","v":15},{"$f":"[1]ACS_16_5YR_B25075_with_ann!G268","v":11},{"$f":"[1]ACS_16_5YR_B25075_with_ann!H268","v":0},{"$f":"[1]ACS_16_5YR_B25075_with_ann!I268","v":11},{"$f":"[1]ACS_16_5YR_B25075_with_ann!J268","v":0},{"$f":"[1]ACS_16_5YR_B25075_with_ann!K268","v":11},{"$f":"[1]ACS_16_5YR_B25075_with_ann!L268","v":5},{"$f":"[1]ACS_16_5YR_B25075_with_ann!M268","v":7},{"$f":"[1]ACS_16_5YR_B25075_with_ann!N268","v":5},{"$f":"[1]ACS_16_5YR_B25075_with_ann!O268","v":7},{"$f":"[1]ACS_16_5YR_B25075_with_ann!P268","v":0},{"$f":"[1]ACS_16_5YR_B25075_with_ann!Q268","v":11},{"$f":"[1]ACS_16_5YR_B25075_with_ann!R268","v":0},{"$f":"[1]ACS_16_5YR_B25075_with_ann!S268","v":11},{"$f":"[1]ACS_16_5YR_B25075_with_ann!T268","v":0},{"$f":"[1]ACS_16_5YR_B25075_with_ann!U268","v":11},{"$f":"[1]ACS_16_5YR_B25075_with_ann!V268","v":0},{"$f":"[1]ACS_16_5YR_B25075_with_ann!W268","v":11},{"$f":"[1]ACS_16_5YR_B25075_with_ann!X268","v":0},{"$f":"[1]ACS_16_5YR_B25075_with_ann!Y268","v":11},{"$f":"[1]ACS_16_5YR_B25075_with_ann!Z268","v":5},{"$f":"[1]ACS_16_5YR_B25075_with_ann!AA268","v":7},{"$f":"[1]ACS_16_5YR_B25075_with_ann!AB268","v":0},{"$f":"[1]ACS_16_5YR_B25075_with_ann!AC268","v":11},{"$f":"[1]ACS_16_5YR_B25075_with_ann!AD268","v":4},{"$f":"[1]ACS_16_5YR_B25075_with_ann!AE268","v":7},{"$f":"[1]ACS_16_5YR_B25075_with_ann!AF268","v":43},{"$f":"[1]ACS_16_5YR_B25075_with_ann!AG268","v":33},{"$f":"[1]ACS_16_5YR_B25075_with_ann!AH268","v":25},{"$f":"[1]ACS_16_5YR_B25075_with_ann!AI268","v":25},{"$f":"[1]ACS_16_5YR_B25075_with_ann!AJ268","v":29},{"$f":"[1]ACS_16_5YR_B25075_with_ann!AK268","v":19},{"$f":"[1]ACS_16_5YR_B25075_with_ann!AL268","v":16},{"$f":"[1]ACS_16_5YR_B25075_with_ann!AM268","v":15},{"$f":"[1]ACS_16_5YR_B25075_with_ann!AN268","v":112},{"$f":"[1]ACS_16_5YR_B25075_with_ann!AO268","v":42},{"$f":"[1]ACS_16_5YR_B25075_with_ann!AP268","v":101},{"$f":"[1]ACS_16_5YR_B25075_with_ann!AQ268","v":38},{"$f":"[1]ACS_16_5YR_B25075_with_ann!AR268","v":220},{"$f":"[1]ACS_16_5YR_B25075_with_ann!AS268","v":65},{"$f":"[1]ACS_16_5YR_B25075_with_ann!AT268","v":72},{"$f":"[1]ACS_16_5YR_B25075_with_ann!AU268","v":27},{"$f":"[1]ACS_16_5YR_B25075_with_ann!AV268","v":118},{"$f":"[1]ACS_16_5YR_B25075_with_ann!AW268","v":47},{"$f":"[1]ACS_16_5YR_B25075_with_ann!AX268","v":23},{"$f":"[1]ACS_16_5YR_B25075_with_ann!AY268","v":14},{"$f":"[1]ACS_16_5YR_B25075_with_ann!AZ268","v":10},{"$f":"[1]ACS_16_5YR_B25075_with_ann!BA268","v":10},{"$f":"[1]ACS_16_5YR_B25075_with_ann!BB268","v":0},{"$f":"[1]ACS_16_5YR_B25075_with_ann!BC268","v":11},{"$f":"[1]ACS_16_5YR_B25075_with_ann!BD268","v":0},{"$f":"[1]ACS_16_5YR_B25075_with_ann!BE268","v":11},{"$f":"[1]ACS_16_5YR_B25077_with_ann!D269","v":259400},{"$f":"[1]ACS_16_5YR_B25077_with_ann!E269","v":39212},null,"Acworth"]
["0600000US3301972740",3301972740,"060","Springfield",{"$f":"[1]ACS_16_5YR_B25075_with_ann!D269","v":398},{"$f":"[1]ACS_16_5YR_B25075_with_ann!E269","v":71},{"$f":"[1]ACS_16_5YR_B25075_with_ann!F269","v":0},{"$f":"[1]ACS_16_5YR_B25075_with_ann!G269","v":11},{"$f":"[1]ACS_16_5YR_B25075_with_ann!H269","v":3},{"$f":"[1]ACS_16_5YR_B25075_with_ann!I269","v":5},{"$f":"[1]ACS_16_5YR_B25075_with_ann!J269","v":0},{"$f":"[1]ACS_16_5YR_B25075_with_ann!K269","v":11},{"$f":"[1]ACS_16_5YR_B25075_with_ann!L269","v":0},{"$f":"[1]ACS_16_5YR_B25075_with_ann!M269","v":11},{"$f":"[1]ACS_16_5YR_B25075_with_ann!N269","v":0},{"$f":"[1]ACS_16_5YR_B25075_with_ann!O269","v":11},{"$f":"[1]ACS_16_5YR_B25075_with_ann!P269","v":0},{"$f":"[1]ACS_16_5YR_B25075_with_ann!Q269","v":11},{"$f":"[1]ACS_16_5YR_B25075_with_ann!R269","v":0},{"$f":"[1]ACS_16_5YR_B25075_with_ann!S269","v":11},{"$f":"[1]ACS_16_5YR_B25075_with_ann!T269","v":13},{"$f":"[1]ACS_16_5YR_B25075_with_ann!U269","v":16},{"$f":"[1]ACS_16_5YR_B25075_with_ann!V269","v":0},{"$f":"[1]ACS_16_5YR_B25075_with_ann!W269","v":11},{"$f":"[1]ACS_16_5YR_B25075_with_ann!X269","v":0},{"$f":"[1]ACS_16_5YR_B25075_with_ann!Y269","v":11},{"$f":"[1]ACS_16_5YR_B25075_with_ann!Z269","v":0},{"$f":"[1]ACS_16_5YR_B25075_with_ann!AA269","v":11},{"$f":"[1]ACS_16_5YR_B25075_with_ann!AB269","v":3},{"$f":"[1]ACS_16_5YR_B25075_with_ann!AC269","v":5},{"$f":"[1]ACS_16_5YR_B25075_with_ann!AD269","v":5},{"$f":"[1]ACS_16_5YR_B25075_with_ann!AE269","v":8},{"$f":"[1]ACS_16_5YR_B25075_with_ann!AF269","v":18},{"$f":"[1]ACS_16_5YR_B25075_with_ann!AG269","v":17},{"$f":"[1]ACS_16_5YR_B25075_with_ann!AH269","v":22},{"$f":"[1]ACS_16_5YR_B25075_with_ann!AI269","v":21},{"$f":"[1]ACS_16_5YR_B25075_with_ann!AJ269","v":23},{"$f":"[1]ACS_16_5YR_B25075_with_ann!AK269","v":20},{"$f":"[1]ACS_16_5YR_B25075_with_ann!AL269","v":60},{"$f":"[1]ACS_16_5YR_B25075_with_ann!AM269","v":29},{"$f":"[1]ACS_16_5YR_B25075_with_ann!AN269","v":43},{"$f":"[1]ACS_16_5YR_B25075_with_ann!AO269","v":23},{"$f":"[1]ACS_16_5YR_B25075_with_ann!AP269","v":48},{"$f":"[1]ACS_16_5YR_B25075_with_ann!AQ269","v":26},{"$f":"[1]ACS_16_5YR_B25075_with_ann!AR269","v":78},{"$f":"[1]ACS_16_5YR_B25075_with_ann!AS269","v":36},{"$f":"[1]ACS_16_5YR_B25075_with_ann!AT269","v":35},{"$f":"[1]ACS_16_5YR_B25075_with_ann!AU269","v":19},{"$f":"[1]ACS_16_5YR_B25075_with_ann!AV269","v":37},{"$f":"[1]ACS_16_5YR_B25075_with_ann!AW269","v":23},{"$f":"[1]ACS_16_5YR_B25075_with_ann!AX269","v":0},{"$f":"[1]ACS_16_5YR_B25075_with_ann!AY269","v":11},{"$f":"[1]ACS_16_5YR_B25075_with_ann!AZ269","v":0},{"$f":"[1]ACS_16_5YR_B25075_with_ann!BA269","v":11},{"$f":"[1]ACS_16_5YR_B25075_with_ann!BB269","v":10},{"$f":"[1]ACS_16_5YR_B25075_with_ann!BC269","v":16},{"$f":"[1]ACS_16_5YR_B25075_with_ann!BD269","v":0},{"$f":"[1]ACS_16_5YR_B25075_with_ann!BE269","v":11},{"$f":"[1]ACS_16_5YR_B25077_with_ann!D270","v":298500},{"$f":"[1]ACS_16_5YR_B25077_with_ann!E270","v":37152},null,"Acworth"]
["0600000US3301975060",3301975060,"060","Sunapee",{"$f":"[1]ACS_16_5YR_B25075_with_ann!D270","v":1044},{"$f":"[1]ACS_16_5YR_B25075_with_ann!E270","v":138},{"$f":"[1]ACS_16_5YR_B25075_with_ann!F270","v":4},{"$f":"[1]ACS_16_5YR_B25075_with_ann!G270","v":8},{"$f":"[1]ACS_16_5YR_B25075_with_ann!H270","v":8},{"$f":"[1]ACS_16_5YR_B25075_with_ann!I270","v":13},{"$f":"[1]ACS_16_5YR_B25075_with_ann!J270","v":0},{"$f":"[1]ACS_16_5YR_B25075_with_ann!K270","v":11},{"$f":"[1]ACS_16_5YR_B25075_with_ann!L270","v":0},{"$f":"[1]ACS_16_5YR_B25075_with_ann!M270","v":11},{"$f":"[1]ACS_16_5YR_B25075_with_ann!N270","v":0},{"$f":"[1]ACS_16_5YR_B25075_with_ann!O270","v":11},{"$f":"[1]ACS_16_5YR_B25075_with_ann!P270","v":0},{"$f":"[1]ACS_16_5YR_B25075_with_ann!Q270","v":11},{"$f":"[1]ACS_16_5YR_B25075_with_ann!R270","v":0},{"$f":"[1]ACS_16_5YR_B25075_with_ann!S270","v":11},{"$f":"[1]ACS_16_5YR_B25075_with_ann!T270","v":0},{"$f":"[1]ACS_16_5YR_B25075_with_ann!U270","v":11},{"$f":"[1]ACS_16_5YR_B25075_with_ann!V270","v":9},{"$f":"[1]ACS_16_5YR_B25075_with_ann!W270","v":14},{"$f":"[1]ACS_16_5YR_B25075_with_ann!X270","v":0},{"$f":"[1]ACS_16_5YR_B25075_with_ann!Y270","v":11},{"$f":"[1]ACS_16_5YR_B25075_with_ann!Z270","v":0},{"$f":"[1]ACS_16_5YR_B25075_with_ann!AA270","v":11},{"$f":"[1]ACS_16_5YR_B25075_with_ann!AB270","v":0},{"$f":"[1]ACS_16_5YR_B25075_with_ann!AC270","v":11},{"$f":"[1]ACS_16_5YR_B25075_with_ann!AD270","v":0},{"$f":"[1]ACS_16_5YR_B25075_with_ann!AE270","v":11},{"$f":"[1]ACS_16_5YR_B25075_with_ann!AF270","v":33},{"$f":"[1]ACS_16_5YR_B25075_with_ann!AG270","v":28},{"$f":"[1]ACS_16_5YR_B25075_with_ann!AH270","v":5},{"$f":"[1]ACS_16_5YR_B25075_with_ann!AI270","v":8},{"$f":"[1]ACS_16_5YR_B25075_with_ann!AJ270","v":118},{"$f":"[1]ACS_16_5YR_B25075_with_ann!AK270","v":69},{"$f":"[1]ACS_16_5YR_B25075_with_ann!AL270","v":52},{"$f":"[1]ACS_16_5YR_B25075_with_ann!AM270","v":48},{"$f":"[1]ACS_16_5YR_B25075_with_ann!AN270","v":93},{"$f":"[1]ACS_16_5YR_B25075_with_ann!AO270","v":49},{"$f":"[1]ACS_16_5YR_B25075_with_ann!AP270","v":206},{"$f":"[1]ACS_16_5YR_B25075_with_ann!AQ270","v":80},{"$f":"[1]ACS_16_5YR_B25075_with_ann!AR270","v":178},{"$f":"[1]ACS_16_5YR_B25075_with_ann!AS270","v":72},{"$f":"[1]ACS_16_5YR_B25075_with_ann!AT270","v":148},{"$f":"[1]ACS_16_5YR_B25075_with_ann!AU270","v":77},{"$f":"[1]ACS_16_5YR_B25075_with_ann!AV270","v":90},{"$f":"[1]ACS_16_5YR_B25075_with_ann!AW270","v":59},{"$f":"[1]ACS_16_5YR_B25075_with_ann!AX270","v":41},{"$f":"[1]ACS_16_5YR_B25075_with_ann!AY270","v":25},{"$f":"[1]ACS_16_5YR_B25075_with_ann!AZ270","v":37},{"$f":"[1]ACS_16_5YR_B25075_with_ann!BA270","v":23},{"$f":"[1]ACS_16_5YR_B25075_with_ann!BB270","v":22},{"$f":"[1]ACS_16_5YR_B25075_with_ann!BC270","v":23},{"$f":"[1]ACS_16_5YR_B25075_with_ann!BD270","v":0},{"$f":"[1]ACS_16_5YR_B25075_with_ann!BE270","v":11},{"$f":"[1]ACS_16_5YR_B25077_with_ann!D271","v":186400},{"$f":"[1]ACS_16_5YR_B25077_with_ann!E271","v":8146},null,"Acworth"]
["0600000US3301977940",3301977940,"060","Unity",{"$f":"[1]ACS_16_5YR_B25075_with_ann!D271","v":536},{"$f":"[1]ACS_16_5YR_B25075_with_ann!E271","v":56},{"$f":"[1]ACS_16_5YR_B25075_with_ann!F271","v":3},{"$f":"[1]ACS_16_5YR_B25075_with_ann!G271","v":4},{"$f":"[1]ACS_16_5YR_B25075_with_ann!H271","v":0},{"$f":"[1]ACS_16_5YR_B25075_with_ann!I271","v":11},{"$f":"[1]ACS_16_5YR_B25075_with_ann!J271","v":3},{"$f":"[1]ACS_16_5YR_B25075_with_ann!K271","v":4},{"$f":"[1]ACS_16_5YR_B25075_with_ann!L271","v":0},{"$f":"[1]ACS_16_5YR_B25075_with_ann!M271","v":11},{"$f":"[1]ACS_16_5YR_B25075_with_ann!N271","v":0},{"$f":"[1]ACS_16_5YR_B25075_with_ann!O271","v":11},{"$f":"[1]ACS_16_5YR_B25075_with_ann!P271","v":0},{"$f":"[1]ACS_16_5YR_B25075_with_ann!Q271","v":11},{"$f":"[1]ACS_16_5YR_B25075_with_ann!R271","v":4},{"$f":"[1]ACS_16_5YR_B25075_with_ann!S271","v":5},{"$f":"[1]ACS_16_5YR_B25075_with_ann!T271","v":9},{"$f":"[1]ACS_16_5YR_B25075_with_ann!U271","v":13},{"$f":"[1]ACS_16_5YR_B25075_with_ann!V271","v":0},{"$f":"[1]ACS_16_5YR_B25075_with_ann!W271","v":11},{"$f":"[1]ACS_16_5YR_B25075_with_ann!X271","v":3},{"$f":"[1]ACS_16_5YR_B25075_with_ann!Y271","v":5},{"$f":"[1]ACS_16_5YR_B25075_with_ann!Z271","v":14},{"$f":"[1]ACS_16_5YR_B25075_with_ann!AA271","v":9},{"$f":"[1]ACS_16_5YR_B25075_with_ann!AB271","v":27},{"$f":"[1]ACS_16_5YR_B25075_with_ann!AC271","v":14},{"$f":"[1]ACS_16_5YR_B25075_with_ann!AD271","v":0},{"$f":"[1]ACS_16_5YR_B25075_with_ann!AE271","v":11},{"$f":"[1]ACS_16_5YR_B25075_with_ann!AF271","v":57},{"$f":"[1]ACS_16_5YR_B25075_with_ann!AG271","v":30},{"$f":"[1]ACS_16_5YR_B25075_with_ann!AH271","v":47},{"$f":"[1]ACS_16_5YR_B25075_with_ann!AI271","v":24},{"$f":"[1]ACS_16_5YR_B25075_with_ann!AJ271","v":52},{"$f":"[1]ACS_16_5YR_B25075_with_ann!AK271","v":23},{"$f":"[1]ACS_16_5YR_B25075_with_ann!AL271","v":107},{"$f":"[1]ACS_16_5YR_B25075_with_ann!AM271","v":37},{"$f":"[1]ACS_16_5YR_B25075_with_ann!AN271","v":80},{"$f":"[1]ACS_16_5YR_B25075_with_ann!AO271","v":31},{"$f":"[1]ACS_16_5YR_B25075_with_ann!AP271","v":65},{"$f":"[1]ACS_16_5YR_B25075_with_ann!AQ271","v":25},{"$f":"[1]ACS_16_5YR_B25075_with_ann!AR271","v":49},{"$f":"[1]ACS_16_5YR_B25075_with_ann!AS271","v":18},{"$f":"[1]ACS_16_5YR_B25075_with_ann!AT271","v":10},{"$f":"[1]ACS_16_5YR_B25075_with_ann!AU271","v":9},{"$f":"[1]ACS_16_5YR_B25075_with_ann!AV271","v":6},{"$f":"[1]ACS_16_5YR_B25075_with_ann!AW271","v":6},{"$f":"[1]ACS_16_5YR_B25075_with_ann!AX271","v":0},{"$f":"[1]ACS_16_5YR_B25075_with_ann!AY271","v":11},{"$f":"[1]ACS_16_5YR_B25075_with_ann!AZ271","v":0},{"$f":"[1]ACS_16_5YR_B25075_with_ann!BA271","v":11},{"$f":"[1]ACS_16_5YR_B25075_with_ann!BB271","v":0},{"$f":"[1]ACS_16_5YR_B25075_with_ann!BC271","v":11},{"$f":"[1]ACS_16_5YR_B25075_with_ann!BD271","v":0},{"$f":"[1]ACS_16_5YR_B25075_with_ann!BE271","v":11},{"$f":"[1]ACS_16_5YR_B25077_with_ann!D272","v":212900},{"$f":"[1]ACS_16_5YR_B25077_with_ann!E272","v":17753},null,"Acworth"]
["0600000US3301978980",3301978980,"060","Washington",{"$f":"[1]ACS_16_5YR_B25075_with_ann!D272","v":499},{"$f":"[1]ACS_16_5YR_B25075_with_ann!E272","v":81},{"$f":"[1]ACS_16_5YR_B25075_with_ann!F272","v":0},{"$f":"[1]ACS_16_5YR_B25075_with_ann!G272","v":11},{"$f":"[1]ACS_16_5YR_B25075_with_ann!H272","v":0},{"$f":"[1]ACS_16_5YR_B25075_with_ann!I272","v":11},{"$f":"[1]ACS_16_5YR_B25075_with_ann!J272","v":0},{"$f":"[1]ACS_16_5YR_B25075_with_ann!K272","v":11},{"$f":"[1]ACS_16_5YR_B25075_with_ann!L272","v":0},{"$f":"[1]ACS_16_5YR_B25075_with_ann!M272","v":11},{"$f":"[1]ACS_16_5YR_B25075_with_ann!N272","v":9},{"$f":"[1]ACS_16_5YR_B25075_with_ann!O272","v":14},{"$f":"[1]ACS_16_5YR_B25075_with_ann!P272","v":0},{"$f":"[1]ACS_16_5YR_B25075_with_ann!Q272","v":11},{"$f":"[1]ACS_16_5YR_B25075_with_ann!R272","v":0},{"$f":"[1]ACS_16_5YR_B25075_with_ann!S272","v":11},{"$f":"[1]ACS_16_5YR_B25075_with_ann!T272","v":0},{"$f":"[1]ACS_16_5YR_B25075_with_ann!U272","v":11},{"$f":"[1]ACS_16_5YR_B25075_with_ann!V272","v":9},{"$f":"[1]ACS_16_5YR_B25075_with_ann!W272","v":15},{"$f":"[1]ACS_16_5YR_B25075_with_ann!X272","v":11},{"$f":"[1]ACS_16_5YR_B25075_with_ann!Y272","v":13},{"$f":"[1]ACS_16_5YR_B25075_with_ann!Z272","v":11},{"$f":"[1]ACS_16_5YR_B25075_with_ann!AA272","v":17},{"$f":"[1]ACS_16_5YR_B25075_with_ann!AB272","v":0},{"$f":"[1]ACS_16_5YR_B25075_with_ann!AC272","v":11},{"$f":"[1]ACS_16_5YR_B25075_with_ann!AD272","v":12},{"$f":"[1]ACS_16_5YR_B25075_with_ann!AE272","v":15},{"$f":"[1]ACS_16_5YR_B25075_with_ann!AF272","v":13},{"$f":"[1]ACS_16_5YR_B25075_with_ann!AG272","v":11},{"$f":"[1]ACS_16_5YR_B25075_with_ann!AH272","v":39},{"$f":"[1]ACS_16_5YR_B25075_with_ann!AI272","v":20},{"$f":"[1]ACS_16_5YR_B25075_with_ann!AJ272","v":84},{"$f":"[1]ACS_16_5YR_B25075_with_ann!AK272","v":36},{"$f":"[1]ACS_16_5YR_B25075_with_ann!AL272","v":24},{"$f":"[1]ACS_16_5YR_B25075_with_ann!AM272","v":11},{"$f":"[1]ACS_16_5YR_B25075_with_ann!AN272","v":145},{"$f":"[1]ACS_16_5YR_B25075_with_ann!AO272","v":71},{"$f":"[1]ACS_16_5YR_B25075_with_ann!AP272","v":35},{"$f":"[1]ACS_16_5YR_B25075_with_ann!AQ272","v":18},{"$f":"[1]ACS_16_5YR_B25075_with_ann!AR272","v":76},{"$f":"[1]ACS_16_5YR_B25075_with_ann!AS272","v":35},{"$f":"[1]ACS_16_5YR_B25075_with_ann!AT272","v":18},{"$f":"[1]ACS_16_5YR_B25075_with_ann!AU272","v":10},{"$f":"[1]ACS_16_5YR_B25075_with_ann!AV272","v":13},{"$f":"[1]ACS_16_5YR_B25075_with_ann!AW272","v":9},{"$f":"[1]ACS_16_5YR_B25075_with_ann!AX272","v":0},{"$f":"[1]ACS_16_5YR_B25075_with_ann!AY272","v":11},{"$f":"[1]ACS_16_5YR_B25075_with_ann!AZ272","v":0},{"$f":"[1]ACS_16_5YR_B25075_with_ann!BA272","v":11},{"$f":"[1]ACS_16_5YR_B25075_with_ann!BB272","v":0},{"$f":"[1]ACS_16_5YR_B25075_with_ann!BC272","v":11},{"$f":"[1]ACS_16_5YR_B25075_with_ann!BD272","v":0},{"$f":"[1]ACS_16_5YR_B25075_with_ann!BE272","v":11},{"$f":"[1]ACS_16_5YR_B25077_with_ann!D273","v":0},{"$f":"[1]ACS_16_5YR_B25077_with_ann!E273","v":0},null,"Acworth"]
[]
[null,null,null,null,{"$f":"$D$3","v":"Acworth"},null,{"$f":"$D$4","v":"Charlestown"},null,{"$f":"$D$5","v":"Claremont"},null,{"$f":"$D$6","v":"Cornish"},null,{"$f":"$D$7","v":"Croydon"},null,{"$f":"$D$8","v":"Goshen"},null,{"$f":"$D$9","v":"Grantham"},null,{"$f":"$D$10","v":"Langdon"},null,{"$f":"$D$11","v":"Lempster"},null,{"$f":"$D$12","v":"Newport"},null,{"$f":"$D$13","v":"Plainfield"},null,{"$f":"$D$14","v":"Springfield"},null,{"$f":"$D$15","v":"Sunapee"},null,{"$f":"$D$16","v":"Unity"},null,{"$f":"$D$17","v":"Washington"}]
[null,null,null,null,"Estimate","Margin Of Error","Estimate","Margin Of Error","Estimate","Margin Of Error","Estimate","Margin Of Error","Estimate","Margin Of Error","Estimate","Margin Of Error","Estimate","Margin Of Error","Estimate","Margin Of Error","Estimate","Margin Of Error","Estimate","Margin Of Error","Estimate","Margin Of Error","Estimate","Margin Of Error","Estimate","Margin Of Error",null,"Estimate","Margin Of Error"]
["Table B27075",null,null,"Estimate Total:",340,50,1584,209,2921,257,686,79,257,53,223,35,1082,164,218,44,367,61,1743,186,803,78,398,71,1044,138,536,56,499,81]
[null,null,null,"Estimate  Total: - Less than $10,000",0,11,35,40,18,27,0,11,0,11,0,11,0,11,0,11,0,11,0,16,15,11,0,11,4,8,3,4,0,11]
[null,null,null,"Estimate  Total: - $10,000 to $14,999",3,4,72,69,11,18,0,11,4,6,0,11,0,11,0,11,0,11,14,22,0,11,3,5,8,13,0,11,0,11]
[null,null,null,"Estimate  Total: - $15,000 to $19,999",2,3,60,72,23,35,2,4,0,11,0,11,0,11,0,11,0,11,0,16,0,11,0,11,0,11,3,4,0,11]
[null,null,null,"Estimate  Total: - $20,000 to $24,999",0,11,7,13,0,18,0,11,0,11,3,4,0,11,0,11,0,11,0,16,5,7,0,11,0,11,0,11,0,11]
[null,null,null,"Estimate  Total: - $25,000 to $29,999",0,11,28,32,10,17,0,11,0,11,0,11,0,11,0,11,0,11,0,16,5,7,0,11,0,11,0,11,9,14]
[null,null,null,"Estimate  Total: - $30,000 to $34,999",0,11,62,49,26,33,0,11,1,3,0,11,0,11,0,11,0,11,13,22,0,11,0,11,0,11,0,11,0,11]
[null,null,null,"Estimate  Total: - $35,000 to $39,999",0,11,13,23,0,18,0,11,0,11,0,11,0,11,0,11,0,11,0,16,0,11,0,11,0,11,4,5,0,11]
[null,null,null,"Estimate  Total: - $40,000 to $49,999",7,11,47,54,56,42,0,11,2,3,0,11,0,11,0,11,0,11,78,74,0,11,13,16,0,11,9,13,0,11]
[null,null,null,"Estimate  Total: - $50,000 to $59,999",0,11,48,63,52,47,0,11,0,11,2,5,0,11,0,11,8,9,43,40,0,11,0,11,9,14,0,11,9,15]
[null,null,null,"Estimate  Total: - $60,000 to $69,999",6,5,120,99,87,54,14,18,0,11,6,9,0,11,3,4,2,4,53,72,0,11,0,11,0,11,3,5,11,13]
[null,null,null,"Estimate  Total: - $70,000 to $79,999",8,10,160,117,103,69,12,11,2,4,9,11,0,11,2,3,0,11,71,55,5,7,0,11,0,11,14,9,11,17]
[null,null,null,"Estimate  Total: - $80,000 to $89,999",5,5,64,56,182,85,4,6,6,8,0,11,0,11,0,11,0,11,14,21,0,11,3,5,0,11,27,14,0,11]
[null,null,null,"Estimate  Total: - $90,000 to $99,999",5,5,12,21,182,113,0,11,10,9,5,5,0,11,10,10,27,23,35,35,4,7,5,8,0,11,0,11,12,15]
[null,null,null,"Estimate  Total: - $100,000 to $124,999",47,24,147,88,489,117,26,17,12,13,10,7,33,33,15,13,29,23,252,115,43,33,18,17,33,28,57,30,13,11]
[null,null,null,"Estimate  Total: - $125,000 to $149,999",25,14,138,93,655,144,23,20,23,21,35,19,96,85,24,15,42,23,359,127,25,25,22,21,5,8,47,24,39,20]
[null,null,null,"Estimate  Total: - $150,000 to $174,999",58,23,149,81,493,143,37,18,21,12,26,11,73,62,16,12,80,31,233,81,29,19,23,20,118,69,52,23,84,36]
[null,null,null,"Estimate  Total: - $175,000 to $199,999",25,17,114,82,138,76,56,25,23,15,28,18,63,83,30,15,53,21,147,87,16,15,60,29,52,48,107,37,24,11]
[null,null,null,"Estimate  Total: - $200,000 to $249,999",44,23,216,106,226,93,123,40,46,19,34,17,132,80,40,23,33,19,177,100,112,42,43,23,93,49,80,31,145,71]
[null,null,null,"Estimate  Total: - $250,000 to $299,999",47,21,61,72,90,48,99,35,52,29,35,20,136,70,45,18,64,36,77,48,101,38,48,26,206,80,65,25,35,18]
[null,null,null,"Estimate  Total: - $300,000 to $399,999",21,16,8,13,32,38,176,45,26,17,22,14,284,110,15,9,12,14,115,91,220,65,78,36,178,72,49,18,76,35]
[null,null,null,"Estimate  Total: - $400,000 to $499,999",26,19,23,36,32,49,38,18,22,13,6,5,151,89,10,9,8,6,0,16,72,27,35,19,148,77,10,9,18,10]
[null,null,null,"Estimate  Total: - $500,000 to $749,999",7,6,0,16,0,18,53,30,5,6,0,11,79,51,6,5,3,4,62,56,118,47,37,23,90,59,6,6,13,9]
[null,null,null,"Estimate  Total: - $750,000 to $999,999",2,3,0,16,0,18,6,7,0,11,2,4,0,11,0,11,0,11,0,16,23,14,0,11,41,25,0,11,0,11]
[null,null,null,"Estimate  Total: - $1,000,000 to $1,499,999",2,3,0,16,0,18,3,5,0,11,0,11,35,56,2,3,6,6,0,16,10,10,0,11,37,23,0,11,0,11]
[null,null,null,"Estimate  Total: - $1,500,000 to $1,999,999",0,11,0,16,16,24,11,9,0,11,0,11,0,11,0,11,0,11,0,16,0,11,10,16,22,23,0,11,0,11]
[null,null,null,"Estimate  Total: - $2,000,000 or more",0,11,0,16,0,18,3,4,2,4,0,11,0,11,0,11,0,11,0,16,0,11,0,11,0,11,0,11,0,11]
[]
[]
["Table B25077",null,null,null,{"$f":"$D$3","v":"Acworth"},null,{"$f":"$D$4","v":"Charlestown"},null,{"$f":"$D$5","v":"Claremont"},null,{"$f":"$D$6","v":"Cornish"},null,{"$f":"$D$7","v":"Croydon"},null,{"$f":"$D$8","v":"Goshen"},null,{"$f":"$D$9","v":"Grantham"},null,{"$f":"$D$10","v":"Langdon"},null,{"$f":"$D$11","v":"Lempster"},null,{"$f":"$D$12","v":"Newport"},null,{"$f":"$D$13","v":"Plainfield"},null,{"$f":"$D$14","v":"Springfield"},null,{"$f":"$D$15","v":"Sunapee"},null,{"$f":"$D$16","v":"Unity"},null,{"$f":"$D$17","v":"Washington"}]
[null,null,null,null,"Estimate","Margin Of Error","Estimate","Margin Of Error","Estimate","Margin Of Error","Estimate","Margin Of Error","Estimate","Margin Of Error","Estimate","Margin Of Error","Estimate","Margin Of Error","Estimate","Margin Of Error","Estimate","Margin Of Error","Estimate","Margin Of Error","Estimate","Margin Of Error","Estimate","Margin Of Error","Estimate","Margin Of Error",null,"Estimate","Margin Of Error"]
[null,null,"Estimate Median value (dollars)","Estimate Median value (dollars)",179000,24139,110900,30678,133500,5655,226600,28057,188800,19957,302800,36443,211300,25490,173600,14237,145800,10372,318900,22835,259400,39212,298500,37152,186400,8146,212900,17753,0,0]

{"sheet":"PlaceOfBirthAndPriorRes","index":93,"n_rows":57,"n_cols":16,"rows_kept":57,"cut":false,"hidden":true,"merged":[[40,11,40,13],[53,2,54,14],[4,3,4,5],[4,7,4,9],[40,3,40,5],[40,7,40,9],[4,11,4,13],[4,14,4,15],[40,14,40,15]]}
[]
[null,null,{"$f":"CntyDataLink!A50","v":"Acworth"}]
[null,null,"SOCIAL CHARACTERISTICS"]
[]
[null,null,"Place of Birth","2005-2009",null,null,null,"2009-2013",null,null,null,"2015-2019",null,null,"Statistically Significant Change "]
[null,null,"Universe: Total Population","Estimate","Margin of Error",null,null,"Estimate","Margin of Error",null,null,"Estimate","Margin of Error",null,"2009-2019","2014-2019"]
[null,null,"  Total:",{"$f":"CntyDataLinkPrior10YearEstimate!$B$136","v":13086},{"$f":"CntyDataLinkPrior10YearEstimate!$C$136","v":27},null,null,{"$f":"CntyDataLinkPrior5YearEstimates!$B$136","v":13169},{"$f":"CntyDataLinkPrior5YearEstimates!$C$136","v":21},null,null,{"$f":"CntyDataLink!$B$136","v":12977},{"$f":"CntyDataLink!$C$136","v":23}]
[null,null,"   United States Native",{"$f":"CntyDataLinkPrior10YearEstimate!$D$136","v":12732},{"$f":"CntyDataLinkPrior10YearEstimate!$E$136","v":121},{"$f":"D8/$D$7","v":0.97294818890417245},null,{"$f":"CntyDataLinkPrior5YearEstimates!$D$136","v":12943},{"$f":"CntyDataLinkPrior5YearEstimates!$E$136","v":109},{"$f":"H8/$H$7","v":0.9828384843192346},null,{"$f":"CntyDataLink!$D$136","v":12478},{"$f":"CntyDataLink!$E$136","v":177},{"$f":"L8/$L$7","v":0.96154735300917005},{"$f":"StatisticallySignificantCalcs!A26","v":"Y"},{"$f":"StatisticallySignificantCalcs!J26","v":"Y"}]
[null,null,"      New Hampshire Native",{"$f":"CntyDataLinkPrior10YearEstimate!$F$136","v":6762},{"$f":"CntyDataLinkPrior10YearEstimate!$G$136","v":526},{"$f":"D9/$D$7","v":0.51673544245758829},null,{"$f":"CntyDataLinkPrior5YearEstimates!$F$136","v":7788},{"$f":"CntyDataLinkPrior5YearEstimates!$G$136","v":400},{"$f":"H9/$H$7","v":0.59138886779558053},null,{"$f":"CntyDataLink!$F$136","v":7149},{"$f":"CntyDataLink!$G$136","v":509},{"$f":"L9/$L$7","v":0.55089774215920473},{"$f":"StatisticallySignificantCalcs!A27","v":"N"},{"$f":"StatisticallySignificantCalcs!J27","v":"N"}]
[null,null,"      Born in Different State",{"$f":"CntyDataLinkPrior10YearEstimate!$H$136","v":5904},{"$f":"CntyDataLinkPrior10YearEstimate!$I$136","v":507},0.45116918844566711,null,{"$f":"CntyDataLinkPrior5YearEstimates!$H$136","v":5117},{"$f":"CntyDataLinkPrior5YearEstimates!$I$136","v":404},0.38856405194016252,null,{"$f":"CntyDataLink!$H$136","v":5181},{"$f":"CntyDataLink!$I$136","v":523},0.39924481775448872,{"$f":"StatisticallySignificantCalcs!A28","v":"N"},{"$f":"StatisticallySignificantCalcs!J28","v":"N"}]
[null,null,"          Northeast",{"$f":"CntyDataLinkPrior10YearEstimate!$J$136","v":4844},{"$f":"CntyDataLinkPrior10YearEstimate!$K$136","v":491},0.37016659024912119,null,{"$f":"CntyDataLinkPrior5YearEstimates!$J$136","v":3996},{"$f":"CntyDataLinkPrior5YearEstimates!$K$136","v":370},0.30343989672716226,null,{"$f":"CntyDataLink!$J$136","v":4059},{"$f":"CntyDataLink!$K$136","v":525},0.3127841565847268,{"$f":"StatisticallySignificantCalcs!A29","v":"Y"},{"$f":"StatisticallySignificantCalcs!J29","v":"N"}]
[null,null,"          Midwest",{"$f":"CntyDataLinkPrior10YearEstimate!$L$136","v":221},{"$f":"CntyDataLinkPrior10YearEstimate!$M$136","v":100},1.6888277548525142E-2,null,{"$f":"CntyDataLinkPrior5YearEstimates!$L$136","v":363},{"$f":"CntyDataLinkPrior5YearEstimates!$M$136","v":157},2.756473536335333E-2,null,{"$f":"CntyDataLink!$L$136","v":322},{"$f":"CntyDataLink!$M$136","v":128},2.4813130923942359E-2,{"$f":"StatisticallySignificantCalcs!A30","v":"N"},{"$f":"StatisticallySignificantCalcs!J30","v":"N"}]
[null,null,"          South",{"$f":"CntyDataLinkPrior10YearEstimate!$N$136","v":505},{"$f":"CntyDataLinkPrior10YearEstimate!$O$136","v":173},3.8590860461561974E-2,null,{"$f":"CntyDataLinkPrior5YearEstimates!$N$136","v":457},{"$f":"CntyDataLinkPrior5YearEstimates!$O$136","v":150},3.470271091199028E-2,null,{"$f":"CntyDataLink!$N$136","v":414},{"$f":"CntyDataLink!$O$136","v":144},3.1902596902211602E-2,{"$f":"StatisticallySignificantCalcs!A31","v":"N"},{"$f":"StatisticallySignificantCalcs!J31","v":"N"}]
[null,null,"          West",{"$f":"CntyDataLinkPrior10YearEstimate!$P$136","v":334},{"$f":"CntyDataLinkPrior10YearEstimate!$Q$136","v":135},2.5523460186458811E-2,null,{"$f":"CntyDataLinkPrior5YearEstimates!$P$136","v":301},{"$f":"CntyDataLinkPrior5YearEstimates!$Q$136","v":119},2.2856708937656619E-2,null,{"$f":"CntyDataLink!$P$136","v":386},{"$f":"CntyDataLink!$Q$136","v":161},2.9744933343607921E-2,{"$f":"StatisticallySignificantCalcs!A32","v":"N"},{"$f":"StatisticallySignificantCalcs!J32","v":"N"}]
[null,null,"      Native Born Outside US",{"$f":"CntyDataLinkPrior10YearEstimate!$R136","v":66},{"$f":"CntyDataLinkPrior10YearEstimate!$S$136","v":58},5.0435580009170105E-3,null,{"$f":"CntyDataLinkPrior5YearEstimates!$R136","v":38},{"$f":"CntyDataLinkPrior5YearEstimates!$S$136","v":37},2.8855645834915331E-3,null,{"$f":"CntyDataLink!$R136","v":148},{"$f":"CntyDataLink!$S$136","v":103},1.1404793095476613E-2,{"$f":"StatisticallySignificantCalcs!A33","v":"N"},{"$f":"StatisticallySignificantCalcs!J33","v":"Y"}]
[null,null,"   Foreign Born",{"$f":"CntyDataLinkPrior10YearEstimate!$Z136","v":354},{"$f":"CntyDataLinkPrior10YearEstimate!$AA$136","v":123},2.7051811095827601E-2,null,{"$f":"CntyDataLinkPrior5YearEstimates!$Z136","v":226},{"$f":"CntyDataLinkPrior5YearEstimates!$AA$136","v":104},1.7161515680765432E-2,null,{"$f":"CntyDataLink!$Z136","v":499},{"$f":"CntyDataLink!$AA$136","v":172},3.8452646990829932E-2,{"$f":"StatisticallySignificantCalcs!A34","v":"N"},{"$f":"StatisticallySignificantCalcs!J34","v":"Y"}]
[null,null,"      Naturalized Citizen",{"$f":"CntyDataLinkPrior10YearEstimate!$AB136","v":202},{"$f":"CntyDataLinkPrior10YearEstimate!$AC$136","v":86},{"$f":"D17/$L$7","v":1.556600138706943E-2},null,{"$f":"CntyDataLinkPrior5YearEstimates!$AB136","v":161},{"$f":"CntyDataLinkPrior5YearEstimates!$AC$136","v":97},1.2225681524793074E-2,null,{"$f":"CntyDataLink!$AB136","v":365},{"$f":"CntyDataLink!$AC$136","v":141},2.812668567465516E-2,{"$f":"StatisticallySignificantCalcs!A35","v":"N"},{"$f":"StatisticallySignificantCalcs!J35","v":"Y"}]
[null,null,"      Not a Citizen",{"$f":"CntyDataLinkPrior10YearEstimate!$AD$136","v":152},{"$f":"CntyDataLinkPrior10YearEstimate!$AE$136","v":87},{"$f":"D18/$L$7","v":1.171303074670571E-2},null,{"$f":"CntyDataLinkPrior5YearEstimates!$AD$136","v":65},{"$f":"CntyDataLinkPrior5YearEstimates!$AE$136","v":45},4.9358341559723592E-3,null,{"$f":"CntyDataLink!$AD$136","v":134},{"$f":"CntyDataLink!$AE$136","v":99},1.032596131617477E-2,{"$f":"StatisticallySignificantCalcs!A36","v":"N"},{"$f":"StatisticallySignificantCalcs!J36","v":"N"}]
[null,null,null,{"$f":"\"Source: \"&D41&\", \"&H41&\" and \"&L41& \" American Community Survey Table B05002.\"","v":"Source: 2005-2009, 2010-2014 and 2015-2019 American Community Survey Table B05002."}]
[]
[]
[]
[]
[]
[]
[]
[]
[]
[]
[]
[]
[]
[]
[]
[]
[]
[]
[]
[]
[null,null,"Place of Residence Prior year for Population"]
[null,null,"Universe: Population","2005-2009",null,null,null,"2010-2014",null,null,null,"2015-2019",null,null,"Statistically Significant Change "]
[null,null,null,"Estimate","Margin of Error",null,null,"Estimate","Margin of Error",null,null,"Estimate","Margin of Error",null,"2009-2019","2014-2019"]
[null,null,"  Total:",{"$f":"CntyDataLinkPrior10YearEstimate!$AF$136","v":12864},{"$f":"CntyDataLinkPrior10YearEstimate!$AG$136","v":87},null,null,{"$f":"CntyDataLinkPrior5YearEstimates!$AF$136","v":10761},{"$f":"CntyDataLinkPrior5YearEstimates!$AG$136","v":519},null,null,{"$f":"CntyDataLink!$AF$136","v":12884},{"$f":"CntyDataLink!$AG$136","v":63},null,{"$f":"StatisticallySignificantCalcs!$A37","v":"Y"},{"$f":"StatisticallySignificantCalcs!$J37","v":"Y"}]
["Same House",null,"    Same House ",{"$f":"CntyDataLinkPrior10YearEstimate!$AH$136","v":10469},{"$f":"CntyDataLinkPrior10YearEstimate!$AI$136","v":597},{"$f":"IF($D$44=\"-\",\"-\",VALUE(D44/$D$43))","v":0.81382151741293529},null,{"$f":"CntyDataLinkPrior5YearEstimates!$AH$136","v":2354},{"$f":"CntyDataLinkPrior5YearEstimates!$AI$136","v":530.62792990946116},{"$f":"IF($H$44=\"-\",\"-\",VALUE($H$44/$H$43))","v":0.21875290400520397},null,{"$f":"CntyDataLink!$AH$136","v":11029},{"$f":"CntyDataLink!$AI$136","v":576},{"$f":"IF($L$44=\"-\",\"-\",VALUE($L$44/$L$43))","v":0.85602297423160512},{"$f":"StatisticallySignificantCalcs!$A38","v":"Y"},{"$f":"StatisticallySignificantCalcs!$J38","v":"Y"}]
["Different House",null,"    Different House 1  ",{"$f":"CntyDataLinkPrior10YearEstimate!$AJ$136","v":2395},{"$f":"CntyDataLinkPrior10YearEstimate!$AK$136","v":609.18716335786326},{"$f":"IF($D$45=\"-\",\"-\",VALUE(D45/$D$43))","v":0.18617848258706468},null,{"$f":"CntyDataLinkPrior5YearEstimates!$AJ$136","v":2177},{"$f":"CntyDataLinkPrior5YearEstimates!$AK$136","v":522.7245928785062},{"$f":"IF($H$45=\"-\",\"-\",VALUE($H$45/$H$43))","v":0.20230461852987641},null,{"$f":"CntyDataLink!$AJ$136","v":1855},{"$f":"CntyDataLink!$AK$136","v":573.8092017386964},{"$f":"IF($L$45=\"-\",\"-\",VALUE($L$45/$L$43))","v":0.14397702576839491},{"$f":"StatisticallySignificantCalcs!$A39","v":"N"},{"$f":"StatisticallySignificantCalcs!$J39","v":"N"}]
[null,null,"      in New Hampshire",{"$f":"CntyDataLinkPrior10YearEstimate!$AL$136","v":1459},{"$f":"CntyDataLinkPrior10YearEstimate!$AM$136","v":408.83248403227452},{"$f":"IF($D$46=\"-\",\"-\",VALUE(D46/$D$43))","v":0.11341728855721393},null,{"$f":"CntyDataLinkPrior5YearEstimates!$AL$136","v":1373},{"$f":"CntyDataLinkPrior5YearEstimates!$AM$136","v":360},{"$f":"IF($H$46=\"-\",\"-\",VALUE($H$46/$H$43))","v":0.12759037264194778},null,{"$f":"CntyDataLink!$AL$136","v":1543},{"$f":"CntyDataLink!$AM$136","v":547.75268141744414},{"$f":"IF($L$46=\"-\",\"-\",VALUE($L$46/$L$43))","v":0.11976094380627135},{"$f":"StatisticallySignificantCalcs!$A40","v":"N"},{"$f":"StatisticallySignificantCalcs!$J40","v":"N"}]
[null,null,"          Same county",{"$f":"CntyDataLinkPrior10YearEstimate!$AN$136","v":1134},{"$f":"CntyDataLinkPrior10YearEstimate!$AO$136","v":362},{"$f":"IF($D$47=\"-\",\"-\",VALUE(D47/$D$43))","v":8.8152985074626863E-2},null,{"$f":"CntyDataLinkPrior5YearEstimates!$AN$136","v":804},{"$f":"CntyDataLinkPrior5YearEstimates!$AO$136","v":379},{"$f":"IF($H$47=\"-\",\"-\",VALUE($H$47/$H$43))","v":7.4714245887928632E-2},null,{"$f":"CntyDataLink!$AN$136","v":1452},{"$f":"CntyDataLink!$AO$136","v":537},{"$f":"IF($L$47=\"-\",\"-\",VALUE($L$47/$L$43))","v":0.11269791990065198},{"$f":"StatisticallySignificantCalcs!$A41","v":"N"},{"$f":"StatisticallySignificantCalcs!$J41","v":"N"}]
[null,null,"          Different county",{"$f":"CntyDataLinkPrior10YearEstimate!$AP$136","v":325},{"$f":"CntyDataLinkPrior10YearEstimate!$AQ$136","v":190},{"$f":"IF($D$48=\"-\",\"-\",VALUE(D48/$D$43))","v":2.5264303482587066E-2},null,{"$f":"CntyDataLinkPrior5YearEstimates!$AP$136","v":164},{"$f":"CntyDataLinkPrior5YearEstimates!$AQ$136","v":90},{"$f":"IF($H$48=\"-\",\"-\",VALUE($H$48/$H$43))","v":1.5240219310473004E-2},null,{"$f":"CntyDataLink!$AP$136","v":91},{"$f":"CntyDataLink!$AQ$136","v":108},{"$f":"IF($L$48=\"-\",\"-\",VALUE($L$48/$L$43))","v":7.0630239056193728E-3},{"$f":"StatisticallySignificantCalcs!$A42","v":"N"},{"$f":"StatisticallySignificantCalcs!$J42","v":"N"}]
["Different State",null,"      in Different state",{"$f":"CntyDataLinkPrior10YearEstimate!$AR$136","v":936},{"$f":"CntyDataLinkPrior10YearEstimate!$AS$136","v":437},{"$f":"IF($D$49=\"-\",\"-\",VALUE(D49/$D$43))","v":7.2761194029850748E-2},null,{"$f":"CntyDataLinkPrior5YearEstimates!$AR$136","v":13},{"$f":"CntyDataLinkPrior5YearEstimates!$AS$136","v":15},{"$f":"IF($H$49=\"-\",\"-\",VALUE($H$49/$H$43))","v":1.2080661648545673E-3},null,{"$f":"CntyDataLink!$AR$136","v":312},{"$f":"CntyDataLink!$AS$136","v":170},{"$f":"IF($L$49=\"-\",\"-\",VALUE($L$49/$L$43))","v":2.4216081962123565E-2},{"$f":"StatisticallySignificantCalcs!$A43","v":"Y"},{"$f":"StatisticallySignificantCalcs!$J43","v":"N"}]
["Eleswhere",null,"       Elsewhere",{"$f":"CntyDataLinkPrior10YearEstimate!$AT$136","v":0},{"$f":"CntyDataLinkPrior10YearEstimate!$AU$136","v":114},{"$f":"IF($D$50=\"-\",\"-\",VALUE(D50/$D$43))","v":0},null,{"$f":"CntyDataLinkPrior5YearEstimates!$AT$136","v":0},{"$f":"CntyDataLinkPrior5YearEstimates!$AU$136","v":0},{"$f":"IF($H$50=\"-\",\"-\",VALUE($H$50/$H$43))","v":0},null,{"$f":"CntyDataLink!$AT$136","v":0},{"$f":"CntyDataLink!$AU$136","v":0},{"$f":"IF($L$50=\"-\",\"-\",VALUE($L$50/$L$43))","v":0},{"$f":"StatisticallySignificantCalcs!$A44","v":"N"},{"$f":"StatisticallySignificantCalcs!$J44","v":"N"}]
[]
[null,null,"Data from the American Community Survey are estimates"]
[]
[null,null,"1   The number for Different House was calculated by adding In New Hampshire, In Different State, and Elsewhere totals. The number is not located in the source Table B07003."]
[]
[]
[null,null,{"$f":"\"Source: \"&D41&\", \"&H41&\" and \"&L41& \" American Community Survey Table B07003.\"","v":"Source: 2005-2009, 2010-2014 and 2015-2019 American Community Survey Table B07003."}]

{"sheet":"ACS_Table_B05002","index":94,"n_rows":84,"n_cols":32,"rows_kept":84,"cut":false,"hidden":true,"merged":[]}
[null,"B05002. PLACE OF BIRTH BY CITIZENSHIP STATUS"]
[null,"Universe: TOTAL POPULATION"]
[null,"Data Set: 2015-2019 American Community Survey 5-Year Estimates"]
[]
[null,null,"Acworth",null,"Charlestown",null,"Claremont",null,"Cornish",null,"Croydon",null,"Goshen",null,"Grantham",null,"Langdon",null,"Lempster",null,"Newport",null,"Plainfield",null,"Springfield",null,"Sunapee",null,"Unity",null,"Washington"]
[null,null,"Estimate","Margin Of Error","Estimate","Margin Of Error","Estimate","Margin Of Error","Estimate","Margin Of Error","Estimate","Margin Of Error","Estimate","Margin Of Error","Estimate","Margin Of Error","Estimate","Margin Of Error","Estimate","Margin Of Error","Estimate","Margin Of Error","Estimate","Margin Of Error","Estimate","Margin Of Error","Estimate","Margin Of Error","Estimate","Margin Of Error","Estimate","Margin Of Error"]
[null,"Total:",906,134,5019,19,12977,23,1783,217,863,244,702,108,2945,14,712,145,923,176,6374,19,2555,293,1084,198,3449,19,1613,156,1199,188]
[null,"Native:",869,133,4862,135,12478,177,1746,213,849,243,680,106,2899,54,678,136,880,167,6285,73,2445,289,1060,201,3359,80,1597,152,1148,187]
[null,"Born in state of residence",378,85,2122,307,7149,509,828,156,603,190,374,93,1085,219,261,98,461,134,4251,423,1194,297,521,147,1654,213,831,125,553,166]
[null,"Born in other state in the United States:",491,86,2725,322,5181,523,880,115,246,79,304,75,1773,208,415,84,419,81,2006,414,1219,157,515,109,1673,195,763,105,589,112]
[null,"Northeast",413,80,2204,325,4059,525,597,86,205,73,235,62,1223,269,338,71,316,75,1334,323,902,141,396,99,1355,185,629,91,506,95]
[null,"Midwest",30,16,111,112,322,128,119,41,13,16,39,39,126,88,19,11,34,33,206,98,107,41,72,45,163,90,53,29,35,23]
[null,"South",30,18,218,113,414,144,122,46,7,6,27,18,207,92,46,31,37,25,309,183,158,65,38,31,93,62,52,31,42,35]
[null,"West",18,17,192,132,386,161,42,23,21,17,3,4,217,118,12,14,32,26,157,136,52,47,9,14,62,43,29,21,6,5]
[null,"Born outside the United States:",0,11,15,25,148,103,38,26,0,11,2,3,41,61,2,3,0,11,28,39,32,35,24,28,32,27,3,5,6,6]
[null,"Puerto Rico",0,11,0,16,1,4,0,11,0,11,0,11,0,11,0,11,0,11,0,16,0,11,0,11,0,11,3,5,0,11]
[null,"U.S. Island Areas",0,11,0,16,0,18,0,11,0,11,0,11,0,11,0,11,0,11,0,16,0,11,0,11,0,11,0,11,0,11]
[null,"Born abroad of American parent(s)",0,11,15,25,147,103,38,26,0,11,2,3,41,61,2,3,0,11,28,39,32,35,24,28,32,27,0,11,6,6]
[null,"Foreign born:",37,22,157,131,499,172,37,24,14,12,22,23,46,53,34,22,43,51,89,75,110,72,24,28,90,79,16,14,51,28]
[null,"Naturalized U.S. citizen",21,13,157,131,365,141,27,21,7,9,22,23,46,53,16,12,38,50,53,67,93,69,3,5,61,60,11,12,49,27]
[null,"Europe",5,6,0,16,34,34,13,9,2,4,7,9,46,53,8,7,6,6,53,67,28,28,0,11,31,37,11,12,28,21]
[null,"Asia",8,12,114,113,87,83,9,17,0,11,0,11,0,11,0,11,32,51,0,16,51,59,0,11,30,45,0,11,0,11]
[null,"Africa",0,11,0,16,171,130,0,11,0,11,0,11,0,11,1,4,0,11,0,16,5,7,0,11,0,11,0,11,0,11]
[null,"Oceania",0,11,0,16,0,18,0,11,0,11,0,11,0,11,0,11,0,11,0,16,0,11,0,11,0,11,0,11,0,11]
[null,"Latin America",5,5,0,16,30,64,5,7,0,11,8,15,0,11,7,9,0,11,0,16,0,11,0,11,0,11,0,11,11,13]
[null,"Northern America",3,4,43,64,43,31,0,11,5,7,7,13,0,11,0,11,0,11,0,16,9,10,3,5,0,11,0,11,10,10]
[null,"Not a U.S. citizen",16,17,0,16,134,99,10,9,7,7,0,11,0,11,18,17,5,5,36,37,17,15,21,30,29,36,5,11,2,4]
[null,"Europe",14,17,0,16,41,55,10,9,5,6,0,11,0,11,7,12,5,5,11,17,6,9,21,30,22,24,0,11,2,4]
[null,"Asia",0,11,0,16,51,62,0,11,0,11,0,11,0,11,9,13,0,11,0,16,0,11,0,11,0,11,0,11,0,11]
[null,"Africa",0,11,0,16,0,18,0,11,0,11,0,11,0,11,0,11,0,11,13,29,0,11,0,11,7,16,0,11,0,11]
[null,"Oceania",0,11,0,16,0,18,0,11,0,11,0,11,0,11,0,11,0,11,0,16,0,11,0,11,0,11,0,11,0,11]
[null,"Latin America",0,11,0,16,34,51,0,11,0,11,0,11,0,11,0,11,0,11,0,16,0,11,0,11,0,11,5,11,0,11]
[null,"Northern America",2,4,0,16,8,13,0,11,2,3,0,11,0,11,2,3,0,11,12,19,11,12,0,11,0,11,0,11,0,11]
[]
[]
[]
[]
[]
[]
[null,"B05002. PLACE OF BIRTH BY CITIZENSHIP STATUS"]
[null,"Universe: TOTAL POPULATION"]
[null,"Data Set: 2010-2014 American Community Survey 5-Year Estimates"]
[]
[null,null,"Acworth",null,"Charlestown",null,"Claremont",null,"Cornish",null,"Croydon",null,"Goshen",null,"Grantham",null,"Langdon",null,"Lempster",null,"Newport",null,"Plainfield",null,"Springfield",null,"Sunapee",null,"Unity",null,"Washington"]
[null,null,"Estimate","Margin Of Error","Estimate","Margin Of Error","Estimate","Margin Of Error","Estimate","Margin Of Error","Estimate","Margin Of Error","Estimate","Margin Of Error","Estimate","Margin Of Error","Estimate","Margin Of Error","Estimate","Margin Of Error","Estimate","Margin Of Error","Estimate","Margin Of Error","Estimate","Margin Of Error","Estimate","Margin Of Error","Estimate","Margin Of Error","Estimate","Margin Of Error"]
[null,"Total:",923,163,5047,16,13169,21,1601,179,651,140,821,127,2970,25,787,149,1089,147,6434,18,2518,166,1313,217,3363,30,1592,183,1013,140]
[null,"Native:",882,162,4961,61,12943,109,1573,179,641,140,812,127,2837,98,744,136,1061,145,6215,127,2403,167,1271,212,3296,57,1565,184,977,136]
[null,"Born in state of residence",418,139,2414,263,7788,400,681,137,459,117,425,104,1176,206,294,95,550,106,3525,343,1179,154,760,172,1305,199,838,141,376,96]
[null,"Born in other state in the United States:",460,76,2530,249,5117,404,862,117,181,54,370,78,1633,200,450,72,511,105,2550,359,1199,115,498,99,1972,193,701,112,601,91]
[null,"Northeast",382,66,1958,300,3996,370,641,91,147,48,304,76,1100,186,376,62,420,90,1993,332,913,107,382,93,1401,210,589,98,499,95]
[null,"Midwest",37,22,274,222,363,157,50,20,12,10,9,8,267,104,17,11,40,32,61,40,114,50,40,22,229,100,32,25,16,14]
[null,"South",23,15,188,133,457,150,75,35,19,15,28,17,118,82,38,23,32,31,126,80,111,51,28,22,158,72,30,16,49,32]
[null,"West",18,13,110,77,301,119,96,79,3,4,29,42,148,66,19,15,19,14,370,175,61,36,48,28,184,82,50,22,37,25]
[null,"Born outside the United States:",4,5,17,27,38,37,30,21,1,3,17,11,28,41,0,11,0,11,140,111,25,27,13,15,19,20,26,21,0,11]
[null,"Puerto Rico",0,11,0,11,0,17,0,11,0,11,0,11,0,11,0,11,0,11,0,15,0,11,0,11,0,11,6,12,0,11]
[null,"U.S. Island Areas",0,11,0,11,0,17,0,11,0,11,0,11,0,11,0,11,0,11,9,15,0,11,0,11,0,11,0,11,0,11]
[null,"Born abroad of American parent(s)",4,5,17,27,38,37,30,21,1,3,17,11,28,41,0,11,0,11,131,108,25,27,13,15,19,20,20,18,0,11]
[null,"Foreign born:",41,21,86,58,226,104,28,18,10,11,9,7,133,95,43,40,28,20,219,127,115,55,42,37,67,50,27,16,36,22]
[null,"Naturalized U.S. citizen",19,18,42,48,161,97,8,9,3,6,8,6,113,90,39,39,8,9,206,125,46,30,24,19,42,41,19,12,30,20]
[null,"Not a U.S. citizen",22,17,44,49,65,45,20,16,7,11,1,3,20,23,4,6,20,16,13,20,69,49,18,30,25,27,8,11,6,6]
[]
[]
[]
[null,"B05002. PLACE OF BIRTH BY CITIZENSHIP STATUS"]
[null,"Universe: TOTAL POPULATION"]
[null,"Data Set: 2005-2009 American Community Survey 5-Year Estimates"]
[]
[null,null,"Acworth",null,"Charlestown",null,"Claremont",null,"Cornish",null,"Croydon",null,"Goshen",null,"Grantham",null,"Langdon",null,"Lempster",null,"Newport",null,"Plainfield",null,"Springfield",null,"Sunapee",null,"Unity",null,"Washington"]
[null,null,"Estimate","Margin Of Error","Estimate","Margin Of Error","Estimate","Margin Of Error","Estimate","Margin Of Error","Estimate","Margin Of Error","Estimate","Margin Of Error","Estimate","Margin Of Error","Estimate","Margin Of Error","Estimate","Margin Of Error","Estimate","Margin Of Error","Estimate","Margin Of Error","Estimate","Margin Of Error","Estimate","Margin Of Error","Estimate","Margin Of Error","Estimate","Margin Of Error"]
[null,"Total:",822,164,4872,23,13086,27,1750,201,759,129,913,149,2516,18,586,170,1148,165,6500,17,2535,256,836,152,3352,40,1703,241,1263,169]
[null,"Native:",803,162,4738,100,12732,121,1714,202,733,127,898,149,2423,46,576,167,1137,164,6390,94,2456,257,820,149,3226,78,1689,237,1245,168]
[null,"Born in state of residence",394,115,2068,276,6762,526,939,150,481,117,492,118,662,113,301,113,623,135,4009,434,1198,172,354,99,1509,216,883,158,493,117]
[null,"Born in other state in the United States:",409,85,2632,277,5904,507,732,122,249,62,400,89,1756,123,275,86,514,84,2373,440,1234,199,447,93,1660,218,799,167,752,112]
[null,"Northeast",361,82,2295,263,4844,491,594,109,216,61,311,68,1272,143,201,59,408,69,1534,303,935,165,350,83,1186,175,659,158,669,102]
[null,"Midwest",14,12,215,125,221,100,28,20,23,17,36,24,258,113,28,22,37,23,203,98,116,52,68,52,129,76,27,22,10,9]
[null,"South",21,15,90,50,505,173,65,38,10,10,37,49,155,80,32,22,37,22,308,188,75,42,20,15,232,104,49,38,46,23]
[null,"West",13,17,32,32,334,135,45,29,0,114,16,11,71,45,14,16,32,21,328,323,108,57,9,8,113,76,64,35,27,20]
[null,"Born outside the United States:",0,114,38,44,66,58,43,32,3,5,6,7,5,8,0,114,0,114,8,14,24,21,19,16,57,61,7,11,0,114]
[null,"Puerto Rico",0,114,0,114,0,114,14,20,0,114,0,114,0,114,0,114,0,114,0,114,0,114,0,114,0,114,0,114,0,114]
[null,"U.S. Island Areas",0,114,0,114,0,114,0,114,0,114,0,114,0,114,0,114,0,114,0,114,0,114,5,7,0,114,0,114,0,114]
[null,"Born abroad of American parent(s)",0,114,38,44,66,58,29,25,3,5,6,7,5,8,0,114,0,114,8,14,24,21,14,15,57,61,7,11,0,114]
[null,"Foreign born:",19,17,134,98,354,123,36,38,26,24,15,21,93,48,10,15,11,10,110,90,79,52,16,16,126,70,14,17,18,12]
[null,"Naturalized U.S. citizen",14,15,29,32,202,86,14,14,10,9,15,21,62,40,0,114,5,8,51,61,51,40,14,15,90,55,5,9,12,10]
[null,"Not a U.S. citizen",5,8,105,93,152,87,22,36,16,22,0,114,31,24,10,15,6,6,59,63,28,33,2,5,36,45,9,15,6,6]

{"sheet":"ACS_Table_B07003","index":95,"n_rows":89,"n_cols":32,"rows_kept":89,"cut":false,"hidden":true,"merged":[]}
[null,"B07003. GEOGRAPHICAL MOBILITY IN THE PAST YEAR BY SEX FOR CURRENT RESIDENCE IN THE UNITED STATES - Universe:  POPULATION 1 YEAR AND OVER IN THE UNITED STATES"]
[null,"Data Set: 2015-2019 American Community Survey 5-Year Estimates"]
[]
[]
[null,null,"Acworth",null,"Charlestown",null,"Claremont",null,"Cornish",null,"Croydon",null,"Goshen",null,"Grantham",null,"Langdon",null,"Lempster",null,"Newport",null,"Plainfield",null,"Springfield",null,"Sunapee",null,"Unity",null,"Washington"]
[null,null,"Estimate","Margin Of Error","Estimate","Margin Of Error","Estimate","Margin Of Error","Estimate","Margin Of Error","Estimate","Margin Of Error","Estimate","Margin Of Error","Estimate","Margin Of Error","Estimate","Margin Of Error","Estimate","Margin Of Error","Estimate","Margin Of Error","Estimate","Margin Of Error","Estimate","Margin Of Error","Estimate","Margin Of Error","Estimate","Margin Of Error","Estimate","Margin Of Error"]
[null,"Total:",896,134,4984,42,12884,63,1772,215,859,243,697,106,2945,14,712,145,908,166,6362,28,2551,293,1082,198,3408,45,1603,155,1199,188]
[null,"Male",481,82,2490,232,6278,280,918,150,423,111,351,69,1382,143,342,85,423,71,3287,221,1274,173,575,112,1772,133,743,80,612,109]
[null,"Female",415,71,2494,220,6606,282,854,100,436,155,346,57,1563,142,370,73,485,123,3075,220,1277,157,507,111,1636,125,860,119,587,104]
[null,"Same house 1 year ago:",863,137,3985,428,11029,576,1693,208,820,243,614,104,2630,227,679,142,873,169,5832,221,2325,281,1041,197,3075,151,1420,146,1066,183]
[null,"Male",466,85,2070,306,5422,354,871,142,404,109,308,67,1211,196,332,84,402,74,3001,254,1167,169,556,113,1599,161,650,64,521,104]
[null,"Female",397,70,1915,281,5607,388,822,97,416,155,306,57,1419,161,347,71,471,123,2831,209,1158,152,485,111,1476,132,770,118,545,102]
[null,"Moved within same county:",26,39,859,416,1452,537,39,29,26,18,69,56,77,87,16,14,23,18,342,128,79,69,27,31,145,81,114,70,22,14]
[null,"Male",10,15,386,241,708,309,20,17,15,14,35,29,45,57,5,6,15,15,136,85,30,32,19,22,74,66,68,44,15,10]
[null,"Female",16,25,473,248,744,309,19,15,11,13,34,30,32,35,11,11,8,6,206,104,49,40,8,12,71,40,46,35,7,7]
[null,"Moved from different county within same state:",0,11,115,127,91,108,20,20,5,7,5,7,206,205,7,9,0,11,72,69,70,58,5,9,89,67,46,25,72,58]
[null,"Male",0,11,34,52,50,54,20,20,2,4,3,4,111,127,5,5,0,11,72,69,29,32,0,11,26,32,14,16,50,43]
[null,"Female",0,11,81,82,41,64,0,11,3,4,2,4,95,89,2,4,0,11,0,16,41,38,5,9,63,48,32,20,22,22]
[null,"Moved from different state:",7,7,25,31,312,170,20,24,8,13,9,7,32,46,4,6,9,8,104,78,77,65,9,16,99,76,13,12,33,21]
[null,"Male",5,5,0,16,98,57,7,11,2,4,5,5,15,22,0,11,3,4,78,72,48,56,0,11,73,57,6,6,20,18]
[null,"Female",2,4,25,31,214,136,13,14,6,9,4,4,17,24,4,6,6,7,26,22,29,30,9,16,26,26,7,6,13,9]
[null,"Moved from abroad:",0,11,0,16,0,18,0,11,0,11,0,11,0,11,6,10,3,4,12,18,0,11,0,11,0,11,10,13,6,8]
[null,"Male",0,11,0,16,0,18,0,11,0,11,0,11,0,11,0,11,3,4,0,16,0,11,0,11,0,11,5,11,6,8]
[null,"Female",0,11,0,16,0,18,0,11,0,11,0,11,0,11,6,10,0,11,12,18,0,11,0,11,0,11,5,6,0,11]
[]
[null,"Calculated B07003. GEOGRAPHICAL MOBILITY IN THE PAST YEAR BY SEX FOR CURRENT RESIDENCE IN THE UNITED STATES "]
[null,null,{"$f":"C5","v":"Acworth"},null,"Charlestown",null,"Claremont",null,"Cornish",null,{"$f":"K5","v":"Croydon"},null,{"$f":"M5","v":"Goshen"},null,{"$f":"O5","v":"Grantham"},null,{"$f":"Q5","v":"Langdon"},null,{"$f":"S5","v":"Lempster"},null,{"$f":"U5","v":"Newport"},null,{"$f":"W5","v":"Plainfield"},null,{"$f":"Y5","v":"Springfield"},null,{"$f":"AA5","v":"Sunapee"},null,{"$f":"AC5","v":"Unity"},null,{"$f":"AE5","v":"Washington"}]
[null,null,"Estimate","Margin Of Error","Estimate","Margin Of Error","Estimate","Margin Of Error","Estimate","Margin Of Error",{"$f":"K6","v":"Estimate"},"Margin Of Error","Estimate","Margin Of Error","Estimate","Margin Of Error","Estimate","Margin Of Error","Estimate","Margin Of Error","Estimate","Margin Of Error","Estimate","Margin Of Error","Estimate","Margin Of Error","Estimate","Margin Of Error","Estimate","Margin Of Error","Estimate","Margin Of Error"]
[]
[null,"  Total:",{"$f":"C7","v":896},{"$f":"D7","v":134},{"$f":"E7","v":4984},42,12884,63,1772,215,{"$f":"K7","v":859},243,697,106,2945,14,712,145,908,166,6362,28,2551,293,1082,198,3408,45,1603,155,1199,188]
[null,"    Same house ",{"$f":"C10","v":863},{"$f":"D10","v":137},{"$f":"E10","v":3985},428,11029,576,1693,208,{"$f":"K10","v":820},243,614,104,2630,227,679,142,873,169,5832,221,2325,281,1041,197,3075,151,1420,146,1066,183]
[null,"    Different house 2",{"$f":"C13+C16+C19+C22","v":33},{"$f":"SQRT((D13^2)+(D16^2)+(D19^2)+(D22^2))","v":42.567593307585526},{"$f":"E13+E16+E19+E22","v":999},{"$f":"SQRT((F13^2)+(F16^2)+(F19^2)+(F22^2))","v":436.35077632565293},{"$f":"G13+G16+G19+G22","v":1855},{"$f":"SQRT((H13^2)+(H16^2)+(H19^2)+(H22^2))","v":573.8092017386964},{"$f":"I13+I16+I19+I22","v":79},{"$f":"SQRT((J13^2)+(J16^2)+(J19^2)+(J22^2))","v":44.022721406110279},{"$f":"K13+K16+K19+K22","v":39},{"$f":"SQRT((L13^2)+(L16^2)+(L19^2)+(L22^2))","v":25.748786379167466},{"$f":"M13+M16+M19+M22","v":83},{"$f":"SQRT((N13^2)+(N16^2)+(N19^2)+(N22^2))","v":57.922361830298321},{"$f":"O13+O16+O19+O22","v":315},{"$f":"SQRT((P13^2)+(P16^2)+(P19^2)+(P22^2))","v":227.66422643885008},{"$f":"Q13+Q16+Q19+Q22","v":33},{"$f":"SQRT((R13^2)+(R16^2)+(R19^2)+(R22^2))","v":20.322401432901575},{"$f":"S13+S16+S19+S22","v":35},{"$f":"SQRT((T13^2)+(T16^2)+(T19^2)+(T22^2))","v":22.912878474779198},{"$f":"U13+U16+U19+U22","v":530},{"$f":"SQRT((V13^2)+(V16^2)+(V19^2)+(V22^2))","v":165.99096360946882},{"$f":"W13+W16+W19+W22","v":226},{"$f":"SQRT((X13^2)+(X16^2)+(X19^2)+(X22^2))","v":111.67363162358427},{"$f":"Y13+Y16+Y19+Y22","v":41},{"$f":"SQRT((Z13^2)+(Z16^2)+(Z19^2)+(Z22^2))","v":37.669616403674723},{"$f":"AA13+AA16+AA19+AA22","v":333},{"$f":"SQRT((AB13^2)+(AB16^2)+(AB19^2)+(AB22^2))","v":130.18064372248278},{"$f":"AC13+AC16+AC19+AC22","v":183},{"$f":"SQRT((AD13^2)+(AD16^2)+(AD19^2)+(AD22^2))","v":76.406805979572269},{"$f":"AE13+AE16+AE19+AE22","v":133},{"$f":"SQRT((AF13^2)+(AF16^2)+(AF19^2)+(AF22^2))","v":63.757352517180323}]
[null,"      in New Hampshire",{"$f":"C16+C13","v":26},{"$f":"SQRT((D16^2)+(D13^2))","v":40.521599178709621},{"$f":"E16+E13","v":974},{"$f":"SQRT((F16^2)+(F13^2))","v":434.95402055849536},{"$f":"G16+G13","v":1543},{"$f":"SQRT((H16^2)+(H13^2))","v":547.75268141744414},{"$f":"I16+I13","v":59},{"$f":"SQRT((J16^2)+(J13^2))","v":35.227829907617071},{"$f":"K16+K13","v":31},{"$f":"SQRT((L16^2)+(L13^2))","v":19.313207915827967},{"$f":"M16+M13","v":74},{"$f":"SQRT((N16^2)+(N13^2))","v":56.435804238089851},{"$f":"O16+O13","v":283},{"$f":"SQRT((P16^2)+(P13^2))","v":222.69710370815332},{"$f":"Q16+Q13","v":23},{"$f":"SQRT((R16^2)+(R13^2))","v":16.643316977093239},{"$f":"S16+S13","v":23},{"$f":"SQRT((T16^2)+(T13^2))","v":21.095023109728988},{"$f":"U16+U13","v":414},{"$f":"SQRT((V16^2)+(V13^2))","v":145.41320435228707},{"$f":"W16+W13","v":149},{"$f":"SQRT((X16^2)+(X13^2))","v":90.13878188659973},{"$f":"Y16+Y13","v":32},{"$f":"SQRT((Z16^2)+(Z13^2))","v":32.280024783137947},{"$f":"AA16+AA13","v":234},{"$f":"SQRT((AB16^2)+(AB13^2))","v":105.11898020814318},{"$f":"AC16+AC13","v":160},{"$f":"SQRT((AD16^2)+(AD13^2))","v":74.330343736592525},{"$f":"AE16+AE13","v":94},{"$f":"SQRT((AF16^2)+(AF13^2))","v":59.665735560705194}]
[null,"          Same county",{"$f":"C13","v":26},{"$f":"D13","v":39},{"$f":"E13","v":859},416,1452,537,39,29,{"$f":"K13","v":26},18,69,56,77,87,16,14,23,18,342,128,79,69,27,31,145,81,114,70,22,14]
[null,"          Different county",{"$f":"C16","v":0},{"$f":"D16","v":11},{"$f":"E16","v":115},127,91,108,20,20,{"$f":"K16","v":5},7,5,7,206,205,7,9,0,11,72,69,70,58,5,9,89,67,46,25,72,58]
[null,"      in Different state",{"$f":"C19","v":7},{"$f":"D19","v":7},{"$f":"E19","v":25},31,312,170,20,24,{"$f":"K19","v":8},13,9,7,32,46,4,6,9,8,104,78,77,65,9,16,99,76,13,12,33,21]
[]
[]
[]
[]
[]
[]
[]
[]
[]
[]
[]
[]
[]
[]
[]
[]
[]
[]
[]
[]
[]
[]
[]
[null,"Calculated GEOGRAPHICAL MOBILITY IN THE PAST YEAR BY SEX FOR CURRENT RESIDENCE IN THE UNITED STATES"]
[null,"Universe:  POPULATION 1 YEAR AND OVER IN THE UNITED STATES"]
[null,"Data Set: 2010-2014 American Community Survey 5-Year Estimates"]
[null,null,"Acworth",null,"Charlestown",null,"Claremont",null,"Cornish",null,"Croydon",null,"Goshen",null,"Grantham",null,"Langdon",null,"Lempster",null,"Newport",null,"Plainfield",null,"Springfield",null,"Sunapee",null,"Unity",null,"Washington"]
[null,null,"Estimate","Margin Of Error","Estimate","Margin Of Error","Estimate","Margin Of Error","Estimate","Margin Of Error","Estimate","Margin Of Error","Estimate","Margin Of Error","Estimate","Margin Of Error","Estimate","Margin Of Error","Estimate","Margin Of Error","Estimate","Margin Of Error","Estimate","Margin Of Error","Estimate","Margin Of Error","Estimate","Margin Of Error","Estimate","Margin Of Error","Estimate","Margin Of Error"]
[null,"  Total:",909,153,5008,41,13115,50,1571,173,648,140,811,122,2921,51,785,149,1081,149,6433,18,2440,155,1291,209,3363,30,1582,184,1008,139]
[null,"    Same house ",865,152,4462,328,10761,519,1410,163,607,139,705,114,2694,106,738,142,1003,156,5164,405,2265,163,1169,197,2978,206,1423,170,921,124]
[null,"    Different house 2",44,25.119713374160941,546,340.02646955788606,2354,530.62792990946116,161,89.11789943664516,41,29.240383034426891,106,61.441028637222537,227,123.39367893048654,47,39.153543900903784,78,48.445846055157297,1269,405.5453118949842,175,78.708322304569549,122,71.112586790244109,385,211.95518394226644,159,71.826179071422146,87,58.949130612757983]
[null,"      in New Hampshire",36,21.470910553583888,518,336.58282784479661,2177,522.7245928785062,125,86.977008456258133,35,24.758836806279895,89,56.302753041036986,108,75.471849056452825,45,37.363083384538811,63,44.384682042344295,1140,393.73341234901568,66,47.010637094172637,87,61.294371682887821,248,179.61069010501575,127,66.730802482811484,60,52.239831546435909]
[null,"          Same county",23,19,429,322,1373,360,112,86,25,18,64,53,76,64,8,10,63,43,864,305,50,43,4,6,134,128,101,58,4,5]
[null,"          Different county",13,10,89,98,804,379,13,13,10,17,25,19,32,40,37,36,0,11,276,249,16,19,83,61,114,126,26,33,56,52]
[null,"      in Different state",0,11,28,47,164,90,24,16,6,11,17,22,119,97,2,4,15,16,129,96,62,48,17,20,132,112,25,25,27,25]
[null,"       Elsewhere",8,7,0,11,13,15,12,11,0,11,0,11,0,11,0,11,0,11,0,15,47,41,18,30,5,11,7,9,0,11]
[]
[]
[]
[]
[null,"Calculated GEOGRAPHICAL MOBILITY IN THE PAST YEAR BY SEX FOR CURRENT RESIDENCE IN THE UNITED STATES"]
[null,"Universe:  POPULATION 1 YEAR AND OVER IN THE UNITED STATES"]
[null,"Data Set: 2005-2009 American Community Survey 5-Year Estimates"]
[null,null,"Acworth",null,"Charlestown",null,"Claremont",null,"Cornish",null,"Croydon",null,"Goshen",null,"Grantham",null,"Langdon",null,"Lempster",null,"Newport",null,"Plainfield",null,"Springfield",null,"Sunapee",null,"Unity",null,"Washington"]
[null,null,"Estimate","Margin Of Error","Estimate","Margin Of Error","Estimate","Margin Of Error","Estimate","Margin Of Error","Estimate","Margin Of Error","Estimate","Margin Of Error","Estimate","Margin Of Error","Estimate","Margin Of Error","Estimate","Margin Of Error","Estimate","Margin Of Error","Estimate","Margin Of Error","Estimate","Margin Of Error","Estimate","Margin Of Error","Estimate","Margin Of Error","Estimate","Margin Of Error"]
[null,"Total",808,158,4796,62,12864,87,1733,197,744,124,907,147,2485,33,586,170,1143,163,6442,58,2525,254,832,151,3338,47,1696,241,1241,163]
[null,"    Same house ",693,137,4245,251,10469,597,1631,187,683,117,773,142,2116,137,560,170,1037,150,5327,375,2437,259,736,138,3058,173,1624,231,1061,138]
[null,"    Different house ",115,131.7459676802292,551,292.47734955035406,2395,609.18716335786326,102,140.77286670377924,61,166.715326230074,134,134.93331686429411,369,136.74063039199433,26,162.96318602678338,106,176.04544867732309,1115,372.14244584567348,88,123.3288287465668,96,68.337398253079556,280,161.42800252744254,72,122.12288892750614,180,196.99746191258404]
[null,"      in New Hampshire",67,49.244289008980523,340,204.74862636901864,1459,408.83248403227452,92,82.200973230248309,61,42.449970553582247,114,69.641941385920603,108,72.006944109578768,20,116.10340218959993,96,133.77593206552515,1105,353.93360959366379,50,29.068883707497267,67,63.788713735268246,191,135.53228397691819,32,23.430749027719962,128,149.03690818049066]
[null,"          Same county",48,45,307,201,1134,362,12,14,24,29,95,67,21,33,20,22,96,70,942,338,32,22,60,63,123,120,15,15,0,114]
[null,"          Different county",19,20,33,39,325,190,80,81,37,31,19,19,87,64,0,114,0,114,163,105,18,19,7,10,68,63,17,18,128,96]
[null,"      in Different state",48,44,211,175,936,437,10,8,0,114,20,19,203,108,6,9,10,10,0,114,38,37,27,24,82,87,40,37,52,60]
[null,"       Elsewhere",0,114,0,114,0,114,0,114,0,114,0,114,58,43,0,114,0,114,10,15,0,114,2,5,7,11,0,114,0,114]

{"sheet":"ACS_Table_B14001","index":96,"n_rows":98,"n_cols":32,"rows_kept":98,"cut":false,"hidden":true,"merged":[]}
[null,"B14001. SCHOOL ENROLLMENT BY LEVEL OF SCHOOL FOR THE POPULATION 3 YEARS AND OVER"]
[null,"Universe: POPULATION 3 YEARS AND OVER"]
[null,"Data Set: 2015-2019 American Community Survey 5-Year Estimates"]
[]
[null,null,"Acworth",null,"Charlestown",null,"Claremont",null,"Cornish",null,"Croydon",null,"Goshen",null,"Grantham",null,"Langdon",null,"Lempster",null,"Newport",null,"Plainfield",null,"Springfield",null,"Sunapee",null,"Unity",null,"Washington"]
[null,null,"Estimate","Margin Of Error","Estimate","Margin Of Error","Estimate","Margin Of Error","Estimate","Margin Of Error","Estimate","Margin Of Error","Estimate","Margin Of Error","Estimate","Margin Of Error","Estimate","Margin Of Error","Estimate","Margin Of Error","Estimate","Margin Of Error","Estimate","Margin Of Error","Estimate","Margin Of Error","Estimate","Margin Of Error","Estimate","Margin Of Error","Estimate","Margin Of Error"]
[null,"Total:",3947,84,881,134,4916,91,12505,125,1757,213,848,241,691,105,2945,14,704,146,894,163,6306,55,2521,290,1073,193,3342,66,1599,154]
[null,"Enrolled in school:",825,167,84,33,742,212,2354,253,342,131,189,102,151,57,647,109,185,87,203,104,1213,290,746,214,155,62,724,122,195,55]
[null,"Enrolled in nursery school, preschool",39,35,5,5,33,51,212,118,23,15,4,6,21,14,24,35,32,20,27,20,88,62,0,11,15,19,39,36,3,4]
[null,"Enrolled in kindergarten",36,32,0,11,80,85,113,73,20,13,6,7,14,16,63,69,6,9,15,15,67,46,18,15,4,8,71,58,0,11]
[null,"Enrolled in grade 1 to grade 4",164,75,22,14,178,94,585,164,57,29,37,22,38,20,78,41,49,33,29,22,253,133,115,49,20,20,128,67,37,17]
[null,"Enrolled in grade 5 to grade 8",233,112,22,15,265,108,548,159,145,78,69,47,21,16,162,66,44,39,31,35,319,169,144,52,42,22,165,83,54,24]
[null,"Enrolled in grade 9 to grade 12",198,86,19,16,161,103,572,142,69,40,18,18,41,34,203,97,33,21,72,58,345,172,186,116,66,35,185,73,35,18]
[null,"Enrolled in college, undergraduate years",138,66,16,11,25,24,236,140,25,17,49,54,12,10,71,58,13,13,13,11,82,63,246,63,8,9,100,48,59,35]
[null,"Graduate or professional school",17,19,0,11,0,16,88,87,3,4,6,10,4,8,46,62,8,10,16,15,59,63,37,26,0,11,36,30,7,6]
[null,"Not enrolled in school",3122,165,797,121,4174,221,10151,265,1415,133,659,166,540,77,2298,109,519,93,691,109,5093,294,1775,166,918,167,2618,129,1404,158]
[]
[]
[]
[null,"B14001. Calculated  SCHOOL ENROLLMENT BY LEVEL OF SCHOOL FOR THE POPULATION 3 YEARS AND OVER "]
[null,"Universe: POPULATION 3 YEARS AND OVER"]
[null,"Data Set: 2015-2019 American Community Survey 5-Year Estimates"]
[]
[null,null,"Acworth",null,"Charlestown",null,"Claremont",null,"Cornish",null,"Croydon",null,"Goshen",null,"Grantham",null,"Langdon",null,"Lempster",null,"Newport",null,"Plainfield",null,"Springfield",null,"Sunapee",null,"Unity",null,"Washington"]
[null,null,"Estimate","Margin Of Error","Estimate","Margin Of Error","Estimate","Margin Of Error","Estimate","Margin Of Error","Estimate","Margin Of Error","Estimate","Margin Of Error","Estimate","Margin Of Error","Estimate","Margin Of Error","Estimate","Margin Of Error","Estimate","Margin Of Error","Estimate","Margin Of Error","Estimate","Margin Of Error","Estimate","Margin Of Error","Estimate","Margin Of Error","Estimate","Margin Of Error"]
[null,"Total:",{"$f":"C7","v":3947},{"$f":"D7","v":84},{"$f":"E7","v":881},134,4916,91,12505,125,1757,213,848,241,691,105,2945,14,704,146,894,163,6306,55,2521,290,1073,193,{"$f":"AC7","v":3342},66,1599,154]
[null,"Enrolled in school:",{"$f":"C8","v":825},{"$f":"D8","v":167},{"$f":"E8","v":84},33,742,212,2354,253,342,131,189,102,151,57,647,109,185,87,203,104,1213,290,746,214,155,62,{"$f":"AC8","v":724},122,195,55]
[null,"Enrolled in nursery school, preschool, and Kindergarten",{"$f":"C9+C10","v":75},{"$f":"SQRT((D9^2)+(D10^2))","v":47.423622805517503},{"$f":"E9+E10","v":5},{"$f":"SQRT((F9^2)+(F10^2))","v":12.083045973594572},{"$f":"G9+G10","v":113},{"$f":"SQRT((H9^2)+(H10^2))","v":99.126182212370111},{"$f":"I9+I10","v":325},{"$f":"SQRT((J9^2)+(J10^2))","v":138.75518008348374},{"$f":"K9+K10","v":43},{"$f":"SQRT((L9^2)+(L10^2))","v":19.849433241279208},{"$f":"M9+M10","v":10},{"$f":"SQRT((N9^2)+(N10^2))","v":9.2195444572928871},{"$f":"O9+O10","v":35},{"$f":"SQRT((P9^2)+(P10^2))","v":21.2602916254693},{"$f":"Q9+Q10","v":87},{"$f":"SQRT((R9^2)+(R10^2))","v":77.369244535538797},{"$f":"S9+S10","v":38},{"$f":"SQRT((T9^2)+(T10^2))","v":21.931712199461309},{"$f":"U9+U10","v":42},{"$f":"SQRT((V9^2)+(V10^2))","v":25},{"$f":"W9+W10","v":155},{"$f":"SQRT((X9^2)+(X10^2))","v":77.201036262475128},{"$f":"Y9+Y10","v":18},{"$f":"SQRT((Z9^2)+(Z10^2))","v":18.601075237738275},{"$f":"AA9+AA10","v":19},{"$f":"SQRT((AB9^2)+(AB10^2))","v":20.615528128088304},{"$f":"AC9+AC10","v":110},{"$f":"SQRT((AD9^2)+(AD10^2))","v":68.264192663504048},{"$f":"AE9+AE10","v":3},{"$f":"SQRT((AF9^2)+(AF10^2))","v":11.704699910719626}]
[null,{"$f":"B9","v":"Enrolled in nursery school, preschool"},39,35,{"$f":"E9","v":5},5,33,51,212,118,23,15,4,6,21,14,24,35,32,20,27,20,88,62,0,11,15,19,{"$f":"AC9","v":39},36,3,4]
[null,"Enrolled in kindergarten",36,32,{"$f":"E10","v":0},11,80,85,113,73,20,13,6,7,14,16,63,69,6,9,15,15,67,46,18,15,4,8,{"$f":"AC10","v":71},58,0,11]
[null,"Enrolled in grade Elementary School (grade 1 to grade 8)",{"$f":"C11+C12","v":397},{"$f":"SQRT((D11^2)+(D12^2))","v":134.79243302203577},{"$f":"E11+E12","v":44},{"$f":"SQRT((F11^2)+(F12^2))","v":20.518284528683193},{"$f":"G11+G12","v":443},{"$f":"SQRT((H11^2)+(H12^2))","v":143.17821063276352},{"$f":"I11+I12","v":1133},{"$f":"SQRT((J11^2)+(J12^2))","v":228.42285349763057},{"$f":"K11+K12","v":202},{"$f":"SQRT((L11^2)+(L12^2))","v":83.21658488546619},{"$f":"M11+M12","v":106},{"$f":"SQRT((N11^2)+(N12^2))","v":51.894122981316485},{"$f":"O11+O12","v":59},{"$f":"SQRT((P11^2)+(P12^2))","v":25.612496949731394},{"$f":"Q11+Q12","v":240},{"$f":"SQRT((R11^2)+(R12^2))","v":77.698133825723247},{"$f":"S11+S12","v":93},{"$f":"SQRT((T11^2)+(T12^2))","v":51.088159097779204},{"$f":"U11+U12","v":60},{"$f":"SQRT((V11^2)+(V12^2))","v":41.340053217188775},{"$f":"W11+W12","v":572},{"$f":"SQRT((X11^2)+(X12^2))","v":215.05813167606567},{"$f":"Y11+Y12","v":259},{"$f":"SQRT((Z11^2)+(Z12^2))","v":71.449282711584999},{"$f":"AA11+AA12","v":62},{"$f":"SQRT((AB11^2)+(AB12^2))","v":29.732137494637012},{"$f":"AC11+AC12","v":293},{"$f":"SQRT((AD11^2)+(AD12^2))","v":106.66770832824712},{"$f":"AE11+AE12","v":91},{"$f":"SQRT((AF11^2)+(AF12^2))","v":29.410882339705484}]
[null,"Enrolled in grade 9 to grade 12",{"$f":"C13","v":198},{"$f":"D13","v":86},{"$f":"E13","v":19},16,161,103,572,142,69,40,18,18,41,34,203,97,33,21,72,58,345,172,186,116,66,35,{"$f":"AC13","v":185},73,35,18]
[null,"Enrolled in Elementary and High School",{"$f":"C11+C12+C13","v":595},{"$f":"SQRT((D11^2)+(D12^2)+(D13^2))","v":159.89058759038946},{"$f":"E11+E12+E13","v":63},{"$f":"SQRT((F11^2)+(F12^2)+(F13^2))","v":26.019223662515376},{"$f":"G11+G12+G13","v":604},{"$f":"SQRT((H11^2)+(H12^2)+(H13^2))","v":176.37743619862491},{"$f":"I11+I12+I13","v":1705},{"$f":"SQRT((J11^2)+(J12^2)+(J13^2))","v":268.96282270975667},{"$f":"K11+K12+K13","v":271},{"$f":"SQRT((L11^2)+(L12^2)+(L13^2))","v":92.330926563096938},{"$f":"M11+M12+M13","v":124},{"$f":"SQRT((N11^2)+(N12^2)+(N13^2))","v":54.927224579437834},{"$f":"O11+O12+O13","v":100},{"$f":"SQRT((P11^2)+(P12^2)+(P13^2))","v":42.567593307585526},{"$f":"Q11+Q12+Q13","v":443},{"$f":"SQRT((R11^2)+(R12^2)+(R13^2))","v":124.28193754524428},{"$f":"S11+S12+S13","v":126},{"$f":"SQRT((T11^2)+(T12^2)+(T13^2))","v":55.235857918565905},{"$f":"U11+U12+U13","v":132},{"$f":"SQRT((V11^2)+(V12^2)+(V13^2))","v":71.224995612495476},{"$f":"W11+W12+W13","v":917},{"$f":"SQRT((X11^2)+(X12^2)+(X13^2))","v":275.37973781671013},{"$f":"Y11+Y12+Y13","v":445},{"$f":"SQRT((Z11^2)+(Z12^2)+(Z13^2))","v":136.23876100434853},{"$f":"AA11+AA12+AA13","v":128},{"$f":"SQRT((AB11^2)+(AB12^2)+(AB13^2))","v":45.923850012820139},{"$f":"AC11+AC12+AC13","v":478},{"$f":"SQRT((AD11^2)+(AD12^2)+(AD13^2))","v":129.25556080881009},{"$f":"AE11+AE12+AE13","v":126},{"$f":"SQRT((AF11^2)+(AF12^2)+(AF13^2))","v":34.481879299133332}]
[null,"Enrolled in College or Graduate School",{"$f":"C14+C15","v":155},{"$f":"SQRT((D14^2)+(D15^2))","v":68.680419334771102},{"$f":"E14+E15","v":16},{"$f":"SQRT((F14^2)+(F15^2))","v":15.556349186104045},{"$f":"G14+G15","v":25},{"$f":"SQRT((H14^2)+(H15^2))","v":28.844410203711913},{"$f":"I14+I15","v":324},{"$f":"SQRT((J14^2)+(J15^2))","v":164.83021567661677},{"$f":"K14+K15","v":28},{"$f":"SQRT((L14^2)+(L15^2))","v":17.464249196572979},{"$f":"M14+M15","v":55},{"$f":"SQRT((N14^2)+(N15^2))","v":54.918120870983927},{"$f":"O14+O15","v":16},{"$f":"SQRT((P14^2)+(P15^2))","v":12.806248474865697},{"$f":"Q14+Q15","v":117},{"$f":"SQRT((R14^2)+(R15^2))","v":84.899941107164494},{"$f":"S14+S15","v":21},{"$f":"SQRT((T14^2)+(T15^2))","v":16.401219466856727},{"$f":"U14+U15","v":29},{"$f":"SQRT((V14^2)+(V15^2))","v":18.601075237738275},{"$f":"W14+W15","v":141},{"$f":"SQRT((X14^2)+(X15^2))","v":89.095454429504983},{"$f":"Y14+Y15","v":283},{"$f":"SQRT((Z14^2)+(Z15^2))","v":68.154236845554948},{"$f":"AA14+AA15","v":8},{"$f":"SQRT((AB14^2)+(AB15^2))","v":14.212670403551895},{"$f":"AC14+AC15","v":136},{"$f":"SQRT((AD14^2)+(AD15^2))","v":56.603886792339623},{"$f":"AE14+AE15","v":66},{"$f":"SQRT((AF14^2)+(AF15^2))","v":35.510561809129406}]
[null,"Not enrolled in school",{"$f":"C16","v":3122},{"$f":"D16","v":165},{"$f":"E16","v":797},121,4174,221,10151,265,1415,133,659,166,540,77,2298,109,519,93,691,109,5093,294,1775,166,918,167,{"$f":"AC16","v":2618},129,1404,158]
[]
[]
[null,"B14001. Calculated  SCHOOL ENROLLMENT BY LEVEL OF SCHOOL FOR THE POPULATION 3 YEARS AND OVER "]
[null,"Universe: POPULATION 3 YEARS AND OVER"]
[null,"Data Set: 2010-2014 American Community Survey 5-Year Estimates"]
[]
[null,null,"Acworth",null,"Charlestown",null,"Claremont",null,"Cornish",null,"Croydon",null,"Goshen",null,"Grantham",null,"Langdon",null,"Lempster",null,"Newport",null,"Plainfield",null,"Springfield",null,"Sunapee",null,"Unity",null,"Washington"]
[null,null,"Estimate","Margin Of Error","Estimate","Margin Of Error","Estimate","Margin Of Error","Estimate","Margin Of Error","Estimate","Margin Of Error","Estimate","Margin Of Error","Estimate","Margin Of Error","Estimate","Margin Of Error","Estimate","Margin Of Error","Estimate","Margin Of Error","Estimate","Margin Of Error","Estimate","Margin Of Error","Estimate","Margin Of Error","Estimate","Margin Of Error","Estimate","Margin Of Error"]
[null,"Total:",895,145,4936,73,12660,130,1544,169,628,126,799,121,2871,72,768,146,1059,150,6376,51,2427,156,1274,204,3319,61,1559,181,1005,137]
[null,"Enrolled in school:",192,80,843,131,2620,267,351,94,109,40,125,52,681,156,168,72,181,60,1420,256,625,98,302,117,641,116,227,69,192,74]
[null,"Enrolled in nursery school, preschool, and Kindergarten",27,17.804493814764857,132,81.565924257621205,325,119.47384651043926,35,20.591260281974002,7,13.601470508735444,12,13.601470508735444,42,39.824615503479755,27,18.867962264113206,28,17,167,91.787798753429101,39,21.95449840010015,28,22.022715545545239,57,29.206163733020468,16,17.804493814764857,9,13.601470508735444]
[null,"Enrolled in nursery school, preschool",21,14,72,62,141,75,21,18,0,11,10,13,19,25,21,16,18,15,30,37,30,19,17,17,34,23,16,14,9,8]
[null,"Enrolled in kindergarten",6,11,60,53,184,93,14,10,7,8,2,4,23,31,6,10,10,8,137,84,9,11,11,14,23,18,0,11,0,11]
[null,"Enrolled in grade Elementary School (grade 1 to grade 8)",82,35.383612025908263,378,141.01418368376991,1191,246.78938388836744,146,53.338541412378348,46,24.413111231467404,58,32.649655434629018,376,129.07362240210043,88,48.764741360946438,96,35.468295701936398,649,196.94669329541941,228,60.811183182043088,155,51.224993899462788,342,113.20777358467925,74,28.231188426986208,78,35.383612025908263]
[null,"Enrolled in grade 9 to grade 12",58,30,169,79,736,186,90,37,38,21,33,19,154,68,44,21,37,20,237,117,122,63,72,44,128,60,79,28,60,35]
[null,"Enrolled in Elementary and High School",140,46.389654018972806,547,161.63539216396885,1927,309.03236076501764,236,64.91532946846992,84,32.202484376209235,91,37.775653535048207,530,145.89036979869508,132,53.094255809833136,133,40.718546143004666,886,229.0785891348207,350,87.56140702387097,227,67.527772064536535,470,128.12493902437572,153,39.761790704142086,138,49.769468552517218]
[null,"Enrolled in College or Graduate School",25,22.825424421026653,164,88.75246475450696,368,132.43866504914644,80,34.655446902326915,18,16.492422502470642,22,11.313708498984761,109,61.326992425847855,9,12.529964086141668,20,12.806248474865697,367,186.48860555004427,236,64.140470843298303,47,29.732137494637012,114,64.899922958351809,58,44.283179650969061,45,25.612496949731394]
[null,"Not enrolled in school",703,99,4093,150,10040,241,1193,115,519,107,674,101,2190,164,600,103,878,130,4956,251,1802,124,972,161,2678,112,1332,147,813,113]
[]
[]
[]
[]
[]
[]
[]
[]
[]
[]
[]
[]
[]
[]
[]
[]
[]
[]
[]
[]
[]
[]
[]
[]
[]
[]
[]
[]
[]
[null,"B14001.Calculated  SCHOOL ENROLLMENT BY LEVEL OF SCHOOL FOR THE POPULATION 3 YEARS AND OVER "]
[null,"Universe: POPULATION 3 YEARS AND OVER"]
[null,"Data Set: 2005-2009 American Community Survey 5-Year Estimates"]
[]
[null,null,"Acworth",null,"Charlestown",null,"Claremont",null,"Cornish",null,"Croydon",null,"Goshen",null,"Grantham",null,"Langdon",null,"Lempster",null,"Newport",null,"Plainfield",null,"Springfield",null,"Sunapee",null,"Unity",null,"Washington"]
[null,null,"Estimate","Margin Of Error","Estimate","Margin Of Error","Estimate","Margin Of Error","Estimate","Margin Of Error","Estimate","Margin Of Error","Estimate","Margin Of Error","Estimate","Margin Of Error","Estimate","Margin Of Error","Estimate","Margin Of Error","Estimate","Margin Of Error","Estimate","Margin Of Error","Estimate","Margin Of Error","Estimate","Margin Of Error","Estimate","Margin Of Error","Estimate","Margin Of Error"]
[null,"Total:",791,153,4667,87,12550,133,1708,194,737,124,895,145,2452,44,575,167,1114,160,6370,81,2510,254,823,149,3253,68,1678,232,1231,161]
[null,"Enrolled in school:",62,39,990,132,2637,285,432,116,116,56,186,67,502,90,148,75,296,86,1687,336,655,133,202,65,811,158,327,115,213,72]
[null,"Enrolled in nursery school, preschool, and Kindergarten",8,114.62983904725679,129,67.94115100585212,275,118.25819210524064,22,18.601075237738275,9,8.6023252670426267,25,16.552945357246848,78,37.589892258425003,21,19.104973174542799,11,9.8488578017961039,78,53.263495942343098,63,35.114099732158877,25,16.643316977093239,103,81.6333265278342,56,34.828149534535996,28,115.41230437002807]
[null,"Enrolled in nursery school, preschool",0,114,71,46,137,79,10,15,4,5,5,7,39,33,9,14,8,9,47,41,8,12,16,14,69,70]
[null,"Enrolled in kindergarten",8,12,58,50,138,88,12,11,5,7,20,15,39,18,12,13,3,4,31,34,55,33,9,9,34,42]
[null,"Enrolled in grade Elementary School (grade 1 to grade 8)",10,114.35471131527551,421,125.89678312014172,1371,254.95097567963924,157,46.097722286464439,77,37.483329627982627,107,50.24937810560445,141,45.221676218380054,71,39.623225512317902,127,50.566787519082126,733,182.58422713914803,287,70.292247083159893,103,42.047592083257278,351,108.45275469069469,148,56.586217403180434,88,36.400549446402593]
[null,"Enrolled in grade 9 to grade 12",35,28,262,118,512,154,155,64,8,8,48,28,124,56,49,30,103,51,474,203,190,71,28,20,190,75,80,48,75,41]
[null,"Enrolled in Elementary and High School",45,117.73274820541648,683,172.55144160510511,1883,297.85231239659697,312,78.87331614684399,85,38.327535793473601,155,57.523908073078623,265,71.979163651712426,120,49.699094559156713,230,71.819217483901895,1207,273.0311337558411,477,99.90995946350894,131,46.561786907291264,541,131.85977400253651,228,74.202425836356596,163,54.827000647491197]
[null,"Enrolled in College or Graduate School",9,114.85643212288984,178,92.195444572928878,479,179.42407865166817,98,51.855568649856693,22,115.91807451816995,6,7.810249675906654,159,67.675697262754525,7,114.52947218947619,55,29.154759474226502,402,166.68833192518306,115,43.139309220245984,46,28.284271247461902,167,97.185389848474657,43,28.861739379323623,22,115.26057435220423]
[null,"Not enrolled in school",729,143,3677,155,9913,267,1276,144,621,95,709,104,1950,96,427,116,818,104,4683,301,1855,189,621,110,2442,187,1351,192,1018,124]

{"sheet":"ACS_Table_B15002","index":97,"n_rows":141,"n_cols":32,"rows_kept":141,"cut":false,"hidden":true,"merged":[]}
[null,"B15002. SEX BY EDUCATIONAL ATTAINMENT FOR THE POPULATION 25 YEARS AND OVER"]
[null,"Universe: Population 25 years an over"]
[null,"Data Set: 2015-2019 American Community Survey 5-Year Estimates"]
[]
[null,null,"Acworth",null,"Charlestown",null,"Claremont",null,"Cornish",null,"Croydon",null,"Goshen",null,"Grantham",null,"Langdon",null,"Lempster",null,"Newport",null,"Plainfield",null,"Springfield",null,"Sunapee",null,"Unity",null,"Washington"]
[null,null,"Estimate","Margin Of Error","Estimate","Margin Of Error","Estimate","Margin Of Error","Estimate","Margin Of Error","Estimate","Margin Of Error","Estimate","Margin Of Error","Estimate","Margin Of Error","Estimate","Margin Of Error","Estimate","Margin Of Error","Estimate","Margin Of Error","Estimate","Margin Of Error","Estimate","Margin Of Error","Estimate","Margin Of Error","Estimate","Margin Of Error","Estimate","Margin Of Error"]
[null,"Total:",2924,148,780,117,3856,202,9375,298,1365,127,603,139,531,77,2274,126,510,89,681,108,4549,302,1740,152,889,161,2517,142,1324,141]
[null,"Male:",1444,91,414,69,1921,165,4561,216,671,66,317,77,267,55,1051,100,242,53,353,62,2191,248,854,92,472,100,1216,123,622,62]
[null,"No schooling completed",8,12,0,11,0,16,25,24,0,11,0,11,0,11,0,11,2,4,6,4,37,52,0,11,0,11,17,28,10,10]
[null,"Nursery to 4th grade",0,11,2,3,0,16,0,18,0,11,1,3,0,11,0,11,3,4,0,11,13,28,0,11,0,11,0,11,4,10]
[null,"5th and 6th grade",0,11,0,11,0,16,19,28,0,11,6,9,0,11,0,11,0,11,4,5,11,18,0,11,8,12,0,11,3,4]
[null,"7th and 8th grade",17,18,7,9,0,16,48,39,0,11,4,5,1,3,0,11,3,4,0,11,40,41,10,10,9,14,0,11,18,16]
[null,"9th grade",0,11,3,5,134,122,43,38,0,11,1,3,0,11,0,11,0,11,27,21,132,184,0,11,6,8,0,11,19,21]
[null,"10th grade",8,12,16,17,15,24,227,154,4,6,7,10,6,5,0,11,10,11,9,13,11,18,0,11,0,11,0,11,20,19]
[null,"11th grade",6,10,0,11,53,58,82,46,11,11,5,8,4,4,0,11,0,11,4,5,93,94,20,24,0,11,0,11,27,20]
[null,"12th grade, no diploma",0,11,2,4,17,27,86,53,24,20,11,10,2,3,0,11,2,3,11,9,11,18,5,8,6,9,0,11,17,11]
[null,"High school graduate, GED, or alternative",384,91,172,45,1038,198,1908,260,221,47,138,52,133,37,168,82,87,27,121,35,781,197,292,73,194,83,411,121,266,50]
[null,"Some college, less than 1 year",122,69,21,14,119,79,289,128,32,20,18,15,21,20,44,43,15,17,24,14,119,72,43,23,17,18,44,33,19,11]
[null,"Some college, 1 or more years, no degree",139,64,44,26,166,88,517,164,74,33,27,14,35,24,80,74,33,21,36,21,401,182,79,44,26,22,176,90,97,35]
[null,"Associate's degree",146,64,32,20,155,84,342,122,64,24,37,34,15,13,35,44,27,18,42,31,178,99,79,35,15,15,133,65,41,24]
[null,"Bachelor's degree",431,101,91,27,140,78,812,221,128,39,49,22,27,17,442,165,42,19,53,32,307,130,178,52,113,44,216,95,33,14]
[null,"Master's degree",140,73,13,11,83,83,123,76,75,28,9,7,19,16,220,105,11,7,16,12,41,51,98,48,56,35,205,80,31,20]
[null,"Professional school degree",21,23,6,5,1,2,2,5,23,14,4,5,4,5,0,11,7,6,0,11,0,16,26,17,13,15,5,8,17,13]
[null,"Doctorate degree",22,25,5,5,0,16,15,12,0,11,0,11,62,50,0,11,0,11,16,26,24,17,9,9,9,16,0,11,5,6]
[null,"Female:",1480,108,366,63,1935,206,694,80,286,71,264,39,1223,138,268,46,328,65,2358,202,886,89,417,81,1301,138,702,116,485,88]
[null,"No schooling completed",9,14,0,11,0,16,0,11,0,11,0,11,0,11,0,11,0,11,40,39,5,8,0,11,6,10,9,12,4,6]
[null,"Nursery to 4th grade",0,11,0,11,0,16,0,11,0,11,0,11,0,11,0,11,4,6,19,31,0,11,0,11,0,11,0,11,0,11]
[null,"5th and 6th grade",0,11,0,11,0,16,0,11,0,11,2,3,0,11,0,11,0,11,0,16,5,7,0,11,0,11,5,10,0,11]
[null,"7th and 8th grade",0,11,2,3,0,16,0,11,0,11,6,13,0,11,2,3,3,4,8,11,0,11,0,11,21,19,64,49,0,11]
[null,"9th grade",0,11,5,9,0,16,0,11,0,11,10,10,14,21,7,11,2,3,53,41,0,11,0,11,0,11,31,21,3,6]
[null,"10th grade",33,29,6,9,59,71,2,4,10,10,11,9,0,11,7,11,3,5,24,28,0,11,0,11,16,24,3,7,0,11]
[null,"11th grade",15,18,8,9,54,57,4,6,5,5,0,11,0,11,6,5,0,11,33,52,4,6,8,11,0,11,26,22,4,5]
[null,"12th grade, no diploma",23,26,0,11,0,16,4,8,3,5,4,4,0,11,6,6,6,6,39,59,14,12,4,6,0,11,5,6,0,11]
[null,"High school graduate, GED, or alternative",247,88,102,35,847,236,195,49,120,47,115,34,132,69,54,26,143,61,909,195,185,58,143,55,342,139,199,67,162,40]
[null,"Some college, less than 1 year",87,47,7,5,101,70,26,13,23,17,24,18,13,18,13,11,15,9,110,65,31,17,29,22,36,31,82,35,41,18]
[null,"Some college, 1 or more years, no degree",212,80,71,30,224,122,80,35,29,18,36,17,132,109,15,8,62,33,258,138,62,26,41,24,158,76,77,38,80,65]
[null,"Associate's degree",225,80,27,16,237,102,52,30,38,22,10,7,153,78,62,28,8,7,265,124,112,57,34,24,105,62,70,30,67,29]
[null,"Bachelor's degree",320,84,78,34,307,120,160,40,45,28,28,14,475,154,71,28,52,21,370,146,235,58,105,49,356,108,101,37,85,38]
[null,"Master's degree",246,78,40,19,61,61,139,41,9,8,14,12,232,119,17,8,21,13,150,81,185,62,48,24,194,78,20,11,22,11]
[null,"Professional school degree",9,14,17,12,45,53,27,20,2,3,4,4,55,65,5,8,6,9,55,66,30,20,0,11,32,24,10,10,11,11]
[null,"Doctorate degree",54,68,3,4,0,16,5,7,2,4,0,11,17,26,3,5,3,4,25,29,18,26,5,7,35,31,0,11,6,6]
[]
[]
[]
[]
[]
[]
[null,"Calculated B15002. SEX BY EDUCATIONAL ATTAINMENT FOR THE POPULATION 25 YEARS AND OVER"]
[null,"Universe: Population 25 years an over"]
[null,"Data Set: 2015-2019 American Community Survey 5-Year Estimates"]
[]
[null,null,"Acworth",null,"Charlestown",null,"Claremont",null,"Cornish",null,"Croydon",null,"Goshen",null,"Grantham",null,"Langdon",null,"Lempster",null,"Newport",null,"Plainfield",null,"Springfield",null,"Sunapee",null,"Unity",null,"Washington"]
[null,null,"Estimate","Margin Of Error","Estimate","Margin Of Error","Estimate","Margin Of Error","Estimate","Margin Of Error","Estimate","Margin Of Error","Estimate","Margin Of Error","Estimate","Margin Of Error","Estimate","Margin Of Error","Estimate","Margin Of Error","Estimate","Margin Of Error","Estimate","Margin Of Error","Estimate","Margin Of Error","Estimate","Margin Of Error","Estimate","Margin Of Error","Estimate","Margin Of Error"]
[null,"Total:",{"$f":"C7","v":2924},{"$f":"D7","v":148},{"$f":"E7","v":780},{"$f":"F7","v":117},{"$f":"G7","v":3856},202,9375,298,1365,127,603,139,531,77,2274,126,510,89,681,108,4549,302,1740,152,889,161,{"$f":"AC7","v":2517},142,1324,141]
[null,"Less than 9th grade",{"$f":"(C12+C11+C10)+(C27+C28+C29)","v":17},{"$f":"SQRT((D12^2)+(D11^2)+(D10^2)+(D27^2)+(D28^2)+(D29^2))","v":30.479501308256342},{"$f":"(E12+E11+E10)+(E27+E28+E29)","v":11},{"$f":"SQRT((F12^2)+(F11^2)+(F10^2)+(F27^2)+(F28^2)+(F29^2))","v":21.494185260204677},{"$f":"(G12+G11+G10)+(G27+G28+G29)","v":0},{"$f":"SQRT((H12^2)+(H11^2)+(H10^2)+(H27^2)+(H28^2)+(H29^2))","v":39.191835884530846},{"$f":"(I12+I11+I10)+(I27+I28+I29)","v":67},{"$f":"SQRT((J12^2)+(J11^2)+(J10^2)+(J27^2)+(J28^2)+(J29^2))","v":54.699177324709375},{"$f":"(K12+K11+K10)+(K27+K28+K29)","v":0},{"$f":"SQRT((L12^2)+(L11^2)+(L10^2)+(L27^2)+(L28^2)+(L29^2))","v":26.944387170614959},{"$f":"(M12+M11+M10)+(M27+M28+M29)","v":19},{"$f":"SQRT((N12^2)+(N11^2)+(N10^2)+(N27^2)+(N28^2)+(N29^2))","v":20.346989949375804},{"$f":"(O12+O11+O10)+(O27+O28+O29)","v":1},{"$f":"SQRT((P12^2)+(P11^2)+(P10^2)+(P27^2)+(P28^2)+(P29^2))","v":24.779023386727733},{"$f":"(Q12+Q11+Q10)+(Q27+Q28+Q29)","v":2},{"$f":"SQRT((R12^2)+(R11^2)+(R10^2)+(R27^2)+(R28^2)+(R29^2))","v":24.779023386727733},{"$f":"(S12+S11+S10)+(S27+S28+S29)","v":13},{"$f":"SQRT((T12^2)+(T11^2)+(T10^2)+(T27^2)+(T28^2)+(T29^2))","v":18.055470085267789},{"$f":"(U12+U11+U10)+(U27+U28+U29)","v":31},{"$f":"SQRT((V12^2)+(V11^2)+(V10^2)+(V27^2)+(V28^2)+(V29^2))","v":40.06245124802026},{"$f":"(W12+W11+W10)+(W27+W28+W29)","v":69},{"$f":"SQRT((X12^2)+(X11^2)+(X10^2)+(X27^2)+(X28^2)+(X29^2))","v":55.497747702046432},{"$f":"(Y12+Y11+Y10)+(Y27+Y28+Y29)","v":10},{"$f":"SQRT((Z12^2)+(Z11^2)+(Z10^2)+(Z27^2)+(Z28^2)+(Z29^2))","v":26.551836094703507},{"$f":"(AA12+AA11+AA10)+(AA27+AA28+AA29)","v":38},{"$f":"SQRT((AB12^2)+(AB11^2)+(AB10^2)+(AB27^2)+(AB28^2)+(AB29^2))","v":32.619012860600179},{"$f":"(AC12+AC11+AC10)+(AC27+AC28+AC29)","v":69},{"$f":"SQRT((AD12^2)+(AD11^2)+(AD10^2)+(AD27^2)+(AD28^2)+(AD29^2))","v":54.63515351859094},{"$f":"(AE12+AE11+AE10)+(AE27+AE28+AE29)","v":25},{"$f":"SQRT((AF12^2)+(AF11^2)+(AF10^2)+(AF27^2)+(AF28^2)+(AF29^2))","v":27.110883423451916}]
[null,"9th to 12th grade, no diploma",{"$f":"(C13+C14+C15+C16)+(C30+C31+C32+C33)","v":85},{"$f":"SQRT((D13^2)+(D14^2)+(D15^2)+(D16^2)+(D30^2)+(D31^2)+(D32^2)+(D33^2))","v":49.477267507411923},{"$f":"(E13+E14+E15+E16)+(E30+E31+E32+E33)","v":40},{"$f":"SQRT((F13^2)+(F14^2)+(F15^2)+(F16^2)+(F30^2)+(F31^2)+(F32^2)+(F33^2))","v":28.548204847240395},{"$f":"(G13+G14+G15+G16)+(G30+G31+G32+G33)","v":332},{"$f":"SQRT((H13^2)+(H14^2)+(H15^2)+(H16^2)+(H30^2)+(H31^2)+(H32^2)+(H33^2))","v":168.38942959699102},{"$f":"(I13+I14+I15+I16)+(I30+I31+I32+I33)","v":448},{"$f":"SQRT((J13^2)+(J14^2)+(J15^2)+(J16^2)+(J30^2)+(J31^2)+(J32^2)+(J33^2))","v":174.13213373757299},{"$f":"(K13+K14+K15+K16)+(K30+K31+K32+K33)","v":57},{"$f":"SQRT((L13^2)+(L14^2)+(L15^2)+(L16^2)+(L30^2)+(L31^2)+(L32^2)+(L33^2))","v":30.805843601498726},{"$f":"(M13+M14+M15+M16)+(M30+M31+M32+M33)","v":49},{"$f":"SQRT((N13^2)+(N14^2)+(N15^2)+(N16^2)+(N30^2)+(N31^2)+(N32^2)+(N33^2))","v":24.310491562286437},{"$f":"(O13+O14+O15+O16)+(O30+O31+O32+O33)","v":26},{"$f":"SQRT((P13^2)+(P14^2)+(P15^2)+(P16^2)+(P30^2)+(P31^2)+(P32^2)+(P33^2))","v":31.22498999199199},{"$f":"(Q13+Q14+Q15+Q16)+(Q30+Q31+Q32+Q33)","v":26},{"$f":"SQRT((R13^2)+(R14^2)+(R15^2)+(R16^2)+(R30^2)+(R31^2)+(R32^2)+(R33^2))","v":28.053520278211074},{"$f":"(S13+S14+S15+S16)+(S30+S31+S32+S33)","v":23},{"$f":"SQRT((T13^2)+(T14^2)+(T15^2)+(T16^2)+(T30^2)+(T31^2)+(T32^2)+(T33^2))","v":23.727621035409346},{"$f":"(U13+U14+U15+U16)+(U30+U31+U32+U33)","v":200},{"$f":"SQRT((V13^2)+(V14^2)+(V15^2)+(V16^2)+(V30^2)+(V31^2)+(V32^2)+(V33^2))","v":96.778096695481665},{"$f":"(W13+W14+W15+W16)+(W30+W31+W32+W33)","v":265},{"$f":"SQRT((X13^2)+(X14^2)+(X15^2)+(X16^2)+(X30^2)+(X31^2)+(X32^2)+(X33^2))","v":209.19369015340783},{"$f":"(Y13+Y14+Y15+Y16)+(Y30+Y31+Y32+Y33)","v":37},{"$f":"SQRT((Z13^2)+(Z14^2)+(Z15^2)+(Z16^2)+(Z30^2)+(Z31^2)+(Z32^2)+(Z33^2))","v":35.791060336346561},{"$f":"(AA13+AA14+AA15+AA16)+(AA30+AA31+AA32+AA33)","v":28},{"$f":"SQRT((AB13^2)+(AB14^2)+(AB15^2)+(AB16^2)+(AB30^2)+(AB31^2)+(AB32^2)+(AB33^2))","v":36.414282912066248},{"$f":"(AC13+AC14+AC15+AC16)+(AC30+AC31+AC32+AC33)","v":65},{"$f":"SQRT((AD13^2)+(AD14^2)+(AD15^2)+(AD16^2)+(AD30^2)+(AD31^2)+(AD32^2)+(AD33^2))","v":38.652296180175377},{"$f":"(AE13+AE14+AE15+AE16)+(AE30+AE31+AE32+AE33)","v":90},{"$f":"SQRT((AF13^2)+(AF14^2)+(AF15^2)+(AF16^2)+(AF30^2)+(AF31^2)+(AF32^2)+(AF33^2))","v":40.323690307311907}]
[null,"High school graduate (includes equivalency)",{"$f":"C17+C34","v":631},{"$f":"SQRT((D17^2)+(D34^2))","v":126.58988901172162},{"$f":"E17+E34","v":274},{"$f":"SQRT((F17^2)+(F34^2))","v":57.008771254956898},{"$f":"G17+G34","v":1885},{"$f":"SQRT((H17^2)+(H34^2))","v":308.05843601498725},{"$f":"I17+I34","v":2103},{"$f":"SQRT((J17^2)+(J34^2))","v":264.57702092207478},{"$f":"K17+K34","v":341},{"$f":"SQRT((L17^2)+(L34^2))","v":66.468037431535464},{"$f":"M17+M34","v":253},{"$f":"SQRT((N17^2)+(N34^2))","v":62.128898268036266},{"$f":"O17+O34","v":265},{"$f":"SQRT((P17^2)+(P34^2))","v":78.294316524253531},{"$f":"Q17+Q34","v":222},{"$f":"SQRT((R17^2)+(R34^2))","v":86.023252670426274},{"$f":"S17+S34","v":230},{"$f":"SQRT((T17^2)+(T34^2))","v":66.708320320631671},{"$f":"U17+U34","v":1030},{"$f":"SQRT((V17^2)+(V34^2))","v":198.11612756158948},{"$f":"W17+W34","v":966},{"$f":"SQRT((X17^2)+(X34^2))","v":205.36065835500236},{"$f":"Y17+Y34","v":435},{"$f":"SQRT((Z17^2)+(Z34^2))","v":91.400218818118816},{"$f":"AA17+AA34","v":536},{"$f":"SQRT((AB17^2)+(AB34^2))","v":161.89502771858065},{"$f":"AC17+AC34","v":610},{"$f":"SQRT((AD17^2)+(AD34^2))","v":138.31124321616085},{"$f":"AE17+AE34","v":428},{"$f":"SQRT((AF17^2)+(AF34^2))","v":64.031242374328485}]
[null,"Some college, no degree",{"$f":"(C18+C19)+(C35+C36)","v":560},{"$f":"SQRT((D18^2)+(D19^2)+(D35^2)+(D36^2))","v":132.15899515356494},{"$f":"(E18+E19)+(E35+E36)","v":143},{"$f":"SQRT((F18^2)+(F19^2)+(F35^2)+(F36^2))","v":42.391036788453285},{"$f":"(G18+G19)+(G35+G36)","v":610},{"$f":"SQRT((H18^2)+(H19^2)+(H35^2)+(H36^2))","v":183.76343488300387},{"$f":"(I18+I19)+(I35+I36)","v":912},{"$f":"SQRT((J18^2)+(J19^2)+(J35^2)+(J36^2))","v":211.36224828478714},{"$f":"(K18+K19)+(K35+K36)","v":158},{"$f":"SQRT((L18^2)+(L19^2)+(L35^2)+(L36^2))","v":45.847573545390603},{"$f":"(M18+M19)+(M35+M36)","v":105},{"$f":"SQRT((N18^2)+(N19^2)+(N35^2)+(N36^2))","v":32.155870381627054},{"$f":"(O18+O19)+(O35+O36)","v":201},{"$f":"SQRT((P18^2)+(P19^2)+(P35^2)+(P36^2))","v":114.80853626799707},{"$f":"(Q18+Q19)+(Q35+Q36)","v":152},{"$f":"SQRT((R18^2)+(R19^2)+(R35^2)+(R36^2))","v":86.660256173173181},{"$f":"(S18+S19)+(S35+S36)","v":125},{"$f":"SQRT((T18^2)+(T19^2)+(T35^2)+(T36^2))","v":43.588989435406738},{"$f":"(U18+U19)+(U35+U36)","v":428},{"$f":"SQRT((V18^2)+(V19^2)+(V35^2)+(V36^2))","v":154.61565250646521},{"$f":"(W18+W19)+(W35+W36)","v":613},{"$f":"SQRT((X18^2)+(X19^2)+(X35^2)+(X36^2))","v":198.17416582390351},{"$f":"(Y18+Y19)+(Y35+Y36)","v":192},{"$f":"SQRT((Z18^2)+(Z19^2)+(Z35^2)+(Z36^2))","v":59.371710435189584},{"$f":"(AA18+AA19)+(AA35+AA36)","v":237},{"$f":"SQRT((AB18^2)+(AB19^2)+(AB35^2)+(AB36^2))","v":86.861959452915869},{"$f":"(AC18+AC19)+(AC35+AC36)","v":379},{"$f":"SQRT((AD18^2)+(AD19^2)+(AD35^2)+(AD36^2))","v":108.89444430272832},{"$f":"(AE18+AE19)+(AE35+AE36)","v":237},{"$f":"SQRT((AF18^2)+(AF19^2)+(AF35^2)+(AF36^2))","v":76.778903352418368}]
[null,"Associate's degree",{"$f":"C20+C37","v":371},{"$f":"SQRT((D20^2)+(D37^2))","v":102.44998779892558},{"$f":"E20+E37","v":59},{"$f":"SQRT((F20^2)+(F37^2))","v":25.612496949731394},{"$f":"G20+G37","v":392},{"$f":"SQRT((H20^2)+(H37^2))","v":132.13629327327143},{"$f":"I20+I37","v":394},{"$f":"SQRT((J20^2)+(J37^2))","v":125.63439019631528},{"$f":"K20+K37","v":102},{"$f":"SQRT((L20^2)+(L37^2))","v":32.557641192199412},{"$f":"M20+M37","v":47},{"$f":"SQRT((N20^2)+(N37^2))","v":34.713109915419565},{"$f":"O20+O37","v":168},{"$f":"SQRT((P20^2)+(P37^2))","v":79.075912893876861},{"$f":"Q20+Q37","v":97},{"$f":"SQRT((R20^2)+(R37^2))","v":52.153619241621193},{"$f":"S20+S37","v":35},{"$f":"SQRT((T20^2)+(T37^2))","v":19.313207915827967},{"$f":"U20+U37","v":307},{"$f":"SQRT((V20^2)+(V37^2))","v":127.81627439414747},{"$f":"W20+W37","v":290},{"$f":"SQRT((X20^2)+(X37^2))","v":114.23659658795863},{"$f":"Y20+Y37","v":113},{"$f":"SQRT((Z20^2)+(Z37^2))","v":42.43819034784589},{"$f":"AA20+AA37","v":120},{"$f":"SQRT((AB20^2)+(AB37^2))","v":63.788713735268246},{"$f":"AC20+AC37","v":203},{"$f":"SQRT((AD20^2)+(AD37^2))","v":71.589105316381762},{"$f":"AE20+AE37","v":108},{"$f":"SQRT((AF20^2)+(AF37^2))","v":37.643060449437421}]
[null,"Bachelor's degree",{"$f":"C21+C38","v":751},{"$f":"SQRT((D21^2)+(D38^2))","v":131.36590120727678},{"$f":"E21+E38","v":169},{"$f":"SQRT((F21^2)+(F38^2))","v":43.416586692184822},{"$f":"G21+G38","v":447},{"$f":"SQRT((H21^2)+(H38^2))","v":143.12232530251876},{"$f":"I21+I38","v":972},{"$f":"SQRT((J21^2)+(J38^2))","v":224.59073890078372},{"$f":"K21+K38","v":173},{"$f":"SQRT((L21^2)+(L38^2))","v":48.010415536631214},{"$f":"M21+M38","v":77},{"$f":"SQRT((N21^2)+(N38^2))","v":26.076809620810597},{"$f":"O21+O38","v":502},{"$f":"SQRT((P21^2)+(P38^2))","v":154.93547043850222},{"$f":"Q21+Q38","v":513},{"$f":"SQRT((R21^2)+(R38^2))","v":167.35889578985635},{"$f":"S21+S38","v":94},{"$f":"SQRT((T21^2)+(T38^2))","v":28.319604517012593},{"$f":"U21+U38","v":423},{"$f":"SQRT((V21^2)+(V38^2))","v":149.46571513226704},{"$f":"W21+W38","v":542},{"$f":"SQRT((X21^2)+(X38^2))","v":142.35167719419397},{"$f":"Y21+Y38","v":283},{"$f":"SQRT((Z21^2)+(Z38^2))","v":71.449282711584999},{"$f":"AA21+AA38","v":469},{"$f":"SQRT((AB21^2)+(AB38^2))","v":116.61903789690601},{"$f":"AC21+AC38","v":317},{"$f":"SQRT((AD21^2)+(AD38^2))","v":101.95096860746347},{"$f":"AE21+AE38","v":118},40.496913462633174]
[null,"Graduate or professional degree",{"$f":"(C22+C23+C24)+(C39+C40+C41)","v":492},{"$f":"SQRT((D22^2)+(D23^2)+(D24^2)+(D39^2)+(D41^2)+(D40^2))","v":131.85977400253651},{"$f":"(E22+E23+E24)+(E39+E40+E41)","v":84},{"$f":"SQRT((F22^2)+(F23^2)+(F24^2)+(F39^2)+(F41^2)+(F40^2))","v":26.305892875931811},{"$f":"(G22+G23+G24)+(G39+G40+G41)","v":190},{"$f":"SQRT((H22^2)+(H23^2)+(H24^2)+(H39^2)+(H41^2)+(H40^2))","v":118.04660096758398},{"$f":"(I22+I23+I24)+(I39+I40+I41)","v":311},{"$f":"SQRT((J22^2)+(J23^2)+(J24^2)+(J39^2)+(J41^2)+(J40^2))","v":89.861003778057139},{"$f":"(K22+K23+K24)+(K39+K40+K41)","v":111},{"$f":"SQRT((L22^2)+(L23^2)+(L24^2)+(L39^2)+(L41^2)+(L40^2))","v":34.496376621320678},{"$f":"(M22+M23+M24)+(M39+M40+M41)","v":31},{"$f":"SQRT((N22^2)+(N23^2)+(N24^2)+(N39^2)+(N41^2)+(N40^2))","v":21.817424229271428},{"$f":"(O22+O23+O24)+(O39+O40+O41)","v":389},{"$f":"SQRT((P22^2)+(P23^2)+(P24^2)+(P39^2)+(P41^2)+(P40^2))","v":147.79377524104322},{"$f":"(Q22+Q23+Q24)+(Q39+Q40+Q41)","v":245},{"$f":"SQRT((R22^2)+(R23^2)+(R24^2)+(R39^2)+(R41^2)+(R40^2))","v":106.86440005914037},{"$f":"(S22+S23+S24)+(S39+S40+S41)","v":48},{"$f":"SQRT((T22^2)+(T23^2)+(T24^2)+(T39^2)+(T41^2)+(T40^2))","v":21.725560982400431},{"$f":"(U22+U23+U24)+(U39+U40+U41)","v":262},{"$f":"SQRT((V22^2)+(V23^2)+(V24^2)+(V39^2)+(V41^2)+(V40^2))","v":112.68983982595769},{"$f":"(W22+W23+W24)+(W39+W40+W41)","v":298},{"$f":"SQRT((X22^2)+(X23^2)+(X24^2)+(X39^2)+(X41^2)+(X40^2))","v":89.810912477270818},{"$f":"(Y22+Y23+Y24)+(Y39+Y40+Y41)","v":186},{"$f":"SQRT((Z22^2)+(Z23^2)+(Z24^2)+(Z39^2)+(Z41^2)+(Z40^2))","v":58.480766068853782},{"$f":"(AA22+AA23+AA24)+(AA39+AA40+AA41)","v":339},{"$f":"SQRT((AB22^2)+(AB23^2)+(AB24^2)+(AB39^2)+(AB41^2)+(AB40^2))","v":96.57639463140049},{"$f":"(AC22+AC23+AC24)+(AC39+AC40+AC41)","v":240},{"$f":"SQRT((AD22^2)+(AD23^2)+(AD24^2)+(AD39^2)+(AD41^2)+(AD40^2))","v":83.228600853312443},{"$f":"(AE22+AE23+AE24)+(AE39+AE40+AE41)","v":92},{"$f":"SQRT((AF22^2)+(AF23^2)+(AF24^2)+(AF39^2)+(AF41^2)+(AF40^2))","v":29.715315916207253}]
[]
[]
[]
[]
[]
[]
[]
[]
[]
[]
[]
[]
[]
[]
[]
[]
[]
[]
[]
[]
[]
[]
[]
[]
[]
[]
[]
[null,"Calculated B15002. SEX BY EDUCATIONAL ATTAINMENT FOR THE POPULATION 25 YEARS AND OVER"]
[null,"Universe: Population 25 years an over"]
[null,"Data Set: 2010-2014 American Community Survey 5-Year Estimates"]
[null,null,"Acworth",null,"Charlestown",null,"Claremont",null,"Cornish",null,"Croydon",null,"Goshen",null,"Grantham",null,"Langdon",null,"Lempster",null,"Newport",null,"Plainfield",null,"Springfield",null,"Sunapee",null,"Unity",null,"Washington"]
[null,null,"Estimate","Margin Of Error","Estimate","Margin Of Error","Estimate","Margin Of Error","Estimate","Margin Of Error","Estimate","Margin Of Error","Estimate","Margin Of Error","Estimate","Margin Of Error","Estimate","Margin Of Error","Estimate","Margin Of Error","Estimate","Margin Of Error","Estimate","Margin Of Error","Estimate","Margin Of Error","Estimate","Margin Of Error","Estimate","Margin Of Error","Estimate","Margin Of Error"]
[null,"Total:",646,86,3921,165,9019,251,1141,106,499,96,621,79,2172,151,532,86,801,108,4797,216,1755,134,907,138,2607,102,1237,149,809,111]
[null,"Less than 9th grade",13,24.351591323771842,125,100.78194282707592,259,88.447724673956429,14,24.494897427831781,5,25.865034312755125,12,24.494897427831781,0,26.944387170614959,6,23,45,28.513154858766505,223,123.5637487291479,9,24.433583445741231,8,23.151673805580451,24,29.614185789921695,46,33.926390907374746,12,27.367864366808018]
[null,"9th to 12th grade, no diploma",25,28.42534080710379,348,141.01063789657857,860,182.57053431482311,57,21.563858652847824,69,30.708305065568176,85,34.655446902326915,60,40.93897898091744,29,19.570385790780925,54,30.413812651491099,306,118.93695809125101,71,43.692104549906958,38,33.882148692194832,6,30.773365106858236,109,40.681691213615984,44,22.135943621178654]
[null,"High school graduate (includes equivalency)",297,60.141499815019579,1722,243.08229059312404,3960,336.63036107873575,280,56.639209034025185,198,57.008771254956898,211,45,482,131.36590120727678,208,45.254833995939045,357,65.053823869162372,1933,295.51311307622206,388,69.06518659932803,290,64.637450444769243,472,142.61135999632006,586,96.896852374058057,283,58.600341295934449]
[null,"Some college, no degree",113,31.843366656181317,711,178.54411219639812,1675,248.51156914719283,224,53.916602266834282,81,29,86,32.680269276736382,268,110.6752004741803,93,30.919249667480614,127,41.060930335295616,782,216.78791479231492,283,65.215028942721474,187,53.684262125878192,485,130.18832512940628,226,51.478150704935004,164,39.153543900903784]
[null,"Associate's degree",53,21.931712199461309,456,159.90622251807463,550,157.20050890502867,123,32.526911934581186,65,29.529646120466801,59,23.430749027719962,164,74.732857566133518,37,21.400934559032695,62,21.400934559032695,436,154.98709623707387,152,48.918299234540036,96,39.623225512317902,174,76.609398901179219,73,27.586228448267445,86,35.846896657869841]
[null,"Bachelor's degree",96,26.627053911388696,463,181.55439956112329,1293,234.08759044426085,255,59.682493245507096,45,19.723082923316021,121,31.11269837220809,614,139.61733416735902,101,34.713109915419565,115,38.897300677553446,656,191.84629264074925,404,75.213030785895072,174,53.907327887774215,890,185.69868066305693,151,44.82186966202994,123,38.587562763149478]
[null,"Graduate or professional degree",49,20.639767440550294,96,86.180044093745977,387,112.31651704001509,188,43.255057507764334,36,26.683328128252668,39,25.159491250818249,570,140.75155416548694,58,17.916472867168917,34,28.284271247461902,406,144.3918280236108,448,90.989010325423365,114,33.451457367355459,556,136.74794331177344,46,34.249087579087416,94,33.151168908501553]
[]
[]
[]
[]
[]
[]
[]
[]
[]
[]
[]
[]
[]
[]
[]
[]
[]
[]
[]
[]
[]
[]
[]
[]
[]
[]
[]
["B15002. SEX BY EDUCATIONAL ATTAINMENT FOR THE POPULATION 25 YEARS AND OVER"]
["Universe: Population 25 years an over"]
["Data Set: 2005-2009 American Community Survey 5-Year Estimates"]
[null,null,"Acworth",null,"Charlestown",null,"Claremont",null,"Cornish",null,"Croydon",null,"Goshen",null,"Grantham",null,"Langdon",null,"Lempster",null,"Newport",null,"Plainfield",null,"Springfield",null,"Sunapee",null,"Unity",null,"Washington"]
[null,null,"Estimate","Margin Of Error","Estimate","Margin Of Error","Estimate","Margin Of Error","Estimate","Margin Of Error","Estimate","Margin Of Error","Estimate","Margin Of Error","Estimate","Margin Of Error","Estimate","Margin Of Error","Estimate","Margin Of Error","Estimate","Margin Of Error","Estimate","Margin Of Error","Estimate","Margin Of Error","Estimate","Margin Of Error","Estimate","Margin Of Error","Estimate","Margin Of Error"]
[null,"Total:",679,124,3536,183,9356,246,1197,117,560,85,656,92,1941,97,415,115,833,106,4024,269,1868,185,603,107,2337,138,1252,197,956,110]
[null,"Less than 9th grade",8,255.29590674352772,100,210.72731194603134,532,134.96666255042391,4,254.98235233050934,19,198.06817008292876,38,229.96086623597503,23,198.5572965166478,14,228.60664907215624,16,197.83831782544047,201,214.82551058940834,61,166.15956186750131,3,254.96078129783021,34,232.02155072320329,31,229.58222927744211,15,255.35269726399994]
[null,"9th to 12th grade, no diploma",57,200.28729365588822,343,116.59759860305871,579,164.872678148928,71,119.84573417523045,62,27.676705006196094,60,24.556058315617349,32,229.03493183355241,26,255.73032671155761,103,37.080992435478315,378,166.29792542301902,67,166.61032380978077,26,198.31036281546156,89,207.3137718531984,94,123.49493916756265,86,118.77710217040993]
[null,"High school graduate (includes equivalency)",344,70.035705179572517,1695,226.31394124092313,4478,341.01319622560061,400,78.600254452514335,230,51.739733281106119,245,57.280013966478741,299,61.71709649683789,198,57.280013966478741,335,57.982756057296896,1767,241.13274352522097,504,92.69843580125827,152,43.011626335213137,580,144.40221604947757,551,112.44998888394787,307,58.258046654518033]
[null,"Some college, no degree",95,37.429934544425805,546,148.79180084937477,1543,252.9565180026006,273,60.876925020897694,88,33.852621759621513,134,44.24929377967517,208,65.130637951735125,33,198.4641025475388,149,41.036569057366385,588,161.94443491518936,254,72.917761896536561,75,36.469165057620941,364,104.87134975769121,272,83.480536653761391,164,49.081564767232109]
[null,"Associate's degree",51,28.284271247461902,264,130.59862173851607,739,214.66252583997982,144,44.82186966202994,38,23.259406699226016,47,26.90724809414742,311,95.383436717283359,55,30,47,24.041630560342615,353,140.42791745233566,112,50,55,28.600699292150182,122,66.2872536767062,103,47.423622805517503,79,33.734255586865999]
[null,"Bachelor's degree",95,53.310411741047361,471,145.09651959988565,1055,240.56599926007831,157,48.60041152089147,93,40,99,36.796738985948195,526,109.62207806824317,53,31.144823004794873,116,40.496913462633174,526,154.14927829866735,542,108.90362712049586,178,45.967379738244816,702,143.58621103713267,102,39.698866482558415,136,37.443290453698111]
[null,"Graduate or professional degree",20,115.02173707608489,51,171.70905625505023,205,145.21019247972919,75,28.053520278211074,24,161.90429271640699,19,198.022725968511,328,77.239886069310074,13,197.88127753782064,34,115.67194992737004,84,128.31211945876353,152,61.571097115448573,66,118.52847759083046,248,100.18981984213765,33,162.90181091688331,110,37.363083384538811]

{"sheet":"ACS_Table_B25075_&_B25077","index":98,"n_rows":160,"n_cols":32,"rows_kept":160,"cut":false,"hidden":true,"merged":[]}
[null,"B25075. VALUE"]
[null,"Universe:  OWNER-OCCUPIED HOUSING UNITS"]
[null,"Data Set: 2015-2019 American Community Survey 5-Year Estimates"]
[]
[null,null,"Acworth",null,"Charlestown",null,"Claremont",null,"Cornish",null,"Croydon",null,"Goshen",null,"Grantham",null,"Langdon",null,"Lempster",null,"Newport",null,"Plainfield",null,"Springfield",null,"Sunapee",null,"Unity",null,"Washington"]
[null,null,"Estimate","Margin Of Error","Estimate","Margin Of Error","Estimate","Margin Of Error","Estimate","Margin Of Error","Estimate","Margin Of Error","Estimate","Margin Of Error","Estimate","Margin Of Error","Estimate","Margin Of Error","Estimate","Margin Of Error","Estimate","Margin Of Error","Estimate","Margin Of Error","Estimate","Margin Of Error","Estimate","Margin Of Error","Estimate","Margin Of Error","Estimate","Margin Of Error"]
[null,"Total:",340,50,1584,209,2921,257,686,79,257,53,223,35,1082,164,218,44,367,61,1743,186,803,78,398,71,1044,138,536,56,499,81]
[null,"Less than $10,000",0,11,35,40,18,27,0,11,0,11,0,11,0,11,0,11,0,11,0,16,15,11,0,11,4,8,3,4,0,11]
[null,"$10,000 to $14,999",3,4,72,69,11,18,0,11,4,6,0,11,0,11,0,11,0,11,14,22,0,11,3,5,8,13,0,11,0,11]
[null,"$15,000 to $19,999",2,3,60,72,23,35,2,4,0,11,0,11,0,11,0,11,0,11,0,16,0,11,0,11,0,11,3,4,0,11]
[null,"$20,000 to $24,999",0,11,7,13,0,18,0,11,0,11,3,4,0,11,0,11,0,11,0,16,5,7,0,11,0,11,0,11,0,11]
[null,"$25,000 to $29,999",0,11,28,32,10,17,0,11,0,11,0,11,0,11,0,11,0,11,0,16,5,7,0,11,0,11,0,11,9,14]
[null,"$30,000 to $34,999",0,11,62,49,26,33,0,11,1,3,0,11,0,11,0,11,0,11,13,22,0,11,0,11,0,11,0,11,0,11]
[null,"$35,000 to $39,999",0,11,13,23,0,18,0,11,0,11,0,11,0,11,0,11,0,11,0,16,0,11,0,11,0,11,4,5,0,11]
[null,"$40,000 to $49,999",7,11,47,54,56,42,0,11,2,3,0,11,0,11,0,11,0,11,78,74,0,11,13,16,0,11,9,13,0,11]
[null,"$50,000 to $59,999",0,11,48,63,52,47,0,11,0,11,2,5,0,11,0,11,8,9,43,40,0,11,0,11,9,14,0,11,9,15]
[null,"$60,000 to $69,999",6,5,120,99,87,54,14,18,0,11,6,9,0,11,3,4,2,4,53,72,0,11,0,11,0,11,3,5,11,13]
[null,"$70,000 to $79,999",8,10,160,117,103,69,12,11,2,4,9,11,0,11,2,3,0,11,71,55,5,7,0,11,0,11,14,9,11,17]
[null,"$80,000 to $89,999",5,5,64,56,182,85,4,6,6,8,0,11,0,11,0,11,0,11,14,21,0,11,3,5,0,11,27,14,0,11]
[null,"$90,000 to $99,999",5,5,12,21,182,113,0,11,10,9,5,5,0,11,10,10,27,23,35,35,4,7,5,8,0,11,0,11,12,15]
[null,"$100,000 to $124,999",47,24,147,88,489,117,26,17,12,13,10,7,33,33,15,13,29,23,252,115,43,33,18,17,33,28,57,30,13,11]
[null,"$125,000 to $149,999",25,14,138,93,655,144,23,20,23,21,35,19,96,85,24,15,42,23,359,127,25,25,22,21,5,8,47,24,39,20]
[null,"$150,000 to $174,999",58,23,149,81,493,143,37,18,21,12,26,11,73,62,16,12,80,31,233,81,29,19,23,20,118,69,52,23,84,36]
[null,"$175,000 to $199,999",25,17,114,82,138,76,56,25,23,15,28,18,63,83,30,15,53,21,147,87,16,15,60,29,52,48,107,37,24,11]
[null,"$200,000 to $249,999",44,23,216,106,226,93,123,40,46,19,34,17,132,80,40,23,33,19,177,100,112,42,43,23,93,49,80,31,145,71]
[null,"$250,000 to $299,999",47,21,61,72,90,48,99,35,52,29,35,20,136,70,45,18,64,36,77,48,101,38,48,26,206,80,65,25,35,18]
[null,"$300,000 to $399,999",21,16,8,13,32,38,176,45,26,17,22,14,284,110,15,9,12,14,115,91,220,65,78,36,178,72,49,18,76,35]
[null,"$400,000 to $499,999",26,19,23,36,32,49,38,18,22,13,6,5,151,89,10,9,8,6,0,16,72,27,35,19,148,77,10,9,18,10]
[null,"$500,000 to $749,999",7,6,0,16,0,18,53,30,5,6,0,11,79,51,6,5,3,4,62,56,118,47,37,23,90,59,6,6,13,9]
[null,"$750,000 to $999,999",2,3,0,16,0,18,6,7,0,11,2,4,0,11,0,11,0,11,0,16,23,14,0,11,41,25,0,11,0,11]
[null,"$1,000,000 to $1,499,999",2,3,0,16,0,18,3,5,0,11,0,11,35,56,2,3,6,6,0,16,10,10,0,11,37,23,0,11,0,11]
[null,"$1,500,000 to $1,999,999",0,11,0,16,16,24,11,9,0,11,0,11,0,11,0,11,0,11,0,16,0,11,10,16,22,23,0,11,0,11]
[null,"$2,000,000 or more",0,11,0,16,0,18,3,4,2,4,0,11,0,11,0,11,0,11,0,16,0,11,0,11,0,11,0,11,0,11]
[]
[]
[null,"B25077. MEDIAN VALUE (Dollars)"]
[null,"Universe:  OWNER-OCCUPIED HOUSING UNITS"]
[null,"Data Set: 2015-2019 American Community Survey 5-Year Estimates"]
[]
[null,null,"Acworth",null,"Charlestown",null,"Claremont",null,"Cornish",null,"Croydon",null,"Goshen",null,"Grantham",null,"Langdon",null,"Lempster",null,"Newport",null,"Plainfield",null,"Springfield",null,"Sunapee",null,"Unity",null,"Washington"]
[null,null,"Estimate","Margin Of Error","Estimate","Margin Of Error","Estimate","Margin Of Error","Estimate","Margin Of Error","Estimate","Margin Of Error","Estimate","Margin Of Error","Estimate","Margin Of Error","Estimate","Margin Of Error","Estimate","Margin Of Error","Estimate","Margin Of Error","Estimate","Margin Of Error","Estimate","Margin Of Error","Estimate","Margin Of Error","Estimate","Margin Of Error","Estimate","Margin Of Error"]
[]
[null,"Median value (dollars)",179000,24139,110900,30678,133500,5655,226600,28057,188800,19957,302800,36443,211300,25490,173600,14237,145800,10372,318900,22835,259400,39212,298500,37152,186400,8146,212900,17753,0,0]
[]
[]
[]
[null,"Total:",794,509,922,89,1173,77,1239,160,1315,108,1019,218,1606,209,1133,221,1027,191,1183,124,1312,190,1140,281,1610,133,1117,167,1005,136]
[null,"Housing units with a mortgage (dollars)",1411,138,1156,99,1477,76,1509,99,1460,148,1461,236,1969,185,1450,183,1407,184,1450,159,1804,294,1649,90,1965,276,1457,94,1506,155]
[null,"Housing units without a mortgage (dollars)",561,93,529,41,617,57,598,60,432,145,581,41,817,129,617,170,522,84,642,96,781,59,663,58,773,131,527,36,624,61]
[]
[]
[]
[]
[]
[]
[]
[]
[]
[]
[]
[]
[]
[]
[]
[]
[]
[]
[]
[]
[null,"B25075. VALUE"]
[null,"Universe:  OWNER-OCCUPIED HOUSING UNITS"]
[null,"Data Set: 2010-2014 American Community Survey 5-Year Estimates"]
[]
[null,null,"Acworth",null,"Charlestown",null,"Claremont",null,"Cornish",null,"Croydon",null,"Goshen",null,"Grantham",null,"Langdon",null,"Lempster",null,"Newport",null,"Plainfield",null,"Springfield",null,"Sunapee",null,"Unity",null,"Washington"]
[null,null,"Estimate","Margin Of Error","Estimate","Margin Of Error","Estimate","Margin Of Error","Estimate","Margin Of Error","Estimate","Margin Of Error","Estimate","Margin Of Error","Estimate","Margin Of Error","Estimate","Margin Of Error","Estimate","Margin Of Error","Estimate","Margin Of Error","Estimate","Margin Of Error","Estimate","Margin Of Error","Estimate","Margin Of Error","Estimate","Margin Of Error","Estimate","Margin Of Error"]
[null,"Total ",274,40,1721,147,3486,249,550,56,213,37,254,35,991,88,255,38,375,51,1858,197,815,78,410,65,1068,125,513,58,418,62]
[null,"Less than $10,000 ",0,11,21,25,34,36,7,7,4,5,2,3,0,11,5,5,3,4,25,32,8,9,0,11,0,11,7,8,2,4]
[null,"$10,000 to $14,999 ",4,6,79,58,42,30,0,11,2,3,0,11,0,11,0,11,0,11,24,28,3,4,1,3,0,11,0,11,0,11]
[null,"$15,000 to $19,999 ",0,11,47,43,32,39,9,10,4,5,3,4,0,11,8,7,3,5,24,29,4,7,6,6,0,11,6,6,0,11]
[null,"$20,000 to $24,999 ",0,11,35,55,38,32,0,11,0,11,0,11,0,11,0,11,6,6,61,67,10,10,3,5,0,11,0,11,0,11]
[null,"$25,000 to $29,999 ",0,11,66,54,36,29,4,6,0,11,0,11,0,11,1,3,7,9,0,15,0,11,0,11,0,11,0,11,0,11]
[null,"$30,000 to $34,999 ",0,11,14,22,0,17,3,5,0,11,0,11,0,11,0,11,0,11,15,27,4,6,0,11,0,11,0,11,0,11]
[null,"$35,000 to $39,999 ",0,11,46,45,11,18,5,6,0,11,3,4,0,11,0,11,2,5,22,34,10,11,0,11,0,11,0,11,0,11]
[null,"$40,000 to $49,999 ",0,11,4,10,35,41,3,4,0,11,0,11,0,11,0,11,0,11,71,85,11,11,10,16,10,17,0,11,0,11]
[null,"$50,000 to $59,999 ",3,4,41,41,42,39,4,6,2,3,4,5,0,11,0,11,6,6,27,32,10,12,0,11,6,9,0,11,0,11]
[null,"$60,000 to $69,999 ",0,11,66,64,80,49,0,11,0,11,0,11,0,11,0,11,0,11,8,16,8,11,5,10,0,11,6,6,4,5]
[null,"$70,000 to $79,999 ",4,4,85,70,73,46,0,11,0,11,18,17,0,11,0,11,6,5,46,44,29,33,0,11,0,11,16,16,0,11]
[null,"$80,000 to $89,999 ",6,6,11,17,174,93,9,14,8,6,6,6,0,11,9,8,15,15,62,81,4,7,22,20,0,11,17,11,3,4]
[null,"$90,000 to $99,999 ",14,12,42,41,198,69,4,5,0,11,0,11,0,11,12,11,7,8,25,30,18,15,3,5,18,22,10,10,3,4]
[null,"$100,000 to $124,999 ",31,19,164,103,543,143,18,13,10,9,21,10,27,23,14,9,31,16,230,104,44,35,5,7,8,13,36,16,26,17]
[null,"$125,000 to $149,999 ",27,19,247,101,669,180,21,13,29,19,27,16,30,43,24,15,28,16,260,146,23,22,31,23,51,42,59,22,41,29]
[null,"$150,000 to $174,999 ",56,20,342,152,654,139,53,22,19,13,33,13,54,63,27,13,90,32,303,119,50,32,37,20,48,38,56,21,62,22]
[null,"$175,000 to $199,999 ",28,13,111,64,375,128,46,22,27,15,15,12,54,46,36,21,58,26,65,49,57,27,22,17,27,25,34,18,73,26]
[null,"$200,000 to $249,999 ",26,19,141,75,216,100,90,29,40,17,64,22,290,102,42,17,61,26,310,105,81,34,55,22,200,96,113,38,60,27]
[null,"$250,000 to $299,999 ",36,22,108,80,99,52,90,28,28,18,23,11,93,47,28,15,28,19,145,71,82,33,103,44,206,75,81,27,36,18]
[null,"$300,000 to $399,999 ",24,12,42,34,108,75,124,40,24,16,21,11,337,79,35,21,15,15,117,80,205,57,65,35,198,77,38,24,52,22]
[null,"$400,000 to $499,999 ",2,4,9,15,15,22,26,13,8,7,4,4,20,19,1,4,7,11,18,28,62,30,20,17,90,58,31,21,21,17]
[null,"$500,000 to $749,999 ",2,3,0,11,7,11,25,16,2,5,0,11,77,43,11,11,2,4,0,15,79,34,7,8,42,26,3,5,19,11]
[null,"$750,000 to $999,999 ",9,8,0,11,0,17,3,4,4,6,10,13,0,11,2,3,0,11,0,15,9,10,12,14,41,40,0,11,9,12]
[null,"$1,000,000 or more ",2,3,0,11,5,9,6,6,2,3,0,11,9,10,0,11,0,11,0,15,4,5,3,5,123,60,0,11,7,8]
[]
[]
[]
[]
[null,"B25077. MEDIAN VALUE (Dollars)"]
[null,"Universe:  OWNER-OCCUPIED HOUSING UNITS"]
[null,"Data Set: 2010-2014 American Community Survey 5-Year Estimates"]
[]
[null,null,"Acworth",null,"Charlestown",null,"Claremont",null,"Cornish",null,"Croydon",null,"Goshen",null,"Grantham",null,"Langdon",null,"Lempster",null,"Newport",null,"Plainfield",null,"Springfield",null,"Sunapee",null,"Unity",null,"Washington"]
[null,null,"Estimate","Margin Of Error","Estimate","Margin Of Error","Estimate","Margin Of Error","Estimate","Margin Of Error","Estimate","Margin Of Error","Estimate","Margin Of Error","Estimate","Margin Of Error","Estimate","Margin Of Error","Estimate","Margin Of Error","Estimate","Margin Of Error","Estimate","Margin Of Error","Estimate","Margin Of Error","Estimate","Margin Of Error","Estimate","Margin Of Error","Estimate","Margin Of Error"]
[]
[null,"Median value (dollars)",171400,14295,139100,14930,140100,5791,249400,21752,201900,26123,191700,29836,271800,42358,194100,15771,170400,8684,152400,14099,270400,33113,252400,22390,290300,22902,204200,13813,198300,19429]
[]
[]
[]
[]
[]
[null,"B25075. VALUE"]
[null,"Universe:  OWNER-OCCUPIED HOUSING UNITS"]
[null,"Data Set: 2005-2009 American Community Survey 5-Year Estimates"]
[]
[null,null,"Acworth",null,"Charlestown",null,"Claremont",null,"Cornish",null,"Croydon",null,"Goshen",null,"Grantham",null,"Langdon",null,"Lempster",null,"Newport",null,"Plainfield",null,"Springfield",null,"Sunapee",null,"Unity",null,"Washington"]
[null,null,"Estimate","Margin Of Error","Estimate","Margin Of Error","Estimate","Margin Of Error","Estimate","Margin Of Error","Estimate","Margin Of Error","Estimate","Margin Of Error","Estimate","Margin Of Error","Estimate","Margin Of Error","Estimate","Margin Of Error","Estimate","Margin Of Error","Estimate","Margin Of Error","Estimate","Margin Of Error","Estimate","Margin Of Error","Estimate","Margin Of Error","Estimate","Margin Of Error"]
[null,null,300,54,1686,144,3164,254,588,66,281,45,330,57,921,71,212,58,394,54,1706,182,868,90,316,56,978,136,537,82,510,62]
[null,"Less than $10,000",10,14,19,31,51,61,0,114,0,114,0,114,0,114,0,114,6,9,12,20,0,114,9,10,0,114,0,114,0,114]
[null,"$10,000 to $14,999",0,114,9,15,17,27,0,114,0,114,0,114,0,114,0,114,5,7,0,114,15,16,0,114,0,114,0,114,11,16]
[null,"$15,000 to $19,999",0,114,146,87,22,24,0,114,0,114,0,114,0,114,10,15,0,114,12,20,0,114,3,4,0,114,0,114,3,4]
[null,"$20,000 to $24,999",0,114,101,63,0,114,0,114,0,114,0,114,0,114,0,114,0,114,36,54,7,11,0,114,0,114,0,114,0,114]
[null,"$25,000 to $29,999",0,114,45,46,44,46,0,114,0,114,0,114,0,114,0,114,0,114,14,23,0,114,2,5,0,114,3,4,3,4]
[null,"$30,000 to $34,999",0,114,94,63,16,26,0,114,0,114,0,114,0,114,0,114,0,114,20,34,8,12,0,114,0,114,3,5,4,8]
[null,"$35,000 to $39,999",4,7,0,114,0,114,0,114,7,8,0,114,0,114,0,114,0,114,0,114,0,114,0,114,10,17,0,114,0,114]
[null,"$40,000 to $49,999",0,114,37,33,63,49,3,6,0,114,0,114,0,114,0,114,2,5,95,71,6,9,0,114,10,16,2,5,3,5]
[null,"$50,000 to $59,999",0,114,62,40,50,37,12,17,2,5,9,13,0,114,0,114,20,20,20,34,6,9,6,7,26,41,15,16,7,7]
[null,"$60,000 to $69,999",11,11,81,66,44,52,0,114,0,114,0,114,13,20,0,114,4,6,39,46,0,114,3,5,0,114,3,5,3,4]
[null,"$70,000 to $79,999",3,5,66,58,183,80,0,114,9,10,0,114,0,114,9,11,3,5,40,37,17,17,2,5,0,114,0,114,3,4]
[null,"$80,000 to $89,999",5,10,54,46,87,54,16,11,15,15,3,5,6,10,0,114,32,23,12,19,0,114,0,114,0,114,10,11,0,114]
[null,"$90,000 to $99,999",5,7,21,25,163,77,3,5,1,4,0,114,4,6,15,18,0,114,50,46,9,14,6,7,0,114,0,114,7,6]
[null,"$100,000 to $124,999",29,21,138,79,305,113,35,24,18,17,26,16,17,18,9,14,47,22,142,77,24,32,13,16,29,29,54,38,37,26]
[null,"$125,000 to $149,999",16,14,287,113,569,152,35,34,13,10,26,15,30,24,18,18,34,17,221,87,66,31,26,21,17,20,52,24,38,21]
[null,"$150,000 to $174,999",67,33,187,103,571,180,46,23,34,22,62,34,13,16,25,24,52,23,196,99,46,28,17,11,29,27,93,46,52,28]
[null,"$175,000 to $199,999",18,14,105,62,347,105,72,27,24,14,30,19,25,25,5,8,50,28,232,84,57,30,27,16,135,67,60,32,82,36]
[null,"$200,000 to $249,999",42,27,127,67,386,134,160,51,90,30,112,40,163,56,40,25,44,24,367,126,126,46,58,34,106,54,102,33,57,22]
[null,"$250,000 to $299,999",10,11,73,61,137,77,58,31,25,15,19,12,160,73,23,22,57,27,139,63,99,46,43,26,89,45,30,27,37,22]
[null,"$300,000 to $399,999",28,17,15,24,68,62,59,31,28,24,24,17,256,79,18,15,22,15,23,27,177,69,75,33,118,57,71,41,68,21]
[null,"$400,000 to $499,999",39,44,0,114,14,21,42,28,0,114,12,11,131,61,22,17,10,15,25,29,78,37,4,6,68,63,8,9,45,24]
[null,"$500,000 to $749,999",9,11,19,31,17,18,30,21,10,16,7,10,93,48,18,14,6,6,11,18,80,36,18,18,190,78,26,22,37,22]
[null,"$750,000 to $999,999",0,114,0,114,10,17,9,10,0,114,0,114,5,8,0,114,0,114,0,114,0,114,4,6,61,51,5,8,13,13]
[null,"$1,000,000 or more",4,6,0,114,0,114,8,9,5,8,0,114,5,7,0,114,0,114,0,114,47,30,0,114,90,45,0,114,0,114]
[]
[]
[]
[]
[null,"B25077.MEDIAN VALUE (Dollars)"]
[null,"Universe:  OWNER-OCCUPIED HOUSING UNITS"]
[null,"Data Set: 2005-2009 American Community Survey 5-Year Estimates"]
[]
[null,null,"Acworth",null,"Charlestown",null,"Claremont",null,"Cornish",null,"Croydon",null,"Goshen",null,"Grantham",null,"Langdon",null,"Lempster",null,"Newport",null,"Plainfield",null,"Springfield",null,"Sunapee",null,"Unity",null,"Washington"]
[null,null,"Estimate","Margin Of Error","Estimate","Margin Of Error","Estimate","Margin Of Error","Estimate","Margin Of Error","Estimate","Margin Of Error","Estimate","Margin Of Error","Estimate","Margin Of Error","Estimate","Margin Of Error","Estimate","Margin Of Error","Estimate","Margin Of Error","Estimate","Margin Of Error","Estimate","Margin Of Error","Estimate","Margin Of Error","Estimate","Margin Of Error","Estimate","Margin Of Error"]
[]
[null,"Median value (dollars)",175000,33755,119600,22069,148600,8136,222500,13390,209700,16602,204000,16646,311500,27982,218800,41629,171200,17706,167900,17617,273700,29346,237900,27183,332200,73630,189000,17794,201800,23451]

{"sheet":"ACS_Table_B25088","index":99,"n_rows":62,"n_cols":32,"rows_kept":62,"cut":false,"hidden":true,"merged":[]}
[null,"B25088. MEDIAN SELECTED MONTHLY OWNER COSTS (DOLLARS) BY MORTGAGE STATUS"]
[null,"Universe:  OWNER-OCCUPIED HOUSING UNITS"]
[null,"Data Set: 2015-2019 American Community Survey 5-Year Estimates"]
[]
[null,null,"Acworth",null,"Charlestown",null,"Claremont",null,"Cornish",null,"Croydon",null,"Goshen",null,"Grantham",null,"Langdon",null,"Lempster",null,"Newport",null,"Plainfield",null,"Springfield",null,"Sunapee",null,"Unity",null,"Washington"]
[null,null,"Estimate","Margin Of Error","Estimate","Margin Of Error","Estimate","Margin Of Error","Estimate","Margin Of Error","Estimate","Margin Of Error","Estimate","Margin Of Error","Estimate","Margin Of Error","Estimate","Margin Of Error","Estimate","Margin Of Error","Estimate","Margin Of Error","Estimate","Margin Of Error","Estimate","Margin Of Error","Estimate","Margin Of Error","Estimate","Margin Of Error","Estimate","Margin Of Error"]
[]
[null,"Total:",935,139,740,103,1231,103,1130,138,1020,254,1194,153,1665,160,1192,129,855,79,1056,187,1392,176,1220,152,1496,214,1192,116,1270,305]
[null,"Housing units with a mortgage (dollars)",1556,107,1544,131,1504,83,1858,195,1540,204,1417,88,2040,298,1595,146,1555,319,1400,159,1843,331,1585,139,1954,313,1450,82,1568,181]
[null,"Housing units without a mortgage (dollars)",636,67,493,64,782,32,742,69,606,89,681,142,967,82,668,109,562,44,633,48,785,52,886,116,782,244,758,40,592,68]
[]
[]
[]
[]
[]
[]
[]
[]
[]
[]
[]
[]
[]
[]
[]
[]
[]
[]
[]
[]
[]
[]
[]
[]
[]
[]
[]
[]
[]
[null,"B25088. MEDIAN SELECTED MONTHLY OWNER COSTS (DOLLARS) BY MORTGAGE STATUS"]
[null,"Universe:  OWNER-OCCUPIED HOUSING UNITS"]
[null,"Data Set: 2010-2014 American Community Survey 5-Year Estimates"]
[]
[null,null,"Acworth",null,"Charlestown",null,"Claremont",null,"Cornish",null,"Croydon",null,"Goshen",null,"Grantham",null,"Langdon",null,"Lempster",null,"Newport",null,"Plainfield",null,"Springfield",null,"Sunapee",null,"Unity",null,"Washington"]
[null,null,"Estimate","Margin Of Error","Estimate","Margin Of Error","Estimate","Margin Of Error","Estimate","Margin Of Error","Estimate","Margin Of Error","Estimate","Margin Of Error","Estimate","Margin Of Error","Estimate","Margin Of Error","Estimate","Margin Of Error","Estimate","Margin Of Error","Estimate","Margin Of Error","Estimate","Margin Of Error","Estimate","Margin Of Error","Estimate","Margin Of Error","Estimate","Margin Of Error"]
[]
[null,"Total:",833,272,986,108,1223,71,1299,92,1197,202,1074,126,1592,177,1298,150,1027,157,1199,129,1224,153,1322,322,1630,96,1290,131,1113,173]
[null,"Housing units with a mortgage (dollars)",1425,90,1240,133,1552,81,1519,87,1480,133,1313,180,1872,245,1478,160,1400,163,1517,153,1788,251,1695,170,1709,80,1585,135,1531,90]
[null,"Housing units without a mortgage (dollars)",588,74,613,53,599,58,657,79,464,111,586,77,802,116,757,159,515,109,651,127,772,71,685,59,889,198,577,35,653,51]
[]
[]
[]
[null,"B25088. MEDIAN SELECTED MONTHLY OWNER COSTS (DOLLARS) BY MORTGAGE STATUS"]
[null,"Universe:  OWNER-OCCUPIED HOUSING UNITS"]
[null,"Data Set: 2005-2009 American Community Survey 5-Year Estimates"]
[]
[null,null,"Acworth",null,"Charlestown",null,"Claremont",null,"Cornish",null,"Croydon",null,"Goshen",null,"Grantham",null,"Langdon",null,"Lempster",null,"Newport",null,"Plainfield",null,"Springfield",null,"Sunapee",null,"Unity",null,"Washington"]
[null,null,"Estimate","Margin Of Error","Estimate","Margin Of Error","Estimate","Margin Of Error","Estimate","Margin Of Error","Estimate","Margin Of Error","Estimate","Margin Of Error","Estimate","Margin Of Error","Estimate","Margin Of Error","Estimate","Margin Of Error","Estimate","Margin Of Error","Estimate","Margin Of Error","Estimate","Margin Of Error","Estimate","Margin Of Error","Estimate","Margin Of Error","Estimate","Margin Of Error"]
[]
[null,"Total:",850,347,909,106,1005,123,1120,98,1195,117,900,184,1468,218,766,94,884,105,1062,136,1405,119,1150,434,1161,175,1001,290,897,131]
[null,"Housing units with a mortgage (dollars)",1331,114,1131,122,1358,68,1390,161,1316,133,1281,289,2020,217,1125,641,1282,160,1373,134,1656,120,1630,98,1449,279,1232,70,1528,271]
[null,"Housing units without a mortgage (dollars)",570,89,459,57,584,51,565,34,442,60,567,65,702,152,525,179,494,95,602,47,705,62,553,117,744,184,475,36,600,162]

{"sheet":"ACS_Table_B25091","index":100,"n_rows":220,"n_cols":32,"rows_kept":220,"cut":false,"hidden":true,"merged":[]}
[null,"B25091. MORTGAGE STATUS BY SELECTED MONTHLY OWNER COSTS AS A PERCENTAGE OF HOUSEHOLD INCOME IN THE PAST 12 MONTHS "]
[null,"Universe:  OWNER-OCCUPIED HOUSING UNITS"]
[null,"Data Set: 2015-2019 American Community Survey 5-Year Estimates"]
[]
[null,null,"Acworth",null,"Charlestown",null,"Claremont",null,"Cornish",null,"Croydon",null,"Goshen",null,"Grantham",null,"Langdon",null,"Lempster",null,"Newport",null,"Plainfield",null,"Springfield",null,"Sunapee",null,"Unity",null,"Washington"]
[null,null,"Estimate","Margin Of Error","Estimate","Margin Of Error","Estimate","Margin Of Error","Estimate","Margin Of Error","Estimate","Margin Of Error","Estimate","Margin Of Error","Estimate","Margin Of Error","Estimate","Margin Of Error","Estimate","Margin Of Error","Estimate","Margin Of Error","Estimate","Margin Of Error","Estimate","Margin Of Error","Estimate","Margin Of Error"]
[null,null,340,50,1584,209,2921,257,686,79,257,53,223,35,1082,164,218,44,367,61,1743,186,803,78,398,71,1044,138,536,56,499,81]
[null,"Housing units with a mortgage:",182,42,650,170,1767,255,337,60,146,39,142,35,743,141,135,34,169,44,1062,202,436,79,218,54,643,112,316,62,292,76]
[null,"Less than 10.0 percent",13,14,7,13,69,60,13,10,9,8,0,11,35,40,9,15,32,26,110,84,9,9,0,11,45,33,11,9,10,9]
[null,"10.0 to 14.9 percent",34,22,109,70,256,105,62,24,36,24,29,19,197,98,25,16,23,19,153,96,111,49,27,21,32,30,58,27,80,61]
[null,"15.0 to 19.9 percent",28,14,47,40,241,88,54,22,28,14,23,15,95,71,16,12,15,10,263,112,72,35,54,29,127,61,56,29,53,25]
[null,"20.0 to 24.9 percent",23,14,31,34,429,134,49,26,13,10,33,16,84,73,35,16,33,21,61,47,73,28,34,25,64,34,78,36,52,26]
[null,"25.0 to 29.9 percent",33,20,101,80,237,97,63,29,19,15,7,8,115,83,13,8,14,11,54,44,43,20,18,19,115,68,21,12,6,6]
[null,"30.0 to 34.9 percent",14,12,93,71,110,55,14,11,5,7,14,12,57,49,0,11,26,20,107,82,0,11,0,11,49,33,18,17,29,27]
[null,"35.0 to 39.9 percent",12,10,64,55,106,72,31,19,6,7,24,19,47,52,14,8,9,8,112,96,64,37,11,10,84,63,8,9,3,4]
[null,"40.0 to 49.9 percent",14,14,118,68,94,52,24,19,5,7,5,6,49,80,0,11,6,7,100,85,16,14,28,23,35,28,16,13,18,10]
[null,"50.0 percent or more",11,9,80,80,225,102,27,21,25,16,7,5,64,53,23,16,11,8,54,44,48,39,46,26,55,46,50,25,38,19]
[null,"Not computed",0,11,0,16,0,18,0,11,0,11,0,11,0,11,0,11,0,11,48,77,0,11,0,11,37,58,0,11,3,4]
[null,"Housing units without a mortgage:",158,40,934,210,1154,177,349,64,111,32,81,25,339,95,83,28,198,57,681,186,367,71,180,56,401,116,220,44,207,56]
[null,"Less than 10.0 percent",56,24,241,123,136,63,130,38,41,22,21,15,82,46,44,24,62,35,144,85,94,39,62,30,123,61,24,12,91,36]
[null,"10.0 to 14.9 percent",36,20,205,111,189,67,40,18,14,9,11,11,105,58,10,7,30,21,207,118,112,44,36,26,86,55,62,26,20,18]
[null,"15.0 to 19.9 percent",20,16,202,115,185,88,68,34,27,18,15,11,34,38,18,13,16,13,130,79,32,17,16,17,53,36,27,13,33,24]
[null,"20.0 to 24.9 percent",3,4,104,95,138,69,29,16,10,9,7,6,0,11,3,4,25,20,38,35,20,24,8,14,10,10,35,16,6,6]
[null,"25.0 to 29.9 percent",11,7,0,16,109,60,13,16,2,3,10,12,0,11,8,6,15,16,48,41,19,15,14,16,48,47,5,7,20,17]
[null,"30.0 to 34.9 percent",5,5,41,59,80,51,27,19,6,6,9,9,13,19,0,11,6,6,39,38,40,33,15,19,23,36,7,6,0,11]
[null,"35.0 to 39.9 percent",2,3,39,41,98,85,10,15,2,4,0,11,0,11,0,11,0,11,14,24,5,8,10,16,0,11,18,18,3,4]
[null,"40.0 to 49.9 percent",16,11,18,29,68,45,6,7,0,11,0,11,75,60,0,11,12,13,12,21,0,11,3,5,19,25,16,10,15,16]
[null,"50.0 percent or more",2,3,45,54,124,56,26,21,9,12,6,4,30,44,0,11,21,16,49,40,45,30,16,16,28,23,13,9,16,16]
[null,"Not computed",7,11,39,62,27,41,0,11,0,11,2,3,0,11,0,11,11,15,0,16,0,11,0,11,11,17,13,18,3,4]
[]
[]
[]
[null,"Calculated B25091. MORTGAGE STATUS BY SELECTED MONTHLY OWNER COSTS AS A PERCENTAGE OF HOUSEHOLD INCOME IN THE PAST 12 MONTHS "]
[null,"Universe:  OWNER-OCCUPIED HOUSING UNITS"]
[null,"Data Set: 2015-2019 American Community Survey 5-Year Estimates"]
[]
[null,null,"Acworth",null,"Charlestown",null,"Claremont",null,"Cornish",null,"Croydon",null,"Goshen",null,"Grantham",null,"Langdon",null,"Lempster",null,"Newport",null,"Plainfield",null,"Springfield",null,"Sunapee",null,"Unity",null,"Washington"]
[null,null,"Estimate","Margin Of Error","Estimate","Margin Of Error","Estimate","Margin Of Error","Estimate","Margin Of Error","Estimate","Margin Of Error","Estimate","Margin Of Error","Estimate","Margin Of Error","Estimate","Margin Of Error","Estimate","Margin Of Error","Estimate","Margin Of Error","Estimate","Margin Of Error","Estimate","Margin Of Error","Estimate","Margin Of Error","Estimate","Margin Of Error","Estimate","Margin Of Error"]
[null,"Total:",{"$f":"C7","v":340},{"$f":"D7","v":50},{"$f":"E7","v":1584},209,2921,257,686,79,257,53,223,35,1082,164,218,44,367,61,1743,186,803,78,{"$f":"Y7","v":398},71,1044,138,536,56,499,81]
[null,"Less than 10.0 percent",{"$f":"C9+C20","v":69},{"$f":"SQRT((D9^2)+(D20^2))","v":27.784887978899608},{"$f":"E9+E20","v":248},{"$f":"SQRT((F9^2)+(F20^2))","v":123.68508398347798},{"$f":"G9+G20","v":205},{"$f":"SQRT((H9^2)+(H20^2))","v":87},{"$f":"I9+I20","v":143},{"$f":"SQRT((J9^2)+(J20^2))","v":39.293765408776999},{"$f":"K9+K20","v":50},{"$f":"SQRT((L9^2)+(L20^2))","v":23.409399821439251},{"$f":"M9+M20","v":21},{"$f":"SQRT((N9^2)+(N20^2))","v":18.601075237738275},{"$f":"O9+O20","v":117},{"$f":"SQRT((P9^2)+(P20^2))","v":60.959002616512684},{"$f":"Q9+Q20","v":53},{"$f":"SQRT((R9^2)+(R20^2))","v":28.301943396169811},{"$f":"S9+S20","v":94},{"$f":"SQRT((T9^2)+(T20^2))","v":43.600458713183279},{"$f":"U9+U20","v":254},{"$f":"SQRT((V9^2)+(V20^2))","v":119.50313803411188},{"$f":"W9+W20","v":103},{"$f":"SQRT((X9^2)+(X20^2))","v":40.024992192379003},62,{"$f":"SQRT((Z9^2)+(Z20^2))","v":31.953090617340916},{"$f":"AA9+AA20","v":168},{"$f":"SQRT((AB9^2)+(AB20^2))","v":69.354163537598808},35,15,{"$f":"AE9+AE20","v":101},{"$f":"SQRT((AF9^2)+(AF20^2))","v":37.107950630558946}]
[null,"10.0 to 14.9 percent",70,29.732137494637012,314,131.22880781291889,445,124.55520864259351,102,30,50,25.632011235952593,40,21.95449840010015,302,113.87712676389407,35,17.464249196572979,53,28.319604517012593,360,152.11837495845134,223,{"$f":"SQRT((X10^2)+(X21^2))","v":65.855903304107827},63,33.421549934136806,118,62.649820430708338,120,37.483329627982627,{"$f":"AE10+AE21","v":100},{"$f":"SQRT((AF10^2)+(AF21^2))","v":63.600314464631381}]
[null,"15.0 to 19.9 percent",48,21.2602916254693,249,121.75795661885921,426,124.45079348883236,122,40.496913462633174,55,22.803508501982758,38,18.601075237738275,129,80.529497701152962,34,17.691806012954132,31,16.401219466856727,393,137.05838172107534,104,38.910152916687437,70,33.61547262794322,180,70.83078426785913,83,31.780497164141408,{"$f":"AE11+AE22","v":86},{"$f":"SQRT((AF11^2)+(AF22^2))","v":34.655446902326915}]
[null,"20.0 to 24.9 percent",26,14.560219778561036,135,100.90094152187085,567,150.72159765607583,78,30.528675044947494,23,13.45362404707371,40,17.088007490635061,84,73.824115301166998,38,16.492422502470642,58,29,99,58.600341295934449,93,36.878177829171548,42,28.653097563788805,74,35.440090293338699,113,39.395431207184416,{"$f":"AE12+AE23","v":58},{"$f":"SQRT((AF12^2)+(AF23^2))","v":26.683328128252668}]
[null,"25.0 to 29.9 percent",44,21.189620100417091,101,81.584312217484552,346,114.05700329221349,76,33.120990323358392,21,15.297058540778355,17,14.422205101855956,115,83.725742755737912,21,10,29,19.416487838947599,102,60.141499815019579,62,25,32,24.839484696748443,163,82.661962231730257,26,13.892443989449804,{"$f":"AE13+AE24","v":26},{"$f":"SQRT((AF13^2)+(AF24^2))","v":18.027756377319946}]
[null,"30.0 to 34.9 percent",19,13,134,92.314679222754165,190,75.006666370396701,41,21.95449840010015,11,9.2195444572928871,23,15,70,52.55473337388365,0,15.556349186104045,32,20.880613017821101,146,90.376988221560026,40,34.785054261852174,15,21.95449840010015,72,48.836461788299118,25,18.027756377319946,29,29.154759474226502]
[null,"35.0 to 39.9 percent",{"$f":"C15+C26","v":14},10.440306508910551,{"$f":"E15+E26","v":103},{"$f":"SQRT((F15^2)+(F26^2))","v":68.600291544569984},{"$f":"G15+G26","v":204},111.39569111954016,{"$f":"I15+I26","v":41},24.207436873820409,{"$f":"K15+K26","v":8},8.0622577482985491,{"$f":"M15+M26","v":24},21.95449840010015,{"$f":"O15+O26","v":47},53.150729063673246,{"$f":"Q15+Q26","v":14},13.601470508735444,{"$f":"S15+S26","v":9},13.601470508735444,{"$f":"U15+U26","v":126},98.954535014823847,{"$f":"W15+W26","v":69},37.8549864614954,{"$f":"Y15+Y26","v":21},18.867962264113206,{"$f":"AA15+AA26","v":84},63.953107821277925,{"$f":"AC15+AC26","v":26},20.124611797498108,{"$f":"AE15+AE26","v":6},5.6568542494923806]
[null,"40.0 to 49.9 percent",{"$f":"C16+C27","v":30},17.804493814764857,{"$f":"E16+E27","v":136},73.925638313104884,{"$f":"G16+G27","v":162},68.767724987816777,{"$f":"I16+I27","v":30},20.248456731316587,{"$f":"K16+K27","v":5},13.038404810405298,{"$f":"M16+M27","v":5},12.529964086141668,{"$f":"O16+O27","v":124},100,{"$f":"Q16+Q27","v":0},15.556349186104045,{"$f":"S16+S27","v":18},14.7648230602334,{"$f":"U16+U27","v":112},87.555696559390128,{"$f":"W16+W27","v":16},17.804493814764857,{"$f":"Y16+Y27","v":31},23.53720459187964,{"$f":"AA16+AA27","v":54},37.536648758246919,{"$f":"AC16+AC27","v":32},16.401219466856727,{"$f":"AE16+AE27","v":33},18.867962264113206]
[null,"50.0 percent or more",{"$f":"C17+C28","v":13},9.4868329805051381,{"$f":"E17+E28","v":125},96.519428096109237,{"$f":"G17+G28","v":349},116.36150566231085,{"$f":"I17+I28","v":53},29.698484809834994,{"$f":"K17+K28","v":34},20,{"$f":"M17+M28","v":13},6.4031242374328485,{"$f":"O17+O28","v":94},68.8839603971781,{"$f":"Q17+Q28","v":23},19.416487838947599,{"$f":"S17+S28","v":32},17.888543819998318,{"$f":"U17+U28","v":103},59.464274989274024,{"$f":"W17+W28","v":93},49.203658400570177,{"$f":"Y17+Y28","v":62},30.528675044947494,{"$f":"AA17+AA28","v":83},51.429563482495162,{"$f":"AC17+AC28","v":63},26.570660511172846,{"$f":"AE17+AE28","v":54},24.839484696748443]
[null,"Not computed",{"$f":"C18+C29","v":7},15.556349186104045,{"$f":"E18+E29","v":39},64.031242374328485,{"$f":"G18+G29","v":27},44.77722635447622,{"$f":"I18+I29","v":0},15.556349186104045,{"$f":"K18+K29","v":0},15.556349186104045,{"$f":"M18+M29","v":2},11.401754250991379,{"$f":"O18+O29","v":0},15.556349186104045,{"$f":"Q18+Q29","v":0},15.556349186104045,{"$f":"S18+S29","v":11},18.601075237738275,{"$f":"U18+U29","v":48},78.644770964127048,{"$f":"W18+W29","v":0},15.556349186104045,{"$f":"Y18+Y29","v":0},15.556349186104045,{"$f":"AA18+AA29","v":48},60.440052945046304,{"$f":"AC18+AC29","v":13},21.095023109728988,{"$f":"AE18+AE29","v":6},5.6568542494923806]
[]
[]
[]
[]
[null,"Calculated MONTHLY OWNER COSTS AS A PERCENTAGE OF HOUSEHOLD INCOME IN THE PAST 12 MONTHS "]
[null,"Universe:  OWNER-OCCUPIED HOUSING UNITS"]
[null,"Data Set: 2015-2019 American Community Survey 5-Year Estimates"]
[null,null,"Acworth",null,"Charlestown",null,"Claremont",null,"Cornish",null,"Croydon",null,"Goshen",null,"Grantham",null,"Langdon",null,"Lempster",null,"Newport",null,"Plainfield",null,"Springfield",null,"Sunapee",null,"Unity",null,"Washington"]
[null,null,"Estimate","Margin Of Error","Estimate","Margin Of Error","Estimate","Margin Of Error","Estimate","Margin Of Error","Estimate","Margin Of Error","Estimate","Margin Of Error","Estimate","Margin Of Error","Estimate","Margin Of Error","Estimate","Margin Of Error","Estimate","Margin Of Error","Estimate","Margin Of Error","Estimate","Margin Of Error","Estimate","Margin Of Error","Estimate","Margin Of Error","Estimate","Margin Of Error"]
[null,"Total:",{"$f":"C39","v":340},{"$f":"D39","v":50},1584,209,2921,257,686,79,257,53,223,35,1082,164,218,44,367,61,1743,186,803,78,{"$f":"Y39","v":398},71,1044,138,536,56,499,81]
[null,"Less than 20% of HH Income",{"$f":"C40+C41+C42","v":187},{"$f":"SQRT((D40^2)+(D41^2)+(D42^2))","v":45.912961132995989},{"$f":"E40+E41+E42","v":811},{"$f":"SQRT((F40^2)+(F41^2)+(F42^2))","v":217.58676430334634},{"$f":"G40+G41+G42","v":1076},{"$f":"SQRT((H40^2)+(H41^2)+(H42^2))","v":196.39501011991115},{"$f":"I40+I41+I42","v":367},{"$f":"SQRT((J40^2)+(J41^2)+(J42^2))","v":63.906181234681831},{"$f":"K40+K41+K42","v":155},{"$f":"SQRT((L40^2)+(L41^2)+(L42^2))","v":41.533119314590373},{"$f":"M40+M41+M42","v":99},{"$f":"SQRT((N40^2)+(N41^2)+(N42^2))","v":34.26368339802363},{"$f":"O40+O41+O42","v":548},{"$f":"SQRT((P40^2)+(P41^2)+(P42^2))","v":152.2136656151477},{"$f":"Q40+Q41+Q42","v":122},{"$f":"SQRT((R40^2)+(R41^2)+(R42^2))","v":37.669616403674723},{"$f":"S40+S41+S42","v":178},{"$f":"SQRT((T40^2)+(T41^2)+(T42^2))","v":54.516052681756044},{"$f":"U40+U41+U42","v":1007},{"$f":"SQRT((V40^2)+(V41^2)+(V42^2))","v":237.07804622107039},{"$f":"W40+W41+W42","v":430},{"$f":"SQRT((X40^2)+(X41^2)+(X42^2))","v":86.330759292386631},{"$f":"Y40+Y41+Y42","v":195},{"$f":"SQRT((Z40^2)+(Z41^2)+(Z42^2))","v":57.166423711825807},{"$f":"AA40+AA41+AA42","v":466},{"$f":"SQRT((AB40^2)+(AB41^2)+(AB42^2))","v":117.26892171415238},{"$f":"AC40+AC41+AC42","v":238},{"$f":"SQRT((AD40^2)+(AD41^2)+(AD42^2))","v":51.380930314660517},{"$f":"AE40+AE41+AE42","v":287},{"$f":"SQRT((AF40^2)+(AF41^2)+(AF42^2))","v":81.381816150783948}]
[null," 20% to 29.9% of HH Income",{"$f":"C43+C44","v":70},{"$f":"SQRT((D43^2)+(D44^2))","v":25.709920264364882},{"$f":"E43+E44","v":236},{"$f":"SQRT((F43^2)+(F44^2))","v":129.75746606650424},{"$f":"G43+G44","v":913},{"$f":"SQRT((H43^2)+(H44^2))","v":189.01322705038396},{"$f":"I43+I44","v":154},{"$f":"SQRT((J43^2)+(J44^2))","v":45.044422518220834},{"$f":"K43+K44","v":44},{"$f":"SQRT((L43^2)+(L44^2))","v":20.371548787463361},{"$f":"M43+M44","v":57},{"$f":"SQRT((N43^2)+(N44^2))","v":22.360679774997894},{"$f":"O43+O44","v":199},{"$f":"SQRT((P43^2)+(P44^2))","v":111.6243700990066},{"$f":"Q43+Q44","v":59},{"$f":"SQRT((R43^2)+(R44^2))","v":19.28730152198591},{"$f":"S43+S44","v":87},{"$f":"SQRT((T43^2)+(T44^2))","v":34.899856733230294},{"$f":"U43+U44","v":201},{"$f":"SQRT((V43^2)+(V44^2))","v":83.970232820922917},{"$f":"W43+W44","v":155},{"$f":"SQRT((X43^2)+(X44^2))","v":44.553338819890925},{"$f":"Y43+Y44","v":74},{"$f":"SQRT((Z43^2)+(Z44^2))","v":37.920970451717082},{"$f":"AA43+AA44","v":237},{"$f":"SQRT((AB43^2)+(AB44^2))","v":89.938868127189593},{"$f":"AC43+AC44","v":139},{"$f":"SQRT((AD43^2)+(AD44^2))","v":41.773197148410844},{"$f":"AE43+AE44","v":84},{"$f":"SQRT((AF43^2)+(AF44^2))","v":32.202484376209235}]
[null," Less Than 30% of HH Income",{"$f":"C40+C41+C42+C43+C44","v":257},{"$f":"SQRT((D40^2)+(D41^2)+(D42^2)+(D43^2)+(D44^2))","v":52.621288467691478},{"$f":"E40+E41+E42+E43+E44","v":1047},{"$f":"SQRT((F40^2)+(F41^2)+(F42^2)+(F43^2)+(F44^2))","v":253.33969290263221},{"$f":"G40+G41+G42+G43+G44","v":1989},{"$f":"SQRT((H40^2)+(H41^2)+(H42^2)+(H43^2)+(H44^2))","v":272.57476038694409},{"$f":"I40+I41+I42+I43+I44","v":521},{"$f":"SQRT((J40^2)+(J41^2)+(J42^2)+(J43^2)+(J44^2))","v":78.185676437567508},{"$f":"K40+K41+K42+K43+K44","v":199},{"$f":"SQRT((L40^2)+(L41^2)+(L42^2)+(L43^2)+(L44^2))","v":46.260134024881509},{"$f":"M40+M41+M42+M43+M44","v":156},{"$f":"SQRT((N40^2)+(N41^2)+(N42^2)+(N43^2)+(N44^2))","v":40.914545090957567},{"$f":"O40+O41+O42+O43+O44","v":747},{"$f":"SQRT((P40^2)+(P41^2)+(P42^2)+(P43^2)+(P44^2))","v":188.75645684320313},{"$f":"Q40+Q41+Q42+Q43+Q44","v":181},{"$f":"SQRT((R40^2)+(R41^2)+(R42^2)+(R43^2)+(R44^2))","v":42.320207938997655},{"$f":"S40+S41+S42+S43+S44","v":265},{"$f":"SQRT((T40^2)+(T41^2)+(T42^2)+(T43^2)+(T44^2))","v":64.730209330729039},{"$f":"U40+U41+U42+U43+U44","v":1208},{"$f":"SQRT((V40^2)+(V41^2)+(V42^2)+(V43^2)+(V44^2))","v":251.50944316267726},{"$f":"W40+W41+W42+W43+W44","v":585},{"$f":"SQRT((X40^2)+(X41^2)+(X42^2)+(X43^2)+(X44^2))","v":97.149369529606318},{"$f":"Y40+Y41+Y42+Y43+Y44","v":269},{"$f":"SQRT((Z40^2)+(Z41^2)+(Z42^2)+(Z43^2)+(Z44^2))","v":68.600291544569984},{"$f":"AA40+AA41+AA42+AA43+AA44","v":703},{"$f":"SQRT((AB40^2)+(AB41^2)+(AB42^2)+(AB43^2)+(AB44^2))","v":147.78700890132393},{"$f":"AC40+AC41+AC42+AC43+AC44","v":377},{"$f":"SQRT((AD40^2)+(AD41^2)+(AD42^2)+(AD43^2)+(AD44^2))","v":66.219332524573218},{"$f":"AE40+AE41+AE42+AE43+AE44","v":371},{"$f":"SQRT((AF40^2)+(AF41^2)+(AF42^2)+(AF43^2)+(AF44^2))","v":87.521425948164264}]
[null," 30% or More of HH Income",{"$f":"C45+C46+C47+C48","v":76},{"$f":"SQRT((D45^2)+(D46^2)+(D47^2)+(D48^2))","v":26.172504656604801},{"$f":"E45+E46+E47+E48","v":498},{"$f":"SQRT((F45^2)+(F46^2)+(F47^2)+(F48^2))","v":167.35889578985635},{"$f":"G45+G46+G47+G48","v":905},{"$f":"SQRT((H45^2)+(H46^2)+(H47^2)+(H48^2))","v":190.53608582103286},{"$f":"I45+I46+I47+I48","v":165},{"$f":"SQRT((J45^2)+(J46^2)+(J47^2)+(J48^2))","v":48.579831205964474},{"$f":"K45+K46+K47+K48","v":58},{"$f":"SQRT((L45^2)+(L46^2)+(L47^2)+(L48^2))","v":26.832815729997478},{"$f":"M45+M46+M47+M48","v":65},{"$f":"SQRT((N45^2)+(N46^2)+(N47^2)+(N48^2))","v":30.083217912982647},{"$f":"O45+O46+O47+O48","v":335},{"$f":"SQRT((P45^2)+(P46^2)+(P47^2)+(P48^2))","v":142.59032225224823},{"$f":"Q45+Q46+Q47+Q48","v":37},{"$f":"SQRT((R45^2)+(R46^2)+(R47^2)+(R48^2))","v":32.341923257592455},{"$f":"S45+S46+S47+S48","v":91},{"$f":"SQRT((T45^2)+(T46^2)+(T47^2)+(T48^2))","v":34.044089061098404},{"$f":"U45+U46+U47+U48","v":487},{"$f":"SQRT((V45^2)+(V46^2)+(V47^2)+(V48^2))","v":170.76884961842427},{"$f":"W45+W46+W47+W48","v":218},{"$f":"SQRT((X45^2)+(X46^2)+(X47^2)+(X48^2))","v":73.355299740373226},{"$f":"Y45+Y46+Y47+Y48","v":129},{"$f":"SQRT((Z45^2)+(Z46^2)+(Z47^2)+(Z48^2))","v":48.207883172775801},{"$f":"AA45+AA46+AA47+AA48","v":293},{"$f":"SQRT((AB45^2)+(AB46^2)+(AB47^2)+(AB48^2))","v":102.61091559868278},{"$f":"AC45+AC46+AC47+AC48","v":146},{"$f":"SQRT((AD45^2)+(AD46^2)+(AD47^2)+(AD48^2))","v":41.291645644125154},{"$f":"AE45+AE46+AE47+AE48","v":122},{"$f":"SQRT((AF45^2)+(AF46^2)+(AF47^2)+(AF48^2))","v":43.069710934716056}]
[null," 30% to 34.9% of HH Income",{"$f":"C45","v":19},{"$f":"D45","v":13},{"$f":"E45","v":134},92.314679222754165,190,75.006666370396701,41,21.95449840010015,11,9.2195444572928871,23,15,70,52.55473337388365,0,15.556349186104045,32,20.880613017821101,146,90.376988221560026,40,34.785054261852174,{"$f":"Y45","v":15},21.95449840010015,72,48.836461788299118,25,18.027756377319946,29,29.154759474226502]
[null," Less Than 35% of HH Income",{"$f":"C40+C41+C42+C43+C44+C45","v":276},{"$f":"SQRT((D40^2)+(D41^2)+(D42^2)+(D43^2)+(D44^2)+(D45^2))","v":54.203320931470607},{"$f":"E40+E41+E42+E43+E44+E45","v":1181},{"$f":"SQRT((F40^2)+(F41^2)+(F42^2)+(F43^2)+(F44^2)+(F45^2))","v":269.63493838892617},{"$f":"G40+G41+G42+G43+G44+G45","v":2179},{"$f":"SQRT((H40^2)+(H41^2)+(H42^2)+(H43^2)+(H44^2)+(H45^2))","v":282.70656165006147},{"$f":"I40+I41+I42+I43+I44+I45","v":562},{"$f":"SQRT((J40^2)+(J41^2)+(J42^2)+(J43^2)+(J44^2)+(J45^2))","v":81.209605343210484},{"$f":"K40+K41+K42+K43+K44+K45","v":210},{"$f":"SQRT((L40^2)+(L41^2)+(L42^2)+(L43^2)+(L44^2)+(L45^2))","v":47.169905660283021},{"$f":"M40+M41+M42+M43+M44+M45","v":179},{"$f":"SQRT((N40^2)+(N41^2)+(N42^2)+(N43^2)+(N44^2)+(N45^2))","v":43.577517139001849},{"$f":"O40+O41+O42+O43+O44+O45","v":817},{"$f":"SQRT((P40^2)+(P41^2)+(P42^2)+(P43^2)+(P44^2)+(P45^2))","v":195.93621411061304},{"$f":"Q40+Q41+Q42+Q43+Q44+Q45","v":181},{"$f":"SQRT((R40^2)+(R41^2)+(R42^2)+(R43^2)+(R44^2)+(R45^2))","v":45.088801270381985},{"$f":"S40+S41+S42+S43+S44+S45","v":297},{"$f":"SQRT((T40^2)+(T41^2)+(T42^2)+(T43^2)+(T44^2)+(T45^2))","v":68.01470429252781},{"$f":"U40+U41+U42+U43+U44+U45","v":1354},{"$f":"SQRT((V40^2)+(V41^2)+(V42^2)+(V43^2)+(V44^2)+(V45^2))","v":267.25456029785533},{"$f":"W40+W41+W42+W43+W44+W45","v":625},{"$f":"SQRT((X40^2)+(X41^2)+(X42^2)+(X43^2)+(X44^2)+(X45^2))","v":103.18914671611545},{"$f":"Y40+Y41+Y42+Y43+Y44+Y45","v":284},{"$f":"SQRT((Z40^2)+(Z41^2)+(Z42^2)+(Z43^2)+(Z44^2)+(Z45^2))","v":72.027772421476428},{"$f":"AA40+AA41+AA42+AA43+AA44+AA45","v":775},{"$f":"SQRT((AB40^2)+(AB41^2)+(AB42^2)+(AB43^2)+(AB44^2)+(AB45^2))","v":155.64703659241314},{"$f":"AC40+AC41+AC42+AC43+AC44+AC45","v":402},{"$f":"SQRT((AD40^2)+(AD41^2)+(AD42^2)+(AD43^2)+(AD44^2)+(AD45^2))","v":68.629439747093954},{"$f":"AE40+AE41+AE42+AE43+AE44+AE45","v":400},{"$f":"SQRT((AF40^2)+(AF41^2)+(AF42^2)+(AF43^2)+(AF44^2)+(AF45^2))","v":92.249661245990495}]
[null," 35% or More of HH Income",{"$f":"C46+C47+C48","v":57},{"$f":"SQRT((D46^2)+(D47^2)+(D48^2))","v":22.715633383201094},{"$f":"E46+E47+E48","v":364},{"$f":"SQRT((F46^2)+(F47^2)+(F48^2))","v":139.59584521037866},{"$f":"G46+G47+G48","v":715},{"$f":"SQRT((H46^2)+(H47^2)+(H48^2))","v":175.15136311202377},{"$f":"I46+I47+I48","v":124},{"$f":"SQRT((J46^2)+(J47^2)+(J48^2))","v":43.335897360040903},{"$f":"K46+K47+K48","v":47},{"$f":"SQRT((L46^2)+(L47^2)+(L48^2))","v":25.199206336708304},{"$f":"M46+M47+M48","v":42},{"$f":"SQRT((N46^2)+(N47^2)+(N48^2))","v":26.076809620810597},{"$f":"O46+O47+O48","v":265},{"$f":"SQRT((P46^2)+(P47^2)+(P48^2))","v":132.55187663703597},{"$f":"Q46+Q47+Q48","v":37},{"$f":"SQRT((R46^2)+(R47^2)+(R48^2))","v":28.354893757515651},{"$f":"S46+S47+S48","v":59},{"$f":"SQRT((T46^2)+(T47^2)+(T48^2))","v":26.888659319497503},{"$f":"U46+U47+U48","v":341},{"$f":"SQRT((V46^2)+(V47^2)+(V48^2))","v":144.89306401619092},{"$f":"W46+W47+W48","v":178},{"$f":"SQRT((X46^2)+(X47^2)+(X48^2))","v":64.583279569870101},{"$f":"Y46+Y47+Y48","v":114},{"$f":"SQRT((Z46^2)+(Z47^2)+(Z48^2))","v":42.918527467749868},{"$f":"AA46+AA47+AA48","v":221},{"$f":"SQRT((AB46^2)+(AB47^2)+(AB48^2))","v":90.244113381427823},{"$f":"AC46+AC47+AC48","v":121},{"$f":"SQRT((AD46^2)+(AD47^2)+(AD48^2))","v":37.148351242013426},{"$f":"AE46+AE47+AE48","v":93},{"$f":"SQRT((AF46^2)+(AF47^2)+(AF48^2))","v":31.701734968294716}]
[null," 50% or More of HH Income",{"$f":"C48","v":13},{"$f":"D48","v":9.4868329805051381},{"$f":"E48","v":125},96.519428096109237,349,116.36150566231085,53,29.698484809834994,34,20,13,6.4031242374328485,94,68.8839603971781,23,19.416487838947599,32,17.888543819998318,103,59.464274989274024,93,49.203658400570177,{"$f":"Y48","v":62},30.528675044947494,83,51.429563482495162,{"$f":"AC48","v":63},26.570660511172846,54,24.839484696748443]
[null,"Not computed",{"$f":"C49","v":7},{"$f":"D49","v":15.556349186104045},{"$f":"E49","v":39},64.031242374328485,27,44.77722635447622,0,15.556349186104045,0,15.556349186104045,2,11.401754250991379,0,15.556349186104045,0,15.556349186104045,11,18.601075237738275,48,78.644770964127048,0,15.556349186104045,0,15.556349186104045,48,60.440052945046304,{"$f":"AC49","v":13},21.095023109728988,6,5.6568542494923806]
[]
[]
[]
[]
[]
[]
[]
[]
[]
[]
[]
[]
[null,"B25091. MORTGAGE STATUS BY SELECTED MONTHLY OWNER COSTS AS A PERCENTAGE OF HOUSEHOLD INCOME IN THE PAST 12 MONTHS "]
[null,"Universe:  OWNER-OCCUPIED HOUSING UNITS"]
[null,"Data Set: 2010-2014 American Community Survey 5-Year Estimates"]
[]
[null,null,"Acworth",null,"Charlestown",null,"Claremont",null,"Cornish",null,"Croydon",null,"Goshen",null,"Grantham",null,"Langdon",null,"Lempster",null,"Newport",null,"Plainfield",null,"Springfield",null,"Sunapee",null,"Unity",null,"Washington"]
[null,null,"Estimate","Margin Of Error","Estimate","Margin Of Error","Estimate","Margin Of Error","Estimate","Margin Of Error","Estimate","Margin Of Error","Estimate","Margin Of Error","Estimate","Margin Of Error","Estimate","Margin Of Error","Estimate","Margin Of Error","Estimate","Margin Of Error","Estimate","Margin Of Error","Estimate","Margin Of Error","Estimate","Margin Of Error"]
[null,null,274,40,1721,147,3486,249,550,56,213,37,254,35,991,88,255,38,375,51,1858,197,815,78,410,65,1068,125,513,58,418,62]
[null,"Housing units with a mortgage:",136,30,1134,169,2368,212,363,52,131,34,171,28,688,88,169,34,250,46,1243,213,496,77,278,57,741,115,346,57,258,41]
[null,"Less than 10.0 percent",9,12,14,23,66,64,12,11,5,7,8,10,4,7,11,8,18,20,11,19,22,16,15,15,68,52,2,4,8,7]
[null,"10.0 to 14.9 percent",11,6,128,62,271,127,63,31,3,7,15,11,83,49,9,8,37,22,105,94,74,33,45,23,61,40,32,19,24,17]
[null,"15.0 to 19.9 percent",33,20,179,100,395,138,76,28,43,20,21,9,197,87,42,22,40,22,328,128,123,44,50,26,151,77,33,19,51,25]
[null,"20.0 to 24.9 percent",26,13,133,78,303,112,61,24,27,13,16,9,167,93,29,18,43,18,337,135,115,43,33,16,60,31,60,22,57,34]
[null,"25.0 to 29.9 percent",3,5,186,86,427,123,41,22,10,11,25,16,81,53,26,18,39,20,108,59,41,25,48,24,91,50,34,20,19,10]
[null,"30.0 to 34.9 percent",16,12,140,78,195,96,23,20,6,7,10,7,28,21,7,7,22,16,144,114,54,26,32,19,54,35,48,27,19,20]
[null,"35.0 to 39.9 percent",10,9,114,83,174,96,31,17,8,8,28,19,72,37,7,6,26,17,28,33,33,30,0,11,22,24,23,13,3,4]
[null,"40.0 to 49.9 percent",8,6,78,52,200,76,24,17,11,13,22,13,20,26,23,16,12,8,98,59,22,16,24,17,88,67,40,22,26,11]
[null,"50.0 percent or more",20,11,162,88,337,148,32,17,18,13,26,16,36,39,15,8,13,12,84,51,12,10,31,21,146,74,74,31,51,21]
[null,"Not computed",0,11,0,11,0,17,0,11,0,11,0,11,0,11,0,11,0,11,0,15,0,11,0,11,0,11,0,11,0,11]
[null,"Housing units without a mortgage:",138,29,587,143,1118,175,187,31,82,28,83,24,303,93,86,22,125,35,615,176,319,67,132,45,327,88,167,40,160,44]
[null,"Less than 10.0 percent",26,13,135,83,179,73,62,24,22,17,28,16,104,48,15,14,30,16,105,83,102,44,48,31,79,52,33,17,37,19]
[null,"10.0 to 14.9 percent",27,13,37,35,227,94,43,20,29,16,6,6,52,35,24,12,42,23,146,78,60,30,29,21,46,36,36,19,30,14]
[null,"15.0 to 19.9 percent",22,17,111,93,194,77,21,16,14,14,16,13,43,29,4,4,15,9,148,83,58,31,11,11,24,22,23,15,23,16]
[null,"20.0 to 24.9 percent",7,6,109,70,159,72,6,6,6,6,11,8,24,19,2,4,4,5,53,45,37,20,15,14,30,36,22,12,12,9]
[null,"25.0 to 29.9 percent",19,16,60,55,56,33,5,6,4,6,9,8,7,12,12,12,23,20,13,20,32,19,10,12,15,16,20,22,12,14]
[null,"30.0 to 34.9 percent",6,7,38,38,87,62,4,7,6,7,2,3,27,42,2,3,3,4,21,21,15,13,0,11,39,38,5,5,8,14]
[null,"35.0 to 39.9 percent",8,10,27,28,30,24,6,6,0,11,1,3,8,12,5,5,0,11,0,15,4,6,10,9,36,38,5,5,11,12]
[null,"40.0 to 49.9 percent",14,16,27,31,70,47,6,6,0,11,0,11,21,20,4,4,0,11,54,65,0,11,0,11,13,14,3,4,10,8]
[null,"50.0 percent or more",9,11,43,37,61,41,31,17,1,3,10,8,17,21,16,11,5,7,75,58,11,12,9,8,45,40,17,14,7,7]
[null,"Not computed",0,11,0,11,55,54,3,4,0,11,0,11,0,11,2,3,3,4,0,15,0,11,0,11,0,11,3,4,10,13]
[]
[]
[]
[null,"Calculated B25091. MORTGAGE STATUS BY SELECTED MONTHLY OWNER COSTS AS A PERCENTAGE OF HOUSEHOLD INCOME IN THE PAST 12 MONTHS "]
[null,"Universe:  OWNER-OCCUPIED HOUSING UNITS"]
[null,"Data Set: 2010-2014 American Community Survey 5-Year Estimates"]
[]
[null,null,"Acworth",null,"Charlestown",null,"Claremont",null,"Cornish",null,"Croydon",null,"Goshen",null,"Grantham",null,"Langdon",null,"Lempster",null,"Newport",null,"Plainfield",null,"Springfield",null,"Sunapee",null,"Unity",null,"Washington"]
[null,null,"Estimate","Margin Of Error","Estimate","Margin Of Error","Estimate","Margin Of Error","Estimate","Margin Of Error","Estimate","Margin Of Error","Estimate","Margin Of Error","Estimate","Margin Of Error","Estimate","Margin Of Error","Estimate","Margin Of Error","Estimate","Margin Of Error","Estimate","Margin Of Error","Estimate","Margin Of Error","Estimate","Margin Of Error","Estimate","Margin Of Error","Estimate","Margin Of Error"]
[null,"Total:",{"$f":"C87","v":274},{"$f":"D87","v":40},{"$f":"E87","v":1721},147,3486,249,550,56,213,37,254,35,991,88,255,38,375,51,1858,197,815,78,410,65,1068,125,513,58,418,62]
[null,"Less than 10.0 percent",{"$f":"C89+C100","v":35},{"$f":"SQRT((D89^2)+(D100^2))","v":17.691806012954132},{"$f":"E89+E100","v":149},{"$f":"SQRT((F89^2)+(F100^2))","v":86.127812000537901},{"$f":"G89+G100","v":245},{"$f":"SQRT((H89^2)+(H100^2))","v":97.082439194738001},{"$f":"I89+I100","v":74},{"$f":"SQRT((J89^2)+(J100^2))","v":26.40075756488817},{"$f":"K89+K100","v":27},{"$f":"SQRT((L89^2)+(L100^2))","v":18.384776310850235},{"$f":"M89+M100","v":36},{"$f":"SQRT((N89^2)+(N100^2))","v":18.867962264113206},{"$f":"O89+O100","v":108},{"$f":"SQRT((P89^2)+(P100^2))","v":48.507731342539614},{"$f":"Q89+Q100","v":26},{"$f":"SQRT((R89^2)+(R100^2))","v":16.124515496597098},{"$f":"S89+S100","v":48},{"$f":"SQRT((T89^2)+(T100^2))","v":25.612496949731394},{"$f":"U89+U100","v":116},{"$f":"SQRT((V89^2)+(V100^2))","v":85.14693182963201},{"$f":"W89+W100","v":124},{"$f":"SQRT((X89^2)+(X100^2))","v":46.818799642878503},63,{"$f":"SQRT((Z89^2)+(Z100^2))","v":34.438350715445125},{"$f":"AA89+AA100","v":147},{"$f":"SQRT((AB89^2)+(AB100^2))","v":73.53910524340094},35,17.464249196572979,{"$f":"AE89+AE100","v":45},{"$f":"SQRT((AF89^2)+(AF100^2))","v":20.248456731316587}]
[null,"10.0 to 14.9 percent",38,14.317821063276353,165,71.196910045310247,498,158.00316452527144,106,36.891733491393431,32,17.464249196572979,21,12.529964086141668,135,60.21627686929839,33,14.422205101855956,79,31.827660925679098,251,122.14745187681976,134,{"$f":"SQRT((X90^2)+(X101^2))","v":44.598206241955516},74,31.144823004794873,107,53.814496188294839,68,26.870057685088806,54,22.022715545545239]
[null,"15.0 to 19.9 percent",55,26.248809496813376,290,136.56134152826706,589,158.02847844613325,97,32.249030993194197,57,24.413111231467404,37,15.811388300841896,240,91.706052144883003,46,22.360679774997898,55,23.769728648009426,476,152.55490814785344,181,53.823786563191554,61,28.231188426986208,175,80.081208782085696,56,24.207436873820409,74,29.681644159311659]
[null,"20.0 to 24.9 percent",33,14.317821063276353,242,104.80458005259122,462,133.14653581674591,67,24.738633753705962,33,14.317821063276353,27,12.041594578792296,191,94.921019800674287,31,18.439088914585774,47,18.681541692269406,390,142.30249470757707,152,47.423622805517503,48,21.2602916254693,90,47.507894080878813,82,25.059928172283335,69,35.171010790137949]
[null,"25.0 to 29.9 percent",22,16.763054614240211,246,102.08329931972223,483,127.34991166074674,46,22.803508501982758,14,12.529964086141668,34,17.888543819998318,88,54.341512676774101,38,21.633307652783937,62,28.284271247461902,121,62.297672508690084,73,31.400636936215164,58,26.832815729997478,106,52.497618993626752,54,29.732137494637012,31,17.204650534085253]
[null,"30.0 to 34.9 percent",22,13.892443989449804,178,86.764047853935452,282,114.28035701729323,27,21.189620100417091,12,9.8994949366116654,12,7.6157731058639087,55,46.957427527495582,9,7.6157731058639087,25,16.492422502470642,165,115.91807451816995,69,29.068883707497267,32,21.95449840010015,93,51.662365412357957,53,27.459060435491963,27,24.413111231467404]
[null,"35.0 to 39.9 percent",18,13.45362404707371,141,87.595661993046207,204,98.954535014823847,37,18.027756377319946,8,13.601470508735444,29,19.235384061671343,80,38.897300677553446,12,7.810249675906654,26,20.248456731316587,28,36.249137920783717,37,30.594117081556711,10,14.212670403551895,58,44.944410108488462,28,13.928388277184119,14,12.649110640673518]
[null,"40.0 to 49.9 percent",22,17.088007490635061,105,60.539243470661241,270,89.358827208060418,30,18.027756377319946,11,17.029386365926403,22,17.029386365926403,41,32.802438933713454,27,16.492422502470642,12,13.601470508735444,152,87.783825389418979,22,19.416487838947599,24,20.248456731316587,101,68.447059834590405,43,22.360679774997898,36,13.601470508735444]
[null,"50.0 percent or more",29,15.556349186104045,205,95.462034338264544,398,153.57408635573907,63,24.041630560342615,19,13.341664064126334,36,17.888543819998318,53,44.294469180700204,31,13.601470508735444,18,13.892443989449804,159,77.233412458598508,23,15.620499351813308,40,22.472205054244231,191,84.118963379252364,91,34.014702703389901,58,22.135943621178654]
[null,"Not computed",0,15.556349186104045,0,15.556349186104045,55,56.612719418872643,3,11.704699910719626,0,15.556349186104045,0,15.556349186104045,0,15.556349186104045,2,11.401754250991379,3,11.704699910719626,0,21.213203435596427,0,15.556349186104045,0,15.556349186104045,0,15.556349186104045,3,11.704699910719626,10,17.029386365926403]
[]
[]
[]
[]
[null,"Calculated MONTHLY OWNER COSTS AS A PERCENTAGE OF HOUSEHOLD INCOME IN THE PAST 12 MONTHS "]
[null,"Universe:  OWNER-OCCUPIED HOUSING UNITS"]
[null,"Data Set: 2010-2014 American Community Survey 5-Year Estimates"]
[null,null,"Acworth",null,"Charlestown",null,"Claremont",null,"Cornish",null,"Croydon",null,"Goshen",null,"Grantham",null,"Langdon",null,"Lempster",null,"Newport",null,"Plainfield",null,"Springfield",null,"Sunapee",null,"Unity",null,"Washington"]
[null,null,"Estimate","Margin Of Error","Estimate","Margin Of Error","Estimate","Margin Of Error","Estimate","Margin Of Error","Estimate","Margin Of Error","Estimate","Margin Of Error","Estimate","Margin Of Error","Estimate","Margin Of Error","Estimate","Margin Of Error","Estimate","Margin Of Error","Estimate","Margin Of Error","Estimate","Margin Of Error","Estimate","Margin Of Error","Estimate","Margin Of Error","Estimate","Margin Of Error"]
[null,"Total:",274,40,1721,147,3486,249,550,56,213,37,254,35,991,88,255,38,375,51,1858,197,815,78,410,65,1068,125,513,58,418,62]
[null,"Less than 20% of HH Income",128,34.741905532080416,604,176.45396000090221,1332,243.64523389551456,277,55.659680200302986,116,35.199431813596085,94,27.622454633866266,483,119.95415791042844,105,31.11269837220809,182,47.265209192385896,843,213.17363814505771,439,84.130850465212816,198,54.341512676774094,429,121.31364309095659,159,40.162171256046406,173,42.142615011410953]
[null," 20% to 29.9% of HH Income",55,22.045407685048605,488,146.30447703334306,945,184.24440290006098,113,33.645207682521445,47,19.026297590440446,61,21.563858652847827,279,109.37549999885715,69,28.42534080710379,109,33.896902513356586,511,155.3415591527264,225,56.877060402239493,106,34.23448553724738,196,70.802542327235685,136,38.884444190447162,100,39.153543900903784]
[null," Less Than 30% of HH Income",183,41.146081222881968,1092,229.21823662178366,2277,305.46521896936156,390,65.038450166036398,163,40.01249804748511,155,35.042830935870462,762,162.3329911016242,174,42.142615011410953,291,58.163562476863468,1354,263.76883818980588,664,101.55294185792945,304,64.22616289332565,625,140.46351839534705,295,55.901699437494742,273,57.523908073078623]
[null," 30% or More of HH Income",91,30.133038346638727,629,167.26924403487928,1154,233.285233137462,157,40.951190458886543,50,27.404379212089442,99,32.218007387174026,229,82.194890352138074,79,24,81,32.557641192199412,504,168.5882558187254,151,49.010203019371382,106,39.987498046264413,443,128.2575533838066,215,51.039200620699383,135,37.828560638755469]
[null," 30% to 34.9% of HH Income",22,13.892443989449804,178,86.764047853935452,282,114.28035701729323,27,21.189620100417091,12,9.8994949366116654,12,7.6157731058639087,55,46.957427527495582,9,7.6157731058639087,25,16.492422502470642,165,115.91807451816995,69,29.068883707497267,32,21.95449840010015,93,51.662365412357957,53,27.459060435491963,27,24.413111231467404]
[null," Less Than 35% of HH Income",205,43.428101501216929,1270,245.08977946866736,2559,326.14260684553312,417,68.403216298650747,175,41.218927691049899,167,35.860842154082214,817,168.98816526609193,183,42.825226210727713,316,60.456596000767362,1519,288.11629596397353,733,105.63143471523995,336,67.874884898613274,718,149.66295466814759,348,62.281618476080084,300,62.489999199871974]
[null," 35% or More of HH Income",69,26.739483914241873,451,143.00699283601483,872,203.37649815059754,130,35.042830935870462,38,25.553864678361279,87,31.304951684997057,174,67.461099902091718,70,22.759613353482084,56,28.071337695236398,339,122.41323457861898,82,39.45883931389772,74,33.421549934136806,350,117.39250401963491,162,43.023249528597908,108,28.89636655359978]
[null," 50% or More of HH Income",29,15.556349186104045,205,95.462034338264544,398,153.57408635573907,63,24.041630560342615,19,13.341664064126334,36,17.888543819998318,53,44.294469180700204,31,13.601470508735444,18,13.892443989449804,159,77.233412458598508,23,15.620499351813308,40,22.472205054244231,191,84.118963379252364,91,34.014702703389901,58,22.135943621178654]
[null,"Not computed",0,15.556349186104045,0,15.556349186104045,55,56.612719418872643,3,11.704699910719626,0,15.556349186104045,0,15.556349186104045,0,15.556349186104045,2,11.401754250991379,3,11.704699910719626,0,21.213203435596427,0,15.556349186104045,0,15.556349186104045,0,15.556349186104045,3,11.704699910719626,10,17.029386365926403]
[]
[]
[]
[null,"B25091. MORTGAGE STATUS BY SELECTED MONTHLY OWNER COSTS AS A PERCENTAGE OF HOUSEHOLD INCOME IN THE PAST 12 MONTHS "]
[null,"Universe:  OWNER-OCCUPIED HOUSING UNITS"]
[null,"Data Set: 2006-2010 American Community Survey 5-Year Estimates"]
[]
[null,null,"Alton",null,"Barnstead",null,"Belmont",null,"Center Harbor",null,"Gilford",null,"Gilmanton",null,"Laconia",null,"Meredith",null,"New Hampton",null,"Sanbornton",null,"Tilton"]
[null," ","Estimate","Margin of Error","Estimate","Margin of Error","Estimate","Margin of Error","Estimate","Margin of Error","Estimate","Margin of Error","Estimate","Margin of Error","Estimate","Margin of Error","Estimate","Margin of Error","Estimate","Margin of Error","Estimate","Margin of Error","Estimate","Margin of Error"]
[null,"Total:"]
[null,"Housing units with a mortgage:"]
[null,"Less than 10.0 percent"]
[null,"10.0 to 14.9 percent"]
[null,"15.0 to 19.9 percent"]
[null,"20.0 to 24.9 percent"]
[null,"25.0 to 29.9 percent"]
[null,"30.0 to 34.9 percent"]
[null,"35.0 to 39.9 percent"]
[null,"40.0 to 49.9 percent"]
[null,"50.0 percent or more"]
[null,"Not computed"]
[null,"Housing units without a mortgage:"]
[null,"Less than 10.0 percent"]
[null,"10.0 to 14.9 percent"]
[null,"15.0 to 19.9 percent"]
[null,"20.0 to 24.9 percent"]
[null,"25.0 to 29.9 percent"]
[null,"30.0 to 34.9 percent"]
[null,"35.0 to 39.9 percent"]
[null,"40.0 to 49.9 percent"]
[null,"50.0 percent or more"]
[null,"Not computed"]
[]
[]
[]
[null,"Calculated B25091. MORTGAGE STATUS BY SELECTED MONTHLY OWNER COSTS AS A PERCENTAGE OF HOUSEHOLD INCOME IN THE PAST 12 MONTHS "]
[null,"Universe:  OWNER-OCCUPIED HOUSING UNITS"]
[null,"Data Set: 2006-2010 American Community Survey 5-Year Estimates"]
[]
[null,null,"Alton",null,"Barnstead",null,"Belmont",null,"Center Harbor",null,"Gilford",null,"Gilmanton",null,"Laconia",null,"Meredith",null,"New Hampton",null,"Sanbornton",null,"Tilton"]
[null," ","Estimate","Margin of Error","Estimate","Margin of Error","Estimate","Margin of Error","Estimate","Margin of Error","Estimate","Margin of Error","Estimate","Margin of Error","Estimate","Margin of Error","Estimate","Margin of Error","Estimate","Margin of Error","Estimate","Margin of Error","Estimate","Margin of Error"]
[null,"Total:",{"$f":"C158","v":0},{"$f":"D158","v":0},{"$f":"E158","v":0},0,0,0,0,0,0,0,0,0,0,0,0,0,0,0,0,0,0,0]
[null,"Less than 10.0 percent",{"$f":"C160+C171","v":0},{"$f":"SQRT((D160^2)+(D171^2))","v":0},{"$f":"E160+E171","v":0},{"$f":"SQRT((F160^2)+(F171^2))","v":0},{"$f":"G160+G171","v":0},{"$f":"SQRT((H160^2)+(H171^2))","v":0},{"$f":"I160+I171","v":0},{"$f":"SQRT((J160^2)+(J171^2))","v":0},{"$f":"K160+K171","v":0},{"$f":"SQRT((L160^2)+(L171^2))","v":0},{"$f":"M160+M171","v":0},{"$f":"SQRT((N160^2)+(N171^2))","v":0},{"$f":"O160+O171","v":0},{"$f":"SQRT((P160^2)+(P171^2))","v":0},{"$f":"Q160+Q171","v":0},{"$f":"SQRT((R160^2)+(R171^2))","v":0},{"$f":"S160+S171","v":0},{"$f":"SQRT((T160^2)+(T171^2))","v":0},{"$f":"U160+U171","v":0},{"$f":"SQRT((V160^2)+(V171^2))","v":0},{"$f":"W160+W171","v":0},{"$f":"SQRT((X160^2)+(X171^2))","v":0}]
[null,"10.0 to 14.9 percent",0,0,0,0,0,0,0,0,0,0,0,0,0,0,0,0,0,0,0,0,0,{"$f":"SQRT((X161^2)+(X172^2))","v":0}]
[null,"15.0 to 19.9 percent",0,0,0,0,0,0,0,0,0,0,0,0,0,0,0,0,0,0,0,0,0,0]
[null,"20.0 to 24.9 percent",0,0,0,0,0,0,0,0,0,0,0,0,0,0,0,0,0,0,0,0,0,0]
[null,"25.0 to 29.9 percent",0,0,0,0,0,0,0,0,0,0,0,0,0,0,0,0,0,0,0,0,0,0]
[null,"30.0 to 34.9 percent",0,0,0,0,0,0,0,0,0,0,0,0,0,0,0,0,0,0,0,0,0,0]
[null,"35.0 to 39.9 percent",0,0,0,0,0,0,0,0,0,0,0,0,0,0,0,0,0,0,0,0,0,0]
[null,"40.0 to 49.9 percent",0,0,0,0,0,0,0,0,0,0,0,0,0,0,0,0,0,0,0,0,0,0]
[null,"50.0 percent or more",{"$f":"C168+C179","v":0},0,0,0,0,0,0,0,0,0,0,0,0,0,0,0,0,0,0,0,0,0]
[null,"Not computed",0,0,0,0,0,0,0,0,0,0,0,0,0,0,0,0,0,0,0,0,0,0]
[]
[]
[]
[]
[null,"Calculated MONTHLY OWNER COSTS AS A PERCENTAGE OF HOUSEHOLD INCOME IN THE PAST 12 MONTHS "]
[null,"Universe:  OWNER-OCCUPIED HOUSING UNITS"]
[null,"Data Set: 2006-2010 American Community Survey 5-Year Estimates"]
[null,null,"Alton",null,"Barnstead",null,"Belmont",null,"Center Harbor",null,"Gilford",null,"Gilmanton",null,"Laconia",null,"Meredith",null,"New Hampton",null,"Sanbornton",null,"Tilton"]
[null," ","Estimate","Margin of Error","Estimate","Margin of Error","Estimate","Margin of Error","Estimate","Margin of Error","Estimate","Margin of Error","Estimate","Margin of Error","Estimate","Margin of Error","Estimate","Margin of Error","Estimate","Margin of Error","Estimate","Margin of Error","Estimate","Margin of Error"]
[null,"Total:",{"$f":"C190","v":0},0,0,0,0,0,0,0,0,0,0,0,0,0,0,0,0,0,0,0,0,0]
[null,"Less than 20% of HH Income",{"$f":"C191+C192+C193","v":0},{"$f":"SQRT((D191^2)+(D192^2)+(D193^2))","v":0},{"$f":"E191+E192+E193","v":0},{"$f":"SQRT((F191^2)+(F192^2)+(F193^2))","v":0},{"$f":"G191+G192+G193","v":0},{"$f":"SQRT((H191^2)+(H192^2)+(H193^2))","v":0},{"$f":"I191+I192+I193","v":0},{"$f":"SQRT((J191^2)+(J192^2)+(J193^2))","v":0},{"$f":"K191+K192+K193","v":0},{"$f":"SQRT((L191^2)+(L192^2)+(L193^2))","v":0},{"$f":"M191+M192+M193","v":0},{"$f":"SQRT((N191^2)+(N192^2)+(N193^2))","v":0},{"$f":"O191+O192+O193","v":0},{"$f":"SQRT((P191^2)+(P192^2)+(P193^2))","v":0},{"$f":"Q191+Q192+Q193","v":0},{"$f":"SQRT((R191^2)+(R192^2)+(R193^2))","v":0},{"$f":"S191+S192+S193","v":0},{"$f":"SQRT((T191^2)+(T192^2)+(T193^2))","v":0},{"$f":"U191+U192+U193","v":0},{"$f":"SQRT((V191^2)+(V192^2)+(V193^2))","v":0},{"$f":"W191+W192+W193","v":0},{"$f":"SQRT((X191^2)+(X192^2)+(X193^2))","v":0}]
[null," 20% to 29.9% of HH Income",{"$f":"C194+C195","v":0},{"$f":"SQRT((D194^2)+(D195^2))","v":0},{"$f":"E194+E195","v":0},{"$f":"SQRT((F194^2)+(F195^2))","v":0},{"$f":"G194+G195","v":0},{"$f":"SQRT((H194^2)+(H195^2))","v":0},{"$f":"I194+I195","v":0},{"$f":"SQRT((J194^2)+(J195^2))","v":0},{"$f":"K194+K195","v":0},{"$f":"SQRT((L194^2)+(L195^2))","v":0},{"$f":"M194+M195","v":0},{"$f":"SQRT((N194^2)+(N195^2))","v":0},{"$f":"O194+O195","v":0},{"$f":"SQRT((P194^2)+(P195^2))","v":0},{"$f":"Q194+Q195","v":0},{"$f":"SQRT((R194^2)+(R195^2))","v":0},{"$f":"S194+S195","v":0},{"$f":"SQRT((T194^2)+(T195^2))","v":0},{"$f":"U194+U195","v":0},{"$f":"SQRT((V194^2)+(V195^2))","v":0},{"$f":"W194+W195","v":0},{"$f":"SQRT((X194^2)+(X195^2))","v":0}]
[null," Less Than 30% of HH Income",{"$f":"C191+C192+C193+C194+C195","v":0},{"$f":"SQRT((D191^2)+(D192^2)+(D193^2)+(D194^2)+(D195^2))","v":0},{"$f":"E191+E192+E193+E194+E195","v":0},{"$f":"SQRT((F191^2)+(F192^2)+(F193^2)+(F194^2)+(F195^2))","v":0},{"$f":"G191+G192+G193+G194+G195","v":0},{"$f":"SQRT((H191^2)+(H192^2)+(H193^2)+(H194^2)+(H195^2))","v":0},{"$f":"I191+I192+I193+I194+I195","v":0},{"$f":"SQRT((J191^2)+(J192^2)+(J193^2)+(J194^2)+(J195^2))","v":0},{"$f":"K191+K192+K193+K194+K195","v":0},{"$f":"SQRT((L191^2)+(L192^2)+(L193^2)+(L194^2)+(L195^2))","v":0},{"$f":"M191+M192+M193+M194+M195","v":0},{"$f":"SQRT((N191^2)+(N192^2)+(N193^2)+(N194^2)+(N195^2))","v":0},{"$f":"O191+O192+O193+O194+O195","v":0},{"$f":"SQRT((P191^2)+(P192^2)+(P193^2)+(P194^2)+(P195^2))","v":0},{"$f":"Q191+Q192+Q193+Q194+Q195","v":0},{"$f":"SQRT((R191^2)+(R192^2)+(R193^2)+(R194^2)+(R195^2))","v":0},{"$f":"S191+S192+S193+S194+S195","v":0},{"$f":"SQRT((T191^2)+(T192^2)+(T193^2)+(T194^2)+(T195^2))","v":0},{"$f":"U191+U192+U193+U194+U195","v":0},{"$f":"SQRT((V191^2)+(V192^2)+(V193^2)+(V194^2)+(V195^2))","v":0},{"$f":"W191+W192+W193+W194+W195","v":0},{"$f":"SQRT((X191^2)+(X192^2)+(X193^2)+(X194^2)+(X195^2))","v":0}]
[null," 30% or More of HH Income",{"$f":"C196+C197+C198+C199","v":0},{"$f":"SQRT((D196^2)+(D197^2)+(D198^2)+(D199^2))","v":0},{"$f":"E196+E197+E198+E199","v":0},{"$f":"SQRT((F196^2)+(F197^2)+(F198^2)+(F199^2))","v":0},{"$f":"G196+G197+G198+G199","v":0},{"$f":"SQRT((H196^2)+(H197^2)+(H198^2)+(H199^2))","v":0},{"$f":"I196+I197+I198+I199","v":0},{"$f":"SQRT((J196^2)+(J197^2)+(J198^2)+(J199^2))","v":0},{"$f":"K196+K197+K198+K199","v":0},{"$f":"SQRT((L196^2)+(L197^2)+(L198^2)+(L199^2))","v":0},{"$f":"M196+M197+M198+M199","v":0},{"$f":"SQRT((N196^2)+(N197^2)+(N198^2)+(N199^2))","v":0},{"$f":"O196+O197+O198+O199","v":0},{"$f":"SQRT((P196^2)+(P197^2)+(P198^2)+(P199^2))","v":0},{"$f":"Q196+Q197+Q198+Q199","v":0},{"$f":"SQRT((R196^2)+(R197^2)+(R198^2)+(R199^2))","v":0},{"$f":"S196+S197+S198+S199","v":0},{"$f":"SQRT((T196^2)+(T197^2)+(T198^2)+(T199^2))","v":0},{"$f":"U196+U197+U198+U199","v":0},{"$f":"SQRT((V196^2)+(V197^2)+(V198^2)+(V199^2))","v":0},{"$f":"W196+W197+W198+W199","v":0},{"$f":"SQRT((X196^2)+(X197^2)+(X198^2)+(X199^2))","v":0}]
[null," 30% to 34.9% of HH Income",{"$f":"C196","v":0},{"$f":"D196","v":0},{"$f":"E196","v":0},0,0,0,0,0,0,0,0,0,0,0,0,0,0,0,0,0,0,0]
[null," Less Than 35% of HH Income",{"$f":"C191+C192+C193+C194+C195+C196","v":0},{"$f":"SQRT((D191^2)+(D192^2)+(D193^2)+(D194^2)+(D195^2)+(D196^2))","v":0},{"$f":"E191+E192+E193+E194+E195+E196","v":0},{"$f":"SQRT((F191^2)+(F192^2)+(F193^2)+(F194^2)+(F195^2)+(F196^2))","v":0},{"$f":"G191+G192+G193+G194+G195+G196","v":0},{"$f":"SQRT((H191^2)+(H192^2)+(H193^2)+(H194^2)+(H195^2)+(H196^2))","v":0},{"$f":"I191+I192+I193+I194+I195+I196","v":0},{"$f":"SQRT((J191^2)+(J192^2)+(J193^2)+(J194^2)+(J195^2)+(J196^2))","v":0},{"$f":"K191+K192+K193+K194+K195+K196","v":0},{"$f":"SQRT((L191^2)+(L192^2)+(L193^2)+(L194^2)+(L195^2)+(L196^2))","v":0},{"$f":"M191+M192+M193+M194+M195+M196","v":0},{"$f":"SQRT((N191^2)+(N192^2)+(N193^2)+(N194^2)+(N195^2)+(N196^2))","v":0},{"$f":"O191+O192+O193+O194+O195+O196","v":0},{"$f":"SQRT((P191^2)+(P192^2)+(P193^2)+(P194^2)+(P195^2)+(P196^2))","v":0},{"$f":"Q191+Q192+Q193+Q194+Q195+Q196","v":0},{"$f":"SQRT((R191^2)+(R192^2)+(R193^2)+(R194^2)+(R195^2)+(R196^2))","v":0},{"$f":"S191+S192+S193+S194+S195+S196","v":0},{"$f":"SQRT((T191^2)+(T192^2)+(T193^2)+(T194^2)+(T195^2)+(T196^2))","v":0},{"$f":"U191+U192+U193+U194+U195+U196","v":0},{"$f":"SQRT((V191^2)+(V192^2)+(V193^2)+(V194^2)+(V195^2)+(V196^2))","v":0},{"$f":"W191+W192+W193+W194+W195+W196","v":0},{"$f":"SQRT((X191^2)+(X192^2)+(X193^2)+(X194^2)+(X195^2)+(X196^2))","v":0}]
[null," 35% or More of HH Income",{"$f":"C197+C198+C199","v":0},{"$f":"SQRT((D197^2)+(D198^2)+(D199^2))","v":0},{"$f":"E197+E198+E199","v":0},{"$f":"SQRT((F197^2)+(F198^2)+(F199^2))","v":0},{"$f":"G197+G198+G199","v":0},{"$f":"SQRT((H197^2)+(H198^2)+(H199^2))","v":0},{"$f":"I197+I198+I199","v":0},{"$f":"SQRT((J197^2)+(J198^2)+(J199^2))","v":0},{"$f":"K197+K198+K199","v":0},{"$f":"SQRT((L197^2)+(L198^2)+(L199^2))","v":0},{"$f":"M197+M198+M199","v":0},{"$f":"SQRT((N197^2)+(N198^2)+(N199^2))","v":0},{"$f":"O197+O198+O199","v":0},{"$f":"SQRT((P197^2)+(P198^2)+(P199^2))","v":0},{"$f":"Q197+Q198+Q199","v":0},{"$f":"SQRT((R197^2)+(R198^2)+(R199^2))","v":0},{"$f":"S197+S198+S199","v":0},{"$f":"SQRT((T197^2)+(T198^2)+(T199^2))","v":0},{"$f":"U197+U198+U199","v":0},{"$f":"SQRT((V197^2)+(V198^2)+(V199^2))","v":0},{"$f":"W197+W198+W199","v":0},{"$f":"SQRT((X197^2)+(X198^2)+(X199^2))","v":0}]
[null," 50% or More of HH Income",{"$f":"C199","v":0},0,{"$f":"E199","v":0},0,0,0,0,0,0,0,0,0,0,0,0,0,0,0,0,0,0,0]
[null,"Not computed",0,0,0,0,0,0,0,0,0,0,0,0,0,0,0,0,0,0,0,0,0,0]
[null,"Not computed",0,0,{"$f":"E201","v":0},0,0,0,0,0,0,0,0,0,0,0,0,0,0,0,0,0,0,0,0,0,0,0,0,0,0,0]

{"sheet":"SData_B25088MednMthlyOwnerCost","index":101,"n_rows":23,"n_cols":34,"rows_kept":23,"cut":false,"hidden":true,"merged":[]}
["GEO_ID","GEO_ID2","SUMLEVEL","GEO_NAME","B25088_1_EST","B25088_1_MOE","B25088_2_EST","B25088_2_MOE","B25088_3_EST","B25088_3_MOE"]
["Geography Identifier","Geography Identifier","Geographic Summary Level","Geography",{"$f":"[1]ACS_16_5YR_B25088_with_ann!D$2","v":"Estimate Median selected monthly owner costs (dollars) -- Total:"},{"$f":"[1]ACS_16_5YR_B25088_with_ann!E$2","v":"Margin of Error Median selected monthly owner costs (dollars) -- Total:"},{"$f":"[1]ACS_16_5YR_B25088_with_ann!F$2","v":"Estimate Median selected monthly owner costs (dollars) -- Housing units with a mortgage (dollars)"},{"$f":"[1]ACS_16_5YR_B25088_with_ann!G$2","v":"Margin of Error Median selected monthly owner costs (dollars) -- Housing units with a mortgage (dollars)"},{"$f":"[1]ACS_16_5YR_B25088_with_ann!H$2","v":"Estimate Median selected monthly owner costs (dollars) -- Housing units without a mortgage (dollars)"},{"$f":"[1]ACS_16_5YR_B25088_with_ann!I$2","v":"Margin of Error Median selected monthly owner costs (dollars) -- Housing units without a mortgage (dollars)"}]
["0600000US3301900259",3301900259,"060","Acworth",{"$f":"[1]ACS_16_5YR_B25088_with_ann!D258","v":935},{"$f":"[1]ACS_16_5YR_B25088_with_ann!E258","v":139},{"$f":"[1]ACS_16_5YR_B25088_with_ann!F258","v":1556},{"$f":"[1]ACS_16_5YR_B25088_with_ann!G258","v":107},{"$f":"[1]ACS_16_5YR_B25088_with_ann!H258","v":636},{"$f":"[1]ACS_16_5YR_B25088_with_ann!I258","v":67}]
["0600000US3301911380",3301911380,"060","Charlestown",{"$f":"[1]ACS_16_5YR_B25088_with_ann!D259","v":740},{"$f":"[1]ACS_16_5YR_B25088_with_ann!E259","v":103},{"$f":"[1]ACS_16_5YR_B25088_with_ann!F259","v":1544},{"$f":"[1]ACS_16_5YR_B25088_with_ann!G259","v":131},{"$f":"[1]ACS_16_5YR_B25088_with_ann!H259","v":493},{"$f":"[1]ACS_16_5YR_B25088_with_ann!I259","v":64}]
["0600000US3301912900",3301912900,"060","Claremont",{"$f":"[1]ACS_16_5YR_B25088_with_ann!D260","v":1231},{"$f":"[1]ACS_16_5YR_B25088_with_ann!E260","v":103},{"$f":"[1]ACS_16_5YR_B25088_with_ann!F260","v":1504},{"$f":"[1]ACS_16_5YR_B25088_with_ann!G260","v":83},{"$f":"[1]ACS_16_5YR_B25088_with_ann!H260","v":782},{"$f":"[1]ACS_16_5YR_B25088_with_ann!I260","v":32}]
["0600000US3301915060",3301915060,"060","Cornish",{"$f":"[1]ACS_16_5YR_B25088_with_ann!D261","v":1130},{"$f":"[1]ACS_16_5YR_B25088_with_ann!E261","v":138},{"$f":"[1]ACS_16_5YR_B25088_with_ann!F261","v":1858},{"$f":"[1]ACS_16_5YR_B25088_with_ann!G261","v":195},{"$f":"[1]ACS_16_5YR_B25088_with_ann!H261","v":742},{"$f":"[1]ACS_16_5YR_B25088_with_ann!I261","v":69}]
["0600000US3301916340",3301916340,"060","Croydon",{"$f":"[1]ACS_16_5YR_B25088_with_ann!D262","v":1020},{"$f":"[1]ACS_16_5YR_B25088_with_ann!E262","v":254},{"$f":"[1]ACS_16_5YR_B25088_with_ann!F262","v":1540},{"$f":"[1]ACS_16_5YR_B25088_with_ann!G262","v":204},{"$f":"[1]ACS_16_5YR_B25088_with_ann!H262","v":606},{"$f":"[1]ACS_16_5YR_B25088_with_ann!I262","v":89}]
["0600000US3301930500",3301930500,"060","Goshen",{"$f":"[1]ACS_16_5YR_B25088_with_ann!D263","v":1194},{"$f":"[1]ACS_16_5YR_B25088_with_ann!E263","v":153},{"$f":"[1]ACS_16_5YR_B25088_with_ann!F263","v":1417},{"$f":"[1]ACS_16_5YR_B25088_with_ann!G263","v":88},{"$f":"[1]ACS_16_5YR_B25088_with_ann!H263","v":681},{"$f":"[1]ACS_16_5YR_B25088_with_ann!I263","v":142}]
["0600000US3301931220",3301931220,"060","Grantham",{"$f":"[1]ACS_16_5YR_B25088_with_ann!D264","v":1665},{"$f":"[1]ACS_16_5YR_B25088_with_ann!E264","v":160},{"$f":"[1]ACS_16_5YR_B25088_with_ann!F264","v":2040},{"$f":"[1]ACS_16_5YR_B25088_with_ann!G264","v":298},{"$f":"[1]ACS_16_5YR_B25088_with_ann!H264","v":967},{"$f":"[1]ACS_16_5YR_B25088_with_ann!I264","v":82}]
["0600000US3301940900",3301940900,"060","Langdon",{"$f":"[1]ACS_16_5YR_B25088_with_ann!D265","v":1192},{"$f":"[1]ACS_16_5YR_B25088_with_ann!E265","v":129},{"$f":"[1]ACS_16_5YR_B25088_with_ann!F265","v":1595},{"$f":"[1]ACS_16_5YR_B25088_with_ann!G265","v":146},{"$f":"[1]ACS_16_5YR_B25088_with_ann!H265","v":668},{"$f":"[1]ACS_16_5YR_B25088_with_ann!I265","v":109}]
["0600000US3301941700",3301941700,"060","Lempster",{"$f":"[1]ACS_16_5YR_B25088_with_ann!D266","v":855},{"$f":"[1]ACS_16_5YR_B25088_with_ann!E266","v":79},{"$f":"[1]ACS_16_5YR_B25088_with_ann!F266","v":1555},{"$f":"[1]ACS_16_5YR_B25088_with_ann!G266","v":319},{"$f":"[1]ACS_16_5YR_B25088_with_ann!H266","v":562},{"$f":"[1]ACS_16_5YR_B25088_with_ann!I266","v":44}]
["0600000US3301952580",3301952580,"060","Newport",{"$f":"[1]ACS_16_5YR_B25088_with_ann!D267","v":1056},{"$f":"[1]ACS_16_5YR_B25088_with_ann!E267","v":187},{"$f":"[1]ACS_16_5YR_B25088_with_ann!F267","v":1400},{"$f":"[1]ACS_16_5YR_B25088_with_ann!G267","v":159},{"$f":"[1]ACS_16_5YR_B25088_with_ann!H267","v":633},{"$f":"[1]ACS_16_5YR_B25088_with_ann!I267","v":48}]
["0600000US3301962340",3301962340,"060","Plainfield",{"$f":"[1]ACS_16_5YR_B25088_with_ann!D268","v":1392},{"$f":"[1]ACS_16_5YR_B25088_with_ann!E268","v":176},{"$f":"[1]ACS_16_5YR_B25088_with_ann!F268","v":1843},{"$f":"[1]ACS_16_5YR_B25088_with_ann!G268","v":331},{"$f":"[1]ACS_16_5YR_B25088_with_ann!H268","v":785},{"$f":"[1]ACS_16_5YR_B25088_with_ann!I268","v":52}]
["0600000US3301972740",3301972740,"060","Springfield",{"$f":"[1]ACS_16_5YR_B25088_with_ann!D269","v":1220},{"$f":"[1]ACS_16_5YR_B25088_with_ann!E269","v":152},{"$f":"[1]ACS_16_5YR_B25088_with_ann!F269","v":1585},{"$f":"[1]ACS_16_5YR_B25088_with_ann!G269","v":139},{"$f":"[1]ACS_16_5YR_B25088_with_ann!H269","v":886},{"$f":"[1]ACS_16_5YR_B25088_with_ann!I269","v":116}]
["0600000US3301975060",3301975060,"060","Sunapee",{"$f":"[1]ACS_16_5YR_B25088_with_ann!D270","v":1496},{"$f":"[1]ACS_16_5YR_B25088_with_ann!E270","v":214},{"$f":"[1]ACS_16_5YR_B25088_with_ann!F270","v":1954},{"$f":"[1]ACS_16_5YR_B25088_with_ann!G270","v":313},{"$f":"[1]ACS_16_5YR_B25088_with_ann!H270","v":782},{"$f":"[1]ACS_16_5YR_B25088_with_ann!I270","v":244}]
["0600000US3301977940",3301977940,"060","Unity",{"$f":"[1]ACS_16_5YR_B25088_with_ann!D271","v":1192},{"$f":"[1]ACS_16_5YR_B25088_with_ann!E271","v":116},{"$f":"[1]ACS_16_5YR_B25088_with_ann!F271","v":1450},{"$f":"[1]ACS_16_5YR_B25088_with_ann!G271","v":82},{"$f":"[1]ACS_16_5YR_B25088_with_ann!H271","v":758},{"$f":"[1]ACS_16_5YR_B25088_with_ann!I271","v":40}]
["0600000US3301978980",3301978980,"060","Washington",{"$f":"[1]ACS_16_5YR_B25088_with_ann!D272","v":1270},{"$f":"[1]ACS_16_5YR_B25088_with_ann!E272","v":305},{"$f":"[1]ACS_16_5YR_B25088_with_ann!F272","v":1568},{"$f":"[1]ACS_16_5YR_B25088_with_ann!G272","v":181},{"$f":"[1]ACS_16_5YR_B25088_with_ann!H272","v":592},{"$f":"[1]ACS_16_5YR_B25088_with_ann!I272","v":68}]
[]
[null,null,null,null,{"$f":"$D$3","v":"Acworth"},null,{"$f":"$D$4","v":"Charlestown"},null,{"$f":"$D$5","v":"Claremont"},null,{"$f":"$D$6","v":"Cornish"},null,{"$f":"$D$7","v":"Croydon"},null,{"$f":"$D$8","v":"Goshen"},null,{"$f":"$D$9","v":"Grantham"},null,{"$f":"$D$10","v":"Langdon"},null,{"$f":"$D$11","v":"Lempster"},null,{"$f":"$D$12","v":"Newport"},null,{"$f":"$D$13","v":"Plainfield"},null,{"$f":"$D$14","v":"Springfield"},null,{"$f":"$D$15","v":"Sunapee"},null,{"$f":"$D$16","v":"Unity"},null,{"$f":"$D$17","v":"Washington"}]
[null,null,null,null,"Estimate","Margin Of Error","Estimate","Margin Of Error","Estimate","Margin Of Error","Estimate","Margin Of Error","Estimate","Margin Of Error","Estimate","Margin Of Error","Estimate","Margin Of Error","Estimate","Margin Of Error","Estimate","Margin Of Error","Estimate","Margin Of Error","Estimate","Margin Of Error","Estimate","Margin Of Error","Estimate","Margin Of Error",null,"Estimate","Margin Of Error"]
[null,null,null,"Estimate Median selected monthly owner costs (dollars) -- Total:",935,139,740,103,1231,103,1130,138,1020,254,1194,153,1665,160,1192,129,855,79,1056,187,1392,176,1220,152,1496,214,1192,116,1270,305]
[null,null,null,"Estimate Median selected monthly owner costs (dollars) -- Housing units with a mortgage (dollars)",1556,107,1544,131,1504,83,1858,195,1540,204,1417,88,2040,298,1595,146,1555,319,1400,159,1843,331,1585,139,1954,313,1450,82,1568,181]
[null,null,null,"Estimate Median selected monthly owner costs (dollars) -- Housing units without a mortgage (dollars)",636,67,493,64,782,32,742,69,606,89,681,142,967,82,668,109,562,44,633,48,785,52,886,116,782,244,758,40,592,68]

{"sheet":"SData_B25091OwnOccHsgCostPerInc","index":102,"n_rows":43,"n_cols":50,"rows_kept":43,"cut":false,"hidden":true,"merged":[]}
["GEO_ID","GEO_ID2","SUMLEVEL","GEO_NAME","B25091_1_EST","B25091_1_MOE","B25091_2_EST","B25091_2_MOE","B25091_3_EST","B25091_3_MOE","B25091_4_EST","B25091_4_MOE","B25091_5_EST","B25091_5_MOE","B25091_6_EST","B25091_6_MOE","B25091_7_EST","B25091_7_MOE","B25091_8_EST","B25091_8_MOE","B25091_9_EST","B25091_9_MOE","B25091_10_EST","B25091_10_MOE","B25091_11_EST","B25091_11_MOE","B25091_12_EST","B25091_12_MOE","B25091_13_EST","B25091_13_MOE","B25091_14_EST","B25091_14_MOE","B25091_15_EST","B25091_15_MOE","B25091_16_EST","B25091_16_MOE","B25091_17_EST","B25091_17_MOE","B25091_18_EST","B25091_18_MOE","B25091_19_EST","B25091_19_MOE","B25091_20_EST","B25091_20_MOE","B25091_21_EST","B25091_21_MOE","B25091_22_EST","B25091_22_MOE","B25091_23_EST","B25091_23_MOE"]
["Geography Identifier","Geography Identifier","Geographic Summary Level","Geography",{"$f":"[1]ACS_16_5YR_B25091_with_ann!D$2","v":"Estimate Total:"},{"$f":"[1]ACS_16_5YR_B25091_with_ann!E$2","v":"Margin of Error Total:"},{"$f":"[1]ACS_16_5YR_B25091_with_ann!F$2","v":"Estimate Total: Housing units with a mortgage:"},{"$f":"[1]ACS_16_5YR_B25091_with_ann!G$2","v":"Margin of Error Total: Housing units with a mortgage:"},{"$f":"[1]ACS_16_5YR_B25091_with_ann!H$2","v":"Estimate Total: Housing units with a mortgage: Less than 10.0 percent"},{"$f":"[1]ACS_16_5YR_B25091_with_ann!I$2","v":"Margin of Error Total: Housing units with a mortgage: Less than 10.0 percent"},{"$f":"[1]ACS_16_5YR_B25091_with_ann!J$2","v":"Estimate Total: Housing units with a mortgage: 10.0 to 14.9 percent"},{"$f":"[1]ACS_16_5YR_B25091_with_ann!K$2","v":"Margin of Error Total: Housing units with a mortgage: 10.0 to 14.9 percent"},{"$f":"[1]ACS_16_5YR_B25091_with_ann!L$2","v":"Estimate Total: Housing units with a mortgage: 15.0 to 19.9 percent"},{"$f":"[1]ACS_16_5YR_B25091_with_ann!M$2","v":"Margin of Error Total: Housing units with a mortgage: 15.0 to 19.9 percent"},{"$f":"[1]ACS_16_5YR_B25091_with_ann!N$2","v":"Estimate Total: Housing units with a mortgage: 20.0 to 24.9 percent"},{"$f":"[1]ACS_16_5YR_B25091_with_ann!O$2","v":"Margin of Error Total: Housing units with a mortgage: 20.0 to 24.9 percent"},{"$f":"[1]ACS_16_5YR_B25091_with_ann!P$2","v":"Estimate Total: Housing units with a mortgage: 25.0 to 29.9 percent"},{"$f":"[1]ACS_16_5YR_B25091_with_ann!Q$2","v":"Margin of Error Total: Housing units with a mortgage: 25.0 to 29.9 percent"},{"$f":"[1]ACS_16_5YR_B25091_with_ann!R$2","v":"Estimate Total: Housing units with a mortgage: 30.0 to 34.9 percent"},{"$f":"[1]ACS_16_5YR_B25091_with_ann!S$2","v":"Margin of Error Total: Housing units with a mortgage: 30.0 to 34.9 percent"},{"$f":"[1]ACS_16_5YR_B25091_with_ann!T$2","v":"Estimate Total: Housing units with a mortgage: 35.0 to 39.9 percent"},{"$f":"[1]ACS_16_5YR_B25091_with_ann!U$2","v":"Margin of Error Total: Housing units with a mortgage: 35.0 to 39.9 percent"},{"$f":"[1]ACS_16_5YR_B25091_with_ann!V$2","v":"Estimate Total: Housing units with a mortgage: 40.0 to 49.9 percent"},{"$f":"[1]ACS_16_5YR_B25091_with_ann!W$2","v":"Margin of Error Total: Housing units with a mortgage: 40.0 to 49.9 percent"},{"$f":"[1]ACS_16_5YR_B25091_with_ann!X$2","v":"Estimate Total: Housing units with a mortgage: 50.0 percent or more"},{"$f":"[1]ACS_16_5YR_B25091_with_ann!Y$2","v":"Margin of Error Total: Housing units with a mortgage: 50.0 percent or more"},{"$f":"[1]ACS_16_5YR_B25091_with_ann!Z$2","v":"Estimate Total: Housing units with a mortgage: Not computed"},{"$f":"[1]ACS_16_5YR_B25091_with_ann!AA$2","v":"Margin of Error Total: Housing units with a mortgage: Not computed"},{"$f":"[1]ACS_16_5YR_B25091_with_ann!AB$2","v":"Estimate Total: Housing units without a mortgage:"},{"$f":"[1]ACS_16_5YR_B25091_with_ann!AC$2","v":"Margin of Error Total: Housing units without a mortgage:"},{"$f":"[1]ACS_16_5YR_B25091_with_ann!AD$2","v":"Estimate Total: Housing units without a mortgage: Less than 10.0 percent"},{"$f":"[1]ACS_16_5YR_B25091_with_ann!AE$2","v":"Margin of Error Total: Housing units without a mortgage: Less than 10.0 percent"},{"$f":"[1]ACS_16_5YR_B25091_with_ann!AF$2","v":"Estimate Total: Housing units without a mortgage: 10.0 to 14.9 percent"},{"$f":"[1]ACS_16_5YR_B25091_with_ann!AG$2","v":"Margin of Error Total: Housing units without a mortgage: 10.0 to 14.9 percent"},{"$f":"[1]ACS_16_5YR_B25091_with_ann!AH$2","v":"Estimate Total: Housing units without a mortgage: 15.0 to 19.9 percent"},{"$f":"[1]ACS_16_5YR_B25091_with_ann!AI$2","v":"Margin of Error Total: Housing units without a mortgage: 15.0 to 19.9 percent"},{"$f":"[1]ACS_16_5YR_B25091_with_ann!AJ$2","v":"Estimate Total: Housing units without a mortgage: 20.0 to 24.9 percent"},{"$f":"[1]ACS_16_5YR_B25091_with_ann!AK$2","v":"Margin of Error Total: Housing units without a mortgage: 20.0 to 24.9 percent"},{"$f":"[1]ACS_16_5YR_B25091_with_ann!AL$2","v":"Estimate Total: Housing units without a mortgage: 25.0 to 29.9 percent"},{"$f":"[1]ACS_16_5YR_B25091_with_ann!AM$2","v":"Margin of Error Total: Housing units without a mortgage: 25.0 to 29.9 percent"},{"$f":"[1]ACS_16_5YR_B25091_with_ann!AN$2","v":"Estimate Total: Housing units without a mortgage: 30.0 to 34.9 percent"},{"$f":"[1]ACS_16_5YR_B25091_with_ann!AO$2","v":"Margin of Error Total: Housing units without a mortgage: 30.0 to 34.9 percent"},{"$f":"[1]ACS_16_5YR_B25091_with_ann!AP$2","v":"Estimate Total: Housing units without a mortgage: 35.0 to 39.9 percent"},{"$f":"[1]ACS_16_5YR_B25091_with_ann!AQ$2","v":"Margin of Error Total: Housing units without a mortgage: 35.0 to 39.9 percent"},{"$f":"[1]ACS_16_5YR_B25091_with_ann!AR$2","v":"Estimate Total: Housing units without a mortgage: 40.0 to 49.9 percent"},{"$f":"[1]ACS_16_5YR_B25091_with_ann!AS$2","v":"Margin of Error Total: Housing units without a mortgage: 40.0 to 49.9 percent"},{"$f":"[1]ACS_16_5YR_B25091_with_ann!AT$2","v":"Estimate Total: Housing units without a mortgage: 50.0 percent or more"},{"$f":"[1]ACS_16_5YR_B25091_with_ann!AU$2","v":"Margin of Error Total: Housing units without a mortgage: 50.0 percent or more"},{"$f":"[1]ACS_16_5YR_B25091_with_ann!AV$2","v":"Estimate Total: Housing units without a mortgage: Not computed"},{"$f":"[1]ACS_16_5YR_B25091_with_ann!AW$2","v":"Margin of Error Total: Housing units without a mortgage: Not computed"}]
["0600000US3301900259",3301900259,"060","Acworth",{"$f":"[1]ACS_16_5YR_B25091_with_ann!D258","v":340},{"$f":"[1]ACS_16_5YR_B25091_with_ann!E258","v":50},{"$f":"[1]ACS_16_5YR_B25091_with_ann!F258","v":182},{"$f":"[1]ACS_16_5YR_B25091_with_ann!G258","v":42},{"$f":"[1]ACS_16_5YR_B25091_with_ann!H258","v":13},{"$f":"[1]ACS_16_5YR_B25091_with_ann!I258","v":14},{"$f":"[1]ACS_16_5YR_B25091_with_ann!J258","v":34},{"$f":"[1]ACS_16_5YR_B25091_with_ann!K258","v":22},{"$f":"[1]ACS_16_5YR_B25091_with_ann!L258","v":28},{"$f":"[1]ACS_16_5YR_B25091_with_ann!M258","v":14},{"$f":"[1]ACS_16_5YR_B25091_with_ann!N258","v":23},{"$f":"[1]ACS_16_5YR_B25091_with_ann!O258","v":14},{"$f":"[1]ACS_16_5YR_B25091_with_ann!P258","v":33},{"$f":"[1]ACS_16_5YR_B25091_with_ann!Q258","v":20},{"$f":"[1]ACS_16_5YR_B25091_with_ann!R258","v":14},{"$f":"[1]ACS_16_5YR_B25091_with_ann!S258","v":12},{"$f":"[1]ACS_16_5YR_B25091_with_ann!T258","v":12},{"$f":"[1]ACS_16_5YR_B25091_with_ann!U258","v":10},{"$f":"[1]ACS_16_5YR_B25091_with_ann!V258","v":14},{"$f":"[1]ACS_16_5YR_B25091_with_ann!W258","v":14},{"$f":"[1]ACS_16_5YR_B25091_with_ann!X258","v":11},{"$f":"[1]ACS_16_5YR_B25091_with_ann!Y258","v":9},{"$f":"[1]ACS_16_5YR_B25091_with_ann!Z258","v":0},{"$f":"[1]ACS_16_5YR_B25091_with_ann!AA258","v":11},{"$f":"[1]ACS_16_5YR_B25091_with_ann!AB258","v":158},{"$f":"[1]ACS_16_5YR_B25091_with_ann!AC258","v":40},{"$f":"[1]ACS_16_5YR_B25091_with_ann!AD258","v":56},{"$f":"[1]ACS_16_5YR_B25091_with_ann!AE258","v":24},{"$f":"[1]ACS_16_5YR_B25091_with_ann!AF258","v":36},{"$f":"[1]ACS_16_5YR_B25091_with_ann!AG258","v":20},{"$f":"[1]ACS_16_5YR_B25091_with_ann!AH258","v":20},{"$f":"[1]ACS_16_5YR_B25091_with_ann!AI258","v":16},{"$f":"[1]ACS_16_5YR_B25091_with_ann!AJ258","v":3},{"$f":"[1]ACS_16_5YR_B25091_with_ann!AK258","v":4},{"$f":"[1]ACS_16_5YR_B25091_with_ann!AL258","v":11},{"$f":"[1]ACS_16_5YR_B25091_with_ann!AM258","v":7},{"$f":"[1]ACS_16_5YR_B25091_with_ann!AN258","v":5},{"$f":"[1]ACS_16_5YR_B25091_with_ann!AO258","v":5},{"$f":"[1]ACS_16_5YR_B25091_with_ann!AP258","v":2},{"$f":"[1]ACS_16_5YR_B25091_with_ann!AQ258","v":3},{"$f":"[1]ACS_16_5YR_B25091_with_ann!AR258","v":16},{"$f":"[1]ACS_16_5YR_B25091_with_ann!AS258","v":11},{"$f":"[1]ACS_16_5YR_B25091_with_ann!AT258","v":2},{"$f":"[1]ACS_16_5YR_B25091_with_ann!AU258","v":3},{"$f":"[1]ACS_16_5YR_B25091_with_ann!AV258","v":7},{"$f":"[1]ACS_16_5YR_B25091_with_ann!AW258","v":11}]
["0600000US3301911380",3301911380,"060","Charlestown",{"$f":"[1]ACS_16_5YR_B25091_with_ann!D259","v":1584},{"$f":"[1]ACS_16_5YR_B25091_with_ann!E259","v":209},{"$f":"[1]ACS_16_5YR_B25091_with_ann!F259","v":650},{"$f":"[1]ACS_16_5YR_B25091_with_ann!G259","v":170},{"$f":"[1]ACS_16_5YR_B25091_with_ann!H259","v":7},{"$f":"[1]ACS_16_5YR_B25091_with_ann!I259","v":13},{"$f":"[1]ACS_16_5YR_B25091_with_ann!J259","v":109},{"$f":"[1]ACS_16_5YR_B25091_with_ann!K259","v":70},{"$f":"[1]ACS_16_5YR_B25091_with_ann!L259","v":47},{"$f":"[1]ACS_16_5YR_B25091_with_ann!M259","v":40},{"$f":"[1]ACS_16_5YR_B25091_with_ann!N259","v":31},{"$f":"[1]ACS_16_5YR_B25091_with_ann!O259","v":34},{"$f":"[1]ACS_16_5YR_B25091_with_ann!P259","v":101},{"$f":"[1]ACS_16_5YR_B25091_with_ann!Q259","v":80},{"$f":"[1]ACS_16_5YR_B25091_with_ann!R259","v":93},{"$f":"[1]ACS_16_5YR_B25091_with_ann!S259","v":71},{"$f":"[1]ACS_16_5YR_B25091_with_ann!T259","v":64},{"$f":"[1]ACS_16_5YR_B25091_with_ann!U259","v":55},{"$f":"[1]ACS_16_5YR_B25091_with_ann!V259","v":118},{"$f":"[1]ACS_16_5YR_B25091_with_ann!W259","v":68},{"$f":"[1]ACS_16_5YR_B25091_with_ann!X259","v":80},{"$f":"[1]ACS_16_5YR_B25091_with_ann!Y259","v":80},{"$f":"[1]ACS_16_5YR_B25091_with_ann!Z259","v":0},{"$f":"[1]ACS_16_5YR_B25091_with_ann!AA259","v":16},{"$f":"[1]ACS_16_5YR_B25091_with_ann!AB259","v":934},{"$f":"[1]ACS_16_5YR_B25091_with_ann!AC259","v":210},{"$f":"[1]ACS_16_5YR_B25091_with_ann!AD259","v":241},{"$f":"[1]ACS_16_5YR_B25091_with_ann!AE259","v":123},{"$f":"[1]ACS_16_5YR_B25091_with_ann!AF259","v":205},{"$f":"[1]ACS_16_5YR_B25091_with_ann!AG259","v":111},{"$f":"[1]ACS_16_5YR_B25091_with_ann!AH259","v":202},{"$f":"[1]ACS_16_5YR_B25091_with_ann!AI259","v":115},{"$f":"[1]ACS_16_5YR_B25091_with_ann!AJ259","v":104},{"$f":"[1]ACS_16_5YR_B25091_with_ann!AK259","v":95},{"$f":"[1]ACS_16_5YR_B25091_with_ann!AL259","v":0},{"$f":"[1]ACS_16_5YR_B25091_with_ann!AM259","v":16},{"$f":"[1]ACS_16_5YR_B25091_with_ann!AN259","v":41},{"$f":"[1]ACS_16_5YR_B25091_with_ann!AO259","v":59},{"$f":"[1]ACS_16_5YR_B25091_with_ann!AP259","v":39},{"$f":"[1]ACS_16_5YR_B25091_with_ann!AQ259","v":41},{"$f":"[1]ACS_16_5YR_B25091_with_ann!AR259","v":18},{"$f":"[1]ACS_16_5YR_B25091_with_ann!AS259","v":29},{"$f":"[1]ACS_16_5YR_B25091_with_ann!AT259","v":45},{"$f":"[1]ACS_16_5YR_B25091_with_ann!AU259","v":54},{"$f":"[1]ACS_16_5YR_B25091_with_ann!AV259","v":39},{"$f":"[1]ACS_16_5YR_B25091_with_ann!AW259","v":62}]
["0600000US3301912900",3301912900,"060","Claremont",{"$f":"[1]ACS_16_5YR_B25091_with_ann!D260","v":2921},{"$f":"[1]ACS_16_5YR_B25091_with_ann!E260","v":257},{"$f":"[1]ACS_16_5YR_B25091_with_ann!F260","v":1767},{"$f":"[1]ACS_16_5YR_B25091_with_ann!G260","v":255},{"$f":"[1]ACS_16_5YR_B25091_with_ann!H260","v":69},{"$f":"[1]ACS_16_5YR_B25091_with_ann!I260","v":60},{"$f":"[1]ACS_16_5YR_B25091_with_ann!J260","v":256},{"$f":"[1]ACS_16_5YR_B25091_with_ann!K260","v":105},{"$f":"[1]ACS_16_5YR_B25091_with_ann!L260","v":241},{"$f":"[1]ACS_16_5YR_B25091_with_ann!M260","v":88},{"$f":"[1]ACS_16_5YR_B25091_with_ann!N260","v":429},{"$f":"[1]ACS_16_5YR_B25091_with_ann!O260","v":134},{"$f":"[1]ACS_16_5YR_B25091_with_ann!P260","v":237},{"$f":"[1]ACS_16_5YR_B25091_with_ann!Q260","v":97},{"$f":"[1]ACS_16_5YR_B25091_with_ann!R260","v":110},{"$f":"[1]ACS_16_5YR_B25091_with_ann!S260","v":55},{"$f":"[1]ACS_16_5YR_B25091_with_ann!T260","v":106},{"$f":"[1]ACS_16_5YR_B25091_with_ann!U260","v":72},{"$f":"[1]ACS_16_5YR_B25091_with_ann!V260","v":94},{"$f":"[1]ACS_16_5YR_B25091_with_ann!W260","v":52},{"$f":"[1]ACS_16_5YR_B25091_with_ann!X260","v":225},{"$f":"[1]ACS_16_5YR_B25091_with_ann!Y260","v":102},{"$f":"[1]ACS_16_5YR_B25091_with_ann!Z260","v":0},{"$f":"[1]ACS_16_5YR_B25091_with_ann!AA260","v":18},{"$f":"[1]ACS_16_5YR_B25091_with_ann!AB260","v":1154},{"$f":"[1]ACS_16_5YR_B25091_with_ann!AC260","v":177},{"$f":"[1]ACS_16_5YR_B25091_with_ann!AD260","v":136},{"$f":"[1]ACS_16_5YR_B25091_with_ann!AE260","v":63},{"$f":"[1]ACS_16_5YR_B25091_with_ann!AF260","v":189},{"$f":"[1]ACS_16_5YR_B25091_with_ann!AG260","v":67},{"$f":"[1]ACS_16_5YR_B25091_with_ann!AH260","v":185},{"$f":"[1]ACS_16_5YR_B25091_with_ann!AI260","v":88},{"$f":"[1]ACS_16_5YR_B25091_with_ann!AJ260","v":138},{"$f":"[1]ACS_16_5YR_B25091_with_ann!AK260","v":69},{"$f":"[1]ACS_16_5YR_B25091_with_ann!AL260","v":109},{"$f":"[1]ACS_16_5YR_B25091_with_ann!AM260","v":60},{"$f":"[1]ACS_16_5YR_B25091_with_ann!AN260","v":80},{"$f":"[1]ACS_16_5YR_B25091_with_ann!AO260","v":51},{"$f":"[1]ACS_16_5YR_B25091_with_ann!AP260","v":98},{"$f":"[1]ACS_16_5YR_B25091_with_ann!AQ260","v":85},{"$f":"[1]ACS_16_5YR_B25091_with_ann!AR260","v":68},{"$f":"[1]ACS_16_5YR_B25091_with_ann!AS260","v":45},{"$f":"[1]ACS_16_5YR_B25091_with_ann!AT260","v":124},{"$f":"[1]ACS_16_5YR_B25091_with_ann!AU260","v":56},{"$f":"[1]ACS_16_5YR_B25091_with_ann!AV260","v":27},{"$f":"[1]ACS_16_5YR_B25091_with_ann!AW260","v":41}]
["0600000US3301915060",3301915060,"060","Cornish",{"$f":"[1]ACS_16_5YR_B25091_with_ann!D261","v":686},{"$f":"[1]ACS_16_5YR_B25091_with_ann!E261","v":79},{"$f":"[1]ACS_16_5YR_B25091_with_ann!F261","v":337},{"$f":"[1]ACS_16_5YR_B25091_with_ann!G261","v":60},{"$f":"[1]ACS_16_5YR_B25091_with_ann!H261","v":13},{"$f":"[1]ACS_16_5YR_B25091_with_ann!I261","v":10},{"$f":"[1]ACS_16_5YR_B25091_with_ann!J261","v":62},{"$f":"[1]ACS_16_5YR_B25091_with_ann!K261","v":24},{"$f":"[1]ACS_16_5YR_B25091_with_ann!L261","v":54},{"$f":"[1]ACS_16_5YR_B25091_with_ann!M261","v":22},{"$f":"[1]ACS_16_5YR_B25091_with_ann!N261","v":49},{"$f":"[1]ACS_16_5YR_B25091_with_ann!O261","v":26},{"$f":"[1]ACS_16_5YR_B25091_with_ann!P261","v":63},{"$f":"[1]ACS_16_5YR_B25091_with_ann!Q261","v":29},{"$f":"[1]ACS_16_5YR_B25091_with_ann!R261","v":14},{"$f":"[1]ACS_16_5YR_B25091_with_ann!S261","v":11},{"$f":"[1]ACS_16_5YR_B25091_with_ann!T261","v":31},{"$f":"[1]ACS_16_5YR_B25091_with_ann!U261","v":19},{"$f":"[1]ACS_16_5YR_B25091_with_ann!V261","v":24},{"$f":"[1]ACS_16_5YR_B25091_with_ann!W261","v":19},{"$f":"[1]ACS_16_5YR_B25091_with_ann!X261","v":27},{"$f":"[1]ACS_16_5YR_B25091_with_ann!Y261","v":21},{"$f":"[1]ACS_16_5YR_B25091_with_ann!Z261","v":0},{"$f":"[1]ACS_16_5YR_B25091_with_ann!AA261","v":11},{"$f":"[1]ACS_16_5YR_B25091_with_ann!AB261","v":349},{"$f":"[1]ACS_16_5YR_B25091_with_ann!AC261","v":64},{"$f":"[1]ACS_16_5YR_B25091_with_ann!AD261","v":130},{"$f":"[1]ACS_16_5YR_B25091_with_ann!AE261","v":38},{"$f":"[1]ACS_16_5YR_B25091_with_ann!AF261","v":40},{"$f":"[1]ACS_16_5YR_B25091_with_ann!AG261","v":18},{"$f":"[1]ACS_16_5YR_B25091_with_ann!AH261","v":68},{"$f":"[1]ACS_16_5YR_B25091_with_ann!AI261","v":34},{"$f":"[1]ACS_16_5YR_B25091_with_ann!AJ261","v":29},{"$f":"[1]ACS_16_5YR_B25091_with_ann!AK261","v":16},{"$f":"[1]ACS_16_5YR_B25091_with_ann!AL261","v":13},{"$f":"[1]ACS_16_5YR_B25091_with_ann!AM261","v":16},{"$f":"[1]ACS_16_5YR_B25091_with_ann!AN261","v":27},{"$f":"[1]ACS_16_5YR_B25091_with_ann!AO261","v":19},{"$f":"[1]ACS_16_5YR_B25091_with_ann!AP261","v":10},{"$f":"[1]ACS_16_5YR_B25091_with_ann!AQ261","v":15},{"$f":"[1]ACS_16_5YR_B25091_with_ann!AR261","v":6},{"$f":"[1]ACS_16_5YR_B25091_with_ann!AS261","v":7},{"$f":"[1]ACS_16_5YR_B25091_with_ann!AT261","v":26},{"$f":"[1]ACS_16_5YR_B25091_with_ann!AU261","v":21},{"$f":"[1]ACS_16_5YR_B25091_with_ann!AV261","v":0},{"$f":"[1]ACS_16_5YR_B25091_with_ann!AW261","v":11}]
["0600000US3301916340",3301916340,"060","Croydon",{"$f":"[1]ACS_16_5YR_B25091_with_ann!D262","v":257},{"$f":"[1]ACS_16_5YR_B25091_with_ann!E262","v":53},{"$f":"[1]ACS_16_5YR_B25091_with_ann!F262","v":146},{"$f":"[1]ACS_16_5YR_B25091_with_ann!G262","v":39},{"$f":"[1]ACS_16_5YR_B25091_with_ann!H262","v":9},{"$f":"[1]ACS_16_5YR_B25091_with_ann!I262","v":8},{"$f":"[1]ACS_16_5YR_B25091_with_ann!J262","v":36},{"$f":"[1]ACS_16_5YR_B25091_with_ann!K262","v":24},{"$f":"[1]ACS_16_5YR_B25091_with_ann!L262","v":28},{"$f":"[1]ACS_16_5YR_B25091_with_ann!M262","v":14},{"$f":"[1]ACS_16_5YR_B25091_with_ann!N262","v":13},{"$f":"[1]ACS_16_5YR_B25091_with_ann!O262","v":10},{"$f":"[1]ACS_16_5YR_B25091_with_ann!P262","v":19},{"$f":"[1]ACS_16_5YR_B25091_with_ann!Q262","v":15},{"$f":"[1]ACS_16_5YR_B25091_with_ann!R262","v":5},{"$f":"[1]ACS_16_5YR_B25091_with_ann!S262","v":7},{"$f":"[1]ACS_16_5YR_B25091_with_ann!T262","v":6},{"$f":"[1]ACS_16_5YR_B25091_with_ann!U262","v":7},{"$f":"[1]ACS_16_5YR_B25091_with_ann!V262","v":5},{"$f":"[1]ACS_16_5YR_B25091_with_ann!W262","v":7},{"$f":"[1]ACS_16_5YR_B25091_with_ann!X262","v":25},{"$f":"[1]ACS_16_5YR_B25091_with_ann!Y262","v":16},{"$f":"[1]ACS_16_5YR_B25091_with_ann!Z262","v":0},{"$f":"[1]ACS_16_5YR_B25091_with_ann!AA262","v":11},{"$f":"[1]ACS_16_5YR_B25091_with_ann!AB262","v":111},{"$f":"[1]ACS_16_5YR_B25091_with_ann!AC262","v":32},{"$f":"[1]ACS_16_5YR_B25091_with_ann!AD262","v":41},{"$f":"[1]ACS_16_5YR_B25091_with_ann!AE262","v":22},{"$f":"[1]ACS_16_5YR_B25091_with_ann!AF262","v":14},{"$f":"[1]ACS_16_5YR_B25091_with_ann!AG262","v":9},{"$f":"[1]ACS_16_5YR_B25091_with_ann!AH262","v":27},{"$f":"[1]ACS_16_5YR_B25091_with_ann!AI262","v":18},{"$f":"[1]ACS_16_5YR_B25091_with_ann!AJ262","v":10},{"$f":"[1]ACS_16_5YR_B25091_with_ann!AK262","v":9},{"$f":"[1]ACS_16_5YR_B25091_with_ann!AL262","v":2},{"$f":"[1]ACS_16_5YR_B25091_with_ann!AM262","v":3},{"$f":"[1]ACS_16_5YR_B25091_with_ann!AN262","v":6},{"$f":"[1]ACS_16_5YR_B25091_with_ann!AO262","v":6},{"$f":"[1]ACS_16_5YR_B25091_with_ann!AP262","v":2},{"$f":"[1]ACS_16_5YR_B25091_with_ann!AQ262","v":4},{"$f":"[1]ACS_16_5YR_B25091_with_ann!AR262","v":0},{"$f":"[1]ACS_16_5YR_B25091_with_ann!AS262","v":11},{"$f":"[1]ACS_16_5YR_B25091_with_ann!AT262","v":9},{"$f":"[1]ACS_16_5YR_B25091_with_ann!AU262","v":12},{"$f":"[1]ACS_16_5YR_B25091_with_ann!AV262","v":0},{"$f":"[1]ACS_16_5YR_B25091_with_ann!AW262","v":11}]
["0600000US3301930500",3301930500,"060","Goshen",{"$f":"[1]ACS_16_5YR_B25091_with_ann!D263","v":223},{"$f":"[1]ACS_16_5YR_B25091_with_ann!E263","v":35},{"$f":"[1]ACS_16_5YR_B25091_with_ann!F263","v":142},{"$f":"[1]ACS_16_5YR_B25091_with_ann!G263","v":35},{"$f":"[1]ACS_16_5YR_B25091_with_ann!H263","v":0},{"$f":"[1]ACS_16_5YR_B25091_with_ann!I263","v":11},{"$f":"[1]ACS_16_5YR_B25091_with_ann!J263","v":29},{"$f":"[1]ACS_16_5YR_B25091_with_ann!K263","v":19},{"$f":"[1]ACS_16_5YR_B25091_with_ann!L263","v":23},{"$f":"[1]ACS_16_5YR_B25091_with_ann!M263","v":15},{"$f":"[1]ACS_16_5YR_B25091_with_ann!N263","v":33},{"$f":"[1]ACS_16_5YR_B25091_with_ann!O263","v":16},{"$f":"[1]ACS_16_5YR_B25091_with_ann!P263","v":7},{"$f":"[1]ACS_16_5YR_B25091_with_ann!Q263","v":8},{"$f":"[1]ACS_16_5YR_B25091_with_ann!R263","v":14},{"$f":"[1]ACS_16_5YR_B25091_with_ann!S263","v":12},{"$f":"[1]ACS_16_5YR_B25091_with_ann!T263","v":24},{"$f":"[1]ACS_16_5YR_B25091_with_ann!U263","v":19},{"$f":"[1]ACS_16_5YR_B25091_with_ann!V263","v":5},{"$f":"[1]ACS_16_5YR_B25091_with_ann!W263","v":6},{"$f":"[1]ACS_16_5YR_B25091_with_ann!X263","v":7},{"$f":"[1]ACS_16_5YR_B25091_with_ann!Y263","v":5},{"$f":"[1]ACS_16_5YR_B25091_with_ann!Z263","v":0},{"$f":"[1]ACS_16_5YR_B25091_with_ann!AA263","v":11},{"$f":"[1]ACS_16_5YR_B25091_with_ann!AB263","v":81},{"$f":"[1]ACS_16_5YR_B25091_with_ann!AC263","v":25},{"$f":"[1]ACS_16_5YR_B25091_with_ann!AD263","v":21},{"$f":"[1]ACS_16_5YR_B25091_with_ann!AE263","v":15},{"$f":"[1]ACS_16_5YR_B25091_with_ann!AF263","v":11},{"$f":"[1]ACS_16_5YR_B25091_with_ann!AG263","v":11},{"$f":"[1]ACS_16_5YR_B25091_with_ann!AH263","v":15},{"$f":"[1]ACS_16_5YR_B25091_with_ann!AI263","v":11},{"$f":"[1]ACS_16_5YR_B25091_with_ann!AJ263","v":7},{"$f":"[1]ACS_16_5YR_B25091_with_ann!AK263","v":6},{"$f":"[1]ACS_16_5YR_B25091_with_ann!AL263","v":10},{"$f":"[1]ACS_16_5YR_B25091_with_ann!AM263","v":12},{"$f":"[1]ACS_16_5YR_B25091_with_ann!AN263","v":9},{"$f":"[1]ACS_16_5YR_B25091_with_ann!AO263","v":9},{"$f":"[1]ACS_16_5YR_B25091_with_ann!AP263","v":0},{"$f":"[1]ACS_16_5YR_B25091_with_ann!AQ263","v":11},{"$f":"[1]ACS_16_5YR_B25091_with_ann!AR263","v":0},{"$f":"[1]ACS_16_5YR_B25091_with_ann!AS263","v":11},{"$f":"[1]ACS_16_5YR_B25091_with_ann!AT263","v":6},{"$f":"[1]ACS_16_5YR_B25091_with_ann!AU263","v":4},{"$f":"[1]ACS_16_5YR_B25091_with_ann!AV263","v":2},{"$f":"[1]ACS_16_5YR_B25091_with_ann!AW263","v":3}]
["0600000US3301931220",3301931220,"060","Grantham",{"$f":"[1]ACS_16_5YR_B25091_with_ann!D264","v":1082},{"$f":"[1]ACS_16_5YR_B25091_with_ann!E264","v":164},{"$f":"[1]ACS_16_5YR_B25091_with_ann!F264","v":743},{"$f":"[1]ACS_16_5YR_B25091_with_ann!G264","v":141},{"$f":"[1]ACS_16_5YR_B25091_with_ann!H264","v":35},{"$f":"[1]ACS_16_5YR_B25091_with_ann!I264","v":40},{"$f":"[1]ACS_16_5YR_B25091_with_ann!J264","v":197},{"$f":"[1]ACS_16_5YR_B25091_with_ann!K264","v":98},{"$f":"[1]ACS_16_5YR_B25091_with_ann!L264","v":95},{"$f":"[1]ACS_16_5YR_B25091_with_ann!M264","v":71},{"$f":"[1]ACS_16_5YR_B25091_with_ann!N264","v":84},{"$f":"[1]ACS_16_5YR_B25091_with_ann!O264","v":73},{"$f":"[1]ACS_16_5YR_B25091_with_ann!P264","v":115},{"$f":"[1]ACS_16_5YR_B25091_with_ann!Q264","v":83},{"$f":"[1]ACS_16_5YR_B25091_with_ann!R264","v":57},{"$f":"[1]ACS_16_5YR_B25091_with_ann!S264","v":49},{"$f":"[1]ACS_16_5YR_B25091_with_ann!T264","v":47},{"$f":"[1]ACS_16_5YR_B25091_with_ann!U264","v":52},{"$f":"[1]ACS_16_5YR_B25091_with_ann!V264","v":49},{"$f":"[1]ACS_16_5YR_B25091_with_ann!W264","v":80},{"$f":"[1]ACS_16_5YR_B25091_with_ann!X264","v":64},{"$f":"[1]ACS_16_5YR_B25091_with_ann!Y264","v":53},{"$f":"[1]ACS_16_5YR_B25091_with_ann!Z264","v":0},{"$f":"[1]ACS_16_5YR_B25091_with_ann!AA264","v":11},{"$f":"[1]ACS_16_5YR_B25091_with_ann!AB264","v":339},{"$f":"[1]ACS_16_5YR_B25091_with_ann!AC264","v":95},{"$f":"[1]ACS_16_5YR_B25091_with_ann!AD264","v":82},{"$f":"[1]ACS_16_5YR_B25091_with_ann!AE264","v":46},{"$f":"[1]ACS_16_5YR_B25091_with_ann!AF264","v":105},{"$f":"[1]ACS_16_5YR_B25091_with_ann!AG264","v":58},{"$f":"[1]ACS_16_5YR_B25091_with_ann!AH264","v":34},{"$f":"[1]ACS_16_5YR_B25091_with_ann!AI264","v":38},{"$f":"[1]ACS_16_5YR_B25091_with_ann!AJ264","v":0},{"$f":"[1]ACS_16_5YR_B25091_with_ann!AK264","v":11},{"$f":"[1]ACS_16_5YR_B25091_with_ann!AL264","v":0},{"$f":"[1]ACS_16_5YR_B25091_with_ann!AM264","v":11},{"$f":"[1]ACS_16_5YR_B25091_with_ann!AN264","v":13},{"$f":"[1]ACS_16_5YR_B25091_with_ann!AO264","v":19},{"$f":"[1]ACS_16_5YR_B25091_with_ann!AP264","v":0},{"$f":"[1]ACS_16_5YR_B25091_with_ann!AQ264","v":11},{"$f":"[1]ACS_16_5YR_B25091_with_ann!AR264","v":75},{"$f":"[1]ACS_16_5YR_B25091_with_ann!AS264","v":60},{"$f":"[1]ACS_16_5YR_B25091_with_ann!AT264","v":30},{"$f":"[1]ACS_16_5YR_B25091_with_ann!AU264","v":44},{"$f":"[1]ACS_16_5YR_B25091_with_ann!AV264","v":0},{"$f":"[1]ACS_16_5YR_B25091_with_ann!AW264","v":11}]
["0600000US3301940900",3301940900,"060","Langdon",{"$f":"[1]ACS_16_5YR_B25091_with_ann!D265","v":218},{"$f":"[1]ACS_16_5YR_B25091_with_ann!E265","v":44},{"$f":"[1]ACS_16_5YR_B25091_with_ann!F265","v":135},{"$f":"[1]ACS_16_5YR_B25091_with_ann!G265","v":34},{"$f":"[1]ACS_16_5YR_B25091_with_ann!H265","v":9},{"$f":"[1]ACS_16_5YR_B25091_with_ann!I265","v":15},{"$f":"[1]ACS_16_5YR_B25091_with_ann!J265","v":25},{"$f":"[1]ACS_16_5YR_B25091_with_ann!K265","v":16},{"$f":"[1]ACS_16_5YR_B25091_with_ann!L265","v":16},{"$f":"[1]ACS_16_5YR_B25091_with_ann!M265","v":12},{"$f":"[1]ACS_16_5YR_B25091_with_ann!N265","v":35},{"$f":"[1]ACS_16_5YR_B25091_with_ann!O265","v":16},{"$f":"[1]ACS_16_5YR_B25091_with_ann!P265","v":13},{"$f":"[1]ACS_16_5YR_B25091_with_ann!Q265","v":8},{"$f":"[1]ACS_16_5YR_B25091_with_ann!R265","v":0},{"$f":"[1]ACS_16_5YR_B25091_with_ann!S265","v":11},{"$f":"[1]ACS_16_5YR_B25091_with_ann!T265","v":14},{"$f":"[1]ACS_16_5YR_B25091_with_ann!U265","v":8},{"$f":"[1]ACS_16_5YR_B25091_with_ann!V265","v":0},{"$f":"[1]ACS_16_5YR_B25091_with_ann!W265","v":11},{"$f":"[1]ACS_16_5YR_B25091_with_ann!X265","v":23},{"$f":"[1]ACS_16_5YR_B25091_with_ann!Y265","v":16},{"$f":"[1]ACS_16_5YR_B25091_with_ann!Z265","v":0},{"$f":"[1]ACS_16_5YR_B25091_with_ann!AA265","v":11},{"$f":"[1]ACS_16_5YR_B25091_with_ann!AB265","v":83},{"$f":"[1]ACS_16_5YR_B25091_with_ann!AC265","v":28},{"$f":"[1]ACS_16_5YR_B25091_with_ann!AD265","v":44},{"$f":"[1]ACS_16_5YR_B25091_with_ann!AE265","v":24},{"$f":"[1]ACS_16_5YR_B25091_with_ann!AF265","v":10},{"$f":"[1]ACS_16_5YR_B25091_with_ann!AG265","v":7},{"$f":"[1]ACS_16_5YR_B25091_with_ann!AH265","v":18},{"$f":"[1]ACS_16_5YR_B25091_with_ann!AI265","v":13},{"$f":"[1]ACS_16_5YR_B25091_with_ann!AJ265","v":3},{"$f":"[1]ACS_16_5YR_B25091_with_ann!AK265","v":4},{"$f":"[1]ACS_16_5YR_B25091_with_ann!AL265","v":8},{"$f":"[1]ACS_16_5YR_B25091_with_ann!AM265","v":6},{"$f":"[1]ACS_16_5YR_B25091_with_ann!AN265","v":0},{"$f":"[1]ACS_16_5YR_B25091_with_ann!AO265","v":11},{"$f":"[1]ACS_16_5YR_B25091_with_ann!AP265","v":0},{"$f":"[1]ACS_16_5YR_B25091_with_ann!AQ265","v":11},{"$f":"[1]ACS_16_5YR_B25091_with_ann!AR265","v":0},{"$f":"[1]ACS_16_5YR_B25091_with_ann!AS265","v":11},{"$f":"[1]ACS_16_5YR_B25091_with_ann!AT265","v":0},{"$f":"[1]ACS_16_5YR_B25091_with_ann!AU265","v":11},{"$f":"[1]ACS_16_5YR_B25091_with_ann!AV265","v":0},{"$f":"[1]ACS_16_5YR_B25091_with_ann!AW265","v":11}]
["0600000US3301941700",3301941700,"060","Lempster",{"$f":"[1]ACS_16_5YR_B25091_with_ann!D266","v":367},{"$f":"[1]ACS_16_5YR_B25091_with_ann!E266","v":61},{"$f":"[1]ACS_16_5YR_B25091_with_ann!F266","v":169},{"$f":"[1]ACS_16_5YR_B25091_with_ann!G266","v":44},{"$f":"[1]ACS_16_5YR_B25091_with_ann!H266","v":32},{"$f":"[1]ACS_16_5YR_B25091_with_ann!I266","v":26},{"$f":"[1]ACS_16_5YR_B25091_with_ann!J266","v":23},{"$f":"[1]ACS_16_5YR_B25091_with_ann!K266","v":19},{"$f":"[1]ACS_16_5YR_B25091_with_ann!L266","v":15},{"$f":"[1]ACS_16_5YR_B25091_with_ann!M266","v":10},{"$f":"[1]ACS_16_5YR_B25091_with_ann!N266","v":33},{"$f":"[1]ACS_16_5YR_B25091_with_ann!O266","v":21},{"$f":"[1]ACS_16_5YR_B25091_with_ann!P266","v":14},{"$f":"[1]ACS_16_5YR_B25091_with_ann!Q266","v":11},{"$f":"[1]ACS_16_5YR_B25091_with_ann!R266","v":26},{"$f":"[1]ACS_16_5YR_B25091_with_ann!S266","v":20},{"$f":"[1]ACS_16_5YR_B25091_with_ann!T266","v":9},{"$f":"[1]ACS_16_5YR_B25091_with_ann!U266","v":8},{"$f":"[1]ACS_16_5YR_B25091_with_ann!V266","v":6},{"$f":"[1]ACS_16_5YR_B25091_with_ann!W266","v":7},{"$f":"[1]ACS_16_5YR_B25091_with_ann!X266","v":11},{"$f":"[1]ACS_16_5YR_B25091_with_ann!Y266","v":8},{"$f":"[1]ACS_16_5YR_B25091_with_ann!Z266","v":0},{"$f":"[1]ACS_16_5YR_B25091_with_ann!AA266","v":11},{"$f":"[1]ACS_16_5YR_B25091_with_ann!AB266","v":198},{"$f":"[1]ACS_16_5YR_B25091_with_ann!AC266","v":57},{"$f":"[1]ACS_16_5YR_B25091_with_ann!AD266","v":62},{"$f":"[1]ACS_16_5YR_B25091_with_ann!AE266","v":35},{"$f":"[1]ACS_16_5YR_B25091_with_ann!AF266","v":30},{"$f":"[1]ACS_16_5YR_B25091_with_ann!AG266","v":21},{"$f":"[1]ACS_16_5YR_B25091_with_ann!AH266","v":16},{"$f":"[1]ACS_16_5YR_B25091_with_ann!AI266","v":13},{"$f":"[1]ACS_16_5YR_B25091_with_ann!AJ266","v":25},{"$f":"[1]ACS_16_5YR_B25091_with_ann!AK266","v":20},{"$f":"[1]ACS_16_5YR_B25091_with_ann!AL266","v":15},{"$f":"[1]ACS_16_5YR_B25091_with_ann!AM266","v":16},{"$f":"[1]ACS_16_5YR_B25091_with_ann!AN266","v":6},{"$f":"[1]ACS_16_5YR_B25091_with_ann!AO266","v":6},{"$f":"[1]ACS_16_5YR_B25091_with_ann!AP266","v":0},{"$f":"[1]ACS_16_5YR_B25091_with_ann!AQ266","v":11},{"$f":"[1]ACS_16_5YR_B25091_with_ann!AR266","v":12},{"$f":"[1]ACS_16_5YR_B25091_with_ann!AS266","v":13},{"$f":"[1]ACS_16_5YR_B25091_with_ann!AT266","v":21},{"$f":"[1]ACS_16_5YR_B25091_with_ann!AU266","v":16},{"$f":"[1]ACS_16_5YR_B25091_with_ann!AV266","v":11},{"$f":"[1]ACS_16_5YR_B25091_with_ann!AW266","v":15}]
["0600000US3301952580",3301952580,"060","Newport",{"$f":"[1]ACS_16_5YR_B25091_with_ann!D267","v":1743},{"$f":"[1]ACS_16_5YR_B25091_with_ann!E267","v":186},{"$f":"[1]ACS_16_5YR_B25091_with_ann!F267","v":1062},{"$f":"[1]ACS_16_5YR_B25091_with_ann!G267","v":202},{"$f":"[1]ACS_16_5YR_B25091_with_ann!H267","v":110},{"$f":"[1]ACS_16_5YR_B25091_with_ann!I267","v":84},{"$f":"[1]ACS_16_5YR_B25091_with_ann!J267","v":153},{"$f":"[1]ACS_16_5YR_B25091_with_ann!K267","v":96},{"$f":"[1]ACS_16_5YR_B25091_with_ann!L267","v":263},{"$f":"[1]ACS_16_5YR_B25091_with_ann!M267","v":112},{"$f":"[1]ACS_16_5YR_B25091_with_ann!N267","v":61},{"$f":"[1]ACS_16_5YR_B25091_with_ann!O267","v":47},{"$f":"[1]ACS_16_5YR_B25091_with_ann!P267","v":54},{"$f":"[1]ACS_16_5YR_B25091_with_ann!Q267","v":44},{"$f":"[1]ACS_16_5YR_B25091_with_ann!R267","v":107},{"$f":"[1]ACS_16_5YR_B25091_with_ann!S267","v":82},{"$f":"[1]ACS_16_5YR_B25091_with_ann!T267","v":112},{"$f":"[1]ACS_16_5YR_B25091_with_ann!U267","v":96},{"$f":"[1]ACS_16_5YR_B25091_with_ann!V267","v":100},{"$f":"[1]ACS_16_5YR_B25091_with_ann!W267","v":85},{"$f":"[1]ACS_16_5YR_B25091_with_ann!X267","v":54},{"$f":"[1]ACS_16_5YR_B25091_with_ann!Y267","v":44},{"$f":"[1]ACS_16_5YR_B25091_with_ann!Z267","v":48},{"$f":"[1]ACS_16_5YR_B25091_with_ann!AA267","v":77},{"$f":"[1]ACS_16_5YR_B25091_with_ann!AB267","v":681},{"$f":"[1]ACS_16_5YR_B25091_with_ann!AC267","v":186},{"$f":"[1]ACS_16_5YR_B25091_with_ann!AD267","v":144},{"$f":"[1]ACS_16_5YR_B25091_with_ann!AE267","v":85},{"$f":"[1]ACS_16_5YR_B25091_with_ann!AF267","v":207},{"$f":"[1]ACS_16_5YR_B25091_with_ann!AG267","v":118},{"$f":"[1]ACS_16_5YR_B25091_with_ann!AH267","v":130},{"$f":"[1]ACS_16_5YR_B25091_with_ann!AI267","v":79},{"$f":"[1]ACS_16_5YR_B25091_with_ann!AJ267","v":38},{"$f":"[1]ACS_16_5YR_B25091_with_ann!AK267","v":35},{"$f":"[1]ACS_16_5YR_B25091_with_ann!AL267","v":48},{"$f":"[1]ACS_16_5YR_B25091_with_ann!AM267","v":41},{"$f":"[1]ACS_16_5YR_B25091_with_ann!AN267","v":39},{"$f":"[1]ACS_16_5YR_B25091_with_ann!AO267","v":38},{"$f":"[1]ACS_16_5YR_B25091_with_ann!AP267","v":14},{"$f":"[1]ACS_16_5YR_B25091_with_ann!AQ267","v":24},{"$f":"[1]ACS_16_5YR_B25091_with_ann!AR267","v":12},{"$f":"[1]ACS_16_5YR_B25091_with_ann!AS267","v":21},{"$f":"[1]ACS_16_5YR_B25091_with_ann!AT267","v":49},{"$f":"[1]ACS_16_5YR_B25091_with_ann!AU267","v":40},{"$f":"[1]ACS_16_5YR_B25091_with_ann!AV267","v":0},{"$f":"[1]ACS_16_5YR_B25091_with_ann!AW267","v":16}]
["0600000US3301962340",3301962340,"060","Plainfield",{"$f":"[1]ACS_16_5YR_B25091_with_ann!D268","v":803},{"$f":"[1]ACS_16_5YR_B25091_with_ann!E268","v":78},{"$f":"[1]ACS_16_5YR_B25091_with_ann!F268","v":436},{"$f":"[1]ACS_16_5YR_B25091_with_ann!G268","v":79},{"$f":"[1]ACS_16_5YR_B25091_with_ann!H268","v":9},{"$f":"[1]ACS_16_5YR_B25091_with_ann!I268","v":9},{"$f":"[1]ACS_16_5YR_B25091_with_ann!J268","v":111},{"$f":"[1]ACS_16_5YR_B25091_with_ann!K268","v":49},{"$f":"[1]ACS_16_5YR_B25091_with_ann!L268","v":72},{"$f":"[1]ACS_16_5YR_B25091_with_ann!M268","v":35},{"$f":"[1]ACS_16_5YR_B25091_with_ann!N268","v":73},{"$f":"[1]ACS_16_5YR_B25091_with_ann!O268","v":28},{"$f":"[1]ACS_16_5YR_B25091_with_ann!P268","v":43},{"$f":"[1]ACS_16_5YR_B25091_with_ann!Q268","v":20},{"$f":"[1]ACS_16_5YR_B25091_with_ann!R268","v":0},{"$f":"[1]ACS_16_5YR_B25091_with_ann!S268","v":11},{"$f":"[1]ACS_16_5YR_B25091_with_ann!T268","v":64},{"$f":"[1]ACS_16_5YR_B25091_with_ann!U268","v":37},{"$f":"[1]ACS_16_5YR_B25091_with_ann!V268","v":16},{"$f":"[1]ACS_16_5YR_B25091_with_ann!W268","v":14},{"$f":"[1]ACS_16_5YR_B25091_with_ann!X268","v":48},{"$f":"[1]ACS_16_5YR_B25091_with_ann!Y268","v":39},{"$f":"[1]ACS_16_5YR_B25091_with_ann!Z268","v":0},{"$f":"[1]ACS_16_5YR_B25091_with_ann!AA268","v":11},{"$f":"[1]ACS_16_5YR_B25091_with_ann!AB268","v":367},{"$f":"[1]ACS_16_5YR_B25091_with_ann!AC268","v":71},{"$f":"[1]ACS_16_5YR_B25091_with_ann!AD268","v":94},{"$f":"[1]ACS_16_5YR_B25091_with_ann!AE268","v":39},{"$f":"[1]ACS_16_5YR_B25091_with_ann!AF268","v":112},{"$f":"[1]ACS_16_5YR_B25091_with_ann!AG268","v":44},{"$f":"[1]ACS_16_5YR_B25091_with_ann!AH268","v":32},{"$f":"[1]ACS_16_5YR_B25091_with_ann!AI268","v":17},{"$f":"[1]ACS_16_5YR_B25091_with_ann!AJ268","v":20},{"$f":"[1]ACS_16_5YR_B25091_with_ann!AK268","v":24},{"$f":"[1]ACS_16_5YR_B25091_with_ann!AL268","v":19},{"$f":"[1]ACS_16_5YR_B25091_with_ann!AM268","v":15},{"$f":"[1]ACS_16_5YR_B25091_with_ann!AN268","v":40},{"$f":"[1]ACS_16_5YR_B25091_with_ann!AO268","v":33},{"$f":"[1]ACS_16_5YR_B25091_with_ann!AP268","v":5},{"$f":"[1]ACS_16_5YR_B25091_with_ann!AQ268","v":8},{"$f":"[1]ACS_16_5YR_B25091_with_ann!AR268","v":0},{"$f":"[1]ACS_16_5YR_B25091_with_ann!AS268","v":11},{"$f":"[1]ACS_16_5YR_B25091_with_ann!AT268","v":45},{"$f":"[1]ACS_16_5YR_B25091_with_ann!AU268","v":30},{"$f":"[1]ACS_16_5YR_B25091_with_ann!AV268","v":0},{"$f":"[1]ACS_16_5YR_B25091_with_ann!AW268","v":11}]
["0600000US3301972740",3301972740,"060","Springfield",{"$f":"[1]ACS_16_5YR_B25091_with_ann!D269","v":398},{"$f":"[1]ACS_16_5YR_B25091_with_ann!E269","v":71},{"$f":"[1]ACS_16_5YR_B25091_with_ann!F269","v":218},{"$f":"[1]ACS_16_5YR_B25091_with_ann!G269","v":54},{"$f":"[1]ACS_16_5YR_B25091_with_ann!H269","v":0},{"$f":"[1]ACS_16_5YR_B25091_with_ann!I269","v":11},{"$f":"[1]ACS_16_5YR_B25091_with_ann!J269","v":27},{"$f":"[1]ACS_16_5YR_B25091_with_ann!K269","v":21},{"$f":"[1]ACS_16_5YR_B25091_with_ann!L269","v":54},{"$f":"[1]ACS_16_5YR_B25091_with_ann!M269","v":29},{"$f":"[1]ACS_16_5YR_B25091_with_ann!N269","v":34},{"$f":"[1]ACS_16_5YR_B25091_with_ann!O269","v":25},{"$f":"[1]ACS_16_5YR_B25091_with_ann!P269","v":18},{"$f":"[1]ACS_16_5YR_B25091_with_ann!Q269","v":19},{"$f":"[1]ACS_16_5YR_B25091_with_ann!R269","v":0},{"$f":"[1]ACS_16_5YR_B25091_with_ann!S269","v":11},{"$f":"[1]ACS_16_5YR_B25091_with_ann!T269","v":11},{"$f":"[1]ACS_16_5YR_B25091_with_ann!U269","v":10},{"$f":"[1]ACS_16_5YR_B25091_with_ann!V269","v":28},{"$f":"[1]ACS_16_5YR_B25091_with_ann!W269","v":23},{"$f":"[1]ACS_16_5YR_B25091_with_ann!X269","v":46},{"$f":"[1]ACS_16_5YR_B25091_with_ann!Y269","v":26},{"$f":"[1]ACS_16_5YR_B25091_with_ann!Z269","v":0},{"$f":"[1]ACS_16_5YR_B25091_with_ann!AA269","v":11},{"$f":"[1]ACS_16_5YR_B25091_with_ann!AB269","v":180},{"$f":"[1]ACS_16_5YR_B25091_with_ann!AC269","v":56},{"$f":"[1]ACS_16_5YR_B25091_with_ann!AD269","v":62},{"$f":"[1]ACS_16_5YR_B25091_with_ann!AE269","v":30},{"$f":"[1]ACS_16_5YR_B25091_with_ann!AF269","v":36},{"$f":"[1]ACS_16_5YR_B25091_with_ann!AG269","v":26},{"$f":"[1]ACS_16_5YR_B25091_with_ann!AH269","v":16},{"$f":"[1]ACS_16_5YR_B25091_with_ann!AI269","v":17},{"$f":"[1]ACS_16_5YR_B25091_with_ann!AJ269","v":8},{"$f":"[1]ACS_16_5YR_B25091_with_ann!AK269","v":14},{"$f":"[1]ACS_16_5YR_B25091_with_ann!AL269","v":14},{"$f":"[1]ACS_16_5YR_B25091_with_ann!AM269","v":16},{"$f":"[1]ACS_16_5YR_B25091_with_ann!AN269","v":15},{"$f":"[1]ACS_16_5YR_B25091_with_ann!AO269","v":19},{"$f":"[1]ACS_16_5YR_B25091_with_ann!AP269","v":10},{"$f":"[1]ACS_16_5YR_B25091_with_ann!AQ269","v":16},{"$f":"[1]ACS_16_5YR_B25091_with_ann!AR269","v":3},{"$f":"[1]ACS_16_5YR_B25091_with_ann!AS269","v":5},{"$f":"[1]ACS_16_5YR_B25091_with_ann!AT269","v":16},{"$f":"[1]ACS_16_5YR_B25091_with_ann!AU269","v":16},{"$f":"[1]ACS_16_5YR_B25091_with_ann!AV269","v":0},{"$f":"[1]ACS_16_5YR_B25091_with_ann!AW269","v":11}]
["0600000US3301975060",3301975060,"060","Sunapee",{"$f":"[1]ACS_16_5YR_B25091_with_ann!D270","v":1044},{"$f":"[1]ACS_16_5YR_B25091_with_ann!E270","v":138},{"$f":"[1]ACS_16_5YR_B25091_with_ann!F270","v":643},{"$f":"[1]ACS_16_5YR_B25091_with_ann!G270","v":112},{"$f":"[1]ACS_16_5YR_B25091_with_ann!H270","v":45},{"$f":"[1]ACS_16_5YR_B25091_with_ann!I270","v":33},{"$f":"[1]ACS_16_5YR_B25091_with_ann!J270","v":32},{"$f":"[1]ACS_16_5YR_B25091_with_ann!K270","v":30},{"$f":"[1]ACS_16_5YR_B25091_with_ann!L270","v":127},{"$f":"[1]ACS_16_5YR_B25091_with_ann!M270","v":61},{"$f":"[1]ACS_16_5YR_B25091_with_ann!N270","v":64},{"$f":"[1]ACS_16_5YR_B25091_with_ann!O270","v":34},{"$f":"[1]ACS_16_5YR_B25091_with_ann!P270","v":115},{"$f":"[1]ACS_16_5YR_B25091_with_ann!Q270","v":68},{"$f":"[1]ACS_16_5YR_B25091_with_ann!R270","v":49},{"$f":"[1]ACS_16_5YR_B25091_with_ann!S270","v":33},{"$f":"[1]ACS_16_5YR_B25091_with_ann!T270","v":84},{"$f":"[1]ACS_16_5YR_B25091_with_ann!U270","v":63},{"$f":"[1]ACS_16_5YR_B25091_with_ann!V270","v":35},{"$f":"[1]ACS_16_5YR_B25091_with_ann!W270","v":28},{"$f":"[1]ACS_16_5YR_B25091_with_ann!X270","v":55},{"$f":"[1]ACS_16_5YR_B25091_with_ann!Y270","v":46},{"$f":"[1]ACS_16_5YR_B25091_with_ann!Z270","v":37},{"$f":"[1]ACS_16_5YR_B25091_with_ann!AA270","v":58},{"$f":"[1]ACS_16_5YR_B25091_with_ann!AB270","v":401},{"$f":"[1]ACS_16_5YR_B25091_with_ann!AC270","v":116},{"$f":"[1]ACS_16_5YR_B25091_with_ann!AD270","v":123},{"$f":"[1]ACS_16_5YR_B25091_with_ann!AE270","v":61},{"$f":"[1]ACS_16_5YR_B25091_with_ann!AF270","v":86},{"$f":"[1]ACS_16_5YR_B25091_with_ann!AG270","v":55},{"$f":"[1]ACS_16_5YR_B25091_with_ann!AH270","v":53},{"$f":"[1]ACS_16_5YR_B25091_with_ann!AI270","v":36},{"$f":"[1]ACS_16_5YR_B25091_with_ann!AJ270","v":10},{"$f":"[1]ACS_16_5YR_B25091_with_ann!AK270","v":10},{"$f":"[1]ACS_16_5YR_B25091_with_ann!AL270","v":48},{"$f":"[1]ACS_16_5YR_B25091_with_ann!AM270","v":47},{"$f":"[1]ACS_16_5YR_B25091_with_ann!AN270","v":23},{"$f":"[1]ACS_16_5YR_B25091_with_ann!AO270","v":36},{"$f":"[1]ACS_16_5YR_B25091_with_ann!AP270","v":0},{"$f":"[1]ACS_16_5YR_B25091_with_ann!AQ270","v":11},{"$f":"[1]ACS_16_5YR_B25091_with_ann!AR270","v":19},{"$f":"[1]ACS_16_5YR_B25091_with_ann!AS270","v":25},{"$f":"[1]ACS_16_5YR_B25091_with_ann!AT270","v":28},{"$f":"[1]ACS_16_5YR_B25091_with_ann!AU270","v":23},{"$f":"[1]ACS_16_5YR_B25091_with_ann!AV270","v":11},{"$f":"[1]ACS_16_5YR_B25091_with_ann!AW270","v":17}]
["0600000US3301977940",3301977940,"060","Unity",{"$f":"[1]ACS_16_5YR_B25091_with_ann!D271","v":536},{"$f":"[1]ACS_16_5YR_B25091_with_ann!E271","v":56},{"$f":"[1]ACS_16_5YR_B25091_with_ann!F271","v":316},{"$f":"[1]ACS_16_5YR_B25091_with_ann!G271","v":62},{"$f":"[1]ACS_16_5YR_B25091_with_ann!H271","v":11},{"$f":"[1]ACS_16_5YR_B25091_with_ann!I271","v":9},{"$f":"[1]ACS_16_5YR_B25091_with_ann!J271","v":58},{"$f":"[1]ACS_16_5YR_B25091_with_ann!K271","v":27},{"$f":"[1]ACS_16_5YR_B25091_with_ann!L271","v":56},{"$f":"[1]ACS_16_5YR_B25091_with_ann!M271","v":29},{"$f":"[1]ACS_16_5YR_B25091_with_ann!N271","v":78},{"$f":"[1]ACS_16_5YR_B25091_with_ann!O271","v":36},{"$f":"[1]ACS_16_5YR_B25091_with_ann!P271","v":21},{"$f":"[1]ACS_16_5YR_B25091_with_ann!Q271","v":12},{"$f":"[1]ACS_16_5YR_B25091_with_ann!R271","v":18},{"$f":"[1]ACS_16_5YR_B25091_with_ann!S271","v":17},{"$f":"[1]ACS_16_5YR_B25091_with_ann!T271","v":8},{"$f":"[1]ACS_16_5YR_B25091_with_ann!U271","v":9},{"$f":"[1]ACS_16_5YR_B25091_with_ann!V271","v":16},{"$f":"[1]ACS_16_5YR_B25091_with_ann!W271","v":13},{"$f":"[1]ACS_16_5YR_B25091_with_ann!X271","v":50},{"$f":"[1]ACS_16_5YR_B25091_with_ann!Y271","v":25},{"$f":"[1]ACS_16_5YR_B25091_with_ann!Z271","v":0},{"$f":"[1]ACS_16_5YR_B25091_with_ann!AA271","v":11},{"$f":"[1]ACS_16_5YR_B25091_with_ann!AB271","v":220},{"$f":"[1]ACS_16_5YR_B25091_with_ann!AC271","v":44},{"$f":"[1]ACS_16_5YR_B25091_with_ann!AD271","v":24},{"$f":"[1]ACS_16_5YR_B25091_with_ann!AE271","v":12},{"$f":"[1]ACS_16_5YR_B25091_with_ann!AF271","v":62},{"$f":"[1]ACS_16_5YR_B25091_with_ann!AG271","v":26},{"$f":"[1]ACS_16_5YR_B25091_with_ann!AH271","v":27},{"$f":"[1]ACS_16_5YR_B25091_with_ann!AI271","v":13},{"$f":"[1]ACS_16_5YR_B25091_with_ann!AJ271","v":35},{"$f":"[1]ACS_16_5YR_B25091_with_ann!AK271","v":16},{"$f":"[1]ACS_16_5YR_B25091_with_ann!AL271","v":5},{"$f":"[1]ACS_16_5YR_B25091_with_ann!AM271","v":7},{"$f":"[1]ACS_16_5YR_B25091_with_ann!AN271","v":7},{"$f":"[1]ACS_16_5YR_B25091_with_ann!AO271","v":6},{"$f":"[1]ACS_16_5YR_B25091_with_ann!AP271","v":18},{"$f":"[1]ACS_16_5YR_B25091_with_ann!AQ271","v":18},{"$f":"[1]ACS_16_5YR_B25091_with_ann!AR271","v":16},{"$f":"[1]ACS_16_5YR_B25091_with_ann!AS271","v":10},{"$f":"[1]ACS_16_5YR_B25091_with_ann!AT271","v":13},{"$f":"[1]ACS_16_5YR_B25091_with_ann!AU271","v":9},{"$f":"[1]ACS_16_5YR_B25091_with_ann!AV271","v":13},{"$f":"[1]ACS_16_5YR_B25091_with_ann!AW271","v":18}]
["0600000US3301978980",3301978980,"060","Washington",{"$f":"[1]ACS_16_5YR_B25091_with_ann!D272","v":499},{"$f":"[1]ACS_16_5YR_B25091_with_ann!E272","v":81},{"$f":"[1]ACS_16_5YR_B25091_with_ann!F272","v":292},{"$f":"[1]ACS_16_5YR_B25091_with_ann!G272","v":76},{"$f":"[1]ACS_16_5YR_B25091_with_ann!H272","v":10},{"$f":"[1]ACS_16_5YR_B25091_with_ann!I272","v":9},{"$f":"[1]ACS_16_5YR_B25091_with_ann!J272","v":80},{"$f":"[1]ACS_16_5YR_B25091_with_ann!K272","v":61},{"$f":"[1]ACS_16_5YR_B25091_with_ann!L272","v":53},{"$f":"[1]ACS_16_5YR_B25091_with_ann!M272","v":25},{"$f":"[1]ACS_16_5YR_B25091_with_ann!N272","v":52},{"$f":"[1]ACS_16_5YR_B25091_with_ann!O272","v":26},{"$f":"[1]ACS_16_5YR_B25091_with_ann!P272","v":6},{"$f":"[1]ACS_16_5YR_B25091_with_ann!Q272","v":6},{"$f":"[1]ACS_16_5YR_B25091_with_ann!R272","v":29},{"$f":"[1]ACS_16_5YR_B25091_with_ann!S272","v":27},{"$f":"[1]ACS_16_5YR_B25091_with_ann!T272","v":3},{"$f":"[1]ACS_16_5YR_B25091_with_ann!U272","v":4},{"$f":"[1]ACS_16_5YR_B25091_with_ann!V272","v":18},{"$f":"[1]ACS_16_5YR_B25091_with_ann!W272","v":10},{"$f":"[1]ACS_16_5YR_B25091_with_ann!X272","v":38},{"$f":"[1]ACS_16_5YR_B25091_with_ann!Y272","v":19},{"$f":"[1]ACS_16_5YR_B25091_with_ann!Z272","v":3},{"$f":"[1]ACS_16_5YR_B25091_with_ann!AA272","v":4},{"$f":"[1]ACS_16_5YR_B25091_with_ann!AB272","v":207},{"$f":"[1]ACS_16_5YR_B25091_with_ann!AC272","v":56},{"$f":"[1]ACS_16_5YR_B25091_with_ann!AD272","v":91},{"$f":"[1]ACS_16_5YR_B25091_with_ann!AE272","v":36},{"$f":"[1]ACS_16_5YR_B25091_with_ann!AF272","v":20},{"$f":"[1]ACS_16_5YR_B25091_with_ann!AG272","v":18},{"$f":"[1]ACS_16_5YR_B25091_with_ann!AH272","v":33},{"$f":"[1]ACS_16_5YR_B25091_with_ann!AI272","v":24},{"$f":"[1]ACS_16_5YR_B25091_with_ann!AJ272","v":6},{"$f":"[1]ACS_16_5YR_B25091_with_ann!AK272","v":6},{"$f":"[1]ACS_16_5YR_B25091_with_ann!AL272","v":20},{"$f":"[1]ACS_16_5YR_B25091_with_ann!AM272","v":17},{"$f":"[1]ACS_16_5YR_B25091_with_ann!AN272","v":0},{"$f":"[1]ACS_16_5YR_B25091_with_ann!AO272","v":11},{"$f":"[1]ACS_16_5YR_B25091_with_ann!AP272","v":3},{"$f":"[1]ACS_16_5YR_B25091_with_ann!AQ272","v":4},{"$f":"[1]ACS_16_5YR_B25091_with_ann!AR272","v":15},{"$f":"[1]ACS_16_5YR_B25091_with_ann!AS272","v":16},{"$f":"[1]ACS_16_5YR_B25091_with_ann!AT272","v":16},{"$f":"[1]ACS_16_5YR_B25091_with_ann!AU272","v":16},{"$f":"[1]ACS_16_5YR_B25091_with_ann!AV272","v":3},{"$f":"[1]ACS_16_5YR_B25091_with_ann!AW272","v":4}]
[]
[null,null,null,null,{"$f":"$D$3","v":"Acworth"},null,{"$f":"$D$4","v":"Charlestown"},null,{"$f":"$D$5","v":"Claremont"},null,{"$f":"$D$6","v":"Cornish"},null,{"$f":"$D$7","v":"Croydon"},null,{"$f":"$D$8","v":"Goshen"},null,{"$f":"$D$9","v":"Grantham"},null,{"$f":"$D$10","v":"Langdon"},null,{"$f":"$D$11","v":"Lempster"},null,{"$f":"$D$12","v":"Newport"},null,{"$f":"$D$13","v":"Plainfield"},null,{"$f":"$D$14","v":"Springfield"},null,{"$f":"$D$15","v":"Sunapee"},null,{"$f":"$D$16","v":"Unity"},null,{"$f":"$D$17","v":"Washington"}]
[null,null,null,null,"Estimate","Margin Of Error","Estimate","Margin Of Error","Estimate","Margin Of Error","Estimate","Margin Of Error","Estimate","Margin Of Error","Estimate","Margin Of Error","Estimate","Margin Of Error","Estimate","Margin Of Error","Estimate","Margin Of Error","Estimate","Margin Of Error","Estimate","Margin Of Error","Estimate","Margin Of Error","Estimate","Margin Of Error",null,"Estimate","Margin Of Error"]
[null,null,null,"Estimate Total:",340,50,1584,209,2921,257,686,79,257,53,223,35,1082,164,218,44,367,61,1743,186,803,78,398,71,1044,138,536,56,499,81]
[null,null,null,"Estimate Total: Housing units with a mortgage:",182,42,650,170,1767,255,337,60,146,39,142,35,743,141,135,34,169,44,1062,202,436,79,218,54,643,112,316,62,292,76]
[null,null,null,"Estimate Total: Housing units with a mortgage: Less than 10.0 percent",13,14,7,13,69,60,13,10,9,8,0,11,35,40,9,15,32,26,110,84,9,9,0,11,45,33,11,9,10,9]
[null,null,null,"Estimate Total: Housing units with a mortgage: 10.0 to 14.9 percent",34,22,109,70,256,105,62,24,36,24,29,19,197,98,25,16,23,19,153,96,111,49,27,21,32,30,58,27,80,61]
[null,null,null,"Estimate Total: Housing units with a mortgage: 15.0 to 19.9 percent",28,14,47,40,241,88,54,22,28,14,23,15,95,71,16,12,15,10,263,112,72,35,54,29,127,61,56,29,53,25]
[null,null,null,"Estimate Total: Housing units with a mortgage: 20.0 to 24.9 percent",23,14,31,34,429,134,49,26,13,10,33,16,84,73,35,16,33,21,61,47,73,28,34,25,64,34,78,36,52,26]
[null,null,null,"Estimate Total: Housing units with a mortgage: 25.0 to 29.9 percent",33,20,101,80,237,97,63,29,19,15,7,8,115,83,13,8,14,11,54,44,43,20,18,19,115,68,21,12,6,6]
[null,null,null,"Estimate Total: Housing units with a mortgage: 30.0 to 34.9 percent",14,12,93,71,110,55,14,11,5,7,14,12,57,49,0,11,26,20,107,82,0,11,0,11,49,33,18,17,29,27]
[null,null,null,"Estimate Total: Housing units with a mortgage: 35.0 to 39.9 percent",12,10,64,55,106,72,31,19,6,7,24,19,47,52,14,8,9,8,112,96,64,37,11,10,84,63,8,9,3,4]
[null,null,null,"Estimate Total: Housing units with a mortgage: 40.0 to 49.9 percent",14,14,118,68,94,52,24,19,5,7,5,6,49,80,0,11,6,7,100,85,16,14,28,23,35,28,16,13,18,10]
[null,null,null,"Estimate Total: Housing units with a mortgage: 50.0 percent or more",11,9,80,80,225,102,27,21,25,16,7,5,64,53,23,16,11,8,54,44,48,39,46,26,55,46,50,25,38,19]
[null,null,null,"Estimate Total: Housing units with a mortgage: Not computed",0,11,0,16,0,18,0,11,0,11,0,11,0,11,0,11,0,11,48,77,0,11,0,11,37,58,0,11,3,4]
[null,null,null,"Estimate Total: Housing units without a mortgage:",158,40,934,210,1154,177,349,64,111,32,81,25,339,95,83,28,198,57,681,186,367,71,180,56,401,116,220,44,207,56]
[null,null,null,"Estimate Total: Housing units without a mortgage: Less than 10.0 percent",56,24,241,123,136,63,130,38,41,22,21,15,82,46,44,24,62,35,144,85,94,39,62,30,123,61,24,12,91,36]
[null,null,null,"Estimate Total: Housing units without a mortgage: 10.0 to 14.9 percent",36,20,205,111,189,67,40,18,14,9,11,11,105,58,10,7,30,21,207,118,112,44,36,26,86,55,62,26,20,18]
[null,null,null,"Estimate Total: Housing units without a mortgage: 15.0 to 19.9 percent",20,16,202,115,185,88,68,34,27,18,15,11,34,38,18,13,16,13,130,79,32,17,16,17,53,36,27,13,33,24]
[null,null,null,"Estimate Total: Housing units without a mortgage: 20.0 to 24.9 percent",3,4,104,95,138,69,29,16,10,9,7,6,0,11,3,4,25,20,38,35,20,24,8,14,10,10,35,16,6,6]
[null,null,null,"Estimate Total: Housing units without a mortgage: 25.0 to 29.9 percent",11,7,0,16,109,60,13,16,2,3,10,12,0,11,8,6,15,16,48,41,19,15,14,16,48,47,5,7,20,17]
[null,null,null,"Estimate Total: Housing units without a mortgage: 30.0 to 34.9 percent",5,5,41,59,80,51,27,19,6,6,9,9,13,19,0,11,6,6,39,38,40,33,15,19,23,36,7,6,0,11]
[null,null,null,"Estimate Total: Housing units without a mortgage: 35.0 to 39.9 percent",2,3,39,41,98,85,10,15,2,4,0,11,0,11,0,11,0,11,14,24,5,8,10,16,0,11,18,18,3,4]
[null,null,null,"Estimate Total: Housing units without a mortgage: 40.0 to 49.9 percent",16,11,18,29,68,45,6,7,0,11,0,11,75,60,0,11,12,13,12,21,0,11,3,5,19,25,16,10,15,16]
[null,null,null,"Estimate Total: Housing units without a mortgage: 50.0 percent or more",2,3,45,54,124,56,26,21,9,12,6,4,30,44,0,11,21,16,49,40,45,30,16,16,28,23,13,9,16,16]
[null,null,null,"Estimate Total: Housing units without a mortgage: Not computed",7,11,39,62,27,41,0,11,0,11,2,3,0,11,0,11,11,15,0,16,0,11,0,11,11,17,13,18,3,4]

{"sheet":"ACS_Table_B25106","index":103,"n_rows":255,"n_cols":32,"rows_kept":255,"cut":false,"hidden":true,"merged":[]}
[null,"B25106. TENURE BY HOUSING COSTS AS A PERCENTAGE OF HOUSEHOLD INCOME IN THE PAST 12 MONTHS"]
[null,"Universe:  OCCUPIED HOUSING UNITS"]
[null,"Data Set: 2015-2019 American Community Survey 5-Year Estimates"]
[]
[null,null,"Acworth",null,"Charlestown",null,"Claremont",null,"Cornish",null,"Croydon",null,"Goshen",null,"Grantham",null,"Langdon",null,"Lempster",null,"Newport",null,"Plainfield",null,"Springfield",null,"Sunapee",null,"Unity",null,"Washington"]
[null,null,"Estimate","Margin of Error","Estimate","Margin of Error","Estimate","Margin of Error","Estimate","Margin of Error","Estimate","Margin of Error","Estimate","Margin of Error","Estimate","Margin of Error","Estimate","Margin of Error","Estimate","Margin of Error","Estimate","Margin of Error","Estimate","Margin of Error","Estimate","Margin of Error","Estimate","Margin of Error","Estimate","Margin of Error","Estimate","Margin of Error"]
[null,"Total:",370,51,2086,184,5231,284,741,81,293,56,277,39,1222,142,257,47,393,59,2600,168,915,86,442,75,1393,139,571,56,537,81]
[null,"Owner occupied housing units:",340,50,1584,209,2921,257,686,79,257,53,223,35,1082,164,218,44,367,61,1743,186,803,78,398,71,1044,138,536,56,499,81]
[null,"Less than $20,000:",15,8,191,130,239,96,52,32,24,19,17,12,45,48,16,14,28,19,66,48,38,29,27,21,26,21,47,26,31,23]
[null,"Less than 20 percent",3,4,0,16,0,18,11,17,0,11,6,9,0,11,0,11,0,11,14,21,0,11,0,11,0,11,0,11,0,11]
[null,"20 to 29 percent",2,3,54,85,9,15,0,11,0,11,0,11,0,11,0,11,0,11,0,16,0,11,0,11,0,11,9,13,9,15]
[null,"30 percent or more",10,7,137,95,230,98,41,28,24,19,11,7,45,48,16,14,28,19,52,45,38,29,27,21,26,21,38,23,22,18]
[null,"$20,000 to $34,999:",36,17,297,154,467,134,64,35,26,12,20,15,91,76,20,11,46,23,206,89,109,47,62,36,97,63,73,27,47,22]
[null,"Less than 20 percent",2,3,122,93,9,14,8,13,10,9,0,11,0,11,5,5,0,11,0,16,0,11,0,11,15,17,7,7,0,11]
[null,"20 to 29 percent",8,7,50,47,106,60,13,16,6,6,11,11,0,11,6,7,19,18,50,42,14,13,12,15,42,46,3,4,3,5]
[null,"30 percent or more",26,16,125,104,352,117,43,29,10,8,9,9,91,76,9,7,27,15,156,87,95,47,50,32,40,40,63,26,44,23]
[null,"$35,000 to $49,999:",40,19,270,140,334,111,86,34,30,18,26,16,108,106,15,13,58,30,181,74,54,31,19,16,57,34,37,13,70,31]
[null,"Less than 20 percent",12,11,179,110,60,46,30,24,9,7,7,7,17,25,9,11,26,19,63,48,5,7,0,11,21,23,2,4,39,29]
[null,"20 to 29 percent",12,12,39,50,133,73,30,21,11,13,2,3,42,66,3,4,23,20,11,18,20,24,0,11,15,23,18,10,12,9]
[null,"30 percent or more",16,14,52,55,141,70,26,14,10,8,17,13,49,80,3,4,9,8,107,60,29,19,19,16,21,22,17,9,19,11]
[null,"$50,000 to $74,999:",89,29,323,117,532,116,98,34,36,17,62,26,173,89,40,19,43,25,468,146,101,40,61,31,175,73,104,31,70,26]
[null,"Less than 20 percent",52,22,136,92,227,71,51,25,21,16,6,5,29,34,21,15,23,20,340,141,59,36,21,17,21,21,38,17,35,18]
[null,"20 to 29 percent",24,18,33,39,170,83,14,9,10,6,30,16,33,47,15,11,7,7,40,38,20,16,18,20,85,49,41,22,22,18]
[null,"30 percent or more",13,9,154,93,135,82,33,24,5,6,26,19,111,71,4,4,13,16,88,74,22,17,22,22,69,48,25,19,13,10]
[null,"$75,000 or more:",153,38,464,140,1322,194,386,62,141,41,96,24,665,129,127,36,181,49,774,165,501,74,229,55,641,104,262,45,275,79]
[null,"Less than 20 percent",118,32,374,129,780,161,267,47,115,38,80,23,502,112,87,31,129,48,590,151,366,70,174,51,409,115,191,41,213,73]
[null,"20 to 29 percent",24,13,60,56,495,143,97,36,17,11,14,8,124,80,35,13,38,22,100,54,101,30,44,28,95,64,68,34,38,20]
[null,"30 percent or more",11,12,30,33,47,40,22,13,9,9,2,3,39,39,5,5,14,12,84,91,34,32,11,10,137,78,3,4,24,26]
[null,"Zero or negative income",7,11,39,62,27,41,0,11,0,11,2,3,0,11,0,11,11,15,48,77,0,11,0,11,48,60,13,18,6,6]
[null,"Renter occupied housing units:",30,16,502,134,2310,288,55,26,36,22,54,23,140,79,39,21,26,16,857,184,112,49,44,33,349,122,35,20,38,28]
[null,"Less than $20,000:",0,11,87,70,493,117,16,10,3,4,9,10,0,11,6,10,0,11,312,149,0,11,0,11,44,56,0,11,10,16]
[null,"Less than 20 percent",0,11,0,16,26,24,0,11,0,11,0,11,0,11,0,11,0,11,15,23,0,11,0,11,0,11,0,11,0,11]
[null,"20 to 29 percent",0,11,30,35,91,71,0,11,0,11,0,11,0,11,0,11,0,11,11,18,0,11,0,11,0,11,0,11,0,11]
[null,"30 percent or more",0,11,57,62,376,120,3,4,9,10,0,11,6,10,0,11,286,154,0,11,0,11,44,56,0,11,10,16,10,16]
[null,"$20,000 to $34,999:",0,11,77,62,619,197,5,6,0,11,0,11,2,3,0,11,139,84,21,19,0,11,83,72,11,14,0,11,0,11]
[null,"Less than 20 percent",0,11,8,15,38,40,0,11,0,11,0,11,0,11,0,11,25,30,0,11,0,11,0,11,0,11,0,11,0,11]
[null,"20 to 29 percent",0,11,0,16,54,40,0,11,0,11,0,11,0,11,0,11,0,16,0,11,0,11,0,11,0,11,0,11,0,11]
[null,"30 percent or more",0,11,69,62,527,194,5,6,0,11,0,11,2,3,0,11,114,78,21,19,0,11,83,72,11,14,0,11,0,11]
[null,"$35,000 to $49,999:",6,5,41,42,435,157,0,11,8,12,0,11,10,10,12,8,50,40,18,15,5,9,66,67,8,8,0,11,0,11]
[null,"Less than 20 percent",0,11,0,16,25,29,0,11,0,11,0,11,0,11,4,5,13,21,0,11,0,11,0,11,0,11,0,11,0,11]
[null,"20 to 29 percent",2,3,41,42,240,96,0,11,0,11,0,11,6,10,5,5,13,20,6,8,0,11,0,11,4,6,0,11,0,11]
[null,"30 percent or more",4,4,0,16,170,109,0,11,8,12,0,11,4,4,3,5,24,27,12,13,5,9,66,67,4,5,0,11,0,11]
[null,"$50,000 to $74,999:",8,10,14,23,311,115,15,15,13,15,40,35,13,14,12,14,158,116,41,38,0,11,84,59,8,9,13,15,13,15]
[null,"Less than 20 percent",0,11,14,23,65,42,6,9,6,9,23,37,7,11,3,4,12,20,0,11,0,11,27,32,0,11,0,11,0,11]
[null,"20 to 29 percent",6,10,0,16,222,95,9,12,7,13,0,11,6,9,9,13,97,96,5,7,0,11,34,34,8,9,13,15,13,15]
[null,"30 percent or more",2,3,0,16,24,45,0,11,0,11,17,24,0,11,0,11,49,66,36,38,0,11,23,33,0,11,0,11,0,11]
[null,"$75,000 or more:",8,8,191,119,348,143,6,10,8,7,100,75,5,8,0,11,126,67,28,30,24,29,36,29,0,11,6,14,6,14]
[null,"Less than 20 percent",3,5,191,119,340,144,6,10,8,7,100,75,5,8,0,11,114,63,28,30,24,29,15,23,0,11,6,14,6,14]
[null,"20 to 29 percent",5,6,0,16,8,12,0,11,0,11,0,11,0,11,0,11,12,21,0,11,0,11,21,18,0,11,0,11,0,11]
[null,"30 percent or more",0,11,0,16,0,18,0,11,0,11,0,11,0,11,0,11,0,16,0,11,0,11,0,11,0,11,0,11,0,11]
[null,"Zero or negative income",6,10,61,66,96,86,5,10,6,9,0,11,0,11,0,11,0,16,0,11,0,11,31,48,0,11,0,11,0,11]
[null,"No cash rent",2,3,31,47,8,12,2,4,10,7,0,11,3,4,2,3,72,76,4,8,15,15,5,8,8,9,9,7,9,7]
[]
[]
[]
[]
[]
[]
[null,"Calculated B25106. TENURE BY HOUSING COSTS AS A PERCENTAGE OF HOUSEHOLD INCOME IN THE PAST 12 MONTHS"]
[null,"Universe:  OCCUPIED HOUSING UNITS"]
[null,"Data Set: 2015-2019 American Community Survey 5-Year Estimates"]
[]
[null,null,"Acworth",null,"Charlestown",null,"Claremont",null,"Cornish",null,"Croydon",null,"Goshen",null,"Grantham",null,"Langdon",null,"Lempster",null,"Newport",null,"Plainfield",null,"Springfield",null,"Sunapee",null,"Unity",null,"Washington"]
[null,null,"Estimate","Margin of Error","Estimate","Margin of Error","Estimate","Margin of Error","Estimate","Margin of Error","Estimate","Margin of Error","Estimate","Margin of Error","Estimate","Margin of Error","Estimate","Margin of Error","Estimate","Margin of Error","Estimate","Margin of Error","Estimate","Margin of Error","Estimate","Margin of Error","Estimate","Margin of Error","Estimate","Margin of Error","Estimate","Margin of Error"]
[null,{"$f":"B7","v":"Total:"},370,51,2086,184,5231,284,741,81,293,56,277,39,1222,142,257,47,393,59,2600,168,915,86,{"$f":"Y7","v":442},75,1393,139,571,56,537,81]
[null,"Owner occupied housing units:",340,50,1584,209,2921,257,686,79,257,53,223,35,1082,164,218,44,367,61,1743,186,803,78,{"$f":"Y8","v":398},71,1044,138,536,56,499,81]
[null,"Less than 20 percent",{"$f":"C10+C14+C18+C22+C26","v":187},{"$f":"SQRT((D10^2)+(D14^2)+(D18^2)+(D22^2)+(D26^2))","v":40.669398815325508},{"$f":"SQRT((E10^2)+(E14^2)+(E18^2)+(E22^2)+(E26^2))","v":453.09711983194069},214.73239159474753,814.62261201123067,183.29757226979302,273.81563140186137,62.193247221864851,117.67327649045896,44.170125650715555,80.752708932889675,28.372521918222215,503.12423912985946,120.69382751408624,90.088845036441668,38.118237105091836,133.5889216963742,57.506521369319501,684.00657891572939,213.73581824298893,370.75868162458448,80.541914553852024,{"$f":"SQRT((Y10^2)+(Y14^2)+(Y18^2)+(Y22^2)+(Y26^2))","v":175.26266002774236},57.035076926396798,410.35106920781868,120.85114811204733,194.87944991712183,46.432747064975601,219.35131638538209,82.073138114732771]
[null,"20 to 29 percent",{"$f":"C11+C15+C19+C23+C27","v":70},{"$f":"SQRT((D11^2)+(D15^2)+(D19^2)+(D23^2)+(D27^2))","v":26.362852652928137},107.82393055347222,128.80605575826007,550.39167871616667,191.02879364116814,103.31505214633539,46.850827100489916,23.366642891095847,21.977260975835911,34.942810419312295,23.895606290697042,135.01481400201979,114.92171248288984,38.665229858362409,21.817424229271428,48.815980989835694,37.12142238654117,119.25183436744275,81.877957961834881,105.8158778255891,44.966654311834233,{"$f":"SQRT((Y11^2)+(Y15^2)+(Y19^2)+(Y23^2)+(Y27^2))","v":49.03060268852505},40.63249930782009,135.05184189784308,96.244480361213448,81.969506525292687,43.874821936960608,46.497311750250681,32.480763537823428]
[null,"30 percent or more",{"$f":"C12+C16+C20+C24+C28","v":76},{"$f":"SQRT((D12^2)+(D16^2)+(D20^2)+(D24^2)+(D28^2))","v":26.944387170614959},248.42302630794916,180.56577748842665,465.96029873799336,191.09421759959145,76.019734279988114,50.655700567655757,29.698484809834994,24.617067250182341,34.219877264537345,25.865034312755125,162.93863875704866,145.058608844839,19.672315572906001,17.378147196982766,44.260591952661457,32.403703492039298,230.84410323852762,164.16759729008646,113.79806676741042,68.731361109758325,{"$f":"SQRT((Y12^2)+(Y16^2)+(Y20^2)+(Y24^2)+(Y28^2))","v":64.768819658845104},48.010415536631214,162.00925899466364,104.46530524533014,79.598994968529595,40.779897008207364,59.38013135721409,41.83300132670378]
[null,"Zero or negative income",{"$f":"C29","v":7},{"$f":"D29","v":11},{"$f":"E29","v":39},62,27,41,0,11,0,11,2,3,0,11,0,11,11,15,48,77,0,11,{"$f":"Y29","v":0},11,48,60,13,18,6,6]
[null,"Renter occupied housing units:",{"$f":"C30","v":30},{"$f":"D30","v":16},502,134,2310,288,55,26,36,22,54,23,140,79,39,21,26,16,857,184,112,49,{"$f":"Y30","v":44},33,349,122,35,20,38,28]
[null,"Less than 20 percent",{"$f":"C32+C36+C40+C44+C48","v":3},{"$f":"SQRT((D32^2)+(D36^2)+(D40^2)+(D44^2)+(D48^2))","v":22.561028345356956},{"$f":"SQRT((E32^2)+(E36^2)+(E40^2)+(E44^2)+(E48^2))","v":191.67941986556616},124.20547491958638,350.09998571836587,159.7404144229005,8.4852813742385695,23.323807579381203,10,22.203603311174518,102.61091559868278,85.772956110886142,8.6023252670426267,23.409399821439251,5,20.09975124224178,118.04236527620073,76.360984802450005,31.76476034853718,42.332020977033451,24,36.400549446402593,{"$f":"SQRT((Y32^2)+(Y36^2)+(Y40^2)+(Y44^2)+(Y48^2))","v":30.886890422961002},43.77213725647858,0,24.596747752497688,6,26.076809620810597,6,26.076809620810597]
[null,"20 to 29 percent",{"$f":"C33+C37+C41+C45+C49","v":13},{"$f":"SQRT((D33^2)+(D37^2)+(D41^2)+(D45^2)+(D49^2))","v":19.672315572906001},50.803543183522152,61.294371682887821,343.72227160892555,158.19608086169518,9,25.059928172283335,7,25.553864678361276,0,24.596747752497688,8.4852813742385695,23.323807579381203,10.295630140987001,23.600847442411894,98.600202839547947,102.14695296483396,13.490737563232042,26.057628441590765,0,24.596747752497688,{"$f":"SQRT((Y33^2)+(Y37^2)+(Y41^2)+(Y45^2)+(Y49^2))","v":39.962482405376171},42.930175867331364,8.9442719099991592,21.908902300206645,13,26.627053911388696,13,26.627053911388696]
[null,"30 percent or more",{"$f":"C34+C38+C42+C46+C50","v":6},{"$f":"SQRT((D34^2)+(D38^2)+(D42^2)+(D46^2)+(D50^2))","v":19.697715603592208},89.498603341057787,91.956511460581197,669.76189799062172,257.42183279589943,5.8309518948453007,20.371548787463361,12.041594578792296,24.637369989509839,17,32.557641192199412,7.4833147735478827,19.157244060668017,3,22.561028345356956,312.68034795938166,187.45932892230249,43.370496884402883,47.074409183759279,5,23.769728648009426,{"$f":"SQRT((Y34^2)+(Y38^2)+(Y42^2)+(Y46^2)+(Y50^2))","v":117.08970919769166},118.40185809352825,11.704699910719626,24.166091947189145,10,27.202941017470888,10,27.202941017470888]
[null,"Zero or negative income",{"$f":"C51","v":6},{"$f":"D51","v":10},{"$f":"E51","v":61},66,96,86,5,10,6,9,0,11,0,11,0,11,0,16,0,11,0,11,{"$f":"Y51","v":31},48,0,11,0,11,0,11]
[null,"No cash rent",{"$f":"C52","v":2},{"$f":"D52","v":3},31,47,8,12,2,4,10,7,0,11,3,4,2,3,72,76,4,8,15,15,{"$f":"Y52","v":5},8,8,9,9,7,9,7]
[]
[]
[]
[]
[]
[]
[]
[]
[]
[]
[]
[]
[]
[]
[]
[]
[]
[]
[]
[]
[]
[]
[]
[null,"B25106. TENURE BY HOUSING COSTS AS A PERCENTAGE OF HOUSEHOLD INCOME IN THE PAST 12 MONTHS"]
[null,"Universe:  OCCUPIED HOUSING UNITS"]
[null,"Data Set: 2010-2014 American Community Survey 5-Year Estimates"]
[]
[null,null,"Acworth",null,"Charlestown",null,"Claremont",null,"Cornish",null,"Croydon",null,"Goshen",null,"Grantham",null,"Langdon",null,"Lempster",null,"Newport",null,"Plainfield",null,"Springfield",null,"Sunapee",null,"Unity",null,"Washington"]
[null,null,"Estimate","Margin of Error","Estimate","Margin of Error","Estimate","Margin of Error","Estimate","Margin of Error","Estimate","Margin of Error","Estimate","Margin of Error","Estimate","Margin of Error","Estimate","Margin of Error","Estimate","Margin of Error","Estimate","Margin of Error","Estimate","Margin of Error","Estimate","Margin of Error","Estimate","Margin of Error","Estimate","Margin of Error","Estimate","Margin of Error"]
[null,"Total:",347,44,2185,131,5418,242,644,62,257,42,320,42,1084,82,284,42,425,55,2806,190,933,81,482,69,1496,87,529,62,449,64]
[null,"Owner occupied housing units:",274,40,1721,147,3486,249,550,56,213,37,254,35,991,88,255,38,375,51,1858,197,815,78,410,65,1068,125,513,58,418,62]
[null,"Less than $20,000:",40,22,224,91,419,147,49,24,9,10,21,15,10,13,22,13,16,17,193,102,16,13,17,12,57,51,43,19,32,17]
[null,"Less than 20 percent",0,11,0,11,37,51,2,4,0,11,5,8,0,11,0,11,0,11,24,28,0,11,0,11,0,11,3,4,0,11]
[null,"20 to 29 percent",0,11,41,48,49,41,3,4,0,11,2,3,7,12,0,11,7,12,13,20,5,7,3,4,0,11,4,5,0,11]
[null,"30 percent or more",40,22,183,76,333,130,44,22,9,10,14,12,3,5,22,13,9,12,156,93,11,12,14,11,57,51,36,19,32,17]
[null,"$20,000 to $34,999:",47,24,276,124,385,109,35,15,46,21,63,24,58,49,38,17,67,27,163,81,87,33,23,17,173,82,91,36,61,28]
[null,"Less than 20 percent",12,13,52,62,51,37,0,11,24,16,7,7,0,11,5,4,29,18,52,44,24,26,3,4,10,15,9,9,0,11]
[null,"20 to 29 percent",17,16,69,56,57,35,2,4,2,3,20,11,10,15,4,5,17,17,22,34,20,15,10,14,27,34,23,23,18,15]
[null,"30 percent or more",18,13,155,95,277,104,33,15,20,14,36,21,48,47,29,16,21,13,89,48,43,19,10,9,136,72,59,26,43,23]
[null,"$35,000 to $49,999:",42,18,351,153,492,139,68,26,22,16,36,13,98,53,33,16,52,22,258,117,90,37,38,25,114,64,85,31,55,22]
[null,"Less than 20 percent",26,14,115,93,163,73,14,10,4,6,12,12,20,18,5,5,20,13,96,86,21,14,5,5,14,17,15,12,19,14]
[null,"20 to 29 percent",4,5,93,63,138,58,9,8,8,8,0,11,18,16,15,12,17,14,93,60,34,21,18,20,0,11,12,8,3,4]
[null,"30 percent or more",12,10,143,94,191,105,45,26,10,9,24,10,60,47,13,9,15,11,69,43,35,31,15,15,100,62,58,29,33,14]
[null,"$50,000 to $74,999:",63,23,396,149,832,180,101,40,38,20,52,24,192,65,40,17,77,30,472,155,105,34,119,39,155,77,120,34,96,31]
[null,"Less than 20 percent",37,19,144,99,253,85,57,31,17,13,21,13,50,30,22,15,26,17,154,78,66,31,50,30,52,53,40,18,32,16]
[null,"20 to 29 percent",16,10,170,95,332,119,24,16,15,11,22,17,72,54,7,6,34,21,186,109,23,16,28,20,40,38,29,17,43,20]
[null,"30 percent or more",10,8,82,64,247,116,20,13,6,8,9,6,70,30,11,7,17,13,132,87,16,14,41,23,63,43,51,27,21,18]
[null,"$75,000 or more:",82,23,474,114,1303,209,294,48,98,27,82,23,633,91,120,32,160,42,772,156,517,73,213,49,569,132,171,34,164,41]
[null,"Less than 20 percent",53,20,293,88,828,169,204,41,71,24,49,18,413,108,73,23,107,36,517,137,328,68,140,47,353,112,92,28,122,36]
[null,"20 to 29 percent",18,9,115,71,369,131,75,30,22,13,17,11,172,93,43,24,34,16,197,111,143,48,47,20,129,49,68,22,36,27]
[null,"30 percent or more",11,10,66,49,106,54,15,10,5,6,16,15,48,36,4,4,19,16,58,71,46,26,26,17,87,52,11,17,6,6]
[null,"Zero or negative income",0,11,0,11,55,54,3,4,0,11,0,11,0,11,2,3,3,4,0,15,0,11,0,11,0,11,3,4,10,13]
[null,"Renter occupied housing units:",73,32,464,161,1932,223,94,39,44,23,66,32,93,68,29,18,50,28,948,207,118,53,72,37,428,128,16,13,31,17]
[null,"Less than $20,000:",3,4,204,112,651,138,6,6,4,5,3,4,0,11,2,3,0,11,338,126,0,11,9,11,87,73,0,11,0,11]
[null,"Less than 20 percent",0,11,0,11,15,19,0,11,0,11,0,11,0,11,0,11,0,11,48,54,0,11,0,11,0,11,0,11,0,11]
[null,"20 to 29 percent",0,11,11,19,123,67,0,11,2,3,0,11,0,11,0,11,0,11,63,67,0,11,0,11,0,11,0,11,0,11]
[null,"30 percent or more",3,4,193,110,513,122,6,6,2,3,3,4,0,11,2,3,0,11,227,102,0,11,9,11,87,73,0,11,0,11]
[null,"$20,000 to $34,999:",15,14,80,70,537,146,13,15,0,11,18,20,0,11,0,11,16,15,67,54,28,27,0,11,22,34,0,11,6,6]
[null,"Less than 20 percent",0,11,0,11,0,17,0,11,0,11,0,11,0,11,0,11,0,11,17,28,0,11,0,11,0,11,0,11,0,11]
[null,"20 to 29 percent",0,11,11,16,152,94,0,11,0,11,0,11,0,11,0,11,0,11,0,15,20,22,0,11,0,11,0,11,0,11]
[null,"30 percent or more",15,14,69,64,385,122,13,15,0,11,18,20,0,11,0,11,16,15,50,47,8,10,0,11,22,34,0,11,6,6]
[null,"$35,000 to $49,999:",7,11,56,69,260,88,0,11,6,9,15,14,20,22,3,5,2,3,265,147,0,11,16,19,24,22,6,9,9,14]
[null,"Less than 20 percent",0,11,47,66,69,49,0,11,0,11,0,11,0,11,0,11,0,11,69,89,0,11,0,11,9,14,0,11,0,11]
[null,"20 to 29 percent",7,11,9,15,116,68,0,11,0,11,0,11,10,17,0,11,0,11,131,117,0,11,16,19,0,11,6,9,9,14]
[null,"30 percent or more",0,11,0,11,75,54,0,11,6,9,15,14,10,16,3,5,2,3,65,76,0,11,0,11,15,17,0,11,0,11]
[null,"$50,000 to $74,999:",3,5,41,44,262,124,41,28,8,11,7,11,12,19,12,14,0,11,134,75,27,27,5,6,159,93,7,8,3,4]
[null,"Less than 20 percent",0,11,19,31,175,116,6,7,2,3,0,11,12,19,12,14,0,11,40,37,21,26,0,11,73,72,0,11,0,11]
[null,"20 to 29 percent",3,5,22,32,87,61,32,26,6,10,7,11,0,11,0,11,0,11,78,63,6,9,5,6,49,53,7,8,3,4]
[null,"30 percent or more",0,11,0,11,0,17,3,5,0,11,0,11,0,11,0,11,0,11,16,25,0,11,0,11,37,29,0,11,0,11]
[null,"$75,000 or more:",33,22,0,11,95,67,29,20,24,17,14,13,61,63,7,11,15,17,112,96,59,34,39,27,126,79,0,11,2,3]
[null,"Less than 20 percent",22,21,0,11,82,60,29,20,20,16,14,13,40,61,1,3,15,17,80,85,38,31,22,21,110,78,0,11,0,11]
[null,"20 to 29 percent",11,14,0,11,13,21,0,11,4,8,0,11,9,14,6,10,0,11,0,15,7,10,17,19,16,17,0,11,2,3]
[null,"30 percent or more",0,11,0,11,0,17,0,11,0,11,0,11,12,14,0,11,0,11,32,45,14,22,0,11,0,11,0,11,0,11]
[null,"Zero or negative income",2,3,14,21,57,56,0,11,0,11,6,9,0,11,0,11,4,7,15,24,0,11,0,11,0,11,0,11,0,11]
[null,"No cash rent",10,12,69,65,70,37,5,6,2,4,3,4,0,11,5,8,13,13,17,22,4,6,3,4,10,16,3,4,11,6]
[]
[]
[]
[]
[]
[]
[null,"Calculated B25106. TENURE BY HOUSING COSTS AS A PERCENTAGE OF HOUSEHOLD INCOME IN THE PAST 12 MONTHS"]
[null,"Universe:  OCCUPIED HOUSING UNITS"]
[null,"Data Set: 2010-2014 American Community Survey 5-Year Estimates"]
[]
[null,null,"Acworth",null,"Charlestown",null,"Claremont",null,"Cornish",null,"Croydon",null,"Goshen",null,"Grantham",null,"Langdon",null,"Lempster",null,"Newport",null,"Plainfield",null,"Springfield",null,"Sunapee",null,"Unity",null,"Washington"]
[null,null,"Estimate","Margin of Error","Estimate","Margin of Error","Estimate","Margin of Error","Estimate","Margin of Error","Estimate","Margin of Error","Estimate","Margin of Error","Estimate","Margin of Error","Estimate","Margin of Error","Estimate","Margin of Error","Estimate","Margin of Error","Estimate","Margin of Error","Estimate","Margin of Error","Estimate","Margin of Error","Estimate","Margin of Error","Estimate","Margin of Error"]
[null,"Total:",347,44,2185,131,5418,242,644,62,257,42,320,42,1084,82,284,42,425,55,2806,190,933,81,482,69,1496,87,529,62,449,64]
[null,"Owner occupied housing units:",274,40,1721,147,3486,249,550,56,213,37,254,35,991,88,255,38,375,51,1858,197,815,78,410,65,1068,125,513,58,418,62]
[null,"Less than 20 percent",128,35.312887166019152,350.01999942860408,173.66346766087565,883.25081375563991,212.33228675827894,212.2851855405836,53.656313701185248,76.954532030283957,34.02939905434711,55.317266743757322,27.386127875258307,416.49609842110164,114.58621208504974,76.570229201694303,30.265491900843113,115.61141812122192,46.893496350773418,550.90924842482002,187,336.09076155110245,81.104870383966457,148.77499789951267,57.192656871315222,357.22401934920333,126.44366334458995,101.87737727287643,36.728735344413913,127.54999019992123,44.609416046390926]
[null,"20 to 29 percent",55,24.145392935299274,239.19866220361686,153.21553446044561,520.65247526541157,193.88656477435458,79.341036040626548,35.383612025908263,27.874719729532707,22,34.307433596816885,25.709920264364882,187.72586396125601,110.40833301884419,46.249324319388712,30.033314835362415,54.212544673719201,36.414282912066248,287.5882473259295,171.34176373552364,150.19653790950042,57.227615711297986,58.532042506647585,37.576588456111871,137.73162309360913,72.408563029520209,78.447434629820748,37.296112397943034,58.974570791146924,38.613469152615643]
[null,"30 percent or more",91,30.28200785945344,298.40073726450476,173.59147444503142,544.37487083810174,234.76158118397481,75.332595866596819,40.669398815325508,25.337718918639855,21.840329667841555,49.040799340956916,30.757112998459398,114.52947218947619,81.480058910140713,40.385641012617342,23.895606290697042,37.376463182061514,29.308701779505689,240.42878363457234,159.4114174079134,74.612331420483031,48.352869614946329,53.646994324006634,35.284557528754704,208.04566806352878,127.20849028268515,104.22571659624126,53.814496188294839,66.625820820459694,37.067505985701274]
[null,"Zero or negative income",0,11,0,11,55,54,3,4,0,11,0,11,0,11,2,3,3,4,0,15,0,11,0,11,0,11,3,4,10,13]
[null,"Renter occupied housing units:",73,32,464,161,1932,223,94,39,44,23,66,32,93,68,29,18,50,28,948,207,118,53,72,37,428,128,16,13,31,17]
[null,"Less than 20 percent",22,30.413812651491099,50.695167422546305,75.365774725667094,205.75470833008902,141.79915373513342,29.614185789921695,28.495613697550013,20.09975124224178,25.059928172283335,14,25.553864678361276,41.761226035642203,66.670833203133142,12.041594578792296,23.832750575625969,15,27.802877548915689,123.9112585683803,142.17946405863259,43.416586692184822,44.721359549995796,22,30.413812651491099,132.32535660258014,108.19426971887189,0,24.596747752497688,0,24.596747752497688]
[null,"20 to 29 percent",21,24.166091947189145,28.407745422683583,44.57577817604534,243.77653701699842,148.69767987430066,32,34.058772731852805,7.4833147735478827,20.371548787463361,7,24.596747752497688,13.45362404707371,29.120439557122072,6,24.166091947189145,0,24.596747752497688,164.96666329898292,150.32298560100514,22.022715545545239,30.116440692751194,23.874672772626646,31.622776601683793,51.546095875439491,58.830264320330912,9.2195444572928871,22.538855339169288,9.6953597148326587,21.517434791350013]
[null,"30 percent or more",18,23.979157616563597,204.96341136895629,128.68177804180357,645.77008292425569,182.37872682963877,14.628738838327793,22.978250586152114,6.324555320336759,21.283796653792763,23.622023622035432,29.223278392404914,15.620499351813308,28.548204847240395,3.6055512754639891,19.924858845171276,16.124515496597098,24.433583445741231,243.99590160492451,145.04826782833362,16.124515496597098,30.773365106858236,9,24.596747752497688,98.219142737044905,87.954533709184091,0,24.596747752497688,6,22.803508501982758]
[null,"Zero or negative income",2,3,14,21,57,56,0,11,0,11,6,9,0,11,0,11,4,7,15,24,0,11,0,11,0,11,0,11,0,11]
[null,"No cash rent",10,12,69,65,70,37,5,6,2,4,3,4,0,11,5,8,13,13,17,22,4,6,3,4,10,16,3,4,11,6]
[]
[]
[]
[]
[null,"B25106. TENURE BY HOUSING COSTS AS A PERCENTAGE OF HOUSEHOLD INCOME IN THE PAST 12 MONTHS"]
[null,"Universe:  OCCUPIED HOUSING UNITS"]
[null,"Data Set: 2006-2010 American Community Survey 5-Year Estimates"]
[]
[null,null,"Alton",null,"Barnstead",null,"Belmont",null,"Center Harbor",null,"Gilford",null,"Gilmanton",null,"Laconia",null,"Meredith",null,"New Hampton",null,"Sanbornton",null,"Tilton"]
[null,null,"Estimate","Margin of Error","Estimate","Margin of Error","Estimate","Margin of Error","Estimate","Margin of Error","Estimate","Margin of Error","Estimate","Margin of Error","Estimate","Margin of Error","Estimate","Margin of Error","Estimate","Margin of Error","Estimate","Margin of Error","Estimate","Margin of Error"]
[null,"Total:"]
[null,"Owner occupied housing units:"]
[null,"Less than $20,000:"]
[null,"Less than 20 percent"]
[null,"20 to 29 percent"]
[null,"30 percent or more"]
[null,"$20,000 to $34,999:"]
[null,"Less than 20 percent"]
[null,"20 to 29 percent"]
[null,"30 percent or more"]
[null,"$35,000 to $49,999:"]
[null,"Less than 20 percent"]
[null,"20 to 29 percent"]
[null,"30 percent or more"]
[null,"$50,000 to $74,999:"]
[null,"Less than 20 percent"]
[null,"20 to 29 percent"]
[null,"30 percent or more"]
[null,"$75,000 or more:"]
[null,"Less than 20 percent"]
[null,"20 to 29 percent"]
[null,"30 percent or more"]
[null,"Zero or negative income"]
[null,"Renter occupied housing units:"]
[null,"Less than $20,000:"]
[null,"Less than 20 percent"]
[null,"20 to 29 percent"]
[null,"30 percent or more"]
[null,"$20,000 to $34,999:"]
[null,"Less than 20 percent"]
[null,"20 to 29 percent"]
[null,"30 percent or more"]
[null,"$35,000 to $49,999:"]
[null,"Less than 20 percent"]
[null,"20 to 29 percent"]
[null,"30 percent or more"]
[null,"$50,000 to $74,999:"]
[null,"Less than 20 percent"]
[null,"20 to 29 percent"]
[null,"30 percent or more"]
[null,"$75,000 or more:"]
[null,"Less than 20 percent"]
[null,"20 to 29 percent"]
[null,"30 percent or more"]
[null,"Zero or negative income"]
[null,"No cash rent"]
[]
[]
[]
[]
[]
[]
[null,"Calculated B25106. TENURE BY HOUSING COSTS AS A PERCENTAGE OF HOUSEHOLD INCOME IN THE PAST 12 MONTHS"]
[null,"Universe:  OCCUPIED HOUSING UNITS"]
[null,"Data Set: 2006-2010 American Community Survey 5-Year Estimates"]
[]
[null,null,"Alton",null,"Barnstead",null,"Belmont",null,"Center Harbor",null,"Gilford",null,"Gilmanton",null,"Laconia",null,"Meredith",null,"New Hampton",null,"Sanbornton",null,"Tilton"]
[null,null,"Estimate","Margin of Error","Estimate","Margin of Error","Estimate","Margin of Error","Estimate","Margin of Error","Estimate","Margin of Error","Estimate","Margin of Error","Estimate","Margin of Error","Estimate","Margin of Error","Estimate","Margin of Error","Estimate","Margin of Error","Estimate","Margin of Error"]
[null,"Total:"]
[null,"Owner occupied housing units:"]
[null,"Less than 20 percent"]
[null,"20 to 29 percent"]
[null,"30 percent or more"]
[null,"Zero or negative income"]
[null,"Renter occupied housing units:"]
[null,"Less than 20 percent"]
[null,"20 to 29 percent"]
[null,"30 percent or more"]
[null,"Zero or negative income"]
[null,"No cash rent"]

{"sheet":"SData_B25106HsingCostAsPctOfInc","index":104,"n_rows":66,"n_cols":96,"rows_kept":66,"cut":false,"hidden":true,"merged":[]}
["GEO_ID","GEO_ID2","SUMLEVEL","GEO_NAME","B25106_1_EST","B25106_1_MOE","B25106_2_EST","B25106_2_MOE","B25106_3_EST","B25106_3_MOE","B25106_4_EST","B25106_4_MOE","B25106_5_EST","B25106_5_MOE","B25106_6_EST","B25106_6_MOE","B25106_7_EST","B25106_7_MOE","B25106_8_EST","B25106_8_MOE","B25106_9_EST","B25106_9_MOE","B25106_10_EST","B25106_10_MOE","B25106_11_EST","B25106_11_MOE","B25106_12_EST","B25106_12_MOE","B25106_13_EST","B25106_13_MOE","B25106_14_EST","B25106_14_MOE","B25106_15_EST","B25106_15_MOE","B25106_16_EST","B25106_16_MOE","B25106_17_EST","B25106_17_MOE","B25106_18_EST","B25106_18_MOE","B25106_19_EST","B25106_19_MOE","B25106_20_EST","B25106_20_MOE","B25106_21_EST","B25106_21_MOE","B25106_22_EST","B25106_22_MOE","B25106_23_EST","B25106_23_MOE","B25106_24_EST","B25106_24_MOE","B25106_25_EST","B25106_25_MOE","B25106_26_EST","B25106_26_MOE","B25106_27_EST","B25106_27_MOE","B25106_28_EST","B25106_28_MOE","B25106_29_EST","B25106_29_MOE","B25106_30_EST","B25106_30_MOE","B25106_31_EST","B25106_31_MOE","B25106_32_EST","B25106_32_MOE","B25106_33_EST","B25106_33_MOE","B25106_34_EST","B25106_34_MOE","B25106_35_EST","B25106_35_MOE","B25106_36_EST","B25106_36_MOE","B25106_37_EST","B25106_37_MOE","B25106_38_EST","B25106_38_MOE","B25106_39_EST","B25106_39_MOE","B25106_40_EST","B25106_40_MOE","B25106_41_EST","B25106_41_MOE","B25106_42_EST","B25106_42_MOE","B25106_43_EST","B25106_43_MOE","B25106_44_EST","B25106_44_MOE","B25106_45_EST","B25106_45_MOE","B25106_46_EST","B25106_46_MOE"]
["Geography Identifier","Geography Identifier","Geographic Summary Level","Geography",{"$f":"[1]ACS_16_5YR_B25106_with_ann!D$2","v":"Estimate Total:"},{"$f":"[1]ACS_16_5YR_B25106_with_ann!E$2","v":"Margin of Error Total:"},{"$f":"[1]ACS_16_5YR_B25106_with_ann!F$2","v":"Estimate Total: Owner-occupied housing units:"},{"$f":"[1]ACS_16_5YR_B25106_with_ann!G$2","v":"Margin of Error Total: Owner-occupied housing units:"},{"$f":"[1]ACS_16_5YR_B25106_with_ann!H$2","v":"Estimate  Owner-occupied housing units: - Less than $20,000:"},{"$f":"[1]ACS_16_5YR_B25106_with_ann!I$2","v":"Margin of Error Total: Owner-occupied housing units: Less than $20"},{"$f":"[1]ACS_16_5YR_B25106_with_ann!J$2","v":"Estimate  Owner-occupied housing units: - Less than $20,000: - Less than 20 percent"},{"$f":"[1]ACS_16_5YR_B25106_with_ann!K$2","v":"Margin of Error Total: Owner-occupied housing units: Less than $20"},{"$f":"[1]ACS_16_5YR_B25106_with_ann!L$2","v":"Estimate  Owner-occupied housing units: - Less than $20,000: - 20 to 29 percent"},{"$f":"[1]ACS_16_5YR_B25106_with_ann!M$2","v":"Margin of Error Total: Owner-occupied housing units: Less than $20"},{"$f":"[1]ACS_16_5YR_B25106_with_ann!N$2","v":"Estimate  Owner-occupied housing units: - Less than $20,000: - 30 percent or more"},{"$f":"[1]ACS_16_5YR_B25106_with_ann!O$2","v":"Margin of Error Total: Owner-occupied housing units: Less than $20"},{"$f":"[1]ACS_16_5YR_B25106_with_ann!P$2","v":"Estimate  Owner-occupied housing units: - $20,000 to $34,999:"},{"$f":"[1]ACS_16_5YR_B25106_with_ann!Q$2","v":"Margin of Error Total: Owner-occupied housing units: $20"},{"$f":"[1]ACS_16_5YR_B25106_with_ann!R$2","v":"Estimate  Owner-occupied housing units: - $20,000 to $34,999: - Less than 20 percent"},{"$f":"[1]ACS_16_5YR_B25106_with_ann!S$2","v":"Margin of Error Total: Owner-occupied housing units: $20"},{"$f":"[1]ACS_16_5YR_B25106_with_ann!T$2","v":"Estimate  Owner-occupied housing units: - $20,000 to $34,999: - 20 to 29 percent"},{"$f":"[1]ACS_16_5YR_B25106_with_ann!U$2","v":"Margin of Error Total: Owner-occupied housing units: $20"},{"$f":"[1]ACS_16_5YR_B25106_with_ann!V$2","v":"Estimate  Owner-occupied housing units: - $20,000 to $34,999: - 30 percent or more"},{"$f":"[1]ACS_16_5YR_B25106_with_ann!W$2","v":"Margin of Error Total: Owner-occupied housing units: $20"},{"$f":"[1]ACS_16_5YR_B25106_with_ann!X$2","v":"Estimate  Owner-occupied housing units: - $35,000 to $49,999:"},{"$f":"[1]ACS_16_5YR_B25106_with_ann!Y$2","v":"Margin of Error Total: Owner-occupied housing units: $35"},{"$f":"[1]ACS_16_5YR_B25106_with_ann!Z$2","v":"Estimate  Owner-occupied housing units: - $35,000 to $49,999: - Less than 20 percent"},{"$f":"[1]ACS_16_5YR_B25106_with_ann!AA$2","v":"Margin of Error Total: Owner-occupied housing units: $35"},{"$f":"[1]ACS_16_5YR_B25106_with_ann!AB$2","v":"Estimate  Owner-occupied housing units: - $35,000 to $49,999: - 20 to 29 percent"},{"$f":"[1]ACS_16_5YR_B25106_with_ann!AC$2","v":"Margin of Error Total: Owner-occupied housing units: $35"},{"$f":"[1]ACS_16_5YR_B25106_with_ann!AD$2","v":"Estimate  Owner-occupied housing units: - $35,000 to $49,999: - 30 percent or more"},{"$f":"[1]ACS_16_5YR_B25106_with_ann!AE$2","v":"Margin of Error Total: Owner-occupied housing units: $35"},{"$f":"[1]ACS_16_5YR_B25106_with_ann!AF$2","v":"Estimate  Owner-occupied housing units: - $50,000 to $74,999:"},{"$f":"[1]ACS_16_5YR_B25106_with_ann!AG$2","v":"Margin of Error Total: Owner-occupied housing units: $50"},{"$f":"[1]ACS_16_5YR_B25106_with_ann!AH$2","v":"Estimate  Owner-occupied housing units: - $50,000 to $74,999: - Less than 20 percent"},{"$f":"[1]ACS_16_5YR_B25106_with_ann!AI$2","v":"Margin of Error Total: Owner-occupied housing units: $50"},{"$f":"[1]ACS_16_5YR_B25106_with_ann!AJ$2","v":"Estimate  Owner-occupied housing units: - $50,000 to $74,999: - 20 to 29 percent"},{"$f":"[1]ACS_16_5YR_B25106_with_ann!AK$2","v":"Margin of Error Total: Owner-occupied housing units: $50"},{"$f":"[1]ACS_16_5YR_B25106_with_ann!AL$2","v":"Estimate  Owner-occupied housing units: - $50,000 to $74,999: - 30 percent or more"},{"$f":"[1]ACS_16_5YR_B25106_with_ann!AM$2","v":"Margin of Error Total: Owner-occupied housing units: $50"},{"$f":"[1]ACS_16_5YR_B25106_with_ann!AN$2","v":"Estimate  Owner-occupied housing units: - $75,000 or more:"},{"$f":"[1]ACS_16_5YR_B25106_with_ann!AO$2","v":"Margin of Error Total: Owner-occupied housing units: $75"},{"$f":"[1]ACS_16_5YR_B25106_with_ann!AP$2","v":"Estimate  Owner-occupied housing units: - $75,000 or more: - Less than 20 percent"},{"$f":"[1]ACS_16_5YR_B25106_with_ann!AQ$2","v":"Margin of Error Total: Owner-occupied housing units: $75"},{"$f":"[1]ACS_16_5YR_B25106_with_ann!AR$2","v":"Estimate  Owner-occupied housing units: - $75,000 or more: - 20 to 29 percent"},{"$f":"[1]ACS_16_5YR_B25106_with_ann!AS$2","v":"Margin of Error Total: Owner-occupied housing units: $75"},{"$f":"[1]ACS_16_5YR_B25106_with_ann!AT$2","v":"Estimate  Owner-occupied housing units: - $75,000 or more: - 30 percent or more"},{"$f":"[1]ACS_16_5YR_B25106_with_ann!AU$2","v":"Margin of Error Total: Owner-occupied housing units: $75"},{"$f":"[1]ACS_16_5YR_B25106_with_ann!AV$2","v":"Estimate  Owner-occupied housing units: - Zero or negative income"},{"$f":"[1]ACS_16_5YR_B25106_with_ann!AW$2","v":"Margin of Error Total: Owner-occupied housing units: Zero or negative income"},{"$f":"[1]ACS_16_5YR_B25106_with_ann!AX$2","v":"Estimate Total: Renter-occupied housing units:"},{"$f":"[1]ACS_16_5YR_B25106_with_ann!AY$2","v":"Margin of Error Total: Renter-occupied housing units:"},{"$f":"[1]ACS_16_5YR_B25106_with_ann!AZ$2","v":"Estimate  Renter-occupied housing units: - Less than $20,000:"},{"$f":"[1]ACS_16_5YR_B25106_with_ann!BA$2","v":"Margin of Error Total: Renter-occupied housing units: Less than $20"},{"$f":"[1]ACS_16_5YR_B25106_with_ann!BB$2","v":"Estimate  Renter-occupied housing units: - Less than $20,000: - Less than 20 percent"},{"$f":"[1]ACS_16_5YR_B25106_with_ann!BC$2","v":"Margin of Error Total: Renter-occupied housing units: Less than $20"},{"$f":"[1]ACS_16_5YR_B25106_with_ann!BD$2","v":"Estimate  Renter-occupied housing units: - Less than $20,000: - 20 to 29 percent"},{"$f":"[1]ACS_16_5YR_B25106_with_ann!BE$2","v":"Margin of Error Total: Renter-occupied housing units: Less than $20"},{"$f":"[1]ACS_16_5YR_B25106_with_ann!BF$2","v":"Estimate  Renter-occupied housing units: - Less than $20,000: - 30 percent or more"},{"$f":"[1]ACS_16_5YR_B25106_with_ann!BG$2","v":"Margin of Error Total: Renter-occupied housing units: Less than $20"},{"$f":"[1]ACS_16_5YR_B25106_with_ann!BH$2","v":"Estimate  Renter-occupied housing units: - $20,000 to $34,999:"},{"$f":"[1]ACS_16_5YR_B25106_with_ann!BI$2","v":"Margin of Error Total: Renter-occupied housing units: $20"},{"$f":"[1]ACS_16_5YR_B25106_with_ann!BJ$2","v":"Estimate  Renter-occupied housing units: - $20,000 to $34,999: - Less than 20 percent"},{"$f":"[1]ACS_16_5YR_B25106_with_ann!BK$2","v":"Margin of Error Total: Renter-occupied housing units: $20"},{"$f":"[1]ACS_16_5YR_B25106_with_ann!BL$2","v":"Estimate  Renter-occupied housing units: - $20,000 to $34,999: - 20 to 29 percent"},{"$f":"[1]ACS_16_5YR_B25106_with_ann!BM$2","v":"Margin of Error Total: Renter-occupied housing units: $20"},{"$f":"[1]ACS_16_5YR_B25106_with_ann!BN$2","v":"Estimate  Renter-occupied housing units: - $20,000 to $34,999: - 30 percent or more"},{"$f":"[1]ACS_16_5YR_B25106_with_ann!BO$2","v":"Margin of Error Total: Renter-occupied housing units: $20"},{"$f":"[1]ACS_16_5YR_B25106_with_ann!BP$2","v":"Estimate  Renter-occupied housing units: - $35,000 to $49,999:"},{"$f":"[1]ACS_16_5YR_B25106_with_ann!BQ$2","v":"Margin of Error Total: Renter-occupied housing units: $35"},{"$f":"[1]ACS_16_5YR_B25106_with_ann!BR$2","v":"Estimate  Renter-occupied housing units: - $35,000 to $49,999: - Less than 20 percent"},{"$f":"[1]ACS_16_5YR_B25106_with_ann!BS$2","v":"Margin of Error Total: Renter-occupied housing units: $35"},{"$f":"[1]ACS_16_5YR_B25106_with_ann!BT$2","v":"Estimate  Renter-occupied housing units: - $35,000 to $49,999: - 20 to 29 percent"},{"$f":"[1]ACS_16_5YR_B25106_with_ann!BU$2","v":"Margin of Error Total: Renter-occupied housing units: $35"},{"$f":"[1]ACS_16_5YR_B25106_with_ann!BV$2","v":"Estimate  Renter-occupied housing units: - $35,000 to $49,999: - 30 percent or more"},{"$f":"[1]ACS_16_5YR_B25106_with_ann!BW$2","v":"Margin of Error Total: Renter-occupied housing units: $35"},{"$f":"[1]ACS_16_5YR_B25106_with_ann!BX$2","v":"Estimate  Renter-occupied housing units: - $50,000 to $74,999:"},{"$f":"[1]ACS_16_5YR_B25106_with_ann!BY$2","v":"Margin of Error Total: Renter-occupied housing units: $50"},{"$f":"[1]ACS_16_5YR_B25106_with_ann!BZ$2","v":"Estimate  Renter-occupied housing units: - $50,000 to $74,999: - Less than 20 percent"},{"$f":"[1]ACS_16_5YR_B25106_with_ann!CA$2","v":"Margin of Error Total: Renter-occupied housing units: $50"},{"$f":"[1]ACS_16_5YR_B25106_with_ann!CB$2","v":"Estimate  Renter-occupied housing units: - $50,000 to $74,999: - 20 to 29 percent"},{"$f":"[1]ACS_16_5YR_B25106_with_ann!CC$2","v":"Margin of Error Total: Renter-occupied housing units: $50"},{"$f":"[1]ACS_16_5YR_B25106_with_ann!CD$2","v":"Estimate  Renter-occupied housing units: - $50,000 to $74,999: - 30 percent or more"},{"$f":"[1]ACS_16_5YR_B25106_with_ann!CE$2","v":"Margin of Error Total: Renter-occupied housing units: $50"},{"$f":"[1]ACS_16_5YR_B25106_with_ann!CF$2","v":"Estimate  Renter-occupied housing units: - $75,000 or more:"},{"$f":"[1]ACS_16_5YR_B25106_with_ann!CG$2","v":"Margin of Error Total: Renter-occupied housing units: $75"},{"$f":"[1]ACS_16_5YR_B25106_with_ann!CH$2","v":"Estimate  Renter-occupied housing units: - $75,000 or more: - Less than 20 percent"},{"$f":"[1]ACS_16_5YR_B25106_with_ann!CI$2","v":"Margin of Error Total: Renter-occupied housing units: $75"},{"$f":"[1]ACS_16_5YR_B25106_with_ann!CJ$2","v":"Estimate  Renter-occupied housing units: - $75,000 or more: - 20 to 29 percent"},{"$f":"[1]ACS_16_5YR_B25106_with_ann!CK$2","v":"Margin of Error Total: Renter-occupied housing units: $75"},{"$f":"[1]ACS_16_5YR_B25106_with_ann!CL$2","v":"Estimate  Renter-occupied housing units: - $75,000 or more: - 30 percent or more"},{"$f":"[1]ACS_16_5YR_B25106_with_ann!CM$2","v":"Margin of Error Total: Renter-occupied housing units: $75"},{"$f":"[1]ACS_16_5YR_B25106_with_ann!CN$2","v":"Estimate  Renter-occupied housing units: - Zero or negative income"},{"$f":"[1]ACS_16_5YR_B25106_with_ann!CO$2","v":"Margin of Error Total: Renter-occupied housing units: Zero or negative income"},{"$f":"[1]ACS_16_5YR_B25106_with_ann!CP$2","v":"Estimate Total: Renter-occupied housing units: No cash rent"},{"$f":"[1]ACS_16_5YR_B25106_with_ann!CQ$2","v":"Margin of Error Total: Renter-occupied housing units: No cash rent"}]
["0600000US3301900259",3301900259,"060","Acworth",{"$f":"[1]ACS_16_5YR_B25106_with_ann!D258","v":370},{"$f":"[1]ACS_16_5YR_B25106_with_ann!E258","v":51},{"$f":"[1]ACS_16_5YR_B25106_with_ann!F258","v":340},{"$f":"[1]ACS_16_5YR_B25106_with_ann!G258","v":50},{"$f":"[1]ACS_16_5YR_B25106_with_ann!H258","v":15},{"$f":"[1]ACS_16_5YR_B25106_with_ann!I258","v":8},{"$f":"[1]ACS_16_5YR_B25106_with_ann!J258","v":3},{"$f":"[1]ACS_16_5YR_B25106_with_ann!K258","v":4},{"$f":"[1]ACS_16_5YR_B25106_with_ann!L258","v":2},{"$f":"[1]ACS_16_5YR_B25106_with_ann!M258","v":3},{"$f":"[1]ACS_16_5YR_B25106_with_ann!N258","v":10},{"$f":"[1]ACS_16_5YR_B25106_with_ann!O258","v":7},{"$f":"[1]ACS_16_5YR_B25106_with_ann!P258","v":36},{"$f":"[1]ACS_16_5YR_B25106_with_ann!Q258","v":17},{"$f":"[1]ACS_16_5YR_B25106_with_ann!R258","v":2},{"$f":"[1]ACS_16_5YR_B25106_with_ann!S258","v":3},{"$f":"[1]ACS_16_5YR_B25106_with_ann!T258","v":8},{"$f":"[1]ACS_16_5YR_B25106_with_ann!U258","v":7},{"$f":"[1]ACS_16_5YR_B25106_with_ann!V258","v":26},{"$f":"[1]ACS_16_5YR_B25106_with_ann!W258","v":16},{"$f":"[1]ACS_16_5YR_B25106_with_ann!X258","v":40},{"$f":"[1]ACS_16_5YR_B25106_with_ann!Y258","v":19},{"$f":"[1]ACS_16_5YR_B25106_with_ann!Z258","v":12},{"$f":"[1]ACS_16_5YR_B25106_with_ann!AA258","v":11},{"$f":"[1]ACS_16_5YR_B25106_with_ann!AB258","v":12},{"$f":"[1]ACS_16_5YR_B25106_with_ann!AC258","v":12},{"$f":"[1]ACS_16_5YR_B25106_with_ann!AD258","v":16},{"$f":"[1]ACS_16_5YR_B25106_with_ann!AE258","v":14},{"$f":"[1]ACS_16_5YR_B25106_with_ann!AF258","v":89},{"$f":"[1]ACS_16_5YR_B25106_with_ann!AG258","v":29},{"$f":"[1]ACS_16_5YR_B25106_with_ann!AH258","v":52},{"$f":"[1]ACS_16_5YR_B25106_with_ann!AI258","v":22},{"$f":"[1]ACS_16_5YR_B25106_with_ann!AJ258","v":24},{"$f":"[1]ACS_16_5YR_B25106_with_ann!AK258","v":18},{"$f":"[1]ACS_16_5YR_B25106_with_ann!AL258","v":13},{"$f":"[1]ACS_16_5YR_B25106_with_ann!AM258","v":9},{"$f":"[1]ACS_16_5YR_B25106_with_ann!AN258","v":153},{"$f":"[1]ACS_16_5YR_B25106_with_ann!AO258","v":38},{"$f":"[1]ACS_16_5YR_B25106_with_ann!AP258","v":118},{"$f":"[1]ACS_16_5YR_B25106_with_ann!AQ258","v":32},{"$f":"[1]ACS_16_5YR_B25106_with_ann!AR258","v":24},{"$f":"[1]ACS_16_5YR_B25106_with_ann!AS258","v":13},{"$f":"[1]ACS_16_5YR_B25106_with_ann!AT258","v":11},{"$f":"[1]ACS_16_5YR_B25106_with_ann!AU258","v":12},{"$f":"[1]ACS_16_5YR_B25106_with_ann!AV258","v":7},{"$f":"[1]ACS_16_5YR_B25106_with_ann!AW258","v":11},{"$f":"[1]ACS_16_5YR_B25106_with_ann!AX258","v":30},{"$f":"[1]ACS_16_5YR_B25106_with_ann!AY258","v":16},{"$f":"[1]ACS_16_5YR_B25106_with_ann!AZ258","v":0},{"$f":"[1]ACS_16_5YR_B25106_with_ann!BA258","v":11},{"$f":"[1]ACS_16_5YR_B25106_with_ann!BB258","v":0},{"$f":"[1]ACS_16_5YR_B25106_with_ann!BC258","v":11},{"$f":"[1]ACS_16_5YR_B25106_with_ann!BD258","v":0},{"$f":"[1]ACS_16_5YR_B25106_with_ann!BE258","v":11},{"$f":"[1]ACS_16_5YR_B25106_with_ann!BF258","v":0},{"$f":"[1]ACS_16_5YR_B25106_with_ann!BG258","v":11},{"$f":"[1]ACS_16_5YR_B25106_with_ann!BH258","v":0},{"$f":"[1]ACS_16_5YR_B25106_with_ann!BI258","v":11},{"$f":"[1]ACS_16_5YR_B25106_with_ann!BJ258","v":0},{"$f":"[1]ACS_16_5YR_B25106_with_ann!BK258","v":11},{"$f":"[1]ACS_16_5YR_B25106_with_ann!BL258","v":0},{"$f":"[1]ACS_16_5YR_B25106_with_ann!BM258","v":11},{"$f":"[1]ACS_16_5YR_B25106_with_ann!BN258","v":0},{"$f":"[1]ACS_16_5YR_B25106_with_ann!BO258","v":11},{"$f":"[1]ACS_16_5YR_B25106_with_ann!BP258","v":6},{"$f":"[1]ACS_16_5YR_B25106_with_ann!BQ258","v":5},{"$f":"[1]ACS_16_5YR_B25106_with_ann!BR258","v":0},{"$f":"[1]ACS_16_5YR_B25106_with_ann!BS258","v":11},{"$f":"[1]ACS_16_5YR_B25106_with_ann!BT258","v":2},{"$f":"[1]ACS_16_5YR_B25106_with_ann!BU258","v":3},{"$f":"[1]ACS_16_5YR_B25106_with_ann!BV258","v":4},{"$f":"[1]ACS_16_5YR_B25106_with_ann!BW258","v":4},{"$f":"[1]ACS_16_5YR_B25106_with_ann!BX258","v":8},{"$f":"[1]ACS_16_5YR_B25106_with_ann!BY258","v":10},{"$f":"[1]ACS_16_5YR_B25106_with_ann!BZ258","v":0},{"$f":"[1]ACS_16_5YR_B25106_with_ann!CA258","v":11},{"$f":"[1]ACS_16_5YR_B25106_with_ann!CB258","v":6},{"$f":"[1]ACS_16_5YR_B25106_with_ann!CC258","v":10},{"$f":"[1]ACS_16_5YR_B25106_with_ann!CD258","v":2},{"$f":"[1]ACS_16_5YR_B25106_with_ann!CE258","v":3},{"$f":"[1]ACS_16_5YR_B25106_with_ann!CF258","v":8},{"$f":"[1]ACS_16_5YR_B25106_with_ann!CG258","v":8},{"$f":"[1]ACS_16_5YR_B25106_with_ann!CH258","v":3},{"$f":"[1]ACS_16_5YR_B25106_with_ann!CI258","v":5},{"$f":"[1]ACS_16_5YR_B25106_with_ann!CJ258","v":5},{"$f":"[1]ACS_16_5YR_B25106_with_ann!CK258","v":6},{"$f":"[1]ACS_16_5YR_B25106_with_ann!CL258","v":0},{"$f":"[1]ACS_16_5YR_B25106_with_ann!CM258","v":11},{"$f":"[1]ACS_16_5YR_B25106_with_ann!CN258","v":6},{"$f":"[1]ACS_16_5YR_B25106_with_ann!CO258","v":10},{"$f":"[1]ACS_16_5YR_B25106_with_ann!CP258","v":2},{"$f":"[1]ACS_16_5YR_B25106_with_ann!CQ258","v":3}]
["0600000US3301911380",3301911380,"060","Charlestown",{"$f":"[1]ACS_16_5YR_B25106_with_ann!D259","v":2086},{"$f":"[1]ACS_16_5YR_B25106_with_ann!E259","v":184},{"$f":"[1]ACS_16_5YR_B25106_with_ann!F259","v":1584},{"$f":"[1]ACS_16_5YR_B25106_with_ann!G259","v":209},{"$f":"[1]ACS_16_5YR_B25106_with_ann!H259","v":191},{"$f":"[1]ACS_16_5YR_B25106_with_ann!I259","v":130},{"$f":"[1]ACS_16_5YR_B25106_with_ann!J259","v":0},{"$f":"[1]ACS_16_5YR_B25106_with_ann!K259","v":16},{"$f":"[1]ACS_16_5YR_B25106_with_ann!L259","v":54},{"$f":"[1]ACS_16_5YR_B25106_with_ann!M259","v":85},{"$f":"[1]ACS_16_5YR_B25106_with_ann!N259","v":137},{"$f":"[1]ACS_16_5YR_B25106_with_ann!O259","v":95},{"$f":"[1]ACS_16_5YR_B25106_with_ann!P259","v":297},{"$f":"[1]ACS_16_5YR_B25106_with_ann!Q259","v":154},{"$f":"[1]ACS_16_5YR_B25106_with_ann!R259","v":122},{"$f":"[1]ACS_16_5YR_B25106_with_ann!S259","v":93},{"$f":"[1]ACS_16_5YR_B25106_with_ann!T259","v":50},{"$f":"[1]ACS_16_5YR_B25106_with_ann!U259","v":47},{"$f":"[1]ACS_16_5YR_B25106_with_ann!V259","v":125},{"$f":"[1]ACS_16_5YR_B25106_with_ann!W259","v":104},{"$f":"[1]ACS_16_5YR_B25106_with_ann!X259","v":270},{"$f":"[1]ACS_16_5YR_B25106_with_ann!Y259","v":140},{"$f":"[1]ACS_16_5YR_B25106_with_ann!Z259","v":179},{"$f":"[1]ACS_16_5YR_B25106_with_ann!AA259","v":110},{"$f":"[1]ACS_16_5YR_B25106_with_ann!AB259","v":39},{"$f":"[1]ACS_16_5YR_B25106_with_ann!AC259","v":50},{"$f":"[1]ACS_16_5YR_B25106_with_ann!AD259","v":52},{"$f":"[1]ACS_16_5YR_B25106_with_ann!AE259","v":55},{"$f":"[1]ACS_16_5YR_B25106_with_ann!AF259","v":323},{"$f":"[1]ACS_16_5YR_B25106_with_ann!AG259","v":117},{"$f":"[1]ACS_16_5YR_B25106_with_ann!AH259","v":136},{"$f":"[1]ACS_16_5YR_B25106_with_ann!AI259","v":92},{"$f":"[1]ACS_16_5YR_B25106_with_ann!AJ259","v":33},{"$f":"[1]ACS_16_5YR_B25106_with_ann!AK259","v":39},{"$f":"[1]ACS_16_5YR_B25106_with_ann!AL259","v":154},{"$f":"[1]ACS_16_5YR_B25106_with_ann!AM259","v":93},{"$f":"[1]ACS_16_5YR_B25106_with_ann!AN259","v":464},{"$f":"[1]ACS_16_5YR_B25106_with_ann!AO259","v":140},{"$f":"[1]ACS_16_5YR_B25106_with_ann!AP259","v":374},{"$f":"[1]ACS_16_5YR_B25106_with_ann!AQ259","v":129},{"$f":"[1]ACS_16_5YR_B25106_with_ann!AR259","v":60},{"$f":"[1]ACS_16_5YR_B25106_with_ann!AS259","v":56},{"$f":"[1]ACS_16_5YR_B25106_with_ann!AT259","v":30},{"$f":"[1]ACS_16_5YR_B25106_with_ann!AU259","v":33},{"$f":"[1]ACS_16_5YR_B25106_with_ann!AV259","v":39},{"$f":"[1]ACS_16_5YR_B25106_with_ann!AW259","v":62},{"$f":"[1]ACS_16_5YR_B25106_with_ann!AX259","v":502},{"$f":"[1]ACS_16_5YR_B25106_with_ann!AY259","v":134},{"$f":"[1]ACS_16_5YR_B25106_with_ann!AZ259","v":87},{"$f":"[1]ACS_16_5YR_B25106_with_ann!BA259","v":70},{"$f":"[1]ACS_16_5YR_B25106_with_ann!BB259","v":0},{"$f":"[1]ACS_16_5YR_B25106_with_ann!BC259","v":16},{"$f":"[1]ACS_16_5YR_B25106_with_ann!BD259","v":30},{"$f":"[1]ACS_16_5YR_B25106_with_ann!BE259","v":35},{"$f":"[1]ACS_16_5YR_B25106_with_ann!BF259","v":57},{"$f":"[1]ACS_16_5YR_B25106_with_ann!BG259","v":62},{"$f":"[1]ACS_16_5YR_B25106_with_ann!BH259","v":77},{"$f":"[1]ACS_16_5YR_B25106_with_ann!BI259","v":62},{"$f":"[1]ACS_16_5YR_B25106_with_ann!BJ259","v":8},{"$f":"[1]ACS_16_5YR_B25106_with_ann!BK259","v":15},{"$f":"[1]ACS_16_5YR_B25106_with_ann!BL259","v":0},{"$f":"[1]ACS_16_5YR_B25106_with_ann!BM259","v":16},{"$f":"[1]ACS_16_5YR_B25106_with_ann!BN259","v":69},{"$f":"[1]ACS_16_5YR_B25106_with_ann!BO259","v":62},{"$f":"[1]ACS_16_5YR_B25106_with_ann!BP259","v":41},{"$f":"[1]ACS_16_5YR_B25106_with_ann!BQ259","v":42},{"$f":"[1]ACS_16_5YR_B25106_with_ann!BR259","v":0},{"$f":"[1]ACS_16_5YR_B25106_with_ann!BS259","v":16},{"$f":"[1]ACS_16_5YR_B25106_with_ann!BT259","v":41},{"$f":"[1]ACS_16_5YR_B25106_with_ann!BU259","v":42},{"$f":"[1]ACS_16_5YR_B25106_with_ann!BV259","v":0},{"$f":"[1]ACS_16_5YR_B25106_with_ann!BW259","v":16},{"$f":"[1]ACS_16_5YR_B25106_with_ann!BX259","v":14},{"$f":"[1]ACS_16_5YR_B25106_with_ann!BY259","v":23},{"$f":"[1]ACS_16_5YR_B25106_with_ann!BZ259","v":14},{"$f":"[1]ACS_16_5YR_B25106_with_ann!CA259","v":23},{"$f":"[1]ACS_16_5YR_B25106_with_ann!CB259","v":0},{"$f":"[1]ACS_16_5YR_B25106_with_ann!CC259","v":16},{"$f":"[1]ACS_16_5YR_B25106_with_ann!CD259","v":0},{"$f":"[1]ACS_16_5YR_B25106_with_ann!CE259","v":16},{"$f":"[1]ACS_16_5YR_B25106_with_ann!CF259","v":191},{"$f":"[1]ACS_16_5YR_B25106_with_ann!CG259","v":119},{"$f":"[1]ACS_16_5YR_B25106_with_ann!CH259","v":191},{"$f":"[1]ACS_16_5YR_B25106_with_ann!CI259","v":119},{"$f":"[1]ACS_16_5YR_B25106_with_ann!CJ259","v":0},{"$f":"[1]ACS_16_5YR_B25106_with_ann!CK259","v":16},{"$f":"[1]ACS_16_5YR_B25106_with_ann!CL259","v":0},{"$f":"[1]ACS_16_5YR_B25106_with_ann!CM259","v":16},{"$f":"[1]ACS_16_5YR_B25106_with_ann!CN259","v":61},{"$f":"[1]ACS_16_5YR_B25106_with_ann!CO259","v":66},{"$f":"[1]ACS_16_5YR_B25106_with_ann!CP259","v":31},{"$f":"[1]ACS_16_5YR_B25106_with_ann!CQ259","v":47}]
["0600000US3301912900",3301912900,"060","Claremont",{"$f":"[1]ACS_16_5YR_B25106_with_ann!D260","v":5231},{"$f":"[1]ACS_16_5YR_B25106_with_ann!E260","v":284},{"$f":"[1]ACS_16_5YR_B25106_with_ann!F260","v":2921},{"$f":"[1]ACS_16_5YR_B25106_with_ann!G260","v":257},{"$f":"[1]ACS_16_5YR_B25106_with_ann!H260","v":239},{"$f":"[1]ACS_16_5YR_B25106_with_ann!I260","v":96},{"$f":"[1]ACS_16_5YR_B25106_with_ann!J260","v":0},{"$f":"[1]ACS_16_5YR_B25106_with_ann!K260","v":18},{"$f":"[1]ACS_16_5YR_B25106_with_ann!L260","v":9},{"$f":"[1]ACS_16_5YR_B25106_with_ann!M260","v":15},{"$f":"[1]ACS_16_5YR_B25106_with_ann!N260","v":230},{"$f":"[1]ACS_16_5YR_B25106_with_ann!O260","v":98},{"$f":"[1]ACS_16_5YR_B25106_with_ann!P260","v":467},{"$f":"[1]ACS_16_5YR_B25106_with_ann!Q260","v":134},{"$f":"[1]ACS_16_5YR_B25106_with_ann!R260","v":9},{"$f":"[1]ACS_16_5YR_B25106_with_ann!S260","v":14},{"$f":"[1]ACS_16_5YR_B25106_with_ann!T260","v":106},{"$f":"[1]ACS_16_5YR_B25106_with_ann!U260","v":60},{"$f":"[1]ACS_16_5YR_B25106_with_ann!V260","v":352},{"$f":"[1]ACS_16_5YR_B25106_with_ann!W260","v":117},{"$f":"[1]ACS_16_5YR_B25106_with_ann!X260","v":334},{"$f":"[1]ACS_16_5YR_B25106_with_ann!Y260","v":111},{"$f":"[1]ACS_16_5YR_B25106_with_ann!Z260","v":60},{"$f":"[1]ACS_16_5YR_B25106_with_ann!AA260","v":46},{"$f":"[1]ACS_16_5YR_B25106_with_ann!AB260","v":133},{"$f":"[1]ACS_16_5YR_B25106_with_ann!AC260","v":73},{"$f":"[1]ACS_16_5YR_B25106_with_ann!AD260","v":141},{"$f":"[1]ACS_16_5YR_B25106_with_ann!AE260","v":70},{"$f":"[1]ACS_16_5YR_B25106_with_ann!AF260","v":532},{"$f":"[1]ACS_16_5YR_B25106_with_ann!AG260","v":116},{"$f":"[1]ACS_16_5YR_B25106_with_ann!AH260","v":227},{"$f":"[1]ACS_16_5YR_B25106_with_ann!AI260","v":71},{"$f":"[1]ACS_16_5YR_B25106_with_ann!AJ260","v":170},{"$f":"[1]ACS_16_5YR_B25106_with_ann!AK260","v":83},{"$f":"[1]ACS_16_5YR_B25106_with_ann!AL260","v":135},{"$f":"[1]ACS_16_5YR_B25106_with_ann!AM260","v":82},{"$f":"[1]ACS_16_5YR_B25106_with_ann!AN260","v":1322},{"$f":"[1]ACS_16_5YR_B25106_with_ann!AO260","v":194},{"$f":"[1]ACS_16_5YR_B25106_with_ann!AP260","v":780},{"$f":"[1]ACS_16_5YR_B25106_with_ann!AQ260","v":161},{"$f":"[1]ACS_16_5YR_B25106_with_ann!AR260","v":495},{"$f":"[1]ACS_16_5YR_B25106_with_ann!AS260","v":143},{"$f":"[1]ACS_16_5YR_B25106_with_ann!AT260","v":47},{"$f":"[1]ACS_16_5YR_B25106_with_ann!AU260","v":40},{"$f":"[1]ACS_16_5YR_B25106_with_ann!AV260","v":27},{"$f":"[1]ACS_16_5YR_B25106_with_ann!AW260","v":41},{"$f":"[1]ACS_16_5YR_B25106_with_ann!AX260","v":2310},{"$f":"[1]ACS_16_5YR_B25106_with_ann!AY260","v":288},{"$f":"[1]ACS_16_5YR_B25106_with_ann!AZ260","v":493},{"$f":"[1]ACS_16_5YR_B25106_with_ann!BA260","v":117},{"$f":"[1]ACS_16_5YR_B25106_with_ann!BB260","v":26},{"$f":"[1]ACS_16_5YR_B25106_with_ann!BC260","v":24},{"$f":"[1]ACS_16_5YR_B25106_with_ann!BD260","v":91},{"$f":"[1]ACS_16_5YR_B25106_with_ann!BE260","v":71},{"$f":"[1]ACS_16_5YR_B25106_with_ann!BF260","v":376},{"$f":"[1]ACS_16_5YR_B25106_with_ann!BG260","v":120},{"$f":"[1]ACS_16_5YR_B25106_with_ann!BH260","v":619},{"$f":"[1]ACS_16_5YR_B25106_with_ann!BI260","v":197},{"$f":"[1]ACS_16_5YR_B25106_with_ann!BJ260","v":38},{"$f":"[1]ACS_16_5YR_B25106_with_ann!BK260","v":40},{"$f":"[1]ACS_16_5YR_B25106_with_ann!BL260","v":54},{"$f":"[1]ACS_16_5YR_B25106_with_ann!BM260","v":40},{"$f":"[1]ACS_16_5YR_B25106_with_ann!BN260","v":527},{"$f":"[1]ACS_16_5YR_B25106_with_ann!BO260","v":194},{"$f":"[1]ACS_16_5YR_B25106_with_ann!BP260","v":435},{"$f":"[1]ACS_16_5YR_B25106_with_ann!BQ260","v":157},{"$f":"[1]ACS_16_5YR_B25106_with_ann!BR260","v":25},{"$f":"[1]ACS_16_5YR_B25106_with_ann!BS260","v":29},{"$f":"[1]ACS_16_5YR_B25106_with_ann!BT260","v":240},{"$f":"[1]ACS_16_5YR_B25106_with_ann!BU260","v":96},{"$f":"[1]ACS_16_5YR_B25106_with_ann!BV260","v":170},{"$f":"[1]ACS_16_5YR_B25106_with_ann!BW260","v":109},{"$f":"[1]ACS_16_5YR_B25106_with_ann!BX260","v":311},{"$f":"[1]ACS_16_5YR_B25106_with_ann!BY260","v":115},{"$f":"[1]ACS_16_5YR_B25106_with_ann!BZ260","v":65},{"$f":"[1]ACS_16_5YR_B25106_with_ann!CA260","v":42},{"$f":"[1]ACS_16_5YR_B25106_with_ann!CB260","v":222},{"$f":"[1]ACS_16_5YR_B25106_with_ann!CC260","v":95},{"$f":"[1]ACS_16_5YR_B25106_with_ann!CD260","v":24},{"$f":"[1]ACS_16_5YR_B25106_with_ann!CE260","v":45},{"$f":"[1]ACS_16_5YR_B25106_with_ann!CF260","v":348},{"$f":"[1]ACS_16_5YR_B25106_with_ann!CG260","v":143},{"$f":"[1]ACS_16_5YR_B25106_with_ann!CH260","v":340},{"$f":"[1]ACS_16_5YR_B25106_with_ann!CI260","v":144},{"$f":"[1]ACS_16_5YR_B25106_with_ann!CJ260","v":8},{"$f":"[1]ACS_16_5YR_B25106_with_ann!CK260","v":12},{"$f":"[1]ACS_16_5YR_B25106_with_ann!CL260","v":0},{"$f":"[1]ACS_16_5YR_B25106_with_ann!CM260","v":18},{"$f":"[1]ACS_16_5YR_B25106_with_ann!CN260","v":96},{"$f":"[1]ACS_16_5YR_B25106_with_ann!CO260","v":86},{"$f":"[1]ACS_16_5YR_B25106_with_ann!CP260","v":8},{"$f":"[1]ACS_16_5YR_B25106_with_ann!CQ260","v":12}]
["0600000US3301915060",3301915060,"060","Cornish",{"$f":"[1]ACS_16_5YR_B25106_with_ann!D261","v":741},{"$f":"[1]ACS_16_5YR_B25106_with_ann!E261","v":81},{"$f":"[1]ACS_16_5YR_B25106_with_ann!F261","v":686},{"$f":"[1]ACS_16_5YR_B25106_with_ann!G261","v":79},{"$f":"[1]ACS_16_5YR_B25106_with_ann!H261","v":52},{"$f":"[1]ACS_16_5YR_B25106_with_ann!I261","v":32},{"$f":"[1]ACS_16_5YR_B25106_with_ann!J261","v":11},{"$f":"[1]ACS_16_5YR_B25106_with_ann!K261","v":17},{"$f":"[1]ACS_16_5YR_B25106_with_ann!L261","v":0},{"$f":"[1]ACS_16_5YR_B25106_with_ann!M261","v":11},{"$f":"[1]ACS_16_5YR_B25106_with_ann!N261","v":41},{"$f":"[1]ACS_16_5YR_B25106_with_ann!O261","v":28},{"$f":"[1]ACS_16_5YR_B25106_with_ann!P261","v":64},{"$f":"[1]ACS_16_5YR_B25106_with_ann!Q261","v":35},{"$f":"[1]ACS_16_5YR_B25106_with_ann!R261","v":8},{"$f":"[1]ACS_16_5YR_B25106_with_ann!S261","v":13},{"$f":"[1]ACS_16_5YR_B25106_with_ann!T261","v":13},{"$f":"[1]ACS_16_5YR_B25106_with_ann!U261","v":16},{"$f":"[1]ACS_16_5YR_B25106_with_ann!V261","v":43},{"$f":"[1]ACS_16_5YR_B25106_with_ann!W261","v":29},{"$f":"[1]ACS_16_5YR_B25106_with_ann!X261","v":86},{"$f":"[1]ACS_16_5YR_B25106_with_ann!Y261","v":34},{"$f":"[1]ACS_16_5YR_B25106_with_ann!Z261","v":30},{"$f":"[1]ACS_16_5YR_B25106_with_ann!AA261","v":24},{"$f":"[1]ACS_16_5YR_B25106_with_ann!AB261","v":30},{"$f":"[1]ACS_16_5YR_B25106_with_ann!AC261","v":21},{"$f":"[1]ACS_16_5YR_B25106_with_ann!AD261","v":26},{"$f":"[1]ACS_16_5YR_B25106_with_ann!AE261","v":14},{"$f":"[1]ACS_16_5YR_B25106_with_ann!AF261","v":98},{"$f":"[1]ACS_16_5YR_B25106_with_ann!AG261","v":34},{"$f":"[1]ACS_16_5YR_B25106_with_ann!AH261","v":51},{"$f":"[1]ACS_16_5YR_B25106_with_ann!AI261","v":25},{"$f":"[1]ACS_16_5YR_B25106_with_ann!AJ261","v":14},{"$f":"[1]ACS_16_5YR_B25106_with_ann!AK261","v":9},{"$f":"[1]ACS_16_5YR_B25106_with_ann!AL261","v":33},{"$f":"[1]ACS_16_5YR_B25106_with_ann!AM261","v":24},{"$f":"[1]ACS_16_5YR_B25106_with_ann!AN261","v":386},{"$f":"[1]ACS_16_5YR_B25106_with_ann!AO261","v":62},{"$f":"[1]ACS_16_5YR_B25106_with_ann!AP261","v":267},{"$f":"[1]ACS_16_5YR_B25106_with_ann!AQ261","v":47},{"$f":"[1]ACS_16_5YR_B25106_with_ann!AR261","v":97},{"$f":"[1]ACS_16_5YR_B25106_with_ann!AS261","v":36},{"$f":"[1]ACS_16_5YR_B25106_with_ann!AT261","v":22},{"$f":"[1]ACS_16_5YR_B25106_with_ann!AU261","v":13},{"$f":"[1]ACS_16_5YR_B25106_with_ann!AV261","v":0},{"$f":"[1]ACS_16_5YR_B25106_with_ann!AW261","v":11},{"$f":"[1]ACS_16_5YR_B25106_with_ann!AX261","v":55},{"$f":"[1]ACS_16_5YR_B25106_with_ann!AY261","v":26},{"$f":"[1]ACS_16_5YR_B25106_with_ann!AZ261","v":16},{"$f":"[1]ACS_16_5YR_B25106_with_ann!BA261","v":10},{"$f":"[1]ACS_16_5YR_B25106_with_ann!BB261","v":0},{"$f":"[1]ACS_16_5YR_B25106_with_ann!BC261","v":11},{"$f":"[1]ACS_16_5YR_B25106_with_ann!BD261","v":0},{"$f":"[1]ACS_16_5YR_B25106_with_ann!BE261","v":11},{"$f":"[1]ACS_16_5YR_B25106_with_ann!BF262","v":3},{"$f":"[1]ACS_16_5YR_B25106_with_ann!BG262","v":4},{"$f":"[1]ACS_16_5YR_B25106_with_ann!BH262","v":5},{"$f":"[1]ACS_16_5YR_B25106_with_ann!BI262","v":6},{"$f":"[1]ACS_16_5YR_B25106_with_ann!BJ262","v":0},{"$f":"[1]ACS_16_5YR_B25106_with_ann!BK262","v":11},{"$f":"[1]ACS_16_5YR_B25106_with_ann!BL262","v":0},{"$f":"[1]ACS_16_5YR_B25106_with_ann!BM262","v":11},{"$f":"[1]ACS_16_5YR_B25106_with_ann!BN262","v":5},{"$f":"[1]ACS_16_5YR_B25106_with_ann!BO262","v":6},{"$f":"[1]ACS_16_5YR_B25106_with_ann!BP262","v":0},{"$f":"[1]ACS_16_5YR_B25106_with_ann!BQ262","v":11},{"$f":"[1]ACS_16_5YR_B25106_with_ann!BR262","v":0},{"$f":"[1]ACS_16_5YR_B25106_with_ann!BS262","v":11},{"$f":"[1]ACS_16_5YR_B25106_with_ann!BT262","v":0},{"$f":"[1]ACS_16_5YR_B25106_with_ann!BU262","v":11},{"$f":"[1]ACS_16_5YR_B25106_with_ann!BV262","v":0},{"$f":"[1]ACS_16_5YR_B25106_with_ann!BW262","v":11},{"$f":"[1]ACS_16_5YR_B25106_with_ann!BX262","v":15},{"$f":"[1]ACS_16_5YR_B25106_with_ann!BY262","v":15},{"$f":"[1]ACS_16_5YR_B25106_with_ann!BZ262","v":6},{"$f":"[1]ACS_16_5YR_B25106_with_ann!CA262","v":9},{"$f":"[1]ACS_16_5YR_B25106_with_ann!CB262","v":9},{"$f":"[1]ACS_16_5YR_B25106_with_ann!CC262","v":12},{"$f":"[1]ACS_16_5YR_B25106_with_ann!CD262","v":0},{"$f":"[1]ACS_16_5YR_B25106_with_ann!CE262","v":11},{"$f":"[1]ACS_16_5YR_B25106_with_ann!CF262","v":6},{"$f":"[1]ACS_16_5YR_B25106_with_ann!CG262","v":10},{"$f":"[1]ACS_16_5YR_B25106_with_ann!CH262","v":6},{"$f":"[1]ACS_16_5YR_B25106_with_ann!CI262","v":10},{"$f":"[1]ACS_16_5YR_B25106_with_ann!CJ262","v":0},{"$f":"[1]ACS_16_5YR_B25106_with_ann!CK262","v":11},{"$f":"[1]ACS_16_5YR_B25106_with_ann!CL262","v":0},{"$f":"[1]ACS_16_5YR_B25106_with_ann!CM262","v":11},{"$f":"[1]ACS_16_5YR_B25106_with_ann!CN262","v":5},{"$f":"[1]ACS_16_5YR_B25106_with_ann!CO262","v":10},{"$f":"[1]ACS_16_5YR_B25106_with_ann!CP262","v":2},{"$f":"[1]ACS_16_5YR_B25106_with_ann!CQ262","v":4}]
["0600000US3301916340",3301916340,"060","Croydon",{"$f":"[1]ACS_16_5YR_B25106_with_ann!D262","v":293},{"$f":"[1]ACS_16_5YR_B25106_with_ann!E262","v":56},{"$f":"[1]ACS_16_5YR_B25106_with_ann!F262","v":257},{"$f":"[1]ACS_16_5YR_B25106_with_ann!G262","v":53},{"$f":"[1]ACS_16_5YR_B25106_with_ann!H262","v":24},{"$f":"[1]ACS_16_5YR_B25106_with_ann!I262","v":19},{"$f":"[1]ACS_16_5YR_B25106_with_ann!J262","v":0},{"$f":"[1]ACS_16_5YR_B25106_with_ann!K262","v":11},{"$f":"[1]ACS_16_5YR_B25106_with_ann!L262","v":0},{"$f":"[1]ACS_16_5YR_B25106_with_ann!M262","v":11},{"$f":"[1]ACS_16_5YR_B25106_with_ann!N262","v":24},{"$f":"[1]ACS_16_5YR_B25106_with_ann!O262","v":19},{"$f":"[1]ACS_16_5YR_B25106_with_ann!P262","v":26},{"$f":"[1]ACS_16_5YR_B25106_with_ann!Q262","v":12},{"$f":"[1]ACS_16_5YR_B25106_with_ann!R262","v":10},{"$f":"[1]ACS_16_5YR_B25106_with_ann!S262","v":9},{"$f":"[1]ACS_16_5YR_B25106_with_ann!T262","v":6},{"$f":"[1]ACS_16_5YR_B25106_with_ann!U262","v":6},{"$f":"[1]ACS_16_5YR_B25106_with_ann!V262","v":10},{"$f":"[1]ACS_16_5YR_B25106_with_ann!W262","v":8},{"$f":"[1]ACS_16_5YR_B25106_with_ann!X262","v":30},{"$f":"[1]ACS_16_5YR_B25106_with_ann!Y262","v":18},{"$f":"[1]ACS_16_5YR_B25106_with_ann!Z262","v":9},{"$f":"[1]ACS_16_5YR_B25106_with_ann!AA262","v":7},{"$f":"[1]ACS_16_5YR_B25106_with_ann!AB262","v":11},{"$f":"[1]ACS_16_5YR_B25106_with_ann!AC262","v":13},{"$f":"[1]ACS_16_5YR_B25106_with_ann!AD262","v":10},{"$f":"[1]ACS_16_5YR_B25106_with_ann!AE262","v":8},{"$f":"[1]ACS_16_5YR_B25106_with_ann!AF262","v":36},{"$f":"[1]ACS_16_5YR_B25106_with_ann!AG262","v":17},{"$f":"[1]ACS_16_5YR_B25106_with_ann!AH262","v":21},{"$f":"[1]ACS_16_5YR_B25106_with_ann!AI262","v":16},{"$f":"[1]ACS_16_5YR_B25106_with_ann!AJ262","v":10},{"$f":"[1]ACS_16_5YR_B25106_with_ann!AK262","v":6},{"$f":"[1]ACS_16_5YR_B25106_with_ann!AL262","v":5},{"$f":"[1]ACS_16_5YR_B25106_with_ann!AM262","v":6},{"$f":"[1]ACS_16_5YR_B25106_with_ann!AN262","v":141},{"$f":"[1]ACS_16_5YR_B25106_with_ann!AO262","v":41},{"$f":"[1]ACS_16_5YR_B25106_with_ann!AP262","v":115},{"$f":"[1]ACS_16_5YR_B25106_with_ann!AQ262","v":38},{"$f":"[1]ACS_16_5YR_B25106_with_ann!AR262","v":17},{"$f":"[1]ACS_16_5YR_B25106_with_ann!AS262","v":11},{"$f":"[1]ACS_16_5YR_B25106_with_ann!AT262","v":9},{"$f":"[1]ACS_16_5YR_B25106_with_ann!AU262","v":9},{"$f":"[1]ACS_16_5YR_B25106_with_ann!AV262","v":0},{"$f":"[1]ACS_16_5YR_B25106_with_ann!AW262","v":11},{"$f":"[1]ACS_16_5YR_B25106_with_ann!AX262","v":36},{"$f":"[1]ACS_16_5YR_B25106_with_ann!AY262","v":22},{"$f":"[1]ACS_16_5YR_B25106_with_ann!AZ262","v":3},{"$f":"[1]ACS_16_5YR_B25106_with_ann!BA262","v":4},{"$f":"[1]ACS_16_5YR_B25106_with_ann!BB262","v":0},{"$f":"[1]ACS_16_5YR_B25106_with_ann!BC262","v":11},{"$f":"[1]ACS_16_5YR_B25106_with_ann!BD262","v":0},{"$f":"[1]ACS_16_5YR_B25106_with_ann!BE262","v":11},{"$f":"[1]ACS_16_5YR_B25106_with_ann!BF263","v":9},{"$f":"[1]ACS_16_5YR_B25106_with_ann!BG263","v":10},{"$f":"[1]ACS_16_5YR_B25106_with_ann!BH263","v":0},{"$f":"[1]ACS_16_5YR_B25106_with_ann!BI263","v":11},{"$f":"[1]ACS_16_5YR_B25106_with_ann!BJ263","v":0},{"$f":"[1]ACS_16_5YR_B25106_with_ann!BK263","v":11},{"$f":"[1]ACS_16_5YR_B25106_with_ann!BL263","v":0},{"$f":"[1]ACS_16_5YR_B25106_with_ann!BM263","v":11},{"$f":"[1]ACS_16_5YR_B25106_with_ann!BN263","v":0},{"$f":"[1]ACS_16_5YR_B25106_with_ann!BO263","v":11},{"$f":"[1]ACS_16_5YR_B25106_with_ann!BP263","v":8},{"$f":"[1]ACS_16_5YR_B25106_with_ann!BQ263","v":12},{"$f":"[1]ACS_16_5YR_B25106_with_ann!BR263","v":0},{"$f":"[1]ACS_16_5YR_B25106_with_ann!BS263","v":11},{"$f":"[1]ACS_16_5YR_B25106_with_ann!BT263","v":0},{"$f":"[1]ACS_16_5YR_B25106_with_ann!BU263","v":11},{"$f":"[1]ACS_16_5YR_B25106_with_ann!BV263","v":8},{"$f":"[1]ACS_16_5YR_B25106_with_ann!BW263","v":12},{"$f":"[1]ACS_16_5YR_B25106_with_ann!BX263","v":13},{"$f":"[1]ACS_16_5YR_B25106_with_ann!BY263","v":15},{"$f":"[1]ACS_16_5YR_B25106_with_ann!BZ263","v":6},{"$f":"[1]ACS_16_5YR_B25106_with_ann!CA263","v":9},{"$f":"[1]ACS_16_5YR_B25106_with_ann!CB263","v":7},{"$f":"[1]ACS_16_5YR_B25106_with_ann!CC263","v":13},{"$f":"[1]ACS_16_5YR_B25106_with_ann!CD263","v":0},{"$f":"[1]ACS_16_5YR_B25106_with_ann!CE263","v":11},{"$f":"[1]ACS_16_5YR_B25106_with_ann!CF263","v":8},{"$f":"[1]ACS_16_5YR_B25106_with_ann!CG263","v":7},{"$f":"[1]ACS_16_5YR_B25106_with_ann!CH263","v":8},{"$f":"[1]ACS_16_5YR_B25106_with_ann!CI263","v":7},{"$f":"[1]ACS_16_5YR_B25106_with_ann!CJ263","v":0},{"$f":"[1]ACS_16_5YR_B25106_with_ann!CK263","v":11},{"$f":"[1]ACS_16_5YR_B25106_with_ann!CL263","v":0},{"$f":"[1]ACS_16_5YR_B25106_with_ann!CM263","v":11},{"$f":"[1]ACS_16_5YR_B25106_with_ann!CN263","v":6},{"$f":"[1]ACS_16_5YR_B25106_with_ann!CO263","v":9},{"$f":"[1]ACS_16_5YR_B25106_with_ann!CP263","v":10},{"$f":"[1]ACS_16_5YR_B25106_with_ann!CQ263","v":7}]
["0600000US3301930500",3301930500,"060","Goshen",{"$f":"[1]ACS_16_5YR_B25106_with_ann!D263","v":277},{"$f":"[1]ACS_16_5YR_B25106_with_ann!E263","v":39},{"$f":"[1]ACS_16_5YR_B25106_with_ann!F263","v":223},{"$f":"[1]ACS_16_5YR_B25106_with_ann!G263","v":35},{"$f":"[1]ACS_16_5YR_B25106_with_ann!H263","v":17},{"$f":"[1]ACS_16_5YR_B25106_with_ann!I263","v":12},{"$f":"[1]ACS_16_5YR_B25106_with_ann!J263","v":6},{"$f":"[1]ACS_16_5YR_B25106_with_ann!K263","v":9},{"$f":"[1]ACS_16_5YR_B25106_with_ann!L263","v":0},{"$f":"[1]ACS_16_5YR_B25106_with_ann!M263","v":11},{"$f":"[1]ACS_16_5YR_B25106_with_ann!N263","v":11},{"$f":"[1]ACS_16_5YR_B25106_with_ann!O263","v":7},{"$f":"[1]ACS_16_5YR_B25106_with_ann!P263","v":20},{"$f":"[1]ACS_16_5YR_B25106_with_ann!Q263","v":15},{"$f":"[1]ACS_16_5YR_B25106_with_ann!R263","v":0},{"$f":"[1]ACS_16_5YR_B25106_with_ann!S263","v":11},{"$f":"[1]ACS_16_5YR_B25106_with_ann!T263","v":11},{"$f":"[1]ACS_16_5YR_B25106_with_ann!U263","v":11},{"$f":"[1]ACS_16_5YR_B25106_with_ann!V263","v":9},{"$f":"[1]ACS_16_5YR_B25106_with_ann!W263","v":9},{"$f":"[1]ACS_16_5YR_B25106_with_ann!X263","v":26},{"$f":"[1]ACS_16_5YR_B25106_with_ann!Y263","v":16},{"$f":"[1]ACS_16_5YR_B25106_with_ann!Z263","v":7},{"$f":"[1]ACS_16_5YR_B25106_with_ann!AA263","v":7},{"$f":"[1]ACS_16_5YR_B25106_with_ann!AB263","v":2},{"$f":"[1]ACS_16_5YR_B25106_with_ann!AC263","v":3},{"$f":"[1]ACS_16_5YR_B25106_with_ann!AD263","v":17},{"$f":"[1]ACS_16_5YR_B25106_with_ann!AE263","v":13},{"$f":"[1]ACS_16_5YR_B25106_with_ann!AF263","v":62},{"$f":"[1]ACS_16_5YR_B25106_with_ann!AG263","v":26},{"$f":"[1]ACS_16_5YR_B25106_with_ann!AH263","v":6},{"$f":"[1]ACS_16_5YR_B25106_with_ann!AI263","v":5},{"$f":"[1]ACS_16_5YR_B25106_with_ann!AJ263","v":30},{"$f":"[1]ACS_16_5YR_B25106_with_ann!AK263","v":16},{"$f":"[1]ACS_16_5YR_B25106_with_ann!AL263","v":26},{"$f":"[1]ACS_16_5YR_B25106_with_ann!AM263","v":19},{"$f":"[1]ACS_16_5YR_B25106_with_ann!AN263","v":96},{"$f":"[1]ACS_16_5YR_B25106_with_ann!AO263","v":24},{"$f":"[1]ACS_16_5YR_B25106_with_ann!AP263","v":80},{"$f":"[1]ACS_16_5YR_B25106_with_ann!AQ263","v":23},{"$f":"[1]ACS_16_5YR_B25106_with_ann!AR263","v":14},{"$f":"[1]ACS_16_5YR_B25106_with_ann!AS263","v":8},{"$f":"[1]ACS_16_5YR_B25106_with_ann!AT263","v":2},{"$f":"[1]ACS_16_5YR_B25106_with_ann!AU263","v":3},{"$f":"[1]ACS_16_5YR_B25106_with_ann!AV263","v":2},{"$f":"[1]ACS_16_5YR_B25106_with_ann!AW263","v":3},{"$f":"[1]ACS_16_5YR_B25106_with_ann!AX263","v":54},{"$f":"[1]ACS_16_5YR_B25106_with_ann!AY263","v":23},{"$f":"[1]ACS_16_5YR_B25106_with_ann!AZ263","v":9},{"$f":"[1]ACS_16_5YR_B25106_with_ann!BA263","v":10},{"$f":"[1]ACS_16_5YR_B25106_with_ann!BB263","v":0},{"$f":"[1]ACS_16_5YR_B25106_with_ann!BC263","v":11},{"$f":"[1]ACS_16_5YR_B25106_with_ann!BD263","v":0},{"$f":"[1]ACS_16_5YR_B25106_with_ann!BE263","v":11},{"$f":"[1]ACS_16_5YR_B25106_with_ann!BF264","v":0},{"$f":"[1]ACS_16_5YR_B25106_with_ann!BG264","v":11},{"$f":"[1]ACS_16_5YR_B25106_with_ann!BH264","v":0},{"$f":"[1]ACS_16_5YR_B25106_with_ann!BI264","v":11},{"$f":"[1]ACS_16_5YR_B25106_with_ann!BJ264","v":0},{"$f":"[1]ACS_16_5YR_B25106_with_ann!BK264","v":11},{"$f":"[1]ACS_16_5YR_B25106_with_ann!BL264","v":0},{"$f":"[1]ACS_16_5YR_B25106_with_ann!BM264","v":11},{"$f":"[1]ACS_16_5YR_B25106_with_ann!BN264","v":0},{"$f":"[1]ACS_16_5YR_B25106_with_ann!BO264","v":11},{"$f":"[1]ACS_16_5YR_B25106_with_ann!BP264","v":0},{"$f":"[1]ACS_16_5YR_B25106_with_ann!BQ264","v":11},{"$f":"[1]ACS_16_5YR_B25106_with_ann!BR264","v":0},{"$f":"[1]ACS_16_5YR_B25106_with_ann!BS264","v":11},{"$f":"[1]ACS_16_5YR_B25106_with_ann!BT264","v":0},{"$f":"[1]ACS_16_5YR_B25106_with_ann!BU264","v":11},{"$f":"[1]ACS_16_5YR_B25106_with_ann!BV264","v":0},{"$f":"[1]ACS_16_5YR_B25106_with_ann!BW264","v":11},{"$f":"[1]ACS_16_5YR_B25106_with_ann!BX264","v":40},{"$f":"[1]ACS_16_5YR_B25106_with_ann!BY264","v":35},{"$f":"[1]ACS_16_5YR_B25106_with_ann!BZ264","v":23},{"$f":"[1]ACS_16_5YR_B25106_with_ann!CA264","v":37},{"$f":"[1]ACS_16_5YR_B25106_with_ann!CB264","v":0},{"$f":"[1]ACS_16_5YR_B25106_with_ann!CC264","v":11},{"$f":"[1]ACS_16_5YR_B25106_with_ann!CD264","v":17},{"$f":"[1]ACS_16_5YR_B25106_with_ann!CE264","v":24},{"$f":"[1]ACS_16_5YR_B25106_with_ann!CF264","v":100},{"$f":"[1]ACS_16_5YR_B25106_with_ann!CG264","v":75},{"$f":"[1]ACS_16_5YR_B25106_with_ann!CH264","v":100},{"$f":"[1]ACS_16_5YR_B25106_with_ann!CI264","v":75},{"$f":"[1]ACS_16_5YR_B25106_with_ann!CJ264","v":0},{"$f":"[1]ACS_16_5YR_B25106_with_ann!CK264","v":11},{"$f":"[1]ACS_16_5YR_B25106_with_ann!CL264","v":0},{"$f":"[1]ACS_16_5YR_B25106_with_ann!CM264","v":11},{"$f":"[1]ACS_16_5YR_B25106_with_ann!CN264","v":0},{"$f":"[1]ACS_16_5YR_B25106_with_ann!CO264","v":11},{"$f":"[1]ACS_16_5YR_B25106_with_ann!CP264","v":0},{"$f":"[1]ACS_16_5YR_B25106_with_ann!CQ264","v":11}]
["0600000US3301931220",3301931220,"060","Grantham",{"$f":"[1]ACS_16_5YR_B25106_with_ann!D264","v":1222},{"$f":"[1]ACS_16_5YR_B25106_with_ann!E264","v":142},{"$f":"[1]ACS_16_5YR_B25106_with_ann!F264","v":1082},{"$f":"[1]ACS_16_5YR_B25106_with_ann!G264","v":164},{"$f":"[1]ACS_16_5YR_B25106_with_ann!H264","v":45},{"$f":"[1]ACS_16_5YR_B25106_with_ann!I264","v":48},{"$f":"[1]ACS_16_5YR_B25106_with_ann!J264","v":0},{"$f":"[1]ACS_16_5YR_B25106_with_ann!K264","v":11},{"$f":"[1]ACS_16_5YR_B25106_with_ann!L264","v":0},{"$f":"[1]ACS_16_5YR_B25106_with_ann!M264","v":11},{"$f":"[1]ACS_16_5YR_B25106_with_ann!N264","v":45},{"$f":"[1]ACS_16_5YR_B25106_with_ann!O264","v":48},{"$f":"[1]ACS_16_5YR_B25106_with_ann!P264","v":91},{"$f":"[1]ACS_16_5YR_B25106_with_ann!Q264","v":76},{"$f":"[1]ACS_16_5YR_B25106_with_ann!R264","v":0},{"$f":"[1]ACS_16_5YR_B25106_with_ann!S264","v":11},{"$f":"[1]ACS_16_5YR_B25106_with_ann!T264","v":0},{"$f":"[1]ACS_16_5YR_B25106_with_ann!U264","v":11},{"$f":"[1]ACS_16_5YR_B25106_with_ann!V264","v":91},{"$f":"[1]ACS_16_5YR_B25106_with_ann!W264","v":76},{"$f":"[1]ACS_16_5YR_B25106_with_ann!X264","v":108},{"$f":"[1]ACS_16_5YR_B25106_with_ann!Y264","v":106},{"$f":"[1]ACS_16_5YR_B25106_with_ann!Z264","v":17},{"$f":"[1]ACS_16_5YR_B25106_with_ann!AA264","v":25},{"$f":"[1]ACS_16_5YR_B25106_with_ann!AB264","v":42},{"$f":"[1]ACS_16_5YR_B25106_with_ann!AC264","v":66},{"$f":"[1]ACS_16_5YR_B25106_with_ann!AD264","v":49},{"$f":"[1]ACS_16_5YR_B25106_with_ann!AE264","v":80},{"$f":"[1]ACS_16_5YR_B25106_with_ann!AF264","v":173},{"$f":"[1]ACS_16_5YR_B25106_with_ann!AG264","v":89},{"$f":"[1]ACS_16_5YR_B25106_with_ann!AH264","v":29},{"$f":"[1]ACS_16_5YR_B25106_with_ann!AI264","v":34},{"$f":"[1]ACS_16_5YR_B25106_with_ann!AJ264","v":33},{"$f":"[1]ACS_16_5YR_B25106_with_ann!AK264","v":47},{"$f":"[1]ACS_16_5YR_B25106_with_ann!AL264","v":111},{"$f":"[1]ACS_16_5YR_B25106_with_ann!AM264","v":71},{"$f":"[1]ACS_16_5YR_B25106_with_ann!AN264","v":665},{"$f":"[1]ACS_16_5YR_B25106_with_ann!AO264","v":129},{"$f":"[1]ACS_16_5YR_B25106_with_ann!AP264","v":502},{"$f":"[1]ACS_16_5YR_B25106_with_ann!AQ264","v":112},{"$f":"[1]ACS_16_5YR_B25106_with_ann!AR264","v":124},{"$f":"[1]ACS_16_5YR_B25106_with_ann!AS264","v":80},{"$f":"[1]ACS_16_5YR_B25106_with_ann!AT264","v":39},{"$f":"[1]ACS_16_5YR_B25106_with_ann!AU264","v":39},{"$f":"[1]ACS_16_5YR_B25106_with_ann!AV264","v":0},{"$f":"[1]ACS_16_5YR_B25106_with_ann!AW264","v":11},{"$f":"[1]ACS_16_5YR_B25106_with_ann!AX264","v":140},{"$f":"[1]ACS_16_5YR_B25106_with_ann!AY264","v":79},{"$f":"[1]ACS_16_5YR_B25106_with_ann!AZ264","v":0},{"$f":"[1]ACS_16_5YR_B25106_with_ann!BA264","v":11},{"$f":"[1]ACS_16_5YR_B25106_with_ann!BB264","v":0},{"$f":"[1]ACS_16_5YR_B25106_with_ann!BC264","v":11},{"$f":"[1]ACS_16_5YR_B25106_with_ann!BD264","v":0},{"$f":"[1]ACS_16_5YR_B25106_with_ann!BE264","v":11},{"$f":"[1]ACS_16_5YR_B25106_with_ann!BF265","v":6},{"$f":"[1]ACS_16_5YR_B25106_with_ann!BG265","v":10},{"$f":"[1]ACS_16_5YR_B25106_with_ann!BH265","v":2},{"$f":"[1]ACS_16_5YR_B25106_with_ann!BI265","v":3},{"$f":"[1]ACS_16_5YR_B25106_with_ann!BJ265","v":0},{"$f":"[1]ACS_16_5YR_B25106_with_ann!BK265","v":11},{"$f":"[1]ACS_16_5YR_B25106_with_ann!BL265","v":0},{"$f":"[1]ACS_16_5YR_B25106_with_ann!BM265","v":11},{"$f":"[1]ACS_16_5YR_B25106_with_ann!BN265","v":2},{"$f":"[1]ACS_16_5YR_B25106_with_ann!BO265","v":3},{"$f":"[1]ACS_16_5YR_B25106_with_ann!BP265","v":10},{"$f":"[1]ACS_16_5YR_B25106_with_ann!BQ265","v":10},{"$f":"[1]ACS_16_5YR_B25106_with_ann!BR265","v":0},{"$f":"[1]ACS_16_5YR_B25106_with_ann!BS265","v":11},{"$f":"[1]ACS_16_5YR_B25106_with_ann!BT265","v":6},{"$f":"[1]ACS_16_5YR_B25106_with_ann!BU265","v":10},{"$f":"[1]ACS_16_5YR_B25106_with_ann!BV265","v":4},{"$f":"[1]ACS_16_5YR_B25106_with_ann!BW265","v":4},{"$f":"[1]ACS_16_5YR_B25106_with_ann!BX265","v":13},{"$f":"[1]ACS_16_5YR_B25106_with_ann!BY265","v":14},{"$f":"[1]ACS_16_5YR_B25106_with_ann!BZ265","v":7},{"$f":"[1]ACS_16_5YR_B25106_with_ann!CA265","v":11},{"$f":"[1]ACS_16_5YR_B25106_with_ann!CB265","v":6},{"$f":"[1]ACS_16_5YR_B25106_with_ann!CC265","v":9},{"$f":"[1]ACS_16_5YR_B25106_with_ann!CD265","v":0},{"$f":"[1]ACS_16_5YR_B25106_with_ann!CE265","v":11},{"$f":"[1]ACS_16_5YR_B25106_with_ann!CF265","v":5},{"$f":"[1]ACS_16_5YR_B25106_with_ann!CG265","v":8},{"$f":"[1]ACS_16_5YR_B25106_with_ann!CH265","v":5},{"$f":"[1]ACS_16_5YR_B25106_with_ann!CI265","v":8},{"$f":"[1]ACS_16_5YR_B25106_with_ann!CJ265","v":0},{"$f":"[1]ACS_16_5YR_B25106_with_ann!CK265","v":11},{"$f":"[1]ACS_16_5YR_B25106_with_ann!CL265","v":0},{"$f":"[1]ACS_16_5YR_B25106_with_ann!CM265","v":11},{"$f":"[1]ACS_16_5YR_B25106_with_ann!CN265","v":0},{"$f":"[1]ACS_16_5YR_B25106_with_ann!CO265","v":11},{"$f":"[1]ACS_16_5YR_B25106_with_ann!CP265","v":3},{"$f":"[1]ACS_16_5YR_B25106_with_ann!CQ265","v":4}]
["0600000US3301940900",3301940900,"060","Langdon",{"$f":"[1]ACS_16_5YR_B25106_with_ann!D265","v":257},{"$f":"[1]ACS_16_5YR_B25106_with_ann!E265","v":47},{"$f":"[1]ACS_16_5YR_B25106_with_ann!F265","v":218},{"$f":"[1]ACS_16_5YR_B25106_with_ann!G265","v":44},{"$f":"[1]ACS_16_5YR_B25106_with_ann!H265","v":16},{"$f":"[1]ACS_16_5YR_B25106_with_ann!I265","v":14},{"$f":"[1]ACS_16_5YR_B25106_with_ann!J265","v":0},{"$f":"[1]ACS_16_5YR_B25106_with_ann!K265","v":11},{"$f":"[1]ACS_16_5YR_B25106_with_ann!L265","v":0},{"$f":"[1]ACS_16_5YR_B25106_with_ann!M265","v":11},{"$f":"[1]ACS_16_5YR_B25106_with_ann!N265","v":16},{"$f":"[1]ACS_16_5YR_B25106_with_ann!O265","v":14},{"$f":"[1]ACS_16_5YR_B25106_with_ann!P265","v":20},{"$f":"[1]ACS_16_5YR_B25106_with_ann!Q265","v":11},{"$f":"[1]ACS_16_5YR_B25106_with_ann!R265","v":5},{"$f":"[1]ACS_16_5YR_B25106_with_ann!S265","v":5},{"$f":"[1]ACS_16_5YR_B25106_with_ann!T265","v":6},{"$f":"[1]ACS_16_5YR_B25106_with_ann!U265","v":7},{"$f":"[1]ACS_16_5YR_B25106_with_ann!V265","v":9},{"$f":"[1]ACS_16_5YR_B25106_with_ann!W265","v":7},{"$f":"[1]ACS_16_5YR_B25106_with_ann!X265","v":15},{"$f":"[1]ACS_16_5YR_B25106_with_ann!Y265","v":13},{"$f":"[1]ACS_16_5YR_B25106_with_ann!Z265","v":9},{"$f":"[1]ACS_16_5YR_B25106_with_ann!AA265","v":11},{"$f":"[1]ACS_16_5YR_B25106_with_ann!AB265","v":3},{"$f":"[1]ACS_16_5YR_B25106_with_ann!AC265","v":4},{"$f":"[1]ACS_16_5YR_B25106_with_ann!AD265","v":3},{"$f":"[1]ACS_16_5YR_B25106_with_ann!AE265","v":4},{"$f":"[1]ACS_16_5YR_B25106_with_ann!AF265","v":40},{"$f":"[1]ACS_16_5YR_B25106_with_ann!AG265","v":19},{"$f":"[1]ACS_16_5YR_B25106_with_ann!AH265","v":21},{"$f":"[1]ACS_16_5YR_B25106_with_ann!AI265","v":15},{"$f":"[1]ACS_16_5YR_B25106_with_ann!AJ265","v":15},{"$f":"[1]ACS_16_5YR_B25106_with_ann!AK265","v":11},{"$f":"[1]ACS_16_5YR_B25106_with_ann!AL265","v":4},{"$f":"[1]ACS_16_5YR_B25106_with_ann!AM265","v":4},{"$f":"[1]ACS_16_5YR_B25106_with_ann!AN265","v":127},{"$f":"[1]ACS_16_5YR_B25106_with_ann!AO265","v":36},{"$f":"[1]ACS_16_5YR_B25106_with_ann!AP265","v":87},{"$f":"[1]ACS_16_5YR_B25106_with_ann!AQ265","v":31},{"$f":"[1]ACS_16_5YR_B25106_with_ann!AR265","v":35},{"$f":"[1]ACS_16_5YR_B25106_with_ann!AS265","v":13},{"$f":"[1]ACS_16_5YR_B25106_with_ann!AT265","v":5},{"$f":"[1]ACS_16_5YR_B25106_with_ann!AU265","v":5},{"$f":"[1]ACS_16_5YR_B25106_with_ann!AV265","v":0},{"$f":"[1]ACS_16_5YR_B25106_with_ann!AW265","v":11},{"$f":"[1]ACS_16_5YR_B25106_with_ann!AX265","v":39},{"$f":"[1]ACS_16_5YR_B25106_with_ann!AY265","v":21},{"$f":"[1]ACS_16_5YR_B25106_with_ann!AZ265","v":6},{"$f":"[1]ACS_16_5YR_B25106_with_ann!BA265","v":10},{"$f":"[1]ACS_16_5YR_B25106_with_ann!BB265","v":0},{"$f":"[1]ACS_16_5YR_B25106_with_ann!BC265","v":11},{"$f":"[1]ACS_16_5YR_B25106_with_ann!BD265","v":0},{"$f":"[1]ACS_16_5YR_B25106_with_ann!BE265","v":11},{"$f":"[1]ACS_16_5YR_B25106_with_ann!BF266","v":0},{"$f":"[1]ACS_16_5YR_B25106_with_ann!BG266","v":11},{"$f":"[1]ACS_16_5YR_B25106_with_ann!BH266","v":0},{"$f":"[1]ACS_16_5YR_B25106_with_ann!BI266","v":11},{"$f":"[1]ACS_16_5YR_B25106_with_ann!BJ266","v":0},{"$f":"[1]ACS_16_5YR_B25106_with_ann!BK266","v":11},{"$f":"[1]ACS_16_5YR_B25106_with_ann!BL266","v":0},{"$f":"[1]ACS_16_5YR_B25106_with_ann!BM266","v":11},{"$f":"[1]ACS_16_5YR_B25106_with_ann!BN266","v":0},{"$f":"[1]ACS_16_5YR_B25106_with_ann!BO266","v":11},{"$f":"[1]ACS_16_5YR_B25106_with_ann!BP266","v":12},{"$f":"[1]ACS_16_5YR_B25106_with_ann!BQ266","v":8},{"$f":"[1]ACS_16_5YR_B25106_with_ann!BR266","v":4},{"$f":"[1]ACS_16_5YR_B25106_with_ann!BS266","v":5},{"$f":"[1]ACS_16_5YR_B25106_with_ann!BT266","v":5},{"$f":"[1]ACS_16_5YR_B25106_with_ann!BU266","v":5},{"$f":"[1]ACS_16_5YR_B25106_with_ann!BV266","v":3},{"$f":"[1]ACS_16_5YR_B25106_with_ann!BW266","v":5},{"$f":"[1]ACS_16_5YR_B25106_with_ann!BX266","v":12},{"$f":"[1]ACS_16_5YR_B25106_with_ann!BY266","v":14},{"$f":"[1]ACS_16_5YR_B25106_with_ann!BZ266","v":3},{"$f":"[1]ACS_16_5YR_B25106_with_ann!CA266","v":4},{"$f":"[1]ACS_16_5YR_B25106_with_ann!CB266","v":9},{"$f":"[1]ACS_16_5YR_B25106_with_ann!CC266","v":13},{"$f":"[1]ACS_16_5YR_B25106_with_ann!CD266","v":0},{"$f":"[1]ACS_16_5YR_B25106_with_ann!CE266","v":11},{"$f":"[1]ACS_16_5YR_B25106_with_ann!CF266","v":0},{"$f":"[1]ACS_16_5YR_B25106_with_ann!CG266","v":11},{"$f":"[1]ACS_16_5YR_B25106_with_ann!CH266","v":0},{"$f":"[1]ACS_16_5YR_B25106_with_ann!CI266","v":11},{"$f":"[1]ACS_16_5YR_B25106_with_ann!CJ266","v":0},{"$f":"[1]ACS_16_5YR_B25106_with_ann!CK266","v":11},{"$f":"[1]ACS_16_5YR_B25106_with_ann!CL266","v":0},{"$f":"[1]ACS_16_5YR_B25106_with_ann!CM266","v":11},{"$f":"[1]ACS_16_5YR_B25106_with_ann!CN266","v":0},{"$f":"[1]ACS_16_5YR_B25106_with_ann!CO266","v":11},{"$f":"[1]ACS_16_5YR_B25106_with_ann!CP266","v":2},{"$f":"[1]ACS_16_5YR_B25106_with_ann!CQ266","v":3}]
["0600000US3301941700",3301941700,"060","Lempster",{"$f":"[1]ACS_16_5YR_B25106_with_ann!D266","v":393},{"$f":"[1]ACS_16_5YR_B25106_with_ann!E266","v":59},{"$f":"[1]ACS_16_5YR_B25106_with_ann!F266","v":367},{"$f":"[1]ACS_16_5YR_B25106_with_ann!G266","v":61},{"$f":"[1]ACS_16_5YR_B25106_with_ann!H266","v":28},{"$f":"[1]ACS_16_5YR_B25106_with_ann!I266","v":19},{"$f":"[1]ACS_16_5YR_B25106_with_ann!J266","v":0},{"$f":"[1]ACS_16_5YR_B25106_with_ann!K266","v":11},{"$f":"[1]ACS_16_5YR_B25106_with_ann!L266","v":0},{"$f":"[1]ACS_16_5YR_B25106_with_ann!M266","v":11},{"$f":"[1]ACS_16_5YR_B25106_with_ann!N266","v":28},{"$f":"[1]ACS_16_5YR_B25106_with_ann!O266","v":19},{"$f":"[1]ACS_16_5YR_B25106_with_ann!P266","v":46},{"$f":"[1]ACS_16_5YR_B25106_with_ann!Q266","v":23},{"$f":"[1]ACS_16_5YR_B25106_with_ann!R266","v":0},{"$f":"[1]ACS_16_5YR_B25106_with_ann!S266","v":11},{"$f":"[1]ACS_16_5YR_B25106_with_ann!T266","v":19},{"$f":"[1]ACS_16_5YR_B25106_with_ann!U266","v":18},{"$f":"[1]ACS_16_5YR_B25106_with_ann!V266","v":27},{"$f":"[1]ACS_16_5YR_B25106_with_ann!W266","v":15},{"$f":"[1]ACS_16_5YR_B25106_with_ann!X266","v":58},{"$f":"[1]ACS_16_5YR_B25106_with_ann!Y266","v":30},{"$f":"[1]ACS_16_5YR_B25106_with_ann!Z266","v":26},{"$f":"[1]ACS_16_5YR_B25106_with_ann!AA266","v":19},{"$f":"[1]ACS_16_5YR_B25106_with_ann!AB266","v":23},{"$f":"[1]ACS_16_5YR_B25106_with_ann!AC266","v":20},{"$f":"[1]ACS_16_5YR_B25106_with_ann!AD266","v":9},{"$f":"[1]ACS_16_5YR_B25106_with_ann!AE266","v":8},{"$f":"[1]ACS_16_5YR_B25106_with_ann!AF266","v":43},{"$f":"[1]ACS_16_5YR_B25106_with_ann!AG266","v":25},{"$f":"[1]ACS_16_5YR_B25106_with_ann!AH266","v":23},{"$f":"[1]ACS_16_5YR_B25106_with_ann!AI266","v":20},{"$f":"[1]ACS_16_5YR_B25106_with_ann!AJ266","v":7},{"$f":"[1]ACS_16_5YR_B25106_with_ann!AK266","v":7},{"$f":"[1]ACS_16_5YR_B25106_with_ann!AL266","v":13},{"$f":"[1]ACS_16_5YR_B25106_with_ann!AM266","v":16},{"$f":"[1]ACS_16_5YR_B25106_with_ann!AN266","v":181},{"$f":"[1]ACS_16_5YR_B25106_with_ann!AO266","v":49},{"$f":"[1]ACS_16_5YR_B25106_with_ann!AP266","v":129},{"$f":"[1]ACS_16_5YR_B25106_with_ann!AQ266","v":48},{"$f":"[1]ACS_16_5YR_B25106_with_ann!AR266","v":38},{"$f":"[1]ACS_16_5YR_B25106_with_ann!AS266","v":22},{"$f":"[1]ACS_16_5YR_B25106_with_ann!AT266","v":14},{"$f":"[1]ACS_16_5YR_B25106_with_ann!AU266","v":12},{"$f":"[1]ACS_16_5YR_B25106_with_ann!AV266","v":11},{"$f":"[1]ACS_16_5YR_B25106_with_ann!AW266","v":15},{"$f":"[1]ACS_16_5YR_B25106_with_ann!AX266","v":26},{"$f":"[1]ACS_16_5YR_B25106_with_ann!AY266","v":16},{"$f":"[1]ACS_16_5YR_B25106_with_ann!AZ266","v":0},{"$f":"[1]ACS_16_5YR_B25106_with_ann!BA266","v":11},{"$f":"[1]ACS_16_5YR_B25106_with_ann!BB266","v":0},{"$f":"[1]ACS_16_5YR_B25106_with_ann!BC266","v":11},{"$f":"[1]ACS_16_5YR_B25106_with_ann!BD266","v":0},{"$f":"[1]ACS_16_5YR_B25106_with_ann!BE266","v":11},{"$f":"[1]ACS_16_5YR_B25106_with_ann!BF267","v":286},{"$f":"[1]ACS_16_5YR_B25106_with_ann!BG267","v":154},{"$f":"[1]ACS_16_5YR_B25106_with_ann!BH267","v":139},{"$f":"[1]ACS_16_5YR_B25106_with_ann!BI267","v":84},{"$f":"[1]ACS_16_5YR_B25106_with_ann!BJ267","v":25},{"$f":"[1]ACS_16_5YR_B25106_with_ann!BK267","v":30},{"$f":"[1]ACS_16_5YR_B25106_with_ann!BL267","v":0},{"$f":"[1]ACS_16_5YR_B25106_with_ann!BM267","v":16},{"$f":"[1]ACS_16_5YR_B25106_with_ann!BN267","v":114},{"$f":"[1]ACS_16_5YR_B25106_with_ann!BO267","v":78},{"$f":"[1]ACS_16_5YR_B25106_with_ann!BP267","v":50},{"$f":"[1]ACS_16_5YR_B25106_with_ann!BQ267","v":40},{"$f":"[1]ACS_16_5YR_B25106_with_ann!BR267","v":13},{"$f":"[1]ACS_16_5YR_B25106_with_ann!BS267","v":21},{"$f":"[1]ACS_16_5YR_B25106_with_ann!BT267","v":13},{"$f":"[1]ACS_16_5YR_B25106_with_ann!BU267","v":20},{"$f":"[1]ACS_16_5YR_B25106_with_ann!BV267","v":24},{"$f":"[1]ACS_16_5YR_B25106_with_ann!BW267","v":27},{"$f":"[1]ACS_16_5YR_B25106_with_ann!BX267","v":158},{"$f":"[1]ACS_16_5YR_B25106_with_ann!BY267","v":116},{"$f":"[1]ACS_16_5YR_B25106_with_ann!BZ267","v":12},{"$f":"[1]ACS_16_5YR_B25106_with_ann!CA267","v":20},{"$f":"[1]ACS_16_5YR_B25106_with_ann!CB267","v":97},{"$f":"[1]ACS_16_5YR_B25106_with_ann!CC267","v":96},{"$f":"[1]ACS_16_5YR_B25106_with_ann!CD267","v":49},{"$f":"[1]ACS_16_5YR_B25106_with_ann!CE267","v":66},{"$f":"[1]ACS_16_5YR_B25106_with_ann!CF267","v":126},{"$f":"[1]ACS_16_5YR_B25106_with_ann!CG267","v":67},{"$f":"[1]ACS_16_5YR_B25106_with_ann!CH267","v":114},{"$f":"[1]ACS_16_5YR_B25106_with_ann!CI267","v":63},{"$f":"[1]ACS_16_5YR_B25106_with_ann!CJ267","v":12},{"$f":"[1]ACS_16_5YR_B25106_with_ann!CK267","v":21},{"$f":"[1]ACS_16_5YR_B25106_with_ann!CL267","v":0},{"$f":"[1]ACS_16_5YR_B25106_with_ann!CM267","v":16},{"$f":"[1]ACS_16_5YR_B25106_with_ann!CN267","v":0},{"$f":"[1]ACS_16_5YR_B25106_with_ann!CO267","v":16},{"$f":"[1]ACS_16_5YR_B25106_with_ann!CP267","v":72},{"$f":"[1]ACS_16_5YR_B25106_with_ann!CQ267","v":76}]
["0600000US3301952580",3301952580,"060","Newport",{"$f":"[1]ACS_16_5YR_B25106_with_ann!D267","v":2600},{"$f":"[1]ACS_16_5YR_B25106_with_ann!E267","v":168},{"$f":"[1]ACS_16_5YR_B25106_with_ann!F267","v":1743},{"$f":"[1]ACS_16_5YR_B25106_with_ann!G267","v":186},{"$f":"[1]ACS_16_5YR_B25106_with_ann!H267","v":66},{"$f":"[1]ACS_16_5YR_B25106_with_ann!I267","v":48},{"$f":"[1]ACS_16_5YR_B25106_with_ann!J267","v":14},{"$f":"[1]ACS_16_5YR_B25106_with_ann!K267","v":21},{"$f":"[1]ACS_16_5YR_B25106_with_ann!L267","v":0},{"$f":"[1]ACS_16_5YR_B25106_with_ann!M267","v":16},{"$f":"[1]ACS_16_5YR_B25106_with_ann!N267","v":52},{"$f":"[1]ACS_16_5YR_B25106_with_ann!O267","v":45},{"$f":"[1]ACS_16_5YR_B25106_with_ann!P267","v":206},{"$f":"[1]ACS_16_5YR_B25106_with_ann!Q267","v":89},{"$f":"[1]ACS_16_5YR_B25106_with_ann!R267","v":0},{"$f":"[1]ACS_16_5YR_B25106_with_ann!S267","v":16},{"$f":"[1]ACS_16_5YR_B25106_with_ann!T267","v":50},{"$f":"[1]ACS_16_5YR_B25106_with_ann!U267","v":42},{"$f":"[1]ACS_16_5YR_B25106_with_ann!V267","v":156},{"$f":"[1]ACS_16_5YR_B25106_with_ann!W267","v":87},{"$f":"[1]ACS_16_5YR_B25106_with_ann!X267","v":181},{"$f":"[1]ACS_16_5YR_B25106_with_ann!Y267","v":74},{"$f":"[1]ACS_16_5YR_B25106_with_ann!Z267","v":63},{"$f":"[1]ACS_16_5YR_B25106_with_ann!AA267","v":48},{"$f":"[1]ACS_16_5YR_B25106_with_ann!AB267","v":11},{"$f":"[1]ACS_16_5YR_B25106_with_ann!AC267","v":18},{"$f":"[1]ACS_16_5YR_B25106_with_ann!AD267","v":107},{"$f":"[1]ACS_16_5YR_B25106_with_ann!AE267","v":60},{"$f":"[1]ACS_16_5YR_B25106_with_ann!AF267","v":468},{"$f":"[1]ACS_16_5YR_B25106_with_ann!AG267","v":146},{"$f":"[1]ACS_16_5YR_B25106_with_ann!AH267","v":340},{"$f":"[1]ACS_16_5YR_B25106_with_ann!AI267","v":141},{"$f":"[1]ACS_16_5YR_B25106_with_ann!AJ267","v":40},{"$f":"[1]ACS_16_5YR_B25106_with_ann!AK267","v":38},{"$f":"[1]ACS_16_5YR_B25106_with_ann!AL267","v":88},{"$f":"[1]ACS_16_5YR_B25106_with_ann!AM267","v":74},{"$f":"[1]ACS_16_5YR_B25106_with_ann!AN267","v":774},{"$f":"[1]ACS_16_5YR_B25106_with_ann!AO267","v":165},{"$f":"[1]ACS_16_5YR_B25106_with_ann!AP267","v":590},{"$f":"[1]ACS_16_5YR_B25106_with_ann!AQ267","v":151},{"$f":"[1]ACS_16_5YR_B25106_with_ann!AR267","v":100},{"$f":"[1]ACS_16_5YR_B25106_with_ann!AS267","v":54},{"$f":"[1]ACS_16_5YR_B25106_with_ann!AT267","v":84},{"$f":"[1]ACS_16_5YR_B25106_with_ann!AU267","v":91},{"$f":"[1]ACS_16_5YR_B25106_with_ann!AV267","v":48},{"$f":"[1]ACS_16_5YR_B25106_with_ann!AW267","v":77},{"$f":"[1]ACS_16_5YR_B25106_with_ann!AX267","v":857},{"$f":"[1]ACS_16_5YR_B25106_with_ann!AY267","v":184},{"$f":"[1]ACS_16_5YR_B25106_with_ann!AZ267","v":312},{"$f":"[1]ACS_16_5YR_B25106_with_ann!BA267","v":149},{"$f":"[1]ACS_16_5YR_B25106_with_ann!BB267","v":15},{"$f":"[1]ACS_16_5YR_B25106_with_ann!BC267","v":23},{"$f":"[1]ACS_16_5YR_B25106_with_ann!BD267","v":11},{"$f":"[1]ACS_16_5YR_B25106_with_ann!BE267","v":18},{"$f":"[1]ACS_16_5YR_B25106_with_ann!BF268","v":0},{"$f":"[1]ACS_16_5YR_B25106_with_ann!BG268","v":11},{"$f":"[1]ACS_16_5YR_B25106_with_ann!BH268","v":21},{"$f":"[1]ACS_16_5YR_B25106_with_ann!BI268","v":19},{"$f":"[1]ACS_16_5YR_B25106_with_ann!BJ268","v":0},{"$f":"[1]ACS_16_5YR_B25106_with_ann!BK268","v":11},{"$f":"[1]ACS_16_5YR_B25106_with_ann!BL268","v":0},{"$f":"[1]ACS_16_5YR_B25106_with_ann!BM268","v":11},{"$f":"[1]ACS_16_5YR_B25106_with_ann!BN268","v":21},{"$f":"[1]ACS_16_5YR_B25106_with_ann!BO268","v":19},{"$f":"[1]ACS_16_5YR_B25106_with_ann!BP268","v":18},{"$f":"[1]ACS_16_5YR_B25106_with_ann!BQ268","v":15},{"$f":"[1]ACS_16_5YR_B25106_with_ann!BR268","v":0},{"$f":"[1]ACS_16_5YR_B25106_with_ann!BS268","v":11},{"$f":"[1]ACS_16_5YR_B25106_with_ann!BT268","v":6},{"$f":"[1]ACS_16_5YR_B25106_with_ann!BU268","v":8},{"$f":"[1]ACS_16_5YR_B25106_with_ann!BV268","v":12},{"$f":"[1]ACS_16_5YR_B25106_with_ann!BW268","v":13},{"$f":"[1]ACS_16_5YR_B25106_with_ann!BX268","v":41},{"$f":"[1]ACS_16_5YR_B25106_with_ann!BY268","v":38},{"$f":"[1]ACS_16_5YR_B25106_with_ann!BZ268","v":0},{"$f":"[1]ACS_16_5YR_B25106_with_ann!CA268","v":11},{"$f":"[1]ACS_16_5YR_B25106_with_ann!CB268","v":5},{"$f":"[1]ACS_16_5YR_B25106_with_ann!CC268","v":7},{"$f":"[1]ACS_16_5YR_B25106_with_ann!CD268","v":36},{"$f":"[1]ACS_16_5YR_B25106_with_ann!CE268","v":38},{"$f":"[1]ACS_16_5YR_B25106_with_ann!CF268","v":28},{"$f":"[1]ACS_16_5YR_B25106_with_ann!CG268","v":30},{"$f":"[1]ACS_16_5YR_B25106_with_ann!CH268","v":28},{"$f":"[1]ACS_16_5YR_B25106_with_ann!CI268","v":30},{"$f":"[1]ACS_16_5YR_B25106_with_ann!CJ268","v":0},{"$f":"[1]ACS_16_5YR_B25106_with_ann!CK268","v":11},{"$f":"[1]ACS_16_5YR_B25106_with_ann!CL268","v":0},{"$f":"[1]ACS_16_5YR_B25106_with_ann!CM268","v":11},{"$f":"[1]ACS_16_5YR_B25106_with_ann!CN268","v":0},{"$f":"[1]ACS_16_5YR_B25106_with_ann!CO268","v":11},{"$f":"[1]ACS_16_5YR_B25106_with_ann!CP268","v":4},{"$f":"[1]ACS_16_5YR_B25106_with_ann!CQ268","v":8}]
["0600000US3301962340",3301962340,"060","Plainfield",{"$f":"[1]ACS_16_5YR_B25106_with_ann!D268","v":915},{"$f":"[1]ACS_16_5YR_B25106_with_ann!E268","v":86},{"$f":"[1]ACS_16_5YR_B25106_with_ann!F268","v":803},{"$f":"[1]ACS_16_5YR_B25106_with_ann!G268","v":78},{"$f":"[1]ACS_16_5YR_B25106_with_ann!H268","v":38},{"$f":"[1]ACS_16_5YR_B25106_with_ann!I268","v":29},{"$f":"[1]ACS_16_5YR_B25106_with_ann!J268","v":0},{"$f":"[1]ACS_16_5YR_B25106_with_ann!K268","v":11},{"$f":"[1]ACS_16_5YR_B25106_with_ann!L268","v":0},{"$f":"[1]ACS_16_5YR_B25106_with_ann!M268","v":11},{"$f":"[1]ACS_16_5YR_B25106_with_ann!N268","v":38},{"$f":"[1]ACS_16_5YR_B25106_with_ann!O268","v":29},{"$f":"[1]ACS_16_5YR_B25106_with_ann!P268","v":109},{"$f":"[1]ACS_16_5YR_B25106_with_ann!Q268","v":47},{"$f":"[1]ACS_16_5YR_B25106_with_ann!R268","v":0},{"$f":"[1]ACS_16_5YR_B25106_with_ann!S268","v":11},{"$f":"[1]ACS_16_5YR_B25106_with_ann!T268","v":14},{"$f":"[1]ACS_16_5YR_B25106_with_ann!U268","v":13},{"$f":"[1]ACS_16_5YR_B25106_with_ann!V268","v":95},{"$f":"[1]ACS_16_5YR_B25106_with_ann!W268","v":47},{"$f":"[1]ACS_16_5YR_B25106_with_ann!X268","v":54},{"$f":"[1]ACS_16_5YR_B25106_with_ann!Y268","v":31},{"$f":"[1]ACS_16_5YR_B25106_with_ann!Z268","v":5},{"$f":"[1]ACS_16_5YR_B25106_with_ann!AA268","v":7},{"$f":"[1]ACS_16_5YR_B25106_with_ann!AB268","v":20},{"$f":"[1]ACS_16_5YR_B25106_with_ann!AC268","v":24},{"$f":"[1]ACS_16_5YR_B25106_with_ann!AD268","v":29},{"$f":"[1]ACS_16_5YR_B25106_with_ann!AE268","v":19},{"$f":"[1]ACS_16_5YR_B25106_with_ann!AF268","v":101},{"$f":"[1]ACS_16_5YR_B25106_with_ann!AG268","v":40},{"$f":"[1]ACS_16_5YR_B25106_with_ann!AH268","v":59},{"$f":"[1]ACS_16_5YR_B25106_with_ann!AI268","v":36},{"$f":"[1]ACS_16_5YR_B25106_with_ann!AJ268","v":20},{"$f":"[1]ACS_16_5YR_B25106_with_ann!AK268","v":16},{"$f":"[1]ACS_16_5YR_B25106_with_ann!AL268","v":22},{"$f":"[1]ACS_16_5YR_B25106_with_ann!AM268","v":17},{"$f":"[1]ACS_16_5YR_B25106_with_ann!AN268","v":501},{"$f":"[1]ACS_16_5YR_B25106_with_ann!AO268","v":74},{"$f":"[1]ACS_16_5YR_B25106_with_ann!AP268","v":366},{"$f":"[1]ACS_16_5YR_B25106_with_ann!AQ268","v":70},{"$f":"[1]ACS_16_5YR_B25106_with_ann!AR268","v":101},{"$f":"[1]ACS_16_5YR_B25106_with_ann!AS268","v":30},{"$f":"[1]ACS_16_5YR_B25106_with_ann!AT268","v":34},{"$f":"[1]ACS_16_5YR_B25106_with_ann!AU268","v":32},{"$f":"[1]ACS_16_5YR_B25106_with_ann!AV268","v":0},{"$f":"[1]ACS_16_5YR_B25106_with_ann!AW268","v":11},{"$f":"[1]ACS_16_5YR_B25106_with_ann!AX268","v":112},{"$f":"[1]ACS_16_5YR_B25106_with_ann!AY268","v":49},{"$f":"[1]ACS_16_5YR_B25106_with_ann!AZ268","v":0},{"$f":"[1]ACS_16_5YR_B25106_with_ann!BA268","v":11},{"$f":"[1]ACS_16_5YR_B25106_with_ann!BB268","v":0},{"$f":"[1]ACS_16_5YR_B25106_with_ann!BC268","v":11},{"$f":"[1]ACS_16_5YR_B25106_with_ann!BD268","v":0},{"$f":"[1]ACS_16_5YR_B25106_with_ann!BE268","v":11},{"$f":"[1]ACS_16_5YR_B25106_with_ann!BF269","v":0},{"$f":"[1]ACS_16_5YR_B25106_with_ann!BG269","v":11},{"$f":"[1]ACS_16_5YR_B25106_with_ann!BH269","v":0},{"$f":"[1]ACS_16_5YR_B25106_with_ann!BI269","v":11},{"$f":"[1]ACS_16_5YR_B25106_with_ann!BJ269","v":0},{"$f":"[1]ACS_16_5YR_B25106_with_ann!BK269","v":11},{"$f":"[1]ACS_16_5YR_B25106_with_ann!BL269","v":0},{"$f":"[1]ACS_16_5YR_B25106_with_ann!BM269","v":11},{"$f":"[1]ACS_16_5YR_B25106_with_ann!BN269","v":0},{"$f":"[1]ACS_16_5YR_B25106_with_ann!BO269","v":11},{"$f":"[1]ACS_16_5YR_B25106_with_ann!BP269","v":5},{"$f":"[1]ACS_16_5YR_B25106_with_ann!BQ269","v":9},{"$f":"[1]ACS_16_5YR_B25106_with_ann!BR269","v":0},{"$f":"[1]ACS_16_5YR_B25106_with_ann!BS269","v":11},{"$f":"[1]ACS_16_5YR_B25106_with_ann!BT269","v":0},{"$f":"[1]ACS_16_5YR_B25106_with_ann!BU269","v":11},{"$f":"[1]ACS_16_5YR_B25106_with_ann!BV269","v":5},{"$f":"[1]ACS_16_5YR_B25106_with_ann!BW269","v":9},{"$f":"[1]ACS_16_5YR_B25106_with_ann!BX269","v":0},{"$f":"[1]ACS_16_5YR_B25106_with_ann!BY269","v":11},{"$f":"[1]ACS_16_5YR_B25106_with_ann!BZ269","v":0},{"$f":"[1]ACS_16_5YR_B25106_with_ann!CA269","v":11},{"$f":"[1]ACS_16_5YR_B25106_with_ann!CB269","v":0},{"$f":"[1]ACS_16_5YR_B25106_with_ann!CC269","v":11},{"$f":"[1]ACS_16_5YR_B25106_with_ann!CD269","v":0},{"$f":"[1]ACS_16_5YR_B25106_with_ann!CE269","v":11},{"$f":"[1]ACS_16_5YR_B25106_with_ann!CF269","v":24},{"$f":"[1]ACS_16_5YR_B25106_with_ann!CG269","v":29},{"$f":"[1]ACS_16_5YR_B25106_with_ann!CH269","v":24},{"$f":"[1]ACS_16_5YR_B25106_with_ann!CI269","v":29},{"$f":"[1]ACS_16_5YR_B25106_with_ann!CJ269","v":0},{"$f":"[1]ACS_16_5YR_B25106_with_ann!CK269","v":11},{"$f":"[1]ACS_16_5YR_B25106_with_ann!CL269","v":0},{"$f":"[1]ACS_16_5YR_B25106_with_ann!CM269","v":11},{"$f":"[1]ACS_16_5YR_B25106_with_ann!CN269","v":0},{"$f":"[1]ACS_16_5YR_B25106_with_ann!CO269","v":11},{"$f":"[1]ACS_16_5YR_B25106_with_ann!CP269","v":15},{"$f":"[1]ACS_16_5YR_B25106_with_ann!CQ269","v":15}]
["0600000US3301972740",3301972740,"060","Springfield",{"$f":"[1]ACS_16_5YR_B25106_with_ann!D269","v":442},{"$f":"[1]ACS_16_5YR_B25106_with_ann!E269","v":75},{"$f":"[1]ACS_16_5YR_B25106_with_ann!F269","v":398},{"$f":"[1]ACS_16_5YR_B25106_with_ann!G269","v":71},{"$f":"[1]ACS_16_5YR_B25106_with_ann!H269","v":27},{"$f":"[1]ACS_16_5YR_B25106_with_ann!I269","v":21},{"$f":"[1]ACS_16_5YR_B25106_with_ann!J269","v":0},{"$f":"[1]ACS_16_5YR_B25106_with_ann!K269","v":11},{"$f":"[1]ACS_16_5YR_B25106_with_ann!L269","v":0},{"$f":"[1]ACS_16_5YR_B25106_with_ann!M269","v":11},{"$f":"[1]ACS_16_5YR_B25106_with_ann!N269","v":27},{"$f":"[1]ACS_16_5YR_B25106_with_ann!O269","v":21},{"$f":"[1]ACS_16_5YR_B25106_with_ann!P269","v":62},{"$f":"[1]ACS_16_5YR_B25106_with_ann!Q269","v":36},{"$f":"[1]ACS_16_5YR_B25106_with_ann!R269","v":0},{"$f":"[1]ACS_16_5YR_B25106_with_ann!S269","v":11},{"$f":"[1]ACS_16_5YR_B25106_with_ann!T269","v":12},{"$f":"[1]ACS_16_5YR_B25106_with_ann!U269","v":15},{"$f":"[1]ACS_16_5YR_B25106_with_ann!V269","v":50},{"$f":"[1]ACS_16_5YR_B25106_with_ann!W269","v":32},{"$f":"[1]ACS_16_5YR_B25106_with_ann!X269","v":19},{"$f":"[1]ACS_16_5YR_B25106_with_ann!Y269","v":16},{"$f":"[1]ACS_16_5YR_B25106_with_ann!Z269","v":0},{"$f":"[1]ACS_16_5YR_B25106_with_ann!AA269","v":11},{"$f":"[1]ACS_16_5YR_B25106_with_ann!AB269","v":0},{"$f":"[1]ACS_16_5YR_B25106_with_ann!AC269","v":11},{"$f":"[1]ACS_16_5YR_B25106_with_ann!AD269","v":19},{"$f":"[1]ACS_16_5YR_B25106_with_ann!AE269","v":16},{"$f":"[1]ACS_16_5YR_B25106_with_ann!AF269","v":61},{"$f":"[1]ACS_16_5YR_B25106_with_ann!AG269","v":31},{"$f":"[1]ACS_16_5YR_B25106_with_ann!AH269","v":21},{"$f":"[1]ACS_16_5YR_B25106_with_ann!AI269","v":17},{"$f":"[1]ACS_16_5YR_B25106_with_ann!AJ269","v":18},{"$f":"[1]ACS_16_5YR_B25106_with_ann!AK269","v":20},{"$f":"[1]ACS_16_5YR_B25106_with_ann!AL269","v":22},{"$f":"[1]ACS_16_5YR_B25106_with_ann!AM269","v":22},{"$f":"[1]ACS_16_5YR_B25106_with_ann!AN269","v":229},{"$f":"[1]ACS_16_5YR_B25106_with_ann!AO269","v":55},{"$f":"[1]ACS_16_5YR_B25106_with_ann!AP269","v":174},{"$f":"[1]ACS_16_5YR_B25106_with_ann!AQ269","v":51},{"$f":"[1]ACS_16_5YR_B25106_with_ann!AR269","v":44},{"$f":"[1]ACS_16_5YR_B25106_with_ann!AS269","v":28},{"$f":"[1]ACS_16_5YR_B25106_with_ann!AT269","v":11},{"$f":"[1]ACS_16_5YR_B25106_with_ann!AU269","v":10},{"$f":"[1]ACS_16_5YR_B25106_with_ann!AV269","v":0},{"$f":"[1]ACS_16_5YR_B25106_with_ann!AW269","v":11},{"$f":"[1]ACS_16_5YR_B25106_with_ann!AX269","v":44},{"$f":"[1]ACS_16_5YR_B25106_with_ann!AY269","v":33},{"$f":"[1]ACS_16_5YR_B25106_with_ann!AZ269","v":0},{"$f":"[1]ACS_16_5YR_B25106_with_ann!BA269","v":11},{"$f":"[1]ACS_16_5YR_B25106_with_ann!BB269","v":0},{"$f":"[1]ACS_16_5YR_B25106_with_ann!BC269","v":11},{"$f":"[1]ACS_16_5YR_B25106_with_ann!BD269","v":0},{"$f":"[1]ACS_16_5YR_B25106_with_ann!BE269","v":11},{"$f":"[1]ACS_16_5YR_B25106_with_ann!BF270","v":44},{"$f":"[1]ACS_16_5YR_B25106_with_ann!BG270","v":56},{"$f":"[1]ACS_16_5YR_B25106_with_ann!BH270","v":83},{"$f":"[1]ACS_16_5YR_B25106_with_ann!BI270","v":72},{"$f":"[1]ACS_16_5YR_B25106_with_ann!BJ270","v":0},{"$f":"[1]ACS_16_5YR_B25106_with_ann!BK270","v":11},{"$f":"[1]ACS_16_5YR_B25106_with_ann!BL270","v":0},{"$f":"[1]ACS_16_5YR_B25106_with_ann!BM270","v":11},{"$f":"[1]ACS_16_5YR_B25106_with_ann!BN270","v":83},{"$f":"[1]ACS_16_5YR_B25106_with_ann!BO270","v":72},{"$f":"[1]ACS_16_5YR_B25106_with_ann!BP270","v":66},{"$f":"[1]ACS_16_5YR_B25106_with_ann!BQ270","v":67},{"$f":"[1]ACS_16_5YR_B25106_with_ann!BR270","v":0},{"$f":"[1]ACS_16_5YR_B25106_with_ann!BS270","v":11},{"$f":"[1]ACS_16_5YR_B25106_with_ann!BT270","v":0},{"$f":"[1]ACS_16_5YR_B25106_with_ann!BU270","v":11},{"$f":"[1]ACS_16_5YR_B25106_with_ann!BV270","v":66},{"$f":"[1]ACS_16_5YR_B25106_with_ann!BW270","v":67},{"$f":"[1]ACS_16_5YR_B25106_with_ann!BX270","v":84},{"$f":"[1]ACS_16_5YR_B25106_with_ann!BY270","v":59},{"$f":"[1]ACS_16_5YR_B25106_with_ann!BZ270","v":27},{"$f":"[1]ACS_16_5YR_B25106_with_ann!CA270","v":32},{"$f":"[1]ACS_16_5YR_B25106_with_ann!CB270","v":34},{"$f":"[1]ACS_16_5YR_B25106_with_ann!CC270","v":34},{"$f":"[1]ACS_16_5YR_B25106_with_ann!CD270","v":23},{"$f":"[1]ACS_16_5YR_B25106_with_ann!CE270","v":33},{"$f":"[1]ACS_16_5YR_B25106_with_ann!CF270","v":36},{"$f":"[1]ACS_16_5YR_B25106_with_ann!CG270","v":29},{"$f":"[1]ACS_16_5YR_B25106_with_ann!CH270","v":15},{"$f":"[1]ACS_16_5YR_B25106_with_ann!CI270","v":23},{"$f":"[1]ACS_16_5YR_B25106_with_ann!CJ270","v":21},{"$f":"[1]ACS_16_5YR_B25106_with_ann!CK270","v":18},{"$f":"[1]ACS_16_5YR_B25106_with_ann!CL270","v":0},{"$f":"[1]ACS_16_5YR_B25106_with_ann!CM270","v":11},{"$f":"[1]ACS_16_5YR_B25106_with_ann!CN270","v":31},{"$f":"[1]ACS_16_5YR_B25106_with_ann!CO270","v":48},{"$f":"[1]ACS_16_5YR_B25106_with_ann!CP270","v":5},{"$f":"[1]ACS_16_5YR_B25106_with_ann!CQ270","v":8}]
["0600000US3301975060",3301975060,"060","Sunapee",{"$f":"[1]ACS_16_5YR_B25106_with_ann!D270","v":1393},{"$f":"[1]ACS_16_5YR_B25106_with_ann!E270","v":139},{"$f":"[1]ACS_16_5YR_B25106_with_ann!F270","v":1044},{"$f":"[1]ACS_16_5YR_B25106_with_ann!G270","v":138},{"$f":"[1]ACS_16_5YR_B25106_with_ann!H270","v":26},{"$f":"[1]ACS_16_5YR_B25106_with_ann!I270","v":21},{"$f":"[1]ACS_16_5YR_B25106_with_ann!J270","v":0},{"$f":"[1]ACS_16_5YR_B25106_with_ann!K270","v":11},{"$f":"[1]ACS_16_5YR_B25106_with_ann!L270","v":0},{"$f":"[1]ACS_16_5YR_B25106_with_ann!M270","v":11},{"$f":"[1]ACS_16_5YR_B25106_with_ann!N270","v":26},{"$f":"[1]ACS_16_5YR_B25106_with_ann!O270","v":21},{"$f":"[1]ACS_16_5YR_B25106_with_ann!P270","v":97},{"$f":"[1]ACS_16_5YR_B25106_with_ann!Q270","v":63},{"$f":"[1]ACS_16_5YR_B25106_with_ann!R270","v":15},{"$f":"[1]ACS_16_5YR_B25106_with_ann!S270","v":17},{"$f":"[1]ACS_16_5YR_B25106_with_ann!T270","v":42},{"$f":"[1]ACS_16_5YR_B25106_with_ann!U270","v":46},{"$f":"[1]ACS_16_5YR_B25106_with_ann!V270","v":40},{"$f":"[1]ACS_16_5YR_B25106_with_ann!W270","v":40},{"$f":"[1]ACS_16_5YR_B25106_with_ann!X270","v":57},{"$f":"[1]ACS_16_5YR_B25106_with_ann!Y270","v":34},{"$f":"[1]ACS_16_5YR_B25106_with_ann!Z270","v":21},{"$f":"[1]ACS_16_5YR_B25106_with_ann!AA270","v":23},{"$f":"[1]ACS_16_5YR_B25106_with_ann!AB270","v":15},{"$f":"[1]ACS_16_5YR_B25106_with_ann!AC270","v":23},{"$f":"[1]ACS_16_5YR_B25106_with_ann!AD270","v":21},{"$f":"[1]ACS_16_5YR_B25106_with_ann!AE270","v":22},{"$f":"[1]ACS_16_5YR_B25106_with_ann!AF270","v":175},{"$f":"[1]ACS_16_5YR_B25106_with_ann!AG270","v":73},{"$f":"[1]ACS_16_5YR_B25106_with_ann!AH270","v":21},{"$f":"[1]ACS_16_5YR_B25106_with_ann!AI270","v":21},{"$f":"[1]ACS_16_5YR_B25106_with_ann!AJ270","v":85},{"$f":"[1]ACS_16_5YR_B25106_with_ann!AK270","v":49},{"$f":"[1]ACS_16_5YR_B25106_with_ann!AL270","v":69},{"$f":"[1]ACS_16_5YR_B25106_with_ann!AM270","v":48},{"$f":"[1]ACS_16_5YR_B25106_with_ann!AN270","v":641},{"$f":"[1]ACS_16_5YR_B25106_with_ann!AO270","v":104},{"$f":"[1]ACS_16_5YR_B25106_with_ann!AP270","v":409},{"$f":"[1]ACS_16_5YR_B25106_with_ann!AQ270","v":115},{"$f":"[1]ACS_16_5YR_B25106_with_ann!AR270","v":95},{"$f":"[1]ACS_16_5YR_B25106_with_ann!AS270","v":64},{"$f":"[1]ACS_16_5YR_B25106_with_ann!AT270","v":137},{"$f":"[1]ACS_16_5YR_B25106_with_ann!AU270","v":78},{"$f":"[1]ACS_16_5YR_B25106_with_ann!AV270","v":48},{"$f":"[1]ACS_16_5YR_B25106_with_ann!AW270","v":60},{"$f":"[1]ACS_16_5YR_B25106_with_ann!AX270","v":349},{"$f":"[1]ACS_16_5YR_B25106_with_ann!AY270","v":122},{"$f":"[1]ACS_16_5YR_B25106_with_ann!AZ270","v":44},{"$f":"[1]ACS_16_5YR_B25106_with_ann!BA270","v":56},{"$f":"[1]ACS_16_5YR_B25106_with_ann!BB270","v":0},{"$f":"[1]ACS_16_5YR_B25106_with_ann!BC270","v":11},{"$f":"[1]ACS_16_5YR_B25106_with_ann!BD270","v":0},{"$f":"[1]ACS_16_5YR_B25106_with_ann!BE270","v":11},{"$f":"[1]ACS_16_5YR_B25106_with_ann!BF271","v":0},{"$f":"[1]ACS_16_5YR_B25106_with_ann!BG271","v":11},{"$f":"[1]ACS_16_5YR_B25106_with_ann!BH271","v":11},{"$f":"[1]ACS_16_5YR_B25106_with_ann!BI271","v":14},{"$f":"[1]ACS_16_5YR_B25106_with_ann!BJ271","v":0},{"$f":"[1]ACS_16_5YR_B25106_with_ann!BK271","v":11},{"$f":"[1]ACS_16_5YR_B25106_with_ann!BL271","v":0},{"$f":"[1]ACS_16_5YR_B25106_with_ann!BM271","v":11},{"$f":"[1]ACS_16_5YR_B25106_with_ann!BN271","v":11},{"$f":"[1]ACS_16_5YR_B25106_with_ann!BO271","v":14},{"$f":"[1]ACS_16_5YR_B25106_with_ann!BP271","v":8},{"$f":"[1]ACS_16_5YR_B25106_with_ann!BQ271","v":8},{"$f":"[1]ACS_16_5YR_B25106_with_ann!BR271","v":0},{"$f":"[1]ACS_16_5YR_B25106_with_ann!BS271","v":11},{"$f":"[1]ACS_16_5YR_B25106_with_ann!BT271","v":4},{"$f":"[1]ACS_16_5YR_B25106_with_ann!BU271","v":6},{"$f":"[1]ACS_16_5YR_B25106_with_ann!BV271","v":4},{"$f":"[1]ACS_16_5YR_B25106_with_ann!BW271","v":5},{"$f":"[1]ACS_16_5YR_B25106_with_ann!BX271","v":8},{"$f":"[1]ACS_16_5YR_B25106_with_ann!BY271","v":9},{"$f":"[1]ACS_16_5YR_B25106_with_ann!BZ271","v":0},{"$f":"[1]ACS_16_5YR_B25106_with_ann!CA271","v":11},{"$f":"[1]ACS_16_5YR_B25106_with_ann!CB271","v":8},{"$f":"[1]ACS_16_5YR_B25106_with_ann!CC271","v":9},{"$f":"[1]ACS_16_5YR_B25106_with_ann!CD271","v":0},{"$f":"[1]ACS_16_5YR_B25106_with_ann!CE271","v":11},{"$f":"[1]ACS_16_5YR_B25106_with_ann!CF271","v":0},{"$f":"[1]ACS_16_5YR_B25106_with_ann!CG271","v":11},{"$f":"[1]ACS_16_5YR_B25106_with_ann!CH271","v":0},{"$f":"[1]ACS_16_5YR_B25106_with_ann!CI271","v":11},{"$f":"[1]ACS_16_5YR_B25106_with_ann!CJ271","v":0},{"$f":"[1]ACS_16_5YR_B25106_with_ann!CK271","v":11},{"$f":"[1]ACS_16_5YR_B25106_with_ann!CL271","v":0},{"$f":"[1]ACS_16_5YR_B25106_with_ann!CM271","v":11},{"$f":"[1]ACS_16_5YR_B25106_with_ann!CN271","v":0},{"$f":"[1]ACS_16_5YR_B25106_with_ann!CO271","v":11},{"$f":"[1]ACS_16_5YR_B25106_with_ann!CP271","v":8},{"$f":"[1]ACS_16_5YR_B25106_with_ann!CQ271","v":9}]
["0600000US3301977940",3301977940,"060","Unity",{"$f":"[1]ACS_16_5YR_B25106_with_ann!D271","v":571},{"$f":"[1]ACS_16_5YR_B25106_with_ann!E271","v":56},{"$f":"[1]ACS_16_5YR_B25106_with_ann!F271","v":536},{"$f":"[1]ACS_16_5YR_B25106_with_ann!G271","v":56},{"$f":"[1]ACS_16_5YR_B25106_with_ann!H271","v":47},{"$f":"[1]ACS_16_5YR_B25106_with_ann!I271","v":26},{"$f":"[1]ACS_16_5YR_B25106_with_ann!J271","v":0},{"$f":"[1]ACS_16_5YR_B25106_with_ann!K271","v":11},{"$f":"[1]ACS_16_5YR_B25106_with_ann!L271","v":9},{"$f":"[1]ACS_16_5YR_B25106_with_ann!M271","v":13},{"$f":"[1]ACS_16_5YR_B25106_with_ann!N271","v":38},{"$f":"[1]ACS_16_5YR_B25106_with_ann!O271","v":23},{"$f":"[1]ACS_16_5YR_B25106_with_ann!P271","v":73},{"$f":"[1]ACS_16_5YR_B25106_with_ann!Q271","v":27},{"$f":"[1]ACS_16_5YR_B25106_with_ann!R271","v":7},{"$f":"[1]ACS_16_5YR_B25106_with_ann!S271","v":7},{"$f":"[1]ACS_16_5YR_B25106_with_ann!T271","v":3},{"$f":"[1]ACS_16_5YR_B25106_with_ann!U271","v":4},{"$f":"[1]ACS_16_5YR_B25106_with_ann!V271","v":63},{"$f":"[1]ACS_16_5YR_B25106_with_ann!W271","v":26},{"$f":"[1]ACS_16_5YR_B25106_with_ann!X271","v":37},{"$f":"[1]ACS_16_5YR_B25106_with_ann!Y271","v":13},{"$f":"[1]ACS_16_5YR_B25106_with_ann!Z271","v":2},{"$f":"[1]ACS_16_5YR_B25106_with_ann!AA271","v":4},{"$f":"[1]ACS_16_5YR_B25106_with_ann!AB271","v":18},{"$f":"[1]ACS_16_5YR_B25106_with_ann!AC271","v":10},{"$f":"[1]ACS_16_5YR_B25106_with_ann!AD271","v":17},{"$f":"[1]ACS_16_5YR_B25106_with_ann!AE271","v":9},{"$f":"[1]ACS_16_5YR_B25106_with_ann!AF271","v":104},{"$f":"[1]ACS_16_5YR_B25106_with_ann!AG271","v":31},{"$f":"[1]ACS_16_5YR_B25106_with_ann!AH271","v":38},{"$f":"[1]ACS_16_5YR_B25106_with_ann!AI271","v":17},{"$f":"[1]ACS_16_5YR_B25106_with_ann!AJ271","v":41},{"$f":"[1]ACS_16_5YR_B25106_with_ann!AK271","v":22},{"$f":"[1]ACS_16_5YR_B25106_with_ann!AL271","v":25},{"$f":"[1]ACS_16_5YR_B25106_with_ann!AM271","v":19},{"$f":"[1]ACS_16_5YR_B25106_with_ann!AN271","v":262},{"$f":"[1]ACS_16_5YR_B25106_with_ann!AO271","v":45},{"$f":"[1]ACS_16_5YR_B25106_with_ann!AP271","v":191},{"$f":"[1]ACS_16_5YR_B25106_with_ann!AQ271","v":41},{"$f":"[1]ACS_16_5YR_B25106_with_ann!AR271","v":68},{"$f":"[1]ACS_16_5YR_B25106_with_ann!AS271","v":34},{"$f":"[1]ACS_16_5YR_B25106_with_ann!AT271","v":3},{"$f":"[1]ACS_16_5YR_B25106_with_ann!AU271","v":4},{"$f":"[1]ACS_16_5YR_B25106_with_ann!AV271","v":13},{"$f":"[1]ACS_16_5YR_B25106_with_ann!AW271","v":18},{"$f":"[1]ACS_16_5YR_B25106_with_ann!AX271","v":35},{"$f":"[1]ACS_16_5YR_B25106_with_ann!AY271","v":20},{"$f":"[1]ACS_16_5YR_B25106_with_ann!AZ271","v":0},{"$f":"[1]ACS_16_5YR_B25106_with_ann!BA271","v":11},{"$f":"[1]ACS_16_5YR_B25106_with_ann!BB271","v":0},{"$f":"[1]ACS_16_5YR_B25106_with_ann!BC271","v":11},{"$f":"[1]ACS_16_5YR_B25106_with_ann!BD271","v":0},{"$f":"[1]ACS_16_5YR_B25106_with_ann!BE271","v":11},{"$f":"[1]ACS_16_5YR_B25106_with_ann!BF272","v":10},{"$f":"[1]ACS_16_5YR_B25106_with_ann!BG272","v":16},{"$f":"[1]ACS_16_5YR_B25106_with_ann!BH272","v":0},{"$f":"[1]ACS_16_5YR_B25106_with_ann!BI272","v":11},{"$f":"[1]ACS_16_5YR_B25106_with_ann!BJ272","v":0},{"$f":"[1]ACS_16_5YR_B25106_with_ann!BK272","v":11},{"$f":"[1]ACS_16_5YR_B25106_with_ann!BL272","v":0},{"$f":"[1]ACS_16_5YR_B25106_with_ann!BM272","v":11},{"$f":"[1]ACS_16_5YR_B25106_with_ann!BN272","v":0},{"$f":"[1]ACS_16_5YR_B25106_with_ann!BO272","v":11},{"$f":"[1]ACS_16_5YR_B25106_with_ann!BP272","v":0},{"$f":"[1]ACS_16_5YR_B25106_with_ann!BQ272","v":11},{"$f":"[1]ACS_16_5YR_B25106_with_ann!BR272","v":0},{"$f":"[1]ACS_16_5YR_B25106_with_ann!BS272","v":11},{"$f":"[1]ACS_16_5YR_B25106_with_ann!BT272","v":0},{"$f":"[1]ACS_16_5YR_B25106_with_ann!BU272","v":11},{"$f":"[1]ACS_16_5YR_B25106_with_ann!BV272","v":0},{"$f":"[1]ACS_16_5YR_B25106_with_ann!BW272","v":11},{"$f":"[1]ACS_16_5YR_B25106_with_ann!BX272","v":13},{"$f":"[1]ACS_16_5YR_B25106_with_ann!BY272","v":15},{"$f":"[1]ACS_16_5YR_B25106_with_ann!BZ272","v":0},{"$f":"[1]ACS_16_5YR_B25106_with_ann!CA272","v":11},{"$f":"[1]ACS_16_5YR_B25106_with_ann!CB272","v":13},{"$f":"[1]ACS_16_5YR_B25106_with_ann!CC272","v":15},{"$f":"[1]ACS_16_5YR_B25106_with_ann!CD272","v":0},{"$f":"[1]ACS_16_5YR_B25106_with_ann!CE272","v":11},{"$f":"[1]ACS_16_5YR_B25106_with_ann!CF272","v":6},{"$f":"[1]ACS_16_5YR_B25106_with_ann!CG272","v":14},{"$f":"[1]ACS_16_5YR_B25106_with_ann!CH272","v":6},{"$f":"[1]ACS_16_5YR_B25106_with_ann!CI272","v":14},{"$f":"[1]ACS_16_5YR_B25106_with_ann!CJ272","v":0},{"$f":"[1]ACS_16_5YR_B25106_with_ann!CK272","v":11},{"$f":"[1]ACS_16_5YR_B25106_with_ann!CL272","v":0},{"$f":"[1]ACS_16_5YR_B25106_with_ann!CM272","v":11},{"$f":"[1]ACS_16_5YR_B25106_with_ann!CN272","v":0},{"$f":"[1]ACS_16_5YR_B25106_with_ann!CO272","v":11},{"$f":"[1]ACS_16_5YR_B25106_with_ann!CP272","v":9},{"$f":"[1]ACS_16_5YR_B25106_with_ann!CQ272","v":7}]
["0600000US3301978980",3301978980,"060","Washington",{"$f":"[1]ACS_16_5YR_B25106_with_ann!D272","v":537},{"$f":"[1]ACS_16_5YR_B25106_with_ann!E272","v":81},{"$f":"[1]ACS_16_5YR_B25106_with_ann!F272","v":499},{"$f":"[1]ACS_16_5YR_B25106_with_ann!G272","v":81},{"$f":"[1]ACS_16_5YR_B25106_with_ann!H272","v":31},{"$f":"[1]ACS_16_5YR_B25106_with_ann!I272","v":23},{"$f":"[1]ACS_16_5YR_B25106_with_ann!J272","v":0},{"$f":"[1]ACS_16_5YR_B25106_with_ann!K272","v":11},{"$f":"[1]ACS_16_5YR_B25106_with_ann!L272","v":9},{"$f":"[1]ACS_16_5YR_B25106_with_ann!M272","v":15},{"$f":"[1]ACS_16_5YR_B25106_with_ann!N272","v":22},{"$f":"[1]ACS_16_5YR_B25106_with_ann!O272","v":18},{"$f":"[1]ACS_16_5YR_B25106_with_ann!P272","v":47},{"$f":"[1]ACS_16_5YR_B25106_with_ann!Q272","v":22},{"$f":"[1]ACS_16_5YR_B25106_with_ann!R272","v":0},{"$f":"[1]ACS_16_5YR_B25106_with_ann!S272","v":11},{"$f":"[1]ACS_16_5YR_B25106_with_ann!T272","v":3},{"$f":"[1]ACS_16_5YR_B25106_with_ann!U272","v":5},{"$f":"[1]ACS_16_5YR_B25106_with_ann!V272","v":44},{"$f":"[1]ACS_16_5YR_B25106_with_ann!W272","v":23},{"$f":"[1]ACS_16_5YR_B25106_with_ann!X272","v":70},{"$f":"[1]ACS_16_5YR_B25106_with_ann!Y272","v":31},{"$f":"[1]ACS_16_5YR_B25106_with_ann!Z272","v":39},{"$f":"[1]ACS_16_5YR_B25106_with_ann!AA272","v":29},{"$f":"[1]ACS_16_5YR_B25106_with_ann!AB272","v":12},{"$f":"[1]ACS_16_5YR_B25106_with_ann!AC272","v":9},{"$f":"[1]ACS_16_5YR_B25106_with_ann!AD272","v":19},{"$f":"[1]ACS_16_5YR_B25106_with_ann!AE272","v":11},{"$f":"[1]ACS_16_5YR_B25106_with_ann!AF272","v":70},{"$f":"[1]ACS_16_5YR_B25106_with_ann!AG272","v":26},{"$f":"[1]ACS_16_5YR_B25106_with_ann!AH272","v":35},{"$f":"[1]ACS_16_5YR_B25106_with_ann!AI272","v":18},{"$f":"[1]ACS_16_5YR_B25106_with_ann!AJ272","v":22},{"$f":"[1]ACS_16_5YR_B25106_with_ann!AK272","v":18},{"$f":"[1]ACS_16_5YR_B25106_with_ann!AL272","v":13},{"$f":"[1]ACS_16_5YR_B25106_with_ann!AM272","v":10},{"$f":"[1]ACS_16_5YR_B25106_with_ann!AN272","v":275},{"$f":"[1]ACS_16_5YR_B25106_with_ann!AO272","v":79},{"$f":"[1]ACS_16_5YR_B25106_with_ann!AP272","v":213},{"$f":"[1]ACS_16_5YR_B25106_with_ann!AQ272","v":73},{"$f":"[1]ACS_16_5YR_B25106_with_ann!AR272","v":38},{"$f":"[1]ACS_16_5YR_B25106_with_ann!AS272","v":20},{"$f":"[1]ACS_16_5YR_B25106_with_ann!AT272","v":24},{"$f":"[1]ACS_16_5YR_B25106_with_ann!AU272","v":26},{"$f":"[1]ACS_16_5YR_B25106_with_ann!AV272","v":6},{"$f":"[1]ACS_16_5YR_B25106_with_ann!AW272","v":6},{"$f":"[1]ACS_16_5YR_B25106_with_ann!AX272","v":38},{"$f":"[1]ACS_16_5YR_B25106_with_ann!AY272","v":28},{"$f":"[1]ACS_16_5YR_B25106_with_ann!AZ272","v":10},{"$f":"[1]ACS_16_5YR_B25106_with_ann!BA272","v":16},{"$f":"[1]ACS_16_5YR_B25106_with_ann!BB272","v":0},{"$f":"[1]ACS_16_5YR_B25106_with_ann!BC272","v":11},{"$f":"[1]ACS_16_5YR_B25106_with_ann!BD272","v":0},{"$f":"[1]ACS_16_5YR_B25106_with_ann!BE272","v":11},{"$f":"[1]ACS_16_5YR_B25106_with_ann!BF272","v":10},{"$f":"[1]ACS_16_5YR_B25106_with_ann!BG272","v":16},{"$f":"[1]ACS_16_5YR_B25106_with_ann!BH272","v":0},{"$f":"[1]ACS_16_5YR_B25106_with_ann!BI272","v":11},{"$f":"[1]ACS_16_5YR_B25106_with_ann!BJ272","v":0},{"$f":"[1]ACS_16_5YR_B25106_with_ann!BK272","v":11},{"$f":"[1]ACS_16_5YR_B25106_with_ann!BL272","v":0},{"$f":"[1]ACS_16_5YR_B25106_with_ann!BM272","v":11},{"$f":"[1]ACS_16_5YR_B25106_with_ann!BN272","v":0},{"$f":"[1]ACS_16_5YR_B25106_with_ann!BO272","v":11},{"$f":"[1]ACS_16_5YR_B25106_with_ann!BP272","v":0},{"$f":"[1]ACS_16_5YR_B25106_with_ann!BQ272","v":11},{"$f":"[1]ACS_16_5YR_B25106_with_ann!BR272","v":0},{"$f":"[1]ACS_16_5YR_B25106_with_ann!BS272","v":11},{"$f":"[1]ACS_16_5YR_B25106_with_ann!BT272","v":0},{"$f":"[1]ACS_16_5YR_B25106_with_ann!BU272","v":11},{"$f":"[1]ACS_16_5YR_B25106_with_ann!BV272","v":0},{"$f":"[1]ACS_16_5YR_B25106_with_ann!BW272","v":11},{"$f":"[1]ACS_16_5YR_B25106_with_ann!BX272","v":13},{"$f":"[1]ACS_16_5YR_B25106_with_ann!BY272","v":15},{"$f":"[1]ACS_16_5YR_B25106_with_ann!BZ272","v":0},{"$f":"[1]ACS_16_5YR_B25106_with_ann!CA272","v":11},{"$f":"[1]ACS_16_5YR_B25106_with_ann!CB272","v":13},{"$f":"[1]ACS_16_5YR_B25106_with_ann!CC272","v":15},{"$f":"[1]ACS_16_5YR_B25106_with_ann!CD272","v":0},{"$f":"[1]ACS_16_5YR_B25106_with_ann!CE272","v":11},{"$f":"[1]ACS_16_5YR_B25106_with_ann!CF272","v":6},{"$f":"[1]ACS_16_5YR_B25106_with_ann!CG272","v":14},{"$f":"[1]ACS_16_5YR_B25106_with_ann!CH272","v":6},{"$f":"[1]ACS_16_5YR_B25106_with_ann!CI272","v":14},{"$f":"[1]ACS_16_5YR_B25106_with_ann!CJ272","v":0},{"$f":"[1]ACS_16_5YR_B25106_with_ann!CK272","v":11},{"$f":"[1]ACS_16_5YR_B25106_with_ann!CL272","v":0},{"$f":"[1]ACS_16_5YR_B25106_with_ann!CM272","v":11},{"$f":"[1]ACS_16_5YR_B25106_with_ann!CN272","v":0},{"$f":"[1]ACS_16_5YR_B25106_with_ann!CO272","v":11},{"$f":"[1]ACS_16_5YR_B25106_with_ann!CP272","v":9},{"$f":"[1]ACS_16_5YR_B25106_with_ann!CQ272","v":7}]
[]
[null,null,null,null,"Acworth",null,"Charlestown",null,"Claremont",null,"Cornish",null,"Croydon",null,"Goshen",null,"Grantham",null,"Langdon",null,"Lempster",null,"Newport",null,"Plainfield",null,"Springfield",null,"Sunapee",null,"Unity",null,"Washington"]
[null,null,null,null,"Estimate","Margin Of Error","Estimate","Margin Of Error","Estimate","Margin Of Error","Estimate","Margin Of Error","Estimate","Margin Of Error","Estimate","Margin Of Error","Estimate","Margin Of Error","Estimate","Margin Of Error","Estimate","Margin Of Error","Estimate","Margin Of Error","Estimate","Margin Of Error","Estimate","Margin Of Error","Estimate","Margin Of Error",null,"Estimate","Margin Of Error"]
[null,null,null,"Estimate Total:",370,51,2086,184,5231,284,741,81,293,56,277,39,1222,142,257,47,393,59,2600,168,915,86,442,75,1393,139,571,56,537,81]
[null,null,null,"Estimate Total: Owner-occupied housing units:",340,50,1584,209,2921,257,686,79,257,53,223,35,1082,164,218,44,367,61,1743,186,803,78,398,71,1044,138,536,56,499,81]
[null,null,null,"Estimate  Owner-occupied housing units: - Less than $20,000:",15,8,191,130,239,96,52,32,24,19,17,12,45,48,16,14,28,19,66,48,38,29,27,21,26,21,47,26,31,23]
[null,null,null,"Estimate  Owner-occupied housing units: - Less than $20,000: - Less than 20 percent",3,4,0,16,0,18,11,17,0,11,6,9,0,11,0,11,0,11,14,21,0,11,0,11,0,11,0,11,0,11]
[null,null,null,"Estimate  Owner-occupied housing units: - Less than $20,000: - 20 to 29 percent",2,3,54,85,9,15,0,11,0,11,0,11,0,11,0,11,0,11,0,16,0,11,0,11,0,11,9,13,9,15]
[null,null,null,"Estimate  Owner-occupied housing units: - Less than $20,000: - 30 percent or more",10,7,137,95,230,98,41,28,24,19,11,7,45,48,16,14,28,19,52,45,38,29,27,21,26,21,38,23,22,18]
[null,null,null,"Estimate  Owner-occupied housing units: - $20,000 to $34,999:",36,17,297,154,467,134,64,35,26,12,20,15,91,76,20,11,46,23,206,89,109,47,62,36,97,63,73,27,47,22]
[null,null,null,"Estimate  Owner-occupied housing units: - $20,000 to $34,999: - Less than 20 percent",2,3,122,93,9,14,8,13,10,9,0,11,0,11,5,5,0,11,0,16,0,11,0,11,15,17,7,7,0,11]
[null,null,null,"Estimate  Owner-occupied housing units: - $20,000 to $34,999: - 20 to 29 percent",8,7,50,47,106,60,13,16,6,6,11,11,0,11,6,7,19,18,50,42,14,13,12,15,42,46,3,4,3,5]
[null,null,null,"Estimate  Owner-occupied housing units: - $20,000 to $34,999: - 30 percent or more",26,16,125,104,352,117,43,29,10,8,9,9,91,76,9,7,27,15,156,87,95,47,50,32,40,40,63,26,44,23]
[null,null,null,"Estimate  Owner-occupied housing units: - $35,000 to $49,999:",40,19,270,140,334,111,86,34,30,18,26,16,108,106,15,13,58,30,181,74,54,31,19,16,57,34,37,13,70,31]
[null,null,null,"Estimate  Owner-occupied housing units: - $35,000 to $49,999: - Less than 20 percent",12,11,179,110,60,46,30,24,9,7,7,7,17,25,9,11,26,19,63,48,5,7,0,11,21,23,2,4,39,29]
[null,null,null,"Estimate  Owner-occupied housing units: - $35,000 to $49,999: - 20 to 29 percent",12,12,39,50,133,73,30,21,11,13,2,3,42,66,3,4,23,20,11,18,20,24,0,11,15,23,18,10,12,9]
[null,null,null,"Estimate  Owner-occupied housing units: - $35,000 to $49,999: - 30 percent or more",16,14,52,55,141,70,26,14,10,8,17,13,49,80,3,4,9,8,107,60,29,19,19,16,21,22,17,9,19,11]
[null,null,null,"Estimate  Owner-occupied housing units: - $50,000 to $74,999:",89,29,323,117,532,116,98,34,36,17,62,26,173,89,40,19,43,25,468,146,101,40,61,31,175,73,104,31,70,26]
[null,null,null,"Estimate  Owner-occupied housing units: - $50,000 to $74,999: - Less than 20 percent",52,22,136,92,227,71,51,25,21,16,6,5,29,34,21,15,23,20,340,141,59,36,21,17,21,21,38,17,35,18]
[null,null,null,"Estimate  Owner-occupied housing units: - $50,000 to $74,999: - 20 to 29 percent",24,18,33,39,170,83,14,9,10,6,30,16,33,47,15,11,7,7,40,38,20,16,18,20,85,49,41,22,22,18]
[null,null,null,"Estimate  Owner-occupied housing units: - $50,000 to $74,999: - 30 percent or more",13,9,154,93,135,82,33,24,5,6,26,19,111,71,4,4,13,16,88,74,22,17,22,22,69,48,25,19,13,10]
[null,null,null,"Estimate  Owner-occupied housing units: - $75,000 or more:",153,38,464,140,1322,194,386,62,141,41,96,24,665,129,127,36,181,49,774,165,501,74,229,55,641,104,262,45,275,79]
[null,null,null,"Estimate  Owner-occupied housing units: - $75,000 or more: - Less than 20 percent",118,32,374,129,780,161,267,47,115,38,80,23,502,112,87,31,129,48,590,151,366,70,174,51,409,115,191,41,213,73]
[null,null,null,"Estimate  Owner-occupied housing units: - $75,000 or more: - 20 to 29 percent",24,13,60,56,495,143,97,36,17,11,14,8,124,80,35,13,38,22,100,54,101,30,44,28,95,64,68,34,38,20]
[null,null,null,"Estimate  Owner-occupied housing units: - $75,000 or more: - 30 percent or more",11,12,30,33,47,40,22,13,9,9,2,3,39,39,5,5,14,12,84,91,34,32,11,10,137,78,3,4,24,26]
[null,null,null,"Estimate  Owner-occupied housing units: - Zero or negative income",7,11,39,62,27,41,0,11,0,11,2,3,0,11,0,11,11,15,48,77,0,11,0,11,48,60,13,18,6,6]
[null,null,null,"Estimate Total: Renter-occupied housing units:",30,16,502,134,2310,288,55,26,36,22,54,23,140,79,39,21,26,16,857,184,112,49,44,33,349,122,35,20,38,28]
[null,null,null,"Estimate  Renter-occupied housing units: - Less than $20,000:",0,11,87,70,493,117,16,10,3,4,9,10,0,11,6,10,0,11,312,149,0,11,0,11,44,56,0,11,10,16]
[null,null,null,"Estimate  Renter-occupied housing units: - Less than $20,000: - Less than 20 percent",0,11,0,16,26,24,0,11,0,11,0,11,0,11,0,11,0,11,15,23,0,11,0,11,0,11,0,11,0,11]
[null,null,null,"Estimate  Renter-occupied housing units: - Less than $20,000: - 20 to 29 percent",0,11,30,35,91,71,0,11,0,11,0,11,0,11,0,11,0,11,11,18,0,11,0,11,0,11,0,11,0,11]
[null,null,null,"Estimate  Renter-occupied housing units: - Less than $20,000: - 30 percent or more",0,11,57,62,376,120,3,4,9,10,0,11,6,10,0,11,286,154,0,11,0,11,44,56,0,11,10,16,10,16]
[null,null,null,"Estimate  Renter-occupied housing units: - $20,000 to $34,999:",0,11,77,62,619,197,5,6,0,11,0,11,2,3,0,11,139,84,21,19,0,11,83,72,11,14,0,11,0,11]
[null,null,null,"Estimate  Renter-occupied housing units: - $20,000 to $34,999: - Less than 20 percent",0,11,8,15,38,40,0,11,0,11,0,11,0,11,0,11,25,30,0,11,0,11,0,11,0,11,0,11,0,11]
[null,null,null,"Estimate  Renter-occupied housing units: - $20,000 to $34,999: - 20 to 29 percent",0,11,0,16,54,40,0,11,0,11,0,11,0,11,0,11,0,16,0,11,0,11,0,11,0,11,0,11,0,11]
[null,null,null,"Estimate  Renter-occupied housing units: - $20,000 to $34,999: - 30 percent or more",0,11,69,62,527,194,5,6,0,11,0,11,2,3,0,11,114,78,21,19,0,11,83,72,11,14,0,11,0,11]
[null,null,null,"Estimate  Renter-occupied housing units: - $35,000 to $49,999:",6,5,41,42,435,157,0,11,8,12,0,11,10,10,12,8,50,40,18,15,5,9,66,67,8,8,0,11,0,11]
[null,null,null,"Estimate  Renter-occupied housing units: - $35,000 to $49,999: - Less than 20 percent",0,11,0,16,25,29,0,11,0,11,0,11,0,11,4,5,13,21,0,11,0,11,0,11,0,11,0,11,0,11]
[null,null,null,"Estimate  Renter-occupied housing units: - $35,000 to $49,999: - 20 to 29 percent",2,3,41,42,240,96,0,11,0,11,0,11,6,10,5,5,13,20,6,8,0,11,0,11,4,6,0,11,0,11]
[null,null,null,"Estimate  Renter-occupied housing units: - $35,000 to $49,999: - 30 percent or more",4,4,0,16,170,109,0,11,8,12,0,11,4,4,3,5,24,27,12,13,5,9,66,67,4,5,0,11,0,11]
[null,null,null,"Estimate  Renter-occupied housing units: - $50,000 to $74,999:",8,10,14,23,311,115,15,15,13,15,40,35,13,14,12,14,158,116,41,38,0,11,84,59,8,9,13,15,13,15]
[null,null,null,"Estimate  Renter-occupied housing units: - $50,000 to $74,999: - Less than 20 percent",0,11,14,23,65,42,6,9,6,9,23,37,7,11,3,4,12,20,0,11,0,11,27,32,0,11,0,11,0,11]
[null,null,null,"Estimate  Renter-occupied housing units: - $50,000 to $74,999: - 20 to 29 percent",6,10,0,16,222,95,9,12,7,13,0,11,6,9,9,13,97,96,5,7,0,11,34,34,8,9,13,15,13,15]
[null,null,null,"Estimate  Renter-occupied housing units: - $50,000 to $74,999: - 30 percent or more",2,3,0,16,24,45,0,11,0,11,17,24,0,11,0,11,49,66,36,38,0,11,23,33,0,11,0,11,0,11]
[null,null,null,"Estimate  Renter-occupied housing units: - $75,000 or more:",8,8,191,119,348,143,6,10,8,7,100,75,5,8,0,11,126,67,28,30,24,29,36,29,0,11,6,14,6,14]
[null,null,null,"Estimate  Renter-occupied housing units: - $75,000 or more: - Less than 20 percent",3,5,191,119,340,144,6,10,8,7,100,75,5,8,0,11,114,63,28,30,24,29,15,23,0,11,6,14,6,14]
[null,null,null,"Estimate  Renter-occupied housing units: - $75,000 or more: - 20 to 29 percent",5,6,0,16,8,12,0,11,0,11,0,11,0,11,0,11,12,21,0,11,0,11,21,18,0,11,0,11,0,11]
[null,null,null,"Estimate  Renter-occupied housing units: - $75,000 or more: - 30 percent or more",0,11,0,16,0,18,0,11,0,11,0,11,0,11,0,11,0,16,0,11,0,11,0,11,0,11,0,11,0,11]
[null,null,null,"Estimate  Renter-occupied housing units: - Zero or negative income",6,10,61,66,96,86,5,10,6,9,0,11,0,11,0,11,0,16,0,11,0,11,31,48,0,11,0,11,0,11]
[null,null,null,"Estimate Total: Renter-occupied housing units: No cash rent",2,3,31,47,8,12,2,4,10,7,0,11,3,4,2,3,72,76,4,8,15,15,5,8,8,9,9,7,9,7]

{"sheet":"SData_B25118_B25119HHIncByTen","index":105,"n_rows":49,"n_cols":62,"rows_kept":49,"cut":false,"hidden":true,"merged":[]}
["GEO_ID","GEO_ID2","SUMLEVEL","GEO_NAME","B25118_1_EST","B25118_1_MOE","B25118_2_EST","B25118_2_MOE","B25118_3_EST","B25118_3_MOE","B25118_4_EST","B25118_4_MOE","B25118_5_EST","B25118_5_MOE","B25118_6_EST","B25118_6_MOE","B25118_7_EST","B25118_7_MOE","B25118_8_EST","B25118_8_MOE","B25118_9_EST","B25118_9_MOE","B25118_10_EST","B25118_10_MOE","B25118_11_EST","B25118_11_MOE","B25118_12_EST","B25118_12_MOE","B25118_13_EST","B25118_13_MOE","B25118_14_EST","B25118_14_MOE","B25118_15_EST","B25118_15_MOE","B25118_16_EST","B25118_16_MOE","B25118_17_EST","B25118_17_MOE","B25118_18_EST","B25118_18_MOE","B25118_19_EST","B25118_19_MOE","B25118_20_EST","B25118_20_MOE","B25118_21_EST","B25118_21_MOE","B25118_22_EST","B25118_22_MOE","B25118_23_EST","B25118_23_MOE","B25118_24_EST","B25118_24_MOE","B25118_25_EST","B25118_25_MOE","B25119_1_EST","B25119_1_MOE","B25119_2_EST","B25119_2_MOE","B25119_3_EST","B25119_3_MOE"]
["Geography Identifier","Geography Identifier","Geographic Summary Level","Geography",{"$f":"[1]ACS_16_5YR_B25118_with_ann!D$2","v":"Estimate Total:"},{"$f":"[1]ACS_16_5YR_B25118_with_ann!E$2","v":"Margin of Error Total:"},{"$f":"[1]ACS_16_5YR_B25118_with_ann!F$2","v":"Estimate Total: Owner occupied:"},{"$f":"[1]ACS_16_5YR_B25118_with_ann!G$2","v":"Margin of Error Total: Owner occupied:"},{"$f":"[1]ACS_16_5YR_B25118_with_ann!H$2","v":"Estimate  Owner occupied: - Less than $5,000"},{"$f":"[1]ACS_16_5YR_B25118_with_ann!I$2","v":"Margin of Error Total: Owner occupied: Less than $5"},{"$f":"[1]ACS_16_5YR_B25118_with_ann!J$2","v":"Estimate  Owner occupied: - $5,000 to $9,999"},{"$f":"[1]ACS_16_5YR_B25118_with_ann!K$2","v":"Margin of Error Total: Owner occupied: $5"},{"$f":"[1]ACS_16_5YR_B25118_with_ann!L$2","v":"Estimate  Owner occupied: - $10,000 to $14,999"},{"$f":"[1]ACS_16_5YR_B25118_with_ann!M$2","v":"Margin of Error Total: Owner occupied: $10"},{"$f":"[1]ACS_16_5YR_B25118_with_ann!N$2","v":"Estimate  Owner occupied: - $15,000 to $19,999"},{"$f":"[1]ACS_16_5YR_B25118_with_ann!O$2","v":"Margin of Error Total: Owner occupied: $15"},{"$f":"[1]ACS_16_5YR_B25118_with_ann!P$2","v":"Estimate  Owner occupied: - $20,000 to $24,999"},{"$f":"[1]ACS_16_5YR_B25118_with_ann!Q$2","v":"Margin of Error Total: Owner occupied: $20"},{"$f":"[1]ACS_16_5YR_B25118_with_ann!R$2","v":"Estimate  Owner occupied: - $25,000 to $34,999"},{"$f":"[1]ACS_16_5YR_B25118_with_ann!S$2","v":"Margin of Error Total: Owner occupied: $25"},{"$f":"[1]ACS_16_5YR_B25118_with_ann!T$2","v":"Estimate  Owner occupied: - $35,000 to $49,999"},{"$f":"[1]ACS_16_5YR_B25118_with_ann!U$2","v":"Margin of Error Total: Owner occupied: $35"},{"$f":"[1]ACS_16_5YR_B25118_with_ann!V$2","v":"Estimate  Owner occupied: - $50,000 to $74,999"},{"$f":"[1]ACS_16_5YR_B25118_with_ann!W$2","v":"Margin of Error Total: Owner occupied: $50"},{"$f":"[1]ACS_16_5YR_B25118_with_ann!X$2","v":"Estimate  Owner occupied: - $75,000 to $99,999"},{"$f":"[1]ACS_16_5YR_B25118_with_ann!Y$2","v":"Margin of Error Total: Owner occupied: $75"},{"$f":"[1]ACS_16_5YR_B25118_with_ann!Z$2","v":"Estimate  Owner occupied: - $100,000 to $149,999"},{"$f":"[1]ACS_16_5YR_B25118_with_ann!AA$2","v":"Margin of Error Total: Owner occupied: $100"},{"$f":"[1]ACS_16_5YR_B25118_with_ann!AB$2","v":"Estimate  Owner occupied: - $150,000 or more"},{"$f":"[1]ACS_16_5YR_B25118_with_ann!AC$2","v":"Margin of Error Total: Owner occupied: $150"},{"$f":"[1]ACS_16_5YR_B25118_with_ann!AD$2","v":"Estimate Total: Renter occupied:"},{"$f":"[1]ACS_16_5YR_B25118_with_ann!AE$2","v":"Margin of Error Total: Renter occupied:"},{"$f":"[1]ACS_16_5YR_B25118_with_ann!AF$2","v":"Estimate  Renter occupied: - Less than $5,000"},{"$f":"[1]ACS_16_5YR_B25118_with_ann!AG$2","v":"Margin of Error Total: Renter occupied: Less than $5"},{"$f":"[1]ACS_16_5YR_B25118_with_ann!AH$2","v":"Estimate  Renter occupied: - $5,000 to $9,999"},{"$f":"[1]ACS_16_5YR_B25118_with_ann!AI$2","v":"Margin of Error Total: Renter occupied: $5"},{"$f":"[1]ACS_16_5YR_B25118_with_ann!AJ$2","v":"Estimate  Renter occupied: - $10,000 to $14,999"},{"$f":"[1]ACS_16_5YR_B25118_with_ann!AK$2","v":"Margin of Error Total: Renter occupied: $10"},{"$f":"[1]ACS_16_5YR_B25118_with_ann!AL$2","v":"Estimate  Renter occupied: - $15,000 to $19,999"},{"$f":"[1]ACS_16_5YR_B25118_with_ann!AM$2","v":"Margin of Error Total: Renter occupied: $15"},{"$f":"[1]ACS_16_5YR_B25118_with_ann!AN$2","v":"Estimate  Renter occupied: - $20,000 to $24,999"},{"$f":"[1]ACS_16_5YR_B25118_with_ann!AO$2","v":"Margin of Error Total: Renter occupied: $20"},{"$f":"[1]ACS_16_5YR_B25118_with_ann!AP$2","v":"Estimate  Renter occupied: - $25,000 to $34,999"},{"$f":"[1]ACS_16_5YR_B25118_with_ann!AQ$2","v":"Margin of Error Total: Renter occupied: $25"},{"$f":"[1]ACS_16_5YR_B25118_with_ann!AR$2","v":"Estimate  Renter occupied: - $35,000 to $49,999"},{"$f":"[1]ACS_16_5YR_B25118_with_ann!AS$2","v":"Margin of Error Total: Renter occupied: $35"},{"$f":"[1]ACS_16_5YR_B25118_with_ann!AT$2","v":"Estimate  Renter occupied: - $50,000 to $74,999"},{"$f":"[1]ACS_16_5YR_B25118_with_ann!AU$2","v":"Margin of Error Total: Renter occupied: $50"},{"$f":"[1]ACS_16_5YR_B25118_with_ann!AV$2","v":"Estimate  Renter occupied: - $75,000 to $99,999"},{"$f":"[1]ACS_16_5YR_B25118_with_ann!AW$2","v":"Margin of Error Total: Renter occupied: $75"},{"$f":"[1]ACS_16_5YR_B25118_with_ann!AX$2","v":"Estimate  Renter occupied: - $100,000 to $149,999"},{"$f":"[1]ACS_16_5YR_B25118_with_ann!AY$2","v":"Margin of Error Total: Renter occupied: $100"},{"$f":"[1]ACS_16_5YR_B25118_with_ann!AZ$2","v":"Estimate  Renter occupied: - $150,000 or more"},{"$f":"[1]ACS_16_5YR_B25118_with_ann!BA$2","v":"Margin of Error Total: Renter occupied: $150"},{"$f":"[1]ACS_16_5YR_B25119_with_ann!D$2","v":"Estimate Median household income in the past 12 months (in 2019 inflation-adjusted dollars) -- Total:"},{"$f":"[1]ACS_16_5YR_B25119_with_ann!E$2","v":"Margin of Error Median household income in the past 12 months (in 2019 inflation-adjusted dollars) -- Total:"},{"$f":"[1]ACS_16_5YR_B25119_with_ann!F$2","v":"Estimate Median household income in the past 12 months (in 2019 inflation-adjusted dollars) -- Total: Owner occupied (dollars)"},{"$f":"[1]ACS_16_5YR_B25119_with_ann!G$2","v":"Margin of Error Median household income in the past 12 months (in 2019 inflation-adjusted dollars) -- Total: Owner occupied (dollars)"},{"$f":"[1]ACS_16_5YR_B25119_with_ann!H$2","v":"Estimate Median household income in the past 12 months (in 2019 inflation-adjusted dollars) -- Total: Renter occupied (dollars)"},{"$f":"[1]ACS_16_5YR_B25119_with_ann!I$2","v":"Margin of Error Median household income in the past 12 months (in 2019 inflation-adjusted dollars) -- Total: Renter occupied (dollars)"}]
["0600000US3301900259",3301900259,"060","Acworth",{"$f":"[1]ACS_16_5YR_B25118_with_ann!D258","v":370},{"$f":"[1]ACS_16_5YR_B25118_with_ann!E258","v":51},{"$f":"[1]ACS_16_5YR_B25118_with_ann!F258","v":340},{"$f":"[1]ACS_16_5YR_B25118_with_ann!G258","v":50},{"$f":"[1]ACS_16_5YR_B25118_with_ann!H258","v":9},{"$f":"[1]ACS_16_5YR_B25118_with_ann!I258","v":12},{"$f":"[1]ACS_16_5YR_B25118_with_ann!J258","v":0},{"$f":"[1]ACS_16_5YR_B25118_with_ann!K258","v":11},{"$f":"[1]ACS_16_5YR_B25118_with_ann!L258","v":6},{"$f":"[1]ACS_16_5YR_B25118_with_ann!M258","v":6},{"$f":"[1]ACS_16_5YR_B25118_with_ann!N258","v":7},{"$f":"[1]ACS_16_5YR_B25118_with_ann!O258","v":6},{"$f":"[1]ACS_16_5YR_B25118_with_ann!P258","v":8},{"$f":"[1]ACS_16_5YR_B25118_with_ann!Q258","v":10},{"$f":"[1]ACS_16_5YR_B25118_with_ann!R258","v":28},{"$f":"[1]ACS_16_5YR_B25118_with_ann!S258","v":14},{"$f":"[1]ACS_16_5YR_B25118_with_ann!T258","v":40},{"$f":"[1]ACS_16_5YR_B25118_with_ann!U258","v":19},{"$f":"[1]ACS_16_5YR_B25118_with_ann!V258","v":89},{"$f":"[1]ACS_16_5YR_B25118_with_ann!W258","v":29},{"$f":"[1]ACS_16_5YR_B25118_with_ann!X258","v":59},{"$f":"[1]ACS_16_5YR_B25118_with_ann!Y258","v":34},{"$f":"[1]ACS_16_5YR_B25118_with_ann!Z258","v":62},{"$f":"[1]ACS_16_5YR_B25118_with_ann!AA258","v":21},{"$f":"[1]ACS_16_5YR_B25118_with_ann!AB258","v":32},{"$f":"[1]ACS_16_5YR_B25118_with_ann!AC258","v":17},{"$f":"[1]ACS_16_5YR_B25118_with_ann!AD258","v":30},{"$f":"[1]ACS_16_5YR_B25118_with_ann!AE258","v":16},{"$f":"[1]ACS_16_5YR_B25118_with_ann!AF258","v":6},{"$f":"[1]ACS_16_5YR_B25118_with_ann!AG258","v":10},{"$f":"[1]ACS_16_5YR_B25118_with_ann!AH258","v":0},{"$f":"[1]ACS_16_5YR_B25118_with_ann!AI258","v":11},{"$f":"[1]ACS_16_5YR_B25118_with_ann!AJ258","v":0},{"$f":"[1]ACS_16_5YR_B25118_with_ann!AK258","v":11},{"$f":"[1]ACS_16_5YR_B25118_with_ann!AL258","v":0},{"$f":"[1]ACS_16_5YR_B25118_with_ann!AM258","v":11},{"$f":"[1]ACS_16_5YR_B25118_with_ann!AN258","v":0},{"$f":"[1]ACS_16_5YR_B25118_with_ann!AO258","v":11},{"$f":"[1]ACS_16_5YR_B25118_with_ann!AP258","v":2},{"$f":"[1]ACS_16_5YR_B25118_with_ann!AQ258","v":3},{"$f":"[1]ACS_16_5YR_B25118_with_ann!AR258","v":6},{"$f":"[1]ACS_16_5YR_B25118_with_ann!AS258","v":5},{"$f":"[1]ACS_16_5YR_B25118_with_ann!AT258","v":8},{"$f":"[1]ACS_16_5YR_B25118_with_ann!AU258","v":10},{"$f":"[1]ACS_16_5YR_B25118_with_ann!AV258","v":5},{"$f":"[1]ACS_16_5YR_B25118_with_ann!AW258","v":6},{"$f":"[1]ACS_16_5YR_B25118_with_ann!AX258","v":0},{"$f":"[1]ACS_16_5YR_B25118_with_ann!AY258","v":11},{"$f":"[1]ACS_16_5YR_B25118_with_ann!AZ258","v":3},{"$f":"[1]ACS_16_5YR_B25118_with_ann!BA258","v":5},{"$f":"[1]ACS_16_5YR_B25119_with_ann!D258","v":68438},{"$f":"[1]ACS_16_5YR_B25119_with_ann!E258","v":8127},{"$f":"[1]ACS_16_5YR_B25119_with_ann!F258","v":70500},{"$f":"[1]ACS_16_5YR_B25119_with_ann!G258","v":7922},{"$f":"[1]ACS_16_5YR_B25119_with_ann!H258","v":51250},{"$f":"[1]ACS_16_5YR_B25119_with_ann!I258","v":15306},null,"Acworth"]
["0600000US3301911380",3301911380,"060","Charlestown",{"$f":"[1]ACS_16_5YR_B25118_with_ann!D259","v":2086},{"$f":"[1]ACS_16_5YR_B25118_with_ann!E259","v":184},{"$f":"[1]ACS_16_5YR_B25118_with_ann!F259","v":1584},{"$f":"[1]ACS_16_5YR_B25118_with_ann!G259","v":209},{"$f":"[1]ACS_16_5YR_B25118_with_ann!H259","v":55},{"$f":"[1]ACS_16_5YR_B25118_with_ann!I259","v":55},{"$f":"[1]ACS_16_5YR_B25118_with_ann!J259","v":54},{"$f":"[1]ACS_16_5YR_B25118_with_ann!K259","v":85},{"$f":"[1]ACS_16_5YR_B25118_with_ann!L259","v":16},{"$f":"[1]ACS_16_5YR_B25118_with_ann!M259","v":26},{"$f":"[1]ACS_16_5YR_B25118_with_ann!N259","v":105},{"$f":"[1]ACS_16_5YR_B25118_with_ann!O259","v":88},{"$f":"[1]ACS_16_5YR_B25118_with_ann!P259","v":56},{"$f":"[1]ACS_16_5YR_B25118_with_ann!Q259","v":71},{"$f":"[1]ACS_16_5YR_B25118_with_ann!R259","v":241},{"$f":"[1]ACS_16_5YR_B25118_with_ann!S259","v":139},{"$f":"[1]ACS_16_5YR_B25118_with_ann!T259","v":270},{"$f":"[1]ACS_16_5YR_B25118_with_ann!U259","v":140},{"$f":"[1]ACS_16_5YR_B25118_with_ann!V259","v":323},{"$f":"[1]ACS_16_5YR_B25118_with_ann!W259","v":117},{"$f":"[1]ACS_16_5YR_B25118_with_ann!X259","v":304},{"$f":"[1]ACS_16_5YR_B25118_with_ann!Y259","v":126},{"$f":"[1]ACS_16_5YR_B25118_with_ann!Z259","v":93},{"$f":"[1]ACS_16_5YR_B25118_with_ann!AA259","v":64},{"$f":"[1]ACS_16_5YR_B25118_with_ann!AB259","v":67},{"$f":"[1]ACS_16_5YR_B25118_with_ann!AC259","v":54},{"$f":"[1]ACS_16_5YR_B25118_with_ann!AD259","v":502},{"$f":"[1]ACS_16_5YR_B25118_with_ann!AE259","v":134},{"$f":"[1]ACS_16_5YR_B25118_with_ann!AF259","v":61},{"$f":"[1]ACS_16_5YR_B25118_with_ann!AG259","v":66},{"$f":"[1]ACS_16_5YR_B25118_with_ann!AH259","v":0},{"$f":"[1]ACS_16_5YR_B25118_with_ann!AI259","v":16},{"$f":"[1]ACS_16_5YR_B25118_with_ann!AJ259","v":14},{"$f":"[1]ACS_16_5YR_B25118_with_ann!AK259","v":23},{"$f":"[1]ACS_16_5YR_B25118_with_ann!AL259","v":73},{"$f":"[1]ACS_16_5YR_B25118_with_ann!AM259","v":66},{"$f":"[1]ACS_16_5YR_B25118_with_ann!AN259","v":17},{"$f":"[1]ACS_16_5YR_B25118_with_ann!AO259","v":28},{"$f":"[1]ACS_16_5YR_B25118_with_ann!AP259","v":60},{"$f":"[1]ACS_16_5YR_B25118_with_ann!AQ259","v":53},{"$f":"[1]ACS_16_5YR_B25118_with_ann!AR259","v":41},{"$f":"[1]ACS_16_5YR_B25118_with_ann!AS259","v":42},{"$f":"[1]ACS_16_5YR_B25118_with_ann!AT259","v":45},{"$f":"[1]ACS_16_5YR_B25118_with_ann!AU259","v":52},{"$f":"[1]ACS_16_5YR_B25118_with_ann!AV259","v":109},{"$f":"[1]ACS_16_5YR_B25118_with_ann!AW259","v":97},{"$f":"[1]ACS_16_5YR_B25118_with_ann!AX259","v":36},{"$f":"[1]ACS_16_5YR_B25118_with_ann!AY259","v":59},{"$f":"[1]ACS_16_5YR_B25118_with_ann!AZ259","v":46},{"$f":"[1]ACS_16_5YR_B25118_with_ann!BA259","v":54},{"$f":"[1]ACS_16_5YR_B25119_with_ann!D259","v":47302},{"$f":"[1]ACS_16_5YR_B25119_with_ann!E259","v":12871},{"$f":"[1]ACS_16_5YR_B25119_with_ann!F259","v":49167},{"$f":"[1]ACS_16_5YR_B25119_with_ann!G259","v":13210},{"$f":"[1]ACS_16_5YR_B25119_with_ann!H259","v":46058},{"$f":"[1]ACS_16_5YR_B25119_with_ann!I259","v":35417},null,"Acworth"]
["0600000US3301912900",3301912900,"060","Claremont",{"$f":"[1]ACS_16_5YR_B25118_with_ann!D260","v":5231},{"$f":"[1]ACS_16_5YR_B25118_with_ann!E260","v":284},{"$f":"[1]ACS_16_5YR_B25118_with_ann!F260","v":2921},{"$f":"[1]ACS_16_5YR_B25118_with_ann!G260","v":257},{"$f":"[1]ACS_16_5YR_B25118_with_ann!H260","v":27},{"$f":"[1]ACS_16_5YR_B25118_with_ann!I260","v":41},{"$f":"[1]ACS_16_5YR_B25118_with_ann!J260","v":68},{"$f":"[1]ACS_16_5YR_B25118_with_ann!K260","v":59},{"$f":"[1]ACS_16_5YR_B25118_with_ann!L260","v":81},{"$f":"[1]ACS_16_5YR_B25118_with_ann!M260","v":65},{"$f":"[1]ACS_16_5YR_B25118_with_ann!N260","v":90},{"$f":"[1]ACS_16_5YR_B25118_with_ann!O260","v":68},{"$f":"[1]ACS_16_5YR_B25118_with_ann!P260","v":133},{"$f":"[1]ACS_16_5YR_B25118_with_ann!Q260","v":75},{"$f":"[1]ACS_16_5YR_B25118_with_ann!R260","v":334},{"$f":"[1]ACS_16_5YR_B25118_with_ann!S260","v":116},{"$f":"[1]ACS_16_5YR_B25118_with_ann!T260","v":334},{"$f":"[1]ACS_16_5YR_B25118_with_ann!U260","v":111},{"$f":"[1]ACS_16_5YR_B25118_with_ann!V260","v":532},{"$f":"[1]ACS_16_5YR_B25118_with_ann!W260","v":116},{"$f":"[1]ACS_16_5YR_B25118_with_ann!X260","v":610},{"$f":"[1]ACS_16_5YR_B25118_with_ann!Y260","v":148},{"$f":"[1]ACS_16_5YR_B25118_with_ann!Z260","v":442},{"$f":"[1]ACS_16_5YR_B25118_with_ann!AA260","v":140},{"$f":"[1]ACS_16_5YR_B25118_with_ann!AB260","v":270},{"$f":"[1]ACS_16_5YR_B25118_with_ann!AC260","v":104},{"$f":"[1]ACS_16_5YR_B25118_with_ann!AD260","v":2310},{"$f":"[1]ACS_16_5YR_B25118_with_ann!AE260","v":288},{"$f":"[1]ACS_16_5YR_B25118_with_ann!AF260","v":147},{"$f":"[1]ACS_16_5YR_B25118_with_ann!AG260","v":102},{"$f":"[1]ACS_16_5YR_B25118_with_ann!AH260","v":69},{"$f":"[1]ACS_16_5YR_B25118_with_ann!AI260","v":47},{"$f":"[1]ACS_16_5YR_B25118_with_ann!AJ260","v":164},{"$f":"[1]ACS_16_5YR_B25118_with_ann!AK260","v":77},{"$f":"[1]ACS_16_5YR_B25118_with_ann!AL260","v":209},{"$f":"[1]ACS_16_5YR_B25118_with_ann!AM260","v":83},{"$f":"[1]ACS_16_5YR_B25118_with_ann!AN260","v":277},{"$f":"[1]ACS_16_5YR_B25118_with_ann!AO260","v":145},{"$f":"[1]ACS_16_5YR_B25118_with_ann!AP260","v":350},{"$f":"[1]ACS_16_5YR_B25118_with_ann!AQ260","v":133},{"$f":"[1]ACS_16_5YR_B25118_with_ann!AR260","v":435},{"$f":"[1]ACS_16_5YR_B25118_with_ann!AS260","v":157},{"$f":"[1]ACS_16_5YR_B25118_with_ann!AT260","v":311},{"$f":"[1]ACS_16_5YR_B25118_with_ann!AU260","v":115},{"$f":"[1]ACS_16_5YR_B25118_with_ann!AV260","v":253},{"$f":"[1]ACS_16_5YR_B25118_with_ann!AW260","v":133},{"$f":"[1]ACS_16_5YR_B25118_with_ann!AX260","v":41},{"$f":"[1]ACS_16_5YR_B25118_with_ann!AY260","v":43},{"$f":"[1]ACS_16_5YR_B25118_with_ann!AZ260","v":54},{"$f":"[1]ACS_16_5YR_B25118_with_ann!BA260","v":38},{"$f":"[1]ACS_16_5YR_B25119_with_ann!D260","v":47649},{"$f":"[1]ACS_16_5YR_B25119_with_ann!E260","v":4588},{"$f":"[1]ACS_16_5YR_B25119_with_ann!F260","v":65906},{"$f":"[1]ACS_16_5YR_B25119_with_ann!G260","v":9470},{"$f":"[1]ACS_16_5YR_B25119_with_ann!H260","v":33708},{"$f":"[1]ACS_16_5YR_B25119_with_ann!I260","v":7109},null,"Acworth"]
["0600000US3301915060",3301915060,"060","Cornish",{"$f":"[1]ACS_16_5YR_B25118_with_ann!D261","v":741},{"$f":"[1]ACS_16_5YR_B25118_with_ann!E261","v":81},{"$f":"[1]ACS_16_5YR_B25118_with_ann!F261","v":686},{"$f":"[1]ACS_16_5YR_B25118_with_ann!G261","v":79},{"$f":"[1]ACS_16_5YR_B25118_with_ann!H261","v":7},{"$f":"[1]ACS_16_5YR_B25118_with_ann!I261","v":8},{"$f":"[1]ACS_16_5YR_B25118_with_ann!J261","v":6},{"$f":"[1]ACS_16_5YR_B25118_with_ann!K261","v":9},{"$f":"[1]ACS_16_5YR_B25118_with_ann!L261","v":12},{"$f":"[1]ACS_16_5YR_B25118_with_ann!M261","v":19},{"$f":"[1]ACS_16_5YR_B25118_with_ann!N261","v":27},{"$f":"[1]ACS_16_5YR_B25118_with_ann!O261","v":24},{"$f":"[1]ACS_16_5YR_B25118_with_ann!P261","v":3},{"$f":"[1]ACS_16_5YR_B25118_with_ann!Q261","v":4},{"$f":"[1]ACS_16_5YR_B25118_with_ann!R261","v":61},{"$f":"[1]ACS_16_5YR_B25118_with_ann!S261","v":35},{"$f":"[1]ACS_16_5YR_B25118_with_ann!T261","v":86},{"$f":"[1]ACS_16_5YR_B25118_with_ann!U261","v":34},{"$f":"[1]ACS_16_5YR_B25118_with_ann!V261","v":98},{"$f":"[1]ACS_16_5YR_B25118_with_ann!W261","v":34},{"$f":"[1]ACS_16_5YR_B25118_with_ann!X261","v":108},{"$f":"[1]ACS_16_5YR_B25118_with_ann!Y261","v":36},{"$f":"[1]ACS_16_5YR_B25118_with_ann!Z261","v":162},{"$f":"[1]ACS_16_5YR_B25118_with_ann!AA261","v":36},{"$f":"[1]ACS_16_5YR_B25118_with_ann!AB261","v":116},{"$f":"[1]ACS_16_5YR_B25118_with_ann!AC261","v":35},{"$f":"[1]ACS_16_5YR_B25118_with_ann!AD261","v":55},{"$f":"[1]ACS_16_5YR_B25118_with_ann!AE261","v":26},{"$f":"[1]ACS_16_5YR_B25118_with_ann!AF261","v":3},{"$f":"[1]ACS_16_5YR_B25118_with_ann!AG261","v":5},{"$f":"[1]ACS_16_5YR_B25118_with_ann!AH261","v":0},{"$f":"[1]ACS_16_5YR_B25118_with_ann!AI261","v":11},{"$f":"[1]ACS_16_5YR_B25118_with_ann!AJ261","v":7},{"$f":"[1]ACS_16_5YR_B25118_with_ann!AK261","v":7},{"$f":"[1]ACS_16_5YR_B25118_with_ann!AL261","v":6},{"$f":"[1]ACS_16_5YR_B25118_with_ann!AM261","v":6},{"$f":"[1]ACS_16_5YR_B25118_with_ann!AN261","v":4},{"$f":"[1]ACS_16_5YR_B25118_with_ann!AO261","v":6},{"$f":"[1]ACS_16_5YR_B25118_with_ann!AP261","v":4},{"$f":"[1]ACS_16_5YR_B25118_with_ann!AQ261","v":6},{"$f":"[1]ACS_16_5YR_B25118_with_ann!AR261","v":3},{"$f":"[1]ACS_16_5YR_B25118_with_ann!AS261","v":5},{"$f":"[1]ACS_16_5YR_B25118_with_ann!AT261","v":10},{"$f":"[1]ACS_16_5YR_B25118_with_ann!AU261","v":17},{"$f":"[1]ACS_16_5YR_B25118_with_ann!AV261","v":3},{"$f":"[1]ACS_16_5YR_B25118_with_ann!AW261","v":5},{"$f":"[1]ACS_16_5YR_B25118_with_ann!AX261","v":12},{"$f":"[1]ACS_16_5YR_B25118_with_ann!AY261","v":10},{"$f":"[1]ACS_16_5YR_B25118_with_ann!AZ261","v":3},{"$f":"[1]ACS_16_5YR_B25118_with_ann!BA261","v":4},{"$f":"[1]ACS_16_5YR_B25119_with_ann!D261","v":82083},{"$f":"[1]ACS_16_5YR_B25119_with_ann!E261","v":12741},{"$f":"[1]ACS_16_5YR_B25119_with_ann!F261","v":87647},{"$f":"[1]ACS_16_5YR_B25119_with_ann!G261","v":12888},{"$f":"[1]ACS_16_5YR_B25119_with_ann!H262","v":66071},{"$f":"[1]ACS_16_5YR_B25119_with_ann!I262","v":41117},null,"Acworth"]
["0600000US3301916340",3301916340,"060","Croydon",{"$f":"[1]ACS_16_5YR_B25118_with_ann!D262","v":293},{"$f":"[1]ACS_16_5YR_B25118_with_ann!E262","v":56},{"$f":"[1]ACS_16_5YR_B25118_with_ann!F262","v":257},{"$f":"[1]ACS_16_5YR_B25118_with_ann!G262","v":53},{"$f":"[1]ACS_16_5YR_B25118_with_ann!H262","v":2},{"$f":"[1]ACS_16_5YR_B25118_with_ann!I262","v":4},{"$f":"[1]ACS_16_5YR_B25118_with_ann!J262","v":7},{"$f":"[1]ACS_16_5YR_B25118_with_ann!K262","v":12},{"$f":"[1]ACS_16_5YR_B25118_with_ann!L262","v":12},{"$f":"[1]ACS_16_5YR_B25118_with_ann!M262","v":13},{"$f":"[1]ACS_16_5YR_B25118_with_ann!N262","v":3},{"$f":"[1]ACS_16_5YR_B25118_with_ann!O262","v":5},{"$f":"[1]ACS_16_5YR_B25118_with_ann!P262","v":10},{"$f":"[1]ACS_16_5YR_B25118_with_ann!Q262","v":8},{"$f":"[1]ACS_16_5YR_B25118_with_ann!R262","v":16},{"$f":"[1]ACS_16_5YR_B25118_with_ann!S262","v":11},{"$f":"[1]ACS_16_5YR_B25118_with_ann!T262","v":30},{"$f":"[1]ACS_16_5YR_B25118_with_ann!U262","v":18},{"$f":"[1]ACS_16_5YR_B25118_with_ann!V262","v":36},{"$f":"[1]ACS_16_5YR_B25118_with_ann!W262","v":17},{"$f":"[1]ACS_16_5YR_B25118_with_ann!X262","v":46},{"$f":"[1]ACS_16_5YR_B25118_with_ann!Y262","v":22},{"$f":"[1]ACS_16_5YR_B25118_with_ann!Z262","v":58},{"$f":"[1]ACS_16_5YR_B25118_with_ann!AA262","v":27},{"$f":"[1]ACS_16_5YR_B25118_with_ann!AB262","v":37},{"$f":"[1]ACS_16_5YR_B25118_with_ann!AC262","v":23},{"$f":"[1]ACS_16_5YR_B25118_with_ann!AD262","v":36},{"$f":"[1]ACS_16_5YR_B25118_with_ann!AE262","v":22},{"$f":"[1]ACS_16_5YR_B25118_with_ann!AF262","v":5},{"$f":"[1]ACS_16_5YR_B25118_with_ann!AG262","v":10},{"$f":"[1]ACS_16_5YR_B25118_with_ann!AH262","v":0},{"$f":"[1]ACS_16_5YR_B25118_with_ann!AI262","v":11},{"$f":"[1]ACS_16_5YR_B25118_with_ann!AJ262","v":0},{"$f":"[1]ACS_16_5YR_B25118_with_ann!AK262","v":11},{"$f":"[1]ACS_16_5YR_B25118_with_ann!AL262","v":3},{"$f":"[1]ACS_16_5YR_B25118_with_ann!AM262","v":4},{"$f":"[1]ACS_16_5YR_B25118_with_ann!AN262","v":0},{"$f":"[1]ACS_16_5YR_B25118_with_ann!AO262","v":11},{"$f":"[1]ACS_16_5YR_B25118_with_ann!AP262","v":5},{"$f":"[1]ACS_16_5YR_B25118_with_ann!AQ262","v":6},{"$f":"[1]ACS_16_5YR_B25118_with_ann!AR262","v":0},{"$f":"[1]ACS_16_5YR_B25118_with_ann!AS262","v":11},{"$f":"[1]ACS_16_5YR_B25118_with_ann!AT262","v":15},{"$f":"[1]ACS_16_5YR_B25118_with_ann!AU262","v":15},{"$f":"[1]ACS_16_5YR_B25118_with_ann!AV262","v":2},{"$f":"[1]ACS_16_5YR_B25118_with_ann!AW262","v":4},{"$f":"[1]ACS_16_5YR_B25118_with_ann!AX262","v":6},{"$f":"[1]ACS_16_5YR_B25118_with_ann!AY262","v":10},{"$f":"[1]ACS_16_5YR_B25118_with_ann!AZ262","v":0},{"$f":"[1]ACS_16_5YR_B25118_with_ann!BA262","v":11},{"$f":"[1]ACS_16_5YR_B25119_with_ann!D262","v":75521},{"$f":"[1]ACS_16_5YR_B25119_with_ann!E262","v":12747},{"$f":"[1]ACS_16_5YR_B25119_with_ann!F262","v":77708},{"$f":"[1]ACS_16_5YR_B25119_with_ann!G262","v":12879},{"$f":"[1]ACS_16_5YR_B25119_with_ann!H263","v":49000},{"$f":"[1]ACS_16_5YR_B25119_with_ann!I263","v":27814},null,"Acworth"]
["0600000US3301930500",3301930500,"060","Goshen",{"$f":"[1]ACS_16_5YR_B25118_with_ann!D263","v":277},{"$f":"[1]ACS_16_5YR_B25118_with_ann!E263","v":39},{"$f":"[1]ACS_16_5YR_B25118_with_ann!F263","v":223},{"$f":"[1]ACS_16_5YR_B25118_with_ann!G263","v":35},{"$f":"[1]ACS_16_5YR_B25118_with_ann!H263","v":2},{"$f":"[1]ACS_16_5YR_B25118_with_ann!I263","v":3},{"$f":"[1]ACS_16_5YR_B25118_with_ann!J263","v":0},{"$f":"[1]ACS_16_5YR_B25118_with_ann!K263","v":11},{"$f":"[1]ACS_16_5YR_B25118_with_ann!L263","v":8},{"$f":"[1]ACS_16_5YR_B25118_with_ann!M263","v":10},{"$f":"[1]ACS_16_5YR_B25118_with_ann!N263","v":9},{"$f":"[1]ACS_16_5YR_B25118_with_ann!O263","v":7},{"$f":"[1]ACS_16_5YR_B25118_with_ann!P263","v":5},{"$f":"[1]ACS_16_5YR_B25118_with_ann!Q263","v":8},{"$f":"[1]ACS_16_5YR_B25118_with_ann!R263","v":15},{"$f":"[1]ACS_16_5YR_B25118_with_ann!S263","v":13},{"$f":"[1]ACS_16_5YR_B25118_with_ann!T263","v":26},{"$f":"[1]ACS_16_5YR_B25118_with_ann!U263","v":16},{"$f":"[1]ACS_16_5YR_B25118_with_ann!V263","v":62},{"$f":"[1]ACS_16_5YR_B25118_with_ann!W263","v":26},{"$f":"[1]ACS_16_5YR_B25118_with_ann!X263","v":41},{"$f":"[1]ACS_16_5YR_B25118_with_ann!Y263","v":15},{"$f":"[1]ACS_16_5YR_B25118_with_ann!Z263","v":41},{"$f":"[1]ACS_16_5YR_B25118_with_ann!AA263","v":21},{"$f":"[1]ACS_16_5YR_B25118_with_ann!AB263","v":14},{"$f":"[1]ACS_16_5YR_B25118_with_ann!AC263","v":11},{"$f":"[1]ACS_16_5YR_B25118_with_ann!AD263","v":54},{"$f":"[1]ACS_16_5YR_B25118_with_ann!AE263","v":23},{"$f":"[1]ACS_16_5YR_B25118_with_ann!AF263","v":8},{"$f":"[1]ACS_16_5YR_B25118_with_ann!AG263","v":10},{"$f":"[1]ACS_16_5YR_B25118_with_ann!AH263","v":9},{"$f":"[1]ACS_16_5YR_B25118_with_ann!AI263","v":11},{"$f":"[1]ACS_16_5YR_B25118_with_ann!AJ263","v":0},{"$f":"[1]ACS_16_5YR_B25118_with_ann!AK263","v":11},{"$f":"[1]ACS_16_5YR_B25118_with_ann!AL263","v":0},{"$f":"[1]ACS_16_5YR_B25118_with_ann!AM263","v":11},{"$f":"[1]ACS_16_5YR_B25118_with_ann!AN263","v":4},{"$f":"[1]ACS_16_5YR_B25118_with_ann!AO263","v":4},{"$f":"[1]ACS_16_5YR_B25118_with_ann!AP263","v":0},{"$f":"[1]ACS_16_5YR_B25118_with_ann!AQ263","v":11},{"$f":"[1]ACS_16_5YR_B25118_with_ann!AR263","v":10},{"$f":"[1]ACS_16_5YR_B25118_with_ann!AS263","v":12},{"$f":"[1]ACS_16_5YR_B25118_with_ann!AT263","v":15},{"$f":"[1]ACS_16_5YR_B25118_with_ann!AU263","v":15},{"$f":"[1]ACS_16_5YR_B25118_with_ann!AV263","v":8},{"$f":"[1]ACS_16_5YR_B25118_with_ann!AW263","v":7},{"$f":"[1]ACS_16_5YR_B25118_with_ann!AX263","v":0},{"$f":"[1]ACS_16_5YR_B25118_with_ann!AY263","v":11},{"$f":"[1]ACS_16_5YR_B25118_with_ann!AZ263","v":0},{"$f":"[1]ACS_16_5YR_B25118_with_ann!BA263","v":11},{"$f":"[1]ACS_16_5YR_B25119_with_ann!D263","v":59583},{"$f":"[1]ACS_16_5YR_B25119_with_ann!E263","v":12176},{"$f":"[1]ACS_16_5YR_B25119_with_ann!F263","v":69107},{"$f":"[1]ACS_16_5YR_B25119_with_ann!G263","v":11123},{"$f":"[1]ACS_16_5YR_B25119_with_ann!H264","v":138315},{"$f":"[1]ACS_16_5YR_B25119_with_ann!I264","v":83312},null,"Acworth"]
["0600000US3301931220",3301931220,"060","Grantham",{"$f":"[1]ACS_16_5YR_B25118_with_ann!D264","v":1222},{"$f":"[1]ACS_16_5YR_B25118_with_ann!E264","v":142},{"$f":"[1]ACS_16_5YR_B25118_with_ann!F264","v":1082},{"$f":"[1]ACS_16_5YR_B25118_with_ann!G264","v":164},{"$f":"[1]ACS_16_5YR_B25118_with_ann!H264","v":0},{"$f":"[1]ACS_16_5YR_B25118_with_ann!I264","v":11},{"$f":"[1]ACS_16_5YR_B25118_with_ann!J264","v":0},{"$f":"[1]ACS_16_5YR_B25118_with_ann!K264","v":11},{"$f":"[1]ACS_16_5YR_B25118_with_ann!L264","v":0},{"$f":"[1]ACS_16_5YR_B25118_with_ann!M264","v":11},{"$f":"[1]ACS_16_5YR_B25118_with_ann!N264","v":45},{"$f":"[1]ACS_16_5YR_B25118_with_ann!O264","v":48},{"$f":"[1]ACS_16_5YR_B25118_with_ann!P264","v":0},{"$f":"[1]ACS_16_5YR_B25118_with_ann!Q264","v":11},{"$f":"[1]ACS_16_5YR_B25118_with_ann!R264","v":91},{"$f":"[1]ACS_16_5YR_B25118_with_ann!S264","v":76},{"$f":"[1]ACS_16_5YR_B25118_with_ann!T264","v":108},{"$f":"[1]ACS_16_5YR_B25118_with_ann!U264","v":106},{"$f":"[1]ACS_16_5YR_B25118_with_ann!V264","v":173},{"$f":"[1]ACS_16_5YR_B25118_with_ann!W264","v":89},{"$f":"[1]ACS_16_5YR_B25118_with_ann!X264","v":114},{"$f":"[1]ACS_16_5YR_B25118_with_ann!Y264","v":58},{"$f":"[1]ACS_16_5YR_B25118_with_ann!Z264","v":282},{"$f":"[1]ACS_16_5YR_B25118_with_ann!AA264","v":107},{"$f":"[1]ACS_16_5YR_B25118_with_ann!AB264","v":269},{"$f":"[1]ACS_16_5YR_B25118_with_ann!AC264","v":116},{"$f":"[1]ACS_16_5YR_B25118_with_ann!AD264","v":140},{"$f":"[1]ACS_16_5YR_B25118_with_ann!AE264","v":79},{"$f":"[1]ACS_16_5YR_B25118_with_ann!AF264","v":0},{"$f":"[1]ACS_16_5YR_B25118_with_ann!AG264","v":11},{"$f":"[1]ACS_16_5YR_B25118_with_ann!AH264","v":0},{"$f":"[1]ACS_16_5YR_B25118_with_ann!AI264","v":11},{"$f":"[1]ACS_16_5YR_B25118_with_ann!AJ264","v":0},{"$f":"[1]ACS_16_5YR_B25118_with_ann!AK264","v":11},{"$f":"[1]ACS_16_5YR_B25118_with_ann!AL264","v":0},{"$f":"[1]ACS_16_5YR_B25118_with_ann!AM264","v":11},{"$f":"[1]ACS_16_5YR_B25118_with_ann!AN264","v":0},{"$f":"[1]ACS_16_5YR_B25118_with_ann!AO264","v":11},{"$f":"[1]ACS_16_5YR_B25118_with_ann!AP264","v":0},{"$f":"[1]ACS_16_5YR_B25118_with_ann!AQ264","v":11},{"$f":"[1]ACS_16_5YR_B25118_with_ann!AR264","v":0},{"$f":"[1]ACS_16_5YR_B25118_with_ann!AS264","v":11},{"$f":"[1]ACS_16_5YR_B25118_with_ann!AT264","v":40},{"$f":"[1]ACS_16_5YR_B25118_with_ann!AU264","v":35},{"$f":"[1]ACS_16_5YR_B25118_with_ann!AV264","v":15},{"$f":"[1]ACS_16_5YR_B25118_with_ann!AW264","v":23},{"$f":"[1]ACS_16_5YR_B25118_with_ann!AX264","v":85},{"$f":"[1]ACS_16_5YR_B25118_with_ann!AY264","v":80},{"$f":"[1]ACS_16_5YR_B25118_with_ann!AZ264","v":0},{"$f":"[1]ACS_16_5YR_B25118_with_ann!BA264","v":11},{"$f":"[1]ACS_16_5YR_B25119_with_ann!D264","v":108571},{"$f":"[1]ACS_16_5YR_B25119_with_ann!E264","v":26279},{"$f":"[1]ACS_16_5YR_B25119_with_ann!F264","v":106563},{"$f":"[1]ACS_16_5YR_B25119_with_ann!G264","v":25268},{"$f":"[1]ACS_16_5YR_B25119_with_ann!H265","v":65536},{"$f":"[1]ACS_16_5YR_B25119_with_ann!I265","v":46199},null,"Acworth"]
["0600000US3301940900",3301940900,"060","Langdon",{"$f":"[1]ACS_16_5YR_B25118_with_ann!D265","v":257},{"$f":"[1]ACS_16_5YR_B25118_with_ann!E265","v":47},{"$f":"[1]ACS_16_5YR_B25118_with_ann!F265","v":218},{"$f":"[1]ACS_16_5YR_B25118_with_ann!G265","v":44},{"$f":"[1]ACS_16_5YR_B25118_with_ann!H265","v":3},{"$f":"[1]ACS_16_5YR_B25118_with_ann!I265","v":4},{"$f":"[1]ACS_16_5YR_B25118_with_ann!J265","v":8},{"$f":"[1]ACS_16_5YR_B25118_with_ann!K265","v":12},{"$f":"[1]ACS_16_5YR_B25118_with_ann!L265","v":0},{"$f":"[1]ACS_16_5YR_B25118_with_ann!M265","v":11},{"$f":"[1]ACS_16_5YR_B25118_with_ann!N265","v":5},{"$f":"[1]ACS_16_5YR_B25118_with_ann!O265","v":5},{"$f":"[1]ACS_16_5YR_B25118_with_ann!P265","v":6},{"$f":"[1]ACS_16_5YR_B25118_with_ann!Q265","v":6},{"$f":"[1]ACS_16_5YR_B25118_with_ann!R265","v":14},{"$f":"[1]ACS_16_5YR_B25118_with_ann!S265","v":9},{"$f":"[1]ACS_16_5YR_B25118_with_ann!T265","v":15},{"$f":"[1]ACS_16_5YR_B25118_with_ann!U265","v":13},{"$f":"[1]ACS_16_5YR_B25118_with_ann!V265","v":40},{"$f":"[1]ACS_16_5YR_B25118_with_ann!W265","v":19},{"$f":"[1]ACS_16_5YR_B25118_with_ann!X265","v":45},{"$f":"[1]ACS_16_5YR_B25118_with_ann!Y265","v":22},{"$f":"[1]ACS_16_5YR_B25118_with_ann!Z265","v":52},{"$f":"[1]ACS_16_5YR_B25118_with_ann!AA265","v":15},{"$f":"[1]ACS_16_5YR_B25118_with_ann!AB265","v":30},{"$f":"[1]ACS_16_5YR_B25118_with_ann!AC265","v":21},{"$f":"[1]ACS_16_5YR_B25118_with_ann!AD265","v":39},{"$f":"[1]ACS_16_5YR_B25118_with_ann!AE265","v":21},{"$f":"[1]ACS_16_5YR_B25118_with_ann!AF265","v":6},{"$f":"[1]ACS_16_5YR_B25118_with_ann!AG265","v":10},{"$f":"[1]ACS_16_5YR_B25118_with_ann!AH265","v":0},{"$f":"[1]ACS_16_5YR_B25118_with_ann!AI265","v":11},{"$f":"[1]ACS_16_5YR_B25118_with_ann!AJ265","v":0},{"$f":"[1]ACS_16_5YR_B25118_with_ann!AK265","v":11},{"$f":"[1]ACS_16_5YR_B25118_with_ann!AL265","v":0},{"$f":"[1]ACS_16_5YR_B25118_with_ann!AM265","v":11},{"$f":"[1]ACS_16_5YR_B25118_with_ann!AN265","v":0},{"$f":"[1]ACS_16_5YR_B25118_with_ann!AO265","v":11},{"$f":"[1]ACS_16_5YR_B25118_with_ann!AP265","v":2},{"$f":"[1]ACS_16_5YR_B25118_with_ann!AQ265","v":3},{"$f":"[1]ACS_16_5YR_B25118_with_ann!AR265","v":10},{"$f":"[1]ACS_16_5YR_B25118_with_ann!AS265","v":10},{"$f":"[1]ACS_16_5YR_B25118_with_ann!AT265","v":13},{"$f":"[1]ACS_16_5YR_B25118_with_ann!AU265","v":14},{"$f":"[1]ACS_16_5YR_B25118_with_ann!AV265","v":0},{"$f":"[1]ACS_16_5YR_B25118_with_ann!AW265","v":11},{"$f":"[1]ACS_16_5YR_B25118_with_ann!AX265","v":3},{"$f":"[1]ACS_16_5YR_B25118_with_ann!AY265","v":4},{"$f":"[1]ACS_16_5YR_B25118_with_ann!AZ265","v":5},{"$f":"[1]ACS_16_5YR_B25118_with_ann!BA265","v":8},{"$f":"[1]ACS_16_5YR_B25119_with_ann!D265","v":79125},{"$f":"[1]ACS_16_5YR_B25119_with_ann!E265","v":12995},{"$f":"[1]ACS_16_5YR_B25119_with_ann!F265","v":86000},{"$f":"[1]ACS_16_5YR_B25119_with_ann!G265","v":11589},{"$f":"[1]ACS_16_5YR_B25119_with_ann!H266","v":49643},{"$f":"[1]ACS_16_5YR_B25119_with_ann!I266","v":5108},null,"Acworth"]
["0600000US3301941700",3301941700,"060","Lempster",{"$f":"[1]ACS_16_5YR_B25118_with_ann!D266","v":393},{"$f":"[1]ACS_16_5YR_B25118_with_ann!E266","v":59},{"$f":"[1]ACS_16_5YR_B25118_with_ann!F266","v":367},{"$f":"[1]ACS_16_5YR_B25118_with_ann!G266","v":61},{"$f":"[1]ACS_16_5YR_B25118_with_ann!H266","v":14},{"$f":"[1]ACS_16_5YR_B25118_with_ann!I266","v":15},{"$f":"[1]ACS_16_5YR_B25118_with_ann!J266","v":2},{"$f":"[1]ACS_16_5YR_B25118_with_ann!K266","v":4},{"$f":"[1]ACS_16_5YR_B25118_with_ann!L266","v":13},{"$f":"[1]ACS_16_5YR_B25118_with_ann!M266","v":15},{"$f":"[1]ACS_16_5YR_B25118_with_ann!N266","v":10},{"$f":"[1]ACS_16_5YR_B25118_with_ann!O266","v":9},{"$f":"[1]ACS_16_5YR_B25118_with_ann!P266","v":28},{"$f":"[1]ACS_16_5YR_B25118_with_ann!Q266","v":21},{"$f":"[1]ACS_16_5YR_B25118_with_ann!R266","v":18},{"$f":"[1]ACS_16_5YR_B25118_with_ann!S266","v":10},{"$f":"[1]ACS_16_5YR_B25118_with_ann!T266","v":58},{"$f":"[1]ACS_16_5YR_B25118_with_ann!U266","v":30},{"$f":"[1]ACS_16_5YR_B25118_with_ann!V266","v":43},{"$f":"[1]ACS_16_5YR_B25118_with_ann!W266","v":25},{"$f":"[1]ACS_16_5YR_B25118_with_ann!X266","v":67},{"$f":"[1]ACS_16_5YR_B25118_with_ann!Y266","v":29},{"$f":"[1]ACS_16_5YR_B25118_with_ann!Z266","v":89},{"$f":"[1]ACS_16_5YR_B25118_with_ann!AA266","v":36},{"$f":"[1]ACS_16_5YR_B25118_with_ann!AB266","v":25},{"$f":"[1]ACS_16_5YR_B25118_with_ann!AC266","v":27},{"$f":"[1]ACS_16_5YR_B25118_with_ann!AD266","v":26},{"$f":"[1]ACS_16_5YR_B25118_with_ann!AE266","v":16},{"$f":"[1]ACS_16_5YR_B25118_with_ann!AF266","v":0},{"$f":"[1]ACS_16_5YR_B25118_with_ann!AG266","v":11},{"$f":"[1]ACS_16_5YR_B25118_with_ann!AH266","v":0},{"$f":"[1]ACS_16_5YR_B25118_with_ann!AI266","v":11},{"$f":"[1]ACS_16_5YR_B25118_with_ann!AJ266","v":0},{"$f":"[1]ACS_16_5YR_B25118_with_ann!AK266","v":11},{"$f":"[1]ACS_16_5YR_B25118_with_ann!AL266","v":0},{"$f":"[1]ACS_16_5YR_B25118_with_ann!AM266","v":11},{"$f":"[1]ACS_16_5YR_B25118_with_ann!AN266","v":2},{"$f":"[1]ACS_16_5YR_B25118_with_ann!AO266","v":3},{"$f":"[1]ACS_16_5YR_B25118_with_ann!AP266","v":0},{"$f":"[1]ACS_16_5YR_B25118_with_ann!AQ266","v":11},{"$f":"[1]ACS_16_5YR_B25118_with_ann!AR266","v":12},{"$f":"[1]ACS_16_5YR_B25118_with_ann!AS266","v":8},{"$f":"[1]ACS_16_5YR_B25118_with_ann!AT266","v":12},{"$f":"[1]ACS_16_5YR_B25118_with_ann!AU266","v":14},{"$f":"[1]ACS_16_5YR_B25118_with_ann!AV266","v":0},{"$f":"[1]ACS_16_5YR_B25118_with_ann!AW266","v":11},{"$f":"[1]ACS_16_5YR_B25118_with_ann!AX266","v":0},{"$f":"[1]ACS_16_5YR_B25118_with_ann!AY266","v":11},{"$f":"[1]ACS_16_5YR_B25118_with_ann!AZ266","v":0},{"$f":"[1]ACS_16_5YR_B25118_with_ann!BA266","v":11},{"$f":"[1]ACS_16_5YR_B25119_with_ann!D266","v":70156},{"$f":"[1]ACS_16_5YR_B25119_with_ann!E266","v":12339},{"$f":"[1]ACS_16_5YR_B25119_with_ann!F266","v":74219},{"$f":"[1]ACS_16_5YR_B25119_with_ann!G266","v":11690},{"$f":"[1]ACS_16_5YR_B25119_with_ann!H267","v":27862},{"$f":"[1]ACS_16_5YR_B25119_with_ann!I267","v":6650},null,"Acworth"]
["0600000US3301952580",3301952580,"060","Newport",{"$f":"[1]ACS_16_5YR_B25118_with_ann!D267","v":2600},{"$f":"[1]ACS_16_5YR_B25118_with_ann!E267","v":168},{"$f":"[1]ACS_16_5YR_B25118_with_ann!F267","v":1743},{"$f":"[1]ACS_16_5YR_B25118_with_ann!G267","v":186},{"$f":"[1]ACS_16_5YR_B25118_with_ann!H267","v":61},{"$f":"[1]ACS_16_5YR_B25118_with_ann!I267","v":80},{"$f":"[1]ACS_16_5YR_B25118_with_ann!J267","v":0},{"$f":"[1]ACS_16_5YR_B25118_with_ann!K267","v":16},{"$f":"[1]ACS_16_5YR_B25118_with_ann!L267","v":13},{"$f":"[1]ACS_16_5YR_B25118_with_ann!M267","v":22},{"$f":"[1]ACS_16_5YR_B25118_with_ann!N267","v":40},{"$f":"[1]ACS_16_5YR_B25118_with_ann!O267","v":37},{"$f":"[1]ACS_16_5YR_B25118_with_ann!P267","v":75},{"$f":"[1]ACS_16_5YR_B25118_with_ann!Q267","v":55},{"$f":"[1]ACS_16_5YR_B25118_with_ann!R267","v":131},{"$f":"[1]ACS_16_5YR_B25118_with_ann!S267","v":87},{"$f":"[1]ACS_16_5YR_B25118_with_ann!T267","v":181},{"$f":"[1]ACS_16_5YR_B25118_with_ann!U267","v":74},{"$f":"[1]ACS_16_5YR_B25118_with_ann!V267","v":468},{"$f":"[1]ACS_16_5YR_B25118_with_ann!W267","v":146},{"$f":"[1]ACS_16_5YR_B25118_with_ann!X267","v":303},{"$f":"[1]ACS_16_5YR_B25118_with_ann!Y267","v":118},{"$f":"[1]ACS_16_5YR_B25118_with_ann!Z267","v":222},{"$f":"[1]ACS_16_5YR_B25118_with_ann!AA267","v":100},{"$f":"[1]ACS_16_5YR_B25118_with_ann!AB267","v":249},{"$f":"[1]ACS_16_5YR_B25118_with_ann!AC267","v":120},{"$f":"[1]ACS_16_5YR_B25118_with_ann!AD267","v":857},{"$f":"[1]ACS_16_5YR_B25118_with_ann!AE267","v":184},{"$f":"[1]ACS_16_5YR_B25118_with_ann!AF267","v":43},{"$f":"[1]ACS_16_5YR_B25118_with_ann!AG267","v":53},{"$f":"[1]ACS_16_5YR_B25118_with_ann!AH267","v":54},{"$f":"[1]ACS_16_5YR_B25118_with_ann!AI267","v":45},{"$f":"[1]ACS_16_5YR_B25118_with_ann!AJ267","v":33},{"$f":"[1]ACS_16_5YR_B25118_with_ann!AK267","v":53},{"$f":"[1]ACS_16_5YR_B25118_with_ann!AL267","v":204},{"$f":"[1]ACS_16_5YR_B25118_with_ann!AM267","v":117},{"$f":"[1]ACS_16_5YR_B25118_with_ann!AN267","v":26},{"$f":"[1]ACS_16_5YR_B25118_with_ann!AO267","v":29},{"$f":"[1]ACS_16_5YR_B25118_with_ann!AP267","v":163},{"$f":"[1]ACS_16_5YR_B25118_with_ann!AQ267","v":100},{"$f":"[1]ACS_16_5YR_B25118_with_ann!AR267","v":50},{"$f":"[1]ACS_16_5YR_B25118_with_ann!AS267","v":40},{"$f":"[1]ACS_16_5YR_B25118_with_ann!AT267","v":158},{"$f":"[1]ACS_16_5YR_B25118_with_ann!AU267","v":116},{"$f":"[1]ACS_16_5YR_B25118_with_ann!AV267","v":74},{"$f":"[1]ACS_16_5YR_B25118_with_ann!AW267","v":58},{"$f":"[1]ACS_16_5YR_B25118_with_ann!AX267","v":27},{"$f":"[1]ACS_16_5YR_B25118_with_ann!AY267","v":31},{"$f":"[1]ACS_16_5YR_B25118_with_ann!AZ267","v":25},{"$f":"[1]ACS_16_5YR_B25118_with_ann!BA267","v":29},{"$f":"[1]ACS_16_5YR_B25119_with_ann!D267","v":54816},{"$f":"[1]ACS_16_5YR_B25119_with_ann!E267","v":7020},{"$f":"[1]ACS_16_5YR_B25119_with_ann!F267","v":67439},{"$f":"[1]ACS_16_5YR_B25119_with_ann!G267","v":9804},{"$f":"[1]ACS_16_5YR_B25119_with_ann!H268","v":54412},{"$f":"[1]ACS_16_5YR_B25119_with_ann!I268","v":12651},null,"Acworth"]
["0600000US3301962340",3301962340,"060","Plainfield",{"$f":"[1]ACS_16_5YR_B25118_with_ann!D268","v":915},{"$f":"[1]ACS_16_5YR_B25118_with_ann!E268","v":86},{"$f":"[1]ACS_16_5YR_B25118_with_ann!F268","v":803},{"$f":"[1]ACS_16_5YR_B25118_with_ann!G268","v":78},{"$f":"[1]ACS_16_5YR_B25118_with_ann!H268","v":22},{"$f":"[1]ACS_16_5YR_B25118_with_ann!I268","v":27},{"$f":"[1]ACS_16_5YR_B25118_with_ann!J268","v":16},{"$f":"[1]ACS_16_5YR_B25118_with_ann!K268","v":11},{"$f":"[1]ACS_16_5YR_B25118_with_ann!L268","v":0},{"$f":"[1]ACS_16_5YR_B25118_with_ann!M268","v":11},{"$f":"[1]ACS_16_5YR_B25118_with_ann!N268","v":0},{"$f":"[1]ACS_16_5YR_B25118_with_ann!O268","v":11},{"$f":"[1]ACS_16_5YR_B25118_with_ann!P268","v":14},{"$f":"[1]ACS_16_5YR_B25118_with_ann!Q268","v":13},{"$f":"[1]ACS_16_5YR_B25118_with_ann!R268","v":95},{"$f":"[1]ACS_16_5YR_B25118_with_ann!S268","v":47},{"$f":"[1]ACS_16_5YR_B25118_with_ann!T268","v":54},{"$f":"[1]ACS_16_5YR_B25118_with_ann!U268","v":31},{"$f":"[1]ACS_16_5YR_B25118_with_ann!V268","v":101},{"$f":"[1]ACS_16_5YR_B25118_with_ann!W268","v":40},{"$f":"[1]ACS_16_5YR_B25118_with_ann!X268","v":185},{"$f":"[1]ACS_16_5YR_B25118_with_ann!Y268","v":49},{"$f":"[1]ACS_16_5YR_B25118_with_ann!Z268","v":151},{"$f":"[1]ACS_16_5YR_B25118_with_ann!AA268","v":45},{"$f":"[1]ACS_16_5YR_B25118_with_ann!AB268","v":165},{"$f":"[1]ACS_16_5YR_B25118_with_ann!AC268","v":43},{"$f":"[1]ACS_16_5YR_B25118_with_ann!AD268","v":112},{"$f":"[1]ACS_16_5YR_B25118_with_ann!AE268","v":49},{"$f":"[1]ACS_16_5YR_B25118_with_ann!AF268","v":0},{"$f":"[1]ACS_16_5YR_B25118_with_ann!AG268","v":11},{"$f":"[1]ACS_16_5YR_B25118_with_ann!AH268","v":4},{"$f":"[1]ACS_16_5YR_B25118_with_ann!AI268","v":8},{"$f":"[1]ACS_16_5YR_B25118_with_ann!AJ268","v":0},{"$f":"[1]ACS_16_5YR_B25118_with_ann!AK268","v":11},{"$f":"[1]ACS_16_5YR_B25118_with_ann!AL268","v":0},{"$f":"[1]ACS_16_5YR_B25118_with_ann!AM268","v":11},{"$f":"[1]ACS_16_5YR_B25118_with_ann!AN268","v":16},{"$f":"[1]ACS_16_5YR_B25118_with_ann!AO268","v":18},{"$f":"[1]ACS_16_5YR_B25118_with_ann!AP268","v":5},{"$f":"[1]ACS_16_5YR_B25118_with_ann!AQ268","v":7},{"$f":"[1]ACS_16_5YR_B25118_with_ann!AR268","v":18},{"$f":"[1]ACS_16_5YR_B25118_with_ann!AS268","v":15},{"$f":"[1]ACS_16_5YR_B25118_with_ann!AT268","v":41},{"$f":"[1]ACS_16_5YR_B25118_with_ann!AU268","v":38},{"$f":"[1]ACS_16_5YR_B25118_with_ann!AV268","v":0},{"$f":"[1]ACS_16_5YR_B25118_with_ann!AW268","v":11},{"$f":"[1]ACS_16_5YR_B25118_with_ann!AX268","v":28},{"$f":"[1]ACS_16_5YR_B25118_with_ann!AY268","v":30},{"$f":"[1]ACS_16_5YR_B25118_with_ann!AZ268","v":0},{"$f":"[1]ACS_16_5YR_B25118_with_ann!BA268","v":11},{"$f":"[1]ACS_16_5YR_B25119_with_ann!D268","v":85313},{"$f":"[1]ACS_16_5YR_B25119_with_ann!E268","v":10050},{"$f":"[1]ACS_16_5YR_B25119_with_ann!F268","v":89375},{"$f":"[1]ACS_16_5YR_B25119_with_ann!G268","v":7847},{"$f":"[1]ACS_16_5YR_B25119_with_ann!H269","v":93125},{"$f":"[1]ACS_16_5YR_B25119_with_ann!I269","v":70025},null,"Acworth"]
["0600000US3301972740",3301972740,"060","Springfield",{"$f":"[1]ACS_16_5YR_B25118_with_ann!D269","v":442},{"$f":"[1]ACS_16_5YR_B25118_with_ann!E269","v":75},{"$f":"[1]ACS_16_5YR_B25118_with_ann!F269","v":398},{"$f":"[1]ACS_16_5YR_B25118_with_ann!G269","v":71},{"$f":"[1]ACS_16_5YR_B25118_with_ann!H269","v":4},{"$f":"[1]ACS_16_5YR_B25118_with_ann!I269","v":6},{"$f":"[1]ACS_16_5YR_B25118_with_ann!J269","v":9},{"$f":"[1]ACS_16_5YR_B25118_with_ann!K269","v":15},{"$f":"[1]ACS_16_5YR_B25118_with_ann!L269","v":7},{"$f":"[1]ACS_16_5YR_B25118_with_ann!M269","v":7},{"$f":"[1]ACS_16_5YR_B25118_with_ann!N269","v":7},{"$f":"[1]ACS_16_5YR_B25118_with_ann!O269","v":13},{"$f":"[1]ACS_16_5YR_B25118_with_ann!P269","v":6},{"$f":"[1]ACS_16_5YR_B25118_with_ann!Q269","v":9},{"$f":"[1]ACS_16_5YR_B25118_with_ann!R269","v":56},{"$f":"[1]ACS_16_5YR_B25118_with_ann!S269","v":35},{"$f":"[1]ACS_16_5YR_B25118_with_ann!T269","v":19},{"$f":"[1]ACS_16_5YR_B25118_with_ann!U269","v":16},{"$f":"[1]ACS_16_5YR_B25118_with_ann!V269","v":61},{"$f":"[1]ACS_16_5YR_B25118_with_ann!W269","v":31},{"$f":"[1]ACS_16_5YR_B25118_with_ann!X269","v":128},{"$f":"[1]ACS_16_5YR_B25118_with_ann!Y269","v":44},{"$f":"[1]ACS_16_5YR_B25118_with_ann!Z269","v":77},{"$f":"[1]ACS_16_5YR_B25118_with_ann!AA269","v":36},{"$f":"[1]ACS_16_5YR_B25118_with_ann!AB269","v":24},{"$f":"[1]ACS_16_5YR_B25118_with_ann!AC269","v":12},{"$f":"[1]ACS_16_5YR_B25118_with_ann!AD269","v":44},{"$f":"[1]ACS_16_5YR_B25118_with_ann!AE269","v":33},{"$f":"[1]ACS_16_5YR_B25118_with_ann!AF269","v":0},{"$f":"[1]ACS_16_5YR_B25118_with_ann!AG269","v":11},{"$f":"[1]ACS_16_5YR_B25118_with_ann!AH269","v":8},{"$f":"[1]ACS_16_5YR_B25118_with_ann!AI269","v":13},{"$f":"[1]ACS_16_5YR_B25118_with_ann!AJ269","v":0},{"$f":"[1]ACS_16_5YR_B25118_with_ann!AK269","v":11},{"$f":"[1]ACS_16_5YR_B25118_with_ann!AL269","v":0},{"$f":"[1]ACS_16_5YR_B25118_with_ann!AM269","v":11},{"$f":"[1]ACS_16_5YR_B25118_with_ann!AN269","v":0},{"$f":"[1]ACS_16_5YR_B25118_with_ann!AO269","v":11},{"$f":"[1]ACS_16_5YR_B25118_with_ann!AP269","v":0},{"$f":"[1]ACS_16_5YR_B25118_with_ann!AQ269","v":11},{"$f":"[1]ACS_16_5YR_B25118_with_ann!AR269","v":5},{"$f":"[1]ACS_16_5YR_B25118_with_ann!AS269","v":9},{"$f":"[1]ACS_16_5YR_B25118_with_ann!AT269","v":7},{"$f":"[1]ACS_16_5YR_B25118_with_ann!AU269","v":8},{"$f":"[1]ACS_16_5YR_B25118_with_ann!AV269","v":24},{"$f":"[1]ACS_16_5YR_B25118_with_ann!AW269","v":29},{"$f":"[1]ACS_16_5YR_B25118_with_ann!AX269","v":0},{"$f":"[1]ACS_16_5YR_B25118_with_ann!AY269","v":11},{"$f":"[1]ACS_16_5YR_B25118_with_ann!AZ269","v":0},{"$f":"[1]ACS_16_5YR_B25118_with_ann!BA269","v":11},{"$f":"[1]ACS_16_5YR_B25119_with_ann!D269","v":79444},{"$f":"[1]ACS_16_5YR_B25119_with_ann!E269","v":8510},{"$f":"[1]ACS_16_5YR_B25119_with_ann!F269","v":79259},{"$f":"[1]ACS_16_5YR_B25119_with_ann!G269","v":6027},{"$f":"[1]ACS_16_5YR_B25119_with_ann!H270","v":45292},{"$f":"[1]ACS_16_5YR_B25119_with_ann!I270","v":25837},null,"Acworth"]
["0600000US3301975060",3301975060,"060","Sunapee",{"$f":"[1]ACS_16_5YR_B25118_with_ann!D270","v":1393},{"$f":"[1]ACS_16_5YR_B25118_with_ann!E270","v":139},{"$f":"[1]ACS_16_5YR_B25118_with_ann!F270","v":1044},{"$f":"[1]ACS_16_5YR_B25118_with_ann!G270","v":138},{"$f":"[1]ACS_16_5YR_B25118_with_ann!H270","v":54},{"$f":"[1]ACS_16_5YR_B25118_with_ann!I270","v":60},{"$f":"[1]ACS_16_5YR_B25118_with_ann!J270","v":0},{"$f":"[1]ACS_16_5YR_B25118_with_ann!K270","v":11},{"$f":"[1]ACS_16_5YR_B25118_with_ann!L270","v":4},{"$f":"[1]ACS_16_5YR_B25118_with_ann!M270","v":8},{"$f":"[1]ACS_16_5YR_B25118_with_ann!N270","v":16},{"$f":"[1]ACS_16_5YR_B25118_with_ann!O270","v":17},{"$f":"[1]ACS_16_5YR_B25118_with_ann!P270","v":65},{"$f":"[1]ACS_16_5YR_B25118_with_ann!Q270","v":58},{"$f":"[1]ACS_16_5YR_B25118_with_ann!R270","v":32},{"$f":"[1]ACS_16_5YR_B25118_with_ann!S270","v":26},{"$f":"[1]ACS_16_5YR_B25118_with_ann!T270","v":57},{"$f":"[1]ACS_16_5YR_B25118_with_ann!U270","v":34},{"$f":"[1]ACS_16_5YR_B25118_with_ann!V270","v":175},{"$f":"[1]ACS_16_5YR_B25118_with_ann!W270","v":73},{"$f":"[1]ACS_16_5YR_B25118_with_ann!X270","v":202},{"$f":"[1]ACS_16_5YR_B25118_with_ann!Y270","v":77},{"$f":"[1]ACS_16_5YR_B25118_with_ann!Z270","v":275},{"$f":"[1]ACS_16_5YR_B25118_with_ann!AA270","v":91},{"$f":"[1]ACS_16_5YR_B25118_with_ann!AB270","v":164},{"$f":"[1]ACS_16_5YR_B25118_with_ann!AC270","v":64},{"$f":"[1]ACS_16_5YR_B25118_with_ann!AD270","v":349},{"$f":"[1]ACS_16_5YR_B25118_with_ann!AE270","v":122},{"$f":"[1]ACS_16_5YR_B25118_with_ann!AF270","v":31},{"$f":"[1]ACS_16_5YR_B25118_with_ann!AG270","v":48},{"$f":"[1]ACS_16_5YR_B25118_with_ann!AH270","v":33},{"$f":"[1]ACS_16_5YR_B25118_with_ann!AI270","v":52},{"$f":"[1]ACS_16_5YR_B25118_with_ann!AJ270","v":11},{"$f":"[1]ACS_16_5YR_B25118_with_ann!AK270","v":17},{"$f":"[1]ACS_16_5YR_B25118_with_ann!AL270","v":0},{"$f":"[1]ACS_16_5YR_B25118_with_ann!AM270","v":11},{"$f":"[1]ACS_16_5YR_B25118_with_ann!AN270","v":47},{"$f":"[1]ACS_16_5YR_B25118_with_ann!AO270","v":56},{"$f":"[1]ACS_16_5YR_B25118_with_ann!AP270","v":41},{"$f":"[1]ACS_16_5YR_B25118_with_ann!AQ270","v":50},{"$f":"[1]ACS_16_5YR_B25118_with_ann!AR270","v":66},{"$f":"[1]ACS_16_5YR_B25118_with_ann!AS270","v":67},{"$f":"[1]ACS_16_5YR_B25118_with_ann!AT270","v":84},{"$f":"[1]ACS_16_5YR_B25118_with_ann!AU270","v":59},{"$f":"[1]ACS_16_5YR_B25118_with_ann!AV270","v":0},{"$f":"[1]ACS_16_5YR_B25118_with_ann!AW270","v":11},{"$f":"[1]ACS_16_5YR_B25118_with_ann!AX270","v":15},{"$f":"[1]ACS_16_5YR_B25118_with_ann!AY270","v":23},{"$f":"[1]ACS_16_5YR_B25118_with_ann!AZ270","v":21},{"$f":"[1]ACS_16_5YR_B25118_with_ann!BA270","v":18},{"$f":"[1]ACS_16_5YR_B25119_with_ann!D270","v":73682},{"$f":"[1]ACS_16_5YR_B25119_with_ann!E270","v":16011},{"$f":"[1]ACS_16_5YR_B25119_with_ann!F270","v":91786},{"$f":"[1]ACS_16_5YR_B25119_with_ann!G270","v":6042},{"$f":"[1]ACS_16_5YR_B25119_with_ann!H271","v":42083},{"$f":"[1]ACS_16_5YR_B25119_with_ann!I271","v":19435},null,"Acworth"]
["0600000US3301977940",3301977940,"060","Unity",{"$f":"[1]ACS_16_5YR_B25118_with_ann!D271","v":571},{"$f":"[1]ACS_16_5YR_B25118_with_ann!E271","v":56},{"$f":"[1]ACS_16_5YR_B25118_with_ann!F271","v":536},{"$f":"[1]ACS_16_5YR_B25118_with_ann!G271","v":56},{"$f":"[1]ACS_16_5YR_B25118_with_ann!H271","v":16},{"$f":"[1]ACS_16_5YR_B25118_with_ann!I271","v":18},{"$f":"[1]ACS_16_5YR_B25118_with_ann!J271","v":3},{"$f":"[1]ACS_16_5YR_B25118_with_ann!K271","v":5},{"$f":"[1]ACS_16_5YR_B25118_with_ann!L271","v":23},{"$f":"[1]ACS_16_5YR_B25118_with_ann!M271","v":16},{"$f":"[1]ACS_16_5YR_B25118_with_ann!N271","v":18},{"$f":"[1]ACS_16_5YR_B25118_with_ann!O271","v":20},{"$f":"[1]ACS_16_5YR_B25118_with_ann!P271","v":29},{"$f":"[1]ACS_16_5YR_B25118_with_ann!Q271","v":22},{"$f":"[1]ACS_16_5YR_B25118_with_ann!R271","v":44},{"$f":"[1]ACS_16_5YR_B25118_with_ann!S271","v":17},{"$f":"[1]ACS_16_5YR_B25118_with_ann!T271","v":37},{"$f":"[1]ACS_16_5YR_B25118_with_ann!U271","v":13},{"$f":"[1]ACS_16_5YR_B25118_with_ann!V271","v":104},{"$f":"[1]ACS_16_5YR_B25118_with_ann!W271","v":31},{"$f":"[1]ACS_16_5YR_B25118_with_ann!X271","v":96},{"$f":"[1]ACS_16_5YR_B25118_with_ann!Y271","v":34},{"$f":"[1]ACS_16_5YR_B25118_with_ann!Z271","v":120},{"$f":"[1]ACS_16_5YR_B25118_with_ann!AA271","v":40},{"$f":"[1]ACS_16_5YR_B25118_with_ann!AB271","v":46},{"$f":"[1]ACS_16_5YR_B25118_with_ann!AC271","v":19},{"$f":"[1]ACS_16_5YR_B25118_with_ann!AD271","v":35},{"$f":"[1]ACS_16_5YR_B25118_with_ann!AE271","v":20},{"$f":"[1]ACS_16_5YR_B25118_with_ann!AF271","v":0},{"$f":"[1]ACS_16_5YR_B25118_with_ann!AG271","v":11},{"$f":"[1]ACS_16_5YR_B25118_with_ann!AH271","v":0},{"$f":"[1]ACS_16_5YR_B25118_with_ann!AI271","v":11},{"$f":"[1]ACS_16_5YR_B25118_with_ann!AJ271","v":0},{"$f":"[1]ACS_16_5YR_B25118_with_ann!AK271","v":11},{"$f":"[1]ACS_16_5YR_B25118_with_ann!AL271","v":0},{"$f":"[1]ACS_16_5YR_B25118_with_ann!AM271","v":11},{"$f":"[1]ACS_16_5YR_B25118_with_ann!AN271","v":8},{"$f":"[1]ACS_16_5YR_B25118_with_ann!AO271","v":13},{"$f":"[1]ACS_16_5YR_B25118_with_ann!AP271","v":3},{"$f":"[1]ACS_16_5YR_B25118_with_ann!AQ271","v":4},{"$f":"[1]ACS_16_5YR_B25118_with_ann!AR271","v":11},{"$f":"[1]ACS_16_5YR_B25118_with_ann!AS271","v":9},{"$f":"[1]ACS_16_5YR_B25118_with_ann!AT271","v":8},{"$f":"[1]ACS_16_5YR_B25118_with_ann!AU271","v":9},{"$f":"[1]ACS_16_5YR_B25118_with_ann!AV271","v":0},{"$f":"[1]ACS_16_5YR_B25118_with_ann!AW271","v":11},{"$f":"[1]ACS_16_5YR_B25118_with_ann!AX271","v":5},{"$f":"[1]ACS_16_5YR_B25118_with_ann!AY271","v":7},{"$f":"[1]ACS_16_5YR_B25118_with_ann!AZ271","v":0},{"$f":"[1]ACS_16_5YR_B25118_with_ann!BA271","v":11},{"$f":"[1]ACS_16_5YR_B25119_with_ann!D271","v":69702},{"$f":"[1]ACS_16_5YR_B25119_with_ann!E271","v":9041},{"$f":"[1]ACS_16_5YR_B25119_with_ann!F271","v":73750},{"$f":"[1]ACS_16_5YR_B25119_with_ann!G271","v":10245},{"$f":"[1]ACS_16_5YR_B25119_with_ann!H272","v":55577},{"$f":"[1]ACS_16_5YR_B25119_with_ann!I272","v":37949},null,"Acworth"]
["0600000US3301978980",3301978980,"060","Washington",{"$f":"[1]ACS_16_5YR_B25118_with_ann!D272","v":537},{"$f":"[1]ACS_16_5YR_B25118_with_ann!E272","v":81},{"$f":"[1]ACS_16_5YR_B25118_with_ann!F272","v":499},{"$f":"[1]ACS_16_5YR_B25118_with_ann!G272","v":81},{"$f":"[1]ACS_16_5YR_B25118_with_ann!H272","v":6},{"$f":"[1]ACS_16_5YR_B25118_with_ann!I272","v":6},{"$f":"[1]ACS_16_5YR_B25118_with_ann!J272","v":11},{"$f":"[1]ACS_16_5YR_B25118_with_ann!K272","v":16},{"$f":"[1]ACS_16_5YR_B25118_with_ann!L272","v":12},{"$f":"[1]ACS_16_5YR_B25118_with_ann!M272","v":16},{"$f":"[1]ACS_16_5YR_B25118_with_ann!N272","v":8},{"$f":"[1]ACS_16_5YR_B25118_with_ann!O272","v":7},{"$f":"[1]ACS_16_5YR_B25118_with_ann!P272","v":20},{"$f":"[1]ACS_16_5YR_B25118_with_ann!Q272","v":17},{"$f":"[1]ACS_16_5YR_B25118_with_ann!R272","v":27},{"$f":"[1]ACS_16_5YR_B25118_with_ann!S272","v":14},{"$f":"[1]ACS_16_5YR_B25118_with_ann!T272","v":70},{"$f":"[1]ACS_16_5YR_B25118_with_ann!U272","v":31},{"$f":"[1]ACS_16_5YR_B25118_with_ann!V272","v":70},{"$f":"[1]ACS_16_5YR_B25118_with_ann!W272","v":26},{"$f":"[1]ACS_16_5YR_B25118_with_ann!X272","v":81},{"$f":"[1]ACS_16_5YR_B25118_with_ann!Y272","v":37},{"$f":"[1]ACS_16_5YR_B25118_with_ann!Z272","v":109},{"$f":"[1]ACS_16_5YR_B25118_with_ann!AA272","v":41},{"$f":"[1]ACS_16_5YR_B25118_with_ann!AB272","v":85},{"$f":"[1]ACS_16_5YR_B25118_with_ann!AC272","v":61},{"$f":"[1]ACS_16_5YR_B25118_with_ann!AD272","v":38},{"$f":"[1]ACS_16_5YR_B25118_with_ann!AE272","v":28},{"$f":"[1]ACS_16_5YR_B25118_with_ann!AF272","v":0},{"$f":"[1]ACS_16_5YR_B25118_with_ann!AG272","v":11},{"$f":"[1]ACS_16_5YR_B25118_with_ann!AH272","v":0},{"$f":"[1]ACS_16_5YR_B25118_with_ann!AI272","v":11},{"$f":"[1]ACS_16_5YR_B25118_with_ann!AJ272","v":0},{"$f":"[1]ACS_16_5YR_B25118_with_ann!AK272","v":11},{"$f":"[1]ACS_16_5YR_B25118_with_ann!AL272","v":10},{"$f":"[1]ACS_16_5YR_B25118_with_ann!AM272","v":16},{"$f":"[1]ACS_16_5YR_B25118_with_ann!AN272","v":0},{"$f":"[1]ACS_16_5YR_B25118_with_ann!AO272","v":11},{"$f":"[1]ACS_16_5YR_B25118_with_ann!AP272","v":6},{"$f":"[1]ACS_16_5YR_B25118_with_ann!AQ272","v":6},{"$f":"[1]ACS_16_5YR_B25118_with_ann!AR272","v":0},{"$f":"[1]ACS_16_5YR_B25118_with_ann!AS272","v":11},{"$f":"[1]ACS_16_5YR_B25118_with_ann!AT272","v":16},{"$f":"[1]ACS_16_5YR_B25118_with_ann!AU272","v":16},{"$f":"[1]ACS_16_5YR_B25118_with_ann!AV272","v":0},{"$f":"[1]ACS_16_5YR_B25118_with_ann!AW272","v":11},{"$f":"[1]ACS_16_5YR_B25118_with_ann!AX272","v":6},{"$f":"[1]ACS_16_5YR_B25118_with_ann!AY272","v":14},{"$f":"[1]ACS_16_5YR_B25118_with_ann!AZ272","v":0},{"$f":"[1]ACS_16_5YR_B25118_with_ann!BA272","v":11},{"$f":"[1]ACS_16_5YR_B25119_with_ann!D272","v":78224},{"$f":"[1]ACS_16_5YR_B25119_with_ann!E272","v":12451},{"$f":"[1]ACS_16_5YR_B25119_with_ann!F272","v":79934},{"$f":"[1]ACS_16_5YR_B25119_with_ann!G272","v":15397},{"$f":"[1]ACS_16_5YR_B25119_with_ann!H273","v":0},{"$f":"[1]ACS_16_5YR_B25119_with_ann!I273","v":0},null,"Acworth"]
[]
[null,null,null,null,{"$f":"$D$3","v":"Acworth"},null,{"$f":"$D$4","v":"Charlestown"},null,{"$f":"$D$5","v":"Claremont"},null,{"$f":"$D$6","v":"Cornish"},null,{"$f":"$D$7","v":"Croydon"},null,{"$f":"$D$8","v":"Goshen"},null,{"$f":"$D$9","v":"Grantham"},null,{"$f":"$D$10","v":"Langdon"},null,{"$f":"$D$11","v":"Lempster"},null,{"$f":"$D$12","v":"Newport"},null,{"$f":"$D$13","v":"Plainfield"},null,{"$f":"$D$14","v":"Springfield"},null,{"$f":"$D$15","v":"Sunapee"},null,{"$f":"$D$16","v":"Unity"},null,{"$f":"$D$17","v":"Washington"}]
[null,null,null,null,"Estimate","Margin Of Error","Estimate","Margin Of Error","Estimate","Margin Of Error","Estimate","Margin Of Error","Estimate","Margin Of Error","Estimate","Margin Of Error","Estimate","Margin Of Error","Estimate","Margin Of Error","Estimate","Margin Of Error","Estimate","Margin Of Error","Estimate","Margin Of Error","Estimate","Margin Of Error","Estimate","Margin Of Error",null,"Estimate","Margin Of Error"]
[null,null,null,"Estimate Total:",370,51,2086,184,5231,284,741,81,293,56,277,39,1222,142,257,47,393,59,2600,168,915,86,442,75,1393,139,571,56,537,81]
[null,null,null,"Estimate Total: Owner occupied:",340,50,1584,209,2921,257,686,79,257,53,223,35,1082,164,218,44,367,61,1743,186,803,78,398,71,1044,138,536,56,499,81]
[null,null,null,"Estimate  Owner occupied: - Less than $5,000",9,12,55,55,27,41,7,8,2,4,2,3,0,11,3,4,14,15,61,80,22,27,4,6,54,60,16,18,6,6]
[null,null,null,"Estimate  Owner occupied: - $5,000 to $9,999",0,11,54,85,68,59,6,9,7,12,0,11,0,11,8,12,2,4,0,16,16,11,9,15,0,11,3,5,11,16]
[null,null,null,"Estimate  Owner occupied: - $10,000 to $14,999",6,6,16,26,81,65,12,19,12,13,8,10,0,11,0,11,13,15,13,22,0,11,7,7,4,8,23,16,12,16]
[null,null,null,"Estimate  Owner occupied: - $15,000 to $19,999",7,6,105,88,90,68,27,24,3,5,9,7,45,48,5,5,10,9,40,37,0,11,7,13,16,17,18,20,8,7]
[null,null,null,"Estimate  Owner occupied: - $20,000 to $24,999",8,10,56,71,133,75,3,4,10,8,5,8,0,11,6,6,28,21,75,55,14,13,6,9,65,58,29,22,20,17]
[null,null,null,"Estimate  Owner occupied: - $25,000 to $34,999",28,14,241,139,334,116,61,35,16,11,15,13,91,76,14,9,18,10,131,87,95,47,56,35,32,26,44,17,27,14]
[null,null,null,"Estimate  Owner occupied: - $35,000 to $49,999",40,19,270,140,334,111,86,34,30,18,26,16,108,106,15,13,58,30,181,74,54,31,19,16,57,34,37,13,70,31]
[null,null,null,"Estimate  Owner occupied: - $50,000 to $74,999",89,29,323,117,532,116,98,34,36,17,62,26,173,89,40,19,43,25,468,146,101,40,61,31,175,73,104,31,70,26]
[null,null,null,"Estimate  Owner occupied: - $75,000 to $99,999",59,34,304,126,610,148,108,36,46,22,41,15,114,58,45,22,67,29,303,118,185,49,128,44,202,77,96,34,81,37]
[null,null,null,"Estimate  Owner occupied: - $100,000 to $149,999",62,21,93,64,442,140,162,36,58,27,41,21,282,107,52,15,89,36,222,100,151,45,77,36,275,91,120,40,109,41]
[null,null,null,"Estimate  Owner occupied: - $150,000 or more",32,17,67,54,270,104,116,35,37,23,14,11,269,116,30,21,25,27,249,120,165,43,24,12,164,64,46,19,85,61]
[null,null,null,"Estimate Total: Renter occupied:",30,16,502,134,2310,288,55,26,36,22,54,23,140,79,39,21,26,16,857,184,112,49,44,33,349,122,35,20,38,28]
[null,null,null,"Estimate  Renter occupied: - Less than $5,000",6,10,61,66,147,102,3,5,5,10,8,10,0,11,6,10,0,11,43,53,0,11,0,11,31,48,0,11,0,11]
[null,null,null,"Estimate  Renter occupied: - $5,000 to $9,999",0,11,0,16,69,47,0,11,0,11,9,11,0,11,0,11,0,11,54,45,4,8,8,13,33,52,0,11,0,11]
[null,null,null,"Estimate  Renter occupied: - $10,000 to $14,999",0,11,14,23,164,77,7,7,0,11,0,11,0,11,0,11,0,11,33,53,0,11,0,11,11,17,0,11,0,11]
[null,null,null,"Estimate  Renter occupied: - $15,000 to $19,999",0,11,73,66,209,83,6,6,3,4,0,11,0,11,0,11,0,11,204,117,0,11,0,11,0,11,0,11,10,16]
[null,null,null,"Estimate  Renter occupied: - $20,000 to $24,999",0,11,17,28,277,145,4,6,0,11,4,4,0,11,0,11,2,3,26,29,16,18,0,11,47,56,8,13,0,11]
[null,null,null,"Estimate  Renter occupied: - $25,000 to $34,999",2,3,60,53,350,133,4,6,5,6,0,11,0,11,2,3,0,11,163,100,5,7,0,11,41,50,3,4,6,6]
[null,null,null,"Estimate  Renter occupied: - $35,000 to $49,999",6,5,41,42,435,157,3,5,0,11,10,12,0,11,10,10,12,8,50,40,18,15,5,9,66,67,11,9,0,11]
[null,null,null,"Estimate  Renter occupied: - $50,000 to $74,999",8,10,45,52,311,115,10,17,15,15,15,15,40,35,13,14,12,14,158,116,41,38,7,8,84,59,8,9,16,16]
[null,null,null,"Estimate  Renter occupied: - $75,000 to $99,999",5,6,109,97,253,133,3,5,2,4,8,7,15,23,0,11,0,11,74,58,0,11,24,29,0,11,0,11,0,11]
[null,null,null,"Estimate  Renter occupied: - $100,000 to $149,999",0,11,36,59,41,43,12,10,6,10,0,11,85,80,3,4,0,11,27,31,28,30,0,11,15,23,5,7,6,14]
[null,null,null,"Estimate  Renter occupied: - $150,000 or more",3,5,46,54,54,38,3,4,0,11,0,11,0,11,5,8,0,11,25,29,0,11,0,11,21,18,0,11,0,11]
[]
[null,null,null,"Estimate Median household income in the past 12 months (in 2019 inflation-adjusted dollars) -- Total:",68438,8127,47302,12871,47649,4588,82083,12741,75521,12747,59583,12176,108571,26279,79125,12995,70156,12339,54816,7020,85313,10050,79444,8510,73682,16011,69702,9041,78224,12451]
[null,null,null,"Estimate Median household income in the past 12 months (in 2019 inflation-adjusted dollars) -- Total: Owner occupied (dollars)",70500,7922,49167,13210,65906,9470,87647,12888,77708,12879,69107,11123,106563,25268,86000,11589,74219,11690,67439,9804,89375,7847,79259,6027,91786,6042,73750,10245,79934,15397]
[null,null,null,"Estimate Median household income in the past 12 months (in 2019 inflation-adjusted dollars) -- Total: Renter occupied (dollars)",51250,15306,46058,35417,33708,7109,66071,41117,49000,27814,138315,83312,65536,46199,49643,5108,27862,6650,54412,12651,93125,70025,45292,25837,42083,19435,55577,37949,0,0]

{"sheet":"PopComparison","index":106,"n_rows":48,"n_cols":14,"rows_kept":48,"cut":false,"hidden":true,"merged":[[27,5,27,6],[27,9,27,10],[29,1,29,2],[30,1,30,2],[31,1,31,2],[45,1,45,2],[26,12,26,14],[27,7,27,8],[38,1,38,2],[39,1,39,2],[40,1,40,2],[41,1,41,2],[42,1,42,2],[43,1,43,2],[32,1,32,2],[33,1,33,2],[34,1,34,2],[35,1,35,2],[36,1,36,2],[37,1,37,2],[27,3,27,4]]}
[]
[]
[]
[]
[]
[]
[]
[]
[]
[]
[]
[]
[]
[]
[]
[]
[]
[]
[]
[]
[]
[]
[]
[]
[]
[]
[]
[null,null,null,2000,null,2010,null,2020,null,2030,null,null,"2000-2010","2010-2030"]
[null,null,null,"#","%","#","%","#","%","#","%",null,"% Change","% Change"]
[null,"Acworth",null,{"$f":"CntyQuery!G118","v":836},{"$f":"D30/$D$46","v":2.0663404023926048E-2},{"$f":"CntyQuery!H118","v":891},{"$f":"F30/$F$46","v":2.0369438983128343E-2},{"$f":"CntyQuery!$I118","v":937},{"$f":"H30/$J$46","v":1.9586120401337791E-2},{"$f":"CntyQuery!J118","v":960},{"$f":"J30/$J$46","v":2.0066889632107024E-2},null,{"$f":"(F30-D30)/D30","v":6.5789473684210523E-2},{"$f":"(J30-F30)/F30","v":7.7441077441077436E-2}]
[null,"Charlestown",null,{"$f":"CntyQuery!G119","v":4749},0.11738098769093876,{"$f":"CntyQuery!H119","v":5114},0.11691280691326414,{"$f":"CntyQuery!$I119","v":5432},0.11354515050167224,{"$f":"CntyQuery!J119","v":5571},0.11645066889632107,null,{"$f":"(F31-D31)/D31","v":7.6858285954937877E-2},{"$f":"(J31-F31)/F31","v":8.936253421978882E-2}]
[null,"Claremont",null,{"$f":"CntyQuery!G120","v":13151},0.32505314152948739,{"$f":"CntyQuery!H120","v":13355},0.30531297151479125,{"$f":"CntyQuery!$I120","v":13322},0.27846989966555186,{"$f":"CntyQuery!J120","v":13662},0.28557692307692306,null,1.5512128355258155E-2,2.2987645076750281E-2]
[null,"Cornish",null,{"$f":"CntyQuery!G121","v":1661},4.1054921152800433E-2,{"$f":"CntyQuery!H121","v":1640},3.7492570069955648E-2,{"$f":"CntyQuery!$I121","v":1583},3.3089464882943141E-2,{"$f":"CntyQuery!J121","v":1623},3.3925585284280933E-2,null,-1.2642986152919929E-2,-1.0365853658536586E-2]
[null,"Croydon",null,{"$f":"CntyQuery!G122","v":661},1.6337930693558753E-2,{"$f":"CntyQuery!H122","v":764},1.7466050935028118E-2,{"$f":"CntyQuery!$I122","v":867},1.8122909698996655E-2,{"$f":"CntyQuery!J122","v":890},1.8603678929765888E-2,null,0.15582450832072617,0.16492146596858639]
[null,"Goshen",null,{"$f":"CntyQuery!G123","v":741},1.8315289930298087E-2,{"$f":"CntyQuery!H123","v":810},1.8517671802843947E-2,{"$f":"CntyQuery!$I123","v":873},1.8248327759197325E-2,{"$f":"CntyQuery!J123","v":896},1.8729096989966554E-2,null,9.3117408906882596E-2,0.10617283950617284]
[null,"Grantham",null,{"$f":"CntyQuery!G124","v":2167},5.3561718325176727E-2,{"$f":"CntyQuery!H124","v":2985},6.8241049791961952E-2,{"$f":"CntyQuery!$I124","v":3868},8.0852842809364542E-2,{"$f":"CntyQuery!J124","v":3967},8.2922240802675587E-2,null,0.37748038763267189,0.32897822445561137]
[null,"Langdon",null,{"$f":"CntyQuery!G125","v":586},1.4484156409115627E-2,{"$f":"CntyQuery!H125","v":688},1.5728590370810664E-2,{"$f":"CntyQuery!$I125","v":792},1.6555183946488295E-2,{"$f":"CntyQuery!J125","v":812},1.6973244147157191E-2,null,0.17406143344709898,0.18023255813953487]
[null,"Lempster",null,{"$f":"CntyQuery!G126","v":971},2.4000197735923674E-2,{"$f":"CntyQuery!H126","v":1154},2.6381966988249281E-2,{"$f":"CntyQuery!$I126","v":1342},2.8051839464882943E-2,{"$f":"CntyQuery!J126","v":1376},2.8762541806020066E-2,null,0.18846549948506694,0.1923743500866551]
[null,"Newport",null,{"$f":"CntyQuery!G127","v":6269},0.1549508131889861,{"$f":"CntyQuery!H127","v":6507},0.14875863014951304,{"$f":"CntyQuery!$I127","v":6651},0.13902591973244147,{"$f":"CntyQuery!J127","v":6820},0.14255852842809363,null,3.7964587653533256E-2,4.810204395266636E-2]
[null,"Plainfield",null,{"$f":"CntyQuery!G128","v":2241},5.5390775619160608E-2,{"$f":"CntyQuery!H128","v":2364},5.4044168076448268E-2,{"$f":"CntyQuery!$I128","v":2458},5.1379598662207357E-2,{"$f":"CntyQuery!J128","v":2521},5.2696488294314378E-2,null,5.4886211512717539E-2,6.6412859560067677E-2]
[null,"Springfield",null,{"$f":"CntyQuery!G129","v":945},2.335755598398339E-2,{"$f":"CntyQuery!H129","v":1311},2.997119473275113E-2,{"$f":"CntyQuery!$I129","v":1707},3.5681438127090299E-2,{"$f":"CntyQuery!J129","v":1750},3.6580267558528431E-2,null,0.38730158730158731,0.33485888634630051]
[null,"Sunapee",null,{"$f":"CntyQuery!G130","v":3055},7.5510405852983339E-2,{"$f":"CntyQuery!H130","v":3365},7.6928352613049242E-2,{"$f":"CntyQuery!$I130","v":3655},7.64005016722408E-2,{"$f":"CntyQuery!J130","v":3748},7.8344481605351166E-2,null,0.10147299509001637,0.1138187221396731]
[null,"Unity",null,{"$f":"CntyQuery!G131","v":1530},{"$f":"D43/$D$46","v":3.7816995402639775E-2},{"$f":"CntyQuery!H131","v":1671},{"$f":"F43/$F$46","v":3.8201271089570665E-2},{"$f":"CntyQuery!$I131","v":1800},{"$f":"H43/$J$46","v":3.7625418060200672E-2},{"$f":"CntyQuery!J131","v":1846},{"$f":"J43/$J$46","v":3.858695652173913E-2},null,{"$f":"(F43-D43)/D43","v":9.2156862745098045E-2},0.1047277079593058]
[null,"Washington",null,{"$f":"CntyQuery!G132","v":895},{"$f":"D44/$D$46","v":2.2121706461021306E-2},{"$f":"CntyQuery!H132","v":1123},{"$f":"F44/$F$46","v":2.5673265968634264E-2},{"$f":"CntyQuery!$I132","v":1363},{"$f":"H44/$J$46","v":2.8490802675585285E-2},{"$f":"CntyQuery!J132","v":1398},{"$f":"J44/$J$46","v":2.9222408026755853E-2},null,{"$f":"(F44-D44)/D44","v":0.25474860335195532},0.24487978628673196]
[]
[null,"Sullivan County",null,{"$f":"SUM(D30:D44)","v":40458},null,{"$f":"SUM(F30:F44)","v":43742},null,{"$f":"SUM(H30:H44)","v":46650},null,{"$f":"SUM(J30:J44)","v":47840},null,null,{"$f":"(F46-D46)/D46","v":8.1170596668149686E-2},{"$f":"(J46-D46)/D46","v":0.18246082357012211}]
[]
[null,"Source: US Census and NH Office of Strategic Initiatives."]

{"sheet":"HousingComparison","index":107,"n_rows":52,"n_cols":15,"rows_kept":52,"cut":false,"hidden":true,"merged":[[28,3,28,4],[28,5,28,8],[28,9,28,14],[29,5,29,6],[29,7,29,8],[29,9,29,10],[29,11,29,12],[29,13,29,14]]}
[]
[]
[]
[]
[]
[]
[]
[]
[]
[]
[]
[]
[]
[]
[]
[]
[]
[]
[]
[]
[]
[]
[]
[]
[]
[]
[]
[null,"Housing Units",null,"In 2019"]
[null,null,null,"Total Units",null,"Occupied Units",null,null,null,"Vacant Units"]
[null,null,null,null,null,"Owner",null,"Renter",null,"For Sale",null,"For Rent",null,"Seasonal"]
[null,null,null,"#","%","#","%","#","%","#","%","#","%","#","%"]
[]
[null,"Acworth",null,{"$f":"ACS_Table_B25001!$C$7","v":587},{"$f":"D33/D$49","v":2.5913826593678264E-2},{"$f":"ACS_Table_B25003!$C$8","v":340},{"$f":"F33/$F$49","v":2.6769545705062594E-2},{"$f":"ACS_Table_B25003!$C$9","v":30},{"$f":"H33/$H$49","v":6.4836827317916578E-3},{"$f":"ACS_Table_B25004!$C$10","v":0},{"$f":"J33/$J$49","v":0},{"$f":"ACS_Table_B25004!$C$8","v":4},{"$f":"L33/$L$49","v":1.1204481792717087E-2},{"$f":"ACS_Table_B25004!$C$12","v":192},{"$f":"N33/$N$49","v":4.7737444057682744E-2}]
[null,"Charlestown",null,{"$f":"ACS_Table_B25001!$E$7","v":2354},0.10392018364824299,{"$f":"ACS_Table_B25003!$E$8","v":1584},0.12471458940240926,{"$f":"ACS_Table_B25003!$E$9","v":502},0.10849362437864707,{"$f":"ACS_Table_B25004!$E$10","v":32},0.1693121693121693,{"$f":"ACS_Table_B25004!$E$8","v":0},0,{"$f":"ACS_Table_B25004!$E$12","v":164},4.0775733465937346E-2]
[null,"Claremont",null,{"$f":"ACS_Table_B25001!$G$7","v":6129},0.27057213491082466,{"$f":"ACS_Table_B25003!$G$8","v":2921},0.22998189118967011,{"$f":"ACS_Table_B25003!$G$9","v":2310},0.49924357034795763,{"$f":"ACS_Table_B25004!$G$10","v":57},0.30158730158730157,{"$f":"ACS_Table_B25004!$G$8","v":279},0.78151260504201681,{"$f":"ACS_Table_B25004!$G$12","v":217},5.395325708602685E-2]
[null,"Cornish",null,{"$f":"ACS_Table_B25001!$I$7","v":837},3.695037965742539E-2,{"$f":"ACS_Table_B25003!$I$8","v":686},5.4011495157861585E-2,{"$f":"ACS_Table_B25003!$I$9","v":55},1.1886751674951372E-2,{"$f":"ACS_Table_B25004!$I$10","v":27},0.14285714285714285,{"$f":"ACS_Table_B25004!$I$8","v":0},0,{"$f":"ACS_Table_B25004!$I$12","v":58},1.4420686225758329E-2]
[null,"Croydon",null,{"$f":"ACS_Table_B25001!$K$7","v":464},2.0483842486314675E-2,{"$f":"ACS_Table_B25003!$K$8","v":257},2.0234627194709077E-2,{"$f":"ACS_Table_B25003!$K$9","v":36},7.7804192781499894E-3,{"$f":"ACS_Table_B25004!$K$10","v":4},2.1164021164021163E-2,{"$f":"ACS_Table_B25004!$K$8","v":0},0,{"$f":"ACS_Table_B25004!$K$12","v":123},3.0581800099453008E-2]
[null,"Goshen",null,{"$f":"ACS_Table_B25001!$M$7","v":435},1.9203602330920007E-2,{"$f":"ACS_Table_B25003!$M$8","v":223},1.7557672624202818E-2,{"$f":"ACS_Table_B25003!$M$9","v":54},1.1670628917224984E-2,{"$f":"ACS_Table_B25004!$M$10","v":13},6.8783068783068779E-2,{"$f":"ACS_Table_B25004!$M$8","v":17},4.7619047619047616E-2,{"$f":"ACS_Table_B25004!$M$12","v":118},2.9338637493784188E-2]
[null,"Grantham",null,{"$f":"ACS_Table_B25001!$O$7","v":1745},7.7035140384954973E-2,{"$f":"ACS_Table_B25003!$O$8","v":1082},8.5190142508463906E-2,{"$f":"ACS_Table_B25003!$O$9","v":140},3.0257186081694403E-2,{"$f":"ACS_Table_B25004!$O$10","v":12},6.3492063492063489E-2,{"$f":"ACS_Table_B25004!$O$8","v":0},0,{"$f":"ACS_Table_B25004!$O$12","v":511},0.12705121829935356]
[null,"Langdon",null,{"$f":"ACS_Table_B25001!$Q$7","v":318},1.4038495497086349E-2,{"$f":"ACS_Table_B25003!$Q$8","v":218},1.7164002834422487E-2,{"$f":"ACS_Table_B25003!$Q$9","v":39},8.4287875513291543E-3,{"$f":"ACS_Table_B25004!$Q$10","v":14},7.407407407407407E-2,{"$f":"ACS_Table_B25004!$Q$8","v":0},0,{"$f":"ACS_Table_B25004!$Q$12","v":35},8.70213823968175E-3]
[null,"Lempster",null,{"$f":"ACS_Table_B25001!$S$7","v":694},3.0637471304962034E-2,{"$f":"ACS_Table_B25003!$S$8","v":367},2.8895362569876386E-2,{"$f":"ACS_Table_B25003!$S$9","v":26},5.6191917008861034E-3,{"$f":"ACS_Table_B25004!$S$10","v":2},1.0582010582010581E-2,{"$f":"ACS_Table_B25004!$S$8","v":0},0,{"$f":"ACS_Table_B25004!$S$12","v":233},5.7931377424167083E-2]
[null,"Newport",null,{"$f":"ACS_Table_B25001!$U$7","v":2816},0.12431573371004767,{"$f":"ACS_Table_B25003!$U$8","v":1743},0.13723328871742382,{"$f":"ACS_Table_B25003!$U$9","v":857},0.18521720337151501,{"$f":"ACS_Table_B25004!$U$10","v":0},0,{"$f":"ACS_Table_B25004!$U$8","v":33},9.2436974789915971E-2,{"$f":"ACS_Table_B25004!$U$12","v":145},3.605171556439582E-2]
[null,"Plainfield",null,{"$f":"ACS_Table_B25001!$W$7","v":1076},4.7501324386367651E-2,{"$f":"ACS_Table_B25003!$W$8","v":803},6.3223368238721364E-2,{"$f":"ACS_Table_B25003!$W$9","v":112},2.4205748865355523E-2,{"$f":"ACS_Table_B25004!$W$10","v":21},0.1111111111111111,{"$f":"ACS_Table_B25004!$W$8","v":15},4.2016806722689079E-2,{"$f":"ACS_Table_B25004!$W$12","v":107},2.6603679761312778E-2]
[null,"Springfield",null,{"$f":"ACS_Table_B25001!$Y$7","v":719},3.1741126611336747E-2,{"$f":"ACS_Table_B25003!$Y$8","v":398},3.1336115266514447E-2,{"$f":"ACS_Table_B25003!$Y$9","v":44},9.5094013399610981E-3,{"$f":"ACS_Table_B25004!$Y$10","v":0},0,{"$f":"ACS_Table_B25004!$Y$8","v":9},2.5210084033613446E-2,{"$f":"ACS_Table_B25004!$Y$12","v":250},6.2158130283441075E-2]
[null,"Sunapee",null,{"$f":"ACS_Table_B25001!$AA$7","v":2592},0.11442698216493025,{"$f":"ACS_Table_B25003!$AA$8","v":1044},8.2198252106133379E-2,{"$f":"ACS_Table_B25003!$AA$9","v":349},7.5426842446509615E-2,{"$f":"ACS_Table_B25004!$AA$10","v":0},0,{"$f":"ACS_Table_B25004!$AA$8","v":0},0,{"$f":"ACS_Table_B25004!$AA$12","v":1152},0.28642466434609648]
[null,"Unity",null,{"$f":"ACS_Table_B25001!$AC$7","v":726},3.2050150097121664E-2,{"$f":"ACS_Table_B25003!$AC$8","v":536},4.2201401464451616E-2,{"$f":"ACS_Table_B25003!$AC$9","v":35},7.5642965204236008E-3,{"$f":"ACS_Table_B25004!$AC$10","v":4},2.1164021164021163E-2,{"$f":"ACS_Table_B25004!$AC$8","v":0},0,{"$f":"ACS_Table_B25004!$AC$12","v":140},3.4808552958727E-2]
[null,"Washington",null,{"$f":"ACS_Table_B25001!$AE$7","v":1160},5.1209606215786685E-2,{"$f":"ACS_Table_B25003!$AE$8","v":499},3.9288245020077162E-2,{"$f":"ACS_Table_B25003!$AE$9","v":38},8.2126647936027666E-3,{"$f":"ACS_Table_B25004!$AE$10","v":3},1.5873015873015872E-2,{"$f":"ACS_Table_B25004!$AA$8","v":0},0,{"$f":"ACS_Table_B25004!$AE$12","v":577},0.14346096469418199]
[]
[null,"Sullivan County",null,{"$f":"SUM(D33:D47)","v":22652},null,{"$f":"SUM(F33:F47)","v":12701},null,{"$f":"SUM(H33:H47)","v":4627},null,{"$f":"SUM(J33:J47)","v":189},null,{"$f":"SUM(L33:L47)","v":357},null,{"$f":"SUM(N33:N47)","v":4022}]
[]
[null,"Source: 2015-2019 American Community Survey Tables B25001; B25003; and B25004"]
[null,"Margin of error is not displayed.  The American Community Survey data are estimates only."]

{"sheet":"Housing_EmploymentComparison","index":108,"n_rows":54,"n_cols":11,"rows_kept":54,"cut":false,"hidden":true,"merged":[[51,2,51,13],[52,2,52,13],[53,2,53,13],[28,3,28,4],[28,5,28,10],[29,3,29,4],[29,5,29,6],[29,7,29,8],[29,9,29,10]]}
[]
[]
[]
[]
[]
[]
[]
[]
[]
[]
[]
[]
[]
[]
[]
[]
[]
[]
[]
[]
[]
[]
[]
[]
[]
[]
[]
[null,null,null,"In 2019"]
[null,null,null,"Total Units",null,"Employment"]
[null,null,null,null,null,"Total Private",null,"Goods Producing",null,"Service Providing"]
[null,null,null,"#","%","#","%","#","%","#","%"]
[]
[null,"Acworth",null,{"$f":"ACS_Table_B25001!$C$7","v":587},{"$f":"D33/D$49","v":2.5913826593678264E-2},{"$f":"CntyQuery!EQ171","v":112},{"$f":"IF(F33=\"n\",\"n\",F33/$F$49)","v":9.8331870061457421E-3},{"$f":"CntyQuery!ET171","v":83},{"$f":"IF(H33=\"n\",\"n\",H33/$F$49)","v":7.2870939420544333E-3},{"$f":"CntyQuery!EU171","v":12},{"$f":"IF(J33=\"n\",\"n\",J33/$F$49)","v":1.0535557506584723E-3}]
[null,"Charlestown",null,{"$f":"ACS_Table_B25001!$E$7","v":2354},0.10392018364824299,{"$f":"CntyQuery!EQ172","v":2080},{"$f":"IF(F34=\"n\",\"n\",F34/$F$49)","v":0.18261633011413519},{"$f":"CntyQuery!ET172","v":1272},{"$f":"IF(H34=\"n\",\"n\",H34/$F$49)","v":0.11167690956979807},{"$f":"CntyQuery!EU172","v":579},{"$f":"IF(J34=\"n\",\"n\",J34/$F$49)","v":5.0834064969271293E-2}]
[null,"Claremont",null,{"$f":"ACS_Table_B25001!$G$7","v":6129},0.27057213491082466,{"$f":"CntyQuery!EQ173","v":5671},0.49789288849868307,{"$f":"CntyQuery!ET173","v":"n"},"n",{"$f":"CntyQuery!EU173","v":"n"},"n"]
[null,"Cornish",null,{"$f":"ACS_Table_B25001!$I$7","v":837},3.695037965742539E-2,{"$f":"CntyQuery!EQ174","v":118},1.0359964881474977E-2,{"$f":"CntyQuery!ET174","v":19},1.6681299385425813E-3,{"$f":"CntyQuery!EU174","v":26},2.2827041264266903E-3]
[null,"Croydon",null,{"$f":"ACS_Table_B25001!K$7","v":464},2.0483842486314675E-2,{"$f":"CntyQuery!EQ175","v":142},1.2467076382791922E-2,{"$f":"CntyQuery!ET175","v":14},1.2291483757682178E-3,{"$f":"CntyQuery!EU175","v":118},1.0359964881474977E-2]
[null,"Goshen",null,{"$f":"ACS_Table_B25001!$M$7","v":435},1.9203602330920007E-2,{"$f":"CntyQuery!EQ176","v":40},3.5118525021949078E-3,{"$f":"CntyQuery!ET176","v":"n"},"n",{"$f":"CntyQuery!EU176","v":"n"},"n"]
[null,"Grantham",null,{"$f":"ACS_Table_B25001!$O$7","v":1745},7.7035140384954973E-2,{"$f":"CntyQuery!EQ177","v":325},2.8533801580333626E-2,{"$f":"CntyQuery!ET177","v":0},0,{"$f":"CntyQuery!EU177","v":0},0]
[null,"Langdon",null,{"$f":"ACS_Table_B25001!$Q$7","v":318},1.4038495497086349E-2,{"$f":"CntyQuery!EQ178","v":210},1.8437225636523266E-2,{"$f":"CntyQuery!ET178","v":31},2.7216856892010536E-3,{"$f":"CntyQuery!EU178","v":18},1.5803336259877085E-3]
[null,"Lempster",null,{"$f":"ACS_Table_B25001!$S$7","v":694},3.0637471304962034E-2,{"$f":"CntyQuery!EQ179","v":114},1.0008779631255488E-2,{"$f":"CntyQuery!ET179","v":"n"},"n",{"$f":"CntyQuery!EU179","v":"n"},"n"]
[null,"Newport",null,{"$f":"ACS_Table_B25001!$U$7","v":2816},0.12431573371004767,{"$f":"CntyQuery!EQ180","v":3330},0.2923617208077261,{"$f":"CntyQuery!ET180","v":1231},0.10807726075504828,{"$f":"CntyQuery!EU180","v":1640},0.14398595258999122]
[null,"Plainfield",null,{"$f":"ACS_Table_B25001!$W$7","v":1076},4.7501324386367651E-2,{"$f":"CntyQuery!EQ181","v":521},4.5741878841088678E-2,{"$f":"CntyQuery!ET181","v":112},9.8331870061457421E-3,{"$f":"CntyQuery!EU181","v":376},3.3011413520632131E-2]
[null,"Springfield",null,{"$f":"ACS_Table_B25001!$Y$7","v":719},3.1741126611336747E-2,{"$f":"CntyQuery!EQ182","v":134},1.1764705882352941E-2,{"$f":"CntyQuery!ET182","v":26},2.2827041264266903E-3,{"$f":"CntyQuery!EU182","v":90},7.9016681299385431E-3]
[null,"Sunapee",null,{"$f":"ACS_Table_B25001!$AA$7","v":2592},0.11442698216493025,{"$f":"CntyQuery!EQ183","v":660},5.7945566286215978E-2,{"$f":"CntyQuery!ET183","v":117},1.0272168568920105E-2,{"$f":"CntyQuery!EU183","v":338},2.9675153643546972E-2]
[null,"Unity",null,{"$f":"ACS_Table_B25001!$AC$7","v":726},3.2050150097121664E-2,{"$f":"CntyQuery!EQ184","v":204},1.7910447761194031E-2,{"$f":"CntyQuery!ET184","v":"n"},"n",{"$f":"CntyQuery!EU184","v":"n"},"n"]
[null,"Washington",null,{"$f":"ACS_Table_B25001!$AE$7","v":1160},{"$f":"D47/D$49","v":5.1209606215786685E-2},{"$f":"CntyQuery!EQ185","v":72},6.3213345039508338E-3,{"$f":"CntyQuery!ET185","v":"n"},"n",{"$f":"CntyQuery!EU185","v":"n"},"n"]
[]
[null,"Sullivan County",null,{"$f":"SUM(D33:D48)","v":22652},null,{"$f":"CntyQuery!$ER$201","v":11390},null,{"$f":"CntyQuery!$ET$201","v":3818},null,{"$f":"CntyQuery!$EU$201","v":7573}]
[]
[null,"Source: ","2015-2019 American Community Survey Table B25001"]
[null,null,"Employment data provided by NH Department of Employment Security 2019 Covered Private Employment."]
[null,null,"Margin of error is not displayed.  The American Community Survey data are estimates only. Total Employment "]
[null,null,"at the county level is the number provided by NH Department of Employment Security."]

{"sheet":"DropDownList","index":109,"n_rows":47,"n_cols":3,"rows_kept":47,"cut":false,"hidden":true,"merged":[]}
["List Range for Combo Box on Start Page"]
["Acworth"]
["Charlestown"]
["Claremont"]
["Cornish"]
["Croydon"]
["Goshen"]
["Grantham"]
["Langdon"]
["Lempster"]
["Newport"]
["Plainfield"]
["Springfield"]
["Sunapee"]
["Unity"]
["Washington"]
[]
[]
[]
[]
[]
[]
[]
[]
[]
[]
[]
[]
[]
[]
[]
[]
[]
[]
[]
[]
[]
[]
[]
[]
[]
[]
[]
[]
[]
[]
[{"$f":"B47","v":"Acworth"},"Acworth","Acworth"]

{"sheet":"CntyQryCensus","index":110,"n_rows":544,"n_cols":216,"rows_kept":544,"cut":false,"hidden":true,"merged":[]}
[]
["Census 2000 SF1   -           Query Name:  TownAllQuery3"]
["NAME","COUNTY","LOGRECNO","COUSUB","TRACT","AREALAND","AREAWATR","POP100","HU100","P01TotalPopulation","P03PopOfOneRace","P03PopWhite","P03PopBlack","P03PopAmIndian","P03PopAsian","P03PopHawaiian","P03PopOtherRace","P03Pop2orMoreRaces","P04PopHispanicLatino","P04PopNotHispanicLatino","P12PopMale","P12PopMale<15","P12PopMale15to24","P12PopMale25to34","P12PopMale35to44","P12PopMale45to54","P12PopMale55to64","P12PopMale65to74","P12PopMale75to84","P12PopMale85andOver","P12PopFemale","P12PopFemale<15","P12PopFemale15to24","P12PopFemale25to34","P12PopFemale35t44","P12PopFemale45to54","P12PopFemale55to64","P12PopFemale65to74","P12PopFemale75to84","P12PopFemale85andOver","P15Households2000","P16PopInHH","P17AvgHHSize","P18HHs1Person","P18HHs2orMorePerson","P18HHsFamily","P18HHMarriedCoupleFam","P18HHSingleParentFam","P18HHsNonFamily","P31Families","P32PopInFam","P33AvgFamSize","H01TotHsUnits","H04OccHsUnits","H04OwnerOccHU","H04RenterOccHU","H05VctHsUnits","H05VctHUForRent","H05VctHUForSale","H05VctHUSeasonal","H10PopInOccHU","H11PopInOwnOccHU","H11PopInRntOccHU","H12AvgHHSize2","H12AvgHHSizOwnOcc","H12AvgHHSizRntOcc","H14OwnOccWhtHsHldr","H14OwnOccBlkHsHldr","H14OwnOccAmIHsHldr","H14OwnOccAsnHsHldr","H14OwnOccPIsHsHldr","H14OwnOccORHsHldr","H14OwnOcc2RcHsHldr","H14RntOccWhtHsHldr","H14RntOccBlkHsHldr","H14RntOccAmIHsHldr","H14RntOccAsnHsHldr","H14RntOccPIsHsHldr","H14RntOccORHsHldr","H14RntOcc2RcHsHldr","H16OwnOccHH15to24","H16OwnOccHH25to34","H16OwnOccHH35to44","H16OwnOccHH45to54","H16OwnOccHH55to64","H16OwnOccHH65to74","H16OwnOccHH75to84","H16OwnOccHH85Over","H16RntOccHH15to24","H16RntOccHH25to34","H16RntOccHH35to44","H16RntOccHH45to54","H16RntOccHH55to64","H16RntOccHH65to74","H16RntOccHH75to84","H16RntOccHH85Over","P27TotalPop","P27PopInHseHlds","P27PopInGrpQtrs","CNTY_NAME","P13MedianPopMale","P13MedianPopFemale"]
["Acworth","019","0035914","00260","","     100723552","        634512",836,"      512",836,825,809,7,7,2,0,0,11,9,827,421,89,42,32,67,83,50,40,13,5,415,86,37,30,72,73,48,44,19,6,318,836,2.63,63,255,234,193,41,21,234,716,3.06,512,318,267,51,194,6,1,172,836,682,154,2.63,2.5499999999999998,3.02,263,0,2,2,0,0,0,45,1,0,0,0,0,5,2,16,53,80,45,51,14,6,1,10,15,6,8,6,2,3,836,836,0,"Sullivan",36.6,36.6]
["Charlestown","019","0036069","11380","","      92753742","       5569974",4749,"     2067",4749,4716,4679,15,12,7,0,3,33,28,4721,2313,468,296,270,357,376,264,152,106,24,2436,471,249,270,403,382,265,206,141,49,1920,4729,2.46,459,1461,1332,1068,264,129,1332,3859,2.9,2067,1920,1469,451,147,43,21,49,4729,3790,939,2.46,2.58,2.08,1459,4,2,1,0,0,3,442,1,3,1,0,0,4,25,177,313,350,272,180,122,30,51,86,88,71,52,49,39,15,4749,4729,20,"Sullivan",34.299999999999997,36.6]
["Claremont","019","0036288","12900","","     111684026","       2496735",13151,"     6074",13151,13030,12845,41,43,81,4,16,121,66,13085,6323,1306,727,872,1030,919,609,463,310,87,6828,1243,810,828,1021,908,661,609,568,180,5685,12970,2.2799999999999998,1831,3854,3428,2587,841,426,3428,9810,2.86,6074,5685,3271,2414,389,131,66,64,12970,8059,4911,2.2799999999999998,2.46,2.0299999999999998,3233,2,6,8,0,3,19,2345,16,13,10,0,3,27,46,350,666,696,545,477,385,106,263,530,474,363,236,218,255,75,13151,12970,181,"Sullivan",21.6,20.9]
["Cornish","019","0036648","15060","","     109093811","       1875877",1661,"      697",1661,1642,1623,null,5,2,2,5,19,8,1653,831,172,77,76,135,181,92,56,36,6,830,177,67,84,143,161,94,61,31,12,645,1660,2.57,137,508,466,406,60,42,466,1406,3.02,697,645,563,82,52,5,2,35,1660,1476,184,2.57,2.62,2.2400000000000002,557,1,0,0,1,0,4,80,0,1,0,0,0,1,0,44,111,181,99,66,48,14,3,26,27,13,5,5,3,0,1661,1660,1,"Sullivan",36,36.1]
["Croydon","019","0036771","16340","","      96047850","       2000207",661,"      354",661,653,644,0,3,1,0,5,8,4,657,345,66,32,51,58,59,44,23,12,0,316,53,30,37,55,56,39,23,18,5,264,660,2.5,51,213,194,153,41,19,194,526,2.71,354,264,237,27,90,1,9,72,660,592,68,2.5,2.5,2.52,232,0,1,0,0,1,3,27,0,0,0,0,0,0,3,34,54,55,44,29,15,3,0,8,5,6,5,1,2,0,661,660,1,"Sullivan",34.9,35.799999999999997]
["Goshen","019","0036818","30500","","      58245997","        226530",741,"      389",741,733,719,0,12,1,0,1,8,3,738,366,67,52,33,68,58,41,30,15,2,375,74,45,32,71,52,47,28,20,6,279,733,2.63,48,231,219,180,39,12,219,648,2.96,389,279,251,28,110,0,6,97,733,656,77,2.63,2.61,2.75,245,0,2,0,0,1,3,27,0,0,0,0,0,1,4,23,58,64,49,31,20,2,4,4,8,4,2,3,2,1,741,733,8,"Sullivan",36,36.4]
["Grantham","019","0036868","31220","","      69361907","       2257377",2167,"     1513",2167,2149,2130,6,2,9,0,2,18,12,2155,1062,175,65,120,154,171,123,166,77,11,1105,178,77,110,174,168,181,153,57,7,924,2167,2.35,177,747,708,649,59,39,708,1889,2.67,1513,924,819,105,589,7,25,533,2167,1915,252,2.35,2.34,2.4,812,2,0,2,0,0,3,101,1,0,2,0,0,1,3,66,144,178,147,182,88,11,9,33,25,19,13,3,2,1,2167,2167,0,"Sullivan",36.799999999999997,36.299999999999997]
["Langdon","019","0037011","40900","","      42137071","        154483",586,"      269",586,585,584,0,0,0,0,1,1,1,585,311,56,37,34,57,60,36,20,8,3,275,42,21,31,55,60,27,21,15,3,237,586,2.4700000000000002,50,187,175,155,20,12,175,499,2.85,269,237,210,27,32,1,3,25,586,532,54,2.4700000000000002,2.5299999999999998,2,209,0,0,0,0,1,0,27,0,0,0,0,0,0,3,23,48,63,28,27,14,4,0,8,8,2,2,6,1,0,586,586,0,"Sullivan",37.4,37.299999999999997]
["Lempster","019","0037069","41700","","      83765657","       1113916",971,"      577",971,947,944,0,1,1,1,0,24,2,969,494,100,43,58,74,102,47,38,22,10,477,100,44,48,96,80,42,38,16,13,387,971,2.5099999999999998,85,302,276,232,44,26,276,800,2.9,577,387,345,42,190,8,10,159,971,866,105,2.5099999999999998,2.5099999999999998,2.5,338,0,0,0,0,0,7,40,0,0,1,0,0,1,4,39,68,107,43,47,26,11,3,9,11,5,5,4,2,3,971,971,0,"Sullivan",38.5,37.799999999999997]
["Newport","019","0037184","52580","","     112839717","        206599",6269,"     2633",6269,6195,6144,9,13,22,0,7,74,35,6234,3086,765,372,406,488,402,250,225,141,37,3183,625,345,429,510,445,271,275,192,91,2473,6150,2.4900000000000002,636,1837,1656,1264,392,181,1656,4892,2.95,2633,2473,1637,836,160,24,19,46,6150,4127,2023,2.4900000000000002,2.52,2.42,1618,0,1,5,0,1,12,816,4,3,2,0,0,11,22,198,359,353,228,257,172,48,109,222,194,114,71,59,50,17,6269,6150,119,"Sullivan",35.5,37.799999999999997]
["Plainfield","019","0037383","62340","","     135086943","       1939624",2241,"      877",2241,2229,2198,6,9,9,1,6,12,8,2233,1136,254,116,124,205,205,120,73,30,9,1105,216,94,113,241,219,106,65,42,9,844,2241,2.66,137,707,663,574,89,44,663,1975,2.98,877,844,729,115,33,3,2,19,2241,1973,268,2.66,2.71,2.33,718,1,2,2,0,2,4,110,1,0,0,0,0,4,4,71,191,204,128,81,41,9,7,29,28,30,8,6,5,2,2241,2241,0,"Sullivan",36.1,38]
["Springfield","019","0037495","72740","","     112018016","       2296579",945,"      534",945,941,934,0,3,2,0,2,4,7,938,466,97,33,65,79,87,51,36,12,6,479,89,43,68,82,86,48,35,19,9,386,945,2.4500000000000002,77,309,286,252,34,23,286,802,2.8,534,386,328,58,148,2,6,129,945,814,131,2.4500000000000002,2.48,2.2599999999999998,327,0,1,0,0,0,0,58,0,0,0,0,0,0,1,49,67,88,53,45,17,8,4,16,17,14,3,0,3,1,945,945,0,"Sullivan",33.700000000000003,35.799999999999997]
["Sunapee","019","0037583","75060","","      54697288","      10572221",3055,"     2143",3055,3027,2993,6,6,11,1,10,28,14,3041,1544,307,182,150,237,246,157,167,82,16,1511,249,170,143,262,251,182,156,74,24,1294,3055,2.36,334,960,879,735,144,81,879,2489,2.83,2143,1294,972,322,849,25,7,783,3055,2390,665,2.36,2.46,2.0699999999999998,958,2,1,0,0,1,10,316,0,0,2,0,0,4,6,80,198,216,164,184,100,24,39,71,87,65,30,16,8,6,3055,3055,0,"Sullivan",37.200000000000003,37.6]
["Unity","019","0037730","77940","","      95672016","        613018",1530,"      594",1530,1523,1520,1,0,2,0,0,7,11,1519,772,133,94,100,123,132,78,66,26,20,758,119,50,89,108,124,65,56,72,75,504,1303,2.59,86,418,385,335,50,33,385,1113,2.89,594,504,467,37,90,4,6,71,1303,1209,94,2.59,2.59,2.54,467,0,0,0,0,0,0,36,0,0,0,0,0,1,7,63,100,130,79,63,23,2,4,12,8,8,3,2,0,0,1530,1303,227,"Sullivan"]
["Washington","019","0037812","78980","","     117668540","       5701755",895,"      925",895,882,879,0,3,0,0,0,13,13,882,458,93,26,48,63,80,65,60,21,2,437,72,36,44,65,68,75,53,18,6,370,895,2.42,72,298,278,251,27,20,278,760,2.73,925,370,338,32,555,3,14,511,895,815,80,2.42,2.41,2.5,333,0,1,0,0,0,4,31,0,0,0,0,0,1,5,31,57,74,71,70,27,3,1,11,4,7,3,5,1,0,895,895,0,"Sullivan"]
[]
[]
[]
[]
[]
[]
[]
[]
[]
[]
[]
[]
[]
[]
[]
[]
[]
[]
[]
[]
[]
[]
[]
[]
[]
[]
[]
[]
[]
[]
[]
[]
["Census 2000 DemoProfile Sample Data Tables 2&3   -  DPTab23TownQry"]
[]
["TOWN_NAME","COUSUB","AREANAME","PopInSchool","Preschool","Kindergarten","Elementary","HighSchool","College","Pop25andOver","HighSchoolGrad","SomeCollege","AssocDegree","BachelDegree","GradDegree","HSGradorHigher","CollegeGradorHigher","Pop5to20yrs","Pop5to20wDis","Pop21to64","Pop21to64wDis","Pop65over","Pop65overwDis","Pop5yrsOver","SameHUin95","DiffHUinUSin95","HUinSameCountyin95","HUinSameStatein95","TotalPop","NativePop","NatPopBornUS","NatPopBornInStatRes","NatPopBornDiffState","NatPopBornOutUS","FornBornPop","FornPopEnt90to00","FornPopNatCit","FornPopNotCit","Households","HHIncLessThn10k","HHInc10to15K","HHInc15to25K","HHInc25to35K","HHInc35to50K","HHInc50to75K","HHInc75to100K","HHInc100to150K","HHInc150to200K","HHIncOver200K","MedianHHInc","HHwithPubAssistInc","MeanPubAssist","FamilyHH","FHHIncLessThn10k","FHHInc10to15K","FHHInc15to25K","FHHInc25to35K","FHHInc35to50K","FHHInc50to75K","FHHInc75to100K","FHHInc100to150K","FHHInc150to200K","FHHIncOver200K","MedianFHHInc","PerCapitaInc","PovStatFamilies","PovStatFHHwChilUnd18","PovStatFHHwChilUnd5","PovStFmalHH","DP3088","DP3089","PovStatIndiv","PovStatIndiv18yrOver","PovStatIndiv65yrOver","DP3093","DP3094","DP3095","CNTY_NAME"]
["Acworth","00260","Acworth town, Sullivan County, New Hampshire",214,13,5,115,58,23,580,205,100,27,110,56,498,166,197,2,472,84,130,29,799,588,203,84,119,840,812,807,283,524,5,28,8,12,16,325,25,12,55,60,70,60,26,11,2,4,37386,5,2220,237,12,6,39,35,58,46,26,11,0,4,41397,18132,24,18,8,7,7,2,131,75,7,55,45,28,"Sullivan"]
["Charlestown","11380","Charlestown town, Sullivan County, New Hampshire",1061,67,50,575,304,65,3262,1507,638,157,245,108,2655,353,1064,129,2738,534,653,362,4474,2573,1890,1196,694,4749,4662,4651,1902,2749,11,87,4,62,25,1911,126,84,306,338,411,407,161,54,0,24,38024,55,12967,1333,19,55,171,223,312,370,130,48,0,5,45172,18654,46,36,13,20,20,13,306,242,67,64,53,159,"Sullivan"]
["Claremont","12900","Claremont city, New Hampshire",2820,156,146,1374,752,392,9044,3811,1597,550,787,369,7114,1156,2740,208,7434,1628,2135,944,12392,7359,4920,3097,1823,13151,12688,12603,7692,4911,85,463,137,217,246,5679,620,401,981,841,1043,1139,389,156,17,92,34949,433,2242,3447,98,185,483,494,746,894,351,123,17,56,42849,20267,187,144,77,101,93,55,1305,1014,241,274,187,732,"Sullivan"]
["Cornish","15060","Cornish town, Sullivan County, New Hampshire",418,16,27,205,123,47,1167,323,264,106,200,138,1031,338,390,28,991,119,201,75,1582,1136,437,212,225,1661,1620,1603,857,746,17,41,14,25,16,648,30,34,70,57,96,188,80,66,19,8,53393,6,850,466,8,7,36,45,71,142,78,52,19,8,60313,23165,13,9,9,5,5,5,74,44,11,24,14,29,"Sullivan"]
["Croydon","16340","Croydon town, Sullivan County, New Hampshire",138,2,4,67,50,15,492,246,76,37,42,23,424,65,143,16,438,75,72,37,653,458,195,126,69,685,670,668,419,249,2,15,0,11,4,262,8,11,22,49,42,71,35,17,5,2,49688,9,3978,200,3,1,15,37,42,55,29,13,5,0,50556,21403,5,5,0,3,3,0,33,23,7,7,7,19,"Sullivan"]
["Goshen","30500","Goshen town, Sullivan County, New Hampshire",165,6,7,86,38,28,539,225,66,43,63,17,414,80,156,11,433,67,121,40,710,458,252,145,107,755,737,734,456,278,3,18,2,16,2,295,17,16,38,38,64,72,22,18,2,8,42625,5,3420,233,11,7,23,33,53,59,22,15,2,8,45208,20561,16,7,3,2,2,0,66,48,26,18,14,21,"Sullivan"]
["Grantham","31220","Grantham town, Sullivan County, New Hampshire",434,32,32,193,104,73,1672,291,343,127,491,365,1617,856,350,19,1236,92,478,82,2064,940,1095,303,792,2173,2083,2058,720,1338,25,90,26,40,50,933,36,12,52,68,147,259,163,129,35,32,63239,4,1475,709,7,12,26,44,103,211,148,105,29,24,69271,32174,10,8,8,5,5,5,54,46,18,8,0,31,"Sullivan"]
["Langdon","40900","Langdon town, Sullivan County, New Hampshire",145,13,4,70,34,24,419,178,92,30,62,14,376,76,125,15,363,53,73,22,561,382,174,52,122,582,562,549,185,364,13,20,2,16,4,233,9,7,26,39,60,47,20,8,7,10,42083,4,7200,180,3,3,17,37,49,39,19,3,7,3,43125,24572,6,0,0,3,0,0,22,22,9,0,0,8,"Sullivan"]
["Lempster","41700","Lempster town, Sullivan County, New Hampshire",226,12,7,128,49,30,686,260,148,48,59,46,561,105,212,33,577,83,133,52,922,572,348,144,204,971,945,938,480,458,7,26,0,19,7,393,21,18,44,78,109,88,17,8,6,4,40458,9,3389,282,5,1,26,48,91,81,14,6,6,4,45385,19172,9,9,5,3,3,3,70,46,7,18,12,40,"Sullivan"]
["Newport","52580","Newport town, Sullivan County, New Hampshire",1502,97,111,808,337,149,4166,1774,671,312,313,178,3248,491,1416,273,3469,787,912,370,5859,3285,2545,1773,772,6269,6102,6075,4077,1998,27,167,77,57,110,2460,279,188,296,340,551,517,173,100,9,7,37442,185,3134,1660,115,113,153,217,338,453,165,90,9,7,45508,16964,180,148,96,99,82,69,890,517,91,296,196,308,"Sullivan"]
["Plainfield","62340","Plainfield town, Sullivan County, New Hampshire",504,27,25,246,141,65,1576,498,217,118,339,263,1435,602,469,22,1391,145,235,69,2097,1428,657,190,467,2241,2170,2157,1119,1038,13,71,15,39,32,852,24,21,85,74,168,220,123,69,40,28,57083,14,3521,669,8,10,45,49,137,200,99,59,34,28,61205,26062,12,4,2,6,4,2,63,52,11,9,6,33,"Sullivan"]
["Springfield","72740","Springfield town, Sullivan County, New Hampshire",184,0,7,115,44,18,664,246,113,44,118,70,591,188,179,10,564,59,126,48,869,520,349,152,197,915,901,897,490,407,4,14,3,8,6,391,18,19,23,72,86,85,55,21,8,4,44659,8,4238,287,2,14,11,49,54,87,41,18,8,3,58068,23263,10,2,0,0,0,0,47,42,10,5,5,22,"Sullivan"]
["Sunapee","75060","Sunapee town, Sullivan County, New Hampshire",663,3,48,363,190,59,2150,590,449,147,480,317,1983,797,670,41,1727,181,526,94,2923,1735,1174,564,610,3055,2969,2969,1438,1531,0,86,17,53,33,1292,43,44,144,127,303,303,138,115,33,42,49353,17,1535,878,31,2,79,72,189,227,106,111,19,42,55909,29184,33,26,10,22,22,10,158,104,22,45,22,66,"Sullivan"]
["Unity","77940","Unity town, Sullivan County, New Hampshire",282,11,10,143,77,41,1135,497,180,66,102,47,892,149,251,15,825,164,147,64,1452,894,547,345,202,1530,1488,1483,811,672,5,42,2,33,9,501,24,29,69,53,126,127,41,23,7,2,41594,7,4286,380,16,18,38,42,88,111,38,23,4,2,47045,17908,26,22,10,8,6,4,104,59,2,45,27,20,"Sullivan"]
["Washington","78980","Washington town, Sullivan County, New Hampshire",192,5,12,117,34,24,647,215,171,54,82,56,578,138,190,14,515,71,140,29,845,427,416,84,332,881,865,855,354,501,10,16,2,12,4,352,13,10,53,59,64,95,33,15,4,6,43125,5,1280,258,5,3,21,44,56,77,27,15,4,6,50000,20540,8,6,4,2,2,2,44,26,8,16,9,16,"Sullivan"]
[]
[]
[]
[]
[]
[]
[]
[]
[]
[]
[]
[]
[]
[]
[]
[]
[]
[]
[]
[]
[]
[]
[]
[]
[]
[]
[]
[]
[]
[]
[]
[]
["Census 2000 DemoProfile Sample Data Table 4   -  DPTab4TownQry"]
[]
["TOWN_NAME","COUSUB","TotHousingUnits","1UnitDet","1UnitAtt","2Units","3to4Units","5to9Units","10to19Units","20orMoreUnits","MobileHomes","BoatRvVan","SingleFamilyUnits","MultiFamUnits","MobileHomeUnits","YearBuilt99to00","YearBuilt95to98","YearBUilt90to94","YearBuilt80to89","YearBuilt70to79","YearBuilt60to69","YearBuilt40to59","YearBuilt39orEarlier","Rooms1","Rooms2","Rooms3","Rooms4","Rooms5","Rooms6","Rooms7","Rooms8","Rooms9orMore","MedianRooms","OccHU1","YrHHMvdIn99to00","YrHHMvdIn95to98","YrHHMvdIn90to94","YrHHMvdIn80to89","YrHHMvdIn70to79","YrHHMvdIn69orBefore","HeatFuelNatGas","HeatFuelBotGas","HeatFuelElectric","HeatFuelOil","HeatFuelCoal","HeatFuelWood","HeatFuelSolar","HeatFuelOther","HeatFuelNone","LackCompPlumb","LackCompKit","NoTelephone","OccHU","OccPerRm1orLess","OccPerRm1to1_5","OccPerRm1_5orMore","SpecOwnOccUnits","Value<50K","Value50to100K","Value100to150K","Value150to200K","Value200to300K","Value300to500K","Value500Kto1mil","Value1MilorMore","MedianValue","WithMortg","MnthOwnCst<300","MnthOwnCst300to500","MnthOwnCst500to700","MnthOwnCst700to1000","MnthOwnCst1000to1500","MnthOwnCst1500to2000","MnthOwnCst2000orMore","MediMnthOwnCst","NotMrtg","NotMrtgMediMnthOwnCst","OwnCst%HHInc<15","OwnCst%HHInc15to20","OwnCst%HHInc20to25","OwnCst%HHInc25to30","OwnCst%HHInc30to35","OwnCst%HHInc35orMor","NotComputed","SpecRntOccUnits","Rnt<200","Rnt200to300","Rnt300to500","Rnt500to750","Rnt750to1000","Rnt1000to1500","Rnt1500orMore","NoRent","MedianRent","Rnt%HHInc<15","Rnt%HHInc15to20","Rnt%HHInc20to25","Rnt%HHInc25to30","Rnt%HHInc30to35","Rnt%HHInc35orMore","Rnt%NotCompute","CNTY_NAME"]
["Acworth","00260",515,458,4,9,0,0,0,0,40,4,458,13,44,5,17,32,68,59,41,74,219,16,30,63,95,85,59,71,54,42,5.0999999999999996,319,34,53,57,94,43,38,3,35,0,149,0,132,0,0,0,11,18,5,319,307,5,7,124,12,61,34,9,6,0,2,0,92700,68,0,2,13,27,22,2,2,870,56,407,43,22,17,23,8,10,1,33,0,2,6,15,2,0,0,8,613,7,2,3,4,2,4,11,"Sullivan"]
["Charlestown","11380",2067,1084,14,77,108,97,8,49,630,0,1084,353,630,48,125,121,319,515,161,262,516,20,49,196,489,529,284,227,153,120,5,1920,294,518,247,421,233,207,0,174,89,1494,0,158,0,5,0,6,6,73,1920,1873,35,12,761,39,546,141,17,14,0,4,0,81500,502,0,12,118,239,120,6,7,867,259,423,237,185,133,69,47,84,6,437,25,23,188,165,13,8,7,8,464,107,82,66,14,58,85,25,"Sullivan"]
["Claremont","12900",6074,3011,147,579,712,377,154,630,464,0,3011,2599,464,21,122,128,560,1043,482,1584,2134,79,307,624,1176,1320,1104,655,441,368,5.0999999999999996,5685,946,1589,832,912,588,818,153,379,314,4514,0,187,0,97,41,13,6,239,5685,5633,31,21,2355,123,1680,448,65,13,20,6,0,79800,1465,0,52,206,660,446,63,38,910,890,395,726,447,448,257,163,306,8,2389,280,183,698,1014,90,52,0,72,499,459,361,426,281,125,655,82,"Sullivan"]
["Cornish","15060",697,605,5,28,11,0,0,0,48,0,605,44,48,2,14,49,98,127,44,61,302,2,0,33,79,150,149,118,58,108,6.1,645,64,119,102,198,106,56,0,112,12,413,0,108,0,0,0,4,6,8,645,641,4,0,298,13,125,111,34,15,0,0,0,104400,209,0,5,24,75,82,14,9,1002,89,378,89,49,61,27,13,56,3,52,0,2,6,20,10,6,0,8,640,12,13,4,6,3,6,8,"Sullivan"]
["Croydon","16340",347,294,0,2,0,0,0,0,51,0,294,2,51,19,14,28,88,49,24,44,81,0,10,9,55,85,64,52,38,34,5.7,268,39,41,60,78,39,11,0,60,2,161,4,41,0,0,0,2,0,0,268,262,6,0,150,4,59,70,10,5,2,0,0,106500,115,0,16,10,42,42,2,3,905,35,338,49,30,18,13,14,26,0,16,0,0,0,11,5,0,0,0,729,0,5,2,0,2,7,0,"Sullivan"]
["Goshen","30500",390,336,5,2,6,0,0,0,35,6,336,13,41,0,16,40,68,74,39,62,91,6,9,26,75,73,89,47,35,30,5.6,280,36,56,51,53,45,39,0,51,4,164,0,61,0,0,0,0,0,7,280,275,5,0,159,10,88,51,10,0,0,0,0,92300,117,0,2,20,57,36,2,0,867,42,383,44,26,26,22,15,24,2,26,0,0,2,14,8,0,0,2,630,0,7,9,2,0,6,2,"Sullivan"]
["Grantham","31220",1518,1168,296,19,9,0,0,0,26,0,1168,324,26,24,124,192,672,338,44,49,75,10,5,23,158,291,459,248,195,129,6.1,925,173,332,156,170,65,29,9,436,47,340,0,93,0,0,0,0,5,10,925,923,2,0,710,5,93,228,155,150,72,7,0,159200,459,0,2,32,60,226,97,42,1300,251,510,252,111,132,73,38,97,7,103,0,0,6,17,19,52,4,5,1040,26,15,10,20,2,22,8,"Sullivan"]
["Langdon","40900",266,220,2,2,3,0,0,0,39,0,220,7,39,2,17,41,51,36,32,19,68,0,2,10,35,80,35,45,28,31,5.7,236,14,51,39,80,23,29,2,8,2,146,0,78,0,0,0,0,2,2,236,230,6,0,120,2,61,35,15,4,3,0,0,96300,84,0,6,14,29,27,5,3,936,36,330,43,10,22,17,6,20,2,18,0,0,0,13,0,0,0,5,606,2,4,0,5,2,0,5,"Sullivan"]
["Lempster","41700",577,471,1,8,0,0,0,0,88,9,471,9,97,5,43,39,120,119,51,94,106,8,16,35,184,113,109,51,35,26,4.9000000000000004,387,55,94,60,111,49,18,0,74,6,217,0,90,0,0,0,15,10,7,387,382,5,0,159,35,89,28,5,2,0,0,0,83300,100,0,2,26,37,35,0,0,900,59,392,50,29,32,12,11,23,2,37,2,2,4,18,3,0,0,8,541,5,9,4,5,0,6,8,"Sullivan"]
["Newport","52580",2633,1465,57,235,366,155,46,42,267,0,1465,901,267,101,50,83,406,303,297,430,963,11,24,151,539,594,543,394,195,182,5.5,2473,418,647,376,541,158,333,62,392,52,1855,8,87,0,17,0,0,10,52,2473,2449,16,8,1162,66,803,236,48,9,0,0,0,80900,733,0,19,86,359,238,23,8,913,429,384,381,217,177,124,48,215,0,832,42,97,153,387,125,9,9,10,552,110,143,154,92,57,234,42,"Sullivan"]
["Plainfield","62340",877,726,17,45,3,4,6,0,76,0,726,75,76,24,29,69,201,168,65,90,231,4,10,20,110,211,162,127,114,119,6,844,93,199,108,213,127,104,3,140,5,563,0,130,3,0,0,11,10,13,844,835,6,3,368,10,130,131,58,39,0,0,0,113800,281,0,7,26,86,101,46,15,1074,87,446,85,70,76,37,39,57,4,72,2,0,12,23,17,12,0,6,728,16,12,12,9,9,8,6,"Sullivan"]
["Springfield","72740",536,455,2,4,4,0,0,0,71,0,455,10,71,18,37,57,95,116,66,38,109,18,27,23,73,120,105,52,52,66,5.6,381,53,105,56,91,53,23,0,100,12,198,0,71,0,0,0,13,8,6,381,368,9,4,183,3,56,66,33,23,2,0,0,118100,141,0,4,17,32,78,10,0,1084,42,488,64,21,46,8,9,32,3,49,0,0,12,14,8,7,0,8,716,8,16,6,0,7,4,8,"Sullivan"]
["Sunapee","75060",2143,1715,68,63,101,98,18,7,73,0,1715,355,73,20,128,132,356,483,225,364,435,18,57,92,230,444,444,414,190,254,6,1294,243,323,216,283,151,78,13,326,70,798,5,74,0,0,8,0,4,0,1294,1284,10,0,784,14,206,235,120,88,72,29,20,136100,440,0,12,27,158,185,35,23,1052,344,432,277,162,145,57,33,106,4,315,0,5,48,130,60,45,7,20,693,47,64,59,28,26,71,20,"Sullivan"]
["Unity","77940",594,473,2,4,3,0,0,0,112,0,473,9,112,7,50,45,137,144,58,50,103,3,8,34,140,164,118,89,22,16,5.2,504,47,122,83,154,59,39,5,90,3,318,2,86,0,0,0,15,8,9,504,491,12,1,213,5,142,44,15,5,2,0,0,88100,154,0,7,27,72,40,8,0,870,59,353,55,44,31,28,16,39,0,30,0,0,8,10,9,0,0,3,722,0,0,7,5,2,13,3,"Sullivan"]
["Washington","78980",924,859,10,12,0,0,0,0,41,2,859,22,43,34,30,168,167,123,68,146,188,13,77,84,184,246,138,86,56,40,4.9000000000000004,369,64,130,44,88,31,12,8,154,5,120,3,77,0,2,0,11,7,2,369,355,12,2,252,20,83,90,29,30,0,0,0,110500,160,0,5,22,48,60,18,7,1033,92,436,64,53,47,26,15,47,0,23,0,0,0,15,3,0,0,5,658,2,2,2,4,0,8,5,"Sullivan"]
[]
[]
[]
[]
[]
[]
[]
[]
[]
[]
[]
[]
[]
[]
[]
[]
[]
[]
[]
[]
[]
[]
[]
[]
[]
[]
[]
[]
[]
[]
[]
[]
[]
[]
["Census 2000 SummaryFile3 Sample Data  -  SF3TownQry1SocialChar"]
[]
["TOWN_NAME","LOGRECNO","COUSUB","P01TotalPopulation","P02SampleCountOfPop","P03Pop100pctCount","P05UrbanPopulation","P05RuralPopulation","P06WhiteAlone","P06BlackOrAfAm","P06AmIndAlone","P06AsianAlone","P06HawaiianOrPI","P06OtherRace","P06TwoPlusRaces","P07NotHispanicOrLatino","P07HispanicOrLatino","P08MalePop","P08FemalePop","P09PopInHouseholds","P09PopInFamHH","P09PopInNonFamHH","P09PopInGroupQtr","P13TotalHH","P13FamilyHH","P13FamHHolder15to24yrs","P13FamHHolder25to34yrs","P13FamHHolder35to44yrs","P13FamHHolder45to54yrs","P13FamHHolder55to64yrs","P13FamHHolder65to74yrs","P13FamHHolder75to84yrs","P13FamHHolder85yrsOver","P13NonFamilyHH","P13NonFamHHolder15to24yrs","P13NonFamHHolder25to34yrs","P13NonFamHHolder35to44yrs","P13NonFamHHolder45to54yrs","P13NonFamHHolder55to64yrs","P13NonFamHHolder65to74yrs","P13NonFamHHolder75to84yrs","P13NonFamHHolder85yrsOver","P18Pop15yrsOver","P18MaritalStatNeverMarried","P18MaritalStatNowMarried","P18MaritalStatSeparated","P18MaritalStatWidowed","P18MaritalStatWidowFemale","P18MaritalStatDivorced","P18MaritalStatDivorcedFemale","P21NativeBornPop","P21NatPopBornInState","P21NatPopBornOtherState","P021005","P021006","P021007","P021008","P21NatPopBornOutUS","P21ForeignBornPop","P021014","P021015","P24Pop5YrsPlus","P24ResSameHouseIn95","P24ResDiffHouseIn95","P24ResDiffHouseInUSIn95","P24ResDiffHouseSameCountyIn95","P24ResDiffHouseDiffCountyIn95","P24ResDiffHouseDiffCntySamStIn95","P24ResDiffHouseDiffCntyDifStIn95","P24ResDiffHouseDiffCntyNEStIn95","P24ResDiffHouseDiffCntyMWStIn95","P24ResDiffHouseDiffCntySoStIn95","P24ResDiffHouseDiffCntyWstStIn95","P24ResDiffInPR","P24ResDiffElsewhereIn95","P26Workers16yrsOver","P26WorkedInState","P26WorkedInCnty","P26WorkedOutsideCnty","P26WorkedOutsideState","P30Workers16Over","P30TranspToWrkCar","P30TranspToWrkPublic","P30TranspToWrkOther","P30WrkdAtHome","P31WrkrsNotWrkAtHom","P31TravTim<5min","P31TravTim5to9Min","P31TravTim10to14Min","P31TravTim15to19Min","P31TravTim20to24Min","P31TravTim25to29Min","P31TravTim30to34Min","P31TravTim35to39Min","P31TravTim40to44Min","P31TravTim45to59Min","P31TravTim60to89Min","P31TravTim90MinMore","P31WorkAtHome","P36SchEnrlPop3yrOver","P36NurserSchEnrl","P36KinderSchEnrl","P36ElemSchEnrl","P36HighSchEnrl","P36CollGradSchEnrl","P37Pop25yrsOver","P37EduAtain<9grd","P37EduAtainHSnoDip","P37EduAtainHSgrad","P37EduAtainCollNoDeg","P37EduAtainAssocDeg","P37EduAtainBachDeg","P37EduAtainGradProfDeg","P42NIPop5to15","P42NIPop5to15wDisabl","P42NIPop16to20","P42NIPop16to20wDisab","P42NIPop16to20wDisEmp","P42NIPop16to21NoDis","P42NIPop16to21NoDisEmpl","P42NIPop21to64","P42NIPop21to64wDis","P42NIPop21to64wDisEmp","P42NIPop21to64NoDis","P42NIPop21to64NoDisEmp","P42NIPop65to74","P42NIPop65to74wDis","P42NIPop75Over","P42NIPop75OverwDis","P43Pop16YrsOver","P43Pop16OvrInLaborForce","P43Pop16OvrCivlLabFrc","P43Pop16OvrCivlLbrFrcEmp","P48Families","P48MarriedFam","P48MarrFamNoWorkers","P48MarrFam1Worker","P48MarrFam2Worker","P48MarrFamHusbWifeWorked","P48MarrFamOther","P48MarrFam3PlusWorker","P48MarrFam3WorkHsbWif","P48MarrFam3PlsWrkOther","P48OtherFam","P48MaleHHNoWif","P48MaleHHNoWifNoWorker","P48MaleHHNoWif1Worker","P48MaleHHNoWif2Worker","P48MaleHHNoWif3PlusWorker","P48FemaleHHNoHsb","P48FemaleHHNoHsbNoWorker","P48FemaleHHNoHsb1Worker","P48FemaleHHNoHsb2Worker","P48FemaleHHNoHsb3Worker","P49EmpCivPop16YrOver","P49IndustAgricult","P49IndustConst","P49IndustMnftg","P49IndustWhlslTrd","P49IndustRtlTrd","P49IndustTrspWrhsUtlt","P49IndustInfrm","P49IndustFinInsRE","P49IndustPrfsScntfMngmt","P49IndustEduHlthSocSrv","P49IndustArtsEntRec","P49IndustOthrSrvc","P49IndustPubAdm","P50OccupMngmtProfs","P50OccupService","P50OccupSalesOff","P50OccupFarmFishForest","P50OccupConstExtrctMaint","P50OccupPrdctTrnspMatMv"]
["Acworth","0004141","00260",840,376,836,0,840,825,0,0,0,0,0,15,837,3,436,404,840,736,104,0,325,237,0,16,55,72,40,32,17,5,88,2,10,7,9,32,21,3,4,667,137,410,5,30,28,85,33,812,283,524,423,36,39,26,5,28,12,16,799,588,211,203,84,119,41,78,68,2,5,3,0,8,403,349,222,127,54,403,335,4,2,54,349,10,17,13,37,52,29,67,20,17,46,30,11,54,814,13,5,115,58,23,580,19,63,205,100,27,110,56,142,0,55,2,0,53,30,472,84,48,388,311,83,12,47,17,657,421,421,416,237,197,34,23,115,98,17,25,20,5,40,16,3,8,5,0,24,11,4,7,2,416,27,63,83,9,45,35,8,15,14,69,14,22,12,118,25,103,8,74,88]
["Charlestown","0004146","11380",4749,786,4749,2670,2079,4715,0,0,4,0,0,30,4745,4,2346,2403,4730,4015,715,19,1911,1333,68,219,302,325,203,109,68,39,578,30,34,86,91,148,101,62,26,3807,782,2240,54,251,212,480,257,4662,1902,2749,2502,98,108,41,11,87,62,25,4474,2573,1901,1890,1196,694,178,516,397,26,78,15,0,11,2396,1923,1621,302,473,2396,2249,0,9,86,2310,149,286,327,389,430,99,212,59,88,208,50,13,86,4574,67,50,575,304,65,3262,204,403,1507,638,157,245,108,740,63,324,66,23,258,136,2738,534,278,2204,1914,351,176,302,186,3734,2560,2560,2430,1333,1088,152,195,621,598,23,120,109,11,245,100,5,54,32,9,145,16,92,25,12,2430,69,221,603,120,343,98,37,111,96,451,121,89,71,536,393,594,29,298,580]
["Claremont","0004169","12900",13151,1599,13151,9108,4043,12869,41,61,103,0,15,62,13099,52,6320,6831,12973,10284,2689,178,5679,3447,176,516,863,763,495,349,226,59,2232,130,234,344,348,324,311,429,112,10606,2495,5553,141,1042,776,1375,783,12688,7692,4911,4139,209,345,218,85,463,217,246,12392,7359,5033,4920,3097,1823,297,1526,909,19,369,229,9,104,6456,5821,4820,1001,635,6456,5990,60,43,221,6235,342,1246,1185,810,838,280,719,125,193,353,24,120,221,12664,156,146,1374,752,392,9044,613,1317,3811,1597,550,787,369,1990,120,750,88,61,662,446,7434,1628,880,5806,4983,1059,351,1076,593,10402,6851,6851,6581,3447,2675,419,432,1433,1384,49,391,380,11,772,220,7,170,37,6,552,89,273,169,21,6581,75,287,1826,183,922,188,89,191,409,1420,388,335,268,1453,947,1708,67,613,1793]
["Cornish","0004197","15060",1661,794,1661,0,1661,1617,4,14,4,0,6,16,1650,11,823,838,1661,1433,228,0,648,466,0,47,114,151,77,47,22,8,182,2,14,35,38,37,15,27,14,1315,230,832,16,84,57,153,76,1620,857,746,621,58,37,30,17,41,25,16,1582,1136,446,437,212,225,88,137,118,4,3,12,0,9,916,759,407,352,157,916,850,0,0,47,869,30,47,110,123,142,105,157,49,19,45,24,18,47,1622,16,27,205,123,47,1167,49,87,323,264,106,200,138,291,18,99,10,10,89,47,991,119,63,872,777,119,23,82,52,1291,966,966,941,466,402,46,67,216,206,10,73,72,1,64,28,0,25,3,0,36,0,20,15,1,941,30,61,161,18,114,31,14,31,56,296,52,38,39,372,121,210,15,97,126]
["Croydon","0004202","16340",685,282,661,0,685,676,0,4,0,3,0,2,685,0,352,333,684,604,80,1,262,200,0,42,46,53,39,15,5,0,62,2,10,11,11,9,10,7,2,571,140,332,8,20,16,71,37,670,419,249,212,10,11,16,2,15,11,4,653,458,195,195,126,69,23,46,21,0,13,12,0,0,369,357,231,126,12,369,347,0,0,16,353,14,35,40,46,57,37,47,4,14,20,11,28,16,668,2,4,67,50,15,492,21,47,246,76,37,42,23,92,7,51,9,7,42,21,438,75,35,363,311,36,18,36,19,561,384,384,377,200,162,21,37,81,78,3,23,23,0,38,24,4,12,8,0,14,0,8,6,0,377,5,52,94,10,41,19,4,13,10,78,12,23,16,66,47,98,1,78,87]
["Goshen","0004207","30500",755,323,741,0,755,752,0,0,0,0,0,3,755,0,366,389,747,668,79,8,295,233,4,25,63,50,40,27,22,2,62,2,3,9,14,9,20,5,0,614,119,413,2,28,23,52,34,737,456,278,237,14,23,4,3,18,16,2,710,458,252,252,145,107,18,89,65,0,20,4,0,0,391,377,280,97,14,391,378,0,0,13,378,3,16,78,78,31,26,52,8,17,38,20,11,13,726,6,7,86,38,28,539,34,91,225,66,43,63,17,103,6,53,5,2,48,32,433,67,49,366,301,73,23,48,17,607,413,413,402,233,195,31,55,85,82,3,24,24,0,38,10,2,4,4,0,28,0,25,0,3,402,5,33,115,11,43,4,2,15,34,80,31,17,12,139,54,53,4,39,113]
["Grantham","0004212","31220",2173,973,2167,0,2173,2133,2,0,9,0,11,18,2165,8,1068,1105,2173,1899,274,0,933,709,7,89,135,148,114,149,63,4,224,8,16,23,55,42,37,31,12,1817,239,1336,3,87,59,152,84,2083,720,1338,965,174,125,74,25,90,40,50,2064,940,1124,1095,303,792,281,511,285,54,109,63,0,29,1051,948,341,607,103,1051,937,13,10,82,969,29,50,59,118,254,175,110,22,31,40,19,62,82,2113,32,32,193,104,73,1672,16,39,291,343,127,491,365,276,14,74,5,5,69,37,1236,92,62,1144,903,326,34,152,48,1788,1091,1091,1077,709,656,153,127,322,306,16,54,49,5,53,17,3,4,8,2,36,2,22,10,2,1077,13,54,147,37,141,47,31,58,102,324,42,48,33,516,93,287,4,78,99]
["Langdon","0004218","40900",582,270,586,0,582,572,0,0,0,0,6,4,576,6,288,294,582,512,70,0,233,180,2,16,59,50,17,26,4,6,53,0,6,10,12,9,9,7,0,481,98,300,4,30,23,49,28,562,185,364,339,11,9,5,13,20,16,4,561,382,179,174,52,122,71,51,46,5,0,0,0,5,334,266,122,144,68,334,311,0,5,16,318,8,46,47,53,21,14,42,21,28,24,2,12,16,573,13,4,70,34,24,419,12,31,178,92,30,62,14,86,12,39,3,1,36,24,363,53,39,310,259,45,8,28,14,475,351,351,339,180,148,11,28,91,86,5,18,14,4,32,9,0,3,6,0,23,0,15,8,0,339,22,41,69,10,56,9,3,13,27,60,6,15,8,85,34,92,8,49,71]
["Lempster","0004223","41700",971,456,971,0,971,956,0,0,0,0,0,15,971,0,502,469,971,824,147,0,393,282,4,49,59,84,37,25,14,10,111,4,5,23,23,10,23,12,11,773,153,476,11,58,36,75,36,945,480,458,376,26,45,11,7,26,19,7,922,572,350,348,144,204,119,85,62,4,14,5,0,2,495,475,328,147,20,495,439,0,0,38,457,24,24,35,29,94,34,73,10,13,58,45,18,38,942,12,7,128,49,30,686,43,82,260,148,48,59,46,166,30,46,3,1,43,29,577,83,48,494,413,69,21,64,31,756,513,513,504,282,243,25,50,132,126,6,36,34,2,39,15,3,11,1,0,24,3,10,11,0,504,15,51,151,15,62,7,2,12,20,101,18,33,17,120,68,94,5,59,158]
["Newport","0004228","52580",6269,755,6269,3130,3139,6093,30,9,48,0,0,89,6240,29,3076,3193,6152,5151,1001,117,2460,1660,73,333,438,366,168,169,88,25,800,52,82,67,155,129,151,124,40,4877,996,2713,57,448,357,663,330,6102,4077,1998,1637,72,201,88,27,167,57,110,5859,3285,2574,2545,1773,772,322,450,269,63,83,35,0,29,2822,2717,2162,555,105,2822,2595,7,13,94,2728,108,600,494,335,319,131,305,92,57,138,76,73,94,5987,97,111,808,337,149,4166,286,632,1774,671,312,313,178,1092,186,324,87,19,237,142,3469,787,419,2682,2195,486,175,426,195,4767,3026,3021,2876,1660,1281,139,255,739,719,20,148,148,0,379,103,7,84,12,0,276,68,150,44,14,2876,28,144,984,65,408,66,31,96,101,462,187,205,99,660,400,634,0,269,913]
["Plainfield","0004254","62340",2241,1049,2241,0,2241,2183,11,5,12,5,5,20,2232,9,1135,1106,2241,2017,224,0,852,669,6,75,184,193,109,79,14,9,183,2,31,32,30,33,21,30,4,1771,330,1189,16,77,61,159,101,2170,1119,1038,804,83,96,55,13,71,39,32,2097,1428,669,657,190,467,202,265,189,20,29,27,0,12,1293,1138,370,768,155,1293,1153,4,16,81,1212,47,60,101,287,341,124,150,21,19,20,15,27,81,2158,27,25,246,141,65,1576,64,77,498,217,118,339,263,356,18,113,4,3,109,57,1391,145,101,1246,1103,147,37,88,32,1741,1329,1327,1306,669,581,47,92,350,334,16,92,89,3,88,29,0,12,11,6,59,4,37,14,4,1306,22,90,191,30,201,58,40,48,98,379,49,63,37,517,116,336,13,121,203]
["Springfield","0004260","72740",915,358,945,0,915,903,0,7,0,0,0,5,912,3,452,463,915,789,126,0,391,287,4,45,72,65,52,30,16,3,104,5,11,13,28,12,12,18,5,729,107,504,5,33,31,80,41,901,490,407,311,52,23,21,4,14,8,6,869,520,349,349,152,197,128,69,52,0,15,2,0,0,515,488,211,277,27,515,462,0,5,36,479,40,19,34,80,87,60,78,21,5,29,23,3,36,877,0,7,115,44,18,664,20,53,246,113,44,118,70,153,10,26,0,0,26,19,564,59,40,505,454,78,24,48,24,716,537,537,531,287,257,35,41,167,161,6,14,14,0,30,8,0,2,6,0,22,2,13,7,0,531,3,83,83,17,34,24,8,39,38,131,26,23,22,163,88,105,3,95,77]
["Sunapee","0004265","75060",3055,644,3055,38,3017,3000,9,0,9,0,0,37,3055,0,1525,1530,3055,2542,513,0,1292,878,38,88,242,180,110,138,69,13,414,29,38,34,107,83,78,36,9,2494,514,1501,48,147,124,284,161,2969,1438,1531,1247,145,93,46,0,86,53,33,2923,1735,1188,1174,564,610,304,306,193,33,72,8,0,14,1553,1456,840,616,97,1553,1421,0,5,100,1453,49,189,280,223,150,84,151,67,57,121,28,54,100,2971,3,48,363,190,59,2150,65,102,590,449,147,480,317,475,19,195,22,4,173,94,1727,181,109,1546,1337,329,45,197,49,2448,1613,1613,1594,878,734,108,160,385,375,10,81,81,0,144,15,0,13,0,2,129,11,58,52,8,1594,13,117,262,20,194,39,47,121,162,358,151,74,36,674,195,383,13,130,199]
["Unity","0004274","77940",1530,608,1530,0,1530,1522,0,2,0,0,0,6,1510,20,772,758,1301,1127,174,229,501,380,6,53,83,103,58,69,6,2,121,3,13,31,34,26,9,5,0,1279,240,790,7,104,90,138,66,1488,811,672,566,25,56,25,5,42,33,9,1452,894,558,547,345,202,28,174,107,2,52,13,0,11,680,626,507,119,54,680,655,0,3,12,668,30,31,59,127,130,54,91,8,27,65,28,18,12,1482,11,10,143,77,41,1135,93,150,497,180,66,102,47,193,8,58,7,3,51,34,825,164,95,661,547,115,52,32,12,1259,706,706,691,380,329,40,70,180,178,2,39,37,2,51,25,6,9,10,0,26,2,15,6,3,691,17,50,188,23,70,21,8,23,24,163,29,36,39,138,126,129,0,104,194]
["Washington","0004279","78980",881,415,895,0,881,871,0,6,0,0,0,4,852,29,462,419,881,755,126,0,352,258,4,24,49,60,51,55,13,2,94,0,24,6,22,11,20,11,0,705,106,504,7,29,21,59,26,865,354,501,413,22,40,26,10,16,12,4,845,427,418,416,84,332,181,151,99,13,19,20,0,2,405,372,116,256,33,405,358,0,4,33,372,16,16,34,34,48,29,39,20,9,66,38,23,33,856,5,12,117,34,24,647,13,56,215,171,54,82,56,152,10,38,4,0,34,19,515,71,27,444,347,103,17,37,12,693,432,432,418,258,240,49,40,129,124,5,22,21,1,18,4,1,3,0,0,14,3,10,1,0,418,21,47,88,24,59,11,4,14,19,64,27,27,13,154,40,82,3,73,66]
[]
[]
[]
[]
[]
[]
[]
[]
[]
[]
[]
[]
[]
[]
[]
[]
[]
[]
[]
[]
[]
[]
[]
[]
[]
[]
[]
[]
[]
[]
[]
[]
["Census 2000 SummaryFile3 Sample Data  -  SF3TownQry2aIncomeChar"]
[]
["TOWN_NAME","LOGRECNO","COUSUB","TotalPop","P52Households1","P52HHInc<10K","P52HHInc10to15K","P52HHInc15to20K","P52HHInc20to25K","P52HHInc25to30K","P52HHInc30to35K","P52HHInc35to40K","P52HHInc40to45K","P52HHInc45to50K","P52HHInc50to60K","P52HHInc60to75K","P52HHInc75to100K","P52HHInc100to125K","P52HHInc125to150K","P52HHInc150to200K","P52HHInc>200K","P53MedianHHInc","P54AggregHHInc","P55Households2","P55HHUnder25yrs","P55HH<25HHInc<10K","P55HH<25HHInc10to15K","P55HH<25HHInc15to20K","P55HH<25HHInc20to25K","P55HH<25HHInc25to30K","P55HH<25HHInc30to35K","P55HH<25HHInc35to40K","P55HH<25HHInc40to45K","P55HH<25HHInc45to50K","P55HH<25HHInc50to60K","P55HH<25HHInc60to75K","P55HH<25HHInc75to100K","P55HH<25HHInc100to125K","P55HH<25HHInc125to150K","P55HH<25HHInc150to200K","P55HH<25HHInc>200K","P55HH25to34yrs","P55HH25to34HHInc<10K","P55HH25to34HHInc10to15K","P55HH25to34HHInc15to20K","P55HH25to34HHInc20to25K","P55HH25to34HHInc25to30K","P55HH25to34HHInc30to35K","P55HH25to34HHInc35to40K","P55HH25to34HHInc40to45K","P55HH25to34HHInc45to50K","P55HH25to34HHInc50to60K","P55HH25to34HHInc60to75K","P55HH25to34HHInc75to100K","P55HH25to34HHInc100to125K","P55HH25to34HHInc125to150K","P55HH25to34HHInc150to200K","P55HH25to34HHInc>200K","P55HH35to44yrs","P55HH35to44HHInc<10K","P55HH35to44HHInc10to15K","P55HH35to44HHInc15to20K","P55HH35to44HHInc20to25K","P55HH35to44HHInc25to30K","P55HH35to44HHInc30to35K","P55HH35to44HHInc35to40K","P55HH35to44HHInc40to45K","P55HH35to44HHInc45to50K","P55HH35to44HHInc50to60K","P55HH35to44HHInc60to75K","P55HH35to44HHInc75to100K","P55HH35to44HHInc100to125K","P55HH35to44HHInc125to150K","P55HH35to44HHInc150to200K","P55HH35to44HHInc>200K","P55HH45to54yrs","P55HH45to55HHInc<10K","P55HH45to55HHInc10to15K","P55HH45to55HHInc15to20K","P55HH45to55HHInc20to25K","P55HH45to55HHInc25to30K","P55HH45to55HHInc30to35K","P55HH45to55HHInc35to40K","P55HH45to55HHInc40to45K","P55HH45to55HHInc45to50K","P55HH45to55HHInc50to60K","P55HH45to55HHInc60to75K","P55HH45to55HHInc75to100K","P55HH45to55HHInc100to125K","P55HH45to55HHInc125to150K","P55HH45to55HHInc150to200K","P55HH45to55HHInc>200K","P55HH55to64yrs","P55HH55to64HHInc<10K","P55HH55to64HHInc10to15K","P55HH55to64HHInc15to20K","P55HH55to64HHInc20to25K","P55HH55to64HHInc25to30K","P55HH55to64HHInc30to35K","P55HH55to64HHInc35to40K","P55HH55to64HHInc40to45K","P55HH55to64HHInc45to50K","P55HH55to64HHInc50to60K","P55HH55to64HHInc60to75K","P55HH55to64HHInc75to100K","P55HH55to64HHInc100to125K","P55HH55to64HHInc125to150K","P55HH55to64HHInc150to200K","P55HH55to64HHInc>200K","P55HH65to74yrs","P55HH65to74HHInc<10K","P55HH65to74HHInc10to15K","P55HH65to74HHInc15to20K","P55HH65to74HHInc20to25K","P55HH65to74HHInc25to30K","P55HH65to74HHInc30to35K","P55HH65to74HHInc35to40K","P55HH65to74HHInc40to45K","P55HH65to74HHInc45to50K","P55HH65to74HHInc50to60K","P55HH65to74HHInc60to75K","P55HH65to74HHInc75to100K","P55HH65to74HHInc100to125K","P55HH65to74HHInc125to150K","P55HH65to74HHInc150to200K","P55HH65to74HHInc>200K","P55HH>75yrs","P55HH>75HHInc<10K","P55HH>75HHInc10to15K","P55HH>75HHInc15to20K","P55HH>75HHInc20to25K","P55HH>75HHInc25to30K","P55HH>75HHInc30to35K","P55HH>75HHInc35to40K","P55HH>75HHInc40to45K","P55HH>75HHInc45to50K","P55HH>75HHInc50to60K","P55HH>75HHInc60to75K","P55HH>75HHInc75to100K","P55HH>75HHInc100to125K","P55HH>75HHInc125to150K","P55HH>75HHInc150to200K","P55HH>75HHInc>200K","P56MedHHInc","P56MedHHIncHH<25y","P56MedHHIncHH25to34y","P56MedHHIncHH35to44y","P56MedHHIncHH45to54y","P56MedHHIncHH55to64y","P56MedHHIncHH65to74y","P56MedHHIncHH>75y","P58Households3","P58HHwithEarnings","P58HHNoEarnings","P59HHwWageSalInc","P59HHNoWageSalInc","P60HHwSelfEmpInc","P60HHNoSelfEmpInc","P61HHwIndDivInc","P61HHNoIndDivInc","P62HHwSocSecInc","P62HHNoSocSecInc","P63HHwSSI","P63HHNoSSI","P64HHwPubAssInc","P64HHNoPubAssInc","P65HHwRetInc","P65HHNoRetInc","P66HHwOtherTypInc","P66HHNoOtherTypInc","P67AggregEarnings","P68AggregWageSalInc","P69AggregSelfEmpInc","P70AggregIntDivInc","P71AggregSocSecInc","P72AggregSSIInc","P73AggregPublicAssInc","P74AggregRetireInc","P76Families1","P76FamInc<10K","P76FamInc10to15K","P76FamInc15to20K","P76FamInc20to25K","P76FamInc25to30K","P76FamInc30to35K","P76FamInc35to40K","P76FamInc40to45K","P76FamInc45to50K","P76FamInc50to60K","P76FamInc60to75K","P76FamInc75to100K","P76FamInc100to125K","P76FamInc125to150K","P76FamInc150to200K","P76FamInc>200K","P77MedFamInc","P78AggregFamInc","P79NonFamHH","P79NonFamHHwInc<10K","P79NonFamHHwInc10to15K","P79NonFamHHwInc15to20K","P79NonFamHHwInc20to25K","P79NonFamHHwInc25to30K","P79NonFamHHwInc30to35K","P79NonFamHHwInc35to40K","P79NonFamHHwInc40to45K","P79NonFamHHwInc45to50K","P79NonFamHHwInc50to60K","P79NonFamHHwInc60to75K","P79NonFamHHwInc75to100K","P79NonFamHHwInc100to125K","P79NonFamHHwInc125to150K","P79NonFamHHwInc150to200K","P79NonFamHHwInc200KorMore","P80MedNonFamInc","P82PerCapitaInc"]
["Acworth","0004141","00260",836,325,25,12,38,17,36,24,19,29,22,30,30,26,4,7,2,4,37386,14932900,325,2,0,0,0,0,2,0,0,0,0,0,0,0,0,0,0,0,26,0,0,0,0,5,3,3,4,2,4,5,0,0,0,0,0,62,9,0,5,4,3,2,4,2,3,8,9,9,0,2,0,2,81,3,3,2,4,10,9,4,11,8,9,6,8,2,0,0,2,72,6,4,12,2,4,6,2,10,4,2,9,5,2,4,0,0,53,4,5,8,6,9,0,6,2,2,6,0,2,0,1,2,0,29,3,0,11,1,3,4,0,0,3,1,1,2,0,0,0,0,37386,26250,42500,46667,41528,38750,27188,23750,325,262,63,229,96,94,231,154,171,101,224,10,315,5,320,63,262,36,289,10630300,8885300,1745100,1892700,1170100,47000,11100,965300,237,12,6,30,9,21,14,17,30,11,24,22,26,4,7,0,4,41397,11973900,88,15,6,10,8,13,10,5,2,11,6,0,0,0,0,2,0,27083,18132]
["Charlestown","0004146","11380",4749,1911,126,84,174,132,171,167,160,110,141,254,153,161,48,6,0,24,38024,88361900,1911,98,0,0,19,9,36,0,9,0,0,25,0,0,0,0,0,0,253,0,13,23,16,10,26,25,9,30,23,48,21,0,0,0,9,388,0,13,31,44,14,38,58,31,11,70,29,37,12,0,0,0,416,16,7,12,10,35,49,24,33,42,32,63,59,23,6,0,5,351,29,15,21,21,41,32,17,22,46,49,13,38,7,0,0,0,210,27,18,32,25,26,13,14,15,0,30,0,0,0,0,0,10,195,54,18,36,7,9,9,13,0,12,25,0,6,6,0,0,0,38024,27188,45750,39600,47200,39861,25625,18542,1911,1533,378,1454,457,246,1665,763,1148,541,1370,68,1843,55,1856,340,1571,275,1636,65960200,61102800,4857400,4904000,6222900,575400,713200,8268000,1333,19,55,88,83,123,100,115,80,117,228,142,130,42,6,0,5,45172,63607200,578,120,35,91,66,66,37,48,21,19,24,17,18,6,0,0,10,23663,18654]
["Claremont","0004169","12900",13151,5679,620,401,523,458,407,434,432,306,305,611,528,389,117,39,17,92,34949,263265000,5679,306,40,49,33,63,37,18,26,7,0,16,6,11,0,0,0,0,750,78,41,64,50,32,50,65,41,126,103,64,31,0,5,0,0,1207,79,62,75,58,55,110,87,88,55,194,204,90,18,0,0,32,1111,65,45,74,48,52,115,87,88,63,159,141,99,55,5,10,5,819,61,51,72,43,53,75,63,46,34,73,60,122,35,7,7,17,660,97,66,102,89,82,31,62,14,9,40,14,18,9,14,0,13,826,200,87,103,107,96,35,42,22,18,26,39,18,0,8,0,25,34949,21987,39342,44375,43899,39241,22857,20913,5679,4158,1521,4050,1629,649,5030,1899,3780,1919,3760,278,5401,433,5246,1167,4512,679,5000,188611400,173458900,15152500,16765700,21687100,1910500,970800,28362000,3447,98,185,233,250,253,241,297,262,187,442,452,351,116,7,17,56,42849,193128600,2232,528,251,296,198,190,220,85,69,99,121,77,34,11,17,0,36,21192,20267]
["Cornish","0004197","15060",1661,648,30,34,40,30,29,28,22,35,39,86,102,80,43,23,19,8,53393,39187700,648,2,0,0,2,0,0,0,0,0,0,0,0,0,0,0,0,0,61,0,0,2,4,7,4,0,7,6,19,4,4,2,0,0,2,149,2,4,6,4,12,12,5,2,11,24,39,12,10,4,2,0,189,2,7,4,3,3,8,4,12,10,20,29,46,19,12,6,4,114,5,8,10,6,3,2,13,10,1,5,20,12,10,7,2,0,62,4,3,4,13,4,2,0,0,2,14,4,6,2,0,2,2,71,17,12,12,0,0,0,0,4,9,4,6,0,0,0,7,0,53393,18750,50179,55781,72250,45000,48750,18036,648,550,98,505,143,163,485,284,364,175,473,16,632,6,642,123,525,77,571,31207700,25947500,5260200,3945900,1996100,190400,5100,1361600,466,8,7,14,22,21,24,17,22,32,64,78,78,34,18,19,8,60313,32168400,182,24,30,26,12,9,4,9,14,5,16,27,4,0,2,0,0,24643,23165]
["Croydon","0004202","16340",661,262,8,11,8,14,17,32,15,15,12,44,27,35,16,1,5,2,49688,14559600,262,2,0,0,0,0,0,0,0,0,0,2,0,0,0,0,0,0,52,0,0,0,4,8,22,3,0,0,9,0,0,5,1,0,0,57,0,3,0,7,1,3,1,8,5,7,1,14,3,0,2,2,64,0,0,0,1,0,2,4,5,4,16,14,13,5,0,0,0,48,2,2,4,0,5,3,2,2,0,8,9,8,0,0,3,0,25,2,1,4,2,3,2,3,0,3,2,0,0,3,0,0,0,14,4,5,0,0,0,0,2,0,0,0,3,0,0,0,0,0,49688,51250,32333,51250,60000,55500,30625,13333,262,214,48,198,64,44,218,110,152,68,194,21,241,9,253,46,216,39,223,11235300,9606600,1628700,1253600,808900,139000,35800,748000,200,3,1,8,7,17,20,17,13,12,32,23,29,12,1,5,0,50556,11273300,62,8,10,3,4,1,13,2,0,0,8,5,3,3,0,0,2,30962,21403]
["Goshen","0004207","30500",741,295,17,16,26,12,23,15,25,23,16,41,31,22,18,0,2,8,42625,15679100,295,6,0,2,0,0,0,0,0,2,2,0,0,0,0,0,0,0,28,0,3,3,3,0,3,2,2,0,2,7,3,0,0,0,0,72,2,0,6,3,4,0,3,3,10,22,6,9,4,0,0,0,64,3,0,3,0,9,2,8,12,2,4,9,4,6,0,2,0,49,0,2,4,0,7,5,4,2,0,13,6,3,0,0,0,3,47,6,6,8,4,2,2,2,2,2,0,3,0,5,0,0,5,29,6,3,2,2,1,3,6,0,0,0,0,3,3,0,0,0,42625,41250,41250,52500,42188,50417,24375,30417,295,240,55,213,82,63,232,118,177,101,194,14,281,5,290,39,256,43,252,11633600,9508100,2125500,745100,1153800,65000,17100,1778300,233,11,7,16,7,22,11,28,14,11,36,23,22,15,0,2,8,45208,13471000,62,6,9,10,5,5,4,0,7,5,0,8,0,3,0,0,0,25500,20561]
["Grantham","0004212","31220",2167,933,36,12,14,38,42,26,48,59,40,113,146,163,84,45,35,32,63239,70319700,933,15,3,0,0,3,4,0,0,0,0,3,2,0,0,0,0,0,105,0,0,0,0,2,0,9,10,6,9,26,22,5,7,7,2,158,5,3,5,8,2,3,6,4,9,31,21,40,12,0,6,3,203,5,0,3,5,8,4,8,8,7,25,41,33,24,16,9,7,156,5,0,0,5,7,8,9,11,9,16,23,24,16,8,5,10,186,13,5,6,7,16,11,10,4,7,22,16,33,16,6,6,8,110,5,4,0,10,3,0,6,22,2,7,17,11,11,8,2,2,63239,25938,72031,60833,67159,67000,55000,52500,933,695,238,659,274,169,764,586,347,327,606,8,925,4,929,246,687,120,813,46919500,40081600,6837900,9066700,4370300,48700,5900,8358900,709,7,12,9,17,22,22,31,42,30,96,115,148,70,35,29,24,69271,56337300,224,29,3,5,24,20,4,14,17,12,16,31,13,12,10,6,8,44000,32174]
["Langdon","0004218","40900",586,233,9,7,21,5,22,17,28,16,16,22,25,20,5,3,7,10,42083,14338700,233,2,0,0,2,0,0,0,0,0,0,0,0,0,0,0,0,0,22,0,0,0,1,0,3,2,3,0,6,2,2,3,0,0,0,69,0,2,7,2,4,2,4,9,6,2,15,8,0,0,5,3,62,0,3,6,1,7,3,10,4,4,5,6,6,0,3,2,2,26,1,0,2,0,2,3,8,0,0,6,2,0,0,0,0,2,35,4,0,2,1,7,4,2,0,6,3,0,2,2,0,0,2,17,4,2,2,0,2,2,2,0,0,0,0,2,0,0,0,1,42083,16250,51667,49063,41250,37500,32188,26250,233,209,24,202,31,39,194,104,129,58,175,9,224,4,229,33,200,29,204,11329800,10742000,587800,1484200,722000,95000,28800,377500,180,3,3,9,8,21,16,22,11,16,14,25,19,0,3,7,3,43125,10663500,53,6,4,12,2,2,3,3,2,0,8,0,1,5,0,0,5,30417,24572]
["Lempster","0004223","41700",971,393,21,18,25,19,49,29,30,45,34,46,42,17,4,4,6,4,40458,18841000,393,8,0,3,0,0,0,1,0,0,4,0,0,0,0,0,0,0,54,2,0,0,5,10,6,4,7,0,9,8,3,0,0,0,0,82,7,0,4,0,8,11,12,10,11,14,3,0,2,0,0,0,107,3,0,3,2,8,7,6,19,10,13,18,9,0,4,3,2,47,0,3,2,4,3,2,3,4,5,6,7,4,2,0,2,0,48,4,3,10,5,4,0,2,2,4,4,6,1,0,0,1,2,47,5,9,6,3,16,2,3,3,0,0,0,0,0,0,0,0,40458,41250,40000,39167,48393,47917,26667,25125,393,322,71,296,97,74,319,132,261,115,278,15,378,9,384,74,319,42,351,13933400,12236900,1696600,1976800,1453200,145500,30500,694600,282,5,1,16,10,35,13,27,32,32,46,35,14,4,2,6,4,45385,15445500,111,16,18,14,9,14,13,3,12,2,3,4,1,0,2,0,0,24375,19172]
["Newport","0004228","52580",6269,2460,279,188,112,184,181,159,246,151,154,241,276,173,74,26,9,7,37442,105517400,2460,125,22,9,0,9,9,39,16,13,0,0,8,0,0,0,0,0,415,38,37,13,31,41,31,44,72,14,48,20,26,0,0,0,0,505,29,24,20,39,16,34,27,33,56,77,89,45,7,9,0,0,521,44,10,33,19,24,13,58,17,40,30,102,74,38,10,9,0,297,35,8,0,8,49,15,42,11,29,29,28,15,21,7,0,0,320,54,39,14,49,24,19,32,5,7,28,29,13,0,0,0,7,277,57,61,32,29,18,8,27,0,8,29,0,0,8,0,0,0,37442,31350,38090,47875,51042,37639,26429,19102,2460,1930,530,1835,625,347,2113,867,1593,718,1742,159,2301,185,2275,510,1950,293,2167,84725200,78717200,6008100,4624000,7711600,1036000,579900,5159400,1660,115,113,78,75,95,122,134,85,119,229,224,165,64,26,9,7,45508,82292800,800,173,92,50,110,67,37,125,49,43,0,46,8,0,0,0,0,23798,16964]
["Plainfield","0004254","62340",2241,852,24,21,39,46,37,37,65,53,50,83,137,123,55,14,40,28,57083,58989600,852,8,0,0,2,2,0,0,0,0,0,0,4,0,0,0,0,0,106,2,0,0,7,2,6,11,7,9,13,28,11,5,0,5,0,216,3,3,0,4,16,10,7,18,15,34,30,41,10,4,11,10,223,0,8,6,7,3,2,20,17,12,20,38,37,28,4,13,8,142,8,3,11,9,9,2,13,4,9,6,25,25,4,4,0,10,100,7,2,11,6,7,6,9,7,5,5,12,9,6,0,8,0,57,4,5,9,11,0,11,5,0,0,5,0,0,2,2,3,0,57083,42500,58333,59375,65313,55625,40714,24821,852,750,102,717,135,207,645,427,425,183,669,13,839,14,838,136,716,109,743,47687600,43847200,3840300,6263600,2318700,68400,49300,1795800,669,8,10,12,33,22,27,48,39,50,72,128,99,45,14,34,28,61205,50663000,183,16,13,29,13,17,10,15,14,2,9,12,20,7,0,6,0,31458,26062]
["Springfield","0004260","72740",945,391,18,19,10,13,38,34,37,28,21,19,66,55,12,9,8,4,44659,21517100,391,9,0,0,0,0,2,2,0,0,3,0,0,0,2,0,0,0,56,0,0,0,0,1,15,8,0,7,3,12,10,0,0,0,0,85,0,5,0,4,18,2,4,9,5,10,13,9,4,0,2,0,93,6,0,0,2,6,8,17,12,3,3,9,15,3,9,0,0,64,0,3,4,0,3,2,7,2,0,3,17,14,0,0,6,3,42,1,3,0,7,3,0,1,5,3,0,11,4,3,0,0,1,42,11,8,6,0,5,5,0,0,0,0,4,3,0,0,0,0,44659,45417,48929,45250,43125,63333,48333,18333,391,325,66,300,91,111,280,190,201,100,291,5,386,8,383,71,320,53,338,16621300,13481200,3140000,2273900,1118300,21500,33900,1118500,287,2,14,5,6,26,23,19,20,15,22,65,41,9,9,8,3,58068,16939100,104,16,5,7,7,12,11,16,8,6,0,0,12,3,0,0,1,32857,23263]
["Sunapee","0004265","75060",3055,1292,43,44,77,67,45,82,93,107,103,156,147,138,76,39,33,42,49353,88835900,1292,67,20,6,12,3,8,4,4,4,0,6,0,0,0,0,0,0,126,0,3,7,7,0,8,6,20,17,19,14,21,4,0,0,0,276,0,0,16,4,23,18,14,45,23,24,34,41,21,4,9,0,287,9,6,17,11,5,17,20,23,21,41,29,31,28,9,9,11,193,0,0,6,9,0,0,26,8,20,44,19,29,0,7,9,16,216,10,24,3,15,9,22,23,4,22,4,23,16,11,15,0,15,127,4,5,16,18,0,13,0,3,0,18,28,0,12,4,6,0,49353,16563,49265,47917,54583,54417,43750,55089,1292,1064,228,988,304,248,1044,688,604,409,883,5,1287,17,1275,290,1002,137,1155,63441300,58524900,4916400,9379600,5334400,160000,26100,9700300,878,31,2,43,36,31,41,56,61,72,96,131,106,66,45,19,42,55909,70771100,414,31,42,30,35,15,35,33,47,27,56,16,29,10,0,8,0,38056,29184]
["Unity","0004274","77940",1530,501,24,29,24,45,20,33,50,47,29,58,69,41,20,3,7,2,41594,24531600,501,9,0,0,5,0,0,3,0,0,0,1,0,0,0,0,0,0,66,3,0,3,8,4,2,7,4,14,9,12,0,0,0,0,0,114,3,6,2,11,5,4,8,8,4,21,22,13,5,0,0,2,137,7,3,4,2,5,10,20,22,5,13,20,17,6,3,0,0,84,9,4,2,11,4,2,5,4,0,12,10,9,9,0,3,0,78,2,13,8,11,2,10,10,6,3,2,5,2,0,0,4,0,13,0,3,0,2,0,2,0,3,3,0,0,0,0,0,0,0,41594,19375,45556,51500,41989,50313,33250,31875,501,432,69,414,87,99,402,237,264,142,359,13,488,7,494,93,408,66,435,20312100,19164800,1147300,1040000,1793000,63700,30000,851900,380,16,18,15,23,21,21,33,34,21,51,60,38,20,3,4,2,47045,20111000,121,12,11,9,22,4,12,15,13,8,3,6,3,0,0,3,0,30893,17908]
["Washington","0004279","78980",895,352,13,10,36,17,41,18,23,21,20,58,37,33,15,0,4,6,43125,17553000,352,4,0,0,0,0,3,0,0,0,0,1,0,0,0,0,0,0,48,0,0,3,3,3,3,4,3,2,8,12,5,0,0,2,0,55,1,0,3,2,12,0,3,6,2,14,2,5,5,0,0,0,82,2,2,7,0,8,11,5,6,4,9,11,11,2,0,2,2,62,2,2,7,0,3,0,6,2,7,10,6,7,8,0,0,2,75,6,3,11,7,10,4,2,4,5,12,4,5,0,0,0,2,26,2,3,5,5,2,0,3,0,0,4,2,0,0,0,0,0,43125,29167,51250,48125,45000,51250,30313,24000,352,270,82,247,105,66,286,137,215,127,225,19,333,5,347,89,263,56,296,12477500,10923300,1554100,978300,1556100,139100,6400,1729600,258,5,3,11,10,33,11,18,18,20,48,29,27,15,0,4,6,50000,14578000,94,10,8,25,7,5,7,7,3,0,8,10,4,0,0,0,0,21667,20540]
[]
[]
[]
[]
[]
[]
[]
[]
[]
[]
[]
[]
[]
[]
[]
[]
[]
[]
[]
[]
[]
[]
[]
[]
[]
[]
[]
[]
[]
[]
[]
[]
["Census 2000 SummaryFile3 Sample Data  -  SF3TownQry2bPovertyChar"]
[]
["TOWN_NAME","LOGRECNO","COUSUB","TotalPop","P52Households1","P82PerCapitaInc","P87PopForPovStatus","P87PopWIncBelowPovStatus","P87PopUnder5yrBelowPoverty","P87Pop5yrBelowPoverty","P87Pop5to11yrBelowPoverty","P87Pop12to17yrBelowPoverty","P87Pop18to64yrBelowPoverty","P87Pop65to74yrBelowPoverty","P87PopOver75yrBelowPoverty","P87PopWIncAbovePovStatus","P87PopUnder5yrAbovePoverty","P87Pop5yrAbovePoverty","P87Pop5to11yrAbovePoverty","P87Pop12to17yrAbovePoverty","P87Pop18to64yrAbovePoverty","P87Pop65to74yrAbovePoverty","P87PopOver75yrAbovePoverty","P90Families","P90FamWIncBelowPov","P90MarCupFamWIncBelowPov","P90MCFamWRltdChld<18WIncBelowPov","P90MCFamWRltdChld<5WIncBelowPov","P90MaleHhlrWIncBelowPov","P90MaleHhlrWRltdChld<18yrWIncBelowPov","P90MaleHhlrWRltdChld<5yrWIncBelowPov","P90FemaleHhlrWIncBelowPov","P90FemaleHhlrWRltdChld<18yWIncBelowPov","P90FemaleHhlrWRltdChld<5yWIncBelowPov","P90FamWIncAbovePov","P90MarCupFamWIncAbovePov","P90MCFamWRltdChld<18WIncAbovePov","P90MCFamWRltdChld<5WIncAbovePov","P90MaleHhlrWIncAbovePov","P90MaleHhlrWRltdChld<18yrWIncAbovePov","P90MaleHhlrWRltdChld<5yrWIncAbovePov","P90FemaleHhlrWIncAbovePov","P90FemaleHhlrWRltdChld<18yWIncAbovePov","P90FemaleHhlrWRltdChld<5yWIncAbovePov","P92Households","P92HHwIncBelowPov","P92FamHHwIncBelowPov","P92MCFamHHwIncBelowPov","P92MaleFamHHwIncBelowPov","P92FemaleFamHHwIncBelowPov","P92NonFamHHwIncBelowPov","P92NonFamMaleHHwIncBelowPov","P92NonFamFemaleHHwIncBelowPov","P92HHwIncAbovePov","P92FamHHwIncAbovePov","P92MCFamHHwIncAbovePov","P92MaleFamHHwIncAbovePov","P92FemaleFamHHwIncAbovePov","P92NonFamHHwIncAbovePov","P92NonFamMaleHHwIncAbovePov","P92NonFamFemaleHHwIncAbovePov"]
["Acworth","0004141","00260",836,325,18132,838,131,10,0,20,26,68,7,0,707,29,9,53,61,432,76,47,237,24,15,9,0,2,2,0,7,7,2,213,182,76,10,14,6,2,17,6,0,325,34,24,15,2,7,10,4,6,291,213,182,14,17,78,47,31]
["Charlestown","0004146","11380",4749,1911,18654,4674,306,11,0,39,14,175,33,34,4368,245,53,338,418,2728,318,268,1333,46,21,11,0,5,5,0,20,20,8,1287,1067,420,123,95,77,0,125,100,6,1911,117,46,21,5,20,71,35,36,1794,1287,1067,95,125,507,223,284]
["Claremont","0004169","12900",13151,5679,20267,12990,1305,87,18,110,76,773,111,130,11685,650,110,945,992,7094,948,946,3447,187,81,46,4,5,5,0,101,93,13,3260,2594,1073,274,215,173,21,451,222,34,5679,678,187,81,5,101,491,199,292,5001,3260,2594,215,451,1741,855,886]
["Cornish","0004197","15060",1661,648,23165,1652,74,10,2,8,10,33,4,7,1578,66,20,133,174,995,115,75,466,13,8,4,0,0,0,0,5,5,5,453,394,158,18,28,24,2,31,17,3,648,31,13,8,0,5,18,6,12,617,453,394,28,31,164,80,84]
["Croydon","0004202","16340",661,262,21403,667,33,0,0,2,8,16,0,7,634,27,8,32,67,435,36,29,200,5,2,2,0,0,0,0,3,3,0,195,160,49,11,24,16,8,11,9,0,262,9,5,2,0,3,4,4,0,253,195,160,24,11,58,26,32]
["Goshen","0004207","30500",741,295,20561,753,66,4,0,7,7,22,10,16,687,39,3,58,48,444,63,32,233,16,12,3,0,2,2,0,2,2,0,217,183,69,14,8,6,4,26,19,2,295,22,16,12,2,2,6,3,3,273,217,183,8,26,56,24,32]
["Grantham","0004212","31220",2167,933,32174,2173,54,8,0,0,0,28,13,5,2119,101,30,164,132,1232,313,147,709,10,3,3,3,2,0,0,5,5,5,699,653,204,42,15,5,0,31,21,0,933,39,10,3,2,5,29,5,24,894,699,653,15,31,195,93,102]
["Langdon","0004218","40900",586,233,24572,579,22,0,0,0,0,13,4,5,557,21,2,59,43,368,41,23,180,6,3,0,0,0,0,0,3,0,0,174,145,63,9,9,7,0,20,7,0,233,10,6,3,0,3,4,0,4,223,174,145,9,20,49,28,21]
["Lempster","0004223","41700",971,393,19172,964,70,6,0,6,12,39,2,5,894,42,12,80,73,561,67,59,282,9,4,4,0,2,2,2,3,3,0,273,239,106,19,13,3,1,21,13,1,393,26,9,4,2,3,17,10,7,367,273,239,13,21,94,55,39]
["Newport","0004228","52580",6269,2460,16964,6172,890,100,33,117,123,426,13,78,5282,294,101,497,346,3223,473,348,1660,180,65,50,9,16,16,0,99,82,22,1480,1216,546,86,87,60,19,177,118,17,2460,331,180,65,16,99,151,25,126,2129,1480,1216,87,177,649,350,299]
["Plainfield","0004254","62340",2241,852,26062,2236,63,3,2,2,4,41,7,4,2173,141,30,186,188,1404,140,84,669,12,6,0,0,0,0,0,6,4,0,657,575,275,62,29,18,2,53,44,2,852,25,12,6,0,6,13,7,6,827,657,575,29,53,170,88,82]
["Springfield","0004260","72740",945,391,23263,915,47,0,0,5,0,32,1,9,868,46,5,87,67,547,77,39,287,10,10,2,0,0,0,0,0,0,0,277,247,91,21,8,8,6,22,19,6,391,25,10,10,0,0,15,5,10,366,277,247,8,22,89,46,43]
["Sunapee","0004265","75060",3055,1292,29184,3044,158,23,3,2,26,82,18,4,2886,108,30,257,239,1748,311,193,878,33,7,0,0,4,4,0,22,22,10,845,727,275,44,11,6,0,107,74,27,1292,60,33,7,4,22,27,4,23,1232,845,727,11,107,387,182,205]
["Unity","0004274","77940",1530,501,17908,1286,104,18,2,6,19,57,2,0,1182,52,14,82,99,790,113,32,380,26,9,7,2,9,9,3,8,6,4,354,320,125,19,16,5,3,18,10,0,501,42,26,9,9,8,16,4,12,459,354,320,16,18,105,67,38]
["Washington","0004279","78980",895,352,20540,873,44,7,2,4,5,18,6,2,829,27,8,79,68,515,97,35,258,8,4,2,0,2,2,1,2,2,2,250,236,83,6,2,2,0,12,9,0,352,20,8,4,2,2,12,8,4,332,250,236,2,12,82,56,26]
[]
[]
[]
[]
[]
[]
[]
[]
[]
[]
[]
[]
[]
[]
[]
[]
[]
[]
[]
[]
[]
[]
[]
[]
[]
[]
[]
[]
[]
[]
[]
[]
["Census 2000 SummaryFile3 Sample Data  -  SF3TownQry7HousingA"]
[]
["TOWN_NAME","LOGRECNO","COUSUB","TotalPop","H1HousingUnitsTotal","H2SampleHU","H2SampleOccHU","H2SampleVacHU","H3HU100pctCount","H5HUTotal","H5HUUrban","H5HUUrbanInUrbanAreas","H5HUUrbanInUrbanClusters","H5HURural","H5HURuralFarm","H5HURuralNonFarm","H7HUOcc","H7HUOwnrOcc","H7HURentrOcc","H8HUVacant","H8HUVacantForRent","H8HUVacantForSale","H8HUVacRentedorSold","H8HUVacSeasonal","H8HUVacForMigrantWrkrs","H8HUOtherVacant","H14OccHUa","H14OwnerOccHU","H14OwnOccHuHh15to24","H14OwnOccHuHh25to34","H14OwnOccHuHh35to44","H14OwnOccHuHh45to54","H14OwnOccHuHh55to59","H14OwnOccHuHh60to64","H14OwnOccHuHh65to74","H14OwnOccHuHh75to84","H14OwnOccHuHh85Over","H14RenterOccHU1","H14RntrOccHuHh15to24","H14RntrOccHuHh25to34","H14RntrOccHuHh35to44","H14RntrOccHuHh45to54","H14RntrOccHuHh55to59","H14RntrOccHuHh60to64","H14RntrOccHuHh65to74","H14RntrOccHuHh75to84","H14RntrOccHuHh85Over","H15PopInOccHU","H15PopInOwnOccHU1","H15PopInRentOccHU1","H17OccupHUb","H17OwnOccHU2","H17OwnOccHU1PersonHH","H17OwnOccHU2PersonHH","H17OwnOccHU3PersonHH","H17OwnOccHU4PersonHH","H17OwnOccHU5PersonHH","H17OwnOccHU6PersonHH","H17OwnOccHU7PlusPersonHH","H17RentOccHU2","H17RntOccHU1PersonHH","H17RntOccHU2PersonHH","H17RntOccHU3PersonHH","H17RntOccHU4PersonHH","H17RntOccHU5PersonHH","H17RntOccHU6PersonHH","H17RntOccHU7PlusPersonHH","H18AvgHHSize","H18AvgHHSizeOwnOcc","H18AvgHHSizeRentOcc","H23TotHU","H23HU1Room","H23HU2Room","H23HU3Room","H23HU4Room","H23HU5Room","H23HU6Room","H23HU7Room","H23HU8Room","H23HU9orMoreRoom","H24MedianNumRooms","H25AggregNumRooms","H30TotalHU","H30Det1HU","H30Att1HU","H30Units2","H30Units3or4","H30Units5to9","H30Units10to19","H30Units20to49","H30Units50orMore","H30UnitsMobileHome","H30UnitsBoatRv","H32OccHUcTotal","H32OwnerOccHU3","H32OwnOccHU1Det","H32OwnOccHU1Att","H32OwnOccHU2Unit","H32OwnOccHU3to4Unit","H32OwnOccHU5to9Unit","H32OwnOccHU10to19Unit","H32OwnOccHU20to49Unit","H32OwnOccHU50plusUnit","H32OwnOccHUMobHom","H32OwnOccHUBoatRVOth","H32RentrOccHU3","H32RntrOccHU1Det","H32RntrOccHU1Att","H32RntrOccHU2Unit","H32RntrOccHU3to4Unit","H32RntrOccHU5to9Unit","H32RntrOccHU10to19Unit","H32RntrOccHU20to49Unit","H32RntrOccHU50PlusUnit","H32RntrOccHUMobHom","H32RntrOccHUBoatRVOth","H33TotPopInOccHU","H33PopInOwnOccHU2","H33PopInOOHU1Det","H33PopInOOHU1Att","H33PopInOOHU2unit","H33PopInOOHU3to4Unit","H33PopInOOHU5to9Unit","H33PopInOOHU10to19Unit","H33PopInOOHU20to49Unit","H33PopInOOHU50PlusUnit","H33PopInOOHUMobilHome","H33PopInOOHUOtherUnit","H33PopInRentOccHU2","H33PopInROHU1Det","H33PopInROHU1Att","H33PopInROHU2Unit","H33PopInROHU3to4Unit","H33PopInROHU5to9Unit","H33PopInROHU10to19Unit","H33PopInROHU20to49Unit","H33PopInROHU50PlusUnit","H33PopInROHUMobilHome","H33PopInROHUOtherUnit","H36OccHousingUnitsdTotal","H36OwnerOccHU4","H36OOHUBuilt99to0300","H36OOHUBuilt95to98","H36OOHUBuilt90to94","H36OOHUBuilt80to89","H36OOHUBuilt70to79","H36OOHUBuilt60to69","H36OOHUBuilt50to59","H36OOHUBuilt40to49","H36OOHUBuilt39Earlier","H36RentOccHU4","H36ROHUBuilt99to0300","H36ROHUBuilt95to98","H36ROHUBuilt90to94","H36ROHUBuilt80to89","H36ROHUBuilt70to79","H36ROHUBuilt60to69","H36ROHUBuilt50to59","H36ROHUBuilt40to49","H36ROHUBuilt39Earlier","H40OccupHousUnitse","H40HeatFuelUtilGas","H40HeatFuelBotGas","H40HeatFuelElect","H40HeatFuelOilKero","H40HeatFuelCoal","H40HeatFuelWood","H40HeatFuelSolar","H40HeatFuelOther","H40HeatFuelNone","H41TotalHU","H41HUNoBdrm","H41HU1Bdrm","H41HU2Bdrm","H41HU3Bdrm","H41HU4Bdrm","H41HU5MoreBdrm","H42OccuHousUnitf","H42OwnerOccHU5","H42OOHUNoBdrm","H42OOHU1Bdrm","H42OOHU2Bdrm","H42OOHU3Bdrm","H42OOHU4Bdrm","H42OOHU5PlusBdrm","H42RentOccHU5","H42ROHUNoBdrm","H42ROHU1Bdrm","H42ROHU2Bdrm","H42ROHU3Bdrm","H42ROHU4Bdrm","H42ROHU5PlusBdrm","H48OccupHousUnitsg","H48OwnerOccHU6","H48OOHUwCompltPlumFacil","H48OOHULackCompltPlumFacil","H48RentOccHU6","H48ROHUwCompltPlumFacil","H48ROHULackCompltPlumFacil","H51OccupHousUnitf","H51OwnerOccHU7","H51OOHUwCompleteKitFacil","H51OOHULackCompleteKitFacil","H51RenterOccHU7","H51ROHUwCompleteKitFacil","H51ROHULackCompleteKitFacil"]
["Acworth","0004141","00260",836,515,241,152,89,512,515,0,0,0,515,18,497,319,263,56,196,5,2,4,170,0,15,319,263,0,16,48,61,38,22,46,22,10,56,2,8,13,8,4,6,9,4,2,840,700,140,319,263,52,107,44,34,20,3,3,56,18,20,3,10,3,0,2,3,3,2,515,16,30,63,95,85,59,71,54,42,5,2773,515,458,4,9,0,0,0,0,0,40,4,319,263,240,0,2,0,0,0,0,0,21,0,56,44,2,4,0,0,0,0,0,6,0,840,700,638,0,5,0,0,0,0,0,57,0,140,121,2,8,0,0,0,0,0,9,0,319,263,0,8,11,54,44,18,9,14,105,56,0,0,2,2,4,4,7,2,35,319,3,35,0,149,0,132,0,0,0,515,16,95,170,148,62,24,319,263,1,19,82,108,34,19,56,0,10,22,16,5,3,319,263,256,7,56,52,4,319,263,254,9,56,47,9]
["Charlestown","0004146","11380",4749,2067,344,319,25,2067,2067,1188,0,1188,879,7,872,1920,1464,456,147,43,21,21,59,0,3,1920,1464,35,175,277,350,120,159,196,110,42,456,53,84,116,44,17,12,71,37,22,4730,3726,1004,1920,1464,284,628,245,188,81,31,7,456,172,119,76,53,29,0,7,2,3,2,2067,20,49,196,489,529,284,227,153,120,5,11024,2067,1084,14,77,108,97,8,49,0,630,0,1920,1464,886,6,23,12,7,0,0,0,530,0,456,121,8,35,96,82,0,49,0,65,0,4730,3726,2266,9,65,23,28,0,0,0,1335,0,1004,388,14,92,149,109,0,90,0,162,0,1920,1464,48,109,76,240,400,126,125,70,270,456,0,0,42,56,71,35,30,32,190,1920,0,174,89,1494,0,158,0,5,0,2067,20,224,775,773,218,57,1920,1464,0,64,534,641,185,40,456,16,128,186,102,7,17,1920,1464,1458,6,456,456,0,1920,1464,1458,6,456,456,0]
["Claremont","0004169","12900",13151,6074,719,697,22,6074,6074,4351,0,4351,1723,36,1687,5685,3279,2406,389,184,51,0,61,0,93,5685,3279,48,303,649,625,300,211,575,441,127,2406,265,428,549,409,126,156,200,231,42,12973,8199,4774,5685,3279,741,1345,500,437,193,63,0,2406,1095,666,316,205,84,40,0,2,2,2,6074,79,307,624,1176,1320,1104,655,441,368,5,32286,6074,3011,147,579,712,377,154,277,353,464,0,5685,3279,2575,77,148,99,0,8,0,0,372,0,2406,347,70,357,496,331,123,269,346,67,0,12973,8199,6711,199,324,193,0,14,0,0,758,0,4774,983,178,739,1092,670,172,368,412,160,0,5685,3279,21,117,100,285,480,229,554,414,1079,2406,0,5,28,250,501,243,145,365,869,5685,153,379,314,4514,0,187,0,97,41,6074,99,982,1964,2094,765,170,5685,3279,0,41,873,1556,665,144,2406,99,842,890,473,76,26,5685,3279,3279,0,2406,2393,13,5685,3279,3279,0,2406,2400,6]
["Cornish","0004197","15060",1661,697,332,301,31,697,697,0,0,0,697,21,676,645,564,81,52,5,1,0,41,0,5,645,564,0,43,137,170,66,44,58,31,15,81,2,25,21,23,4,2,2,2,0,1661,1472,189,645,564,117,215,90,88,40,6,8,81,20,27,12,18,2,0,2,3,3,2,697,2,0,33,79,150,149,118,58,108,6,4431,697,605,5,28,11,0,0,0,0,48,0,645,564,504,4,14,3,0,0,0,0,39,0,81,60,0,11,4,0,0,0,0,6,0,1661,1472,1329,14,45,2,0,0,0,0,82,0,189,148,0,17,10,0,0,0,0,14,0,645,564,2,14,40,88,112,35,26,21,226,81,0,0,4,4,10,8,6,5,44,645,0,112,12,413,0,108,0,0,0,697,2,55,179,306,106,49,645,564,0,39,131,272,92,30,81,0,9,37,22,6,7,645,564,560,4,81,81,0,645,564,558,6,81,81,0]
["Croydon","0004202","16340",661,347,133,112,21,354,347,0,0,0,347,17,330,268,246,22,79,2,14,4,59,0,0,268,246,3,39,60,65,16,27,23,11,2,22,0,2,7,5,4,2,2,0,0,684,600,84,268,246,46,105,53,28,4,4,6,22,2,6,3,4,4,3,0,3,2,4,347,0,10,9,55,85,64,52,38,34,6,2084,347,294,0,2,0,0,0,0,0,51,0,268,246,200,0,2,0,0,0,0,0,44,0,22,22,0,0,0,0,0,0,0,0,0,684,600,499,0,5,0,0,0,0,0,96,0,84,84,0,0,0,0,0,0,0,0,0,268,246,7,14,28,69,42,18,11,6,51,22,0,0,0,4,0,0,5,2,11,268,0,60,2,161,4,41,0,0,0,347,0,17,100,184,31,15,268,246,0,6,75,125,25,15,22,0,0,4,12,6,0,268,246,244,2,22,22,0,268,246,246,0,22,22,0]
["Goshen","0004207","30500",741,390,180,124,56,389,390,0,0,0,390,2,388,280,252,28,110,0,9,0,97,0,4,280,252,3,19,51,70,21,26,38,22,2,28,4,4,10,2,0,2,4,2,0,747,650,97,280,252,40,123,38,24,20,5,2,28,4,6,12,4,2,0,0,3,3,3,390,6,9,26,75,73,89,47,35,30,6,2210,390,336,5,2,6,0,0,0,0,35,6,280,252,226,5,0,0,0,0,0,0,21,0,28,16,0,0,6,0,0,0,0,6,0,747,650,584,9,0,0,0,0,0,0,57,0,97,53,0,0,15,0,0,0,0,29,0,280,252,0,10,23,46,58,15,21,15,64,28,0,2,0,6,4,6,2,0,8,280,0,51,4,164,0,61,0,0,0,390,6,39,150,132,49,14,280,252,0,8,86,109,35,14,28,0,4,10,6,8,0,280,252,252,0,28,28,0,280,252,252,0,28,28,0]
["Grantham","0004212","31220",2167,1518,666,418,248,1513,1518,0,0,0,1518,5,1513,925,816,109,593,2,28,12,548,0,3,925,816,5,80,125,177,67,83,179,84,16,109,8,38,26,16,14,2,3,2,0,2173,1914,259,925,816,152,433,96,93,32,8,2,109,23,44,20,14,4,2,2,2,2,2,1518,10,5,23,158,291,459,248,195,129,6,9516,1518,1168,296,19,9,0,0,0,0,26,0,925,816,735,62,0,0,0,0,0,0,19,0,109,75,16,10,5,0,0,0,0,3,0,2173,1914,1770,99,0,0,0,0,0,0,45,0,259,200,26,21,10,0,0,0,0,2,0,925,816,22,102,112,281,181,20,26,12,60,109,2,7,13,27,37,10,2,3,8,925,9,436,47,340,0,93,0,0,0,1518,10,23,310,936,203,36,925,816,0,9,127,515,140,25,109,6,3,37,59,4,0,925,816,816,0,109,109,0,925,816,811,5,109,109,0]
["Langdon","0004218","40900",586,266,127,109,18,269,266,0,0,0,266,2,264,236,211,25,30,1,3,0,25,0,1,236,211,2,14,61,54,16,9,33,15,7,25,0,9,10,2,0,2,2,0,0,582,525,57,236,211,37,89,39,25,21,0,0,25,4,12,0,3,6,0,0,2,2,2,266,0,2,10,35,80,35,45,28,31,6,1633,266,220,2,2,3,0,0,0,0,39,0,236,211,182,2,2,0,0,0,0,0,25,0,25,14,0,0,3,0,0,0,0,8,0,582,525,443,4,8,0,0,0,0,0,70,0,57,34,0,0,9,0,0,0,0,14,0,236,211,2,15,34,43,33,19,6,7,52,25,0,0,0,4,0,8,3,0,10,236,2,8,2,146,0,78,0,0,0,266,0,14,96,90,57,9,236,211,0,10,75,75,45,6,25,0,2,8,5,7,3,236,211,211,0,25,25,0,236,211,209,2,25,25,0]
["Lempster","0004223","41700",971,577,251,180,71,577,577,0,0,0,577,8,569,387,340,47,190,6,12,0,170,0,2,387,340,2,46,64,98,22,16,57,19,16,47,6,9,7,8,2,0,5,5,5,971,861,110,387,340,68,136,60,44,25,6,1,47,14,17,8,6,2,0,0,3,3,2,577,8,16,35,184,113,109,51,35,26,5,2997,577,471,1,8,0,0,0,0,0,88,9,387,340,277,1,0,0,0,0,0,0,59,3,47,30,0,3,0,0,0,0,0,14,0,971,861,674,3,0,0,0,0,0,0,171,13,110,81,0,4,0,0,0,0,0,25,0,387,340,2,34,28,69,68,43,11,7,78,47,0,3,0,18,16,2,0,1,7,387,0,74,6,217,0,90,0,0,0,577,8,70,230,195,59,15,387,340,2,23,101,153,51,10,47,0,3,26,16,2,0,387,340,327,13,47,45,2,387,340,330,10,47,47,0]
["Newport","0004228","52580",6269,2633,295,280,15,2633,2633,1347,0,1347,1286,8,1278,2473,1641,832,160,33,10,13,70,0,34,2473,1641,7,190,329,375,153,115,273,155,44,832,93,161,139,167,47,31,98,74,22,6152,4282,1870,2473,1641,316,638,283,254,116,7,27,832,315,225,143,101,17,15,16,2,3,2,2633,11,24,151,539,594,543,394,195,182,6,15034,2633,1465,57,235,366,155,46,42,0,267,0,2473,1641,1288,17,94,10,0,0,0,0,232,0,832,93,28,131,318,155,41,42,0,24,0,6152,4282,3571,32,225,9,0,0,0,0,445,0,1870,274,74,352,683,306,54,47,0,80,0,2473,1641,43,40,48,258,209,226,155,95,567,832,0,10,35,136,89,45,130,22,365,2473,62,392,52,1855,8,87,0,17,0,2633,11,193,921,1026,380,102,2473,1641,0,38,406,805,308,84,832,11,127,455,161,60,18,2473,1641,1641,0,832,832,0,2473,1641,1641,0,832,822,10]
["Plainfield","0004254","62340",2241,877,403,387,16,877,877,0,0,0,877,22,855,844,741,103,33,4,1,0,16,0,12,844,741,4,72,183,198,88,51,93,40,12,103,4,36,26,22,5,4,2,2,2,2241,1978,263,844,741,111,280,165,132,44,8,1,103,29,30,15,25,4,0,0,3,3,3,877,4,10,20,110,211,162,127,114,119,6,5542,877,726,17,45,3,4,6,0,0,76,0,844,741,640,10,26,1,2,2,0,0,60,0,103,65,5,12,2,2,4,0,0,13,0,2241,1978,1696,31,93,7,2,4,0,0,145,0,263,179,14,23,6,6,6,0,0,29,0,844,741,24,27,50,171,144,55,51,25,194,103,0,2,13,25,18,8,8,5,24,844,3,140,5,563,0,130,3,0,0,877,4,46,217,428,137,45,844,741,2,33,159,377,127,43,103,0,7,48,40,6,2,844,741,734,7,103,99,4,844,741,735,6,103,99,4]
["Springfield","0004260","72740",945,536,232,154,78,534,536,0,0,0,536,0,536,381,319,62,155,0,4,0,140,0,11,381,319,3,37,71,79,41,20,39,24,5,62,7,16,19,12,0,2,0,4,2,915,757,158,381,319,59,149,58,36,17,0,0,62,16,25,8,6,4,0,3,2,2,3,536,18,27,23,73,120,105,52,52,66,6,3103,536,455,2,4,4,0,0,0,0,71,0,381,319,265,0,0,0,0,0,0,0,54,0,62,47,0,2,4,0,0,0,0,9,0,915,757,623,0,0,0,0,0,0,0,134,0,158,117,0,8,8,0,0,0,0,25,0,381,319,14,23,39,62,71,42,8,3,57,62,2,12,2,10,11,3,4,0,18,381,0,100,12,198,0,71,0,0,0,536,18,45,159,217,66,31,381,319,0,19,104,137,40,19,62,0,16,10,27,9,0,381,319,308,11,62,60,2,381,319,313,6,62,60,2]
["Sunapee","0004265","75060",3055,2143,450,270,180,2143,2143,11,0,11,2132,10,2122,1294,973,321,849,17,15,20,791,0,6,1294,973,5,93,203,222,50,52,223,102,23,321,75,50,68,74,12,5,19,18,0,3055,2466,589,1294,973,219,431,131,111,63,18,0,321,110,106,50,50,0,0,5,2,3,2,2143,18,57,92,230,444,444,414,190,254,6,13170,2143,1715,68,63,101,98,18,7,0,73,0,1294,973,865,24,8,9,14,0,0,0,53,0,321,135,5,49,51,46,13,7,0,15,0,3055,2466,2213,49,25,21,21,0,0,0,137,0,589,237,12,104,111,81,15,8,0,21,0,1294,973,12,48,53,209,279,70,72,37,193,321,0,0,5,48,84,26,34,18,106,1294,13,326,70,798,5,74,0,0,8,2143,26,113,499,987,399,119,1294,973,4,34,216,468,183,68,321,14,41,118,120,23,5,1294,973,973,0,321,321,0,1294,973,969,4,321,321,0]
["Unity","0004274","77940",1530,594,247,216,31,594,594,0,0,0,594,9,585,504,468,36,90,0,6,0,81,0,3,504,468,6,64,115,120,58,28,64,11,2,36,2,13,6,10,0,2,3,0,0,1301,1208,93,504,468,76,208,76,75,23,7,3,36,7,10,10,7,0,2,0,3,3,3,594,3,8,34,140,164,118,89,22,16,5,3168,594,473,2,4,3,0,0,0,0,112,0,504,468,365,2,2,0,0,0,0,0,99,0,36,27,0,2,3,0,0,0,0,4,0,1301,1208,922,12,9,0,0,0,0,0,265,0,93,77,0,2,2,0,0,0,0,12,0,504,468,5,48,41,119,110,36,19,16,74,36,2,2,4,0,10,0,3,3,12,504,5,90,3,318,2,86,0,0,0,594,5,44,241,253,45,6,504,468,0,39,187,194,42,6,36,2,2,10,22,0,0,504,468,460,8,36,29,7,504,468,464,4,36,32,4]
["Washington","0004279","78980",895,924,424,161,263,925,924,0,0,0,924,3,921,369,338,31,555,2,12,9,518,0,14,369,338,4,37,46,91,34,27,72,24,3,31,2,10,6,2,2,0,6,3,0,881,797,84,369,338,68,150,47,49,15,5,4,31,7,12,8,0,3,0,1,2,2,3,924,13,77,84,184,246,138,86,56,40,5,4663,924,859,10,12,0,0,0,0,0,41,2,369,338,310,2,4,0,0,0,0,0,22,0,31,24,0,4,0,0,0,0,0,3,0,881,797,732,8,9,0,0,0,0,0,48,0,84,59,0,10,0,0,0,0,0,15,0,369,338,11,16,30,76,77,18,30,7,73,31,0,2,0,9,9,2,0,0,9,369,8,154,5,120,3,77,0,2,0,924,30,160,365,270,79,20,369,338,2,28,128,129,42,9,31,0,9,6,14,0,2,369,338,329,9,31,29,2,369,338,331,7,31,31,0]
[]
[]
[]
[]
[]
[]
[]
[]
[]
[]
[]
[]
[]
[]
[]
[]
[]
[]
[]
[]
[]
[]
[]
[]
[]
[]
[]
[]
[]
[]
[]
[]
[]
["Census 2000 SummaryFile3 Sample Data  -  SF3TownQry8HousingCostA"]
[]
["TOWN_NAME","LOGRECNO","COUSUB","TotalPop","H62RntrOccHU","H62RntrOccHUwRent","H62ROHUGRent<100","H62ROHUGRent100to149","H62ROHUGRent150to199","H62ROHUGRent200to249","H62ROHUGRent250to299","H62ROHUGRent300to349","H62ROHUGRent350to399","H62ROHUGRent400to449","H62ROHUGRent450to499","H62ROHUGRent500to549","H62ROHUGRent550to599","H62ROHUGRent600to649","H62ROHUGRent650to699","H62ROHUGRent700to749","H62ROHUGRent750to799","H62ROHUGRent800to899","H62ROHUGRent900to999","H62ROHUGRent1000to1249","H62ROHUGRent1250to1499","H62ROHUGRent1500to1999","H62ROHUGRent2000>","H62ROHUNoGRent","H63MedianGrossRnt","H69RenterOccHsU","H69GRnt<10PctHHInc","H69GRnt10to15PctHHInc","H69GRnt15to20PctHHInc","H69GRnt20to25PctHHInc","H69GRnt25to30PctHHInc","H69GRnt30to35PctHHInc","H69GRnt35to40PctHHInc","H69GRnt40to50PctHHInc","H69GRnt>50PctHHInc","H69GRntPctNotcomputed","H73RenterOccHU","H73ROHUHhInc<10k","H73ROHUHhInc<10kRnt<20pct","H73ROHUHhInc<10kRnt20to25pct","H73ROHUHhInc<10kRnt25to30pct","H73ROHUHhInc<10kRnt30to35pct","H73ROHUHhInc<10kRnt>35pct","H73ROHUHhInc<10kPctNotComput","H73ROHUHhInc10to20k","H73ROHUHhInc10to20kRnt<20pct","H73ROHUHhInc10to20kRnt20to25pct","H73ROHUHhInc10to20kRnt25to30pct","H73ROHUHhInc10to20kRnt30to35pct","H73ROHUHhInc10to20kRnt>35pct","H73ROHUHhInc10to20kRntPctNC","H73ROHUHhInc20to35k","H73ROHUHhInc20to35kRnt<20pct","H73ROHUHhInc20to35kRnt20to25pct","H73ROHUHhInc20to35kRnt25to30pct","H73ROHUHhInc20to35kRnt30to35pct","H73ROHUHhInc20to35kRnt>35pct","H73ROHUHhInc20to35kRntPctNC","H73ROHUHhInc35to40k","H73ROHUHhInc35to40kRnt<20pct","H73ROHUHhInc35to40kRnt20to25pct","H73ROHUHhInc35to40kRnt25to30pct","H73ROHUHhInc35to40kRnt30to35pct","H73ROHUHhInc35to40kRnt>35pct","H73ROHUHhInc35to40kRntPctNC","H73ROHUHhInc50to75k","H73ROHUHhInc50to75kRnt<20pct","H73ROHUHhInc50to75kRnt20to25pct","H73ROHUHhInc50to75kRnt25to30pct","H73ROHUHhInc50to75kRnt30to35pct","H73ROHUHhInc50to75kRnt>35pct","H73ROHUHhInc50to75kRntPctNC","H73ROHUHhInc75to100k","H73ROHUHhInc75to100kRnt<20pct","H73ROHUHhInc75to100kRnt20to25pct","H73ROHUHhInc75to100kRnt25to30pct","H73ROHUHhInc75to100kRnt30to35pct","H73ROHUHhInc75to100kRnt>35pct","H73ROHUHhInc75to100kRntPctNC","H73ROHUHhInc>100k","H73ROHUHhInc>100kRnt<20pct","H73ROHUHhInc>100kRnt20to25pct","H73ROHUHhInc>100kRnt25to30pct","H73ROHUHhInc>100kRnt30to35pct","H73ROHUHhInc>100kRnt>35pct","H73ROHUHhInc>100kRntPctNC"]
["Acworth","0004141","00260",836,33,25,0,0,0,0,2,0,0,6,0,0,4,2,0,9,2,0,0,0,0,0,0,8,613,33,7,0,2,3,4,2,0,0,4,11,33,9,0,0,0,0,4,5,2,0,0,0,2,0,0,10,0,0,4,0,0,6,3,0,3,0,0,0,0,6,6,0,0,0,0,0,3,3,0,0,0,0,0,0,0,0,0,0,0,0]
["Charlestown","0004146","11380",4749,437,429,0,0,25,12,11,43,59,56,30,49,49,30,20,17,0,13,0,0,8,0,7,8,464,437,33,74,82,66,14,58,12,36,37,25,437,48,0,0,0,6,25,17,120,14,13,7,39,47,0,126,38,47,7,13,13,8,69,63,6,0,0,0,0,56,56,0,0,0,0,0,5,5,0,0,0,0,0,13,13,0,0,0,0,0]
["Claremont","0004169","12900",13151,2389,2317,10,100,170,97,86,160,144,227,167,216,224,238,213,123,35,55,0,34,18,0,0,72,499,2389,149,310,361,426,281,125,136,146,373,82,2389,479,23,61,78,0,297,20,573,80,44,86,62,301,0,647,167,213,117,63,57,30,312,246,66,0,0,0,0,301,238,42,0,0,0,21,37,37,0,0,0,0,0,40,29,0,0,0,0,11]
["Cornish","0004197","15060",1661,52,44,0,0,0,0,2,0,0,2,4,8,2,5,2,3,2,4,4,6,0,0,0,8,640,52,2,10,13,4,6,3,0,2,4,8,52,0,0,0,0,0,0,0,4,0,0,0,0,4,0,15,4,0,4,1,2,4,19,13,0,2,2,0,2,12,6,4,0,0,0,2,0,0,0,0,0,0,0,2,2,0,0,0,0,0]
["Croydon","0004202","16340",661,16,16,0,0,0,0,0,0,0,0,0,2,2,0,0,7,3,2,0,0,0,0,0,0,729,16,0,0,5,2,0,2,2,3,2,0,16,0,0,0,0,0,0,0,4,0,0,0,0,4,0,7,0,2,0,2,3,0,0,0,0,0,0,0,0,5,5,0,0,0,0,0,0,0,0,0,0,0,0,0,0,0,0,0,0,0]
["Goshen","0004207","30500",741,26,24,0,0,0,0,0,0,0,2,0,3,4,5,0,2,2,4,2,0,0,0,0,2,630,26,0,0,7,9,2,0,0,2,4,2,26,4,0,0,0,0,4,0,4,0,0,0,0,2,2,5,0,3,2,0,0,0,11,7,4,0,0,0,0,2,0,2,0,0,0,0,0,0,0,0,0,0,0,0,0,0,0,0,0,0]
["Grantham","0004212","31220",2167,103,98,0,0,0,0,0,0,0,3,3,3,5,3,2,4,4,8,7,44,8,2,2,5,1040,103,7,19,15,10,20,2,7,2,13,8,103,8,0,0,0,0,5,3,6,0,0,0,0,6,0,13,0,0,6,2,5,0,17,2,2,5,0,6,2,28,14,5,9,0,0,0,27,21,3,0,0,0,3,4,4,0,0,0,0,0]
["Langdon","0004218","40900",586,18,13,0,0,0,0,0,0,0,0,0,4,2,4,0,3,0,0,0,0,0,0,0,5,606,18,0,2,4,0,5,2,0,0,0,5,18,0,0,0,0,0,0,0,4,0,0,0,2,0,2,5,0,0,2,0,0,3,3,0,0,3,0,0,0,6,6,0,0,0,0,0,0,0,0,0,0,0,0,0,0,0,0,0,0,0]
["Lempster","0004223","41700",971,37,29,0,0,2,2,0,0,4,0,0,8,6,0,2,2,3,0,0,0,0,0,0,8,541,37,3,2,9,4,5,0,0,0,6,8,37,2,0,0,0,0,0,2,13,4,0,0,0,6,3,8,3,0,5,0,0,0,9,2,4,0,0,0,3,3,3,0,0,0,0,0,0,0,0,0,0,0,0,2,2,0,0,0,0,0]
["Newport","0004228","52580",6269,832,822,10,11,21,41,56,48,41,0,64,115,96,30,102,44,0,73,52,0,9,9,0,10,552,832,50,60,143,154,92,57,46,27,161,42,832,185,0,11,10,0,132,32,155,10,31,17,29,68,0,196,49,48,45,28,16,10,206,113,55,20,0,18,0,73,64,9,0,0,0,0,8,8,0,0,0,0,0,9,9,0,0,0,0,0]
["Plainfield","0004254","62340",2241,72,66,0,0,2,0,0,2,4,4,2,0,6,6,2,9,4,4,9,10,2,0,0,6,728,72,8,8,12,12,9,9,0,4,4,6,72,2,0,0,0,0,2,0,11,0,2,0,0,4,5,11,0,2,5,2,2,0,19,10,0,2,7,0,0,20,10,8,2,0,0,0,7,6,0,0,0,0,1,2,2,0,0,0,0,0]
["Springfield","0004260","72740",945,49,41,0,0,0,0,0,2,2,0,8,2,0,0,4,8,2,2,4,7,0,0,0,8,716,49,0,8,16,6,0,7,0,4,0,8,49,0,0,0,0,0,0,0,4,0,0,0,0,2,2,15,2,0,0,7,2,4,14,8,6,0,0,0,0,11,9,0,0,0,0,2,2,2,0,0,0,0,0,3,3,0,0,0,0,0]
["Sunapee","0004265","75060",3055,315,295,0,0,0,0,5,0,6,13,29,29,46,4,18,33,25,25,10,39,6,7,0,20,693,315,10,37,64,59,28,26,10,4,57,20,315,22,0,0,0,0,22,0,53,0,0,0,13,29,11,80,10,30,15,0,20,5,66,40,7,13,6,0,0,63,34,22,0,7,0,0,31,27,0,0,0,0,4,0,0,0,0,0,0,0]
["Unity","0004274","77940",1530,30,27,0,0,0,0,0,3,0,2,3,0,0,2,0,8,2,7,0,0,0,0,0,3,722,30,0,0,0,7,5,2,0,6,7,3,30,5,0,0,0,0,5,0,12,0,0,3,0,6,3,4,0,0,0,2,2,0,9,0,7,2,0,0,0,0,0,0,0,0,0,0,0,0,0,0,0,0,0,0,0,0,0,0,0,0]
["Washington","0004279","78980",895,23,18,0,0,0,0,0,0,0,0,0,4,2,2,6,1,3,0,0,0,0,0,0,5,658,23,0,2,2,2,4,0,2,5,1,5,23,1,0,0,0,0,1,0,5,0,0,0,0,5,0,8,0,2,4,0,2,0,7,2,0,0,0,0,5,2,2,0,0,0,0,0,0,0,0,0,0,0,0,0,0,0,0,0,0,0]
[]
[]
[]
[]
[]
[]
[]
[]
[]
[]
[]
[]
[]
[]
[]
[]
[]
[]
[]
[]
[]
[]
[]
[]
[]
[]
[]
[]
[]
[]
[]
[]
[]
["Census 2000 SummaryFile3 Sample Data  -  SF3TownQry8HousingCostB"]
[]
["TOWN_NAME","LOGRECNO","COUSUB","TotalPop","H74SpecOwnerOccHU","H74OOHU<10k","H74OOHU10to15k","H74OOHU15to20k","H74OOHU20to25k","H74OOHU25to30k","H74OOHU30to35k","H74OOHU35to40k","H74OOHU40to50k","H74OOHU50to60k","H74OOHU60to70k","H74OOHU70to80k","H74OOHU80to90k","H74OOHU90to100k","H74OOHU100to125k","H74OOHU125to150k","H74OOHU150to175k","H74OOHU175to200k","H74OOHU200to250k","H74OOHU250to300k","H74OOHU300to400k","H74OOHU400to500k","H74OOHU500to750k","H74OOHU750to1000k","H74OOHU1000kmore","H76OOHUMedianVal","H84OwnerOccHU","H84AllOOHU<10k","H84AllOOHU10to15k","H84AllOOHU15to20k","H84AllOOHU20to25k","H84AllOOHU25to30k","H84AllOOHU30to35k","H84AllOOHU35to40k","H84AllOOHU40to50k","H84AllOOHU50to60k","H84AllOOHU60to70k","H84AllOOHU70to80k","H84AllOOHU80to90k","H84AllOOHU90to100k","H84AllOOHU100to125k","H84AllOOHU125to150k","H84AllOOHU150to175k","H84AllOOHU175to200k","H84AllOOHU200to250k","H84AllOOHU250to300k","H84AllOOHU300to400k","H84AllOOHU400to500k","H84AllOOHU500to750k","H84AllOOHU750to1000k","H84AllOOHU1000kmore","H85OOHUMedVal","H90SOOHU","H90HUwMorgt","H90HUwMtgHC<200","H90HUwMtgHC200to300","H90HUwMtgHC300to400","H90HUwMtgHC400to500","H90HUwMtgHC500to600","H90HUwMtgHC600to700","H90HUwMtgHC700to800","H90HUwMtgHC800to900","H90HUwMtgHC900to1000","H90HUwMtgHC1000to1250","H90HUwMtgHC1250to1500","H90HUwMtgHC1500to2000","H90HUwMtgHC2000to2500","H90HUwMtgHC2500to3000","H90HUwMtgHC3000orMore","H90HUwOutMorgt","H90HUwOutMtgHC<100","H90HUwOutMtgHC100to150","H90HUwOutMtgHC150to200","H90HUwOutMtgHC200to250","H90HUwOutMtgHC250to300","H90HUwOutMtgHC300to350","H90HUwOutMtgHC350to400","H90HUwOutMtgHC400to500","H90HUwOutMtgHC500to600","H90HUwOutMtgHC600to700","H90HUwOutMtgHC700to800","H90HUwOutMtgHC800to900","H90HUwOutMtgHC900to1000","H90HUwOutMtgHC1000orMore","H91MedianOCHUwMtg","H91MedianOCHUwOutMtg","H94SpecOOHU","H94HUwMortg","H94HUwMtgHC<10pct","H94HUwMtgHC10to15pct","H94HUwMtgHC15to20pct","H94HUwMtgHC20to25pct","H94HUwMtgHC25to30pct","H94HUwMtgHC30to35pct","H94HUwMtgHC35to40pct","H94HUwMtgHC40to50pct","H94HUwMtgHC50pctOrMore","H94HUwMtgHCpctNotComp","H94HUWOutMortg","H94HUWOutMortgHC<10pct","H94HUWOutMortgHC10to15pct","H94HUWOutMortgHC15to20pct","H94HUWOutMortgHC20to25pct","H94HUWOutMortgHC25to30pct","H94HUWOutMortgHC30to35pct","H94HUWOutMortgHC35to40pct","H94HUWOutMortgHC40to50pct","H94HUWOutMortgHC50pctOrMore","H94HUWOutMortgHCpctNotComp","H97SpecifOwnOccHU","H97SOOHUInc<10k","H97SOOHUInc<10kHC<20pct","H97SOOHUInc<10kHC20to25pct","H97SOOHUInc<10kHC25to30pct","H97SOOHUInc<10kHC30to35pct","H97SOOHUInc<10kHC>35pct","H97SOOHUInc<10kHCpctNotComput","H97SOOHUInc10to20k","H97SOOHUInc10to20kHC<20pct","H97SOOHUInc10to20kHC20to25pct","H97SOOHUInc10to20kHC25to30pct","H97SOOHUInc10to20kHC30to35pct","H97SOOHUInc10to20kHC>35pct","H97SOOHUInc10to20kHCpctNotComput","H97SOOHUInc20to35k","H97SOOHUInc20to35kRC<20pct","H97SOOHUInc20to35kRC20to25pct","H97SOOHUInc20to35kRC25to30pct","H97SOOHUInc20to35kRC30to35pct","H97SOOHUInc20to35kRC>35pct","H97SOOHUInc20to35kRCpctNotComput","H97SOOHUInc35to50k","H97SOOHUInc35to50kRC<20pct","H97SOOHUInc35to50kRC20to25pct","H97SOOHUInc35to50kRC25to30pct","H97SOOHUInc35to50kRC30to35pct","H97SOOHUInc35to50kRC>35pct","H97SOOHUInc35to50kRCpctNotCompute","H97SOOHUInc50to75k","H97SOOHUInc50to75kRC<20pct","H97SOOHUInc50to75kRC20to25pct","H97SOOHUInc50to75kRC25to30pct","H97SOOHUInc50to75kRC30to35pct","H97SOOHUInc50to75kRC>35pct","H97SOOHUInc50to75kRCpctNotComput","H97SOOHUInc75to100k","H97SOOHUInc75to100kRC<20pct","H97SOOHUInc75to100kRC20to25pct","H97SOOHUInc75to100kRC25to30pct","H97SOOHUInc75to100kRC30to35pct","H97SOOHUInc75to100kRC>35pct","H97SOOHUInc75to100kRCpctNotCompute","H97SOOHUInc100to150k","H97SOOHUInc100to150kRC<20pct","H97SOOHUInc100to150kRC20to25pct","H97SOOHUInc100to150kRC25to30pct","H97SOOHUInc100to150kRC30to35pct","H97SOOHUInc100to150kRC>35pct","H97SOOHUInc100to150kRCpctNotCompute","H97SOOHUInc>150k","H97SOOHUInc>150kRC<20pct","H97SOOHUInc>150kRC20to25pct","H97SOOHUInc>150kRC25to30pct","H97SOOHUInc>150kRC30to35pct","H97SOOHUInc>150kRC>35pct","H97SOOHUInc>150kRCpctNotCompute"]
["Acworth","0004141","00260",836,124,0,0,0,5,0,1,2,4,4,7,18,17,15,25,9,2,7,2,4,0,0,2,0,0,92700,263,0,0,3,7,6,1,8,9,8,18,27,33,27,48,19,9,13,17,8,0,0,2,0,0,94300,124,68,0,0,0,2,9,4,5,20,2,18,4,2,2,0,0,56,0,0,4,7,11,3,2,14,9,6,0,0,0,0,870,407,124,68,2,15,12,12,19,6,0,0,2,0,56,18,8,10,5,4,2,0,2,6,1,124,9,0,0,0,0,8,1,9,4,1,2,2,0,0,23,10,4,7,2,0,0,29,14,4,7,2,2,0,35,20,8,5,2,0,0,15,13,0,2,0,0,0,4,4,0,0,0,0,0,0,0,0,0,0,0,0]
["Charlestown","0004146","11380",4749,761,0,0,0,0,6,0,6,27,53,101,171,113,108,67,74,12,5,7,7,0,0,0,4,0,81500,1464,96,49,70,54,6,52,33,82,104,146,214,150,128,123,87,31,16,7,7,5,0,0,4,0,71900,761,502,0,0,0,12,45,73,48,109,82,66,54,6,7,0,0,259,0,0,0,20,29,49,19,55,60,11,0,16,0,0,867,423,761,502,28,96,122,99,52,41,17,29,12,6,259,53,60,63,34,17,6,6,5,15,0,761,27,0,0,0,0,21,6,59,9,10,11,6,23,0,138,48,22,23,12,33,0,203,124,32,24,23,0,0,216,129,63,11,6,7,0,77,71,6,0,0,0,0,35,35,0,0,0,0,0,6,6,0,0,0,0,0]
["Claremont","0004169","12900",13151,2355,0,0,6,0,22,0,15,80,130,386,548,357,259,313,135,33,32,13,0,15,5,0,6,0,79800,3279,13,25,29,18,121,0,68,137,216,499,626,424,338,372,176,77,51,39,0,39,5,0,6,0,78200,2355,1465,0,0,13,39,100,106,153,302,205,370,76,63,32,6,0,890,0,8,0,11,88,179,177,228,148,30,21,0,0,0,910,395,2355,1465,79,213,287,354,217,110,36,89,80,0,890,199,235,160,94,40,53,6,31,64,8,2355,114,0,8,0,8,98,0,191,17,16,35,38,85,0,402,176,82,21,44,79,0,559,246,101,119,58,35,0,694,402,193,75,15,9,0,247,213,27,7,0,0,0,104,83,21,0,0,0,0,44,36,0,0,0,0,8]
["Cornish","0004197","15060",1661,298,0,0,0,0,5,0,2,6,9,19,28,43,26,63,48,16,18,9,6,0,0,0,0,0,104400,564,0,2,0,0,9,3,4,13,13,28,40,59,51,86,87,47,33,35,22,13,9,4,4,2,117400,298,209,0,0,3,2,2,22,16,24,35,63,19,14,9,0,0,89,0,0,8,9,9,9,17,19,9,5,0,4,0,0,1002,378,298,209,18,24,42,55,25,10,6,16,13,0,89,30,17,7,6,2,3,6,7,8,3,298,23,0,0,2,0,18,3,21,4,3,0,3,11,0,41,9,3,4,4,21,0,40,18,10,4,4,4,0,104,57,32,11,2,2,0,34,18,10,6,0,0,0,26,23,3,0,0,0,0,9,9,0,0,0,0,0]
["Croydon","0004202","16340",661,150,0,0,0,0,0,0,0,4,4,13,9,13,20,46,24,8,2,5,0,2,0,0,0,0,106500,246,0,0,0,0,3,5,6,9,12,18,24,22,24,53,34,10,7,11,0,2,2,2,0,2,100000,150,115,0,0,2,14,6,4,17,14,11,27,15,2,3,0,0,35,0,0,0,2,8,10,4,4,5,2,0,0,0,0,905,338,150,115,9,23,22,14,9,14,12,10,2,0,35,15,2,8,4,4,0,2,0,0,0,150,2,0,0,0,0,2,0,10,2,0,4,4,0,0,32,8,4,0,4,16,0,25,9,7,0,3,6,0,57,41,5,6,3,2,0,18,16,2,0,0,0,0,6,3,0,3,0,0,0,0,0,0,0,0,0,0]
["Goshen","0004207","30500",741,159,2,0,0,0,2,0,0,6,15,15,16,18,24,30,21,7,3,0,0,0,0,0,0,0,92300,252,2,0,0,0,2,2,2,14,15,18,18,28,34,41,35,19,10,5,0,3,2,2,0,0,97400,159,117,0,0,2,0,7,13,19,26,12,23,13,2,0,0,0,42,0,0,6,0,6,7,3,13,2,2,0,0,0,3,867,383,159,117,5,15,24,26,20,8,0,2,17,0,42,10,14,2,0,2,7,0,2,3,2,159,6,0,0,2,0,2,2,20,0,0,0,7,13,0,28,7,3,6,5,7,0,38,12,14,7,3,2,0,46,30,9,7,0,0,0,11,11,0,0,0,0,0,8,8,0,0,0,0,0,2,2,0,0,0,0,0]
["Grantham","0004212","31220",2167,710,0,0,0,0,0,0,0,5,3,11,16,20,43,89,139,79,76,81,69,46,26,5,2,0,159200,816,0,0,0,0,0,0,10,7,6,13,19,22,43,97,150,91,83,98,78,57,28,12,2,0,161300,710,459,0,0,2,0,13,19,15,19,26,113,113,97,25,7,10,251,0,2,2,5,19,22,6,59,51,38,20,19,6,2,1300,521,710,459,35,51,79,110,71,38,18,25,29,3,251,95,71,32,22,2,0,6,5,14,4,710,25,0,0,0,0,18,7,14,2,0,0,0,12,0,80,16,23,10,0,31,0,101,52,11,15,6,17,0,211,84,46,38,26,17,0,120,75,39,4,2,0,0,103,80,11,6,4,2,0,56,54,2,0,0,0,0]
["Langdon","0004218","40900",586,120,0,0,0,0,2,0,0,0,11,4,8,30,8,24,11,13,2,4,0,3,0,0,0,0,96300,211,0,0,0,0,2,2,0,2,26,6,17,35,8,50,17,19,4,8,2,7,0,6,0,0,103800,120,84,0,0,2,4,4,10,9,9,11,19,8,5,3,0,0,36,0,0,4,2,3,15,0,6,5,1,0,0,0,0,936,330,120,84,4,17,5,20,16,2,6,4,10,0,36,12,10,5,2,1,4,0,0,0,2,120,4,0,0,0,0,2,2,12,0,2,0,2,8,0,25,12,2,3,4,4,0,37,17,9,5,0,6,0,29,11,9,9,0,0,0,2,2,0,0,0,0,0,0,0,0,0,0,0,0,11,11,0,0,0,0,0]
["Lempster","0004223","41700",971,159,2,2,2,6,0,0,4,19,2,12,22,26,27,17,11,5,0,2,0,0,0,0,0,0,83300,340,2,2,8,6,1,6,6,32,9,27,41,39,46,61,23,11,0,14,0,2,0,2,0,2,87700,159,100,0,0,2,0,11,15,6,16,15,28,7,0,0,0,0,59,2,0,0,14,1,5,9,17,10,1,0,0,0,0,900,392,159,100,3,11,20,27,10,11,5,4,7,2,59,23,13,9,5,2,0,4,0,3,0,159,7,2,0,0,0,3,2,12,0,2,2,0,8,0,41,16,7,6,5,7,0,40,14,11,4,6,5,0,41,29,12,0,0,0,0,10,10,0,0,0,0,0,2,2,0,0,0,0,0,6,6,0,0,0,0,0]
["Newport","0004228","52580",6269,1162,8,0,0,0,17,0,8,33,95,227,177,172,132,190,46,32,16,9,0,0,0,0,0,0,80900,1641,44,9,35,9,41,29,16,115,95,238,205,228,165,216,94,48,45,9,0,0,0,0,0,0,79200,1162,733,0,0,0,19,54,32,87,160,112,159,79,23,8,0,0,429,0,0,10,9,66,67,91,89,81,16,0,0,0,0,913,384,1162,733,33,110,159,138,106,40,42,35,70,0,429,159,79,58,39,18,8,11,48,9,0,1162,58,0,0,0,0,58,0,108,0,19,9,8,72,0,207,78,20,17,23,69,0,207,72,59,51,9,16,0,378,269,62,47,0,0,0,123,107,8,0,8,0,0,74,65,9,0,0,0,0,7,7,0,0,0,0,0]
["Plainfield","0004254","62340",2241,368,0,0,0,0,0,2,2,6,0,9,30,43,48,80,51,34,24,27,12,0,0,0,0,0,113800,741,3,0,6,6,5,7,2,8,11,30,39,53,61,128,83,80,63,71,56,15,8,2,2,2,128500,368,281,0,0,0,7,11,15,15,23,48,73,28,46,15,0,0,87,2,0,0,5,3,10,11,27,11,12,2,4,0,0,1074,446,368,281,18,26,54,64,34,39,13,15,18,0,87,23,18,16,12,3,0,3,3,5,4,368,10,0,0,0,0,6,4,27,3,2,3,0,19,0,46,13,13,3,2,15,0,87,20,18,16,24,9,0,98,45,29,12,4,8,0,54,31,11,3,9,0,0,29,26,3,0,0,0,0,17,17,0,0,0,0,0]
["Springfield","0004260","72740",945,183,0,0,0,0,0,3,0,0,2,10,10,18,16,45,21,16,17,19,4,2,0,0,0,0,118100,319,6,0,7,3,0,3,5,21,17,12,10,22,19,62,35,23,26,30,11,7,0,0,0,0,113900,183,141,0,0,2,2,11,6,6,14,12,52,26,10,0,0,0,42,0,0,0,0,7,2,5,8,8,10,2,0,0,0,1084,488,183,141,5,28,19,46,5,7,7,9,12,3,42,10,21,2,0,3,2,2,2,0,0,183,7,0,0,0,0,4,3,8,0,0,0,2,6,0,37,8,7,6,0,16,0,25,8,8,0,3,6,0,51,23,24,0,4,0,0,37,30,5,2,0,0,0,8,6,2,0,0,0,0,10,10,0,0,0,0,0]
["Sunapee","0004265","75060",3055,784,0,0,0,0,0,5,4,5,16,22,21,94,53,122,113,84,36,58,30,50,22,29,0,20,136100,973,0,6,4,0,18,12,4,9,21,33,26,106,57,128,131,97,40,85,52,53,31,35,0,25,136900,784,440,0,0,7,5,9,18,54,63,41,111,74,35,9,4,10,344,4,0,5,0,58,56,21,88,24,0,20,29,9,30,1052,432,784,440,19,42,123,118,38,18,21,41,20,0,344,134,82,39,27,19,15,0,5,19,4,784,13,0,0,0,0,9,4,57,0,9,10,5,33,0,111,46,13,6,9,37,0,184,89,34,29,9,23,0,199,123,59,3,10,4,0,87,71,16,0,0,0,0,90,77,9,4,0,0,0,43,33,5,5,0,0,0]
["Unity","0004274","77940",1530,213,0,0,0,0,0,0,2,3,4,35,23,49,31,33,11,8,7,3,2,2,0,0,0,0,88100,468,3,0,2,2,4,11,14,30,22,59,45,62,41,76,33,15,18,16,8,7,0,0,0,0,86800,213,154,0,0,0,7,9,18,22,30,20,31,9,8,0,0,0,59,0,2,0,3,5,19,8,19,3,0,0,0,0,0,870,353,213,154,4,14,41,29,23,10,7,10,16,0,59,24,13,3,2,5,6,0,0,6,0,213,6,0,0,0,0,6,0,20,0,0,0,6,14,0,36,5,6,12,2,11,0,55,23,9,12,8,3,0,75,50,16,4,0,5,0,16,16,0,0,0,0,0,5,5,0,0,0,0,0,0,0,0,0,0,0,0]
["Washington","0004279","78980",895,252,0,3,0,0,0,7,3,7,11,14,15,11,32,55,35,20,9,19,11,0,0,0,0,0,110500,338,0,3,2,0,4,10,3,10,11,16,27,22,35,70,43,22,9,22,23,6,0,0,0,0,109300,252,160,0,0,0,5,8,14,18,16,14,38,22,18,7,0,0,92,0,3,5,11,6,4,7,28,14,10,2,2,0,0,1033,436,252,160,2,19,39,37,19,13,9,8,14,0,92,25,18,14,10,7,2,4,0,12,0,252,11,0,0,0,0,11,0,27,7,2,5,2,11,0,56,18,8,4,6,20,0,35,17,10,2,4,2,0,77,36,25,10,3,3,0,21,18,0,3,0,0,0,17,13,2,2,0,0,0,8,8,0,0,0,0,0]
[]
[]
[]
[]
[]
[]
[]
[]
[]
[]
[]
[]
[]
[]
[]
[]
[]
[]
[]
[]
[]
[]
[]
[]
[]
[]
[]
[]
[]
[]
[]
[]
[]
["Census 2000 SummaryFile3 Sample Data  -  SF3TownQry9HHIncomeByTenure"]
[]
["TOWN_NAME","LOGRECNO","COUSUB","NAME","COUNTY","TotalPop","HCT11OccHU","HCT11OwnOccHU","HCT11OOHUInc<5K","HCT11OOHUInc5to10K","HCT11OOHUInc10to15K","HCT11OOHUInc15to20K","HCT11OOHUInc20to25K","HCT11OOHUInc25to35K","HCT11OOHUInc35to50K","HCT11OOHUInc50to75K","HCT11OOHUInc75to100K","HCT11OOHUInc100to150K","HCT11OOHUInc>150K","HCT11RentOccHU","HCT11ROHUInc<5K","HCT11ROHUInc5to10K","HCT11ROHUInc10to15K","HCT11ROHUInc15to20K","HCT11ROHUInc20to25K","HCT11ROHUInc25to35K","HCT11ROHUInc35to50K","HCT11ROHUInc50to75K","HCT11ROHUInc75to100K","HCT11ROHUInc100to150K","HCT11ROHUInc>150K","HCT12MedHHInc","HCT12MedOwnOccHHInc","HCT12MedRentOccHHInc","SummaryLevel"]
["Acworth","0004141","00260","Acworth town","019",836,319,263,5,8,7,36,15,43,59,53,21,12,4,56,7,4,6,5,2,12,9,6,3,0,2,37375,40078,26667,"060"]
["Charlestown","0004146","11380","Charlestown town","019",4749,1920,1464,24,58,58,90,61,282,341,334,154,51,11,456,17,31,32,95,73,59,75,56,5,0,13,37381,41768,23780,"060"]
["Claremont","0004169","12900","Claremont city","019",13151,5685,3279,50,108,151,211,210,435,703,844,352,127,88,2406,59,420,240,333,242,405,329,301,37,25,15,34658,44048,23363,"060"]
["Cornish","0004197","15060","Cornish town","019",1661,645,564,8,19,26,29,21,52,76,169,79,64,21,81,0,0,6,8,8,12,21,24,0,0,2,53250,55800,40893,"060"]
["Croydon","0004202","16340","Croydon town","019",661,268,246,0,8,12,5,13,39,43,72,28,19,7,22,0,0,0,4,3,4,2,5,4,0,0,50167,50500,32500,"060"]
["Goshen","0004207","30500","Goshen town","019",741,280,252,2,7,12,23,8,34,54,68,18,16,10,28,0,4,2,2,2,3,13,2,0,0,0,42500,44000,36250,"060"]
["Grantham","0004212","31220","Grantham town","019",2167,925,816,15,10,9,12,32,62,124,229,135,124,64,109,8,0,3,3,7,6,23,28,27,2,2,63207,64342,56250,"060"]
["Langdon","0004218","40900","Langdon town","019",586,236,211,6,4,6,14,7,36,54,41,18,8,17,25,2,0,0,4,2,3,6,6,2,0,0,42500,43250,36250,"060"]
["Lempster","0004223","41700","Lempster town","019",971,387,340,6,15,8,22,21,68,86,79,18,6,11,47,0,2,8,5,0,10,12,8,0,2,0,40216,41019,28125,"060"]
["Newport","0004228","52580","Newport town","019",6269,2473,1641,10,78,65,88,155,190,344,443,162,99,7,832,51,134,124,31,28,168,206,73,8,0,9,36961,44911,27983,"060"]
["Plainfield","0004254","62340","Plainfield town","019",2241,844,741,9,10,20,26,35,62,139,195,116,67,62,103,3,4,4,11,8,9,28,24,7,2,3,57069,59813,38750,"060"]
["Springfield","0004260","72740","Springfield town","019",945,381,319,3,10,13,7,9,58,61,72,60,13,13,62,0,4,2,2,2,13,21,11,2,5,0,45972,49375,37857,"060"]
["Sunapee","0004265","75060","Sunapee town","019",3055,1294,973,13,10,33,44,52,82,225,233,102,116,63,321,8,14,17,36,20,60,66,69,31,0,0,48527,52589,36964,"060"]
["Unity","0004274","77940","Unity town","019",1530,504,468,5,13,27,14,44,48,113,135,44,18,7,36,5,2,2,12,2,2,11,0,0,0,0,42014,44500,19063,"060"]
["Washington","0004279","78980","Washington town","019",895,369,338,9,4,10,30,15,56,57,98,32,17,10,31,1,0,0,7,2,6,9,4,2,0,0,45104,47000,29688,"060"]
[]
[]
[]
[]
[]
[]
[]
[]
[]
[]
[]
[]
[]
[]
[]
[]
[]
[]
[]
[]
[]
[]
[]
[]
[]
[]
[]
[]
[]
[null,null,null,null,null,null,null,null,null,null,null,null,null,null,null,null,null,null,null,null,null,null,null,null,null,null,null,null,null,null,null,null,null,null,null,null,null,null,null,null,null,null,null,null,null,null,null,null,null,null,null,null,null,null,null,null,null,null,null,null,null,null,null,null,null,null,null,null,null,null,null,null,null,null,null,null,null,null,null,null,null,null,null,null,null,null,null,null,null,null,null,null,null,null,null,null,null,null,null,null,0,7,3,4,28]
[null,null,null,null,null,null,null,null,null,null,null,null,null,null,null,null,null,null,null,null,null,null,null,null,null,null,null,null,null,null,null,null,null,null,null,null,null,null,null,null,null,null,null,null,null,null,null,null,null,null,null,null,null,null,null,null,null,null,null,null,null,null,null,null,null,null,null,null,null,null,null,null,null,null,null,null,null,null,null,null,null,null,null,null,null,null,null,null,null,null,null,null,null,null,null,null,null,null,null,null,3,20,7,13,29]
[null,null,null,null,null,null,null,null,null,null,null,null,null,null,null,null,null,null,null,null,null,null,null,null,null,null,null,null,null,null,null,null,null,null,null,null,null,null,null,null,null,null,null,null,null,null,null,null,null,null,null,null,null,null,null,null,null,null,null,null,null,null,null,null,null,null,null,null,null,null,null,null,null,null,null,null,null,null,null,null,null,null,null,null,null,null,null,null,null,null,null,null,null,null,null,null,null,null,null,null,0,0,0,0,0]
[null,null,null,null,null,null,null,null,null,null,null,null,null,null,null,null,null,null,null,null,null,null,null,null,null,null,null,null,null,null,null,null,null,null,null,null,null,null,null,null,null,null,null,null,null,null,null,null,null,null,null,null,null,null,null,null,null,null,null,null,null,null,null,null,null,null,null,null,null,null,null,null,null,null,null,null,null,null,null,null,null,null,null,null,null,null,null,null,null,null,null,null,null,null,null,null,null,null,null,null,0,0,0,0,0]
["Census 2000 SummaryFile3 Sample Data - SF3TownQry10aDisabil",null,null,null,null,null,null,null,null,null,null,null,null,null,null,null,null,null,null,null,null,null,null,null,null,null,null,null,null,null,null,null,null,null,null,null,null,null,null,null,null,null,null,null,null,null,null,null,null,null,null,null,null,null,null,null,null,null,null,null,null,null,null,null,null,null,null,null,null,null,null,null,null,null,null,null,null,null,null,null,null,null,null,null,null,null,null,null,null,null,null,null,null,null,null,null,null,null,null,null,0,0,0,0,0]
[null,null,null,null,null,null,null,null,null,null,null,null,null,null,null,null,null,null,null,null,null,null,null,null,null,null,null,null,null,null,null,null,null,null,null,null,null,null,null,null,null,null,null,null,null,null,null,null,null,null,null,null,null,null,null,null,null,null,null,null,null,null,null,null,null,null,null,null,null,null,null,null,null,null,null,null,null,null,null,null,null,null,null,null,null,null,null,null,null,null,null,null,null,null,null,null,null,null,null,null,2,38,9,29,98]
["TOWN_NAME","LOGRECNO","COUSUB","TotalPop","PCT026001","PCT026002","PCT026003","PCT026004","PCT026005","PCT026006","PCT026007","PCT026008","PCT026009","PCT026010","PCT026011","PCT026012","PCT026013","PCT026014","PCT026015","PCT026016","PCT026017","PCT026018","PCT026019","PCT026020","PCT026021","PCT026022","PCT026023","PCT026024","PCT026025","PCT026026","PCT026027","PCT026028","PCT026029","PCT026030","PCT026031","PCT026032","PCT026033","PCT026034","PCT026035","PCT026036","PCT026037","PCT026038","PCT026039","PCT026040","PCT026041","PCT026042","PCT026043","PCT026044","PCT026045","PCT026046","PCT026047","PCT026048","PCT026049","PCT026050","PCT026051","PCT026052","PCT026053","PCT026054","PCT026055","PCT026056","PCT026057","PCT026058","PCT026059","PCT026060","PCT026061","PCT026062","PCT026063","PCT026064","PCT026065","PCT026066","PCT026067","PCT026068","PCT026069","PCT026070","PCT026071","PCT026072","PCT026073","PCT026074","PCT026075","PCT026076","PCT026077","PCT026078","PCT026079","PCT026080","PCT026081","PCT026082","PCT026083","PCT026084","PCT026085","PCT026086","PCT026087","PCT026088","PCT026089","PCT026090","PCT026091","PCT026092","PCT026093","PCT026094","PCT026095","PCT026096","PCT026097","PCT026098","PCT026099","PCT026100","PCT026101"]
["Acworth","0004141","00260",836,799,416,75,0,0,0,0,0,0,0,0,75,31,2,0,0,2,0,0,0,0,0,0,0,0,29,248,32,3,12,5,0,0,12,25,7,18,8,10,191,62,13,1,10,0,0,2,2,2,0,47,383,67,0,0,0,0,0,0,0,0,67,24,0,0,0,0,0,0,0,0,0,0,0,0,24,224,15,0,3,0,0,0,12,12,6,6,0,6,197,68,4,0,4,0,0,0,10,1,9,54]
["Charlestown","0004146","11380",4749,4455,2199,348,20,0,0,20,0,14,7,7,314,194,29,0,0,7,0,0,22,14,0,14,14,0,151,1377,187,19,36,23,0,0,109,136,23,113,43,70,1054,280,70,24,20,6,0,20,90,11,79,120,2256,392,29,0,0,29,0,0,0,0,363,130,13,5,4,0,0,0,4,10,0,10,4,6,107,1361,99,11,24,0,0,7,57,112,32,80,22,58,1150,373,91,5,35,23,0,28,111,72,39,171]
["Claremont","0004169","12900",13151,12309,5924,1000,87,18,0,64,5,12,7,5,901,389,24,0,0,0,0,0,24,24,5,19,0,19,341,3682,549,62,117,80,0,0,290,348,71,277,38,239,2785,853,167,38,98,0,0,31,186,37,149,500,6385,990,15,6,0,9,0,6,6,0,969,361,18,0,13,0,0,0,5,22,0,22,0,22,321,3752,377,65,86,22,0,12,192,354,48,306,9,297,3021,1282,310,60,152,12,6,80,281,68,213,691]
["Cornish","0004197","15060",1661,1582,781,139,4,0,0,4,0,3,3,0,132,52,7,0,0,7,0,0,0,0,0,0,0,0,45,493,25,1,18,0,0,0,6,45,13,32,0,32,423,97,34,13,19,2,0,0,11,4,7,52,801,152,11,0,2,9,0,0,0,0,141,47,3,0,0,0,0,0,3,0,0,0,0,0,44,498,26,4,5,8,0,2,7,23,4,19,5,14,449,104,11,6,5,0,0,0,19,2,17,74]
["Croydon","0004202","16340",661,653,331,47,3,0,3,0,0,4,2,2,40,24,4,0,0,0,0,0,4,2,0,2,0,2,18,231,21,0,2,4,0,0,15,23,9,14,3,11,187,29,11,0,8,3,0,0,8,3,5,10,322,45,0,0,0,0,0,0,0,0,45,27,0,0,0,0,0,0,0,3,3,0,0,0,24,207,17,0,7,1,0,0,9,14,2,12,2,10,176,43,5,0,5,0,0,0,13,7,6,25]
["Goshen","0004207","30500",741,710,344,56,4,2,0,2,0,0,0,0,52,32,3,0,0,3,0,0,0,2,0,2,0,2,27,198,26,5,7,3,0,0,11,9,0,9,0,9,163,58,15,3,6,0,0,6,5,0,5,38,366,47,0,0,0,0,0,2,2,0,45,21,0,0,0,0,0,0,0,0,0,0,0,0,21,235,25,5,5,0,0,0,15,7,2,5,0,5,203,63,12,0,9,0,0,3,8,6,2,43]
["Grantham","0004212","31220",2167,2064,1025,150,9,0,0,9,0,3,3,0,138,32,2,0,0,2,0,0,0,0,0,0,0,0,30,583,26,9,2,0,2,2,11,24,10,14,6,8,533,260,38,16,22,0,0,0,14,8,6,208,1039,126,2,0,0,2,0,0,0,0,124,42,3,0,0,3,0,0,0,0,0,0,0,0,39,653,26,2,4,0,0,2,18,16,3,13,2,11,611,218,15,2,9,0,0,4,15,4,11,188]
["Langdon","0004218","40900",586,561,275,46,10,0,0,10,0,0,0,0,36,20,2,2,0,0,0,0,0,1,0,1,1,0,17,178,17,7,3,2,0,0,5,8,0,8,0,8,153,31,9,3,4,2,0,0,2,2,0,20,286,40,2,0,0,2,0,0,0,0,38,19,0,0,0,0,0,0,0,0,0,0,0,0,19,185,11,4,2,0,0,0,5,17,4,13,7,6,157,42,4,0,2,2,0,0,7,5,2,31]
["Lempster","0004223","41700",971,922,476,79,18,0,3,15,0,0,0,0,61,21,0,0,0,0,0,0,0,0,0,0,0,0,21,306,42,7,13,4,0,0,18,19,7,12,2,10,245,70,9,3,6,0,0,0,16,2,14,45,446,87,12,2,0,10,0,0,0,0,75,25,3,3,0,0,0,0,0,0,0,0,0,0,22,271,2,0,2,0,0,0,0,20,6,14,3,11,249,63,14,2,8,0,0,4,13,1,12,36]
["Newport","0004228","52580",6269,5797,2842,605,94,0,0,94,0,41,15,26,470,171,14,0,0,14,0,0,0,35,0,35,0,35,122,1679,216,59,43,10,0,9,95,195,39,156,54,102,1268,387,97,38,29,8,0,22,49,8,41,241,2955,487,41,0,0,41,0,10,0,10,436,153,6,0,0,0,0,6,0,32,0,32,10,22,115,1790,153,21,40,10,7,11,64,223,83,140,24,116,1414,525,85,15,54,0,0,16,139,58,81,301]
["Plainfield","0004254","62340",2241,2095,1053,192,5,0,0,5,0,5,2,3,182,61,3,0,0,3,0,0,0,1,1,0,0,0,57,684,42,5,14,4,2,0,17,30,4,26,3,23,612,116,21,11,6,2,2,0,14,11,3,81,1042,164,5,0,0,4,1,3,0,3,156,52,0,0,0,0,0,0,0,0,0,0,0,0,52,707,43,5,11,4,0,0,23,30,10,20,6,14,634,119,15,5,5,0,0,5,19,7,12,85]
["Springfield","0004260","72740",945,869,428,75,0,0,0,0,0,0,0,0,75,17,0,0,0,0,0,0,0,0,0,0,0,0,17,279,9,3,4,0,0,0,2,12,5,7,2,5,258,57,3,0,3,0,0,0,19,6,13,35,441,78,10,0,0,10,0,0,0,0,68,9,0,0,0,0,0,0,0,0,0,0,0,0,9,285,23,5,9,1,0,0,8,15,5,10,0,10,247,69,14,0,9,2,0,3,12,9,3,43]
["Sunapee","0004265","75060",3055,2923,1463,249,10,0,0,10,0,0,0,0,239,110,17,0,0,10,0,0,7,5,0,5,0,5,88,833,51,20,17,0,0,0,14,40,10,30,10,20,742,271,16,8,4,0,0,4,15,0,15,240,1460,226,9,4,0,5,0,0,0,0,217,85,0,0,0,0,0,0,0,0,0,0,0,0,85,894,58,12,19,0,0,7,20,32,9,23,9,14,804,255,45,22,23,0,0,0,18,4,14,192]
["Unity","0004274","77940",1530,1223,635,101,3,0,0,3,0,3,1,2,95,31,0,0,0,0,0,0,0,0,0,0,0,0,31,423,45,12,13,6,0,0,14,45,12,33,6,27,333,80,24,6,15,3,0,0,9,5,4,47,588,92,0,0,0,0,0,2,0,2,90,27,5,0,0,2,0,0,3,2,0,2,0,2,20,402,45,0,11,7,0,0,27,29,7,22,5,17,328,67,2,0,0,0,0,2,29,9,20,36]
["Washington","0004279","78980",895,845,439,80,5,2,0,3,0,0,0,0,75,23,0,0,0,0,0,0,0,2,2,0,0,0,21,260,26,8,2,4,0,0,12,23,4,19,3,16,211,76,19,10,9,0,0,0,0,0,0,57,406,72,5,0,0,5,0,0,0,0,67,15,2,0,0,2,0,0,0,0,0,0,0,0,13,255,7,0,7,0,0,0,0,15,5,10,0,10,233,64,5,2,1,2,0,0,5,1,4,54]
[]
[]
[]
["2010 Census Demographic Profile Data -  QRY_CountyState"]
["TownName","LOGRECNO","COUNTY","TotalPop","TotalPop1Race","TotalPopWhite","TotalPopAfricanAmerican","TotalPopAmericanIndAlaska","TotalPopAsian","TotalPopNativeHawaiianPIsland","TotalPopSomeOtherRace","TotalPopTwoOrMoreRaces","TotalPopHispanicLatino","TotalNonHispanicLatino","TotPopUnder15yrs","TotPop15to24yrs","TotPop25to34yrs","TotPop35to44yrs","TotPop45to54yrs","TotPop55to64yrs","TotPop65to74yrs","TotPopOver74yrs","MedianAge","MedianAgeMale","MedianAgeFemale","TotalHH","TotalPopInHouseholds","TotalPopInFamilyHH","TotalPopInNonFamilyHH","AvgHHSize","TotalFamilyHH","TotalFamilyHHSpouse","TotalSingleParentHH","TotalNonFamilyHH","AvgFamilyHHSize","AvgNonFamilyHHSize","AverageHHSizeOwnerOccupied","AverageHHSizeRentalOccupied","TotalHousingUnits","TotalOccupiedHU","TotalOwnerOccupiedHUs","TotalRentalOccupiedHU","TotalVacantHU","VacantHUForRent","VacantHURentNotOccupied","VacantHUForSale","VacantHUsSoldNotOccupied","VacantHUSeasonalRecreational","VacantHUsAllOtherVacants","HomeOwnerVacancyRate","HomeRentalVacancyRate","TotalHousingUnits2010","SingFamHU2010","MultiFamHU2010","MobileHom2010"]
["Acworth","0000227","019",891,880,859,1,6,13,0,1,11,7,884,112,95,67,98,177,180,102,60,49.2,48.6,50.4,380,891,456,435,2.34,265,224,41,115,2.72,3.7826086956521738,2.29,2.76,556,380,339,41,176,3,4,6,0,146,17,1.7,6.3,556,479,22,55]
["Charlestown","0000228","019",5114,5061,5002,20,12,21,0,6,53,41,5073,842,607,507,677,880,775,499,327,43.9,43.4,44.6,2117,5032,2571,2461,2.38,1399,1066,333,718,2.84,3.4275766016713094,2.48,2.02,2263,2117,1621,496,146,23,1,21,1,50,50,1.3,4.4000000000000004,2263,1233,313,717]
["Claremont","0000257","019",13355,13120,12808,85,44,126,4,53,235,171,13184,2482,1518,1714,1766,2110,1712,1047,1006,40.6,39.4,41.7,5697,13175,6345,6830,2.31,3461,2397,1064,2236,2.83,3.0545617173524149,2.4500000000000002,2.12,6293,5697,3264,2433,596,286,23,63,17,62,145,1.9,10.4,6293,3241,2636,416]
["Cornish","0000229","019",1640,1615,1590,6,9,6,0,4,25,15,1625,249,145,128,197,307,365,150,99,48.6,48.6,48.6,687,1640,876,764,2.39,496,421,75,191,2.77,4,2.41,2.2599999999999998,747,687,581,106,60,8,2,6,1,28,15,1,6.9,747,639,47,61]
["Croydon","0000230","019",764,746,731,4,5,4,0,2,18,5,759,98,67,84,101,155,138,80,41,48,48.5,46.4,324,764,390,374,2.36,227,185,42,97,2.72,3.8556701030927836,2.36,2.37,396,324,272,52,72,0,1,4,2,62,3,1.4,0,396,370,8,18]
["Goshen","0000231","019",810,798,793,4,1,0,0,0,12,1,809,124,73,75,104,161,131,76,66,47,47.3,46.5,344,810,411,399,2.35,237,185,52,107,2.73,3.7289719626168223,2.31,2.58,444,344,287,57,100,3,1,7,1,80,8,2.4,4.9000000000000004,444,400,15,29]
["Grantham","0000232","019",2985,2959,2898,13,1,29,0,18,26,53,2932,539,192,237,432,468,492,371,254,47.3,47,47.6,1249,2985,1602,1383,2.39,919,822,97,330,2.74,4.1909090909090905,2.4,2.33,1773,1249,1094,155,524,7,0,24,7,475,11,2.1,4.3,1773,1455,304,14]
["Langdon","0000233","019",688,686,679,1,3,2,0,1,2,11,677,121,63,63,91,109,121,75,45,45.5,46.2,45.3,282,688,368,320,2.44,202,162,40,80,2.82,4,2.4700000000000002,2.21,306,282,253,29,24,0,0,2,0,14,8,0.8,0,306,271,20,15]
["Lempster","0000234","019",1154,1139,1132,2,3,0,0,2,15,14,1140,181,116,118,143,231,220,85,60,46.1,46.2,46.1,479,1154,585,569,2.41,324,266,58,155,2.81,3.6709677419354838,2.37,2.68,679,479,414,65,200,1,1,6,3,160,29,1.4,1.5,679,596,18,65]
["Newport","0000235","019",6507,6401,6324,18,15,26,0,18,106,71,6436,1193,842,676,824,1032,901,487,552,41.7,39.4,44,2629,6379,3230,3149,2.4300000000000002,1706,1211,495,923,2.89,3.4117009750812568,2.5299999999999998,2.2400000000000002,2938,2629,1703,926,309,125,6,54,5,45,74,3.1,11.8,2938,1664,993,281]
["Plainfield","0000236","019",2364,2342,2316,11,2,12,0,1,22,27,2337,426,217,191,339,482,394,189,126,45.2,44.6,45.7,923,2318,1286,1032,2.5099999999999998,684,586,98,239,2.88,4.3179916317991633,2.57,2.17,984,923,788,135,61,5,0,10,2,27,17,1.3,3.6,984,859,51,73]
["Springfield","0000237","019",1311,1295,1286,2,5,2,0,0,16,22,1289,260,123,114,219,200,206,124,65,42.3,42.1,42.5,512,1311,735,576,2.56,380,330,50,132,2.93,4.3636363636363633,2.57,2.4500000000000002,702,512,454,58,190,20,1,12,3,140,14,2.6,25.3,702,662,5,35]
["Sunapee","0000238","019",3365,3330,3283,7,11,19,1,9,35,26,3339,540,345,323,409,559,545,363,281,46.2,45.4,47.3,1443,3340,1695,1645,2.31,973,797,176,470,2.74,3.5,2.4,2.0499999999999998,2431,1443,1081,362,988,46,13,29,7,855,38,2.6,10.9,2431,1992,358,81]
["Unity","0000239","019",1671,1644,1628,7,3,5,0,1,27,14,1657,192,153,147,235,274,312,171,187,49.7,47.5,52.1,601,1431,726,705,2.38,416,354,62,185,2.75,3.810810810810811,2.37,2.5499999999999998,736,601,550,51,135,1,0,5,1,114,14,0.9,1.9,736,607,26,103]
["Washington","0000240","019",1123,1112,1092,4,9,6,0,1,11,15,1108,175,121,83,149,202,164,152,77,46.5,46.4,46.6,459,1123,592,531,2.4500000000000002,336,286,50,123,2.76,4.3170731707317076,2.44,2.5099999999999998,1093,459,420,39,634,2,0,16,4,591,21,3.6,4.9000000000000004,1093,1038,16,38]

{"sheet":"SmallTownEmploymentandWages","index":111,"n_rows":77,"n_cols":14,"rows_kept":77,"cut":false,"hidden":true,"merged":[[66,1,67,3],[73,1,73,2],[35,1,35,2]]}
[]
[null,{"$f":"CntyDataLink!A35","v":"Acworth"}]
[]
[null,"EMPLOYMENT CHARACTERISTICS"]
[]
[]
[]
[]
[]
[]
[]
[]
[]
[]
[]
[]
[]
[]
[]
[]
[]
[]
[]
[]
[]
[]
[]
[]
[null,"Annual Average Covered Private Employment "]
[null,null,"Source: New Hampshire Department of Employment Security, Covered Private Employment by location of employment"]
[null,null,2009,{"$f":"C31+1","v":2010},{"$f":"D31+1","v":2011},2012,2013,2014,2015,2016,2017,2018,2019,"Total Change  "]
[null,"Goods Producing",{"$f":"IF((CntyDataLink!$BQ$25)=\"n\",NA(),IF(VALUE(CntyDataLink!$BQ$25)=\"\",NA(),VALUE(CntyDataLink!$BQ$25)))","v":{"$error":"#N/A"}},{"$f":"IF((CntyDataLink!$BY$25)=\"n\",NA(),IF(VALUE(CntyDataLink!$BY$25)=\"\",NA(),VALUE(CntyDataLink!$BY$25)))","v":64},{"$f":"IF((CntyDataLink!$CG$25)=\"n\",NA(),IF(VALUE(CntyDataLink!$CG$25)=\"\",NA(),VALUE(CntyDataLink!$CG$25)))","v":69},{"$f":"IF((CntyDataLink!$CO$25)=\"n\",NA(),IF(VALUE(CntyDataLink!$CO$25)=\"\",NA(),VALUE(CntyDataLink!$CO$25)))","v":73},{"$f":"IF((CntyDataLink!$CW$25)=\"n\",NA(),IF(VALUE(CntyDataLink!$CW$25)=\"\",NA(),VALUE(CntyDataLink!$CW$25)))","v":{"$error":"#N/A"}},{"$f":"IF((CntyDataLink!$DE$25)=\"n\",NA(),IF(VALUE(CntyDataLink!$DE$25)=\"\",NA(),VALUE(CntyDataLink!$DE$25)))","v":73},{"$f":"IF((CntyDataLink!$DM$25)=\"n\",NA(),IF(VALUE(CntyDataLink!$DM$25)=\"\",NA(),VALUE(CntyDataLink!$DM$25)))","v":73},{"$f":"IF((CntyDataLink!$DU$25)=\"n\",NA(),IF(VALUE(CntyDataLink!$DU$25)=\"\",NA(),VALUE(CntyDataLink!$DU$25)))","v":82},{"$f":"IF((CntyDataLink!$EC$25)=\"n\",NA(),IF(VALUE(CntyDataLink!$EC$25)=\"\",NA(),VALUE(CntyDataLink!$EC$25)))","v":80},{"$f":"IF((CntyDataLink!$EK$25)=\"n\",NA(),IF(VALUE(CntyDataLink!$EK$25)=\"\",NA(),VALUE(CntyDataLink!$EK$25)))","v":86},{"$f":"IF((CntyDataLink!$ET$25)=\"n\",NA(),IF(VALUE(CntyDataLink!$ET$25)=\"\",NA(),VALUE(CntyDataLink!$ET$25)))","v":83},{"$f":"$M32-C32","v":{"$error":"#N/A"}}]
[null,"Service Providing",{"$f":"IF((CntyDataLink!$BR$25)=\"n\",NA(),IF(VALUE(CntyDataLink!$BR$25)=\"\",NA(),VALUE(CntyDataLink!$BR$25)))","v":{"$error":"#N/A"}},{"$f":"IF((CntyDataLink!$BZ$25)=\"n\",NA(),IF(VALUE(CntyDataLink!$BZ$25)=\"\",NA(),VALUE(CntyDataLink!$BZ$25)))","v":5},{"$f":"IF((CntyDataLink!$CH$25)=\"n\",NA(),IF(VALUE(CntyDataLink!$CH$25)=\"\",NA(),VALUE(CntyDataLink!$CH$25)))","v":7},{"$f":"IF((CntyDataLink!$CP$25)=\"n\",NA(),IF(VALUE(CntyDataLink!$CP$25)=\"\",NA(),VALUE(CntyDataLink!$CP$25)))","v":8},{"$f":"IF((CntyDataLink!$CX$25)=\"n\",NA(),IF(VALUE(CntyDataLink!$CX$25)=\"\",NA(),VALUE(CntyDataLink!$CX$25)))","v":{"$error":"#N/A"}},{"$f":"IF((CntyDataLink!$DF$25)=\"n\",NA(),IF(VALUE(CntyDataLink!$DF$25)=\"\",NA(),VALUE(CntyDataLink!$DF$25)))","v":13},{"$f":"IF((CntyDataLink!$DN$25)=\"n\",NA(),IF(VALUE(CntyDataLink!$DN$25)=\"\",NA(),VALUE(CntyDataLink!$DN$25)))","v":16},{"$f":"IF((CntyDataLink!$DV$25)=\"n\",NA(),IF(VALUE(CntyDataLink!$DV$25)=\"\",NA(),VALUE(CntyDataLink!$DV$25)))","v":25},{"$f":"IF((CntyDataLink!$ED$25)=\"n\",NA(),IF(VALUE(CntyDataLink!$ED$25)=\"\",NA(),VALUE(CntyDataLink!$ED$25)))","v":20},{"$f":"IF((CntyDataLink!$EL$25)=\"n\",NA(),IF(VALUE(CntyDataLink!$EL$25)=\"\",NA(),VALUE(CntyDataLink!$EL$25)))","v":12},{"$f":"IF((CntyDataLink!$EU$25)=\"n\",NA(),IF(VALUE(CntyDataLink!$EU$25)=\"\",NA(),VALUE(CntyDataLink!$EU$25)))","v":12},{"$f":"$M33-C33","v":{"$error":"#N/A"}}]
[null,"Total Private Emp",{"$f":"IF((CntyDataLink!$BP$25)=\"n\",NA(),IF(VALUE(CntyDataLink!$BP$25)=\"\",NA(),VALUE(CntyDataLink!$BP$25)))","v":92},{"$f":"IF((CntyDataLink!$BX$25)=\"n\",NA(),IF(VALUE(CntyDataLink!$BX$25)=\"\",NA(),VALUE(CntyDataLink!$BX$25)))","v":69},{"$f":"IF((CntyDataLink!$CF$25)=\"n\",NA(),IF(VALUE(CntyDataLink!$CF$25)=\"\",NA(),VALUE(CntyDataLink!$CF$25)))","v":77},{"$f":"IF((CntyDataLink!$CN$25)=\"n\",NA(),IF(VALUE(CntyDataLink!$CN$25)=\"\",NA(),VALUE(CntyDataLink!$CN$25)))","v":81},{"$f":"IF((CntyDataLink!$CV$25)=\"n\",NA(),IF(VALUE(CntyDataLink!$CV$25)=\"\",NA(),VALUE(CntyDataLink!$CV$25)))","v":84},{"$f":"IF((CntyDataLink!$DD$25)=\"n\",NA(),IF(VALUE(CntyDataLink!$DD$25)=\"\",NA(),VALUE(CntyDataLink!$DD$25)))","v":86},{"$f":"IF((CntyDataLink!$DL$25)=\"n\",NA(),IF(VALUE(CntyDataLink!$DL$25)=\"\",NA(),VALUE(CntyDataLink!$DL$25)))","v":89},{"$f":"IF((CntyDataLink!$DT$25)=\"n\",NA(),IF(VALUE(CntyDataLink!$DT$25)=\"\",NA(),VALUE(CntyDataLink!$DT$25)))","v":107},{"$f":"IF((CntyDataLink!$EB$25)=\"n\",NA(),IF(VALUE(CntyDataLink!$EB$25)=\"\",NA(),VALUE(CntyDataLink!$EB$25)))","v":100},{"$f":"IF((CntyDataLink!$EJ$25)=\"n\",NA(),IF(VALUE(CntyDataLink!$EJ$25)=\"\",NA(),VALUE(CntyDataLink!$EJ$25)))","v":98},{"$f":"IF((CntyDataLink!$ER$25)=\"n\",NA(),IF(VALUE(CntyDataLink!$ER$25)=\"\",NA(),VALUE(CntyDataLink!$ER$25)))","v":95},{"$f":"$M34-C34","v":3}]
[]
[null,"% Change from prior Year",null,"09-10","10-11","11-12","12-13","13-14","14-15","15-16","16-17","17-18","18-19","Total % Change"]
[null,"Goods Producing",null,{"$f":"(D32-C32)/C32","v":{"$error":"#N/A"}},7.8125E-2,5.7971014492753624E-2,{"$error":"#N/A"},{"$error":"#N/A"},{"$f":"(I32-H32)/H32","v":0},0.12328767123287671,-2.4390243902439025E-2,7.4999999999999997E-2,-3.4883720930232558E-2,{"$f":"N32/C32","v":{"$error":"#N/A"}}]
[null,"Service Providing",null,{"$error":"#N/A"},0.4,0.14285714285714285,{"$f":"(G33-F33)/F33","v":{"$error":"#N/A"}},{"$error":"#N/A"},0.23076923076923078,0.5625,-0.2,-0.4,0,{"$f":"N33/C33","v":{"$error":"#N/A"}}]
[null,"Total Private Emp",null,-0.25,0.11594202898550725,5.1948051948051951E-2,3.7037037037037035E-2,2.3809523809523808E-2,3.4883720930232558E-2,0.20224719101123595,-6.5420560747663545E-2,-0.02,-3.0612244897959183E-2,{"$f":"N34/C34","v":3.2608695652173912E-2}]
[]
[]
[null,"EMPLOYMENT CHARACTERISTICS"]
[]
[]
[]
[]
[]
[]
[]
[]
[]
[]
[]
[]
[]
[]
[]
[]
[]
[]
[]
[]
[]
[]
[]
[]
[null,"Covered Private Employment Average Wages",null,null,"Source: NH Department of Employment Security, Covered Private Employment"]
[]
[null,null,2009,{"$f":"C69+1","v":2010},{"$f":"D69+1","v":2011},{"$f":"E69+1","v":2012},2013,2014,2015,2016,2017,2018,2019,"Total $ Change"]
[null,"Goods Producing",{"$f":"IF((CntyDataLink!$BU$25)=\"n\",NA(),IF(VALUE(CntyDataLink!$BU$25)=\"\",NA(),VALUE(CntyDataLink!$BU$25)))","v":{"$error":"#N/A"}},{"$f":"IF((CntyDataLink!$CC$25)=\"n\",NA(),IF(VALUE(CntyDataLink!$CC$25)=\"\",NA(),VALUE(CntyDataLink!$CC$25)))","v":1138.97},{"$f":"IF((CntyDataLink!$CK$25)=\"n\",NA(),IF(VALUE(CntyDataLink!$CK$25)=\"\",NA(),VALUE(CntyDataLink!$CK$25)))","v":723.71},{"$f":"IF((CntyDataLink!$CS$25)=\"n\",NA(),IF(VALUE(CntyDataLink!$CS$25)=\"\",NA(),VALUE(CntyDataLink!$CS$25)))","v":1035.69},{"$f":"IF((CntyDataLink!$DA$25)=\"n\",NA(),IF(VALUE(CntyDataLink!$DA$25)=\"\",NA(),VALUE(CntyDataLink!$DA$25)))","v":{"$error":"#N/A"}},{"$f":"IF((CntyDataLink!$DI$25)=\"n\",NA(),IF(VALUE(CntyDataLink!$DI$25)=\"\",NA(),VALUE(CntyDataLink!$DI$25)))","v":1150.56},{"$f":"IF((CntyDataLink!$DQ$25)=\"n\",NA(),IF(VALUE(CntyDataLink!$DQ$25)=\"\",NA(),VALUE(CntyDataLink!$DQ$25)))","v":1116.08},{"$f":"IF((CntyDataLink!$DY$25)=\"n\",NA(),IF(VALUE(CntyDataLink!$DY$25)=\"\",NA(),VALUE(CntyDataLink!$DY$25)))","v":783.75},{"$f":"IF((CntyDataLink!$EG$25)=\"n\",NA(),IF(VALUE(CntyDataLink!$EG$25)=\"\",NA(),VALUE(CntyDataLink!$EG$25)))","v":855.47},{"$f":"IF((CntyDataLink!$EO$25)=\"n\",NA(),IF(VALUE(CntyDataLink!$EO$25)=\"\",NA(),VALUE(CntyDataLink!$EO$25)))","v":821},{"$f":"IF((CntyDataLink!$EY$25)=\"n\",NA(),IF(VALUE(CntyDataLink!$EY$25)=\"\",NA(),VALUE(CntyDataLink!$EY$25)))","v":896.99},{"$f":"M70-C70","v":{"$error":"#N/A"}}]
[null,"Service Providing",{"$f":"IF((CntyDataLink!$BV$25)=\"n\",NA(),IF(VALUE(CntyDataLink!$BV$25)=\"\",NA(),VALUE(CntyDataLink!$BV$25)))","v":{"$error":"#N/A"}},{"$f":"IF((CntyDataLink!$CD$25)=\"n\",NA(),IF(VALUE(CntyDataLink!$CD$25)=\"\",NA(),VALUE(CntyDataLink!$CD$25)))","v":746.85},{"$f":"IF((CntyDataLink!$CL$25)=\"n\",NA(),IF(VALUE(CntyDataLink!$CL$25)=\"\",NA(),VALUE(CntyDataLink!$CL$25)))","v":463.81},{"$f":"IF((CntyDataLink!$CT$25)=\"n\",NA(),IF(VALUE(CntyDataLink!$CT$25)=\"\",NA(),VALUE(CntyDataLink!$CT$25)))","v":253.57},{"$f":"IF((CntyDataLink!$DB$25)=\"n\",NA(),IF(VALUE(CntyDataLink!$DB$25)=\"\",NA(),VALUE(CntyDataLink!$DB$25)))","v":{"$error":"#N/A"}},{"$f":"IF((CntyDataLink!$DJ$25)=\"n\",NA(),IF(VALUE(CntyDataLink!$DJ$25)=\"\",NA(),VALUE(CntyDataLink!$DJ$25)))","v":369.51},{"$f":"IF((CntyDataLink!$DR$25)=\"n\",NA(),IF(VALUE(CntyDataLink!$DR$25)=\"\",NA(),VALUE(CntyDataLink!$DR$25)))","v":422.03},{"$f":"IF((CntyDataLink!$DZ$25)=\"n\",NA(),IF(VALUE(CntyDataLink!$DZ$25)=\"\",NA(),VALUE(CntyDataLink!$DZ$25)))","v":422.29},{"$f":"IF((CntyDataLink!EG$25)=\"n\",NA(),IF(VALUE(CntyDataLink!$EH$25)=\"\",NA(),VALUE(CntyDataLink!$EH$25)))","v":416.7},{"$f":"IF((CntyDataLink!EO$25)=\"n\",NA(),IF(VALUE(CntyDataLink!$EP$25)=\"\",NA(),VALUE(CntyDataLink!$EP$25)))","v":329.08},{"$f":"IF((CntyDataLink!EZ$25)=\"n\",NA(),IF(VALUE(CntyDataLink!$EZ$25)=\"\",NA(),VALUE(CntyDataLink!$EZ$25)))","v":367.87},{"$f":"M71-C71","v":{"$error":"#N/A"}}]
[null,"Total Private Emp",{"$f":"IF((CntyDataLink!$BT$25)=\"n\",NA(),IF(VALUE(CntyDataLink!$BT$25)=\"\",NA(),VALUE(CntyDataLink!$BT$25)))","v":782.26},{"$f":"IF((CntyDataLink!$CB$25)=\"n\",NA(),IF(VALUE(CntyDataLink!$CB$25)=\"\",NA(),VALUE(CntyDataLink!$CB$25)))","v":1111.9100000000001},{"$f":"IF((CntyDataLink!$CJ$25)=\"n\",NA(),IF(VALUE(CntyDataLink!$CJ$25)=\"\",NA(),VALUE(CntyDataLink!$CJ$25)))","v":698.52},{"$f":"IF((CntyDataLink!$CR$25)=\"n\",NA(),IF(VALUE(CntyDataLink!$CR$25)=\"\",NA(),VALUE(CntyDataLink!$CR$25)))","v":957.56},{"$f":"IF((CntyDataLink!$CZ$25)=\"n\",NA(),IF(VALUE(CntyDataLink!$CZ$25)=\"\",NA(),VALUE(CntyDataLink!$CZ$25)))","v":923.65},{"$f":"IF((CntyDataLink!$DH$25)=\"n\",NA(),IF(VALUE(CntyDataLink!$DH$25)=\"\",NA(),VALUE(CntyDataLink!$DH$25)))","v":1034.3499999999999},{"$f":"IF((CntyDataLink!$DP$25)=\"n\",NA(),IF(VALUE(CntyDataLink!$DP$25)=\"\",NA(),VALUE(CntyDataLink!$DP$25)))","v":992.96},{"$f":"IF((CntyDataLink!$DX$25)=\"n\",NA(),IF(VALUE(CntyDataLink!$DX$25)=\"\",NA(),VALUE(CntyDataLink!$DX$25)))","v":698.45},{"$f":"IF((CntyDataLink!$EF$25)=\"n\",NA(),IF(VALUE(CntyDataLink!$EF$25)=\"\",NA(),VALUE(CntyDataLink!$EF$25)))","v":767.13},{"$f":"IF((CntyDataLink!$EN$25)=\"n\",NA(),IF(VALUE(CntyDataLink!$EN$25)=\"\",NA(),VALUE(CntyDataLink!$EN$25)))","v":760.55},{"$f":"IF((CntyDataLink!$EW$25)=\"n\",NA(),IF(VALUE(CntyDataLink!$EW$25)=\"\",NA(),VALUE(CntyDataLink!$EW$25)))","v":829.52},{"$f":"M72-C72","v":47.259999999999991}]
[]
[null,"% Change from prior Year",null,{"$f":"D36","v":"09-10"},"10-11","11-12","12-13","13-14","14-15","15-16","16-17","17-18","18-19","Total % Change"]
[null,"Goods Producing",null,{"$f":"(D70-C70)/C70","v":{"$error":"#N/A"}},-0.36459257048034627,0.43108427408768707,{"$error":"#N/A"},{"$error":"#N/A"},-2.9968015575024352E-2,-0.29776539316178047,9.1508771929824595E-2,-4.0293639753585776E-2,9.255785627283801E-2,{"$f":"N70/C70","v":{"$error":"#N/A"}}]
[null,"Service Providing",null,{"$error":"#N/A"},-0.3789783758452166,-0.45328906233155819,{"$error":"#N/A"},{"$error":"#N/A"},0.14213417769478495,6.1606994763416766E-4,-1.3237348741386325E-2,-0.21027117830573555,0.11787407317369643,{"$f":"N71/C71","v":{"$error":"#N/A"}}]
[null,"Total Private Emp",null,0.42140720476567906,-0.37178368752866697,0.37084120712363278,-3.5412924516479351E-2,0.11985059275699662,-4.0015468651810195E-2,-0.29659805027392844,9.8332020903428949E-2,-8.5774249475317633E-3,9.0684373151009176E-2,{"$f":"N72/C72","v":6.0414695881164819E-2}]